{"text_format":"2","workbook":"xlsx","n_sheets":11,"sheets":["Instructions","Revision","Definitions","Declaration","Smelter List","Checker","Product List","Smelter Look-up","L","C","SorP"],"not_rendered":{"charts":0,"images":1,"macros":0,"external_links":0,"defined_names":52,"comments":0,"pivot_tables":0},"unopened":[],"bounds":{"document_bytes":16777216,"sheet_cells":100000,"run_cost":"one","rows_first":2000,"rows_last":500,"rows_between":2000,"halvings":0,"cell_chars":16384,"cell_head_chars":4096},"cells_cut":0,"cells_raw":0,"read":"whole","date_system":"1900"}

{"sheet":"Instructions","index":0,"n_rows":75,"n_cols":1,"rows_kept":75,"cut":false,"hidden":false,"merged":[]}
[{"$f":"OFFSET(L!$C$1,MATCH(\"Instructions\"&ADDRESS(ROW(),COLUMN(),4),L!$A:$A,0)-1,SL,,)","v":"RMI:www.responsiblemineralsinitiative.org/"}]
[{"$f":"OFFSET(L!$C$1,MATCH(\"Instructions\"&ADDRESS(ROW(),COLUMN(),4),L!$A:$A,0)-1,SL,,)","v":"Introduction"}]
[{"$f":"OFFSET(L!$C$1,MATCH(\"Instructions\"&ADDRESS(ROW(),COLUMN(),4),L!$A:$A,0)-1,SL,,)","v":"This Extended Mineral Reporting Template (EMRT) is a free, standardized reporting template created by the Responsible Minerals Initiative® (RMI®). The Template facilitates the transfer of information through the supply chain regarding mineral country of origin and smelters, refiners and processors being utilized and supports the exercise of due diligence in accordance with the OECD Due Diligence Guidance for Responsible Supply Chains of Minerals from Conflict-Affected and High-Risk Areas. The template also facilitates the identification of new smelters and refiners to potentially undergo an audit via the Responsible Minerals Assurance Process.\n\nThe EMRT was designed for downstream companies to disclose information about their supply chains up to but not including the smelter.  If you are a smelter or refiner, we recommend you enter your own name in the smelter list tab.\n\nWhen filling out the form, none of the cell entries should start with \"=\" or \"#.\""}]
[]
[{"$f":"OFFSET(L!$C$1,MATCH(\"Instructions\"&ADDRESS(ROW(),COLUMN(),4),L!$A:$A,0)-1,SL,,)","v":"Instructions for completing Company Information questions (rows 8 - 22).\nProvide comments in ENGLISH only"}]
[{"$f":"OFFSET(L!$C$1,MATCH(\"Instructions\"&ADDRESS(ROW(),COLUMN(),4),L!$A:$A,0)-1,SL,,)","v":"Note:  Entries with (*) are mandatory fields. "}]
[{"$f":"OFFSET(L!$C$1,MATCH(\"Instructions\"&ADDRESS(ROW(),COLUMN(),4),L!$A:$A,0)-1,SL,,)","v":"1. Insert your company's Legal Name.  Please do not use abbreviations. In this field you have the option to add other commercial names, DBAs, etc. This field is mandatory."}]
[{"$f":"OFFSET(L!$C$1,MATCH(\"Instructions\"&ADDRESS(ROW(),COLUMN(),4),L!$A:$A,0)-1,SL,,)","v":"2. Select your company's Declaration Scope.  The options for scope are:\n\nA.  Company-wide\nB.  Product (or List of Products)\nC.  User-Defined \n\nFor \"Company-wide\", the declaration encompasses the entirety of a company's products or product substances produced by the parent company. Therefore if the user is reporting cobalt or natural mica data at the company level, they will be reporting data on all products they manufacture. \n\nFor Scope selection of Product (or List of Products), a link to the worksheet tab for Product List will be displayed.  If this scope is chosen, it is mandatory to list the Manufacturer's Product Number of the products covered under the Scope of this Declaration in Column B of the Product List worksheet. It is optional to list the Manufacturer's Product Name in Column C of the Product List worksheet.\n\nFor Scope selection of \"User Defined\", it is mandatory that the user describes the scope to which the cobalt or natural mica disclosure is applicable. The scope of this class shall be defined in a text field by the supplier and should be easily understood by customers or the receivers of the document. As an example, companies may provide a link to clarifying information.\n\nThis field is mandatory."}]
[{"$f":"OFFSET(L!$C$1,MATCH(\"Instructions\"&ADDRESS(ROW(),COLUMN(),4),L!$A:$A,0)-1,SL,,)","v":"3. Insert your company’s unique identifier number or code (DUNS number, VAT number, customer-specific identifier, etc.)"}]
[{"$f":"OFFSET(L!$C$1,MATCH(\"Instructions\"&ADDRESS(ROW(),COLUMN(),4),L!$A:$A,0)-1,SL,,)","v":"4. Insert the source for the unique identifier number or code (\"DUNS\", \"VAT\", \"Customer\", etc).  "}]
[{"$f":"OFFSET(L!$C$1,MATCH(\"Instructions\"&ADDRESS(ROW(),COLUMN(),4),L!$A:$A,0)-1,SL,,)","v":"5. Insert your full company address (street, city, state, country, postal code). This field is optional."}]
[{"$f":"OFFSET(L!$C$1,MATCH(\"Instructions\"&ADDRESS(ROW(),COLUMN(),4),L!$A:$A,0)-1,SL,,)","v":"6. Insert the name of the person to contact regarding the contents of the declaration information. This field is mandatory."}]
[{"$f":"OFFSET(L!$C$1,MATCH(\"Instructions\"&ADDRESS(ROW(),COLUMN(),4),L!$A:$A,0)-1,SL,,)","v":"7. Insert the email address of the contact person.  If an email address is not available, state \"not available\" or \"n/a\". A blank field may cause an error in form implementation. This field is mandatory.  "}]
[{"$f":"OFFSET(L!$C$1,MATCH(\"Instructions\"&ADDRESS(ROW(),COLUMN(),4),L!$A:$A,0)-1,SL,,)","v":"8. Insert the telephone number for the contact. This field is mandatory."}]
[{"$f":"OFFSET(L!$C$1,MATCH(\"Instructions\"&ADDRESS(ROW(),COLUMN(),4),L!$A:$A,0)-1,SL,,)","v":"9. Insert the name of the person who  is responsible for the contents of the declaration information. The authorizer may be a different individual than the contact person. It is not correct to use the words ‘‘same’’ or similar identification to provide the name of the authorizer. This field is mandatory."}]
[{"$f":"OFFSET(L!$C$1,MATCH(\"Instructions\"&ADDRESS(ROW(),COLUMN(),4),L!$A:$A,0)-1,SL,,)","v":"10. Insert the title for the Authorizing person. This field is optional."}]
[{"$f":"OFFSET(L!$C$1,MATCH(\"Instructions\"&ADDRESS(ROW(),COLUMN(),4),L!$A:$A,0)-1,SL,,)","v":"11. Insert the email address of the Authorizing person.  If an email address is not available, state ‘‘not available’’ or ‘‘n/a.’’ A blank field may cause an error in form implementation. This field is mandatory."}]
[{"$f":"OFFSET(L!$C$1,MATCH(\"Instructions\"&ADDRESS(ROW(),COLUMN(),4),L!$A:$A,0)-1,SL,,)","v":"12. Insert the telephone number for the Authorizing person. This field is optional."}]
[{"$f":"OFFSET(L!$C$1,MATCH(\"Instructions\"&ADDRESS(ROW(),COLUMN(),4),L!$A:$A,0)-1,SL,,)","v":"13. Please enter the Date of Completion for this form using the format DD-MMM-YYYY.  This field is mandatory."}]
[{"$f":"OFFSET(L!$C$1,MATCH(\"Instructions\"&ADDRESS(ROW(),COLUMN(),4),L!$A:$A,0)-1,SL,,)","v":"14. As an example, the user may save the file name as:  companyname-date.xlsx (date as YYYY-MM-DD).  "}]
[]
[{"$f":"OFFSET(L!$C$1,MATCH(\"Instructions\"&ADDRESS(ROW(),COLUMN(),4),L!$A:$A,0)-1,SL,,)","v":"Instructions for completing the seven Declaration of Scope Questions (rows 24 - 63).\nProvide answers in ENGLISH only"}]
[{"$f":"OFFSET(L!$C$1,MATCH(\"Instructions\"&ADDRESS(ROW(),COLUMN(),4),L!$A:$A,0)-1,SL,,)","v":"These seven questions define the usage, origination and sourcing identification for cobalt or natural mica. The questions are designed to collect information about the use of cobalt or natural mica in the company’s product(s) and the completeness of reporting. Responses to these questions shall represent the ‘Declaration Scope’ selected in the company information section."}]
[{"$f":"OFFSET(L!$C$1,MATCH(\"Instructions\"&ADDRESS(ROW(),COLUMN(),4),L!$A:$A,0)-1,SL,,)","v":"Provide comments in the Comment sections as required to clarify your responses."}]
[{"$f":"OFFSET(L!$C$1,MATCH(\"Instructions\"&ADDRESS(ROW(),COLUMN(),4),L!$A:$A,0)-1,SL,,)","v":"Provide an answer using the pull down menu selections. If the response for cobalt or natural mica to question 1 and 2 is positive, then all questions shall be completed for cobalt or natural mica and the following due diligence questions (A to G) shall be completed about the company’s overall due diligence program."}]
[{"$f":"OFFSET(L!$C$1,MATCH(\"Instructions\"&ADDRESS(ROW(),COLUMN(),4),L!$A:$A,0)-1,SL,,)","v":"1. This question is used to determine whether cobalt or natural mica is within the scope of the reporting requirement.  The response to this question serves to exclude any trace-level contaminants or naturally-occurring by-products.\n\nThis question asks if any cobalt or natural mica is used as raw material, component or additive in a product that you manufacture, including compounds. Impurities from raw materials, components, additives, abrasives, and cutting tools are outside the scope of the survey.\n\nThe answer to this question shall be either \"yes\" \"no\" \"unknown\" or \"not applicable for this declaration\". \"Not applicable for this declaration\" can be used if a material is not in scope of the declaration."}]
[{"$f":"OFFSET(L!$C$1,MATCH(\"Instructions\"&ADDRESS(ROW(),COLUMN(),4),L!$A:$A,0)-1,SL,,)","v":"Some companies may require substantiation for a \"No\" answer that should be entered into the Comment Field."}]
[{"$f":"OFFSET(L!$C$1,MATCH(\"Instructions\"&ADDRESS(ROW(),COLUMN(),4),L!$A:$A,0)-1,SL,,)","v":"2. This question shall be answered for cobalt and/or mica for which the answer to question 1 is \"yes.\" This is the second of two questions for which the response is used to determine whether the cobalt or mica is within the scope of this reporting template.  This question is dependent upon the question and response to Question 1.  This question is intended to identify cobalt and mica which are intentionally added or included in the manufacturing process of a product where some amount of the cobalt and mica remains in the finished product.  This includes cobalt and mica which may not have been intended to become part of the final product and may not be necessary to the functionality of the product but are only present as residuals of the manufacturing process.  In many cases, the manufacturer may have attempted to remove or facilitate consumption of the cobalt and mica during the manufacturing process, however, some amount of the cobalt and mica remains.  Should the cobalt or mica, which is added or included during the manufacturing process, be completely removed such that none of the cobalt or mica remains upon the completion of that process, the response to this question would be no.\n\nThis question shall be answered for cobalt and mica. Valid answers to this question are either \"yes\", \"no\", or \"unknown\". This question is mandatory. "}]
[{"$f":"OFFSET(L!$C$1,MATCH(\"Instructions\"&ADDRESS(ROW(),COLUMN(),4),L!$A:$A,0)-1,SL,,)","v":"3. This is a declaration that any portion of the cobalt or natural mica contained in a product or multiple products originates from a conflict-affected and high-risk area (CAHRA). The answer to this question should be \"yes\" if any smelter in the supply chain sources from CAHRAs, regardless of whether such a smelter has been independently audited or not.\n\nThe answers to this question for cobalt shall be \"yes,\" \"no,\" \"unknown,\" or \"DRC only.\" The answers to this question for mica shall be \"yes,\" \"no,\" \"unknown,\" or \"India and/or Madagascar only.\" Substantiate a \"Yes\" answer in the comments section.  An answer of \"unknown\" is an acceptable response. This question is mandatory for cobalt or natural mica if the response to Question 1 and 2 is \"Yes.\""}]
[{"$f":"OFFSET(L!$C$1,MATCH(\"Instructions\"&ADDRESS(ROW(),COLUMN(),4),L!$A:$A,0)-1,SL,,)","v":"4. This is a declaration that identifies whether cobalt contained in the product(s) originate exclusively from recycled or scrap sources. \n\nThe answer to this question shall be \"yes\", \"no\", or \"unknown\".\n\nA \"Yes\" answer means that 100% of the cobalt comes from recycled or scrap sources.  A \"No\" answer means that some of the raw material does not come from recycled or scrap sources. An \"Unknown\" answer means that the user does not know whether or not 100% of the raw material comes from recycled or scrap sources.  This field is mandatory.\n\nNote: As of the date of this publication, there is no significant post-consumer recycling of mica."}]
[{"$f":"OFFSET(L!$C$1,MATCH(\"Instructions\"&ADDRESS(ROW(),COLUMN(),4),L!$A:$A,0)-1,SL,,)","v":"5. This is a question to determine whether a company has received disclosures from all direct suppliers reasonably believed to be providing cobalt or natural mica contained in the products covered by the scope of this declaration. Permissible responses to this question are:\n\n­ 100%\n­ Greater than 90%\n­ Greater than 75%\n- Greater than 50%\n- 50% or less\n- None\n\nThis field is mandatory."}]
[{"$f":"OFFSET(L!$C$1,MATCH(\"Instructions\"&ADDRESS(ROW(),COLUMN(),4),L!$A:$A,0)-1,SL,,)","v":"6. This question verifies if the supplier has reason to believe they have identified all of the smelters providing cobalt or natural mica in the products covered by this declaration. The answer to this question shall be \"Yes\" \"No\" or \"unknown\", along with a comment in certain cases, e.g. list of smelters. This field is mandatory."}]
[{"$f":"OFFSET(L!$C$1,MATCH(\"Instructions\"&ADDRESS(ROW(),COLUMN(),4),L!$A:$A,0)-1,SL,,)","v":"7. This question verifies that all of the smelters or processors identified to be providing any of the raw materials contained in the products covered by the scope of this declaration have been reported in this declaration. The answer to this question shall be \"yes,\" \"no,\" or \"unknown\" along with a comment in certain cases e.g. list of smelters."}]
[]
[{"$f":"OFFSET(L!$C$1,MATCH(\"Instructions\"&ADDRESS(ROW(),COLUMN(),4),L!$A:$A,0)-1,SL,,)","v":"Instructions for completing Questions A. – G. (rows 69 - 83). Questions A through G are mandatory if the response to Question 1 and Question 2 is \"Yes\" for cobalt or natural mica.\nProvide answers in ENGLISH only."}]
[{"$f":"OFFSET(L!$C$1,MATCH(\"Instructions\"&ADDRESS(ROW(),COLUMN(),4),L!$A:$A,0)-1,SL,,)","v":"The OECD Due Diligence Guidance for Responsible Supply Chains of Minerals from Conflict-affected and High-risk Areas (OECD Guidance) defines “Due Diligence” as “an on-going, proactive and reactive process through which companies can ensure that they respect human rights and do not contribute to conflict”. More information is available at http://www.responsiblemineralsinitiative.org/training-and-resources/conflict-affected-and-high-risk-areas/.\n\nQuestions A. through G are designed to assess your company’s cobalt and/or natural mica sourcing due diligence activities. Responses to these questions shall represent the full scope of your company’s activities and shall not be limited to the ‘Declaration Scope’ selected in the company information section."}]
[{"$f":"OFFSET(L!$C$1,MATCH(\"Instructions\"&ADDRESS(ROW(),COLUMN(),4),L!$A:$A,0)-1,SL,,)","v":"A. This is a declaration to disclose whether a company has a responsible minerals sourcing policy. The answer to this question shall be \"yes\" or \"no.\""}]
[{"$f":"OFFSET(L!$C$1,MATCH(\"Instructions\"&ADDRESS(ROW(),COLUMN(),4),L!$A:$A,0)-1,SL,,)","v":"B. This is a declaration to disclose whether a company's responsible minerals sourcing policy is available on the company website. The answer to this question shall be \"yes\" or \"no.\" If \"yes,\" add the URL in the comments field."}]
[{"$f":"OFFSET(L!$C$1,MATCH(\"Instructions\"&ADDRESS(ROW(),COLUMN(),4),L!$A:$A,0)-1,SL,,)","v":"C. This is a declaration to determine whether a company requires their direct suppliers to source cobalt and/or natural mica from independently validated smelters and processors. The answer to this question for cobalt shall be \"yes\" or \"no.\" The answer to this question for mica shall be \"yes,\" \"yes, when more processors are validated,\" or \"no.\" Comments should be captured in a question comment field. This field is mandatory.\n"}]
[{"$f":"OFFSET(L!$C$1,MATCH(\"Instructions\"&ADDRESS(ROW(),COLUMN(),4),L!$A:$A,0)-1,SL,,)","v":"D. This is a question to disclose whether a company has implemented responsible minerals sourcing due diligence measures. This question is not intended to provide details of a company's due diligence measures. The aspects of acceptable due diligence measures shall be determined by the requestor and supplier.\n\nThe answer to this question shall be \"yes\" or \"no.\" If \"yes,\" the user shall describe the due diligence measures implemented in the question comment field (e.g. OECD Due Diligence Framework)."}]
[{"$f":"OFFSET(L!$C$1,MATCH(\"Instructions\"&ADDRESS(ROW(),COLUMN(),4),L!$A:$A,0)-1,SL,,)","v":"E. This is a question to disclose whether a company requests their supplier to fill out an extended mineral reporting template. Acceptable answers are listed below, in certain cases further explanation may be required, i.e., to provide the format used for collecting information. If the answer is \"Yes, using other format\" the user shall provide a comment in a question comment field.  Permissible responses to this question are:\n\n- Yes, in conformance with IPC-1755 (e.g. EMRT)\n- Yes, using other format (describe)\n- No\n\nThis field is mandatory."}]
[{"$f":"OFFSET(L!$C$1,MATCH(\"Instructions\"&ADDRESS(ROW(),COLUMN(),4),L!$A:$A,0)-1,SL,,)","v":"F. Please answer “Yes” or “No”.  In the comments section, you can provide additional information on your approach. Examples could be:\n\n “3rd party audit” - on-site audits of your suppliers conducted by independent third parties.  \n “Documentation review only” - a review of supplier submitted records and documentation conducted by independent third parties and, or your company personnel.   \n “Internal audit” - on-site audits of your suppliers conducted by your company personnel.\n\nThis field is mandatory."}]
[{"$f":"OFFSET(L!$C$1,MATCH(\"Instructions\"&ADDRESS(ROW(),COLUMN(),4),L!$A:$A,0)-1,SL,,)","v":"G. This is a question to disclose whether a company’s review process includes corrective action management. The answer to this question shall be \"yes\" or \"no.\" Comments shall be captured in a question comment field. This field is mandatory."}]
[]
[{"$f":"OFFSET(L!$C$1,MATCH(\"Instructions\"&ADDRESS(ROW(),COLUMN(),4),L!$A:$A,0)-1,SL,,)","v":"Instructions for completing the Smelter List Tab.\nProvide answers in ENGLISH only\n\nNote:  Columns with (*) are mandatory fields"}]
[{"$f":"OFFSET(L!$C$1,MATCH(\"Instructions\"&ADDRESS(ROW(),COLUMN(),4),L!$A:$A,0)-1,SL,,)","v":"This template allows for the identification of smelters, refiners, or processors using the Smelter Look-up.  Columns B, and C must be completed in order from left to right to utilize the Smelter Look-up feature.\nUse a separate line for each metal/smelter/country combination."}]
[{"$f":"OFFSET(L!$C$1,MATCH(\"Instructions\"&ADDRESS(ROW(),COLUMN(),4),L!$A:$A,0)-1,SL,,)","v":{"$error":"#N/A"}}]
[{"$f":"OFFSET(L!$C$1,MATCH(\"Instructions\"&ADDRESS(ROW(),COLUMN(),4),L!$A:$A,0)-1,SL,,)","v":"1. Smelter Identification Input Column - If you know the Smelter Identification Number, input the number in Column A (columns B, C, D, E, F, G, I, and J will auto-populate).  Column A does not autopopulate "}]
[{"$f":"OFFSET(L!$C$1,MATCH(\"Instructions\"&ADDRESS(ROW(),COLUMN(),4),L!$A:$A,0)-1,SL,,)","v":"2. Metal (*)   -   Use the pull down menu to select the metal for which you are entering smelter information. This field is mandatory."}]
[{"$f":"OFFSET(L!$C$1,MATCH(\"Instructions\"&ADDRESS(ROW(),COLUMN(),4),L!$A:$A,0)-1,SL,,)","v":"3. Smelter Look-up (*) - Select from dropdown.  This is the list of known smelters as of template release date.  If smelter is not listed select 'Smelter Not Listed'.  This will allow you to enter the name of the smelter in Column D.  If you do not know the name or location of the smelter, select 'Smelter Not Yet Identified.'  For this option,  columns D and E will autopopulate to say, 'unknown.' This field is mandatory."}]
[{"$f":"OFFSET(L!$C$1,MATCH(\"Instructions\"&ADDRESS(ROW(),COLUMN(),4),L!$A:$A,0)-1,SL,,)","v":"4. Smelter Name (1)- Fill in smelter name if you selected \"Smelter Not Listed\" in column C.  This field will auto-populate when a smelter name in selected in Column C. This field is mandatory."}]
[{"$f":"OFFSET(L!$C$1,MATCH(\"Instructions\"&ADDRESS(ROW(),COLUMN(),4),L!$A:$A,0)-1,SL,,)","v":"5. Smelter Country (*) – This field will auto-populate when a smelter name is selected in column C. If you selected \"Smelter Not Listed\" in column C, use the pull down menu to select the country location of the smelter. This field is mandatory."}]
[{"$f":"OFFSET(L!$C$1,MATCH(\"Instructions\"&ADDRESS(ROW(),COLUMN(),4),L!$A:$A,0)-1,SL,,)","v":"6. Smelter Identification - This is a unique identifier assigned to a smelter or refiner according to an established smelter and refinery identification system. It is expected that multiple names or aliases could be used to describe a single smelter or refiner and therefore multiple names or aliases could be associated to a single ‘Smelter ID’."}]
[{"$f":"OFFSET(L!$C$1,MATCH(\"Instructions\"&ADDRESS(ROW(),COLUMN(),4),L!$A:$A,0)-1,SL,,)","v":"7. Source of Smelter Identification Number - This is the source of the Smelter Identification Number entered in Column F.  If a smelter name was selected in Column C using the dropdown box, this field will auto-populate. "}]
[{"$f":"OFFSET(L!$C$1,MATCH(\"Instructions\"&ADDRESS(ROW(),COLUMN(),4),L!$A:$A,0)-1,SL,,)","v":"8. Smelter Street -  Provide the street name on which the smelter is located. This field is optional."}]
[{"$f":"OFFSET(L!$C$1,MATCH(\"Instructions\"&ADDRESS(ROW(),COLUMN(),4),L!$A:$A,0)-1,SL,,)","v":"9. Smelter City – Provide the city name of where the smelter is located. This field is optional."}]
[{"$f":"OFFSET(L!$C$1,MATCH(\"Instructions\"&ADDRESS(ROW(),COLUMN(),4),L!$A:$A,0)-1,SL,,)","v":"10. Smelter Location: State/Province, if applicable – Provide the state or province where the smelter is located. This field is optional."}]
[{"$f":"OFFSET(L!$C$1,MATCH(\"Instructions\"&ADDRESS(ROW(),COLUMN(),4),L!$A:$A,0)-1,SL,,)","v":"11. Smelter Contact Name – The Extended Mineral Reporting Template (EMRT) is circulated among companies in the requesting company's supply chain to exercise due diligence in accordance with the OECD Due Diligence Guidance for Responsible Supply Chains of Minerals from Conflict-Affected and High-Risk.\n\nIf the template is circulated in a country where laws protecting personal information exist, sharing personal contact information in the EMRT may violate related regulations. Therefore, it is recommended that the requesting company take precautions such as obtaining the contact person's permission to share the information with other companies in the supply chain when completing \"Smelter Contact Name\" and the \"Smelter Contact Email\" columns.\n\nIf you have permission to share this information, please fill in the name of the Smelter Facility Contact person who you worked with."}]
[{"$f":"OFFSET(L!$C$1,MATCH(\"Instructions\"&ADDRESS(ROW(),COLUMN(),4),L!$A:$A,0)-1,SL,,)","v":"12. Smelter Contact Email – Fill in the email address of the Smelter Facility contact person who was identified as the Smelter Contact Name.  Example: John.Smith@SmelterXXX.com.  Please review the instructions for Smelter Contact Name before completing this field."}]
[{"$f":"OFFSET(L!$C$1,MATCH(\"Instructions\"&ADDRESS(ROW(),COLUMN(),4),L!$A:$A,0)-1,SL,,)","v":"13. Name of Mine(s) - This field allows a company to define the actual mines being used by the smelter.  Please enter the actual mine names if known.  If 100% of the smelter’s feedstock originates from recycled or scrap sources, enter \"Recycled\" or \"Scrap\" in place of the name of the mine and answer \"Yes\" in Column P."}]
[{"$f":"OFFSET(L!$C$1,MATCH(\"Instructions\"&ADDRESS(ROW(),COLUMN(),4),L!$A:$A,0)-1,SL,,)","v":"14. Location (Country) of Mine(s) - This is a free form text field that allows a company to define the location of the mines being used by the smelter.   Please enter the country of the mine(s).  If the country of origin is not known, enter \"Unknown\".   If 100% of the smelter’s feedstock originates from recycled or scrap sources, enter \"Recycled\" or \"Scrap\" in place of the country of origin.  This field is optional."}]
[{"$f":"OFFSET(L!$C$1,MATCH(\"Instructions\"&ADDRESS(ROW(),COLUMN(),4),L!$A:$A,0)-1,SL,,)","v":"15. Indicates whether the smelter solely obtains inputs for its smelting process(es) from recycled or scrap sources. This question is optional.  Permissible responses to this question are:\n\n- Yes\n- No\n- Unknown"}]
[{"$f":"OFFSET(L!$C$1,MATCH(\"Instructions\"&ADDRESS(ROW(),COLUMN(),4),L!$A:$A,0)-1,SL,,)","v":"16. Comments – free form text field to enter any comments concerning the smelter.  Example: smelter is being acquired by Company YYY"}]
[{"$f":"OFFSET(L!$C$1,MATCH(\"Instructions\"&ADDRESS(ROW(),COLUMN(),4),L!$A:$A,0)-1,SL,,)","v":{"$error":"#N/A"}}]
[]
[{"$f":"OFFSET(L!$C$1,MATCH(\"Instructions\"&ADDRESS(ROW(),COLUMN(),4),L!$A:$A,0)-1,SL,,)","v":{"$error":"#N/A"}}]
[{"$f":"OFFSET(L!$C$1,MATCH(\"Instructions\"&ADDRESS(ROW(),COLUMN(),4),L!$A:$A,0)-1,SL,,)","v":"TERMS AND CONDITIONS"}]
[{"$f":"OFFSET(L!$C$1,MATCH(\"Instructions\"&ADDRESS(ROW(),COLUMN(),4),L!$A:$A,0)-1,SL,,)","v":"The Responsible Minerals Initiative Smelter List (the \"List\") and Program templates and tools, including, without limitation, the Extended Mineral Reporting Template  (collectively “Tools”), including, without limitation, all information provided therein, are provided for informational purposes only and are current as of the date set forth therein. Any inaccuracy or omission in the List or any Tool is not the responsibility of the Responsible Business Alliance, Incorporated, a Delaware non-stock corporation (\"RBA\"). Determination of whether and/or how to use all or any portion of the List or any Tool is to be made in the User’s sole and absolute discretion. Prior to using the List or any Tool, you should review it with your own legal counsel.  No part of the List or any Tool constitutes legal advice. Use of the List or any Tool is voluntary."}]
[{"$f":"OFFSET(L!$C$1,MATCH(\"Instructions\"&ADDRESS(ROW(),COLUMN(),4),L!$A:$A,0)-1,SL,,)","v":"RBA does not make any representations or warranties with respect to the List or any Tool. The List and Tools are provided on an \"AS IS\" and on an \"AS AVAILABLE\" basis. RBA hereby disclaim all warranties of any nature, express, implied or otherwise, or arising from trade or custom, including, without limitation, any implied warranties of merchantability, non-infringement, quality, title, fitness for a particular purpose, completeness or accuracy. "}]
[{"$f":"OFFSET(L!$C$1,MATCH(\"Instructions\"&ADDRESS(ROW(),COLUMN(),4),L!$A:$A,0)-1,SL,,)","v":"To the fullest extent permitted by applicable laws, RBA renounces any liability for any losses, expenses or damages of any nature, including, without limitation, special, incidental, punitive, direct, indirect or consequential damages or lost income or profits, resulting from or arising out of the User’s use of the List or any Tool, whether arising in tort, contract, statute, or otherwise, even if shown that they were advised of the possibility of such damages. "}]
[{"$f":"OFFSET(L!$C$1,MATCH(\"Instructions\"&ADDRESS(ROW(),COLUMN(),4),L!$A:$A,0)-1,SL,,)","v":"In consideration for access and use of the List and/or any Tool, THE USER hereby agrees to and does (a) release and forever discharge RBA as well as its officers, directors, agents, employees, volunteers, representatives, contractors, successors, and assigns, from any and all claims, actions, losses, suits, damages, judgments, levies, and executions, which the User has ever had, has, or ever can, shall, or may have or claim to have against RBA , as well as its officers, directors, agents, employees, volunteers, representatives, contractors, successors, and assigns, resulting from or arising out of the List or any Tool or use thereof, and agrees to (b) indemnify, defend and hold harmless RBA, as well as its officers, directors, agents, employees, volunteers, representatives, contractors, successors, and assigns, from any and all claims,  actions, losses, suits, damages, judgments, levies, and executions resulting from or arising out of the USER'S use of the List or any Tool."}]
[{"$f":"OFFSET(L!$C$1,MATCH(\"Instructions\"&ADDRESS(ROW(),COLUMN(),4),L!$A:$A,0)-1,SL,,)","v":"If any part of any provision of these Terms and Conditions shall be invalid or unenforceable under applicable law, said part shall be deemed ineffective to the extent of such invalidity or unenforceability only, without in any way affecting the remaining parts of said provision or the remaining provisions of these Terms and Conditions."}]
[{"$f":"OFFSET(L!$C$1,MATCH(\"General\"&\"Cpy\",L!$A:$A,0)-1,SL,,)","v":"© 2023 Responsible Minerals Initiative. All rights reserved."}]
["Return to declaration tab"]
["Revision 1.2 May 12, 2023"]

{"sheet":"Revision","index":1,"n_rows":19,"n_cols":6,"rows_kept":19,"cut":false,"hidden":false,"merged":[[1,0,18,0],[18,1,18,5],[8,1,8,5],[9,1,10,5]]}
[]
[null,"DOCUMENT TITLE"]
[null,"Extended Mineral Reporting Template"]
[null,"SHEET"]
[null,"1 of 8"]
[]
[]
[]
[null,"REVISION HISTORY"]
[null,"• A change in the first digit of the revision number (e.g., 1.0 to 2.0) signifies that a set of major improvements have occurred and would likely include different data reporting requirements. \n• Changes to the first decimal places (2.10 to 2.20) indicate that minor changes have been made to the template and are not expected to result in substantial changes to the data being reported.  \n• Changes to the second decimal places (2.10 to 2.11) indicates an even more minor change, for example an update to the smelter reference list\n• Changes to alpha characters (e.g., \"a\", or \"b\", or \"c\") following the revision number indicates that the version is an alpha or a beta version; these only appear on pre-released versions and would be dropped once the version is released to the public.  A version with a letter (post version 4.xx) should not be used in commerce.  RMI recommends that companies reject these versions as they are pre-release and could contain errors or other inconsistencies which could impact the accuracy of the data.\n"]
[]
[null,"REVISION","ORIGINATOR","RELEASE DATE","DESCRIPTION OF FUNCTIONAL CHANGE","UPDATES TO SMELTER LIST"]
[null,1,"RMI","2021-10-20","Version 1.0: The Extended Mineral Reporting Template is the updated and renamed Cobalt Reporting Template that incorporates mica within its scope. This includes updates to the Declaration tab in line with the IPC-1755A October 2021 amendment.","This version incorporates changes to the standard smelter list for cobalt and includes the standard smelter list for mica as of July 28, 2021. The latest version of the Standard Smelter List is available at: https://www.responsiblemineralsinitiative.org/smelters-refiners-lists/smelter-reference-lists-export/"]
[null,1.01,"RMI","2021-11-23","1. Minor revisions to correct reported issues including those related to the “Declaration”, \"Checker\" and \"Smelter List\" tabs, and Chinese and Korean translations.","This version incorporates changes to the standard smelter list for cobalt and includes the standard smelter list for mica as of July 28, 2021. The latest version of the Standard Smelter List is available at: https://www.responsiblemineralsinitiative.org/smelters-refiners-lists/smelter-reference-lists-export/"]
[null,1.02,"RMI","2021-12-23","1. Minor revisions to correct reported issues for Chinese translations.","This version incorporates changes to the standard smelter list for cobalt and includes the standard smelter list for mica as of July 28, 2021. The latest version of the Standard Smelter List is available at: https://www.responsiblemineralsinitiative.org/smelters-refiners-lists/smelter-reference-lists-export/"]
[null,1.1000000000000001,"RMI","2022-10-14","1. Corrections to all bugs and errors\n2. Enhancements which do not conflict with IPC-1755A such as the activation of filter/search function in the Smelter List tab.\na. Update to ISO short names for countries, states / provinces\n3. Updates to the Smelter Reference List and Standard Smelter List","This version incorporates changes to the standard smelter lists for cobalt and mica as of July 25, 2022. The latest version of the Standard Smelter List is available at: https://www.responsiblemineralsinitiative.org/smelters-refiners-lists/smelter-reference-lists-export/"]
[null,1.1100000000000001,"RMI","2022-11-04","1. Minor revisions to correct reported issues including those related to the \"Declaration\" tab, and Chinese translations.","This version incorporates changes to the standard smelter lists for cobalt and mica as of July 25, 2022. The latest version of the Standard Smelter List is available at: https://www.responsiblemineralsinitiative.org/smelters-refiners-lists/smelter-reference-lists-export/"]
[null,1.2,"RMI","2023-05-12","1. Corrections to all bugs and errors.\n2. Updates to the Smelter Reference List and Standard Smelter List.","This version incorporates changes to the standard smelter lists for cobalt and mica as of March 27, 2023. The latest version of the Standard Smelter List is available at: https://www.responsiblemineralsinitiative.org/smelters-refiners-lists/smelter-reference-lists-export/"]
[null,{"$f":"OFFSET(L!$C$1,MATCH(\"General\"&\"Cpy\",L!$A:$A,0)-1,SL,,)","v":"© 2023 Responsible Minerals Initiative. All rights reserved."}]

{"sheet":"Definitions","index":2,"n_rows":22,"n_cols":8,"rows_kept":22,"cut":false,"hidden":false,"merged":[[0,0,0,3],[21,1,21,2],[1,3,22,3]]}
[]
[null,{"$f":"OFFSET(L!$C$1,MATCH(\"Definitions\"&ADDRESS(ROW(),COLUMN(),4),L!$A:$A,0)-1,SL,,)","v":"ITEM"},{"$f":"OFFSET(L!$C$1,MATCH(\"Definitions\"&ADDRESS(ROW(),COLUMN(),4),L!$A:$A,0)-1,SL,,)","v":"DEFINITION"}]
[null,{"$f":"OFFSET(L!$C$1,MATCH(\"Definitions\"&ADDRESS(ROW(),COLUMN(),4),L!$A:$A,0)-1,SL,,)","v":"Authorizer"},{"$f":"OFFSET(L!$C$1,MATCH(\"Definitions\"&ADDRESS(ROW(),COLUMN(),4),L!$A:$A,0)-1,SL,,)","v":"This field identifies the person responsible for the content of the declaration. The authorizer may be a different individual from the contact person. It is not correct to use the words ‘‘same’’ or similar identification to provide the name of the authorizer. "}]
[null,{"$f":"OFFSET(L!$C$1,MATCH(\"Definitions\"&ADDRESS(ROW(),COLUMN(),4),L!$A:$A,0)-1,SL,,)","v":"Cobalt Refiner"},{"$f":"OFFSET(L!$C$1,MATCH(\"Definitions\"&ADDRESS(ROW(),COLUMN(),4),L!$A:$A,0)-1,SL,,)","v":"An entity that processes cobalt concentrates, intermediates or recycled feed and produces a cobalt product for direct use in a downstream manufacturing process."},null,"\n\n\n"]
[null,{"$f":"OFFSET(L!$C$1,MATCH(\"Definitions\"&ADDRESS(ROW(),COLUMN(),4),L!$A:$A,0)-1,SL,,)","v":"Conflict-Affected and High-Risk Areas (CAHRA)"},{"$f":"OFFSET(L!$C$1,MATCH(\"Definitions\"&ADDRESS(ROW(),COLUMN(),4),L!$A:$A,0)-1,SL,,)","v":"Conflict-Affected and High-Risk Areas (CAHRA) are defined by the OECD Due Diligence Guidance as \"areas identified by the presence of armed conflict, widespread violence or other risks of harm to people. Armed conflict may take a variety of forms, such as a conflict of international or non-international character, which may involve two or more states, or may consist of wars of liberation, or insurgencies, civil wars, etc. High-risk areas may include areas of political instability or repression, institutional weakness, insecurity, collapse of civil infrastructure and widespread violence. Such areas are often characterised by widespread human right abuses and violations of national or international law.\""}]
[null,{"$f":"OFFSET(L!$C$1,MATCH(\"Definitions\"&ADDRESS(ROW(),COLUMN(),4),L!$A:$A,0)-1,SL,,)","v":"Declaration of Scope or Class"},{"$f":"OFFSET(L!$C$1,MATCH(\"Definitions\"&ADDRESS(ROW(),COLUMN(),4),L!$A:$A,0)-1,SL,,)","v":"For the purposes of this template, “scope” describes the applicability of the information provided by the reporting company.  The scope may encompass the entirety of a company’s services and/or products, or at a company’s discretion, the template may be used to report on a specific product (or products), or, be ‘User defined’.  The ‘User defined’ scope selection or class may be used to describe any subset of a company’s operation or product portfolio"},null,"\n\n\n\n\n\n\n\n"]
[null,{"$f":"OFFSET(L!$C$1,MATCH(\"Definitions\"&ADDRESS(ROW(),COLUMN(),4),L!$A:$A,0)-1,SL,,)","v":"Due Diligence"},{"$f":"OFFSET(L!$C$1,MATCH(\"Definitions\"&ADDRESS(ROW(),COLUMN(),4),L!$A:$A,0)-1,SL,,)","v":"The OECD Due Diligence Guidance for Responsible Supply Chains of Minerals from Conflict-affected and High-risk Areas (OECD Guidance) defines “Due Diligence” as “an on-going, proactive and reactive process through which companies can ensure that they respect human rights and do not contribute to conflict”. More information is available at http://www.responsiblemineralsinitiative.org/training-and-resources/conflict-affected-and-high-risk-areas/."},null,"\n\n"]
[null,{"$f":"OFFSET(L!$C$1,MATCH(\"Definitions\"&ADDRESS(ROW(),COLUMN(),4),L!$A:$A,0)-1,SL,,)","v":"Independent Third-Party Audit Firm"},{"$f":"OFFSET(L!$C$1,MATCH(\"Definitions\"&ADDRESS(ROW(),COLUMN(),4),L!$A:$A,0)-1,SL,,)","v":"With respect to smelter audits, an “Independent Third-Party Audit Firm” is a private sector organization competent in evaluating the smelter or refiner’s due diligence system against a defined standard.  To maintain neutrality and impartiality, such organization and its audit team members must have no conflicts of interest with the auditee."},null,"\n\n\n\n"]
[null,{"$f":"OFFSET(L!$C$1,MATCH(\"Definitions\"&ADDRESS(ROW(),COLUMN(),4),L!$A:$A,0)-1,SL,,)","v":"Intentionally added"},{"$f":"OFFSET(L!$C$1,MATCH(\"Definitions\"&ADDRESS(ROW(),COLUMN(),4),L!$A:$A,0)-1,SL,,)","v":"Intentionally added is commonly known as the deliberate use of a substance, or in this case metal, in the formulation of a product where continued presence is desired to provide a specific characteristic, appearance or quality."},null,"\n\n",null,null,14]
[null,{"$f":"OFFSET(L!$C$1,MATCH(\"Definitions\"&ADDRESS(ROW(),COLUMN(),4),L!$A:$A,0)-1,SL,,)","v":"OECD"},{"$f":"OFFSET(L!$C$1,MATCH(\"Definitions\"&ADDRESS(ROW(),COLUMN(),4),L!$A:$A,0)-1,SL,,)","v":"Organisation for Economic Co-operation and Development.  The OECD has developed the OECD Due Diligence Guidance for Responsible Supply Chains.  The OECD Due Diligence Guidance provides detailed recommendations to help companies respect human rights and avoid contributing to conflict through their mineral purchasing decisions and practices and uses a reasonableness approach. This Guidance is for use by any company potentially sourcing minerals or metals from conflict-affected and high-risk areas. The OECD Guidance is global in scope, and applies to all mineral supply chains. (http://mneguidelines.oecd.org/mining.htm)"}]
[null,{"$f":"OFFSET(L!$C$1,MATCH(\"Definitions\"&ADDRESS(ROW(),COLUMN(),4),L!$A:$A,0)-1,SL,,)","v":"Mica (Natural)"},{"$f":"OFFSET(L!$C$1,MATCH(\"Definitions\"&ADDRESS(ROW(),COLUMN(),4),L!$A:$A,0)-1,SL,,)","v":"Natural mica is a mineral that is mined or naturally occurring, such as muscovite and phlogopite."},null,"\n\n"]
[null,{"$f":"OFFSET(L!$C$1,MATCH(\"Definitions\"&ADDRESS(ROW(),COLUMN(),4),L!$A:$A,0)-1,SL,,)","v":"Mica (Synthetic)"},{"$f":"OFFSET(L!$C$1,MATCH(\"Definitions\"&ADDRESS(ROW(),COLUMN(),4),L!$A:$A,0)-1,SL,,)","v":"Synthetic mica (fluorophlogopite) is a man-made material composed of such materials as magnesium, aluminum and silicon. "}]
[null,{"$f":"OFFSET(L!$C$1,MATCH(\"Definitions\"&ADDRESS(ROW(),COLUMN(),4),L!$A:$A,0)-1,SL,,)","v":"Processor"},{"$f":"OFFSET(L!$C$1,MATCH(\"Definitions\"&ADDRESS(ROW(),COLUMN(),4),L!$A:$A,0)-1,SL,,)","v":"A mica processor is an entity that takes raw mined minerals such as pegmatites (schist), feldspar, kaolin, muscovite or phlogopite and subjects them to various physical or mechanical methods to separate non-mica components from mica components, then produce grades of mica products for use in downstream manufacturing processes. Raw mineral processing can include sorting, separation, milling, grinding, cutting, stamping and binding."}]
[null,{"$f":"OFFSET(L!$C$1,MATCH(\"Definitions\"&ADDRESS(ROW(),COLUMN(),4),L!$A:$A,0)-1,SL,,)","v":"Product"},{"$f":"OFFSET(L!$C$1,MATCH(\"Definitions\"&ADDRESS(ROW(),COLUMN(),4),L!$A:$A,0)-1,SL,,)","v":"A company’s Product or Finished good is a material or item which has completed the final stage of manufacturing and/or processing and is available for distribution or sale to customers."}]
[null,{"$f":"OFFSET(L!$C$1,MATCH(\"Definitions\"&ADDRESS(ROW(),COLUMN(),4),L!$A:$A,0)-1,SL,,)","v":"Recycled or Scrap Sources"},{"$f":"OFFSET(L!$C$1,MATCH(\"Definitions\"&ADDRESS(ROW(),COLUMN(),4),L!$A:$A,0)-1,SL,,)","v":"Recycled or scrap sources are recycled cobalt that are reclaimed end-user or post-consumer products, or scrap processed cobalt created during product manufacturing. Recycled cobalt includes excess, obsolete, defective, and scrap cobalt materials that contain refined or processed metals that are appropriate to recycle in the production of such metals. Minerals partially processed, unprocessed or byproducts from other ores are not included in the definition of recycled cobalt.\n\nNote: As of the date of this publication, there is no significant post-consumer recycling of mica."}]
[null,{"$f":"OFFSET(L!$C$1,MATCH(\"Definitions\"&ADDRESS(ROW(),COLUMN(),4),L!$A:$A,0)-1,SL,,)","v":"Responsible Business Alliance (RBA)"},{"$f":"OFFSET(L!$C$1,MATCH(\"Definitions\"&ADDRESS(ROW(),COLUMN(),4),L!$A:$A,0)-1,SL,,)","v":"Founded in 2004 the Responsible Business Alliance is the world’s largest industry coalition dedicated to electronics supply chain responsibility. (http://www.responsiblebusiness.org)\n"},null,"\n\n"]
[null,{"$f":"OFFSET(L!$C$1,MATCH(\"Definitions\"&ADDRESS(ROW(),COLUMN(),4),L!$A:$A,0)-1,SL,,)","v":"Responsible Minerals Assurance Process (RMAP)"},{"$f":"OFFSET(L!$C$1,MATCH(\"Definitions\"&ADDRESS(ROW(),COLUMN(),4),L!$A:$A,0)-1,SL,,)","v":"The Responsible Minerals Assurance Process (RMAP) is a program developed by the RBA and GeSI to enhance company capability to verify the responsible sourcing of metals. Further details of the RMAP can be found here: http://www.responsiblemineralsinitiative.org/smelter-introduction/"},null,"\n\n\n\n"]
[null,{"$f":"OFFSET(L!$C$1,MATCH(\"Definitions\"&ADDRESS(ROW(),COLUMN(),4),L!$A:$A,0)-1,SL,,)","v":"Responsible Minerals Initiative (RMI)"},{"$f":"OFFSET(L!$C$1,MATCH(\"Definitions\"&ADDRESS(ROW(),COLUMN(),4),L!$A:$A,0)-1,SL,,)","v":"Founded in 2008 by members of the Responsible Business Alliance and the Global e-Sustainability Initiative, the Responsible Minerals Initiative has grown into one of the most utilized and respected resources for companies addressing conflict minerals issues in their supply chains. Over 150 companies from seven different industries participate in the RMI today, contributing to a range of tools and resources including the Responsible Minerals Assurance Process, the Conflict Minerals Reporting Template, Reasonable Country of Origin Inquiry data and a range of guidance documents on conflict minerals sourcing. The RMI also runs regular workshops on conflict minerals issues and contributes to policy development and debates with leading civil society organizations and governments. Additional information is available at http://www.responsiblemineralsinitiative.org/. "}]
[null,{"$f":"OFFSET(L!$C$1,MATCH(\"Definitions\"&ADDRESS(ROW(),COLUMN(),4),L!$A:$A,0)-1,SL,,)","v":"RMAP Conformant Smelter List"},{"$f":"OFFSET(L!$C$1,MATCH(\"Definitions\"&ADDRESS(ROW(),COLUMN(),4),L!$A:$A,0)-1,SL,,)","v":"The Responsible Minerals Assurance Process (RMAP) Conformant Smelter List is a published list of smelters and refiners that have undergone assessment through the RMAP, a program of the Responsible Minerals Initiative (RMI) or industry equivalent program (such as Responsible Jewellery Council or London Bullion Market Association) and have been validated to be in conformance with the protocols. If a smelter or refiner is not on the list, it has either not completed a RMAP assessment or is not in conformance with the RMAP protocol. \n\nA list of smelters and refiners which have been validated to be conformant to the RMAP can be found at www.responsiblemineralsinitiative.org"},null,"\n\n"]
[null,{"$f":"OFFSET(L!$C$1,MATCH(\"Definitions\"&ADDRESS(ROW(),COLUMN(),4),L!$A:$A,0)-1,SL,,)","v":"Smelter"},{"$f":"OFFSET(L!$C$1,MATCH(\"Definitions\"&ADDRESS(ROW(),COLUMN(),4),L!$A:$A,0)-1,SL,,)","v":"A smelter or refiner is a company that procures and processes mineral ore, slag and/or materials from recycled or scrap sources into refined metal or metal containing intermediate products.  The output can be pure (99.5% or greater) metals, powders, ingots, bars, grains, oxides or salts. The terms \"smelter\", \"refiner\", and \"processor\" are used interchangeably throughout various publications."},null,"\n\n\n"]
[null,{"$f":"OFFSET(L!$C$1,MATCH(\"Definitions\"&ADDRESS(ROW(),COLUMN(),4),L!$A:$A,0)-1,SL,,)","v":"Smelter Identification Number"},{"$f":"OFFSET(L!$C$1,MATCH(\"Definitions\"&ADDRESS(ROW(),COLUMN(),4),L!$A:$A,0)-1,SL,,)","v":"A unique identification number the RMI assigns to companies that have been reported by members of the supply chain as smelters or refiners, whether or not they have been verified to meet the characteristics of smelters or refiners as defined in the RMAP audit protocols or other applicable audit programs."}]
[null,{"$f":"OFFSET(L!$C$1,MATCH(\"General\"&\"Cpy\",L!$A:$A,0)-1,SL,,)","v":"© 2023 Responsible Minerals Initiative. All rights reserved."}]

{"sheet":"Declaration","index":3,"n_rows":120,"n_cols":25,"rows_kept":120,"cut":false,"hidden":false,"merged":[[74,3,74,4],[73,6,73,9],[74,6,74,9],[84,0,84,9],[78,6,78,9],[83,1,83,9],[72,3,72,4],[62,3,62,4],[63,3,63,4],[68,3,68,4],[66,1,66,9],[80,3,80,4],[76,3,76,4],[82,6,82,9],[76,6,76,9],[63,6,63,9],[64,3,64,4],[68,6,68,9],[78,3,78,4],[82,3,82,4],[79,6,79,9],[80,6,80,9],[81,6,81,9],[70,6,70,9],[70,3,70,4],[72,6,72,9],[73,3,73,4],[69,6,69,9],[57,3,57,4],[56,3,56,4],[56,6,56,9],[57,6,57,9],[55,3,55,4],[58,6,58,9],[55,6,55,9],[67,6,67,8],[67,3,67,4],[61,3,61,4],[60,7,60,9],[60,3,60,4],[61,6,61,9],[18,3,18,9],[22,3,22,4],[64,6,64,9],[62,6,62,9],[8,3,8,6],[28,3,28,4],[25,6,25,9],[27,6,27,9],[27,3,27,4],[24,3,24,4],[26,3,26,4],[21,3,21,4],[39,6,39,9],[51,3,51,4],[26,6,26,9],[20,3,20,9],[16,3,16,9],[36,3,36,4],[58,3,58,4],[38,3,38,4],[54,7,54,9],[30,3,30,4],[45,6,45,9],[40,6,40,9],[31,6,31,9],[32,3,32,4],[32,6,32,9],[33,3,33,4],[33,6,33,9],[34,3,34,4],[34,6,34,9],[54,3,54,4],[45,3,45,4],[37,6,37,9],[36,7,36,9],[42,3,42,4],[48,3,48,4],[0,0,0,10],[1,3,1,9],[7,3,7,9],[17,3,17,9],[3,1,3,7],[9,3,9,9],[13,3,13,9],[12,3,12,9],[3,8,3,9],[6,1,6,9],[9,1,10,1],[14,3,14,9],[10,3,10,9],[5,1,5,9],[11,3,11,9],[23,1,23,9],[52,6,52,9],[2,4,2,8],[43,6,43,9],[44,3,44,4],[44,6,44,9],[46,6,46,9],[52,3,52,4],[49,3,49,4],[49,6,49,9],[50,3,50,4],[46,3,46,4],[50,6,50,9],[51,6,51,9],[43,3,43,4],[39,3,39,4],[40,3,40,4],[15,3,15,9],[19,3,19,9],[37,3,37,4],[38,6,38,9],[28,6,28,9],[25,3,25,4],[31,3,31,4]]}
[]
[null,null,null,{"$f":"OFFSET(L!$C$1,MATCH(\"Declaration\"&ADDRESS(ROW(),COLUMN(),4),L!$A:$A,0)-1,SL,,)","v":"Extended Mineral Reporting Template (EMRT)"}]
[null,"Select Language Preference Here:\n请选择你的语言:\n表示言語をここから選択してください:\n사용할 언어를 선택하시오:\nSélectionner la langue préférée ici:",null,"English",{"$nulls":5},"Revision 1.2\nMay 12, 2023",{"$nulls":5},{"$f":"MATCH($D$3,LN,0)","v":1}]
[null,{"$f":"OFFSET(L!$C$1,MATCH(\"Declaration\"&ADDRESS(ROW(),COLUMN(),4),L!$A:$A,0)-1,SL,,)","v":"The purpose of this document is to collect sourcing information on cobalt or natural mica."},{"$nulls":6},{"$f":"OFFSET(L!$C$1,MATCH(\"Declaration\"&ADDRESS(ROW(),COLUMN(),4),L!$A:$A,0)-1,SL,,)","v":"Link to Terms & Conditions"}]
[{"$f":"LEFT(D9,1)","v":"A"}]
[null,{"$f":"OFFSET(L!$C$1,MATCH(\"Declaration\"&ADDRESS(ROW(),COLUMN(),4),L!$A:$A,0)-1,SL,,)","v":"Mandatory fields are noted with an asterisk (*).  Consult the instructions tab for guidance on how to answer each question."},{"$nulls":9},"\n"]
[null,{"$f":"OFFSET(L!$C$1,MATCH(\"Declaration\"&ADDRESS(ROW(),COLUMN(),4),L!$A:$A,0)-1,SL,,)","v":"Company Information"}]
[null,{"$f":"OFFSET(L!$C$1,MATCH(\"Declaration\"&ADDRESS(ROW(),COLUMN(),4),L!$A:$A,0)-1,SL,,)","v":"Company Name (*):"},null,"Samtec Inc"]
[null,{"$f":"OFFSET(L!$C$1,MATCH(\"Declaration\"&ADDRESS(ROW(),COLUMN(),4),L!$A:$A,0)-1,SL,,)","v":"Declaration Scope or Class (*):"},null,"A. Company",{"$nulls":11},"A. Company","B. Product (or List of Products)","C. User defined [Specify in 'Description of scope']"]
[null,{"$f":"OFFSET(L!$C$1,MATCH(\"Declaration\"&ADDRESS(ROW(),COLUMN(),4)&LEFT($D$9,1),L!$A:$A,0)-1,SL,,)","v":"Description of Scope:"},null,"Samtec products containing BeCu Alloy components or Xcede modules. Please review the \"Comments\" column in the 'Smelter List' tab to determine which smelters are applicable. "]
[null,null,null,{"$f":"IF(D9=Q9,OFFSET(L!$C$1,MATCH(\"Declaration\"&ADDRESS(ROW(),COLUMN(),4),L!$A:$A,0)-1,SL,,),\"\")","v":""}]
[null,{"$f":"OFFSET(L!$C$1,MATCH(\"Declaration\"&ADDRESS(ROW(),COLUMN(),4),L!$A:$A,0)-1,SL,,)","v":"Company Unique ID:"}]
[null,{"$f":"OFFSET(L!$C$1,MATCH(\"Declaration\"&ADDRESS(ROW(),COLUMN(),4),L!$A:$A,0)-1,SL,,)","v":"Company Unique ID Authority:"}]
[null,{"$f":"OFFSET(L!$C$1,MATCH(\"Declaration\"&ADDRESS(ROW(),COLUMN(),4),L!$A:$A,0)-1,SL,,)","v":"Address:"}]
[null,{"$f":"OFFSET(L!$C$1,MATCH(\"Declaration\"&ADDRESS(ROW(),COLUMN(),4),L!$A:$A,0)-1,SL,,)","v":"Contact Name (*):"},null,"Product Environmental Compliance Group"]
[null,{"$f":"OFFSET(L!$C$1,MATCH(\"Declaration\"&ADDRESS(ROW(),COLUMN(),4),L!$A:$A,0)-1,SL,,)","v":"Email – Contact (*):"},null,"PEC@samtec.com"]
[null,{"$f":"OFFSET(L!$C$1,MATCH(\"Declaration\"&ADDRESS(ROW(),COLUMN(),4),L!$A:$A,0)-1,SL,,)","v":"Phone – Contact (*):"},null,"1-812-944-6733"]
[null,{"$f":"OFFSET(L!$C$1,MATCH(\"Declaration\"&ADDRESS(ROW(),COLUMN(),4),L!$A:$A,0)-1,SL,,)","v":"Authorizer (*):"},null,"Mark Bobo"]
[null,{"$f":"OFFSET(L!$C$1,MATCH(\"Declaration\"&ADDRESS(ROW(),COLUMN(),4),L!$A:$A,0)-1,SL,,)","v":"Title - Authorizer:"},null,"Corporate Director, Environmental Compliance"]
[null,{"$f":"OFFSET(L!$C$1,MATCH(\"Declaration\"&ADDRESS(ROW(),COLUMN(),4),L!$A:$A,0)-1,SL,,)","v":"Email - Authorizer (*):"},null,"mark.bobo@samtec.com"]
[null,{"$f":"OFFSET(L!$C$1,MATCH(\"Declaration\"&ADDRESS(ROW(),COLUMN(),4),L!$A:$A,0)-1,SL,,)","v":"Phone - Authorizer:"}]
[null,{"$f":"OFFSET(L!$C$1,MATCH(\"Declaration\"&ADDRESS(ROW(),COLUMN(),4),L!$A:$A,0)-1,SL,,)","v":"Effective Date (*):"},null,"2023-09-13"]
[]
[null,{"$f":"OFFSET(L!$C$1,MATCH(\"Declaration\"&ADDRESS(ROW(),COLUMN(),4),L!$A:$A,0)-1,SL,,)","v":"Answer the following questions 1 - 7 based on the declaration scope indicated above"}]
[null,{"$f":"OFFSET(L!$C$1,MATCH(\"Declaration\"&ADDRESS(ROW(),COLUMN(),4),L!$A:$A,0)-1,SL,,)","v":"1) Is any of the cobalt or natural mica intentionally added or used in the product(s) or in the production process? (*)"},null,{"$f":"OFFSET(L!$C$1,MATCH(\"Declaration\"&ADDRESS(ROW(),COLUMN(),4),L!$A:$A,0)-1,SL,,)","v":"Answer"},null,null,{"$f":"OFFSET(L!$C$1,MATCH(\"Declaration\"&ADDRESS(ROW(),COLUMN(),4),L!$A:$A,0)-1,SL,,)","v":"Comments"},{"$nulls":4},"\n\n"]
[null,{"$f":"OFFSET(L!$C$1,MATCH(\"Declaration\"&ADDRESS(ROW(),COLUMN(),4),L!$A:$A,0)-1,SL,,)&P26","v":"Cobalt(*)"},null,"Yes",{"$nulls":11},{"$f":"IF(OR(D$26=\"No\",D$26=\"Unknown\",D$26=\"Not applicable for this declaration\"),\"\",\"(*)\")","v":"(*)"}]
[null,{"$f":"OFFSET(L!$C$1,MATCH(\"Declaration\"&ADDRESS(ROW(),COLUMN(),4),L!$A:$A,0)-1,SL,,)&P27","v":"Mica"},null,"No",{"$nulls":11},{"$f":"IF(OR(D$27=\"No\",D$27=\"Unknown\",D$27=\"Not applicable for this declaration\"),\"\",\"(*)\")","v":""}]
[null,{"$f":"OFFSET(L!$C$1,MATCH(\"Declaration\"&ADDRESS(ROW(),COLUMN(),4),L!$A:$A,0)-1,SL,,)&P28","v":""},null,"No",{"$nulls":11},{"$f":"IF(D$28=\"No\",\"\",\"(*)\")","v":""}]
[null,{"$f":"OFFSET(L!$C$1,MATCH(\"Declaration\"&ADDRESS(ROW(),COLUMN(),4),L!$A:$A,0)-1,SL,,)&P29","v":""},null,"No",{"$nulls":11},{"$f":"IF(D$29=\"No\",\"\",\"(*)\")","v":""}]
[]
[null,{"$f":"OFFSET(L!$C$1,MATCH(\"Declaration\"&ADDRESS(ROW(),COLUMN(),4),L!$A:$A,0)-1,SL,,)","v":"2) Does any cobalt or natural mica remain in the product(s)? (*)"},null,{"$f":"D25","v":"Answer"},null,null,{"$f":"G25","v":"Comments"},{"$nulls":4},"\n\n"]
[null,{"$f":"OFFSET(L!$C$1,MATCH(\"Declaration\"&ADDRESS(ROW(),COLUMN(),4),L!$A:$A,0)-1,SL,,)&P32","v":"Cobalt(*)"},null,"Yes",{"$nulls":11},{"$f":"IF(OR(D$26=\"No\",D$26=\"Unknown\",D$26=\"Not applicable for this declaration\",D$32=\"No\",D$32=\"Unknown\",D$32=\"Not applicable for this declaration\"),\"\",\"(*)\")","v":"(*)"}]
[null,{"$f":"OFFSET(L!$C$1,MATCH(\"Declaration\"&ADDRESS(ROW(),COLUMN(),4),L!$A:$A,0)-1,SL,,)&P33","v":"Mica"},{"$nulls":13},{"$f":"IF(OR(D$27=\"No\",D$27=\"Unknown\",D$27=\"Not applicable for this declaration\",D$33=\"No\",D$33=\"Unknown\",D$33=\"Not applicable for this declaration\"),\"\",\"(*)\")","v":""}]
[null,{"$f":"OFFSET(L!$C$1,MATCH(\"Declaration\"&ADDRESS(ROW(),COLUMN(),4),L!$A:$A,0)-1,SL,,)&P34","v":""},null,"No",{"$nulls":11},{"$f":"IF(D$28=\"No\",\"\",\"(*)\")","v":""}]
[null,{"$f":"OFFSET(L!$C$1,MATCH(\"Declaration\"&ADDRESS(ROW(),COLUMN(),4),L!$A:$A,0)-1,SL,,)&P35","v":""},null,"No",{"$nulls":11},{"$f":"IF(D$29=\"No\",\"\",\"(*)\")","v":""}]
[]
[null,{"$f":"OFFSET(L!$C$1,MATCH(\"Declaration\"&ADDRESS(ROW(),COLUMN(),4),L!$A:$A,0)-1,SL,,)&Q37","v":"3) Do any of the smelters or processors in your supply chain source the cobalt or natural mica from conflict-affected and high-risk areas? (OECD Due Diligence Guidance, see definitions tab) (*)"},null,{"$f":"D25","v":"Answer"},null,null,{"$f":"G25","v":"Comments"},{"$nulls":4},"\n",null,null,null,{"$f":"COUNTIF(D$26:D$27,\"No\")+COUNTIF(D$26:D$27,\"Unknown\")+COUNTIF(D$26:D$27,\"Not applicable for this declaration\")+COUNTIF(D$32:D$33,\"No\")+COUNTIF(D$32:D$33,\"Unknown\")+COUNTIF(D$32:D$33,\"Not applicable for this declaration\")","v":1},{"$f":"IF(P37=2,\"\",\"(*)\")","v":"(*)"},{"$nulls":7},37]
[null,{"$f":"OFFSET(L!$C$1,MATCH(\"Declaration\"&ADDRESS(ROW(),COLUMN(),4),L!$A:$A,0)-1,SL,,)&P38","v":"Cobalt(*)"},null,"Yes",null,null,"*Exclusive to Xcede products - AFCI suppliers sourcing originates from the DRC, more specifically in the Congo-Zambian copper belt. For the DRC this means the Southern province of Katanga. This area is very distant of the mining operations of the conflict minerals as mentioned under the Dodd-Franck Act, situated in the North-Eastern part of the DRC. Hence we feel Cobalt, which is mostly mined as a by-product of copper is not to be considered as a conflict mineral.",{"$nulls":8},{"$f":"IF(OR(D$26=\"No\",D$26=\"Unknown\",D$26=\"Not applicable for this declaration\",D$32=\"No\",D$32=\"Unknown\",D$32=\"Not applicable for this declaration\"),\"\",\"(*)\")","v":"(*)"},{"$nulls":8},38]
[null,{"$f":"OFFSET(L!$C$1,MATCH(\"Declaration\"&ADDRESS(ROW(),COLUMN(),4),L!$A:$A,0)-1,SL,,)&P39","v":"Mica"},{"$nulls":13},{"$f":"IF(OR(D$27=\"No\",D$27=\"Unknown\",D$27=\"Not applicable for this declaration\",D$33=\"No\",D$33=\"Unknown\",D$33=\"Not applicable for this declaration\"),\"\",\"(*)\")","v":""},{"$nulls":8},39]
[null,{"$f":"OFFSET(L!$C$1,MATCH(\"Declaration\"&ADDRESS(ROW(),COLUMN(),4),L!$A:$A,0)-1,SL,,)","v":0},{"$nulls":13},{"$f":"IF(D$40=\"No\",\"\",\"(*)\")","v":"(*)"},{"$nulls":8},40]
[null,{"$f":"OFFSET(L!$C$1,MATCH(\"Declaration\"&ADDRESS(ROW(),COLUMN(),4),L!$A:$A,0)-1,SL,,)","v":0},{"$nulls":13},{"$f":"IF(D$41=\"No\",\"\",\"(*)\")","v":"(*)"},{"$nulls":8},41]
[{"$nulls":24},42]
[null,{"$f":"OFFSET(L!$C$1,MATCH(\"Declaration\"&ADDRESS(ROW(),COLUMN(),4),L!$A:$A,0)-1,SL,,)&Q37","v":"4) Does 100 percent of the cobalt originate from recycled or scrap sources? (*)"},null,{"$f":"D25","v":"Answer"},null,null,{"$f":"G25","v":"Comments"},{"$nulls":4},"\n",{"$nulls":12},43]
[null,{"$f":"B38","v":"Cobalt(*)"},null,"No",{"$nulls":20},44]
[{"$nulls":24},45]
[null,{"$f":"B40","v":0},{"$nulls":22},46]
[null,{"$f":"B41","v":0},{"$nulls":22},47]
[{"$nulls":24},48]
[null,{"$f":"OFFSET(L!$C$1,MATCH(\"Declaration\"&ADDRESS(ROW(),COLUMN(),4),L!$A:$A,0)-1,SL,,)&Q37","v":"5) What percentage of relevant suppliers have provided a response to your supply chain survey?(*)"},null,{"$f":"D25","v":"Answer"},null,null,{"$f":"G25","v":"Comments"},{"$nulls":4},"\n",{"$nulls":12},49]
[null,{"$f":"B38","v":"Cobalt(*)"},null,1,{"$nulls":20},50]
[null,{"$f":"B39","v":"Mica"},{"$nulls":22},51]
[null,{"$f":"B40","v":0},{"$nulls":22},52]
[null,{"$f":"B41","v":0},{"$nulls":22},53]
[{"$nulls":24},54]
[null,{"$f":"OFFSET(L!$C$1,MATCH(\"Declaration\"&ADDRESS(ROW(),COLUMN(),4),L!$A:$A,0)-1,SL,,)&Q37","v":"6) Have you identified all of the smelters or processors supplying the cobalt or natural mica to your supply chain?(*)"},null,{"$f":"D25","v":"Answer"},null,null,{"$f":"G25","v":"Comments"},{"$nulls":4},"\n\n",{"$nulls":12},55]
[null,{"$f":"B38","v":"Cobalt(*)"},null,"Yes",{"$nulls":20},56]
[null,{"$f":"B39","v":"Mica"},{"$nulls":22},57]
[null,{"$f":"B40","v":0},{"$nulls":22},58]
[null,{"$f":"B41","v":0},{"$nulls":22},59]
[{"$nulls":24},60]
[null,{"$f":"OFFSET(L!$C$1,MATCH(\"Declaration\"&ADDRESS(ROW(),COLUMN(),4),L!$A:$A,0)-1,SL,,)&Q37","v":"7) Has all applicable smelter or processor information received by your company been reported in this declaration?(*)"},null,{"$f":"D25","v":"Answer"},null,null,{"$f":"G25","v":"Comments"},{"$f":"IF(Q69=\"(*)\",\"Click here to enter smelter names\",\"\")","v":""},null,null,null,"\n\n",{"$nulls":12},61]
[null,{"$f":"B38","v":"Cobalt(*)"},null,"Yes",{"$nulls":20},62]
[null,{"$f":"B39","v":"Mica"},{"$nulls":22},63]
[null,{"$f":"B40","v":0},{"$nulls":22},64]
[null,{"$f":"B41","v":0},{"$nulls":22},65]
[{"$nulls":24},66]
[null,{"$f":"OFFSET(L!$C$1,MATCH(\"Declaration\"&ADDRESS(ROW(),COLUMN(),4),L!$A:$A,0)-1,SL,,)","v":"Answer the Following Questions at a Company Level"},{"$nulls":22},67]
[null,{"$f":"OFFSET(L!$C$1,MATCH(\"Declaration\"&ADDRESS(ROW(),COLUMN(),4),L!$A:$A,0)-1,SL,,)","v":"Question"},null,{"$f":"D25","v":"Answer"},null,null,{"$f":"G25","v":"Comments"},{"$f":"HLOOKUP(SL,LT,$O68,0)","v":{"$error":"#NAME?"}},{"$f":"HLOOKUP(SL,LT,$O68,0)","v":{"$error":"#NAME?"}},{"$nulls":15},68]
[null,{"$f":"OFFSET(L!$C$1,MATCH(\"Declaration\"&ADDRESS(ROW(),COLUMN(),4),L!$A:$A,0)-1,SL,,)&P38","v":"A. Have you established a responsible minerals sourcing policy?(*)"},null,"Yes",null,null,"Applicable to Conflict minerals (see Samtec website)",{"$nulls":4},"\n",{"$nulls":12},69]
[{"$nulls":24},70]
[null,{"$f":"OFFSET(L!$C$1,MATCH(\"Declaration\"&ADDRESS(ROW(),COLUMN(),4),L!$A:$A,0)-1,SL,,)&P38","v":"B. Is your responsible minerals sourcing policy publicly available on your website? (Note – If yes, the user shall specify the URL in the comment field.) (*)"},null,"Yes",null,null,"http://suddendocs.samtec.com/environmental_compliance/certifications/drc_coc_certification.pdf",{"$nulls":4},"\n",{"$nulls":12},71]
[{"$nulls":24},72]
[null,{"$f":"OFFSET(L!$C$1,MATCH(\"Declaration\"&ADDRESS(ROW(),COLUMN(),4),L!$A:$A,0)-1,SL,,)&P38","v":"C. Do you require your direct suppliers to source cobalt from smelters or natural mica from processors whose due diligence practices have been validated by an independent third-party audit program?(*)"},{"$nulls":9},"\n\n",{"$nulls":12},75]
[null,{"$f":"B38","v":"Cobalt(*)"},null,"No"]
[null,{"$f":"B39","v":"Mica"}]
[{"$nulls":24},76]
[null,{"$f":"OFFSET(L!$C$1,MATCH(\"Declaration\"&ADDRESS(ROW(),COLUMN(),4),L!$A:$A,0)-1,SL,,)&P38","v":"D. Have you implemented due diligence measures for responsible sourcing?(*)"},null,"Yes",{"$nulls":7},"\n",{"$nulls":12},77]
[{"$nulls":24},78]
[null,{"$f":"OFFSET(L!$C$1,MATCH(\"Declaration\"&ADDRESS(ROW(),COLUMN(),4),L!$A:$A,0)-1,SL,,)&P38","v":"E. Does your company conduct cobalt and/or natural mica supply chain survey(s) of your relevant supplier(s)?(*)"},null,"Yes, in conformance with IPC1755 (e.g. EMRT)",{"$nulls":7},"\n",{"$nulls":11},"CHANGE DROP DOWN MENU: YES / NO",79]
[{"$nulls":24},80]
[null,{"$f":"OFFSET(L!$C$1,MATCH(\"Declaration\"&ADDRESS(ROW(),COLUMN(),4),L!$A:$A,0)-1,SL,,)&P38","v":"F. Do you review due diligence information received from your suppliers against your company’s expectations? (*)"},null,"Yes",{"$nulls":7},"\n\n",{"$nulls":11},"CHANGE DROP DOWN MENU: YES, RMRT / YES, USING OTHER FORMAT (DESCRIBE) / NO",81]
[{"$nulls":24},82]
[null,{"$f":"OFFSET(L!$C$1,MATCH(\"Declaration\"&ADDRESS(ROW(),COLUMN(),4),L!$A:$A,0)-1,SL,,)&P38","v":"G. Does your review process include corrective action management? (*)"},null,"Yes",{"$nulls":7},"\n",{"$nulls":12},83]
[null,{"$f":"IF(OR($D$8=\"\",$I$3=\"\"),\"\",\"Click here to check required fields completion\")","v":""},{"$nulls":22},86]
[{"$f":"OFFSET(L!$C$1,MATCH(\"General\"&\"Cpy\",L!$A:$A,0)-1,SL,,)","v":"© 2023 Responsible Minerals Initiative. All rights reserved."},{"$nulls":23},87]
[]
[]
[]
[]
[null,"Yes"]
[null,"No"]
[null,"Unknown"]
[null,"Not applicable for this declaration"]
[null,"Yes"]
[null,"No"]
[null,"Unknown"]
[null,"DRC only"]
[null,1]
[null,"Greater than 90%"]
[null,"Greater than 75%"]
[null,"Greater than 50%"]
[null,"50% or less"]
[null,"None"]
[null,"Yes, in conformance with IPC1755 (e.g. EMRT)"]
[null,"Yes"]
[null,"No"]
[null,"Yes, in conformance with IPC1755 (e.g. EMRT)"]
[null,"Yes, Using Other Format (Describe)"]
[null,"No"]
[null,"Yes"]
[null,"No"]
[null,"Unknown"]
[null,"India and/or Madagascar only"]
[null,"Yes, cobalt only"]
[null,"Yes, natural mica only"]
[null,"Yes, both cobalt and natural mica"]
[null,"No"]
[null,"Yes"]
[null,"Yes, when more processors are validated"]
[null,"No"]

{"sheet":"Smelter List","index":4,"n_rows":2500,"n_cols":34,"rows_kept":2500,"cut":false,"hidden":false,"merged":[[1,9,1,14],[2,1,2,4],[2,6,2,8]]}
[{"$nulls":20},"z"]
[null,{"$f":"OFFSET(L!$C$1,MATCH(\"Smelter List\"&ADDRESS(ROW(),COLUMN(),4),L!$A:$A,0)-1,SL,,)","v":"TO BEGIN:"},{"$nulls":7},"Link to RMAP Conformant Smelter List",{"$nulls":23},"Yes"]
[null,{"$f":"OFFSET(L!$C$1,MATCH(\"Smelter List\"&ADDRESS(ROW(),COLUMN(),4),L!$A:$A,0)-1,SL,,)","v":"\nOption A: If you know the Smelter Identification Number, input the number in Column A (columns B, C, E, F, G, I and J will auto-populate); D will grey out.\n\nOption B:  If you have a cobalt or natural mica and Smelter Look-up name combination, complete the following steps:\nStep 1. Select Metal in column B\nStep 2. Select from dropdown in column C\n\nOption C: If you have a cobalt or natural mica and Smelter Name combination, complete the following steps:\nStep 1. Select Metal in column B\nStep 2: Select \"Smelter Not Listed\" in the Smelter Look-up drop down and complete columns D & E\nStep 3. Enter all available smelter information in columns H through Q\n\n(*) Mandatory fields are noted with an asterisk.\n(1) Entry required when Smelter Look-up = \"Smelter Not Listed\"\n\nNOTE: A combination of Options A, B and C may be used to complete the Smelter List.  Do not alter autopopulated cells.  All errors in the Smelter Look-up should be reported to RBA by contacting RMI@ResponsibleBusiness.org."},{"$nulls":4},{"$f":"OFFSET(L!$C$1,MATCH(\"General\"&\"Cpy\",L!$A:$A,0)-1,SL,,)","v":"© 2023 Responsible Minerals Initiative. All rights reserved."},{"$nulls":9},"Version 1.2\nMay 12, 2023",{"$nulls":9},"Cobalt","Mica",{"$nulls":5},"No"]
[{"$f":"OFFSET(L!$C$1,MATCH(\"Smelter List\"&ADDRESS(ROW(),COLUMN(),4),L!$A:$A,0)-1,SL,,)","v":"Smelter Identification Number Input Column"},{"$f":"OFFSET(L!$C$1,MATCH(\"Smelter List\"&ADDRESS(ROW(),COLUMN(),4),L!$A:$A,0)-1,SL,,)","v":"Metal (*)"},{"$f":"OFFSET(L!$C$1,MATCH(\"Smelter List\"&ADDRESS(ROW(),COLUMN(),4),L!$A:$A,0)-1,SL,,)","v":"Smelter Look-up (*)"},{"$f":"OFFSET(L!$C$1,MATCH(\"Smelter List\"&ADDRESS(ROW(),COLUMN(),4),L!$A:$A,0)-1,SL,,)","v":"Smelter Name (1)"},{"$f":"OFFSET(L!$C$1,MATCH(\"Smelter List\"&ADDRESS(ROW(),COLUMN(),4),L!$A:$A,0)-1,SL,,)","v":"Smelter Country (*)"},{"$f":"OFFSET(L!$C$1,MATCH(\"Smelter List\"&ADDRESS(ROW(),COLUMN(),4),L!$A:$A,0)-1,SL,,)","v":"Smelter Identification"},{"$f":"OFFSET(L!$C$1,MATCH(\"Smelter List\"&ADDRESS(ROW(),COLUMN(),4),L!$A:$A,0)-1,SL,,)","v":"Source of Smelter Identification Number"},{"$f":"OFFSET(L!$C$1,MATCH(\"Smelter List\"&ADDRESS(ROW(),COLUMN(),4),L!$A:$A,0)-1,SL,,)","v":"Smelter Street "},{"$f":"OFFSET(L!$C$1,MATCH(\"Smelter List\"&ADDRESS(ROW(),COLUMN(),4),L!$A:$A,0)-1,SL,,)","v":"Smelter City"},{"$f":"OFFSET(L!$C$1,MATCH(\"Smelter List\"&ADDRESS(ROW(),COLUMN(),4),L!$A:$A,0)-1,SL,,)","v":"Smelter Facility Location: State / Province"},{"$f":"OFFSET(L!$C$1,MATCH(\"Smelter List\"&ADDRESS(ROW(),COLUMN(),4),L!$A:$A,0)-1,SL,,)","v":"Smelter Contact Name"},{"$f":"OFFSET(L!$C$1,MATCH(\"Smelter List\"&ADDRESS(ROW(),COLUMN(),4),L!$A:$A,0)-1,SL,,)","v":"Smelter Contact Email"},{"$f":"OFFSET(L!$C$1,MATCH(\"Smelter List\"&ADDRESS(ROW(),COLUMN(),4),L!$A:$A,0)-1,SL,,)","v":"Proposed next steps"},{"$f":"OFFSET(L!$C$1,MATCH(\"Smelter List\"&ADDRESS(ROW(),COLUMN(),4),L!$A:$A,0)-1,SL,,)","v":"Name of Mine(s) or if recycled or scrap sourced, enter \"recycled\" or \"scrap\""},{"$f":"OFFSET(L!$C$1,MATCH(\"Smelter List\"&ADDRESS(ROW(),COLUMN(),4),L!$A:$A,0)-1,SL,,)","v":"Location (Country) of Mine(s) or if recycled or scrap sourced, enter \"recycled\" or \"scrap\""},{"$f":"OFFSET(L!$C$1,MATCH(\"Smelter List\"&ADDRESS(ROW(),COLUMN(),4),L!$A:$A,0)-1,SL,,)","v":"Does 100% of the smelter’s feedstock originate from recycled or scrap sources?"},{"$f":"OFFSET(L!$C$1,MATCH(\"Smelter List\"&ADDRESS(ROW(),COLUMN(),4),L!$A:$A,0)-1,SL,,)","v":"Comments"},"Standard Smelter Name","Country Code","State / Province Code",null,null,"Smelter not yet identified","Smelter Not Listed",{"$nulls":9},"Unknown"]
["CID003239","Cobalt","Port Colborne Refinery",null,"CANADA","CID003239","RMI",null,"Port Colborne","Ontario",{"$nulls":6},"All products containing BeCu components.",{"$f":"IF(ISERROR($V5),\"\",OFFSET('Smelter Look-up'!$C$4,$V5-4,0)&\"\")","v":"Port Colborne Refinery"},{"$f":"IF(B5=\"\",\"\",IF(ISERROR(MATCH($E5,CL,0)),\"Unknown\",INDIRECT(\"'C'!$A$\"&MATCH($E5,CL,0)+1)))","v":"CA"},{"$f":"IF(B5=\"\",\"\",IF(ISERROR(MATCH($J5,SorP!$B$1:$B$5661,0)),\"\",INDIRECT(\"'SorP'!$A$\"&MATCH($J5,SorP!$B$1:$B$5661,0))))","v":"CA-ON"},null,{"$f":"IF(C5=\"\",NA(),MATCH($B5&$C5,'Smelter Look-up'!$J:$J,0))","v":100},null,{"$f":"IF(AND(C5=\"Smelter not listed\",OR(LEN(D5)=0,LEN(E5)=0)),1,0)","v":0},null,null,null,{"$f":"B5&C5","v":"CobaltPort Colborne Refinery"}]
["CID003291","Cobalt","Guangdong Jiana Energy Technology Co., Ltd.",null,"CHINA","CID003291","RMI",null,"Guangzhou","Guangdong Sheng",{"$nulls":6},"All products containing BeCu components.",{"$f":"IF(ISERROR($V6),\"\",OFFSET('Smelter Look-up'!$C$4,$V6-4,0)&\"\")","v":"Guangdong Jiana Energy Technology Co., Ltd."},"CN",{"$f":"IF(B6=\"\",\"\",IF(ISERROR(MATCH($J6,SorP!$B$1:$B$5661,0)),\"\",INDIRECT(\"'SorP'!$A$\"&MATCH($J6,SorP!$B$1:$B$5661,0))))","v":"CN-GD"},null,{"$f":"IF(C6=\"\",NA(),MATCH($B6&$C6,'Smelter Look-up'!$J:$J,0))","v":29},null,0,null,null,null,"CobaltGuangdong Jiana Energy Technology Co., Ltd."]
["CID003278","Cobalt","Niihama Nickel Refinery, Sumitomo Metal Mining",null,"JAPAN","CID003278","RMI","西原町３丁目5-1","新居浜市","Niihama, Ehime","桑山 靖史","Kinzoku_Responsible_Cobalt@smm-g.com",null,null,null,"No","All products containing BeCu components.",{"$f":"IF(ISERROR($V7),\"\",OFFSET('Smelter Look-up'!$C$4,$V7-4,0)&\"\")","v":"Niihama Nickel Refinery, Sumitomo Metal Mining"},"JP",{"$f":"IF(B7=\"\",\"\",IF(ISERROR(MATCH($J7,SorP!$B$1:$B$5661,0)),\"\",INDIRECT(\"'SorP'!$A$\"&MATCH($J7,SorP!$B$1:$B$5661,0))))","v":""},null,{"$f":"IF(C7=\"\",NA(),MATCH($B7&$C7,'Smelter Look-up'!$J:$J,0))","v":96},null,0,null,null,null,"CobaltNiihama Nickel Refinery, Sumitomo Metal Mining"]
["CID003226","Cobalt","Umicore Finland Oy",null,"FINLAND","CID003226","RMI",null,"Kokkola","Mellersta Österbotten",{"$nulls":6},"Exclusive to Xcede products",{"$f":"IF(ISERROR($V8),\"\",OFFSET('Smelter Look-up'!$C$4,$V8-4,0)&\"\")","v":"Umicore Finland Oy"},"FI",{"$f":"IF(B8=\"\",\"\",IF(ISERROR(MATCH($J8,SorP!$B$1:$B$5661,0)),\"\",INDIRECT(\"'SorP'!$A$\"&MATCH($J8,SorP!$B$1:$B$5661,0))))","v":"FI-07"},null,{"$f":"IF(C8=\"\",NA(),MATCH($B8&$C8,'Smelter Look-up'!$J:$J,0))","v":117},null,0,null,null,null,"CobaltUmicore Finland Oy"]
["CID003228","Cobalt","Umicore Olen",null,"BELGIUM","CID003228","RMI",0,"Olen","Antwerpen",{"$nulls":6},"Exclusive to Xcede products",{"$f":"IF(ISERROR($V9),\"\",OFFSET('Smelter Look-up'!$C$4,$V9-4,0)&\"\")","v":"Umicore Olen"},"BE",{"$f":"IF(B9=\"\",\"\",IF(ISERROR(MATCH($J9,SorP!$B$1:$B$5661,0)),\"\",INDIRECT(\"'SorP'!$A$\"&MATCH($J9,SorP!$B$1:$B$5661,0))))","v":"BE-VAN"},null,{"$f":"IF(C9=\"\",NA(),MATCH($B9&$C9,'Smelter Look-up'!$J:$J,0))","v":118},null,0,null,null,null,"CobaltUmicore Olen"]
[null,{"$f":"IF(LEN(A10)=0,\"\",INDEX('Smelter Look-up'!$A:$A,MATCH($A10,'Smelter Look-up'!$E:$E,0)))","v":""},{"$f":"IF(LEN(A10)=0,\"\",INDEX('Smelter Look-up'!$C:$C,MATCH($A10,'Smelter Look-up'!$E:$E,0)))","v":""},null,{"$f":"IF(ISERROR($V10),\"\",OFFSET('Smelter Look-up'!$D$4,$V10-4,0)&\"\")","v":""},{"$f":"IF(ISERROR($V10),\"\",OFFSET('Smelter Look-up'!$E$4,$V10-4,0))","v":""},{"$f":"IF(C10=$X$4,\"Enter smelter details\",IF(ISERROR($V10),\"\",OFFSET('Smelter Look-up'!$F$4,$V10-4,0)))","v":""},{"$f":"IF(ISERROR($V10),\"\",OFFSET('Smelter Look-up'!$G$4,$V10-4,0))","v":""},{"$f":"IF(ISERROR($V10),\"\",OFFSET('Smelter Look-up'!$H$4,$V10-4,0))","v":""},{"$f":"IF(ISERROR($V10),\"\",OFFSET('Smelter Look-up'!$I$4,$V10-4,0))","v":""},{"$nulls":7},{"$f":"IF(ISERROR($V10),\"\",OFFSET('Smelter Look-up'!$C$4,$V10-4,0)&\"\")","v":""},"",{"$f":"IF(B10=\"\",\"\",IF(ISERROR(MATCH($J10,SorP!$B$1:$B$5661,0)),\"\",INDIRECT(\"'SorP'!$A$\"&MATCH($J10,SorP!$B$1:$B$5661,0))))","v":""},null,{"$f":"IF(C10=\"\",NA(),MATCH($B10&$C10,'Smelter Look-up'!$J:$J,0))","v":{"$error":"#N/A"}},null,0,null,null,null,""]
[null,{"$f":"IF(LEN(A11)=0,\"\",INDEX('Smelter Look-up'!$A:$A,MATCH($A11,'Smelter Look-up'!$E:$E,0)))","v":""},{"$f":"IF(LEN(A11)=0,\"\",INDEX('Smelter Look-up'!$C:$C,MATCH($A11,'Smelter Look-up'!$E:$E,0)))","v":""},null,{"$f":"IF(ISERROR($V11),\"\",OFFSET('Smelter Look-up'!$D$4,$V11-4,0)&\"\")","v":""},{"$f":"IF(ISERROR($V11),\"\",OFFSET('Smelter Look-up'!$E$4,$V11-4,0))","v":""},{"$f":"IF(C11=$X$4,\"Enter smelter details\",IF(ISERROR($V11),\"\",OFFSET('Smelter Look-up'!$F$4,$V11-4,0)))","v":""},{"$f":"IF(ISERROR($V11),\"\",OFFSET('Smelter Look-up'!$G$4,$V11-4,0))","v":""},{"$f":"IF(ISERROR($V11),\"\",OFFSET('Smelter Look-up'!$H$4,$V11-4,0))","v":""},{"$f":"IF(ISERROR($V11),\"\",OFFSET('Smelter Look-up'!$I$4,$V11-4,0))","v":""},{"$nulls":7},{"$f":"IF(ISERROR($V11),\"\",OFFSET('Smelter Look-up'!$C$4,$V11-4,0)&\"\")","v":""},"",{"$f":"IF(B11=\"\",\"\",IF(ISERROR(MATCH($J11,SorP!$B$1:$B$5661,0)),\"\",INDIRECT(\"'SorP'!$A$\"&MATCH($J11,SorP!$B$1:$B$5661,0))))","v":""},null,{"$f":"IF(C11=\"\",NA(),MATCH($B11&$C11,'Smelter Look-up'!$J:$J,0))","v":{"$error":"#N/A"}},null,0,null,null,null,""]
[null,{"$f":"IF(LEN(A12)=0,\"\",INDEX('Smelter Look-up'!$A:$A,MATCH($A12,'Smelter Look-up'!$E:$E,0)))","v":""},{"$f":"IF(LEN(A12)=0,\"\",INDEX('Smelter Look-up'!$C:$C,MATCH($A12,'Smelter Look-up'!$E:$E,0)))","v":""},null,{"$f":"IF(ISERROR($V12),\"\",OFFSET('Smelter Look-up'!$D$4,$V12-4,0)&\"\")","v":""},{"$f":"IF(ISERROR($V12),\"\",OFFSET('Smelter Look-up'!$E$4,$V12-4,0))","v":""},{"$f":"IF(C12=$X$4,\"Enter smelter details\",IF(ISERROR($V12),\"\",OFFSET('Smelter Look-up'!$F$4,$V12-4,0)))","v":""},{"$f":"IF(ISERROR($V12),\"\",OFFSET('Smelter Look-up'!$G$4,$V12-4,0))","v":""},{"$f":"IF(ISERROR($V12),\"\",OFFSET('Smelter Look-up'!$H$4,$V12-4,0))","v":""},{"$f":"IF(ISERROR($V12),\"\",OFFSET('Smelter Look-up'!$I$4,$V12-4,0))","v":""},{"$nulls":7},{"$f":"IF(ISERROR($V12),\"\",OFFSET('Smelter Look-up'!$C$4,$V12-4,0)&\"\")","v":""},"",{"$f":"IF(B12=\"\",\"\",IF(ISERROR(MATCH($J12,SorP!$B$1:$B$5661,0)),\"\",INDIRECT(\"'SorP'!$A$\"&MATCH($J12,SorP!$B$1:$B$5661,0))))","v":""},null,{"$f":"IF(C12=\"\",NA(),MATCH($B12&$C12,'Smelter Look-up'!$J:$J,0))","v":{"$error":"#N/A"}},null,0,null,null,null,""]
[null,{"$f":"IF(LEN(A13)=0,\"\",INDEX('Smelter Look-up'!$A:$A,MATCH($A13,'Smelter Look-up'!$E:$E,0)))","v":""},{"$f":"IF(LEN(A13)=0,\"\",INDEX('Smelter Look-up'!$C:$C,MATCH($A13,'Smelter Look-up'!$E:$E,0)))","v":""},null,{"$f":"IF(ISERROR($V13),\"\",OFFSET('Smelter Look-up'!$D$4,$V13-4,0)&\"\")","v":""},{"$f":"IF(ISERROR($V13),\"\",OFFSET('Smelter Look-up'!$E$4,$V13-4,0))","v":""},{"$f":"IF(C13=$X$4,\"Enter smelter details\",IF(ISERROR($V13),\"\",OFFSET('Smelter Look-up'!$F$4,$V13-4,0)))","v":""},{"$f":"IF(ISERROR($V13),\"\",OFFSET('Smelter Look-up'!$G$4,$V13-4,0))","v":""},{"$f":"IF(ISERROR($V13),\"\",OFFSET('Smelter Look-up'!$H$4,$V13-4,0))","v":""},{"$f":"IF(ISERROR($V13),\"\",OFFSET('Smelter Look-up'!$I$4,$V13-4,0))","v":""},{"$nulls":7},{"$f":"IF(ISERROR($V13),\"\",OFFSET('Smelter Look-up'!$C$4,$V13-4,0)&\"\")","v":""},"",{"$f":"IF(B13=\"\",\"\",IF(ISERROR(MATCH($J13,SorP!$B$1:$B$5661,0)),\"\",INDIRECT(\"'SorP'!$A$\"&MATCH($J13,SorP!$B$1:$B$5661,0))))","v":""},null,{"$f":"IF(C13=\"\",NA(),MATCH($B13&$C13,'Smelter Look-up'!$J:$J,0))","v":{"$error":"#N/A"}},null,0,null,null,null,""]
[null,{"$f":"IF(LEN(A14)=0,\"\",INDEX('Smelter Look-up'!$A:$A,MATCH($A14,'Smelter Look-up'!$E:$E,0)))","v":""},{"$f":"IF(LEN(A14)=0,\"\",INDEX('Smelter Look-up'!$C:$C,MATCH($A14,'Smelter Look-up'!$E:$E,0)))","v":""},null,{"$f":"IF(ISERROR($V14),\"\",OFFSET('Smelter Look-up'!$D$4,$V14-4,0)&\"\")","v":""},{"$f":"IF(ISERROR($V14),\"\",OFFSET('Smelter Look-up'!$E$4,$V14-4,0))","v":""},{"$f":"IF(C14=$X$4,\"Enter smelter details\",IF(ISERROR($V14),\"\",OFFSET('Smelter Look-up'!$F$4,$V14-4,0)))","v":""},{"$f":"IF(ISERROR($V14),\"\",OFFSET('Smelter Look-up'!$G$4,$V14-4,0))","v":""},{"$f":"IF(ISERROR($V14),\"\",OFFSET('Smelter Look-up'!$H$4,$V14-4,0))","v":""},{"$f":"IF(ISERROR($V14),\"\",OFFSET('Smelter Look-up'!$I$4,$V14-4,0))","v":""},{"$nulls":7},{"$f":"IF(ISERROR($V14),\"\",OFFSET('Smelter Look-up'!$C$4,$V14-4,0)&\"\")","v":""},"",{"$f":"IF(B14=\"\",\"\",IF(ISERROR(MATCH($J14,SorP!$B$1:$B$5661,0)),\"\",INDIRECT(\"'SorP'!$A$\"&MATCH($J14,SorP!$B$1:$B$5661,0))))","v":""},null,{"$f":"IF(C14=\"\",NA(),MATCH($B14&$C14,'Smelter Look-up'!$J:$J,0))","v":{"$error":"#N/A"}},null,0,null,null,null,""]
[null,{"$f":"IF(LEN(A15)=0,\"\",INDEX('Smelter Look-up'!$A:$A,MATCH($A15,'Smelter Look-up'!$E:$E,0)))","v":""},{"$f":"IF(LEN(A15)=0,\"\",INDEX('Smelter Look-up'!$C:$C,MATCH($A15,'Smelter Look-up'!$E:$E,0)))","v":""},null,{"$f":"IF(ISERROR($V15),\"\",OFFSET('Smelter Look-up'!$D$4,$V15-4,0)&\"\")","v":""},{"$f":"IF(ISERROR($V15),\"\",OFFSET('Smelter Look-up'!$E$4,$V15-4,0))","v":""},{"$f":"IF(C15=$X$4,\"Enter smelter details\",IF(ISERROR($V15),\"\",OFFSET('Smelter Look-up'!$F$4,$V15-4,0)))","v":""},{"$f":"IF(ISERROR($V15),\"\",OFFSET('Smelter Look-up'!$G$4,$V15-4,0))","v":""},{"$f":"IF(ISERROR($V15),\"\",OFFSET('Smelter Look-up'!$H$4,$V15-4,0))","v":""},{"$f":"IF(ISERROR($V15),\"\",OFFSET('Smelter Look-up'!$I$4,$V15-4,0))","v":""},{"$nulls":7},{"$f":"IF(ISERROR($V15),\"\",OFFSET('Smelter Look-up'!$C$4,$V15-4,0)&\"\")","v":""},"",{"$f":"IF(B15=\"\",\"\",IF(ISERROR(MATCH($J15,SorP!$B$1:$B$5661,0)),\"\",INDIRECT(\"'SorP'!$A$\"&MATCH($J15,SorP!$B$1:$B$5661,0))))","v":""},null,{"$f":"IF(C15=\"\",NA(),MATCH($B15&$C15,'Smelter Look-up'!$J:$J,0))","v":{"$error":"#N/A"}},null,0,null,null,null,""]
[null,{"$f":"IF(LEN(A16)=0,\"\",INDEX('Smelter Look-up'!$A:$A,MATCH($A16,'Smelter Look-up'!$E:$E,0)))","v":""},{"$f":"IF(LEN(A16)=0,\"\",INDEX('Smelter Look-up'!$C:$C,MATCH($A16,'Smelter Look-up'!$E:$E,0)))","v":""},null,{"$f":"IF(ISERROR($V16),\"\",OFFSET('Smelter Look-up'!$D$4,$V16-4,0)&\"\")","v":""},{"$f":"IF(ISERROR($V16),\"\",OFFSET('Smelter Look-up'!$E$4,$V16-4,0))","v":""},{"$f":"IF(C16=$X$4,\"Enter smelter details\",IF(ISERROR($V16),\"\",OFFSET('Smelter Look-up'!$F$4,$V16-4,0)))","v":""},{"$f":"IF(ISERROR($V16),\"\",OFFSET('Smelter Look-up'!$G$4,$V16-4,0))","v":""},{"$f":"IF(ISERROR($V16),\"\",OFFSET('Smelter Look-up'!$H$4,$V16-4,0))","v":""},{"$f":"IF(ISERROR($V16),\"\",OFFSET('Smelter Look-up'!$I$4,$V16-4,0))","v":""},{"$nulls":7},{"$f":"IF(ISERROR($V16),\"\",OFFSET('Smelter Look-up'!$C$4,$V16-4,0)&\"\")","v":""},"",{"$f":"IF(B16=\"\",\"\",IF(ISERROR(MATCH($J16,SorP!$B$1:$B$5661,0)),\"\",INDIRECT(\"'SorP'!$A$\"&MATCH($J16,SorP!$B$1:$B$5661,0))))","v":""},null,{"$f":"IF(C16=\"\",NA(),MATCH($B16&$C16,'Smelter Look-up'!$J:$J,0))","v":{"$error":"#N/A"}},null,0,null,null,null,""]
[null,{"$f":"IF(LEN(A17)=0,\"\",INDEX('Smelter Look-up'!$A:$A,MATCH($A17,'Smelter Look-up'!$E:$E,0)))","v":""},{"$f":"IF(LEN(A17)=0,\"\",INDEX('Smelter Look-up'!$C:$C,MATCH($A17,'Smelter Look-up'!$E:$E,0)))","v":""},null,{"$f":"IF(ISERROR($V17),\"\",OFFSET('Smelter Look-up'!$D$4,$V17-4,0)&\"\")","v":""},{"$f":"IF(ISERROR($V17),\"\",OFFSET('Smelter Look-up'!$E$4,$V17-4,0))","v":""},{"$f":"IF(C17=$X$4,\"Enter smelter details\",IF(ISERROR($V17),\"\",OFFSET('Smelter Look-up'!$F$4,$V17-4,0)))","v":""},{"$f":"IF(ISERROR($V17),\"\",OFFSET('Smelter Look-up'!$G$4,$V17-4,0))","v":""},{"$f":"IF(ISERROR($V17),\"\",OFFSET('Smelter Look-up'!$H$4,$V17-4,0))","v":""},{"$f":"IF(ISERROR($V17),\"\",OFFSET('Smelter Look-up'!$I$4,$V17-4,0))","v":""},{"$nulls":7},{"$f":"IF(ISERROR($V17),\"\",OFFSET('Smelter Look-up'!$C$4,$V17-4,0)&\"\")","v":""},"",{"$f":"IF(B17=\"\",\"\",IF(ISERROR(MATCH($J17,SorP!$B$1:$B$5661,0)),\"\",INDIRECT(\"'SorP'!$A$\"&MATCH($J17,SorP!$B$1:$B$5661,0))))","v":""},null,{"$f":"IF(C17=\"\",NA(),MATCH($B17&$C17,'Smelter Look-up'!$J:$J,0))","v":{"$error":"#N/A"}},null,0,null,null,null,""]
[null,{"$f":"IF(LEN(A18)=0,\"\",INDEX('Smelter Look-up'!$A:$A,MATCH($A18,'Smelter Look-up'!$E:$E,0)))","v":""},{"$f":"IF(LEN(A18)=0,\"\",INDEX('Smelter Look-up'!$C:$C,MATCH($A18,'Smelter Look-up'!$E:$E,0)))","v":""},null,{"$f":"IF(ISERROR($V18),\"\",OFFSET('Smelter Look-up'!$D$4,$V18-4,0)&\"\")","v":""},{"$f":"IF(ISERROR($V18),\"\",OFFSET('Smelter Look-up'!$E$4,$V18-4,0))","v":""},{"$f":"IF(C18=$X$4,\"Enter smelter details\",IF(ISERROR($V18),\"\",OFFSET('Smelter Look-up'!$F$4,$V18-4,0)))","v":""},{"$f":"IF(ISERROR($V18),\"\",OFFSET('Smelter Look-up'!$G$4,$V18-4,0))","v":""},{"$f":"IF(ISERROR($V18),\"\",OFFSET('Smelter Look-up'!$H$4,$V18-4,0))","v":""},{"$f":"IF(ISERROR($V18),\"\",OFFSET('Smelter Look-up'!$I$4,$V18-4,0))","v":""},{"$nulls":7},{"$f":"IF(ISERROR($V18),\"\",OFFSET('Smelter Look-up'!$C$4,$V18-4,0)&\"\")","v":""},"",{"$f":"IF(B18=\"\",\"\",IF(ISERROR(MATCH($J18,SorP!$B$1:$B$5661,0)),\"\",INDIRECT(\"'SorP'!$A$\"&MATCH($J18,SorP!$B$1:$B$5661,0))))","v":""},null,{"$f":"IF(C18=\"\",NA(),MATCH($B18&$C18,'Smelter Look-up'!$J:$J,0))","v":{"$error":"#N/A"}},null,0,null,null,null,""]
[null,{"$f":"IF(LEN(A19)=0,\"\",INDEX('Smelter Look-up'!$A:$A,MATCH($A19,'Smelter Look-up'!$E:$E,0)))","v":""},{"$f":"IF(LEN(A19)=0,\"\",INDEX('Smelter Look-up'!$C:$C,MATCH($A19,'Smelter Look-up'!$E:$E,0)))","v":""},null,{"$f":"IF(ISERROR($V19),\"\",OFFSET('Smelter Look-up'!$D$4,$V19-4,0)&\"\")","v":""},{"$f":"IF(ISERROR($V19),\"\",OFFSET('Smelter Look-up'!$E$4,$V19-4,0))","v":""},{"$f":"IF(C19=$X$4,\"Enter smelter details\",IF(ISERROR($V19),\"\",OFFSET('Smelter Look-up'!$F$4,$V19-4,0)))","v":""},{"$f":"IF(ISERROR($V19),\"\",OFFSET('Smelter Look-up'!$G$4,$V19-4,0))","v":""},{"$f":"IF(ISERROR($V19),\"\",OFFSET('Smelter Look-up'!$H$4,$V19-4,0))","v":""},{"$f":"IF(ISERROR($V19),\"\",OFFSET('Smelter Look-up'!$I$4,$V19-4,0))","v":""},{"$nulls":7},{"$f":"IF(ISERROR($V19),\"\",OFFSET('Smelter Look-up'!$C$4,$V19-4,0)&\"\")","v":""},"",{"$f":"IF(B19=\"\",\"\",IF(ISERROR(MATCH($J19,SorP!$B$1:$B$5661,0)),\"\",INDIRECT(\"'SorP'!$A$\"&MATCH($J19,SorP!$B$1:$B$5661,0))))","v":""},null,{"$f":"IF(C19=\"\",NA(),MATCH($B19&$C19,'Smelter Look-up'!$J:$J,0))","v":{"$error":"#N/A"}},null,0,null,null,null,""]
[null,{"$f":"IF(LEN(A20)=0,\"\",INDEX('Smelter Look-up'!$A:$A,MATCH($A20,'Smelter Look-up'!$E:$E,0)))","v":""},{"$f":"IF(LEN(A20)=0,\"\",INDEX('Smelter Look-up'!$C:$C,MATCH($A20,'Smelter Look-up'!$E:$E,0)))","v":""},null,{"$f":"IF(ISERROR($V20),\"\",OFFSET('Smelter Look-up'!$D$4,$V20-4,0)&\"\")","v":""},{"$f":"IF(ISERROR($V20),\"\",OFFSET('Smelter Look-up'!$E$4,$V20-4,0))","v":""},{"$f":"IF(C20=$X$4,\"Enter smelter details\",IF(ISERROR($V20),\"\",OFFSET('Smelter Look-up'!$F$4,$V20-4,0)))","v":""},{"$f":"IF(ISERROR($V20),\"\",OFFSET('Smelter Look-up'!$G$4,$V20-4,0))","v":""},{"$f":"IF(ISERROR($V20),\"\",OFFSET('Smelter Look-up'!$H$4,$V20-4,0))","v":""},{"$f":"IF(ISERROR($V20),\"\",OFFSET('Smelter Look-up'!$I$4,$V20-4,0))","v":""},{"$nulls":7},{"$f":"IF(ISERROR($V20),\"\",OFFSET('Smelter Look-up'!$C$4,$V20-4,0)&\"\")","v":""},"",{"$f":"IF(B20=\"\",\"\",IF(ISERROR(MATCH($J20,SorP!$B$1:$B$5661,0)),\"\",INDIRECT(\"'SorP'!$A$\"&MATCH($J20,SorP!$B$1:$B$5661,0))))","v":""},null,{"$f":"IF(C20=\"\",NA(),MATCH($B20&$C20,'Smelter Look-up'!$J:$J,0))","v":{"$error":"#N/A"}},null,0,null,null,null,""]
[null,{"$f":"IF(LEN(A21)=0,\"\",INDEX('Smelter Look-up'!$A:$A,MATCH($A21,'Smelter Look-up'!$E:$E,0)))","v":""},{"$f":"IF(LEN(A21)=0,\"\",INDEX('Smelter Look-up'!$C:$C,MATCH($A21,'Smelter Look-up'!$E:$E,0)))","v":""},null,{"$f":"IF(ISERROR($V21),\"\",OFFSET('Smelter Look-up'!$D$4,$V21-4,0)&\"\")","v":""},{"$f":"IF(ISERROR($V21),\"\",OFFSET('Smelter Look-up'!$E$4,$V21-4,0))","v":""},{"$f":"IF(C21=$X$4,\"Enter smelter details\",IF(ISERROR($V21),\"\",OFFSET('Smelter Look-up'!$F$4,$V21-4,0)))","v":""},{"$f":"IF(ISERROR($V21),\"\",OFFSET('Smelter Look-up'!$G$4,$V21-4,0))","v":""},{"$f":"IF(ISERROR($V21),\"\",OFFSET('Smelter Look-up'!$H$4,$V21-4,0))","v":""},{"$f":"IF(ISERROR($V21),\"\",OFFSET('Smelter Look-up'!$I$4,$V21-4,0))","v":""},{"$nulls":7},{"$f":"IF(ISERROR($V21),\"\",OFFSET('Smelter Look-up'!$C$4,$V21-4,0)&\"\")","v":""},"",{"$f":"IF(B21=\"\",\"\",IF(ISERROR(MATCH($J21,SorP!$B$1:$B$5661,0)),\"\",INDIRECT(\"'SorP'!$A$\"&MATCH($J21,SorP!$B$1:$B$5661,0))))","v":""},null,{"$f":"IF(C21=\"\",NA(),MATCH($B21&$C21,'Smelter Look-up'!$J:$J,0))","v":{"$error":"#N/A"}},null,0,null,null,null,""]
[null,{"$f":"IF(LEN(A22)=0,\"\",INDEX('Smelter Look-up'!$A:$A,MATCH($A22,'Smelter Look-up'!$E:$E,0)))","v":""},{"$f":"IF(LEN(A22)=0,\"\",INDEX('Smelter Look-up'!$C:$C,MATCH($A22,'Smelter Look-up'!$E:$E,0)))","v":""},null,{"$f":"IF(ISERROR($V22),\"\",OFFSET('Smelter Look-up'!$D$4,$V22-4,0)&\"\")","v":""},{"$f":"IF(ISERROR($V22),\"\",OFFSET('Smelter Look-up'!$E$4,$V22-4,0))","v":""},{"$f":"IF(C22=$X$4,\"Enter smelter details\",IF(ISERROR($V22),\"\",OFFSET('Smelter Look-up'!$F$4,$V22-4,0)))","v":""},{"$f":"IF(ISERROR($V22),\"\",OFFSET('Smelter Look-up'!$G$4,$V22-4,0))","v":""},{"$f":"IF(ISERROR($V22),\"\",OFFSET('Smelter Look-up'!$H$4,$V22-4,0))","v":""},{"$f":"IF(ISERROR($V22),\"\",OFFSET('Smelter Look-up'!$I$4,$V22-4,0))","v":""},{"$nulls":7},{"$f":"IF(ISERROR($V22),\"\",OFFSET('Smelter Look-up'!$C$4,$V22-4,0)&\"\")","v":""},"",{"$f":"IF(B22=\"\",\"\",IF(ISERROR(MATCH($J22,SorP!$B$1:$B$5661,0)),\"\",INDIRECT(\"'SorP'!$A$\"&MATCH($J22,SorP!$B$1:$B$5661,0))))","v":""},null,{"$f":"IF(C22=\"\",NA(),MATCH($B22&$C22,'Smelter Look-up'!$J:$J,0))","v":{"$error":"#N/A"}},null,0,null,null,null,""]
[null,{"$f":"IF(LEN(A23)=0,\"\",INDEX('Smelter Look-up'!$A:$A,MATCH($A23,'Smelter Look-up'!$E:$E,0)))","v":""},{"$f":"IF(LEN(A23)=0,\"\",INDEX('Smelter Look-up'!$C:$C,MATCH($A23,'Smelter Look-up'!$E:$E,0)))","v":""},null,{"$f":"IF(ISERROR($V23),\"\",OFFSET('Smelter Look-up'!$D$4,$V23-4,0)&\"\")","v":""},{"$f":"IF(ISERROR($V23),\"\",OFFSET('Smelter Look-up'!$E$4,$V23-4,0))","v":""},{"$f":"IF(C23=$X$4,\"Enter smelter details\",IF(ISERROR($V23),\"\",OFFSET('Smelter Look-up'!$F$4,$V23-4,0)))","v":""},{"$f":"IF(ISERROR($V23),\"\",OFFSET('Smelter Look-up'!$G$4,$V23-4,0))","v":""},{"$f":"IF(ISERROR($V23),\"\",OFFSET('Smelter Look-up'!$H$4,$V23-4,0))","v":""},{"$f":"IF(ISERROR($V23),\"\",OFFSET('Smelter Look-up'!$I$4,$V23-4,0))","v":""},{"$nulls":7},{"$f":"IF(ISERROR($V23),\"\",OFFSET('Smelter Look-up'!$C$4,$V23-4,0)&\"\")","v":""},"",{"$f":"IF(B23=\"\",\"\",IF(ISERROR(MATCH($J23,SorP!$B$1:$B$5661,0)),\"\",INDIRECT(\"'SorP'!$A$\"&MATCH($J23,SorP!$B$1:$B$5661,0))))","v":""},null,{"$f":"IF(C23=\"\",NA(),MATCH($B23&$C23,'Smelter Look-up'!$J:$J,0))","v":{"$error":"#N/A"}},null,0,null,null,null,""]
[null,{"$f":"IF(LEN(A24)=0,\"\",INDEX('Smelter Look-up'!$A:$A,MATCH($A24,'Smelter Look-up'!$E:$E,0)))","v":""},{"$f":"IF(LEN(A24)=0,\"\",INDEX('Smelter Look-up'!$C:$C,MATCH($A24,'Smelter Look-up'!$E:$E,0)))","v":""},null,{"$f":"IF(ISERROR($V24),\"\",OFFSET('Smelter Look-up'!$D$4,$V24-4,0)&\"\")","v":""},{"$f":"IF(ISERROR($V24),\"\",OFFSET('Smelter Look-up'!$E$4,$V24-4,0))","v":""},{"$f":"IF(C24=$X$4,\"Enter smelter details\",IF(ISERROR($V24),\"\",OFFSET('Smelter Look-up'!$F$4,$V24-4,0)))","v":""},{"$f":"IF(ISERROR($V24),\"\",OFFSET('Smelter Look-up'!$G$4,$V24-4,0))","v":""},{"$f":"IF(ISERROR($V24),\"\",OFFSET('Smelter Look-up'!$H$4,$V24-4,0))","v":""},{"$f":"IF(ISERROR($V24),\"\",OFFSET('Smelter Look-up'!$I$4,$V24-4,0))","v":""},{"$nulls":7},{"$f":"IF(ISERROR($V24),\"\",OFFSET('Smelter Look-up'!$C$4,$V24-4,0)&\"\")","v":""},"",{"$f":"IF(B24=\"\",\"\",IF(ISERROR(MATCH($J24,SorP!$B$1:$B$5661,0)),\"\",INDIRECT(\"'SorP'!$A$\"&MATCH($J24,SorP!$B$1:$B$5661,0))))","v":""},null,{"$f":"IF(C24=\"\",NA(),MATCH($B24&$C24,'Smelter Look-up'!$J:$J,0))","v":{"$error":"#N/A"}},null,0,null,null,null,""]
[null,{"$f":"IF(LEN(A25)=0,\"\",INDEX('Smelter Look-up'!$A:$A,MATCH($A25,'Smelter Look-up'!$E:$E,0)))","v":""},{"$f":"IF(LEN(A25)=0,\"\",INDEX('Smelter Look-up'!$C:$C,MATCH($A25,'Smelter Look-up'!$E:$E,0)))","v":""},null,{"$f":"IF(ISERROR($V25),\"\",OFFSET('Smelter Look-up'!$D$4,$V25-4,0)&\"\")","v":""},{"$f":"IF(ISERROR($V25),\"\",OFFSET('Smelter Look-up'!$E$4,$V25-4,0))","v":""},{"$f":"IF(C25=$X$4,\"Enter smelter details\",IF(ISERROR($V25),\"\",OFFSET('Smelter Look-up'!$F$4,$V25-4,0)))","v":""},{"$f":"IF(ISERROR($V25),\"\",OFFSET('Smelter Look-up'!$G$4,$V25-4,0))","v":""},{"$f":"IF(ISERROR($V25),\"\",OFFSET('Smelter Look-up'!$H$4,$V25-4,0))","v":""},{"$f":"IF(ISERROR($V25),\"\",OFFSET('Smelter Look-up'!$I$4,$V25-4,0))","v":""},{"$nulls":7},{"$f":"IF(ISERROR($V25),\"\",OFFSET('Smelter Look-up'!$C$4,$V25-4,0)&\"\")","v":""},"",{"$f":"IF(B25=\"\",\"\",IF(ISERROR(MATCH($J25,SorP!$B$1:$B$5661,0)),\"\",INDIRECT(\"'SorP'!$A$\"&MATCH($J25,SorP!$B$1:$B$5661,0))))","v":""},null,{"$f":"IF(C25=\"\",NA(),MATCH($B25&$C25,'Smelter Look-up'!$J:$J,0))","v":{"$error":"#N/A"}},null,0,null,null,null,""]
[null,{"$f":"IF(LEN(A26)=0,\"\",INDEX('Smelter Look-up'!$A:$A,MATCH($A26,'Smelter Look-up'!$E:$E,0)))","v":""},{"$f":"IF(LEN(A26)=0,\"\",INDEX('Smelter Look-up'!$C:$C,MATCH($A26,'Smelter Look-up'!$E:$E,0)))","v":""},null,{"$f":"IF(ISERROR($V26),\"\",OFFSET('Smelter Look-up'!$D$4,$V26-4,0)&\"\")","v":""},{"$f":"IF(ISERROR($V26),\"\",OFFSET('Smelter Look-up'!$E$4,$V26-4,0))","v":""},{"$f":"IF(C26=$X$4,\"Enter smelter details\",IF(ISERROR($V26),\"\",OFFSET('Smelter Look-up'!$F$4,$V26-4,0)))","v":""},{"$f":"IF(ISERROR($V26),\"\",OFFSET('Smelter Look-up'!$G$4,$V26-4,0))","v":""},{"$f":"IF(ISERROR($V26),\"\",OFFSET('Smelter Look-up'!$H$4,$V26-4,0))","v":""},{"$f":"IF(ISERROR($V26),\"\",OFFSET('Smelter Look-up'!$I$4,$V26-4,0))","v":""},{"$nulls":7},{"$f":"IF(ISERROR($V26),\"\",OFFSET('Smelter Look-up'!$C$4,$V26-4,0)&\"\")","v":""},"",{"$f":"IF(B26=\"\",\"\",IF(ISERROR(MATCH($J26,SorP!$B$1:$B$5661,0)),\"\",INDIRECT(\"'SorP'!$A$\"&MATCH($J26,SorP!$B$1:$B$5661,0))))","v":""},null,{"$f":"IF(C26=\"\",NA(),MATCH($B26&$C26,'Smelter Look-up'!$J:$J,0))","v":{"$error":"#N/A"}},null,0,null,null,null,""]
[null,{"$f":"IF(LEN(A27)=0,\"\",INDEX('Smelter Look-up'!$A:$A,MATCH($A27,'Smelter Look-up'!$E:$E,0)))","v":""},{"$f":"IF(LEN(A27)=0,\"\",INDEX('Smelter Look-up'!$C:$C,MATCH($A27,'Smelter Look-up'!$E:$E,0)))","v":""},null,{"$f":"IF(ISERROR($V27),\"\",OFFSET('Smelter Look-up'!$D$4,$V27-4,0)&\"\")","v":""},{"$f":"IF(ISERROR($V27),\"\",OFFSET('Smelter Look-up'!$E$4,$V27-4,0))","v":""},{"$f":"IF(C27=$X$4,\"Enter smelter details\",IF(ISERROR($V27),\"\",OFFSET('Smelter Look-up'!$F$4,$V27-4,0)))","v":""},{"$f":"IF(ISERROR($V27),\"\",OFFSET('Smelter Look-up'!$G$4,$V27-4,0))","v":""},{"$f":"IF(ISERROR($V27),\"\",OFFSET('Smelter Look-up'!$H$4,$V27-4,0))","v":""},{"$f":"IF(ISERROR($V27),\"\",OFFSET('Smelter Look-up'!$I$4,$V27-4,0))","v":""},{"$nulls":7},{"$f":"IF(ISERROR($V27),\"\",OFFSET('Smelter Look-up'!$C$4,$V27-4,0)&\"\")","v":""},"",{"$f":"IF(B27=\"\",\"\",IF(ISERROR(MATCH($J27,SorP!$B$1:$B$5661,0)),\"\",INDIRECT(\"'SorP'!$A$\"&MATCH($J27,SorP!$B$1:$B$5661,0))))","v":""},null,{"$f":"IF(C27=\"\",NA(),MATCH($B27&$C27,'Smelter Look-up'!$J:$J,0))","v":{"$error":"#N/A"}},null,0,null,null,null,""]
[null,{"$f":"IF(LEN(A28)=0,\"\",INDEX('Smelter Look-up'!$A:$A,MATCH($A28,'Smelter Look-up'!$E:$E,0)))","v":""},{"$f":"IF(LEN(A28)=0,\"\",INDEX('Smelter Look-up'!$C:$C,MATCH($A28,'Smelter Look-up'!$E:$E,0)))","v":""},null,{"$f":"IF(ISERROR($V28),\"\",OFFSET('Smelter Look-up'!$D$4,$V28-4,0)&\"\")","v":""},{"$f":"IF(ISERROR($V28),\"\",OFFSET('Smelter Look-up'!$E$4,$V28-4,0))","v":""},{"$f":"IF(C28=$X$4,\"Enter smelter details\",IF(ISERROR($V28),\"\",OFFSET('Smelter Look-up'!$F$4,$V28-4,0)))","v":""},{"$f":"IF(ISERROR($V28),\"\",OFFSET('Smelter Look-up'!$G$4,$V28-4,0))","v":""},{"$f":"IF(ISERROR($V28),\"\",OFFSET('Smelter Look-up'!$H$4,$V28-4,0))","v":""},{"$f":"IF(ISERROR($V28),\"\",OFFSET('Smelter Look-up'!$I$4,$V28-4,0))","v":""},{"$nulls":7},{"$f":"IF(ISERROR($V28),\"\",OFFSET('Smelter Look-up'!$C$4,$V28-4,0)&\"\")","v":""},"",{"$f":"IF(B28=\"\",\"\",IF(ISERROR(MATCH($J28,SorP!$B$1:$B$5661,0)),\"\",INDIRECT(\"'SorP'!$A$\"&MATCH($J28,SorP!$B$1:$B$5661,0))))","v":""},null,{"$f":"IF(C28=\"\",NA(),MATCH($B28&$C28,'Smelter Look-up'!$J:$J,0))","v":{"$error":"#N/A"}},null,0,null,null,null,""]
[null,{"$f":"IF(LEN(A29)=0,\"\",INDEX('Smelter Look-up'!$A:$A,MATCH($A29,'Smelter Look-up'!$E:$E,0)))","v":""},{"$f":"IF(LEN(A29)=0,\"\",INDEX('Smelter Look-up'!$C:$C,MATCH($A29,'Smelter Look-up'!$E:$E,0)))","v":""},null,{"$f":"IF(ISERROR($V29),\"\",OFFSET('Smelter Look-up'!$D$4,$V29-4,0)&\"\")","v":""},{"$f":"IF(ISERROR($V29),\"\",OFFSET('Smelter Look-up'!$E$4,$V29-4,0))","v":""},{"$f":"IF(C29=$X$4,\"Enter smelter details\",IF(ISERROR($V29),\"\",OFFSET('Smelter Look-up'!$F$4,$V29-4,0)))","v":""},{"$f":"IF(ISERROR($V29),\"\",OFFSET('Smelter Look-up'!$G$4,$V29-4,0))","v":""},{"$f":"IF(ISERROR($V29),\"\",OFFSET('Smelter Look-up'!$H$4,$V29-4,0))","v":""},{"$f":"IF(ISERROR($V29),\"\",OFFSET('Smelter Look-up'!$I$4,$V29-4,0))","v":""},{"$nulls":7},{"$f":"IF(ISERROR($V29),\"\",OFFSET('Smelter Look-up'!$C$4,$V29-4,0)&\"\")","v":""},"",{"$f":"IF(B29=\"\",\"\",IF(ISERROR(MATCH($J29,SorP!$B$1:$B$5661,0)),\"\",INDIRECT(\"'SorP'!$A$\"&MATCH($J29,SorP!$B$1:$B$5661,0))))","v":""},null,{"$f":"IF(C29=\"\",NA(),MATCH($B29&$C29,'Smelter Look-up'!$J:$J,0))","v":{"$error":"#N/A"}},null,0,null,null,null,""]
[null,{"$f":"IF(LEN(A30)=0,\"\",INDEX('Smelter Look-up'!$A:$A,MATCH($A30,'Smelter Look-up'!$E:$E,0)))","v":""},{"$f":"IF(LEN(A30)=0,\"\",INDEX('Smelter Look-up'!$C:$C,MATCH($A30,'Smelter Look-up'!$E:$E,0)))","v":""},null,{"$f":"IF(ISERROR($V30),\"\",OFFSET('Smelter Look-up'!$D$4,$V30-4,0)&\"\")","v":""},{"$f":"IF(ISERROR($V30),\"\",OFFSET('Smelter Look-up'!$E$4,$V30-4,0))","v":""},{"$f":"IF(C30=$X$4,\"Enter smelter details\",IF(ISERROR($V30),\"\",OFFSET('Smelter Look-up'!$F$4,$V30-4,0)))","v":""},{"$f":"IF(ISERROR($V30),\"\",OFFSET('Smelter Look-up'!$G$4,$V30-4,0))","v":""},{"$f":"IF(ISERROR($V30),\"\",OFFSET('Smelter Look-up'!$H$4,$V30-4,0))","v":""},{"$f":"IF(ISERROR($V30),\"\",OFFSET('Smelter Look-up'!$I$4,$V30-4,0))","v":""},{"$nulls":7},{"$f":"IF(ISERROR($V30),\"\",OFFSET('Smelter Look-up'!$C$4,$V30-4,0)&\"\")","v":""},"",{"$f":"IF(B30=\"\",\"\",IF(ISERROR(MATCH($J30,SorP!$B$1:$B$5661,0)),\"\",INDIRECT(\"'SorP'!$A$\"&MATCH($J30,SorP!$B$1:$B$5661,0))))","v":""},null,{"$f":"IF(C30=\"\",NA(),MATCH($B30&$C30,'Smelter Look-up'!$J:$J,0))","v":{"$error":"#N/A"}},null,0,null,null,null,""]
[null,{"$f":"IF(LEN(A31)=0,\"\",INDEX('Smelter Look-up'!$A:$A,MATCH($A31,'Smelter Look-up'!$E:$E,0)))","v":""},{"$f":"IF(LEN(A31)=0,\"\",INDEX('Smelter Look-up'!$C:$C,MATCH($A31,'Smelter Look-up'!$E:$E,0)))","v":""},null,{"$f":"IF(ISERROR($V31),\"\",OFFSET('Smelter Look-up'!$D$4,$V31-4,0)&\"\")","v":""},{"$f":"IF(ISERROR($V31),\"\",OFFSET('Smelter Look-up'!$E$4,$V31-4,0))","v":""},{"$f":"IF(C31=$X$4,\"Enter smelter details\",IF(ISERROR($V31),\"\",OFFSET('Smelter Look-up'!$F$4,$V31-4,0)))","v":""},{"$f":"IF(ISERROR($V31),\"\",OFFSET('Smelter Look-up'!$G$4,$V31-4,0))","v":""},{"$f":"IF(ISERROR($V31),\"\",OFFSET('Smelter Look-up'!$H$4,$V31-4,0))","v":""},{"$f":"IF(ISERROR($V31),\"\",OFFSET('Smelter Look-up'!$I$4,$V31-4,0))","v":""},{"$nulls":7},{"$f":"IF(ISERROR($V31),\"\",OFFSET('Smelter Look-up'!$C$4,$V31-4,0)&\"\")","v":""},"",{"$f":"IF(B31=\"\",\"\",IF(ISERROR(MATCH($J31,SorP!$B$1:$B$5661,0)),\"\",INDIRECT(\"'SorP'!$A$\"&MATCH($J31,SorP!$B$1:$B$5661,0))))","v":""},null,{"$f":"IF(C31=\"\",NA(),MATCH($B31&$C31,'Smelter Look-up'!$J:$J,0))","v":{"$error":"#N/A"}},null,0,null,null,null,""]
[null,{"$f":"IF(LEN(A32)=0,\"\",INDEX('Smelter Look-up'!$A:$A,MATCH($A32,'Smelter Look-up'!$E:$E,0)))","v":""},{"$f":"IF(LEN(A32)=0,\"\",INDEX('Smelter Look-up'!$C:$C,MATCH($A32,'Smelter Look-up'!$E:$E,0)))","v":""},null,{"$f":"IF(ISERROR($V32),\"\",OFFSET('Smelter Look-up'!$D$4,$V32-4,0)&\"\")","v":""},{"$f":"IF(ISERROR($V32),\"\",OFFSET('Smelter Look-up'!$E$4,$V32-4,0))","v":""},{"$f":"IF(C32=$X$4,\"Enter smelter details\",IF(ISERROR($V32),\"\",OFFSET('Smelter Look-up'!$F$4,$V32-4,0)))","v":""},{"$f":"IF(ISERROR($V32),\"\",OFFSET('Smelter Look-up'!$G$4,$V32-4,0))","v":""},{"$f":"IF(ISERROR($V32),\"\",OFFSET('Smelter Look-up'!$H$4,$V32-4,0))","v":""},{"$f":"IF(ISERROR($V32),\"\",OFFSET('Smelter Look-up'!$I$4,$V32-4,0))","v":""},{"$nulls":7},{"$f":"IF(ISERROR($V32),\"\",OFFSET('Smelter Look-up'!$C$4,$V32-4,0)&\"\")","v":""},"",{"$f":"IF(B32=\"\",\"\",IF(ISERROR(MATCH($J32,SorP!$B$1:$B$5661,0)),\"\",INDIRECT(\"'SorP'!$A$\"&MATCH($J32,SorP!$B$1:$B$5661,0))))","v":""},null,{"$f":"IF(C32=\"\",NA(),MATCH($B32&$C32,'Smelter Look-up'!$J:$J,0))","v":{"$error":"#N/A"}},null,0,null,null,null,""]
[null,{"$f":"IF(LEN(A33)=0,\"\",INDEX('Smelter Look-up'!$A:$A,MATCH($A33,'Smelter Look-up'!$E:$E,0)))","v":""},{"$f":"IF(LEN(A33)=0,\"\",INDEX('Smelter Look-up'!$C:$C,MATCH($A33,'Smelter Look-up'!$E:$E,0)))","v":""},null,{"$f":"IF(ISERROR($V33),\"\",OFFSET('Smelter Look-up'!$D$4,$V33-4,0)&\"\")","v":""},{"$f":"IF(ISERROR($V33),\"\",OFFSET('Smelter Look-up'!$E$4,$V33-4,0))","v":""},{"$f":"IF(C33=$X$4,\"Enter smelter details\",IF(ISERROR($V33),\"\",OFFSET('Smelter Look-up'!$F$4,$V33-4,0)))","v":""},{"$f":"IF(ISERROR($V33),\"\",OFFSET('Smelter Look-up'!$G$4,$V33-4,0))","v":""},{"$f":"IF(ISERROR($V33),\"\",OFFSET('Smelter Look-up'!$H$4,$V33-4,0))","v":""},{"$f":"IF(ISERROR($V33),\"\",OFFSET('Smelter Look-up'!$I$4,$V33-4,0))","v":""},{"$nulls":7},{"$f":"IF(ISERROR($V33),\"\",OFFSET('Smelter Look-up'!$C$4,$V33-4,0)&\"\")","v":""},"",{"$f":"IF(B33=\"\",\"\",IF(ISERROR(MATCH($J33,SorP!$B$1:$B$5661,0)),\"\",INDIRECT(\"'SorP'!$A$\"&MATCH($J33,SorP!$B$1:$B$5661,0))))","v":""},null,{"$f":"IF(C33=\"\",NA(),MATCH($B33&$C33,'Smelter Look-up'!$J:$J,0))","v":{"$error":"#N/A"}},null,0,null,null,null,""]
[null,{"$f":"IF(LEN(A34)=0,\"\",INDEX('Smelter Look-up'!$A:$A,MATCH($A34,'Smelter Look-up'!$E:$E,0)))","v":""},{"$f":"IF(LEN(A34)=0,\"\",INDEX('Smelter Look-up'!$C:$C,MATCH($A34,'Smelter Look-up'!$E:$E,0)))","v":""},null,{"$f":"IF(ISERROR($V34),\"\",OFFSET('Smelter Look-up'!$D$4,$V34-4,0)&\"\")","v":""},{"$f":"IF(ISERROR($V34),\"\",OFFSET('Smelter Look-up'!$E$4,$V34-4,0))","v":""},{"$f":"IF(C34=$X$4,\"Enter smelter details\",IF(ISERROR($V34),\"\",OFFSET('Smelter Look-up'!$F$4,$V34-4,0)))","v":""},{"$f":"IF(ISERROR($V34),\"\",OFFSET('Smelter Look-up'!$G$4,$V34-4,0))","v":""},{"$f":"IF(ISERROR($V34),\"\",OFFSET('Smelter Look-up'!$H$4,$V34-4,0))","v":""},{"$f":"IF(ISERROR($V34),\"\",OFFSET('Smelter Look-up'!$I$4,$V34-4,0))","v":""},{"$nulls":7},{"$f":"IF(ISERROR($V34),\"\",OFFSET('Smelter Look-up'!$C$4,$V34-4,0)&\"\")","v":""},"",{"$f":"IF(B34=\"\",\"\",IF(ISERROR(MATCH($J34,SorP!$B$1:$B$5661,0)),\"\",INDIRECT(\"'SorP'!$A$\"&MATCH($J34,SorP!$B$1:$B$5661,0))))","v":""},null,{"$f":"IF(C34=\"\",NA(),MATCH($B34&$C34,'Smelter Look-up'!$J:$J,0))","v":{"$error":"#N/A"}},null,0,null,null,null,""]
[null,{"$f":"IF(LEN(A35)=0,\"\",INDEX('Smelter Look-up'!$A:$A,MATCH($A35,'Smelter Look-up'!$E:$E,0)))","v":""},{"$f":"IF(LEN(A35)=0,\"\",INDEX('Smelter Look-up'!$C:$C,MATCH($A35,'Smelter Look-up'!$E:$E,0)))","v":""},null,{"$f":"IF(ISERROR($V35),\"\",OFFSET('Smelter Look-up'!$D$4,$V35-4,0)&\"\")","v":""},{"$f":"IF(ISERROR($V35),\"\",OFFSET('Smelter Look-up'!$E$4,$V35-4,0))","v":""},{"$f":"IF(C35=$X$4,\"Enter smelter details\",IF(ISERROR($V35),\"\",OFFSET('Smelter Look-up'!$F$4,$V35-4,0)))","v":""},{"$f":"IF(ISERROR($V35),\"\",OFFSET('Smelter Look-up'!$G$4,$V35-4,0))","v":""},{"$f":"IF(ISERROR($V35),\"\",OFFSET('Smelter Look-up'!$H$4,$V35-4,0))","v":""},{"$f":"IF(ISERROR($V35),\"\",OFFSET('Smelter Look-up'!$I$4,$V35-4,0))","v":""},{"$nulls":7},{"$f":"IF(ISERROR($V35),\"\",OFFSET('Smelter Look-up'!$C$4,$V35-4,0)&\"\")","v":""},"",{"$f":"IF(B35=\"\",\"\",IF(ISERROR(MATCH($J35,SorP!$B$1:$B$5661,0)),\"\",INDIRECT(\"'SorP'!$A$\"&MATCH($J35,SorP!$B$1:$B$5661,0))))","v":""},null,{"$f":"IF(C35=\"\",NA(),MATCH($B35&$C35,'Smelter Look-up'!$J:$J,0))","v":{"$error":"#N/A"}},null,0,null,null,null,""]
[null,{"$f":"IF(LEN(A36)=0,\"\",INDEX('Smelter Look-up'!$A:$A,MATCH($A36,'Smelter Look-up'!$E:$E,0)))","v":""},{"$f":"IF(LEN(A36)=0,\"\",INDEX('Smelter Look-up'!$C:$C,MATCH($A36,'Smelter Look-up'!$E:$E,0)))","v":""},null,{"$f":"IF(ISERROR($V36),\"\",OFFSET('Smelter Look-up'!$D$4,$V36-4,0)&\"\")","v":""},{"$f":"IF(ISERROR($V36),\"\",OFFSET('Smelter Look-up'!$E$4,$V36-4,0))","v":""},{"$f":"IF(C36=$X$4,\"Enter smelter details\",IF(ISERROR($V36),\"\",OFFSET('Smelter Look-up'!$F$4,$V36-4,0)))","v":""},{"$f":"IF(ISERROR($V36),\"\",OFFSET('Smelter Look-up'!$G$4,$V36-4,0))","v":""},{"$f":"IF(ISERROR($V36),\"\",OFFSET('Smelter Look-up'!$H$4,$V36-4,0))","v":""},{"$f":"IF(ISERROR($V36),\"\",OFFSET('Smelter Look-up'!$I$4,$V36-4,0))","v":""},{"$nulls":7},{"$f":"IF(ISERROR($V36),\"\",OFFSET('Smelter Look-up'!$C$4,$V36-4,0)&\"\")","v":""},"",{"$f":"IF(B36=\"\",\"\",IF(ISERROR(MATCH($J36,SorP!$B$1:$B$5661,0)),\"\",INDIRECT(\"'SorP'!$A$\"&MATCH($J36,SorP!$B$1:$B$5661,0))))","v":""},null,{"$f":"IF(C36=\"\",NA(),MATCH($B36&$C36,'Smelter Look-up'!$J:$J,0))","v":{"$error":"#N/A"}},null,0,null,null,null,""]
[null,{"$f":"IF(LEN(A37)=0,\"\",INDEX('Smelter Look-up'!$A:$A,MATCH($A37,'Smelter Look-up'!$E:$E,0)))","v":""},{"$f":"IF(LEN(A37)=0,\"\",INDEX('Smelter Look-up'!$C:$C,MATCH($A37,'Smelter Look-up'!$E:$E,0)))","v":""},null,{"$f":"IF(ISERROR($V37),\"\",OFFSET('Smelter Look-up'!$D$4,$V37-4,0)&\"\")","v":""},{"$f":"IF(ISERROR($V37),\"\",OFFSET('Smelter Look-up'!$E$4,$V37-4,0))","v":""},{"$f":"IF(C37=$X$4,\"Enter smelter details\",IF(ISERROR($V37),\"\",OFFSET('Smelter Look-up'!$F$4,$V37-4,0)))","v":""},{"$f":"IF(ISERROR($V37),\"\",OFFSET('Smelter Look-up'!$G$4,$V37-4,0))","v":""},{"$f":"IF(ISERROR($V37),\"\",OFFSET('Smelter Look-up'!$H$4,$V37-4,0))","v":""},{"$f":"IF(ISERROR($V37),\"\",OFFSET('Smelter Look-up'!$I$4,$V37-4,0))","v":""},{"$nulls":7},{"$f":"IF(ISERROR($V37),\"\",OFFSET('Smelter Look-up'!$C$4,$V37-4,0)&\"\")","v":""},"",{"$f":"IF(B37=\"\",\"\",IF(ISERROR(MATCH($J37,SorP!$B$1:$B$5661,0)),\"\",INDIRECT(\"'SorP'!$A$\"&MATCH($J37,SorP!$B$1:$B$5661,0))))","v":""},null,{"$f":"IF(C37=\"\",NA(),MATCH($B37&$C37,'Smelter Look-up'!$J:$J,0))","v":{"$error":"#N/A"}},null,0,null,null,null,""]
[null,{"$f":"IF(LEN(A38)=0,\"\",INDEX('Smelter Look-up'!$A:$A,MATCH($A38,'Smelter Look-up'!$E:$E,0)))","v":""},{"$f":"IF(LEN(A38)=0,\"\",INDEX('Smelter Look-up'!$C:$C,MATCH($A38,'Smelter Look-up'!$E:$E,0)))","v":""},null,{"$f":"IF(ISERROR($V38),\"\",OFFSET('Smelter Look-up'!$D$4,$V38-4,0)&\"\")","v":""},{"$f":"IF(ISERROR($V38),\"\",OFFSET('Smelter Look-up'!$E$4,$V38-4,0))","v":""},{"$f":"IF(C38=$X$4,\"Enter smelter details\",IF(ISERROR($V38),\"\",OFFSET('Smelter Look-up'!$F$4,$V38-4,0)))","v":""},{"$f":"IF(ISERROR($V38),\"\",OFFSET('Smelter Look-up'!$G$4,$V38-4,0))","v":""},{"$f":"IF(ISERROR($V38),\"\",OFFSET('Smelter Look-up'!$H$4,$V38-4,0))","v":""},{"$f":"IF(ISERROR($V38),\"\",OFFSET('Smelter Look-up'!$I$4,$V38-4,0))","v":""},{"$nulls":7},{"$f":"IF(ISERROR($V38),\"\",OFFSET('Smelter Look-up'!$C$4,$V38-4,0)&\"\")","v":""},"",{"$f":"IF(B38=\"\",\"\",IF(ISERROR(MATCH($J38,SorP!$B$1:$B$5661,0)),\"\",INDIRECT(\"'SorP'!$A$\"&MATCH($J38,SorP!$B$1:$B$5661,0))))","v":""},null,{"$f":"IF(C38=\"\",NA(),MATCH($B38&$C38,'Smelter Look-up'!$J:$J,0))","v":{"$error":"#N/A"}},null,0,null,null,null,""]
[null,{"$f":"IF(LEN(A39)=0,\"\",INDEX('Smelter Look-up'!$A:$A,MATCH($A39,'Smelter Look-up'!$E:$E,0)))","v":""},{"$f":"IF(LEN(A39)=0,\"\",INDEX('Smelter Look-up'!$C:$C,MATCH($A39,'Smelter Look-up'!$E:$E,0)))","v":""},null,{"$f":"IF(ISERROR($V39),\"\",OFFSET('Smelter Look-up'!$D$4,$V39-4,0)&\"\")","v":""},{"$f":"IF(ISERROR($V39),\"\",OFFSET('Smelter Look-up'!$E$4,$V39-4,0))","v":""},{"$f":"IF(C39=$X$4,\"Enter smelter details\",IF(ISERROR($V39),\"\",OFFSET('Smelter Look-up'!$F$4,$V39-4,0)))","v":""},{"$f":"IF(ISERROR($V39),\"\",OFFSET('Smelter Look-up'!$G$4,$V39-4,0))","v":""},{"$f":"IF(ISERROR($V39),\"\",OFFSET('Smelter Look-up'!$H$4,$V39-4,0))","v":""},{"$f":"IF(ISERROR($V39),\"\",OFFSET('Smelter Look-up'!$I$4,$V39-4,0))","v":""},{"$nulls":7},{"$f":"IF(ISERROR($V39),\"\",OFFSET('Smelter Look-up'!$C$4,$V39-4,0)&\"\")","v":""},"",{"$f":"IF(B39=\"\",\"\",IF(ISERROR(MATCH($J39,SorP!$B$1:$B$5661,0)),\"\",INDIRECT(\"'SorP'!$A$\"&MATCH($J39,SorP!$B$1:$B$5661,0))))","v":""},null,{"$f":"IF(C39=\"\",NA(),MATCH($B39&$C39,'Smelter Look-up'!$J:$J,0))","v":{"$error":"#N/A"}},null,0,null,null,null,""]
[null,{"$f":"IF(LEN(A40)=0,\"\",INDEX('Smelter Look-up'!$A:$A,MATCH($A40,'Smelter Look-up'!$E:$E,0)))","v":""},{"$f":"IF(LEN(A40)=0,\"\",INDEX('Smelter Look-up'!$C:$C,MATCH($A40,'Smelter Look-up'!$E:$E,0)))","v":""},null,{"$f":"IF(ISERROR($V40),\"\",OFFSET('Smelter Look-up'!$D$4,$V40-4,0)&\"\")","v":""},{"$f":"IF(ISERROR($V40),\"\",OFFSET('Smelter Look-up'!$E$4,$V40-4,0))","v":""},{"$f":"IF(C40=$X$4,\"Enter smelter details\",IF(ISERROR($V40),\"\",OFFSET('Smelter Look-up'!$F$4,$V40-4,0)))","v":""},{"$f":"IF(ISERROR($V40),\"\",OFFSET('Smelter Look-up'!$G$4,$V40-4,0))","v":""},{"$f":"IF(ISERROR($V40),\"\",OFFSET('Smelter Look-up'!$H$4,$V40-4,0))","v":""},{"$f":"IF(ISERROR($V40),\"\",OFFSET('Smelter Look-up'!$I$4,$V40-4,0))","v":""},{"$nulls":7},{"$f":"IF(ISERROR($V40),\"\",OFFSET('Smelter Look-up'!$C$4,$V40-4,0)&\"\")","v":""},"",{"$f":"IF(B40=\"\",\"\",IF(ISERROR(MATCH($J40,SorP!$B$1:$B$5661,0)),\"\",INDIRECT(\"'SorP'!$A$\"&MATCH($J40,SorP!$B$1:$B$5661,0))))","v":""},null,{"$f":"IF(C40=\"\",NA(),MATCH($B40&$C40,'Smelter Look-up'!$J:$J,0))","v":{"$error":"#N/A"}},null,0,null,null,null,""]
[null,{"$f":"IF(LEN(A41)=0,\"\",INDEX('Smelter Look-up'!$A:$A,MATCH($A41,'Smelter Look-up'!$E:$E,0)))","v":""},{"$f":"IF(LEN(A41)=0,\"\",INDEX('Smelter Look-up'!$C:$C,MATCH($A41,'Smelter Look-up'!$E:$E,0)))","v":""},null,{"$f":"IF(ISERROR($V41),\"\",OFFSET('Smelter Look-up'!$D$4,$V41-4,0)&\"\")","v":""},{"$f":"IF(ISERROR($V41),\"\",OFFSET('Smelter Look-up'!$E$4,$V41-4,0))","v":""},{"$f":"IF(C41=$X$4,\"Enter smelter details\",IF(ISERROR($V41),\"\",OFFSET('Smelter Look-up'!$F$4,$V41-4,0)))","v":""},{"$f":"IF(ISERROR($V41),\"\",OFFSET('Smelter Look-up'!$G$4,$V41-4,0))","v":""},{"$f":"IF(ISERROR($V41),\"\",OFFSET('Smelter Look-up'!$H$4,$V41-4,0))","v":""},{"$f":"IF(ISERROR($V41),\"\",OFFSET('Smelter Look-up'!$I$4,$V41-4,0))","v":""},{"$nulls":7},{"$f":"IF(ISERROR($V41),\"\",OFFSET('Smelter Look-up'!$C$4,$V41-4,0)&\"\")","v":""},"",{"$f":"IF(B41=\"\",\"\",IF(ISERROR(MATCH($J41,SorP!$B$1:$B$5661,0)),\"\",INDIRECT(\"'SorP'!$A$\"&MATCH($J41,SorP!$B$1:$B$5661,0))))","v":""},null,{"$f":"IF(C41=\"\",NA(),MATCH($B41&$C41,'Smelter Look-up'!$J:$J,0))","v":{"$error":"#N/A"}},null,0,null,null,null,""]
[null,{"$f":"IF(LEN(A42)=0,\"\",INDEX('Smelter Look-up'!$A:$A,MATCH($A42,'Smelter Look-up'!$E:$E,0)))","v":""},{"$f":"IF(LEN(A42)=0,\"\",INDEX('Smelter Look-up'!$C:$C,MATCH($A42,'Smelter Look-up'!$E:$E,0)))","v":""},null,{"$f":"IF(ISERROR($V42),\"\",OFFSET('Smelter Look-up'!$D$4,$V42-4,0)&\"\")","v":""},{"$f":"IF(ISERROR($V42),\"\",OFFSET('Smelter Look-up'!$E$4,$V42-4,0))","v":""},{"$f":"IF(C42=$X$4,\"Enter smelter details\",IF(ISERROR($V42),\"\",OFFSET('Smelter Look-up'!$F$4,$V42-4,0)))","v":""},{"$f":"IF(ISERROR($V42),\"\",OFFSET('Smelter Look-up'!$G$4,$V42-4,0))","v":""},{"$f":"IF(ISERROR($V42),\"\",OFFSET('Smelter Look-up'!$H$4,$V42-4,0))","v":""},{"$f":"IF(ISERROR($V42),\"\",OFFSET('Smelter Look-up'!$I$4,$V42-4,0))","v":""},{"$nulls":7},{"$f":"IF(ISERROR($V42),\"\",OFFSET('Smelter Look-up'!$C$4,$V42-4,0)&\"\")","v":""},"",{"$f":"IF(B42=\"\",\"\",IF(ISERROR(MATCH($J42,SorP!$B$1:$B$5661,0)),\"\",INDIRECT(\"'SorP'!$A$\"&MATCH($J42,SorP!$B$1:$B$5661,0))))","v":""},null,{"$f":"IF(C42=\"\",NA(),MATCH($B42&$C42,'Smelter Look-up'!$J:$J,0))","v":{"$error":"#N/A"}},null,0,null,null,null,""]
[null,{"$f":"IF(LEN(A43)=0,\"\",INDEX('Smelter Look-up'!$A:$A,MATCH($A43,'Smelter Look-up'!$E:$E,0)))","v":""},{"$f":"IF(LEN(A43)=0,\"\",INDEX('Smelter Look-up'!$C:$C,MATCH($A43,'Smelter Look-up'!$E:$E,0)))","v":""},null,{"$f":"IF(ISERROR($V43),\"\",OFFSET('Smelter Look-up'!$D$4,$V43-4,0)&\"\")","v":""},{"$f":"IF(ISERROR($V43),\"\",OFFSET('Smelter Look-up'!$E$4,$V43-4,0))","v":""},{"$f":"IF(C43=$X$4,\"Enter smelter details\",IF(ISERROR($V43),\"\",OFFSET('Smelter Look-up'!$F$4,$V43-4,0)))","v":""},{"$f":"IF(ISERROR($V43),\"\",OFFSET('Smelter Look-up'!$G$4,$V43-4,0))","v":""},{"$f":"IF(ISERROR($V43),\"\",OFFSET('Smelter Look-up'!$H$4,$V43-4,0))","v":""},{"$f":"IF(ISERROR($V43),\"\",OFFSET('Smelter Look-up'!$I$4,$V43-4,0))","v":""},{"$nulls":7},{"$f":"IF(ISERROR($V43),\"\",OFFSET('Smelter Look-up'!$C$4,$V43-4,0)&\"\")","v":""},"",{"$f":"IF(B43=\"\",\"\",IF(ISERROR(MATCH($J43,SorP!$B$1:$B$5661,0)),\"\",INDIRECT(\"'SorP'!$A$\"&MATCH($J43,SorP!$B$1:$B$5661,0))))","v":""},null,{"$f":"IF(C43=\"\",NA(),MATCH($B43&$C43,'Smelter Look-up'!$J:$J,0))","v":{"$error":"#N/A"}},null,0,null,null,null,""]
[null,{"$f":"IF(LEN(A44)=0,\"\",INDEX('Smelter Look-up'!$A:$A,MATCH($A44,'Smelter Look-up'!$E:$E,0)))","v":""},{"$f":"IF(LEN(A44)=0,\"\",INDEX('Smelter Look-up'!$C:$C,MATCH($A44,'Smelter Look-up'!$E:$E,0)))","v":""},null,{"$f":"IF(ISERROR($V44),\"\",OFFSET('Smelter Look-up'!$D$4,$V44-4,0)&\"\")","v":""},{"$f":"IF(ISERROR($V44),\"\",OFFSET('Smelter Look-up'!$E$4,$V44-4,0))","v":""},{"$f":"IF(C44=$X$4,\"Enter smelter details\",IF(ISERROR($V44),\"\",OFFSET('Smelter Look-up'!$F$4,$V44-4,0)))","v":""},{"$f":"IF(ISERROR($V44),\"\",OFFSET('Smelter Look-up'!$G$4,$V44-4,0))","v":""},{"$f":"IF(ISERROR($V44),\"\",OFFSET('Smelter Look-up'!$H$4,$V44-4,0))","v":""},{"$f":"IF(ISERROR($V44),\"\",OFFSET('Smelter Look-up'!$I$4,$V44-4,0))","v":""},{"$nulls":7},{"$f":"IF(ISERROR($V44),\"\",OFFSET('Smelter Look-up'!$C$4,$V44-4,0)&\"\")","v":""},"",{"$f":"IF(B44=\"\",\"\",IF(ISERROR(MATCH($J44,SorP!$B$1:$B$5661,0)),\"\",INDIRECT(\"'SorP'!$A$\"&MATCH($J44,SorP!$B$1:$B$5661,0))))","v":""},null,{"$f":"IF(C44=\"\",NA(),MATCH($B44&$C44,'Smelter Look-up'!$J:$J,0))","v":{"$error":"#N/A"}},null,0,null,null,null,""]
[null,{"$f":"IF(LEN(A45)=0,\"\",INDEX('Smelter Look-up'!$A:$A,MATCH($A45,'Smelter Look-up'!$E:$E,0)))","v":""},{"$f":"IF(LEN(A45)=0,\"\",INDEX('Smelter Look-up'!$C:$C,MATCH($A45,'Smelter Look-up'!$E:$E,0)))","v":""},null,{"$f":"IF(ISERROR($V45),\"\",OFFSET('Smelter Look-up'!$D$4,$V45-4,0)&\"\")","v":""},{"$f":"IF(ISERROR($V45),\"\",OFFSET('Smelter Look-up'!$E$4,$V45-4,0))","v":""},{"$f":"IF(C45=$X$4,\"Enter smelter details\",IF(ISERROR($V45),\"\",OFFSET('Smelter Look-up'!$F$4,$V45-4,0)))","v":""},{"$f":"IF(ISERROR($V45),\"\",OFFSET('Smelter Look-up'!$G$4,$V45-4,0))","v":""},{"$f":"IF(ISERROR($V45),\"\",OFFSET('Smelter Look-up'!$H$4,$V45-4,0))","v":""},{"$f":"IF(ISERROR($V45),\"\",OFFSET('Smelter Look-up'!$I$4,$V45-4,0))","v":""},{"$nulls":7},{"$f":"IF(ISERROR($V45),\"\",OFFSET('Smelter Look-up'!$C$4,$V45-4,0)&\"\")","v":""},"",{"$f":"IF(B45=\"\",\"\",IF(ISERROR(MATCH($J45,SorP!$B$1:$B$5661,0)),\"\",INDIRECT(\"'SorP'!$A$\"&MATCH($J45,SorP!$B$1:$B$5661,0))))","v":""},null,{"$f":"IF(C45=\"\",NA(),MATCH($B45&$C45,'Smelter Look-up'!$J:$J,0))","v":{"$error":"#N/A"}},null,0,null,null,null,""]
[null,{"$f":"IF(LEN(A46)=0,\"\",INDEX('Smelter Look-up'!$A:$A,MATCH($A46,'Smelter Look-up'!$E:$E,0)))","v":""},{"$f":"IF(LEN(A46)=0,\"\",INDEX('Smelter Look-up'!$C:$C,MATCH($A46,'Smelter Look-up'!$E:$E,0)))","v":""},null,{"$f":"IF(ISERROR($V46),\"\",OFFSET('Smelter Look-up'!$D$4,$V46-4,0)&\"\")","v":""},{"$f":"IF(ISERROR($V46),\"\",OFFSET('Smelter Look-up'!$E$4,$V46-4,0))","v":""},{"$f":"IF(C46=$X$4,\"Enter smelter details\",IF(ISERROR($V46),\"\",OFFSET('Smelter Look-up'!$F$4,$V46-4,0)))","v":""},{"$f":"IF(ISERROR($V46),\"\",OFFSET('Smelter Look-up'!$G$4,$V46-4,0))","v":""},{"$f":"IF(ISERROR($V46),\"\",OFFSET('Smelter Look-up'!$H$4,$V46-4,0))","v":""},{"$f":"IF(ISERROR($V46),\"\",OFFSET('Smelter Look-up'!$I$4,$V46-4,0))","v":""},{"$nulls":7},{"$f":"IF(ISERROR($V46),\"\",OFFSET('Smelter Look-up'!$C$4,$V46-4,0)&\"\")","v":""},"",{"$f":"IF(B46=\"\",\"\",IF(ISERROR(MATCH($J46,SorP!$B$1:$B$5661,0)),\"\",INDIRECT(\"'SorP'!$A$\"&MATCH($J46,SorP!$B$1:$B$5661,0))))","v":""},null,{"$f":"IF(C46=\"\",NA(),MATCH($B46&$C46,'Smelter Look-up'!$J:$J,0))","v":{"$error":"#N/A"}},null,0,null,null,null,""]
[null,{"$f":"IF(LEN(A47)=0,\"\",INDEX('Smelter Look-up'!$A:$A,MATCH($A47,'Smelter Look-up'!$E:$E,0)))","v":""},{"$f":"IF(LEN(A47)=0,\"\",INDEX('Smelter Look-up'!$C:$C,MATCH($A47,'Smelter Look-up'!$E:$E,0)))","v":""},null,{"$f":"IF(ISERROR($V47),\"\",OFFSET('Smelter Look-up'!$D$4,$V47-4,0)&\"\")","v":""},{"$f":"IF(ISERROR($V47),\"\",OFFSET('Smelter Look-up'!$E$4,$V47-4,0))","v":""},{"$f":"IF(C47=$X$4,\"Enter smelter details\",IF(ISERROR($V47),\"\",OFFSET('Smelter Look-up'!$F$4,$V47-4,0)))","v":""},{"$f":"IF(ISERROR($V47),\"\",OFFSET('Smelter Look-up'!$G$4,$V47-4,0))","v":""},{"$f":"IF(ISERROR($V47),\"\",OFFSET('Smelter Look-up'!$H$4,$V47-4,0))","v":""},{"$f":"IF(ISERROR($V47),\"\",OFFSET('Smelter Look-up'!$I$4,$V47-4,0))","v":""},{"$nulls":7},{"$f":"IF(ISERROR($V47),\"\",OFFSET('Smelter Look-up'!$C$4,$V47-4,0)&\"\")","v":""},"",{"$f":"IF(B47=\"\",\"\",IF(ISERROR(MATCH($J47,SorP!$B$1:$B$5661,0)),\"\",INDIRECT(\"'SorP'!$A$\"&MATCH($J47,SorP!$B$1:$B$5661,0))))","v":""},null,{"$f":"IF(C47=\"\",NA(),MATCH($B47&$C47,'Smelter Look-up'!$J:$J,0))","v":{"$error":"#N/A"}},null,0,null,null,null,""]
[null,{"$f":"IF(LEN(A48)=0,\"\",INDEX('Smelter Look-up'!$A:$A,MATCH($A48,'Smelter Look-up'!$E:$E,0)))","v":""},{"$f":"IF(LEN(A48)=0,\"\",INDEX('Smelter Look-up'!$C:$C,MATCH($A48,'Smelter Look-up'!$E:$E,0)))","v":""},null,{"$f":"IF(ISERROR($V48),\"\",OFFSET('Smelter Look-up'!$D$4,$V48-4,0)&\"\")","v":""},{"$f":"IF(ISERROR($V48),\"\",OFFSET('Smelter Look-up'!$E$4,$V48-4,0))","v":""},{"$f":"IF(C48=$X$4,\"Enter smelter details\",IF(ISERROR($V48),\"\",OFFSET('Smelter Look-up'!$F$4,$V48-4,0)))","v":""},{"$f":"IF(ISERROR($V48),\"\",OFFSET('Smelter Look-up'!$G$4,$V48-4,0))","v":""},{"$f":"IF(ISERROR($V48),\"\",OFFSET('Smelter Look-up'!$H$4,$V48-4,0))","v":""},{"$f":"IF(ISERROR($V48),\"\",OFFSET('Smelter Look-up'!$I$4,$V48-4,0))","v":""},{"$nulls":7},{"$f":"IF(ISERROR($V48),\"\",OFFSET('Smelter Look-up'!$C$4,$V48-4,0)&\"\")","v":""},"",{"$f":"IF(B48=\"\",\"\",IF(ISERROR(MATCH($J48,SorP!$B$1:$B$5661,0)),\"\",INDIRECT(\"'SorP'!$A$\"&MATCH($J48,SorP!$B$1:$B$5661,0))))","v":""},null,{"$f":"IF(C48=\"\",NA(),MATCH($B48&$C48,'Smelter Look-up'!$J:$J,0))","v":{"$error":"#N/A"}},null,0,null,null,null,""]
[null,{"$f":"IF(LEN(A49)=0,\"\",INDEX('Smelter Look-up'!$A:$A,MATCH($A49,'Smelter Look-up'!$E:$E,0)))","v":""},{"$f":"IF(LEN(A49)=0,\"\",INDEX('Smelter Look-up'!$C:$C,MATCH($A49,'Smelter Look-up'!$E:$E,0)))","v":""},null,{"$f":"IF(ISERROR($V49),\"\",OFFSET('Smelter Look-up'!$D$4,$V49-4,0)&\"\")","v":""},{"$f":"IF(ISERROR($V49),\"\",OFFSET('Smelter Look-up'!$E$4,$V49-4,0))","v":""},{"$f":"IF(C49=$X$4,\"Enter smelter details\",IF(ISERROR($V49),\"\",OFFSET('Smelter Look-up'!$F$4,$V49-4,0)))","v":""},{"$f":"IF(ISERROR($V49),\"\",OFFSET('Smelter Look-up'!$G$4,$V49-4,0))","v":""},{"$f":"IF(ISERROR($V49),\"\",OFFSET('Smelter Look-up'!$H$4,$V49-4,0))","v":""},{"$f":"IF(ISERROR($V49),\"\",OFFSET('Smelter Look-up'!$I$4,$V49-4,0))","v":""},{"$nulls":7},{"$f":"IF(ISERROR($V49),\"\",OFFSET('Smelter Look-up'!$C$4,$V49-4,0)&\"\")","v":""},"",{"$f":"IF(B49=\"\",\"\",IF(ISERROR(MATCH($J49,SorP!$B$1:$B$5661,0)),\"\",INDIRECT(\"'SorP'!$A$\"&MATCH($J49,SorP!$B$1:$B$5661,0))))","v":""},null,{"$f":"IF(C49=\"\",NA(),MATCH($B49&$C49,'Smelter Look-up'!$J:$J,0))","v":{"$error":"#N/A"}},null,0,null,null,null,""]
[null,{"$f":"IF(LEN(A50)=0,\"\",INDEX('Smelter Look-up'!$A:$A,MATCH($A50,'Smelter Look-up'!$E:$E,0)))","v":""},{"$f":"IF(LEN(A50)=0,\"\",INDEX('Smelter Look-up'!$C:$C,MATCH($A50,'Smelter Look-up'!$E:$E,0)))","v":""},null,{"$f":"IF(ISERROR($V50),\"\",OFFSET('Smelter Look-up'!$D$4,$V50-4,0)&\"\")","v":""},{"$f":"IF(ISERROR($V50),\"\",OFFSET('Smelter Look-up'!$E$4,$V50-4,0))","v":""},{"$f":"IF(C50=$X$4,\"Enter smelter details\",IF(ISERROR($V50),\"\",OFFSET('Smelter Look-up'!$F$4,$V50-4,0)))","v":""},{"$f":"IF(ISERROR($V50),\"\",OFFSET('Smelter Look-up'!$G$4,$V50-4,0))","v":""},{"$f":"IF(ISERROR($V50),\"\",OFFSET('Smelter Look-up'!$H$4,$V50-4,0))","v":""},{"$f":"IF(ISERROR($V50),\"\",OFFSET('Smelter Look-up'!$I$4,$V50-4,0))","v":""},{"$nulls":7},{"$f":"IF(ISERROR($V50),\"\",OFFSET('Smelter Look-up'!$C$4,$V50-4,0)&\"\")","v":""},"",{"$f":"IF(B50=\"\",\"\",IF(ISERROR(MATCH($J50,SorP!$B$1:$B$5661,0)),\"\",INDIRECT(\"'SorP'!$A$\"&MATCH($J50,SorP!$B$1:$B$5661,0))))","v":""},null,{"$f":"IF(C50=\"\",NA(),MATCH($B50&$C50,'Smelter Look-up'!$J:$J,0))","v":{"$error":"#N/A"}},null,0,null,null,null,""]
[null,{"$f":"IF(LEN(A51)=0,\"\",INDEX('Smelter Look-up'!$A:$A,MATCH($A51,'Smelter Look-up'!$E:$E,0)))","v":""},{"$f":"IF(LEN(A51)=0,\"\",INDEX('Smelter Look-up'!$C:$C,MATCH($A51,'Smelter Look-up'!$E:$E,0)))","v":""},null,{"$f":"IF(ISERROR($V51),\"\",OFFSET('Smelter Look-up'!$D$4,$V51-4,0)&\"\")","v":""},{"$f":"IF(ISERROR($V51),\"\",OFFSET('Smelter Look-up'!$E$4,$V51-4,0))","v":""},{"$f":"IF(C51=$X$4,\"Enter smelter details\",IF(ISERROR($V51),\"\",OFFSET('Smelter Look-up'!$F$4,$V51-4,0)))","v":""},{"$f":"IF(ISERROR($V51),\"\",OFFSET('Smelter Look-up'!$G$4,$V51-4,0))","v":""},{"$f":"IF(ISERROR($V51),\"\",OFFSET('Smelter Look-up'!$H$4,$V51-4,0))","v":""},{"$f":"IF(ISERROR($V51),\"\",OFFSET('Smelter Look-up'!$I$4,$V51-4,0))","v":""},{"$nulls":7},{"$f":"IF(ISERROR($V51),\"\",OFFSET('Smelter Look-up'!$C$4,$V51-4,0)&\"\")","v":""},"",{"$f":"IF(B51=\"\",\"\",IF(ISERROR(MATCH($J51,SorP!$B$1:$B$5661,0)),\"\",INDIRECT(\"'SorP'!$A$\"&MATCH($J51,SorP!$B$1:$B$5661,0))))","v":""},null,{"$f":"IF(C51=\"\",NA(),MATCH($B51&$C51,'Smelter Look-up'!$J:$J,0))","v":{"$error":"#N/A"}},null,0,null,null,null,""]
[null,{"$f":"IF(LEN(A52)=0,\"\",INDEX('Smelter Look-up'!$A:$A,MATCH($A52,'Smelter Look-up'!$E:$E,0)))","v":""},{"$f":"IF(LEN(A52)=0,\"\",INDEX('Smelter Look-up'!$C:$C,MATCH($A52,'Smelter Look-up'!$E:$E,0)))","v":""},null,{"$f":"IF(ISERROR($V52),\"\",OFFSET('Smelter Look-up'!$D$4,$V52-4,0)&\"\")","v":""},{"$f":"IF(ISERROR($V52),\"\",OFFSET('Smelter Look-up'!$E$4,$V52-4,0))","v":""},{"$f":"IF(C52=$X$4,\"Enter smelter details\",IF(ISERROR($V52),\"\",OFFSET('Smelter Look-up'!$F$4,$V52-4,0)))","v":""},{"$f":"IF(ISERROR($V52),\"\",OFFSET('Smelter Look-up'!$G$4,$V52-4,0))","v":""},{"$f":"IF(ISERROR($V52),\"\",OFFSET('Smelter Look-up'!$H$4,$V52-4,0))","v":""},{"$f":"IF(ISERROR($V52),\"\",OFFSET('Smelter Look-up'!$I$4,$V52-4,0))","v":""},{"$nulls":7},{"$f":"IF(ISERROR($V52),\"\",OFFSET('Smelter Look-up'!$C$4,$V52-4,0)&\"\")","v":""},"",{"$f":"IF(B52=\"\",\"\",IF(ISERROR(MATCH($J52,SorP!$B$1:$B$5661,0)),\"\",INDIRECT(\"'SorP'!$A$\"&MATCH($J52,SorP!$B$1:$B$5661,0))))","v":""},null,{"$f":"IF(C52=\"\",NA(),MATCH($B52&$C52,'Smelter Look-up'!$J:$J,0))","v":{"$error":"#N/A"}},null,0,null,null,null,""]
[null,{"$f":"IF(LEN(A53)=0,\"\",INDEX('Smelter Look-up'!$A:$A,MATCH($A53,'Smelter Look-up'!$E:$E,0)))","v":""},{"$f":"IF(LEN(A53)=0,\"\",INDEX('Smelter Look-up'!$C:$C,MATCH($A53,'Smelter Look-up'!$E:$E,0)))","v":""},null,{"$f":"IF(ISERROR($V53),\"\",OFFSET('Smelter Look-up'!$D$4,$V53-4,0)&\"\")","v":""},{"$f":"IF(ISERROR($V53),\"\",OFFSET('Smelter Look-up'!$E$4,$V53-4,0))","v":""},{"$f":"IF(C53=$X$4,\"Enter smelter details\",IF(ISERROR($V53),\"\",OFFSET('Smelter Look-up'!$F$4,$V53-4,0)))","v":""},{"$f":"IF(ISERROR($V53),\"\",OFFSET('Smelter Look-up'!$G$4,$V53-4,0))","v":""},{"$f":"IF(ISERROR($V53),\"\",OFFSET('Smelter Look-up'!$H$4,$V53-4,0))","v":""},{"$f":"IF(ISERROR($V53),\"\",OFFSET('Smelter Look-up'!$I$4,$V53-4,0))","v":""},{"$nulls":7},{"$f":"IF(ISERROR($V53),\"\",OFFSET('Smelter Look-up'!$C$4,$V53-4,0)&\"\")","v":""},"",{"$f":"IF(B53=\"\",\"\",IF(ISERROR(MATCH($J53,SorP!$B$1:$B$5661,0)),\"\",INDIRECT(\"'SorP'!$A$\"&MATCH($J53,SorP!$B$1:$B$5661,0))))","v":""},null,{"$f":"IF(C53=\"\",NA(),MATCH($B53&$C53,'Smelter Look-up'!$J:$J,0))","v":{"$error":"#N/A"}},null,0,null,null,null,""]
[null,{"$f":"IF(LEN(A54)=0,\"\",INDEX('Smelter Look-up'!$A:$A,MATCH($A54,'Smelter Look-up'!$E:$E,0)))","v":""},{"$f":"IF(LEN(A54)=0,\"\",INDEX('Smelter Look-up'!$C:$C,MATCH($A54,'Smelter Look-up'!$E:$E,0)))","v":""},null,{"$f":"IF(ISERROR($V54),\"\",OFFSET('Smelter Look-up'!$D$4,$V54-4,0)&\"\")","v":""},{"$f":"IF(ISERROR($V54),\"\",OFFSET('Smelter Look-up'!$E$4,$V54-4,0))","v":""},{"$f":"IF(C54=$X$4,\"Enter smelter details\",IF(ISERROR($V54),\"\",OFFSET('Smelter Look-up'!$F$4,$V54-4,0)))","v":""},{"$f":"IF(ISERROR($V54),\"\",OFFSET('Smelter Look-up'!$G$4,$V54-4,0))","v":""},{"$f":"IF(ISERROR($V54),\"\",OFFSET('Smelter Look-up'!$H$4,$V54-4,0))","v":""},{"$f":"IF(ISERROR($V54),\"\",OFFSET('Smelter Look-up'!$I$4,$V54-4,0))","v":""},{"$nulls":7},{"$f":"IF(ISERROR($V54),\"\",OFFSET('Smelter Look-up'!$C$4,$V54-4,0)&\"\")","v":""},"",{"$f":"IF(B54=\"\",\"\",IF(ISERROR(MATCH($J54,SorP!$B$1:$B$5661,0)),\"\",INDIRECT(\"'SorP'!$A$\"&MATCH($J54,SorP!$B$1:$B$5661,0))))","v":""},null,{"$f":"IF(C54=\"\",NA(),MATCH($B54&$C54,'Smelter Look-up'!$J:$J,0))","v":{"$error":"#N/A"}},null,0,null,null,null,""]
[null,{"$f":"IF(LEN(A55)=0,\"\",INDEX('Smelter Look-up'!$A:$A,MATCH($A55,'Smelter Look-up'!$E:$E,0)))","v":""},{"$f":"IF(LEN(A55)=0,\"\",INDEX('Smelter Look-up'!$C:$C,MATCH($A55,'Smelter Look-up'!$E:$E,0)))","v":""},null,{"$f":"IF(ISERROR($V55),\"\",OFFSET('Smelter Look-up'!$D$4,$V55-4,0)&\"\")","v":""},{"$f":"IF(ISERROR($V55),\"\",OFFSET('Smelter Look-up'!$E$4,$V55-4,0))","v":""},{"$f":"IF(C55=$X$4,\"Enter smelter details\",IF(ISERROR($V55),\"\",OFFSET('Smelter Look-up'!$F$4,$V55-4,0)))","v":""},{"$f":"IF(ISERROR($V55),\"\",OFFSET('Smelter Look-up'!$G$4,$V55-4,0))","v":""},{"$f":"IF(ISERROR($V55),\"\",OFFSET('Smelter Look-up'!$H$4,$V55-4,0))","v":""},{"$f":"IF(ISERROR($V55),\"\",OFFSET('Smelter Look-up'!$I$4,$V55-4,0))","v":""},{"$nulls":7},{"$f":"IF(ISERROR($V55),\"\",OFFSET('Smelter Look-up'!$C$4,$V55-4,0)&\"\")","v":""},"",{"$f":"IF(B55=\"\",\"\",IF(ISERROR(MATCH($J55,SorP!$B$1:$B$5661,0)),\"\",INDIRECT(\"'SorP'!$A$\"&MATCH($J55,SorP!$B$1:$B$5661,0))))","v":""},null,{"$f":"IF(C55=\"\",NA(),MATCH($B55&$C55,'Smelter Look-up'!$J:$J,0))","v":{"$error":"#N/A"}},null,0,null,null,null,""]
[null,{"$f":"IF(LEN(A56)=0,\"\",INDEX('Smelter Look-up'!$A:$A,MATCH($A56,'Smelter Look-up'!$E:$E,0)))","v":""},{"$f":"IF(LEN(A56)=0,\"\",INDEX('Smelter Look-up'!$C:$C,MATCH($A56,'Smelter Look-up'!$E:$E,0)))","v":""},null,{"$f":"IF(ISERROR($V56),\"\",OFFSET('Smelter Look-up'!$D$4,$V56-4,0)&\"\")","v":""},{"$f":"IF(ISERROR($V56),\"\",OFFSET('Smelter Look-up'!$E$4,$V56-4,0))","v":""},{"$f":"IF(C56=$X$4,\"Enter smelter details\",IF(ISERROR($V56),\"\",OFFSET('Smelter Look-up'!$F$4,$V56-4,0)))","v":""},{"$f":"IF(ISERROR($V56),\"\",OFFSET('Smelter Look-up'!$G$4,$V56-4,0))","v":""},{"$f":"IF(ISERROR($V56),\"\",OFFSET('Smelter Look-up'!$H$4,$V56-4,0))","v":""},{"$f":"IF(ISERROR($V56),\"\",OFFSET('Smelter Look-up'!$I$4,$V56-4,0))","v":""},{"$nulls":7},{"$f":"IF(ISERROR($V56),\"\",OFFSET('Smelter Look-up'!$C$4,$V56-4,0)&\"\")","v":""},"",{"$f":"IF(B56=\"\",\"\",IF(ISERROR(MATCH($J56,SorP!$B$1:$B$5661,0)),\"\",INDIRECT(\"'SorP'!$A$\"&MATCH($J56,SorP!$B$1:$B$5661,0))))","v":""},null,{"$f":"IF(C56=\"\",NA(),MATCH($B56&$C56,'Smelter Look-up'!$J:$J,0))","v":{"$error":"#N/A"}},null,0,null,null,null,""]
[null,{"$f":"IF(LEN(A57)=0,\"\",INDEX('Smelter Look-up'!$A:$A,MATCH($A57,'Smelter Look-up'!$E:$E,0)))","v":""},{"$f":"IF(LEN(A57)=0,\"\",INDEX('Smelter Look-up'!$C:$C,MATCH($A57,'Smelter Look-up'!$E:$E,0)))","v":""},null,{"$f":"IF(ISERROR($V57),\"\",OFFSET('Smelter Look-up'!$D$4,$V57-4,0)&\"\")","v":""},{"$f":"IF(ISERROR($V57),\"\",OFFSET('Smelter Look-up'!$E$4,$V57-4,0))","v":""},{"$f":"IF(C57=$X$4,\"Enter smelter details\",IF(ISERROR($V57),\"\",OFFSET('Smelter Look-up'!$F$4,$V57-4,0)))","v":""},{"$f":"IF(ISERROR($V57),\"\",OFFSET('Smelter Look-up'!$G$4,$V57-4,0))","v":""},{"$f":"IF(ISERROR($V57),\"\",OFFSET('Smelter Look-up'!$H$4,$V57-4,0))","v":""},{"$f":"IF(ISERROR($V57),\"\",OFFSET('Smelter Look-up'!$I$4,$V57-4,0))","v":""},{"$nulls":7},{"$f":"IF(ISERROR($V57),\"\",OFFSET('Smelter Look-up'!$C$4,$V57-4,0)&\"\")","v":""},"",{"$f":"IF(B57=\"\",\"\",IF(ISERROR(MATCH($J57,SorP!$B$1:$B$5661,0)),\"\",INDIRECT(\"'SorP'!$A$\"&MATCH($J57,SorP!$B$1:$B$5661,0))))","v":""},null,{"$f":"IF(C57=\"\",NA(),MATCH($B57&$C57,'Smelter Look-up'!$J:$J,0))","v":{"$error":"#N/A"}},null,0,null,null,null,""]
[null,{"$f":"IF(LEN(A58)=0,\"\",INDEX('Smelter Look-up'!$A:$A,MATCH($A58,'Smelter Look-up'!$E:$E,0)))","v":""},{"$f":"IF(LEN(A58)=0,\"\",INDEX('Smelter Look-up'!$C:$C,MATCH($A58,'Smelter Look-up'!$E:$E,0)))","v":""},null,{"$f":"IF(ISERROR($V58),\"\",OFFSET('Smelter Look-up'!$D$4,$V58-4,0)&\"\")","v":""},{"$f":"IF(ISERROR($V58),\"\",OFFSET('Smelter Look-up'!$E$4,$V58-4,0))","v":""},{"$f":"IF(C58=$X$4,\"Enter smelter details\",IF(ISERROR($V58),\"\",OFFSET('Smelter Look-up'!$F$4,$V58-4,0)))","v":""},{"$f":"IF(ISERROR($V58),\"\",OFFSET('Smelter Look-up'!$G$4,$V58-4,0))","v":""},{"$f":"IF(ISERROR($V58),\"\",OFFSET('Smelter Look-up'!$H$4,$V58-4,0))","v":""},{"$f":"IF(ISERROR($V58),\"\",OFFSET('Smelter Look-up'!$I$4,$V58-4,0))","v":""},{"$nulls":7},{"$f":"IF(ISERROR($V58),\"\",OFFSET('Smelter Look-up'!$C$4,$V58-4,0)&\"\")","v":""},"",{"$f":"IF(B58=\"\",\"\",IF(ISERROR(MATCH($J58,SorP!$B$1:$B$5661,0)),\"\",INDIRECT(\"'SorP'!$A$\"&MATCH($J58,SorP!$B$1:$B$5661,0))))","v":""},null,{"$f":"IF(C58=\"\",NA(),MATCH($B58&$C58,'Smelter Look-up'!$J:$J,0))","v":{"$error":"#N/A"}},null,0,null,null,null,""]
[null,{"$f":"IF(LEN(A59)=0,\"\",INDEX('Smelter Look-up'!$A:$A,MATCH($A59,'Smelter Look-up'!$E:$E,0)))","v":""},{"$f":"IF(LEN(A59)=0,\"\",INDEX('Smelter Look-up'!$C:$C,MATCH($A59,'Smelter Look-up'!$E:$E,0)))","v":""},null,{"$f":"IF(ISERROR($V59),\"\",OFFSET('Smelter Look-up'!$D$4,$V59-4,0)&\"\")","v":""},{"$f":"IF(ISERROR($V59),\"\",OFFSET('Smelter Look-up'!$E$4,$V59-4,0))","v":""},{"$f":"IF(C59=$X$4,\"Enter smelter details\",IF(ISERROR($V59),\"\",OFFSET('Smelter Look-up'!$F$4,$V59-4,0)))","v":""},{"$f":"IF(ISERROR($V59),\"\",OFFSET('Smelter Look-up'!$G$4,$V59-4,0))","v":""},{"$f":"IF(ISERROR($V59),\"\",OFFSET('Smelter Look-up'!$H$4,$V59-4,0))","v":""},{"$f":"IF(ISERROR($V59),\"\",OFFSET('Smelter Look-up'!$I$4,$V59-4,0))","v":""},{"$nulls":7},{"$f":"IF(ISERROR($V59),\"\",OFFSET('Smelter Look-up'!$C$4,$V59-4,0)&\"\")","v":""},"",{"$f":"IF(B59=\"\",\"\",IF(ISERROR(MATCH($J59,SorP!$B$1:$B$5661,0)),\"\",INDIRECT(\"'SorP'!$A$\"&MATCH($J59,SorP!$B$1:$B$5661,0))))","v":""},null,{"$f":"IF(C59=\"\",NA(),MATCH($B59&$C59,'Smelter Look-up'!$J:$J,0))","v":{"$error":"#N/A"}},null,0,null,null,null,""]
[null,{"$f":"IF(LEN(A60)=0,\"\",INDEX('Smelter Look-up'!$A:$A,MATCH($A60,'Smelter Look-up'!$E:$E,0)))","v":""},{"$f":"IF(LEN(A60)=0,\"\",INDEX('Smelter Look-up'!$C:$C,MATCH($A60,'Smelter Look-up'!$E:$E,0)))","v":""},null,{"$f":"IF(ISERROR($V60),\"\",OFFSET('Smelter Look-up'!$D$4,$V60-4,0)&\"\")","v":""},{"$f":"IF(ISERROR($V60),\"\",OFFSET('Smelter Look-up'!$E$4,$V60-4,0))","v":""},{"$f":"IF(C60=$X$4,\"Enter smelter details\",IF(ISERROR($V60),\"\",OFFSET('Smelter Look-up'!$F$4,$V60-4,0)))","v":""},{"$f":"IF(ISERROR($V60),\"\",OFFSET('Smelter Look-up'!$G$4,$V60-4,0))","v":""},{"$f":"IF(ISERROR($V60),\"\",OFFSET('Smelter Look-up'!$H$4,$V60-4,0))","v":""},{"$f":"IF(ISERROR($V60),\"\",OFFSET('Smelter Look-up'!$I$4,$V60-4,0))","v":""},{"$nulls":7},{"$f":"IF(ISERROR($V60),\"\",OFFSET('Smelter Look-up'!$C$4,$V60-4,0)&\"\")","v":""},"",{"$f":"IF(B60=\"\",\"\",IF(ISERROR(MATCH($J60,SorP!$B$1:$B$5661,0)),\"\",INDIRECT(\"'SorP'!$A$\"&MATCH($J60,SorP!$B$1:$B$5661,0))))","v":""},null,{"$f":"IF(C60=\"\",NA(),MATCH($B60&$C60,'Smelter Look-up'!$J:$J,0))","v":{"$error":"#N/A"}},null,0,null,null,null,""]
[null,{"$f":"IF(LEN(A61)=0,\"\",INDEX('Smelter Look-up'!$A:$A,MATCH($A61,'Smelter Look-up'!$E:$E,0)))","v":""},{"$f":"IF(LEN(A61)=0,\"\",INDEX('Smelter Look-up'!$C:$C,MATCH($A61,'Smelter Look-up'!$E:$E,0)))","v":""},null,{"$f":"IF(ISERROR($V61),\"\",OFFSET('Smelter Look-up'!$D$4,$V61-4,0)&\"\")","v":""},{"$f":"IF(ISERROR($V61),\"\",OFFSET('Smelter Look-up'!$E$4,$V61-4,0))","v":""},{"$f":"IF(C61=$X$4,\"Enter smelter details\",IF(ISERROR($V61),\"\",OFFSET('Smelter Look-up'!$F$4,$V61-4,0)))","v":""},{"$f":"IF(ISERROR($V61),\"\",OFFSET('Smelter Look-up'!$G$4,$V61-4,0))","v":""},{"$f":"IF(ISERROR($V61),\"\",OFFSET('Smelter Look-up'!$H$4,$V61-4,0))","v":""},{"$f":"IF(ISERROR($V61),\"\",OFFSET('Smelter Look-up'!$I$4,$V61-4,0))","v":""},{"$nulls":7},{"$f":"IF(ISERROR($V61),\"\",OFFSET('Smelter Look-up'!$C$4,$V61-4,0)&\"\")","v":""},"",{"$f":"IF(B61=\"\",\"\",IF(ISERROR(MATCH($J61,SorP!$B$1:$B$5661,0)),\"\",INDIRECT(\"'SorP'!$A$\"&MATCH($J61,SorP!$B$1:$B$5661,0))))","v":""},null,{"$f":"IF(C61=\"\",NA(),MATCH($B61&$C61,'Smelter Look-up'!$J:$J,0))","v":{"$error":"#N/A"}},null,0,null,null,null,""]
[null,{"$f":"IF(LEN(A62)=0,\"\",INDEX('Smelter Look-up'!$A:$A,MATCH($A62,'Smelter Look-up'!$E:$E,0)))","v":""},{"$f":"IF(LEN(A62)=0,\"\",INDEX('Smelter Look-up'!$C:$C,MATCH($A62,'Smelter Look-up'!$E:$E,0)))","v":""},null,{"$f":"IF(ISERROR($V62),\"\",OFFSET('Smelter Look-up'!$D$4,$V62-4,0)&\"\")","v":""},{"$f":"IF(ISERROR($V62),\"\",OFFSET('Smelter Look-up'!$E$4,$V62-4,0))","v":""},{"$f":"IF(C62=$X$4,\"Enter smelter details\",IF(ISERROR($V62),\"\",OFFSET('Smelter Look-up'!$F$4,$V62-4,0)))","v":""},{"$f":"IF(ISERROR($V62),\"\",OFFSET('Smelter Look-up'!$G$4,$V62-4,0))","v":""},{"$f":"IF(ISERROR($V62),\"\",OFFSET('Smelter Look-up'!$H$4,$V62-4,0))","v":""},{"$f":"IF(ISERROR($V62),\"\",OFFSET('Smelter Look-up'!$I$4,$V62-4,0))","v":""},{"$nulls":7},{"$f":"IF(ISERROR($V62),\"\",OFFSET('Smelter Look-up'!$C$4,$V62-4,0)&\"\")","v":""},"",{"$f":"IF(B62=\"\",\"\",IF(ISERROR(MATCH($J62,SorP!$B$1:$B$5661,0)),\"\",INDIRECT(\"'SorP'!$A$\"&MATCH($J62,SorP!$B$1:$B$5661,0))))","v":""},null,{"$f":"IF(C62=\"\",NA(),MATCH($B62&$C62,'Smelter Look-up'!$J:$J,0))","v":{"$error":"#N/A"}},null,0,null,null,null,""]
[null,{"$f":"IF(LEN(A63)=0,\"\",INDEX('Smelter Look-up'!$A:$A,MATCH($A63,'Smelter Look-up'!$E:$E,0)))","v":""},{"$f":"IF(LEN(A63)=0,\"\",INDEX('Smelter Look-up'!$C:$C,MATCH($A63,'Smelter Look-up'!$E:$E,0)))","v":""},null,{"$f":"IF(ISERROR($V63),\"\",OFFSET('Smelter Look-up'!$D$4,$V63-4,0)&\"\")","v":""},{"$f":"IF(ISERROR($V63),\"\",OFFSET('Smelter Look-up'!$E$4,$V63-4,0))","v":""},{"$f":"IF(C63=$X$4,\"Enter smelter details\",IF(ISERROR($V63),\"\",OFFSET('Smelter Look-up'!$F$4,$V63-4,0)))","v":""},{"$f":"IF(ISERROR($V63),\"\",OFFSET('Smelter Look-up'!$G$4,$V63-4,0))","v":""},{"$f":"IF(ISERROR($V63),\"\",OFFSET('Smelter Look-up'!$H$4,$V63-4,0))","v":""},{"$f":"IF(ISERROR($V63),\"\",OFFSET('Smelter Look-up'!$I$4,$V63-4,0))","v":""},{"$nulls":7},{"$f":"IF(ISERROR($V63),\"\",OFFSET('Smelter Look-up'!$C$4,$V63-4,0)&\"\")","v":""},"",{"$f":"IF(B63=\"\",\"\",IF(ISERROR(MATCH($J63,SorP!$B$1:$B$5661,0)),\"\",INDIRECT(\"'SorP'!$A$\"&MATCH($J63,SorP!$B$1:$B$5661,0))))","v":""},null,{"$f":"IF(C63=\"\",NA(),MATCH($B63&$C63,'Smelter Look-up'!$J:$J,0))","v":{"$error":"#N/A"}},null,{"$f":"IF(AND(C63=\"Smelter not listed\",OR(LEN(D63)=0,LEN(E63)=0)),1,0)","v":0},null,null,null,{"$f":"B63&C63","v":""}]
[null,{"$f":"IF(LEN(A64)=0,\"\",INDEX('Smelter Look-up'!$A:$A,MATCH($A64,'Smelter Look-up'!$E:$E,0)))","v":""},{"$f":"IF(LEN(A64)=0,\"\",INDEX('Smelter Look-up'!$C:$C,MATCH($A64,'Smelter Look-up'!$E:$E,0)))","v":""},null,{"$f":"IF(ISERROR($V64),\"\",OFFSET('Smelter Look-up'!$D$4,$V64-4,0)&\"\")","v":""},{"$f":"IF(ISERROR($V64),\"\",OFFSET('Smelter Look-up'!$E$4,$V64-4,0))","v":""},{"$f":"IF(C64=$X$4,\"Enter smelter details\",IF(ISERROR($V64),\"\",OFFSET('Smelter Look-up'!$F$4,$V64-4,0)))","v":""},{"$f":"IF(ISERROR($V64),\"\",OFFSET('Smelter Look-up'!$G$4,$V64-4,0))","v":""},{"$f":"IF(ISERROR($V64),\"\",OFFSET('Smelter Look-up'!$H$4,$V64-4,0))","v":""},{"$f":"IF(ISERROR($V64),\"\",OFFSET('Smelter Look-up'!$I$4,$V64-4,0))","v":""},{"$nulls":7},{"$f":"IF(ISERROR($V64),\"\",OFFSET('Smelter Look-up'!$C$4,$V64-4,0)&\"\")","v":""},{"$f":"IF(B64=\"\",\"\",IF(ISERROR(MATCH($E64,CL,0)),\"Unknown\",INDIRECT(\"'C'!$A$\"&MATCH($E64,CL,0)+1)))","v":""},{"$f":"IF(B64=\"\",\"\",IF(ISERROR(MATCH($J64,SorP!$B$1:$B$5661,0)),\"\",INDIRECT(\"'SorP'!$A$\"&MATCH($J64,SorP!$B$1:$B$5661,0))))","v":""},null,{"$f":"IF(C64=\"\",NA(),MATCH($B64&$C64,'Smelter Look-up'!$J:$J,0))","v":{"$error":"#N/A"}},null,0,null,null,null,""]
[null,{"$f":"IF(LEN(A65)=0,\"\",INDEX('Smelter Look-up'!$A:$A,MATCH($A65,'Smelter Look-up'!$E:$E,0)))","v":""},{"$f":"IF(LEN(A65)=0,\"\",INDEX('Smelter Look-up'!$C:$C,MATCH($A65,'Smelter Look-up'!$E:$E,0)))","v":""},null,{"$f":"IF(ISERROR($V65),\"\",OFFSET('Smelter Look-up'!$D$4,$V65-4,0)&\"\")","v":""},{"$f":"IF(ISERROR($V65),\"\",OFFSET('Smelter Look-up'!$E$4,$V65-4,0))","v":""},{"$f":"IF(C65=$X$4,\"Enter smelter details\",IF(ISERROR($V65),\"\",OFFSET('Smelter Look-up'!$F$4,$V65-4,0)))","v":""},{"$f":"IF(ISERROR($V65),\"\",OFFSET('Smelter Look-up'!$G$4,$V65-4,0))","v":""},{"$f":"IF(ISERROR($V65),\"\",OFFSET('Smelter Look-up'!$H$4,$V65-4,0))","v":""},{"$f":"IF(ISERROR($V65),\"\",OFFSET('Smelter Look-up'!$I$4,$V65-4,0))","v":""},{"$nulls":7},{"$f":"IF(ISERROR($V65),\"\",OFFSET('Smelter Look-up'!$C$4,$V65-4,0)&\"\")","v":""},"",{"$f":"IF(B65=\"\",\"\",IF(ISERROR(MATCH($J65,SorP!$B$1:$B$5661,0)),\"\",INDIRECT(\"'SorP'!$A$\"&MATCH($J65,SorP!$B$1:$B$5661,0))))","v":""},null,{"$f":"IF(C65=\"\",NA(),MATCH($B65&$C65,'Smelter Look-up'!$J:$J,0))","v":{"$error":"#N/A"}},null,0,null,null,null,""]
[null,{"$f":"IF(LEN(A66)=0,\"\",INDEX('Smelter Look-up'!$A:$A,MATCH($A66,'Smelter Look-up'!$E:$E,0)))","v":""},{"$f":"IF(LEN(A66)=0,\"\",INDEX('Smelter Look-up'!$C:$C,MATCH($A66,'Smelter Look-up'!$E:$E,0)))","v":""},null,{"$f":"IF(ISERROR($V66),\"\",OFFSET('Smelter Look-up'!$D$4,$V66-4,0)&\"\")","v":""},{"$f":"IF(ISERROR($V66),\"\",OFFSET('Smelter Look-up'!$E$4,$V66-4,0))","v":""},{"$f":"IF(C66=$X$4,\"Enter smelter details\",IF(ISERROR($V66),\"\",OFFSET('Smelter Look-up'!$F$4,$V66-4,0)))","v":""},{"$f":"IF(ISERROR($V66),\"\",OFFSET('Smelter Look-up'!$G$4,$V66-4,0))","v":""},{"$f":"IF(ISERROR($V66),\"\",OFFSET('Smelter Look-up'!$H$4,$V66-4,0))","v":""},{"$f":"IF(ISERROR($V66),\"\",OFFSET('Smelter Look-up'!$I$4,$V66-4,0))","v":""},{"$nulls":7},{"$f":"IF(ISERROR($V66),\"\",OFFSET('Smelter Look-up'!$C$4,$V66-4,0)&\"\")","v":""},"",{"$f":"IF(B66=\"\",\"\",IF(ISERROR(MATCH($J66,SorP!$B$1:$B$5661,0)),\"\",INDIRECT(\"'SorP'!$A$\"&MATCH($J66,SorP!$B$1:$B$5661,0))))","v":""},null,{"$f":"IF(C66=\"\",NA(),MATCH($B66&$C66,'Smelter Look-up'!$J:$J,0))","v":{"$error":"#N/A"}},null,0,null,null,null,""]
[null,{"$f":"IF(LEN(A67)=0,\"\",INDEX('Smelter Look-up'!$A:$A,MATCH($A67,'Smelter Look-up'!$E:$E,0)))","v":""},{"$f":"IF(LEN(A67)=0,\"\",INDEX('Smelter Look-up'!$C:$C,MATCH($A67,'Smelter Look-up'!$E:$E,0)))","v":""},null,{"$f":"IF(ISERROR($V67),\"\",OFFSET('Smelter Look-up'!$D$4,$V67-4,0)&\"\")","v":""},{"$f":"IF(ISERROR($V67),\"\",OFFSET('Smelter Look-up'!$E$4,$V67-4,0))","v":""},{"$f":"IF(C67=$X$4,\"Enter smelter details\",IF(ISERROR($V67),\"\",OFFSET('Smelter Look-up'!$F$4,$V67-4,0)))","v":""},{"$f":"IF(ISERROR($V67),\"\",OFFSET('Smelter Look-up'!$G$4,$V67-4,0))","v":""},{"$f":"IF(ISERROR($V67),\"\",OFFSET('Smelter Look-up'!$H$4,$V67-4,0))","v":""},{"$f":"IF(ISERROR($V67),\"\",OFFSET('Smelter Look-up'!$I$4,$V67-4,0))","v":""},{"$nulls":7},{"$f":"IF(ISERROR($V67),\"\",OFFSET('Smelter Look-up'!$C$4,$V67-4,0)&\"\")","v":""},"",{"$f":"IF(B67=\"\",\"\",IF(ISERROR(MATCH($J67,SorP!$B$1:$B$5661,0)),\"\",INDIRECT(\"'SorP'!$A$\"&MATCH($J67,SorP!$B$1:$B$5661,0))))","v":""},null,{"$f":"IF(C67=\"\",NA(),MATCH($B67&$C67,'Smelter Look-up'!$J:$J,0))","v":{"$error":"#N/A"}},null,0,null,null,null,""]
[null,{"$f":"IF(LEN(A68)=0,\"\",INDEX('Smelter Look-up'!$A:$A,MATCH($A68,'Smelter Look-up'!$E:$E,0)))","v":""},{"$f":"IF(LEN(A68)=0,\"\",INDEX('Smelter Look-up'!$C:$C,MATCH($A68,'Smelter Look-up'!$E:$E,0)))","v":""},null,{"$f":"IF(ISERROR($V68),\"\",OFFSET('Smelter Look-up'!$D$4,$V68-4,0)&\"\")","v":""},{"$f":"IF(ISERROR($V68),\"\",OFFSET('Smelter Look-up'!$E$4,$V68-4,0))","v":""},{"$f":"IF(C68=$X$4,\"Enter smelter details\",IF(ISERROR($V68),\"\",OFFSET('Smelter Look-up'!$F$4,$V68-4,0)))","v":""},{"$f":"IF(ISERROR($V68),\"\",OFFSET('Smelter Look-up'!$G$4,$V68-4,0))","v":""},{"$f":"IF(ISERROR($V68),\"\",OFFSET('Smelter Look-up'!$H$4,$V68-4,0))","v":""},{"$f":"IF(ISERROR($V68),\"\",OFFSET('Smelter Look-up'!$I$4,$V68-4,0))","v":""},{"$nulls":7},{"$f":"IF(ISERROR($V68),\"\",OFFSET('Smelter Look-up'!$C$4,$V68-4,0)&\"\")","v":""},"",{"$f":"IF(B68=\"\",\"\",IF(ISERROR(MATCH($J68,SorP!$B$1:$B$5661,0)),\"\",INDIRECT(\"'SorP'!$A$\"&MATCH($J68,SorP!$B$1:$B$5661,0))))","v":""},null,{"$f":"IF(C68=\"\",NA(),MATCH($B68&$C68,'Smelter Look-up'!$J:$J,0))","v":{"$error":"#N/A"}},null,0,null,null,null,""]
[null,{"$f":"IF(LEN(A69)=0,\"\",INDEX('Smelter Look-up'!$A:$A,MATCH($A69,'Smelter Look-up'!$E:$E,0)))","v":""},{"$f":"IF(LEN(A69)=0,\"\",INDEX('Smelter Look-up'!$C:$C,MATCH($A69,'Smelter Look-up'!$E:$E,0)))","v":""},null,{"$f":"IF(ISERROR($V69),\"\",OFFSET('Smelter Look-up'!$D$4,$V69-4,0)&\"\")","v":""},{"$f":"IF(ISERROR($V69),\"\",OFFSET('Smelter Look-up'!$E$4,$V69-4,0))","v":""},{"$f":"IF(C69=$X$4,\"Enter smelter details\",IF(ISERROR($V69),\"\",OFFSET('Smelter Look-up'!$F$4,$V69-4,0)))","v":""},{"$f":"IF(ISERROR($V69),\"\",OFFSET('Smelter Look-up'!$G$4,$V69-4,0))","v":""},{"$f":"IF(ISERROR($V69),\"\",OFFSET('Smelter Look-up'!$H$4,$V69-4,0))","v":""},{"$f":"IF(ISERROR($V69),\"\",OFFSET('Smelter Look-up'!$I$4,$V69-4,0))","v":""},{"$nulls":7},{"$f":"IF(ISERROR($V69),\"\",OFFSET('Smelter Look-up'!$C$4,$V69-4,0)&\"\")","v":""},"",{"$f":"IF(B69=\"\",\"\",IF(ISERROR(MATCH($J69,SorP!$B$1:$B$5661,0)),\"\",INDIRECT(\"'SorP'!$A$\"&MATCH($J69,SorP!$B$1:$B$5661,0))))","v":""},null,{"$f":"IF(C69=\"\",NA(),MATCH($B69&$C69,'Smelter Look-up'!$J:$J,0))","v":{"$error":"#N/A"}},null,0,null,null,null,""]
[null,{"$f":"IF(LEN(A70)=0,\"\",INDEX('Smelter Look-up'!$A:$A,MATCH($A70,'Smelter Look-up'!$E:$E,0)))","v":""},{"$f":"IF(LEN(A70)=0,\"\",INDEX('Smelter Look-up'!$C:$C,MATCH($A70,'Smelter Look-up'!$E:$E,0)))","v":""},null,{"$f":"IF(ISERROR($V70),\"\",OFFSET('Smelter Look-up'!$D$4,$V70-4,0)&\"\")","v":""},{"$f":"IF(ISERROR($V70),\"\",OFFSET('Smelter Look-up'!$E$4,$V70-4,0))","v":""},{"$f":"IF(C70=$X$4,\"Enter smelter details\",IF(ISERROR($V70),\"\",OFFSET('Smelter Look-up'!$F$4,$V70-4,0)))","v":""},{"$f":"IF(ISERROR($V70),\"\",OFFSET('Smelter Look-up'!$G$4,$V70-4,0))","v":""},{"$f":"IF(ISERROR($V70),\"\",OFFSET('Smelter Look-up'!$H$4,$V70-4,0))","v":""},{"$f":"IF(ISERROR($V70),\"\",OFFSET('Smelter Look-up'!$I$4,$V70-4,0))","v":""},{"$nulls":7},{"$f":"IF(ISERROR($V70),\"\",OFFSET('Smelter Look-up'!$C$4,$V70-4,0)&\"\")","v":""},"",{"$f":"IF(B70=\"\",\"\",IF(ISERROR(MATCH($J70,SorP!$B$1:$B$5661,0)),\"\",INDIRECT(\"'SorP'!$A$\"&MATCH($J70,SorP!$B$1:$B$5661,0))))","v":""},null,{"$f":"IF(C70=\"\",NA(),MATCH($B70&$C70,'Smelter Look-up'!$J:$J,0))","v":{"$error":"#N/A"}},null,0,null,null,null,""]
[null,{"$f":"IF(LEN(A71)=0,\"\",INDEX('Smelter Look-up'!$A:$A,MATCH($A71,'Smelter Look-up'!$E:$E,0)))","v":""},{"$f":"IF(LEN(A71)=0,\"\",INDEX('Smelter Look-up'!$C:$C,MATCH($A71,'Smelter Look-up'!$E:$E,0)))","v":""},null,{"$f":"IF(ISERROR($V71),\"\",OFFSET('Smelter Look-up'!$D$4,$V71-4,0)&\"\")","v":""},{"$f":"IF(ISERROR($V71),\"\",OFFSET('Smelter Look-up'!$E$4,$V71-4,0))","v":""},{"$f":"IF(C71=$X$4,\"Enter smelter details\",IF(ISERROR($V71),\"\",OFFSET('Smelter Look-up'!$F$4,$V71-4,0)))","v":""},{"$f":"IF(ISERROR($V71),\"\",OFFSET('Smelter Look-up'!$G$4,$V71-4,0))","v":""},{"$f":"IF(ISERROR($V71),\"\",OFFSET('Smelter Look-up'!$H$4,$V71-4,0))","v":""},{"$f":"IF(ISERROR($V71),\"\",OFFSET('Smelter Look-up'!$I$4,$V71-4,0))","v":""},{"$nulls":7},{"$f":"IF(ISERROR($V71),\"\",OFFSET('Smelter Look-up'!$C$4,$V71-4,0)&\"\")","v":""},"",{"$f":"IF(B71=\"\",\"\",IF(ISERROR(MATCH($J71,SorP!$B$1:$B$5661,0)),\"\",INDIRECT(\"'SorP'!$A$\"&MATCH($J71,SorP!$B$1:$B$5661,0))))","v":""},null,{"$f":"IF(C71=\"\",NA(),MATCH($B71&$C71,'Smelter Look-up'!$J:$J,0))","v":{"$error":"#N/A"}},null,0,null,null,null,""]
[null,{"$f":"IF(LEN(A72)=0,\"\",INDEX('Smelter Look-up'!$A:$A,MATCH($A72,'Smelter Look-up'!$E:$E,0)))","v":""},{"$f":"IF(LEN(A72)=0,\"\",INDEX('Smelter Look-up'!$C:$C,MATCH($A72,'Smelter Look-up'!$E:$E,0)))","v":""},null,{"$f":"IF(ISERROR($V72),\"\",OFFSET('Smelter Look-up'!$D$4,$V72-4,0)&\"\")","v":""},{"$f":"IF(ISERROR($V72),\"\",OFFSET('Smelter Look-up'!$E$4,$V72-4,0))","v":""},{"$f":"IF(C72=$X$4,\"Enter smelter details\",IF(ISERROR($V72),\"\",OFFSET('Smelter Look-up'!$F$4,$V72-4,0)))","v":""},{"$f":"IF(ISERROR($V72),\"\",OFFSET('Smelter Look-up'!$G$4,$V72-4,0))","v":""},{"$f":"IF(ISERROR($V72),\"\",OFFSET('Smelter Look-up'!$H$4,$V72-4,0))","v":""},{"$f":"IF(ISERROR($V72),\"\",OFFSET('Smelter Look-up'!$I$4,$V72-4,0))","v":""},{"$nulls":7},{"$f":"IF(ISERROR($V72),\"\",OFFSET('Smelter Look-up'!$C$4,$V72-4,0)&\"\")","v":""},"",{"$f":"IF(B72=\"\",\"\",IF(ISERROR(MATCH($J72,SorP!$B$1:$B$5661,0)),\"\",INDIRECT(\"'SorP'!$A$\"&MATCH($J72,SorP!$B$1:$B$5661,0))))","v":""},null,{"$f":"IF(C72=\"\",NA(),MATCH($B72&$C72,'Smelter Look-up'!$J:$J,0))","v":{"$error":"#N/A"}},null,0,null,null,null,""]
[null,{"$f":"IF(LEN(A73)=0,\"\",INDEX('Smelter Look-up'!$A:$A,MATCH($A73,'Smelter Look-up'!$E:$E,0)))","v":""},{"$f":"IF(LEN(A73)=0,\"\",INDEX('Smelter Look-up'!$C:$C,MATCH($A73,'Smelter Look-up'!$E:$E,0)))","v":""},null,{"$f":"IF(ISERROR($V73),\"\",OFFSET('Smelter Look-up'!$D$4,$V73-4,0)&\"\")","v":""},{"$f":"IF(ISERROR($V73),\"\",OFFSET('Smelter Look-up'!$E$4,$V73-4,0))","v":""},{"$f":"IF(C73=$X$4,\"Enter smelter details\",IF(ISERROR($V73),\"\",OFFSET('Smelter Look-up'!$F$4,$V73-4,0)))","v":""},{"$f":"IF(ISERROR($V73),\"\",OFFSET('Smelter Look-up'!$G$4,$V73-4,0))","v":""},{"$f":"IF(ISERROR($V73),\"\",OFFSET('Smelter Look-up'!$H$4,$V73-4,0))","v":""},{"$f":"IF(ISERROR($V73),\"\",OFFSET('Smelter Look-up'!$I$4,$V73-4,0))","v":""},{"$nulls":7},{"$f":"IF(ISERROR($V73),\"\",OFFSET('Smelter Look-up'!$C$4,$V73-4,0)&\"\")","v":""},"",{"$f":"IF(B73=\"\",\"\",IF(ISERROR(MATCH($J73,SorP!$B$1:$B$5661,0)),\"\",INDIRECT(\"'SorP'!$A$\"&MATCH($J73,SorP!$B$1:$B$5661,0))))","v":""},null,{"$f":"IF(C73=\"\",NA(),MATCH($B73&$C73,'Smelter Look-up'!$J:$J,0))","v":{"$error":"#N/A"}},null,0,null,null,null,""]
[null,{"$f":"IF(LEN(A74)=0,\"\",INDEX('Smelter Look-up'!$A:$A,MATCH($A74,'Smelter Look-up'!$E:$E,0)))","v":""},{"$f":"IF(LEN(A74)=0,\"\",INDEX('Smelter Look-up'!$C:$C,MATCH($A74,'Smelter Look-up'!$E:$E,0)))","v":""},null,{"$f":"IF(ISERROR($V74),\"\",OFFSET('Smelter Look-up'!$D$4,$V74-4,0)&\"\")","v":""},{"$f":"IF(ISERROR($V74),\"\",OFFSET('Smelter Look-up'!$E$4,$V74-4,0))","v":""},{"$f":"IF(C74=$X$4,\"Enter smelter details\",IF(ISERROR($V74),\"\",OFFSET('Smelter Look-up'!$F$4,$V74-4,0)))","v":""},{"$f":"IF(ISERROR($V74),\"\",OFFSET('Smelter Look-up'!$G$4,$V74-4,0))","v":""},{"$f":"IF(ISERROR($V74),\"\",OFFSET('Smelter Look-up'!$H$4,$V74-4,0))","v":""},{"$f":"IF(ISERROR($V74),\"\",OFFSET('Smelter Look-up'!$I$4,$V74-4,0))","v":""},{"$nulls":7},{"$f":"IF(ISERROR($V74),\"\",OFFSET('Smelter Look-up'!$C$4,$V74-4,0)&\"\")","v":""},"",{"$f":"IF(B74=\"\",\"\",IF(ISERROR(MATCH($J74,SorP!$B$1:$B$5661,0)),\"\",INDIRECT(\"'SorP'!$A$\"&MATCH($J74,SorP!$B$1:$B$5661,0))))","v":""},null,{"$f":"IF(C74=\"\",NA(),MATCH($B74&$C74,'Smelter Look-up'!$J:$J,0))","v":{"$error":"#N/A"}},null,0,null,null,null,""]
[null,{"$f":"IF(LEN(A75)=0,\"\",INDEX('Smelter Look-up'!$A:$A,MATCH($A75,'Smelter Look-up'!$E:$E,0)))","v":""},{"$f":"IF(LEN(A75)=0,\"\",INDEX('Smelter Look-up'!$C:$C,MATCH($A75,'Smelter Look-up'!$E:$E,0)))","v":""},null,{"$f":"IF(ISERROR($V75),\"\",OFFSET('Smelter Look-up'!$D$4,$V75-4,0)&\"\")","v":""},{"$f":"IF(ISERROR($V75),\"\",OFFSET('Smelter Look-up'!$E$4,$V75-4,0))","v":""},{"$f":"IF(C75=$X$4,\"Enter smelter details\",IF(ISERROR($V75),\"\",OFFSET('Smelter Look-up'!$F$4,$V75-4,0)))","v":""},{"$f":"IF(ISERROR($V75),\"\",OFFSET('Smelter Look-up'!$G$4,$V75-4,0))","v":""},{"$f":"IF(ISERROR($V75),\"\",OFFSET('Smelter Look-up'!$H$4,$V75-4,0))","v":""},{"$f":"IF(ISERROR($V75),\"\",OFFSET('Smelter Look-up'!$I$4,$V75-4,0))","v":""},{"$nulls":7},{"$f":"IF(ISERROR($V75),\"\",OFFSET('Smelter Look-up'!$C$4,$V75-4,0)&\"\")","v":""},"",{"$f":"IF(B75=\"\",\"\",IF(ISERROR(MATCH($J75,SorP!$B$1:$B$5661,0)),\"\",INDIRECT(\"'SorP'!$A$\"&MATCH($J75,SorP!$B$1:$B$5661,0))))","v":""},null,{"$f":"IF(C75=\"\",NA(),MATCH($B75&$C75,'Smelter Look-up'!$J:$J,0))","v":{"$error":"#N/A"}},null,0,null,null,null,""]
[null,{"$f":"IF(LEN(A76)=0,\"\",INDEX('Smelter Look-up'!$A:$A,MATCH($A76,'Smelter Look-up'!$E:$E,0)))","v":""},{"$f":"IF(LEN(A76)=0,\"\",INDEX('Smelter Look-up'!$C:$C,MATCH($A76,'Smelter Look-up'!$E:$E,0)))","v":""},null,{"$f":"IF(ISERROR($V76),\"\",OFFSET('Smelter Look-up'!$D$4,$V76-4,0)&\"\")","v":""},{"$f":"IF(ISERROR($V76),\"\",OFFSET('Smelter Look-up'!$E$4,$V76-4,0))","v":""},{"$f":"IF(C76=$X$4,\"Enter smelter details\",IF(ISERROR($V76),\"\",OFFSET('Smelter Look-up'!$F$4,$V76-4,0)))","v":""},{"$f":"IF(ISERROR($V76),\"\",OFFSET('Smelter Look-up'!$G$4,$V76-4,0))","v":""},{"$f":"IF(ISERROR($V76),\"\",OFFSET('Smelter Look-up'!$H$4,$V76-4,0))","v":""},{"$f":"IF(ISERROR($V76),\"\",OFFSET('Smelter Look-up'!$I$4,$V76-4,0))","v":""},{"$nulls":7},{"$f":"IF(ISERROR($V76),\"\",OFFSET('Smelter Look-up'!$C$4,$V76-4,0)&\"\")","v":""},"",{"$f":"IF(B76=\"\",\"\",IF(ISERROR(MATCH($J76,SorP!$B$1:$B$5661,0)),\"\",INDIRECT(\"'SorP'!$A$\"&MATCH($J76,SorP!$B$1:$B$5661,0))))","v":""},null,{"$f":"IF(C76=\"\",NA(),MATCH($B76&$C76,'Smelter Look-up'!$J:$J,0))","v":{"$error":"#N/A"}},null,0,null,null,null,""]
[null,{"$f":"IF(LEN(A77)=0,\"\",INDEX('Smelter Look-up'!$A:$A,MATCH($A77,'Smelter Look-up'!$E:$E,0)))","v":""},{"$f":"IF(LEN(A77)=0,\"\",INDEX('Smelter Look-up'!$C:$C,MATCH($A77,'Smelter Look-up'!$E:$E,0)))","v":""},null,{"$f":"IF(ISERROR($V77),\"\",OFFSET('Smelter Look-up'!$D$4,$V77-4,0)&\"\")","v":""},{"$f":"IF(ISERROR($V77),\"\",OFFSET('Smelter Look-up'!$E$4,$V77-4,0))","v":""},{"$f":"IF(C77=$X$4,\"Enter smelter details\",IF(ISERROR($V77),\"\",OFFSET('Smelter Look-up'!$F$4,$V77-4,0)))","v":""},{"$f":"IF(ISERROR($V77),\"\",OFFSET('Smelter Look-up'!$G$4,$V77-4,0))","v":""},{"$f":"IF(ISERROR($V77),\"\",OFFSET('Smelter Look-up'!$H$4,$V77-4,0))","v":""},{"$f":"IF(ISERROR($V77),\"\",OFFSET('Smelter Look-up'!$I$4,$V77-4,0))","v":""},{"$nulls":7},{"$f":"IF(ISERROR($V77),\"\",OFFSET('Smelter Look-up'!$C$4,$V77-4,0)&\"\")","v":""},"",{"$f":"IF(B77=\"\",\"\",IF(ISERROR(MATCH($J77,SorP!$B$1:$B$5661,0)),\"\",INDIRECT(\"'SorP'!$A$\"&MATCH($J77,SorP!$B$1:$B$5661,0))))","v":""},null,{"$f":"IF(C77=\"\",NA(),MATCH($B77&$C77,'Smelter Look-up'!$J:$J,0))","v":{"$error":"#N/A"}},null,0,null,null,null,""]
[null,{"$f":"IF(LEN(A78)=0,\"\",INDEX('Smelter Look-up'!$A:$A,MATCH($A78,'Smelter Look-up'!$E:$E,0)))","v":""},{"$f":"IF(LEN(A78)=0,\"\",INDEX('Smelter Look-up'!$C:$C,MATCH($A78,'Smelter Look-up'!$E:$E,0)))","v":""},null,{"$f":"IF(ISERROR($V78),\"\",OFFSET('Smelter Look-up'!$D$4,$V78-4,0)&\"\")","v":""},{"$f":"IF(ISERROR($V78),\"\",OFFSET('Smelter Look-up'!$E$4,$V78-4,0))","v":""},{"$f":"IF(C78=$X$4,\"Enter smelter details\",IF(ISERROR($V78),\"\",OFFSET('Smelter Look-up'!$F$4,$V78-4,0)))","v":""},{"$f":"IF(ISERROR($V78),\"\",OFFSET('Smelter Look-up'!$G$4,$V78-4,0))","v":""},{"$f":"IF(ISERROR($V78),\"\",OFFSET('Smelter Look-up'!$H$4,$V78-4,0))","v":""},{"$f":"IF(ISERROR($V78),\"\",OFFSET('Smelter Look-up'!$I$4,$V78-4,0))","v":""},{"$nulls":7},{"$f":"IF(ISERROR($V78),\"\",OFFSET('Smelter Look-up'!$C$4,$V78-4,0)&\"\")","v":""},"",{"$f":"IF(B78=\"\",\"\",IF(ISERROR(MATCH($J78,SorP!$B$1:$B$5661,0)),\"\",INDIRECT(\"'SorP'!$A$\"&MATCH($J78,SorP!$B$1:$B$5661,0))))","v":""},null,{"$f":"IF(C78=\"\",NA(),MATCH($B78&$C78,'Smelter Look-up'!$J:$J,0))","v":{"$error":"#N/A"}},null,0,null,null,null,""]
[null,{"$f":"IF(LEN(A79)=0,\"\",INDEX('Smelter Look-up'!$A:$A,MATCH($A79,'Smelter Look-up'!$E:$E,0)))","v":""},{"$f":"IF(LEN(A79)=0,\"\",INDEX('Smelter Look-up'!$C:$C,MATCH($A79,'Smelter Look-up'!$E:$E,0)))","v":""},null,{"$f":"IF(ISERROR($V79),\"\",OFFSET('Smelter Look-up'!$D$4,$V79-4,0)&\"\")","v":""},{"$f":"IF(ISERROR($V79),\"\",OFFSET('Smelter Look-up'!$E$4,$V79-4,0))","v":""},{"$f":"IF(C79=$X$4,\"Enter smelter details\",IF(ISERROR($V79),\"\",OFFSET('Smelter Look-up'!$F$4,$V79-4,0)))","v":""},{"$f":"IF(ISERROR($V79),\"\",OFFSET('Smelter Look-up'!$G$4,$V79-4,0))","v":""},{"$f":"IF(ISERROR($V79),\"\",OFFSET('Smelter Look-up'!$H$4,$V79-4,0))","v":""},{"$f":"IF(ISERROR($V79),\"\",OFFSET('Smelter Look-up'!$I$4,$V79-4,0))","v":""},{"$nulls":7},{"$f":"IF(ISERROR($V79),\"\",OFFSET('Smelter Look-up'!$C$4,$V79-4,0)&\"\")","v":""},"",{"$f":"IF(B79=\"\",\"\",IF(ISERROR(MATCH($J79,SorP!$B$1:$B$5661,0)),\"\",INDIRECT(\"'SorP'!$A$\"&MATCH($J79,SorP!$B$1:$B$5661,0))))","v":""},null,{"$f":"IF(C79=\"\",NA(),MATCH($B79&$C79,'Smelter Look-up'!$J:$J,0))","v":{"$error":"#N/A"}},null,0,null,null,null,""]
[null,{"$f":"IF(LEN(A80)=0,\"\",INDEX('Smelter Look-up'!$A:$A,MATCH($A80,'Smelter Look-up'!$E:$E,0)))","v":""},{"$f":"IF(LEN(A80)=0,\"\",INDEX('Smelter Look-up'!$C:$C,MATCH($A80,'Smelter Look-up'!$E:$E,0)))","v":""},null,{"$f":"IF(ISERROR($V80),\"\",OFFSET('Smelter Look-up'!$D$4,$V80-4,0)&\"\")","v":""},{"$f":"IF(ISERROR($V80),\"\",OFFSET('Smelter Look-up'!$E$4,$V80-4,0))","v":""},{"$f":"IF(C80=$X$4,\"Enter smelter details\",IF(ISERROR($V80),\"\",OFFSET('Smelter Look-up'!$F$4,$V80-4,0)))","v":""},{"$f":"IF(ISERROR($V80),\"\",OFFSET('Smelter Look-up'!$G$4,$V80-4,0))","v":""},{"$f":"IF(ISERROR($V80),\"\",OFFSET('Smelter Look-up'!$H$4,$V80-4,0))","v":""},{"$f":"IF(ISERROR($V80),\"\",OFFSET('Smelter Look-up'!$I$4,$V80-4,0))","v":""},{"$nulls":7},{"$f":"IF(ISERROR($V80),\"\",OFFSET('Smelter Look-up'!$C$4,$V80-4,0)&\"\")","v":""},"",{"$f":"IF(B80=\"\",\"\",IF(ISERROR(MATCH($J80,SorP!$B$1:$B$5661,0)),\"\",INDIRECT(\"'SorP'!$A$\"&MATCH($J80,SorP!$B$1:$B$5661,0))))","v":""},null,{"$f":"IF(C80=\"\",NA(),MATCH($B80&$C80,'Smelter Look-up'!$J:$J,0))","v":{"$error":"#N/A"}},null,0,null,null,null,""]
[null,{"$f":"IF(LEN(A81)=0,\"\",INDEX('Smelter Look-up'!$A:$A,MATCH($A81,'Smelter Look-up'!$E:$E,0)))","v":""},{"$f":"IF(LEN(A81)=0,\"\",INDEX('Smelter Look-up'!$C:$C,MATCH($A81,'Smelter Look-up'!$E:$E,0)))","v":""},null,{"$f":"IF(ISERROR($V81),\"\",OFFSET('Smelter Look-up'!$D$4,$V81-4,0)&\"\")","v":""},{"$f":"IF(ISERROR($V81),\"\",OFFSET('Smelter Look-up'!$E$4,$V81-4,0))","v":""},{"$f":"IF(C81=$X$4,\"Enter smelter details\",IF(ISERROR($V81),\"\",OFFSET('Smelter Look-up'!$F$4,$V81-4,0)))","v":""},{"$f":"IF(ISERROR($V81),\"\",OFFSET('Smelter Look-up'!$G$4,$V81-4,0))","v":""},{"$f":"IF(ISERROR($V81),\"\",OFFSET('Smelter Look-up'!$H$4,$V81-4,0))","v":""},{"$f":"IF(ISERROR($V81),\"\",OFFSET('Smelter Look-up'!$I$4,$V81-4,0))","v":""},{"$nulls":7},{"$f":"IF(ISERROR($V81),\"\",OFFSET('Smelter Look-up'!$C$4,$V81-4,0)&\"\")","v":""},"",{"$f":"IF(B81=\"\",\"\",IF(ISERROR(MATCH($J81,SorP!$B$1:$B$5661,0)),\"\",INDIRECT(\"'SorP'!$A$\"&MATCH($J81,SorP!$B$1:$B$5661,0))))","v":""},null,{"$f":"IF(C81=\"\",NA(),MATCH($B81&$C81,'Smelter Look-up'!$J:$J,0))","v":{"$error":"#N/A"}},null,0,null,null,null,""]
[null,{"$f":"IF(LEN(A82)=0,\"\",INDEX('Smelter Look-up'!$A:$A,MATCH($A82,'Smelter Look-up'!$E:$E,0)))","v":""},{"$f":"IF(LEN(A82)=0,\"\",INDEX('Smelter Look-up'!$C:$C,MATCH($A82,'Smelter Look-up'!$E:$E,0)))","v":""},null,{"$f":"IF(ISERROR($V82),\"\",OFFSET('Smelter Look-up'!$D$4,$V82-4,0)&\"\")","v":""},{"$f":"IF(ISERROR($V82),\"\",OFFSET('Smelter Look-up'!$E$4,$V82-4,0))","v":""},{"$f":"IF(C82=$X$4,\"Enter smelter details\",IF(ISERROR($V82),\"\",OFFSET('Smelter Look-up'!$F$4,$V82-4,0)))","v":""},{"$f":"IF(ISERROR($V82),\"\",OFFSET('Smelter Look-up'!$G$4,$V82-4,0))","v":""},{"$f":"IF(ISERROR($V82),\"\",OFFSET('Smelter Look-up'!$H$4,$V82-4,0))","v":""},{"$f":"IF(ISERROR($V82),\"\",OFFSET('Smelter Look-up'!$I$4,$V82-4,0))","v":""},{"$nulls":7},{"$f":"IF(ISERROR($V82),\"\",OFFSET('Smelter Look-up'!$C$4,$V82-4,0)&\"\")","v":""},"",{"$f":"IF(B82=\"\",\"\",IF(ISERROR(MATCH($J82,SorP!$B$1:$B$5661,0)),\"\",INDIRECT(\"'SorP'!$A$\"&MATCH($J82,SorP!$B$1:$B$5661,0))))","v":""},null,{"$f":"IF(C82=\"\",NA(),MATCH($B82&$C82,'Smelter Look-up'!$J:$J,0))","v":{"$error":"#N/A"}},null,0,null,null,null,""]
[null,{"$f":"IF(LEN(A83)=0,\"\",INDEX('Smelter Look-up'!$A:$A,MATCH($A83,'Smelter Look-up'!$E:$E,0)))","v":""},{"$f":"IF(LEN(A83)=0,\"\",INDEX('Smelter Look-up'!$C:$C,MATCH($A83,'Smelter Look-up'!$E:$E,0)))","v":""},null,{"$f":"IF(ISERROR($V83),\"\",OFFSET('Smelter Look-up'!$D$4,$V83-4,0)&\"\")","v":""},{"$f":"IF(ISERROR($V83),\"\",OFFSET('Smelter Look-up'!$E$4,$V83-4,0))","v":""},{"$f":"IF(C83=$X$4,\"Enter smelter details\",IF(ISERROR($V83),\"\",OFFSET('Smelter Look-up'!$F$4,$V83-4,0)))","v":""},{"$f":"IF(ISERROR($V83),\"\",OFFSET('Smelter Look-up'!$G$4,$V83-4,0))","v":""},{"$f":"IF(ISERROR($V83),\"\",OFFSET('Smelter Look-up'!$H$4,$V83-4,0))","v":""},{"$f":"IF(ISERROR($V83),\"\",OFFSET('Smelter Look-up'!$I$4,$V83-4,0))","v":""},{"$nulls":7},{"$f":"IF(ISERROR($V83),\"\",OFFSET('Smelter Look-up'!$C$4,$V83-4,0)&\"\")","v":""},"",{"$f":"IF(B83=\"\",\"\",IF(ISERROR(MATCH($J83,SorP!$B$1:$B$5661,0)),\"\",INDIRECT(\"'SorP'!$A$\"&MATCH($J83,SorP!$B$1:$B$5661,0))))","v":""},null,{"$f":"IF(C83=\"\",NA(),MATCH($B83&$C83,'Smelter Look-up'!$J:$J,0))","v":{"$error":"#N/A"}},null,0,null,null,null,""]
[null,{"$f":"IF(LEN(A84)=0,\"\",INDEX('Smelter Look-up'!$A:$A,MATCH($A84,'Smelter Look-up'!$E:$E,0)))","v":""},{"$f":"IF(LEN(A84)=0,\"\",INDEX('Smelter Look-up'!$C:$C,MATCH($A84,'Smelter Look-up'!$E:$E,0)))","v":""},null,{"$f":"IF(ISERROR($V84),\"\",OFFSET('Smelter Look-up'!$D$4,$V84-4,0)&\"\")","v":""},{"$f":"IF(ISERROR($V84),\"\",OFFSET('Smelter Look-up'!$E$4,$V84-4,0))","v":""},{"$f":"IF(C84=$X$4,\"Enter smelter details\",IF(ISERROR($V84),\"\",OFFSET('Smelter Look-up'!$F$4,$V84-4,0)))","v":""},{"$f":"IF(ISERROR($V84),\"\",OFFSET('Smelter Look-up'!$G$4,$V84-4,0))","v":""},{"$f":"IF(ISERROR($V84),\"\",OFFSET('Smelter Look-up'!$H$4,$V84-4,0))","v":""},{"$f":"IF(ISERROR($V84),\"\",OFFSET('Smelter Look-up'!$I$4,$V84-4,0))","v":""},{"$nulls":7},{"$f":"IF(ISERROR($V84),\"\",OFFSET('Smelter Look-up'!$C$4,$V84-4,0)&\"\")","v":""},"",{"$f":"IF(B84=\"\",\"\",IF(ISERROR(MATCH($J84,SorP!$B$1:$B$5661,0)),\"\",INDIRECT(\"'SorP'!$A$\"&MATCH($J84,SorP!$B$1:$B$5661,0))))","v":""},null,{"$f":"IF(C84=\"\",NA(),MATCH($B84&$C84,'Smelter Look-up'!$J:$J,0))","v":{"$error":"#N/A"}},null,0,null,null,null,""]
[null,{"$f":"IF(LEN(A85)=0,\"\",INDEX('Smelter Look-up'!$A:$A,MATCH($A85,'Smelter Look-up'!$E:$E,0)))","v":""},{"$f":"IF(LEN(A85)=0,\"\",INDEX('Smelter Look-up'!$C:$C,MATCH($A85,'Smelter Look-up'!$E:$E,0)))","v":""},null,{"$f":"IF(ISERROR($V85),\"\",OFFSET('Smelter Look-up'!$D$4,$V85-4,0)&\"\")","v":""},{"$f":"IF(ISERROR($V85),\"\",OFFSET('Smelter Look-up'!$E$4,$V85-4,0))","v":""},{"$f":"IF(C85=$X$4,\"Enter smelter details\",IF(ISERROR($V85),\"\",OFFSET('Smelter Look-up'!$F$4,$V85-4,0)))","v":""},{"$f":"IF(ISERROR($V85),\"\",OFFSET('Smelter Look-up'!$G$4,$V85-4,0))","v":""},{"$f":"IF(ISERROR($V85),\"\",OFFSET('Smelter Look-up'!$H$4,$V85-4,0))","v":""},{"$f":"IF(ISERROR($V85),\"\",OFFSET('Smelter Look-up'!$I$4,$V85-4,0))","v":""},{"$nulls":7},{"$f":"IF(ISERROR($V85),\"\",OFFSET('Smelter Look-up'!$C$4,$V85-4,0)&\"\")","v":""},"",{"$f":"IF(B85=\"\",\"\",IF(ISERROR(MATCH($J85,SorP!$B$1:$B$5661,0)),\"\",INDIRECT(\"'SorP'!$A$\"&MATCH($J85,SorP!$B$1:$B$5661,0))))","v":""},null,{"$f":"IF(C85=\"\",NA(),MATCH($B85&$C85,'Smelter Look-up'!$J:$J,0))","v":{"$error":"#N/A"}},null,0,null,null,null,""]
[null,{"$f":"IF(LEN(A86)=0,\"\",INDEX('Smelter Look-up'!$A:$A,MATCH($A86,'Smelter Look-up'!$E:$E,0)))","v":""},{"$f":"IF(LEN(A86)=0,\"\",INDEX('Smelter Look-up'!$C:$C,MATCH($A86,'Smelter Look-up'!$E:$E,0)))","v":""},null,{"$f":"IF(ISERROR($V86),\"\",OFFSET('Smelter Look-up'!$D$4,$V86-4,0)&\"\")","v":""},{"$f":"IF(ISERROR($V86),\"\",OFFSET('Smelter Look-up'!$E$4,$V86-4,0))","v":""},{"$f":"IF(C86=$X$4,\"Enter smelter details\",IF(ISERROR($V86),\"\",OFFSET('Smelter Look-up'!$F$4,$V86-4,0)))","v":""},{"$f":"IF(ISERROR($V86),\"\",OFFSET('Smelter Look-up'!$G$4,$V86-4,0))","v":""},{"$f":"IF(ISERROR($V86),\"\",OFFSET('Smelter Look-up'!$H$4,$V86-4,0))","v":""},{"$f":"IF(ISERROR($V86),\"\",OFFSET('Smelter Look-up'!$I$4,$V86-4,0))","v":""},{"$nulls":7},{"$f":"IF(ISERROR($V86),\"\",OFFSET('Smelter Look-up'!$C$4,$V86-4,0)&\"\")","v":""},"",{"$f":"IF(B86=\"\",\"\",IF(ISERROR(MATCH($J86,SorP!$B$1:$B$5661,0)),\"\",INDIRECT(\"'SorP'!$A$\"&MATCH($J86,SorP!$B$1:$B$5661,0))))","v":""},null,{"$f":"IF(C86=\"\",NA(),MATCH($B86&$C86,'Smelter Look-up'!$J:$J,0))","v":{"$error":"#N/A"}},null,0,null,null,null,""]
[null,{"$f":"IF(LEN(A87)=0,\"\",INDEX('Smelter Look-up'!$A:$A,MATCH($A87,'Smelter Look-up'!$E:$E,0)))","v":""},{"$f":"IF(LEN(A87)=0,\"\",INDEX('Smelter Look-up'!$C:$C,MATCH($A87,'Smelter Look-up'!$E:$E,0)))","v":""},null,{"$f":"IF(ISERROR($V87),\"\",OFFSET('Smelter Look-up'!$D$4,$V87-4,0)&\"\")","v":""},{"$f":"IF(ISERROR($V87),\"\",OFFSET('Smelter Look-up'!$E$4,$V87-4,0))","v":""},{"$f":"IF(C87=$X$4,\"Enter smelter details\",IF(ISERROR($V87),\"\",OFFSET('Smelter Look-up'!$F$4,$V87-4,0)))","v":""},{"$f":"IF(ISERROR($V87),\"\",OFFSET('Smelter Look-up'!$G$4,$V87-4,0))","v":""},{"$f":"IF(ISERROR($V87),\"\",OFFSET('Smelter Look-up'!$H$4,$V87-4,0))","v":""},{"$f":"IF(ISERROR($V87),\"\",OFFSET('Smelter Look-up'!$I$4,$V87-4,0))","v":""},{"$nulls":7},{"$f":"IF(ISERROR($V87),\"\",OFFSET('Smelter Look-up'!$C$4,$V87-4,0)&\"\")","v":""},"",{"$f":"IF(B87=\"\",\"\",IF(ISERROR(MATCH($J87,SorP!$B$1:$B$5661,0)),\"\",INDIRECT(\"'SorP'!$A$\"&MATCH($J87,SorP!$B$1:$B$5661,0))))","v":""},null,{"$f":"IF(C87=\"\",NA(),MATCH($B87&$C87,'Smelter Look-up'!$J:$J,0))","v":{"$error":"#N/A"}},null,0,null,null,null,""]
[null,{"$f":"IF(LEN(A88)=0,\"\",INDEX('Smelter Look-up'!$A:$A,MATCH($A88,'Smelter Look-up'!$E:$E,0)))","v":""},{"$f":"IF(LEN(A88)=0,\"\",INDEX('Smelter Look-up'!$C:$C,MATCH($A88,'Smelter Look-up'!$E:$E,0)))","v":""},null,{"$f":"IF(ISERROR($V88),\"\",OFFSET('Smelter Look-up'!$D$4,$V88-4,0)&\"\")","v":""},{"$f":"IF(ISERROR($V88),\"\",OFFSET('Smelter Look-up'!$E$4,$V88-4,0))","v":""},{"$f":"IF(C88=$X$4,\"Enter smelter details\",IF(ISERROR($V88),\"\",OFFSET('Smelter Look-up'!$F$4,$V88-4,0)))","v":""},{"$f":"IF(ISERROR($V88),\"\",OFFSET('Smelter Look-up'!$G$4,$V88-4,0))","v":""},{"$f":"IF(ISERROR($V88),\"\",OFFSET('Smelter Look-up'!$H$4,$V88-4,0))","v":""},{"$f":"IF(ISERROR($V88),\"\",OFFSET('Smelter Look-up'!$I$4,$V88-4,0))","v":""},{"$nulls":7},{"$f":"IF(ISERROR($V88),\"\",OFFSET('Smelter Look-up'!$C$4,$V88-4,0)&\"\")","v":""},"",{"$f":"IF(B88=\"\",\"\",IF(ISERROR(MATCH($J88,SorP!$B$1:$B$5661,0)),\"\",INDIRECT(\"'SorP'!$A$\"&MATCH($J88,SorP!$B$1:$B$5661,0))))","v":""},null,{"$f":"IF(C88=\"\",NA(),MATCH($B88&$C88,'Smelter Look-up'!$J:$J,0))","v":{"$error":"#N/A"}},null,0,null,null,null,""]
[null,{"$f":"IF(LEN(A89)=0,\"\",INDEX('Smelter Look-up'!$A:$A,MATCH($A89,'Smelter Look-up'!$E:$E,0)))","v":""},{"$f":"IF(LEN(A89)=0,\"\",INDEX('Smelter Look-up'!$C:$C,MATCH($A89,'Smelter Look-up'!$E:$E,0)))","v":""},null,{"$f":"IF(ISERROR($V89),\"\",OFFSET('Smelter Look-up'!$D$4,$V89-4,0)&\"\")","v":""},{"$f":"IF(ISERROR($V89),\"\",OFFSET('Smelter Look-up'!$E$4,$V89-4,0))","v":""},{"$f":"IF(C89=$X$4,\"Enter smelter details\",IF(ISERROR($V89),\"\",OFFSET('Smelter Look-up'!$F$4,$V89-4,0)))","v":""},{"$f":"IF(ISERROR($V89),\"\",OFFSET('Smelter Look-up'!$G$4,$V89-4,0))","v":""},{"$f":"IF(ISERROR($V89),\"\",OFFSET('Smelter Look-up'!$H$4,$V89-4,0))","v":""},{"$f":"IF(ISERROR($V89),\"\",OFFSET('Smelter Look-up'!$I$4,$V89-4,0))","v":""},{"$nulls":7},{"$f":"IF(ISERROR($V89),\"\",OFFSET('Smelter Look-up'!$C$4,$V89-4,0)&\"\")","v":""},"",{"$f":"IF(B89=\"\",\"\",IF(ISERROR(MATCH($J89,SorP!$B$1:$B$5661,0)),\"\",INDIRECT(\"'SorP'!$A$\"&MATCH($J89,SorP!$B$1:$B$5661,0))))","v":""},null,{"$f":"IF(C89=\"\",NA(),MATCH($B89&$C89,'Smelter Look-up'!$J:$J,0))","v":{"$error":"#N/A"}},null,0,null,null,null,""]
[null,{"$f":"IF(LEN(A90)=0,\"\",INDEX('Smelter Look-up'!$A:$A,MATCH($A90,'Smelter Look-up'!$E:$E,0)))","v":""},{"$f":"IF(LEN(A90)=0,\"\",INDEX('Smelter Look-up'!$C:$C,MATCH($A90,'Smelter Look-up'!$E:$E,0)))","v":""},null,{"$f":"IF(ISERROR($V90),\"\",OFFSET('Smelter Look-up'!$D$4,$V90-4,0)&\"\")","v":""},{"$f":"IF(ISERROR($V90),\"\",OFFSET('Smelter Look-up'!$E$4,$V90-4,0))","v":""},{"$f":"IF(C90=$X$4,\"Enter smelter details\",IF(ISERROR($V90),\"\",OFFSET('Smelter Look-up'!$F$4,$V90-4,0)))","v":""},{"$f":"IF(ISERROR($V90),\"\",OFFSET('Smelter Look-up'!$G$4,$V90-4,0))","v":""},{"$f":"IF(ISERROR($V90),\"\",OFFSET('Smelter Look-up'!$H$4,$V90-4,0))","v":""},{"$f":"IF(ISERROR($V90),\"\",OFFSET('Smelter Look-up'!$I$4,$V90-4,0))","v":""},{"$nulls":7},{"$f":"IF(ISERROR($V90),\"\",OFFSET('Smelter Look-up'!$C$4,$V90-4,0)&\"\")","v":""},"",{"$f":"IF(B90=\"\",\"\",IF(ISERROR(MATCH($J90,SorP!$B$1:$B$5661,0)),\"\",INDIRECT(\"'SorP'!$A$\"&MATCH($J90,SorP!$B$1:$B$5661,0))))","v":""},null,{"$f":"IF(C90=\"\",NA(),MATCH($B90&$C90,'Smelter Look-up'!$J:$J,0))","v":{"$error":"#N/A"}},null,0,null,null,null,""]
[null,{"$f":"IF(LEN(A91)=0,\"\",INDEX('Smelter Look-up'!$A:$A,MATCH($A91,'Smelter Look-up'!$E:$E,0)))","v":""},{"$f":"IF(LEN(A91)=0,\"\",INDEX('Smelter Look-up'!$C:$C,MATCH($A91,'Smelter Look-up'!$E:$E,0)))","v":""},null,{"$f":"IF(ISERROR($V91),\"\",OFFSET('Smelter Look-up'!$D$4,$V91-4,0)&\"\")","v":""},{"$f":"IF(ISERROR($V91),\"\",OFFSET('Smelter Look-up'!$E$4,$V91-4,0))","v":""},{"$f":"IF(C91=$X$4,\"Enter smelter details\",IF(ISERROR($V91),\"\",OFFSET('Smelter Look-up'!$F$4,$V91-4,0)))","v":""},{"$f":"IF(ISERROR($V91),\"\",OFFSET('Smelter Look-up'!$G$4,$V91-4,0))","v":""},{"$f":"IF(ISERROR($V91),\"\",OFFSET('Smelter Look-up'!$H$4,$V91-4,0))","v":""},{"$f":"IF(ISERROR($V91),\"\",OFFSET('Smelter Look-up'!$I$4,$V91-4,0))","v":""},{"$nulls":7},{"$f":"IF(ISERROR($V91),\"\",OFFSET('Smelter Look-up'!$C$4,$V91-4,0)&\"\")","v":""},"",{"$f":"IF(B91=\"\",\"\",IF(ISERROR(MATCH($J91,SorP!$B$1:$B$5661,0)),\"\",INDIRECT(\"'SorP'!$A$\"&MATCH($J91,SorP!$B$1:$B$5661,0))))","v":""},null,{"$f":"IF(C91=\"\",NA(),MATCH($B91&$C91,'Smelter Look-up'!$J:$J,0))","v":{"$error":"#N/A"}},null,0,null,null,null,""]
[null,{"$f":"IF(LEN(A92)=0,\"\",INDEX('Smelter Look-up'!$A:$A,MATCH($A92,'Smelter Look-up'!$E:$E,0)))","v":""},{"$f":"IF(LEN(A92)=0,\"\",INDEX('Smelter Look-up'!$C:$C,MATCH($A92,'Smelter Look-up'!$E:$E,0)))","v":""},null,{"$f":"IF(ISERROR($V92),\"\",OFFSET('Smelter Look-up'!$D$4,$V92-4,0)&\"\")","v":""},{"$f":"IF(ISERROR($V92),\"\",OFFSET('Smelter Look-up'!$E$4,$V92-4,0))","v":""},{"$f":"IF(C92=$X$4,\"Enter smelter details\",IF(ISERROR($V92),\"\",OFFSET('Smelter Look-up'!$F$4,$V92-4,0)))","v":""},{"$f":"IF(ISERROR($V92),\"\",OFFSET('Smelter Look-up'!$G$4,$V92-4,0))","v":""},{"$f":"IF(ISERROR($V92),\"\",OFFSET('Smelter Look-up'!$H$4,$V92-4,0))","v":""},{"$f":"IF(ISERROR($V92),\"\",OFFSET('Smelter Look-up'!$I$4,$V92-4,0))","v":""},{"$nulls":7},{"$f":"IF(ISERROR($V92),\"\",OFFSET('Smelter Look-up'!$C$4,$V92-4,0)&\"\")","v":""},"",{"$f":"IF(B92=\"\",\"\",IF(ISERROR(MATCH($J92,SorP!$B$1:$B$5661,0)),\"\",INDIRECT(\"'SorP'!$A$\"&MATCH($J92,SorP!$B$1:$B$5661,0))))","v":""},null,{"$f":"IF(C92=\"\",NA(),MATCH($B92&$C92,'Smelter Look-up'!$J:$J,0))","v":{"$error":"#N/A"}},null,0,null,null,null,""]
[null,{"$f":"IF(LEN(A93)=0,\"\",INDEX('Smelter Look-up'!$A:$A,MATCH($A93,'Smelter Look-up'!$E:$E,0)))","v":""},{"$f":"IF(LEN(A93)=0,\"\",INDEX('Smelter Look-up'!$C:$C,MATCH($A93,'Smelter Look-up'!$E:$E,0)))","v":""},null,{"$f":"IF(ISERROR($V93),\"\",OFFSET('Smelter Look-up'!$D$4,$V93-4,0)&\"\")","v":""},{"$f":"IF(ISERROR($V93),\"\",OFFSET('Smelter Look-up'!$E$4,$V93-4,0))","v":""},{"$f":"IF(C93=$X$4,\"Enter smelter details\",IF(ISERROR($V93),\"\",OFFSET('Smelter Look-up'!$F$4,$V93-4,0)))","v":""},{"$f":"IF(ISERROR($V93),\"\",OFFSET('Smelter Look-up'!$G$4,$V93-4,0))","v":""},{"$f":"IF(ISERROR($V93),\"\",OFFSET('Smelter Look-up'!$H$4,$V93-4,0))","v":""},{"$f":"IF(ISERROR($V93),\"\",OFFSET('Smelter Look-up'!$I$4,$V93-4,0))","v":""},{"$nulls":7},{"$f":"IF(ISERROR($V93),\"\",OFFSET('Smelter Look-up'!$C$4,$V93-4,0)&\"\")","v":""},"",{"$f":"IF(B93=\"\",\"\",IF(ISERROR(MATCH($J93,SorP!$B$1:$B$5661,0)),\"\",INDIRECT(\"'SorP'!$A$\"&MATCH($J93,SorP!$B$1:$B$5661,0))))","v":""},null,{"$f":"IF(C93=\"\",NA(),MATCH($B93&$C93,'Smelter Look-up'!$J:$J,0))","v":{"$error":"#N/A"}},null,0,null,null,null,""]
[null,{"$f":"IF(LEN(A94)=0,\"\",INDEX('Smelter Look-up'!$A:$A,MATCH($A94,'Smelter Look-up'!$E:$E,0)))","v":""},{"$f":"IF(LEN(A94)=0,\"\",INDEX('Smelter Look-up'!$C:$C,MATCH($A94,'Smelter Look-up'!$E:$E,0)))","v":""},null,{"$f":"IF(ISERROR($V94),\"\",OFFSET('Smelter Look-up'!$D$4,$V94-4,0)&\"\")","v":""},{"$f":"IF(ISERROR($V94),\"\",OFFSET('Smelter Look-up'!$E$4,$V94-4,0))","v":""},{"$f":"IF(C94=$X$4,\"Enter smelter details\",IF(ISERROR($V94),\"\",OFFSET('Smelter Look-up'!$F$4,$V94-4,0)))","v":""},{"$f":"IF(ISERROR($V94),\"\",OFFSET('Smelter Look-up'!$G$4,$V94-4,0))","v":""},{"$f":"IF(ISERROR($V94),\"\",OFFSET('Smelter Look-up'!$H$4,$V94-4,0))","v":""},{"$f":"IF(ISERROR($V94),\"\",OFFSET('Smelter Look-up'!$I$4,$V94-4,0))","v":""},{"$nulls":7},{"$f":"IF(ISERROR($V94),\"\",OFFSET('Smelter Look-up'!$C$4,$V94-4,0)&\"\")","v":""},"",{"$f":"IF(B94=\"\",\"\",IF(ISERROR(MATCH($J94,SorP!$B$1:$B$5661,0)),\"\",INDIRECT(\"'SorP'!$A$\"&MATCH($J94,SorP!$B$1:$B$5661,0))))","v":""},null,{"$f":"IF(C94=\"\",NA(),MATCH($B94&$C94,'Smelter Look-up'!$J:$J,0))","v":{"$error":"#N/A"}},null,0,null,null,null,""]
[null,{"$f":"IF(LEN(A95)=0,\"\",INDEX('Smelter Look-up'!$A:$A,MATCH($A95,'Smelter Look-up'!$E:$E,0)))","v":""},{"$f":"IF(LEN(A95)=0,\"\",INDEX('Smelter Look-up'!$C:$C,MATCH($A95,'Smelter Look-up'!$E:$E,0)))","v":""},null,{"$f":"IF(ISERROR($V95),\"\",OFFSET('Smelter Look-up'!$D$4,$V95-4,0)&\"\")","v":""},{"$f":"IF(ISERROR($V95),\"\",OFFSET('Smelter Look-up'!$E$4,$V95-4,0))","v":""},{"$f":"IF(C95=$X$4,\"Enter smelter details\",IF(ISERROR($V95),\"\",OFFSET('Smelter Look-up'!$F$4,$V95-4,0)))","v":""},{"$f":"IF(ISERROR($V95),\"\",OFFSET('Smelter Look-up'!$G$4,$V95-4,0))","v":""},{"$f":"IF(ISERROR($V95),\"\",OFFSET('Smelter Look-up'!$H$4,$V95-4,0))","v":""},{"$f":"IF(ISERROR($V95),\"\",OFFSET('Smelter Look-up'!$I$4,$V95-4,0))","v":""},{"$nulls":7},{"$f":"IF(ISERROR($V95),\"\",OFFSET('Smelter Look-up'!$C$4,$V95-4,0)&\"\")","v":""},"",{"$f":"IF(B95=\"\",\"\",IF(ISERROR(MATCH($J95,SorP!$B$1:$B$5661,0)),\"\",INDIRECT(\"'SorP'!$A$\"&MATCH($J95,SorP!$B$1:$B$5661,0))))","v":""},null,{"$f":"IF(C95=\"\",NA(),MATCH($B95&$C95,'Smelter Look-up'!$J:$J,0))","v":{"$error":"#N/A"}},null,0,null,null,null,""]
[null,{"$f":"IF(LEN(A96)=0,\"\",INDEX('Smelter Look-up'!$A:$A,MATCH($A96,'Smelter Look-up'!$E:$E,0)))","v":""},{"$f":"IF(LEN(A96)=0,\"\",INDEX('Smelter Look-up'!$C:$C,MATCH($A96,'Smelter Look-up'!$E:$E,0)))","v":""},null,{"$f":"IF(ISERROR($V96),\"\",OFFSET('Smelter Look-up'!$D$4,$V96-4,0)&\"\")","v":""},{"$f":"IF(ISERROR($V96),\"\",OFFSET('Smelter Look-up'!$E$4,$V96-4,0))","v":""},{"$f":"IF(C96=$X$4,\"Enter smelter details\",IF(ISERROR($V96),\"\",OFFSET('Smelter Look-up'!$F$4,$V96-4,0)))","v":""},{"$f":"IF(ISERROR($V96),\"\",OFFSET('Smelter Look-up'!$G$4,$V96-4,0))","v":""},{"$f":"IF(ISERROR($V96),\"\",OFFSET('Smelter Look-up'!$H$4,$V96-4,0))","v":""},{"$f":"IF(ISERROR($V96),\"\",OFFSET('Smelter Look-up'!$I$4,$V96-4,0))","v":""},{"$nulls":7},{"$f":"IF(ISERROR($V96),\"\",OFFSET('Smelter Look-up'!$C$4,$V96-4,0)&\"\")","v":""},"",{"$f":"IF(B96=\"\",\"\",IF(ISERROR(MATCH($J96,SorP!$B$1:$B$5661,0)),\"\",INDIRECT(\"'SorP'!$A$\"&MATCH($J96,SorP!$B$1:$B$5661,0))))","v":""},null,{"$f":"IF(C96=\"\",NA(),MATCH($B96&$C96,'Smelter Look-up'!$J:$J,0))","v":{"$error":"#N/A"}},null,0,null,null,null,""]
[null,{"$f":"IF(LEN(A97)=0,\"\",INDEX('Smelter Look-up'!$A:$A,MATCH($A97,'Smelter Look-up'!$E:$E,0)))","v":""},{"$f":"IF(LEN(A97)=0,\"\",INDEX('Smelter Look-up'!$C:$C,MATCH($A97,'Smelter Look-up'!$E:$E,0)))","v":""},null,{"$f":"IF(ISERROR($V97),\"\",OFFSET('Smelter Look-up'!$D$4,$V97-4,0)&\"\")","v":""},{"$f":"IF(ISERROR($V97),\"\",OFFSET('Smelter Look-up'!$E$4,$V97-4,0))","v":""},{"$f":"IF(C97=$X$4,\"Enter smelter details\",IF(ISERROR($V97),\"\",OFFSET('Smelter Look-up'!$F$4,$V97-4,0)))","v":""},{"$f":"IF(ISERROR($V97),\"\",OFFSET('Smelter Look-up'!$G$4,$V97-4,0))","v":""},{"$f":"IF(ISERROR($V97),\"\",OFFSET('Smelter Look-up'!$H$4,$V97-4,0))","v":""},{"$f":"IF(ISERROR($V97),\"\",OFFSET('Smelter Look-up'!$I$4,$V97-4,0))","v":""},{"$nulls":7},{"$f":"IF(ISERROR($V97),\"\",OFFSET('Smelter Look-up'!$C$4,$V97-4,0)&\"\")","v":""},"",{"$f":"IF(B97=\"\",\"\",IF(ISERROR(MATCH($J97,SorP!$B$1:$B$5661,0)),\"\",INDIRECT(\"'SorP'!$A$\"&MATCH($J97,SorP!$B$1:$B$5661,0))))","v":""},null,{"$f":"IF(C97=\"\",NA(),MATCH($B97&$C97,'Smelter Look-up'!$J:$J,0))","v":{"$error":"#N/A"}},null,0,null,null,null,""]
[null,{"$f":"IF(LEN(A98)=0,\"\",INDEX('Smelter Look-up'!$A:$A,MATCH($A98,'Smelter Look-up'!$E:$E,0)))","v":""},{"$f":"IF(LEN(A98)=0,\"\",INDEX('Smelter Look-up'!$C:$C,MATCH($A98,'Smelter Look-up'!$E:$E,0)))","v":""},null,{"$f":"IF(ISERROR($V98),\"\",OFFSET('Smelter Look-up'!$D$4,$V98-4,0)&\"\")","v":""},{"$f":"IF(ISERROR($V98),\"\",OFFSET('Smelter Look-up'!$E$4,$V98-4,0))","v":""},{"$f":"IF(C98=$X$4,\"Enter smelter details\",IF(ISERROR($V98),\"\",OFFSET('Smelter Look-up'!$F$4,$V98-4,0)))","v":""},{"$f":"IF(ISERROR($V98),\"\",OFFSET('Smelter Look-up'!$G$4,$V98-4,0))","v":""},{"$f":"IF(ISERROR($V98),\"\",OFFSET('Smelter Look-up'!$H$4,$V98-4,0))","v":""},{"$f":"IF(ISERROR($V98),\"\",OFFSET('Smelter Look-up'!$I$4,$V98-4,0))","v":""},{"$nulls":7},{"$f":"IF(ISERROR($V98),\"\",OFFSET('Smelter Look-up'!$C$4,$V98-4,0)&\"\")","v":""},"",{"$f":"IF(B98=\"\",\"\",IF(ISERROR(MATCH($J98,SorP!$B$1:$B$5661,0)),\"\",INDIRECT(\"'SorP'!$A$\"&MATCH($J98,SorP!$B$1:$B$5661,0))))","v":""},null,{"$f":"IF(C98=\"\",NA(),MATCH($B98&$C98,'Smelter Look-up'!$J:$J,0))","v":{"$error":"#N/A"}},null,0,null,null,null,""]
[null,{"$f":"IF(LEN(A99)=0,\"\",INDEX('Smelter Look-up'!$A:$A,MATCH($A99,'Smelter Look-up'!$E:$E,0)))","v":""},{"$f":"IF(LEN(A99)=0,\"\",INDEX('Smelter Look-up'!$C:$C,MATCH($A99,'Smelter Look-up'!$E:$E,0)))","v":""},null,{"$f":"IF(ISERROR($V99),\"\",OFFSET('Smelter Look-up'!$D$4,$V99-4,0)&\"\")","v":""},{"$f":"IF(ISERROR($V99),\"\",OFFSET('Smelter Look-up'!$E$4,$V99-4,0))","v":""},{"$f":"IF(C99=$X$4,\"Enter smelter details\",IF(ISERROR($V99),\"\",OFFSET('Smelter Look-up'!$F$4,$V99-4,0)))","v":""},{"$f":"IF(ISERROR($V99),\"\",OFFSET('Smelter Look-up'!$G$4,$V99-4,0))","v":""},{"$f":"IF(ISERROR($V99),\"\",OFFSET('Smelter Look-up'!$H$4,$V99-4,0))","v":""},{"$f":"IF(ISERROR($V99),\"\",OFFSET('Smelter Look-up'!$I$4,$V99-4,0))","v":""},{"$nulls":7},{"$f":"IF(ISERROR($V99),\"\",OFFSET('Smelter Look-up'!$C$4,$V99-4,0)&\"\")","v":""},"",{"$f":"IF(B99=\"\",\"\",IF(ISERROR(MATCH($J99,SorP!$B$1:$B$5661,0)),\"\",INDIRECT(\"'SorP'!$A$\"&MATCH($J99,SorP!$B$1:$B$5661,0))))","v":""},null,{"$f":"IF(C99=\"\",NA(),MATCH($B99&$C99,'Smelter Look-up'!$J:$J,0))","v":{"$error":"#N/A"}},null,0,null,null,null,""]
[null,{"$f":"IF(LEN(A100)=0,\"\",INDEX('Smelter Look-up'!$A:$A,MATCH($A100,'Smelter Look-up'!$E:$E,0)))","v":""},{"$f":"IF(LEN(A100)=0,\"\",INDEX('Smelter Look-up'!$C:$C,MATCH($A100,'Smelter Look-up'!$E:$E,0)))","v":""},null,{"$f":"IF(ISERROR($V100),\"\",OFFSET('Smelter Look-up'!$D$4,$V100-4,0)&\"\")","v":""},{"$f":"IF(ISERROR($V100),\"\",OFFSET('Smelter Look-up'!$E$4,$V100-4,0))","v":""},{"$f":"IF(C100=$X$4,\"Enter smelter details\",IF(ISERROR($V100),\"\",OFFSET('Smelter Look-up'!$F$4,$V100-4,0)))","v":""},{"$f":"IF(ISERROR($V100),\"\",OFFSET('Smelter Look-up'!$G$4,$V100-4,0))","v":""},{"$f":"IF(ISERROR($V100),\"\",OFFSET('Smelter Look-up'!$H$4,$V100-4,0))","v":""},{"$f":"IF(ISERROR($V100),\"\",OFFSET('Smelter Look-up'!$I$4,$V100-4,0))","v":""},{"$nulls":7},{"$f":"IF(ISERROR($V100),\"\",OFFSET('Smelter Look-up'!$C$4,$V100-4,0)&\"\")","v":""},"",{"$f":"IF(B100=\"\",\"\",IF(ISERROR(MATCH($J100,SorP!$B$1:$B$5661,0)),\"\",INDIRECT(\"'SorP'!$A$\"&MATCH($J100,SorP!$B$1:$B$5661,0))))","v":""},null,{"$f":"IF(C100=\"\",NA(),MATCH($B100&$C100,'Smelter Look-up'!$J:$J,0))","v":{"$error":"#N/A"}},null,0,null,null,null,""]
[null,{"$f":"IF(LEN(A101)=0,\"\",INDEX('Smelter Look-up'!$A:$A,MATCH($A101,'Smelter Look-up'!$E:$E,0)))","v":""},{"$f":"IF(LEN(A101)=0,\"\",INDEX('Smelter Look-up'!$C:$C,MATCH($A101,'Smelter Look-up'!$E:$E,0)))","v":""},null,{"$f":"IF(ISERROR($V101),\"\",OFFSET('Smelter Look-up'!$D$4,$V101-4,0)&\"\")","v":""},{"$f":"IF(ISERROR($V101),\"\",OFFSET('Smelter Look-up'!$E$4,$V101-4,0))","v":""},{"$f":"IF(C101=$X$4,\"Enter smelter details\",IF(ISERROR($V101),\"\",OFFSET('Smelter Look-up'!$F$4,$V101-4,0)))","v":""},{"$f":"IF(ISERROR($V101),\"\",OFFSET('Smelter Look-up'!$G$4,$V101-4,0))","v":""},{"$f":"IF(ISERROR($V101),\"\",OFFSET('Smelter Look-up'!$H$4,$V101-4,0))","v":""},{"$f":"IF(ISERROR($V101),\"\",OFFSET('Smelter Look-up'!$I$4,$V101-4,0))","v":""},{"$nulls":7},{"$f":"IF(ISERROR($V101),\"\",OFFSET('Smelter Look-up'!$C$4,$V101-4,0)&\"\")","v":""},"",{"$f":"IF(B101=\"\",\"\",IF(ISERROR(MATCH($J101,SorP!$B$1:$B$5661,0)),\"\",INDIRECT(\"'SorP'!$A$\"&MATCH($J101,SorP!$B$1:$B$5661,0))))","v":""},null,{"$f":"IF(C101=\"\",NA(),MATCH($B101&$C101,'Smelter Look-up'!$J:$J,0))","v":{"$error":"#N/A"}},null,0,null,null,null,""]
[null,{"$f":"IF(LEN(A102)=0,\"\",INDEX('Smelter Look-up'!$A:$A,MATCH($A102,'Smelter Look-up'!$E:$E,0)))","v":""},{"$f":"IF(LEN(A102)=0,\"\",INDEX('Smelter Look-up'!$C:$C,MATCH($A102,'Smelter Look-up'!$E:$E,0)))","v":""},null,{"$f":"IF(ISERROR($V102),\"\",OFFSET('Smelter Look-up'!$D$4,$V102-4,0)&\"\")","v":""},{"$f":"IF(ISERROR($V102),\"\",OFFSET('Smelter Look-up'!$E$4,$V102-4,0))","v":""},{"$f":"IF(C102=$X$4,\"Enter smelter details\",IF(ISERROR($V102),\"\",OFFSET('Smelter Look-up'!$F$4,$V102-4,0)))","v":""},{"$f":"IF(ISERROR($V102),\"\",OFFSET('Smelter Look-up'!$G$4,$V102-4,0))","v":""},{"$f":"IF(ISERROR($V102),\"\",OFFSET('Smelter Look-up'!$H$4,$V102-4,0))","v":""},{"$f":"IF(ISERROR($V102),\"\",OFFSET('Smelter Look-up'!$I$4,$V102-4,0))","v":""},{"$nulls":7},{"$f":"IF(ISERROR($V102),\"\",OFFSET('Smelter Look-up'!$C$4,$V102-4,0)&\"\")","v":""},"",{"$f":"IF(B102=\"\",\"\",IF(ISERROR(MATCH($J102,SorP!$B$1:$B$5661,0)),\"\",INDIRECT(\"'SorP'!$A$\"&MATCH($J102,SorP!$B$1:$B$5661,0))))","v":""},null,{"$f":"IF(C102=\"\",NA(),MATCH($B102&$C102,'Smelter Look-up'!$J:$J,0))","v":{"$error":"#N/A"}},null,0,null,null,null,""]
[null,{"$f":"IF(LEN(A103)=0,\"\",INDEX('Smelter Look-up'!$A:$A,MATCH($A103,'Smelter Look-up'!$E:$E,0)))","v":""},{"$f":"IF(LEN(A103)=0,\"\",INDEX('Smelter Look-up'!$C:$C,MATCH($A103,'Smelter Look-up'!$E:$E,0)))","v":""},null,{"$f":"IF(ISERROR($V103),\"\",OFFSET('Smelter Look-up'!$D$4,$V103-4,0)&\"\")","v":""},{"$f":"IF(ISERROR($V103),\"\",OFFSET('Smelter Look-up'!$E$4,$V103-4,0))","v":""},{"$f":"IF(C103=$X$4,\"Enter smelter details\",IF(ISERROR($V103),\"\",OFFSET('Smelter Look-up'!$F$4,$V103-4,0)))","v":""},{"$f":"IF(ISERROR($V103),\"\",OFFSET('Smelter Look-up'!$G$4,$V103-4,0))","v":""},{"$f":"IF(ISERROR($V103),\"\",OFFSET('Smelter Look-up'!$H$4,$V103-4,0))","v":""},{"$f":"IF(ISERROR($V103),\"\",OFFSET('Smelter Look-up'!$I$4,$V103-4,0))","v":""},{"$nulls":7},{"$f":"IF(ISERROR($V103),\"\",OFFSET('Smelter Look-up'!$C$4,$V103-4,0)&\"\")","v":""},"",{"$f":"IF(B103=\"\",\"\",IF(ISERROR(MATCH($J103,SorP!$B$1:$B$5661,0)),\"\",INDIRECT(\"'SorP'!$A$\"&MATCH($J103,SorP!$B$1:$B$5661,0))))","v":""},null,{"$f":"IF(C103=\"\",NA(),MATCH($B103&$C103,'Smelter Look-up'!$J:$J,0))","v":{"$error":"#N/A"}},null,0,null,null,null,""]
[null,{"$f":"IF(LEN(A104)=0,\"\",INDEX('Smelter Look-up'!$A:$A,MATCH($A104,'Smelter Look-up'!$E:$E,0)))","v":""},{"$f":"IF(LEN(A104)=0,\"\",INDEX('Smelter Look-up'!$C:$C,MATCH($A104,'Smelter Look-up'!$E:$E,0)))","v":""},null,{"$f":"IF(ISERROR($V104),\"\",OFFSET('Smelter Look-up'!$D$4,$V104-4,0)&\"\")","v":""},{"$f":"IF(ISERROR($V104),\"\",OFFSET('Smelter Look-up'!$E$4,$V104-4,0))","v":""},{"$f":"IF(C104=$X$4,\"Enter smelter details\",IF(ISERROR($V104),\"\",OFFSET('Smelter Look-up'!$F$4,$V104-4,0)))","v":""},{"$f":"IF(ISERROR($V104),\"\",OFFSET('Smelter Look-up'!$G$4,$V104-4,0))","v":""},{"$f":"IF(ISERROR($V104),\"\",OFFSET('Smelter Look-up'!$H$4,$V104-4,0))","v":""},{"$f":"IF(ISERROR($V104),\"\",OFFSET('Smelter Look-up'!$I$4,$V104-4,0))","v":""},{"$nulls":7},{"$f":"IF(ISERROR($V104),\"\",OFFSET('Smelter Look-up'!$C$4,$V104-4,0)&\"\")","v":""},"",{"$f":"IF(B104=\"\",\"\",IF(ISERROR(MATCH($J104,SorP!$B$1:$B$5661,0)),\"\",INDIRECT(\"'SorP'!$A$\"&MATCH($J104,SorP!$B$1:$B$5661,0))))","v":""},null,{"$f":"IF(C104=\"\",NA(),MATCH($B104&$C104,'Smelter Look-up'!$J:$J,0))","v":{"$error":"#N/A"}},null,0,null,null,null,""]
[null,{"$f":"IF(LEN(A105)=0,\"\",INDEX('Smelter Look-up'!$A:$A,MATCH($A105,'Smelter Look-up'!$E:$E,0)))","v":""},{"$f":"IF(LEN(A105)=0,\"\",INDEX('Smelter Look-up'!$C:$C,MATCH($A105,'Smelter Look-up'!$E:$E,0)))","v":""},null,{"$f":"IF(ISERROR($V105),\"\",OFFSET('Smelter Look-up'!$D$4,$V105-4,0)&\"\")","v":""},{"$f":"IF(ISERROR($V105),\"\",OFFSET('Smelter Look-up'!$E$4,$V105-4,0))","v":""},{"$f":"IF(C105=$X$4,\"Enter smelter details\",IF(ISERROR($V105),\"\",OFFSET('Smelter Look-up'!$F$4,$V105-4,0)))","v":""},{"$f":"IF(ISERROR($V105),\"\",OFFSET('Smelter Look-up'!$G$4,$V105-4,0))","v":""},{"$f":"IF(ISERROR($V105),\"\",OFFSET('Smelter Look-up'!$H$4,$V105-4,0))","v":""},{"$f":"IF(ISERROR($V105),\"\",OFFSET('Smelter Look-up'!$I$4,$V105-4,0))","v":""},{"$nulls":7},{"$f":"IF(ISERROR($V105),\"\",OFFSET('Smelter Look-up'!$C$4,$V105-4,0)&\"\")","v":""},"",{"$f":"IF(B105=\"\",\"\",IF(ISERROR(MATCH($J105,SorP!$B$1:$B$5661,0)),\"\",INDIRECT(\"'SorP'!$A$\"&MATCH($J105,SorP!$B$1:$B$5661,0))))","v":""},null,{"$f":"IF(C105=\"\",NA(),MATCH($B105&$C105,'Smelter Look-up'!$J:$J,0))","v":{"$error":"#N/A"}},null,0,null,null,null,""]
[null,{"$f":"IF(LEN(A106)=0,\"\",INDEX('Smelter Look-up'!$A:$A,MATCH($A106,'Smelter Look-up'!$E:$E,0)))","v":""},{"$f":"IF(LEN(A106)=0,\"\",INDEX('Smelter Look-up'!$C:$C,MATCH($A106,'Smelter Look-up'!$E:$E,0)))","v":""},null,{"$f":"IF(ISERROR($V106),\"\",OFFSET('Smelter Look-up'!$D$4,$V106-4,0)&\"\")","v":""},{"$f":"IF(ISERROR($V106),\"\",OFFSET('Smelter Look-up'!$E$4,$V106-4,0))","v":""},{"$f":"IF(C106=$X$4,\"Enter smelter details\",IF(ISERROR($V106),\"\",OFFSET('Smelter Look-up'!$F$4,$V106-4,0)))","v":""},{"$f":"IF(ISERROR($V106),\"\",OFFSET('Smelter Look-up'!$G$4,$V106-4,0))","v":""},{"$f":"IF(ISERROR($V106),\"\",OFFSET('Smelter Look-up'!$H$4,$V106-4,0))","v":""},{"$f":"IF(ISERROR($V106),\"\",OFFSET('Smelter Look-up'!$I$4,$V106-4,0))","v":""},{"$nulls":7},{"$f":"IF(ISERROR($V106),\"\",OFFSET('Smelter Look-up'!$C$4,$V106-4,0)&\"\")","v":""},"",{"$f":"IF(B106=\"\",\"\",IF(ISERROR(MATCH($J106,SorP!$B$1:$B$5661,0)),\"\",INDIRECT(\"'SorP'!$A$\"&MATCH($J106,SorP!$B$1:$B$5661,0))))","v":""},null,{"$f":"IF(C106=\"\",NA(),MATCH($B106&$C106,'Smelter Look-up'!$J:$J,0))","v":{"$error":"#N/A"}},null,0,null,null,null,""]
[null,{"$f":"IF(LEN(A107)=0,\"\",INDEX('Smelter Look-up'!$A:$A,MATCH($A107,'Smelter Look-up'!$E:$E,0)))","v":""},{"$f":"IF(LEN(A107)=0,\"\",INDEX('Smelter Look-up'!$C:$C,MATCH($A107,'Smelter Look-up'!$E:$E,0)))","v":""},null,{"$f":"IF(ISERROR($V107),\"\",OFFSET('Smelter Look-up'!$D$4,$V107-4,0)&\"\")","v":""},{"$f":"IF(ISERROR($V107),\"\",OFFSET('Smelter Look-up'!$E$4,$V107-4,0))","v":""},{"$f":"IF(C107=$X$4,\"Enter smelter details\",IF(ISERROR($V107),\"\",OFFSET('Smelter Look-up'!$F$4,$V107-4,0)))","v":""},{"$f":"IF(ISERROR($V107),\"\",OFFSET('Smelter Look-up'!$G$4,$V107-4,0))","v":""},{"$f":"IF(ISERROR($V107),\"\",OFFSET('Smelter Look-up'!$H$4,$V107-4,0))","v":""},{"$f":"IF(ISERROR($V107),\"\",OFFSET('Smelter Look-up'!$I$4,$V107-4,0))","v":""},{"$nulls":7},{"$f":"IF(ISERROR($V107),\"\",OFFSET('Smelter Look-up'!$C$4,$V107-4,0)&\"\")","v":""},"",{"$f":"IF(B107=\"\",\"\",IF(ISERROR(MATCH($J107,SorP!$B$1:$B$5661,0)),\"\",INDIRECT(\"'SorP'!$A$\"&MATCH($J107,SorP!$B$1:$B$5661,0))))","v":""},null,{"$f":"IF(C107=\"\",NA(),MATCH($B107&$C107,'Smelter Look-up'!$J:$J,0))","v":{"$error":"#N/A"}},null,0,null,null,null,""]
[null,{"$f":"IF(LEN(A108)=0,\"\",INDEX('Smelter Look-up'!$A:$A,MATCH($A108,'Smelter Look-up'!$E:$E,0)))","v":""},{"$f":"IF(LEN(A108)=0,\"\",INDEX('Smelter Look-up'!$C:$C,MATCH($A108,'Smelter Look-up'!$E:$E,0)))","v":""},null,{"$f":"IF(ISERROR($V108),\"\",OFFSET('Smelter Look-up'!$D$4,$V108-4,0)&\"\")","v":""},{"$f":"IF(ISERROR($V108),\"\",OFFSET('Smelter Look-up'!$E$4,$V108-4,0))","v":""},{"$f":"IF(C108=$X$4,\"Enter smelter details\",IF(ISERROR($V108),\"\",OFFSET('Smelter Look-up'!$F$4,$V108-4,0)))","v":""},{"$f":"IF(ISERROR($V108),\"\",OFFSET('Smelter Look-up'!$G$4,$V108-4,0))","v":""},{"$f":"IF(ISERROR($V108),\"\",OFFSET('Smelter Look-up'!$H$4,$V108-4,0))","v":""},{"$f":"IF(ISERROR($V108),\"\",OFFSET('Smelter Look-up'!$I$4,$V108-4,0))","v":""},{"$nulls":7},{"$f":"IF(ISERROR($V108),\"\",OFFSET('Smelter Look-up'!$C$4,$V108-4,0)&\"\")","v":""},"",{"$f":"IF(B108=\"\",\"\",IF(ISERROR(MATCH($J108,SorP!$B$1:$B$5661,0)),\"\",INDIRECT(\"'SorP'!$A$\"&MATCH($J108,SorP!$B$1:$B$5661,0))))","v":""},null,{"$f":"IF(C108=\"\",NA(),MATCH($B108&$C108,'Smelter Look-up'!$J:$J,0))","v":{"$error":"#N/A"}},null,0,null,null,null,""]
[null,{"$f":"IF(LEN(A109)=0,\"\",INDEX('Smelter Look-up'!$A:$A,MATCH($A109,'Smelter Look-up'!$E:$E,0)))","v":""},{"$f":"IF(LEN(A109)=0,\"\",INDEX('Smelter Look-up'!$C:$C,MATCH($A109,'Smelter Look-up'!$E:$E,0)))","v":""},null,{"$f":"IF(ISERROR($V109),\"\",OFFSET('Smelter Look-up'!$D$4,$V109-4,0)&\"\")","v":""},{"$f":"IF(ISERROR($V109),\"\",OFFSET('Smelter Look-up'!$E$4,$V109-4,0))","v":""},{"$f":"IF(C109=$X$4,\"Enter smelter details\",IF(ISERROR($V109),\"\",OFFSET('Smelter Look-up'!$F$4,$V109-4,0)))","v":""},{"$f":"IF(ISERROR($V109),\"\",OFFSET('Smelter Look-up'!$G$4,$V109-4,0))","v":""},{"$f":"IF(ISERROR($V109),\"\",OFFSET('Smelter Look-up'!$H$4,$V109-4,0))","v":""},{"$f":"IF(ISERROR($V109),\"\",OFFSET('Smelter Look-up'!$I$4,$V109-4,0))","v":""},{"$nulls":7},{"$f":"IF(ISERROR($V109),\"\",OFFSET('Smelter Look-up'!$C$4,$V109-4,0)&\"\")","v":""},"",{"$f":"IF(B109=\"\",\"\",IF(ISERROR(MATCH($J109,SorP!$B$1:$B$5661,0)),\"\",INDIRECT(\"'SorP'!$A$\"&MATCH($J109,SorP!$B$1:$B$5661,0))))","v":""},null,{"$f":"IF(C109=\"\",NA(),MATCH($B109&$C109,'Smelter Look-up'!$J:$J,0))","v":{"$error":"#N/A"}},null,0,null,null,null,""]
[null,{"$f":"IF(LEN(A110)=0,\"\",INDEX('Smelter Look-up'!$A:$A,MATCH($A110,'Smelter Look-up'!$E:$E,0)))","v":""},{"$f":"IF(LEN(A110)=0,\"\",INDEX('Smelter Look-up'!$C:$C,MATCH($A110,'Smelter Look-up'!$E:$E,0)))","v":""},null,{"$f":"IF(ISERROR($V110),\"\",OFFSET('Smelter Look-up'!$D$4,$V110-4,0)&\"\")","v":""},{"$f":"IF(ISERROR($V110),\"\",OFFSET('Smelter Look-up'!$E$4,$V110-4,0))","v":""},{"$f":"IF(C110=$X$4,\"Enter smelter details\",IF(ISERROR($V110),\"\",OFFSET('Smelter Look-up'!$F$4,$V110-4,0)))","v":""},{"$f":"IF(ISERROR($V110),\"\",OFFSET('Smelter Look-up'!$G$4,$V110-4,0))","v":""},{"$f":"IF(ISERROR($V110),\"\",OFFSET('Smelter Look-up'!$H$4,$V110-4,0))","v":""},{"$f":"IF(ISERROR($V110),\"\",OFFSET('Smelter Look-up'!$I$4,$V110-4,0))","v":""},{"$nulls":7},{"$f":"IF(ISERROR($V110),\"\",OFFSET('Smelter Look-up'!$C$4,$V110-4,0)&\"\")","v":""},"",{"$f":"IF(B110=\"\",\"\",IF(ISERROR(MATCH($J110,SorP!$B$1:$B$5661,0)),\"\",INDIRECT(\"'SorP'!$A$\"&MATCH($J110,SorP!$B$1:$B$5661,0))))","v":""},null,{"$f":"IF(C110=\"\",NA(),MATCH($B110&$C110,'Smelter Look-up'!$J:$J,0))","v":{"$error":"#N/A"}},null,0,null,null,null,""]
[null,{"$f":"IF(LEN(A111)=0,\"\",INDEX('Smelter Look-up'!$A:$A,MATCH($A111,'Smelter Look-up'!$E:$E,0)))","v":""},{"$f":"IF(LEN(A111)=0,\"\",INDEX('Smelter Look-up'!$C:$C,MATCH($A111,'Smelter Look-up'!$E:$E,0)))","v":""},null,{"$f":"IF(ISERROR($V111),\"\",OFFSET('Smelter Look-up'!$D$4,$V111-4,0)&\"\")","v":""},{"$f":"IF(ISERROR($V111),\"\",OFFSET('Smelter Look-up'!$E$4,$V111-4,0))","v":""},{"$f":"IF(C111=$X$4,\"Enter smelter details\",IF(ISERROR($V111),\"\",OFFSET('Smelter Look-up'!$F$4,$V111-4,0)))","v":""},{"$f":"IF(ISERROR($V111),\"\",OFFSET('Smelter Look-up'!$G$4,$V111-4,0))","v":""},{"$f":"IF(ISERROR($V111),\"\",OFFSET('Smelter Look-up'!$H$4,$V111-4,0))","v":""},{"$f":"IF(ISERROR($V111),\"\",OFFSET('Smelter Look-up'!$I$4,$V111-4,0))","v":""},{"$nulls":7},{"$f":"IF(ISERROR($V111),\"\",OFFSET('Smelter Look-up'!$C$4,$V111-4,0)&\"\")","v":""},"",{"$f":"IF(B111=\"\",\"\",IF(ISERROR(MATCH($J111,SorP!$B$1:$B$5661,0)),\"\",INDIRECT(\"'SorP'!$A$\"&MATCH($J111,SorP!$B$1:$B$5661,0))))","v":""},null,{"$f":"IF(C111=\"\",NA(),MATCH($B111&$C111,'Smelter Look-up'!$J:$J,0))","v":{"$error":"#N/A"}},null,0,null,null,null,""]
[null,{"$f":"IF(LEN(A112)=0,\"\",INDEX('Smelter Look-up'!$A:$A,MATCH($A112,'Smelter Look-up'!$E:$E,0)))","v":""},{"$f":"IF(LEN(A112)=0,\"\",INDEX('Smelter Look-up'!$C:$C,MATCH($A112,'Smelter Look-up'!$E:$E,0)))","v":""},null,{"$f":"IF(ISERROR($V112),\"\",OFFSET('Smelter Look-up'!$D$4,$V112-4,0)&\"\")","v":""},{"$f":"IF(ISERROR($V112),\"\",OFFSET('Smelter Look-up'!$E$4,$V112-4,0))","v":""},{"$f":"IF(C112=$X$4,\"Enter smelter details\",IF(ISERROR($V112),\"\",OFFSET('Smelter Look-up'!$F$4,$V112-4,0)))","v":""},{"$f":"IF(ISERROR($V112),\"\",OFFSET('Smelter Look-up'!$G$4,$V112-4,0))","v":""},{"$f":"IF(ISERROR($V112),\"\",OFFSET('Smelter Look-up'!$H$4,$V112-4,0))","v":""},{"$f":"IF(ISERROR($V112),\"\",OFFSET('Smelter Look-up'!$I$4,$V112-4,0))","v":""},{"$nulls":7},{"$f":"IF(ISERROR($V112),\"\",OFFSET('Smelter Look-up'!$C$4,$V112-4,0)&\"\")","v":""},"",{"$f":"IF(B112=\"\",\"\",IF(ISERROR(MATCH($J112,SorP!$B$1:$B$5661,0)),\"\",INDIRECT(\"'SorP'!$A$\"&MATCH($J112,SorP!$B$1:$B$5661,0))))","v":""},null,{"$f":"IF(C112=\"\",NA(),MATCH($B112&$C112,'Smelter Look-up'!$J:$J,0))","v":{"$error":"#N/A"}},null,0,null,null,null,""]
[null,{"$f":"IF(LEN(A113)=0,\"\",INDEX('Smelter Look-up'!$A:$A,MATCH($A113,'Smelter Look-up'!$E:$E,0)))","v":""},{"$f":"IF(LEN(A113)=0,\"\",INDEX('Smelter Look-up'!$C:$C,MATCH($A113,'Smelter Look-up'!$E:$E,0)))","v":""},null,{"$f":"IF(ISERROR($V113),\"\",OFFSET('Smelter Look-up'!$D$4,$V113-4,0)&\"\")","v":""},{"$f":"IF(ISERROR($V113),\"\",OFFSET('Smelter Look-up'!$E$4,$V113-4,0))","v":""},{"$f":"IF(C113=$X$4,\"Enter smelter details\",IF(ISERROR($V113),\"\",OFFSET('Smelter Look-up'!$F$4,$V113-4,0)))","v":""},{"$f":"IF(ISERROR($V113),\"\",OFFSET('Smelter Look-up'!$G$4,$V113-4,0))","v":""},{"$f":"IF(ISERROR($V113),\"\",OFFSET('Smelter Look-up'!$H$4,$V113-4,0))","v":""},{"$f":"IF(ISERROR($V113),\"\",OFFSET('Smelter Look-up'!$I$4,$V113-4,0))","v":""},{"$nulls":7},{"$f":"IF(ISERROR($V113),\"\",OFFSET('Smelter Look-up'!$C$4,$V113-4,0)&\"\")","v":""},"",{"$f":"IF(B113=\"\",\"\",IF(ISERROR(MATCH($J113,SorP!$B$1:$B$5661,0)),\"\",INDIRECT(\"'SorP'!$A$\"&MATCH($J113,SorP!$B$1:$B$5661,0))))","v":""},null,{"$f":"IF(C113=\"\",NA(),MATCH($B113&$C113,'Smelter Look-up'!$J:$J,0))","v":{"$error":"#N/A"}},null,0,null,null,null,""]
[null,{"$f":"IF(LEN(A114)=0,\"\",INDEX('Smelter Look-up'!$A:$A,MATCH($A114,'Smelter Look-up'!$E:$E,0)))","v":""},{"$f":"IF(LEN(A114)=0,\"\",INDEX('Smelter Look-up'!$C:$C,MATCH($A114,'Smelter Look-up'!$E:$E,0)))","v":""},null,{"$f":"IF(ISERROR($V114),\"\",OFFSET('Smelter Look-up'!$D$4,$V114-4,0)&\"\")","v":""},{"$f":"IF(ISERROR($V114),\"\",OFFSET('Smelter Look-up'!$E$4,$V114-4,0))","v":""},{"$f":"IF(C114=$X$4,\"Enter smelter details\",IF(ISERROR($V114),\"\",OFFSET('Smelter Look-up'!$F$4,$V114-4,0)))","v":""},{"$f":"IF(ISERROR($V114),\"\",OFFSET('Smelter Look-up'!$G$4,$V114-4,0))","v":""},{"$f":"IF(ISERROR($V114),\"\",OFFSET('Smelter Look-up'!$H$4,$V114-4,0))","v":""},{"$f":"IF(ISERROR($V114),\"\",OFFSET('Smelter Look-up'!$I$4,$V114-4,0))","v":""},{"$nulls":7},{"$f":"IF(ISERROR($V114),\"\",OFFSET('Smelter Look-up'!$C$4,$V114-4,0)&\"\")","v":""},"",{"$f":"IF(B114=\"\",\"\",IF(ISERROR(MATCH($J114,SorP!$B$1:$B$5661,0)),\"\",INDIRECT(\"'SorP'!$A$\"&MATCH($J114,SorP!$B$1:$B$5661,0))))","v":""},null,{"$f":"IF(C114=\"\",NA(),MATCH($B114&$C114,'Smelter Look-up'!$J:$J,0))","v":{"$error":"#N/A"}},null,0,null,null,null,""]
[null,{"$f":"IF(LEN(A115)=0,\"\",INDEX('Smelter Look-up'!$A:$A,MATCH($A115,'Smelter Look-up'!$E:$E,0)))","v":""},{"$f":"IF(LEN(A115)=0,\"\",INDEX('Smelter Look-up'!$C:$C,MATCH($A115,'Smelter Look-up'!$E:$E,0)))","v":""},null,{"$f":"IF(ISERROR($V115),\"\",OFFSET('Smelter Look-up'!$D$4,$V115-4,0)&\"\")","v":""},{"$f":"IF(ISERROR($V115),\"\",OFFSET('Smelter Look-up'!$E$4,$V115-4,0))","v":""},{"$f":"IF(C115=$X$4,\"Enter smelter details\",IF(ISERROR($V115),\"\",OFFSET('Smelter Look-up'!$F$4,$V115-4,0)))","v":""},{"$f":"IF(ISERROR($V115),\"\",OFFSET('Smelter Look-up'!$G$4,$V115-4,0))","v":""},{"$f":"IF(ISERROR($V115),\"\",OFFSET('Smelter Look-up'!$H$4,$V115-4,0))","v":""},{"$f":"IF(ISERROR($V115),\"\",OFFSET('Smelter Look-up'!$I$4,$V115-4,0))","v":""},{"$nulls":7},{"$f":"IF(ISERROR($V115),\"\",OFFSET('Smelter Look-up'!$C$4,$V115-4,0)&\"\")","v":""},"",{"$f":"IF(B115=\"\",\"\",IF(ISERROR(MATCH($J115,SorP!$B$1:$B$5661,0)),\"\",INDIRECT(\"'SorP'!$A$\"&MATCH($J115,SorP!$B$1:$B$5661,0))))","v":""},null,{"$f":"IF(C115=\"\",NA(),MATCH($B115&$C115,'Smelter Look-up'!$J:$J,0))","v":{"$error":"#N/A"}},null,0,null,null,null,""]
[null,{"$f":"IF(LEN(A116)=0,\"\",INDEX('Smelter Look-up'!$A:$A,MATCH($A116,'Smelter Look-up'!$E:$E,0)))","v":""},{"$f":"IF(LEN(A116)=0,\"\",INDEX('Smelter Look-up'!$C:$C,MATCH($A116,'Smelter Look-up'!$E:$E,0)))","v":""},null,{"$f":"IF(ISERROR($V116),\"\",OFFSET('Smelter Look-up'!$D$4,$V116-4,0)&\"\")","v":""},{"$f":"IF(ISERROR($V116),\"\",OFFSET('Smelter Look-up'!$E$4,$V116-4,0))","v":""},{"$f":"IF(C116=$X$4,\"Enter smelter details\",IF(ISERROR($V116),\"\",OFFSET('Smelter Look-up'!$F$4,$V116-4,0)))","v":""},{"$f":"IF(ISERROR($V116),\"\",OFFSET('Smelter Look-up'!$G$4,$V116-4,0))","v":""},{"$f":"IF(ISERROR($V116),\"\",OFFSET('Smelter Look-up'!$H$4,$V116-4,0))","v":""},{"$f":"IF(ISERROR($V116),\"\",OFFSET('Smelter Look-up'!$I$4,$V116-4,0))","v":""},{"$nulls":7},{"$f":"IF(ISERROR($V116),\"\",OFFSET('Smelter Look-up'!$C$4,$V116-4,0)&\"\")","v":""},"",{"$f":"IF(B116=\"\",\"\",IF(ISERROR(MATCH($J116,SorP!$B$1:$B$5661,0)),\"\",INDIRECT(\"'SorP'!$A$\"&MATCH($J116,SorP!$B$1:$B$5661,0))))","v":""},null,{"$f":"IF(C116=\"\",NA(),MATCH($B116&$C116,'Smelter Look-up'!$J:$J,0))","v":{"$error":"#N/A"}},null,0,null,null,null,""]
[null,{"$f":"IF(LEN(A117)=0,\"\",INDEX('Smelter Look-up'!$A:$A,MATCH($A117,'Smelter Look-up'!$E:$E,0)))","v":""},{"$f":"IF(LEN(A117)=0,\"\",INDEX('Smelter Look-up'!$C:$C,MATCH($A117,'Smelter Look-up'!$E:$E,0)))","v":""},null,{"$f":"IF(ISERROR($V117),\"\",OFFSET('Smelter Look-up'!$D$4,$V117-4,0)&\"\")","v":""},{"$f":"IF(ISERROR($V117),\"\",OFFSET('Smelter Look-up'!$E$4,$V117-4,0))","v":""},{"$f":"IF(C117=$X$4,\"Enter smelter details\",IF(ISERROR($V117),\"\",OFFSET('Smelter Look-up'!$F$4,$V117-4,0)))","v":""},{"$f":"IF(ISERROR($V117),\"\",OFFSET('Smelter Look-up'!$G$4,$V117-4,0))","v":""},{"$f":"IF(ISERROR($V117),\"\",OFFSET('Smelter Look-up'!$H$4,$V117-4,0))","v":""},{"$f":"IF(ISERROR($V117),\"\",OFFSET('Smelter Look-up'!$I$4,$V117-4,0))","v":""},{"$nulls":7},{"$f":"IF(ISERROR($V117),\"\",OFFSET('Smelter Look-up'!$C$4,$V117-4,0)&\"\")","v":""},"",{"$f":"IF(B117=\"\",\"\",IF(ISERROR(MATCH($J117,SorP!$B$1:$B$5661,0)),\"\",INDIRECT(\"'SorP'!$A$\"&MATCH($J117,SorP!$B$1:$B$5661,0))))","v":""},null,{"$f":"IF(C117=\"\",NA(),MATCH($B117&$C117,'Smelter Look-up'!$J:$J,0))","v":{"$error":"#N/A"}},null,0,null,null,null,""]
[null,{"$f":"IF(LEN(A118)=0,\"\",INDEX('Smelter Look-up'!$A:$A,MATCH($A118,'Smelter Look-up'!$E:$E,0)))","v":""},{"$f":"IF(LEN(A118)=0,\"\",INDEX('Smelter Look-up'!$C:$C,MATCH($A118,'Smelter Look-up'!$E:$E,0)))","v":""},null,{"$f":"IF(ISERROR($V118),\"\",OFFSET('Smelter Look-up'!$D$4,$V118-4,0)&\"\")","v":""},{"$f":"IF(ISERROR($V118),\"\",OFFSET('Smelter Look-up'!$E$4,$V118-4,0))","v":""},{"$f":"IF(C118=$X$4,\"Enter smelter details\",IF(ISERROR($V118),\"\",OFFSET('Smelter Look-up'!$F$4,$V118-4,0)))","v":""},{"$f":"IF(ISERROR($V118),\"\",OFFSET('Smelter Look-up'!$G$4,$V118-4,0))","v":""},{"$f":"IF(ISERROR($V118),\"\",OFFSET('Smelter Look-up'!$H$4,$V118-4,0))","v":""},{"$f":"IF(ISERROR($V118),\"\",OFFSET('Smelter Look-up'!$I$4,$V118-4,0))","v":""},{"$nulls":7},{"$f":"IF(ISERROR($V118),\"\",OFFSET('Smelter Look-up'!$C$4,$V118-4,0)&\"\")","v":""},"",{"$f":"IF(B118=\"\",\"\",IF(ISERROR(MATCH($J118,SorP!$B$1:$B$5661,0)),\"\",INDIRECT(\"'SorP'!$A$\"&MATCH($J118,SorP!$B$1:$B$5661,0))))","v":""},null,{"$f":"IF(C118=\"\",NA(),MATCH($B118&$C118,'Smelter Look-up'!$J:$J,0))","v":{"$error":"#N/A"}},null,0,null,null,null,""]
[null,{"$f":"IF(LEN(A119)=0,\"\",INDEX('Smelter Look-up'!$A:$A,MATCH($A119,'Smelter Look-up'!$E:$E,0)))","v":""},{"$f":"IF(LEN(A119)=0,\"\",INDEX('Smelter Look-up'!$C:$C,MATCH($A119,'Smelter Look-up'!$E:$E,0)))","v":""},null,{"$f":"IF(ISERROR($V119),\"\",OFFSET('Smelter Look-up'!$D$4,$V119-4,0)&\"\")","v":""},{"$f":"IF(ISERROR($V119),\"\",OFFSET('Smelter Look-up'!$E$4,$V119-4,0))","v":""},{"$f":"IF(C119=$X$4,\"Enter smelter details\",IF(ISERROR($V119),\"\",OFFSET('Smelter Look-up'!$F$4,$V119-4,0)))","v":""},{"$f":"IF(ISERROR($V119),\"\",OFFSET('Smelter Look-up'!$G$4,$V119-4,0))","v":""},{"$f":"IF(ISERROR($V119),\"\",OFFSET('Smelter Look-up'!$H$4,$V119-4,0))","v":""},{"$f":"IF(ISERROR($V119),\"\",OFFSET('Smelter Look-up'!$I$4,$V119-4,0))","v":""},{"$nulls":7},{"$f":"IF(ISERROR($V119),\"\",OFFSET('Smelter Look-up'!$C$4,$V119-4,0)&\"\")","v":""},"",{"$f":"IF(B119=\"\",\"\",IF(ISERROR(MATCH($J119,SorP!$B$1:$B$5661,0)),\"\",INDIRECT(\"'SorP'!$A$\"&MATCH($J119,SorP!$B$1:$B$5661,0))))","v":""},null,{"$f":"IF(C119=\"\",NA(),MATCH($B119&$C119,'Smelter Look-up'!$J:$J,0))","v":{"$error":"#N/A"}},null,0,null,null,null,""]
[null,{"$f":"IF(LEN(A120)=0,\"\",INDEX('Smelter Look-up'!$A:$A,MATCH($A120,'Smelter Look-up'!$E:$E,0)))","v":""},{"$f":"IF(LEN(A120)=0,\"\",INDEX('Smelter Look-up'!$C:$C,MATCH($A120,'Smelter Look-up'!$E:$E,0)))","v":""},null,{"$f":"IF(ISERROR($V120),\"\",OFFSET('Smelter Look-up'!$D$4,$V120-4,0)&\"\")","v":""},{"$f":"IF(ISERROR($V120),\"\",OFFSET('Smelter Look-up'!$E$4,$V120-4,0))","v":""},{"$f":"IF(C120=$X$4,\"Enter smelter details\",IF(ISERROR($V120),\"\",OFFSET('Smelter Look-up'!$F$4,$V120-4,0)))","v":""},{"$f":"IF(ISERROR($V120),\"\",OFFSET('Smelter Look-up'!$G$4,$V120-4,0))","v":""},{"$f":"IF(ISERROR($V120),\"\",OFFSET('Smelter Look-up'!$H$4,$V120-4,0))","v":""},{"$f":"IF(ISERROR($V120),\"\",OFFSET('Smelter Look-up'!$I$4,$V120-4,0))","v":""},{"$nulls":7},{"$f":"IF(ISERROR($V120),\"\",OFFSET('Smelter Look-up'!$C$4,$V120-4,0)&\"\")","v":""},"",{"$f":"IF(B120=\"\",\"\",IF(ISERROR(MATCH($J120,SorP!$B$1:$B$5661,0)),\"\",INDIRECT(\"'SorP'!$A$\"&MATCH($J120,SorP!$B$1:$B$5661,0))))","v":""},null,{"$f":"IF(C120=\"\",NA(),MATCH($B120&$C120,'Smelter Look-up'!$J:$J,0))","v":{"$error":"#N/A"}},null,0,null,null,null,""]
[null,{"$f":"IF(LEN(A121)=0,\"\",INDEX('Smelter Look-up'!$A:$A,MATCH($A121,'Smelter Look-up'!$E:$E,0)))","v":""},{"$f":"IF(LEN(A121)=0,\"\",INDEX('Smelter Look-up'!$C:$C,MATCH($A121,'Smelter Look-up'!$E:$E,0)))","v":""},null,{"$f":"IF(ISERROR($V121),\"\",OFFSET('Smelter Look-up'!$D$4,$V121-4,0)&\"\")","v":""},{"$f":"IF(ISERROR($V121),\"\",OFFSET('Smelter Look-up'!$E$4,$V121-4,0))","v":""},{"$f":"IF(C121=$X$4,\"Enter smelter details\",IF(ISERROR($V121),\"\",OFFSET('Smelter Look-up'!$F$4,$V121-4,0)))","v":""},{"$f":"IF(ISERROR($V121),\"\",OFFSET('Smelter Look-up'!$G$4,$V121-4,0))","v":""},{"$f":"IF(ISERROR($V121),\"\",OFFSET('Smelter Look-up'!$H$4,$V121-4,0))","v":""},{"$f":"IF(ISERROR($V121),\"\",OFFSET('Smelter Look-up'!$I$4,$V121-4,0))","v":""},{"$nulls":7},{"$f":"IF(ISERROR($V121),\"\",OFFSET('Smelter Look-up'!$C$4,$V121-4,0)&\"\")","v":""},"",{"$f":"IF(B121=\"\",\"\",IF(ISERROR(MATCH($J121,SorP!$B$1:$B$5661,0)),\"\",INDIRECT(\"'SorP'!$A$\"&MATCH($J121,SorP!$B$1:$B$5661,0))))","v":""},null,{"$f":"IF(C121=\"\",NA(),MATCH($B121&$C121,'Smelter Look-up'!$J:$J,0))","v":{"$error":"#N/A"}},null,0,null,null,null,""]
[null,{"$f":"IF(LEN(A122)=0,\"\",INDEX('Smelter Look-up'!$A:$A,MATCH($A122,'Smelter Look-up'!$E:$E,0)))","v":""},{"$f":"IF(LEN(A122)=0,\"\",INDEX('Smelter Look-up'!$C:$C,MATCH($A122,'Smelter Look-up'!$E:$E,0)))","v":""},null,{"$f":"IF(ISERROR($V122),\"\",OFFSET('Smelter Look-up'!$D$4,$V122-4,0)&\"\")","v":""},{"$f":"IF(ISERROR($V122),\"\",OFFSET('Smelter Look-up'!$E$4,$V122-4,0))","v":""},{"$f":"IF(C122=$X$4,\"Enter smelter details\",IF(ISERROR($V122),\"\",OFFSET('Smelter Look-up'!$F$4,$V122-4,0)))","v":""},{"$f":"IF(ISERROR($V122),\"\",OFFSET('Smelter Look-up'!$G$4,$V122-4,0))","v":""},{"$f":"IF(ISERROR($V122),\"\",OFFSET('Smelter Look-up'!$H$4,$V122-4,0))","v":""},{"$f":"IF(ISERROR($V122),\"\",OFFSET('Smelter Look-up'!$I$4,$V122-4,0))","v":""},{"$nulls":7},{"$f":"IF(ISERROR($V122),\"\",OFFSET('Smelter Look-up'!$C$4,$V122-4,0)&\"\")","v":""},"",{"$f":"IF(B122=\"\",\"\",IF(ISERROR(MATCH($J122,SorP!$B$1:$B$5661,0)),\"\",INDIRECT(\"'SorP'!$A$\"&MATCH($J122,SorP!$B$1:$B$5661,0))))","v":""},null,{"$f":"IF(C122=\"\",NA(),MATCH($B122&$C122,'Smelter Look-up'!$J:$J,0))","v":{"$error":"#N/A"}},null,0,null,null,null,""]
[null,{"$f":"IF(LEN(A123)=0,\"\",INDEX('Smelter Look-up'!$A:$A,MATCH($A123,'Smelter Look-up'!$E:$E,0)))","v":""},{"$f":"IF(LEN(A123)=0,\"\",INDEX('Smelter Look-up'!$C:$C,MATCH($A123,'Smelter Look-up'!$E:$E,0)))","v":""},null,{"$f":"IF(ISERROR($V123),\"\",OFFSET('Smelter Look-up'!$D$4,$V123-4,0)&\"\")","v":""},{"$f":"IF(ISERROR($V123),\"\",OFFSET('Smelter Look-up'!$E$4,$V123-4,0))","v":""},{"$f":"IF(C123=$X$4,\"Enter smelter details\",IF(ISERROR($V123),\"\",OFFSET('Smelter Look-up'!$F$4,$V123-4,0)))","v":""},{"$f":"IF(ISERROR($V123),\"\",OFFSET('Smelter Look-up'!$G$4,$V123-4,0))","v":""},{"$f":"IF(ISERROR($V123),\"\",OFFSET('Smelter Look-up'!$H$4,$V123-4,0))","v":""},{"$f":"IF(ISERROR($V123),\"\",OFFSET('Smelter Look-up'!$I$4,$V123-4,0))","v":""},{"$nulls":7},{"$f":"IF(ISERROR($V123),\"\",OFFSET('Smelter Look-up'!$C$4,$V123-4,0)&\"\")","v":""},"",{"$f":"IF(B123=\"\",\"\",IF(ISERROR(MATCH($J123,SorP!$B$1:$B$5661,0)),\"\",INDIRECT(\"'SorP'!$A$\"&MATCH($J123,SorP!$B$1:$B$5661,0))))","v":""},null,{"$f":"IF(C123=\"\",NA(),MATCH($B123&$C123,'Smelter Look-up'!$J:$J,0))","v":{"$error":"#N/A"}},null,0,null,null,null,""]
[null,{"$f":"IF(LEN(A124)=0,\"\",INDEX('Smelter Look-up'!$A:$A,MATCH($A124,'Smelter Look-up'!$E:$E,0)))","v":""},{"$f":"IF(LEN(A124)=0,\"\",INDEX('Smelter Look-up'!$C:$C,MATCH($A124,'Smelter Look-up'!$E:$E,0)))","v":""},null,{"$f":"IF(ISERROR($V124),\"\",OFFSET('Smelter Look-up'!$D$4,$V124-4,0)&\"\")","v":""},{"$f":"IF(ISERROR($V124),\"\",OFFSET('Smelter Look-up'!$E$4,$V124-4,0))","v":""},{"$f":"IF(C124=$X$4,\"Enter smelter details\",IF(ISERROR($V124),\"\",OFFSET('Smelter Look-up'!$F$4,$V124-4,0)))","v":""},{"$f":"IF(ISERROR($V124),\"\",OFFSET('Smelter Look-up'!$G$4,$V124-4,0))","v":""},{"$f":"IF(ISERROR($V124),\"\",OFFSET('Smelter Look-up'!$H$4,$V124-4,0))","v":""},{"$f":"IF(ISERROR($V124),\"\",OFFSET('Smelter Look-up'!$I$4,$V124-4,0))","v":""},{"$nulls":7},{"$f":"IF(ISERROR($V124),\"\",OFFSET('Smelter Look-up'!$C$4,$V124-4,0)&\"\")","v":""},"",{"$f":"IF(B124=\"\",\"\",IF(ISERROR(MATCH($J124,SorP!$B$1:$B$5661,0)),\"\",INDIRECT(\"'SorP'!$A$\"&MATCH($J124,SorP!$B$1:$B$5661,0))))","v":""},null,{"$f":"IF(C124=\"\",NA(),MATCH($B124&$C124,'Smelter Look-up'!$J:$J,0))","v":{"$error":"#N/A"}},null,0,null,null,null,""]
[null,{"$f":"IF(LEN(A125)=0,\"\",INDEX('Smelter Look-up'!$A:$A,MATCH($A125,'Smelter Look-up'!$E:$E,0)))","v":""},{"$f":"IF(LEN(A125)=0,\"\",INDEX('Smelter Look-up'!$C:$C,MATCH($A125,'Smelter Look-up'!$E:$E,0)))","v":""},null,{"$f":"IF(ISERROR($V125),\"\",OFFSET('Smelter Look-up'!$D$4,$V125-4,0)&\"\")","v":""},{"$f":"IF(ISERROR($V125),\"\",OFFSET('Smelter Look-up'!$E$4,$V125-4,0))","v":""},{"$f":"IF(C125=$X$4,\"Enter smelter details\",IF(ISERROR($V125),\"\",OFFSET('Smelter Look-up'!$F$4,$V125-4,0)))","v":""},{"$f":"IF(ISERROR($V125),\"\",OFFSET('Smelter Look-up'!$G$4,$V125-4,0))","v":""},{"$f":"IF(ISERROR($V125),\"\",OFFSET('Smelter Look-up'!$H$4,$V125-4,0))","v":""},{"$f":"IF(ISERROR($V125),\"\",OFFSET('Smelter Look-up'!$I$4,$V125-4,0))","v":""},{"$nulls":7},{"$f":"IF(ISERROR($V125),\"\",OFFSET('Smelter Look-up'!$C$4,$V125-4,0)&\"\")","v":""},"",{"$f":"IF(B125=\"\",\"\",IF(ISERROR(MATCH($J125,SorP!$B$1:$B$5661,0)),\"\",INDIRECT(\"'SorP'!$A$\"&MATCH($J125,SorP!$B$1:$B$5661,0))))","v":""},null,{"$f":"IF(C125=\"\",NA(),MATCH($B125&$C125,'Smelter Look-up'!$J:$J,0))","v":{"$error":"#N/A"}},null,0,null,null,null,""]
[null,{"$f":"IF(LEN(A126)=0,\"\",INDEX('Smelter Look-up'!$A:$A,MATCH($A126,'Smelter Look-up'!$E:$E,0)))","v":""},{"$f":"IF(LEN(A126)=0,\"\",INDEX('Smelter Look-up'!$C:$C,MATCH($A126,'Smelter Look-up'!$E:$E,0)))","v":""},null,{"$f":"IF(ISERROR($V126),\"\",OFFSET('Smelter Look-up'!$D$4,$V126-4,0)&\"\")","v":""},{"$f":"IF(ISERROR($V126),\"\",OFFSET('Smelter Look-up'!$E$4,$V126-4,0))","v":""},{"$f":"IF(C126=$X$4,\"Enter smelter details\",IF(ISERROR($V126),\"\",OFFSET('Smelter Look-up'!$F$4,$V126-4,0)))","v":""},{"$f":"IF(ISERROR($V126),\"\",OFFSET('Smelter Look-up'!$G$4,$V126-4,0))","v":""},{"$f":"IF(ISERROR($V126),\"\",OFFSET('Smelter Look-up'!$H$4,$V126-4,0))","v":""},{"$f":"IF(ISERROR($V126),\"\",OFFSET('Smelter Look-up'!$I$4,$V126-4,0))","v":""},{"$nulls":7},{"$f":"IF(ISERROR($V126),\"\",OFFSET('Smelter Look-up'!$C$4,$V126-4,0)&\"\")","v":""},"",{"$f":"IF(B126=\"\",\"\",IF(ISERROR(MATCH($J126,SorP!$B$1:$B$5661,0)),\"\",INDIRECT(\"'SorP'!$A$\"&MATCH($J126,SorP!$B$1:$B$5661,0))))","v":""},null,{"$f":"IF(C126=\"\",NA(),MATCH($B126&$C126,'Smelter Look-up'!$J:$J,0))","v":{"$error":"#N/A"}},null,0,null,null,null,""]
[null,{"$f":"IF(LEN(A127)=0,\"\",INDEX('Smelter Look-up'!$A:$A,MATCH($A127,'Smelter Look-up'!$E:$E,0)))","v":""},{"$f":"IF(LEN(A127)=0,\"\",INDEX('Smelter Look-up'!$C:$C,MATCH($A127,'Smelter Look-up'!$E:$E,0)))","v":""},null,{"$f":"IF(ISERROR($V127),\"\",OFFSET('Smelter Look-up'!$D$4,$V127-4,0)&\"\")","v":""},{"$f":"IF(ISERROR($V127),\"\",OFFSET('Smelter Look-up'!$E$4,$V127-4,0))","v":""},{"$f":"IF(C127=$X$4,\"Enter smelter details\",IF(ISERROR($V127),\"\",OFFSET('Smelter Look-up'!$F$4,$V127-4,0)))","v":""},{"$f":"IF(ISERROR($V127),\"\",OFFSET('Smelter Look-up'!$G$4,$V127-4,0))","v":""},{"$f":"IF(ISERROR($V127),\"\",OFFSET('Smelter Look-up'!$H$4,$V127-4,0))","v":""},{"$f":"IF(ISERROR($V127),\"\",OFFSET('Smelter Look-up'!$I$4,$V127-4,0))","v":""},{"$nulls":7},{"$f":"IF(ISERROR($V127),\"\",OFFSET('Smelter Look-up'!$C$4,$V127-4,0)&\"\")","v":""},"",{"$f":"IF(B127=\"\",\"\",IF(ISERROR(MATCH($J127,SorP!$B$1:$B$5661,0)),\"\",INDIRECT(\"'SorP'!$A$\"&MATCH($J127,SorP!$B$1:$B$5661,0))))","v":""},null,{"$f":"IF(C127=\"\",NA(),MATCH($B127&$C127,'Smelter Look-up'!$J:$J,0))","v":{"$error":"#N/A"}},null,{"$f":"IF(AND(C127=\"Smelter not listed\",OR(LEN(D127)=0,LEN(E127)=0)),1,0)","v":0},null,null,null,{"$f":"B127&C127","v":""}]
[null,{"$f":"IF(LEN(A128)=0,\"\",INDEX('Smelter Look-up'!$A:$A,MATCH($A128,'Smelter Look-up'!$E:$E,0)))","v":""},{"$f":"IF(LEN(A128)=0,\"\",INDEX('Smelter Look-up'!$C:$C,MATCH($A128,'Smelter Look-up'!$E:$E,0)))","v":""},null,{"$f":"IF(ISERROR($V128),\"\",OFFSET('Smelter Look-up'!$D$4,$V128-4,0)&\"\")","v":""},{"$f":"IF(ISERROR($V128),\"\",OFFSET('Smelter Look-up'!$E$4,$V128-4,0))","v":""},{"$f":"IF(C128=$X$4,\"Enter smelter details\",IF(ISERROR($V128),\"\",OFFSET('Smelter Look-up'!$F$4,$V128-4,0)))","v":""},{"$f":"IF(ISERROR($V128),\"\",OFFSET('Smelter Look-up'!$G$4,$V128-4,0))","v":""},{"$f":"IF(ISERROR($V128),\"\",OFFSET('Smelter Look-up'!$H$4,$V128-4,0))","v":""},{"$f":"IF(ISERROR($V128),\"\",OFFSET('Smelter Look-up'!$I$4,$V128-4,0))","v":""},{"$nulls":7},{"$f":"IF(ISERROR($V128),\"\",OFFSET('Smelter Look-up'!$C$4,$V128-4,0)&\"\")","v":""},{"$f":"IF(B128=\"\",\"\",IF(ISERROR(MATCH($E128,CL,0)),\"Unknown\",INDIRECT(\"'C'!$A$\"&MATCH($E128,CL,0)+1)))","v":""},{"$f":"IF(B128=\"\",\"\",IF(ISERROR(MATCH($J128,SorP!$B$1:$B$5661,0)),\"\",INDIRECT(\"'SorP'!$A$\"&MATCH($J128,SorP!$B$1:$B$5661,0))))","v":""},null,{"$f":"IF(C128=\"\",NA(),MATCH($B128&$C128,'Smelter Look-up'!$J:$J,0))","v":{"$error":"#N/A"}},null,0,null,null,null,""]
[null,{"$f":"IF(LEN(A129)=0,\"\",INDEX('Smelter Look-up'!$A:$A,MATCH($A129,'Smelter Look-up'!$E:$E,0)))","v":""},{"$f":"IF(LEN(A129)=0,\"\",INDEX('Smelter Look-up'!$C:$C,MATCH($A129,'Smelter Look-up'!$E:$E,0)))","v":""},null,{"$f":"IF(ISERROR($V129),\"\",OFFSET('Smelter Look-up'!$D$4,$V129-4,0)&\"\")","v":""},{"$f":"IF(ISERROR($V129),\"\",OFFSET('Smelter Look-up'!$E$4,$V129-4,0))","v":""},{"$f":"IF(C129=$X$4,\"Enter smelter details\",IF(ISERROR($V129),\"\",OFFSET('Smelter Look-up'!$F$4,$V129-4,0)))","v":""},{"$f":"IF(ISERROR($V129),\"\",OFFSET('Smelter Look-up'!$G$4,$V129-4,0))","v":""},{"$f":"IF(ISERROR($V129),\"\",OFFSET('Smelter Look-up'!$H$4,$V129-4,0))","v":""},{"$f":"IF(ISERROR($V129),\"\",OFFSET('Smelter Look-up'!$I$4,$V129-4,0))","v":""},{"$nulls":7},{"$f":"IF(ISERROR($V129),\"\",OFFSET('Smelter Look-up'!$C$4,$V129-4,0)&\"\")","v":""},"",{"$f":"IF(B129=\"\",\"\",IF(ISERROR(MATCH($J129,SorP!$B$1:$B$5661,0)),\"\",INDIRECT(\"'SorP'!$A$\"&MATCH($J129,SorP!$B$1:$B$5661,0))))","v":""},null,{"$f":"IF(C129=\"\",NA(),MATCH($B129&$C129,'Smelter Look-up'!$J:$J,0))","v":{"$error":"#N/A"}},null,0,null,null,null,""]
[null,{"$f":"IF(LEN(A130)=0,\"\",INDEX('Smelter Look-up'!$A:$A,MATCH($A130,'Smelter Look-up'!$E:$E,0)))","v":""},{"$f":"IF(LEN(A130)=0,\"\",INDEX('Smelter Look-up'!$C:$C,MATCH($A130,'Smelter Look-up'!$E:$E,0)))","v":""},null,{"$f":"IF(ISERROR($V130),\"\",OFFSET('Smelter Look-up'!$D$4,$V130-4,0)&\"\")","v":""},{"$f":"IF(ISERROR($V130),\"\",OFFSET('Smelter Look-up'!$E$4,$V130-4,0))","v":""},{"$f":"IF(C130=$X$4,\"Enter smelter details\",IF(ISERROR($V130),\"\",OFFSET('Smelter Look-up'!$F$4,$V130-4,0)))","v":""},{"$f":"IF(ISERROR($V130),\"\",OFFSET('Smelter Look-up'!$G$4,$V130-4,0))","v":""},{"$f":"IF(ISERROR($V130),\"\",OFFSET('Smelter Look-up'!$H$4,$V130-4,0))","v":""},{"$f":"IF(ISERROR($V130),\"\",OFFSET('Smelter Look-up'!$I$4,$V130-4,0))","v":""},{"$nulls":7},{"$f":"IF(ISERROR($V130),\"\",OFFSET('Smelter Look-up'!$C$4,$V130-4,0)&\"\")","v":""},"",{"$f":"IF(B130=\"\",\"\",IF(ISERROR(MATCH($J130,SorP!$B$1:$B$5661,0)),\"\",INDIRECT(\"'SorP'!$A$\"&MATCH($J130,SorP!$B$1:$B$5661,0))))","v":""},null,{"$f":"IF(C130=\"\",NA(),MATCH($B130&$C130,'Smelter Look-up'!$J:$J,0))","v":{"$error":"#N/A"}},null,0,null,null,null,""]
[null,{"$f":"IF(LEN(A131)=0,\"\",INDEX('Smelter Look-up'!$A:$A,MATCH($A131,'Smelter Look-up'!$E:$E,0)))","v":""},{"$f":"IF(LEN(A131)=0,\"\",INDEX('Smelter Look-up'!$C:$C,MATCH($A131,'Smelter Look-up'!$E:$E,0)))","v":""},null,{"$f":"IF(ISERROR($V131),\"\",OFFSET('Smelter Look-up'!$D$4,$V131-4,0)&\"\")","v":""},{"$f":"IF(ISERROR($V131),\"\",OFFSET('Smelter Look-up'!$E$4,$V131-4,0))","v":""},{"$f":"IF(C131=$X$4,\"Enter smelter details\",IF(ISERROR($V131),\"\",OFFSET('Smelter Look-up'!$F$4,$V131-4,0)))","v":""},{"$f":"IF(ISERROR($V131),\"\",OFFSET('Smelter Look-up'!$G$4,$V131-4,0))","v":""},{"$f":"IF(ISERROR($V131),\"\",OFFSET('Smelter Look-up'!$H$4,$V131-4,0))","v":""},{"$f":"IF(ISERROR($V131),\"\",OFFSET('Smelter Look-up'!$I$4,$V131-4,0))","v":""},{"$nulls":7},{"$f":"IF(ISERROR($V131),\"\",OFFSET('Smelter Look-up'!$C$4,$V131-4,0)&\"\")","v":""},"",{"$f":"IF(B131=\"\",\"\",IF(ISERROR(MATCH($J131,SorP!$B$1:$B$5661,0)),\"\",INDIRECT(\"'SorP'!$A$\"&MATCH($J131,SorP!$B$1:$B$5661,0))))","v":""},null,{"$f":"IF(C131=\"\",NA(),MATCH($B131&$C131,'Smelter Look-up'!$J:$J,0))","v":{"$error":"#N/A"}},null,0,null,null,null,""]
[null,{"$f":"IF(LEN(A132)=0,\"\",INDEX('Smelter Look-up'!$A:$A,MATCH($A132,'Smelter Look-up'!$E:$E,0)))","v":""},{"$f":"IF(LEN(A132)=0,\"\",INDEX('Smelter Look-up'!$C:$C,MATCH($A132,'Smelter Look-up'!$E:$E,0)))","v":""},null,{"$f":"IF(ISERROR($V132),\"\",OFFSET('Smelter Look-up'!$D$4,$V132-4,0)&\"\")","v":""},{"$f":"IF(ISERROR($V132),\"\",OFFSET('Smelter Look-up'!$E$4,$V132-4,0))","v":""},{"$f":"IF(C132=$X$4,\"Enter smelter details\",IF(ISERROR($V132),\"\",OFFSET('Smelter Look-up'!$F$4,$V132-4,0)))","v":""},{"$f":"IF(ISERROR($V132),\"\",OFFSET('Smelter Look-up'!$G$4,$V132-4,0))","v":""},{"$f":"IF(ISERROR($V132),\"\",OFFSET('Smelter Look-up'!$H$4,$V132-4,0))","v":""},{"$f":"IF(ISERROR($V132),\"\",OFFSET('Smelter Look-up'!$I$4,$V132-4,0))","v":""},{"$nulls":7},{"$f":"IF(ISERROR($V132),\"\",OFFSET('Smelter Look-up'!$C$4,$V132-4,0)&\"\")","v":""},"",{"$f":"IF(B132=\"\",\"\",IF(ISERROR(MATCH($J132,SorP!$B$1:$B$5661,0)),\"\",INDIRECT(\"'SorP'!$A$\"&MATCH($J132,SorP!$B$1:$B$5661,0))))","v":""},null,{"$f":"IF(C132=\"\",NA(),MATCH($B132&$C132,'Smelter Look-up'!$J:$J,0))","v":{"$error":"#N/A"}},null,0,null,null,null,""]
[null,{"$f":"IF(LEN(A133)=0,\"\",INDEX('Smelter Look-up'!$A:$A,MATCH($A133,'Smelter Look-up'!$E:$E,0)))","v":""},{"$f":"IF(LEN(A133)=0,\"\",INDEX('Smelter Look-up'!$C:$C,MATCH($A133,'Smelter Look-up'!$E:$E,0)))","v":""},null,{"$f":"IF(ISERROR($V133),\"\",OFFSET('Smelter Look-up'!$D$4,$V133-4,0)&\"\")","v":""},{"$f":"IF(ISERROR($V133),\"\",OFFSET('Smelter Look-up'!$E$4,$V133-4,0))","v":""},{"$f":"IF(C133=$X$4,\"Enter smelter details\",IF(ISERROR($V133),\"\",OFFSET('Smelter Look-up'!$F$4,$V133-4,0)))","v":""},{"$f":"IF(ISERROR($V133),\"\",OFFSET('Smelter Look-up'!$G$4,$V133-4,0))","v":""},{"$f":"IF(ISERROR($V133),\"\",OFFSET('Smelter Look-up'!$H$4,$V133-4,0))","v":""},{"$f":"IF(ISERROR($V133),\"\",OFFSET('Smelter Look-up'!$I$4,$V133-4,0))","v":""},{"$nulls":7},{"$f":"IF(ISERROR($V133),\"\",OFFSET('Smelter Look-up'!$C$4,$V133-4,0)&\"\")","v":""},"",{"$f":"IF(B133=\"\",\"\",IF(ISERROR(MATCH($J133,SorP!$B$1:$B$5661,0)),\"\",INDIRECT(\"'SorP'!$A$\"&MATCH($J133,SorP!$B$1:$B$5661,0))))","v":""},null,{"$f":"IF(C133=\"\",NA(),MATCH($B133&$C133,'Smelter Look-up'!$J:$J,0))","v":{"$error":"#N/A"}},null,0,null,null,null,""]
[null,{"$f":"IF(LEN(A134)=0,\"\",INDEX('Smelter Look-up'!$A:$A,MATCH($A134,'Smelter Look-up'!$E:$E,0)))","v":""},{"$f":"IF(LEN(A134)=0,\"\",INDEX('Smelter Look-up'!$C:$C,MATCH($A134,'Smelter Look-up'!$E:$E,0)))","v":""},null,{"$f":"IF(ISERROR($V134),\"\",OFFSET('Smelter Look-up'!$D$4,$V134-4,0)&\"\")","v":""},{"$f":"IF(ISERROR($V134),\"\",OFFSET('Smelter Look-up'!$E$4,$V134-4,0))","v":""},{"$f":"IF(C134=$X$4,\"Enter smelter details\",IF(ISERROR($V134),\"\",OFFSET('Smelter Look-up'!$F$4,$V134-4,0)))","v":""},{"$f":"IF(ISERROR($V134),\"\",OFFSET('Smelter Look-up'!$G$4,$V134-4,0))","v":""},{"$f":"IF(ISERROR($V134),\"\",OFFSET('Smelter Look-up'!$H$4,$V134-4,0))","v":""},{"$f":"IF(ISERROR($V134),\"\",OFFSET('Smelter Look-up'!$I$4,$V134-4,0))","v":""},{"$nulls":7},{"$f":"IF(ISERROR($V134),\"\",OFFSET('Smelter Look-up'!$C$4,$V134-4,0)&\"\")","v":""},"",{"$f":"IF(B134=\"\",\"\",IF(ISERROR(MATCH($J134,SorP!$B$1:$B$5661,0)),\"\",INDIRECT(\"'SorP'!$A$\"&MATCH($J134,SorP!$B$1:$B$5661,0))))","v":""},null,{"$f":"IF(C134=\"\",NA(),MATCH($B134&$C134,'Smelter Look-up'!$J:$J,0))","v":{"$error":"#N/A"}},null,0,null,null,null,""]
[null,{"$f":"IF(LEN(A135)=0,\"\",INDEX('Smelter Look-up'!$A:$A,MATCH($A135,'Smelter Look-up'!$E:$E,0)))","v":""},{"$f":"IF(LEN(A135)=0,\"\",INDEX('Smelter Look-up'!$C:$C,MATCH($A135,'Smelter Look-up'!$E:$E,0)))","v":""},null,{"$f":"IF(ISERROR($V135),\"\",OFFSET('Smelter Look-up'!$D$4,$V135-4,0)&\"\")","v":""},{"$f":"IF(ISERROR($V135),\"\",OFFSET('Smelter Look-up'!$E$4,$V135-4,0))","v":""},{"$f":"IF(C135=$X$4,\"Enter smelter details\",IF(ISERROR($V135),\"\",OFFSET('Smelter Look-up'!$F$4,$V135-4,0)))","v":""},{"$f":"IF(ISERROR($V135),\"\",OFFSET('Smelter Look-up'!$G$4,$V135-4,0))","v":""},{"$f":"IF(ISERROR($V135),\"\",OFFSET('Smelter Look-up'!$H$4,$V135-4,0))","v":""},{"$f":"IF(ISERROR($V135),\"\",OFFSET('Smelter Look-up'!$I$4,$V135-4,0))","v":""},{"$nulls":7},{"$f":"IF(ISERROR($V135),\"\",OFFSET('Smelter Look-up'!$C$4,$V135-4,0)&\"\")","v":""},"",{"$f":"IF(B135=\"\",\"\",IF(ISERROR(MATCH($J135,SorP!$B$1:$B$5661,0)),\"\",INDIRECT(\"'SorP'!$A$\"&MATCH($J135,SorP!$B$1:$B$5661,0))))","v":""},null,{"$f":"IF(C135=\"\",NA(),MATCH($B135&$C135,'Smelter Look-up'!$J:$J,0))","v":{"$error":"#N/A"}},null,0,null,null,null,""]
[null,{"$f":"IF(LEN(A136)=0,\"\",INDEX('Smelter Look-up'!$A:$A,MATCH($A136,'Smelter Look-up'!$E:$E,0)))","v":""},{"$f":"IF(LEN(A136)=0,\"\",INDEX('Smelter Look-up'!$C:$C,MATCH($A136,'Smelter Look-up'!$E:$E,0)))","v":""},null,{"$f":"IF(ISERROR($V136),\"\",OFFSET('Smelter Look-up'!$D$4,$V136-4,0)&\"\")","v":""},{"$f":"IF(ISERROR($V136),\"\",OFFSET('Smelter Look-up'!$E$4,$V136-4,0))","v":""},{"$f":"IF(C136=$X$4,\"Enter smelter details\",IF(ISERROR($V136),\"\",OFFSET('Smelter Look-up'!$F$4,$V136-4,0)))","v":""},{"$f":"IF(ISERROR($V136),\"\",OFFSET('Smelter Look-up'!$G$4,$V136-4,0))","v":""},{"$f":"IF(ISERROR($V136),\"\",OFFSET('Smelter Look-up'!$H$4,$V136-4,0))","v":""},{"$f":"IF(ISERROR($V136),\"\",OFFSET('Smelter Look-up'!$I$4,$V136-4,0))","v":""},{"$nulls":7},{"$f":"IF(ISERROR($V136),\"\",OFFSET('Smelter Look-up'!$C$4,$V136-4,0)&\"\")","v":""},"",{"$f":"IF(B136=\"\",\"\",IF(ISERROR(MATCH($J136,SorP!$B$1:$B$5661,0)),\"\",INDIRECT(\"'SorP'!$A$\"&MATCH($J136,SorP!$B$1:$B$5661,0))))","v":""},null,{"$f":"IF(C136=\"\",NA(),MATCH($B136&$C136,'Smelter Look-up'!$J:$J,0))","v":{"$error":"#N/A"}},null,0,null,null,null,""]
[null,{"$f":"IF(LEN(A137)=0,\"\",INDEX('Smelter Look-up'!$A:$A,MATCH($A137,'Smelter Look-up'!$E:$E,0)))","v":""},{"$f":"IF(LEN(A137)=0,\"\",INDEX('Smelter Look-up'!$C:$C,MATCH($A137,'Smelter Look-up'!$E:$E,0)))","v":""},null,{"$f":"IF(ISERROR($V137),\"\",OFFSET('Smelter Look-up'!$D$4,$V137-4,0)&\"\")","v":""},{"$f":"IF(ISERROR($V137),\"\",OFFSET('Smelter Look-up'!$E$4,$V137-4,0))","v":""},{"$f":"IF(C137=$X$4,\"Enter smelter details\",IF(ISERROR($V137),\"\",OFFSET('Smelter Look-up'!$F$4,$V137-4,0)))","v":""},{"$f":"IF(ISERROR($V137),\"\",OFFSET('Smelter Look-up'!$G$4,$V137-4,0))","v":""},{"$f":"IF(ISERROR($V137),\"\",OFFSET('Smelter Look-up'!$H$4,$V137-4,0))","v":""},{"$f":"IF(ISERROR($V137),\"\",OFFSET('Smelter Look-up'!$I$4,$V137-4,0))","v":""},{"$nulls":7},{"$f":"IF(ISERROR($V137),\"\",OFFSET('Smelter Look-up'!$C$4,$V137-4,0)&\"\")","v":""},"",{"$f":"IF(B137=\"\",\"\",IF(ISERROR(MATCH($J137,SorP!$B$1:$B$5661,0)),\"\",INDIRECT(\"'SorP'!$A$\"&MATCH($J137,SorP!$B$1:$B$5661,0))))","v":""},null,{"$f":"IF(C137=\"\",NA(),MATCH($B137&$C137,'Smelter Look-up'!$J:$J,0))","v":{"$error":"#N/A"}},null,0,null,null,null,""]
[null,{"$f":"IF(LEN(A138)=0,\"\",INDEX('Smelter Look-up'!$A:$A,MATCH($A138,'Smelter Look-up'!$E:$E,0)))","v":""},{"$f":"IF(LEN(A138)=0,\"\",INDEX('Smelter Look-up'!$C:$C,MATCH($A138,'Smelter Look-up'!$E:$E,0)))","v":""},null,{"$f":"IF(ISERROR($V138),\"\",OFFSET('Smelter Look-up'!$D$4,$V138-4,0)&\"\")","v":""},{"$f":"IF(ISERROR($V138),\"\",OFFSET('Smelter Look-up'!$E$4,$V138-4,0))","v":""},{"$f":"IF(C138=$X$4,\"Enter smelter details\",IF(ISERROR($V138),\"\",OFFSET('Smelter Look-up'!$F$4,$V138-4,0)))","v":""},{"$f":"IF(ISERROR($V138),\"\",OFFSET('Smelter Look-up'!$G$4,$V138-4,0))","v":""},{"$f":"IF(ISERROR($V138),\"\",OFFSET('Smelter Look-up'!$H$4,$V138-4,0))","v":""},{"$f":"IF(ISERROR($V138),\"\",OFFSET('Smelter Look-up'!$I$4,$V138-4,0))","v":""},{"$nulls":7},{"$f":"IF(ISERROR($V138),\"\",OFFSET('Smelter Look-up'!$C$4,$V138-4,0)&\"\")","v":""},"",{"$f":"IF(B138=\"\",\"\",IF(ISERROR(MATCH($J138,SorP!$B$1:$B$5661,0)),\"\",INDIRECT(\"'SorP'!$A$\"&MATCH($J138,SorP!$B$1:$B$5661,0))))","v":""},null,{"$f":"IF(C138=\"\",NA(),MATCH($B138&$C138,'Smelter Look-up'!$J:$J,0))","v":{"$error":"#N/A"}},null,0,null,null,null,""]
[null,{"$f":"IF(LEN(A139)=0,\"\",INDEX('Smelter Look-up'!$A:$A,MATCH($A139,'Smelter Look-up'!$E:$E,0)))","v":""},{"$f":"IF(LEN(A139)=0,\"\",INDEX('Smelter Look-up'!$C:$C,MATCH($A139,'Smelter Look-up'!$E:$E,0)))","v":""},null,{"$f":"IF(ISERROR($V139),\"\",OFFSET('Smelter Look-up'!$D$4,$V139-4,0)&\"\")","v":""},{"$f":"IF(ISERROR($V139),\"\",OFFSET('Smelter Look-up'!$E$4,$V139-4,0))","v":""},{"$f":"IF(C139=$X$4,\"Enter smelter details\",IF(ISERROR($V139),\"\",OFFSET('Smelter Look-up'!$F$4,$V139-4,0)))","v":""},{"$f":"IF(ISERROR($V139),\"\",OFFSET('Smelter Look-up'!$G$4,$V139-4,0))","v":""},{"$f":"IF(ISERROR($V139),\"\",OFFSET('Smelter Look-up'!$H$4,$V139-4,0))","v":""},{"$f":"IF(ISERROR($V139),\"\",OFFSET('Smelter Look-up'!$I$4,$V139-4,0))","v":""},{"$nulls":7},{"$f":"IF(ISERROR($V139),\"\",OFFSET('Smelter Look-up'!$C$4,$V139-4,0)&\"\")","v":""},"",{"$f":"IF(B139=\"\",\"\",IF(ISERROR(MATCH($J139,SorP!$B$1:$B$5661,0)),\"\",INDIRECT(\"'SorP'!$A$\"&MATCH($J139,SorP!$B$1:$B$5661,0))))","v":""},null,{"$f":"IF(C139=\"\",NA(),MATCH($B139&$C139,'Smelter Look-up'!$J:$J,0))","v":{"$error":"#N/A"}},null,0,null,null,null,""]
[null,{"$f":"IF(LEN(A140)=0,\"\",INDEX('Smelter Look-up'!$A:$A,MATCH($A140,'Smelter Look-up'!$E:$E,0)))","v":""},{"$f":"IF(LEN(A140)=0,\"\",INDEX('Smelter Look-up'!$C:$C,MATCH($A140,'Smelter Look-up'!$E:$E,0)))","v":""},null,{"$f":"IF(ISERROR($V140),\"\",OFFSET('Smelter Look-up'!$D$4,$V140-4,0)&\"\")","v":""},{"$f":"IF(ISERROR($V140),\"\",OFFSET('Smelter Look-up'!$E$4,$V140-4,0))","v":""},{"$f":"IF(C140=$X$4,\"Enter smelter details\",IF(ISERROR($V140),\"\",OFFSET('Smelter Look-up'!$F$4,$V140-4,0)))","v":""},{"$f":"IF(ISERROR($V140),\"\",OFFSET('Smelter Look-up'!$G$4,$V140-4,0))","v":""},{"$f":"IF(ISERROR($V140),\"\",OFFSET('Smelter Look-up'!$H$4,$V140-4,0))","v":""},{"$f":"IF(ISERROR($V140),\"\",OFFSET('Smelter Look-up'!$I$4,$V140-4,0))","v":""},{"$nulls":7},{"$f":"IF(ISERROR($V140),\"\",OFFSET('Smelter Look-up'!$C$4,$V140-4,0)&\"\")","v":""},"",{"$f":"IF(B140=\"\",\"\",IF(ISERROR(MATCH($J140,SorP!$B$1:$B$5661,0)),\"\",INDIRECT(\"'SorP'!$A$\"&MATCH($J140,SorP!$B$1:$B$5661,0))))","v":""},null,{"$f":"IF(C140=\"\",NA(),MATCH($B140&$C140,'Smelter Look-up'!$J:$J,0))","v":{"$error":"#N/A"}},null,0,null,null,null,""]
[null,{"$f":"IF(LEN(A141)=0,\"\",INDEX('Smelter Look-up'!$A:$A,MATCH($A141,'Smelter Look-up'!$E:$E,0)))","v":""},{"$f":"IF(LEN(A141)=0,\"\",INDEX('Smelter Look-up'!$C:$C,MATCH($A141,'Smelter Look-up'!$E:$E,0)))","v":""},null,{"$f":"IF(ISERROR($V141),\"\",OFFSET('Smelter Look-up'!$D$4,$V141-4,0)&\"\")","v":""},{"$f":"IF(ISERROR($V141),\"\",OFFSET('Smelter Look-up'!$E$4,$V141-4,0))","v":""},{"$f":"IF(C141=$X$4,\"Enter smelter details\",IF(ISERROR($V141),\"\",OFFSET('Smelter Look-up'!$F$4,$V141-4,0)))","v":""},{"$f":"IF(ISERROR($V141),\"\",OFFSET('Smelter Look-up'!$G$4,$V141-4,0))","v":""},{"$f":"IF(ISERROR($V141),\"\",OFFSET('Smelter Look-up'!$H$4,$V141-4,0))","v":""},{"$f":"IF(ISERROR($V141),\"\",OFFSET('Smelter Look-up'!$I$4,$V141-4,0))","v":""},{"$nulls":7},{"$f":"IF(ISERROR($V141),\"\",OFFSET('Smelter Look-up'!$C$4,$V141-4,0)&\"\")","v":""},"",{"$f":"IF(B141=\"\",\"\",IF(ISERROR(MATCH($J141,SorP!$B$1:$B$5661,0)),\"\",INDIRECT(\"'SorP'!$A$\"&MATCH($J141,SorP!$B$1:$B$5661,0))))","v":""},null,{"$f":"IF(C141=\"\",NA(),MATCH($B141&$C141,'Smelter Look-up'!$J:$J,0))","v":{"$error":"#N/A"}},null,0,null,null,null,""]
[null,{"$f":"IF(LEN(A142)=0,\"\",INDEX('Smelter Look-up'!$A:$A,MATCH($A142,'Smelter Look-up'!$E:$E,0)))","v":""},{"$f":"IF(LEN(A142)=0,\"\",INDEX('Smelter Look-up'!$C:$C,MATCH($A142,'Smelter Look-up'!$E:$E,0)))","v":""},null,{"$f":"IF(ISERROR($V142),\"\",OFFSET('Smelter Look-up'!$D$4,$V142-4,0)&\"\")","v":""},{"$f":"IF(ISERROR($V142),\"\",OFFSET('Smelter Look-up'!$E$4,$V142-4,0))","v":""},{"$f":"IF(C142=$X$4,\"Enter smelter details\",IF(ISERROR($V142),\"\",OFFSET('Smelter Look-up'!$F$4,$V142-4,0)))","v":""},{"$f":"IF(ISERROR($V142),\"\",OFFSET('Smelter Look-up'!$G$4,$V142-4,0))","v":""},{"$f":"IF(ISERROR($V142),\"\",OFFSET('Smelter Look-up'!$H$4,$V142-4,0))","v":""},{"$f":"IF(ISERROR($V142),\"\",OFFSET('Smelter Look-up'!$I$4,$V142-4,0))","v":""},{"$nulls":7},{"$f":"IF(ISERROR($V142),\"\",OFFSET('Smelter Look-up'!$C$4,$V142-4,0)&\"\")","v":""},"",{"$f":"IF(B142=\"\",\"\",IF(ISERROR(MATCH($J142,SorP!$B$1:$B$5661,0)),\"\",INDIRECT(\"'SorP'!$A$\"&MATCH($J142,SorP!$B$1:$B$5661,0))))","v":""},null,{"$f":"IF(C142=\"\",NA(),MATCH($B142&$C142,'Smelter Look-up'!$J:$J,0))","v":{"$error":"#N/A"}},null,0,null,null,null,""]
[null,{"$f":"IF(LEN(A143)=0,\"\",INDEX('Smelter Look-up'!$A:$A,MATCH($A143,'Smelter Look-up'!$E:$E,0)))","v":""},{"$f":"IF(LEN(A143)=0,\"\",INDEX('Smelter Look-up'!$C:$C,MATCH($A143,'Smelter Look-up'!$E:$E,0)))","v":""},null,{"$f":"IF(ISERROR($V143),\"\",OFFSET('Smelter Look-up'!$D$4,$V143-4,0)&\"\")","v":""},{"$f":"IF(ISERROR($V143),\"\",OFFSET('Smelter Look-up'!$E$4,$V143-4,0))","v":""},{"$f":"IF(C143=$X$4,\"Enter smelter details\",IF(ISERROR($V143),\"\",OFFSET('Smelter Look-up'!$F$4,$V143-4,0)))","v":""},{"$f":"IF(ISERROR($V143),\"\",OFFSET('Smelter Look-up'!$G$4,$V143-4,0))","v":""},{"$f":"IF(ISERROR($V143),\"\",OFFSET('Smelter Look-up'!$H$4,$V143-4,0))","v":""},{"$f":"IF(ISERROR($V143),\"\",OFFSET('Smelter Look-up'!$I$4,$V143-4,0))","v":""},{"$nulls":7},{"$f":"IF(ISERROR($V143),\"\",OFFSET('Smelter Look-up'!$C$4,$V143-4,0)&\"\")","v":""},"",{"$f":"IF(B143=\"\",\"\",IF(ISERROR(MATCH($J143,SorP!$B$1:$B$5661,0)),\"\",INDIRECT(\"'SorP'!$A$\"&MATCH($J143,SorP!$B$1:$B$5661,0))))","v":""},null,{"$f":"IF(C143=\"\",NA(),MATCH($B143&$C143,'Smelter Look-up'!$J:$J,0))","v":{"$error":"#N/A"}},null,0,null,null,null,""]
[null,{"$f":"IF(LEN(A144)=0,\"\",INDEX('Smelter Look-up'!$A:$A,MATCH($A144,'Smelter Look-up'!$E:$E,0)))","v":""},{"$f":"IF(LEN(A144)=0,\"\",INDEX('Smelter Look-up'!$C:$C,MATCH($A144,'Smelter Look-up'!$E:$E,0)))","v":""},null,{"$f":"IF(ISERROR($V144),\"\",OFFSET('Smelter Look-up'!$D$4,$V144-4,0)&\"\")","v":""},{"$f":"IF(ISERROR($V144),\"\",OFFSET('Smelter Look-up'!$E$4,$V144-4,0))","v":""},{"$f":"IF(C144=$X$4,\"Enter smelter details\",IF(ISERROR($V144),\"\",OFFSET('Smelter Look-up'!$F$4,$V144-4,0)))","v":""},{"$f":"IF(ISERROR($V144),\"\",OFFSET('Smelter Look-up'!$G$4,$V144-4,0))","v":""},{"$f":"IF(ISERROR($V144),\"\",OFFSET('Smelter Look-up'!$H$4,$V144-4,0))","v":""},{"$f":"IF(ISERROR($V144),\"\",OFFSET('Smelter Look-up'!$I$4,$V144-4,0))","v":""},{"$nulls":7},{"$f":"IF(ISERROR($V144),\"\",OFFSET('Smelter Look-up'!$C$4,$V144-4,0)&\"\")","v":""},"",{"$f":"IF(B144=\"\",\"\",IF(ISERROR(MATCH($J144,SorP!$B$1:$B$5661,0)),\"\",INDIRECT(\"'SorP'!$A$\"&MATCH($J144,SorP!$B$1:$B$5661,0))))","v":""},null,{"$f":"IF(C144=\"\",NA(),MATCH($B144&$C144,'Smelter Look-up'!$J:$J,0))","v":{"$error":"#N/A"}},null,0,null,null,null,""]
[null,{"$f":"IF(LEN(A145)=0,\"\",INDEX('Smelter Look-up'!$A:$A,MATCH($A145,'Smelter Look-up'!$E:$E,0)))","v":""},{"$f":"IF(LEN(A145)=0,\"\",INDEX('Smelter Look-up'!$C:$C,MATCH($A145,'Smelter Look-up'!$E:$E,0)))","v":""},null,{"$f":"IF(ISERROR($V145),\"\",OFFSET('Smelter Look-up'!$D$4,$V145-4,0)&\"\")","v":""},{"$f":"IF(ISERROR($V145),\"\",OFFSET('Smelter Look-up'!$E$4,$V145-4,0))","v":""},{"$f":"IF(C145=$X$4,\"Enter smelter details\",IF(ISERROR($V145),\"\",OFFSET('Smelter Look-up'!$F$4,$V145-4,0)))","v":""},{"$f":"IF(ISERROR($V145),\"\",OFFSET('Smelter Look-up'!$G$4,$V145-4,0))","v":""},{"$f":"IF(ISERROR($V145),\"\",OFFSET('Smelter Look-up'!$H$4,$V145-4,0))","v":""},{"$f":"IF(ISERROR($V145),\"\",OFFSET('Smelter Look-up'!$I$4,$V145-4,0))","v":""},{"$nulls":7},{"$f":"IF(ISERROR($V145),\"\",OFFSET('Smelter Look-up'!$C$4,$V145-4,0)&\"\")","v":""},"",{"$f":"IF(B145=\"\",\"\",IF(ISERROR(MATCH($J145,SorP!$B$1:$B$5661,0)),\"\",INDIRECT(\"'SorP'!$A$\"&MATCH($J145,SorP!$B$1:$B$5661,0))))","v":""},null,{"$f":"IF(C145=\"\",NA(),MATCH($B145&$C145,'Smelter Look-up'!$J:$J,0))","v":{"$error":"#N/A"}},null,0,null,null,null,""]
[null,{"$f":"IF(LEN(A146)=0,\"\",INDEX('Smelter Look-up'!$A:$A,MATCH($A146,'Smelter Look-up'!$E:$E,0)))","v":""},{"$f":"IF(LEN(A146)=0,\"\",INDEX('Smelter Look-up'!$C:$C,MATCH($A146,'Smelter Look-up'!$E:$E,0)))","v":""},null,{"$f":"IF(ISERROR($V146),\"\",OFFSET('Smelter Look-up'!$D$4,$V146-4,0)&\"\")","v":""},{"$f":"IF(ISERROR($V146),\"\",OFFSET('Smelter Look-up'!$E$4,$V146-4,0))","v":""},{"$f":"IF(C146=$X$4,\"Enter smelter details\",IF(ISERROR($V146),\"\",OFFSET('Smelter Look-up'!$F$4,$V146-4,0)))","v":""},{"$f":"IF(ISERROR($V146),\"\",OFFSET('Smelter Look-up'!$G$4,$V146-4,0))","v":""},{"$f":"IF(ISERROR($V146),\"\",OFFSET('Smelter Look-up'!$H$4,$V146-4,0))","v":""},{"$f":"IF(ISERROR($V146),\"\",OFFSET('Smelter Look-up'!$I$4,$V146-4,0))","v":""},{"$nulls":7},{"$f":"IF(ISERROR($V146),\"\",OFFSET('Smelter Look-up'!$C$4,$V146-4,0)&\"\")","v":""},"",{"$f":"IF(B146=\"\",\"\",IF(ISERROR(MATCH($J146,SorP!$B$1:$B$5661,0)),\"\",INDIRECT(\"'SorP'!$A$\"&MATCH($J146,SorP!$B$1:$B$5661,0))))","v":""},null,{"$f":"IF(C146=\"\",NA(),MATCH($B146&$C146,'Smelter Look-up'!$J:$J,0))","v":{"$error":"#N/A"}},null,0,null,null,null,""]
[null,{"$f":"IF(LEN(A147)=0,\"\",INDEX('Smelter Look-up'!$A:$A,MATCH($A147,'Smelter Look-up'!$E:$E,0)))","v":""},{"$f":"IF(LEN(A147)=0,\"\",INDEX('Smelter Look-up'!$C:$C,MATCH($A147,'Smelter Look-up'!$E:$E,0)))","v":""},null,{"$f":"IF(ISERROR($V147),\"\",OFFSET('Smelter Look-up'!$D$4,$V147-4,0)&\"\")","v":""},{"$f":"IF(ISERROR($V147),\"\",OFFSET('Smelter Look-up'!$E$4,$V147-4,0))","v":""},{"$f":"IF(C147=$X$4,\"Enter smelter details\",IF(ISERROR($V147),\"\",OFFSET('Smelter Look-up'!$F$4,$V147-4,0)))","v":""},{"$f":"IF(ISERROR($V147),\"\",OFFSET('Smelter Look-up'!$G$4,$V147-4,0))","v":""},{"$f":"IF(ISERROR($V147),\"\",OFFSET('Smelter Look-up'!$H$4,$V147-4,0))","v":""},{"$f":"IF(ISERROR($V147),\"\",OFFSET('Smelter Look-up'!$I$4,$V147-4,0))","v":""},{"$nulls":7},{"$f":"IF(ISERROR($V147),\"\",OFFSET('Smelter Look-up'!$C$4,$V147-4,0)&\"\")","v":""},"",{"$f":"IF(B147=\"\",\"\",IF(ISERROR(MATCH($J147,SorP!$B$1:$B$5661,0)),\"\",INDIRECT(\"'SorP'!$A$\"&MATCH($J147,SorP!$B$1:$B$5661,0))))","v":""},null,{"$f":"IF(C147=\"\",NA(),MATCH($B147&$C147,'Smelter Look-up'!$J:$J,0))","v":{"$error":"#N/A"}},null,0,null,null,null,""]
[null,{"$f":"IF(LEN(A148)=0,\"\",INDEX('Smelter Look-up'!$A:$A,MATCH($A148,'Smelter Look-up'!$E:$E,0)))","v":""},{"$f":"IF(LEN(A148)=0,\"\",INDEX('Smelter Look-up'!$C:$C,MATCH($A148,'Smelter Look-up'!$E:$E,0)))","v":""},null,{"$f":"IF(ISERROR($V148),\"\",OFFSET('Smelter Look-up'!$D$4,$V148-4,0)&\"\")","v":""},{"$f":"IF(ISERROR($V148),\"\",OFFSET('Smelter Look-up'!$E$4,$V148-4,0))","v":""},{"$f":"IF(C148=$X$4,\"Enter smelter details\",IF(ISERROR($V148),\"\",OFFSET('Smelter Look-up'!$F$4,$V148-4,0)))","v":""},{"$f":"IF(ISERROR($V148),\"\",OFFSET('Smelter Look-up'!$G$4,$V148-4,0))","v":""},{"$f":"IF(ISERROR($V148),\"\",OFFSET('Smelter Look-up'!$H$4,$V148-4,0))","v":""},{"$f":"IF(ISERROR($V148),\"\",OFFSET('Smelter Look-up'!$I$4,$V148-4,0))","v":""},{"$nulls":7},{"$f":"IF(ISERROR($V148),\"\",OFFSET('Smelter Look-up'!$C$4,$V148-4,0)&\"\")","v":""},"",{"$f":"IF(B148=\"\",\"\",IF(ISERROR(MATCH($J148,SorP!$B$1:$B$5661,0)),\"\",INDIRECT(\"'SorP'!$A$\"&MATCH($J148,SorP!$B$1:$B$5661,0))))","v":""},null,{"$f":"IF(C148=\"\",NA(),MATCH($B148&$C148,'Smelter Look-up'!$J:$J,0))","v":{"$error":"#N/A"}},null,0,null,null,null,""]
[null,{"$f":"IF(LEN(A149)=0,\"\",INDEX('Smelter Look-up'!$A:$A,MATCH($A149,'Smelter Look-up'!$E:$E,0)))","v":""},{"$f":"IF(LEN(A149)=0,\"\",INDEX('Smelter Look-up'!$C:$C,MATCH($A149,'Smelter Look-up'!$E:$E,0)))","v":""},null,{"$f":"IF(ISERROR($V149),\"\",OFFSET('Smelter Look-up'!$D$4,$V149-4,0)&\"\")","v":""},{"$f":"IF(ISERROR($V149),\"\",OFFSET('Smelter Look-up'!$E$4,$V149-4,0))","v":""},{"$f":"IF(C149=$X$4,\"Enter smelter details\",IF(ISERROR($V149),\"\",OFFSET('Smelter Look-up'!$F$4,$V149-4,0)))","v":""},{"$f":"IF(ISERROR($V149),\"\",OFFSET('Smelter Look-up'!$G$4,$V149-4,0))","v":""},{"$f":"IF(ISERROR($V149),\"\",OFFSET('Smelter Look-up'!$H$4,$V149-4,0))","v":""},{"$f":"IF(ISERROR($V149),\"\",OFFSET('Smelter Look-up'!$I$4,$V149-4,0))","v":""},{"$nulls":7},{"$f":"IF(ISERROR($V149),\"\",OFFSET('Smelter Look-up'!$C$4,$V149-4,0)&\"\")","v":""},"",{"$f":"IF(B149=\"\",\"\",IF(ISERROR(MATCH($J149,SorP!$B$1:$B$5661,0)),\"\",INDIRECT(\"'SorP'!$A$\"&MATCH($J149,SorP!$B$1:$B$5661,0))))","v":""},null,{"$f":"IF(C149=\"\",NA(),MATCH($B149&$C149,'Smelter Look-up'!$J:$J,0))","v":{"$error":"#N/A"}},null,0,null,null,null,""]
[null,{"$f":"IF(LEN(A150)=0,\"\",INDEX('Smelter Look-up'!$A:$A,MATCH($A150,'Smelter Look-up'!$E:$E,0)))","v":""},{"$f":"IF(LEN(A150)=0,\"\",INDEX('Smelter Look-up'!$C:$C,MATCH($A150,'Smelter Look-up'!$E:$E,0)))","v":""},null,{"$f":"IF(ISERROR($V150),\"\",OFFSET('Smelter Look-up'!$D$4,$V150-4,0)&\"\")","v":""},{"$f":"IF(ISERROR($V150),\"\",OFFSET('Smelter Look-up'!$E$4,$V150-4,0))","v":""},{"$f":"IF(C150=$X$4,\"Enter smelter details\",IF(ISERROR($V150),\"\",OFFSET('Smelter Look-up'!$F$4,$V150-4,0)))","v":""},{"$f":"IF(ISERROR($V150),\"\",OFFSET('Smelter Look-up'!$G$4,$V150-4,0))","v":""},{"$f":"IF(ISERROR($V150),\"\",OFFSET('Smelter Look-up'!$H$4,$V150-4,0))","v":""},{"$f":"IF(ISERROR($V150),\"\",OFFSET('Smelter Look-up'!$I$4,$V150-4,0))","v":""},{"$nulls":7},{"$f":"IF(ISERROR($V150),\"\",OFFSET('Smelter Look-up'!$C$4,$V150-4,0)&\"\")","v":""},"",{"$f":"IF(B150=\"\",\"\",IF(ISERROR(MATCH($J150,SorP!$B$1:$B$5661,0)),\"\",INDIRECT(\"'SorP'!$A$\"&MATCH($J150,SorP!$B$1:$B$5661,0))))","v":""},null,{"$f":"IF(C150=\"\",NA(),MATCH($B150&$C150,'Smelter Look-up'!$J:$J,0))","v":{"$error":"#N/A"}},null,0,null,null,null,""]
[null,{"$f":"IF(LEN(A151)=0,\"\",INDEX('Smelter Look-up'!$A:$A,MATCH($A151,'Smelter Look-up'!$E:$E,0)))","v":""},{"$f":"IF(LEN(A151)=0,\"\",INDEX('Smelter Look-up'!$C:$C,MATCH($A151,'Smelter Look-up'!$E:$E,0)))","v":""},null,{"$f":"IF(ISERROR($V151),\"\",OFFSET('Smelter Look-up'!$D$4,$V151-4,0)&\"\")","v":""},{"$f":"IF(ISERROR($V151),\"\",OFFSET('Smelter Look-up'!$E$4,$V151-4,0))","v":""},{"$f":"IF(C151=$X$4,\"Enter smelter details\",IF(ISERROR($V151),\"\",OFFSET('Smelter Look-up'!$F$4,$V151-4,0)))","v":""},{"$f":"IF(ISERROR($V151),\"\",OFFSET('Smelter Look-up'!$G$4,$V151-4,0))","v":""},{"$f":"IF(ISERROR($V151),\"\",OFFSET('Smelter Look-up'!$H$4,$V151-4,0))","v":""},{"$f":"IF(ISERROR($V151),\"\",OFFSET('Smelter Look-up'!$I$4,$V151-4,0))","v":""},{"$nulls":7},{"$f":"IF(ISERROR($V151),\"\",OFFSET('Smelter Look-up'!$C$4,$V151-4,0)&\"\")","v":""},"",{"$f":"IF(B151=\"\",\"\",IF(ISERROR(MATCH($J151,SorP!$B$1:$B$5661,0)),\"\",INDIRECT(\"'SorP'!$A$\"&MATCH($J151,SorP!$B$1:$B$5661,0))))","v":""},null,{"$f":"IF(C151=\"\",NA(),MATCH($B151&$C151,'Smelter Look-up'!$J:$J,0))","v":{"$error":"#N/A"}},null,0,null,null,null,""]
[null,{"$f":"IF(LEN(A152)=0,\"\",INDEX('Smelter Look-up'!$A:$A,MATCH($A152,'Smelter Look-up'!$E:$E,0)))","v":""},{"$f":"IF(LEN(A152)=0,\"\",INDEX('Smelter Look-up'!$C:$C,MATCH($A152,'Smelter Look-up'!$E:$E,0)))","v":""},null,{"$f":"IF(ISERROR($V152),\"\",OFFSET('Smelter Look-up'!$D$4,$V152-4,0)&\"\")","v":""},{"$f":"IF(ISERROR($V152),\"\",OFFSET('Smelter Look-up'!$E$4,$V152-4,0))","v":""},{"$f":"IF(C152=$X$4,\"Enter smelter details\",IF(ISERROR($V152),\"\",OFFSET('Smelter Look-up'!$F$4,$V152-4,0)))","v":""},{"$f":"IF(ISERROR($V152),\"\",OFFSET('Smelter Look-up'!$G$4,$V152-4,0))","v":""},{"$f":"IF(ISERROR($V152),\"\",OFFSET('Smelter Look-up'!$H$4,$V152-4,0))","v":""},{"$f":"IF(ISERROR($V152),\"\",OFFSET('Smelter Look-up'!$I$4,$V152-4,0))","v":""},{"$nulls":7},{"$f":"IF(ISERROR($V152),\"\",OFFSET('Smelter Look-up'!$C$4,$V152-4,0)&\"\")","v":""},"",{"$f":"IF(B152=\"\",\"\",IF(ISERROR(MATCH($J152,SorP!$B$1:$B$5661,0)),\"\",INDIRECT(\"'SorP'!$A$\"&MATCH($J152,SorP!$B$1:$B$5661,0))))","v":""},null,{"$f":"IF(C152=\"\",NA(),MATCH($B152&$C152,'Smelter Look-up'!$J:$J,0))","v":{"$error":"#N/A"}},null,0,null,null,null,""]
[null,{"$f":"IF(LEN(A153)=0,\"\",INDEX('Smelter Look-up'!$A:$A,MATCH($A153,'Smelter Look-up'!$E:$E,0)))","v":""},{"$f":"IF(LEN(A153)=0,\"\",INDEX('Smelter Look-up'!$C:$C,MATCH($A153,'Smelter Look-up'!$E:$E,0)))","v":""},null,{"$f":"IF(ISERROR($V153),\"\",OFFSET('Smelter Look-up'!$D$4,$V153-4,0)&\"\")","v":""},{"$f":"IF(ISERROR($V153),\"\",OFFSET('Smelter Look-up'!$E$4,$V153-4,0))","v":""},{"$f":"IF(C153=$X$4,\"Enter smelter details\",IF(ISERROR($V153),\"\",OFFSET('Smelter Look-up'!$F$4,$V153-4,0)))","v":""},{"$f":"IF(ISERROR($V153),\"\",OFFSET('Smelter Look-up'!$G$4,$V153-4,0))","v":""},{"$f":"IF(ISERROR($V153),\"\",OFFSET('Smelter Look-up'!$H$4,$V153-4,0))","v":""},{"$f":"IF(ISERROR($V153),\"\",OFFSET('Smelter Look-up'!$I$4,$V153-4,0))","v":""},{"$nulls":7},{"$f":"IF(ISERROR($V153),\"\",OFFSET('Smelter Look-up'!$C$4,$V153-4,0)&\"\")","v":""},"",{"$f":"IF(B153=\"\",\"\",IF(ISERROR(MATCH($J153,SorP!$B$1:$B$5661,0)),\"\",INDIRECT(\"'SorP'!$A$\"&MATCH($J153,SorP!$B$1:$B$5661,0))))","v":""},null,{"$f":"IF(C153=\"\",NA(),MATCH($B153&$C153,'Smelter Look-up'!$J:$J,0))","v":{"$error":"#N/A"}},null,0,null,null,null,""]
[null,{"$f":"IF(LEN(A154)=0,\"\",INDEX('Smelter Look-up'!$A:$A,MATCH($A154,'Smelter Look-up'!$E:$E,0)))","v":""},{"$f":"IF(LEN(A154)=0,\"\",INDEX('Smelter Look-up'!$C:$C,MATCH($A154,'Smelter Look-up'!$E:$E,0)))","v":""},null,{"$f":"IF(ISERROR($V154),\"\",OFFSET('Smelter Look-up'!$D$4,$V154-4,0)&\"\")","v":""},{"$f":"IF(ISERROR($V154),\"\",OFFSET('Smelter Look-up'!$E$4,$V154-4,0))","v":""},{"$f":"IF(C154=$X$4,\"Enter smelter details\",IF(ISERROR($V154),\"\",OFFSET('Smelter Look-up'!$F$4,$V154-4,0)))","v":""},{"$f":"IF(ISERROR($V154),\"\",OFFSET('Smelter Look-up'!$G$4,$V154-4,0))","v":""},{"$f":"IF(ISERROR($V154),\"\",OFFSET('Smelter Look-up'!$H$4,$V154-4,0))","v":""},{"$f":"IF(ISERROR($V154),\"\",OFFSET('Smelter Look-up'!$I$4,$V154-4,0))","v":""},{"$nulls":7},{"$f":"IF(ISERROR($V154),\"\",OFFSET('Smelter Look-up'!$C$4,$V154-4,0)&\"\")","v":""},"",{"$f":"IF(B154=\"\",\"\",IF(ISERROR(MATCH($J154,SorP!$B$1:$B$5661,0)),\"\",INDIRECT(\"'SorP'!$A$\"&MATCH($J154,SorP!$B$1:$B$5661,0))))","v":""},null,{"$f":"IF(C154=\"\",NA(),MATCH($B154&$C154,'Smelter Look-up'!$J:$J,0))","v":{"$error":"#N/A"}},null,0,null,null,null,""]
[null,{"$f":"IF(LEN(A155)=0,\"\",INDEX('Smelter Look-up'!$A:$A,MATCH($A155,'Smelter Look-up'!$E:$E,0)))","v":""},{"$f":"IF(LEN(A155)=0,\"\",INDEX('Smelter Look-up'!$C:$C,MATCH($A155,'Smelter Look-up'!$E:$E,0)))","v":""},null,{"$f":"IF(ISERROR($V155),\"\",OFFSET('Smelter Look-up'!$D$4,$V155-4,0)&\"\")","v":""},{"$f":"IF(ISERROR($V155),\"\",OFFSET('Smelter Look-up'!$E$4,$V155-4,0))","v":""},{"$f":"IF(C155=$X$4,\"Enter smelter details\",IF(ISERROR($V155),\"\",OFFSET('Smelter Look-up'!$F$4,$V155-4,0)))","v":""},{"$f":"IF(ISERROR($V155),\"\",OFFSET('Smelter Look-up'!$G$4,$V155-4,0))","v":""},{"$f":"IF(ISERROR($V155),\"\",OFFSET('Smelter Look-up'!$H$4,$V155-4,0))","v":""},{"$f":"IF(ISERROR($V155),\"\",OFFSET('Smelter Look-up'!$I$4,$V155-4,0))","v":""},{"$nulls":7},{"$f":"IF(ISERROR($V155),\"\",OFFSET('Smelter Look-up'!$C$4,$V155-4,0)&\"\")","v":""},"",{"$f":"IF(B155=\"\",\"\",IF(ISERROR(MATCH($J155,SorP!$B$1:$B$5661,0)),\"\",INDIRECT(\"'SorP'!$A$\"&MATCH($J155,SorP!$B$1:$B$5661,0))))","v":""},null,{"$f":"IF(C155=\"\",NA(),MATCH($B155&$C155,'Smelter Look-up'!$J:$J,0))","v":{"$error":"#N/A"}},null,0,null,null,null,""]
[null,{"$f":"IF(LEN(A156)=0,\"\",INDEX('Smelter Look-up'!$A:$A,MATCH($A156,'Smelter Look-up'!$E:$E,0)))","v":""},{"$f":"IF(LEN(A156)=0,\"\",INDEX('Smelter Look-up'!$C:$C,MATCH($A156,'Smelter Look-up'!$E:$E,0)))","v":""},null,{"$f":"IF(ISERROR($V156),\"\",OFFSET('Smelter Look-up'!$D$4,$V156-4,0)&\"\")","v":""},{"$f":"IF(ISERROR($V156),\"\",OFFSET('Smelter Look-up'!$E$4,$V156-4,0))","v":""},{"$f":"IF(C156=$X$4,\"Enter smelter details\",IF(ISERROR($V156),\"\",OFFSET('Smelter Look-up'!$F$4,$V156-4,0)))","v":""},{"$f":"IF(ISERROR($V156),\"\",OFFSET('Smelter Look-up'!$G$4,$V156-4,0))","v":""},{"$f":"IF(ISERROR($V156),\"\",OFFSET('Smelter Look-up'!$H$4,$V156-4,0))","v":""},{"$f":"IF(ISERROR($V156),\"\",OFFSET('Smelter Look-up'!$I$4,$V156-4,0))","v":""},{"$nulls":7},{"$f":"IF(ISERROR($V156),\"\",OFFSET('Smelter Look-up'!$C$4,$V156-4,0)&\"\")","v":""},"",{"$f":"IF(B156=\"\",\"\",IF(ISERROR(MATCH($J156,SorP!$B$1:$B$5661,0)),\"\",INDIRECT(\"'SorP'!$A$\"&MATCH($J156,SorP!$B$1:$B$5661,0))))","v":""},null,{"$f":"IF(C156=\"\",NA(),MATCH($B156&$C156,'Smelter Look-up'!$J:$J,0))","v":{"$error":"#N/A"}},null,0,null,null,null,""]
[null,{"$f":"IF(LEN(A157)=0,\"\",INDEX('Smelter Look-up'!$A:$A,MATCH($A157,'Smelter Look-up'!$E:$E,0)))","v":""},{"$f":"IF(LEN(A157)=0,\"\",INDEX('Smelter Look-up'!$C:$C,MATCH($A157,'Smelter Look-up'!$E:$E,0)))","v":""},null,{"$f":"IF(ISERROR($V157),\"\",OFFSET('Smelter Look-up'!$D$4,$V157-4,0)&\"\")","v":""},{"$f":"IF(ISERROR($V157),\"\",OFFSET('Smelter Look-up'!$E$4,$V157-4,0))","v":""},{"$f":"IF(C157=$X$4,\"Enter smelter details\",IF(ISERROR($V157),\"\",OFFSET('Smelter Look-up'!$F$4,$V157-4,0)))","v":""},{"$f":"IF(ISERROR($V157),\"\",OFFSET('Smelter Look-up'!$G$4,$V157-4,0))","v":""},{"$f":"IF(ISERROR($V157),\"\",OFFSET('Smelter Look-up'!$H$4,$V157-4,0))","v":""},{"$f":"IF(ISERROR($V157),\"\",OFFSET('Smelter Look-up'!$I$4,$V157-4,0))","v":""},{"$nulls":7},{"$f":"IF(ISERROR($V157),\"\",OFFSET('Smelter Look-up'!$C$4,$V157-4,0)&\"\")","v":""},"",{"$f":"IF(B157=\"\",\"\",IF(ISERROR(MATCH($J157,SorP!$B$1:$B$5661,0)),\"\",INDIRECT(\"'SorP'!$A$\"&MATCH($J157,SorP!$B$1:$B$5661,0))))","v":""},null,{"$f":"IF(C157=\"\",NA(),MATCH($B157&$C157,'Smelter Look-up'!$J:$J,0))","v":{"$error":"#N/A"}},null,0,null,null,null,""]
[null,{"$f":"IF(LEN(A158)=0,\"\",INDEX('Smelter Look-up'!$A:$A,MATCH($A158,'Smelter Look-up'!$E:$E,0)))","v":""},{"$f":"IF(LEN(A158)=0,\"\",INDEX('Smelter Look-up'!$C:$C,MATCH($A158,'Smelter Look-up'!$E:$E,0)))","v":""},null,{"$f":"IF(ISERROR($V158),\"\",OFFSET('Smelter Look-up'!$D$4,$V158-4,0)&\"\")","v":""},{"$f":"IF(ISERROR($V158),\"\",OFFSET('Smelter Look-up'!$E$4,$V158-4,0))","v":""},{"$f":"IF(C158=$X$4,\"Enter smelter details\",IF(ISERROR($V158),\"\",OFFSET('Smelter Look-up'!$F$4,$V158-4,0)))","v":""},{"$f":"IF(ISERROR($V158),\"\",OFFSET('Smelter Look-up'!$G$4,$V158-4,0))","v":""},{"$f":"IF(ISERROR($V158),\"\",OFFSET('Smelter Look-up'!$H$4,$V158-4,0))","v":""},{"$f":"IF(ISERROR($V158),\"\",OFFSET('Smelter Look-up'!$I$4,$V158-4,0))","v":""},{"$nulls":7},{"$f":"IF(ISERROR($V158),\"\",OFFSET('Smelter Look-up'!$C$4,$V158-4,0)&\"\")","v":""},"",{"$f":"IF(B158=\"\",\"\",IF(ISERROR(MATCH($J158,SorP!$B$1:$B$5661,0)),\"\",INDIRECT(\"'SorP'!$A$\"&MATCH($J158,SorP!$B$1:$B$5661,0))))","v":""},null,{"$f":"IF(C158=\"\",NA(),MATCH($B158&$C158,'Smelter Look-up'!$J:$J,0))","v":{"$error":"#N/A"}},null,0,null,null,null,""]
[null,{"$f":"IF(LEN(A159)=0,\"\",INDEX('Smelter Look-up'!$A:$A,MATCH($A159,'Smelter Look-up'!$E:$E,0)))","v":""},{"$f":"IF(LEN(A159)=0,\"\",INDEX('Smelter Look-up'!$C:$C,MATCH($A159,'Smelter Look-up'!$E:$E,0)))","v":""},null,{"$f":"IF(ISERROR($V159),\"\",OFFSET('Smelter Look-up'!$D$4,$V159-4,0)&\"\")","v":""},{"$f":"IF(ISERROR($V159),\"\",OFFSET('Smelter Look-up'!$E$4,$V159-4,0))","v":""},{"$f":"IF(C159=$X$4,\"Enter smelter details\",IF(ISERROR($V159),\"\",OFFSET('Smelter Look-up'!$F$4,$V159-4,0)))","v":""},{"$f":"IF(ISERROR($V159),\"\",OFFSET('Smelter Look-up'!$G$4,$V159-4,0))","v":""},{"$f":"IF(ISERROR($V159),\"\",OFFSET('Smelter Look-up'!$H$4,$V159-4,0))","v":""},{"$f":"IF(ISERROR($V159),\"\",OFFSET('Smelter Look-up'!$I$4,$V159-4,0))","v":""},{"$nulls":7},{"$f":"IF(ISERROR($V159),\"\",OFFSET('Smelter Look-up'!$C$4,$V159-4,0)&\"\")","v":""},"",{"$f":"IF(B159=\"\",\"\",IF(ISERROR(MATCH($J159,SorP!$B$1:$B$5661,0)),\"\",INDIRECT(\"'SorP'!$A$\"&MATCH($J159,SorP!$B$1:$B$5661,0))))","v":""},null,{"$f":"IF(C159=\"\",NA(),MATCH($B159&$C159,'Smelter Look-up'!$J:$J,0))","v":{"$error":"#N/A"}},null,0,null,null,null,""]
[null,{"$f":"IF(LEN(A160)=0,\"\",INDEX('Smelter Look-up'!$A:$A,MATCH($A160,'Smelter Look-up'!$E:$E,0)))","v":""},{"$f":"IF(LEN(A160)=0,\"\",INDEX('Smelter Look-up'!$C:$C,MATCH($A160,'Smelter Look-up'!$E:$E,0)))","v":""},null,{"$f":"IF(ISERROR($V160),\"\",OFFSET('Smelter Look-up'!$D$4,$V160-4,0)&\"\")","v":""},{"$f":"IF(ISERROR($V160),\"\",OFFSET('Smelter Look-up'!$E$4,$V160-4,0))","v":""},{"$f":"IF(C160=$X$4,\"Enter smelter details\",IF(ISERROR($V160),\"\",OFFSET('Smelter Look-up'!$F$4,$V160-4,0)))","v":""},{"$f":"IF(ISERROR($V160),\"\",OFFSET('Smelter Look-up'!$G$4,$V160-4,0))","v":""},{"$f":"IF(ISERROR($V160),\"\",OFFSET('Smelter Look-up'!$H$4,$V160-4,0))","v":""},{"$f":"IF(ISERROR($V160),\"\",OFFSET('Smelter Look-up'!$I$4,$V160-4,0))","v":""},{"$nulls":7},{"$f":"IF(ISERROR($V160),\"\",OFFSET('Smelter Look-up'!$C$4,$V160-4,0)&\"\")","v":""},"",{"$f":"IF(B160=\"\",\"\",IF(ISERROR(MATCH($J160,SorP!$B$1:$B$5661,0)),\"\",INDIRECT(\"'SorP'!$A$\"&MATCH($J160,SorP!$B$1:$B$5661,0))))","v":""},null,{"$f":"IF(C160=\"\",NA(),MATCH($B160&$C160,'Smelter Look-up'!$J:$J,0))","v":{"$error":"#N/A"}},null,0,null,null,null,""]
[null,{"$f":"IF(LEN(A161)=0,\"\",INDEX('Smelter Look-up'!$A:$A,MATCH($A161,'Smelter Look-up'!$E:$E,0)))","v":""},{"$f":"IF(LEN(A161)=0,\"\",INDEX('Smelter Look-up'!$C:$C,MATCH($A161,'Smelter Look-up'!$E:$E,0)))","v":""},null,{"$f":"IF(ISERROR($V161),\"\",OFFSET('Smelter Look-up'!$D$4,$V161-4,0)&\"\")","v":""},{"$f":"IF(ISERROR($V161),\"\",OFFSET('Smelter Look-up'!$E$4,$V161-4,0))","v":""},{"$f":"IF(C161=$X$4,\"Enter smelter details\",IF(ISERROR($V161),\"\",OFFSET('Smelter Look-up'!$F$4,$V161-4,0)))","v":""},{"$f":"IF(ISERROR($V161),\"\",OFFSET('Smelter Look-up'!$G$4,$V161-4,0))","v":""},{"$f":"IF(ISERROR($V161),\"\",OFFSET('Smelter Look-up'!$H$4,$V161-4,0))","v":""},{"$f":"IF(ISERROR($V161),\"\",OFFSET('Smelter Look-up'!$I$4,$V161-4,0))","v":""},{"$nulls":7},{"$f":"IF(ISERROR($V161),\"\",OFFSET('Smelter Look-up'!$C$4,$V161-4,0)&\"\")","v":""},"",{"$f":"IF(B161=\"\",\"\",IF(ISERROR(MATCH($J161,SorP!$B$1:$B$5661,0)),\"\",INDIRECT(\"'SorP'!$A$\"&MATCH($J161,SorP!$B$1:$B$5661,0))))","v":""},null,{"$f":"IF(C161=\"\",NA(),MATCH($B161&$C161,'Smelter Look-up'!$J:$J,0))","v":{"$error":"#N/A"}},null,0,null,null,null,""]
[null,{"$f":"IF(LEN(A162)=0,\"\",INDEX('Smelter Look-up'!$A:$A,MATCH($A162,'Smelter Look-up'!$E:$E,0)))","v":""},{"$f":"IF(LEN(A162)=0,\"\",INDEX('Smelter Look-up'!$C:$C,MATCH($A162,'Smelter Look-up'!$E:$E,0)))","v":""},null,{"$f":"IF(ISERROR($V162),\"\",OFFSET('Smelter Look-up'!$D$4,$V162-4,0)&\"\")","v":""},{"$f":"IF(ISERROR($V162),\"\",OFFSET('Smelter Look-up'!$E$4,$V162-4,0))","v":""},{"$f":"IF(C162=$X$4,\"Enter smelter details\",IF(ISERROR($V162),\"\",OFFSET('Smelter Look-up'!$F$4,$V162-4,0)))","v":""},{"$f":"IF(ISERROR($V162),\"\",OFFSET('Smelter Look-up'!$G$4,$V162-4,0))","v":""},{"$f":"IF(ISERROR($V162),\"\",OFFSET('Smelter Look-up'!$H$4,$V162-4,0))","v":""},{"$f":"IF(ISERROR($V162),\"\",OFFSET('Smelter Look-up'!$I$4,$V162-4,0))","v":""},{"$nulls":7},{"$f":"IF(ISERROR($V162),\"\",OFFSET('Smelter Look-up'!$C$4,$V162-4,0)&\"\")","v":""},"",{"$f":"IF(B162=\"\",\"\",IF(ISERROR(MATCH($J162,SorP!$B$1:$B$5661,0)),\"\",INDIRECT(\"'SorP'!$A$\"&MATCH($J162,SorP!$B$1:$B$5661,0))))","v":""},null,{"$f":"IF(C162=\"\",NA(),MATCH($B162&$C162,'Smelter Look-up'!$J:$J,0))","v":{"$error":"#N/A"}},null,0,null,null,null,""]
[null,{"$f":"IF(LEN(A163)=0,\"\",INDEX('Smelter Look-up'!$A:$A,MATCH($A163,'Smelter Look-up'!$E:$E,0)))","v":""},{"$f":"IF(LEN(A163)=0,\"\",INDEX('Smelter Look-up'!$C:$C,MATCH($A163,'Smelter Look-up'!$E:$E,0)))","v":""},null,{"$f":"IF(ISERROR($V163),\"\",OFFSET('Smelter Look-up'!$D$4,$V163-4,0)&\"\")","v":""},{"$f":"IF(ISERROR($V163),\"\",OFFSET('Smelter Look-up'!$E$4,$V163-4,0))","v":""},{"$f":"IF(C163=$X$4,\"Enter smelter details\",IF(ISERROR($V163),\"\",OFFSET('Smelter Look-up'!$F$4,$V163-4,0)))","v":""},{"$f":"IF(ISERROR($V163),\"\",OFFSET('Smelter Look-up'!$G$4,$V163-4,0))","v":""},{"$f":"IF(ISERROR($V163),\"\",OFFSET('Smelter Look-up'!$H$4,$V163-4,0))","v":""},{"$f":"IF(ISERROR($V163),\"\",OFFSET('Smelter Look-up'!$I$4,$V163-4,0))","v":""},{"$nulls":7},{"$f":"IF(ISERROR($V163),\"\",OFFSET('Smelter Look-up'!$C$4,$V163-4,0)&\"\")","v":""},"",{"$f":"IF(B163=\"\",\"\",IF(ISERROR(MATCH($J163,SorP!$B$1:$B$5661,0)),\"\",INDIRECT(\"'SorP'!$A$\"&MATCH($J163,SorP!$B$1:$B$5661,0))))","v":""},null,{"$f":"IF(C163=\"\",NA(),MATCH($B163&$C163,'Smelter Look-up'!$J:$J,0))","v":{"$error":"#N/A"}},null,0,null,null,null,""]
[null,{"$f":"IF(LEN(A164)=0,\"\",INDEX('Smelter Look-up'!$A:$A,MATCH($A164,'Smelter Look-up'!$E:$E,0)))","v":""},{"$f":"IF(LEN(A164)=0,\"\",INDEX('Smelter Look-up'!$C:$C,MATCH($A164,'Smelter Look-up'!$E:$E,0)))","v":""},null,{"$f":"IF(ISERROR($V164),\"\",OFFSET('Smelter Look-up'!$D$4,$V164-4,0)&\"\")","v":""},{"$f":"IF(ISERROR($V164),\"\",OFFSET('Smelter Look-up'!$E$4,$V164-4,0))","v":""},{"$f":"IF(C164=$X$4,\"Enter smelter details\",IF(ISERROR($V164),\"\",OFFSET('Smelter Look-up'!$F$4,$V164-4,0)))","v":""},{"$f":"IF(ISERROR($V164),\"\",OFFSET('Smelter Look-up'!$G$4,$V164-4,0))","v":""},{"$f":"IF(ISERROR($V164),\"\",OFFSET('Smelter Look-up'!$H$4,$V164-4,0))","v":""},{"$f":"IF(ISERROR($V164),\"\",OFFSET('Smelter Look-up'!$I$4,$V164-4,0))","v":""},{"$nulls":7},{"$f":"IF(ISERROR($V164),\"\",OFFSET('Smelter Look-up'!$C$4,$V164-4,0)&\"\")","v":""},"",{"$f":"IF(B164=\"\",\"\",IF(ISERROR(MATCH($J164,SorP!$B$1:$B$5661,0)),\"\",INDIRECT(\"'SorP'!$A$\"&MATCH($J164,SorP!$B$1:$B$5661,0))))","v":""},null,{"$f":"IF(C164=\"\",NA(),MATCH($B164&$C164,'Smelter Look-up'!$J:$J,0))","v":{"$error":"#N/A"}},null,0,null,null,null,""]
[null,{"$f":"IF(LEN(A165)=0,\"\",INDEX('Smelter Look-up'!$A:$A,MATCH($A165,'Smelter Look-up'!$E:$E,0)))","v":""},{"$f":"IF(LEN(A165)=0,\"\",INDEX('Smelter Look-up'!$C:$C,MATCH($A165,'Smelter Look-up'!$E:$E,0)))","v":""},null,{"$f":"IF(ISERROR($V165),\"\",OFFSET('Smelter Look-up'!$D$4,$V165-4,0)&\"\")","v":""},{"$f":"IF(ISERROR($V165),\"\",OFFSET('Smelter Look-up'!$E$4,$V165-4,0))","v":""},{"$f":"IF(C165=$X$4,\"Enter smelter details\",IF(ISERROR($V165),\"\",OFFSET('Smelter Look-up'!$F$4,$V165-4,0)))","v":""},{"$f":"IF(ISERROR($V165),\"\",OFFSET('Smelter Look-up'!$G$4,$V165-4,0))","v":""},{"$f":"IF(ISERROR($V165),\"\",OFFSET('Smelter Look-up'!$H$4,$V165-4,0))","v":""},{"$f":"IF(ISERROR($V165),\"\",OFFSET('Smelter Look-up'!$I$4,$V165-4,0))","v":""},{"$nulls":7},{"$f":"IF(ISERROR($V165),\"\",OFFSET('Smelter Look-up'!$C$4,$V165-4,0)&\"\")","v":""},"",{"$f":"IF(B165=\"\",\"\",IF(ISERROR(MATCH($J165,SorP!$B$1:$B$5661,0)),\"\",INDIRECT(\"'SorP'!$A$\"&MATCH($J165,SorP!$B$1:$B$5661,0))))","v":""},null,{"$f":"IF(C165=\"\",NA(),MATCH($B165&$C165,'Smelter Look-up'!$J:$J,0))","v":{"$error":"#N/A"}},null,0,null,null,null,""]
[null,{"$f":"IF(LEN(A166)=0,\"\",INDEX('Smelter Look-up'!$A:$A,MATCH($A166,'Smelter Look-up'!$E:$E,0)))","v":""},{"$f":"IF(LEN(A166)=0,\"\",INDEX('Smelter Look-up'!$C:$C,MATCH($A166,'Smelter Look-up'!$E:$E,0)))","v":""},null,{"$f":"IF(ISERROR($V166),\"\",OFFSET('Smelter Look-up'!$D$4,$V166-4,0)&\"\")","v":""},{"$f":"IF(ISERROR($V166),\"\",OFFSET('Smelter Look-up'!$E$4,$V166-4,0))","v":""},{"$f":"IF(C166=$X$4,\"Enter smelter details\",IF(ISERROR($V166),\"\",OFFSET('Smelter Look-up'!$F$4,$V166-4,0)))","v":""},{"$f":"IF(ISERROR($V166),\"\",OFFSET('Smelter Look-up'!$G$4,$V166-4,0))","v":""},{"$f":"IF(ISERROR($V166),\"\",OFFSET('Smelter Look-up'!$H$4,$V166-4,0))","v":""},{"$f":"IF(ISERROR($V166),\"\",OFFSET('Smelter Look-up'!$I$4,$V166-4,0))","v":""},{"$nulls":7},{"$f":"IF(ISERROR($V166),\"\",OFFSET('Smelter Look-up'!$C$4,$V166-4,0)&\"\")","v":""},"",{"$f":"IF(B166=\"\",\"\",IF(ISERROR(MATCH($J166,SorP!$B$1:$B$5661,0)),\"\",INDIRECT(\"'SorP'!$A$\"&MATCH($J166,SorP!$B$1:$B$5661,0))))","v":""},null,{"$f":"IF(C166=\"\",NA(),MATCH($B166&$C166,'Smelter Look-up'!$J:$J,0))","v":{"$error":"#N/A"}},null,0,null,null,null,""]
[null,{"$f":"IF(LEN(A167)=0,\"\",INDEX('Smelter Look-up'!$A:$A,MATCH($A167,'Smelter Look-up'!$E:$E,0)))","v":""},{"$f":"IF(LEN(A167)=0,\"\",INDEX('Smelter Look-up'!$C:$C,MATCH($A167,'Smelter Look-up'!$E:$E,0)))","v":""},null,{"$f":"IF(ISERROR($V167),\"\",OFFSET('Smelter Look-up'!$D$4,$V167-4,0)&\"\")","v":""},{"$f":"IF(ISERROR($V167),\"\",OFFSET('Smelter Look-up'!$E$4,$V167-4,0))","v":""},{"$f":"IF(C167=$X$4,\"Enter smelter details\",IF(ISERROR($V167),\"\",OFFSET('Smelter Look-up'!$F$4,$V167-4,0)))","v":""},{"$f":"IF(ISERROR($V167),\"\",OFFSET('Smelter Look-up'!$G$4,$V167-4,0))","v":""},{"$f":"IF(ISERROR($V167),\"\",OFFSET('Smelter Look-up'!$H$4,$V167-4,0))","v":""},{"$f":"IF(ISERROR($V167),\"\",OFFSET('Smelter Look-up'!$I$4,$V167-4,0))","v":""},{"$nulls":7},{"$f":"IF(ISERROR($V167),\"\",OFFSET('Smelter Look-up'!$C$4,$V167-4,0)&\"\")","v":""},"",{"$f":"IF(B167=\"\",\"\",IF(ISERROR(MATCH($J167,SorP!$B$1:$B$5661,0)),\"\",INDIRECT(\"'SorP'!$A$\"&MATCH($J167,SorP!$B$1:$B$5661,0))))","v":""},null,{"$f":"IF(C167=\"\",NA(),MATCH($B167&$C167,'Smelter Look-up'!$J:$J,0))","v":{"$error":"#N/A"}},null,0,null,null,null,""]
[null,{"$f":"IF(LEN(A168)=0,\"\",INDEX('Smelter Look-up'!$A:$A,MATCH($A168,'Smelter Look-up'!$E:$E,0)))","v":""},{"$f":"IF(LEN(A168)=0,\"\",INDEX('Smelter Look-up'!$C:$C,MATCH($A168,'Smelter Look-up'!$E:$E,0)))","v":""},null,{"$f":"IF(ISERROR($V168),\"\",OFFSET('Smelter Look-up'!$D$4,$V168-4,0)&\"\")","v":""},{"$f":"IF(ISERROR($V168),\"\",OFFSET('Smelter Look-up'!$E$4,$V168-4,0))","v":""},{"$f":"IF(C168=$X$4,\"Enter smelter details\",IF(ISERROR($V168),\"\",OFFSET('Smelter Look-up'!$F$4,$V168-4,0)))","v":""},{"$f":"IF(ISERROR($V168),\"\",OFFSET('Smelter Look-up'!$G$4,$V168-4,0))","v":""},{"$f":"IF(ISERROR($V168),\"\",OFFSET('Smelter Look-up'!$H$4,$V168-4,0))","v":""},{"$f":"IF(ISERROR($V168),\"\",OFFSET('Smelter Look-up'!$I$4,$V168-4,0))","v":""},{"$nulls":7},{"$f":"IF(ISERROR($V168),\"\",OFFSET('Smelter Look-up'!$C$4,$V168-4,0)&\"\")","v":""},"",{"$f":"IF(B168=\"\",\"\",IF(ISERROR(MATCH($J168,SorP!$B$1:$B$5661,0)),\"\",INDIRECT(\"'SorP'!$A$\"&MATCH($J168,SorP!$B$1:$B$5661,0))))","v":""},null,{"$f":"IF(C168=\"\",NA(),MATCH($B168&$C168,'Smelter Look-up'!$J:$J,0))","v":{"$error":"#N/A"}},null,0,null,null,null,""]
[null,{"$f":"IF(LEN(A169)=0,\"\",INDEX('Smelter Look-up'!$A:$A,MATCH($A169,'Smelter Look-up'!$E:$E,0)))","v":""},{"$f":"IF(LEN(A169)=0,\"\",INDEX('Smelter Look-up'!$C:$C,MATCH($A169,'Smelter Look-up'!$E:$E,0)))","v":""},null,{"$f":"IF(ISERROR($V169),\"\",OFFSET('Smelter Look-up'!$D$4,$V169-4,0)&\"\")","v":""},{"$f":"IF(ISERROR($V169),\"\",OFFSET('Smelter Look-up'!$E$4,$V169-4,0))","v":""},{"$f":"IF(C169=$X$4,\"Enter smelter details\",IF(ISERROR($V169),\"\",OFFSET('Smelter Look-up'!$F$4,$V169-4,0)))","v":""},{"$f":"IF(ISERROR($V169),\"\",OFFSET('Smelter Look-up'!$G$4,$V169-4,0))","v":""},{"$f":"IF(ISERROR($V169),\"\",OFFSET('Smelter Look-up'!$H$4,$V169-4,0))","v":""},{"$f":"IF(ISERROR($V169),\"\",OFFSET('Smelter Look-up'!$I$4,$V169-4,0))","v":""},{"$nulls":7},{"$f":"IF(ISERROR($V169),\"\",OFFSET('Smelter Look-up'!$C$4,$V169-4,0)&\"\")","v":""},"",{"$f":"IF(B169=\"\",\"\",IF(ISERROR(MATCH($J169,SorP!$B$1:$B$5661,0)),\"\",INDIRECT(\"'SorP'!$A$\"&MATCH($J169,SorP!$B$1:$B$5661,0))))","v":""},null,{"$f":"IF(C169=\"\",NA(),MATCH($B169&$C169,'Smelter Look-up'!$J:$J,0))","v":{"$error":"#N/A"}},null,0,null,null,null,""]
[null,{"$f":"IF(LEN(A170)=0,\"\",INDEX('Smelter Look-up'!$A:$A,MATCH($A170,'Smelter Look-up'!$E:$E,0)))","v":""},{"$f":"IF(LEN(A170)=0,\"\",INDEX('Smelter Look-up'!$C:$C,MATCH($A170,'Smelter Look-up'!$E:$E,0)))","v":""},null,{"$f":"IF(ISERROR($V170),\"\",OFFSET('Smelter Look-up'!$D$4,$V170-4,0)&\"\")","v":""},{"$f":"IF(ISERROR($V170),\"\",OFFSET('Smelter Look-up'!$E$4,$V170-4,0))","v":""},{"$f":"IF(C170=$X$4,\"Enter smelter details\",IF(ISERROR($V170),\"\",OFFSET('Smelter Look-up'!$F$4,$V170-4,0)))","v":""},{"$f":"IF(ISERROR($V170),\"\",OFFSET('Smelter Look-up'!$G$4,$V170-4,0))","v":""},{"$f":"IF(ISERROR($V170),\"\",OFFSET('Smelter Look-up'!$H$4,$V170-4,0))","v":""},{"$f":"IF(ISERROR($V170),\"\",OFFSET('Smelter Look-up'!$I$4,$V170-4,0))","v":""},{"$nulls":7},{"$f":"IF(ISERROR($V170),\"\",OFFSET('Smelter Look-up'!$C$4,$V170-4,0)&\"\")","v":""},"",{"$f":"IF(B170=\"\",\"\",IF(ISERROR(MATCH($J170,SorP!$B$1:$B$5661,0)),\"\",INDIRECT(\"'SorP'!$A$\"&MATCH($J170,SorP!$B$1:$B$5661,0))))","v":""},null,{"$f":"IF(C170=\"\",NA(),MATCH($B170&$C170,'Smelter Look-up'!$J:$J,0))","v":{"$error":"#N/A"}},null,0,null,null,null,""]
[null,{"$f":"IF(LEN(A171)=0,\"\",INDEX('Smelter Look-up'!$A:$A,MATCH($A171,'Smelter Look-up'!$E:$E,0)))","v":""},{"$f":"IF(LEN(A171)=0,\"\",INDEX('Smelter Look-up'!$C:$C,MATCH($A171,'Smelter Look-up'!$E:$E,0)))","v":""},null,{"$f":"IF(ISERROR($V171),\"\",OFFSET('Smelter Look-up'!$D$4,$V171-4,0)&\"\")","v":""},{"$f":"IF(ISERROR($V171),\"\",OFFSET('Smelter Look-up'!$E$4,$V171-4,0))","v":""},{"$f":"IF(C171=$X$4,\"Enter smelter details\",IF(ISERROR($V171),\"\",OFFSET('Smelter Look-up'!$F$4,$V171-4,0)))","v":""},{"$f":"IF(ISERROR($V171),\"\",OFFSET('Smelter Look-up'!$G$4,$V171-4,0))","v":""},{"$f":"IF(ISERROR($V171),\"\",OFFSET('Smelter Look-up'!$H$4,$V171-4,0))","v":""},{"$f":"IF(ISERROR($V171),\"\",OFFSET('Smelter Look-up'!$I$4,$V171-4,0))","v":""},{"$nulls":7},{"$f":"IF(ISERROR($V171),\"\",OFFSET('Smelter Look-up'!$C$4,$V171-4,0)&\"\")","v":""},"",{"$f":"IF(B171=\"\",\"\",IF(ISERROR(MATCH($J171,SorP!$B$1:$B$5661,0)),\"\",INDIRECT(\"'SorP'!$A$\"&MATCH($J171,SorP!$B$1:$B$5661,0))))","v":""},null,{"$f":"IF(C171=\"\",NA(),MATCH($B171&$C171,'Smelter Look-up'!$J:$J,0))","v":{"$error":"#N/A"}},null,0,null,null,null,""]
[null,{"$f":"IF(LEN(A172)=0,\"\",INDEX('Smelter Look-up'!$A:$A,MATCH($A172,'Smelter Look-up'!$E:$E,0)))","v":""},{"$f":"IF(LEN(A172)=0,\"\",INDEX('Smelter Look-up'!$C:$C,MATCH($A172,'Smelter Look-up'!$E:$E,0)))","v":""},null,{"$f":"IF(ISERROR($V172),\"\",OFFSET('Smelter Look-up'!$D$4,$V172-4,0)&\"\")","v":""},{"$f":"IF(ISERROR($V172),\"\",OFFSET('Smelter Look-up'!$E$4,$V172-4,0))","v":""},{"$f":"IF(C172=$X$4,\"Enter smelter details\",IF(ISERROR($V172),\"\",OFFSET('Smelter Look-up'!$F$4,$V172-4,0)))","v":""},{"$f":"IF(ISERROR($V172),\"\",OFFSET('Smelter Look-up'!$G$4,$V172-4,0))","v":""},{"$f":"IF(ISERROR($V172),\"\",OFFSET('Smelter Look-up'!$H$4,$V172-4,0))","v":""},{"$f":"IF(ISERROR($V172),\"\",OFFSET('Smelter Look-up'!$I$4,$V172-4,0))","v":""},{"$nulls":7},{"$f":"IF(ISERROR($V172),\"\",OFFSET('Smelter Look-up'!$C$4,$V172-4,0)&\"\")","v":""},"",{"$f":"IF(B172=\"\",\"\",IF(ISERROR(MATCH($J172,SorP!$B$1:$B$5661,0)),\"\",INDIRECT(\"'SorP'!$A$\"&MATCH($J172,SorP!$B$1:$B$5661,0))))","v":""},null,{"$f":"IF(C172=\"\",NA(),MATCH($B172&$C172,'Smelter Look-up'!$J:$J,0))","v":{"$error":"#N/A"}},null,0,null,null,null,""]
[null,{"$f":"IF(LEN(A173)=0,\"\",INDEX('Smelter Look-up'!$A:$A,MATCH($A173,'Smelter Look-up'!$E:$E,0)))","v":""},{"$f":"IF(LEN(A173)=0,\"\",INDEX('Smelter Look-up'!$C:$C,MATCH($A173,'Smelter Look-up'!$E:$E,0)))","v":""},null,{"$f":"IF(ISERROR($V173),\"\",OFFSET('Smelter Look-up'!$D$4,$V173-4,0)&\"\")","v":""},{"$f":"IF(ISERROR($V173),\"\",OFFSET('Smelter Look-up'!$E$4,$V173-4,0))","v":""},{"$f":"IF(C173=$X$4,\"Enter smelter details\",IF(ISERROR($V173),\"\",OFFSET('Smelter Look-up'!$F$4,$V173-4,0)))","v":""},{"$f":"IF(ISERROR($V173),\"\",OFFSET('Smelter Look-up'!$G$4,$V173-4,0))","v":""},{"$f":"IF(ISERROR($V173),\"\",OFFSET('Smelter Look-up'!$H$4,$V173-4,0))","v":""},{"$f":"IF(ISERROR($V173),\"\",OFFSET('Smelter Look-up'!$I$4,$V173-4,0))","v":""},{"$nulls":7},{"$f":"IF(ISERROR($V173),\"\",OFFSET('Smelter Look-up'!$C$4,$V173-4,0)&\"\")","v":""},"",{"$f":"IF(B173=\"\",\"\",IF(ISERROR(MATCH($J173,SorP!$B$1:$B$5661,0)),\"\",INDIRECT(\"'SorP'!$A$\"&MATCH($J173,SorP!$B$1:$B$5661,0))))","v":""},null,{"$f":"IF(C173=\"\",NA(),MATCH($B173&$C173,'Smelter Look-up'!$J:$J,0))","v":{"$error":"#N/A"}},null,0,null,null,null,""]
[null,{"$f":"IF(LEN(A174)=0,\"\",INDEX('Smelter Look-up'!$A:$A,MATCH($A174,'Smelter Look-up'!$E:$E,0)))","v":""},{"$f":"IF(LEN(A174)=0,\"\",INDEX('Smelter Look-up'!$C:$C,MATCH($A174,'Smelter Look-up'!$E:$E,0)))","v":""},null,{"$f":"IF(ISERROR($V174),\"\",OFFSET('Smelter Look-up'!$D$4,$V174-4,0)&\"\")","v":""},{"$f":"IF(ISERROR($V174),\"\",OFFSET('Smelter Look-up'!$E$4,$V174-4,0))","v":""},{"$f":"IF(C174=$X$4,\"Enter smelter details\",IF(ISERROR($V174),\"\",OFFSET('Smelter Look-up'!$F$4,$V174-4,0)))","v":""},{"$f":"IF(ISERROR($V174),\"\",OFFSET('Smelter Look-up'!$G$4,$V174-4,0))","v":""},{"$f":"IF(ISERROR($V174),\"\",OFFSET('Smelter Look-up'!$H$4,$V174-4,0))","v":""},{"$f":"IF(ISERROR($V174),\"\",OFFSET('Smelter Look-up'!$I$4,$V174-4,0))","v":""},{"$nulls":7},{"$f":"IF(ISERROR($V174),\"\",OFFSET('Smelter Look-up'!$C$4,$V174-4,0)&\"\")","v":""},"",{"$f":"IF(B174=\"\",\"\",IF(ISERROR(MATCH($J174,SorP!$B$1:$B$5661,0)),\"\",INDIRECT(\"'SorP'!$A$\"&MATCH($J174,SorP!$B$1:$B$5661,0))))","v":""},null,{"$f":"IF(C174=\"\",NA(),MATCH($B174&$C174,'Smelter Look-up'!$J:$J,0))","v":{"$error":"#N/A"}},null,0,null,null,null,""]
[null,{"$f":"IF(LEN(A175)=0,\"\",INDEX('Smelter Look-up'!$A:$A,MATCH($A175,'Smelter Look-up'!$E:$E,0)))","v":""},{"$f":"IF(LEN(A175)=0,\"\",INDEX('Smelter Look-up'!$C:$C,MATCH($A175,'Smelter Look-up'!$E:$E,0)))","v":""},null,{"$f":"IF(ISERROR($V175),\"\",OFFSET('Smelter Look-up'!$D$4,$V175-4,0)&\"\")","v":""},{"$f":"IF(ISERROR($V175),\"\",OFFSET('Smelter Look-up'!$E$4,$V175-4,0))","v":""},{"$f":"IF(C175=$X$4,\"Enter smelter details\",IF(ISERROR($V175),\"\",OFFSET('Smelter Look-up'!$F$4,$V175-4,0)))","v":""},{"$f":"IF(ISERROR($V175),\"\",OFFSET('Smelter Look-up'!$G$4,$V175-4,0))","v":""},{"$f":"IF(ISERROR($V175),\"\",OFFSET('Smelter Look-up'!$H$4,$V175-4,0))","v":""},{"$f":"IF(ISERROR($V175),\"\",OFFSET('Smelter Look-up'!$I$4,$V175-4,0))","v":""},{"$nulls":7},{"$f":"IF(ISERROR($V175),\"\",OFFSET('Smelter Look-up'!$C$4,$V175-4,0)&\"\")","v":""},"",{"$f":"IF(B175=\"\",\"\",IF(ISERROR(MATCH($J175,SorP!$B$1:$B$5661,0)),\"\",INDIRECT(\"'SorP'!$A$\"&MATCH($J175,SorP!$B$1:$B$5661,0))))","v":""},null,{"$f":"IF(C175=\"\",NA(),MATCH($B175&$C175,'Smelter Look-up'!$J:$J,0))","v":{"$error":"#N/A"}},null,0,null,null,null,""]
[null,{"$f":"IF(LEN(A176)=0,\"\",INDEX('Smelter Look-up'!$A:$A,MATCH($A176,'Smelter Look-up'!$E:$E,0)))","v":""},{"$f":"IF(LEN(A176)=0,\"\",INDEX('Smelter Look-up'!$C:$C,MATCH($A176,'Smelter Look-up'!$E:$E,0)))","v":""},null,{"$f":"IF(ISERROR($V176),\"\",OFFSET('Smelter Look-up'!$D$4,$V176-4,0)&\"\")","v":""},{"$f":"IF(ISERROR($V176),\"\",OFFSET('Smelter Look-up'!$E$4,$V176-4,0))","v":""},{"$f":"IF(C176=$X$4,\"Enter smelter details\",IF(ISERROR($V176),\"\",OFFSET('Smelter Look-up'!$F$4,$V176-4,0)))","v":""},{"$f":"IF(ISERROR($V176),\"\",OFFSET('Smelter Look-up'!$G$4,$V176-4,0))","v":""},{"$f":"IF(ISERROR($V176),\"\",OFFSET('Smelter Look-up'!$H$4,$V176-4,0))","v":""},{"$f":"IF(ISERROR($V176),\"\",OFFSET('Smelter Look-up'!$I$4,$V176-4,0))","v":""},{"$nulls":7},{"$f":"IF(ISERROR($V176),\"\",OFFSET('Smelter Look-up'!$C$4,$V176-4,0)&\"\")","v":""},"",{"$f":"IF(B176=\"\",\"\",IF(ISERROR(MATCH($J176,SorP!$B$1:$B$5661,0)),\"\",INDIRECT(\"'SorP'!$A$\"&MATCH($J176,SorP!$B$1:$B$5661,0))))","v":""},null,{"$f":"IF(C176=\"\",NA(),MATCH($B176&$C176,'Smelter Look-up'!$J:$J,0))","v":{"$error":"#N/A"}},null,0,null,null,null,""]
[null,{"$f":"IF(LEN(A177)=0,\"\",INDEX('Smelter Look-up'!$A:$A,MATCH($A177,'Smelter Look-up'!$E:$E,0)))","v":""},{"$f":"IF(LEN(A177)=0,\"\",INDEX('Smelter Look-up'!$C:$C,MATCH($A177,'Smelter Look-up'!$E:$E,0)))","v":""},null,{"$f":"IF(ISERROR($V177),\"\",OFFSET('Smelter Look-up'!$D$4,$V177-4,0)&\"\")","v":""},{"$f":"IF(ISERROR($V177),\"\",OFFSET('Smelter Look-up'!$E$4,$V177-4,0))","v":""},{"$f":"IF(C177=$X$4,\"Enter smelter details\",IF(ISERROR($V177),\"\",OFFSET('Smelter Look-up'!$F$4,$V177-4,0)))","v":""},{"$f":"IF(ISERROR($V177),\"\",OFFSET('Smelter Look-up'!$G$4,$V177-4,0))","v":""},{"$f":"IF(ISERROR($V177),\"\",OFFSET('Smelter Look-up'!$H$4,$V177-4,0))","v":""},{"$f":"IF(ISERROR($V177),\"\",OFFSET('Smelter Look-up'!$I$4,$V177-4,0))","v":""},{"$nulls":7},{"$f":"IF(ISERROR($V177),\"\",OFFSET('Smelter Look-up'!$C$4,$V177-4,0)&\"\")","v":""},"",{"$f":"IF(B177=\"\",\"\",IF(ISERROR(MATCH($J177,SorP!$B$1:$B$5661,0)),\"\",INDIRECT(\"'SorP'!$A$\"&MATCH($J177,SorP!$B$1:$B$5661,0))))","v":""},null,{"$f":"IF(C177=\"\",NA(),MATCH($B177&$C177,'Smelter Look-up'!$J:$J,0))","v":{"$error":"#N/A"}},null,0,null,null,null,""]
[null,{"$f":"IF(LEN(A178)=0,\"\",INDEX('Smelter Look-up'!$A:$A,MATCH($A178,'Smelter Look-up'!$E:$E,0)))","v":""},{"$f":"IF(LEN(A178)=0,\"\",INDEX('Smelter Look-up'!$C:$C,MATCH($A178,'Smelter Look-up'!$E:$E,0)))","v":""},null,{"$f":"IF(ISERROR($V178),\"\",OFFSET('Smelter Look-up'!$D$4,$V178-4,0)&\"\")","v":""},{"$f":"IF(ISERROR($V178),\"\",OFFSET('Smelter Look-up'!$E$4,$V178-4,0))","v":""},{"$f":"IF(C178=$X$4,\"Enter smelter details\",IF(ISERROR($V178),\"\",OFFSET('Smelter Look-up'!$F$4,$V178-4,0)))","v":""},{"$f":"IF(ISERROR($V178),\"\",OFFSET('Smelter Look-up'!$G$4,$V178-4,0))","v":""},{"$f":"IF(ISERROR($V178),\"\",OFFSET('Smelter Look-up'!$H$4,$V178-4,0))","v":""},{"$f":"IF(ISERROR($V178),\"\",OFFSET('Smelter Look-up'!$I$4,$V178-4,0))","v":""},{"$nulls":7},{"$f":"IF(ISERROR($V178),\"\",OFFSET('Smelter Look-up'!$C$4,$V178-4,0)&\"\")","v":""},"",{"$f":"IF(B178=\"\",\"\",IF(ISERROR(MATCH($J178,SorP!$B$1:$B$5661,0)),\"\",INDIRECT(\"'SorP'!$A$\"&MATCH($J178,SorP!$B$1:$B$5661,0))))","v":""},null,{"$f":"IF(C178=\"\",NA(),MATCH($B178&$C178,'Smelter Look-up'!$J:$J,0))","v":{"$error":"#N/A"}},null,0,null,null,null,""]
[null,{"$f":"IF(LEN(A179)=0,\"\",INDEX('Smelter Look-up'!$A:$A,MATCH($A179,'Smelter Look-up'!$E:$E,0)))","v":""},{"$f":"IF(LEN(A179)=0,\"\",INDEX('Smelter Look-up'!$C:$C,MATCH($A179,'Smelter Look-up'!$E:$E,0)))","v":""},null,{"$f":"IF(ISERROR($V179),\"\",OFFSET('Smelter Look-up'!$D$4,$V179-4,0)&\"\")","v":""},{"$f":"IF(ISERROR($V179),\"\",OFFSET('Smelter Look-up'!$E$4,$V179-4,0))","v":""},{"$f":"IF(C179=$X$4,\"Enter smelter details\",IF(ISERROR($V179),\"\",OFFSET('Smelter Look-up'!$F$4,$V179-4,0)))","v":""},{"$f":"IF(ISERROR($V179),\"\",OFFSET('Smelter Look-up'!$G$4,$V179-4,0))","v":""},{"$f":"IF(ISERROR($V179),\"\",OFFSET('Smelter Look-up'!$H$4,$V179-4,0))","v":""},{"$f":"IF(ISERROR($V179),\"\",OFFSET('Smelter Look-up'!$I$4,$V179-4,0))","v":""},{"$nulls":7},{"$f":"IF(ISERROR($V179),\"\",OFFSET('Smelter Look-up'!$C$4,$V179-4,0)&\"\")","v":""},"",{"$f":"IF(B179=\"\",\"\",IF(ISERROR(MATCH($J179,SorP!$B$1:$B$5661,0)),\"\",INDIRECT(\"'SorP'!$A$\"&MATCH($J179,SorP!$B$1:$B$5661,0))))","v":""},null,{"$f":"IF(C179=\"\",NA(),MATCH($B179&$C179,'Smelter Look-up'!$J:$J,0))","v":{"$error":"#N/A"}},null,0,null,null,null,""]
[null,{"$f":"IF(LEN(A180)=0,\"\",INDEX('Smelter Look-up'!$A:$A,MATCH($A180,'Smelter Look-up'!$E:$E,0)))","v":""},{"$f":"IF(LEN(A180)=0,\"\",INDEX('Smelter Look-up'!$C:$C,MATCH($A180,'Smelter Look-up'!$E:$E,0)))","v":""},null,{"$f":"IF(ISERROR($V180),\"\",OFFSET('Smelter Look-up'!$D$4,$V180-4,0)&\"\")","v":""},{"$f":"IF(ISERROR($V180),\"\",OFFSET('Smelter Look-up'!$E$4,$V180-4,0))","v":""},{"$f":"IF(C180=$X$4,\"Enter smelter details\",IF(ISERROR($V180),\"\",OFFSET('Smelter Look-up'!$F$4,$V180-4,0)))","v":""},{"$f":"IF(ISERROR($V180),\"\",OFFSET('Smelter Look-up'!$G$4,$V180-4,0))","v":""},{"$f":"IF(ISERROR($V180),\"\",OFFSET('Smelter Look-up'!$H$4,$V180-4,0))","v":""},{"$f":"IF(ISERROR($V180),\"\",OFFSET('Smelter Look-up'!$I$4,$V180-4,0))","v":""},{"$nulls":7},{"$f":"IF(ISERROR($V180),\"\",OFFSET('Smelter Look-up'!$C$4,$V180-4,0)&\"\")","v":""},"",{"$f":"IF(B180=\"\",\"\",IF(ISERROR(MATCH($J180,SorP!$B$1:$B$5661,0)),\"\",INDIRECT(\"'SorP'!$A$\"&MATCH($J180,SorP!$B$1:$B$5661,0))))","v":""},null,{"$f":"IF(C180=\"\",NA(),MATCH($B180&$C180,'Smelter Look-up'!$J:$J,0))","v":{"$error":"#N/A"}},null,0,null,null,null,""]
[null,{"$f":"IF(LEN(A181)=0,\"\",INDEX('Smelter Look-up'!$A:$A,MATCH($A181,'Smelter Look-up'!$E:$E,0)))","v":""},{"$f":"IF(LEN(A181)=0,\"\",INDEX('Smelter Look-up'!$C:$C,MATCH($A181,'Smelter Look-up'!$E:$E,0)))","v":""},null,{"$f":"IF(ISERROR($V181),\"\",OFFSET('Smelter Look-up'!$D$4,$V181-4,0)&\"\")","v":""},{"$f":"IF(ISERROR($V181),\"\",OFFSET('Smelter Look-up'!$E$4,$V181-4,0))","v":""},{"$f":"IF(C181=$X$4,\"Enter smelter details\",IF(ISERROR($V181),\"\",OFFSET('Smelter Look-up'!$F$4,$V181-4,0)))","v":""},{"$f":"IF(ISERROR($V181),\"\",OFFSET('Smelter Look-up'!$G$4,$V181-4,0))","v":""},{"$f":"IF(ISERROR($V181),\"\",OFFSET('Smelter Look-up'!$H$4,$V181-4,0))","v":""},{"$f":"IF(ISERROR($V181),\"\",OFFSET('Smelter Look-up'!$I$4,$V181-4,0))","v":""},{"$nulls":7},{"$f":"IF(ISERROR($V181),\"\",OFFSET('Smelter Look-up'!$C$4,$V181-4,0)&\"\")","v":""},"",{"$f":"IF(B181=\"\",\"\",IF(ISERROR(MATCH($J181,SorP!$B$1:$B$5661,0)),\"\",INDIRECT(\"'SorP'!$A$\"&MATCH($J181,SorP!$B$1:$B$5661,0))))","v":""},null,{"$f":"IF(C181=\"\",NA(),MATCH($B181&$C181,'Smelter Look-up'!$J:$J,0))","v":{"$error":"#N/A"}},null,0,null,null,null,""]
[null,{"$f":"IF(LEN(A182)=0,\"\",INDEX('Smelter Look-up'!$A:$A,MATCH($A182,'Smelter Look-up'!$E:$E,0)))","v":""},{"$f":"IF(LEN(A182)=0,\"\",INDEX('Smelter Look-up'!$C:$C,MATCH($A182,'Smelter Look-up'!$E:$E,0)))","v":""},null,{"$f":"IF(ISERROR($V182),\"\",OFFSET('Smelter Look-up'!$D$4,$V182-4,0)&\"\")","v":""},{"$f":"IF(ISERROR($V182),\"\",OFFSET('Smelter Look-up'!$E$4,$V182-4,0))","v":""},{"$f":"IF(C182=$X$4,\"Enter smelter details\",IF(ISERROR($V182),\"\",OFFSET('Smelter Look-up'!$F$4,$V182-4,0)))","v":""},{"$f":"IF(ISERROR($V182),\"\",OFFSET('Smelter Look-up'!$G$4,$V182-4,0))","v":""},{"$f":"IF(ISERROR($V182),\"\",OFFSET('Smelter Look-up'!$H$4,$V182-4,0))","v":""},{"$f":"IF(ISERROR($V182),\"\",OFFSET('Smelter Look-up'!$I$4,$V182-4,0))","v":""},{"$nulls":7},{"$f":"IF(ISERROR($V182),\"\",OFFSET('Smelter Look-up'!$C$4,$V182-4,0)&\"\")","v":""},"",{"$f":"IF(B182=\"\",\"\",IF(ISERROR(MATCH($J182,SorP!$B$1:$B$5661,0)),\"\",INDIRECT(\"'SorP'!$A$\"&MATCH($J182,SorP!$B$1:$B$5661,0))))","v":""},null,{"$f":"IF(C182=\"\",NA(),MATCH($B182&$C182,'Smelter Look-up'!$J:$J,0))","v":{"$error":"#N/A"}},null,0,null,null,null,""]
[null,{"$f":"IF(LEN(A183)=0,\"\",INDEX('Smelter Look-up'!$A:$A,MATCH($A183,'Smelter Look-up'!$E:$E,0)))","v":""},{"$f":"IF(LEN(A183)=0,\"\",INDEX('Smelter Look-up'!$C:$C,MATCH($A183,'Smelter Look-up'!$E:$E,0)))","v":""},null,{"$f":"IF(ISERROR($V183),\"\",OFFSET('Smelter Look-up'!$D$4,$V183-4,0)&\"\")","v":""},{"$f":"IF(ISERROR($V183),\"\",OFFSET('Smelter Look-up'!$E$4,$V183-4,0))","v":""},{"$f":"IF(C183=$X$4,\"Enter smelter details\",IF(ISERROR($V183),\"\",OFFSET('Smelter Look-up'!$F$4,$V183-4,0)))","v":""},{"$f":"IF(ISERROR($V183),\"\",OFFSET('Smelter Look-up'!$G$4,$V183-4,0))","v":""},{"$f":"IF(ISERROR($V183),\"\",OFFSET('Smelter Look-up'!$H$4,$V183-4,0))","v":""},{"$f":"IF(ISERROR($V183),\"\",OFFSET('Smelter Look-up'!$I$4,$V183-4,0))","v":""},{"$nulls":7},{"$f":"IF(ISERROR($V183),\"\",OFFSET('Smelter Look-up'!$C$4,$V183-4,0)&\"\")","v":""},"",{"$f":"IF(B183=\"\",\"\",IF(ISERROR(MATCH($J183,SorP!$B$1:$B$5661,0)),\"\",INDIRECT(\"'SorP'!$A$\"&MATCH($J183,SorP!$B$1:$B$5661,0))))","v":""},null,{"$f":"IF(C183=\"\",NA(),MATCH($B183&$C183,'Smelter Look-up'!$J:$J,0))","v":{"$error":"#N/A"}},null,0,null,null,null,""]
[null,{"$f":"IF(LEN(A184)=0,\"\",INDEX('Smelter Look-up'!$A:$A,MATCH($A184,'Smelter Look-up'!$E:$E,0)))","v":""},{"$f":"IF(LEN(A184)=0,\"\",INDEX('Smelter Look-up'!$C:$C,MATCH($A184,'Smelter Look-up'!$E:$E,0)))","v":""},null,{"$f":"IF(ISERROR($V184),\"\",OFFSET('Smelter Look-up'!$D$4,$V184-4,0)&\"\")","v":""},{"$f":"IF(ISERROR($V184),\"\",OFFSET('Smelter Look-up'!$E$4,$V184-4,0))","v":""},{"$f":"IF(C184=$X$4,\"Enter smelter details\",IF(ISERROR($V184),\"\",OFFSET('Smelter Look-up'!$F$4,$V184-4,0)))","v":""},{"$f":"IF(ISERROR($V184),\"\",OFFSET('Smelter Look-up'!$G$4,$V184-4,0))","v":""},{"$f":"IF(ISERROR($V184),\"\",OFFSET('Smelter Look-up'!$H$4,$V184-4,0))","v":""},{"$f":"IF(ISERROR($V184),\"\",OFFSET('Smelter Look-up'!$I$4,$V184-4,0))","v":""},{"$nulls":7},{"$f":"IF(ISERROR($V184),\"\",OFFSET('Smelter Look-up'!$C$4,$V184-4,0)&\"\")","v":""},"",{"$f":"IF(B184=\"\",\"\",IF(ISERROR(MATCH($J184,SorP!$B$1:$B$5661,0)),\"\",INDIRECT(\"'SorP'!$A$\"&MATCH($J184,SorP!$B$1:$B$5661,0))))","v":""},null,{"$f":"IF(C184=\"\",NA(),MATCH($B184&$C184,'Smelter Look-up'!$J:$J,0))","v":{"$error":"#N/A"}},null,0,null,null,null,""]
[null,{"$f":"IF(LEN(A185)=0,\"\",INDEX('Smelter Look-up'!$A:$A,MATCH($A185,'Smelter Look-up'!$E:$E,0)))","v":""},{"$f":"IF(LEN(A185)=0,\"\",INDEX('Smelter Look-up'!$C:$C,MATCH($A185,'Smelter Look-up'!$E:$E,0)))","v":""},null,{"$f":"IF(ISERROR($V185),\"\",OFFSET('Smelter Look-up'!$D$4,$V185-4,0)&\"\")","v":""},{"$f":"IF(ISERROR($V185),\"\",OFFSET('Smelter Look-up'!$E$4,$V185-4,0))","v":""},{"$f":"IF(C185=$X$4,\"Enter smelter details\",IF(ISERROR($V185),\"\",OFFSET('Smelter Look-up'!$F$4,$V185-4,0)))","v":""},{"$f":"IF(ISERROR($V185),\"\",OFFSET('Smelter Look-up'!$G$4,$V185-4,0))","v":""},{"$f":"IF(ISERROR($V185),\"\",OFFSET('Smelter Look-up'!$H$4,$V185-4,0))","v":""},{"$f":"IF(ISERROR($V185),\"\",OFFSET('Smelter Look-up'!$I$4,$V185-4,0))","v":""},{"$nulls":7},{"$f":"IF(ISERROR($V185),\"\",OFFSET('Smelter Look-up'!$C$4,$V185-4,0)&\"\")","v":""},"",{"$f":"IF(B185=\"\",\"\",IF(ISERROR(MATCH($J185,SorP!$B$1:$B$5661,0)),\"\",INDIRECT(\"'SorP'!$A$\"&MATCH($J185,SorP!$B$1:$B$5661,0))))","v":""},null,{"$f":"IF(C185=\"\",NA(),MATCH($B185&$C185,'Smelter Look-up'!$J:$J,0))","v":{"$error":"#N/A"}},null,0,null,null,null,""]
[null,{"$f":"IF(LEN(A186)=0,\"\",INDEX('Smelter Look-up'!$A:$A,MATCH($A186,'Smelter Look-up'!$E:$E,0)))","v":""},{"$f":"IF(LEN(A186)=0,\"\",INDEX('Smelter Look-up'!$C:$C,MATCH($A186,'Smelter Look-up'!$E:$E,0)))","v":""},null,{"$f":"IF(ISERROR($V186),\"\",OFFSET('Smelter Look-up'!$D$4,$V186-4,0)&\"\")","v":""},{"$f":"IF(ISERROR($V186),\"\",OFFSET('Smelter Look-up'!$E$4,$V186-4,0))","v":""},{"$f":"IF(C186=$X$4,\"Enter smelter details\",IF(ISERROR($V186),\"\",OFFSET('Smelter Look-up'!$F$4,$V186-4,0)))","v":""},{"$f":"IF(ISERROR($V186),\"\",OFFSET('Smelter Look-up'!$G$4,$V186-4,0))","v":""},{"$f":"IF(ISERROR($V186),\"\",OFFSET('Smelter Look-up'!$H$4,$V186-4,0))","v":""},{"$f":"IF(ISERROR($V186),\"\",OFFSET('Smelter Look-up'!$I$4,$V186-4,0))","v":""},{"$nulls":7},{"$f":"IF(ISERROR($V186),\"\",OFFSET('Smelter Look-up'!$C$4,$V186-4,0)&\"\")","v":""},"",{"$f":"IF(B186=\"\",\"\",IF(ISERROR(MATCH($J186,SorP!$B$1:$B$5661,0)),\"\",INDIRECT(\"'SorP'!$A$\"&MATCH($J186,SorP!$B$1:$B$5661,0))))","v":""},null,{"$f":"IF(C186=\"\",NA(),MATCH($B186&$C186,'Smelter Look-up'!$J:$J,0))","v":{"$error":"#N/A"}},null,0,null,null,null,""]
[null,{"$f":"IF(LEN(A187)=0,\"\",INDEX('Smelter Look-up'!$A:$A,MATCH($A187,'Smelter Look-up'!$E:$E,0)))","v":""},{"$f":"IF(LEN(A187)=0,\"\",INDEX('Smelter Look-up'!$C:$C,MATCH($A187,'Smelter Look-up'!$E:$E,0)))","v":""},null,{"$f":"IF(ISERROR($V187),\"\",OFFSET('Smelter Look-up'!$D$4,$V187-4,0)&\"\")","v":""},{"$f":"IF(ISERROR($V187),\"\",OFFSET('Smelter Look-up'!$E$4,$V187-4,0))","v":""},{"$f":"IF(C187=$X$4,\"Enter smelter details\",IF(ISERROR($V187),\"\",OFFSET('Smelter Look-up'!$F$4,$V187-4,0)))","v":""},{"$f":"IF(ISERROR($V187),\"\",OFFSET('Smelter Look-up'!$G$4,$V187-4,0))","v":""},{"$f":"IF(ISERROR($V187),\"\",OFFSET('Smelter Look-up'!$H$4,$V187-4,0))","v":""},{"$f":"IF(ISERROR($V187),\"\",OFFSET('Smelter Look-up'!$I$4,$V187-4,0))","v":""},{"$nulls":7},{"$f":"IF(ISERROR($V187),\"\",OFFSET('Smelter Look-up'!$C$4,$V187-4,0)&\"\")","v":""},"",{"$f":"IF(B187=\"\",\"\",IF(ISERROR(MATCH($J187,SorP!$B$1:$B$5661,0)),\"\",INDIRECT(\"'SorP'!$A$\"&MATCH($J187,SorP!$B$1:$B$5661,0))))","v":""},null,{"$f":"IF(C187=\"\",NA(),MATCH($B187&$C187,'Smelter Look-up'!$J:$J,0))","v":{"$error":"#N/A"}},null,0,null,null,null,""]
[null,{"$f":"IF(LEN(A188)=0,\"\",INDEX('Smelter Look-up'!$A:$A,MATCH($A188,'Smelter Look-up'!$E:$E,0)))","v":""},{"$f":"IF(LEN(A188)=0,\"\",INDEX('Smelter Look-up'!$C:$C,MATCH($A188,'Smelter Look-up'!$E:$E,0)))","v":""},null,{"$f":"IF(ISERROR($V188),\"\",OFFSET('Smelter Look-up'!$D$4,$V188-4,0)&\"\")","v":""},{"$f":"IF(ISERROR($V188),\"\",OFFSET('Smelter Look-up'!$E$4,$V188-4,0))","v":""},{"$f":"IF(C188=$X$4,\"Enter smelter details\",IF(ISERROR($V188),\"\",OFFSET('Smelter Look-up'!$F$4,$V188-4,0)))","v":""},{"$f":"IF(ISERROR($V188),\"\",OFFSET('Smelter Look-up'!$G$4,$V188-4,0))","v":""},{"$f":"IF(ISERROR($V188),\"\",OFFSET('Smelter Look-up'!$H$4,$V188-4,0))","v":""},{"$f":"IF(ISERROR($V188),\"\",OFFSET('Smelter Look-up'!$I$4,$V188-4,0))","v":""},{"$nulls":7},{"$f":"IF(ISERROR($V188),\"\",OFFSET('Smelter Look-up'!$C$4,$V188-4,0)&\"\")","v":""},"",{"$f":"IF(B188=\"\",\"\",IF(ISERROR(MATCH($J188,SorP!$B$1:$B$5661,0)),\"\",INDIRECT(\"'SorP'!$A$\"&MATCH($J188,SorP!$B$1:$B$5661,0))))","v":""},null,{"$f":"IF(C188=\"\",NA(),MATCH($B188&$C188,'Smelter Look-up'!$J:$J,0))","v":{"$error":"#N/A"}},null,0,null,null,null,""]
[null,{"$f":"IF(LEN(A189)=0,\"\",INDEX('Smelter Look-up'!$A:$A,MATCH($A189,'Smelter Look-up'!$E:$E,0)))","v":""},{"$f":"IF(LEN(A189)=0,\"\",INDEX('Smelter Look-up'!$C:$C,MATCH($A189,'Smelter Look-up'!$E:$E,0)))","v":""},null,{"$f":"IF(ISERROR($V189),\"\",OFFSET('Smelter Look-up'!$D$4,$V189-4,0)&\"\")","v":""},{"$f":"IF(ISERROR($V189),\"\",OFFSET('Smelter Look-up'!$E$4,$V189-4,0))","v":""},{"$f":"IF(C189=$X$4,\"Enter smelter details\",IF(ISERROR($V189),\"\",OFFSET('Smelter Look-up'!$F$4,$V189-4,0)))","v":""},{"$f":"IF(ISERROR($V189),\"\",OFFSET('Smelter Look-up'!$G$4,$V189-4,0))","v":""},{"$f":"IF(ISERROR($V189),\"\",OFFSET('Smelter Look-up'!$H$4,$V189-4,0))","v":""},{"$f":"IF(ISERROR($V189),\"\",OFFSET('Smelter Look-up'!$I$4,$V189-4,0))","v":""},{"$nulls":7},{"$f":"IF(ISERROR($V189),\"\",OFFSET('Smelter Look-up'!$C$4,$V189-4,0)&\"\")","v":""},"",{"$f":"IF(B189=\"\",\"\",IF(ISERROR(MATCH($J189,SorP!$B$1:$B$5661,0)),\"\",INDIRECT(\"'SorP'!$A$\"&MATCH($J189,SorP!$B$1:$B$5661,0))))","v":""},null,{"$f":"IF(C189=\"\",NA(),MATCH($B189&$C189,'Smelter Look-up'!$J:$J,0))","v":{"$error":"#N/A"}},null,0,null,null,null,""]
[null,{"$f":"IF(LEN(A190)=0,\"\",INDEX('Smelter Look-up'!$A:$A,MATCH($A190,'Smelter Look-up'!$E:$E,0)))","v":""},{"$f":"IF(LEN(A190)=0,\"\",INDEX('Smelter Look-up'!$C:$C,MATCH($A190,'Smelter Look-up'!$E:$E,0)))","v":""},null,{"$f":"IF(ISERROR($V190),\"\",OFFSET('Smelter Look-up'!$D$4,$V190-4,0)&\"\")","v":""},{"$f":"IF(ISERROR($V190),\"\",OFFSET('Smelter Look-up'!$E$4,$V190-4,0))","v":""},{"$f":"IF(C190=$X$4,\"Enter smelter details\",IF(ISERROR($V190),\"\",OFFSET('Smelter Look-up'!$F$4,$V190-4,0)))","v":""},{"$f":"IF(ISERROR($V190),\"\",OFFSET('Smelter Look-up'!$G$4,$V190-4,0))","v":""},{"$f":"IF(ISERROR($V190),\"\",OFFSET('Smelter Look-up'!$H$4,$V190-4,0))","v":""},{"$f":"IF(ISERROR($V190),\"\",OFFSET('Smelter Look-up'!$I$4,$V190-4,0))","v":""},{"$nulls":7},{"$f":"IF(ISERROR($V190),\"\",OFFSET('Smelter Look-up'!$C$4,$V190-4,0)&\"\")","v":""},"",{"$f":"IF(B190=\"\",\"\",IF(ISERROR(MATCH($J190,SorP!$B$1:$B$5661,0)),\"\",INDIRECT(\"'SorP'!$A$\"&MATCH($J190,SorP!$B$1:$B$5661,0))))","v":""},null,{"$f":"IF(C190=\"\",NA(),MATCH($B190&$C190,'Smelter Look-up'!$J:$J,0))","v":{"$error":"#N/A"}},null,0,null,null,null,""]
[null,{"$f":"IF(LEN(A191)=0,\"\",INDEX('Smelter Look-up'!$A:$A,MATCH($A191,'Smelter Look-up'!$E:$E,0)))","v":""},{"$f":"IF(LEN(A191)=0,\"\",INDEX('Smelter Look-up'!$C:$C,MATCH($A191,'Smelter Look-up'!$E:$E,0)))","v":""},null,{"$f":"IF(ISERROR($V191),\"\",OFFSET('Smelter Look-up'!$D$4,$V191-4,0)&\"\")","v":""},{"$f":"IF(ISERROR($V191),\"\",OFFSET('Smelter Look-up'!$E$4,$V191-4,0))","v":""},{"$f":"IF(C191=$X$4,\"Enter smelter details\",IF(ISERROR($V191),\"\",OFFSET('Smelter Look-up'!$F$4,$V191-4,0)))","v":""},{"$f":"IF(ISERROR($V191),\"\",OFFSET('Smelter Look-up'!$G$4,$V191-4,0))","v":""},{"$f":"IF(ISERROR($V191),\"\",OFFSET('Smelter Look-up'!$H$4,$V191-4,0))","v":""},{"$f":"IF(ISERROR($V191),\"\",OFFSET('Smelter Look-up'!$I$4,$V191-4,0))","v":""},{"$nulls":7},{"$f":"IF(ISERROR($V191),\"\",OFFSET('Smelter Look-up'!$C$4,$V191-4,0)&\"\")","v":""},"",{"$f":"IF(B191=\"\",\"\",IF(ISERROR(MATCH($J191,SorP!$B$1:$B$5661,0)),\"\",INDIRECT(\"'SorP'!$A$\"&MATCH($J191,SorP!$B$1:$B$5661,0))))","v":""},null,{"$f":"IF(C191=\"\",NA(),MATCH($B191&$C191,'Smelter Look-up'!$J:$J,0))","v":{"$error":"#N/A"}},null,{"$f":"IF(AND(C191=\"Smelter not listed\",OR(LEN(D191)=0,LEN(E191)=0)),1,0)","v":0},null,null,null,{"$f":"B191&C191","v":""}]
[null,{"$f":"IF(LEN(A192)=0,\"\",INDEX('Smelter Look-up'!$A:$A,MATCH($A192,'Smelter Look-up'!$E:$E,0)))","v":""},{"$f":"IF(LEN(A192)=0,\"\",INDEX('Smelter Look-up'!$C:$C,MATCH($A192,'Smelter Look-up'!$E:$E,0)))","v":""},null,{"$f":"IF(ISERROR($V192),\"\",OFFSET('Smelter Look-up'!$D$4,$V192-4,0)&\"\")","v":""},{"$f":"IF(ISERROR($V192),\"\",OFFSET('Smelter Look-up'!$E$4,$V192-4,0))","v":""},{"$f":"IF(C192=$X$4,\"Enter smelter details\",IF(ISERROR($V192),\"\",OFFSET('Smelter Look-up'!$F$4,$V192-4,0)))","v":""},{"$f":"IF(ISERROR($V192),\"\",OFFSET('Smelter Look-up'!$G$4,$V192-4,0))","v":""},{"$f":"IF(ISERROR($V192),\"\",OFFSET('Smelter Look-up'!$H$4,$V192-4,0))","v":""},{"$f":"IF(ISERROR($V192),\"\",OFFSET('Smelter Look-up'!$I$4,$V192-4,0))","v":""},{"$nulls":7},{"$f":"IF(ISERROR($V192),\"\",OFFSET('Smelter Look-up'!$C$4,$V192-4,0)&\"\")","v":""},{"$f":"IF(B192=\"\",\"\",IF(ISERROR(MATCH($E192,CL,0)),\"Unknown\",INDIRECT(\"'C'!$A$\"&MATCH($E192,CL,0)+1)))","v":""},{"$f":"IF(B192=\"\",\"\",IF(ISERROR(MATCH($J192,SorP!$B$1:$B$5661,0)),\"\",INDIRECT(\"'SorP'!$A$\"&MATCH($J192,SorP!$B$1:$B$5661,0))))","v":""},null,{"$f":"IF(C192=\"\",NA(),MATCH($B192&$C192,'Smelter Look-up'!$J:$J,0))","v":{"$error":"#N/A"}},null,0,null,null,null,""]
[null,{"$f":"IF(LEN(A193)=0,\"\",INDEX('Smelter Look-up'!$A:$A,MATCH($A193,'Smelter Look-up'!$E:$E,0)))","v":""},{"$f":"IF(LEN(A193)=0,\"\",INDEX('Smelter Look-up'!$C:$C,MATCH($A193,'Smelter Look-up'!$E:$E,0)))","v":""},null,{"$f":"IF(ISERROR($V193),\"\",OFFSET('Smelter Look-up'!$D$4,$V193-4,0)&\"\")","v":""},{"$f":"IF(ISERROR($V193),\"\",OFFSET('Smelter Look-up'!$E$4,$V193-4,0))","v":""},{"$f":"IF(C193=$X$4,\"Enter smelter details\",IF(ISERROR($V193),\"\",OFFSET('Smelter Look-up'!$F$4,$V193-4,0)))","v":""},{"$f":"IF(ISERROR($V193),\"\",OFFSET('Smelter Look-up'!$G$4,$V193-4,0))","v":""},{"$f":"IF(ISERROR($V193),\"\",OFFSET('Smelter Look-up'!$H$4,$V193-4,0))","v":""},{"$f":"IF(ISERROR($V193),\"\",OFFSET('Smelter Look-up'!$I$4,$V193-4,0))","v":""},{"$nulls":7},{"$f":"IF(ISERROR($V193),\"\",OFFSET('Smelter Look-up'!$C$4,$V193-4,0)&\"\")","v":""},"",{"$f":"IF(B193=\"\",\"\",IF(ISERROR(MATCH($J193,SorP!$B$1:$B$5661,0)),\"\",INDIRECT(\"'SorP'!$A$\"&MATCH($J193,SorP!$B$1:$B$5661,0))))","v":""},null,{"$f":"IF(C193=\"\",NA(),MATCH($B193&$C193,'Smelter Look-up'!$J:$J,0))","v":{"$error":"#N/A"}},null,0,null,null,null,""]
[null,{"$f":"IF(LEN(A194)=0,\"\",INDEX('Smelter Look-up'!$A:$A,MATCH($A194,'Smelter Look-up'!$E:$E,0)))","v":""},{"$f":"IF(LEN(A194)=0,\"\",INDEX('Smelter Look-up'!$C:$C,MATCH($A194,'Smelter Look-up'!$E:$E,0)))","v":""},null,{"$f":"IF(ISERROR($V194),\"\",OFFSET('Smelter Look-up'!$D$4,$V194-4,0)&\"\")","v":""},{"$f":"IF(ISERROR($V194),\"\",OFFSET('Smelter Look-up'!$E$4,$V194-4,0))","v":""},{"$f":"IF(C194=$X$4,\"Enter smelter details\",IF(ISERROR($V194),\"\",OFFSET('Smelter Look-up'!$F$4,$V194-4,0)))","v":""},{"$f":"IF(ISERROR($V194),\"\",OFFSET('Smelter Look-up'!$G$4,$V194-4,0))","v":""},{"$f":"IF(ISERROR($V194),\"\",OFFSET('Smelter Look-up'!$H$4,$V194-4,0))","v":""},{"$f":"IF(ISERROR($V194),\"\",OFFSET('Smelter Look-up'!$I$4,$V194-4,0))","v":""},{"$nulls":7},{"$f":"IF(ISERROR($V194),\"\",OFFSET('Smelter Look-up'!$C$4,$V194-4,0)&\"\")","v":""},"",{"$f":"IF(B194=\"\",\"\",IF(ISERROR(MATCH($J194,SorP!$B$1:$B$5661,0)),\"\",INDIRECT(\"'SorP'!$A$\"&MATCH($J194,SorP!$B$1:$B$5661,0))))","v":""},null,{"$f":"IF(C194=\"\",NA(),MATCH($B194&$C194,'Smelter Look-up'!$J:$J,0))","v":{"$error":"#N/A"}},null,0,null,null,null,""]
[null,{"$f":"IF(LEN(A195)=0,\"\",INDEX('Smelter Look-up'!$A:$A,MATCH($A195,'Smelter Look-up'!$E:$E,0)))","v":""},{"$f":"IF(LEN(A195)=0,\"\",INDEX('Smelter Look-up'!$C:$C,MATCH($A195,'Smelter Look-up'!$E:$E,0)))","v":""},null,{"$f":"IF(ISERROR($V195),\"\",OFFSET('Smelter Look-up'!$D$4,$V195-4,0)&\"\")","v":""},{"$f":"IF(ISERROR($V195),\"\",OFFSET('Smelter Look-up'!$E$4,$V195-4,0))","v":""},{"$f":"IF(C195=$X$4,\"Enter smelter details\",IF(ISERROR($V195),\"\",OFFSET('Smelter Look-up'!$F$4,$V195-4,0)))","v":""},{"$f":"IF(ISERROR($V195),\"\",OFFSET('Smelter Look-up'!$G$4,$V195-4,0))","v":""},{"$f":"IF(ISERROR($V195),\"\",OFFSET('Smelter Look-up'!$H$4,$V195-4,0))","v":""},{"$f":"IF(ISERROR($V195),\"\",OFFSET('Smelter Look-up'!$I$4,$V195-4,0))","v":""},{"$nulls":7},{"$f":"IF(ISERROR($V195),\"\",OFFSET('Smelter Look-up'!$C$4,$V195-4,0)&\"\")","v":""},"",{"$f":"IF(B195=\"\",\"\",IF(ISERROR(MATCH($J195,SorP!$B$1:$B$5661,0)),\"\",INDIRECT(\"'SorP'!$A$\"&MATCH($J195,SorP!$B$1:$B$5661,0))))","v":""},null,{"$f":"IF(C195=\"\",NA(),MATCH($B195&$C195,'Smelter Look-up'!$J:$J,0))","v":{"$error":"#N/A"}},null,0,null,null,null,""]
[null,{"$f":"IF(LEN(A196)=0,\"\",INDEX('Smelter Look-up'!$A:$A,MATCH($A196,'Smelter Look-up'!$E:$E,0)))","v":""},{"$f":"IF(LEN(A196)=0,\"\",INDEX('Smelter Look-up'!$C:$C,MATCH($A196,'Smelter Look-up'!$E:$E,0)))","v":""},null,{"$f":"IF(ISERROR($V196),\"\",OFFSET('Smelter Look-up'!$D$4,$V196-4,0)&\"\")","v":""},{"$f":"IF(ISERROR($V196),\"\",OFFSET('Smelter Look-up'!$E$4,$V196-4,0))","v":""},{"$f":"IF(C196=$X$4,\"Enter smelter details\",IF(ISERROR($V196),\"\",OFFSET('Smelter Look-up'!$F$4,$V196-4,0)))","v":""},{"$f":"IF(ISERROR($V196),\"\",OFFSET('Smelter Look-up'!$G$4,$V196-4,0))","v":""},{"$f":"IF(ISERROR($V196),\"\",OFFSET('Smelter Look-up'!$H$4,$V196-4,0))","v":""},{"$f":"IF(ISERROR($V196),\"\",OFFSET('Smelter Look-up'!$I$4,$V196-4,0))","v":""},{"$nulls":7},{"$f":"IF(ISERROR($V196),\"\",OFFSET('Smelter Look-up'!$C$4,$V196-4,0)&\"\")","v":""},"",{"$f":"IF(B196=\"\",\"\",IF(ISERROR(MATCH($J196,SorP!$B$1:$B$5661,0)),\"\",INDIRECT(\"'SorP'!$A$\"&MATCH($J196,SorP!$B$1:$B$5661,0))))","v":""},null,{"$f":"IF(C196=\"\",NA(),MATCH($B196&$C196,'Smelter Look-up'!$J:$J,0))","v":{"$error":"#N/A"}},null,0,null,null,null,""]
[null,{"$f":"IF(LEN(A197)=0,\"\",INDEX('Smelter Look-up'!$A:$A,MATCH($A197,'Smelter Look-up'!$E:$E,0)))","v":""},{"$f":"IF(LEN(A197)=0,\"\",INDEX('Smelter Look-up'!$C:$C,MATCH($A197,'Smelter Look-up'!$E:$E,0)))","v":""},null,{"$f":"IF(ISERROR($V197),\"\",OFFSET('Smelter Look-up'!$D$4,$V197-4,0)&\"\")","v":""},{"$f":"IF(ISERROR($V197),\"\",OFFSET('Smelter Look-up'!$E$4,$V197-4,0))","v":""},{"$f":"IF(C197=$X$4,\"Enter smelter details\",IF(ISERROR($V197),\"\",OFFSET('Smelter Look-up'!$F$4,$V197-4,0)))","v":""},{"$f":"IF(ISERROR($V197),\"\",OFFSET('Smelter Look-up'!$G$4,$V197-4,0))","v":""},{"$f":"IF(ISERROR($V197),\"\",OFFSET('Smelter Look-up'!$H$4,$V197-4,0))","v":""},{"$f":"IF(ISERROR($V197),\"\",OFFSET('Smelter Look-up'!$I$4,$V197-4,0))","v":""},{"$nulls":7},{"$f":"IF(ISERROR($V197),\"\",OFFSET('Smelter Look-up'!$C$4,$V197-4,0)&\"\")","v":""},"",{"$f":"IF(B197=\"\",\"\",IF(ISERROR(MATCH($J197,SorP!$B$1:$B$5661,0)),\"\",INDIRECT(\"'SorP'!$A$\"&MATCH($J197,SorP!$B$1:$B$5661,0))))","v":""},null,{"$f":"IF(C197=\"\",NA(),MATCH($B197&$C197,'Smelter Look-up'!$J:$J,0))","v":{"$error":"#N/A"}},null,0,null,null,null,""]
[null,{"$f":"IF(LEN(A198)=0,\"\",INDEX('Smelter Look-up'!$A:$A,MATCH($A198,'Smelter Look-up'!$E:$E,0)))","v":""},{"$f":"IF(LEN(A198)=0,\"\",INDEX('Smelter Look-up'!$C:$C,MATCH($A198,'Smelter Look-up'!$E:$E,0)))","v":""},null,{"$f":"IF(ISERROR($V198),\"\",OFFSET('Smelter Look-up'!$D$4,$V198-4,0)&\"\")","v":""},{"$f":"IF(ISERROR($V198),\"\",OFFSET('Smelter Look-up'!$E$4,$V198-4,0))","v":""},{"$f":"IF(C198=$X$4,\"Enter smelter details\",IF(ISERROR($V198),\"\",OFFSET('Smelter Look-up'!$F$4,$V198-4,0)))","v":""},{"$f":"IF(ISERROR($V198),\"\",OFFSET('Smelter Look-up'!$G$4,$V198-4,0))","v":""},{"$f":"IF(ISERROR($V198),\"\",OFFSET('Smelter Look-up'!$H$4,$V198-4,0))","v":""},{"$f":"IF(ISERROR($V198),\"\",OFFSET('Smelter Look-up'!$I$4,$V198-4,0))","v":""},{"$nulls":7},{"$f":"IF(ISERROR($V198),\"\",OFFSET('Smelter Look-up'!$C$4,$V198-4,0)&\"\")","v":""},"",{"$f":"IF(B198=\"\",\"\",IF(ISERROR(MATCH($J198,SorP!$B$1:$B$5661,0)),\"\",INDIRECT(\"'SorP'!$A$\"&MATCH($J198,SorP!$B$1:$B$5661,0))))","v":""},null,{"$f":"IF(C198=\"\",NA(),MATCH($B198&$C198,'Smelter Look-up'!$J:$J,0))","v":{"$error":"#N/A"}},null,0,null,null,null,""]
[null,{"$f":"IF(LEN(A199)=0,\"\",INDEX('Smelter Look-up'!$A:$A,MATCH($A199,'Smelter Look-up'!$E:$E,0)))","v":""},{"$f":"IF(LEN(A199)=0,\"\",INDEX('Smelter Look-up'!$C:$C,MATCH($A199,'Smelter Look-up'!$E:$E,0)))","v":""},null,{"$f":"IF(ISERROR($V199),\"\",OFFSET('Smelter Look-up'!$D$4,$V199-4,0)&\"\")","v":""},{"$f":"IF(ISERROR($V199),\"\",OFFSET('Smelter Look-up'!$E$4,$V199-4,0))","v":""},{"$f":"IF(C199=$X$4,\"Enter smelter details\",IF(ISERROR($V199),\"\",OFFSET('Smelter Look-up'!$F$4,$V199-4,0)))","v":""},{"$f":"IF(ISERROR($V199),\"\",OFFSET('Smelter Look-up'!$G$4,$V199-4,0))","v":""},{"$f":"IF(ISERROR($V199),\"\",OFFSET('Smelter Look-up'!$H$4,$V199-4,0))","v":""},{"$f":"IF(ISERROR($V199),\"\",OFFSET('Smelter Look-up'!$I$4,$V199-4,0))","v":""},{"$nulls":7},{"$f":"IF(ISERROR($V199),\"\",OFFSET('Smelter Look-up'!$C$4,$V199-4,0)&\"\")","v":""},"",{"$f":"IF(B199=\"\",\"\",IF(ISERROR(MATCH($J199,SorP!$B$1:$B$5661,0)),\"\",INDIRECT(\"'SorP'!$A$\"&MATCH($J199,SorP!$B$1:$B$5661,0))))","v":""},null,{"$f":"IF(C199=\"\",NA(),MATCH($B199&$C199,'Smelter Look-up'!$J:$J,0))","v":{"$error":"#N/A"}},null,0,null,null,null,""]
[null,{"$f":"IF(LEN(A200)=0,\"\",INDEX('Smelter Look-up'!$A:$A,MATCH($A200,'Smelter Look-up'!$E:$E,0)))","v":""},{"$f":"IF(LEN(A200)=0,\"\",INDEX('Smelter Look-up'!$C:$C,MATCH($A200,'Smelter Look-up'!$E:$E,0)))","v":""},null,{"$f":"IF(ISERROR($V200),\"\",OFFSET('Smelter Look-up'!$D$4,$V200-4,0)&\"\")","v":""},{"$f":"IF(ISERROR($V200),\"\",OFFSET('Smelter Look-up'!$E$4,$V200-4,0))","v":""},{"$f":"IF(C200=$X$4,\"Enter smelter details\",IF(ISERROR($V200),\"\",OFFSET('Smelter Look-up'!$F$4,$V200-4,0)))","v":""},{"$f":"IF(ISERROR($V200),\"\",OFFSET('Smelter Look-up'!$G$4,$V200-4,0))","v":""},{"$f":"IF(ISERROR($V200),\"\",OFFSET('Smelter Look-up'!$H$4,$V200-4,0))","v":""},{"$f":"IF(ISERROR($V200),\"\",OFFSET('Smelter Look-up'!$I$4,$V200-4,0))","v":""},{"$nulls":7},{"$f":"IF(ISERROR($V200),\"\",OFFSET('Smelter Look-up'!$C$4,$V200-4,0)&\"\")","v":""},"",{"$f":"IF(B200=\"\",\"\",IF(ISERROR(MATCH($J200,SorP!$B$1:$B$5661,0)),\"\",INDIRECT(\"'SorP'!$A$\"&MATCH($J200,SorP!$B$1:$B$5661,0))))","v":""},null,{"$f":"IF(C200=\"\",NA(),MATCH($B200&$C200,'Smelter Look-up'!$J:$J,0))","v":{"$error":"#N/A"}},null,0,null,null,null,""]
[null,{"$f":"IF(LEN(A201)=0,\"\",INDEX('Smelter Look-up'!$A:$A,MATCH($A201,'Smelter Look-up'!$E:$E,0)))","v":""},{"$f":"IF(LEN(A201)=0,\"\",INDEX('Smelter Look-up'!$C:$C,MATCH($A201,'Smelter Look-up'!$E:$E,0)))","v":""},null,{"$f":"IF(ISERROR($V201),\"\",OFFSET('Smelter Look-up'!$D$4,$V201-4,0)&\"\")","v":""},{"$f":"IF(ISERROR($V201),\"\",OFFSET('Smelter Look-up'!$E$4,$V201-4,0))","v":""},{"$f":"IF(C201=$X$4,\"Enter smelter details\",IF(ISERROR($V201),\"\",OFFSET('Smelter Look-up'!$F$4,$V201-4,0)))","v":""},{"$f":"IF(ISERROR($V201),\"\",OFFSET('Smelter Look-up'!$G$4,$V201-4,0))","v":""},{"$f":"IF(ISERROR($V201),\"\",OFFSET('Smelter Look-up'!$H$4,$V201-4,0))","v":""},{"$f":"IF(ISERROR($V201),\"\",OFFSET('Smelter Look-up'!$I$4,$V201-4,0))","v":""},{"$nulls":7},{"$f":"IF(ISERROR($V201),\"\",OFFSET('Smelter Look-up'!$C$4,$V201-4,0)&\"\")","v":""},"",{"$f":"IF(B201=\"\",\"\",IF(ISERROR(MATCH($J201,SorP!$B$1:$B$5661,0)),\"\",INDIRECT(\"'SorP'!$A$\"&MATCH($J201,SorP!$B$1:$B$5661,0))))","v":""},null,{"$f":"IF(C201=\"\",NA(),MATCH($B201&$C201,'Smelter Look-up'!$J:$J,0))","v":{"$error":"#N/A"}},null,0,null,null,null,""]
[null,{"$f":"IF(LEN(A202)=0,\"\",INDEX('Smelter Look-up'!$A:$A,MATCH($A202,'Smelter Look-up'!$E:$E,0)))","v":""},{"$f":"IF(LEN(A202)=0,\"\",INDEX('Smelter Look-up'!$C:$C,MATCH($A202,'Smelter Look-up'!$E:$E,0)))","v":""},null,{"$f":"IF(ISERROR($V202),\"\",OFFSET('Smelter Look-up'!$D$4,$V202-4,0)&\"\")","v":""},{"$f":"IF(ISERROR($V202),\"\",OFFSET('Smelter Look-up'!$E$4,$V202-4,0))","v":""},{"$f":"IF(C202=$X$4,\"Enter smelter details\",IF(ISERROR($V202),\"\",OFFSET('Smelter Look-up'!$F$4,$V202-4,0)))","v":""},{"$f":"IF(ISERROR($V202),\"\",OFFSET('Smelter Look-up'!$G$4,$V202-4,0))","v":""},{"$f":"IF(ISERROR($V202),\"\",OFFSET('Smelter Look-up'!$H$4,$V202-4,0))","v":""},{"$f":"IF(ISERROR($V202),\"\",OFFSET('Smelter Look-up'!$I$4,$V202-4,0))","v":""},{"$nulls":7},{"$f":"IF(ISERROR($V202),\"\",OFFSET('Smelter Look-up'!$C$4,$V202-4,0)&\"\")","v":""},"",{"$f":"IF(B202=\"\",\"\",IF(ISERROR(MATCH($J202,SorP!$B$1:$B$5661,0)),\"\",INDIRECT(\"'SorP'!$A$\"&MATCH($J202,SorP!$B$1:$B$5661,0))))","v":""},null,{"$f":"IF(C202=\"\",NA(),MATCH($B202&$C202,'Smelter Look-up'!$J:$J,0))","v":{"$error":"#N/A"}},null,0,null,null,null,""]
[null,{"$f":"IF(LEN(A203)=0,\"\",INDEX('Smelter Look-up'!$A:$A,MATCH($A203,'Smelter Look-up'!$E:$E,0)))","v":""},{"$f":"IF(LEN(A203)=0,\"\",INDEX('Smelter Look-up'!$C:$C,MATCH($A203,'Smelter Look-up'!$E:$E,0)))","v":""},null,{"$f":"IF(ISERROR($V203),\"\",OFFSET('Smelter Look-up'!$D$4,$V203-4,0)&\"\")","v":""},{"$f":"IF(ISERROR($V203),\"\",OFFSET('Smelter Look-up'!$E$4,$V203-4,0))","v":""},{"$f":"IF(C203=$X$4,\"Enter smelter details\",IF(ISERROR($V203),\"\",OFFSET('Smelter Look-up'!$F$4,$V203-4,0)))","v":""},{"$f":"IF(ISERROR($V203),\"\",OFFSET('Smelter Look-up'!$G$4,$V203-4,0))","v":""},{"$f":"IF(ISERROR($V203),\"\",OFFSET('Smelter Look-up'!$H$4,$V203-4,0))","v":""},{"$f":"IF(ISERROR($V203),\"\",OFFSET('Smelter Look-up'!$I$4,$V203-4,0))","v":""},{"$nulls":7},{"$f":"IF(ISERROR($V203),\"\",OFFSET('Smelter Look-up'!$C$4,$V203-4,0)&\"\")","v":""},"",{"$f":"IF(B203=\"\",\"\",IF(ISERROR(MATCH($J203,SorP!$B$1:$B$5661,0)),\"\",INDIRECT(\"'SorP'!$A$\"&MATCH($J203,SorP!$B$1:$B$5661,0))))","v":""},null,{"$f":"IF(C203=\"\",NA(),MATCH($B203&$C203,'Smelter Look-up'!$J:$J,0))","v":{"$error":"#N/A"}},null,0,null,null,null,""]
[null,{"$f":"IF(LEN(A204)=0,\"\",INDEX('Smelter Look-up'!$A:$A,MATCH($A204,'Smelter Look-up'!$E:$E,0)))","v":""},{"$f":"IF(LEN(A204)=0,\"\",INDEX('Smelter Look-up'!$C:$C,MATCH($A204,'Smelter Look-up'!$E:$E,0)))","v":""},null,{"$f":"IF(ISERROR($V204),\"\",OFFSET('Smelter Look-up'!$D$4,$V204-4,0)&\"\")","v":""},{"$f":"IF(ISERROR($V204),\"\",OFFSET('Smelter Look-up'!$E$4,$V204-4,0))","v":""},{"$f":"IF(C204=$X$4,\"Enter smelter details\",IF(ISERROR($V204),\"\",OFFSET('Smelter Look-up'!$F$4,$V204-4,0)))","v":""},{"$f":"IF(ISERROR($V204),\"\",OFFSET('Smelter Look-up'!$G$4,$V204-4,0))","v":""},{"$f":"IF(ISERROR($V204),\"\",OFFSET('Smelter Look-up'!$H$4,$V204-4,0))","v":""},{"$f":"IF(ISERROR($V204),\"\",OFFSET('Smelter Look-up'!$I$4,$V204-4,0))","v":""},{"$nulls":7},{"$f":"IF(ISERROR($V204),\"\",OFFSET('Smelter Look-up'!$C$4,$V204-4,0)&\"\")","v":""},"",{"$f":"IF(B204=\"\",\"\",IF(ISERROR(MATCH($J204,SorP!$B$1:$B$5661,0)),\"\",INDIRECT(\"'SorP'!$A$\"&MATCH($J204,SorP!$B$1:$B$5661,0))))","v":""},null,{"$f":"IF(C204=\"\",NA(),MATCH($B204&$C204,'Smelter Look-up'!$J:$J,0))","v":{"$error":"#N/A"}},null,0,null,null,null,""]
[null,{"$f":"IF(LEN(A205)=0,\"\",INDEX('Smelter Look-up'!$A:$A,MATCH($A205,'Smelter Look-up'!$E:$E,0)))","v":""},{"$f":"IF(LEN(A205)=0,\"\",INDEX('Smelter Look-up'!$C:$C,MATCH($A205,'Smelter Look-up'!$E:$E,0)))","v":""},null,{"$f":"IF(ISERROR($V205),\"\",OFFSET('Smelter Look-up'!$D$4,$V205-4,0)&\"\")","v":""},{"$f":"IF(ISERROR($V205),\"\",OFFSET('Smelter Look-up'!$E$4,$V205-4,0))","v":""},{"$f":"IF(C205=$X$4,\"Enter smelter details\",IF(ISERROR($V205),\"\",OFFSET('Smelter Look-up'!$F$4,$V205-4,0)))","v":""},{"$f":"IF(ISERROR($V205),\"\",OFFSET('Smelter Look-up'!$G$4,$V205-4,0))","v":""},{"$f":"IF(ISERROR($V205),\"\",OFFSET('Smelter Look-up'!$H$4,$V205-4,0))","v":""},{"$f":"IF(ISERROR($V205),\"\",OFFSET('Smelter Look-up'!$I$4,$V205-4,0))","v":""},{"$nulls":7},{"$f":"IF(ISERROR($V205),\"\",OFFSET('Smelter Look-up'!$C$4,$V205-4,0)&\"\")","v":""},"",{"$f":"IF(B205=\"\",\"\",IF(ISERROR(MATCH($J205,SorP!$B$1:$B$5661,0)),\"\",INDIRECT(\"'SorP'!$A$\"&MATCH($J205,SorP!$B$1:$B$5661,0))))","v":""},null,{"$f":"IF(C205=\"\",NA(),MATCH($B205&$C205,'Smelter Look-up'!$J:$J,0))","v":{"$error":"#N/A"}},null,0,null,null,null,""]
[null,{"$f":"IF(LEN(A206)=0,\"\",INDEX('Smelter Look-up'!$A:$A,MATCH($A206,'Smelter Look-up'!$E:$E,0)))","v":""},{"$f":"IF(LEN(A206)=0,\"\",INDEX('Smelter Look-up'!$C:$C,MATCH($A206,'Smelter Look-up'!$E:$E,0)))","v":""},null,{"$f":"IF(ISERROR($V206),\"\",OFFSET('Smelter Look-up'!$D$4,$V206-4,0)&\"\")","v":""},{"$f":"IF(ISERROR($V206),\"\",OFFSET('Smelter Look-up'!$E$4,$V206-4,0))","v":""},{"$f":"IF(C206=$X$4,\"Enter smelter details\",IF(ISERROR($V206),\"\",OFFSET('Smelter Look-up'!$F$4,$V206-4,0)))","v":""},{"$f":"IF(ISERROR($V206),\"\",OFFSET('Smelter Look-up'!$G$4,$V206-4,0))","v":""},{"$f":"IF(ISERROR($V206),\"\",OFFSET('Smelter Look-up'!$H$4,$V206-4,0))","v":""},{"$f":"IF(ISERROR($V206),\"\",OFFSET('Smelter Look-up'!$I$4,$V206-4,0))","v":""},{"$nulls":7},{"$f":"IF(ISERROR($V206),\"\",OFFSET('Smelter Look-up'!$C$4,$V206-4,0)&\"\")","v":""},"",{"$f":"IF(B206=\"\",\"\",IF(ISERROR(MATCH($J206,SorP!$B$1:$B$5661,0)),\"\",INDIRECT(\"'SorP'!$A$\"&MATCH($J206,SorP!$B$1:$B$5661,0))))","v":""},null,{"$f":"IF(C206=\"\",NA(),MATCH($B206&$C206,'Smelter Look-up'!$J:$J,0))","v":{"$error":"#N/A"}},null,0,null,null,null,""]
[null,{"$f":"IF(LEN(A207)=0,\"\",INDEX('Smelter Look-up'!$A:$A,MATCH($A207,'Smelter Look-up'!$E:$E,0)))","v":""},{"$f":"IF(LEN(A207)=0,\"\",INDEX('Smelter Look-up'!$C:$C,MATCH($A207,'Smelter Look-up'!$E:$E,0)))","v":""},null,{"$f":"IF(ISERROR($V207),\"\",OFFSET('Smelter Look-up'!$D$4,$V207-4,0)&\"\")","v":""},{"$f":"IF(ISERROR($V207),\"\",OFFSET('Smelter Look-up'!$E$4,$V207-4,0))","v":""},{"$f":"IF(C207=$X$4,\"Enter smelter details\",IF(ISERROR($V207),\"\",OFFSET('Smelter Look-up'!$F$4,$V207-4,0)))","v":""},{"$f":"IF(ISERROR($V207),\"\",OFFSET('Smelter Look-up'!$G$4,$V207-4,0))","v":""},{"$f":"IF(ISERROR($V207),\"\",OFFSET('Smelter Look-up'!$H$4,$V207-4,0))","v":""},{"$f":"IF(ISERROR($V207),\"\",OFFSET('Smelter Look-up'!$I$4,$V207-4,0))","v":""},{"$nulls":7},{"$f":"IF(ISERROR($V207),\"\",OFFSET('Smelter Look-up'!$C$4,$V207-4,0)&\"\")","v":""},"",{"$f":"IF(B207=\"\",\"\",IF(ISERROR(MATCH($J207,SorP!$B$1:$B$5661,0)),\"\",INDIRECT(\"'SorP'!$A$\"&MATCH($J207,SorP!$B$1:$B$5661,0))))","v":""},null,{"$f":"IF(C207=\"\",NA(),MATCH($B207&$C207,'Smelter Look-up'!$J:$J,0))","v":{"$error":"#N/A"}},null,0,null,null,null,""]
[null,{"$f":"IF(LEN(A208)=0,\"\",INDEX('Smelter Look-up'!$A:$A,MATCH($A208,'Smelter Look-up'!$E:$E,0)))","v":""},{"$f":"IF(LEN(A208)=0,\"\",INDEX('Smelter Look-up'!$C:$C,MATCH($A208,'Smelter Look-up'!$E:$E,0)))","v":""},null,{"$f":"IF(ISERROR($V208),\"\",OFFSET('Smelter Look-up'!$D$4,$V208-4,0)&\"\")","v":""},{"$f":"IF(ISERROR($V208),\"\",OFFSET('Smelter Look-up'!$E$4,$V208-4,0))","v":""},{"$f":"IF(C208=$X$4,\"Enter smelter details\",IF(ISERROR($V208),\"\",OFFSET('Smelter Look-up'!$F$4,$V208-4,0)))","v":""},{"$f":"IF(ISERROR($V208),\"\",OFFSET('Smelter Look-up'!$G$4,$V208-4,0))","v":""},{"$f":"IF(ISERROR($V208),\"\",OFFSET('Smelter Look-up'!$H$4,$V208-4,0))","v":""},{"$f":"IF(ISERROR($V208),\"\",OFFSET('Smelter Look-up'!$I$4,$V208-4,0))","v":""},{"$nulls":7},{"$f":"IF(ISERROR($V208),\"\",OFFSET('Smelter Look-up'!$C$4,$V208-4,0)&\"\")","v":""},"",{"$f":"IF(B208=\"\",\"\",IF(ISERROR(MATCH($J208,SorP!$B$1:$B$5661,0)),\"\",INDIRECT(\"'SorP'!$A$\"&MATCH($J208,SorP!$B$1:$B$5661,0))))","v":""},null,{"$f":"IF(C208=\"\",NA(),MATCH($B208&$C208,'Smelter Look-up'!$J:$J,0))","v":{"$error":"#N/A"}},null,0,null,null,null,""]
[null,{"$f":"IF(LEN(A209)=0,\"\",INDEX('Smelter Look-up'!$A:$A,MATCH($A209,'Smelter Look-up'!$E:$E,0)))","v":""},{"$f":"IF(LEN(A209)=0,\"\",INDEX('Smelter Look-up'!$C:$C,MATCH($A209,'Smelter Look-up'!$E:$E,0)))","v":""},null,{"$f":"IF(ISERROR($V209),\"\",OFFSET('Smelter Look-up'!$D$4,$V209-4,0)&\"\")","v":""},{"$f":"IF(ISERROR($V209),\"\",OFFSET('Smelter Look-up'!$E$4,$V209-4,0))","v":""},{"$f":"IF(C209=$X$4,\"Enter smelter details\",IF(ISERROR($V209),\"\",OFFSET('Smelter Look-up'!$F$4,$V209-4,0)))","v":""},{"$f":"IF(ISERROR($V209),\"\",OFFSET('Smelter Look-up'!$G$4,$V209-4,0))","v":""},{"$f":"IF(ISERROR($V209),\"\",OFFSET('Smelter Look-up'!$H$4,$V209-4,0))","v":""},{"$f":"IF(ISERROR($V209),\"\",OFFSET('Smelter Look-up'!$I$4,$V209-4,0))","v":""},{"$nulls":7},{"$f":"IF(ISERROR($V209),\"\",OFFSET('Smelter Look-up'!$C$4,$V209-4,0)&\"\")","v":""},"",{"$f":"IF(B209=\"\",\"\",IF(ISERROR(MATCH($J209,SorP!$B$1:$B$5661,0)),\"\",INDIRECT(\"'SorP'!$A$\"&MATCH($J209,SorP!$B$1:$B$5661,0))))","v":""},null,{"$f":"IF(C209=\"\",NA(),MATCH($B209&$C209,'Smelter Look-up'!$J:$J,0))","v":{"$error":"#N/A"}},null,0,null,null,null,""]
[null,{"$f":"IF(LEN(A210)=0,\"\",INDEX('Smelter Look-up'!$A:$A,MATCH($A210,'Smelter Look-up'!$E:$E,0)))","v":""},{"$f":"IF(LEN(A210)=0,\"\",INDEX('Smelter Look-up'!$C:$C,MATCH($A210,'Smelter Look-up'!$E:$E,0)))","v":""},null,{"$f":"IF(ISERROR($V210),\"\",OFFSET('Smelter Look-up'!$D$4,$V210-4,0)&\"\")","v":""},{"$f":"IF(ISERROR($V210),\"\",OFFSET('Smelter Look-up'!$E$4,$V210-4,0))","v":""},{"$f":"IF(C210=$X$4,\"Enter smelter details\",IF(ISERROR($V210),\"\",OFFSET('Smelter Look-up'!$F$4,$V210-4,0)))","v":""},{"$f":"IF(ISERROR($V210),\"\",OFFSET('Smelter Look-up'!$G$4,$V210-4,0))","v":""},{"$f":"IF(ISERROR($V210),\"\",OFFSET('Smelter Look-up'!$H$4,$V210-4,0))","v":""},{"$f":"IF(ISERROR($V210),\"\",OFFSET('Smelter Look-up'!$I$4,$V210-4,0))","v":""},{"$nulls":7},{"$f":"IF(ISERROR($V210),\"\",OFFSET('Smelter Look-up'!$C$4,$V210-4,0)&\"\")","v":""},"",{"$f":"IF(B210=\"\",\"\",IF(ISERROR(MATCH($J210,SorP!$B$1:$B$5661,0)),\"\",INDIRECT(\"'SorP'!$A$\"&MATCH($J210,SorP!$B$1:$B$5661,0))))","v":""},null,{"$f":"IF(C210=\"\",NA(),MATCH($B210&$C210,'Smelter Look-up'!$J:$J,0))","v":{"$error":"#N/A"}},null,0,null,null,null,""]
[null,{"$f":"IF(LEN(A211)=0,\"\",INDEX('Smelter Look-up'!$A:$A,MATCH($A211,'Smelter Look-up'!$E:$E,0)))","v":""},{"$f":"IF(LEN(A211)=0,\"\",INDEX('Smelter Look-up'!$C:$C,MATCH($A211,'Smelter Look-up'!$E:$E,0)))","v":""},null,{"$f":"IF(ISERROR($V211),\"\",OFFSET('Smelter Look-up'!$D$4,$V211-4,0)&\"\")","v":""},{"$f":"IF(ISERROR($V211),\"\",OFFSET('Smelter Look-up'!$E$4,$V211-4,0))","v":""},{"$f":"IF(C211=$X$4,\"Enter smelter details\",IF(ISERROR($V211),\"\",OFFSET('Smelter Look-up'!$F$4,$V211-4,0)))","v":""},{"$f":"IF(ISERROR($V211),\"\",OFFSET('Smelter Look-up'!$G$4,$V211-4,0))","v":""},{"$f":"IF(ISERROR($V211),\"\",OFFSET('Smelter Look-up'!$H$4,$V211-4,0))","v":""},{"$f":"IF(ISERROR($V211),\"\",OFFSET('Smelter Look-up'!$I$4,$V211-4,0))","v":""},{"$nulls":7},{"$f":"IF(ISERROR($V211),\"\",OFFSET('Smelter Look-up'!$C$4,$V211-4,0)&\"\")","v":""},"",{"$f":"IF(B211=\"\",\"\",IF(ISERROR(MATCH($J211,SorP!$B$1:$B$5661,0)),\"\",INDIRECT(\"'SorP'!$A$\"&MATCH($J211,SorP!$B$1:$B$5661,0))))","v":""},null,{"$f":"IF(C211=\"\",NA(),MATCH($B211&$C211,'Smelter Look-up'!$J:$J,0))","v":{"$error":"#N/A"}},null,0,null,null,null,""]
[null,{"$f":"IF(LEN(A212)=0,\"\",INDEX('Smelter Look-up'!$A:$A,MATCH($A212,'Smelter Look-up'!$E:$E,0)))","v":""},{"$f":"IF(LEN(A212)=0,\"\",INDEX('Smelter Look-up'!$C:$C,MATCH($A212,'Smelter Look-up'!$E:$E,0)))","v":""},null,{"$f":"IF(ISERROR($V212),\"\",OFFSET('Smelter Look-up'!$D$4,$V212-4,0)&\"\")","v":""},{"$f":"IF(ISERROR($V212),\"\",OFFSET('Smelter Look-up'!$E$4,$V212-4,0))","v":""},{"$f":"IF(C212=$X$4,\"Enter smelter details\",IF(ISERROR($V212),\"\",OFFSET('Smelter Look-up'!$F$4,$V212-4,0)))","v":""},{"$f":"IF(ISERROR($V212),\"\",OFFSET('Smelter Look-up'!$G$4,$V212-4,0))","v":""},{"$f":"IF(ISERROR($V212),\"\",OFFSET('Smelter Look-up'!$H$4,$V212-4,0))","v":""},{"$f":"IF(ISERROR($V212),\"\",OFFSET('Smelter Look-up'!$I$4,$V212-4,0))","v":""},{"$nulls":7},{"$f":"IF(ISERROR($V212),\"\",OFFSET('Smelter Look-up'!$C$4,$V212-4,0)&\"\")","v":""},"",{"$f":"IF(B212=\"\",\"\",IF(ISERROR(MATCH($J212,SorP!$B$1:$B$5661,0)),\"\",INDIRECT(\"'SorP'!$A$\"&MATCH($J212,SorP!$B$1:$B$5661,0))))","v":""},null,{"$f":"IF(C212=\"\",NA(),MATCH($B212&$C212,'Smelter Look-up'!$J:$J,0))","v":{"$error":"#N/A"}},null,0,null,null,null,""]
[null,{"$f":"IF(LEN(A213)=0,\"\",INDEX('Smelter Look-up'!$A:$A,MATCH($A213,'Smelter Look-up'!$E:$E,0)))","v":""},{"$f":"IF(LEN(A213)=0,\"\",INDEX('Smelter Look-up'!$C:$C,MATCH($A213,'Smelter Look-up'!$E:$E,0)))","v":""},null,{"$f":"IF(ISERROR($V213),\"\",OFFSET('Smelter Look-up'!$D$4,$V213-4,0)&\"\")","v":""},{"$f":"IF(ISERROR($V213),\"\",OFFSET('Smelter Look-up'!$E$4,$V213-4,0))","v":""},{"$f":"IF(C213=$X$4,\"Enter smelter details\",IF(ISERROR($V213),\"\",OFFSET('Smelter Look-up'!$F$4,$V213-4,0)))","v":""},{"$f":"IF(ISERROR($V213),\"\",OFFSET('Smelter Look-up'!$G$4,$V213-4,0))","v":""},{"$f":"IF(ISERROR($V213),\"\",OFFSET('Smelter Look-up'!$H$4,$V213-4,0))","v":""},{"$f":"IF(ISERROR($V213),\"\",OFFSET('Smelter Look-up'!$I$4,$V213-4,0))","v":""},{"$nulls":7},{"$f":"IF(ISERROR($V213),\"\",OFFSET('Smelter Look-up'!$C$4,$V213-4,0)&\"\")","v":""},"",{"$f":"IF(B213=\"\",\"\",IF(ISERROR(MATCH($J213,SorP!$B$1:$B$5661,0)),\"\",INDIRECT(\"'SorP'!$A$\"&MATCH($J213,SorP!$B$1:$B$5661,0))))","v":""},null,{"$f":"IF(C213=\"\",NA(),MATCH($B213&$C213,'Smelter Look-up'!$J:$J,0))","v":{"$error":"#N/A"}},null,0,null,null,null,""]
[null,{"$f":"IF(LEN(A214)=0,\"\",INDEX('Smelter Look-up'!$A:$A,MATCH($A214,'Smelter Look-up'!$E:$E,0)))","v":""},{"$f":"IF(LEN(A214)=0,\"\",INDEX('Smelter Look-up'!$C:$C,MATCH($A214,'Smelter Look-up'!$E:$E,0)))","v":""},null,{"$f":"IF(ISERROR($V214),\"\",OFFSET('Smelter Look-up'!$D$4,$V214-4,0)&\"\")","v":""},{"$f":"IF(ISERROR($V214),\"\",OFFSET('Smelter Look-up'!$E$4,$V214-4,0))","v":""},{"$f":"IF(C214=$X$4,\"Enter smelter details\",IF(ISERROR($V214),\"\",OFFSET('Smelter Look-up'!$F$4,$V214-4,0)))","v":""},{"$f":"IF(ISERROR($V214),\"\",OFFSET('Smelter Look-up'!$G$4,$V214-4,0))","v":""},{"$f":"IF(ISERROR($V214),\"\",OFFSET('Smelter Look-up'!$H$4,$V214-4,0))","v":""},{"$f":"IF(ISERROR($V214),\"\",OFFSET('Smelter Look-up'!$I$4,$V214-4,0))","v":""},{"$nulls":7},{"$f":"IF(ISERROR($V214),\"\",OFFSET('Smelter Look-up'!$C$4,$V214-4,0)&\"\")","v":""},"",{"$f":"IF(B214=\"\",\"\",IF(ISERROR(MATCH($J214,SorP!$B$1:$B$5661,0)),\"\",INDIRECT(\"'SorP'!$A$\"&MATCH($J214,SorP!$B$1:$B$5661,0))))","v":""},null,{"$f":"IF(C214=\"\",NA(),MATCH($B214&$C214,'Smelter Look-up'!$J:$J,0))","v":{"$error":"#N/A"}},null,0,null,null,null,""]
[null,{"$f":"IF(LEN(A215)=0,\"\",INDEX('Smelter Look-up'!$A:$A,MATCH($A215,'Smelter Look-up'!$E:$E,0)))","v":""},{"$f":"IF(LEN(A215)=0,\"\",INDEX('Smelter Look-up'!$C:$C,MATCH($A215,'Smelter Look-up'!$E:$E,0)))","v":""},null,{"$f":"IF(ISERROR($V215),\"\",OFFSET('Smelter Look-up'!$D$4,$V215-4,0)&\"\")","v":""},{"$f":"IF(ISERROR($V215),\"\",OFFSET('Smelter Look-up'!$E$4,$V215-4,0))","v":""},{"$f":"IF(C215=$X$4,\"Enter smelter details\",IF(ISERROR($V215),\"\",OFFSET('Smelter Look-up'!$F$4,$V215-4,0)))","v":""},{"$f":"IF(ISERROR($V215),\"\",OFFSET('Smelter Look-up'!$G$4,$V215-4,0))","v":""},{"$f":"IF(ISERROR($V215),\"\",OFFSET('Smelter Look-up'!$H$4,$V215-4,0))","v":""},{"$f":"IF(ISERROR($V215),\"\",OFFSET('Smelter Look-up'!$I$4,$V215-4,0))","v":""},{"$nulls":7},{"$f":"IF(ISERROR($V215),\"\",OFFSET('Smelter Look-up'!$C$4,$V215-4,0)&\"\")","v":""},"",{"$f":"IF(B215=\"\",\"\",IF(ISERROR(MATCH($J215,SorP!$B$1:$B$5661,0)),\"\",INDIRECT(\"'SorP'!$A$\"&MATCH($J215,SorP!$B$1:$B$5661,0))))","v":""},null,{"$f":"IF(C215=\"\",NA(),MATCH($B215&$C215,'Smelter Look-up'!$J:$J,0))","v":{"$error":"#N/A"}},null,0,null,null,null,""]
[null,{"$f":"IF(LEN(A216)=0,\"\",INDEX('Smelter Look-up'!$A:$A,MATCH($A216,'Smelter Look-up'!$E:$E,0)))","v":""},{"$f":"IF(LEN(A216)=0,\"\",INDEX('Smelter Look-up'!$C:$C,MATCH($A216,'Smelter Look-up'!$E:$E,0)))","v":""},null,{"$f":"IF(ISERROR($V216),\"\",OFFSET('Smelter Look-up'!$D$4,$V216-4,0)&\"\")","v":""},{"$f":"IF(ISERROR($V216),\"\",OFFSET('Smelter Look-up'!$E$4,$V216-4,0))","v":""},{"$f":"IF(C216=$X$4,\"Enter smelter details\",IF(ISERROR($V216),\"\",OFFSET('Smelter Look-up'!$F$4,$V216-4,0)))","v":""},{"$f":"IF(ISERROR($V216),\"\",OFFSET('Smelter Look-up'!$G$4,$V216-4,0))","v":""},{"$f":"IF(ISERROR($V216),\"\",OFFSET('Smelter Look-up'!$H$4,$V216-4,0))","v":""},{"$f":"IF(ISERROR($V216),\"\",OFFSET('Smelter Look-up'!$I$4,$V216-4,0))","v":""},{"$nulls":7},{"$f":"IF(ISERROR($V216),\"\",OFFSET('Smelter Look-up'!$C$4,$V216-4,0)&\"\")","v":""},"",{"$f":"IF(B216=\"\",\"\",IF(ISERROR(MATCH($J216,SorP!$B$1:$B$5661,0)),\"\",INDIRECT(\"'SorP'!$A$\"&MATCH($J216,SorP!$B$1:$B$5661,0))))","v":""},null,{"$f":"IF(C216=\"\",NA(),MATCH($B216&$C216,'Smelter Look-up'!$J:$J,0))","v":{"$error":"#N/A"}},null,0,null,null,null,""]
[null,{"$f":"IF(LEN(A217)=0,\"\",INDEX('Smelter Look-up'!$A:$A,MATCH($A217,'Smelter Look-up'!$E:$E,0)))","v":""},{"$f":"IF(LEN(A217)=0,\"\",INDEX('Smelter Look-up'!$C:$C,MATCH($A217,'Smelter Look-up'!$E:$E,0)))","v":""},null,{"$f":"IF(ISERROR($V217),\"\",OFFSET('Smelter Look-up'!$D$4,$V217-4,0)&\"\")","v":""},{"$f":"IF(ISERROR($V217),\"\",OFFSET('Smelter Look-up'!$E$4,$V217-4,0))","v":""},{"$f":"IF(C217=$X$4,\"Enter smelter details\",IF(ISERROR($V217),\"\",OFFSET('Smelter Look-up'!$F$4,$V217-4,0)))","v":""},{"$f":"IF(ISERROR($V217),\"\",OFFSET('Smelter Look-up'!$G$4,$V217-4,0))","v":""},{"$f":"IF(ISERROR($V217),\"\",OFFSET('Smelter Look-up'!$H$4,$V217-4,0))","v":""},{"$f":"IF(ISERROR($V217),\"\",OFFSET('Smelter Look-up'!$I$4,$V217-4,0))","v":""},{"$nulls":7},{"$f":"IF(ISERROR($V217),\"\",OFFSET('Smelter Look-up'!$C$4,$V217-4,0)&\"\")","v":""},"",{"$f":"IF(B217=\"\",\"\",IF(ISERROR(MATCH($J217,SorP!$B$1:$B$5661,0)),\"\",INDIRECT(\"'SorP'!$A$\"&MATCH($J217,SorP!$B$1:$B$5661,0))))","v":""},null,{"$f":"IF(C217=\"\",NA(),MATCH($B217&$C217,'Smelter Look-up'!$J:$J,0))","v":{"$error":"#N/A"}},null,0,null,null,null,""]
[null,{"$f":"IF(LEN(A218)=0,\"\",INDEX('Smelter Look-up'!$A:$A,MATCH($A218,'Smelter Look-up'!$E:$E,0)))","v":""},{"$f":"IF(LEN(A218)=0,\"\",INDEX('Smelter Look-up'!$C:$C,MATCH($A218,'Smelter Look-up'!$E:$E,0)))","v":""},null,{"$f":"IF(ISERROR($V218),\"\",OFFSET('Smelter Look-up'!$D$4,$V218-4,0)&\"\")","v":""},{"$f":"IF(ISERROR($V218),\"\",OFFSET('Smelter Look-up'!$E$4,$V218-4,0))","v":""},{"$f":"IF(C218=$X$4,\"Enter smelter details\",IF(ISERROR($V218),\"\",OFFSET('Smelter Look-up'!$F$4,$V218-4,0)))","v":""},{"$f":"IF(ISERROR($V218),\"\",OFFSET('Smelter Look-up'!$G$4,$V218-4,0))","v":""},{"$f":"IF(ISERROR($V218),\"\",OFFSET('Smelter Look-up'!$H$4,$V218-4,0))","v":""},{"$f":"IF(ISERROR($V218),\"\",OFFSET('Smelter Look-up'!$I$4,$V218-4,0))","v":""},{"$nulls":7},{"$f":"IF(ISERROR($V218),\"\",OFFSET('Smelter Look-up'!$C$4,$V218-4,0)&\"\")","v":""},"",{"$f":"IF(B218=\"\",\"\",IF(ISERROR(MATCH($J218,SorP!$B$1:$B$5661,0)),\"\",INDIRECT(\"'SorP'!$A$\"&MATCH($J218,SorP!$B$1:$B$5661,0))))","v":""},null,{"$f":"IF(C218=\"\",NA(),MATCH($B218&$C218,'Smelter Look-up'!$J:$J,0))","v":{"$error":"#N/A"}},null,0,null,null,null,""]
[null,{"$f":"IF(LEN(A219)=0,\"\",INDEX('Smelter Look-up'!$A:$A,MATCH($A219,'Smelter Look-up'!$E:$E,0)))","v":""},{"$f":"IF(LEN(A219)=0,\"\",INDEX('Smelter Look-up'!$C:$C,MATCH($A219,'Smelter Look-up'!$E:$E,0)))","v":""},null,{"$f":"IF(ISERROR($V219),\"\",OFFSET('Smelter Look-up'!$D$4,$V219-4,0)&\"\")","v":""},{"$f":"IF(ISERROR($V219),\"\",OFFSET('Smelter Look-up'!$E$4,$V219-4,0))","v":""},{"$f":"IF(C219=$X$4,\"Enter smelter details\",IF(ISERROR($V219),\"\",OFFSET('Smelter Look-up'!$F$4,$V219-4,0)))","v":""},{"$f":"IF(ISERROR($V219),\"\",OFFSET('Smelter Look-up'!$G$4,$V219-4,0))","v":""},{"$f":"IF(ISERROR($V219),\"\",OFFSET('Smelter Look-up'!$H$4,$V219-4,0))","v":""},{"$f":"IF(ISERROR($V219),\"\",OFFSET('Smelter Look-up'!$I$4,$V219-4,0))","v":""},{"$nulls":7},{"$f":"IF(ISERROR($V219),\"\",OFFSET('Smelter Look-up'!$C$4,$V219-4,0)&\"\")","v":""},"",{"$f":"IF(B219=\"\",\"\",IF(ISERROR(MATCH($J219,SorP!$B$1:$B$5661,0)),\"\",INDIRECT(\"'SorP'!$A$\"&MATCH($J219,SorP!$B$1:$B$5661,0))))","v":""},null,{"$f":"IF(C219=\"\",NA(),MATCH($B219&$C219,'Smelter Look-up'!$J:$J,0))","v":{"$error":"#N/A"}},null,0,null,null,null,""]
[null,{"$f":"IF(LEN(A220)=0,\"\",INDEX('Smelter Look-up'!$A:$A,MATCH($A220,'Smelter Look-up'!$E:$E,0)))","v":""},{"$f":"IF(LEN(A220)=0,\"\",INDEX('Smelter Look-up'!$C:$C,MATCH($A220,'Smelter Look-up'!$E:$E,0)))","v":""},null,{"$f":"IF(ISERROR($V220),\"\",OFFSET('Smelter Look-up'!$D$4,$V220-4,0)&\"\")","v":""},{"$f":"IF(ISERROR($V220),\"\",OFFSET('Smelter Look-up'!$E$4,$V220-4,0))","v":""},{"$f":"IF(C220=$X$4,\"Enter smelter details\",IF(ISERROR($V220),\"\",OFFSET('Smelter Look-up'!$F$4,$V220-4,0)))","v":""},{"$f":"IF(ISERROR($V220),\"\",OFFSET('Smelter Look-up'!$G$4,$V220-4,0))","v":""},{"$f":"IF(ISERROR($V220),\"\",OFFSET('Smelter Look-up'!$H$4,$V220-4,0))","v":""},{"$f":"IF(ISERROR($V220),\"\",OFFSET('Smelter Look-up'!$I$4,$V220-4,0))","v":""},{"$nulls":7},{"$f":"IF(ISERROR($V220),\"\",OFFSET('Smelter Look-up'!$C$4,$V220-4,0)&\"\")","v":""},"",{"$f":"IF(B220=\"\",\"\",IF(ISERROR(MATCH($J220,SorP!$B$1:$B$5661,0)),\"\",INDIRECT(\"'SorP'!$A$\"&MATCH($J220,SorP!$B$1:$B$5661,0))))","v":""},null,{"$f":"IF(C220=\"\",NA(),MATCH($B220&$C220,'Smelter Look-up'!$J:$J,0))","v":{"$error":"#N/A"}},null,0,null,null,null,""]
[null,{"$f":"IF(LEN(A221)=0,\"\",INDEX('Smelter Look-up'!$A:$A,MATCH($A221,'Smelter Look-up'!$E:$E,0)))","v":""},{"$f":"IF(LEN(A221)=0,\"\",INDEX('Smelter Look-up'!$C:$C,MATCH($A221,'Smelter Look-up'!$E:$E,0)))","v":""},null,{"$f":"IF(ISERROR($V221),\"\",OFFSET('Smelter Look-up'!$D$4,$V221-4,0)&\"\")","v":""},{"$f":"IF(ISERROR($V221),\"\",OFFSET('Smelter Look-up'!$E$4,$V221-4,0))","v":""},{"$f":"IF(C221=$X$4,\"Enter smelter details\",IF(ISERROR($V221),\"\",OFFSET('Smelter Look-up'!$F$4,$V221-4,0)))","v":""},{"$f":"IF(ISERROR($V221),\"\",OFFSET('Smelter Look-up'!$G$4,$V221-4,0))","v":""},{"$f":"IF(ISERROR($V221),\"\",OFFSET('Smelter Look-up'!$H$4,$V221-4,0))","v":""},{"$f":"IF(ISERROR($V221),\"\",OFFSET('Smelter Look-up'!$I$4,$V221-4,0))","v":""},{"$nulls":7},{"$f":"IF(ISERROR($V221),\"\",OFFSET('Smelter Look-up'!$C$4,$V221-4,0)&\"\")","v":""},"",{"$f":"IF(B221=\"\",\"\",IF(ISERROR(MATCH($J221,SorP!$B$1:$B$5661,0)),\"\",INDIRECT(\"'SorP'!$A$\"&MATCH($J221,SorP!$B$1:$B$5661,0))))","v":""},null,{"$f":"IF(C221=\"\",NA(),MATCH($B221&$C221,'Smelter Look-up'!$J:$J,0))","v":{"$error":"#N/A"}},null,0,null,null,null,""]
[null,{"$f":"IF(LEN(A222)=0,\"\",INDEX('Smelter Look-up'!$A:$A,MATCH($A222,'Smelter Look-up'!$E:$E,0)))","v":""},{"$f":"IF(LEN(A222)=0,\"\",INDEX('Smelter Look-up'!$C:$C,MATCH($A222,'Smelter Look-up'!$E:$E,0)))","v":""},null,{"$f":"IF(ISERROR($V222),\"\",OFFSET('Smelter Look-up'!$D$4,$V222-4,0)&\"\")","v":""},{"$f":"IF(ISERROR($V222),\"\",OFFSET('Smelter Look-up'!$E$4,$V222-4,0))","v":""},{"$f":"IF(C222=$X$4,\"Enter smelter details\",IF(ISERROR($V222),\"\",OFFSET('Smelter Look-up'!$F$4,$V222-4,0)))","v":""},{"$f":"IF(ISERROR($V222),\"\",OFFSET('Smelter Look-up'!$G$4,$V222-4,0))","v":""},{"$f":"IF(ISERROR($V222),\"\",OFFSET('Smelter Look-up'!$H$4,$V222-4,0))","v":""},{"$f":"IF(ISERROR($V222),\"\",OFFSET('Smelter Look-up'!$I$4,$V222-4,0))","v":""},{"$nulls":7},{"$f":"IF(ISERROR($V222),\"\",OFFSET('Smelter Look-up'!$C$4,$V222-4,0)&\"\")","v":""},"",{"$f":"IF(B222=\"\",\"\",IF(ISERROR(MATCH($J222,SorP!$B$1:$B$5661,0)),\"\",INDIRECT(\"'SorP'!$A$\"&MATCH($J222,SorP!$B$1:$B$5661,0))))","v":""},null,{"$f":"IF(C222=\"\",NA(),MATCH($B222&$C222,'Smelter Look-up'!$J:$J,0))","v":{"$error":"#N/A"}},null,0,null,null,null,""]
[null,{"$f":"IF(LEN(A223)=0,\"\",INDEX('Smelter Look-up'!$A:$A,MATCH($A223,'Smelter Look-up'!$E:$E,0)))","v":""},{"$f":"IF(LEN(A223)=0,\"\",INDEX('Smelter Look-up'!$C:$C,MATCH($A223,'Smelter Look-up'!$E:$E,0)))","v":""},null,{"$f":"IF(ISERROR($V223),\"\",OFFSET('Smelter Look-up'!$D$4,$V223-4,0)&\"\")","v":""},{"$f":"IF(ISERROR($V223),\"\",OFFSET('Smelter Look-up'!$E$4,$V223-4,0))","v":""},{"$f":"IF(C223=$X$4,\"Enter smelter details\",IF(ISERROR($V223),\"\",OFFSET('Smelter Look-up'!$F$4,$V223-4,0)))","v":""},{"$f":"IF(ISERROR($V223),\"\",OFFSET('Smelter Look-up'!$G$4,$V223-4,0))","v":""},{"$f":"IF(ISERROR($V223),\"\",OFFSET('Smelter Look-up'!$H$4,$V223-4,0))","v":""},{"$f":"IF(ISERROR($V223),\"\",OFFSET('Smelter Look-up'!$I$4,$V223-4,0))","v":""},{"$nulls":7},{"$f":"IF(ISERROR($V223),\"\",OFFSET('Smelter Look-up'!$C$4,$V223-4,0)&\"\")","v":""},"",{"$f":"IF(B223=\"\",\"\",IF(ISERROR(MATCH($J223,SorP!$B$1:$B$5661,0)),\"\",INDIRECT(\"'SorP'!$A$\"&MATCH($J223,SorP!$B$1:$B$5661,0))))","v":""},null,{"$f":"IF(C223=\"\",NA(),MATCH($B223&$C223,'Smelter Look-up'!$J:$J,0))","v":{"$error":"#N/A"}},null,0,null,null,null,""]
[null,{"$f":"IF(LEN(A224)=0,\"\",INDEX('Smelter Look-up'!$A:$A,MATCH($A224,'Smelter Look-up'!$E:$E,0)))","v":""},{"$f":"IF(LEN(A224)=0,\"\",INDEX('Smelter Look-up'!$C:$C,MATCH($A224,'Smelter Look-up'!$E:$E,0)))","v":""},null,{"$f":"IF(ISERROR($V224),\"\",OFFSET('Smelter Look-up'!$D$4,$V224-4,0)&\"\")","v":""},{"$f":"IF(ISERROR($V224),\"\",OFFSET('Smelter Look-up'!$E$4,$V224-4,0))","v":""},{"$f":"IF(C224=$X$4,\"Enter smelter details\",IF(ISERROR($V224),\"\",OFFSET('Smelter Look-up'!$F$4,$V224-4,0)))","v":""},{"$f":"IF(ISERROR($V224),\"\",OFFSET('Smelter Look-up'!$G$4,$V224-4,0))","v":""},{"$f":"IF(ISERROR($V224),\"\",OFFSET('Smelter Look-up'!$H$4,$V224-4,0))","v":""},{"$f":"IF(ISERROR($V224),\"\",OFFSET('Smelter Look-up'!$I$4,$V224-4,0))","v":""},{"$nulls":7},{"$f":"IF(ISERROR($V224),\"\",OFFSET('Smelter Look-up'!$C$4,$V224-4,0)&\"\")","v":""},"",{"$f":"IF(B224=\"\",\"\",IF(ISERROR(MATCH($J224,SorP!$B$1:$B$5661,0)),\"\",INDIRECT(\"'SorP'!$A$\"&MATCH($J224,SorP!$B$1:$B$5661,0))))","v":""},null,{"$f":"IF(C224=\"\",NA(),MATCH($B224&$C224,'Smelter Look-up'!$J:$J,0))","v":{"$error":"#N/A"}},null,0,null,null,null,""]
[null,{"$f":"IF(LEN(A225)=0,\"\",INDEX('Smelter Look-up'!$A:$A,MATCH($A225,'Smelter Look-up'!$E:$E,0)))","v":""},{"$f":"IF(LEN(A225)=0,\"\",INDEX('Smelter Look-up'!$C:$C,MATCH($A225,'Smelter Look-up'!$E:$E,0)))","v":""},null,{"$f":"IF(ISERROR($V225),\"\",OFFSET('Smelter Look-up'!$D$4,$V225-4,0)&\"\")","v":""},{"$f":"IF(ISERROR($V225),\"\",OFFSET('Smelter Look-up'!$E$4,$V225-4,0))","v":""},{"$f":"IF(C225=$X$4,\"Enter smelter details\",IF(ISERROR($V225),\"\",OFFSET('Smelter Look-up'!$F$4,$V225-4,0)))","v":""},{"$f":"IF(ISERROR($V225),\"\",OFFSET('Smelter Look-up'!$G$4,$V225-4,0))","v":""},{"$f":"IF(ISERROR($V225),\"\",OFFSET('Smelter Look-up'!$H$4,$V225-4,0))","v":""},{"$f":"IF(ISERROR($V225),\"\",OFFSET('Smelter Look-up'!$I$4,$V225-4,0))","v":""},{"$nulls":7},{"$f":"IF(ISERROR($V225),\"\",OFFSET('Smelter Look-up'!$C$4,$V225-4,0)&\"\")","v":""},"",{"$f":"IF(B225=\"\",\"\",IF(ISERROR(MATCH($J225,SorP!$B$1:$B$5661,0)),\"\",INDIRECT(\"'SorP'!$A$\"&MATCH($J225,SorP!$B$1:$B$5661,0))))","v":""},null,{"$f":"IF(C225=\"\",NA(),MATCH($B225&$C225,'Smelter Look-up'!$J:$J,0))","v":{"$error":"#N/A"}},null,0,null,null,null,""]
[null,{"$f":"IF(LEN(A226)=0,\"\",INDEX('Smelter Look-up'!$A:$A,MATCH($A226,'Smelter Look-up'!$E:$E,0)))","v":""},{"$f":"IF(LEN(A226)=0,\"\",INDEX('Smelter Look-up'!$C:$C,MATCH($A226,'Smelter Look-up'!$E:$E,0)))","v":""},null,{"$f":"IF(ISERROR($V226),\"\",OFFSET('Smelter Look-up'!$D$4,$V226-4,0)&\"\")","v":""},{"$f":"IF(ISERROR($V226),\"\",OFFSET('Smelter Look-up'!$E$4,$V226-4,0))","v":""},{"$f":"IF(C226=$X$4,\"Enter smelter details\",IF(ISERROR($V226),\"\",OFFSET('Smelter Look-up'!$F$4,$V226-4,0)))","v":""},{"$f":"IF(ISERROR($V226),\"\",OFFSET('Smelter Look-up'!$G$4,$V226-4,0))","v":""},{"$f":"IF(ISERROR($V226),\"\",OFFSET('Smelter Look-up'!$H$4,$V226-4,0))","v":""},{"$f":"IF(ISERROR($V226),\"\",OFFSET('Smelter Look-up'!$I$4,$V226-4,0))","v":""},{"$nulls":7},{"$f":"IF(ISERROR($V226),\"\",OFFSET('Smelter Look-up'!$C$4,$V226-4,0)&\"\")","v":""},"",{"$f":"IF(B226=\"\",\"\",IF(ISERROR(MATCH($J226,SorP!$B$1:$B$5661,0)),\"\",INDIRECT(\"'SorP'!$A$\"&MATCH($J226,SorP!$B$1:$B$5661,0))))","v":""},null,{"$f":"IF(C226=\"\",NA(),MATCH($B226&$C226,'Smelter Look-up'!$J:$J,0))","v":{"$error":"#N/A"}},null,0,null,null,null,""]
[null,{"$f":"IF(LEN(A227)=0,\"\",INDEX('Smelter Look-up'!$A:$A,MATCH($A227,'Smelter Look-up'!$E:$E,0)))","v":""},{"$f":"IF(LEN(A227)=0,\"\",INDEX('Smelter Look-up'!$C:$C,MATCH($A227,'Smelter Look-up'!$E:$E,0)))","v":""},null,{"$f":"IF(ISERROR($V227),\"\",OFFSET('Smelter Look-up'!$D$4,$V227-4,0)&\"\")","v":""},{"$f":"IF(ISERROR($V227),\"\",OFFSET('Smelter Look-up'!$E$4,$V227-4,0))","v":""},{"$f":"IF(C227=$X$4,\"Enter smelter details\",IF(ISERROR($V227),\"\",OFFSET('Smelter Look-up'!$F$4,$V227-4,0)))","v":""},{"$f":"IF(ISERROR($V227),\"\",OFFSET('Smelter Look-up'!$G$4,$V227-4,0))","v":""},{"$f":"IF(ISERROR($V227),\"\",OFFSET('Smelter Look-up'!$H$4,$V227-4,0))","v":""},{"$f":"IF(ISERROR($V227),\"\",OFFSET('Smelter Look-up'!$I$4,$V227-4,0))","v":""},{"$nulls":7},{"$f":"IF(ISERROR($V227),\"\",OFFSET('Smelter Look-up'!$C$4,$V227-4,0)&\"\")","v":""},"",{"$f":"IF(B227=\"\",\"\",IF(ISERROR(MATCH($J227,SorP!$B$1:$B$5661,0)),\"\",INDIRECT(\"'SorP'!$A$\"&MATCH($J227,SorP!$B$1:$B$5661,0))))","v":""},null,{"$f":"IF(C227=\"\",NA(),MATCH($B227&$C227,'Smelter Look-up'!$J:$J,0))","v":{"$error":"#N/A"}},null,0,null,null,null,""]
[null,{"$f":"IF(LEN(A228)=0,\"\",INDEX('Smelter Look-up'!$A:$A,MATCH($A228,'Smelter Look-up'!$E:$E,0)))","v":""},{"$f":"IF(LEN(A228)=0,\"\",INDEX('Smelter Look-up'!$C:$C,MATCH($A228,'Smelter Look-up'!$E:$E,0)))","v":""},null,{"$f":"IF(ISERROR($V228),\"\",OFFSET('Smelter Look-up'!$D$4,$V228-4,0)&\"\")","v":""},{"$f":"IF(ISERROR($V228),\"\",OFFSET('Smelter Look-up'!$E$4,$V228-4,0))","v":""},{"$f":"IF(C228=$X$4,\"Enter smelter details\",IF(ISERROR($V228),\"\",OFFSET('Smelter Look-up'!$F$4,$V228-4,0)))","v":""},{"$f":"IF(ISERROR($V228),\"\",OFFSET('Smelter Look-up'!$G$4,$V228-4,0))","v":""},{"$f":"IF(ISERROR($V228),\"\",OFFSET('Smelter Look-up'!$H$4,$V228-4,0))","v":""},{"$f":"IF(ISERROR($V228),\"\",OFFSET('Smelter Look-up'!$I$4,$V228-4,0))","v":""},{"$nulls":7},{"$f":"IF(ISERROR($V228),\"\",OFFSET('Smelter Look-up'!$C$4,$V228-4,0)&\"\")","v":""},"",{"$f":"IF(B228=\"\",\"\",IF(ISERROR(MATCH($J228,SorP!$B$1:$B$5661,0)),\"\",INDIRECT(\"'SorP'!$A$\"&MATCH($J228,SorP!$B$1:$B$5661,0))))","v":""},null,{"$f":"IF(C228=\"\",NA(),MATCH($B228&$C228,'Smelter Look-up'!$J:$J,0))","v":{"$error":"#N/A"}},null,0,null,null,null,""]
[null,{"$f":"IF(LEN(A229)=0,\"\",INDEX('Smelter Look-up'!$A:$A,MATCH($A229,'Smelter Look-up'!$E:$E,0)))","v":""},{"$f":"IF(LEN(A229)=0,\"\",INDEX('Smelter Look-up'!$C:$C,MATCH($A229,'Smelter Look-up'!$E:$E,0)))","v":""},null,{"$f":"IF(ISERROR($V229),\"\",OFFSET('Smelter Look-up'!$D$4,$V229-4,0)&\"\")","v":""},{"$f":"IF(ISERROR($V229),\"\",OFFSET('Smelter Look-up'!$E$4,$V229-4,0))","v":""},{"$f":"IF(C229=$X$4,\"Enter smelter details\",IF(ISERROR($V229),\"\",OFFSET('Smelter Look-up'!$F$4,$V229-4,0)))","v":""},{"$f":"IF(ISERROR($V229),\"\",OFFSET('Smelter Look-up'!$G$4,$V229-4,0))","v":""},{"$f":"IF(ISERROR($V229),\"\",OFFSET('Smelter Look-up'!$H$4,$V229-4,0))","v":""},{"$f":"IF(ISERROR($V229),\"\",OFFSET('Smelter Look-up'!$I$4,$V229-4,0))","v":""},{"$nulls":7},{"$f":"IF(ISERROR($V229),\"\",OFFSET('Smelter Look-up'!$C$4,$V229-4,0)&\"\")","v":""},"",{"$f":"IF(B229=\"\",\"\",IF(ISERROR(MATCH($J229,SorP!$B$1:$B$5661,0)),\"\",INDIRECT(\"'SorP'!$A$\"&MATCH($J229,SorP!$B$1:$B$5661,0))))","v":""},null,{"$f":"IF(C229=\"\",NA(),MATCH($B229&$C229,'Smelter Look-up'!$J:$J,0))","v":{"$error":"#N/A"}},null,0,null,null,null,""]
[null,{"$f":"IF(LEN(A230)=0,\"\",INDEX('Smelter Look-up'!$A:$A,MATCH($A230,'Smelter Look-up'!$E:$E,0)))","v":""},{"$f":"IF(LEN(A230)=0,\"\",INDEX('Smelter Look-up'!$C:$C,MATCH($A230,'Smelter Look-up'!$E:$E,0)))","v":""},null,{"$f":"IF(ISERROR($V230),\"\",OFFSET('Smelter Look-up'!$D$4,$V230-4,0)&\"\")","v":""},{"$f":"IF(ISERROR($V230),\"\",OFFSET('Smelter Look-up'!$E$4,$V230-4,0))","v":""},{"$f":"IF(C230=$X$4,\"Enter smelter details\",IF(ISERROR($V230),\"\",OFFSET('Smelter Look-up'!$F$4,$V230-4,0)))","v":""},{"$f":"IF(ISERROR($V230),\"\",OFFSET('Smelter Look-up'!$G$4,$V230-4,0))","v":""},{"$f":"IF(ISERROR($V230),\"\",OFFSET('Smelter Look-up'!$H$4,$V230-4,0))","v":""},{"$f":"IF(ISERROR($V230),\"\",OFFSET('Smelter Look-up'!$I$4,$V230-4,0))","v":""},{"$nulls":7},{"$f":"IF(ISERROR($V230),\"\",OFFSET('Smelter Look-up'!$C$4,$V230-4,0)&\"\")","v":""},"",{"$f":"IF(B230=\"\",\"\",IF(ISERROR(MATCH($J230,SorP!$B$1:$B$5661,0)),\"\",INDIRECT(\"'SorP'!$A$\"&MATCH($J230,SorP!$B$1:$B$5661,0))))","v":""},null,{"$f":"IF(C230=\"\",NA(),MATCH($B230&$C230,'Smelter Look-up'!$J:$J,0))","v":{"$error":"#N/A"}},null,0,null,null,null,""]
[null,{"$f":"IF(LEN(A231)=0,\"\",INDEX('Smelter Look-up'!$A:$A,MATCH($A231,'Smelter Look-up'!$E:$E,0)))","v":""},{"$f":"IF(LEN(A231)=0,\"\",INDEX('Smelter Look-up'!$C:$C,MATCH($A231,'Smelter Look-up'!$E:$E,0)))","v":""},null,{"$f":"IF(ISERROR($V231),\"\",OFFSET('Smelter Look-up'!$D$4,$V231-4,0)&\"\")","v":""},{"$f":"IF(ISERROR($V231),\"\",OFFSET('Smelter Look-up'!$E$4,$V231-4,0))","v":""},{"$f":"IF(C231=$X$4,\"Enter smelter details\",IF(ISERROR($V231),\"\",OFFSET('Smelter Look-up'!$F$4,$V231-4,0)))","v":""},{"$f":"IF(ISERROR($V231),\"\",OFFSET('Smelter Look-up'!$G$4,$V231-4,0))","v":""},{"$f":"IF(ISERROR($V231),\"\",OFFSET('Smelter Look-up'!$H$4,$V231-4,0))","v":""},{"$f":"IF(ISERROR($V231),\"\",OFFSET('Smelter Look-up'!$I$4,$V231-4,0))","v":""},{"$nulls":7},{"$f":"IF(ISERROR($V231),\"\",OFFSET('Smelter Look-up'!$C$4,$V231-4,0)&\"\")","v":""},"",{"$f":"IF(B231=\"\",\"\",IF(ISERROR(MATCH($J231,SorP!$B$1:$B$5661,0)),\"\",INDIRECT(\"'SorP'!$A$\"&MATCH($J231,SorP!$B$1:$B$5661,0))))","v":""},null,{"$f":"IF(C231=\"\",NA(),MATCH($B231&$C231,'Smelter Look-up'!$J:$J,0))","v":{"$error":"#N/A"}},null,0,null,null,null,""]
[null,{"$f":"IF(LEN(A232)=0,\"\",INDEX('Smelter Look-up'!$A:$A,MATCH($A232,'Smelter Look-up'!$E:$E,0)))","v":""},{"$f":"IF(LEN(A232)=0,\"\",INDEX('Smelter Look-up'!$C:$C,MATCH($A232,'Smelter Look-up'!$E:$E,0)))","v":""},null,{"$f":"IF(ISERROR($V232),\"\",OFFSET('Smelter Look-up'!$D$4,$V232-4,0)&\"\")","v":""},{"$f":"IF(ISERROR($V232),\"\",OFFSET('Smelter Look-up'!$E$4,$V232-4,0))","v":""},{"$f":"IF(C232=$X$4,\"Enter smelter details\",IF(ISERROR($V232),\"\",OFFSET('Smelter Look-up'!$F$4,$V232-4,0)))","v":""},{"$f":"IF(ISERROR($V232),\"\",OFFSET('Smelter Look-up'!$G$4,$V232-4,0))","v":""},{"$f":"IF(ISERROR($V232),\"\",OFFSET('Smelter Look-up'!$H$4,$V232-4,0))","v":""},{"$f":"IF(ISERROR($V232),\"\",OFFSET('Smelter Look-up'!$I$4,$V232-4,0))","v":""},{"$nulls":7},{"$f":"IF(ISERROR($V232),\"\",OFFSET('Smelter Look-up'!$C$4,$V232-4,0)&\"\")","v":""},"",{"$f":"IF(B232=\"\",\"\",IF(ISERROR(MATCH($J232,SorP!$B$1:$B$5661,0)),\"\",INDIRECT(\"'SorP'!$A$\"&MATCH($J232,SorP!$B$1:$B$5661,0))))","v":""},null,{"$f":"IF(C232=\"\",NA(),MATCH($B232&$C232,'Smelter Look-up'!$J:$J,0))","v":{"$error":"#N/A"}},null,0,null,null,null,""]
[null,{"$f":"IF(LEN(A233)=0,\"\",INDEX('Smelter Look-up'!$A:$A,MATCH($A233,'Smelter Look-up'!$E:$E,0)))","v":""},{"$f":"IF(LEN(A233)=0,\"\",INDEX('Smelter Look-up'!$C:$C,MATCH($A233,'Smelter Look-up'!$E:$E,0)))","v":""},null,{"$f":"IF(ISERROR($V233),\"\",OFFSET('Smelter Look-up'!$D$4,$V233-4,0)&\"\")","v":""},{"$f":"IF(ISERROR($V233),\"\",OFFSET('Smelter Look-up'!$E$4,$V233-4,0))","v":""},{"$f":"IF(C233=$X$4,\"Enter smelter details\",IF(ISERROR($V233),\"\",OFFSET('Smelter Look-up'!$F$4,$V233-4,0)))","v":""},{"$f":"IF(ISERROR($V233),\"\",OFFSET('Smelter Look-up'!$G$4,$V233-4,0))","v":""},{"$f":"IF(ISERROR($V233),\"\",OFFSET('Smelter Look-up'!$H$4,$V233-4,0))","v":""},{"$f":"IF(ISERROR($V233),\"\",OFFSET('Smelter Look-up'!$I$4,$V233-4,0))","v":""},{"$nulls":7},{"$f":"IF(ISERROR($V233),\"\",OFFSET('Smelter Look-up'!$C$4,$V233-4,0)&\"\")","v":""},"",{"$f":"IF(B233=\"\",\"\",IF(ISERROR(MATCH($J233,SorP!$B$1:$B$5661,0)),\"\",INDIRECT(\"'SorP'!$A$\"&MATCH($J233,SorP!$B$1:$B$5661,0))))","v":""},null,{"$f":"IF(C233=\"\",NA(),MATCH($B233&$C233,'Smelter Look-up'!$J:$J,0))","v":{"$error":"#N/A"}},null,0,null,null,null,""]
[null,{"$f":"IF(LEN(A234)=0,\"\",INDEX('Smelter Look-up'!$A:$A,MATCH($A234,'Smelter Look-up'!$E:$E,0)))","v":""},{"$f":"IF(LEN(A234)=0,\"\",INDEX('Smelter Look-up'!$C:$C,MATCH($A234,'Smelter Look-up'!$E:$E,0)))","v":""},null,{"$f":"IF(ISERROR($V234),\"\",OFFSET('Smelter Look-up'!$D$4,$V234-4,0)&\"\")","v":""},{"$f":"IF(ISERROR($V234),\"\",OFFSET('Smelter Look-up'!$E$4,$V234-4,0))","v":""},{"$f":"IF(C234=$X$4,\"Enter smelter details\",IF(ISERROR($V234),\"\",OFFSET('Smelter Look-up'!$F$4,$V234-4,0)))","v":""},{"$f":"IF(ISERROR($V234),\"\",OFFSET('Smelter Look-up'!$G$4,$V234-4,0))","v":""},{"$f":"IF(ISERROR($V234),\"\",OFFSET('Smelter Look-up'!$H$4,$V234-4,0))","v":""},{"$f":"IF(ISERROR($V234),\"\",OFFSET('Smelter Look-up'!$I$4,$V234-4,0))","v":""},{"$nulls":7},{"$f":"IF(ISERROR($V234),\"\",OFFSET('Smelter Look-up'!$C$4,$V234-4,0)&\"\")","v":""},"",{"$f":"IF(B234=\"\",\"\",IF(ISERROR(MATCH($J234,SorP!$B$1:$B$5661,0)),\"\",INDIRECT(\"'SorP'!$A$\"&MATCH($J234,SorP!$B$1:$B$5661,0))))","v":""},null,{"$f":"IF(C234=\"\",NA(),MATCH($B234&$C234,'Smelter Look-up'!$J:$J,0))","v":{"$error":"#N/A"}},null,0,null,null,null,""]
[null,{"$f":"IF(LEN(A235)=0,\"\",INDEX('Smelter Look-up'!$A:$A,MATCH($A235,'Smelter Look-up'!$E:$E,0)))","v":""},{"$f":"IF(LEN(A235)=0,\"\",INDEX('Smelter Look-up'!$C:$C,MATCH($A235,'Smelter Look-up'!$E:$E,0)))","v":""},null,{"$f":"IF(ISERROR($V235),\"\",OFFSET('Smelter Look-up'!$D$4,$V235-4,0)&\"\")","v":""},{"$f":"IF(ISERROR($V235),\"\",OFFSET('Smelter Look-up'!$E$4,$V235-4,0))","v":""},{"$f":"IF(C235=$X$4,\"Enter smelter details\",IF(ISERROR($V235),\"\",OFFSET('Smelter Look-up'!$F$4,$V235-4,0)))","v":""},{"$f":"IF(ISERROR($V235),\"\",OFFSET('Smelter Look-up'!$G$4,$V235-4,0))","v":""},{"$f":"IF(ISERROR($V235),\"\",OFFSET('Smelter Look-up'!$H$4,$V235-4,0))","v":""},{"$f":"IF(ISERROR($V235),\"\",OFFSET('Smelter Look-up'!$I$4,$V235-4,0))","v":""},{"$nulls":7},{"$f":"IF(ISERROR($V235),\"\",OFFSET('Smelter Look-up'!$C$4,$V235-4,0)&\"\")","v":""},"",{"$f":"IF(B235=\"\",\"\",IF(ISERROR(MATCH($J235,SorP!$B$1:$B$5661,0)),\"\",INDIRECT(\"'SorP'!$A$\"&MATCH($J235,SorP!$B$1:$B$5661,0))))","v":""},null,{"$f":"IF(C235=\"\",NA(),MATCH($B235&$C235,'Smelter Look-up'!$J:$J,0))","v":{"$error":"#N/A"}},null,0,null,null,null,""]
[null,{"$f":"IF(LEN(A236)=0,\"\",INDEX('Smelter Look-up'!$A:$A,MATCH($A236,'Smelter Look-up'!$E:$E,0)))","v":""},{"$f":"IF(LEN(A236)=0,\"\",INDEX('Smelter Look-up'!$C:$C,MATCH($A236,'Smelter Look-up'!$E:$E,0)))","v":""},null,{"$f":"IF(ISERROR($V236),\"\",OFFSET('Smelter Look-up'!$D$4,$V236-4,0)&\"\")","v":""},{"$f":"IF(ISERROR($V236),\"\",OFFSET('Smelter Look-up'!$E$4,$V236-4,0))","v":""},{"$f":"IF(C236=$X$4,\"Enter smelter details\",IF(ISERROR($V236),\"\",OFFSET('Smelter Look-up'!$F$4,$V236-4,0)))","v":""},{"$f":"IF(ISERROR($V236),\"\",OFFSET('Smelter Look-up'!$G$4,$V236-4,0))","v":""},{"$f":"IF(ISERROR($V236),\"\",OFFSET('Smelter Look-up'!$H$4,$V236-4,0))","v":""},{"$f":"IF(ISERROR($V236),\"\",OFFSET('Smelter Look-up'!$I$4,$V236-4,0))","v":""},{"$nulls":7},{"$f":"IF(ISERROR($V236),\"\",OFFSET('Smelter Look-up'!$C$4,$V236-4,0)&\"\")","v":""},"",{"$f":"IF(B236=\"\",\"\",IF(ISERROR(MATCH($J236,SorP!$B$1:$B$5661,0)),\"\",INDIRECT(\"'SorP'!$A$\"&MATCH($J236,SorP!$B$1:$B$5661,0))))","v":""},null,{"$f":"IF(C236=\"\",NA(),MATCH($B236&$C236,'Smelter Look-up'!$J:$J,0))","v":{"$error":"#N/A"}},null,0,null,null,null,""]
[null,{"$f":"IF(LEN(A237)=0,\"\",INDEX('Smelter Look-up'!$A:$A,MATCH($A237,'Smelter Look-up'!$E:$E,0)))","v":""},{"$f":"IF(LEN(A237)=0,\"\",INDEX('Smelter Look-up'!$C:$C,MATCH($A237,'Smelter Look-up'!$E:$E,0)))","v":""},null,{"$f":"IF(ISERROR($V237),\"\",OFFSET('Smelter Look-up'!$D$4,$V237-4,0)&\"\")","v":""},{"$f":"IF(ISERROR($V237),\"\",OFFSET('Smelter Look-up'!$E$4,$V237-4,0))","v":""},{"$f":"IF(C237=$X$4,\"Enter smelter details\",IF(ISERROR($V237),\"\",OFFSET('Smelter Look-up'!$F$4,$V237-4,0)))","v":""},{"$f":"IF(ISERROR($V237),\"\",OFFSET('Smelter Look-up'!$G$4,$V237-4,0))","v":""},{"$f":"IF(ISERROR($V237),\"\",OFFSET('Smelter Look-up'!$H$4,$V237-4,0))","v":""},{"$f":"IF(ISERROR($V237),\"\",OFFSET('Smelter Look-up'!$I$4,$V237-4,0))","v":""},{"$nulls":7},{"$f":"IF(ISERROR($V237),\"\",OFFSET('Smelter Look-up'!$C$4,$V237-4,0)&\"\")","v":""},"",{"$f":"IF(B237=\"\",\"\",IF(ISERROR(MATCH($J237,SorP!$B$1:$B$5661,0)),\"\",INDIRECT(\"'SorP'!$A$\"&MATCH($J237,SorP!$B$1:$B$5661,0))))","v":""},null,{"$f":"IF(C237=\"\",NA(),MATCH($B237&$C237,'Smelter Look-up'!$J:$J,0))","v":{"$error":"#N/A"}},null,0,null,null,null,""]
[null,{"$f":"IF(LEN(A238)=0,\"\",INDEX('Smelter Look-up'!$A:$A,MATCH($A238,'Smelter Look-up'!$E:$E,0)))","v":""},{"$f":"IF(LEN(A238)=0,\"\",INDEX('Smelter Look-up'!$C:$C,MATCH($A238,'Smelter Look-up'!$E:$E,0)))","v":""},null,{"$f":"IF(ISERROR($V238),\"\",OFFSET('Smelter Look-up'!$D$4,$V238-4,0)&\"\")","v":""},{"$f":"IF(ISERROR($V238),\"\",OFFSET('Smelter Look-up'!$E$4,$V238-4,0))","v":""},{"$f":"IF(C238=$X$4,\"Enter smelter details\",IF(ISERROR($V238),\"\",OFFSET('Smelter Look-up'!$F$4,$V238-4,0)))","v":""},{"$f":"IF(ISERROR($V238),\"\",OFFSET('Smelter Look-up'!$G$4,$V238-4,0))","v":""},{"$f":"IF(ISERROR($V238),\"\",OFFSET('Smelter Look-up'!$H$4,$V238-4,0))","v":""},{"$f":"IF(ISERROR($V238),\"\",OFFSET('Smelter Look-up'!$I$4,$V238-4,0))","v":""},{"$nulls":7},{"$f":"IF(ISERROR($V238),\"\",OFFSET('Smelter Look-up'!$C$4,$V238-4,0)&\"\")","v":""},"",{"$f":"IF(B238=\"\",\"\",IF(ISERROR(MATCH($J238,SorP!$B$1:$B$5661,0)),\"\",INDIRECT(\"'SorP'!$A$\"&MATCH($J238,SorP!$B$1:$B$5661,0))))","v":""},null,{"$f":"IF(C238=\"\",NA(),MATCH($B238&$C238,'Smelter Look-up'!$J:$J,0))","v":{"$error":"#N/A"}},null,0,null,null,null,""]
[null,{"$f":"IF(LEN(A239)=0,\"\",INDEX('Smelter Look-up'!$A:$A,MATCH($A239,'Smelter Look-up'!$E:$E,0)))","v":""},{"$f":"IF(LEN(A239)=0,\"\",INDEX('Smelter Look-up'!$C:$C,MATCH($A239,'Smelter Look-up'!$E:$E,0)))","v":""},null,{"$f":"IF(ISERROR($V239),\"\",OFFSET('Smelter Look-up'!$D$4,$V239-4,0)&\"\")","v":""},{"$f":"IF(ISERROR($V239),\"\",OFFSET('Smelter Look-up'!$E$4,$V239-4,0))","v":""},{"$f":"IF(C239=$X$4,\"Enter smelter details\",IF(ISERROR($V239),\"\",OFFSET('Smelter Look-up'!$F$4,$V239-4,0)))","v":""},{"$f":"IF(ISERROR($V239),\"\",OFFSET('Smelter Look-up'!$G$4,$V239-4,0))","v":""},{"$f":"IF(ISERROR($V239),\"\",OFFSET('Smelter Look-up'!$H$4,$V239-4,0))","v":""},{"$f":"IF(ISERROR($V239),\"\",OFFSET('Smelter Look-up'!$I$4,$V239-4,0))","v":""},{"$nulls":7},{"$f":"IF(ISERROR($V239),\"\",OFFSET('Smelter Look-up'!$C$4,$V239-4,0)&\"\")","v":""},"",{"$f":"IF(B239=\"\",\"\",IF(ISERROR(MATCH($J239,SorP!$B$1:$B$5661,0)),\"\",INDIRECT(\"'SorP'!$A$\"&MATCH($J239,SorP!$B$1:$B$5661,0))))","v":""},null,{"$f":"IF(C239=\"\",NA(),MATCH($B239&$C239,'Smelter Look-up'!$J:$J,0))","v":{"$error":"#N/A"}},null,0,null,null,null,""]
[null,{"$f":"IF(LEN(A240)=0,\"\",INDEX('Smelter Look-up'!$A:$A,MATCH($A240,'Smelter Look-up'!$E:$E,0)))","v":""},{"$f":"IF(LEN(A240)=0,\"\",INDEX('Smelter Look-up'!$C:$C,MATCH($A240,'Smelter Look-up'!$E:$E,0)))","v":""},null,{"$f":"IF(ISERROR($V240),\"\",OFFSET('Smelter Look-up'!$D$4,$V240-4,0)&\"\")","v":""},{"$f":"IF(ISERROR($V240),\"\",OFFSET('Smelter Look-up'!$E$4,$V240-4,0))","v":""},{"$f":"IF(C240=$X$4,\"Enter smelter details\",IF(ISERROR($V240),\"\",OFFSET('Smelter Look-up'!$F$4,$V240-4,0)))","v":""},{"$f":"IF(ISERROR($V240),\"\",OFFSET('Smelter Look-up'!$G$4,$V240-4,0))","v":""},{"$f":"IF(ISERROR($V240),\"\",OFFSET('Smelter Look-up'!$H$4,$V240-4,0))","v":""},{"$f":"IF(ISERROR($V240),\"\",OFFSET('Smelter Look-up'!$I$4,$V240-4,0))","v":""},{"$nulls":7},{"$f":"IF(ISERROR($V240),\"\",OFFSET('Smelter Look-up'!$C$4,$V240-4,0)&\"\")","v":""},"",{"$f":"IF(B240=\"\",\"\",IF(ISERROR(MATCH($J240,SorP!$B$1:$B$5661,0)),\"\",INDIRECT(\"'SorP'!$A$\"&MATCH($J240,SorP!$B$1:$B$5661,0))))","v":""},null,{"$f":"IF(C240=\"\",NA(),MATCH($B240&$C240,'Smelter Look-up'!$J:$J,0))","v":{"$error":"#N/A"}},null,0,null,null,null,""]
[null,{"$f":"IF(LEN(A241)=0,\"\",INDEX('Smelter Look-up'!$A:$A,MATCH($A241,'Smelter Look-up'!$E:$E,0)))","v":""},{"$f":"IF(LEN(A241)=0,\"\",INDEX('Smelter Look-up'!$C:$C,MATCH($A241,'Smelter Look-up'!$E:$E,0)))","v":""},null,{"$f":"IF(ISERROR($V241),\"\",OFFSET('Smelter Look-up'!$D$4,$V241-4,0)&\"\")","v":""},{"$f":"IF(ISERROR($V241),\"\",OFFSET('Smelter Look-up'!$E$4,$V241-4,0))","v":""},{"$f":"IF(C241=$X$4,\"Enter smelter details\",IF(ISERROR($V241),\"\",OFFSET('Smelter Look-up'!$F$4,$V241-4,0)))","v":""},{"$f":"IF(ISERROR($V241),\"\",OFFSET('Smelter Look-up'!$G$4,$V241-4,0))","v":""},{"$f":"IF(ISERROR($V241),\"\",OFFSET('Smelter Look-up'!$H$4,$V241-4,0))","v":""},{"$f":"IF(ISERROR($V241),\"\",OFFSET('Smelter Look-up'!$I$4,$V241-4,0))","v":""},{"$nulls":7},{"$f":"IF(ISERROR($V241),\"\",OFFSET('Smelter Look-up'!$C$4,$V241-4,0)&\"\")","v":""},"",{"$f":"IF(B241=\"\",\"\",IF(ISERROR(MATCH($J241,SorP!$B$1:$B$5661,0)),\"\",INDIRECT(\"'SorP'!$A$\"&MATCH($J241,SorP!$B$1:$B$5661,0))))","v":""},null,{"$f":"IF(C241=\"\",NA(),MATCH($B241&$C241,'Smelter Look-up'!$J:$J,0))","v":{"$error":"#N/A"}},null,0,null,null,null,""]
[null,{"$f":"IF(LEN(A242)=0,\"\",INDEX('Smelter Look-up'!$A:$A,MATCH($A242,'Smelter Look-up'!$E:$E,0)))","v":""},{"$f":"IF(LEN(A242)=0,\"\",INDEX('Smelter Look-up'!$C:$C,MATCH($A242,'Smelter Look-up'!$E:$E,0)))","v":""},null,{"$f":"IF(ISERROR($V242),\"\",OFFSET('Smelter Look-up'!$D$4,$V242-4,0)&\"\")","v":""},{"$f":"IF(ISERROR($V242),\"\",OFFSET('Smelter Look-up'!$E$4,$V242-4,0))","v":""},{"$f":"IF(C242=$X$4,\"Enter smelter details\",IF(ISERROR($V242),\"\",OFFSET('Smelter Look-up'!$F$4,$V242-4,0)))","v":""},{"$f":"IF(ISERROR($V242),\"\",OFFSET('Smelter Look-up'!$G$4,$V242-4,0))","v":""},{"$f":"IF(ISERROR($V242),\"\",OFFSET('Smelter Look-up'!$H$4,$V242-4,0))","v":""},{"$f":"IF(ISERROR($V242),\"\",OFFSET('Smelter Look-up'!$I$4,$V242-4,0))","v":""},{"$nulls":7},{"$f":"IF(ISERROR($V242),\"\",OFFSET('Smelter Look-up'!$C$4,$V242-4,0)&\"\")","v":""},"",{"$f":"IF(B242=\"\",\"\",IF(ISERROR(MATCH($J242,SorP!$B$1:$B$5661,0)),\"\",INDIRECT(\"'SorP'!$A$\"&MATCH($J242,SorP!$B$1:$B$5661,0))))","v":""},null,{"$f":"IF(C242=\"\",NA(),MATCH($B242&$C242,'Smelter Look-up'!$J:$J,0))","v":{"$error":"#N/A"}},null,0,null,null,null,""]
[null,{"$f":"IF(LEN(A243)=0,\"\",INDEX('Smelter Look-up'!$A:$A,MATCH($A243,'Smelter Look-up'!$E:$E,0)))","v":""},{"$f":"IF(LEN(A243)=0,\"\",INDEX('Smelter Look-up'!$C:$C,MATCH($A243,'Smelter Look-up'!$E:$E,0)))","v":""},null,{"$f":"IF(ISERROR($V243),\"\",OFFSET('Smelter Look-up'!$D$4,$V243-4,0)&\"\")","v":""},{"$f":"IF(ISERROR($V243),\"\",OFFSET('Smelter Look-up'!$E$4,$V243-4,0))","v":""},{"$f":"IF(C243=$X$4,\"Enter smelter details\",IF(ISERROR($V243),\"\",OFFSET('Smelter Look-up'!$F$4,$V243-4,0)))","v":""},{"$f":"IF(ISERROR($V243),\"\",OFFSET('Smelter Look-up'!$G$4,$V243-4,0))","v":""},{"$f":"IF(ISERROR($V243),\"\",OFFSET('Smelter Look-up'!$H$4,$V243-4,0))","v":""},{"$f":"IF(ISERROR($V243),\"\",OFFSET('Smelter Look-up'!$I$4,$V243-4,0))","v":""},{"$nulls":7},{"$f":"IF(ISERROR($V243),\"\",OFFSET('Smelter Look-up'!$C$4,$V243-4,0)&\"\")","v":""},"",{"$f":"IF(B243=\"\",\"\",IF(ISERROR(MATCH($J243,SorP!$B$1:$B$5661,0)),\"\",INDIRECT(\"'SorP'!$A$\"&MATCH($J243,SorP!$B$1:$B$5661,0))))","v":""},null,{"$f":"IF(C243=\"\",NA(),MATCH($B243&$C243,'Smelter Look-up'!$J:$J,0))","v":{"$error":"#N/A"}},null,0,null,null,null,""]
[null,{"$f":"IF(LEN(A244)=0,\"\",INDEX('Smelter Look-up'!$A:$A,MATCH($A244,'Smelter Look-up'!$E:$E,0)))","v":""},{"$f":"IF(LEN(A244)=0,\"\",INDEX('Smelter Look-up'!$C:$C,MATCH($A244,'Smelter Look-up'!$E:$E,0)))","v":""},null,{"$f":"IF(ISERROR($V244),\"\",OFFSET('Smelter Look-up'!$D$4,$V244-4,0)&\"\")","v":""},{"$f":"IF(ISERROR($V244),\"\",OFFSET('Smelter Look-up'!$E$4,$V244-4,0))","v":""},{"$f":"IF(C244=$X$4,\"Enter smelter details\",IF(ISERROR($V244),\"\",OFFSET('Smelter Look-up'!$F$4,$V244-4,0)))","v":""},{"$f":"IF(ISERROR($V244),\"\",OFFSET('Smelter Look-up'!$G$4,$V244-4,0))","v":""},{"$f":"IF(ISERROR($V244),\"\",OFFSET('Smelter Look-up'!$H$4,$V244-4,0))","v":""},{"$f":"IF(ISERROR($V244),\"\",OFFSET('Smelter Look-up'!$I$4,$V244-4,0))","v":""},{"$nulls":7},{"$f":"IF(ISERROR($V244),\"\",OFFSET('Smelter Look-up'!$C$4,$V244-4,0)&\"\")","v":""},"",{"$f":"IF(B244=\"\",\"\",IF(ISERROR(MATCH($J244,SorP!$B$1:$B$5661,0)),\"\",INDIRECT(\"'SorP'!$A$\"&MATCH($J244,SorP!$B$1:$B$5661,0))))","v":""},null,{"$f":"IF(C244=\"\",NA(),MATCH($B244&$C244,'Smelter Look-up'!$J:$J,0))","v":{"$error":"#N/A"}},null,0,null,null,null,""]
[null,{"$f":"IF(LEN(A245)=0,\"\",INDEX('Smelter Look-up'!$A:$A,MATCH($A245,'Smelter Look-up'!$E:$E,0)))","v":""},{"$f":"IF(LEN(A245)=0,\"\",INDEX('Smelter Look-up'!$C:$C,MATCH($A245,'Smelter Look-up'!$E:$E,0)))","v":""},null,{"$f":"IF(ISERROR($V245),\"\",OFFSET('Smelter Look-up'!$D$4,$V245-4,0)&\"\")","v":""},{"$f":"IF(ISERROR($V245),\"\",OFFSET('Smelter Look-up'!$E$4,$V245-4,0))","v":""},{"$f":"IF(C245=$X$4,\"Enter smelter details\",IF(ISERROR($V245),\"\",OFFSET('Smelter Look-up'!$F$4,$V245-4,0)))","v":""},{"$f":"IF(ISERROR($V245),\"\",OFFSET('Smelter Look-up'!$G$4,$V245-4,0))","v":""},{"$f":"IF(ISERROR($V245),\"\",OFFSET('Smelter Look-up'!$H$4,$V245-4,0))","v":""},{"$f":"IF(ISERROR($V245),\"\",OFFSET('Smelter Look-up'!$I$4,$V245-4,0))","v":""},{"$nulls":7},{"$f":"IF(ISERROR($V245),\"\",OFFSET('Smelter Look-up'!$C$4,$V245-4,0)&\"\")","v":""},"",{"$f":"IF(B245=\"\",\"\",IF(ISERROR(MATCH($J245,SorP!$B$1:$B$5661,0)),\"\",INDIRECT(\"'SorP'!$A$\"&MATCH($J245,SorP!$B$1:$B$5661,0))))","v":""},null,{"$f":"IF(C245=\"\",NA(),MATCH($B245&$C245,'Smelter Look-up'!$J:$J,0))","v":{"$error":"#N/A"}},null,0,null,null,null,""]
[null,{"$f":"IF(LEN(A246)=0,\"\",INDEX('Smelter Look-up'!$A:$A,MATCH($A246,'Smelter Look-up'!$E:$E,0)))","v":""},{"$f":"IF(LEN(A246)=0,\"\",INDEX('Smelter Look-up'!$C:$C,MATCH($A246,'Smelter Look-up'!$E:$E,0)))","v":""},null,{"$f":"IF(ISERROR($V246),\"\",OFFSET('Smelter Look-up'!$D$4,$V246-4,0)&\"\")","v":""},{"$f":"IF(ISERROR($V246),\"\",OFFSET('Smelter Look-up'!$E$4,$V246-4,0))","v":""},{"$f":"IF(C246=$X$4,\"Enter smelter details\",IF(ISERROR($V246),\"\",OFFSET('Smelter Look-up'!$F$4,$V246-4,0)))","v":""},{"$f":"IF(ISERROR($V246),\"\",OFFSET('Smelter Look-up'!$G$4,$V246-4,0))","v":""},{"$f":"IF(ISERROR($V246),\"\",OFFSET('Smelter Look-up'!$H$4,$V246-4,0))","v":""},{"$f":"IF(ISERROR($V246),\"\",OFFSET('Smelter Look-up'!$I$4,$V246-4,0))","v":""},{"$nulls":7},{"$f":"IF(ISERROR($V246),\"\",OFFSET('Smelter Look-up'!$C$4,$V246-4,0)&\"\")","v":""},"",{"$f":"IF(B246=\"\",\"\",IF(ISERROR(MATCH($J246,SorP!$B$1:$B$5661,0)),\"\",INDIRECT(\"'SorP'!$A$\"&MATCH($J246,SorP!$B$1:$B$5661,0))))","v":""},null,{"$f":"IF(C246=\"\",NA(),MATCH($B246&$C246,'Smelter Look-up'!$J:$J,0))","v":{"$error":"#N/A"}},null,0,null,null,null,""]
[null,{"$f":"IF(LEN(A247)=0,\"\",INDEX('Smelter Look-up'!$A:$A,MATCH($A247,'Smelter Look-up'!$E:$E,0)))","v":""},{"$f":"IF(LEN(A247)=0,\"\",INDEX('Smelter Look-up'!$C:$C,MATCH($A247,'Smelter Look-up'!$E:$E,0)))","v":""},null,{"$f":"IF(ISERROR($V247),\"\",OFFSET('Smelter Look-up'!$D$4,$V247-4,0)&\"\")","v":""},{"$f":"IF(ISERROR($V247),\"\",OFFSET('Smelter Look-up'!$E$4,$V247-4,0))","v":""},{"$f":"IF(C247=$X$4,\"Enter smelter details\",IF(ISERROR($V247),\"\",OFFSET('Smelter Look-up'!$F$4,$V247-4,0)))","v":""},{"$f":"IF(ISERROR($V247),\"\",OFFSET('Smelter Look-up'!$G$4,$V247-4,0))","v":""},{"$f":"IF(ISERROR($V247),\"\",OFFSET('Smelter Look-up'!$H$4,$V247-4,0))","v":""},{"$f":"IF(ISERROR($V247),\"\",OFFSET('Smelter Look-up'!$I$4,$V247-4,0))","v":""},{"$nulls":7},{"$f":"IF(ISERROR($V247),\"\",OFFSET('Smelter Look-up'!$C$4,$V247-4,0)&\"\")","v":""},"",{"$f":"IF(B247=\"\",\"\",IF(ISERROR(MATCH($J247,SorP!$B$1:$B$5661,0)),\"\",INDIRECT(\"'SorP'!$A$\"&MATCH($J247,SorP!$B$1:$B$5661,0))))","v":""},null,{"$f":"IF(C247=\"\",NA(),MATCH($B247&$C247,'Smelter Look-up'!$J:$J,0))","v":{"$error":"#N/A"}},null,0,null,null,null,""]
[null,{"$f":"IF(LEN(A248)=0,\"\",INDEX('Smelter Look-up'!$A:$A,MATCH($A248,'Smelter Look-up'!$E:$E,0)))","v":""},{"$f":"IF(LEN(A248)=0,\"\",INDEX('Smelter Look-up'!$C:$C,MATCH($A248,'Smelter Look-up'!$E:$E,0)))","v":""},null,{"$f":"IF(ISERROR($V248),\"\",OFFSET('Smelter Look-up'!$D$4,$V248-4,0)&\"\")","v":""},{"$f":"IF(ISERROR($V248),\"\",OFFSET('Smelter Look-up'!$E$4,$V248-4,0))","v":""},{"$f":"IF(C248=$X$4,\"Enter smelter details\",IF(ISERROR($V248),\"\",OFFSET('Smelter Look-up'!$F$4,$V248-4,0)))","v":""},{"$f":"IF(ISERROR($V248),\"\",OFFSET('Smelter Look-up'!$G$4,$V248-4,0))","v":""},{"$f":"IF(ISERROR($V248),\"\",OFFSET('Smelter Look-up'!$H$4,$V248-4,0))","v":""},{"$f":"IF(ISERROR($V248),\"\",OFFSET('Smelter Look-up'!$I$4,$V248-4,0))","v":""},{"$nulls":7},{"$f":"IF(ISERROR($V248),\"\",OFFSET('Smelter Look-up'!$C$4,$V248-4,0)&\"\")","v":""},"",{"$f":"IF(B248=\"\",\"\",IF(ISERROR(MATCH($J248,SorP!$B$1:$B$5661,0)),\"\",INDIRECT(\"'SorP'!$A$\"&MATCH($J248,SorP!$B$1:$B$5661,0))))","v":""},null,{"$f":"IF(C248=\"\",NA(),MATCH($B248&$C248,'Smelter Look-up'!$J:$J,0))","v":{"$error":"#N/A"}},null,0,null,null,null,""]
[null,{"$f":"IF(LEN(A249)=0,\"\",INDEX('Smelter Look-up'!$A:$A,MATCH($A249,'Smelter Look-up'!$E:$E,0)))","v":""},{"$f":"IF(LEN(A249)=0,\"\",INDEX('Smelter Look-up'!$C:$C,MATCH($A249,'Smelter Look-up'!$E:$E,0)))","v":""},null,{"$f":"IF(ISERROR($V249),\"\",OFFSET('Smelter Look-up'!$D$4,$V249-4,0)&\"\")","v":""},{"$f":"IF(ISERROR($V249),\"\",OFFSET('Smelter Look-up'!$E$4,$V249-4,0))","v":""},{"$f":"IF(C249=$X$4,\"Enter smelter details\",IF(ISERROR($V249),\"\",OFFSET('Smelter Look-up'!$F$4,$V249-4,0)))","v":""},{"$f":"IF(ISERROR($V249),\"\",OFFSET('Smelter Look-up'!$G$4,$V249-4,0))","v":""},{"$f":"IF(ISERROR($V249),\"\",OFFSET('Smelter Look-up'!$H$4,$V249-4,0))","v":""},{"$f":"IF(ISERROR($V249),\"\",OFFSET('Smelter Look-up'!$I$4,$V249-4,0))","v":""},{"$nulls":7},{"$f":"IF(ISERROR($V249),\"\",OFFSET('Smelter Look-up'!$C$4,$V249-4,0)&\"\")","v":""},"",{"$f":"IF(B249=\"\",\"\",IF(ISERROR(MATCH($J249,SorP!$B$1:$B$5661,0)),\"\",INDIRECT(\"'SorP'!$A$\"&MATCH($J249,SorP!$B$1:$B$5661,0))))","v":""},null,{"$f":"IF(C249=\"\",NA(),MATCH($B249&$C249,'Smelter Look-up'!$J:$J,0))","v":{"$error":"#N/A"}},null,0,null,null,null,""]
[null,{"$f":"IF(LEN(A250)=0,\"\",INDEX('Smelter Look-up'!$A:$A,MATCH($A250,'Smelter Look-up'!$E:$E,0)))","v":""},{"$f":"IF(LEN(A250)=0,\"\",INDEX('Smelter Look-up'!$C:$C,MATCH($A250,'Smelter Look-up'!$E:$E,0)))","v":""},null,{"$f":"IF(ISERROR($V250),\"\",OFFSET('Smelter Look-up'!$D$4,$V250-4,0)&\"\")","v":""},{"$f":"IF(ISERROR($V250),\"\",OFFSET('Smelter Look-up'!$E$4,$V250-4,0))","v":""},{"$f":"IF(C250=$X$4,\"Enter smelter details\",IF(ISERROR($V250),\"\",OFFSET('Smelter Look-up'!$F$4,$V250-4,0)))","v":""},{"$f":"IF(ISERROR($V250),\"\",OFFSET('Smelter Look-up'!$G$4,$V250-4,0))","v":""},{"$f":"IF(ISERROR($V250),\"\",OFFSET('Smelter Look-up'!$H$4,$V250-4,0))","v":""},{"$f":"IF(ISERROR($V250),\"\",OFFSET('Smelter Look-up'!$I$4,$V250-4,0))","v":""},{"$nulls":7},{"$f":"IF(ISERROR($V250),\"\",OFFSET('Smelter Look-up'!$C$4,$V250-4,0)&\"\")","v":""},"",{"$f":"IF(B250=\"\",\"\",IF(ISERROR(MATCH($J250,SorP!$B$1:$B$5661,0)),\"\",INDIRECT(\"'SorP'!$A$\"&MATCH($J250,SorP!$B$1:$B$5661,0))))","v":""},null,{"$f":"IF(C250=\"\",NA(),MATCH($B250&$C250,'Smelter Look-up'!$J:$J,0))","v":{"$error":"#N/A"}},null,0,null,null,null,""]
[null,{"$f":"IF(LEN(A251)=0,\"\",INDEX('Smelter Look-up'!$A:$A,MATCH($A251,'Smelter Look-up'!$E:$E,0)))","v":""},{"$f":"IF(LEN(A251)=0,\"\",INDEX('Smelter Look-up'!$C:$C,MATCH($A251,'Smelter Look-up'!$E:$E,0)))","v":""},null,{"$f":"IF(ISERROR($V251),\"\",OFFSET('Smelter Look-up'!$D$4,$V251-4,0)&\"\")","v":""},{"$f":"IF(ISERROR($V251),\"\",OFFSET('Smelter Look-up'!$E$4,$V251-4,0))","v":""},{"$f":"IF(C251=$X$4,\"Enter smelter details\",IF(ISERROR($V251),\"\",OFFSET('Smelter Look-up'!$F$4,$V251-4,0)))","v":""},{"$f":"IF(ISERROR($V251),\"\",OFFSET('Smelter Look-up'!$G$4,$V251-4,0))","v":""},{"$f":"IF(ISERROR($V251),\"\",OFFSET('Smelter Look-up'!$H$4,$V251-4,0))","v":""},{"$f":"IF(ISERROR($V251),\"\",OFFSET('Smelter Look-up'!$I$4,$V251-4,0))","v":""},{"$nulls":7},{"$f":"IF(ISERROR($V251),\"\",OFFSET('Smelter Look-up'!$C$4,$V251-4,0)&\"\")","v":""},"",{"$f":"IF(B251=\"\",\"\",IF(ISERROR(MATCH($J251,SorP!$B$1:$B$5661,0)),\"\",INDIRECT(\"'SorP'!$A$\"&MATCH($J251,SorP!$B$1:$B$5661,0))))","v":""},null,{"$f":"IF(C251=\"\",NA(),MATCH($B251&$C251,'Smelter Look-up'!$J:$J,0))","v":{"$error":"#N/A"}},null,0,null,null,null,""]
[null,{"$f":"IF(LEN(A252)=0,\"\",INDEX('Smelter Look-up'!$A:$A,MATCH($A252,'Smelter Look-up'!$E:$E,0)))","v":""},{"$f":"IF(LEN(A252)=0,\"\",INDEX('Smelter Look-up'!$C:$C,MATCH($A252,'Smelter Look-up'!$E:$E,0)))","v":""},null,{"$f":"IF(ISERROR($V252),\"\",OFFSET('Smelter Look-up'!$D$4,$V252-4,0)&\"\")","v":""},{"$f":"IF(ISERROR($V252),\"\",OFFSET('Smelter Look-up'!$E$4,$V252-4,0))","v":""},{"$f":"IF(C252=$X$4,\"Enter smelter details\",IF(ISERROR($V252),\"\",OFFSET('Smelter Look-up'!$F$4,$V252-4,0)))","v":""},{"$f":"IF(ISERROR($V252),\"\",OFFSET('Smelter Look-up'!$G$4,$V252-4,0))","v":""},{"$f":"IF(ISERROR($V252),\"\",OFFSET('Smelter Look-up'!$H$4,$V252-4,0))","v":""},{"$f":"IF(ISERROR($V252),\"\",OFFSET('Smelter Look-up'!$I$4,$V252-4,0))","v":""},{"$nulls":7},{"$f":"IF(ISERROR($V252),\"\",OFFSET('Smelter Look-up'!$C$4,$V252-4,0)&\"\")","v":""},"",{"$f":"IF(B252=\"\",\"\",IF(ISERROR(MATCH($J252,SorP!$B$1:$B$5661,0)),\"\",INDIRECT(\"'SorP'!$A$\"&MATCH($J252,SorP!$B$1:$B$5661,0))))","v":""},null,{"$f":"IF(C252=\"\",NA(),MATCH($B252&$C252,'Smelter Look-up'!$J:$J,0))","v":{"$error":"#N/A"}},null,0,null,null,null,""]
[null,{"$f":"IF(LEN(A253)=0,\"\",INDEX('Smelter Look-up'!$A:$A,MATCH($A253,'Smelter Look-up'!$E:$E,0)))","v":""},{"$f":"IF(LEN(A253)=0,\"\",INDEX('Smelter Look-up'!$C:$C,MATCH($A253,'Smelter Look-up'!$E:$E,0)))","v":""},null,{"$f":"IF(ISERROR($V253),\"\",OFFSET('Smelter Look-up'!$D$4,$V253-4,0)&\"\")","v":""},{"$f":"IF(ISERROR($V253),\"\",OFFSET('Smelter Look-up'!$E$4,$V253-4,0))","v":""},{"$f":"IF(C253=$X$4,\"Enter smelter details\",IF(ISERROR($V253),\"\",OFFSET('Smelter Look-up'!$F$4,$V253-4,0)))","v":""},{"$f":"IF(ISERROR($V253),\"\",OFFSET('Smelter Look-up'!$G$4,$V253-4,0))","v":""},{"$f":"IF(ISERROR($V253),\"\",OFFSET('Smelter Look-up'!$H$4,$V253-4,0))","v":""},{"$f":"IF(ISERROR($V253),\"\",OFFSET('Smelter Look-up'!$I$4,$V253-4,0))","v":""},{"$nulls":7},{"$f":"IF(ISERROR($V253),\"\",OFFSET('Smelter Look-up'!$C$4,$V253-4,0)&\"\")","v":""},"",{"$f":"IF(B253=\"\",\"\",IF(ISERROR(MATCH($J253,SorP!$B$1:$B$5661,0)),\"\",INDIRECT(\"'SorP'!$A$\"&MATCH($J253,SorP!$B$1:$B$5661,0))))","v":""},null,{"$f":"IF(C253=\"\",NA(),MATCH($B253&$C253,'Smelter Look-up'!$J:$J,0))","v":{"$error":"#N/A"}},null,0,null,null,null,""]
[null,{"$f":"IF(LEN(A254)=0,\"\",INDEX('Smelter Look-up'!$A:$A,MATCH($A254,'Smelter Look-up'!$E:$E,0)))","v":""},{"$f":"IF(LEN(A254)=0,\"\",INDEX('Smelter Look-up'!$C:$C,MATCH($A254,'Smelter Look-up'!$E:$E,0)))","v":""},null,{"$f":"IF(ISERROR($V254),\"\",OFFSET('Smelter Look-up'!$D$4,$V254-4,0)&\"\")","v":""},{"$f":"IF(ISERROR($V254),\"\",OFFSET('Smelter Look-up'!$E$4,$V254-4,0))","v":""},{"$f":"IF(C254=$X$4,\"Enter smelter details\",IF(ISERROR($V254),\"\",OFFSET('Smelter Look-up'!$F$4,$V254-4,0)))","v":""},{"$f":"IF(ISERROR($V254),\"\",OFFSET('Smelter Look-up'!$G$4,$V254-4,0))","v":""},{"$f":"IF(ISERROR($V254),\"\",OFFSET('Smelter Look-up'!$H$4,$V254-4,0))","v":""},{"$f":"IF(ISERROR($V254),\"\",OFFSET('Smelter Look-up'!$I$4,$V254-4,0))","v":""},{"$nulls":7},{"$f":"IF(ISERROR($V254),\"\",OFFSET('Smelter Look-up'!$C$4,$V254-4,0)&\"\")","v":""},"",{"$f":"IF(B254=\"\",\"\",IF(ISERROR(MATCH($J254,SorP!$B$1:$B$5661,0)),\"\",INDIRECT(\"'SorP'!$A$\"&MATCH($J254,SorP!$B$1:$B$5661,0))))","v":""},null,{"$f":"IF(C254=\"\",NA(),MATCH($B254&$C254,'Smelter Look-up'!$J:$J,0))","v":{"$error":"#N/A"}},null,0,null,null,null,""]
[null,{"$f":"IF(LEN(A255)=0,\"\",INDEX('Smelter Look-up'!$A:$A,MATCH($A255,'Smelter Look-up'!$E:$E,0)))","v":""},{"$f":"IF(LEN(A255)=0,\"\",INDEX('Smelter Look-up'!$C:$C,MATCH($A255,'Smelter Look-up'!$E:$E,0)))","v":""},null,{"$f":"IF(ISERROR($V255),\"\",OFFSET('Smelter Look-up'!$D$4,$V255-4,0)&\"\")","v":""},{"$f":"IF(ISERROR($V255),\"\",OFFSET('Smelter Look-up'!$E$4,$V255-4,0))","v":""},{"$f":"IF(C255=$X$4,\"Enter smelter details\",IF(ISERROR($V255),\"\",OFFSET('Smelter Look-up'!$F$4,$V255-4,0)))","v":""},{"$f":"IF(ISERROR($V255),\"\",OFFSET('Smelter Look-up'!$G$4,$V255-4,0))","v":""},{"$f":"IF(ISERROR($V255),\"\",OFFSET('Smelter Look-up'!$H$4,$V255-4,0))","v":""},{"$f":"IF(ISERROR($V255),\"\",OFFSET('Smelter Look-up'!$I$4,$V255-4,0))","v":""},{"$nulls":7},{"$f":"IF(ISERROR($V255),\"\",OFFSET('Smelter Look-up'!$C$4,$V255-4,0)&\"\")","v":""},"",{"$f":"IF(B255=\"\",\"\",IF(ISERROR(MATCH($J255,SorP!$B$1:$B$5661,0)),\"\",INDIRECT(\"'SorP'!$A$\"&MATCH($J255,SorP!$B$1:$B$5661,0))))","v":""},null,{"$f":"IF(C255=\"\",NA(),MATCH($B255&$C255,'Smelter Look-up'!$J:$J,0))","v":{"$error":"#N/A"}},null,{"$f":"IF(AND(C255=\"Smelter not listed\",OR(LEN(D255)=0,LEN(E255)=0)),1,0)","v":0},null,null,null,{"$f":"B255&C255","v":""}]
[null,{"$f":"IF(LEN(A256)=0,\"\",INDEX('Smelter Look-up'!$A:$A,MATCH($A256,'Smelter Look-up'!$E:$E,0)))","v":""},{"$f":"IF(LEN(A256)=0,\"\",INDEX('Smelter Look-up'!$C:$C,MATCH($A256,'Smelter Look-up'!$E:$E,0)))","v":""},null,{"$f":"IF(ISERROR($V256),\"\",OFFSET('Smelter Look-up'!$D$4,$V256-4,0)&\"\")","v":""},{"$f":"IF(ISERROR($V256),\"\",OFFSET('Smelter Look-up'!$E$4,$V256-4,0))","v":""},{"$f":"IF(C256=$X$4,\"Enter smelter details\",IF(ISERROR($V256),\"\",OFFSET('Smelter Look-up'!$F$4,$V256-4,0)))","v":""},{"$f":"IF(ISERROR($V256),\"\",OFFSET('Smelter Look-up'!$G$4,$V256-4,0))","v":""},{"$f":"IF(ISERROR($V256),\"\",OFFSET('Smelter Look-up'!$H$4,$V256-4,0))","v":""},{"$f":"IF(ISERROR($V256),\"\",OFFSET('Smelter Look-up'!$I$4,$V256-4,0))","v":""},{"$nulls":7},{"$f":"IF(ISERROR($V256),\"\",OFFSET('Smelter Look-up'!$C$4,$V256-4,0)&\"\")","v":""},{"$f":"IF(B256=\"\",\"\",IF(ISERROR(MATCH($E256,CL,0)),\"Unknown\",INDIRECT(\"'C'!$A$\"&MATCH($E256,CL,0)+1)))","v":""},{"$f":"IF(B256=\"\",\"\",IF(ISERROR(MATCH($J256,SorP!$B$1:$B$5661,0)),\"\",INDIRECT(\"'SorP'!$A$\"&MATCH($J256,SorP!$B$1:$B$5661,0))))","v":""},null,{"$f":"IF(C256=\"\",NA(),MATCH($B256&$C256,'Smelter Look-up'!$J:$J,0))","v":{"$error":"#N/A"}},null,0,null,null,null,""]
[null,{"$f":"IF(LEN(A257)=0,\"\",INDEX('Smelter Look-up'!$A:$A,MATCH($A257,'Smelter Look-up'!$E:$E,0)))","v":""},{"$f":"IF(LEN(A257)=0,\"\",INDEX('Smelter Look-up'!$C:$C,MATCH($A257,'Smelter Look-up'!$E:$E,0)))","v":""},null,{"$f":"IF(ISERROR($V257),\"\",OFFSET('Smelter Look-up'!$D$4,$V257-4,0)&\"\")","v":""},{"$f":"IF(ISERROR($V257),\"\",OFFSET('Smelter Look-up'!$E$4,$V257-4,0))","v":""},{"$f":"IF(C257=$X$4,\"Enter smelter details\",IF(ISERROR($V257),\"\",OFFSET('Smelter Look-up'!$F$4,$V257-4,0)))","v":""},{"$f":"IF(ISERROR($V257),\"\",OFFSET('Smelter Look-up'!$G$4,$V257-4,0))","v":""},{"$f":"IF(ISERROR($V257),\"\",OFFSET('Smelter Look-up'!$H$4,$V257-4,0))","v":""},{"$f":"IF(ISERROR($V257),\"\",OFFSET('Smelter Look-up'!$I$4,$V257-4,0))","v":""},{"$nulls":7},{"$f":"IF(ISERROR($V257),\"\",OFFSET('Smelter Look-up'!$C$4,$V257-4,0)&\"\")","v":""},"",{"$f":"IF(B257=\"\",\"\",IF(ISERROR(MATCH($J257,SorP!$B$1:$B$5661,0)),\"\",INDIRECT(\"'SorP'!$A$\"&MATCH($J257,SorP!$B$1:$B$5661,0))))","v":""},null,{"$f":"IF(C257=\"\",NA(),MATCH($B257&$C257,'Smelter Look-up'!$J:$J,0))","v":{"$error":"#N/A"}},null,0,null,null,null,""]
[null,{"$f":"IF(LEN(A258)=0,\"\",INDEX('Smelter Look-up'!$A:$A,MATCH($A258,'Smelter Look-up'!$E:$E,0)))","v":""},{"$f":"IF(LEN(A258)=0,\"\",INDEX('Smelter Look-up'!$C:$C,MATCH($A258,'Smelter Look-up'!$E:$E,0)))","v":""},null,{"$f":"IF(ISERROR($V258),\"\",OFFSET('Smelter Look-up'!$D$4,$V258-4,0)&\"\")","v":""},{"$f":"IF(ISERROR($V258),\"\",OFFSET('Smelter Look-up'!$E$4,$V258-4,0))","v":""},{"$f":"IF(C258=$X$4,\"Enter smelter details\",IF(ISERROR($V258),\"\",OFFSET('Smelter Look-up'!$F$4,$V258-4,0)))","v":""},{"$f":"IF(ISERROR($V258),\"\",OFFSET('Smelter Look-up'!$G$4,$V258-4,0))","v":""},{"$f":"IF(ISERROR($V258),\"\",OFFSET('Smelter Look-up'!$H$4,$V258-4,0))","v":""},{"$f":"IF(ISERROR($V258),\"\",OFFSET('Smelter Look-up'!$I$4,$V258-4,0))","v":""},{"$nulls":7},{"$f":"IF(ISERROR($V258),\"\",OFFSET('Smelter Look-up'!$C$4,$V258-4,0)&\"\")","v":""},"",{"$f":"IF(B258=\"\",\"\",IF(ISERROR(MATCH($J258,SorP!$B$1:$B$5661,0)),\"\",INDIRECT(\"'SorP'!$A$\"&MATCH($J258,SorP!$B$1:$B$5661,0))))","v":""},null,{"$f":"IF(C258=\"\",NA(),MATCH($B258&$C258,'Smelter Look-up'!$J:$J,0))","v":{"$error":"#N/A"}},null,0,null,null,null,""]
[null,{"$f":"IF(LEN(A259)=0,\"\",INDEX('Smelter Look-up'!$A:$A,MATCH($A259,'Smelter Look-up'!$E:$E,0)))","v":""},{"$f":"IF(LEN(A259)=0,\"\",INDEX('Smelter Look-up'!$C:$C,MATCH($A259,'Smelter Look-up'!$E:$E,0)))","v":""},null,{"$f":"IF(ISERROR($V259),\"\",OFFSET('Smelter Look-up'!$D$4,$V259-4,0)&\"\")","v":""},{"$f":"IF(ISERROR($V259),\"\",OFFSET('Smelter Look-up'!$E$4,$V259-4,0))","v":""},{"$f":"IF(C259=$X$4,\"Enter smelter details\",IF(ISERROR($V259),\"\",OFFSET('Smelter Look-up'!$F$4,$V259-4,0)))","v":""},{"$f":"IF(ISERROR($V259),\"\",OFFSET('Smelter Look-up'!$G$4,$V259-4,0))","v":""},{"$f":"IF(ISERROR($V259),\"\",OFFSET('Smelter Look-up'!$H$4,$V259-4,0))","v":""},{"$f":"IF(ISERROR($V259),\"\",OFFSET('Smelter Look-up'!$I$4,$V259-4,0))","v":""},{"$nulls":7},{"$f":"IF(ISERROR($V259),\"\",OFFSET('Smelter Look-up'!$C$4,$V259-4,0)&\"\")","v":""},"",{"$f":"IF(B259=\"\",\"\",IF(ISERROR(MATCH($J259,SorP!$B$1:$B$5661,0)),\"\",INDIRECT(\"'SorP'!$A$\"&MATCH($J259,SorP!$B$1:$B$5661,0))))","v":""},null,{"$f":"IF(C259=\"\",NA(),MATCH($B259&$C259,'Smelter Look-up'!$J:$J,0))","v":{"$error":"#N/A"}},null,0,null,null,null,""]
[null,{"$f":"IF(LEN(A260)=0,\"\",INDEX('Smelter Look-up'!$A:$A,MATCH($A260,'Smelter Look-up'!$E:$E,0)))","v":""},{"$f":"IF(LEN(A260)=0,\"\",INDEX('Smelter Look-up'!$C:$C,MATCH($A260,'Smelter Look-up'!$E:$E,0)))","v":""},null,{"$f":"IF(ISERROR($V260),\"\",OFFSET('Smelter Look-up'!$D$4,$V260-4,0)&\"\")","v":""},{"$f":"IF(ISERROR($V260),\"\",OFFSET('Smelter Look-up'!$E$4,$V260-4,0))","v":""},{"$f":"IF(C260=$X$4,\"Enter smelter details\",IF(ISERROR($V260),\"\",OFFSET('Smelter Look-up'!$F$4,$V260-4,0)))","v":""},{"$f":"IF(ISERROR($V260),\"\",OFFSET('Smelter Look-up'!$G$4,$V260-4,0))","v":""},{"$f":"IF(ISERROR($V260),\"\",OFFSET('Smelter Look-up'!$H$4,$V260-4,0))","v":""},{"$f":"IF(ISERROR($V260),\"\",OFFSET('Smelter Look-up'!$I$4,$V260-4,0))","v":""},{"$nulls":7},{"$f":"IF(ISERROR($V260),\"\",OFFSET('Smelter Look-up'!$C$4,$V260-4,0)&\"\")","v":""},"",{"$f":"IF(B260=\"\",\"\",IF(ISERROR(MATCH($J260,SorP!$B$1:$B$5661,0)),\"\",INDIRECT(\"'SorP'!$A$\"&MATCH($J260,SorP!$B$1:$B$5661,0))))","v":""},null,{"$f":"IF(C260=\"\",NA(),MATCH($B260&$C260,'Smelter Look-up'!$J:$J,0))","v":{"$error":"#N/A"}},null,0,null,null,null,""]
[null,{"$f":"IF(LEN(A261)=0,\"\",INDEX('Smelter Look-up'!$A:$A,MATCH($A261,'Smelter Look-up'!$E:$E,0)))","v":""},{"$f":"IF(LEN(A261)=0,\"\",INDEX('Smelter Look-up'!$C:$C,MATCH($A261,'Smelter Look-up'!$E:$E,0)))","v":""},null,{"$f":"IF(ISERROR($V261),\"\",OFFSET('Smelter Look-up'!$D$4,$V261-4,0)&\"\")","v":""},{"$f":"IF(ISERROR($V261),\"\",OFFSET('Smelter Look-up'!$E$4,$V261-4,0))","v":""},{"$f":"IF(C261=$X$4,\"Enter smelter details\",IF(ISERROR($V261),\"\",OFFSET('Smelter Look-up'!$F$4,$V261-4,0)))","v":""},{"$f":"IF(ISERROR($V261),\"\",OFFSET('Smelter Look-up'!$G$4,$V261-4,0))","v":""},{"$f":"IF(ISERROR($V261),\"\",OFFSET('Smelter Look-up'!$H$4,$V261-4,0))","v":""},{"$f":"IF(ISERROR($V261),\"\",OFFSET('Smelter Look-up'!$I$4,$V261-4,0))","v":""},{"$nulls":7},{"$f":"IF(ISERROR($V261),\"\",OFFSET('Smelter Look-up'!$C$4,$V261-4,0)&\"\")","v":""},"",{"$f":"IF(B261=\"\",\"\",IF(ISERROR(MATCH($J261,SorP!$B$1:$B$5661,0)),\"\",INDIRECT(\"'SorP'!$A$\"&MATCH($J261,SorP!$B$1:$B$5661,0))))","v":""},null,{"$f":"IF(C261=\"\",NA(),MATCH($B261&$C261,'Smelter Look-up'!$J:$J,0))","v":{"$error":"#N/A"}},null,0,null,null,null,""]
[null,{"$f":"IF(LEN(A262)=0,\"\",INDEX('Smelter Look-up'!$A:$A,MATCH($A262,'Smelter Look-up'!$E:$E,0)))","v":""},{"$f":"IF(LEN(A262)=0,\"\",INDEX('Smelter Look-up'!$C:$C,MATCH($A262,'Smelter Look-up'!$E:$E,0)))","v":""},null,{"$f":"IF(ISERROR($V262),\"\",OFFSET('Smelter Look-up'!$D$4,$V262-4,0)&\"\")","v":""},{"$f":"IF(ISERROR($V262),\"\",OFFSET('Smelter Look-up'!$E$4,$V262-4,0))","v":""},{"$f":"IF(C262=$X$4,\"Enter smelter details\",IF(ISERROR($V262),\"\",OFFSET('Smelter Look-up'!$F$4,$V262-4,0)))","v":""},{"$f":"IF(ISERROR($V262),\"\",OFFSET('Smelter Look-up'!$G$4,$V262-4,0))","v":""},{"$f":"IF(ISERROR($V262),\"\",OFFSET('Smelter Look-up'!$H$4,$V262-4,0))","v":""},{"$f":"IF(ISERROR($V262),\"\",OFFSET('Smelter Look-up'!$I$4,$V262-4,0))","v":""},{"$nulls":7},{"$f":"IF(ISERROR($V262),\"\",OFFSET('Smelter Look-up'!$C$4,$V262-4,0)&\"\")","v":""},"",{"$f":"IF(B262=\"\",\"\",IF(ISERROR(MATCH($J262,SorP!$B$1:$B$5661,0)),\"\",INDIRECT(\"'SorP'!$A$\"&MATCH($J262,SorP!$B$1:$B$5661,0))))","v":""},null,{"$f":"IF(C262=\"\",NA(),MATCH($B262&$C262,'Smelter Look-up'!$J:$J,0))","v":{"$error":"#N/A"}},null,0,null,null,null,""]
[null,{"$f":"IF(LEN(A263)=0,\"\",INDEX('Smelter Look-up'!$A:$A,MATCH($A263,'Smelter Look-up'!$E:$E,0)))","v":""},{"$f":"IF(LEN(A263)=0,\"\",INDEX('Smelter Look-up'!$C:$C,MATCH($A263,'Smelter Look-up'!$E:$E,0)))","v":""},null,{"$f":"IF(ISERROR($V263),\"\",OFFSET('Smelter Look-up'!$D$4,$V263-4,0)&\"\")","v":""},{"$f":"IF(ISERROR($V263),\"\",OFFSET('Smelter Look-up'!$E$4,$V263-4,0))","v":""},{"$f":"IF(C263=$X$4,\"Enter smelter details\",IF(ISERROR($V263),\"\",OFFSET('Smelter Look-up'!$F$4,$V263-4,0)))","v":""},{"$f":"IF(ISERROR($V263),\"\",OFFSET('Smelter Look-up'!$G$4,$V263-4,0))","v":""},{"$f":"IF(ISERROR($V263),\"\",OFFSET('Smelter Look-up'!$H$4,$V263-4,0))","v":""},{"$f":"IF(ISERROR($V263),\"\",OFFSET('Smelter Look-up'!$I$4,$V263-4,0))","v":""},{"$nulls":7},{"$f":"IF(ISERROR($V263),\"\",OFFSET('Smelter Look-up'!$C$4,$V263-4,0)&\"\")","v":""},"",{"$f":"IF(B263=\"\",\"\",IF(ISERROR(MATCH($J263,SorP!$B$1:$B$5661,0)),\"\",INDIRECT(\"'SorP'!$A$\"&MATCH($J263,SorP!$B$1:$B$5661,0))))","v":""},null,{"$f":"IF(C263=\"\",NA(),MATCH($B263&$C263,'Smelter Look-up'!$J:$J,0))","v":{"$error":"#N/A"}},null,0,null,null,null,""]
[null,{"$f":"IF(LEN(A264)=0,\"\",INDEX('Smelter Look-up'!$A:$A,MATCH($A264,'Smelter Look-up'!$E:$E,0)))","v":""},{"$f":"IF(LEN(A264)=0,\"\",INDEX('Smelter Look-up'!$C:$C,MATCH($A264,'Smelter Look-up'!$E:$E,0)))","v":""},null,{"$f":"IF(ISERROR($V264),\"\",OFFSET('Smelter Look-up'!$D$4,$V264-4,0)&\"\")","v":""},{"$f":"IF(ISERROR($V264),\"\",OFFSET('Smelter Look-up'!$E$4,$V264-4,0))","v":""},{"$f":"IF(C264=$X$4,\"Enter smelter details\",IF(ISERROR($V264),\"\",OFFSET('Smelter Look-up'!$F$4,$V264-4,0)))","v":""},{"$f":"IF(ISERROR($V264),\"\",OFFSET('Smelter Look-up'!$G$4,$V264-4,0))","v":""},{"$f":"IF(ISERROR($V264),\"\",OFFSET('Smelter Look-up'!$H$4,$V264-4,0))","v":""},{"$f":"IF(ISERROR($V264),\"\",OFFSET('Smelter Look-up'!$I$4,$V264-4,0))","v":""},{"$nulls":7},{"$f":"IF(ISERROR($V264),\"\",OFFSET('Smelter Look-up'!$C$4,$V264-4,0)&\"\")","v":""},"",{"$f":"IF(B264=\"\",\"\",IF(ISERROR(MATCH($J264,SorP!$B$1:$B$5661,0)),\"\",INDIRECT(\"'SorP'!$A$\"&MATCH($J264,SorP!$B$1:$B$5661,0))))","v":""},null,{"$f":"IF(C264=\"\",NA(),MATCH($B264&$C264,'Smelter Look-up'!$J:$J,0))","v":{"$error":"#N/A"}},null,0,null,null,null,""]
[null,{"$f":"IF(LEN(A265)=0,\"\",INDEX('Smelter Look-up'!$A:$A,MATCH($A265,'Smelter Look-up'!$E:$E,0)))","v":""},{"$f":"IF(LEN(A265)=0,\"\",INDEX('Smelter Look-up'!$C:$C,MATCH($A265,'Smelter Look-up'!$E:$E,0)))","v":""},null,{"$f":"IF(ISERROR($V265),\"\",OFFSET('Smelter Look-up'!$D$4,$V265-4,0)&\"\")","v":""},{"$f":"IF(ISERROR($V265),\"\",OFFSET('Smelter Look-up'!$E$4,$V265-4,0))","v":""},{"$f":"IF(C265=$X$4,\"Enter smelter details\",IF(ISERROR($V265),\"\",OFFSET('Smelter Look-up'!$F$4,$V265-4,0)))","v":""},{"$f":"IF(ISERROR($V265),\"\",OFFSET('Smelter Look-up'!$G$4,$V265-4,0))","v":""},{"$f":"IF(ISERROR($V265),\"\",OFFSET('Smelter Look-up'!$H$4,$V265-4,0))","v":""},{"$f":"IF(ISERROR($V265),\"\",OFFSET('Smelter Look-up'!$I$4,$V265-4,0))","v":""},{"$nulls":7},{"$f":"IF(ISERROR($V265),\"\",OFFSET('Smelter Look-up'!$C$4,$V265-4,0)&\"\")","v":""},"",{"$f":"IF(B265=\"\",\"\",IF(ISERROR(MATCH($J265,SorP!$B$1:$B$5661,0)),\"\",INDIRECT(\"'SorP'!$A$\"&MATCH($J265,SorP!$B$1:$B$5661,0))))","v":""},null,{"$f":"IF(C265=\"\",NA(),MATCH($B265&$C265,'Smelter Look-up'!$J:$J,0))","v":{"$error":"#N/A"}},null,0,null,null,null,""]
[null,{"$f":"IF(LEN(A266)=0,\"\",INDEX('Smelter Look-up'!$A:$A,MATCH($A266,'Smelter Look-up'!$E:$E,0)))","v":""},{"$f":"IF(LEN(A266)=0,\"\",INDEX('Smelter Look-up'!$C:$C,MATCH($A266,'Smelter Look-up'!$E:$E,0)))","v":""},null,{"$f":"IF(ISERROR($V266),\"\",OFFSET('Smelter Look-up'!$D$4,$V266-4,0)&\"\")","v":""},{"$f":"IF(ISERROR($V266),\"\",OFFSET('Smelter Look-up'!$E$4,$V266-4,0))","v":""},{"$f":"IF(C266=$X$4,\"Enter smelter details\",IF(ISERROR($V266),\"\",OFFSET('Smelter Look-up'!$F$4,$V266-4,0)))","v":""},{"$f":"IF(ISERROR($V266),\"\",OFFSET('Smelter Look-up'!$G$4,$V266-4,0))","v":""},{"$f":"IF(ISERROR($V266),\"\",OFFSET('Smelter Look-up'!$H$4,$V266-4,0))","v":""},{"$f":"IF(ISERROR($V266),\"\",OFFSET('Smelter Look-up'!$I$4,$V266-4,0))","v":""},{"$nulls":7},{"$f":"IF(ISERROR($V266),\"\",OFFSET('Smelter Look-up'!$C$4,$V266-4,0)&\"\")","v":""},"",{"$f":"IF(B266=\"\",\"\",IF(ISERROR(MATCH($J266,SorP!$B$1:$B$5661,0)),\"\",INDIRECT(\"'SorP'!$A$\"&MATCH($J266,SorP!$B$1:$B$5661,0))))","v":""},null,{"$f":"IF(C266=\"\",NA(),MATCH($B266&$C266,'Smelter Look-up'!$J:$J,0))","v":{"$error":"#N/A"}},null,0,null,null,null,""]
[null,{"$f":"IF(LEN(A267)=0,\"\",INDEX('Smelter Look-up'!$A:$A,MATCH($A267,'Smelter Look-up'!$E:$E,0)))","v":""},{"$f":"IF(LEN(A267)=0,\"\",INDEX('Smelter Look-up'!$C:$C,MATCH($A267,'Smelter Look-up'!$E:$E,0)))","v":""},null,{"$f":"IF(ISERROR($V267),\"\",OFFSET('Smelter Look-up'!$D$4,$V267-4,0)&\"\")","v":""},{"$f":"IF(ISERROR($V267),\"\",OFFSET('Smelter Look-up'!$E$4,$V267-4,0))","v":""},{"$f":"IF(C267=$X$4,\"Enter smelter details\",IF(ISERROR($V267),\"\",OFFSET('Smelter Look-up'!$F$4,$V267-4,0)))","v":""},{"$f":"IF(ISERROR($V267),\"\",OFFSET('Smelter Look-up'!$G$4,$V267-4,0))","v":""},{"$f":"IF(ISERROR($V267),\"\",OFFSET('Smelter Look-up'!$H$4,$V267-4,0))","v":""},{"$f":"IF(ISERROR($V267),\"\",OFFSET('Smelter Look-up'!$I$4,$V267-4,0))","v":""},{"$nulls":7},{"$f":"IF(ISERROR($V267),\"\",OFFSET('Smelter Look-up'!$C$4,$V267-4,0)&\"\")","v":""},"",{"$f":"IF(B267=\"\",\"\",IF(ISERROR(MATCH($J267,SorP!$B$1:$B$5661,0)),\"\",INDIRECT(\"'SorP'!$A$\"&MATCH($J267,SorP!$B$1:$B$5661,0))))","v":""},null,{"$f":"IF(C267=\"\",NA(),MATCH($B267&$C267,'Smelter Look-up'!$J:$J,0))","v":{"$error":"#N/A"}},null,0,null,null,null,""]
[null,{"$f":"IF(LEN(A268)=0,\"\",INDEX('Smelter Look-up'!$A:$A,MATCH($A268,'Smelter Look-up'!$E:$E,0)))","v":""},{"$f":"IF(LEN(A268)=0,\"\",INDEX('Smelter Look-up'!$C:$C,MATCH($A268,'Smelter Look-up'!$E:$E,0)))","v":""},null,{"$f":"IF(ISERROR($V268),\"\",OFFSET('Smelter Look-up'!$D$4,$V268-4,0)&\"\")","v":""},{"$f":"IF(ISERROR($V268),\"\",OFFSET('Smelter Look-up'!$E$4,$V268-4,0))","v":""},{"$f":"IF(C268=$X$4,\"Enter smelter details\",IF(ISERROR($V268),\"\",OFFSET('Smelter Look-up'!$F$4,$V268-4,0)))","v":""},{"$f":"IF(ISERROR($V268),\"\",OFFSET('Smelter Look-up'!$G$4,$V268-4,0))","v":""},{"$f":"IF(ISERROR($V268),\"\",OFFSET('Smelter Look-up'!$H$4,$V268-4,0))","v":""},{"$f":"IF(ISERROR($V268),\"\",OFFSET('Smelter Look-up'!$I$4,$V268-4,0))","v":""},{"$nulls":7},{"$f":"IF(ISERROR($V268),\"\",OFFSET('Smelter Look-up'!$C$4,$V268-4,0)&\"\")","v":""},"",{"$f":"IF(B268=\"\",\"\",IF(ISERROR(MATCH($J268,SorP!$B$1:$B$5661,0)),\"\",INDIRECT(\"'SorP'!$A$\"&MATCH($J268,SorP!$B$1:$B$5661,0))))","v":""},null,{"$f":"IF(C268=\"\",NA(),MATCH($B268&$C268,'Smelter Look-up'!$J:$J,0))","v":{"$error":"#N/A"}},null,0,null,null,null,""]
[null,{"$f":"IF(LEN(A269)=0,\"\",INDEX('Smelter Look-up'!$A:$A,MATCH($A269,'Smelter Look-up'!$E:$E,0)))","v":""},{"$f":"IF(LEN(A269)=0,\"\",INDEX('Smelter Look-up'!$C:$C,MATCH($A269,'Smelter Look-up'!$E:$E,0)))","v":""},null,{"$f":"IF(ISERROR($V269),\"\",OFFSET('Smelter Look-up'!$D$4,$V269-4,0)&\"\")","v":""},{"$f":"IF(ISERROR($V269),\"\",OFFSET('Smelter Look-up'!$E$4,$V269-4,0))","v":""},{"$f":"IF(C269=$X$4,\"Enter smelter details\",IF(ISERROR($V269),\"\",OFFSET('Smelter Look-up'!$F$4,$V269-4,0)))","v":""},{"$f":"IF(ISERROR($V269),\"\",OFFSET('Smelter Look-up'!$G$4,$V269-4,0))","v":""},{"$f":"IF(ISERROR($V269),\"\",OFFSET('Smelter Look-up'!$H$4,$V269-4,0))","v":""},{"$f":"IF(ISERROR($V269),\"\",OFFSET('Smelter Look-up'!$I$4,$V269-4,0))","v":""},{"$nulls":7},{"$f":"IF(ISERROR($V269),\"\",OFFSET('Smelter Look-up'!$C$4,$V269-4,0)&\"\")","v":""},"",{"$f":"IF(B269=\"\",\"\",IF(ISERROR(MATCH($J269,SorP!$B$1:$B$5661,0)),\"\",INDIRECT(\"'SorP'!$A$\"&MATCH($J269,SorP!$B$1:$B$5661,0))))","v":""},null,{"$f":"IF(C269=\"\",NA(),MATCH($B269&$C269,'Smelter Look-up'!$J:$J,0))","v":{"$error":"#N/A"}},null,0,null,null,null,""]
[null,{"$f":"IF(LEN(A270)=0,\"\",INDEX('Smelter Look-up'!$A:$A,MATCH($A270,'Smelter Look-up'!$E:$E,0)))","v":""},{"$f":"IF(LEN(A270)=0,\"\",INDEX('Smelter Look-up'!$C:$C,MATCH($A270,'Smelter Look-up'!$E:$E,0)))","v":""},null,{"$f":"IF(ISERROR($V270),\"\",OFFSET('Smelter Look-up'!$D$4,$V270-4,0)&\"\")","v":""},{"$f":"IF(ISERROR($V270),\"\",OFFSET('Smelter Look-up'!$E$4,$V270-4,0))","v":""},{"$f":"IF(C270=$X$4,\"Enter smelter details\",IF(ISERROR($V270),\"\",OFFSET('Smelter Look-up'!$F$4,$V270-4,0)))","v":""},{"$f":"IF(ISERROR($V270),\"\",OFFSET('Smelter Look-up'!$G$4,$V270-4,0))","v":""},{"$f":"IF(ISERROR($V270),\"\",OFFSET('Smelter Look-up'!$H$4,$V270-4,0))","v":""},{"$f":"IF(ISERROR($V270),\"\",OFFSET('Smelter Look-up'!$I$4,$V270-4,0))","v":""},{"$nulls":7},{"$f":"IF(ISERROR($V270),\"\",OFFSET('Smelter Look-up'!$C$4,$V270-4,0)&\"\")","v":""},"",{"$f":"IF(B270=\"\",\"\",IF(ISERROR(MATCH($J270,SorP!$B$1:$B$5661,0)),\"\",INDIRECT(\"'SorP'!$A$\"&MATCH($J270,SorP!$B$1:$B$5661,0))))","v":""},null,{"$f":"IF(C270=\"\",NA(),MATCH($B270&$C270,'Smelter Look-up'!$J:$J,0))","v":{"$error":"#N/A"}},null,0,null,null,null,""]
[null,{"$f":"IF(LEN(A271)=0,\"\",INDEX('Smelter Look-up'!$A:$A,MATCH($A271,'Smelter Look-up'!$E:$E,0)))","v":""},{"$f":"IF(LEN(A271)=0,\"\",INDEX('Smelter Look-up'!$C:$C,MATCH($A271,'Smelter Look-up'!$E:$E,0)))","v":""},null,{"$f":"IF(ISERROR($V271),\"\",OFFSET('Smelter Look-up'!$D$4,$V271-4,0)&\"\")","v":""},{"$f":"IF(ISERROR($V271),\"\",OFFSET('Smelter Look-up'!$E$4,$V271-4,0))","v":""},{"$f":"IF(C271=$X$4,\"Enter smelter details\",IF(ISERROR($V271),\"\",OFFSET('Smelter Look-up'!$F$4,$V271-4,0)))","v":""},{"$f":"IF(ISERROR($V271),\"\",OFFSET('Smelter Look-up'!$G$4,$V271-4,0))","v":""},{"$f":"IF(ISERROR($V271),\"\",OFFSET('Smelter Look-up'!$H$4,$V271-4,0))","v":""},{"$f":"IF(ISERROR($V271),\"\",OFFSET('Smelter Look-up'!$I$4,$V271-4,0))","v":""},{"$nulls":7},{"$f":"IF(ISERROR($V271),\"\",OFFSET('Smelter Look-up'!$C$4,$V271-4,0)&\"\")","v":""},"",{"$f":"IF(B271=\"\",\"\",IF(ISERROR(MATCH($J271,SorP!$B$1:$B$5661,0)),\"\",INDIRECT(\"'SorP'!$A$\"&MATCH($J271,SorP!$B$1:$B$5661,0))))","v":""},null,{"$f":"IF(C271=\"\",NA(),MATCH($B271&$C271,'Smelter Look-up'!$J:$J,0))","v":{"$error":"#N/A"}},null,0,null,null,null,""]
[null,{"$f":"IF(LEN(A272)=0,\"\",INDEX('Smelter Look-up'!$A:$A,MATCH($A272,'Smelter Look-up'!$E:$E,0)))","v":""},{"$f":"IF(LEN(A272)=0,\"\",INDEX('Smelter Look-up'!$C:$C,MATCH($A272,'Smelter Look-up'!$E:$E,0)))","v":""},null,{"$f":"IF(ISERROR($V272),\"\",OFFSET('Smelter Look-up'!$D$4,$V272-4,0)&\"\")","v":""},{"$f":"IF(ISERROR($V272),\"\",OFFSET('Smelter Look-up'!$E$4,$V272-4,0))","v":""},{"$f":"IF(C272=$X$4,\"Enter smelter details\",IF(ISERROR($V272),\"\",OFFSET('Smelter Look-up'!$F$4,$V272-4,0)))","v":""},{"$f":"IF(ISERROR($V272),\"\",OFFSET('Smelter Look-up'!$G$4,$V272-4,0))","v":""},{"$f":"IF(ISERROR($V272),\"\",OFFSET('Smelter Look-up'!$H$4,$V272-4,0))","v":""},{"$f":"IF(ISERROR($V272),\"\",OFFSET('Smelter Look-up'!$I$4,$V272-4,0))","v":""},{"$nulls":7},{"$f":"IF(ISERROR($V272),\"\",OFFSET('Smelter Look-up'!$C$4,$V272-4,0)&\"\")","v":""},"",{"$f":"IF(B272=\"\",\"\",IF(ISERROR(MATCH($J272,SorP!$B$1:$B$5661,0)),\"\",INDIRECT(\"'SorP'!$A$\"&MATCH($J272,SorP!$B$1:$B$5661,0))))","v":""},null,{"$f":"IF(C272=\"\",NA(),MATCH($B272&$C272,'Smelter Look-up'!$J:$J,0))","v":{"$error":"#N/A"}},null,0,null,null,null,""]
[null,{"$f":"IF(LEN(A273)=0,\"\",INDEX('Smelter Look-up'!$A:$A,MATCH($A273,'Smelter Look-up'!$E:$E,0)))","v":""},{"$f":"IF(LEN(A273)=0,\"\",INDEX('Smelter Look-up'!$C:$C,MATCH($A273,'Smelter Look-up'!$E:$E,0)))","v":""},null,{"$f":"IF(ISERROR($V273),\"\",OFFSET('Smelter Look-up'!$D$4,$V273-4,0)&\"\")","v":""},{"$f":"IF(ISERROR($V273),\"\",OFFSET('Smelter Look-up'!$E$4,$V273-4,0))","v":""},{"$f":"IF(C273=$X$4,\"Enter smelter details\",IF(ISERROR($V273),\"\",OFFSET('Smelter Look-up'!$F$4,$V273-4,0)))","v":""},{"$f":"IF(ISERROR($V273),\"\",OFFSET('Smelter Look-up'!$G$4,$V273-4,0))","v":""},{"$f":"IF(ISERROR($V273),\"\",OFFSET('Smelter Look-up'!$H$4,$V273-4,0))","v":""},{"$f":"IF(ISERROR($V273),\"\",OFFSET('Smelter Look-up'!$I$4,$V273-4,0))","v":""},{"$nulls":7},{"$f":"IF(ISERROR($V273),\"\",OFFSET('Smelter Look-up'!$C$4,$V273-4,0)&\"\")","v":""},"",{"$f":"IF(B273=\"\",\"\",IF(ISERROR(MATCH($J273,SorP!$B$1:$B$5661,0)),\"\",INDIRECT(\"'SorP'!$A$\"&MATCH($J273,SorP!$B$1:$B$5661,0))))","v":""},null,{"$f":"IF(C273=\"\",NA(),MATCH($B273&$C273,'Smelter Look-up'!$J:$J,0))","v":{"$error":"#N/A"}},null,0,null,null,null,""]
[null,{"$f":"IF(LEN(A274)=0,\"\",INDEX('Smelter Look-up'!$A:$A,MATCH($A274,'Smelter Look-up'!$E:$E,0)))","v":""},{"$f":"IF(LEN(A274)=0,\"\",INDEX('Smelter Look-up'!$C:$C,MATCH($A274,'Smelter Look-up'!$E:$E,0)))","v":""},null,{"$f":"IF(ISERROR($V274),\"\",OFFSET('Smelter Look-up'!$D$4,$V274-4,0)&\"\")","v":""},{"$f":"IF(ISERROR($V274),\"\",OFFSET('Smelter Look-up'!$E$4,$V274-4,0))","v":""},{"$f":"IF(C274=$X$4,\"Enter smelter details\",IF(ISERROR($V274),\"\",OFFSET('Smelter Look-up'!$F$4,$V274-4,0)))","v":""},{"$f":"IF(ISERROR($V274),\"\",OFFSET('Smelter Look-up'!$G$4,$V274-4,0))","v":""},{"$f":"IF(ISERROR($V274),\"\",OFFSET('Smelter Look-up'!$H$4,$V274-4,0))","v":""},{"$f":"IF(ISERROR($V274),\"\",OFFSET('Smelter Look-up'!$I$4,$V274-4,0))","v":""},{"$nulls":7},{"$f":"IF(ISERROR($V274),\"\",OFFSET('Smelter Look-up'!$C$4,$V274-4,0)&\"\")","v":""},"",{"$f":"IF(B274=\"\",\"\",IF(ISERROR(MATCH($J274,SorP!$B$1:$B$5661,0)),\"\",INDIRECT(\"'SorP'!$A$\"&MATCH($J274,SorP!$B$1:$B$5661,0))))","v":""},null,{"$f":"IF(C274=\"\",NA(),MATCH($B274&$C274,'Smelter Look-up'!$J:$J,0))","v":{"$error":"#N/A"}},null,0,null,null,null,""]
[null,{"$f":"IF(LEN(A275)=0,\"\",INDEX('Smelter Look-up'!$A:$A,MATCH($A275,'Smelter Look-up'!$E:$E,0)))","v":""},{"$f":"IF(LEN(A275)=0,\"\",INDEX('Smelter Look-up'!$C:$C,MATCH($A275,'Smelter Look-up'!$E:$E,0)))","v":""},null,{"$f":"IF(ISERROR($V275),\"\",OFFSET('Smelter Look-up'!$D$4,$V275-4,0)&\"\")","v":""},{"$f":"IF(ISERROR($V275),\"\",OFFSET('Smelter Look-up'!$E$4,$V275-4,0))","v":""},{"$f":"IF(C275=$X$4,\"Enter smelter details\",IF(ISERROR($V275),\"\",OFFSET('Smelter Look-up'!$F$4,$V275-4,0)))","v":""},{"$f":"IF(ISERROR($V275),\"\",OFFSET('Smelter Look-up'!$G$4,$V275-4,0))","v":""},{"$f":"IF(ISERROR($V275),\"\",OFFSET('Smelter Look-up'!$H$4,$V275-4,0))","v":""},{"$f":"IF(ISERROR($V275),\"\",OFFSET('Smelter Look-up'!$I$4,$V275-4,0))","v":""},{"$nulls":7},{"$f":"IF(ISERROR($V275),\"\",OFFSET('Smelter Look-up'!$C$4,$V275-4,0)&\"\")","v":""},"",{"$f":"IF(B275=\"\",\"\",IF(ISERROR(MATCH($J275,SorP!$B$1:$B$5661,0)),\"\",INDIRECT(\"'SorP'!$A$\"&MATCH($J275,SorP!$B$1:$B$5661,0))))","v":""},null,{"$f":"IF(C275=\"\",NA(),MATCH($B275&$C275,'Smelter Look-up'!$J:$J,0))","v":{"$error":"#N/A"}},null,0,null,null,null,""]
[null,{"$f":"IF(LEN(A276)=0,\"\",INDEX('Smelter Look-up'!$A:$A,MATCH($A276,'Smelter Look-up'!$E:$E,0)))","v":""},{"$f":"IF(LEN(A276)=0,\"\",INDEX('Smelter Look-up'!$C:$C,MATCH($A276,'Smelter Look-up'!$E:$E,0)))","v":""},null,{"$f":"IF(ISERROR($V276),\"\",OFFSET('Smelter Look-up'!$D$4,$V276-4,0)&\"\")","v":""},{"$f":"IF(ISERROR($V276),\"\",OFFSET('Smelter Look-up'!$E$4,$V276-4,0))","v":""},{"$f":"IF(C276=$X$4,\"Enter smelter details\",IF(ISERROR($V276),\"\",OFFSET('Smelter Look-up'!$F$4,$V276-4,0)))","v":""},{"$f":"IF(ISERROR($V276),\"\",OFFSET('Smelter Look-up'!$G$4,$V276-4,0))","v":""},{"$f":"IF(ISERROR($V276),\"\",OFFSET('Smelter Look-up'!$H$4,$V276-4,0))","v":""},{"$f":"IF(ISERROR($V276),\"\",OFFSET('Smelter Look-up'!$I$4,$V276-4,0))","v":""},{"$nulls":7},{"$f":"IF(ISERROR($V276),\"\",OFFSET('Smelter Look-up'!$C$4,$V276-4,0)&\"\")","v":""},"",{"$f":"IF(B276=\"\",\"\",IF(ISERROR(MATCH($J276,SorP!$B$1:$B$5661,0)),\"\",INDIRECT(\"'SorP'!$A$\"&MATCH($J276,SorP!$B$1:$B$5661,0))))","v":""},null,{"$f":"IF(C276=\"\",NA(),MATCH($B276&$C276,'Smelter Look-up'!$J:$J,0))","v":{"$error":"#N/A"}},null,0,null,null,null,""]
[null,{"$f":"IF(LEN(A277)=0,\"\",INDEX('Smelter Look-up'!$A:$A,MATCH($A277,'Smelter Look-up'!$E:$E,0)))","v":""},{"$f":"IF(LEN(A277)=0,\"\",INDEX('Smelter Look-up'!$C:$C,MATCH($A277,'Smelter Look-up'!$E:$E,0)))","v":""},null,{"$f":"IF(ISERROR($V277),\"\",OFFSET('Smelter Look-up'!$D$4,$V277-4,0)&\"\")","v":""},{"$f":"IF(ISERROR($V277),\"\",OFFSET('Smelter Look-up'!$E$4,$V277-4,0))","v":""},{"$f":"IF(C277=$X$4,\"Enter smelter details\",IF(ISERROR($V277),\"\",OFFSET('Smelter Look-up'!$F$4,$V277-4,0)))","v":""},{"$f":"IF(ISERROR($V277),\"\",OFFSET('Smelter Look-up'!$G$4,$V277-4,0))","v":""},{"$f":"IF(ISERROR($V277),\"\",OFFSET('Smelter Look-up'!$H$4,$V277-4,0))","v":""},{"$f":"IF(ISERROR($V277),\"\",OFFSET('Smelter Look-up'!$I$4,$V277-4,0))","v":""},{"$nulls":7},{"$f":"IF(ISERROR($V277),\"\",OFFSET('Smelter Look-up'!$C$4,$V277-4,0)&\"\")","v":""},"",{"$f":"IF(B277=\"\",\"\",IF(ISERROR(MATCH($J277,SorP!$B$1:$B$5661,0)),\"\",INDIRECT(\"'SorP'!$A$\"&MATCH($J277,SorP!$B$1:$B$5661,0))))","v":""},null,{"$f":"IF(C277=\"\",NA(),MATCH($B277&$C277,'Smelter Look-up'!$J:$J,0))","v":{"$error":"#N/A"}},null,0,null,null,null,""]
[null,{"$f":"IF(LEN(A278)=0,\"\",INDEX('Smelter Look-up'!$A:$A,MATCH($A278,'Smelter Look-up'!$E:$E,0)))","v":""},{"$f":"IF(LEN(A278)=0,\"\",INDEX('Smelter Look-up'!$C:$C,MATCH($A278,'Smelter Look-up'!$E:$E,0)))","v":""},null,{"$f":"IF(ISERROR($V278),\"\",OFFSET('Smelter Look-up'!$D$4,$V278-4,0)&\"\")","v":""},{"$f":"IF(ISERROR($V278),\"\",OFFSET('Smelter Look-up'!$E$4,$V278-4,0))","v":""},{"$f":"IF(C278=$X$4,\"Enter smelter details\",IF(ISERROR($V278),\"\",OFFSET('Smelter Look-up'!$F$4,$V278-4,0)))","v":""},{"$f":"IF(ISERROR($V278),\"\",OFFSET('Smelter Look-up'!$G$4,$V278-4,0))","v":""},{"$f":"IF(ISERROR($V278),\"\",OFFSET('Smelter Look-up'!$H$4,$V278-4,0))","v":""},{"$f":"IF(ISERROR($V278),\"\",OFFSET('Smelter Look-up'!$I$4,$V278-4,0))","v":""},{"$nulls":7},{"$f":"IF(ISERROR($V278),\"\",OFFSET('Smelter Look-up'!$C$4,$V278-4,0)&\"\")","v":""},"",{"$f":"IF(B278=\"\",\"\",IF(ISERROR(MATCH($J278,SorP!$B$1:$B$5661,0)),\"\",INDIRECT(\"'SorP'!$A$\"&MATCH($J278,SorP!$B$1:$B$5661,0))))","v":""},null,{"$f":"IF(C278=\"\",NA(),MATCH($B278&$C278,'Smelter Look-up'!$J:$J,0))","v":{"$error":"#N/A"}},null,0,null,null,null,""]
[null,{"$f":"IF(LEN(A279)=0,\"\",INDEX('Smelter Look-up'!$A:$A,MATCH($A279,'Smelter Look-up'!$E:$E,0)))","v":""},{"$f":"IF(LEN(A279)=0,\"\",INDEX('Smelter Look-up'!$C:$C,MATCH($A279,'Smelter Look-up'!$E:$E,0)))","v":""},null,{"$f":"IF(ISERROR($V279),\"\",OFFSET('Smelter Look-up'!$D$4,$V279-4,0)&\"\")","v":""},{"$f":"IF(ISERROR($V279),\"\",OFFSET('Smelter Look-up'!$E$4,$V279-4,0))","v":""},{"$f":"IF(C279=$X$4,\"Enter smelter details\",IF(ISERROR($V279),\"\",OFFSET('Smelter Look-up'!$F$4,$V279-4,0)))","v":""},{"$f":"IF(ISERROR($V279),\"\",OFFSET('Smelter Look-up'!$G$4,$V279-4,0))","v":""},{"$f":"IF(ISERROR($V279),\"\",OFFSET('Smelter Look-up'!$H$4,$V279-4,0))","v":""},{"$f":"IF(ISERROR($V279),\"\",OFFSET('Smelter Look-up'!$I$4,$V279-4,0))","v":""},{"$nulls":7},{"$f":"IF(ISERROR($V279),\"\",OFFSET('Smelter Look-up'!$C$4,$V279-4,0)&\"\")","v":""},"",{"$f":"IF(B279=\"\",\"\",IF(ISERROR(MATCH($J279,SorP!$B$1:$B$5661,0)),\"\",INDIRECT(\"'SorP'!$A$\"&MATCH($J279,SorP!$B$1:$B$5661,0))))","v":""},null,{"$f":"IF(C279=\"\",NA(),MATCH($B279&$C279,'Smelter Look-up'!$J:$J,0))","v":{"$error":"#N/A"}},null,0,null,null,null,""]
[null,{"$f":"IF(LEN(A280)=0,\"\",INDEX('Smelter Look-up'!$A:$A,MATCH($A280,'Smelter Look-up'!$E:$E,0)))","v":""},{"$f":"IF(LEN(A280)=0,\"\",INDEX('Smelter Look-up'!$C:$C,MATCH($A280,'Smelter Look-up'!$E:$E,0)))","v":""},null,{"$f":"IF(ISERROR($V280),\"\",OFFSET('Smelter Look-up'!$D$4,$V280-4,0)&\"\")","v":""},{"$f":"IF(ISERROR($V280),\"\",OFFSET('Smelter Look-up'!$E$4,$V280-4,0))","v":""},{"$f":"IF(C280=$X$4,\"Enter smelter details\",IF(ISERROR($V280),\"\",OFFSET('Smelter Look-up'!$F$4,$V280-4,0)))","v":""},{"$f":"IF(ISERROR($V280),\"\",OFFSET('Smelter Look-up'!$G$4,$V280-4,0))","v":""},{"$f":"IF(ISERROR($V280),\"\",OFFSET('Smelter Look-up'!$H$4,$V280-4,0))","v":""},{"$f":"IF(ISERROR($V280),\"\",OFFSET('Smelter Look-up'!$I$4,$V280-4,0))","v":""},{"$nulls":7},{"$f":"IF(ISERROR($V280),\"\",OFFSET('Smelter Look-up'!$C$4,$V280-4,0)&\"\")","v":""},"",{"$f":"IF(B280=\"\",\"\",IF(ISERROR(MATCH($J280,SorP!$B$1:$B$5661,0)),\"\",INDIRECT(\"'SorP'!$A$\"&MATCH($J280,SorP!$B$1:$B$5661,0))))","v":""},null,{"$f":"IF(C280=\"\",NA(),MATCH($B280&$C280,'Smelter Look-up'!$J:$J,0))","v":{"$error":"#N/A"}},null,0,null,null,null,""]
[null,{"$f":"IF(LEN(A281)=0,\"\",INDEX('Smelter Look-up'!$A:$A,MATCH($A281,'Smelter Look-up'!$E:$E,0)))","v":""},{"$f":"IF(LEN(A281)=0,\"\",INDEX('Smelter Look-up'!$C:$C,MATCH($A281,'Smelter Look-up'!$E:$E,0)))","v":""},null,{"$f":"IF(ISERROR($V281),\"\",OFFSET('Smelter Look-up'!$D$4,$V281-4,0)&\"\")","v":""},{"$f":"IF(ISERROR($V281),\"\",OFFSET('Smelter Look-up'!$E$4,$V281-4,0))","v":""},{"$f":"IF(C281=$X$4,\"Enter smelter details\",IF(ISERROR($V281),\"\",OFFSET('Smelter Look-up'!$F$4,$V281-4,0)))","v":""},{"$f":"IF(ISERROR($V281),\"\",OFFSET('Smelter Look-up'!$G$4,$V281-4,0))","v":""},{"$f":"IF(ISERROR($V281),\"\",OFFSET('Smelter Look-up'!$H$4,$V281-4,0))","v":""},{"$f":"IF(ISERROR($V281),\"\",OFFSET('Smelter Look-up'!$I$4,$V281-4,0))","v":""},{"$nulls":7},{"$f":"IF(ISERROR($V281),\"\",OFFSET('Smelter Look-up'!$C$4,$V281-4,0)&\"\")","v":""},"",{"$f":"IF(B281=\"\",\"\",IF(ISERROR(MATCH($J281,SorP!$B$1:$B$5661,0)),\"\",INDIRECT(\"'SorP'!$A$\"&MATCH($J281,SorP!$B$1:$B$5661,0))))","v":""},null,{"$f":"IF(C281=\"\",NA(),MATCH($B281&$C281,'Smelter Look-up'!$J:$J,0))","v":{"$error":"#N/A"}},null,0,null,null,null,""]
[null,{"$f":"IF(LEN(A282)=0,\"\",INDEX('Smelter Look-up'!$A:$A,MATCH($A282,'Smelter Look-up'!$E:$E,0)))","v":""},{"$f":"IF(LEN(A282)=0,\"\",INDEX('Smelter Look-up'!$C:$C,MATCH($A282,'Smelter Look-up'!$E:$E,0)))","v":""},null,{"$f":"IF(ISERROR($V282),\"\",OFFSET('Smelter Look-up'!$D$4,$V282-4,0)&\"\")","v":""},{"$f":"IF(ISERROR($V282),\"\",OFFSET('Smelter Look-up'!$E$4,$V282-4,0))","v":""},{"$f":"IF(C282=$X$4,\"Enter smelter details\",IF(ISERROR($V282),\"\",OFFSET('Smelter Look-up'!$F$4,$V282-4,0)))","v":""},{"$f":"IF(ISERROR($V282),\"\",OFFSET('Smelter Look-up'!$G$4,$V282-4,0))","v":""},{"$f":"IF(ISERROR($V282),\"\",OFFSET('Smelter Look-up'!$H$4,$V282-4,0))","v":""},{"$f":"IF(ISERROR($V282),\"\",OFFSET('Smelter Look-up'!$I$4,$V282-4,0))","v":""},{"$nulls":7},{"$f":"IF(ISERROR($V282),\"\",OFFSET('Smelter Look-up'!$C$4,$V282-4,0)&\"\")","v":""},"",{"$f":"IF(B282=\"\",\"\",IF(ISERROR(MATCH($J282,SorP!$B$1:$B$5661,0)),\"\",INDIRECT(\"'SorP'!$A$\"&MATCH($J282,SorP!$B$1:$B$5661,0))))","v":""},null,{"$f":"IF(C282=\"\",NA(),MATCH($B282&$C282,'Smelter Look-up'!$J:$J,0))","v":{"$error":"#N/A"}},null,0,null,null,null,""]
[null,{"$f":"IF(LEN(A283)=0,\"\",INDEX('Smelter Look-up'!$A:$A,MATCH($A283,'Smelter Look-up'!$E:$E,0)))","v":""},{"$f":"IF(LEN(A283)=0,\"\",INDEX('Smelter Look-up'!$C:$C,MATCH($A283,'Smelter Look-up'!$E:$E,0)))","v":""},null,{"$f":"IF(ISERROR($V283),\"\",OFFSET('Smelter Look-up'!$D$4,$V283-4,0)&\"\")","v":""},{"$f":"IF(ISERROR($V283),\"\",OFFSET('Smelter Look-up'!$E$4,$V283-4,0))","v":""},{"$f":"IF(C283=$X$4,\"Enter smelter details\",IF(ISERROR($V283),\"\",OFFSET('Smelter Look-up'!$F$4,$V283-4,0)))","v":""},{"$f":"IF(ISERROR($V283),\"\",OFFSET('Smelter Look-up'!$G$4,$V283-4,0))","v":""},{"$f":"IF(ISERROR($V283),\"\",OFFSET('Smelter Look-up'!$H$4,$V283-4,0))","v":""},{"$f":"IF(ISERROR($V283),\"\",OFFSET('Smelter Look-up'!$I$4,$V283-4,0))","v":""},{"$nulls":7},{"$f":"IF(ISERROR($V283),\"\",OFFSET('Smelter Look-up'!$C$4,$V283-4,0)&\"\")","v":""},"",{"$f":"IF(B283=\"\",\"\",IF(ISERROR(MATCH($J283,SorP!$B$1:$B$5661,0)),\"\",INDIRECT(\"'SorP'!$A$\"&MATCH($J283,SorP!$B$1:$B$5661,0))))","v":""},null,{"$f":"IF(C283=\"\",NA(),MATCH($B283&$C283,'Smelter Look-up'!$J:$J,0))","v":{"$error":"#N/A"}},null,0,null,null,null,""]
[null,{"$f":"IF(LEN(A284)=0,\"\",INDEX('Smelter Look-up'!$A:$A,MATCH($A284,'Smelter Look-up'!$E:$E,0)))","v":""},{"$f":"IF(LEN(A284)=0,\"\",INDEX('Smelter Look-up'!$C:$C,MATCH($A284,'Smelter Look-up'!$E:$E,0)))","v":""},null,{"$f":"IF(ISERROR($V284),\"\",OFFSET('Smelter Look-up'!$D$4,$V284-4,0)&\"\")","v":""},{"$f":"IF(ISERROR($V284),\"\",OFFSET('Smelter Look-up'!$E$4,$V284-4,0))","v":""},{"$f":"IF(C284=$X$4,\"Enter smelter details\",IF(ISERROR($V284),\"\",OFFSET('Smelter Look-up'!$F$4,$V284-4,0)))","v":""},{"$f":"IF(ISERROR($V284),\"\",OFFSET('Smelter Look-up'!$G$4,$V284-4,0))","v":""},{"$f":"IF(ISERROR($V284),\"\",OFFSET('Smelter Look-up'!$H$4,$V284-4,0))","v":""},{"$f":"IF(ISERROR($V284),\"\",OFFSET('Smelter Look-up'!$I$4,$V284-4,0))","v":""},{"$nulls":7},{"$f":"IF(ISERROR($V284),\"\",OFFSET('Smelter Look-up'!$C$4,$V284-4,0)&\"\")","v":""},"",{"$f":"IF(B284=\"\",\"\",IF(ISERROR(MATCH($J284,SorP!$B$1:$B$5661,0)),\"\",INDIRECT(\"'SorP'!$A$\"&MATCH($J284,SorP!$B$1:$B$5661,0))))","v":""},null,{"$f":"IF(C284=\"\",NA(),MATCH($B284&$C284,'Smelter Look-up'!$J:$J,0))","v":{"$error":"#N/A"}},null,0,null,null,null,""]
[null,{"$f":"IF(LEN(A285)=0,\"\",INDEX('Smelter Look-up'!$A:$A,MATCH($A285,'Smelter Look-up'!$E:$E,0)))","v":""},{"$f":"IF(LEN(A285)=0,\"\",INDEX('Smelter Look-up'!$C:$C,MATCH($A285,'Smelter Look-up'!$E:$E,0)))","v":""},null,{"$f":"IF(ISERROR($V285),\"\",OFFSET('Smelter Look-up'!$D$4,$V285-4,0)&\"\")","v":""},{"$f":"IF(ISERROR($V285),\"\",OFFSET('Smelter Look-up'!$E$4,$V285-4,0))","v":""},{"$f":"IF(C285=$X$4,\"Enter smelter details\",IF(ISERROR($V285),\"\",OFFSET('Smelter Look-up'!$F$4,$V285-4,0)))","v":""},{"$f":"IF(ISERROR($V285),\"\",OFFSET('Smelter Look-up'!$G$4,$V285-4,0))","v":""},{"$f":"IF(ISERROR($V285),\"\",OFFSET('Smelter Look-up'!$H$4,$V285-4,0))","v":""},{"$f":"IF(ISERROR($V285),\"\",OFFSET('Smelter Look-up'!$I$4,$V285-4,0))","v":""},{"$nulls":7},{"$f":"IF(ISERROR($V285),\"\",OFFSET('Smelter Look-up'!$C$4,$V285-4,0)&\"\")","v":""},"",{"$f":"IF(B285=\"\",\"\",IF(ISERROR(MATCH($J285,SorP!$B$1:$B$5661,0)),\"\",INDIRECT(\"'SorP'!$A$\"&MATCH($J285,SorP!$B$1:$B$5661,0))))","v":""},null,{"$f":"IF(C285=\"\",NA(),MATCH($B285&$C285,'Smelter Look-up'!$J:$J,0))","v":{"$error":"#N/A"}},null,0,null,null,null,""]
[null,{"$f":"IF(LEN(A286)=0,\"\",INDEX('Smelter Look-up'!$A:$A,MATCH($A286,'Smelter Look-up'!$E:$E,0)))","v":""},{"$f":"IF(LEN(A286)=0,\"\",INDEX('Smelter Look-up'!$C:$C,MATCH($A286,'Smelter Look-up'!$E:$E,0)))","v":""},null,{"$f":"IF(ISERROR($V286),\"\",OFFSET('Smelter Look-up'!$D$4,$V286-4,0)&\"\")","v":""},{"$f":"IF(ISERROR($V286),\"\",OFFSET('Smelter Look-up'!$E$4,$V286-4,0))","v":""},{"$f":"IF(C286=$X$4,\"Enter smelter details\",IF(ISERROR($V286),\"\",OFFSET('Smelter Look-up'!$F$4,$V286-4,0)))","v":""},{"$f":"IF(ISERROR($V286),\"\",OFFSET('Smelter Look-up'!$G$4,$V286-4,0))","v":""},{"$f":"IF(ISERROR($V286),\"\",OFFSET('Smelter Look-up'!$H$4,$V286-4,0))","v":""},{"$f":"IF(ISERROR($V286),\"\",OFFSET('Smelter Look-up'!$I$4,$V286-4,0))","v":""},{"$nulls":7},{"$f":"IF(ISERROR($V286),\"\",OFFSET('Smelter Look-up'!$C$4,$V286-4,0)&\"\")","v":""},"",{"$f":"IF(B286=\"\",\"\",IF(ISERROR(MATCH($J286,SorP!$B$1:$B$5661,0)),\"\",INDIRECT(\"'SorP'!$A$\"&MATCH($J286,SorP!$B$1:$B$5661,0))))","v":""},null,{"$f":"IF(C286=\"\",NA(),MATCH($B286&$C286,'Smelter Look-up'!$J:$J,0))","v":{"$error":"#N/A"}},null,0,null,null,null,""]
[null,{"$f":"IF(LEN(A287)=0,\"\",INDEX('Smelter Look-up'!$A:$A,MATCH($A287,'Smelter Look-up'!$E:$E,0)))","v":""},{"$f":"IF(LEN(A287)=0,\"\",INDEX('Smelter Look-up'!$C:$C,MATCH($A287,'Smelter Look-up'!$E:$E,0)))","v":""},null,{"$f":"IF(ISERROR($V287),\"\",OFFSET('Smelter Look-up'!$D$4,$V287-4,0)&\"\")","v":""},{"$f":"IF(ISERROR($V287),\"\",OFFSET('Smelter Look-up'!$E$4,$V287-4,0))","v":""},{"$f":"IF(C287=$X$4,\"Enter smelter details\",IF(ISERROR($V287),\"\",OFFSET('Smelter Look-up'!$F$4,$V287-4,0)))","v":""},{"$f":"IF(ISERROR($V287),\"\",OFFSET('Smelter Look-up'!$G$4,$V287-4,0))","v":""},{"$f":"IF(ISERROR($V287),\"\",OFFSET('Smelter Look-up'!$H$4,$V287-4,0))","v":""},{"$f":"IF(ISERROR($V287),\"\",OFFSET('Smelter Look-up'!$I$4,$V287-4,0))","v":""},{"$nulls":7},{"$f":"IF(ISERROR($V287),\"\",OFFSET('Smelter Look-up'!$C$4,$V287-4,0)&\"\")","v":""},"",{"$f":"IF(B287=\"\",\"\",IF(ISERROR(MATCH($J287,SorP!$B$1:$B$5661,0)),\"\",INDIRECT(\"'SorP'!$A$\"&MATCH($J287,SorP!$B$1:$B$5661,0))))","v":""},null,{"$f":"IF(C287=\"\",NA(),MATCH($B287&$C287,'Smelter Look-up'!$J:$J,0))","v":{"$error":"#N/A"}},null,0,null,null,null,""]
[null,{"$f":"IF(LEN(A288)=0,\"\",INDEX('Smelter Look-up'!$A:$A,MATCH($A288,'Smelter Look-up'!$E:$E,0)))","v":""},{"$f":"IF(LEN(A288)=0,\"\",INDEX('Smelter Look-up'!$C:$C,MATCH($A288,'Smelter Look-up'!$E:$E,0)))","v":""},null,{"$f":"IF(ISERROR($V288),\"\",OFFSET('Smelter Look-up'!$D$4,$V288-4,0)&\"\")","v":""},{"$f":"IF(ISERROR($V288),\"\",OFFSET('Smelter Look-up'!$E$4,$V288-4,0))","v":""},{"$f":"IF(C288=$X$4,\"Enter smelter details\",IF(ISERROR($V288),\"\",OFFSET('Smelter Look-up'!$F$4,$V288-4,0)))","v":""},{"$f":"IF(ISERROR($V288),\"\",OFFSET('Smelter Look-up'!$G$4,$V288-4,0))","v":""},{"$f":"IF(ISERROR($V288),\"\",OFFSET('Smelter Look-up'!$H$4,$V288-4,0))","v":""},{"$f":"IF(ISERROR($V288),\"\",OFFSET('Smelter Look-up'!$I$4,$V288-4,0))","v":""},{"$nulls":7},{"$f":"IF(ISERROR($V288),\"\",OFFSET('Smelter Look-up'!$C$4,$V288-4,0)&\"\")","v":""},"",{"$f":"IF(B288=\"\",\"\",IF(ISERROR(MATCH($J288,SorP!$B$1:$B$5661,0)),\"\",INDIRECT(\"'SorP'!$A$\"&MATCH($J288,SorP!$B$1:$B$5661,0))))","v":""},null,{"$f":"IF(C288=\"\",NA(),MATCH($B288&$C288,'Smelter Look-up'!$J:$J,0))","v":{"$error":"#N/A"}},null,0,null,null,null,""]
[null,{"$f":"IF(LEN(A289)=0,\"\",INDEX('Smelter Look-up'!$A:$A,MATCH($A289,'Smelter Look-up'!$E:$E,0)))","v":""},{"$f":"IF(LEN(A289)=0,\"\",INDEX('Smelter Look-up'!$C:$C,MATCH($A289,'Smelter Look-up'!$E:$E,0)))","v":""},null,{"$f":"IF(ISERROR($V289),\"\",OFFSET('Smelter Look-up'!$D$4,$V289-4,0)&\"\")","v":""},{"$f":"IF(ISERROR($V289),\"\",OFFSET('Smelter Look-up'!$E$4,$V289-4,0))","v":""},{"$f":"IF(C289=$X$4,\"Enter smelter details\",IF(ISERROR($V289),\"\",OFFSET('Smelter Look-up'!$F$4,$V289-4,0)))","v":""},{"$f":"IF(ISERROR($V289),\"\",OFFSET('Smelter Look-up'!$G$4,$V289-4,0))","v":""},{"$f":"IF(ISERROR($V289),\"\",OFFSET('Smelter Look-up'!$H$4,$V289-4,0))","v":""},{"$f":"IF(ISERROR($V289),\"\",OFFSET('Smelter Look-up'!$I$4,$V289-4,0))","v":""},{"$nulls":7},{"$f":"IF(ISERROR($V289),\"\",OFFSET('Smelter Look-up'!$C$4,$V289-4,0)&\"\")","v":""},"",{"$f":"IF(B289=\"\",\"\",IF(ISERROR(MATCH($J289,SorP!$B$1:$B$5661,0)),\"\",INDIRECT(\"'SorP'!$A$\"&MATCH($J289,SorP!$B$1:$B$5661,0))))","v":""},null,{"$f":"IF(C289=\"\",NA(),MATCH($B289&$C289,'Smelter Look-up'!$J:$J,0))","v":{"$error":"#N/A"}},null,0,null,null,null,""]
[null,{"$f":"IF(LEN(A290)=0,\"\",INDEX('Smelter Look-up'!$A:$A,MATCH($A290,'Smelter Look-up'!$E:$E,0)))","v":""},{"$f":"IF(LEN(A290)=0,\"\",INDEX('Smelter Look-up'!$C:$C,MATCH($A290,'Smelter Look-up'!$E:$E,0)))","v":""},null,{"$f":"IF(ISERROR($V290),\"\",OFFSET('Smelter Look-up'!$D$4,$V290-4,0)&\"\")","v":""},{"$f":"IF(ISERROR($V290),\"\",OFFSET('Smelter Look-up'!$E$4,$V290-4,0))","v":""},{"$f":"IF(C290=$X$4,\"Enter smelter details\",IF(ISERROR($V290),\"\",OFFSET('Smelter Look-up'!$F$4,$V290-4,0)))","v":""},{"$f":"IF(ISERROR($V290),\"\",OFFSET('Smelter Look-up'!$G$4,$V290-4,0))","v":""},{"$f":"IF(ISERROR($V290),\"\",OFFSET('Smelter Look-up'!$H$4,$V290-4,0))","v":""},{"$f":"IF(ISERROR($V290),\"\",OFFSET('Smelter Look-up'!$I$4,$V290-4,0))","v":""},{"$nulls":7},{"$f":"IF(ISERROR($V290),\"\",OFFSET('Smelter Look-up'!$C$4,$V290-4,0)&\"\")","v":""},"",{"$f":"IF(B290=\"\",\"\",IF(ISERROR(MATCH($J290,SorP!$B$1:$B$5661,0)),\"\",INDIRECT(\"'SorP'!$A$\"&MATCH($J290,SorP!$B$1:$B$5661,0))))","v":""},null,{"$f":"IF(C290=\"\",NA(),MATCH($B290&$C290,'Smelter Look-up'!$J:$J,0))","v":{"$error":"#N/A"}},null,0,null,null,null,""]
[null,{"$f":"IF(LEN(A291)=0,\"\",INDEX('Smelter Look-up'!$A:$A,MATCH($A291,'Smelter Look-up'!$E:$E,0)))","v":""},{"$f":"IF(LEN(A291)=0,\"\",INDEX('Smelter Look-up'!$C:$C,MATCH($A291,'Smelter Look-up'!$E:$E,0)))","v":""},null,{"$f":"IF(ISERROR($V291),\"\",OFFSET('Smelter Look-up'!$D$4,$V291-4,0)&\"\")","v":""},{"$f":"IF(ISERROR($V291),\"\",OFFSET('Smelter Look-up'!$E$4,$V291-4,0))","v":""},{"$f":"IF(C291=$X$4,\"Enter smelter details\",IF(ISERROR($V291),\"\",OFFSET('Smelter Look-up'!$F$4,$V291-4,0)))","v":""},{"$f":"IF(ISERROR($V291),\"\",OFFSET('Smelter Look-up'!$G$4,$V291-4,0))","v":""},{"$f":"IF(ISERROR($V291),\"\",OFFSET('Smelter Look-up'!$H$4,$V291-4,0))","v":""},{"$f":"IF(ISERROR($V291),\"\",OFFSET('Smelter Look-up'!$I$4,$V291-4,0))","v":""},{"$nulls":7},{"$f":"IF(ISERROR($V291),\"\",OFFSET('Smelter Look-up'!$C$4,$V291-4,0)&\"\")","v":""},"",{"$f":"IF(B291=\"\",\"\",IF(ISERROR(MATCH($J291,SorP!$B$1:$B$5661,0)),\"\",INDIRECT(\"'SorP'!$A$\"&MATCH($J291,SorP!$B$1:$B$5661,0))))","v":""},null,{"$f":"IF(C291=\"\",NA(),MATCH($B291&$C291,'Smelter Look-up'!$J:$J,0))","v":{"$error":"#N/A"}},null,0,null,null,null,""]
[null,{"$f":"IF(LEN(A292)=0,\"\",INDEX('Smelter Look-up'!$A:$A,MATCH($A292,'Smelter Look-up'!$E:$E,0)))","v":""},{"$f":"IF(LEN(A292)=0,\"\",INDEX('Smelter Look-up'!$C:$C,MATCH($A292,'Smelter Look-up'!$E:$E,0)))","v":""},null,{"$f":"IF(ISERROR($V292),\"\",OFFSET('Smelter Look-up'!$D$4,$V292-4,0)&\"\")","v":""},{"$f":"IF(ISERROR($V292),\"\",OFFSET('Smelter Look-up'!$E$4,$V292-4,0))","v":""},{"$f":"IF(C292=$X$4,\"Enter smelter details\",IF(ISERROR($V292),\"\",OFFSET('Smelter Look-up'!$F$4,$V292-4,0)))","v":""},{"$f":"IF(ISERROR($V292),\"\",OFFSET('Smelter Look-up'!$G$4,$V292-4,0))","v":""},{"$f":"IF(ISERROR($V292),\"\",OFFSET('Smelter Look-up'!$H$4,$V292-4,0))","v":""},{"$f":"IF(ISERROR($V292),\"\",OFFSET('Smelter Look-up'!$I$4,$V292-4,0))","v":""},{"$nulls":7},{"$f":"IF(ISERROR($V292),\"\",OFFSET('Smelter Look-up'!$C$4,$V292-4,0)&\"\")","v":""},"",{"$f":"IF(B292=\"\",\"\",IF(ISERROR(MATCH($J292,SorP!$B$1:$B$5661,0)),\"\",INDIRECT(\"'SorP'!$A$\"&MATCH($J292,SorP!$B$1:$B$5661,0))))","v":""},null,{"$f":"IF(C292=\"\",NA(),MATCH($B292&$C292,'Smelter Look-up'!$J:$J,0))","v":{"$error":"#N/A"}},null,0,null,null,null,""]
[null,{"$f":"IF(LEN(A293)=0,\"\",INDEX('Smelter Look-up'!$A:$A,MATCH($A293,'Smelter Look-up'!$E:$E,0)))","v":""},{"$f":"IF(LEN(A293)=0,\"\",INDEX('Smelter Look-up'!$C:$C,MATCH($A293,'Smelter Look-up'!$E:$E,0)))","v":""},null,{"$f":"IF(ISERROR($V293),\"\",OFFSET('Smelter Look-up'!$D$4,$V293-4,0)&\"\")","v":""},{"$f":"IF(ISERROR($V293),\"\",OFFSET('Smelter Look-up'!$E$4,$V293-4,0))","v":""},{"$f":"IF(C293=$X$4,\"Enter smelter details\",IF(ISERROR($V293),\"\",OFFSET('Smelter Look-up'!$F$4,$V293-4,0)))","v":""},{"$f":"IF(ISERROR($V293),\"\",OFFSET('Smelter Look-up'!$G$4,$V293-4,0))","v":""},{"$f":"IF(ISERROR($V293),\"\",OFFSET('Smelter Look-up'!$H$4,$V293-4,0))","v":""},{"$f":"IF(ISERROR($V293),\"\",OFFSET('Smelter Look-up'!$I$4,$V293-4,0))","v":""},{"$nulls":7},{"$f":"IF(ISERROR($V293),\"\",OFFSET('Smelter Look-up'!$C$4,$V293-4,0)&\"\")","v":""},"",{"$f":"IF(B293=\"\",\"\",IF(ISERROR(MATCH($J293,SorP!$B$1:$B$5661,0)),\"\",INDIRECT(\"'SorP'!$A$\"&MATCH($J293,SorP!$B$1:$B$5661,0))))","v":""},null,{"$f":"IF(C293=\"\",NA(),MATCH($B293&$C293,'Smelter Look-up'!$J:$J,0))","v":{"$error":"#N/A"}},null,0,null,null,null,""]
[null,{"$f":"IF(LEN(A294)=0,\"\",INDEX('Smelter Look-up'!$A:$A,MATCH($A294,'Smelter Look-up'!$E:$E,0)))","v":""},{"$f":"IF(LEN(A294)=0,\"\",INDEX('Smelter Look-up'!$C:$C,MATCH($A294,'Smelter Look-up'!$E:$E,0)))","v":""},null,{"$f":"IF(ISERROR($V294),\"\",OFFSET('Smelter Look-up'!$D$4,$V294-4,0)&\"\")","v":""},{"$f":"IF(ISERROR($V294),\"\",OFFSET('Smelter Look-up'!$E$4,$V294-4,0))","v":""},{"$f":"IF(C294=$X$4,\"Enter smelter details\",IF(ISERROR($V294),\"\",OFFSET('Smelter Look-up'!$F$4,$V294-4,0)))","v":""},{"$f":"IF(ISERROR($V294),\"\",OFFSET('Smelter Look-up'!$G$4,$V294-4,0))","v":""},{"$f":"IF(ISERROR($V294),\"\",OFFSET('Smelter Look-up'!$H$4,$V294-4,0))","v":""},{"$f":"IF(ISERROR($V294),\"\",OFFSET('Smelter Look-up'!$I$4,$V294-4,0))","v":""},{"$nulls":7},{"$f":"IF(ISERROR($V294),\"\",OFFSET('Smelter Look-up'!$C$4,$V294-4,0)&\"\")","v":""},"",{"$f":"IF(B294=\"\",\"\",IF(ISERROR(MATCH($J294,SorP!$B$1:$B$5661,0)),\"\",INDIRECT(\"'SorP'!$A$\"&MATCH($J294,SorP!$B$1:$B$5661,0))))","v":""},null,{"$f":"IF(C294=\"\",NA(),MATCH($B294&$C294,'Smelter Look-up'!$J:$J,0))","v":{"$error":"#N/A"}},null,0,null,null,null,""]
[null,{"$f":"IF(LEN(A295)=0,\"\",INDEX('Smelter Look-up'!$A:$A,MATCH($A295,'Smelter Look-up'!$E:$E,0)))","v":""},{"$f":"IF(LEN(A295)=0,\"\",INDEX('Smelter Look-up'!$C:$C,MATCH($A295,'Smelter Look-up'!$E:$E,0)))","v":""},null,{"$f":"IF(ISERROR($V295),\"\",OFFSET('Smelter Look-up'!$D$4,$V295-4,0)&\"\")","v":""},{"$f":"IF(ISERROR($V295),\"\",OFFSET('Smelter Look-up'!$E$4,$V295-4,0))","v":""},{"$f":"IF(C295=$X$4,\"Enter smelter details\",IF(ISERROR($V295),\"\",OFFSET('Smelter Look-up'!$F$4,$V295-4,0)))","v":""},{"$f":"IF(ISERROR($V295),\"\",OFFSET('Smelter Look-up'!$G$4,$V295-4,0))","v":""},{"$f":"IF(ISERROR($V295),\"\",OFFSET('Smelter Look-up'!$H$4,$V295-4,0))","v":""},{"$f":"IF(ISERROR($V295),\"\",OFFSET('Smelter Look-up'!$I$4,$V295-4,0))","v":""},{"$nulls":7},{"$f":"IF(ISERROR($V295),\"\",OFFSET('Smelter Look-up'!$C$4,$V295-4,0)&\"\")","v":""},"",{"$f":"IF(B295=\"\",\"\",IF(ISERROR(MATCH($J295,SorP!$B$1:$B$5661,0)),\"\",INDIRECT(\"'SorP'!$A$\"&MATCH($J295,SorP!$B$1:$B$5661,0))))","v":""},null,{"$f":"IF(C295=\"\",NA(),MATCH($B295&$C295,'Smelter Look-up'!$J:$J,0))","v":{"$error":"#N/A"}},null,0,null,null,null,""]
[null,{"$f":"IF(LEN(A296)=0,\"\",INDEX('Smelter Look-up'!$A:$A,MATCH($A296,'Smelter Look-up'!$E:$E,0)))","v":""},{"$f":"IF(LEN(A296)=0,\"\",INDEX('Smelter Look-up'!$C:$C,MATCH($A296,'Smelter Look-up'!$E:$E,0)))","v":""},null,{"$f":"IF(ISERROR($V296),\"\",OFFSET('Smelter Look-up'!$D$4,$V296-4,0)&\"\")","v":""},{"$f":"IF(ISERROR($V296),\"\",OFFSET('Smelter Look-up'!$E$4,$V296-4,0))","v":""},{"$f":"IF(C296=$X$4,\"Enter smelter details\",IF(ISERROR($V296),\"\",OFFSET('Smelter Look-up'!$F$4,$V296-4,0)))","v":""},{"$f":"IF(ISERROR($V296),\"\",OFFSET('Smelter Look-up'!$G$4,$V296-4,0))","v":""},{"$f":"IF(ISERROR($V296),\"\",OFFSET('Smelter Look-up'!$H$4,$V296-4,0))","v":""},{"$f":"IF(ISERROR($V296),\"\",OFFSET('Smelter Look-up'!$I$4,$V296-4,0))","v":""},{"$nulls":7},{"$f":"IF(ISERROR($V296),\"\",OFFSET('Smelter Look-up'!$C$4,$V296-4,0)&\"\")","v":""},"",{"$f":"IF(B296=\"\",\"\",IF(ISERROR(MATCH($J296,SorP!$B$1:$B$5661,0)),\"\",INDIRECT(\"'SorP'!$A$\"&MATCH($J296,SorP!$B$1:$B$5661,0))))","v":""},null,{"$f":"IF(C296=\"\",NA(),MATCH($B296&$C296,'Smelter Look-up'!$J:$J,0))","v":{"$error":"#N/A"}},null,0,null,null,null,""]
[null,{"$f":"IF(LEN(A297)=0,\"\",INDEX('Smelter Look-up'!$A:$A,MATCH($A297,'Smelter Look-up'!$E:$E,0)))","v":""},{"$f":"IF(LEN(A297)=0,\"\",INDEX('Smelter Look-up'!$C:$C,MATCH($A297,'Smelter Look-up'!$E:$E,0)))","v":""},null,{"$f":"IF(ISERROR($V297),\"\",OFFSET('Smelter Look-up'!$D$4,$V297-4,0)&\"\")","v":""},{"$f":"IF(ISERROR($V297),\"\",OFFSET('Smelter Look-up'!$E$4,$V297-4,0))","v":""},{"$f":"IF(C297=$X$4,\"Enter smelter details\",IF(ISERROR($V297),\"\",OFFSET('Smelter Look-up'!$F$4,$V297-4,0)))","v":""},{"$f":"IF(ISERROR($V297),\"\",OFFSET('Smelter Look-up'!$G$4,$V297-4,0))","v":""},{"$f":"IF(ISERROR($V297),\"\",OFFSET('Smelter Look-up'!$H$4,$V297-4,0))","v":""},{"$f":"IF(ISERROR($V297),\"\",OFFSET('Smelter Look-up'!$I$4,$V297-4,0))","v":""},{"$nulls":7},{"$f":"IF(ISERROR($V297),\"\",OFFSET('Smelter Look-up'!$C$4,$V297-4,0)&\"\")","v":""},"",{"$f":"IF(B297=\"\",\"\",IF(ISERROR(MATCH($J297,SorP!$B$1:$B$5661,0)),\"\",INDIRECT(\"'SorP'!$A$\"&MATCH($J297,SorP!$B$1:$B$5661,0))))","v":""},null,{"$f":"IF(C297=\"\",NA(),MATCH($B297&$C297,'Smelter Look-up'!$J:$J,0))","v":{"$error":"#N/A"}},null,0,null,null,null,""]
[null,{"$f":"IF(LEN(A298)=0,\"\",INDEX('Smelter Look-up'!$A:$A,MATCH($A298,'Smelter Look-up'!$E:$E,0)))","v":""},{"$f":"IF(LEN(A298)=0,\"\",INDEX('Smelter Look-up'!$C:$C,MATCH($A298,'Smelter Look-up'!$E:$E,0)))","v":""},null,{"$f":"IF(ISERROR($V298),\"\",OFFSET('Smelter Look-up'!$D$4,$V298-4,0)&\"\")","v":""},{"$f":"IF(ISERROR($V298),\"\",OFFSET('Smelter Look-up'!$E$4,$V298-4,0))","v":""},{"$f":"IF(C298=$X$4,\"Enter smelter details\",IF(ISERROR($V298),\"\",OFFSET('Smelter Look-up'!$F$4,$V298-4,0)))","v":""},{"$f":"IF(ISERROR($V298),\"\",OFFSET('Smelter Look-up'!$G$4,$V298-4,0))","v":""},{"$f":"IF(ISERROR($V298),\"\",OFFSET('Smelter Look-up'!$H$4,$V298-4,0))","v":""},{"$f":"IF(ISERROR($V298),\"\",OFFSET('Smelter Look-up'!$I$4,$V298-4,0))","v":""},{"$nulls":7},{"$f":"IF(ISERROR($V298),\"\",OFFSET('Smelter Look-up'!$C$4,$V298-4,0)&\"\")","v":""},"",{"$f":"IF(B298=\"\",\"\",IF(ISERROR(MATCH($J298,SorP!$B$1:$B$5661,0)),\"\",INDIRECT(\"'SorP'!$A$\"&MATCH($J298,SorP!$B$1:$B$5661,0))))","v":""},null,{"$f":"IF(C298=\"\",NA(),MATCH($B298&$C298,'Smelter Look-up'!$J:$J,0))","v":{"$error":"#N/A"}},null,0,null,null,null,""]
[null,{"$f":"IF(LEN(A299)=0,\"\",INDEX('Smelter Look-up'!$A:$A,MATCH($A299,'Smelter Look-up'!$E:$E,0)))","v":""},{"$f":"IF(LEN(A299)=0,\"\",INDEX('Smelter Look-up'!$C:$C,MATCH($A299,'Smelter Look-up'!$E:$E,0)))","v":""},null,{"$f":"IF(ISERROR($V299),\"\",OFFSET('Smelter Look-up'!$D$4,$V299-4,0)&\"\")","v":""},{"$f":"IF(ISERROR($V299),\"\",OFFSET('Smelter Look-up'!$E$4,$V299-4,0))","v":""},{"$f":"IF(C299=$X$4,\"Enter smelter details\",IF(ISERROR($V299),\"\",OFFSET('Smelter Look-up'!$F$4,$V299-4,0)))","v":""},{"$f":"IF(ISERROR($V299),\"\",OFFSET('Smelter Look-up'!$G$4,$V299-4,0))","v":""},{"$f":"IF(ISERROR($V299),\"\",OFFSET('Smelter Look-up'!$H$4,$V299-4,0))","v":""},{"$f":"IF(ISERROR($V299),\"\",OFFSET('Smelter Look-up'!$I$4,$V299-4,0))","v":""},{"$nulls":7},{"$f":"IF(ISERROR($V299),\"\",OFFSET('Smelter Look-up'!$C$4,$V299-4,0)&\"\")","v":""},"",{"$f":"IF(B299=\"\",\"\",IF(ISERROR(MATCH($J299,SorP!$B$1:$B$5661,0)),\"\",INDIRECT(\"'SorP'!$A$\"&MATCH($J299,SorP!$B$1:$B$5661,0))))","v":""},null,{"$f":"IF(C299=\"\",NA(),MATCH($B299&$C299,'Smelter Look-up'!$J:$J,0))","v":{"$error":"#N/A"}},null,0,null,null,null,""]
[null,{"$f":"IF(LEN(A300)=0,\"\",INDEX('Smelter Look-up'!$A:$A,MATCH($A300,'Smelter Look-up'!$E:$E,0)))","v":""},{"$f":"IF(LEN(A300)=0,\"\",INDEX('Smelter Look-up'!$C:$C,MATCH($A300,'Smelter Look-up'!$E:$E,0)))","v":""},null,{"$f":"IF(ISERROR($V300),\"\",OFFSET('Smelter Look-up'!$D$4,$V300-4,0)&\"\")","v":""},{"$f":"IF(ISERROR($V300),\"\",OFFSET('Smelter Look-up'!$E$4,$V300-4,0))","v":""},{"$f":"IF(C300=$X$4,\"Enter smelter details\",IF(ISERROR($V300),\"\",OFFSET('Smelter Look-up'!$F$4,$V300-4,0)))","v":""},{"$f":"IF(ISERROR($V300),\"\",OFFSET('Smelter Look-up'!$G$4,$V300-4,0))","v":""},{"$f":"IF(ISERROR($V300),\"\",OFFSET('Smelter Look-up'!$H$4,$V300-4,0))","v":""},{"$f":"IF(ISERROR($V300),\"\",OFFSET('Smelter Look-up'!$I$4,$V300-4,0))","v":""},{"$nulls":7},{"$f":"IF(ISERROR($V300),\"\",OFFSET('Smelter Look-up'!$C$4,$V300-4,0)&\"\")","v":""},"",{"$f":"IF(B300=\"\",\"\",IF(ISERROR(MATCH($J300,SorP!$B$1:$B$5661,0)),\"\",INDIRECT(\"'SorP'!$A$\"&MATCH($J300,SorP!$B$1:$B$5661,0))))","v":""},null,{"$f":"IF(C300=\"\",NA(),MATCH($B300&$C300,'Smelter Look-up'!$J:$J,0))","v":{"$error":"#N/A"}},null,0,null,null,null,""]
[null,{"$f":"IF(LEN(A301)=0,\"\",INDEX('Smelter Look-up'!$A:$A,MATCH($A301,'Smelter Look-up'!$E:$E,0)))","v":""},{"$f":"IF(LEN(A301)=0,\"\",INDEX('Smelter Look-up'!$C:$C,MATCH($A301,'Smelter Look-up'!$E:$E,0)))","v":""},null,{"$f":"IF(ISERROR($V301),\"\",OFFSET('Smelter Look-up'!$D$4,$V301-4,0)&\"\")","v":""},{"$f":"IF(ISERROR($V301),\"\",OFFSET('Smelter Look-up'!$E$4,$V301-4,0))","v":""},{"$f":"IF(C301=$X$4,\"Enter smelter details\",IF(ISERROR($V301),\"\",OFFSET('Smelter Look-up'!$F$4,$V301-4,0)))","v":""},{"$f":"IF(ISERROR($V301),\"\",OFFSET('Smelter Look-up'!$G$4,$V301-4,0))","v":""},{"$f":"IF(ISERROR($V301),\"\",OFFSET('Smelter Look-up'!$H$4,$V301-4,0))","v":""},{"$f":"IF(ISERROR($V301),\"\",OFFSET('Smelter Look-up'!$I$4,$V301-4,0))","v":""},{"$nulls":7},{"$f":"IF(ISERROR($V301),\"\",OFFSET('Smelter Look-up'!$C$4,$V301-4,0)&\"\")","v":""},"",{"$f":"IF(B301=\"\",\"\",IF(ISERROR(MATCH($J301,SorP!$B$1:$B$5661,0)),\"\",INDIRECT(\"'SorP'!$A$\"&MATCH($J301,SorP!$B$1:$B$5661,0))))","v":""},null,{"$f":"IF(C301=\"\",NA(),MATCH($B301&$C301,'Smelter Look-up'!$J:$J,0))","v":{"$error":"#N/A"}},null,0,null,null,null,""]
[null,{"$f":"IF(LEN(A302)=0,\"\",INDEX('Smelter Look-up'!$A:$A,MATCH($A302,'Smelter Look-up'!$E:$E,0)))","v":""},{"$f":"IF(LEN(A302)=0,\"\",INDEX('Smelter Look-up'!$C:$C,MATCH($A302,'Smelter Look-up'!$E:$E,0)))","v":""},null,{"$f":"IF(ISERROR($V302),\"\",OFFSET('Smelter Look-up'!$D$4,$V302-4,0)&\"\")","v":""},{"$f":"IF(ISERROR($V302),\"\",OFFSET('Smelter Look-up'!$E$4,$V302-4,0))","v":""},{"$f":"IF(C302=$X$4,\"Enter smelter details\",IF(ISERROR($V302),\"\",OFFSET('Smelter Look-up'!$F$4,$V302-4,0)))","v":""},{"$f":"IF(ISERROR($V302),\"\",OFFSET('Smelter Look-up'!$G$4,$V302-4,0))","v":""},{"$f":"IF(ISERROR($V302),\"\",OFFSET('Smelter Look-up'!$H$4,$V302-4,0))","v":""},{"$f":"IF(ISERROR($V302),\"\",OFFSET('Smelter Look-up'!$I$4,$V302-4,0))","v":""},{"$nulls":7},{"$f":"IF(ISERROR($V302),\"\",OFFSET('Smelter Look-up'!$C$4,$V302-4,0)&\"\")","v":""},"",{"$f":"IF(B302=\"\",\"\",IF(ISERROR(MATCH($J302,SorP!$B$1:$B$5661,0)),\"\",INDIRECT(\"'SorP'!$A$\"&MATCH($J302,SorP!$B$1:$B$5661,0))))","v":""},null,{"$f":"IF(C302=\"\",NA(),MATCH($B302&$C302,'Smelter Look-up'!$J:$J,0))","v":{"$error":"#N/A"}},null,0,null,null,null,""]
[null,{"$f":"IF(LEN(A303)=0,\"\",INDEX('Smelter Look-up'!$A:$A,MATCH($A303,'Smelter Look-up'!$E:$E,0)))","v":""},{"$f":"IF(LEN(A303)=0,\"\",INDEX('Smelter Look-up'!$C:$C,MATCH($A303,'Smelter Look-up'!$E:$E,0)))","v":""},null,{"$f":"IF(ISERROR($V303),\"\",OFFSET('Smelter Look-up'!$D$4,$V303-4,0)&\"\")","v":""},{"$f":"IF(ISERROR($V303),\"\",OFFSET('Smelter Look-up'!$E$4,$V303-4,0))","v":""},{"$f":"IF(C303=$X$4,\"Enter smelter details\",IF(ISERROR($V303),\"\",OFFSET('Smelter Look-up'!$F$4,$V303-4,0)))","v":""},{"$f":"IF(ISERROR($V303),\"\",OFFSET('Smelter Look-up'!$G$4,$V303-4,0))","v":""},{"$f":"IF(ISERROR($V303),\"\",OFFSET('Smelter Look-up'!$H$4,$V303-4,0))","v":""},{"$f":"IF(ISERROR($V303),\"\",OFFSET('Smelter Look-up'!$I$4,$V303-4,0))","v":""},{"$nulls":7},{"$f":"IF(ISERROR($V303),\"\",OFFSET('Smelter Look-up'!$C$4,$V303-4,0)&\"\")","v":""},"",{"$f":"IF(B303=\"\",\"\",IF(ISERROR(MATCH($J303,SorP!$B$1:$B$5661,0)),\"\",INDIRECT(\"'SorP'!$A$\"&MATCH($J303,SorP!$B$1:$B$5661,0))))","v":""},null,{"$f":"IF(C303=\"\",NA(),MATCH($B303&$C303,'Smelter Look-up'!$J:$J,0))","v":{"$error":"#N/A"}},null,0,null,null,null,""]
[null,{"$f":"IF(LEN(A304)=0,\"\",INDEX('Smelter Look-up'!$A:$A,MATCH($A304,'Smelter Look-up'!$E:$E,0)))","v":""},{"$f":"IF(LEN(A304)=0,\"\",INDEX('Smelter Look-up'!$C:$C,MATCH($A304,'Smelter Look-up'!$E:$E,0)))","v":""},null,{"$f":"IF(ISERROR($V304),\"\",OFFSET('Smelter Look-up'!$D$4,$V304-4,0)&\"\")","v":""},{"$f":"IF(ISERROR($V304),\"\",OFFSET('Smelter Look-up'!$E$4,$V304-4,0))","v":""},{"$f":"IF(C304=$X$4,\"Enter smelter details\",IF(ISERROR($V304),\"\",OFFSET('Smelter Look-up'!$F$4,$V304-4,0)))","v":""},{"$f":"IF(ISERROR($V304),\"\",OFFSET('Smelter Look-up'!$G$4,$V304-4,0))","v":""},{"$f":"IF(ISERROR($V304),\"\",OFFSET('Smelter Look-up'!$H$4,$V304-4,0))","v":""},{"$f":"IF(ISERROR($V304),\"\",OFFSET('Smelter Look-up'!$I$4,$V304-4,0))","v":""},{"$nulls":7},{"$f":"IF(ISERROR($V304),\"\",OFFSET('Smelter Look-up'!$C$4,$V304-4,0)&\"\")","v":""},"",{"$f":"IF(B304=\"\",\"\",IF(ISERROR(MATCH($J304,SorP!$B$1:$B$5661,0)),\"\",INDIRECT(\"'SorP'!$A$\"&MATCH($J304,SorP!$B$1:$B$5661,0))))","v":""},null,{"$f":"IF(C304=\"\",NA(),MATCH($B304&$C304,'Smelter Look-up'!$J:$J,0))","v":{"$error":"#N/A"}},null,0,null,null,null,""]
[null,{"$f":"IF(LEN(A305)=0,\"\",INDEX('Smelter Look-up'!$A:$A,MATCH($A305,'Smelter Look-up'!$E:$E,0)))","v":""},{"$f":"IF(LEN(A305)=0,\"\",INDEX('Smelter Look-up'!$C:$C,MATCH($A305,'Smelter Look-up'!$E:$E,0)))","v":""},null,{"$f":"IF(ISERROR($V305),\"\",OFFSET('Smelter Look-up'!$D$4,$V305-4,0)&\"\")","v":""},{"$f":"IF(ISERROR($V305),\"\",OFFSET('Smelter Look-up'!$E$4,$V305-4,0))","v":""},{"$f":"IF(C305=$X$4,\"Enter smelter details\",IF(ISERROR($V305),\"\",OFFSET('Smelter Look-up'!$F$4,$V305-4,0)))","v":""},{"$f":"IF(ISERROR($V305),\"\",OFFSET('Smelter Look-up'!$G$4,$V305-4,0))","v":""},{"$f":"IF(ISERROR($V305),\"\",OFFSET('Smelter Look-up'!$H$4,$V305-4,0))","v":""},{"$f":"IF(ISERROR($V305),\"\",OFFSET('Smelter Look-up'!$I$4,$V305-4,0))","v":""},{"$nulls":7},{"$f":"IF(ISERROR($V305),\"\",OFFSET('Smelter Look-up'!$C$4,$V305-4,0)&\"\")","v":""},"",{"$f":"IF(B305=\"\",\"\",IF(ISERROR(MATCH($J305,SorP!$B$1:$B$5661,0)),\"\",INDIRECT(\"'SorP'!$A$\"&MATCH($J305,SorP!$B$1:$B$5661,0))))","v":""},null,{"$f":"IF(C305=\"\",NA(),MATCH($B305&$C305,'Smelter Look-up'!$J:$J,0))","v":{"$error":"#N/A"}},null,0,null,null,null,""]
[null,{"$f":"IF(LEN(A306)=0,\"\",INDEX('Smelter Look-up'!$A:$A,MATCH($A306,'Smelter Look-up'!$E:$E,0)))","v":""},{"$f":"IF(LEN(A306)=0,\"\",INDEX('Smelter Look-up'!$C:$C,MATCH($A306,'Smelter Look-up'!$E:$E,0)))","v":""},null,{"$f":"IF(ISERROR($V306),\"\",OFFSET('Smelter Look-up'!$D$4,$V306-4,0)&\"\")","v":""},{"$f":"IF(ISERROR($V306),\"\",OFFSET('Smelter Look-up'!$E$4,$V306-4,0))","v":""},{"$f":"IF(C306=$X$4,\"Enter smelter details\",IF(ISERROR($V306),\"\",OFFSET('Smelter Look-up'!$F$4,$V306-4,0)))","v":""},{"$f":"IF(ISERROR($V306),\"\",OFFSET('Smelter Look-up'!$G$4,$V306-4,0))","v":""},{"$f":"IF(ISERROR($V306),\"\",OFFSET('Smelter Look-up'!$H$4,$V306-4,0))","v":""},{"$f":"IF(ISERROR($V306),\"\",OFFSET('Smelter Look-up'!$I$4,$V306-4,0))","v":""},{"$nulls":7},{"$f":"IF(ISERROR($V306),\"\",OFFSET('Smelter Look-up'!$C$4,$V306-4,0)&\"\")","v":""},"",{"$f":"IF(B306=\"\",\"\",IF(ISERROR(MATCH($J306,SorP!$B$1:$B$5661,0)),\"\",INDIRECT(\"'SorP'!$A$\"&MATCH($J306,SorP!$B$1:$B$5661,0))))","v":""},null,{"$f":"IF(C306=\"\",NA(),MATCH($B306&$C306,'Smelter Look-up'!$J:$J,0))","v":{"$error":"#N/A"}},null,0,null,null,null,""]
[null,{"$f":"IF(LEN(A307)=0,\"\",INDEX('Smelter Look-up'!$A:$A,MATCH($A307,'Smelter Look-up'!$E:$E,0)))","v":""},{"$f":"IF(LEN(A307)=0,\"\",INDEX('Smelter Look-up'!$C:$C,MATCH($A307,'Smelter Look-up'!$E:$E,0)))","v":""},null,{"$f":"IF(ISERROR($V307),\"\",OFFSET('Smelter Look-up'!$D$4,$V307-4,0)&\"\")","v":""},{"$f":"IF(ISERROR($V307),\"\",OFFSET('Smelter Look-up'!$E$4,$V307-4,0))","v":""},{"$f":"IF(C307=$X$4,\"Enter smelter details\",IF(ISERROR($V307),\"\",OFFSET('Smelter Look-up'!$F$4,$V307-4,0)))","v":""},{"$f":"IF(ISERROR($V307),\"\",OFFSET('Smelter Look-up'!$G$4,$V307-4,0))","v":""},{"$f":"IF(ISERROR($V307),\"\",OFFSET('Smelter Look-up'!$H$4,$V307-4,0))","v":""},{"$f":"IF(ISERROR($V307),\"\",OFFSET('Smelter Look-up'!$I$4,$V307-4,0))","v":""},{"$nulls":7},{"$f":"IF(ISERROR($V307),\"\",OFFSET('Smelter Look-up'!$C$4,$V307-4,0)&\"\")","v":""},"",{"$f":"IF(B307=\"\",\"\",IF(ISERROR(MATCH($J307,SorP!$B$1:$B$5661,0)),\"\",INDIRECT(\"'SorP'!$A$\"&MATCH($J307,SorP!$B$1:$B$5661,0))))","v":""},null,{"$f":"IF(C307=\"\",NA(),MATCH($B307&$C307,'Smelter Look-up'!$J:$J,0))","v":{"$error":"#N/A"}},null,0,null,null,null,""]
[null,{"$f":"IF(LEN(A308)=0,\"\",INDEX('Smelter Look-up'!$A:$A,MATCH($A308,'Smelter Look-up'!$E:$E,0)))","v":""},{"$f":"IF(LEN(A308)=0,\"\",INDEX('Smelter Look-up'!$C:$C,MATCH($A308,'Smelter Look-up'!$E:$E,0)))","v":""},null,{"$f":"IF(ISERROR($V308),\"\",OFFSET('Smelter Look-up'!$D$4,$V308-4,0)&\"\")","v":""},{"$f":"IF(ISERROR($V308),\"\",OFFSET('Smelter Look-up'!$E$4,$V308-4,0))","v":""},{"$f":"IF(C308=$X$4,\"Enter smelter details\",IF(ISERROR($V308),\"\",OFFSET('Smelter Look-up'!$F$4,$V308-4,0)))","v":""},{"$f":"IF(ISERROR($V308),\"\",OFFSET('Smelter Look-up'!$G$4,$V308-4,0))","v":""},{"$f":"IF(ISERROR($V308),\"\",OFFSET('Smelter Look-up'!$H$4,$V308-4,0))","v":""},{"$f":"IF(ISERROR($V308),\"\",OFFSET('Smelter Look-up'!$I$4,$V308-4,0))","v":""},{"$nulls":7},{"$f":"IF(ISERROR($V308),\"\",OFFSET('Smelter Look-up'!$C$4,$V308-4,0)&\"\")","v":""},"",{"$f":"IF(B308=\"\",\"\",IF(ISERROR(MATCH($J308,SorP!$B$1:$B$5661,0)),\"\",INDIRECT(\"'SorP'!$A$\"&MATCH($J308,SorP!$B$1:$B$5661,0))))","v":""},null,{"$f":"IF(C308=\"\",NA(),MATCH($B308&$C308,'Smelter Look-up'!$J:$J,0))","v":{"$error":"#N/A"}},null,0,null,null,null,""]
[null,{"$f":"IF(LEN(A309)=0,\"\",INDEX('Smelter Look-up'!$A:$A,MATCH($A309,'Smelter Look-up'!$E:$E,0)))","v":""},{"$f":"IF(LEN(A309)=0,\"\",INDEX('Smelter Look-up'!$C:$C,MATCH($A309,'Smelter Look-up'!$E:$E,0)))","v":""},null,{"$f":"IF(ISERROR($V309),\"\",OFFSET('Smelter Look-up'!$D$4,$V309-4,0)&\"\")","v":""},{"$f":"IF(ISERROR($V309),\"\",OFFSET('Smelter Look-up'!$E$4,$V309-4,0))","v":""},{"$f":"IF(C309=$X$4,\"Enter smelter details\",IF(ISERROR($V309),\"\",OFFSET('Smelter Look-up'!$F$4,$V309-4,0)))","v":""},{"$f":"IF(ISERROR($V309),\"\",OFFSET('Smelter Look-up'!$G$4,$V309-4,0))","v":""},{"$f":"IF(ISERROR($V309),\"\",OFFSET('Smelter Look-up'!$H$4,$V309-4,0))","v":""},{"$f":"IF(ISERROR($V309),\"\",OFFSET('Smelter Look-up'!$I$4,$V309-4,0))","v":""},{"$nulls":7},{"$f":"IF(ISERROR($V309),\"\",OFFSET('Smelter Look-up'!$C$4,$V309-4,0)&\"\")","v":""},"",{"$f":"IF(B309=\"\",\"\",IF(ISERROR(MATCH($J309,SorP!$B$1:$B$5661,0)),\"\",INDIRECT(\"'SorP'!$A$\"&MATCH($J309,SorP!$B$1:$B$5661,0))))","v":""},null,{"$f":"IF(C309=\"\",NA(),MATCH($B309&$C309,'Smelter Look-up'!$J:$J,0))","v":{"$error":"#N/A"}},null,0,null,null,null,""]
[null,{"$f":"IF(LEN(A310)=0,\"\",INDEX('Smelter Look-up'!$A:$A,MATCH($A310,'Smelter Look-up'!$E:$E,0)))","v":""},{"$f":"IF(LEN(A310)=0,\"\",INDEX('Smelter Look-up'!$C:$C,MATCH($A310,'Smelter Look-up'!$E:$E,0)))","v":""},null,{"$f":"IF(ISERROR($V310),\"\",OFFSET('Smelter Look-up'!$D$4,$V310-4,0)&\"\")","v":""},{"$f":"IF(ISERROR($V310),\"\",OFFSET('Smelter Look-up'!$E$4,$V310-4,0))","v":""},{"$f":"IF(C310=$X$4,\"Enter smelter details\",IF(ISERROR($V310),\"\",OFFSET('Smelter Look-up'!$F$4,$V310-4,0)))","v":""},{"$f":"IF(ISERROR($V310),\"\",OFFSET('Smelter Look-up'!$G$4,$V310-4,0))","v":""},{"$f":"IF(ISERROR($V310),\"\",OFFSET('Smelter Look-up'!$H$4,$V310-4,0))","v":""},{"$f":"IF(ISERROR($V310),\"\",OFFSET('Smelter Look-up'!$I$4,$V310-4,0))","v":""},{"$nulls":7},{"$f":"IF(ISERROR($V310),\"\",OFFSET('Smelter Look-up'!$C$4,$V310-4,0)&\"\")","v":""},"",{"$f":"IF(B310=\"\",\"\",IF(ISERROR(MATCH($J310,SorP!$B$1:$B$5661,0)),\"\",INDIRECT(\"'SorP'!$A$\"&MATCH($J310,SorP!$B$1:$B$5661,0))))","v":""},null,{"$f":"IF(C310=\"\",NA(),MATCH($B310&$C310,'Smelter Look-up'!$J:$J,0))","v":{"$error":"#N/A"}},null,0,null,null,null,""]
[null,{"$f":"IF(LEN(A311)=0,\"\",INDEX('Smelter Look-up'!$A:$A,MATCH($A311,'Smelter Look-up'!$E:$E,0)))","v":""},{"$f":"IF(LEN(A311)=0,\"\",INDEX('Smelter Look-up'!$C:$C,MATCH($A311,'Smelter Look-up'!$E:$E,0)))","v":""},null,{"$f":"IF(ISERROR($V311),\"\",OFFSET('Smelter Look-up'!$D$4,$V311-4,0)&\"\")","v":""},{"$f":"IF(ISERROR($V311),\"\",OFFSET('Smelter Look-up'!$E$4,$V311-4,0))","v":""},{"$f":"IF(C311=$X$4,\"Enter smelter details\",IF(ISERROR($V311),\"\",OFFSET('Smelter Look-up'!$F$4,$V311-4,0)))","v":""},{"$f":"IF(ISERROR($V311),\"\",OFFSET('Smelter Look-up'!$G$4,$V311-4,0))","v":""},{"$f":"IF(ISERROR($V311),\"\",OFFSET('Smelter Look-up'!$H$4,$V311-4,0))","v":""},{"$f":"IF(ISERROR($V311),\"\",OFFSET('Smelter Look-up'!$I$4,$V311-4,0))","v":""},{"$nulls":7},{"$f":"IF(ISERROR($V311),\"\",OFFSET('Smelter Look-up'!$C$4,$V311-4,0)&\"\")","v":""},"",{"$f":"IF(B311=\"\",\"\",IF(ISERROR(MATCH($J311,SorP!$B$1:$B$5661,0)),\"\",INDIRECT(\"'SorP'!$A$\"&MATCH($J311,SorP!$B$1:$B$5661,0))))","v":""},null,{"$f":"IF(C311=\"\",NA(),MATCH($B311&$C311,'Smelter Look-up'!$J:$J,0))","v":{"$error":"#N/A"}},null,0,null,null,null,""]
[null,{"$f":"IF(LEN(A312)=0,\"\",INDEX('Smelter Look-up'!$A:$A,MATCH($A312,'Smelter Look-up'!$E:$E,0)))","v":""},{"$f":"IF(LEN(A312)=0,\"\",INDEX('Smelter Look-up'!$C:$C,MATCH($A312,'Smelter Look-up'!$E:$E,0)))","v":""},null,{"$f":"IF(ISERROR($V312),\"\",OFFSET('Smelter Look-up'!$D$4,$V312-4,0)&\"\")","v":""},{"$f":"IF(ISERROR($V312),\"\",OFFSET('Smelter Look-up'!$E$4,$V312-4,0))","v":""},{"$f":"IF(C312=$X$4,\"Enter smelter details\",IF(ISERROR($V312),\"\",OFFSET('Smelter Look-up'!$F$4,$V312-4,0)))","v":""},{"$f":"IF(ISERROR($V312),\"\",OFFSET('Smelter Look-up'!$G$4,$V312-4,0))","v":""},{"$f":"IF(ISERROR($V312),\"\",OFFSET('Smelter Look-up'!$H$4,$V312-4,0))","v":""},{"$f":"IF(ISERROR($V312),\"\",OFFSET('Smelter Look-up'!$I$4,$V312-4,0))","v":""},{"$nulls":7},{"$f":"IF(ISERROR($V312),\"\",OFFSET('Smelter Look-up'!$C$4,$V312-4,0)&\"\")","v":""},"",{"$f":"IF(B312=\"\",\"\",IF(ISERROR(MATCH($J312,SorP!$B$1:$B$5661,0)),\"\",INDIRECT(\"'SorP'!$A$\"&MATCH($J312,SorP!$B$1:$B$5661,0))))","v":""},null,{"$f":"IF(C312=\"\",NA(),MATCH($B312&$C312,'Smelter Look-up'!$J:$J,0))","v":{"$error":"#N/A"}},null,0,null,null,null,""]
[null,{"$f":"IF(LEN(A313)=0,\"\",INDEX('Smelter Look-up'!$A:$A,MATCH($A313,'Smelter Look-up'!$E:$E,0)))","v":""},{"$f":"IF(LEN(A313)=0,\"\",INDEX('Smelter Look-up'!$C:$C,MATCH($A313,'Smelter Look-up'!$E:$E,0)))","v":""},null,{"$f":"IF(ISERROR($V313),\"\",OFFSET('Smelter Look-up'!$D$4,$V313-4,0)&\"\")","v":""},{"$f":"IF(ISERROR($V313),\"\",OFFSET('Smelter Look-up'!$E$4,$V313-4,0))","v":""},{"$f":"IF(C313=$X$4,\"Enter smelter details\",IF(ISERROR($V313),\"\",OFFSET('Smelter Look-up'!$F$4,$V313-4,0)))","v":""},{"$f":"IF(ISERROR($V313),\"\",OFFSET('Smelter Look-up'!$G$4,$V313-4,0))","v":""},{"$f":"IF(ISERROR($V313),\"\",OFFSET('Smelter Look-up'!$H$4,$V313-4,0))","v":""},{"$f":"IF(ISERROR($V313),\"\",OFFSET('Smelter Look-up'!$I$4,$V313-4,0))","v":""},{"$nulls":7},{"$f":"IF(ISERROR($V313),\"\",OFFSET('Smelter Look-up'!$C$4,$V313-4,0)&\"\")","v":""},"",{"$f":"IF(B313=\"\",\"\",IF(ISERROR(MATCH($J313,SorP!$B$1:$B$5661,0)),\"\",INDIRECT(\"'SorP'!$A$\"&MATCH($J313,SorP!$B$1:$B$5661,0))))","v":""},null,{"$f":"IF(C313=\"\",NA(),MATCH($B313&$C313,'Smelter Look-up'!$J:$J,0))","v":{"$error":"#N/A"}},null,0,null,null,null,""]
[null,{"$f":"IF(LEN(A314)=0,\"\",INDEX('Smelter Look-up'!$A:$A,MATCH($A314,'Smelter Look-up'!$E:$E,0)))","v":""},{"$f":"IF(LEN(A314)=0,\"\",INDEX('Smelter Look-up'!$C:$C,MATCH($A314,'Smelter Look-up'!$E:$E,0)))","v":""},null,{"$f":"IF(ISERROR($V314),\"\",OFFSET('Smelter Look-up'!$D$4,$V314-4,0)&\"\")","v":""},{"$f":"IF(ISERROR($V314),\"\",OFFSET('Smelter Look-up'!$E$4,$V314-4,0))","v":""},{"$f":"IF(C314=$X$4,\"Enter smelter details\",IF(ISERROR($V314),\"\",OFFSET('Smelter Look-up'!$F$4,$V314-4,0)))","v":""},{"$f":"IF(ISERROR($V314),\"\",OFFSET('Smelter Look-up'!$G$4,$V314-4,0))","v":""},{"$f":"IF(ISERROR($V314),\"\",OFFSET('Smelter Look-up'!$H$4,$V314-4,0))","v":""},{"$f":"IF(ISERROR($V314),\"\",OFFSET('Smelter Look-up'!$I$4,$V314-4,0))","v":""},{"$nulls":7},{"$f":"IF(ISERROR($V314),\"\",OFFSET('Smelter Look-up'!$C$4,$V314-4,0)&\"\")","v":""},"",{"$f":"IF(B314=\"\",\"\",IF(ISERROR(MATCH($J314,SorP!$B$1:$B$5661,0)),\"\",INDIRECT(\"'SorP'!$A$\"&MATCH($J314,SorP!$B$1:$B$5661,0))))","v":""},null,{"$f":"IF(C314=\"\",NA(),MATCH($B314&$C314,'Smelter Look-up'!$J:$J,0))","v":{"$error":"#N/A"}},null,0,null,null,null,""]
[null,{"$f":"IF(LEN(A315)=0,\"\",INDEX('Smelter Look-up'!$A:$A,MATCH($A315,'Smelter Look-up'!$E:$E,0)))","v":""},{"$f":"IF(LEN(A315)=0,\"\",INDEX('Smelter Look-up'!$C:$C,MATCH($A315,'Smelter Look-up'!$E:$E,0)))","v":""},null,{"$f":"IF(ISERROR($V315),\"\",OFFSET('Smelter Look-up'!$D$4,$V315-4,0)&\"\")","v":""},{"$f":"IF(ISERROR($V315),\"\",OFFSET('Smelter Look-up'!$E$4,$V315-4,0))","v":""},{"$f":"IF(C315=$X$4,\"Enter smelter details\",IF(ISERROR($V315),\"\",OFFSET('Smelter Look-up'!$F$4,$V315-4,0)))","v":""},{"$f":"IF(ISERROR($V315),\"\",OFFSET('Smelter Look-up'!$G$4,$V315-4,0))","v":""},{"$f":"IF(ISERROR($V315),\"\",OFFSET('Smelter Look-up'!$H$4,$V315-4,0))","v":""},{"$f":"IF(ISERROR($V315),\"\",OFFSET('Smelter Look-up'!$I$4,$V315-4,0))","v":""},{"$nulls":7},{"$f":"IF(ISERROR($V315),\"\",OFFSET('Smelter Look-up'!$C$4,$V315-4,0)&\"\")","v":""},"",{"$f":"IF(B315=\"\",\"\",IF(ISERROR(MATCH($J315,SorP!$B$1:$B$5661,0)),\"\",INDIRECT(\"'SorP'!$A$\"&MATCH($J315,SorP!$B$1:$B$5661,0))))","v":""},null,{"$f":"IF(C315=\"\",NA(),MATCH($B315&$C315,'Smelter Look-up'!$J:$J,0))","v":{"$error":"#N/A"}},null,0,null,null,null,""]
[null,{"$f":"IF(LEN(A316)=0,\"\",INDEX('Smelter Look-up'!$A:$A,MATCH($A316,'Smelter Look-up'!$E:$E,0)))","v":""},{"$f":"IF(LEN(A316)=0,\"\",INDEX('Smelter Look-up'!$C:$C,MATCH($A316,'Smelter Look-up'!$E:$E,0)))","v":""},null,{"$f":"IF(ISERROR($V316),\"\",OFFSET('Smelter Look-up'!$D$4,$V316-4,0)&\"\")","v":""},{"$f":"IF(ISERROR($V316),\"\",OFFSET('Smelter Look-up'!$E$4,$V316-4,0))","v":""},{"$f":"IF(C316=$X$4,\"Enter smelter details\",IF(ISERROR($V316),\"\",OFFSET('Smelter Look-up'!$F$4,$V316-4,0)))","v":""},{"$f":"IF(ISERROR($V316),\"\",OFFSET('Smelter Look-up'!$G$4,$V316-4,0))","v":""},{"$f":"IF(ISERROR($V316),\"\",OFFSET('Smelter Look-up'!$H$4,$V316-4,0))","v":""},{"$f":"IF(ISERROR($V316),\"\",OFFSET('Smelter Look-up'!$I$4,$V316-4,0))","v":""},{"$nulls":7},{"$f":"IF(ISERROR($V316),\"\",OFFSET('Smelter Look-up'!$C$4,$V316-4,0)&\"\")","v":""},"",{"$f":"IF(B316=\"\",\"\",IF(ISERROR(MATCH($J316,SorP!$B$1:$B$5661,0)),\"\",INDIRECT(\"'SorP'!$A$\"&MATCH($J316,SorP!$B$1:$B$5661,0))))","v":""},null,{"$f":"IF(C316=\"\",NA(),MATCH($B316&$C316,'Smelter Look-up'!$J:$J,0))","v":{"$error":"#N/A"}},null,0,null,null,null,""]
[null,{"$f":"IF(LEN(A317)=0,\"\",INDEX('Smelter Look-up'!$A:$A,MATCH($A317,'Smelter Look-up'!$E:$E,0)))","v":""},{"$f":"IF(LEN(A317)=0,\"\",INDEX('Smelter Look-up'!$C:$C,MATCH($A317,'Smelter Look-up'!$E:$E,0)))","v":""},null,{"$f":"IF(ISERROR($V317),\"\",OFFSET('Smelter Look-up'!$D$4,$V317-4,0)&\"\")","v":""},{"$f":"IF(ISERROR($V317),\"\",OFFSET('Smelter Look-up'!$E$4,$V317-4,0))","v":""},{"$f":"IF(C317=$X$4,\"Enter smelter details\",IF(ISERROR($V317),\"\",OFFSET('Smelter Look-up'!$F$4,$V317-4,0)))","v":""},{"$f":"IF(ISERROR($V317),\"\",OFFSET('Smelter Look-up'!$G$4,$V317-4,0))","v":""},{"$f":"IF(ISERROR($V317),\"\",OFFSET('Smelter Look-up'!$H$4,$V317-4,0))","v":""},{"$f":"IF(ISERROR($V317),\"\",OFFSET('Smelter Look-up'!$I$4,$V317-4,0))","v":""},{"$nulls":7},{"$f":"IF(ISERROR($V317),\"\",OFFSET('Smelter Look-up'!$C$4,$V317-4,0)&\"\")","v":""},"",{"$f":"IF(B317=\"\",\"\",IF(ISERROR(MATCH($J317,SorP!$B$1:$B$5661,0)),\"\",INDIRECT(\"'SorP'!$A$\"&MATCH($J317,SorP!$B$1:$B$5661,0))))","v":""},null,{"$f":"IF(C317=\"\",NA(),MATCH($B317&$C317,'Smelter Look-up'!$J:$J,0))","v":{"$error":"#N/A"}},null,0,null,null,null,""]
[null,{"$f":"IF(LEN(A318)=0,\"\",INDEX('Smelter Look-up'!$A:$A,MATCH($A318,'Smelter Look-up'!$E:$E,0)))","v":""},{"$f":"IF(LEN(A318)=0,\"\",INDEX('Smelter Look-up'!$C:$C,MATCH($A318,'Smelter Look-up'!$E:$E,0)))","v":""},null,{"$f":"IF(ISERROR($V318),\"\",OFFSET('Smelter Look-up'!$D$4,$V318-4,0)&\"\")","v":""},{"$f":"IF(ISERROR($V318),\"\",OFFSET('Smelter Look-up'!$E$4,$V318-4,0))","v":""},{"$f":"IF(C318=$X$4,\"Enter smelter details\",IF(ISERROR($V318),\"\",OFFSET('Smelter Look-up'!$F$4,$V318-4,0)))","v":""},{"$f":"IF(ISERROR($V318),\"\",OFFSET('Smelter Look-up'!$G$4,$V318-4,0))","v":""},{"$f":"IF(ISERROR($V318),\"\",OFFSET('Smelter Look-up'!$H$4,$V318-4,0))","v":""},{"$f":"IF(ISERROR($V318),\"\",OFFSET('Smelter Look-up'!$I$4,$V318-4,0))","v":""},{"$nulls":7},{"$f":"IF(ISERROR($V318),\"\",OFFSET('Smelter Look-up'!$C$4,$V318-4,0)&\"\")","v":""},"",{"$f":"IF(B318=\"\",\"\",IF(ISERROR(MATCH($J318,SorP!$B$1:$B$5661,0)),\"\",INDIRECT(\"'SorP'!$A$\"&MATCH($J318,SorP!$B$1:$B$5661,0))))","v":""},null,{"$f":"IF(C318=\"\",NA(),MATCH($B318&$C318,'Smelter Look-up'!$J:$J,0))","v":{"$error":"#N/A"}},null,0,null,null,null,""]
[null,{"$f":"IF(LEN(A319)=0,\"\",INDEX('Smelter Look-up'!$A:$A,MATCH($A319,'Smelter Look-up'!$E:$E,0)))","v":""},{"$f":"IF(LEN(A319)=0,\"\",INDEX('Smelter Look-up'!$C:$C,MATCH($A319,'Smelter Look-up'!$E:$E,0)))","v":""},null,{"$f":"IF(ISERROR($V319),\"\",OFFSET('Smelter Look-up'!$D$4,$V319-4,0)&\"\")","v":""},{"$f":"IF(ISERROR($V319),\"\",OFFSET('Smelter Look-up'!$E$4,$V319-4,0))","v":""},{"$f":"IF(C319=$X$4,\"Enter smelter details\",IF(ISERROR($V319),\"\",OFFSET('Smelter Look-up'!$F$4,$V319-4,0)))","v":""},{"$f":"IF(ISERROR($V319),\"\",OFFSET('Smelter Look-up'!$G$4,$V319-4,0))","v":""},{"$f":"IF(ISERROR($V319),\"\",OFFSET('Smelter Look-up'!$H$4,$V319-4,0))","v":""},{"$f":"IF(ISERROR($V319),\"\",OFFSET('Smelter Look-up'!$I$4,$V319-4,0))","v":""},{"$nulls":7},{"$f":"IF(ISERROR($V319),\"\",OFFSET('Smelter Look-up'!$C$4,$V319-4,0)&\"\")","v":""},"",{"$f":"IF(B319=\"\",\"\",IF(ISERROR(MATCH($J319,SorP!$B$1:$B$5661,0)),\"\",INDIRECT(\"'SorP'!$A$\"&MATCH($J319,SorP!$B$1:$B$5661,0))))","v":""},null,{"$f":"IF(C319=\"\",NA(),MATCH($B319&$C319,'Smelter Look-up'!$J:$J,0))","v":{"$error":"#N/A"}},null,{"$f":"IF(AND(C319=\"Smelter not listed\",OR(LEN(D319)=0,LEN(E319)=0)),1,0)","v":0},null,null,null,{"$f":"B319&C319","v":""}]
[null,{"$f":"IF(LEN(A320)=0,\"\",INDEX('Smelter Look-up'!$A:$A,MATCH($A320,'Smelter Look-up'!$E:$E,0)))","v":""},{"$f":"IF(LEN(A320)=0,\"\",INDEX('Smelter Look-up'!$C:$C,MATCH($A320,'Smelter Look-up'!$E:$E,0)))","v":""},null,{"$f":"IF(ISERROR($V320),\"\",OFFSET('Smelter Look-up'!$D$4,$V320-4,0)&\"\")","v":""},{"$f":"IF(ISERROR($V320),\"\",OFFSET('Smelter Look-up'!$E$4,$V320-4,0))","v":""},{"$f":"IF(C320=$X$4,\"Enter smelter details\",IF(ISERROR($V320),\"\",OFFSET('Smelter Look-up'!$F$4,$V320-4,0)))","v":""},{"$f":"IF(ISERROR($V320),\"\",OFFSET('Smelter Look-up'!$G$4,$V320-4,0))","v":""},{"$f":"IF(ISERROR($V320),\"\",OFFSET('Smelter Look-up'!$H$4,$V320-4,0))","v":""},{"$f":"IF(ISERROR($V320),\"\",OFFSET('Smelter Look-up'!$I$4,$V320-4,0))","v":""},{"$nulls":7},{"$f":"IF(ISERROR($V320),\"\",OFFSET('Smelter Look-up'!$C$4,$V320-4,0)&\"\")","v":""},{"$f":"IF(B320=\"\",\"\",IF(ISERROR(MATCH($E320,CL,0)),\"Unknown\",INDIRECT(\"'C'!$A$\"&MATCH($E320,CL,0)+1)))","v":""},{"$f":"IF(B320=\"\",\"\",IF(ISERROR(MATCH($J320,SorP!$B$1:$B$5661,0)),\"\",INDIRECT(\"'SorP'!$A$\"&MATCH($J320,SorP!$B$1:$B$5661,0))))","v":""},null,{"$f":"IF(C320=\"\",NA(),MATCH($B320&$C320,'Smelter Look-up'!$J:$J,0))","v":{"$error":"#N/A"}},null,0,null,null,null,""]
[null,{"$f":"IF(LEN(A321)=0,\"\",INDEX('Smelter Look-up'!$A:$A,MATCH($A321,'Smelter Look-up'!$E:$E,0)))","v":""},{"$f":"IF(LEN(A321)=0,\"\",INDEX('Smelter Look-up'!$C:$C,MATCH($A321,'Smelter Look-up'!$E:$E,0)))","v":""},null,{"$f":"IF(ISERROR($V321),\"\",OFFSET('Smelter Look-up'!$D$4,$V321-4,0)&\"\")","v":""},{"$f":"IF(ISERROR($V321),\"\",OFFSET('Smelter Look-up'!$E$4,$V321-4,0))","v":""},{"$f":"IF(C321=$X$4,\"Enter smelter details\",IF(ISERROR($V321),\"\",OFFSET('Smelter Look-up'!$F$4,$V321-4,0)))","v":""},{"$f":"IF(ISERROR($V321),\"\",OFFSET('Smelter Look-up'!$G$4,$V321-4,0))","v":""},{"$f":"IF(ISERROR($V321),\"\",OFFSET('Smelter Look-up'!$H$4,$V321-4,0))","v":""},{"$f":"IF(ISERROR($V321),\"\",OFFSET('Smelter Look-up'!$I$4,$V321-4,0))","v":""},{"$nulls":7},{"$f":"IF(ISERROR($V321),\"\",OFFSET('Smelter Look-up'!$C$4,$V321-4,0)&\"\")","v":""},"",{"$f":"IF(B321=\"\",\"\",IF(ISERROR(MATCH($J321,SorP!$B$1:$B$5661,0)),\"\",INDIRECT(\"'SorP'!$A$\"&MATCH($J321,SorP!$B$1:$B$5661,0))))","v":""},null,{"$f":"IF(C321=\"\",NA(),MATCH($B321&$C321,'Smelter Look-up'!$J:$J,0))","v":{"$error":"#N/A"}},null,0,null,null,null,""]
[null,{"$f":"IF(LEN(A322)=0,\"\",INDEX('Smelter Look-up'!$A:$A,MATCH($A322,'Smelter Look-up'!$E:$E,0)))","v":""},{"$f":"IF(LEN(A322)=0,\"\",INDEX('Smelter Look-up'!$C:$C,MATCH($A322,'Smelter Look-up'!$E:$E,0)))","v":""},null,{"$f":"IF(ISERROR($V322),\"\",OFFSET('Smelter Look-up'!$D$4,$V322-4,0)&\"\")","v":""},{"$f":"IF(ISERROR($V322),\"\",OFFSET('Smelter Look-up'!$E$4,$V322-4,0))","v":""},{"$f":"IF(C322=$X$4,\"Enter smelter details\",IF(ISERROR($V322),\"\",OFFSET('Smelter Look-up'!$F$4,$V322-4,0)))","v":""},{"$f":"IF(ISERROR($V322),\"\",OFFSET('Smelter Look-up'!$G$4,$V322-4,0))","v":""},{"$f":"IF(ISERROR($V322),\"\",OFFSET('Smelter Look-up'!$H$4,$V322-4,0))","v":""},{"$f":"IF(ISERROR($V322),\"\",OFFSET('Smelter Look-up'!$I$4,$V322-4,0))","v":""},{"$nulls":7},{"$f":"IF(ISERROR($V322),\"\",OFFSET('Smelter Look-up'!$C$4,$V322-4,0)&\"\")","v":""},"",{"$f":"IF(B322=\"\",\"\",IF(ISERROR(MATCH($J322,SorP!$B$1:$B$5661,0)),\"\",INDIRECT(\"'SorP'!$A$\"&MATCH($J322,SorP!$B$1:$B$5661,0))))","v":""},null,{"$f":"IF(C322=\"\",NA(),MATCH($B322&$C322,'Smelter Look-up'!$J:$J,0))","v":{"$error":"#N/A"}},null,0,null,null,null,""]
[null,{"$f":"IF(LEN(A323)=0,\"\",INDEX('Smelter Look-up'!$A:$A,MATCH($A323,'Smelter Look-up'!$E:$E,0)))","v":""},{"$f":"IF(LEN(A323)=0,\"\",INDEX('Smelter Look-up'!$C:$C,MATCH($A323,'Smelter Look-up'!$E:$E,0)))","v":""},null,{"$f":"IF(ISERROR($V323),\"\",OFFSET('Smelter Look-up'!$D$4,$V323-4,0)&\"\")","v":""},{"$f":"IF(ISERROR($V323),\"\",OFFSET('Smelter Look-up'!$E$4,$V323-4,0))","v":""},{"$f":"IF(C323=$X$4,\"Enter smelter details\",IF(ISERROR($V323),\"\",OFFSET('Smelter Look-up'!$F$4,$V323-4,0)))","v":""},{"$f":"IF(ISERROR($V323),\"\",OFFSET('Smelter Look-up'!$G$4,$V323-4,0))","v":""},{"$f":"IF(ISERROR($V323),\"\",OFFSET('Smelter Look-up'!$H$4,$V323-4,0))","v":""},{"$f":"IF(ISERROR($V323),\"\",OFFSET('Smelter Look-up'!$I$4,$V323-4,0))","v":""},{"$nulls":7},{"$f":"IF(ISERROR($V323),\"\",OFFSET('Smelter Look-up'!$C$4,$V323-4,0)&\"\")","v":""},"",{"$f":"IF(B323=\"\",\"\",IF(ISERROR(MATCH($J323,SorP!$B$1:$B$5661,0)),\"\",INDIRECT(\"'SorP'!$A$\"&MATCH($J323,SorP!$B$1:$B$5661,0))))","v":""},null,{"$f":"IF(C323=\"\",NA(),MATCH($B323&$C323,'Smelter Look-up'!$J:$J,0))","v":{"$error":"#N/A"}},null,0,null,null,null,""]
[null,{"$f":"IF(LEN(A324)=0,\"\",INDEX('Smelter Look-up'!$A:$A,MATCH($A324,'Smelter Look-up'!$E:$E,0)))","v":""},{"$f":"IF(LEN(A324)=0,\"\",INDEX('Smelter Look-up'!$C:$C,MATCH($A324,'Smelter Look-up'!$E:$E,0)))","v":""},null,{"$f":"IF(ISERROR($V324),\"\",OFFSET('Smelter Look-up'!$D$4,$V324-4,0)&\"\")","v":""},{"$f":"IF(ISERROR($V324),\"\",OFFSET('Smelter Look-up'!$E$4,$V324-4,0))","v":""},{"$f":"IF(C324=$X$4,\"Enter smelter details\",IF(ISERROR($V324),\"\",OFFSET('Smelter Look-up'!$F$4,$V324-4,0)))","v":""},{"$f":"IF(ISERROR($V324),\"\",OFFSET('Smelter Look-up'!$G$4,$V324-4,0))","v":""},{"$f":"IF(ISERROR($V324),\"\",OFFSET('Smelter Look-up'!$H$4,$V324-4,0))","v":""},{"$f":"IF(ISERROR($V324),\"\",OFFSET('Smelter Look-up'!$I$4,$V324-4,0))","v":""},{"$nulls":7},{"$f":"IF(ISERROR($V324),\"\",OFFSET('Smelter Look-up'!$C$4,$V324-4,0)&\"\")","v":""},"",{"$f":"IF(B324=\"\",\"\",IF(ISERROR(MATCH($J324,SorP!$B$1:$B$5661,0)),\"\",INDIRECT(\"'SorP'!$A$\"&MATCH($J324,SorP!$B$1:$B$5661,0))))","v":""},null,{"$f":"IF(C324=\"\",NA(),MATCH($B324&$C324,'Smelter Look-up'!$J:$J,0))","v":{"$error":"#N/A"}},null,0,null,null,null,""]
[null,{"$f":"IF(LEN(A325)=0,\"\",INDEX('Smelter Look-up'!$A:$A,MATCH($A325,'Smelter Look-up'!$E:$E,0)))","v":""},{"$f":"IF(LEN(A325)=0,\"\",INDEX('Smelter Look-up'!$C:$C,MATCH($A325,'Smelter Look-up'!$E:$E,0)))","v":""},null,{"$f":"IF(ISERROR($V325),\"\",OFFSET('Smelter Look-up'!$D$4,$V325-4,0)&\"\")","v":""},{"$f":"IF(ISERROR($V325),\"\",OFFSET('Smelter Look-up'!$E$4,$V325-4,0))","v":""},{"$f":"IF(C325=$X$4,\"Enter smelter details\",IF(ISERROR($V325),\"\",OFFSET('Smelter Look-up'!$F$4,$V325-4,0)))","v":""},{"$f":"IF(ISERROR($V325),\"\",OFFSET('Smelter Look-up'!$G$4,$V325-4,0))","v":""},{"$f":"IF(ISERROR($V325),\"\",OFFSET('Smelter Look-up'!$H$4,$V325-4,0))","v":""},{"$f":"IF(ISERROR($V325),\"\",OFFSET('Smelter Look-up'!$I$4,$V325-4,0))","v":""},{"$nulls":7},{"$f":"IF(ISERROR($V325),\"\",OFFSET('Smelter Look-up'!$C$4,$V325-4,0)&\"\")","v":""},"",{"$f":"IF(B325=\"\",\"\",IF(ISERROR(MATCH($J325,SorP!$B$1:$B$5661,0)),\"\",INDIRECT(\"'SorP'!$A$\"&MATCH($J325,SorP!$B$1:$B$5661,0))))","v":""},null,{"$f":"IF(C325=\"\",NA(),MATCH($B325&$C325,'Smelter Look-up'!$J:$J,0))","v":{"$error":"#N/A"}},null,0,null,null,null,""]
[null,{"$f":"IF(LEN(A326)=0,\"\",INDEX('Smelter Look-up'!$A:$A,MATCH($A326,'Smelter Look-up'!$E:$E,0)))","v":""},{"$f":"IF(LEN(A326)=0,\"\",INDEX('Smelter Look-up'!$C:$C,MATCH($A326,'Smelter Look-up'!$E:$E,0)))","v":""},null,{"$f":"IF(ISERROR($V326),\"\",OFFSET('Smelter Look-up'!$D$4,$V326-4,0)&\"\")","v":""},{"$f":"IF(ISERROR($V326),\"\",OFFSET('Smelter Look-up'!$E$4,$V326-4,0))","v":""},{"$f":"IF(C326=$X$4,\"Enter smelter details\",IF(ISERROR($V326),\"\",OFFSET('Smelter Look-up'!$F$4,$V326-4,0)))","v":""},{"$f":"IF(ISERROR($V326),\"\",OFFSET('Smelter Look-up'!$G$4,$V326-4,0))","v":""},{"$f":"IF(ISERROR($V326),\"\",OFFSET('Smelter Look-up'!$H$4,$V326-4,0))","v":""},{"$f":"IF(ISERROR($V326),\"\",OFFSET('Smelter Look-up'!$I$4,$V326-4,0))","v":""},{"$nulls":7},{"$f":"IF(ISERROR($V326),\"\",OFFSET('Smelter Look-up'!$C$4,$V326-4,0)&\"\")","v":""},"",{"$f":"IF(B326=\"\",\"\",IF(ISERROR(MATCH($J326,SorP!$B$1:$B$5661,0)),\"\",INDIRECT(\"'SorP'!$A$\"&MATCH($J326,SorP!$B$1:$B$5661,0))))","v":""},null,{"$f":"IF(C326=\"\",NA(),MATCH($B326&$C326,'Smelter Look-up'!$J:$J,0))","v":{"$error":"#N/A"}},null,0,null,null,null,""]
[null,{"$f":"IF(LEN(A327)=0,\"\",INDEX('Smelter Look-up'!$A:$A,MATCH($A327,'Smelter Look-up'!$E:$E,0)))","v":""},{"$f":"IF(LEN(A327)=0,\"\",INDEX('Smelter Look-up'!$C:$C,MATCH($A327,'Smelter Look-up'!$E:$E,0)))","v":""},null,{"$f":"IF(ISERROR($V327),\"\",OFFSET('Smelter Look-up'!$D$4,$V327-4,0)&\"\")","v":""},{"$f":"IF(ISERROR($V327),\"\",OFFSET('Smelter Look-up'!$E$4,$V327-4,0))","v":""},{"$f":"IF(C327=$X$4,\"Enter smelter details\",IF(ISERROR($V327),\"\",OFFSET('Smelter Look-up'!$F$4,$V327-4,0)))","v":""},{"$f":"IF(ISERROR($V327),\"\",OFFSET('Smelter Look-up'!$G$4,$V327-4,0))","v":""},{"$f":"IF(ISERROR($V327),\"\",OFFSET('Smelter Look-up'!$H$4,$V327-4,0))","v":""},{"$f":"IF(ISERROR($V327),\"\",OFFSET('Smelter Look-up'!$I$4,$V327-4,0))","v":""},{"$nulls":7},{"$f":"IF(ISERROR($V327),\"\",OFFSET('Smelter Look-up'!$C$4,$V327-4,0)&\"\")","v":""},"",{"$f":"IF(B327=\"\",\"\",IF(ISERROR(MATCH($J327,SorP!$B$1:$B$5661,0)),\"\",INDIRECT(\"'SorP'!$A$\"&MATCH($J327,SorP!$B$1:$B$5661,0))))","v":""},null,{"$f":"IF(C327=\"\",NA(),MATCH($B327&$C327,'Smelter Look-up'!$J:$J,0))","v":{"$error":"#N/A"}},null,0,null,null,null,""]
[null,{"$f":"IF(LEN(A328)=0,\"\",INDEX('Smelter Look-up'!$A:$A,MATCH($A328,'Smelter Look-up'!$E:$E,0)))","v":""},{"$f":"IF(LEN(A328)=0,\"\",INDEX('Smelter Look-up'!$C:$C,MATCH($A328,'Smelter Look-up'!$E:$E,0)))","v":""},null,{"$f":"IF(ISERROR($V328),\"\",OFFSET('Smelter Look-up'!$D$4,$V328-4,0)&\"\")","v":""},{"$f":"IF(ISERROR($V328),\"\",OFFSET('Smelter Look-up'!$E$4,$V328-4,0))","v":""},{"$f":"IF(C328=$X$4,\"Enter smelter details\",IF(ISERROR($V328),\"\",OFFSET('Smelter Look-up'!$F$4,$V328-4,0)))","v":""},{"$f":"IF(ISERROR($V328),\"\",OFFSET('Smelter Look-up'!$G$4,$V328-4,0))","v":""},{"$f":"IF(ISERROR($V328),\"\",OFFSET('Smelter Look-up'!$H$4,$V328-4,0))","v":""},{"$f":"IF(ISERROR($V328),\"\",OFFSET('Smelter Look-up'!$I$4,$V328-4,0))","v":""},{"$nulls":7},{"$f":"IF(ISERROR($V328),\"\",OFFSET('Smelter Look-up'!$C$4,$V328-4,0)&\"\")","v":""},"",{"$f":"IF(B328=\"\",\"\",IF(ISERROR(MATCH($J328,SorP!$B$1:$B$5661,0)),\"\",INDIRECT(\"'SorP'!$A$\"&MATCH($J328,SorP!$B$1:$B$5661,0))))","v":""},null,{"$f":"IF(C328=\"\",NA(),MATCH($B328&$C328,'Smelter Look-up'!$J:$J,0))","v":{"$error":"#N/A"}},null,0,null,null,null,""]
[null,{"$f":"IF(LEN(A329)=0,\"\",INDEX('Smelter Look-up'!$A:$A,MATCH($A329,'Smelter Look-up'!$E:$E,0)))","v":""},{"$f":"IF(LEN(A329)=0,\"\",INDEX('Smelter Look-up'!$C:$C,MATCH($A329,'Smelter Look-up'!$E:$E,0)))","v":""},null,{"$f":"IF(ISERROR($V329),\"\",OFFSET('Smelter Look-up'!$D$4,$V329-4,0)&\"\")","v":""},{"$f":"IF(ISERROR($V329),\"\",OFFSET('Smelter Look-up'!$E$4,$V329-4,0))","v":""},{"$f":"IF(C329=$X$4,\"Enter smelter details\",IF(ISERROR($V329),\"\",OFFSET('Smelter Look-up'!$F$4,$V329-4,0)))","v":""},{"$f":"IF(ISERROR($V329),\"\",OFFSET('Smelter Look-up'!$G$4,$V329-4,0))","v":""},{"$f":"IF(ISERROR($V329),\"\",OFFSET('Smelter Look-up'!$H$4,$V329-4,0))","v":""},{"$f":"IF(ISERROR($V329),\"\",OFFSET('Smelter Look-up'!$I$4,$V329-4,0))","v":""},{"$nulls":7},{"$f":"IF(ISERROR($V329),\"\",OFFSET('Smelter Look-up'!$C$4,$V329-4,0)&\"\")","v":""},"",{"$f":"IF(B329=\"\",\"\",IF(ISERROR(MATCH($J329,SorP!$B$1:$B$5661,0)),\"\",INDIRECT(\"'SorP'!$A$\"&MATCH($J329,SorP!$B$1:$B$5661,0))))","v":""},null,{"$f":"IF(C329=\"\",NA(),MATCH($B329&$C329,'Smelter Look-up'!$J:$J,0))","v":{"$error":"#N/A"}},null,0,null,null,null,""]
[null,{"$f":"IF(LEN(A330)=0,\"\",INDEX('Smelter Look-up'!$A:$A,MATCH($A330,'Smelter Look-up'!$E:$E,0)))","v":""},{"$f":"IF(LEN(A330)=0,\"\",INDEX('Smelter Look-up'!$C:$C,MATCH($A330,'Smelter Look-up'!$E:$E,0)))","v":""},null,{"$f":"IF(ISERROR($V330),\"\",OFFSET('Smelter Look-up'!$D$4,$V330-4,0)&\"\")","v":""},{"$f":"IF(ISERROR($V330),\"\",OFFSET('Smelter Look-up'!$E$4,$V330-4,0))","v":""},{"$f":"IF(C330=$X$4,\"Enter smelter details\",IF(ISERROR($V330),\"\",OFFSET('Smelter Look-up'!$F$4,$V330-4,0)))","v":""},{"$f":"IF(ISERROR($V330),\"\",OFFSET('Smelter Look-up'!$G$4,$V330-4,0))","v":""},{"$f":"IF(ISERROR($V330),\"\",OFFSET('Smelter Look-up'!$H$4,$V330-4,0))","v":""},{"$f":"IF(ISERROR($V330),\"\",OFFSET('Smelter Look-up'!$I$4,$V330-4,0))","v":""},{"$nulls":7},{"$f":"IF(ISERROR($V330),\"\",OFFSET('Smelter Look-up'!$C$4,$V330-4,0)&\"\")","v":""},"",{"$f":"IF(B330=\"\",\"\",IF(ISERROR(MATCH($J330,SorP!$B$1:$B$5661,0)),\"\",INDIRECT(\"'SorP'!$A$\"&MATCH($J330,SorP!$B$1:$B$5661,0))))","v":""},null,{"$f":"IF(C330=\"\",NA(),MATCH($B330&$C330,'Smelter Look-up'!$J:$J,0))","v":{"$error":"#N/A"}},null,0,null,null,null,""]
[null,{"$f":"IF(LEN(A331)=0,\"\",INDEX('Smelter Look-up'!$A:$A,MATCH($A331,'Smelter Look-up'!$E:$E,0)))","v":""},{"$f":"IF(LEN(A331)=0,\"\",INDEX('Smelter Look-up'!$C:$C,MATCH($A331,'Smelter Look-up'!$E:$E,0)))","v":""},null,{"$f":"IF(ISERROR($V331),\"\",OFFSET('Smelter Look-up'!$D$4,$V331-4,0)&\"\")","v":""},{"$f":"IF(ISERROR($V331),\"\",OFFSET('Smelter Look-up'!$E$4,$V331-4,0))","v":""},{"$f":"IF(C331=$X$4,\"Enter smelter details\",IF(ISERROR($V331),\"\",OFFSET('Smelter Look-up'!$F$4,$V331-4,0)))","v":""},{"$f":"IF(ISERROR($V331),\"\",OFFSET('Smelter Look-up'!$G$4,$V331-4,0))","v":""},{"$f":"IF(ISERROR($V331),\"\",OFFSET('Smelter Look-up'!$H$4,$V331-4,0))","v":""},{"$f":"IF(ISERROR($V331),\"\",OFFSET('Smelter Look-up'!$I$4,$V331-4,0))","v":""},{"$nulls":7},{"$f":"IF(ISERROR($V331),\"\",OFFSET('Smelter Look-up'!$C$4,$V331-4,0)&\"\")","v":""},"",{"$f":"IF(B331=\"\",\"\",IF(ISERROR(MATCH($J331,SorP!$B$1:$B$5661,0)),\"\",INDIRECT(\"'SorP'!$A$\"&MATCH($J331,SorP!$B$1:$B$5661,0))))","v":""},null,{"$f":"IF(C331=\"\",NA(),MATCH($B331&$C331,'Smelter Look-up'!$J:$J,0))","v":{"$error":"#N/A"}},null,0,null,null,null,""]
[null,{"$f":"IF(LEN(A332)=0,\"\",INDEX('Smelter Look-up'!$A:$A,MATCH($A332,'Smelter Look-up'!$E:$E,0)))","v":""},{"$f":"IF(LEN(A332)=0,\"\",INDEX('Smelter Look-up'!$C:$C,MATCH($A332,'Smelter Look-up'!$E:$E,0)))","v":""},null,{"$f":"IF(ISERROR($V332),\"\",OFFSET('Smelter Look-up'!$D$4,$V332-4,0)&\"\")","v":""},{"$f":"IF(ISERROR($V332),\"\",OFFSET('Smelter Look-up'!$E$4,$V332-4,0))","v":""},{"$f":"IF(C332=$X$4,\"Enter smelter details\",IF(ISERROR($V332),\"\",OFFSET('Smelter Look-up'!$F$4,$V332-4,0)))","v":""},{"$f":"IF(ISERROR($V332),\"\",OFFSET('Smelter Look-up'!$G$4,$V332-4,0))","v":""},{"$f":"IF(ISERROR($V332),\"\",OFFSET('Smelter Look-up'!$H$4,$V332-4,0))","v":""},{"$f":"IF(ISERROR($V332),\"\",OFFSET('Smelter Look-up'!$I$4,$V332-4,0))","v":""},{"$nulls":7},{"$f":"IF(ISERROR($V332),\"\",OFFSET('Smelter Look-up'!$C$4,$V332-4,0)&\"\")","v":""},"",{"$f":"IF(B332=\"\",\"\",IF(ISERROR(MATCH($J332,SorP!$B$1:$B$5661,0)),\"\",INDIRECT(\"'SorP'!$A$\"&MATCH($J332,SorP!$B$1:$B$5661,0))))","v":""},null,{"$f":"IF(C332=\"\",NA(),MATCH($B332&$C332,'Smelter Look-up'!$J:$J,0))","v":{"$error":"#N/A"}},null,0,null,null,null,""]
[null,{"$f":"IF(LEN(A333)=0,\"\",INDEX('Smelter Look-up'!$A:$A,MATCH($A333,'Smelter Look-up'!$E:$E,0)))","v":""},{"$f":"IF(LEN(A333)=0,\"\",INDEX('Smelter Look-up'!$C:$C,MATCH($A333,'Smelter Look-up'!$E:$E,0)))","v":""},null,{"$f":"IF(ISERROR($V333),\"\",OFFSET('Smelter Look-up'!$D$4,$V333-4,0)&\"\")","v":""},{"$f":"IF(ISERROR($V333),\"\",OFFSET('Smelter Look-up'!$E$4,$V333-4,0))","v":""},{"$f":"IF(C333=$X$4,\"Enter smelter details\",IF(ISERROR($V333),\"\",OFFSET('Smelter Look-up'!$F$4,$V333-4,0)))","v":""},{"$f":"IF(ISERROR($V333),\"\",OFFSET('Smelter Look-up'!$G$4,$V333-4,0))","v":""},{"$f":"IF(ISERROR($V333),\"\",OFFSET('Smelter Look-up'!$H$4,$V333-4,0))","v":""},{"$f":"IF(ISERROR($V333),\"\",OFFSET('Smelter Look-up'!$I$4,$V333-4,0))","v":""},{"$nulls":7},{"$f":"IF(ISERROR($V333),\"\",OFFSET('Smelter Look-up'!$C$4,$V333-4,0)&\"\")","v":""},"",{"$f":"IF(B333=\"\",\"\",IF(ISERROR(MATCH($J333,SorP!$B$1:$B$5661,0)),\"\",INDIRECT(\"'SorP'!$A$\"&MATCH($J333,SorP!$B$1:$B$5661,0))))","v":""},null,{"$f":"IF(C333=\"\",NA(),MATCH($B333&$C333,'Smelter Look-up'!$J:$J,0))","v":{"$error":"#N/A"}},null,0,null,null,null,""]
[null,{"$f":"IF(LEN(A334)=0,\"\",INDEX('Smelter Look-up'!$A:$A,MATCH($A334,'Smelter Look-up'!$E:$E,0)))","v":""},{"$f":"IF(LEN(A334)=0,\"\",INDEX('Smelter Look-up'!$C:$C,MATCH($A334,'Smelter Look-up'!$E:$E,0)))","v":""},null,{"$f":"IF(ISERROR($V334),\"\",OFFSET('Smelter Look-up'!$D$4,$V334-4,0)&\"\")","v":""},{"$f":"IF(ISERROR($V334),\"\",OFFSET('Smelter Look-up'!$E$4,$V334-4,0))","v":""},{"$f":"IF(C334=$X$4,\"Enter smelter details\",IF(ISERROR($V334),\"\",OFFSET('Smelter Look-up'!$F$4,$V334-4,0)))","v":""},{"$f":"IF(ISERROR($V334),\"\",OFFSET('Smelter Look-up'!$G$4,$V334-4,0))","v":""},{"$f":"IF(ISERROR($V334),\"\",OFFSET('Smelter Look-up'!$H$4,$V334-4,0))","v":""},{"$f":"IF(ISERROR($V334),\"\",OFFSET('Smelter Look-up'!$I$4,$V334-4,0))","v":""},{"$nulls":7},{"$f":"IF(ISERROR($V334),\"\",OFFSET('Smelter Look-up'!$C$4,$V334-4,0)&\"\")","v":""},"",{"$f":"IF(B334=\"\",\"\",IF(ISERROR(MATCH($J334,SorP!$B$1:$B$5661,0)),\"\",INDIRECT(\"'SorP'!$A$\"&MATCH($J334,SorP!$B$1:$B$5661,0))))","v":""},null,{"$f":"IF(C334=\"\",NA(),MATCH($B334&$C334,'Smelter Look-up'!$J:$J,0))","v":{"$error":"#N/A"}},null,0,null,null,null,""]
[null,{"$f":"IF(LEN(A335)=0,\"\",INDEX('Smelter Look-up'!$A:$A,MATCH($A335,'Smelter Look-up'!$E:$E,0)))","v":""},{"$f":"IF(LEN(A335)=0,\"\",INDEX('Smelter Look-up'!$C:$C,MATCH($A335,'Smelter Look-up'!$E:$E,0)))","v":""},null,{"$f":"IF(ISERROR($V335),\"\",OFFSET('Smelter Look-up'!$D$4,$V335-4,0)&\"\")","v":""},{"$f":"IF(ISERROR($V335),\"\",OFFSET('Smelter Look-up'!$E$4,$V335-4,0))","v":""},{"$f":"IF(C335=$X$4,\"Enter smelter details\",IF(ISERROR($V335),\"\",OFFSET('Smelter Look-up'!$F$4,$V335-4,0)))","v":""},{"$f":"IF(ISERROR($V335),\"\",OFFSET('Smelter Look-up'!$G$4,$V335-4,0))","v":""},{"$f":"IF(ISERROR($V335),\"\",OFFSET('Smelter Look-up'!$H$4,$V335-4,0))","v":""},{"$f":"IF(ISERROR($V335),\"\",OFFSET('Smelter Look-up'!$I$4,$V335-4,0))","v":""},{"$nulls":7},{"$f":"IF(ISERROR($V335),\"\",OFFSET('Smelter Look-up'!$C$4,$V335-4,0)&\"\")","v":""},"",{"$f":"IF(B335=\"\",\"\",IF(ISERROR(MATCH($J335,SorP!$B$1:$B$5661,0)),\"\",INDIRECT(\"'SorP'!$A$\"&MATCH($J335,SorP!$B$1:$B$5661,0))))","v":""},null,{"$f":"IF(C335=\"\",NA(),MATCH($B335&$C335,'Smelter Look-up'!$J:$J,0))","v":{"$error":"#N/A"}},null,0,null,null,null,""]
[null,{"$f":"IF(LEN(A336)=0,\"\",INDEX('Smelter Look-up'!$A:$A,MATCH($A336,'Smelter Look-up'!$E:$E,0)))","v":""},{"$f":"IF(LEN(A336)=0,\"\",INDEX('Smelter Look-up'!$C:$C,MATCH($A336,'Smelter Look-up'!$E:$E,0)))","v":""},null,{"$f":"IF(ISERROR($V336),\"\",OFFSET('Smelter Look-up'!$D$4,$V336-4,0)&\"\")","v":""},{"$f":"IF(ISERROR($V336),\"\",OFFSET('Smelter Look-up'!$E$4,$V336-4,0))","v":""},{"$f":"IF(C336=$X$4,\"Enter smelter details\",IF(ISERROR($V336),\"\",OFFSET('Smelter Look-up'!$F$4,$V336-4,0)))","v":""},{"$f":"IF(ISERROR($V336),\"\",OFFSET('Smelter Look-up'!$G$4,$V336-4,0))","v":""},{"$f":"IF(ISERROR($V336),\"\",OFFSET('Smelter Look-up'!$H$4,$V336-4,0))","v":""},{"$f":"IF(ISERROR($V336),\"\",OFFSET('Smelter Look-up'!$I$4,$V336-4,0))","v":""},{"$nulls":7},{"$f":"IF(ISERROR($V336),\"\",OFFSET('Smelter Look-up'!$C$4,$V336-4,0)&\"\")","v":""},"",{"$f":"IF(B336=\"\",\"\",IF(ISERROR(MATCH($J336,SorP!$B$1:$B$5661,0)),\"\",INDIRECT(\"'SorP'!$A$\"&MATCH($J336,SorP!$B$1:$B$5661,0))))","v":""},null,{"$f":"IF(C336=\"\",NA(),MATCH($B336&$C336,'Smelter Look-up'!$J:$J,0))","v":{"$error":"#N/A"}},null,0,null,null,null,""]
[null,{"$f":"IF(LEN(A337)=0,\"\",INDEX('Smelter Look-up'!$A:$A,MATCH($A337,'Smelter Look-up'!$E:$E,0)))","v":""},{"$f":"IF(LEN(A337)=0,\"\",INDEX('Smelter Look-up'!$C:$C,MATCH($A337,'Smelter Look-up'!$E:$E,0)))","v":""},null,{"$f":"IF(ISERROR($V337),\"\",OFFSET('Smelter Look-up'!$D$4,$V337-4,0)&\"\")","v":""},{"$f":"IF(ISERROR($V337),\"\",OFFSET('Smelter Look-up'!$E$4,$V337-4,0))","v":""},{"$f":"IF(C337=$X$4,\"Enter smelter details\",IF(ISERROR($V337),\"\",OFFSET('Smelter Look-up'!$F$4,$V337-4,0)))","v":""},{"$f":"IF(ISERROR($V337),\"\",OFFSET('Smelter Look-up'!$G$4,$V337-4,0))","v":""},{"$f":"IF(ISERROR($V337),\"\",OFFSET('Smelter Look-up'!$H$4,$V337-4,0))","v":""},{"$f":"IF(ISERROR($V337),\"\",OFFSET('Smelter Look-up'!$I$4,$V337-4,0))","v":""},{"$nulls":7},{"$f":"IF(ISERROR($V337),\"\",OFFSET('Smelter Look-up'!$C$4,$V337-4,0)&\"\")","v":""},"",{"$f":"IF(B337=\"\",\"\",IF(ISERROR(MATCH($J337,SorP!$B$1:$B$5661,0)),\"\",INDIRECT(\"'SorP'!$A$\"&MATCH($J337,SorP!$B$1:$B$5661,0))))","v":""},null,{"$f":"IF(C337=\"\",NA(),MATCH($B337&$C337,'Smelter Look-up'!$J:$J,0))","v":{"$error":"#N/A"}},null,0,null,null,null,""]
[null,{"$f":"IF(LEN(A338)=0,\"\",INDEX('Smelter Look-up'!$A:$A,MATCH($A338,'Smelter Look-up'!$E:$E,0)))","v":""},{"$f":"IF(LEN(A338)=0,\"\",INDEX('Smelter Look-up'!$C:$C,MATCH($A338,'Smelter Look-up'!$E:$E,0)))","v":""},null,{"$f":"IF(ISERROR($V338),\"\",OFFSET('Smelter Look-up'!$D$4,$V338-4,0)&\"\")","v":""},{"$f":"IF(ISERROR($V338),\"\",OFFSET('Smelter Look-up'!$E$4,$V338-4,0))","v":""},{"$f":"IF(C338=$X$4,\"Enter smelter details\",IF(ISERROR($V338),\"\",OFFSET('Smelter Look-up'!$F$4,$V338-4,0)))","v":""},{"$f":"IF(ISERROR($V338),\"\",OFFSET('Smelter Look-up'!$G$4,$V338-4,0))","v":""},{"$f":"IF(ISERROR($V338),\"\",OFFSET('Smelter Look-up'!$H$4,$V338-4,0))","v":""},{"$f":"IF(ISERROR($V338),\"\",OFFSET('Smelter Look-up'!$I$4,$V338-4,0))","v":""},{"$nulls":7},{"$f":"IF(ISERROR($V338),\"\",OFFSET('Smelter Look-up'!$C$4,$V338-4,0)&\"\")","v":""},"",{"$f":"IF(B338=\"\",\"\",IF(ISERROR(MATCH($J338,SorP!$B$1:$B$5661,0)),\"\",INDIRECT(\"'SorP'!$A$\"&MATCH($J338,SorP!$B$1:$B$5661,0))))","v":""},null,{"$f":"IF(C338=\"\",NA(),MATCH($B338&$C338,'Smelter Look-up'!$J:$J,0))","v":{"$error":"#N/A"}},null,0,null,null,null,""]
[null,{"$f":"IF(LEN(A339)=0,\"\",INDEX('Smelter Look-up'!$A:$A,MATCH($A339,'Smelter Look-up'!$E:$E,0)))","v":""},{"$f":"IF(LEN(A339)=0,\"\",INDEX('Smelter Look-up'!$C:$C,MATCH($A339,'Smelter Look-up'!$E:$E,0)))","v":""},null,{"$f":"IF(ISERROR($V339),\"\",OFFSET('Smelter Look-up'!$D$4,$V339-4,0)&\"\")","v":""},{"$f":"IF(ISERROR($V339),\"\",OFFSET('Smelter Look-up'!$E$4,$V339-4,0))","v":""},{"$f":"IF(C339=$X$4,\"Enter smelter details\",IF(ISERROR($V339),\"\",OFFSET('Smelter Look-up'!$F$4,$V339-4,0)))","v":""},{"$f":"IF(ISERROR($V339),\"\",OFFSET('Smelter Look-up'!$G$4,$V339-4,0))","v":""},{"$f":"IF(ISERROR($V339),\"\",OFFSET('Smelter Look-up'!$H$4,$V339-4,0))","v":""},{"$f":"IF(ISERROR($V339),\"\",OFFSET('Smelter Look-up'!$I$4,$V339-4,0))","v":""},{"$nulls":7},{"$f":"IF(ISERROR($V339),\"\",OFFSET('Smelter Look-up'!$C$4,$V339-4,0)&\"\")","v":""},"",{"$f":"IF(B339=\"\",\"\",IF(ISERROR(MATCH($J339,SorP!$B$1:$B$5661,0)),\"\",INDIRECT(\"'SorP'!$A$\"&MATCH($J339,SorP!$B$1:$B$5661,0))))","v":""},null,{"$f":"IF(C339=\"\",NA(),MATCH($B339&$C339,'Smelter Look-up'!$J:$J,0))","v":{"$error":"#N/A"}},null,0,null,null,null,""]
[null,{"$f":"IF(LEN(A340)=0,\"\",INDEX('Smelter Look-up'!$A:$A,MATCH($A340,'Smelter Look-up'!$E:$E,0)))","v":""},{"$f":"IF(LEN(A340)=0,\"\",INDEX('Smelter Look-up'!$C:$C,MATCH($A340,'Smelter Look-up'!$E:$E,0)))","v":""},null,{"$f":"IF(ISERROR($V340),\"\",OFFSET('Smelter Look-up'!$D$4,$V340-4,0)&\"\")","v":""},{"$f":"IF(ISERROR($V340),\"\",OFFSET('Smelter Look-up'!$E$4,$V340-4,0))","v":""},{"$f":"IF(C340=$X$4,\"Enter smelter details\",IF(ISERROR($V340),\"\",OFFSET('Smelter Look-up'!$F$4,$V340-4,0)))","v":""},{"$f":"IF(ISERROR($V340),\"\",OFFSET('Smelter Look-up'!$G$4,$V340-4,0))","v":""},{"$f":"IF(ISERROR($V340),\"\",OFFSET('Smelter Look-up'!$H$4,$V340-4,0))","v":""},{"$f":"IF(ISERROR($V340),\"\",OFFSET('Smelter Look-up'!$I$4,$V340-4,0))","v":""},{"$nulls":7},{"$f":"IF(ISERROR($V340),\"\",OFFSET('Smelter Look-up'!$C$4,$V340-4,0)&\"\")","v":""},"",{"$f":"IF(B340=\"\",\"\",IF(ISERROR(MATCH($J340,SorP!$B$1:$B$5661,0)),\"\",INDIRECT(\"'SorP'!$A$\"&MATCH($J340,SorP!$B$1:$B$5661,0))))","v":""},null,{"$f":"IF(C340=\"\",NA(),MATCH($B340&$C340,'Smelter Look-up'!$J:$J,0))","v":{"$error":"#N/A"}},null,0,null,null,null,""]
[null,{"$f":"IF(LEN(A341)=0,\"\",INDEX('Smelter Look-up'!$A:$A,MATCH($A341,'Smelter Look-up'!$E:$E,0)))","v":""},{"$f":"IF(LEN(A341)=0,\"\",INDEX('Smelter Look-up'!$C:$C,MATCH($A341,'Smelter Look-up'!$E:$E,0)))","v":""},null,{"$f":"IF(ISERROR($V341),\"\",OFFSET('Smelter Look-up'!$D$4,$V341-4,0)&\"\")","v":""},{"$f":"IF(ISERROR($V341),\"\",OFFSET('Smelter Look-up'!$E$4,$V341-4,0))","v":""},{"$f":"IF(C341=$X$4,\"Enter smelter details\",IF(ISERROR($V341),\"\",OFFSET('Smelter Look-up'!$F$4,$V341-4,0)))","v":""},{"$f":"IF(ISERROR($V341),\"\",OFFSET('Smelter Look-up'!$G$4,$V341-4,0))","v":""},{"$f":"IF(ISERROR($V341),\"\",OFFSET('Smelter Look-up'!$H$4,$V341-4,0))","v":""},{"$f":"IF(ISERROR($V341),\"\",OFFSET('Smelter Look-up'!$I$4,$V341-4,0))","v":""},{"$nulls":7},{"$f":"IF(ISERROR($V341),\"\",OFFSET('Smelter Look-up'!$C$4,$V341-4,0)&\"\")","v":""},"",{"$f":"IF(B341=\"\",\"\",IF(ISERROR(MATCH($J341,SorP!$B$1:$B$5661,0)),\"\",INDIRECT(\"'SorP'!$A$\"&MATCH($J341,SorP!$B$1:$B$5661,0))))","v":""},null,{"$f":"IF(C341=\"\",NA(),MATCH($B341&$C341,'Smelter Look-up'!$J:$J,0))","v":{"$error":"#N/A"}},null,0,null,null,null,""]
[null,{"$f":"IF(LEN(A342)=0,\"\",INDEX('Smelter Look-up'!$A:$A,MATCH($A342,'Smelter Look-up'!$E:$E,0)))","v":""},{"$f":"IF(LEN(A342)=0,\"\",INDEX('Smelter Look-up'!$C:$C,MATCH($A342,'Smelter Look-up'!$E:$E,0)))","v":""},null,{"$f":"IF(ISERROR($V342),\"\",OFFSET('Smelter Look-up'!$D$4,$V342-4,0)&\"\")","v":""},{"$f":"IF(ISERROR($V342),\"\",OFFSET('Smelter Look-up'!$E$4,$V342-4,0))","v":""},{"$f":"IF(C342=$X$4,\"Enter smelter details\",IF(ISERROR($V342),\"\",OFFSET('Smelter Look-up'!$F$4,$V342-4,0)))","v":""},{"$f":"IF(ISERROR($V342),\"\",OFFSET('Smelter Look-up'!$G$4,$V342-4,0))","v":""},{"$f":"IF(ISERROR($V342),\"\",OFFSET('Smelter Look-up'!$H$4,$V342-4,0))","v":""},{"$f":"IF(ISERROR($V342),\"\",OFFSET('Smelter Look-up'!$I$4,$V342-4,0))","v":""},{"$nulls":7},{"$f":"IF(ISERROR($V342),\"\",OFFSET('Smelter Look-up'!$C$4,$V342-4,0)&\"\")","v":""},"",{"$f":"IF(B342=\"\",\"\",IF(ISERROR(MATCH($J342,SorP!$B$1:$B$5661,0)),\"\",INDIRECT(\"'SorP'!$A$\"&MATCH($J342,SorP!$B$1:$B$5661,0))))","v":""},null,{"$f":"IF(C342=\"\",NA(),MATCH($B342&$C342,'Smelter Look-up'!$J:$J,0))","v":{"$error":"#N/A"}},null,0,null,null,null,""]
[null,{"$f":"IF(LEN(A343)=0,\"\",INDEX('Smelter Look-up'!$A:$A,MATCH($A343,'Smelter Look-up'!$E:$E,0)))","v":""},{"$f":"IF(LEN(A343)=0,\"\",INDEX('Smelter Look-up'!$C:$C,MATCH($A343,'Smelter Look-up'!$E:$E,0)))","v":""},null,{"$f":"IF(ISERROR($V343),\"\",OFFSET('Smelter Look-up'!$D$4,$V343-4,0)&\"\")","v":""},{"$f":"IF(ISERROR($V343),\"\",OFFSET('Smelter Look-up'!$E$4,$V343-4,0))","v":""},{"$f":"IF(C343=$X$4,\"Enter smelter details\",IF(ISERROR($V343),\"\",OFFSET('Smelter Look-up'!$F$4,$V343-4,0)))","v":""},{"$f":"IF(ISERROR($V343),\"\",OFFSET('Smelter Look-up'!$G$4,$V343-4,0))","v":""},{"$f":"IF(ISERROR($V343),\"\",OFFSET('Smelter Look-up'!$H$4,$V343-4,0))","v":""},{"$f":"IF(ISERROR($V343),\"\",OFFSET('Smelter Look-up'!$I$4,$V343-4,0))","v":""},{"$nulls":7},{"$f":"IF(ISERROR($V343),\"\",OFFSET('Smelter Look-up'!$C$4,$V343-4,0)&\"\")","v":""},"",{"$f":"IF(B343=\"\",\"\",IF(ISERROR(MATCH($J343,SorP!$B$1:$B$5661,0)),\"\",INDIRECT(\"'SorP'!$A$\"&MATCH($J343,SorP!$B$1:$B$5661,0))))","v":""},null,{"$f":"IF(C343=\"\",NA(),MATCH($B343&$C343,'Smelter Look-up'!$J:$J,0))","v":{"$error":"#N/A"}},null,0,null,null,null,""]
[null,{"$f":"IF(LEN(A344)=0,\"\",INDEX('Smelter Look-up'!$A:$A,MATCH($A344,'Smelter Look-up'!$E:$E,0)))","v":""},{"$f":"IF(LEN(A344)=0,\"\",INDEX('Smelter Look-up'!$C:$C,MATCH($A344,'Smelter Look-up'!$E:$E,0)))","v":""},null,{"$f":"IF(ISERROR($V344),\"\",OFFSET('Smelter Look-up'!$D$4,$V344-4,0)&\"\")","v":""},{"$f":"IF(ISERROR($V344),\"\",OFFSET('Smelter Look-up'!$E$4,$V344-4,0))","v":""},{"$f":"IF(C344=$X$4,\"Enter smelter details\",IF(ISERROR($V344),\"\",OFFSET('Smelter Look-up'!$F$4,$V344-4,0)))","v":""},{"$f":"IF(ISERROR($V344),\"\",OFFSET('Smelter Look-up'!$G$4,$V344-4,0))","v":""},{"$f":"IF(ISERROR($V344),\"\",OFFSET('Smelter Look-up'!$H$4,$V344-4,0))","v":""},{"$f":"IF(ISERROR($V344),\"\",OFFSET('Smelter Look-up'!$I$4,$V344-4,0))","v":""},{"$nulls":7},{"$f":"IF(ISERROR($V344),\"\",OFFSET('Smelter Look-up'!$C$4,$V344-4,0)&\"\")","v":""},"",{"$f":"IF(B344=\"\",\"\",IF(ISERROR(MATCH($J344,SorP!$B$1:$B$5661,0)),\"\",INDIRECT(\"'SorP'!$A$\"&MATCH($J344,SorP!$B$1:$B$5661,0))))","v":""},null,{"$f":"IF(C344=\"\",NA(),MATCH($B344&$C344,'Smelter Look-up'!$J:$J,0))","v":{"$error":"#N/A"}},null,0,null,null,null,""]
[null,{"$f":"IF(LEN(A345)=0,\"\",INDEX('Smelter Look-up'!$A:$A,MATCH($A345,'Smelter Look-up'!$E:$E,0)))","v":""},{"$f":"IF(LEN(A345)=0,\"\",INDEX('Smelter Look-up'!$C:$C,MATCH($A345,'Smelter Look-up'!$E:$E,0)))","v":""},null,{"$f":"IF(ISERROR($V345),\"\",OFFSET('Smelter Look-up'!$D$4,$V345-4,0)&\"\")","v":""},{"$f":"IF(ISERROR($V345),\"\",OFFSET('Smelter Look-up'!$E$4,$V345-4,0))","v":""},{"$f":"IF(C345=$X$4,\"Enter smelter details\",IF(ISERROR($V345),\"\",OFFSET('Smelter Look-up'!$F$4,$V345-4,0)))","v":""},{"$f":"IF(ISERROR($V345),\"\",OFFSET('Smelter Look-up'!$G$4,$V345-4,0))","v":""},{"$f":"IF(ISERROR($V345),\"\",OFFSET('Smelter Look-up'!$H$4,$V345-4,0))","v":""},{"$f":"IF(ISERROR($V345),\"\",OFFSET('Smelter Look-up'!$I$4,$V345-4,0))","v":""},{"$nulls":7},{"$f":"IF(ISERROR($V345),\"\",OFFSET('Smelter Look-up'!$C$4,$V345-4,0)&\"\")","v":""},"",{"$f":"IF(B345=\"\",\"\",IF(ISERROR(MATCH($J345,SorP!$B$1:$B$5661,0)),\"\",INDIRECT(\"'SorP'!$A$\"&MATCH($J345,SorP!$B$1:$B$5661,0))))","v":""},null,{"$f":"IF(C345=\"\",NA(),MATCH($B345&$C345,'Smelter Look-up'!$J:$J,0))","v":{"$error":"#N/A"}},null,0,null,null,null,""]
[null,{"$f":"IF(LEN(A346)=0,\"\",INDEX('Smelter Look-up'!$A:$A,MATCH($A346,'Smelter Look-up'!$E:$E,0)))","v":""},{"$f":"IF(LEN(A346)=0,\"\",INDEX('Smelter Look-up'!$C:$C,MATCH($A346,'Smelter Look-up'!$E:$E,0)))","v":""},null,{"$f":"IF(ISERROR($V346),\"\",OFFSET('Smelter Look-up'!$D$4,$V346-4,0)&\"\")","v":""},{"$f":"IF(ISERROR($V346),\"\",OFFSET('Smelter Look-up'!$E$4,$V346-4,0))","v":""},{"$f":"IF(C346=$X$4,\"Enter smelter details\",IF(ISERROR($V346),\"\",OFFSET('Smelter Look-up'!$F$4,$V346-4,0)))","v":""},{"$f":"IF(ISERROR($V346),\"\",OFFSET('Smelter Look-up'!$G$4,$V346-4,0))","v":""},{"$f":"IF(ISERROR($V346),\"\",OFFSET('Smelter Look-up'!$H$4,$V346-4,0))","v":""},{"$f":"IF(ISERROR($V346),\"\",OFFSET('Smelter Look-up'!$I$4,$V346-4,0))","v":""},{"$nulls":7},{"$f":"IF(ISERROR($V346),\"\",OFFSET('Smelter Look-up'!$C$4,$V346-4,0)&\"\")","v":""},"",{"$f":"IF(B346=\"\",\"\",IF(ISERROR(MATCH($J346,SorP!$B$1:$B$5661,0)),\"\",INDIRECT(\"'SorP'!$A$\"&MATCH($J346,SorP!$B$1:$B$5661,0))))","v":""},null,{"$f":"IF(C346=\"\",NA(),MATCH($B346&$C346,'Smelter Look-up'!$J:$J,0))","v":{"$error":"#N/A"}},null,0,null,null,null,""]
[null,{"$f":"IF(LEN(A347)=0,\"\",INDEX('Smelter Look-up'!$A:$A,MATCH($A347,'Smelter Look-up'!$E:$E,0)))","v":""},{"$f":"IF(LEN(A347)=0,\"\",INDEX('Smelter Look-up'!$C:$C,MATCH($A347,'Smelter Look-up'!$E:$E,0)))","v":""},null,{"$f":"IF(ISERROR($V347),\"\",OFFSET('Smelter Look-up'!$D$4,$V347-4,0)&\"\")","v":""},{"$f":"IF(ISERROR($V347),\"\",OFFSET('Smelter Look-up'!$E$4,$V347-4,0))","v":""},{"$f":"IF(C347=$X$4,\"Enter smelter details\",IF(ISERROR($V347),\"\",OFFSET('Smelter Look-up'!$F$4,$V347-4,0)))","v":""},{"$f":"IF(ISERROR($V347),\"\",OFFSET('Smelter Look-up'!$G$4,$V347-4,0))","v":""},{"$f":"IF(ISERROR($V347),\"\",OFFSET('Smelter Look-up'!$H$4,$V347-4,0))","v":""},{"$f":"IF(ISERROR($V347),\"\",OFFSET('Smelter Look-up'!$I$4,$V347-4,0))","v":""},{"$nulls":7},{"$f":"IF(ISERROR($V347),\"\",OFFSET('Smelter Look-up'!$C$4,$V347-4,0)&\"\")","v":""},"",{"$f":"IF(B347=\"\",\"\",IF(ISERROR(MATCH($J347,SorP!$B$1:$B$5661,0)),\"\",INDIRECT(\"'SorP'!$A$\"&MATCH($J347,SorP!$B$1:$B$5661,0))))","v":""},null,{"$f":"IF(C347=\"\",NA(),MATCH($B347&$C347,'Smelter Look-up'!$J:$J,0))","v":{"$error":"#N/A"}},null,0,null,null,null,""]
[null,{"$f":"IF(LEN(A348)=0,\"\",INDEX('Smelter Look-up'!$A:$A,MATCH($A348,'Smelter Look-up'!$E:$E,0)))","v":""},{"$f":"IF(LEN(A348)=0,\"\",INDEX('Smelter Look-up'!$C:$C,MATCH($A348,'Smelter Look-up'!$E:$E,0)))","v":""},null,{"$f":"IF(ISERROR($V348),\"\",OFFSET('Smelter Look-up'!$D$4,$V348-4,0)&\"\")","v":""},{"$f":"IF(ISERROR($V348),\"\",OFFSET('Smelter Look-up'!$E$4,$V348-4,0))","v":""},{"$f":"IF(C348=$X$4,\"Enter smelter details\",IF(ISERROR($V348),\"\",OFFSET('Smelter Look-up'!$F$4,$V348-4,0)))","v":""},{"$f":"IF(ISERROR($V348),\"\",OFFSET('Smelter Look-up'!$G$4,$V348-4,0))","v":""},{"$f":"IF(ISERROR($V348),\"\",OFFSET('Smelter Look-up'!$H$4,$V348-4,0))","v":""},{"$f":"IF(ISERROR($V348),\"\",OFFSET('Smelter Look-up'!$I$4,$V348-4,0))","v":""},{"$nulls":7},{"$f":"IF(ISERROR($V348),\"\",OFFSET('Smelter Look-up'!$C$4,$V348-4,0)&\"\")","v":""},"",{"$f":"IF(B348=\"\",\"\",IF(ISERROR(MATCH($J348,SorP!$B$1:$B$5661,0)),\"\",INDIRECT(\"'SorP'!$A$\"&MATCH($J348,SorP!$B$1:$B$5661,0))))","v":""},null,{"$f":"IF(C348=\"\",NA(),MATCH($B348&$C348,'Smelter Look-up'!$J:$J,0))","v":{"$error":"#N/A"}},null,0,null,null,null,""]
[null,{"$f":"IF(LEN(A349)=0,\"\",INDEX('Smelter Look-up'!$A:$A,MATCH($A349,'Smelter Look-up'!$E:$E,0)))","v":""},{"$f":"IF(LEN(A349)=0,\"\",INDEX('Smelter Look-up'!$C:$C,MATCH($A349,'Smelter Look-up'!$E:$E,0)))","v":""},null,{"$f":"IF(ISERROR($V349),\"\",OFFSET('Smelter Look-up'!$D$4,$V349-4,0)&\"\")","v":""},{"$f":"IF(ISERROR($V349),\"\",OFFSET('Smelter Look-up'!$E$4,$V349-4,0))","v":""},{"$f":"IF(C349=$X$4,\"Enter smelter details\",IF(ISERROR($V349),\"\",OFFSET('Smelter Look-up'!$F$4,$V349-4,0)))","v":""},{"$f":"IF(ISERROR($V349),\"\",OFFSET('Smelter Look-up'!$G$4,$V349-4,0))","v":""},{"$f":"IF(ISERROR($V349),\"\",OFFSET('Smelter Look-up'!$H$4,$V349-4,0))","v":""},{"$f":"IF(ISERROR($V349),\"\",OFFSET('Smelter Look-up'!$I$4,$V349-4,0))","v":""},{"$nulls":7},{"$f":"IF(ISERROR($V349),\"\",OFFSET('Smelter Look-up'!$C$4,$V349-4,0)&\"\")","v":""},"",{"$f":"IF(B349=\"\",\"\",IF(ISERROR(MATCH($J349,SorP!$B$1:$B$5661,0)),\"\",INDIRECT(\"'SorP'!$A$\"&MATCH($J349,SorP!$B$1:$B$5661,0))))","v":""},null,{"$f":"IF(C349=\"\",NA(),MATCH($B349&$C349,'Smelter Look-up'!$J:$J,0))","v":{"$error":"#N/A"}},null,0,null,null,null,""]
[null,{"$f":"IF(LEN(A350)=0,\"\",INDEX('Smelter Look-up'!$A:$A,MATCH($A350,'Smelter Look-up'!$E:$E,0)))","v":""},{"$f":"IF(LEN(A350)=0,\"\",INDEX('Smelter Look-up'!$C:$C,MATCH($A350,'Smelter Look-up'!$E:$E,0)))","v":""},null,{"$f":"IF(ISERROR($V350),\"\",OFFSET('Smelter Look-up'!$D$4,$V350-4,0)&\"\")","v":""},{"$f":"IF(ISERROR($V350),\"\",OFFSET('Smelter Look-up'!$E$4,$V350-4,0))","v":""},{"$f":"IF(C350=$X$4,\"Enter smelter details\",IF(ISERROR($V350),\"\",OFFSET('Smelter Look-up'!$F$4,$V350-4,0)))","v":""},{"$f":"IF(ISERROR($V350),\"\",OFFSET('Smelter Look-up'!$G$4,$V350-4,0))","v":""},{"$f":"IF(ISERROR($V350),\"\",OFFSET('Smelter Look-up'!$H$4,$V350-4,0))","v":""},{"$f":"IF(ISERROR($V350),\"\",OFFSET('Smelter Look-up'!$I$4,$V350-4,0))","v":""},{"$nulls":7},{"$f":"IF(ISERROR($V350),\"\",OFFSET('Smelter Look-up'!$C$4,$V350-4,0)&\"\")","v":""},"",{"$f":"IF(B350=\"\",\"\",IF(ISERROR(MATCH($J350,SorP!$B$1:$B$5661,0)),\"\",INDIRECT(\"'SorP'!$A$\"&MATCH($J350,SorP!$B$1:$B$5661,0))))","v":""},null,{"$f":"IF(C350=\"\",NA(),MATCH($B350&$C350,'Smelter Look-up'!$J:$J,0))","v":{"$error":"#N/A"}},null,0,null,null,null,""]
[null,{"$f":"IF(LEN(A351)=0,\"\",INDEX('Smelter Look-up'!$A:$A,MATCH($A351,'Smelter Look-up'!$E:$E,0)))","v":""},{"$f":"IF(LEN(A351)=0,\"\",INDEX('Smelter Look-up'!$C:$C,MATCH($A351,'Smelter Look-up'!$E:$E,0)))","v":""},null,{"$f":"IF(ISERROR($V351),\"\",OFFSET('Smelter Look-up'!$D$4,$V351-4,0)&\"\")","v":""},{"$f":"IF(ISERROR($V351),\"\",OFFSET('Smelter Look-up'!$E$4,$V351-4,0))","v":""},{"$f":"IF(C351=$X$4,\"Enter smelter details\",IF(ISERROR($V351),\"\",OFFSET('Smelter Look-up'!$F$4,$V351-4,0)))","v":""},{"$f":"IF(ISERROR($V351),\"\",OFFSET('Smelter Look-up'!$G$4,$V351-4,0))","v":""},{"$f":"IF(ISERROR($V351),\"\",OFFSET('Smelter Look-up'!$H$4,$V351-4,0))","v":""},{"$f":"IF(ISERROR($V351),\"\",OFFSET('Smelter Look-up'!$I$4,$V351-4,0))","v":""},{"$nulls":7},{"$f":"IF(ISERROR($V351),\"\",OFFSET('Smelter Look-up'!$C$4,$V351-4,0)&\"\")","v":""},"",{"$f":"IF(B351=\"\",\"\",IF(ISERROR(MATCH($J351,SorP!$B$1:$B$5661,0)),\"\",INDIRECT(\"'SorP'!$A$\"&MATCH($J351,SorP!$B$1:$B$5661,0))))","v":""},null,{"$f":"IF(C351=\"\",NA(),MATCH($B351&$C351,'Smelter Look-up'!$J:$J,0))","v":{"$error":"#N/A"}},null,0,null,null,null,""]
[null,{"$f":"IF(LEN(A352)=0,\"\",INDEX('Smelter Look-up'!$A:$A,MATCH($A352,'Smelter Look-up'!$E:$E,0)))","v":""},{"$f":"IF(LEN(A352)=0,\"\",INDEX('Smelter Look-up'!$C:$C,MATCH($A352,'Smelter Look-up'!$E:$E,0)))","v":""},null,{"$f":"IF(ISERROR($V352),\"\",OFFSET('Smelter Look-up'!$D$4,$V352-4,0)&\"\")","v":""},{"$f":"IF(ISERROR($V352),\"\",OFFSET('Smelter Look-up'!$E$4,$V352-4,0))","v":""},{"$f":"IF(C352=$X$4,\"Enter smelter details\",IF(ISERROR($V352),\"\",OFFSET('Smelter Look-up'!$F$4,$V352-4,0)))","v":""},{"$f":"IF(ISERROR($V352),\"\",OFFSET('Smelter Look-up'!$G$4,$V352-4,0))","v":""},{"$f":"IF(ISERROR($V352),\"\",OFFSET('Smelter Look-up'!$H$4,$V352-4,0))","v":""},{"$f":"IF(ISERROR($V352),\"\",OFFSET('Smelter Look-up'!$I$4,$V352-4,0))","v":""},{"$nulls":7},{"$f":"IF(ISERROR($V352),\"\",OFFSET('Smelter Look-up'!$C$4,$V352-4,0)&\"\")","v":""},"",{"$f":"IF(B352=\"\",\"\",IF(ISERROR(MATCH($J352,SorP!$B$1:$B$5661,0)),\"\",INDIRECT(\"'SorP'!$A$\"&MATCH($J352,SorP!$B$1:$B$5661,0))))","v":""},null,{"$f":"IF(C352=\"\",NA(),MATCH($B352&$C352,'Smelter Look-up'!$J:$J,0))","v":{"$error":"#N/A"}},null,0,null,null,null,""]
[null,{"$f":"IF(LEN(A353)=0,\"\",INDEX('Smelter Look-up'!$A:$A,MATCH($A353,'Smelter Look-up'!$E:$E,0)))","v":""},{"$f":"IF(LEN(A353)=0,\"\",INDEX('Smelter Look-up'!$C:$C,MATCH($A353,'Smelter Look-up'!$E:$E,0)))","v":""},null,{"$f":"IF(ISERROR($V353),\"\",OFFSET('Smelter Look-up'!$D$4,$V353-4,0)&\"\")","v":""},{"$f":"IF(ISERROR($V353),\"\",OFFSET('Smelter Look-up'!$E$4,$V353-4,0))","v":""},{"$f":"IF(C353=$X$4,\"Enter smelter details\",IF(ISERROR($V353),\"\",OFFSET('Smelter Look-up'!$F$4,$V353-4,0)))","v":""},{"$f":"IF(ISERROR($V353),\"\",OFFSET('Smelter Look-up'!$G$4,$V353-4,0))","v":""},{"$f":"IF(ISERROR($V353),\"\",OFFSET('Smelter Look-up'!$H$4,$V353-4,0))","v":""},{"$f":"IF(ISERROR($V353),\"\",OFFSET('Smelter Look-up'!$I$4,$V353-4,0))","v":""},{"$nulls":7},{"$f":"IF(ISERROR($V353),\"\",OFFSET('Smelter Look-up'!$C$4,$V353-4,0)&\"\")","v":""},"",{"$f":"IF(B353=\"\",\"\",IF(ISERROR(MATCH($J353,SorP!$B$1:$B$5661,0)),\"\",INDIRECT(\"'SorP'!$A$\"&MATCH($J353,SorP!$B$1:$B$5661,0))))","v":""},null,{"$f":"IF(C353=\"\",NA(),MATCH($B353&$C353,'Smelter Look-up'!$J:$J,0))","v":{"$error":"#N/A"}},null,0,null,null,null,""]
[null,{"$f":"IF(LEN(A354)=0,\"\",INDEX('Smelter Look-up'!$A:$A,MATCH($A354,'Smelter Look-up'!$E:$E,0)))","v":""},{"$f":"IF(LEN(A354)=0,\"\",INDEX('Smelter Look-up'!$C:$C,MATCH($A354,'Smelter Look-up'!$E:$E,0)))","v":""},null,{"$f":"IF(ISERROR($V354),\"\",OFFSET('Smelter Look-up'!$D$4,$V354-4,0)&\"\")","v":""},{"$f":"IF(ISERROR($V354),\"\",OFFSET('Smelter Look-up'!$E$4,$V354-4,0))","v":""},{"$f":"IF(C354=$X$4,\"Enter smelter details\",IF(ISERROR($V354),\"\",OFFSET('Smelter Look-up'!$F$4,$V354-4,0)))","v":""},{"$f":"IF(ISERROR($V354),\"\",OFFSET('Smelter Look-up'!$G$4,$V354-4,0))","v":""},{"$f":"IF(ISERROR($V354),\"\",OFFSET('Smelter Look-up'!$H$4,$V354-4,0))","v":""},{"$f":"IF(ISERROR($V354),\"\",OFFSET('Smelter Look-up'!$I$4,$V354-4,0))","v":""},{"$nulls":7},{"$f":"IF(ISERROR($V354),\"\",OFFSET('Smelter Look-up'!$C$4,$V354-4,0)&\"\")","v":""},"",{"$f":"IF(B354=\"\",\"\",IF(ISERROR(MATCH($J354,SorP!$B$1:$B$5661,0)),\"\",INDIRECT(\"'SorP'!$A$\"&MATCH($J354,SorP!$B$1:$B$5661,0))))","v":""},null,{"$f":"IF(C354=\"\",NA(),MATCH($B354&$C354,'Smelter Look-up'!$J:$J,0))","v":{"$error":"#N/A"}},null,0,null,null,null,""]
[null,{"$f":"IF(LEN(A355)=0,\"\",INDEX('Smelter Look-up'!$A:$A,MATCH($A355,'Smelter Look-up'!$E:$E,0)))","v":""},{"$f":"IF(LEN(A355)=0,\"\",INDEX('Smelter Look-up'!$C:$C,MATCH($A355,'Smelter Look-up'!$E:$E,0)))","v":""},null,{"$f":"IF(ISERROR($V355),\"\",OFFSET('Smelter Look-up'!$D$4,$V355-4,0)&\"\")","v":""},{"$f":"IF(ISERROR($V355),\"\",OFFSET('Smelter Look-up'!$E$4,$V355-4,0))","v":""},{"$f":"IF(C355=$X$4,\"Enter smelter details\",IF(ISERROR($V355),\"\",OFFSET('Smelter Look-up'!$F$4,$V355-4,0)))","v":""},{"$f":"IF(ISERROR($V355),\"\",OFFSET('Smelter Look-up'!$G$4,$V355-4,0))","v":""},{"$f":"IF(ISERROR($V355),\"\",OFFSET('Smelter Look-up'!$H$4,$V355-4,0))","v":""},{"$f":"IF(ISERROR($V355),\"\",OFFSET('Smelter Look-up'!$I$4,$V355-4,0))","v":""},{"$nulls":7},{"$f":"IF(ISERROR($V355),\"\",OFFSET('Smelter Look-up'!$C$4,$V355-4,0)&\"\")","v":""},"",{"$f":"IF(B355=\"\",\"\",IF(ISERROR(MATCH($J355,SorP!$B$1:$B$5661,0)),\"\",INDIRECT(\"'SorP'!$A$\"&MATCH($J355,SorP!$B$1:$B$5661,0))))","v":""},null,{"$f":"IF(C355=\"\",NA(),MATCH($B355&$C355,'Smelter Look-up'!$J:$J,0))","v":{"$error":"#N/A"}},null,0,null,null,null,""]
[null,{"$f":"IF(LEN(A356)=0,\"\",INDEX('Smelter Look-up'!$A:$A,MATCH($A356,'Smelter Look-up'!$E:$E,0)))","v":""},{"$f":"IF(LEN(A356)=0,\"\",INDEX('Smelter Look-up'!$C:$C,MATCH($A356,'Smelter Look-up'!$E:$E,0)))","v":""},null,{"$f":"IF(ISERROR($V356),\"\",OFFSET('Smelter Look-up'!$D$4,$V356-4,0)&\"\")","v":""},{"$f":"IF(ISERROR($V356),\"\",OFFSET('Smelter Look-up'!$E$4,$V356-4,0))","v":""},{"$f":"IF(C356=$X$4,\"Enter smelter details\",IF(ISERROR($V356),\"\",OFFSET('Smelter Look-up'!$F$4,$V356-4,0)))","v":""},{"$f":"IF(ISERROR($V356),\"\",OFFSET('Smelter Look-up'!$G$4,$V356-4,0))","v":""},{"$f":"IF(ISERROR($V356),\"\",OFFSET('Smelter Look-up'!$H$4,$V356-4,0))","v":""},{"$f":"IF(ISERROR($V356),\"\",OFFSET('Smelter Look-up'!$I$4,$V356-4,0))","v":""},{"$nulls":7},{"$f":"IF(ISERROR($V356),\"\",OFFSET('Smelter Look-up'!$C$4,$V356-4,0)&\"\")","v":""},"",{"$f":"IF(B356=\"\",\"\",IF(ISERROR(MATCH($J356,SorP!$B$1:$B$5661,0)),\"\",INDIRECT(\"'SorP'!$A$\"&MATCH($J356,SorP!$B$1:$B$5661,0))))","v":""},null,{"$f":"IF(C356=\"\",NA(),MATCH($B356&$C356,'Smelter Look-up'!$J:$J,0))","v":{"$error":"#N/A"}},null,0,null,null,null,""]
[null,{"$f":"IF(LEN(A357)=0,\"\",INDEX('Smelter Look-up'!$A:$A,MATCH($A357,'Smelter Look-up'!$E:$E,0)))","v":""},{"$f":"IF(LEN(A357)=0,\"\",INDEX('Smelter Look-up'!$C:$C,MATCH($A357,'Smelter Look-up'!$E:$E,0)))","v":""},null,{"$f":"IF(ISERROR($V357),\"\",OFFSET('Smelter Look-up'!$D$4,$V357-4,0)&\"\")","v":""},{"$f":"IF(ISERROR($V357),\"\",OFFSET('Smelter Look-up'!$E$4,$V357-4,0))","v":""},{"$f":"IF(C357=$X$4,\"Enter smelter details\",IF(ISERROR($V357),\"\",OFFSET('Smelter Look-up'!$F$4,$V357-4,0)))","v":""},{"$f":"IF(ISERROR($V357),\"\",OFFSET('Smelter Look-up'!$G$4,$V357-4,0))","v":""},{"$f":"IF(ISERROR($V357),\"\",OFFSET('Smelter Look-up'!$H$4,$V357-4,0))","v":""},{"$f":"IF(ISERROR($V357),\"\",OFFSET('Smelter Look-up'!$I$4,$V357-4,0))","v":""},{"$nulls":7},{"$f":"IF(ISERROR($V357),\"\",OFFSET('Smelter Look-up'!$C$4,$V357-4,0)&\"\")","v":""},"",{"$f":"IF(B357=\"\",\"\",IF(ISERROR(MATCH($J357,SorP!$B$1:$B$5661,0)),\"\",INDIRECT(\"'SorP'!$A$\"&MATCH($J357,SorP!$B$1:$B$5661,0))))","v":""},null,{"$f":"IF(C357=\"\",NA(),MATCH($B357&$C357,'Smelter Look-up'!$J:$J,0))","v":{"$error":"#N/A"}},null,0,null,null,null,""]
[null,{"$f":"IF(LEN(A358)=0,\"\",INDEX('Smelter Look-up'!$A:$A,MATCH($A358,'Smelter Look-up'!$E:$E,0)))","v":""},{"$f":"IF(LEN(A358)=0,\"\",INDEX('Smelter Look-up'!$C:$C,MATCH($A358,'Smelter Look-up'!$E:$E,0)))","v":""},null,{"$f":"IF(ISERROR($V358),\"\",OFFSET('Smelter Look-up'!$D$4,$V358-4,0)&\"\")","v":""},{"$f":"IF(ISERROR($V358),\"\",OFFSET('Smelter Look-up'!$E$4,$V358-4,0))","v":""},{"$f":"IF(C358=$X$4,\"Enter smelter details\",IF(ISERROR($V358),\"\",OFFSET('Smelter Look-up'!$F$4,$V358-4,0)))","v":""},{"$f":"IF(ISERROR($V358),\"\",OFFSET('Smelter Look-up'!$G$4,$V358-4,0))","v":""},{"$f":"IF(ISERROR($V358),\"\",OFFSET('Smelter Look-up'!$H$4,$V358-4,0))","v":""},{"$f":"IF(ISERROR($V358),\"\",OFFSET('Smelter Look-up'!$I$4,$V358-4,0))","v":""},{"$nulls":7},{"$f":"IF(ISERROR($V358),\"\",OFFSET('Smelter Look-up'!$C$4,$V358-4,0)&\"\")","v":""},"",{"$f":"IF(B358=\"\",\"\",IF(ISERROR(MATCH($J358,SorP!$B$1:$B$5661,0)),\"\",INDIRECT(\"'SorP'!$A$\"&MATCH($J358,SorP!$B$1:$B$5661,0))))","v":""},null,{"$f":"IF(C358=\"\",NA(),MATCH($B358&$C358,'Smelter Look-up'!$J:$J,0))","v":{"$error":"#N/A"}},null,0,null,null,null,""]
[null,{"$f":"IF(LEN(A359)=0,\"\",INDEX('Smelter Look-up'!$A:$A,MATCH($A359,'Smelter Look-up'!$E:$E,0)))","v":""},{"$f":"IF(LEN(A359)=0,\"\",INDEX('Smelter Look-up'!$C:$C,MATCH($A359,'Smelter Look-up'!$E:$E,0)))","v":""},null,{"$f":"IF(ISERROR($V359),\"\",OFFSET('Smelter Look-up'!$D$4,$V359-4,0)&\"\")","v":""},{"$f":"IF(ISERROR($V359),\"\",OFFSET('Smelter Look-up'!$E$4,$V359-4,0))","v":""},{"$f":"IF(C359=$X$4,\"Enter smelter details\",IF(ISERROR($V359),\"\",OFFSET('Smelter Look-up'!$F$4,$V359-4,0)))","v":""},{"$f":"IF(ISERROR($V359),\"\",OFFSET('Smelter Look-up'!$G$4,$V359-4,0))","v":""},{"$f":"IF(ISERROR($V359),\"\",OFFSET('Smelter Look-up'!$H$4,$V359-4,0))","v":""},{"$f":"IF(ISERROR($V359),\"\",OFFSET('Smelter Look-up'!$I$4,$V359-4,0))","v":""},{"$nulls":7},{"$f":"IF(ISERROR($V359),\"\",OFFSET('Smelter Look-up'!$C$4,$V359-4,0)&\"\")","v":""},"",{"$f":"IF(B359=\"\",\"\",IF(ISERROR(MATCH($J359,SorP!$B$1:$B$5661,0)),\"\",INDIRECT(\"'SorP'!$A$\"&MATCH($J359,SorP!$B$1:$B$5661,0))))","v":""},null,{"$f":"IF(C359=\"\",NA(),MATCH($B359&$C359,'Smelter Look-up'!$J:$J,0))","v":{"$error":"#N/A"}},null,0,null,null,null,""]
[null,{"$f":"IF(LEN(A360)=0,\"\",INDEX('Smelter Look-up'!$A:$A,MATCH($A360,'Smelter Look-up'!$E:$E,0)))","v":""},{"$f":"IF(LEN(A360)=0,\"\",INDEX('Smelter Look-up'!$C:$C,MATCH($A360,'Smelter Look-up'!$E:$E,0)))","v":""},null,{"$f":"IF(ISERROR($V360),\"\",OFFSET('Smelter Look-up'!$D$4,$V360-4,0)&\"\")","v":""},{"$f":"IF(ISERROR($V360),\"\",OFFSET('Smelter Look-up'!$E$4,$V360-4,0))","v":""},{"$f":"IF(C360=$X$4,\"Enter smelter details\",IF(ISERROR($V360),\"\",OFFSET('Smelter Look-up'!$F$4,$V360-4,0)))","v":""},{"$f":"IF(ISERROR($V360),\"\",OFFSET('Smelter Look-up'!$G$4,$V360-4,0))","v":""},{"$f":"IF(ISERROR($V360),\"\",OFFSET('Smelter Look-up'!$H$4,$V360-4,0))","v":""},{"$f":"IF(ISERROR($V360),\"\",OFFSET('Smelter Look-up'!$I$4,$V360-4,0))","v":""},{"$nulls":7},{"$f":"IF(ISERROR($V360),\"\",OFFSET('Smelter Look-up'!$C$4,$V360-4,0)&\"\")","v":""},"",{"$f":"IF(B360=\"\",\"\",IF(ISERROR(MATCH($J360,SorP!$B$1:$B$5661,0)),\"\",INDIRECT(\"'SorP'!$A$\"&MATCH($J360,SorP!$B$1:$B$5661,0))))","v":""},null,{"$f":"IF(C360=\"\",NA(),MATCH($B360&$C360,'Smelter Look-up'!$J:$J,0))","v":{"$error":"#N/A"}},null,0,null,null,null,""]
[null,{"$f":"IF(LEN(A361)=0,\"\",INDEX('Smelter Look-up'!$A:$A,MATCH($A361,'Smelter Look-up'!$E:$E,0)))","v":""},{"$f":"IF(LEN(A361)=0,\"\",INDEX('Smelter Look-up'!$C:$C,MATCH($A361,'Smelter Look-up'!$E:$E,0)))","v":""},null,{"$f":"IF(ISERROR($V361),\"\",OFFSET('Smelter Look-up'!$D$4,$V361-4,0)&\"\")","v":""},{"$f":"IF(ISERROR($V361),\"\",OFFSET('Smelter Look-up'!$E$4,$V361-4,0))","v":""},{"$f":"IF(C361=$X$4,\"Enter smelter details\",IF(ISERROR($V361),\"\",OFFSET('Smelter Look-up'!$F$4,$V361-4,0)))","v":""},{"$f":"IF(ISERROR($V361),\"\",OFFSET('Smelter Look-up'!$G$4,$V361-4,0))","v":""},{"$f":"IF(ISERROR($V361),\"\",OFFSET('Smelter Look-up'!$H$4,$V361-4,0))","v":""},{"$f":"IF(ISERROR($V361),\"\",OFFSET('Smelter Look-up'!$I$4,$V361-4,0))","v":""},{"$nulls":7},{"$f":"IF(ISERROR($V361),\"\",OFFSET('Smelter Look-up'!$C$4,$V361-4,0)&\"\")","v":""},"",{"$f":"IF(B361=\"\",\"\",IF(ISERROR(MATCH($J361,SorP!$B$1:$B$5661,0)),\"\",INDIRECT(\"'SorP'!$A$\"&MATCH($J361,SorP!$B$1:$B$5661,0))))","v":""},null,{"$f":"IF(C361=\"\",NA(),MATCH($B361&$C361,'Smelter Look-up'!$J:$J,0))","v":{"$error":"#N/A"}},null,0,null,null,null,""]
[null,{"$f":"IF(LEN(A362)=0,\"\",INDEX('Smelter Look-up'!$A:$A,MATCH($A362,'Smelter Look-up'!$E:$E,0)))","v":""},{"$f":"IF(LEN(A362)=0,\"\",INDEX('Smelter Look-up'!$C:$C,MATCH($A362,'Smelter Look-up'!$E:$E,0)))","v":""},null,{"$f":"IF(ISERROR($V362),\"\",OFFSET('Smelter Look-up'!$D$4,$V362-4,0)&\"\")","v":""},{"$f":"IF(ISERROR($V362),\"\",OFFSET('Smelter Look-up'!$E$4,$V362-4,0))","v":""},{"$f":"IF(C362=$X$4,\"Enter smelter details\",IF(ISERROR($V362),\"\",OFFSET('Smelter Look-up'!$F$4,$V362-4,0)))","v":""},{"$f":"IF(ISERROR($V362),\"\",OFFSET('Smelter Look-up'!$G$4,$V362-4,0))","v":""},{"$f":"IF(ISERROR($V362),\"\",OFFSET('Smelter Look-up'!$H$4,$V362-4,0))","v":""},{"$f":"IF(ISERROR($V362),\"\",OFFSET('Smelter Look-up'!$I$4,$V362-4,0))","v":""},{"$nulls":7},{"$f":"IF(ISERROR($V362),\"\",OFFSET('Smelter Look-up'!$C$4,$V362-4,0)&\"\")","v":""},"",{"$f":"IF(B362=\"\",\"\",IF(ISERROR(MATCH($J362,SorP!$B$1:$B$5661,0)),\"\",INDIRECT(\"'SorP'!$A$\"&MATCH($J362,SorP!$B$1:$B$5661,0))))","v":""},null,{"$f":"IF(C362=\"\",NA(),MATCH($B362&$C362,'Smelter Look-up'!$J:$J,0))","v":{"$error":"#N/A"}},null,0,null,null,null,""]
[null,{"$f":"IF(LEN(A363)=0,\"\",INDEX('Smelter Look-up'!$A:$A,MATCH($A363,'Smelter Look-up'!$E:$E,0)))","v":""},{"$f":"IF(LEN(A363)=0,\"\",INDEX('Smelter Look-up'!$C:$C,MATCH($A363,'Smelter Look-up'!$E:$E,0)))","v":""},null,{"$f":"IF(ISERROR($V363),\"\",OFFSET('Smelter Look-up'!$D$4,$V363-4,0)&\"\")","v":""},{"$f":"IF(ISERROR($V363),\"\",OFFSET('Smelter Look-up'!$E$4,$V363-4,0))","v":""},{"$f":"IF(C363=$X$4,\"Enter smelter details\",IF(ISERROR($V363),\"\",OFFSET('Smelter Look-up'!$F$4,$V363-4,0)))","v":""},{"$f":"IF(ISERROR($V363),\"\",OFFSET('Smelter Look-up'!$G$4,$V363-4,0))","v":""},{"$f":"IF(ISERROR($V363),\"\",OFFSET('Smelter Look-up'!$H$4,$V363-4,0))","v":""},{"$f":"IF(ISERROR($V363),\"\",OFFSET('Smelter Look-up'!$I$4,$V363-4,0))","v":""},{"$nulls":7},{"$f":"IF(ISERROR($V363),\"\",OFFSET('Smelter Look-up'!$C$4,$V363-4,0)&\"\")","v":""},"",{"$f":"IF(B363=\"\",\"\",IF(ISERROR(MATCH($J363,SorP!$B$1:$B$5661,0)),\"\",INDIRECT(\"'SorP'!$A$\"&MATCH($J363,SorP!$B$1:$B$5661,0))))","v":""},null,{"$f":"IF(C363=\"\",NA(),MATCH($B363&$C363,'Smelter Look-up'!$J:$J,0))","v":{"$error":"#N/A"}},null,0,null,null,null,""]
[null,{"$f":"IF(LEN(A364)=0,\"\",INDEX('Smelter Look-up'!$A:$A,MATCH($A364,'Smelter Look-up'!$E:$E,0)))","v":""},{"$f":"IF(LEN(A364)=0,\"\",INDEX('Smelter Look-up'!$C:$C,MATCH($A364,'Smelter Look-up'!$E:$E,0)))","v":""},null,{"$f":"IF(ISERROR($V364),\"\",OFFSET('Smelter Look-up'!$D$4,$V364-4,0)&\"\")","v":""},{"$f":"IF(ISERROR($V364),\"\",OFFSET('Smelter Look-up'!$E$4,$V364-4,0))","v":""},{"$f":"IF(C364=$X$4,\"Enter smelter details\",IF(ISERROR($V364),\"\",OFFSET('Smelter Look-up'!$F$4,$V364-4,0)))","v":""},{"$f":"IF(ISERROR($V364),\"\",OFFSET('Smelter Look-up'!$G$4,$V364-4,0))","v":""},{"$f":"IF(ISERROR($V364),\"\",OFFSET('Smelter Look-up'!$H$4,$V364-4,0))","v":""},{"$f":"IF(ISERROR($V364),\"\",OFFSET('Smelter Look-up'!$I$4,$V364-4,0))","v":""},{"$nulls":7},{"$f":"IF(ISERROR($V364),\"\",OFFSET('Smelter Look-up'!$C$4,$V364-4,0)&\"\")","v":""},"",{"$f":"IF(B364=\"\",\"\",IF(ISERROR(MATCH($J364,SorP!$B$1:$B$5661,0)),\"\",INDIRECT(\"'SorP'!$A$\"&MATCH($J364,SorP!$B$1:$B$5661,0))))","v":""},null,{"$f":"IF(C364=\"\",NA(),MATCH($B364&$C364,'Smelter Look-up'!$J:$J,0))","v":{"$error":"#N/A"}},null,0,null,null,null,""]
[null,{"$f":"IF(LEN(A365)=0,\"\",INDEX('Smelter Look-up'!$A:$A,MATCH($A365,'Smelter Look-up'!$E:$E,0)))","v":""},{"$f":"IF(LEN(A365)=0,\"\",INDEX('Smelter Look-up'!$C:$C,MATCH($A365,'Smelter Look-up'!$E:$E,0)))","v":""},null,{"$f":"IF(ISERROR($V365),\"\",OFFSET('Smelter Look-up'!$D$4,$V365-4,0)&\"\")","v":""},{"$f":"IF(ISERROR($V365),\"\",OFFSET('Smelter Look-up'!$E$4,$V365-4,0))","v":""},{"$f":"IF(C365=$X$4,\"Enter smelter details\",IF(ISERROR($V365),\"\",OFFSET('Smelter Look-up'!$F$4,$V365-4,0)))","v":""},{"$f":"IF(ISERROR($V365),\"\",OFFSET('Smelter Look-up'!$G$4,$V365-4,0))","v":""},{"$f":"IF(ISERROR($V365),\"\",OFFSET('Smelter Look-up'!$H$4,$V365-4,0))","v":""},{"$f":"IF(ISERROR($V365),\"\",OFFSET('Smelter Look-up'!$I$4,$V365-4,0))","v":""},{"$nulls":7},{"$f":"IF(ISERROR($V365),\"\",OFFSET('Smelter Look-up'!$C$4,$V365-4,0)&\"\")","v":""},"",{"$f":"IF(B365=\"\",\"\",IF(ISERROR(MATCH($J365,SorP!$B$1:$B$5661,0)),\"\",INDIRECT(\"'SorP'!$A$\"&MATCH($J365,SorP!$B$1:$B$5661,0))))","v":""},null,{"$f":"IF(C365=\"\",NA(),MATCH($B365&$C365,'Smelter Look-up'!$J:$J,0))","v":{"$error":"#N/A"}},null,0,null,null,null,""]
[null,{"$f":"IF(LEN(A366)=0,\"\",INDEX('Smelter Look-up'!$A:$A,MATCH($A366,'Smelter Look-up'!$E:$E,0)))","v":""},{"$f":"IF(LEN(A366)=0,\"\",INDEX('Smelter Look-up'!$C:$C,MATCH($A366,'Smelter Look-up'!$E:$E,0)))","v":""},null,{"$f":"IF(ISERROR($V366),\"\",OFFSET('Smelter Look-up'!$D$4,$V366-4,0)&\"\")","v":""},{"$f":"IF(ISERROR($V366),\"\",OFFSET('Smelter Look-up'!$E$4,$V366-4,0))","v":""},{"$f":"IF(C366=$X$4,\"Enter smelter details\",IF(ISERROR($V366),\"\",OFFSET('Smelter Look-up'!$F$4,$V366-4,0)))","v":""},{"$f":"IF(ISERROR($V366),\"\",OFFSET('Smelter Look-up'!$G$4,$V366-4,0))","v":""},{"$f":"IF(ISERROR($V366),\"\",OFFSET('Smelter Look-up'!$H$4,$V366-4,0))","v":""},{"$f":"IF(ISERROR($V366),\"\",OFFSET('Smelter Look-up'!$I$4,$V366-4,0))","v":""},{"$nulls":7},{"$f":"IF(ISERROR($V366),\"\",OFFSET('Smelter Look-up'!$C$4,$V366-4,0)&\"\")","v":""},"",{"$f":"IF(B366=\"\",\"\",IF(ISERROR(MATCH($J366,SorP!$B$1:$B$5661,0)),\"\",INDIRECT(\"'SorP'!$A$\"&MATCH($J366,SorP!$B$1:$B$5661,0))))","v":""},null,{"$f":"IF(C366=\"\",NA(),MATCH($B366&$C366,'Smelter Look-up'!$J:$J,0))","v":{"$error":"#N/A"}},null,0,null,null,null,""]
[null,{"$f":"IF(LEN(A367)=0,\"\",INDEX('Smelter Look-up'!$A:$A,MATCH($A367,'Smelter Look-up'!$E:$E,0)))","v":""},{"$f":"IF(LEN(A367)=0,\"\",INDEX('Smelter Look-up'!$C:$C,MATCH($A367,'Smelter Look-up'!$E:$E,0)))","v":""},null,{"$f":"IF(ISERROR($V367),\"\",OFFSET('Smelter Look-up'!$D$4,$V367-4,0)&\"\")","v":""},{"$f":"IF(ISERROR($V367),\"\",OFFSET('Smelter Look-up'!$E$4,$V367-4,0))","v":""},{"$f":"IF(C367=$X$4,\"Enter smelter details\",IF(ISERROR($V367),\"\",OFFSET('Smelter Look-up'!$F$4,$V367-4,0)))","v":""},{"$f":"IF(ISERROR($V367),\"\",OFFSET('Smelter Look-up'!$G$4,$V367-4,0))","v":""},{"$f":"IF(ISERROR($V367),\"\",OFFSET('Smelter Look-up'!$H$4,$V367-4,0))","v":""},{"$f":"IF(ISERROR($V367),\"\",OFFSET('Smelter Look-up'!$I$4,$V367-4,0))","v":""},{"$nulls":7},{"$f":"IF(ISERROR($V367),\"\",OFFSET('Smelter Look-up'!$C$4,$V367-4,0)&\"\")","v":""},"",{"$f":"IF(B367=\"\",\"\",IF(ISERROR(MATCH($J367,SorP!$B$1:$B$5661,0)),\"\",INDIRECT(\"'SorP'!$A$\"&MATCH($J367,SorP!$B$1:$B$5661,0))))","v":""},null,{"$f":"IF(C367=\"\",NA(),MATCH($B367&$C367,'Smelter Look-up'!$J:$J,0))","v":{"$error":"#N/A"}},null,0,null,null,null,""]
[null,{"$f":"IF(LEN(A368)=0,\"\",INDEX('Smelter Look-up'!$A:$A,MATCH($A368,'Smelter Look-up'!$E:$E,0)))","v":""},{"$f":"IF(LEN(A368)=0,\"\",INDEX('Smelter Look-up'!$C:$C,MATCH($A368,'Smelter Look-up'!$E:$E,0)))","v":""},null,{"$f":"IF(ISERROR($V368),\"\",OFFSET('Smelter Look-up'!$D$4,$V368-4,0)&\"\")","v":""},{"$f":"IF(ISERROR($V368),\"\",OFFSET('Smelter Look-up'!$E$4,$V368-4,0))","v":""},{"$f":"IF(C368=$X$4,\"Enter smelter details\",IF(ISERROR($V368),\"\",OFFSET('Smelter Look-up'!$F$4,$V368-4,0)))","v":""},{"$f":"IF(ISERROR($V368),\"\",OFFSET('Smelter Look-up'!$G$4,$V368-4,0))","v":""},{"$f":"IF(ISERROR($V368),\"\",OFFSET('Smelter Look-up'!$H$4,$V368-4,0))","v":""},{"$f":"IF(ISERROR($V368),\"\",OFFSET('Smelter Look-up'!$I$4,$V368-4,0))","v":""},{"$nulls":7},{"$f":"IF(ISERROR($V368),\"\",OFFSET('Smelter Look-up'!$C$4,$V368-4,0)&\"\")","v":""},"",{"$f":"IF(B368=\"\",\"\",IF(ISERROR(MATCH($J368,SorP!$B$1:$B$5661,0)),\"\",INDIRECT(\"'SorP'!$A$\"&MATCH($J368,SorP!$B$1:$B$5661,0))))","v":""},null,{"$f":"IF(C368=\"\",NA(),MATCH($B368&$C368,'Smelter Look-up'!$J:$J,0))","v":{"$error":"#N/A"}},null,0,null,null,null,""]
[null,{"$f":"IF(LEN(A369)=0,\"\",INDEX('Smelter Look-up'!$A:$A,MATCH($A369,'Smelter Look-up'!$E:$E,0)))","v":""},{"$f":"IF(LEN(A369)=0,\"\",INDEX('Smelter Look-up'!$C:$C,MATCH($A369,'Smelter Look-up'!$E:$E,0)))","v":""},null,{"$f":"IF(ISERROR($V369),\"\",OFFSET('Smelter Look-up'!$D$4,$V369-4,0)&\"\")","v":""},{"$f":"IF(ISERROR($V369),\"\",OFFSET('Smelter Look-up'!$E$4,$V369-4,0))","v":""},{"$f":"IF(C369=$X$4,\"Enter smelter details\",IF(ISERROR($V369),\"\",OFFSET('Smelter Look-up'!$F$4,$V369-4,0)))","v":""},{"$f":"IF(ISERROR($V369),\"\",OFFSET('Smelter Look-up'!$G$4,$V369-4,0))","v":""},{"$f":"IF(ISERROR($V369),\"\",OFFSET('Smelter Look-up'!$H$4,$V369-4,0))","v":""},{"$f":"IF(ISERROR($V369),\"\",OFFSET('Smelter Look-up'!$I$4,$V369-4,0))","v":""},{"$nulls":7},{"$f":"IF(ISERROR($V369),\"\",OFFSET('Smelter Look-up'!$C$4,$V369-4,0)&\"\")","v":""},"",{"$f":"IF(B369=\"\",\"\",IF(ISERROR(MATCH($J369,SorP!$B$1:$B$5661,0)),\"\",INDIRECT(\"'SorP'!$A$\"&MATCH($J369,SorP!$B$1:$B$5661,0))))","v":""},null,{"$f":"IF(C369=\"\",NA(),MATCH($B369&$C369,'Smelter Look-up'!$J:$J,0))","v":{"$error":"#N/A"}},null,0,null,null,null,""]
[null,{"$f":"IF(LEN(A370)=0,\"\",INDEX('Smelter Look-up'!$A:$A,MATCH($A370,'Smelter Look-up'!$E:$E,0)))","v":""},{"$f":"IF(LEN(A370)=0,\"\",INDEX('Smelter Look-up'!$C:$C,MATCH($A370,'Smelter Look-up'!$E:$E,0)))","v":""},null,{"$f":"IF(ISERROR($V370),\"\",OFFSET('Smelter Look-up'!$D$4,$V370-4,0)&\"\")","v":""},{"$f":"IF(ISERROR($V370),\"\",OFFSET('Smelter Look-up'!$E$4,$V370-4,0))","v":""},{"$f":"IF(C370=$X$4,\"Enter smelter details\",IF(ISERROR($V370),\"\",OFFSET('Smelter Look-up'!$F$4,$V370-4,0)))","v":""},{"$f":"IF(ISERROR($V370),\"\",OFFSET('Smelter Look-up'!$G$4,$V370-4,0))","v":""},{"$f":"IF(ISERROR($V370),\"\",OFFSET('Smelter Look-up'!$H$4,$V370-4,0))","v":""},{"$f":"IF(ISERROR($V370),\"\",OFFSET('Smelter Look-up'!$I$4,$V370-4,0))","v":""},{"$nulls":7},{"$f":"IF(ISERROR($V370),\"\",OFFSET('Smelter Look-up'!$C$4,$V370-4,0)&\"\")","v":""},"",{"$f":"IF(B370=\"\",\"\",IF(ISERROR(MATCH($J370,SorP!$B$1:$B$5661,0)),\"\",INDIRECT(\"'SorP'!$A$\"&MATCH($J370,SorP!$B$1:$B$5661,0))))","v":""},null,{"$f":"IF(C370=\"\",NA(),MATCH($B370&$C370,'Smelter Look-up'!$J:$J,0))","v":{"$error":"#N/A"}},null,0,null,null,null,""]
[null,{"$f":"IF(LEN(A371)=0,\"\",INDEX('Smelter Look-up'!$A:$A,MATCH($A371,'Smelter Look-up'!$E:$E,0)))","v":""},{"$f":"IF(LEN(A371)=0,\"\",INDEX('Smelter Look-up'!$C:$C,MATCH($A371,'Smelter Look-up'!$E:$E,0)))","v":""},null,{"$f":"IF(ISERROR($V371),\"\",OFFSET('Smelter Look-up'!$D$4,$V371-4,0)&\"\")","v":""},{"$f":"IF(ISERROR($V371),\"\",OFFSET('Smelter Look-up'!$E$4,$V371-4,0))","v":""},{"$f":"IF(C371=$X$4,\"Enter smelter details\",IF(ISERROR($V371),\"\",OFFSET('Smelter Look-up'!$F$4,$V371-4,0)))","v":""},{"$f":"IF(ISERROR($V371),\"\",OFFSET('Smelter Look-up'!$G$4,$V371-4,0))","v":""},{"$f":"IF(ISERROR($V371),\"\",OFFSET('Smelter Look-up'!$H$4,$V371-4,0))","v":""},{"$f":"IF(ISERROR($V371),\"\",OFFSET('Smelter Look-up'!$I$4,$V371-4,0))","v":""},{"$nulls":7},{"$f":"IF(ISERROR($V371),\"\",OFFSET('Smelter Look-up'!$C$4,$V371-4,0)&\"\")","v":""},"",{"$f":"IF(B371=\"\",\"\",IF(ISERROR(MATCH($J371,SorP!$B$1:$B$5661,0)),\"\",INDIRECT(\"'SorP'!$A$\"&MATCH($J371,SorP!$B$1:$B$5661,0))))","v":""},null,{"$f":"IF(C371=\"\",NA(),MATCH($B371&$C371,'Smelter Look-up'!$J:$J,0))","v":{"$error":"#N/A"}},null,0,null,null,null,""]
[null,{"$f":"IF(LEN(A372)=0,\"\",INDEX('Smelter Look-up'!$A:$A,MATCH($A372,'Smelter Look-up'!$E:$E,0)))","v":""},{"$f":"IF(LEN(A372)=0,\"\",INDEX('Smelter Look-up'!$C:$C,MATCH($A372,'Smelter Look-up'!$E:$E,0)))","v":""},null,{"$f":"IF(ISERROR($V372),\"\",OFFSET('Smelter Look-up'!$D$4,$V372-4,0)&\"\")","v":""},{"$f":"IF(ISERROR($V372),\"\",OFFSET('Smelter Look-up'!$E$4,$V372-4,0))","v":""},{"$f":"IF(C372=$X$4,\"Enter smelter details\",IF(ISERROR($V372),\"\",OFFSET('Smelter Look-up'!$F$4,$V372-4,0)))","v":""},{"$f":"IF(ISERROR($V372),\"\",OFFSET('Smelter Look-up'!$G$4,$V372-4,0))","v":""},{"$f":"IF(ISERROR($V372),\"\",OFFSET('Smelter Look-up'!$H$4,$V372-4,0))","v":""},{"$f":"IF(ISERROR($V372),\"\",OFFSET('Smelter Look-up'!$I$4,$V372-4,0))","v":""},{"$nulls":7},{"$f":"IF(ISERROR($V372),\"\",OFFSET('Smelter Look-up'!$C$4,$V372-4,0)&\"\")","v":""},"",{"$f":"IF(B372=\"\",\"\",IF(ISERROR(MATCH($J372,SorP!$B$1:$B$5661,0)),\"\",INDIRECT(\"'SorP'!$A$\"&MATCH($J372,SorP!$B$1:$B$5661,0))))","v":""},null,{"$f":"IF(C372=\"\",NA(),MATCH($B372&$C372,'Smelter Look-up'!$J:$J,0))","v":{"$error":"#N/A"}},null,0,null,null,null,""]
[null,{"$f":"IF(LEN(A373)=0,\"\",INDEX('Smelter Look-up'!$A:$A,MATCH($A373,'Smelter Look-up'!$E:$E,0)))","v":""},{"$f":"IF(LEN(A373)=0,\"\",INDEX('Smelter Look-up'!$C:$C,MATCH($A373,'Smelter Look-up'!$E:$E,0)))","v":""},null,{"$f":"IF(ISERROR($V373),\"\",OFFSET('Smelter Look-up'!$D$4,$V373-4,0)&\"\")","v":""},{"$f":"IF(ISERROR($V373),\"\",OFFSET('Smelter Look-up'!$E$4,$V373-4,0))","v":""},{"$f":"IF(C373=$X$4,\"Enter smelter details\",IF(ISERROR($V373),\"\",OFFSET('Smelter Look-up'!$F$4,$V373-4,0)))","v":""},{"$f":"IF(ISERROR($V373),\"\",OFFSET('Smelter Look-up'!$G$4,$V373-4,0))","v":""},{"$f":"IF(ISERROR($V373),\"\",OFFSET('Smelter Look-up'!$H$4,$V373-4,0))","v":""},{"$f":"IF(ISERROR($V373),\"\",OFFSET('Smelter Look-up'!$I$4,$V373-4,0))","v":""},{"$nulls":7},{"$f":"IF(ISERROR($V373),\"\",OFFSET('Smelter Look-up'!$C$4,$V373-4,0)&\"\")","v":""},"",{"$f":"IF(B373=\"\",\"\",IF(ISERROR(MATCH($J373,SorP!$B$1:$B$5661,0)),\"\",INDIRECT(\"'SorP'!$A$\"&MATCH($J373,SorP!$B$1:$B$5661,0))))","v":""},null,{"$f":"IF(C373=\"\",NA(),MATCH($B373&$C373,'Smelter Look-up'!$J:$J,0))","v":{"$error":"#N/A"}},null,0,null,null,null,""]
[null,{"$f":"IF(LEN(A374)=0,\"\",INDEX('Smelter Look-up'!$A:$A,MATCH($A374,'Smelter Look-up'!$E:$E,0)))","v":""},{"$f":"IF(LEN(A374)=0,\"\",INDEX('Smelter Look-up'!$C:$C,MATCH($A374,'Smelter Look-up'!$E:$E,0)))","v":""},null,{"$f":"IF(ISERROR($V374),\"\",OFFSET('Smelter Look-up'!$D$4,$V374-4,0)&\"\")","v":""},{"$f":"IF(ISERROR($V374),\"\",OFFSET('Smelter Look-up'!$E$4,$V374-4,0))","v":""},{"$f":"IF(C374=$X$4,\"Enter smelter details\",IF(ISERROR($V374),\"\",OFFSET('Smelter Look-up'!$F$4,$V374-4,0)))","v":""},{"$f":"IF(ISERROR($V374),\"\",OFFSET('Smelter Look-up'!$G$4,$V374-4,0))","v":""},{"$f":"IF(ISERROR($V374),\"\",OFFSET('Smelter Look-up'!$H$4,$V374-4,0))","v":""},{"$f":"IF(ISERROR($V374),\"\",OFFSET('Smelter Look-up'!$I$4,$V374-4,0))","v":""},{"$nulls":7},{"$f":"IF(ISERROR($V374),\"\",OFFSET('Smelter Look-up'!$C$4,$V374-4,0)&\"\")","v":""},"",{"$f":"IF(B374=\"\",\"\",IF(ISERROR(MATCH($J374,SorP!$B$1:$B$5661,0)),\"\",INDIRECT(\"'SorP'!$A$\"&MATCH($J374,SorP!$B$1:$B$5661,0))))","v":""},null,{"$f":"IF(C374=\"\",NA(),MATCH($B374&$C374,'Smelter Look-up'!$J:$J,0))","v":{"$error":"#N/A"}},null,0,null,null,null,""]
[null,{"$f":"IF(LEN(A375)=0,\"\",INDEX('Smelter Look-up'!$A:$A,MATCH($A375,'Smelter Look-up'!$E:$E,0)))","v":""},{"$f":"IF(LEN(A375)=0,\"\",INDEX('Smelter Look-up'!$C:$C,MATCH($A375,'Smelter Look-up'!$E:$E,0)))","v":""},null,{"$f":"IF(ISERROR($V375),\"\",OFFSET('Smelter Look-up'!$D$4,$V375-4,0)&\"\")","v":""},{"$f":"IF(ISERROR($V375),\"\",OFFSET('Smelter Look-up'!$E$4,$V375-4,0))","v":""},{"$f":"IF(C375=$X$4,\"Enter smelter details\",IF(ISERROR($V375),\"\",OFFSET('Smelter Look-up'!$F$4,$V375-4,0)))","v":""},{"$f":"IF(ISERROR($V375),\"\",OFFSET('Smelter Look-up'!$G$4,$V375-4,0))","v":""},{"$f":"IF(ISERROR($V375),\"\",OFFSET('Smelter Look-up'!$H$4,$V375-4,0))","v":""},{"$f":"IF(ISERROR($V375),\"\",OFFSET('Smelter Look-up'!$I$4,$V375-4,0))","v":""},{"$nulls":7},{"$f":"IF(ISERROR($V375),\"\",OFFSET('Smelter Look-up'!$C$4,$V375-4,0)&\"\")","v":""},"",{"$f":"IF(B375=\"\",\"\",IF(ISERROR(MATCH($J375,SorP!$B$1:$B$5661,0)),\"\",INDIRECT(\"'SorP'!$A$\"&MATCH($J375,SorP!$B$1:$B$5661,0))))","v":""},null,{"$f":"IF(C375=\"\",NA(),MATCH($B375&$C375,'Smelter Look-up'!$J:$J,0))","v":{"$error":"#N/A"}},null,0,null,null,null,""]
[null,{"$f":"IF(LEN(A376)=0,\"\",INDEX('Smelter Look-up'!$A:$A,MATCH($A376,'Smelter Look-up'!$E:$E,0)))","v":""},{"$f":"IF(LEN(A376)=0,\"\",INDEX('Smelter Look-up'!$C:$C,MATCH($A376,'Smelter Look-up'!$E:$E,0)))","v":""},null,{"$f":"IF(ISERROR($V376),\"\",OFFSET('Smelter Look-up'!$D$4,$V376-4,0)&\"\")","v":""},{"$f":"IF(ISERROR($V376),\"\",OFFSET('Smelter Look-up'!$E$4,$V376-4,0))","v":""},{"$f":"IF(C376=$X$4,\"Enter smelter details\",IF(ISERROR($V376),\"\",OFFSET('Smelter Look-up'!$F$4,$V376-4,0)))","v":""},{"$f":"IF(ISERROR($V376),\"\",OFFSET('Smelter Look-up'!$G$4,$V376-4,0))","v":""},{"$f":"IF(ISERROR($V376),\"\",OFFSET('Smelter Look-up'!$H$4,$V376-4,0))","v":""},{"$f":"IF(ISERROR($V376),\"\",OFFSET('Smelter Look-up'!$I$4,$V376-4,0))","v":""},{"$nulls":7},{"$f":"IF(ISERROR($V376),\"\",OFFSET('Smelter Look-up'!$C$4,$V376-4,0)&\"\")","v":""},"",{"$f":"IF(B376=\"\",\"\",IF(ISERROR(MATCH($J376,SorP!$B$1:$B$5661,0)),\"\",INDIRECT(\"'SorP'!$A$\"&MATCH($J376,SorP!$B$1:$B$5661,0))))","v":""},null,{"$f":"IF(C376=\"\",NA(),MATCH($B376&$C376,'Smelter Look-up'!$J:$J,0))","v":{"$error":"#N/A"}},null,0,null,null,null,""]
[null,{"$f":"IF(LEN(A377)=0,\"\",INDEX('Smelter Look-up'!$A:$A,MATCH($A377,'Smelter Look-up'!$E:$E,0)))","v":""},{"$f":"IF(LEN(A377)=0,\"\",INDEX('Smelter Look-up'!$C:$C,MATCH($A377,'Smelter Look-up'!$E:$E,0)))","v":""},null,{"$f":"IF(ISERROR($V377),\"\",OFFSET('Smelter Look-up'!$D$4,$V377-4,0)&\"\")","v":""},{"$f":"IF(ISERROR($V377),\"\",OFFSET('Smelter Look-up'!$E$4,$V377-4,0))","v":""},{"$f":"IF(C377=$X$4,\"Enter smelter details\",IF(ISERROR($V377),\"\",OFFSET('Smelter Look-up'!$F$4,$V377-4,0)))","v":""},{"$f":"IF(ISERROR($V377),\"\",OFFSET('Smelter Look-up'!$G$4,$V377-4,0))","v":""},{"$f":"IF(ISERROR($V377),\"\",OFFSET('Smelter Look-up'!$H$4,$V377-4,0))","v":""},{"$f":"IF(ISERROR($V377),\"\",OFFSET('Smelter Look-up'!$I$4,$V377-4,0))","v":""},{"$nulls":7},{"$f":"IF(ISERROR($V377),\"\",OFFSET('Smelter Look-up'!$C$4,$V377-4,0)&\"\")","v":""},"",{"$f":"IF(B377=\"\",\"\",IF(ISERROR(MATCH($J377,SorP!$B$1:$B$5661,0)),\"\",INDIRECT(\"'SorP'!$A$\"&MATCH($J377,SorP!$B$1:$B$5661,0))))","v":""},null,{"$f":"IF(C377=\"\",NA(),MATCH($B377&$C377,'Smelter Look-up'!$J:$J,0))","v":{"$error":"#N/A"}},null,0,null,null,null,""]
[null,{"$f":"IF(LEN(A378)=0,\"\",INDEX('Smelter Look-up'!$A:$A,MATCH($A378,'Smelter Look-up'!$E:$E,0)))","v":""},{"$f":"IF(LEN(A378)=0,\"\",INDEX('Smelter Look-up'!$C:$C,MATCH($A378,'Smelter Look-up'!$E:$E,0)))","v":""},null,{"$f":"IF(ISERROR($V378),\"\",OFFSET('Smelter Look-up'!$D$4,$V378-4,0)&\"\")","v":""},{"$f":"IF(ISERROR($V378),\"\",OFFSET('Smelter Look-up'!$E$4,$V378-4,0))","v":""},{"$f":"IF(C378=$X$4,\"Enter smelter details\",IF(ISERROR($V378),\"\",OFFSET('Smelter Look-up'!$F$4,$V378-4,0)))","v":""},{"$f":"IF(ISERROR($V378),\"\",OFFSET('Smelter Look-up'!$G$4,$V378-4,0))","v":""},{"$f":"IF(ISERROR($V378),\"\",OFFSET('Smelter Look-up'!$H$4,$V378-4,0))","v":""},{"$f":"IF(ISERROR($V378),\"\",OFFSET('Smelter Look-up'!$I$4,$V378-4,0))","v":""},{"$nulls":7},{"$f":"IF(ISERROR($V378),\"\",OFFSET('Smelter Look-up'!$C$4,$V378-4,0)&\"\")","v":""},"",{"$f":"IF(B378=\"\",\"\",IF(ISERROR(MATCH($J378,SorP!$B$1:$B$5661,0)),\"\",INDIRECT(\"'SorP'!$A$\"&MATCH($J378,SorP!$B$1:$B$5661,0))))","v":""},null,{"$f":"IF(C378=\"\",NA(),MATCH($B378&$C378,'Smelter Look-up'!$J:$J,0))","v":{"$error":"#N/A"}},null,0,null,null,null,""]
[null,{"$f":"IF(LEN(A379)=0,\"\",INDEX('Smelter Look-up'!$A:$A,MATCH($A379,'Smelter Look-up'!$E:$E,0)))","v":""},{"$f":"IF(LEN(A379)=0,\"\",INDEX('Smelter Look-up'!$C:$C,MATCH($A379,'Smelter Look-up'!$E:$E,0)))","v":""},null,{"$f":"IF(ISERROR($V379),\"\",OFFSET('Smelter Look-up'!$D$4,$V379-4,0)&\"\")","v":""},{"$f":"IF(ISERROR($V379),\"\",OFFSET('Smelter Look-up'!$E$4,$V379-4,0))","v":""},{"$f":"IF(C379=$X$4,\"Enter smelter details\",IF(ISERROR($V379),\"\",OFFSET('Smelter Look-up'!$F$4,$V379-4,0)))","v":""},{"$f":"IF(ISERROR($V379),\"\",OFFSET('Smelter Look-up'!$G$4,$V379-4,0))","v":""},{"$f":"IF(ISERROR($V379),\"\",OFFSET('Smelter Look-up'!$H$4,$V379-4,0))","v":""},{"$f":"IF(ISERROR($V379),\"\",OFFSET('Smelter Look-up'!$I$4,$V379-4,0))","v":""},{"$nulls":7},{"$f":"IF(ISERROR($V379),\"\",OFFSET('Smelter Look-up'!$C$4,$V379-4,0)&\"\")","v":""},"",{"$f":"IF(B379=\"\",\"\",IF(ISERROR(MATCH($J379,SorP!$B$1:$B$5661,0)),\"\",INDIRECT(\"'SorP'!$A$\"&MATCH($J379,SorP!$B$1:$B$5661,0))))","v":""},null,{"$f":"IF(C379=\"\",NA(),MATCH($B379&$C379,'Smelter Look-up'!$J:$J,0))","v":{"$error":"#N/A"}},null,0,null,null,null,""]
[null,{"$f":"IF(LEN(A380)=0,\"\",INDEX('Smelter Look-up'!$A:$A,MATCH($A380,'Smelter Look-up'!$E:$E,0)))","v":""},{"$f":"IF(LEN(A380)=0,\"\",INDEX('Smelter Look-up'!$C:$C,MATCH($A380,'Smelter Look-up'!$E:$E,0)))","v":""},null,{"$f":"IF(ISERROR($V380),\"\",OFFSET('Smelter Look-up'!$D$4,$V380-4,0)&\"\")","v":""},{"$f":"IF(ISERROR($V380),\"\",OFFSET('Smelter Look-up'!$E$4,$V380-4,0))","v":""},{"$f":"IF(C380=$X$4,\"Enter smelter details\",IF(ISERROR($V380),\"\",OFFSET('Smelter Look-up'!$F$4,$V380-4,0)))","v":""},{"$f":"IF(ISERROR($V380),\"\",OFFSET('Smelter Look-up'!$G$4,$V380-4,0))","v":""},{"$f":"IF(ISERROR($V380),\"\",OFFSET('Smelter Look-up'!$H$4,$V380-4,0))","v":""},{"$f":"IF(ISERROR($V380),\"\",OFFSET('Smelter Look-up'!$I$4,$V380-4,0))","v":""},{"$nulls":7},{"$f":"IF(ISERROR($V380),\"\",OFFSET('Smelter Look-up'!$C$4,$V380-4,0)&\"\")","v":""},"",{"$f":"IF(B380=\"\",\"\",IF(ISERROR(MATCH($J380,SorP!$B$1:$B$5661,0)),\"\",INDIRECT(\"'SorP'!$A$\"&MATCH($J380,SorP!$B$1:$B$5661,0))))","v":""},null,{"$f":"IF(C380=\"\",NA(),MATCH($B380&$C380,'Smelter Look-up'!$J:$J,0))","v":{"$error":"#N/A"}},null,0,null,null,null,""]
[null,{"$f":"IF(LEN(A381)=0,\"\",INDEX('Smelter Look-up'!$A:$A,MATCH($A381,'Smelter Look-up'!$E:$E,0)))","v":""},{"$f":"IF(LEN(A381)=0,\"\",INDEX('Smelter Look-up'!$C:$C,MATCH($A381,'Smelter Look-up'!$E:$E,0)))","v":""},null,{"$f":"IF(ISERROR($V381),\"\",OFFSET('Smelter Look-up'!$D$4,$V381-4,0)&\"\")","v":""},{"$f":"IF(ISERROR($V381),\"\",OFFSET('Smelter Look-up'!$E$4,$V381-4,0))","v":""},{"$f":"IF(C381=$X$4,\"Enter smelter details\",IF(ISERROR($V381),\"\",OFFSET('Smelter Look-up'!$F$4,$V381-4,0)))","v":""},{"$f":"IF(ISERROR($V381),\"\",OFFSET('Smelter Look-up'!$G$4,$V381-4,0))","v":""},{"$f":"IF(ISERROR($V381),\"\",OFFSET('Smelter Look-up'!$H$4,$V381-4,0))","v":""},{"$f":"IF(ISERROR($V381),\"\",OFFSET('Smelter Look-up'!$I$4,$V381-4,0))","v":""},{"$nulls":7},{"$f":"IF(ISERROR($V381),\"\",OFFSET('Smelter Look-up'!$C$4,$V381-4,0)&\"\")","v":""},"",{"$f":"IF(B381=\"\",\"\",IF(ISERROR(MATCH($J381,SorP!$B$1:$B$5661,0)),\"\",INDIRECT(\"'SorP'!$A$\"&MATCH($J381,SorP!$B$1:$B$5661,0))))","v":""},null,{"$f":"IF(C381=\"\",NA(),MATCH($B381&$C381,'Smelter Look-up'!$J:$J,0))","v":{"$error":"#N/A"}},null,0,null,null,null,""]
[null,{"$f":"IF(LEN(A382)=0,\"\",INDEX('Smelter Look-up'!$A:$A,MATCH($A382,'Smelter Look-up'!$E:$E,0)))","v":""},{"$f":"IF(LEN(A382)=0,\"\",INDEX('Smelter Look-up'!$C:$C,MATCH($A382,'Smelter Look-up'!$E:$E,0)))","v":""},null,{"$f":"IF(ISERROR($V382),\"\",OFFSET('Smelter Look-up'!$D$4,$V382-4,0)&\"\")","v":""},{"$f":"IF(ISERROR($V382),\"\",OFFSET('Smelter Look-up'!$E$4,$V382-4,0))","v":""},{"$f":"IF(C382=$X$4,\"Enter smelter details\",IF(ISERROR($V382),\"\",OFFSET('Smelter Look-up'!$F$4,$V382-4,0)))","v":""},{"$f":"IF(ISERROR($V382),\"\",OFFSET('Smelter Look-up'!$G$4,$V382-4,0))","v":""},{"$f":"IF(ISERROR($V382),\"\",OFFSET('Smelter Look-up'!$H$4,$V382-4,0))","v":""},{"$f":"IF(ISERROR($V382),\"\",OFFSET('Smelter Look-up'!$I$4,$V382-4,0))","v":""},{"$nulls":7},{"$f":"IF(ISERROR($V382),\"\",OFFSET('Smelter Look-up'!$C$4,$V382-4,0)&\"\")","v":""},"",{"$f":"IF(B382=\"\",\"\",IF(ISERROR(MATCH($J382,SorP!$B$1:$B$5661,0)),\"\",INDIRECT(\"'SorP'!$A$\"&MATCH($J382,SorP!$B$1:$B$5661,0))))","v":""},null,{"$f":"IF(C382=\"\",NA(),MATCH($B382&$C382,'Smelter Look-up'!$J:$J,0))","v":{"$error":"#N/A"}},null,0,null,null,null,""]
[null,{"$f":"IF(LEN(A383)=0,\"\",INDEX('Smelter Look-up'!$A:$A,MATCH($A383,'Smelter Look-up'!$E:$E,0)))","v":""},{"$f":"IF(LEN(A383)=0,\"\",INDEX('Smelter Look-up'!$C:$C,MATCH($A383,'Smelter Look-up'!$E:$E,0)))","v":""},null,{"$f":"IF(ISERROR($V383),\"\",OFFSET('Smelter Look-up'!$D$4,$V383-4,0)&\"\")","v":""},{"$f":"IF(ISERROR($V383),\"\",OFFSET('Smelter Look-up'!$E$4,$V383-4,0))","v":""},{"$f":"IF(C383=$X$4,\"Enter smelter details\",IF(ISERROR($V383),\"\",OFFSET('Smelter Look-up'!$F$4,$V383-4,0)))","v":""},{"$f":"IF(ISERROR($V383),\"\",OFFSET('Smelter Look-up'!$G$4,$V383-4,0))","v":""},{"$f":"IF(ISERROR($V383),\"\",OFFSET('Smelter Look-up'!$H$4,$V383-4,0))","v":""},{"$f":"IF(ISERROR($V383),\"\",OFFSET('Smelter Look-up'!$I$4,$V383-4,0))","v":""},{"$nulls":7},{"$f":"IF(ISERROR($V383),\"\",OFFSET('Smelter Look-up'!$C$4,$V383-4,0)&\"\")","v":""},"",{"$f":"IF(B383=\"\",\"\",IF(ISERROR(MATCH($J383,SorP!$B$1:$B$5661,0)),\"\",INDIRECT(\"'SorP'!$A$\"&MATCH($J383,SorP!$B$1:$B$5661,0))))","v":""},null,{"$f":"IF(C383=\"\",NA(),MATCH($B383&$C383,'Smelter Look-up'!$J:$J,0))","v":{"$error":"#N/A"}},null,{"$f":"IF(AND(C383=\"Smelter not listed\",OR(LEN(D383)=0,LEN(E383)=0)),1,0)","v":0},null,null,null,{"$f":"B383&C383","v":""}]
[null,{"$f":"IF(LEN(A384)=0,\"\",INDEX('Smelter Look-up'!$A:$A,MATCH($A384,'Smelter Look-up'!$E:$E,0)))","v":""},{"$f":"IF(LEN(A384)=0,\"\",INDEX('Smelter Look-up'!$C:$C,MATCH($A384,'Smelter Look-up'!$E:$E,0)))","v":""},null,{"$f":"IF(ISERROR($V384),\"\",OFFSET('Smelter Look-up'!$D$4,$V384-4,0)&\"\")","v":""},{"$f":"IF(ISERROR($V384),\"\",OFFSET('Smelter Look-up'!$E$4,$V384-4,0))","v":""},{"$f":"IF(C384=$X$4,\"Enter smelter details\",IF(ISERROR($V384),\"\",OFFSET('Smelter Look-up'!$F$4,$V384-4,0)))","v":""},{"$f":"IF(ISERROR($V384),\"\",OFFSET('Smelter Look-up'!$G$4,$V384-4,0))","v":""},{"$f":"IF(ISERROR($V384),\"\",OFFSET('Smelter Look-up'!$H$4,$V384-4,0))","v":""},{"$f":"IF(ISERROR($V384),\"\",OFFSET('Smelter Look-up'!$I$4,$V384-4,0))","v":""},{"$nulls":7},{"$f":"IF(ISERROR($V384),\"\",OFFSET('Smelter Look-up'!$C$4,$V384-4,0)&\"\")","v":""},{"$f":"IF(B384=\"\",\"\",IF(ISERROR(MATCH($E384,CL,0)),\"Unknown\",INDIRECT(\"'C'!$A$\"&MATCH($E384,CL,0)+1)))","v":""},{"$f":"IF(B384=\"\",\"\",IF(ISERROR(MATCH($J384,SorP!$B$1:$B$5661,0)),\"\",INDIRECT(\"'SorP'!$A$\"&MATCH($J384,SorP!$B$1:$B$5661,0))))","v":""},null,{"$f":"IF(C384=\"\",NA(),MATCH($B384&$C384,'Smelter Look-up'!$J:$J,0))","v":{"$error":"#N/A"}},null,0,null,null,null,""]
[null,{"$f":"IF(LEN(A385)=0,\"\",INDEX('Smelter Look-up'!$A:$A,MATCH($A385,'Smelter Look-up'!$E:$E,0)))","v":""},{"$f":"IF(LEN(A385)=0,\"\",INDEX('Smelter Look-up'!$C:$C,MATCH($A385,'Smelter Look-up'!$E:$E,0)))","v":""},null,{"$f":"IF(ISERROR($V385),\"\",OFFSET('Smelter Look-up'!$D$4,$V385-4,0)&\"\")","v":""},{"$f":"IF(ISERROR($V385),\"\",OFFSET('Smelter Look-up'!$E$4,$V385-4,0))","v":""},{"$f":"IF(C385=$X$4,\"Enter smelter details\",IF(ISERROR($V385),\"\",OFFSET('Smelter Look-up'!$F$4,$V385-4,0)))","v":""},{"$f":"IF(ISERROR($V385),\"\",OFFSET('Smelter Look-up'!$G$4,$V385-4,0))","v":""},{"$f":"IF(ISERROR($V385),\"\",OFFSET('Smelter Look-up'!$H$4,$V385-4,0))","v":""},{"$f":"IF(ISERROR($V385),\"\",OFFSET('Smelter Look-up'!$I$4,$V385-4,0))","v":""},{"$nulls":7},{"$f":"IF(ISERROR($V385),\"\",OFFSET('Smelter Look-up'!$C$4,$V385-4,0)&\"\")","v":""},"",{"$f":"IF(B385=\"\",\"\",IF(ISERROR(MATCH($J385,SorP!$B$1:$B$5661,0)),\"\",INDIRECT(\"'SorP'!$A$\"&MATCH($J385,SorP!$B$1:$B$5661,0))))","v":""},null,{"$f":"IF(C385=\"\",NA(),MATCH($B385&$C385,'Smelter Look-up'!$J:$J,0))","v":{"$error":"#N/A"}},null,0,null,null,null,""]
[null,{"$f":"IF(LEN(A386)=0,\"\",INDEX('Smelter Look-up'!$A:$A,MATCH($A386,'Smelter Look-up'!$E:$E,0)))","v":""},{"$f":"IF(LEN(A386)=0,\"\",INDEX('Smelter Look-up'!$C:$C,MATCH($A386,'Smelter Look-up'!$E:$E,0)))","v":""},null,{"$f":"IF(ISERROR($V386),\"\",OFFSET('Smelter Look-up'!$D$4,$V386-4,0)&\"\")","v":""},{"$f":"IF(ISERROR($V386),\"\",OFFSET('Smelter Look-up'!$E$4,$V386-4,0))","v":""},{"$f":"IF(C386=$X$4,\"Enter smelter details\",IF(ISERROR($V386),\"\",OFFSET('Smelter Look-up'!$F$4,$V386-4,0)))","v":""},{"$f":"IF(ISERROR($V386),\"\",OFFSET('Smelter Look-up'!$G$4,$V386-4,0))","v":""},{"$f":"IF(ISERROR($V386),\"\",OFFSET('Smelter Look-up'!$H$4,$V386-4,0))","v":""},{"$f":"IF(ISERROR($V386),\"\",OFFSET('Smelter Look-up'!$I$4,$V386-4,0))","v":""},{"$nulls":7},{"$f":"IF(ISERROR($V386),\"\",OFFSET('Smelter Look-up'!$C$4,$V386-4,0)&\"\")","v":""},"",{"$f":"IF(B386=\"\",\"\",IF(ISERROR(MATCH($J386,SorP!$B$1:$B$5661,0)),\"\",INDIRECT(\"'SorP'!$A$\"&MATCH($J386,SorP!$B$1:$B$5661,0))))","v":""},null,{"$f":"IF(C386=\"\",NA(),MATCH($B386&$C386,'Smelter Look-up'!$J:$J,0))","v":{"$error":"#N/A"}},null,0,null,null,null,""]
[null,{"$f":"IF(LEN(A387)=0,\"\",INDEX('Smelter Look-up'!$A:$A,MATCH($A387,'Smelter Look-up'!$E:$E,0)))","v":""},{"$f":"IF(LEN(A387)=0,\"\",INDEX('Smelter Look-up'!$C:$C,MATCH($A387,'Smelter Look-up'!$E:$E,0)))","v":""},null,{"$f":"IF(ISERROR($V387),\"\",OFFSET('Smelter Look-up'!$D$4,$V387-4,0)&\"\")","v":""},{"$f":"IF(ISERROR($V387),\"\",OFFSET('Smelter Look-up'!$E$4,$V387-4,0))","v":""},{"$f":"IF(C387=$X$4,\"Enter smelter details\",IF(ISERROR($V387),\"\",OFFSET('Smelter Look-up'!$F$4,$V387-4,0)))","v":""},{"$f":"IF(ISERROR($V387),\"\",OFFSET('Smelter Look-up'!$G$4,$V387-4,0))","v":""},{"$f":"IF(ISERROR($V387),\"\",OFFSET('Smelter Look-up'!$H$4,$V387-4,0))","v":""},{"$f":"IF(ISERROR($V387),\"\",OFFSET('Smelter Look-up'!$I$4,$V387-4,0))","v":""},{"$nulls":7},{"$f":"IF(ISERROR($V387),\"\",OFFSET('Smelter Look-up'!$C$4,$V387-4,0)&\"\")","v":""},"",{"$f":"IF(B387=\"\",\"\",IF(ISERROR(MATCH($J387,SorP!$B$1:$B$5661,0)),\"\",INDIRECT(\"'SorP'!$A$\"&MATCH($J387,SorP!$B$1:$B$5661,0))))","v":""},null,{"$f":"IF(C387=\"\",NA(),MATCH($B387&$C387,'Smelter Look-up'!$J:$J,0))","v":{"$error":"#N/A"}},null,0,null,null,null,""]
[null,{"$f":"IF(LEN(A388)=0,\"\",INDEX('Smelter Look-up'!$A:$A,MATCH($A388,'Smelter Look-up'!$E:$E,0)))","v":""},{"$f":"IF(LEN(A388)=0,\"\",INDEX('Smelter Look-up'!$C:$C,MATCH($A388,'Smelter Look-up'!$E:$E,0)))","v":""},null,{"$f":"IF(ISERROR($V388),\"\",OFFSET('Smelter Look-up'!$D$4,$V388-4,0)&\"\")","v":""},{"$f":"IF(ISERROR($V388),\"\",OFFSET('Smelter Look-up'!$E$4,$V388-4,0))","v":""},{"$f":"IF(C388=$X$4,\"Enter smelter details\",IF(ISERROR($V388),\"\",OFFSET('Smelter Look-up'!$F$4,$V388-4,0)))","v":""},{"$f":"IF(ISERROR($V388),\"\",OFFSET('Smelter Look-up'!$G$4,$V388-4,0))","v":""},{"$f":"IF(ISERROR($V388),\"\",OFFSET('Smelter Look-up'!$H$4,$V388-4,0))","v":""},{"$f":"IF(ISERROR($V388),\"\",OFFSET('Smelter Look-up'!$I$4,$V388-4,0))","v":""},{"$nulls":7},{"$f":"IF(ISERROR($V388),\"\",OFFSET('Smelter Look-up'!$C$4,$V388-4,0)&\"\")","v":""},"",{"$f":"IF(B388=\"\",\"\",IF(ISERROR(MATCH($J388,SorP!$B$1:$B$5661,0)),\"\",INDIRECT(\"'SorP'!$A$\"&MATCH($J388,SorP!$B$1:$B$5661,0))))","v":""},null,{"$f":"IF(C388=\"\",NA(),MATCH($B388&$C388,'Smelter Look-up'!$J:$J,0))","v":{"$error":"#N/A"}},null,0,null,null,null,""]
[null,{"$f":"IF(LEN(A389)=0,\"\",INDEX('Smelter Look-up'!$A:$A,MATCH($A389,'Smelter Look-up'!$E:$E,0)))","v":""},{"$f":"IF(LEN(A389)=0,\"\",INDEX('Smelter Look-up'!$C:$C,MATCH($A389,'Smelter Look-up'!$E:$E,0)))","v":""},null,{"$f":"IF(ISERROR($V389),\"\",OFFSET('Smelter Look-up'!$D$4,$V389-4,0)&\"\")","v":""},{"$f":"IF(ISERROR($V389),\"\",OFFSET('Smelter Look-up'!$E$4,$V389-4,0))","v":""},{"$f":"IF(C389=$X$4,\"Enter smelter details\",IF(ISERROR($V389),\"\",OFFSET('Smelter Look-up'!$F$4,$V389-4,0)))","v":""},{"$f":"IF(ISERROR($V389),\"\",OFFSET('Smelter Look-up'!$G$4,$V389-4,0))","v":""},{"$f":"IF(ISERROR($V389),\"\",OFFSET('Smelter Look-up'!$H$4,$V389-4,0))","v":""},{"$f":"IF(ISERROR($V389),\"\",OFFSET('Smelter Look-up'!$I$4,$V389-4,0))","v":""},{"$nulls":7},{"$f":"IF(ISERROR($V389),\"\",OFFSET('Smelter Look-up'!$C$4,$V389-4,0)&\"\")","v":""},"",{"$f":"IF(B389=\"\",\"\",IF(ISERROR(MATCH($J389,SorP!$B$1:$B$5661,0)),\"\",INDIRECT(\"'SorP'!$A$\"&MATCH($J389,SorP!$B$1:$B$5661,0))))","v":""},null,{"$f":"IF(C389=\"\",NA(),MATCH($B389&$C389,'Smelter Look-up'!$J:$J,0))","v":{"$error":"#N/A"}},null,0,null,null,null,""]
[null,{"$f":"IF(LEN(A390)=0,\"\",INDEX('Smelter Look-up'!$A:$A,MATCH($A390,'Smelter Look-up'!$E:$E,0)))","v":""},{"$f":"IF(LEN(A390)=0,\"\",INDEX('Smelter Look-up'!$C:$C,MATCH($A390,'Smelter Look-up'!$E:$E,0)))","v":""},null,{"$f":"IF(ISERROR($V390),\"\",OFFSET('Smelter Look-up'!$D$4,$V390-4,0)&\"\")","v":""},{"$f":"IF(ISERROR($V390),\"\",OFFSET('Smelter Look-up'!$E$4,$V390-4,0))","v":""},{"$f":"IF(C390=$X$4,\"Enter smelter details\",IF(ISERROR($V390),\"\",OFFSET('Smelter Look-up'!$F$4,$V390-4,0)))","v":""},{"$f":"IF(ISERROR($V390),\"\",OFFSET('Smelter Look-up'!$G$4,$V390-4,0))","v":""},{"$f":"IF(ISERROR($V390),\"\",OFFSET('Smelter Look-up'!$H$4,$V390-4,0))","v":""},{"$f":"IF(ISERROR($V390),\"\",OFFSET('Smelter Look-up'!$I$4,$V390-4,0))","v":""},{"$nulls":7},{"$f":"IF(ISERROR($V390),\"\",OFFSET('Smelter Look-up'!$C$4,$V390-4,0)&\"\")","v":""},"",{"$f":"IF(B390=\"\",\"\",IF(ISERROR(MATCH($J390,SorP!$B$1:$B$5661,0)),\"\",INDIRECT(\"'SorP'!$A$\"&MATCH($J390,SorP!$B$1:$B$5661,0))))","v":""},null,{"$f":"IF(C390=\"\",NA(),MATCH($B390&$C390,'Smelter Look-up'!$J:$J,0))","v":{"$error":"#N/A"}},null,0,null,null,null,""]
[null,{"$f":"IF(LEN(A391)=0,\"\",INDEX('Smelter Look-up'!$A:$A,MATCH($A391,'Smelter Look-up'!$E:$E,0)))","v":""},{"$f":"IF(LEN(A391)=0,\"\",INDEX('Smelter Look-up'!$C:$C,MATCH($A391,'Smelter Look-up'!$E:$E,0)))","v":""},null,{"$f":"IF(ISERROR($V391),\"\",OFFSET('Smelter Look-up'!$D$4,$V391-4,0)&\"\")","v":""},{"$f":"IF(ISERROR($V391),\"\",OFFSET('Smelter Look-up'!$E$4,$V391-4,0))","v":""},{"$f":"IF(C391=$X$4,\"Enter smelter details\",IF(ISERROR($V391),\"\",OFFSET('Smelter Look-up'!$F$4,$V391-4,0)))","v":""},{"$f":"IF(ISERROR($V391),\"\",OFFSET('Smelter Look-up'!$G$4,$V391-4,0))","v":""},{"$f":"IF(ISERROR($V391),\"\",OFFSET('Smelter Look-up'!$H$4,$V391-4,0))","v":""},{"$f":"IF(ISERROR($V391),\"\",OFFSET('Smelter Look-up'!$I$4,$V391-4,0))","v":""},{"$nulls":7},{"$f":"IF(ISERROR($V391),\"\",OFFSET('Smelter Look-up'!$C$4,$V391-4,0)&\"\")","v":""},"",{"$f":"IF(B391=\"\",\"\",IF(ISERROR(MATCH($J391,SorP!$B$1:$B$5661,0)),\"\",INDIRECT(\"'SorP'!$A$\"&MATCH($J391,SorP!$B$1:$B$5661,0))))","v":""},null,{"$f":"IF(C391=\"\",NA(),MATCH($B391&$C391,'Smelter Look-up'!$J:$J,0))","v":{"$error":"#N/A"}},null,0,null,null,null,""]
[null,{"$f":"IF(LEN(A392)=0,\"\",INDEX('Smelter Look-up'!$A:$A,MATCH($A392,'Smelter Look-up'!$E:$E,0)))","v":""},{"$f":"IF(LEN(A392)=0,\"\",INDEX('Smelter Look-up'!$C:$C,MATCH($A392,'Smelter Look-up'!$E:$E,0)))","v":""},null,{"$f":"IF(ISERROR($V392),\"\",OFFSET('Smelter Look-up'!$D$4,$V392-4,0)&\"\")","v":""},{"$f":"IF(ISERROR($V392),\"\",OFFSET('Smelter Look-up'!$E$4,$V392-4,0))","v":""},{"$f":"IF(C392=$X$4,\"Enter smelter details\",IF(ISERROR($V392),\"\",OFFSET('Smelter Look-up'!$F$4,$V392-4,0)))","v":""},{"$f":"IF(ISERROR($V392),\"\",OFFSET('Smelter Look-up'!$G$4,$V392-4,0))","v":""},{"$f":"IF(ISERROR($V392),\"\",OFFSET('Smelter Look-up'!$H$4,$V392-4,0))","v":""},{"$f":"IF(ISERROR($V392),\"\",OFFSET('Smelter Look-up'!$I$4,$V392-4,0))","v":""},{"$nulls":7},{"$f":"IF(ISERROR($V392),\"\",OFFSET('Smelter Look-up'!$C$4,$V392-4,0)&\"\")","v":""},"",{"$f":"IF(B392=\"\",\"\",IF(ISERROR(MATCH($J392,SorP!$B$1:$B$5661,0)),\"\",INDIRECT(\"'SorP'!$A$\"&MATCH($J392,SorP!$B$1:$B$5661,0))))","v":""},null,{"$f":"IF(C392=\"\",NA(),MATCH($B392&$C392,'Smelter Look-up'!$J:$J,0))","v":{"$error":"#N/A"}},null,0,null,null,null,""]
[null,{"$f":"IF(LEN(A393)=0,\"\",INDEX('Smelter Look-up'!$A:$A,MATCH($A393,'Smelter Look-up'!$E:$E,0)))","v":""},{"$f":"IF(LEN(A393)=0,\"\",INDEX('Smelter Look-up'!$C:$C,MATCH($A393,'Smelter Look-up'!$E:$E,0)))","v":""},null,{"$f":"IF(ISERROR($V393),\"\",OFFSET('Smelter Look-up'!$D$4,$V393-4,0)&\"\")","v":""},{"$f":"IF(ISERROR($V393),\"\",OFFSET('Smelter Look-up'!$E$4,$V393-4,0))","v":""},{"$f":"IF(C393=$X$4,\"Enter smelter details\",IF(ISERROR($V393),\"\",OFFSET('Smelter Look-up'!$F$4,$V393-4,0)))","v":""},{"$f":"IF(ISERROR($V393),\"\",OFFSET('Smelter Look-up'!$G$4,$V393-4,0))","v":""},{"$f":"IF(ISERROR($V393),\"\",OFFSET('Smelter Look-up'!$H$4,$V393-4,0))","v":""},{"$f":"IF(ISERROR($V393),\"\",OFFSET('Smelter Look-up'!$I$4,$V393-4,0))","v":""},{"$nulls":7},{"$f":"IF(ISERROR($V393),\"\",OFFSET('Smelter Look-up'!$C$4,$V393-4,0)&\"\")","v":""},"",{"$f":"IF(B393=\"\",\"\",IF(ISERROR(MATCH($J393,SorP!$B$1:$B$5661,0)),\"\",INDIRECT(\"'SorP'!$A$\"&MATCH($J393,SorP!$B$1:$B$5661,0))))","v":""},null,{"$f":"IF(C393=\"\",NA(),MATCH($B393&$C393,'Smelter Look-up'!$J:$J,0))","v":{"$error":"#N/A"}},null,0,null,null,null,""]
[null,{"$f":"IF(LEN(A394)=0,\"\",INDEX('Smelter Look-up'!$A:$A,MATCH($A394,'Smelter Look-up'!$E:$E,0)))","v":""},{"$f":"IF(LEN(A394)=0,\"\",INDEX('Smelter Look-up'!$C:$C,MATCH($A394,'Smelter Look-up'!$E:$E,0)))","v":""},null,{"$f":"IF(ISERROR($V394),\"\",OFFSET('Smelter Look-up'!$D$4,$V394-4,0)&\"\")","v":""},{"$f":"IF(ISERROR($V394),\"\",OFFSET('Smelter Look-up'!$E$4,$V394-4,0))","v":""},{"$f":"IF(C394=$X$4,\"Enter smelter details\",IF(ISERROR($V394),\"\",OFFSET('Smelter Look-up'!$F$4,$V394-4,0)))","v":""},{"$f":"IF(ISERROR($V394),\"\",OFFSET('Smelter Look-up'!$G$4,$V394-4,0))","v":""},{"$f":"IF(ISERROR($V394),\"\",OFFSET('Smelter Look-up'!$H$4,$V394-4,0))","v":""},{"$f":"IF(ISERROR($V394),\"\",OFFSET('Smelter Look-up'!$I$4,$V394-4,0))","v":""},{"$nulls":7},{"$f":"IF(ISERROR($V394),\"\",OFFSET('Smelter Look-up'!$C$4,$V394-4,0)&\"\")","v":""},"",{"$f":"IF(B394=\"\",\"\",IF(ISERROR(MATCH($J394,SorP!$B$1:$B$5661,0)),\"\",INDIRECT(\"'SorP'!$A$\"&MATCH($J394,SorP!$B$1:$B$5661,0))))","v":""},null,{"$f":"IF(C394=\"\",NA(),MATCH($B394&$C394,'Smelter Look-up'!$J:$J,0))","v":{"$error":"#N/A"}},null,0,null,null,null,""]
[null,{"$f":"IF(LEN(A395)=0,\"\",INDEX('Smelter Look-up'!$A:$A,MATCH($A395,'Smelter Look-up'!$E:$E,0)))","v":""},{"$f":"IF(LEN(A395)=0,\"\",INDEX('Smelter Look-up'!$C:$C,MATCH($A395,'Smelter Look-up'!$E:$E,0)))","v":""},null,{"$f":"IF(ISERROR($V395),\"\",OFFSET('Smelter Look-up'!$D$4,$V395-4,0)&\"\")","v":""},{"$f":"IF(ISERROR($V395),\"\",OFFSET('Smelter Look-up'!$E$4,$V395-4,0))","v":""},{"$f":"IF(C395=$X$4,\"Enter smelter details\",IF(ISERROR($V395),\"\",OFFSET('Smelter Look-up'!$F$4,$V395-4,0)))","v":""},{"$f":"IF(ISERROR($V395),\"\",OFFSET('Smelter Look-up'!$G$4,$V395-4,0))","v":""},{"$f":"IF(ISERROR($V395),\"\",OFFSET('Smelter Look-up'!$H$4,$V395-4,0))","v":""},{"$f":"IF(ISERROR($V395),\"\",OFFSET('Smelter Look-up'!$I$4,$V395-4,0))","v":""},{"$nulls":7},{"$f":"IF(ISERROR($V395),\"\",OFFSET('Smelter Look-up'!$C$4,$V395-4,0)&\"\")","v":""},"",{"$f":"IF(B395=\"\",\"\",IF(ISERROR(MATCH($J395,SorP!$B$1:$B$5661,0)),\"\",INDIRECT(\"'SorP'!$A$\"&MATCH($J395,SorP!$B$1:$B$5661,0))))","v":""},null,{"$f":"IF(C395=\"\",NA(),MATCH($B395&$C395,'Smelter Look-up'!$J:$J,0))","v":{"$error":"#N/A"}},null,0,null,null,null,""]
[null,{"$f":"IF(LEN(A396)=0,\"\",INDEX('Smelter Look-up'!$A:$A,MATCH($A396,'Smelter Look-up'!$E:$E,0)))","v":""},{"$f":"IF(LEN(A396)=0,\"\",INDEX('Smelter Look-up'!$C:$C,MATCH($A396,'Smelter Look-up'!$E:$E,0)))","v":""},null,{"$f":"IF(ISERROR($V396),\"\",OFFSET('Smelter Look-up'!$D$4,$V396-4,0)&\"\")","v":""},{"$f":"IF(ISERROR($V396),\"\",OFFSET('Smelter Look-up'!$E$4,$V396-4,0))","v":""},{"$f":"IF(C396=$X$4,\"Enter smelter details\",IF(ISERROR($V396),\"\",OFFSET('Smelter Look-up'!$F$4,$V396-4,0)))","v":""},{"$f":"IF(ISERROR($V396),\"\",OFFSET('Smelter Look-up'!$G$4,$V396-4,0))","v":""},{"$f":"IF(ISERROR($V396),\"\",OFFSET('Smelter Look-up'!$H$4,$V396-4,0))","v":""},{"$f":"IF(ISERROR($V396),\"\",OFFSET('Smelter Look-up'!$I$4,$V396-4,0))","v":""},{"$nulls":7},{"$f":"IF(ISERROR($V396),\"\",OFFSET('Smelter Look-up'!$C$4,$V396-4,0)&\"\")","v":""},"",{"$f":"IF(B396=\"\",\"\",IF(ISERROR(MATCH($J396,SorP!$B$1:$B$5661,0)),\"\",INDIRECT(\"'SorP'!$A$\"&MATCH($J396,SorP!$B$1:$B$5661,0))))","v":""},null,{"$f":"IF(C396=\"\",NA(),MATCH($B396&$C396,'Smelter Look-up'!$J:$J,0))","v":{"$error":"#N/A"}},null,0,null,null,null,""]
[null,{"$f":"IF(LEN(A397)=0,\"\",INDEX('Smelter Look-up'!$A:$A,MATCH($A397,'Smelter Look-up'!$E:$E,0)))","v":""},{"$f":"IF(LEN(A397)=0,\"\",INDEX('Smelter Look-up'!$C:$C,MATCH($A397,'Smelter Look-up'!$E:$E,0)))","v":""},null,{"$f":"IF(ISERROR($V397),\"\",OFFSET('Smelter Look-up'!$D$4,$V397-4,0)&\"\")","v":""},{"$f":"IF(ISERROR($V397),\"\",OFFSET('Smelter Look-up'!$E$4,$V397-4,0))","v":""},{"$f":"IF(C397=$X$4,\"Enter smelter details\",IF(ISERROR($V397),\"\",OFFSET('Smelter Look-up'!$F$4,$V397-4,0)))","v":""},{"$f":"IF(ISERROR($V397),\"\",OFFSET('Smelter Look-up'!$G$4,$V397-4,0))","v":""},{"$f":"IF(ISERROR($V397),\"\",OFFSET('Smelter Look-up'!$H$4,$V397-4,0))","v":""},{"$f":"IF(ISERROR($V397),\"\",OFFSET('Smelter Look-up'!$I$4,$V397-4,0))","v":""},{"$nulls":7},{"$f":"IF(ISERROR($V397),\"\",OFFSET('Smelter Look-up'!$C$4,$V397-4,0)&\"\")","v":""},"",{"$f":"IF(B397=\"\",\"\",IF(ISERROR(MATCH($J397,SorP!$B$1:$B$5661,0)),\"\",INDIRECT(\"'SorP'!$A$\"&MATCH($J397,SorP!$B$1:$B$5661,0))))","v":""},null,{"$f":"IF(C397=\"\",NA(),MATCH($B397&$C397,'Smelter Look-up'!$J:$J,0))","v":{"$error":"#N/A"}},null,0,null,null,null,""]
[null,{"$f":"IF(LEN(A398)=0,\"\",INDEX('Smelter Look-up'!$A:$A,MATCH($A398,'Smelter Look-up'!$E:$E,0)))","v":""},{"$f":"IF(LEN(A398)=0,\"\",INDEX('Smelter Look-up'!$C:$C,MATCH($A398,'Smelter Look-up'!$E:$E,0)))","v":""},null,{"$f":"IF(ISERROR($V398),\"\",OFFSET('Smelter Look-up'!$D$4,$V398-4,0)&\"\")","v":""},{"$f":"IF(ISERROR($V398),\"\",OFFSET('Smelter Look-up'!$E$4,$V398-4,0))","v":""},{"$f":"IF(C398=$X$4,\"Enter smelter details\",IF(ISERROR($V398),\"\",OFFSET('Smelter Look-up'!$F$4,$V398-4,0)))","v":""},{"$f":"IF(ISERROR($V398),\"\",OFFSET('Smelter Look-up'!$G$4,$V398-4,0))","v":""},{"$f":"IF(ISERROR($V398),\"\",OFFSET('Smelter Look-up'!$H$4,$V398-4,0))","v":""},{"$f":"IF(ISERROR($V398),\"\",OFFSET('Smelter Look-up'!$I$4,$V398-4,0))","v":""},{"$nulls":7},{"$f":"IF(ISERROR($V398),\"\",OFFSET('Smelter Look-up'!$C$4,$V398-4,0)&\"\")","v":""},"",{"$f":"IF(B398=\"\",\"\",IF(ISERROR(MATCH($J398,SorP!$B$1:$B$5661,0)),\"\",INDIRECT(\"'SorP'!$A$\"&MATCH($J398,SorP!$B$1:$B$5661,0))))","v":""},null,{"$f":"IF(C398=\"\",NA(),MATCH($B398&$C398,'Smelter Look-up'!$J:$J,0))","v":{"$error":"#N/A"}},null,0,null,null,null,""]
[null,{"$f":"IF(LEN(A399)=0,\"\",INDEX('Smelter Look-up'!$A:$A,MATCH($A399,'Smelter Look-up'!$E:$E,0)))","v":""},{"$f":"IF(LEN(A399)=0,\"\",INDEX('Smelter Look-up'!$C:$C,MATCH($A399,'Smelter Look-up'!$E:$E,0)))","v":""},null,{"$f":"IF(ISERROR($V399),\"\",OFFSET('Smelter Look-up'!$D$4,$V399-4,0)&\"\")","v":""},{"$f":"IF(ISERROR($V399),\"\",OFFSET('Smelter Look-up'!$E$4,$V399-4,0))","v":""},{"$f":"IF(C399=$X$4,\"Enter smelter details\",IF(ISERROR($V399),\"\",OFFSET('Smelter Look-up'!$F$4,$V399-4,0)))","v":""},{"$f":"IF(ISERROR($V399),\"\",OFFSET('Smelter Look-up'!$G$4,$V399-4,0))","v":""},{"$f":"IF(ISERROR($V399),\"\",OFFSET('Smelter Look-up'!$H$4,$V399-4,0))","v":""},{"$f":"IF(ISERROR($V399),\"\",OFFSET('Smelter Look-up'!$I$4,$V399-4,0))","v":""},{"$nulls":7},{"$f":"IF(ISERROR($V399),\"\",OFFSET('Smelter Look-up'!$C$4,$V399-4,0)&\"\")","v":""},"",{"$f":"IF(B399=\"\",\"\",IF(ISERROR(MATCH($J399,SorP!$B$1:$B$5661,0)),\"\",INDIRECT(\"'SorP'!$A$\"&MATCH($J399,SorP!$B$1:$B$5661,0))))","v":""},null,{"$f":"IF(C399=\"\",NA(),MATCH($B399&$C399,'Smelter Look-up'!$J:$J,0))","v":{"$error":"#N/A"}},null,0,null,null,null,""]
[null,{"$f":"IF(LEN(A400)=0,\"\",INDEX('Smelter Look-up'!$A:$A,MATCH($A400,'Smelter Look-up'!$E:$E,0)))","v":""},{"$f":"IF(LEN(A400)=0,\"\",INDEX('Smelter Look-up'!$C:$C,MATCH($A400,'Smelter Look-up'!$E:$E,0)))","v":""},null,{"$f":"IF(ISERROR($V400),\"\",OFFSET('Smelter Look-up'!$D$4,$V400-4,0)&\"\")","v":""},{"$f":"IF(ISERROR($V400),\"\",OFFSET('Smelter Look-up'!$E$4,$V400-4,0))","v":""},{"$f":"IF(C400=$X$4,\"Enter smelter details\",IF(ISERROR($V400),\"\",OFFSET('Smelter Look-up'!$F$4,$V400-4,0)))","v":""},{"$f":"IF(ISERROR($V400),\"\",OFFSET('Smelter Look-up'!$G$4,$V400-4,0))","v":""},{"$f":"IF(ISERROR($V400),\"\",OFFSET('Smelter Look-up'!$H$4,$V400-4,0))","v":""},{"$f":"IF(ISERROR($V400),\"\",OFFSET('Smelter Look-up'!$I$4,$V400-4,0))","v":""},{"$nulls":7},{"$f":"IF(ISERROR($V400),\"\",OFFSET('Smelter Look-up'!$C$4,$V400-4,0)&\"\")","v":""},"",{"$f":"IF(B400=\"\",\"\",IF(ISERROR(MATCH($J400,SorP!$B$1:$B$5661,0)),\"\",INDIRECT(\"'SorP'!$A$\"&MATCH($J400,SorP!$B$1:$B$5661,0))))","v":""},null,{"$f":"IF(C400=\"\",NA(),MATCH($B400&$C400,'Smelter Look-up'!$J:$J,0))","v":{"$error":"#N/A"}},null,0,null,null,null,""]
[null,{"$f":"IF(LEN(A401)=0,\"\",INDEX('Smelter Look-up'!$A:$A,MATCH($A401,'Smelter Look-up'!$E:$E,0)))","v":""},{"$f":"IF(LEN(A401)=0,\"\",INDEX('Smelter Look-up'!$C:$C,MATCH($A401,'Smelter Look-up'!$E:$E,0)))","v":""},null,{"$f":"IF(ISERROR($V401),\"\",OFFSET('Smelter Look-up'!$D$4,$V401-4,0)&\"\")","v":""},{"$f":"IF(ISERROR($V401),\"\",OFFSET('Smelter Look-up'!$E$4,$V401-4,0))","v":""},{"$f":"IF(C401=$X$4,\"Enter smelter details\",IF(ISERROR($V401),\"\",OFFSET('Smelter Look-up'!$F$4,$V401-4,0)))","v":""},{"$f":"IF(ISERROR($V401),\"\",OFFSET('Smelter Look-up'!$G$4,$V401-4,0))","v":""},{"$f":"IF(ISERROR($V401),\"\",OFFSET('Smelter Look-up'!$H$4,$V401-4,0))","v":""},{"$f":"IF(ISERROR($V401),\"\",OFFSET('Smelter Look-up'!$I$4,$V401-4,0))","v":""},{"$nulls":7},{"$f":"IF(ISERROR($V401),\"\",OFFSET('Smelter Look-up'!$C$4,$V401-4,0)&\"\")","v":""},"",{"$f":"IF(B401=\"\",\"\",IF(ISERROR(MATCH($J401,SorP!$B$1:$B$5661,0)),\"\",INDIRECT(\"'SorP'!$A$\"&MATCH($J401,SorP!$B$1:$B$5661,0))))","v":""},null,{"$f":"IF(C401=\"\",NA(),MATCH($B401&$C401,'Smelter Look-up'!$J:$J,0))","v":{"$error":"#N/A"}},null,0,null,null,null,""]
[null,{"$f":"IF(LEN(A402)=0,\"\",INDEX('Smelter Look-up'!$A:$A,MATCH($A402,'Smelter Look-up'!$E:$E,0)))","v":""},{"$f":"IF(LEN(A402)=0,\"\",INDEX('Smelter Look-up'!$C:$C,MATCH($A402,'Smelter Look-up'!$E:$E,0)))","v":""},null,{"$f":"IF(ISERROR($V402),\"\",OFFSET('Smelter Look-up'!$D$4,$V402-4,0)&\"\")","v":""},{"$f":"IF(ISERROR($V402),\"\",OFFSET('Smelter Look-up'!$E$4,$V402-4,0))","v":""},{"$f":"IF(C402=$X$4,\"Enter smelter details\",IF(ISERROR($V402),\"\",OFFSET('Smelter Look-up'!$F$4,$V402-4,0)))","v":""},{"$f":"IF(ISERROR($V402),\"\",OFFSET('Smelter Look-up'!$G$4,$V402-4,0))","v":""},{"$f":"IF(ISERROR($V402),\"\",OFFSET('Smelter Look-up'!$H$4,$V402-4,0))","v":""},{"$f":"IF(ISERROR($V402),\"\",OFFSET('Smelter Look-up'!$I$4,$V402-4,0))","v":""},{"$nulls":7},{"$f":"IF(ISERROR($V402),\"\",OFFSET('Smelter Look-up'!$C$4,$V402-4,0)&\"\")","v":""},"",{"$f":"IF(B402=\"\",\"\",IF(ISERROR(MATCH($J402,SorP!$B$1:$B$5661,0)),\"\",INDIRECT(\"'SorP'!$A$\"&MATCH($J402,SorP!$B$1:$B$5661,0))))","v":""},null,{"$f":"IF(C402=\"\",NA(),MATCH($B402&$C402,'Smelter Look-up'!$J:$J,0))","v":{"$error":"#N/A"}},null,0,null,null,null,""]
[null,{"$f":"IF(LEN(A403)=0,\"\",INDEX('Smelter Look-up'!$A:$A,MATCH($A403,'Smelter Look-up'!$E:$E,0)))","v":""},{"$f":"IF(LEN(A403)=0,\"\",INDEX('Smelter Look-up'!$C:$C,MATCH($A403,'Smelter Look-up'!$E:$E,0)))","v":""},null,{"$f":"IF(ISERROR($V403),\"\",OFFSET('Smelter Look-up'!$D$4,$V403-4,0)&\"\")","v":""},{"$f":"IF(ISERROR($V403),\"\",OFFSET('Smelter Look-up'!$E$4,$V403-4,0))","v":""},{"$f":"IF(C403=$X$4,\"Enter smelter details\",IF(ISERROR($V403),\"\",OFFSET('Smelter Look-up'!$F$4,$V403-4,0)))","v":""},{"$f":"IF(ISERROR($V403),\"\",OFFSET('Smelter Look-up'!$G$4,$V403-4,0))","v":""},{"$f":"IF(ISERROR($V403),\"\",OFFSET('Smelter Look-up'!$H$4,$V403-4,0))","v":""},{"$f":"IF(ISERROR($V403),\"\",OFFSET('Smelter Look-up'!$I$4,$V403-4,0))","v":""},{"$nulls":7},{"$f":"IF(ISERROR($V403),\"\",OFFSET('Smelter Look-up'!$C$4,$V403-4,0)&\"\")","v":""},"",{"$f":"IF(B403=\"\",\"\",IF(ISERROR(MATCH($J403,SorP!$B$1:$B$5661,0)),\"\",INDIRECT(\"'SorP'!$A$\"&MATCH($J403,SorP!$B$1:$B$5661,0))))","v":""},null,{"$f":"IF(C403=\"\",NA(),MATCH($B403&$C403,'Smelter Look-up'!$J:$J,0))","v":{"$error":"#N/A"}},null,0,null,null,null,""]
[null,{"$f":"IF(LEN(A404)=0,\"\",INDEX('Smelter Look-up'!$A:$A,MATCH($A404,'Smelter Look-up'!$E:$E,0)))","v":""},{"$f":"IF(LEN(A404)=0,\"\",INDEX('Smelter Look-up'!$C:$C,MATCH($A404,'Smelter Look-up'!$E:$E,0)))","v":""},null,{"$f":"IF(ISERROR($V404),\"\",OFFSET('Smelter Look-up'!$D$4,$V404-4,0)&\"\")","v":""},{"$f":"IF(ISERROR($V404),\"\",OFFSET('Smelter Look-up'!$E$4,$V404-4,0))","v":""},{"$f":"IF(C404=$X$4,\"Enter smelter details\",IF(ISERROR($V404),\"\",OFFSET('Smelter Look-up'!$F$4,$V404-4,0)))","v":""},{"$f":"IF(ISERROR($V404),\"\",OFFSET('Smelter Look-up'!$G$4,$V404-4,0))","v":""},{"$f":"IF(ISERROR($V404),\"\",OFFSET('Smelter Look-up'!$H$4,$V404-4,0))","v":""},{"$f":"IF(ISERROR($V404),\"\",OFFSET('Smelter Look-up'!$I$4,$V404-4,0))","v":""},{"$nulls":7},{"$f":"IF(ISERROR($V404),\"\",OFFSET('Smelter Look-up'!$C$4,$V404-4,0)&\"\")","v":""},"",{"$f":"IF(B404=\"\",\"\",IF(ISERROR(MATCH($J404,SorP!$B$1:$B$5661,0)),\"\",INDIRECT(\"'SorP'!$A$\"&MATCH($J404,SorP!$B$1:$B$5661,0))))","v":""},null,{"$f":"IF(C404=\"\",NA(),MATCH($B404&$C404,'Smelter Look-up'!$J:$J,0))","v":{"$error":"#N/A"}},null,0,null,null,null,""]
[null,{"$f":"IF(LEN(A405)=0,\"\",INDEX('Smelter Look-up'!$A:$A,MATCH($A405,'Smelter Look-up'!$E:$E,0)))","v":""},{"$f":"IF(LEN(A405)=0,\"\",INDEX('Smelter Look-up'!$C:$C,MATCH($A405,'Smelter Look-up'!$E:$E,0)))","v":""},null,{"$f":"IF(ISERROR($V405),\"\",OFFSET('Smelter Look-up'!$D$4,$V405-4,0)&\"\")","v":""},{"$f":"IF(ISERROR($V405),\"\",OFFSET('Smelter Look-up'!$E$4,$V405-4,0))","v":""},{"$f":"IF(C405=$X$4,\"Enter smelter details\",IF(ISERROR($V405),\"\",OFFSET('Smelter Look-up'!$F$4,$V405-4,0)))","v":""},{"$f":"IF(ISERROR($V405),\"\",OFFSET('Smelter Look-up'!$G$4,$V405-4,0))","v":""},{"$f":"IF(ISERROR($V405),\"\",OFFSET('Smelter Look-up'!$H$4,$V405-4,0))","v":""},{"$f":"IF(ISERROR($V405),\"\",OFFSET('Smelter Look-up'!$I$4,$V405-4,0))","v":""},{"$nulls":7},{"$f":"IF(ISERROR($V405),\"\",OFFSET('Smelter Look-up'!$C$4,$V405-4,0)&\"\")","v":""},"",{"$f":"IF(B405=\"\",\"\",IF(ISERROR(MATCH($J405,SorP!$B$1:$B$5661,0)),\"\",INDIRECT(\"'SorP'!$A$\"&MATCH($J405,SorP!$B$1:$B$5661,0))))","v":""},null,{"$f":"IF(C405=\"\",NA(),MATCH($B405&$C405,'Smelter Look-up'!$J:$J,0))","v":{"$error":"#N/A"}},null,0,null,null,null,""]
[null,{"$f":"IF(LEN(A406)=0,\"\",INDEX('Smelter Look-up'!$A:$A,MATCH($A406,'Smelter Look-up'!$E:$E,0)))","v":""},{"$f":"IF(LEN(A406)=0,\"\",INDEX('Smelter Look-up'!$C:$C,MATCH($A406,'Smelter Look-up'!$E:$E,0)))","v":""},null,{"$f":"IF(ISERROR($V406),\"\",OFFSET('Smelter Look-up'!$D$4,$V406-4,0)&\"\")","v":""},{"$f":"IF(ISERROR($V406),\"\",OFFSET('Smelter Look-up'!$E$4,$V406-4,0))","v":""},{"$f":"IF(C406=$X$4,\"Enter smelter details\",IF(ISERROR($V406),\"\",OFFSET('Smelter Look-up'!$F$4,$V406-4,0)))","v":""},{"$f":"IF(ISERROR($V406),\"\",OFFSET('Smelter Look-up'!$G$4,$V406-4,0))","v":""},{"$f":"IF(ISERROR($V406),\"\",OFFSET('Smelter Look-up'!$H$4,$V406-4,0))","v":""},{"$f":"IF(ISERROR($V406),\"\",OFFSET('Smelter Look-up'!$I$4,$V406-4,0))","v":""},{"$nulls":7},{"$f":"IF(ISERROR($V406),\"\",OFFSET('Smelter Look-up'!$C$4,$V406-4,0)&\"\")","v":""},"",{"$f":"IF(B406=\"\",\"\",IF(ISERROR(MATCH($J406,SorP!$B$1:$B$5661,0)),\"\",INDIRECT(\"'SorP'!$A$\"&MATCH($J406,SorP!$B$1:$B$5661,0))))","v":""},null,{"$f":"IF(C406=\"\",NA(),MATCH($B406&$C406,'Smelter Look-up'!$J:$J,0))","v":{"$error":"#N/A"}},null,0,null,null,null,""]
[null,{"$f":"IF(LEN(A407)=0,\"\",INDEX('Smelter Look-up'!$A:$A,MATCH($A407,'Smelter Look-up'!$E:$E,0)))","v":""},{"$f":"IF(LEN(A407)=0,\"\",INDEX('Smelter Look-up'!$C:$C,MATCH($A407,'Smelter Look-up'!$E:$E,0)))","v":""},null,{"$f":"IF(ISERROR($V407),\"\",OFFSET('Smelter Look-up'!$D$4,$V407-4,0)&\"\")","v":""},{"$f":"IF(ISERROR($V407),\"\",OFFSET('Smelter Look-up'!$E$4,$V407-4,0))","v":""},{"$f":"IF(C407=$X$4,\"Enter smelter details\",IF(ISERROR($V407),\"\",OFFSET('Smelter Look-up'!$F$4,$V407-4,0)))","v":""},{"$f":"IF(ISERROR($V407),\"\",OFFSET('Smelter Look-up'!$G$4,$V407-4,0))","v":""},{"$f":"IF(ISERROR($V407),\"\",OFFSET('Smelter Look-up'!$H$4,$V407-4,0))","v":""},{"$f":"IF(ISERROR($V407),\"\",OFFSET('Smelter Look-up'!$I$4,$V407-4,0))","v":""},{"$nulls":7},{"$f":"IF(ISERROR($V407),\"\",OFFSET('Smelter Look-up'!$C$4,$V407-4,0)&\"\")","v":""},"",{"$f":"IF(B407=\"\",\"\",IF(ISERROR(MATCH($J407,SorP!$B$1:$B$5661,0)),\"\",INDIRECT(\"'SorP'!$A$\"&MATCH($J407,SorP!$B$1:$B$5661,0))))","v":""},null,{"$f":"IF(C407=\"\",NA(),MATCH($B407&$C407,'Smelter Look-up'!$J:$J,0))","v":{"$error":"#N/A"}},null,0,null,null,null,""]
[null,{"$f":"IF(LEN(A408)=0,\"\",INDEX('Smelter Look-up'!$A:$A,MATCH($A408,'Smelter Look-up'!$E:$E,0)))","v":""},{"$f":"IF(LEN(A408)=0,\"\",INDEX('Smelter Look-up'!$C:$C,MATCH($A408,'Smelter Look-up'!$E:$E,0)))","v":""},null,{"$f":"IF(ISERROR($V408),\"\",OFFSET('Smelter Look-up'!$D$4,$V408-4,0)&\"\")","v":""},{"$f":"IF(ISERROR($V408),\"\",OFFSET('Smelter Look-up'!$E$4,$V408-4,0))","v":""},{"$f":"IF(C408=$X$4,\"Enter smelter details\",IF(ISERROR($V408),\"\",OFFSET('Smelter Look-up'!$F$4,$V408-4,0)))","v":""},{"$f":"IF(ISERROR($V408),\"\",OFFSET('Smelter Look-up'!$G$4,$V408-4,0))","v":""},{"$f":"IF(ISERROR($V408),\"\",OFFSET('Smelter Look-up'!$H$4,$V408-4,0))","v":""},{"$f":"IF(ISERROR($V408),\"\",OFFSET('Smelter Look-up'!$I$4,$V408-4,0))","v":""},{"$nulls":7},{"$f":"IF(ISERROR($V408),\"\",OFFSET('Smelter Look-up'!$C$4,$V408-4,0)&\"\")","v":""},"",{"$f":"IF(B408=\"\",\"\",IF(ISERROR(MATCH($J408,SorP!$B$1:$B$5661,0)),\"\",INDIRECT(\"'SorP'!$A$\"&MATCH($J408,SorP!$B$1:$B$5661,0))))","v":""},null,{"$f":"IF(C408=\"\",NA(),MATCH($B408&$C408,'Smelter Look-up'!$J:$J,0))","v":{"$error":"#N/A"}},null,0,null,null,null,""]
[null,{"$f":"IF(LEN(A409)=0,\"\",INDEX('Smelter Look-up'!$A:$A,MATCH($A409,'Smelter Look-up'!$E:$E,0)))","v":""},{"$f":"IF(LEN(A409)=0,\"\",INDEX('Smelter Look-up'!$C:$C,MATCH($A409,'Smelter Look-up'!$E:$E,0)))","v":""},null,{"$f":"IF(ISERROR($V409),\"\",OFFSET('Smelter Look-up'!$D$4,$V409-4,0)&\"\")","v":""},{"$f":"IF(ISERROR($V409),\"\",OFFSET('Smelter Look-up'!$E$4,$V409-4,0))","v":""},{"$f":"IF(C409=$X$4,\"Enter smelter details\",IF(ISERROR($V409),\"\",OFFSET('Smelter Look-up'!$F$4,$V409-4,0)))","v":""},{"$f":"IF(ISERROR($V409),\"\",OFFSET('Smelter Look-up'!$G$4,$V409-4,0))","v":""},{"$f":"IF(ISERROR($V409),\"\",OFFSET('Smelter Look-up'!$H$4,$V409-4,0))","v":""},{"$f":"IF(ISERROR($V409),\"\",OFFSET('Smelter Look-up'!$I$4,$V409-4,0))","v":""},{"$nulls":7},{"$f":"IF(ISERROR($V409),\"\",OFFSET('Smelter Look-up'!$C$4,$V409-4,0)&\"\")","v":""},"",{"$f":"IF(B409=\"\",\"\",IF(ISERROR(MATCH($J409,SorP!$B$1:$B$5661,0)),\"\",INDIRECT(\"'SorP'!$A$\"&MATCH($J409,SorP!$B$1:$B$5661,0))))","v":""},null,{"$f":"IF(C409=\"\",NA(),MATCH($B409&$C409,'Smelter Look-up'!$J:$J,0))","v":{"$error":"#N/A"}},null,0,null,null,null,""]
[null,{"$f":"IF(LEN(A410)=0,\"\",INDEX('Smelter Look-up'!$A:$A,MATCH($A410,'Smelter Look-up'!$E:$E,0)))","v":""},{"$f":"IF(LEN(A410)=0,\"\",INDEX('Smelter Look-up'!$C:$C,MATCH($A410,'Smelter Look-up'!$E:$E,0)))","v":""},null,{"$f":"IF(ISERROR($V410),\"\",OFFSET('Smelter Look-up'!$D$4,$V410-4,0)&\"\")","v":""},{"$f":"IF(ISERROR($V410),\"\",OFFSET('Smelter Look-up'!$E$4,$V410-4,0))","v":""},{"$f":"IF(C410=$X$4,\"Enter smelter details\",IF(ISERROR($V410),\"\",OFFSET('Smelter Look-up'!$F$4,$V410-4,0)))","v":""},{"$f":"IF(ISERROR($V410),\"\",OFFSET('Smelter Look-up'!$G$4,$V410-4,0))","v":""},{"$f":"IF(ISERROR($V410),\"\",OFFSET('Smelter Look-up'!$H$4,$V410-4,0))","v":""},{"$f":"IF(ISERROR($V410),\"\",OFFSET('Smelter Look-up'!$I$4,$V410-4,0))","v":""},{"$nulls":7},{"$f":"IF(ISERROR($V410),\"\",OFFSET('Smelter Look-up'!$C$4,$V410-4,0)&\"\")","v":""},"",{"$f":"IF(B410=\"\",\"\",IF(ISERROR(MATCH($J410,SorP!$B$1:$B$5661,0)),\"\",INDIRECT(\"'SorP'!$A$\"&MATCH($J410,SorP!$B$1:$B$5661,0))))","v":""},null,{"$f":"IF(C410=\"\",NA(),MATCH($B410&$C410,'Smelter Look-up'!$J:$J,0))","v":{"$error":"#N/A"}},null,0,null,null,null,""]
[null,{"$f":"IF(LEN(A411)=0,\"\",INDEX('Smelter Look-up'!$A:$A,MATCH($A411,'Smelter Look-up'!$E:$E,0)))","v":""},{"$f":"IF(LEN(A411)=0,\"\",INDEX('Smelter Look-up'!$C:$C,MATCH($A411,'Smelter Look-up'!$E:$E,0)))","v":""},null,{"$f":"IF(ISERROR($V411),\"\",OFFSET('Smelter Look-up'!$D$4,$V411-4,0)&\"\")","v":""},{"$f":"IF(ISERROR($V411),\"\",OFFSET('Smelter Look-up'!$E$4,$V411-4,0))","v":""},{"$f":"IF(C411=$X$4,\"Enter smelter details\",IF(ISERROR($V411),\"\",OFFSET('Smelter Look-up'!$F$4,$V411-4,0)))","v":""},{"$f":"IF(ISERROR($V411),\"\",OFFSET('Smelter Look-up'!$G$4,$V411-4,0))","v":""},{"$f":"IF(ISERROR($V411),\"\",OFFSET('Smelter Look-up'!$H$4,$V411-4,0))","v":""},{"$f":"IF(ISERROR($V411),\"\",OFFSET('Smelter Look-up'!$I$4,$V411-4,0))","v":""},{"$nulls":7},{"$f":"IF(ISERROR($V411),\"\",OFFSET('Smelter Look-up'!$C$4,$V411-4,0)&\"\")","v":""},"",{"$f":"IF(B411=\"\",\"\",IF(ISERROR(MATCH($J411,SorP!$B$1:$B$5661,0)),\"\",INDIRECT(\"'SorP'!$A$\"&MATCH($J411,SorP!$B$1:$B$5661,0))))","v":""},null,{"$f":"IF(C411=\"\",NA(),MATCH($B411&$C411,'Smelter Look-up'!$J:$J,0))","v":{"$error":"#N/A"}},null,0,null,null,null,""]
[null,{"$f":"IF(LEN(A412)=0,\"\",INDEX('Smelter Look-up'!$A:$A,MATCH($A412,'Smelter Look-up'!$E:$E,0)))","v":""},{"$f":"IF(LEN(A412)=0,\"\",INDEX('Smelter Look-up'!$C:$C,MATCH($A412,'Smelter Look-up'!$E:$E,0)))","v":""},null,{"$f":"IF(ISERROR($V412),\"\",OFFSET('Smelter Look-up'!$D$4,$V412-4,0)&\"\")","v":""},{"$f":"IF(ISERROR($V412),\"\",OFFSET('Smelter Look-up'!$E$4,$V412-4,0))","v":""},{"$f":"IF(C412=$X$4,\"Enter smelter details\",IF(ISERROR($V412),\"\",OFFSET('Smelter Look-up'!$F$4,$V412-4,0)))","v":""},{"$f":"IF(ISERROR($V412),\"\",OFFSET('Smelter Look-up'!$G$4,$V412-4,0))","v":""},{"$f":"IF(ISERROR($V412),\"\",OFFSET('Smelter Look-up'!$H$4,$V412-4,0))","v":""},{"$f":"IF(ISERROR($V412),\"\",OFFSET('Smelter Look-up'!$I$4,$V412-4,0))","v":""},{"$nulls":7},{"$f":"IF(ISERROR($V412),\"\",OFFSET('Smelter Look-up'!$C$4,$V412-4,0)&\"\")","v":""},"",{"$f":"IF(B412=\"\",\"\",IF(ISERROR(MATCH($J412,SorP!$B$1:$B$5661,0)),\"\",INDIRECT(\"'SorP'!$A$\"&MATCH($J412,SorP!$B$1:$B$5661,0))))","v":""},null,{"$f":"IF(C412=\"\",NA(),MATCH($B412&$C412,'Smelter Look-up'!$J:$J,0))","v":{"$error":"#N/A"}},null,0,null,null,null,""]
[null,{"$f":"IF(LEN(A413)=0,\"\",INDEX('Smelter Look-up'!$A:$A,MATCH($A413,'Smelter Look-up'!$E:$E,0)))","v":""},{"$f":"IF(LEN(A413)=0,\"\",INDEX('Smelter Look-up'!$C:$C,MATCH($A413,'Smelter Look-up'!$E:$E,0)))","v":""},null,{"$f":"IF(ISERROR($V413),\"\",OFFSET('Smelter Look-up'!$D$4,$V413-4,0)&\"\")","v":""},{"$f":"IF(ISERROR($V413),\"\",OFFSET('Smelter Look-up'!$E$4,$V413-4,0))","v":""},{"$f":"IF(C413=$X$4,\"Enter smelter details\",IF(ISERROR($V413),\"\",OFFSET('Smelter Look-up'!$F$4,$V413-4,0)))","v":""},{"$f":"IF(ISERROR($V413),\"\",OFFSET('Smelter Look-up'!$G$4,$V413-4,0))","v":""},{"$f":"IF(ISERROR($V413),\"\",OFFSET('Smelter Look-up'!$H$4,$V413-4,0))","v":""},{"$f":"IF(ISERROR($V413),\"\",OFFSET('Smelter Look-up'!$I$4,$V413-4,0))","v":""},{"$nulls":7},{"$f":"IF(ISERROR($V413),\"\",OFFSET('Smelter Look-up'!$C$4,$V413-4,0)&\"\")","v":""},"",{"$f":"IF(B413=\"\",\"\",IF(ISERROR(MATCH($J413,SorP!$B$1:$B$5661,0)),\"\",INDIRECT(\"'SorP'!$A$\"&MATCH($J413,SorP!$B$1:$B$5661,0))))","v":""},null,{"$f":"IF(C413=\"\",NA(),MATCH($B413&$C413,'Smelter Look-up'!$J:$J,0))","v":{"$error":"#N/A"}},null,0,null,null,null,""]
[null,{"$f":"IF(LEN(A414)=0,\"\",INDEX('Smelter Look-up'!$A:$A,MATCH($A414,'Smelter Look-up'!$E:$E,0)))","v":""},{"$f":"IF(LEN(A414)=0,\"\",INDEX('Smelter Look-up'!$C:$C,MATCH($A414,'Smelter Look-up'!$E:$E,0)))","v":""},null,{"$f":"IF(ISERROR($V414),\"\",OFFSET('Smelter Look-up'!$D$4,$V414-4,0)&\"\")","v":""},{"$f":"IF(ISERROR($V414),\"\",OFFSET('Smelter Look-up'!$E$4,$V414-4,0))","v":""},{"$f":"IF(C414=$X$4,\"Enter smelter details\",IF(ISERROR($V414),\"\",OFFSET('Smelter Look-up'!$F$4,$V414-4,0)))","v":""},{"$f":"IF(ISERROR($V414),\"\",OFFSET('Smelter Look-up'!$G$4,$V414-4,0))","v":""},{"$f":"IF(ISERROR($V414),\"\",OFFSET('Smelter Look-up'!$H$4,$V414-4,0))","v":""},{"$f":"IF(ISERROR($V414),\"\",OFFSET('Smelter Look-up'!$I$4,$V414-4,0))","v":""},{"$nulls":7},{"$f":"IF(ISERROR($V414),\"\",OFFSET('Smelter Look-up'!$C$4,$V414-4,0)&\"\")","v":""},"",{"$f":"IF(B414=\"\",\"\",IF(ISERROR(MATCH($J414,SorP!$B$1:$B$5661,0)),\"\",INDIRECT(\"'SorP'!$A$\"&MATCH($J414,SorP!$B$1:$B$5661,0))))","v":""},null,{"$f":"IF(C414=\"\",NA(),MATCH($B414&$C414,'Smelter Look-up'!$J:$J,0))","v":{"$error":"#N/A"}},null,0,null,null,null,""]
[null,{"$f":"IF(LEN(A415)=0,\"\",INDEX('Smelter Look-up'!$A:$A,MATCH($A415,'Smelter Look-up'!$E:$E,0)))","v":""},{"$f":"IF(LEN(A415)=0,\"\",INDEX('Smelter Look-up'!$C:$C,MATCH($A415,'Smelter Look-up'!$E:$E,0)))","v":""},null,{"$f":"IF(ISERROR($V415),\"\",OFFSET('Smelter Look-up'!$D$4,$V415-4,0)&\"\")","v":""},{"$f":"IF(ISERROR($V415),\"\",OFFSET('Smelter Look-up'!$E$4,$V415-4,0))","v":""},{"$f":"IF(C415=$X$4,\"Enter smelter details\",IF(ISERROR($V415),\"\",OFFSET('Smelter Look-up'!$F$4,$V415-4,0)))","v":""},{"$f":"IF(ISERROR($V415),\"\",OFFSET('Smelter Look-up'!$G$4,$V415-4,0))","v":""},{"$f":"IF(ISERROR($V415),\"\",OFFSET('Smelter Look-up'!$H$4,$V415-4,0))","v":""},{"$f":"IF(ISERROR($V415),\"\",OFFSET('Smelter Look-up'!$I$4,$V415-4,0))","v":""},{"$nulls":7},{"$f":"IF(ISERROR($V415),\"\",OFFSET('Smelter Look-up'!$C$4,$V415-4,0)&\"\")","v":""},"",{"$f":"IF(B415=\"\",\"\",IF(ISERROR(MATCH($J415,SorP!$B$1:$B$5661,0)),\"\",INDIRECT(\"'SorP'!$A$\"&MATCH($J415,SorP!$B$1:$B$5661,0))))","v":""},null,{"$f":"IF(C415=\"\",NA(),MATCH($B415&$C415,'Smelter Look-up'!$J:$J,0))","v":{"$error":"#N/A"}},null,0,null,null,null,""]
[null,{"$f":"IF(LEN(A416)=0,\"\",INDEX('Smelter Look-up'!$A:$A,MATCH($A416,'Smelter Look-up'!$E:$E,0)))","v":""},{"$f":"IF(LEN(A416)=0,\"\",INDEX('Smelter Look-up'!$C:$C,MATCH($A416,'Smelter Look-up'!$E:$E,0)))","v":""},null,{"$f":"IF(ISERROR($V416),\"\",OFFSET('Smelter Look-up'!$D$4,$V416-4,0)&\"\")","v":""},{"$f":"IF(ISERROR($V416),\"\",OFFSET('Smelter Look-up'!$E$4,$V416-4,0))","v":""},{"$f":"IF(C416=$X$4,\"Enter smelter details\",IF(ISERROR($V416),\"\",OFFSET('Smelter Look-up'!$F$4,$V416-4,0)))","v":""},{"$f":"IF(ISERROR($V416),\"\",OFFSET('Smelter Look-up'!$G$4,$V416-4,0))","v":""},{"$f":"IF(ISERROR($V416),\"\",OFFSET('Smelter Look-up'!$H$4,$V416-4,0))","v":""},{"$f":"IF(ISERROR($V416),\"\",OFFSET('Smelter Look-up'!$I$4,$V416-4,0))","v":""},{"$nulls":7},{"$f":"IF(ISERROR($V416),\"\",OFFSET('Smelter Look-up'!$C$4,$V416-4,0)&\"\")","v":""},"",{"$f":"IF(B416=\"\",\"\",IF(ISERROR(MATCH($J416,SorP!$B$1:$B$5661,0)),\"\",INDIRECT(\"'SorP'!$A$\"&MATCH($J416,SorP!$B$1:$B$5661,0))))","v":""},null,{"$f":"IF(C416=\"\",NA(),MATCH($B416&$C416,'Smelter Look-up'!$J:$J,0))","v":{"$error":"#N/A"}},null,0,null,null,null,""]
[null,{"$f":"IF(LEN(A417)=0,\"\",INDEX('Smelter Look-up'!$A:$A,MATCH($A417,'Smelter Look-up'!$E:$E,0)))","v":""},{"$f":"IF(LEN(A417)=0,\"\",INDEX('Smelter Look-up'!$C:$C,MATCH($A417,'Smelter Look-up'!$E:$E,0)))","v":""},null,{"$f":"IF(ISERROR($V417),\"\",OFFSET('Smelter Look-up'!$D$4,$V417-4,0)&\"\")","v":""},{"$f":"IF(ISERROR($V417),\"\",OFFSET('Smelter Look-up'!$E$4,$V417-4,0))","v":""},{"$f":"IF(C417=$X$4,\"Enter smelter details\",IF(ISERROR($V417),\"\",OFFSET('Smelter Look-up'!$F$4,$V417-4,0)))","v":""},{"$f":"IF(ISERROR($V417),\"\",OFFSET('Smelter Look-up'!$G$4,$V417-4,0))","v":""},{"$f":"IF(ISERROR($V417),\"\",OFFSET('Smelter Look-up'!$H$4,$V417-4,0))","v":""},{"$f":"IF(ISERROR($V417),\"\",OFFSET('Smelter Look-up'!$I$4,$V417-4,0))","v":""},{"$nulls":7},{"$f":"IF(ISERROR($V417),\"\",OFFSET('Smelter Look-up'!$C$4,$V417-4,0)&\"\")","v":""},"",{"$f":"IF(B417=\"\",\"\",IF(ISERROR(MATCH($J417,SorP!$B$1:$B$5661,0)),\"\",INDIRECT(\"'SorP'!$A$\"&MATCH($J417,SorP!$B$1:$B$5661,0))))","v":""},null,{"$f":"IF(C417=\"\",NA(),MATCH($B417&$C417,'Smelter Look-up'!$J:$J,0))","v":{"$error":"#N/A"}},null,0,null,null,null,""]
[null,{"$f":"IF(LEN(A418)=0,\"\",INDEX('Smelter Look-up'!$A:$A,MATCH($A418,'Smelter Look-up'!$E:$E,0)))","v":""},{"$f":"IF(LEN(A418)=0,\"\",INDEX('Smelter Look-up'!$C:$C,MATCH($A418,'Smelter Look-up'!$E:$E,0)))","v":""},null,{"$f":"IF(ISERROR($V418),\"\",OFFSET('Smelter Look-up'!$D$4,$V418-4,0)&\"\")","v":""},{"$f":"IF(ISERROR($V418),\"\",OFFSET('Smelter Look-up'!$E$4,$V418-4,0))","v":""},{"$f":"IF(C418=$X$4,\"Enter smelter details\",IF(ISERROR($V418),\"\",OFFSET('Smelter Look-up'!$F$4,$V418-4,0)))","v":""},{"$f":"IF(ISERROR($V418),\"\",OFFSET('Smelter Look-up'!$G$4,$V418-4,0))","v":""},{"$f":"IF(ISERROR($V418),\"\",OFFSET('Smelter Look-up'!$H$4,$V418-4,0))","v":""},{"$f":"IF(ISERROR($V418),\"\",OFFSET('Smelter Look-up'!$I$4,$V418-4,0))","v":""},{"$nulls":7},{"$f":"IF(ISERROR($V418),\"\",OFFSET('Smelter Look-up'!$C$4,$V418-4,0)&\"\")","v":""},"",{"$f":"IF(B418=\"\",\"\",IF(ISERROR(MATCH($J418,SorP!$B$1:$B$5661,0)),\"\",INDIRECT(\"'SorP'!$A$\"&MATCH($J418,SorP!$B$1:$B$5661,0))))","v":""},null,{"$f":"IF(C418=\"\",NA(),MATCH($B418&$C418,'Smelter Look-up'!$J:$J,0))","v":{"$error":"#N/A"}},null,0,null,null,null,""]
[null,{"$f":"IF(LEN(A419)=0,\"\",INDEX('Smelter Look-up'!$A:$A,MATCH($A419,'Smelter Look-up'!$E:$E,0)))","v":""},{"$f":"IF(LEN(A419)=0,\"\",INDEX('Smelter Look-up'!$C:$C,MATCH($A419,'Smelter Look-up'!$E:$E,0)))","v":""},null,{"$f":"IF(ISERROR($V419),\"\",OFFSET('Smelter Look-up'!$D$4,$V419-4,0)&\"\")","v":""},{"$f":"IF(ISERROR($V419),\"\",OFFSET('Smelter Look-up'!$E$4,$V419-4,0))","v":""},{"$f":"IF(C419=$X$4,\"Enter smelter details\",IF(ISERROR($V419),\"\",OFFSET('Smelter Look-up'!$F$4,$V419-4,0)))","v":""},{"$f":"IF(ISERROR($V419),\"\",OFFSET('Smelter Look-up'!$G$4,$V419-4,0))","v":""},{"$f":"IF(ISERROR($V419),\"\",OFFSET('Smelter Look-up'!$H$4,$V419-4,0))","v":""},{"$f":"IF(ISERROR($V419),\"\",OFFSET('Smelter Look-up'!$I$4,$V419-4,0))","v":""},{"$nulls":7},{"$f":"IF(ISERROR($V419),\"\",OFFSET('Smelter Look-up'!$C$4,$V419-4,0)&\"\")","v":""},"",{"$f":"IF(B419=\"\",\"\",IF(ISERROR(MATCH($J419,SorP!$B$1:$B$5661,0)),\"\",INDIRECT(\"'SorP'!$A$\"&MATCH($J419,SorP!$B$1:$B$5661,0))))","v":""},null,{"$f":"IF(C419=\"\",NA(),MATCH($B419&$C419,'Smelter Look-up'!$J:$J,0))","v":{"$error":"#N/A"}},null,0,null,null,null,""]
[null,{"$f":"IF(LEN(A420)=0,\"\",INDEX('Smelter Look-up'!$A:$A,MATCH($A420,'Smelter Look-up'!$E:$E,0)))","v":""},{"$f":"IF(LEN(A420)=0,\"\",INDEX('Smelter Look-up'!$C:$C,MATCH($A420,'Smelter Look-up'!$E:$E,0)))","v":""},null,{"$f":"IF(ISERROR($V420),\"\",OFFSET('Smelter Look-up'!$D$4,$V420-4,0)&\"\")","v":""},{"$f":"IF(ISERROR($V420),\"\",OFFSET('Smelter Look-up'!$E$4,$V420-4,0))","v":""},{"$f":"IF(C420=$X$4,\"Enter smelter details\",IF(ISERROR($V420),\"\",OFFSET('Smelter Look-up'!$F$4,$V420-4,0)))","v":""},{"$f":"IF(ISERROR($V420),\"\",OFFSET('Smelter Look-up'!$G$4,$V420-4,0))","v":""},{"$f":"IF(ISERROR($V420),\"\",OFFSET('Smelter Look-up'!$H$4,$V420-4,0))","v":""},{"$f":"IF(ISERROR($V420),\"\",OFFSET('Smelter Look-up'!$I$4,$V420-4,0))","v":""},{"$nulls":7},{"$f":"IF(ISERROR($V420),\"\",OFFSET('Smelter Look-up'!$C$4,$V420-4,0)&\"\")","v":""},"",{"$f":"IF(B420=\"\",\"\",IF(ISERROR(MATCH($J420,SorP!$B$1:$B$5661,0)),\"\",INDIRECT(\"'SorP'!$A$\"&MATCH($J420,SorP!$B$1:$B$5661,0))))","v":""},null,{"$f":"IF(C420=\"\",NA(),MATCH($B420&$C420,'Smelter Look-up'!$J:$J,0))","v":{"$error":"#N/A"}},null,0,null,null,null,""]
[null,{"$f":"IF(LEN(A421)=0,\"\",INDEX('Smelter Look-up'!$A:$A,MATCH($A421,'Smelter Look-up'!$E:$E,0)))","v":""},{"$f":"IF(LEN(A421)=0,\"\",INDEX('Smelter Look-up'!$C:$C,MATCH($A421,'Smelter Look-up'!$E:$E,0)))","v":""},null,{"$f":"IF(ISERROR($V421),\"\",OFFSET('Smelter Look-up'!$D$4,$V421-4,0)&\"\")","v":""},{"$f":"IF(ISERROR($V421),\"\",OFFSET('Smelter Look-up'!$E$4,$V421-4,0))","v":""},{"$f":"IF(C421=$X$4,\"Enter smelter details\",IF(ISERROR($V421),\"\",OFFSET('Smelter Look-up'!$F$4,$V421-4,0)))","v":""},{"$f":"IF(ISERROR($V421),\"\",OFFSET('Smelter Look-up'!$G$4,$V421-4,0))","v":""},{"$f":"IF(ISERROR($V421),\"\",OFFSET('Smelter Look-up'!$H$4,$V421-4,0))","v":""},{"$f":"IF(ISERROR($V421),\"\",OFFSET('Smelter Look-up'!$I$4,$V421-4,0))","v":""},{"$nulls":7},{"$f":"IF(ISERROR($V421),\"\",OFFSET('Smelter Look-up'!$C$4,$V421-4,0)&\"\")","v":""},"",{"$f":"IF(B421=\"\",\"\",IF(ISERROR(MATCH($J421,SorP!$B$1:$B$5661,0)),\"\",INDIRECT(\"'SorP'!$A$\"&MATCH($J421,SorP!$B$1:$B$5661,0))))","v":""},null,{"$f":"IF(C421=\"\",NA(),MATCH($B421&$C421,'Smelter Look-up'!$J:$J,0))","v":{"$error":"#N/A"}},null,0,null,null,null,""]
[null,{"$f":"IF(LEN(A422)=0,\"\",INDEX('Smelter Look-up'!$A:$A,MATCH($A422,'Smelter Look-up'!$E:$E,0)))","v":""},{"$f":"IF(LEN(A422)=0,\"\",INDEX('Smelter Look-up'!$C:$C,MATCH($A422,'Smelter Look-up'!$E:$E,0)))","v":""},null,{"$f":"IF(ISERROR($V422),\"\",OFFSET('Smelter Look-up'!$D$4,$V422-4,0)&\"\")","v":""},{"$f":"IF(ISERROR($V422),\"\",OFFSET('Smelter Look-up'!$E$4,$V422-4,0))","v":""},{"$f":"IF(C422=$X$4,\"Enter smelter details\",IF(ISERROR($V422),\"\",OFFSET('Smelter Look-up'!$F$4,$V422-4,0)))","v":""},{"$f":"IF(ISERROR($V422),\"\",OFFSET('Smelter Look-up'!$G$4,$V422-4,0))","v":""},{"$f":"IF(ISERROR($V422),\"\",OFFSET('Smelter Look-up'!$H$4,$V422-4,0))","v":""},{"$f":"IF(ISERROR($V422),\"\",OFFSET('Smelter Look-up'!$I$4,$V422-4,0))","v":""},{"$nulls":7},{"$f":"IF(ISERROR($V422),\"\",OFFSET('Smelter Look-up'!$C$4,$V422-4,0)&\"\")","v":""},"",{"$f":"IF(B422=\"\",\"\",IF(ISERROR(MATCH($J422,SorP!$B$1:$B$5661,0)),\"\",INDIRECT(\"'SorP'!$A$\"&MATCH($J422,SorP!$B$1:$B$5661,0))))","v":""},null,{"$f":"IF(C422=\"\",NA(),MATCH($B422&$C422,'Smelter Look-up'!$J:$J,0))","v":{"$error":"#N/A"}},null,0,null,null,null,""]
[null,{"$f":"IF(LEN(A423)=0,\"\",INDEX('Smelter Look-up'!$A:$A,MATCH($A423,'Smelter Look-up'!$E:$E,0)))","v":""},{"$f":"IF(LEN(A423)=0,\"\",INDEX('Smelter Look-up'!$C:$C,MATCH($A423,'Smelter Look-up'!$E:$E,0)))","v":""},null,{"$f":"IF(ISERROR($V423),\"\",OFFSET('Smelter Look-up'!$D$4,$V423-4,0)&\"\")","v":""},{"$f":"IF(ISERROR($V423),\"\",OFFSET('Smelter Look-up'!$E$4,$V423-4,0))","v":""},{"$f":"IF(C423=$X$4,\"Enter smelter details\",IF(ISERROR($V423),\"\",OFFSET('Smelter Look-up'!$F$4,$V423-4,0)))","v":""},{"$f":"IF(ISERROR($V423),\"\",OFFSET('Smelter Look-up'!$G$4,$V423-4,0))","v":""},{"$f":"IF(ISERROR($V423),\"\",OFFSET('Smelter Look-up'!$H$4,$V423-4,0))","v":""},{"$f":"IF(ISERROR($V423),\"\",OFFSET('Smelter Look-up'!$I$4,$V423-4,0))","v":""},{"$nulls":7},{"$f":"IF(ISERROR($V423),\"\",OFFSET('Smelter Look-up'!$C$4,$V423-4,0)&\"\")","v":""},"",{"$f":"IF(B423=\"\",\"\",IF(ISERROR(MATCH($J423,SorP!$B$1:$B$5661,0)),\"\",INDIRECT(\"'SorP'!$A$\"&MATCH($J423,SorP!$B$1:$B$5661,0))))","v":""},null,{"$f":"IF(C423=\"\",NA(),MATCH($B423&$C423,'Smelter Look-up'!$J:$J,0))","v":{"$error":"#N/A"}},null,0,null,null,null,""]
[null,{"$f":"IF(LEN(A424)=0,\"\",INDEX('Smelter Look-up'!$A:$A,MATCH($A424,'Smelter Look-up'!$E:$E,0)))","v":""},{"$f":"IF(LEN(A424)=0,\"\",INDEX('Smelter Look-up'!$C:$C,MATCH($A424,'Smelter Look-up'!$E:$E,0)))","v":""},null,{"$f":"IF(ISERROR($V424),\"\",OFFSET('Smelter Look-up'!$D$4,$V424-4,0)&\"\")","v":""},{"$f":"IF(ISERROR($V424),\"\",OFFSET('Smelter Look-up'!$E$4,$V424-4,0))","v":""},{"$f":"IF(C424=$X$4,\"Enter smelter details\",IF(ISERROR($V424),\"\",OFFSET('Smelter Look-up'!$F$4,$V424-4,0)))","v":""},{"$f":"IF(ISERROR($V424),\"\",OFFSET('Smelter Look-up'!$G$4,$V424-4,0))","v":""},{"$f":"IF(ISERROR($V424),\"\",OFFSET('Smelter Look-up'!$H$4,$V424-4,0))","v":""},{"$f":"IF(ISERROR($V424),\"\",OFFSET('Smelter Look-up'!$I$4,$V424-4,0))","v":""},{"$nulls":7},{"$f":"IF(ISERROR($V424),\"\",OFFSET('Smelter Look-up'!$C$4,$V424-4,0)&\"\")","v":""},"",{"$f":"IF(B424=\"\",\"\",IF(ISERROR(MATCH($J424,SorP!$B$1:$B$5661,0)),\"\",INDIRECT(\"'SorP'!$A$\"&MATCH($J424,SorP!$B$1:$B$5661,0))))","v":""},null,{"$f":"IF(C424=\"\",NA(),MATCH($B424&$C424,'Smelter Look-up'!$J:$J,0))","v":{"$error":"#N/A"}},null,0,null,null,null,""]
[null,{"$f":"IF(LEN(A425)=0,\"\",INDEX('Smelter Look-up'!$A:$A,MATCH($A425,'Smelter Look-up'!$E:$E,0)))","v":""},{"$f":"IF(LEN(A425)=0,\"\",INDEX('Smelter Look-up'!$C:$C,MATCH($A425,'Smelter Look-up'!$E:$E,0)))","v":""},null,{"$f":"IF(ISERROR($V425),\"\",OFFSET('Smelter Look-up'!$D$4,$V425-4,0)&\"\")","v":""},{"$f":"IF(ISERROR($V425),\"\",OFFSET('Smelter Look-up'!$E$4,$V425-4,0))","v":""},{"$f":"IF(C425=$X$4,\"Enter smelter details\",IF(ISERROR($V425),\"\",OFFSET('Smelter Look-up'!$F$4,$V425-4,0)))","v":""},{"$f":"IF(ISERROR($V425),\"\",OFFSET('Smelter Look-up'!$G$4,$V425-4,0))","v":""},{"$f":"IF(ISERROR($V425),\"\",OFFSET('Smelter Look-up'!$H$4,$V425-4,0))","v":""},{"$f":"IF(ISERROR($V425),\"\",OFFSET('Smelter Look-up'!$I$4,$V425-4,0))","v":""},{"$nulls":7},{"$f":"IF(ISERROR($V425),\"\",OFFSET('Smelter Look-up'!$C$4,$V425-4,0)&\"\")","v":""},"",{"$f":"IF(B425=\"\",\"\",IF(ISERROR(MATCH($J425,SorP!$B$1:$B$5661,0)),\"\",INDIRECT(\"'SorP'!$A$\"&MATCH($J425,SorP!$B$1:$B$5661,0))))","v":""},null,{"$f":"IF(C425=\"\",NA(),MATCH($B425&$C425,'Smelter Look-up'!$J:$J,0))","v":{"$error":"#N/A"}},null,0,null,null,null,""]
[null,{"$f":"IF(LEN(A426)=0,\"\",INDEX('Smelter Look-up'!$A:$A,MATCH($A426,'Smelter Look-up'!$E:$E,0)))","v":""},{"$f":"IF(LEN(A426)=0,\"\",INDEX('Smelter Look-up'!$C:$C,MATCH($A426,'Smelter Look-up'!$E:$E,0)))","v":""},null,{"$f":"IF(ISERROR($V426),\"\",OFFSET('Smelter Look-up'!$D$4,$V426-4,0)&\"\")","v":""},{"$f":"IF(ISERROR($V426),\"\",OFFSET('Smelter Look-up'!$E$4,$V426-4,0))","v":""},{"$f":"IF(C426=$X$4,\"Enter smelter details\",IF(ISERROR($V426),\"\",OFFSET('Smelter Look-up'!$F$4,$V426-4,0)))","v":""},{"$f":"IF(ISERROR($V426),\"\",OFFSET('Smelter Look-up'!$G$4,$V426-4,0))","v":""},{"$f":"IF(ISERROR($V426),\"\",OFFSET('Smelter Look-up'!$H$4,$V426-4,0))","v":""},{"$f":"IF(ISERROR($V426),\"\",OFFSET('Smelter Look-up'!$I$4,$V426-4,0))","v":""},{"$nulls":7},{"$f":"IF(ISERROR($V426),\"\",OFFSET('Smelter Look-up'!$C$4,$V426-4,0)&\"\")","v":""},"",{"$f":"IF(B426=\"\",\"\",IF(ISERROR(MATCH($J426,SorP!$B$1:$B$5661,0)),\"\",INDIRECT(\"'SorP'!$A$\"&MATCH($J426,SorP!$B$1:$B$5661,0))))","v":""},null,{"$f":"IF(C426=\"\",NA(),MATCH($B426&$C426,'Smelter Look-up'!$J:$J,0))","v":{"$error":"#N/A"}},null,0,null,null,null,""]
[null,{"$f":"IF(LEN(A427)=0,\"\",INDEX('Smelter Look-up'!$A:$A,MATCH($A427,'Smelter Look-up'!$E:$E,0)))","v":""},{"$f":"IF(LEN(A427)=0,\"\",INDEX('Smelter Look-up'!$C:$C,MATCH($A427,'Smelter Look-up'!$E:$E,0)))","v":""},null,{"$f":"IF(ISERROR($V427),\"\",OFFSET('Smelter Look-up'!$D$4,$V427-4,0)&\"\")","v":""},{"$f":"IF(ISERROR($V427),\"\",OFFSET('Smelter Look-up'!$E$4,$V427-4,0))","v":""},{"$f":"IF(C427=$X$4,\"Enter smelter details\",IF(ISERROR($V427),\"\",OFFSET('Smelter Look-up'!$F$4,$V427-4,0)))","v":""},{"$f":"IF(ISERROR($V427),\"\",OFFSET('Smelter Look-up'!$G$4,$V427-4,0))","v":""},{"$f":"IF(ISERROR($V427),\"\",OFFSET('Smelter Look-up'!$H$4,$V427-4,0))","v":""},{"$f":"IF(ISERROR($V427),\"\",OFFSET('Smelter Look-up'!$I$4,$V427-4,0))","v":""},{"$nulls":7},{"$f":"IF(ISERROR($V427),\"\",OFFSET('Smelter Look-up'!$C$4,$V427-4,0)&\"\")","v":""},"",{"$f":"IF(B427=\"\",\"\",IF(ISERROR(MATCH($J427,SorP!$B$1:$B$5661,0)),\"\",INDIRECT(\"'SorP'!$A$\"&MATCH($J427,SorP!$B$1:$B$5661,0))))","v":""},null,{"$f":"IF(C427=\"\",NA(),MATCH($B427&$C427,'Smelter Look-up'!$J:$J,0))","v":{"$error":"#N/A"}},null,0,null,null,null,""]
[null,{"$f":"IF(LEN(A428)=0,\"\",INDEX('Smelter Look-up'!$A:$A,MATCH($A428,'Smelter Look-up'!$E:$E,0)))","v":""},{"$f":"IF(LEN(A428)=0,\"\",INDEX('Smelter Look-up'!$C:$C,MATCH($A428,'Smelter Look-up'!$E:$E,0)))","v":""},null,{"$f":"IF(ISERROR($V428),\"\",OFFSET('Smelter Look-up'!$D$4,$V428-4,0)&\"\")","v":""},{"$f":"IF(ISERROR($V428),\"\",OFFSET('Smelter Look-up'!$E$4,$V428-4,0))","v":""},{"$f":"IF(C428=$X$4,\"Enter smelter details\",IF(ISERROR($V428),\"\",OFFSET('Smelter Look-up'!$F$4,$V428-4,0)))","v":""},{"$f":"IF(ISERROR($V428),\"\",OFFSET('Smelter Look-up'!$G$4,$V428-4,0))","v":""},{"$f":"IF(ISERROR($V428),\"\",OFFSET('Smelter Look-up'!$H$4,$V428-4,0))","v":""},{"$f":"IF(ISERROR($V428),\"\",OFFSET('Smelter Look-up'!$I$4,$V428-4,0))","v":""},{"$nulls":7},{"$f":"IF(ISERROR($V428),\"\",OFFSET('Smelter Look-up'!$C$4,$V428-4,0)&\"\")","v":""},"",{"$f":"IF(B428=\"\",\"\",IF(ISERROR(MATCH($J428,SorP!$B$1:$B$5661,0)),\"\",INDIRECT(\"'SorP'!$A$\"&MATCH($J428,SorP!$B$1:$B$5661,0))))","v":""},null,{"$f":"IF(C428=\"\",NA(),MATCH($B428&$C428,'Smelter Look-up'!$J:$J,0))","v":{"$error":"#N/A"}},null,0,null,null,null,""]
[null,{"$f":"IF(LEN(A429)=0,\"\",INDEX('Smelter Look-up'!$A:$A,MATCH($A429,'Smelter Look-up'!$E:$E,0)))","v":""},{"$f":"IF(LEN(A429)=0,\"\",INDEX('Smelter Look-up'!$C:$C,MATCH($A429,'Smelter Look-up'!$E:$E,0)))","v":""},null,{"$f":"IF(ISERROR($V429),\"\",OFFSET('Smelter Look-up'!$D$4,$V429-4,0)&\"\")","v":""},{"$f":"IF(ISERROR($V429),\"\",OFFSET('Smelter Look-up'!$E$4,$V429-4,0))","v":""},{"$f":"IF(C429=$X$4,\"Enter smelter details\",IF(ISERROR($V429),\"\",OFFSET('Smelter Look-up'!$F$4,$V429-4,0)))","v":""},{"$f":"IF(ISERROR($V429),\"\",OFFSET('Smelter Look-up'!$G$4,$V429-4,0))","v":""},{"$f":"IF(ISERROR($V429),\"\",OFFSET('Smelter Look-up'!$H$4,$V429-4,0))","v":""},{"$f":"IF(ISERROR($V429),\"\",OFFSET('Smelter Look-up'!$I$4,$V429-4,0))","v":""},{"$nulls":7},{"$f":"IF(ISERROR($V429),\"\",OFFSET('Smelter Look-up'!$C$4,$V429-4,0)&\"\")","v":""},"",{"$f":"IF(B429=\"\",\"\",IF(ISERROR(MATCH($J429,SorP!$B$1:$B$5661,0)),\"\",INDIRECT(\"'SorP'!$A$\"&MATCH($J429,SorP!$B$1:$B$5661,0))))","v":""},null,{"$f":"IF(C429=\"\",NA(),MATCH($B429&$C429,'Smelter Look-up'!$J:$J,0))","v":{"$error":"#N/A"}},null,0,null,null,null,""]
[null,{"$f":"IF(LEN(A430)=0,\"\",INDEX('Smelter Look-up'!$A:$A,MATCH($A430,'Smelter Look-up'!$E:$E,0)))","v":""},{"$f":"IF(LEN(A430)=0,\"\",INDEX('Smelter Look-up'!$C:$C,MATCH($A430,'Smelter Look-up'!$E:$E,0)))","v":""},null,{"$f":"IF(ISERROR($V430),\"\",OFFSET('Smelter Look-up'!$D$4,$V430-4,0)&\"\")","v":""},{"$f":"IF(ISERROR($V430),\"\",OFFSET('Smelter Look-up'!$E$4,$V430-4,0))","v":""},{"$f":"IF(C430=$X$4,\"Enter smelter details\",IF(ISERROR($V430),\"\",OFFSET('Smelter Look-up'!$F$4,$V430-4,0)))","v":""},{"$f":"IF(ISERROR($V430),\"\",OFFSET('Smelter Look-up'!$G$4,$V430-4,0))","v":""},{"$f":"IF(ISERROR($V430),\"\",OFFSET('Smelter Look-up'!$H$4,$V430-4,0))","v":""},{"$f":"IF(ISERROR($V430),\"\",OFFSET('Smelter Look-up'!$I$4,$V430-4,0))","v":""},{"$nulls":7},{"$f":"IF(ISERROR($V430),\"\",OFFSET('Smelter Look-up'!$C$4,$V430-4,0)&\"\")","v":""},"",{"$f":"IF(B430=\"\",\"\",IF(ISERROR(MATCH($J430,SorP!$B$1:$B$5661,0)),\"\",INDIRECT(\"'SorP'!$A$\"&MATCH($J430,SorP!$B$1:$B$5661,0))))","v":""},null,{"$f":"IF(C430=\"\",NA(),MATCH($B430&$C430,'Smelter Look-up'!$J:$J,0))","v":{"$error":"#N/A"}},null,0,null,null,null,""]
[null,{"$f":"IF(LEN(A431)=0,\"\",INDEX('Smelter Look-up'!$A:$A,MATCH($A431,'Smelter Look-up'!$E:$E,0)))","v":""},{"$f":"IF(LEN(A431)=0,\"\",INDEX('Smelter Look-up'!$C:$C,MATCH($A431,'Smelter Look-up'!$E:$E,0)))","v":""},null,{"$f":"IF(ISERROR($V431),\"\",OFFSET('Smelter Look-up'!$D$4,$V431-4,0)&\"\")","v":""},{"$f":"IF(ISERROR($V431),\"\",OFFSET('Smelter Look-up'!$E$4,$V431-4,0))","v":""},{"$f":"IF(C431=$X$4,\"Enter smelter details\",IF(ISERROR($V431),\"\",OFFSET('Smelter Look-up'!$F$4,$V431-4,0)))","v":""},{"$f":"IF(ISERROR($V431),\"\",OFFSET('Smelter Look-up'!$G$4,$V431-4,0))","v":""},{"$f":"IF(ISERROR($V431),\"\",OFFSET('Smelter Look-up'!$H$4,$V431-4,0))","v":""},{"$f":"IF(ISERROR($V431),\"\",OFFSET('Smelter Look-up'!$I$4,$V431-4,0))","v":""},{"$nulls":7},{"$f":"IF(ISERROR($V431),\"\",OFFSET('Smelter Look-up'!$C$4,$V431-4,0)&\"\")","v":""},"",{"$f":"IF(B431=\"\",\"\",IF(ISERROR(MATCH($J431,SorP!$B$1:$B$5661,0)),\"\",INDIRECT(\"'SorP'!$A$\"&MATCH($J431,SorP!$B$1:$B$5661,0))))","v":""},null,{"$f":"IF(C431=\"\",NA(),MATCH($B431&$C431,'Smelter Look-up'!$J:$J,0))","v":{"$error":"#N/A"}},null,0,null,null,null,""]
[null,{"$f":"IF(LEN(A432)=0,\"\",INDEX('Smelter Look-up'!$A:$A,MATCH($A432,'Smelter Look-up'!$E:$E,0)))","v":""},{"$f":"IF(LEN(A432)=0,\"\",INDEX('Smelter Look-up'!$C:$C,MATCH($A432,'Smelter Look-up'!$E:$E,0)))","v":""},null,{"$f":"IF(ISERROR($V432),\"\",OFFSET('Smelter Look-up'!$D$4,$V432-4,0)&\"\")","v":""},{"$f":"IF(ISERROR($V432),\"\",OFFSET('Smelter Look-up'!$E$4,$V432-4,0))","v":""},{"$f":"IF(C432=$X$4,\"Enter smelter details\",IF(ISERROR($V432),\"\",OFFSET('Smelter Look-up'!$F$4,$V432-4,0)))","v":""},{"$f":"IF(ISERROR($V432),\"\",OFFSET('Smelter Look-up'!$G$4,$V432-4,0))","v":""},{"$f":"IF(ISERROR($V432),\"\",OFFSET('Smelter Look-up'!$H$4,$V432-4,0))","v":""},{"$f":"IF(ISERROR($V432),\"\",OFFSET('Smelter Look-up'!$I$4,$V432-4,0))","v":""},{"$nulls":7},{"$f":"IF(ISERROR($V432),\"\",OFFSET('Smelter Look-up'!$C$4,$V432-4,0)&\"\")","v":""},"",{"$f":"IF(B432=\"\",\"\",IF(ISERROR(MATCH($J432,SorP!$B$1:$B$5661,0)),\"\",INDIRECT(\"'SorP'!$A$\"&MATCH($J432,SorP!$B$1:$B$5661,0))))","v":""},null,{"$f":"IF(C432=\"\",NA(),MATCH($B432&$C432,'Smelter Look-up'!$J:$J,0))","v":{"$error":"#N/A"}},null,0,null,null,null,""]
[null,{"$f":"IF(LEN(A433)=0,\"\",INDEX('Smelter Look-up'!$A:$A,MATCH($A433,'Smelter Look-up'!$E:$E,0)))","v":""},{"$f":"IF(LEN(A433)=0,\"\",INDEX('Smelter Look-up'!$C:$C,MATCH($A433,'Smelter Look-up'!$E:$E,0)))","v":""},null,{"$f":"IF(ISERROR($V433),\"\",OFFSET('Smelter Look-up'!$D$4,$V433-4,0)&\"\")","v":""},{"$f":"IF(ISERROR($V433),\"\",OFFSET('Smelter Look-up'!$E$4,$V433-4,0))","v":""},{"$f":"IF(C433=$X$4,\"Enter smelter details\",IF(ISERROR($V433),\"\",OFFSET('Smelter Look-up'!$F$4,$V433-4,0)))","v":""},{"$f":"IF(ISERROR($V433),\"\",OFFSET('Smelter Look-up'!$G$4,$V433-4,0))","v":""},{"$f":"IF(ISERROR($V433),\"\",OFFSET('Smelter Look-up'!$H$4,$V433-4,0))","v":""},{"$f":"IF(ISERROR($V433),\"\",OFFSET('Smelter Look-up'!$I$4,$V433-4,0))","v":""},{"$nulls":7},{"$f":"IF(ISERROR($V433),\"\",OFFSET('Smelter Look-up'!$C$4,$V433-4,0)&\"\")","v":""},"",{"$f":"IF(B433=\"\",\"\",IF(ISERROR(MATCH($J433,SorP!$B$1:$B$5661,0)),\"\",INDIRECT(\"'SorP'!$A$\"&MATCH($J433,SorP!$B$1:$B$5661,0))))","v":""},null,{"$f":"IF(C433=\"\",NA(),MATCH($B433&$C433,'Smelter Look-up'!$J:$J,0))","v":{"$error":"#N/A"}},null,0,null,null,null,""]
[null,{"$f":"IF(LEN(A434)=0,\"\",INDEX('Smelter Look-up'!$A:$A,MATCH($A434,'Smelter Look-up'!$E:$E,0)))","v":""},{"$f":"IF(LEN(A434)=0,\"\",INDEX('Smelter Look-up'!$C:$C,MATCH($A434,'Smelter Look-up'!$E:$E,0)))","v":""},null,{"$f":"IF(ISERROR($V434),\"\",OFFSET('Smelter Look-up'!$D$4,$V434-4,0)&\"\")","v":""},{"$f":"IF(ISERROR($V434),\"\",OFFSET('Smelter Look-up'!$E$4,$V434-4,0))","v":""},{"$f":"IF(C434=$X$4,\"Enter smelter details\",IF(ISERROR($V434),\"\",OFFSET('Smelter Look-up'!$F$4,$V434-4,0)))","v":""},{"$f":"IF(ISERROR($V434),\"\",OFFSET('Smelter Look-up'!$G$4,$V434-4,0))","v":""},{"$f":"IF(ISERROR($V434),\"\",OFFSET('Smelter Look-up'!$H$4,$V434-4,0))","v":""},{"$f":"IF(ISERROR($V434),\"\",OFFSET('Smelter Look-up'!$I$4,$V434-4,0))","v":""},{"$nulls":7},{"$f":"IF(ISERROR($V434),\"\",OFFSET('Smelter Look-up'!$C$4,$V434-4,0)&\"\")","v":""},"",{"$f":"IF(B434=\"\",\"\",IF(ISERROR(MATCH($J434,SorP!$B$1:$B$5661,0)),\"\",INDIRECT(\"'SorP'!$A$\"&MATCH($J434,SorP!$B$1:$B$5661,0))))","v":""},null,{"$f":"IF(C434=\"\",NA(),MATCH($B434&$C434,'Smelter Look-up'!$J:$J,0))","v":{"$error":"#N/A"}},null,0,null,null,null,""]
[null,{"$f":"IF(LEN(A435)=0,\"\",INDEX('Smelter Look-up'!$A:$A,MATCH($A435,'Smelter Look-up'!$E:$E,0)))","v":""},{"$f":"IF(LEN(A435)=0,\"\",INDEX('Smelter Look-up'!$C:$C,MATCH($A435,'Smelter Look-up'!$E:$E,0)))","v":""},null,{"$f":"IF(ISERROR($V435),\"\",OFFSET('Smelter Look-up'!$D$4,$V435-4,0)&\"\")","v":""},{"$f":"IF(ISERROR($V435),\"\",OFFSET('Smelter Look-up'!$E$4,$V435-4,0))","v":""},{"$f":"IF(C435=$X$4,\"Enter smelter details\",IF(ISERROR($V435),\"\",OFFSET('Smelter Look-up'!$F$4,$V435-4,0)))","v":""},{"$f":"IF(ISERROR($V435),\"\",OFFSET('Smelter Look-up'!$G$4,$V435-4,0))","v":""},{"$f":"IF(ISERROR($V435),\"\",OFFSET('Smelter Look-up'!$H$4,$V435-4,0))","v":""},{"$f":"IF(ISERROR($V435),\"\",OFFSET('Smelter Look-up'!$I$4,$V435-4,0))","v":""},{"$nulls":7},{"$f":"IF(ISERROR($V435),\"\",OFFSET('Smelter Look-up'!$C$4,$V435-4,0)&\"\")","v":""},"",{"$f":"IF(B435=\"\",\"\",IF(ISERROR(MATCH($J435,SorP!$B$1:$B$5661,0)),\"\",INDIRECT(\"'SorP'!$A$\"&MATCH($J435,SorP!$B$1:$B$5661,0))))","v":""},null,{"$f":"IF(C435=\"\",NA(),MATCH($B435&$C435,'Smelter Look-up'!$J:$J,0))","v":{"$error":"#N/A"}},null,0,null,null,null,""]
[null,{"$f":"IF(LEN(A436)=0,\"\",INDEX('Smelter Look-up'!$A:$A,MATCH($A436,'Smelter Look-up'!$E:$E,0)))","v":""},{"$f":"IF(LEN(A436)=0,\"\",INDEX('Smelter Look-up'!$C:$C,MATCH($A436,'Smelter Look-up'!$E:$E,0)))","v":""},null,{"$f":"IF(ISERROR($V436),\"\",OFFSET('Smelter Look-up'!$D$4,$V436-4,0)&\"\")","v":""},{"$f":"IF(ISERROR($V436),\"\",OFFSET('Smelter Look-up'!$E$4,$V436-4,0))","v":""},{"$f":"IF(C436=$X$4,\"Enter smelter details\",IF(ISERROR($V436),\"\",OFFSET('Smelter Look-up'!$F$4,$V436-4,0)))","v":""},{"$f":"IF(ISERROR($V436),\"\",OFFSET('Smelter Look-up'!$G$4,$V436-4,0))","v":""},{"$f":"IF(ISERROR($V436),\"\",OFFSET('Smelter Look-up'!$H$4,$V436-4,0))","v":""},{"$f":"IF(ISERROR($V436),\"\",OFFSET('Smelter Look-up'!$I$4,$V436-4,0))","v":""},{"$nulls":7},{"$f":"IF(ISERROR($V436),\"\",OFFSET('Smelter Look-up'!$C$4,$V436-4,0)&\"\")","v":""},"",{"$f":"IF(B436=\"\",\"\",IF(ISERROR(MATCH($J436,SorP!$B$1:$B$5661,0)),\"\",INDIRECT(\"'SorP'!$A$\"&MATCH($J436,SorP!$B$1:$B$5661,0))))","v":""},null,{"$f":"IF(C436=\"\",NA(),MATCH($B436&$C436,'Smelter Look-up'!$J:$J,0))","v":{"$error":"#N/A"}},null,0,null,null,null,""]
[null,{"$f":"IF(LEN(A437)=0,\"\",INDEX('Smelter Look-up'!$A:$A,MATCH($A437,'Smelter Look-up'!$E:$E,0)))","v":""},{"$f":"IF(LEN(A437)=0,\"\",INDEX('Smelter Look-up'!$C:$C,MATCH($A437,'Smelter Look-up'!$E:$E,0)))","v":""},null,{"$f":"IF(ISERROR($V437),\"\",OFFSET('Smelter Look-up'!$D$4,$V437-4,0)&\"\")","v":""},{"$f":"IF(ISERROR($V437),\"\",OFFSET('Smelter Look-up'!$E$4,$V437-4,0))","v":""},{"$f":"IF(C437=$X$4,\"Enter smelter details\",IF(ISERROR($V437),\"\",OFFSET('Smelter Look-up'!$F$4,$V437-4,0)))","v":""},{"$f":"IF(ISERROR($V437),\"\",OFFSET('Smelter Look-up'!$G$4,$V437-4,0))","v":""},{"$f":"IF(ISERROR($V437),\"\",OFFSET('Smelter Look-up'!$H$4,$V437-4,0))","v":""},{"$f":"IF(ISERROR($V437),\"\",OFFSET('Smelter Look-up'!$I$4,$V437-4,0))","v":""},{"$nulls":7},{"$f":"IF(ISERROR($V437),\"\",OFFSET('Smelter Look-up'!$C$4,$V437-4,0)&\"\")","v":""},"",{"$f":"IF(B437=\"\",\"\",IF(ISERROR(MATCH($J437,SorP!$B$1:$B$5661,0)),\"\",INDIRECT(\"'SorP'!$A$\"&MATCH($J437,SorP!$B$1:$B$5661,0))))","v":""},null,{"$f":"IF(C437=\"\",NA(),MATCH($B437&$C437,'Smelter Look-up'!$J:$J,0))","v":{"$error":"#N/A"}},null,0,null,null,null,""]
[null,{"$f":"IF(LEN(A438)=0,\"\",INDEX('Smelter Look-up'!$A:$A,MATCH($A438,'Smelter Look-up'!$E:$E,0)))","v":""},{"$f":"IF(LEN(A438)=0,\"\",INDEX('Smelter Look-up'!$C:$C,MATCH($A438,'Smelter Look-up'!$E:$E,0)))","v":""},null,{"$f":"IF(ISERROR($V438),\"\",OFFSET('Smelter Look-up'!$D$4,$V438-4,0)&\"\")","v":""},{"$f":"IF(ISERROR($V438),\"\",OFFSET('Smelter Look-up'!$E$4,$V438-4,0))","v":""},{"$f":"IF(C438=$X$4,\"Enter smelter details\",IF(ISERROR($V438),\"\",OFFSET('Smelter Look-up'!$F$4,$V438-4,0)))","v":""},{"$f":"IF(ISERROR($V438),\"\",OFFSET('Smelter Look-up'!$G$4,$V438-4,0))","v":""},{"$f":"IF(ISERROR($V438),\"\",OFFSET('Smelter Look-up'!$H$4,$V438-4,0))","v":""},{"$f":"IF(ISERROR($V438),\"\",OFFSET('Smelter Look-up'!$I$4,$V438-4,0))","v":""},{"$nulls":7},{"$f":"IF(ISERROR($V438),\"\",OFFSET('Smelter Look-up'!$C$4,$V438-4,0)&\"\")","v":""},"",{"$f":"IF(B438=\"\",\"\",IF(ISERROR(MATCH($J438,SorP!$B$1:$B$5661,0)),\"\",INDIRECT(\"'SorP'!$A$\"&MATCH($J438,SorP!$B$1:$B$5661,0))))","v":""},null,{"$f":"IF(C438=\"\",NA(),MATCH($B438&$C438,'Smelter Look-up'!$J:$J,0))","v":{"$error":"#N/A"}},null,0,null,null,null,""]
[null,{"$f":"IF(LEN(A439)=0,\"\",INDEX('Smelter Look-up'!$A:$A,MATCH($A439,'Smelter Look-up'!$E:$E,0)))","v":""},{"$f":"IF(LEN(A439)=0,\"\",INDEX('Smelter Look-up'!$C:$C,MATCH($A439,'Smelter Look-up'!$E:$E,0)))","v":""},null,{"$f":"IF(ISERROR($V439),\"\",OFFSET('Smelter Look-up'!$D$4,$V439-4,0)&\"\")","v":""},{"$f":"IF(ISERROR($V439),\"\",OFFSET('Smelter Look-up'!$E$4,$V439-4,0))","v":""},{"$f":"IF(C439=$X$4,\"Enter smelter details\",IF(ISERROR($V439),\"\",OFFSET('Smelter Look-up'!$F$4,$V439-4,0)))","v":""},{"$f":"IF(ISERROR($V439),\"\",OFFSET('Smelter Look-up'!$G$4,$V439-4,0))","v":""},{"$f":"IF(ISERROR($V439),\"\",OFFSET('Smelter Look-up'!$H$4,$V439-4,0))","v":""},{"$f":"IF(ISERROR($V439),\"\",OFFSET('Smelter Look-up'!$I$4,$V439-4,0))","v":""},{"$nulls":7},{"$f":"IF(ISERROR($V439),\"\",OFFSET('Smelter Look-up'!$C$4,$V439-4,0)&\"\")","v":""},"",{"$f":"IF(B439=\"\",\"\",IF(ISERROR(MATCH($J439,SorP!$B$1:$B$5661,0)),\"\",INDIRECT(\"'SorP'!$A$\"&MATCH($J439,SorP!$B$1:$B$5661,0))))","v":""},null,{"$f":"IF(C439=\"\",NA(),MATCH($B439&$C439,'Smelter Look-up'!$J:$J,0))","v":{"$error":"#N/A"}},null,0,null,null,null,""]
[null,{"$f":"IF(LEN(A440)=0,\"\",INDEX('Smelter Look-up'!$A:$A,MATCH($A440,'Smelter Look-up'!$E:$E,0)))","v":""},{"$f":"IF(LEN(A440)=0,\"\",INDEX('Smelter Look-up'!$C:$C,MATCH($A440,'Smelter Look-up'!$E:$E,0)))","v":""},null,{"$f":"IF(ISERROR($V440),\"\",OFFSET('Smelter Look-up'!$D$4,$V440-4,0)&\"\")","v":""},{"$f":"IF(ISERROR($V440),\"\",OFFSET('Smelter Look-up'!$E$4,$V440-4,0))","v":""},{"$f":"IF(C440=$X$4,\"Enter smelter details\",IF(ISERROR($V440),\"\",OFFSET('Smelter Look-up'!$F$4,$V440-4,0)))","v":""},{"$f":"IF(ISERROR($V440),\"\",OFFSET('Smelter Look-up'!$G$4,$V440-4,0))","v":""},{"$f":"IF(ISERROR($V440),\"\",OFFSET('Smelter Look-up'!$H$4,$V440-4,0))","v":""},{"$f":"IF(ISERROR($V440),\"\",OFFSET('Smelter Look-up'!$I$4,$V440-4,0))","v":""},{"$nulls":7},{"$f":"IF(ISERROR($V440),\"\",OFFSET('Smelter Look-up'!$C$4,$V440-4,0)&\"\")","v":""},"",{"$f":"IF(B440=\"\",\"\",IF(ISERROR(MATCH($J440,SorP!$B$1:$B$5661,0)),\"\",INDIRECT(\"'SorP'!$A$\"&MATCH($J440,SorP!$B$1:$B$5661,0))))","v":""},null,{"$f":"IF(C440=\"\",NA(),MATCH($B440&$C440,'Smelter Look-up'!$J:$J,0))","v":{"$error":"#N/A"}},null,0,null,null,null,""]
[null,{"$f":"IF(LEN(A441)=0,\"\",INDEX('Smelter Look-up'!$A:$A,MATCH($A441,'Smelter Look-up'!$E:$E,0)))","v":""},{"$f":"IF(LEN(A441)=0,\"\",INDEX('Smelter Look-up'!$C:$C,MATCH($A441,'Smelter Look-up'!$E:$E,0)))","v":""},null,{"$f":"IF(ISERROR($V441),\"\",OFFSET('Smelter Look-up'!$D$4,$V441-4,0)&\"\")","v":""},{"$f":"IF(ISERROR($V441),\"\",OFFSET('Smelter Look-up'!$E$4,$V441-4,0))","v":""},{"$f":"IF(C441=$X$4,\"Enter smelter details\",IF(ISERROR($V441),\"\",OFFSET('Smelter Look-up'!$F$4,$V441-4,0)))","v":""},{"$f":"IF(ISERROR($V441),\"\",OFFSET('Smelter Look-up'!$G$4,$V441-4,0))","v":""},{"$f":"IF(ISERROR($V441),\"\",OFFSET('Smelter Look-up'!$H$4,$V441-4,0))","v":""},{"$f":"IF(ISERROR($V441),\"\",OFFSET('Smelter Look-up'!$I$4,$V441-4,0))","v":""},{"$nulls":7},{"$f":"IF(ISERROR($V441),\"\",OFFSET('Smelter Look-up'!$C$4,$V441-4,0)&\"\")","v":""},"",{"$f":"IF(B441=\"\",\"\",IF(ISERROR(MATCH($J441,SorP!$B$1:$B$5661,0)),\"\",INDIRECT(\"'SorP'!$A$\"&MATCH($J441,SorP!$B$1:$B$5661,0))))","v":""},null,{"$f":"IF(C441=\"\",NA(),MATCH($B441&$C441,'Smelter Look-up'!$J:$J,0))","v":{"$error":"#N/A"}},null,0,null,null,null,""]
[null,{"$f":"IF(LEN(A442)=0,\"\",INDEX('Smelter Look-up'!$A:$A,MATCH($A442,'Smelter Look-up'!$E:$E,0)))","v":""},{"$f":"IF(LEN(A442)=0,\"\",INDEX('Smelter Look-up'!$C:$C,MATCH($A442,'Smelter Look-up'!$E:$E,0)))","v":""},null,{"$f":"IF(ISERROR($V442),\"\",OFFSET('Smelter Look-up'!$D$4,$V442-4,0)&\"\")","v":""},{"$f":"IF(ISERROR($V442),\"\",OFFSET('Smelter Look-up'!$E$4,$V442-4,0))","v":""},{"$f":"IF(C442=$X$4,\"Enter smelter details\",IF(ISERROR($V442),\"\",OFFSET('Smelter Look-up'!$F$4,$V442-4,0)))","v":""},{"$f":"IF(ISERROR($V442),\"\",OFFSET('Smelter Look-up'!$G$4,$V442-4,0))","v":""},{"$f":"IF(ISERROR($V442),\"\",OFFSET('Smelter Look-up'!$H$4,$V442-4,0))","v":""},{"$f":"IF(ISERROR($V442),\"\",OFFSET('Smelter Look-up'!$I$4,$V442-4,0))","v":""},{"$nulls":7},{"$f":"IF(ISERROR($V442),\"\",OFFSET('Smelter Look-up'!$C$4,$V442-4,0)&\"\")","v":""},"",{"$f":"IF(B442=\"\",\"\",IF(ISERROR(MATCH($J442,SorP!$B$1:$B$5661,0)),\"\",INDIRECT(\"'SorP'!$A$\"&MATCH($J442,SorP!$B$1:$B$5661,0))))","v":""},null,{"$f":"IF(C442=\"\",NA(),MATCH($B442&$C442,'Smelter Look-up'!$J:$J,0))","v":{"$error":"#N/A"}},null,0,null,null,null,""]
[null,{"$f":"IF(LEN(A443)=0,\"\",INDEX('Smelter Look-up'!$A:$A,MATCH($A443,'Smelter Look-up'!$E:$E,0)))","v":""},{"$f":"IF(LEN(A443)=0,\"\",INDEX('Smelter Look-up'!$C:$C,MATCH($A443,'Smelter Look-up'!$E:$E,0)))","v":""},null,{"$f":"IF(ISERROR($V443),\"\",OFFSET('Smelter Look-up'!$D$4,$V443-4,0)&\"\")","v":""},{"$f":"IF(ISERROR($V443),\"\",OFFSET('Smelter Look-up'!$E$4,$V443-4,0))","v":""},{"$f":"IF(C443=$X$4,\"Enter smelter details\",IF(ISERROR($V443),\"\",OFFSET('Smelter Look-up'!$F$4,$V443-4,0)))","v":""},{"$f":"IF(ISERROR($V443),\"\",OFFSET('Smelter Look-up'!$G$4,$V443-4,0))","v":""},{"$f":"IF(ISERROR($V443),\"\",OFFSET('Smelter Look-up'!$H$4,$V443-4,0))","v":""},{"$f":"IF(ISERROR($V443),\"\",OFFSET('Smelter Look-up'!$I$4,$V443-4,0))","v":""},{"$nulls":7},{"$f":"IF(ISERROR($V443),\"\",OFFSET('Smelter Look-up'!$C$4,$V443-4,0)&\"\")","v":""},"",{"$f":"IF(B443=\"\",\"\",IF(ISERROR(MATCH($J443,SorP!$B$1:$B$5661,0)),\"\",INDIRECT(\"'SorP'!$A$\"&MATCH($J443,SorP!$B$1:$B$5661,0))))","v":""},null,{"$f":"IF(C443=\"\",NA(),MATCH($B443&$C443,'Smelter Look-up'!$J:$J,0))","v":{"$error":"#N/A"}},null,0,null,null,null,""]
[null,{"$f":"IF(LEN(A444)=0,\"\",INDEX('Smelter Look-up'!$A:$A,MATCH($A444,'Smelter Look-up'!$E:$E,0)))","v":""},{"$f":"IF(LEN(A444)=0,\"\",INDEX('Smelter Look-up'!$C:$C,MATCH($A444,'Smelter Look-up'!$E:$E,0)))","v":""},null,{"$f":"IF(ISERROR($V444),\"\",OFFSET('Smelter Look-up'!$D$4,$V444-4,0)&\"\")","v":""},{"$f":"IF(ISERROR($V444),\"\",OFFSET('Smelter Look-up'!$E$4,$V444-4,0))","v":""},{"$f":"IF(C444=$X$4,\"Enter smelter details\",IF(ISERROR($V444),\"\",OFFSET('Smelter Look-up'!$F$4,$V444-4,0)))","v":""},{"$f":"IF(ISERROR($V444),\"\",OFFSET('Smelter Look-up'!$G$4,$V444-4,0))","v":""},{"$f":"IF(ISERROR($V444),\"\",OFFSET('Smelter Look-up'!$H$4,$V444-4,0))","v":""},{"$f":"IF(ISERROR($V444),\"\",OFFSET('Smelter Look-up'!$I$4,$V444-4,0))","v":""},{"$nulls":7},{"$f":"IF(ISERROR($V444),\"\",OFFSET('Smelter Look-up'!$C$4,$V444-4,0)&\"\")","v":""},"",{"$f":"IF(B444=\"\",\"\",IF(ISERROR(MATCH($J444,SorP!$B$1:$B$5661,0)),\"\",INDIRECT(\"'SorP'!$A$\"&MATCH($J444,SorP!$B$1:$B$5661,0))))","v":""},null,{"$f":"IF(C444=\"\",NA(),MATCH($B444&$C444,'Smelter Look-up'!$J:$J,0))","v":{"$error":"#N/A"}},null,0,null,null,null,""]
[null,{"$f":"IF(LEN(A445)=0,\"\",INDEX('Smelter Look-up'!$A:$A,MATCH($A445,'Smelter Look-up'!$E:$E,0)))","v":""},{"$f":"IF(LEN(A445)=0,\"\",INDEX('Smelter Look-up'!$C:$C,MATCH($A445,'Smelter Look-up'!$E:$E,0)))","v":""},null,{"$f":"IF(ISERROR($V445),\"\",OFFSET('Smelter Look-up'!$D$4,$V445-4,0)&\"\")","v":""},{"$f":"IF(ISERROR($V445),\"\",OFFSET('Smelter Look-up'!$E$4,$V445-4,0))","v":""},{"$f":"IF(C445=$X$4,\"Enter smelter details\",IF(ISERROR($V445),\"\",OFFSET('Smelter Look-up'!$F$4,$V445-4,0)))","v":""},{"$f":"IF(ISERROR($V445),\"\",OFFSET('Smelter Look-up'!$G$4,$V445-4,0))","v":""},{"$f":"IF(ISERROR($V445),\"\",OFFSET('Smelter Look-up'!$H$4,$V445-4,0))","v":""},{"$f":"IF(ISERROR($V445),\"\",OFFSET('Smelter Look-up'!$I$4,$V445-4,0))","v":""},{"$nulls":7},{"$f":"IF(ISERROR($V445),\"\",OFFSET('Smelter Look-up'!$C$4,$V445-4,0)&\"\")","v":""},"",{"$f":"IF(B445=\"\",\"\",IF(ISERROR(MATCH($J445,SorP!$B$1:$B$5661,0)),\"\",INDIRECT(\"'SorP'!$A$\"&MATCH($J445,SorP!$B$1:$B$5661,0))))","v":""},null,{"$f":"IF(C445=\"\",NA(),MATCH($B445&$C445,'Smelter Look-up'!$J:$J,0))","v":{"$error":"#N/A"}},null,0,null,null,null,""]
[null,{"$f":"IF(LEN(A446)=0,\"\",INDEX('Smelter Look-up'!$A:$A,MATCH($A446,'Smelter Look-up'!$E:$E,0)))","v":""},{"$f":"IF(LEN(A446)=0,\"\",INDEX('Smelter Look-up'!$C:$C,MATCH($A446,'Smelter Look-up'!$E:$E,0)))","v":""},null,{"$f":"IF(ISERROR($V446),\"\",OFFSET('Smelter Look-up'!$D$4,$V446-4,0)&\"\")","v":""},{"$f":"IF(ISERROR($V446),\"\",OFFSET('Smelter Look-up'!$E$4,$V446-4,0))","v":""},{"$f":"IF(C446=$X$4,\"Enter smelter details\",IF(ISERROR($V446),\"\",OFFSET('Smelter Look-up'!$F$4,$V446-4,0)))","v":""},{"$f":"IF(ISERROR($V446),\"\",OFFSET('Smelter Look-up'!$G$4,$V446-4,0))","v":""},{"$f":"IF(ISERROR($V446),\"\",OFFSET('Smelter Look-up'!$H$4,$V446-4,0))","v":""},{"$f":"IF(ISERROR($V446),\"\",OFFSET('Smelter Look-up'!$I$4,$V446-4,0))","v":""},{"$nulls":7},{"$f":"IF(ISERROR($V446),\"\",OFFSET('Smelter Look-up'!$C$4,$V446-4,0)&\"\")","v":""},"",{"$f":"IF(B446=\"\",\"\",IF(ISERROR(MATCH($J446,SorP!$B$1:$B$5661,0)),\"\",INDIRECT(\"'SorP'!$A$\"&MATCH($J446,SorP!$B$1:$B$5661,0))))","v":""},null,{"$f":"IF(C446=\"\",NA(),MATCH($B446&$C446,'Smelter Look-up'!$J:$J,0))","v":{"$error":"#N/A"}},null,0,null,null,null,""]
[null,{"$f":"IF(LEN(A447)=0,\"\",INDEX('Smelter Look-up'!$A:$A,MATCH($A447,'Smelter Look-up'!$E:$E,0)))","v":""},{"$f":"IF(LEN(A447)=0,\"\",INDEX('Smelter Look-up'!$C:$C,MATCH($A447,'Smelter Look-up'!$E:$E,0)))","v":""},null,{"$f":"IF(ISERROR($V447),\"\",OFFSET('Smelter Look-up'!$D$4,$V447-4,0)&\"\")","v":""},{"$f":"IF(ISERROR($V447),\"\",OFFSET('Smelter Look-up'!$E$4,$V447-4,0))","v":""},{"$f":"IF(C447=$X$4,\"Enter smelter details\",IF(ISERROR($V447),\"\",OFFSET('Smelter Look-up'!$F$4,$V447-4,0)))","v":""},{"$f":"IF(ISERROR($V447),\"\",OFFSET('Smelter Look-up'!$G$4,$V447-4,0))","v":""},{"$f":"IF(ISERROR($V447),\"\",OFFSET('Smelter Look-up'!$H$4,$V447-4,0))","v":""},{"$f":"IF(ISERROR($V447),\"\",OFFSET('Smelter Look-up'!$I$4,$V447-4,0))","v":""},{"$nulls":7},{"$f":"IF(ISERROR($V447),\"\",OFFSET('Smelter Look-up'!$C$4,$V447-4,0)&\"\")","v":""},"",{"$f":"IF(B447=\"\",\"\",IF(ISERROR(MATCH($J447,SorP!$B$1:$B$5661,0)),\"\",INDIRECT(\"'SorP'!$A$\"&MATCH($J447,SorP!$B$1:$B$5661,0))))","v":""},null,{"$f":"IF(C447=\"\",NA(),MATCH($B447&$C447,'Smelter Look-up'!$J:$J,0))","v":{"$error":"#N/A"}},null,{"$f":"IF(AND(C447=\"Smelter not listed\",OR(LEN(D447)=0,LEN(E447)=0)),1,0)","v":0},null,null,null,{"$f":"B447&C447","v":""}]
[null,{"$f":"IF(LEN(A448)=0,\"\",INDEX('Smelter Look-up'!$A:$A,MATCH($A448,'Smelter Look-up'!$E:$E,0)))","v":""},{"$f":"IF(LEN(A448)=0,\"\",INDEX('Smelter Look-up'!$C:$C,MATCH($A448,'Smelter Look-up'!$E:$E,0)))","v":""},null,{"$f":"IF(ISERROR($V448),\"\",OFFSET('Smelter Look-up'!$D$4,$V448-4,0)&\"\")","v":""},{"$f":"IF(ISERROR($V448),\"\",OFFSET('Smelter Look-up'!$E$4,$V448-4,0))","v":""},{"$f":"IF(C448=$X$4,\"Enter smelter details\",IF(ISERROR($V448),\"\",OFFSET('Smelter Look-up'!$F$4,$V448-4,0)))","v":""},{"$f":"IF(ISERROR($V448),\"\",OFFSET('Smelter Look-up'!$G$4,$V448-4,0))","v":""},{"$f":"IF(ISERROR($V448),\"\",OFFSET('Smelter Look-up'!$H$4,$V448-4,0))","v":""},{"$f":"IF(ISERROR($V448),\"\",OFFSET('Smelter Look-up'!$I$4,$V448-4,0))","v":""},{"$nulls":7},{"$f":"IF(ISERROR($V448),\"\",OFFSET('Smelter Look-up'!$C$4,$V448-4,0)&\"\")","v":""},{"$f":"IF(B448=\"\",\"\",IF(ISERROR(MATCH($E448,CL,0)),\"Unknown\",INDIRECT(\"'C'!$A$\"&MATCH($E448,CL,0)+1)))","v":""},{"$f":"IF(B448=\"\",\"\",IF(ISERROR(MATCH($J448,SorP!$B$1:$B$5661,0)),\"\",INDIRECT(\"'SorP'!$A$\"&MATCH($J448,SorP!$B$1:$B$5661,0))))","v":""},null,{"$f":"IF(C448=\"\",NA(),MATCH($B448&$C448,'Smelter Look-up'!$J:$J,0))","v":{"$error":"#N/A"}},null,0,null,null,null,""]
[null,{"$f":"IF(LEN(A449)=0,\"\",INDEX('Smelter Look-up'!$A:$A,MATCH($A449,'Smelter Look-up'!$E:$E,0)))","v":""},{"$f":"IF(LEN(A449)=0,\"\",INDEX('Smelter Look-up'!$C:$C,MATCH($A449,'Smelter Look-up'!$E:$E,0)))","v":""},null,{"$f":"IF(ISERROR($V449),\"\",OFFSET('Smelter Look-up'!$D$4,$V449-4,0)&\"\")","v":""},{"$f":"IF(ISERROR($V449),\"\",OFFSET('Smelter Look-up'!$E$4,$V449-4,0))","v":""},{"$f":"IF(C449=$X$4,\"Enter smelter details\",IF(ISERROR($V449),\"\",OFFSET('Smelter Look-up'!$F$4,$V449-4,0)))","v":""},{"$f":"IF(ISERROR($V449),\"\",OFFSET('Smelter Look-up'!$G$4,$V449-4,0))","v":""},{"$f":"IF(ISERROR($V449),\"\",OFFSET('Smelter Look-up'!$H$4,$V449-4,0))","v":""},{"$f":"IF(ISERROR($V449),\"\",OFFSET('Smelter Look-up'!$I$4,$V449-4,0))","v":""},{"$nulls":7},{"$f":"IF(ISERROR($V449),\"\",OFFSET('Smelter Look-up'!$C$4,$V449-4,0)&\"\")","v":""},"",{"$f":"IF(B449=\"\",\"\",IF(ISERROR(MATCH($J449,SorP!$B$1:$B$5661,0)),\"\",INDIRECT(\"'SorP'!$A$\"&MATCH($J449,SorP!$B$1:$B$5661,0))))","v":""},null,{"$f":"IF(C449=\"\",NA(),MATCH($B449&$C449,'Smelter Look-up'!$J:$J,0))","v":{"$error":"#N/A"}},null,0,null,null,null,""]
[null,{"$f":"IF(LEN(A450)=0,\"\",INDEX('Smelter Look-up'!$A:$A,MATCH($A450,'Smelter Look-up'!$E:$E,0)))","v":""},{"$f":"IF(LEN(A450)=0,\"\",INDEX('Smelter Look-up'!$C:$C,MATCH($A450,'Smelter Look-up'!$E:$E,0)))","v":""},null,{"$f":"IF(ISERROR($V450),\"\",OFFSET('Smelter Look-up'!$D$4,$V450-4,0)&\"\")","v":""},{"$f":"IF(ISERROR($V450),\"\",OFFSET('Smelter Look-up'!$E$4,$V450-4,0))","v":""},{"$f":"IF(C450=$X$4,\"Enter smelter details\",IF(ISERROR($V450),\"\",OFFSET('Smelter Look-up'!$F$4,$V450-4,0)))","v":""},{"$f":"IF(ISERROR($V450),\"\",OFFSET('Smelter Look-up'!$G$4,$V450-4,0))","v":""},{"$f":"IF(ISERROR($V450),\"\",OFFSET('Smelter Look-up'!$H$4,$V450-4,0))","v":""},{"$f":"IF(ISERROR($V450),\"\",OFFSET('Smelter Look-up'!$I$4,$V450-4,0))","v":""},{"$nulls":7},{"$f":"IF(ISERROR($V450),\"\",OFFSET('Smelter Look-up'!$C$4,$V450-4,0)&\"\")","v":""},"",{"$f":"IF(B450=\"\",\"\",IF(ISERROR(MATCH($J450,SorP!$B$1:$B$5661,0)),\"\",INDIRECT(\"'SorP'!$A$\"&MATCH($J450,SorP!$B$1:$B$5661,0))))","v":""},null,{"$f":"IF(C450=\"\",NA(),MATCH($B450&$C450,'Smelter Look-up'!$J:$J,0))","v":{"$error":"#N/A"}},null,0,null,null,null,""]
[null,{"$f":"IF(LEN(A451)=0,\"\",INDEX('Smelter Look-up'!$A:$A,MATCH($A451,'Smelter Look-up'!$E:$E,0)))","v":""},{"$f":"IF(LEN(A451)=0,\"\",INDEX('Smelter Look-up'!$C:$C,MATCH($A451,'Smelter Look-up'!$E:$E,0)))","v":""},null,{"$f":"IF(ISERROR($V451),\"\",OFFSET('Smelter Look-up'!$D$4,$V451-4,0)&\"\")","v":""},{"$f":"IF(ISERROR($V451),\"\",OFFSET('Smelter Look-up'!$E$4,$V451-4,0))","v":""},{"$f":"IF(C451=$X$4,\"Enter smelter details\",IF(ISERROR($V451),\"\",OFFSET('Smelter Look-up'!$F$4,$V451-4,0)))","v":""},{"$f":"IF(ISERROR($V451),\"\",OFFSET('Smelter Look-up'!$G$4,$V451-4,0))","v":""},{"$f":"IF(ISERROR($V451),\"\",OFFSET('Smelter Look-up'!$H$4,$V451-4,0))","v":""},{"$f":"IF(ISERROR($V451),\"\",OFFSET('Smelter Look-up'!$I$4,$V451-4,0))","v":""},{"$nulls":7},{"$f":"IF(ISERROR($V451),\"\",OFFSET('Smelter Look-up'!$C$4,$V451-4,0)&\"\")","v":""},"",{"$f":"IF(B451=\"\",\"\",IF(ISERROR(MATCH($J451,SorP!$B$1:$B$5661,0)),\"\",INDIRECT(\"'SorP'!$A$\"&MATCH($J451,SorP!$B$1:$B$5661,0))))","v":""},null,{"$f":"IF(C451=\"\",NA(),MATCH($B451&$C451,'Smelter Look-up'!$J:$J,0))","v":{"$error":"#N/A"}},null,0,null,null,null,""]
[null,{"$f":"IF(LEN(A452)=0,\"\",INDEX('Smelter Look-up'!$A:$A,MATCH($A452,'Smelter Look-up'!$E:$E,0)))","v":""},{"$f":"IF(LEN(A452)=0,\"\",INDEX('Smelter Look-up'!$C:$C,MATCH($A452,'Smelter Look-up'!$E:$E,0)))","v":""},null,{"$f":"IF(ISERROR($V452),\"\",OFFSET('Smelter Look-up'!$D$4,$V452-4,0)&\"\")","v":""},{"$f":"IF(ISERROR($V452),\"\",OFFSET('Smelter Look-up'!$E$4,$V452-4,0))","v":""},{"$f":"IF(C452=$X$4,\"Enter smelter details\",IF(ISERROR($V452),\"\",OFFSET('Smelter Look-up'!$F$4,$V452-4,0)))","v":""},{"$f":"IF(ISERROR($V452),\"\",OFFSET('Smelter Look-up'!$G$4,$V452-4,0))","v":""},{"$f":"IF(ISERROR($V452),\"\",OFFSET('Smelter Look-up'!$H$4,$V452-4,0))","v":""},{"$f":"IF(ISERROR($V452),\"\",OFFSET('Smelter Look-up'!$I$4,$V452-4,0))","v":""},{"$nulls":7},{"$f":"IF(ISERROR($V452),\"\",OFFSET('Smelter Look-up'!$C$4,$V452-4,0)&\"\")","v":""},"",{"$f":"IF(B452=\"\",\"\",IF(ISERROR(MATCH($J452,SorP!$B$1:$B$5661,0)),\"\",INDIRECT(\"'SorP'!$A$\"&MATCH($J452,SorP!$B$1:$B$5661,0))))","v":""},null,{"$f":"IF(C452=\"\",NA(),MATCH($B452&$C452,'Smelter Look-up'!$J:$J,0))","v":{"$error":"#N/A"}},null,0,null,null,null,""]
[null,{"$f":"IF(LEN(A453)=0,\"\",INDEX('Smelter Look-up'!$A:$A,MATCH($A453,'Smelter Look-up'!$E:$E,0)))","v":""},{"$f":"IF(LEN(A453)=0,\"\",INDEX('Smelter Look-up'!$C:$C,MATCH($A453,'Smelter Look-up'!$E:$E,0)))","v":""},null,{"$f":"IF(ISERROR($V453),\"\",OFFSET('Smelter Look-up'!$D$4,$V453-4,0)&\"\")","v":""},{"$f":"IF(ISERROR($V453),\"\",OFFSET('Smelter Look-up'!$E$4,$V453-4,0))","v":""},{"$f":"IF(C453=$X$4,\"Enter smelter details\",IF(ISERROR($V453),\"\",OFFSET('Smelter Look-up'!$F$4,$V453-4,0)))","v":""},{"$f":"IF(ISERROR($V453),\"\",OFFSET('Smelter Look-up'!$G$4,$V453-4,0))","v":""},{"$f":"IF(ISERROR($V453),\"\",OFFSET('Smelter Look-up'!$H$4,$V453-4,0))","v":""},{"$f":"IF(ISERROR($V453),\"\",OFFSET('Smelter Look-up'!$I$4,$V453-4,0))","v":""},{"$nulls":7},{"$f":"IF(ISERROR($V453),\"\",OFFSET('Smelter Look-up'!$C$4,$V453-4,0)&\"\")","v":""},"",{"$f":"IF(B453=\"\",\"\",IF(ISERROR(MATCH($J453,SorP!$B$1:$B$5661,0)),\"\",INDIRECT(\"'SorP'!$A$\"&MATCH($J453,SorP!$B$1:$B$5661,0))))","v":""},null,{"$f":"IF(C453=\"\",NA(),MATCH($B453&$C453,'Smelter Look-up'!$J:$J,0))","v":{"$error":"#N/A"}},null,0,null,null,null,""]
[null,{"$f":"IF(LEN(A454)=0,\"\",INDEX('Smelter Look-up'!$A:$A,MATCH($A454,'Smelter Look-up'!$E:$E,0)))","v":""},{"$f":"IF(LEN(A454)=0,\"\",INDEX('Smelter Look-up'!$C:$C,MATCH($A454,'Smelter Look-up'!$E:$E,0)))","v":""},null,{"$f":"IF(ISERROR($V454),\"\",OFFSET('Smelter Look-up'!$D$4,$V454-4,0)&\"\")","v":""},{"$f":"IF(ISERROR($V454),\"\",OFFSET('Smelter Look-up'!$E$4,$V454-4,0))","v":""},{"$f":"IF(C454=$X$4,\"Enter smelter details\",IF(ISERROR($V454),\"\",OFFSET('Smelter Look-up'!$F$4,$V454-4,0)))","v":""},{"$f":"IF(ISERROR($V454),\"\",OFFSET('Smelter Look-up'!$G$4,$V454-4,0))","v":""},{"$f":"IF(ISERROR($V454),\"\",OFFSET('Smelter Look-up'!$H$4,$V454-4,0))","v":""},{"$f":"IF(ISERROR($V454),\"\",OFFSET('Smelter Look-up'!$I$4,$V454-4,0))","v":""},{"$nulls":7},{"$f":"IF(ISERROR($V454),\"\",OFFSET('Smelter Look-up'!$C$4,$V454-4,0)&\"\")","v":""},"",{"$f":"IF(B454=\"\",\"\",IF(ISERROR(MATCH($J454,SorP!$B$1:$B$5661,0)),\"\",INDIRECT(\"'SorP'!$A$\"&MATCH($J454,SorP!$B$1:$B$5661,0))))","v":""},null,{"$f":"IF(C454=\"\",NA(),MATCH($B454&$C454,'Smelter Look-up'!$J:$J,0))","v":{"$error":"#N/A"}},null,0,null,null,null,""]
[null,{"$f":"IF(LEN(A455)=0,\"\",INDEX('Smelter Look-up'!$A:$A,MATCH($A455,'Smelter Look-up'!$E:$E,0)))","v":""},{"$f":"IF(LEN(A455)=0,\"\",INDEX('Smelter Look-up'!$C:$C,MATCH($A455,'Smelter Look-up'!$E:$E,0)))","v":""},null,{"$f":"IF(ISERROR($V455),\"\",OFFSET('Smelter Look-up'!$D$4,$V455-4,0)&\"\")","v":""},{"$f":"IF(ISERROR($V455),\"\",OFFSET('Smelter Look-up'!$E$4,$V455-4,0))","v":""},{"$f":"IF(C455=$X$4,\"Enter smelter details\",IF(ISERROR($V455),\"\",OFFSET('Smelter Look-up'!$F$4,$V455-4,0)))","v":""},{"$f":"IF(ISERROR($V455),\"\",OFFSET('Smelter Look-up'!$G$4,$V455-4,0))","v":""},{"$f":"IF(ISERROR($V455),\"\",OFFSET('Smelter Look-up'!$H$4,$V455-4,0))","v":""},{"$f":"IF(ISERROR($V455),\"\",OFFSET('Smelter Look-up'!$I$4,$V455-4,0))","v":""},{"$nulls":7},{"$f":"IF(ISERROR($V455),\"\",OFFSET('Smelter Look-up'!$C$4,$V455-4,0)&\"\")","v":""},"",{"$f":"IF(B455=\"\",\"\",IF(ISERROR(MATCH($J455,SorP!$B$1:$B$5661,0)),\"\",INDIRECT(\"'SorP'!$A$\"&MATCH($J455,SorP!$B$1:$B$5661,0))))","v":""},null,{"$f":"IF(C455=\"\",NA(),MATCH($B455&$C455,'Smelter Look-up'!$J:$J,0))","v":{"$error":"#N/A"}},null,0,null,null,null,""]
[null,{"$f":"IF(LEN(A456)=0,\"\",INDEX('Smelter Look-up'!$A:$A,MATCH($A456,'Smelter Look-up'!$E:$E,0)))","v":""},{"$f":"IF(LEN(A456)=0,\"\",INDEX('Smelter Look-up'!$C:$C,MATCH($A456,'Smelter Look-up'!$E:$E,0)))","v":""},null,{"$f":"IF(ISERROR($V456),\"\",OFFSET('Smelter Look-up'!$D$4,$V456-4,0)&\"\")","v":""},{"$f":"IF(ISERROR($V456),\"\",OFFSET('Smelter Look-up'!$E$4,$V456-4,0))","v":""},{"$f":"IF(C456=$X$4,\"Enter smelter details\",IF(ISERROR($V456),\"\",OFFSET('Smelter Look-up'!$F$4,$V456-4,0)))","v":""},{"$f":"IF(ISERROR($V456),\"\",OFFSET('Smelter Look-up'!$G$4,$V456-4,0))","v":""},{"$f":"IF(ISERROR($V456),\"\",OFFSET('Smelter Look-up'!$H$4,$V456-4,0))","v":""},{"$f":"IF(ISERROR($V456),\"\",OFFSET('Smelter Look-up'!$I$4,$V456-4,0))","v":""},{"$nulls":7},{"$f":"IF(ISERROR($V456),\"\",OFFSET('Smelter Look-up'!$C$4,$V456-4,0)&\"\")","v":""},"",{"$f":"IF(B456=\"\",\"\",IF(ISERROR(MATCH($J456,SorP!$B$1:$B$5661,0)),\"\",INDIRECT(\"'SorP'!$A$\"&MATCH($J456,SorP!$B$1:$B$5661,0))))","v":""},null,{"$f":"IF(C456=\"\",NA(),MATCH($B456&$C456,'Smelter Look-up'!$J:$J,0))","v":{"$error":"#N/A"}},null,0,null,null,null,""]
[null,{"$f":"IF(LEN(A457)=0,\"\",INDEX('Smelter Look-up'!$A:$A,MATCH($A457,'Smelter Look-up'!$E:$E,0)))","v":""},{"$f":"IF(LEN(A457)=0,\"\",INDEX('Smelter Look-up'!$C:$C,MATCH($A457,'Smelter Look-up'!$E:$E,0)))","v":""},null,{"$f":"IF(ISERROR($V457),\"\",OFFSET('Smelter Look-up'!$D$4,$V457-4,0)&\"\")","v":""},{"$f":"IF(ISERROR($V457),\"\",OFFSET('Smelter Look-up'!$E$4,$V457-4,0))","v":""},{"$f":"IF(C457=$X$4,\"Enter smelter details\",IF(ISERROR($V457),\"\",OFFSET('Smelter Look-up'!$F$4,$V457-4,0)))","v":""},{"$f":"IF(ISERROR($V457),\"\",OFFSET('Smelter Look-up'!$G$4,$V457-4,0))","v":""},{"$f":"IF(ISERROR($V457),\"\",OFFSET('Smelter Look-up'!$H$4,$V457-4,0))","v":""},{"$f":"IF(ISERROR($V457),\"\",OFFSET('Smelter Look-up'!$I$4,$V457-4,0))","v":""},{"$nulls":7},{"$f":"IF(ISERROR($V457),\"\",OFFSET('Smelter Look-up'!$C$4,$V457-4,0)&\"\")","v":""},"",{"$f":"IF(B457=\"\",\"\",IF(ISERROR(MATCH($J457,SorP!$B$1:$B$5661,0)),\"\",INDIRECT(\"'SorP'!$A$\"&MATCH($J457,SorP!$B$1:$B$5661,0))))","v":""},null,{"$f":"IF(C457=\"\",NA(),MATCH($B457&$C457,'Smelter Look-up'!$J:$J,0))","v":{"$error":"#N/A"}},null,0,null,null,null,""]
[null,{"$f":"IF(LEN(A458)=0,\"\",INDEX('Smelter Look-up'!$A:$A,MATCH($A458,'Smelter Look-up'!$E:$E,0)))","v":""},{"$f":"IF(LEN(A458)=0,\"\",INDEX('Smelter Look-up'!$C:$C,MATCH($A458,'Smelter Look-up'!$E:$E,0)))","v":""},null,{"$f":"IF(ISERROR($V458),\"\",OFFSET('Smelter Look-up'!$D$4,$V458-4,0)&\"\")","v":""},{"$f":"IF(ISERROR($V458),\"\",OFFSET('Smelter Look-up'!$E$4,$V458-4,0))","v":""},{"$f":"IF(C458=$X$4,\"Enter smelter details\",IF(ISERROR($V458),\"\",OFFSET('Smelter Look-up'!$F$4,$V458-4,0)))","v":""},{"$f":"IF(ISERROR($V458),\"\",OFFSET('Smelter Look-up'!$G$4,$V458-4,0))","v":""},{"$f":"IF(ISERROR($V458),\"\",OFFSET('Smelter Look-up'!$H$4,$V458-4,0))","v":""},{"$f":"IF(ISERROR($V458),\"\",OFFSET('Smelter Look-up'!$I$4,$V458-4,0))","v":""},{"$nulls":7},{"$f":"IF(ISERROR($V458),\"\",OFFSET('Smelter Look-up'!$C$4,$V458-4,0)&\"\")","v":""},"",{"$f":"IF(B458=\"\",\"\",IF(ISERROR(MATCH($J458,SorP!$B$1:$B$5661,0)),\"\",INDIRECT(\"'SorP'!$A$\"&MATCH($J458,SorP!$B$1:$B$5661,0))))","v":""},null,{"$f":"IF(C458=\"\",NA(),MATCH($B458&$C458,'Smelter Look-up'!$J:$J,0))","v":{"$error":"#N/A"}},null,0,null,null,null,""]
[null,{"$f":"IF(LEN(A459)=0,\"\",INDEX('Smelter Look-up'!$A:$A,MATCH($A459,'Smelter Look-up'!$E:$E,0)))","v":""},{"$f":"IF(LEN(A459)=0,\"\",INDEX('Smelter Look-up'!$C:$C,MATCH($A459,'Smelter Look-up'!$E:$E,0)))","v":""},null,{"$f":"IF(ISERROR($V459),\"\",OFFSET('Smelter Look-up'!$D$4,$V459-4,0)&\"\")","v":""},{"$f":"IF(ISERROR($V459),\"\",OFFSET('Smelter Look-up'!$E$4,$V459-4,0))","v":""},{"$f":"IF(C459=$X$4,\"Enter smelter details\",IF(ISERROR($V459),\"\",OFFSET('Smelter Look-up'!$F$4,$V459-4,0)))","v":""},{"$f":"IF(ISERROR($V459),\"\",OFFSET('Smelter Look-up'!$G$4,$V459-4,0))","v":""},{"$f":"IF(ISERROR($V459),\"\",OFFSET('Smelter Look-up'!$H$4,$V459-4,0))","v":""},{"$f":"IF(ISERROR($V459),\"\",OFFSET('Smelter Look-up'!$I$4,$V459-4,0))","v":""},{"$nulls":7},{"$f":"IF(ISERROR($V459),\"\",OFFSET('Smelter Look-up'!$C$4,$V459-4,0)&\"\")","v":""},"",{"$f":"IF(B459=\"\",\"\",IF(ISERROR(MATCH($J459,SorP!$B$1:$B$5661,0)),\"\",INDIRECT(\"'SorP'!$A$\"&MATCH($J459,SorP!$B$1:$B$5661,0))))","v":""},null,{"$f":"IF(C459=\"\",NA(),MATCH($B459&$C459,'Smelter Look-up'!$J:$J,0))","v":{"$error":"#N/A"}},null,0,null,null,null,""]
[null,{"$f":"IF(LEN(A460)=0,\"\",INDEX('Smelter Look-up'!$A:$A,MATCH($A460,'Smelter Look-up'!$E:$E,0)))","v":""},{"$f":"IF(LEN(A460)=0,\"\",INDEX('Smelter Look-up'!$C:$C,MATCH($A460,'Smelter Look-up'!$E:$E,0)))","v":""},null,{"$f":"IF(ISERROR($V460),\"\",OFFSET('Smelter Look-up'!$D$4,$V460-4,0)&\"\")","v":""},{"$f":"IF(ISERROR($V460),\"\",OFFSET('Smelter Look-up'!$E$4,$V460-4,0))","v":""},{"$f":"IF(C460=$X$4,\"Enter smelter details\",IF(ISERROR($V460),\"\",OFFSET('Smelter Look-up'!$F$4,$V460-4,0)))","v":""},{"$f":"IF(ISERROR($V460),\"\",OFFSET('Smelter Look-up'!$G$4,$V460-4,0))","v":""},{"$f":"IF(ISERROR($V460),\"\",OFFSET('Smelter Look-up'!$H$4,$V460-4,0))","v":""},{"$f":"IF(ISERROR($V460),\"\",OFFSET('Smelter Look-up'!$I$4,$V460-4,0))","v":""},{"$nulls":7},{"$f":"IF(ISERROR($V460),\"\",OFFSET('Smelter Look-up'!$C$4,$V460-4,0)&\"\")","v":""},"",{"$f":"IF(B460=\"\",\"\",IF(ISERROR(MATCH($J460,SorP!$B$1:$B$5661,0)),\"\",INDIRECT(\"'SorP'!$A$\"&MATCH($J460,SorP!$B$1:$B$5661,0))))","v":""},null,{"$f":"IF(C460=\"\",NA(),MATCH($B460&$C460,'Smelter Look-up'!$J:$J,0))","v":{"$error":"#N/A"}},null,0,null,null,null,""]
[null,{"$f":"IF(LEN(A461)=0,\"\",INDEX('Smelter Look-up'!$A:$A,MATCH($A461,'Smelter Look-up'!$E:$E,0)))","v":""},{"$f":"IF(LEN(A461)=0,\"\",INDEX('Smelter Look-up'!$C:$C,MATCH($A461,'Smelter Look-up'!$E:$E,0)))","v":""},null,{"$f":"IF(ISERROR($V461),\"\",OFFSET('Smelter Look-up'!$D$4,$V461-4,0)&\"\")","v":""},{"$f":"IF(ISERROR($V461),\"\",OFFSET('Smelter Look-up'!$E$4,$V461-4,0))","v":""},{"$f":"IF(C461=$X$4,\"Enter smelter details\",IF(ISERROR($V461),\"\",OFFSET('Smelter Look-up'!$F$4,$V461-4,0)))","v":""},{"$f":"IF(ISERROR($V461),\"\",OFFSET('Smelter Look-up'!$G$4,$V461-4,0))","v":""},{"$f":"IF(ISERROR($V461),\"\",OFFSET('Smelter Look-up'!$H$4,$V461-4,0))","v":""},{"$f":"IF(ISERROR($V461),\"\",OFFSET('Smelter Look-up'!$I$4,$V461-4,0))","v":""},{"$nulls":7},{"$f":"IF(ISERROR($V461),\"\",OFFSET('Smelter Look-up'!$C$4,$V461-4,0)&\"\")","v":""},"",{"$f":"IF(B461=\"\",\"\",IF(ISERROR(MATCH($J461,SorP!$B$1:$B$5661,0)),\"\",INDIRECT(\"'SorP'!$A$\"&MATCH($J461,SorP!$B$1:$B$5661,0))))","v":""},null,{"$f":"IF(C461=\"\",NA(),MATCH($B461&$C461,'Smelter Look-up'!$J:$J,0))","v":{"$error":"#N/A"}},null,0,null,null,null,""]
[null,{"$f":"IF(LEN(A462)=0,\"\",INDEX('Smelter Look-up'!$A:$A,MATCH($A462,'Smelter Look-up'!$E:$E,0)))","v":""},{"$f":"IF(LEN(A462)=0,\"\",INDEX('Smelter Look-up'!$C:$C,MATCH($A462,'Smelter Look-up'!$E:$E,0)))","v":""},null,{"$f":"IF(ISERROR($V462),\"\",OFFSET('Smelter Look-up'!$D$4,$V462-4,0)&\"\")","v":""},{"$f":"IF(ISERROR($V462),\"\",OFFSET('Smelter Look-up'!$E$4,$V462-4,0))","v":""},{"$f":"IF(C462=$X$4,\"Enter smelter details\",IF(ISERROR($V462),\"\",OFFSET('Smelter Look-up'!$F$4,$V462-4,0)))","v":""},{"$f":"IF(ISERROR($V462),\"\",OFFSET('Smelter Look-up'!$G$4,$V462-4,0))","v":""},{"$f":"IF(ISERROR($V462),\"\",OFFSET('Smelter Look-up'!$H$4,$V462-4,0))","v":""},{"$f":"IF(ISERROR($V462),\"\",OFFSET('Smelter Look-up'!$I$4,$V462-4,0))","v":""},{"$nulls":7},{"$f":"IF(ISERROR($V462),\"\",OFFSET('Smelter Look-up'!$C$4,$V462-4,0)&\"\")","v":""},"",{"$f":"IF(B462=\"\",\"\",IF(ISERROR(MATCH($J462,SorP!$B$1:$B$5661,0)),\"\",INDIRECT(\"'SorP'!$A$\"&MATCH($J462,SorP!$B$1:$B$5661,0))))","v":""},null,{"$f":"IF(C462=\"\",NA(),MATCH($B462&$C462,'Smelter Look-up'!$J:$J,0))","v":{"$error":"#N/A"}},null,0,null,null,null,""]
[null,{"$f":"IF(LEN(A463)=0,\"\",INDEX('Smelter Look-up'!$A:$A,MATCH($A463,'Smelter Look-up'!$E:$E,0)))","v":""},{"$f":"IF(LEN(A463)=0,\"\",INDEX('Smelter Look-up'!$C:$C,MATCH($A463,'Smelter Look-up'!$E:$E,0)))","v":""},null,{"$f":"IF(ISERROR($V463),\"\",OFFSET('Smelter Look-up'!$D$4,$V463-4,0)&\"\")","v":""},{"$f":"IF(ISERROR($V463),\"\",OFFSET('Smelter Look-up'!$E$4,$V463-4,0))","v":""},{"$f":"IF(C463=$X$4,\"Enter smelter details\",IF(ISERROR($V463),\"\",OFFSET('Smelter Look-up'!$F$4,$V463-4,0)))","v":""},{"$f":"IF(ISERROR($V463),\"\",OFFSET('Smelter Look-up'!$G$4,$V463-4,0))","v":""},{"$f":"IF(ISERROR($V463),\"\",OFFSET('Smelter Look-up'!$H$4,$V463-4,0))","v":""},{"$f":"IF(ISERROR($V463),\"\",OFFSET('Smelter Look-up'!$I$4,$V463-4,0))","v":""},{"$nulls":7},{"$f":"IF(ISERROR($V463),\"\",OFFSET('Smelter Look-up'!$C$4,$V463-4,0)&\"\")","v":""},"",{"$f":"IF(B463=\"\",\"\",IF(ISERROR(MATCH($J463,SorP!$B$1:$B$5661,0)),\"\",INDIRECT(\"'SorP'!$A$\"&MATCH($J463,SorP!$B$1:$B$5661,0))))","v":""},null,{"$f":"IF(C463=\"\",NA(),MATCH($B463&$C463,'Smelter Look-up'!$J:$J,0))","v":{"$error":"#N/A"}},null,0,null,null,null,""]
[null,{"$f":"IF(LEN(A464)=0,\"\",INDEX('Smelter Look-up'!$A:$A,MATCH($A464,'Smelter Look-up'!$E:$E,0)))","v":""},{"$f":"IF(LEN(A464)=0,\"\",INDEX('Smelter Look-up'!$C:$C,MATCH($A464,'Smelter Look-up'!$E:$E,0)))","v":""},null,{"$f":"IF(ISERROR($V464),\"\",OFFSET('Smelter Look-up'!$D$4,$V464-4,0)&\"\")","v":""},{"$f":"IF(ISERROR($V464),\"\",OFFSET('Smelter Look-up'!$E$4,$V464-4,0))","v":""},{"$f":"IF(C464=$X$4,\"Enter smelter details\",IF(ISERROR($V464),\"\",OFFSET('Smelter Look-up'!$F$4,$V464-4,0)))","v":""},{"$f":"IF(ISERROR($V464),\"\",OFFSET('Smelter Look-up'!$G$4,$V464-4,0))","v":""},{"$f":"IF(ISERROR($V464),\"\",OFFSET('Smelter Look-up'!$H$4,$V464-4,0))","v":""},{"$f":"IF(ISERROR($V464),\"\",OFFSET('Smelter Look-up'!$I$4,$V464-4,0))","v":""},{"$nulls":7},{"$f":"IF(ISERROR($V464),\"\",OFFSET('Smelter Look-up'!$C$4,$V464-4,0)&\"\")","v":""},"",{"$f":"IF(B464=\"\",\"\",IF(ISERROR(MATCH($J464,SorP!$B$1:$B$5661,0)),\"\",INDIRECT(\"'SorP'!$A$\"&MATCH($J464,SorP!$B$1:$B$5661,0))))","v":""},null,{"$f":"IF(C464=\"\",NA(),MATCH($B464&$C464,'Smelter Look-up'!$J:$J,0))","v":{"$error":"#N/A"}},null,0,null,null,null,""]
[null,{"$f":"IF(LEN(A465)=0,\"\",INDEX('Smelter Look-up'!$A:$A,MATCH($A465,'Smelter Look-up'!$E:$E,0)))","v":""},{"$f":"IF(LEN(A465)=0,\"\",INDEX('Smelter Look-up'!$C:$C,MATCH($A465,'Smelter Look-up'!$E:$E,0)))","v":""},null,{"$f":"IF(ISERROR($V465),\"\",OFFSET('Smelter Look-up'!$D$4,$V465-4,0)&\"\")","v":""},{"$f":"IF(ISERROR($V465),\"\",OFFSET('Smelter Look-up'!$E$4,$V465-4,0))","v":""},{"$f":"IF(C465=$X$4,\"Enter smelter details\",IF(ISERROR($V465),\"\",OFFSET('Smelter Look-up'!$F$4,$V465-4,0)))","v":""},{"$f":"IF(ISERROR($V465),\"\",OFFSET('Smelter Look-up'!$G$4,$V465-4,0))","v":""},{"$f":"IF(ISERROR($V465),\"\",OFFSET('Smelter Look-up'!$H$4,$V465-4,0))","v":""},{"$f":"IF(ISERROR($V465),\"\",OFFSET('Smelter Look-up'!$I$4,$V465-4,0))","v":""},{"$nulls":7},{"$f":"IF(ISERROR($V465),\"\",OFFSET('Smelter Look-up'!$C$4,$V465-4,0)&\"\")","v":""},"",{"$f":"IF(B465=\"\",\"\",IF(ISERROR(MATCH($J465,SorP!$B$1:$B$5661,0)),\"\",INDIRECT(\"'SorP'!$A$\"&MATCH($J465,SorP!$B$1:$B$5661,0))))","v":""},null,{"$f":"IF(C465=\"\",NA(),MATCH($B465&$C465,'Smelter Look-up'!$J:$J,0))","v":{"$error":"#N/A"}},null,0,null,null,null,""]
[null,{"$f":"IF(LEN(A466)=0,\"\",INDEX('Smelter Look-up'!$A:$A,MATCH($A466,'Smelter Look-up'!$E:$E,0)))","v":""},{"$f":"IF(LEN(A466)=0,\"\",INDEX('Smelter Look-up'!$C:$C,MATCH($A466,'Smelter Look-up'!$E:$E,0)))","v":""},null,{"$f":"IF(ISERROR($V466),\"\",OFFSET('Smelter Look-up'!$D$4,$V466-4,0)&\"\")","v":""},{"$f":"IF(ISERROR($V466),\"\",OFFSET('Smelter Look-up'!$E$4,$V466-4,0))","v":""},{"$f":"IF(C466=$X$4,\"Enter smelter details\",IF(ISERROR($V466),\"\",OFFSET('Smelter Look-up'!$F$4,$V466-4,0)))","v":""},{"$f":"IF(ISERROR($V466),\"\",OFFSET('Smelter Look-up'!$G$4,$V466-4,0))","v":""},{"$f":"IF(ISERROR($V466),\"\",OFFSET('Smelter Look-up'!$H$4,$V466-4,0))","v":""},{"$f":"IF(ISERROR($V466),\"\",OFFSET('Smelter Look-up'!$I$4,$V466-4,0))","v":""},{"$nulls":7},{"$f":"IF(ISERROR($V466),\"\",OFFSET('Smelter Look-up'!$C$4,$V466-4,0)&\"\")","v":""},"",{"$f":"IF(B466=\"\",\"\",IF(ISERROR(MATCH($J466,SorP!$B$1:$B$5661,0)),\"\",INDIRECT(\"'SorP'!$A$\"&MATCH($J466,SorP!$B$1:$B$5661,0))))","v":""},null,{"$f":"IF(C466=\"\",NA(),MATCH($B466&$C466,'Smelter Look-up'!$J:$J,0))","v":{"$error":"#N/A"}},null,0,null,null,null,""]
[null,{"$f":"IF(LEN(A467)=0,\"\",INDEX('Smelter Look-up'!$A:$A,MATCH($A467,'Smelter Look-up'!$E:$E,0)))","v":""},{"$f":"IF(LEN(A467)=0,\"\",INDEX('Smelter Look-up'!$C:$C,MATCH($A467,'Smelter Look-up'!$E:$E,0)))","v":""},null,{"$f":"IF(ISERROR($V467),\"\",OFFSET('Smelter Look-up'!$D$4,$V467-4,0)&\"\")","v":""},{"$f":"IF(ISERROR($V467),\"\",OFFSET('Smelter Look-up'!$E$4,$V467-4,0))","v":""},{"$f":"IF(C467=$X$4,\"Enter smelter details\",IF(ISERROR($V467),\"\",OFFSET('Smelter Look-up'!$F$4,$V467-4,0)))","v":""},{"$f":"IF(ISERROR($V467),\"\",OFFSET('Smelter Look-up'!$G$4,$V467-4,0))","v":""},{"$f":"IF(ISERROR($V467),\"\",OFFSET('Smelter Look-up'!$H$4,$V467-4,0))","v":""},{"$f":"IF(ISERROR($V467),\"\",OFFSET('Smelter Look-up'!$I$4,$V467-4,0))","v":""},{"$nulls":7},{"$f":"IF(ISERROR($V467),\"\",OFFSET('Smelter Look-up'!$C$4,$V467-4,0)&\"\")","v":""},"",{"$f":"IF(B467=\"\",\"\",IF(ISERROR(MATCH($J467,SorP!$B$1:$B$5661,0)),\"\",INDIRECT(\"'SorP'!$A$\"&MATCH($J467,SorP!$B$1:$B$5661,0))))","v":""},null,{"$f":"IF(C467=\"\",NA(),MATCH($B467&$C467,'Smelter Look-up'!$J:$J,0))","v":{"$error":"#N/A"}},null,0,null,null,null,""]
[null,{"$f":"IF(LEN(A468)=0,\"\",INDEX('Smelter Look-up'!$A:$A,MATCH($A468,'Smelter Look-up'!$E:$E,0)))","v":""},{"$f":"IF(LEN(A468)=0,\"\",INDEX('Smelter Look-up'!$C:$C,MATCH($A468,'Smelter Look-up'!$E:$E,0)))","v":""},null,{"$f":"IF(ISERROR($V468),\"\",OFFSET('Smelter Look-up'!$D$4,$V468-4,0)&\"\")","v":""},{"$f":"IF(ISERROR($V468),\"\",OFFSET('Smelter Look-up'!$E$4,$V468-4,0))","v":""},{"$f":"IF(C468=$X$4,\"Enter smelter details\",IF(ISERROR($V468),\"\",OFFSET('Smelter Look-up'!$F$4,$V468-4,0)))","v":""},{"$f":"IF(ISERROR($V468),\"\",OFFSET('Smelter Look-up'!$G$4,$V468-4,0))","v":""},{"$f":"IF(ISERROR($V468),\"\",OFFSET('Smelter Look-up'!$H$4,$V468-4,0))","v":""},{"$f":"IF(ISERROR($V468),\"\",OFFSET('Smelter Look-up'!$I$4,$V468-4,0))","v":""},{"$nulls":7},{"$f":"IF(ISERROR($V468),\"\",OFFSET('Smelter Look-up'!$C$4,$V468-4,0)&\"\")","v":""},"",{"$f":"IF(B468=\"\",\"\",IF(ISERROR(MATCH($J468,SorP!$B$1:$B$5661,0)),\"\",INDIRECT(\"'SorP'!$A$\"&MATCH($J468,SorP!$B$1:$B$5661,0))))","v":""},null,{"$f":"IF(C468=\"\",NA(),MATCH($B468&$C468,'Smelter Look-up'!$J:$J,0))","v":{"$error":"#N/A"}},null,0,null,null,null,""]
[null,{"$f":"IF(LEN(A469)=0,\"\",INDEX('Smelter Look-up'!$A:$A,MATCH($A469,'Smelter Look-up'!$E:$E,0)))","v":""},{"$f":"IF(LEN(A469)=0,\"\",INDEX('Smelter Look-up'!$C:$C,MATCH($A469,'Smelter Look-up'!$E:$E,0)))","v":""},null,{"$f":"IF(ISERROR($V469),\"\",OFFSET('Smelter Look-up'!$D$4,$V469-4,0)&\"\")","v":""},{"$f":"IF(ISERROR($V469),\"\",OFFSET('Smelter Look-up'!$E$4,$V469-4,0))","v":""},{"$f":"IF(C469=$X$4,\"Enter smelter details\",IF(ISERROR($V469),\"\",OFFSET('Smelter Look-up'!$F$4,$V469-4,0)))","v":""},{"$f":"IF(ISERROR($V469),\"\",OFFSET('Smelter Look-up'!$G$4,$V469-4,0))","v":""},{"$f":"IF(ISERROR($V469),\"\",OFFSET('Smelter Look-up'!$H$4,$V469-4,0))","v":""},{"$f":"IF(ISERROR($V469),\"\",OFFSET('Smelter Look-up'!$I$4,$V469-4,0))","v":""},{"$nulls":7},{"$f":"IF(ISERROR($V469),\"\",OFFSET('Smelter Look-up'!$C$4,$V469-4,0)&\"\")","v":""},"",{"$f":"IF(B469=\"\",\"\",IF(ISERROR(MATCH($J469,SorP!$B$1:$B$5661,0)),\"\",INDIRECT(\"'SorP'!$A$\"&MATCH($J469,SorP!$B$1:$B$5661,0))))","v":""},null,{"$f":"IF(C469=\"\",NA(),MATCH($B469&$C469,'Smelter Look-up'!$J:$J,0))","v":{"$error":"#N/A"}},null,0,null,null,null,""]
[null,{"$f":"IF(LEN(A470)=0,\"\",INDEX('Smelter Look-up'!$A:$A,MATCH($A470,'Smelter Look-up'!$E:$E,0)))","v":""},{"$f":"IF(LEN(A470)=0,\"\",INDEX('Smelter Look-up'!$C:$C,MATCH($A470,'Smelter Look-up'!$E:$E,0)))","v":""},null,{"$f":"IF(ISERROR($V470),\"\",OFFSET('Smelter Look-up'!$D$4,$V470-4,0)&\"\")","v":""},{"$f":"IF(ISERROR($V470),\"\",OFFSET('Smelter Look-up'!$E$4,$V470-4,0))","v":""},{"$f":"IF(C470=$X$4,\"Enter smelter details\",IF(ISERROR($V470),\"\",OFFSET('Smelter Look-up'!$F$4,$V470-4,0)))","v":""},{"$f":"IF(ISERROR($V470),\"\",OFFSET('Smelter Look-up'!$G$4,$V470-4,0))","v":""},{"$f":"IF(ISERROR($V470),\"\",OFFSET('Smelter Look-up'!$H$4,$V470-4,0))","v":""},{"$f":"IF(ISERROR($V470),\"\",OFFSET('Smelter Look-up'!$I$4,$V470-4,0))","v":""},{"$nulls":7},{"$f":"IF(ISERROR($V470),\"\",OFFSET('Smelter Look-up'!$C$4,$V470-4,0)&\"\")","v":""},"",{"$f":"IF(B470=\"\",\"\",IF(ISERROR(MATCH($J470,SorP!$B$1:$B$5661,0)),\"\",INDIRECT(\"'SorP'!$A$\"&MATCH($J470,SorP!$B$1:$B$5661,0))))","v":""},null,{"$f":"IF(C470=\"\",NA(),MATCH($B470&$C470,'Smelter Look-up'!$J:$J,0))","v":{"$error":"#N/A"}},null,0,null,null,null,""]
[null,{"$f":"IF(LEN(A471)=0,\"\",INDEX('Smelter Look-up'!$A:$A,MATCH($A471,'Smelter Look-up'!$E:$E,0)))","v":""},{"$f":"IF(LEN(A471)=0,\"\",INDEX('Smelter Look-up'!$C:$C,MATCH($A471,'Smelter Look-up'!$E:$E,0)))","v":""},null,{"$f":"IF(ISERROR($V471),\"\",OFFSET('Smelter Look-up'!$D$4,$V471-4,0)&\"\")","v":""},{"$f":"IF(ISERROR($V471),\"\",OFFSET('Smelter Look-up'!$E$4,$V471-4,0))","v":""},{"$f":"IF(C471=$X$4,\"Enter smelter details\",IF(ISERROR($V471),\"\",OFFSET('Smelter Look-up'!$F$4,$V471-4,0)))","v":""},{"$f":"IF(ISERROR($V471),\"\",OFFSET('Smelter Look-up'!$G$4,$V471-4,0))","v":""},{"$f":"IF(ISERROR($V471),\"\",OFFSET('Smelter Look-up'!$H$4,$V471-4,0))","v":""},{"$f":"IF(ISERROR($V471),\"\",OFFSET('Smelter Look-up'!$I$4,$V471-4,0))","v":""},{"$nulls":7},{"$f":"IF(ISERROR($V471),\"\",OFFSET('Smelter Look-up'!$C$4,$V471-4,0)&\"\")","v":""},"",{"$f":"IF(B471=\"\",\"\",IF(ISERROR(MATCH($J471,SorP!$B$1:$B$5661,0)),\"\",INDIRECT(\"'SorP'!$A$\"&MATCH($J471,SorP!$B$1:$B$5661,0))))","v":""},null,{"$f":"IF(C471=\"\",NA(),MATCH($B471&$C471,'Smelter Look-up'!$J:$J,0))","v":{"$error":"#N/A"}},null,0,null,null,null,""]
[null,{"$f":"IF(LEN(A472)=0,\"\",INDEX('Smelter Look-up'!$A:$A,MATCH($A472,'Smelter Look-up'!$E:$E,0)))","v":""},{"$f":"IF(LEN(A472)=0,\"\",INDEX('Smelter Look-up'!$C:$C,MATCH($A472,'Smelter Look-up'!$E:$E,0)))","v":""},null,{"$f":"IF(ISERROR($V472),\"\",OFFSET('Smelter Look-up'!$D$4,$V472-4,0)&\"\")","v":""},{"$f":"IF(ISERROR($V472),\"\",OFFSET('Smelter Look-up'!$E$4,$V472-4,0))","v":""},{"$f":"IF(C472=$X$4,\"Enter smelter details\",IF(ISERROR($V472),\"\",OFFSET('Smelter Look-up'!$F$4,$V472-4,0)))","v":""},{"$f":"IF(ISERROR($V472),\"\",OFFSET('Smelter Look-up'!$G$4,$V472-4,0))","v":""},{"$f":"IF(ISERROR($V472),\"\",OFFSET('Smelter Look-up'!$H$4,$V472-4,0))","v":""},{"$f":"IF(ISERROR($V472),\"\",OFFSET('Smelter Look-up'!$I$4,$V472-4,0))","v":""},{"$nulls":7},{"$f":"IF(ISERROR($V472),\"\",OFFSET('Smelter Look-up'!$C$4,$V472-4,0)&\"\")","v":""},"",{"$f":"IF(B472=\"\",\"\",IF(ISERROR(MATCH($J472,SorP!$B$1:$B$5661,0)),\"\",INDIRECT(\"'SorP'!$A$\"&MATCH($J472,SorP!$B$1:$B$5661,0))))","v":""},null,{"$f":"IF(C472=\"\",NA(),MATCH($B472&$C472,'Smelter Look-up'!$J:$J,0))","v":{"$error":"#N/A"}},null,0,null,null,null,""]
[null,{"$f":"IF(LEN(A473)=0,\"\",INDEX('Smelter Look-up'!$A:$A,MATCH($A473,'Smelter Look-up'!$E:$E,0)))","v":""},{"$f":"IF(LEN(A473)=0,\"\",INDEX('Smelter Look-up'!$C:$C,MATCH($A473,'Smelter Look-up'!$E:$E,0)))","v":""},null,{"$f":"IF(ISERROR($V473),\"\",OFFSET('Smelter Look-up'!$D$4,$V473-4,0)&\"\")","v":""},{"$f":"IF(ISERROR($V473),\"\",OFFSET('Smelter Look-up'!$E$4,$V473-4,0))","v":""},{"$f":"IF(C473=$X$4,\"Enter smelter details\",IF(ISERROR($V473),\"\",OFFSET('Smelter Look-up'!$F$4,$V473-4,0)))","v":""},{"$f":"IF(ISERROR($V473),\"\",OFFSET('Smelter Look-up'!$G$4,$V473-4,0))","v":""},{"$f":"IF(ISERROR($V473),\"\",OFFSET('Smelter Look-up'!$H$4,$V473-4,0))","v":""},{"$f":"IF(ISERROR($V473),\"\",OFFSET('Smelter Look-up'!$I$4,$V473-4,0))","v":""},{"$nulls":7},{"$f":"IF(ISERROR($V473),\"\",OFFSET('Smelter Look-up'!$C$4,$V473-4,0)&\"\")","v":""},"",{"$f":"IF(B473=\"\",\"\",IF(ISERROR(MATCH($J473,SorP!$B$1:$B$5661,0)),\"\",INDIRECT(\"'SorP'!$A$\"&MATCH($J473,SorP!$B$1:$B$5661,0))))","v":""},null,{"$f":"IF(C473=\"\",NA(),MATCH($B473&$C473,'Smelter Look-up'!$J:$J,0))","v":{"$error":"#N/A"}},null,0,null,null,null,""]
[null,{"$f":"IF(LEN(A474)=0,\"\",INDEX('Smelter Look-up'!$A:$A,MATCH($A474,'Smelter Look-up'!$E:$E,0)))","v":""},{"$f":"IF(LEN(A474)=0,\"\",INDEX('Smelter Look-up'!$C:$C,MATCH($A474,'Smelter Look-up'!$E:$E,0)))","v":""},null,{"$f":"IF(ISERROR($V474),\"\",OFFSET('Smelter Look-up'!$D$4,$V474-4,0)&\"\")","v":""},{"$f":"IF(ISERROR($V474),\"\",OFFSET('Smelter Look-up'!$E$4,$V474-4,0))","v":""},{"$f":"IF(C474=$X$4,\"Enter smelter details\",IF(ISERROR($V474),\"\",OFFSET('Smelter Look-up'!$F$4,$V474-4,0)))","v":""},{"$f":"IF(ISERROR($V474),\"\",OFFSET('Smelter Look-up'!$G$4,$V474-4,0))","v":""},{"$f":"IF(ISERROR($V474),\"\",OFFSET('Smelter Look-up'!$H$4,$V474-4,0))","v":""},{"$f":"IF(ISERROR($V474),\"\",OFFSET('Smelter Look-up'!$I$4,$V474-4,0))","v":""},{"$nulls":7},{"$f":"IF(ISERROR($V474),\"\",OFFSET('Smelter Look-up'!$C$4,$V474-4,0)&\"\")","v":""},"",{"$f":"IF(B474=\"\",\"\",IF(ISERROR(MATCH($J474,SorP!$B$1:$B$5661,0)),\"\",INDIRECT(\"'SorP'!$A$\"&MATCH($J474,SorP!$B$1:$B$5661,0))))","v":""},null,{"$f":"IF(C474=\"\",NA(),MATCH($B474&$C474,'Smelter Look-up'!$J:$J,0))","v":{"$error":"#N/A"}},null,0,null,null,null,""]
[null,{"$f":"IF(LEN(A475)=0,\"\",INDEX('Smelter Look-up'!$A:$A,MATCH($A475,'Smelter Look-up'!$E:$E,0)))","v":""},{"$f":"IF(LEN(A475)=0,\"\",INDEX('Smelter Look-up'!$C:$C,MATCH($A475,'Smelter Look-up'!$E:$E,0)))","v":""},null,{"$f":"IF(ISERROR($V475),\"\",OFFSET('Smelter Look-up'!$D$4,$V475-4,0)&\"\")","v":""},{"$f":"IF(ISERROR($V475),\"\",OFFSET('Smelter Look-up'!$E$4,$V475-4,0))","v":""},{"$f":"IF(C475=$X$4,\"Enter smelter details\",IF(ISERROR($V475),\"\",OFFSET('Smelter Look-up'!$F$4,$V475-4,0)))","v":""},{"$f":"IF(ISERROR($V475),\"\",OFFSET('Smelter Look-up'!$G$4,$V475-4,0))","v":""},{"$f":"IF(ISERROR($V475),\"\",OFFSET('Smelter Look-up'!$H$4,$V475-4,0))","v":""},{"$f":"IF(ISERROR($V475),\"\",OFFSET('Smelter Look-up'!$I$4,$V475-4,0))","v":""},{"$nulls":7},{"$f":"IF(ISERROR($V475),\"\",OFFSET('Smelter Look-up'!$C$4,$V475-4,0)&\"\")","v":""},"",{"$f":"IF(B475=\"\",\"\",IF(ISERROR(MATCH($J475,SorP!$B$1:$B$5661,0)),\"\",INDIRECT(\"'SorP'!$A$\"&MATCH($J475,SorP!$B$1:$B$5661,0))))","v":""},null,{"$f":"IF(C475=\"\",NA(),MATCH($B475&$C475,'Smelter Look-up'!$J:$J,0))","v":{"$error":"#N/A"}},null,0,null,null,null,""]
[null,{"$f":"IF(LEN(A476)=0,\"\",INDEX('Smelter Look-up'!$A:$A,MATCH($A476,'Smelter Look-up'!$E:$E,0)))","v":""},{"$f":"IF(LEN(A476)=0,\"\",INDEX('Smelter Look-up'!$C:$C,MATCH($A476,'Smelter Look-up'!$E:$E,0)))","v":""},null,{"$f":"IF(ISERROR($V476),\"\",OFFSET('Smelter Look-up'!$D$4,$V476-4,0)&\"\")","v":""},{"$f":"IF(ISERROR($V476),\"\",OFFSET('Smelter Look-up'!$E$4,$V476-4,0))","v":""},{"$f":"IF(C476=$X$4,\"Enter smelter details\",IF(ISERROR($V476),\"\",OFFSET('Smelter Look-up'!$F$4,$V476-4,0)))","v":""},{"$f":"IF(ISERROR($V476),\"\",OFFSET('Smelter Look-up'!$G$4,$V476-4,0))","v":""},{"$f":"IF(ISERROR($V476),\"\",OFFSET('Smelter Look-up'!$H$4,$V476-4,0))","v":""},{"$f":"IF(ISERROR($V476),\"\",OFFSET('Smelter Look-up'!$I$4,$V476-4,0))","v":""},{"$nulls":7},{"$f":"IF(ISERROR($V476),\"\",OFFSET('Smelter Look-up'!$C$4,$V476-4,0)&\"\")","v":""},"",{"$f":"IF(B476=\"\",\"\",IF(ISERROR(MATCH($J476,SorP!$B$1:$B$5661,0)),\"\",INDIRECT(\"'SorP'!$A$\"&MATCH($J476,SorP!$B$1:$B$5661,0))))","v":""},null,{"$f":"IF(C476=\"\",NA(),MATCH($B476&$C476,'Smelter Look-up'!$J:$J,0))","v":{"$error":"#N/A"}},null,0,null,null,null,""]
[null,{"$f":"IF(LEN(A477)=0,\"\",INDEX('Smelter Look-up'!$A:$A,MATCH($A477,'Smelter Look-up'!$E:$E,0)))","v":""},{"$f":"IF(LEN(A477)=0,\"\",INDEX('Smelter Look-up'!$C:$C,MATCH($A477,'Smelter Look-up'!$E:$E,0)))","v":""},null,{"$f":"IF(ISERROR($V477),\"\",OFFSET('Smelter Look-up'!$D$4,$V477-4,0)&\"\")","v":""},{"$f":"IF(ISERROR($V477),\"\",OFFSET('Smelter Look-up'!$E$4,$V477-4,0))","v":""},{"$f":"IF(C477=$X$4,\"Enter smelter details\",IF(ISERROR($V477),\"\",OFFSET('Smelter Look-up'!$F$4,$V477-4,0)))","v":""},{"$f":"IF(ISERROR($V477),\"\",OFFSET('Smelter Look-up'!$G$4,$V477-4,0))","v":""},{"$f":"IF(ISERROR($V477),\"\",OFFSET('Smelter Look-up'!$H$4,$V477-4,0))","v":""},{"$f":"IF(ISERROR($V477),\"\",OFFSET('Smelter Look-up'!$I$4,$V477-4,0))","v":""},{"$nulls":7},{"$f":"IF(ISERROR($V477),\"\",OFFSET('Smelter Look-up'!$C$4,$V477-4,0)&\"\")","v":""},"",{"$f":"IF(B477=\"\",\"\",IF(ISERROR(MATCH($J477,SorP!$B$1:$B$5661,0)),\"\",INDIRECT(\"'SorP'!$A$\"&MATCH($J477,SorP!$B$1:$B$5661,0))))","v":""},null,{"$f":"IF(C477=\"\",NA(),MATCH($B477&$C477,'Smelter Look-up'!$J:$J,0))","v":{"$error":"#N/A"}},null,0,null,null,null,""]
[null,{"$f":"IF(LEN(A478)=0,\"\",INDEX('Smelter Look-up'!$A:$A,MATCH($A478,'Smelter Look-up'!$E:$E,0)))","v":""},{"$f":"IF(LEN(A478)=0,\"\",INDEX('Smelter Look-up'!$C:$C,MATCH($A478,'Smelter Look-up'!$E:$E,0)))","v":""},null,{"$f":"IF(ISERROR($V478),\"\",OFFSET('Smelter Look-up'!$D$4,$V478-4,0)&\"\")","v":""},{"$f":"IF(ISERROR($V478),\"\",OFFSET('Smelter Look-up'!$E$4,$V478-4,0))","v":""},{"$f":"IF(C478=$X$4,\"Enter smelter details\",IF(ISERROR($V478),\"\",OFFSET('Smelter Look-up'!$F$4,$V478-4,0)))","v":""},{"$f":"IF(ISERROR($V478),\"\",OFFSET('Smelter Look-up'!$G$4,$V478-4,0))","v":""},{"$f":"IF(ISERROR($V478),\"\",OFFSET('Smelter Look-up'!$H$4,$V478-4,0))","v":""},{"$f":"IF(ISERROR($V478),\"\",OFFSET('Smelter Look-up'!$I$4,$V478-4,0))","v":""},{"$nulls":7},{"$f":"IF(ISERROR($V478),\"\",OFFSET('Smelter Look-up'!$C$4,$V478-4,0)&\"\")","v":""},"",{"$f":"IF(B478=\"\",\"\",IF(ISERROR(MATCH($J478,SorP!$B$1:$B$5661,0)),\"\",INDIRECT(\"'SorP'!$A$\"&MATCH($J478,SorP!$B$1:$B$5661,0))))","v":""},null,{"$f":"IF(C478=\"\",NA(),MATCH($B478&$C478,'Smelter Look-up'!$J:$J,0))","v":{"$error":"#N/A"}},null,0,null,null,null,""]
[null,{"$f":"IF(LEN(A479)=0,\"\",INDEX('Smelter Look-up'!$A:$A,MATCH($A479,'Smelter Look-up'!$E:$E,0)))","v":""},{"$f":"IF(LEN(A479)=0,\"\",INDEX('Smelter Look-up'!$C:$C,MATCH($A479,'Smelter Look-up'!$E:$E,0)))","v":""},null,{"$f":"IF(ISERROR($V479),\"\",OFFSET('Smelter Look-up'!$D$4,$V479-4,0)&\"\")","v":""},{"$f":"IF(ISERROR($V479),\"\",OFFSET('Smelter Look-up'!$E$4,$V479-4,0))","v":""},{"$f":"IF(C479=$X$4,\"Enter smelter details\",IF(ISERROR($V479),\"\",OFFSET('Smelter Look-up'!$F$4,$V479-4,0)))","v":""},{"$f":"IF(ISERROR($V479),\"\",OFFSET('Smelter Look-up'!$G$4,$V479-4,0))","v":""},{"$f":"IF(ISERROR($V479),\"\",OFFSET('Smelter Look-up'!$H$4,$V479-4,0))","v":""},{"$f":"IF(ISERROR($V479),\"\",OFFSET('Smelter Look-up'!$I$4,$V479-4,0))","v":""},{"$nulls":7},{"$f":"IF(ISERROR($V479),\"\",OFFSET('Smelter Look-up'!$C$4,$V479-4,0)&\"\")","v":""},"",{"$f":"IF(B479=\"\",\"\",IF(ISERROR(MATCH($J479,SorP!$B$1:$B$5661,0)),\"\",INDIRECT(\"'SorP'!$A$\"&MATCH($J479,SorP!$B$1:$B$5661,0))))","v":""},null,{"$f":"IF(C479=\"\",NA(),MATCH($B479&$C479,'Smelter Look-up'!$J:$J,0))","v":{"$error":"#N/A"}},null,0,null,null,null,""]
[null,{"$f":"IF(LEN(A480)=0,\"\",INDEX('Smelter Look-up'!$A:$A,MATCH($A480,'Smelter Look-up'!$E:$E,0)))","v":""},{"$f":"IF(LEN(A480)=0,\"\",INDEX('Smelter Look-up'!$C:$C,MATCH($A480,'Smelter Look-up'!$E:$E,0)))","v":""},null,{"$f":"IF(ISERROR($V480),\"\",OFFSET('Smelter Look-up'!$D$4,$V480-4,0)&\"\")","v":""},{"$f":"IF(ISERROR($V480),\"\",OFFSET('Smelter Look-up'!$E$4,$V480-4,0))","v":""},{"$f":"IF(C480=$X$4,\"Enter smelter details\",IF(ISERROR($V480),\"\",OFFSET('Smelter Look-up'!$F$4,$V480-4,0)))","v":""},{"$f":"IF(ISERROR($V480),\"\",OFFSET('Smelter Look-up'!$G$4,$V480-4,0))","v":""},{"$f":"IF(ISERROR($V480),\"\",OFFSET('Smelter Look-up'!$H$4,$V480-4,0))","v":""},{"$f":"IF(ISERROR($V480),\"\",OFFSET('Smelter Look-up'!$I$4,$V480-4,0))","v":""},{"$nulls":7},{"$f":"IF(ISERROR($V480),\"\",OFFSET('Smelter Look-up'!$C$4,$V480-4,0)&\"\")","v":""},"",{"$f":"IF(B480=\"\",\"\",IF(ISERROR(MATCH($J480,SorP!$B$1:$B$5661,0)),\"\",INDIRECT(\"'SorP'!$A$\"&MATCH($J480,SorP!$B$1:$B$5661,0))))","v":""},null,{"$f":"IF(C480=\"\",NA(),MATCH($B480&$C480,'Smelter Look-up'!$J:$J,0))","v":{"$error":"#N/A"}},null,0,null,null,null,""]
[null,{"$f":"IF(LEN(A481)=0,\"\",INDEX('Smelter Look-up'!$A:$A,MATCH($A481,'Smelter Look-up'!$E:$E,0)))","v":""},{"$f":"IF(LEN(A481)=0,\"\",INDEX('Smelter Look-up'!$C:$C,MATCH($A481,'Smelter Look-up'!$E:$E,0)))","v":""},null,{"$f":"IF(ISERROR($V481),\"\",OFFSET('Smelter Look-up'!$D$4,$V481-4,0)&\"\")","v":""},{"$f":"IF(ISERROR($V481),\"\",OFFSET('Smelter Look-up'!$E$4,$V481-4,0))","v":""},{"$f":"IF(C481=$X$4,\"Enter smelter details\",IF(ISERROR($V481),\"\",OFFSET('Smelter Look-up'!$F$4,$V481-4,0)))","v":""},{"$f":"IF(ISERROR($V481),\"\",OFFSET('Smelter Look-up'!$G$4,$V481-4,0))","v":""},{"$f":"IF(ISERROR($V481),\"\",OFFSET('Smelter Look-up'!$H$4,$V481-4,0))","v":""},{"$f":"IF(ISERROR($V481),\"\",OFFSET('Smelter Look-up'!$I$4,$V481-4,0))","v":""},{"$nulls":7},{"$f":"IF(ISERROR($V481),\"\",OFFSET('Smelter Look-up'!$C$4,$V481-4,0)&\"\")","v":""},"",{"$f":"IF(B481=\"\",\"\",IF(ISERROR(MATCH($J481,SorP!$B$1:$B$5661,0)),\"\",INDIRECT(\"'SorP'!$A$\"&MATCH($J481,SorP!$B$1:$B$5661,0))))","v":""},null,{"$f":"IF(C481=\"\",NA(),MATCH($B481&$C481,'Smelter Look-up'!$J:$J,0))","v":{"$error":"#N/A"}},null,0,null,null,null,""]
[null,{"$f":"IF(LEN(A482)=0,\"\",INDEX('Smelter Look-up'!$A:$A,MATCH($A482,'Smelter Look-up'!$E:$E,0)))","v":""},{"$f":"IF(LEN(A482)=0,\"\",INDEX('Smelter Look-up'!$C:$C,MATCH($A482,'Smelter Look-up'!$E:$E,0)))","v":""},null,{"$f":"IF(ISERROR($V482),\"\",OFFSET('Smelter Look-up'!$D$4,$V482-4,0)&\"\")","v":""},{"$f":"IF(ISERROR($V482),\"\",OFFSET('Smelter Look-up'!$E$4,$V482-4,0))","v":""},{"$f":"IF(C482=$X$4,\"Enter smelter details\",IF(ISERROR($V482),\"\",OFFSET('Smelter Look-up'!$F$4,$V482-4,0)))","v":""},{"$f":"IF(ISERROR($V482),\"\",OFFSET('Smelter Look-up'!$G$4,$V482-4,0))","v":""},{"$f":"IF(ISERROR($V482),\"\",OFFSET('Smelter Look-up'!$H$4,$V482-4,0))","v":""},{"$f":"IF(ISERROR($V482),\"\",OFFSET('Smelter Look-up'!$I$4,$V482-4,0))","v":""},{"$nulls":7},{"$f":"IF(ISERROR($V482),\"\",OFFSET('Smelter Look-up'!$C$4,$V482-4,0)&\"\")","v":""},"",{"$f":"IF(B482=\"\",\"\",IF(ISERROR(MATCH($J482,SorP!$B$1:$B$5661,0)),\"\",INDIRECT(\"'SorP'!$A$\"&MATCH($J482,SorP!$B$1:$B$5661,0))))","v":""},null,{"$f":"IF(C482=\"\",NA(),MATCH($B482&$C482,'Smelter Look-up'!$J:$J,0))","v":{"$error":"#N/A"}},null,0,null,null,null,""]
[null,{"$f":"IF(LEN(A483)=0,\"\",INDEX('Smelter Look-up'!$A:$A,MATCH($A483,'Smelter Look-up'!$E:$E,0)))","v":""},{"$f":"IF(LEN(A483)=0,\"\",INDEX('Smelter Look-up'!$C:$C,MATCH($A483,'Smelter Look-up'!$E:$E,0)))","v":""},null,{"$f":"IF(ISERROR($V483),\"\",OFFSET('Smelter Look-up'!$D$4,$V483-4,0)&\"\")","v":""},{"$f":"IF(ISERROR($V483),\"\",OFFSET('Smelter Look-up'!$E$4,$V483-4,0))","v":""},{"$f":"IF(C483=$X$4,\"Enter smelter details\",IF(ISERROR($V483),\"\",OFFSET('Smelter Look-up'!$F$4,$V483-4,0)))","v":""},{"$f":"IF(ISERROR($V483),\"\",OFFSET('Smelter Look-up'!$G$4,$V483-4,0))","v":""},{"$f":"IF(ISERROR($V483),\"\",OFFSET('Smelter Look-up'!$H$4,$V483-4,0))","v":""},{"$f":"IF(ISERROR($V483),\"\",OFFSET('Smelter Look-up'!$I$4,$V483-4,0))","v":""},{"$nulls":7},{"$f":"IF(ISERROR($V483),\"\",OFFSET('Smelter Look-up'!$C$4,$V483-4,0)&\"\")","v":""},"",{"$f":"IF(B483=\"\",\"\",IF(ISERROR(MATCH($J483,SorP!$B$1:$B$5661,0)),\"\",INDIRECT(\"'SorP'!$A$\"&MATCH($J483,SorP!$B$1:$B$5661,0))))","v":""},null,{"$f":"IF(C483=\"\",NA(),MATCH($B483&$C483,'Smelter Look-up'!$J:$J,0))","v":{"$error":"#N/A"}},null,0,null,null,null,""]
[null,{"$f":"IF(LEN(A484)=0,\"\",INDEX('Smelter Look-up'!$A:$A,MATCH($A484,'Smelter Look-up'!$E:$E,0)))","v":""},{"$f":"IF(LEN(A484)=0,\"\",INDEX('Smelter Look-up'!$C:$C,MATCH($A484,'Smelter Look-up'!$E:$E,0)))","v":""},null,{"$f":"IF(ISERROR($V484),\"\",OFFSET('Smelter Look-up'!$D$4,$V484-4,0)&\"\")","v":""},{"$f":"IF(ISERROR($V484),\"\",OFFSET('Smelter Look-up'!$E$4,$V484-4,0))","v":""},{"$f":"IF(C484=$X$4,\"Enter smelter details\",IF(ISERROR($V484),\"\",OFFSET('Smelter Look-up'!$F$4,$V484-4,0)))","v":""},{"$f":"IF(ISERROR($V484),\"\",OFFSET('Smelter Look-up'!$G$4,$V484-4,0))","v":""},{"$f":"IF(ISERROR($V484),\"\",OFFSET('Smelter Look-up'!$H$4,$V484-4,0))","v":""},{"$f":"IF(ISERROR($V484),\"\",OFFSET('Smelter Look-up'!$I$4,$V484-4,0))","v":""},{"$nulls":7},{"$f":"IF(ISERROR($V484),\"\",OFFSET('Smelter Look-up'!$C$4,$V484-4,0)&\"\")","v":""},"",{"$f":"IF(B484=\"\",\"\",IF(ISERROR(MATCH($J484,SorP!$B$1:$B$5661,0)),\"\",INDIRECT(\"'SorP'!$A$\"&MATCH($J484,SorP!$B$1:$B$5661,0))))","v":""},null,{"$f":"IF(C484=\"\",NA(),MATCH($B484&$C484,'Smelter Look-up'!$J:$J,0))","v":{"$error":"#N/A"}},null,0,null,null,null,""]
[null,{"$f":"IF(LEN(A485)=0,\"\",INDEX('Smelter Look-up'!$A:$A,MATCH($A485,'Smelter Look-up'!$E:$E,0)))","v":""},{"$f":"IF(LEN(A485)=0,\"\",INDEX('Smelter Look-up'!$C:$C,MATCH($A485,'Smelter Look-up'!$E:$E,0)))","v":""},null,{"$f":"IF(ISERROR($V485),\"\",OFFSET('Smelter Look-up'!$D$4,$V485-4,0)&\"\")","v":""},{"$f":"IF(ISERROR($V485),\"\",OFFSET('Smelter Look-up'!$E$4,$V485-4,0))","v":""},{"$f":"IF(C485=$X$4,\"Enter smelter details\",IF(ISERROR($V485),\"\",OFFSET('Smelter Look-up'!$F$4,$V485-4,0)))","v":""},{"$f":"IF(ISERROR($V485),\"\",OFFSET('Smelter Look-up'!$G$4,$V485-4,0))","v":""},{"$f":"IF(ISERROR($V485),\"\",OFFSET('Smelter Look-up'!$H$4,$V485-4,0))","v":""},{"$f":"IF(ISERROR($V485),\"\",OFFSET('Smelter Look-up'!$I$4,$V485-4,0))","v":""},{"$nulls":7},{"$f":"IF(ISERROR($V485),\"\",OFFSET('Smelter Look-up'!$C$4,$V485-4,0)&\"\")","v":""},"",{"$f":"IF(B485=\"\",\"\",IF(ISERROR(MATCH($J485,SorP!$B$1:$B$5661,0)),\"\",INDIRECT(\"'SorP'!$A$\"&MATCH($J485,SorP!$B$1:$B$5661,0))))","v":""},null,{"$f":"IF(C485=\"\",NA(),MATCH($B485&$C485,'Smelter Look-up'!$J:$J,0))","v":{"$error":"#N/A"}},null,0,null,null,null,""]
[null,{"$f":"IF(LEN(A486)=0,\"\",INDEX('Smelter Look-up'!$A:$A,MATCH($A486,'Smelter Look-up'!$E:$E,0)))","v":""},{"$f":"IF(LEN(A486)=0,\"\",INDEX('Smelter Look-up'!$C:$C,MATCH($A486,'Smelter Look-up'!$E:$E,0)))","v":""},null,{"$f":"IF(ISERROR($V486),\"\",OFFSET('Smelter Look-up'!$D$4,$V486-4,0)&\"\")","v":""},{"$f":"IF(ISERROR($V486),\"\",OFFSET('Smelter Look-up'!$E$4,$V486-4,0))","v":""},{"$f":"IF(C486=$X$4,\"Enter smelter details\",IF(ISERROR($V486),\"\",OFFSET('Smelter Look-up'!$F$4,$V486-4,0)))","v":""},{"$f":"IF(ISERROR($V486),\"\",OFFSET('Smelter Look-up'!$G$4,$V486-4,0))","v":""},{"$f":"IF(ISERROR($V486),\"\",OFFSET('Smelter Look-up'!$H$4,$V486-4,0))","v":""},{"$f":"IF(ISERROR($V486),\"\",OFFSET('Smelter Look-up'!$I$4,$V486-4,0))","v":""},{"$nulls":7},{"$f":"IF(ISERROR($V486),\"\",OFFSET('Smelter Look-up'!$C$4,$V486-4,0)&\"\")","v":""},"",{"$f":"IF(B486=\"\",\"\",IF(ISERROR(MATCH($J486,SorP!$B$1:$B$5661,0)),\"\",INDIRECT(\"'SorP'!$A$\"&MATCH($J486,SorP!$B$1:$B$5661,0))))","v":""},null,{"$f":"IF(C486=\"\",NA(),MATCH($B486&$C486,'Smelter Look-up'!$J:$J,0))","v":{"$error":"#N/A"}},null,0,null,null,null,""]
[null,{"$f":"IF(LEN(A487)=0,\"\",INDEX('Smelter Look-up'!$A:$A,MATCH($A487,'Smelter Look-up'!$E:$E,0)))","v":""},{"$f":"IF(LEN(A487)=0,\"\",INDEX('Smelter Look-up'!$C:$C,MATCH($A487,'Smelter Look-up'!$E:$E,0)))","v":""},null,{"$f":"IF(ISERROR($V487),\"\",OFFSET('Smelter Look-up'!$D$4,$V487-4,0)&\"\")","v":""},{"$f":"IF(ISERROR($V487),\"\",OFFSET('Smelter Look-up'!$E$4,$V487-4,0))","v":""},{"$f":"IF(C487=$X$4,\"Enter smelter details\",IF(ISERROR($V487),\"\",OFFSET('Smelter Look-up'!$F$4,$V487-4,0)))","v":""},{"$f":"IF(ISERROR($V487),\"\",OFFSET('Smelter Look-up'!$G$4,$V487-4,0))","v":""},{"$f":"IF(ISERROR($V487),\"\",OFFSET('Smelter Look-up'!$H$4,$V487-4,0))","v":""},{"$f":"IF(ISERROR($V487),\"\",OFFSET('Smelter Look-up'!$I$4,$V487-4,0))","v":""},{"$nulls":7},{"$f":"IF(ISERROR($V487),\"\",OFFSET('Smelter Look-up'!$C$4,$V487-4,0)&\"\")","v":""},"",{"$f":"IF(B487=\"\",\"\",IF(ISERROR(MATCH($J487,SorP!$B$1:$B$5661,0)),\"\",INDIRECT(\"'SorP'!$A$\"&MATCH($J487,SorP!$B$1:$B$5661,0))))","v":""},null,{"$f":"IF(C487=\"\",NA(),MATCH($B487&$C487,'Smelter Look-up'!$J:$J,0))","v":{"$error":"#N/A"}},null,0,null,null,null,""]
[null,{"$f":"IF(LEN(A488)=0,\"\",INDEX('Smelter Look-up'!$A:$A,MATCH($A488,'Smelter Look-up'!$E:$E,0)))","v":""},{"$f":"IF(LEN(A488)=0,\"\",INDEX('Smelter Look-up'!$C:$C,MATCH($A488,'Smelter Look-up'!$E:$E,0)))","v":""},null,{"$f":"IF(ISERROR($V488),\"\",OFFSET('Smelter Look-up'!$D$4,$V488-4,0)&\"\")","v":""},{"$f":"IF(ISERROR($V488),\"\",OFFSET('Smelter Look-up'!$E$4,$V488-4,0))","v":""},{"$f":"IF(C488=$X$4,\"Enter smelter details\",IF(ISERROR($V488),\"\",OFFSET('Smelter Look-up'!$F$4,$V488-4,0)))","v":""},{"$f":"IF(ISERROR($V488),\"\",OFFSET('Smelter Look-up'!$G$4,$V488-4,0))","v":""},{"$f":"IF(ISERROR($V488),\"\",OFFSET('Smelter Look-up'!$H$4,$V488-4,0))","v":""},{"$f":"IF(ISERROR($V488),\"\",OFFSET('Smelter Look-up'!$I$4,$V488-4,0))","v":""},{"$nulls":7},{"$f":"IF(ISERROR($V488),\"\",OFFSET('Smelter Look-up'!$C$4,$V488-4,0)&\"\")","v":""},"",{"$f":"IF(B488=\"\",\"\",IF(ISERROR(MATCH($J488,SorP!$B$1:$B$5661,0)),\"\",INDIRECT(\"'SorP'!$A$\"&MATCH($J488,SorP!$B$1:$B$5661,0))))","v":""},null,{"$f":"IF(C488=\"\",NA(),MATCH($B488&$C488,'Smelter Look-up'!$J:$J,0))","v":{"$error":"#N/A"}},null,0,null,null,null,""]
[null,{"$f":"IF(LEN(A489)=0,\"\",INDEX('Smelter Look-up'!$A:$A,MATCH($A489,'Smelter Look-up'!$E:$E,0)))","v":""},{"$f":"IF(LEN(A489)=0,\"\",INDEX('Smelter Look-up'!$C:$C,MATCH($A489,'Smelter Look-up'!$E:$E,0)))","v":""},null,{"$f":"IF(ISERROR($V489),\"\",OFFSET('Smelter Look-up'!$D$4,$V489-4,0)&\"\")","v":""},{"$f":"IF(ISERROR($V489),\"\",OFFSET('Smelter Look-up'!$E$4,$V489-4,0))","v":""},{"$f":"IF(C489=$X$4,\"Enter smelter details\",IF(ISERROR($V489),\"\",OFFSET('Smelter Look-up'!$F$4,$V489-4,0)))","v":""},{"$f":"IF(ISERROR($V489),\"\",OFFSET('Smelter Look-up'!$G$4,$V489-4,0))","v":""},{"$f":"IF(ISERROR($V489),\"\",OFFSET('Smelter Look-up'!$H$4,$V489-4,0))","v":""},{"$f":"IF(ISERROR($V489),\"\",OFFSET('Smelter Look-up'!$I$4,$V489-4,0))","v":""},{"$nulls":7},{"$f":"IF(ISERROR($V489),\"\",OFFSET('Smelter Look-up'!$C$4,$V489-4,0)&\"\")","v":""},"",{"$f":"IF(B489=\"\",\"\",IF(ISERROR(MATCH($J489,SorP!$B$1:$B$5661,0)),\"\",INDIRECT(\"'SorP'!$A$\"&MATCH($J489,SorP!$B$1:$B$5661,0))))","v":""},null,{"$f":"IF(C489=\"\",NA(),MATCH($B489&$C489,'Smelter Look-up'!$J:$J,0))","v":{"$error":"#N/A"}},null,0,null,null,null,""]
[null,{"$f":"IF(LEN(A490)=0,\"\",INDEX('Smelter Look-up'!$A:$A,MATCH($A490,'Smelter Look-up'!$E:$E,0)))","v":""},{"$f":"IF(LEN(A490)=0,\"\",INDEX('Smelter Look-up'!$C:$C,MATCH($A490,'Smelter Look-up'!$E:$E,0)))","v":""},null,{"$f":"IF(ISERROR($V490),\"\",OFFSET('Smelter Look-up'!$D$4,$V490-4,0)&\"\")","v":""},{"$f":"IF(ISERROR($V490),\"\",OFFSET('Smelter Look-up'!$E$4,$V490-4,0))","v":""},{"$f":"IF(C490=$X$4,\"Enter smelter details\",IF(ISERROR($V490),\"\",OFFSET('Smelter Look-up'!$F$4,$V490-4,0)))","v":""},{"$f":"IF(ISERROR($V490),\"\",OFFSET('Smelter Look-up'!$G$4,$V490-4,0))","v":""},{"$f":"IF(ISERROR($V490),\"\",OFFSET('Smelter Look-up'!$H$4,$V490-4,0))","v":""},{"$f":"IF(ISERROR($V490),\"\",OFFSET('Smelter Look-up'!$I$4,$V490-4,0))","v":""},{"$nulls":7},{"$f":"IF(ISERROR($V490),\"\",OFFSET('Smelter Look-up'!$C$4,$V490-4,0)&\"\")","v":""},"",{"$f":"IF(B490=\"\",\"\",IF(ISERROR(MATCH($J490,SorP!$B$1:$B$5661,0)),\"\",INDIRECT(\"'SorP'!$A$\"&MATCH($J490,SorP!$B$1:$B$5661,0))))","v":""},null,{"$f":"IF(C490=\"\",NA(),MATCH($B490&$C490,'Smelter Look-up'!$J:$J,0))","v":{"$error":"#N/A"}},null,0,null,null,null,""]
[null,{"$f":"IF(LEN(A491)=0,\"\",INDEX('Smelter Look-up'!$A:$A,MATCH($A491,'Smelter Look-up'!$E:$E,0)))","v":""},{"$f":"IF(LEN(A491)=0,\"\",INDEX('Smelter Look-up'!$C:$C,MATCH($A491,'Smelter Look-up'!$E:$E,0)))","v":""},null,{"$f":"IF(ISERROR($V491),\"\",OFFSET('Smelter Look-up'!$D$4,$V491-4,0)&\"\")","v":""},{"$f":"IF(ISERROR($V491),\"\",OFFSET('Smelter Look-up'!$E$4,$V491-4,0))","v":""},{"$f":"IF(C491=$X$4,\"Enter smelter details\",IF(ISERROR($V491),\"\",OFFSET('Smelter Look-up'!$F$4,$V491-4,0)))","v":""},{"$f":"IF(ISERROR($V491),\"\",OFFSET('Smelter Look-up'!$G$4,$V491-4,0))","v":""},{"$f":"IF(ISERROR($V491),\"\",OFFSET('Smelter Look-up'!$H$4,$V491-4,0))","v":""},{"$f":"IF(ISERROR($V491),\"\",OFFSET('Smelter Look-up'!$I$4,$V491-4,0))","v":""},{"$nulls":7},{"$f":"IF(ISERROR($V491),\"\",OFFSET('Smelter Look-up'!$C$4,$V491-4,0)&\"\")","v":""},"",{"$f":"IF(B491=\"\",\"\",IF(ISERROR(MATCH($J491,SorP!$B$1:$B$5661,0)),\"\",INDIRECT(\"'SorP'!$A$\"&MATCH($J491,SorP!$B$1:$B$5661,0))))","v":""},null,{"$f":"IF(C491=\"\",NA(),MATCH($B491&$C491,'Smelter Look-up'!$J:$J,0))","v":{"$error":"#N/A"}},null,0,null,null,null,""]
[null,{"$f":"IF(LEN(A492)=0,\"\",INDEX('Smelter Look-up'!$A:$A,MATCH($A492,'Smelter Look-up'!$E:$E,0)))","v":""},{"$f":"IF(LEN(A492)=0,\"\",INDEX('Smelter Look-up'!$C:$C,MATCH($A492,'Smelter Look-up'!$E:$E,0)))","v":""},null,{"$f":"IF(ISERROR($V492),\"\",OFFSET('Smelter Look-up'!$D$4,$V492-4,0)&\"\")","v":""},{"$f":"IF(ISERROR($V492),\"\",OFFSET('Smelter Look-up'!$E$4,$V492-4,0))","v":""},{"$f":"IF(C492=$X$4,\"Enter smelter details\",IF(ISERROR($V492),\"\",OFFSET('Smelter Look-up'!$F$4,$V492-4,0)))","v":""},{"$f":"IF(ISERROR($V492),\"\",OFFSET('Smelter Look-up'!$G$4,$V492-4,0))","v":""},{"$f":"IF(ISERROR($V492),\"\",OFFSET('Smelter Look-up'!$H$4,$V492-4,0))","v":""},{"$f":"IF(ISERROR($V492),\"\",OFFSET('Smelter Look-up'!$I$4,$V492-4,0))","v":""},{"$nulls":7},{"$f":"IF(ISERROR($V492),\"\",OFFSET('Smelter Look-up'!$C$4,$V492-4,0)&\"\")","v":""},"",{"$f":"IF(B492=\"\",\"\",IF(ISERROR(MATCH($J492,SorP!$B$1:$B$5661,0)),\"\",INDIRECT(\"'SorP'!$A$\"&MATCH($J492,SorP!$B$1:$B$5661,0))))","v":""},null,{"$f":"IF(C492=\"\",NA(),MATCH($B492&$C492,'Smelter Look-up'!$J:$J,0))","v":{"$error":"#N/A"}},null,0,null,null,null,""]
[null,{"$f":"IF(LEN(A493)=0,\"\",INDEX('Smelter Look-up'!$A:$A,MATCH($A493,'Smelter Look-up'!$E:$E,0)))","v":""},{"$f":"IF(LEN(A493)=0,\"\",INDEX('Smelter Look-up'!$C:$C,MATCH($A493,'Smelter Look-up'!$E:$E,0)))","v":""},null,{"$f":"IF(ISERROR($V493),\"\",OFFSET('Smelter Look-up'!$D$4,$V493-4,0)&\"\")","v":""},{"$f":"IF(ISERROR($V493),\"\",OFFSET('Smelter Look-up'!$E$4,$V493-4,0))","v":""},{"$f":"IF(C493=$X$4,\"Enter smelter details\",IF(ISERROR($V493),\"\",OFFSET('Smelter Look-up'!$F$4,$V493-4,0)))","v":""},{"$f":"IF(ISERROR($V493),\"\",OFFSET('Smelter Look-up'!$G$4,$V493-4,0))","v":""},{"$f":"IF(ISERROR($V493),\"\",OFFSET('Smelter Look-up'!$H$4,$V493-4,0))","v":""},{"$f":"IF(ISERROR($V493),\"\",OFFSET('Smelter Look-up'!$I$4,$V493-4,0))","v":""},{"$nulls":7},{"$f":"IF(ISERROR($V493),\"\",OFFSET('Smelter Look-up'!$C$4,$V493-4,0)&\"\")","v":""},"",{"$f":"IF(B493=\"\",\"\",IF(ISERROR(MATCH($J493,SorP!$B$1:$B$5661,0)),\"\",INDIRECT(\"'SorP'!$A$\"&MATCH($J493,SorP!$B$1:$B$5661,0))))","v":""},null,{"$f":"IF(C493=\"\",NA(),MATCH($B493&$C493,'Smelter Look-up'!$J:$J,0))","v":{"$error":"#N/A"}},null,0,null,null,null,""]
[null,{"$f":"IF(LEN(A494)=0,\"\",INDEX('Smelter Look-up'!$A:$A,MATCH($A494,'Smelter Look-up'!$E:$E,0)))","v":""},{"$f":"IF(LEN(A494)=0,\"\",INDEX('Smelter Look-up'!$C:$C,MATCH($A494,'Smelter Look-up'!$E:$E,0)))","v":""},null,{"$f":"IF(ISERROR($V494),\"\",OFFSET('Smelter Look-up'!$D$4,$V494-4,0)&\"\")","v":""},{"$f":"IF(ISERROR($V494),\"\",OFFSET('Smelter Look-up'!$E$4,$V494-4,0))","v":""},{"$f":"IF(C494=$X$4,\"Enter smelter details\",IF(ISERROR($V494),\"\",OFFSET('Smelter Look-up'!$F$4,$V494-4,0)))","v":""},{"$f":"IF(ISERROR($V494),\"\",OFFSET('Smelter Look-up'!$G$4,$V494-4,0))","v":""},{"$f":"IF(ISERROR($V494),\"\",OFFSET('Smelter Look-up'!$H$4,$V494-4,0))","v":""},{"$f":"IF(ISERROR($V494),\"\",OFFSET('Smelter Look-up'!$I$4,$V494-4,0))","v":""},{"$nulls":7},{"$f":"IF(ISERROR($V494),\"\",OFFSET('Smelter Look-up'!$C$4,$V494-4,0)&\"\")","v":""},"",{"$f":"IF(B494=\"\",\"\",IF(ISERROR(MATCH($J494,SorP!$B$1:$B$5661,0)),\"\",INDIRECT(\"'SorP'!$A$\"&MATCH($J494,SorP!$B$1:$B$5661,0))))","v":""},null,{"$f":"IF(C494=\"\",NA(),MATCH($B494&$C494,'Smelter Look-up'!$J:$J,0))","v":{"$error":"#N/A"}},null,0,null,null,null,""]
[null,{"$f":"IF(LEN(A495)=0,\"\",INDEX('Smelter Look-up'!$A:$A,MATCH($A495,'Smelter Look-up'!$E:$E,0)))","v":""},{"$f":"IF(LEN(A495)=0,\"\",INDEX('Smelter Look-up'!$C:$C,MATCH($A495,'Smelter Look-up'!$E:$E,0)))","v":""},null,{"$f":"IF(ISERROR($V495),\"\",OFFSET('Smelter Look-up'!$D$4,$V495-4,0)&\"\")","v":""},{"$f":"IF(ISERROR($V495),\"\",OFFSET('Smelter Look-up'!$E$4,$V495-4,0))","v":""},{"$f":"IF(C495=$X$4,\"Enter smelter details\",IF(ISERROR($V495),\"\",OFFSET('Smelter Look-up'!$F$4,$V495-4,0)))","v":""},{"$f":"IF(ISERROR($V495),\"\",OFFSET('Smelter Look-up'!$G$4,$V495-4,0))","v":""},{"$f":"IF(ISERROR($V495),\"\",OFFSET('Smelter Look-up'!$H$4,$V495-4,0))","v":""},{"$f":"IF(ISERROR($V495),\"\",OFFSET('Smelter Look-up'!$I$4,$V495-4,0))","v":""},{"$nulls":7},{"$f":"IF(ISERROR($V495),\"\",OFFSET('Smelter Look-up'!$C$4,$V495-4,0)&\"\")","v":""},"",{"$f":"IF(B495=\"\",\"\",IF(ISERROR(MATCH($J495,SorP!$B$1:$B$5661,0)),\"\",INDIRECT(\"'SorP'!$A$\"&MATCH($J495,SorP!$B$1:$B$5661,0))))","v":""},null,{"$f":"IF(C495=\"\",NA(),MATCH($B495&$C495,'Smelter Look-up'!$J:$J,0))","v":{"$error":"#N/A"}},null,0,null,null,null,""]
[null,{"$f":"IF(LEN(A496)=0,\"\",INDEX('Smelter Look-up'!$A:$A,MATCH($A496,'Smelter Look-up'!$E:$E,0)))","v":""},{"$f":"IF(LEN(A496)=0,\"\",INDEX('Smelter Look-up'!$C:$C,MATCH($A496,'Smelter Look-up'!$E:$E,0)))","v":""},null,{"$f":"IF(ISERROR($V496),\"\",OFFSET('Smelter Look-up'!$D$4,$V496-4,0)&\"\")","v":""},{"$f":"IF(ISERROR($V496),\"\",OFFSET('Smelter Look-up'!$E$4,$V496-4,0))","v":""},{"$f":"IF(C496=$X$4,\"Enter smelter details\",IF(ISERROR($V496),\"\",OFFSET('Smelter Look-up'!$F$4,$V496-4,0)))","v":""},{"$f":"IF(ISERROR($V496),\"\",OFFSET('Smelter Look-up'!$G$4,$V496-4,0))","v":""},{"$f":"IF(ISERROR($V496),\"\",OFFSET('Smelter Look-up'!$H$4,$V496-4,0))","v":""},{"$f":"IF(ISERROR($V496),\"\",OFFSET('Smelter Look-up'!$I$4,$V496-4,0))","v":""},{"$nulls":7},{"$f":"IF(ISERROR($V496),\"\",OFFSET('Smelter Look-up'!$C$4,$V496-4,0)&\"\")","v":""},"",{"$f":"IF(B496=\"\",\"\",IF(ISERROR(MATCH($J496,SorP!$B$1:$B$5661,0)),\"\",INDIRECT(\"'SorP'!$A$\"&MATCH($J496,SorP!$B$1:$B$5661,0))))","v":""},null,{"$f":"IF(C496=\"\",NA(),MATCH($B496&$C496,'Smelter Look-up'!$J:$J,0))","v":{"$error":"#N/A"}},null,0,null,null,null,""]
[null,{"$f":"IF(LEN(A497)=0,\"\",INDEX('Smelter Look-up'!$A:$A,MATCH($A497,'Smelter Look-up'!$E:$E,0)))","v":""},{"$f":"IF(LEN(A497)=0,\"\",INDEX('Smelter Look-up'!$C:$C,MATCH($A497,'Smelter Look-up'!$E:$E,0)))","v":""},null,{"$f":"IF(ISERROR($V497),\"\",OFFSET('Smelter Look-up'!$D$4,$V497-4,0)&\"\")","v":""},{"$f":"IF(ISERROR($V497),\"\",OFFSET('Smelter Look-up'!$E$4,$V497-4,0))","v":""},{"$f":"IF(C497=$X$4,\"Enter smelter details\",IF(ISERROR($V497),\"\",OFFSET('Smelter Look-up'!$F$4,$V497-4,0)))","v":""},{"$f":"IF(ISERROR($V497),\"\",OFFSET('Smelter Look-up'!$G$4,$V497-4,0))","v":""},{"$f":"IF(ISERROR($V497),\"\",OFFSET('Smelter Look-up'!$H$4,$V497-4,0))","v":""},{"$f":"IF(ISERROR($V497),\"\",OFFSET('Smelter Look-up'!$I$4,$V497-4,0))","v":""},{"$nulls":7},{"$f":"IF(ISERROR($V497),\"\",OFFSET('Smelter Look-up'!$C$4,$V497-4,0)&\"\")","v":""},"",{"$f":"IF(B497=\"\",\"\",IF(ISERROR(MATCH($J497,SorP!$B$1:$B$5661,0)),\"\",INDIRECT(\"'SorP'!$A$\"&MATCH($J497,SorP!$B$1:$B$5661,0))))","v":""},null,{"$f":"IF(C497=\"\",NA(),MATCH($B497&$C497,'Smelter Look-up'!$J:$J,0))","v":{"$error":"#N/A"}},null,0,null,null,null,""]
[null,{"$f":"IF(LEN(A498)=0,\"\",INDEX('Smelter Look-up'!$A:$A,MATCH($A498,'Smelter Look-up'!$E:$E,0)))","v":""},{"$f":"IF(LEN(A498)=0,\"\",INDEX('Smelter Look-up'!$C:$C,MATCH($A498,'Smelter Look-up'!$E:$E,0)))","v":""},null,{"$f":"IF(ISERROR($V498),\"\",OFFSET('Smelter Look-up'!$D$4,$V498-4,0)&\"\")","v":""},{"$f":"IF(ISERROR($V498),\"\",OFFSET('Smelter Look-up'!$E$4,$V498-4,0))","v":""},{"$f":"IF(C498=$X$4,\"Enter smelter details\",IF(ISERROR($V498),\"\",OFFSET('Smelter Look-up'!$F$4,$V498-4,0)))","v":""},{"$f":"IF(ISERROR($V498),\"\",OFFSET('Smelter Look-up'!$G$4,$V498-4,0))","v":""},{"$f":"IF(ISERROR($V498),\"\",OFFSET('Smelter Look-up'!$H$4,$V498-4,0))","v":""},{"$f":"IF(ISERROR($V498),\"\",OFFSET('Smelter Look-up'!$I$4,$V498-4,0))","v":""},{"$nulls":7},{"$f":"IF(ISERROR($V498),\"\",OFFSET('Smelter Look-up'!$C$4,$V498-4,0)&\"\")","v":""},"",{"$f":"IF(B498=\"\",\"\",IF(ISERROR(MATCH($J498,SorP!$B$1:$B$5661,0)),\"\",INDIRECT(\"'SorP'!$A$\"&MATCH($J498,SorP!$B$1:$B$5661,0))))","v":""},null,{"$f":"IF(C498=\"\",NA(),MATCH($B498&$C498,'Smelter Look-up'!$J:$J,0))","v":{"$error":"#N/A"}},null,0,null,null,null,""]
[null,{"$f":"IF(LEN(A499)=0,\"\",INDEX('Smelter Look-up'!$A:$A,MATCH($A499,'Smelter Look-up'!$E:$E,0)))","v":""},{"$f":"IF(LEN(A499)=0,\"\",INDEX('Smelter Look-up'!$C:$C,MATCH($A499,'Smelter Look-up'!$E:$E,0)))","v":""},null,{"$f":"IF(ISERROR($V499),\"\",OFFSET('Smelter Look-up'!$D$4,$V499-4,0)&\"\")","v":""},{"$f":"IF(ISERROR($V499),\"\",OFFSET('Smelter Look-up'!$E$4,$V499-4,0))","v":""},{"$f":"IF(C499=$X$4,\"Enter smelter details\",IF(ISERROR($V499),\"\",OFFSET('Smelter Look-up'!$F$4,$V499-4,0)))","v":""},{"$f":"IF(ISERROR($V499),\"\",OFFSET('Smelter Look-up'!$G$4,$V499-4,0))","v":""},{"$f":"IF(ISERROR($V499),\"\",OFFSET('Smelter Look-up'!$H$4,$V499-4,0))","v":""},{"$f":"IF(ISERROR($V499),\"\",OFFSET('Smelter Look-up'!$I$4,$V499-4,0))","v":""},{"$nulls":7},{"$f":"IF(ISERROR($V499),\"\",OFFSET('Smelter Look-up'!$C$4,$V499-4,0)&\"\")","v":""},"",{"$f":"IF(B499=\"\",\"\",IF(ISERROR(MATCH($J499,SorP!$B$1:$B$5661,0)),\"\",INDIRECT(\"'SorP'!$A$\"&MATCH($J499,SorP!$B$1:$B$5661,0))))","v":""},null,{"$f":"IF(C499=\"\",NA(),MATCH($B499&$C499,'Smelter Look-up'!$J:$J,0))","v":{"$error":"#N/A"}},null,0,null,null,null,""]
[null,{"$f":"IF(LEN(A500)=0,\"\",INDEX('Smelter Look-up'!$A:$A,MATCH($A500,'Smelter Look-up'!$E:$E,0)))","v":""},{"$f":"IF(LEN(A500)=0,\"\",INDEX('Smelter Look-up'!$C:$C,MATCH($A500,'Smelter Look-up'!$E:$E,0)))","v":""},null,{"$f":"IF(ISERROR($V500),\"\",OFFSET('Smelter Look-up'!$D$4,$V500-4,0)&\"\")","v":""},{"$f":"IF(ISERROR($V500),\"\",OFFSET('Smelter Look-up'!$E$4,$V500-4,0))","v":""},{"$f":"IF(C500=$X$4,\"Enter smelter details\",IF(ISERROR($V500),\"\",OFFSET('Smelter Look-up'!$F$4,$V500-4,0)))","v":""},{"$f":"IF(ISERROR($V500),\"\",OFFSET('Smelter Look-up'!$G$4,$V500-4,0))","v":""},{"$f":"IF(ISERROR($V500),\"\",OFFSET('Smelter Look-up'!$H$4,$V500-4,0))","v":""},{"$f":"IF(ISERROR($V500),\"\",OFFSET('Smelter Look-up'!$I$4,$V500-4,0))","v":""},{"$nulls":7},{"$f":"IF(ISERROR($V500),\"\",OFFSET('Smelter Look-up'!$C$4,$V500-4,0)&\"\")","v":""},"",{"$f":"IF(B500=\"\",\"\",IF(ISERROR(MATCH($J500,SorP!$B$1:$B$5661,0)),\"\",INDIRECT(\"'SorP'!$A$\"&MATCH($J500,SorP!$B$1:$B$5661,0))))","v":""},null,{"$f":"IF(C500=\"\",NA(),MATCH($B500&$C500,'Smelter Look-up'!$J:$J,0))","v":{"$error":"#N/A"}},null,0,null,null,null,""]
[null,{"$f":"IF(LEN(A501)=0,\"\",INDEX('Smelter Look-up'!$A:$A,MATCH($A501,'Smelter Look-up'!$E:$E,0)))","v":""},{"$f":"IF(LEN(A501)=0,\"\",INDEX('Smelter Look-up'!$C:$C,MATCH($A501,'Smelter Look-up'!$E:$E,0)))","v":""},null,{"$f":"IF(ISERROR($V501),\"\",OFFSET('Smelter Look-up'!$D$4,$V501-4,0)&\"\")","v":""},{"$f":"IF(ISERROR($V501),\"\",OFFSET('Smelter Look-up'!$E$4,$V501-4,0))","v":""},{"$f":"IF(C501=$X$4,\"Enter smelter details\",IF(ISERROR($V501),\"\",OFFSET('Smelter Look-up'!$F$4,$V501-4,0)))","v":""},{"$f":"IF(ISERROR($V501),\"\",OFFSET('Smelter Look-up'!$G$4,$V501-4,0))","v":""},{"$f":"IF(ISERROR($V501),\"\",OFFSET('Smelter Look-up'!$H$4,$V501-4,0))","v":""},{"$f":"IF(ISERROR($V501),\"\",OFFSET('Smelter Look-up'!$I$4,$V501-4,0))","v":""},{"$nulls":7},{"$f":"IF(ISERROR($V501),\"\",OFFSET('Smelter Look-up'!$C$4,$V501-4,0)&\"\")","v":""},"",{"$f":"IF(B501=\"\",\"\",IF(ISERROR(MATCH($J501,SorP!$B$1:$B$5661,0)),\"\",INDIRECT(\"'SorP'!$A$\"&MATCH($J501,SorP!$B$1:$B$5661,0))))","v":""},null,{"$f":"IF(C501=\"\",NA(),MATCH($B501&$C501,'Smelter Look-up'!$J:$J,0))","v":{"$error":"#N/A"}},null,0,null,null,null,""]
[null,{"$f":"IF(LEN(A502)=0,\"\",INDEX('Smelter Look-up'!$A:$A,MATCH($A502,'Smelter Look-up'!$E:$E,0)))","v":""},{"$f":"IF(LEN(A502)=0,\"\",INDEX('Smelter Look-up'!$C:$C,MATCH($A502,'Smelter Look-up'!$E:$E,0)))","v":""},null,{"$f":"IF(ISERROR($V502),\"\",OFFSET('Smelter Look-up'!$D$4,$V502-4,0)&\"\")","v":""},{"$f":"IF(ISERROR($V502),\"\",OFFSET('Smelter Look-up'!$E$4,$V502-4,0))","v":""},{"$f":"IF(C502=$X$4,\"Enter smelter details\",IF(ISERROR($V502),\"\",OFFSET('Smelter Look-up'!$F$4,$V502-4,0)))","v":""},{"$f":"IF(ISERROR($V502),\"\",OFFSET('Smelter Look-up'!$G$4,$V502-4,0))","v":""},{"$f":"IF(ISERROR($V502),\"\",OFFSET('Smelter Look-up'!$H$4,$V502-4,0))","v":""},{"$f":"IF(ISERROR($V502),\"\",OFFSET('Smelter Look-up'!$I$4,$V502-4,0))","v":""},{"$nulls":7},{"$f":"IF(ISERROR($V502),\"\",OFFSET('Smelter Look-up'!$C$4,$V502-4,0)&\"\")","v":""},"",{"$f":"IF(B502=\"\",\"\",IF(ISERROR(MATCH($J502,SorP!$B$1:$B$5661,0)),\"\",INDIRECT(\"'SorP'!$A$\"&MATCH($J502,SorP!$B$1:$B$5661,0))))","v":""},null,{"$f":"IF(C502=\"\",NA(),MATCH($B502&$C502,'Smelter Look-up'!$J:$J,0))","v":{"$error":"#N/A"}},null,0,null,null,null,""]
[null,{"$f":"IF(LEN(A503)=0,\"\",INDEX('Smelter Look-up'!$A:$A,MATCH($A503,'Smelter Look-up'!$E:$E,0)))","v":""},{"$f":"IF(LEN(A503)=0,\"\",INDEX('Smelter Look-up'!$C:$C,MATCH($A503,'Smelter Look-up'!$E:$E,0)))","v":""},null,{"$f":"IF(ISERROR($V503),\"\",OFFSET('Smelter Look-up'!$D$4,$V503-4,0)&\"\")","v":""},{"$f":"IF(ISERROR($V503),\"\",OFFSET('Smelter Look-up'!$E$4,$V503-4,0))","v":""},{"$f":"IF(C503=$X$4,\"Enter smelter details\",IF(ISERROR($V503),\"\",OFFSET('Smelter Look-up'!$F$4,$V503-4,0)))","v":""},{"$f":"IF(ISERROR($V503),\"\",OFFSET('Smelter Look-up'!$G$4,$V503-4,0))","v":""},{"$f":"IF(ISERROR($V503),\"\",OFFSET('Smelter Look-up'!$H$4,$V503-4,0))","v":""},{"$f":"IF(ISERROR($V503),\"\",OFFSET('Smelter Look-up'!$I$4,$V503-4,0))","v":""},{"$nulls":7},{"$f":"IF(ISERROR($V503),\"\",OFFSET('Smelter Look-up'!$C$4,$V503-4,0)&\"\")","v":""},"",{"$f":"IF(B503=\"\",\"\",IF(ISERROR(MATCH($J503,SorP!$B$1:$B$5661,0)),\"\",INDIRECT(\"'SorP'!$A$\"&MATCH($J503,SorP!$B$1:$B$5661,0))))","v":""},null,{"$f":"IF(C503=\"\",NA(),MATCH($B503&$C503,'Smelter Look-up'!$J:$J,0))","v":{"$error":"#N/A"}},null,0,null,null,null,""]
[null,{"$f":"IF(LEN(A504)=0,\"\",INDEX('Smelter Look-up'!$A:$A,MATCH($A504,'Smelter Look-up'!$E:$E,0)))","v":""},{"$f":"IF(LEN(A504)=0,\"\",INDEX('Smelter Look-up'!$C:$C,MATCH($A504,'Smelter Look-up'!$E:$E,0)))","v":""},null,{"$f":"IF(ISERROR($V504),\"\",OFFSET('Smelter Look-up'!$D$4,$V504-4,0)&\"\")","v":""},{"$f":"IF(ISERROR($V504),\"\",OFFSET('Smelter Look-up'!$E$4,$V504-4,0))","v":""},{"$f":"IF(C504=$X$4,\"Enter smelter details\",IF(ISERROR($V504),\"\",OFFSET('Smelter Look-up'!$F$4,$V504-4,0)))","v":""},{"$f":"IF(ISERROR($V504),\"\",OFFSET('Smelter Look-up'!$G$4,$V504-4,0))","v":""},{"$f":"IF(ISERROR($V504),\"\",OFFSET('Smelter Look-up'!$H$4,$V504-4,0))","v":""},{"$f":"IF(ISERROR($V504),\"\",OFFSET('Smelter Look-up'!$I$4,$V504-4,0))","v":""},{"$nulls":7},{"$f":"IF(ISERROR($V504),\"\",OFFSET('Smelter Look-up'!$C$4,$V504-4,0)&\"\")","v":""},"",{"$f":"IF(B504=\"\",\"\",IF(ISERROR(MATCH($J504,SorP!$B$1:$B$5661,0)),\"\",INDIRECT(\"'SorP'!$A$\"&MATCH($J504,SorP!$B$1:$B$5661,0))))","v":""},null,{"$f":"IF(C504=\"\",NA(),MATCH($B504&$C504,'Smelter Look-up'!$J:$J,0))","v":{"$error":"#N/A"}},null,0,null,null,null,""]
[null,{"$f":"IF(LEN(A505)=0,\"\",INDEX('Smelter Look-up'!$A:$A,MATCH($A505,'Smelter Look-up'!$E:$E,0)))","v":""},{"$f":"IF(LEN(A505)=0,\"\",INDEX('Smelter Look-up'!$C:$C,MATCH($A505,'Smelter Look-up'!$E:$E,0)))","v":""},null,{"$f":"IF(ISERROR($V505),\"\",OFFSET('Smelter Look-up'!$D$4,$V505-4,0)&\"\")","v":""},{"$f":"IF(ISERROR($V505),\"\",OFFSET('Smelter Look-up'!$E$4,$V505-4,0))","v":""},{"$f":"IF(C505=$X$4,\"Enter smelter details\",IF(ISERROR($V505),\"\",OFFSET('Smelter Look-up'!$F$4,$V505-4,0)))","v":""},{"$f":"IF(ISERROR($V505),\"\",OFFSET('Smelter Look-up'!$G$4,$V505-4,0))","v":""},{"$f":"IF(ISERROR($V505),\"\",OFFSET('Smelter Look-up'!$H$4,$V505-4,0))","v":""},{"$f":"IF(ISERROR($V505),\"\",OFFSET('Smelter Look-up'!$I$4,$V505-4,0))","v":""},{"$nulls":7},{"$f":"IF(ISERROR($V505),\"\",OFFSET('Smelter Look-up'!$C$4,$V505-4,0)&\"\")","v":""},"",{"$f":"IF(B505=\"\",\"\",IF(ISERROR(MATCH($J505,SorP!$B$1:$B$5661,0)),\"\",INDIRECT(\"'SorP'!$A$\"&MATCH($J505,SorP!$B$1:$B$5661,0))))","v":""},null,{"$f":"IF(C505=\"\",NA(),MATCH($B505&$C505,'Smelter Look-up'!$J:$J,0))","v":{"$error":"#N/A"}},null,0,null,null,null,""]
[null,{"$f":"IF(LEN(A506)=0,\"\",INDEX('Smelter Look-up'!$A:$A,MATCH($A506,'Smelter Look-up'!$E:$E,0)))","v":""},{"$f":"IF(LEN(A506)=0,\"\",INDEX('Smelter Look-up'!$C:$C,MATCH($A506,'Smelter Look-up'!$E:$E,0)))","v":""},null,{"$f":"IF(ISERROR($V506),\"\",OFFSET('Smelter Look-up'!$D$4,$V506-4,0)&\"\")","v":""},{"$f":"IF(ISERROR($V506),\"\",OFFSET('Smelter Look-up'!$E$4,$V506-4,0))","v":""},{"$f":"IF(C506=$X$4,\"Enter smelter details\",IF(ISERROR($V506),\"\",OFFSET('Smelter Look-up'!$F$4,$V506-4,0)))","v":""},{"$f":"IF(ISERROR($V506),\"\",OFFSET('Smelter Look-up'!$G$4,$V506-4,0))","v":""},{"$f":"IF(ISERROR($V506),\"\",OFFSET('Smelter Look-up'!$H$4,$V506-4,0))","v":""},{"$f":"IF(ISERROR($V506),\"\",OFFSET('Smelter Look-up'!$I$4,$V506-4,0))","v":""},{"$nulls":7},{"$f":"IF(ISERROR($V506),\"\",OFFSET('Smelter Look-up'!$C$4,$V506-4,0)&\"\")","v":""},"",{"$f":"IF(B506=\"\",\"\",IF(ISERROR(MATCH($J506,SorP!$B$1:$B$5661,0)),\"\",INDIRECT(\"'SorP'!$A$\"&MATCH($J506,SorP!$B$1:$B$5661,0))))","v":""},null,{"$f":"IF(C506=\"\",NA(),MATCH($B506&$C506,'Smelter Look-up'!$J:$J,0))","v":{"$error":"#N/A"}},null,0,null,null,null,""]
[null,{"$f":"IF(LEN(A507)=0,\"\",INDEX('Smelter Look-up'!$A:$A,MATCH($A507,'Smelter Look-up'!$E:$E,0)))","v":""},{"$f":"IF(LEN(A507)=0,\"\",INDEX('Smelter Look-up'!$C:$C,MATCH($A507,'Smelter Look-up'!$E:$E,0)))","v":""},null,{"$f":"IF(ISERROR($V507),\"\",OFFSET('Smelter Look-up'!$D$4,$V507-4,0)&\"\")","v":""},{"$f":"IF(ISERROR($V507),\"\",OFFSET('Smelter Look-up'!$E$4,$V507-4,0))","v":""},{"$f":"IF(C507=$X$4,\"Enter smelter details\",IF(ISERROR($V507),\"\",OFFSET('Smelter Look-up'!$F$4,$V507-4,0)))","v":""},{"$f":"IF(ISERROR($V507),\"\",OFFSET('Smelter Look-up'!$G$4,$V507-4,0))","v":""},{"$f":"IF(ISERROR($V507),\"\",OFFSET('Smelter Look-up'!$H$4,$V507-4,0))","v":""},{"$f":"IF(ISERROR($V507),\"\",OFFSET('Smelter Look-up'!$I$4,$V507-4,0))","v":""},{"$nulls":7},{"$f":"IF(ISERROR($V507),\"\",OFFSET('Smelter Look-up'!$C$4,$V507-4,0)&\"\")","v":""},"",{"$f":"IF(B507=\"\",\"\",IF(ISERROR(MATCH($J507,SorP!$B$1:$B$5661,0)),\"\",INDIRECT(\"'SorP'!$A$\"&MATCH($J507,SorP!$B$1:$B$5661,0))))","v":""},null,{"$f":"IF(C507=\"\",NA(),MATCH($B507&$C507,'Smelter Look-up'!$J:$J,0))","v":{"$error":"#N/A"}},null,0,null,null,null,""]
[null,{"$f":"IF(LEN(A508)=0,\"\",INDEX('Smelter Look-up'!$A:$A,MATCH($A508,'Smelter Look-up'!$E:$E,0)))","v":""},{"$f":"IF(LEN(A508)=0,\"\",INDEX('Smelter Look-up'!$C:$C,MATCH($A508,'Smelter Look-up'!$E:$E,0)))","v":""},null,{"$f":"IF(ISERROR($V508),\"\",OFFSET('Smelter Look-up'!$D$4,$V508-4,0)&\"\")","v":""},{"$f":"IF(ISERROR($V508),\"\",OFFSET('Smelter Look-up'!$E$4,$V508-4,0))","v":""},{"$f":"IF(C508=$X$4,\"Enter smelter details\",IF(ISERROR($V508),\"\",OFFSET('Smelter Look-up'!$F$4,$V508-4,0)))","v":""},{"$f":"IF(ISERROR($V508),\"\",OFFSET('Smelter Look-up'!$G$4,$V508-4,0))","v":""},{"$f":"IF(ISERROR($V508),\"\",OFFSET('Smelter Look-up'!$H$4,$V508-4,0))","v":""},{"$f":"IF(ISERROR($V508),\"\",OFFSET('Smelter Look-up'!$I$4,$V508-4,0))","v":""},{"$nulls":7},{"$f":"IF(ISERROR($V508),\"\",OFFSET('Smelter Look-up'!$C$4,$V508-4,0)&\"\")","v":""},"",{"$f":"IF(B508=\"\",\"\",IF(ISERROR(MATCH($J508,SorP!$B$1:$B$5661,0)),\"\",INDIRECT(\"'SorP'!$A$\"&MATCH($J508,SorP!$B$1:$B$5661,0))))","v":""},null,{"$f":"IF(C508=\"\",NA(),MATCH($B508&$C508,'Smelter Look-up'!$J:$J,0))","v":{"$error":"#N/A"}},null,0,null,null,null,""]
[null,{"$f":"IF(LEN(A509)=0,\"\",INDEX('Smelter Look-up'!$A:$A,MATCH($A509,'Smelter Look-up'!$E:$E,0)))","v":""},{"$f":"IF(LEN(A509)=0,\"\",INDEX('Smelter Look-up'!$C:$C,MATCH($A509,'Smelter Look-up'!$E:$E,0)))","v":""},null,{"$f":"IF(ISERROR($V509),\"\",OFFSET('Smelter Look-up'!$D$4,$V509-4,0)&\"\")","v":""},{"$f":"IF(ISERROR($V509),\"\",OFFSET('Smelter Look-up'!$E$4,$V509-4,0))","v":""},{"$f":"IF(C509=$X$4,\"Enter smelter details\",IF(ISERROR($V509),\"\",OFFSET('Smelter Look-up'!$F$4,$V509-4,0)))","v":""},{"$f":"IF(ISERROR($V509),\"\",OFFSET('Smelter Look-up'!$G$4,$V509-4,0))","v":""},{"$f":"IF(ISERROR($V509),\"\",OFFSET('Smelter Look-up'!$H$4,$V509-4,0))","v":""},{"$f":"IF(ISERROR($V509),\"\",OFFSET('Smelter Look-up'!$I$4,$V509-4,0))","v":""},{"$nulls":7},{"$f":"IF(ISERROR($V509),\"\",OFFSET('Smelter Look-up'!$C$4,$V509-4,0)&\"\")","v":""},"",{"$f":"IF(B509=\"\",\"\",IF(ISERROR(MATCH($J509,SorP!$B$1:$B$5661,0)),\"\",INDIRECT(\"'SorP'!$A$\"&MATCH($J509,SorP!$B$1:$B$5661,0))))","v":""},null,{"$f":"IF(C509=\"\",NA(),MATCH($B509&$C509,'Smelter Look-up'!$J:$J,0))","v":{"$error":"#N/A"}},null,0,null,null,null,""]
[null,{"$f":"IF(LEN(A510)=0,\"\",INDEX('Smelter Look-up'!$A:$A,MATCH($A510,'Smelter Look-up'!$E:$E,0)))","v":""},{"$f":"IF(LEN(A510)=0,\"\",INDEX('Smelter Look-up'!$C:$C,MATCH($A510,'Smelter Look-up'!$E:$E,0)))","v":""},null,{"$f":"IF(ISERROR($V510),\"\",OFFSET('Smelter Look-up'!$D$4,$V510-4,0)&\"\")","v":""},{"$f":"IF(ISERROR($V510),\"\",OFFSET('Smelter Look-up'!$E$4,$V510-4,0))","v":""},{"$f":"IF(C510=$X$4,\"Enter smelter details\",IF(ISERROR($V510),\"\",OFFSET('Smelter Look-up'!$F$4,$V510-4,0)))","v":""},{"$f":"IF(ISERROR($V510),\"\",OFFSET('Smelter Look-up'!$G$4,$V510-4,0))","v":""},{"$f":"IF(ISERROR($V510),\"\",OFFSET('Smelter Look-up'!$H$4,$V510-4,0))","v":""},{"$f":"IF(ISERROR($V510),\"\",OFFSET('Smelter Look-up'!$I$4,$V510-4,0))","v":""},{"$nulls":7},{"$f":"IF(ISERROR($V510),\"\",OFFSET('Smelter Look-up'!$C$4,$V510-4,0)&\"\")","v":""},"",{"$f":"IF(B510=\"\",\"\",IF(ISERROR(MATCH($J510,SorP!$B$1:$B$5661,0)),\"\",INDIRECT(\"'SorP'!$A$\"&MATCH($J510,SorP!$B$1:$B$5661,0))))","v":""},null,{"$f":"IF(C510=\"\",NA(),MATCH($B510&$C510,'Smelter Look-up'!$J:$J,0))","v":{"$error":"#N/A"}},null,0,null,null,null,""]
[null,{"$f":"IF(LEN(A511)=0,\"\",INDEX('Smelter Look-up'!$A:$A,MATCH($A511,'Smelter Look-up'!$E:$E,0)))","v":""},{"$f":"IF(LEN(A511)=0,\"\",INDEX('Smelter Look-up'!$C:$C,MATCH($A511,'Smelter Look-up'!$E:$E,0)))","v":""},null,{"$f":"IF(ISERROR($V511),\"\",OFFSET('Smelter Look-up'!$D$4,$V511-4,0)&\"\")","v":""},{"$f":"IF(ISERROR($V511),\"\",OFFSET('Smelter Look-up'!$E$4,$V511-4,0))","v":""},{"$f":"IF(C511=$X$4,\"Enter smelter details\",IF(ISERROR($V511),\"\",OFFSET('Smelter Look-up'!$F$4,$V511-4,0)))","v":""},{"$f":"IF(ISERROR($V511),\"\",OFFSET('Smelter Look-up'!$G$4,$V511-4,0))","v":""},{"$f":"IF(ISERROR($V511),\"\",OFFSET('Smelter Look-up'!$H$4,$V511-4,0))","v":""},{"$f":"IF(ISERROR($V511),\"\",OFFSET('Smelter Look-up'!$I$4,$V511-4,0))","v":""},{"$nulls":7},{"$f":"IF(ISERROR($V511),\"\",OFFSET('Smelter Look-up'!$C$4,$V511-4,0)&\"\")","v":""},"",{"$f":"IF(B511=\"\",\"\",IF(ISERROR(MATCH($J511,SorP!$B$1:$B$5661,0)),\"\",INDIRECT(\"'SorP'!$A$\"&MATCH($J511,SorP!$B$1:$B$5661,0))))","v":""},null,{"$f":"IF(C511=\"\",NA(),MATCH($B511&$C511,'Smelter Look-up'!$J:$J,0))","v":{"$error":"#N/A"}},null,{"$f":"IF(AND(C511=\"Smelter not listed\",OR(LEN(D511)=0,LEN(E511)=0)),1,0)","v":0},null,null,null,{"$f":"B511&C511","v":""}]
[null,{"$f":"IF(LEN(A512)=0,\"\",INDEX('Smelter Look-up'!$A:$A,MATCH($A512,'Smelter Look-up'!$E:$E,0)))","v":""},{"$f":"IF(LEN(A512)=0,\"\",INDEX('Smelter Look-up'!$C:$C,MATCH($A512,'Smelter Look-up'!$E:$E,0)))","v":""},null,{"$f":"IF(ISERROR($V512),\"\",OFFSET('Smelter Look-up'!$D$4,$V512-4,0)&\"\")","v":""},{"$f":"IF(ISERROR($V512),\"\",OFFSET('Smelter Look-up'!$E$4,$V512-4,0))","v":""},{"$f":"IF(C512=$X$4,\"Enter smelter details\",IF(ISERROR($V512),\"\",OFFSET('Smelter Look-up'!$F$4,$V512-4,0)))","v":""},{"$f":"IF(ISERROR($V512),\"\",OFFSET('Smelter Look-up'!$G$4,$V512-4,0))","v":""},{"$f":"IF(ISERROR($V512),\"\",OFFSET('Smelter Look-up'!$H$4,$V512-4,0))","v":""},{"$f":"IF(ISERROR($V512),\"\",OFFSET('Smelter Look-up'!$I$4,$V512-4,0))","v":""},{"$nulls":7},{"$f":"IF(ISERROR($V512),\"\",OFFSET('Smelter Look-up'!$C$4,$V512-4,0)&\"\")","v":""},{"$f":"IF(B512=\"\",\"\",IF(ISERROR(MATCH($E512,CL,0)),\"Unknown\",INDIRECT(\"'C'!$A$\"&MATCH($E512,CL,0)+1)))","v":""},{"$f":"IF(B512=\"\",\"\",IF(ISERROR(MATCH($J512,SorP!$B$1:$B$5661,0)),\"\",INDIRECT(\"'SorP'!$A$\"&MATCH($J512,SorP!$B$1:$B$5661,0))))","v":""},null,{"$f":"IF(C512=\"\",NA(),MATCH($B512&$C512,'Smelter Look-up'!$J:$J,0))","v":{"$error":"#N/A"}},null,0,null,null,null,""]
[null,{"$f":"IF(LEN(A513)=0,\"\",INDEX('Smelter Look-up'!$A:$A,MATCH($A513,'Smelter Look-up'!$E:$E,0)))","v":""},{"$f":"IF(LEN(A513)=0,\"\",INDEX('Smelter Look-up'!$C:$C,MATCH($A513,'Smelter Look-up'!$E:$E,0)))","v":""},null,{"$f":"IF(ISERROR($V513),\"\",OFFSET('Smelter Look-up'!$D$4,$V513-4,0)&\"\")","v":""},{"$f":"IF(ISERROR($V513),\"\",OFFSET('Smelter Look-up'!$E$4,$V513-4,0))","v":""},{"$f":"IF(C513=$X$4,\"Enter smelter details\",IF(ISERROR($V513),\"\",OFFSET('Smelter Look-up'!$F$4,$V513-4,0)))","v":""},{"$f":"IF(ISERROR($V513),\"\",OFFSET('Smelter Look-up'!$G$4,$V513-4,0))","v":""},{"$f":"IF(ISERROR($V513),\"\",OFFSET('Smelter Look-up'!$H$4,$V513-4,0))","v":""},{"$f":"IF(ISERROR($V513),\"\",OFFSET('Smelter Look-up'!$I$4,$V513-4,0))","v":""},{"$nulls":7},{"$f":"IF(ISERROR($V513),\"\",OFFSET('Smelter Look-up'!$C$4,$V513-4,0)&\"\")","v":""},"",{"$f":"IF(B513=\"\",\"\",IF(ISERROR(MATCH($J513,SorP!$B$1:$B$5661,0)),\"\",INDIRECT(\"'SorP'!$A$\"&MATCH($J513,SorP!$B$1:$B$5661,0))))","v":""},null,{"$f":"IF(C513=\"\",NA(),MATCH($B513&$C513,'Smelter Look-up'!$J:$J,0))","v":{"$error":"#N/A"}},null,0,null,null,null,""]
[null,{"$f":"IF(LEN(A514)=0,\"\",INDEX('Smelter Look-up'!$A:$A,MATCH($A514,'Smelter Look-up'!$E:$E,0)))","v":""},{"$f":"IF(LEN(A514)=0,\"\",INDEX('Smelter Look-up'!$C:$C,MATCH($A514,'Smelter Look-up'!$E:$E,0)))","v":""},null,{"$f":"IF(ISERROR($V514),\"\",OFFSET('Smelter Look-up'!$D$4,$V514-4,0)&\"\")","v":""},{"$f":"IF(ISERROR($V514),\"\",OFFSET('Smelter Look-up'!$E$4,$V514-4,0))","v":""},{"$f":"IF(C514=$X$4,\"Enter smelter details\",IF(ISERROR($V514),\"\",OFFSET('Smelter Look-up'!$F$4,$V514-4,0)))","v":""},{"$f":"IF(ISERROR($V514),\"\",OFFSET('Smelter Look-up'!$G$4,$V514-4,0))","v":""},{"$f":"IF(ISERROR($V514),\"\",OFFSET('Smelter Look-up'!$H$4,$V514-4,0))","v":""},{"$f":"IF(ISERROR($V514),\"\",OFFSET('Smelter Look-up'!$I$4,$V514-4,0))","v":""},{"$nulls":7},{"$f":"IF(ISERROR($V514),\"\",OFFSET('Smelter Look-up'!$C$4,$V514-4,0)&\"\")","v":""},"",{"$f":"IF(B514=\"\",\"\",IF(ISERROR(MATCH($J514,SorP!$B$1:$B$5661,0)),\"\",INDIRECT(\"'SorP'!$A$\"&MATCH($J514,SorP!$B$1:$B$5661,0))))","v":""},null,{"$f":"IF(C514=\"\",NA(),MATCH($B514&$C514,'Smelter Look-up'!$J:$J,0))","v":{"$error":"#N/A"}},null,0,null,null,null,""]
[null,{"$f":"IF(LEN(A515)=0,\"\",INDEX('Smelter Look-up'!$A:$A,MATCH($A515,'Smelter Look-up'!$E:$E,0)))","v":""},{"$f":"IF(LEN(A515)=0,\"\",INDEX('Smelter Look-up'!$C:$C,MATCH($A515,'Smelter Look-up'!$E:$E,0)))","v":""},null,{"$f":"IF(ISERROR($V515),\"\",OFFSET('Smelter Look-up'!$D$4,$V515-4,0)&\"\")","v":""},{"$f":"IF(ISERROR($V515),\"\",OFFSET('Smelter Look-up'!$E$4,$V515-4,0))","v":""},{"$f":"IF(C515=$X$4,\"Enter smelter details\",IF(ISERROR($V515),\"\",OFFSET('Smelter Look-up'!$F$4,$V515-4,0)))","v":""},{"$f":"IF(ISERROR($V515),\"\",OFFSET('Smelter Look-up'!$G$4,$V515-4,0))","v":""},{"$f":"IF(ISERROR($V515),\"\",OFFSET('Smelter Look-up'!$H$4,$V515-4,0))","v":""},{"$f":"IF(ISERROR($V515),\"\",OFFSET('Smelter Look-up'!$I$4,$V515-4,0))","v":""},{"$nulls":7},{"$f":"IF(ISERROR($V515),\"\",OFFSET('Smelter Look-up'!$C$4,$V515-4,0)&\"\")","v":""},"",{"$f":"IF(B515=\"\",\"\",IF(ISERROR(MATCH($J515,SorP!$B$1:$B$5661,0)),\"\",INDIRECT(\"'SorP'!$A$\"&MATCH($J515,SorP!$B$1:$B$5661,0))))","v":""},null,{"$f":"IF(C515=\"\",NA(),MATCH($B515&$C515,'Smelter Look-up'!$J:$J,0))","v":{"$error":"#N/A"}},null,0,null,null,null,""]
[null,{"$f":"IF(LEN(A516)=0,\"\",INDEX('Smelter Look-up'!$A:$A,MATCH($A516,'Smelter Look-up'!$E:$E,0)))","v":""},{"$f":"IF(LEN(A516)=0,\"\",INDEX('Smelter Look-up'!$C:$C,MATCH($A516,'Smelter Look-up'!$E:$E,0)))","v":""},null,{"$f":"IF(ISERROR($V516),\"\",OFFSET('Smelter Look-up'!$D$4,$V516-4,0)&\"\")","v":""},{"$f":"IF(ISERROR($V516),\"\",OFFSET('Smelter Look-up'!$E$4,$V516-4,0))","v":""},{"$f":"IF(C516=$X$4,\"Enter smelter details\",IF(ISERROR($V516),\"\",OFFSET('Smelter Look-up'!$F$4,$V516-4,0)))","v":""},{"$f":"IF(ISERROR($V516),\"\",OFFSET('Smelter Look-up'!$G$4,$V516-4,0))","v":""},{"$f":"IF(ISERROR($V516),\"\",OFFSET('Smelter Look-up'!$H$4,$V516-4,0))","v":""},{"$f":"IF(ISERROR($V516),\"\",OFFSET('Smelter Look-up'!$I$4,$V516-4,0))","v":""},{"$nulls":7},{"$f":"IF(ISERROR($V516),\"\",OFFSET('Smelter Look-up'!$C$4,$V516-4,0)&\"\")","v":""},"",{"$f":"IF(B516=\"\",\"\",IF(ISERROR(MATCH($J516,SorP!$B$1:$B$5661,0)),\"\",INDIRECT(\"'SorP'!$A$\"&MATCH($J516,SorP!$B$1:$B$5661,0))))","v":""},null,{"$f":"IF(C516=\"\",NA(),MATCH($B516&$C516,'Smelter Look-up'!$J:$J,0))","v":{"$error":"#N/A"}},null,0,null,null,null,""]
[null,{"$f":"IF(LEN(A517)=0,\"\",INDEX('Smelter Look-up'!$A:$A,MATCH($A517,'Smelter Look-up'!$E:$E,0)))","v":""},{"$f":"IF(LEN(A517)=0,\"\",INDEX('Smelter Look-up'!$C:$C,MATCH($A517,'Smelter Look-up'!$E:$E,0)))","v":""},null,{"$f":"IF(ISERROR($V517),\"\",OFFSET('Smelter Look-up'!$D$4,$V517-4,0)&\"\")","v":""},{"$f":"IF(ISERROR($V517),\"\",OFFSET('Smelter Look-up'!$E$4,$V517-4,0))","v":""},{"$f":"IF(C517=$X$4,\"Enter smelter details\",IF(ISERROR($V517),\"\",OFFSET('Smelter Look-up'!$F$4,$V517-4,0)))","v":""},{"$f":"IF(ISERROR($V517),\"\",OFFSET('Smelter Look-up'!$G$4,$V517-4,0))","v":""},{"$f":"IF(ISERROR($V517),\"\",OFFSET('Smelter Look-up'!$H$4,$V517-4,0))","v":""},{"$f":"IF(ISERROR($V517),\"\",OFFSET('Smelter Look-up'!$I$4,$V517-4,0))","v":""},{"$nulls":7},{"$f":"IF(ISERROR($V517),\"\",OFFSET('Smelter Look-up'!$C$4,$V517-4,0)&\"\")","v":""},"",{"$f":"IF(B517=\"\",\"\",IF(ISERROR(MATCH($J517,SorP!$B$1:$B$5661,0)),\"\",INDIRECT(\"'SorP'!$A$\"&MATCH($J517,SorP!$B$1:$B$5661,0))))","v":""},null,{"$f":"IF(C517=\"\",NA(),MATCH($B517&$C517,'Smelter Look-up'!$J:$J,0))","v":{"$error":"#N/A"}},null,0,null,null,null,""]
[null,{"$f":"IF(LEN(A518)=0,\"\",INDEX('Smelter Look-up'!$A:$A,MATCH($A518,'Smelter Look-up'!$E:$E,0)))","v":""},{"$f":"IF(LEN(A518)=0,\"\",INDEX('Smelter Look-up'!$C:$C,MATCH($A518,'Smelter Look-up'!$E:$E,0)))","v":""},null,{"$f":"IF(ISERROR($V518),\"\",OFFSET('Smelter Look-up'!$D$4,$V518-4,0)&\"\")","v":""},{"$f":"IF(ISERROR($V518),\"\",OFFSET('Smelter Look-up'!$E$4,$V518-4,0))","v":""},{"$f":"IF(C518=$X$4,\"Enter smelter details\",IF(ISERROR($V518),\"\",OFFSET('Smelter Look-up'!$F$4,$V518-4,0)))","v":""},{"$f":"IF(ISERROR($V518),\"\",OFFSET('Smelter Look-up'!$G$4,$V518-4,0))","v":""},{"$f":"IF(ISERROR($V518),\"\",OFFSET('Smelter Look-up'!$H$4,$V518-4,0))","v":""},{"$f":"IF(ISERROR($V518),\"\",OFFSET('Smelter Look-up'!$I$4,$V518-4,0))","v":""},{"$nulls":7},{"$f":"IF(ISERROR($V518),\"\",OFFSET('Smelter Look-up'!$C$4,$V518-4,0)&\"\")","v":""},"",{"$f":"IF(B518=\"\",\"\",IF(ISERROR(MATCH($J518,SorP!$B$1:$B$5661,0)),\"\",INDIRECT(\"'SorP'!$A$\"&MATCH($J518,SorP!$B$1:$B$5661,0))))","v":""},null,{"$f":"IF(C518=\"\",NA(),MATCH($B518&$C518,'Smelter Look-up'!$J:$J,0))","v":{"$error":"#N/A"}},null,0,null,null,null,""]
[null,{"$f":"IF(LEN(A519)=0,\"\",INDEX('Smelter Look-up'!$A:$A,MATCH($A519,'Smelter Look-up'!$E:$E,0)))","v":""},{"$f":"IF(LEN(A519)=0,\"\",INDEX('Smelter Look-up'!$C:$C,MATCH($A519,'Smelter Look-up'!$E:$E,0)))","v":""},null,{"$f":"IF(ISERROR($V519),\"\",OFFSET('Smelter Look-up'!$D$4,$V519-4,0)&\"\")","v":""},{"$f":"IF(ISERROR($V519),\"\",OFFSET('Smelter Look-up'!$E$4,$V519-4,0))","v":""},{"$f":"IF(C519=$X$4,\"Enter smelter details\",IF(ISERROR($V519),\"\",OFFSET('Smelter Look-up'!$F$4,$V519-4,0)))","v":""},{"$f":"IF(ISERROR($V519),\"\",OFFSET('Smelter Look-up'!$G$4,$V519-4,0))","v":""},{"$f":"IF(ISERROR($V519),\"\",OFFSET('Smelter Look-up'!$H$4,$V519-4,0))","v":""},{"$f":"IF(ISERROR($V519),\"\",OFFSET('Smelter Look-up'!$I$4,$V519-4,0))","v":""},{"$nulls":7},{"$f":"IF(ISERROR($V519),\"\",OFFSET('Smelter Look-up'!$C$4,$V519-4,0)&\"\")","v":""},"",{"$f":"IF(B519=\"\",\"\",IF(ISERROR(MATCH($J519,SorP!$B$1:$B$5661,0)),\"\",INDIRECT(\"'SorP'!$A$\"&MATCH($J519,SorP!$B$1:$B$5661,0))))","v":""},null,{"$f":"IF(C519=\"\",NA(),MATCH($B519&$C519,'Smelter Look-up'!$J:$J,0))","v":{"$error":"#N/A"}},null,0,null,null,null,""]
[null,{"$f":"IF(LEN(A520)=0,\"\",INDEX('Smelter Look-up'!$A:$A,MATCH($A520,'Smelter Look-up'!$E:$E,0)))","v":""},{"$f":"IF(LEN(A520)=0,\"\",INDEX('Smelter Look-up'!$C:$C,MATCH($A520,'Smelter Look-up'!$E:$E,0)))","v":""},null,{"$f":"IF(ISERROR($V520),\"\",OFFSET('Smelter Look-up'!$D$4,$V520-4,0)&\"\")","v":""},{"$f":"IF(ISERROR($V520),\"\",OFFSET('Smelter Look-up'!$E$4,$V520-4,0))","v":""},{"$f":"IF(C520=$X$4,\"Enter smelter details\",IF(ISERROR($V520),\"\",OFFSET('Smelter Look-up'!$F$4,$V520-4,0)))","v":""},{"$f":"IF(ISERROR($V520),\"\",OFFSET('Smelter Look-up'!$G$4,$V520-4,0))","v":""},{"$f":"IF(ISERROR($V520),\"\",OFFSET('Smelter Look-up'!$H$4,$V520-4,0))","v":""},{"$f":"IF(ISERROR($V520),\"\",OFFSET('Smelter Look-up'!$I$4,$V520-4,0))","v":""},{"$nulls":7},{"$f":"IF(ISERROR($V520),\"\",OFFSET('Smelter Look-up'!$C$4,$V520-4,0)&\"\")","v":""},"",{"$f":"IF(B520=\"\",\"\",IF(ISERROR(MATCH($J520,SorP!$B$1:$B$5661,0)),\"\",INDIRECT(\"'SorP'!$A$\"&MATCH($J520,SorP!$B$1:$B$5661,0))))","v":""},null,{"$f":"IF(C520=\"\",NA(),MATCH($B520&$C520,'Smelter Look-up'!$J:$J,0))","v":{"$error":"#N/A"}},null,0,null,null,null,""]
[null,{"$f":"IF(LEN(A521)=0,\"\",INDEX('Smelter Look-up'!$A:$A,MATCH($A521,'Smelter Look-up'!$E:$E,0)))","v":""},{"$f":"IF(LEN(A521)=0,\"\",INDEX('Smelter Look-up'!$C:$C,MATCH($A521,'Smelter Look-up'!$E:$E,0)))","v":""},null,{"$f":"IF(ISERROR($V521),\"\",OFFSET('Smelter Look-up'!$D$4,$V521-4,0)&\"\")","v":""},{"$f":"IF(ISERROR($V521),\"\",OFFSET('Smelter Look-up'!$E$4,$V521-4,0))","v":""},{"$f":"IF(C521=$X$4,\"Enter smelter details\",IF(ISERROR($V521),\"\",OFFSET('Smelter Look-up'!$F$4,$V521-4,0)))","v":""},{"$f":"IF(ISERROR($V521),\"\",OFFSET('Smelter Look-up'!$G$4,$V521-4,0))","v":""},{"$f":"IF(ISERROR($V521),\"\",OFFSET('Smelter Look-up'!$H$4,$V521-4,0))","v":""},{"$f":"IF(ISERROR($V521),\"\",OFFSET('Smelter Look-up'!$I$4,$V521-4,0))","v":""},{"$nulls":7},{"$f":"IF(ISERROR($V521),\"\",OFFSET('Smelter Look-up'!$C$4,$V521-4,0)&\"\")","v":""},"",{"$f":"IF(B521=\"\",\"\",IF(ISERROR(MATCH($J521,SorP!$B$1:$B$5661,0)),\"\",INDIRECT(\"'SorP'!$A$\"&MATCH($J521,SorP!$B$1:$B$5661,0))))","v":""},null,{"$f":"IF(C521=\"\",NA(),MATCH($B521&$C521,'Smelter Look-up'!$J:$J,0))","v":{"$error":"#N/A"}},null,0,null,null,null,""]
[null,{"$f":"IF(LEN(A522)=0,\"\",INDEX('Smelter Look-up'!$A:$A,MATCH($A522,'Smelter Look-up'!$E:$E,0)))","v":""},{"$f":"IF(LEN(A522)=0,\"\",INDEX('Smelter Look-up'!$C:$C,MATCH($A522,'Smelter Look-up'!$E:$E,0)))","v":""},null,{"$f":"IF(ISERROR($V522),\"\",OFFSET('Smelter Look-up'!$D$4,$V522-4,0)&\"\")","v":""},{"$f":"IF(ISERROR($V522),\"\",OFFSET('Smelter Look-up'!$E$4,$V522-4,0))","v":""},{"$f":"IF(C522=$X$4,\"Enter smelter details\",IF(ISERROR($V522),\"\",OFFSET('Smelter Look-up'!$F$4,$V522-4,0)))","v":""},{"$f":"IF(ISERROR($V522),\"\",OFFSET('Smelter Look-up'!$G$4,$V522-4,0))","v":""},{"$f":"IF(ISERROR($V522),\"\",OFFSET('Smelter Look-up'!$H$4,$V522-4,0))","v":""},{"$f":"IF(ISERROR($V522),\"\",OFFSET('Smelter Look-up'!$I$4,$V522-4,0))","v":""},{"$nulls":7},{"$f":"IF(ISERROR($V522),\"\",OFFSET('Smelter Look-up'!$C$4,$V522-4,0)&\"\")","v":""},"",{"$f":"IF(B522=\"\",\"\",IF(ISERROR(MATCH($J522,SorP!$B$1:$B$5661,0)),\"\",INDIRECT(\"'SorP'!$A$\"&MATCH($J522,SorP!$B$1:$B$5661,0))))","v":""},null,{"$f":"IF(C522=\"\",NA(),MATCH($B522&$C522,'Smelter Look-up'!$J:$J,0))","v":{"$error":"#N/A"}},null,0,null,null,null,""]
[null,{"$f":"IF(LEN(A523)=0,\"\",INDEX('Smelter Look-up'!$A:$A,MATCH($A523,'Smelter Look-up'!$E:$E,0)))","v":""},{"$f":"IF(LEN(A523)=0,\"\",INDEX('Smelter Look-up'!$C:$C,MATCH($A523,'Smelter Look-up'!$E:$E,0)))","v":""},null,{"$f":"IF(ISERROR($V523),\"\",OFFSET('Smelter Look-up'!$D$4,$V523-4,0)&\"\")","v":""},{"$f":"IF(ISERROR($V523),\"\",OFFSET('Smelter Look-up'!$E$4,$V523-4,0))","v":""},{"$f":"IF(C523=$X$4,\"Enter smelter details\",IF(ISERROR($V523),\"\",OFFSET('Smelter Look-up'!$F$4,$V523-4,0)))","v":""},{"$f":"IF(ISERROR($V523),\"\",OFFSET('Smelter Look-up'!$G$4,$V523-4,0))","v":""},{"$f":"IF(ISERROR($V523),\"\",OFFSET('Smelter Look-up'!$H$4,$V523-4,0))","v":""},{"$f":"IF(ISERROR($V523),\"\",OFFSET('Smelter Look-up'!$I$4,$V523-4,0))","v":""},{"$nulls":7},{"$f":"IF(ISERROR($V523),\"\",OFFSET('Smelter Look-up'!$C$4,$V523-4,0)&\"\")","v":""},"",{"$f":"IF(B523=\"\",\"\",IF(ISERROR(MATCH($J523,SorP!$B$1:$B$5661,0)),\"\",INDIRECT(\"'SorP'!$A$\"&MATCH($J523,SorP!$B$1:$B$5661,0))))","v":""},null,{"$f":"IF(C523=\"\",NA(),MATCH($B523&$C523,'Smelter Look-up'!$J:$J,0))","v":{"$error":"#N/A"}},null,0,null,null,null,""]
[null,{"$f":"IF(LEN(A524)=0,\"\",INDEX('Smelter Look-up'!$A:$A,MATCH($A524,'Smelter Look-up'!$E:$E,0)))","v":""},{"$f":"IF(LEN(A524)=0,\"\",INDEX('Smelter Look-up'!$C:$C,MATCH($A524,'Smelter Look-up'!$E:$E,0)))","v":""},null,{"$f":"IF(ISERROR($V524),\"\",OFFSET('Smelter Look-up'!$D$4,$V524-4,0)&\"\")","v":""},{"$f":"IF(ISERROR($V524),\"\",OFFSET('Smelter Look-up'!$E$4,$V524-4,0))","v":""},{"$f":"IF(C524=$X$4,\"Enter smelter details\",IF(ISERROR($V524),\"\",OFFSET('Smelter Look-up'!$F$4,$V524-4,0)))","v":""},{"$f":"IF(ISERROR($V524),\"\",OFFSET('Smelter Look-up'!$G$4,$V524-4,0))","v":""},{"$f":"IF(ISERROR($V524),\"\",OFFSET('Smelter Look-up'!$H$4,$V524-4,0))","v":""},{"$f":"IF(ISERROR($V524),\"\",OFFSET('Smelter Look-up'!$I$4,$V524-4,0))","v":""},{"$nulls":7},{"$f":"IF(ISERROR($V524),\"\",OFFSET('Smelter Look-up'!$C$4,$V524-4,0)&\"\")","v":""},"",{"$f":"IF(B524=\"\",\"\",IF(ISERROR(MATCH($J524,SorP!$B$1:$B$5661,0)),\"\",INDIRECT(\"'SorP'!$A$\"&MATCH($J524,SorP!$B$1:$B$5661,0))))","v":""},null,{"$f":"IF(C524=\"\",NA(),MATCH($B524&$C524,'Smelter Look-up'!$J:$J,0))","v":{"$error":"#N/A"}},null,0,null,null,null,""]
[null,{"$f":"IF(LEN(A525)=0,\"\",INDEX('Smelter Look-up'!$A:$A,MATCH($A525,'Smelter Look-up'!$E:$E,0)))","v":""},{"$f":"IF(LEN(A525)=0,\"\",INDEX('Smelter Look-up'!$C:$C,MATCH($A525,'Smelter Look-up'!$E:$E,0)))","v":""},null,{"$f":"IF(ISERROR($V525),\"\",OFFSET('Smelter Look-up'!$D$4,$V525-4,0)&\"\")","v":""},{"$f":"IF(ISERROR($V525),\"\",OFFSET('Smelter Look-up'!$E$4,$V525-4,0))","v":""},{"$f":"IF(C525=$X$4,\"Enter smelter details\",IF(ISERROR($V525),\"\",OFFSET('Smelter Look-up'!$F$4,$V525-4,0)))","v":""},{"$f":"IF(ISERROR($V525),\"\",OFFSET('Smelter Look-up'!$G$4,$V525-4,0))","v":""},{"$f":"IF(ISERROR($V525),\"\",OFFSET('Smelter Look-up'!$H$4,$V525-4,0))","v":""},{"$f":"IF(ISERROR($V525),\"\",OFFSET('Smelter Look-up'!$I$4,$V525-4,0))","v":""},{"$nulls":7},{"$f":"IF(ISERROR($V525),\"\",OFFSET('Smelter Look-up'!$C$4,$V525-4,0)&\"\")","v":""},"",{"$f":"IF(B525=\"\",\"\",IF(ISERROR(MATCH($J525,SorP!$B$1:$B$5661,0)),\"\",INDIRECT(\"'SorP'!$A$\"&MATCH($J525,SorP!$B$1:$B$5661,0))))","v":""},null,{"$f":"IF(C525=\"\",NA(),MATCH($B525&$C525,'Smelter Look-up'!$J:$J,0))","v":{"$error":"#N/A"}},null,0,null,null,null,""]
[null,{"$f":"IF(LEN(A526)=0,\"\",INDEX('Smelter Look-up'!$A:$A,MATCH($A526,'Smelter Look-up'!$E:$E,0)))","v":""},{"$f":"IF(LEN(A526)=0,\"\",INDEX('Smelter Look-up'!$C:$C,MATCH($A526,'Smelter Look-up'!$E:$E,0)))","v":""},null,{"$f":"IF(ISERROR($V526),\"\",OFFSET('Smelter Look-up'!$D$4,$V526-4,0)&\"\")","v":""},{"$f":"IF(ISERROR($V526),\"\",OFFSET('Smelter Look-up'!$E$4,$V526-4,0))","v":""},{"$f":"IF(C526=$X$4,\"Enter smelter details\",IF(ISERROR($V526),\"\",OFFSET('Smelter Look-up'!$F$4,$V526-4,0)))","v":""},{"$f":"IF(ISERROR($V526),\"\",OFFSET('Smelter Look-up'!$G$4,$V526-4,0))","v":""},{"$f":"IF(ISERROR($V526),\"\",OFFSET('Smelter Look-up'!$H$4,$V526-4,0))","v":""},{"$f":"IF(ISERROR($V526),\"\",OFFSET('Smelter Look-up'!$I$4,$V526-4,0))","v":""},{"$nulls":7},{"$f":"IF(ISERROR($V526),\"\",OFFSET('Smelter Look-up'!$C$4,$V526-4,0)&\"\")","v":""},"",{"$f":"IF(B526=\"\",\"\",IF(ISERROR(MATCH($J526,SorP!$B$1:$B$5661,0)),\"\",INDIRECT(\"'SorP'!$A$\"&MATCH($J526,SorP!$B$1:$B$5661,0))))","v":""},null,{"$f":"IF(C526=\"\",NA(),MATCH($B526&$C526,'Smelter Look-up'!$J:$J,0))","v":{"$error":"#N/A"}},null,0,null,null,null,""]
[null,{"$f":"IF(LEN(A527)=0,\"\",INDEX('Smelter Look-up'!$A:$A,MATCH($A527,'Smelter Look-up'!$E:$E,0)))","v":""},{"$f":"IF(LEN(A527)=0,\"\",INDEX('Smelter Look-up'!$C:$C,MATCH($A527,'Smelter Look-up'!$E:$E,0)))","v":""},null,{"$f":"IF(ISERROR($V527),\"\",OFFSET('Smelter Look-up'!$D$4,$V527-4,0)&\"\")","v":""},{"$f":"IF(ISERROR($V527),\"\",OFFSET('Smelter Look-up'!$E$4,$V527-4,0))","v":""},{"$f":"IF(C527=$X$4,\"Enter smelter details\",IF(ISERROR($V527),\"\",OFFSET('Smelter Look-up'!$F$4,$V527-4,0)))","v":""},{"$f":"IF(ISERROR($V527),\"\",OFFSET('Smelter Look-up'!$G$4,$V527-4,0))","v":""},{"$f":"IF(ISERROR($V527),\"\",OFFSET('Smelter Look-up'!$H$4,$V527-4,0))","v":""},{"$f":"IF(ISERROR($V527),\"\",OFFSET('Smelter Look-up'!$I$4,$V527-4,0))","v":""},{"$nulls":7},{"$f":"IF(ISERROR($V527),\"\",OFFSET('Smelter Look-up'!$C$4,$V527-4,0)&\"\")","v":""},"",{"$f":"IF(B527=\"\",\"\",IF(ISERROR(MATCH($J527,SorP!$B$1:$B$5661,0)),\"\",INDIRECT(\"'SorP'!$A$\"&MATCH($J527,SorP!$B$1:$B$5661,0))))","v":""},null,{"$f":"IF(C527=\"\",NA(),MATCH($B527&$C527,'Smelter Look-up'!$J:$J,0))","v":{"$error":"#N/A"}},null,0,null,null,null,""]
[null,{"$f":"IF(LEN(A528)=0,\"\",INDEX('Smelter Look-up'!$A:$A,MATCH($A528,'Smelter Look-up'!$E:$E,0)))","v":""},{"$f":"IF(LEN(A528)=0,\"\",INDEX('Smelter Look-up'!$C:$C,MATCH($A528,'Smelter Look-up'!$E:$E,0)))","v":""},null,{"$f":"IF(ISERROR($V528),\"\",OFFSET('Smelter Look-up'!$D$4,$V528-4,0)&\"\")","v":""},{"$f":"IF(ISERROR($V528),\"\",OFFSET('Smelter Look-up'!$E$4,$V528-4,0))","v":""},{"$f":"IF(C528=$X$4,\"Enter smelter details\",IF(ISERROR($V528),\"\",OFFSET('Smelter Look-up'!$F$4,$V528-4,0)))","v":""},{"$f":"IF(ISERROR($V528),\"\",OFFSET('Smelter Look-up'!$G$4,$V528-4,0))","v":""},{"$f":"IF(ISERROR($V528),\"\",OFFSET('Smelter Look-up'!$H$4,$V528-4,0))","v":""},{"$f":"IF(ISERROR($V528),\"\",OFFSET('Smelter Look-up'!$I$4,$V528-4,0))","v":""},{"$nulls":7},{"$f":"IF(ISERROR($V528),\"\",OFFSET('Smelter Look-up'!$C$4,$V528-4,0)&\"\")","v":""},"",{"$f":"IF(B528=\"\",\"\",IF(ISERROR(MATCH($J528,SorP!$B$1:$B$5661,0)),\"\",INDIRECT(\"'SorP'!$A$\"&MATCH($J528,SorP!$B$1:$B$5661,0))))","v":""},null,{"$f":"IF(C528=\"\",NA(),MATCH($B528&$C528,'Smelter Look-up'!$J:$J,0))","v":{"$error":"#N/A"}},null,0,null,null,null,""]
[null,{"$f":"IF(LEN(A529)=0,\"\",INDEX('Smelter Look-up'!$A:$A,MATCH($A529,'Smelter Look-up'!$E:$E,0)))","v":""},{"$f":"IF(LEN(A529)=0,\"\",INDEX('Smelter Look-up'!$C:$C,MATCH($A529,'Smelter Look-up'!$E:$E,0)))","v":""},null,{"$f":"IF(ISERROR($V529),\"\",OFFSET('Smelter Look-up'!$D$4,$V529-4,0)&\"\")","v":""},{"$f":"IF(ISERROR($V529),\"\",OFFSET('Smelter Look-up'!$E$4,$V529-4,0))","v":""},{"$f":"IF(C529=$X$4,\"Enter smelter details\",IF(ISERROR($V529),\"\",OFFSET('Smelter Look-up'!$F$4,$V529-4,0)))","v":""},{"$f":"IF(ISERROR($V529),\"\",OFFSET('Smelter Look-up'!$G$4,$V529-4,0))","v":""},{"$f":"IF(ISERROR($V529),\"\",OFFSET('Smelter Look-up'!$H$4,$V529-4,0))","v":""},{"$f":"IF(ISERROR($V529),\"\",OFFSET('Smelter Look-up'!$I$4,$V529-4,0))","v":""},{"$nulls":7},{"$f":"IF(ISERROR($V529),\"\",OFFSET('Smelter Look-up'!$C$4,$V529-4,0)&\"\")","v":""},"",{"$f":"IF(B529=\"\",\"\",IF(ISERROR(MATCH($J529,SorP!$B$1:$B$5661,0)),\"\",INDIRECT(\"'SorP'!$A$\"&MATCH($J529,SorP!$B$1:$B$5661,0))))","v":""},null,{"$f":"IF(C529=\"\",NA(),MATCH($B529&$C529,'Smelter Look-up'!$J:$J,0))","v":{"$error":"#N/A"}},null,0,null,null,null,""]
[null,{"$f":"IF(LEN(A530)=0,\"\",INDEX('Smelter Look-up'!$A:$A,MATCH($A530,'Smelter Look-up'!$E:$E,0)))","v":""},{"$f":"IF(LEN(A530)=0,\"\",INDEX('Smelter Look-up'!$C:$C,MATCH($A530,'Smelter Look-up'!$E:$E,0)))","v":""},null,{"$f":"IF(ISERROR($V530),\"\",OFFSET('Smelter Look-up'!$D$4,$V530-4,0)&\"\")","v":""},{"$f":"IF(ISERROR($V530),\"\",OFFSET('Smelter Look-up'!$E$4,$V530-4,0))","v":""},{"$f":"IF(C530=$X$4,\"Enter smelter details\",IF(ISERROR($V530),\"\",OFFSET('Smelter Look-up'!$F$4,$V530-4,0)))","v":""},{"$f":"IF(ISERROR($V530),\"\",OFFSET('Smelter Look-up'!$G$4,$V530-4,0))","v":""},{"$f":"IF(ISERROR($V530),\"\",OFFSET('Smelter Look-up'!$H$4,$V530-4,0))","v":""},{"$f":"IF(ISERROR($V530),\"\",OFFSET('Smelter Look-up'!$I$4,$V530-4,0))","v":""},{"$nulls":7},{"$f":"IF(ISERROR($V530),\"\",OFFSET('Smelter Look-up'!$C$4,$V530-4,0)&\"\")","v":""},"",{"$f":"IF(B530=\"\",\"\",IF(ISERROR(MATCH($J530,SorP!$B$1:$B$5661,0)),\"\",INDIRECT(\"'SorP'!$A$\"&MATCH($J530,SorP!$B$1:$B$5661,0))))","v":""},null,{"$f":"IF(C530=\"\",NA(),MATCH($B530&$C530,'Smelter Look-up'!$J:$J,0))","v":{"$error":"#N/A"}},null,0,null,null,null,""]
[null,{"$f":"IF(LEN(A531)=0,\"\",INDEX('Smelter Look-up'!$A:$A,MATCH($A531,'Smelter Look-up'!$E:$E,0)))","v":""},{"$f":"IF(LEN(A531)=0,\"\",INDEX('Smelter Look-up'!$C:$C,MATCH($A531,'Smelter Look-up'!$E:$E,0)))","v":""},null,{"$f":"IF(ISERROR($V531),\"\",OFFSET('Smelter Look-up'!$D$4,$V531-4,0)&\"\")","v":""},{"$f":"IF(ISERROR($V531),\"\",OFFSET('Smelter Look-up'!$E$4,$V531-4,0))","v":""},{"$f":"IF(C531=$X$4,\"Enter smelter details\",IF(ISERROR($V531),\"\",OFFSET('Smelter Look-up'!$F$4,$V531-4,0)))","v":""},{"$f":"IF(ISERROR($V531),\"\",OFFSET('Smelter Look-up'!$G$4,$V531-4,0))","v":""},{"$f":"IF(ISERROR($V531),\"\",OFFSET('Smelter Look-up'!$H$4,$V531-4,0))","v":""},{"$f":"IF(ISERROR($V531),\"\",OFFSET('Smelter Look-up'!$I$4,$V531-4,0))","v":""},{"$nulls":7},{"$f":"IF(ISERROR($V531),\"\",OFFSET('Smelter Look-up'!$C$4,$V531-4,0)&\"\")","v":""},"",{"$f":"IF(B531=\"\",\"\",IF(ISERROR(MATCH($J531,SorP!$B$1:$B$5661,0)),\"\",INDIRECT(\"'SorP'!$A$\"&MATCH($J531,SorP!$B$1:$B$5661,0))))","v":""},null,{"$f":"IF(C531=\"\",NA(),MATCH($B531&$C531,'Smelter Look-up'!$J:$J,0))","v":{"$error":"#N/A"}},null,0,null,null,null,""]
[null,{"$f":"IF(LEN(A532)=0,\"\",INDEX('Smelter Look-up'!$A:$A,MATCH($A532,'Smelter Look-up'!$E:$E,0)))","v":""},{"$f":"IF(LEN(A532)=0,\"\",INDEX('Smelter Look-up'!$C:$C,MATCH($A532,'Smelter Look-up'!$E:$E,0)))","v":""},null,{"$f":"IF(ISERROR($V532),\"\",OFFSET('Smelter Look-up'!$D$4,$V532-4,0)&\"\")","v":""},{"$f":"IF(ISERROR($V532),\"\",OFFSET('Smelter Look-up'!$E$4,$V532-4,0))","v":""},{"$f":"IF(C532=$X$4,\"Enter smelter details\",IF(ISERROR($V532),\"\",OFFSET('Smelter Look-up'!$F$4,$V532-4,0)))","v":""},{"$f":"IF(ISERROR($V532),\"\",OFFSET('Smelter Look-up'!$G$4,$V532-4,0))","v":""},{"$f":"IF(ISERROR($V532),\"\",OFFSET('Smelter Look-up'!$H$4,$V532-4,0))","v":""},{"$f":"IF(ISERROR($V532),\"\",OFFSET('Smelter Look-up'!$I$4,$V532-4,0))","v":""},{"$nulls":7},{"$f":"IF(ISERROR($V532),\"\",OFFSET('Smelter Look-up'!$C$4,$V532-4,0)&\"\")","v":""},"",{"$f":"IF(B532=\"\",\"\",IF(ISERROR(MATCH($J532,SorP!$B$1:$B$5661,0)),\"\",INDIRECT(\"'SorP'!$A$\"&MATCH($J532,SorP!$B$1:$B$5661,0))))","v":""},null,{"$f":"IF(C532=\"\",NA(),MATCH($B532&$C532,'Smelter Look-up'!$J:$J,0))","v":{"$error":"#N/A"}},null,0,null,null,null,""]
[null,{"$f":"IF(LEN(A533)=0,\"\",INDEX('Smelter Look-up'!$A:$A,MATCH($A533,'Smelter Look-up'!$E:$E,0)))","v":""},{"$f":"IF(LEN(A533)=0,\"\",INDEX('Smelter Look-up'!$C:$C,MATCH($A533,'Smelter Look-up'!$E:$E,0)))","v":""},null,{"$f":"IF(ISERROR($V533),\"\",OFFSET('Smelter Look-up'!$D$4,$V533-4,0)&\"\")","v":""},{"$f":"IF(ISERROR($V533),\"\",OFFSET('Smelter Look-up'!$E$4,$V533-4,0))","v":""},{"$f":"IF(C533=$X$4,\"Enter smelter details\",IF(ISERROR($V533),\"\",OFFSET('Smelter Look-up'!$F$4,$V533-4,0)))","v":""},{"$f":"IF(ISERROR($V533),\"\",OFFSET('Smelter Look-up'!$G$4,$V533-4,0))","v":""},{"$f":"IF(ISERROR($V533),\"\",OFFSET('Smelter Look-up'!$H$4,$V533-4,0))","v":""},{"$f":"IF(ISERROR($V533),\"\",OFFSET('Smelter Look-up'!$I$4,$V533-4,0))","v":""},{"$nulls":7},{"$f":"IF(ISERROR($V533),\"\",OFFSET('Smelter Look-up'!$C$4,$V533-4,0)&\"\")","v":""},"",{"$f":"IF(B533=\"\",\"\",IF(ISERROR(MATCH($J533,SorP!$B$1:$B$5661,0)),\"\",INDIRECT(\"'SorP'!$A$\"&MATCH($J533,SorP!$B$1:$B$5661,0))))","v":""},null,{"$f":"IF(C533=\"\",NA(),MATCH($B533&$C533,'Smelter Look-up'!$J:$J,0))","v":{"$error":"#N/A"}},null,0,null,null,null,""]
[null,{"$f":"IF(LEN(A534)=0,\"\",INDEX('Smelter Look-up'!$A:$A,MATCH($A534,'Smelter Look-up'!$E:$E,0)))","v":""},{"$f":"IF(LEN(A534)=0,\"\",INDEX('Smelter Look-up'!$C:$C,MATCH($A534,'Smelter Look-up'!$E:$E,0)))","v":""},null,{"$f":"IF(ISERROR($V534),\"\",OFFSET('Smelter Look-up'!$D$4,$V534-4,0)&\"\")","v":""},{"$f":"IF(ISERROR($V534),\"\",OFFSET('Smelter Look-up'!$E$4,$V534-4,0))","v":""},{"$f":"IF(C534=$X$4,\"Enter smelter details\",IF(ISERROR($V534),\"\",OFFSET('Smelter Look-up'!$F$4,$V534-4,0)))","v":""},{"$f":"IF(ISERROR($V534),\"\",OFFSET('Smelter Look-up'!$G$4,$V534-4,0))","v":""},{"$f":"IF(ISERROR($V534),\"\",OFFSET('Smelter Look-up'!$H$4,$V534-4,0))","v":""},{"$f":"IF(ISERROR($V534),\"\",OFFSET('Smelter Look-up'!$I$4,$V534-4,0))","v":""},{"$nulls":7},{"$f":"IF(ISERROR($V534),\"\",OFFSET('Smelter Look-up'!$C$4,$V534-4,0)&\"\")","v":""},"",{"$f":"IF(B534=\"\",\"\",IF(ISERROR(MATCH($J534,SorP!$B$1:$B$5661,0)),\"\",INDIRECT(\"'SorP'!$A$\"&MATCH($J534,SorP!$B$1:$B$5661,0))))","v":""},null,{"$f":"IF(C534=\"\",NA(),MATCH($B534&$C534,'Smelter Look-up'!$J:$J,0))","v":{"$error":"#N/A"}},null,0,null,null,null,""]
[null,{"$f":"IF(LEN(A535)=0,\"\",INDEX('Smelter Look-up'!$A:$A,MATCH($A535,'Smelter Look-up'!$E:$E,0)))","v":""},{"$f":"IF(LEN(A535)=0,\"\",INDEX('Smelter Look-up'!$C:$C,MATCH($A535,'Smelter Look-up'!$E:$E,0)))","v":""},null,{"$f":"IF(ISERROR($V535),\"\",OFFSET('Smelter Look-up'!$D$4,$V535-4,0)&\"\")","v":""},{"$f":"IF(ISERROR($V535),\"\",OFFSET('Smelter Look-up'!$E$4,$V535-4,0))","v":""},{"$f":"IF(C535=$X$4,\"Enter smelter details\",IF(ISERROR($V535),\"\",OFFSET('Smelter Look-up'!$F$4,$V535-4,0)))","v":""},{"$f":"IF(ISERROR($V535),\"\",OFFSET('Smelter Look-up'!$G$4,$V535-4,0))","v":""},{"$f":"IF(ISERROR($V535),\"\",OFFSET('Smelter Look-up'!$H$4,$V535-4,0))","v":""},{"$f":"IF(ISERROR($V535),\"\",OFFSET('Smelter Look-up'!$I$4,$V535-4,0))","v":""},{"$nulls":7},{"$f":"IF(ISERROR($V535),\"\",OFFSET('Smelter Look-up'!$C$4,$V535-4,0)&\"\")","v":""},"",{"$f":"IF(B535=\"\",\"\",IF(ISERROR(MATCH($J535,SorP!$B$1:$B$5661,0)),\"\",INDIRECT(\"'SorP'!$A$\"&MATCH($J535,SorP!$B$1:$B$5661,0))))","v":""},null,{"$f":"IF(C535=\"\",NA(),MATCH($B535&$C535,'Smelter Look-up'!$J:$J,0))","v":{"$error":"#N/A"}},null,0,null,null,null,""]
[null,{"$f":"IF(LEN(A536)=0,\"\",INDEX('Smelter Look-up'!$A:$A,MATCH($A536,'Smelter Look-up'!$E:$E,0)))","v":""},{"$f":"IF(LEN(A536)=0,\"\",INDEX('Smelter Look-up'!$C:$C,MATCH($A536,'Smelter Look-up'!$E:$E,0)))","v":""},null,{"$f":"IF(ISERROR($V536),\"\",OFFSET('Smelter Look-up'!$D$4,$V536-4,0)&\"\")","v":""},{"$f":"IF(ISERROR($V536),\"\",OFFSET('Smelter Look-up'!$E$4,$V536-4,0))","v":""},{"$f":"IF(C536=$X$4,\"Enter smelter details\",IF(ISERROR($V536),\"\",OFFSET('Smelter Look-up'!$F$4,$V536-4,0)))","v":""},{"$f":"IF(ISERROR($V536),\"\",OFFSET('Smelter Look-up'!$G$4,$V536-4,0))","v":""},{"$f":"IF(ISERROR($V536),\"\",OFFSET('Smelter Look-up'!$H$4,$V536-4,0))","v":""},{"$f":"IF(ISERROR($V536),\"\",OFFSET('Smelter Look-up'!$I$4,$V536-4,0))","v":""},{"$nulls":7},{"$f":"IF(ISERROR($V536),\"\",OFFSET('Smelter Look-up'!$C$4,$V536-4,0)&\"\")","v":""},"",{"$f":"IF(B536=\"\",\"\",IF(ISERROR(MATCH($J536,SorP!$B$1:$B$5661,0)),\"\",INDIRECT(\"'SorP'!$A$\"&MATCH($J536,SorP!$B$1:$B$5661,0))))","v":""},null,{"$f":"IF(C536=\"\",NA(),MATCH($B536&$C536,'Smelter Look-up'!$J:$J,0))","v":{"$error":"#N/A"}},null,0,null,null,null,""]
[null,{"$f":"IF(LEN(A537)=0,\"\",INDEX('Smelter Look-up'!$A:$A,MATCH($A537,'Smelter Look-up'!$E:$E,0)))","v":""},{"$f":"IF(LEN(A537)=0,\"\",INDEX('Smelter Look-up'!$C:$C,MATCH($A537,'Smelter Look-up'!$E:$E,0)))","v":""},null,{"$f":"IF(ISERROR($V537),\"\",OFFSET('Smelter Look-up'!$D$4,$V537-4,0)&\"\")","v":""},{"$f":"IF(ISERROR($V537),\"\",OFFSET('Smelter Look-up'!$E$4,$V537-4,0))","v":""},{"$f":"IF(C537=$X$4,\"Enter smelter details\",IF(ISERROR($V537),\"\",OFFSET('Smelter Look-up'!$F$4,$V537-4,0)))","v":""},{"$f":"IF(ISERROR($V537),\"\",OFFSET('Smelter Look-up'!$G$4,$V537-4,0))","v":""},{"$f":"IF(ISERROR($V537),\"\",OFFSET('Smelter Look-up'!$H$4,$V537-4,0))","v":""},{"$f":"IF(ISERROR($V537),\"\",OFFSET('Smelter Look-up'!$I$4,$V537-4,0))","v":""},{"$nulls":7},{"$f":"IF(ISERROR($V537),\"\",OFFSET('Smelter Look-up'!$C$4,$V537-4,0)&\"\")","v":""},"",{"$f":"IF(B537=\"\",\"\",IF(ISERROR(MATCH($J537,SorP!$B$1:$B$5661,0)),\"\",INDIRECT(\"'SorP'!$A$\"&MATCH($J537,SorP!$B$1:$B$5661,0))))","v":""},null,{"$f":"IF(C537=\"\",NA(),MATCH($B537&$C537,'Smelter Look-up'!$J:$J,0))","v":{"$error":"#N/A"}},null,0,null,null,null,""]
[null,{"$f":"IF(LEN(A538)=0,\"\",INDEX('Smelter Look-up'!$A:$A,MATCH($A538,'Smelter Look-up'!$E:$E,0)))","v":""},{"$f":"IF(LEN(A538)=0,\"\",INDEX('Smelter Look-up'!$C:$C,MATCH($A538,'Smelter Look-up'!$E:$E,0)))","v":""},null,{"$f":"IF(ISERROR($V538),\"\",OFFSET('Smelter Look-up'!$D$4,$V538-4,0)&\"\")","v":""},{"$f":"IF(ISERROR($V538),\"\",OFFSET('Smelter Look-up'!$E$4,$V538-4,0))","v":""},{"$f":"IF(C538=$X$4,\"Enter smelter details\",IF(ISERROR($V538),\"\",OFFSET('Smelter Look-up'!$F$4,$V538-4,0)))","v":""},{"$f":"IF(ISERROR($V538),\"\",OFFSET('Smelter Look-up'!$G$4,$V538-4,0))","v":""},{"$f":"IF(ISERROR($V538),\"\",OFFSET('Smelter Look-up'!$H$4,$V538-4,0))","v":""},{"$f":"IF(ISERROR($V538),\"\",OFFSET('Smelter Look-up'!$I$4,$V538-4,0))","v":""},{"$nulls":7},{"$f":"IF(ISERROR($V538),\"\",OFFSET('Smelter Look-up'!$C$4,$V538-4,0)&\"\")","v":""},"",{"$f":"IF(B538=\"\",\"\",IF(ISERROR(MATCH($J538,SorP!$B$1:$B$5661,0)),\"\",INDIRECT(\"'SorP'!$A$\"&MATCH($J538,SorP!$B$1:$B$5661,0))))","v":""},null,{"$f":"IF(C538=\"\",NA(),MATCH($B538&$C538,'Smelter Look-up'!$J:$J,0))","v":{"$error":"#N/A"}},null,0,null,null,null,""]
[null,{"$f":"IF(LEN(A539)=0,\"\",INDEX('Smelter Look-up'!$A:$A,MATCH($A539,'Smelter Look-up'!$E:$E,0)))","v":""},{"$f":"IF(LEN(A539)=0,\"\",INDEX('Smelter Look-up'!$C:$C,MATCH($A539,'Smelter Look-up'!$E:$E,0)))","v":""},null,{"$f":"IF(ISERROR($V539),\"\",OFFSET('Smelter Look-up'!$D$4,$V539-4,0)&\"\")","v":""},{"$f":"IF(ISERROR($V539),\"\",OFFSET('Smelter Look-up'!$E$4,$V539-4,0))","v":""},{"$f":"IF(C539=$X$4,\"Enter smelter details\",IF(ISERROR($V539),\"\",OFFSET('Smelter Look-up'!$F$4,$V539-4,0)))","v":""},{"$f":"IF(ISERROR($V539),\"\",OFFSET('Smelter Look-up'!$G$4,$V539-4,0))","v":""},{"$f":"IF(ISERROR($V539),\"\",OFFSET('Smelter Look-up'!$H$4,$V539-4,0))","v":""},{"$f":"IF(ISERROR($V539),\"\",OFFSET('Smelter Look-up'!$I$4,$V539-4,0))","v":""},{"$nulls":7},{"$f":"IF(ISERROR($V539),\"\",OFFSET('Smelter Look-up'!$C$4,$V539-4,0)&\"\")","v":""},"",{"$f":"IF(B539=\"\",\"\",IF(ISERROR(MATCH($J539,SorP!$B$1:$B$5661,0)),\"\",INDIRECT(\"'SorP'!$A$\"&MATCH($J539,SorP!$B$1:$B$5661,0))))","v":""},null,{"$f":"IF(C539=\"\",NA(),MATCH($B539&$C539,'Smelter Look-up'!$J:$J,0))","v":{"$error":"#N/A"}},null,0,null,null,null,""]
[null,{"$f":"IF(LEN(A540)=0,\"\",INDEX('Smelter Look-up'!$A:$A,MATCH($A540,'Smelter Look-up'!$E:$E,0)))","v":""},{"$f":"IF(LEN(A540)=0,\"\",INDEX('Smelter Look-up'!$C:$C,MATCH($A540,'Smelter Look-up'!$E:$E,0)))","v":""},null,{"$f":"IF(ISERROR($V540),\"\",OFFSET('Smelter Look-up'!$D$4,$V540-4,0)&\"\")","v":""},{"$f":"IF(ISERROR($V540),\"\",OFFSET('Smelter Look-up'!$E$4,$V540-4,0))","v":""},{"$f":"IF(C540=$X$4,\"Enter smelter details\",IF(ISERROR($V540),\"\",OFFSET('Smelter Look-up'!$F$4,$V540-4,0)))","v":""},{"$f":"IF(ISERROR($V540),\"\",OFFSET('Smelter Look-up'!$G$4,$V540-4,0))","v":""},{"$f":"IF(ISERROR($V540),\"\",OFFSET('Smelter Look-up'!$H$4,$V540-4,0))","v":""},{"$f":"IF(ISERROR($V540),\"\",OFFSET('Smelter Look-up'!$I$4,$V540-4,0))","v":""},{"$nulls":7},{"$f":"IF(ISERROR($V540),\"\",OFFSET('Smelter Look-up'!$C$4,$V540-4,0)&\"\")","v":""},"",{"$f":"IF(B540=\"\",\"\",IF(ISERROR(MATCH($J540,SorP!$B$1:$B$5661,0)),\"\",INDIRECT(\"'SorP'!$A$\"&MATCH($J540,SorP!$B$1:$B$5661,0))))","v":""},null,{"$f":"IF(C540=\"\",NA(),MATCH($B540&$C540,'Smelter Look-up'!$J:$J,0))","v":{"$error":"#N/A"}},null,0,null,null,null,""]
[null,{"$f":"IF(LEN(A541)=0,\"\",INDEX('Smelter Look-up'!$A:$A,MATCH($A541,'Smelter Look-up'!$E:$E,0)))","v":""},{"$f":"IF(LEN(A541)=0,\"\",INDEX('Smelter Look-up'!$C:$C,MATCH($A541,'Smelter Look-up'!$E:$E,0)))","v":""},null,{"$f":"IF(ISERROR($V541),\"\",OFFSET('Smelter Look-up'!$D$4,$V541-4,0)&\"\")","v":""},{"$f":"IF(ISERROR($V541),\"\",OFFSET('Smelter Look-up'!$E$4,$V541-4,0))","v":""},{"$f":"IF(C541=$X$4,\"Enter smelter details\",IF(ISERROR($V541),\"\",OFFSET('Smelter Look-up'!$F$4,$V541-4,0)))","v":""},{"$f":"IF(ISERROR($V541),\"\",OFFSET('Smelter Look-up'!$G$4,$V541-4,0))","v":""},{"$f":"IF(ISERROR($V541),\"\",OFFSET('Smelter Look-up'!$H$4,$V541-4,0))","v":""},{"$f":"IF(ISERROR($V541),\"\",OFFSET('Smelter Look-up'!$I$4,$V541-4,0))","v":""},{"$nulls":7},{"$f":"IF(ISERROR($V541),\"\",OFFSET('Smelter Look-up'!$C$4,$V541-4,0)&\"\")","v":""},"",{"$f":"IF(B541=\"\",\"\",IF(ISERROR(MATCH($J541,SorP!$B$1:$B$5661,0)),\"\",INDIRECT(\"'SorP'!$A$\"&MATCH($J541,SorP!$B$1:$B$5661,0))))","v":""},null,{"$f":"IF(C541=\"\",NA(),MATCH($B541&$C541,'Smelter Look-up'!$J:$J,0))","v":{"$error":"#N/A"}},null,0,null,null,null,""]
[null,{"$f":"IF(LEN(A542)=0,\"\",INDEX('Smelter Look-up'!$A:$A,MATCH($A542,'Smelter Look-up'!$E:$E,0)))","v":""},{"$f":"IF(LEN(A542)=0,\"\",INDEX('Smelter Look-up'!$C:$C,MATCH($A542,'Smelter Look-up'!$E:$E,0)))","v":""},null,{"$f":"IF(ISERROR($V542),\"\",OFFSET('Smelter Look-up'!$D$4,$V542-4,0)&\"\")","v":""},{"$f":"IF(ISERROR($V542),\"\",OFFSET('Smelter Look-up'!$E$4,$V542-4,0))","v":""},{"$f":"IF(C542=$X$4,\"Enter smelter details\",IF(ISERROR($V542),\"\",OFFSET('Smelter Look-up'!$F$4,$V542-4,0)))","v":""},{"$f":"IF(ISERROR($V542),\"\",OFFSET('Smelter Look-up'!$G$4,$V542-4,0))","v":""},{"$f":"IF(ISERROR($V542),\"\",OFFSET('Smelter Look-up'!$H$4,$V542-4,0))","v":""},{"$f":"IF(ISERROR($V542),\"\",OFFSET('Smelter Look-up'!$I$4,$V542-4,0))","v":""},{"$nulls":7},{"$f":"IF(ISERROR($V542),\"\",OFFSET('Smelter Look-up'!$C$4,$V542-4,0)&\"\")","v":""},"",{"$f":"IF(B542=\"\",\"\",IF(ISERROR(MATCH($J542,SorP!$B$1:$B$5661,0)),\"\",INDIRECT(\"'SorP'!$A$\"&MATCH($J542,SorP!$B$1:$B$5661,0))))","v":""},null,{"$f":"IF(C542=\"\",NA(),MATCH($B542&$C542,'Smelter Look-up'!$J:$J,0))","v":{"$error":"#N/A"}},null,0,null,null,null,""]
[null,{"$f":"IF(LEN(A543)=0,\"\",INDEX('Smelter Look-up'!$A:$A,MATCH($A543,'Smelter Look-up'!$E:$E,0)))","v":""},{"$f":"IF(LEN(A543)=0,\"\",INDEX('Smelter Look-up'!$C:$C,MATCH($A543,'Smelter Look-up'!$E:$E,0)))","v":""},null,{"$f":"IF(ISERROR($V543),\"\",OFFSET('Smelter Look-up'!$D$4,$V543-4,0)&\"\")","v":""},{"$f":"IF(ISERROR($V543),\"\",OFFSET('Smelter Look-up'!$E$4,$V543-4,0))","v":""},{"$f":"IF(C543=$X$4,\"Enter smelter details\",IF(ISERROR($V543),\"\",OFFSET('Smelter Look-up'!$F$4,$V543-4,0)))","v":""},{"$f":"IF(ISERROR($V543),\"\",OFFSET('Smelter Look-up'!$G$4,$V543-4,0))","v":""},{"$f":"IF(ISERROR($V543),\"\",OFFSET('Smelter Look-up'!$H$4,$V543-4,0))","v":""},{"$f":"IF(ISERROR($V543),\"\",OFFSET('Smelter Look-up'!$I$4,$V543-4,0))","v":""},{"$nulls":7},{"$f":"IF(ISERROR($V543),\"\",OFFSET('Smelter Look-up'!$C$4,$V543-4,0)&\"\")","v":""},"",{"$f":"IF(B543=\"\",\"\",IF(ISERROR(MATCH($J543,SorP!$B$1:$B$5661,0)),\"\",INDIRECT(\"'SorP'!$A$\"&MATCH($J543,SorP!$B$1:$B$5661,0))))","v":""},null,{"$f":"IF(C543=\"\",NA(),MATCH($B543&$C543,'Smelter Look-up'!$J:$J,0))","v":{"$error":"#N/A"}},null,0,null,null,null,""]
[null,{"$f":"IF(LEN(A544)=0,\"\",INDEX('Smelter Look-up'!$A:$A,MATCH($A544,'Smelter Look-up'!$E:$E,0)))","v":""},{"$f":"IF(LEN(A544)=0,\"\",INDEX('Smelter Look-up'!$C:$C,MATCH($A544,'Smelter Look-up'!$E:$E,0)))","v":""},null,{"$f":"IF(ISERROR($V544),\"\",OFFSET('Smelter Look-up'!$D$4,$V544-4,0)&\"\")","v":""},{"$f":"IF(ISERROR($V544),\"\",OFFSET('Smelter Look-up'!$E$4,$V544-4,0))","v":""},{"$f":"IF(C544=$X$4,\"Enter smelter details\",IF(ISERROR($V544),\"\",OFFSET('Smelter Look-up'!$F$4,$V544-4,0)))","v":""},{"$f":"IF(ISERROR($V544),\"\",OFFSET('Smelter Look-up'!$G$4,$V544-4,0))","v":""},{"$f":"IF(ISERROR($V544),\"\",OFFSET('Smelter Look-up'!$H$4,$V544-4,0))","v":""},{"$f":"IF(ISERROR($V544),\"\",OFFSET('Smelter Look-up'!$I$4,$V544-4,0))","v":""},{"$nulls":7},{"$f":"IF(ISERROR($V544),\"\",OFFSET('Smelter Look-up'!$C$4,$V544-4,0)&\"\")","v":""},"",{"$f":"IF(B544=\"\",\"\",IF(ISERROR(MATCH($J544,SorP!$B$1:$B$5661,0)),\"\",INDIRECT(\"'SorP'!$A$\"&MATCH($J544,SorP!$B$1:$B$5661,0))))","v":""},null,{"$f":"IF(C544=\"\",NA(),MATCH($B544&$C544,'Smelter Look-up'!$J:$J,0))","v":{"$error":"#N/A"}},null,0,null,null,null,""]
[null,{"$f":"IF(LEN(A545)=0,\"\",INDEX('Smelter Look-up'!$A:$A,MATCH($A545,'Smelter Look-up'!$E:$E,0)))","v":""},{"$f":"IF(LEN(A545)=0,\"\",INDEX('Smelter Look-up'!$C:$C,MATCH($A545,'Smelter Look-up'!$E:$E,0)))","v":""},null,{"$f":"IF(ISERROR($V545),\"\",OFFSET('Smelter Look-up'!$D$4,$V545-4,0)&\"\")","v":""},{"$f":"IF(ISERROR($V545),\"\",OFFSET('Smelter Look-up'!$E$4,$V545-4,0))","v":""},{"$f":"IF(C545=$X$4,\"Enter smelter details\",IF(ISERROR($V545),\"\",OFFSET('Smelter Look-up'!$F$4,$V545-4,0)))","v":""},{"$f":"IF(ISERROR($V545),\"\",OFFSET('Smelter Look-up'!$G$4,$V545-4,0))","v":""},{"$f":"IF(ISERROR($V545),\"\",OFFSET('Smelter Look-up'!$H$4,$V545-4,0))","v":""},{"$f":"IF(ISERROR($V545),\"\",OFFSET('Smelter Look-up'!$I$4,$V545-4,0))","v":""},{"$nulls":7},{"$f":"IF(ISERROR($V545),\"\",OFFSET('Smelter Look-up'!$C$4,$V545-4,0)&\"\")","v":""},"",{"$f":"IF(B545=\"\",\"\",IF(ISERROR(MATCH($J545,SorP!$B$1:$B$5661,0)),\"\",INDIRECT(\"'SorP'!$A$\"&MATCH($J545,SorP!$B$1:$B$5661,0))))","v":""},null,{"$f":"IF(C545=\"\",NA(),MATCH($B545&$C545,'Smelter Look-up'!$J:$J,0))","v":{"$error":"#N/A"}},null,0,null,null,null,""]
[null,{"$f":"IF(LEN(A546)=0,\"\",INDEX('Smelter Look-up'!$A:$A,MATCH($A546,'Smelter Look-up'!$E:$E,0)))","v":""},{"$f":"IF(LEN(A546)=0,\"\",INDEX('Smelter Look-up'!$C:$C,MATCH($A546,'Smelter Look-up'!$E:$E,0)))","v":""},null,{"$f":"IF(ISERROR($V546),\"\",OFFSET('Smelter Look-up'!$D$4,$V546-4,0)&\"\")","v":""},{"$f":"IF(ISERROR($V546),\"\",OFFSET('Smelter Look-up'!$E$4,$V546-4,0))","v":""},{"$f":"IF(C546=$X$4,\"Enter smelter details\",IF(ISERROR($V546),\"\",OFFSET('Smelter Look-up'!$F$4,$V546-4,0)))","v":""},{"$f":"IF(ISERROR($V546),\"\",OFFSET('Smelter Look-up'!$G$4,$V546-4,0))","v":""},{"$f":"IF(ISERROR($V546),\"\",OFFSET('Smelter Look-up'!$H$4,$V546-4,0))","v":""},{"$f":"IF(ISERROR($V546),\"\",OFFSET('Smelter Look-up'!$I$4,$V546-4,0))","v":""},{"$nulls":7},{"$f":"IF(ISERROR($V546),\"\",OFFSET('Smelter Look-up'!$C$4,$V546-4,0)&\"\")","v":""},"",{"$f":"IF(B546=\"\",\"\",IF(ISERROR(MATCH($J546,SorP!$B$1:$B$5661,0)),\"\",INDIRECT(\"'SorP'!$A$\"&MATCH($J546,SorP!$B$1:$B$5661,0))))","v":""},null,{"$f":"IF(C546=\"\",NA(),MATCH($B546&$C546,'Smelter Look-up'!$J:$J,0))","v":{"$error":"#N/A"}},null,0,null,null,null,""]
[null,{"$f":"IF(LEN(A547)=0,\"\",INDEX('Smelter Look-up'!$A:$A,MATCH($A547,'Smelter Look-up'!$E:$E,0)))","v":""},{"$f":"IF(LEN(A547)=0,\"\",INDEX('Smelter Look-up'!$C:$C,MATCH($A547,'Smelter Look-up'!$E:$E,0)))","v":""},null,{"$f":"IF(ISERROR($V547),\"\",OFFSET('Smelter Look-up'!$D$4,$V547-4,0)&\"\")","v":""},{"$f":"IF(ISERROR($V547),\"\",OFFSET('Smelter Look-up'!$E$4,$V547-4,0))","v":""},{"$f":"IF(C547=$X$4,\"Enter smelter details\",IF(ISERROR($V547),\"\",OFFSET('Smelter Look-up'!$F$4,$V547-4,0)))","v":""},{"$f":"IF(ISERROR($V547),\"\",OFFSET('Smelter Look-up'!$G$4,$V547-4,0))","v":""},{"$f":"IF(ISERROR($V547),\"\",OFFSET('Smelter Look-up'!$H$4,$V547-4,0))","v":""},{"$f":"IF(ISERROR($V547),\"\",OFFSET('Smelter Look-up'!$I$4,$V547-4,0))","v":""},{"$nulls":7},{"$f":"IF(ISERROR($V547),\"\",OFFSET('Smelter Look-up'!$C$4,$V547-4,0)&\"\")","v":""},"",{"$f":"IF(B547=\"\",\"\",IF(ISERROR(MATCH($J547,SorP!$B$1:$B$5661,0)),\"\",INDIRECT(\"'SorP'!$A$\"&MATCH($J547,SorP!$B$1:$B$5661,0))))","v":""},null,{"$f":"IF(C547=\"\",NA(),MATCH($B547&$C547,'Smelter Look-up'!$J:$J,0))","v":{"$error":"#N/A"}},null,0,null,null,null,""]
[null,{"$f":"IF(LEN(A548)=0,\"\",INDEX('Smelter Look-up'!$A:$A,MATCH($A548,'Smelter Look-up'!$E:$E,0)))","v":""},{"$f":"IF(LEN(A548)=0,\"\",INDEX('Smelter Look-up'!$C:$C,MATCH($A548,'Smelter Look-up'!$E:$E,0)))","v":""},null,{"$f":"IF(ISERROR($V548),\"\",OFFSET('Smelter Look-up'!$D$4,$V548-4,0)&\"\")","v":""},{"$f":"IF(ISERROR($V548),\"\",OFFSET('Smelter Look-up'!$E$4,$V548-4,0))","v":""},{"$f":"IF(C548=$X$4,\"Enter smelter details\",IF(ISERROR($V548),\"\",OFFSET('Smelter Look-up'!$F$4,$V548-4,0)))","v":""},{"$f":"IF(ISERROR($V548),\"\",OFFSET('Smelter Look-up'!$G$4,$V548-4,0))","v":""},{"$f":"IF(ISERROR($V548),\"\",OFFSET('Smelter Look-up'!$H$4,$V548-4,0))","v":""},{"$f":"IF(ISERROR($V548),\"\",OFFSET('Smelter Look-up'!$I$4,$V548-4,0))","v":""},{"$nulls":7},{"$f":"IF(ISERROR($V548),\"\",OFFSET('Smelter Look-up'!$C$4,$V548-4,0)&\"\")","v":""},"",{"$f":"IF(B548=\"\",\"\",IF(ISERROR(MATCH($J548,SorP!$B$1:$B$5661,0)),\"\",INDIRECT(\"'SorP'!$A$\"&MATCH($J548,SorP!$B$1:$B$5661,0))))","v":""},null,{"$f":"IF(C548=\"\",NA(),MATCH($B548&$C548,'Smelter Look-up'!$J:$J,0))","v":{"$error":"#N/A"}},null,0,null,null,null,""]
[null,{"$f":"IF(LEN(A549)=0,\"\",INDEX('Smelter Look-up'!$A:$A,MATCH($A549,'Smelter Look-up'!$E:$E,0)))","v":""},{"$f":"IF(LEN(A549)=0,\"\",INDEX('Smelter Look-up'!$C:$C,MATCH($A549,'Smelter Look-up'!$E:$E,0)))","v":""},null,{"$f":"IF(ISERROR($V549),\"\",OFFSET('Smelter Look-up'!$D$4,$V549-4,0)&\"\")","v":""},{"$f":"IF(ISERROR($V549),\"\",OFFSET('Smelter Look-up'!$E$4,$V549-4,0))","v":""},{"$f":"IF(C549=$X$4,\"Enter smelter details\",IF(ISERROR($V549),\"\",OFFSET('Smelter Look-up'!$F$4,$V549-4,0)))","v":""},{"$f":"IF(ISERROR($V549),\"\",OFFSET('Smelter Look-up'!$G$4,$V549-4,0))","v":""},{"$f":"IF(ISERROR($V549),\"\",OFFSET('Smelter Look-up'!$H$4,$V549-4,0))","v":""},{"$f":"IF(ISERROR($V549),\"\",OFFSET('Smelter Look-up'!$I$4,$V549-4,0))","v":""},{"$nulls":7},{"$f":"IF(ISERROR($V549),\"\",OFFSET('Smelter Look-up'!$C$4,$V549-4,0)&\"\")","v":""},"",{"$f":"IF(B549=\"\",\"\",IF(ISERROR(MATCH($J549,SorP!$B$1:$B$5661,0)),\"\",INDIRECT(\"'SorP'!$A$\"&MATCH($J549,SorP!$B$1:$B$5661,0))))","v":""},null,{"$f":"IF(C549=\"\",NA(),MATCH($B549&$C549,'Smelter Look-up'!$J:$J,0))","v":{"$error":"#N/A"}},null,0,null,null,null,""]
[null,{"$f":"IF(LEN(A550)=0,\"\",INDEX('Smelter Look-up'!$A:$A,MATCH($A550,'Smelter Look-up'!$E:$E,0)))","v":""},{"$f":"IF(LEN(A550)=0,\"\",INDEX('Smelter Look-up'!$C:$C,MATCH($A550,'Smelter Look-up'!$E:$E,0)))","v":""},null,{"$f":"IF(ISERROR($V550),\"\",OFFSET('Smelter Look-up'!$D$4,$V550-4,0)&\"\")","v":""},{"$f":"IF(ISERROR($V550),\"\",OFFSET('Smelter Look-up'!$E$4,$V550-4,0))","v":""},{"$f":"IF(C550=$X$4,\"Enter smelter details\",IF(ISERROR($V550),\"\",OFFSET('Smelter Look-up'!$F$4,$V550-4,0)))","v":""},{"$f":"IF(ISERROR($V550),\"\",OFFSET('Smelter Look-up'!$G$4,$V550-4,0))","v":""},{"$f":"IF(ISERROR($V550),\"\",OFFSET('Smelter Look-up'!$H$4,$V550-4,0))","v":""},{"$f":"IF(ISERROR($V550),\"\",OFFSET('Smelter Look-up'!$I$4,$V550-4,0))","v":""},{"$nulls":7},{"$f":"IF(ISERROR($V550),\"\",OFFSET('Smelter Look-up'!$C$4,$V550-4,0)&\"\")","v":""},"",{"$f":"IF(B550=\"\",\"\",IF(ISERROR(MATCH($J550,SorP!$B$1:$B$5661,0)),\"\",INDIRECT(\"'SorP'!$A$\"&MATCH($J550,SorP!$B$1:$B$5661,0))))","v":""},null,{"$f":"IF(C550=\"\",NA(),MATCH($B550&$C550,'Smelter Look-up'!$J:$J,0))","v":{"$error":"#N/A"}},null,0,null,null,null,""]
[null,{"$f":"IF(LEN(A551)=0,\"\",INDEX('Smelter Look-up'!$A:$A,MATCH($A551,'Smelter Look-up'!$E:$E,0)))","v":""},{"$f":"IF(LEN(A551)=0,\"\",INDEX('Smelter Look-up'!$C:$C,MATCH($A551,'Smelter Look-up'!$E:$E,0)))","v":""},null,{"$f":"IF(ISERROR($V551),\"\",OFFSET('Smelter Look-up'!$D$4,$V551-4,0)&\"\")","v":""},{"$f":"IF(ISERROR($V551),\"\",OFFSET('Smelter Look-up'!$E$4,$V551-4,0))","v":""},{"$f":"IF(C551=$X$4,\"Enter smelter details\",IF(ISERROR($V551),\"\",OFFSET('Smelter Look-up'!$F$4,$V551-4,0)))","v":""},{"$f":"IF(ISERROR($V551),\"\",OFFSET('Smelter Look-up'!$G$4,$V551-4,0))","v":""},{"$f":"IF(ISERROR($V551),\"\",OFFSET('Smelter Look-up'!$H$4,$V551-4,0))","v":""},{"$f":"IF(ISERROR($V551),\"\",OFFSET('Smelter Look-up'!$I$4,$V551-4,0))","v":""},{"$nulls":7},{"$f":"IF(ISERROR($V551),\"\",OFFSET('Smelter Look-up'!$C$4,$V551-4,0)&\"\")","v":""},"",{"$f":"IF(B551=\"\",\"\",IF(ISERROR(MATCH($J551,SorP!$B$1:$B$5661,0)),\"\",INDIRECT(\"'SorP'!$A$\"&MATCH($J551,SorP!$B$1:$B$5661,0))))","v":""},null,{"$f":"IF(C551=\"\",NA(),MATCH($B551&$C551,'Smelter Look-up'!$J:$J,0))","v":{"$error":"#N/A"}},null,0,null,null,null,""]
[null,{"$f":"IF(LEN(A552)=0,\"\",INDEX('Smelter Look-up'!$A:$A,MATCH($A552,'Smelter Look-up'!$E:$E,0)))","v":""},{"$f":"IF(LEN(A552)=0,\"\",INDEX('Smelter Look-up'!$C:$C,MATCH($A552,'Smelter Look-up'!$E:$E,0)))","v":""},null,{"$f":"IF(ISERROR($V552),\"\",OFFSET('Smelter Look-up'!$D$4,$V552-4,0)&\"\")","v":""},{"$f":"IF(ISERROR($V552),\"\",OFFSET('Smelter Look-up'!$E$4,$V552-4,0))","v":""},{"$f":"IF(C552=$X$4,\"Enter smelter details\",IF(ISERROR($V552),\"\",OFFSET('Smelter Look-up'!$F$4,$V552-4,0)))","v":""},{"$f":"IF(ISERROR($V552),\"\",OFFSET('Smelter Look-up'!$G$4,$V552-4,0))","v":""},{"$f":"IF(ISERROR($V552),\"\",OFFSET('Smelter Look-up'!$H$4,$V552-4,0))","v":""},{"$f":"IF(ISERROR($V552),\"\",OFFSET('Smelter Look-up'!$I$4,$V552-4,0))","v":""},{"$nulls":7},{"$f":"IF(ISERROR($V552),\"\",OFFSET('Smelter Look-up'!$C$4,$V552-4,0)&\"\")","v":""},"",{"$f":"IF(B552=\"\",\"\",IF(ISERROR(MATCH($J552,SorP!$B$1:$B$5661,0)),\"\",INDIRECT(\"'SorP'!$A$\"&MATCH($J552,SorP!$B$1:$B$5661,0))))","v":""},null,{"$f":"IF(C552=\"\",NA(),MATCH($B552&$C552,'Smelter Look-up'!$J:$J,0))","v":{"$error":"#N/A"}},null,0,null,null,null,""]
[null,{"$f":"IF(LEN(A553)=0,\"\",INDEX('Smelter Look-up'!$A:$A,MATCH($A553,'Smelter Look-up'!$E:$E,0)))","v":""},{"$f":"IF(LEN(A553)=0,\"\",INDEX('Smelter Look-up'!$C:$C,MATCH($A553,'Smelter Look-up'!$E:$E,0)))","v":""},null,{"$f":"IF(ISERROR($V553),\"\",OFFSET('Smelter Look-up'!$D$4,$V553-4,0)&\"\")","v":""},{"$f":"IF(ISERROR($V553),\"\",OFFSET('Smelter Look-up'!$E$4,$V553-4,0))","v":""},{"$f":"IF(C553=$X$4,\"Enter smelter details\",IF(ISERROR($V553),\"\",OFFSET('Smelter Look-up'!$F$4,$V553-4,0)))","v":""},{"$f":"IF(ISERROR($V553),\"\",OFFSET('Smelter Look-up'!$G$4,$V553-4,0))","v":""},{"$f":"IF(ISERROR($V553),\"\",OFFSET('Smelter Look-up'!$H$4,$V553-4,0))","v":""},{"$f":"IF(ISERROR($V553),\"\",OFFSET('Smelter Look-up'!$I$4,$V553-4,0))","v":""},{"$nulls":7},{"$f":"IF(ISERROR($V553),\"\",OFFSET('Smelter Look-up'!$C$4,$V553-4,0)&\"\")","v":""},"",{"$f":"IF(B553=\"\",\"\",IF(ISERROR(MATCH($J553,SorP!$B$1:$B$5661,0)),\"\",INDIRECT(\"'SorP'!$A$\"&MATCH($J553,SorP!$B$1:$B$5661,0))))","v":""},null,{"$f":"IF(C553=\"\",NA(),MATCH($B553&$C553,'Smelter Look-up'!$J:$J,0))","v":{"$error":"#N/A"}},null,0,null,null,null,""]
[null,{"$f":"IF(LEN(A554)=0,\"\",INDEX('Smelter Look-up'!$A:$A,MATCH($A554,'Smelter Look-up'!$E:$E,0)))","v":""},{"$f":"IF(LEN(A554)=0,\"\",INDEX('Smelter Look-up'!$C:$C,MATCH($A554,'Smelter Look-up'!$E:$E,0)))","v":""},null,{"$f":"IF(ISERROR($V554),\"\",OFFSET('Smelter Look-up'!$D$4,$V554-4,0)&\"\")","v":""},{"$f":"IF(ISERROR($V554),\"\",OFFSET('Smelter Look-up'!$E$4,$V554-4,0))","v":""},{"$f":"IF(C554=$X$4,\"Enter smelter details\",IF(ISERROR($V554),\"\",OFFSET('Smelter Look-up'!$F$4,$V554-4,0)))","v":""},{"$f":"IF(ISERROR($V554),\"\",OFFSET('Smelter Look-up'!$G$4,$V554-4,0))","v":""},{"$f":"IF(ISERROR($V554),\"\",OFFSET('Smelter Look-up'!$H$4,$V554-4,0))","v":""},{"$f":"IF(ISERROR($V554),\"\",OFFSET('Smelter Look-up'!$I$4,$V554-4,0))","v":""},{"$nulls":7},{"$f":"IF(ISERROR($V554),\"\",OFFSET('Smelter Look-up'!$C$4,$V554-4,0)&\"\")","v":""},"",{"$f":"IF(B554=\"\",\"\",IF(ISERROR(MATCH($J554,SorP!$B$1:$B$5661,0)),\"\",INDIRECT(\"'SorP'!$A$\"&MATCH($J554,SorP!$B$1:$B$5661,0))))","v":""},null,{"$f":"IF(C554=\"\",NA(),MATCH($B554&$C554,'Smelter Look-up'!$J:$J,0))","v":{"$error":"#N/A"}},null,0,null,null,null,""]
[null,{"$f":"IF(LEN(A555)=0,\"\",INDEX('Smelter Look-up'!$A:$A,MATCH($A555,'Smelter Look-up'!$E:$E,0)))","v":""},{"$f":"IF(LEN(A555)=0,\"\",INDEX('Smelter Look-up'!$C:$C,MATCH($A555,'Smelter Look-up'!$E:$E,0)))","v":""},null,{"$f":"IF(ISERROR($V555),\"\",OFFSET('Smelter Look-up'!$D$4,$V555-4,0)&\"\")","v":""},{"$f":"IF(ISERROR($V555),\"\",OFFSET('Smelter Look-up'!$E$4,$V555-4,0))","v":""},{"$f":"IF(C555=$X$4,\"Enter smelter details\",IF(ISERROR($V555),\"\",OFFSET('Smelter Look-up'!$F$4,$V555-4,0)))","v":""},{"$f":"IF(ISERROR($V555),\"\",OFFSET('Smelter Look-up'!$G$4,$V555-4,0))","v":""},{"$f":"IF(ISERROR($V555),\"\",OFFSET('Smelter Look-up'!$H$4,$V555-4,0))","v":""},{"$f":"IF(ISERROR($V555),\"\",OFFSET('Smelter Look-up'!$I$4,$V555-4,0))","v":""},{"$nulls":7},{"$f":"IF(ISERROR($V555),\"\",OFFSET('Smelter Look-up'!$C$4,$V555-4,0)&\"\")","v":""},"",{"$f":"IF(B555=\"\",\"\",IF(ISERROR(MATCH($J555,SorP!$B$1:$B$5661,0)),\"\",INDIRECT(\"'SorP'!$A$\"&MATCH($J555,SorP!$B$1:$B$5661,0))))","v":""},null,{"$f":"IF(C555=\"\",NA(),MATCH($B555&$C555,'Smelter Look-up'!$J:$J,0))","v":{"$error":"#N/A"}},null,0,null,null,null,""]
[null,{"$f":"IF(LEN(A556)=0,\"\",INDEX('Smelter Look-up'!$A:$A,MATCH($A556,'Smelter Look-up'!$E:$E,0)))","v":""},{"$f":"IF(LEN(A556)=0,\"\",INDEX('Smelter Look-up'!$C:$C,MATCH($A556,'Smelter Look-up'!$E:$E,0)))","v":""},null,{"$f":"IF(ISERROR($V556),\"\",OFFSET('Smelter Look-up'!$D$4,$V556-4,0)&\"\")","v":""},{"$f":"IF(ISERROR($V556),\"\",OFFSET('Smelter Look-up'!$E$4,$V556-4,0))","v":""},{"$f":"IF(C556=$X$4,\"Enter smelter details\",IF(ISERROR($V556),\"\",OFFSET('Smelter Look-up'!$F$4,$V556-4,0)))","v":""},{"$f":"IF(ISERROR($V556),\"\",OFFSET('Smelter Look-up'!$G$4,$V556-4,0))","v":""},{"$f":"IF(ISERROR($V556),\"\",OFFSET('Smelter Look-up'!$H$4,$V556-4,0))","v":""},{"$f":"IF(ISERROR($V556),\"\",OFFSET('Smelter Look-up'!$I$4,$V556-4,0))","v":""},{"$nulls":7},{"$f":"IF(ISERROR($V556),\"\",OFFSET('Smelter Look-up'!$C$4,$V556-4,0)&\"\")","v":""},"",{"$f":"IF(B556=\"\",\"\",IF(ISERROR(MATCH($J556,SorP!$B$1:$B$5661,0)),\"\",INDIRECT(\"'SorP'!$A$\"&MATCH($J556,SorP!$B$1:$B$5661,0))))","v":""},null,{"$f":"IF(C556=\"\",NA(),MATCH($B556&$C556,'Smelter Look-up'!$J:$J,0))","v":{"$error":"#N/A"}},null,0,null,null,null,""]
[null,{"$f":"IF(LEN(A557)=0,\"\",INDEX('Smelter Look-up'!$A:$A,MATCH($A557,'Smelter Look-up'!$E:$E,0)))","v":""},{"$f":"IF(LEN(A557)=0,\"\",INDEX('Smelter Look-up'!$C:$C,MATCH($A557,'Smelter Look-up'!$E:$E,0)))","v":""},null,{"$f":"IF(ISERROR($V557),\"\",OFFSET('Smelter Look-up'!$D$4,$V557-4,0)&\"\")","v":""},{"$f":"IF(ISERROR($V557),\"\",OFFSET('Smelter Look-up'!$E$4,$V557-4,0))","v":""},{"$f":"IF(C557=$X$4,\"Enter smelter details\",IF(ISERROR($V557),\"\",OFFSET('Smelter Look-up'!$F$4,$V557-4,0)))","v":""},{"$f":"IF(ISERROR($V557),\"\",OFFSET('Smelter Look-up'!$G$4,$V557-4,0))","v":""},{"$f":"IF(ISERROR($V557),\"\",OFFSET('Smelter Look-up'!$H$4,$V557-4,0))","v":""},{"$f":"IF(ISERROR($V557),\"\",OFFSET('Smelter Look-up'!$I$4,$V557-4,0))","v":""},{"$nulls":7},{"$f":"IF(ISERROR($V557),\"\",OFFSET('Smelter Look-up'!$C$4,$V557-4,0)&\"\")","v":""},"",{"$f":"IF(B557=\"\",\"\",IF(ISERROR(MATCH($J557,SorP!$B$1:$B$5661,0)),\"\",INDIRECT(\"'SorP'!$A$\"&MATCH($J557,SorP!$B$1:$B$5661,0))))","v":""},null,{"$f":"IF(C557=\"\",NA(),MATCH($B557&$C557,'Smelter Look-up'!$J:$J,0))","v":{"$error":"#N/A"}},null,0,null,null,null,""]
[null,{"$f":"IF(LEN(A558)=0,\"\",INDEX('Smelter Look-up'!$A:$A,MATCH($A558,'Smelter Look-up'!$E:$E,0)))","v":""},{"$f":"IF(LEN(A558)=0,\"\",INDEX('Smelter Look-up'!$C:$C,MATCH($A558,'Smelter Look-up'!$E:$E,0)))","v":""},null,{"$f":"IF(ISERROR($V558),\"\",OFFSET('Smelter Look-up'!$D$4,$V558-4,0)&\"\")","v":""},{"$f":"IF(ISERROR($V558),\"\",OFFSET('Smelter Look-up'!$E$4,$V558-4,0))","v":""},{"$f":"IF(C558=$X$4,\"Enter smelter details\",IF(ISERROR($V558),\"\",OFFSET('Smelter Look-up'!$F$4,$V558-4,0)))","v":""},{"$f":"IF(ISERROR($V558),\"\",OFFSET('Smelter Look-up'!$G$4,$V558-4,0))","v":""},{"$f":"IF(ISERROR($V558),\"\",OFFSET('Smelter Look-up'!$H$4,$V558-4,0))","v":""},{"$f":"IF(ISERROR($V558),\"\",OFFSET('Smelter Look-up'!$I$4,$V558-4,0))","v":""},{"$nulls":7},{"$f":"IF(ISERROR($V558),\"\",OFFSET('Smelter Look-up'!$C$4,$V558-4,0)&\"\")","v":""},"",{"$f":"IF(B558=\"\",\"\",IF(ISERROR(MATCH($J558,SorP!$B$1:$B$5661,0)),\"\",INDIRECT(\"'SorP'!$A$\"&MATCH($J558,SorP!$B$1:$B$5661,0))))","v":""},null,{"$f":"IF(C558=\"\",NA(),MATCH($B558&$C558,'Smelter Look-up'!$J:$J,0))","v":{"$error":"#N/A"}},null,0,null,null,null,""]
[null,{"$f":"IF(LEN(A559)=0,\"\",INDEX('Smelter Look-up'!$A:$A,MATCH($A559,'Smelter Look-up'!$E:$E,0)))","v":""},{"$f":"IF(LEN(A559)=0,\"\",INDEX('Smelter Look-up'!$C:$C,MATCH($A559,'Smelter Look-up'!$E:$E,0)))","v":""},null,{"$f":"IF(ISERROR($V559),\"\",OFFSET('Smelter Look-up'!$D$4,$V559-4,0)&\"\")","v":""},{"$f":"IF(ISERROR($V559),\"\",OFFSET('Smelter Look-up'!$E$4,$V559-4,0))","v":""},{"$f":"IF(C559=$X$4,\"Enter smelter details\",IF(ISERROR($V559),\"\",OFFSET('Smelter Look-up'!$F$4,$V559-4,0)))","v":""},{"$f":"IF(ISERROR($V559),\"\",OFFSET('Smelter Look-up'!$G$4,$V559-4,0))","v":""},{"$f":"IF(ISERROR($V559),\"\",OFFSET('Smelter Look-up'!$H$4,$V559-4,0))","v":""},{"$f":"IF(ISERROR($V559),\"\",OFFSET('Smelter Look-up'!$I$4,$V559-4,0))","v":""},{"$nulls":7},{"$f":"IF(ISERROR($V559),\"\",OFFSET('Smelter Look-up'!$C$4,$V559-4,0)&\"\")","v":""},"",{"$f":"IF(B559=\"\",\"\",IF(ISERROR(MATCH($J559,SorP!$B$1:$B$5661,0)),\"\",INDIRECT(\"'SorP'!$A$\"&MATCH($J559,SorP!$B$1:$B$5661,0))))","v":""},null,{"$f":"IF(C559=\"\",NA(),MATCH($B559&$C559,'Smelter Look-up'!$J:$J,0))","v":{"$error":"#N/A"}},null,0,null,null,null,""]
[null,{"$f":"IF(LEN(A560)=0,\"\",INDEX('Smelter Look-up'!$A:$A,MATCH($A560,'Smelter Look-up'!$E:$E,0)))","v":""},{"$f":"IF(LEN(A560)=0,\"\",INDEX('Smelter Look-up'!$C:$C,MATCH($A560,'Smelter Look-up'!$E:$E,0)))","v":""},null,{"$f":"IF(ISERROR($V560),\"\",OFFSET('Smelter Look-up'!$D$4,$V560-4,0)&\"\")","v":""},{"$f":"IF(ISERROR($V560),\"\",OFFSET('Smelter Look-up'!$E$4,$V560-4,0))","v":""},{"$f":"IF(C560=$X$4,\"Enter smelter details\",IF(ISERROR($V560),\"\",OFFSET('Smelter Look-up'!$F$4,$V560-4,0)))","v":""},{"$f":"IF(ISERROR($V560),\"\",OFFSET('Smelter Look-up'!$G$4,$V560-4,0))","v":""},{"$f":"IF(ISERROR($V560),\"\",OFFSET('Smelter Look-up'!$H$4,$V560-4,0))","v":""},{"$f":"IF(ISERROR($V560),\"\",OFFSET('Smelter Look-up'!$I$4,$V560-4,0))","v":""},{"$nulls":7},{"$f":"IF(ISERROR($V560),\"\",OFFSET('Smelter Look-up'!$C$4,$V560-4,0)&\"\")","v":""},"",{"$f":"IF(B560=\"\",\"\",IF(ISERROR(MATCH($J560,SorP!$B$1:$B$5661,0)),\"\",INDIRECT(\"'SorP'!$A$\"&MATCH($J560,SorP!$B$1:$B$5661,0))))","v":""},null,{"$f":"IF(C560=\"\",NA(),MATCH($B560&$C560,'Smelter Look-up'!$J:$J,0))","v":{"$error":"#N/A"}},null,0,null,null,null,""]
[null,{"$f":"IF(LEN(A561)=0,\"\",INDEX('Smelter Look-up'!$A:$A,MATCH($A561,'Smelter Look-up'!$E:$E,0)))","v":""},{"$f":"IF(LEN(A561)=0,\"\",INDEX('Smelter Look-up'!$C:$C,MATCH($A561,'Smelter Look-up'!$E:$E,0)))","v":""},null,{"$f":"IF(ISERROR($V561),\"\",OFFSET('Smelter Look-up'!$D$4,$V561-4,0)&\"\")","v":""},{"$f":"IF(ISERROR($V561),\"\",OFFSET('Smelter Look-up'!$E$4,$V561-4,0))","v":""},{"$f":"IF(C561=$X$4,\"Enter smelter details\",IF(ISERROR($V561),\"\",OFFSET('Smelter Look-up'!$F$4,$V561-4,0)))","v":""},{"$f":"IF(ISERROR($V561),\"\",OFFSET('Smelter Look-up'!$G$4,$V561-4,0))","v":""},{"$f":"IF(ISERROR($V561),\"\",OFFSET('Smelter Look-up'!$H$4,$V561-4,0))","v":""},{"$f":"IF(ISERROR($V561),\"\",OFFSET('Smelter Look-up'!$I$4,$V561-4,0))","v":""},{"$nulls":7},{"$f":"IF(ISERROR($V561),\"\",OFFSET('Smelter Look-up'!$C$4,$V561-4,0)&\"\")","v":""},"",{"$f":"IF(B561=\"\",\"\",IF(ISERROR(MATCH($J561,SorP!$B$1:$B$5661,0)),\"\",INDIRECT(\"'SorP'!$A$\"&MATCH($J561,SorP!$B$1:$B$5661,0))))","v":""},null,{"$f":"IF(C561=\"\",NA(),MATCH($B561&$C561,'Smelter Look-up'!$J:$J,0))","v":{"$error":"#N/A"}},null,0,null,null,null,""]
[null,{"$f":"IF(LEN(A562)=0,\"\",INDEX('Smelter Look-up'!$A:$A,MATCH($A562,'Smelter Look-up'!$E:$E,0)))","v":""},{"$f":"IF(LEN(A562)=0,\"\",INDEX('Smelter Look-up'!$C:$C,MATCH($A562,'Smelter Look-up'!$E:$E,0)))","v":""},null,{"$f":"IF(ISERROR($V562),\"\",OFFSET('Smelter Look-up'!$D$4,$V562-4,0)&\"\")","v":""},{"$f":"IF(ISERROR($V562),\"\",OFFSET('Smelter Look-up'!$E$4,$V562-4,0))","v":""},{"$f":"IF(C562=$X$4,\"Enter smelter details\",IF(ISERROR($V562),\"\",OFFSET('Smelter Look-up'!$F$4,$V562-4,0)))","v":""},{"$f":"IF(ISERROR($V562),\"\",OFFSET('Smelter Look-up'!$G$4,$V562-4,0))","v":""},{"$f":"IF(ISERROR($V562),\"\",OFFSET('Smelter Look-up'!$H$4,$V562-4,0))","v":""},{"$f":"IF(ISERROR($V562),\"\",OFFSET('Smelter Look-up'!$I$4,$V562-4,0))","v":""},{"$nulls":7},{"$f":"IF(ISERROR($V562),\"\",OFFSET('Smelter Look-up'!$C$4,$V562-4,0)&\"\")","v":""},"",{"$f":"IF(B562=\"\",\"\",IF(ISERROR(MATCH($J562,SorP!$B$1:$B$5661,0)),\"\",INDIRECT(\"'SorP'!$A$\"&MATCH($J562,SorP!$B$1:$B$5661,0))))","v":""},null,{"$f":"IF(C562=\"\",NA(),MATCH($B562&$C562,'Smelter Look-up'!$J:$J,0))","v":{"$error":"#N/A"}},null,0,null,null,null,""]
[null,{"$f":"IF(LEN(A563)=0,\"\",INDEX('Smelter Look-up'!$A:$A,MATCH($A563,'Smelter Look-up'!$E:$E,0)))","v":""},{"$f":"IF(LEN(A563)=0,\"\",INDEX('Smelter Look-up'!$C:$C,MATCH($A563,'Smelter Look-up'!$E:$E,0)))","v":""},null,{"$f":"IF(ISERROR($V563),\"\",OFFSET('Smelter Look-up'!$D$4,$V563-4,0)&\"\")","v":""},{"$f":"IF(ISERROR($V563),\"\",OFFSET('Smelter Look-up'!$E$4,$V563-4,0))","v":""},{"$f":"IF(C563=$X$4,\"Enter smelter details\",IF(ISERROR($V563),\"\",OFFSET('Smelter Look-up'!$F$4,$V563-4,0)))","v":""},{"$f":"IF(ISERROR($V563),\"\",OFFSET('Smelter Look-up'!$G$4,$V563-4,0))","v":""},{"$f":"IF(ISERROR($V563),\"\",OFFSET('Smelter Look-up'!$H$4,$V563-4,0))","v":""},{"$f":"IF(ISERROR($V563),\"\",OFFSET('Smelter Look-up'!$I$4,$V563-4,0))","v":""},{"$nulls":7},{"$f":"IF(ISERROR($V563),\"\",OFFSET('Smelter Look-up'!$C$4,$V563-4,0)&\"\")","v":""},"",{"$f":"IF(B563=\"\",\"\",IF(ISERROR(MATCH($J563,SorP!$B$1:$B$5661,0)),\"\",INDIRECT(\"'SorP'!$A$\"&MATCH($J563,SorP!$B$1:$B$5661,0))))","v":""},null,{"$f":"IF(C563=\"\",NA(),MATCH($B563&$C563,'Smelter Look-up'!$J:$J,0))","v":{"$error":"#N/A"}},null,0,null,null,null,""]
[null,{"$f":"IF(LEN(A564)=0,\"\",INDEX('Smelter Look-up'!$A:$A,MATCH($A564,'Smelter Look-up'!$E:$E,0)))","v":""},{"$f":"IF(LEN(A564)=0,\"\",INDEX('Smelter Look-up'!$C:$C,MATCH($A564,'Smelter Look-up'!$E:$E,0)))","v":""},null,{"$f":"IF(ISERROR($V564),\"\",OFFSET('Smelter Look-up'!$D$4,$V564-4,0)&\"\")","v":""},{"$f":"IF(ISERROR($V564),\"\",OFFSET('Smelter Look-up'!$E$4,$V564-4,0))","v":""},{"$f":"IF(C564=$X$4,\"Enter smelter details\",IF(ISERROR($V564),\"\",OFFSET('Smelter Look-up'!$F$4,$V564-4,0)))","v":""},{"$f":"IF(ISERROR($V564),\"\",OFFSET('Smelter Look-up'!$G$4,$V564-4,0))","v":""},{"$f":"IF(ISERROR($V564),\"\",OFFSET('Smelter Look-up'!$H$4,$V564-4,0))","v":""},{"$f":"IF(ISERROR($V564),\"\",OFFSET('Smelter Look-up'!$I$4,$V564-4,0))","v":""},{"$nulls":7},{"$f":"IF(ISERROR($V564),\"\",OFFSET('Smelter Look-up'!$C$4,$V564-4,0)&\"\")","v":""},"",{"$f":"IF(B564=\"\",\"\",IF(ISERROR(MATCH($J564,SorP!$B$1:$B$5661,0)),\"\",INDIRECT(\"'SorP'!$A$\"&MATCH($J564,SorP!$B$1:$B$5661,0))))","v":""},null,{"$f":"IF(C564=\"\",NA(),MATCH($B564&$C564,'Smelter Look-up'!$J:$J,0))","v":{"$error":"#N/A"}},null,0,null,null,null,""]
[null,{"$f":"IF(LEN(A565)=0,\"\",INDEX('Smelter Look-up'!$A:$A,MATCH($A565,'Smelter Look-up'!$E:$E,0)))","v":""},{"$f":"IF(LEN(A565)=0,\"\",INDEX('Smelter Look-up'!$C:$C,MATCH($A565,'Smelter Look-up'!$E:$E,0)))","v":""},null,{"$f":"IF(ISERROR($V565),\"\",OFFSET('Smelter Look-up'!$D$4,$V565-4,0)&\"\")","v":""},{"$f":"IF(ISERROR($V565),\"\",OFFSET('Smelter Look-up'!$E$4,$V565-4,0))","v":""},{"$f":"IF(C565=$X$4,\"Enter smelter details\",IF(ISERROR($V565),\"\",OFFSET('Smelter Look-up'!$F$4,$V565-4,0)))","v":""},{"$f":"IF(ISERROR($V565),\"\",OFFSET('Smelter Look-up'!$G$4,$V565-4,0))","v":""},{"$f":"IF(ISERROR($V565),\"\",OFFSET('Smelter Look-up'!$H$4,$V565-4,0))","v":""},{"$f":"IF(ISERROR($V565),\"\",OFFSET('Smelter Look-up'!$I$4,$V565-4,0))","v":""},{"$nulls":7},{"$f":"IF(ISERROR($V565),\"\",OFFSET('Smelter Look-up'!$C$4,$V565-4,0)&\"\")","v":""},"",{"$f":"IF(B565=\"\",\"\",IF(ISERROR(MATCH($J565,SorP!$B$1:$B$5661,0)),\"\",INDIRECT(\"'SorP'!$A$\"&MATCH($J565,SorP!$B$1:$B$5661,0))))","v":""},null,{"$f":"IF(C565=\"\",NA(),MATCH($B565&$C565,'Smelter Look-up'!$J:$J,0))","v":{"$error":"#N/A"}},null,0,null,null,null,""]
[null,{"$f":"IF(LEN(A566)=0,\"\",INDEX('Smelter Look-up'!$A:$A,MATCH($A566,'Smelter Look-up'!$E:$E,0)))","v":""},{"$f":"IF(LEN(A566)=0,\"\",INDEX('Smelter Look-up'!$C:$C,MATCH($A566,'Smelter Look-up'!$E:$E,0)))","v":""},null,{"$f":"IF(ISERROR($V566),\"\",OFFSET('Smelter Look-up'!$D$4,$V566-4,0)&\"\")","v":""},{"$f":"IF(ISERROR($V566),\"\",OFFSET('Smelter Look-up'!$E$4,$V566-4,0))","v":""},{"$f":"IF(C566=$X$4,\"Enter smelter details\",IF(ISERROR($V566),\"\",OFFSET('Smelter Look-up'!$F$4,$V566-4,0)))","v":""},{"$f":"IF(ISERROR($V566),\"\",OFFSET('Smelter Look-up'!$G$4,$V566-4,0))","v":""},{"$f":"IF(ISERROR($V566),\"\",OFFSET('Smelter Look-up'!$H$4,$V566-4,0))","v":""},{"$f":"IF(ISERROR($V566),\"\",OFFSET('Smelter Look-up'!$I$4,$V566-4,0))","v":""},{"$nulls":7},{"$f":"IF(ISERROR($V566),\"\",OFFSET('Smelter Look-up'!$C$4,$V566-4,0)&\"\")","v":""},"",{"$f":"IF(B566=\"\",\"\",IF(ISERROR(MATCH($J566,SorP!$B$1:$B$5661,0)),\"\",INDIRECT(\"'SorP'!$A$\"&MATCH($J566,SorP!$B$1:$B$5661,0))))","v":""},null,{"$f":"IF(C566=\"\",NA(),MATCH($B566&$C566,'Smelter Look-up'!$J:$J,0))","v":{"$error":"#N/A"}},null,0,null,null,null,""]
[null,{"$f":"IF(LEN(A567)=0,\"\",INDEX('Smelter Look-up'!$A:$A,MATCH($A567,'Smelter Look-up'!$E:$E,0)))","v":""},{"$f":"IF(LEN(A567)=0,\"\",INDEX('Smelter Look-up'!$C:$C,MATCH($A567,'Smelter Look-up'!$E:$E,0)))","v":""},null,{"$f":"IF(ISERROR($V567),\"\",OFFSET('Smelter Look-up'!$D$4,$V567-4,0)&\"\")","v":""},{"$f":"IF(ISERROR($V567),\"\",OFFSET('Smelter Look-up'!$E$4,$V567-4,0))","v":""},{"$f":"IF(C567=$X$4,\"Enter smelter details\",IF(ISERROR($V567),\"\",OFFSET('Smelter Look-up'!$F$4,$V567-4,0)))","v":""},{"$f":"IF(ISERROR($V567),\"\",OFFSET('Smelter Look-up'!$G$4,$V567-4,0))","v":""},{"$f":"IF(ISERROR($V567),\"\",OFFSET('Smelter Look-up'!$H$4,$V567-4,0))","v":""},{"$f":"IF(ISERROR($V567),\"\",OFFSET('Smelter Look-up'!$I$4,$V567-4,0))","v":""},{"$nulls":7},{"$f":"IF(ISERROR($V567),\"\",OFFSET('Smelter Look-up'!$C$4,$V567-4,0)&\"\")","v":""},"",{"$f":"IF(B567=\"\",\"\",IF(ISERROR(MATCH($J567,SorP!$B$1:$B$5661,0)),\"\",INDIRECT(\"'SorP'!$A$\"&MATCH($J567,SorP!$B$1:$B$5661,0))))","v":""},null,{"$f":"IF(C567=\"\",NA(),MATCH($B567&$C567,'Smelter Look-up'!$J:$J,0))","v":{"$error":"#N/A"}},null,0,null,null,null,""]
[null,{"$f":"IF(LEN(A568)=0,\"\",INDEX('Smelter Look-up'!$A:$A,MATCH($A568,'Smelter Look-up'!$E:$E,0)))","v":""},{"$f":"IF(LEN(A568)=0,\"\",INDEX('Smelter Look-up'!$C:$C,MATCH($A568,'Smelter Look-up'!$E:$E,0)))","v":""},null,{"$f":"IF(ISERROR($V568),\"\",OFFSET('Smelter Look-up'!$D$4,$V568-4,0)&\"\")","v":""},{"$f":"IF(ISERROR($V568),\"\",OFFSET('Smelter Look-up'!$E$4,$V568-4,0))","v":""},{"$f":"IF(C568=$X$4,\"Enter smelter details\",IF(ISERROR($V568),\"\",OFFSET('Smelter Look-up'!$F$4,$V568-4,0)))","v":""},{"$f":"IF(ISERROR($V568),\"\",OFFSET('Smelter Look-up'!$G$4,$V568-4,0))","v":""},{"$f":"IF(ISERROR($V568),\"\",OFFSET('Smelter Look-up'!$H$4,$V568-4,0))","v":""},{"$f":"IF(ISERROR($V568),\"\",OFFSET('Smelter Look-up'!$I$4,$V568-4,0))","v":""},{"$nulls":7},{"$f":"IF(ISERROR($V568),\"\",OFFSET('Smelter Look-up'!$C$4,$V568-4,0)&\"\")","v":""},"",{"$f":"IF(B568=\"\",\"\",IF(ISERROR(MATCH($J568,SorP!$B$1:$B$5661,0)),\"\",INDIRECT(\"'SorP'!$A$\"&MATCH($J568,SorP!$B$1:$B$5661,0))))","v":""},null,{"$f":"IF(C568=\"\",NA(),MATCH($B568&$C568,'Smelter Look-up'!$J:$J,0))","v":{"$error":"#N/A"}},null,0,null,null,null,""]
[null,{"$f":"IF(LEN(A569)=0,\"\",INDEX('Smelter Look-up'!$A:$A,MATCH($A569,'Smelter Look-up'!$E:$E,0)))","v":""},{"$f":"IF(LEN(A569)=0,\"\",INDEX('Smelter Look-up'!$C:$C,MATCH($A569,'Smelter Look-up'!$E:$E,0)))","v":""},null,{"$f":"IF(ISERROR($V569),\"\",OFFSET('Smelter Look-up'!$D$4,$V569-4,0)&\"\")","v":""},{"$f":"IF(ISERROR($V569),\"\",OFFSET('Smelter Look-up'!$E$4,$V569-4,0))","v":""},{"$f":"IF(C569=$X$4,\"Enter smelter details\",IF(ISERROR($V569),\"\",OFFSET('Smelter Look-up'!$F$4,$V569-4,0)))","v":""},{"$f":"IF(ISERROR($V569),\"\",OFFSET('Smelter Look-up'!$G$4,$V569-4,0))","v":""},{"$f":"IF(ISERROR($V569),\"\",OFFSET('Smelter Look-up'!$H$4,$V569-4,0))","v":""},{"$f":"IF(ISERROR($V569),\"\",OFFSET('Smelter Look-up'!$I$4,$V569-4,0))","v":""},{"$nulls":7},{"$f":"IF(ISERROR($V569),\"\",OFFSET('Smelter Look-up'!$C$4,$V569-4,0)&\"\")","v":""},"",{"$f":"IF(B569=\"\",\"\",IF(ISERROR(MATCH($J569,SorP!$B$1:$B$5661,0)),\"\",INDIRECT(\"'SorP'!$A$\"&MATCH($J569,SorP!$B$1:$B$5661,0))))","v":""},null,{"$f":"IF(C569=\"\",NA(),MATCH($B569&$C569,'Smelter Look-up'!$J:$J,0))","v":{"$error":"#N/A"}},null,0,null,null,null,""]
[null,{"$f":"IF(LEN(A570)=0,\"\",INDEX('Smelter Look-up'!$A:$A,MATCH($A570,'Smelter Look-up'!$E:$E,0)))","v":""},{"$f":"IF(LEN(A570)=0,\"\",INDEX('Smelter Look-up'!$C:$C,MATCH($A570,'Smelter Look-up'!$E:$E,0)))","v":""},null,{"$f":"IF(ISERROR($V570),\"\",OFFSET('Smelter Look-up'!$D$4,$V570-4,0)&\"\")","v":""},{"$f":"IF(ISERROR($V570),\"\",OFFSET('Smelter Look-up'!$E$4,$V570-4,0))","v":""},{"$f":"IF(C570=$X$4,\"Enter smelter details\",IF(ISERROR($V570),\"\",OFFSET('Smelter Look-up'!$F$4,$V570-4,0)))","v":""},{"$f":"IF(ISERROR($V570),\"\",OFFSET('Smelter Look-up'!$G$4,$V570-4,0))","v":""},{"$f":"IF(ISERROR($V570),\"\",OFFSET('Smelter Look-up'!$H$4,$V570-4,0))","v":""},{"$f":"IF(ISERROR($V570),\"\",OFFSET('Smelter Look-up'!$I$4,$V570-4,0))","v":""},{"$nulls":7},{"$f":"IF(ISERROR($V570),\"\",OFFSET('Smelter Look-up'!$C$4,$V570-4,0)&\"\")","v":""},"",{"$f":"IF(B570=\"\",\"\",IF(ISERROR(MATCH($J570,SorP!$B$1:$B$5661,0)),\"\",INDIRECT(\"'SorP'!$A$\"&MATCH($J570,SorP!$B$1:$B$5661,0))))","v":""},null,{"$f":"IF(C570=\"\",NA(),MATCH($B570&$C570,'Smelter Look-up'!$J:$J,0))","v":{"$error":"#N/A"}},null,0,null,null,null,""]
[null,{"$f":"IF(LEN(A571)=0,\"\",INDEX('Smelter Look-up'!$A:$A,MATCH($A571,'Smelter Look-up'!$E:$E,0)))","v":""},{"$f":"IF(LEN(A571)=0,\"\",INDEX('Smelter Look-up'!$C:$C,MATCH($A571,'Smelter Look-up'!$E:$E,0)))","v":""},null,{"$f":"IF(ISERROR($V571),\"\",OFFSET('Smelter Look-up'!$D$4,$V571-4,0)&\"\")","v":""},{"$f":"IF(ISERROR($V571),\"\",OFFSET('Smelter Look-up'!$E$4,$V571-4,0))","v":""},{"$f":"IF(C571=$X$4,\"Enter smelter details\",IF(ISERROR($V571),\"\",OFFSET('Smelter Look-up'!$F$4,$V571-4,0)))","v":""},{"$f":"IF(ISERROR($V571),\"\",OFFSET('Smelter Look-up'!$G$4,$V571-4,0))","v":""},{"$f":"IF(ISERROR($V571),\"\",OFFSET('Smelter Look-up'!$H$4,$V571-4,0))","v":""},{"$f":"IF(ISERROR($V571),\"\",OFFSET('Smelter Look-up'!$I$4,$V571-4,0))","v":""},{"$nulls":7},{"$f":"IF(ISERROR($V571),\"\",OFFSET('Smelter Look-up'!$C$4,$V571-4,0)&\"\")","v":""},"",{"$f":"IF(B571=\"\",\"\",IF(ISERROR(MATCH($J571,SorP!$B$1:$B$5661,0)),\"\",INDIRECT(\"'SorP'!$A$\"&MATCH($J571,SorP!$B$1:$B$5661,0))))","v":""},null,{"$f":"IF(C571=\"\",NA(),MATCH($B571&$C571,'Smelter Look-up'!$J:$J,0))","v":{"$error":"#N/A"}},null,0,null,null,null,""]
[null,{"$f":"IF(LEN(A572)=0,\"\",INDEX('Smelter Look-up'!$A:$A,MATCH($A572,'Smelter Look-up'!$E:$E,0)))","v":""},{"$f":"IF(LEN(A572)=0,\"\",INDEX('Smelter Look-up'!$C:$C,MATCH($A572,'Smelter Look-up'!$E:$E,0)))","v":""},null,{"$f":"IF(ISERROR($V572),\"\",OFFSET('Smelter Look-up'!$D$4,$V572-4,0)&\"\")","v":""},{"$f":"IF(ISERROR($V572),\"\",OFFSET('Smelter Look-up'!$E$4,$V572-4,0))","v":""},{"$f":"IF(C572=$X$4,\"Enter smelter details\",IF(ISERROR($V572),\"\",OFFSET('Smelter Look-up'!$F$4,$V572-4,0)))","v":""},{"$f":"IF(ISERROR($V572),\"\",OFFSET('Smelter Look-up'!$G$4,$V572-4,0))","v":""},{"$f":"IF(ISERROR($V572),\"\",OFFSET('Smelter Look-up'!$H$4,$V572-4,0))","v":""},{"$f":"IF(ISERROR($V572),\"\",OFFSET('Smelter Look-up'!$I$4,$V572-4,0))","v":""},{"$nulls":7},{"$f":"IF(ISERROR($V572),\"\",OFFSET('Smelter Look-up'!$C$4,$V572-4,0)&\"\")","v":""},"",{"$f":"IF(B572=\"\",\"\",IF(ISERROR(MATCH($J572,SorP!$B$1:$B$5661,0)),\"\",INDIRECT(\"'SorP'!$A$\"&MATCH($J572,SorP!$B$1:$B$5661,0))))","v":""},null,{"$f":"IF(C572=\"\",NA(),MATCH($B572&$C572,'Smelter Look-up'!$J:$J,0))","v":{"$error":"#N/A"}},null,0,null,null,null,""]
[null,{"$f":"IF(LEN(A573)=0,\"\",INDEX('Smelter Look-up'!$A:$A,MATCH($A573,'Smelter Look-up'!$E:$E,0)))","v":""},{"$f":"IF(LEN(A573)=0,\"\",INDEX('Smelter Look-up'!$C:$C,MATCH($A573,'Smelter Look-up'!$E:$E,0)))","v":""},null,{"$f":"IF(ISERROR($V573),\"\",OFFSET('Smelter Look-up'!$D$4,$V573-4,0)&\"\")","v":""},{"$f":"IF(ISERROR($V573),\"\",OFFSET('Smelter Look-up'!$E$4,$V573-4,0))","v":""},{"$f":"IF(C573=$X$4,\"Enter smelter details\",IF(ISERROR($V573),\"\",OFFSET('Smelter Look-up'!$F$4,$V573-4,0)))","v":""},{"$f":"IF(ISERROR($V573),\"\",OFFSET('Smelter Look-up'!$G$4,$V573-4,0))","v":""},{"$f":"IF(ISERROR($V573),\"\",OFFSET('Smelter Look-up'!$H$4,$V573-4,0))","v":""},{"$f":"IF(ISERROR($V573),\"\",OFFSET('Smelter Look-up'!$I$4,$V573-4,0))","v":""},{"$nulls":7},{"$f":"IF(ISERROR($V573),\"\",OFFSET('Smelter Look-up'!$C$4,$V573-4,0)&\"\")","v":""},"",{"$f":"IF(B573=\"\",\"\",IF(ISERROR(MATCH($J573,SorP!$B$1:$B$5661,0)),\"\",INDIRECT(\"'SorP'!$A$\"&MATCH($J573,SorP!$B$1:$B$5661,0))))","v":""},null,{"$f":"IF(C573=\"\",NA(),MATCH($B573&$C573,'Smelter Look-up'!$J:$J,0))","v":{"$error":"#N/A"}},null,0,null,null,null,""]
[null,{"$f":"IF(LEN(A574)=0,\"\",INDEX('Smelter Look-up'!$A:$A,MATCH($A574,'Smelter Look-up'!$E:$E,0)))","v":""},{"$f":"IF(LEN(A574)=0,\"\",INDEX('Smelter Look-up'!$C:$C,MATCH($A574,'Smelter Look-up'!$E:$E,0)))","v":""},null,{"$f":"IF(ISERROR($V574),\"\",OFFSET('Smelter Look-up'!$D$4,$V574-4,0)&\"\")","v":""},{"$f":"IF(ISERROR($V574),\"\",OFFSET('Smelter Look-up'!$E$4,$V574-4,0))","v":""},{"$f":"IF(C574=$X$4,\"Enter smelter details\",IF(ISERROR($V574),\"\",OFFSET('Smelter Look-up'!$F$4,$V574-4,0)))","v":""},{"$f":"IF(ISERROR($V574),\"\",OFFSET('Smelter Look-up'!$G$4,$V574-4,0))","v":""},{"$f":"IF(ISERROR($V574),\"\",OFFSET('Smelter Look-up'!$H$4,$V574-4,0))","v":""},{"$f":"IF(ISERROR($V574),\"\",OFFSET('Smelter Look-up'!$I$4,$V574-4,0))","v":""},{"$nulls":7},{"$f":"IF(ISERROR($V574),\"\",OFFSET('Smelter Look-up'!$C$4,$V574-4,0)&\"\")","v":""},"",{"$f":"IF(B574=\"\",\"\",IF(ISERROR(MATCH($J574,SorP!$B$1:$B$5661,0)),\"\",INDIRECT(\"'SorP'!$A$\"&MATCH($J574,SorP!$B$1:$B$5661,0))))","v":""},null,{"$f":"IF(C574=\"\",NA(),MATCH($B574&$C574,'Smelter Look-up'!$J:$J,0))","v":{"$error":"#N/A"}},null,0,null,null,null,""]
[null,{"$f":"IF(LEN(A575)=0,\"\",INDEX('Smelter Look-up'!$A:$A,MATCH($A575,'Smelter Look-up'!$E:$E,0)))","v":""},{"$f":"IF(LEN(A575)=0,\"\",INDEX('Smelter Look-up'!$C:$C,MATCH($A575,'Smelter Look-up'!$E:$E,0)))","v":""},null,{"$f":"IF(ISERROR($V575),\"\",OFFSET('Smelter Look-up'!$D$4,$V575-4,0)&\"\")","v":""},{"$f":"IF(ISERROR($V575),\"\",OFFSET('Smelter Look-up'!$E$4,$V575-4,0))","v":""},{"$f":"IF(C575=$X$4,\"Enter smelter details\",IF(ISERROR($V575),\"\",OFFSET('Smelter Look-up'!$F$4,$V575-4,0)))","v":""},{"$f":"IF(ISERROR($V575),\"\",OFFSET('Smelter Look-up'!$G$4,$V575-4,0))","v":""},{"$f":"IF(ISERROR($V575),\"\",OFFSET('Smelter Look-up'!$H$4,$V575-4,0))","v":""},{"$f":"IF(ISERROR($V575),\"\",OFFSET('Smelter Look-up'!$I$4,$V575-4,0))","v":""},{"$nulls":7},{"$f":"IF(ISERROR($V575),\"\",OFFSET('Smelter Look-up'!$C$4,$V575-4,0)&\"\")","v":""},"",{"$f":"IF(B575=\"\",\"\",IF(ISERROR(MATCH($J575,SorP!$B$1:$B$5661,0)),\"\",INDIRECT(\"'SorP'!$A$\"&MATCH($J575,SorP!$B$1:$B$5661,0))))","v":""},null,{"$f":"IF(C575=\"\",NA(),MATCH($B575&$C575,'Smelter Look-up'!$J:$J,0))","v":{"$error":"#N/A"}},null,{"$f":"IF(AND(C575=\"Smelter not listed\",OR(LEN(D575)=0,LEN(E575)=0)),1,0)","v":0},null,null,null,{"$f":"B575&C575","v":""}]
[null,{"$f":"IF(LEN(A576)=0,\"\",INDEX('Smelter Look-up'!$A:$A,MATCH($A576,'Smelter Look-up'!$E:$E,0)))","v":""},{"$f":"IF(LEN(A576)=0,\"\",INDEX('Smelter Look-up'!$C:$C,MATCH($A576,'Smelter Look-up'!$E:$E,0)))","v":""},null,{"$f":"IF(ISERROR($V576),\"\",OFFSET('Smelter Look-up'!$D$4,$V576-4,0)&\"\")","v":""},{"$f":"IF(ISERROR($V576),\"\",OFFSET('Smelter Look-up'!$E$4,$V576-4,0))","v":""},{"$f":"IF(C576=$X$4,\"Enter smelter details\",IF(ISERROR($V576),\"\",OFFSET('Smelter Look-up'!$F$4,$V576-4,0)))","v":""},{"$f":"IF(ISERROR($V576),\"\",OFFSET('Smelter Look-up'!$G$4,$V576-4,0))","v":""},{"$f":"IF(ISERROR($V576),\"\",OFFSET('Smelter Look-up'!$H$4,$V576-4,0))","v":""},{"$f":"IF(ISERROR($V576),\"\",OFFSET('Smelter Look-up'!$I$4,$V576-4,0))","v":""},{"$nulls":7},{"$f":"IF(ISERROR($V576),\"\",OFFSET('Smelter Look-up'!$C$4,$V576-4,0)&\"\")","v":""},{"$f":"IF(B576=\"\",\"\",IF(ISERROR(MATCH($E576,CL,0)),\"Unknown\",INDIRECT(\"'C'!$A$\"&MATCH($E576,CL,0)+1)))","v":""},{"$f":"IF(B576=\"\",\"\",IF(ISERROR(MATCH($J576,SorP!$B$1:$B$5661,0)),\"\",INDIRECT(\"'SorP'!$A$\"&MATCH($J576,SorP!$B$1:$B$5661,0))))","v":""},null,{"$f":"IF(C576=\"\",NA(),MATCH($B576&$C576,'Smelter Look-up'!$J:$J,0))","v":{"$error":"#N/A"}},null,0,null,null,null,""]
[null,{"$f":"IF(LEN(A577)=0,\"\",INDEX('Smelter Look-up'!$A:$A,MATCH($A577,'Smelter Look-up'!$E:$E,0)))","v":""},{"$f":"IF(LEN(A577)=0,\"\",INDEX('Smelter Look-up'!$C:$C,MATCH($A577,'Smelter Look-up'!$E:$E,0)))","v":""},null,{"$f":"IF(ISERROR($V577),\"\",OFFSET('Smelter Look-up'!$D$4,$V577-4,0)&\"\")","v":""},{"$f":"IF(ISERROR($V577),\"\",OFFSET('Smelter Look-up'!$E$4,$V577-4,0))","v":""},{"$f":"IF(C577=$X$4,\"Enter smelter details\",IF(ISERROR($V577),\"\",OFFSET('Smelter Look-up'!$F$4,$V577-4,0)))","v":""},{"$f":"IF(ISERROR($V577),\"\",OFFSET('Smelter Look-up'!$G$4,$V577-4,0))","v":""},{"$f":"IF(ISERROR($V577),\"\",OFFSET('Smelter Look-up'!$H$4,$V577-4,0))","v":""},{"$f":"IF(ISERROR($V577),\"\",OFFSET('Smelter Look-up'!$I$4,$V577-4,0))","v":""},{"$nulls":7},{"$f":"IF(ISERROR($V577),\"\",OFFSET('Smelter Look-up'!$C$4,$V577-4,0)&\"\")","v":""},"",{"$f":"IF(B577=\"\",\"\",IF(ISERROR(MATCH($J577,SorP!$B$1:$B$5661,0)),\"\",INDIRECT(\"'SorP'!$A$\"&MATCH($J577,SorP!$B$1:$B$5661,0))))","v":""},null,{"$f":"IF(C577=\"\",NA(),MATCH($B577&$C577,'Smelter Look-up'!$J:$J,0))","v":{"$error":"#N/A"}},null,0,null,null,null,""]
[null,{"$f":"IF(LEN(A578)=0,\"\",INDEX('Smelter Look-up'!$A:$A,MATCH($A578,'Smelter Look-up'!$E:$E,0)))","v":""},{"$f":"IF(LEN(A578)=0,\"\",INDEX('Smelter Look-up'!$C:$C,MATCH($A578,'Smelter Look-up'!$E:$E,0)))","v":""},null,{"$f":"IF(ISERROR($V578),\"\",OFFSET('Smelter Look-up'!$D$4,$V578-4,0)&\"\")","v":""},{"$f":"IF(ISERROR($V578),\"\",OFFSET('Smelter Look-up'!$E$4,$V578-4,0))","v":""},{"$f":"IF(C578=$X$4,\"Enter smelter details\",IF(ISERROR($V578),\"\",OFFSET('Smelter Look-up'!$F$4,$V578-4,0)))","v":""},{"$f":"IF(ISERROR($V578),\"\",OFFSET('Smelter Look-up'!$G$4,$V578-4,0))","v":""},{"$f":"IF(ISERROR($V578),\"\",OFFSET('Smelter Look-up'!$H$4,$V578-4,0))","v":""},{"$f":"IF(ISERROR($V578),\"\",OFFSET('Smelter Look-up'!$I$4,$V578-4,0))","v":""},{"$nulls":7},{"$f":"IF(ISERROR($V578),\"\",OFFSET('Smelter Look-up'!$C$4,$V578-4,0)&\"\")","v":""},"",{"$f":"IF(B578=\"\",\"\",IF(ISERROR(MATCH($J578,SorP!$B$1:$B$5661,0)),\"\",INDIRECT(\"'SorP'!$A$\"&MATCH($J578,SorP!$B$1:$B$5661,0))))","v":""},null,{"$f":"IF(C578=\"\",NA(),MATCH($B578&$C578,'Smelter Look-up'!$J:$J,0))","v":{"$error":"#N/A"}},null,0,null,null,null,""]
[null,{"$f":"IF(LEN(A579)=0,\"\",INDEX('Smelter Look-up'!$A:$A,MATCH($A579,'Smelter Look-up'!$E:$E,0)))","v":""},{"$f":"IF(LEN(A579)=0,\"\",INDEX('Smelter Look-up'!$C:$C,MATCH($A579,'Smelter Look-up'!$E:$E,0)))","v":""},null,{"$f":"IF(ISERROR($V579),\"\",OFFSET('Smelter Look-up'!$D$4,$V579-4,0)&\"\")","v":""},{"$f":"IF(ISERROR($V579),\"\",OFFSET('Smelter Look-up'!$E$4,$V579-4,0))","v":""},{"$f":"IF(C579=$X$4,\"Enter smelter details\",IF(ISERROR($V579),\"\",OFFSET('Smelter Look-up'!$F$4,$V579-4,0)))","v":""},{"$f":"IF(ISERROR($V579),\"\",OFFSET('Smelter Look-up'!$G$4,$V579-4,0))","v":""},{"$f":"IF(ISERROR($V579),\"\",OFFSET('Smelter Look-up'!$H$4,$V579-4,0))","v":""},{"$f":"IF(ISERROR($V579),\"\",OFFSET('Smelter Look-up'!$I$4,$V579-4,0))","v":""},{"$nulls":7},{"$f":"IF(ISERROR($V579),\"\",OFFSET('Smelter Look-up'!$C$4,$V579-4,0)&\"\")","v":""},"",{"$f":"IF(B579=\"\",\"\",IF(ISERROR(MATCH($J579,SorP!$B$1:$B$5661,0)),\"\",INDIRECT(\"'SorP'!$A$\"&MATCH($J579,SorP!$B$1:$B$5661,0))))","v":""},null,{"$f":"IF(C579=\"\",NA(),MATCH($B579&$C579,'Smelter Look-up'!$J:$J,0))","v":{"$error":"#N/A"}},null,0,null,null,null,""]
[null,{"$f":"IF(LEN(A580)=0,\"\",INDEX('Smelter Look-up'!$A:$A,MATCH($A580,'Smelter Look-up'!$E:$E,0)))","v":""},{"$f":"IF(LEN(A580)=0,\"\",INDEX('Smelter Look-up'!$C:$C,MATCH($A580,'Smelter Look-up'!$E:$E,0)))","v":""},null,{"$f":"IF(ISERROR($V580),\"\",OFFSET('Smelter Look-up'!$D$4,$V580-4,0)&\"\")","v":""},{"$f":"IF(ISERROR($V580),\"\",OFFSET('Smelter Look-up'!$E$4,$V580-4,0))","v":""},{"$f":"IF(C580=$X$4,\"Enter smelter details\",IF(ISERROR($V580),\"\",OFFSET('Smelter Look-up'!$F$4,$V580-4,0)))","v":""},{"$f":"IF(ISERROR($V580),\"\",OFFSET('Smelter Look-up'!$G$4,$V580-4,0))","v":""},{"$f":"IF(ISERROR($V580),\"\",OFFSET('Smelter Look-up'!$H$4,$V580-4,0))","v":""},{"$f":"IF(ISERROR($V580),\"\",OFFSET('Smelter Look-up'!$I$4,$V580-4,0))","v":""},{"$nulls":7},{"$f":"IF(ISERROR($V580),\"\",OFFSET('Smelter Look-up'!$C$4,$V580-4,0)&\"\")","v":""},"",{"$f":"IF(B580=\"\",\"\",IF(ISERROR(MATCH($J580,SorP!$B$1:$B$5661,0)),\"\",INDIRECT(\"'SorP'!$A$\"&MATCH($J580,SorP!$B$1:$B$5661,0))))","v":""},null,{"$f":"IF(C580=\"\",NA(),MATCH($B580&$C580,'Smelter Look-up'!$J:$J,0))","v":{"$error":"#N/A"}},null,0,null,null,null,""]
[null,{"$f":"IF(LEN(A581)=0,\"\",INDEX('Smelter Look-up'!$A:$A,MATCH($A581,'Smelter Look-up'!$E:$E,0)))","v":""},{"$f":"IF(LEN(A581)=0,\"\",INDEX('Smelter Look-up'!$C:$C,MATCH($A581,'Smelter Look-up'!$E:$E,0)))","v":""},null,{"$f":"IF(ISERROR($V581),\"\",OFFSET('Smelter Look-up'!$D$4,$V581-4,0)&\"\")","v":""},{"$f":"IF(ISERROR($V581),\"\",OFFSET('Smelter Look-up'!$E$4,$V581-4,0))","v":""},{"$f":"IF(C581=$X$4,\"Enter smelter details\",IF(ISERROR($V581),\"\",OFFSET('Smelter Look-up'!$F$4,$V581-4,0)))","v":""},{"$f":"IF(ISERROR($V581),\"\",OFFSET('Smelter Look-up'!$G$4,$V581-4,0))","v":""},{"$f":"IF(ISERROR($V581),\"\",OFFSET('Smelter Look-up'!$H$4,$V581-4,0))","v":""},{"$f":"IF(ISERROR($V581),\"\",OFFSET('Smelter Look-up'!$I$4,$V581-4,0))","v":""},{"$nulls":7},{"$f":"IF(ISERROR($V581),\"\",OFFSET('Smelter Look-up'!$C$4,$V581-4,0)&\"\")","v":""},"",{"$f":"IF(B581=\"\",\"\",IF(ISERROR(MATCH($J581,SorP!$B$1:$B$5661,0)),\"\",INDIRECT(\"'SorP'!$A$\"&MATCH($J581,SorP!$B$1:$B$5661,0))))","v":""},null,{"$f":"IF(C581=\"\",NA(),MATCH($B581&$C581,'Smelter Look-up'!$J:$J,0))","v":{"$error":"#N/A"}},null,0,null,null,null,""]
[null,{"$f":"IF(LEN(A582)=0,\"\",INDEX('Smelter Look-up'!$A:$A,MATCH($A582,'Smelter Look-up'!$E:$E,0)))","v":""},{"$f":"IF(LEN(A582)=0,\"\",INDEX('Smelter Look-up'!$C:$C,MATCH($A582,'Smelter Look-up'!$E:$E,0)))","v":""},null,{"$f":"IF(ISERROR($V582),\"\",OFFSET('Smelter Look-up'!$D$4,$V582-4,0)&\"\")","v":""},{"$f":"IF(ISERROR($V582),\"\",OFFSET('Smelter Look-up'!$E$4,$V582-4,0))","v":""},{"$f":"IF(C582=$X$4,\"Enter smelter details\",IF(ISERROR($V582),\"\",OFFSET('Smelter Look-up'!$F$4,$V582-4,0)))","v":""},{"$f":"IF(ISERROR($V582),\"\",OFFSET('Smelter Look-up'!$G$4,$V582-4,0))","v":""},{"$f":"IF(ISERROR($V582),\"\",OFFSET('Smelter Look-up'!$H$4,$V582-4,0))","v":""},{"$f":"IF(ISERROR($V582),\"\",OFFSET('Smelter Look-up'!$I$4,$V582-4,0))","v":""},{"$nulls":7},{"$f":"IF(ISERROR($V582),\"\",OFFSET('Smelter Look-up'!$C$4,$V582-4,0)&\"\")","v":""},"",{"$f":"IF(B582=\"\",\"\",IF(ISERROR(MATCH($J582,SorP!$B$1:$B$5661,0)),\"\",INDIRECT(\"'SorP'!$A$\"&MATCH($J582,SorP!$B$1:$B$5661,0))))","v":""},null,{"$f":"IF(C582=\"\",NA(),MATCH($B582&$C582,'Smelter Look-up'!$J:$J,0))","v":{"$error":"#N/A"}},null,0,null,null,null,""]
[null,{"$f":"IF(LEN(A583)=0,\"\",INDEX('Smelter Look-up'!$A:$A,MATCH($A583,'Smelter Look-up'!$E:$E,0)))","v":""},{"$f":"IF(LEN(A583)=0,\"\",INDEX('Smelter Look-up'!$C:$C,MATCH($A583,'Smelter Look-up'!$E:$E,0)))","v":""},null,{"$f":"IF(ISERROR($V583),\"\",OFFSET('Smelter Look-up'!$D$4,$V583-4,0)&\"\")","v":""},{"$f":"IF(ISERROR($V583),\"\",OFFSET('Smelter Look-up'!$E$4,$V583-4,0))","v":""},{"$f":"IF(C583=$X$4,\"Enter smelter details\",IF(ISERROR($V583),\"\",OFFSET('Smelter Look-up'!$F$4,$V583-4,0)))","v":""},{"$f":"IF(ISERROR($V583),\"\",OFFSET('Smelter Look-up'!$G$4,$V583-4,0))","v":""},{"$f":"IF(ISERROR($V583),\"\",OFFSET('Smelter Look-up'!$H$4,$V583-4,0))","v":""},{"$f":"IF(ISERROR($V583),\"\",OFFSET('Smelter Look-up'!$I$4,$V583-4,0))","v":""},{"$nulls":7},{"$f":"IF(ISERROR($V583),\"\",OFFSET('Smelter Look-up'!$C$4,$V583-4,0)&\"\")","v":""},"",{"$f":"IF(B583=\"\",\"\",IF(ISERROR(MATCH($J583,SorP!$B$1:$B$5661,0)),\"\",INDIRECT(\"'SorP'!$A$\"&MATCH($J583,SorP!$B$1:$B$5661,0))))","v":""},null,{"$f":"IF(C583=\"\",NA(),MATCH($B583&$C583,'Smelter Look-up'!$J:$J,0))","v":{"$error":"#N/A"}},null,0,null,null,null,""]
[null,{"$f":"IF(LEN(A584)=0,\"\",INDEX('Smelter Look-up'!$A:$A,MATCH($A584,'Smelter Look-up'!$E:$E,0)))","v":""},{"$f":"IF(LEN(A584)=0,\"\",INDEX('Smelter Look-up'!$C:$C,MATCH($A584,'Smelter Look-up'!$E:$E,0)))","v":""},null,{"$f":"IF(ISERROR($V584),\"\",OFFSET('Smelter Look-up'!$D$4,$V584-4,0)&\"\")","v":""},{"$f":"IF(ISERROR($V584),\"\",OFFSET('Smelter Look-up'!$E$4,$V584-4,0))","v":""},{"$f":"IF(C584=$X$4,\"Enter smelter details\",IF(ISERROR($V584),\"\",OFFSET('Smelter Look-up'!$F$4,$V584-4,0)))","v":""},{"$f":"IF(ISERROR($V584),\"\",OFFSET('Smelter Look-up'!$G$4,$V584-4,0))","v":""},{"$f":"IF(ISERROR($V584),\"\",OFFSET('Smelter Look-up'!$H$4,$V584-4,0))","v":""},{"$f":"IF(ISERROR($V584),\"\",OFFSET('Smelter Look-up'!$I$4,$V584-4,0))","v":""},{"$nulls":7},{"$f":"IF(ISERROR($V584),\"\",OFFSET('Smelter Look-up'!$C$4,$V584-4,0)&\"\")","v":""},"",{"$f":"IF(B584=\"\",\"\",IF(ISERROR(MATCH($J584,SorP!$B$1:$B$5661,0)),\"\",INDIRECT(\"'SorP'!$A$\"&MATCH($J584,SorP!$B$1:$B$5661,0))))","v":""},null,{"$f":"IF(C584=\"\",NA(),MATCH($B584&$C584,'Smelter Look-up'!$J:$J,0))","v":{"$error":"#N/A"}},null,0,null,null,null,""]
[null,{"$f":"IF(LEN(A585)=0,\"\",INDEX('Smelter Look-up'!$A:$A,MATCH($A585,'Smelter Look-up'!$E:$E,0)))","v":""},{"$f":"IF(LEN(A585)=0,\"\",INDEX('Smelter Look-up'!$C:$C,MATCH($A585,'Smelter Look-up'!$E:$E,0)))","v":""},null,{"$f":"IF(ISERROR($V585),\"\",OFFSET('Smelter Look-up'!$D$4,$V585-4,0)&\"\")","v":""},{"$f":"IF(ISERROR($V585),\"\",OFFSET('Smelter Look-up'!$E$4,$V585-4,0))","v":""},{"$f":"IF(C585=$X$4,\"Enter smelter details\",IF(ISERROR($V585),\"\",OFFSET('Smelter Look-up'!$F$4,$V585-4,0)))","v":""},{"$f":"IF(ISERROR($V585),\"\",OFFSET('Smelter Look-up'!$G$4,$V585-4,0))","v":""},{"$f":"IF(ISERROR($V585),\"\",OFFSET('Smelter Look-up'!$H$4,$V585-4,0))","v":""},{"$f":"IF(ISERROR($V585),\"\",OFFSET('Smelter Look-up'!$I$4,$V585-4,0))","v":""},{"$nulls":7},{"$f":"IF(ISERROR($V585),\"\",OFFSET('Smelter Look-up'!$C$4,$V585-4,0)&\"\")","v":""},"",{"$f":"IF(B585=\"\",\"\",IF(ISERROR(MATCH($J585,SorP!$B$1:$B$5661,0)),\"\",INDIRECT(\"'SorP'!$A$\"&MATCH($J585,SorP!$B$1:$B$5661,0))))","v":""},null,{"$f":"IF(C585=\"\",NA(),MATCH($B585&$C585,'Smelter Look-up'!$J:$J,0))","v":{"$error":"#N/A"}},null,0,null,null,null,""]
[null,{"$f":"IF(LEN(A586)=0,\"\",INDEX('Smelter Look-up'!$A:$A,MATCH($A586,'Smelter Look-up'!$E:$E,0)))","v":""},{"$f":"IF(LEN(A586)=0,\"\",INDEX('Smelter Look-up'!$C:$C,MATCH($A586,'Smelter Look-up'!$E:$E,0)))","v":""},null,{"$f":"IF(ISERROR($V586),\"\",OFFSET('Smelter Look-up'!$D$4,$V586-4,0)&\"\")","v":""},{"$f":"IF(ISERROR($V586),\"\",OFFSET('Smelter Look-up'!$E$4,$V586-4,0))","v":""},{"$f":"IF(C586=$X$4,\"Enter smelter details\",IF(ISERROR($V586),\"\",OFFSET('Smelter Look-up'!$F$4,$V586-4,0)))","v":""},{"$f":"IF(ISERROR($V586),\"\",OFFSET('Smelter Look-up'!$G$4,$V586-4,0))","v":""},{"$f":"IF(ISERROR($V586),\"\",OFFSET('Smelter Look-up'!$H$4,$V586-4,0))","v":""},{"$f":"IF(ISERROR($V586),\"\",OFFSET('Smelter Look-up'!$I$4,$V586-4,0))","v":""},{"$nulls":7},{"$f":"IF(ISERROR($V586),\"\",OFFSET('Smelter Look-up'!$C$4,$V586-4,0)&\"\")","v":""},"",{"$f":"IF(B586=\"\",\"\",IF(ISERROR(MATCH($J586,SorP!$B$1:$B$5661,0)),\"\",INDIRECT(\"'SorP'!$A$\"&MATCH($J586,SorP!$B$1:$B$5661,0))))","v":""},null,{"$f":"IF(C586=\"\",NA(),MATCH($B586&$C586,'Smelter Look-up'!$J:$J,0))","v":{"$error":"#N/A"}},null,0,null,null,null,""]
[null,{"$f":"IF(LEN(A587)=0,\"\",INDEX('Smelter Look-up'!$A:$A,MATCH($A587,'Smelter Look-up'!$E:$E,0)))","v":""},{"$f":"IF(LEN(A587)=0,\"\",INDEX('Smelter Look-up'!$C:$C,MATCH($A587,'Smelter Look-up'!$E:$E,0)))","v":""},null,{"$f":"IF(ISERROR($V587),\"\",OFFSET('Smelter Look-up'!$D$4,$V587-4,0)&\"\")","v":""},{"$f":"IF(ISERROR($V587),\"\",OFFSET('Smelter Look-up'!$E$4,$V587-4,0))","v":""},{"$f":"IF(C587=$X$4,\"Enter smelter details\",IF(ISERROR($V587),\"\",OFFSET('Smelter Look-up'!$F$4,$V587-4,0)))","v":""},{"$f":"IF(ISERROR($V587),\"\",OFFSET('Smelter Look-up'!$G$4,$V587-4,0))","v":""},{"$f":"IF(ISERROR($V587),\"\",OFFSET('Smelter Look-up'!$H$4,$V587-4,0))","v":""},{"$f":"IF(ISERROR($V587),\"\",OFFSET('Smelter Look-up'!$I$4,$V587-4,0))","v":""},{"$nulls":7},{"$f":"IF(ISERROR($V587),\"\",OFFSET('Smelter Look-up'!$C$4,$V587-4,0)&\"\")","v":""},"",{"$f":"IF(B587=\"\",\"\",IF(ISERROR(MATCH($J587,SorP!$B$1:$B$5661,0)),\"\",INDIRECT(\"'SorP'!$A$\"&MATCH($J587,SorP!$B$1:$B$5661,0))))","v":""},null,{"$f":"IF(C587=\"\",NA(),MATCH($B587&$C587,'Smelter Look-up'!$J:$J,0))","v":{"$error":"#N/A"}},null,0,null,null,null,""]
[null,{"$f":"IF(LEN(A588)=0,\"\",INDEX('Smelter Look-up'!$A:$A,MATCH($A588,'Smelter Look-up'!$E:$E,0)))","v":""},{"$f":"IF(LEN(A588)=0,\"\",INDEX('Smelter Look-up'!$C:$C,MATCH($A588,'Smelter Look-up'!$E:$E,0)))","v":""},null,{"$f":"IF(ISERROR($V588),\"\",OFFSET('Smelter Look-up'!$D$4,$V588-4,0)&\"\")","v":""},{"$f":"IF(ISERROR($V588),\"\",OFFSET('Smelter Look-up'!$E$4,$V588-4,0))","v":""},{"$f":"IF(C588=$X$4,\"Enter smelter details\",IF(ISERROR($V588),\"\",OFFSET('Smelter Look-up'!$F$4,$V588-4,0)))","v":""},{"$f":"IF(ISERROR($V588),\"\",OFFSET('Smelter Look-up'!$G$4,$V588-4,0))","v":""},{"$f":"IF(ISERROR($V588),\"\",OFFSET('Smelter Look-up'!$H$4,$V588-4,0))","v":""},{"$f":"IF(ISERROR($V588),\"\",OFFSET('Smelter Look-up'!$I$4,$V588-4,0))","v":""},{"$nulls":7},{"$f":"IF(ISERROR($V588),\"\",OFFSET('Smelter Look-up'!$C$4,$V588-4,0)&\"\")","v":""},"",{"$f":"IF(B588=\"\",\"\",IF(ISERROR(MATCH($J588,SorP!$B$1:$B$5661,0)),\"\",INDIRECT(\"'SorP'!$A$\"&MATCH($J588,SorP!$B$1:$B$5661,0))))","v":""},null,{"$f":"IF(C588=\"\",NA(),MATCH($B588&$C588,'Smelter Look-up'!$J:$J,0))","v":{"$error":"#N/A"}},null,0,null,null,null,""]
[null,{"$f":"IF(LEN(A589)=0,\"\",INDEX('Smelter Look-up'!$A:$A,MATCH($A589,'Smelter Look-up'!$E:$E,0)))","v":""},{"$f":"IF(LEN(A589)=0,\"\",INDEX('Smelter Look-up'!$C:$C,MATCH($A589,'Smelter Look-up'!$E:$E,0)))","v":""},null,{"$f":"IF(ISERROR($V589),\"\",OFFSET('Smelter Look-up'!$D$4,$V589-4,0)&\"\")","v":""},{"$f":"IF(ISERROR($V589),\"\",OFFSET('Smelter Look-up'!$E$4,$V589-4,0))","v":""},{"$f":"IF(C589=$X$4,\"Enter smelter details\",IF(ISERROR($V589),\"\",OFFSET('Smelter Look-up'!$F$4,$V589-4,0)))","v":""},{"$f":"IF(ISERROR($V589),\"\",OFFSET('Smelter Look-up'!$G$4,$V589-4,0))","v":""},{"$f":"IF(ISERROR($V589),\"\",OFFSET('Smelter Look-up'!$H$4,$V589-4,0))","v":""},{"$f":"IF(ISERROR($V589),\"\",OFFSET('Smelter Look-up'!$I$4,$V589-4,0))","v":""},{"$nulls":7},{"$f":"IF(ISERROR($V589),\"\",OFFSET('Smelter Look-up'!$C$4,$V589-4,0)&\"\")","v":""},"",{"$f":"IF(B589=\"\",\"\",IF(ISERROR(MATCH($J589,SorP!$B$1:$B$5661,0)),\"\",INDIRECT(\"'SorP'!$A$\"&MATCH($J589,SorP!$B$1:$B$5661,0))))","v":""},null,{"$f":"IF(C589=\"\",NA(),MATCH($B589&$C589,'Smelter Look-up'!$J:$J,0))","v":{"$error":"#N/A"}},null,0,null,null,null,""]
[null,{"$f":"IF(LEN(A590)=0,\"\",INDEX('Smelter Look-up'!$A:$A,MATCH($A590,'Smelter Look-up'!$E:$E,0)))","v":""},{"$f":"IF(LEN(A590)=0,\"\",INDEX('Smelter Look-up'!$C:$C,MATCH($A590,'Smelter Look-up'!$E:$E,0)))","v":""},null,{"$f":"IF(ISERROR($V590),\"\",OFFSET('Smelter Look-up'!$D$4,$V590-4,0)&\"\")","v":""},{"$f":"IF(ISERROR($V590),\"\",OFFSET('Smelter Look-up'!$E$4,$V590-4,0))","v":""},{"$f":"IF(C590=$X$4,\"Enter smelter details\",IF(ISERROR($V590),\"\",OFFSET('Smelter Look-up'!$F$4,$V590-4,0)))","v":""},{"$f":"IF(ISERROR($V590),\"\",OFFSET('Smelter Look-up'!$G$4,$V590-4,0))","v":""},{"$f":"IF(ISERROR($V590),\"\",OFFSET('Smelter Look-up'!$H$4,$V590-4,0))","v":""},{"$f":"IF(ISERROR($V590),\"\",OFFSET('Smelter Look-up'!$I$4,$V590-4,0))","v":""},{"$nulls":7},{"$f":"IF(ISERROR($V590),\"\",OFFSET('Smelter Look-up'!$C$4,$V590-4,0)&\"\")","v":""},"",{"$f":"IF(B590=\"\",\"\",IF(ISERROR(MATCH($J590,SorP!$B$1:$B$5661,0)),\"\",INDIRECT(\"'SorP'!$A$\"&MATCH($J590,SorP!$B$1:$B$5661,0))))","v":""},null,{"$f":"IF(C590=\"\",NA(),MATCH($B590&$C590,'Smelter Look-up'!$J:$J,0))","v":{"$error":"#N/A"}},null,0,null,null,null,""]
[null,{"$f":"IF(LEN(A591)=0,\"\",INDEX('Smelter Look-up'!$A:$A,MATCH($A591,'Smelter Look-up'!$E:$E,0)))","v":""},{"$f":"IF(LEN(A591)=0,\"\",INDEX('Smelter Look-up'!$C:$C,MATCH($A591,'Smelter Look-up'!$E:$E,0)))","v":""},null,{"$f":"IF(ISERROR($V591),\"\",OFFSET('Smelter Look-up'!$D$4,$V591-4,0)&\"\")","v":""},{"$f":"IF(ISERROR($V591),\"\",OFFSET('Smelter Look-up'!$E$4,$V591-4,0))","v":""},{"$f":"IF(C591=$X$4,\"Enter smelter details\",IF(ISERROR($V591),\"\",OFFSET('Smelter Look-up'!$F$4,$V591-4,0)))","v":""},{"$f":"IF(ISERROR($V591),\"\",OFFSET('Smelter Look-up'!$G$4,$V591-4,0))","v":""},{"$f":"IF(ISERROR($V591),\"\",OFFSET('Smelter Look-up'!$H$4,$V591-4,0))","v":""},{"$f":"IF(ISERROR($V591),\"\",OFFSET('Smelter Look-up'!$I$4,$V591-4,0))","v":""},{"$nulls":7},{"$f":"IF(ISERROR($V591),\"\",OFFSET('Smelter Look-up'!$C$4,$V591-4,0)&\"\")","v":""},"",{"$f":"IF(B591=\"\",\"\",IF(ISERROR(MATCH($J591,SorP!$B$1:$B$5661,0)),\"\",INDIRECT(\"'SorP'!$A$\"&MATCH($J591,SorP!$B$1:$B$5661,0))))","v":""},null,{"$f":"IF(C591=\"\",NA(),MATCH($B591&$C591,'Smelter Look-up'!$J:$J,0))","v":{"$error":"#N/A"}},null,0,null,null,null,""]
[null,{"$f":"IF(LEN(A592)=0,\"\",INDEX('Smelter Look-up'!$A:$A,MATCH($A592,'Smelter Look-up'!$E:$E,0)))","v":""},{"$f":"IF(LEN(A592)=0,\"\",INDEX('Smelter Look-up'!$C:$C,MATCH($A592,'Smelter Look-up'!$E:$E,0)))","v":""},null,{"$f":"IF(ISERROR($V592),\"\",OFFSET('Smelter Look-up'!$D$4,$V592-4,0)&\"\")","v":""},{"$f":"IF(ISERROR($V592),\"\",OFFSET('Smelter Look-up'!$E$4,$V592-4,0))","v":""},{"$f":"IF(C592=$X$4,\"Enter smelter details\",IF(ISERROR($V592),\"\",OFFSET('Smelter Look-up'!$F$4,$V592-4,0)))","v":""},{"$f":"IF(ISERROR($V592),\"\",OFFSET('Smelter Look-up'!$G$4,$V592-4,0))","v":""},{"$f":"IF(ISERROR($V592),\"\",OFFSET('Smelter Look-up'!$H$4,$V592-4,0))","v":""},{"$f":"IF(ISERROR($V592),\"\",OFFSET('Smelter Look-up'!$I$4,$V592-4,0))","v":""},{"$nulls":7},{"$f":"IF(ISERROR($V592),\"\",OFFSET('Smelter Look-up'!$C$4,$V592-4,0)&\"\")","v":""},"",{"$f":"IF(B592=\"\",\"\",IF(ISERROR(MATCH($J592,SorP!$B$1:$B$5661,0)),\"\",INDIRECT(\"'SorP'!$A$\"&MATCH($J592,SorP!$B$1:$B$5661,0))))","v":""},null,{"$f":"IF(C592=\"\",NA(),MATCH($B592&$C592,'Smelter Look-up'!$J:$J,0))","v":{"$error":"#N/A"}},null,0,null,null,null,""]
[null,{"$f":"IF(LEN(A593)=0,\"\",INDEX('Smelter Look-up'!$A:$A,MATCH($A593,'Smelter Look-up'!$E:$E,0)))","v":""},{"$f":"IF(LEN(A593)=0,\"\",INDEX('Smelter Look-up'!$C:$C,MATCH($A593,'Smelter Look-up'!$E:$E,0)))","v":""},null,{"$f":"IF(ISERROR($V593),\"\",OFFSET('Smelter Look-up'!$D$4,$V593-4,0)&\"\")","v":""},{"$f":"IF(ISERROR($V593),\"\",OFFSET('Smelter Look-up'!$E$4,$V593-4,0))","v":""},{"$f":"IF(C593=$X$4,\"Enter smelter details\",IF(ISERROR($V593),\"\",OFFSET('Smelter Look-up'!$F$4,$V593-4,0)))","v":""},{"$f":"IF(ISERROR($V593),\"\",OFFSET('Smelter Look-up'!$G$4,$V593-4,0))","v":""},{"$f":"IF(ISERROR($V593),\"\",OFFSET('Smelter Look-up'!$H$4,$V593-4,0))","v":""},{"$f":"IF(ISERROR($V593),\"\",OFFSET('Smelter Look-up'!$I$4,$V593-4,0))","v":""},{"$nulls":7},{"$f":"IF(ISERROR($V593),\"\",OFFSET('Smelter Look-up'!$C$4,$V593-4,0)&\"\")","v":""},"",{"$f":"IF(B593=\"\",\"\",IF(ISERROR(MATCH($J593,SorP!$B$1:$B$5661,0)),\"\",INDIRECT(\"'SorP'!$A$\"&MATCH($J593,SorP!$B$1:$B$5661,0))))","v":""},null,{"$f":"IF(C593=\"\",NA(),MATCH($B593&$C593,'Smelter Look-up'!$J:$J,0))","v":{"$error":"#N/A"}},null,0,null,null,null,""]
[null,{"$f":"IF(LEN(A594)=0,\"\",INDEX('Smelter Look-up'!$A:$A,MATCH($A594,'Smelter Look-up'!$E:$E,0)))","v":""},{"$f":"IF(LEN(A594)=0,\"\",INDEX('Smelter Look-up'!$C:$C,MATCH($A594,'Smelter Look-up'!$E:$E,0)))","v":""},null,{"$f":"IF(ISERROR($V594),\"\",OFFSET('Smelter Look-up'!$D$4,$V594-4,0)&\"\")","v":""},{"$f":"IF(ISERROR($V594),\"\",OFFSET('Smelter Look-up'!$E$4,$V594-4,0))","v":""},{"$f":"IF(C594=$X$4,\"Enter smelter details\",IF(ISERROR($V594),\"\",OFFSET('Smelter Look-up'!$F$4,$V594-4,0)))","v":""},{"$f":"IF(ISERROR($V594),\"\",OFFSET('Smelter Look-up'!$G$4,$V594-4,0))","v":""},{"$f":"IF(ISERROR($V594),\"\",OFFSET('Smelter Look-up'!$H$4,$V594-4,0))","v":""},{"$f":"IF(ISERROR($V594),\"\",OFFSET('Smelter Look-up'!$I$4,$V594-4,0))","v":""},{"$nulls":7},{"$f":"IF(ISERROR($V594),\"\",OFFSET('Smelter Look-up'!$C$4,$V594-4,0)&\"\")","v":""},"",{"$f":"IF(B594=\"\",\"\",IF(ISERROR(MATCH($J594,SorP!$B$1:$B$5661,0)),\"\",INDIRECT(\"'SorP'!$A$\"&MATCH($J594,SorP!$B$1:$B$5661,0))))","v":""},null,{"$f":"IF(C594=\"\",NA(),MATCH($B594&$C594,'Smelter Look-up'!$J:$J,0))","v":{"$error":"#N/A"}},null,0,null,null,null,""]
[null,{"$f":"IF(LEN(A595)=0,\"\",INDEX('Smelter Look-up'!$A:$A,MATCH($A595,'Smelter Look-up'!$E:$E,0)))","v":""},{"$f":"IF(LEN(A595)=0,\"\",INDEX('Smelter Look-up'!$C:$C,MATCH($A595,'Smelter Look-up'!$E:$E,0)))","v":""},null,{"$f":"IF(ISERROR($V595),\"\",OFFSET('Smelter Look-up'!$D$4,$V595-4,0)&\"\")","v":""},{"$f":"IF(ISERROR($V595),\"\",OFFSET('Smelter Look-up'!$E$4,$V595-4,0))","v":""},{"$f":"IF(C595=$X$4,\"Enter smelter details\",IF(ISERROR($V595),\"\",OFFSET('Smelter Look-up'!$F$4,$V595-4,0)))","v":""},{"$f":"IF(ISERROR($V595),\"\",OFFSET('Smelter Look-up'!$G$4,$V595-4,0))","v":""},{"$f":"IF(ISERROR($V595),\"\",OFFSET('Smelter Look-up'!$H$4,$V595-4,0))","v":""},{"$f":"IF(ISERROR($V595),\"\",OFFSET('Smelter Look-up'!$I$4,$V595-4,0))","v":""},{"$nulls":7},{"$f":"IF(ISERROR($V595),\"\",OFFSET('Smelter Look-up'!$C$4,$V595-4,0)&\"\")","v":""},"",{"$f":"IF(B595=\"\",\"\",IF(ISERROR(MATCH($J595,SorP!$B$1:$B$5661,0)),\"\",INDIRECT(\"'SorP'!$A$\"&MATCH($J595,SorP!$B$1:$B$5661,0))))","v":""},null,{"$f":"IF(C595=\"\",NA(),MATCH($B595&$C595,'Smelter Look-up'!$J:$J,0))","v":{"$error":"#N/A"}},null,0,null,null,null,""]
[null,{"$f":"IF(LEN(A596)=0,\"\",INDEX('Smelter Look-up'!$A:$A,MATCH($A596,'Smelter Look-up'!$E:$E,0)))","v":""},{"$f":"IF(LEN(A596)=0,\"\",INDEX('Smelter Look-up'!$C:$C,MATCH($A596,'Smelter Look-up'!$E:$E,0)))","v":""},null,{"$f":"IF(ISERROR($V596),\"\",OFFSET('Smelter Look-up'!$D$4,$V596-4,0)&\"\")","v":""},{"$f":"IF(ISERROR($V596),\"\",OFFSET('Smelter Look-up'!$E$4,$V596-4,0))","v":""},{"$f":"IF(C596=$X$4,\"Enter smelter details\",IF(ISERROR($V596),\"\",OFFSET('Smelter Look-up'!$F$4,$V596-4,0)))","v":""},{"$f":"IF(ISERROR($V596),\"\",OFFSET('Smelter Look-up'!$G$4,$V596-4,0))","v":""},{"$f":"IF(ISERROR($V596),\"\",OFFSET('Smelter Look-up'!$H$4,$V596-4,0))","v":""},{"$f":"IF(ISERROR($V596),\"\",OFFSET('Smelter Look-up'!$I$4,$V596-4,0))","v":""},{"$nulls":7},{"$f":"IF(ISERROR($V596),\"\",OFFSET('Smelter Look-up'!$C$4,$V596-4,0)&\"\")","v":""},"",{"$f":"IF(B596=\"\",\"\",IF(ISERROR(MATCH($J596,SorP!$B$1:$B$5661,0)),\"\",INDIRECT(\"'SorP'!$A$\"&MATCH($J596,SorP!$B$1:$B$5661,0))))","v":""},null,{"$f":"IF(C596=\"\",NA(),MATCH($B596&$C596,'Smelter Look-up'!$J:$J,0))","v":{"$error":"#N/A"}},null,0,null,null,null,""]
[null,{"$f":"IF(LEN(A597)=0,\"\",INDEX('Smelter Look-up'!$A:$A,MATCH($A597,'Smelter Look-up'!$E:$E,0)))","v":""},{"$f":"IF(LEN(A597)=0,\"\",INDEX('Smelter Look-up'!$C:$C,MATCH($A597,'Smelter Look-up'!$E:$E,0)))","v":""},null,{"$f":"IF(ISERROR($V597),\"\",OFFSET('Smelter Look-up'!$D$4,$V597-4,0)&\"\")","v":""},{"$f":"IF(ISERROR($V597),\"\",OFFSET('Smelter Look-up'!$E$4,$V597-4,0))","v":""},{"$f":"IF(C597=$X$4,\"Enter smelter details\",IF(ISERROR($V597),\"\",OFFSET('Smelter Look-up'!$F$4,$V597-4,0)))","v":""},{"$f":"IF(ISERROR($V597),\"\",OFFSET('Smelter Look-up'!$G$4,$V597-4,0))","v":""},{"$f":"IF(ISERROR($V597),\"\",OFFSET('Smelter Look-up'!$H$4,$V597-4,0))","v":""},{"$f":"IF(ISERROR($V597),\"\",OFFSET('Smelter Look-up'!$I$4,$V597-4,0))","v":""},{"$nulls":7},{"$f":"IF(ISERROR($V597),\"\",OFFSET('Smelter Look-up'!$C$4,$V597-4,0)&\"\")","v":""},"",{"$f":"IF(B597=\"\",\"\",IF(ISERROR(MATCH($J597,SorP!$B$1:$B$5661,0)),\"\",INDIRECT(\"'SorP'!$A$\"&MATCH($J597,SorP!$B$1:$B$5661,0))))","v":""},null,{"$f":"IF(C597=\"\",NA(),MATCH($B597&$C597,'Smelter Look-up'!$J:$J,0))","v":{"$error":"#N/A"}},null,0,null,null,null,""]
[null,{"$f":"IF(LEN(A598)=0,\"\",INDEX('Smelter Look-up'!$A:$A,MATCH($A598,'Smelter Look-up'!$E:$E,0)))","v":""},{"$f":"IF(LEN(A598)=0,\"\",INDEX('Smelter Look-up'!$C:$C,MATCH($A598,'Smelter Look-up'!$E:$E,0)))","v":""},null,{"$f":"IF(ISERROR($V598),\"\",OFFSET('Smelter Look-up'!$D$4,$V598-4,0)&\"\")","v":""},{"$f":"IF(ISERROR($V598),\"\",OFFSET('Smelter Look-up'!$E$4,$V598-4,0))","v":""},{"$f":"IF(C598=$X$4,\"Enter smelter details\",IF(ISERROR($V598),\"\",OFFSET('Smelter Look-up'!$F$4,$V598-4,0)))","v":""},{"$f":"IF(ISERROR($V598),\"\",OFFSET('Smelter Look-up'!$G$4,$V598-4,0))","v":""},{"$f":"IF(ISERROR($V598),\"\",OFFSET('Smelter Look-up'!$H$4,$V598-4,0))","v":""},{"$f":"IF(ISERROR($V598),\"\",OFFSET('Smelter Look-up'!$I$4,$V598-4,0))","v":""},{"$nulls":7},{"$f":"IF(ISERROR($V598),\"\",OFFSET('Smelter Look-up'!$C$4,$V598-4,0)&\"\")","v":""},"",{"$f":"IF(B598=\"\",\"\",IF(ISERROR(MATCH($J598,SorP!$B$1:$B$5661,0)),\"\",INDIRECT(\"'SorP'!$A$\"&MATCH($J598,SorP!$B$1:$B$5661,0))))","v":""},null,{"$f":"IF(C598=\"\",NA(),MATCH($B598&$C598,'Smelter Look-up'!$J:$J,0))","v":{"$error":"#N/A"}},null,0,null,null,null,""]
[null,{"$f":"IF(LEN(A599)=0,\"\",INDEX('Smelter Look-up'!$A:$A,MATCH($A599,'Smelter Look-up'!$E:$E,0)))","v":""},{"$f":"IF(LEN(A599)=0,\"\",INDEX('Smelter Look-up'!$C:$C,MATCH($A599,'Smelter Look-up'!$E:$E,0)))","v":""},null,{"$f":"IF(ISERROR($V599),\"\",OFFSET('Smelter Look-up'!$D$4,$V599-4,0)&\"\")","v":""},{"$f":"IF(ISERROR($V599),\"\",OFFSET('Smelter Look-up'!$E$4,$V599-4,0))","v":""},{"$f":"IF(C599=$X$4,\"Enter smelter details\",IF(ISERROR($V599),\"\",OFFSET('Smelter Look-up'!$F$4,$V599-4,0)))","v":""},{"$f":"IF(ISERROR($V599),\"\",OFFSET('Smelter Look-up'!$G$4,$V599-4,0))","v":""},{"$f":"IF(ISERROR($V599),\"\",OFFSET('Smelter Look-up'!$H$4,$V599-4,0))","v":""},{"$f":"IF(ISERROR($V599),\"\",OFFSET('Smelter Look-up'!$I$4,$V599-4,0))","v":""},{"$nulls":7},{"$f":"IF(ISERROR($V599),\"\",OFFSET('Smelter Look-up'!$C$4,$V599-4,0)&\"\")","v":""},"",{"$f":"IF(B599=\"\",\"\",IF(ISERROR(MATCH($J599,SorP!$B$1:$B$5661,0)),\"\",INDIRECT(\"'SorP'!$A$\"&MATCH($J599,SorP!$B$1:$B$5661,0))))","v":""},null,{"$f":"IF(C599=\"\",NA(),MATCH($B599&$C599,'Smelter Look-up'!$J:$J,0))","v":{"$error":"#N/A"}},null,0,null,null,null,""]
[null,{"$f":"IF(LEN(A600)=0,\"\",INDEX('Smelter Look-up'!$A:$A,MATCH($A600,'Smelter Look-up'!$E:$E,0)))","v":""},{"$f":"IF(LEN(A600)=0,\"\",INDEX('Smelter Look-up'!$C:$C,MATCH($A600,'Smelter Look-up'!$E:$E,0)))","v":""},null,{"$f":"IF(ISERROR($V600),\"\",OFFSET('Smelter Look-up'!$D$4,$V600-4,0)&\"\")","v":""},{"$f":"IF(ISERROR($V600),\"\",OFFSET('Smelter Look-up'!$E$4,$V600-4,0))","v":""},{"$f":"IF(C600=$X$4,\"Enter smelter details\",IF(ISERROR($V600),\"\",OFFSET('Smelter Look-up'!$F$4,$V600-4,0)))","v":""},{"$f":"IF(ISERROR($V600),\"\",OFFSET('Smelter Look-up'!$G$4,$V600-4,0))","v":""},{"$f":"IF(ISERROR($V600),\"\",OFFSET('Smelter Look-up'!$H$4,$V600-4,0))","v":""},{"$f":"IF(ISERROR($V600),\"\",OFFSET('Smelter Look-up'!$I$4,$V600-4,0))","v":""},{"$nulls":7},{"$f":"IF(ISERROR($V600),\"\",OFFSET('Smelter Look-up'!$C$4,$V600-4,0)&\"\")","v":""},"",{"$f":"IF(B600=\"\",\"\",IF(ISERROR(MATCH($J600,SorP!$B$1:$B$5661,0)),\"\",INDIRECT(\"'SorP'!$A$\"&MATCH($J600,SorP!$B$1:$B$5661,0))))","v":""},null,{"$f":"IF(C600=\"\",NA(),MATCH($B600&$C600,'Smelter Look-up'!$J:$J,0))","v":{"$error":"#N/A"}},null,0,null,null,null,""]
[null,{"$f":"IF(LEN(A601)=0,\"\",INDEX('Smelter Look-up'!$A:$A,MATCH($A601,'Smelter Look-up'!$E:$E,0)))","v":""},{"$f":"IF(LEN(A601)=0,\"\",INDEX('Smelter Look-up'!$C:$C,MATCH($A601,'Smelter Look-up'!$E:$E,0)))","v":""},null,{"$f":"IF(ISERROR($V601),\"\",OFFSET('Smelter Look-up'!$D$4,$V601-4,0)&\"\")","v":""},{"$f":"IF(ISERROR($V601),\"\",OFFSET('Smelter Look-up'!$E$4,$V601-4,0))","v":""},{"$f":"IF(C601=$X$4,\"Enter smelter details\",IF(ISERROR($V601),\"\",OFFSET('Smelter Look-up'!$F$4,$V601-4,0)))","v":""},{"$f":"IF(ISERROR($V601),\"\",OFFSET('Smelter Look-up'!$G$4,$V601-4,0))","v":""},{"$f":"IF(ISERROR($V601),\"\",OFFSET('Smelter Look-up'!$H$4,$V601-4,0))","v":""},{"$f":"IF(ISERROR($V601),\"\",OFFSET('Smelter Look-up'!$I$4,$V601-4,0))","v":""},{"$nulls":7},{"$f":"IF(ISERROR($V601),\"\",OFFSET('Smelter Look-up'!$C$4,$V601-4,0)&\"\")","v":""},"",{"$f":"IF(B601=\"\",\"\",IF(ISERROR(MATCH($J601,SorP!$B$1:$B$5661,0)),\"\",INDIRECT(\"'SorP'!$A$\"&MATCH($J601,SorP!$B$1:$B$5661,0))))","v":""},null,{"$f":"IF(C601=\"\",NA(),MATCH($B601&$C601,'Smelter Look-up'!$J:$J,0))","v":{"$error":"#N/A"}},null,0,null,null,null,""]
[null,{"$f":"IF(LEN(A602)=0,\"\",INDEX('Smelter Look-up'!$A:$A,MATCH($A602,'Smelter Look-up'!$E:$E,0)))","v":""},{"$f":"IF(LEN(A602)=0,\"\",INDEX('Smelter Look-up'!$C:$C,MATCH($A602,'Smelter Look-up'!$E:$E,0)))","v":""},null,{"$f":"IF(ISERROR($V602),\"\",OFFSET('Smelter Look-up'!$D$4,$V602-4,0)&\"\")","v":""},{"$f":"IF(ISERROR($V602),\"\",OFFSET('Smelter Look-up'!$E$4,$V602-4,0))","v":""},{"$f":"IF(C602=$X$4,\"Enter smelter details\",IF(ISERROR($V602),\"\",OFFSET('Smelter Look-up'!$F$4,$V602-4,0)))","v":""},{"$f":"IF(ISERROR($V602),\"\",OFFSET('Smelter Look-up'!$G$4,$V602-4,0))","v":""},{"$f":"IF(ISERROR($V602),\"\",OFFSET('Smelter Look-up'!$H$4,$V602-4,0))","v":""},{"$f":"IF(ISERROR($V602),\"\",OFFSET('Smelter Look-up'!$I$4,$V602-4,0))","v":""},{"$nulls":7},{"$f":"IF(ISERROR($V602),\"\",OFFSET('Smelter Look-up'!$C$4,$V602-4,0)&\"\")","v":""},"",{"$f":"IF(B602=\"\",\"\",IF(ISERROR(MATCH($J602,SorP!$B$1:$B$5661,0)),\"\",INDIRECT(\"'SorP'!$A$\"&MATCH($J602,SorP!$B$1:$B$5661,0))))","v":""},null,{"$f":"IF(C602=\"\",NA(),MATCH($B602&$C602,'Smelter Look-up'!$J:$J,0))","v":{"$error":"#N/A"}},null,0,null,null,null,""]
[null,{"$f":"IF(LEN(A603)=0,\"\",INDEX('Smelter Look-up'!$A:$A,MATCH($A603,'Smelter Look-up'!$E:$E,0)))","v":""},{"$f":"IF(LEN(A603)=0,\"\",INDEX('Smelter Look-up'!$C:$C,MATCH($A603,'Smelter Look-up'!$E:$E,0)))","v":""},null,{"$f":"IF(ISERROR($V603),\"\",OFFSET('Smelter Look-up'!$D$4,$V603-4,0)&\"\")","v":""},{"$f":"IF(ISERROR($V603),\"\",OFFSET('Smelter Look-up'!$E$4,$V603-4,0))","v":""},{"$f":"IF(C603=$X$4,\"Enter smelter details\",IF(ISERROR($V603),\"\",OFFSET('Smelter Look-up'!$F$4,$V603-4,0)))","v":""},{"$f":"IF(ISERROR($V603),\"\",OFFSET('Smelter Look-up'!$G$4,$V603-4,0))","v":""},{"$f":"IF(ISERROR($V603),\"\",OFFSET('Smelter Look-up'!$H$4,$V603-4,0))","v":""},{"$f":"IF(ISERROR($V603),\"\",OFFSET('Smelter Look-up'!$I$4,$V603-4,0))","v":""},{"$nulls":7},{"$f":"IF(ISERROR($V603),\"\",OFFSET('Smelter Look-up'!$C$4,$V603-4,0)&\"\")","v":""},"",{"$f":"IF(B603=\"\",\"\",IF(ISERROR(MATCH($J603,SorP!$B$1:$B$5661,0)),\"\",INDIRECT(\"'SorP'!$A$\"&MATCH($J603,SorP!$B$1:$B$5661,0))))","v":""},null,{"$f":"IF(C603=\"\",NA(),MATCH($B603&$C603,'Smelter Look-up'!$J:$J,0))","v":{"$error":"#N/A"}},null,0,null,null,null,""]
[null,{"$f":"IF(LEN(A604)=0,\"\",INDEX('Smelter Look-up'!$A:$A,MATCH($A604,'Smelter Look-up'!$E:$E,0)))","v":""},{"$f":"IF(LEN(A604)=0,\"\",INDEX('Smelter Look-up'!$C:$C,MATCH($A604,'Smelter Look-up'!$E:$E,0)))","v":""},null,{"$f":"IF(ISERROR($V604),\"\",OFFSET('Smelter Look-up'!$D$4,$V604-4,0)&\"\")","v":""},{"$f":"IF(ISERROR($V604),\"\",OFFSET('Smelter Look-up'!$E$4,$V604-4,0))","v":""},{"$f":"IF(C604=$X$4,\"Enter smelter details\",IF(ISERROR($V604),\"\",OFFSET('Smelter Look-up'!$F$4,$V604-4,0)))","v":""},{"$f":"IF(ISERROR($V604),\"\",OFFSET('Smelter Look-up'!$G$4,$V604-4,0))","v":""},{"$f":"IF(ISERROR($V604),\"\",OFFSET('Smelter Look-up'!$H$4,$V604-4,0))","v":""},{"$f":"IF(ISERROR($V604),\"\",OFFSET('Smelter Look-up'!$I$4,$V604-4,0))","v":""},{"$nulls":7},{"$f":"IF(ISERROR($V604),\"\",OFFSET('Smelter Look-up'!$C$4,$V604-4,0)&\"\")","v":""},"",{"$f":"IF(B604=\"\",\"\",IF(ISERROR(MATCH($J604,SorP!$B$1:$B$5661,0)),\"\",INDIRECT(\"'SorP'!$A$\"&MATCH($J604,SorP!$B$1:$B$5661,0))))","v":""},null,{"$f":"IF(C604=\"\",NA(),MATCH($B604&$C604,'Smelter Look-up'!$J:$J,0))","v":{"$error":"#N/A"}},null,0,null,null,null,""]
[null,{"$f":"IF(LEN(A605)=0,\"\",INDEX('Smelter Look-up'!$A:$A,MATCH($A605,'Smelter Look-up'!$E:$E,0)))","v":""},{"$f":"IF(LEN(A605)=0,\"\",INDEX('Smelter Look-up'!$C:$C,MATCH($A605,'Smelter Look-up'!$E:$E,0)))","v":""},null,{"$f":"IF(ISERROR($V605),\"\",OFFSET('Smelter Look-up'!$D$4,$V605-4,0)&\"\")","v":""},{"$f":"IF(ISERROR($V605),\"\",OFFSET('Smelter Look-up'!$E$4,$V605-4,0))","v":""},{"$f":"IF(C605=$X$4,\"Enter smelter details\",IF(ISERROR($V605),\"\",OFFSET('Smelter Look-up'!$F$4,$V605-4,0)))","v":""},{"$f":"IF(ISERROR($V605),\"\",OFFSET('Smelter Look-up'!$G$4,$V605-4,0))","v":""},{"$f":"IF(ISERROR($V605),\"\",OFFSET('Smelter Look-up'!$H$4,$V605-4,0))","v":""},{"$f":"IF(ISERROR($V605),\"\",OFFSET('Smelter Look-up'!$I$4,$V605-4,0))","v":""},{"$nulls":7},{"$f":"IF(ISERROR($V605),\"\",OFFSET('Smelter Look-up'!$C$4,$V605-4,0)&\"\")","v":""},"",{"$f":"IF(B605=\"\",\"\",IF(ISERROR(MATCH($J605,SorP!$B$1:$B$5661,0)),\"\",INDIRECT(\"'SorP'!$A$\"&MATCH($J605,SorP!$B$1:$B$5661,0))))","v":""},null,{"$f":"IF(C605=\"\",NA(),MATCH($B605&$C605,'Smelter Look-up'!$J:$J,0))","v":{"$error":"#N/A"}},null,0,null,null,null,""]
[null,{"$f":"IF(LEN(A606)=0,\"\",INDEX('Smelter Look-up'!$A:$A,MATCH($A606,'Smelter Look-up'!$E:$E,0)))","v":""},{"$f":"IF(LEN(A606)=0,\"\",INDEX('Smelter Look-up'!$C:$C,MATCH($A606,'Smelter Look-up'!$E:$E,0)))","v":""},null,{"$f":"IF(ISERROR($V606),\"\",OFFSET('Smelter Look-up'!$D$4,$V606-4,0)&\"\")","v":""},{"$f":"IF(ISERROR($V606),\"\",OFFSET('Smelter Look-up'!$E$4,$V606-4,0))","v":""},{"$f":"IF(C606=$X$4,\"Enter smelter details\",IF(ISERROR($V606),\"\",OFFSET('Smelter Look-up'!$F$4,$V606-4,0)))","v":""},{"$f":"IF(ISERROR($V606),\"\",OFFSET('Smelter Look-up'!$G$4,$V606-4,0))","v":""},{"$f":"IF(ISERROR($V606),\"\",OFFSET('Smelter Look-up'!$H$4,$V606-4,0))","v":""},{"$f":"IF(ISERROR($V606),\"\",OFFSET('Smelter Look-up'!$I$4,$V606-4,0))","v":""},{"$nulls":7},{"$f":"IF(ISERROR($V606),\"\",OFFSET('Smelter Look-up'!$C$4,$V606-4,0)&\"\")","v":""},"",{"$f":"IF(B606=\"\",\"\",IF(ISERROR(MATCH($J606,SorP!$B$1:$B$5661,0)),\"\",INDIRECT(\"'SorP'!$A$\"&MATCH($J606,SorP!$B$1:$B$5661,0))))","v":""},null,{"$f":"IF(C606=\"\",NA(),MATCH($B606&$C606,'Smelter Look-up'!$J:$J,0))","v":{"$error":"#N/A"}},null,0,null,null,null,""]
[null,{"$f":"IF(LEN(A607)=0,\"\",INDEX('Smelter Look-up'!$A:$A,MATCH($A607,'Smelter Look-up'!$E:$E,0)))","v":""},{"$f":"IF(LEN(A607)=0,\"\",INDEX('Smelter Look-up'!$C:$C,MATCH($A607,'Smelter Look-up'!$E:$E,0)))","v":""},null,{"$f":"IF(ISERROR($V607),\"\",OFFSET('Smelter Look-up'!$D$4,$V607-4,0)&\"\")","v":""},{"$f":"IF(ISERROR($V607),\"\",OFFSET('Smelter Look-up'!$E$4,$V607-4,0))","v":""},{"$f":"IF(C607=$X$4,\"Enter smelter details\",IF(ISERROR($V607),\"\",OFFSET('Smelter Look-up'!$F$4,$V607-4,0)))","v":""},{"$f":"IF(ISERROR($V607),\"\",OFFSET('Smelter Look-up'!$G$4,$V607-4,0))","v":""},{"$f":"IF(ISERROR($V607),\"\",OFFSET('Smelter Look-up'!$H$4,$V607-4,0))","v":""},{"$f":"IF(ISERROR($V607),\"\",OFFSET('Smelter Look-up'!$I$4,$V607-4,0))","v":""},{"$nulls":7},{"$f":"IF(ISERROR($V607),\"\",OFFSET('Smelter Look-up'!$C$4,$V607-4,0)&\"\")","v":""},"",{"$f":"IF(B607=\"\",\"\",IF(ISERROR(MATCH($J607,SorP!$B$1:$B$5661,0)),\"\",INDIRECT(\"'SorP'!$A$\"&MATCH($J607,SorP!$B$1:$B$5661,0))))","v":""},null,{"$f":"IF(C607=\"\",NA(),MATCH($B607&$C607,'Smelter Look-up'!$J:$J,0))","v":{"$error":"#N/A"}},null,0,null,null,null,""]
[null,{"$f":"IF(LEN(A608)=0,\"\",INDEX('Smelter Look-up'!$A:$A,MATCH($A608,'Smelter Look-up'!$E:$E,0)))","v":""},{"$f":"IF(LEN(A608)=0,\"\",INDEX('Smelter Look-up'!$C:$C,MATCH($A608,'Smelter Look-up'!$E:$E,0)))","v":""},null,{"$f":"IF(ISERROR($V608),\"\",OFFSET('Smelter Look-up'!$D$4,$V608-4,0)&\"\")","v":""},{"$f":"IF(ISERROR($V608),\"\",OFFSET('Smelter Look-up'!$E$4,$V608-4,0))","v":""},{"$f":"IF(C608=$X$4,\"Enter smelter details\",IF(ISERROR($V608),\"\",OFFSET('Smelter Look-up'!$F$4,$V608-4,0)))","v":""},{"$f":"IF(ISERROR($V608),\"\",OFFSET('Smelter Look-up'!$G$4,$V608-4,0))","v":""},{"$f":"IF(ISERROR($V608),\"\",OFFSET('Smelter Look-up'!$H$4,$V608-4,0))","v":""},{"$f":"IF(ISERROR($V608),\"\",OFFSET('Smelter Look-up'!$I$4,$V608-4,0))","v":""},{"$nulls":7},{"$f":"IF(ISERROR($V608),\"\",OFFSET('Smelter Look-up'!$C$4,$V608-4,0)&\"\")","v":""},"",{"$f":"IF(B608=\"\",\"\",IF(ISERROR(MATCH($J608,SorP!$B$1:$B$5661,0)),\"\",INDIRECT(\"'SorP'!$A$\"&MATCH($J608,SorP!$B$1:$B$5661,0))))","v":""},null,{"$f":"IF(C608=\"\",NA(),MATCH($B608&$C608,'Smelter Look-up'!$J:$J,0))","v":{"$error":"#N/A"}},null,0,null,null,null,""]
[null,{"$f":"IF(LEN(A609)=0,\"\",INDEX('Smelter Look-up'!$A:$A,MATCH($A609,'Smelter Look-up'!$E:$E,0)))","v":""},{"$f":"IF(LEN(A609)=0,\"\",INDEX('Smelter Look-up'!$C:$C,MATCH($A609,'Smelter Look-up'!$E:$E,0)))","v":""},null,{"$f":"IF(ISERROR($V609),\"\",OFFSET('Smelter Look-up'!$D$4,$V609-4,0)&\"\")","v":""},{"$f":"IF(ISERROR($V609),\"\",OFFSET('Smelter Look-up'!$E$4,$V609-4,0))","v":""},{"$f":"IF(C609=$X$4,\"Enter smelter details\",IF(ISERROR($V609),\"\",OFFSET('Smelter Look-up'!$F$4,$V609-4,0)))","v":""},{"$f":"IF(ISERROR($V609),\"\",OFFSET('Smelter Look-up'!$G$4,$V609-4,0))","v":""},{"$f":"IF(ISERROR($V609),\"\",OFFSET('Smelter Look-up'!$H$4,$V609-4,0))","v":""},{"$f":"IF(ISERROR($V609),\"\",OFFSET('Smelter Look-up'!$I$4,$V609-4,0))","v":""},{"$nulls":7},{"$f":"IF(ISERROR($V609),\"\",OFFSET('Smelter Look-up'!$C$4,$V609-4,0)&\"\")","v":""},"",{"$f":"IF(B609=\"\",\"\",IF(ISERROR(MATCH($J609,SorP!$B$1:$B$5661,0)),\"\",INDIRECT(\"'SorP'!$A$\"&MATCH($J609,SorP!$B$1:$B$5661,0))))","v":""},null,{"$f":"IF(C609=\"\",NA(),MATCH($B609&$C609,'Smelter Look-up'!$J:$J,0))","v":{"$error":"#N/A"}},null,0,null,null,null,""]
[null,{"$f":"IF(LEN(A610)=0,\"\",INDEX('Smelter Look-up'!$A:$A,MATCH($A610,'Smelter Look-up'!$E:$E,0)))","v":""},{"$f":"IF(LEN(A610)=0,\"\",INDEX('Smelter Look-up'!$C:$C,MATCH($A610,'Smelter Look-up'!$E:$E,0)))","v":""},null,{"$f":"IF(ISERROR($V610),\"\",OFFSET('Smelter Look-up'!$D$4,$V610-4,0)&\"\")","v":""},{"$f":"IF(ISERROR($V610),\"\",OFFSET('Smelter Look-up'!$E$4,$V610-4,0))","v":""},{"$f":"IF(C610=$X$4,\"Enter smelter details\",IF(ISERROR($V610),\"\",OFFSET('Smelter Look-up'!$F$4,$V610-4,0)))","v":""},{"$f":"IF(ISERROR($V610),\"\",OFFSET('Smelter Look-up'!$G$4,$V610-4,0))","v":""},{"$f":"IF(ISERROR($V610),\"\",OFFSET('Smelter Look-up'!$H$4,$V610-4,0))","v":""},{"$f":"IF(ISERROR($V610),\"\",OFFSET('Smelter Look-up'!$I$4,$V610-4,0))","v":""},{"$nulls":7},{"$f":"IF(ISERROR($V610),\"\",OFFSET('Smelter Look-up'!$C$4,$V610-4,0)&\"\")","v":""},"",{"$f":"IF(B610=\"\",\"\",IF(ISERROR(MATCH($J610,SorP!$B$1:$B$5661,0)),\"\",INDIRECT(\"'SorP'!$A$\"&MATCH($J610,SorP!$B$1:$B$5661,0))))","v":""},null,{"$f":"IF(C610=\"\",NA(),MATCH($B610&$C610,'Smelter Look-up'!$J:$J,0))","v":{"$error":"#N/A"}},null,0,null,null,null,""]
[null,{"$f":"IF(LEN(A611)=0,\"\",INDEX('Smelter Look-up'!$A:$A,MATCH($A611,'Smelter Look-up'!$E:$E,0)))","v":""},{"$f":"IF(LEN(A611)=0,\"\",INDEX('Smelter Look-up'!$C:$C,MATCH($A611,'Smelter Look-up'!$E:$E,0)))","v":""},null,{"$f":"IF(ISERROR($V611),\"\",OFFSET('Smelter Look-up'!$D$4,$V611-4,0)&\"\")","v":""},{"$f":"IF(ISERROR($V611),\"\",OFFSET('Smelter Look-up'!$E$4,$V611-4,0))","v":""},{"$f":"IF(C611=$X$4,\"Enter smelter details\",IF(ISERROR($V611),\"\",OFFSET('Smelter Look-up'!$F$4,$V611-4,0)))","v":""},{"$f":"IF(ISERROR($V611),\"\",OFFSET('Smelter Look-up'!$G$4,$V611-4,0))","v":""},{"$f":"IF(ISERROR($V611),\"\",OFFSET('Smelter Look-up'!$H$4,$V611-4,0))","v":""},{"$f":"IF(ISERROR($V611),\"\",OFFSET('Smelter Look-up'!$I$4,$V611-4,0))","v":""},{"$nulls":7},{"$f":"IF(ISERROR($V611),\"\",OFFSET('Smelter Look-up'!$C$4,$V611-4,0)&\"\")","v":""},"",{"$f":"IF(B611=\"\",\"\",IF(ISERROR(MATCH($J611,SorP!$B$1:$B$5661,0)),\"\",INDIRECT(\"'SorP'!$A$\"&MATCH($J611,SorP!$B$1:$B$5661,0))))","v":""},null,{"$f":"IF(C611=\"\",NA(),MATCH($B611&$C611,'Smelter Look-up'!$J:$J,0))","v":{"$error":"#N/A"}},null,0,null,null,null,""]
[null,{"$f":"IF(LEN(A612)=0,\"\",INDEX('Smelter Look-up'!$A:$A,MATCH($A612,'Smelter Look-up'!$E:$E,0)))","v":""},{"$f":"IF(LEN(A612)=0,\"\",INDEX('Smelter Look-up'!$C:$C,MATCH($A612,'Smelter Look-up'!$E:$E,0)))","v":""},null,{"$f":"IF(ISERROR($V612),\"\",OFFSET('Smelter Look-up'!$D$4,$V612-4,0)&\"\")","v":""},{"$f":"IF(ISERROR($V612),\"\",OFFSET('Smelter Look-up'!$E$4,$V612-4,0))","v":""},{"$f":"IF(C612=$X$4,\"Enter smelter details\",IF(ISERROR($V612),\"\",OFFSET('Smelter Look-up'!$F$4,$V612-4,0)))","v":""},{"$f":"IF(ISERROR($V612),\"\",OFFSET('Smelter Look-up'!$G$4,$V612-4,0))","v":""},{"$f":"IF(ISERROR($V612),\"\",OFFSET('Smelter Look-up'!$H$4,$V612-4,0))","v":""},{"$f":"IF(ISERROR($V612),\"\",OFFSET('Smelter Look-up'!$I$4,$V612-4,0))","v":""},{"$nulls":7},{"$f":"IF(ISERROR($V612),\"\",OFFSET('Smelter Look-up'!$C$4,$V612-4,0)&\"\")","v":""},"",{"$f":"IF(B612=\"\",\"\",IF(ISERROR(MATCH($J612,SorP!$B$1:$B$5661,0)),\"\",INDIRECT(\"'SorP'!$A$\"&MATCH($J612,SorP!$B$1:$B$5661,0))))","v":""},null,{"$f":"IF(C612=\"\",NA(),MATCH($B612&$C612,'Smelter Look-up'!$J:$J,0))","v":{"$error":"#N/A"}},null,0,null,null,null,""]
[null,{"$f":"IF(LEN(A613)=0,\"\",INDEX('Smelter Look-up'!$A:$A,MATCH($A613,'Smelter Look-up'!$E:$E,0)))","v":""},{"$f":"IF(LEN(A613)=0,\"\",INDEX('Smelter Look-up'!$C:$C,MATCH($A613,'Smelter Look-up'!$E:$E,0)))","v":""},null,{"$f":"IF(ISERROR($V613),\"\",OFFSET('Smelter Look-up'!$D$4,$V613-4,0)&\"\")","v":""},{"$f":"IF(ISERROR($V613),\"\",OFFSET('Smelter Look-up'!$E$4,$V613-4,0))","v":""},{"$f":"IF(C613=$X$4,\"Enter smelter details\",IF(ISERROR($V613),\"\",OFFSET('Smelter Look-up'!$F$4,$V613-4,0)))","v":""},{"$f":"IF(ISERROR($V613),\"\",OFFSET('Smelter Look-up'!$G$4,$V613-4,0))","v":""},{"$f":"IF(ISERROR($V613),\"\",OFFSET('Smelter Look-up'!$H$4,$V613-4,0))","v":""},{"$f":"IF(ISERROR($V613),\"\",OFFSET('Smelter Look-up'!$I$4,$V613-4,0))","v":""},{"$nulls":7},{"$f":"IF(ISERROR($V613),\"\",OFFSET('Smelter Look-up'!$C$4,$V613-4,0)&\"\")","v":""},"",{"$f":"IF(B613=\"\",\"\",IF(ISERROR(MATCH($J613,SorP!$B$1:$B$5661,0)),\"\",INDIRECT(\"'SorP'!$A$\"&MATCH($J613,SorP!$B$1:$B$5661,0))))","v":""},null,{"$f":"IF(C613=\"\",NA(),MATCH($B613&$C613,'Smelter Look-up'!$J:$J,0))","v":{"$error":"#N/A"}},null,0,null,null,null,""]
[null,{"$f":"IF(LEN(A614)=0,\"\",INDEX('Smelter Look-up'!$A:$A,MATCH($A614,'Smelter Look-up'!$E:$E,0)))","v":""},{"$f":"IF(LEN(A614)=0,\"\",INDEX('Smelter Look-up'!$C:$C,MATCH($A614,'Smelter Look-up'!$E:$E,0)))","v":""},null,{"$f":"IF(ISERROR($V614),\"\",OFFSET('Smelter Look-up'!$D$4,$V614-4,0)&\"\")","v":""},{"$f":"IF(ISERROR($V614),\"\",OFFSET('Smelter Look-up'!$E$4,$V614-4,0))","v":""},{"$f":"IF(C614=$X$4,\"Enter smelter details\",IF(ISERROR($V614),\"\",OFFSET('Smelter Look-up'!$F$4,$V614-4,0)))","v":""},{"$f":"IF(ISERROR($V614),\"\",OFFSET('Smelter Look-up'!$G$4,$V614-4,0))","v":""},{"$f":"IF(ISERROR($V614),\"\",OFFSET('Smelter Look-up'!$H$4,$V614-4,0))","v":""},{"$f":"IF(ISERROR($V614),\"\",OFFSET('Smelter Look-up'!$I$4,$V614-4,0))","v":""},{"$nulls":7},{"$f":"IF(ISERROR($V614),\"\",OFFSET('Smelter Look-up'!$C$4,$V614-4,0)&\"\")","v":""},"",{"$f":"IF(B614=\"\",\"\",IF(ISERROR(MATCH($J614,SorP!$B$1:$B$5661,0)),\"\",INDIRECT(\"'SorP'!$A$\"&MATCH($J614,SorP!$B$1:$B$5661,0))))","v":""},null,{"$f":"IF(C614=\"\",NA(),MATCH($B614&$C614,'Smelter Look-up'!$J:$J,0))","v":{"$error":"#N/A"}},null,0,null,null,null,""]
[null,{"$f":"IF(LEN(A615)=0,\"\",INDEX('Smelter Look-up'!$A:$A,MATCH($A615,'Smelter Look-up'!$E:$E,0)))","v":""},{"$f":"IF(LEN(A615)=0,\"\",INDEX('Smelter Look-up'!$C:$C,MATCH($A615,'Smelter Look-up'!$E:$E,0)))","v":""},null,{"$f":"IF(ISERROR($V615),\"\",OFFSET('Smelter Look-up'!$D$4,$V615-4,0)&\"\")","v":""},{"$f":"IF(ISERROR($V615),\"\",OFFSET('Smelter Look-up'!$E$4,$V615-4,0))","v":""},{"$f":"IF(C615=$X$4,\"Enter smelter details\",IF(ISERROR($V615),\"\",OFFSET('Smelter Look-up'!$F$4,$V615-4,0)))","v":""},{"$f":"IF(ISERROR($V615),\"\",OFFSET('Smelter Look-up'!$G$4,$V615-4,0))","v":""},{"$f":"IF(ISERROR($V615),\"\",OFFSET('Smelter Look-up'!$H$4,$V615-4,0))","v":""},{"$f":"IF(ISERROR($V615),\"\",OFFSET('Smelter Look-up'!$I$4,$V615-4,0))","v":""},{"$nulls":7},{"$f":"IF(ISERROR($V615),\"\",OFFSET('Smelter Look-up'!$C$4,$V615-4,0)&\"\")","v":""},"",{"$f":"IF(B615=\"\",\"\",IF(ISERROR(MATCH($J615,SorP!$B$1:$B$5661,0)),\"\",INDIRECT(\"'SorP'!$A$\"&MATCH($J615,SorP!$B$1:$B$5661,0))))","v":""},null,{"$f":"IF(C615=\"\",NA(),MATCH($B615&$C615,'Smelter Look-up'!$J:$J,0))","v":{"$error":"#N/A"}},null,0,null,null,null,""]
[null,{"$f":"IF(LEN(A616)=0,\"\",INDEX('Smelter Look-up'!$A:$A,MATCH($A616,'Smelter Look-up'!$E:$E,0)))","v":""},{"$f":"IF(LEN(A616)=0,\"\",INDEX('Smelter Look-up'!$C:$C,MATCH($A616,'Smelter Look-up'!$E:$E,0)))","v":""},null,{"$f":"IF(ISERROR($V616),\"\",OFFSET('Smelter Look-up'!$D$4,$V616-4,0)&\"\")","v":""},{"$f":"IF(ISERROR($V616),\"\",OFFSET('Smelter Look-up'!$E$4,$V616-4,0))","v":""},{"$f":"IF(C616=$X$4,\"Enter smelter details\",IF(ISERROR($V616),\"\",OFFSET('Smelter Look-up'!$F$4,$V616-4,0)))","v":""},{"$f":"IF(ISERROR($V616),\"\",OFFSET('Smelter Look-up'!$G$4,$V616-4,0))","v":""},{"$f":"IF(ISERROR($V616),\"\",OFFSET('Smelter Look-up'!$H$4,$V616-4,0))","v":""},{"$f":"IF(ISERROR($V616),\"\",OFFSET('Smelter Look-up'!$I$4,$V616-4,0))","v":""},{"$nulls":7},{"$f":"IF(ISERROR($V616),\"\",OFFSET('Smelter Look-up'!$C$4,$V616-4,0)&\"\")","v":""},"",{"$f":"IF(B616=\"\",\"\",IF(ISERROR(MATCH($J616,SorP!$B$1:$B$5661,0)),\"\",INDIRECT(\"'SorP'!$A$\"&MATCH($J616,SorP!$B$1:$B$5661,0))))","v":""},null,{"$f":"IF(C616=\"\",NA(),MATCH($B616&$C616,'Smelter Look-up'!$J:$J,0))","v":{"$error":"#N/A"}},null,0,null,null,null,""]
[null,{"$f":"IF(LEN(A617)=0,\"\",INDEX('Smelter Look-up'!$A:$A,MATCH($A617,'Smelter Look-up'!$E:$E,0)))","v":""},{"$f":"IF(LEN(A617)=0,\"\",INDEX('Smelter Look-up'!$C:$C,MATCH($A617,'Smelter Look-up'!$E:$E,0)))","v":""},null,{"$f":"IF(ISERROR($V617),\"\",OFFSET('Smelter Look-up'!$D$4,$V617-4,0)&\"\")","v":""},{"$f":"IF(ISERROR($V617),\"\",OFFSET('Smelter Look-up'!$E$4,$V617-4,0))","v":""},{"$f":"IF(C617=$X$4,\"Enter smelter details\",IF(ISERROR($V617),\"\",OFFSET('Smelter Look-up'!$F$4,$V617-4,0)))","v":""},{"$f":"IF(ISERROR($V617),\"\",OFFSET('Smelter Look-up'!$G$4,$V617-4,0))","v":""},{"$f":"IF(ISERROR($V617),\"\",OFFSET('Smelter Look-up'!$H$4,$V617-4,0))","v":""},{"$f":"IF(ISERROR($V617),\"\",OFFSET('Smelter Look-up'!$I$4,$V617-4,0))","v":""},{"$nulls":7},{"$f":"IF(ISERROR($V617),\"\",OFFSET('Smelter Look-up'!$C$4,$V617-4,0)&\"\")","v":""},"",{"$f":"IF(B617=\"\",\"\",IF(ISERROR(MATCH($J617,SorP!$B$1:$B$5661,0)),\"\",INDIRECT(\"'SorP'!$A$\"&MATCH($J617,SorP!$B$1:$B$5661,0))))","v":""},null,{"$f":"IF(C617=\"\",NA(),MATCH($B617&$C617,'Smelter Look-up'!$J:$J,0))","v":{"$error":"#N/A"}},null,0,null,null,null,""]
[null,{"$f":"IF(LEN(A618)=0,\"\",INDEX('Smelter Look-up'!$A:$A,MATCH($A618,'Smelter Look-up'!$E:$E,0)))","v":""},{"$f":"IF(LEN(A618)=0,\"\",INDEX('Smelter Look-up'!$C:$C,MATCH($A618,'Smelter Look-up'!$E:$E,0)))","v":""},null,{"$f":"IF(ISERROR($V618),\"\",OFFSET('Smelter Look-up'!$D$4,$V618-4,0)&\"\")","v":""},{"$f":"IF(ISERROR($V618),\"\",OFFSET('Smelter Look-up'!$E$4,$V618-4,0))","v":""},{"$f":"IF(C618=$X$4,\"Enter smelter details\",IF(ISERROR($V618),\"\",OFFSET('Smelter Look-up'!$F$4,$V618-4,0)))","v":""},{"$f":"IF(ISERROR($V618),\"\",OFFSET('Smelter Look-up'!$G$4,$V618-4,0))","v":""},{"$f":"IF(ISERROR($V618),\"\",OFFSET('Smelter Look-up'!$H$4,$V618-4,0))","v":""},{"$f":"IF(ISERROR($V618),\"\",OFFSET('Smelter Look-up'!$I$4,$V618-4,0))","v":""},{"$nulls":7},{"$f":"IF(ISERROR($V618),\"\",OFFSET('Smelter Look-up'!$C$4,$V618-4,0)&\"\")","v":""},"",{"$f":"IF(B618=\"\",\"\",IF(ISERROR(MATCH($J618,SorP!$B$1:$B$5661,0)),\"\",INDIRECT(\"'SorP'!$A$\"&MATCH($J618,SorP!$B$1:$B$5661,0))))","v":""},null,{"$f":"IF(C618=\"\",NA(),MATCH($B618&$C618,'Smelter Look-up'!$J:$J,0))","v":{"$error":"#N/A"}},null,0,null,null,null,""]
[null,{"$f":"IF(LEN(A619)=0,\"\",INDEX('Smelter Look-up'!$A:$A,MATCH($A619,'Smelter Look-up'!$E:$E,0)))","v":""},{"$f":"IF(LEN(A619)=0,\"\",INDEX('Smelter Look-up'!$C:$C,MATCH($A619,'Smelter Look-up'!$E:$E,0)))","v":""},null,{"$f":"IF(ISERROR($V619),\"\",OFFSET('Smelter Look-up'!$D$4,$V619-4,0)&\"\")","v":""},{"$f":"IF(ISERROR($V619),\"\",OFFSET('Smelter Look-up'!$E$4,$V619-4,0))","v":""},{"$f":"IF(C619=$X$4,\"Enter smelter details\",IF(ISERROR($V619),\"\",OFFSET('Smelter Look-up'!$F$4,$V619-4,0)))","v":""},{"$f":"IF(ISERROR($V619),\"\",OFFSET('Smelter Look-up'!$G$4,$V619-4,0))","v":""},{"$f":"IF(ISERROR($V619),\"\",OFFSET('Smelter Look-up'!$H$4,$V619-4,0))","v":""},{"$f":"IF(ISERROR($V619),\"\",OFFSET('Smelter Look-up'!$I$4,$V619-4,0))","v":""},{"$nulls":7},{"$f":"IF(ISERROR($V619),\"\",OFFSET('Smelter Look-up'!$C$4,$V619-4,0)&\"\")","v":""},"",{"$f":"IF(B619=\"\",\"\",IF(ISERROR(MATCH($J619,SorP!$B$1:$B$5661,0)),\"\",INDIRECT(\"'SorP'!$A$\"&MATCH($J619,SorP!$B$1:$B$5661,0))))","v":""},null,{"$f":"IF(C619=\"\",NA(),MATCH($B619&$C619,'Smelter Look-up'!$J:$J,0))","v":{"$error":"#N/A"}},null,0,null,null,null,""]
[null,{"$f":"IF(LEN(A620)=0,\"\",INDEX('Smelter Look-up'!$A:$A,MATCH($A620,'Smelter Look-up'!$E:$E,0)))","v":""},{"$f":"IF(LEN(A620)=0,\"\",INDEX('Smelter Look-up'!$C:$C,MATCH($A620,'Smelter Look-up'!$E:$E,0)))","v":""},null,{"$f":"IF(ISERROR($V620),\"\",OFFSET('Smelter Look-up'!$D$4,$V620-4,0)&\"\")","v":""},{"$f":"IF(ISERROR($V620),\"\",OFFSET('Smelter Look-up'!$E$4,$V620-4,0))","v":""},{"$f":"IF(C620=$X$4,\"Enter smelter details\",IF(ISERROR($V620),\"\",OFFSET('Smelter Look-up'!$F$4,$V620-4,0)))","v":""},{"$f":"IF(ISERROR($V620),\"\",OFFSET('Smelter Look-up'!$G$4,$V620-4,0))","v":""},{"$f":"IF(ISERROR($V620),\"\",OFFSET('Smelter Look-up'!$H$4,$V620-4,0))","v":""},{"$f":"IF(ISERROR($V620),\"\",OFFSET('Smelter Look-up'!$I$4,$V620-4,0))","v":""},{"$nulls":7},{"$f":"IF(ISERROR($V620),\"\",OFFSET('Smelter Look-up'!$C$4,$V620-4,0)&\"\")","v":""},"",{"$f":"IF(B620=\"\",\"\",IF(ISERROR(MATCH($J620,SorP!$B$1:$B$5661,0)),\"\",INDIRECT(\"'SorP'!$A$\"&MATCH($J620,SorP!$B$1:$B$5661,0))))","v":""},null,{"$f":"IF(C620=\"\",NA(),MATCH($B620&$C620,'Smelter Look-up'!$J:$J,0))","v":{"$error":"#N/A"}},null,0,null,null,null,""]
[null,{"$f":"IF(LEN(A621)=0,\"\",INDEX('Smelter Look-up'!$A:$A,MATCH($A621,'Smelter Look-up'!$E:$E,0)))","v":""},{"$f":"IF(LEN(A621)=0,\"\",INDEX('Smelter Look-up'!$C:$C,MATCH($A621,'Smelter Look-up'!$E:$E,0)))","v":""},null,{"$f":"IF(ISERROR($V621),\"\",OFFSET('Smelter Look-up'!$D$4,$V621-4,0)&\"\")","v":""},{"$f":"IF(ISERROR($V621),\"\",OFFSET('Smelter Look-up'!$E$4,$V621-4,0))","v":""},{"$f":"IF(C621=$X$4,\"Enter smelter details\",IF(ISERROR($V621),\"\",OFFSET('Smelter Look-up'!$F$4,$V621-4,0)))","v":""},{"$f":"IF(ISERROR($V621),\"\",OFFSET('Smelter Look-up'!$G$4,$V621-4,0))","v":""},{"$f":"IF(ISERROR($V621),\"\",OFFSET('Smelter Look-up'!$H$4,$V621-4,0))","v":""},{"$f":"IF(ISERROR($V621),\"\",OFFSET('Smelter Look-up'!$I$4,$V621-4,0))","v":""},{"$nulls":7},{"$f":"IF(ISERROR($V621),\"\",OFFSET('Smelter Look-up'!$C$4,$V621-4,0)&\"\")","v":""},"",{"$f":"IF(B621=\"\",\"\",IF(ISERROR(MATCH($J621,SorP!$B$1:$B$5661,0)),\"\",INDIRECT(\"'SorP'!$A$\"&MATCH($J621,SorP!$B$1:$B$5661,0))))","v":""},null,{"$f":"IF(C621=\"\",NA(),MATCH($B621&$C621,'Smelter Look-up'!$J:$J,0))","v":{"$error":"#N/A"}},null,0,null,null,null,""]
[null,{"$f":"IF(LEN(A622)=0,\"\",INDEX('Smelter Look-up'!$A:$A,MATCH($A622,'Smelter Look-up'!$E:$E,0)))","v":""},{"$f":"IF(LEN(A622)=0,\"\",INDEX('Smelter Look-up'!$C:$C,MATCH($A622,'Smelter Look-up'!$E:$E,0)))","v":""},null,{"$f":"IF(ISERROR($V622),\"\",OFFSET('Smelter Look-up'!$D$4,$V622-4,0)&\"\")","v":""},{"$f":"IF(ISERROR($V622),\"\",OFFSET('Smelter Look-up'!$E$4,$V622-4,0))","v":""},{"$f":"IF(C622=$X$4,\"Enter smelter details\",IF(ISERROR($V622),\"\",OFFSET('Smelter Look-up'!$F$4,$V622-4,0)))","v":""},{"$f":"IF(ISERROR($V622),\"\",OFFSET('Smelter Look-up'!$G$4,$V622-4,0))","v":""},{"$f":"IF(ISERROR($V622),\"\",OFFSET('Smelter Look-up'!$H$4,$V622-4,0))","v":""},{"$f":"IF(ISERROR($V622),\"\",OFFSET('Smelter Look-up'!$I$4,$V622-4,0))","v":""},{"$nulls":7},{"$f":"IF(ISERROR($V622),\"\",OFFSET('Smelter Look-up'!$C$4,$V622-4,0)&\"\")","v":""},"",{"$f":"IF(B622=\"\",\"\",IF(ISERROR(MATCH($J622,SorP!$B$1:$B$5661,0)),\"\",INDIRECT(\"'SorP'!$A$\"&MATCH($J622,SorP!$B$1:$B$5661,0))))","v":""},null,{"$f":"IF(C622=\"\",NA(),MATCH($B622&$C622,'Smelter Look-up'!$J:$J,0))","v":{"$error":"#N/A"}},null,0,null,null,null,""]
[null,{"$f":"IF(LEN(A623)=0,\"\",INDEX('Smelter Look-up'!$A:$A,MATCH($A623,'Smelter Look-up'!$E:$E,0)))","v":""},{"$f":"IF(LEN(A623)=0,\"\",INDEX('Smelter Look-up'!$C:$C,MATCH($A623,'Smelter Look-up'!$E:$E,0)))","v":""},null,{"$f":"IF(ISERROR($V623),\"\",OFFSET('Smelter Look-up'!$D$4,$V623-4,0)&\"\")","v":""},{"$f":"IF(ISERROR($V623),\"\",OFFSET('Smelter Look-up'!$E$4,$V623-4,0))","v":""},{"$f":"IF(C623=$X$4,\"Enter smelter details\",IF(ISERROR($V623),\"\",OFFSET('Smelter Look-up'!$F$4,$V623-4,0)))","v":""},{"$f":"IF(ISERROR($V623),\"\",OFFSET('Smelter Look-up'!$G$4,$V623-4,0))","v":""},{"$f":"IF(ISERROR($V623),\"\",OFFSET('Smelter Look-up'!$H$4,$V623-4,0))","v":""},{"$f":"IF(ISERROR($V623),\"\",OFFSET('Smelter Look-up'!$I$4,$V623-4,0))","v":""},{"$nulls":7},{"$f":"IF(ISERROR($V623),\"\",OFFSET('Smelter Look-up'!$C$4,$V623-4,0)&\"\")","v":""},"",{"$f":"IF(B623=\"\",\"\",IF(ISERROR(MATCH($J623,SorP!$B$1:$B$5661,0)),\"\",INDIRECT(\"'SorP'!$A$\"&MATCH($J623,SorP!$B$1:$B$5661,0))))","v":""},null,{"$f":"IF(C623=\"\",NA(),MATCH($B623&$C623,'Smelter Look-up'!$J:$J,0))","v":{"$error":"#N/A"}},null,0,null,null,null,""]
[null,{"$f":"IF(LEN(A624)=0,\"\",INDEX('Smelter Look-up'!$A:$A,MATCH($A624,'Smelter Look-up'!$E:$E,0)))","v":""},{"$f":"IF(LEN(A624)=0,\"\",INDEX('Smelter Look-up'!$C:$C,MATCH($A624,'Smelter Look-up'!$E:$E,0)))","v":""},null,{"$f":"IF(ISERROR($V624),\"\",OFFSET('Smelter Look-up'!$D$4,$V624-4,0)&\"\")","v":""},{"$f":"IF(ISERROR($V624),\"\",OFFSET('Smelter Look-up'!$E$4,$V624-4,0))","v":""},{"$f":"IF(C624=$X$4,\"Enter smelter details\",IF(ISERROR($V624),\"\",OFFSET('Smelter Look-up'!$F$4,$V624-4,0)))","v":""},{"$f":"IF(ISERROR($V624),\"\",OFFSET('Smelter Look-up'!$G$4,$V624-4,0))","v":""},{"$f":"IF(ISERROR($V624),\"\",OFFSET('Smelter Look-up'!$H$4,$V624-4,0))","v":""},{"$f":"IF(ISERROR($V624),\"\",OFFSET('Smelter Look-up'!$I$4,$V624-4,0))","v":""},{"$nulls":7},{"$f":"IF(ISERROR($V624),\"\",OFFSET('Smelter Look-up'!$C$4,$V624-4,0)&\"\")","v":""},"",{"$f":"IF(B624=\"\",\"\",IF(ISERROR(MATCH($J624,SorP!$B$1:$B$5661,0)),\"\",INDIRECT(\"'SorP'!$A$\"&MATCH($J624,SorP!$B$1:$B$5661,0))))","v":""},null,{"$f":"IF(C624=\"\",NA(),MATCH($B624&$C624,'Smelter Look-up'!$J:$J,0))","v":{"$error":"#N/A"}},null,0,null,null,null,""]
[null,{"$f":"IF(LEN(A625)=0,\"\",INDEX('Smelter Look-up'!$A:$A,MATCH($A625,'Smelter Look-up'!$E:$E,0)))","v":""},{"$f":"IF(LEN(A625)=0,\"\",INDEX('Smelter Look-up'!$C:$C,MATCH($A625,'Smelter Look-up'!$E:$E,0)))","v":""},null,{"$f":"IF(ISERROR($V625),\"\",OFFSET('Smelter Look-up'!$D$4,$V625-4,0)&\"\")","v":""},{"$f":"IF(ISERROR($V625),\"\",OFFSET('Smelter Look-up'!$E$4,$V625-4,0))","v":""},{"$f":"IF(C625=$X$4,\"Enter smelter details\",IF(ISERROR($V625),\"\",OFFSET('Smelter Look-up'!$F$4,$V625-4,0)))","v":""},{"$f":"IF(ISERROR($V625),\"\",OFFSET('Smelter Look-up'!$G$4,$V625-4,0))","v":""},{"$f":"IF(ISERROR($V625),\"\",OFFSET('Smelter Look-up'!$H$4,$V625-4,0))","v":""},{"$f":"IF(ISERROR($V625),\"\",OFFSET('Smelter Look-up'!$I$4,$V625-4,0))","v":""},{"$nulls":7},{"$f":"IF(ISERROR($V625),\"\",OFFSET('Smelter Look-up'!$C$4,$V625-4,0)&\"\")","v":""},"",{"$f":"IF(B625=\"\",\"\",IF(ISERROR(MATCH($J625,SorP!$B$1:$B$5661,0)),\"\",INDIRECT(\"'SorP'!$A$\"&MATCH($J625,SorP!$B$1:$B$5661,0))))","v":""},null,{"$f":"IF(C625=\"\",NA(),MATCH($B625&$C625,'Smelter Look-up'!$J:$J,0))","v":{"$error":"#N/A"}},null,0,null,null,null,""]
[null,{"$f":"IF(LEN(A626)=0,\"\",INDEX('Smelter Look-up'!$A:$A,MATCH($A626,'Smelter Look-up'!$E:$E,0)))","v":""},{"$f":"IF(LEN(A626)=0,\"\",INDEX('Smelter Look-up'!$C:$C,MATCH($A626,'Smelter Look-up'!$E:$E,0)))","v":""},null,{"$f":"IF(ISERROR($V626),\"\",OFFSET('Smelter Look-up'!$D$4,$V626-4,0)&\"\")","v":""},{"$f":"IF(ISERROR($V626),\"\",OFFSET('Smelter Look-up'!$E$4,$V626-4,0))","v":""},{"$f":"IF(C626=$X$4,\"Enter smelter details\",IF(ISERROR($V626),\"\",OFFSET('Smelter Look-up'!$F$4,$V626-4,0)))","v":""},{"$f":"IF(ISERROR($V626),\"\",OFFSET('Smelter Look-up'!$G$4,$V626-4,0))","v":""},{"$f":"IF(ISERROR($V626),\"\",OFFSET('Smelter Look-up'!$H$4,$V626-4,0))","v":""},{"$f":"IF(ISERROR($V626),\"\",OFFSET('Smelter Look-up'!$I$4,$V626-4,0))","v":""},{"$nulls":7},{"$f":"IF(ISERROR($V626),\"\",OFFSET('Smelter Look-up'!$C$4,$V626-4,0)&\"\")","v":""},"",{"$f":"IF(B626=\"\",\"\",IF(ISERROR(MATCH($J626,SorP!$B$1:$B$5661,0)),\"\",INDIRECT(\"'SorP'!$A$\"&MATCH($J626,SorP!$B$1:$B$5661,0))))","v":""},null,{"$f":"IF(C626=\"\",NA(),MATCH($B626&$C626,'Smelter Look-up'!$J:$J,0))","v":{"$error":"#N/A"}},null,0,null,null,null,""]
[null,{"$f":"IF(LEN(A627)=0,\"\",INDEX('Smelter Look-up'!$A:$A,MATCH($A627,'Smelter Look-up'!$E:$E,0)))","v":""},{"$f":"IF(LEN(A627)=0,\"\",INDEX('Smelter Look-up'!$C:$C,MATCH($A627,'Smelter Look-up'!$E:$E,0)))","v":""},null,{"$f":"IF(ISERROR($V627),\"\",OFFSET('Smelter Look-up'!$D$4,$V627-4,0)&\"\")","v":""},{"$f":"IF(ISERROR($V627),\"\",OFFSET('Smelter Look-up'!$E$4,$V627-4,0))","v":""},{"$f":"IF(C627=$X$4,\"Enter smelter details\",IF(ISERROR($V627),\"\",OFFSET('Smelter Look-up'!$F$4,$V627-4,0)))","v":""},{"$f":"IF(ISERROR($V627),\"\",OFFSET('Smelter Look-up'!$G$4,$V627-4,0))","v":""},{"$f":"IF(ISERROR($V627),\"\",OFFSET('Smelter Look-up'!$H$4,$V627-4,0))","v":""},{"$f":"IF(ISERROR($V627),\"\",OFFSET('Smelter Look-up'!$I$4,$V627-4,0))","v":""},{"$nulls":7},{"$f":"IF(ISERROR($V627),\"\",OFFSET('Smelter Look-up'!$C$4,$V627-4,0)&\"\")","v":""},"",{"$f":"IF(B627=\"\",\"\",IF(ISERROR(MATCH($J627,SorP!$B$1:$B$5661,0)),\"\",INDIRECT(\"'SorP'!$A$\"&MATCH($J627,SorP!$B$1:$B$5661,0))))","v":""},null,{"$f":"IF(C627=\"\",NA(),MATCH($B627&$C627,'Smelter Look-up'!$J:$J,0))","v":{"$error":"#N/A"}},null,0,null,null,null,""]
[null,{"$f":"IF(LEN(A628)=0,\"\",INDEX('Smelter Look-up'!$A:$A,MATCH($A628,'Smelter Look-up'!$E:$E,0)))","v":""},{"$f":"IF(LEN(A628)=0,\"\",INDEX('Smelter Look-up'!$C:$C,MATCH($A628,'Smelter Look-up'!$E:$E,0)))","v":""},null,{"$f":"IF(ISERROR($V628),\"\",OFFSET('Smelter Look-up'!$D$4,$V628-4,0)&\"\")","v":""},{"$f":"IF(ISERROR($V628),\"\",OFFSET('Smelter Look-up'!$E$4,$V628-4,0))","v":""},{"$f":"IF(C628=$X$4,\"Enter smelter details\",IF(ISERROR($V628),\"\",OFFSET('Smelter Look-up'!$F$4,$V628-4,0)))","v":""},{"$f":"IF(ISERROR($V628),\"\",OFFSET('Smelter Look-up'!$G$4,$V628-4,0))","v":""},{"$f":"IF(ISERROR($V628),\"\",OFFSET('Smelter Look-up'!$H$4,$V628-4,0))","v":""},{"$f":"IF(ISERROR($V628),\"\",OFFSET('Smelter Look-up'!$I$4,$V628-4,0))","v":""},{"$nulls":7},{"$f":"IF(ISERROR($V628),\"\",OFFSET('Smelter Look-up'!$C$4,$V628-4,0)&\"\")","v":""},"",{"$f":"IF(B628=\"\",\"\",IF(ISERROR(MATCH($J628,SorP!$B$1:$B$5661,0)),\"\",INDIRECT(\"'SorP'!$A$\"&MATCH($J628,SorP!$B$1:$B$5661,0))))","v":""},null,{"$f":"IF(C628=\"\",NA(),MATCH($B628&$C628,'Smelter Look-up'!$J:$J,0))","v":{"$error":"#N/A"}},null,0,null,null,null,""]
[null,{"$f":"IF(LEN(A629)=0,\"\",INDEX('Smelter Look-up'!$A:$A,MATCH($A629,'Smelter Look-up'!$E:$E,0)))","v":""},{"$f":"IF(LEN(A629)=0,\"\",INDEX('Smelter Look-up'!$C:$C,MATCH($A629,'Smelter Look-up'!$E:$E,0)))","v":""},null,{"$f":"IF(ISERROR($V629),\"\",OFFSET('Smelter Look-up'!$D$4,$V629-4,0)&\"\")","v":""},{"$f":"IF(ISERROR($V629),\"\",OFFSET('Smelter Look-up'!$E$4,$V629-4,0))","v":""},{"$f":"IF(C629=$X$4,\"Enter smelter details\",IF(ISERROR($V629),\"\",OFFSET('Smelter Look-up'!$F$4,$V629-4,0)))","v":""},{"$f":"IF(ISERROR($V629),\"\",OFFSET('Smelter Look-up'!$G$4,$V629-4,0))","v":""},{"$f":"IF(ISERROR($V629),\"\",OFFSET('Smelter Look-up'!$H$4,$V629-4,0))","v":""},{"$f":"IF(ISERROR($V629),\"\",OFFSET('Smelter Look-up'!$I$4,$V629-4,0))","v":""},{"$nulls":7},{"$f":"IF(ISERROR($V629),\"\",OFFSET('Smelter Look-up'!$C$4,$V629-4,0)&\"\")","v":""},"",{"$f":"IF(B629=\"\",\"\",IF(ISERROR(MATCH($J629,SorP!$B$1:$B$5661,0)),\"\",INDIRECT(\"'SorP'!$A$\"&MATCH($J629,SorP!$B$1:$B$5661,0))))","v":""},null,{"$f":"IF(C629=\"\",NA(),MATCH($B629&$C629,'Smelter Look-up'!$J:$J,0))","v":{"$error":"#N/A"}},null,0,null,null,null,""]
[null,{"$f":"IF(LEN(A630)=0,\"\",INDEX('Smelter Look-up'!$A:$A,MATCH($A630,'Smelter Look-up'!$E:$E,0)))","v":""},{"$f":"IF(LEN(A630)=0,\"\",INDEX('Smelter Look-up'!$C:$C,MATCH($A630,'Smelter Look-up'!$E:$E,0)))","v":""},null,{"$f":"IF(ISERROR($V630),\"\",OFFSET('Smelter Look-up'!$D$4,$V630-4,0)&\"\")","v":""},{"$f":"IF(ISERROR($V630),\"\",OFFSET('Smelter Look-up'!$E$4,$V630-4,0))","v":""},{"$f":"IF(C630=$X$4,\"Enter smelter details\",IF(ISERROR($V630),\"\",OFFSET('Smelter Look-up'!$F$4,$V630-4,0)))","v":""},{"$f":"IF(ISERROR($V630),\"\",OFFSET('Smelter Look-up'!$G$4,$V630-4,0))","v":""},{"$f":"IF(ISERROR($V630),\"\",OFFSET('Smelter Look-up'!$H$4,$V630-4,0))","v":""},{"$f":"IF(ISERROR($V630),\"\",OFFSET('Smelter Look-up'!$I$4,$V630-4,0))","v":""},{"$nulls":7},{"$f":"IF(ISERROR($V630),\"\",OFFSET('Smelter Look-up'!$C$4,$V630-4,0)&\"\")","v":""},"",{"$f":"IF(B630=\"\",\"\",IF(ISERROR(MATCH($J630,SorP!$B$1:$B$5661,0)),\"\",INDIRECT(\"'SorP'!$A$\"&MATCH($J630,SorP!$B$1:$B$5661,0))))","v":""},null,{"$f":"IF(C630=\"\",NA(),MATCH($B630&$C630,'Smelter Look-up'!$J:$J,0))","v":{"$error":"#N/A"}},null,0,null,null,null,""]
[null,{"$f":"IF(LEN(A631)=0,\"\",INDEX('Smelter Look-up'!$A:$A,MATCH($A631,'Smelter Look-up'!$E:$E,0)))","v":""},{"$f":"IF(LEN(A631)=0,\"\",INDEX('Smelter Look-up'!$C:$C,MATCH($A631,'Smelter Look-up'!$E:$E,0)))","v":""},null,{"$f":"IF(ISERROR($V631),\"\",OFFSET('Smelter Look-up'!$D$4,$V631-4,0)&\"\")","v":""},{"$f":"IF(ISERROR($V631),\"\",OFFSET('Smelter Look-up'!$E$4,$V631-4,0))","v":""},{"$f":"IF(C631=$X$4,\"Enter smelter details\",IF(ISERROR($V631),\"\",OFFSET('Smelter Look-up'!$F$4,$V631-4,0)))","v":""},{"$f":"IF(ISERROR($V631),\"\",OFFSET('Smelter Look-up'!$G$4,$V631-4,0))","v":""},{"$f":"IF(ISERROR($V631),\"\",OFFSET('Smelter Look-up'!$H$4,$V631-4,0))","v":""},{"$f":"IF(ISERROR($V631),\"\",OFFSET('Smelter Look-up'!$I$4,$V631-4,0))","v":""},{"$nulls":7},{"$f":"IF(ISERROR($V631),\"\",OFFSET('Smelter Look-up'!$C$4,$V631-4,0)&\"\")","v":""},"",{"$f":"IF(B631=\"\",\"\",IF(ISERROR(MATCH($J631,SorP!$B$1:$B$5661,0)),\"\",INDIRECT(\"'SorP'!$A$\"&MATCH($J631,SorP!$B$1:$B$5661,0))))","v":""},null,{"$f":"IF(C631=\"\",NA(),MATCH($B631&$C631,'Smelter Look-up'!$J:$J,0))","v":{"$error":"#N/A"}},null,0,null,null,null,""]
[null,{"$f":"IF(LEN(A632)=0,\"\",INDEX('Smelter Look-up'!$A:$A,MATCH($A632,'Smelter Look-up'!$E:$E,0)))","v":""},{"$f":"IF(LEN(A632)=0,\"\",INDEX('Smelter Look-up'!$C:$C,MATCH($A632,'Smelter Look-up'!$E:$E,0)))","v":""},null,{"$f":"IF(ISERROR($V632),\"\",OFFSET('Smelter Look-up'!$D$4,$V632-4,0)&\"\")","v":""},{"$f":"IF(ISERROR($V632),\"\",OFFSET('Smelter Look-up'!$E$4,$V632-4,0))","v":""},{"$f":"IF(C632=$X$4,\"Enter smelter details\",IF(ISERROR($V632),\"\",OFFSET('Smelter Look-up'!$F$4,$V632-4,0)))","v":""},{"$f":"IF(ISERROR($V632),\"\",OFFSET('Smelter Look-up'!$G$4,$V632-4,0))","v":""},{"$f":"IF(ISERROR($V632),\"\",OFFSET('Smelter Look-up'!$H$4,$V632-4,0))","v":""},{"$f":"IF(ISERROR($V632),\"\",OFFSET('Smelter Look-up'!$I$4,$V632-4,0))","v":""},{"$nulls":7},{"$f":"IF(ISERROR($V632),\"\",OFFSET('Smelter Look-up'!$C$4,$V632-4,0)&\"\")","v":""},"",{"$f":"IF(B632=\"\",\"\",IF(ISERROR(MATCH($J632,SorP!$B$1:$B$5661,0)),\"\",INDIRECT(\"'SorP'!$A$\"&MATCH($J632,SorP!$B$1:$B$5661,0))))","v":""},null,{"$f":"IF(C632=\"\",NA(),MATCH($B632&$C632,'Smelter Look-up'!$J:$J,0))","v":{"$error":"#N/A"}},null,0,null,null,null,""]
[null,{"$f":"IF(LEN(A633)=0,\"\",INDEX('Smelter Look-up'!$A:$A,MATCH($A633,'Smelter Look-up'!$E:$E,0)))","v":""},{"$f":"IF(LEN(A633)=0,\"\",INDEX('Smelter Look-up'!$C:$C,MATCH($A633,'Smelter Look-up'!$E:$E,0)))","v":""},null,{"$f":"IF(ISERROR($V633),\"\",OFFSET('Smelter Look-up'!$D$4,$V633-4,0)&\"\")","v":""},{"$f":"IF(ISERROR($V633),\"\",OFFSET('Smelter Look-up'!$E$4,$V633-4,0))","v":""},{"$f":"IF(C633=$X$4,\"Enter smelter details\",IF(ISERROR($V633),\"\",OFFSET('Smelter Look-up'!$F$4,$V633-4,0)))","v":""},{"$f":"IF(ISERROR($V633),\"\",OFFSET('Smelter Look-up'!$G$4,$V633-4,0))","v":""},{"$f":"IF(ISERROR($V633),\"\",OFFSET('Smelter Look-up'!$H$4,$V633-4,0))","v":""},{"$f":"IF(ISERROR($V633),\"\",OFFSET('Smelter Look-up'!$I$4,$V633-4,0))","v":""},{"$nulls":7},{"$f":"IF(ISERROR($V633),\"\",OFFSET('Smelter Look-up'!$C$4,$V633-4,0)&\"\")","v":""},"",{"$f":"IF(B633=\"\",\"\",IF(ISERROR(MATCH($J633,SorP!$B$1:$B$5661,0)),\"\",INDIRECT(\"'SorP'!$A$\"&MATCH($J633,SorP!$B$1:$B$5661,0))))","v":""},null,{"$f":"IF(C633=\"\",NA(),MATCH($B633&$C633,'Smelter Look-up'!$J:$J,0))","v":{"$error":"#N/A"}},null,0,null,null,null,""]
[null,{"$f":"IF(LEN(A634)=0,\"\",INDEX('Smelter Look-up'!$A:$A,MATCH($A634,'Smelter Look-up'!$E:$E,0)))","v":""},{"$f":"IF(LEN(A634)=0,\"\",INDEX('Smelter Look-up'!$C:$C,MATCH($A634,'Smelter Look-up'!$E:$E,0)))","v":""},null,{"$f":"IF(ISERROR($V634),\"\",OFFSET('Smelter Look-up'!$D$4,$V634-4,0)&\"\")","v":""},{"$f":"IF(ISERROR($V634),\"\",OFFSET('Smelter Look-up'!$E$4,$V634-4,0))","v":""},{"$f":"IF(C634=$X$4,\"Enter smelter details\",IF(ISERROR($V634),\"\",OFFSET('Smelter Look-up'!$F$4,$V634-4,0)))","v":""},{"$f":"IF(ISERROR($V634),\"\",OFFSET('Smelter Look-up'!$G$4,$V634-4,0))","v":""},{"$f":"IF(ISERROR($V634),\"\",OFFSET('Smelter Look-up'!$H$4,$V634-4,0))","v":""},{"$f":"IF(ISERROR($V634),\"\",OFFSET('Smelter Look-up'!$I$4,$V634-4,0))","v":""},{"$nulls":7},{"$f":"IF(ISERROR($V634),\"\",OFFSET('Smelter Look-up'!$C$4,$V634-4,0)&\"\")","v":""},"",{"$f":"IF(B634=\"\",\"\",IF(ISERROR(MATCH($J634,SorP!$B$1:$B$5661,0)),\"\",INDIRECT(\"'SorP'!$A$\"&MATCH($J634,SorP!$B$1:$B$5661,0))))","v":""},null,{"$f":"IF(C634=\"\",NA(),MATCH($B634&$C634,'Smelter Look-up'!$J:$J,0))","v":{"$error":"#N/A"}},null,0,null,null,null,""]
[null,{"$f":"IF(LEN(A635)=0,\"\",INDEX('Smelter Look-up'!$A:$A,MATCH($A635,'Smelter Look-up'!$E:$E,0)))","v":""},{"$f":"IF(LEN(A635)=0,\"\",INDEX('Smelter Look-up'!$C:$C,MATCH($A635,'Smelter Look-up'!$E:$E,0)))","v":""},null,{"$f":"IF(ISERROR($V635),\"\",OFFSET('Smelter Look-up'!$D$4,$V635-4,0)&\"\")","v":""},{"$f":"IF(ISERROR($V635),\"\",OFFSET('Smelter Look-up'!$E$4,$V635-4,0))","v":""},{"$f":"IF(C635=$X$4,\"Enter smelter details\",IF(ISERROR($V635),\"\",OFFSET('Smelter Look-up'!$F$4,$V635-4,0)))","v":""},{"$f":"IF(ISERROR($V635),\"\",OFFSET('Smelter Look-up'!$G$4,$V635-4,0))","v":""},{"$f":"IF(ISERROR($V635),\"\",OFFSET('Smelter Look-up'!$H$4,$V635-4,0))","v":""},{"$f":"IF(ISERROR($V635),\"\",OFFSET('Smelter Look-up'!$I$4,$V635-4,0))","v":""},{"$nulls":7},{"$f":"IF(ISERROR($V635),\"\",OFFSET('Smelter Look-up'!$C$4,$V635-4,0)&\"\")","v":""},"",{"$f":"IF(B635=\"\",\"\",IF(ISERROR(MATCH($J635,SorP!$B$1:$B$5661,0)),\"\",INDIRECT(\"'SorP'!$A$\"&MATCH($J635,SorP!$B$1:$B$5661,0))))","v":""},null,{"$f":"IF(C635=\"\",NA(),MATCH($B635&$C635,'Smelter Look-up'!$J:$J,0))","v":{"$error":"#N/A"}},null,0,null,null,null,""]
[null,{"$f":"IF(LEN(A636)=0,\"\",INDEX('Smelter Look-up'!$A:$A,MATCH($A636,'Smelter Look-up'!$E:$E,0)))","v":""},{"$f":"IF(LEN(A636)=0,\"\",INDEX('Smelter Look-up'!$C:$C,MATCH($A636,'Smelter Look-up'!$E:$E,0)))","v":""},null,{"$f":"IF(ISERROR($V636),\"\",OFFSET('Smelter Look-up'!$D$4,$V636-4,0)&\"\")","v":""},{"$f":"IF(ISERROR($V636),\"\",OFFSET('Smelter Look-up'!$E$4,$V636-4,0))","v":""},{"$f":"IF(C636=$X$4,\"Enter smelter details\",IF(ISERROR($V636),\"\",OFFSET('Smelter Look-up'!$F$4,$V636-4,0)))","v":""},{"$f":"IF(ISERROR($V636),\"\",OFFSET('Smelter Look-up'!$G$4,$V636-4,0))","v":""},{"$f":"IF(ISERROR($V636),\"\",OFFSET('Smelter Look-up'!$H$4,$V636-4,0))","v":""},{"$f":"IF(ISERROR($V636),\"\",OFFSET('Smelter Look-up'!$I$4,$V636-4,0))","v":""},{"$nulls":7},{"$f":"IF(ISERROR($V636),\"\",OFFSET('Smelter Look-up'!$C$4,$V636-4,0)&\"\")","v":""},"",{"$f":"IF(B636=\"\",\"\",IF(ISERROR(MATCH($J636,SorP!$B$1:$B$5661,0)),\"\",INDIRECT(\"'SorP'!$A$\"&MATCH($J636,SorP!$B$1:$B$5661,0))))","v":""},null,{"$f":"IF(C636=\"\",NA(),MATCH($B636&$C636,'Smelter Look-up'!$J:$J,0))","v":{"$error":"#N/A"}},null,0,null,null,null,""]
[null,{"$f":"IF(LEN(A637)=0,\"\",INDEX('Smelter Look-up'!$A:$A,MATCH($A637,'Smelter Look-up'!$E:$E,0)))","v":""},{"$f":"IF(LEN(A637)=0,\"\",INDEX('Smelter Look-up'!$C:$C,MATCH($A637,'Smelter Look-up'!$E:$E,0)))","v":""},null,{"$f":"IF(ISERROR($V637),\"\",OFFSET('Smelter Look-up'!$D$4,$V637-4,0)&\"\")","v":""},{"$f":"IF(ISERROR($V637),\"\",OFFSET('Smelter Look-up'!$E$4,$V637-4,0))","v":""},{"$f":"IF(C637=$X$4,\"Enter smelter details\",IF(ISERROR($V637),\"\",OFFSET('Smelter Look-up'!$F$4,$V637-4,0)))","v":""},{"$f":"IF(ISERROR($V637),\"\",OFFSET('Smelter Look-up'!$G$4,$V637-4,0))","v":""},{"$f":"IF(ISERROR($V637),\"\",OFFSET('Smelter Look-up'!$H$4,$V637-4,0))","v":""},{"$f":"IF(ISERROR($V637),\"\",OFFSET('Smelter Look-up'!$I$4,$V637-4,0))","v":""},{"$nulls":7},{"$f":"IF(ISERROR($V637),\"\",OFFSET('Smelter Look-up'!$C$4,$V637-4,0)&\"\")","v":""},"",{"$f":"IF(B637=\"\",\"\",IF(ISERROR(MATCH($J637,SorP!$B$1:$B$5661,0)),\"\",INDIRECT(\"'SorP'!$A$\"&MATCH($J637,SorP!$B$1:$B$5661,0))))","v":""},null,{"$f":"IF(C637=\"\",NA(),MATCH($B637&$C637,'Smelter Look-up'!$J:$J,0))","v":{"$error":"#N/A"}},null,0,null,null,null,""]
[null,{"$f":"IF(LEN(A638)=0,\"\",INDEX('Smelter Look-up'!$A:$A,MATCH($A638,'Smelter Look-up'!$E:$E,0)))","v":""},{"$f":"IF(LEN(A638)=0,\"\",INDEX('Smelter Look-up'!$C:$C,MATCH($A638,'Smelter Look-up'!$E:$E,0)))","v":""},null,{"$f":"IF(ISERROR($V638),\"\",OFFSET('Smelter Look-up'!$D$4,$V638-4,0)&\"\")","v":""},{"$f":"IF(ISERROR($V638),\"\",OFFSET('Smelter Look-up'!$E$4,$V638-4,0))","v":""},{"$f":"IF(C638=$X$4,\"Enter smelter details\",IF(ISERROR($V638),\"\",OFFSET('Smelter Look-up'!$F$4,$V638-4,0)))","v":""},{"$f":"IF(ISERROR($V638),\"\",OFFSET('Smelter Look-up'!$G$4,$V638-4,0))","v":""},{"$f":"IF(ISERROR($V638),\"\",OFFSET('Smelter Look-up'!$H$4,$V638-4,0))","v":""},{"$f":"IF(ISERROR($V638),\"\",OFFSET('Smelter Look-up'!$I$4,$V638-4,0))","v":""},{"$nulls":7},{"$f":"IF(ISERROR($V638),\"\",OFFSET('Smelter Look-up'!$C$4,$V638-4,0)&\"\")","v":""},"",{"$f":"IF(B638=\"\",\"\",IF(ISERROR(MATCH($J638,SorP!$B$1:$B$5661,0)),\"\",INDIRECT(\"'SorP'!$A$\"&MATCH($J638,SorP!$B$1:$B$5661,0))))","v":""},null,{"$f":"IF(C638=\"\",NA(),MATCH($B638&$C638,'Smelter Look-up'!$J:$J,0))","v":{"$error":"#N/A"}},null,0,null,null,null,""]
[null,{"$f":"IF(LEN(A639)=0,\"\",INDEX('Smelter Look-up'!$A:$A,MATCH($A639,'Smelter Look-up'!$E:$E,0)))","v":""},{"$f":"IF(LEN(A639)=0,\"\",INDEX('Smelter Look-up'!$C:$C,MATCH($A639,'Smelter Look-up'!$E:$E,0)))","v":""},null,{"$f":"IF(ISERROR($V639),\"\",OFFSET('Smelter Look-up'!$D$4,$V639-4,0)&\"\")","v":""},{"$f":"IF(ISERROR($V639),\"\",OFFSET('Smelter Look-up'!$E$4,$V639-4,0))","v":""},{"$f":"IF(C639=$X$4,\"Enter smelter details\",IF(ISERROR($V639),\"\",OFFSET('Smelter Look-up'!$F$4,$V639-4,0)))","v":""},{"$f":"IF(ISERROR($V639),\"\",OFFSET('Smelter Look-up'!$G$4,$V639-4,0))","v":""},{"$f":"IF(ISERROR($V639),\"\",OFFSET('Smelter Look-up'!$H$4,$V639-4,0))","v":""},{"$f":"IF(ISERROR($V639),\"\",OFFSET('Smelter Look-up'!$I$4,$V639-4,0))","v":""},{"$nulls":7},{"$f":"IF(ISERROR($V639),\"\",OFFSET('Smelter Look-up'!$C$4,$V639-4,0)&\"\")","v":""},"",{"$f":"IF(B639=\"\",\"\",IF(ISERROR(MATCH($J639,SorP!$B$1:$B$5661,0)),\"\",INDIRECT(\"'SorP'!$A$\"&MATCH($J639,SorP!$B$1:$B$5661,0))))","v":""},null,{"$f":"IF(C639=\"\",NA(),MATCH($B639&$C639,'Smelter Look-up'!$J:$J,0))","v":{"$error":"#N/A"}},null,{"$f":"IF(AND(C639=\"Smelter not listed\",OR(LEN(D639)=0,LEN(E639)=0)),1,0)","v":0},null,null,null,{"$f":"B639&C639","v":""}]
[null,{"$f":"IF(LEN(A640)=0,\"\",INDEX('Smelter Look-up'!$A:$A,MATCH($A640,'Smelter Look-up'!$E:$E,0)))","v":""},{"$f":"IF(LEN(A640)=0,\"\",INDEX('Smelter Look-up'!$C:$C,MATCH($A640,'Smelter Look-up'!$E:$E,0)))","v":""},null,{"$f":"IF(ISERROR($V640),\"\",OFFSET('Smelter Look-up'!$D$4,$V640-4,0)&\"\")","v":""},{"$f":"IF(ISERROR($V640),\"\",OFFSET('Smelter Look-up'!$E$4,$V640-4,0))","v":""},{"$f":"IF(C640=$X$4,\"Enter smelter details\",IF(ISERROR($V640),\"\",OFFSET('Smelter Look-up'!$F$4,$V640-4,0)))","v":""},{"$f":"IF(ISERROR($V640),\"\",OFFSET('Smelter Look-up'!$G$4,$V640-4,0))","v":""},{"$f":"IF(ISERROR($V640),\"\",OFFSET('Smelter Look-up'!$H$4,$V640-4,0))","v":""},{"$f":"IF(ISERROR($V640),\"\",OFFSET('Smelter Look-up'!$I$4,$V640-4,0))","v":""},{"$nulls":7},{"$f":"IF(ISERROR($V640),\"\",OFFSET('Smelter Look-up'!$C$4,$V640-4,0)&\"\")","v":""},{"$f":"IF(B640=\"\",\"\",IF(ISERROR(MATCH($E640,CL,0)),\"Unknown\",INDIRECT(\"'C'!$A$\"&MATCH($E640,CL,0)+1)))","v":""},{"$f":"IF(B640=\"\",\"\",IF(ISERROR(MATCH($J640,SorP!$B$1:$B$5661,0)),\"\",INDIRECT(\"'SorP'!$A$\"&MATCH($J640,SorP!$B$1:$B$5661,0))))","v":""},null,{"$f":"IF(C640=\"\",NA(),MATCH($B640&$C640,'Smelter Look-up'!$J:$J,0))","v":{"$error":"#N/A"}},null,0,null,null,null,""]
[null,{"$f":"IF(LEN(A641)=0,\"\",INDEX('Smelter Look-up'!$A:$A,MATCH($A641,'Smelter Look-up'!$E:$E,0)))","v":""},{"$f":"IF(LEN(A641)=0,\"\",INDEX('Smelter Look-up'!$C:$C,MATCH($A641,'Smelter Look-up'!$E:$E,0)))","v":""},null,{"$f":"IF(ISERROR($V641),\"\",OFFSET('Smelter Look-up'!$D$4,$V641-4,0)&\"\")","v":""},{"$f":"IF(ISERROR($V641),\"\",OFFSET('Smelter Look-up'!$E$4,$V641-4,0))","v":""},{"$f":"IF(C641=$X$4,\"Enter smelter details\",IF(ISERROR($V641),\"\",OFFSET('Smelter Look-up'!$F$4,$V641-4,0)))","v":""},{"$f":"IF(ISERROR($V641),\"\",OFFSET('Smelter Look-up'!$G$4,$V641-4,0))","v":""},{"$f":"IF(ISERROR($V641),\"\",OFFSET('Smelter Look-up'!$H$4,$V641-4,0))","v":""},{"$f":"IF(ISERROR($V641),\"\",OFFSET('Smelter Look-up'!$I$4,$V641-4,0))","v":""},{"$nulls":7},{"$f":"IF(ISERROR($V641),\"\",OFFSET('Smelter Look-up'!$C$4,$V641-4,0)&\"\")","v":""},"",{"$f":"IF(B641=\"\",\"\",IF(ISERROR(MATCH($J641,SorP!$B$1:$B$5661,0)),\"\",INDIRECT(\"'SorP'!$A$\"&MATCH($J641,SorP!$B$1:$B$5661,0))))","v":""},null,{"$f":"IF(C641=\"\",NA(),MATCH($B641&$C641,'Smelter Look-up'!$J:$J,0))","v":{"$error":"#N/A"}},null,0,null,null,null,""]
[null,{"$f":"IF(LEN(A642)=0,\"\",INDEX('Smelter Look-up'!$A:$A,MATCH($A642,'Smelter Look-up'!$E:$E,0)))","v":""},{"$f":"IF(LEN(A642)=0,\"\",INDEX('Smelter Look-up'!$C:$C,MATCH($A642,'Smelter Look-up'!$E:$E,0)))","v":""},null,{"$f":"IF(ISERROR($V642),\"\",OFFSET('Smelter Look-up'!$D$4,$V642-4,0)&\"\")","v":""},{"$f":"IF(ISERROR($V642),\"\",OFFSET('Smelter Look-up'!$E$4,$V642-4,0))","v":""},{"$f":"IF(C642=$X$4,\"Enter smelter details\",IF(ISERROR($V642),\"\",OFFSET('Smelter Look-up'!$F$4,$V642-4,0)))","v":""},{"$f":"IF(ISERROR($V642),\"\",OFFSET('Smelter Look-up'!$G$4,$V642-4,0))","v":""},{"$f":"IF(ISERROR($V642),\"\",OFFSET('Smelter Look-up'!$H$4,$V642-4,0))","v":""},{"$f":"IF(ISERROR($V642),\"\",OFFSET('Smelter Look-up'!$I$4,$V642-4,0))","v":""},{"$nulls":7},{"$f":"IF(ISERROR($V642),\"\",OFFSET('Smelter Look-up'!$C$4,$V642-4,0)&\"\")","v":""},"",{"$f":"IF(B642=\"\",\"\",IF(ISERROR(MATCH($J642,SorP!$B$1:$B$5661,0)),\"\",INDIRECT(\"'SorP'!$A$\"&MATCH($J642,SorP!$B$1:$B$5661,0))))","v":""},null,{"$f":"IF(C642=\"\",NA(),MATCH($B642&$C642,'Smelter Look-up'!$J:$J,0))","v":{"$error":"#N/A"}},null,0,null,null,null,""]
[null,{"$f":"IF(LEN(A643)=0,\"\",INDEX('Smelter Look-up'!$A:$A,MATCH($A643,'Smelter Look-up'!$E:$E,0)))","v":""},{"$f":"IF(LEN(A643)=0,\"\",INDEX('Smelter Look-up'!$C:$C,MATCH($A643,'Smelter Look-up'!$E:$E,0)))","v":""},null,{"$f":"IF(ISERROR($V643),\"\",OFFSET('Smelter Look-up'!$D$4,$V643-4,0)&\"\")","v":""},{"$f":"IF(ISERROR($V643),\"\",OFFSET('Smelter Look-up'!$E$4,$V643-4,0))","v":""},{"$f":"IF(C643=$X$4,\"Enter smelter details\",IF(ISERROR($V643),\"\",OFFSET('Smelter Look-up'!$F$4,$V643-4,0)))","v":""},{"$f":"IF(ISERROR($V643),\"\",OFFSET('Smelter Look-up'!$G$4,$V643-4,0))","v":""},{"$f":"IF(ISERROR($V643),\"\",OFFSET('Smelter Look-up'!$H$4,$V643-4,0))","v":""},{"$f":"IF(ISERROR($V643),\"\",OFFSET('Smelter Look-up'!$I$4,$V643-4,0))","v":""},{"$nulls":7},{"$f":"IF(ISERROR($V643),\"\",OFFSET('Smelter Look-up'!$C$4,$V643-4,0)&\"\")","v":""},"",{"$f":"IF(B643=\"\",\"\",IF(ISERROR(MATCH($J643,SorP!$B$1:$B$5661,0)),\"\",INDIRECT(\"'SorP'!$A$\"&MATCH($J643,SorP!$B$1:$B$5661,0))))","v":""},null,{"$f":"IF(C643=\"\",NA(),MATCH($B643&$C643,'Smelter Look-up'!$J:$J,0))","v":{"$error":"#N/A"}},null,0,null,null,null,""]
[null,{"$f":"IF(LEN(A644)=0,\"\",INDEX('Smelter Look-up'!$A:$A,MATCH($A644,'Smelter Look-up'!$E:$E,0)))","v":""},{"$f":"IF(LEN(A644)=0,\"\",INDEX('Smelter Look-up'!$C:$C,MATCH($A644,'Smelter Look-up'!$E:$E,0)))","v":""},null,{"$f":"IF(ISERROR($V644),\"\",OFFSET('Smelter Look-up'!$D$4,$V644-4,0)&\"\")","v":""},{"$f":"IF(ISERROR($V644),\"\",OFFSET('Smelter Look-up'!$E$4,$V644-4,0))","v":""},{"$f":"IF(C644=$X$4,\"Enter smelter details\",IF(ISERROR($V644),\"\",OFFSET('Smelter Look-up'!$F$4,$V644-4,0)))","v":""},{"$f":"IF(ISERROR($V644),\"\",OFFSET('Smelter Look-up'!$G$4,$V644-4,0))","v":""},{"$f":"IF(ISERROR($V644),\"\",OFFSET('Smelter Look-up'!$H$4,$V644-4,0))","v":""},{"$f":"IF(ISERROR($V644),\"\",OFFSET('Smelter Look-up'!$I$4,$V644-4,0))","v":""},{"$nulls":7},{"$f":"IF(ISERROR($V644),\"\",OFFSET('Smelter Look-up'!$C$4,$V644-4,0)&\"\")","v":""},"",{"$f":"IF(B644=\"\",\"\",IF(ISERROR(MATCH($J644,SorP!$B$1:$B$5661,0)),\"\",INDIRECT(\"'SorP'!$A$\"&MATCH($J644,SorP!$B$1:$B$5661,0))))","v":""},null,{"$f":"IF(C644=\"\",NA(),MATCH($B644&$C644,'Smelter Look-up'!$J:$J,0))","v":{"$error":"#N/A"}},null,0,null,null,null,""]
[null,{"$f":"IF(LEN(A645)=0,\"\",INDEX('Smelter Look-up'!$A:$A,MATCH($A645,'Smelter Look-up'!$E:$E,0)))","v":""},{"$f":"IF(LEN(A645)=0,\"\",INDEX('Smelter Look-up'!$C:$C,MATCH($A645,'Smelter Look-up'!$E:$E,0)))","v":""},null,{"$f":"IF(ISERROR($V645),\"\",OFFSET('Smelter Look-up'!$D$4,$V645-4,0)&\"\")","v":""},{"$f":"IF(ISERROR($V645),\"\",OFFSET('Smelter Look-up'!$E$4,$V645-4,0))","v":""},{"$f":"IF(C645=$X$4,\"Enter smelter details\",IF(ISERROR($V645),\"\",OFFSET('Smelter Look-up'!$F$4,$V645-4,0)))","v":""},{"$f":"IF(ISERROR($V645),\"\",OFFSET('Smelter Look-up'!$G$4,$V645-4,0))","v":""},{"$f":"IF(ISERROR($V645),\"\",OFFSET('Smelter Look-up'!$H$4,$V645-4,0))","v":""},{"$f":"IF(ISERROR($V645),\"\",OFFSET('Smelter Look-up'!$I$4,$V645-4,0))","v":""},{"$nulls":7},{"$f":"IF(ISERROR($V645),\"\",OFFSET('Smelter Look-up'!$C$4,$V645-4,0)&\"\")","v":""},"",{"$f":"IF(B645=\"\",\"\",IF(ISERROR(MATCH($J645,SorP!$B$1:$B$5661,0)),\"\",INDIRECT(\"'SorP'!$A$\"&MATCH($J645,SorP!$B$1:$B$5661,0))))","v":""},null,{"$f":"IF(C645=\"\",NA(),MATCH($B645&$C645,'Smelter Look-up'!$J:$J,0))","v":{"$error":"#N/A"}},null,0,null,null,null,""]
[null,{"$f":"IF(LEN(A646)=0,\"\",INDEX('Smelter Look-up'!$A:$A,MATCH($A646,'Smelter Look-up'!$E:$E,0)))","v":""},{"$f":"IF(LEN(A646)=0,\"\",INDEX('Smelter Look-up'!$C:$C,MATCH($A646,'Smelter Look-up'!$E:$E,0)))","v":""},null,{"$f":"IF(ISERROR($V646),\"\",OFFSET('Smelter Look-up'!$D$4,$V646-4,0)&\"\")","v":""},{"$f":"IF(ISERROR($V646),\"\",OFFSET('Smelter Look-up'!$E$4,$V646-4,0))","v":""},{"$f":"IF(C646=$X$4,\"Enter smelter details\",IF(ISERROR($V646),\"\",OFFSET('Smelter Look-up'!$F$4,$V646-4,0)))","v":""},{"$f":"IF(ISERROR($V646),\"\",OFFSET('Smelter Look-up'!$G$4,$V646-4,0))","v":""},{"$f":"IF(ISERROR($V646),\"\",OFFSET('Smelter Look-up'!$H$4,$V646-4,0))","v":""},{"$f":"IF(ISERROR($V646),\"\",OFFSET('Smelter Look-up'!$I$4,$V646-4,0))","v":""},{"$nulls":7},{"$f":"IF(ISERROR($V646),\"\",OFFSET('Smelter Look-up'!$C$4,$V646-4,0)&\"\")","v":""},"",{"$f":"IF(B646=\"\",\"\",IF(ISERROR(MATCH($J646,SorP!$B$1:$B$5661,0)),\"\",INDIRECT(\"'SorP'!$A$\"&MATCH($J646,SorP!$B$1:$B$5661,0))))","v":""},null,{"$f":"IF(C646=\"\",NA(),MATCH($B646&$C646,'Smelter Look-up'!$J:$J,0))","v":{"$error":"#N/A"}},null,0,null,null,null,""]
[null,{"$f":"IF(LEN(A647)=0,\"\",INDEX('Smelter Look-up'!$A:$A,MATCH($A647,'Smelter Look-up'!$E:$E,0)))","v":""},{"$f":"IF(LEN(A647)=0,\"\",INDEX('Smelter Look-up'!$C:$C,MATCH($A647,'Smelter Look-up'!$E:$E,0)))","v":""},null,{"$f":"IF(ISERROR($V647),\"\",OFFSET('Smelter Look-up'!$D$4,$V647-4,0)&\"\")","v":""},{"$f":"IF(ISERROR($V647),\"\",OFFSET('Smelter Look-up'!$E$4,$V647-4,0))","v":""},{"$f":"IF(C647=$X$4,\"Enter smelter details\",IF(ISERROR($V647),\"\",OFFSET('Smelter Look-up'!$F$4,$V647-4,0)))","v":""},{"$f":"IF(ISERROR($V647),\"\",OFFSET('Smelter Look-up'!$G$4,$V647-4,0))","v":""},{"$f":"IF(ISERROR($V647),\"\",OFFSET('Smelter Look-up'!$H$4,$V647-4,0))","v":""},{"$f":"IF(ISERROR($V647),\"\",OFFSET('Smelter Look-up'!$I$4,$V647-4,0))","v":""},{"$nulls":7},{"$f":"IF(ISERROR($V647),\"\",OFFSET('Smelter Look-up'!$C$4,$V647-4,0)&\"\")","v":""},"",{"$f":"IF(B647=\"\",\"\",IF(ISERROR(MATCH($J647,SorP!$B$1:$B$5661,0)),\"\",INDIRECT(\"'SorP'!$A$\"&MATCH($J647,SorP!$B$1:$B$5661,0))))","v":""},null,{"$f":"IF(C647=\"\",NA(),MATCH($B647&$C647,'Smelter Look-up'!$J:$J,0))","v":{"$error":"#N/A"}},null,0,null,null,null,""]
[null,{"$f":"IF(LEN(A648)=0,\"\",INDEX('Smelter Look-up'!$A:$A,MATCH($A648,'Smelter Look-up'!$E:$E,0)))","v":""},{"$f":"IF(LEN(A648)=0,\"\",INDEX('Smelter Look-up'!$C:$C,MATCH($A648,'Smelter Look-up'!$E:$E,0)))","v":""},null,{"$f":"IF(ISERROR($V648),\"\",OFFSET('Smelter Look-up'!$D$4,$V648-4,0)&\"\")","v":""},{"$f":"IF(ISERROR($V648),\"\",OFFSET('Smelter Look-up'!$E$4,$V648-4,0))","v":""},{"$f":"IF(C648=$X$4,\"Enter smelter details\",IF(ISERROR($V648),\"\",OFFSET('Smelter Look-up'!$F$4,$V648-4,0)))","v":""},{"$f":"IF(ISERROR($V648),\"\",OFFSET('Smelter Look-up'!$G$4,$V648-4,0))","v":""},{"$f":"IF(ISERROR($V648),\"\",OFFSET('Smelter Look-up'!$H$4,$V648-4,0))","v":""},{"$f":"IF(ISERROR($V648),\"\",OFFSET('Smelter Look-up'!$I$4,$V648-4,0))","v":""},{"$nulls":7},{"$f":"IF(ISERROR($V648),\"\",OFFSET('Smelter Look-up'!$C$4,$V648-4,0)&\"\")","v":""},"",{"$f":"IF(B648=\"\",\"\",IF(ISERROR(MATCH($J648,SorP!$B$1:$B$5661,0)),\"\",INDIRECT(\"'SorP'!$A$\"&MATCH($J648,SorP!$B$1:$B$5661,0))))","v":""},null,{"$f":"IF(C648=\"\",NA(),MATCH($B648&$C648,'Smelter Look-up'!$J:$J,0))","v":{"$error":"#N/A"}},null,0,null,null,null,""]
[null,{"$f":"IF(LEN(A649)=0,\"\",INDEX('Smelter Look-up'!$A:$A,MATCH($A649,'Smelter Look-up'!$E:$E,0)))","v":""},{"$f":"IF(LEN(A649)=0,\"\",INDEX('Smelter Look-up'!$C:$C,MATCH($A649,'Smelter Look-up'!$E:$E,0)))","v":""},null,{"$f":"IF(ISERROR($V649),\"\",OFFSET('Smelter Look-up'!$D$4,$V649-4,0)&\"\")","v":""},{"$f":"IF(ISERROR($V649),\"\",OFFSET('Smelter Look-up'!$E$4,$V649-4,0))","v":""},{"$f":"IF(C649=$X$4,\"Enter smelter details\",IF(ISERROR($V649),\"\",OFFSET('Smelter Look-up'!$F$4,$V649-4,0)))","v":""},{"$f":"IF(ISERROR($V649),\"\",OFFSET('Smelter Look-up'!$G$4,$V649-4,0))","v":""},{"$f":"IF(ISERROR($V649),\"\",OFFSET('Smelter Look-up'!$H$4,$V649-4,0))","v":""},{"$f":"IF(ISERROR($V649),\"\",OFFSET('Smelter Look-up'!$I$4,$V649-4,0))","v":""},{"$nulls":7},{"$f":"IF(ISERROR($V649),\"\",OFFSET('Smelter Look-up'!$C$4,$V649-4,0)&\"\")","v":""},"",{"$f":"IF(B649=\"\",\"\",IF(ISERROR(MATCH($J649,SorP!$B$1:$B$5661,0)),\"\",INDIRECT(\"'SorP'!$A$\"&MATCH($J649,SorP!$B$1:$B$5661,0))))","v":""},null,{"$f":"IF(C649=\"\",NA(),MATCH($B649&$C649,'Smelter Look-up'!$J:$J,0))","v":{"$error":"#N/A"}},null,0,null,null,null,""]
[null,{"$f":"IF(LEN(A650)=0,\"\",INDEX('Smelter Look-up'!$A:$A,MATCH($A650,'Smelter Look-up'!$E:$E,0)))","v":""},{"$f":"IF(LEN(A650)=0,\"\",INDEX('Smelter Look-up'!$C:$C,MATCH($A650,'Smelter Look-up'!$E:$E,0)))","v":""},null,{"$f":"IF(ISERROR($V650),\"\",OFFSET('Smelter Look-up'!$D$4,$V650-4,0)&\"\")","v":""},{"$f":"IF(ISERROR($V650),\"\",OFFSET('Smelter Look-up'!$E$4,$V650-4,0))","v":""},{"$f":"IF(C650=$X$4,\"Enter smelter details\",IF(ISERROR($V650),\"\",OFFSET('Smelter Look-up'!$F$4,$V650-4,0)))","v":""},{"$f":"IF(ISERROR($V650),\"\",OFFSET('Smelter Look-up'!$G$4,$V650-4,0))","v":""},{"$f":"IF(ISERROR($V650),\"\",OFFSET('Smelter Look-up'!$H$4,$V650-4,0))","v":""},{"$f":"IF(ISERROR($V650),\"\",OFFSET('Smelter Look-up'!$I$4,$V650-4,0))","v":""},{"$nulls":7},{"$f":"IF(ISERROR($V650),\"\",OFFSET('Smelter Look-up'!$C$4,$V650-4,0)&\"\")","v":""},"",{"$f":"IF(B650=\"\",\"\",IF(ISERROR(MATCH($J650,SorP!$B$1:$B$5661,0)),\"\",INDIRECT(\"'SorP'!$A$\"&MATCH($J650,SorP!$B$1:$B$5661,0))))","v":""},null,{"$f":"IF(C650=\"\",NA(),MATCH($B650&$C650,'Smelter Look-up'!$J:$J,0))","v":{"$error":"#N/A"}},null,0,null,null,null,""]
[null,{"$f":"IF(LEN(A651)=0,\"\",INDEX('Smelter Look-up'!$A:$A,MATCH($A651,'Smelter Look-up'!$E:$E,0)))","v":""},{"$f":"IF(LEN(A651)=0,\"\",INDEX('Smelter Look-up'!$C:$C,MATCH($A651,'Smelter Look-up'!$E:$E,0)))","v":""},null,{"$f":"IF(ISERROR($V651),\"\",OFFSET('Smelter Look-up'!$D$4,$V651-4,0)&\"\")","v":""},{"$f":"IF(ISERROR($V651),\"\",OFFSET('Smelter Look-up'!$E$4,$V651-4,0))","v":""},{"$f":"IF(C651=$X$4,\"Enter smelter details\",IF(ISERROR($V651),\"\",OFFSET('Smelter Look-up'!$F$4,$V651-4,0)))","v":""},{"$f":"IF(ISERROR($V651),\"\",OFFSET('Smelter Look-up'!$G$4,$V651-4,0))","v":""},{"$f":"IF(ISERROR($V651),\"\",OFFSET('Smelter Look-up'!$H$4,$V651-4,0))","v":""},{"$f":"IF(ISERROR($V651),\"\",OFFSET('Smelter Look-up'!$I$4,$V651-4,0))","v":""},{"$nulls":7},{"$f":"IF(ISERROR($V651),\"\",OFFSET('Smelter Look-up'!$C$4,$V651-4,0)&\"\")","v":""},"",{"$f":"IF(B651=\"\",\"\",IF(ISERROR(MATCH($J651,SorP!$B$1:$B$5661,0)),\"\",INDIRECT(\"'SorP'!$A$\"&MATCH($J651,SorP!$B$1:$B$5661,0))))","v":""},null,{"$f":"IF(C651=\"\",NA(),MATCH($B651&$C651,'Smelter Look-up'!$J:$J,0))","v":{"$error":"#N/A"}},null,0,null,null,null,""]
[null,{"$f":"IF(LEN(A652)=0,\"\",INDEX('Smelter Look-up'!$A:$A,MATCH($A652,'Smelter Look-up'!$E:$E,0)))","v":""},{"$f":"IF(LEN(A652)=0,\"\",INDEX('Smelter Look-up'!$C:$C,MATCH($A652,'Smelter Look-up'!$E:$E,0)))","v":""},null,{"$f":"IF(ISERROR($V652),\"\",OFFSET('Smelter Look-up'!$D$4,$V652-4,0)&\"\")","v":""},{"$f":"IF(ISERROR($V652),\"\",OFFSET('Smelter Look-up'!$E$4,$V652-4,0))","v":""},{"$f":"IF(C652=$X$4,\"Enter smelter details\",IF(ISERROR($V652),\"\",OFFSET('Smelter Look-up'!$F$4,$V652-4,0)))","v":""},{"$f":"IF(ISERROR($V652),\"\",OFFSET('Smelter Look-up'!$G$4,$V652-4,0))","v":""},{"$f":"IF(ISERROR($V652),\"\",OFFSET('Smelter Look-up'!$H$4,$V652-4,0))","v":""},{"$f":"IF(ISERROR($V652),\"\",OFFSET('Smelter Look-up'!$I$4,$V652-4,0))","v":""},{"$nulls":7},{"$f":"IF(ISERROR($V652),\"\",OFFSET('Smelter Look-up'!$C$4,$V652-4,0)&\"\")","v":""},"",{"$f":"IF(B652=\"\",\"\",IF(ISERROR(MATCH($J652,SorP!$B$1:$B$5661,0)),\"\",INDIRECT(\"'SorP'!$A$\"&MATCH($J652,SorP!$B$1:$B$5661,0))))","v":""},null,{"$f":"IF(C652=\"\",NA(),MATCH($B652&$C652,'Smelter Look-up'!$J:$J,0))","v":{"$error":"#N/A"}},null,0,null,null,null,""]
[null,{"$f":"IF(LEN(A653)=0,\"\",INDEX('Smelter Look-up'!$A:$A,MATCH($A653,'Smelter Look-up'!$E:$E,0)))","v":""},{"$f":"IF(LEN(A653)=0,\"\",INDEX('Smelter Look-up'!$C:$C,MATCH($A653,'Smelter Look-up'!$E:$E,0)))","v":""},null,{"$f":"IF(ISERROR($V653),\"\",OFFSET('Smelter Look-up'!$D$4,$V653-4,0)&\"\")","v":""},{"$f":"IF(ISERROR($V653),\"\",OFFSET('Smelter Look-up'!$E$4,$V653-4,0))","v":""},{"$f":"IF(C653=$X$4,\"Enter smelter details\",IF(ISERROR($V653),\"\",OFFSET('Smelter Look-up'!$F$4,$V653-4,0)))","v":""},{"$f":"IF(ISERROR($V653),\"\",OFFSET('Smelter Look-up'!$G$4,$V653-4,0))","v":""},{"$f":"IF(ISERROR($V653),\"\",OFFSET('Smelter Look-up'!$H$4,$V653-4,0))","v":""},{"$f":"IF(ISERROR($V653),\"\",OFFSET('Smelter Look-up'!$I$4,$V653-4,0))","v":""},{"$nulls":7},{"$f":"IF(ISERROR($V653),\"\",OFFSET('Smelter Look-up'!$C$4,$V653-4,0)&\"\")","v":""},"",{"$f":"IF(B653=\"\",\"\",IF(ISERROR(MATCH($J653,SorP!$B$1:$B$5661,0)),\"\",INDIRECT(\"'SorP'!$A$\"&MATCH($J653,SorP!$B$1:$B$5661,0))))","v":""},null,{"$f":"IF(C653=\"\",NA(),MATCH($B653&$C653,'Smelter Look-up'!$J:$J,0))","v":{"$error":"#N/A"}},null,0,null,null,null,""]
[null,{"$f":"IF(LEN(A654)=0,\"\",INDEX('Smelter Look-up'!$A:$A,MATCH($A654,'Smelter Look-up'!$E:$E,0)))","v":""},{"$f":"IF(LEN(A654)=0,\"\",INDEX('Smelter Look-up'!$C:$C,MATCH($A654,'Smelter Look-up'!$E:$E,0)))","v":""},null,{"$f":"IF(ISERROR($V654),\"\",OFFSET('Smelter Look-up'!$D$4,$V654-4,0)&\"\")","v":""},{"$f":"IF(ISERROR($V654),\"\",OFFSET('Smelter Look-up'!$E$4,$V654-4,0))","v":""},{"$f":"IF(C654=$X$4,\"Enter smelter details\",IF(ISERROR($V654),\"\",OFFSET('Smelter Look-up'!$F$4,$V654-4,0)))","v":""},{"$f":"IF(ISERROR($V654),\"\",OFFSET('Smelter Look-up'!$G$4,$V654-4,0))","v":""},{"$f":"IF(ISERROR($V654),\"\",OFFSET('Smelter Look-up'!$H$4,$V654-4,0))","v":""},{"$f":"IF(ISERROR($V654),\"\",OFFSET('Smelter Look-up'!$I$4,$V654-4,0))","v":""},{"$nulls":7},{"$f":"IF(ISERROR($V654),\"\",OFFSET('Smelter Look-up'!$C$4,$V654-4,0)&\"\")","v":""},"",{"$f":"IF(B654=\"\",\"\",IF(ISERROR(MATCH($J654,SorP!$B$1:$B$5661,0)),\"\",INDIRECT(\"'SorP'!$A$\"&MATCH($J654,SorP!$B$1:$B$5661,0))))","v":""},null,{"$f":"IF(C654=\"\",NA(),MATCH($B654&$C654,'Smelter Look-up'!$J:$J,0))","v":{"$error":"#N/A"}},null,0,null,null,null,""]
[null,{"$f":"IF(LEN(A655)=0,\"\",INDEX('Smelter Look-up'!$A:$A,MATCH($A655,'Smelter Look-up'!$E:$E,0)))","v":""},{"$f":"IF(LEN(A655)=0,\"\",INDEX('Smelter Look-up'!$C:$C,MATCH($A655,'Smelter Look-up'!$E:$E,0)))","v":""},null,{"$f":"IF(ISERROR($V655),\"\",OFFSET('Smelter Look-up'!$D$4,$V655-4,0)&\"\")","v":""},{"$f":"IF(ISERROR($V655),\"\",OFFSET('Smelter Look-up'!$E$4,$V655-4,0))","v":""},{"$f":"IF(C655=$X$4,\"Enter smelter details\",IF(ISERROR($V655),\"\",OFFSET('Smelter Look-up'!$F$4,$V655-4,0)))","v":""},{"$f":"IF(ISERROR($V655),\"\",OFFSET('Smelter Look-up'!$G$4,$V655-4,0))","v":""},{"$f":"IF(ISERROR($V655),\"\",OFFSET('Smelter Look-up'!$H$4,$V655-4,0))","v":""},{"$f":"IF(ISERROR($V655),\"\",OFFSET('Smelter Look-up'!$I$4,$V655-4,0))","v":""},{"$nulls":7},{"$f":"IF(ISERROR($V655),\"\",OFFSET('Smelter Look-up'!$C$4,$V655-4,0)&\"\")","v":""},"",{"$f":"IF(B655=\"\",\"\",IF(ISERROR(MATCH($J655,SorP!$B$1:$B$5661,0)),\"\",INDIRECT(\"'SorP'!$A$\"&MATCH($J655,SorP!$B$1:$B$5661,0))))","v":""},null,{"$f":"IF(C655=\"\",NA(),MATCH($B655&$C655,'Smelter Look-up'!$J:$J,0))","v":{"$error":"#N/A"}},null,0,null,null,null,""]
[null,{"$f":"IF(LEN(A656)=0,\"\",INDEX('Smelter Look-up'!$A:$A,MATCH($A656,'Smelter Look-up'!$E:$E,0)))","v":""},{"$f":"IF(LEN(A656)=0,\"\",INDEX('Smelter Look-up'!$C:$C,MATCH($A656,'Smelter Look-up'!$E:$E,0)))","v":""},null,{"$f":"IF(ISERROR($V656),\"\",OFFSET('Smelter Look-up'!$D$4,$V656-4,0)&\"\")","v":""},{"$f":"IF(ISERROR($V656),\"\",OFFSET('Smelter Look-up'!$E$4,$V656-4,0))","v":""},{"$f":"IF(C656=$X$4,\"Enter smelter details\",IF(ISERROR($V656),\"\",OFFSET('Smelter Look-up'!$F$4,$V656-4,0)))","v":""},{"$f":"IF(ISERROR($V656),\"\",OFFSET('Smelter Look-up'!$G$4,$V656-4,0))","v":""},{"$f":"IF(ISERROR($V656),\"\",OFFSET('Smelter Look-up'!$H$4,$V656-4,0))","v":""},{"$f":"IF(ISERROR($V656),\"\",OFFSET('Smelter Look-up'!$I$4,$V656-4,0))","v":""},{"$nulls":7},{"$f":"IF(ISERROR($V656),\"\",OFFSET('Smelter Look-up'!$C$4,$V656-4,0)&\"\")","v":""},"",{"$f":"IF(B656=\"\",\"\",IF(ISERROR(MATCH($J656,SorP!$B$1:$B$5661,0)),\"\",INDIRECT(\"'SorP'!$A$\"&MATCH($J656,SorP!$B$1:$B$5661,0))))","v":""},null,{"$f":"IF(C656=\"\",NA(),MATCH($B656&$C656,'Smelter Look-up'!$J:$J,0))","v":{"$error":"#N/A"}},null,0,null,null,null,""]
[null,{"$f":"IF(LEN(A657)=0,\"\",INDEX('Smelter Look-up'!$A:$A,MATCH($A657,'Smelter Look-up'!$E:$E,0)))","v":""},{"$f":"IF(LEN(A657)=0,\"\",INDEX('Smelter Look-up'!$C:$C,MATCH($A657,'Smelter Look-up'!$E:$E,0)))","v":""},null,{"$f":"IF(ISERROR($V657),\"\",OFFSET('Smelter Look-up'!$D$4,$V657-4,0)&\"\")","v":""},{"$f":"IF(ISERROR($V657),\"\",OFFSET('Smelter Look-up'!$E$4,$V657-4,0))","v":""},{"$f":"IF(C657=$X$4,\"Enter smelter details\",IF(ISERROR($V657),\"\",OFFSET('Smelter Look-up'!$F$4,$V657-4,0)))","v":""},{"$f":"IF(ISERROR($V657),\"\",OFFSET('Smelter Look-up'!$G$4,$V657-4,0))","v":""},{"$f":"IF(ISERROR($V657),\"\",OFFSET('Smelter Look-up'!$H$4,$V657-4,0))","v":""},{"$f":"IF(ISERROR($V657),\"\",OFFSET('Smelter Look-up'!$I$4,$V657-4,0))","v":""},{"$nulls":7},{"$f":"IF(ISERROR($V657),\"\",OFFSET('Smelter Look-up'!$C$4,$V657-4,0)&\"\")","v":""},"",{"$f":"IF(B657=\"\",\"\",IF(ISERROR(MATCH($J657,SorP!$B$1:$B$5661,0)),\"\",INDIRECT(\"'SorP'!$A$\"&MATCH($J657,SorP!$B$1:$B$5661,0))))","v":""},null,{"$f":"IF(C657=\"\",NA(),MATCH($B657&$C657,'Smelter Look-up'!$J:$J,0))","v":{"$error":"#N/A"}},null,0,null,null,null,""]
[null,{"$f":"IF(LEN(A658)=0,\"\",INDEX('Smelter Look-up'!$A:$A,MATCH($A658,'Smelter Look-up'!$E:$E,0)))","v":""},{"$f":"IF(LEN(A658)=0,\"\",INDEX('Smelter Look-up'!$C:$C,MATCH($A658,'Smelter Look-up'!$E:$E,0)))","v":""},null,{"$f":"IF(ISERROR($V658),\"\",OFFSET('Smelter Look-up'!$D$4,$V658-4,0)&\"\")","v":""},{"$f":"IF(ISERROR($V658),\"\",OFFSET('Smelter Look-up'!$E$4,$V658-4,0))","v":""},{"$f":"IF(C658=$X$4,\"Enter smelter details\",IF(ISERROR($V658),\"\",OFFSET('Smelter Look-up'!$F$4,$V658-4,0)))","v":""},{"$f":"IF(ISERROR($V658),\"\",OFFSET('Smelter Look-up'!$G$4,$V658-4,0))","v":""},{"$f":"IF(ISERROR($V658),\"\",OFFSET('Smelter Look-up'!$H$4,$V658-4,0))","v":""},{"$f":"IF(ISERROR($V658),\"\",OFFSET('Smelter Look-up'!$I$4,$V658-4,0))","v":""},{"$nulls":7},{"$f":"IF(ISERROR($V658),\"\",OFFSET('Smelter Look-up'!$C$4,$V658-4,0)&\"\")","v":""},"",{"$f":"IF(B658=\"\",\"\",IF(ISERROR(MATCH($J658,SorP!$B$1:$B$5661,0)),\"\",INDIRECT(\"'SorP'!$A$\"&MATCH($J658,SorP!$B$1:$B$5661,0))))","v":""},null,{"$f":"IF(C658=\"\",NA(),MATCH($B658&$C658,'Smelter Look-up'!$J:$J,0))","v":{"$error":"#N/A"}},null,0,null,null,null,""]
[null,{"$f":"IF(LEN(A659)=0,\"\",INDEX('Smelter Look-up'!$A:$A,MATCH($A659,'Smelter Look-up'!$E:$E,0)))","v":""},{"$f":"IF(LEN(A659)=0,\"\",INDEX('Smelter Look-up'!$C:$C,MATCH($A659,'Smelter Look-up'!$E:$E,0)))","v":""},null,{"$f":"IF(ISERROR($V659),\"\",OFFSET('Smelter Look-up'!$D$4,$V659-4,0)&\"\")","v":""},{"$f":"IF(ISERROR($V659),\"\",OFFSET('Smelter Look-up'!$E$4,$V659-4,0))","v":""},{"$f":"IF(C659=$X$4,\"Enter smelter details\",IF(ISERROR($V659),\"\",OFFSET('Smelter Look-up'!$F$4,$V659-4,0)))","v":""},{"$f":"IF(ISERROR($V659),\"\",OFFSET('Smelter Look-up'!$G$4,$V659-4,0))","v":""},{"$f":"IF(ISERROR($V659),\"\",OFFSET('Smelter Look-up'!$H$4,$V659-4,0))","v":""},{"$f":"IF(ISERROR($V659),\"\",OFFSET('Smelter Look-up'!$I$4,$V659-4,0))","v":""},{"$nulls":7},{"$f":"IF(ISERROR($V659),\"\",OFFSET('Smelter Look-up'!$C$4,$V659-4,0)&\"\")","v":""},"",{"$f":"IF(B659=\"\",\"\",IF(ISERROR(MATCH($J659,SorP!$B$1:$B$5661,0)),\"\",INDIRECT(\"'SorP'!$A$\"&MATCH($J659,SorP!$B$1:$B$5661,0))))","v":""},null,{"$f":"IF(C659=\"\",NA(),MATCH($B659&$C659,'Smelter Look-up'!$J:$J,0))","v":{"$error":"#N/A"}},null,0,null,null,null,""]
[null,{"$f":"IF(LEN(A660)=0,\"\",INDEX('Smelter Look-up'!$A:$A,MATCH($A660,'Smelter Look-up'!$E:$E,0)))","v":""},{"$f":"IF(LEN(A660)=0,\"\",INDEX('Smelter Look-up'!$C:$C,MATCH($A660,'Smelter Look-up'!$E:$E,0)))","v":""},null,{"$f":"IF(ISERROR($V660),\"\",OFFSET('Smelter Look-up'!$D$4,$V660-4,0)&\"\")","v":""},{"$f":"IF(ISERROR($V660),\"\",OFFSET('Smelter Look-up'!$E$4,$V660-4,0))","v":""},{"$f":"IF(C660=$X$4,\"Enter smelter details\",IF(ISERROR($V660),\"\",OFFSET('Smelter Look-up'!$F$4,$V660-4,0)))","v":""},{"$f":"IF(ISERROR($V660),\"\",OFFSET('Smelter Look-up'!$G$4,$V660-4,0))","v":""},{"$f":"IF(ISERROR($V660),\"\",OFFSET('Smelter Look-up'!$H$4,$V660-4,0))","v":""},{"$f":"IF(ISERROR($V660),\"\",OFFSET('Smelter Look-up'!$I$4,$V660-4,0))","v":""},{"$nulls":7},{"$f":"IF(ISERROR($V660),\"\",OFFSET('Smelter Look-up'!$C$4,$V660-4,0)&\"\")","v":""},"",{"$f":"IF(B660=\"\",\"\",IF(ISERROR(MATCH($J660,SorP!$B$1:$B$5661,0)),\"\",INDIRECT(\"'SorP'!$A$\"&MATCH($J660,SorP!$B$1:$B$5661,0))))","v":""},null,{"$f":"IF(C660=\"\",NA(),MATCH($B660&$C660,'Smelter Look-up'!$J:$J,0))","v":{"$error":"#N/A"}},null,0,null,null,null,""]
[null,{"$f":"IF(LEN(A661)=0,\"\",INDEX('Smelter Look-up'!$A:$A,MATCH($A661,'Smelter Look-up'!$E:$E,0)))","v":""},{"$f":"IF(LEN(A661)=0,\"\",INDEX('Smelter Look-up'!$C:$C,MATCH($A661,'Smelter Look-up'!$E:$E,0)))","v":""},null,{"$f":"IF(ISERROR($V661),\"\",OFFSET('Smelter Look-up'!$D$4,$V661-4,0)&\"\")","v":""},{"$f":"IF(ISERROR($V661),\"\",OFFSET('Smelter Look-up'!$E$4,$V661-4,0))","v":""},{"$f":"IF(C661=$X$4,\"Enter smelter details\",IF(ISERROR($V661),\"\",OFFSET('Smelter Look-up'!$F$4,$V661-4,0)))","v":""},{"$f":"IF(ISERROR($V661),\"\",OFFSET('Smelter Look-up'!$G$4,$V661-4,0))","v":""},{"$f":"IF(ISERROR($V661),\"\",OFFSET('Smelter Look-up'!$H$4,$V661-4,0))","v":""},{"$f":"IF(ISERROR($V661),\"\",OFFSET('Smelter Look-up'!$I$4,$V661-4,0))","v":""},{"$nulls":7},{"$f":"IF(ISERROR($V661),\"\",OFFSET('Smelter Look-up'!$C$4,$V661-4,0)&\"\")","v":""},"",{"$f":"IF(B661=\"\",\"\",IF(ISERROR(MATCH($J661,SorP!$B$1:$B$5661,0)),\"\",INDIRECT(\"'SorP'!$A$\"&MATCH($J661,SorP!$B$1:$B$5661,0))))","v":""},null,{"$f":"IF(C661=\"\",NA(),MATCH($B661&$C661,'Smelter Look-up'!$J:$J,0))","v":{"$error":"#N/A"}},null,0,null,null,null,""]
[null,{"$f":"IF(LEN(A662)=0,\"\",INDEX('Smelter Look-up'!$A:$A,MATCH($A662,'Smelter Look-up'!$E:$E,0)))","v":""},{"$f":"IF(LEN(A662)=0,\"\",INDEX('Smelter Look-up'!$C:$C,MATCH($A662,'Smelter Look-up'!$E:$E,0)))","v":""},null,{"$f":"IF(ISERROR($V662),\"\",OFFSET('Smelter Look-up'!$D$4,$V662-4,0)&\"\")","v":""},{"$f":"IF(ISERROR($V662),\"\",OFFSET('Smelter Look-up'!$E$4,$V662-4,0))","v":""},{"$f":"IF(C662=$X$4,\"Enter smelter details\",IF(ISERROR($V662),\"\",OFFSET('Smelter Look-up'!$F$4,$V662-4,0)))","v":""},{"$f":"IF(ISERROR($V662),\"\",OFFSET('Smelter Look-up'!$G$4,$V662-4,0))","v":""},{"$f":"IF(ISERROR($V662),\"\",OFFSET('Smelter Look-up'!$H$4,$V662-4,0))","v":""},{"$f":"IF(ISERROR($V662),\"\",OFFSET('Smelter Look-up'!$I$4,$V662-4,0))","v":""},{"$nulls":7},{"$f":"IF(ISERROR($V662),\"\",OFFSET('Smelter Look-up'!$C$4,$V662-4,0)&\"\")","v":""},"",{"$f":"IF(B662=\"\",\"\",IF(ISERROR(MATCH($J662,SorP!$B$1:$B$5661,0)),\"\",INDIRECT(\"'SorP'!$A$\"&MATCH($J662,SorP!$B$1:$B$5661,0))))","v":""},null,{"$f":"IF(C662=\"\",NA(),MATCH($B662&$C662,'Smelter Look-up'!$J:$J,0))","v":{"$error":"#N/A"}},null,0,null,null,null,""]
[null,{"$f":"IF(LEN(A663)=0,\"\",INDEX('Smelter Look-up'!$A:$A,MATCH($A663,'Smelter Look-up'!$E:$E,0)))","v":""},{"$f":"IF(LEN(A663)=0,\"\",INDEX('Smelter Look-up'!$C:$C,MATCH($A663,'Smelter Look-up'!$E:$E,0)))","v":""},null,{"$f":"IF(ISERROR($V663),\"\",OFFSET('Smelter Look-up'!$D$4,$V663-4,0)&\"\")","v":""},{"$f":"IF(ISERROR($V663),\"\",OFFSET('Smelter Look-up'!$E$4,$V663-4,0))","v":""},{"$f":"IF(C663=$X$4,\"Enter smelter details\",IF(ISERROR($V663),\"\",OFFSET('Smelter Look-up'!$F$4,$V663-4,0)))","v":""},{"$f":"IF(ISERROR($V663),\"\",OFFSET('Smelter Look-up'!$G$4,$V663-4,0))","v":""},{"$f":"IF(ISERROR($V663),\"\",OFFSET('Smelter Look-up'!$H$4,$V663-4,0))","v":""},{"$f":"IF(ISERROR($V663),\"\",OFFSET('Smelter Look-up'!$I$4,$V663-4,0))","v":""},{"$nulls":7},{"$f":"IF(ISERROR($V663),\"\",OFFSET('Smelter Look-up'!$C$4,$V663-4,0)&\"\")","v":""},"",{"$f":"IF(B663=\"\",\"\",IF(ISERROR(MATCH($J663,SorP!$B$1:$B$5661,0)),\"\",INDIRECT(\"'SorP'!$A$\"&MATCH($J663,SorP!$B$1:$B$5661,0))))","v":""},null,{"$f":"IF(C663=\"\",NA(),MATCH($B663&$C663,'Smelter Look-up'!$J:$J,0))","v":{"$error":"#N/A"}},null,0,null,null,null,""]
[null,{"$f":"IF(LEN(A664)=0,\"\",INDEX('Smelter Look-up'!$A:$A,MATCH($A664,'Smelter Look-up'!$E:$E,0)))","v":""},{"$f":"IF(LEN(A664)=0,\"\",INDEX('Smelter Look-up'!$C:$C,MATCH($A664,'Smelter Look-up'!$E:$E,0)))","v":""},null,{"$f":"IF(ISERROR($V664),\"\",OFFSET('Smelter Look-up'!$D$4,$V664-4,0)&\"\")","v":""},{"$f":"IF(ISERROR($V664),\"\",OFFSET('Smelter Look-up'!$E$4,$V664-4,0))","v":""},{"$f":"IF(C664=$X$4,\"Enter smelter details\",IF(ISERROR($V664),\"\",OFFSET('Smelter Look-up'!$F$4,$V664-4,0)))","v":""},{"$f":"IF(ISERROR($V664),\"\",OFFSET('Smelter Look-up'!$G$4,$V664-4,0))","v":""},{"$f":"IF(ISERROR($V664),\"\",OFFSET('Smelter Look-up'!$H$4,$V664-4,0))","v":""},{"$f":"IF(ISERROR($V664),\"\",OFFSET('Smelter Look-up'!$I$4,$V664-4,0))","v":""},{"$nulls":7},{"$f":"IF(ISERROR($V664),\"\",OFFSET('Smelter Look-up'!$C$4,$V664-4,0)&\"\")","v":""},"",{"$f":"IF(B664=\"\",\"\",IF(ISERROR(MATCH($J664,SorP!$B$1:$B$5661,0)),\"\",INDIRECT(\"'SorP'!$A$\"&MATCH($J664,SorP!$B$1:$B$5661,0))))","v":""},null,{"$f":"IF(C664=\"\",NA(),MATCH($B664&$C664,'Smelter Look-up'!$J:$J,0))","v":{"$error":"#N/A"}},null,0,null,null,null,""]
[null,{"$f":"IF(LEN(A665)=0,\"\",INDEX('Smelter Look-up'!$A:$A,MATCH($A665,'Smelter Look-up'!$E:$E,0)))","v":""},{"$f":"IF(LEN(A665)=0,\"\",INDEX('Smelter Look-up'!$C:$C,MATCH($A665,'Smelter Look-up'!$E:$E,0)))","v":""},null,{"$f":"IF(ISERROR($V665),\"\",OFFSET('Smelter Look-up'!$D$4,$V665-4,0)&\"\")","v":""},{"$f":"IF(ISERROR($V665),\"\",OFFSET('Smelter Look-up'!$E$4,$V665-4,0))","v":""},{"$f":"IF(C665=$X$4,\"Enter smelter details\",IF(ISERROR($V665),\"\",OFFSET('Smelter Look-up'!$F$4,$V665-4,0)))","v":""},{"$f":"IF(ISERROR($V665),\"\",OFFSET('Smelter Look-up'!$G$4,$V665-4,0))","v":""},{"$f":"IF(ISERROR($V665),\"\",OFFSET('Smelter Look-up'!$H$4,$V665-4,0))","v":""},{"$f":"IF(ISERROR($V665),\"\",OFFSET('Smelter Look-up'!$I$4,$V665-4,0))","v":""},{"$nulls":7},{"$f":"IF(ISERROR($V665),\"\",OFFSET('Smelter Look-up'!$C$4,$V665-4,0)&\"\")","v":""},"",{"$f":"IF(B665=\"\",\"\",IF(ISERROR(MATCH($J665,SorP!$B$1:$B$5661,0)),\"\",INDIRECT(\"'SorP'!$A$\"&MATCH($J665,SorP!$B$1:$B$5661,0))))","v":""},null,{"$f":"IF(C665=\"\",NA(),MATCH($B665&$C665,'Smelter Look-up'!$J:$J,0))","v":{"$error":"#N/A"}},null,0,null,null,null,""]
[null,{"$f":"IF(LEN(A666)=0,\"\",INDEX('Smelter Look-up'!$A:$A,MATCH($A666,'Smelter Look-up'!$E:$E,0)))","v":""},{"$f":"IF(LEN(A666)=0,\"\",INDEX('Smelter Look-up'!$C:$C,MATCH($A666,'Smelter Look-up'!$E:$E,0)))","v":""},null,{"$f":"IF(ISERROR($V666),\"\",OFFSET('Smelter Look-up'!$D$4,$V666-4,0)&\"\")","v":""},{"$f":"IF(ISERROR($V666),\"\",OFFSET('Smelter Look-up'!$E$4,$V666-4,0))","v":""},{"$f":"IF(C666=$X$4,\"Enter smelter details\",IF(ISERROR($V666),\"\",OFFSET('Smelter Look-up'!$F$4,$V666-4,0)))","v":""},{"$f":"IF(ISERROR($V666),\"\",OFFSET('Smelter Look-up'!$G$4,$V666-4,0))","v":""},{"$f":"IF(ISERROR($V666),\"\",OFFSET('Smelter Look-up'!$H$4,$V666-4,0))","v":""},{"$f":"IF(ISERROR($V666),\"\",OFFSET('Smelter Look-up'!$I$4,$V666-4,0))","v":""},{"$nulls":7},{"$f":"IF(ISERROR($V666),\"\",OFFSET('Smelter Look-up'!$C$4,$V666-4,0)&\"\")","v":""},"",{"$f":"IF(B666=\"\",\"\",IF(ISERROR(MATCH($J666,SorP!$B$1:$B$5661,0)),\"\",INDIRECT(\"'SorP'!$A$\"&MATCH($J666,SorP!$B$1:$B$5661,0))))","v":""},null,{"$f":"IF(C666=\"\",NA(),MATCH($B666&$C666,'Smelter Look-up'!$J:$J,0))","v":{"$error":"#N/A"}},null,0,null,null,null,""]
[null,{"$f":"IF(LEN(A667)=0,\"\",INDEX('Smelter Look-up'!$A:$A,MATCH($A667,'Smelter Look-up'!$E:$E,0)))","v":""},{"$f":"IF(LEN(A667)=0,\"\",INDEX('Smelter Look-up'!$C:$C,MATCH($A667,'Smelter Look-up'!$E:$E,0)))","v":""},null,{"$f":"IF(ISERROR($V667),\"\",OFFSET('Smelter Look-up'!$D$4,$V667-4,0)&\"\")","v":""},{"$f":"IF(ISERROR($V667),\"\",OFFSET('Smelter Look-up'!$E$4,$V667-4,0))","v":""},{"$f":"IF(C667=$X$4,\"Enter smelter details\",IF(ISERROR($V667),\"\",OFFSET('Smelter Look-up'!$F$4,$V667-4,0)))","v":""},{"$f":"IF(ISERROR($V667),\"\",OFFSET('Smelter Look-up'!$G$4,$V667-4,0))","v":""},{"$f":"IF(ISERROR($V667),\"\",OFFSET('Smelter Look-up'!$H$4,$V667-4,0))","v":""},{"$f":"IF(ISERROR($V667),\"\",OFFSET('Smelter Look-up'!$I$4,$V667-4,0))","v":""},{"$nulls":7},{"$f":"IF(ISERROR($V667),\"\",OFFSET('Smelter Look-up'!$C$4,$V667-4,0)&\"\")","v":""},"",{"$f":"IF(B667=\"\",\"\",IF(ISERROR(MATCH($J667,SorP!$B$1:$B$5661,0)),\"\",INDIRECT(\"'SorP'!$A$\"&MATCH($J667,SorP!$B$1:$B$5661,0))))","v":""},null,{"$f":"IF(C667=\"\",NA(),MATCH($B667&$C667,'Smelter Look-up'!$J:$J,0))","v":{"$error":"#N/A"}},null,0,null,null,null,""]
[null,{"$f":"IF(LEN(A668)=0,\"\",INDEX('Smelter Look-up'!$A:$A,MATCH($A668,'Smelter Look-up'!$E:$E,0)))","v":""},{"$f":"IF(LEN(A668)=0,\"\",INDEX('Smelter Look-up'!$C:$C,MATCH($A668,'Smelter Look-up'!$E:$E,0)))","v":""},null,{"$f":"IF(ISERROR($V668),\"\",OFFSET('Smelter Look-up'!$D$4,$V668-4,0)&\"\")","v":""},{"$f":"IF(ISERROR($V668),\"\",OFFSET('Smelter Look-up'!$E$4,$V668-4,0))","v":""},{"$f":"IF(C668=$X$4,\"Enter smelter details\",IF(ISERROR($V668),\"\",OFFSET('Smelter Look-up'!$F$4,$V668-4,0)))","v":""},{"$f":"IF(ISERROR($V668),\"\",OFFSET('Smelter Look-up'!$G$4,$V668-4,0))","v":""},{"$f":"IF(ISERROR($V668),\"\",OFFSET('Smelter Look-up'!$H$4,$V668-4,0))","v":""},{"$f":"IF(ISERROR($V668),\"\",OFFSET('Smelter Look-up'!$I$4,$V668-4,0))","v":""},{"$nulls":7},{"$f":"IF(ISERROR($V668),\"\",OFFSET('Smelter Look-up'!$C$4,$V668-4,0)&\"\")","v":""},"",{"$f":"IF(B668=\"\",\"\",IF(ISERROR(MATCH($J668,SorP!$B$1:$B$5661,0)),\"\",INDIRECT(\"'SorP'!$A$\"&MATCH($J668,SorP!$B$1:$B$5661,0))))","v":""},null,{"$f":"IF(C668=\"\",NA(),MATCH($B668&$C668,'Smelter Look-up'!$J:$J,0))","v":{"$error":"#N/A"}},null,0,null,null,null,""]
[null,{"$f":"IF(LEN(A669)=0,\"\",INDEX('Smelter Look-up'!$A:$A,MATCH($A669,'Smelter Look-up'!$E:$E,0)))","v":""},{"$f":"IF(LEN(A669)=0,\"\",INDEX('Smelter Look-up'!$C:$C,MATCH($A669,'Smelter Look-up'!$E:$E,0)))","v":""},null,{"$f":"IF(ISERROR($V669),\"\",OFFSET('Smelter Look-up'!$D$4,$V669-4,0)&\"\")","v":""},{"$f":"IF(ISERROR($V669),\"\",OFFSET('Smelter Look-up'!$E$4,$V669-4,0))","v":""},{"$f":"IF(C669=$X$4,\"Enter smelter details\",IF(ISERROR($V669),\"\",OFFSET('Smelter Look-up'!$F$4,$V669-4,0)))","v":""},{"$f":"IF(ISERROR($V669),\"\",OFFSET('Smelter Look-up'!$G$4,$V669-4,0))","v":""},{"$f":"IF(ISERROR($V669),\"\",OFFSET('Smelter Look-up'!$H$4,$V669-4,0))","v":""},{"$f":"IF(ISERROR($V669),\"\",OFFSET('Smelter Look-up'!$I$4,$V669-4,0))","v":""},{"$nulls":7},{"$f":"IF(ISERROR($V669),\"\",OFFSET('Smelter Look-up'!$C$4,$V669-4,0)&\"\")","v":""},"",{"$f":"IF(B669=\"\",\"\",IF(ISERROR(MATCH($J669,SorP!$B$1:$B$5661,0)),\"\",INDIRECT(\"'SorP'!$A$\"&MATCH($J669,SorP!$B$1:$B$5661,0))))","v":""},null,{"$f":"IF(C669=\"\",NA(),MATCH($B669&$C669,'Smelter Look-up'!$J:$J,0))","v":{"$error":"#N/A"}},null,0,null,null,null,""]
[null,{"$f":"IF(LEN(A670)=0,\"\",INDEX('Smelter Look-up'!$A:$A,MATCH($A670,'Smelter Look-up'!$E:$E,0)))","v":""},{"$f":"IF(LEN(A670)=0,\"\",INDEX('Smelter Look-up'!$C:$C,MATCH($A670,'Smelter Look-up'!$E:$E,0)))","v":""},null,{"$f":"IF(ISERROR($V670),\"\",OFFSET('Smelter Look-up'!$D$4,$V670-4,0)&\"\")","v":""},{"$f":"IF(ISERROR($V670),\"\",OFFSET('Smelter Look-up'!$E$4,$V670-4,0))","v":""},{"$f":"IF(C670=$X$4,\"Enter smelter details\",IF(ISERROR($V670),\"\",OFFSET('Smelter Look-up'!$F$4,$V670-4,0)))","v":""},{"$f":"IF(ISERROR($V670),\"\",OFFSET('Smelter Look-up'!$G$4,$V670-4,0))","v":""},{"$f":"IF(ISERROR($V670),\"\",OFFSET('Smelter Look-up'!$H$4,$V670-4,0))","v":""},{"$f":"IF(ISERROR($V670),\"\",OFFSET('Smelter Look-up'!$I$4,$V670-4,0))","v":""},{"$nulls":7},{"$f":"IF(ISERROR($V670),\"\",OFFSET('Smelter Look-up'!$C$4,$V670-4,0)&\"\")","v":""},"",{"$f":"IF(B670=\"\",\"\",IF(ISERROR(MATCH($J670,SorP!$B$1:$B$5661,0)),\"\",INDIRECT(\"'SorP'!$A$\"&MATCH($J670,SorP!$B$1:$B$5661,0))))","v":""},null,{"$f":"IF(C670=\"\",NA(),MATCH($B670&$C670,'Smelter Look-up'!$J:$J,0))","v":{"$error":"#N/A"}},null,0,null,null,null,""]
[null,{"$f":"IF(LEN(A671)=0,\"\",INDEX('Smelter Look-up'!$A:$A,MATCH($A671,'Smelter Look-up'!$E:$E,0)))","v":""},{"$f":"IF(LEN(A671)=0,\"\",INDEX('Smelter Look-up'!$C:$C,MATCH($A671,'Smelter Look-up'!$E:$E,0)))","v":""},null,{"$f":"IF(ISERROR($V671),\"\",OFFSET('Smelter Look-up'!$D$4,$V671-4,0)&\"\")","v":""},{"$f":"IF(ISERROR($V671),\"\",OFFSET('Smelter Look-up'!$E$4,$V671-4,0))","v":""},{"$f":"IF(C671=$X$4,\"Enter smelter details\",IF(ISERROR($V671),\"\",OFFSET('Smelter Look-up'!$F$4,$V671-4,0)))","v":""},{"$f":"IF(ISERROR($V671),\"\",OFFSET('Smelter Look-up'!$G$4,$V671-4,0))","v":""},{"$f":"IF(ISERROR($V671),\"\",OFFSET('Smelter Look-up'!$H$4,$V671-4,0))","v":""},{"$f":"IF(ISERROR($V671),\"\",OFFSET('Smelter Look-up'!$I$4,$V671-4,0))","v":""},{"$nulls":7},{"$f":"IF(ISERROR($V671),\"\",OFFSET('Smelter Look-up'!$C$4,$V671-4,0)&\"\")","v":""},"",{"$f":"IF(B671=\"\",\"\",IF(ISERROR(MATCH($J671,SorP!$B$1:$B$5661,0)),\"\",INDIRECT(\"'SorP'!$A$\"&MATCH($J671,SorP!$B$1:$B$5661,0))))","v":""},null,{"$f":"IF(C671=\"\",NA(),MATCH($B671&$C671,'Smelter Look-up'!$J:$J,0))","v":{"$error":"#N/A"}},null,0,null,null,null,""]
[null,{"$f":"IF(LEN(A672)=0,\"\",INDEX('Smelter Look-up'!$A:$A,MATCH($A672,'Smelter Look-up'!$E:$E,0)))","v":""},{"$f":"IF(LEN(A672)=0,\"\",INDEX('Smelter Look-up'!$C:$C,MATCH($A672,'Smelter Look-up'!$E:$E,0)))","v":""},null,{"$f":"IF(ISERROR($V672),\"\",OFFSET('Smelter Look-up'!$D$4,$V672-4,0)&\"\")","v":""},{"$f":"IF(ISERROR($V672),\"\",OFFSET('Smelter Look-up'!$E$4,$V672-4,0))","v":""},{"$f":"IF(C672=$X$4,\"Enter smelter details\",IF(ISERROR($V672),\"\",OFFSET('Smelter Look-up'!$F$4,$V672-4,0)))","v":""},{"$f":"IF(ISERROR($V672),\"\",OFFSET('Smelter Look-up'!$G$4,$V672-4,0))","v":""},{"$f":"IF(ISERROR($V672),\"\",OFFSET('Smelter Look-up'!$H$4,$V672-4,0))","v":""},{"$f":"IF(ISERROR($V672),\"\",OFFSET('Smelter Look-up'!$I$4,$V672-4,0))","v":""},{"$nulls":7},{"$f":"IF(ISERROR($V672),\"\",OFFSET('Smelter Look-up'!$C$4,$V672-4,0)&\"\")","v":""},"",{"$f":"IF(B672=\"\",\"\",IF(ISERROR(MATCH($J672,SorP!$B$1:$B$5661,0)),\"\",INDIRECT(\"'SorP'!$A$\"&MATCH($J672,SorP!$B$1:$B$5661,0))))","v":""},null,{"$f":"IF(C672=\"\",NA(),MATCH($B672&$C672,'Smelter Look-up'!$J:$J,0))","v":{"$error":"#N/A"}},null,0,null,null,null,""]
[null,{"$f":"IF(LEN(A673)=0,\"\",INDEX('Smelter Look-up'!$A:$A,MATCH($A673,'Smelter Look-up'!$E:$E,0)))","v":""},{"$f":"IF(LEN(A673)=0,\"\",INDEX('Smelter Look-up'!$C:$C,MATCH($A673,'Smelter Look-up'!$E:$E,0)))","v":""},null,{"$f":"IF(ISERROR($V673),\"\",OFFSET('Smelter Look-up'!$D$4,$V673-4,0)&\"\")","v":""},{"$f":"IF(ISERROR($V673),\"\",OFFSET('Smelter Look-up'!$E$4,$V673-4,0))","v":""},{"$f":"IF(C673=$X$4,\"Enter smelter details\",IF(ISERROR($V673),\"\",OFFSET('Smelter Look-up'!$F$4,$V673-4,0)))","v":""},{"$f":"IF(ISERROR($V673),\"\",OFFSET('Smelter Look-up'!$G$4,$V673-4,0))","v":""},{"$f":"IF(ISERROR($V673),\"\",OFFSET('Smelter Look-up'!$H$4,$V673-4,0))","v":""},{"$f":"IF(ISERROR($V673),\"\",OFFSET('Smelter Look-up'!$I$4,$V673-4,0))","v":""},{"$nulls":7},{"$f":"IF(ISERROR($V673),\"\",OFFSET('Smelter Look-up'!$C$4,$V673-4,0)&\"\")","v":""},"",{"$f":"IF(B673=\"\",\"\",IF(ISERROR(MATCH($J673,SorP!$B$1:$B$5661,0)),\"\",INDIRECT(\"'SorP'!$A$\"&MATCH($J673,SorP!$B$1:$B$5661,0))))","v":""},null,{"$f":"IF(C673=\"\",NA(),MATCH($B673&$C673,'Smelter Look-up'!$J:$J,0))","v":{"$error":"#N/A"}},null,0,null,null,null,""]
[null,{"$f":"IF(LEN(A674)=0,\"\",INDEX('Smelter Look-up'!$A:$A,MATCH($A674,'Smelter Look-up'!$E:$E,0)))","v":""},{"$f":"IF(LEN(A674)=0,\"\",INDEX('Smelter Look-up'!$C:$C,MATCH($A674,'Smelter Look-up'!$E:$E,0)))","v":""},null,{"$f":"IF(ISERROR($V674),\"\",OFFSET('Smelter Look-up'!$D$4,$V674-4,0)&\"\")","v":""},{"$f":"IF(ISERROR($V674),\"\",OFFSET('Smelter Look-up'!$E$4,$V674-4,0))","v":""},{"$f":"IF(C674=$X$4,\"Enter smelter details\",IF(ISERROR($V674),\"\",OFFSET('Smelter Look-up'!$F$4,$V674-4,0)))","v":""},{"$f":"IF(ISERROR($V674),\"\",OFFSET('Smelter Look-up'!$G$4,$V674-4,0))","v":""},{"$f":"IF(ISERROR($V674),\"\",OFFSET('Smelter Look-up'!$H$4,$V674-4,0))","v":""},{"$f":"IF(ISERROR($V674),\"\",OFFSET('Smelter Look-up'!$I$4,$V674-4,0))","v":""},{"$nulls":7},{"$f":"IF(ISERROR($V674),\"\",OFFSET('Smelter Look-up'!$C$4,$V674-4,0)&\"\")","v":""},"",{"$f":"IF(B674=\"\",\"\",IF(ISERROR(MATCH($J674,SorP!$B$1:$B$5661,0)),\"\",INDIRECT(\"'SorP'!$A$\"&MATCH($J674,SorP!$B$1:$B$5661,0))))","v":""},null,{"$f":"IF(C674=\"\",NA(),MATCH($B674&$C674,'Smelter Look-up'!$J:$J,0))","v":{"$error":"#N/A"}},null,0,null,null,null,""]
[null,{"$f":"IF(LEN(A675)=0,\"\",INDEX('Smelter Look-up'!$A:$A,MATCH($A675,'Smelter Look-up'!$E:$E,0)))","v":""},{"$f":"IF(LEN(A675)=0,\"\",INDEX('Smelter Look-up'!$C:$C,MATCH($A675,'Smelter Look-up'!$E:$E,0)))","v":""},null,{"$f":"IF(ISERROR($V675),\"\",OFFSET('Smelter Look-up'!$D$4,$V675-4,0)&\"\")","v":""},{"$f":"IF(ISERROR($V675),\"\",OFFSET('Smelter Look-up'!$E$4,$V675-4,0))","v":""},{"$f":"IF(C675=$X$4,\"Enter smelter details\",IF(ISERROR($V675),\"\",OFFSET('Smelter Look-up'!$F$4,$V675-4,0)))","v":""},{"$f":"IF(ISERROR($V675),\"\",OFFSET('Smelter Look-up'!$G$4,$V675-4,0))","v":""},{"$f":"IF(ISERROR($V675),\"\",OFFSET('Smelter Look-up'!$H$4,$V675-4,0))","v":""},{"$f":"IF(ISERROR($V675),\"\",OFFSET('Smelter Look-up'!$I$4,$V675-4,0))","v":""},{"$nulls":7},{"$f":"IF(ISERROR($V675),\"\",OFFSET('Smelter Look-up'!$C$4,$V675-4,0)&\"\")","v":""},"",{"$f":"IF(B675=\"\",\"\",IF(ISERROR(MATCH($J675,SorP!$B$1:$B$5661,0)),\"\",INDIRECT(\"'SorP'!$A$\"&MATCH($J675,SorP!$B$1:$B$5661,0))))","v":""},null,{"$f":"IF(C675=\"\",NA(),MATCH($B675&$C675,'Smelter Look-up'!$J:$J,0))","v":{"$error":"#N/A"}},null,0,null,null,null,""]
[null,{"$f":"IF(LEN(A676)=0,\"\",INDEX('Smelter Look-up'!$A:$A,MATCH($A676,'Smelter Look-up'!$E:$E,0)))","v":""},{"$f":"IF(LEN(A676)=0,\"\",INDEX('Smelter Look-up'!$C:$C,MATCH($A676,'Smelter Look-up'!$E:$E,0)))","v":""},null,{"$f":"IF(ISERROR($V676),\"\",OFFSET('Smelter Look-up'!$D$4,$V676-4,0)&\"\")","v":""},{"$f":"IF(ISERROR($V676),\"\",OFFSET('Smelter Look-up'!$E$4,$V676-4,0))","v":""},{"$f":"IF(C676=$X$4,\"Enter smelter details\",IF(ISERROR($V676),\"\",OFFSET('Smelter Look-up'!$F$4,$V676-4,0)))","v":""},{"$f":"IF(ISERROR($V676),\"\",OFFSET('Smelter Look-up'!$G$4,$V676-4,0))","v":""},{"$f":"IF(ISERROR($V676),\"\",OFFSET('Smelter Look-up'!$H$4,$V676-4,0))","v":""},{"$f":"IF(ISERROR($V676),\"\",OFFSET('Smelter Look-up'!$I$4,$V676-4,0))","v":""},{"$nulls":7},{"$f":"IF(ISERROR($V676),\"\",OFFSET('Smelter Look-up'!$C$4,$V676-4,0)&\"\")","v":""},"",{"$f":"IF(B676=\"\",\"\",IF(ISERROR(MATCH($J676,SorP!$B$1:$B$5661,0)),\"\",INDIRECT(\"'SorP'!$A$\"&MATCH($J676,SorP!$B$1:$B$5661,0))))","v":""},null,{"$f":"IF(C676=\"\",NA(),MATCH($B676&$C676,'Smelter Look-up'!$J:$J,0))","v":{"$error":"#N/A"}},null,0,null,null,null,""]
[null,{"$f":"IF(LEN(A677)=0,\"\",INDEX('Smelter Look-up'!$A:$A,MATCH($A677,'Smelter Look-up'!$E:$E,0)))","v":""},{"$f":"IF(LEN(A677)=0,\"\",INDEX('Smelter Look-up'!$C:$C,MATCH($A677,'Smelter Look-up'!$E:$E,0)))","v":""},null,{"$f":"IF(ISERROR($V677),\"\",OFFSET('Smelter Look-up'!$D$4,$V677-4,0)&\"\")","v":""},{"$f":"IF(ISERROR($V677),\"\",OFFSET('Smelter Look-up'!$E$4,$V677-4,0))","v":""},{"$f":"IF(C677=$X$4,\"Enter smelter details\",IF(ISERROR($V677),\"\",OFFSET('Smelter Look-up'!$F$4,$V677-4,0)))","v":""},{"$f":"IF(ISERROR($V677),\"\",OFFSET('Smelter Look-up'!$G$4,$V677-4,0))","v":""},{"$f":"IF(ISERROR($V677),\"\",OFFSET('Smelter Look-up'!$H$4,$V677-4,0))","v":""},{"$f":"IF(ISERROR($V677),\"\",OFFSET('Smelter Look-up'!$I$4,$V677-4,0))","v":""},{"$nulls":7},{"$f":"IF(ISERROR($V677),\"\",OFFSET('Smelter Look-up'!$C$4,$V677-4,0)&\"\")","v":""},"",{"$f":"IF(B677=\"\",\"\",IF(ISERROR(MATCH($J677,SorP!$B$1:$B$5661,0)),\"\",INDIRECT(\"'SorP'!$A$\"&MATCH($J677,SorP!$B$1:$B$5661,0))))","v":""},null,{"$f":"IF(C677=\"\",NA(),MATCH($B677&$C677,'Smelter Look-up'!$J:$J,0))","v":{"$error":"#N/A"}},null,0,null,null,null,""]
[null,{"$f":"IF(LEN(A678)=0,\"\",INDEX('Smelter Look-up'!$A:$A,MATCH($A678,'Smelter Look-up'!$E:$E,0)))","v":""},{"$f":"IF(LEN(A678)=0,\"\",INDEX('Smelter Look-up'!$C:$C,MATCH($A678,'Smelter Look-up'!$E:$E,0)))","v":""},null,{"$f":"IF(ISERROR($V678),\"\",OFFSET('Smelter Look-up'!$D$4,$V678-4,0)&\"\")","v":""},{"$f":"IF(ISERROR($V678),\"\",OFFSET('Smelter Look-up'!$E$4,$V678-4,0))","v":""},{"$f":"IF(C678=$X$4,\"Enter smelter details\",IF(ISERROR($V678),\"\",OFFSET('Smelter Look-up'!$F$4,$V678-4,0)))","v":""},{"$f":"IF(ISERROR($V678),\"\",OFFSET('Smelter Look-up'!$G$4,$V678-4,0))","v":""},{"$f":"IF(ISERROR($V678),\"\",OFFSET('Smelter Look-up'!$H$4,$V678-4,0))","v":""},{"$f":"IF(ISERROR($V678),\"\",OFFSET('Smelter Look-up'!$I$4,$V678-4,0))","v":""},{"$nulls":7},{"$f":"IF(ISERROR($V678),\"\",OFFSET('Smelter Look-up'!$C$4,$V678-4,0)&\"\")","v":""},"",{"$f":"IF(B678=\"\",\"\",IF(ISERROR(MATCH($J678,SorP!$B$1:$B$5661,0)),\"\",INDIRECT(\"'SorP'!$A$\"&MATCH($J678,SorP!$B$1:$B$5661,0))))","v":""},null,{"$f":"IF(C678=\"\",NA(),MATCH($B678&$C678,'Smelter Look-up'!$J:$J,0))","v":{"$error":"#N/A"}},null,0,null,null,null,""]
[null,{"$f":"IF(LEN(A679)=0,\"\",INDEX('Smelter Look-up'!$A:$A,MATCH($A679,'Smelter Look-up'!$E:$E,0)))","v":""},{"$f":"IF(LEN(A679)=0,\"\",INDEX('Smelter Look-up'!$C:$C,MATCH($A679,'Smelter Look-up'!$E:$E,0)))","v":""},null,{"$f":"IF(ISERROR($V679),\"\",OFFSET('Smelter Look-up'!$D$4,$V679-4,0)&\"\")","v":""},{"$f":"IF(ISERROR($V679),\"\",OFFSET('Smelter Look-up'!$E$4,$V679-4,0))","v":""},{"$f":"IF(C679=$X$4,\"Enter smelter details\",IF(ISERROR($V679),\"\",OFFSET('Smelter Look-up'!$F$4,$V679-4,0)))","v":""},{"$f":"IF(ISERROR($V679),\"\",OFFSET('Smelter Look-up'!$G$4,$V679-4,0))","v":""},{"$f":"IF(ISERROR($V679),\"\",OFFSET('Smelter Look-up'!$H$4,$V679-4,0))","v":""},{"$f":"IF(ISERROR($V679),\"\",OFFSET('Smelter Look-up'!$I$4,$V679-4,0))","v":""},{"$nulls":7},{"$f":"IF(ISERROR($V679),\"\",OFFSET('Smelter Look-up'!$C$4,$V679-4,0)&\"\")","v":""},"",{"$f":"IF(B679=\"\",\"\",IF(ISERROR(MATCH($J679,SorP!$B$1:$B$5661,0)),\"\",INDIRECT(\"'SorP'!$A$\"&MATCH($J679,SorP!$B$1:$B$5661,0))))","v":""},null,{"$f":"IF(C679=\"\",NA(),MATCH($B679&$C679,'Smelter Look-up'!$J:$J,0))","v":{"$error":"#N/A"}},null,0,null,null,null,""]
[null,{"$f":"IF(LEN(A680)=0,\"\",INDEX('Smelter Look-up'!$A:$A,MATCH($A680,'Smelter Look-up'!$E:$E,0)))","v":""},{"$f":"IF(LEN(A680)=0,\"\",INDEX('Smelter Look-up'!$C:$C,MATCH($A680,'Smelter Look-up'!$E:$E,0)))","v":""},null,{"$f":"IF(ISERROR($V680),\"\",OFFSET('Smelter Look-up'!$D$4,$V680-4,0)&\"\")","v":""},{"$f":"IF(ISERROR($V680),\"\",OFFSET('Smelter Look-up'!$E$4,$V680-4,0))","v":""},{"$f":"IF(C680=$X$4,\"Enter smelter details\",IF(ISERROR($V680),\"\",OFFSET('Smelter Look-up'!$F$4,$V680-4,0)))","v":""},{"$f":"IF(ISERROR($V680),\"\",OFFSET('Smelter Look-up'!$G$4,$V680-4,0))","v":""},{"$f":"IF(ISERROR($V680),\"\",OFFSET('Smelter Look-up'!$H$4,$V680-4,0))","v":""},{"$f":"IF(ISERROR($V680),\"\",OFFSET('Smelter Look-up'!$I$4,$V680-4,0))","v":""},{"$nulls":7},{"$f":"IF(ISERROR($V680),\"\",OFFSET('Smelter Look-up'!$C$4,$V680-4,0)&\"\")","v":""},"",{"$f":"IF(B680=\"\",\"\",IF(ISERROR(MATCH($J680,SorP!$B$1:$B$5661,0)),\"\",INDIRECT(\"'SorP'!$A$\"&MATCH($J680,SorP!$B$1:$B$5661,0))))","v":""},null,{"$f":"IF(C680=\"\",NA(),MATCH($B680&$C680,'Smelter Look-up'!$J:$J,0))","v":{"$error":"#N/A"}},null,0,null,null,null,""]
[null,{"$f":"IF(LEN(A681)=0,\"\",INDEX('Smelter Look-up'!$A:$A,MATCH($A681,'Smelter Look-up'!$E:$E,0)))","v":""},{"$f":"IF(LEN(A681)=0,\"\",INDEX('Smelter Look-up'!$C:$C,MATCH($A681,'Smelter Look-up'!$E:$E,0)))","v":""},null,{"$f":"IF(ISERROR($V681),\"\",OFFSET('Smelter Look-up'!$D$4,$V681-4,0)&\"\")","v":""},{"$f":"IF(ISERROR($V681),\"\",OFFSET('Smelter Look-up'!$E$4,$V681-4,0))","v":""},{"$f":"IF(C681=$X$4,\"Enter smelter details\",IF(ISERROR($V681),\"\",OFFSET('Smelter Look-up'!$F$4,$V681-4,0)))","v":""},{"$f":"IF(ISERROR($V681),\"\",OFFSET('Smelter Look-up'!$G$4,$V681-4,0))","v":""},{"$f":"IF(ISERROR($V681),\"\",OFFSET('Smelter Look-up'!$H$4,$V681-4,0))","v":""},{"$f":"IF(ISERROR($V681),\"\",OFFSET('Smelter Look-up'!$I$4,$V681-4,0))","v":""},{"$nulls":7},{"$f":"IF(ISERROR($V681),\"\",OFFSET('Smelter Look-up'!$C$4,$V681-4,0)&\"\")","v":""},"",{"$f":"IF(B681=\"\",\"\",IF(ISERROR(MATCH($J681,SorP!$B$1:$B$5661,0)),\"\",INDIRECT(\"'SorP'!$A$\"&MATCH($J681,SorP!$B$1:$B$5661,0))))","v":""},null,{"$f":"IF(C681=\"\",NA(),MATCH($B681&$C681,'Smelter Look-up'!$J:$J,0))","v":{"$error":"#N/A"}},null,0,null,null,null,""]
[null,{"$f":"IF(LEN(A682)=0,\"\",INDEX('Smelter Look-up'!$A:$A,MATCH($A682,'Smelter Look-up'!$E:$E,0)))","v":""},{"$f":"IF(LEN(A682)=0,\"\",INDEX('Smelter Look-up'!$C:$C,MATCH($A682,'Smelter Look-up'!$E:$E,0)))","v":""},null,{"$f":"IF(ISERROR($V682),\"\",OFFSET('Smelter Look-up'!$D$4,$V682-4,0)&\"\")","v":""},{"$f":"IF(ISERROR($V682),\"\",OFFSET('Smelter Look-up'!$E$4,$V682-4,0))","v":""},{"$f":"IF(C682=$X$4,\"Enter smelter details\",IF(ISERROR($V682),\"\",OFFSET('Smelter Look-up'!$F$4,$V682-4,0)))","v":""},{"$f":"IF(ISERROR($V682),\"\",OFFSET('Smelter Look-up'!$G$4,$V682-4,0))","v":""},{"$f":"IF(ISERROR($V682),\"\",OFFSET('Smelter Look-up'!$H$4,$V682-4,0))","v":""},{"$f":"IF(ISERROR($V682),\"\",OFFSET('Smelter Look-up'!$I$4,$V682-4,0))","v":""},{"$nulls":7},{"$f":"IF(ISERROR($V682),\"\",OFFSET('Smelter Look-up'!$C$4,$V682-4,0)&\"\")","v":""},"",{"$f":"IF(B682=\"\",\"\",IF(ISERROR(MATCH($J682,SorP!$B$1:$B$5661,0)),\"\",INDIRECT(\"'SorP'!$A$\"&MATCH($J682,SorP!$B$1:$B$5661,0))))","v":""},null,{"$f":"IF(C682=\"\",NA(),MATCH($B682&$C682,'Smelter Look-up'!$J:$J,0))","v":{"$error":"#N/A"}},null,0,null,null,null,""]
[null,{"$f":"IF(LEN(A683)=0,\"\",INDEX('Smelter Look-up'!$A:$A,MATCH($A683,'Smelter Look-up'!$E:$E,0)))","v":""},{"$f":"IF(LEN(A683)=0,\"\",INDEX('Smelter Look-up'!$C:$C,MATCH($A683,'Smelter Look-up'!$E:$E,0)))","v":""},null,{"$f":"IF(ISERROR($V683),\"\",OFFSET('Smelter Look-up'!$D$4,$V683-4,0)&\"\")","v":""},{"$f":"IF(ISERROR($V683),\"\",OFFSET('Smelter Look-up'!$E$4,$V683-4,0))","v":""},{"$f":"IF(C683=$X$4,\"Enter smelter details\",IF(ISERROR($V683),\"\",OFFSET('Smelter Look-up'!$F$4,$V683-4,0)))","v":""},{"$f":"IF(ISERROR($V683),\"\",OFFSET('Smelter Look-up'!$G$4,$V683-4,0))","v":""},{"$f":"IF(ISERROR($V683),\"\",OFFSET('Smelter Look-up'!$H$4,$V683-4,0))","v":""},{"$f":"IF(ISERROR($V683),\"\",OFFSET('Smelter Look-up'!$I$4,$V683-4,0))","v":""},{"$nulls":7},{"$f":"IF(ISERROR($V683),\"\",OFFSET('Smelter Look-up'!$C$4,$V683-4,0)&\"\")","v":""},"",{"$f":"IF(B683=\"\",\"\",IF(ISERROR(MATCH($J683,SorP!$B$1:$B$5661,0)),\"\",INDIRECT(\"'SorP'!$A$\"&MATCH($J683,SorP!$B$1:$B$5661,0))))","v":""},null,{"$f":"IF(C683=\"\",NA(),MATCH($B683&$C683,'Smelter Look-up'!$J:$J,0))","v":{"$error":"#N/A"}},null,0,null,null,null,""]
[null,{"$f":"IF(LEN(A684)=0,\"\",INDEX('Smelter Look-up'!$A:$A,MATCH($A684,'Smelter Look-up'!$E:$E,0)))","v":""},{"$f":"IF(LEN(A684)=0,\"\",INDEX('Smelter Look-up'!$C:$C,MATCH($A684,'Smelter Look-up'!$E:$E,0)))","v":""},null,{"$f":"IF(ISERROR($V684),\"\",OFFSET('Smelter Look-up'!$D$4,$V684-4,0)&\"\")","v":""},{"$f":"IF(ISERROR($V684),\"\",OFFSET('Smelter Look-up'!$E$4,$V684-4,0))","v":""},{"$f":"IF(C684=$X$4,\"Enter smelter details\",IF(ISERROR($V684),\"\",OFFSET('Smelter Look-up'!$F$4,$V684-4,0)))","v":""},{"$f":"IF(ISERROR($V684),\"\",OFFSET('Smelter Look-up'!$G$4,$V684-4,0))","v":""},{"$f":"IF(ISERROR($V684),\"\",OFFSET('Smelter Look-up'!$H$4,$V684-4,0))","v":""},{"$f":"IF(ISERROR($V684),\"\",OFFSET('Smelter Look-up'!$I$4,$V684-4,0))","v":""},{"$nulls":7},{"$f":"IF(ISERROR($V684),\"\",OFFSET('Smelter Look-up'!$C$4,$V684-4,0)&\"\")","v":""},"",{"$f":"IF(B684=\"\",\"\",IF(ISERROR(MATCH($J684,SorP!$B$1:$B$5661,0)),\"\",INDIRECT(\"'SorP'!$A$\"&MATCH($J684,SorP!$B$1:$B$5661,0))))","v":""},null,{"$f":"IF(C684=\"\",NA(),MATCH($B684&$C684,'Smelter Look-up'!$J:$J,0))","v":{"$error":"#N/A"}},null,0,null,null,null,""]
[null,{"$f":"IF(LEN(A685)=0,\"\",INDEX('Smelter Look-up'!$A:$A,MATCH($A685,'Smelter Look-up'!$E:$E,0)))","v":""},{"$f":"IF(LEN(A685)=0,\"\",INDEX('Smelter Look-up'!$C:$C,MATCH($A685,'Smelter Look-up'!$E:$E,0)))","v":""},null,{"$f":"IF(ISERROR($V685),\"\",OFFSET('Smelter Look-up'!$D$4,$V685-4,0)&\"\")","v":""},{"$f":"IF(ISERROR($V685),\"\",OFFSET('Smelter Look-up'!$E$4,$V685-4,0))","v":""},{"$f":"IF(C685=$X$4,\"Enter smelter details\",IF(ISERROR($V685),\"\",OFFSET('Smelter Look-up'!$F$4,$V685-4,0)))","v":""},{"$f":"IF(ISERROR($V685),\"\",OFFSET('Smelter Look-up'!$G$4,$V685-4,0))","v":""},{"$f":"IF(ISERROR($V685),\"\",OFFSET('Smelter Look-up'!$H$4,$V685-4,0))","v":""},{"$f":"IF(ISERROR($V685),\"\",OFFSET('Smelter Look-up'!$I$4,$V685-4,0))","v":""},{"$nulls":7},{"$f":"IF(ISERROR($V685),\"\",OFFSET('Smelter Look-up'!$C$4,$V685-4,0)&\"\")","v":""},"",{"$f":"IF(B685=\"\",\"\",IF(ISERROR(MATCH($J685,SorP!$B$1:$B$5661,0)),\"\",INDIRECT(\"'SorP'!$A$\"&MATCH($J685,SorP!$B$1:$B$5661,0))))","v":""},null,{"$f":"IF(C685=\"\",NA(),MATCH($B685&$C685,'Smelter Look-up'!$J:$J,0))","v":{"$error":"#N/A"}},null,0,null,null,null,""]
[null,{"$f":"IF(LEN(A686)=0,\"\",INDEX('Smelter Look-up'!$A:$A,MATCH($A686,'Smelter Look-up'!$E:$E,0)))","v":""},{"$f":"IF(LEN(A686)=0,\"\",INDEX('Smelter Look-up'!$C:$C,MATCH($A686,'Smelter Look-up'!$E:$E,0)))","v":""},null,{"$f":"IF(ISERROR($V686),\"\",OFFSET('Smelter Look-up'!$D$4,$V686-4,0)&\"\")","v":""},{"$f":"IF(ISERROR($V686),\"\",OFFSET('Smelter Look-up'!$E$4,$V686-4,0))","v":""},{"$f":"IF(C686=$X$4,\"Enter smelter details\",IF(ISERROR($V686),\"\",OFFSET('Smelter Look-up'!$F$4,$V686-4,0)))","v":""},{"$f":"IF(ISERROR($V686),\"\",OFFSET('Smelter Look-up'!$G$4,$V686-4,0))","v":""},{"$f":"IF(ISERROR($V686),\"\",OFFSET('Smelter Look-up'!$H$4,$V686-4,0))","v":""},{"$f":"IF(ISERROR($V686),\"\",OFFSET('Smelter Look-up'!$I$4,$V686-4,0))","v":""},{"$nulls":7},{"$f":"IF(ISERROR($V686),\"\",OFFSET('Smelter Look-up'!$C$4,$V686-4,0)&\"\")","v":""},"",{"$f":"IF(B686=\"\",\"\",IF(ISERROR(MATCH($J686,SorP!$B$1:$B$5661,0)),\"\",INDIRECT(\"'SorP'!$A$\"&MATCH($J686,SorP!$B$1:$B$5661,0))))","v":""},null,{"$f":"IF(C686=\"\",NA(),MATCH($B686&$C686,'Smelter Look-up'!$J:$J,0))","v":{"$error":"#N/A"}},null,0,null,null,null,""]
[null,{"$f":"IF(LEN(A687)=0,\"\",INDEX('Smelter Look-up'!$A:$A,MATCH($A687,'Smelter Look-up'!$E:$E,0)))","v":""},{"$f":"IF(LEN(A687)=0,\"\",INDEX('Smelter Look-up'!$C:$C,MATCH($A687,'Smelter Look-up'!$E:$E,0)))","v":""},null,{"$f":"IF(ISERROR($V687),\"\",OFFSET('Smelter Look-up'!$D$4,$V687-4,0)&\"\")","v":""},{"$f":"IF(ISERROR($V687),\"\",OFFSET('Smelter Look-up'!$E$4,$V687-4,0))","v":""},{"$f":"IF(C687=$X$4,\"Enter smelter details\",IF(ISERROR($V687),\"\",OFFSET('Smelter Look-up'!$F$4,$V687-4,0)))","v":""},{"$f":"IF(ISERROR($V687),\"\",OFFSET('Smelter Look-up'!$G$4,$V687-4,0))","v":""},{"$f":"IF(ISERROR($V687),\"\",OFFSET('Smelter Look-up'!$H$4,$V687-4,0))","v":""},{"$f":"IF(ISERROR($V687),\"\",OFFSET('Smelter Look-up'!$I$4,$V687-4,0))","v":""},{"$nulls":7},{"$f":"IF(ISERROR($V687),\"\",OFFSET('Smelter Look-up'!$C$4,$V687-4,0)&\"\")","v":""},"",{"$f":"IF(B687=\"\",\"\",IF(ISERROR(MATCH($J687,SorP!$B$1:$B$5661,0)),\"\",INDIRECT(\"'SorP'!$A$\"&MATCH($J687,SorP!$B$1:$B$5661,0))))","v":""},null,{"$f":"IF(C687=\"\",NA(),MATCH($B687&$C687,'Smelter Look-up'!$J:$J,0))","v":{"$error":"#N/A"}},null,0,null,null,null,""]
[null,{"$f":"IF(LEN(A688)=0,\"\",INDEX('Smelter Look-up'!$A:$A,MATCH($A688,'Smelter Look-up'!$E:$E,0)))","v":""},{"$f":"IF(LEN(A688)=0,\"\",INDEX('Smelter Look-up'!$C:$C,MATCH($A688,'Smelter Look-up'!$E:$E,0)))","v":""},null,{"$f":"IF(ISERROR($V688),\"\",OFFSET('Smelter Look-up'!$D$4,$V688-4,0)&\"\")","v":""},{"$f":"IF(ISERROR($V688),\"\",OFFSET('Smelter Look-up'!$E$4,$V688-4,0))","v":""},{"$f":"IF(C688=$X$4,\"Enter smelter details\",IF(ISERROR($V688),\"\",OFFSET('Smelter Look-up'!$F$4,$V688-4,0)))","v":""},{"$f":"IF(ISERROR($V688),\"\",OFFSET('Smelter Look-up'!$G$4,$V688-4,0))","v":""},{"$f":"IF(ISERROR($V688),\"\",OFFSET('Smelter Look-up'!$H$4,$V688-4,0))","v":""},{"$f":"IF(ISERROR($V688),\"\",OFFSET('Smelter Look-up'!$I$4,$V688-4,0))","v":""},{"$nulls":7},{"$f":"IF(ISERROR($V688),\"\",OFFSET('Smelter Look-up'!$C$4,$V688-4,0)&\"\")","v":""},"",{"$f":"IF(B688=\"\",\"\",IF(ISERROR(MATCH($J688,SorP!$B$1:$B$5661,0)),\"\",INDIRECT(\"'SorP'!$A$\"&MATCH($J688,SorP!$B$1:$B$5661,0))))","v":""},null,{"$f":"IF(C688=\"\",NA(),MATCH($B688&$C688,'Smelter Look-up'!$J:$J,0))","v":{"$error":"#N/A"}},null,0,null,null,null,""]
[null,{"$f":"IF(LEN(A689)=0,\"\",INDEX('Smelter Look-up'!$A:$A,MATCH($A689,'Smelter Look-up'!$E:$E,0)))","v":""},{"$f":"IF(LEN(A689)=0,\"\",INDEX('Smelter Look-up'!$C:$C,MATCH($A689,'Smelter Look-up'!$E:$E,0)))","v":""},null,{"$f":"IF(ISERROR($V689),\"\",OFFSET('Smelter Look-up'!$D$4,$V689-4,0)&\"\")","v":""},{"$f":"IF(ISERROR($V689),\"\",OFFSET('Smelter Look-up'!$E$4,$V689-4,0))","v":""},{"$f":"IF(C689=$X$4,\"Enter smelter details\",IF(ISERROR($V689),\"\",OFFSET('Smelter Look-up'!$F$4,$V689-4,0)))","v":""},{"$f":"IF(ISERROR($V689),\"\",OFFSET('Smelter Look-up'!$G$4,$V689-4,0))","v":""},{"$f":"IF(ISERROR($V689),\"\",OFFSET('Smelter Look-up'!$H$4,$V689-4,0))","v":""},{"$f":"IF(ISERROR($V689),\"\",OFFSET('Smelter Look-up'!$I$4,$V689-4,0))","v":""},{"$nulls":7},{"$f":"IF(ISERROR($V689),\"\",OFFSET('Smelter Look-up'!$C$4,$V689-4,0)&\"\")","v":""},"",{"$f":"IF(B689=\"\",\"\",IF(ISERROR(MATCH($J689,SorP!$B$1:$B$5661,0)),\"\",INDIRECT(\"'SorP'!$A$\"&MATCH($J689,SorP!$B$1:$B$5661,0))))","v":""},null,{"$f":"IF(C689=\"\",NA(),MATCH($B689&$C689,'Smelter Look-up'!$J:$J,0))","v":{"$error":"#N/A"}},null,0,null,null,null,""]
[null,{"$f":"IF(LEN(A690)=0,\"\",INDEX('Smelter Look-up'!$A:$A,MATCH($A690,'Smelter Look-up'!$E:$E,0)))","v":""},{"$f":"IF(LEN(A690)=0,\"\",INDEX('Smelter Look-up'!$C:$C,MATCH($A690,'Smelter Look-up'!$E:$E,0)))","v":""},null,{"$f":"IF(ISERROR($V690),\"\",OFFSET('Smelter Look-up'!$D$4,$V690-4,0)&\"\")","v":""},{"$f":"IF(ISERROR($V690),\"\",OFFSET('Smelter Look-up'!$E$4,$V690-4,0))","v":""},{"$f":"IF(C690=$X$4,\"Enter smelter details\",IF(ISERROR($V690),\"\",OFFSET('Smelter Look-up'!$F$4,$V690-4,0)))","v":""},{"$f":"IF(ISERROR($V690),\"\",OFFSET('Smelter Look-up'!$G$4,$V690-4,0))","v":""},{"$f":"IF(ISERROR($V690),\"\",OFFSET('Smelter Look-up'!$H$4,$V690-4,0))","v":""},{"$f":"IF(ISERROR($V690),\"\",OFFSET('Smelter Look-up'!$I$4,$V690-4,0))","v":""},{"$nulls":7},{"$f":"IF(ISERROR($V690),\"\",OFFSET('Smelter Look-up'!$C$4,$V690-4,0)&\"\")","v":""},"",{"$f":"IF(B690=\"\",\"\",IF(ISERROR(MATCH($J690,SorP!$B$1:$B$5661,0)),\"\",INDIRECT(\"'SorP'!$A$\"&MATCH($J690,SorP!$B$1:$B$5661,0))))","v":""},null,{"$f":"IF(C690=\"\",NA(),MATCH($B690&$C690,'Smelter Look-up'!$J:$J,0))","v":{"$error":"#N/A"}},null,0,null,null,null,""]
[null,{"$f":"IF(LEN(A691)=0,\"\",INDEX('Smelter Look-up'!$A:$A,MATCH($A691,'Smelter Look-up'!$E:$E,0)))","v":""},{"$f":"IF(LEN(A691)=0,\"\",INDEX('Smelter Look-up'!$C:$C,MATCH($A691,'Smelter Look-up'!$E:$E,0)))","v":""},null,{"$f":"IF(ISERROR($V691),\"\",OFFSET('Smelter Look-up'!$D$4,$V691-4,0)&\"\")","v":""},{"$f":"IF(ISERROR($V691),\"\",OFFSET('Smelter Look-up'!$E$4,$V691-4,0))","v":""},{"$f":"IF(C691=$X$4,\"Enter smelter details\",IF(ISERROR($V691),\"\",OFFSET('Smelter Look-up'!$F$4,$V691-4,0)))","v":""},{"$f":"IF(ISERROR($V691),\"\",OFFSET('Smelter Look-up'!$G$4,$V691-4,0))","v":""},{"$f":"IF(ISERROR($V691),\"\",OFFSET('Smelter Look-up'!$H$4,$V691-4,0))","v":""},{"$f":"IF(ISERROR($V691),\"\",OFFSET('Smelter Look-up'!$I$4,$V691-4,0))","v":""},{"$nulls":7},{"$f":"IF(ISERROR($V691),\"\",OFFSET('Smelter Look-up'!$C$4,$V691-4,0)&\"\")","v":""},"",{"$f":"IF(B691=\"\",\"\",IF(ISERROR(MATCH($J691,SorP!$B$1:$B$5661,0)),\"\",INDIRECT(\"'SorP'!$A$\"&MATCH($J691,SorP!$B$1:$B$5661,0))))","v":""},null,{"$f":"IF(C691=\"\",NA(),MATCH($B691&$C691,'Smelter Look-up'!$J:$J,0))","v":{"$error":"#N/A"}},null,0,null,null,null,""]
[null,{"$f":"IF(LEN(A692)=0,\"\",INDEX('Smelter Look-up'!$A:$A,MATCH($A692,'Smelter Look-up'!$E:$E,0)))","v":""},{"$f":"IF(LEN(A692)=0,\"\",INDEX('Smelter Look-up'!$C:$C,MATCH($A692,'Smelter Look-up'!$E:$E,0)))","v":""},null,{"$f":"IF(ISERROR($V692),\"\",OFFSET('Smelter Look-up'!$D$4,$V692-4,0)&\"\")","v":""},{"$f":"IF(ISERROR($V692),\"\",OFFSET('Smelter Look-up'!$E$4,$V692-4,0))","v":""},{"$f":"IF(C692=$X$4,\"Enter smelter details\",IF(ISERROR($V692),\"\",OFFSET('Smelter Look-up'!$F$4,$V692-4,0)))","v":""},{"$f":"IF(ISERROR($V692),\"\",OFFSET('Smelter Look-up'!$G$4,$V692-4,0))","v":""},{"$f":"IF(ISERROR($V692),\"\",OFFSET('Smelter Look-up'!$H$4,$V692-4,0))","v":""},{"$f":"IF(ISERROR($V692),\"\",OFFSET('Smelter Look-up'!$I$4,$V692-4,0))","v":""},{"$nulls":7},{"$f":"IF(ISERROR($V692),\"\",OFFSET('Smelter Look-up'!$C$4,$V692-4,0)&\"\")","v":""},"",{"$f":"IF(B692=\"\",\"\",IF(ISERROR(MATCH($J692,SorP!$B$1:$B$5661,0)),\"\",INDIRECT(\"'SorP'!$A$\"&MATCH($J692,SorP!$B$1:$B$5661,0))))","v":""},null,{"$f":"IF(C692=\"\",NA(),MATCH($B692&$C692,'Smelter Look-up'!$J:$J,0))","v":{"$error":"#N/A"}},null,0,null,null,null,""]
[null,{"$f":"IF(LEN(A693)=0,\"\",INDEX('Smelter Look-up'!$A:$A,MATCH($A693,'Smelter Look-up'!$E:$E,0)))","v":""},{"$f":"IF(LEN(A693)=0,\"\",INDEX('Smelter Look-up'!$C:$C,MATCH($A693,'Smelter Look-up'!$E:$E,0)))","v":""},null,{"$f":"IF(ISERROR($V693),\"\",OFFSET('Smelter Look-up'!$D$4,$V693-4,0)&\"\")","v":""},{"$f":"IF(ISERROR($V693),\"\",OFFSET('Smelter Look-up'!$E$4,$V693-4,0))","v":""},{"$f":"IF(C693=$X$4,\"Enter smelter details\",IF(ISERROR($V693),\"\",OFFSET('Smelter Look-up'!$F$4,$V693-4,0)))","v":""},{"$f":"IF(ISERROR($V693),\"\",OFFSET('Smelter Look-up'!$G$4,$V693-4,0))","v":""},{"$f":"IF(ISERROR($V693),\"\",OFFSET('Smelter Look-up'!$H$4,$V693-4,0))","v":""},{"$f":"IF(ISERROR($V693),\"\",OFFSET('Smelter Look-up'!$I$4,$V693-4,0))","v":""},{"$nulls":7},{"$f":"IF(ISERROR($V693),\"\",OFFSET('Smelter Look-up'!$C$4,$V693-4,0)&\"\")","v":""},"",{"$f":"IF(B693=\"\",\"\",IF(ISERROR(MATCH($J693,SorP!$B$1:$B$5661,0)),\"\",INDIRECT(\"'SorP'!$A$\"&MATCH($J693,SorP!$B$1:$B$5661,0))))","v":""},null,{"$f":"IF(C693=\"\",NA(),MATCH($B693&$C693,'Smelter Look-up'!$J:$J,0))","v":{"$error":"#N/A"}},null,0,null,null,null,""]
[null,{"$f":"IF(LEN(A694)=0,\"\",INDEX('Smelter Look-up'!$A:$A,MATCH($A694,'Smelter Look-up'!$E:$E,0)))","v":""},{"$f":"IF(LEN(A694)=0,\"\",INDEX('Smelter Look-up'!$C:$C,MATCH($A694,'Smelter Look-up'!$E:$E,0)))","v":""},null,{"$f":"IF(ISERROR($V694),\"\",OFFSET('Smelter Look-up'!$D$4,$V694-4,0)&\"\")","v":""},{"$f":"IF(ISERROR($V694),\"\",OFFSET('Smelter Look-up'!$E$4,$V694-4,0))","v":""},{"$f":"IF(C694=$X$4,\"Enter smelter details\",IF(ISERROR($V694),\"\",OFFSET('Smelter Look-up'!$F$4,$V694-4,0)))","v":""},{"$f":"IF(ISERROR($V694),\"\",OFFSET('Smelter Look-up'!$G$4,$V694-4,0))","v":""},{"$f":"IF(ISERROR($V694),\"\",OFFSET('Smelter Look-up'!$H$4,$V694-4,0))","v":""},{"$f":"IF(ISERROR($V694),\"\",OFFSET('Smelter Look-up'!$I$4,$V694-4,0))","v":""},{"$nulls":7},{"$f":"IF(ISERROR($V694),\"\",OFFSET('Smelter Look-up'!$C$4,$V694-4,0)&\"\")","v":""},"",{"$f":"IF(B694=\"\",\"\",IF(ISERROR(MATCH($J694,SorP!$B$1:$B$5661,0)),\"\",INDIRECT(\"'SorP'!$A$\"&MATCH($J694,SorP!$B$1:$B$5661,0))))","v":""},null,{"$f":"IF(C694=\"\",NA(),MATCH($B694&$C694,'Smelter Look-up'!$J:$J,0))","v":{"$error":"#N/A"}},null,0,null,null,null,""]
[null,{"$f":"IF(LEN(A695)=0,\"\",INDEX('Smelter Look-up'!$A:$A,MATCH($A695,'Smelter Look-up'!$E:$E,0)))","v":""},{"$f":"IF(LEN(A695)=0,\"\",INDEX('Smelter Look-up'!$C:$C,MATCH($A695,'Smelter Look-up'!$E:$E,0)))","v":""},null,{"$f":"IF(ISERROR($V695),\"\",OFFSET('Smelter Look-up'!$D$4,$V695-4,0)&\"\")","v":""},{"$f":"IF(ISERROR($V695),\"\",OFFSET('Smelter Look-up'!$E$4,$V695-4,0))","v":""},{"$f":"IF(C695=$X$4,\"Enter smelter details\",IF(ISERROR($V695),\"\",OFFSET('Smelter Look-up'!$F$4,$V695-4,0)))","v":""},{"$f":"IF(ISERROR($V695),\"\",OFFSET('Smelter Look-up'!$G$4,$V695-4,0))","v":""},{"$f":"IF(ISERROR($V695),\"\",OFFSET('Smelter Look-up'!$H$4,$V695-4,0))","v":""},{"$f":"IF(ISERROR($V695),\"\",OFFSET('Smelter Look-up'!$I$4,$V695-4,0))","v":""},{"$nulls":7},{"$f":"IF(ISERROR($V695),\"\",OFFSET('Smelter Look-up'!$C$4,$V695-4,0)&\"\")","v":""},"",{"$f":"IF(B695=\"\",\"\",IF(ISERROR(MATCH($J695,SorP!$B$1:$B$5661,0)),\"\",INDIRECT(\"'SorP'!$A$\"&MATCH($J695,SorP!$B$1:$B$5661,0))))","v":""},null,{"$f":"IF(C695=\"\",NA(),MATCH($B695&$C695,'Smelter Look-up'!$J:$J,0))","v":{"$error":"#N/A"}},null,0,null,null,null,""]
[null,{"$f":"IF(LEN(A696)=0,\"\",INDEX('Smelter Look-up'!$A:$A,MATCH($A696,'Smelter Look-up'!$E:$E,0)))","v":""},{"$f":"IF(LEN(A696)=0,\"\",INDEX('Smelter Look-up'!$C:$C,MATCH($A696,'Smelter Look-up'!$E:$E,0)))","v":""},null,{"$f":"IF(ISERROR($V696),\"\",OFFSET('Smelter Look-up'!$D$4,$V696-4,0)&\"\")","v":""},{"$f":"IF(ISERROR($V696),\"\",OFFSET('Smelter Look-up'!$E$4,$V696-4,0))","v":""},{"$f":"IF(C696=$X$4,\"Enter smelter details\",IF(ISERROR($V696),\"\",OFFSET('Smelter Look-up'!$F$4,$V696-4,0)))","v":""},{"$f":"IF(ISERROR($V696),\"\",OFFSET('Smelter Look-up'!$G$4,$V696-4,0))","v":""},{"$f":"IF(ISERROR($V696),\"\",OFFSET('Smelter Look-up'!$H$4,$V696-4,0))","v":""},{"$f":"IF(ISERROR($V696),\"\",OFFSET('Smelter Look-up'!$I$4,$V696-4,0))","v":""},{"$nulls":7},{"$f":"IF(ISERROR($V696),\"\",OFFSET('Smelter Look-up'!$C$4,$V696-4,0)&\"\")","v":""},"",{"$f":"IF(B696=\"\",\"\",IF(ISERROR(MATCH($J696,SorP!$B$1:$B$5661,0)),\"\",INDIRECT(\"'SorP'!$A$\"&MATCH($J696,SorP!$B$1:$B$5661,0))))","v":""},null,{"$f":"IF(C696=\"\",NA(),MATCH($B696&$C696,'Smelter Look-up'!$J:$J,0))","v":{"$error":"#N/A"}},null,0,null,null,null,""]
[null,{"$f":"IF(LEN(A697)=0,\"\",INDEX('Smelter Look-up'!$A:$A,MATCH($A697,'Smelter Look-up'!$E:$E,0)))","v":""},{"$f":"IF(LEN(A697)=0,\"\",INDEX('Smelter Look-up'!$C:$C,MATCH($A697,'Smelter Look-up'!$E:$E,0)))","v":""},null,{"$f":"IF(ISERROR($V697),\"\",OFFSET('Smelter Look-up'!$D$4,$V697-4,0)&\"\")","v":""},{"$f":"IF(ISERROR($V697),\"\",OFFSET('Smelter Look-up'!$E$4,$V697-4,0))","v":""},{"$f":"IF(C697=$X$4,\"Enter smelter details\",IF(ISERROR($V697),\"\",OFFSET('Smelter Look-up'!$F$4,$V697-4,0)))","v":""},{"$f":"IF(ISERROR($V697),\"\",OFFSET('Smelter Look-up'!$G$4,$V697-4,0))","v":""},{"$f":"IF(ISERROR($V697),\"\",OFFSET('Smelter Look-up'!$H$4,$V697-4,0))","v":""},{"$f":"IF(ISERROR($V697),\"\",OFFSET('Smelter Look-up'!$I$4,$V697-4,0))","v":""},{"$nulls":7},{"$f":"IF(ISERROR($V697),\"\",OFFSET('Smelter Look-up'!$C$4,$V697-4,0)&\"\")","v":""},"",{"$f":"IF(B697=\"\",\"\",IF(ISERROR(MATCH($J697,SorP!$B$1:$B$5661,0)),\"\",INDIRECT(\"'SorP'!$A$\"&MATCH($J697,SorP!$B$1:$B$5661,0))))","v":""},null,{"$f":"IF(C697=\"\",NA(),MATCH($B697&$C697,'Smelter Look-up'!$J:$J,0))","v":{"$error":"#N/A"}},null,0,null,null,null,""]
[null,{"$f":"IF(LEN(A698)=0,\"\",INDEX('Smelter Look-up'!$A:$A,MATCH($A698,'Smelter Look-up'!$E:$E,0)))","v":""},{"$f":"IF(LEN(A698)=0,\"\",INDEX('Smelter Look-up'!$C:$C,MATCH($A698,'Smelter Look-up'!$E:$E,0)))","v":""},null,{"$f":"IF(ISERROR($V698),\"\",OFFSET('Smelter Look-up'!$D$4,$V698-4,0)&\"\")","v":""},{"$f":"IF(ISERROR($V698),\"\",OFFSET('Smelter Look-up'!$E$4,$V698-4,0))","v":""},{"$f":"IF(C698=$X$4,\"Enter smelter details\",IF(ISERROR($V698),\"\",OFFSET('Smelter Look-up'!$F$4,$V698-4,0)))","v":""},{"$f":"IF(ISERROR($V698),\"\",OFFSET('Smelter Look-up'!$G$4,$V698-4,0))","v":""},{"$f":"IF(ISERROR($V698),\"\",OFFSET('Smelter Look-up'!$H$4,$V698-4,0))","v":""},{"$f":"IF(ISERROR($V698),\"\",OFFSET('Smelter Look-up'!$I$4,$V698-4,0))","v":""},{"$nulls":7},{"$f":"IF(ISERROR($V698),\"\",OFFSET('Smelter Look-up'!$C$4,$V698-4,0)&\"\")","v":""},"",{"$f":"IF(B698=\"\",\"\",IF(ISERROR(MATCH($J698,SorP!$B$1:$B$5661,0)),\"\",INDIRECT(\"'SorP'!$A$\"&MATCH($J698,SorP!$B$1:$B$5661,0))))","v":""},null,{"$f":"IF(C698=\"\",NA(),MATCH($B698&$C698,'Smelter Look-up'!$J:$J,0))","v":{"$error":"#N/A"}},null,0,null,null,null,""]
[null,{"$f":"IF(LEN(A699)=0,\"\",INDEX('Smelter Look-up'!$A:$A,MATCH($A699,'Smelter Look-up'!$E:$E,0)))","v":""},{"$f":"IF(LEN(A699)=0,\"\",INDEX('Smelter Look-up'!$C:$C,MATCH($A699,'Smelter Look-up'!$E:$E,0)))","v":""},null,{"$f":"IF(ISERROR($V699),\"\",OFFSET('Smelter Look-up'!$D$4,$V699-4,0)&\"\")","v":""},{"$f":"IF(ISERROR($V699),\"\",OFFSET('Smelter Look-up'!$E$4,$V699-4,0))","v":""},{"$f":"IF(C699=$X$4,\"Enter smelter details\",IF(ISERROR($V699),\"\",OFFSET('Smelter Look-up'!$F$4,$V699-4,0)))","v":""},{"$f":"IF(ISERROR($V699),\"\",OFFSET('Smelter Look-up'!$G$4,$V699-4,0))","v":""},{"$f":"IF(ISERROR($V699),\"\",OFFSET('Smelter Look-up'!$H$4,$V699-4,0))","v":""},{"$f":"IF(ISERROR($V699),\"\",OFFSET('Smelter Look-up'!$I$4,$V699-4,0))","v":""},{"$nulls":7},{"$f":"IF(ISERROR($V699),\"\",OFFSET('Smelter Look-up'!$C$4,$V699-4,0)&\"\")","v":""},"",{"$f":"IF(B699=\"\",\"\",IF(ISERROR(MATCH($J699,SorP!$B$1:$B$5661,0)),\"\",INDIRECT(\"'SorP'!$A$\"&MATCH($J699,SorP!$B$1:$B$5661,0))))","v":""},null,{"$f":"IF(C699=\"\",NA(),MATCH($B699&$C699,'Smelter Look-up'!$J:$J,0))","v":{"$error":"#N/A"}},null,0,null,null,null,""]
[null,{"$f":"IF(LEN(A700)=0,\"\",INDEX('Smelter Look-up'!$A:$A,MATCH($A700,'Smelter Look-up'!$E:$E,0)))","v":""},{"$f":"IF(LEN(A700)=0,\"\",INDEX('Smelter Look-up'!$C:$C,MATCH($A700,'Smelter Look-up'!$E:$E,0)))","v":""},null,{"$f":"IF(ISERROR($V700),\"\",OFFSET('Smelter Look-up'!$D$4,$V700-4,0)&\"\")","v":""},{"$f":"IF(ISERROR($V700),\"\",OFFSET('Smelter Look-up'!$E$4,$V700-4,0))","v":""},{"$f":"IF(C700=$X$4,\"Enter smelter details\",IF(ISERROR($V700),\"\",OFFSET('Smelter Look-up'!$F$4,$V700-4,0)))","v":""},{"$f":"IF(ISERROR($V700),\"\",OFFSET('Smelter Look-up'!$G$4,$V700-4,0))","v":""},{"$f":"IF(ISERROR($V700),\"\",OFFSET('Smelter Look-up'!$H$4,$V700-4,0))","v":""},{"$f":"IF(ISERROR($V700),\"\",OFFSET('Smelter Look-up'!$I$4,$V700-4,0))","v":""},{"$nulls":7},{"$f":"IF(ISERROR($V700),\"\",OFFSET('Smelter Look-up'!$C$4,$V700-4,0)&\"\")","v":""},"",{"$f":"IF(B700=\"\",\"\",IF(ISERROR(MATCH($J700,SorP!$B$1:$B$5661,0)),\"\",INDIRECT(\"'SorP'!$A$\"&MATCH($J700,SorP!$B$1:$B$5661,0))))","v":""},null,{"$f":"IF(C700=\"\",NA(),MATCH($B700&$C700,'Smelter Look-up'!$J:$J,0))","v":{"$error":"#N/A"}},null,0,null,null,null,""]
[null,{"$f":"IF(LEN(A701)=0,\"\",INDEX('Smelter Look-up'!$A:$A,MATCH($A701,'Smelter Look-up'!$E:$E,0)))","v":""},{"$f":"IF(LEN(A701)=0,\"\",INDEX('Smelter Look-up'!$C:$C,MATCH($A701,'Smelter Look-up'!$E:$E,0)))","v":""},null,{"$f":"IF(ISERROR($V701),\"\",OFFSET('Smelter Look-up'!$D$4,$V701-4,0)&\"\")","v":""},{"$f":"IF(ISERROR($V701),\"\",OFFSET('Smelter Look-up'!$E$4,$V701-4,0))","v":""},{"$f":"IF(C701=$X$4,\"Enter smelter details\",IF(ISERROR($V701),\"\",OFFSET('Smelter Look-up'!$F$4,$V701-4,0)))","v":""},{"$f":"IF(ISERROR($V701),\"\",OFFSET('Smelter Look-up'!$G$4,$V701-4,0))","v":""},{"$f":"IF(ISERROR($V701),\"\",OFFSET('Smelter Look-up'!$H$4,$V701-4,0))","v":""},{"$f":"IF(ISERROR($V701),\"\",OFFSET('Smelter Look-up'!$I$4,$V701-4,0))","v":""},{"$nulls":7},{"$f":"IF(ISERROR($V701),\"\",OFFSET('Smelter Look-up'!$C$4,$V701-4,0)&\"\")","v":""},"",{"$f":"IF(B701=\"\",\"\",IF(ISERROR(MATCH($J701,SorP!$B$1:$B$5661,0)),\"\",INDIRECT(\"'SorP'!$A$\"&MATCH($J701,SorP!$B$1:$B$5661,0))))","v":""},null,{"$f":"IF(C701=\"\",NA(),MATCH($B701&$C701,'Smelter Look-up'!$J:$J,0))","v":{"$error":"#N/A"}},null,0,null,null,null,""]
[null,{"$f":"IF(LEN(A702)=0,\"\",INDEX('Smelter Look-up'!$A:$A,MATCH($A702,'Smelter Look-up'!$E:$E,0)))","v":""},{"$f":"IF(LEN(A702)=0,\"\",INDEX('Smelter Look-up'!$C:$C,MATCH($A702,'Smelter Look-up'!$E:$E,0)))","v":""},null,{"$f":"IF(ISERROR($V702),\"\",OFFSET('Smelter Look-up'!$D$4,$V702-4,0)&\"\")","v":""},{"$f":"IF(ISERROR($V702),\"\",OFFSET('Smelter Look-up'!$E$4,$V702-4,0))","v":""},{"$f":"IF(C702=$X$4,\"Enter smelter details\",IF(ISERROR($V702),\"\",OFFSET('Smelter Look-up'!$F$4,$V702-4,0)))","v":""},{"$f":"IF(ISERROR($V702),\"\",OFFSET('Smelter Look-up'!$G$4,$V702-4,0))","v":""},{"$f":"IF(ISERROR($V702),\"\",OFFSET('Smelter Look-up'!$H$4,$V702-4,0))","v":""},{"$f":"IF(ISERROR($V702),\"\",OFFSET('Smelter Look-up'!$I$4,$V702-4,0))","v":""},{"$nulls":7},{"$f":"IF(ISERROR($V702),\"\",OFFSET('Smelter Look-up'!$C$4,$V702-4,0)&\"\")","v":""},"",{"$f":"IF(B702=\"\",\"\",IF(ISERROR(MATCH($J702,SorP!$B$1:$B$5661,0)),\"\",INDIRECT(\"'SorP'!$A$\"&MATCH($J702,SorP!$B$1:$B$5661,0))))","v":""},null,{"$f":"IF(C702=\"\",NA(),MATCH($B702&$C702,'Smelter Look-up'!$J:$J,0))","v":{"$error":"#N/A"}},null,0,null,null,null,""]
[null,{"$f":"IF(LEN(A703)=0,\"\",INDEX('Smelter Look-up'!$A:$A,MATCH($A703,'Smelter Look-up'!$E:$E,0)))","v":""},{"$f":"IF(LEN(A703)=0,\"\",INDEX('Smelter Look-up'!$C:$C,MATCH($A703,'Smelter Look-up'!$E:$E,0)))","v":""},null,{"$f":"IF(ISERROR($V703),\"\",OFFSET('Smelter Look-up'!$D$4,$V703-4,0)&\"\")","v":""},{"$f":"IF(ISERROR($V703),\"\",OFFSET('Smelter Look-up'!$E$4,$V703-4,0))","v":""},{"$f":"IF(C703=$X$4,\"Enter smelter details\",IF(ISERROR($V703),\"\",OFFSET('Smelter Look-up'!$F$4,$V703-4,0)))","v":""},{"$f":"IF(ISERROR($V703),\"\",OFFSET('Smelter Look-up'!$G$4,$V703-4,0))","v":""},{"$f":"IF(ISERROR($V703),\"\",OFFSET('Smelter Look-up'!$H$4,$V703-4,0))","v":""},{"$f":"IF(ISERROR($V703),\"\",OFFSET('Smelter Look-up'!$I$4,$V703-4,0))","v":""},{"$nulls":7},{"$f":"IF(ISERROR($V703),\"\",OFFSET('Smelter Look-up'!$C$4,$V703-4,0)&\"\")","v":""},"",{"$f":"IF(B703=\"\",\"\",IF(ISERROR(MATCH($J703,SorP!$B$1:$B$5661,0)),\"\",INDIRECT(\"'SorP'!$A$\"&MATCH($J703,SorP!$B$1:$B$5661,0))))","v":""},null,{"$f":"IF(C703=\"\",NA(),MATCH($B703&$C703,'Smelter Look-up'!$J:$J,0))","v":{"$error":"#N/A"}},null,{"$f":"IF(AND(C703=\"Smelter not listed\",OR(LEN(D703)=0,LEN(E703)=0)),1,0)","v":0},null,null,null,{"$f":"B703&C703","v":""}]
[null,{"$f":"IF(LEN(A704)=0,\"\",INDEX('Smelter Look-up'!$A:$A,MATCH($A704,'Smelter Look-up'!$E:$E,0)))","v":""},{"$f":"IF(LEN(A704)=0,\"\",INDEX('Smelter Look-up'!$C:$C,MATCH($A704,'Smelter Look-up'!$E:$E,0)))","v":""},null,{"$f":"IF(ISERROR($V704),\"\",OFFSET('Smelter Look-up'!$D$4,$V704-4,0)&\"\")","v":""},{"$f":"IF(ISERROR($V704),\"\",OFFSET('Smelter Look-up'!$E$4,$V704-4,0))","v":""},{"$f":"IF(C704=$X$4,\"Enter smelter details\",IF(ISERROR($V704),\"\",OFFSET('Smelter Look-up'!$F$4,$V704-4,0)))","v":""},{"$f":"IF(ISERROR($V704),\"\",OFFSET('Smelter Look-up'!$G$4,$V704-4,0))","v":""},{"$f":"IF(ISERROR($V704),\"\",OFFSET('Smelter Look-up'!$H$4,$V704-4,0))","v":""},{"$f":"IF(ISERROR($V704),\"\",OFFSET('Smelter Look-up'!$I$4,$V704-4,0))","v":""},{"$nulls":7},{"$f":"IF(ISERROR($V704),\"\",OFFSET('Smelter Look-up'!$C$4,$V704-4,0)&\"\")","v":""},{"$f":"IF(B704=\"\",\"\",IF(ISERROR(MATCH($E704,CL,0)),\"Unknown\",INDIRECT(\"'C'!$A$\"&MATCH($E704,CL,0)+1)))","v":""},{"$f":"IF(B704=\"\",\"\",IF(ISERROR(MATCH($J704,SorP!$B$1:$B$5661,0)),\"\",INDIRECT(\"'SorP'!$A$\"&MATCH($J704,SorP!$B$1:$B$5661,0))))","v":""},null,{"$f":"IF(C704=\"\",NA(),MATCH($B704&$C704,'Smelter Look-up'!$J:$J,0))","v":{"$error":"#N/A"}},null,0,null,null,null,""]
[null,{"$f":"IF(LEN(A705)=0,\"\",INDEX('Smelter Look-up'!$A:$A,MATCH($A705,'Smelter Look-up'!$E:$E,0)))","v":""},{"$f":"IF(LEN(A705)=0,\"\",INDEX('Smelter Look-up'!$C:$C,MATCH($A705,'Smelter Look-up'!$E:$E,0)))","v":""},null,{"$f":"IF(ISERROR($V705),\"\",OFFSET('Smelter Look-up'!$D$4,$V705-4,0)&\"\")","v":""},{"$f":"IF(ISERROR($V705),\"\",OFFSET('Smelter Look-up'!$E$4,$V705-4,0))","v":""},{"$f":"IF(C705=$X$4,\"Enter smelter details\",IF(ISERROR($V705),\"\",OFFSET('Smelter Look-up'!$F$4,$V705-4,0)))","v":""},{"$f":"IF(ISERROR($V705),\"\",OFFSET('Smelter Look-up'!$G$4,$V705-4,0))","v":""},{"$f":"IF(ISERROR($V705),\"\",OFFSET('Smelter Look-up'!$H$4,$V705-4,0))","v":""},{"$f":"IF(ISERROR($V705),\"\",OFFSET('Smelter Look-up'!$I$4,$V705-4,0))","v":""},{"$nulls":7},{"$f":"IF(ISERROR($V705),\"\",OFFSET('Smelter Look-up'!$C$4,$V705-4,0)&\"\")","v":""},"",{"$f":"IF(B705=\"\",\"\",IF(ISERROR(MATCH($J705,SorP!$B$1:$B$5661,0)),\"\",INDIRECT(\"'SorP'!$A$\"&MATCH($J705,SorP!$B$1:$B$5661,0))))","v":""},null,{"$f":"IF(C705=\"\",NA(),MATCH($B705&$C705,'Smelter Look-up'!$J:$J,0))","v":{"$error":"#N/A"}},null,0,null,null,null,""]
[null,{"$f":"IF(LEN(A706)=0,\"\",INDEX('Smelter Look-up'!$A:$A,MATCH($A706,'Smelter Look-up'!$E:$E,0)))","v":""},{"$f":"IF(LEN(A706)=0,\"\",INDEX('Smelter Look-up'!$C:$C,MATCH($A706,'Smelter Look-up'!$E:$E,0)))","v":""},null,{"$f":"IF(ISERROR($V706),\"\",OFFSET('Smelter Look-up'!$D$4,$V706-4,0)&\"\")","v":""},{"$f":"IF(ISERROR($V706),\"\",OFFSET('Smelter Look-up'!$E$4,$V706-4,0))","v":""},{"$f":"IF(C706=$X$4,\"Enter smelter details\",IF(ISERROR($V706),\"\",OFFSET('Smelter Look-up'!$F$4,$V706-4,0)))","v":""},{"$f":"IF(ISERROR($V706),\"\",OFFSET('Smelter Look-up'!$G$4,$V706-4,0))","v":""},{"$f":"IF(ISERROR($V706),\"\",OFFSET('Smelter Look-up'!$H$4,$V706-4,0))","v":""},{"$f":"IF(ISERROR($V706),\"\",OFFSET('Smelter Look-up'!$I$4,$V706-4,0))","v":""},{"$nulls":7},{"$f":"IF(ISERROR($V706),\"\",OFFSET('Smelter Look-up'!$C$4,$V706-4,0)&\"\")","v":""},"",{"$f":"IF(B706=\"\",\"\",IF(ISERROR(MATCH($J706,SorP!$B$1:$B$5661,0)),\"\",INDIRECT(\"'SorP'!$A$\"&MATCH($J706,SorP!$B$1:$B$5661,0))))","v":""},null,{"$f":"IF(C706=\"\",NA(),MATCH($B706&$C706,'Smelter Look-up'!$J:$J,0))","v":{"$error":"#N/A"}},null,0,null,null,null,""]
[null,{"$f":"IF(LEN(A707)=0,\"\",INDEX('Smelter Look-up'!$A:$A,MATCH($A707,'Smelter Look-up'!$E:$E,0)))","v":""},{"$f":"IF(LEN(A707)=0,\"\",INDEX('Smelter Look-up'!$C:$C,MATCH($A707,'Smelter Look-up'!$E:$E,0)))","v":""},null,{"$f":"IF(ISERROR($V707),\"\",OFFSET('Smelter Look-up'!$D$4,$V707-4,0)&\"\")","v":""},{"$f":"IF(ISERROR($V707),\"\",OFFSET('Smelter Look-up'!$E$4,$V707-4,0))","v":""},{"$f":"IF(C707=$X$4,\"Enter smelter details\",IF(ISERROR($V707),\"\",OFFSET('Smelter Look-up'!$F$4,$V707-4,0)))","v":""},{"$f":"IF(ISERROR($V707),\"\",OFFSET('Smelter Look-up'!$G$4,$V707-4,0))","v":""},{"$f":"IF(ISERROR($V707),\"\",OFFSET('Smelter Look-up'!$H$4,$V707-4,0))","v":""},{"$f":"IF(ISERROR($V707),\"\",OFFSET('Smelter Look-up'!$I$4,$V707-4,0))","v":""},{"$nulls":7},{"$f":"IF(ISERROR($V707),\"\",OFFSET('Smelter Look-up'!$C$4,$V707-4,0)&\"\")","v":""},"",{"$f":"IF(B707=\"\",\"\",IF(ISERROR(MATCH($J707,SorP!$B$1:$B$5661,0)),\"\",INDIRECT(\"'SorP'!$A$\"&MATCH($J707,SorP!$B$1:$B$5661,0))))","v":""},null,{"$f":"IF(C707=\"\",NA(),MATCH($B707&$C707,'Smelter Look-up'!$J:$J,0))","v":{"$error":"#N/A"}},null,0,null,null,null,""]
[null,{"$f":"IF(LEN(A708)=0,\"\",INDEX('Smelter Look-up'!$A:$A,MATCH($A708,'Smelter Look-up'!$E:$E,0)))","v":""},{"$f":"IF(LEN(A708)=0,\"\",INDEX('Smelter Look-up'!$C:$C,MATCH($A708,'Smelter Look-up'!$E:$E,0)))","v":""},null,{"$f":"IF(ISERROR($V708),\"\",OFFSET('Smelter Look-up'!$D$4,$V708-4,0)&\"\")","v":""},{"$f":"IF(ISERROR($V708),\"\",OFFSET('Smelter Look-up'!$E$4,$V708-4,0))","v":""},{"$f":"IF(C708=$X$4,\"Enter smelter details\",IF(ISERROR($V708),\"\",OFFSET('Smelter Look-up'!$F$4,$V708-4,0)))","v":""},{"$f":"IF(ISERROR($V708),\"\",OFFSET('Smelter Look-up'!$G$4,$V708-4,0))","v":""},{"$f":"IF(ISERROR($V708),\"\",OFFSET('Smelter Look-up'!$H$4,$V708-4,0))","v":""},{"$f":"IF(ISERROR($V708),\"\",OFFSET('Smelter Look-up'!$I$4,$V708-4,0))","v":""},{"$nulls":7},{"$f":"IF(ISERROR($V708),\"\",OFFSET('Smelter Look-up'!$C$4,$V708-4,0)&\"\")","v":""},"",{"$f":"IF(B708=\"\",\"\",IF(ISERROR(MATCH($J708,SorP!$B$1:$B$5661,0)),\"\",INDIRECT(\"'SorP'!$A$\"&MATCH($J708,SorP!$B$1:$B$5661,0))))","v":""},null,{"$f":"IF(C708=\"\",NA(),MATCH($B708&$C708,'Smelter Look-up'!$J:$J,0))","v":{"$error":"#N/A"}},null,0,null,null,null,""]
[null,{"$f":"IF(LEN(A709)=0,\"\",INDEX('Smelter Look-up'!$A:$A,MATCH($A709,'Smelter Look-up'!$E:$E,0)))","v":""},{"$f":"IF(LEN(A709)=0,\"\",INDEX('Smelter Look-up'!$C:$C,MATCH($A709,'Smelter Look-up'!$E:$E,0)))","v":""},null,{"$f":"IF(ISERROR($V709),\"\",OFFSET('Smelter Look-up'!$D$4,$V709-4,0)&\"\")","v":""},{"$f":"IF(ISERROR($V709),\"\",OFFSET('Smelter Look-up'!$E$4,$V709-4,0))","v":""},{"$f":"IF(C709=$X$4,\"Enter smelter details\",IF(ISERROR($V709),\"\",OFFSET('Smelter Look-up'!$F$4,$V709-4,0)))","v":""},{"$f":"IF(ISERROR($V709),\"\",OFFSET('Smelter Look-up'!$G$4,$V709-4,0))","v":""},{"$f":"IF(ISERROR($V709),\"\",OFFSET('Smelter Look-up'!$H$4,$V709-4,0))","v":""},{"$f":"IF(ISERROR($V709),\"\",OFFSET('Smelter Look-up'!$I$4,$V709-4,0))","v":""},{"$nulls":7},{"$f":"IF(ISERROR($V709),\"\",OFFSET('Smelter Look-up'!$C$4,$V709-4,0)&\"\")","v":""},"",{"$f":"IF(B709=\"\",\"\",IF(ISERROR(MATCH($J709,SorP!$B$1:$B$5661,0)),\"\",INDIRECT(\"'SorP'!$A$\"&MATCH($J709,SorP!$B$1:$B$5661,0))))","v":""},null,{"$f":"IF(C709=\"\",NA(),MATCH($B709&$C709,'Smelter Look-up'!$J:$J,0))","v":{"$error":"#N/A"}},null,0,null,null,null,""]
[null,{"$f":"IF(LEN(A710)=0,\"\",INDEX('Smelter Look-up'!$A:$A,MATCH($A710,'Smelter Look-up'!$E:$E,0)))","v":""},{"$f":"IF(LEN(A710)=0,\"\",INDEX('Smelter Look-up'!$C:$C,MATCH($A710,'Smelter Look-up'!$E:$E,0)))","v":""},null,{"$f":"IF(ISERROR($V710),\"\",OFFSET('Smelter Look-up'!$D$4,$V710-4,0)&\"\")","v":""},{"$f":"IF(ISERROR($V710),\"\",OFFSET('Smelter Look-up'!$E$4,$V710-4,0))","v":""},{"$f":"IF(C710=$X$4,\"Enter smelter details\",IF(ISERROR($V710),\"\",OFFSET('Smelter Look-up'!$F$4,$V710-4,0)))","v":""},{"$f":"IF(ISERROR($V710),\"\",OFFSET('Smelter Look-up'!$G$4,$V710-4,0))","v":""},{"$f":"IF(ISERROR($V710),\"\",OFFSET('Smelter Look-up'!$H$4,$V710-4,0))","v":""},{"$f":"IF(ISERROR($V710),\"\",OFFSET('Smelter Look-up'!$I$4,$V710-4,0))","v":""},{"$nulls":7},{"$f":"IF(ISERROR($V710),\"\",OFFSET('Smelter Look-up'!$C$4,$V710-4,0)&\"\")","v":""},"",{"$f":"IF(B710=\"\",\"\",IF(ISERROR(MATCH($J710,SorP!$B$1:$B$5661,0)),\"\",INDIRECT(\"'SorP'!$A$\"&MATCH($J710,SorP!$B$1:$B$5661,0))))","v":""},null,{"$f":"IF(C710=\"\",NA(),MATCH($B710&$C710,'Smelter Look-up'!$J:$J,0))","v":{"$error":"#N/A"}},null,0,null,null,null,""]
[null,{"$f":"IF(LEN(A711)=0,\"\",INDEX('Smelter Look-up'!$A:$A,MATCH($A711,'Smelter Look-up'!$E:$E,0)))","v":""},{"$f":"IF(LEN(A711)=0,\"\",INDEX('Smelter Look-up'!$C:$C,MATCH($A711,'Smelter Look-up'!$E:$E,0)))","v":""},null,{"$f":"IF(ISERROR($V711),\"\",OFFSET('Smelter Look-up'!$D$4,$V711-4,0)&\"\")","v":""},{"$f":"IF(ISERROR($V711),\"\",OFFSET('Smelter Look-up'!$E$4,$V711-4,0))","v":""},{"$f":"IF(C711=$X$4,\"Enter smelter details\",IF(ISERROR($V711),\"\",OFFSET('Smelter Look-up'!$F$4,$V711-4,0)))","v":""},{"$f":"IF(ISERROR($V711),\"\",OFFSET('Smelter Look-up'!$G$4,$V711-4,0))","v":""},{"$f":"IF(ISERROR($V711),\"\",OFFSET('Smelter Look-up'!$H$4,$V711-4,0))","v":""},{"$f":"IF(ISERROR($V711),\"\",OFFSET('Smelter Look-up'!$I$4,$V711-4,0))","v":""},{"$nulls":7},{"$f":"IF(ISERROR($V711),\"\",OFFSET('Smelter Look-up'!$C$4,$V711-4,0)&\"\")","v":""},"",{"$f":"IF(B711=\"\",\"\",IF(ISERROR(MATCH($J711,SorP!$B$1:$B$5661,0)),\"\",INDIRECT(\"'SorP'!$A$\"&MATCH($J711,SorP!$B$1:$B$5661,0))))","v":""},null,{"$f":"IF(C711=\"\",NA(),MATCH($B711&$C711,'Smelter Look-up'!$J:$J,0))","v":{"$error":"#N/A"}},null,0,null,null,null,""]
[null,{"$f":"IF(LEN(A712)=0,\"\",INDEX('Smelter Look-up'!$A:$A,MATCH($A712,'Smelter Look-up'!$E:$E,0)))","v":""},{"$f":"IF(LEN(A712)=0,\"\",INDEX('Smelter Look-up'!$C:$C,MATCH($A712,'Smelter Look-up'!$E:$E,0)))","v":""},null,{"$f":"IF(ISERROR($V712),\"\",OFFSET('Smelter Look-up'!$D$4,$V712-4,0)&\"\")","v":""},{"$f":"IF(ISERROR($V712),\"\",OFFSET('Smelter Look-up'!$E$4,$V712-4,0))","v":""},{"$f":"IF(C712=$X$4,\"Enter smelter details\",IF(ISERROR($V712),\"\",OFFSET('Smelter Look-up'!$F$4,$V712-4,0)))","v":""},{"$f":"IF(ISERROR($V712),\"\",OFFSET('Smelter Look-up'!$G$4,$V712-4,0))","v":""},{"$f":"IF(ISERROR($V712),\"\",OFFSET('Smelter Look-up'!$H$4,$V712-4,0))","v":""},{"$f":"IF(ISERROR($V712),\"\",OFFSET('Smelter Look-up'!$I$4,$V712-4,0))","v":""},{"$nulls":7},{"$f":"IF(ISERROR($V712),\"\",OFFSET('Smelter Look-up'!$C$4,$V712-4,0)&\"\")","v":""},"",{"$f":"IF(B712=\"\",\"\",IF(ISERROR(MATCH($J712,SorP!$B$1:$B$5661,0)),\"\",INDIRECT(\"'SorP'!$A$\"&MATCH($J712,SorP!$B$1:$B$5661,0))))","v":""},null,{"$f":"IF(C712=\"\",NA(),MATCH($B712&$C712,'Smelter Look-up'!$J:$J,0))","v":{"$error":"#N/A"}},null,0,null,null,null,""]
[null,{"$f":"IF(LEN(A713)=0,\"\",INDEX('Smelter Look-up'!$A:$A,MATCH($A713,'Smelter Look-up'!$E:$E,0)))","v":""},{"$f":"IF(LEN(A713)=0,\"\",INDEX('Smelter Look-up'!$C:$C,MATCH($A713,'Smelter Look-up'!$E:$E,0)))","v":""},null,{"$f":"IF(ISERROR($V713),\"\",OFFSET('Smelter Look-up'!$D$4,$V713-4,0)&\"\")","v":""},{"$f":"IF(ISERROR($V713),\"\",OFFSET('Smelter Look-up'!$E$4,$V713-4,0))","v":""},{"$f":"IF(C713=$X$4,\"Enter smelter details\",IF(ISERROR($V713),\"\",OFFSET('Smelter Look-up'!$F$4,$V713-4,0)))","v":""},{"$f":"IF(ISERROR($V713),\"\",OFFSET('Smelter Look-up'!$G$4,$V713-4,0))","v":""},{"$f":"IF(ISERROR($V713),\"\",OFFSET('Smelter Look-up'!$H$4,$V713-4,0))","v":""},{"$f":"IF(ISERROR($V713),\"\",OFFSET('Smelter Look-up'!$I$4,$V713-4,0))","v":""},{"$nulls":7},{"$f":"IF(ISERROR($V713),\"\",OFFSET('Smelter Look-up'!$C$4,$V713-4,0)&\"\")","v":""},"",{"$f":"IF(B713=\"\",\"\",IF(ISERROR(MATCH($J713,SorP!$B$1:$B$5661,0)),\"\",INDIRECT(\"'SorP'!$A$\"&MATCH($J713,SorP!$B$1:$B$5661,0))))","v":""},null,{"$f":"IF(C713=\"\",NA(),MATCH($B713&$C713,'Smelter Look-up'!$J:$J,0))","v":{"$error":"#N/A"}},null,0,null,null,null,""]
[null,{"$f":"IF(LEN(A714)=0,\"\",INDEX('Smelter Look-up'!$A:$A,MATCH($A714,'Smelter Look-up'!$E:$E,0)))","v":""},{"$f":"IF(LEN(A714)=0,\"\",INDEX('Smelter Look-up'!$C:$C,MATCH($A714,'Smelter Look-up'!$E:$E,0)))","v":""},null,{"$f":"IF(ISERROR($V714),\"\",OFFSET('Smelter Look-up'!$D$4,$V714-4,0)&\"\")","v":""},{"$f":"IF(ISERROR($V714),\"\",OFFSET('Smelter Look-up'!$E$4,$V714-4,0))","v":""},{"$f":"IF(C714=$X$4,\"Enter smelter details\",IF(ISERROR($V714),\"\",OFFSET('Smelter Look-up'!$F$4,$V714-4,0)))","v":""},{"$f":"IF(ISERROR($V714),\"\",OFFSET('Smelter Look-up'!$G$4,$V714-4,0))","v":""},{"$f":"IF(ISERROR($V714),\"\",OFFSET('Smelter Look-up'!$H$4,$V714-4,0))","v":""},{"$f":"IF(ISERROR($V714),\"\",OFFSET('Smelter Look-up'!$I$4,$V714-4,0))","v":""},{"$nulls":7},{"$f":"IF(ISERROR($V714),\"\",OFFSET('Smelter Look-up'!$C$4,$V714-4,0)&\"\")","v":""},"",{"$f":"IF(B714=\"\",\"\",IF(ISERROR(MATCH($J714,SorP!$B$1:$B$5661,0)),\"\",INDIRECT(\"'SorP'!$A$\"&MATCH($J714,SorP!$B$1:$B$5661,0))))","v":""},null,{"$f":"IF(C714=\"\",NA(),MATCH($B714&$C714,'Smelter Look-up'!$J:$J,0))","v":{"$error":"#N/A"}},null,0,null,null,null,""]
[null,{"$f":"IF(LEN(A715)=0,\"\",INDEX('Smelter Look-up'!$A:$A,MATCH($A715,'Smelter Look-up'!$E:$E,0)))","v":""},{"$f":"IF(LEN(A715)=0,\"\",INDEX('Smelter Look-up'!$C:$C,MATCH($A715,'Smelter Look-up'!$E:$E,0)))","v":""},null,{"$f":"IF(ISERROR($V715),\"\",OFFSET('Smelter Look-up'!$D$4,$V715-4,0)&\"\")","v":""},{"$f":"IF(ISERROR($V715),\"\",OFFSET('Smelter Look-up'!$E$4,$V715-4,0))","v":""},{"$f":"IF(C715=$X$4,\"Enter smelter details\",IF(ISERROR($V715),\"\",OFFSET('Smelter Look-up'!$F$4,$V715-4,0)))","v":""},{"$f":"IF(ISERROR($V715),\"\",OFFSET('Smelter Look-up'!$G$4,$V715-4,0))","v":""},{"$f":"IF(ISERROR($V715),\"\",OFFSET('Smelter Look-up'!$H$4,$V715-4,0))","v":""},{"$f":"IF(ISERROR($V715),\"\",OFFSET('Smelter Look-up'!$I$4,$V715-4,0))","v":""},{"$nulls":7},{"$f":"IF(ISERROR($V715),\"\",OFFSET('Smelter Look-up'!$C$4,$V715-4,0)&\"\")","v":""},"",{"$f":"IF(B715=\"\",\"\",IF(ISERROR(MATCH($J715,SorP!$B$1:$B$5661,0)),\"\",INDIRECT(\"'SorP'!$A$\"&MATCH($J715,SorP!$B$1:$B$5661,0))))","v":""},null,{"$f":"IF(C715=\"\",NA(),MATCH($B715&$C715,'Smelter Look-up'!$J:$J,0))","v":{"$error":"#N/A"}},null,0,null,null,null,""]
[null,{"$f":"IF(LEN(A716)=0,\"\",INDEX('Smelter Look-up'!$A:$A,MATCH($A716,'Smelter Look-up'!$E:$E,0)))","v":""},{"$f":"IF(LEN(A716)=0,\"\",INDEX('Smelter Look-up'!$C:$C,MATCH($A716,'Smelter Look-up'!$E:$E,0)))","v":""},null,{"$f":"IF(ISERROR($V716),\"\",OFFSET('Smelter Look-up'!$D$4,$V716-4,0)&\"\")","v":""},{"$f":"IF(ISERROR($V716),\"\",OFFSET('Smelter Look-up'!$E$4,$V716-4,0))","v":""},{"$f":"IF(C716=$X$4,\"Enter smelter details\",IF(ISERROR($V716),\"\",OFFSET('Smelter Look-up'!$F$4,$V716-4,0)))","v":""},{"$f":"IF(ISERROR($V716),\"\",OFFSET('Smelter Look-up'!$G$4,$V716-4,0))","v":""},{"$f":"IF(ISERROR($V716),\"\",OFFSET('Smelter Look-up'!$H$4,$V716-4,0))","v":""},{"$f":"IF(ISERROR($V716),\"\",OFFSET('Smelter Look-up'!$I$4,$V716-4,0))","v":""},{"$nulls":7},{"$f":"IF(ISERROR($V716),\"\",OFFSET('Smelter Look-up'!$C$4,$V716-4,0)&\"\")","v":""},"",{"$f":"IF(B716=\"\",\"\",IF(ISERROR(MATCH($J716,SorP!$B$1:$B$5661,0)),\"\",INDIRECT(\"'SorP'!$A$\"&MATCH($J716,SorP!$B$1:$B$5661,0))))","v":""},null,{"$f":"IF(C716=\"\",NA(),MATCH($B716&$C716,'Smelter Look-up'!$J:$J,0))","v":{"$error":"#N/A"}},null,0,null,null,null,""]
[null,{"$f":"IF(LEN(A717)=0,\"\",INDEX('Smelter Look-up'!$A:$A,MATCH($A717,'Smelter Look-up'!$E:$E,0)))","v":""},{"$f":"IF(LEN(A717)=0,\"\",INDEX('Smelter Look-up'!$C:$C,MATCH($A717,'Smelter Look-up'!$E:$E,0)))","v":""},null,{"$f":"IF(ISERROR($V717),\"\",OFFSET('Smelter Look-up'!$D$4,$V717-4,0)&\"\")","v":""},{"$f":"IF(ISERROR($V717),\"\",OFFSET('Smelter Look-up'!$E$4,$V717-4,0))","v":""},{"$f":"IF(C717=$X$4,\"Enter smelter details\",IF(ISERROR($V717),\"\",OFFSET('Smelter Look-up'!$F$4,$V717-4,0)))","v":""},{"$f":"IF(ISERROR($V717),\"\",OFFSET('Smelter Look-up'!$G$4,$V717-4,0))","v":""},{"$f":"IF(ISERROR($V717),\"\",OFFSET('Smelter Look-up'!$H$4,$V717-4,0))","v":""},{"$f":"IF(ISERROR($V717),\"\",OFFSET('Smelter Look-up'!$I$4,$V717-4,0))","v":""},{"$nulls":7},{"$f":"IF(ISERROR($V717),\"\",OFFSET('Smelter Look-up'!$C$4,$V717-4,0)&\"\")","v":""},"",{"$f":"IF(B717=\"\",\"\",IF(ISERROR(MATCH($J717,SorP!$B$1:$B$5661,0)),\"\",INDIRECT(\"'SorP'!$A$\"&MATCH($J717,SorP!$B$1:$B$5661,0))))","v":""},null,{"$f":"IF(C717=\"\",NA(),MATCH($B717&$C717,'Smelter Look-up'!$J:$J,0))","v":{"$error":"#N/A"}},null,0,null,null,null,""]
[null,{"$f":"IF(LEN(A718)=0,\"\",INDEX('Smelter Look-up'!$A:$A,MATCH($A718,'Smelter Look-up'!$E:$E,0)))","v":""},{"$f":"IF(LEN(A718)=0,\"\",INDEX('Smelter Look-up'!$C:$C,MATCH($A718,'Smelter Look-up'!$E:$E,0)))","v":""},null,{"$f":"IF(ISERROR($V718),\"\",OFFSET('Smelter Look-up'!$D$4,$V718-4,0)&\"\")","v":""},{"$f":"IF(ISERROR($V718),\"\",OFFSET('Smelter Look-up'!$E$4,$V718-4,0))","v":""},{"$f":"IF(C718=$X$4,\"Enter smelter details\",IF(ISERROR($V718),\"\",OFFSET('Smelter Look-up'!$F$4,$V718-4,0)))","v":""},{"$f":"IF(ISERROR($V718),\"\",OFFSET('Smelter Look-up'!$G$4,$V718-4,0))","v":""},{"$f":"IF(ISERROR($V718),\"\",OFFSET('Smelter Look-up'!$H$4,$V718-4,0))","v":""},{"$f":"IF(ISERROR($V718),\"\",OFFSET('Smelter Look-up'!$I$4,$V718-4,0))","v":""},{"$nulls":7},{"$f":"IF(ISERROR($V718),\"\",OFFSET('Smelter Look-up'!$C$4,$V718-4,0)&\"\")","v":""},"",{"$f":"IF(B718=\"\",\"\",IF(ISERROR(MATCH($J718,SorP!$B$1:$B$5661,0)),\"\",INDIRECT(\"'SorP'!$A$\"&MATCH($J718,SorP!$B$1:$B$5661,0))))","v":""},null,{"$f":"IF(C718=\"\",NA(),MATCH($B718&$C718,'Smelter Look-up'!$J:$J,0))","v":{"$error":"#N/A"}},null,0,null,null,null,""]
[null,{"$f":"IF(LEN(A719)=0,\"\",INDEX('Smelter Look-up'!$A:$A,MATCH($A719,'Smelter Look-up'!$E:$E,0)))","v":""},{"$f":"IF(LEN(A719)=0,\"\",INDEX('Smelter Look-up'!$C:$C,MATCH($A719,'Smelter Look-up'!$E:$E,0)))","v":""},null,{"$f":"IF(ISERROR($V719),\"\",OFFSET('Smelter Look-up'!$D$4,$V719-4,0)&\"\")","v":""},{"$f":"IF(ISERROR($V719),\"\",OFFSET('Smelter Look-up'!$E$4,$V719-4,0))","v":""},{"$f":"IF(C719=$X$4,\"Enter smelter details\",IF(ISERROR($V719),\"\",OFFSET('Smelter Look-up'!$F$4,$V719-4,0)))","v":""},{"$f":"IF(ISERROR($V719),\"\",OFFSET('Smelter Look-up'!$G$4,$V719-4,0))","v":""},{"$f":"IF(ISERROR($V719),\"\",OFFSET('Smelter Look-up'!$H$4,$V719-4,0))","v":""},{"$f":"IF(ISERROR($V719),\"\",OFFSET('Smelter Look-up'!$I$4,$V719-4,0))","v":""},{"$nulls":7},{"$f":"IF(ISERROR($V719),\"\",OFFSET('Smelter Look-up'!$C$4,$V719-4,0)&\"\")","v":""},"",{"$f":"IF(B719=\"\",\"\",IF(ISERROR(MATCH($J719,SorP!$B$1:$B$5661,0)),\"\",INDIRECT(\"'SorP'!$A$\"&MATCH($J719,SorP!$B$1:$B$5661,0))))","v":""},null,{"$f":"IF(C719=\"\",NA(),MATCH($B719&$C719,'Smelter Look-up'!$J:$J,0))","v":{"$error":"#N/A"}},null,0,null,null,null,""]
[null,{"$f":"IF(LEN(A720)=0,\"\",INDEX('Smelter Look-up'!$A:$A,MATCH($A720,'Smelter Look-up'!$E:$E,0)))","v":""},{"$f":"IF(LEN(A720)=0,\"\",INDEX('Smelter Look-up'!$C:$C,MATCH($A720,'Smelter Look-up'!$E:$E,0)))","v":""},null,{"$f":"IF(ISERROR($V720),\"\",OFFSET('Smelter Look-up'!$D$4,$V720-4,0)&\"\")","v":""},{"$f":"IF(ISERROR($V720),\"\",OFFSET('Smelter Look-up'!$E$4,$V720-4,0))","v":""},{"$f":"IF(C720=$X$4,\"Enter smelter details\",IF(ISERROR($V720),\"\",OFFSET('Smelter Look-up'!$F$4,$V720-4,0)))","v":""},{"$f":"IF(ISERROR($V720),\"\",OFFSET('Smelter Look-up'!$G$4,$V720-4,0))","v":""},{"$f":"IF(ISERROR($V720),\"\",OFFSET('Smelter Look-up'!$H$4,$V720-4,0))","v":""},{"$f":"IF(ISERROR($V720),\"\",OFFSET('Smelter Look-up'!$I$4,$V720-4,0))","v":""},{"$nulls":7},{"$f":"IF(ISERROR($V720),\"\",OFFSET('Smelter Look-up'!$C$4,$V720-4,0)&\"\")","v":""},"",{"$f":"IF(B720=\"\",\"\",IF(ISERROR(MATCH($J720,SorP!$B$1:$B$5661,0)),\"\",INDIRECT(\"'SorP'!$A$\"&MATCH($J720,SorP!$B$1:$B$5661,0))))","v":""},null,{"$f":"IF(C720=\"\",NA(),MATCH($B720&$C720,'Smelter Look-up'!$J:$J,0))","v":{"$error":"#N/A"}},null,0,null,null,null,""]
[null,{"$f":"IF(LEN(A721)=0,\"\",INDEX('Smelter Look-up'!$A:$A,MATCH($A721,'Smelter Look-up'!$E:$E,0)))","v":""},{"$f":"IF(LEN(A721)=0,\"\",INDEX('Smelter Look-up'!$C:$C,MATCH($A721,'Smelter Look-up'!$E:$E,0)))","v":""},null,{"$f":"IF(ISERROR($V721),\"\",OFFSET('Smelter Look-up'!$D$4,$V721-4,0)&\"\")","v":""},{"$f":"IF(ISERROR($V721),\"\",OFFSET('Smelter Look-up'!$E$4,$V721-4,0))","v":""},{"$f":"IF(C721=$X$4,\"Enter smelter details\",IF(ISERROR($V721),\"\",OFFSET('Smelter Look-up'!$F$4,$V721-4,0)))","v":""},{"$f":"IF(ISERROR($V721),\"\",OFFSET('Smelter Look-up'!$G$4,$V721-4,0))","v":""},{"$f":"IF(ISERROR($V721),\"\",OFFSET('Smelter Look-up'!$H$4,$V721-4,0))","v":""},{"$f":"IF(ISERROR($V721),\"\",OFFSET('Smelter Look-up'!$I$4,$V721-4,0))","v":""},{"$nulls":7},{"$f":"IF(ISERROR($V721),\"\",OFFSET('Smelter Look-up'!$C$4,$V721-4,0)&\"\")","v":""},"",{"$f":"IF(B721=\"\",\"\",IF(ISERROR(MATCH($J721,SorP!$B$1:$B$5661,0)),\"\",INDIRECT(\"'SorP'!$A$\"&MATCH($J721,SorP!$B$1:$B$5661,0))))","v":""},null,{"$f":"IF(C721=\"\",NA(),MATCH($B721&$C721,'Smelter Look-up'!$J:$J,0))","v":{"$error":"#N/A"}},null,0,null,null,null,""]
[null,{"$f":"IF(LEN(A722)=0,\"\",INDEX('Smelter Look-up'!$A:$A,MATCH($A722,'Smelter Look-up'!$E:$E,0)))","v":""},{"$f":"IF(LEN(A722)=0,\"\",INDEX('Smelter Look-up'!$C:$C,MATCH($A722,'Smelter Look-up'!$E:$E,0)))","v":""},null,{"$f":"IF(ISERROR($V722),\"\",OFFSET('Smelter Look-up'!$D$4,$V722-4,0)&\"\")","v":""},{"$f":"IF(ISERROR($V722),\"\",OFFSET('Smelter Look-up'!$E$4,$V722-4,0))","v":""},{"$f":"IF(C722=$X$4,\"Enter smelter details\",IF(ISERROR($V722),\"\",OFFSET('Smelter Look-up'!$F$4,$V722-4,0)))","v":""},{"$f":"IF(ISERROR($V722),\"\",OFFSET('Smelter Look-up'!$G$4,$V722-4,0))","v":""},{"$f":"IF(ISERROR($V722),\"\",OFFSET('Smelter Look-up'!$H$4,$V722-4,0))","v":""},{"$f":"IF(ISERROR($V722),\"\",OFFSET('Smelter Look-up'!$I$4,$V722-4,0))","v":""},{"$nulls":7},{"$f":"IF(ISERROR($V722),\"\",OFFSET('Smelter Look-up'!$C$4,$V722-4,0)&\"\")","v":""},"",{"$f":"IF(B722=\"\",\"\",IF(ISERROR(MATCH($J722,SorP!$B$1:$B$5661,0)),\"\",INDIRECT(\"'SorP'!$A$\"&MATCH($J722,SorP!$B$1:$B$5661,0))))","v":""},null,{"$f":"IF(C722=\"\",NA(),MATCH($B722&$C722,'Smelter Look-up'!$J:$J,0))","v":{"$error":"#N/A"}},null,0,null,null,null,""]
[null,{"$f":"IF(LEN(A723)=0,\"\",INDEX('Smelter Look-up'!$A:$A,MATCH($A723,'Smelter Look-up'!$E:$E,0)))","v":""},{"$f":"IF(LEN(A723)=0,\"\",INDEX('Smelter Look-up'!$C:$C,MATCH($A723,'Smelter Look-up'!$E:$E,0)))","v":""},null,{"$f":"IF(ISERROR($V723),\"\",OFFSET('Smelter Look-up'!$D$4,$V723-4,0)&\"\")","v":""},{"$f":"IF(ISERROR($V723),\"\",OFFSET('Smelter Look-up'!$E$4,$V723-4,0))","v":""},{"$f":"IF(C723=$X$4,\"Enter smelter details\",IF(ISERROR($V723),\"\",OFFSET('Smelter Look-up'!$F$4,$V723-4,0)))","v":""},{"$f":"IF(ISERROR($V723),\"\",OFFSET('Smelter Look-up'!$G$4,$V723-4,0))","v":""},{"$f":"IF(ISERROR($V723),\"\",OFFSET('Smelter Look-up'!$H$4,$V723-4,0))","v":""},{"$f":"IF(ISERROR($V723),\"\",OFFSET('Smelter Look-up'!$I$4,$V723-4,0))","v":""},{"$nulls":7},{"$f":"IF(ISERROR($V723),\"\",OFFSET('Smelter Look-up'!$C$4,$V723-4,0)&\"\")","v":""},"",{"$f":"IF(B723=\"\",\"\",IF(ISERROR(MATCH($J723,SorP!$B$1:$B$5661,0)),\"\",INDIRECT(\"'SorP'!$A$\"&MATCH($J723,SorP!$B$1:$B$5661,0))))","v":""},null,{"$f":"IF(C723=\"\",NA(),MATCH($B723&$C723,'Smelter Look-up'!$J:$J,0))","v":{"$error":"#N/A"}},null,0,null,null,null,""]
[null,{"$f":"IF(LEN(A724)=0,\"\",INDEX('Smelter Look-up'!$A:$A,MATCH($A724,'Smelter Look-up'!$E:$E,0)))","v":""},{"$f":"IF(LEN(A724)=0,\"\",INDEX('Smelter Look-up'!$C:$C,MATCH($A724,'Smelter Look-up'!$E:$E,0)))","v":""},null,{"$f":"IF(ISERROR($V724),\"\",OFFSET('Smelter Look-up'!$D$4,$V724-4,0)&\"\")","v":""},{"$f":"IF(ISERROR($V724),\"\",OFFSET('Smelter Look-up'!$E$4,$V724-4,0))","v":""},{"$f":"IF(C724=$X$4,\"Enter smelter details\",IF(ISERROR($V724),\"\",OFFSET('Smelter Look-up'!$F$4,$V724-4,0)))","v":""},{"$f":"IF(ISERROR($V724),\"\",OFFSET('Smelter Look-up'!$G$4,$V724-4,0))","v":""},{"$f":"IF(ISERROR($V724),\"\",OFFSET('Smelter Look-up'!$H$4,$V724-4,0))","v":""},{"$f":"IF(ISERROR($V724),\"\",OFFSET('Smelter Look-up'!$I$4,$V724-4,0))","v":""},{"$nulls":7},{"$f":"IF(ISERROR($V724),\"\",OFFSET('Smelter Look-up'!$C$4,$V724-4,0)&\"\")","v":""},"",{"$f":"IF(B724=\"\",\"\",IF(ISERROR(MATCH($J724,SorP!$B$1:$B$5661,0)),\"\",INDIRECT(\"'SorP'!$A$\"&MATCH($J724,SorP!$B$1:$B$5661,0))))","v":""},null,{"$f":"IF(C724=\"\",NA(),MATCH($B724&$C724,'Smelter Look-up'!$J:$J,0))","v":{"$error":"#N/A"}},null,0,null,null,null,""]
[null,{"$f":"IF(LEN(A725)=0,\"\",INDEX('Smelter Look-up'!$A:$A,MATCH($A725,'Smelter Look-up'!$E:$E,0)))","v":""},{"$f":"IF(LEN(A725)=0,\"\",INDEX('Smelter Look-up'!$C:$C,MATCH($A725,'Smelter Look-up'!$E:$E,0)))","v":""},null,{"$f":"IF(ISERROR($V725),\"\",OFFSET('Smelter Look-up'!$D$4,$V725-4,0)&\"\")","v":""},{"$f":"IF(ISERROR($V725),\"\",OFFSET('Smelter Look-up'!$E$4,$V725-4,0))","v":""},{"$f":"IF(C725=$X$4,\"Enter smelter details\",IF(ISERROR($V725),\"\",OFFSET('Smelter Look-up'!$F$4,$V725-4,0)))","v":""},{"$f":"IF(ISERROR($V725),\"\",OFFSET('Smelter Look-up'!$G$4,$V725-4,0))","v":""},{"$f":"IF(ISERROR($V725),\"\",OFFSET('Smelter Look-up'!$H$4,$V725-4,0))","v":""},{"$f":"IF(ISERROR($V725),\"\",OFFSET('Smelter Look-up'!$I$4,$V725-4,0))","v":""},{"$nulls":7},{"$f":"IF(ISERROR($V725),\"\",OFFSET('Smelter Look-up'!$C$4,$V725-4,0)&\"\")","v":""},"",{"$f":"IF(B725=\"\",\"\",IF(ISERROR(MATCH($J725,SorP!$B$1:$B$5661,0)),\"\",INDIRECT(\"'SorP'!$A$\"&MATCH($J725,SorP!$B$1:$B$5661,0))))","v":""},null,{"$f":"IF(C725=\"\",NA(),MATCH($B725&$C725,'Smelter Look-up'!$J:$J,0))","v":{"$error":"#N/A"}},null,0,null,null,null,""]
[null,{"$f":"IF(LEN(A726)=0,\"\",INDEX('Smelter Look-up'!$A:$A,MATCH($A726,'Smelter Look-up'!$E:$E,0)))","v":""},{"$f":"IF(LEN(A726)=0,\"\",INDEX('Smelter Look-up'!$C:$C,MATCH($A726,'Smelter Look-up'!$E:$E,0)))","v":""},null,{"$f":"IF(ISERROR($V726),\"\",OFFSET('Smelter Look-up'!$D$4,$V726-4,0)&\"\")","v":""},{"$f":"IF(ISERROR($V726),\"\",OFFSET('Smelter Look-up'!$E$4,$V726-4,0))","v":""},{"$f":"IF(C726=$X$4,\"Enter smelter details\",IF(ISERROR($V726),\"\",OFFSET('Smelter Look-up'!$F$4,$V726-4,0)))","v":""},{"$f":"IF(ISERROR($V726),\"\",OFFSET('Smelter Look-up'!$G$4,$V726-4,0))","v":""},{"$f":"IF(ISERROR($V726),\"\",OFFSET('Smelter Look-up'!$H$4,$V726-4,0))","v":""},{"$f":"IF(ISERROR($V726),\"\",OFFSET('Smelter Look-up'!$I$4,$V726-4,0))","v":""},{"$nulls":7},{"$f":"IF(ISERROR($V726),\"\",OFFSET('Smelter Look-up'!$C$4,$V726-4,0)&\"\")","v":""},"",{"$f":"IF(B726=\"\",\"\",IF(ISERROR(MATCH($J726,SorP!$B$1:$B$5661,0)),\"\",INDIRECT(\"'SorP'!$A$\"&MATCH($J726,SorP!$B$1:$B$5661,0))))","v":""},null,{"$f":"IF(C726=\"\",NA(),MATCH($B726&$C726,'Smelter Look-up'!$J:$J,0))","v":{"$error":"#N/A"}},null,0,null,null,null,""]
[null,{"$f":"IF(LEN(A727)=0,\"\",INDEX('Smelter Look-up'!$A:$A,MATCH($A727,'Smelter Look-up'!$E:$E,0)))","v":""},{"$f":"IF(LEN(A727)=0,\"\",INDEX('Smelter Look-up'!$C:$C,MATCH($A727,'Smelter Look-up'!$E:$E,0)))","v":""},null,{"$f":"IF(ISERROR($V727),\"\",OFFSET('Smelter Look-up'!$D$4,$V727-4,0)&\"\")","v":""},{"$f":"IF(ISERROR($V727),\"\",OFFSET('Smelter Look-up'!$E$4,$V727-4,0))","v":""},{"$f":"IF(C727=$X$4,\"Enter smelter details\",IF(ISERROR($V727),\"\",OFFSET('Smelter Look-up'!$F$4,$V727-4,0)))","v":""},{"$f":"IF(ISERROR($V727),\"\",OFFSET('Smelter Look-up'!$G$4,$V727-4,0))","v":""},{"$f":"IF(ISERROR($V727),\"\",OFFSET('Smelter Look-up'!$H$4,$V727-4,0))","v":""},{"$f":"IF(ISERROR($V727),\"\",OFFSET('Smelter Look-up'!$I$4,$V727-4,0))","v":""},{"$nulls":7},{"$f":"IF(ISERROR($V727),\"\",OFFSET('Smelter Look-up'!$C$4,$V727-4,0)&\"\")","v":""},"",{"$f":"IF(B727=\"\",\"\",IF(ISERROR(MATCH($J727,SorP!$B$1:$B$5661,0)),\"\",INDIRECT(\"'SorP'!$A$\"&MATCH($J727,SorP!$B$1:$B$5661,0))))","v":""},null,{"$f":"IF(C727=\"\",NA(),MATCH($B727&$C727,'Smelter Look-up'!$J:$J,0))","v":{"$error":"#N/A"}},null,0,null,null,null,""]
[null,{"$f":"IF(LEN(A728)=0,\"\",INDEX('Smelter Look-up'!$A:$A,MATCH($A728,'Smelter Look-up'!$E:$E,0)))","v":""},{"$f":"IF(LEN(A728)=0,\"\",INDEX('Smelter Look-up'!$C:$C,MATCH($A728,'Smelter Look-up'!$E:$E,0)))","v":""},null,{"$f":"IF(ISERROR($V728),\"\",OFFSET('Smelter Look-up'!$D$4,$V728-4,0)&\"\")","v":""},{"$f":"IF(ISERROR($V728),\"\",OFFSET('Smelter Look-up'!$E$4,$V728-4,0))","v":""},{"$f":"IF(C728=$X$4,\"Enter smelter details\",IF(ISERROR($V728),\"\",OFFSET('Smelter Look-up'!$F$4,$V728-4,0)))","v":""},{"$f":"IF(ISERROR($V728),\"\",OFFSET('Smelter Look-up'!$G$4,$V728-4,0))","v":""},{"$f":"IF(ISERROR($V728),\"\",OFFSET('Smelter Look-up'!$H$4,$V728-4,0))","v":""},{"$f":"IF(ISERROR($V728),\"\",OFFSET('Smelter Look-up'!$I$4,$V728-4,0))","v":""},{"$nulls":7},{"$f":"IF(ISERROR($V728),\"\",OFFSET('Smelter Look-up'!$C$4,$V728-4,0)&\"\")","v":""},"",{"$f":"IF(B728=\"\",\"\",IF(ISERROR(MATCH($J728,SorP!$B$1:$B$5661,0)),\"\",INDIRECT(\"'SorP'!$A$\"&MATCH($J728,SorP!$B$1:$B$5661,0))))","v":""},null,{"$f":"IF(C728=\"\",NA(),MATCH($B728&$C728,'Smelter Look-up'!$J:$J,0))","v":{"$error":"#N/A"}},null,0,null,null,null,""]
[null,{"$f":"IF(LEN(A729)=0,\"\",INDEX('Smelter Look-up'!$A:$A,MATCH($A729,'Smelter Look-up'!$E:$E,0)))","v":""},{"$f":"IF(LEN(A729)=0,\"\",INDEX('Smelter Look-up'!$C:$C,MATCH($A729,'Smelter Look-up'!$E:$E,0)))","v":""},null,{"$f":"IF(ISERROR($V729),\"\",OFFSET('Smelter Look-up'!$D$4,$V729-4,0)&\"\")","v":""},{"$f":"IF(ISERROR($V729),\"\",OFFSET('Smelter Look-up'!$E$4,$V729-4,0))","v":""},{"$f":"IF(C729=$X$4,\"Enter smelter details\",IF(ISERROR($V729),\"\",OFFSET('Smelter Look-up'!$F$4,$V729-4,0)))","v":""},{"$f":"IF(ISERROR($V729),\"\",OFFSET('Smelter Look-up'!$G$4,$V729-4,0))","v":""},{"$f":"IF(ISERROR($V729),\"\",OFFSET('Smelter Look-up'!$H$4,$V729-4,0))","v":""},{"$f":"IF(ISERROR($V729),\"\",OFFSET('Smelter Look-up'!$I$4,$V729-4,0))","v":""},{"$nulls":7},{"$f":"IF(ISERROR($V729),\"\",OFFSET('Smelter Look-up'!$C$4,$V729-4,0)&\"\")","v":""},"",{"$f":"IF(B729=\"\",\"\",IF(ISERROR(MATCH($J729,SorP!$B$1:$B$5661,0)),\"\",INDIRECT(\"'SorP'!$A$\"&MATCH($J729,SorP!$B$1:$B$5661,0))))","v":""},null,{"$f":"IF(C729=\"\",NA(),MATCH($B729&$C729,'Smelter Look-up'!$J:$J,0))","v":{"$error":"#N/A"}},null,0,null,null,null,""]
[null,{"$f":"IF(LEN(A730)=0,\"\",INDEX('Smelter Look-up'!$A:$A,MATCH($A730,'Smelter Look-up'!$E:$E,0)))","v":""},{"$f":"IF(LEN(A730)=0,\"\",INDEX('Smelter Look-up'!$C:$C,MATCH($A730,'Smelter Look-up'!$E:$E,0)))","v":""},null,{"$f":"IF(ISERROR($V730),\"\",OFFSET('Smelter Look-up'!$D$4,$V730-4,0)&\"\")","v":""},{"$f":"IF(ISERROR($V730),\"\",OFFSET('Smelter Look-up'!$E$4,$V730-4,0))","v":""},{"$f":"IF(C730=$X$4,\"Enter smelter details\",IF(ISERROR($V730),\"\",OFFSET('Smelter Look-up'!$F$4,$V730-4,0)))","v":""},{"$f":"IF(ISERROR($V730),\"\",OFFSET('Smelter Look-up'!$G$4,$V730-4,0))","v":""},{"$f":"IF(ISERROR($V730),\"\",OFFSET('Smelter Look-up'!$H$4,$V730-4,0))","v":""},{"$f":"IF(ISERROR($V730),\"\",OFFSET('Smelter Look-up'!$I$4,$V730-4,0))","v":""},{"$nulls":7},{"$f":"IF(ISERROR($V730),\"\",OFFSET('Smelter Look-up'!$C$4,$V730-4,0)&\"\")","v":""},"",{"$f":"IF(B730=\"\",\"\",IF(ISERROR(MATCH($J730,SorP!$B$1:$B$5661,0)),\"\",INDIRECT(\"'SorP'!$A$\"&MATCH($J730,SorP!$B$1:$B$5661,0))))","v":""},null,{"$f":"IF(C730=\"\",NA(),MATCH($B730&$C730,'Smelter Look-up'!$J:$J,0))","v":{"$error":"#N/A"}},null,0,null,null,null,""]
[null,{"$f":"IF(LEN(A731)=0,\"\",INDEX('Smelter Look-up'!$A:$A,MATCH($A731,'Smelter Look-up'!$E:$E,0)))","v":""},{"$f":"IF(LEN(A731)=0,\"\",INDEX('Smelter Look-up'!$C:$C,MATCH($A731,'Smelter Look-up'!$E:$E,0)))","v":""},null,{"$f":"IF(ISERROR($V731),\"\",OFFSET('Smelter Look-up'!$D$4,$V731-4,0)&\"\")","v":""},{"$f":"IF(ISERROR($V731),\"\",OFFSET('Smelter Look-up'!$E$4,$V731-4,0))","v":""},{"$f":"IF(C731=$X$4,\"Enter smelter details\",IF(ISERROR($V731),\"\",OFFSET('Smelter Look-up'!$F$4,$V731-4,0)))","v":""},{"$f":"IF(ISERROR($V731),\"\",OFFSET('Smelter Look-up'!$G$4,$V731-4,0))","v":""},{"$f":"IF(ISERROR($V731),\"\",OFFSET('Smelter Look-up'!$H$4,$V731-4,0))","v":""},{"$f":"IF(ISERROR($V731),\"\",OFFSET('Smelter Look-up'!$I$4,$V731-4,0))","v":""},{"$nulls":7},{"$f":"IF(ISERROR($V731),\"\",OFFSET('Smelter Look-up'!$C$4,$V731-4,0)&\"\")","v":""},"",{"$f":"IF(B731=\"\",\"\",IF(ISERROR(MATCH($J731,SorP!$B$1:$B$5661,0)),\"\",INDIRECT(\"'SorP'!$A$\"&MATCH($J731,SorP!$B$1:$B$5661,0))))","v":""},null,{"$f":"IF(C731=\"\",NA(),MATCH($B731&$C731,'Smelter Look-up'!$J:$J,0))","v":{"$error":"#N/A"}},null,0,null,null,null,""]
[null,{"$f":"IF(LEN(A732)=0,\"\",INDEX('Smelter Look-up'!$A:$A,MATCH($A732,'Smelter Look-up'!$E:$E,0)))","v":""},{"$f":"IF(LEN(A732)=0,\"\",INDEX('Smelter Look-up'!$C:$C,MATCH($A732,'Smelter Look-up'!$E:$E,0)))","v":""},null,{"$f":"IF(ISERROR($V732),\"\",OFFSET('Smelter Look-up'!$D$4,$V732-4,0)&\"\")","v":""},{"$f":"IF(ISERROR($V732),\"\",OFFSET('Smelter Look-up'!$E$4,$V732-4,0))","v":""},{"$f":"IF(C732=$X$4,\"Enter smelter details\",IF(ISERROR($V732),\"\",OFFSET('Smelter Look-up'!$F$4,$V732-4,0)))","v":""},{"$f":"IF(ISERROR($V732),\"\",OFFSET('Smelter Look-up'!$G$4,$V732-4,0))","v":""},{"$f":"IF(ISERROR($V732),\"\",OFFSET('Smelter Look-up'!$H$4,$V732-4,0))","v":""},{"$f":"IF(ISERROR($V732),\"\",OFFSET('Smelter Look-up'!$I$4,$V732-4,0))","v":""},{"$nulls":7},{"$f":"IF(ISERROR($V732),\"\",OFFSET('Smelter Look-up'!$C$4,$V732-4,0)&\"\")","v":""},"",{"$f":"IF(B732=\"\",\"\",IF(ISERROR(MATCH($J732,SorP!$B$1:$B$5661,0)),\"\",INDIRECT(\"'SorP'!$A$\"&MATCH($J732,SorP!$B$1:$B$5661,0))))","v":""},null,{"$f":"IF(C732=\"\",NA(),MATCH($B732&$C732,'Smelter Look-up'!$J:$J,0))","v":{"$error":"#N/A"}},null,0,null,null,null,""]
[null,{"$f":"IF(LEN(A733)=0,\"\",INDEX('Smelter Look-up'!$A:$A,MATCH($A733,'Smelter Look-up'!$E:$E,0)))","v":""},{"$f":"IF(LEN(A733)=0,\"\",INDEX('Smelter Look-up'!$C:$C,MATCH($A733,'Smelter Look-up'!$E:$E,0)))","v":""},null,{"$f":"IF(ISERROR($V733),\"\",OFFSET('Smelter Look-up'!$D$4,$V733-4,0)&\"\")","v":""},{"$f":"IF(ISERROR($V733),\"\",OFFSET('Smelter Look-up'!$E$4,$V733-4,0))","v":""},{"$f":"IF(C733=$X$4,\"Enter smelter details\",IF(ISERROR($V733),\"\",OFFSET('Smelter Look-up'!$F$4,$V733-4,0)))","v":""},{"$f":"IF(ISERROR($V733),\"\",OFFSET('Smelter Look-up'!$G$4,$V733-4,0))","v":""},{"$f":"IF(ISERROR($V733),\"\",OFFSET('Smelter Look-up'!$H$4,$V733-4,0))","v":""},{"$f":"IF(ISERROR($V733),\"\",OFFSET('Smelter Look-up'!$I$4,$V733-4,0))","v":""},{"$nulls":7},{"$f":"IF(ISERROR($V733),\"\",OFFSET('Smelter Look-up'!$C$4,$V733-4,0)&\"\")","v":""},"",{"$f":"IF(B733=\"\",\"\",IF(ISERROR(MATCH($J733,SorP!$B$1:$B$5661,0)),\"\",INDIRECT(\"'SorP'!$A$\"&MATCH($J733,SorP!$B$1:$B$5661,0))))","v":""},null,{"$f":"IF(C733=\"\",NA(),MATCH($B733&$C733,'Smelter Look-up'!$J:$J,0))","v":{"$error":"#N/A"}},null,0,null,null,null,""]
[null,{"$f":"IF(LEN(A734)=0,\"\",INDEX('Smelter Look-up'!$A:$A,MATCH($A734,'Smelter Look-up'!$E:$E,0)))","v":""},{"$f":"IF(LEN(A734)=0,\"\",INDEX('Smelter Look-up'!$C:$C,MATCH($A734,'Smelter Look-up'!$E:$E,0)))","v":""},null,{"$f":"IF(ISERROR($V734),\"\",OFFSET('Smelter Look-up'!$D$4,$V734-4,0)&\"\")","v":""},{"$f":"IF(ISERROR($V734),\"\",OFFSET('Smelter Look-up'!$E$4,$V734-4,0))","v":""},{"$f":"IF(C734=$X$4,\"Enter smelter details\",IF(ISERROR($V734),\"\",OFFSET('Smelter Look-up'!$F$4,$V734-4,0)))","v":""},{"$f":"IF(ISERROR($V734),\"\",OFFSET('Smelter Look-up'!$G$4,$V734-4,0))","v":""},{"$f":"IF(ISERROR($V734),\"\",OFFSET('Smelter Look-up'!$H$4,$V734-4,0))","v":""},{"$f":"IF(ISERROR($V734),\"\",OFFSET('Smelter Look-up'!$I$4,$V734-4,0))","v":""},{"$nulls":7},{"$f":"IF(ISERROR($V734),\"\",OFFSET('Smelter Look-up'!$C$4,$V734-4,0)&\"\")","v":""},"",{"$f":"IF(B734=\"\",\"\",IF(ISERROR(MATCH($J734,SorP!$B$1:$B$5661,0)),\"\",INDIRECT(\"'SorP'!$A$\"&MATCH($J734,SorP!$B$1:$B$5661,0))))","v":""},null,{"$f":"IF(C734=\"\",NA(),MATCH($B734&$C734,'Smelter Look-up'!$J:$J,0))","v":{"$error":"#N/A"}},null,0,null,null,null,""]
[null,{"$f":"IF(LEN(A735)=0,\"\",INDEX('Smelter Look-up'!$A:$A,MATCH($A735,'Smelter Look-up'!$E:$E,0)))","v":""},{"$f":"IF(LEN(A735)=0,\"\",INDEX('Smelter Look-up'!$C:$C,MATCH($A735,'Smelter Look-up'!$E:$E,0)))","v":""},null,{"$f":"IF(ISERROR($V735),\"\",OFFSET('Smelter Look-up'!$D$4,$V735-4,0)&\"\")","v":""},{"$f":"IF(ISERROR($V735),\"\",OFFSET('Smelter Look-up'!$E$4,$V735-4,0))","v":""},{"$f":"IF(C735=$X$4,\"Enter smelter details\",IF(ISERROR($V735),\"\",OFFSET('Smelter Look-up'!$F$4,$V735-4,0)))","v":""},{"$f":"IF(ISERROR($V735),\"\",OFFSET('Smelter Look-up'!$G$4,$V735-4,0))","v":""},{"$f":"IF(ISERROR($V735),\"\",OFFSET('Smelter Look-up'!$H$4,$V735-4,0))","v":""},{"$f":"IF(ISERROR($V735),\"\",OFFSET('Smelter Look-up'!$I$4,$V735-4,0))","v":""},{"$nulls":7},{"$f":"IF(ISERROR($V735),\"\",OFFSET('Smelter Look-up'!$C$4,$V735-4,0)&\"\")","v":""},"",{"$f":"IF(B735=\"\",\"\",IF(ISERROR(MATCH($J735,SorP!$B$1:$B$5661,0)),\"\",INDIRECT(\"'SorP'!$A$\"&MATCH($J735,SorP!$B$1:$B$5661,0))))","v":""},null,{"$f":"IF(C735=\"\",NA(),MATCH($B735&$C735,'Smelter Look-up'!$J:$J,0))","v":{"$error":"#N/A"}},null,0,null,null,null,""]
[null,{"$f":"IF(LEN(A736)=0,\"\",INDEX('Smelter Look-up'!$A:$A,MATCH($A736,'Smelter Look-up'!$E:$E,0)))","v":""},{"$f":"IF(LEN(A736)=0,\"\",INDEX('Smelter Look-up'!$C:$C,MATCH($A736,'Smelter Look-up'!$E:$E,0)))","v":""},null,{"$f":"IF(ISERROR($V736),\"\",OFFSET('Smelter Look-up'!$D$4,$V736-4,0)&\"\")","v":""},{"$f":"IF(ISERROR($V736),\"\",OFFSET('Smelter Look-up'!$E$4,$V736-4,0))","v":""},{"$f":"IF(C736=$X$4,\"Enter smelter details\",IF(ISERROR($V736),\"\",OFFSET('Smelter Look-up'!$F$4,$V736-4,0)))","v":""},{"$f":"IF(ISERROR($V736),\"\",OFFSET('Smelter Look-up'!$G$4,$V736-4,0))","v":""},{"$f":"IF(ISERROR($V736),\"\",OFFSET('Smelter Look-up'!$H$4,$V736-4,0))","v":""},{"$f":"IF(ISERROR($V736),\"\",OFFSET('Smelter Look-up'!$I$4,$V736-4,0))","v":""},{"$nulls":7},{"$f":"IF(ISERROR($V736),\"\",OFFSET('Smelter Look-up'!$C$4,$V736-4,0)&\"\")","v":""},"",{"$f":"IF(B736=\"\",\"\",IF(ISERROR(MATCH($J736,SorP!$B$1:$B$5661,0)),\"\",INDIRECT(\"'SorP'!$A$\"&MATCH($J736,SorP!$B$1:$B$5661,0))))","v":""},null,{"$f":"IF(C736=\"\",NA(),MATCH($B736&$C736,'Smelter Look-up'!$J:$J,0))","v":{"$error":"#N/A"}},null,0,null,null,null,""]
[null,{"$f":"IF(LEN(A737)=0,\"\",INDEX('Smelter Look-up'!$A:$A,MATCH($A737,'Smelter Look-up'!$E:$E,0)))","v":""},{"$f":"IF(LEN(A737)=0,\"\",INDEX('Smelter Look-up'!$C:$C,MATCH($A737,'Smelter Look-up'!$E:$E,0)))","v":""},null,{"$f":"IF(ISERROR($V737),\"\",OFFSET('Smelter Look-up'!$D$4,$V737-4,0)&\"\")","v":""},{"$f":"IF(ISERROR($V737),\"\",OFFSET('Smelter Look-up'!$E$4,$V737-4,0))","v":""},{"$f":"IF(C737=$X$4,\"Enter smelter details\",IF(ISERROR($V737),\"\",OFFSET('Smelter Look-up'!$F$4,$V737-4,0)))","v":""},{"$f":"IF(ISERROR($V737),\"\",OFFSET('Smelter Look-up'!$G$4,$V737-4,0))","v":""},{"$f":"IF(ISERROR($V737),\"\",OFFSET('Smelter Look-up'!$H$4,$V737-4,0))","v":""},{"$f":"IF(ISERROR($V737),\"\",OFFSET('Smelter Look-up'!$I$4,$V737-4,0))","v":""},{"$nulls":7},{"$f":"IF(ISERROR($V737),\"\",OFFSET('Smelter Look-up'!$C$4,$V737-4,0)&\"\")","v":""},"",{"$f":"IF(B737=\"\",\"\",IF(ISERROR(MATCH($J737,SorP!$B$1:$B$5661,0)),\"\",INDIRECT(\"'SorP'!$A$\"&MATCH($J737,SorP!$B$1:$B$5661,0))))","v":""},null,{"$f":"IF(C737=\"\",NA(),MATCH($B737&$C737,'Smelter Look-up'!$J:$J,0))","v":{"$error":"#N/A"}},null,0,null,null,null,""]
[null,{"$f":"IF(LEN(A738)=0,\"\",INDEX('Smelter Look-up'!$A:$A,MATCH($A738,'Smelter Look-up'!$E:$E,0)))","v":""},{"$f":"IF(LEN(A738)=0,\"\",INDEX('Smelter Look-up'!$C:$C,MATCH($A738,'Smelter Look-up'!$E:$E,0)))","v":""},null,{"$f":"IF(ISERROR($V738),\"\",OFFSET('Smelter Look-up'!$D$4,$V738-4,0)&\"\")","v":""},{"$f":"IF(ISERROR($V738),\"\",OFFSET('Smelter Look-up'!$E$4,$V738-4,0))","v":""},{"$f":"IF(C738=$X$4,\"Enter smelter details\",IF(ISERROR($V738),\"\",OFFSET('Smelter Look-up'!$F$4,$V738-4,0)))","v":""},{"$f":"IF(ISERROR($V738),\"\",OFFSET('Smelter Look-up'!$G$4,$V738-4,0))","v":""},{"$f":"IF(ISERROR($V738),\"\",OFFSET('Smelter Look-up'!$H$4,$V738-4,0))","v":""},{"$f":"IF(ISERROR($V738),\"\",OFFSET('Smelter Look-up'!$I$4,$V738-4,0))","v":""},{"$nulls":7},{"$f":"IF(ISERROR($V738),\"\",OFFSET('Smelter Look-up'!$C$4,$V738-4,0)&\"\")","v":""},"",{"$f":"IF(B738=\"\",\"\",IF(ISERROR(MATCH($J738,SorP!$B$1:$B$5661,0)),\"\",INDIRECT(\"'SorP'!$A$\"&MATCH($J738,SorP!$B$1:$B$5661,0))))","v":""},null,{"$f":"IF(C738=\"\",NA(),MATCH($B738&$C738,'Smelter Look-up'!$J:$J,0))","v":{"$error":"#N/A"}},null,0,null,null,null,""]
[null,{"$f":"IF(LEN(A739)=0,\"\",INDEX('Smelter Look-up'!$A:$A,MATCH($A739,'Smelter Look-up'!$E:$E,0)))","v":""},{"$f":"IF(LEN(A739)=0,\"\",INDEX('Smelter Look-up'!$C:$C,MATCH($A739,'Smelter Look-up'!$E:$E,0)))","v":""},null,{"$f":"IF(ISERROR($V739),\"\",OFFSET('Smelter Look-up'!$D$4,$V739-4,0)&\"\")","v":""},{"$f":"IF(ISERROR($V739),\"\",OFFSET('Smelter Look-up'!$E$4,$V739-4,0))","v":""},{"$f":"IF(C739=$X$4,\"Enter smelter details\",IF(ISERROR($V739),\"\",OFFSET('Smelter Look-up'!$F$4,$V739-4,0)))","v":""},{"$f":"IF(ISERROR($V739),\"\",OFFSET('Smelter Look-up'!$G$4,$V739-4,0))","v":""},{"$f":"IF(ISERROR($V739),\"\",OFFSET('Smelter Look-up'!$H$4,$V739-4,0))","v":""},{"$f":"IF(ISERROR($V739),\"\",OFFSET('Smelter Look-up'!$I$4,$V739-4,0))","v":""},{"$nulls":7},{"$f":"IF(ISERROR($V739),\"\",OFFSET('Smelter Look-up'!$C$4,$V739-4,0)&\"\")","v":""},"",{"$f":"IF(B739=\"\",\"\",IF(ISERROR(MATCH($J739,SorP!$B$1:$B$5661,0)),\"\",INDIRECT(\"'SorP'!$A$\"&MATCH($J739,SorP!$B$1:$B$5661,0))))","v":""},null,{"$f":"IF(C739=\"\",NA(),MATCH($B739&$C739,'Smelter Look-up'!$J:$J,0))","v":{"$error":"#N/A"}},null,0,null,null,null,""]
[null,{"$f":"IF(LEN(A740)=0,\"\",INDEX('Smelter Look-up'!$A:$A,MATCH($A740,'Smelter Look-up'!$E:$E,0)))","v":""},{"$f":"IF(LEN(A740)=0,\"\",INDEX('Smelter Look-up'!$C:$C,MATCH($A740,'Smelter Look-up'!$E:$E,0)))","v":""},null,{"$f":"IF(ISERROR($V740),\"\",OFFSET('Smelter Look-up'!$D$4,$V740-4,0)&\"\")","v":""},{"$f":"IF(ISERROR($V740),\"\",OFFSET('Smelter Look-up'!$E$4,$V740-4,0))","v":""},{"$f":"IF(C740=$X$4,\"Enter smelter details\",IF(ISERROR($V740),\"\",OFFSET('Smelter Look-up'!$F$4,$V740-4,0)))","v":""},{"$f":"IF(ISERROR($V740),\"\",OFFSET('Smelter Look-up'!$G$4,$V740-4,0))","v":""},{"$f":"IF(ISERROR($V740),\"\",OFFSET('Smelter Look-up'!$H$4,$V740-4,0))","v":""},{"$f":"IF(ISERROR($V740),\"\",OFFSET('Smelter Look-up'!$I$4,$V740-4,0))","v":""},{"$nulls":7},{"$f":"IF(ISERROR($V740),\"\",OFFSET('Smelter Look-up'!$C$4,$V740-4,0)&\"\")","v":""},"",{"$f":"IF(B740=\"\",\"\",IF(ISERROR(MATCH($J740,SorP!$B$1:$B$5661,0)),\"\",INDIRECT(\"'SorP'!$A$\"&MATCH($J740,SorP!$B$1:$B$5661,0))))","v":""},null,{"$f":"IF(C740=\"\",NA(),MATCH($B740&$C740,'Smelter Look-up'!$J:$J,0))","v":{"$error":"#N/A"}},null,0,null,null,null,""]
[null,{"$f":"IF(LEN(A741)=0,\"\",INDEX('Smelter Look-up'!$A:$A,MATCH($A741,'Smelter Look-up'!$E:$E,0)))","v":""},{"$f":"IF(LEN(A741)=0,\"\",INDEX('Smelter Look-up'!$C:$C,MATCH($A741,'Smelter Look-up'!$E:$E,0)))","v":""},null,{"$f":"IF(ISERROR($V741),\"\",OFFSET('Smelter Look-up'!$D$4,$V741-4,0)&\"\")","v":""},{"$f":"IF(ISERROR($V741),\"\",OFFSET('Smelter Look-up'!$E$4,$V741-4,0))","v":""},{"$f":"IF(C741=$X$4,\"Enter smelter details\",IF(ISERROR($V741),\"\",OFFSET('Smelter Look-up'!$F$4,$V741-4,0)))","v":""},{"$f":"IF(ISERROR($V741),\"\",OFFSET('Smelter Look-up'!$G$4,$V741-4,0))","v":""},{"$f":"IF(ISERROR($V741),\"\",OFFSET('Smelter Look-up'!$H$4,$V741-4,0))","v":""},{"$f":"IF(ISERROR($V741),\"\",OFFSET('Smelter Look-up'!$I$4,$V741-4,0))","v":""},{"$nulls":7},{"$f":"IF(ISERROR($V741),\"\",OFFSET('Smelter Look-up'!$C$4,$V741-4,0)&\"\")","v":""},"",{"$f":"IF(B741=\"\",\"\",IF(ISERROR(MATCH($J741,SorP!$B$1:$B$5661,0)),\"\",INDIRECT(\"'SorP'!$A$\"&MATCH($J741,SorP!$B$1:$B$5661,0))))","v":""},null,{"$f":"IF(C741=\"\",NA(),MATCH($B741&$C741,'Smelter Look-up'!$J:$J,0))","v":{"$error":"#N/A"}},null,0,null,null,null,""]
[null,{"$f":"IF(LEN(A742)=0,\"\",INDEX('Smelter Look-up'!$A:$A,MATCH($A742,'Smelter Look-up'!$E:$E,0)))","v":""},{"$f":"IF(LEN(A742)=0,\"\",INDEX('Smelter Look-up'!$C:$C,MATCH($A742,'Smelter Look-up'!$E:$E,0)))","v":""},null,{"$f":"IF(ISERROR($V742),\"\",OFFSET('Smelter Look-up'!$D$4,$V742-4,0)&\"\")","v":""},{"$f":"IF(ISERROR($V742),\"\",OFFSET('Smelter Look-up'!$E$4,$V742-4,0))","v":""},{"$f":"IF(C742=$X$4,\"Enter smelter details\",IF(ISERROR($V742),\"\",OFFSET('Smelter Look-up'!$F$4,$V742-4,0)))","v":""},{"$f":"IF(ISERROR($V742),\"\",OFFSET('Smelter Look-up'!$G$4,$V742-4,0))","v":""},{"$f":"IF(ISERROR($V742),\"\",OFFSET('Smelter Look-up'!$H$4,$V742-4,0))","v":""},{"$f":"IF(ISERROR($V742),\"\",OFFSET('Smelter Look-up'!$I$4,$V742-4,0))","v":""},{"$nulls":7},{"$f":"IF(ISERROR($V742),\"\",OFFSET('Smelter Look-up'!$C$4,$V742-4,0)&\"\")","v":""},"",{"$f":"IF(B742=\"\",\"\",IF(ISERROR(MATCH($J742,SorP!$B$1:$B$5661,0)),\"\",INDIRECT(\"'SorP'!$A$\"&MATCH($J742,SorP!$B$1:$B$5661,0))))","v":""},null,{"$f":"IF(C742=\"\",NA(),MATCH($B742&$C742,'Smelter Look-up'!$J:$J,0))","v":{"$error":"#N/A"}},null,0,null,null,null,""]
[null,{"$f":"IF(LEN(A743)=0,\"\",INDEX('Smelter Look-up'!$A:$A,MATCH($A743,'Smelter Look-up'!$E:$E,0)))","v":""},{"$f":"IF(LEN(A743)=0,\"\",INDEX('Smelter Look-up'!$C:$C,MATCH($A743,'Smelter Look-up'!$E:$E,0)))","v":""},null,{"$f":"IF(ISERROR($V743),\"\",OFFSET('Smelter Look-up'!$D$4,$V743-4,0)&\"\")","v":""},{"$f":"IF(ISERROR($V743),\"\",OFFSET('Smelter Look-up'!$E$4,$V743-4,0))","v":""},{"$f":"IF(C743=$X$4,\"Enter smelter details\",IF(ISERROR($V743),\"\",OFFSET('Smelter Look-up'!$F$4,$V743-4,0)))","v":""},{"$f":"IF(ISERROR($V743),\"\",OFFSET('Smelter Look-up'!$G$4,$V743-4,0))","v":""},{"$f":"IF(ISERROR($V743),\"\",OFFSET('Smelter Look-up'!$H$4,$V743-4,0))","v":""},{"$f":"IF(ISERROR($V743),\"\",OFFSET('Smelter Look-up'!$I$4,$V743-4,0))","v":""},{"$nulls":7},{"$f":"IF(ISERROR($V743),\"\",OFFSET('Smelter Look-up'!$C$4,$V743-4,0)&\"\")","v":""},"",{"$f":"IF(B743=\"\",\"\",IF(ISERROR(MATCH($J743,SorP!$B$1:$B$5661,0)),\"\",INDIRECT(\"'SorP'!$A$\"&MATCH($J743,SorP!$B$1:$B$5661,0))))","v":""},null,{"$f":"IF(C743=\"\",NA(),MATCH($B743&$C743,'Smelter Look-up'!$J:$J,0))","v":{"$error":"#N/A"}},null,0,null,null,null,""]
[null,{"$f":"IF(LEN(A744)=0,\"\",INDEX('Smelter Look-up'!$A:$A,MATCH($A744,'Smelter Look-up'!$E:$E,0)))","v":""},{"$f":"IF(LEN(A744)=0,\"\",INDEX('Smelter Look-up'!$C:$C,MATCH($A744,'Smelter Look-up'!$E:$E,0)))","v":""},null,{"$f":"IF(ISERROR($V744),\"\",OFFSET('Smelter Look-up'!$D$4,$V744-4,0)&\"\")","v":""},{"$f":"IF(ISERROR($V744),\"\",OFFSET('Smelter Look-up'!$E$4,$V744-4,0))","v":""},{"$f":"IF(C744=$X$4,\"Enter smelter details\",IF(ISERROR($V744),\"\",OFFSET('Smelter Look-up'!$F$4,$V744-4,0)))","v":""},{"$f":"IF(ISERROR($V744),\"\",OFFSET('Smelter Look-up'!$G$4,$V744-4,0))","v":""},{"$f":"IF(ISERROR($V744),\"\",OFFSET('Smelter Look-up'!$H$4,$V744-4,0))","v":""},{"$f":"IF(ISERROR($V744),\"\",OFFSET('Smelter Look-up'!$I$4,$V744-4,0))","v":""},{"$nulls":7},{"$f":"IF(ISERROR($V744),\"\",OFFSET('Smelter Look-up'!$C$4,$V744-4,0)&\"\")","v":""},"",{"$f":"IF(B744=\"\",\"\",IF(ISERROR(MATCH($J744,SorP!$B$1:$B$5661,0)),\"\",INDIRECT(\"'SorP'!$A$\"&MATCH($J744,SorP!$B$1:$B$5661,0))))","v":""},null,{"$f":"IF(C744=\"\",NA(),MATCH($B744&$C744,'Smelter Look-up'!$J:$J,0))","v":{"$error":"#N/A"}},null,0,null,null,null,""]
[null,{"$f":"IF(LEN(A745)=0,\"\",INDEX('Smelter Look-up'!$A:$A,MATCH($A745,'Smelter Look-up'!$E:$E,0)))","v":""},{"$f":"IF(LEN(A745)=0,\"\",INDEX('Smelter Look-up'!$C:$C,MATCH($A745,'Smelter Look-up'!$E:$E,0)))","v":""},null,{"$f":"IF(ISERROR($V745),\"\",OFFSET('Smelter Look-up'!$D$4,$V745-4,0)&\"\")","v":""},{"$f":"IF(ISERROR($V745),\"\",OFFSET('Smelter Look-up'!$E$4,$V745-4,0))","v":""},{"$f":"IF(C745=$X$4,\"Enter smelter details\",IF(ISERROR($V745),\"\",OFFSET('Smelter Look-up'!$F$4,$V745-4,0)))","v":""},{"$f":"IF(ISERROR($V745),\"\",OFFSET('Smelter Look-up'!$G$4,$V745-4,0))","v":""},{"$f":"IF(ISERROR($V745),\"\",OFFSET('Smelter Look-up'!$H$4,$V745-4,0))","v":""},{"$f":"IF(ISERROR($V745),\"\",OFFSET('Smelter Look-up'!$I$4,$V745-4,0))","v":""},{"$nulls":7},{"$f":"IF(ISERROR($V745),\"\",OFFSET('Smelter Look-up'!$C$4,$V745-4,0)&\"\")","v":""},"",{"$f":"IF(B745=\"\",\"\",IF(ISERROR(MATCH($J745,SorP!$B$1:$B$5661,0)),\"\",INDIRECT(\"'SorP'!$A$\"&MATCH($J745,SorP!$B$1:$B$5661,0))))","v":""},null,{"$f":"IF(C745=\"\",NA(),MATCH($B745&$C745,'Smelter Look-up'!$J:$J,0))","v":{"$error":"#N/A"}},null,0,null,null,null,""]
[null,{"$f":"IF(LEN(A746)=0,\"\",INDEX('Smelter Look-up'!$A:$A,MATCH($A746,'Smelter Look-up'!$E:$E,0)))","v":""},{"$f":"IF(LEN(A746)=0,\"\",INDEX('Smelter Look-up'!$C:$C,MATCH($A746,'Smelter Look-up'!$E:$E,0)))","v":""},null,{"$f":"IF(ISERROR($V746),\"\",OFFSET('Smelter Look-up'!$D$4,$V746-4,0)&\"\")","v":""},{"$f":"IF(ISERROR($V746),\"\",OFFSET('Smelter Look-up'!$E$4,$V746-4,0))","v":""},{"$f":"IF(C746=$X$4,\"Enter smelter details\",IF(ISERROR($V746),\"\",OFFSET('Smelter Look-up'!$F$4,$V746-4,0)))","v":""},{"$f":"IF(ISERROR($V746),\"\",OFFSET('Smelter Look-up'!$G$4,$V746-4,0))","v":""},{"$f":"IF(ISERROR($V746),\"\",OFFSET('Smelter Look-up'!$H$4,$V746-4,0))","v":""},{"$f":"IF(ISERROR($V746),\"\",OFFSET('Smelter Look-up'!$I$4,$V746-4,0))","v":""},{"$nulls":7},{"$f":"IF(ISERROR($V746),\"\",OFFSET('Smelter Look-up'!$C$4,$V746-4,0)&\"\")","v":""},"",{"$f":"IF(B746=\"\",\"\",IF(ISERROR(MATCH($J746,SorP!$B$1:$B$5661,0)),\"\",INDIRECT(\"'SorP'!$A$\"&MATCH($J746,SorP!$B$1:$B$5661,0))))","v":""},null,{"$f":"IF(C746=\"\",NA(),MATCH($B746&$C746,'Smelter Look-up'!$J:$J,0))","v":{"$error":"#N/A"}},null,0,null,null,null,""]
[null,{"$f":"IF(LEN(A747)=0,\"\",INDEX('Smelter Look-up'!$A:$A,MATCH($A747,'Smelter Look-up'!$E:$E,0)))","v":""},{"$f":"IF(LEN(A747)=0,\"\",INDEX('Smelter Look-up'!$C:$C,MATCH($A747,'Smelter Look-up'!$E:$E,0)))","v":""},null,{"$f":"IF(ISERROR($V747),\"\",OFFSET('Smelter Look-up'!$D$4,$V747-4,0)&\"\")","v":""},{"$f":"IF(ISERROR($V747),\"\",OFFSET('Smelter Look-up'!$E$4,$V747-4,0))","v":""},{"$f":"IF(C747=$X$4,\"Enter smelter details\",IF(ISERROR($V747),\"\",OFFSET('Smelter Look-up'!$F$4,$V747-4,0)))","v":""},{"$f":"IF(ISERROR($V747),\"\",OFFSET('Smelter Look-up'!$G$4,$V747-4,0))","v":""},{"$f":"IF(ISERROR($V747),\"\",OFFSET('Smelter Look-up'!$H$4,$V747-4,0))","v":""},{"$f":"IF(ISERROR($V747),\"\",OFFSET('Smelter Look-up'!$I$4,$V747-4,0))","v":""},{"$nulls":7},{"$f":"IF(ISERROR($V747),\"\",OFFSET('Smelter Look-up'!$C$4,$V747-4,0)&\"\")","v":""},"",{"$f":"IF(B747=\"\",\"\",IF(ISERROR(MATCH($J747,SorP!$B$1:$B$5661,0)),\"\",INDIRECT(\"'SorP'!$A$\"&MATCH($J747,SorP!$B$1:$B$5661,0))))","v":""},null,{"$f":"IF(C747=\"\",NA(),MATCH($B747&$C747,'Smelter Look-up'!$J:$J,0))","v":{"$error":"#N/A"}},null,0,null,null,null,""]
[null,{"$f":"IF(LEN(A748)=0,\"\",INDEX('Smelter Look-up'!$A:$A,MATCH($A748,'Smelter Look-up'!$E:$E,0)))","v":""},{"$f":"IF(LEN(A748)=0,\"\",INDEX('Smelter Look-up'!$C:$C,MATCH($A748,'Smelter Look-up'!$E:$E,0)))","v":""},null,{"$f":"IF(ISERROR($V748),\"\",OFFSET('Smelter Look-up'!$D$4,$V748-4,0)&\"\")","v":""},{"$f":"IF(ISERROR($V748),\"\",OFFSET('Smelter Look-up'!$E$4,$V748-4,0))","v":""},{"$f":"IF(C748=$X$4,\"Enter smelter details\",IF(ISERROR($V748),\"\",OFFSET('Smelter Look-up'!$F$4,$V748-4,0)))","v":""},{"$f":"IF(ISERROR($V748),\"\",OFFSET('Smelter Look-up'!$G$4,$V748-4,0))","v":""},{"$f":"IF(ISERROR($V748),\"\",OFFSET('Smelter Look-up'!$H$4,$V748-4,0))","v":""},{"$f":"IF(ISERROR($V748),\"\",OFFSET('Smelter Look-up'!$I$4,$V748-4,0))","v":""},{"$nulls":7},{"$f":"IF(ISERROR($V748),\"\",OFFSET('Smelter Look-up'!$C$4,$V748-4,0)&\"\")","v":""},"",{"$f":"IF(B748=\"\",\"\",IF(ISERROR(MATCH($J748,SorP!$B$1:$B$5661,0)),\"\",INDIRECT(\"'SorP'!$A$\"&MATCH($J748,SorP!$B$1:$B$5661,0))))","v":""},null,{"$f":"IF(C748=\"\",NA(),MATCH($B748&$C748,'Smelter Look-up'!$J:$J,0))","v":{"$error":"#N/A"}},null,0,null,null,null,""]
[null,{"$f":"IF(LEN(A749)=0,\"\",INDEX('Smelter Look-up'!$A:$A,MATCH($A749,'Smelter Look-up'!$E:$E,0)))","v":""},{"$f":"IF(LEN(A749)=0,\"\",INDEX('Smelter Look-up'!$C:$C,MATCH($A749,'Smelter Look-up'!$E:$E,0)))","v":""},null,{"$f":"IF(ISERROR($V749),\"\",OFFSET('Smelter Look-up'!$D$4,$V749-4,0)&\"\")","v":""},{"$f":"IF(ISERROR($V749),\"\",OFFSET('Smelter Look-up'!$E$4,$V749-4,0))","v":""},{"$f":"IF(C749=$X$4,\"Enter smelter details\",IF(ISERROR($V749),\"\",OFFSET('Smelter Look-up'!$F$4,$V749-4,0)))","v":""},{"$f":"IF(ISERROR($V749),\"\",OFFSET('Smelter Look-up'!$G$4,$V749-4,0))","v":""},{"$f":"IF(ISERROR($V749),\"\",OFFSET('Smelter Look-up'!$H$4,$V749-4,0))","v":""},{"$f":"IF(ISERROR($V749),\"\",OFFSET('Smelter Look-up'!$I$4,$V749-4,0))","v":""},{"$nulls":7},{"$f":"IF(ISERROR($V749),\"\",OFFSET('Smelter Look-up'!$C$4,$V749-4,0)&\"\")","v":""},"",{"$f":"IF(B749=\"\",\"\",IF(ISERROR(MATCH($J749,SorP!$B$1:$B$5661,0)),\"\",INDIRECT(\"'SorP'!$A$\"&MATCH($J749,SorP!$B$1:$B$5661,0))))","v":""},null,{"$f":"IF(C749=\"\",NA(),MATCH($B749&$C749,'Smelter Look-up'!$J:$J,0))","v":{"$error":"#N/A"}},null,0,null,null,null,""]
[null,{"$f":"IF(LEN(A750)=0,\"\",INDEX('Smelter Look-up'!$A:$A,MATCH($A750,'Smelter Look-up'!$E:$E,0)))","v":""},{"$f":"IF(LEN(A750)=0,\"\",INDEX('Smelter Look-up'!$C:$C,MATCH($A750,'Smelter Look-up'!$E:$E,0)))","v":""},null,{"$f":"IF(ISERROR($V750),\"\",OFFSET('Smelter Look-up'!$D$4,$V750-4,0)&\"\")","v":""},{"$f":"IF(ISERROR($V750),\"\",OFFSET('Smelter Look-up'!$E$4,$V750-4,0))","v":""},{"$f":"IF(C750=$X$4,\"Enter smelter details\",IF(ISERROR($V750),\"\",OFFSET('Smelter Look-up'!$F$4,$V750-4,0)))","v":""},{"$f":"IF(ISERROR($V750),\"\",OFFSET('Smelter Look-up'!$G$4,$V750-4,0))","v":""},{"$f":"IF(ISERROR($V750),\"\",OFFSET('Smelter Look-up'!$H$4,$V750-4,0))","v":""},{"$f":"IF(ISERROR($V750),\"\",OFFSET('Smelter Look-up'!$I$4,$V750-4,0))","v":""},{"$nulls":7},{"$f":"IF(ISERROR($V750),\"\",OFFSET('Smelter Look-up'!$C$4,$V750-4,0)&\"\")","v":""},"",{"$f":"IF(B750=\"\",\"\",IF(ISERROR(MATCH($J750,SorP!$B$1:$B$5661,0)),\"\",INDIRECT(\"'SorP'!$A$\"&MATCH($J750,SorP!$B$1:$B$5661,0))))","v":""},null,{"$f":"IF(C750=\"\",NA(),MATCH($B750&$C750,'Smelter Look-up'!$J:$J,0))","v":{"$error":"#N/A"}},null,0,null,null,null,""]
[null,{"$f":"IF(LEN(A751)=0,\"\",INDEX('Smelter Look-up'!$A:$A,MATCH($A751,'Smelter Look-up'!$E:$E,0)))","v":""},{"$f":"IF(LEN(A751)=0,\"\",INDEX('Smelter Look-up'!$C:$C,MATCH($A751,'Smelter Look-up'!$E:$E,0)))","v":""},null,{"$f":"IF(ISERROR($V751),\"\",OFFSET('Smelter Look-up'!$D$4,$V751-4,0)&\"\")","v":""},{"$f":"IF(ISERROR($V751),\"\",OFFSET('Smelter Look-up'!$E$4,$V751-4,0))","v":""},{"$f":"IF(C751=$X$4,\"Enter smelter details\",IF(ISERROR($V751),\"\",OFFSET('Smelter Look-up'!$F$4,$V751-4,0)))","v":""},{"$f":"IF(ISERROR($V751),\"\",OFFSET('Smelter Look-up'!$G$4,$V751-4,0))","v":""},{"$f":"IF(ISERROR($V751),\"\",OFFSET('Smelter Look-up'!$H$4,$V751-4,0))","v":""},{"$f":"IF(ISERROR($V751),\"\",OFFSET('Smelter Look-up'!$I$4,$V751-4,0))","v":""},{"$nulls":7},{"$f":"IF(ISERROR($V751),\"\",OFFSET('Smelter Look-up'!$C$4,$V751-4,0)&\"\")","v":""},"",{"$f":"IF(B751=\"\",\"\",IF(ISERROR(MATCH($J751,SorP!$B$1:$B$5661,0)),\"\",INDIRECT(\"'SorP'!$A$\"&MATCH($J751,SorP!$B$1:$B$5661,0))))","v":""},null,{"$f":"IF(C751=\"\",NA(),MATCH($B751&$C751,'Smelter Look-up'!$J:$J,0))","v":{"$error":"#N/A"}},null,0,null,null,null,""]
[null,{"$f":"IF(LEN(A752)=0,\"\",INDEX('Smelter Look-up'!$A:$A,MATCH($A752,'Smelter Look-up'!$E:$E,0)))","v":""},{"$f":"IF(LEN(A752)=0,\"\",INDEX('Smelter Look-up'!$C:$C,MATCH($A752,'Smelter Look-up'!$E:$E,0)))","v":""},null,{"$f":"IF(ISERROR($V752),\"\",OFFSET('Smelter Look-up'!$D$4,$V752-4,0)&\"\")","v":""},{"$f":"IF(ISERROR($V752),\"\",OFFSET('Smelter Look-up'!$E$4,$V752-4,0))","v":""},{"$f":"IF(C752=$X$4,\"Enter smelter details\",IF(ISERROR($V752),\"\",OFFSET('Smelter Look-up'!$F$4,$V752-4,0)))","v":""},{"$f":"IF(ISERROR($V752),\"\",OFFSET('Smelter Look-up'!$G$4,$V752-4,0))","v":""},{"$f":"IF(ISERROR($V752),\"\",OFFSET('Smelter Look-up'!$H$4,$V752-4,0))","v":""},{"$f":"IF(ISERROR($V752),\"\",OFFSET('Smelter Look-up'!$I$4,$V752-4,0))","v":""},{"$nulls":7},{"$f":"IF(ISERROR($V752),\"\",OFFSET('Smelter Look-up'!$C$4,$V752-4,0)&\"\")","v":""},"",{"$f":"IF(B752=\"\",\"\",IF(ISERROR(MATCH($J752,SorP!$B$1:$B$5661,0)),\"\",INDIRECT(\"'SorP'!$A$\"&MATCH($J752,SorP!$B$1:$B$5661,0))))","v":""},null,{"$f":"IF(C752=\"\",NA(),MATCH($B752&$C752,'Smelter Look-up'!$J:$J,0))","v":{"$error":"#N/A"}},null,0,null,null,null,""]
[null,{"$f":"IF(LEN(A753)=0,\"\",INDEX('Smelter Look-up'!$A:$A,MATCH($A753,'Smelter Look-up'!$E:$E,0)))","v":""},{"$f":"IF(LEN(A753)=0,\"\",INDEX('Smelter Look-up'!$C:$C,MATCH($A753,'Smelter Look-up'!$E:$E,0)))","v":""},null,{"$f":"IF(ISERROR($V753),\"\",OFFSET('Smelter Look-up'!$D$4,$V753-4,0)&\"\")","v":""},{"$f":"IF(ISERROR($V753),\"\",OFFSET('Smelter Look-up'!$E$4,$V753-4,0))","v":""},{"$f":"IF(C753=$X$4,\"Enter smelter details\",IF(ISERROR($V753),\"\",OFFSET('Smelter Look-up'!$F$4,$V753-4,0)))","v":""},{"$f":"IF(ISERROR($V753),\"\",OFFSET('Smelter Look-up'!$G$4,$V753-4,0))","v":""},{"$f":"IF(ISERROR($V753),\"\",OFFSET('Smelter Look-up'!$H$4,$V753-4,0))","v":""},{"$f":"IF(ISERROR($V753),\"\",OFFSET('Smelter Look-up'!$I$4,$V753-4,0))","v":""},{"$nulls":7},{"$f":"IF(ISERROR($V753),\"\",OFFSET('Smelter Look-up'!$C$4,$V753-4,0)&\"\")","v":""},"",{"$f":"IF(B753=\"\",\"\",IF(ISERROR(MATCH($J753,SorP!$B$1:$B$5661,0)),\"\",INDIRECT(\"'SorP'!$A$\"&MATCH($J753,SorP!$B$1:$B$5661,0))))","v":""},null,{"$f":"IF(C753=\"\",NA(),MATCH($B753&$C753,'Smelter Look-up'!$J:$J,0))","v":{"$error":"#N/A"}},null,0,null,null,null,""]
[null,{"$f":"IF(LEN(A754)=0,\"\",INDEX('Smelter Look-up'!$A:$A,MATCH($A754,'Smelter Look-up'!$E:$E,0)))","v":""},{"$f":"IF(LEN(A754)=0,\"\",INDEX('Smelter Look-up'!$C:$C,MATCH($A754,'Smelter Look-up'!$E:$E,0)))","v":""},null,{"$f":"IF(ISERROR($V754),\"\",OFFSET('Smelter Look-up'!$D$4,$V754-4,0)&\"\")","v":""},{"$f":"IF(ISERROR($V754),\"\",OFFSET('Smelter Look-up'!$E$4,$V754-4,0))","v":""},{"$f":"IF(C754=$X$4,\"Enter smelter details\",IF(ISERROR($V754),\"\",OFFSET('Smelter Look-up'!$F$4,$V754-4,0)))","v":""},{"$f":"IF(ISERROR($V754),\"\",OFFSET('Smelter Look-up'!$G$4,$V754-4,0))","v":""},{"$f":"IF(ISERROR($V754),\"\",OFFSET('Smelter Look-up'!$H$4,$V754-4,0))","v":""},{"$f":"IF(ISERROR($V754),\"\",OFFSET('Smelter Look-up'!$I$4,$V754-4,0))","v":""},{"$nulls":7},{"$f":"IF(ISERROR($V754),\"\",OFFSET('Smelter Look-up'!$C$4,$V754-4,0)&\"\")","v":""},"",{"$f":"IF(B754=\"\",\"\",IF(ISERROR(MATCH($J754,SorP!$B$1:$B$5661,0)),\"\",INDIRECT(\"'SorP'!$A$\"&MATCH($J754,SorP!$B$1:$B$5661,0))))","v":""},null,{"$f":"IF(C754=\"\",NA(),MATCH($B754&$C754,'Smelter Look-up'!$J:$J,0))","v":{"$error":"#N/A"}},null,0,null,null,null,""]
[null,{"$f":"IF(LEN(A755)=0,\"\",INDEX('Smelter Look-up'!$A:$A,MATCH($A755,'Smelter Look-up'!$E:$E,0)))","v":""},{"$f":"IF(LEN(A755)=0,\"\",INDEX('Smelter Look-up'!$C:$C,MATCH($A755,'Smelter Look-up'!$E:$E,0)))","v":""},null,{"$f":"IF(ISERROR($V755),\"\",OFFSET('Smelter Look-up'!$D$4,$V755-4,0)&\"\")","v":""},{"$f":"IF(ISERROR($V755),\"\",OFFSET('Smelter Look-up'!$E$4,$V755-4,0))","v":""},{"$f":"IF(C755=$X$4,\"Enter smelter details\",IF(ISERROR($V755),\"\",OFFSET('Smelter Look-up'!$F$4,$V755-4,0)))","v":""},{"$f":"IF(ISERROR($V755),\"\",OFFSET('Smelter Look-up'!$G$4,$V755-4,0))","v":""},{"$f":"IF(ISERROR($V755),\"\",OFFSET('Smelter Look-up'!$H$4,$V755-4,0))","v":""},{"$f":"IF(ISERROR($V755),\"\",OFFSET('Smelter Look-up'!$I$4,$V755-4,0))","v":""},{"$nulls":7},{"$f":"IF(ISERROR($V755),\"\",OFFSET('Smelter Look-up'!$C$4,$V755-4,0)&\"\")","v":""},"",{"$f":"IF(B755=\"\",\"\",IF(ISERROR(MATCH($J755,SorP!$B$1:$B$5661,0)),\"\",INDIRECT(\"'SorP'!$A$\"&MATCH($J755,SorP!$B$1:$B$5661,0))))","v":""},null,{"$f":"IF(C755=\"\",NA(),MATCH($B755&$C755,'Smelter Look-up'!$J:$J,0))","v":{"$error":"#N/A"}},null,0,null,null,null,""]
[null,{"$f":"IF(LEN(A756)=0,\"\",INDEX('Smelter Look-up'!$A:$A,MATCH($A756,'Smelter Look-up'!$E:$E,0)))","v":""},{"$f":"IF(LEN(A756)=0,\"\",INDEX('Smelter Look-up'!$C:$C,MATCH($A756,'Smelter Look-up'!$E:$E,0)))","v":""},null,{"$f":"IF(ISERROR($V756),\"\",OFFSET('Smelter Look-up'!$D$4,$V756-4,0)&\"\")","v":""},{"$f":"IF(ISERROR($V756),\"\",OFFSET('Smelter Look-up'!$E$4,$V756-4,0))","v":""},{"$f":"IF(C756=$X$4,\"Enter smelter details\",IF(ISERROR($V756),\"\",OFFSET('Smelter Look-up'!$F$4,$V756-4,0)))","v":""},{"$f":"IF(ISERROR($V756),\"\",OFFSET('Smelter Look-up'!$G$4,$V756-4,0))","v":""},{"$f":"IF(ISERROR($V756),\"\",OFFSET('Smelter Look-up'!$H$4,$V756-4,0))","v":""},{"$f":"IF(ISERROR($V756),\"\",OFFSET('Smelter Look-up'!$I$4,$V756-4,0))","v":""},{"$nulls":7},{"$f":"IF(ISERROR($V756),\"\",OFFSET('Smelter Look-up'!$C$4,$V756-4,0)&\"\")","v":""},"",{"$f":"IF(B756=\"\",\"\",IF(ISERROR(MATCH($J756,SorP!$B$1:$B$5661,0)),\"\",INDIRECT(\"'SorP'!$A$\"&MATCH($J756,SorP!$B$1:$B$5661,0))))","v":""},null,{"$f":"IF(C756=\"\",NA(),MATCH($B756&$C756,'Smelter Look-up'!$J:$J,0))","v":{"$error":"#N/A"}},null,0,null,null,null,""]
[null,{"$f":"IF(LEN(A757)=0,\"\",INDEX('Smelter Look-up'!$A:$A,MATCH($A757,'Smelter Look-up'!$E:$E,0)))","v":""},{"$f":"IF(LEN(A757)=0,\"\",INDEX('Smelter Look-up'!$C:$C,MATCH($A757,'Smelter Look-up'!$E:$E,0)))","v":""},null,{"$f":"IF(ISERROR($V757),\"\",OFFSET('Smelter Look-up'!$D$4,$V757-4,0)&\"\")","v":""},{"$f":"IF(ISERROR($V757),\"\",OFFSET('Smelter Look-up'!$E$4,$V757-4,0))","v":""},{"$f":"IF(C757=$X$4,\"Enter smelter details\",IF(ISERROR($V757),\"\",OFFSET('Smelter Look-up'!$F$4,$V757-4,0)))","v":""},{"$f":"IF(ISERROR($V757),\"\",OFFSET('Smelter Look-up'!$G$4,$V757-4,0))","v":""},{"$f":"IF(ISERROR($V757),\"\",OFFSET('Smelter Look-up'!$H$4,$V757-4,0))","v":""},{"$f":"IF(ISERROR($V757),\"\",OFFSET('Smelter Look-up'!$I$4,$V757-4,0))","v":""},{"$nulls":7},{"$f":"IF(ISERROR($V757),\"\",OFFSET('Smelter Look-up'!$C$4,$V757-4,0)&\"\")","v":""},"",{"$f":"IF(B757=\"\",\"\",IF(ISERROR(MATCH($J757,SorP!$B$1:$B$5661,0)),\"\",INDIRECT(\"'SorP'!$A$\"&MATCH($J757,SorP!$B$1:$B$5661,0))))","v":""},null,{"$f":"IF(C757=\"\",NA(),MATCH($B757&$C757,'Smelter Look-up'!$J:$J,0))","v":{"$error":"#N/A"}},null,0,null,null,null,""]
[null,{"$f":"IF(LEN(A758)=0,\"\",INDEX('Smelter Look-up'!$A:$A,MATCH($A758,'Smelter Look-up'!$E:$E,0)))","v":""},{"$f":"IF(LEN(A758)=0,\"\",INDEX('Smelter Look-up'!$C:$C,MATCH($A758,'Smelter Look-up'!$E:$E,0)))","v":""},null,{"$f":"IF(ISERROR($V758),\"\",OFFSET('Smelter Look-up'!$D$4,$V758-4,0)&\"\")","v":""},{"$f":"IF(ISERROR($V758),\"\",OFFSET('Smelter Look-up'!$E$4,$V758-4,0))","v":""},{"$f":"IF(C758=$X$4,\"Enter smelter details\",IF(ISERROR($V758),\"\",OFFSET('Smelter Look-up'!$F$4,$V758-4,0)))","v":""},{"$f":"IF(ISERROR($V758),\"\",OFFSET('Smelter Look-up'!$G$4,$V758-4,0))","v":""},{"$f":"IF(ISERROR($V758),\"\",OFFSET('Smelter Look-up'!$H$4,$V758-4,0))","v":""},{"$f":"IF(ISERROR($V758),\"\",OFFSET('Smelter Look-up'!$I$4,$V758-4,0))","v":""},{"$nulls":7},{"$f":"IF(ISERROR($V758),\"\",OFFSET('Smelter Look-up'!$C$4,$V758-4,0)&\"\")","v":""},"",{"$f":"IF(B758=\"\",\"\",IF(ISERROR(MATCH($J758,SorP!$B$1:$B$5661,0)),\"\",INDIRECT(\"'SorP'!$A$\"&MATCH($J758,SorP!$B$1:$B$5661,0))))","v":""},null,{"$f":"IF(C758=\"\",NA(),MATCH($B758&$C758,'Smelter Look-up'!$J:$J,0))","v":{"$error":"#N/A"}},null,0,null,null,null,""]
[null,{"$f":"IF(LEN(A759)=0,\"\",INDEX('Smelter Look-up'!$A:$A,MATCH($A759,'Smelter Look-up'!$E:$E,0)))","v":""},{"$f":"IF(LEN(A759)=0,\"\",INDEX('Smelter Look-up'!$C:$C,MATCH($A759,'Smelter Look-up'!$E:$E,0)))","v":""},null,{"$f":"IF(ISERROR($V759),\"\",OFFSET('Smelter Look-up'!$D$4,$V759-4,0)&\"\")","v":""},{"$f":"IF(ISERROR($V759),\"\",OFFSET('Smelter Look-up'!$E$4,$V759-4,0))","v":""},{"$f":"IF(C759=$X$4,\"Enter smelter details\",IF(ISERROR($V759),\"\",OFFSET('Smelter Look-up'!$F$4,$V759-4,0)))","v":""},{"$f":"IF(ISERROR($V759),\"\",OFFSET('Smelter Look-up'!$G$4,$V759-4,0))","v":""},{"$f":"IF(ISERROR($V759),\"\",OFFSET('Smelter Look-up'!$H$4,$V759-4,0))","v":""},{"$f":"IF(ISERROR($V759),\"\",OFFSET('Smelter Look-up'!$I$4,$V759-4,0))","v":""},{"$nulls":7},{"$f":"IF(ISERROR($V759),\"\",OFFSET('Smelter Look-up'!$C$4,$V759-4,0)&\"\")","v":""},"",{"$f":"IF(B759=\"\",\"\",IF(ISERROR(MATCH($J759,SorP!$B$1:$B$5661,0)),\"\",INDIRECT(\"'SorP'!$A$\"&MATCH($J759,SorP!$B$1:$B$5661,0))))","v":""},null,{"$f":"IF(C759=\"\",NA(),MATCH($B759&$C759,'Smelter Look-up'!$J:$J,0))","v":{"$error":"#N/A"}},null,0,null,null,null,""]
[null,{"$f":"IF(LEN(A760)=0,\"\",INDEX('Smelter Look-up'!$A:$A,MATCH($A760,'Smelter Look-up'!$E:$E,0)))","v":""},{"$f":"IF(LEN(A760)=0,\"\",INDEX('Smelter Look-up'!$C:$C,MATCH($A760,'Smelter Look-up'!$E:$E,0)))","v":""},null,{"$f":"IF(ISERROR($V760),\"\",OFFSET('Smelter Look-up'!$D$4,$V760-4,0)&\"\")","v":""},{"$f":"IF(ISERROR($V760),\"\",OFFSET('Smelter Look-up'!$E$4,$V760-4,0))","v":""},{"$f":"IF(C760=$X$4,\"Enter smelter details\",IF(ISERROR($V760),\"\",OFFSET('Smelter Look-up'!$F$4,$V760-4,0)))","v":""},{"$f":"IF(ISERROR($V760),\"\",OFFSET('Smelter Look-up'!$G$4,$V760-4,0))","v":""},{"$f":"IF(ISERROR($V760),\"\",OFFSET('Smelter Look-up'!$H$4,$V760-4,0))","v":""},{"$f":"IF(ISERROR($V760),\"\",OFFSET('Smelter Look-up'!$I$4,$V760-4,0))","v":""},{"$nulls":7},{"$f":"IF(ISERROR($V760),\"\",OFFSET('Smelter Look-up'!$C$4,$V760-4,0)&\"\")","v":""},"",{"$f":"IF(B760=\"\",\"\",IF(ISERROR(MATCH($J760,SorP!$B$1:$B$5661,0)),\"\",INDIRECT(\"'SorP'!$A$\"&MATCH($J760,SorP!$B$1:$B$5661,0))))","v":""},null,{"$f":"IF(C760=\"\",NA(),MATCH($B760&$C760,'Smelter Look-up'!$J:$J,0))","v":{"$error":"#N/A"}},null,0,null,null,null,""]
[null,{"$f":"IF(LEN(A761)=0,\"\",INDEX('Smelter Look-up'!$A:$A,MATCH($A761,'Smelter Look-up'!$E:$E,0)))","v":""},{"$f":"IF(LEN(A761)=0,\"\",INDEX('Smelter Look-up'!$C:$C,MATCH($A761,'Smelter Look-up'!$E:$E,0)))","v":""},null,{"$f":"IF(ISERROR($V761),\"\",OFFSET('Smelter Look-up'!$D$4,$V761-4,0)&\"\")","v":""},{"$f":"IF(ISERROR($V761),\"\",OFFSET('Smelter Look-up'!$E$4,$V761-4,0))","v":""},{"$f":"IF(C761=$X$4,\"Enter smelter details\",IF(ISERROR($V761),\"\",OFFSET('Smelter Look-up'!$F$4,$V761-4,0)))","v":""},{"$f":"IF(ISERROR($V761),\"\",OFFSET('Smelter Look-up'!$G$4,$V761-4,0))","v":""},{"$f":"IF(ISERROR($V761),\"\",OFFSET('Smelter Look-up'!$H$4,$V761-4,0))","v":""},{"$f":"IF(ISERROR($V761),\"\",OFFSET('Smelter Look-up'!$I$4,$V761-4,0))","v":""},{"$nulls":7},{"$f":"IF(ISERROR($V761),\"\",OFFSET('Smelter Look-up'!$C$4,$V761-4,0)&\"\")","v":""},"",{"$f":"IF(B761=\"\",\"\",IF(ISERROR(MATCH($J761,SorP!$B$1:$B$5661,0)),\"\",INDIRECT(\"'SorP'!$A$\"&MATCH($J761,SorP!$B$1:$B$5661,0))))","v":""},null,{"$f":"IF(C761=\"\",NA(),MATCH($B761&$C761,'Smelter Look-up'!$J:$J,0))","v":{"$error":"#N/A"}},null,0,null,null,null,""]
[null,{"$f":"IF(LEN(A762)=0,\"\",INDEX('Smelter Look-up'!$A:$A,MATCH($A762,'Smelter Look-up'!$E:$E,0)))","v":""},{"$f":"IF(LEN(A762)=0,\"\",INDEX('Smelter Look-up'!$C:$C,MATCH($A762,'Smelter Look-up'!$E:$E,0)))","v":""},null,{"$f":"IF(ISERROR($V762),\"\",OFFSET('Smelter Look-up'!$D$4,$V762-4,0)&\"\")","v":""},{"$f":"IF(ISERROR($V762),\"\",OFFSET('Smelter Look-up'!$E$4,$V762-4,0))","v":""},{"$f":"IF(C762=$X$4,\"Enter smelter details\",IF(ISERROR($V762),\"\",OFFSET('Smelter Look-up'!$F$4,$V762-4,0)))","v":""},{"$f":"IF(ISERROR($V762),\"\",OFFSET('Smelter Look-up'!$G$4,$V762-4,0))","v":""},{"$f":"IF(ISERROR($V762),\"\",OFFSET('Smelter Look-up'!$H$4,$V762-4,0))","v":""},{"$f":"IF(ISERROR($V762),\"\",OFFSET('Smelter Look-up'!$I$4,$V762-4,0))","v":""},{"$nulls":7},{"$f":"IF(ISERROR($V762),\"\",OFFSET('Smelter Look-up'!$C$4,$V762-4,0)&\"\")","v":""},"",{"$f":"IF(B762=\"\",\"\",IF(ISERROR(MATCH($J762,SorP!$B$1:$B$5661,0)),\"\",INDIRECT(\"'SorP'!$A$\"&MATCH($J762,SorP!$B$1:$B$5661,0))))","v":""},null,{"$f":"IF(C762=\"\",NA(),MATCH($B762&$C762,'Smelter Look-up'!$J:$J,0))","v":{"$error":"#N/A"}},null,0,null,null,null,""]
[null,{"$f":"IF(LEN(A763)=0,\"\",INDEX('Smelter Look-up'!$A:$A,MATCH($A763,'Smelter Look-up'!$E:$E,0)))","v":""},{"$f":"IF(LEN(A763)=0,\"\",INDEX('Smelter Look-up'!$C:$C,MATCH($A763,'Smelter Look-up'!$E:$E,0)))","v":""},null,{"$f":"IF(ISERROR($V763),\"\",OFFSET('Smelter Look-up'!$D$4,$V763-4,0)&\"\")","v":""},{"$f":"IF(ISERROR($V763),\"\",OFFSET('Smelter Look-up'!$E$4,$V763-4,0))","v":""},{"$f":"IF(C763=$X$4,\"Enter smelter details\",IF(ISERROR($V763),\"\",OFFSET('Smelter Look-up'!$F$4,$V763-4,0)))","v":""},{"$f":"IF(ISERROR($V763),\"\",OFFSET('Smelter Look-up'!$G$4,$V763-4,0))","v":""},{"$f":"IF(ISERROR($V763),\"\",OFFSET('Smelter Look-up'!$H$4,$V763-4,0))","v":""},{"$f":"IF(ISERROR($V763),\"\",OFFSET('Smelter Look-up'!$I$4,$V763-4,0))","v":""},{"$nulls":7},{"$f":"IF(ISERROR($V763),\"\",OFFSET('Smelter Look-up'!$C$4,$V763-4,0)&\"\")","v":""},"",{"$f":"IF(B763=\"\",\"\",IF(ISERROR(MATCH($J763,SorP!$B$1:$B$5661,0)),\"\",INDIRECT(\"'SorP'!$A$\"&MATCH($J763,SorP!$B$1:$B$5661,0))))","v":""},null,{"$f":"IF(C763=\"\",NA(),MATCH($B763&$C763,'Smelter Look-up'!$J:$J,0))","v":{"$error":"#N/A"}},null,0,null,null,null,""]
[null,{"$f":"IF(LEN(A764)=0,\"\",INDEX('Smelter Look-up'!$A:$A,MATCH($A764,'Smelter Look-up'!$E:$E,0)))","v":""},{"$f":"IF(LEN(A764)=0,\"\",INDEX('Smelter Look-up'!$C:$C,MATCH($A764,'Smelter Look-up'!$E:$E,0)))","v":""},null,{"$f":"IF(ISERROR($V764),\"\",OFFSET('Smelter Look-up'!$D$4,$V764-4,0)&\"\")","v":""},{"$f":"IF(ISERROR($V764),\"\",OFFSET('Smelter Look-up'!$E$4,$V764-4,0))","v":""},{"$f":"IF(C764=$X$4,\"Enter smelter details\",IF(ISERROR($V764),\"\",OFFSET('Smelter Look-up'!$F$4,$V764-4,0)))","v":""},{"$f":"IF(ISERROR($V764),\"\",OFFSET('Smelter Look-up'!$G$4,$V764-4,0))","v":""},{"$f":"IF(ISERROR($V764),\"\",OFFSET('Smelter Look-up'!$H$4,$V764-4,0))","v":""},{"$f":"IF(ISERROR($V764),\"\",OFFSET('Smelter Look-up'!$I$4,$V764-4,0))","v":""},{"$nulls":7},{"$f":"IF(ISERROR($V764),\"\",OFFSET('Smelter Look-up'!$C$4,$V764-4,0)&\"\")","v":""},"",{"$f":"IF(B764=\"\",\"\",IF(ISERROR(MATCH($J764,SorP!$B$1:$B$5661,0)),\"\",INDIRECT(\"'SorP'!$A$\"&MATCH($J764,SorP!$B$1:$B$5661,0))))","v":""},null,{"$f":"IF(C764=\"\",NA(),MATCH($B764&$C764,'Smelter Look-up'!$J:$J,0))","v":{"$error":"#N/A"}},null,0,null,null,null,""]
[null,{"$f":"IF(LEN(A765)=0,\"\",INDEX('Smelter Look-up'!$A:$A,MATCH($A765,'Smelter Look-up'!$E:$E,0)))","v":""},{"$f":"IF(LEN(A765)=0,\"\",INDEX('Smelter Look-up'!$C:$C,MATCH($A765,'Smelter Look-up'!$E:$E,0)))","v":""},null,{"$f":"IF(ISERROR($V765),\"\",OFFSET('Smelter Look-up'!$D$4,$V765-4,0)&\"\")","v":""},{"$f":"IF(ISERROR($V765),\"\",OFFSET('Smelter Look-up'!$E$4,$V765-4,0))","v":""},{"$f":"IF(C765=$X$4,\"Enter smelter details\",IF(ISERROR($V765),\"\",OFFSET('Smelter Look-up'!$F$4,$V765-4,0)))","v":""},{"$f":"IF(ISERROR($V765),\"\",OFFSET('Smelter Look-up'!$G$4,$V765-4,0))","v":""},{"$f":"IF(ISERROR($V765),\"\",OFFSET('Smelter Look-up'!$H$4,$V765-4,0))","v":""},{"$f":"IF(ISERROR($V765),\"\",OFFSET('Smelter Look-up'!$I$4,$V765-4,0))","v":""},{"$nulls":7},{"$f":"IF(ISERROR($V765),\"\",OFFSET('Smelter Look-up'!$C$4,$V765-4,0)&\"\")","v":""},"",{"$f":"IF(B765=\"\",\"\",IF(ISERROR(MATCH($J765,SorP!$B$1:$B$5661,0)),\"\",INDIRECT(\"'SorP'!$A$\"&MATCH($J765,SorP!$B$1:$B$5661,0))))","v":""},null,{"$f":"IF(C765=\"\",NA(),MATCH($B765&$C765,'Smelter Look-up'!$J:$J,0))","v":{"$error":"#N/A"}},null,0,null,null,null,""]
[null,{"$f":"IF(LEN(A766)=0,\"\",INDEX('Smelter Look-up'!$A:$A,MATCH($A766,'Smelter Look-up'!$E:$E,0)))","v":""},{"$f":"IF(LEN(A766)=0,\"\",INDEX('Smelter Look-up'!$C:$C,MATCH($A766,'Smelter Look-up'!$E:$E,0)))","v":""},null,{"$f":"IF(ISERROR($V766),\"\",OFFSET('Smelter Look-up'!$D$4,$V766-4,0)&\"\")","v":""},{"$f":"IF(ISERROR($V766),\"\",OFFSET('Smelter Look-up'!$E$4,$V766-4,0))","v":""},{"$f":"IF(C766=$X$4,\"Enter smelter details\",IF(ISERROR($V766),\"\",OFFSET('Smelter Look-up'!$F$4,$V766-4,0)))","v":""},{"$f":"IF(ISERROR($V766),\"\",OFFSET('Smelter Look-up'!$G$4,$V766-4,0))","v":""},{"$f":"IF(ISERROR($V766),\"\",OFFSET('Smelter Look-up'!$H$4,$V766-4,0))","v":""},{"$f":"IF(ISERROR($V766),\"\",OFFSET('Smelter Look-up'!$I$4,$V766-4,0))","v":""},{"$nulls":7},{"$f":"IF(ISERROR($V766),\"\",OFFSET('Smelter Look-up'!$C$4,$V766-4,0)&\"\")","v":""},"",{"$f":"IF(B766=\"\",\"\",IF(ISERROR(MATCH($J766,SorP!$B$1:$B$5661,0)),\"\",INDIRECT(\"'SorP'!$A$\"&MATCH($J766,SorP!$B$1:$B$5661,0))))","v":""},null,{"$f":"IF(C766=\"\",NA(),MATCH($B766&$C766,'Smelter Look-up'!$J:$J,0))","v":{"$error":"#N/A"}},null,0,null,null,null,""]
[null,{"$f":"IF(LEN(A767)=0,\"\",INDEX('Smelter Look-up'!$A:$A,MATCH($A767,'Smelter Look-up'!$E:$E,0)))","v":""},{"$f":"IF(LEN(A767)=0,\"\",INDEX('Smelter Look-up'!$C:$C,MATCH($A767,'Smelter Look-up'!$E:$E,0)))","v":""},null,{"$f":"IF(ISERROR($V767),\"\",OFFSET('Smelter Look-up'!$D$4,$V767-4,0)&\"\")","v":""},{"$f":"IF(ISERROR($V767),\"\",OFFSET('Smelter Look-up'!$E$4,$V767-4,0))","v":""},{"$f":"IF(C767=$X$4,\"Enter smelter details\",IF(ISERROR($V767),\"\",OFFSET('Smelter Look-up'!$F$4,$V767-4,0)))","v":""},{"$f":"IF(ISERROR($V767),\"\",OFFSET('Smelter Look-up'!$G$4,$V767-4,0))","v":""},{"$f":"IF(ISERROR($V767),\"\",OFFSET('Smelter Look-up'!$H$4,$V767-4,0))","v":""},{"$f":"IF(ISERROR($V767),\"\",OFFSET('Smelter Look-up'!$I$4,$V767-4,0))","v":""},{"$nulls":7},{"$f":"IF(ISERROR($V767),\"\",OFFSET('Smelter Look-up'!$C$4,$V767-4,0)&\"\")","v":""},"",{"$f":"IF(B767=\"\",\"\",IF(ISERROR(MATCH($J767,SorP!$B$1:$B$5661,0)),\"\",INDIRECT(\"'SorP'!$A$\"&MATCH($J767,SorP!$B$1:$B$5661,0))))","v":""},null,{"$f":"IF(C767=\"\",NA(),MATCH($B767&$C767,'Smelter Look-up'!$J:$J,0))","v":{"$error":"#N/A"}},null,{"$f":"IF(AND(C767=\"Smelter not listed\",OR(LEN(D767)=0,LEN(E767)=0)),1,0)","v":0},null,null,null,{"$f":"B767&C767","v":""}]
[null,{"$f":"IF(LEN(A768)=0,\"\",INDEX('Smelter Look-up'!$A:$A,MATCH($A768,'Smelter Look-up'!$E:$E,0)))","v":""},{"$f":"IF(LEN(A768)=0,\"\",INDEX('Smelter Look-up'!$C:$C,MATCH($A768,'Smelter Look-up'!$E:$E,0)))","v":""},null,{"$f":"IF(ISERROR($V768),\"\",OFFSET('Smelter Look-up'!$D$4,$V768-4,0)&\"\")","v":""},{"$f":"IF(ISERROR($V768),\"\",OFFSET('Smelter Look-up'!$E$4,$V768-4,0))","v":""},{"$f":"IF(C768=$X$4,\"Enter smelter details\",IF(ISERROR($V768),\"\",OFFSET('Smelter Look-up'!$F$4,$V768-4,0)))","v":""},{"$f":"IF(ISERROR($V768),\"\",OFFSET('Smelter Look-up'!$G$4,$V768-4,0))","v":""},{"$f":"IF(ISERROR($V768),\"\",OFFSET('Smelter Look-up'!$H$4,$V768-4,0))","v":""},{"$f":"IF(ISERROR($V768),\"\",OFFSET('Smelter Look-up'!$I$4,$V768-4,0))","v":""},{"$nulls":7},{"$f":"IF(ISERROR($V768),\"\",OFFSET('Smelter Look-up'!$C$4,$V768-4,0)&\"\")","v":""},{"$f":"IF(B768=\"\",\"\",IF(ISERROR(MATCH($E768,CL,0)),\"Unknown\",INDIRECT(\"'C'!$A$\"&MATCH($E768,CL,0)+1)))","v":""},{"$f":"IF(B768=\"\",\"\",IF(ISERROR(MATCH($J768,SorP!$B$1:$B$5661,0)),\"\",INDIRECT(\"'SorP'!$A$\"&MATCH($J768,SorP!$B$1:$B$5661,0))))","v":""},null,{"$f":"IF(C768=\"\",NA(),MATCH($B768&$C768,'Smelter Look-up'!$J:$J,0))","v":{"$error":"#N/A"}},null,0,null,null,null,""]
[null,{"$f":"IF(LEN(A769)=0,\"\",INDEX('Smelter Look-up'!$A:$A,MATCH($A769,'Smelter Look-up'!$E:$E,0)))","v":""},{"$f":"IF(LEN(A769)=0,\"\",INDEX('Smelter Look-up'!$C:$C,MATCH($A769,'Smelter Look-up'!$E:$E,0)))","v":""},null,{"$f":"IF(ISERROR($V769),\"\",OFFSET('Smelter Look-up'!$D$4,$V769-4,0)&\"\")","v":""},{"$f":"IF(ISERROR($V769),\"\",OFFSET('Smelter Look-up'!$E$4,$V769-4,0))","v":""},{"$f":"IF(C769=$X$4,\"Enter smelter details\",IF(ISERROR($V769),\"\",OFFSET('Smelter Look-up'!$F$4,$V769-4,0)))","v":""},{"$f":"IF(ISERROR($V769),\"\",OFFSET('Smelter Look-up'!$G$4,$V769-4,0))","v":""},{"$f":"IF(ISERROR($V769),\"\",OFFSET('Smelter Look-up'!$H$4,$V769-4,0))","v":""},{"$f":"IF(ISERROR($V769),\"\",OFFSET('Smelter Look-up'!$I$4,$V769-4,0))","v":""},{"$nulls":7},{"$f":"IF(ISERROR($V769),\"\",OFFSET('Smelter Look-up'!$C$4,$V769-4,0)&\"\")","v":""},"",{"$f":"IF(B769=\"\",\"\",IF(ISERROR(MATCH($J769,SorP!$B$1:$B$5661,0)),\"\",INDIRECT(\"'SorP'!$A$\"&MATCH($J769,SorP!$B$1:$B$5661,0))))","v":""},null,{"$f":"IF(C769=\"\",NA(),MATCH($B769&$C769,'Smelter Look-up'!$J:$J,0))","v":{"$error":"#N/A"}},null,0,null,null,null,""]
[null,{"$f":"IF(LEN(A770)=0,\"\",INDEX('Smelter Look-up'!$A:$A,MATCH($A770,'Smelter Look-up'!$E:$E,0)))","v":""},{"$f":"IF(LEN(A770)=0,\"\",INDEX('Smelter Look-up'!$C:$C,MATCH($A770,'Smelter Look-up'!$E:$E,0)))","v":""},null,{"$f":"IF(ISERROR($V770),\"\",OFFSET('Smelter Look-up'!$D$4,$V770-4,0)&\"\")","v":""},{"$f":"IF(ISERROR($V770),\"\",OFFSET('Smelter Look-up'!$E$4,$V770-4,0))","v":""},{"$f":"IF(C770=$X$4,\"Enter smelter details\",IF(ISERROR($V770),\"\",OFFSET('Smelter Look-up'!$F$4,$V770-4,0)))","v":""},{"$f":"IF(ISERROR($V770),\"\",OFFSET('Smelter Look-up'!$G$4,$V770-4,0))","v":""},{"$f":"IF(ISERROR($V770),\"\",OFFSET('Smelter Look-up'!$H$4,$V770-4,0))","v":""},{"$f":"IF(ISERROR($V770),\"\",OFFSET('Smelter Look-up'!$I$4,$V770-4,0))","v":""},{"$nulls":7},{"$f":"IF(ISERROR($V770),\"\",OFFSET('Smelter Look-up'!$C$4,$V770-4,0)&\"\")","v":""},"",{"$f":"IF(B770=\"\",\"\",IF(ISERROR(MATCH($J770,SorP!$B$1:$B$5661,0)),\"\",INDIRECT(\"'SorP'!$A$\"&MATCH($J770,SorP!$B$1:$B$5661,0))))","v":""},null,{"$f":"IF(C770=\"\",NA(),MATCH($B770&$C770,'Smelter Look-up'!$J:$J,0))","v":{"$error":"#N/A"}},null,0,null,null,null,""]
[null,{"$f":"IF(LEN(A771)=0,\"\",INDEX('Smelter Look-up'!$A:$A,MATCH($A771,'Smelter Look-up'!$E:$E,0)))","v":""},{"$f":"IF(LEN(A771)=0,\"\",INDEX('Smelter Look-up'!$C:$C,MATCH($A771,'Smelter Look-up'!$E:$E,0)))","v":""},null,{"$f":"IF(ISERROR($V771),\"\",OFFSET('Smelter Look-up'!$D$4,$V771-4,0)&\"\")","v":""},{"$f":"IF(ISERROR($V771),\"\",OFFSET('Smelter Look-up'!$E$4,$V771-4,0))","v":""},{"$f":"IF(C771=$X$4,\"Enter smelter details\",IF(ISERROR($V771),\"\",OFFSET('Smelter Look-up'!$F$4,$V771-4,0)))","v":""},{"$f":"IF(ISERROR($V771),\"\",OFFSET('Smelter Look-up'!$G$4,$V771-4,0))","v":""},{"$f":"IF(ISERROR($V771),\"\",OFFSET('Smelter Look-up'!$H$4,$V771-4,0))","v":""},{"$f":"IF(ISERROR($V771),\"\",OFFSET('Smelter Look-up'!$I$4,$V771-4,0))","v":""},{"$nulls":7},{"$f":"IF(ISERROR($V771),\"\",OFFSET('Smelter Look-up'!$C$4,$V771-4,0)&\"\")","v":""},"",{"$f":"IF(B771=\"\",\"\",IF(ISERROR(MATCH($J771,SorP!$B$1:$B$5661,0)),\"\",INDIRECT(\"'SorP'!$A$\"&MATCH($J771,SorP!$B$1:$B$5661,0))))","v":""},null,{"$f":"IF(C771=\"\",NA(),MATCH($B771&$C771,'Smelter Look-up'!$J:$J,0))","v":{"$error":"#N/A"}},null,0,null,null,null,""]
[null,{"$f":"IF(LEN(A772)=0,\"\",INDEX('Smelter Look-up'!$A:$A,MATCH($A772,'Smelter Look-up'!$E:$E,0)))","v":""},{"$f":"IF(LEN(A772)=0,\"\",INDEX('Smelter Look-up'!$C:$C,MATCH($A772,'Smelter Look-up'!$E:$E,0)))","v":""},null,{"$f":"IF(ISERROR($V772),\"\",OFFSET('Smelter Look-up'!$D$4,$V772-4,0)&\"\")","v":""},{"$f":"IF(ISERROR($V772),\"\",OFFSET('Smelter Look-up'!$E$4,$V772-4,0))","v":""},{"$f":"IF(C772=$X$4,\"Enter smelter details\",IF(ISERROR($V772),\"\",OFFSET('Smelter Look-up'!$F$4,$V772-4,0)))","v":""},{"$f":"IF(ISERROR($V772),\"\",OFFSET('Smelter Look-up'!$G$4,$V772-4,0))","v":""},{"$f":"IF(ISERROR($V772),\"\",OFFSET('Smelter Look-up'!$H$4,$V772-4,0))","v":""},{"$f":"IF(ISERROR($V772),\"\",OFFSET('Smelter Look-up'!$I$4,$V772-4,0))","v":""},{"$nulls":7},{"$f":"IF(ISERROR($V772),\"\",OFFSET('Smelter Look-up'!$C$4,$V772-4,0)&\"\")","v":""},"",{"$f":"IF(B772=\"\",\"\",IF(ISERROR(MATCH($J772,SorP!$B$1:$B$5661,0)),\"\",INDIRECT(\"'SorP'!$A$\"&MATCH($J772,SorP!$B$1:$B$5661,0))))","v":""},null,{"$f":"IF(C772=\"\",NA(),MATCH($B772&$C772,'Smelter Look-up'!$J:$J,0))","v":{"$error":"#N/A"}},null,0,null,null,null,""]
[null,{"$f":"IF(LEN(A773)=0,\"\",INDEX('Smelter Look-up'!$A:$A,MATCH($A773,'Smelter Look-up'!$E:$E,0)))","v":""},{"$f":"IF(LEN(A773)=0,\"\",INDEX('Smelter Look-up'!$C:$C,MATCH($A773,'Smelter Look-up'!$E:$E,0)))","v":""},null,{"$f":"IF(ISERROR($V773),\"\",OFFSET('Smelter Look-up'!$D$4,$V773-4,0)&\"\")","v":""},{"$f":"IF(ISERROR($V773),\"\",OFFSET('Smelter Look-up'!$E$4,$V773-4,0))","v":""},{"$f":"IF(C773=$X$4,\"Enter smelter details\",IF(ISERROR($V773),\"\",OFFSET('Smelter Look-up'!$F$4,$V773-4,0)))","v":""},{"$f":"IF(ISERROR($V773),\"\",OFFSET('Smelter Look-up'!$G$4,$V773-4,0))","v":""},{"$f":"IF(ISERROR($V773),\"\",OFFSET('Smelter Look-up'!$H$4,$V773-4,0))","v":""},{"$f":"IF(ISERROR($V773),\"\",OFFSET('Smelter Look-up'!$I$4,$V773-4,0))","v":""},{"$nulls":7},{"$f":"IF(ISERROR($V773),\"\",OFFSET('Smelter Look-up'!$C$4,$V773-4,0)&\"\")","v":""},"",{"$f":"IF(B773=\"\",\"\",IF(ISERROR(MATCH($J773,SorP!$B$1:$B$5661,0)),\"\",INDIRECT(\"'SorP'!$A$\"&MATCH($J773,SorP!$B$1:$B$5661,0))))","v":""},null,{"$f":"IF(C773=\"\",NA(),MATCH($B773&$C773,'Smelter Look-up'!$J:$J,0))","v":{"$error":"#N/A"}},null,0,null,null,null,""]
[null,{"$f":"IF(LEN(A774)=0,\"\",INDEX('Smelter Look-up'!$A:$A,MATCH($A774,'Smelter Look-up'!$E:$E,0)))","v":""},{"$f":"IF(LEN(A774)=0,\"\",INDEX('Smelter Look-up'!$C:$C,MATCH($A774,'Smelter Look-up'!$E:$E,0)))","v":""},null,{"$f":"IF(ISERROR($V774),\"\",OFFSET('Smelter Look-up'!$D$4,$V774-4,0)&\"\")","v":""},{"$f":"IF(ISERROR($V774),\"\",OFFSET('Smelter Look-up'!$E$4,$V774-4,0))","v":""},{"$f":"IF(C774=$X$4,\"Enter smelter details\",IF(ISERROR($V774),\"\",OFFSET('Smelter Look-up'!$F$4,$V774-4,0)))","v":""},{"$f":"IF(ISERROR($V774),\"\",OFFSET('Smelter Look-up'!$G$4,$V774-4,0))","v":""},{"$f":"IF(ISERROR($V774),\"\",OFFSET('Smelter Look-up'!$H$4,$V774-4,0))","v":""},{"$f":"IF(ISERROR($V774),\"\",OFFSET('Smelter Look-up'!$I$4,$V774-4,0))","v":""},{"$nulls":7},{"$f":"IF(ISERROR($V774),\"\",OFFSET('Smelter Look-up'!$C$4,$V774-4,0)&\"\")","v":""},"",{"$f":"IF(B774=\"\",\"\",IF(ISERROR(MATCH($J774,SorP!$B$1:$B$5661,0)),\"\",INDIRECT(\"'SorP'!$A$\"&MATCH($J774,SorP!$B$1:$B$5661,0))))","v":""},null,{"$f":"IF(C774=\"\",NA(),MATCH($B774&$C774,'Smelter Look-up'!$J:$J,0))","v":{"$error":"#N/A"}},null,0,null,null,null,""]
[null,{"$f":"IF(LEN(A775)=0,\"\",INDEX('Smelter Look-up'!$A:$A,MATCH($A775,'Smelter Look-up'!$E:$E,0)))","v":""},{"$f":"IF(LEN(A775)=0,\"\",INDEX('Smelter Look-up'!$C:$C,MATCH($A775,'Smelter Look-up'!$E:$E,0)))","v":""},null,{"$f":"IF(ISERROR($V775),\"\",OFFSET('Smelter Look-up'!$D$4,$V775-4,0)&\"\")","v":""},{"$f":"IF(ISERROR($V775),\"\",OFFSET('Smelter Look-up'!$E$4,$V775-4,0))","v":""},{"$f":"IF(C775=$X$4,\"Enter smelter details\",IF(ISERROR($V775),\"\",OFFSET('Smelter Look-up'!$F$4,$V775-4,0)))","v":""},{"$f":"IF(ISERROR($V775),\"\",OFFSET('Smelter Look-up'!$G$4,$V775-4,0))","v":""},{"$f":"IF(ISERROR($V775),\"\",OFFSET('Smelter Look-up'!$H$4,$V775-4,0))","v":""},{"$f":"IF(ISERROR($V775),\"\",OFFSET('Smelter Look-up'!$I$4,$V775-4,0))","v":""},{"$nulls":7},{"$f":"IF(ISERROR($V775),\"\",OFFSET('Smelter Look-up'!$C$4,$V775-4,0)&\"\")","v":""},"",{"$f":"IF(B775=\"\",\"\",IF(ISERROR(MATCH($J775,SorP!$B$1:$B$5661,0)),\"\",INDIRECT(\"'SorP'!$A$\"&MATCH($J775,SorP!$B$1:$B$5661,0))))","v":""},null,{"$f":"IF(C775=\"\",NA(),MATCH($B775&$C775,'Smelter Look-up'!$J:$J,0))","v":{"$error":"#N/A"}},null,0,null,null,null,""]
[null,{"$f":"IF(LEN(A776)=0,\"\",INDEX('Smelter Look-up'!$A:$A,MATCH($A776,'Smelter Look-up'!$E:$E,0)))","v":""},{"$f":"IF(LEN(A776)=0,\"\",INDEX('Smelter Look-up'!$C:$C,MATCH($A776,'Smelter Look-up'!$E:$E,0)))","v":""},null,{"$f":"IF(ISERROR($V776),\"\",OFFSET('Smelter Look-up'!$D$4,$V776-4,0)&\"\")","v":""},{"$f":"IF(ISERROR($V776),\"\",OFFSET('Smelter Look-up'!$E$4,$V776-4,0))","v":""},{"$f":"IF(C776=$X$4,\"Enter smelter details\",IF(ISERROR($V776),\"\",OFFSET('Smelter Look-up'!$F$4,$V776-4,0)))","v":""},{"$f":"IF(ISERROR($V776),\"\",OFFSET('Smelter Look-up'!$G$4,$V776-4,0))","v":""},{"$f":"IF(ISERROR($V776),\"\",OFFSET('Smelter Look-up'!$H$4,$V776-4,0))","v":""},{"$f":"IF(ISERROR($V776),\"\",OFFSET('Smelter Look-up'!$I$4,$V776-4,0))","v":""},{"$nulls":7},{"$f":"IF(ISERROR($V776),\"\",OFFSET('Smelter Look-up'!$C$4,$V776-4,0)&\"\")","v":""},"",{"$f":"IF(B776=\"\",\"\",IF(ISERROR(MATCH($J776,SorP!$B$1:$B$5661,0)),\"\",INDIRECT(\"'SorP'!$A$\"&MATCH($J776,SorP!$B$1:$B$5661,0))))","v":""},null,{"$f":"IF(C776=\"\",NA(),MATCH($B776&$C776,'Smelter Look-up'!$J:$J,0))","v":{"$error":"#N/A"}},null,0,null,null,null,""]
[null,{"$f":"IF(LEN(A777)=0,\"\",INDEX('Smelter Look-up'!$A:$A,MATCH($A777,'Smelter Look-up'!$E:$E,0)))","v":""},{"$f":"IF(LEN(A777)=0,\"\",INDEX('Smelter Look-up'!$C:$C,MATCH($A777,'Smelter Look-up'!$E:$E,0)))","v":""},null,{"$f":"IF(ISERROR($V777),\"\",OFFSET('Smelter Look-up'!$D$4,$V777-4,0)&\"\")","v":""},{"$f":"IF(ISERROR($V777),\"\",OFFSET('Smelter Look-up'!$E$4,$V777-4,0))","v":""},{"$f":"IF(C777=$X$4,\"Enter smelter details\",IF(ISERROR($V777),\"\",OFFSET('Smelter Look-up'!$F$4,$V777-4,0)))","v":""},{"$f":"IF(ISERROR($V777),\"\",OFFSET('Smelter Look-up'!$G$4,$V777-4,0))","v":""},{"$f":"IF(ISERROR($V777),\"\",OFFSET('Smelter Look-up'!$H$4,$V777-4,0))","v":""},{"$f":"IF(ISERROR($V777),\"\",OFFSET('Smelter Look-up'!$I$4,$V777-4,0))","v":""},{"$nulls":7},{"$f":"IF(ISERROR($V777),\"\",OFFSET('Smelter Look-up'!$C$4,$V777-4,0)&\"\")","v":""},"",{"$f":"IF(B777=\"\",\"\",IF(ISERROR(MATCH($J777,SorP!$B$1:$B$5661,0)),\"\",INDIRECT(\"'SorP'!$A$\"&MATCH($J777,SorP!$B$1:$B$5661,0))))","v":""},null,{"$f":"IF(C777=\"\",NA(),MATCH($B777&$C777,'Smelter Look-up'!$J:$J,0))","v":{"$error":"#N/A"}},null,0,null,null,null,""]
[null,{"$f":"IF(LEN(A778)=0,\"\",INDEX('Smelter Look-up'!$A:$A,MATCH($A778,'Smelter Look-up'!$E:$E,0)))","v":""},{"$f":"IF(LEN(A778)=0,\"\",INDEX('Smelter Look-up'!$C:$C,MATCH($A778,'Smelter Look-up'!$E:$E,0)))","v":""},null,{"$f":"IF(ISERROR($V778),\"\",OFFSET('Smelter Look-up'!$D$4,$V778-4,0)&\"\")","v":""},{"$f":"IF(ISERROR($V778),\"\",OFFSET('Smelter Look-up'!$E$4,$V778-4,0))","v":""},{"$f":"IF(C778=$X$4,\"Enter smelter details\",IF(ISERROR($V778),\"\",OFFSET('Smelter Look-up'!$F$4,$V778-4,0)))","v":""},{"$f":"IF(ISERROR($V778),\"\",OFFSET('Smelter Look-up'!$G$4,$V778-4,0))","v":""},{"$f":"IF(ISERROR($V778),\"\",OFFSET('Smelter Look-up'!$H$4,$V778-4,0))","v":""},{"$f":"IF(ISERROR($V778),\"\",OFFSET('Smelter Look-up'!$I$4,$V778-4,0))","v":""},{"$nulls":7},{"$f":"IF(ISERROR($V778),\"\",OFFSET('Smelter Look-up'!$C$4,$V778-4,0)&\"\")","v":""},"",{"$f":"IF(B778=\"\",\"\",IF(ISERROR(MATCH($J778,SorP!$B$1:$B$5661,0)),\"\",INDIRECT(\"'SorP'!$A$\"&MATCH($J778,SorP!$B$1:$B$5661,0))))","v":""},null,{"$f":"IF(C778=\"\",NA(),MATCH($B778&$C778,'Smelter Look-up'!$J:$J,0))","v":{"$error":"#N/A"}},null,0,null,null,null,""]
[null,{"$f":"IF(LEN(A779)=0,\"\",INDEX('Smelter Look-up'!$A:$A,MATCH($A779,'Smelter Look-up'!$E:$E,0)))","v":""},{"$f":"IF(LEN(A779)=0,\"\",INDEX('Smelter Look-up'!$C:$C,MATCH($A779,'Smelter Look-up'!$E:$E,0)))","v":""},null,{"$f":"IF(ISERROR($V779),\"\",OFFSET('Smelter Look-up'!$D$4,$V779-4,0)&\"\")","v":""},{"$f":"IF(ISERROR($V779),\"\",OFFSET('Smelter Look-up'!$E$4,$V779-4,0))","v":""},{"$f":"IF(C779=$X$4,\"Enter smelter details\",IF(ISERROR($V779),\"\",OFFSET('Smelter Look-up'!$F$4,$V779-4,0)))","v":""},{"$f":"IF(ISERROR($V779),\"\",OFFSET('Smelter Look-up'!$G$4,$V779-4,0))","v":""},{"$f":"IF(ISERROR($V779),\"\",OFFSET('Smelter Look-up'!$H$4,$V779-4,0))","v":""},{"$f":"IF(ISERROR($V779),\"\",OFFSET('Smelter Look-up'!$I$4,$V779-4,0))","v":""},{"$nulls":7},{"$f":"IF(ISERROR($V779),\"\",OFFSET('Smelter Look-up'!$C$4,$V779-4,0)&\"\")","v":""},"",{"$f":"IF(B779=\"\",\"\",IF(ISERROR(MATCH($J779,SorP!$B$1:$B$5661,0)),\"\",INDIRECT(\"'SorP'!$A$\"&MATCH($J779,SorP!$B$1:$B$5661,0))))","v":""},null,{"$f":"IF(C779=\"\",NA(),MATCH($B779&$C779,'Smelter Look-up'!$J:$J,0))","v":{"$error":"#N/A"}},null,0,null,null,null,""]
[null,{"$f":"IF(LEN(A780)=0,\"\",INDEX('Smelter Look-up'!$A:$A,MATCH($A780,'Smelter Look-up'!$E:$E,0)))","v":""},{"$f":"IF(LEN(A780)=0,\"\",INDEX('Smelter Look-up'!$C:$C,MATCH($A780,'Smelter Look-up'!$E:$E,0)))","v":""},null,{"$f":"IF(ISERROR($V780),\"\",OFFSET('Smelter Look-up'!$D$4,$V780-4,0)&\"\")","v":""},{"$f":"IF(ISERROR($V780),\"\",OFFSET('Smelter Look-up'!$E$4,$V780-4,0))","v":""},{"$f":"IF(C780=$X$4,\"Enter smelter details\",IF(ISERROR($V780),\"\",OFFSET('Smelter Look-up'!$F$4,$V780-4,0)))","v":""},{"$f":"IF(ISERROR($V780),\"\",OFFSET('Smelter Look-up'!$G$4,$V780-4,0))","v":""},{"$f":"IF(ISERROR($V780),\"\",OFFSET('Smelter Look-up'!$H$4,$V780-4,0))","v":""},{"$f":"IF(ISERROR($V780),\"\",OFFSET('Smelter Look-up'!$I$4,$V780-4,0))","v":""},{"$nulls":7},{"$f":"IF(ISERROR($V780),\"\",OFFSET('Smelter Look-up'!$C$4,$V780-4,0)&\"\")","v":""},"",{"$f":"IF(B780=\"\",\"\",IF(ISERROR(MATCH($J780,SorP!$B$1:$B$5661,0)),\"\",INDIRECT(\"'SorP'!$A$\"&MATCH($J780,SorP!$B$1:$B$5661,0))))","v":""},null,{"$f":"IF(C780=\"\",NA(),MATCH($B780&$C780,'Smelter Look-up'!$J:$J,0))","v":{"$error":"#N/A"}},null,0,null,null,null,""]
[null,{"$f":"IF(LEN(A781)=0,\"\",INDEX('Smelter Look-up'!$A:$A,MATCH($A781,'Smelter Look-up'!$E:$E,0)))","v":""},{"$f":"IF(LEN(A781)=0,\"\",INDEX('Smelter Look-up'!$C:$C,MATCH($A781,'Smelter Look-up'!$E:$E,0)))","v":""},null,{"$f":"IF(ISERROR($V781),\"\",OFFSET('Smelter Look-up'!$D$4,$V781-4,0)&\"\")","v":""},{"$f":"IF(ISERROR($V781),\"\",OFFSET('Smelter Look-up'!$E$4,$V781-4,0))","v":""},{"$f":"IF(C781=$X$4,\"Enter smelter details\",IF(ISERROR($V781),\"\",OFFSET('Smelter Look-up'!$F$4,$V781-4,0)))","v":""},{"$f":"IF(ISERROR($V781),\"\",OFFSET('Smelter Look-up'!$G$4,$V781-4,0))","v":""},{"$f":"IF(ISERROR($V781),\"\",OFFSET('Smelter Look-up'!$H$4,$V781-4,0))","v":""},{"$f":"IF(ISERROR($V781),\"\",OFFSET('Smelter Look-up'!$I$4,$V781-4,0))","v":""},{"$nulls":7},{"$f":"IF(ISERROR($V781),\"\",OFFSET('Smelter Look-up'!$C$4,$V781-4,0)&\"\")","v":""},"",{"$f":"IF(B781=\"\",\"\",IF(ISERROR(MATCH($J781,SorP!$B$1:$B$5661,0)),\"\",INDIRECT(\"'SorP'!$A$\"&MATCH($J781,SorP!$B$1:$B$5661,0))))","v":""},null,{"$f":"IF(C781=\"\",NA(),MATCH($B781&$C781,'Smelter Look-up'!$J:$J,0))","v":{"$error":"#N/A"}},null,0,null,null,null,""]
[null,{"$f":"IF(LEN(A782)=0,\"\",INDEX('Smelter Look-up'!$A:$A,MATCH($A782,'Smelter Look-up'!$E:$E,0)))","v":""},{"$f":"IF(LEN(A782)=0,\"\",INDEX('Smelter Look-up'!$C:$C,MATCH($A782,'Smelter Look-up'!$E:$E,0)))","v":""},null,{"$f":"IF(ISERROR($V782),\"\",OFFSET('Smelter Look-up'!$D$4,$V782-4,0)&\"\")","v":""},{"$f":"IF(ISERROR($V782),\"\",OFFSET('Smelter Look-up'!$E$4,$V782-4,0))","v":""},{"$f":"IF(C782=$X$4,\"Enter smelter details\",IF(ISERROR($V782),\"\",OFFSET('Smelter Look-up'!$F$4,$V782-4,0)))","v":""},{"$f":"IF(ISERROR($V782),\"\",OFFSET('Smelter Look-up'!$G$4,$V782-4,0))","v":""},{"$f":"IF(ISERROR($V782),\"\",OFFSET('Smelter Look-up'!$H$4,$V782-4,0))","v":""},{"$f":"IF(ISERROR($V782),\"\",OFFSET('Smelter Look-up'!$I$4,$V782-4,0))","v":""},{"$nulls":7},{"$f":"IF(ISERROR($V782),\"\",OFFSET('Smelter Look-up'!$C$4,$V782-4,0)&\"\")","v":""},"",{"$f":"IF(B782=\"\",\"\",IF(ISERROR(MATCH($J782,SorP!$B$1:$B$5661,0)),\"\",INDIRECT(\"'SorP'!$A$\"&MATCH($J782,SorP!$B$1:$B$5661,0))))","v":""},null,{"$f":"IF(C782=\"\",NA(),MATCH($B782&$C782,'Smelter Look-up'!$J:$J,0))","v":{"$error":"#N/A"}},null,0,null,null,null,""]
[null,{"$f":"IF(LEN(A783)=0,\"\",INDEX('Smelter Look-up'!$A:$A,MATCH($A783,'Smelter Look-up'!$E:$E,0)))","v":""},{"$f":"IF(LEN(A783)=0,\"\",INDEX('Smelter Look-up'!$C:$C,MATCH($A783,'Smelter Look-up'!$E:$E,0)))","v":""},null,{"$f":"IF(ISERROR($V783),\"\",OFFSET('Smelter Look-up'!$D$4,$V783-4,0)&\"\")","v":""},{"$f":"IF(ISERROR($V783),\"\",OFFSET('Smelter Look-up'!$E$4,$V783-4,0))","v":""},{"$f":"IF(C783=$X$4,\"Enter smelter details\",IF(ISERROR($V783),\"\",OFFSET('Smelter Look-up'!$F$4,$V783-4,0)))","v":""},{"$f":"IF(ISERROR($V783),\"\",OFFSET('Smelter Look-up'!$G$4,$V783-4,0))","v":""},{"$f":"IF(ISERROR($V783),\"\",OFFSET('Smelter Look-up'!$H$4,$V783-4,0))","v":""},{"$f":"IF(ISERROR($V783),\"\",OFFSET('Smelter Look-up'!$I$4,$V783-4,0))","v":""},{"$nulls":7},{"$f":"IF(ISERROR($V783),\"\",OFFSET('Smelter Look-up'!$C$4,$V783-4,0)&\"\")","v":""},"",{"$f":"IF(B783=\"\",\"\",IF(ISERROR(MATCH($J783,SorP!$B$1:$B$5661,0)),\"\",INDIRECT(\"'SorP'!$A$\"&MATCH($J783,SorP!$B$1:$B$5661,0))))","v":""},null,{"$f":"IF(C783=\"\",NA(),MATCH($B783&$C783,'Smelter Look-up'!$J:$J,0))","v":{"$error":"#N/A"}},null,0,null,null,null,""]
[null,{"$f":"IF(LEN(A784)=0,\"\",INDEX('Smelter Look-up'!$A:$A,MATCH($A784,'Smelter Look-up'!$E:$E,0)))","v":""},{"$f":"IF(LEN(A784)=0,\"\",INDEX('Smelter Look-up'!$C:$C,MATCH($A784,'Smelter Look-up'!$E:$E,0)))","v":""},null,{"$f":"IF(ISERROR($V784),\"\",OFFSET('Smelter Look-up'!$D$4,$V784-4,0)&\"\")","v":""},{"$f":"IF(ISERROR($V784),\"\",OFFSET('Smelter Look-up'!$E$4,$V784-4,0))","v":""},{"$f":"IF(C784=$X$4,\"Enter smelter details\",IF(ISERROR($V784),\"\",OFFSET('Smelter Look-up'!$F$4,$V784-4,0)))","v":""},{"$f":"IF(ISERROR($V784),\"\",OFFSET('Smelter Look-up'!$G$4,$V784-4,0))","v":""},{"$f":"IF(ISERROR($V784),\"\",OFFSET('Smelter Look-up'!$H$4,$V784-4,0))","v":""},{"$f":"IF(ISERROR($V784),\"\",OFFSET('Smelter Look-up'!$I$4,$V784-4,0))","v":""},{"$nulls":7},{"$f":"IF(ISERROR($V784),\"\",OFFSET('Smelter Look-up'!$C$4,$V784-4,0)&\"\")","v":""},"",{"$f":"IF(B784=\"\",\"\",IF(ISERROR(MATCH($J784,SorP!$B$1:$B$5661,0)),\"\",INDIRECT(\"'SorP'!$A$\"&MATCH($J784,SorP!$B$1:$B$5661,0))))","v":""},null,{"$f":"IF(C784=\"\",NA(),MATCH($B784&$C784,'Smelter Look-up'!$J:$J,0))","v":{"$error":"#N/A"}},null,0,null,null,null,""]
[null,{"$f":"IF(LEN(A785)=0,\"\",INDEX('Smelter Look-up'!$A:$A,MATCH($A785,'Smelter Look-up'!$E:$E,0)))","v":""},{"$f":"IF(LEN(A785)=0,\"\",INDEX('Smelter Look-up'!$C:$C,MATCH($A785,'Smelter Look-up'!$E:$E,0)))","v":""},null,{"$f":"IF(ISERROR($V785),\"\",OFFSET('Smelter Look-up'!$D$4,$V785-4,0)&\"\")","v":""},{"$f":"IF(ISERROR($V785),\"\",OFFSET('Smelter Look-up'!$E$4,$V785-4,0))","v":""},{"$f":"IF(C785=$X$4,\"Enter smelter details\",IF(ISERROR($V785),\"\",OFFSET('Smelter Look-up'!$F$4,$V785-4,0)))","v":""},{"$f":"IF(ISERROR($V785),\"\",OFFSET('Smelter Look-up'!$G$4,$V785-4,0))","v":""},{"$f":"IF(ISERROR($V785),\"\",OFFSET('Smelter Look-up'!$H$4,$V785-4,0))","v":""},{"$f":"IF(ISERROR($V785),\"\",OFFSET('Smelter Look-up'!$I$4,$V785-4,0))","v":""},{"$nulls":7},{"$f":"IF(ISERROR($V785),\"\",OFFSET('Smelter Look-up'!$C$4,$V785-4,0)&\"\")","v":""},"",{"$f":"IF(B785=\"\",\"\",IF(ISERROR(MATCH($J785,SorP!$B$1:$B$5661,0)),\"\",INDIRECT(\"'SorP'!$A$\"&MATCH($J785,SorP!$B$1:$B$5661,0))))","v":""},null,{"$f":"IF(C785=\"\",NA(),MATCH($B785&$C785,'Smelter Look-up'!$J:$J,0))","v":{"$error":"#N/A"}},null,0,null,null,null,""]
[null,{"$f":"IF(LEN(A786)=0,\"\",INDEX('Smelter Look-up'!$A:$A,MATCH($A786,'Smelter Look-up'!$E:$E,0)))","v":""},{"$f":"IF(LEN(A786)=0,\"\",INDEX('Smelter Look-up'!$C:$C,MATCH($A786,'Smelter Look-up'!$E:$E,0)))","v":""},null,{"$f":"IF(ISERROR($V786),\"\",OFFSET('Smelter Look-up'!$D$4,$V786-4,0)&\"\")","v":""},{"$f":"IF(ISERROR($V786),\"\",OFFSET('Smelter Look-up'!$E$4,$V786-4,0))","v":""},{"$f":"IF(C786=$X$4,\"Enter smelter details\",IF(ISERROR($V786),\"\",OFFSET('Smelter Look-up'!$F$4,$V786-4,0)))","v":""},{"$f":"IF(ISERROR($V786),\"\",OFFSET('Smelter Look-up'!$G$4,$V786-4,0))","v":""},{"$f":"IF(ISERROR($V786),\"\",OFFSET('Smelter Look-up'!$H$4,$V786-4,0))","v":""},{"$f":"IF(ISERROR($V786),\"\",OFFSET('Smelter Look-up'!$I$4,$V786-4,0))","v":""},{"$nulls":7},{"$f":"IF(ISERROR($V786),\"\",OFFSET('Smelter Look-up'!$C$4,$V786-4,0)&\"\")","v":""},"",{"$f":"IF(B786=\"\",\"\",IF(ISERROR(MATCH($J786,SorP!$B$1:$B$5661,0)),\"\",INDIRECT(\"'SorP'!$A$\"&MATCH($J786,SorP!$B$1:$B$5661,0))))","v":""},null,{"$f":"IF(C786=\"\",NA(),MATCH($B786&$C786,'Smelter Look-up'!$J:$J,0))","v":{"$error":"#N/A"}},null,0,null,null,null,""]
[null,{"$f":"IF(LEN(A787)=0,\"\",INDEX('Smelter Look-up'!$A:$A,MATCH($A787,'Smelter Look-up'!$E:$E,0)))","v":""},{"$f":"IF(LEN(A787)=0,\"\",INDEX('Smelter Look-up'!$C:$C,MATCH($A787,'Smelter Look-up'!$E:$E,0)))","v":""},null,{"$f":"IF(ISERROR($V787),\"\",OFFSET('Smelter Look-up'!$D$4,$V787-4,0)&\"\")","v":""},{"$f":"IF(ISERROR($V787),\"\",OFFSET('Smelter Look-up'!$E$4,$V787-4,0))","v":""},{"$f":"IF(C787=$X$4,\"Enter smelter details\",IF(ISERROR($V787),\"\",OFFSET('Smelter Look-up'!$F$4,$V787-4,0)))","v":""},{"$f":"IF(ISERROR($V787),\"\",OFFSET('Smelter Look-up'!$G$4,$V787-4,0))","v":""},{"$f":"IF(ISERROR($V787),\"\",OFFSET('Smelter Look-up'!$H$4,$V787-4,0))","v":""},{"$f":"IF(ISERROR($V787),\"\",OFFSET('Smelter Look-up'!$I$4,$V787-4,0))","v":""},{"$nulls":7},{"$f":"IF(ISERROR($V787),\"\",OFFSET('Smelter Look-up'!$C$4,$V787-4,0)&\"\")","v":""},"",{"$f":"IF(B787=\"\",\"\",IF(ISERROR(MATCH($J787,SorP!$B$1:$B$5661,0)),\"\",INDIRECT(\"'SorP'!$A$\"&MATCH($J787,SorP!$B$1:$B$5661,0))))","v":""},null,{"$f":"IF(C787=\"\",NA(),MATCH($B787&$C787,'Smelter Look-up'!$J:$J,0))","v":{"$error":"#N/A"}},null,0,null,null,null,""]
[null,{"$f":"IF(LEN(A788)=0,\"\",INDEX('Smelter Look-up'!$A:$A,MATCH($A788,'Smelter Look-up'!$E:$E,0)))","v":""},{"$f":"IF(LEN(A788)=0,\"\",INDEX('Smelter Look-up'!$C:$C,MATCH($A788,'Smelter Look-up'!$E:$E,0)))","v":""},null,{"$f":"IF(ISERROR($V788),\"\",OFFSET('Smelter Look-up'!$D$4,$V788-4,0)&\"\")","v":""},{"$f":"IF(ISERROR($V788),\"\",OFFSET('Smelter Look-up'!$E$4,$V788-4,0))","v":""},{"$f":"IF(C788=$X$4,\"Enter smelter details\",IF(ISERROR($V788),\"\",OFFSET('Smelter Look-up'!$F$4,$V788-4,0)))","v":""},{"$f":"IF(ISERROR($V788),\"\",OFFSET('Smelter Look-up'!$G$4,$V788-4,0))","v":""},{"$f":"IF(ISERROR($V788),\"\",OFFSET('Smelter Look-up'!$H$4,$V788-4,0))","v":""},{"$f":"IF(ISERROR($V788),\"\",OFFSET('Smelter Look-up'!$I$4,$V788-4,0))","v":""},{"$nulls":7},{"$f":"IF(ISERROR($V788),\"\",OFFSET('Smelter Look-up'!$C$4,$V788-4,0)&\"\")","v":""},"",{"$f":"IF(B788=\"\",\"\",IF(ISERROR(MATCH($J788,SorP!$B$1:$B$5661,0)),\"\",INDIRECT(\"'SorP'!$A$\"&MATCH($J788,SorP!$B$1:$B$5661,0))))","v":""},null,{"$f":"IF(C788=\"\",NA(),MATCH($B788&$C788,'Smelter Look-up'!$J:$J,0))","v":{"$error":"#N/A"}},null,0,null,null,null,""]
[null,{"$f":"IF(LEN(A789)=0,\"\",INDEX('Smelter Look-up'!$A:$A,MATCH($A789,'Smelter Look-up'!$E:$E,0)))","v":""},{"$f":"IF(LEN(A789)=0,\"\",INDEX('Smelter Look-up'!$C:$C,MATCH($A789,'Smelter Look-up'!$E:$E,0)))","v":""},null,{"$f":"IF(ISERROR($V789),\"\",OFFSET('Smelter Look-up'!$D$4,$V789-4,0)&\"\")","v":""},{"$f":"IF(ISERROR($V789),\"\",OFFSET('Smelter Look-up'!$E$4,$V789-4,0))","v":""},{"$f":"IF(C789=$X$4,\"Enter smelter details\",IF(ISERROR($V789),\"\",OFFSET('Smelter Look-up'!$F$4,$V789-4,0)))","v":""},{"$f":"IF(ISERROR($V789),\"\",OFFSET('Smelter Look-up'!$G$4,$V789-4,0))","v":""},{"$f":"IF(ISERROR($V789),\"\",OFFSET('Smelter Look-up'!$H$4,$V789-4,0))","v":""},{"$f":"IF(ISERROR($V789),\"\",OFFSET('Smelter Look-up'!$I$4,$V789-4,0))","v":""},{"$nulls":7},{"$f":"IF(ISERROR($V789),\"\",OFFSET('Smelter Look-up'!$C$4,$V789-4,0)&\"\")","v":""},"",{"$f":"IF(B789=\"\",\"\",IF(ISERROR(MATCH($J789,SorP!$B$1:$B$5661,0)),\"\",INDIRECT(\"'SorP'!$A$\"&MATCH($J789,SorP!$B$1:$B$5661,0))))","v":""},null,{"$f":"IF(C789=\"\",NA(),MATCH($B789&$C789,'Smelter Look-up'!$J:$J,0))","v":{"$error":"#N/A"}},null,0,null,null,null,""]
[null,{"$f":"IF(LEN(A790)=0,\"\",INDEX('Smelter Look-up'!$A:$A,MATCH($A790,'Smelter Look-up'!$E:$E,0)))","v":""},{"$f":"IF(LEN(A790)=0,\"\",INDEX('Smelter Look-up'!$C:$C,MATCH($A790,'Smelter Look-up'!$E:$E,0)))","v":""},null,{"$f":"IF(ISERROR($V790),\"\",OFFSET('Smelter Look-up'!$D$4,$V790-4,0)&\"\")","v":""},{"$f":"IF(ISERROR($V790),\"\",OFFSET('Smelter Look-up'!$E$4,$V790-4,0))","v":""},{"$f":"IF(C790=$X$4,\"Enter smelter details\",IF(ISERROR($V790),\"\",OFFSET('Smelter Look-up'!$F$4,$V790-4,0)))","v":""},{"$f":"IF(ISERROR($V790),\"\",OFFSET('Smelter Look-up'!$G$4,$V790-4,0))","v":""},{"$f":"IF(ISERROR($V790),\"\",OFFSET('Smelter Look-up'!$H$4,$V790-4,0))","v":""},{"$f":"IF(ISERROR($V790),\"\",OFFSET('Smelter Look-up'!$I$4,$V790-4,0))","v":""},{"$nulls":7},{"$f":"IF(ISERROR($V790),\"\",OFFSET('Smelter Look-up'!$C$4,$V790-4,0)&\"\")","v":""},"",{"$f":"IF(B790=\"\",\"\",IF(ISERROR(MATCH($J790,SorP!$B$1:$B$5661,0)),\"\",INDIRECT(\"'SorP'!$A$\"&MATCH($J790,SorP!$B$1:$B$5661,0))))","v":""},null,{"$f":"IF(C790=\"\",NA(),MATCH($B790&$C790,'Smelter Look-up'!$J:$J,0))","v":{"$error":"#N/A"}},null,0,null,null,null,""]
[null,{"$f":"IF(LEN(A791)=0,\"\",INDEX('Smelter Look-up'!$A:$A,MATCH($A791,'Smelter Look-up'!$E:$E,0)))","v":""},{"$f":"IF(LEN(A791)=0,\"\",INDEX('Smelter Look-up'!$C:$C,MATCH($A791,'Smelter Look-up'!$E:$E,0)))","v":""},null,{"$f":"IF(ISERROR($V791),\"\",OFFSET('Smelter Look-up'!$D$4,$V791-4,0)&\"\")","v":""},{"$f":"IF(ISERROR($V791),\"\",OFFSET('Smelter Look-up'!$E$4,$V791-4,0))","v":""},{"$f":"IF(C791=$X$4,\"Enter smelter details\",IF(ISERROR($V791),\"\",OFFSET('Smelter Look-up'!$F$4,$V791-4,0)))","v":""},{"$f":"IF(ISERROR($V791),\"\",OFFSET('Smelter Look-up'!$G$4,$V791-4,0))","v":""},{"$f":"IF(ISERROR($V791),\"\",OFFSET('Smelter Look-up'!$H$4,$V791-4,0))","v":""},{"$f":"IF(ISERROR($V791),\"\",OFFSET('Smelter Look-up'!$I$4,$V791-4,0))","v":""},{"$nulls":7},{"$f":"IF(ISERROR($V791),\"\",OFFSET('Smelter Look-up'!$C$4,$V791-4,0)&\"\")","v":""},"",{"$f":"IF(B791=\"\",\"\",IF(ISERROR(MATCH($J791,SorP!$B$1:$B$5661,0)),\"\",INDIRECT(\"'SorP'!$A$\"&MATCH($J791,SorP!$B$1:$B$5661,0))))","v":""},null,{"$f":"IF(C791=\"\",NA(),MATCH($B791&$C791,'Smelter Look-up'!$J:$J,0))","v":{"$error":"#N/A"}},null,0,null,null,null,""]
[null,{"$f":"IF(LEN(A792)=0,\"\",INDEX('Smelter Look-up'!$A:$A,MATCH($A792,'Smelter Look-up'!$E:$E,0)))","v":""},{"$f":"IF(LEN(A792)=0,\"\",INDEX('Smelter Look-up'!$C:$C,MATCH($A792,'Smelter Look-up'!$E:$E,0)))","v":""},null,{"$f":"IF(ISERROR($V792),\"\",OFFSET('Smelter Look-up'!$D$4,$V792-4,0)&\"\")","v":""},{"$f":"IF(ISERROR($V792),\"\",OFFSET('Smelter Look-up'!$E$4,$V792-4,0))","v":""},{"$f":"IF(C792=$X$4,\"Enter smelter details\",IF(ISERROR($V792),\"\",OFFSET('Smelter Look-up'!$F$4,$V792-4,0)))","v":""},{"$f":"IF(ISERROR($V792),\"\",OFFSET('Smelter Look-up'!$G$4,$V792-4,0))","v":""},{"$f":"IF(ISERROR($V792),\"\",OFFSET('Smelter Look-up'!$H$4,$V792-4,0))","v":""},{"$f":"IF(ISERROR($V792),\"\",OFFSET('Smelter Look-up'!$I$4,$V792-4,0))","v":""},{"$nulls":7},{"$f":"IF(ISERROR($V792),\"\",OFFSET('Smelter Look-up'!$C$4,$V792-4,0)&\"\")","v":""},"",{"$f":"IF(B792=\"\",\"\",IF(ISERROR(MATCH($J792,SorP!$B$1:$B$5661,0)),\"\",INDIRECT(\"'SorP'!$A$\"&MATCH($J792,SorP!$B$1:$B$5661,0))))","v":""},null,{"$f":"IF(C792=\"\",NA(),MATCH($B792&$C792,'Smelter Look-up'!$J:$J,0))","v":{"$error":"#N/A"}},null,0,null,null,null,""]
[null,{"$f":"IF(LEN(A793)=0,\"\",INDEX('Smelter Look-up'!$A:$A,MATCH($A793,'Smelter Look-up'!$E:$E,0)))","v":""},{"$f":"IF(LEN(A793)=0,\"\",INDEX('Smelter Look-up'!$C:$C,MATCH($A793,'Smelter Look-up'!$E:$E,0)))","v":""},null,{"$f":"IF(ISERROR($V793),\"\",OFFSET('Smelter Look-up'!$D$4,$V793-4,0)&\"\")","v":""},{"$f":"IF(ISERROR($V793),\"\",OFFSET('Smelter Look-up'!$E$4,$V793-4,0))","v":""},{"$f":"IF(C793=$X$4,\"Enter smelter details\",IF(ISERROR($V793),\"\",OFFSET('Smelter Look-up'!$F$4,$V793-4,0)))","v":""},{"$f":"IF(ISERROR($V793),\"\",OFFSET('Smelter Look-up'!$G$4,$V793-4,0))","v":""},{"$f":"IF(ISERROR($V793),\"\",OFFSET('Smelter Look-up'!$H$4,$V793-4,0))","v":""},{"$f":"IF(ISERROR($V793),\"\",OFFSET('Smelter Look-up'!$I$4,$V793-4,0))","v":""},{"$nulls":7},{"$f":"IF(ISERROR($V793),\"\",OFFSET('Smelter Look-up'!$C$4,$V793-4,0)&\"\")","v":""},"",{"$f":"IF(B793=\"\",\"\",IF(ISERROR(MATCH($J793,SorP!$B$1:$B$5661,0)),\"\",INDIRECT(\"'SorP'!$A$\"&MATCH($J793,SorP!$B$1:$B$5661,0))))","v":""},null,{"$f":"IF(C793=\"\",NA(),MATCH($B793&$C793,'Smelter Look-up'!$J:$J,0))","v":{"$error":"#N/A"}},null,0,null,null,null,""]
[null,{"$f":"IF(LEN(A794)=0,\"\",INDEX('Smelter Look-up'!$A:$A,MATCH($A794,'Smelter Look-up'!$E:$E,0)))","v":""},{"$f":"IF(LEN(A794)=0,\"\",INDEX('Smelter Look-up'!$C:$C,MATCH($A794,'Smelter Look-up'!$E:$E,0)))","v":""},null,{"$f":"IF(ISERROR($V794),\"\",OFFSET('Smelter Look-up'!$D$4,$V794-4,0)&\"\")","v":""},{"$f":"IF(ISERROR($V794),\"\",OFFSET('Smelter Look-up'!$E$4,$V794-4,0))","v":""},{"$f":"IF(C794=$X$4,\"Enter smelter details\",IF(ISERROR($V794),\"\",OFFSET('Smelter Look-up'!$F$4,$V794-4,0)))","v":""},{"$f":"IF(ISERROR($V794),\"\",OFFSET('Smelter Look-up'!$G$4,$V794-4,0))","v":""},{"$f":"IF(ISERROR($V794),\"\",OFFSET('Smelter Look-up'!$H$4,$V794-4,0))","v":""},{"$f":"IF(ISERROR($V794),\"\",OFFSET('Smelter Look-up'!$I$4,$V794-4,0))","v":""},{"$nulls":7},{"$f":"IF(ISERROR($V794),\"\",OFFSET('Smelter Look-up'!$C$4,$V794-4,0)&\"\")","v":""},"",{"$f":"IF(B794=\"\",\"\",IF(ISERROR(MATCH($J794,SorP!$B$1:$B$5661,0)),\"\",INDIRECT(\"'SorP'!$A$\"&MATCH($J794,SorP!$B$1:$B$5661,0))))","v":""},null,{"$f":"IF(C794=\"\",NA(),MATCH($B794&$C794,'Smelter Look-up'!$J:$J,0))","v":{"$error":"#N/A"}},null,0,null,null,null,""]
[null,{"$f":"IF(LEN(A795)=0,\"\",INDEX('Smelter Look-up'!$A:$A,MATCH($A795,'Smelter Look-up'!$E:$E,0)))","v":""},{"$f":"IF(LEN(A795)=0,\"\",INDEX('Smelter Look-up'!$C:$C,MATCH($A795,'Smelter Look-up'!$E:$E,0)))","v":""},null,{"$f":"IF(ISERROR($V795),\"\",OFFSET('Smelter Look-up'!$D$4,$V795-4,0)&\"\")","v":""},{"$f":"IF(ISERROR($V795),\"\",OFFSET('Smelter Look-up'!$E$4,$V795-4,0))","v":""},{"$f":"IF(C795=$X$4,\"Enter smelter details\",IF(ISERROR($V795),\"\",OFFSET('Smelter Look-up'!$F$4,$V795-4,0)))","v":""},{"$f":"IF(ISERROR($V795),\"\",OFFSET('Smelter Look-up'!$G$4,$V795-4,0))","v":""},{"$f":"IF(ISERROR($V795),\"\",OFFSET('Smelter Look-up'!$H$4,$V795-4,0))","v":""},{"$f":"IF(ISERROR($V795),\"\",OFFSET('Smelter Look-up'!$I$4,$V795-4,0))","v":""},{"$nulls":7},{"$f":"IF(ISERROR($V795),\"\",OFFSET('Smelter Look-up'!$C$4,$V795-4,0)&\"\")","v":""},"",{"$f":"IF(B795=\"\",\"\",IF(ISERROR(MATCH($J795,SorP!$B$1:$B$5661,0)),\"\",INDIRECT(\"'SorP'!$A$\"&MATCH($J795,SorP!$B$1:$B$5661,0))))","v":""},null,{"$f":"IF(C795=\"\",NA(),MATCH($B795&$C795,'Smelter Look-up'!$J:$J,0))","v":{"$error":"#N/A"}},null,0,null,null,null,""]
[null,{"$f":"IF(LEN(A796)=0,\"\",INDEX('Smelter Look-up'!$A:$A,MATCH($A796,'Smelter Look-up'!$E:$E,0)))","v":""},{"$f":"IF(LEN(A796)=0,\"\",INDEX('Smelter Look-up'!$C:$C,MATCH($A796,'Smelter Look-up'!$E:$E,0)))","v":""},null,{"$f":"IF(ISERROR($V796),\"\",OFFSET('Smelter Look-up'!$D$4,$V796-4,0)&\"\")","v":""},{"$f":"IF(ISERROR($V796),\"\",OFFSET('Smelter Look-up'!$E$4,$V796-4,0))","v":""},{"$f":"IF(C796=$X$4,\"Enter smelter details\",IF(ISERROR($V796),\"\",OFFSET('Smelter Look-up'!$F$4,$V796-4,0)))","v":""},{"$f":"IF(ISERROR($V796),\"\",OFFSET('Smelter Look-up'!$G$4,$V796-4,0))","v":""},{"$f":"IF(ISERROR($V796),\"\",OFFSET('Smelter Look-up'!$H$4,$V796-4,0))","v":""},{"$f":"IF(ISERROR($V796),\"\",OFFSET('Smelter Look-up'!$I$4,$V796-4,0))","v":""},{"$nulls":7},{"$f":"IF(ISERROR($V796),\"\",OFFSET('Smelter Look-up'!$C$4,$V796-4,0)&\"\")","v":""},"",{"$f":"IF(B796=\"\",\"\",IF(ISERROR(MATCH($J796,SorP!$B$1:$B$5661,0)),\"\",INDIRECT(\"'SorP'!$A$\"&MATCH($J796,SorP!$B$1:$B$5661,0))))","v":""},null,{"$f":"IF(C796=\"\",NA(),MATCH($B796&$C796,'Smelter Look-up'!$J:$J,0))","v":{"$error":"#N/A"}},null,0,null,null,null,""]
[null,{"$f":"IF(LEN(A797)=0,\"\",INDEX('Smelter Look-up'!$A:$A,MATCH($A797,'Smelter Look-up'!$E:$E,0)))","v":""},{"$f":"IF(LEN(A797)=0,\"\",INDEX('Smelter Look-up'!$C:$C,MATCH($A797,'Smelter Look-up'!$E:$E,0)))","v":""},null,{"$f":"IF(ISERROR($V797),\"\",OFFSET('Smelter Look-up'!$D$4,$V797-4,0)&\"\")","v":""},{"$f":"IF(ISERROR($V797),\"\",OFFSET('Smelter Look-up'!$E$4,$V797-4,0))","v":""},{"$f":"IF(C797=$X$4,\"Enter smelter details\",IF(ISERROR($V797),\"\",OFFSET('Smelter Look-up'!$F$4,$V797-4,0)))","v":""},{"$f":"IF(ISERROR($V797),\"\",OFFSET('Smelter Look-up'!$G$4,$V797-4,0))","v":""},{"$f":"IF(ISERROR($V797),\"\",OFFSET('Smelter Look-up'!$H$4,$V797-4,0))","v":""},{"$f":"IF(ISERROR($V797),\"\",OFFSET('Smelter Look-up'!$I$4,$V797-4,0))","v":""},{"$nulls":7},{"$f":"IF(ISERROR($V797),\"\",OFFSET('Smelter Look-up'!$C$4,$V797-4,0)&\"\")","v":""},"",{"$f":"IF(B797=\"\",\"\",IF(ISERROR(MATCH($J797,SorP!$B$1:$B$5661,0)),\"\",INDIRECT(\"'SorP'!$A$\"&MATCH($J797,SorP!$B$1:$B$5661,0))))","v":""},null,{"$f":"IF(C797=\"\",NA(),MATCH($B797&$C797,'Smelter Look-up'!$J:$J,0))","v":{"$error":"#N/A"}},null,0,null,null,null,""]
[null,{"$f":"IF(LEN(A798)=0,\"\",INDEX('Smelter Look-up'!$A:$A,MATCH($A798,'Smelter Look-up'!$E:$E,0)))","v":""},{"$f":"IF(LEN(A798)=0,\"\",INDEX('Smelter Look-up'!$C:$C,MATCH($A798,'Smelter Look-up'!$E:$E,0)))","v":""},null,{"$f":"IF(ISERROR($V798),\"\",OFFSET('Smelter Look-up'!$D$4,$V798-4,0)&\"\")","v":""},{"$f":"IF(ISERROR($V798),\"\",OFFSET('Smelter Look-up'!$E$4,$V798-4,0))","v":""},{"$f":"IF(C798=$X$4,\"Enter smelter details\",IF(ISERROR($V798),\"\",OFFSET('Smelter Look-up'!$F$4,$V798-4,0)))","v":""},{"$f":"IF(ISERROR($V798),\"\",OFFSET('Smelter Look-up'!$G$4,$V798-4,0))","v":""},{"$f":"IF(ISERROR($V798),\"\",OFFSET('Smelter Look-up'!$H$4,$V798-4,0))","v":""},{"$f":"IF(ISERROR($V798),\"\",OFFSET('Smelter Look-up'!$I$4,$V798-4,0))","v":""},{"$nulls":7},{"$f":"IF(ISERROR($V798),\"\",OFFSET('Smelter Look-up'!$C$4,$V798-4,0)&\"\")","v":""},"",{"$f":"IF(B798=\"\",\"\",IF(ISERROR(MATCH($J798,SorP!$B$1:$B$5661,0)),\"\",INDIRECT(\"'SorP'!$A$\"&MATCH($J798,SorP!$B$1:$B$5661,0))))","v":""},null,{"$f":"IF(C798=\"\",NA(),MATCH($B798&$C798,'Smelter Look-up'!$J:$J,0))","v":{"$error":"#N/A"}},null,0,null,null,null,""]
[null,{"$f":"IF(LEN(A799)=0,\"\",INDEX('Smelter Look-up'!$A:$A,MATCH($A799,'Smelter Look-up'!$E:$E,0)))","v":""},{"$f":"IF(LEN(A799)=0,\"\",INDEX('Smelter Look-up'!$C:$C,MATCH($A799,'Smelter Look-up'!$E:$E,0)))","v":""},null,{"$f":"IF(ISERROR($V799),\"\",OFFSET('Smelter Look-up'!$D$4,$V799-4,0)&\"\")","v":""},{"$f":"IF(ISERROR($V799),\"\",OFFSET('Smelter Look-up'!$E$4,$V799-4,0))","v":""},{"$f":"IF(C799=$X$4,\"Enter smelter details\",IF(ISERROR($V799),\"\",OFFSET('Smelter Look-up'!$F$4,$V799-4,0)))","v":""},{"$f":"IF(ISERROR($V799),\"\",OFFSET('Smelter Look-up'!$G$4,$V799-4,0))","v":""},{"$f":"IF(ISERROR($V799),\"\",OFFSET('Smelter Look-up'!$H$4,$V799-4,0))","v":""},{"$f":"IF(ISERROR($V799),\"\",OFFSET('Smelter Look-up'!$I$4,$V799-4,0))","v":""},{"$nulls":7},{"$f":"IF(ISERROR($V799),\"\",OFFSET('Smelter Look-up'!$C$4,$V799-4,0)&\"\")","v":""},"",{"$f":"IF(B799=\"\",\"\",IF(ISERROR(MATCH($J799,SorP!$B$1:$B$5661,0)),\"\",INDIRECT(\"'SorP'!$A$\"&MATCH($J799,SorP!$B$1:$B$5661,0))))","v":""},null,{"$f":"IF(C799=\"\",NA(),MATCH($B799&$C799,'Smelter Look-up'!$J:$J,0))","v":{"$error":"#N/A"}},null,0,null,null,null,""]
[null,{"$f":"IF(LEN(A800)=0,\"\",INDEX('Smelter Look-up'!$A:$A,MATCH($A800,'Smelter Look-up'!$E:$E,0)))","v":""},{"$f":"IF(LEN(A800)=0,\"\",INDEX('Smelter Look-up'!$C:$C,MATCH($A800,'Smelter Look-up'!$E:$E,0)))","v":""},null,{"$f":"IF(ISERROR($V800),\"\",OFFSET('Smelter Look-up'!$D$4,$V800-4,0)&\"\")","v":""},{"$f":"IF(ISERROR($V800),\"\",OFFSET('Smelter Look-up'!$E$4,$V800-4,0))","v":""},{"$f":"IF(C800=$X$4,\"Enter smelter details\",IF(ISERROR($V800),\"\",OFFSET('Smelter Look-up'!$F$4,$V800-4,0)))","v":""},{"$f":"IF(ISERROR($V800),\"\",OFFSET('Smelter Look-up'!$G$4,$V800-4,0))","v":""},{"$f":"IF(ISERROR($V800),\"\",OFFSET('Smelter Look-up'!$H$4,$V800-4,0))","v":""},{"$f":"IF(ISERROR($V800),\"\",OFFSET('Smelter Look-up'!$I$4,$V800-4,0))","v":""},{"$nulls":7},{"$f":"IF(ISERROR($V800),\"\",OFFSET('Smelter Look-up'!$C$4,$V800-4,0)&\"\")","v":""},"",{"$f":"IF(B800=\"\",\"\",IF(ISERROR(MATCH($J800,SorP!$B$1:$B$5661,0)),\"\",INDIRECT(\"'SorP'!$A$\"&MATCH($J800,SorP!$B$1:$B$5661,0))))","v":""},null,{"$f":"IF(C800=\"\",NA(),MATCH($B800&$C800,'Smelter Look-up'!$J:$J,0))","v":{"$error":"#N/A"}},null,0,null,null,null,""]
[null,{"$f":"IF(LEN(A801)=0,\"\",INDEX('Smelter Look-up'!$A:$A,MATCH($A801,'Smelter Look-up'!$E:$E,0)))","v":""},{"$f":"IF(LEN(A801)=0,\"\",INDEX('Smelter Look-up'!$C:$C,MATCH($A801,'Smelter Look-up'!$E:$E,0)))","v":""},null,{"$f":"IF(ISERROR($V801),\"\",OFFSET('Smelter Look-up'!$D$4,$V801-4,0)&\"\")","v":""},{"$f":"IF(ISERROR($V801),\"\",OFFSET('Smelter Look-up'!$E$4,$V801-4,0))","v":""},{"$f":"IF(C801=$X$4,\"Enter smelter details\",IF(ISERROR($V801),\"\",OFFSET('Smelter Look-up'!$F$4,$V801-4,0)))","v":""},{"$f":"IF(ISERROR($V801),\"\",OFFSET('Smelter Look-up'!$G$4,$V801-4,0))","v":""},{"$f":"IF(ISERROR($V801),\"\",OFFSET('Smelter Look-up'!$H$4,$V801-4,0))","v":""},{"$f":"IF(ISERROR($V801),\"\",OFFSET('Smelter Look-up'!$I$4,$V801-4,0))","v":""},{"$nulls":7},{"$f":"IF(ISERROR($V801),\"\",OFFSET('Smelter Look-up'!$C$4,$V801-4,0)&\"\")","v":""},"",{"$f":"IF(B801=\"\",\"\",IF(ISERROR(MATCH($J801,SorP!$B$1:$B$5661,0)),\"\",INDIRECT(\"'SorP'!$A$\"&MATCH($J801,SorP!$B$1:$B$5661,0))))","v":""},null,{"$f":"IF(C801=\"\",NA(),MATCH($B801&$C801,'Smelter Look-up'!$J:$J,0))","v":{"$error":"#N/A"}},null,0,null,null,null,""]
[null,{"$f":"IF(LEN(A802)=0,\"\",INDEX('Smelter Look-up'!$A:$A,MATCH($A802,'Smelter Look-up'!$E:$E,0)))","v":""},{"$f":"IF(LEN(A802)=0,\"\",INDEX('Smelter Look-up'!$C:$C,MATCH($A802,'Smelter Look-up'!$E:$E,0)))","v":""},null,{"$f":"IF(ISERROR($V802),\"\",OFFSET('Smelter Look-up'!$D$4,$V802-4,0)&\"\")","v":""},{"$f":"IF(ISERROR($V802),\"\",OFFSET('Smelter Look-up'!$E$4,$V802-4,0))","v":""},{"$f":"IF(C802=$X$4,\"Enter smelter details\",IF(ISERROR($V802),\"\",OFFSET('Smelter Look-up'!$F$4,$V802-4,0)))","v":""},{"$f":"IF(ISERROR($V802),\"\",OFFSET('Smelter Look-up'!$G$4,$V802-4,0))","v":""},{"$f":"IF(ISERROR($V802),\"\",OFFSET('Smelter Look-up'!$H$4,$V802-4,0))","v":""},{"$f":"IF(ISERROR($V802),\"\",OFFSET('Smelter Look-up'!$I$4,$V802-4,0))","v":""},{"$nulls":7},{"$f":"IF(ISERROR($V802),\"\",OFFSET('Smelter Look-up'!$C$4,$V802-4,0)&\"\")","v":""},"",{"$f":"IF(B802=\"\",\"\",IF(ISERROR(MATCH($J802,SorP!$B$1:$B$5661,0)),\"\",INDIRECT(\"'SorP'!$A$\"&MATCH($J802,SorP!$B$1:$B$5661,0))))","v":""},null,{"$f":"IF(C802=\"\",NA(),MATCH($B802&$C802,'Smelter Look-up'!$J:$J,0))","v":{"$error":"#N/A"}},null,0,null,null,null,""]
[null,{"$f":"IF(LEN(A803)=0,\"\",INDEX('Smelter Look-up'!$A:$A,MATCH($A803,'Smelter Look-up'!$E:$E,0)))","v":""},{"$f":"IF(LEN(A803)=0,\"\",INDEX('Smelter Look-up'!$C:$C,MATCH($A803,'Smelter Look-up'!$E:$E,0)))","v":""},null,{"$f":"IF(ISERROR($V803),\"\",OFFSET('Smelter Look-up'!$D$4,$V803-4,0)&\"\")","v":""},{"$f":"IF(ISERROR($V803),\"\",OFFSET('Smelter Look-up'!$E$4,$V803-4,0))","v":""},{"$f":"IF(C803=$X$4,\"Enter smelter details\",IF(ISERROR($V803),\"\",OFFSET('Smelter Look-up'!$F$4,$V803-4,0)))","v":""},{"$f":"IF(ISERROR($V803),\"\",OFFSET('Smelter Look-up'!$G$4,$V803-4,0))","v":""},{"$f":"IF(ISERROR($V803),\"\",OFFSET('Smelter Look-up'!$H$4,$V803-4,0))","v":""},{"$f":"IF(ISERROR($V803),\"\",OFFSET('Smelter Look-up'!$I$4,$V803-4,0))","v":""},{"$nulls":7},{"$f":"IF(ISERROR($V803),\"\",OFFSET('Smelter Look-up'!$C$4,$V803-4,0)&\"\")","v":""},"",{"$f":"IF(B803=\"\",\"\",IF(ISERROR(MATCH($J803,SorP!$B$1:$B$5661,0)),\"\",INDIRECT(\"'SorP'!$A$\"&MATCH($J803,SorP!$B$1:$B$5661,0))))","v":""},null,{"$f":"IF(C803=\"\",NA(),MATCH($B803&$C803,'Smelter Look-up'!$J:$J,0))","v":{"$error":"#N/A"}},null,0,null,null,null,""]
[null,{"$f":"IF(LEN(A804)=0,\"\",INDEX('Smelter Look-up'!$A:$A,MATCH($A804,'Smelter Look-up'!$E:$E,0)))","v":""},{"$f":"IF(LEN(A804)=0,\"\",INDEX('Smelter Look-up'!$C:$C,MATCH($A804,'Smelter Look-up'!$E:$E,0)))","v":""},null,{"$f":"IF(ISERROR($V804),\"\",OFFSET('Smelter Look-up'!$D$4,$V804-4,0)&\"\")","v":""},{"$f":"IF(ISERROR($V804),\"\",OFFSET('Smelter Look-up'!$E$4,$V804-4,0))","v":""},{"$f":"IF(C804=$X$4,\"Enter smelter details\",IF(ISERROR($V804),\"\",OFFSET('Smelter Look-up'!$F$4,$V804-4,0)))","v":""},{"$f":"IF(ISERROR($V804),\"\",OFFSET('Smelter Look-up'!$G$4,$V804-4,0))","v":""},{"$f":"IF(ISERROR($V804),\"\",OFFSET('Smelter Look-up'!$H$4,$V804-4,0))","v":""},{"$f":"IF(ISERROR($V804),\"\",OFFSET('Smelter Look-up'!$I$4,$V804-4,0))","v":""},{"$nulls":7},{"$f":"IF(ISERROR($V804),\"\",OFFSET('Smelter Look-up'!$C$4,$V804-4,0)&\"\")","v":""},"",{"$f":"IF(B804=\"\",\"\",IF(ISERROR(MATCH($J804,SorP!$B$1:$B$5661,0)),\"\",INDIRECT(\"'SorP'!$A$\"&MATCH($J804,SorP!$B$1:$B$5661,0))))","v":""},null,{"$f":"IF(C804=\"\",NA(),MATCH($B804&$C804,'Smelter Look-up'!$J:$J,0))","v":{"$error":"#N/A"}},null,0,null,null,null,""]
[null,{"$f":"IF(LEN(A805)=0,\"\",INDEX('Smelter Look-up'!$A:$A,MATCH($A805,'Smelter Look-up'!$E:$E,0)))","v":""},{"$f":"IF(LEN(A805)=0,\"\",INDEX('Smelter Look-up'!$C:$C,MATCH($A805,'Smelter Look-up'!$E:$E,0)))","v":""},null,{"$f":"IF(ISERROR($V805),\"\",OFFSET('Smelter Look-up'!$D$4,$V805-4,0)&\"\")","v":""},{"$f":"IF(ISERROR($V805),\"\",OFFSET('Smelter Look-up'!$E$4,$V805-4,0))","v":""},{"$f":"IF(C805=$X$4,\"Enter smelter details\",IF(ISERROR($V805),\"\",OFFSET('Smelter Look-up'!$F$4,$V805-4,0)))","v":""},{"$f":"IF(ISERROR($V805),\"\",OFFSET('Smelter Look-up'!$G$4,$V805-4,0))","v":""},{"$f":"IF(ISERROR($V805),\"\",OFFSET('Smelter Look-up'!$H$4,$V805-4,0))","v":""},{"$f":"IF(ISERROR($V805),\"\",OFFSET('Smelter Look-up'!$I$4,$V805-4,0))","v":""},{"$nulls":7},{"$f":"IF(ISERROR($V805),\"\",OFFSET('Smelter Look-up'!$C$4,$V805-4,0)&\"\")","v":""},"",{"$f":"IF(B805=\"\",\"\",IF(ISERROR(MATCH($J805,SorP!$B$1:$B$5661,0)),\"\",INDIRECT(\"'SorP'!$A$\"&MATCH($J805,SorP!$B$1:$B$5661,0))))","v":""},null,{"$f":"IF(C805=\"\",NA(),MATCH($B805&$C805,'Smelter Look-up'!$J:$J,0))","v":{"$error":"#N/A"}},null,0,null,null,null,""]
[null,{"$f":"IF(LEN(A806)=0,\"\",INDEX('Smelter Look-up'!$A:$A,MATCH($A806,'Smelter Look-up'!$E:$E,0)))","v":""},{"$f":"IF(LEN(A806)=0,\"\",INDEX('Smelter Look-up'!$C:$C,MATCH($A806,'Smelter Look-up'!$E:$E,0)))","v":""},null,{"$f":"IF(ISERROR($V806),\"\",OFFSET('Smelter Look-up'!$D$4,$V806-4,0)&\"\")","v":""},{"$f":"IF(ISERROR($V806),\"\",OFFSET('Smelter Look-up'!$E$4,$V806-4,0))","v":""},{"$f":"IF(C806=$X$4,\"Enter smelter details\",IF(ISERROR($V806),\"\",OFFSET('Smelter Look-up'!$F$4,$V806-4,0)))","v":""},{"$f":"IF(ISERROR($V806),\"\",OFFSET('Smelter Look-up'!$G$4,$V806-4,0))","v":""},{"$f":"IF(ISERROR($V806),\"\",OFFSET('Smelter Look-up'!$H$4,$V806-4,0))","v":""},{"$f":"IF(ISERROR($V806),\"\",OFFSET('Smelter Look-up'!$I$4,$V806-4,0))","v":""},{"$nulls":7},{"$f":"IF(ISERROR($V806),\"\",OFFSET('Smelter Look-up'!$C$4,$V806-4,0)&\"\")","v":""},"",{"$f":"IF(B806=\"\",\"\",IF(ISERROR(MATCH($J806,SorP!$B$1:$B$5661,0)),\"\",INDIRECT(\"'SorP'!$A$\"&MATCH($J806,SorP!$B$1:$B$5661,0))))","v":""},null,{"$f":"IF(C806=\"\",NA(),MATCH($B806&$C806,'Smelter Look-up'!$J:$J,0))","v":{"$error":"#N/A"}},null,0,null,null,null,""]
[null,{"$f":"IF(LEN(A807)=0,\"\",INDEX('Smelter Look-up'!$A:$A,MATCH($A807,'Smelter Look-up'!$E:$E,0)))","v":""},{"$f":"IF(LEN(A807)=0,\"\",INDEX('Smelter Look-up'!$C:$C,MATCH($A807,'Smelter Look-up'!$E:$E,0)))","v":""},null,{"$f":"IF(ISERROR($V807),\"\",OFFSET('Smelter Look-up'!$D$4,$V807-4,0)&\"\")","v":""},{"$f":"IF(ISERROR($V807),\"\",OFFSET('Smelter Look-up'!$E$4,$V807-4,0))","v":""},{"$f":"IF(C807=$X$4,\"Enter smelter details\",IF(ISERROR($V807),\"\",OFFSET('Smelter Look-up'!$F$4,$V807-4,0)))","v":""},{"$f":"IF(ISERROR($V807),\"\",OFFSET('Smelter Look-up'!$G$4,$V807-4,0))","v":""},{"$f":"IF(ISERROR($V807),\"\",OFFSET('Smelter Look-up'!$H$4,$V807-4,0))","v":""},{"$f":"IF(ISERROR($V807),\"\",OFFSET('Smelter Look-up'!$I$4,$V807-4,0))","v":""},{"$nulls":7},{"$f":"IF(ISERROR($V807),\"\",OFFSET('Smelter Look-up'!$C$4,$V807-4,0)&\"\")","v":""},"",{"$f":"IF(B807=\"\",\"\",IF(ISERROR(MATCH($J807,SorP!$B$1:$B$5661,0)),\"\",INDIRECT(\"'SorP'!$A$\"&MATCH($J807,SorP!$B$1:$B$5661,0))))","v":""},null,{"$f":"IF(C807=\"\",NA(),MATCH($B807&$C807,'Smelter Look-up'!$J:$J,0))","v":{"$error":"#N/A"}},null,0,null,null,null,""]
[null,{"$f":"IF(LEN(A808)=0,\"\",INDEX('Smelter Look-up'!$A:$A,MATCH($A808,'Smelter Look-up'!$E:$E,0)))","v":""},{"$f":"IF(LEN(A808)=0,\"\",INDEX('Smelter Look-up'!$C:$C,MATCH($A808,'Smelter Look-up'!$E:$E,0)))","v":""},null,{"$f":"IF(ISERROR($V808),\"\",OFFSET('Smelter Look-up'!$D$4,$V808-4,0)&\"\")","v":""},{"$f":"IF(ISERROR($V808),\"\",OFFSET('Smelter Look-up'!$E$4,$V808-4,0))","v":""},{"$f":"IF(C808=$X$4,\"Enter smelter details\",IF(ISERROR($V808),\"\",OFFSET('Smelter Look-up'!$F$4,$V808-4,0)))","v":""},{"$f":"IF(ISERROR($V808),\"\",OFFSET('Smelter Look-up'!$G$4,$V808-4,0))","v":""},{"$f":"IF(ISERROR($V808),\"\",OFFSET('Smelter Look-up'!$H$4,$V808-4,0))","v":""},{"$f":"IF(ISERROR($V808),\"\",OFFSET('Smelter Look-up'!$I$4,$V808-4,0))","v":""},{"$nulls":7},{"$f":"IF(ISERROR($V808),\"\",OFFSET('Smelter Look-up'!$C$4,$V808-4,0)&\"\")","v":""},"",{"$f":"IF(B808=\"\",\"\",IF(ISERROR(MATCH($J808,SorP!$B$1:$B$5661,0)),\"\",INDIRECT(\"'SorP'!$A$\"&MATCH($J808,SorP!$B$1:$B$5661,0))))","v":""},null,{"$f":"IF(C808=\"\",NA(),MATCH($B808&$C808,'Smelter Look-up'!$J:$J,0))","v":{"$error":"#N/A"}},null,0,null,null,null,""]
[null,{"$f":"IF(LEN(A809)=0,\"\",INDEX('Smelter Look-up'!$A:$A,MATCH($A809,'Smelter Look-up'!$E:$E,0)))","v":""},{"$f":"IF(LEN(A809)=0,\"\",INDEX('Smelter Look-up'!$C:$C,MATCH($A809,'Smelter Look-up'!$E:$E,0)))","v":""},null,{"$f":"IF(ISERROR($V809),\"\",OFFSET('Smelter Look-up'!$D$4,$V809-4,0)&\"\")","v":""},{"$f":"IF(ISERROR($V809),\"\",OFFSET('Smelter Look-up'!$E$4,$V809-4,0))","v":""},{"$f":"IF(C809=$X$4,\"Enter smelter details\",IF(ISERROR($V809),\"\",OFFSET('Smelter Look-up'!$F$4,$V809-4,0)))","v":""},{"$f":"IF(ISERROR($V809),\"\",OFFSET('Smelter Look-up'!$G$4,$V809-4,0))","v":""},{"$f":"IF(ISERROR($V809),\"\",OFFSET('Smelter Look-up'!$H$4,$V809-4,0))","v":""},{"$f":"IF(ISERROR($V809),\"\",OFFSET('Smelter Look-up'!$I$4,$V809-4,0))","v":""},{"$nulls":7},{"$f":"IF(ISERROR($V809),\"\",OFFSET('Smelter Look-up'!$C$4,$V809-4,0)&\"\")","v":""},"",{"$f":"IF(B809=\"\",\"\",IF(ISERROR(MATCH($J809,SorP!$B$1:$B$5661,0)),\"\",INDIRECT(\"'SorP'!$A$\"&MATCH($J809,SorP!$B$1:$B$5661,0))))","v":""},null,{"$f":"IF(C809=\"\",NA(),MATCH($B809&$C809,'Smelter Look-up'!$J:$J,0))","v":{"$error":"#N/A"}},null,0,null,null,null,""]
[null,{"$f":"IF(LEN(A810)=0,\"\",INDEX('Smelter Look-up'!$A:$A,MATCH($A810,'Smelter Look-up'!$E:$E,0)))","v":""},{"$f":"IF(LEN(A810)=0,\"\",INDEX('Smelter Look-up'!$C:$C,MATCH($A810,'Smelter Look-up'!$E:$E,0)))","v":""},null,{"$f":"IF(ISERROR($V810),\"\",OFFSET('Smelter Look-up'!$D$4,$V810-4,0)&\"\")","v":""},{"$f":"IF(ISERROR($V810),\"\",OFFSET('Smelter Look-up'!$E$4,$V810-4,0))","v":""},{"$f":"IF(C810=$X$4,\"Enter smelter details\",IF(ISERROR($V810),\"\",OFFSET('Smelter Look-up'!$F$4,$V810-4,0)))","v":""},{"$f":"IF(ISERROR($V810),\"\",OFFSET('Smelter Look-up'!$G$4,$V810-4,0))","v":""},{"$f":"IF(ISERROR($V810),\"\",OFFSET('Smelter Look-up'!$H$4,$V810-4,0))","v":""},{"$f":"IF(ISERROR($V810),\"\",OFFSET('Smelter Look-up'!$I$4,$V810-4,0))","v":""},{"$nulls":7},{"$f":"IF(ISERROR($V810),\"\",OFFSET('Smelter Look-up'!$C$4,$V810-4,0)&\"\")","v":""},"",{"$f":"IF(B810=\"\",\"\",IF(ISERROR(MATCH($J810,SorP!$B$1:$B$5661,0)),\"\",INDIRECT(\"'SorP'!$A$\"&MATCH($J810,SorP!$B$1:$B$5661,0))))","v":""},null,{"$f":"IF(C810=\"\",NA(),MATCH($B810&$C810,'Smelter Look-up'!$J:$J,0))","v":{"$error":"#N/A"}},null,0,null,null,null,""]
[null,{"$f":"IF(LEN(A811)=0,\"\",INDEX('Smelter Look-up'!$A:$A,MATCH($A811,'Smelter Look-up'!$E:$E,0)))","v":""},{"$f":"IF(LEN(A811)=0,\"\",INDEX('Smelter Look-up'!$C:$C,MATCH($A811,'Smelter Look-up'!$E:$E,0)))","v":""},null,{"$f":"IF(ISERROR($V811),\"\",OFFSET('Smelter Look-up'!$D$4,$V811-4,0)&\"\")","v":""},{"$f":"IF(ISERROR($V811),\"\",OFFSET('Smelter Look-up'!$E$4,$V811-4,0))","v":""},{"$f":"IF(C811=$X$4,\"Enter smelter details\",IF(ISERROR($V811),\"\",OFFSET('Smelter Look-up'!$F$4,$V811-4,0)))","v":""},{"$f":"IF(ISERROR($V811),\"\",OFFSET('Smelter Look-up'!$G$4,$V811-4,0))","v":""},{"$f":"IF(ISERROR($V811),\"\",OFFSET('Smelter Look-up'!$H$4,$V811-4,0))","v":""},{"$f":"IF(ISERROR($V811),\"\",OFFSET('Smelter Look-up'!$I$4,$V811-4,0))","v":""},{"$nulls":7},{"$f":"IF(ISERROR($V811),\"\",OFFSET('Smelter Look-up'!$C$4,$V811-4,0)&\"\")","v":""},"",{"$f":"IF(B811=\"\",\"\",IF(ISERROR(MATCH($J811,SorP!$B$1:$B$5661,0)),\"\",INDIRECT(\"'SorP'!$A$\"&MATCH($J811,SorP!$B$1:$B$5661,0))))","v":""},null,{"$f":"IF(C811=\"\",NA(),MATCH($B811&$C811,'Smelter Look-up'!$J:$J,0))","v":{"$error":"#N/A"}},null,0,null,null,null,""]
[null,{"$f":"IF(LEN(A812)=0,\"\",INDEX('Smelter Look-up'!$A:$A,MATCH($A812,'Smelter Look-up'!$E:$E,0)))","v":""},{"$f":"IF(LEN(A812)=0,\"\",INDEX('Smelter Look-up'!$C:$C,MATCH($A812,'Smelter Look-up'!$E:$E,0)))","v":""},null,{"$f":"IF(ISERROR($V812),\"\",OFFSET('Smelter Look-up'!$D$4,$V812-4,0)&\"\")","v":""},{"$f":"IF(ISERROR($V812),\"\",OFFSET('Smelter Look-up'!$E$4,$V812-4,0))","v":""},{"$f":"IF(C812=$X$4,\"Enter smelter details\",IF(ISERROR($V812),\"\",OFFSET('Smelter Look-up'!$F$4,$V812-4,0)))","v":""},{"$f":"IF(ISERROR($V812),\"\",OFFSET('Smelter Look-up'!$G$4,$V812-4,0))","v":""},{"$f":"IF(ISERROR($V812),\"\",OFFSET('Smelter Look-up'!$H$4,$V812-4,0))","v":""},{"$f":"IF(ISERROR($V812),\"\",OFFSET('Smelter Look-up'!$I$4,$V812-4,0))","v":""},{"$nulls":7},{"$f":"IF(ISERROR($V812),\"\",OFFSET('Smelter Look-up'!$C$4,$V812-4,0)&\"\")","v":""},"",{"$f":"IF(B812=\"\",\"\",IF(ISERROR(MATCH($J812,SorP!$B$1:$B$5661,0)),\"\",INDIRECT(\"'SorP'!$A$\"&MATCH($J812,SorP!$B$1:$B$5661,0))))","v":""},null,{"$f":"IF(C812=\"\",NA(),MATCH($B812&$C812,'Smelter Look-up'!$J:$J,0))","v":{"$error":"#N/A"}},null,0,null,null,null,""]
[null,{"$f":"IF(LEN(A813)=0,\"\",INDEX('Smelter Look-up'!$A:$A,MATCH($A813,'Smelter Look-up'!$E:$E,0)))","v":""},{"$f":"IF(LEN(A813)=0,\"\",INDEX('Smelter Look-up'!$C:$C,MATCH($A813,'Smelter Look-up'!$E:$E,0)))","v":""},null,{"$f":"IF(ISERROR($V813),\"\",OFFSET('Smelter Look-up'!$D$4,$V813-4,0)&\"\")","v":""},{"$f":"IF(ISERROR($V813),\"\",OFFSET('Smelter Look-up'!$E$4,$V813-4,0))","v":""},{"$f":"IF(C813=$X$4,\"Enter smelter details\",IF(ISERROR($V813),\"\",OFFSET('Smelter Look-up'!$F$4,$V813-4,0)))","v":""},{"$f":"IF(ISERROR($V813),\"\",OFFSET('Smelter Look-up'!$G$4,$V813-4,0))","v":""},{"$f":"IF(ISERROR($V813),\"\",OFFSET('Smelter Look-up'!$H$4,$V813-4,0))","v":""},{"$f":"IF(ISERROR($V813),\"\",OFFSET('Smelter Look-up'!$I$4,$V813-4,0))","v":""},{"$nulls":7},{"$f":"IF(ISERROR($V813),\"\",OFFSET('Smelter Look-up'!$C$4,$V813-4,0)&\"\")","v":""},"",{"$f":"IF(B813=\"\",\"\",IF(ISERROR(MATCH($J813,SorP!$B$1:$B$5661,0)),\"\",INDIRECT(\"'SorP'!$A$\"&MATCH($J813,SorP!$B$1:$B$5661,0))))","v":""},null,{"$f":"IF(C813=\"\",NA(),MATCH($B813&$C813,'Smelter Look-up'!$J:$J,0))","v":{"$error":"#N/A"}},null,0,null,null,null,""]
[null,{"$f":"IF(LEN(A814)=0,\"\",INDEX('Smelter Look-up'!$A:$A,MATCH($A814,'Smelter Look-up'!$E:$E,0)))","v":""},{"$f":"IF(LEN(A814)=0,\"\",INDEX('Smelter Look-up'!$C:$C,MATCH($A814,'Smelter Look-up'!$E:$E,0)))","v":""},null,{"$f":"IF(ISERROR($V814),\"\",OFFSET('Smelter Look-up'!$D$4,$V814-4,0)&\"\")","v":""},{"$f":"IF(ISERROR($V814),\"\",OFFSET('Smelter Look-up'!$E$4,$V814-4,0))","v":""},{"$f":"IF(C814=$X$4,\"Enter smelter details\",IF(ISERROR($V814),\"\",OFFSET('Smelter Look-up'!$F$4,$V814-4,0)))","v":""},{"$f":"IF(ISERROR($V814),\"\",OFFSET('Smelter Look-up'!$G$4,$V814-4,0))","v":""},{"$f":"IF(ISERROR($V814),\"\",OFFSET('Smelter Look-up'!$H$4,$V814-4,0))","v":""},{"$f":"IF(ISERROR($V814),\"\",OFFSET('Smelter Look-up'!$I$4,$V814-4,0))","v":""},{"$nulls":7},{"$f":"IF(ISERROR($V814),\"\",OFFSET('Smelter Look-up'!$C$4,$V814-4,0)&\"\")","v":""},"",{"$f":"IF(B814=\"\",\"\",IF(ISERROR(MATCH($J814,SorP!$B$1:$B$5661,0)),\"\",INDIRECT(\"'SorP'!$A$\"&MATCH($J814,SorP!$B$1:$B$5661,0))))","v":""},null,{"$f":"IF(C814=\"\",NA(),MATCH($B814&$C814,'Smelter Look-up'!$J:$J,0))","v":{"$error":"#N/A"}},null,0,null,null,null,""]
[null,{"$f":"IF(LEN(A815)=0,\"\",INDEX('Smelter Look-up'!$A:$A,MATCH($A815,'Smelter Look-up'!$E:$E,0)))","v":""},{"$f":"IF(LEN(A815)=0,\"\",INDEX('Smelter Look-up'!$C:$C,MATCH($A815,'Smelter Look-up'!$E:$E,0)))","v":""},null,{"$f":"IF(ISERROR($V815),\"\",OFFSET('Smelter Look-up'!$D$4,$V815-4,0)&\"\")","v":""},{"$f":"IF(ISERROR($V815),\"\",OFFSET('Smelter Look-up'!$E$4,$V815-4,0))","v":""},{"$f":"IF(C815=$X$4,\"Enter smelter details\",IF(ISERROR($V815),\"\",OFFSET('Smelter Look-up'!$F$4,$V815-4,0)))","v":""},{"$f":"IF(ISERROR($V815),\"\",OFFSET('Smelter Look-up'!$G$4,$V815-4,0))","v":""},{"$f":"IF(ISERROR($V815),\"\",OFFSET('Smelter Look-up'!$H$4,$V815-4,0))","v":""},{"$f":"IF(ISERROR($V815),\"\",OFFSET('Smelter Look-up'!$I$4,$V815-4,0))","v":""},{"$nulls":7},{"$f":"IF(ISERROR($V815),\"\",OFFSET('Smelter Look-up'!$C$4,$V815-4,0)&\"\")","v":""},"",{"$f":"IF(B815=\"\",\"\",IF(ISERROR(MATCH($J815,SorP!$B$1:$B$5661,0)),\"\",INDIRECT(\"'SorP'!$A$\"&MATCH($J815,SorP!$B$1:$B$5661,0))))","v":""},null,{"$f":"IF(C815=\"\",NA(),MATCH($B815&$C815,'Smelter Look-up'!$J:$J,0))","v":{"$error":"#N/A"}},null,0,null,null,null,""]
[null,{"$f":"IF(LEN(A816)=0,\"\",INDEX('Smelter Look-up'!$A:$A,MATCH($A816,'Smelter Look-up'!$E:$E,0)))","v":""},{"$f":"IF(LEN(A816)=0,\"\",INDEX('Smelter Look-up'!$C:$C,MATCH($A816,'Smelter Look-up'!$E:$E,0)))","v":""},null,{"$f":"IF(ISERROR($V816),\"\",OFFSET('Smelter Look-up'!$D$4,$V816-4,0)&\"\")","v":""},{"$f":"IF(ISERROR($V816),\"\",OFFSET('Smelter Look-up'!$E$4,$V816-4,0))","v":""},{"$f":"IF(C816=$X$4,\"Enter smelter details\",IF(ISERROR($V816),\"\",OFFSET('Smelter Look-up'!$F$4,$V816-4,0)))","v":""},{"$f":"IF(ISERROR($V816),\"\",OFFSET('Smelter Look-up'!$G$4,$V816-4,0))","v":""},{"$f":"IF(ISERROR($V816),\"\",OFFSET('Smelter Look-up'!$H$4,$V816-4,0))","v":""},{"$f":"IF(ISERROR($V816),\"\",OFFSET('Smelter Look-up'!$I$4,$V816-4,0))","v":""},{"$nulls":7},{"$f":"IF(ISERROR($V816),\"\",OFFSET('Smelter Look-up'!$C$4,$V816-4,0)&\"\")","v":""},"",{"$f":"IF(B816=\"\",\"\",IF(ISERROR(MATCH($J816,SorP!$B$1:$B$5661,0)),\"\",INDIRECT(\"'SorP'!$A$\"&MATCH($J816,SorP!$B$1:$B$5661,0))))","v":""},null,{"$f":"IF(C816=\"\",NA(),MATCH($B816&$C816,'Smelter Look-up'!$J:$J,0))","v":{"$error":"#N/A"}},null,0,null,null,null,""]
[null,{"$f":"IF(LEN(A817)=0,\"\",INDEX('Smelter Look-up'!$A:$A,MATCH($A817,'Smelter Look-up'!$E:$E,0)))","v":""},{"$f":"IF(LEN(A817)=0,\"\",INDEX('Smelter Look-up'!$C:$C,MATCH($A817,'Smelter Look-up'!$E:$E,0)))","v":""},null,{"$f":"IF(ISERROR($V817),\"\",OFFSET('Smelter Look-up'!$D$4,$V817-4,0)&\"\")","v":""},{"$f":"IF(ISERROR($V817),\"\",OFFSET('Smelter Look-up'!$E$4,$V817-4,0))","v":""},{"$f":"IF(C817=$X$4,\"Enter smelter details\",IF(ISERROR($V817),\"\",OFFSET('Smelter Look-up'!$F$4,$V817-4,0)))","v":""},{"$f":"IF(ISERROR($V817),\"\",OFFSET('Smelter Look-up'!$G$4,$V817-4,0))","v":""},{"$f":"IF(ISERROR($V817),\"\",OFFSET('Smelter Look-up'!$H$4,$V817-4,0))","v":""},{"$f":"IF(ISERROR($V817),\"\",OFFSET('Smelter Look-up'!$I$4,$V817-4,0))","v":""},{"$nulls":7},{"$f":"IF(ISERROR($V817),\"\",OFFSET('Smelter Look-up'!$C$4,$V817-4,0)&\"\")","v":""},"",{"$f":"IF(B817=\"\",\"\",IF(ISERROR(MATCH($J817,SorP!$B$1:$B$5661,0)),\"\",INDIRECT(\"'SorP'!$A$\"&MATCH($J817,SorP!$B$1:$B$5661,0))))","v":""},null,{"$f":"IF(C817=\"\",NA(),MATCH($B817&$C817,'Smelter Look-up'!$J:$J,0))","v":{"$error":"#N/A"}},null,0,null,null,null,""]
[null,{"$f":"IF(LEN(A818)=0,\"\",INDEX('Smelter Look-up'!$A:$A,MATCH($A818,'Smelter Look-up'!$E:$E,0)))","v":""},{"$f":"IF(LEN(A818)=0,\"\",INDEX('Smelter Look-up'!$C:$C,MATCH($A818,'Smelter Look-up'!$E:$E,0)))","v":""},null,{"$f":"IF(ISERROR($V818),\"\",OFFSET('Smelter Look-up'!$D$4,$V818-4,0)&\"\")","v":""},{"$f":"IF(ISERROR($V818),\"\",OFFSET('Smelter Look-up'!$E$4,$V818-4,0))","v":""},{"$f":"IF(C818=$X$4,\"Enter smelter details\",IF(ISERROR($V818),\"\",OFFSET('Smelter Look-up'!$F$4,$V818-4,0)))","v":""},{"$f":"IF(ISERROR($V818),\"\",OFFSET('Smelter Look-up'!$G$4,$V818-4,0))","v":""},{"$f":"IF(ISERROR($V818),\"\",OFFSET('Smelter Look-up'!$H$4,$V818-4,0))","v":""},{"$f":"IF(ISERROR($V818),\"\",OFFSET('Smelter Look-up'!$I$4,$V818-4,0))","v":""},{"$nulls":7},{"$f":"IF(ISERROR($V818),\"\",OFFSET('Smelter Look-up'!$C$4,$V818-4,0)&\"\")","v":""},"",{"$f":"IF(B818=\"\",\"\",IF(ISERROR(MATCH($J818,SorP!$B$1:$B$5661,0)),\"\",INDIRECT(\"'SorP'!$A$\"&MATCH($J818,SorP!$B$1:$B$5661,0))))","v":""},null,{"$f":"IF(C818=\"\",NA(),MATCH($B818&$C818,'Smelter Look-up'!$J:$J,0))","v":{"$error":"#N/A"}},null,0,null,null,null,""]
[null,{"$f":"IF(LEN(A819)=0,\"\",INDEX('Smelter Look-up'!$A:$A,MATCH($A819,'Smelter Look-up'!$E:$E,0)))","v":""},{"$f":"IF(LEN(A819)=0,\"\",INDEX('Smelter Look-up'!$C:$C,MATCH($A819,'Smelter Look-up'!$E:$E,0)))","v":""},null,{"$f":"IF(ISERROR($V819),\"\",OFFSET('Smelter Look-up'!$D$4,$V819-4,0)&\"\")","v":""},{"$f":"IF(ISERROR($V819),\"\",OFFSET('Smelter Look-up'!$E$4,$V819-4,0))","v":""},{"$f":"IF(C819=$X$4,\"Enter smelter details\",IF(ISERROR($V819),\"\",OFFSET('Smelter Look-up'!$F$4,$V819-4,0)))","v":""},{"$f":"IF(ISERROR($V819),\"\",OFFSET('Smelter Look-up'!$G$4,$V819-4,0))","v":""},{"$f":"IF(ISERROR($V819),\"\",OFFSET('Smelter Look-up'!$H$4,$V819-4,0))","v":""},{"$f":"IF(ISERROR($V819),\"\",OFFSET('Smelter Look-up'!$I$4,$V819-4,0))","v":""},{"$nulls":7},{"$f":"IF(ISERROR($V819),\"\",OFFSET('Smelter Look-up'!$C$4,$V819-4,0)&\"\")","v":""},"",{"$f":"IF(B819=\"\",\"\",IF(ISERROR(MATCH($J819,SorP!$B$1:$B$5661,0)),\"\",INDIRECT(\"'SorP'!$A$\"&MATCH($J819,SorP!$B$1:$B$5661,0))))","v":""},null,{"$f":"IF(C819=\"\",NA(),MATCH($B819&$C819,'Smelter Look-up'!$J:$J,0))","v":{"$error":"#N/A"}},null,0,null,null,null,""]
[null,{"$f":"IF(LEN(A820)=0,\"\",INDEX('Smelter Look-up'!$A:$A,MATCH($A820,'Smelter Look-up'!$E:$E,0)))","v":""},{"$f":"IF(LEN(A820)=0,\"\",INDEX('Smelter Look-up'!$C:$C,MATCH($A820,'Smelter Look-up'!$E:$E,0)))","v":""},null,{"$f":"IF(ISERROR($V820),\"\",OFFSET('Smelter Look-up'!$D$4,$V820-4,0)&\"\")","v":""},{"$f":"IF(ISERROR($V820),\"\",OFFSET('Smelter Look-up'!$E$4,$V820-4,0))","v":""},{"$f":"IF(C820=$X$4,\"Enter smelter details\",IF(ISERROR($V820),\"\",OFFSET('Smelter Look-up'!$F$4,$V820-4,0)))","v":""},{"$f":"IF(ISERROR($V820),\"\",OFFSET('Smelter Look-up'!$G$4,$V820-4,0))","v":""},{"$f":"IF(ISERROR($V820),\"\",OFFSET('Smelter Look-up'!$H$4,$V820-4,0))","v":""},{"$f":"IF(ISERROR($V820),\"\",OFFSET('Smelter Look-up'!$I$4,$V820-4,0))","v":""},{"$nulls":7},{"$f":"IF(ISERROR($V820),\"\",OFFSET('Smelter Look-up'!$C$4,$V820-4,0)&\"\")","v":""},"",{"$f":"IF(B820=\"\",\"\",IF(ISERROR(MATCH($J820,SorP!$B$1:$B$5661,0)),\"\",INDIRECT(\"'SorP'!$A$\"&MATCH($J820,SorP!$B$1:$B$5661,0))))","v":""},null,{"$f":"IF(C820=\"\",NA(),MATCH($B820&$C820,'Smelter Look-up'!$J:$J,0))","v":{"$error":"#N/A"}},null,0,null,null,null,""]
[null,{"$f":"IF(LEN(A821)=0,\"\",INDEX('Smelter Look-up'!$A:$A,MATCH($A821,'Smelter Look-up'!$E:$E,0)))","v":""},{"$f":"IF(LEN(A821)=0,\"\",INDEX('Smelter Look-up'!$C:$C,MATCH($A821,'Smelter Look-up'!$E:$E,0)))","v":""},null,{"$f":"IF(ISERROR($V821),\"\",OFFSET('Smelter Look-up'!$D$4,$V821-4,0)&\"\")","v":""},{"$f":"IF(ISERROR($V821),\"\",OFFSET('Smelter Look-up'!$E$4,$V821-4,0))","v":""},{"$f":"IF(C821=$X$4,\"Enter smelter details\",IF(ISERROR($V821),\"\",OFFSET('Smelter Look-up'!$F$4,$V821-4,0)))","v":""},{"$f":"IF(ISERROR($V821),\"\",OFFSET('Smelter Look-up'!$G$4,$V821-4,0))","v":""},{"$f":"IF(ISERROR($V821),\"\",OFFSET('Smelter Look-up'!$H$4,$V821-4,0))","v":""},{"$f":"IF(ISERROR($V821),\"\",OFFSET('Smelter Look-up'!$I$4,$V821-4,0))","v":""},{"$nulls":7},{"$f":"IF(ISERROR($V821),\"\",OFFSET('Smelter Look-up'!$C$4,$V821-4,0)&\"\")","v":""},"",{"$f":"IF(B821=\"\",\"\",IF(ISERROR(MATCH($J821,SorP!$B$1:$B$5661,0)),\"\",INDIRECT(\"'SorP'!$A$\"&MATCH($J821,SorP!$B$1:$B$5661,0))))","v":""},null,{"$f":"IF(C821=\"\",NA(),MATCH($B821&$C821,'Smelter Look-up'!$J:$J,0))","v":{"$error":"#N/A"}},null,0,null,null,null,""]
[null,{"$f":"IF(LEN(A822)=0,\"\",INDEX('Smelter Look-up'!$A:$A,MATCH($A822,'Smelter Look-up'!$E:$E,0)))","v":""},{"$f":"IF(LEN(A822)=0,\"\",INDEX('Smelter Look-up'!$C:$C,MATCH($A822,'Smelter Look-up'!$E:$E,0)))","v":""},null,{"$f":"IF(ISERROR($V822),\"\",OFFSET('Smelter Look-up'!$D$4,$V822-4,0)&\"\")","v":""},{"$f":"IF(ISERROR($V822),\"\",OFFSET('Smelter Look-up'!$E$4,$V822-4,0))","v":""},{"$f":"IF(C822=$X$4,\"Enter smelter details\",IF(ISERROR($V822),\"\",OFFSET('Smelter Look-up'!$F$4,$V822-4,0)))","v":""},{"$f":"IF(ISERROR($V822),\"\",OFFSET('Smelter Look-up'!$G$4,$V822-4,0))","v":""},{"$f":"IF(ISERROR($V822),\"\",OFFSET('Smelter Look-up'!$H$4,$V822-4,0))","v":""},{"$f":"IF(ISERROR($V822),\"\",OFFSET('Smelter Look-up'!$I$4,$V822-4,0))","v":""},{"$nulls":7},{"$f":"IF(ISERROR($V822),\"\",OFFSET('Smelter Look-up'!$C$4,$V822-4,0)&\"\")","v":""},"",{"$f":"IF(B822=\"\",\"\",IF(ISERROR(MATCH($J822,SorP!$B$1:$B$5661,0)),\"\",INDIRECT(\"'SorP'!$A$\"&MATCH($J822,SorP!$B$1:$B$5661,0))))","v":""},null,{"$f":"IF(C822=\"\",NA(),MATCH($B822&$C822,'Smelter Look-up'!$J:$J,0))","v":{"$error":"#N/A"}},null,0,null,null,null,""]
[null,{"$f":"IF(LEN(A823)=0,\"\",INDEX('Smelter Look-up'!$A:$A,MATCH($A823,'Smelter Look-up'!$E:$E,0)))","v":""},{"$f":"IF(LEN(A823)=0,\"\",INDEX('Smelter Look-up'!$C:$C,MATCH($A823,'Smelter Look-up'!$E:$E,0)))","v":""},null,{"$f":"IF(ISERROR($V823),\"\",OFFSET('Smelter Look-up'!$D$4,$V823-4,0)&\"\")","v":""},{"$f":"IF(ISERROR($V823),\"\",OFFSET('Smelter Look-up'!$E$4,$V823-4,0))","v":""},{"$f":"IF(C823=$X$4,\"Enter smelter details\",IF(ISERROR($V823),\"\",OFFSET('Smelter Look-up'!$F$4,$V823-4,0)))","v":""},{"$f":"IF(ISERROR($V823),\"\",OFFSET('Smelter Look-up'!$G$4,$V823-4,0))","v":""},{"$f":"IF(ISERROR($V823),\"\",OFFSET('Smelter Look-up'!$H$4,$V823-4,0))","v":""},{"$f":"IF(ISERROR($V823),\"\",OFFSET('Smelter Look-up'!$I$4,$V823-4,0))","v":""},{"$nulls":7},{"$f":"IF(ISERROR($V823),\"\",OFFSET('Smelter Look-up'!$C$4,$V823-4,0)&\"\")","v":""},"",{"$f":"IF(B823=\"\",\"\",IF(ISERROR(MATCH($J823,SorP!$B$1:$B$5661,0)),\"\",INDIRECT(\"'SorP'!$A$\"&MATCH($J823,SorP!$B$1:$B$5661,0))))","v":""},null,{"$f":"IF(C823=\"\",NA(),MATCH($B823&$C823,'Smelter Look-up'!$J:$J,0))","v":{"$error":"#N/A"}},null,0,null,null,null,""]
[null,{"$f":"IF(LEN(A824)=0,\"\",INDEX('Smelter Look-up'!$A:$A,MATCH($A824,'Smelter Look-up'!$E:$E,0)))","v":""},{"$f":"IF(LEN(A824)=0,\"\",INDEX('Smelter Look-up'!$C:$C,MATCH($A824,'Smelter Look-up'!$E:$E,0)))","v":""},null,{"$f":"IF(ISERROR($V824),\"\",OFFSET('Smelter Look-up'!$D$4,$V824-4,0)&\"\")","v":""},{"$f":"IF(ISERROR($V824),\"\",OFFSET('Smelter Look-up'!$E$4,$V824-4,0))","v":""},{"$f":"IF(C824=$X$4,\"Enter smelter details\",IF(ISERROR($V824),\"\",OFFSET('Smelter Look-up'!$F$4,$V824-4,0)))","v":""},{"$f":"IF(ISERROR($V824),\"\",OFFSET('Smelter Look-up'!$G$4,$V824-4,0))","v":""},{"$f":"IF(ISERROR($V824),\"\",OFFSET('Smelter Look-up'!$H$4,$V824-4,0))","v":""},{"$f":"IF(ISERROR($V824),\"\",OFFSET('Smelter Look-up'!$I$4,$V824-4,0))","v":""},{"$nulls":7},{"$f":"IF(ISERROR($V824),\"\",OFFSET('Smelter Look-up'!$C$4,$V824-4,0)&\"\")","v":""},"",{"$f":"IF(B824=\"\",\"\",IF(ISERROR(MATCH($J824,SorP!$B$1:$B$5661,0)),\"\",INDIRECT(\"'SorP'!$A$\"&MATCH($J824,SorP!$B$1:$B$5661,0))))","v":""},null,{"$f":"IF(C824=\"\",NA(),MATCH($B824&$C824,'Smelter Look-up'!$J:$J,0))","v":{"$error":"#N/A"}},null,0,null,null,null,""]
[null,{"$f":"IF(LEN(A825)=0,\"\",INDEX('Smelter Look-up'!$A:$A,MATCH($A825,'Smelter Look-up'!$E:$E,0)))","v":""},{"$f":"IF(LEN(A825)=0,\"\",INDEX('Smelter Look-up'!$C:$C,MATCH($A825,'Smelter Look-up'!$E:$E,0)))","v":""},null,{"$f":"IF(ISERROR($V825),\"\",OFFSET('Smelter Look-up'!$D$4,$V825-4,0)&\"\")","v":""},{"$f":"IF(ISERROR($V825),\"\",OFFSET('Smelter Look-up'!$E$4,$V825-4,0))","v":""},{"$f":"IF(C825=$X$4,\"Enter smelter details\",IF(ISERROR($V825),\"\",OFFSET('Smelter Look-up'!$F$4,$V825-4,0)))","v":""},{"$f":"IF(ISERROR($V825),\"\",OFFSET('Smelter Look-up'!$G$4,$V825-4,0))","v":""},{"$f":"IF(ISERROR($V825),\"\",OFFSET('Smelter Look-up'!$H$4,$V825-4,0))","v":""},{"$f":"IF(ISERROR($V825),\"\",OFFSET('Smelter Look-up'!$I$4,$V825-4,0))","v":""},{"$nulls":7},{"$f":"IF(ISERROR($V825),\"\",OFFSET('Smelter Look-up'!$C$4,$V825-4,0)&\"\")","v":""},"",{"$f":"IF(B825=\"\",\"\",IF(ISERROR(MATCH($J825,SorP!$B$1:$B$5661,0)),\"\",INDIRECT(\"'SorP'!$A$\"&MATCH($J825,SorP!$B$1:$B$5661,0))))","v":""},null,{"$f":"IF(C825=\"\",NA(),MATCH($B825&$C825,'Smelter Look-up'!$J:$J,0))","v":{"$error":"#N/A"}},null,0,null,null,null,""]
[null,{"$f":"IF(LEN(A826)=0,\"\",INDEX('Smelter Look-up'!$A:$A,MATCH($A826,'Smelter Look-up'!$E:$E,0)))","v":""},{"$f":"IF(LEN(A826)=0,\"\",INDEX('Smelter Look-up'!$C:$C,MATCH($A826,'Smelter Look-up'!$E:$E,0)))","v":""},null,{"$f":"IF(ISERROR($V826),\"\",OFFSET('Smelter Look-up'!$D$4,$V826-4,0)&\"\")","v":""},{"$f":"IF(ISERROR($V826),\"\",OFFSET('Smelter Look-up'!$E$4,$V826-4,0))","v":""},{"$f":"IF(C826=$X$4,\"Enter smelter details\",IF(ISERROR($V826),\"\",OFFSET('Smelter Look-up'!$F$4,$V826-4,0)))","v":""},{"$f":"IF(ISERROR($V826),\"\",OFFSET('Smelter Look-up'!$G$4,$V826-4,0))","v":""},{"$f":"IF(ISERROR($V826),\"\",OFFSET('Smelter Look-up'!$H$4,$V826-4,0))","v":""},{"$f":"IF(ISERROR($V826),\"\",OFFSET('Smelter Look-up'!$I$4,$V826-4,0))","v":""},{"$nulls":7},{"$f":"IF(ISERROR($V826),\"\",OFFSET('Smelter Look-up'!$C$4,$V826-4,0)&\"\")","v":""},"",{"$f":"IF(B826=\"\",\"\",IF(ISERROR(MATCH($J826,SorP!$B$1:$B$5661,0)),\"\",INDIRECT(\"'SorP'!$A$\"&MATCH($J826,SorP!$B$1:$B$5661,0))))","v":""},null,{"$f":"IF(C826=\"\",NA(),MATCH($B826&$C826,'Smelter Look-up'!$J:$J,0))","v":{"$error":"#N/A"}},null,0,null,null,null,""]
[null,{"$f":"IF(LEN(A827)=0,\"\",INDEX('Smelter Look-up'!$A:$A,MATCH($A827,'Smelter Look-up'!$E:$E,0)))","v":""},{"$f":"IF(LEN(A827)=0,\"\",INDEX('Smelter Look-up'!$C:$C,MATCH($A827,'Smelter Look-up'!$E:$E,0)))","v":""},null,{"$f":"IF(ISERROR($V827),\"\",OFFSET('Smelter Look-up'!$D$4,$V827-4,0)&\"\")","v":""},{"$f":"IF(ISERROR($V827),\"\",OFFSET('Smelter Look-up'!$E$4,$V827-4,0))","v":""},{"$f":"IF(C827=$X$4,\"Enter smelter details\",IF(ISERROR($V827),\"\",OFFSET('Smelter Look-up'!$F$4,$V827-4,0)))","v":""},{"$f":"IF(ISERROR($V827),\"\",OFFSET('Smelter Look-up'!$G$4,$V827-4,0))","v":""},{"$f":"IF(ISERROR($V827),\"\",OFFSET('Smelter Look-up'!$H$4,$V827-4,0))","v":""},{"$f":"IF(ISERROR($V827),\"\",OFFSET('Smelter Look-up'!$I$4,$V827-4,0))","v":""},{"$nulls":7},{"$f":"IF(ISERROR($V827),\"\",OFFSET('Smelter Look-up'!$C$4,$V827-4,0)&\"\")","v":""},"",{"$f":"IF(B827=\"\",\"\",IF(ISERROR(MATCH($J827,SorP!$B$1:$B$5661,0)),\"\",INDIRECT(\"'SorP'!$A$\"&MATCH($J827,SorP!$B$1:$B$5661,0))))","v":""},null,{"$f":"IF(C827=\"\",NA(),MATCH($B827&$C827,'Smelter Look-up'!$J:$J,0))","v":{"$error":"#N/A"}},null,0,null,null,null,""]
[null,{"$f":"IF(LEN(A828)=0,\"\",INDEX('Smelter Look-up'!$A:$A,MATCH($A828,'Smelter Look-up'!$E:$E,0)))","v":""},{"$f":"IF(LEN(A828)=0,\"\",INDEX('Smelter Look-up'!$C:$C,MATCH($A828,'Smelter Look-up'!$E:$E,0)))","v":""},null,{"$f":"IF(ISERROR($V828),\"\",OFFSET('Smelter Look-up'!$D$4,$V828-4,0)&\"\")","v":""},{"$f":"IF(ISERROR($V828),\"\",OFFSET('Smelter Look-up'!$E$4,$V828-4,0))","v":""},{"$f":"IF(C828=$X$4,\"Enter smelter details\",IF(ISERROR($V828),\"\",OFFSET('Smelter Look-up'!$F$4,$V828-4,0)))","v":""},{"$f":"IF(ISERROR($V828),\"\",OFFSET('Smelter Look-up'!$G$4,$V828-4,0))","v":""},{"$f":"IF(ISERROR($V828),\"\",OFFSET('Smelter Look-up'!$H$4,$V828-4,0))","v":""},{"$f":"IF(ISERROR($V828),\"\",OFFSET('Smelter Look-up'!$I$4,$V828-4,0))","v":""},{"$nulls":7},{"$f":"IF(ISERROR($V828),\"\",OFFSET('Smelter Look-up'!$C$4,$V828-4,0)&\"\")","v":""},"",{"$f":"IF(B828=\"\",\"\",IF(ISERROR(MATCH($J828,SorP!$B$1:$B$5661,0)),\"\",INDIRECT(\"'SorP'!$A$\"&MATCH($J828,SorP!$B$1:$B$5661,0))))","v":""},null,{"$f":"IF(C828=\"\",NA(),MATCH($B828&$C828,'Smelter Look-up'!$J:$J,0))","v":{"$error":"#N/A"}},null,0,null,null,null,""]
[null,{"$f":"IF(LEN(A829)=0,\"\",INDEX('Smelter Look-up'!$A:$A,MATCH($A829,'Smelter Look-up'!$E:$E,0)))","v":""},{"$f":"IF(LEN(A829)=0,\"\",INDEX('Smelter Look-up'!$C:$C,MATCH($A829,'Smelter Look-up'!$E:$E,0)))","v":""},null,{"$f":"IF(ISERROR($V829),\"\",OFFSET('Smelter Look-up'!$D$4,$V829-4,0)&\"\")","v":""},{"$f":"IF(ISERROR($V829),\"\",OFFSET('Smelter Look-up'!$E$4,$V829-4,0))","v":""},{"$f":"IF(C829=$X$4,\"Enter smelter details\",IF(ISERROR($V829),\"\",OFFSET('Smelter Look-up'!$F$4,$V829-4,0)))","v":""},{"$f":"IF(ISERROR($V829),\"\",OFFSET('Smelter Look-up'!$G$4,$V829-4,0))","v":""},{"$f":"IF(ISERROR($V829),\"\",OFFSET('Smelter Look-up'!$H$4,$V829-4,0))","v":""},{"$f":"IF(ISERROR($V829),\"\",OFFSET('Smelter Look-up'!$I$4,$V829-4,0))","v":""},{"$nulls":7},{"$f":"IF(ISERROR($V829),\"\",OFFSET('Smelter Look-up'!$C$4,$V829-4,0)&\"\")","v":""},"",{"$f":"IF(B829=\"\",\"\",IF(ISERROR(MATCH($J829,SorP!$B$1:$B$5661,0)),\"\",INDIRECT(\"'SorP'!$A$\"&MATCH($J829,SorP!$B$1:$B$5661,0))))","v":""},null,{"$f":"IF(C829=\"\",NA(),MATCH($B829&$C829,'Smelter Look-up'!$J:$J,0))","v":{"$error":"#N/A"}},null,0,null,null,null,""]
[null,{"$f":"IF(LEN(A830)=0,\"\",INDEX('Smelter Look-up'!$A:$A,MATCH($A830,'Smelter Look-up'!$E:$E,0)))","v":""},{"$f":"IF(LEN(A830)=0,\"\",INDEX('Smelter Look-up'!$C:$C,MATCH($A830,'Smelter Look-up'!$E:$E,0)))","v":""},null,{"$f":"IF(ISERROR($V830),\"\",OFFSET('Smelter Look-up'!$D$4,$V830-4,0)&\"\")","v":""},{"$f":"IF(ISERROR($V830),\"\",OFFSET('Smelter Look-up'!$E$4,$V830-4,0))","v":""},{"$f":"IF(C830=$X$4,\"Enter smelter details\",IF(ISERROR($V830),\"\",OFFSET('Smelter Look-up'!$F$4,$V830-4,0)))","v":""},{"$f":"IF(ISERROR($V830),\"\",OFFSET('Smelter Look-up'!$G$4,$V830-4,0))","v":""},{"$f":"IF(ISERROR($V830),\"\",OFFSET('Smelter Look-up'!$H$4,$V830-4,0))","v":""},{"$f":"IF(ISERROR($V830),\"\",OFFSET('Smelter Look-up'!$I$4,$V830-4,0))","v":""},{"$nulls":7},{"$f":"IF(ISERROR($V830),\"\",OFFSET('Smelter Look-up'!$C$4,$V830-4,0)&\"\")","v":""},"",{"$f":"IF(B830=\"\",\"\",IF(ISERROR(MATCH($J830,SorP!$B$1:$B$5661,0)),\"\",INDIRECT(\"'SorP'!$A$\"&MATCH($J830,SorP!$B$1:$B$5661,0))))","v":""},null,{"$f":"IF(C830=\"\",NA(),MATCH($B830&$C830,'Smelter Look-up'!$J:$J,0))","v":{"$error":"#N/A"}},null,0,null,null,null,""]
[null,{"$f":"IF(LEN(A831)=0,\"\",INDEX('Smelter Look-up'!$A:$A,MATCH($A831,'Smelter Look-up'!$E:$E,0)))","v":""},{"$f":"IF(LEN(A831)=0,\"\",INDEX('Smelter Look-up'!$C:$C,MATCH($A831,'Smelter Look-up'!$E:$E,0)))","v":""},null,{"$f":"IF(ISERROR($V831),\"\",OFFSET('Smelter Look-up'!$D$4,$V831-4,0)&\"\")","v":""},{"$f":"IF(ISERROR($V831),\"\",OFFSET('Smelter Look-up'!$E$4,$V831-4,0))","v":""},{"$f":"IF(C831=$X$4,\"Enter smelter details\",IF(ISERROR($V831),\"\",OFFSET('Smelter Look-up'!$F$4,$V831-4,0)))","v":""},{"$f":"IF(ISERROR($V831),\"\",OFFSET('Smelter Look-up'!$G$4,$V831-4,0))","v":""},{"$f":"IF(ISERROR($V831),\"\",OFFSET('Smelter Look-up'!$H$4,$V831-4,0))","v":""},{"$f":"IF(ISERROR($V831),\"\",OFFSET('Smelter Look-up'!$I$4,$V831-4,0))","v":""},{"$nulls":7},{"$f":"IF(ISERROR($V831),\"\",OFFSET('Smelter Look-up'!$C$4,$V831-4,0)&\"\")","v":""},"",{"$f":"IF(B831=\"\",\"\",IF(ISERROR(MATCH($J831,SorP!$B$1:$B$5661,0)),\"\",INDIRECT(\"'SorP'!$A$\"&MATCH($J831,SorP!$B$1:$B$5661,0))))","v":""},null,{"$f":"IF(C831=\"\",NA(),MATCH($B831&$C831,'Smelter Look-up'!$J:$J,0))","v":{"$error":"#N/A"}},null,{"$f":"IF(AND(C831=\"Smelter not listed\",OR(LEN(D831)=0,LEN(E831)=0)),1,0)","v":0},null,null,null,{"$f":"B831&C831","v":""}]
[null,{"$f":"IF(LEN(A832)=0,\"\",INDEX('Smelter Look-up'!$A:$A,MATCH($A832,'Smelter Look-up'!$E:$E,0)))","v":""},{"$f":"IF(LEN(A832)=0,\"\",INDEX('Smelter Look-up'!$C:$C,MATCH($A832,'Smelter Look-up'!$E:$E,0)))","v":""},null,{"$f":"IF(ISERROR($V832),\"\",OFFSET('Smelter Look-up'!$D$4,$V832-4,0)&\"\")","v":""},{"$f":"IF(ISERROR($V832),\"\",OFFSET('Smelter Look-up'!$E$4,$V832-4,0))","v":""},{"$f":"IF(C832=$X$4,\"Enter smelter details\",IF(ISERROR($V832),\"\",OFFSET('Smelter Look-up'!$F$4,$V832-4,0)))","v":""},{"$f":"IF(ISERROR($V832),\"\",OFFSET('Smelter Look-up'!$G$4,$V832-4,0))","v":""},{"$f":"IF(ISERROR($V832),\"\",OFFSET('Smelter Look-up'!$H$4,$V832-4,0))","v":""},{"$f":"IF(ISERROR($V832),\"\",OFFSET('Smelter Look-up'!$I$4,$V832-4,0))","v":""},{"$nulls":7},{"$f":"IF(ISERROR($V832),\"\",OFFSET('Smelter Look-up'!$C$4,$V832-4,0)&\"\")","v":""},{"$f":"IF(B832=\"\",\"\",IF(ISERROR(MATCH($E832,CL,0)),\"Unknown\",INDIRECT(\"'C'!$A$\"&MATCH($E832,CL,0)+1)))","v":""},{"$f":"IF(B832=\"\",\"\",IF(ISERROR(MATCH($J832,SorP!$B$1:$B$5661,0)),\"\",INDIRECT(\"'SorP'!$A$\"&MATCH($J832,SorP!$B$1:$B$5661,0))))","v":""},null,{"$f":"IF(C832=\"\",NA(),MATCH($B832&$C832,'Smelter Look-up'!$J:$J,0))","v":{"$error":"#N/A"}},null,0,null,null,null,""]
[null,{"$f":"IF(LEN(A833)=0,\"\",INDEX('Smelter Look-up'!$A:$A,MATCH($A833,'Smelter Look-up'!$E:$E,0)))","v":""},{"$f":"IF(LEN(A833)=0,\"\",INDEX('Smelter Look-up'!$C:$C,MATCH($A833,'Smelter Look-up'!$E:$E,0)))","v":""},null,{"$f":"IF(ISERROR($V833),\"\",OFFSET('Smelter Look-up'!$D$4,$V833-4,0)&\"\")","v":""},{"$f":"IF(ISERROR($V833),\"\",OFFSET('Smelter Look-up'!$E$4,$V833-4,0))","v":""},{"$f":"IF(C833=$X$4,\"Enter smelter details\",IF(ISERROR($V833),\"\",OFFSET('Smelter Look-up'!$F$4,$V833-4,0)))","v":""},{"$f":"IF(ISERROR($V833),\"\",OFFSET('Smelter Look-up'!$G$4,$V833-4,0))","v":""},{"$f":"IF(ISERROR($V833),\"\",OFFSET('Smelter Look-up'!$H$4,$V833-4,0))","v":""},{"$f":"IF(ISERROR($V833),\"\",OFFSET('Smelter Look-up'!$I$4,$V833-4,0))","v":""},{"$nulls":7},{"$f":"IF(ISERROR($V833),\"\",OFFSET('Smelter Look-up'!$C$4,$V833-4,0)&\"\")","v":""},"",{"$f":"IF(B833=\"\",\"\",IF(ISERROR(MATCH($J833,SorP!$B$1:$B$5661,0)),\"\",INDIRECT(\"'SorP'!$A$\"&MATCH($J833,SorP!$B$1:$B$5661,0))))","v":""},null,{"$f":"IF(C833=\"\",NA(),MATCH($B833&$C833,'Smelter Look-up'!$J:$J,0))","v":{"$error":"#N/A"}},null,0,null,null,null,""]
[null,{"$f":"IF(LEN(A834)=0,\"\",INDEX('Smelter Look-up'!$A:$A,MATCH($A834,'Smelter Look-up'!$E:$E,0)))","v":""},{"$f":"IF(LEN(A834)=0,\"\",INDEX('Smelter Look-up'!$C:$C,MATCH($A834,'Smelter Look-up'!$E:$E,0)))","v":""},null,{"$f":"IF(ISERROR($V834),\"\",OFFSET('Smelter Look-up'!$D$4,$V834-4,0)&\"\")","v":""},{"$f":"IF(ISERROR($V834),\"\",OFFSET('Smelter Look-up'!$E$4,$V834-4,0))","v":""},{"$f":"IF(C834=$X$4,\"Enter smelter details\",IF(ISERROR($V834),\"\",OFFSET('Smelter Look-up'!$F$4,$V834-4,0)))","v":""},{"$f":"IF(ISERROR($V834),\"\",OFFSET('Smelter Look-up'!$G$4,$V834-4,0))","v":""},{"$f":"IF(ISERROR($V834),\"\",OFFSET('Smelter Look-up'!$H$4,$V834-4,0))","v":""},{"$f":"IF(ISERROR($V834),\"\",OFFSET('Smelter Look-up'!$I$4,$V834-4,0))","v":""},{"$nulls":7},{"$f":"IF(ISERROR($V834),\"\",OFFSET('Smelter Look-up'!$C$4,$V834-4,0)&\"\")","v":""},"",{"$f":"IF(B834=\"\",\"\",IF(ISERROR(MATCH($J834,SorP!$B$1:$B$5661,0)),\"\",INDIRECT(\"'SorP'!$A$\"&MATCH($J834,SorP!$B$1:$B$5661,0))))","v":""},null,{"$f":"IF(C834=\"\",NA(),MATCH($B834&$C834,'Smelter Look-up'!$J:$J,0))","v":{"$error":"#N/A"}},null,0,null,null,null,""]
[null,{"$f":"IF(LEN(A835)=0,\"\",INDEX('Smelter Look-up'!$A:$A,MATCH($A835,'Smelter Look-up'!$E:$E,0)))","v":""},{"$f":"IF(LEN(A835)=0,\"\",INDEX('Smelter Look-up'!$C:$C,MATCH($A835,'Smelter Look-up'!$E:$E,0)))","v":""},null,{"$f":"IF(ISERROR($V835),\"\",OFFSET('Smelter Look-up'!$D$4,$V835-4,0)&\"\")","v":""},{"$f":"IF(ISERROR($V835),\"\",OFFSET('Smelter Look-up'!$E$4,$V835-4,0))","v":""},{"$f":"IF(C835=$X$4,\"Enter smelter details\",IF(ISERROR($V835),\"\",OFFSET('Smelter Look-up'!$F$4,$V835-4,0)))","v":""},{"$f":"IF(ISERROR($V835),\"\",OFFSET('Smelter Look-up'!$G$4,$V835-4,0))","v":""},{"$f":"IF(ISERROR($V835),\"\",OFFSET('Smelter Look-up'!$H$4,$V835-4,0))","v":""},{"$f":"IF(ISERROR($V835),\"\",OFFSET('Smelter Look-up'!$I$4,$V835-4,0))","v":""},{"$nulls":7},{"$f":"IF(ISERROR($V835),\"\",OFFSET('Smelter Look-up'!$C$4,$V835-4,0)&\"\")","v":""},"",{"$f":"IF(B835=\"\",\"\",IF(ISERROR(MATCH($J835,SorP!$B$1:$B$5661,0)),\"\",INDIRECT(\"'SorP'!$A$\"&MATCH($J835,SorP!$B$1:$B$5661,0))))","v":""},null,{"$f":"IF(C835=\"\",NA(),MATCH($B835&$C835,'Smelter Look-up'!$J:$J,0))","v":{"$error":"#N/A"}},null,0,null,null,null,""]
[null,{"$f":"IF(LEN(A836)=0,\"\",INDEX('Smelter Look-up'!$A:$A,MATCH($A836,'Smelter Look-up'!$E:$E,0)))","v":""},{"$f":"IF(LEN(A836)=0,\"\",INDEX('Smelter Look-up'!$C:$C,MATCH($A836,'Smelter Look-up'!$E:$E,0)))","v":""},null,{"$f":"IF(ISERROR($V836),\"\",OFFSET('Smelter Look-up'!$D$4,$V836-4,0)&\"\")","v":""},{"$f":"IF(ISERROR($V836),\"\",OFFSET('Smelter Look-up'!$E$4,$V836-4,0))","v":""},{"$f":"IF(C836=$X$4,\"Enter smelter details\",IF(ISERROR($V836),\"\",OFFSET('Smelter Look-up'!$F$4,$V836-4,0)))","v":""},{"$f":"IF(ISERROR($V836),\"\",OFFSET('Smelter Look-up'!$G$4,$V836-4,0))","v":""},{"$f":"IF(ISERROR($V836),\"\",OFFSET('Smelter Look-up'!$H$4,$V836-4,0))","v":""},{"$f":"IF(ISERROR($V836),\"\",OFFSET('Smelter Look-up'!$I$4,$V836-4,0))","v":""},{"$nulls":7},{"$f":"IF(ISERROR($V836),\"\",OFFSET('Smelter Look-up'!$C$4,$V836-4,0)&\"\")","v":""},"",{"$f":"IF(B836=\"\",\"\",IF(ISERROR(MATCH($J836,SorP!$B$1:$B$5661,0)),\"\",INDIRECT(\"'SorP'!$A$\"&MATCH($J836,SorP!$B$1:$B$5661,0))))","v":""},null,{"$f":"IF(C836=\"\",NA(),MATCH($B836&$C836,'Smelter Look-up'!$J:$J,0))","v":{"$error":"#N/A"}},null,0,null,null,null,""]
[null,{"$f":"IF(LEN(A837)=0,\"\",INDEX('Smelter Look-up'!$A:$A,MATCH($A837,'Smelter Look-up'!$E:$E,0)))","v":""},{"$f":"IF(LEN(A837)=0,\"\",INDEX('Smelter Look-up'!$C:$C,MATCH($A837,'Smelter Look-up'!$E:$E,0)))","v":""},null,{"$f":"IF(ISERROR($V837),\"\",OFFSET('Smelter Look-up'!$D$4,$V837-4,0)&\"\")","v":""},{"$f":"IF(ISERROR($V837),\"\",OFFSET('Smelter Look-up'!$E$4,$V837-4,0))","v":""},{"$f":"IF(C837=$X$4,\"Enter smelter details\",IF(ISERROR($V837),\"\",OFFSET('Smelter Look-up'!$F$4,$V837-4,0)))","v":""},{"$f":"IF(ISERROR($V837),\"\",OFFSET('Smelter Look-up'!$G$4,$V837-4,0))","v":""},{"$f":"IF(ISERROR($V837),\"\",OFFSET('Smelter Look-up'!$H$4,$V837-4,0))","v":""},{"$f":"IF(ISERROR($V837),\"\",OFFSET('Smelter Look-up'!$I$4,$V837-4,0))","v":""},{"$nulls":7},{"$f":"IF(ISERROR($V837),\"\",OFFSET('Smelter Look-up'!$C$4,$V837-4,0)&\"\")","v":""},"",{"$f":"IF(B837=\"\",\"\",IF(ISERROR(MATCH($J837,SorP!$B$1:$B$5661,0)),\"\",INDIRECT(\"'SorP'!$A$\"&MATCH($J837,SorP!$B$1:$B$5661,0))))","v":""},null,{"$f":"IF(C837=\"\",NA(),MATCH($B837&$C837,'Smelter Look-up'!$J:$J,0))","v":{"$error":"#N/A"}},null,0,null,null,null,""]
[null,{"$f":"IF(LEN(A838)=0,\"\",INDEX('Smelter Look-up'!$A:$A,MATCH($A838,'Smelter Look-up'!$E:$E,0)))","v":""},{"$f":"IF(LEN(A838)=0,\"\",INDEX('Smelter Look-up'!$C:$C,MATCH($A838,'Smelter Look-up'!$E:$E,0)))","v":""},null,{"$f":"IF(ISERROR($V838),\"\",OFFSET('Smelter Look-up'!$D$4,$V838-4,0)&\"\")","v":""},{"$f":"IF(ISERROR($V838),\"\",OFFSET('Smelter Look-up'!$E$4,$V838-4,0))","v":""},{"$f":"IF(C838=$X$4,\"Enter smelter details\",IF(ISERROR($V838),\"\",OFFSET('Smelter Look-up'!$F$4,$V838-4,0)))","v":""},{"$f":"IF(ISERROR($V838),\"\",OFFSET('Smelter Look-up'!$G$4,$V838-4,0))","v":""},{"$f":"IF(ISERROR($V838),\"\",OFFSET('Smelter Look-up'!$H$4,$V838-4,0))","v":""},{"$f":"IF(ISERROR($V838),\"\",OFFSET('Smelter Look-up'!$I$4,$V838-4,0))","v":""},{"$nulls":7},{"$f":"IF(ISERROR($V838),\"\",OFFSET('Smelter Look-up'!$C$4,$V838-4,0)&\"\")","v":""},"",{"$f":"IF(B838=\"\",\"\",IF(ISERROR(MATCH($J838,SorP!$B$1:$B$5661,0)),\"\",INDIRECT(\"'SorP'!$A$\"&MATCH($J838,SorP!$B$1:$B$5661,0))))","v":""},null,{"$f":"IF(C838=\"\",NA(),MATCH($B838&$C838,'Smelter Look-up'!$J:$J,0))","v":{"$error":"#N/A"}},null,0,null,null,null,""]
[null,{"$f":"IF(LEN(A839)=0,\"\",INDEX('Smelter Look-up'!$A:$A,MATCH($A839,'Smelter Look-up'!$E:$E,0)))","v":""},{"$f":"IF(LEN(A839)=0,\"\",INDEX('Smelter Look-up'!$C:$C,MATCH($A839,'Smelter Look-up'!$E:$E,0)))","v":""},null,{"$f":"IF(ISERROR($V839),\"\",OFFSET('Smelter Look-up'!$D$4,$V839-4,0)&\"\")","v":""},{"$f":"IF(ISERROR($V839),\"\",OFFSET('Smelter Look-up'!$E$4,$V839-4,0))","v":""},{"$f":"IF(C839=$X$4,\"Enter smelter details\",IF(ISERROR($V839),\"\",OFFSET('Smelter Look-up'!$F$4,$V839-4,0)))","v":""},{"$f":"IF(ISERROR($V839),\"\",OFFSET('Smelter Look-up'!$G$4,$V839-4,0))","v":""},{"$f":"IF(ISERROR($V839),\"\",OFFSET('Smelter Look-up'!$H$4,$V839-4,0))","v":""},{"$f":"IF(ISERROR($V839),\"\",OFFSET('Smelter Look-up'!$I$4,$V839-4,0))","v":""},{"$nulls":7},{"$f":"IF(ISERROR($V839),\"\",OFFSET('Smelter Look-up'!$C$4,$V839-4,0)&\"\")","v":""},"",{"$f":"IF(B839=\"\",\"\",IF(ISERROR(MATCH($J839,SorP!$B$1:$B$5661,0)),\"\",INDIRECT(\"'SorP'!$A$\"&MATCH($J839,SorP!$B$1:$B$5661,0))))","v":""},null,{"$f":"IF(C839=\"\",NA(),MATCH($B839&$C839,'Smelter Look-up'!$J:$J,0))","v":{"$error":"#N/A"}},null,0,null,null,null,""]
[null,{"$f":"IF(LEN(A840)=0,\"\",INDEX('Smelter Look-up'!$A:$A,MATCH($A840,'Smelter Look-up'!$E:$E,0)))","v":""},{"$f":"IF(LEN(A840)=0,\"\",INDEX('Smelter Look-up'!$C:$C,MATCH($A840,'Smelter Look-up'!$E:$E,0)))","v":""},null,{"$f":"IF(ISERROR($V840),\"\",OFFSET('Smelter Look-up'!$D$4,$V840-4,0)&\"\")","v":""},{"$f":"IF(ISERROR($V840),\"\",OFFSET('Smelter Look-up'!$E$4,$V840-4,0))","v":""},{"$f":"IF(C840=$X$4,\"Enter smelter details\",IF(ISERROR($V840),\"\",OFFSET('Smelter Look-up'!$F$4,$V840-4,0)))","v":""},{"$f":"IF(ISERROR($V840),\"\",OFFSET('Smelter Look-up'!$G$4,$V840-4,0))","v":""},{"$f":"IF(ISERROR($V840),\"\",OFFSET('Smelter Look-up'!$H$4,$V840-4,0))","v":""},{"$f":"IF(ISERROR($V840),\"\",OFFSET('Smelter Look-up'!$I$4,$V840-4,0))","v":""},{"$nulls":7},{"$f":"IF(ISERROR($V840),\"\",OFFSET('Smelter Look-up'!$C$4,$V840-4,0)&\"\")","v":""},"",{"$f":"IF(B840=\"\",\"\",IF(ISERROR(MATCH($J840,SorP!$B$1:$B$5661,0)),\"\",INDIRECT(\"'SorP'!$A$\"&MATCH($J840,SorP!$B$1:$B$5661,0))))","v":""},null,{"$f":"IF(C840=\"\",NA(),MATCH($B840&$C840,'Smelter Look-up'!$J:$J,0))","v":{"$error":"#N/A"}},null,0,null,null,null,""]
[null,{"$f":"IF(LEN(A841)=0,\"\",INDEX('Smelter Look-up'!$A:$A,MATCH($A841,'Smelter Look-up'!$E:$E,0)))","v":""},{"$f":"IF(LEN(A841)=0,\"\",INDEX('Smelter Look-up'!$C:$C,MATCH($A841,'Smelter Look-up'!$E:$E,0)))","v":""},null,{"$f":"IF(ISERROR($V841),\"\",OFFSET('Smelter Look-up'!$D$4,$V841-4,0)&\"\")","v":""},{"$f":"IF(ISERROR($V841),\"\",OFFSET('Smelter Look-up'!$E$4,$V841-4,0))","v":""},{"$f":"IF(C841=$X$4,\"Enter smelter details\",IF(ISERROR($V841),\"\",OFFSET('Smelter Look-up'!$F$4,$V841-4,0)))","v":""},{"$f":"IF(ISERROR($V841),\"\",OFFSET('Smelter Look-up'!$G$4,$V841-4,0))","v":""},{"$f":"IF(ISERROR($V841),\"\",OFFSET('Smelter Look-up'!$H$4,$V841-4,0))","v":""},{"$f":"IF(ISERROR($V841),\"\",OFFSET('Smelter Look-up'!$I$4,$V841-4,0))","v":""},{"$nulls":7},{"$f":"IF(ISERROR($V841),\"\",OFFSET('Smelter Look-up'!$C$4,$V841-4,0)&\"\")","v":""},"",{"$f":"IF(B841=\"\",\"\",IF(ISERROR(MATCH($J841,SorP!$B$1:$B$5661,0)),\"\",INDIRECT(\"'SorP'!$A$\"&MATCH($J841,SorP!$B$1:$B$5661,0))))","v":""},null,{"$f":"IF(C841=\"\",NA(),MATCH($B841&$C841,'Smelter Look-up'!$J:$J,0))","v":{"$error":"#N/A"}},null,0,null,null,null,""]
[null,{"$f":"IF(LEN(A842)=0,\"\",INDEX('Smelter Look-up'!$A:$A,MATCH($A842,'Smelter Look-up'!$E:$E,0)))","v":""},{"$f":"IF(LEN(A842)=0,\"\",INDEX('Smelter Look-up'!$C:$C,MATCH($A842,'Smelter Look-up'!$E:$E,0)))","v":""},null,{"$f":"IF(ISERROR($V842),\"\",OFFSET('Smelter Look-up'!$D$4,$V842-4,0)&\"\")","v":""},{"$f":"IF(ISERROR($V842),\"\",OFFSET('Smelter Look-up'!$E$4,$V842-4,0))","v":""},{"$f":"IF(C842=$X$4,\"Enter smelter details\",IF(ISERROR($V842),\"\",OFFSET('Smelter Look-up'!$F$4,$V842-4,0)))","v":""},{"$f":"IF(ISERROR($V842),\"\",OFFSET('Smelter Look-up'!$G$4,$V842-4,0))","v":""},{"$f":"IF(ISERROR($V842),\"\",OFFSET('Smelter Look-up'!$H$4,$V842-4,0))","v":""},{"$f":"IF(ISERROR($V842),\"\",OFFSET('Smelter Look-up'!$I$4,$V842-4,0))","v":""},{"$nulls":7},{"$f":"IF(ISERROR($V842),\"\",OFFSET('Smelter Look-up'!$C$4,$V842-4,0)&\"\")","v":""},"",{"$f":"IF(B842=\"\",\"\",IF(ISERROR(MATCH($J842,SorP!$B$1:$B$5661,0)),\"\",INDIRECT(\"'SorP'!$A$\"&MATCH($J842,SorP!$B$1:$B$5661,0))))","v":""},null,{"$f":"IF(C842=\"\",NA(),MATCH($B842&$C842,'Smelter Look-up'!$J:$J,0))","v":{"$error":"#N/A"}},null,0,null,null,null,""]
[null,{"$f":"IF(LEN(A843)=0,\"\",INDEX('Smelter Look-up'!$A:$A,MATCH($A843,'Smelter Look-up'!$E:$E,0)))","v":""},{"$f":"IF(LEN(A843)=0,\"\",INDEX('Smelter Look-up'!$C:$C,MATCH($A843,'Smelter Look-up'!$E:$E,0)))","v":""},null,{"$f":"IF(ISERROR($V843),\"\",OFFSET('Smelter Look-up'!$D$4,$V843-4,0)&\"\")","v":""},{"$f":"IF(ISERROR($V843),\"\",OFFSET('Smelter Look-up'!$E$4,$V843-4,0))","v":""},{"$f":"IF(C843=$X$4,\"Enter smelter details\",IF(ISERROR($V843),\"\",OFFSET('Smelter Look-up'!$F$4,$V843-4,0)))","v":""},{"$f":"IF(ISERROR($V843),\"\",OFFSET('Smelter Look-up'!$G$4,$V843-4,0))","v":""},{"$f":"IF(ISERROR($V843),\"\",OFFSET('Smelter Look-up'!$H$4,$V843-4,0))","v":""},{"$f":"IF(ISERROR($V843),\"\",OFFSET('Smelter Look-up'!$I$4,$V843-4,0))","v":""},{"$nulls":7},{"$f":"IF(ISERROR($V843),\"\",OFFSET('Smelter Look-up'!$C$4,$V843-4,0)&\"\")","v":""},"",{"$f":"IF(B843=\"\",\"\",IF(ISERROR(MATCH($J843,SorP!$B$1:$B$5661,0)),\"\",INDIRECT(\"'SorP'!$A$\"&MATCH($J843,SorP!$B$1:$B$5661,0))))","v":""},null,{"$f":"IF(C843=\"\",NA(),MATCH($B843&$C843,'Smelter Look-up'!$J:$J,0))","v":{"$error":"#N/A"}},null,0,null,null,null,""]
[null,{"$f":"IF(LEN(A844)=0,\"\",INDEX('Smelter Look-up'!$A:$A,MATCH($A844,'Smelter Look-up'!$E:$E,0)))","v":""},{"$f":"IF(LEN(A844)=0,\"\",INDEX('Smelter Look-up'!$C:$C,MATCH($A844,'Smelter Look-up'!$E:$E,0)))","v":""},null,{"$f":"IF(ISERROR($V844),\"\",OFFSET('Smelter Look-up'!$D$4,$V844-4,0)&\"\")","v":""},{"$f":"IF(ISERROR($V844),\"\",OFFSET('Smelter Look-up'!$E$4,$V844-4,0))","v":""},{"$f":"IF(C844=$X$4,\"Enter smelter details\",IF(ISERROR($V844),\"\",OFFSET('Smelter Look-up'!$F$4,$V844-4,0)))","v":""},{"$f":"IF(ISERROR($V844),\"\",OFFSET('Smelter Look-up'!$G$4,$V844-4,0))","v":""},{"$f":"IF(ISERROR($V844),\"\",OFFSET('Smelter Look-up'!$H$4,$V844-4,0))","v":""},{"$f":"IF(ISERROR($V844),\"\",OFFSET('Smelter Look-up'!$I$4,$V844-4,0))","v":""},{"$nulls":7},{"$f":"IF(ISERROR($V844),\"\",OFFSET('Smelter Look-up'!$C$4,$V844-4,0)&\"\")","v":""},"",{"$f":"IF(B844=\"\",\"\",IF(ISERROR(MATCH($J844,SorP!$B$1:$B$5661,0)),\"\",INDIRECT(\"'SorP'!$A$\"&MATCH($J844,SorP!$B$1:$B$5661,0))))","v":""},null,{"$f":"IF(C844=\"\",NA(),MATCH($B844&$C844,'Smelter Look-up'!$J:$J,0))","v":{"$error":"#N/A"}},null,0,null,null,null,""]
[null,{"$f":"IF(LEN(A845)=0,\"\",INDEX('Smelter Look-up'!$A:$A,MATCH($A845,'Smelter Look-up'!$E:$E,0)))","v":""},{"$f":"IF(LEN(A845)=0,\"\",INDEX('Smelter Look-up'!$C:$C,MATCH($A845,'Smelter Look-up'!$E:$E,0)))","v":""},null,{"$f":"IF(ISERROR($V845),\"\",OFFSET('Smelter Look-up'!$D$4,$V845-4,0)&\"\")","v":""},{"$f":"IF(ISERROR($V845),\"\",OFFSET('Smelter Look-up'!$E$4,$V845-4,0))","v":""},{"$f":"IF(C845=$X$4,\"Enter smelter details\",IF(ISERROR($V845),\"\",OFFSET('Smelter Look-up'!$F$4,$V845-4,0)))","v":""},{"$f":"IF(ISERROR($V845),\"\",OFFSET('Smelter Look-up'!$G$4,$V845-4,0))","v":""},{"$f":"IF(ISERROR($V845),\"\",OFFSET('Smelter Look-up'!$H$4,$V845-4,0))","v":""},{"$f":"IF(ISERROR($V845),\"\",OFFSET('Smelter Look-up'!$I$4,$V845-4,0))","v":""},{"$nulls":7},{"$f":"IF(ISERROR($V845),\"\",OFFSET('Smelter Look-up'!$C$4,$V845-4,0)&\"\")","v":""},"",{"$f":"IF(B845=\"\",\"\",IF(ISERROR(MATCH($J845,SorP!$B$1:$B$5661,0)),\"\",INDIRECT(\"'SorP'!$A$\"&MATCH($J845,SorP!$B$1:$B$5661,0))))","v":""},null,{"$f":"IF(C845=\"\",NA(),MATCH($B845&$C845,'Smelter Look-up'!$J:$J,0))","v":{"$error":"#N/A"}},null,0,null,null,null,""]
[null,{"$f":"IF(LEN(A846)=0,\"\",INDEX('Smelter Look-up'!$A:$A,MATCH($A846,'Smelter Look-up'!$E:$E,0)))","v":""},{"$f":"IF(LEN(A846)=0,\"\",INDEX('Smelter Look-up'!$C:$C,MATCH($A846,'Smelter Look-up'!$E:$E,0)))","v":""},null,{"$f":"IF(ISERROR($V846),\"\",OFFSET('Smelter Look-up'!$D$4,$V846-4,0)&\"\")","v":""},{"$f":"IF(ISERROR($V846),\"\",OFFSET('Smelter Look-up'!$E$4,$V846-4,0))","v":""},{"$f":"IF(C846=$X$4,\"Enter smelter details\",IF(ISERROR($V846),\"\",OFFSET('Smelter Look-up'!$F$4,$V846-4,0)))","v":""},{"$f":"IF(ISERROR($V846),\"\",OFFSET('Smelter Look-up'!$G$4,$V846-4,0))","v":""},{"$f":"IF(ISERROR($V846),\"\",OFFSET('Smelter Look-up'!$H$4,$V846-4,0))","v":""},{"$f":"IF(ISERROR($V846),\"\",OFFSET('Smelter Look-up'!$I$4,$V846-4,0))","v":""},{"$nulls":7},{"$f":"IF(ISERROR($V846),\"\",OFFSET('Smelter Look-up'!$C$4,$V846-4,0)&\"\")","v":""},"",{"$f":"IF(B846=\"\",\"\",IF(ISERROR(MATCH($J846,SorP!$B$1:$B$5661,0)),\"\",INDIRECT(\"'SorP'!$A$\"&MATCH($J846,SorP!$B$1:$B$5661,0))))","v":""},null,{"$f":"IF(C846=\"\",NA(),MATCH($B846&$C846,'Smelter Look-up'!$J:$J,0))","v":{"$error":"#N/A"}},null,0,null,null,null,""]
[null,{"$f":"IF(LEN(A847)=0,\"\",INDEX('Smelter Look-up'!$A:$A,MATCH($A847,'Smelter Look-up'!$E:$E,0)))","v":""},{"$f":"IF(LEN(A847)=0,\"\",INDEX('Smelter Look-up'!$C:$C,MATCH($A847,'Smelter Look-up'!$E:$E,0)))","v":""},null,{"$f":"IF(ISERROR($V847),\"\",OFFSET('Smelter Look-up'!$D$4,$V847-4,0)&\"\")","v":""},{"$f":"IF(ISERROR($V847),\"\",OFFSET('Smelter Look-up'!$E$4,$V847-4,0))","v":""},{"$f":"IF(C847=$X$4,\"Enter smelter details\",IF(ISERROR($V847),\"\",OFFSET('Smelter Look-up'!$F$4,$V847-4,0)))","v":""},{"$f":"IF(ISERROR($V847),\"\",OFFSET('Smelter Look-up'!$G$4,$V847-4,0))","v":""},{"$f":"IF(ISERROR($V847),\"\",OFFSET('Smelter Look-up'!$H$4,$V847-4,0))","v":""},{"$f":"IF(ISERROR($V847),\"\",OFFSET('Smelter Look-up'!$I$4,$V847-4,0))","v":""},{"$nulls":7},{"$f":"IF(ISERROR($V847),\"\",OFFSET('Smelter Look-up'!$C$4,$V847-4,0)&\"\")","v":""},"",{"$f":"IF(B847=\"\",\"\",IF(ISERROR(MATCH($J847,SorP!$B$1:$B$5661,0)),\"\",INDIRECT(\"'SorP'!$A$\"&MATCH($J847,SorP!$B$1:$B$5661,0))))","v":""},null,{"$f":"IF(C847=\"\",NA(),MATCH($B847&$C847,'Smelter Look-up'!$J:$J,0))","v":{"$error":"#N/A"}},null,0,null,null,null,""]
[null,{"$f":"IF(LEN(A848)=0,\"\",INDEX('Smelter Look-up'!$A:$A,MATCH($A848,'Smelter Look-up'!$E:$E,0)))","v":""},{"$f":"IF(LEN(A848)=0,\"\",INDEX('Smelter Look-up'!$C:$C,MATCH($A848,'Smelter Look-up'!$E:$E,0)))","v":""},null,{"$f":"IF(ISERROR($V848),\"\",OFFSET('Smelter Look-up'!$D$4,$V848-4,0)&\"\")","v":""},{"$f":"IF(ISERROR($V848),\"\",OFFSET('Smelter Look-up'!$E$4,$V848-4,0))","v":""},{"$f":"IF(C848=$X$4,\"Enter smelter details\",IF(ISERROR($V848),\"\",OFFSET('Smelter Look-up'!$F$4,$V848-4,0)))","v":""},{"$f":"IF(ISERROR($V848),\"\",OFFSET('Smelter Look-up'!$G$4,$V848-4,0))","v":""},{"$f":"IF(ISERROR($V848),\"\",OFFSET('Smelter Look-up'!$H$4,$V848-4,0))","v":""},{"$f":"IF(ISERROR($V848),\"\",OFFSET('Smelter Look-up'!$I$4,$V848-4,0))","v":""},{"$nulls":7},{"$f":"IF(ISERROR($V848),\"\",OFFSET('Smelter Look-up'!$C$4,$V848-4,0)&\"\")","v":""},"",{"$f":"IF(B848=\"\",\"\",IF(ISERROR(MATCH($J848,SorP!$B$1:$B$5661,0)),\"\",INDIRECT(\"'SorP'!$A$\"&MATCH($J848,SorP!$B$1:$B$5661,0))))","v":""},null,{"$f":"IF(C848=\"\",NA(),MATCH($B848&$C848,'Smelter Look-up'!$J:$J,0))","v":{"$error":"#N/A"}},null,0,null,null,null,""]
[null,{"$f":"IF(LEN(A849)=0,\"\",INDEX('Smelter Look-up'!$A:$A,MATCH($A849,'Smelter Look-up'!$E:$E,0)))","v":""},{"$f":"IF(LEN(A849)=0,\"\",INDEX('Smelter Look-up'!$C:$C,MATCH($A849,'Smelter Look-up'!$E:$E,0)))","v":""},null,{"$f":"IF(ISERROR($V849),\"\",OFFSET('Smelter Look-up'!$D$4,$V849-4,0)&\"\")","v":""},{"$f":"IF(ISERROR($V849),\"\",OFFSET('Smelter Look-up'!$E$4,$V849-4,0))","v":""},{"$f":"IF(C849=$X$4,\"Enter smelter details\",IF(ISERROR($V849),\"\",OFFSET('Smelter Look-up'!$F$4,$V849-4,0)))","v":""},{"$f":"IF(ISERROR($V849),\"\",OFFSET('Smelter Look-up'!$G$4,$V849-4,0))","v":""},{"$f":"IF(ISERROR($V849),\"\",OFFSET('Smelter Look-up'!$H$4,$V849-4,0))","v":""},{"$f":"IF(ISERROR($V849),\"\",OFFSET('Smelter Look-up'!$I$4,$V849-4,0))","v":""},{"$nulls":7},{"$f":"IF(ISERROR($V849),\"\",OFFSET('Smelter Look-up'!$C$4,$V849-4,0)&\"\")","v":""},"",{"$f":"IF(B849=\"\",\"\",IF(ISERROR(MATCH($J849,SorP!$B$1:$B$5661,0)),\"\",INDIRECT(\"'SorP'!$A$\"&MATCH($J849,SorP!$B$1:$B$5661,0))))","v":""},null,{"$f":"IF(C849=\"\",NA(),MATCH($B849&$C849,'Smelter Look-up'!$J:$J,0))","v":{"$error":"#N/A"}},null,0,null,null,null,""]
[null,{"$f":"IF(LEN(A850)=0,\"\",INDEX('Smelter Look-up'!$A:$A,MATCH($A850,'Smelter Look-up'!$E:$E,0)))","v":""},{"$f":"IF(LEN(A850)=0,\"\",INDEX('Smelter Look-up'!$C:$C,MATCH($A850,'Smelter Look-up'!$E:$E,0)))","v":""},null,{"$f":"IF(ISERROR($V850),\"\",OFFSET('Smelter Look-up'!$D$4,$V850-4,0)&\"\")","v":""},{"$f":"IF(ISERROR($V850),\"\",OFFSET('Smelter Look-up'!$E$4,$V850-4,0))","v":""},{"$f":"IF(C850=$X$4,\"Enter smelter details\",IF(ISERROR($V850),\"\",OFFSET('Smelter Look-up'!$F$4,$V850-4,0)))","v":""},{"$f":"IF(ISERROR($V850),\"\",OFFSET('Smelter Look-up'!$G$4,$V850-4,0))","v":""},{"$f":"IF(ISERROR($V850),\"\",OFFSET('Smelter Look-up'!$H$4,$V850-4,0))","v":""},{"$f":"IF(ISERROR($V850),\"\",OFFSET('Smelter Look-up'!$I$4,$V850-4,0))","v":""},{"$nulls":7},{"$f":"IF(ISERROR($V850),\"\",OFFSET('Smelter Look-up'!$C$4,$V850-4,0)&\"\")","v":""},"",{"$f":"IF(B850=\"\",\"\",IF(ISERROR(MATCH($J850,SorP!$B$1:$B$5661,0)),\"\",INDIRECT(\"'SorP'!$A$\"&MATCH($J850,SorP!$B$1:$B$5661,0))))","v":""},null,{"$f":"IF(C850=\"\",NA(),MATCH($B850&$C850,'Smelter Look-up'!$J:$J,0))","v":{"$error":"#N/A"}},null,0,null,null,null,""]
[null,{"$f":"IF(LEN(A851)=0,\"\",INDEX('Smelter Look-up'!$A:$A,MATCH($A851,'Smelter Look-up'!$E:$E,0)))","v":""},{"$f":"IF(LEN(A851)=0,\"\",INDEX('Smelter Look-up'!$C:$C,MATCH($A851,'Smelter Look-up'!$E:$E,0)))","v":""},null,{"$f":"IF(ISERROR($V851),\"\",OFFSET('Smelter Look-up'!$D$4,$V851-4,0)&\"\")","v":""},{"$f":"IF(ISERROR($V851),\"\",OFFSET('Smelter Look-up'!$E$4,$V851-4,0))","v":""},{"$f":"IF(C851=$X$4,\"Enter smelter details\",IF(ISERROR($V851),\"\",OFFSET('Smelter Look-up'!$F$4,$V851-4,0)))","v":""},{"$f":"IF(ISERROR($V851),\"\",OFFSET('Smelter Look-up'!$G$4,$V851-4,0))","v":""},{"$f":"IF(ISERROR($V851),\"\",OFFSET('Smelter Look-up'!$H$4,$V851-4,0))","v":""},{"$f":"IF(ISERROR($V851),\"\",OFFSET('Smelter Look-up'!$I$4,$V851-4,0))","v":""},{"$nulls":7},{"$f":"IF(ISERROR($V851),\"\",OFFSET('Smelter Look-up'!$C$4,$V851-4,0)&\"\")","v":""},"",{"$f":"IF(B851=\"\",\"\",IF(ISERROR(MATCH($J851,SorP!$B$1:$B$5661,0)),\"\",INDIRECT(\"'SorP'!$A$\"&MATCH($J851,SorP!$B$1:$B$5661,0))))","v":""},null,{"$f":"IF(C851=\"\",NA(),MATCH($B851&$C851,'Smelter Look-up'!$J:$J,0))","v":{"$error":"#N/A"}},null,0,null,null,null,""]
[null,{"$f":"IF(LEN(A852)=0,\"\",INDEX('Smelter Look-up'!$A:$A,MATCH($A852,'Smelter Look-up'!$E:$E,0)))","v":""},{"$f":"IF(LEN(A852)=0,\"\",INDEX('Smelter Look-up'!$C:$C,MATCH($A852,'Smelter Look-up'!$E:$E,0)))","v":""},null,{"$f":"IF(ISERROR($V852),\"\",OFFSET('Smelter Look-up'!$D$4,$V852-4,0)&\"\")","v":""},{"$f":"IF(ISERROR($V852),\"\",OFFSET('Smelter Look-up'!$E$4,$V852-4,0))","v":""},{"$f":"IF(C852=$X$4,\"Enter smelter details\",IF(ISERROR($V852),\"\",OFFSET('Smelter Look-up'!$F$4,$V852-4,0)))","v":""},{"$f":"IF(ISERROR($V852),\"\",OFFSET('Smelter Look-up'!$G$4,$V852-4,0))","v":""},{"$f":"IF(ISERROR($V852),\"\",OFFSET('Smelter Look-up'!$H$4,$V852-4,0))","v":""},{"$f":"IF(ISERROR($V852),\"\",OFFSET('Smelter Look-up'!$I$4,$V852-4,0))","v":""},{"$nulls":7},{"$f":"IF(ISERROR($V852),\"\",OFFSET('Smelter Look-up'!$C$4,$V852-4,0)&\"\")","v":""},"",{"$f":"IF(B852=\"\",\"\",IF(ISERROR(MATCH($J852,SorP!$B$1:$B$5661,0)),\"\",INDIRECT(\"'SorP'!$A$\"&MATCH($J852,SorP!$B$1:$B$5661,0))))","v":""},null,{"$f":"IF(C852=\"\",NA(),MATCH($B852&$C852,'Smelter Look-up'!$J:$J,0))","v":{"$error":"#N/A"}},null,0,null,null,null,""]
[null,{"$f":"IF(LEN(A853)=0,\"\",INDEX('Smelter Look-up'!$A:$A,MATCH($A853,'Smelter Look-up'!$E:$E,0)))","v":""},{"$f":"IF(LEN(A853)=0,\"\",INDEX('Smelter Look-up'!$C:$C,MATCH($A853,'Smelter Look-up'!$E:$E,0)))","v":""},null,{"$f":"IF(ISERROR($V853),\"\",OFFSET('Smelter Look-up'!$D$4,$V853-4,0)&\"\")","v":""},{"$f":"IF(ISERROR($V853),\"\",OFFSET('Smelter Look-up'!$E$4,$V853-4,0))","v":""},{"$f":"IF(C853=$X$4,\"Enter smelter details\",IF(ISERROR($V853),\"\",OFFSET('Smelter Look-up'!$F$4,$V853-4,0)))","v":""},{"$f":"IF(ISERROR($V853),\"\",OFFSET('Smelter Look-up'!$G$4,$V853-4,0))","v":""},{"$f":"IF(ISERROR($V853),\"\",OFFSET('Smelter Look-up'!$H$4,$V853-4,0))","v":""},{"$f":"IF(ISERROR($V853),\"\",OFFSET('Smelter Look-up'!$I$4,$V853-4,0))","v":""},{"$nulls":7},{"$f":"IF(ISERROR($V853),\"\",OFFSET('Smelter Look-up'!$C$4,$V853-4,0)&\"\")","v":""},"",{"$f":"IF(B853=\"\",\"\",IF(ISERROR(MATCH($J853,SorP!$B$1:$B$5661,0)),\"\",INDIRECT(\"'SorP'!$A$\"&MATCH($J853,SorP!$B$1:$B$5661,0))))","v":""},null,{"$f":"IF(C853=\"\",NA(),MATCH($B853&$C853,'Smelter Look-up'!$J:$J,0))","v":{"$error":"#N/A"}},null,0,null,null,null,""]
[null,{"$f":"IF(LEN(A854)=0,\"\",INDEX('Smelter Look-up'!$A:$A,MATCH($A854,'Smelter Look-up'!$E:$E,0)))","v":""},{"$f":"IF(LEN(A854)=0,\"\",INDEX('Smelter Look-up'!$C:$C,MATCH($A854,'Smelter Look-up'!$E:$E,0)))","v":""},null,{"$f":"IF(ISERROR($V854),\"\",OFFSET('Smelter Look-up'!$D$4,$V854-4,0)&\"\")","v":""},{"$f":"IF(ISERROR($V854),\"\",OFFSET('Smelter Look-up'!$E$4,$V854-4,0))","v":""},{"$f":"IF(C854=$X$4,\"Enter smelter details\",IF(ISERROR($V854),\"\",OFFSET('Smelter Look-up'!$F$4,$V854-4,0)))","v":""},{"$f":"IF(ISERROR($V854),\"\",OFFSET('Smelter Look-up'!$G$4,$V854-4,0))","v":""},{"$f":"IF(ISERROR($V854),\"\",OFFSET('Smelter Look-up'!$H$4,$V854-4,0))","v":""},{"$f":"IF(ISERROR($V854),\"\",OFFSET('Smelter Look-up'!$I$4,$V854-4,0))","v":""},{"$nulls":7},{"$f":"IF(ISERROR($V854),\"\",OFFSET('Smelter Look-up'!$C$4,$V854-4,0)&\"\")","v":""},"",{"$f":"IF(B854=\"\",\"\",IF(ISERROR(MATCH($J854,SorP!$B$1:$B$5661,0)),\"\",INDIRECT(\"'SorP'!$A$\"&MATCH($J854,SorP!$B$1:$B$5661,0))))","v":""},null,{"$f":"IF(C854=\"\",NA(),MATCH($B854&$C854,'Smelter Look-up'!$J:$J,0))","v":{"$error":"#N/A"}},null,0,null,null,null,""]
[null,{"$f":"IF(LEN(A855)=0,\"\",INDEX('Smelter Look-up'!$A:$A,MATCH($A855,'Smelter Look-up'!$E:$E,0)))","v":""},{"$f":"IF(LEN(A855)=0,\"\",INDEX('Smelter Look-up'!$C:$C,MATCH($A855,'Smelter Look-up'!$E:$E,0)))","v":""},null,{"$f":"IF(ISERROR($V855),\"\",OFFSET('Smelter Look-up'!$D$4,$V855-4,0)&\"\")","v":""},{"$f":"IF(ISERROR($V855),\"\",OFFSET('Smelter Look-up'!$E$4,$V855-4,0))","v":""},{"$f":"IF(C855=$X$4,\"Enter smelter details\",IF(ISERROR($V855),\"\",OFFSET('Smelter Look-up'!$F$4,$V855-4,0)))","v":""},{"$f":"IF(ISERROR($V855),\"\",OFFSET('Smelter Look-up'!$G$4,$V855-4,0))","v":""},{"$f":"IF(ISERROR($V855),\"\",OFFSET('Smelter Look-up'!$H$4,$V855-4,0))","v":""},{"$f":"IF(ISERROR($V855),\"\",OFFSET('Smelter Look-up'!$I$4,$V855-4,0))","v":""},{"$nulls":7},{"$f":"IF(ISERROR($V855),\"\",OFFSET('Smelter Look-up'!$C$4,$V855-4,0)&\"\")","v":""},"",{"$f":"IF(B855=\"\",\"\",IF(ISERROR(MATCH($J855,SorP!$B$1:$B$5661,0)),\"\",INDIRECT(\"'SorP'!$A$\"&MATCH($J855,SorP!$B$1:$B$5661,0))))","v":""},null,{"$f":"IF(C855=\"\",NA(),MATCH($B855&$C855,'Smelter Look-up'!$J:$J,0))","v":{"$error":"#N/A"}},null,0,null,null,null,""]
[null,{"$f":"IF(LEN(A856)=0,\"\",INDEX('Smelter Look-up'!$A:$A,MATCH($A856,'Smelter Look-up'!$E:$E,0)))","v":""},{"$f":"IF(LEN(A856)=0,\"\",INDEX('Smelter Look-up'!$C:$C,MATCH($A856,'Smelter Look-up'!$E:$E,0)))","v":""},null,{"$f":"IF(ISERROR($V856),\"\",OFFSET('Smelter Look-up'!$D$4,$V856-4,0)&\"\")","v":""},{"$f":"IF(ISERROR($V856),\"\",OFFSET('Smelter Look-up'!$E$4,$V856-4,0))","v":""},{"$f":"IF(C856=$X$4,\"Enter smelter details\",IF(ISERROR($V856),\"\",OFFSET('Smelter Look-up'!$F$4,$V856-4,0)))","v":""},{"$f":"IF(ISERROR($V856),\"\",OFFSET('Smelter Look-up'!$G$4,$V856-4,0))","v":""},{"$f":"IF(ISERROR($V856),\"\",OFFSET('Smelter Look-up'!$H$4,$V856-4,0))","v":""},{"$f":"IF(ISERROR($V856),\"\",OFFSET('Smelter Look-up'!$I$4,$V856-4,0))","v":""},{"$nulls":7},{"$f":"IF(ISERROR($V856),\"\",OFFSET('Smelter Look-up'!$C$4,$V856-4,0)&\"\")","v":""},"",{"$f":"IF(B856=\"\",\"\",IF(ISERROR(MATCH($J856,SorP!$B$1:$B$5661,0)),\"\",INDIRECT(\"'SorP'!$A$\"&MATCH($J856,SorP!$B$1:$B$5661,0))))","v":""},null,{"$f":"IF(C856=\"\",NA(),MATCH($B856&$C856,'Smelter Look-up'!$J:$J,0))","v":{"$error":"#N/A"}},null,0,null,null,null,""]
[null,{"$f":"IF(LEN(A857)=0,\"\",INDEX('Smelter Look-up'!$A:$A,MATCH($A857,'Smelter Look-up'!$E:$E,0)))","v":""},{"$f":"IF(LEN(A857)=0,\"\",INDEX('Smelter Look-up'!$C:$C,MATCH($A857,'Smelter Look-up'!$E:$E,0)))","v":""},null,{"$f":"IF(ISERROR($V857),\"\",OFFSET('Smelter Look-up'!$D$4,$V857-4,0)&\"\")","v":""},{"$f":"IF(ISERROR($V857),\"\",OFFSET('Smelter Look-up'!$E$4,$V857-4,0))","v":""},{"$f":"IF(C857=$X$4,\"Enter smelter details\",IF(ISERROR($V857),\"\",OFFSET('Smelter Look-up'!$F$4,$V857-4,0)))","v":""},{"$f":"IF(ISERROR($V857),\"\",OFFSET('Smelter Look-up'!$G$4,$V857-4,0))","v":""},{"$f":"IF(ISERROR($V857),\"\",OFFSET('Smelter Look-up'!$H$4,$V857-4,0))","v":""},{"$f":"IF(ISERROR($V857),\"\",OFFSET('Smelter Look-up'!$I$4,$V857-4,0))","v":""},{"$nulls":7},{"$f":"IF(ISERROR($V857),\"\",OFFSET('Smelter Look-up'!$C$4,$V857-4,0)&\"\")","v":""},"",{"$f":"IF(B857=\"\",\"\",IF(ISERROR(MATCH($J857,SorP!$B$1:$B$5661,0)),\"\",INDIRECT(\"'SorP'!$A$\"&MATCH($J857,SorP!$B$1:$B$5661,0))))","v":""},null,{"$f":"IF(C857=\"\",NA(),MATCH($B857&$C857,'Smelter Look-up'!$J:$J,0))","v":{"$error":"#N/A"}},null,0,null,null,null,""]
[null,{"$f":"IF(LEN(A858)=0,\"\",INDEX('Smelter Look-up'!$A:$A,MATCH($A858,'Smelter Look-up'!$E:$E,0)))","v":""},{"$f":"IF(LEN(A858)=0,\"\",INDEX('Smelter Look-up'!$C:$C,MATCH($A858,'Smelter Look-up'!$E:$E,0)))","v":""},null,{"$f":"IF(ISERROR($V858),\"\",OFFSET('Smelter Look-up'!$D$4,$V858-4,0)&\"\")","v":""},{"$f":"IF(ISERROR($V858),\"\",OFFSET('Smelter Look-up'!$E$4,$V858-4,0))","v":""},{"$f":"IF(C858=$X$4,\"Enter smelter details\",IF(ISERROR($V858),\"\",OFFSET('Smelter Look-up'!$F$4,$V858-4,0)))","v":""},{"$f":"IF(ISERROR($V858),\"\",OFFSET('Smelter Look-up'!$G$4,$V858-4,0))","v":""},{"$f":"IF(ISERROR($V858),\"\",OFFSET('Smelter Look-up'!$H$4,$V858-4,0))","v":""},{"$f":"IF(ISERROR($V858),\"\",OFFSET('Smelter Look-up'!$I$4,$V858-4,0))","v":""},{"$nulls":7},{"$f":"IF(ISERROR($V858),\"\",OFFSET('Smelter Look-up'!$C$4,$V858-4,0)&\"\")","v":""},"",{"$f":"IF(B858=\"\",\"\",IF(ISERROR(MATCH($J858,SorP!$B$1:$B$5661,0)),\"\",INDIRECT(\"'SorP'!$A$\"&MATCH($J858,SorP!$B$1:$B$5661,0))))","v":""},null,{"$f":"IF(C858=\"\",NA(),MATCH($B858&$C858,'Smelter Look-up'!$J:$J,0))","v":{"$error":"#N/A"}},null,0,null,null,null,""]
[null,{"$f":"IF(LEN(A859)=0,\"\",INDEX('Smelter Look-up'!$A:$A,MATCH($A859,'Smelter Look-up'!$E:$E,0)))","v":""},{"$f":"IF(LEN(A859)=0,\"\",INDEX('Smelter Look-up'!$C:$C,MATCH($A859,'Smelter Look-up'!$E:$E,0)))","v":""},null,{"$f":"IF(ISERROR($V859),\"\",OFFSET('Smelter Look-up'!$D$4,$V859-4,0)&\"\")","v":""},{"$f":"IF(ISERROR($V859),\"\",OFFSET('Smelter Look-up'!$E$4,$V859-4,0))","v":""},{"$f":"IF(C859=$X$4,\"Enter smelter details\",IF(ISERROR($V859),\"\",OFFSET('Smelter Look-up'!$F$4,$V859-4,0)))","v":""},{"$f":"IF(ISERROR($V859),\"\",OFFSET('Smelter Look-up'!$G$4,$V859-4,0))","v":""},{"$f":"IF(ISERROR($V859),\"\",OFFSET('Smelter Look-up'!$H$4,$V859-4,0))","v":""},{"$f":"IF(ISERROR($V859),\"\",OFFSET('Smelter Look-up'!$I$4,$V859-4,0))","v":""},{"$nulls":7},{"$f":"IF(ISERROR($V859),\"\",OFFSET('Smelter Look-up'!$C$4,$V859-4,0)&\"\")","v":""},"",{"$f":"IF(B859=\"\",\"\",IF(ISERROR(MATCH($J859,SorP!$B$1:$B$5661,0)),\"\",INDIRECT(\"'SorP'!$A$\"&MATCH($J859,SorP!$B$1:$B$5661,0))))","v":""},null,{"$f":"IF(C859=\"\",NA(),MATCH($B859&$C859,'Smelter Look-up'!$J:$J,0))","v":{"$error":"#N/A"}},null,0,null,null,null,""]
[null,{"$f":"IF(LEN(A860)=0,\"\",INDEX('Smelter Look-up'!$A:$A,MATCH($A860,'Smelter Look-up'!$E:$E,0)))","v":""},{"$f":"IF(LEN(A860)=0,\"\",INDEX('Smelter Look-up'!$C:$C,MATCH($A860,'Smelter Look-up'!$E:$E,0)))","v":""},null,{"$f":"IF(ISERROR($V860),\"\",OFFSET('Smelter Look-up'!$D$4,$V860-4,0)&\"\")","v":""},{"$f":"IF(ISERROR($V860),\"\",OFFSET('Smelter Look-up'!$E$4,$V860-4,0))","v":""},{"$f":"IF(C860=$X$4,\"Enter smelter details\",IF(ISERROR($V860),\"\",OFFSET('Smelter Look-up'!$F$4,$V860-4,0)))","v":""},{"$f":"IF(ISERROR($V860),\"\",OFFSET('Smelter Look-up'!$G$4,$V860-4,0))","v":""},{"$f":"IF(ISERROR($V860),\"\",OFFSET('Smelter Look-up'!$H$4,$V860-4,0))","v":""},{"$f":"IF(ISERROR($V860),\"\",OFFSET('Smelter Look-up'!$I$4,$V860-4,0))","v":""},{"$nulls":7},{"$f":"IF(ISERROR($V860),\"\",OFFSET('Smelter Look-up'!$C$4,$V860-4,0)&\"\")","v":""},"",{"$f":"IF(B860=\"\",\"\",IF(ISERROR(MATCH($J860,SorP!$B$1:$B$5661,0)),\"\",INDIRECT(\"'SorP'!$A$\"&MATCH($J860,SorP!$B$1:$B$5661,0))))","v":""},null,{"$f":"IF(C860=\"\",NA(),MATCH($B860&$C860,'Smelter Look-up'!$J:$J,0))","v":{"$error":"#N/A"}},null,0,null,null,null,""]
[null,{"$f":"IF(LEN(A861)=0,\"\",INDEX('Smelter Look-up'!$A:$A,MATCH($A861,'Smelter Look-up'!$E:$E,0)))","v":""},{"$f":"IF(LEN(A861)=0,\"\",INDEX('Smelter Look-up'!$C:$C,MATCH($A861,'Smelter Look-up'!$E:$E,0)))","v":""},null,{"$f":"IF(ISERROR($V861),\"\",OFFSET('Smelter Look-up'!$D$4,$V861-4,0)&\"\")","v":""},{"$f":"IF(ISERROR($V861),\"\",OFFSET('Smelter Look-up'!$E$4,$V861-4,0))","v":""},{"$f":"IF(C861=$X$4,\"Enter smelter details\",IF(ISERROR($V861),\"\",OFFSET('Smelter Look-up'!$F$4,$V861-4,0)))","v":""},{"$f":"IF(ISERROR($V861),\"\",OFFSET('Smelter Look-up'!$G$4,$V861-4,0))","v":""},{"$f":"IF(ISERROR($V861),\"\",OFFSET('Smelter Look-up'!$H$4,$V861-4,0))","v":""},{"$f":"IF(ISERROR($V861),\"\",OFFSET('Smelter Look-up'!$I$4,$V861-4,0))","v":""},{"$nulls":7},{"$f":"IF(ISERROR($V861),\"\",OFFSET('Smelter Look-up'!$C$4,$V861-4,0)&\"\")","v":""},"",{"$f":"IF(B861=\"\",\"\",IF(ISERROR(MATCH($J861,SorP!$B$1:$B$5661,0)),\"\",INDIRECT(\"'SorP'!$A$\"&MATCH($J861,SorP!$B$1:$B$5661,0))))","v":""},null,{"$f":"IF(C861=\"\",NA(),MATCH($B861&$C861,'Smelter Look-up'!$J:$J,0))","v":{"$error":"#N/A"}},null,0,null,null,null,""]
[null,{"$f":"IF(LEN(A862)=0,\"\",INDEX('Smelter Look-up'!$A:$A,MATCH($A862,'Smelter Look-up'!$E:$E,0)))","v":""},{"$f":"IF(LEN(A862)=0,\"\",INDEX('Smelter Look-up'!$C:$C,MATCH($A862,'Smelter Look-up'!$E:$E,0)))","v":""},null,{"$f":"IF(ISERROR($V862),\"\",OFFSET('Smelter Look-up'!$D$4,$V862-4,0)&\"\")","v":""},{"$f":"IF(ISERROR($V862),\"\",OFFSET('Smelter Look-up'!$E$4,$V862-4,0))","v":""},{"$f":"IF(C862=$X$4,\"Enter smelter details\",IF(ISERROR($V862),\"\",OFFSET('Smelter Look-up'!$F$4,$V862-4,0)))","v":""},{"$f":"IF(ISERROR($V862),\"\",OFFSET('Smelter Look-up'!$G$4,$V862-4,0))","v":""},{"$f":"IF(ISERROR($V862),\"\",OFFSET('Smelter Look-up'!$H$4,$V862-4,0))","v":""},{"$f":"IF(ISERROR($V862),\"\",OFFSET('Smelter Look-up'!$I$4,$V862-4,0))","v":""},{"$nulls":7},{"$f":"IF(ISERROR($V862),\"\",OFFSET('Smelter Look-up'!$C$4,$V862-4,0)&\"\")","v":""},"",{"$f":"IF(B862=\"\",\"\",IF(ISERROR(MATCH($J862,SorP!$B$1:$B$5661,0)),\"\",INDIRECT(\"'SorP'!$A$\"&MATCH($J862,SorP!$B$1:$B$5661,0))))","v":""},null,{"$f":"IF(C862=\"\",NA(),MATCH($B862&$C862,'Smelter Look-up'!$J:$J,0))","v":{"$error":"#N/A"}},null,0,null,null,null,""]
[null,{"$f":"IF(LEN(A863)=0,\"\",INDEX('Smelter Look-up'!$A:$A,MATCH($A863,'Smelter Look-up'!$E:$E,0)))","v":""},{"$f":"IF(LEN(A863)=0,\"\",INDEX('Smelter Look-up'!$C:$C,MATCH($A863,'Smelter Look-up'!$E:$E,0)))","v":""},null,{"$f":"IF(ISERROR($V863),\"\",OFFSET('Smelter Look-up'!$D$4,$V863-4,0)&\"\")","v":""},{"$f":"IF(ISERROR($V863),\"\",OFFSET('Smelter Look-up'!$E$4,$V863-4,0))","v":""},{"$f":"IF(C863=$X$4,\"Enter smelter details\",IF(ISERROR($V863),\"\",OFFSET('Smelter Look-up'!$F$4,$V863-4,0)))","v":""},{"$f":"IF(ISERROR($V863),\"\",OFFSET('Smelter Look-up'!$G$4,$V863-4,0))","v":""},{"$f":"IF(ISERROR($V863),\"\",OFFSET('Smelter Look-up'!$H$4,$V863-4,0))","v":""},{"$f":"IF(ISERROR($V863),\"\",OFFSET('Smelter Look-up'!$I$4,$V863-4,0))","v":""},{"$nulls":7},{"$f":"IF(ISERROR($V863),\"\",OFFSET('Smelter Look-up'!$C$4,$V863-4,0)&\"\")","v":""},"",{"$f":"IF(B863=\"\",\"\",IF(ISERROR(MATCH($J863,SorP!$B$1:$B$5661,0)),\"\",INDIRECT(\"'SorP'!$A$\"&MATCH($J863,SorP!$B$1:$B$5661,0))))","v":""},null,{"$f":"IF(C863=\"\",NA(),MATCH($B863&$C863,'Smelter Look-up'!$J:$J,0))","v":{"$error":"#N/A"}},null,0,null,null,null,""]
[null,{"$f":"IF(LEN(A864)=0,\"\",INDEX('Smelter Look-up'!$A:$A,MATCH($A864,'Smelter Look-up'!$E:$E,0)))","v":""},{"$f":"IF(LEN(A864)=0,\"\",INDEX('Smelter Look-up'!$C:$C,MATCH($A864,'Smelter Look-up'!$E:$E,0)))","v":""},null,{"$f":"IF(ISERROR($V864),\"\",OFFSET('Smelter Look-up'!$D$4,$V864-4,0)&\"\")","v":""},{"$f":"IF(ISERROR($V864),\"\",OFFSET('Smelter Look-up'!$E$4,$V864-4,0))","v":""},{"$f":"IF(C864=$X$4,\"Enter smelter details\",IF(ISERROR($V864),\"\",OFFSET('Smelter Look-up'!$F$4,$V864-4,0)))","v":""},{"$f":"IF(ISERROR($V864),\"\",OFFSET('Smelter Look-up'!$G$4,$V864-4,0))","v":""},{"$f":"IF(ISERROR($V864),\"\",OFFSET('Smelter Look-up'!$H$4,$V864-4,0))","v":""},{"$f":"IF(ISERROR($V864),\"\",OFFSET('Smelter Look-up'!$I$4,$V864-4,0))","v":""},{"$nulls":7},{"$f":"IF(ISERROR($V864),\"\",OFFSET('Smelter Look-up'!$C$4,$V864-4,0)&\"\")","v":""},"",{"$f":"IF(B864=\"\",\"\",IF(ISERROR(MATCH($J864,SorP!$B$1:$B$5661,0)),\"\",INDIRECT(\"'SorP'!$A$\"&MATCH($J864,SorP!$B$1:$B$5661,0))))","v":""},null,{"$f":"IF(C864=\"\",NA(),MATCH($B864&$C864,'Smelter Look-up'!$J:$J,0))","v":{"$error":"#N/A"}},null,0,null,null,null,""]
[null,{"$f":"IF(LEN(A865)=0,\"\",INDEX('Smelter Look-up'!$A:$A,MATCH($A865,'Smelter Look-up'!$E:$E,0)))","v":""},{"$f":"IF(LEN(A865)=0,\"\",INDEX('Smelter Look-up'!$C:$C,MATCH($A865,'Smelter Look-up'!$E:$E,0)))","v":""},null,{"$f":"IF(ISERROR($V865),\"\",OFFSET('Smelter Look-up'!$D$4,$V865-4,0)&\"\")","v":""},{"$f":"IF(ISERROR($V865),\"\",OFFSET('Smelter Look-up'!$E$4,$V865-4,0))","v":""},{"$f":"IF(C865=$X$4,\"Enter smelter details\",IF(ISERROR($V865),\"\",OFFSET('Smelter Look-up'!$F$4,$V865-4,0)))","v":""},{"$f":"IF(ISERROR($V865),\"\",OFFSET('Smelter Look-up'!$G$4,$V865-4,0))","v":""},{"$f":"IF(ISERROR($V865),\"\",OFFSET('Smelter Look-up'!$H$4,$V865-4,0))","v":""},{"$f":"IF(ISERROR($V865),\"\",OFFSET('Smelter Look-up'!$I$4,$V865-4,0))","v":""},{"$nulls":7},{"$f":"IF(ISERROR($V865),\"\",OFFSET('Smelter Look-up'!$C$4,$V865-4,0)&\"\")","v":""},"",{"$f":"IF(B865=\"\",\"\",IF(ISERROR(MATCH($J865,SorP!$B$1:$B$5661,0)),\"\",INDIRECT(\"'SorP'!$A$\"&MATCH($J865,SorP!$B$1:$B$5661,0))))","v":""},null,{"$f":"IF(C865=\"\",NA(),MATCH($B865&$C865,'Smelter Look-up'!$J:$J,0))","v":{"$error":"#N/A"}},null,0,null,null,null,""]
[null,{"$f":"IF(LEN(A866)=0,\"\",INDEX('Smelter Look-up'!$A:$A,MATCH($A866,'Smelter Look-up'!$E:$E,0)))","v":""},{"$f":"IF(LEN(A866)=0,\"\",INDEX('Smelter Look-up'!$C:$C,MATCH($A866,'Smelter Look-up'!$E:$E,0)))","v":""},null,{"$f":"IF(ISERROR($V866),\"\",OFFSET('Smelter Look-up'!$D$4,$V866-4,0)&\"\")","v":""},{"$f":"IF(ISERROR($V866),\"\",OFFSET('Smelter Look-up'!$E$4,$V866-4,0))","v":""},{"$f":"IF(C866=$X$4,\"Enter smelter details\",IF(ISERROR($V866),\"\",OFFSET('Smelter Look-up'!$F$4,$V866-4,0)))","v":""},{"$f":"IF(ISERROR($V866),\"\",OFFSET('Smelter Look-up'!$G$4,$V866-4,0))","v":""},{"$f":"IF(ISERROR($V866),\"\",OFFSET('Smelter Look-up'!$H$4,$V866-4,0))","v":""},{"$f":"IF(ISERROR($V866),\"\",OFFSET('Smelter Look-up'!$I$4,$V866-4,0))","v":""},{"$nulls":7},{"$f":"IF(ISERROR($V866),\"\",OFFSET('Smelter Look-up'!$C$4,$V866-4,0)&\"\")","v":""},"",{"$f":"IF(B866=\"\",\"\",IF(ISERROR(MATCH($J866,SorP!$B$1:$B$5661,0)),\"\",INDIRECT(\"'SorP'!$A$\"&MATCH($J866,SorP!$B$1:$B$5661,0))))","v":""},null,{"$f":"IF(C866=\"\",NA(),MATCH($B866&$C866,'Smelter Look-up'!$J:$J,0))","v":{"$error":"#N/A"}},null,0,null,null,null,""]
[null,{"$f":"IF(LEN(A867)=0,\"\",INDEX('Smelter Look-up'!$A:$A,MATCH($A867,'Smelter Look-up'!$E:$E,0)))","v":""},{"$f":"IF(LEN(A867)=0,\"\",INDEX('Smelter Look-up'!$C:$C,MATCH($A867,'Smelter Look-up'!$E:$E,0)))","v":""},null,{"$f":"IF(ISERROR($V867),\"\",OFFSET('Smelter Look-up'!$D$4,$V867-4,0)&\"\")","v":""},{"$f":"IF(ISERROR($V867),\"\",OFFSET('Smelter Look-up'!$E$4,$V867-4,0))","v":""},{"$f":"IF(C867=$X$4,\"Enter smelter details\",IF(ISERROR($V867),\"\",OFFSET('Smelter Look-up'!$F$4,$V867-4,0)))","v":""},{"$f":"IF(ISERROR($V867),\"\",OFFSET('Smelter Look-up'!$G$4,$V867-4,0))","v":""},{"$f":"IF(ISERROR($V867),\"\",OFFSET('Smelter Look-up'!$H$4,$V867-4,0))","v":""},{"$f":"IF(ISERROR($V867),\"\",OFFSET('Smelter Look-up'!$I$4,$V867-4,0))","v":""},{"$nulls":7},{"$f":"IF(ISERROR($V867),\"\",OFFSET('Smelter Look-up'!$C$4,$V867-4,0)&\"\")","v":""},"",{"$f":"IF(B867=\"\",\"\",IF(ISERROR(MATCH($J867,SorP!$B$1:$B$5661,0)),\"\",INDIRECT(\"'SorP'!$A$\"&MATCH($J867,SorP!$B$1:$B$5661,0))))","v":""},null,{"$f":"IF(C867=\"\",NA(),MATCH($B867&$C867,'Smelter Look-up'!$J:$J,0))","v":{"$error":"#N/A"}},null,0,null,null,null,""]
[null,{"$f":"IF(LEN(A868)=0,\"\",INDEX('Smelter Look-up'!$A:$A,MATCH($A868,'Smelter Look-up'!$E:$E,0)))","v":""},{"$f":"IF(LEN(A868)=0,\"\",INDEX('Smelter Look-up'!$C:$C,MATCH($A868,'Smelter Look-up'!$E:$E,0)))","v":""},null,{"$f":"IF(ISERROR($V868),\"\",OFFSET('Smelter Look-up'!$D$4,$V868-4,0)&\"\")","v":""},{"$f":"IF(ISERROR($V868),\"\",OFFSET('Smelter Look-up'!$E$4,$V868-4,0))","v":""},{"$f":"IF(C868=$X$4,\"Enter smelter details\",IF(ISERROR($V868),\"\",OFFSET('Smelter Look-up'!$F$4,$V868-4,0)))","v":""},{"$f":"IF(ISERROR($V868),\"\",OFFSET('Smelter Look-up'!$G$4,$V868-4,0))","v":""},{"$f":"IF(ISERROR($V868),\"\",OFFSET('Smelter Look-up'!$H$4,$V868-4,0))","v":""},{"$f":"IF(ISERROR($V868),\"\",OFFSET('Smelter Look-up'!$I$4,$V868-4,0))","v":""},{"$nulls":7},{"$f":"IF(ISERROR($V868),\"\",OFFSET('Smelter Look-up'!$C$4,$V868-4,0)&\"\")","v":""},"",{"$f":"IF(B868=\"\",\"\",IF(ISERROR(MATCH($J868,SorP!$B$1:$B$5661,0)),\"\",INDIRECT(\"'SorP'!$A$\"&MATCH($J868,SorP!$B$1:$B$5661,0))))","v":""},null,{"$f":"IF(C868=\"\",NA(),MATCH($B868&$C868,'Smelter Look-up'!$J:$J,0))","v":{"$error":"#N/A"}},null,0,null,null,null,""]
[null,{"$f":"IF(LEN(A869)=0,\"\",INDEX('Smelter Look-up'!$A:$A,MATCH($A869,'Smelter Look-up'!$E:$E,0)))","v":""},{"$f":"IF(LEN(A869)=0,\"\",INDEX('Smelter Look-up'!$C:$C,MATCH($A869,'Smelter Look-up'!$E:$E,0)))","v":""},null,{"$f":"IF(ISERROR($V869),\"\",OFFSET('Smelter Look-up'!$D$4,$V869-4,0)&\"\")","v":""},{"$f":"IF(ISERROR($V869),\"\",OFFSET('Smelter Look-up'!$E$4,$V869-4,0))","v":""},{"$f":"IF(C869=$X$4,\"Enter smelter details\",IF(ISERROR($V869),\"\",OFFSET('Smelter Look-up'!$F$4,$V869-4,0)))","v":""},{"$f":"IF(ISERROR($V869),\"\",OFFSET('Smelter Look-up'!$G$4,$V869-4,0))","v":""},{"$f":"IF(ISERROR($V869),\"\",OFFSET('Smelter Look-up'!$H$4,$V869-4,0))","v":""},{"$f":"IF(ISERROR($V869),\"\",OFFSET('Smelter Look-up'!$I$4,$V869-4,0))","v":""},{"$nulls":7},{"$f":"IF(ISERROR($V869),\"\",OFFSET('Smelter Look-up'!$C$4,$V869-4,0)&\"\")","v":""},"",{"$f":"IF(B869=\"\",\"\",IF(ISERROR(MATCH($J869,SorP!$B$1:$B$5661,0)),\"\",INDIRECT(\"'SorP'!$A$\"&MATCH($J869,SorP!$B$1:$B$5661,0))))","v":""},null,{"$f":"IF(C869=\"\",NA(),MATCH($B869&$C869,'Smelter Look-up'!$J:$J,0))","v":{"$error":"#N/A"}},null,0,null,null,null,""]
[null,{"$f":"IF(LEN(A870)=0,\"\",INDEX('Smelter Look-up'!$A:$A,MATCH($A870,'Smelter Look-up'!$E:$E,0)))","v":""},{"$f":"IF(LEN(A870)=0,\"\",INDEX('Smelter Look-up'!$C:$C,MATCH($A870,'Smelter Look-up'!$E:$E,0)))","v":""},null,{"$f":"IF(ISERROR($V870),\"\",OFFSET('Smelter Look-up'!$D$4,$V870-4,0)&\"\")","v":""},{"$f":"IF(ISERROR($V870),\"\",OFFSET('Smelter Look-up'!$E$4,$V870-4,0))","v":""},{"$f":"IF(C870=$X$4,\"Enter smelter details\",IF(ISERROR($V870),\"\",OFFSET('Smelter Look-up'!$F$4,$V870-4,0)))","v":""},{"$f":"IF(ISERROR($V870),\"\",OFFSET('Smelter Look-up'!$G$4,$V870-4,0))","v":""},{"$f":"IF(ISERROR($V870),\"\",OFFSET('Smelter Look-up'!$H$4,$V870-4,0))","v":""},{"$f":"IF(ISERROR($V870),\"\",OFFSET('Smelter Look-up'!$I$4,$V870-4,0))","v":""},{"$nulls":7},{"$f":"IF(ISERROR($V870),\"\",OFFSET('Smelter Look-up'!$C$4,$V870-4,0)&\"\")","v":""},"",{"$f":"IF(B870=\"\",\"\",IF(ISERROR(MATCH($J870,SorP!$B$1:$B$5661,0)),\"\",INDIRECT(\"'SorP'!$A$\"&MATCH($J870,SorP!$B$1:$B$5661,0))))","v":""},null,{"$f":"IF(C870=\"\",NA(),MATCH($B870&$C870,'Smelter Look-up'!$J:$J,0))","v":{"$error":"#N/A"}},null,0,null,null,null,""]
[null,{"$f":"IF(LEN(A871)=0,\"\",INDEX('Smelter Look-up'!$A:$A,MATCH($A871,'Smelter Look-up'!$E:$E,0)))","v":""},{"$f":"IF(LEN(A871)=0,\"\",INDEX('Smelter Look-up'!$C:$C,MATCH($A871,'Smelter Look-up'!$E:$E,0)))","v":""},null,{"$f":"IF(ISERROR($V871),\"\",OFFSET('Smelter Look-up'!$D$4,$V871-4,0)&\"\")","v":""},{"$f":"IF(ISERROR($V871),\"\",OFFSET('Smelter Look-up'!$E$4,$V871-4,0))","v":""},{"$f":"IF(C871=$X$4,\"Enter smelter details\",IF(ISERROR($V871),\"\",OFFSET('Smelter Look-up'!$F$4,$V871-4,0)))","v":""},{"$f":"IF(ISERROR($V871),\"\",OFFSET('Smelter Look-up'!$G$4,$V871-4,0))","v":""},{"$f":"IF(ISERROR($V871),\"\",OFFSET('Smelter Look-up'!$H$4,$V871-4,0))","v":""},{"$f":"IF(ISERROR($V871),\"\",OFFSET('Smelter Look-up'!$I$4,$V871-4,0))","v":""},{"$nulls":7},{"$f":"IF(ISERROR($V871),\"\",OFFSET('Smelter Look-up'!$C$4,$V871-4,0)&\"\")","v":""},"",{"$f":"IF(B871=\"\",\"\",IF(ISERROR(MATCH($J871,SorP!$B$1:$B$5661,0)),\"\",INDIRECT(\"'SorP'!$A$\"&MATCH($J871,SorP!$B$1:$B$5661,0))))","v":""},null,{"$f":"IF(C871=\"\",NA(),MATCH($B871&$C871,'Smelter Look-up'!$J:$J,0))","v":{"$error":"#N/A"}},null,0,null,null,null,""]
[null,{"$f":"IF(LEN(A872)=0,\"\",INDEX('Smelter Look-up'!$A:$A,MATCH($A872,'Smelter Look-up'!$E:$E,0)))","v":""},{"$f":"IF(LEN(A872)=0,\"\",INDEX('Smelter Look-up'!$C:$C,MATCH($A872,'Smelter Look-up'!$E:$E,0)))","v":""},null,{"$f":"IF(ISERROR($V872),\"\",OFFSET('Smelter Look-up'!$D$4,$V872-4,0)&\"\")","v":""},{"$f":"IF(ISERROR($V872),\"\",OFFSET('Smelter Look-up'!$E$4,$V872-4,0))","v":""},{"$f":"IF(C872=$X$4,\"Enter smelter details\",IF(ISERROR($V872),\"\",OFFSET('Smelter Look-up'!$F$4,$V872-4,0)))","v":""},{"$f":"IF(ISERROR($V872),\"\",OFFSET('Smelter Look-up'!$G$4,$V872-4,0))","v":""},{"$f":"IF(ISERROR($V872),\"\",OFFSET('Smelter Look-up'!$H$4,$V872-4,0))","v":""},{"$f":"IF(ISERROR($V872),\"\",OFFSET('Smelter Look-up'!$I$4,$V872-4,0))","v":""},{"$nulls":7},{"$f":"IF(ISERROR($V872),\"\",OFFSET('Smelter Look-up'!$C$4,$V872-4,0)&\"\")","v":""},"",{"$f":"IF(B872=\"\",\"\",IF(ISERROR(MATCH($J872,SorP!$B$1:$B$5661,0)),\"\",INDIRECT(\"'SorP'!$A$\"&MATCH($J872,SorP!$B$1:$B$5661,0))))","v":""},null,{"$f":"IF(C872=\"\",NA(),MATCH($B872&$C872,'Smelter Look-up'!$J:$J,0))","v":{"$error":"#N/A"}},null,0,null,null,null,""]
[null,{"$f":"IF(LEN(A873)=0,\"\",INDEX('Smelter Look-up'!$A:$A,MATCH($A873,'Smelter Look-up'!$E:$E,0)))","v":""},{"$f":"IF(LEN(A873)=0,\"\",INDEX('Smelter Look-up'!$C:$C,MATCH($A873,'Smelter Look-up'!$E:$E,0)))","v":""},null,{"$f":"IF(ISERROR($V873),\"\",OFFSET('Smelter Look-up'!$D$4,$V873-4,0)&\"\")","v":""},{"$f":"IF(ISERROR($V873),\"\",OFFSET('Smelter Look-up'!$E$4,$V873-4,0))","v":""},{"$f":"IF(C873=$X$4,\"Enter smelter details\",IF(ISERROR($V873),\"\",OFFSET('Smelter Look-up'!$F$4,$V873-4,0)))","v":""},{"$f":"IF(ISERROR($V873),\"\",OFFSET('Smelter Look-up'!$G$4,$V873-4,0))","v":""},{"$f":"IF(ISERROR($V873),\"\",OFFSET('Smelter Look-up'!$H$4,$V873-4,0))","v":""},{"$f":"IF(ISERROR($V873),\"\",OFFSET('Smelter Look-up'!$I$4,$V873-4,0))","v":""},{"$nulls":7},{"$f":"IF(ISERROR($V873),\"\",OFFSET('Smelter Look-up'!$C$4,$V873-4,0)&\"\")","v":""},"",{"$f":"IF(B873=\"\",\"\",IF(ISERROR(MATCH($J873,SorP!$B$1:$B$5661,0)),\"\",INDIRECT(\"'SorP'!$A$\"&MATCH($J873,SorP!$B$1:$B$5661,0))))","v":""},null,{"$f":"IF(C873=\"\",NA(),MATCH($B873&$C873,'Smelter Look-up'!$J:$J,0))","v":{"$error":"#N/A"}},null,0,null,null,null,""]
[null,{"$f":"IF(LEN(A874)=0,\"\",INDEX('Smelter Look-up'!$A:$A,MATCH($A874,'Smelter Look-up'!$E:$E,0)))","v":""},{"$f":"IF(LEN(A874)=0,\"\",INDEX('Smelter Look-up'!$C:$C,MATCH($A874,'Smelter Look-up'!$E:$E,0)))","v":""},null,{"$f":"IF(ISERROR($V874),\"\",OFFSET('Smelter Look-up'!$D$4,$V874-4,0)&\"\")","v":""},{"$f":"IF(ISERROR($V874),\"\",OFFSET('Smelter Look-up'!$E$4,$V874-4,0))","v":""},{"$f":"IF(C874=$X$4,\"Enter smelter details\",IF(ISERROR($V874),\"\",OFFSET('Smelter Look-up'!$F$4,$V874-4,0)))","v":""},{"$f":"IF(ISERROR($V874),\"\",OFFSET('Smelter Look-up'!$G$4,$V874-4,0))","v":""},{"$f":"IF(ISERROR($V874),\"\",OFFSET('Smelter Look-up'!$H$4,$V874-4,0))","v":""},{"$f":"IF(ISERROR($V874),\"\",OFFSET('Smelter Look-up'!$I$4,$V874-4,0))","v":""},{"$nulls":7},{"$f":"IF(ISERROR($V874),\"\",OFFSET('Smelter Look-up'!$C$4,$V874-4,0)&\"\")","v":""},"",{"$f":"IF(B874=\"\",\"\",IF(ISERROR(MATCH($J874,SorP!$B$1:$B$5661,0)),\"\",INDIRECT(\"'SorP'!$A$\"&MATCH($J874,SorP!$B$1:$B$5661,0))))","v":""},null,{"$f":"IF(C874=\"\",NA(),MATCH($B874&$C874,'Smelter Look-up'!$J:$J,0))","v":{"$error":"#N/A"}},null,0,null,null,null,""]
[null,{"$f":"IF(LEN(A875)=0,\"\",INDEX('Smelter Look-up'!$A:$A,MATCH($A875,'Smelter Look-up'!$E:$E,0)))","v":""},{"$f":"IF(LEN(A875)=0,\"\",INDEX('Smelter Look-up'!$C:$C,MATCH($A875,'Smelter Look-up'!$E:$E,0)))","v":""},null,{"$f":"IF(ISERROR($V875),\"\",OFFSET('Smelter Look-up'!$D$4,$V875-4,0)&\"\")","v":""},{"$f":"IF(ISERROR($V875),\"\",OFFSET('Smelter Look-up'!$E$4,$V875-4,0))","v":""},{"$f":"IF(C875=$X$4,\"Enter smelter details\",IF(ISERROR($V875),\"\",OFFSET('Smelter Look-up'!$F$4,$V875-4,0)))","v":""},{"$f":"IF(ISERROR($V875),\"\",OFFSET('Smelter Look-up'!$G$4,$V875-4,0))","v":""},{"$f":"IF(ISERROR($V875),\"\",OFFSET('Smelter Look-up'!$H$4,$V875-4,0))","v":""},{"$f":"IF(ISERROR($V875),\"\",OFFSET('Smelter Look-up'!$I$4,$V875-4,0))","v":""},{"$nulls":7},{"$f":"IF(ISERROR($V875),\"\",OFFSET('Smelter Look-up'!$C$4,$V875-4,0)&\"\")","v":""},"",{"$f":"IF(B875=\"\",\"\",IF(ISERROR(MATCH($J875,SorP!$B$1:$B$5661,0)),\"\",INDIRECT(\"'SorP'!$A$\"&MATCH($J875,SorP!$B$1:$B$5661,0))))","v":""},null,{"$f":"IF(C875=\"\",NA(),MATCH($B875&$C875,'Smelter Look-up'!$J:$J,0))","v":{"$error":"#N/A"}},null,0,null,null,null,""]
[null,{"$f":"IF(LEN(A876)=0,\"\",INDEX('Smelter Look-up'!$A:$A,MATCH($A876,'Smelter Look-up'!$E:$E,0)))","v":""},{"$f":"IF(LEN(A876)=0,\"\",INDEX('Smelter Look-up'!$C:$C,MATCH($A876,'Smelter Look-up'!$E:$E,0)))","v":""},null,{"$f":"IF(ISERROR($V876),\"\",OFFSET('Smelter Look-up'!$D$4,$V876-4,0)&\"\")","v":""},{"$f":"IF(ISERROR($V876),\"\",OFFSET('Smelter Look-up'!$E$4,$V876-4,0))","v":""},{"$f":"IF(C876=$X$4,\"Enter smelter details\",IF(ISERROR($V876),\"\",OFFSET('Smelter Look-up'!$F$4,$V876-4,0)))","v":""},{"$f":"IF(ISERROR($V876),\"\",OFFSET('Smelter Look-up'!$G$4,$V876-4,0))","v":""},{"$f":"IF(ISERROR($V876),\"\",OFFSET('Smelter Look-up'!$H$4,$V876-4,0))","v":""},{"$f":"IF(ISERROR($V876),\"\",OFFSET('Smelter Look-up'!$I$4,$V876-4,0))","v":""},{"$nulls":7},{"$f":"IF(ISERROR($V876),\"\",OFFSET('Smelter Look-up'!$C$4,$V876-4,0)&\"\")","v":""},"",{"$f":"IF(B876=\"\",\"\",IF(ISERROR(MATCH($J876,SorP!$B$1:$B$5661,0)),\"\",INDIRECT(\"'SorP'!$A$\"&MATCH($J876,SorP!$B$1:$B$5661,0))))","v":""},null,{"$f":"IF(C876=\"\",NA(),MATCH($B876&$C876,'Smelter Look-up'!$J:$J,0))","v":{"$error":"#N/A"}},null,0,null,null,null,""]
[null,{"$f":"IF(LEN(A877)=0,\"\",INDEX('Smelter Look-up'!$A:$A,MATCH($A877,'Smelter Look-up'!$E:$E,0)))","v":""},{"$f":"IF(LEN(A877)=0,\"\",INDEX('Smelter Look-up'!$C:$C,MATCH($A877,'Smelter Look-up'!$E:$E,0)))","v":""},null,{"$f":"IF(ISERROR($V877),\"\",OFFSET('Smelter Look-up'!$D$4,$V877-4,0)&\"\")","v":""},{"$f":"IF(ISERROR($V877),\"\",OFFSET('Smelter Look-up'!$E$4,$V877-4,0))","v":""},{"$f":"IF(C877=$X$4,\"Enter smelter details\",IF(ISERROR($V877),\"\",OFFSET('Smelter Look-up'!$F$4,$V877-4,0)))","v":""},{"$f":"IF(ISERROR($V877),\"\",OFFSET('Smelter Look-up'!$G$4,$V877-4,0))","v":""},{"$f":"IF(ISERROR($V877),\"\",OFFSET('Smelter Look-up'!$H$4,$V877-4,0))","v":""},{"$f":"IF(ISERROR($V877),\"\",OFFSET('Smelter Look-up'!$I$4,$V877-4,0))","v":""},{"$nulls":7},{"$f":"IF(ISERROR($V877),\"\",OFFSET('Smelter Look-up'!$C$4,$V877-4,0)&\"\")","v":""},"",{"$f":"IF(B877=\"\",\"\",IF(ISERROR(MATCH($J877,SorP!$B$1:$B$5661,0)),\"\",INDIRECT(\"'SorP'!$A$\"&MATCH($J877,SorP!$B$1:$B$5661,0))))","v":""},null,{"$f":"IF(C877=\"\",NA(),MATCH($B877&$C877,'Smelter Look-up'!$J:$J,0))","v":{"$error":"#N/A"}},null,0,null,null,null,""]
[null,{"$f":"IF(LEN(A878)=0,\"\",INDEX('Smelter Look-up'!$A:$A,MATCH($A878,'Smelter Look-up'!$E:$E,0)))","v":""},{"$f":"IF(LEN(A878)=0,\"\",INDEX('Smelter Look-up'!$C:$C,MATCH($A878,'Smelter Look-up'!$E:$E,0)))","v":""},null,{"$f":"IF(ISERROR($V878),\"\",OFFSET('Smelter Look-up'!$D$4,$V878-4,0)&\"\")","v":""},{"$f":"IF(ISERROR($V878),\"\",OFFSET('Smelter Look-up'!$E$4,$V878-4,0))","v":""},{"$f":"IF(C878=$X$4,\"Enter smelter details\",IF(ISERROR($V878),\"\",OFFSET('Smelter Look-up'!$F$4,$V878-4,0)))","v":""},{"$f":"IF(ISERROR($V878),\"\",OFFSET('Smelter Look-up'!$G$4,$V878-4,0))","v":""},{"$f":"IF(ISERROR($V878),\"\",OFFSET('Smelter Look-up'!$H$4,$V878-4,0))","v":""},{"$f":"IF(ISERROR($V878),\"\",OFFSET('Smelter Look-up'!$I$4,$V878-4,0))","v":""},{"$nulls":7},{"$f":"IF(ISERROR($V878),\"\",OFFSET('Smelter Look-up'!$C$4,$V878-4,0)&\"\")","v":""},"",{"$f":"IF(B878=\"\",\"\",IF(ISERROR(MATCH($J878,SorP!$B$1:$B$5661,0)),\"\",INDIRECT(\"'SorP'!$A$\"&MATCH($J878,SorP!$B$1:$B$5661,0))))","v":""},null,{"$f":"IF(C878=\"\",NA(),MATCH($B878&$C878,'Smelter Look-up'!$J:$J,0))","v":{"$error":"#N/A"}},null,0,null,null,null,""]
[null,{"$f":"IF(LEN(A879)=0,\"\",INDEX('Smelter Look-up'!$A:$A,MATCH($A879,'Smelter Look-up'!$E:$E,0)))","v":""},{"$f":"IF(LEN(A879)=0,\"\",INDEX('Smelter Look-up'!$C:$C,MATCH($A879,'Smelter Look-up'!$E:$E,0)))","v":""},null,{"$f":"IF(ISERROR($V879),\"\",OFFSET('Smelter Look-up'!$D$4,$V879-4,0)&\"\")","v":""},{"$f":"IF(ISERROR($V879),\"\",OFFSET('Smelter Look-up'!$E$4,$V879-4,0))","v":""},{"$f":"IF(C879=$X$4,\"Enter smelter details\",IF(ISERROR($V879),\"\",OFFSET('Smelter Look-up'!$F$4,$V879-4,0)))","v":""},{"$f":"IF(ISERROR($V879),\"\",OFFSET('Smelter Look-up'!$G$4,$V879-4,0))","v":""},{"$f":"IF(ISERROR($V879),\"\",OFFSET('Smelter Look-up'!$H$4,$V879-4,0))","v":""},{"$f":"IF(ISERROR($V879),\"\",OFFSET('Smelter Look-up'!$I$4,$V879-4,0))","v":""},{"$nulls":7},{"$f":"IF(ISERROR($V879),\"\",OFFSET('Smelter Look-up'!$C$4,$V879-4,0)&\"\")","v":""},"",{"$f":"IF(B879=\"\",\"\",IF(ISERROR(MATCH($J879,SorP!$B$1:$B$5661,0)),\"\",INDIRECT(\"'SorP'!$A$\"&MATCH($J879,SorP!$B$1:$B$5661,0))))","v":""},null,{"$f":"IF(C879=\"\",NA(),MATCH($B879&$C879,'Smelter Look-up'!$J:$J,0))","v":{"$error":"#N/A"}},null,0,null,null,null,""]
[null,{"$f":"IF(LEN(A880)=0,\"\",INDEX('Smelter Look-up'!$A:$A,MATCH($A880,'Smelter Look-up'!$E:$E,0)))","v":""},{"$f":"IF(LEN(A880)=0,\"\",INDEX('Smelter Look-up'!$C:$C,MATCH($A880,'Smelter Look-up'!$E:$E,0)))","v":""},null,{"$f":"IF(ISERROR($V880),\"\",OFFSET('Smelter Look-up'!$D$4,$V880-4,0)&\"\")","v":""},{"$f":"IF(ISERROR($V880),\"\",OFFSET('Smelter Look-up'!$E$4,$V880-4,0))","v":""},{"$f":"IF(C880=$X$4,\"Enter smelter details\",IF(ISERROR($V880),\"\",OFFSET('Smelter Look-up'!$F$4,$V880-4,0)))","v":""},{"$f":"IF(ISERROR($V880),\"\",OFFSET('Smelter Look-up'!$G$4,$V880-4,0))","v":""},{"$f":"IF(ISERROR($V880),\"\",OFFSET('Smelter Look-up'!$H$4,$V880-4,0))","v":""},{"$f":"IF(ISERROR($V880),\"\",OFFSET('Smelter Look-up'!$I$4,$V880-4,0))","v":""},{"$nulls":7},{"$f":"IF(ISERROR($V880),\"\",OFFSET('Smelter Look-up'!$C$4,$V880-4,0)&\"\")","v":""},"",{"$f":"IF(B880=\"\",\"\",IF(ISERROR(MATCH($J880,SorP!$B$1:$B$5661,0)),\"\",INDIRECT(\"'SorP'!$A$\"&MATCH($J880,SorP!$B$1:$B$5661,0))))","v":""},null,{"$f":"IF(C880=\"\",NA(),MATCH($B880&$C880,'Smelter Look-up'!$J:$J,0))","v":{"$error":"#N/A"}},null,0,null,null,null,""]
[null,{"$f":"IF(LEN(A881)=0,\"\",INDEX('Smelter Look-up'!$A:$A,MATCH($A881,'Smelter Look-up'!$E:$E,0)))","v":""},{"$f":"IF(LEN(A881)=0,\"\",INDEX('Smelter Look-up'!$C:$C,MATCH($A881,'Smelter Look-up'!$E:$E,0)))","v":""},null,{"$f":"IF(ISERROR($V881),\"\",OFFSET('Smelter Look-up'!$D$4,$V881-4,0)&\"\")","v":""},{"$f":"IF(ISERROR($V881),\"\",OFFSET('Smelter Look-up'!$E$4,$V881-4,0))","v":""},{"$f":"IF(C881=$X$4,\"Enter smelter details\",IF(ISERROR($V881),\"\",OFFSET('Smelter Look-up'!$F$4,$V881-4,0)))","v":""},{"$f":"IF(ISERROR($V881),\"\",OFFSET('Smelter Look-up'!$G$4,$V881-4,0))","v":""},{"$f":"IF(ISERROR($V881),\"\",OFFSET('Smelter Look-up'!$H$4,$V881-4,0))","v":""},{"$f":"IF(ISERROR($V881),\"\",OFFSET('Smelter Look-up'!$I$4,$V881-4,0))","v":""},{"$nulls":7},{"$f":"IF(ISERROR($V881),\"\",OFFSET('Smelter Look-up'!$C$4,$V881-4,0)&\"\")","v":""},"",{"$f":"IF(B881=\"\",\"\",IF(ISERROR(MATCH($J881,SorP!$B$1:$B$5661,0)),\"\",INDIRECT(\"'SorP'!$A$\"&MATCH($J881,SorP!$B$1:$B$5661,0))))","v":""},null,{"$f":"IF(C881=\"\",NA(),MATCH($B881&$C881,'Smelter Look-up'!$J:$J,0))","v":{"$error":"#N/A"}},null,0,null,null,null,""]
[null,{"$f":"IF(LEN(A882)=0,\"\",INDEX('Smelter Look-up'!$A:$A,MATCH($A882,'Smelter Look-up'!$E:$E,0)))","v":""},{"$f":"IF(LEN(A882)=0,\"\",INDEX('Smelter Look-up'!$C:$C,MATCH($A882,'Smelter Look-up'!$E:$E,0)))","v":""},null,{"$f":"IF(ISERROR($V882),\"\",OFFSET('Smelter Look-up'!$D$4,$V882-4,0)&\"\")","v":""},{"$f":"IF(ISERROR($V882),\"\",OFFSET('Smelter Look-up'!$E$4,$V882-4,0))","v":""},{"$f":"IF(C882=$X$4,\"Enter smelter details\",IF(ISERROR($V882),\"\",OFFSET('Smelter Look-up'!$F$4,$V882-4,0)))","v":""},{"$f":"IF(ISERROR($V882),\"\",OFFSET('Smelter Look-up'!$G$4,$V882-4,0))","v":""},{"$f":"IF(ISERROR($V882),\"\",OFFSET('Smelter Look-up'!$H$4,$V882-4,0))","v":""},{"$f":"IF(ISERROR($V882),\"\",OFFSET('Smelter Look-up'!$I$4,$V882-4,0))","v":""},{"$nulls":7},{"$f":"IF(ISERROR($V882),\"\",OFFSET('Smelter Look-up'!$C$4,$V882-4,0)&\"\")","v":""},"",{"$f":"IF(B882=\"\",\"\",IF(ISERROR(MATCH($J882,SorP!$B$1:$B$5661,0)),\"\",INDIRECT(\"'SorP'!$A$\"&MATCH($J882,SorP!$B$1:$B$5661,0))))","v":""},null,{"$f":"IF(C882=\"\",NA(),MATCH($B882&$C882,'Smelter Look-up'!$J:$J,0))","v":{"$error":"#N/A"}},null,0,null,null,null,""]
[null,{"$f":"IF(LEN(A883)=0,\"\",INDEX('Smelter Look-up'!$A:$A,MATCH($A883,'Smelter Look-up'!$E:$E,0)))","v":""},{"$f":"IF(LEN(A883)=0,\"\",INDEX('Smelter Look-up'!$C:$C,MATCH($A883,'Smelter Look-up'!$E:$E,0)))","v":""},null,{"$f":"IF(ISERROR($V883),\"\",OFFSET('Smelter Look-up'!$D$4,$V883-4,0)&\"\")","v":""},{"$f":"IF(ISERROR($V883),\"\",OFFSET('Smelter Look-up'!$E$4,$V883-4,0))","v":""},{"$f":"IF(C883=$X$4,\"Enter smelter details\",IF(ISERROR($V883),\"\",OFFSET('Smelter Look-up'!$F$4,$V883-4,0)))","v":""},{"$f":"IF(ISERROR($V883),\"\",OFFSET('Smelter Look-up'!$G$4,$V883-4,0))","v":""},{"$f":"IF(ISERROR($V883),\"\",OFFSET('Smelter Look-up'!$H$4,$V883-4,0))","v":""},{"$f":"IF(ISERROR($V883),\"\",OFFSET('Smelter Look-up'!$I$4,$V883-4,0))","v":""},{"$nulls":7},{"$f":"IF(ISERROR($V883),\"\",OFFSET('Smelter Look-up'!$C$4,$V883-4,0)&\"\")","v":""},"",{"$f":"IF(B883=\"\",\"\",IF(ISERROR(MATCH($J883,SorP!$B$1:$B$5661,0)),\"\",INDIRECT(\"'SorP'!$A$\"&MATCH($J883,SorP!$B$1:$B$5661,0))))","v":""},null,{"$f":"IF(C883=\"\",NA(),MATCH($B883&$C883,'Smelter Look-up'!$J:$J,0))","v":{"$error":"#N/A"}},null,0,null,null,null,""]
[null,{"$f":"IF(LEN(A884)=0,\"\",INDEX('Smelter Look-up'!$A:$A,MATCH($A884,'Smelter Look-up'!$E:$E,0)))","v":""},{"$f":"IF(LEN(A884)=0,\"\",INDEX('Smelter Look-up'!$C:$C,MATCH($A884,'Smelter Look-up'!$E:$E,0)))","v":""},null,{"$f":"IF(ISERROR($V884),\"\",OFFSET('Smelter Look-up'!$D$4,$V884-4,0)&\"\")","v":""},{"$f":"IF(ISERROR($V884),\"\",OFFSET('Smelter Look-up'!$E$4,$V884-4,0))","v":""},{"$f":"IF(C884=$X$4,\"Enter smelter details\",IF(ISERROR($V884),\"\",OFFSET('Smelter Look-up'!$F$4,$V884-4,0)))","v":""},{"$f":"IF(ISERROR($V884),\"\",OFFSET('Smelter Look-up'!$G$4,$V884-4,0))","v":""},{"$f":"IF(ISERROR($V884),\"\",OFFSET('Smelter Look-up'!$H$4,$V884-4,0))","v":""},{"$f":"IF(ISERROR($V884),\"\",OFFSET('Smelter Look-up'!$I$4,$V884-4,0))","v":""},{"$nulls":7},{"$f":"IF(ISERROR($V884),\"\",OFFSET('Smelter Look-up'!$C$4,$V884-4,0)&\"\")","v":""},"",{"$f":"IF(B884=\"\",\"\",IF(ISERROR(MATCH($J884,SorP!$B$1:$B$5661,0)),\"\",INDIRECT(\"'SorP'!$A$\"&MATCH($J884,SorP!$B$1:$B$5661,0))))","v":""},null,{"$f":"IF(C884=\"\",NA(),MATCH($B884&$C884,'Smelter Look-up'!$J:$J,0))","v":{"$error":"#N/A"}},null,0,null,null,null,""]
[null,{"$f":"IF(LEN(A885)=0,\"\",INDEX('Smelter Look-up'!$A:$A,MATCH($A885,'Smelter Look-up'!$E:$E,0)))","v":""},{"$f":"IF(LEN(A885)=0,\"\",INDEX('Smelter Look-up'!$C:$C,MATCH($A885,'Smelter Look-up'!$E:$E,0)))","v":""},null,{"$f":"IF(ISERROR($V885),\"\",OFFSET('Smelter Look-up'!$D$4,$V885-4,0)&\"\")","v":""},{"$f":"IF(ISERROR($V885),\"\",OFFSET('Smelter Look-up'!$E$4,$V885-4,0))","v":""},{"$f":"IF(C885=$X$4,\"Enter smelter details\",IF(ISERROR($V885),\"\",OFFSET('Smelter Look-up'!$F$4,$V885-4,0)))","v":""},{"$f":"IF(ISERROR($V885),\"\",OFFSET('Smelter Look-up'!$G$4,$V885-4,0))","v":""},{"$f":"IF(ISERROR($V885),\"\",OFFSET('Smelter Look-up'!$H$4,$V885-4,0))","v":""},{"$f":"IF(ISERROR($V885),\"\",OFFSET('Smelter Look-up'!$I$4,$V885-4,0))","v":""},{"$nulls":7},{"$f":"IF(ISERROR($V885),\"\",OFFSET('Smelter Look-up'!$C$4,$V885-4,0)&\"\")","v":""},"",{"$f":"IF(B885=\"\",\"\",IF(ISERROR(MATCH($J885,SorP!$B$1:$B$5661,0)),\"\",INDIRECT(\"'SorP'!$A$\"&MATCH($J885,SorP!$B$1:$B$5661,0))))","v":""},null,{"$f":"IF(C885=\"\",NA(),MATCH($B885&$C885,'Smelter Look-up'!$J:$J,0))","v":{"$error":"#N/A"}},null,0,null,null,null,""]
[null,{"$f":"IF(LEN(A886)=0,\"\",INDEX('Smelter Look-up'!$A:$A,MATCH($A886,'Smelter Look-up'!$E:$E,0)))","v":""},{"$f":"IF(LEN(A886)=0,\"\",INDEX('Smelter Look-up'!$C:$C,MATCH($A886,'Smelter Look-up'!$E:$E,0)))","v":""},null,{"$f":"IF(ISERROR($V886),\"\",OFFSET('Smelter Look-up'!$D$4,$V886-4,0)&\"\")","v":""},{"$f":"IF(ISERROR($V886),\"\",OFFSET('Smelter Look-up'!$E$4,$V886-4,0))","v":""},{"$f":"IF(C886=$X$4,\"Enter smelter details\",IF(ISERROR($V886),\"\",OFFSET('Smelter Look-up'!$F$4,$V886-4,0)))","v":""},{"$f":"IF(ISERROR($V886),\"\",OFFSET('Smelter Look-up'!$G$4,$V886-4,0))","v":""},{"$f":"IF(ISERROR($V886),\"\",OFFSET('Smelter Look-up'!$H$4,$V886-4,0))","v":""},{"$f":"IF(ISERROR($V886),\"\",OFFSET('Smelter Look-up'!$I$4,$V886-4,0))","v":""},{"$nulls":7},{"$f":"IF(ISERROR($V886),\"\",OFFSET('Smelter Look-up'!$C$4,$V886-4,0)&\"\")","v":""},"",{"$f":"IF(B886=\"\",\"\",IF(ISERROR(MATCH($J886,SorP!$B$1:$B$5661,0)),\"\",INDIRECT(\"'SorP'!$A$\"&MATCH($J886,SorP!$B$1:$B$5661,0))))","v":""},null,{"$f":"IF(C886=\"\",NA(),MATCH($B886&$C886,'Smelter Look-up'!$J:$J,0))","v":{"$error":"#N/A"}},null,0,null,null,null,""]
[null,{"$f":"IF(LEN(A887)=0,\"\",INDEX('Smelter Look-up'!$A:$A,MATCH($A887,'Smelter Look-up'!$E:$E,0)))","v":""},{"$f":"IF(LEN(A887)=0,\"\",INDEX('Smelter Look-up'!$C:$C,MATCH($A887,'Smelter Look-up'!$E:$E,0)))","v":""},null,{"$f":"IF(ISERROR($V887),\"\",OFFSET('Smelter Look-up'!$D$4,$V887-4,0)&\"\")","v":""},{"$f":"IF(ISERROR($V887),\"\",OFFSET('Smelter Look-up'!$E$4,$V887-4,0))","v":""},{"$f":"IF(C887=$X$4,\"Enter smelter details\",IF(ISERROR($V887),\"\",OFFSET('Smelter Look-up'!$F$4,$V887-4,0)))","v":""},{"$f":"IF(ISERROR($V887),\"\",OFFSET('Smelter Look-up'!$G$4,$V887-4,0))","v":""},{"$f":"IF(ISERROR($V887),\"\",OFFSET('Smelter Look-up'!$H$4,$V887-4,0))","v":""},{"$f":"IF(ISERROR($V887),\"\",OFFSET('Smelter Look-up'!$I$4,$V887-4,0))","v":""},{"$nulls":7},{"$f":"IF(ISERROR($V887),\"\",OFFSET('Smelter Look-up'!$C$4,$V887-4,0)&\"\")","v":""},"",{"$f":"IF(B887=\"\",\"\",IF(ISERROR(MATCH($J887,SorP!$B$1:$B$5661,0)),\"\",INDIRECT(\"'SorP'!$A$\"&MATCH($J887,SorP!$B$1:$B$5661,0))))","v":""},null,{"$f":"IF(C887=\"\",NA(),MATCH($B887&$C887,'Smelter Look-up'!$J:$J,0))","v":{"$error":"#N/A"}},null,0,null,null,null,""]
[null,{"$f":"IF(LEN(A888)=0,\"\",INDEX('Smelter Look-up'!$A:$A,MATCH($A888,'Smelter Look-up'!$E:$E,0)))","v":""},{"$f":"IF(LEN(A888)=0,\"\",INDEX('Smelter Look-up'!$C:$C,MATCH($A888,'Smelter Look-up'!$E:$E,0)))","v":""},null,{"$f":"IF(ISERROR($V888),\"\",OFFSET('Smelter Look-up'!$D$4,$V888-4,0)&\"\")","v":""},{"$f":"IF(ISERROR($V888),\"\",OFFSET('Smelter Look-up'!$E$4,$V888-4,0))","v":""},{"$f":"IF(C888=$X$4,\"Enter smelter details\",IF(ISERROR($V888),\"\",OFFSET('Smelter Look-up'!$F$4,$V888-4,0)))","v":""},{"$f":"IF(ISERROR($V888),\"\",OFFSET('Smelter Look-up'!$G$4,$V888-4,0))","v":""},{"$f":"IF(ISERROR($V888),\"\",OFFSET('Smelter Look-up'!$H$4,$V888-4,0))","v":""},{"$f":"IF(ISERROR($V888),\"\",OFFSET('Smelter Look-up'!$I$4,$V888-4,0))","v":""},{"$nulls":7},{"$f":"IF(ISERROR($V888),\"\",OFFSET('Smelter Look-up'!$C$4,$V888-4,0)&\"\")","v":""},"",{"$f":"IF(B888=\"\",\"\",IF(ISERROR(MATCH($J888,SorP!$B$1:$B$5661,0)),\"\",INDIRECT(\"'SorP'!$A$\"&MATCH($J888,SorP!$B$1:$B$5661,0))))","v":""},null,{"$f":"IF(C888=\"\",NA(),MATCH($B888&$C888,'Smelter Look-up'!$J:$J,0))","v":{"$error":"#N/A"}},null,0,null,null,null,""]
[null,{"$f":"IF(LEN(A889)=0,\"\",INDEX('Smelter Look-up'!$A:$A,MATCH($A889,'Smelter Look-up'!$E:$E,0)))","v":""},{"$f":"IF(LEN(A889)=0,\"\",INDEX('Smelter Look-up'!$C:$C,MATCH($A889,'Smelter Look-up'!$E:$E,0)))","v":""},null,{"$f":"IF(ISERROR($V889),\"\",OFFSET('Smelter Look-up'!$D$4,$V889-4,0)&\"\")","v":""},{"$f":"IF(ISERROR($V889),\"\",OFFSET('Smelter Look-up'!$E$4,$V889-4,0))","v":""},{"$f":"IF(C889=$X$4,\"Enter smelter details\",IF(ISERROR($V889),\"\",OFFSET('Smelter Look-up'!$F$4,$V889-4,0)))","v":""},{"$f":"IF(ISERROR($V889),\"\",OFFSET('Smelter Look-up'!$G$4,$V889-4,0))","v":""},{"$f":"IF(ISERROR($V889),\"\",OFFSET('Smelter Look-up'!$H$4,$V889-4,0))","v":""},{"$f":"IF(ISERROR($V889),\"\",OFFSET('Smelter Look-up'!$I$4,$V889-4,0))","v":""},{"$nulls":7},{"$f":"IF(ISERROR($V889),\"\",OFFSET('Smelter Look-up'!$C$4,$V889-4,0)&\"\")","v":""},"",{"$f":"IF(B889=\"\",\"\",IF(ISERROR(MATCH($J889,SorP!$B$1:$B$5661,0)),\"\",INDIRECT(\"'SorP'!$A$\"&MATCH($J889,SorP!$B$1:$B$5661,0))))","v":""},null,{"$f":"IF(C889=\"\",NA(),MATCH($B889&$C889,'Smelter Look-up'!$J:$J,0))","v":{"$error":"#N/A"}},null,0,null,null,null,""]
[null,{"$f":"IF(LEN(A890)=0,\"\",INDEX('Smelter Look-up'!$A:$A,MATCH($A890,'Smelter Look-up'!$E:$E,0)))","v":""},{"$f":"IF(LEN(A890)=0,\"\",INDEX('Smelter Look-up'!$C:$C,MATCH($A890,'Smelter Look-up'!$E:$E,0)))","v":""},null,{"$f":"IF(ISERROR($V890),\"\",OFFSET('Smelter Look-up'!$D$4,$V890-4,0)&\"\")","v":""},{"$f":"IF(ISERROR($V890),\"\",OFFSET('Smelter Look-up'!$E$4,$V890-4,0))","v":""},{"$f":"IF(C890=$X$4,\"Enter smelter details\",IF(ISERROR($V890),\"\",OFFSET('Smelter Look-up'!$F$4,$V890-4,0)))","v":""},{"$f":"IF(ISERROR($V890),\"\",OFFSET('Smelter Look-up'!$G$4,$V890-4,0))","v":""},{"$f":"IF(ISERROR($V890),\"\",OFFSET('Smelter Look-up'!$H$4,$V890-4,0))","v":""},{"$f":"IF(ISERROR($V890),\"\",OFFSET('Smelter Look-up'!$I$4,$V890-4,0))","v":""},{"$nulls":7},{"$f":"IF(ISERROR($V890),\"\",OFFSET('Smelter Look-up'!$C$4,$V890-4,0)&\"\")","v":""},"",{"$f":"IF(B890=\"\",\"\",IF(ISERROR(MATCH($J890,SorP!$B$1:$B$5661,0)),\"\",INDIRECT(\"'SorP'!$A$\"&MATCH($J890,SorP!$B$1:$B$5661,0))))","v":""},null,{"$f":"IF(C890=\"\",NA(),MATCH($B890&$C890,'Smelter Look-up'!$J:$J,0))","v":{"$error":"#N/A"}},null,0,null,null,null,""]
[null,{"$f":"IF(LEN(A891)=0,\"\",INDEX('Smelter Look-up'!$A:$A,MATCH($A891,'Smelter Look-up'!$E:$E,0)))","v":""},{"$f":"IF(LEN(A891)=0,\"\",INDEX('Smelter Look-up'!$C:$C,MATCH($A891,'Smelter Look-up'!$E:$E,0)))","v":""},null,{"$f":"IF(ISERROR($V891),\"\",OFFSET('Smelter Look-up'!$D$4,$V891-4,0)&\"\")","v":""},{"$f":"IF(ISERROR($V891),\"\",OFFSET('Smelter Look-up'!$E$4,$V891-4,0))","v":""},{"$f":"IF(C891=$X$4,\"Enter smelter details\",IF(ISERROR($V891),\"\",OFFSET('Smelter Look-up'!$F$4,$V891-4,0)))","v":""},{"$f":"IF(ISERROR($V891),\"\",OFFSET('Smelter Look-up'!$G$4,$V891-4,0))","v":""},{"$f":"IF(ISERROR($V891),\"\",OFFSET('Smelter Look-up'!$H$4,$V891-4,0))","v":""},{"$f":"IF(ISERROR($V891),\"\",OFFSET('Smelter Look-up'!$I$4,$V891-4,0))","v":""},{"$nulls":7},{"$f":"IF(ISERROR($V891),\"\",OFFSET('Smelter Look-up'!$C$4,$V891-4,0)&\"\")","v":""},"",{"$f":"IF(B891=\"\",\"\",IF(ISERROR(MATCH($J891,SorP!$B$1:$B$5661,0)),\"\",INDIRECT(\"'SorP'!$A$\"&MATCH($J891,SorP!$B$1:$B$5661,0))))","v":""},null,{"$f":"IF(C891=\"\",NA(),MATCH($B891&$C891,'Smelter Look-up'!$J:$J,0))","v":{"$error":"#N/A"}},null,0,null,null,null,""]
[null,{"$f":"IF(LEN(A892)=0,\"\",INDEX('Smelter Look-up'!$A:$A,MATCH($A892,'Smelter Look-up'!$E:$E,0)))","v":""},{"$f":"IF(LEN(A892)=0,\"\",INDEX('Smelter Look-up'!$C:$C,MATCH($A892,'Smelter Look-up'!$E:$E,0)))","v":""},null,{"$f":"IF(ISERROR($V892),\"\",OFFSET('Smelter Look-up'!$D$4,$V892-4,0)&\"\")","v":""},{"$f":"IF(ISERROR($V892),\"\",OFFSET('Smelter Look-up'!$E$4,$V892-4,0))","v":""},{"$f":"IF(C892=$X$4,\"Enter smelter details\",IF(ISERROR($V892),\"\",OFFSET('Smelter Look-up'!$F$4,$V892-4,0)))","v":""},{"$f":"IF(ISERROR($V892),\"\",OFFSET('Smelter Look-up'!$G$4,$V892-4,0))","v":""},{"$f":"IF(ISERROR($V892),\"\",OFFSET('Smelter Look-up'!$H$4,$V892-4,0))","v":""},{"$f":"IF(ISERROR($V892),\"\",OFFSET('Smelter Look-up'!$I$4,$V892-4,0))","v":""},{"$nulls":7},{"$f":"IF(ISERROR($V892),\"\",OFFSET('Smelter Look-up'!$C$4,$V892-4,0)&\"\")","v":""},"",{"$f":"IF(B892=\"\",\"\",IF(ISERROR(MATCH($J892,SorP!$B$1:$B$5661,0)),\"\",INDIRECT(\"'SorP'!$A$\"&MATCH($J892,SorP!$B$1:$B$5661,0))))","v":""},null,{"$f":"IF(C892=\"\",NA(),MATCH($B892&$C892,'Smelter Look-up'!$J:$J,0))","v":{"$error":"#N/A"}},null,0,null,null,null,""]
[null,{"$f":"IF(LEN(A893)=0,\"\",INDEX('Smelter Look-up'!$A:$A,MATCH($A893,'Smelter Look-up'!$E:$E,0)))","v":""},{"$f":"IF(LEN(A893)=0,\"\",INDEX('Smelter Look-up'!$C:$C,MATCH($A893,'Smelter Look-up'!$E:$E,0)))","v":""},null,{"$f":"IF(ISERROR($V893),\"\",OFFSET('Smelter Look-up'!$D$4,$V893-4,0)&\"\")","v":""},{"$f":"IF(ISERROR($V893),\"\",OFFSET('Smelter Look-up'!$E$4,$V893-4,0))","v":""},{"$f":"IF(C893=$X$4,\"Enter smelter details\",IF(ISERROR($V893),\"\",OFFSET('Smelter Look-up'!$F$4,$V893-4,0)))","v":""},{"$f":"IF(ISERROR($V893),\"\",OFFSET('Smelter Look-up'!$G$4,$V893-4,0))","v":""},{"$f":"IF(ISERROR($V893),\"\",OFFSET('Smelter Look-up'!$H$4,$V893-4,0))","v":""},{"$f":"IF(ISERROR($V893),\"\",OFFSET('Smelter Look-up'!$I$4,$V893-4,0))","v":""},{"$nulls":7},{"$f":"IF(ISERROR($V893),\"\",OFFSET('Smelter Look-up'!$C$4,$V893-4,0)&\"\")","v":""},"",{"$f":"IF(B893=\"\",\"\",IF(ISERROR(MATCH($J893,SorP!$B$1:$B$5661,0)),\"\",INDIRECT(\"'SorP'!$A$\"&MATCH($J893,SorP!$B$1:$B$5661,0))))","v":""},null,{"$f":"IF(C893=\"\",NA(),MATCH($B893&$C893,'Smelter Look-up'!$J:$J,0))","v":{"$error":"#N/A"}},null,0,null,null,null,""]
[null,{"$f":"IF(LEN(A894)=0,\"\",INDEX('Smelter Look-up'!$A:$A,MATCH($A894,'Smelter Look-up'!$E:$E,0)))","v":""},{"$f":"IF(LEN(A894)=0,\"\",INDEX('Smelter Look-up'!$C:$C,MATCH($A894,'Smelter Look-up'!$E:$E,0)))","v":""},null,{"$f":"IF(ISERROR($V894),\"\",OFFSET('Smelter Look-up'!$D$4,$V894-4,0)&\"\")","v":""},{"$f":"IF(ISERROR($V894),\"\",OFFSET('Smelter Look-up'!$E$4,$V894-4,0))","v":""},{"$f":"IF(C894=$X$4,\"Enter smelter details\",IF(ISERROR($V894),\"\",OFFSET('Smelter Look-up'!$F$4,$V894-4,0)))","v":""},{"$f":"IF(ISERROR($V894),\"\",OFFSET('Smelter Look-up'!$G$4,$V894-4,0))","v":""},{"$f":"IF(ISERROR($V894),\"\",OFFSET('Smelter Look-up'!$H$4,$V894-4,0))","v":""},{"$f":"IF(ISERROR($V894),\"\",OFFSET('Smelter Look-up'!$I$4,$V894-4,0))","v":""},{"$nulls":7},{"$f":"IF(ISERROR($V894),\"\",OFFSET('Smelter Look-up'!$C$4,$V894-4,0)&\"\")","v":""},"",{"$f":"IF(B894=\"\",\"\",IF(ISERROR(MATCH($J894,SorP!$B$1:$B$5661,0)),\"\",INDIRECT(\"'SorP'!$A$\"&MATCH($J894,SorP!$B$1:$B$5661,0))))","v":""},null,{"$f":"IF(C894=\"\",NA(),MATCH($B894&$C894,'Smelter Look-up'!$J:$J,0))","v":{"$error":"#N/A"}},null,0,null,null,null,""]
[null,{"$f":"IF(LEN(A895)=0,\"\",INDEX('Smelter Look-up'!$A:$A,MATCH($A895,'Smelter Look-up'!$E:$E,0)))","v":""},{"$f":"IF(LEN(A895)=0,\"\",INDEX('Smelter Look-up'!$C:$C,MATCH($A895,'Smelter Look-up'!$E:$E,0)))","v":""},null,{"$f":"IF(ISERROR($V895),\"\",OFFSET('Smelter Look-up'!$D$4,$V895-4,0)&\"\")","v":""},{"$f":"IF(ISERROR($V895),\"\",OFFSET('Smelter Look-up'!$E$4,$V895-4,0))","v":""},{"$f":"IF(C895=$X$4,\"Enter smelter details\",IF(ISERROR($V895),\"\",OFFSET('Smelter Look-up'!$F$4,$V895-4,0)))","v":""},{"$f":"IF(ISERROR($V895),\"\",OFFSET('Smelter Look-up'!$G$4,$V895-4,0))","v":""},{"$f":"IF(ISERROR($V895),\"\",OFFSET('Smelter Look-up'!$H$4,$V895-4,0))","v":""},{"$f":"IF(ISERROR($V895),\"\",OFFSET('Smelter Look-up'!$I$4,$V895-4,0))","v":""},{"$nulls":7},{"$f":"IF(ISERROR($V895),\"\",OFFSET('Smelter Look-up'!$C$4,$V895-4,0)&\"\")","v":""},"",{"$f":"IF(B895=\"\",\"\",IF(ISERROR(MATCH($J895,SorP!$B$1:$B$5661,0)),\"\",INDIRECT(\"'SorP'!$A$\"&MATCH($J895,SorP!$B$1:$B$5661,0))))","v":""},null,{"$f":"IF(C895=\"\",NA(),MATCH($B895&$C895,'Smelter Look-up'!$J:$J,0))","v":{"$error":"#N/A"}},null,{"$f":"IF(AND(C895=\"Smelter not listed\",OR(LEN(D895)=0,LEN(E895)=0)),1,0)","v":0},null,null,null,{"$f":"B895&C895","v":""}]
[null,{"$f":"IF(LEN(A896)=0,\"\",INDEX('Smelter Look-up'!$A:$A,MATCH($A896,'Smelter Look-up'!$E:$E,0)))","v":""},{"$f":"IF(LEN(A896)=0,\"\",INDEX('Smelter Look-up'!$C:$C,MATCH($A896,'Smelter Look-up'!$E:$E,0)))","v":""},null,{"$f":"IF(ISERROR($V896),\"\",OFFSET('Smelter Look-up'!$D$4,$V896-4,0)&\"\")","v":""},{"$f":"IF(ISERROR($V896),\"\",OFFSET('Smelter Look-up'!$E$4,$V896-4,0))","v":""},{"$f":"IF(C896=$X$4,\"Enter smelter details\",IF(ISERROR($V896),\"\",OFFSET('Smelter Look-up'!$F$4,$V896-4,0)))","v":""},{"$f":"IF(ISERROR($V896),\"\",OFFSET('Smelter Look-up'!$G$4,$V896-4,0))","v":""},{"$f":"IF(ISERROR($V896),\"\",OFFSET('Smelter Look-up'!$H$4,$V896-4,0))","v":""},{"$f":"IF(ISERROR($V896),\"\",OFFSET('Smelter Look-up'!$I$4,$V896-4,0))","v":""},{"$nulls":7},{"$f":"IF(ISERROR($V896),\"\",OFFSET('Smelter Look-up'!$C$4,$V896-4,0)&\"\")","v":""},{"$f":"IF(B896=\"\",\"\",IF(ISERROR(MATCH($E896,CL,0)),\"Unknown\",INDIRECT(\"'C'!$A$\"&MATCH($E896,CL,0)+1)))","v":""},{"$f":"IF(B896=\"\",\"\",IF(ISERROR(MATCH($J896,SorP!$B$1:$B$5661,0)),\"\",INDIRECT(\"'SorP'!$A$\"&MATCH($J896,SorP!$B$1:$B$5661,0))))","v":""},null,{"$f":"IF(C896=\"\",NA(),MATCH($B896&$C896,'Smelter Look-up'!$J:$J,0))","v":{"$error":"#N/A"}},null,0,null,null,null,""]
[null,{"$f":"IF(LEN(A897)=0,\"\",INDEX('Smelter Look-up'!$A:$A,MATCH($A897,'Smelter Look-up'!$E:$E,0)))","v":""},{"$f":"IF(LEN(A897)=0,\"\",INDEX('Smelter Look-up'!$C:$C,MATCH($A897,'Smelter Look-up'!$E:$E,0)))","v":""},null,{"$f":"IF(ISERROR($V897),\"\",OFFSET('Smelter Look-up'!$D$4,$V897-4,0)&\"\")","v":""},{"$f":"IF(ISERROR($V897),\"\",OFFSET('Smelter Look-up'!$E$4,$V897-4,0))","v":""},{"$f":"IF(C897=$X$4,\"Enter smelter details\",IF(ISERROR($V897),\"\",OFFSET('Smelter Look-up'!$F$4,$V897-4,0)))","v":""},{"$f":"IF(ISERROR($V897),\"\",OFFSET('Smelter Look-up'!$G$4,$V897-4,0))","v":""},{"$f":"IF(ISERROR($V897),\"\",OFFSET('Smelter Look-up'!$H$4,$V897-4,0))","v":""},{"$f":"IF(ISERROR($V897),\"\",OFFSET('Smelter Look-up'!$I$4,$V897-4,0))","v":""},{"$nulls":7},{"$f":"IF(ISERROR($V897),\"\",OFFSET('Smelter Look-up'!$C$4,$V897-4,0)&\"\")","v":""},"",{"$f":"IF(B897=\"\",\"\",IF(ISERROR(MATCH($J897,SorP!$B$1:$B$5661,0)),\"\",INDIRECT(\"'SorP'!$A$\"&MATCH($J897,SorP!$B$1:$B$5661,0))))","v":""},null,{"$f":"IF(C897=\"\",NA(),MATCH($B897&$C897,'Smelter Look-up'!$J:$J,0))","v":{"$error":"#N/A"}},null,0,null,null,null,""]
[null,{"$f":"IF(LEN(A898)=0,\"\",INDEX('Smelter Look-up'!$A:$A,MATCH($A898,'Smelter Look-up'!$E:$E,0)))","v":""},{"$f":"IF(LEN(A898)=0,\"\",INDEX('Smelter Look-up'!$C:$C,MATCH($A898,'Smelter Look-up'!$E:$E,0)))","v":""},null,{"$f":"IF(ISERROR($V898),\"\",OFFSET('Smelter Look-up'!$D$4,$V898-4,0)&\"\")","v":""},{"$f":"IF(ISERROR($V898),\"\",OFFSET('Smelter Look-up'!$E$4,$V898-4,0))","v":""},{"$f":"IF(C898=$X$4,\"Enter smelter details\",IF(ISERROR($V898),\"\",OFFSET('Smelter Look-up'!$F$4,$V898-4,0)))","v":""},{"$f":"IF(ISERROR($V898),\"\",OFFSET('Smelter Look-up'!$G$4,$V898-4,0))","v":""},{"$f":"IF(ISERROR($V898),\"\",OFFSET('Smelter Look-up'!$H$4,$V898-4,0))","v":""},{"$f":"IF(ISERROR($V898),\"\",OFFSET('Smelter Look-up'!$I$4,$V898-4,0))","v":""},{"$nulls":7},{"$f":"IF(ISERROR($V898),\"\",OFFSET('Smelter Look-up'!$C$4,$V898-4,0)&\"\")","v":""},"",{"$f":"IF(B898=\"\",\"\",IF(ISERROR(MATCH($J898,SorP!$B$1:$B$5661,0)),\"\",INDIRECT(\"'SorP'!$A$\"&MATCH($J898,SorP!$B$1:$B$5661,0))))","v":""},null,{"$f":"IF(C898=\"\",NA(),MATCH($B898&$C898,'Smelter Look-up'!$J:$J,0))","v":{"$error":"#N/A"}},null,0,null,null,null,""]
[null,{"$f":"IF(LEN(A899)=0,\"\",INDEX('Smelter Look-up'!$A:$A,MATCH($A899,'Smelter Look-up'!$E:$E,0)))","v":""},{"$f":"IF(LEN(A899)=0,\"\",INDEX('Smelter Look-up'!$C:$C,MATCH($A899,'Smelter Look-up'!$E:$E,0)))","v":""},null,{"$f":"IF(ISERROR($V899),\"\",OFFSET('Smelter Look-up'!$D$4,$V899-4,0)&\"\")","v":""},{"$f":"IF(ISERROR($V899),\"\",OFFSET('Smelter Look-up'!$E$4,$V899-4,0))","v":""},{"$f":"IF(C899=$X$4,\"Enter smelter details\",IF(ISERROR($V899),\"\",OFFSET('Smelter Look-up'!$F$4,$V899-4,0)))","v":""},{"$f":"IF(ISERROR($V899),\"\",OFFSET('Smelter Look-up'!$G$4,$V899-4,0))","v":""},{"$f":"IF(ISERROR($V899),\"\",OFFSET('Smelter Look-up'!$H$4,$V899-4,0))","v":""},{"$f":"IF(ISERROR($V899),\"\",OFFSET('Smelter Look-up'!$I$4,$V899-4,0))","v":""},{"$nulls":7},{"$f":"IF(ISERROR($V899),\"\",OFFSET('Smelter Look-up'!$C$4,$V899-4,0)&\"\")","v":""},"",{"$f":"IF(B899=\"\",\"\",IF(ISERROR(MATCH($J899,SorP!$B$1:$B$5661,0)),\"\",INDIRECT(\"'SorP'!$A$\"&MATCH($J899,SorP!$B$1:$B$5661,0))))","v":""},null,{"$f":"IF(C899=\"\",NA(),MATCH($B899&$C899,'Smelter Look-up'!$J:$J,0))","v":{"$error":"#N/A"}},null,0,null,null,null,""]
[null,{"$f":"IF(LEN(A900)=0,\"\",INDEX('Smelter Look-up'!$A:$A,MATCH($A900,'Smelter Look-up'!$E:$E,0)))","v":""},{"$f":"IF(LEN(A900)=0,\"\",INDEX('Smelter Look-up'!$C:$C,MATCH($A900,'Smelter Look-up'!$E:$E,0)))","v":""},null,{"$f":"IF(ISERROR($V900),\"\",OFFSET('Smelter Look-up'!$D$4,$V900-4,0)&\"\")","v":""},{"$f":"IF(ISERROR($V900),\"\",OFFSET('Smelter Look-up'!$E$4,$V900-4,0))","v":""},{"$f":"IF(C900=$X$4,\"Enter smelter details\",IF(ISERROR($V900),\"\",OFFSET('Smelter Look-up'!$F$4,$V900-4,0)))","v":""},{"$f":"IF(ISERROR($V900),\"\",OFFSET('Smelter Look-up'!$G$4,$V900-4,0))","v":""},{"$f":"IF(ISERROR($V900),\"\",OFFSET('Smelter Look-up'!$H$4,$V900-4,0))","v":""},{"$f":"IF(ISERROR($V900),\"\",OFFSET('Smelter Look-up'!$I$4,$V900-4,0))","v":""},{"$nulls":7},{"$f":"IF(ISERROR($V900),\"\",OFFSET('Smelter Look-up'!$C$4,$V900-4,0)&\"\")","v":""},"",{"$f":"IF(B900=\"\",\"\",IF(ISERROR(MATCH($J900,SorP!$B$1:$B$5661,0)),\"\",INDIRECT(\"'SorP'!$A$\"&MATCH($J900,SorP!$B$1:$B$5661,0))))","v":""},null,{"$f":"IF(C900=\"\",NA(),MATCH($B900&$C900,'Smelter Look-up'!$J:$J,0))","v":{"$error":"#N/A"}},null,0,null,null,null,""]
[null,{"$f":"IF(LEN(A901)=0,\"\",INDEX('Smelter Look-up'!$A:$A,MATCH($A901,'Smelter Look-up'!$E:$E,0)))","v":""},{"$f":"IF(LEN(A901)=0,\"\",INDEX('Smelter Look-up'!$C:$C,MATCH($A901,'Smelter Look-up'!$E:$E,0)))","v":""},null,{"$f":"IF(ISERROR($V901),\"\",OFFSET('Smelter Look-up'!$D$4,$V901-4,0)&\"\")","v":""},{"$f":"IF(ISERROR($V901),\"\",OFFSET('Smelter Look-up'!$E$4,$V901-4,0))","v":""},{"$f":"IF(C901=$X$4,\"Enter smelter details\",IF(ISERROR($V901),\"\",OFFSET('Smelter Look-up'!$F$4,$V901-4,0)))","v":""},{"$f":"IF(ISERROR($V901),\"\",OFFSET('Smelter Look-up'!$G$4,$V901-4,0))","v":""},{"$f":"IF(ISERROR($V901),\"\",OFFSET('Smelter Look-up'!$H$4,$V901-4,0))","v":""},{"$f":"IF(ISERROR($V901),\"\",OFFSET('Smelter Look-up'!$I$4,$V901-4,0))","v":""},{"$nulls":7},{"$f":"IF(ISERROR($V901),\"\",OFFSET('Smelter Look-up'!$C$4,$V901-4,0)&\"\")","v":""},"",{"$f":"IF(B901=\"\",\"\",IF(ISERROR(MATCH($J901,SorP!$B$1:$B$5661,0)),\"\",INDIRECT(\"'SorP'!$A$\"&MATCH($J901,SorP!$B$1:$B$5661,0))))","v":""},null,{"$f":"IF(C901=\"\",NA(),MATCH($B901&$C901,'Smelter Look-up'!$J:$J,0))","v":{"$error":"#N/A"}},null,0,null,null,null,""]
[null,{"$f":"IF(LEN(A902)=0,\"\",INDEX('Smelter Look-up'!$A:$A,MATCH($A902,'Smelter Look-up'!$E:$E,0)))","v":""},{"$f":"IF(LEN(A902)=0,\"\",INDEX('Smelter Look-up'!$C:$C,MATCH($A902,'Smelter Look-up'!$E:$E,0)))","v":""},null,{"$f":"IF(ISERROR($V902),\"\",OFFSET('Smelter Look-up'!$D$4,$V902-4,0)&\"\")","v":""},{"$f":"IF(ISERROR($V902),\"\",OFFSET('Smelter Look-up'!$E$4,$V902-4,0))","v":""},{"$f":"IF(C902=$X$4,\"Enter smelter details\",IF(ISERROR($V902),\"\",OFFSET('Smelter Look-up'!$F$4,$V902-4,0)))","v":""},{"$f":"IF(ISERROR($V902),\"\",OFFSET('Smelter Look-up'!$G$4,$V902-4,0))","v":""},{"$f":"IF(ISERROR($V902),\"\",OFFSET('Smelter Look-up'!$H$4,$V902-4,0))","v":""},{"$f":"IF(ISERROR($V902),\"\",OFFSET('Smelter Look-up'!$I$4,$V902-4,0))","v":""},{"$nulls":7},{"$f":"IF(ISERROR($V902),\"\",OFFSET('Smelter Look-up'!$C$4,$V902-4,0)&\"\")","v":""},"",{"$f":"IF(B902=\"\",\"\",IF(ISERROR(MATCH($J902,SorP!$B$1:$B$5661,0)),\"\",INDIRECT(\"'SorP'!$A$\"&MATCH($J902,SorP!$B$1:$B$5661,0))))","v":""},null,{"$f":"IF(C902=\"\",NA(),MATCH($B902&$C902,'Smelter Look-up'!$J:$J,0))","v":{"$error":"#N/A"}},null,0,null,null,null,""]
[null,{"$f":"IF(LEN(A903)=0,\"\",INDEX('Smelter Look-up'!$A:$A,MATCH($A903,'Smelter Look-up'!$E:$E,0)))","v":""},{"$f":"IF(LEN(A903)=0,\"\",INDEX('Smelter Look-up'!$C:$C,MATCH($A903,'Smelter Look-up'!$E:$E,0)))","v":""},null,{"$f":"IF(ISERROR($V903),\"\",OFFSET('Smelter Look-up'!$D$4,$V903-4,0)&\"\")","v":""},{"$f":"IF(ISERROR($V903),\"\",OFFSET('Smelter Look-up'!$E$4,$V903-4,0))","v":""},{"$f":"IF(C903=$X$4,\"Enter smelter details\",IF(ISERROR($V903),\"\",OFFSET('Smelter Look-up'!$F$4,$V903-4,0)))","v":""},{"$f":"IF(ISERROR($V903),\"\",OFFSET('Smelter Look-up'!$G$4,$V903-4,0))","v":""},{"$f":"IF(ISERROR($V903),\"\",OFFSET('Smelter Look-up'!$H$4,$V903-4,0))","v":""},{"$f":"IF(ISERROR($V903),\"\",OFFSET('Smelter Look-up'!$I$4,$V903-4,0))","v":""},{"$nulls":7},{"$f":"IF(ISERROR($V903),\"\",OFFSET('Smelter Look-up'!$C$4,$V903-4,0)&\"\")","v":""},"",{"$f":"IF(B903=\"\",\"\",IF(ISERROR(MATCH($J903,SorP!$B$1:$B$5661,0)),\"\",INDIRECT(\"'SorP'!$A$\"&MATCH($J903,SorP!$B$1:$B$5661,0))))","v":""},null,{"$f":"IF(C903=\"\",NA(),MATCH($B903&$C903,'Smelter Look-up'!$J:$J,0))","v":{"$error":"#N/A"}},null,0,null,null,null,""]
[null,{"$f":"IF(LEN(A904)=0,\"\",INDEX('Smelter Look-up'!$A:$A,MATCH($A904,'Smelter Look-up'!$E:$E,0)))","v":""},{"$f":"IF(LEN(A904)=0,\"\",INDEX('Smelter Look-up'!$C:$C,MATCH($A904,'Smelter Look-up'!$E:$E,0)))","v":""},null,{"$f":"IF(ISERROR($V904),\"\",OFFSET('Smelter Look-up'!$D$4,$V904-4,0)&\"\")","v":""},{"$f":"IF(ISERROR($V904),\"\",OFFSET('Smelter Look-up'!$E$4,$V904-4,0))","v":""},{"$f":"IF(C904=$X$4,\"Enter smelter details\",IF(ISERROR($V904),\"\",OFFSET('Smelter Look-up'!$F$4,$V904-4,0)))","v":""},{"$f":"IF(ISERROR($V904),\"\",OFFSET('Smelter Look-up'!$G$4,$V904-4,0))","v":""},{"$f":"IF(ISERROR($V904),\"\",OFFSET('Smelter Look-up'!$H$4,$V904-4,0))","v":""},{"$f":"IF(ISERROR($V904),\"\",OFFSET('Smelter Look-up'!$I$4,$V904-4,0))","v":""},{"$nulls":7},{"$f":"IF(ISERROR($V904),\"\",OFFSET('Smelter Look-up'!$C$4,$V904-4,0)&\"\")","v":""},"",{"$f":"IF(B904=\"\",\"\",IF(ISERROR(MATCH($J904,SorP!$B$1:$B$5661,0)),\"\",INDIRECT(\"'SorP'!$A$\"&MATCH($J904,SorP!$B$1:$B$5661,0))))","v":""},null,{"$f":"IF(C904=\"\",NA(),MATCH($B904&$C904,'Smelter Look-up'!$J:$J,0))","v":{"$error":"#N/A"}},null,0,null,null,null,""]
[null,{"$f":"IF(LEN(A905)=0,\"\",INDEX('Smelter Look-up'!$A:$A,MATCH($A905,'Smelter Look-up'!$E:$E,0)))","v":""},{"$f":"IF(LEN(A905)=0,\"\",INDEX('Smelter Look-up'!$C:$C,MATCH($A905,'Smelter Look-up'!$E:$E,0)))","v":""},null,{"$f":"IF(ISERROR($V905),\"\",OFFSET('Smelter Look-up'!$D$4,$V905-4,0)&\"\")","v":""},{"$f":"IF(ISERROR($V905),\"\",OFFSET('Smelter Look-up'!$E$4,$V905-4,0))","v":""},{"$f":"IF(C905=$X$4,\"Enter smelter details\",IF(ISERROR($V905),\"\",OFFSET('Smelter Look-up'!$F$4,$V905-4,0)))","v":""},{"$f":"IF(ISERROR($V905),\"\",OFFSET('Smelter Look-up'!$G$4,$V905-4,0))","v":""},{"$f":"IF(ISERROR($V905),\"\",OFFSET('Smelter Look-up'!$H$4,$V905-4,0))","v":""},{"$f":"IF(ISERROR($V905),\"\",OFFSET('Smelter Look-up'!$I$4,$V905-4,0))","v":""},{"$nulls":7},{"$f":"IF(ISERROR($V905),\"\",OFFSET('Smelter Look-up'!$C$4,$V905-4,0)&\"\")","v":""},"",{"$f":"IF(B905=\"\",\"\",IF(ISERROR(MATCH($J905,SorP!$B$1:$B$5661,0)),\"\",INDIRECT(\"'SorP'!$A$\"&MATCH($J905,SorP!$B$1:$B$5661,0))))","v":""},null,{"$f":"IF(C905=\"\",NA(),MATCH($B905&$C905,'Smelter Look-up'!$J:$J,0))","v":{"$error":"#N/A"}},null,0,null,null,null,""]
[null,{"$f":"IF(LEN(A906)=0,\"\",INDEX('Smelter Look-up'!$A:$A,MATCH($A906,'Smelter Look-up'!$E:$E,0)))","v":""},{"$f":"IF(LEN(A906)=0,\"\",INDEX('Smelter Look-up'!$C:$C,MATCH($A906,'Smelter Look-up'!$E:$E,0)))","v":""},null,{"$f":"IF(ISERROR($V906),\"\",OFFSET('Smelter Look-up'!$D$4,$V906-4,0)&\"\")","v":""},{"$f":"IF(ISERROR($V906),\"\",OFFSET('Smelter Look-up'!$E$4,$V906-4,0))","v":""},{"$f":"IF(C906=$X$4,\"Enter smelter details\",IF(ISERROR($V906),\"\",OFFSET('Smelter Look-up'!$F$4,$V906-4,0)))","v":""},{"$f":"IF(ISERROR($V906),\"\",OFFSET('Smelter Look-up'!$G$4,$V906-4,0))","v":""},{"$f":"IF(ISERROR($V906),\"\",OFFSET('Smelter Look-up'!$H$4,$V906-4,0))","v":""},{"$f":"IF(ISERROR($V906),\"\",OFFSET('Smelter Look-up'!$I$4,$V906-4,0))","v":""},{"$nulls":7},{"$f":"IF(ISERROR($V906),\"\",OFFSET('Smelter Look-up'!$C$4,$V906-4,0)&\"\")","v":""},"",{"$f":"IF(B906=\"\",\"\",IF(ISERROR(MATCH($J906,SorP!$B$1:$B$5661,0)),\"\",INDIRECT(\"'SorP'!$A$\"&MATCH($J906,SorP!$B$1:$B$5661,0))))","v":""},null,{"$f":"IF(C906=\"\",NA(),MATCH($B906&$C906,'Smelter Look-up'!$J:$J,0))","v":{"$error":"#N/A"}},null,0,null,null,null,""]
[null,{"$f":"IF(LEN(A907)=0,\"\",INDEX('Smelter Look-up'!$A:$A,MATCH($A907,'Smelter Look-up'!$E:$E,0)))","v":""},{"$f":"IF(LEN(A907)=0,\"\",INDEX('Smelter Look-up'!$C:$C,MATCH($A907,'Smelter Look-up'!$E:$E,0)))","v":""},null,{"$f":"IF(ISERROR($V907),\"\",OFFSET('Smelter Look-up'!$D$4,$V907-4,0)&\"\")","v":""},{"$f":"IF(ISERROR($V907),\"\",OFFSET('Smelter Look-up'!$E$4,$V907-4,0))","v":""},{"$f":"IF(C907=$X$4,\"Enter smelter details\",IF(ISERROR($V907),\"\",OFFSET('Smelter Look-up'!$F$4,$V907-4,0)))","v":""},{"$f":"IF(ISERROR($V907),\"\",OFFSET('Smelter Look-up'!$G$4,$V907-4,0))","v":""},{"$f":"IF(ISERROR($V907),\"\",OFFSET('Smelter Look-up'!$H$4,$V907-4,0))","v":""},{"$f":"IF(ISERROR($V907),\"\",OFFSET('Smelter Look-up'!$I$4,$V907-4,0))","v":""},{"$nulls":7},{"$f":"IF(ISERROR($V907),\"\",OFFSET('Smelter Look-up'!$C$4,$V907-4,0)&\"\")","v":""},"",{"$f":"IF(B907=\"\",\"\",IF(ISERROR(MATCH($J907,SorP!$B$1:$B$5661,0)),\"\",INDIRECT(\"'SorP'!$A$\"&MATCH($J907,SorP!$B$1:$B$5661,0))))","v":""},null,{"$f":"IF(C907=\"\",NA(),MATCH($B907&$C907,'Smelter Look-up'!$J:$J,0))","v":{"$error":"#N/A"}},null,0,null,null,null,""]
[null,{"$f":"IF(LEN(A908)=0,\"\",INDEX('Smelter Look-up'!$A:$A,MATCH($A908,'Smelter Look-up'!$E:$E,0)))","v":""},{"$f":"IF(LEN(A908)=0,\"\",INDEX('Smelter Look-up'!$C:$C,MATCH($A908,'Smelter Look-up'!$E:$E,0)))","v":""},null,{"$f":"IF(ISERROR($V908),\"\",OFFSET('Smelter Look-up'!$D$4,$V908-4,0)&\"\")","v":""},{"$f":"IF(ISERROR($V908),\"\",OFFSET('Smelter Look-up'!$E$4,$V908-4,0))","v":""},{"$f":"IF(C908=$X$4,\"Enter smelter details\",IF(ISERROR($V908),\"\",OFFSET('Smelter Look-up'!$F$4,$V908-4,0)))","v":""},{"$f":"IF(ISERROR($V908),\"\",OFFSET('Smelter Look-up'!$G$4,$V908-4,0))","v":""},{"$f":"IF(ISERROR($V908),\"\",OFFSET('Smelter Look-up'!$H$4,$V908-4,0))","v":""},{"$f":"IF(ISERROR($V908),\"\",OFFSET('Smelter Look-up'!$I$4,$V908-4,0))","v":""},{"$nulls":7},{"$f":"IF(ISERROR($V908),\"\",OFFSET('Smelter Look-up'!$C$4,$V908-4,0)&\"\")","v":""},"",{"$f":"IF(B908=\"\",\"\",IF(ISERROR(MATCH($J908,SorP!$B$1:$B$5661,0)),\"\",INDIRECT(\"'SorP'!$A$\"&MATCH($J908,SorP!$B$1:$B$5661,0))))","v":""},null,{"$f":"IF(C908=\"\",NA(),MATCH($B908&$C908,'Smelter Look-up'!$J:$J,0))","v":{"$error":"#N/A"}},null,0,null,null,null,""]
[null,{"$f":"IF(LEN(A909)=0,\"\",INDEX('Smelter Look-up'!$A:$A,MATCH($A909,'Smelter Look-up'!$E:$E,0)))","v":""},{"$f":"IF(LEN(A909)=0,\"\",INDEX('Smelter Look-up'!$C:$C,MATCH($A909,'Smelter Look-up'!$E:$E,0)))","v":""},null,{"$f":"IF(ISERROR($V909),\"\",OFFSET('Smelter Look-up'!$D$4,$V909-4,0)&\"\")","v":""},{"$f":"IF(ISERROR($V909),\"\",OFFSET('Smelter Look-up'!$E$4,$V909-4,0))","v":""},{"$f":"IF(C909=$X$4,\"Enter smelter details\",IF(ISERROR($V909),\"\",OFFSET('Smelter Look-up'!$F$4,$V909-4,0)))","v":""},{"$f":"IF(ISERROR($V909),\"\",OFFSET('Smelter Look-up'!$G$4,$V909-4,0))","v":""},{"$f":"IF(ISERROR($V909),\"\",OFFSET('Smelter Look-up'!$H$4,$V909-4,0))","v":""},{"$f":"IF(ISERROR($V909),\"\",OFFSET('Smelter Look-up'!$I$4,$V909-4,0))","v":""},{"$nulls":7},{"$f":"IF(ISERROR($V909),\"\",OFFSET('Smelter Look-up'!$C$4,$V909-4,0)&\"\")","v":""},"",{"$f":"IF(B909=\"\",\"\",IF(ISERROR(MATCH($J909,SorP!$B$1:$B$5661,0)),\"\",INDIRECT(\"'SorP'!$A$\"&MATCH($J909,SorP!$B$1:$B$5661,0))))","v":""},null,{"$f":"IF(C909=\"\",NA(),MATCH($B909&$C909,'Smelter Look-up'!$J:$J,0))","v":{"$error":"#N/A"}},null,0,null,null,null,""]
[null,{"$f":"IF(LEN(A910)=0,\"\",INDEX('Smelter Look-up'!$A:$A,MATCH($A910,'Smelter Look-up'!$E:$E,0)))","v":""},{"$f":"IF(LEN(A910)=0,\"\",INDEX('Smelter Look-up'!$C:$C,MATCH($A910,'Smelter Look-up'!$E:$E,0)))","v":""},null,{"$f":"IF(ISERROR($V910),\"\",OFFSET('Smelter Look-up'!$D$4,$V910-4,0)&\"\")","v":""},{"$f":"IF(ISERROR($V910),\"\",OFFSET('Smelter Look-up'!$E$4,$V910-4,0))","v":""},{"$f":"IF(C910=$X$4,\"Enter smelter details\",IF(ISERROR($V910),\"\",OFFSET('Smelter Look-up'!$F$4,$V910-4,0)))","v":""},{"$f":"IF(ISERROR($V910),\"\",OFFSET('Smelter Look-up'!$G$4,$V910-4,0))","v":""},{"$f":"IF(ISERROR($V910),\"\",OFFSET('Smelter Look-up'!$H$4,$V910-4,0))","v":""},{"$f":"IF(ISERROR($V910),\"\",OFFSET('Smelter Look-up'!$I$4,$V910-4,0))","v":""},{"$nulls":7},{"$f":"IF(ISERROR($V910),\"\",OFFSET('Smelter Look-up'!$C$4,$V910-4,0)&\"\")","v":""},"",{"$f":"IF(B910=\"\",\"\",IF(ISERROR(MATCH($J910,SorP!$B$1:$B$5661,0)),\"\",INDIRECT(\"'SorP'!$A$\"&MATCH($J910,SorP!$B$1:$B$5661,0))))","v":""},null,{"$f":"IF(C910=\"\",NA(),MATCH($B910&$C910,'Smelter Look-up'!$J:$J,0))","v":{"$error":"#N/A"}},null,0,null,null,null,""]
[null,{"$f":"IF(LEN(A911)=0,\"\",INDEX('Smelter Look-up'!$A:$A,MATCH($A911,'Smelter Look-up'!$E:$E,0)))","v":""},{"$f":"IF(LEN(A911)=0,\"\",INDEX('Smelter Look-up'!$C:$C,MATCH($A911,'Smelter Look-up'!$E:$E,0)))","v":""},null,{"$f":"IF(ISERROR($V911),\"\",OFFSET('Smelter Look-up'!$D$4,$V911-4,0)&\"\")","v":""},{"$f":"IF(ISERROR($V911),\"\",OFFSET('Smelter Look-up'!$E$4,$V911-4,0))","v":""},{"$f":"IF(C911=$X$4,\"Enter smelter details\",IF(ISERROR($V911),\"\",OFFSET('Smelter Look-up'!$F$4,$V911-4,0)))","v":""},{"$f":"IF(ISERROR($V911),\"\",OFFSET('Smelter Look-up'!$G$4,$V911-4,0))","v":""},{"$f":"IF(ISERROR($V911),\"\",OFFSET('Smelter Look-up'!$H$4,$V911-4,0))","v":""},{"$f":"IF(ISERROR($V911),\"\",OFFSET('Smelter Look-up'!$I$4,$V911-4,0))","v":""},{"$nulls":7},{"$f":"IF(ISERROR($V911),\"\",OFFSET('Smelter Look-up'!$C$4,$V911-4,0)&\"\")","v":""},"",{"$f":"IF(B911=\"\",\"\",IF(ISERROR(MATCH($J911,SorP!$B$1:$B$5661,0)),\"\",INDIRECT(\"'SorP'!$A$\"&MATCH($J911,SorP!$B$1:$B$5661,0))))","v":""},null,{"$f":"IF(C911=\"\",NA(),MATCH($B911&$C911,'Smelter Look-up'!$J:$J,0))","v":{"$error":"#N/A"}},null,0,null,null,null,""]
[null,{"$f":"IF(LEN(A912)=0,\"\",INDEX('Smelter Look-up'!$A:$A,MATCH($A912,'Smelter Look-up'!$E:$E,0)))","v":""},{"$f":"IF(LEN(A912)=0,\"\",INDEX('Smelter Look-up'!$C:$C,MATCH($A912,'Smelter Look-up'!$E:$E,0)))","v":""},null,{"$f":"IF(ISERROR($V912),\"\",OFFSET('Smelter Look-up'!$D$4,$V912-4,0)&\"\")","v":""},{"$f":"IF(ISERROR($V912),\"\",OFFSET('Smelter Look-up'!$E$4,$V912-4,0))","v":""},{"$f":"IF(C912=$X$4,\"Enter smelter details\",IF(ISERROR($V912),\"\",OFFSET('Smelter Look-up'!$F$4,$V912-4,0)))","v":""},{"$f":"IF(ISERROR($V912),\"\",OFFSET('Smelter Look-up'!$G$4,$V912-4,0))","v":""},{"$f":"IF(ISERROR($V912),\"\",OFFSET('Smelter Look-up'!$H$4,$V912-4,0))","v":""},{"$f":"IF(ISERROR($V912),\"\",OFFSET('Smelter Look-up'!$I$4,$V912-4,0))","v":""},{"$nulls":7},{"$f":"IF(ISERROR($V912),\"\",OFFSET('Smelter Look-up'!$C$4,$V912-4,0)&\"\")","v":""},"",{"$f":"IF(B912=\"\",\"\",IF(ISERROR(MATCH($J912,SorP!$B$1:$B$5661,0)),\"\",INDIRECT(\"'SorP'!$A$\"&MATCH($J912,SorP!$B$1:$B$5661,0))))","v":""},null,{"$f":"IF(C912=\"\",NA(),MATCH($B912&$C912,'Smelter Look-up'!$J:$J,0))","v":{"$error":"#N/A"}},null,0,null,null,null,""]
[null,{"$f":"IF(LEN(A913)=0,\"\",INDEX('Smelter Look-up'!$A:$A,MATCH($A913,'Smelter Look-up'!$E:$E,0)))","v":""},{"$f":"IF(LEN(A913)=0,\"\",INDEX('Smelter Look-up'!$C:$C,MATCH($A913,'Smelter Look-up'!$E:$E,0)))","v":""},null,{"$f":"IF(ISERROR($V913),\"\",OFFSET('Smelter Look-up'!$D$4,$V913-4,0)&\"\")","v":""},{"$f":"IF(ISERROR($V913),\"\",OFFSET('Smelter Look-up'!$E$4,$V913-4,0))","v":""},{"$f":"IF(C913=$X$4,\"Enter smelter details\",IF(ISERROR($V913),\"\",OFFSET('Smelter Look-up'!$F$4,$V913-4,0)))","v":""},{"$f":"IF(ISERROR($V913),\"\",OFFSET('Smelter Look-up'!$G$4,$V913-4,0))","v":""},{"$f":"IF(ISERROR($V913),\"\",OFFSET('Smelter Look-up'!$H$4,$V913-4,0))","v":""},{"$f":"IF(ISERROR($V913),\"\",OFFSET('Smelter Look-up'!$I$4,$V913-4,0))","v":""},{"$nulls":7},{"$f":"IF(ISERROR($V913),\"\",OFFSET('Smelter Look-up'!$C$4,$V913-4,0)&\"\")","v":""},"",{"$f":"IF(B913=\"\",\"\",IF(ISERROR(MATCH($J913,SorP!$B$1:$B$5661,0)),\"\",INDIRECT(\"'SorP'!$A$\"&MATCH($J913,SorP!$B$1:$B$5661,0))))","v":""},null,{"$f":"IF(C913=\"\",NA(),MATCH($B913&$C913,'Smelter Look-up'!$J:$J,0))","v":{"$error":"#N/A"}},null,0,null,null,null,""]
[null,{"$f":"IF(LEN(A914)=0,\"\",INDEX('Smelter Look-up'!$A:$A,MATCH($A914,'Smelter Look-up'!$E:$E,0)))","v":""},{"$f":"IF(LEN(A914)=0,\"\",INDEX('Smelter Look-up'!$C:$C,MATCH($A914,'Smelter Look-up'!$E:$E,0)))","v":""},null,{"$f":"IF(ISERROR($V914),\"\",OFFSET('Smelter Look-up'!$D$4,$V914-4,0)&\"\")","v":""},{"$f":"IF(ISERROR($V914),\"\",OFFSET('Smelter Look-up'!$E$4,$V914-4,0))","v":""},{"$f":"IF(C914=$X$4,\"Enter smelter details\",IF(ISERROR($V914),\"\",OFFSET('Smelter Look-up'!$F$4,$V914-4,0)))","v":""},{"$f":"IF(ISERROR($V914),\"\",OFFSET('Smelter Look-up'!$G$4,$V914-4,0))","v":""},{"$f":"IF(ISERROR($V914),\"\",OFFSET('Smelter Look-up'!$H$4,$V914-4,0))","v":""},{"$f":"IF(ISERROR($V914),\"\",OFFSET('Smelter Look-up'!$I$4,$V914-4,0))","v":""},{"$nulls":7},{"$f":"IF(ISERROR($V914),\"\",OFFSET('Smelter Look-up'!$C$4,$V914-4,0)&\"\")","v":""},"",{"$f":"IF(B914=\"\",\"\",IF(ISERROR(MATCH($J914,SorP!$B$1:$B$5661,0)),\"\",INDIRECT(\"'SorP'!$A$\"&MATCH($J914,SorP!$B$1:$B$5661,0))))","v":""},null,{"$f":"IF(C914=\"\",NA(),MATCH($B914&$C914,'Smelter Look-up'!$J:$J,0))","v":{"$error":"#N/A"}},null,0,null,null,null,""]
[null,{"$f":"IF(LEN(A915)=0,\"\",INDEX('Smelter Look-up'!$A:$A,MATCH($A915,'Smelter Look-up'!$E:$E,0)))","v":""},{"$f":"IF(LEN(A915)=0,\"\",INDEX('Smelter Look-up'!$C:$C,MATCH($A915,'Smelter Look-up'!$E:$E,0)))","v":""},null,{"$f":"IF(ISERROR($V915),\"\",OFFSET('Smelter Look-up'!$D$4,$V915-4,0)&\"\")","v":""},{"$f":"IF(ISERROR($V915),\"\",OFFSET('Smelter Look-up'!$E$4,$V915-4,0))","v":""},{"$f":"IF(C915=$X$4,\"Enter smelter details\",IF(ISERROR($V915),\"\",OFFSET('Smelter Look-up'!$F$4,$V915-4,0)))","v":""},{"$f":"IF(ISERROR($V915),\"\",OFFSET('Smelter Look-up'!$G$4,$V915-4,0))","v":""},{"$f":"IF(ISERROR($V915),\"\",OFFSET('Smelter Look-up'!$H$4,$V915-4,0))","v":""},{"$f":"IF(ISERROR($V915),\"\",OFFSET('Smelter Look-up'!$I$4,$V915-4,0))","v":""},{"$nulls":7},{"$f":"IF(ISERROR($V915),\"\",OFFSET('Smelter Look-up'!$C$4,$V915-4,0)&\"\")","v":""},"",{"$f":"IF(B915=\"\",\"\",IF(ISERROR(MATCH($J915,SorP!$B$1:$B$5661,0)),\"\",INDIRECT(\"'SorP'!$A$\"&MATCH($J915,SorP!$B$1:$B$5661,0))))","v":""},null,{"$f":"IF(C915=\"\",NA(),MATCH($B915&$C915,'Smelter Look-up'!$J:$J,0))","v":{"$error":"#N/A"}},null,0,null,null,null,""]
[null,{"$f":"IF(LEN(A916)=0,\"\",INDEX('Smelter Look-up'!$A:$A,MATCH($A916,'Smelter Look-up'!$E:$E,0)))","v":""},{"$f":"IF(LEN(A916)=0,\"\",INDEX('Smelter Look-up'!$C:$C,MATCH($A916,'Smelter Look-up'!$E:$E,0)))","v":""},null,{"$f":"IF(ISERROR($V916),\"\",OFFSET('Smelter Look-up'!$D$4,$V916-4,0)&\"\")","v":""},{"$f":"IF(ISERROR($V916),\"\",OFFSET('Smelter Look-up'!$E$4,$V916-4,0))","v":""},{"$f":"IF(C916=$X$4,\"Enter smelter details\",IF(ISERROR($V916),\"\",OFFSET('Smelter Look-up'!$F$4,$V916-4,0)))","v":""},{"$f":"IF(ISERROR($V916),\"\",OFFSET('Smelter Look-up'!$G$4,$V916-4,0))","v":""},{"$f":"IF(ISERROR($V916),\"\",OFFSET('Smelter Look-up'!$H$4,$V916-4,0))","v":""},{"$f":"IF(ISERROR($V916),\"\",OFFSET('Smelter Look-up'!$I$4,$V916-4,0))","v":""},{"$nulls":7},{"$f":"IF(ISERROR($V916),\"\",OFFSET('Smelter Look-up'!$C$4,$V916-4,0)&\"\")","v":""},"",{"$f":"IF(B916=\"\",\"\",IF(ISERROR(MATCH($J916,SorP!$B$1:$B$5661,0)),\"\",INDIRECT(\"'SorP'!$A$\"&MATCH($J916,SorP!$B$1:$B$5661,0))))","v":""},null,{"$f":"IF(C916=\"\",NA(),MATCH($B916&$C916,'Smelter Look-up'!$J:$J,0))","v":{"$error":"#N/A"}},null,0,null,null,null,""]
[null,{"$f":"IF(LEN(A917)=0,\"\",INDEX('Smelter Look-up'!$A:$A,MATCH($A917,'Smelter Look-up'!$E:$E,0)))","v":""},{"$f":"IF(LEN(A917)=0,\"\",INDEX('Smelter Look-up'!$C:$C,MATCH($A917,'Smelter Look-up'!$E:$E,0)))","v":""},null,{"$f":"IF(ISERROR($V917),\"\",OFFSET('Smelter Look-up'!$D$4,$V917-4,0)&\"\")","v":""},{"$f":"IF(ISERROR($V917),\"\",OFFSET('Smelter Look-up'!$E$4,$V917-4,0))","v":""},{"$f":"IF(C917=$X$4,\"Enter smelter details\",IF(ISERROR($V917),\"\",OFFSET('Smelter Look-up'!$F$4,$V917-4,0)))","v":""},{"$f":"IF(ISERROR($V917),\"\",OFFSET('Smelter Look-up'!$G$4,$V917-4,0))","v":""},{"$f":"IF(ISERROR($V917),\"\",OFFSET('Smelter Look-up'!$H$4,$V917-4,0))","v":""},{"$f":"IF(ISERROR($V917),\"\",OFFSET('Smelter Look-up'!$I$4,$V917-4,0))","v":""},{"$nulls":7},{"$f":"IF(ISERROR($V917),\"\",OFFSET('Smelter Look-up'!$C$4,$V917-4,0)&\"\")","v":""},"",{"$f":"IF(B917=\"\",\"\",IF(ISERROR(MATCH($J917,SorP!$B$1:$B$5661,0)),\"\",INDIRECT(\"'SorP'!$A$\"&MATCH($J917,SorP!$B$1:$B$5661,0))))","v":""},null,{"$f":"IF(C917=\"\",NA(),MATCH($B917&$C917,'Smelter Look-up'!$J:$J,0))","v":{"$error":"#N/A"}},null,0,null,null,null,""]
[null,{"$f":"IF(LEN(A918)=0,\"\",INDEX('Smelter Look-up'!$A:$A,MATCH($A918,'Smelter Look-up'!$E:$E,0)))","v":""},{"$f":"IF(LEN(A918)=0,\"\",INDEX('Smelter Look-up'!$C:$C,MATCH($A918,'Smelter Look-up'!$E:$E,0)))","v":""},null,{"$f":"IF(ISERROR($V918),\"\",OFFSET('Smelter Look-up'!$D$4,$V918-4,0)&\"\")","v":""},{"$f":"IF(ISERROR($V918),\"\",OFFSET('Smelter Look-up'!$E$4,$V918-4,0))","v":""},{"$f":"IF(C918=$X$4,\"Enter smelter details\",IF(ISERROR($V918),\"\",OFFSET('Smelter Look-up'!$F$4,$V918-4,0)))","v":""},{"$f":"IF(ISERROR($V918),\"\",OFFSET('Smelter Look-up'!$G$4,$V918-4,0))","v":""},{"$f":"IF(ISERROR($V918),\"\",OFFSET('Smelter Look-up'!$H$4,$V918-4,0))","v":""},{"$f":"IF(ISERROR($V918),\"\",OFFSET('Smelter Look-up'!$I$4,$V918-4,0))","v":""},{"$nulls":7},{"$f":"IF(ISERROR($V918),\"\",OFFSET('Smelter Look-up'!$C$4,$V918-4,0)&\"\")","v":""},"",{"$f":"IF(B918=\"\",\"\",IF(ISERROR(MATCH($J918,SorP!$B$1:$B$5661,0)),\"\",INDIRECT(\"'SorP'!$A$\"&MATCH($J918,SorP!$B$1:$B$5661,0))))","v":""},null,{"$f":"IF(C918=\"\",NA(),MATCH($B918&$C918,'Smelter Look-up'!$J:$J,0))","v":{"$error":"#N/A"}},null,0,null,null,null,""]
[null,{"$f":"IF(LEN(A919)=0,\"\",INDEX('Smelter Look-up'!$A:$A,MATCH($A919,'Smelter Look-up'!$E:$E,0)))","v":""},{"$f":"IF(LEN(A919)=0,\"\",INDEX('Smelter Look-up'!$C:$C,MATCH($A919,'Smelter Look-up'!$E:$E,0)))","v":""},null,{"$f":"IF(ISERROR($V919),\"\",OFFSET('Smelter Look-up'!$D$4,$V919-4,0)&\"\")","v":""},{"$f":"IF(ISERROR($V919),\"\",OFFSET('Smelter Look-up'!$E$4,$V919-4,0))","v":""},{"$f":"IF(C919=$X$4,\"Enter smelter details\",IF(ISERROR($V919),\"\",OFFSET('Smelter Look-up'!$F$4,$V919-4,0)))","v":""},{"$f":"IF(ISERROR($V919),\"\",OFFSET('Smelter Look-up'!$G$4,$V919-4,0))","v":""},{"$f":"IF(ISERROR($V919),\"\",OFFSET('Smelter Look-up'!$H$4,$V919-4,0))","v":""},{"$f":"IF(ISERROR($V919),\"\",OFFSET('Smelter Look-up'!$I$4,$V919-4,0))","v":""},{"$nulls":7},{"$f":"IF(ISERROR($V919),\"\",OFFSET('Smelter Look-up'!$C$4,$V919-4,0)&\"\")","v":""},"",{"$f":"IF(B919=\"\",\"\",IF(ISERROR(MATCH($J919,SorP!$B$1:$B$5661,0)),\"\",INDIRECT(\"'SorP'!$A$\"&MATCH($J919,SorP!$B$1:$B$5661,0))))","v":""},null,{"$f":"IF(C919=\"\",NA(),MATCH($B919&$C919,'Smelter Look-up'!$J:$J,0))","v":{"$error":"#N/A"}},null,0,null,null,null,""]
[null,{"$f":"IF(LEN(A920)=0,\"\",INDEX('Smelter Look-up'!$A:$A,MATCH($A920,'Smelter Look-up'!$E:$E,0)))","v":""},{"$f":"IF(LEN(A920)=0,\"\",INDEX('Smelter Look-up'!$C:$C,MATCH($A920,'Smelter Look-up'!$E:$E,0)))","v":""},null,{"$f":"IF(ISERROR($V920),\"\",OFFSET('Smelter Look-up'!$D$4,$V920-4,0)&\"\")","v":""},{"$f":"IF(ISERROR($V920),\"\",OFFSET('Smelter Look-up'!$E$4,$V920-4,0))","v":""},{"$f":"IF(C920=$X$4,\"Enter smelter details\",IF(ISERROR($V920),\"\",OFFSET('Smelter Look-up'!$F$4,$V920-4,0)))","v":""},{"$f":"IF(ISERROR($V920),\"\",OFFSET('Smelter Look-up'!$G$4,$V920-4,0))","v":""},{"$f":"IF(ISERROR($V920),\"\",OFFSET('Smelter Look-up'!$H$4,$V920-4,0))","v":""},{"$f":"IF(ISERROR($V920),\"\",OFFSET('Smelter Look-up'!$I$4,$V920-4,0))","v":""},{"$nulls":7},{"$f":"IF(ISERROR($V920),\"\",OFFSET('Smelter Look-up'!$C$4,$V920-4,0)&\"\")","v":""},"",{"$f":"IF(B920=\"\",\"\",IF(ISERROR(MATCH($J920,SorP!$B$1:$B$5661,0)),\"\",INDIRECT(\"'SorP'!$A$\"&MATCH($J920,SorP!$B$1:$B$5661,0))))","v":""},null,{"$f":"IF(C920=\"\",NA(),MATCH($B920&$C920,'Smelter Look-up'!$J:$J,0))","v":{"$error":"#N/A"}},null,0,null,null,null,""]
[null,{"$f":"IF(LEN(A921)=0,\"\",INDEX('Smelter Look-up'!$A:$A,MATCH($A921,'Smelter Look-up'!$E:$E,0)))","v":""},{"$f":"IF(LEN(A921)=0,\"\",INDEX('Smelter Look-up'!$C:$C,MATCH($A921,'Smelter Look-up'!$E:$E,0)))","v":""},null,{"$f":"IF(ISERROR($V921),\"\",OFFSET('Smelter Look-up'!$D$4,$V921-4,0)&\"\")","v":""},{"$f":"IF(ISERROR($V921),\"\",OFFSET('Smelter Look-up'!$E$4,$V921-4,0))","v":""},{"$f":"IF(C921=$X$4,\"Enter smelter details\",IF(ISERROR($V921),\"\",OFFSET('Smelter Look-up'!$F$4,$V921-4,0)))","v":""},{"$f":"IF(ISERROR($V921),\"\",OFFSET('Smelter Look-up'!$G$4,$V921-4,0))","v":""},{"$f":"IF(ISERROR($V921),\"\",OFFSET('Smelter Look-up'!$H$4,$V921-4,0))","v":""},{"$f":"IF(ISERROR($V921),\"\",OFFSET('Smelter Look-up'!$I$4,$V921-4,0))","v":""},{"$nulls":7},{"$f":"IF(ISERROR($V921),\"\",OFFSET('Smelter Look-up'!$C$4,$V921-4,0)&\"\")","v":""},"",{"$f":"IF(B921=\"\",\"\",IF(ISERROR(MATCH($J921,SorP!$B$1:$B$5661,0)),\"\",INDIRECT(\"'SorP'!$A$\"&MATCH($J921,SorP!$B$1:$B$5661,0))))","v":""},null,{"$f":"IF(C921=\"\",NA(),MATCH($B921&$C921,'Smelter Look-up'!$J:$J,0))","v":{"$error":"#N/A"}},null,0,null,null,null,""]
[null,{"$f":"IF(LEN(A922)=0,\"\",INDEX('Smelter Look-up'!$A:$A,MATCH($A922,'Smelter Look-up'!$E:$E,0)))","v":""},{"$f":"IF(LEN(A922)=0,\"\",INDEX('Smelter Look-up'!$C:$C,MATCH($A922,'Smelter Look-up'!$E:$E,0)))","v":""},null,{"$f":"IF(ISERROR($V922),\"\",OFFSET('Smelter Look-up'!$D$4,$V922-4,0)&\"\")","v":""},{"$f":"IF(ISERROR($V922),\"\",OFFSET('Smelter Look-up'!$E$4,$V922-4,0))","v":""},{"$f":"IF(C922=$X$4,\"Enter smelter details\",IF(ISERROR($V922),\"\",OFFSET('Smelter Look-up'!$F$4,$V922-4,0)))","v":""},{"$f":"IF(ISERROR($V922),\"\",OFFSET('Smelter Look-up'!$G$4,$V922-4,0))","v":""},{"$f":"IF(ISERROR($V922),\"\",OFFSET('Smelter Look-up'!$H$4,$V922-4,0))","v":""},{"$f":"IF(ISERROR($V922),\"\",OFFSET('Smelter Look-up'!$I$4,$V922-4,0))","v":""},{"$nulls":7},{"$f":"IF(ISERROR($V922),\"\",OFFSET('Smelter Look-up'!$C$4,$V922-4,0)&\"\")","v":""},"",{"$f":"IF(B922=\"\",\"\",IF(ISERROR(MATCH($J922,SorP!$B$1:$B$5661,0)),\"\",INDIRECT(\"'SorP'!$A$\"&MATCH($J922,SorP!$B$1:$B$5661,0))))","v":""},null,{"$f":"IF(C922=\"\",NA(),MATCH($B922&$C922,'Smelter Look-up'!$J:$J,0))","v":{"$error":"#N/A"}},null,0,null,null,null,""]
[null,{"$f":"IF(LEN(A923)=0,\"\",INDEX('Smelter Look-up'!$A:$A,MATCH($A923,'Smelter Look-up'!$E:$E,0)))","v":""},{"$f":"IF(LEN(A923)=0,\"\",INDEX('Smelter Look-up'!$C:$C,MATCH($A923,'Smelter Look-up'!$E:$E,0)))","v":""},null,{"$f":"IF(ISERROR($V923),\"\",OFFSET('Smelter Look-up'!$D$4,$V923-4,0)&\"\")","v":""},{"$f":"IF(ISERROR($V923),\"\",OFFSET('Smelter Look-up'!$E$4,$V923-4,0))","v":""},{"$f":"IF(C923=$X$4,\"Enter smelter details\",IF(ISERROR($V923),\"\",OFFSET('Smelter Look-up'!$F$4,$V923-4,0)))","v":""},{"$f":"IF(ISERROR($V923),\"\",OFFSET('Smelter Look-up'!$G$4,$V923-4,0))","v":""},{"$f":"IF(ISERROR($V923),\"\",OFFSET('Smelter Look-up'!$H$4,$V923-4,0))","v":""},{"$f":"IF(ISERROR($V923),\"\",OFFSET('Smelter Look-up'!$I$4,$V923-4,0))","v":""},{"$nulls":7},{"$f":"IF(ISERROR($V923),\"\",OFFSET('Smelter Look-up'!$C$4,$V923-4,0)&\"\")","v":""},"",{"$f":"IF(B923=\"\",\"\",IF(ISERROR(MATCH($J923,SorP!$B$1:$B$5661,0)),\"\",INDIRECT(\"'SorP'!$A$\"&MATCH($J923,SorP!$B$1:$B$5661,0))))","v":""},null,{"$f":"IF(C923=\"\",NA(),MATCH($B923&$C923,'Smelter Look-up'!$J:$J,0))","v":{"$error":"#N/A"}},null,0,null,null,null,""]
[null,{"$f":"IF(LEN(A924)=0,\"\",INDEX('Smelter Look-up'!$A:$A,MATCH($A924,'Smelter Look-up'!$E:$E,0)))","v":""},{"$f":"IF(LEN(A924)=0,\"\",INDEX('Smelter Look-up'!$C:$C,MATCH($A924,'Smelter Look-up'!$E:$E,0)))","v":""},null,{"$f":"IF(ISERROR($V924),\"\",OFFSET('Smelter Look-up'!$D$4,$V924-4,0)&\"\")","v":""},{"$f":"IF(ISERROR($V924),\"\",OFFSET('Smelter Look-up'!$E$4,$V924-4,0))","v":""},{"$f":"IF(C924=$X$4,\"Enter smelter details\",IF(ISERROR($V924),\"\",OFFSET('Smelter Look-up'!$F$4,$V924-4,0)))","v":""},{"$f":"IF(ISERROR($V924),\"\",OFFSET('Smelter Look-up'!$G$4,$V924-4,0))","v":""},{"$f":"IF(ISERROR($V924),\"\",OFFSET('Smelter Look-up'!$H$4,$V924-4,0))","v":""},{"$f":"IF(ISERROR($V924),\"\",OFFSET('Smelter Look-up'!$I$4,$V924-4,0))","v":""},{"$nulls":7},{"$f":"IF(ISERROR($V924),\"\",OFFSET('Smelter Look-up'!$C$4,$V924-4,0)&\"\")","v":""},"",{"$f":"IF(B924=\"\",\"\",IF(ISERROR(MATCH($J924,SorP!$B$1:$B$5661,0)),\"\",INDIRECT(\"'SorP'!$A$\"&MATCH($J924,SorP!$B$1:$B$5661,0))))","v":""},null,{"$f":"IF(C924=\"\",NA(),MATCH($B924&$C924,'Smelter Look-up'!$J:$J,0))","v":{"$error":"#N/A"}},null,0,null,null,null,""]
[null,{"$f":"IF(LEN(A925)=0,\"\",INDEX('Smelter Look-up'!$A:$A,MATCH($A925,'Smelter Look-up'!$E:$E,0)))","v":""},{"$f":"IF(LEN(A925)=0,\"\",INDEX('Smelter Look-up'!$C:$C,MATCH($A925,'Smelter Look-up'!$E:$E,0)))","v":""},null,{"$f":"IF(ISERROR($V925),\"\",OFFSET('Smelter Look-up'!$D$4,$V925-4,0)&\"\")","v":""},{"$f":"IF(ISERROR($V925),\"\",OFFSET('Smelter Look-up'!$E$4,$V925-4,0))","v":""},{"$f":"IF(C925=$X$4,\"Enter smelter details\",IF(ISERROR($V925),\"\",OFFSET('Smelter Look-up'!$F$4,$V925-4,0)))","v":""},{"$f":"IF(ISERROR($V925),\"\",OFFSET('Smelter Look-up'!$G$4,$V925-4,0))","v":""},{"$f":"IF(ISERROR($V925),\"\",OFFSET('Smelter Look-up'!$H$4,$V925-4,0))","v":""},{"$f":"IF(ISERROR($V925),\"\",OFFSET('Smelter Look-up'!$I$4,$V925-4,0))","v":""},{"$nulls":7},{"$f":"IF(ISERROR($V925),\"\",OFFSET('Smelter Look-up'!$C$4,$V925-4,0)&\"\")","v":""},"",{"$f":"IF(B925=\"\",\"\",IF(ISERROR(MATCH($J925,SorP!$B$1:$B$5661,0)),\"\",INDIRECT(\"'SorP'!$A$\"&MATCH($J925,SorP!$B$1:$B$5661,0))))","v":""},null,{"$f":"IF(C925=\"\",NA(),MATCH($B925&$C925,'Smelter Look-up'!$J:$J,0))","v":{"$error":"#N/A"}},null,0,null,null,null,""]
[null,{"$f":"IF(LEN(A926)=0,\"\",INDEX('Smelter Look-up'!$A:$A,MATCH($A926,'Smelter Look-up'!$E:$E,0)))","v":""},{"$f":"IF(LEN(A926)=0,\"\",INDEX('Smelter Look-up'!$C:$C,MATCH($A926,'Smelter Look-up'!$E:$E,0)))","v":""},null,{"$f":"IF(ISERROR($V926),\"\",OFFSET('Smelter Look-up'!$D$4,$V926-4,0)&\"\")","v":""},{"$f":"IF(ISERROR($V926),\"\",OFFSET('Smelter Look-up'!$E$4,$V926-4,0))","v":""},{"$f":"IF(C926=$X$4,\"Enter smelter details\",IF(ISERROR($V926),\"\",OFFSET('Smelter Look-up'!$F$4,$V926-4,0)))","v":""},{"$f":"IF(ISERROR($V926),\"\",OFFSET('Smelter Look-up'!$G$4,$V926-4,0))","v":""},{"$f":"IF(ISERROR($V926),\"\",OFFSET('Smelter Look-up'!$H$4,$V926-4,0))","v":""},{"$f":"IF(ISERROR($V926),\"\",OFFSET('Smelter Look-up'!$I$4,$V926-4,0))","v":""},{"$nulls":7},{"$f":"IF(ISERROR($V926),\"\",OFFSET('Smelter Look-up'!$C$4,$V926-4,0)&\"\")","v":""},"",{"$f":"IF(B926=\"\",\"\",IF(ISERROR(MATCH($J926,SorP!$B$1:$B$5661,0)),\"\",INDIRECT(\"'SorP'!$A$\"&MATCH($J926,SorP!$B$1:$B$5661,0))))","v":""},null,{"$f":"IF(C926=\"\",NA(),MATCH($B926&$C926,'Smelter Look-up'!$J:$J,0))","v":{"$error":"#N/A"}},null,0,null,null,null,""]
[null,{"$f":"IF(LEN(A927)=0,\"\",INDEX('Smelter Look-up'!$A:$A,MATCH($A927,'Smelter Look-up'!$E:$E,0)))","v":""},{"$f":"IF(LEN(A927)=0,\"\",INDEX('Smelter Look-up'!$C:$C,MATCH($A927,'Smelter Look-up'!$E:$E,0)))","v":""},null,{"$f":"IF(ISERROR($V927),\"\",OFFSET('Smelter Look-up'!$D$4,$V927-4,0)&\"\")","v":""},{"$f":"IF(ISERROR($V927),\"\",OFFSET('Smelter Look-up'!$E$4,$V927-4,0))","v":""},{"$f":"IF(C927=$X$4,\"Enter smelter details\",IF(ISERROR($V927),\"\",OFFSET('Smelter Look-up'!$F$4,$V927-4,0)))","v":""},{"$f":"IF(ISERROR($V927),\"\",OFFSET('Smelter Look-up'!$G$4,$V927-4,0))","v":""},{"$f":"IF(ISERROR($V927),\"\",OFFSET('Smelter Look-up'!$H$4,$V927-4,0))","v":""},{"$f":"IF(ISERROR($V927),\"\",OFFSET('Smelter Look-up'!$I$4,$V927-4,0))","v":""},{"$nulls":7},{"$f":"IF(ISERROR($V927),\"\",OFFSET('Smelter Look-up'!$C$4,$V927-4,0)&\"\")","v":""},"",{"$f":"IF(B927=\"\",\"\",IF(ISERROR(MATCH($J927,SorP!$B$1:$B$5661,0)),\"\",INDIRECT(\"'SorP'!$A$\"&MATCH($J927,SorP!$B$1:$B$5661,0))))","v":""},null,{"$f":"IF(C927=\"\",NA(),MATCH($B927&$C927,'Smelter Look-up'!$J:$J,0))","v":{"$error":"#N/A"}},null,0,null,null,null,""]
[null,{"$f":"IF(LEN(A928)=0,\"\",INDEX('Smelter Look-up'!$A:$A,MATCH($A928,'Smelter Look-up'!$E:$E,0)))","v":""},{"$f":"IF(LEN(A928)=0,\"\",INDEX('Smelter Look-up'!$C:$C,MATCH($A928,'Smelter Look-up'!$E:$E,0)))","v":""},null,{"$f":"IF(ISERROR($V928),\"\",OFFSET('Smelter Look-up'!$D$4,$V928-4,0)&\"\")","v":""},{"$f":"IF(ISERROR($V928),\"\",OFFSET('Smelter Look-up'!$E$4,$V928-4,0))","v":""},{"$f":"IF(C928=$X$4,\"Enter smelter details\",IF(ISERROR($V928),\"\",OFFSET('Smelter Look-up'!$F$4,$V928-4,0)))","v":""},{"$f":"IF(ISERROR($V928),\"\",OFFSET('Smelter Look-up'!$G$4,$V928-4,0))","v":""},{"$f":"IF(ISERROR($V928),\"\",OFFSET('Smelter Look-up'!$H$4,$V928-4,0))","v":""},{"$f":"IF(ISERROR($V928),\"\",OFFSET('Smelter Look-up'!$I$4,$V928-4,0))","v":""},{"$nulls":7},{"$f":"IF(ISERROR($V928),\"\",OFFSET('Smelter Look-up'!$C$4,$V928-4,0)&\"\")","v":""},"",{"$f":"IF(B928=\"\",\"\",IF(ISERROR(MATCH($J928,SorP!$B$1:$B$5661,0)),\"\",INDIRECT(\"'SorP'!$A$\"&MATCH($J928,SorP!$B$1:$B$5661,0))))","v":""},null,{"$f":"IF(C928=\"\",NA(),MATCH($B928&$C928,'Smelter Look-up'!$J:$J,0))","v":{"$error":"#N/A"}},null,0,null,null,null,""]
[null,{"$f":"IF(LEN(A929)=0,\"\",INDEX('Smelter Look-up'!$A:$A,MATCH($A929,'Smelter Look-up'!$E:$E,0)))","v":""},{"$f":"IF(LEN(A929)=0,\"\",INDEX('Smelter Look-up'!$C:$C,MATCH($A929,'Smelter Look-up'!$E:$E,0)))","v":""},null,{"$f":"IF(ISERROR($V929),\"\",OFFSET('Smelter Look-up'!$D$4,$V929-4,0)&\"\")","v":""},{"$f":"IF(ISERROR($V929),\"\",OFFSET('Smelter Look-up'!$E$4,$V929-4,0))","v":""},{"$f":"IF(C929=$X$4,\"Enter smelter details\",IF(ISERROR($V929),\"\",OFFSET('Smelter Look-up'!$F$4,$V929-4,0)))","v":""},{"$f":"IF(ISERROR($V929),\"\",OFFSET('Smelter Look-up'!$G$4,$V929-4,0))","v":""},{"$f":"IF(ISERROR($V929),\"\",OFFSET('Smelter Look-up'!$H$4,$V929-4,0))","v":""},{"$f":"IF(ISERROR($V929),\"\",OFFSET('Smelter Look-up'!$I$4,$V929-4,0))","v":""},{"$nulls":7},{"$f":"IF(ISERROR($V929),\"\",OFFSET('Smelter Look-up'!$C$4,$V929-4,0)&\"\")","v":""},"",{"$f":"IF(B929=\"\",\"\",IF(ISERROR(MATCH($J929,SorP!$B$1:$B$5661,0)),\"\",INDIRECT(\"'SorP'!$A$\"&MATCH($J929,SorP!$B$1:$B$5661,0))))","v":""},null,{"$f":"IF(C929=\"\",NA(),MATCH($B929&$C929,'Smelter Look-up'!$J:$J,0))","v":{"$error":"#N/A"}},null,0,null,null,null,""]
[null,{"$f":"IF(LEN(A930)=0,\"\",INDEX('Smelter Look-up'!$A:$A,MATCH($A930,'Smelter Look-up'!$E:$E,0)))","v":""},{"$f":"IF(LEN(A930)=0,\"\",INDEX('Smelter Look-up'!$C:$C,MATCH($A930,'Smelter Look-up'!$E:$E,0)))","v":""},null,{"$f":"IF(ISERROR($V930),\"\",OFFSET('Smelter Look-up'!$D$4,$V930-4,0)&\"\")","v":""},{"$f":"IF(ISERROR($V930),\"\",OFFSET('Smelter Look-up'!$E$4,$V930-4,0))","v":""},{"$f":"IF(C930=$X$4,\"Enter smelter details\",IF(ISERROR($V930),\"\",OFFSET('Smelter Look-up'!$F$4,$V930-4,0)))","v":""},{"$f":"IF(ISERROR($V930),\"\",OFFSET('Smelter Look-up'!$G$4,$V930-4,0))","v":""},{"$f":"IF(ISERROR($V930),\"\",OFFSET('Smelter Look-up'!$H$4,$V930-4,0))","v":""},{"$f":"IF(ISERROR($V930),\"\",OFFSET('Smelter Look-up'!$I$4,$V930-4,0))","v":""},{"$nulls":7},{"$f":"IF(ISERROR($V930),\"\",OFFSET('Smelter Look-up'!$C$4,$V930-4,0)&\"\")","v":""},"",{"$f":"IF(B930=\"\",\"\",IF(ISERROR(MATCH($J930,SorP!$B$1:$B$5661,0)),\"\",INDIRECT(\"'SorP'!$A$\"&MATCH($J930,SorP!$B$1:$B$5661,0))))","v":""},null,{"$f":"IF(C930=\"\",NA(),MATCH($B930&$C930,'Smelter Look-up'!$J:$J,0))","v":{"$error":"#N/A"}},null,0,null,null,null,""]
[null,{"$f":"IF(LEN(A931)=0,\"\",INDEX('Smelter Look-up'!$A:$A,MATCH($A931,'Smelter Look-up'!$E:$E,0)))","v":""},{"$f":"IF(LEN(A931)=0,\"\",INDEX('Smelter Look-up'!$C:$C,MATCH($A931,'Smelter Look-up'!$E:$E,0)))","v":""},null,{"$f":"IF(ISERROR($V931),\"\",OFFSET('Smelter Look-up'!$D$4,$V931-4,0)&\"\")","v":""},{"$f":"IF(ISERROR($V931),\"\",OFFSET('Smelter Look-up'!$E$4,$V931-4,0))","v":""},{"$f":"IF(C931=$X$4,\"Enter smelter details\",IF(ISERROR($V931),\"\",OFFSET('Smelter Look-up'!$F$4,$V931-4,0)))","v":""},{"$f":"IF(ISERROR($V931),\"\",OFFSET('Smelter Look-up'!$G$4,$V931-4,0))","v":""},{"$f":"IF(ISERROR($V931),\"\",OFFSET('Smelter Look-up'!$H$4,$V931-4,0))","v":""},{"$f":"IF(ISERROR($V931),\"\",OFFSET('Smelter Look-up'!$I$4,$V931-4,0))","v":""},{"$nulls":7},{"$f":"IF(ISERROR($V931),\"\",OFFSET('Smelter Look-up'!$C$4,$V931-4,0)&\"\")","v":""},"",{"$f":"IF(B931=\"\",\"\",IF(ISERROR(MATCH($J931,SorP!$B$1:$B$5661,0)),\"\",INDIRECT(\"'SorP'!$A$\"&MATCH($J931,SorP!$B$1:$B$5661,0))))","v":""},null,{"$f":"IF(C931=\"\",NA(),MATCH($B931&$C931,'Smelter Look-up'!$J:$J,0))","v":{"$error":"#N/A"}},null,0,null,null,null,""]
[null,{"$f":"IF(LEN(A932)=0,\"\",INDEX('Smelter Look-up'!$A:$A,MATCH($A932,'Smelter Look-up'!$E:$E,0)))","v":""},{"$f":"IF(LEN(A932)=0,\"\",INDEX('Smelter Look-up'!$C:$C,MATCH($A932,'Smelter Look-up'!$E:$E,0)))","v":""},null,{"$f":"IF(ISERROR($V932),\"\",OFFSET('Smelter Look-up'!$D$4,$V932-4,0)&\"\")","v":""},{"$f":"IF(ISERROR($V932),\"\",OFFSET('Smelter Look-up'!$E$4,$V932-4,0))","v":""},{"$f":"IF(C932=$X$4,\"Enter smelter details\",IF(ISERROR($V932),\"\",OFFSET('Smelter Look-up'!$F$4,$V932-4,0)))","v":""},{"$f":"IF(ISERROR($V932),\"\",OFFSET('Smelter Look-up'!$G$4,$V932-4,0))","v":""},{"$f":"IF(ISERROR($V932),\"\",OFFSET('Smelter Look-up'!$H$4,$V932-4,0))","v":""},{"$f":"IF(ISERROR($V932),\"\",OFFSET('Smelter Look-up'!$I$4,$V932-4,0))","v":""},{"$nulls":7},{"$f":"IF(ISERROR($V932),\"\",OFFSET('Smelter Look-up'!$C$4,$V932-4,0)&\"\")","v":""},"",{"$f":"IF(B932=\"\",\"\",IF(ISERROR(MATCH($J932,SorP!$B$1:$B$5661,0)),\"\",INDIRECT(\"'SorP'!$A$\"&MATCH($J932,SorP!$B$1:$B$5661,0))))","v":""},null,{"$f":"IF(C932=\"\",NA(),MATCH($B932&$C932,'Smelter Look-up'!$J:$J,0))","v":{"$error":"#N/A"}},null,0,null,null,null,""]
[null,{"$f":"IF(LEN(A933)=0,\"\",INDEX('Smelter Look-up'!$A:$A,MATCH($A933,'Smelter Look-up'!$E:$E,0)))","v":""},{"$f":"IF(LEN(A933)=0,\"\",INDEX('Smelter Look-up'!$C:$C,MATCH($A933,'Smelter Look-up'!$E:$E,0)))","v":""},null,{"$f":"IF(ISERROR($V933),\"\",OFFSET('Smelter Look-up'!$D$4,$V933-4,0)&\"\")","v":""},{"$f":"IF(ISERROR($V933),\"\",OFFSET('Smelter Look-up'!$E$4,$V933-4,0))","v":""},{"$f":"IF(C933=$X$4,\"Enter smelter details\",IF(ISERROR($V933),\"\",OFFSET('Smelter Look-up'!$F$4,$V933-4,0)))","v":""},{"$f":"IF(ISERROR($V933),\"\",OFFSET('Smelter Look-up'!$G$4,$V933-4,0))","v":""},{"$f":"IF(ISERROR($V933),\"\",OFFSET('Smelter Look-up'!$H$4,$V933-4,0))","v":""},{"$f":"IF(ISERROR($V933),\"\",OFFSET('Smelter Look-up'!$I$4,$V933-4,0))","v":""},{"$nulls":7},{"$f":"IF(ISERROR($V933),\"\",OFFSET('Smelter Look-up'!$C$4,$V933-4,0)&\"\")","v":""},"",{"$f":"IF(B933=\"\",\"\",IF(ISERROR(MATCH($J933,SorP!$B$1:$B$5661,0)),\"\",INDIRECT(\"'SorP'!$A$\"&MATCH($J933,SorP!$B$1:$B$5661,0))))","v":""},null,{"$f":"IF(C933=\"\",NA(),MATCH($B933&$C933,'Smelter Look-up'!$J:$J,0))","v":{"$error":"#N/A"}},null,0,null,null,null,""]
[null,{"$f":"IF(LEN(A934)=0,\"\",INDEX('Smelter Look-up'!$A:$A,MATCH($A934,'Smelter Look-up'!$E:$E,0)))","v":""},{"$f":"IF(LEN(A934)=0,\"\",INDEX('Smelter Look-up'!$C:$C,MATCH($A934,'Smelter Look-up'!$E:$E,0)))","v":""},null,{"$f":"IF(ISERROR($V934),\"\",OFFSET('Smelter Look-up'!$D$4,$V934-4,0)&\"\")","v":""},{"$f":"IF(ISERROR($V934),\"\",OFFSET('Smelter Look-up'!$E$4,$V934-4,0))","v":""},{"$f":"IF(C934=$X$4,\"Enter smelter details\",IF(ISERROR($V934),\"\",OFFSET('Smelter Look-up'!$F$4,$V934-4,0)))","v":""},{"$f":"IF(ISERROR($V934),\"\",OFFSET('Smelter Look-up'!$G$4,$V934-4,0))","v":""},{"$f":"IF(ISERROR($V934),\"\",OFFSET('Smelter Look-up'!$H$4,$V934-4,0))","v":""},{"$f":"IF(ISERROR($V934),\"\",OFFSET('Smelter Look-up'!$I$4,$V934-4,0))","v":""},{"$nulls":7},{"$f":"IF(ISERROR($V934),\"\",OFFSET('Smelter Look-up'!$C$4,$V934-4,0)&\"\")","v":""},"",{"$f":"IF(B934=\"\",\"\",IF(ISERROR(MATCH($J934,SorP!$B$1:$B$5661,0)),\"\",INDIRECT(\"'SorP'!$A$\"&MATCH($J934,SorP!$B$1:$B$5661,0))))","v":""},null,{"$f":"IF(C934=\"\",NA(),MATCH($B934&$C934,'Smelter Look-up'!$J:$J,0))","v":{"$error":"#N/A"}},null,0,null,null,null,""]
[null,{"$f":"IF(LEN(A935)=0,\"\",INDEX('Smelter Look-up'!$A:$A,MATCH($A935,'Smelter Look-up'!$E:$E,0)))","v":""},{"$f":"IF(LEN(A935)=0,\"\",INDEX('Smelter Look-up'!$C:$C,MATCH($A935,'Smelter Look-up'!$E:$E,0)))","v":""},null,{"$f":"IF(ISERROR($V935),\"\",OFFSET('Smelter Look-up'!$D$4,$V935-4,0)&\"\")","v":""},{"$f":"IF(ISERROR($V935),\"\",OFFSET('Smelter Look-up'!$E$4,$V935-4,0))","v":""},{"$f":"IF(C935=$X$4,\"Enter smelter details\",IF(ISERROR($V935),\"\",OFFSET('Smelter Look-up'!$F$4,$V935-4,0)))","v":""},{"$f":"IF(ISERROR($V935),\"\",OFFSET('Smelter Look-up'!$G$4,$V935-4,0))","v":""},{"$f":"IF(ISERROR($V935),\"\",OFFSET('Smelter Look-up'!$H$4,$V935-4,0))","v":""},{"$f":"IF(ISERROR($V935),\"\",OFFSET('Smelter Look-up'!$I$4,$V935-4,0))","v":""},{"$nulls":7},{"$f":"IF(ISERROR($V935),\"\",OFFSET('Smelter Look-up'!$C$4,$V935-4,0)&\"\")","v":""},"",{"$f":"IF(B935=\"\",\"\",IF(ISERROR(MATCH($J935,SorP!$B$1:$B$5661,0)),\"\",INDIRECT(\"'SorP'!$A$\"&MATCH($J935,SorP!$B$1:$B$5661,0))))","v":""},null,{"$f":"IF(C935=\"\",NA(),MATCH($B935&$C935,'Smelter Look-up'!$J:$J,0))","v":{"$error":"#N/A"}},null,0,null,null,null,""]
[null,{"$f":"IF(LEN(A936)=0,\"\",INDEX('Smelter Look-up'!$A:$A,MATCH($A936,'Smelter Look-up'!$E:$E,0)))","v":""},{"$f":"IF(LEN(A936)=0,\"\",INDEX('Smelter Look-up'!$C:$C,MATCH($A936,'Smelter Look-up'!$E:$E,0)))","v":""},null,{"$f":"IF(ISERROR($V936),\"\",OFFSET('Smelter Look-up'!$D$4,$V936-4,0)&\"\")","v":""},{"$f":"IF(ISERROR($V936),\"\",OFFSET('Smelter Look-up'!$E$4,$V936-4,0))","v":""},{"$f":"IF(C936=$X$4,\"Enter smelter details\",IF(ISERROR($V936),\"\",OFFSET('Smelter Look-up'!$F$4,$V936-4,0)))","v":""},{"$f":"IF(ISERROR($V936),\"\",OFFSET('Smelter Look-up'!$G$4,$V936-4,0))","v":""},{"$f":"IF(ISERROR($V936),\"\",OFFSET('Smelter Look-up'!$H$4,$V936-4,0))","v":""},{"$f":"IF(ISERROR($V936),\"\",OFFSET('Smelter Look-up'!$I$4,$V936-4,0))","v":""},{"$nulls":7},{"$f":"IF(ISERROR($V936),\"\",OFFSET('Smelter Look-up'!$C$4,$V936-4,0)&\"\")","v":""},"",{"$f":"IF(B936=\"\",\"\",IF(ISERROR(MATCH($J936,SorP!$B$1:$B$5661,0)),\"\",INDIRECT(\"'SorP'!$A$\"&MATCH($J936,SorP!$B$1:$B$5661,0))))","v":""},null,{"$f":"IF(C936=\"\",NA(),MATCH($B936&$C936,'Smelter Look-up'!$J:$J,0))","v":{"$error":"#N/A"}},null,0,null,null,null,""]
[null,{"$f":"IF(LEN(A937)=0,\"\",INDEX('Smelter Look-up'!$A:$A,MATCH($A937,'Smelter Look-up'!$E:$E,0)))","v":""},{"$f":"IF(LEN(A937)=0,\"\",INDEX('Smelter Look-up'!$C:$C,MATCH($A937,'Smelter Look-up'!$E:$E,0)))","v":""},null,{"$f":"IF(ISERROR($V937),\"\",OFFSET('Smelter Look-up'!$D$4,$V937-4,0)&\"\")","v":""},{"$f":"IF(ISERROR($V937),\"\",OFFSET('Smelter Look-up'!$E$4,$V937-4,0))","v":""},{"$f":"IF(C937=$X$4,\"Enter smelter details\",IF(ISERROR($V937),\"\",OFFSET('Smelter Look-up'!$F$4,$V937-4,0)))","v":""},{"$f":"IF(ISERROR($V937),\"\",OFFSET('Smelter Look-up'!$G$4,$V937-4,0))","v":""},{"$f":"IF(ISERROR($V937),\"\",OFFSET('Smelter Look-up'!$H$4,$V937-4,0))","v":""},{"$f":"IF(ISERROR($V937),\"\",OFFSET('Smelter Look-up'!$I$4,$V937-4,0))","v":""},{"$nulls":7},{"$f":"IF(ISERROR($V937),\"\",OFFSET('Smelter Look-up'!$C$4,$V937-4,0)&\"\")","v":""},"",{"$f":"IF(B937=\"\",\"\",IF(ISERROR(MATCH($J937,SorP!$B$1:$B$5661,0)),\"\",INDIRECT(\"'SorP'!$A$\"&MATCH($J937,SorP!$B$1:$B$5661,0))))","v":""},null,{"$f":"IF(C937=\"\",NA(),MATCH($B937&$C937,'Smelter Look-up'!$J:$J,0))","v":{"$error":"#N/A"}},null,0,null,null,null,""]
[null,{"$f":"IF(LEN(A938)=0,\"\",INDEX('Smelter Look-up'!$A:$A,MATCH($A938,'Smelter Look-up'!$E:$E,0)))","v":""},{"$f":"IF(LEN(A938)=0,\"\",INDEX('Smelter Look-up'!$C:$C,MATCH($A938,'Smelter Look-up'!$E:$E,0)))","v":""},null,{"$f":"IF(ISERROR($V938),\"\",OFFSET('Smelter Look-up'!$D$4,$V938-4,0)&\"\")","v":""},{"$f":"IF(ISERROR($V938),\"\",OFFSET('Smelter Look-up'!$E$4,$V938-4,0))","v":""},{"$f":"IF(C938=$X$4,\"Enter smelter details\",IF(ISERROR($V938),\"\",OFFSET('Smelter Look-up'!$F$4,$V938-4,0)))","v":""},{"$f":"IF(ISERROR($V938),\"\",OFFSET('Smelter Look-up'!$G$4,$V938-4,0))","v":""},{"$f":"IF(ISERROR($V938),\"\",OFFSET('Smelter Look-up'!$H$4,$V938-4,0))","v":""},{"$f":"IF(ISERROR($V938),\"\",OFFSET('Smelter Look-up'!$I$4,$V938-4,0))","v":""},{"$nulls":7},{"$f":"IF(ISERROR($V938),\"\",OFFSET('Smelter Look-up'!$C$4,$V938-4,0)&\"\")","v":""},"",{"$f":"IF(B938=\"\",\"\",IF(ISERROR(MATCH($J938,SorP!$B$1:$B$5661,0)),\"\",INDIRECT(\"'SorP'!$A$\"&MATCH($J938,SorP!$B$1:$B$5661,0))))","v":""},null,{"$f":"IF(C938=\"\",NA(),MATCH($B938&$C938,'Smelter Look-up'!$J:$J,0))","v":{"$error":"#N/A"}},null,0,null,null,null,""]
[null,{"$f":"IF(LEN(A939)=0,\"\",INDEX('Smelter Look-up'!$A:$A,MATCH($A939,'Smelter Look-up'!$E:$E,0)))","v":""},{"$f":"IF(LEN(A939)=0,\"\",INDEX('Smelter Look-up'!$C:$C,MATCH($A939,'Smelter Look-up'!$E:$E,0)))","v":""},null,{"$f":"IF(ISERROR($V939),\"\",OFFSET('Smelter Look-up'!$D$4,$V939-4,0)&\"\")","v":""},{"$f":"IF(ISERROR($V939),\"\",OFFSET('Smelter Look-up'!$E$4,$V939-4,0))","v":""},{"$f":"IF(C939=$X$4,\"Enter smelter details\",IF(ISERROR($V939),\"\",OFFSET('Smelter Look-up'!$F$4,$V939-4,0)))","v":""},{"$f":"IF(ISERROR($V939),\"\",OFFSET('Smelter Look-up'!$G$4,$V939-4,0))","v":""},{"$f":"IF(ISERROR($V939),\"\",OFFSET('Smelter Look-up'!$H$4,$V939-4,0))","v":""},{"$f":"IF(ISERROR($V939),\"\",OFFSET('Smelter Look-up'!$I$4,$V939-4,0))","v":""},{"$nulls":7},{"$f":"IF(ISERROR($V939),\"\",OFFSET('Smelter Look-up'!$C$4,$V939-4,0)&\"\")","v":""},"",{"$f":"IF(B939=\"\",\"\",IF(ISERROR(MATCH($J939,SorP!$B$1:$B$5661,0)),\"\",INDIRECT(\"'SorP'!$A$\"&MATCH($J939,SorP!$B$1:$B$5661,0))))","v":""},null,{"$f":"IF(C939=\"\",NA(),MATCH($B939&$C939,'Smelter Look-up'!$J:$J,0))","v":{"$error":"#N/A"}},null,0,null,null,null,""]
[null,{"$f":"IF(LEN(A940)=0,\"\",INDEX('Smelter Look-up'!$A:$A,MATCH($A940,'Smelter Look-up'!$E:$E,0)))","v":""},{"$f":"IF(LEN(A940)=0,\"\",INDEX('Smelter Look-up'!$C:$C,MATCH($A940,'Smelter Look-up'!$E:$E,0)))","v":""},null,{"$f":"IF(ISERROR($V940),\"\",OFFSET('Smelter Look-up'!$D$4,$V940-4,0)&\"\")","v":""},{"$f":"IF(ISERROR($V940),\"\",OFFSET('Smelter Look-up'!$E$4,$V940-4,0))","v":""},{"$f":"IF(C940=$X$4,\"Enter smelter details\",IF(ISERROR($V940),\"\",OFFSET('Smelter Look-up'!$F$4,$V940-4,0)))","v":""},{"$f":"IF(ISERROR($V940),\"\",OFFSET('Smelter Look-up'!$G$4,$V940-4,0))","v":""},{"$f":"IF(ISERROR($V940),\"\",OFFSET('Smelter Look-up'!$H$4,$V940-4,0))","v":""},{"$f":"IF(ISERROR($V940),\"\",OFFSET('Smelter Look-up'!$I$4,$V940-4,0))","v":""},{"$nulls":7},{"$f":"IF(ISERROR($V940),\"\",OFFSET('Smelter Look-up'!$C$4,$V940-4,0)&\"\")","v":""},"",{"$f":"IF(B940=\"\",\"\",IF(ISERROR(MATCH($J940,SorP!$B$1:$B$5661,0)),\"\",INDIRECT(\"'SorP'!$A$\"&MATCH($J940,SorP!$B$1:$B$5661,0))))","v":""},null,{"$f":"IF(C940=\"\",NA(),MATCH($B940&$C940,'Smelter Look-up'!$J:$J,0))","v":{"$error":"#N/A"}},null,0,null,null,null,""]
[null,{"$f":"IF(LEN(A941)=0,\"\",INDEX('Smelter Look-up'!$A:$A,MATCH($A941,'Smelter Look-up'!$E:$E,0)))","v":""},{"$f":"IF(LEN(A941)=0,\"\",INDEX('Smelter Look-up'!$C:$C,MATCH($A941,'Smelter Look-up'!$E:$E,0)))","v":""},null,{"$f":"IF(ISERROR($V941),\"\",OFFSET('Smelter Look-up'!$D$4,$V941-4,0)&\"\")","v":""},{"$f":"IF(ISERROR($V941),\"\",OFFSET('Smelter Look-up'!$E$4,$V941-4,0))","v":""},{"$f":"IF(C941=$X$4,\"Enter smelter details\",IF(ISERROR($V941),\"\",OFFSET('Smelter Look-up'!$F$4,$V941-4,0)))","v":""},{"$f":"IF(ISERROR($V941),\"\",OFFSET('Smelter Look-up'!$G$4,$V941-4,0))","v":""},{"$f":"IF(ISERROR($V941),\"\",OFFSET('Smelter Look-up'!$H$4,$V941-4,0))","v":""},{"$f":"IF(ISERROR($V941),\"\",OFFSET('Smelter Look-up'!$I$4,$V941-4,0))","v":""},{"$nulls":7},{"$f":"IF(ISERROR($V941),\"\",OFFSET('Smelter Look-up'!$C$4,$V941-4,0)&\"\")","v":""},"",{"$f":"IF(B941=\"\",\"\",IF(ISERROR(MATCH($J941,SorP!$B$1:$B$5661,0)),\"\",INDIRECT(\"'SorP'!$A$\"&MATCH($J941,SorP!$B$1:$B$5661,0))))","v":""},null,{"$f":"IF(C941=\"\",NA(),MATCH($B941&$C941,'Smelter Look-up'!$J:$J,0))","v":{"$error":"#N/A"}},null,0,null,null,null,""]
[null,{"$f":"IF(LEN(A942)=0,\"\",INDEX('Smelter Look-up'!$A:$A,MATCH($A942,'Smelter Look-up'!$E:$E,0)))","v":""},{"$f":"IF(LEN(A942)=0,\"\",INDEX('Smelter Look-up'!$C:$C,MATCH($A942,'Smelter Look-up'!$E:$E,0)))","v":""},null,{"$f":"IF(ISERROR($V942),\"\",OFFSET('Smelter Look-up'!$D$4,$V942-4,0)&\"\")","v":""},{"$f":"IF(ISERROR($V942),\"\",OFFSET('Smelter Look-up'!$E$4,$V942-4,0))","v":""},{"$f":"IF(C942=$X$4,\"Enter smelter details\",IF(ISERROR($V942),\"\",OFFSET('Smelter Look-up'!$F$4,$V942-4,0)))","v":""},{"$f":"IF(ISERROR($V942),\"\",OFFSET('Smelter Look-up'!$G$4,$V942-4,0))","v":""},{"$f":"IF(ISERROR($V942),\"\",OFFSET('Smelter Look-up'!$H$4,$V942-4,0))","v":""},{"$f":"IF(ISERROR($V942),\"\",OFFSET('Smelter Look-up'!$I$4,$V942-4,0))","v":""},{"$nulls":7},{"$f":"IF(ISERROR($V942),\"\",OFFSET('Smelter Look-up'!$C$4,$V942-4,0)&\"\")","v":""},"",{"$f":"IF(B942=\"\",\"\",IF(ISERROR(MATCH($J942,SorP!$B$1:$B$5661,0)),\"\",INDIRECT(\"'SorP'!$A$\"&MATCH($J942,SorP!$B$1:$B$5661,0))))","v":""},null,{"$f":"IF(C942=\"\",NA(),MATCH($B942&$C942,'Smelter Look-up'!$J:$J,0))","v":{"$error":"#N/A"}},null,0,null,null,null,""]
[null,{"$f":"IF(LEN(A943)=0,\"\",INDEX('Smelter Look-up'!$A:$A,MATCH($A943,'Smelter Look-up'!$E:$E,0)))","v":""},{"$f":"IF(LEN(A943)=0,\"\",INDEX('Smelter Look-up'!$C:$C,MATCH($A943,'Smelter Look-up'!$E:$E,0)))","v":""},null,{"$f":"IF(ISERROR($V943),\"\",OFFSET('Smelter Look-up'!$D$4,$V943-4,0)&\"\")","v":""},{"$f":"IF(ISERROR($V943),\"\",OFFSET('Smelter Look-up'!$E$4,$V943-4,0))","v":""},{"$f":"IF(C943=$X$4,\"Enter smelter details\",IF(ISERROR($V943),\"\",OFFSET('Smelter Look-up'!$F$4,$V943-4,0)))","v":""},{"$f":"IF(ISERROR($V943),\"\",OFFSET('Smelter Look-up'!$G$4,$V943-4,0))","v":""},{"$f":"IF(ISERROR($V943),\"\",OFFSET('Smelter Look-up'!$H$4,$V943-4,0))","v":""},{"$f":"IF(ISERROR($V943),\"\",OFFSET('Smelter Look-up'!$I$4,$V943-4,0))","v":""},{"$nulls":7},{"$f":"IF(ISERROR($V943),\"\",OFFSET('Smelter Look-up'!$C$4,$V943-4,0)&\"\")","v":""},"",{"$f":"IF(B943=\"\",\"\",IF(ISERROR(MATCH($J943,SorP!$B$1:$B$5661,0)),\"\",INDIRECT(\"'SorP'!$A$\"&MATCH($J943,SorP!$B$1:$B$5661,0))))","v":""},null,{"$f":"IF(C943=\"\",NA(),MATCH($B943&$C943,'Smelter Look-up'!$J:$J,0))","v":{"$error":"#N/A"}},null,0,null,null,null,""]
[null,{"$f":"IF(LEN(A944)=0,\"\",INDEX('Smelter Look-up'!$A:$A,MATCH($A944,'Smelter Look-up'!$E:$E,0)))","v":""},{"$f":"IF(LEN(A944)=0,\"\",INDEX('Smelter Look-up'!$C:$C,MATCH($A944,'Smelter Look-up'!$E:$E,0)))","v":""},null,{"$f":"IF(ISERROR($V944),\"\",OFFSET('Smelter Look-up'!$D$4,$V944-4,0)&\"\")","v":""},{"$f":"IF(ISERROR($V944),\"\",OFFSET('Smelter Look-up'!$E$4,$V944-4,0))","v":""},{"$f":"IF(C944=$X$4,\"Enter smelter details\",IF(ISERROR($V944),\"\",OFFSET('Smelter Look-up'!$F$4,$V944-4,0)))","v":""},{"$f":"IF(ISERROR($V944),\"\",OFFSET('Smelter Look-up'!$G$4,$V944-4,0))","v":""},{"$f":"IF(ISERROR($V944),\"\",OFFSET('Smelter Look-up'!$H$4,$V944-4,0))","v":""},{"$f":"IF(ISERROR($V944),\"\",OFFSET('Smelter Look-up'!$I$4,$V944-4,0))","v":""},{"$nulls":7},{"$f":"IF(ISERROR($V944),\"\",OFFSET('Smelter Look-up'!$C$4,$V944-4,0)&\"\")","v":""},"",{"$f":"IF(B944=\"\",\"\",IF(ISERROR(MATCH($J944,SorP!$B$1:$B$5661,0)),\"\",INDIRECT(\"'SorP'!$A$\"&MATCH($J944,SorP!$B$1:$B$5661,0))))","v":""},null,{"$f":"IF(C944=\"\",NA(),MATCH($B944&$C944,'Smelter Look-up'!$J:$J,0))","v":{"$error":"#N/A"}},null,0,null,null,null,""]
[null,{"$f":"IF(LEN(A945)=0,\"\",INDEX('Smelter Look-up'!$A:$A,MATCH($A945,'Smelter Look-up'!$E:$E,0)))","v":""},{"$f":"IF(LEN(A945)=0,\"\",INDEX('Smelter Look-up'!$C:$C,MATCH($A945,'Smelter Look-up'!$E:$E,0)))","v":""},null,{"$f":"IF(ISERROR($V945),\"\",OFFSET('Smelter Look-up'!$D$4,$V945-4,0)&\"\")","v":""},{"$f":"IF(ISERROR($V945),\"\",OFFSET('Smelter Look-up'!$E$4,$V945-4,0))","v":""},{"$f":"IF(C945=$X$4,\"Enter smelter details\",IF(ISERROR($V945),\"\",OFFSET('Smelter Look-up'!$F$4,$V945-4,0)))","v":""},{"$f":"IF(ISERROR($V945),\"\",OFFSET('Smelter Look-up'!$G$4,$V945-4,0))","v":""},{"$f":"IF(ISERROR($V945),\"\",OFFSET('Smelter Look-up'!$H$4,$V945-4,0))","v":""},{"$f":"IF(ISERROR($V945),\"\",OFFSET('Smelter Look-up'!$I$4,$V945-4,0))","v":""},{"$nulls":7},{"$f":"IF(ISERROR($V945),\"\",OFFSET('Smelter Look-up'!$C$4,$V945-4,0)&\"\")","v":""},"",{"$f":"IF(B945=\"\",\"\",IF(ISERROR(MATCH($J945,SorP!$B$1:$B$5661,0)),\"\",INDIRECT(\"'SorP'!$A$\"&MATCH($J945,SorP!$B$1:$B$5661,0))))","v":""},null,{"$f":"IF(C945=\"\",NA(),MATCH($B945&$C945,'Smelter Look-up'!$J:$J,0))","v":{"$error":"#N/A"}},null,0,null,null,null,""]
[null,{"$f":"IF(LEN(A946)=0,\"\",INDEX('Smelter Look-up'!$A:$A,MATCH($A946,'Smelter Look-up'!$E:$E,0)))","v":""},{"$f":"IF(LEN(A946)=0,\"\",INDEX('Smelter Look-up'!$C:$C,MATCH($A946,'Smelter Look-up'!$E:$E,0)))","v":""},null,{"$f":"IF(ISERROR($V946),\"\",OFFSET('Smelter Look-up'!$D$4,$V946-4,0)&\"\")","v":""},{"$f":"IF(ISERROR($V946),\"\",OFFSET('Smelter Look-up'!$E$4,$V946-4,0))","v":""},{"$f":"IF(C946=$X$4,\"Enter smelter details\",IF(ISERROR($V946),\"\",OFFSET('Smelter Look-up'!$F$4,$V946-4,0)))","v":""},{"$f":"IF(ISERROR($V946),\"\",OFFSET('Smelter Look-up'!$G$4,$V946-4,0))","v":""},{"$f":"IF(ISERROR($V946),\"\",OFFSET('Smelter Look-up'!$H$4,$V946-4,0))","v":""},{"$f":"IF(ISERROR($V946),\"\",OFFSET('Smelter Look-up'!$I$4,$V946-4,0))","v":""},{"$nulls":7},{"$f":"IF(ISERROR($V946),\"\",OFFSET('Smelter Look-up'!$C$4,$V946-4,0)&\"\")","v":""},"",{"$f":"IF(B946=\"\",\"\",IF(ISERROR(MATCH($J946,SorP!$B$1:$B$5661,0)),\"\",INDIRECT(\"'SorP'!$A$\"&MATCH($J946,SorP!$B$1:$B$5661,0))))","v":""},null,{"$f":"IF(C946=\"\",NA(),MATCH($B946&$C946,'Smelter Look-up'!$J:$J,0))","v":{"$error":"#N/A"}},null,0,null,null,null,""]
[null,{"$f":"IF(LEN(A947)=0,\"\",INDEX('Smelter Look-up'!$A:$A,MATCH($A947,'Smelter Look-up'!$E:$E,0)))","v":""},{"$f":"IF(LEN(A947)=0,\"\",INDEX('Smelter Look-up'!$C:$C,MATCH($A947,'Smelter Look-up'!$E:$E,0)))","v":""},null,{"$f":"IF(ISERROR($V947),\"\",OFFSET('Smelter Look-up'!$D$4,$V947-4,0)&\"\")","v":""},{"$f":"IF(ISERROR($V947),\"\",OFFSET('Smelter Look-up'!$E$4,$V947-4,0))","v":""},{"$f":"IF(C947=$X$4,\"Enter smelter details\",IF(ISERROR($V947),\"\",OFFSET('Smelter Look-up'!$F$4,$V947-4,0)))","v":""},{"$f":"IF(ISERROR($V947),\"\",OFFSET('Smelter Look-up'!$G$4,$V947-4,0))","v":""},{"$f":"IF(ISERROR($V947),\"\",OFFSET('Smelter Look-up'!$H$4,$V947-4,0))","v":""},{"$f":"IF(ISERROR($V947),\"\",OFFSET('Smelter Look-up'!$I$4,$V947-4,0))","v":""},{"$nulls":7},{"$f":"IF(ISERROR($V947),\"\",OFFSET('Smelter Look-up'!$C$4,$V947-4,0)&\"\")","v":""},"",{"$f":"IF(B947=\"\",\"\",IF(ISERROR(MATCH($J947,SorP!$B$1:$B$5661,0)),\"\",INDIRECT(\"'SorP'!$A$\"&MATCH($J947,SorP!$B$1:$B$5661,0))))","v":""},null,{"$f":"IF(C947=\"\",NA(),MATCH($B947&$C947,'Smelter Look-up'!$J:$J,0))","v":{"$error":"#N/A"}},null,0,null,null,null,""]
[null,{"$f":"IF(LEN(A948)=0,\"\",INDEX('Smelter Look-up'!$A:$A,MATCH($A948,'Smelter Look-up'!$E:$E,0)))","v":""},{"$f":"IF(LEN(A948)=0,\"\",INDEX('Smelter Look-up'!$C:$C,MATCH($A948,'Smelter Look-up'!$E:$E,0)))","v":""},null,{"$f":"IF(ISERROR($V948),\"\",OFFSET('Smelter Look-up'!$D$4,$V948-4,0)&\"\")","v":""},{"$f":"IF(ISERROR($V948),\"\",OFFSET('Smelter Look-up'!$E$4,$V948-4,0))","v":""},{"$f":"IF(C948=$X$4,\"Enter smelter details\",IF(ISERROR($V948),\"\",OFFSET('Smelter Look-up'!$F$4,$V948-4,0)))","v":""},{"$f":"IF(ISERROR($V948),\"\",OFFSET('Smelter Look-up'!$G$4,$V948-4,0))","v":""},{"$f":"IF(ISERROR($V948),\"\",OFFSET('Smelter Look-up'!$H$4,$V948-4,0))","v":""},{"$f":"IF(ISERROR($V948),\"\",OFFSET('Smelter Look-up'!$I$4,$V948-4,0))","v":""},{"$nulls":7},{"$f":"IF(ISERROR($V948),\"\",OFFSET('Smelter Look-up'!$C$4,$V948-4,0)&\"\")","v":""},"",{"$f":"IF(B948=\"\",\"\",IF(ISERROR(MATCH($J948,SorP!$B$1:$B$5661,0)),\"\",INDIRECT(\"'SorP'!$A$\"&MATCH($J948,SorP!$B$1:$B$5661,0))))","v":""},null,{"$f":"IF(C948=\"\",NA(),MATCH($B948&$C948,'Smelter Look-up'!$J:$J,0))","v":{"$error":"#N/A"}},null,0,null,null,null,""]
[null,{"$f":"IF(LEN(A949)=0,\"\",INDEX('Smelter Look-up'!$A:$A,MATCH($A949,'Smelter Look-up'!$E:$E,0)))","v":""},{"$f":"IF(LEN(A949)=0,\"\",INDEX('Smelter Look-up'!$C:$C,MATCH($A949,'Smelter Look-up'!$E:$E,0)))","v":""},null,{"$f":"IF(ISERROR($V949),\"\",OFFSET('Smelter Look-up'!$D$4,$V949-4,0)&\"\")","v":""},{"$f":"IF(ISERROR($V949),\"\",OFFSET('Smelter Look-up'!$E$4,$V949-4,0))","v":""},{"$f":"IF(C949=$X$4,\"Enter smelter details\",IF(ISERROR($V949),\"\",OFFSET('Smelter Look-up'!$F$4,$V949-4,0)))","v":""},{"$f":"IF(ISERROR($V949),\"\",OFFSET('Smelter Look-up'!$G$4,$V949-4,0))","v":""},{"$f":"IF(ISERROR($V949),\"\",OFFSET('Smelter Look-up'!$H$4,$V949-4,0))","v":""},{"$f":"IF(ISERROR($V949),\"\",OFFSET('Smelter Look-up'!$I$4,$V949-4,0))","v":""},{"$nulls":7},{"$f":"IF(ISERROR($V949),\"\",OFFSET('Smelter Look-up'!$C$4,$V949-4,0)&\"\")","v":""},"",{"$f":"IF(B949=\"\",\"\",IF(ISERROR(MATCH($J949,SorP!$B$1:$B$5661,0)),\"\",INDIRECT(\"'SorP'!$A$\"&MATCH($J949,SorP!$B$1:$B$5661,0))))","v":""},null,{"$f":"IF(C949=\"\",NA(),MATCH($B949&$C949,'Smelter Look-up'!$J:$J,0))","v":{"$error":"#N/A"}},null,0,null,null,null,""]
[null,{"$f":"IF(LEN(A950)=0,\"\",INDEX('Smelter Look-up'!$A:$A,MATCH($A950,'Smelter Look-up'!$E:$E,0)))","v":""},{"$f":"IF(LEN(A950)=0,\"\",INDEX('Smelter Look-up'!$C:$C,MATCH($A950,'Smelter Look-up'!$E:$E,0)))","v":""},null,{"$f":"IF(ISERROR($V950),\"\",OFFSET('Smelter Look-up'!$D$4,$V950-4,0)&\"\")","v":""},{"$f":"IF(ISERROR($V950),\"\",OFFSET('Smelter Look-up'!$E$4,$V950-4,0))","v":""},{"$f":"IF(C950=$X$4,\"Enter smelter details\",IF(ISERROR($V950),\"\",OFFSET('Smelter Look-up'!$F$4,$V950-4,0)))","v":""},{"$f":"IF(ISERROR($V950),\"\",OFFSET('Smelter Look-up'!$G$4,$V950-4,0))","v":""},{"$f":"IF(ISERROR($V950),\"\",OFFSET('Smelter Look-up'!$H$4,$V950-4,0))","v":""},{"$f":"IF(ISERROR($V950),\"\",OFFSET('Smelter Look-up'!$I$4,$V950-4,0))","v":""},{"$nulls":7},{"$f":"IF(ISERROR($V950),\"\",OFFSET('Smelter Look-up'!$C$4,$V950-4,0)&\"\")","v":""},"",{"$f":"IF(B950=\"\",\"\",IF(ISERROR(MATCH($J950,SorP!$B$1:$B$5661,0)),\"\",INDIRECT(\"'SorP'!$A$\"&MATCH($J950,SorP!$B$1:$B$5661,0))))","v":""},null,{"$f":"IF(C950=\"\",NA(),MATCH($B950&$C950,'Smelter Look-up'!$J:$J,0))","v":{"$error":"#N/A"}},null,0,null,null,null,""]
[null,{"$f":"IF(LEN(A951)=0,\"\",INDEX('Smelter Look-up'!$A:$A,MATCH($A951,'Smelter Look-up'!$E:$E,0)))","v":""},{"$f":"IF(LEN(A951)=0,\"\",INDEX('Smelter Look-up'!$C:$C,MATCH($A951,'Smelter Look-up'!$E:$E,0)))","v":""},null,{"$f":"IF(ISERROR($V951),\"\",OFFSET('Smelter Look-up'!$D$4,$V951-4,0)&\"\")","v":""},{"$f":"IF(ISERROR($V951),\"\",OFFSET('Smelter Look-up'!$E$4,$V951-4,0))","v":""},{"$f":"IF(C951=$X$4,\"Enter smelter details\",IF(ISERROR($V951),\"\",OFFSET('Smelter Look-up'!$F$4,$V951-4,0)))","v":""},{"$f":"IF(ISERROR($V951),\"\",OFFSET('Smelter Look-up'!$G$4,$V951-4,0))","v":""},{"$f":"IF(ISERROR($V951),\"\",OFFSET('Smelter Look-up'!$H$4,$V951-4,0))","v":""},{"$f":"IF(ISERROR($V951),\"\",OFFSET('Smelter Look-up'!$I$4,$V951-4,0))","v":""},{"$nulls":7},{"$f":"IF(ISERROR($V951),\"\",OFFSET('Smelter Look-up'!$C$4,$V951-4,0)&\"\")","v":""},"",{"$f":"IF(B951=\"\",\"\",IF(ISERROR(MATCH($J951,SorP!$B$1:$B$5661,0)),\"\",INDIRECT(\"'SorP'!$A$\"&MATCH($J951,SorP!$B$1:$B$5661,0))))","v":""},null,{"$f":"IF(C951=\"\",NA(),MATCH($B951&$C951,'Smelter Look-up'!$J:$J,0))","v":{"$error":"#N/A"}},null,0,null,null,null,""]
[null,{"$f":"IF(LEN(A952)=0,\"\",INDEX('Smelter Look-up'!$A:$A,MATCH($A952,'Smelter Look-up'!$E:$E,0)))","v":""},{"$f":"IF(LEN(A952)=0,\"\",INDEX('Smelter Look-up'!$C:$C,MATCH($A952,'Smelter Look-up'!$E:$E,0)))","v":""},null,{"$f":"IF(ISERROR($V952),\"\",OFFSET('Smelter Look-up'!$D$4,$V952-4,0)&\"\")","v":""},{"$f":"IF(ISERROR($V952),\"\",OFFSET('Smelter Look-up'!$E$4,$V952-4,0))","v":""},{"$f":"IF(C952=$X$4,\"Enter smelter details\",IF(ISERROR($V952),\"\",OFFSET('Smelter Look-up'!$F$4,$V952-4,0)))","v":""},{"$f":"IF(ISERROR($V952),\"\",OFFSET('Smelter Look-up'!$G$4,$V952-4,0))","v":""},{"$f":"IF(ISERROR($V952),\"\",OFFSET('Smelter Look-up'!$H$4,$V952-4,0))","v":""},{"$f":"IF(ISERROR($V952),\"\",OFFSET('Smelter Look-up'!$I$4,$V952-4,0))","v":""},{"$nulls":7},{"$f":"IF(ISERROR($V952),\"\",OFFSET('Smelter Look-up'!$C$4,$V952-4,0)&\"\")","v":""},"",{"$f":"IF(B952=\"\",\"\",IF(ISERROR(MATCH($J952,SorP!$B$1:$B$5661,0)),\"\",INDIRECT(\"'SorP'!$A$\"&MATCH($J952,SorP!$B$1:$B$5661,0))))","v":""},null,{"$f":"IF(C952=\"\",NA(),MATCH($B952&$C952,'Smelter Look-up'!$J:$J,0))","v":{"$error":"#N/A"}},null,0,null,null,null,""]
[null,{"$f":"IF(LEN(A953)=0,\"\",INDEX('Smelter Look-up'!$A:$A,MATCH($A953,'Smelter Look-up'!$E:$E,0)))","v":""},{"$f":"IF(LEN(A953)=0,\"\",INDEX('Smelter Look-up'!$C:$C,MATCH($A953,'Smelter Look-up'!$E:$E,0)))","v":""},null,{"$f":"IF(ISERROR($V953),\"\",OFFSET('Smelter Look-up'!$D$4,$V953-4,0)&\"\")","v":""},{"$f":"IF(ISERROR($V953),\"\",OFFSET('Smelter Look-up'!$E$4,$V953-4,0))","v":""},{"$f":"IF(C953=$X$4,\"Enter smelter details\",IF(ISERROR($V953),\"\",OFFSET('Smelter Look-up'!$F$4,$V953-4,0)))","v":""},{"$f":"IF(ISERROR($V953),\"\",OFFSET('Smelter Look-up'!$G$4,$V953-4,0))","v":""},{"$f":"IF(ISERROR($V953),\"\",OFFSET('Smelter Look-up'!$H$4,$V953-4,0))","v":""},{"$f":"IF(ISERROR($V953),\"\",OFFSET('Smelter Look-up'!$I$4,$V953-4,0))","v":""},{"$nulls":7},{"$f":"IF(ISERROR($V953),\"\",OFFSET('Smelter Look-up'!$C$4,$V953-4,0)&\"\")","v":""},"",{"$f":"IF(B953=\"\",\"\",IF(ISERROR(MATCH($J953,SorP!$B$1:$B$5661,0)),\"\",INDIRECT(\"'SorP'!$A$\"&MATCH($J953,SorP!$B$1:$B$5661,0))))","v":""},null,{"$f":"IF(C953=\"\",NA(),MATCH($B953&$C953,'Smelter Look-up'!$J:$J,0))","v":{"$error":"#N/A"}},null,0,null,null,null,""]
[null,{"$f":"IF(LEN(A954)=0,\"\",INDEX('Smelter Look-up'!$A:$A,MATCH($A954,'Smelter Look-up'!$E:$E,0)))","v":""},{"$f":"IF(LEN(A954)=0,\"\",INDEX('Smelter Look-up'!$C:$C,MATCH($A954,'Smelter Look-up'!$E:$E,0)))","v":""},null,{"$f":"IF(ISERROR($V954),\"\",OFFSET('Smelter Look-up'!$D$4,$V954-4,0)&\"\")","v":""},{"$f":"IF(ISERROR($V954),\"\",OFFSET('Smelter Look-up'!$E$4,$V954-4,0))","v":""},{"$f":"IF(C954=$X$4,\"Enter smelter details\",IF(ISERROR($V954),\"\",OFFSET('Smelter Look-up'!$F$4,$V954-4,0)))","v":""},{"$f":"IF(ISERROR($V954),\"\",OFFSET('Smelter Look-up'!$G$4,$V954-4,0))","v":""},{"$f":"IF(ISERROR($V954),\"\",OFFSET('Smelter Look-up'!$H$4,$V954-4,0))","v":""},{"$f":"IF(ISERROR($V954),\"\",OFFSET('Smelter Look-up'!$I$4,$V954-4,0))","v":""},{"$nulls":7},{"$f":"IF(ISERROR($V954),\"\",OFFSET('Smelter Look-up'!$C$4,$V954-4,0)&\"\")","v":""},"",{"$f":"IF(B954=\"\",\"\",IF(ISERROR(MATCH($J954,SorP!$B$1:$B$5661,0)),\"\",INDIRECT(\"'SorP'!$A$\"&MATCH($J954,SorP!$B$1:$B$5661,0))))","v":""},null,{"$f":"IF(C954=\"\",NA(),MATCH($B954&$C954,'Smelter Look-up'!$J:$J,0))","v":{"$error":"#N/A"}},null,0,null,null,null,""]
[null,{"$f":"IF(LEN(A955)=0,\"\",INDEX('Smelter Look-up'!$A:$A,MATCH($A955,'Smelter Look-up'!$E:$E,0)))","v":""},{"$f":"IF(LEN(A955)=0,\"\",INDEX('Smelter Look-up'!$C:$C,MATCH($A955,'Smelter Look-up'!$E:$E,0)))","v":""},null,{"$f":"IF(ISERROR($V955),\"\",OFFSET('Smelter Look-up'!$D$4,$V955-4,0)&\"\")","v":""},{"$f":"IF(ISERROR($V955),\"\",OFFSET('Smelter Look-up'!$E$4,$V955-4,0))","v":""},{"$f":"IF(C955=$X$4,\"Enter smelter details\",IF(ISERROR($V955),\"\",OFFSET('Smelter Look-up'!$F$4,$V955-4,0)))","v":""},{"$f":"IF(ISERROR($V955),\"\",OFFSET('Smelter Look-up'!$G$4,$V955-4,0))","v":""},{"$f":"IF(ISERROR($V955),\"\",OFFSET('Smelter Look-up'!$H$4,$V955-4,0))","v":""},{"$f":"IF(ISERROR($V955),\"\",OFFSET('Smelter Look-up'!$I$4,$V955-4,0))","v":""},{"$nulls":7},{"$f":"IF(ISERROR($V955),\"\",OFFSET('Smelter Look-up'!$C$4,$V955-4,0)&\"\")","v":""},"",{"$f":"IF(B955=\"\",\"\",IF(ISERROR(MATCH($J955,SorP!$B$1:$B$5661,0)),\"\",INDIRECT(\"'SorP'!$A$\"&MATCH($J955,SorP!$B$1:$B$5661,0))))","v":""},null,{"$f":"IF(C955=\"\",NA(),MATCH($B955&$C955,'Smelter Look-up'!$J:$J,0))","v":{"$error":"#N/A"}},null,0,null,null,null,""]
[null,{"$f":"IF(LEN(A956)=0,\"\",INDEX('Smelter Look-up'!$A:$A,MATCH($A956,'Smelter Look-up'!$E:$E,0)))","v":""},{"$f":"IF(LEN(A956)=0,\"\",INDEX('Smelter Look-up'!$C:$C,MATCH($A956,'Smelter Look-up'!$E:$E,0)))","v":""},null,{"$f":"IF(ISERROR($V956),\"\",OFFSET('Smelter Look-up'!$D$4,$V956-4,0)&\"\")","v":""},{"$f":"IF(ISERROR($V956),\"\",OFFSET('Smelter Look-up'!$E$4,$V956-4,0))","v":""},{"$f":"IF(C956=$X$4,\"Enter smelter details\",IF(ISERROR($V956),\"\",OFFSET('Smelter Look-up'!$F$4,$V956-4,0)))","v":""},{"$f":"IF(ISERROR($V956),\"\",OFFSET('Smelter Look-up'!$G$4,$V956-4,0))","v":""},{"$f":"IF(ISERROR($V956),\"\",OFFSET('Smelter Look-up'!$H$4,$V956-4,0))","v":""},{"$f":"IF(ISERROR($V956),\"\",OFFSET('Smelter Look-up'!$I$4,$V956-4,0))","v":""},{"$nulls":7},{"$f":"IF(ISERROR($V956),\"\",OFFSET('Smelter Look-up'!$C$4,$V956-4,0)&\"\")","v":""},"",{"$f":"IF(B956=\"\",\"\",IF(ISERROR(MATCH($J956,SorP!$B$1:$B$5661,0)),\"\",INDIRECT(\"'SorP'!$A$\"&MATCH($J956,SorP!$B$1:$B$5661,0))))","v":""},null,{"$f":"IF(C956=\"\",NA(),MATCH($B956&$C956,'Smelter Look-up'!$J:$J,0))","v":{"$error":"#N/A"}},null,0,null,null,null,""]
[null,{"$f":"IF(LEN(A957)=0,\"\",INDEX('Smelter Look-up'!$A:$A,MATCH($A957,'Smelter Look-up'!$E:$E,0)))","v":""},{"$f":"IF(LEN(A957)=0,\"\",INDEX('Smelter Look-up'!$C:$C,MATCH($A957,'Smelter Look-up'!$E:$E,0)))","v":""},null,{"$f":"IF(ISERROR($V957),\"\",OFFSET('Smelter Look-up'!$D$4,$V957-4,0)&\"\")","v":""},{"$f":"IF(ISERROR($V957),\"\",OFFSET('Smelter Look-up'!$E$4,$V957-4,0))","v":""},{"$f":"IF(C957=$X$4,\"Enter smelter details\",IF(ISERROR($V957),\"\",OFFSET('Smelter Look-up'!$F$4,$V957-4,0)))","v":""},{"$f":"IF(ISERROR($V957),\"\",OFFSET('Smelter Look-up'!$G$4,$V957-4,0))","v":""},{"$f":"IF(ISERROR($V957),\"\",OFFSET('Smelter Look-up'!$H$4,$V957-4,0))","v":""},{"$f":"IF(ISERROR($V957),\"\",OFFSET('Smelter Look-up'!$I$4,$V957-4,0))","v":""},{"$nulls":7},{"$f":"IF(ISERROR($V957),\"\",OFFSET('Smelter Look-up'!$C$4,$V957-4,0)&\"\")","v":""},"",{"$f":"IF(B957=\"\",\"\",IF(ISERROR(MATCH($J957,SorP!$B$1:$B$5661,0)),\"\",INDIRECT(\"'SorP'!$A$\"&MATCH($J957,SorP!$B$1:$B$5661,0))))","v":""},null,{"$f":"IF(C957=\"\",NA(),MATCH($B957&$C957,'Smelter Look-up'!$J:$J,0))","v":{"$error":"#N/A"}},null,0,null,null,null,""]
[null,{"$f":"IF(LEN(A958)=0,\"\",INDEX('Smelter Look-up'!$A:$A,MATCH($A958,'Smelter Look-up'!$E:$E,0)))","v":""},{"$f":"IF(LEN(A958)=0,\"\",INDEX('Smelter Look-up'!$C:$C,MATCH($A958,'Smelter Look-up'!$E:$E,0)))","v":""},null,{"$f":"IF(ISERROR($V958),\"\",OFFSET('Smelter Look-up'!$D$4,$V958-4,0)&\"\")","v":""},{"$f":"IF(ISERROR($V958),\"\",OFFSET('Smelter Look-up'!$E$4,$V958-4,0))","v":""},{"$f":"IF(C958=$X$4,\"Enter smelter details\",IF(ISERROR($V958),\"\",OFFSET('Smelter Look-up'!$F$4,$V958-4,0)))","v":""},{"$f":"IF(ISERROR($V958),\"\",OFFSET('Smelter Look-up'!$G$4,$V958-4,0))","v":""},{"$f":"IF(ISERROR($V958),\"\",OFFSET('Smelter Look-up'!$H$4,$V958-4,0))","v":""},{"$f":"IF(ISERROR($V958),\"\",OFFSET('Smelter Look-up'!$I$4,$V958-4,0))","v":""},{"$nulls":7},{"$f":"IF(ISERROR($V958),\"\",OFFSET('Smelter Look-up'!$C$4,$V958-4,0)&\"\")","v":""},"",{"$f":"IF(B958=\"\",\"\",IF(ISERROR(MATCH($J958,SorP!$B$1:$B$5661,0)),\"\",INDIRECT(\"'SorP'!$A$\"&MATCH($J958,SorP!$B$1:$B$5661,0))))","v":""},null,{"$f":"IF(C958=\"\",NA(),MATCH($B958&$C958,'Smelter Look-up'!$J:$J,0))","v":{"$error":"#N/A"}},null,0,null,null,null,""]
[null,{"$f":"IF(LEN(A959)=0,\"\",INDEX('Smelter Look-up'!$A:$A,MATCH($A959,'Smelter Look-up'!$E:$E,0)))","v":""},{"$f":"IF(LEN(A959)=0,\"\",INDEX('Smelter Look-up'!$C:$C,MATCH($A959,'Smelter Look-up'!$E:$E,0)))","v":""},null,{"$f":"IF(ISERROR($V959),\"\",OFFSET('Smelter Look-up'!$D$4,$V959-4,0)&\"\")","v":""},{"$f":"IF(ISERROR($V959),\"\",OFFSET('Smelter Look-up'!$E$4,$V959-4,0))","v":""},{"$f":"IF(C959=$X$4,\"Enter smelter details\",IF(ISERROR($V959),\"\",OFFSET('Smelter Look-up'!$F$4,$V959-4,0)))","v":""},{"$f":"IF(ISERROR($V959),\"\",OFFSET('Smelter Look-up'!$G$4,$V959-4,0))","v":""},{"$f":"IF(ISERROR($V959),\"\",OFFSET('Smelter Look-up'!$H$4,$V959-4,0))","v":""},{"$f":"IF(ISERROR($V959),\"\",OFFSET('Smelter Look-up'!$I$4,$V959-4,0))","v":""},{"$nulls":7},{"$f":"IF(ISERROR($V959),\"\",OFFSET('Smelter Look-up'!$C$4,$V959-4,0)&\"\")","v":""},"",{"$f":"IF(B959=\"\",\"\",IF(ISERROR(MATCH($J959,SorP!$B$1:$B$5661,0)),\"\",INDIRECT(\"'SorP'!$A$\"&MATCH($J959,SorP!$B$1:$B$5661,0))))","v":""},null,{"$f":"IF(C959=\"\",NA(),MATCH($B959&$C959,'Smelter Look-up'!$J:$J,0))","v":{"$error":"#N/A"}},null,{"$f":"IF(AND(C959=\"Smelter not listed\",OR(LEN(D959)=0,LEN(E959)=0)),1,0)","v":0},null,null,null,{"$f":"B959&C959","v":""}]
[null,{"$f":"IF(LEN(A960)=0,\"\",INDEX('Smelter Look-up'!$A:$A,MATCH($A960,'Smelter Look-up'!$E:$E,0)))","v":""},{"$f":"IF(LEN(A960)=0,\"\",INDEX('Smelter Look-up'!$C:$C,MATCH($A960,'Smelter Look-up'!$E:$E,0)))","v":""},null,{"$f":"IF(ISERROR($V960),\"\",OFFSET('Smelter Look-up'!$D$4,$V960-4,0)&\"\")","v":""},{"$f":"IF(ISERROR($V960),\"\",OFFSET('Smelter Look-up'!$E$4,$V960-4,0))","v":""},{"$f":"IF(C960=$X$4,\"Enter smelter details\",IF(ISERROR($V960),\"\",OFFSET('Smelter Look-up'!$F$4,$V960-4,0)))","v":""},{"$f":"IF(ISERROR($V960),\"\",OFFSET('Smelter Look-up'!$G$4,$V960-4,0))","v":""},{"$f":"IF(ISERROR($V960),\"\",OFFSET('Smelter Look-up'!$H$4,$V960-4,0))","v":""},{"$f":"IF(ISERROR($V960),\"\",OFFSET('Smelter Look-up'!$I$4,$V960-4,0))","v":""},{"$nulls":7},{"$f":"IF(ISERROR($V960),\"\",OFFSET('Smelter Look-up'!$C$4,$V960-4,0)&\"\")","v":""},{"$f":"IF(B960=\"\",\"\",IF(ISERROR(MATCH($E960,CL,0)),\"Unknown\",INDIRECT(\"'C'!$A$\"&MATCH($E960,CL,0)+1)))","v":""},{"$f":"IF(B960=\"\",\"\",IF(ISERROR(MATCH($J960,SorP!$B$1:$B$5661,0)),\"\",INDIRECT(\"'SorP'!$A$\"&MATCH($J960,SorP!$B$1:$B$5661,0))))","v":""},null,{"$f":"IF(C960=\"\",NA(),MATCH($B960&$C960,'Smelter Look-up'!$J:$J,0))","v":{"$error":"#N/A"}},null,0,null,null,null,""]
[null,{"$f":"IF(LEN(A961)=0,\"\",INDEX('Smelter Look-up'!$A:$A,MATCH($A961,'Smelter Look-up'!$E:$E,0)))","v":""},{"$f":"IF(LEN(A961)=0,\"\",INDEX('Smelter Look-up'!$C:$C,MATCH($A961,'Smelter Look-up'!$E:$E,0)))","v":""},null,{"$f":"IF(ISERROR($V961),\"\",OFFSET('Smelter Look-up'!$D$4,$V961-4,0)&\"\")","v":""},{"$f":"IF(ISERROR($V961),\"\",OFFSET('Smelter Look-up'!$E$4,$V961-4,0))","v":""},{"$f":"IF(C961=$X$4,\"Enter smelter details\",IF(ISERROR($V961),\"\",OFFSET('Smelter Look-up'!$F$4,$V961-4,0)))","v":""},{"$f":"IF(ISERROR($V961),\"\",OFFSET('Smelter Look-up'!$G$4,$V961-4,0))","v":""},{"$f":"IF(ISERROR($V961),\"\",OFFSET('Smelter Look-up'!$H$4,$V961-4,0))","v":""},{"$f":"IF(ISERROR($V961),\"\",OFFSET('Smelter Look-up'!$I$4,$V961-4,0))","v":""},{"$nulls":7},{"$f":"IF(ISERROR($V961),\"\",OFFSET('Smelter Look-up'!$C$4,$V961-4,0)&\"\")","v":""},"",{"$f":"IF(B961=\"\",\"\",IF(ISERROR(MATCH($J961,SorP!$B$1:$B$5661,0)),\"\",INDIRECT(\"'SorP'!$A$\"&MATCH($J961,SorP!$B$1:$B$5661,0))))","v":""},null,{"$f":"IF(C961=\"\",NA(),MATCH($B961&$C961,'Smelter Look-up'!$J:$J,0))","v":{"$error":"#N/A"}},null,0,null,null,null,""]
[null,{"$f":"IF(LEN(A962)=0,\"\",INDEX('Smelter Look-up'!$A:$A,MATCH($A962,'Smelter Look-up'!$E:$E,0)))","v":""},{"$f":"IF(LEN(A962)=0,\"\",INDEX('Smelter Look-up'!$C:$C,MATCH($A962,'Smelter Look-up'!$E:$E,0)))","v":""},null,{"$f":"IF(ISERROR($V962),\"\",OFFSET('Smelter Look-up'!$D$4,$V962-4,0)&\"\")","v":""},{"$f":"IF(ISERROR($V962),\"\",OFFSET('Smelter Look-up'!$E$4,$V962-4,0))","v":""},{"$f":"IF(C962=$X$4,\"Enter smelter details\",IF(ISERROR($V962),\"\",OFFSET('Smelter Look-up'!$F$4,$V962-4,0)))","v":""},{"$f":"IF(ISERROR($V962),\"\",OFFSET('Smelter Look-up'!$G$4,$V962-4,0))","v":""},{"$f":"IF(ISERROR($V962),\"\",OFFSET('Smelter Look-up'!$H$4,$V962-4,0))","v":""},{"$f":"IF(ISERROR($V962),\"\",OFFSET('Smelter Look-up'!$I$4,$V962-4,0))","v":""},{"$nulls":7},{"$f":"IF(ISERROR($V962),\"\",OFFSET('Smelter Look-up'!$C$4,$V962-4,0)&\"\")","v":""},"",{"$f":"IF(B962=\"\",\"\",IF(ISERROR(MATCH($J962,SorP!$B$1:$B$5661,0)),\"\",INDIRECT(\"'SorP'!$A$\"&MATCH($J962,SorP!$B$1:$B$5661,0))))","v":""},null,{"$f":"IF(C962=\"\",NA(),MATCH($B962&$C962,'Smelter Look-up'!$J:$J,0))","v":{"$error":"#N/A"}},null,0,null,null,null,""]
[null,{"$f":"IF(LEN(A963)=0,\"\",INDEX('Smelter Look-up'!$A:$A,MATCH($A963,'Smelter Look-up'!$E:$E,0)))","v":""},{"$f":"IF(LEN(A963)=0,\"\",INDEX('Smelter Look-up'!$C:$C,MATCH($A963,'Smelter Look-up'!$E:$E,0)))","v":""},null,{"$f":"IF(ISERROR($V963),\"\",OFFSET('Smelter Look-up'!$D$4,$V963-4,0)&\"\")","v":""},{"$f":"IF(ISERROR($V963),\"\",OFFSET('Smelter Look-up'!$E$4,$V963-4,0))","v":""},{"$f":"IF(C963=$X$4,\"Enter smelter details\",IF(ISERROR($V963),\"\",OFFSET('Smelter Look-up'!$F$4,$V963-4,0)))","v":""},{"$f":"IF(ISERROR($V963),\"\",OFFSET('Smelter Look-up'!$G$4,$V963-4,0))","v":""},{"$f":"IF(ISERROR($V963),\"\",OFFSET('Smelter Look-up'!$H$4,$V963-4,0))","v":""},{"$f":"IF(ISERROR($V963),\"\",OFFSET('Smelter Look-up'!$I$4,$V963-4,0))","v":""},{"$nulls":7},{"$f":"IF(ISERROR($V963),\"\",OFFSET('Smelter Look-up'!$C$4,$V963-4,0)&\"\")","v":""},"",{"$f":"IF(B963=\"\",\"\",IF(ISERROR(MATCH($J963,SorP!$B$1:$B$5661,0)),\"\",INDIRECT(\"'SorP'!$A$\"&MATCH($J963,SorP!$B$1:$B$5661,0))))","v":""},null,{"$f":"IF(C963=\"\",NA(),MATCH($B963&$C963,'Smelter Look-up'!$J:$J,0))","v":{"$error":"#N/A"}},null,0,null,null,null,""]
[null,{"$f":"IF(LEN(A964)=0,\"\",INDEX('Smelter Look-up'!$A:$A,MATCH($A964,'Smelter Look-up'!$E:$E,0)))","v":""},{"$f":"IF(LEN(A964)=0,\"\",INDEX('Smelter Look-up'!$C:$C,MATCH($A964,'Smelter Look-up'!$E:$E,0)))","v":""},null,{"$f":"IF(ISERROR($V964),\"\",OFFSET('Smelter Look-up'!$D$4,$V964-4,0)&\"\")","v":""},{"$f":"IF(ISERROR($V964),\"\",OFFSET('Smelter Look-up'!$E$4,$V964-4,0))","v":""},{"$f":"IF(C964=$X$4,\"Enter smelter details\",IF(ISERROR($V964),\"\",OFFSET('Smelter Look-up'!$F$4,$V964-4,0)))","v":""},{"$f":"IF(ISERROR($V964),\"\",OFFSET('Smelter Look-up'!$G$4,$V964-4,0))","v":""},{"$f":"IF(ISERROR($V964),\"\",OFFSET('Smelter Look-up'!$H$4,$V964-4,0))","v":""},{"$f":"IF(ISERROR($V964),\"\",OFFSET('Smelter Look-up'!$I$4,$V964-4,0))","v":""},{"$nulls":7},{"$f":"IF(ISERROR($V964),\"\",OFFSET('Smelter Look-up'!$C$4,$V964-4,0)&\"\")","v":""},"",{"$f":"IF(B964=\"\",\"\",IF(ISERROR(MATCH($J964,SorP!$B$1:$B$5661,0)),\"\",INDIRECT(\"'SorP'!$A$\"&MATCH($J964,SorP!$B$1:$B$5661,0))))","v":""},null,{"$f":"IF(C964=\"\",NA(),MATCH($B964&$C964,'Smelter Look-up'!$J:$J,0))","v":{"$error":"#N/A"}},null,0,null,null,null,""]
[null,{"$f":"IF(LEN(A965)=0,\"\",INDEX('Smelter Look-up'!$A:$A,MATCH($A965,'Smelter Look-up'!$E:$E,0)))","v":""},{"$f":"IF(LEN(A965)=0,\"\",INDEX('Smelter Look-up'!$C:$C,MATCH($A965,'Smelter Look-up'!$E:$E,0)))","v":""},null,{"$f":"IF(ISERROR($V965),\"\",OFFSET('Smelter Look-up'!$D$4,$V965-4,0)&\"\")","v":""},{"$f":"IF(ISERROR($V965),\"\",OFFSET('Smelter Look-up'!$E$4,$V965-4,0))","v":""},{"$f":"IF(C965=$X$4,\"Enter smelter details\",IF(ISERROR($V965),\"\",OFFSET('Smelter Look-up'!$F$4,$V965-4,0)))","v":""},{"$f":"IF(ISERROR($V965),\"\",OFFSET('Smelter Look-up'!$G$4,$V965-4,0))","v":""},{"$f":"IF(ISERROR($V965),\"\",OFFSET('Smelter Look-up'!$H$4,$V965-4,0))","v":""},{"$f":"IF(ISERROR($V965),\"\",OFFSET('Smelter Look-up'!$I$4,$V965-4,0))","v":""},{"$nulls":7},{"$f":"IF(ISERROR($V965),\"\",OFFSET('Smelter Look-up'!$C$4,$V965-4,0)&\"\")","v":""},"",{"$f":"IF(B965=\"\",\"\",IF(ISERROR(MATCH($J965,SorP!$B$1:$B$5661,0)),\"\",INDIRECT(\"'SorP'!$A$\"&MATCH($J965,SorP!$B$1:$B$5661,0))))","v":""},null,{"$f":"IF(C965=\"\",NA(),MATCH($B965&$C965,'Smelter Look-up'!$J:$J,0))","v":{"$error":"#N/A"}},null,0,null,null,null,""]
[null,{"$f":"IF(LEN(A966)=0,\"\",INDEX('Smelter Look-up'!$A:$A,MATCH($A966,'Smelter Look-up'!$E:$E,0)))","v":""},{"$f":"IF(LEN(A966)=0,\"\",INDEX('Smelter Look-up'!$C:$C,MATCH($A966,'Smelter Look-up'!$E:$E,0)))","v":""},null,{"$f":"IF(ISERROR($V966),\"\",OFFSET('Smelter Look-up'!$D$4,$V966-4,0)&\"\")","v":""},{"$f":"IF(ISERROR($V966),\"\",OFFSET('Smelter Look-up'!$E$4,$V966-4,0))","v":""},{"$f":"IF(C966=$X$4,\"Enter smelter details\",IF(ISERROR($V966),\"\",OFFSET('Smelter Look-up'!$F$4,$V966-4,0)))","v":""},{"$f":"IF(ISERROR($V966),\"\",OFFSET('Smelter Look-up'!$G$4,$V966-4,0))","v":""},{"$f":"IF(ISERROR($V966),\"\",OFFSET('Smelter Look-up'!$H$4,$V966-4,0))","v":""},{"$f":"IF(ISERROR($V966),\"\",OFFSET('Smelter Look-up'!$I$4,$V966-4,0))","v":""},{"$nulls":7},{"$f":"IF(ISERROR($V966),\"\",OFFSET('Smelter Look-up'!$C$4,$V966-4,0)&\"\")","v":""},"",{"$f":"IF(B966=\"\",\"\",IF(ISERROR(MATCH($J966,SorP!$B$1:$B$5661,0)),\"\",INDIRECT(\"'SorP'!$A$\"&MATCH($J966,SorP!$B$1:$B$5661,0))))","v":""},null,{"$f":"IF(C966=\"\",NA(),MATCH($B966&$C966,'Smelter Look-up'!$J:$J,0))","v":{"$error":"#N/A"}},null,0,null,null,null,""]
[null,{"$f":"IF(LEN(A967)=0,\"\",INDEX('Smelter Look-up'!$A:$A,MATCH($A967,'Smelter Look-up'!$E:$E,0)))","v":""},{"$f":"IF(LEN(A967)=0,\"\",INDEX('Smelter Look-up'!$C:$C,MATCH($A967,'Smelter Look-up'!$E:$E,0)))","v":""},null,{"$f":"IF(ISERROR($V967),\"\",OFFSET('Smelter Look-up'!$D$4,$V967-4,0)&\"\")","v":""},{"$f":"IF(ISERROR($V967),\"\",OFFSET('Smelter Look-up'!$E$4,$V967-4,0))","v":""},{"$f":"IF(C967=$X$4,\"Enter smelter details\",IF(ISERROR($V967),\"\",OFFSET('Smelter Look-up'!$F$4,$V967-4,0)))","v":""},{"$f":"IF(ISERROR($V967),\"\",OFFSET('Smelter Look-up'!$G$4,$V967-4,0))","v":""},{"$f":"IF(ISERROR($V967),\"\",OFFSET('Smelter Look-up'!$H$4,$V967-4,0))","v":""},{"$f":"IF(ISERROR($V967),\"\",OFFSET('Smelter Look-up'!$I$4,$V967-4,0))","v":""},{"$nulls":7},{"$f":"IF(ISERROR($V967),\"\",OFFSET('Smelter Look-up'!$C$4,$V967-4,0)&\"\")","v":""},"",{"$f":"IF(B967=\"\",\"\",IF(ISERROR(MATCH($J967,SorP!$B$1:$B$5661,0)),\"\",INDIRECT(\"'SorP'!$A$\"&MATCH($J967,SorP!$B$1:$B$5661,0))))","v":""},null,{"$f":"IF(C967=\"\",NA(),MATCH($B967&$C967,'Smelter Look-up'!$J:$J,0))","v":{"$error":"#N/A"}},null,0,null,null,null,""]
[null,{"$f":"IF(LEN(A968)=0,\"\",INDEX('Smelter Look-up'!$A:$A,MATCH($A968,'Smelter Look-up'!$E:$E,0)))","v":""},{"$f":"IF(LEN(A968)=0,\"\",INDEX('Smelter Look-up'!$C:$C,MATCH($A968,'Smelter Look-up'!$E:$E,0)))","v":""},null,{"$f":"IF(ISERROR($V968),\"\",OFFSET('Smelter Look-up'!$D$4,$V968-4,0)&\"\")","v":""},{"$f":"IF(ISERROR($V968),\"\",OFFSET('Smelter Look-up'!$E$4,$V968-4,0))","v":""},{"$f":"IF(C968=$X$4,\"Enter smelter details\",IF(ISERROR($V968),\"\",OFFSET('Smelter Look-up'!$F$4,$V968-4,0)))","v":""},{"$f":"IF(ISERROR($V968),\"\",OFFSET('Smelter Look-up'!$G$4,$V968-4,0))","v":""},{"$f":"IF(ISERROR($V968),\"\",OFFSET('Smelter Look-up'!$H$4,$V968-4,0))","v":""},{"$f":"IF(ISERROR($V968),\"\",OFFSET('Smelter Look-up'!$I$4,$V968-4,0))","v":""},{"$nulls":7},{"$f":"IF(ISERROR($V968),\"\",OFFSET('Smelter Look-up'!$C$4,$V968-4,0)&\"\")","v":""},"",{"$f":"IF(B968=\"\",\"\",IF(ISERROR(MATCH($J968,SorP!$B$1:$B$5661,0)),\"\",INDIRECT(\"'SorP'!$A$\"&MATCH($J968,SorP!$B$1:$B$5661,0))))","v":""},null,{"$f":"IF(C968=\"\",NA(),MATCH($B968&$C968,'Smelter Look-up'!$J:$J,0))","v":{"$error":"#N/A"}},null,0,null,null,null,""]
[null,{"$f":"IF(LEN(A969)=0,\"\",INDEX('Smelter Look-up'!$A:$A,MATCH($A969,'Smelter Look-up'!$E:$E,0)))","v":""},{"$f":"IF(LEN(A969)=0,\"\",INDEX('Smelter Look-up'!$C:$C,MATCH($A969,'Smelter Look-up'!$E:$E,0)))","v":""},null,{"$f":"IF(ISERROR($V969),\"\",OFFSET('Smelter Look-up'!$D$4,$V969-4,0)&\"\")","v":""},{"$f":"IF(ISERROR($V969),\"\",OFFSET('Smelter Look-up'!$E$4,$V969-4,0))","v":""},{"$f":"IF(C969=$X$4,\"Enter smelter details\",IF(ISERROR($V969),\"\",OFFSET('Smelter Look-up'!$F$4,$V969-4,0)))","v":""},{"$f":"IF(ISERROR($V969),\"\",OFFSET('Smelter Look-up'!$G$4,$V969-4,0))","v":""},{"$f":"IF(ISERROR($V969),\"\",OFFSET('Smelter Look-up'!$H$4,$V969-4,0))","v":""},{"$f":"IF(ISERROR($V969),\"\",OFFSET('Smelter Look-up'!$I$4,$V969-4,0))","v":""},{"$nulls":7},{"$f":"IF(ISERROR($V969),\"\",OFFSET('Smelter Look-up'!$C$4,$V969-4,0)&\"\")","v":""},"",{"$f":"IF(B969=\"\",\"\",IF(ISERROR(MATCH($J969,SorP!$B$1:$B$5661,0)),\"\",INDIRECT(\"'SorP'!$A$\"&MATCH($J969,SorP!$B$1:$B$5661,0))))","v":""},null,{"$f":"IF(C969=\"\",NA(),MATCH($B969&$C969,'Smelter Look-up'!$J:$J,0))","v":{"$error":"#N/A"}},null,0,null,null,null,""]
[null,{"$f":"IF(LEN(A970)=0,\"\",INDEX('Smelter Look-up'!$A:$A,MATCH($A970,'Smelter Look-up'!$E:$E,0)))","v":""},{"$f":"IF(LEN(A970)=0,\"\",INDEX('Smelter Look-up'!$C:$C,MATCH($A970,'Smelter Look-up'!$E:$E,0)))","v":""},null,{"$f":"IF(ISERROR($V970),\"\",OFFSET('Smelter Look-up'!$D$4,$V970-4,0)&\"\")","v":""},{"$f":"IF(ISERROR($V970),\"\",OFFSET('Smelter Look-up'!$E$4,$V970-4,0))","v":""},{"$f":"IF(C970=$X$4,\"Enter smelter details\",IF(ISERROR($V970),\"\",OFFSET('Smelter Look-up'!$F$4,$V970-4,0)))","v":""},{"$f":"IF(ISERROR($V970),\"\",OFFSET('Smelter Look-up'!$G$4,$V970-4,0))","v":""},{"$f":"IF(ISERROR($V970),\"\",OFFSET('Smelter Look-up'!$H$4,$V970-4,0))","v":""},{"$f":"IF(ISERROR($V970),\"\",OFFSET('Smelter Look-up'!$I$4,$V970-4,0))","v":""},{"$nulls":7},{"$f":"IF(ISERROR($V970),\"\",OFFSET('Smelter Look-up'!$C$4,$V970-4,0)&\"\")","v":""},"",{"$f":"IF(B970=\"\",\"\",IF(ISERROR(MATCH($J970,SorP!$B$1:$B$5661,0)),\"\",INDIRECT(\"'SorP'!$A$\"&MATCH($J970,SorP!$B$1:$B$5661,0))))","v":""},null,{"$f":"IF(C970=\"\",NA(),MATCH($B970&$C970,'Smelter Look-up'!$J:$J,0))","v":{"$error":"#N/A"}},null,0,null,null,null,""]
[null,{"$f":"IF(LEN(A971)=0,\"\",INDEX('Smelter Look-up'!$A:$A,MATCH($A971,'Smelter Look-up'!$E:$E,0)))","v":""},{"$f":"IF(LEN(A971)=0,\"\",INDEX('Smelter Look-up'!$C:$C,MATCH($A971,'Smelter Look-up'!$E:$E,0)))","v":""},null,{"$f":"IF(ISERROR($V971),\"\",OFFSET('Smelter Look-up'!$D$4,$V971-4,0)&\"\")","v":""},{"$f":"IF(ISERROR($V971),\"\",OFFSET('Smelter Look-up'!$E$4,$V971-4,0))","v":""},{"$f":"IF(C971=$X$4,\"Enter smelter details\",IF(ISERROR($V971),\"\",OFFSET('Smelter Look-up'!$F$4,$V971-4,0)))","v":""},{"$f":"IF(ISERROR($V971),\"\",OFFSET('Smelter Look-up'!$G$4,$V971-4,0))","v":""},{"$f":"IF(ISERROR($V971),\"\",OFFSET('Smelter Look-up'!$H$4,$V971-4,0))","v":""},{"$f":"IF(ISERROR($V971),\"\",OFFSET('Smelter Look-up'!$I$4,$V971-4,0))","v":""},{"$nulls":7},{"$f":"IF(ISERROR($V971),\"\",OFFSET('Smelter Look-up'!$C$4,$V971-4,0)&\"\")","v":""},"",{"$f":"IF(B971=\"\",\"\",IF(ISERROR(MATCH($J971,SorP!$B$1:$B$5661,0)),\"\",INDIRECT(\"'SorP'!$A$\"&MATCH($J971,SorP!$B$1:$B$5661,0))))","v":""},null,{"$f":"IF(C971=\"\",NA(),MATCH($B971&$C971,'Smelter Look-up'!$J:$J,0))","v":{"$error":"#N/A"}},null,0,null,null,null,""]
[null,{"$f":"IF(LEN(A972)=0,\"\",INDEX('Smelter Look-up'!$A:$A,MATCH($A972,'Smelter Look-up'!$E:$E,0)))","v":""},{"$f":"IF(LEN(A972)=0,\"\",INDEX('Smelter Look-up'!$C:$C,MATCH($A972,'Smelter Look-up'!$E:$E,0)))","v":""},null,{"$f":"IF(ISERROR($V972),\"\",OFFSET('Smelter Look-up'!$D$4,$V972-4,0)&\"\")","v":""},{"$f":"IF(ISERROR($V972),\"\",OFFSET('Smelter Look-up'!$E$4,$V972-4,0))","v":""},{"$f":"IF(C972=$X$4,\"Enter smelter details\",IF(ISERROR($V972),\"\",OFFSET('Smelter Look-up'!$F$4,$V972-4,0)))","v":""},{"$f":"IF(ISERROR($V972),\"\",OFFSET('Smelter Look-up'!$G$4,$V972-4,0))","v":""},{"$f":"IF(ISERROR($V972),\"\",OFFSET('Smelter Look-up'!$H$4,$V972-4,0))","v":""},{"$f":"IF(ISERROR($V972),\"\",OFFSET('Smelter Look-up'!$I$4,$V972-4,0))","v":""},{"$nulls":7},{"$f":"IF(ISERROR($V972),\"\",OFFSET('Smelter Look-up'!$C$4,$V972-4,0)&\"\")","v":""},"",{"$f":"IF(B972=\"\",\"\",IF(ISERROR(MATCH($J972,SorP!$B$1:$B$5661,0)),\"\",INDIRECT(\"'SorP'!$A$\"&MATCH($J972,SorP!$B$1:$B$5661,0))))","v":""},null,{"$f":"IF(C972=\"\",NA(),MATCH($B972&$C972,'Smelter Look-up'!$J:$J,0))","v":{"$error":"#N/A"}},null,0,null,null,null,""]
[null,{"$f":"IF(LEN(A973)=0,\"\",INDEX('Smelter Look-up'!$A:$A,MATCH($A973,'Smelter Look-up'!$E:$E,0)))","v":""},{"$f":"IF(LEN(A973)=0,\"\",INDEX('Smelter Look-up'!$C:$C,MATCH($A973,'Smelter Look-up'!$E:$E,0)))","v":""},null,{"$f":"IF(ISERROR($V973),\"\",OFFSET('Smelter Look-up'!$D$4,$V973-4,0)&\"\")","v":""},{"$f":"IF(ISERROR($V973),\"\",OFFSET('Smelter Look-up'!$E$4,$V973-4,0))","v":""},{"$f":"IF(C973=$X$4,\"Enter smelter details\",IF(ISERROR($V973),\"\",OFFSET('Smelter Look-up'!$F$4,$V973-4,0)))","v":""},{"$f":"IF(ISERROR($V973),\"\",OFFSET('Smelter Look-up'!$G$4,$V973-4,0))","v":""},{"$f":"IF(ISERROR($V973),\"\",OFFSET('Smelter Look-up'!$H$4,$V973-4,0))","v":""},{"$f":"IF(ISERROR($V973),\"\",OFFSET('Smelter Look-up'!$I$4,$V973-4,0))","v":""},{"$nulls":7},{"$f":"IF(ISERROR($V973),\"\",OFFSET('Smelter Look-up'!$C$4,$V973-4,0)&\"\")","v":""},"",{"$f":"IF(B973=\"\",\"\",IF(ISERROR(MATCH($J973,SorP!$B$1:$B$5661,0)),\"\",INDIRECT(\"'SorP'!$A$\"&MATCH($J973,SorP!$B$1:$B$5661,0))))","v":""},null,{"$f":"IF(C973=\"\",NA(),MATCH($B973&$C973,'Smelter Look-up'!$J:$J,0))","v":{"$error":"#N/A"}},null,0,null,null,null,""]
[null,{"$f":"IF(LEN(A974)=0,\"\",INDEX('Smelter Look-up'!$A:$A,MATCH($A974,'Smelter Look-up'!$E:$E,0)))","v":""},{"$f":"IF(LEN(A974)=0,\"\",INDEX('Smelter Look-up'!$C:$C,MATCH($A974,'Smelter Look-up'!$E:$E,0)))","v":""},null,{"$f":"IF(ISERROR($V974),\"\",OFFSET('Smelter Look-up'!$D$4,$V974-4,0)&\"\")","v":""},{"$f":"IF(ISERROR($V974),\"\",OFFSET('Smelter Look-up'!$E$4,$V974-4,0))","v":""},{"$f":"IF(C974=$X$4,\"Enter smelter details\",IF(ISERROR($V974),\"\",OFFSET('Smelter Look-up'!$F$4,$V974-4,0)))","v":""},{"$f":"IF(ISERROR($V974),\"\",OFFSET('Smelter Look-up'!$G$4,$V974-4,0))","v":""},{"$f":"IF(ISERROR($V974),\"\",OFFSET('Smelter Look-up'!$H$4,$V974-4,0))","v":""},{"$f":"IF(ISERROR($V974),\"\",OFFSET('Smelter Look-up'!$I$4,$V974-4,0))","v":""},{"$nulls":7},{"$f":"IF(ISERROR($V974),\"\",OFFSET('Smelter Look-up'!$C$4,$V974-4,0)&\"\")","v":""},"",{"$f":"IF(B974=\"\",\"\",IF(ISERROR(MATCH($J974,SorP!$B$1:$B$5661,0)),\"\",INDIRECT(\"'SorP'!$A$\"&MATCH($J974,SorP!$B$1:$B$5661,0))))","v":""},null,{"$f":"IF(C974=\"\",NA(),MATCH($B974&$C974,'Smelter Look-up'!$J:$J,0))","v":{"$error":"#N/A"}},null,0,null,null,null,""]
[null,{"$f":"IF(LEN(A975)=0,\"\",INDEX('Smelter Look-up'!$A:$A,MATCH($A975,'Smelter Look-up'!$E:$E,0)))","v":""},{"$f":"IF(LEN(A975)=0,\"\",INDEX('Smelter Look-up'!$C:$C,MATCH($A975,'Smelter Look-up'!$E:$E,0)))","v":""},null,{"$f":"IF(ISERROR($V975),\"\",OFFSET('Smelter Look-up'!$D$4,$V975-4,0)&\"\")","v":""},{"$f":"IF(ISERROR($V975),\"\",OFFSET('Smelter Look-up'!$E$4,$V975-4,0))","v":""},{"$f":"IF(C975=$X$4,\"Enter smelter details\",IF(ISERROR($V975),\"\",OFFSET('Smelter Look-up'!$F$4,$V975-4,0)))","v":""},{"$f":"IF(ISERROR($V975),\"\",OFFSET('Smelter Look-up'!$G$4,$V975-4,0))","v":""},{"$f":"IF(ISERROR($V975),\"\",OFFSET('Smelter Look-up'!$H$4,$V975-4,0))","v":""},{"$f":"IF(ISERROR($V975),\"\",OFFSET('Smelter Look-up'!$I$4,$V975-4,0))","v":""},{"$nulls":7},{"$f":"IF(ISERROR($V975),\"\",OFFSET('Smelter Look-up'!$C$4,$V975-4,0)&\"\")","v":""},"",{"$f":"IF(B975=\"\",\"\",IF(ISERROR(MATCH($J975,SorP!$B$1:$B$5661,0)),\"\",INDIRECT(\"'SorP'!$A$\"&MATCH($J975,SorP!$B$1:$B$5661,0))))","v":""},null,{"$f":"IF(C975=\"\",NA(),MATCH($B975&$C975,'Smelter Look-up'!$J:$J,0))","v":{"$error":"#N/A"}},null,0,null,null,null,""]
[null,{"$f":"IF(LEN(A976)=0,\"\",INDEX('Smelter Look-up'!$A:$A,MATCH($A976,'Smelter Look-up'!$E:$E,0)))","v":""},{"$f":"IF(LEN(A976)=0,\"\",INDEX('Smelter Look-up'!$C:$C,MATCH($A976,'Smelter Look-up'!$E:$E,0)))","v":""},null,{"$f":"IF(ISERROR($V976),\"\",OFFSET('Smelter Look-up'!$D$4,$V976-4,0)&\"\")","v":""},{"$f":"IF(ISERROR($V976),\"\",OFFSET('Smelter Look-up'!$E$4,$V976-4,0))","v":""},{"$f":"IF(C976=$X$4,\"Enter smelter details\",IF(ISERROR($V976),\"\",OFFSET('Smelter Look-up'!$F$4,$V976-4,0)))","v":""},{"$f":"IF(ISERROR($V976),\"\",OFFSET('Smelter Look-up'!$G$4,$V976-4,0))","v":""},{"$f":"IF(ISERROR($V976),\"\",OFFSET('Smelter Look-up'!$H$4,$V976-4,0))","v":""},{"$f":"IF(ISERROR($V976),\"\",OFFSET('Smelter Look-up'!$I$4,$V976-4,0))","v":""},{"$nulls":7},{"$f":"IF(ISERROR($V976),\"\",OFFSET('Smelter Look-up'!$C$4,$V976-4,0)&\"\")","v":""},"",{"$f":"IF(B976=\"\",\"\",IF(ISERROR(MATCH($J976,SorP!$B$1:$B$5661,0)),\"\",INDIRECT(\"'SorP'!$A$\"&MATCH($J976,SorP!$B$1:$B$5661,0))))","v":""},null,{"$f":"IF(C976=\"\",NA(),MATCH($B976&$C976,'Smelter Look-up'!$J:$J,0))","v":{"$error":"#N/A"}},null,0,null,null,null,""]
[null,{"$f":"IF(LEN(A977)=0,\"\",INDEX('Smelter Look-up'!$A:$A,MATCH($A977,'Smelter Look-up'!$E:$E,0)))","v":""},{"$f":"IF(LEN(A977)=0,\"\",INDEX('Smelter Look-up'!$C:$C,MATCH($A977,'Smelter Look-up'!$E:$E,0)))","v":""},null,{"$f":"IF(ISERROR($V977),\"\",OFFSET('Smelter Look-up'!$D$4,$V977-4,0)&\"\")","v":""},{"$f":"IF(ISERROR($V977),\"\",OFFSET('Smelter Look-up'!$E$4,$V977-4,0))","v":""},{"$f":"IF(C977=$X$4,\"Enter smelter details\",IF(ISERROR($V977),\"\",OFFSET('Smelter Look-up'!$F$4,$V977-4,0)))","v":""},{"$f":"IF(ISERROR($V977),\"\",OFFSET('Smelter Look-up'!$G$4,$V977-4,0))","v":""},{"$f":"IF(ISERROR($V977),\"\",OFFSET('Smelter Look-up'!$H$4,$V977-4,0))","v":""},{"$f":"IF(ISERROR($V977),\"\",OFFSET('Smelter Look-up'!$I$4,$V977-4,0))","v":""},{"$nulls":7},{"$f":"IF(ISERROR($V977),\"\",OFFSET('Smelter Look-up'!$C$4,$V977-4,0)&\"\")","v":""},"",{"$f":"IF(B977=\"\",\"\",IF(ISERROR(MATCH($J977,SorP!$B$1:$B$5661,0)),\"\",INDIRECT(\"'SorP'!$A$\"&MATCH($J977,SorP!$B$1:$B$5661,0))))","v":""},null,{"$f":"IF(C977=\"\",NA(),MATCH($B977&$C977,'Smelter Look-up'!$J:$J,0))","v":{"$error":"#N/A"}},null,0,null,null,null,""]
[null,{"$f":"IF(LEN(A978)=0,\"\",INDEX('Smelter Look-up'!$A:$A,MATCH($A978,'Smelter Look-up'!$E:$E,0)))","v":""},{"$f":"IF(LEN(A978)=0,\"\",INDEX('Smelter Look-up'!$C:$C,MATCH($A978,'Smelter Look-up'!$E:$E,0)))","v":""},null,{"$f":"IF(ISERROR($V978),\"\",OFFSET('Smelter Look-up'!$D$4,$V978-4,0)&\"\")","v":""},{"$f":"IF(ISERROR($V978),\"\",OFFSET('Smelter Look-up'!$E$4,$V978-4,0))","v":""},{"$f":"IF(C978=$X$4,\"Enter smelter details\",IF(ISERROR($V978),\"\",OFFSET('Smelter Look-up'!$F$4,$V978-4,0)))","v":""},{"$f":"IF(ISERROR($V978),\"\",OFFSET('Smelter Look-up'!$G$4,$V978-4,0))","v":""},{"$f":"IF(ISERROR($V978),\"\",OFFSET('Smelter Look-up'!$H$4,$V978-4,0))","v":""},{"$f":"IF(ISERROR($V978),\"\",OFFSET('Smelter Look-up'!$I$4,$V978-4,0))","v":""},{"$nulls":7},{"$f":"IF(ISERROR($V978),\"\",OFFSET('Smelter Look-up'!$C$4,$V978-4,0)&\"\")","v":""},"",{"$f":"IF(B978=\"\",\"\",IF(ISERROR(MATCH($J978,SorP!$B$1:$B$5661,0)),\"\",INDIRECT(\"'SorP'!$A$\"&MATCH($J978,SorP!$B$1:$B$5661,0))))","v":""},null,{"$f":"IF(C978=\"\",NA(),MATCH($B978&$C978,'Smelter Look-up'!$J:$J,0))","v":{"$error":"#N/A"}},null,0,null,null,null,""]
[null,{"$f":"IF(LEN(A979)=0,\"\",INDEX('Smelter Look-up'!$A:$A,MATCH($A979,'Smelter Look-up'!$E:$E,0)))","v":""},{"$f":"IF(LEN(A979)=0,\"\",INDEX('Smelter Look-up'!$C:$C,MATCH($A979,'Smelter Look-up'!$E:$E,0)))","v":""},null,{"$f":"IF(ISERROR($V979),\"\",OFFSET('Smelter Look-up'!$D$4,$V979-4,0)&\"\")","v":""},{"$f":"IF(ISERROR($V979),\"\",OFFSET('Smelter Look-up'!$E$4,$V979-4,0))","v":""},{"$f":"IF(C979=$X$4,\"Enter smelter details\",IF(ISERROR($V979),\"\",OFFSET('Smelter Look-up'!$F$4,$V979-4,0)))","v":""},{"$f":"IF(ISERROR($V979),\"\",OFFSET('Smelter Look-up'!$G$4,$V979-4,0))","v":""},{"$f":"IF(ISERROR($V979),\"\",OFFSET('Smelter Look-up'!$H$4,$V979-4,0))","v":""},{"$f":"IF(ISERROR($V979),\"\",OFFSET('Smelter Look-up'!$I$4,$V979-4,0))","v":""},{"$nulls":7},{"$f":"IF(ISERROR($V979),\"\",OFFSET('Smelter Look-up'!$C$4,$V979-4,0)&\"\")","v":""},"",{"$f":"IF(B979=\"\",\"\",IF(ISERROR(MATCH($J979,SorP!$B$1:$B$5661,0)),\"\",INDIRECT(\"'SorP'!$A$\"&MATCH($J979,SorP!$B$1:$B$5661,0))))","v":""},null,{"$f":"IF(C979=\"\",NA(),MATCH($B979&$C979,'Smelter Look-up'!$J:$J,0))","v":{"$error":"#N/A"}},null,0,null,null,null,""]
[null,{"$f":"IF(LEN(A980)=0,\"\",INDEX('Smelter Look-up'!$A:$A,MATCH($A980,'Smelter Look-up'!$E:$E,0)))","v":""},{"$f":"IF(LEN(A980)=0,\"\",INDEX('Smelter Look-up'!$C:$C,MATCH($A980,'Smelter Look-up'!$E:$E,0)))","v":""},null,{"$f":"IF(ISERROR($V980),\"\",OFFSET('Smelter Look-up'!$D$4,$V980-4,0)&\"\")","v":""},{"$f":"IF(ISERROR($V980),\"\",OFFSET('Smelter Look-up'!$E$4,$V980-4,0))","v":""},{"$f":"IF(C980=$X$4,\"Enter smelter details\",IF(ISERROR($V980),\"\",OFFSET('Smelter Look-up'!$F$4,$V980-4,0)))","v":""},{"$f":"IF(ISERROR($V980),\"\",OFFSET('Smelter Look-up'!$G$4,$V980-4,0))","v":""},{"$f":"IF(ISERROR($V980),\"\",OFFSET('Smelter Look-up'!$H$4,$V980-4,0))","v":""},{"$f":"IF(ISERROR($V980),\"\",OFFSET('Smelter Look-up'!$I$4,$V980-4,0))","v":""},{"$nulls":7},{"$f":"IF(ISERROR($V980),\"\",OFFSET('Smelter Look-up'!$C$4,$V980-4,0)&\"\")","v":""},"",{"$f":"IF(B980=\"\",\"\",IF(ISERROR(MATCH($J980,SorP!$B$1:$B$5661,0)),\"\",INDIRECT(\"'SorP'!$A$\"&MATCH($J980,SorP!$B$1:$B$5661,0))))","v":""},null,{"$f":"IF(C980=\"\",NA(),MATCH($B980&$C980,'Smelter Look-up'!$J:$J,0))","v":{"$error":"#N/A"}},null,0,null,null,null,""]
[null,{"$f":"IF(LEN(A981)=0,\"\",INDEX('Smelter Look-up'!$A:$A,MATCH($A981,'Smelter Look-up'!$E:$E,0)))","v":""},{"$f":"IF(LEN(A981)=0,\"\",INDEX('Smelter Look-up'!$C:$C,MATCH($A981,'Smelter Look-up'!$E:$E,0)))","v":""},null,{"$f":"IF(ISERROR($V981),\"\",OFFSET('Smelter Look-up'!$D$4,$V981-4,0)&\"\")","v":""},{"$f":"IF(ISERROR($V981),\"\",OFFSET('Smelter Look-up'!$E$4,$V981-4,0))","v":""},{"$f":"IF(C981=$X$4,\"Enter smelter details\",IF(ISERROR($V981),\"\",OFFSET('Smelter Look-up'!$F$4,$V981-4,0)))","v":""},{"$f":"IF(ISERROR($V981),\"\",OFFSET('Smelter Look-up'!$G$4,$V981-4,0))","v":""},{"$f":"IF(ISERROR($V981),\"\",OFFSET('Smelter Look-up'!$H$4,$V981-4,0))","v":""},{"$f":"IF(ISERROR($V981),\"\",OFFSET('Smelter Look-up'!$I$4,$V981-4,0))","v":""},{"$nulls":7},{"$f":"IF(ISERROR($V981),\"\",OFFSET('Smelter Look-up'!$C$4,$V981-4,0)&\"\")","v":""},"",{"$f":"IF(B981=\"\",\"\",IF(ISERROR(MATCH($J981,SorP!$B$1:$B$5661,0)),\"\",INDIRECT(\"'SorP'!$A$\"&MATCH($J981,SorP!$B$1:$B$5661,0))))","v":""},null,{"$f":"IF(C981=\"\",NA(),MATCH($B981&$C981,'Smelter Look-up'!$J:$J,0))","v":{"$error":"#N/A"}},null,0,null,null,null,""]
[null,{"$f":"IF(LEN(A982)=0,\"\",INDEX('Smelter Look-up'!$A:$A,MATCH($A982,'Smelter Look-up'!$E:$E,0)))","v":""},{"$f":"IF(LEN(A982)=0,\"\",INDEX('Smelter Look-up'!$C:$C,MATCH($A982,'Smelter Look-up'!$E:$E,0)))","v":""},null,{"$f":"IF(ISERROR($V982),\"\",OFFSET('Smelter Look-up'!$D$4,$V982-4,0)&\"\")","v":""},{"$f":"IF(ISERROR($V982),\"\",OFFSET('Smelter Look-up'!$E$4,$V982-4,0))","v":""},{"$f":"IF(C982=$X$4,\"Enter smelter details\",IF(ISERROR($V982),\"\",OFFSET('Smelter Look-up'!$F$4,$V982-4,0)))","v":""},{"$f":"IF(ISERROR($V982),\"\",OFFSET('Smelter Look-up'!$G$4,$V982-4,0))","v":""},{"$f":"IF(ISERROR($V982),\"\",OFFSET('Smelter Look-up'!$H$4,$V982-4,0))","v":""},{"$f":"IF(ISERROR($V982),\"\",OFFSET('Smelter Look-up'!$I$4,$V982-4,0))","v":""},{"$nulls":7},{"$f":"IF(ISERROR($V982),\"\",OFFSET('Smelter Look-up'!$C$4,$V982-4,0)&\"\")","v":""},"",{"$f":"IF(B982=\"\",\"\",IF(ISERROR(MATCH($J982,SorP!$B$1:$B$5661,0)),\"\",INDIRECT(\"'SorP'!$A$\"&MATCH($J982,SorP!$B$1:$B$5661,0))))","v":""},null,{"$f":"IF(C982=\"\",NA(),MATCH($B982&$C982,'Smelter Look-up'!$J:$J,0))","v":{"$error":"#N/A"}},null,0,null,null,null,""]
[null,{"$f":"IF(LEN(A983)=0,\"\",INDEX('Smelter Look-up'!$A:$A,MATCH($A983,'Smelter Look-up'!$E:$E,0)))","v":""},{"$f":"IF(LEN(A983)=0,\"\",INDEX('Smelter Look-up'!$C:$C,MATCH($A983,'Smelter Look-up'!$E:$E,0)))","v":""},null,{"$f":"IF(ISERROR($V983),\"\",OFFSET('Smelter Look-up'!$D$4,$V983-4,0)&\"\")","v":""},{"$f":"IF(ISERROR($V983),\"\",OFFSET('Smelter Look-up'!$E$4,$V983-4,0))","v":""},{"$f":"IF(C983=$X$4,\"Enter smelter details\",IF(ISERROR($V983),\"\",OFFSET('Smelter Look-up'!$F$4,$V983-4,0)))","v":""},{"$f":"IF(ISERROR($V983),\"\",OFFSET('Smelter Look-up'!$G$4,$V983-4,0))","v":""},{"$f":"IF(ISERROR($V983),\"\",OFFSET('Smelter Look-up'!$H$4,$V983-4,0))","v":""},{"$f":"IF(ISERROR($V983),\"\",OFFSET('Smelter Look-up'!$I$4,$V983-4,0))","v":""},{"$nulls":7},{"$f":"IF(ISERROR($V983),\"\",OFFSET('Smelter Look-up'!$C$4,$V983-4,0)&\"\")","v":""},"",{"$f":"IF(B983=\"\",\"\",IF(ISERROR(MATCH($J983,SorP!$B$1:$B$5661,0)),\"\",INDIRECT(\"'SorP'!$A$\"&MATCH($J983,SorP!$B$1:$B$5661,0))))","v":""},null,{"$f":"IF(C983=\"\",NA(),MATCH($B983&$C983,'Smelter Look-up'!$J:$J,0))","v":{"$error":"#N/A"}},null,0,null,null,null,""]
[null,{"$f":"IF(LEN(A984)=0,\"\",INDEX('Smelter Look-up'!$A:$A,MATCH($A984,'Smelter Look-up'!$E:$E,0)))","v":""},{"$f":"IF(LEN(A984)=0,\"\",INDEX('Smelter Look-up'!$C:$C,MATCH($A984,'Smelter Look-up'!$E:$E,0)))","v":""},null,{"$f":"IF(ISERROR($V984),\"\",OFFSET('Smelter Look-up'!$D$4,$V984-4,0)&\"\")","v":""},{"$f":"IF(ISERROR($V984),\"\",OFFSET('Smelter Look-up'!$E$4,$V984-4,0))","v":""},{"$f":"IF(C984=$X$4,\"Enter smelter details\",IF(ISERROR($V984),\"\",OFFSET('Smelter Look-up'!$F$4,$V984-4,0)))","v":""},{"$f":"IF(ISERROR($V984),\"\",OFFSET('Smelter Look-up'!$G$4,$V984-4,0))","v":""},{"$f":"IF(ISERROR($V984),\"\",OFFSET('Smelter Look-up'!$H$4,$V984-4,0))","v":""},{"$f":"IF(ISERROR($V984),\"\",OFFSET('Smelter Look-up'!$I$4,$V984-4,0))","v":""},{"$nulls":7},{"$f":"IF(ISERROR($V984),\"\",OFFSET('Smelter Look-up'!$C$4,$V984-4,0)&\"\")","v":""},"",{"$f":"IF(B984=\"\",\"\",IF(ISERROR(MATCH($J984,SorP!$B$1:$B$5661,0)),\"\",INDIRECT(\"'SorP'!$A$\"&MATCH($J984,SorP!$B$1:$B$5661,0))))","v":""},null,{"$f":"IF(C984=\"\",NA(),MATCH($B984&$C984,'Smelter Look-up'!$J:$J,0))","v":{"$error":"#N/A"}},null,0,null,null,null,""]
[null,{"$f":"IF(LEN(A985)=0,\"\",INDEX('Smelter Look-up'!$A:$A,MATCH($A985,'Smelter Look-up'!$E:$E,0)))","v":""},{"$f":"IF(LEN(A985)=0,\"\",INDEX('Smelter Look-up'!$C:$C,MATCH($A985,'Smelter Look-up'!$E:$E,0)))","v":""},null,{"$f":"IF(ISERROR($V985),\"\",OFFSET('Smelter Look-up'!$D$4,$V985-4,0)&\"\")","v":""},{"$f":"IF(ISERROR($V985),\"\",OFFSET('Smelter Look-up'!$E$4,$V985-4,0))","v":""},{"$f":"IF(C985=$X$4,\"Enter smelter details\",IF(ISERROR($V985),\"\",OFFSET('Smelter Look-up'!$F$4,$V985-4,0)))","v":""},{"$f":"IF(ISERROR($V985),\"\",OFFSET('Smelter Look-up'!$G$4,$V985-4,0))","v":""},{"$f":"IF(ISERROR($V985),\"\",OFFSET('Smelter Look-up'!$H$4,$V985-4,0))","v":""},{"$f":"IF(ISERROR($V985),\"\",OFFSET('Smelter Look-up'!$I$4,$V985-4,0))","v":""},{"$nulls":7},{"$f":"IF(ISERROR($V985),\"\",OFFSET('Smelter Look-up'!$C$4,$V985-4,0)&\"\")","v":""},"",{"$f":"IF(B985=\"\",\"\",IF(ISERROR(MATCH($J985,SorP!$B$1:$B$5661,0)),\"\",INDIRECT(\"'SorP'!$A$\"&MATCH($J985,SorP!$B$1:$B$5661,0))))","v":""},null,{"$f":"IF(C985=\"\",NA(),MATCH($B985&$C985,'Smelter Look-up'!$J:$J,0))","v":{"$error":"#N/A"}},null,0,null,null,null,""]
[null,{"$f":"IF(LEN(A986)=0,\"\",INDEX('Smelter Look-up'!$A:$A,MATCH($A986,'Smelter Look-up'!$E:$E,0)))","v":""},{"$f":"IF(LEN(A986)=0,\"\",INDEX('Smelter Look-up'!$C:$C,MATCH($A986,'Smelter Look-up'!$E:$E,0)))","v":""},null,{"$f":"IF(ISERROR($V986),\"\",OFFSET('Smelter Look-up'!$D$4,$V986-4,0)&\"\")","v":""},{"$f":"IF(ISERROR($V986),\"\",OFFSET('Smelter Look-up'!$E$4,$V986-4,0))","v":""},{"$f":"IF(C986=$X$4,\"Enter smelter details\",IF(ISERROR($V986),\"\",OFFSET('Smelter Look-up'!$F$4,$V986-4,0)))","v":""},{"$f":"IF(ISERROR($V986),\"\",OFFSET('Smelter Look-up'!$G$4,$V986-4,0))","v":""},{"$f":"IF(ISERROR($V986),\"\",OFFSET('Smelter Look-up'!$H$4,$V986-4,0))","v":""},{"$f":"IF(ISERROR($V986),\"\",OFFSET('Smelter Look-up'!$I$4,$V986-4,0))","v":""},{"$nulls":7},{"$f":"IF(ISERROR($V986),\"\",OFFSET('Smelter Look-up'!$C$4,$V986-4,0)&\"\")","v":""},"",{"$f":"IF(B986=\"\",\"\",IF(ISERROR(MATCH($J986,SorP!$B$1:$B$5661,0)),\"\",INDIRECT(\"'SorP'!$A$\"&MATCH($J986,SorP!$B$1:$B$5661,0))))","v":""},null,{"$f":"IF(C986=\"\",NA(),MATCH($B986&$C986,'Smelter Look-up'!$J:$J,0))","v":{"$error":"#N/A"}},null,0,null,null,null,""]
[null,{"$f":"IF(LEN(A987)=0,\"\",INDEX('Smelter Look-up'!$A:$A,MATCH($A987,'Smelter Look-up'!$E:$E,0)))","v":""},{"$f":"IF(LEN(A987)=0,\"\",INDEX('Smelter Look-up'!$C:$C,MATCH($A987,'Smelter Look-up'!$E:$E,0)))","v":""},null,{"$f":"IF(ISERROR($V987),\"\",OFFSET('Smelter Look-up'!$D$4,$V987-4,0)&\"\")","v":""},{"$f":"IF(ISERROR($V987),\"\",OFFSET('Smelter Look-up'!$E$4,$V987-4,0))","v":""},{"$f":"IF(C987=$X$4,\"Enter smelter details\",IF(ISERROR($V987),\"\",OFFSET('Smelter Look-up'!$F$4,$V987-4,0)))","v":""},{"$f":"IF(ISERROR($V987),\"\",OFFSET('Smelter Look-up'!$G$4,$V987-4,0))","v":""},{"$f":"IF(ISERROR($V987),\"\",OFFSET('Smelter Look-up'!$H$4,$V987-4,0))","v":""},{"$f":"IF(ISERROR($V987),\"\",OFFSET('Smelter Look-up'!$I$4,$V987-4,0))","v":""},{"$nulls":7},{"$f":"IF(ISERROR($V987),\"\",OFFSET('Smelter Look-up'!$C$4,$V987-4,0)&\"\")","v":""},"",{"$f":"IF(B987=\"\",\"\",IF(ISERROR(MATCH($J987,SorP!$B$1:$B$5661,0)),\"\",INDIRECT(\"'SorP'!$A$\"&MATCH($J987,SorP!$B$1:$B$5661,0))))","v":""},null,{"$f":"IF(C987=\"\",NA(),MATCH($B987&$C987,'Smelter Look-up'!$J:$J,0))","v":{"$error":"#N/A"}},null,0,null,null,null,""]
[null,{"$f":"IF(LEN(A988)=0,\"\",INDEX('Smelter Look-up'!$A:$A,MATCH($A988,'Smelter Look-up'!$E:$E,0)))","v":""},{"$f":"IF(LEN(A988)=0,\"\",INDEX('Smelter Look-up'!$C:$C,MATCH($A988,'Smelter Look-up'!$E:$E,0)))","v":""},null,{"$f":"IF(ISERROR($V988),\"\",OFFSET('Smelter Look-up'!$D$4,$V988-4,0)&\"\")","v":""},{"$f":"IF(ISERROR($V988),\"\",OFFSET('Smelter Look-up'!$E$4,$V988-4,0))","v":""},{"$f":"IF(C988=$X$4,\"Enter smelter details\",IF(ISERROR($V988),\"\",OFFSET('Smelter Look-up'!$F$4,$V988-4,0)))","v":""},{"$f":"IF(ISERROR($V988),\"\",OFFSET('Smelter Look-up'!$G$4,$V988-4,0))","v":""},{"$f":"IF(ISERROR($V988),\"\",OFFSET('Smelter Look-up'!$H$4,$V988-4,0))","v":""},{"$f":"IF(ISERROR($V988),\"\",OFFSET('Smelter Look-up'!$I$4,$V988-4,0))","v":""},{"$nulls":7},{"$f":"IF(ISERROR($V988),\"\",OFFSET('Smelter Look-up'!$C$4,$V988-4,0)&\"\")","v":""},"",{"$f":"IF(B988=\"\",\"\",IF(ISERROR(MATCH($J988,SorP!$B$1:$B$5661,0)),\"\",INDIRECT(\"'SorP'!$A$\"&MATCH($J988,SorP!$B$1:$B$5661,0))))","v":""},null,{"$f":"IF(C988=\"\",NA(),MATCH($B988&$C988,'Smelter Look-up'!$J:$J,0))","v":{"$error":"#N/A"}},null,0,null,null,null,""]
[null,{"$f":"IF(LEN(A989)=0,\"\",INDEX('Smelter Look-up'!$A:$A,MATCH($A989,'Smelter Look-up'!$E:$E,0)))","v":""},{"$f":"IF(LEN(A989)=0,\"\",INDEX('Smelter Look-up'!$C:$C,MATCH($A989,'Smelter Look-up'!$E:$E,0)))","v":""},null,{"$f":"IF(ISERROR($V989),\"\",OFFSET('Smelter Look-up'!$D$4,$V989-4,0)&\"\")","v":""},{"$f":"IF(ISERROR($V989),\"\",OFFSET('Smelter Look-up'!$E$4,$V989-4,0))","v":""},{"$f":"IF(C989=$X$4,\"Enter smelter details\",IF(ISERROR($V989),\"\",OFFSET('Smelter Look-up'!$F$4,$V989-4,0)))","v":""},{"$f":"IF(ISERROR($V989),\"\",OFFSET('Smelter Look-up'!$G$4,$V989-4,0))","v":""},{"$f":"IF(ISERROR($V989),\"\",OFFSET('Smelter Look-up'!$H$4,$V989-4,0))","v":""},{"$f":"IF(ISERROR($V989),\"\",OFFSET('Smelter Look-up'!$I$4,$V989-4,0))","v":""},{"$nulls":7},{"$f":"IF(ISERROR($V989),\"\",OFFSET('Smelter Look-up'!$C$4,$V989-4,0)&\"\")","v":""},"",{"$f":"IF(B989=\"\",\"\",IF(ISERROR(MATCH($J989,SorP!$B$1:$B$5661,0)),\"\",INDIRECT(\"'SorP'!$A$\"&MATCH($J989,SorP!$B$1:$B$5661,0))))","v":""},null,{"$f":"IF(C989=\"\",NA(),MATCH($B989&$C989,'Smelter Look-up'!$J:$J,0))","v":{"$error":"#N/A"}},null,0,null,null,null,""]
[null,{"$f":"IF(LEN(A990)=0,\"\",INDEX('Smelter Look-up'!$A:$A,MATCH($A990,'Smelter Look-up'!$E:$E,0)))","v":""},{"$f":"IF(LEN(A990)=0,\"\",INDEX('Smelter Look-up'!$C:$C,MATCH($A990,'Smelter Look-up'!$E:$E,0)))","v":""},null,{"$f":"IF(ISERROR($V990),\"\",OFFSET('Smelter Look-up'!$D$4,$V990-4,0)&\"\")","v":""},{"$f":"IF(ISERROR($V990),\"\",OFFSET('Smelter Look-up'!$E$4,$V990-4,0))","v":""},{"$f":"IF(C990=$X$4,\"Enter smelter details\",IF(ISERROR($V990),\"\",OFFSET('Smelter Look-up'!$F$4,$V990-4,0)))","v":""},{"$f":"IF(ISERROR($V990),\"\",OFFSET('Smelter Look-up'!$G$4,$V990-4,0))","v":""},{"$f":"IF(ISERROR($V990),\"\",OFFSET('Smelter Look-up'!$H$4,$V990-4,0))","v":""},{"$f":"IF(ISERROR($V990),\"\",OFFSET('Smelter Look-up'!$I$4,$V990-4,0))","v":""},{"$nulls":7},{"$f":"IF(ISERROR($V990),\"\",OFFSET('Smelter Look-up'!$C$4,$V990-4,0)&\"\")","v":""},"",{"$f":"IF(B990=\"\",\"\",IF(ISERROR(MATCH($J990,SorP!$B$1:$B$5661,0)),\"\",INDIRECT(\"'SorP'!$A$\"&MATCH($J990,SorP!$B$1:$B$5661,0))))","v":""},null,{"$f":"IF(C990=\"\",NA(),MATCH($B990&$C990,'Smelter Look-up'!$J:$J,0))","v":{"$error":"#N/A"}},null,0,null,null,null,""]
[null,{"$f":"IF(LEN(A991)=0,\"\",INDEX('Smelter Look-up'!$A:$A,MATCH($A991,'Smelter Look-up'!$E:$E,0)))","v":""},{"$f":"IF(LEN(A991)=0,\"\",INDEX('Smelter Look-up'!$C:$C,MATCH($A991,'Smelter Look-up'!$E:$E,0)))","v":""},null,{"$f":"IF(ISERROR($V991),\"\",OFFSET('Smelter Look-up'!$D$4,$V991-4,0)&\"\")","v":""},{"$f":"IF(ISERROR($V991),\"\",OFFSET('Smelter Look-up'!$E$4,$V991-4,0))","v":""},{"$f":"IF(C991=$X$4,\"Enter smelter details\",IF(ISERROR($V991),\"\",OFFSET('Smelter Look-up'!$F$4,$V991-4,0)))","v":""},{"$f":"IF(ISERROR($V991),\"\",OFFSET('Smelter Look-up'!$G$4,$V991-4,0))","v":""},{"$f":"IF(ISERROR($V991),\"\",OFFSET('Smelter Look-up'!$H$4,$V991-4,0))","v":""},{"$f":"IF(ISERROR($V991),\"\",OFFSET('Smelter Look-up'!$I$4,$V991-4,0))","v":""},{"$nulls":7},{"$f":"IF(ISERROR($V991),\"\",OFFSET('Smelter Look-up'!$C$4,$V991-4,0)&\"\")","v":""},"",{"$f":"IF(B991=\"\",\"\",IF(ISERROR(MATCH($J991,SorP!$B$1:$B$5661,0)),\"\",INDIRECT(\"'SorP'!$A$\"&MATCH($J991,SorP!$B$1:$B$5661,0))))","v":""},null,{"$f":"IF(C991=\"\",NA(),MATCH($B991&$C991,'Smelter Look-up'!$J:$J,0))","v":{"$error":"#N/A"}},null,0,null,null,null,""]
[null,{"$f":"IF(LEN(A992)=0,\"\",INDEX('Smelter Look-up'!$A:$A,MATCH($A992,'Smelter Look-up'!$E:$E,0)))","v":""},{"$f":"IF(LEN(A992)=0,\"\",INDEX('Smelter Look-up'!$C:$C,MATCH($A992,'Smelter Look-up'!$E:$E,0)))","v":""},null,{"$f":"IF(ISERROR($V992),\"\",OFFSET('Smelter Look-up'!$D$4,$V992-4,0)&\"\")","v":""},{"$f":"IF(ISERROR($V992),\"\",OFFSET('Smelter Look-up'!$E$4,$V992-4,0))","v":""},{"$f":"IF(C992=$X$4,\"Enter smelter details\",IF(ISERROR($V992),\"\",OFFSET('Smelter Look-up'!$F$4,$V992-4,0)))","v":""},{"$f":"IF(ISERROR($V992),\"\",OFFSET('Smelter Look-up'!$G$4,$V992-4,0))","v":""},{"$f":"IF(ISERROR($V992),\"\",OFFSET('Smelter Look-up'!$H$4,$V992-4,0))","v":""},{"$f":"IF(ISERROR($V992),\"\",OFFSET('Smelter Look-up'!$I$4,$V992-4,0))","v":""},{"$nulls":7},{"$f":"IF(ISERROR($V992),\"\",OFFSET('Smelter Look-up'!$C$4,$V992-4,0)&\"\")","v":""},"",{"$f":"IF(B992=\"\",\"\",IF(ISERROR(MATCH($J992,SorP!$B$1:$B$5661,0)),\"\",INDIRECT(\"'SorP'!$A$\"&MATCH($J992,SorP!$B$1:$B$5661,0))))","v":""},null,{"$f":"IF(C992=\"\",NA(),MATCH($B992&$C992,'Smelter Look-up'!$J:$J,0))","v":{"$error":"#N/A"}},null,0,null,null,null,""]
[null,{"$f":"IF(LEN(A993)=0,\"\",INDEX('Smelter Look-up'!$A:$A,MATCH($A993,'Smelter Look-up'!$E:$E,0)))","v":""},{"$f":"IF(LEN(A993)=0,\"\",INDEX('Smelter Look-up'!$C:$C,MATCH($A993,'Smelter Look-up'!$E:$E,0)))","v":""},null,{"$f":"IF(ISERROR($V993),\"\",OFFSET('Smelter Look-up'!$D$4,$V993-4,0)&\"\")","v":""},{"$f":"IF(ISERROR($V993),\"\",OFFSET('Smelter Look-up'!$E$4,$V993-4,0))","v":""},{"$f":"IF(C993=$X$4,\"Enter smelter details\",IF(ISERROR($V993),\"\",OFFSET('Smelter Look-up'!$F$4,$V993-4,0)))","v":""},{"$f":"IF(ISERROR($V993),\"\",OFFSET('Smelter Look-up'!$G$4,$V993-4,0))","v":""},{"$f":"IF(ISERROR($V993),\"\",OFFSET('Smelter Look-up'!$H$4,$V993-4,0))","v":""},{"$f":"IF(ISERROR($V993),\"\",OFFSET('Smelter Look-up'!$I$4,$V993-4,0))","v":""},{"$nulls":7},{"$f":"IF(ISERROR($V993),\"\",OFFSET('Smelter Look-up'!$C$4,$V993-4,0)&\"\")","v":""},"",{"$f":"IF(B993=\"\",\"\",IF(ISERROR(MATCH($J993,SorP!$B$1:$B$5661,0)),\"\",INDIRECT(\"'SorP'!$A$\"&MATCH($J993,SorP!$B$1:$B$5661,0))))","v":""},null,{"$f":"IF(C993=\"\",NA(),MATCH($B993&$C993,'Smelter Look-up'!$J:$J,0))","v":{"$error":"#N/A"}},null,0,null,null,null,""]
[null,{"$f":"IF(LEN(A994)=0,\"\",INDEX('Smelter Look-up'!$A:$A,MATCH($A994,'Smelter Look-up'!$E:$E,0)))","v":""},{"$f":"IF(LEN(A994)=0,\"\",INDEX('Smelter Look-up'!$C:$C,MATCH($A994,'Smelter Look-up'!$E:$E,0)))","v":""},null,{"$f":"IF(ISERROR($V994),\"\",OFFSET('Smelter Look-up'!$D$4,$V994-4,0)&\"\")","v":""},{"$f":"IF(ISERROR($V994),\"\",OFFSET('Smelter Look-up'!$E$4,$V994-4,0))","v":""},{"$f":"IF(C994=$X$4,\"Enter smelter details\",IF(ISERROR($V994),\"\",OFFSET('Smelter Look-up'!$F$4,$V994-4,0)))","v":""},{"$f":"IF(ISERROR($V994),\"\",OFFSET('Smelter Look-up'!$G$4,$V994-4,0))","v":""},{"$f":"IF(ISERROR($V994),\"\",OFFSET('Smelter Look-up'!$H$4,$V994-4,0))","v":""},{"$f":"IF(ISERROR($V994),\"\",OFFSET('Smelter Look-up'!$I$4,$V994-4,0))","v":""},{"$nulls":7},{"$f":"IF(ISERROR($V994),\"\",OFFSET('Smelter Look-up'!$C$4,$V994-4,0)&\"\")","v":""},"",{"$f":"IF(B994=\"\",\"\",IF(ISERROR(MATCH($J994,SorP!$B$1:$B$5661,0)),\"\",INDIRECT(\"'SorP'!$A$\"&MATCH($J994,SorP!$B$1:$B$5661,0))))","v":""},null,{"$f":"IF(C994=\"\",NA(),MATCH($B994&$C994,'Smelter Look-up'!$J:$J,0))","v":{"$error":"#N/A"}},null,0,null,null,null,""]
[null,{"$f":"IF(LEN(A995)=0,\"\",INDEX('Smelter Look-up'!$A:$A,MATCH($A995,'Smelter Look-up'!$E:$E,0)))","v":""},{"$f":"IF(LEN(A995)=0,\"\",INDEX('Smelter Look-up'!$C:$C,MATCH($A995,'Smelter Look-up'!$E:$E,0)))","v":""},null,{"$f":"IF(ISERROR($V995),\"\",OFFSET('Smelter Look-up'!$D$4,$V995-4,0)&\"\")","v":""},{"$f":"IF(ISERROR($V995),\"\",OFFSET('Smelter Look-up'!$E$4,$V995-4,0))","v":""},{"$f":"IF(C995=$X$4,\"Enter smelter details\",IF(ISERROR($V995),\"\",OFFSET('Smelter Look-up'!$F$4,$V995-4,0)))","v":""},{"$f":"IF(ISERROR($V995),\"\",OFFSET('Smelter Look-up'!$G$4,$V995-4,0))","v":""},{"$f":"IF(ISERROR($V995),\"\",OFFSET('Smelter Look-up'!$H$4,$V995-4,0))","v":""},{"$f":"IF(ISERROR($V995),\"\",OFFSET('Smelter Look-up'!$I$4,$V995-4,0))","v":""},{"$nulls":7},{"$f":"IF(ISERROR($V995),\"\",OFFSET('Smelter Look-up'!$C$4,$V995-4,0)&\"\")","v":""},"",{"$f":"IF(B995=\"\",\"\",IF(ISERROR(MATCH($J995,SorP!$B$1:$B$5661,0)),\"\",INDIRECT(\"'SorP'!$A$\"&MATCH($J995,SorP!$B$1:$B$5661,0))))","v":""},null,{"$f":"IF(C995=\"\",NA(),MATCH($B995&$C995,'Smelter Look-up'!$J:$J,0))","v":{"$error":"#N/A"}},null,0,null,null,null,""]
[null,{"$f":"IF(LEN(A996)=0,\"\",INDEX('Smelter Look-up'!$A:$A,MATCH($A996,'Smelter Look-up'!$E:$E,0)))","v":""},{"$f":"IF(LEN(A996)=0,\"\",INDEX('Smelter Look-up'!$C:$C,MATCH($A996,'Smelter Look-up'!$E:$E,0)))","v":""},null,{"$f":"IF(ISERROR($V996),\"\",OFFSET('Smelter Look-up'!$D$4,$V996-4,0)&\"\")","v":""},{"$f":"IF(ISERROR($V996),\"\",OFFSET('Smelter Look-up'!$E$4,$V996-4,0))","v":""},{"$f":"IF(C996=$X$4,\"Enter smelter details\",IF(ISERROR($V996),\"\",OFFSET('Smelter Look-up'!$F$4,$V996-4,0)))","v":""},{"$f":"IF(ISERROR($V996),\"\",OFFSET('Smelter Look-up'!$G$4,$V996-4,0))","v":""},{"$f":"IF(ISERROR($V996),\"\",OFFSET('Smelter Look-up'!$H$4,$V996-4,0))","v":""},{"$f":"IF(ISERROR($V996),\"\",OFFSET('Smelter Look-up'!$I$4,$V996-4,0))","v":""},{"$nulls":7},{"$f":"IF(ISERROR($V996),\"\",OFFSET('Smelter Look-up'!$C$4,$V996-4,0)&\"\")","v":""},"",{"$f":"IF(B996=\"\",\"\",IF(ISERROR(MATCH($J996,SorP!$B$1:$B$5661,0)),\"\",INDIRECT(\"'SorP'!$A$\"&MATCH($J996,SorP!$B$1:$B$5661,0))))","v":""},null,{"$f":"IF(C996=\"\",NA(),MATCH($B996&$C996,'Smelter Look-up'!$J:$J,0))","v":{"$error":"#N/A"}},null,0,null,null,null,""]
[null,{"$f":"IF(LEN(A997)=0,\"\",INDEX('Smelter Look-up'!$A:$A,MATCH($A997,'Smelter Look-up'!$E:$E,0)))","v":""},{"$f":"IF(LEN(A997)=0,\"\",INDEX('Smelter Look-up'!$C:$C,MATCH($A997,'Smelter Look-up'!$E:$E,0)))","v":""},null,{"$f":"IF(ISERROR($V997),\"\",OFFSET('Smelter Look-up'!$D$4,$V997-4,0)&\"\")","v":""},{"$f":"IF(ISERROR($V997),\"\",OFFSET('Smelter Look-up'!$E$4,$V997-4,0))","v":""},{"$f":"IF(C997=$X$4,\"Enter smelter details\",IF(ISERROR($V997),\"\",OFFSET('Smelter Look-up'!$F$4,$V997-4,0)))","v":""},{"$f":"IF(ISERROR($V997),\"\",OFFSET('Smelter Look-up'!$G$4,$V997-4,0))","v":""},{"$f":"IF(ISERROR($V997),\"\",OFFSET('Smelter Look-up'!$H$4,$V997-4,0))","v":""},{"$f":"IF(ISERROR($V997),\"\",OFFSET('Smelter Look-up'!$I$4,$V997-4,0))","v":""},{"$nulls":7},{"$f":"IF(ISERROR($V997),\"\",OFFSET('Smelter Look-up'!$C$4,$V997-4,0)&\"\")","v":""},"",{"$f":"IF(B997=\"\",\"\",IF(ISERROR(MATCH($J997,SorP!$B$1:$B$5661,0)),\"\",INDIRECT(\"'SorP'!$A$\"&MATCH($J997,SorP!$B$1:$B$5661,0))))","v":""},null,{"$f":"IF(C997=\"\",NA(),MATCH($B997&$C997,'Smelter Look-up'!$J:$J,0))","v":{"$error":"#N/A"}},null,0,null,null,null,""]
[null,{"$f":"IF(LEN(A998)=0,\"\",INDEX('Smelter Look-up'!$A:$A,MATCH($A998,'Smelter Look-up'!$E:$E,0)))","v":""},{"$f":"IF(LEN(A998)=0,\"\",INDEX('Smelter Look-up'!$C:$C,MATCH($A998,'Smelter Look-up'!$E:$E,0)))","v":""},null,{"$f":"IF(ISERROR($V998),\"\",OFFSET('Smelter Look-up'!$D$4,$V998-4,0)&\"\")","v":""},{"$f":"IF(ISERROR($V998),\"\",OFFSET('Smelter Look-up'!$E$4,$V998-4,0))","v":""},{"$f":"IF(C998=$X$4,\"Enter smelter details\",IF(ISERROR($V998),\"\",OFFSET('Smelter Look-up'!$F$4,$V998-4,0)))","v":""},{"$f":"IF(ISERROR($V998),\"\",OFFSET('Smelter Look-up'!$G$4,$V998-4,0))","v":""},{"$f":"IF(ISERROR($V998),\"\",OFFSET('Smelter Look-up'!$H$4,$V998-4,0))","v":""},{"$f":"IF(ISERROR($V998),\"\",OFFSET('Smelter Look-up'!$I$4,$V998-4,0))","v":""},{"$nulls":7},{"$f":"IF(ISERROR($V998),\"\",OFFSET('Smelter Look-up'!$C$4,$V998-4,0)&\"\")","v":""},"",{"$f":"IF(B998=\"\",\"\",IF(ISERROR(MATCH($J998,SorP!$B$1:$B$5661,0)),\"\",INDIRECT(\"'SorP'!$A$\"&MATCH($J998,SorP!$B$1:$B$5661,0))))","v":""},null,{"$f":"IF(C998=\"\",NA(),MATCH($B998&$C998,'Smelter Look-up'!$J:$J,0))","v":{"$error":"#N/A"}},null,0,null,null,null,""]
[null,{"$f":"IF(LEN(A999)=0,\"\",INDEX('Smelter Look-up'!$A:$A,MATCH($A999,'Smelter Look-up'!$E:$E,0)))","v":""},{"$f":"IF(LEN(A999)=0,\"\",INDEX('Smelter Look-up'!$C:$C,MATCH($A999,'Smelter Look-up'!$E:$E,0)))","v":""},null,{"$f":"IF(ISERROR($V999),\"\",OFFSET('Smelter Look-up'!$D$4,$V999-4,0)&\"\")","v":""},{"$f":"IF(ISERROR($V999),\"\",OFFSET('Smelter Look-up'!$E$4,$V999-4,0))","v":""},{"$f":"IF(C999=$X$4,\"Enter smelter details\",IF(ISERROR($V999),\"\",OFFSET('Smelter Look-up'!$F$4,$V999-4,0)))","v":""},{"$f":"IF(ISERROR($V999),\"\",OFFSET('Smelter Look-up'!$G$4,$V999-4,0))","v":""},{"$f":"IF(ISERROR($V999),\"\",OFFSET('Smelter Look-up'!$H$4,$V999-4,0))","v":""},{"$f":"IF(ISERROR($V999),\"\",OFFSET('Smelter Look-up'!$I$4,$V999-4,0))","v":""},{"$nulls":7},{"$f":"IF(ISERROR($V999),\"\",OFFSET('Smelter Look-up'!$C$4,$V999-4,0)&\"\")","v":""},"",{"$f":"IF(B999=\"\",\"\",IF(ISERROR(MATCH($J999,SorP!$B$1:$B$5661,0)),\"\",INDIRECT(\"'SorP'!$A$\"&MATCH($J999,SorP!$B$1:$B$5661,0))))","v":""},null,{"$f":"IF(C999=\"\",NA(),MATCH($B999&$C999,'Smelter Look-up'!$J:$J,0))","v":{"$error":"#N/A"}},null,0,null,null,null,""]
[null,{"$f":"IF(LEN(A1000)=0,\"\",INDEX('Smelter Look-up'!$A:$A,MATCH($A1000,'Smelter Look-up'!$E:$E,0)))","v":""},{"$f":"IF(LEN(A1000)=0,\"\",INDEX('Smelter Look-up'!$C:$C,MATCH($A1000,'Smelter Look-up'!$E:$E,0)))","v":""},null,{"$f":"IF(ISERROR($V1000),\"\",OFFSET('Smelter Look-up'!$D$4,$V1000-4,0)&\"\")","v":""},{"$f":"IF(ISERROR($V1000),\"\",OFFSET('Smelter Look-up'!$E$4,$V1000-4,0))","v":""},{"$f":"IF(C1000=$X$4,\"Enter smelter details\",IF(ISERROR($V1000),\"\",OFFSET('Smelter Look-up'!$F$4,$V1000-4,0)))","v":""},{"$f":"IF(ISERROR($V1000),\"\",OFFSET('Smelter Look-up'!$G$4,$V1000-4,0))","v":""},{"$f":"IF(ISERROR($V1000),\"\",OFFSET('Smelter Look-up'!$H$4,$V1000-4,0))","v":""},{"$f":"IF(ISERROR($V1000),\"\",OFFSET('Smelter Look-up'!$I$4,$V1000-4,0))","v":""},{"$nulls":7},{"$f":"IF(ISERROR($V1000),\"\",OFFSET('Smelter Look-up'!$C$4,$V1000-4,0)&\"\")","v":""},"",{"$f":"IF(B1000=\"\",\"\",IF(ISERROR(MATCH($J1000,SorP!$B$1:$B$5661,0)),\"\",INDIRECT(\"'SorP'!$A$\"&MATCH($J1000,SorP!$B$1:$B$5661,0))))","v":""},null,{"$f":"IF(C1000=\"\",NA(),MATCH($B1000&$C1000,'Smelter Look-up'!$J:$J,0))","v":{"$error":"#N/A"}},null,0,null,null,null,""]
[null,{"$f":"IF(LEN(A1001)=0,\"\",INDEX('Smelter Look-up'!$A:$A,MATCH($A1001,'Smelter Look-up'!$E:$E,0)))","v":""},{"$f":"IF(LEN(A1001)=0,\"\",INDEX('Smelter Look-up'!$C:$C,MATCH($A1001,'Smelter Look-up'!$E:$E,0)))","v":""},null,{"$f":"IF(ISERROR($V1001),\"\",OFFSET('Smelter Look-up'!$D$4,$V1001-4,0)&\"\")","v":""},{"$f":"IF(ISERROR($V1001),\"\",OFFSET('Smelter Look-up'!$E$4,$V1001-4,0))","v":""},{"$f":"IF(C1001=$X$4,\"Enter smelter details\",IF(ISERROR($V1001),\"\",OFFSET('Smelter Look-up'!$F$4,$V1001-4,0)))","v":""},{"$f":"IF(ISERROR($V1001),\"\",OFFSET('Smelter Look-up'!$G$4,$V1001-4,0))","v":""},{"$f":"IF(ISERROR($V1001),\"\",OFFSET('Smelter Look-up'!$H$4,$V1001-4,0))","v":""},{"$f":"IF(ISERROR($V1001),\"\",OFFSET('Smelter Look-up'!$I$4,$V1001-4,0))","v":""},{"$nulls":7},{"$f":"IF(ISERROR($V1001),\"\",OFFSET('Smelter Look-up'!$C$4,$V1001-4,0)&\"\")","v":""},"",{"$f":"IF(B1001=\"\",\"\",IF(ISERROR(MATCH($J1001,SorP!$B$1:$B$5661,0)),\"\",INDIRECT(\"'SorP'!$A$\"&MATCH($J1001,SorP!$B$1:$B$5661,0))))","v":""},null,{"$f":"IF(C1001=\"\",NA(),MATCH($B1001&$C1001,'Smelter Look-up'!$J:$J,0))","v":{"$error":"#N/A"}},null,0,null,null,null,""]
[null,{"$f":"IF(LEN(A1002)=0,\"\",INDEX('Smelter Look-up'!$A:$A,MATCH($A1002,'Smelter Look-up'!$E:$E,0)))","v":""},{"$f":"IF(LEN(A1002)=0,\"\",INDEX('Smelter Look-up'!$C:$C,MATCH($A1002,'Smelter Look-up'!$E:$E,0)))","v":""},null,{"$f":"IF(ISERROR($V1002),\"\",OFFSET('Smelter Look-up'!$D$4,$V1002-4,0)&\"\")","v":""},{"$f":"IF(ISERROR($V1002),\"\",OFFSET('Smelter Look-up'!$E$4,$V1002-4,0))","v":""},{"$f":"IF(C1002=$X$4,\"Enter smelter details\",IF(ISERROR($V1002),\"\",OFFSET('Smelter Look-up'!$F$4,$V1002-4,0)))","v":""},{"$f":"IF(ISERROR($V1002),\"\",OFFSET('Smelter Look-up'!$G$4,$V1002-4,0))","v":""},{"$f":"IF(ISERROR($V1002),\"\",OFFSET('Smelter Look-up'!$H$4,$V1002-4,0))","v":""},{"$f":"IF(ISERROR($V1002),\"\",OFFSET('Smelter Look-up'!$I$4,$V1002-4,0))","v":""},{"$nulls":7},{"$f":"IF(ISERROR($V1002),\"\",OFFSET('Smelter Look-up'!$C$4,$V1002-4,0)&\"\")","v":""},"",{"$f":"IF(B1002=\"\",\"\",IF(ISERROR(MATCH($J1002,SorP!$B$1:$B$5661,0)),\"\",INDIRECT(\"'SorP'!$A$\"&MATCH($J1002,SorP!$B$1:$B$5661,0))))","v":""},null,{"$f":"IF(C1002=\"\",NA(),MATCH($B1002&$C1002,'Smelter Look-up'!$J:$J,0))","v":{"$error":"#N/A"}},null,0,null,null,null,""]
[null,{"$f":"IF(LEN(A1003)=0,\"\",INDEX('Smelter Look-up'!$A:$A,MATCH($A1003,'Smelter Look-up'!$E:$E,0)))","v":""},{"$f":"IF(LEN(A1003)=0,\"\",INDEX('Smelter Look-up'!$C:$C,MATCH($A1003,'Smelter Look-up'!$E:$E,0)))","v":""},null,{"$f":"IF(ISERROR($V1003),\"\",OFFSET('Smelter Look-up'!$D$4,$V1003-4,0)&\"\")","v":""},{"$f":"IF(ISERROR($V1003),\"\",OFFSET('Smelter Look-up'!$E$4,$V1003-4,0))","v":""},{"$f":"IF(C1003=$X$4,\"Enter smelter details\",IF(ISERROR($V1003),\"\",OFFSET('Smelter Look-up'!$F$4,$V1003-4,0)))","v":""},{"$f":"IF(ISERROR($V1003),\"\",OFFSET('Smelter Look-up'!$G$4,$V1003-4,0))","v":""},{"$f":"IF(ISERROR($V1003),\"\",OFFSET('Smelter Look-up'!$H$4,$V1003-4,0))","v":""},{"$f":"IF(ISERROR($V1003),\"\",OFFSET('Smelter Look-up'!$I$4,$V1003-4,0))","v":""},{"$nulls":7},{"$f":"IF(ISERROR($V1003),\"\",OFFSET('Smelter Look-up'!$C$4,$V1003-4,0)&\"\")","v":""},"",{"$f":"IF(B1003=\"\",\"\",IF(ISERROR(MATCH($J1003,SorP!$B$1:$B$5661,0)),\"\",INDIRECT(\"'SorP'!$A$\"&MATCH($J1003,SorP!$B$1:$B$5661,0))))","v":""},null,{"$f":"IF(C1003=\"\",NA(),MATCH($B1003&$C1003,'Smelter Look-up'!$J:$J,0))","v":{"$error":"#N/A"}},null,0,null,null,null,""]
[null,{"$f":"IF(LEN(A1004)=0,\"\",INDEX('Smelter Look-up'!$A:$A,MATCH($A1004,'Smelter Look-up'!$E:$E,0)))","v":""},{"$f":"IF(LEN(A1004)=0,\"\",INDEX('Smelter Look-up'!$C:$C,MATCH($A1004,'Smelter Look-up'!$E:$E,0)))","v":""},null,{"$f":"IF(ISERROR($V1004),\"\",OFFSET('Smelter Look-up'!$D$4,$V1004-4,0)&\"\")","v":""},{"$f":"IF(ISERROR($V1004),\"\",OFFSET('Smelter Look-up'!$E$4,$V1004-4,0))","v":""},{"$f":"IF(C1004=$X$4,\"Enter smelter details\",IF(ISERROR($V1004),\"\",OFFSET('Smelter Look-up'!$F$4,$V1004-4,0)))","v":""},{"$f":"IF(ISERROR($V1004),\"\",OFFSET('Smelter Look-up'!$G$4,$V1004-4,0))","v":""},{"$f":"IF(ISERROR($V1004),\"\",OFFSET('Smelter Look-up'!$H$4,$V1004-4,0))","v":""},{"$f":"IF(ISERROR($V1004),\"\",OFFSET('Smelter Look-up'!$I$4,$V1004-4,0))","v":""},{"$nulls":7},{"$f":"IF(ISERROR($V1004),\"\",OFFSET('Smelter Look-up'!$C$4,$V1004-4,0)&\"\")","v":""},"",{"$f":"IF(B1004=\"\",\"\",IF(ISERROR(MATCH($J1004,SorP!$B$1:$B$5661,0)),\"\",INDIRECT(\"'SorP'!$A$\"&MATCH($J1004,SorP!$B$1:$B$5661,0))))","v":""},null,{"$f":"IF(C1004=\"\",NA(),MATCH($B1004&$C1004,'Smelter Look-up'!$J:$J,0))","v":{"$error":"#N/A"}},null,0,null,null,null,""]
[null,{"$f":"IF(LEN(A1005)=0,\"\",INDEX('Smelter Look-up'!$A:$A,MATCH($A1005,'Smelter Look-up'!$E:$E,0)))","v":""},{"$f":"IF(LEN(A1005)=0,\"\",INDEX('Smelter Look-up'!$C:$C,MATCH($A1005,'Smelter Look-up'!$E:$E,0)))","v":""},null,{"$f":"IF(ISERROR($V1005),\"\",OFFSET('Smelter Look-up'!$D$4,$V1005-4,0)&\"\")","v":""},{"$f":"IF(ISERROR($V1005),\"\",OFFSET('Smelter Look-up'!$E$4,$V1005-4,0))","v":""},{"$f":"IF(C1005=$X$4,\"Enter smelter details\",IF(ISERROR($V1005),\"\",OFFSET('Smelter Look-up'!$F$4,$V1005-4,0)))","v":""},{"$f":"IF(ISERROR($V1005),\"\",OFFSET('Smelter Look-up'!$G$4,$V1005-4,0))","v":""},{"$f":"IF(ISERROR($V1005),\"\",OFFSET('Smelter Look-up'!$H$4,$V1005-4,0))","v":""},{"$f":"IF(ISERROR($V1005),\"\",OFFSET('Smelter Look-up'!$I$4,$V1005-4,0))","v":""},{"$nulls":7},{"$f":"IF(ISERROR($V1005),\"\",OFFSET('Smelter Look-up'!$C$4,$V1005-4,0)&\"\")","v":""},"",{"$f":"IF(B1005=\"\",\"\",IF(ISERROR(MATCH($J1005,SorP!$B$1:$B$5661,0)),\"\",INDIRECT(\"'SorP'!$A$\"&MATCH($J1005,SorP!$B$1:$B$5661,0))))","v":""},null,{"$f":"IF(C1005=\"\",NA(),MATCH($B1005&$C1005,'Smelter Look-up'!$J:$J,0))","v":{"$error":"#N/A"}},null,0,null,null,null,""]
[null,{"$f":"IF(LEN(A1006)=0,\"\",INDEX('Smelter Look-up'!$A:$A,MATCH($A1006,'Smelter Look-up'!$E:$E,0)))","v":""},{"$f":"IF(LEN(A1006)=0,\"\",INDEX('Smelter Look-up'!$C:$C,MATCH($A1006,'Smelter Look-up'!$E:$E,0)))","v":""},null,{"$f":"IF(ISERROR($V1006),\"\",OFFSET('Smelter Look-up'!$D$4,$V1006-4,0)&\"\")","v":""},{"$f":"IF(ISERROR($V1006),\"\",OFFSET('Smelter Look-up'!$E$4,$V1006-4,0))","v":""},{"$f":"IF(C1006=$X$4,\"Enter smelter details\",IF(ISERROR($V1006),\"\",OFFSET('Smelter Look-up'!$F$4,$V1006-4,0)))","v":""},{"$f":"IF(ISERROR($V1006),\"\",OFFSET('Smelter Look-up'!$G$4,$V1006-4,0))","v":""},{"$f":"IF(ISERROR($V1006),\"\",OFFSET('Smelter Look-up'!$H$4,$V1006-4,0))","v":""},{"$f":"IF(ISERROR($V1006),\"\",OFFSET('Smelter Look-up'!$I$4,$V1006-4,0))","v":""},{"$nulls":7},{"$f":"IF(ISERROR($V1006),\"\",OFFSET('Smelter Look-up'!$C$4,$V1006-4,0)&\"\")","v":""},"",{"$f":"IF(B1006=\"\",\"\",IF(ISERROR(MATCH($J1006,SorP!$B$1:$B$5661,0)),\"\",INDIRECT(\"'SorP'!$A$\"&MATCH($J1006,SorP!$B$1:$B$5661,0))))","v":""},null,{"$f":"IF(C1006=\"\",NA(),MATCH($B1006&$C1006,'Smelter Look-up'!$J:$J,0))","v":{"$error":"#N/A"}},null,0,null,null,null,""]
[null,{"$f":"IF(LEN(A1007)=0,\"\",INDEX('Smelter Look-up'!$A:$A,MATCH($A1007,'Smelter Look-up'!$E:$E,0)))","v":""},{"$f":"IF(LEN(A1007)=0,\"\",INDEX('Smelter Look-up'!$C:$C,MATCH($A1007,'Smelter Look-up'!$E:$E,0)))","v":""},null,{"$f":"IF(ISERROR($V1007),\"\",OFFSET('Smelter Look-up'!$D$4,$V1007-4,0)&\"\")","v":""},{"$f":"IF(ISERROR($V1007),\"\",OFFSET('Smelter Look-up'!$E$4,$V1007-4,0))","v":""},{"$f":"IF(C1007=$X$4,\"Enter smelter details\",IF(ISERROR($V1007),\"\",OFFSET('Smelter Look-up'!$F$4,$V1007-4,0)))","v":""},{"$f":"IF(ISERROR($V1007),\"\",OFFSET('Smelter Look-up'!$G$4,$V1007-4,0))","v":""},{"$f":"IF(ISERROR($V1007),\"\",OFFSET('Smelter Look-up'!$H$4,$V1007-4,0))","v":""},{"$f":"IF(ISERROR($V1007),\"\",OFFSET('Smelter Look-up'!$I$4,$V1007-4,0))","v":""},{"$nulls":7},{"$f":"IF(ISERROR($V1007),\"\",OFFSET('Smelter Look-up'!$C$4,$V1007-4,0)&\"\")","v":""},"",{"$f":"IF(B1007=\"\",\"\",IF(ISERROR(MATCH($J1007,SorP!$B$1:$B$5661,0)),\"\",INDIRECT(\"'SorP'!$A$\"&MATCH($J1007,SorP!$B$1:$B$5661,0))))","v":""},null,{"$f":"IF(C1007=\"\",NA(),MATCH($B1007&$C1007,'Smelter Look-up'!$J:$J,0))","v":{"$error":"#N/A"}},null,0,null,null,null,""]
[null,{"$f":"IF(LEN(A1008)=0,\"\",INDEX('Smelter Look-up'!$A:$A,MATCH($A1008,'Smelter Look-up'!$E:$E,0)))","v":""},{"$f":"IF(LEN(A1008)=0,\"\",INDEX('Smelter Look-up'!$C:$C,MATCH($A1008,'Smelter Look-up'!$E:$E,0)))","v":""},null,{"$f":"IF(ISERROR($V1008),\"\",OFFSET('Smelter Look-up'!$D$4,$V1008-4,0)&\"\")","v":""},{"$f":"IF(ISERROR($V1008),\"\",OFFSET('Smelter Look-up'!$E$4,$V1008-4,0))","v":""},{"$f":"IF(C1008=$X$4,\"Enter smelter details\",IF(ISERROR($V1008),\"\",OFFSET('Smelter Look-up'!$F$4,$V1008-4,0)))","v":""},{"$f":"IF(ISERROR($V1008),\"\",OFFSET('Smelter Look-up'!$G$4,$V1008-4,0))","v":""},{"$f":"IF(ISERROR($V1008),\"\",OFFSET('Smelter Look-up'!$H$4,$V1008-4,0))","v":""},{"$f":"IF(ISERROR($V1008),\"\",OFFSET('Smelter Look-up'!$I$4,$V1008-4,0))","v":""},{"$nulls":7},{"$f":"IF(ISERROR($V1008),\"\",OFFSET('Smelter Look-up'!$C$4,$V1008-4,0)&\"\")","v":""},"",{"$f":"IF(B1008=\"\",\"\",IF(ISERROR(MATCH($J1008,SorP!$B$1:$B$5661,0)),\"\",INDIRECT(\"'SorP'!$A$\"&MATCH($J1008,SorP!$B$1:$B$5661,0))))","v":""},null,{"$f":"IF(C1008=\"\",NA(),MATCH($B1008&$C1008,'Smelter Look-up'!$J:$J,0))","v":{"$error":"#N/A"}},null,0,null,null,null,""]
[null,{"$f":"IF(LEN(A1009)=0,\"\",INDEX('Smelter Look-up'!$A:$A,MATCH($A1009,'Smelter Look-up'!$E:$E,0)))","v":""},{"$f":"IF(LEN(A1009)=0,\"\",INDEX('Smelter Look-up'!$C:$C,MATCH($A1009,'Smelter Look-up'!$E:$E,0)))","v":""},null,{"$f":"IF(ISERROR($V1009),\"\",OFFSET('Smelter Look-up'!$D$4,$V1009-4,0)&\"\")","v":""},{"$f":"IF(ISERROR($V1009),\"\",OFFSET('Smelter Look-up'!$E$4,$V1009-4,0))","v":""},{"$f":"IF(C1009=$X$4,\"Enter smelter details\",IF(ISERROR($V1009),\"\",OFFSET('Smelter Look-up'!$F$4,$V1009-4,0)))","v":""},{"$f":"IF(ISERROR($V1009),\"\",OFFSET('Smelter Look-up'!$G$4,$V1009-4,0))","v":""},{"$f":"IF(ISERROR($V1009),\"\",OFFSET('Smelter Look-up'!$H$4,$V1009-4,0))","v":""},{"$f":"IF(ISERROR($V1009),\"\",OFFSET('Smelter Look-up'!$I$4,$V1009-4,0))","v":""},{"$nulls":7},{"$f":"IF(ISERROR($V1009),\"\",OFFSET('Smelter Look-up'!$C$4,$V1009-4,0)&\"\")","v":""},"",{"$f":"IF(B1009=\"\",\"\",IF(ISERROR(MATCH($J1009,SorP!$B$1:$B$5661,0)),\"\",INDIRECT(\"'SorP'!$A$\"&MATCH($J1009,SorP!$B$1:$B$5661,0))))","v":""},null,{"$f":"IF(C1009=\"\",NA(),MATCH($B1009&$C1009,'Smelter Look-up'!$J:$J,0))","v":{"$error":"#N/A"}},null,0,null,null,null,""]
[null,{"$f":"IF(LEN(A1010)=0,\"\",INDEX('Smelter Look-up'!$A:$A,MATCH($A1010,'Smelter Look-up'!$E:$E,0)))","v":""},{"$f":"IF(LEN(A1010)=0,\"\",INDEX('Smelter Look-up'!$C:$C,MATCH($A1010,'Smelter Look-up'!$E:$E,0)))","v":""},null,{"$f":"IF(ISERROR($V1010),\"\",OFFSET('Smelter Look-up'!$D$4,$V1010-4,0)&\"\")","v":""},{"$f":"IF(ISERROR($V1010),\"\",OFFSET('Smelter Look-up'!$E$4,$V1010-4,0))","v":""},{"$f":"IF(C1010=$X$4,\"Enter smelter details\",IF(ISERROR($V1010),\"\",OFFSET('Smelter Look-up'!$F$4,$V1010-4,0)))","v":""},{"$f":"IF(ISERROR($V1010),\"\",OFFSET('Smelter Look-up'!$G$4,$V1010-4,0))","v":""},{"$f":"IF(ISERROR($V1010),\"\",OFFSET('Smelter Look-up'!$H$4,$V1010-4,0))","v":""},{"$f":"IF(ISERROR($V1010),\"\",OFFSET('Smelter Look-up'!$I$4,$V1010-4,0))","v":""},{"$nulls":7},{"$f":"IF(ISERROR($V1010),\"\",OFFSET('Smelter Look-up'!$C$4,$V1010-4,0)&\"\")","v":""},"",{"$f":"IF(B1010=\"\",\"\",IF(ISERROR(MATCH($J1010,SorP!$B$1:$B$5661,0)),\"\",INDIRECT(\"'SorP'!$A$\"&MATCH($J1010,SorP!$B$1:$B$5661,0))))","v":""},null,{"$f":"IF(C1010=\"\",NA(),MATCH($B1010&$C1010,'Smelter Look-up'!$J:$J,0))","v":{"$error":"#N/A"}},null,0,null,null,null,""]
[null,{"$f":"IF(LEN(A1011)=0,\"\",INDEX('Smelter Look-up'!$A:$A,MATCH($A1011,'Smelter Look-up'!$E:$E,0)))","v":""},{"$f":"IF(LEN(A1011)=0,\"\",INDEX('Smelter Look-up'!$C:$C,MATCH($A1011,'Smelter Look-up'!$E:$E,0)))","v":""},null,{"$f":"IF(ISERROR($V1011),\"\",OFFSET('Smelter Look-up'!$D$4,$V1011-4,0)&\"\")","v":""},{"$f":"IF(ISERROR($V1011),\"\",OFFSET('Smelter Look-up'!$E$4,$V1011-4,0))","v":""},{"$f":"IF(C1011=$X$4,\"Enter smelter details\",IF(ISERROR($V1011),\"\",OFFSET('Smelter Look-up'!$F$4,$V1011-4,0)))","v":""},{"$f":"IF(ISERROR($V1011),\"\",OFFSET('Smelter Look-up'!$G$4,$V1011-4,0))","v":""},{"$f":"IF(ISERROR($V1011),\"\",OFFSET('Smelter Look-up'!$H$4,$V1011-4,0))","v":""},{"$f":"IF(ISERROR($V1011),\"\",OFFSET('Smelter Look-up'!$I$4,$V1011-4,0))","v":""},{"$nulls":7},{"$f":"IF(ISERROR($V1011),\"\",OFFSET('Smelter Look-up'!$C$4,$V1011-4,0)&\"\")","v":""},"",{"$f":"IF(B1011=\"\",\"\",IF(ISERROR(MATCH($J1011,SorP!$B$1:$B$5661,0)),\"\",INDIRECT(\"'SorP'!$A$\"&MATCH($J1011,SorP!$B$1:$B$5661,0))))","v":""},null,{"$f":"IF(C1011=\"\",NA(),MATCH($B1011&$C1011,'Smelter Look-up'!$J:$J,0))","v":{"$error":"#N/A"}},null,0,null,null,null,""]
[null,{"$f":"IF(LEN(A1012)=0,\"\",INDEX('Smelter Look-up'!$A:$A,MATCH($A1012,'Smelter Look-up'!$E:$E,0)))","v":""},{"$f":"IF(LEN(A1012)=0,\"\",INDEX('Smelter Look-up'!$C:$C,MATCH($A1012,'Smelter Look-up'!$E:$E,0)))","v":""},null,{"$f":"IF(ISERROR($V1012),\"\",OFFSET('Smelter Look-up'!$D$4,$V1012-4,0)&\"\")","v":""},{"$f":"IF(ISERROR($V1012),\"\",OFFSET('Smelter Look-up'!$E$4,$V1012-4,0))","v":""},{"$f":"IF(C1012=$X$4,\"Enter smelter details\",IF(ISERROR($V1012),\"\",OFFSET('Smelter Look-up'!$F$4,$V1012-4,0)))","v":""},{"$f":"IF(ISERROR($V1012),\"\",OFFSET('Smelter Look-up'!$G$4,$V1012-4,0))","v":""},{"$f":"IF(ISERROR($V1012),\"\",OFFSET('Smelter Look-up'!$H$4,$V1012-4,0))","v":""},{"$f":"IF(ISERROR($V1012),\"\",OFFSET('Smelter Look-up'!$I$4,$V1012-4,0))","v":""},{"$nulls":7},{"$f":"IF(ISERROR($V1012),\"\",OFFSET('Smelter Look-up'!$C$4,$V1012-4,0)&\"\")","v":""},"",{"$f":"IF(B1012=\"\",\"\",IF(ISERROR(MATCH($J1012,SorP!$B$1:$B$5661,0)),\"\",INDIRECT(\"'SorP'!$A$\"&MATCH($J1012,SorP!$B$1:$B$5661,0))))","v":""},null,{"$f":"IF(C1012=\"\",NA(),MATCH($B1012&$C1012,'Smelter Look-up'!$J:$J,0))","v":{"$error":"#N/A"}},null,0,null,null,null,""]
[null,{"$f":"IF(LEN(A1013)=0,\"\",INDEX('Smelter Look-up'!$A:$A,MATCH($A1013,'Smelter Look-up'!$E:$E,0)))","v":""},{"$f":"IF(LEN(A1013)=0,\"\",INDEX('Smelter Look-up'!$C:$C,MATCH($A1013,'Smelter Look-up'!$E:$E,0)))","v":""},null,{"$f":"IF(ISERROR($V1013),\"\",OFFSET('Smelter Look-up'!$D$4,$V1013-4,0)&\"\")","v":""},{"$f":"IF(ISERROR($V1013),\"\",OFFSET('Smelter Look-up'!$E$4,$V1013-4,0))","v":""},{"$f":"IF(C1013=$X$4,\"Enter smelter details\",IF(ISERROR($V1013),\"\",OFFSET('Smelter Look-up'!$F$4,$V1013-4,0)))","v":""},{"$f":"IF(ISERROR($V1013),\"\",OFFSET('Smelter Look-up'!$G$4,$V1013-4,0))","v":""},{"$f":"IF(ISERROR($V1013),\"\",OFFSET('Smelter Look-up'!$H$4,$V1013-4,0))","v":""},{"$f":"IF(ISERROR($V1013),\"\",OFFSET('Smelter Look-up'!$I$4,$V1013-4,0))","v":""},{"$nulls":7},{"$f":"IF(ISERROR($V1013),\"\",OFFSET('Smelter Look-up'!$C$4,$V1013-4,0)&\"\")","v":""},"",{"$f":"IF(B1013=\"\",\"\",IF(ISERROR(MATCH($J1013,SorP!$B$1:$B$5661,0)),\"\",INDIRECT(\"'SorP'!$A$\"&MATCH($J1013,SorP!$B$1:$B$5661,0))))","v":""},null,{"$f":"IF(C1013=\"\",NA(),MATCH($B1013&$C1013,'Smelter Look-up'!$J:$J,0))","v":{"$error":"#N/A"}},null,0,null,null,null,""]
[null,{"$f":"IF(LEN(A1014)=0,\"\",INDEX('Smelter Look-up'!$A:$A,MATCH($A1014,'Smelter Look-up'!$E:$E,0)))","v":""},{"$f":"IF(LEN(A1014)=0,\"\",INDEX('Smelter Look-up'!$C:$C,MATCH($A1014,'Smelter Look-up'!$E:$E,0)))","v":""},null,{"$f":"IF(ISERROR($V1014),\"\",OFFSET('Smelter Look-up'!$D$4,$V1014-4,0)&\"\")","v":""},{"$f":"IF(ISERROR($V1014),\"\",OFFSET('Smelter Look-up'!$E$4,$V1014-4,0))","v":""},{"$f":"IF(C1014=$X$4,\"Enter smelter details\",IF(ISERROR($V1014),\"\",OFFSET('Smelter Look-up'!$F$4,$V1014-4,0)))","v":""},{"$f":"IF(ISERROR($V1014),\"\",OFFSET('Smelter Look-up'!$G$4,$V1014-4,0))","v":""},{"$f":"IF(ISERROR($V1014),\"\",OFFSET('Smelter Look-up'!$H$4,$V1014-4,0))","v":""},{"$f":"IF(ISERROR($V1014),\"\",OFFSET('Smelter Look-up'!$I$4,$V1014-4,0))","v":""},{"$nulls":7},{"$f":"IF(ISERROR($V1014),\"\",OFFSET('Smelter Look-up'!$C$4,$V1014-4,0)&\"\")","v":""},"",{"$f":"IF(B1014=\"\",\"\",IF(ISERROR(MATCH($J1014,SorP!$B$1:$B$5661,0)),\"\",INDIRECT(\"'SorP'!$A$\"&MATCH($J1014,SorP!$B$1:$B$5661,0))))","v":""},null,{"$f":"IF(C1014=\"\",NA(),MATCH($B1014&$C1014,'Smelter Look-up'!$J:$J,0))","v":{"$error":"#N/A"}},null,0,null,null,null,""]
[null,{"$f":"IF(LEN(A1015)=0,\"\",INDEX('Smelter Look-up'!$A:$A,MATCH($A1015,'Smelter Look-up'!$E:$E,0)))","v":""},{"$f":"IF(LEN(A1015)=0,\"\",INDEX('Smelter Look-up'!$C:$C,MATCH($A1015,'Smelter Look-up'!$E:$E,0)))","v":""},null,{"$f":"IF(ISERROR($V1015),\"\",OFFSET('Smelter Look-up'!$D$4,$V1015-4,0)&\"\")","v":""},{"$f":"IF(ISERROR($V1015),\"\",OFFSET('Smelter Look-up'!$E$4,$V1015-4,0))","v":""},{"$f":"IF(C1015=$X$4,\"Enter smelter details\",IF(ISERROR($V1015),\"\",OFFSET('Smelter Look-up'!$F$4,$V1015-4,0)))","v":""},{"$f":"IF(ISERROR($V1015),\"\",OFFSET('Smelter Look-up'!$G$4,$V1015-4,0))","v":""},{"$f":"IF(ISERROR($V1015),\"\",OFFSET('Smelter Look-up'!$H$4,$V1015-4,0))","v":""},{"$f":"IF(ISERROR($V1015),\"\",OFFSET('Smelter Look-up'!$I$4,$V1015-4,0))","v":""},{"$nulls":7},{"$f":"IF(ISERROR($V1015),\"\",OFFSET('Smelter Look-up'!$C$4,$V1015-4,0)&\"\")","v":""},"",{"$f":"IF(B1015=\"\",\"\",IF(ISERROR(MATCH($J1015,SorP!$B$1:$B$5661,0)),\"\",INDIRECT(\"'SorP'!$A$\"&MATCH($J1015,SorP!$B$1:$B$5661,0))))","v":""},null,{"$f":"IF(C1015=\"\",NA(),MATCH($B1015&$C1015,'Smelter Look-up'!$J:$J,0))","v":{"$error":"#N/A"}},null,0,null,null,null,""]
[null,{"$f":"IF(LEN(A1016)=0,\"\",INDEX('Smelter Look-up'!$A:$A,MATCH($A1016,'Smelter Look-up'!$E:$E,0)))","v":""},{"$f":"IF(LEN(A1016)=0,\"\",INDEX('Smelter Look-up'!$C:$C,MATCH($A1016,'Smelter Look-up'!$E:$E,0)))","v":""},null,{"$f":"IF(ISERROR($V1016),\"\",OFFSET('Smelter Look-up'!$D$4,$V1016-4,0)&\"\")","v":""},{"$f":"IF(ISERROR($V1016),\"\",OFFSET('Smelter Look-up'!$E$4,$V1016-4,0))","v":""},{"$f":"IF(C1016=$X$4,\"Enter smelter details\",IF(ISERROR($V1016),\"\",OFFSET('Smelter Look-up'!$F$4,$V1016-4,0)))","v":""},{"$f":"IF(ISERROR($V1016),\"\",OFFSET('Smelter Look-up'!$G$4,$V1016-4,0))","v":""},{"$f":"IF(ISERROR($V1016),\"\",OFFSET('Smelter Look-up'!$H$4,$V1016-4,0))","v":""},{"$f":"IF(ISERROR($V1016),\"\",OFFSET('Smelter Look-up'!$I$4,$V1016-4,0))","v":""},{"$nulls":7},{"$f":"IF(ISERROR($V1016),\"\",OFFSET('Smelter Look-up'!$C$4,$V1016-4,0)&\"\")","v":""},"",{"$f":"IF(B1016=\"\",\"\",IF(ISERROR(MATCH($J1016,SorP!$B$1:$B$5661,0)),\"\",INDIRECT(\"'SorP'!$A$\"&MATCH($J1016,SorP!$B$1:$B$5661,0))))","v":""},null,{"$f":"IF(C1016=\"\",NA(),MATCH($B1016&$C1016,'Smelter Look-up'!$J:$J,0))","v":{"$error":"#N/A"}},null,0,null,null,null,""]
[null,{"$f":"IF(LEN(A1017)=0,\"\",INDEX('Smelter Look-up'!$A:$A,MATCH($A1017,'Smelter Look-up'!$E:$E,0)))","v":""},{"$f":"IF(LEN(A1017)=0,\"\",INDEX('Smelter Look-up'!$C:$C,MATCH($A1017,'Smelter Look-up'!$E:$E,0)))","v":""},null,{"$f":"IF(ISERROR($V1017),\"\",OFFSET('Smelter Look-up'!$D$4,$V1017-4,0)&\"\")","v":""},{"$f":"IF(ISERROR($V1017),\"\",OFFSET('Smelter Look-up'!$E$4,$V1017-4,0))","v":""},{"$f":"IF(C1017=$X$4,\"Enter smelter details\",IF(ISERROR($V1017),\"\",OFFSET('Smelter Look-up'!$F$4,$V1017-4,0)))","v":""},{"$f":"IF(ISERROR($V1017),\"\",OFFSET('Smelter Look-up'!$G$4,$V1017-4,0))","v":""},{"$f":"IF(ISERROR($V1017),\"\",OFFSET('Smelter Look-up'!$H$4,$V1017-4,0))","v":""},{"$f":"IF(ISERROR($V1017),\"\",OFFSET('Smelter Look-up'!$I$4,$V1017-4,0))","v":""},{"$nulls":7},{"$f":"IF(ISERROR($V1017),\"\",OFFSET('Smelter Look-up'!$C$4,$V1017-4,0)&\"\")","v":""},"",{"$f":"IF(B1017=\"\",\"\",IF(ISERROR(MATCH($J1017,SorP!$B$1:$B$5661,0)),\"\",INDIRECT(\"'SorP'!$A$\"&MATCH($J1017,SorP!$B$1:$B$5661,0))))","v":""},null,{"$f":"IF(C1017=\"\",NA(),MATCH($B1017&$C1017,'Smelter Look-up'!$J:$J,0))","v":{"$error":"#N/A"}},null,0,null,null,null,""]
[null,{"$f":"IF(LEN(A1018)=0,\"\",INDEX('Smelter Look-up'!$A:$A,MATCH($A1018,'Smelter Look-up'!$E:$E,0)))","v":""},{"$f":"IF(LEN(A1018)=0,\"\",INDEX('Smelter Look-up'!$C:$C,MATCH($A1018,'Smelter Look-up'!$E:$E,0)))","v":""},null,{"$f":"IF(ISERROR($V1018),\"\",OFFSET('Smelter Look-up'!$D$4,$V1018-4,0)&\"\")","v":""},{"$f":"IF(ISERROR($V1018),\"\",OFFSET('Smelter Look-up'!$E$4,$V1018-4,0))","v":""},{"$f":"IF(C1018=$X$4,\"Enter smelter details\",IF(ISERROR($V1018),\"\",OFFSET('Smelter Look-up'!$F$4,$V1018-4,0)))","v":""},{"$f":"IF(ISERROR($V1018),\"\",OFFSET('Smelter Look-up'!$G$4,$V1018-4,0))","v":""},{"$f":"IF(ISERROR($V1018),\"\",OFFSET('Smelter Look-up'!$H$4,$V1018-4,0))","v":""},{"$f":"IF(ISERROR($V1018),\"\",OFFSET('Smelter Look-up'!$I$4,$V1018-4,0))","v":""},{"$nulls":7},{"$f":"IF(ISERROR($V1018),\"\",OFFSET('Smelter Look-up'!$C$4,$V1018-4,0)&\"\")","v":""},"",{"$f":"IF(B1018=\"\",\"\",IF(ISERROR(MATCH($J1018,SorP!$B$1:$B$5661,0)),\"\",INDIRECT(\"'SorP'!$A$\"&MATCH($J1018,SorP!$B$1:$B$5661,0))))","v":""},null,{"$f":"IF(C1018=\"\",NA(),MATCH($B1018&$C1018,'Smelter Look-up'!$J:$J,0))","v":{"$error":"#N/A"}},null,0,null,null,null,""]
[null,{"$f":"IF(LEN(A1019)=0,\"\",INDEX('Smelter Look-up'!$A:$A,MATCH($A1019,'Smelter Look-up'!$E:$E,0)))","v":""},{"$f":"IF(LEN(A1019)=0,\"\",INDEX('Smelter Look-up'!$C:$C,MATCH($A1019,'Smelter Look-up'!$E:$E,0)))","v":""},null,{"$f":"IF(ISERROR($V1019),\"\",OFFSET('Smelter Look-up'!$D$4,$V1019-4,0)&\"\")","v":""},{"$f":"IF(ISERROR($V1019),\"\",OFFSET('Smelter Look-up'!$E$4,$V1019-4,0))","v":""},{"$f":"IF(C1019=$X$4,\"Enter smelter details\",IF(ISERROR($V1019),\"\",OFFSET('Smelter Look-up'!$F$4,$V1019-4,0)))","v":""},{"$f":"IF(ISERROR($V1019),\"\",OFFSET('Smelter Look-up'!$G$4,$V1019-4,0))","v":""},{"$f":"IF(ISERROR($V1019),\"\",OFFSET('Smelter Look-up'!$H$4,$V1019-4,0))","v":""},{"$f":"IF(ISERROR($V1019),\"\",OFFSET('Smelter Look-up'!$I$4,$V1019-4,0))","v":""},{"$nulls":7},{"$f":"IF(ISERROR($V1019),\"\",OFFSET('Smelter Look-up'!$C$4,$V1019-4,0)&\"\")","v":""},"",{"$f":"IF(B1019=\"\",\"\",IF(ISERROR(MATCH($J1019,SorP!$B$1:$B$5661,0)),\"\",INDIRECT(\"'SorP'!$A$\"&MATCH($J1019,SorP!$B$1:$B$5661,0))))","v":""},null,{"$f":"IF(C1019=\"\",NA(),MATCH($B1019&$C1019,'Smelter Look-up'!$J:$J,0))","v":{"$error":"#N/A"}},null,0,null,null,null,""]
[null,{"$f":"IF(LEN(A1020)=0,\"\",INDEX('Smelter Look-up'!$A:$A,MATCH($A1020,'Smelter Look-up'!$E:$E,0)))","v":""},{"$f":"IF(LEN(A1020)=0,\"\",INDEX('Smelter Look-up'!$C:$C,MATCH($A1020,'Smelter Look-up'!$E:$E,0)))","v":""},null,{"$f":"IF(ISERROR($V1020),\"\",OFFSET('Smelter Look-up'!$D$4,$V1020-4,0)&\"\")","v":""},{"$f":"IF(ISERROR($V1020),\"\",OFFSET('Smelter Look-up'!$E$4,$V1020-4,0))","v":""},{"$f":"IF(C1020=$X$4,\"Enter smelter details\",IF(ISERROR($V1020),\"\",OFFSET('Smelter Look-up'!$F$4,$V1020-4,0)))","v":""},{"$f":"IF(ISERROR($V1020),\"\",OFFSET('Smelter Look-up'!$G$4,$V1020-4,0))","v":""},{"$f":"IF(ISERROR($V1020),\"\",OFFSET('Smelter Look-up'!$H$4,$V1020-4,0))","v":""},{"$f":"IF(ISERROR($V1020),\"\",OFFSET('Smelter Look-up'!$I$4,$V1020-4,0))","v":""},{"$nulls":7},{"$f":"IF(ISERROR($V1020),\"\",OFFSET('Smelter Look-up'!$C$4,$V1020-4,0)&\"\")","v":""},"",{"$f":"IF(B1020=\"\",\"\",IF(ISERROR(MATCH($J1020,SorP!$B$1:$B$5661,0)),\"\",INDIRECT(\"'SorP'!$A$\"&MATCH($J1020,SorP!$B$1:$B$5661,0))))","v":""},null,{"$f":"IF(C1020=\"\",NA(),MATCH($B1020&$C1020,'Smelter Look-up'!$J:$J,0))","v":{"$error":"#N/A"}},null,0,null,null,null,""]
[null,{"$f":"IF(LEN(A1021)=0,\"\",INDEX('Smelter Look-up'!$A:$A,MATCH($A1021,'Smelter Look-up'!$E:$E,0)))","v":""},{"$f":"IF(LEN(A1021)=0,\"\",INDEX('Smelter Look-up'!$C:$C,MATCH($A1021,'Smelter Look-up'!$E:$E,0)))","v":""},null,{"$f":"IF(ISERROR($V1021),\"\",OFFSET('Smelter Look-up'!$D$4,$V1021-4,0)&\"\")","v":""},{"$f":"IF(ISERROR($V1021),\"\",OFFSET('Smelter Look-up'!$E$4,$V1021-4,0))","v":""},{"$f":"IF(C1021=$X$4,\"Enter smelter details\",IF(ISERROR($V1021),\"\",OFFSET('Smelter Look-up'!$F$4,$V1021-4,0)))","v":""},{"$f":"IF(ISERROR($V1021),\"\",OFFSET('Smelter Look-up'!$G$4,$V1021-4,0))","v":""},{"$f":"IF(ISERROR($V1021),\"\",OFFSET('Smelter Look-up'!$H$4,$V1021-4,0))","v":""},{"$f":"IF(ISERROR($V1021),\"\",OFFSET('Smelter Look-up'!$I$4,$V1021-4,0))","v":""},{"$nulls":7},{"$f":"IF(ISERROR($V1021),\"\",OFFSET('Smelter Look-up'!$C$4,$V1021-4,0)&\"\")","v":""},"",{"$f":"IF(B1021=\"\",\"\",IF(ISERROR(MATCH($J1021,SorP!$B$1:$B$5661,0)),\"\",INDIRECT(\"'SorP'!$A$\"&MATCH($J1021,SorP!$B$1:$B$5661,0))))","v":""},null,{"$f":"IF(C1021=\"\",NA(),MATCH($B1021&$C1021,'Smelter Look-up'!$J:$J,0))","v":{"$error":"#N/A"}},null,0,null,null,null,""]
[null,{"$f":"IF(LEN(A1022)=0,\"\",INDEX('Smelter Look-up'!$A:$A,MATCH($A1022,'Smelter Look-up'!$E:$E,0)))","v":""},{"$f":"IF(LEN(A1022)=0,\"\",INDEX('Smelter Look-up'!$C:$C,MATCH($A1022,'Smelter Look-up'!$E:$E,0)))","v":""},null,{"$f":"IF(ISERROR($V1022),\"\",OFFSET('Smelter Look-up'!$D$4,$V1022-4,0)&\"\")","v":""},{"$f":"IF(ISERROR($V1022),\"\",OFFSET('Smelter Look-up'!$E$4,$V1022-4,0))","v":""},{"$f":"IF(C1022=$X$4,\"Enter smelter details\",IF(ISERROR($V1022),\"\",OFFSET('Smelter Look-up'!$F$4,$V1022-4,0)))","v":""},{"$f":"IF(ISERROR($V1022),\"\",OFFSET('Smelter Look-up'!$G$4,$V1022-4,0))","v":""},{"$f":"IF(ISERROR($V1022),\"\",OFFSET('Smelter Look-up'!$H$4,$V1022-4,0))","v":""},{"$f":"IF(ISERROR($V1022),\"\",OFFSET('Smelter Look-up'!$I$4,$V1022-4,0))","v":""},{"$nulls":7},{"$f":"IF(ISERROR($V1022),\"\",OFFSET('Smelter Look-up'!$C$4,$V1022-4,0)&\"\")","v":""},"",{"$f":"IF(B1022=\"\",\"\",IF(ISERROR(MATCH($J1022,SorP!$B$1:$B$5661,0)),\"\",INDIRECT(\"'SorP'!$A$\"&MATCH($J1022,SorP!$B$1:$B$5661,0))))","v":""},null,{"$f":"IF(C1022=\"\",NA(),MATCH($B1022&$C1022,'Smelter Look-up'!$J:$J,0))","v":{"$error":"#N/A"}},null,0,null,null,null,""]
[null,{"$f":"IF(LEN(A1023)=0,\"\",INDEX('Smelter Look-up'!$A:$A,MATCH($A1023,'Smelter Look-up'!$E:$E,0)))","v":""},{"$f":"IF(LEN(A1023)=0,\"\",INDEX('Smelter Look-up'!$C:$C,MATCH($A1023,'Smelter Look-up'!$E:$E,0)))","v":""},null,{"$f":"IF(ISERROR($V1023),\"\",OFFSET('Smelter Look-up'!$D$4,$V1023-4,0)&\"\")","v":""},{"$f":"IF(ISERROR($V1023),\"\",OFFSET('Smelter Look-up'!$E$4,$V1023-4,0))","v":""},{"$f":"IF(C1023=$X$4,\"Enter smelter details\",IF(ISERROR($V1023),\"\",OFFSET('Smelter Look-up'!$F$4,$V1023-4,0)))","v":""},{"$f":"IF(ISERROR($V1023),\"\",OFFSET('Smelter Look-up'!$G$4,$V1023-4,0))","v":""},{"$f":"IF(ISERROR($V1023),\"\",OFFSET('Smelter Look-up'!$H$4,$V1023-4,0))","v":""},{"$f":"IF(ISERROR($V1023),\"\",OFFSET('Smelter Look-up'!$I$4,$V1023-4,0))","v":""},{"$nulls":7},{"$f":"IF(ISERROR($V1023),\"\",OFFSET('Smelter Look-up'!$C$4,$V1023-4,0)&\"\")","v":""},"",{"$f":"IF(B1023=\"\",\"\",IF(ISERROR(MATCH($J1023,SorP!$B$1:$B$5661,0)),\"\",INDIRECT(\"'SorP'!$A$\"&MATCH($J1023,SorP!$B$1:$B$5661,0))))","v":""},null,{"$f":"IF(C1023=\"\",NA(),MATCH($B1023&$C1023,'Smelter Look-up'!$J:$J,0))","v":{"$error":"#N/A"}},null,{"$f":"IF(AND(C1023=\"Smelter not listed\",OR(LEN(D1023)=0,LEN(E1023)=0)),1,0)","v":0},null,null,null,{"$f":"B1023&C1023","v":""}]
[null,{"$f":"IF(LEN(A1024)=0,\"\",INDEX('Smelter Look-up'!$A:$A,MATCH($A1024,'Smelter Look-up'!$E:$E,0)))","v":""},{"$f":"IF(LEN(A1024)=0,\"\",INDEX('Smelter Look-up'!$C:$C,MATCH($A1024,'Smelter Look-up'!$E:$E,0)))","v":""},null,{"$f":"IF(ISERROR($V1024),\"\",OFFSET('Smelter Look-up'!$D$4,$V1024-4,0)&\"\")","v":""},{"$f":"IF(ISERROR($V1024),\"\",OFFSET('Smelter Look-up'!$E$4,$V1024-4,0))","v":""},{"$f":"IF(C1024=$X$4,\"Enter smelter details\",IF(ISERROR($V1024),\"\",OFFSET('Smelter Look-up'!$F$4,$V1024-4,0)))","v":""},{"$f":"IF(ISERROR($V1024),\"\",OFFSET('Smelter Look-up'!$G$4,$V1024-4,0))","v":""},{"$f":"IF(ISERROR($V1024),\"\",OFFSET('Smelter Look-up'!$H$4,$V1024-4,0))","v":""},{"$f":"IF(ISERROR($V1024),\"\",OFFSET('Smelter Look-up'!$I$4,$V1024-4,0))","v":""},{"$nulls":7},{"$f":"IF(ISERROR($V1024),\"\",OFFSET('Smelter Look-up'!$C$4,$V1024-4,0)&\"\")","v":""},{"$f":"IF(B1024=\"\",\"\",IF(ISERROR(MATCH($E1024,CL,0)),\"Unknown\",INDIRECT(\"'C'!$A$\"&MATCH($E1024,CL,0)+1)))","v":""},{"$f":"IF(B1024=\"\",\"\",IF(ISERROR(MATCH($J1024,SorP!$B$1:$B$5661,0)),\"\",INDIRECT(\"'SorP'!$A$\"&MATCH($J1024,SorP!$B$1:$B$5661,0))))","v":""},null,{"$f":"IF(C1024=\"\",NA(),MATCH($B1024&$C1024,'Smelter Look-up'!$J:$J,0))","v":{"$error":"#N/A"}},null,0,null,null,null,""]
[null,{"$f":"IF(LEN(A1025)=0,\"\",INDEX('Smelter Look-up'!$A:$A,MATCH($A1025,'Smelter Look-up'!$E:$E,0)))","v":""},{"$f":"IF(LEN(A1025)=0,\"\",INDEX('Smelter Look-up'!$C:$C,MATCH($A1025,'Smelter Look-up'!$E:$E,0)))","v":""},null,{"$f":"IF(ISERROR($V1025),\"\",OFFSET('Smelter Look-up'!$D$4,$V1025-4,0)&\"\")","v":""},{"$f":"IF(ISERROR($V1025),\"\",OFFSET('Smelter Look-up'!$E$4,$V1025-4,0))","v":""},{"$f":"IF(C1025=$X$4,\"Enter smelter details\",IF(ISERROR($V1025),\"\",OFFSET('Smelter Look-up'!$F$4,$V1025-4,0)))","v":""},{"$f":"IF(ISERROR($V1025),\"\",OFFSET('Smelter Look-up'!$G$4,$V1025-4,0))","v":""},{"$f":"IF(ISERROR($V1025),\"\",OFFSET('Smelter Look-up'!$H$4,$V1025-4,0))","v":""},{"$f":"IF(ISERROR($V1025),\"\",OFFSET('Smelter Look-up'!$I$4,$V1025-4,0))","v":""},{"$nulls":7},{"$f":"IF(ISERROR($V1025),\"\",OFFSET('Smelter Look-up'!$C$4,$V1025-4,0)&\"\")","v":""},"",{"$f":"IF(B1025=\"\",\"\",IF(ISERROR(MATCH($J1025,SorP!$B$1:$B$5661,0)),\"\",INDIRECT(\"'SorP'!$A$\"&MATCH($J1025,SorP!$B$1:$B$5661,0))))","v":""},null,{"$f":"IF(C1025=\"\",NA(),MATCH($B1025&$C1025,'Smelter Look-up'!$J:$J,0))","v":{"$error":"#N/A"}},null,0,null,null,null,""]
[null,{"$f":"IF(LEN(A1026)=0,\"\",INDEX('Smelter Look-up'!$A:$A,MATCH($A1026,'Smelter Look-up'!$E:$E,0)))","v":""},{"$f":"IF(LEN(A1026)=0,\"\",INDEX('Smelter Look-up'!$C:$C,MATCH($A1026,'Smelter Look-up'!$E:$E,0)))","v":""},null,{"$f":"IF(ISERROR($V1026),\"\",OFFSET('Smelter Look-up'!$D$4,$V1026-4,0)&\"\")","v":""},{"$f":"IF(ISERROR($V1026),\"\",OFFSET('Smelter Look-up'!$E$4,$V1026-4,0))","v":""},{"$f":"IF(C1026=$X$4,\"Enter smelter details\",IF(ISERROR($V1026),\"\",OFFSET('Smelter Look-up'!$F$4,$V1026-4,0)))","v":""},{"$f":"IF(ISERROR($V1026),\"\",OFFSET('Smelter Look-up'!$G$4,$V1026-4,0))","v":""},{"$f":"IF(ISERROR($V1026),\"\",OFFSET('Smelter Look-up'!$H$4,$V1026-4,0))","v":""},{"$f":"IF(ISERROR($V1026),\"\",OFFSET('Smelter Look-up'!$I$4,$V1026-4,0))","v":""},{"$nulls":7},{"$f":"IF(ISERROR($V1026),\"\",OFFSET('Smelter Look-up'!$C$4,$V1026-4,0)&\"\")","v":""},"",{"$f":"IF(B1026=\"\",\"\",IF(ISERROR(MATCH($J1026,SorP!$B$1:$B$5661,0)),\"\",INDIRECT(\"'SorP'!$A$\"&MATCH($J1026,SorP!$B$1:$B$5661,0))))","v":""},null,{"$f":"IF(C1026=\"\",NA(),MATCH($B1026&$C1026,'Smelter Look-up'!$J:$J,0))","v":{"$error":"#N/A"}},null,0,null,null,null,""]
[null,{"$f":"IF(LEN(A1027)=0,\"\",INDEX('Smelter Look-up'!$A:$A,MATCH($A1027,'Smelter Look-up'!$E:$E,0)))","v":""},{"$f":"IF(LEN(A1027)=0,\"\",INDEX('Smelter Look-up'!$C:$C,MATCH($A1027,'Smelter Look-up'!$E:$E,0)))","v":""},null,{"$f":"IF(ISERROR($V1027),\"\",OFFSET('Smelter Look-up'!$D$4,$V1027-4,0)&\"\")","v":""},{"$f":"IF(ISERROR($V1027),\"\",OFFSET('Smelter Look-up'!$E$4,$V1027-4,0))","v":""},{"$f":"IF(C1027=$X$4,\"Enter smelter details\",IF(ISERROR($V1027),\"\",OFFSET('Smelter Look-up'!$F$4,$V1027-4,0)))","v":""},{"$f":"IF(ISERROR($V1027),\"\",OFFSET('Smelter Look-up'!$G$4,$V1027-4,0))","v":""},{"$f":"IF(ISERROR($V1027),\"\",OFFSET('Smelter Look-up'!$H$4,$V1027-4,0))","v":""},{"$f":"IF(ISERROR($V1027),\"\",OFFSET('Smelter Look-up'!$I$4,$V1027-4,0))","v":""},{"$nulls":7},{"$f":"IF(ISERROR($V1027),\"\",OFFSET('Smelter Look-up'!$C$4,$V1027-4,0)&\"\")","v":""},"",{"$f":"IF(B1027=\"\",\"\",IF(ISERROR(MATCH($J1027,SorP!$B$1:$B$5661,0)),\"\",INDIRECT(\"'SorP'!$A$\"&MATCH($J1027,SorP!$B$1:$B$5661,0))))","v":""},null,{"$f":"IF(C1027=\"\",NA(),MATCH($B1027&$C1027,'Smelter Look-up'!$J:$J,0))","v":{"$error":"#N/A"}},null,0,null,null,null,""]
[null,{"$f":"IF(LEN(A1028)=0,\"\",INDEX('Smelter Look-up'!$A:$A,MATCH($A1028,'Smelter Look-up'!$E:$E,0)))","v":""},{"$f":"IF(LEN(A1028)=0,\"\",INDEX('Smelter Look-up'!$C:$C,MATCH($A1028,'Smelter Look-up'!$E:$E,0)))","v":""},null,{"$f":"IF(ISERROR($V1028),\"\",OFFSET('Smelter Look-up'!$D$4,$V1028-4,0)&\"\")","v":""},{"$f":"IF(ISERROR($V1028),\"\",OFFSET('Smelter Look-up'!$E$4,$V1028-4,0))","v":""},{"$f":"IF(C1028=$X$4,\"Enter smelter details\",IF(ISERROR($V1028),\"\",OFFSET('Smelter Look-up'!$F$4,$V1028-4,0)))","v":""},{"$f":"IF(ISERROR($V1028),\"\",OFFSET('Smelter Look-up'!$G$4,$V1028-4,0))","v":""},{"$f":"IF(ISERROR($V1028),\"\",OFFSET('Smelter Look-up'!$H$4,$V1028-4,0))","v":""},{"$f":"IF(ISERROR($V1028),\"\",OFFSET('Smelter Look-up'!$I$4,$V1028-4,0))","v":""},{"$nulls":7},{"$f":"IF(ISERROR($V1028),\"\",OFFSET('Smelter Look-up'!$C$4,$V1028-4,0)&\"\")","v":""},"",{"$f":"IF(B1028=\"\",\"\",IF(ISERROR(MATCH($J1028,SorP!$B$1:$B$5661,0)),\"\",INDIRECT(\"'SorP'!$A$\"&MATCH($J1028,SorP!$B$1:$B$5661,0))))","v":""},null,{"$f":"IF(C1028=\"\",NA(),MATCH($B1028&$C1028,'Smelter Look-up'!$J:$J,0))","v":{"$error":"#N/A"}},null,0,null,null,null,""]
[null,{"$f":"IF(LEN(A1029)=0,\"\",INDEX('Smelter Look-up'!$A:$A,MATCH($A1029,'Smelter Look-up'!$E:$E,0)))","v":""},{"$f":"IF(LEN(A1029)=0,\"\",INDEX('Smelter Look-up'!$C:$C,MATCH($A1029,'Smelter Look-up'!$E:$E,0)))","v":""},null,{"$f":"IF(ISERROR($V1029),\"\",OFFSET('Smelter Look-up'!$D$4,$V1029-4,0)&\"\")","v":""},{"$f":"IF(ISERROR($V1029),\"\",OFFSET('Smelter Look-up'!$E$4,$V1029-4,0))","v":""},{"$f":"IF(C1029=$X$4,\"Enter smelter details\",IF(ISERROR($V1029),\"\",OFFSET('Smelter Look-up'!$F$4,$V1029-4,0)))","v":""},{"$f":"IF(ISERROR($V1029),\"\",OFFSET('Smelter Look-up'!$G$4,$V1029-4,0))","v":""},{"$f":"IF(ISERROR($V1029),\"\",OFFSET('Smelter Look-up'!$H$4,$V1029-4,0))","v":""},{"$f":"IF(ISERROR($V1029),\"\",OFFSET('Smelter Look-up'!$I$4,$V1029-4,0))","v":""},{"$nulls":7},{"$f":"IF(ISERROR($V1029),\"\",OFFSET('Smelter Look-up'!$C$4,$V1029-4,0)&\"\")","v":""},"",{"$f":"IF(B1029=\"\",\"\",IF(ISERROR(MATCH($J1029,SorP!$B$1:$B$5661,0)),\"\",INDIRECT(\"'SorP'!$A$\"&MATCH($J1029,SorP!$B$1:$B$5661,0))))","v":""},null,{"$f":"IF(C1029=\"\",NA(),MATCH($B1029&$C1029,'Smelter Look-up'!$J:$J,0))","v":{"$error":"#N/A"}},null,0,null,null,null,""]
[null,{"$f":"IF(LEN(A1030)=0,\"\",INDEX('Smelter Look-up'!$A:$A,MATCH($A1030,'Smelter Look-up'!$E:$E,0)))","v":""},{"$f":"IF(LEN(A1030)=0,\"\",INDEX('Smelter Look-up'!$C:$C,MATCH($A1030,'Smelter Look-up'!$E:$E,0)))","v":""},null,{"$f":"IF(ISERROR($V1030),\"\",OFFSET('Smelter Look-up'!$D$4,$V1030-4,0)&\"\")","v":""},{"$f":"IF(ISERROR($V1030),\"\",OFFSET('Smelter Look-up'!$E$4,$V1030-4,0))","v":""},{"$f":"IF(C1030=$X$4,\"Enter smelter details\",IF(ISERROR($V1030),\"\",OFFSET('Smelter Look-up'!$F$4,$V1030-4,0)))","v":""},{"$f":"IF(ISERROR($V1030),\"\",OFFSET('Smelter Look-up'!$G$4,$V1030-4,0))","v":""},{"$f":"IF(ISERROR($V1030),\"\",OFFSET('Smelter Look-up'!$H$4,$V1030-4,0))","v":""},{"$f":"IF(ISERROR($V1030),\"\",OFFSET('Smelter Look-up'!$I$4,$V1030-4,0))","v":""},{"$nulls":7},{"$f":"IF(ISERROR($V1030),\"\",OFFSET('Smelter Look-up'!$C$4,$V1030-4,0)&\"\")","v":""},"",{"$f":"IF(B1030=\"\",\"\",IF(ISERROR(MATCH($J1030,SorP!$B$1:$B$5661,0)),\"\",INDIRECT(\"'SorP'!$A$\"&MATCH($J1030,SorP!$B$1:$B$5661,0))))","v":""},null,{"$f":"IF(C1030=\"\",NA(),MATCH($B1030&$C1030,'Smelter Look-up'!$J:$J,0))","v":{"$error":"#N/A"}},null,0,null,null,null,""]
[null,{"$f":"IF(LEN(A1031)=0,\"\",INDEX('Smelter Look-up'!$A:$A,MATCH($A1031,'Smelter Look-up'!$E:$E,0)))","v":""},{"$f":"IF(LEN(A1031)=0,\"\",INDEX('Smelter Look-up'!$C:$C,MATCH($A1031,'Smelter Look-up'!$E:$E,0)))","v":""},null,{"$f":"IF(ISERROR($V1031),\"\",OFFSET('Smelter Look-up'!$D$4,$V1031-4,0)&\"\")","v":""},{"$f":"IF(ISERROR($V1031),\"\",OFFSET('Smelter Look-up'!$E$4,$V1031-4,0))","v":""},{"$f":"IF(C1031=$X$4,\"Enter smelter details\",IF(ISERROR($V1031),\"\",OFFSET('Smelter Look-up'!$F$4,$V1031-4,0)))","v":""},{"$f":"IF(ISERROR($V1031),\"\",OFFSET('Smelter Look-up'!$G$4,$V1031-4,0))","v":""},{"$f":"IF(ISERROR($V1031),\"\",OFFSET('Smelter Look-up'!$H$4,$V1031-4,0))","v":""},{"$f":"IF(ISERROR($V1031),\"\",OFFSET('Smelter Look-up'!$I$4,$V1031-4,0))","v":""},{"$nulls":7},{"$f":"IF(ISERROR($V1031),\"\",OFFSET('Smelter Look-up'!$C$4,$V1031-4,0)&\"\")","v":""},"",{"$f":"IF(B1031=\"\",\"\",IF(ISERROR(MATCH($J1031,SorP!$B$1:$B$5661,0)),\"\",INDIRECT(\"'SorP'!$A$\"&MATCH($J1031,SorP!$B$1:$B$5661,0))))","v":""},null,{"$f":"IF(C1031=\"\",NA(),MATCH($B1031&$C1031,'Smelter Look-up'!$J:$J,0))","v":{"$error":"#N/A"}},null,0,null,null,null,""]
[null,{"$f":"IF(LEN(A1032)=0,\"\",INDEX('Smelter Look-up'!$A:$A,MATCH($A1032,'Smelter Look-up'!$E:$E,0)))","v":""},{"$f":"IF(LEN(A1032)=0,\"\",INDEX('Smelter Look-up'!$C:$C,MATCH($A1032,'Smelter Look-up'!$E:$E,0)))","v":""},null,{"$f":"IF(ISERROR($V1032),\"\",OFFSET('Smelter Look-up'!$D$4,$V1032-4,0)&\"\")","v":""},{"$f":"IF(ISERROR($V1032),\"\",OFFSET('Smelter Look-up'!$E$4,$V1032-4,0))","v":""},{"$f":"IF(C1032=$X$4,\"Enter smelter details\",IF(ISERROR($V1032),\"\",OFFSET('Smelter Look-up'!$F$4,$V1032-4,0)))","v":""},{"$f":"IF(ISERROR($V1032),\"\",OFFSET('Smelter Look-up'!$G$4,$V1032-4,0))","v":""},{"$f":"IF(ISERROR($V1032),\"\",OFFSET('Smelter Look-up'!$H$4,$V1032-4,0))","v":""},{"$f":"IF(ISERROR($V1032),\"\",OFFSET('Smelter Look-up'!$I$4,$V1032-4,0))","v":""},{"$nulls":7},{"$f":"IF(ISERROR($V1032),\"\",OFFSET('Smelter Look-up'!$C$4,$V1032-4,0)&\"\")","v":""},"",{"$f":"IF(B1032=\"\",\"\",IF(ISERROR(MATCH($J1032,SorP!$B$1:$B$5661,0)),\"\",INDIRECT(\"'SorP'!$A$\"&MATCH($J1032,SorP!$B$1:$B$5661,0))))","v":""},null,{"$f":"IF(C1032=\"\",NA(),MATCH($B1032&$C1032,'Smelter Look-up'!$J:$J,0))","v":{"$error":"#N/A"}},null,0,null,null,null,""]
[null,{"$f":"IF(LEN(A1033)=0,\"\",INDEX('Smelter Look-up'!$A:$A,MATCH($A1033,'Smelter Look-up'!$E:$E,0)))","v":""},{"$f":"IF(LEN(A1033)=0,\"\",INDEX('Smelter Look-up'!$C:$C,MATCH($A1033,'Smelter Look-up'!$E:$E,0)))","v":""},null,{"$f":"IF(ISERROR($V1033),\"\",OFFSET('Smelter Look-up'!$D$4,$V1033-4,0)&\"\")","v":""},{"$f":"IF(ISERROR($V1033),\"\",OFFSET('Smelter Look-up'!$E$4,$V1033-4,0))","v":""},{"$f":"IF(C1033=$X$4,\"Enter smelter details\",IF(ISERROR($V1033),\"\",OFFSET('Smelter Look-up'!$F$4,$V1033-4,0)))","v":""},{"$f":"IF(ISERROR($V1033),\"\",OFFSET('Smelter Look-up'!$G$4,$V1033-4,0))","v":""},{"$f":"IF(ISERROR($V1033),\"\",OFFSET('Smelter Look-up'!$H$4,$V1033-4,0))","v":""},{"$f":"IF(ISERROR($V1033),\"\",OFFSET('Smelter Look-up'!$I$4,$V1033-4,0))","v":""},{"$nulls":7},{"$f":"IF(ISERROR($V1033),\"\",OFFSET('Smelter Look-up'!$C$4,$V1033-4,0)&\"\")","v":""},"",{"$f":"IF(B1033=\"\",\"\",IF(ISERROR(MATCH($J1033,SorP!$B$1:$B$5661,0)),\"\",INDIRECT(\"'SorP'!$A$\"&MATCH($J1033,SorP!$B$1:$B$5661,0))))","v":""},null,{"$f":"IF(C1033=\"\",NA(),MATCH($B1033&$C1033,'Smelter Look-up'!$J:$J,0))","v":{"$error":"#N/A"}},null,0,null,null,null,""]
[null,{"$f":"IF(LEN(A1034)=0,\"\",INDEX('Smelter Look-up'!$A:$A,MATCH($A1034,'Smelter Look-up'!$E:$E,0)))","v":""},{"$f":"IF(LEN(A1034)=0,\"\",INDEX('Smelter Look-up'!$C:$C,MATCH($A1034,'Smelter Look-up'!$E:$E,0)))","v":""},null,{"$f":"IF(ISERROR($V1034),\"\",OFFSET('Smelter Look-up'!$D$4,$V1034-4,0)&\"\")","v":""},{"$f":"IF(ISERROR($V1034),\"\",OFFSET('Smelter Look-up'!$E$4,$V1034-4,0))","v":""},{"$f":"IF(C1034=$X$4,\"Enter smelter details\",IF(ISERROR($V1034),\"\",OFFSET('Smelter Look-up'!$F$4,$V1034-4,0)))","v":""},{"$f":"IF(ISERROR($V1034),\"\",OFFSET('Smelter Look-up'!$G$4,$V1034-4,0))","v":""},{"$f":"IF(ISERROR($V1034),\"\",OFFSET('Smelter Look-up'!$H$4,$V1034-4,0))","v":""},{"$f":"IF(ISERROR($V1034),\"\",OFFSET('Smelter Look-up'!$I$4,$V1034-4,0))","v":""},{"$nulls":7},{"$f":"IF(ISERROR($V1034),\"\",OFFSET('Smelter Look-up'!$C$4,$V1034-4,0)&\"\")","v":""},"",{"$f":"IF(B1034=\"\",\"\",IF(ISERROR(MATCH($J1034,SorP!$B$1:$B$5661,0)),\"\",INDIRECT(\"'SorP'!$A$\"&MATCH($J1034,SorP!$B$1:$B$5661,0))))","v":""},null,{"$f":"IF(C1034=\"\",NA(),MATCH($B1034&$C1034,'Smelter Look-up'!$J:$J,0))","v":{"$error":"#N/A"}},null,0,null,null,null,""]
[null,{"$f":"IF(LEN(A1035)=0,\"\",INDEX('Smelter Look-up'!$A:$A,MATCH($A1035,'Smelter Look-up'!$E:$E,0)))","v":""},{"$f":"IF(LEN(A1035)=0,\"\",INDEX('Smelter Look-up'!$C:$C,MATCH($A1035,'Smelter Look-up'!$E:$E,0)))","v":""},null,{"$f":"IF(ISERROR($V1035),\"\",OFFSET('Smelter Look-up'!$D$4,$V1035-4,0)&\"\")","v":""},{"$f":"IF(ISERROR($V1035),\"\",OFFSET('Smelter Look-up'!$E$4,$V1035-4,0))","v":""},{"$f":"IF(C1035=$X$4,\"Enter smelter details\",IF(ISERROR($V1035),\"\",OFFSET('Smelter Look-up'!$F$4,$V1035-4,0)))","v":""},{"$f":"IF(ISERROR($V1035),\"\",OFFSET('Smelter Look-up'!$G$4,$V1035-4,0))","v":""},{"$f":"IF(ISERROR($V1035),\"\",OFFSET('Smelter Look-up'!$H$4,$V1035-4,0))","v":""},{"$f":"IF(ISERROR($V1035),\"\",OFFSET('Smelter Look-up'!$I$4,$V1035-4,0))","v":""},{"$nulls":7},{"$f":"IF(ISERROR($V1035),\"\",OFFSET('Smelter Look-up'!$C$4,$V1035-4,0)&\"\")","v":""},"",{"$f":"IF(B1035=\"\",\"\",IF(ISERROR(MATCH($J1035,SorP!$B$1:$B$5661,0)),\"\",INDIRECT(\"'SorP'!$A$\"&MATCH($J1035,SorP!$B$1:$B$5661,0))))","v":""},null,{"$f":"IF(C1035=\"\",NA(),MATCH($B1035&$C1035,'Smelter Look-up'!$J:$J,0))","v":{"$error":"#N/A"}},null,0,null,null,null,""]
[null,{"$f":"IF(LEN(A1036)=0,\"\",INDEX('Smelter Look-up'!$A:$A,MATCH($A1036,'Smelter Look-up'!$E:$E,0)))","v":""},{"$f":"IF(LEN(A1036)=0,\"\",INDEX('Smelter Look-up'!$C:$C,MATCH($A1036,'Smelter Look-up'!$E:$E,0)))","v":""},null,{"$f":"IF(ISERROR($V1036),\"\",OFFSET('Smelter Look-up'!$D$4,$V1036-4,0)&\"\")","v":""},{"$f":"IF(ISERROR($V1036),\"\",OFFSET('Smelter Look-up'!$E$4,$V1036-4,0))","v":""},{"$f":"IF(C1036=$X$4,\"Enter smelter details\",IF(ISERROR($V1036),\"\",OFFSET('Smelter Look-up'!$F$4,$V1036-4,0)))","v":""},{"$f":"IF(ISERROR($V1036),\"\",OFFSET('Smelter Look-up'!$G$4,$V1036-4,0))","v":""},{"$f":"IF(ISERROR($V1036),\"\",OFFSET('Smelter Look-up'!$H$4,$V1036-4,0))","v":""},{"$f":"IF(ISERROR($V1036),\"\",OFFSET('Smelter Look-up'!$I$4,$V1036-4,0))","v":""},{"$nulls":7},{"$f":"IF(ISERROR($V1036),\"\",OFFSET('Smelter Look-up'!$C$4,$V1036-4,0)&\"\")","v":""},"",{"$f":"IF(B1036=\"\",\"\",IF(ISERROR(MATCH($J1036,SorP!$B$1:$B$5661,0)),\"\",INDIRECT(\"'SorP'!$A$\"&MATCH($J1036,SorP!$B$1:$B$5661,0))))","v":""},null,{"$f":"IF(C1036=\"\",NA(),MATCH($B1036&$C1036,'Smelter Look-up'!$J:$J,0))","v":{"$error":"#N/A"}},null,0,null,null,null,""]
[null,{"$f":"IF(LEN(A1037)=0,\"\",INDEX('Smelter Look-up'!$A:$A,MATCH($A1037,'Smelter Look-up'!$E:$E,0)))","v":""},{"$f":"IF(LEN(A1037)=0,\"\",INDEX('Smelter Look-up'!$C:$C,MATCH($A1037,'Smelter Look-up'!$E:$E,0)))","v":""},null,{"$f":"IF(ISERROR($V1037),\"\",OFFSET('Smelter Look-up'!$D$4,$V1037-4,0)&\"\")","v":""},{"$f":"IF(ISERROR($V1037),\"\",OFFSET('Smelter Look-up'!$E$4,$V1037-4,0))","v":""},{"$f":"IF(C1037=$X$4,\"Enter smelter details\",IF(ISERROR($V1037),\"\",OFFSET('Smelter Look-up'!$F$4,$V1037-4,0)))","v":""},{"$f":"IF(ISERROR($V1037),\"\",OFFSET('Smelter Look-up'!$G$4,$V1037-4,0))","v":""},{"$f":"IF(ISERROR($V1037),\"\",OFFSET('Smelter Look-up'!$H$4,$V1037-4,0))","v":""},{"$f":"IF(ISERROR($V1037),\"\",OFFSET('Smelter Look-up'!$I$4,$V1037-4,0))","v":""},{"$nulls":7},{"$f":"IF(ISERROR($V1037),\"\",OFFSET('Smelter Look-up'!$C$4,$V1037-4,0)&\"\")","v":""},"",{"$f":"IF(B1037=\"\",\"\",IF(ISERROR(MATCH($J1037,SorP!$B$1:$B$5661,0)),\"\",INDIRECT(\"'SorP'!$A$\"&MATCH($J1037,SorP!$B$1:$B$5661,0))))","v":""},null,{"$f":"IF(C1037=\"\",NA(),MATCH($B1037&$C1037,'Smelter Look-up'!$J:$J,0))","v":{"$error":"#N/A"}},null,0,null,null,null,""]
[null,{"$f":"IF(LEN(A1038)=0,\"\",INDEX('Smelter Look-up'!$A:$A,MATCH($A1038,'Smelter Look-up'!$E:$E,0)))","v":""},{"$f":"IF(LEN(A1038)=0,\"\",INDEX('Smelter Look-up'!$C:$C,MATCH($A1038,'Smelter Look-up'!$E:$E,0)))","v":""},null,{"$f":"IF(ISERROR($V1038),\"\",OFFSET('Smelter Look-up'!$D$4,$V1038-4,0)&\"\")","v":""},{"$f":"IF(ISERROR($V1038),\"\",OFFSET('Smelter Look-up'!$E$4,$V1038-4,0))","v":""},{"$f":"IF(C1038=$X$4,\"Enter smelter details\",IF(ISERROR($V1038),\"\",OFFSET('Smelter Look-up'!$F$4,$V1038-4,0)))","v":""},{"$f":"IF(ISERROR($V1038),\"\",OFFSET('Smelter Look-up'!$G$4,$V1038-4,0))","v":""},{"$f":"IF(ISERROR($V1038),\"\",OFFSET('Smelter Look-up'!$H$4,$V1038-4,0))","v":""},{"$f":"IF(ISERROR($V1038),\"\",OFFSET('Smelter Look-up'!$I$4,$V1038-4,0))","v":""},{"$nulls":7},{"$f":"IF(ISERROR($V1038),\"\",OFFSET('Smelter Look-up'!$C$4,$V1038-4,0)&\"\")","v":""},"",{"$f":"IF(B1038=\"\",\"\",IF(ISERROR(MATCH($J1038,SorP!$B$1:$B$5661,0)),\"\",INDIRECT(\"'SorP'!$A$\"&MATCH($J1038,SorP!$B$1:$B$5661,0))))","v":""},null,{"$f":"IF(C1038=\"\",NA(),MATCH($B1038&$C1038,'Smelter Look-up'!$J:$J,0))","v":{"$error":"#N/A"}},null,0,null,null,null,""]
[null,{"$f":"IF(LEN(A1039)=0,\"\",INDEX('Smelter Look-up'!$A:$A,MATCH($A1039,'Smelter Look-up'!$E:$E,0)))","v":""},{"$f":"IF(LEN(A1039)=0,\"\",INDEX('Smelter Look-up'!$C:$C,MATCH($A1039,'Smelter Look-up'!$E:$E,0)))","v":""},null,{"$f":"IF(ISERROR($V1039),\"\",OFFSET('Smelter Look-up'!$D$4,$V1039-4,0)&\"\")","v":""},{"$f":"IF(ISERROR($V1039),\"\",OFFSET('Smelter Look-up'!$E$4,$V1039-4,0))","v":""},{"$f":"IF(C1039=$X$4,\"Enter smelter details\",IF(ISERROR($V1039),\"\",OFFSET('Smelter Look-up'!$F$4,$V1039-4,0)))","v":""},{"$f":"IF(ISERROR($V1039),\"\",OFFSET('Smelter Look-up'!$G$4,$V1039-4,0))","v":""},{"$f":"IF(ISERROR($V1039),\"\",OFFSET('Smelter Look-up'!$H$4,$V1039-4,0))","v":""},{"$f":"IF(ISERROR($V1039),\"\",OFFSET('Smelter Look-up'!$I$4,$V1039-4,0))","v":""},{"$nulls":7},{"$f":"IF(ISERROR($V1039),\"\",OFFSET('Smelter Look-up'!$C$4,$V1039-4,0)&\"\")","v":""},"",{"$f":"IF(B1039=\"\",\"\",IF(ISERROR(MATCH($J1039,SorP!$B$1:$B$5661,0)),\"\",INDIRECT(\"'SorP'!$A$\"&MATCH($J1039,SorP!$B$1:$B$5661,0))))","v":""},null,{"$f":"IF(C1039=\"\",NA(),MATCH($B1039&$C1039,'Smelter Look-up'!$J:$J,0))","v":{"$error":"#N/A"}},null,0,null,null,null,""]
[null,{"$f":"IF(LEN(A1040)=0,\"\",INDEX('Smelter Look-up'!$A:$A,MATCH($A1040,'Smelter Look-up'!$E:$E,0)))","v":""},{"$f":"IF(LEN(A1040)=0,\"\",INDEX('Smelter Look-up'!$C:$C,MATCH($A1040,'Smelter Look-up'!$E:$E,0)))","v":""},null,{"$f":"IF(ISERROR($V1040),\"\",OFFSET('Smelter Look-up'!$D$4,$V1040-4,0)&\"\")","v":""},{"$f":"IF(ISERROR($V1040),\"\",OFFSET('Smelter Look-up'!$E$4,$V1040-4,0))","v":""},{"$f":"IF(C1040=$X$4,\"Enter smelter details\",IF(ISERROR($V1040),\"\",OFFSET('Smelter Look-up'!$F$4,$V1040-4,0)))","v":""},{"$f":"IF(ISERROR($V1040),\"\",OFFSET('Smelter Look-up'!$G$4,$V1040-4,0))","v":""},{"$f":"IF(ISERROR($V1040),\"\",OFFSET('Smelter Look-up'!$H$4,$V1040-4,0))","v":""},{"$f":"IF(ISERROR($V1040),\"\",OFFSET('Smelter Look-up'!$I$4,$V1040-4,0))","v":""},{"$nulls":7},{"$f":"IF(ISERROR($V1040),\"\",OFFSET('Smelter Look-up'!$C$4,$V1040-4,0)&\"\")","v":""},"",{"$f":"IF(B1040=\"\",\"\",IF(ISERROR(MATCH($J1040,SorP!$B$1:$B$5661,0)),\"\",INDIRECT(\"'SorP'!$A$\"&MATCH($J1040,SorP!$B$1:$B$5661,0))))","v":""},null,{"$f":"IF(C1040=\"\",NA(),MATCH($B1040&$C1040,'Smelter Look-up'!$J:$J,0))","v":{"$error":"#N/A"}},null,0,null,null,null,""]
[null,{"$f":"IF(LEN(A1041)=0,\"\",INDEX('Smelter Look-up'!$A:$A,MATCH($A1041,'Smelter Look-up'!$E:$E,0)))","v":""},{"$f":"IF(LEN(A1041)=0,\"\",INDEX('Smelter Look-up'!$C:$C,MATCH($A1041,'Smelter Look-up'!$E:$E,0)))","v":""},null,{"$f":"IF(ISERROR($V1041),\"\",OFFSET('Smelter Look-up'!$D$4,$V1041-4,0)&\"\")","v":""},{"$f":"IF(ISERROR($V1041),\"\",OFFSET('Smelter Look-up'!$E$4,$V1041-4,0))","v":""},{"$f":"IF(C1041=$X$4,\"Enter smelter details\",IF(ISERROR($V1041),\"\",OFFSET('Smelter Look-up'!$F$4,$V1041-4,0)))","v":""},{"$f":"IF(ISERROR($V1041),\"\",OFFSET('Smelter Look-up'!$G$4,$V1041-4,0))","v":""},{"$f":"IF(ISERROR($V1041),\"\",OFFSET('Smelter Look-up'!$H$4,$V1041-4,0))","v":""},{"$f":"IF(ISERROR($V1041),\"\",OFFSET('Smelter Look-up'!$I$4,$V1041-4,0))","v":""},{"$nulls":7},{"$f":"IF(ISERROR($V1041),\"\",OFFSET('Smelter Look-up'!$C$4,$V1041-4,0)&\"\")","v":""},"",{"$f":"IF(B1041=\"\",\"\",IF(ISERROR(MATCH($J1041,SorP!$B$1:$B$5661,0)),\"\",INDIRECT(\"'SorP'!$A$\"&MATCH($J1041,SorP!$B$1:$B$5661,0))))","v":""},null,{"$f":"IF(C1041=\"\",NA(),MATCH($B1041&$C1041,'Smelter Look-up'!$J:$J,0))","v":{"$error":"#N/A"}},null,0,null,null,null,""]
[null,{"$f":"IF(LEN(A1042)=0,\"\",INDEX('Smelter Look-up'!$A:$A,MATCH($A1042,'Smelter Look-up'!$E:$E,0)))","v":""},{"$f":"IF(LEN(A1042)=0,\"\",INDEX('Smelter Look-up'!$C:$C,MATCH($A1042,'Smelter Look-up'!$E:$E,0)))","v":""},null,{"$f":"IF(ISERROR($V1042),\"\",OFFSET('Smelter Look-up'!$D$4,$V1042-4,0)&\"\")","v":""},{"$f":"IF(ISERROR($V1042),\"\",OFFSET('Smelter Look-up'!$E$4,$V1042-4,0))","v":""},{"$f":"IF(C1042=$X$4,\"Enter smelter details\",IF(ISERROR($V1042),\"\",OFFSET('Smelter Look-up'!$F$4,$V1042-4,0)))","v":""},{"$f":"IF(ISERROR($V1042),\"\",OFFSET('Smelter Look-up'!$G$4,$V1042-4,0))","v":""},{"$f":"IF(ISERROR($V1042),\"\",OFFSET('Smelter Look-up'!$H$4,$V1042-4,0))","v":""},{"$f":"IF(ISERROR($V1042),\"\",OFFSET('Smelter Look-up'!$I$4,$V1042-4,0))","v":""},{"$nulls":7},{"$f":"IF(ISERROR($V1042),\"\",OFFSET('Smelter Look-up'!$C$4,$V1042-4,0)&\"\")","v":""},"",{"$f":"IF(B1042=\"\",\"\",IF(ISERROR(MATCH($J1042,SorP!$B$1:$B$5661,0)),\"\",INDIRECT(\"'SorP'!$A$\"&MATCH($J1042,SorP!$B$1:$B$5661,0))))","v":""},null,{"$f":"IF(C1042=\"\",NA(),MATCH($B1042&$C1042,'Smelter Look-up'!$J:$J,0))","v":{"$error":"#N/A"}},null,0,null,null,null,""]
[null,{"$f":"IF(LEN(A1043)=0,\"\",INDEX('Smelter Look-up'!$A:$A,MATCH($A1043,'Smelter Look-up'!$E:$E,0)))","v":""},{"$f":"IF(LEN(A1043)=0,\"\",INDEX('Smelter Look-up'!$C:$C,MATCH($A1043,'Smelter Look-up'!$E:$E,0)))","v":""},null,{"$f":"IF(ISERROR($V1043),\"\",OFFSET('Smelter Look-up'!$D$4,$V1043-4,0)&\"\")","v":""},{"$f":"IF(ISERROR($V1043),\"\",OFFSET('Smelter Look-up'!$E$4,$V1043-4,0))","v":""},{"$f":"IF(C1043=$X$4,\"Enter smelter details\",IF(ISERROR($V1043),\"\",OFFSET('Smelter Look-up'!$F$4,$V1043-4,0)))","v":""},{"$f":"IF(ISERROR($V1043),\"\",OFFSET('Smelter Look-up'!$G$4,$V1043-4,0))","v":""},{"$f":"IF(ISERROR($V1043),\"\",OFFSET('Smelter Look-up'!$H$4,$V1043-4,0))","v":""},{"$f":"IF(ISERROR($V1043),\"\",OFFSET('Smelter Look-up'!$I$4,$V1043-4,0))","v":""},{"$nulls":7},{"$f":"IF(ISERROR($V1043),\"\",OFFSET('Smelter Look-up'!$C$4,$V1043-4,0)&\"\")","v":""},"",{"$f":"IF(B1043=\"\",\"\",IF(ISERROR(MATCH($J1043,SorP!$B$1:$B$5661,0)),\"\",INDIRECT(\"'SorP'!$A$\"&MATCH($J1043,SorP!$B$1:$B$5661,0))))","v":""},null,{"$f":"IF(C1043=\"\",NA(),MATCH($B1043&$C1043,'Smelter Look-up'!$J:$J,0))","v":{"$error":"#N/A"}},null,0,null,null,null,""]
[null,{"$f":"IF(LEN(A1044)=0,\"\",INDEX('Smelter Look-up'!$A:$A,MATCH($A1044,'Smelter Look-up'!$E:$E,0)))","v":""},{"$f":"IF(LEN(A1044)=0,\"\",INDEX('Smelter Look-up'!$C:$C,MATCH($A1044,'Smelter Look-up'!$E:$E,0)))","v":""},null,{"$f":"IF(ISERROR($V1044),\"\",OFFSET('Smelter Look-up'!$D$4,$V1044-4,0)&\"\")","v":""},{"$f":"IF(ISERROR($V1044),\"\",OFFSET('Smelter Look-up'!$E$4,$V1044-4,0))","v":""},{"$f":"IF(C1044=$X$4,\"Enter smelter details\",IF(ISERROR($V1044),\"\",OFFSET('Smelter Look-up'!$F$4,$V1044-4,0)))","v":""},{"$f":"IF(ISERROR($V1044),\"\",OFFSET('Smelter Look-up'!$G$4,$V1044-4,0))","v":""},{"$f":"IF(ISERROR($V1044),\"\",OFFSET('Smelter Look-up'!$H$4,$V1044-4,0))","v":""},{"$f":"IF(ISERROR($V1044),\"\",OFFSET('Smelter Look-up'!$I$4,$V1044-4,0))","v":""},{"$nulls":7},{"$f":"IF(ISERROR($V1044),\"\",OFFSET('Smelter Look-up'!$C$4,$V1044-4,0)&\"\")","v":""},"",{"$f":"IF(B1044=\"\",\"\",IF(ISERROR(MATCH($J1044,SorP!$B$1:$B$5661,0)),\"\",INDIRECT(\"'SorP'!$A$\"&MATCH($J1044,SorP!$B$1:$B$5661,0))))","v":""},null,{"$f":"IF(C1044=\"\",NA(),MATCH($B1044&$C1044,'Smelter Look-up'!$J:$J,0))","v":{"$error":"#N/A"}},null,0,null,null,null,""]
[null,{"$f":"IF(LEN(A1045)=0,\"\",INDEX('Smelter Look-up'!$A:$A,MATCH($A1045,'Smelter Look-up'!$E:$E,0)))","v":""},{"$f":"IF(LEN(A1045)=0,\"\",INDEX('Smelter Look-up'!$C:$C,MATCH($A1045,'Smelter Look-up'!$E:$E,0)))","v":""},null,{"$f":"IF(ISERROR($V1045),\"\",OFFSET('Smelter Look-up'!$D$4,$V1045-4,0)&\"\")","v":""},{"$f":"IF(ISERROR($V1045),\"\",OFFSET('Smelter Look-up'!$E$4,$V1045-4,0))","v":""},{"$f":"IF(C1045=$X$4,\"Enter smelter details\",IF(ISERROR($V1045),\"\",OFFSET('Smelter Look-up'!$F$4,$V1045-4,0)))","v":""},{"$f":"IF(ISERROR($V1045),\"\",OFFSET('Smelter Look-up'!$G$4,$V1045-4,0))","v":""},{"$f":"IF(ISERROR($V1045),\"\",OFFSET('Smelter Look-up'!$H$4,$V1045-4,0))","v":""},{"$f":"IF(ISERROR($V1045),\"\",OFFSET('Smelter Look-up'!$I$4,$V1045-4,0))","v":""},{"$nulls":7},{"$f":"IF(ISERROR($V1045),\"\",OFFSET('Smelter Look-up'!$C$4,$V1045-4,0)&\"\")","v":""},"",{"$f":"IF(B1045=\"\",\"\",IF(ISERROR(MATCH($J1045,SorP!$B$1:$B$5661,0)),\"\",INDIRECT(\"'SorP'!$A$\"&MATCH($J1045,SorP!$B$1:$B$5661,0))))","v":""},null,{"$f":"IF(C1045=\"\",NA(),MATCH($B1045&$C1045,'Smelter Look-up'!$J:$J,0))","v":{"$error":"#N/A"}},null,0,null,null,null,""]
[null,{"$f":"IF(LEN(A1046)=0,\"\",INDEX('Smelter Look-up'!$A:$A,MATCH($A1046,'Smelter Look-up'!$E:$E,0)))","v":""},{"$f":"IF(LEN(A1046)=0,\"\",INDEX('Smelter Look-up'!$C:$C,MATCH($A1046,'Smelter Look-up'!$E:$E,0)))","v":""},null,{"$f":"IF(ISERROR($V1046),\"\",OFFSET('Smelter Look-up'!$D$4,$V1046-4,0)&\"\")","v":""},{"$f":"IF(ISERROR($V1046),\"\",OFFSET('Smelter Look-up'!$E$4,$V1046-4,0))","v":""},{"$f":"IF(C1046=$X$4,\"Enter smelter details\",IF(ISERROR($V1046),\"\",OFFSET('Smelter Look-up'!$F$4,$V1046-4,0)))","v":""},{"$f":"IF(ISERROR($V1046),\"\",OFFSET('Smelter Look-up'!$G$4,$V1046-4,0))","v":""},{"$f":"IF(ISERROR($V1046),\"\",OFFSET('Smelter Look-up'!$H$4,$V1046-4,0))","v":""},{"$f":"IF(ISERROR($V1046),\"\",OFFSET('Smelter Look-up'!$I$4,$V1046-4,0))","v":""},{"$nulls":7},{"$f":"IF(ISERROR($V1046),\"\",OFFSET('Smelter Look-up'!$C$4,$V1046-4,0)&\"\")","v":""},"",{"$f":"IF(B1046=\"\",\"\",IF(ISERROR(MATCH($J1046,SorP!$B$1:$B$5661,0)),\"\",INDIRECT(\"'SorP'!$A$\"&MATCH($J1046,SorP!$B$1:$B$5661,0))))","v":""},null,{"$f":"IF(C1046=\"\",NA(),MATCH($B1046&$C1046,'Smelter Look-up'!$J:$J,0))","v":{"$error":"#N/A"}},null,0,null,null,null,""]
[null,{"$f":"IF(LEN(A1047)=0,\"\",INDEX('Smelter Look-up'!$A:$A,MATCH($A1047,'Smelter Look-up'!$E:$E,0)))","v":""},{"$f":"IF(LEN(A1047)=0,\"\",INDEX('Smelter Look-up'!$C:$C,MATCH($A1047,'Smelter Look-up'!$E:$E,0)))","v":""},null,{"$f":"IF(ISERROR($V1047),\"\",OFFSET('Smelter Look-up'!$D$4,$V1047-4,0)&\"\")","v":""},{"$f":"IF(ISERROR($V1047),\"\",OFFSET('Smelter Look-up'!$E$4,$V1047-4,0))","v":""},{"$f":"IF(C1047=$X$4,\"Enter smelter details\",IF(ISERROR($V1047),\"\",OFFSET('Smelter Look-up'!$F$4,$V1047-4,0)))","v":""},{"$f":"IF(ISERROR($V1047),\"\",OFFSET('Smelter Look-up'!$G$4,$V1047-4,0))","v":""},{"$f":"IF(ISERROR($V1047),\"\",OFFSET('Smelter Look-up'!$H$4,$V1047-4,0))","v":""},{"$f":"IF(ISERROR($V1047),\"\",OFFSET('Smelter Look-up'!$I$4,$V1047-4,0))","v":""},{"$nulls":7},{"$f":"IF(ISERROR($V1047),\"\",OFFSET('Smelter Look-up'!$C$4,$V1047-4,0)&\"\")","v":""},"",{"$f":"IF(B1047=\"\",\"\",IF(ISERROR(MATCH($J1047,SorP!$B$1:$B$5661,0)),\"\",INDIRECT(\"'SorP'!$A$\"&MATCH($J1047,SorP!$B$1:$B$5661,0))))","v":""},null,{"$f":"IF(C1047=\"\",NA(),MATCH($B1047&$C1047,'Smelter Look-up'!$J:$J,0))","v":{"$error":"#N/A"}},null,0,null,null,null,""]
[null,{"$f":"IF(LEN(A1048)=0,\"\",INDEX('Smelter Look-up'!$A:$A,MATCH($A1048,'Smelter Look-up'!$E:$E,0)))","v":""},{"$f":"IF(LEN(A1048)=0,\"\",INDEX('Smelter Look-up'!$C:$C,MATCH($A1048,'Smelter Look-up'!$E:$E,0)))","v":""},null,{"$f":"IF(ISERROR($V1048),\"\",OFFSET('Smelter Look-up'!$D$4,$V1048-4,0)&\"\")","v":""},{"$f":"IF(ISERROR($V1048),\"\",OFFSET('Smelter Look-up'!$E$4,$V1048-4,0))","v":""},{"$f":"IF(C1048=$X$4,\"Enter smelter details\",IF(ISERROR($V1048),\"\",OFFSET('Smelter Look-up'!$F$4,$V1048-4,0)))","v":""},{"$f":"IF(ISERROR($V1048),\"\",OFFSET('Smelter Look-up'!$G$4,$V1048-4,0))","v":""},{"$f":"IF(ISERROR($V1048),\"\",OFFSET('Smelter Look-up'!$H$4,$V1048-4,0))","v":""},{"$f":"IF(ISERROR($V1048),\"\",OFFSET('Smelter Look-up'!$I$4,$V1048-4,0))","v":""},{"$nulls":7},{"$f":"IF(ISERROR($V1048),\"\",OFFSET('Smelter Look-up'!$C$4,$V1048-4,0)&\"\")","v":""},"",{"$f":"IF(B1048=\"\",\"\",IF(ISERROR(MATCH($J1048,SorP!$B$1:$B$5661,0)),\"\",INDIRECT(\"'SorP'!$A$\"&MATCH($J1048,SorP!$B$1:$B$5661,0))))","v":""},null,{"$f":"IF(C1048=\"\",NA(),MATCH($B1048&$C1048,'Smelter Look-up'!$J:$J,0))","v":{"$error":"#N/A"}},null,0,null,null,null,""]
[null,{"$f":"IF(LEN(A1049)=0,\"\",INDEX('Smelter Look-up'!$A:$A,MATCH($A1049,'Smelter Look-up'!$E:$E,0)))","v":""},{"$f":"IF(LEN(A1049)=0,\"\",INDEX('Smelter Look-up'!$C:$C,MATCH($A1049,'Smelter Look-up'!$E:$E,0)))","v":""},null,{"$f":"IF(ISERROR($V1049),\"\",OFFSET('Smelter Look-up'!$D$4,$V1049-4,0)&\"\")","v":""},{"$f":"IF(ISERROR($V1049),\"\",OFFSET('Smelter Look-up'!$E$4,$V1049-4,0))","v":""},{"$f":"IF(C1049=$X$4,\"Enter smelter details\",IF(ISERROR($V1049),\"\",OFFSET('Smelter Look-up'!$F$4,$V1049-4,0)))","v":""},{"$f":"IF(ISERROR($V1049),\"\",OFFSET('Smelter Look-up'!$G$4,$V1049-4,0))","v":""},{"$f":"IF(ISERROR($V1049),\"\",OFFSET('Smelter Look-up'!$H$4,$V1049-4,0))","v":""},{"$f":"IF(ISERROR($V1049),\"\",OFFSET('Smelter Look-up'!$I$4,$V1049-4,0))","v":""},{"$nulls":7},{"$f":"IF(ISERROR($V1049),\"\",OFFSET('Smelter Look-up'!$C$4,$V1049-4,0)&\"\")","v":""},"",{"$f":"IF(B1049=\"\",\"\",IF(ISERROR(MATCH($J1049,SorP!$B$1:$B$5661,0)),\"\",INDIRECT(\"'SorP'!$A$\"&MATCH($J1049,SorP!$B$1:$B$5661,0))))","v":""},null,{"$f":"IF(C1049=\"\",NA(),MATCH($B1049&$C1049,'Smelter Look-up'!$J:$J,0))","v":{"$error":"#N/A"}},null,0,null,null,null,""]
[null,{"$f":"IF(LEN(A1050)=0,\"\",INDEX('Smelter Look-up'!$A:$A,MATCH($A1050,'Smelter Look-up'!$E:$E,0)))","v":""},{"$f":"IF(LEN(A1050)=0,\"\",INDEX('Smelter Look-up'!$C:$C,MATCH($A1050,'Smelter Look-up'!$E:$E,0)))","v":""},null,{"$f":"IF(ISERROR($V1050),\"\",OFFSET('Smelter Look-up'!$D$4,$V1050-4,0)&\"\")","v":""},{"$f":"IF(ISERROR($V1050),\"\",OFFSET('Smelter Look-up'!$E$4,$V1050-4,0))","v":""},{"$f":"IF(C1050=$X$4,\"Enter smelter details\",IF(ISERROR($V1050),\"\",OFFSET('Smelter Look-up'!$F$4,$V1050-4,0)))","v":""},{"$f":"IF(ISERROR($V1050),\"\",OFFSET('Smelter Look-up'!$G$4,$V1050-4,0))","v":""},{"$f":"IF(ISERROR($V1050),\"\",OFFSET('Smelter Look-up'!$H$4,$V1050-4,0))","v":""},{"$f":"IF(ISERROR($V1050),\"\",OFFSET('Smelter Look-up'!$I$4,$V1050-4,0))","v":""},{"$nulls":7},{"$f":"IF(ISERROR($V1050),\"\",OFFSET('Smelter Look-up'!$C$4,$V1050-4,0)&\"\")","v":""},"",{"$f":"IF(B1050=\"\",\"\",IF(ISERROR(MATCH($J1050,SorP!$B$1:$B$5661,0)),\"\",INDIRECT(\"'SorP'!$A$\"&MATCH($J1050,SorP!$B$1:$B$5661,0))))","v":""},null,{"$f":"IF(C1050=\"\",NA(),MATCH($B1050&$C1050,'Smelter Look-up'!$J:$J,0))","v":{"$error":"#N/A"}},null,0,null,null,null,""]
[null,{"$f":"IF(LEN(A1051)=0,\"\",INDEX('Smelter Look-up'!$A:$A,MATCH($A1051,'Smelter Look-up'!$E:$E,0)))","v":""},{"$f":"IF(LEN(A1051)=0,\"\",INDEX('Smelter Look-up'!$C:$C,MATCH($A1051,'Smelter Look-up'!$E:$E,0)))","v":""},null,{"$f":"IF(ISERROR($V1051),\"\",OFFSET('Smelter Look-up'!$D$4,$V1051-4,0)&\"\")","v":""},{"$f":"IF(ISERROR($V1051),\"\",OFFSET('Smelter Look-up'!$E$4,$V1051-4,0))","v":""},{"$f":"IF(C1051=$X$4,\"Enter smelter details\",IF(ISERROR($V1051),\"\",OFFSET('Smelter Look-up'!$F$4,$V1051-4,0)))","v":""},{"$f":"IF(ISERROR($V1051),\"\",OFFSET('Smelter Look-up'!$G$4,$V1051-4,0))","v":""},{"$f":"IF(ISERROR($V1051),\"\",OFFSET('Smelter Look-up'!$H$4,$V1051-4,0))","v":""},{"$f":"IF(ISERROR($V1051),\"\",OFFSET('Smelter Look-up'!$I$4,$V1051-4,0))","v":""},{"$nulls":7},{"$f":"IF(ISERROR($V1051),\"\",OFFSET('Smelter Look-up'!$C$4,$V1051-4,0)&\"\")","v":""},"",{"$f":"IF(B1051=\"\",\"\",IF(ISERROR(MATCH($J1051,SorP!$B$1:$B$5661,0)),\"\",INDIRECT(\"'SorP'!$A$\"&MATCH($J1051,SorP!$B$1:$B$5661,0))))","v":""},null,{"$f":"IF(C1051=\"\",NA(),MATCH($B1051&$C1051,'Smelter Look-up'!$J:$J,0))","v":{"$error":"#N/A"}},null,0,null,null,null,""]
[null,{"$f":"IF(LEN(A1052)=0,\"\",INDEX('Smelter Look-up'!$A:$A,MATCH($A1052,'Smelter Look-up'!$E:$E,0)))","v":""},{"$f":"IF(LEN(A1052)=0,\"\",INDEX('Smelter Look-up'!$C:$C,MATCH($A1052,'Smelter Look-up'!$E:$E,0)))","v":""},null,{"$f":"IF(ISERROR($V1052),\"\",OFFSET('Smelter Look-up'!$D$4,$V1052-4,0)&\"\")","v":""},{"$f":"IF(ISERROR($V1052),\"\",OFFSET('Smelter Look-up'!$E$4,$V1052-4,0))","v":""},{"$f":"IF(C1052=$X$4,\"Enter smelter details\",IF(ISERROR($V1052),\"\",OFFSET('Smelter Look-up'!$F$4,$V1052-4,0)))","v":""},{"$f":"IF(ISERROR($V1052),\"\",OFFSET('Smelter Look-up'!$G$4,$V1052-4,0))","v":""},{"$f":"IF(ISERROR($V1052),\"\",OFFSET('Smelter Look-up'!$H$4,$V1052-4,0))","v":""},{"$f":"IF(ISERROR($V1052),\"\",OFFSET('Smelter Look-up'!$I$4,$V1052-4,0))","v":""},{"$nulls":7},{"$f":"IF(ISERROR($V1052),\"\",OFFSET('Smelter Look-up'!$C$4,$V1052-4,0)&\"\")","v":""},"",{"$f":"IF(B1052=\"\",\"\",IF(ISERROR(MATCH($J1052,SorP!$B$1:$B$5661,0)),\"\",INDIRECT(\"'SorP'!$A$\"&MATCH($J1052,SorP!$B$1:$B$5661,0))))","v":""},null,{"$f":"IF(C1052=\"\",NA(),MATCH($B1052&$C1052,'Smelter Look-up'!$J:$J,0))","v":{"$error":"#N/A"}},null,0,null,null,null,""]
[null,{"$f":"IF(LEN(A1053)=0,\"\",INDEX('Smelter Look-up'!$A:$A,MATCH($A1053,'Smelter Look-up'!$E:$E,0)))","v":""},{"$f":"IF(LEN(A1053)=0,\"\",INDEX('Smelter Look-up'!$C:$C,MATCH($A1053,'Smelter Look-up'!$E:$E,0)))","v":""},null,{"$f":"IF(ISERROR($V1053),\"\",OFFSET('Smelter Look-up'!$D$4,$V1053-4,0)&\"\")","v":""},{"$f":"IF(ISERROR($V1053),\"\",OFFSET('Smelter Look-up'!$E$4,$V1053-4,0))","v":""},{"$f":"IF(C1053=$X$4,\"Enter smelter details\",IF(ISERROR($V1053),\"\",OFFSET('Smelter Look-up'!$F$4,$V1053-4,0)))","v":""},{"$f":"IF(ISERROR($V1053),\"\",OFFSET('Smelter Look-up'!$G$4,$V1053-4,0))","v":""},{"$f":"IF(ISERROR($V1053),\"\",OFFSET('Smelter Look-up'!$H$4,$V1053-4,0))","v":""},{"$f":"IF(ISERROR($V1053),\"\",OFFSET('Smelter Look-up'!$I$4,$V1053-4,0))","v":""},{"$nulls":7},{"$f":"IF(ISERROR($V1053),\"\",OFFSET('Smelter Look-up'!$C$4,$V1053-4,0)&\"\")","v":""},"",{"$f":"IF(B1053=\"\",\"\",IF(ISERROR(MATCH($J1053,SorP!$B$1:$B$5661,0)),\"\",INDIRECT(\"'SorP'!$A$\"&MATCH($J1053,SorP!$B$1:$B$5661,0))))","v":""},null,{"$f":"IF(C1053=\"\",NA(),MATCH($B1053&$C1053,'Smelter Look-up'!$J:$J,0))","v":{"$error":"#N/A"}},null,0,null,null,null,""]
[null,{"$f":"IF(LEN(A1054)=0,\"\",INDEX('Smelter Look-up'!$A:$A,MATCH($A1054,'Smelter Look-up'!$E:$E,0)))","v":""},{"$f":"IF(LEN(A1054)=0,\"\",INDEX('Smelter Look-up'!$C:$C,MATCH($A1054,'Smelter Look-up'!$E:$E,0)))","v":""},null,{"$f":"IF(ISERROR($V1054),\"\",OFFSET('Smelter Look-up'!$D$4,$V1054-4,0)&\"\")","v":""},{"$f":"IF(ISERROR($V1054),\"\",OFFSET('Smelter Look-up'!$E$4,$V1054-4,0))","v":""},{"$f":"IF(C1054=$X$4,\"Enter smelter details\",IF(ISERROR($V1054),\"\",OFFSET('Smelter Look-up'!$F$4,$V1054-4,0)))","v":""},{"$f":"IF(ISERROR($V1054),\"\",OFFSET('Smelter Look-up'!$G$4,$V1054-4,0))","v":""},{"$f":"IF(ISERROR($V1054),\"\",OFFSET('Smelter Look-up'!$H$4,$V1054-4,0))","v":""},{"$f":"IF(ISERROR($V1054),\"\",OFFSET('Smelter Look-up'!$I$4,$V1054-4,0))","v":""},{"$nulls":7},{"$f":"IF(ISERROR($V1054),\"\",OFFSET('Smelter Look-up'!$C$4,$V1054-4,0)&\"\")","v":""},"",{"$f":"IF(B1054=\"\",\"\",IF(ISERROR(MATCH($J1054,SorP!$B$1:$B$5661,0)),\"\",INDIRECT(\"'SorP'!$A$\"&MATCH($J1054,SorP!$B$1:$B$5661,0))))","v":""},null,{"$f":"IF(C1054=\"\",NA(),MATCH($B1054&$C1054,'Smelter Look-up'!$J:$J,0))","v":{"$error":"#N/A"}},null,0,null,null,null,""]
[null,{"$f":"IF(LEN(A1055)=0,\"\",INDEX('Smelter Look-up'!$A:$A,MATCH($A1055,'Smelter Look-up'!$E:$E,0)))","v":""},{"$f":"IF(LEN(A1055)=0,\"\",INDEX('Smelter Look-up'!$C:$C,MATCH($A1055,'Smelter Look-up'!$E:$E,0)))","v":""},null,{"$f":"IF(ISERROR($V1055),\"\",OFFSET('Smelter Look-up'!$D$4,$V1055-4,0)&\"\")","v":""},{"$f":"IF(ISERROR($V1055),\"\",OFFSET('Smelter Look-up'!$E$4,$V1055-4,0))","v":""},{"$f":"IF(C1055=$X$4,\"Enter smelter details\",IF(ISERROR($V1055),\"\",OFFSET('Smelter Look-up'!$F$4,$V1055-4,0)))","v":""},{"$f":"IF(ISERROR($V1055),\"\",OFFSET('Smelter Look-up'!$G$4,$V1055-4,0))","v":""},{"$f":"IF(ISERROR($V1055),\"\",OFFSET('Smelter Look-up'!$H$4,$V1055-4,0))","v":""},{"$f":"IF(ISERROR($V1055),\"\",OFFSET('Smelter Look-up'!$I$4,$V1055-4,0))","v":""},{"$nulls":7},{"$f":"IF(ISERROR($V1055),\"\",OFFSET('Smelter Look-up'!$C$4,$V1055-4,0)&\"\")","v":""},"",{"$f":"IF(B1055=\"\",\"\",IF(ISERROR(MATCH($J1055,SorP!$B$1:$B$5661,0)),\"\",INDIRECT(\"'SorP'!$A$\"&MATCH($J1055,SorP!$B$1:$B$5661,0))))","v":""},null,{"$f":"IF(C1055=\"\",NA(),MATCH($B1055&$C1055,'Smelter Look-up'!$J:$J,0))","v":{"$error":"#N/A"}},null,0,null,null,null,""]
[null,{"$f":"IF(LEN(A1056)=0,\"\",INDEX('Smelter Look-up'!$A:$A,MATCH($A1056,'Smelter Look-up'!$E:$E,0)))","v":""},{"$f":"IF(LEN(A1056)=0,\"\",INDEX('Smelter Look-up'!$C:$C,MATCH($A1056,'Smelter Look-up'!$E:$E,0)))","v":""},null,{"$f":"IF(ISERROR($V1056),\"\",OFFSET('Smelter Look-up'!$D$4,$V1056-4,0)&\"\")","v":""},{"$f":"IF(ISERROR($V1056),\"\",OFFSET('Smelter Look-up'!$E$4,$V1056-4,0))","v":""},{"$f":"IF(C1056=$X$4,\"Enter smelter details\",IF(ISERROR($V1056),\"\",OFFSET('Smelter Look-up'!$F$4,$V1056-4,0)))","v":""},{"$f":"IF(ISERROR($V1056),\"\",OFFSET('Smelter Look-up'!$G$4,$V1056-4,0))","v":""},{"$f":"IF(ISERROR($V1056),\"\",OFFSET('Smelter Look-up'!$H$4,$V1056-4,0))","v":""},{"$f":"IF(ISERROR($V1056),\"\",OFFSET('Smelter Look-up'!$I$4,$V1056-4,0))","v":""},{"$nulls":7},{"$f":"IF(ISERROR($V1056),\"\",OFFSET('Smelter Look-up'!$C$4,$V1056-4,0)&\"\")","v":""},"",{"$f":"IF(B1056=\"\",\"\",IF(ISERROR(MATCH($J1056,SorP!$B$1:$B$5661,0)),\"\",INDIRECT(\"'SorP'!$A$\"&MATCH($J1056,SorP!$B$1:$B$5661,0))))","v":""},null,{"$f":"IF(C1056=\"\",NA(),MATCH($B1056&$C1056,'Smelter Look-up'!$J:$J,0))","v":{"$error":"#N/A"}},null,0,null,null,null,""]
[null,{"$f":"IF(LEN(A1057)=0,\"\",INDEX('Smelter Look-up'!$A:$A,MATCH($A1057,'Smelter Look-up'!$E:$E,0)))","v":""},{"$f":"IF(LEN(A1057)=0,\"\",INDEX('Smelter Look-up'!$C:$C,MATCH($A1057,'Smelter Look-up'!$E:$E,0)))","v":""},null,{"$f":"IF(ISERROR($V1057),\"\",OFFSET('Smelter Look-up'!$D$4,$V1057-4,0)&\"\")","v":""},{"$f":"IF(ISERROR($V1057),\"\",OFFSET('Smelter Look-up'!$E$4,$V1057-4,0))","v":""},{"$f":"IF(C1057=$X$4,\"Enter smelter details\",IF(ISERROR($V1057),\"\",OFFSET('Smelter Look-up'!$F$4,$V1057-4,0)))","v":""},{"$f":"IF(ISERROR($V1057),\"\",OFFSET('Smelter Look-up'!$G$4,$V1057-4,0))","v":""},{"$f":"IF(ISERROR($V1057),\"\",OFFSET('Smelter Look-up'!$H$4,$V1057-4,0))","v":""},{"$f":"IF(ISERROR($V1057),\"\",OFFSET('Smelter Look-up'!$I$4,$V1057-4,0))","v":""},{"$nulls":7},{"$f":"IF(ISERROR($V1057),\"\",OFFSET('Smelter Look-up'!$C$4,$V1057-4,0)&\"\")","v":""},"",{"$f":"IF(B1057=\"\",\"\",IF(ISERROR(MATCH($J1057,SorP!$B$1:$B$5661,0)),\"\",INDIRECT(\"'SorP'!$A$\"&MATCH($J1057,SorP!$B$1:$B$5661,0))))","v":""},null,{"$f":"IF(C1057=\"\",NA(),MATCH($B1057&$C1057,'Smelter Look-up'!$J:$J,0))","v":{"$error":"#N/A"}},null,0,null,null,null,""]
[null,{"$f":"IF(LEN(A1058)=0,\"\",INDEX('Smelter Look-up'!$A:$A,MATCH($A1058,'Smelter Look-up'!$E:$E,0)))","v":""},{"$f":"IF(LEN(A1058)=0,\"\",INDEX('Smelter Look-up'!$C:$C,MATCH($A1058,'Smelter Look-up'!$E:$E,0)))","v":""},null,{"$f":"IF(ISERROR($V1058),\"\",OFFSET('Smelter Look-up'!$D$4,$V1058-4,0)&\"\")","v":""},{"$f":"IF(ISERROR($V1058),\"\",OFFSET('Smelter Look-up'!$E$4,$V1058-4,0))","v":""},{"$f":"IF(C1058=$X$4,\"Enter smelter details\",IF(ISERROR($V1058),\"\",OFFSET('Smelter Look-up'!$F$4,$V1058-4,0)))","v":""},{"$f":"IF(ISERROR($V1058),\"\",OFFSET('Smelter Look-up'!$G$4,$V1058-4,0))","v":""},{"$f":"IF(ISERROR($V1058),\"\",OFFSET('Smelter Look-up'!$H$4,$V1058-4,0))","v":""},{"$f":"IF(ISERROR($V1058),\"\",OFFSET('Smelter Look-up'!$I$4,$V1058-4,0))","v":""},{"$nulls":7},{"$f":"IF(ISERROR($V1058),\"\",OFFSET('Smelter Look-up'!$C$4,$V1058-4,0)&\"\")","v":""},"",{"$f":"IF(B1058=\"\",\"\",IF(ISERROR(MATCH($J1058,SorP!$B$1:$B$5661,0)),\"\",INDIRECT(\"'SorP'!$A$\"&MATCH($J1058,SorP!$B$1:$B$5661,0))))","v":""},null,{"$f":"IF(C1058=\"\",NA(),MATCH($B1058&$C1058,'Smelter Look-up'!$J:$J,0))","v":{"$error":"#N/A"}},null,0,null,null,null,""]
[null,{"$f":"IF(LEN(A1059)=0,\"\",INDEX('Smelter Look-up'!$A:$A,MATCH($A1059,'Smelter Look-up'!$E:$E,0)))","v":""},{"$f":"IF(LEN(A1059)=0,\"\",INDEX('Smelter Look-up'!$C:$C,MATCH($A1059,'Smelter Look-up'!$E:$E,0)))","v":""},null,{"$f":"IF(ISERROR($V1059),\"\",OFFSET('Smelter Look-up'!$D$4,$V1059-4,0)&\"\")","v":""},{"$f":"IF(ISERROR($V1059),\"\",OFFSET('Smelter Look-up'!$E$4,$V1059-4,0))","v":""},{"$f":"IF(C1059=$X$4,\"Enter smelter details\",IF(ISERROR($V1059),\"\",OFFSET('Smelter Look-up'!$F$4,$V1059-4,0)))","v":""},{"$f":"IF(ISERROR($V1059),\"\",OFFSET('Smelter Look-up'!$G$4,$V1059-4,0))","v":""},{"$f":"IF(ISERROR($V1059),\"\",OFFSET('Smelter Look-up'!$H$4,$V1059-4,0))","v":""},{"$f":"IF(ISERROR($V1059),\"\",OFFSET('Smelter Look-up'!$I$4,$V1059-4,0))","v":""},{"$nulls":7},{"$f":"IF(ISERROR($V1059),\"\",OFFSET('Smelter Look-up'!$C$4,$V1059-4,0)&\"\")","v":""},"",{"$f":"IF(B1059=\"\",\"\",IF(ISERROR(MATCH($J1059,SorP!$B$1:$B$5661,0)),\"\",INDIRECT(\"'SorP'!$A$\"&MATCH($J1059,SorP!$B$1:$B$5661,0))))","v":""},null,{"$f":"IF(C1059=\"\",NA(),MATCH($B1059&$C1059,'Smelter Look-up'!$J:$J,0))","v":{"$error":"#N/A"}},null,0,null,null,null,""]
[null,{"$f":"IF(LEN(A1060)=0,\"\",INDEX('Smelter Look-up'!$A:$A,MATCH($A1060,'Smelter Look-up'!$E:$E,0)))","v":""},{"$f":"IF(LEN(A1060)=0,\"\",INDEX('Smelter Look-up'!$C:$C,MATCH($A1060,'Smelter Look-up'!$E:$E,0)))","v":""},null,{"$f":"IF(ISERROR($V1060),\"\",OFFSET('Smelter Look-up'!$D$4,$V1060-4,0)&\"\")","v":""},{"$f":"IF(ISERROR($V1060),\"\",OFFSET('Smelter Look-up'!$E$4,$V1060-4,0))","v":""},{"$f":"IF(C1060=$X$4,\"Enter smelter details\",IF(ISERROR($V1060),\"\",OFFSET('Smelter Look-up'!$F$4,$V1060-4,0)))","v":""},{"$f":"IF(ISERROR($V1060),\"\",OFFSET('Smelter Look-up'!$G$4,$V1060-4,0))","v":""},{"$f":"IF(ISERROR($V1060),\"\",OFFSET('Smelter Look-up'!$H$4,$V1060-4,0))","v":""},{"$f":"IF(ISERROR($V1060),\"\",OFFSET('Smelter Look-up'!$I$4,$V1060-4,0))","v":""},{"$nulls":7},{"$f":"IF(ISERROR($V1060),\"\",OFFSET('Smelter Look-up'!$C$4,$V1060-4,0)&\"\")","v":""},"",{"$f":"IF(B1060=\"\",\"\",IF(ISERROR(MATCH($J1060,SorP!$B$1:$B$5661,0)),\"\",INDIRECT(\"'SorP'!$A$\"&MATCH($J1060,SorP!$B$1:$B$5661,0))))","v":""},null,{"$f":"IF(C1060=\"\",NA(),MATCH($B1060&$C1060,'Smelter Look-up'!$J:$J,0))","v":{"$error":"#N/A"}},null,0,null,null,null,""]
[null,{"$f":"IF(LEN(A1061)=0,\"\",INDEX('Smelter Look-up'!$A:$A,MATCH($A1061,'Smelter Look-up'!$E:$E,0)))","v":""},{"$f":"IF(LEN(A1061)=0,\"\",INDEX('Smelter Look-up'!$C:$C,MATCH($A1061,'Smelter Look-up'!$E:$E,0)))","v":""},null,{"$f":"IF(ISERROR($V1061),\"\",OFFSET('Smelter Look-up'!$D$4,$V1061-4,0)&\"\")","v":""},{"$f":"IF(ISERROR($V1061),\"\",OFFSET('Smelter Look-up'!$E$4,$V1061-4,0))","v":""},{"$f":"IF(C1061=$X$4,\"Enter smelter details\",IF(ISERROR($V1061),\"\",OFFSET('Smelter Look-up'!$F$4,$V1061-4,0)))","v":""},{"$f":"IF(ISERROR($V1061),\"\",OFFSET('Smelter Look-up'!$G$4,$V1061-4,0))","v":""},{"$f":"IF(ISERROR($V1061),\"\",OFFSET('Smelter Look-up'!$H$4,$V1061-4,0))","v":""},{"$f":"IF(ISERROR($V1061),\"\",OFFSET('Smelter Look-up'!$I$4,$V1061-4,0))","v":""},{"$nulls":7},{"$f":"IF(ISERROR($V1061),\"\",OFFSET('Smelter Look-up'!$C$4,$V1061-4,0)&\"\")","v":""},"",{"$f":"IF(B1061=\"\",\"\",IF(ISERROR(MATCH($J1061,SorP!$B$1:$B$5661,0)),\"\",INDIRECT(\"'SorP'!$A$\"&MATCH($J1061,SorP!$B$1:$B$5661,0))))","v":""},null,{"$f":"IF(C1061=\"\",NA(),MATCH($B1061&$C1061,'Smelter Look-up'!$J:$J,0))","v":{"$error":"#N/A"}},null,0,null,null,null,""]
[null,{"$f":"IF(LEN(A1062)=0,\"\",INDEX('Smelter Look-up'!$A:$A,MATCH($A1062,'Smelter Look-up'!$E:$E,0)))","v":""},{"$f":"IF(LEN(A1062)=0,\"\",INDEX('Smelter Look-up'!$C:$C,MATCH($A1062,'Smelter Look-up'!$E:$E,0)))","v":""},null,{"$f":"IF(ISERROR($V1062),\"\",OFFSET('Smelter Look-up'!$D$4,$V1062-4,0)&\"\")","v":""},{"$f":"IF(ISERROR($V1062),\"\",OFFSET('Smelter Look-up'!$E$4,$V1062-4,0))","v":""},{"$f":"IF(C1062=$X$4,\"Enter smelter details\",IF(ISERROR($V1062),\"\",OFFSET('Smelter Look-up'!$F$4,$V1062-4,0)))","v":""},{"$f":"IF(ISERROR($V1062),\"\",OFFSET('Smelter Look-up'!$G$4,$V1062-4,0))","v":""},{"$f":"IF(ISERROR($V1062),\"\",OFFSET('Smelter Look-up'!$H$4,$V1062-4,0))","v":""},{"$f":"IF(ISERROR($V1062),\"\",OFFSET('Smelter Look-up'!$I$4,$V1062-4,0))","v":""},{"$nulls":7},{"$f":"IF(ISERROR($V1062),\"\",OFFSET('Smelter Look-up'!$C$4,$V1062-4,0)&\"\")","v":""},"",{"$f":"IF(B1062=\"\",\"\",IF(ISERROR(MATCH($J1062,SorP!$B$1:$B$5661,0)),\"\",INDIRECT(\"'SorP'!$A$\"&MATCH($J1062,SorP!$B$1:$B$5661,0))))","v":""},null,{"$f":"IF(C1062=\"\",NA(),MATCH($B1062&$C1062,'Smelter Look-up'!$J:$J,0))","v":{"$error":"#N/A"}},null,0,null,null,null,""]
[null,{"$f":"IF(LEN(A1063)=0,\"\",INDEX('Smelter Look-up'!$A:$A,MATCH($A1063,'Smelter Look-up'!$E:$E,0)))","v":""},{"$f":"IF(LEN(A1063)=0,\"\",INDEX('Smelter Look-up'!$C:$C,MATCH($A1063,'Smelter Look-up'!$E:$E,0)))","v":""},null,{"$f":"IF(ISERROR($V1063),\"\",OFFSET('Smelter Look-up'!$D$4,$V1063-4,0)&\"\")","v":""},{"$f":"IF(ISERROR($V1063),\"\",OFFSET('Smelter Look-up'!$E$4,$V1063-4,0))","v":""},{"$f":"IF(C1063=$X$4,\"Enter smelter details\",IF(ISERROR($V1063),\"\",OFFSET('Smelter Look-up'!$F$4,$V1063-4,0)))","v":""},{"$f":"IF(ISERROR($V1063),\"\",OFFSET('Smelter Look-up'!$G$4,$V1063-4,0))","v":""},{"$f":"IF(ISERROR($V1063),\"\",OFFSET('Smelter Look-up'!$H$4,$V1063-4,0))","v":""},{"$f":"IF(ISERROR($V1063),\"\",OFFSET('Smelter Look-up'!$I$4,$V1063-4,0))","v":""},{"$nulls":7},{"$f":"IF(ISERROR($V1063),\"\",OFFSET('Smelter Look-up'!$C$4,$V1063-4,0)&\"\")","v":""},"",{"$f":"IF(B1063=\"\",\"\",IF(ISERROR(MATCH($J1063,SorP!$B$1:$B$5661,0)),\"\",INDIRECT(\"'SorP'!$A$\"&MATCH($J1063,SorP!$B$1:$B$5661,0))))","v":""},null,{"$f":"IF(C1063=\"\",NA(),MATCH($B1063&$C1063,'Smelter Look-up'!$J:$J,0))","v":{"$error":"#N/A"}},null,0,null,null,null,""]
[null,{"$f":"IF(LEN(A1064)=0,\"\",INDEX('Smelter Look-up'!$A:$A,MATCH($A1064,'Smelter Look-up'!$E:$E,0)))","v":""},{"$f":"IF(LEN(A1064)=0,\"\",INDEX('Smelter Look-up'!$C:$C,MATCH($A1064,'Smelter Look-up'!$E:$E,0)))","v":""},null,{"$f":"IF(ISERROR($V1064),\"\",OFFSET('Smelter Look-up'!$D$4,$V1064-4,0)&\"\")","v":""},{"$f":"IF(ISERROR($V1064),\"\",OFFSET('Smelter Look-up'!$E$4,$V1064-4,0))","v":""},{"$f":"IF(C1064=$X$4,\"Enter smelter details\",IF(ISERROR($V1064),\"\",OFFSET('Smelter Look-up'!$F$4,$V1064-4,0)))","v":""},{"$f":"IF(ISERROR($V1064),\"\",OFFSET('Smelter Look-up'!$G$4,$V1064-4,0))","v":""},{"$f":"IF(ISERROR($V1064),\"\",OFFSET('Smelter Look-up'!$H$4,$V1064-4,0))","v":""},{"$f":"IF(ISERROR($V1064),\"\",OFFSET('Smelter Look-up'!$I$4,$V1064-4,0))","v":""},{"$nulls":7},{"$f":"IF(ISERROR($V1064),\"\",OFFSET('Smelter Look-up'!$C$4,$V1064-4,0)&\"\")","v":""},"",{"$f":"IF(B1064=\"\",\"\",IF(ISERROR(MATCH($J1064,SorP!$B$1:$B$5661,0)),\"\",INDIRECT(\"'SorP'!$A$\"&MATCH($J1064,SorP!$B$1:$B$5661,0))))","v":""},null,{"$f":"IF(C1064=\"\",NA(),MATCH($B1064&$C1064,'Smelter Look-up'!$J:$J,0))","v":{"$error":"#N/A"}},null,0,null,null,null,""]
[null,{"$f":"IF(LEN(A1065)=0,\"\",INDEX('Smelter Look-up'!$A:$A,MATCH($A1065,'Smelter Look-up'!$E:$E,0)))","v":""},{"$f":"IF(LEN(A1065)=0,\"\",INDEX('Smelter Look-up'!$C:$C,MATCH($A1065,'Smelter Look-up'!$E:$E,0)))","v":""},null,{"$f":"IF(ISERROR($V1065),\"\",OFFSET('Smelter Look-up'!$D$4,$V1065-4,0)&\"\")","v":""},{"$f":"IF(ISERROR($V1065),\"\",OFFSET('Smelter Look-up'!$E$4,$V1065-4,0))","v":""},{"$f":"IF(C1065=$X$4,\"Enter smelter details\",IF(ISERROR($V1065),\"\",OFFSET('Smelter Look-up'!$F$4,$V1065-4,0)))","v":""},{"$f":"IF(ISERROR($V1065),\"\",OFFSET('Smelter Look-up'!$G$4,$V1065-4,0))","v":""},{"$f":"IF(ISERROR($V1065),\"\",OFFSET('Smelter Look-up'!$H$4,$V1065-4,0))","v":""},{"$f":"IF(ISERROR($V1065),\"\",OFFSET('Smelter Look-up'!$I$4,$V1065-4,0))","v":""},{"$nulls":7},{"$f":"IF(ISERROR($V1065),\"\",OFFSET('Smelter Look-up'!$C$4,$V1065-4,0)&\"\")","v":""},"",{"$f":"IF(B1065=\"\",\"\",IF(ISERROR(MATCH($J1065,SorP!$B$1:$B$5661,0)),\"\",INDIRECT(\"'SorP'!$A$\"&MATCH($J1065,SorP!$B$1:$B$5661,0))))","v":""},null,{"$f":"IF(C1065=\"\",NA(),MATCH($B1065&$C1065,'Smelter Look-up'!$J:$J,0))","v":{"$error":"#N/A"}},null,0,null,null,null,""]
[null,{"$f":"IF(LEN(A1066)=0,\"\",INDEX('Smelter Look-up'!$A:$A,MATCH($A1066,'Smelter Look-up'!$E:$E,0)))","v":""},{"$f":"IF(LEN(A1066)=0,\"\",INDEX('Smelter Look-up'!$C:$C,MATCH($A1066,'Smelter Look-up'!$E:$E,0)))","v":""},null,{"$f":"IF(ISERROR($V1066),\"\",OFFSET('Smelter Look-up'!$D$4,$V1066-4,0)&\"\")","v":""},{"$f":"IF(ISERROR($V1066),\"\",OFFSET('Smelter Look-up'!$E$4,$V1066-4,0))","v":""},{"$f":"IF(C1066=$X$4,\"Enter smelter details\",IF(ISERROR($V1066),\"\",OFFSET('Smelter Look-up'!$F$4,$V1066-4,0)))","v":""},{"$f":"IF(ISERROR($V1066),\"\",OFFSET('Smelter Look-up'!$G$4,$V1066-4,0))","v":""},{"$f":"IF(ISERROR($V1066),\"\",OFFSET('Smelter Look-up'!$H$4,$V1066-4,0))","v":""},{"$f":"IF(ISERROR($V1066),\"\",OFFSET('Smelter Look-up'!$I$4,$V1066-4,0))","v":""},{"$nulls":7},{"$f":"IF(ISERROR($V1066),\"\",OFFSET('Smelter Look-up'!$C$4,$V1066-4,0)&\"\")","v":""},"",{"$f":"IF(B1066=\"\",\"\",IF(ISERROR(MATCH($J1066,SorP!$B$1:$B$5661,0)),\"\",INDIRECT(\"'SorP'!$A$\"&MATCH($J1066,SorP!$B$1:$B$5661,0))))","v":""},null,{"$f":"IF(C1066=\"\",NA(),MATCH($B1066&$C1066,'Smelter Look-up'!$J:$J,0))","v":{"$error":"#N/A"}},null,0,null,null,null,""]
[null,{"$f":"IF(LEN(A1067)=0,\"\",INDEX('Smelter Look-up'!$A:$A,MATCH($A1067,'Smelter Look-up'!$E:$E,0)))","v":""},{"$f":"IF(LEN(A1067)=0,\"\",INDEX('Smelter Look-up'!$C:$C,MATCH($A1067,'Smelter Look-up'!$E:$E,0)))","v":""},null,{"$f":"IF(ISERROR($V1067),\"\",OFFSET('Smelter Look-up'!$D$4,$V1067-4,0)&\"\")","v":""},{"$f":"IF(ISERROR($V1067),\"\",OFFSET('Smelter Look-up'!$E$4,$V1067-4,0))","v":""},{"$f":"IF(C1067=$X$4,\"Enter smelter details\",IF(ISERROR($V1067),\"\",OFFSET('Smelter Look-up'!$F$4,$V1067-4,0)))","v":""},{"$f":"IF(ISERROR($V1067),\"\",OFFSET('Smelter Look-up'!$G$4,$V1067-4,0))","v":""},{"$f":"IF(ISERROR($V1067),\"\",OFFSET('Smelter Look-up'!$H$4,$V1067-4,0))","v":""},{"$f":"IF(ISERROR($V1067),\"\",OFFSET('Smelter Look-up'!$I$4,$V1067-4,0))","v":""},{"$nulls":7},{"$f":"IF(ISERROR($V1067),\"\",OFFSET('Smelter Look-up'!$C$4,$V1067-4,0)&\"\")","v":""},"",{"$f":"IF(B1067=\"\",\"\",IF(ISERROR(MATCH($J1067,SorP!$B$1:$B$5661,0)),\"\",INDIRECT(\"'SorP'!$A$\"&MATCH($J1067,SorP!$B$1:$B$5661,0))))","v":""},null,{"$f":"IF(C1067=\"\",NA(),MATCH($B1067&$C1067,'Smelter Look-up'!$J:$J,0))","v":{"$error":"#N/A"}},null,0,null,null,null,""]
[null,{"$f":"IF(LEN(A1068)=0,\"\",INDEX('Smelter Look-up'!$A:$A,MATCH($A1068,'Smelter Look-up'!$E:$E,0)))","v":""},{"$f":"IF(LEN(A1068)=0,\"\",INDEX('Smelter Look-up'!$C:$C,MATCH($A1068,'Smelter Look-up'!$E:$E,0)))","v":""},null,{"$f":"IF(ISERROR($V1068),\"\",OFFSET('Smelter Look-up'!$D$4,$V1068-4,0)&\"\")","v":""},{"$f":"IF(ISERROR($V1068),\"\",OFFSET('Smelter Look-up'!$E$4,$V1068-4,0))","v":""},{"$f":"IF(C1068=$X$4,\"Enter smelter details\",IF(ISERROR($V1068),\"\",OFFSET('Smelter Look-up'!$F$4,$V1068-4,0)))","v":""},{"$f":"IF(ISERROR($V1068),\"\",OFFSET('Smelter Look-up'!$G$4,$V1068-4,0))","v":""},{"$f":"IF(ISERROR($V1068),\"\",OFFSET('Smelter Look-up'!$H$4,$V1068-4,0))","v":""},{"$f":"IF(ISERROR($V1068),\"\",OFFSET('Smelter Look-up'!$I$4,$V1068-4,0))","v":""},{"$nulls":7},{"$f":"IF(ISERROR($V1068),\"\",OFFSET('Smelter Look-up'!$C$4,$V1068-4,0)&\"\")","v":""},"",{"$f":"IF(B1068=\"\",\"\",IF(ISERROR(MATCH($J1068,SorP!$B$1:$B$5661,0)),\"\",INDIRECT(\"'SorP'!$A$\"&MATCH($J1068,SorP!$B$1:$B$5661,0))))","v":""},null,{"$f":"IF(C1068=\"\",NA(),MATCH($B1068&$C1068,'Smelter Look-up'!$J:$J,0))","v":{"$error":"#N/A"}},null,0,null,null,null,""]
[null,{"$f":"IF(LEN(A1069)=0,\"\",INDEX('Smelter Look-up'!$A:$A,MATCH($A1069,'Smelter Look-up'!$E:$E,0)))","v":""},{"$f":"IF(LEN(A1069)=0,\"\",INDEX('Smelter Look-up'!$C:$C,MATCH($A1069,'Smelter Look-up'!$E:$E,0)))","v":""},null,{"$f":"IF(ISERROR($V1069),\"\",OFFSET('Smelter Look-up'!$D$4,$V1069-4,0)&\"\")","v":""},{"$f":"IF(ISERROR($V1069),\"\",OFFSET('Smelter Look-up'!$E$4,$V1069-4,0))","v":""},{"$f":"IF(C1069=$X$4,\"Enter smelter details\",IF(ISERROR($V1069),\"\",OFFSET('Smelter Look-up'!$F$4,$V1069-4,0)))","v":""},{"$f":"IF(ISERROR($V1069),\"\",OFFSET('Smelter Look-up'!$G$4,$V1069-4,0))","v":""},{"$f":"IF(ISERROR($V1069),\"\",OFFSET('Smelter Look-up'!$H$4,$V1069-4,0))","v":""},{"$f":"IF(ISERROR($V1069),\"\",OFFSET('Smelter Look-up'!$I$4,$V1069-4,0))","v":""},{"$nulls":7},{"$f":"IF(ISERROR($V1069),\"\",OFFSET('Smelter Look-up'!$C$4,$V1069-4,0)&\"\")","v":""},"",{"$f":"IF(B1069=\"\",\"\",IF(ISERROR(MATCH($J1069,SorP!$B$1:$B$5661,0)),\"\",INDIRECT(\"'SorP'!$A$\"&MATCH($J1069,SorP!$B$1:$B$5661,0))))","v":""},null,{"$f":"IF(C1069=\"\",NA(),MATCH($B1069&$C1069,'Smelter Look-up'!$J:$J,0))","v":{"$error":"#N/A"}},null,0,null,null,null,""]
[null,{"$f":"IF(LEN(A1070)=0,\"\",INDEX('Smelter Look-up'!$A:$A,MATCH($A1070,'Smelter Look-up'!$E:$E,0)))","v":""},{"$f":"IF(LEN(A1070)=0,\"\",INDEX('Smelter Look-up'!$C:$C,MATCH($A1070,'Smelter Look-up'!$E:$E,0)))","v":""},null,{"$f":"IF(ISERROR($V1070),\"\",OFFSET('Smelter Look-up'!$D$4,$V1070-4,0)&\"\")","v":""},{"$f":"IF(ISERROR($V1070),\"\",OFFSET('Smelter Look-up'!$E$4,$V1070-4,0))","v":""},{"$f":"IF(C1070=$X$4,\"Enter smelter details\",IF(ISERROR($V1070),\"\",OFFSET('Smelter Look-up'!$F$4,$V1070-4,0)))","v":""},{"$f":"IF(ISERROR($V1070),\"\",OFFSET('Smelter Look-up'!$G$4,$V1070-4,0))","v":""},{"$f":"IF(ISERROR($V1070),\"\",OFFSET('Smelter Look-up'!$H$4,$V1070-4,0))","v":""},{"$f":"IF(ISERROR($V1070),\"\",OFFSET('Smelter Look-up'!$I$4,$V1070-4,0))","v":""},{"$nulls":7},{"$f":"IF(ISERROR($V1070),\"\",OFFSET('Smelter Look-up'!$C$4,$V1070-4,0)&\"\")","v":""},"",{"$f":"IF(B1070=\"\",\"\",IF(ISERROR(MATCH($J1070,SorP!$B$1:$B$5661,0)),\"\",INDIRECT(\"'SorP'!$A$\"&MATCH($J1070,SorP!$B$1:$B$5661,0))))","v":""},null,{"$f":"IF(C1070=\"\",NA(),MATCH($B1070&$C1070,'Smelter Look-up'!$J:$J,0))","v":{"$error":"#N/A"}},null,0,null,null,null,""]
[null,{"$f":"IF(LEN(A1071)=0,\"\",INDEX('Smelter Look-up'!$A:$A,MATCH($A1071,'Smelter Look-up'!$E:$E,0)))","v":""},{"$f":"IF(LEN(A1071)=0,\"\",INDEX('Smelter Look-up'!$C:$C,MATCH($A1071,'Smelter Look-up'!$E:$E,0)))","v":""},null,{"$f":"IF(ISERROR($V1071),\"\",OFFSET('Smelter Look-up'!$D$4,$V1071-4,0)&\"\")","v":""},{"$f":"IF(ISERROR($V1071),\"\",OFFSET('Smelter Look-up'!$E$4,$V1071-4,0))","v":""},{"$f":"IF(C1071=$X$4,\"Enter smelter details\",IF(ISERROR($V1071),\"\",OFFSET('Smelter Look-up'!$F$4,$V1071-4,0)))","v":""},{"$f":"IF(ISERROR($V1071),\"\",OFFSET('Smelter Look-up'!$G$4,$V1071-4,0))","v":""},{"$f":"IF(ISERROR($V1071),\"\",OFFSET('Smelter Look-up'!$H$4,$V1071-4,0))","v":""},{"$f":"IF(ISERROR($V1071),\"\",OFFSET('Smelter Look-up'!$I$4,$V1071-4,0))","v":""},{"$nulls":7},{"$f":"IF(ISERROR($V1071),\"\",OFFSET('Smelter Look-up'!$C$4,$V1071-4,0)&\"\")","v":""},"",{"$f":"IF(B1071=\"\",\"\",IF(ISERROR(MATCH($J1071,SorP!$B$1:$B$5661,0)),\"\",INDIRECT(\"'SorP'!$A$\"&MATCH($J1071,SorP!$B$1:$B$5661,0))))","v":""},null,{"$f":"IF(C1071=\"\",NA(),MATCH($B1071&$C1071,'Smelter Look-up'!$J:$J,0))","v":{"$error":"#N/A"}},null,0,null,null,null,""]
[null,{"$f":"IF(LEN(A1072)=0,\"\",INDEX('Smelter Look-up'!$A:$A,MATCH($A1072,'Smelter Look-up'!$E:$E,0)))","v":""},{"$f":"IF(LEN(A1072)=0,\"\",INDEX('Smelter Look-up'!$C:$C,MATCH($A1072,'Smelter Look-up'!$E:$E,0)))","v":""},null,{"$f":"IF(ISERROR($V1072),\"\",OFFSET('Smelter Look-up'!$D$4,$V1072-4,0)&\"\")","v":""},{"$f":"IF(ISERROR($V1072),\"\",OFFSET('Smelter Look-up'!$E$4,$V1072-4,0))","v":""},{"$f":"IF(C1072=$X$4,\"Enter smelter details\",IF(ISERROR($V1072),\"\",OFFSET('Smelter Look-up'!$F$4,$V1072-4,0)))","v":""},{"$f":"IF(ISERROR($V1072),\"\",OFFSET('Smelter Look-up'!$G$4,$V1072-4,0))","v":""},{"$f":"IF(ISERROR($V1072),\"\",OFFSET('Smelter Look-up'!$H$4,$V1072-4,0))","v":""},{"$f":"IF(ISERROR($V1072),\"\",OFFSET('Smelter Look-up'!$I$4,$V1072-4,0))","v":""},{"$nulls":7},{"$f":"IF(ISERROR($V1072),\"\",OFFSET('Smelter Look-up'!$C$4,$V1072-4,0)&\"\")","v":""},"",{"$f":"IF(B1072=\"\",\"\",IF(ISERROR(MATCH($J1072,SorP!$B$1:$B$5661,0)),\"\",INDIRECT(\"'SorP'!$A$\"&MATCH($J1072,SorP!$B$1:$B$5661,0))))","v":""},null,{"$f":"IF(C1072=\"\",NA(),MATCH($B1072&$C1072,'Smelter Look-up'!$J:$J,0))","v":{"$error":"#N/A"}},null,0,null,null,null,""]
[null,{"$f":"IF(LEN(A1073)=0,\"\",INDEX('Smelter Look-up'!$A:$A,MATCH($A1073,'Smelter Look-up'!$E:$E,0)))","v":""},{"$f":"IF(LEN(A1073)=0,\"\",INDEX('Smelter Look-up'!$C:$C,MATCH($A1073,'Smelter Look-up'!$E:$E,0)))","v":""},null,{"$f":"IF(ISERROR($V1073),\"\",OFFSET('Smelter Look-up'!$D$4,$V1073-4,0)&\"\")","v":""},{"$f":"IF(ISERROR($V1073),\"\",OFFSET('Smelter Look-up'!$E$4,$V1073-4,0))","v":""},{"$f":"IF(C1073=$X$4,\"Enter smelter details\",IF(ISERROR($V1073),\"\",OFFSET('Smelter Look-up'!$F$4,$V1073-4,0)))","v":""},{"$f":"IF(ISERROR($V1073),\"\",OFFSET('Smelter Look-up'!$G$4,$V1073-4,0))","v":""},{"$f":"IF(ISERROR($V1073),\"\",OFFSET('Smelter Look-up'!$H$4,$V1073-4,0))","v":""},{"$f":"IF(ISERROR($V1073),\"\",OFFSET('Smelter Look-up'!$I$4,$V1073-4,0))","v":""},{"$nulls":7},{"$f":"IF(ISERROR($V1073),\"\",OFFSET('Smelter Look-up'!$C$4,$V1073-4,0)&\"\")","v":""},"",{"$f":"IF(B1073=\"\",\"\",IF(ISERROR(MATCH($J1073,SorP!$B$1:$B$5661,0)),\"\",INDIRECT(\"'SorP'!$A$\"&MATCH($J1073,SorP!$B$1:$B$5661,0))))","v":""},null,{"$f":"IF(C1073=\"\",NA(),MATCH($B1073&$C1073,'Smelter Look-up'!$J:$J,0))","v":{"$error":"#N/A"}},null,0,null,null,null,""]
[null,{"$f":"IF(LEN(A1074)=0,\"\",INDEX('Smelter Look-up'!$A:$A,MATCH($A1074,'Smelter Look-up'!$E:$E,0)))","v":""},{"$f":"IF(LEN(A1074)=0,\"\",INDEX('Smelter Look-up'!$C:$C,MATCH($A1074,'Smelter Look-up'!$E:$E,0)))","v":""},null,{"$f":"IF(ISERROR($V1074),\"\",OFFSET('Smelter Look-up'!$D$4,$V1074-4,0)&\"\")","v":""},{"$f":"IF(ISERROR($V1074),\"\",OFFSET('Smelter Look-up'!$E$4,$V1074-4,0))","v":""},{"$f":"IF(C1074=$X$4,\"Enter smelter details\",IF(ISERROR($V1074),\"\",OFFSET('Smelter Look-up'!$F$4,$V1074-4,0)))","v":""},{"$f":"IF(ISERROR($V1074),\"\",OFFSET('Smelter Look-up'!$G$4,$V1074-4,0))","v":""},{"$f":"IF(ISERROR($V1074),\"\",OFFSET('Smelter Look-up'!$H$4,$V1074-4,0))","v":""},{"$f":"IF(ISERROR($V1074),\"\",OFFSET('Smelter Look-up'!$I$4,$V1074-4,0))","v":""},{"$nulls":7},{"$f":"IF(ISERROR($V1074),\"\",OFFSET('Smelter Look-up'!$C$4,$V1074-4,0)&\"\")","v":""},"",{"$f":"IF(B1074=\"\",\"\",IF(ISERROR(MATCH($J1074,SorP!$B$1:$B$5661,0)),\"\",INDIRECT(\"'SorP'!$A$\"&MATCH($J1074,SorP!$B$1:$B$5661,0))))","v":""},null,{"$f":"IF(C1074=\"\",NA(),MATCH($B1074&$C1074,'Smelter Look-up'!$J:$J,0))","v":{"$error":"#N/A"}},null,0,null,null,null,""]
[null,{"$f":"IF(LEN(A1075)=0,\"\",INDEX('Smelter Look-up'!$A:$A,MATCH($A1075,'Smelter Look-up'!$E:$E,0)))","v":""},{"$f":"IF(LEN(A1075)=0,\"\",INDEX('Smelter Look-up'!$C:$C,MATCH($A1075,'Smelter Look-up'!$E:$E,0)))","v":""},null,{"$f":"IF(ISERROR($V1075),\"\",OFFSET('Smelter Look-up'!$D$4,$V1075-4,0)&\"\")","v":""},{"$f":"IF(ISERROR($V1075),\"\",OFFSET('Smelter Look-up'!$E$4,$V1075-4,0))","v":""},{"$f":"IF(C1075=$X$4,\"Enter smelter details\",IF(ISERROR($V1075),\"\",OFFSET('Smelter Look-up'!$F$4,$V1075-4,0)))","v":""},{"$f":"IF(ISERROR($V1075),\"\",OFFSET('Smelter Look-up'!$G$4,$V1075-4,0))","v":""},{"$f":"IF(ISERROR($V1075),\"\",OFFSET('Smelter Look-up'!$H$4,$V1075-4,0))","v":""},{"$f":"IF(ISERROR($V1075),\"\",OFFSET('Smelter Look-up'!$I$4,$V1075-4,0))","v":""},{"$nulls":7},{"$f":"IF(ISERROR($V1075),\"\",OFFSET('Smelter Look-up'!$C$4,$V1075-4,0)&\"\")","v":""},"",{"$f":"IF(B1075=\"\",\"\",IF(ISERROR(MATCH($J1075,SorP!$B$1:$B$5661,0)),\"\",INDIRECT(\"'SorP'!$A$\"&MATCH($J1075,SorP!$B$1:$B$5661,0))))","v":""},null,{"$f":"IF(C1075=\"\",NA(),MATCH($B1075&$C1075,'Smelter Look-up'!$J:$J,0))","v":{"$error":"#N/A"}},null,0,null,null,null,""]
[null,{"$f":"IF(LEN(A1076)=0,\"\",INDEX('Smelter Look-up'!$A:$A,MATCH($A1076,'Smelter Look-up'!$E:$E,0)))","v":""},{"$f":"IF(LEN(A1076)=0,\"\",INDEX('Smelter Look-up'!$C:$C,MATCH($A1076,'Smelter Look-up'!$E:$E,0)))","v":""},null,{"$f":"IF(ISERROR($V1076),\"\",OFFSET('Smelter Look-up'!$D$4,$V1076-4,0)&\"\")","v":""},{"$f":"IF(ISERROR($V1076),\"\",OFFSET('Smelter Look-up'!$E$4,$V1076-4,0))","v":""},{"$f":"IF(C1076=$X$4,\"Enter smelter details\",IF(ISERROR($V1076),\"\",OFFSET('Smelter Look-up'!$F$4,$V1076-4,0)))","v":""},{"$f":"IF(ISERROR($V1076),\"\",OFFSET('Smelter Look-up'!$G$4,$V1076-4,0))","v":""},{"$f":"IF(ISERROR($V1076),\"\",OFFSET('Smelter Look-up'!$H$4,$V1076-4,0))","v":""},{"$f":"IF(ISERROR($V1076),\"\",OFFSET('Smelter Look-up'!$I$4,$V1076-4,0))","v":""},{"$nulls":7},{"$f":"IF(ISERROR($V1076),\"\",OFFSET('Smelter Look-up'!$C$4,$V1076-4,0)&\"\")","v":""},"",{"$f":"IF(B1076=\"\",\"\",IF(ISERROR(MATCH($J1076,SorP!$B$1:$B$5661,0)),\"\",INDIRECT(\"'SorP'!$A$\"&MATCH($J1076,SorP!$B$1:$B$5661,0))))","v":""},null,{"$f":"IF(C1076=\"\",NA(),MATCH($B1076&$C1076,'Smelter Look-up'!$J:$J,0))","v":{"$error":"#N/A"}},null,0,null,null,null,""]
[null,{"$f":"IF(LEN(A1077)=0,\"\",INDEX('Smelter Look-up'!$A:$A,MATCH($A1077,'Smelter Look-up'!$E:$E,0)))","v":""},{"$f":"IF(LEN(A1077)=0,\"\",INDEX('Smelter Look-up'!$C:$C,MATCH($A1077,'Smelter Look-up'!$E:$E,0)))","v":""},null,{"$f":"IF(ISERROR($V1077),\"\",OFFSET('Smelter Look-up'!$D$4,$V1077-4,0)&\"\")","v":""},{"$f":"IF(ISERROR($V1077),\"\",OFFSET('Smelter Look-up'!$E$4,$V1077-4,0))","v":""},{"$f":"IF(C1077=$X$4,\"Enter smelter details\",IF(ISERROR($V1077),\"\",OFFSET('Smelter Look-up'!$F$4,$V1077-4,0)))","v":""},{"$f":"IF(ISERROR($V1077),\"\",OFFSET('Smelter Look-up'!$G$4,$V1077-4,0))","v":""},{"$f":"IF(ISERROR($V1077),\"\",OFFSET('Smelter Look-up'!$H$4,$V1077-4,0))","v":""},{"$f":"IF(ISERROR($V1077),\"\",OFFSET('Smelter Look-up'!$I$4,$V1077-4,0))","v":""},{"$nulls":7},{"$f":"IF(ISERROR($V1077),\"\",OFFSET('Smelter Look-up'!$C$4,$V1077-4,0)&\"\")","v":""},"",{"$f":"IF(B1077=\"\",\"\",IF(ISERROR(MATCH($J1077,SorP!$B$1:$B$5661,0)),\"\",INDIRECT(\"'SorP'!$A$\"&MATCH($J1077,SorP!$B$1:$B$5661,0))))","v":""},null,{"$f":"IF(C1077=\"\",NA(),MATCH($B1077&$C1077,'Smelter Look-up'!$J:$J,0))","v":{"$error":"#N/A"}},null,0,null,null,null,""]
[null,{"$f":"IF(LEN(A1078)=0,\"\",INDEX('Smelter Look-up'!$A:$A,MATCH($A1078,'Smelter Look-up'!$E:$E,0)))","v":""},{"$f":"IF(LEN(A1078)=0,\"\",INDEX('Smelter Look-up'!$C:$C,MATCH($A1078,'Smelter Look-up'!$E:$E,0)))","v":""},null,{"$f":"IF(ISERROR($V1078),\"\",OFFSET('Smelter Look-up'!$D$4,$V1078-4,0)&\"\")","v":""},{"$f":"IF(ISERROR($V1078),\"\",OFFSET('Smelter Look-up'!$E$4,$V1078-4,0))","v":""},{"$f":"IF(C1078=$X$4,\"Enter smelter details\",IF(ISERROR($V1078),\"\",OFFSET('Smelter Look-up'!$F$4,$V1078-4,0)))","v":""},{"$f":"IF(ISERROR($V1078),\"\",OFFSET('Smelter Look-up'!$G$4,$V1078-4,0))","v":""},{"$f":"IF(ISERROR($V1078),\"\",OFFSET('Smelter Look-up'!$H$4,$V1078-4,0))","v":""},{"$f":"IF(ISERROR($V1078),\"\",OFFSET('Smelter Look-up'!$I$4,$V1078-4,0))","v":""},{"$nulls":7},{"$f":"IF(ISERROR($V1078),\"\",OFFSET('Smelter Look-up'!$C$4,$V1078-4,0)&\"\")","v":""},"",{"$f":"IF(B1078=\"\",\"\",IF(ISERROR(MATCH($J1078,SorP!$B$1:$B$5661,0)),\"\",INDIRECT(\"'SorP'!$A$\"&MATCH($J1078,SorP!$B$1:$B$5661,0))))","v":""},null,{"$f":"IF(C1078=\"\",NA(),MATCH($B1078&$C1078,'Smelter Look-up'!$J:$J,0))","v":{"$error":"#N/A"}},null,0,null,null,null,""]
[null,{"$f":"IF(LEN(A1079)=0,\"\",INDEX('Smelter Look-up'!$A:$A,MATCH($A1079,'Smelter Look-up'!$E:$E,0)))","v":""},{"$f":"IF(LEN(A1079)=0,\"\",INDEX('Smelter Look-up'!$C:$C,MATCH($A1079,'Smelter Look-up'!$E:$E,0)))","v":""},null,{"$f":"IF(ISERROR($V1079),\"\",OFFSET('Smelter Look-up'!$D$4,$V1079-4,0)&\"\")","v":""},{"$f":"IF(ISERROR($V1079),\"\",OFFSET('Smelter Look-up'!$E$4,$V1079-4,0))","v":""},{"$f":"IF(C1079=$X$4,\"Enter smelter details\",IF(ISERROR($V1079),\"\",OFFSET('Smelter Look-up'!$F$4,$V1079-4,0)))","v":""},{"$f":"IF(ISERROR($V1079),\"\",OFFSET('Smelter Look-up'!$G$4,$V1079-4,0))","v":""},{"$f":"IF(ISERROR($V1079),\"\",OFFSET('Smelter Look-up'!$H$4,$V1079-4,0))","v":""},{"$f":"IF(ISERROR($V1079),\"\",OFFSET('Smelter Look-up'!$I$4,$V1079-4,0))","v":""},{"$nulls":7},{"$f":"IF(ISERROR($V1079),\"\",OFFSET('Smelter Look-up'!$C$4,$V1079-4,0)&\"\")","v":""},"",{"$f":"IF(B1079=\"\",\"\",IF(ISERROR(MATCH($J1079,SorP!$B$1:$B$5661,0)),\"\",INDIRECT(\"'SorP'!$A$\"&MATCH($J1079,SorP!$B$1:$B$5661,0))))","v":""},null,{"$f":"IF(C1079=\"\",NA(),MATCH($B1079&$C1079,'Smelter Look-up'!$J:$J,0))","v":{"$error":"#N/A"}},null,0,null,null,null,""]
[null,{"$f":"IF(LEN(A1080)=0,\"\",INDEX('Smelter Look-up'!$A:$A,MATCH($A1080,'Smelter Look-up'!$E:$E,0)))","v":""},{"$f":"IF(LEN(A1080)=0,\"\",INDEX('Smelter Look-up'!$C:$C,MATCH($A1080,'Smelter Look-up'!$E:$E,0)))","v":""},null,{"$f":"IF(ISERROR($V1080),\"\",OFFSET('Smelter Look-up'!$D$4,$V1080-4,0)&\"\")","v":""},{"$f":"IF(ISERROR($V1080),\"\",OFFSET('Smelter Look-up'!$E$4,$V1080-4,0))","v":""},{"$f":"IF(C1080=$X$4,\"Enter smelter details\",IF(ISERROR($V1080),\"\",OFFSET('Smelter Look-up'!$F$4,$V1080-4,0)))","v":""},{"$f":"IF(ISERROR($V1080),\"\",OFFSET('Smelter Look-up'!$G$4,$V1080-4,0))","v":""},{"$f":"IF(ISERROR($V1080),\"\",OFFSET('Smelter Look-up'!$H$4,$V1080-4,0))","v":""},{"$f":"IF(ISERROR($V1080),\"\",OFFSET('Smelter Look-up'!$I$4,$V1080-4,0))","v":""},{"$nulls":7},{"$f":"IF(ISERROR($V1080),\"\",OFFSET('Smelter Look-up'!$C$4,$V1080-4,0)&\"\")","v":""},"",{"$f":"IF(B1080=\"\",\"\",IF(ISERROR(MATCH($J1080,SorP!$B$1:$B$5661,0)),\"\",INDIRECT(\"'SorP'!$A$\"&MATCH($J1080,SorP!$B$1:$B$5661,0))))","v":""},null,{"$f":"IF(C1080=\"\",NA(),MATCH($B1080&$C1080,'Smelter Look-up'!$J:$J,0))","v":{"$error":"#N/A"}},null,0,null,null,null,""]
[null,{"$f":"IF(LEN(A1081)=0,\"\",INDEX('Smelter Look-up'!$A:$A,MATCH($A1081,'Smelter Look-up'!$E:$E,0)))","v":""},{"$f":"IF(LEN(A1081)=0,\"\",INDEX('Smelter Look-up'!$C:$C,MATCH($A1081,'Smelter Look-up'!$E:$E,0)))","v":""},null,{"$f":"IF(ISERROR($V1081),\"\",OFFSET('Smelter Look-up'!$D$4,$V1081-4,0)&\"\")","v":""},{"$f":"IF(ISERROR($V1081),\"\",OFFSET('Smelter Look-up'!$E$4,$V1081-4,0))","v":""},{"$f":"IF(C1081=$X$4,\"Enter smelter details\",IF(ISERROR($V1081),\"\",OFFSET('Smelter Look-up'!$F$4,$V1081-4,0)))","v":""},{"$f":"IF(ISERROR($V1081),\"\",OFFSET('Smelter Look-up'!$G$4,$V1081-4,0))","v":""},{"$f":"IF(ISERROR($V1081),\"\",OFFSET('Smelter Look-up'!$H$4,$V1081-4,0))","v":""},{"$f":"IF(ISERROR($V1081),\"\",OFFSET('Smelter Look-up'!$I$4,$V1081-4,0))","v":""},{"$nulls":7},{"$f":"IF(ISERROR($V1081),\"\",OFFSET('Smelter Look-up'!$C$4,$V1081-4,0)&\"\")","v":""},"",{"$f":"IF(B1081=\"\",\"\",IF(ISERROR(MATCH($J1081,SorP!$B$1:$B$5661,0)),\"\",INDIRECT(\"'SorP'!$A$\"&MATCH($J1081,SorP!$B$1:$B$5661,0))))","v":""},null,{"$f":"IF(C1081=\"\",NA(),MATCH($B1081&$C1081,'Smelter Look-up'!$J:$J,0))","v":{"$error":"#N/A"}},null,0,null,null,null,""]
[null,{"$f":"IF(LEN(A1082)=0,\"\",INDEX('Smelter Look-up'!$A:$A,MATCH($A1082,'Smelter Look-up'!$E:$E,0)))","v":""},{"$f":"IF(LEN(A1082)=0,\"\",INDEX('Smelter Look-up'!$C:$C,MATCH($A1082,'Smelter Look-up'!$E:$E,0)))","v":""},null,{"$f":"IF(ISERROR($V1082),\"\",OFFSET('Smelter Look-up'!$D$4,$V1082-4,0)&\"\")","v":""},{"$f":"IF(ISERROR($V1082),\"\",OFFSET('Smelter Look-up'!$E$4,$V1082-4,0))","v":""},{"$f":"IF(C1082=$X$4,\"Enter smelter details\",IF(ISERROR($V1082),\"\",OFFSET('Smelter Look-up'!$F$4,$V1082-4,0)))","v":""},{"$f":"IF(ISERROR($V1082),\"\",OFFSET('Smelter Look-up'!$G$4,$V1082-4,0))","v":""},{"$f":"IF(ISERROR($V1082),\"\",OFFSET('Smelter Look-up'!$H$4,$V1082-4,0))","v":""},{"$f":"IF(ISERROR($V1082),\"\",OFFSET('Smelter Look-up'!$I$4,$V1082-4,0))","v":""},{"$nulls":7},{"$f":"IF(ISERROR($V1082),\"\",OFFSET('Smelter Look-up'!$C$4,$V1082-4,0)&\"\")","v":""},"",{"$f":"IF(B1082=\"\",\"\",IF(ISERROR(MATCH($J1082,SorP!$B$1:$B$5661,0)),\"\",INDIRECT(\"'SorP'!$A$\"&MATCH($J1082,SorP!$B$1:$B$5661,0))))","v":""},null,{"$f":"IF(C1082=\"\",NA(),MATCH($B1082&$C1082,'Smelter Look-up'!$J:$J,0))","v":{"$error":"#N/A"}},null,0,null,null,null,""]
[null,{"$f":"IF(LEN(A1083)=0,\"\",INDEX('Smelter Look-up'!$A:$A,MATCH($A1083,'Smelter Look-up'!$E:$E,0)))","v":""},{"$f":"IF(LEN(A1083)=0,\"\",INDEX('Smelter Look-up'!$C:$C,MATCH($A1083,'Smelter Look-up'!$E:$E,0)))","v":""},null,{"$f":"IF(ISERROR($V1083),\"\",OFFSET('Smelter Look-up'!$D$4,$V1083-4,0)&\"\")","v":""},{"$f":"IF(ISERROR($V1083),\"\",OFFSET('Smelter Look-up'!$E$4,$V1083-4,0))","v":""},{"$f":"IF(C1083=$X$4,\"Enter smelter details\",IF(ISERROR($V1083),\"\",OFFSET('Smelter Look-up'!$F$4,$V1083-4,0)))","v":""},{"$f":"IF(ISERROR($V1083),\"\",OFFSET('Smelter Look-up'!$G$4,$V1083-4,0))","v":""},{"$f":"IF(ISERROR($V1083),\"\",OFFSET('Smelter Look-up'!$H$4,$V1083-4,0))","v":""},{"$f":"IF(ISERROR($V1083),\"\",OFFSET('Smelter Look-up'!$I$4,$V1083-4,0))","v":""},{"$nulls":7},{"$f":"IF(ISERROR($V1083),\"\",OFFSET('Smelter Look-up'!$C$4,$V1083-4,0)&\"\")","v":""},"",{"$f":"IF(B1083=\"\",\"\",IF(ISERROR(MATCH($J1083,SorP!$B$1:$B$5661,0)),\"\",INDIRECT(\"'SorP'!$A$\"&MATCH($J1083,SorP!$B$1:$B$5661,0))))","v":""},null,{"$f":"IF(C1083=\"\",NA(),MATCH($B1083&$C1083,'Smelter Look-up'!$J:$J,0))","v":{"$error":"#N/A"}},null,0,null,null,null,""]
[null,{"$f":"IF(LEN(A1084)=0,\"\",INDEX('Smelter Look-up'!$A:$A,MATCH($A1084,'Smelter Look-up'!$E:$E,0)))","v":""},{"$f":"IF(LEN(A1084)=0,\"\",INDEX('Smelter Look-up'!$C:$C,MATCH($A1084,'Smelter Look-up'!$E:$E,0)))","v":""},null,{"$f":"IF(ISERROR($V1084),\"\",OFFSET('Smelter Look-up'!$D$4,$V1084-4,0)&\"\")","v":""},{"$f":"IF(ISERROR($V1084),\"\",OFFSET('Smelter Look-up'!$E$4,$V1084-4,0))","v":""},{"$f":"IF(C1084=$X$4,\"Enter smelter details\",IF(ISERROR($V1084),\"\",OFFSET('Smelter Look-up'!$F$4,$V1084-4,0)))","v":""},{"$f":"IF(ISERROR($V1084),\"\",OFFSET('Smelter Look-up'!$G$4,$V1084-4,0))","v":""},{"$f":"IF(ISERROR($V1084),\"\",OFFSET('Smelter Look-up'!$H$4,$V1084-4,0))","v":""},{"$f":"IF(ISERROR($V1084),\"\",OFFSET('Smelter Look-up'!$I$4,$V1084-4,0))","v":""},{"$nulls":7},{"$f":"IF(ISERROR($V1084),\"\",OFFSET('Smelter Look-up'!$C$4,$V1084-4,0)&\"\")","v":""},"",{"$f":"IF(B1084=\"\",\"\",IF(ISERROR(MATCH($J1084,SorP!$B$1:$B$5661,0)),\"\",INDIRECT(\"'SorP'!$A$\"&MATCH($J1084,SorP!$B$1:$B$5661,0))))","v":""},null,{"$f":"IF(C1084=\"\",NA(),MATCH($B1084&$C1084,'Smelter Look-up'!$J:$J,0))","v":{"$error":"#N/A"}},null,0,null,null,null,""]
[null,{"$f":"IF(LEN(A1085)=0,\"\",INDEX('Smelter Look-up'!$A:$A,MATCH($A1085,'Smelter Look-up'!$E:$E,0)))","v":""},{"$f":"IF(LEN(A1085)=0,\"\",INDEX('Smelter Look-up'!$C:$C,MATCH($A1085,'Smelter Look-up'!$E:$E,0)))","v":""},null,{"$f":"IF(ISERROR($V1085),\"\",OFFSET('Smelter Look-up'!$D$4,$V1085-4,0)&\"\")","v":""},{"$f":"IF(ISERROR($V1085),\"\",OFFSET('Smelter Look-up'!$E$4,$V1085-4,0))","v":""},{"$f":"IF(C1085=$X$4,\"Enter smelter details\",IF(ISERROR($V1085),\"\",OFFSET('Smelter Look-up'!$F$4,$V1085-4,0)))","v":""},{"$f":"IF(ISERROR($V1085),\"\",OFFSET('Smelter Look-up'!$G$4,$V1085-4,0))","v":""},{"$f":"IF(ISERROR($V1085),\"\",OFFSET('Smelter Look-up'!$H$4,$V1085-4,0))","v":""},{"$f":"IF(ISERROR($V1085),\"\",OFFSET('Smelter Look-up'!$I$4,$V1085-4,0))","v":""},{"$nulls":7},{"$f":"IF(ISERROR($V1085),\"\",OFFSET('Smelter Look-up'!$C$4,$V1085-4,0)&\"\")","v":""},"",{"$f":"IF(B1085=\"\",\"\",IF(ISERROR(MATCH($J1085,SorP!$B$1:$B$5661,0)),\"\",INDIRECT(\"'SorP'!$A$\"&MATCH($J1085,SorP!$B$1:$B$5661,0))))","v":""},null,{"$f":"IF(C1085=\"\",NA(),MATCH($B1085&$C1085,'Smelter Look-up'!$J:$J,0))","v":{"$error":"#N/A"}},null,0,null,null,null,""]
[null,{"$f":"IF(LEN(A1086)=0,\"\",INDEX('Smelter Look-up'!$A:$A,MATCH($A1086,'Smelter Look-up'!$E:$E,0)))","v":""},{"$f":"IF(LEN(A1086)=0,\"\",INDEX('Smelter Look-up'!$C:$C,MATCH($A1086,'Smelter Look-up'!$E:$E,0)))","v":""},null,{"$f":"IF(ISERROR($V1086),\"\",OFFSET('Smelter Look-up'!$D$4,$V1086-4,0)&\"\")","v":""},{"$f":"IF(ISERROR($V1086),\"\",OFFSET('Smelter Look-up'!$E$4,$V1086-4,0))","v":""},{"$f":"IF(C1086=$X$4,\"Enter smelter details\",IF(ISERROR($V1086),\"\",OFFSET('Smelter Look-up'!$F$4,$V1086-4,0)))","v":""},{"$f":"IF(ISERROR($V1086),\"\",OFFSET('Smelter Look-up'!$G$4,$V1086-4,0))","v":""},{"$f":"IF(ISERROR($V1086),\"\",OFFSET('Smelter Look-up'!$H$4,$V1086-4,0))","v":""},{"$f":"IF(ISERROR($V1086),\"\",OFFSET('Smelter Look-up'!$I$4,$V1086-4,0))","v":""},{"$nulls":7},{"$f":"IF(ISERROR($V1086),\"\",OFFSET('Smelter Look-up'!$C$4,$V1086-4,0)&\"\")","v":""},"",{"$f":"IF(B1086=\"\",\"\",IF(ISERROR(MATCH($J1086,SorP!$B$1:$B$5661,0)),\"\",INDIRECT(\"'SorP'!$A$\"&MATCH($J1086,SorP!$B$1:$B$5661,0))))","v":""},null,{"$f":"IF(C1086=\"\",NA(),MATCH($B1086&$C1086,'Smelter Look-up'!$J:$J,0))","v":{"$error":"#N/A"}},null,0,null,null,null,""]
[null,{"$f":"IF(LEN(A1087)=0,\"\",INDEX('Smelter Look-up'!$A:$A,MATCH($A1087,'Smelter Look-up'!$E:$E,0)))","v":""},{"$f":"IF(LEN(A1087)=0,\"\",INDEX('Smelter Look-up'!$C:$C,MATCH($A1087,'Smelter Look-up'!$E:$E,0)))","v":""},null,{"$f":"IF(ISERROR($V1087),\"\",OFFSET('Smelter Look-up'!$D$4,$V1087-4,0)&\"\")","v":""},{"$f":"IF(ISERROR($V1087),\"\",OFFSET('Smelter Look-up'!$E$4,$V1087-4,0))","v":""},{"$f":"IF(C1087=$X$4,\"Enter smelter details\",IF(ISERROR($V1087),\"\",OFFSET('Smelter Look-up'!$F$4,$V1087-4,0)))","v":""},{"$f":"IF(ISERROR($V1087),\"\",OFFSET('Smelter Look-up'!$G$4,$V1087-4,0))","v":""},{"$f":"IF(ISERROR($V1087),\"\",OFFSET('Smelter Look-up'!$H$4,$V1087-4,0))","v":""},{"$f":"IF(ISERROR($V1087),\"\",OFFSET('Smelter Look-up'!$I$4,$V1087-4,0))","v":""},{"$nulls":7},{"$f":"IF(ISERROR($V1087),\"\",OFFSET('Smelter Look-up'!$C$4,$V1087-4,0)&\"\")","v":""},"",{"$f":"IF(B1087=\"\",\"\",IF(ISERROR(MATCH($J1087,SorP!$B$1:$B$5661,0)),\"\",INDIRECT(\"'SorP'!$A$\"&MATCH($J1087,SorP!$B$1:$B$5661,0))))","v":""},null,{"$f":"IF(C1087=\"\",NA(),MATCH($B1087&$C1087,'Smelter Look-up'!$J:$J,0))","v":{"$error":"#N/A"}},null,{"$f":"IF(AND(C1087=\"Smelter not listed\",OR(LEN(D1087)=0,LEN(E1087)=0)),1,0)","v":0},null,null,null,{"$f":"B1087&C1087","v":""}]
[null,{"$f":"IF(LEN(A1088)=0,\"\",INDEX('Smelter Look-up'!$A:$A,MATCH($A1088,'Smelter Look-up'!$E:$E,0)))","v":""},{"$f":"IF(LEN(A1088)=0,\"\",INDEX('Smelter Look-up'!$C:$C,MATCH($A1088,'Smelter Look-up'!$E:$E,0)))","v":""},null,{"$f":"IF(ISERROR($V1088),\"\",OFFSET('Smelter Look-up'!$D$4,$V1088-4,0)&\"\")","v":""},{"$f":"IF(ISERROR($V1088),\"\",OFFSET('Smelter Look-up'!$E$4,$V1088-4,0))","v":""},{"$f":"IF(C1088=$X$4,\"Enter smelter details\",IF(ISERROR($V1088),\"\",OFFSET('Smelter Look-up'!$F$4,$V1088-4,0)))","v":""},{"$f":"IF(ISERROR($V1088),\"\",OFFSET('Smelter Look-up'!$G$4,$V1088-4,0))","v":""},{"$f":"IF(ISERROR($V1088),\"\",OFFSET('Smelter Look-up'!$H$4,$V1088-4,0))","v":""},{"$f":"IF(ISERROR($V1088),\"\",OFFSET('Smelter Look-up'!$I$4,$V1088-4,0))","v":""},{"$nulls":7},{"$f":"IF(ISERROR($V1088),\"\",OFFSET('Smelter Look-up'!$C$4,$V1088-4,0)&\"\")","v":""},{"$f":"IF(B1088=\"\",\"\",IF(ISERROR(MATCH($E1088,CL,0)),\"Unknown\",INDIRECT(\"'C'!$A$\"&MATCH($E1088,CL,0)+1)))","v":""},{"$f":"IF(B1088=\"\",\"\",IF(ISERROR(MATCH($J1088,SorP!$B$1:$B$5661,0)),\"\",INDIRECT(\"'SorP'!$A$\"&MATCH($J1088,SorP!$B$1:$B$5661,0))))","v":""},null,{"$f":"IF(C1088=\"\",NA(),MATCH($B1088&$C1088,'Smelter Look-up'!$J:$J,0))","v":{"$error":"#N/A"}},null,0,null,null,null,""]
[null,{"$f":"IF(LEN(A1089)=0,\"\",INDEX('Smelter Look-up'!$A:$A,MATCH($A1089,'Smelter Look-up'!$E:$E,0)))","v":""},{"$f":"IF(LEN(A1089)=0,\"\",INDEX('Smelter Look-up'!$C:$C,MATCH($A1089,'Smelter Look-up'!$E:$E,0)))","v":""},null,{"$f":"IF(ISERROR($V1089),\"\",OFFSET('Smelter Look-up'!$D$4,$V1089-4,0)&\"\")","v":""},{"$f":"IF(ISERROR($V1089),\"\",OFFSET('Smelter Look-up'!$E$4,$V1089-4,0))","v":""},{"$f":"IF(C1089=$X$4,\"Enter smelter details\",IF(ISERROR($V1089),\"\",OFFSET('Smelter Look-up'!$F$4,$V1089-4,0)))","v":""},{"$f":"IF(ISERROR($V1089),\"\",OFFSET('Smelter Look-up'!$G$4,$V1089-4,0))","v":""},{"$f":"IF(ISERROR($V1089),\"\",OFFSET('Smelter Look-up'!$H$4,$V1089-4,0))","v":""},{"$f":"IF(ISERROR($V1089),\"\",OFFSET('Smelter Look-up'!$I$4,$V1089-4,0))","v":""},{"$nulls":7},{"$f":"IF(ISERROR($V1089),\"\",OFFSET('Smelter Look-up'!$C$4,$V1089-4,0)&\"\")","v":""},"",{"$f":"IF(B1089=\"\",\"\",IF(ISERROR(MATCH($J1089,SorP!$B$1:$B$5661,0)),\"\",INDIRECT(\"'SorP'!$A$\"&MATCH($J1089,SorP!$B$1:$B$5661,0))))","v":""},null,{"$f":"IF(C1089=\"\",NA(),MATCH($B1089&$C1089,'Smelter Look-up'!$J:$J,0))","v":{"$error":"#N/A"}},null,0,null,null,null,""]
[null,{"$f":"IF(LEN(A1090)=0,\"\",INDEX('Smelter Look-up'!$A:$A,MATCH($A1090,'Smelter Look-up'!$E:$E,0)))","v":""},{"$f":"IF(LEN(A1090)=0,\"\",INDEX('Smelter Look-up'!$C:$C,MATCH($A1090,'Smelter Look-up'!$E:$E,0)))","v":""},null,{"$f":"IF(ISERROR($V1090),\"\",OFFSET('Smelter Look-up'!$D$4,$V1090-4,0)&\"\")","v":""},{"$f":"IF(ISERROR($V1090),\"\",OFFSET('Smelter Look-up'!$E$4,$V1090-4,0))","v":""},{"$f":"IF(C1090=$X$4,\"Enter smelter details\",IF(ISERROR($V1090),\"\",OFFSET('Smelter Look-up'!$F$4,$V1090-4,0)))","v":""},{"$f":"IF(ISERROR($V1090),\"\",OFFSET('Smelter Look-up'!$G$4,$V1090-4,0))","v":""},{"$f":"IF(ISERROR($V1090),\"\",OFFSET('Smelter Look-up'!$H$4,$V1090-4,0))","v":""},{"$f":"IF(ISERROR($V1090),\"\",OFFSET('Smelter Look-up'!$I$4,$V1090-4,0))","v":""},{"$nulls":7},{"$f":"IF(ISERROR($V1090),\"\",OFFSET('Smelter Look-up'!$C$4,$V1090-4,0)&\"\")","v":""},"",{"$f":"IF(B1090=\"\",\"\",IF(ISERROR(MATCH($J1090,SorP!$B$1:$B$5661,0)),\"\",INDIRECT(\"'SorP'!$A$\"&MATCH($J1090,SorP!$B$1:$B$5661,0))))","v":""},null,{"$f":"IF(C1090=\"\",NA(),MATCH($B1090&$C1090,'Smelter Look-up'!$J:$J,0))","v":{"$error":"#N/A"}},null,0,null,null,null,""]
[null,{"$f":"IF(LEN(A1091)=0,\"\",INDEX('Smelter Look-up'!$A:$A,MATCH($A1091,'Smelter Look-up'!$E:$E,0)))","v":""},{"$f":"IF(LEN(A1091)=0,\"\",INDEX('Smelter Look-up'!$C:$C,MATCH($A1091,'Smelter Look-up'!$E:$E,0)))","v":""},null,{"$f":"IF(ISERROR($V1091),\"\",OFFSET('Smelter Look-up'!$D$4,$V1091-4,0)&\"\")","v":""},{"$f":"IF(ISERROR($V1091),\"\",OFFSET('Smelter Look-up'!$E$4,$V1091-4,0))","v":""},{"$f":"IF(C1091=$X$4,\"Enter smelter details\",IF(ISERROR($V1091),\"\",OFFSET('Smelter Look-up'!$F$4,$V1091-4,0)))","v":""},{"$f":"IF(ISERROR($V1091),\"\",OFFSET('Smelter Look-up'!$G$4,$V1091-4,0))","v":""},{"$f":"IF(ISERROR($V1091),\"\",OFFSET('Smelter Look-up'!$H$4,$V1091-4,0))","v":""},{"$f":"IF(ISERROR($V1091),\"\",OFFSET('Smelter Look-up'!$I$4,$V1091-4,0))","v":""},{"$nulls":7},{"$f":"IF(ISERROR($V1091),\"\",OFFSET('Smelter Look-up'!$C$4,$V1091-4,0)&\"\")","v":""},"",{"$f":"IF(B1091=\"\",\"\",IF(ISERROR(MATCH($J1091,SorP!$B$1:$B$5661,0)),\"\",INDIRECT(\"'SorP'!$A$\"&MATCH($J1091,SorP!$B$1:$B$5661,0))))","v":""},null,{"$f":"IF(C1091=\"\",NA(),MATCH($B1091&$C1091,'Smelter Look-up'!$J:$J,0))","v":{"$error":"#N/A"}},null,0,null,null,null,""]
[null,{"$f":"IF(LEN(A1092)=0,\"\",INDEX('Smelter Look-up'!$A:$A,MATCH($A1092,'Smelter Look-up'!$E:$E,0)))","v":""},{"$f":"IF(LEN(A1092)=0,\"\",INDEX('Smelter Look-up'!$C:$C,MATCH($A1092,'Smelter Look-up'!$E:$E,0)))","v":""},null,{"$f":"IF(ISERROR($V1092),\"\",OFFSET('Smelter Look-up'!$D$4,$V1092-4,0)&\"\")","v":""},{"$f":"IF(ISERROR($V1092),\"\",OFFSET('Smelter Look-up'!$E$4,$V1092-4,0))","v":""},{"$f":"IF(C1092=$X$4,\"Enter smelter details\",IF(ISERROR($V1092),\"\",OFFSET('Smelter Look-up'!$F$4,$V1092-4,0)))","v":""},{"$f":"IF(ISERROR($V1092),\"\",OFFSET('Smelter Look-up'!$G$4,$V1092-4,0))","v":""},{"$f":"IF(ISERROR($V1092),\"\",OFFSET('Smelter Look-up'!$H$4,$V1092-4,0))","v":""},{"$f":"IF(ISERROR($V1092),\"\",OFFSET('Smelter Look-up'!$I$4,$V1092-4,0))","v":""},{"$nulls":7},{"$f":"IF(ISERROR($V1092),\"\",OFFSET('Smelter Look-up'!$C$4,$V1092-4,0)&\"\")","v":""},"",{"$f":"IF(B1092=\"\",\"\",IF(ISERROR(MATCH($J1092,SorP!$B$1:$B$5661,0)),\"\",INDIRECT(\"'SorP'!$A$\"&MATCH($J1092,SorP!$B$1:$B$5661,0))))","v":""},null,{"$f":"IF(C1092=\"\",NA(),MATCH($B1092&$C1092,'Smelter Look-up'!$J:$J,0))","v":{"$error":"#N/A"}},null,0,null,null,null,""]
[null,{"$f":"IF(LEN(A1093)=0,\"\",INDEX('Smelter Look-up'!$A:$A,MATCH($A1093,'Smelter Look-up'!$E:$E,0)))","v":""},{"$f":"IF(LEN(A1093)=0,\"\",INDEX('Smelter Look-up'!$C:$C,MATCH($A1093,'Smelter Look-up'!$E:$E,0)))","v":""},null,{"$f":"IF(ISERROR($V1093),\"\",OFFSET('Smelter Look-up'!$D$4,$V1093-4,0)&\"\")","v":""},{"$f":"IF(ISERROR($V1093),\"\",OFFSET('Smelter Look-up'!$E$4,$V1093-4,0))","v":""},{"$f":"IF(C1093=$X$4,\"Enter smelter details\",IF(ISERROR($V1093),\"\",OFFSET('Smelter Look-up'!$F$4,$V1093-4,0)))","v":""},{"$f":"IF(ISERROR($V1093),\"\",OFFSET('Smelter Look-up'!$G$4,$V1093-4,0))","v":""},{"$f":"IF(ISERROR($V1093),\"\",OFFSET('Smelter Look-up'!$H$4,$V1093-4,0))","v":""},{"$f":"IF(ISERROR($V1093),\"\",OFFSET('Smelter Look-up'!$I$4,$V1093-4,0))","v":""},{"$nulls":7},{"$f":"IF(ISERROR($V1093),\"\",OFFSET('Smelter Look-up'!$C$4,$V1093-4,0)&\"\")","v":""},"",{"$f":"IF(B1093=\"\",\"\",IF(ISERROR(MATCH($J1093,SorP!$B$1:$B$5661,0)),\"\",INDIRECT(\"'SorP'!$A$\"&MATCH($J1093,SorP!$B$1:$B$5661,0))))","v":""},null,{"$f":"IF(C1093=\"\",NA(),MATCH($B1093&$C1093,'Smelter Look-up'!$J:$J,0))","v":{"$error":"#N/A"}},null,0,null,null,null,""]
[null,{"$f":"IF(LEN(A1094)=0,\"\",INDEX('Smelter Look-up'!$A:$A,MATCH($A1094,'Smelter Look-up'!$E:$E,0)))","v":""},{"$f":"IF(LEN(A1094)=0,\"\",INDEX('Smelter Look-up'!$C:$C,MATCH($A1094,'Smelter Look-up'!$E:$E,0)))","v":""},null,{"$f":"IF(ISERROR($V1094),\"\",OFFSET('Smelter Look-up'!$D$4,$V1094-4,0)&\"\")","v":""},{"$f":"IF(ISERROR($V1094),\"\",OFFSET('Smelter Look-up'!$E$4,$V1094-4,0))","v":""},{"$f":"IF(C1094=$X$4,\"Enter smelter details\",IF(ISERROR($V1094),\"\",OFFSET('Smelter Look-up'!$F$4,$V1094-4,0)))","v":""},{"$f":"IF(ISERROR($V1094),\"\",OFFSET('Smelter Look-up'!$G$4,$V1094-4,0))","v":""},{"$f":"IF(ISERROR($V1094),\"\",OFFSET('Smelter Look-up'!$H$4,$V1094-4,0))","v":""},{"$f":"IF(ISERROR($V1094),\"\",OFFSET('Smelter Look-up'!$I$4,$V1094-4,0))","v":""},{"$nulls":7},{"$f":"IF(ISERROR($V1094),\"\",OFFSET('Smelter Look-up'!$C$4,$V1094-4,0)&\"\")","v":""},"",{"$f":"IF(B1094=\"\",\"\",IF(ISERROR(MATCH($J1094,SorP!$B$1:$B$5661,0)),\"\",INDIRECT(\"'SorP'!$A$\"&MATCH($J1094,SorP!$B$1:$B$5661,0))))","v":""},null,{"$f":"IF(C1094=\"\",NA(),MATCH($B1094&$C1094,'Smelter Look-up'!$J:$J,0))","v":{"$error":"#N/A"}},null,0,null,null,null,""]
[null,{"$f":"IF(LEN(A1095)=0,\"\",INDEX('Smelter Look-up'!$A:$A,MATCH($A1095,'Smelter Look-up'!$E:$E,0)))","v":""},{"$f":"IF(LEN(A1095)=0,\"\",INDEX('Smelter Look-up'!$C:$C,MATCH($A1095,'Smelter Look-up'!$E:$E,0)))","v":""},null,{"$f":"IF(ISERROR($V1095),\"\",OFFSET('Smelter Look-up'!$D$4,$V1095-4,0)&\"\")","v":""},{"$f":"IF(ISERROR($V1095),\"\",OFFSET('Smelter Look-up'!$E$4,$V1095-4,0))","v":""},{"$f":"IF(C1095=$X$4,\"Enter smelter details\",IF(ISERROR($V1095),\"\",OFFSET('Smelter Look-up'!$F$4,$V1095-4,0)))","v":""},{"$f":"IF(ISERROR($V1095),\"\",OFFSET('Smelter Look-up'!$G$4,$V1095-4,0))","v":""},{"$f":"IF(ISERROR($V1095),\"\",OFFSET('Smelter Look-up'!$H$4,$V1095-4,0))","v":""},{"$f":"IF(ISERROR($V1095),\"\",OFFSET('Smelter Look-up'!$I$4,$V1095-4,0))","v":""},{"$nulls":7},{"$f":"IF(ISERROR($V1095),\"\",OFFSET('Smelter Look-up'!$C$4,$V1095-4,0)&\"\")","v":""},"",{"$f":"IF(B1095=\"\",\"\",IF(ISERROR(MATCH($J1095,SorP!$B$1:$B$5661,0)),\"\",INDIRECT(\"'SorP'!$A$\"&MATCH($J1095,SorP!$B$1:$B$5661,0))))","v":""},null,{"$f":"IF(C1095=\"\",NA(),MATCH($B1095&$C1095,'Smelter Look-up'!$J:$J,0))","v":{"$error":"#N/A"}},null,0,null,null,null,""]
[null,{"$f":"IF(LEN(A1096)=0,\"\",INDEX('Smelter Look-up'!$A:$A,MATCH($A1096,'Smelter Look-up'!$E:$E,0)))","v":""},{"$f":"IF(LEN(A1096)=0,\"\",INDEX('Smelter Look-up'!$C:$C,MATCH($A1096,'Smelter Look-up'!$E:$E,0)))","v":""},null,{"$f":"IF(ISERROR($V1096),\"\",OFFSET('Smelter Look-up'!$D$4,$V1096-4,0)&\"\")","v":""},{"$f":"IF(ISERROR($V1096),\"\",OFFSET('Smelter Look-up'!$E$4,$V1096-4,0))","v":""},{"$f":"IF(C1096=$X$4,\"Enter smelter details\",IF(ISERROR($V1096),\"\",OFFSET('Smelter Look-up'!$F$4,$V1096-4,0)))","v":""},{"$f":"IF(ISERROR($V1096),\"\",OFFSET('Smelter Look-up'!$G$4,$V1096-4,0))","v":""},{"$f":"IF(ISERROR($V1096),\"\",OFFSET('Smelter Look-up'!$H$4,$V1096-4,0))","v":""},{"$f":"IF(ISERROR($V1096),\"\",OFFSET('Smelter Look-up'!$I$4,$V1096-4,0))","v":""},{"$nulls":7},{"$f":"IF(ISERROR($V1096),\"\",OFFSET('Smelter Look-up'!$C$4,$V1096-4,0)&\"\")","v":""},"",{"$f":"IF(B1096=\"\",\"\",IF(ISERROR(MATCH($J1096,SorP!$B$1:$B$5661,0)),\"\",INDIRECT(\"'SorP'!$A$\"&MATCH($J1096,SorP!$B$1:$B$5661,0))))","v":""},null,{"$f":"IF(C1096=\"\",NA(),MATCH($B1096&$C1096,'Smelter Look-up'!$J:$J,0))","v":{"$error":"#N/A"}},null,0,null,null,null,""]
[null,{"$f":"IF(LEN(A1097)=0,\"\",INDEX('Smelter Look-up'!$A:$A,MATCH($A1097,'Smelter Look-up'!$E:$E,0)))","v":""},{"$f":"IF(LEN(A1097)=0,\"\",INDEX('Smelter Look-up'!$C:$C,MATCH($A1097,'Smelter Look-up'!$E:$E,0)))","v":""},null,{"$f":"IF(ISERROR($V1097),\"\",OFFSET('Smelter Look-up'!$D$4,$V1097-4,0)&\"\")","v":""},{"$f":"IF(ISERROR($V1097),\"\",OFFSET('Smelter Look-up'!$E$4,$V1097-4,0))","v":""},{"$f":"IF(C1097=$X$4,\"Enter smelter details\",IF(ISERROR($V1097),\"\",OFFSET('Smelter Look-up'!$F$4,$V1097-4,0)))","v":""},{"$f":"IF(ISERROR($V1097),\"\",OFFSET('Smelter Look-up'!$G$4,$V1097-4,0))","v":""},{"$f":"IF(ISERROR($V1097),\"\",OFFSET('Smelter Look-up'!$H$4,$V1097-4,0))","v":""},{"$f":"IF(ISERROR($V1097),\"\",OFFSET('Smelter Look-up'!$I$4,$V1097-4,0))","v":""},{"$nulls":7},{"$f":"IF(ISERROR($V1097),\"\",OFFSET('Smelter Look-up'!$C$4,$V1097-4,0)&\"\")","v":""},"",{"$f":"IF(B1097=\"\",\"\",IF(ISERROR(MATCH($J1097,SorP!$B$1:$B$5661,0)),\"\",INDIRECT(\"'SorP'!$A$\"&MATCH($J1097,SorP!$B$1:$B$5661,0))))","v":""},null,{"$f":"IF(C1097=\"\",NA(),MATCH($B1097&$C1097,'Smelter Look-up'!$J:$J,0))","v":{"$error":"#N/A"}},null,0,null,null,null,""]
[null,{"$f":"IF(LEN(A1098)=0,\"\",INDEX('Smelter Look-up'!$A:$A,MATCH($A1098,'Smelter Look-up'!$E:$E,0)))","v":""},{"$f":"IF(LEN(A1098)=0,\"\",INDEX('Smelter Look-up'!$C:$C,MATCH($A1098,'Smelter Look-up'!$E:$E,0)))","v":""},null,{"$f":"IF(ISERROR($V1098),\"\",OFFSET('Smelter Look-up'!$D$4,$V1098-4,0)&\"\")","v":""},{"$f":"IF(ISERROR($V1098),\"\",OFFSET('Smelter Look-up'!$E$4,$V1098-4,0))","v":""},{"$f":"IF(C1098=$X$4,\"Enter smelter details\",IF(ISERROR($V1098),\"\",OFFSET('Smelter Look-up'!$F$4,$V1098-4,0)))","v":""},{"$f":"IF(ISERROR($V1098),\"\",OFFSET('Smelter Look-up'!$G$4,$V1098-4,0))","v":""},{"$f":"IF(ISERROR($V1098),\"\",OFFSET('Smelter Look-up'!$H$4,$V1098-4,0))","v":""},{"$f":"IF(ISERROR($V1098),\"\",OFFSET('Smelter Look-up'!$I$4,$V1098-4,0))","v":""},{"$nulls":7},{"$f":"IF(ISERROR($V1098),\"\",OFFSET('Smelter Look-up'!$C$4,$V1098-4,0)&\"\")","v":""},"",{"$f":"IF(B1098=\"\",\"\",IF(ISERROR(MATCH($J1098,SorP!$B$1:$B$5661,0)),\"\",INDIRECT(\"'SorP'!$A$\"&MATCH($J1098,SorP!$B$1:$B$5661,0))))","v":""},null,{"$f":"IF(C1098=\"\",NA(),MATCH($B1098&$C1098,'Smelter Look-up'!$J:$J,0))","v":{"$error":"#N/A"}},null,0,null,null,null,""]
[null,{"$f":"IF(LEN(A1099)=0,\"\",INDEX('Smelter Look-up'!$A:$A,MATCH($A1099,'Smelter Look-up'!$E:$E,0)))","v":""},{"$f":"IF(LEN(A1099)=0,\"\",INDEX('Smelter Look-up'!$C:$C,MATCH($A1099,'Smelter Look-up'!$E:$E,0)))","v":""},null,{"$f":"IF(ISERROR($V1099),\"\",OFFSET('Smelter Look-up'!$D$4,$V1099-4,0)&\"\")","v":""},{"$f":"IF(ISERROR($V1099),\"\",OFFSET('Smelter Look-up'!$E$4,$V1099-4,0))","v":""},{"$f":"IF(C1099=$X$4,\"Enter smelter details\",IF(ISERROR($V1099),\"\",OFFSET('Smelter Look-up'!$F$4,$V1099-4,0)))","v":""},{"$f":"IF(ISERROR($V1099),\"\",OFFSET('Smelter Look-up'!$G$4,$V1099-4,0))","v":""},{"$f":"IF(ISERROR($V1099),\"\",OFFSET('Smelter Look-up'!$H$4,$V1099-4,0))","v":""},{"$f":"IF(ISERROR($V1099),\"\",OFFSET('Smelter Look-up'!$I$4,$V1099-4,0))","v":""},{"$nulls":7},{"$f":"IF(ISERROR($V1099),\"\",OFFSET('Smelter Look-up'!$C$4,$V1099-4,0)&\"\")","v":""},"",{"$f":"IF(B1099=\"\",\"\",IF(ISERROR(MATCH($J1099,SorP!$B$1:$B$5661,0)),\"\",INDIRECT(\"'SorP'!$A$\"&MATCH($J1099,SorP!$B$1:$B$5661,0))))","v":""},null,{"$f":"IF(C1099=\"\",NA(),MATCH($B1099&$C1099,'Smelter Look-up'!$J:$J,0))","v":{"$error":"#N/A"}},null,0,null,null,null,""]
[null,{"$f":"IF(LEN(A1100)=0,\"\",INDEX('Smelter Look-up'!$A:$A,MATCH($A1100,'Smelter Look-up'!$E:$E,0)))","v":""},{"$f":"IF(LEN(A1100)=0,\"\",INDEX('Smelter Look-up'!$C:$C,MATCH($A1100,'Smelter Look-up'!$E:$E,0)))","v":""},null,{"$f":"IF(ISERROR($V1100),\"\",OFFSET('Smelter Look-up'!$D$4,$V1100-4,0)&\"\")","v":""},{"$f":"IF(ISERROR($V1100),\"\",OFFSET('Smelter Look-up'!$E$4,$V1100-4,0))","v":""},{"$f":"IF(C1100=$X$4,\"Enter smelter details\",IF(ISERROR($V1100),\"\",OFFSET('Smelter Look-up'!$F$4,$V1100-4,0)))","v":""},{"$f":"IF(ISERROR($V1100),\"\",OFFSET('Smelter Look-up'!$G$4,$V1100-4,0))","v":""},{"$f":"IF(ISERROR($V1100),\"\",OFFSET('Smelter Look-up'!$H$4,$V1100-4,0))","v":""},{"$f":"IF(ISERROR($V1100),\"\",OFFSET('Smelter Look-up'!$I$4,$V1100-4,0))","v":""},{"$nulls":7},{"$f":"IF(ISERROR($V1100),\"\",OFFSET('Smelter Look-up'!$C$4,$V1100-4,0)&\"\")","v":""},"",{"$f":"IF(B1100=\"\",\"\",IF(ISERROR(MATCH($J1100,SorP!$B$1:$B$5661,0)),\"\",INDIRECT(\"'SorP'!$A$\"&MATCH($J1100,SorP!$B$1:$B$5661,0))))","v":""},null,{"$f":"IF(C1100=\"\",NA(),MATCH($B1100&$C1100,'Smelter Look-up'!$J:$J,0))","v":{"$error":"#N/A"}},null,0,null,null,null,""]
[null,{"$f":"IF(LEN(A1101)=0,\"\",INDEX('Smelter Look-up'!$A:$A,MATCH($A1101,'Smelter Look-up'!$E:$E,0)))","v":""},{"$f":"IF(LEN(A1101)=0,\"\",INDEX('Smelter Look-up'!$C:$C,MATCH($A1101,'Smelter Look-up'!$E:$E,0)))","v":""},null,{"$f":"IF(ISERROR($V1101),\"\",OFFSET('Smelter Look-up'!$D$4,$V1101-4,0)&\"\")","v":""},{"$f":"IF(ISERROR($V1101),\"\",OFFSET('Smelter Look-up'!$E$4,$V1101-4,0))","v":""},{"$f":"IF(C1101=$X$4,\"Enter smelter details\",IF(ISERROR($V1101),\"\",OFFSET('Smelter Look-up'!$F$4,$V1101-4,0)))","v":""},{"$f":"IF(ISERROR($V1101),\"\",OFFSET('Smelter Look-up'!$G$4,$V1101-4,0))","v":""},{"$f":"IF(ISERROR($V1101),\"\",OFFSET('Smelter Look-up'!$H$4,$V1101-4,0))","v":""},{"$f":"IF(ISERROR($V1101),\"\",OFFSET('Smelter Look-up'!$I$4,$V1101-4,0))","v":""},{"$nulls":7},{"$f":"IF(ISERROR($V1101),\"\",OFFSET('Smelter Look-up'!$C$4,$V1101-4,0)&\"\")","v":""},"",{"$f":"IF(B1101=\"\",\"\",IF(ISERROR(MATCH($J1101,SorP!$B$1:$B$5661,0)),\"\",INDIRECT(\"'SorP'!$A$\"&MATCH($J1101,SorP!$B$1:$B$5661,0))))","v":""},null,{"$f":"IF(C1101=\"\",NA(),MATCH($B1101&$C1101,'Smelter Look-up'!$J:$J,0))","v":{"$error":"#N/A"}},null,0,null,null,null,""]
[null,{"$f":"IF(LEN(A1102)=0,\"\",INDEX('Smelter Look-up'!$A:$A,MATCH($A1102,'Smelter Look-up'!$E:$E,0)))","v":""},{"$f":"IF(LEN(A1102)=0,\"\",INDEX('Smelter Look-up'!$C:$C,MATCH($A1102,'Smelter Look-up'!$E:$E,0)))","v":""},null,{"$f":"IF(ISERROR($V1102),\"\",OFFSET('Smelter Look-up'!$D$4,$V1102-4,0)&\"\")","v":""},{"$f":"IF(ISERROR($V1102),\"\",OFFSET('Smelter Look-up'!$E$4,$V1102-4,0))","v":""},{"$f":"IF(C1102=$X$4,\"Enter smelter details\",IF(ISERROR($V1102),\"\",OFFSET('Smelter Look-up'!$F$4,$V1102-4,0)))","v":""},{"$f":"IF(ISERROR($V1102),\"\",OFFSET('Smelter Look-up'!$G$4,$V1102-4,0))","v":""},{"$f":"IF(ISERROR($V1102),\"\",OFFSET('Smelter Look-up'!$H$4,$V1102-4,0))","v":""},{"$f":"IF(ISERROR($V1102),\"\",OFFSET('Smelter Look-up'!$I$4,$V1102-4,0))","v":""},{"$nulls":7},{"$f":"IF(ISERROR($V1102),\"\",OFFSET('Smelter Look-up'!$C$4,$V1102-4,0)&\"\")","v":""},"",{"$f":"IF(B1102=\"\",\"\",IF(ISERROR(MATCH($J1102,SorP!$B$1:$B$5661,0)),\"\",INDIRECT(\"'SorP'!$A$\"&MATCH($J1102,SorP!$B$1:$B$5661,0))))","v":""},null,{"$f":"IF(C1102=\"\",NA(),MATCH($B1102&$C1102,'Smelter Look-up'!$J:$J,0))","v":{"$error":"#N/A"}},null,0,null,null,null,""]
[null,{"$f":"IF(LEN(A1103)=0,\"\",INDEX('Smelter Look-up'!$A:$A,MATCH($A1103,'Smelter Look-up'!$E:$E,0)))","v":""},{"$f":"IF(LEN(A1103)=0,\"\",INDEX('Smelter Look-up'!$C:$C,MATCH($A1103,'Smelter Look-up'!$E:$E,0)))","v":""},null,{"$f":"IF(ISERROR($V1103),\"\",OFFSET('Smelter Look-up'!$D$4,$V1103-4,0)&\"\")","v":""},{"$f":"IF(ISERROR($V1103),\"\",OFFSET('Smelter Look-up'!$E$4,$V1103-4,0))","v":""},{"$f":"IF(C1103=$X$4,\"Enter smelter details\",IF(ISERROR($V1103),\"\",OFFSET('Smelter Look-up'!$F$4,$V1103-4,0)))","v":""},{"$f":"IF(ISERROR($V1103),\"\",OFFSET('Smelter Look-up'!$G$4,$V1103-4,0))","v":""},{"$f":"IF(ISERROR($V1103),\"\",OFFSET('Smelter Look-up'!$H$4,$V1103-4,0))","v":""},{"$f":"IF(ISERROR($V1103),\"\",OFFSET('Smelter Look-up'!$I$4,$V1103-4,0))","v":""},{"$nulls":7},{"$f":"IF(ISERROR($V1103),\"\",OFFSET('Smelter Look-up'!$C$4,$V1103-4,0)&\"\")","v":""},"",{"$f":"IF(B1103=\"\",\"\",IF(ISERROR(MATCH($J1103,SorP!$B$1:$B$5661,0)),\"\",INDIRECT(\"'SorP'!$A$\"&MATCH($J1103,SorP!$B$1:$B$5661,0))))","v":""},null,{"$f":"IF(C1103=\"\",NA(),MATCH($B1103&$C1103,'Smelter Look-up'!$J:$J,0))","v":{"$error":"#N/A"}},null,0,null,null,null,""]
[null,{"$f":"IF(LEN(A1104)=0,\"\",INDEX('Smelter Look-up'!$A:$A,MATCH($A1104,'Smelter Look-up'!$E:$E,0)))","v":""},{"$f":"IF(LEN(A1104)=0,\"\",INDEX('Smelter Look-up'!$C:$C,MATCH($A1104,'Smelter Look-up'!$E:$E,0)))","v":""},null,{"$f":"IF(ISERROR($V1104),\"\",OFFSET('Smelter Look-up'!$D$4,$V1104-4,0)&\"\")","v":""},{"$f":"IF(ISERROR($V1104),\"\",OFFSET('Smelter Look-up'!$E$4,$V1104-4,0))","v":""},{"$f":"IF(C1104=$X$4,\"Enter smelter details\",IF(ISERROR($V1104),\"\",OFFSET('Smelter Look-up'!$F$4,$V1104-4,0)))","v":""},{"$f":"IF(ISERROR($V1104),\"\",OFFSET('Smelter Look-up'!$G$4,$V1104-4,0))","v":""},{"$f":"IF(ISERROR($V1104),\"\",OFFSET('Smelter Look-up'!$H$4,$V1104-4,0))","v":""},{"$f":"IF(ISERROR($V1104),\"\",OFFSET('Smelter Look-up'!$I$4,$V1104-4,0))","v":""},{"$nulls":7},{"$f":"IF(ISERROR($V1104),\"\",OFFSET('Smelter Look-up'!$C$4,$V1104-4,0)&\"\")","v":""},"",{"$f":"IF(B1104=\"\",\"\",IF(ISERROR(MATCH($J1104,SorP!$B$1:$B$5661,0)),\"\",INDIRECT(\"'SorP'!$A$\"&MATCH($J1104,SorP!$B$1:$B$5661,0))))","v":""},null,{"$f":"IF(C1104=\"\",NA(),MATCH($B1104&$C1104,'Smelter Look-up'!$J:$J,0))","v":{"$error":"#N/A"}},null,0,null,null,null,""]
[null,{"$f":"IF(LEN(A1105)=0,\"\",INDEX('Smelter Look-up'!$A:$A,MATCH($A1105,'Smelter Look-up'!$E:$E,0)))","v":""},{"$f":"IF(LEN(A1105)=0,\"\",INDEX('Smelter Look-up'!$C:$C,MATCH($A1105,'Smelter Look-up'!$E:$E,0)))","v":""},null,{"$f":"IF(ISERROR($V1105),\"\",OFFSET('Smelter Look-up'!$D$4,$V1105-4,0)&\"\")","v":""},{"$f":"IF(ISERROR($V1105),\"\",OFFSET('Smelter Look-up'!$E$4,$V1105-4,0))","v":""},{"$f":"IF(C1105=$X$4,\"Enter smelter details\",IF(ISERROR($V1105),\"\",OFFSET('Smelter Look-up'!$F$4,$V1105-4,0)))","v":""},{"$f":"IF(ISERROR($V1105),\"\",OFFSET('Smelter Look-up'!$G$4,$V1105-4,0))","v":""},{"$f":"IF(ISERROR($V1105),\"\",OFFSET('Smelter Look-up'!$H$4,$V1105-4,0))","v":""},{"$f":"IF(ISERROR($V1105),\"\",OFFSET('Smelter Look-up'!$I$4,$V1105-4,0))","v":""},{"$nulls":7},{"$f":"IF(ISERROR($V1105),\"\",OFFSET('Smelter Look-up'!$C$4,$V1105-4,0)&\"\")","v":""},"",{"$f":"IF(B1105=\"\",\"\",IF(ISERROR(MATCH($J1105,SorP!$B$1:$B$5661,0)),\"\",INDIRECT(\"'SorP'!$A$\"&MATCH($J1105,SorP!$B$1:$B$5661,0))))","v":""},null,{"$f":"IF(C1105=\"\",NA(),MATCH($B1105&$C1105,'Smelter Look-up'!$J:$J,0))","v":{"$error":"#N/A"}},null,0,null,null,null,""]
[null,{"$f":"IF(LEN(A1106)=0,\"\",INDEX('Smelter Look-up'!$A:$A,MATCH($A1106,'Smelter Look-up'!$E:$E,0)))","v":""},{"$f":"IF(LEN(A1106)=0,\"\",INDEX('Smelter Look-up'!$C:$C,MATCH($A1106,'Smelter Look-up'!$E:$E,0)))","v":""},null,{"$f":"IF(ISERROR($V1106),\"\",OFFSET('Smelter Look-up'!$D$4,$V1106-4,0)&\"\")","v":""},{"$f":"IF(ISERROR($V1106),\"\",OFFSET('Smelter Look-up'!$E$4,$V1106-4,0))","v":""},{"$f":"IF(C1106=$X$4,\"Enter smelter details\",IF(ISERROR($V1106),\"\",OFFSET('Smelter Look-up'!$F$4,$V1106-4,0)))","v":""},{"$f":"IF(ISERROR($V1106),\"\",OFFSET('Smelter Look-up'!$G$4,$V1106-4,0))","v":""},{"$f":"IF(ISERROR($V1106),\"\",OFFSET('Smelter Look-up'!$H$4,$V1106-4,0))","v":""},{"$f":"IF(ISERROR($V1106),\"\",OFFSET('Smelter Look-up'!$I$4,$V1106-4,0))","v":""},{"$nulls":7},{"$f":"IF(ISERROR($V1106),\"\",OFFSET('Smelter Look-up'!$C$4,$V1106-4,0)&\"\")","v":""},"",{"$f":"IF(B1106=\"\",\"\",IF(ISERROR(MATCH($J1106,SorP!$B$1:$B$5661,0)),\"\",INDIRECT(\"'SorP'!$A$\"&MATCH($J1106,SorP!$B$1:$B$5661,0))))","v":""},null,{"$f":"IF(C1106=\"\",NA(),MATCH($B1106&$C1106,'Smelter Look-up'!$J:$J,0))","v":{"$error":"#N/A"}},null,0,null,null,null,""]
[null,{"$f":"IF(LEN(A1107)=0,\"\",INDEX('Smelter Look-up'!$A:$A,MATCH($A1107,'Smelter Look-up'!$E:$E,0)))","v":""},{"$f":"IF(LEN(A1107)=0,\"\",INDEX('Smelter Look-up'!$C:$C,MATCH($A1107,'Smelter Look-up'!$E:$E,0)))","v":""},null,{"$f":"IF(ISERROR($V1107),\"\",OFFSET('Smelter Look-up'!$D$4,$V1107-4,0)&\"\")","v":""},{"$f":"IF(ISERROR($V1107),\"\",OFFSET('Smelter Look-up'!$E$4,$V1107-4,0))","v":""},{"$f":"IF(C1107=$X$4,\"Enter smelter details\",IF(ISERROR($V1107),\"\",OFFSET('Smelter Look-up'!$F$4,$V1107-4,0)))","v":""},{"$f":"IF(ISERROR($V1107),\"\",OFFSET('Smelter Look-up'!$G$4,$V1107-4,0))","v":""},{"$f":"IF(ISERROR($V1107),\"\",OFFSET('Smelter Look-up'!$H$4,$V1107-4,0))","v":""},{"$f":"IF(ISERROR($V1107),\"\",OFFSET('Smelter Look-up'!$I$4,$V1107-4,0))","v":""},{"$nulls":7},{"$f":"IF(ISERROR($V1107),\"\",OFFSET('Smelter Look-up'!$C$4,$V1107-4,0)&\"\")","v":""},"",{"$f":"IF(B1107=\"\",\"\",IF(ISERROR(MATCH($J1107,SorP!$B$1:$B$5661,0)),\"\",INDIRECT(\"'SorP'!$A$\"&MATCH($J1107,SorP!$B$1:$B$5661,0))))","v":""},null,{"$f":"IF(C1107=\"\",NA(),MATCH($B1107&$C1107,'Smelter Look-up'!$J:$J,0))","v":{"$error":"#N/A"}},null,0,null,null,null,""]
[null,{"$f":"IF(LEN(A1108)=0,\"\",INDEX('Smelter Look-up'!$A:$A,MATCH($A1108,'Smelter Look-up'!$E:$E,0)))","v":""},{"$f":"IF(LEN(A1108)=0,\"\",INDEX('Smelter Look-up'!$C:$C,MATCH($A1108,'Smelter Look-up'!$E:$E,0)))","v":""},null,{"$f":"IF(ISERROR($V1108),\"\",OFFSET('Smelter Look-up'!$D$4,$V1108-4,0)&\"\")","v":""},{"$f":"IF(ISERROR($V1108),\"\",OFFSET('Smelter Look-up'!$E$4,$V1108-4,0))","v":""},{"$f":"IF(C1108=$X$4,\"Enter smelter details\",IF(ISERROR($V1108),\"\",OFFSET('Smelter Look-up'!$F$4,$V1108-4,0)))","v":""},{"$f":"IF(ISERROR($V1108),\"\",OFFSET('Smelter Look-up'!$G$4,$V1108-4,0))","v":""},{"$f":"IF(ISERROR($V1108),\"\",OFFSET('Smelter Look-up'!$H$4,$V1108-4,0))","v":""},{"$f":"IF(ISERROR($V1108),\"\",OFFSET('Smelter Look-up'!$I$4,$V1108-4,0))","v":""},{"$nulls":7},{"$f":"IF(ISERROR($V1108),\"\",OFFSET('Smelter Look-up'!$C$4,$V1108-4,0)&\"\")","v":""},"",{"$f":"IF(B1108=\"\",\"\",IF(ISERROR(MATCH($J1108,SorP!$B$1:$B$5661,0)),\"\",INDIRECT(\"'SorP'!$A$\"&MATCH($J1108,SorP!$B$1:$B$5661,0))))","v":""},null,{"$f":"IF(C1108=\"\",NA(),MATCH($B1108&$C1108,'Smelter Look-up'!$J:$J,0))","v":{"$error":"#N/A"}},null,0,null,null,null,""]
[null,{"$f":"IF(LEN(A1109)=0,\"\",INDEX('Smelter Look-up'!$A:$A,MATCH($A1109,'Smelter Look-up'!$E:$E,0)))","v":""},{"$f":"IF(LEN(A1109)=0,\"\",INDEX('Smelter Look-up'!$C:$C,MATCH($A1109,'Smelter Look-up'!$E:$E,0)))","v":""},null,{"$f":"IF(ISERROR($V1109),\"\",OFFSET('Smelter Look-up'!$D$4,$V1109-4,0)&\"\")","v":""},{"$f":"IF(ISERROR($V1109),\"\",OFFSET('Smelter Look-up'!$E$4,$V1109-4,0))","v":""},{"$f":"IF(C1109=$X$4,\"Enter smelter details\",IF(ISERROR($V1109),\"\",OFFSET('Smelter Look-up'!$F$4,$V1109-4,0)))","v":""},{"$f":"IF(ISERROR($V1109),\"\",OFFSET('Smelter Look-up'!$G$4,$V1109-4,0))","v":""},{"$f":"IF(ISERROR($V1109),\"\",OFFSET('Smelter Look-up'!$H$4,$V1109-4,0))","v":""},{"$f":"IF(ISERROR($V1109),\"\",OFFSET('Smelter Look-up'!$I$4,$V1109-4,0))","v":""},{"$nulls":7},{"$f":"IF(ISERROR($V1109),\"\",OFFSET('Smelter Look-up'!$C$4,$V1109-4,0)&\"\")","v":""},"",{"$f":"IF(B1109=\"\",\"\",IF(ISERROR(MATCH($J1109,SorP!$B$1:$B$5661,0)),\"\",INDIRECT(\"'SorP'!$A$\"&MATCH($J1109,SorP!$B$1:$B$5661,0))))","v":""},null,{"$f":"IF(C1109=\"\",NA(),MATCH($B1109&$C1109,'Smelter Look-up'!$J:$J,0))","v":{"$error":"#N/A"}},null,0,null,null,null,""]
[null,{"$f":"IF(LEN(A1110)=0,\"\",INDEX('Smelter Look-up'!$A:$A,MATCH($A1110,'Smelter Look-up'!$E:$E,0)))","v":""},{"$f":"IF(LEN(A1110)=0,\"\",INDEX('Smelter Look-up'!$C:$C,MATCH($A1110,'Smelter Look-up'!$E:$E,0)))","v":""},null,{"$f":"IF(ISERROR($V1110),\"\",OFFSET('Smelter Look-up'!$D$4,$V1110-4,0)&\"\")","v":""},{"$f":"IF(ISERROR($V1110),\"\",OFFSET('Smelter Look-up'!$E$4,$V1110-4,0))","v":""},{"$f":"IF(C1110=$X$4,\"Enter smelter details\",IF(ISERROR($V1110),\"\",OFFSET('Smelter Look-up'!$F$4,$V1110-4,0)))","v":""},{"$f":"IF(ISERROR($V1110),\"\",OFFSET('Smelter Look-up'!$G$4,$V1110-4,0))","v":""},{"$f":"IF(ISERROR($V1110),\"\",OFFSET('Smelter Look-up'!$H$4,$V1110-4,0))","v":""},{"$f":"IF(ISERROR($V1110),\"\",OFFSET('Smelter Look-up'!$I$4,$V1110-4,0))","v":""},{"$nulls":7},{"$f":"IF(ISERROR($V1110),\"\",OFFSET('Smelter Look-up'!$C$4,$V1110-4,0)&\"\")","v":""},"",{"$f":"IF(B1110=\"\",\"\",IF(ISERROR(MATCH($J1110,SorP!$B$1:$B$5661,0)),\"\",INDIRECT(\"'SorP'!$A$\"&MATCH($J1110,SorP!$B$1:$B$5661,0))))","v":""},null,{"$f":"IF(C1110=\"\",NA(),MATCH($B1110&$C1110,'Smelter Look-up'!$J:$J,0))","v":{"$error":"#N/A"}},null,0,null,null,null,""]
[null,{"$f":"IF(LEN(A1111)=0,\"\",INDEX('Smelter Look-up'!$A:$A,MATCH($A1111,'Smelter Look-up'!$E:$E,0)))","v":""},{"$f":"IF(LEN(A1111)=0,\"\",INDEX('Smelter Look-up'!$C:$C,MATCH($A1111,'Smelter Look-up'!$E:$E,0)))","v":""},null,{"$f":"IF(ISERROR($V1111),\"\",OFFSET('Smelter Look-up'!$D$4,$V1111-4,0)&\"\")","v":""},{"$f":"IF(ISERROR($V1111),\"\",OFFSET('Smelter Look-up'!$E$4,$V1111-4,0))","v":""},{"$f":"IF(C1111=$X$4,\"Enter smelter details\",IF(ISERROR($V1111),\"\",OFFSET('Smelter Look-up'!$F$4,$V1111-4,0)))","v":""},{"$f":"IF(ISERROR($V1111),\"\",OFFSET('Smelter Look-up'!$G$4,$V1111-4,0))","v":""},{"$f":"IF(ISERROR($V1111),\"\",OFFSET('Smelter Look-up'!$H$4,$V1111-4,0))","v":""},{"$f":"IF(ISERROR($V1111),\"\",OFFSET('Smelter Look-up'!$I$4,$V1111-4,0))","v":""},{"$nulls":7},{"$f":"IF(ISERROR($V1111),\"\",OFFSET('Smelter Look-up'!$C$4,$V1111-4,0)&\"\")","v":""},"",{"$f":"IF(B1111=\"\",\"\",IF(ISERROR(MATCH($J1111,SorP!$B$1:$B$5661,0)),\"\",INDIRECT(\"'SorP'!$A$\"&MATCH($J1111,SorP!$B$1:$B$5661,0))))","v":""},null,{"$f":"IF(C1111=\"\",NA(),MATCH($B1111&$C1111,'Smelter Look-up'!$J:$J,0))","v":{"$error":"#N/A"}},null,0,null,null,null,""]
[null,{"$f":"IF(LEN(A1112)=0,\"\",INDEX('Smelter Look-up'!$A:$A,MATCH($A1112,'Smelter Look-up'!$E:$E,0)))","v":""},{"$f":"IF(LEN(A1112)=0,\"\",INDEX('Smelter Look-up'!$C:$C,MATCH($A1112,'Smelter Look-up'!$E:$E,0)))","v":""},null,{"$f":"IF(ISERROR($V1112),\"\",OFFSET('Smelter Look-up'!$D$4,$V1112-4,0)&\"\")","v":""},{"$f":"IF(ISERROR($V1112),\"\",OFFSET('Smelter Look-up'!$E$4,$V1112-4,0))","v":""},{"$f":"IF(C1112=$X$4,\"Enter smelter details\",IF(ISERROR($V1112),\"\",OFFSET('Smelter Look-up'!$F$4,$V1112-4,0)))","v":""},{"$f":"IF(ISERROR($V1112),\"\",OFFSET('Smelter Look-up'!$G$4,$V1112-4,0))","v":""},{"$f":"IF(ISERROR($V1112),\"\",OFFSET('Smelter Look-up'!$H$4,$V1112-4,0))","v":""},{"$f":"IF(ISERROR($V1112),\"\",OFFSET('Smelter Look-up'!$I$4,$V1112-4,0))","v":""},{"$nulls":7},{"$f":"IF(ISERROR($V1112),\"\",OFFSET('Smelter Look-up'!$C$4,$V1112-4,0)&\"\")","v":""},"",{"$f":"IF(B1112=\"\",\"\",IF(ISERROR(MATCH($J1112,SorP!$B$1:$B$5661,0)),\"\",INDIRECT(\"'SorP'!$A$\"&MATCH($J1112,SorP!$B$1:$B$5661,0))))","v":""},null,{"$f":"IF(C1112=\"\",NA(),MATCH($B1112&$C1112,'Smelter Look-up'!$J:$J,0))","v":{"$error":"#N/A"}},null,0,null,null,null,""]
[null,{"$f":"IF(LEN(A1113)=0,\"\",INDEX('Smelter Look-up'!$A:$A,MATCH($A1113,'Smelter Look-up'!$E:$E,0)))","v":""},{"$f":"IF(LEN(A1113)=0,\"\",INDEX('Smelter Look-up'!$C:$C,MATCH($A1113,'Smelter Look-up'!$E:$E,0)))","v":""},null,{"$f":"IF(ISERROR($V1113),\"\",OFFSET('Smelter Look-up'!$D$4,$V1113-4,0)&\"\")","v":""},{"$f":"IF(ISERROR($V1113),\"\",OFFSET('Smelter Look-up'!$E$4,$V1113-4,0))","v":""},{"$f":"IF(C1113=$X$4,\"Enter smelter details\",IF(ISERROR($V1113),\"\",OFFSET('Smelter Look-up'!$F$4,$V1113-4,0)))","v":""},{"$f":"IF(ISERROR($V1113),\"\",OFFSET('Smelter Look-up'!$G$4,$V1113-4,0))","v":""},{"$f":"IF(ISERROR($V1113),\"\",OFFSET('Smelter Look-up'!$H$4,$V1113-4,0))","v":""},{"$f":"IF(ISERROR($V1113),\"\",OFFSET('Smelter Look-up'!$I$4,$V1113-4,0))","v":""},{"$nulls":7},{"$f":"IF(ISERROR($V1113),\"\",OFFSET('Smelter Look-up'!$C$4,$V1113-4,0)&\"\")","v":""},"",{"$f":"IF(B1113=\"\",\"\",IF(ISERROR(MATCH($J1113,SorP!$B$1:$B$5661,0)),\"\",INDIRECT(\"'SorP'!$A$\"&MATCH($J1113,SorP!$B$1:$B$5661,0))))","v":""},null,{"$f":"IF(C1113=\"\",NA(),MATCH($B1113&$C1113,'Smelter Look-up'!$J:$J,0))","v":{"$error":"#N/A"}},null,0,null,null,null,""]
[null,{"$f":"IF(LEN(A1114)=0,\"\",INDEX('Smelter Look-up'!$A:$A,MATCH($A1114,'Smelter Look-up'!$E:$E,0)))","v":""},{"$f":"IF(LEN(A1114)=0,\"\",INDEX('Smelter Look-up'!$C:$C,MATCH($A1114,'Smelter Look-up'!$E:$E,0)))","v":""},null,{"$f":"IF(ISERROR($V1114),\"\",OFFSET('Smelter Look-up'!$D$4,$V1114-4,0)&\"\")","v":""},{"$f":"IF(ISERROR($V1114),\"\",OFFSET('Smelter Look-up'!$E$4,$V1114-4,0))","v":""},{"$f":"IF(C1114=$X$4,\"Enter smelter details\",IF(ISERROR($V1114),\"\",OFFSET('Smelter Look-up'!$F$4,$V1114-4,0)))","v":""},{"$f":"IF(ISERROR($V1114),\"\",OFFSET('Smelter Look-up'!$G$4,$V1114-4,0))","v":""},{"$f":"IF(ISERROR($V1114),\"\",OFFSET('Smelter Look-up'!$H$4,$V1114-4,0))","v":""},{"$f":"IF(ISERROR($V1114),\"\",OFFSET('Smelter Look-up'!$I$4,$V1114-4,0))","v":""},{"$nulls":7},{"$f":"IF(ISERROR($V1114),\"\",OFFSET('Smelter Look-up'!$C$4,$V1114-4,0)&\"\")","v":""},"",{"$f":"IF(B1114=\"\",\"\",IF(ISERROR(MATCH($J1114,SorP!$B$1:$B$5661,0)),\"\",INDIRECT(\"'SorP'!$A$\"&MATCH($J1114,SorP!$B$1:$B$5661,0))))","v":""},null,{"$f":"IF(C1114=\"\",NA(),MATCH($B1114&$C1114,'Smelter Look-up'!$J:$J,0))","v":{"$error":"#N/A"}},null,0,null,null,null,""]
[null,{"$f":"IF(LEN(A1115)=0,\"\",INDEX('Smelter Look-up'!$A:$A,MATCH($A1115,'Smelter Look-up'!$E:$E,0)))","v":""},{"$f":"IF(LEN(A1115)=0,\"\",INDEX('Smelter Look-up'!$C:$C,MATCH($A1115,'Smelter Look-up'!$E:$E,0)))","v":""},null,{"$f":"IF(ISERROR($V1115),\"\",OFFSET('Smelter Look-up'!$D$4,$V1115-4,0)&\"\")","v":""},{"$f":"IF(ISERROR($V1115),\"\",OFFSET('Smelter Look-up'!$E$4,$V1115-4,0))","v":""},{"$f":"IF(C1115=$X$4,\"Enter smelter details\",IF(ISERROR($V1115),\"\",OFFSET('Smelter Look-up'!$F$4,$V1115-4,0)))","v":""},{"$f":"IF(ISERROR($V1115),\"\",OFFSET('Smelter Look-up'!$G$4,$V1115-4,0))","v":""},{"$f":"IF(ISERROR($V1115),\"\",OFFSET('Smelter Look-up'!$H$4,$V1115-4,0))","v":""},{"$f":"IF(ISERROR($V1115),\"\",OFFSET('Smelter Look-up'!$I$4,$V1115-4,0))","v":""},{"$nulls":7},{"$f":"IF(ISERROR($V1115),\"\",OFFSET('Smelter Look-up'!$C$4,$V1115-4,0)&\"\")","v":""},"",{"$f":"IF(B1115=\"\",\"\",IF(ISERROR(MATCH($J1115,SorP!$B$1:$B$5661,0)),\"\",INDIRECT(\"'SorP'!$A$\"&MATCH($J1115,SorP!$B$1:$B$5661,0))))","v":""},null,{"$f":"IF(C1115=\"\",NA(),MATCH($B1115&$C1115,'Smelter Look-up'!$J:$J,0))","v":{"$error":"#N/A"}},null,0,null,null,null,""]
[null,{"$f":"IF(LEN(A1116)=0,\"\",INDEX('Smelter Look-up'!$A:$A,MATCH($A1116,'Smelter Look-up'!$E:$E,0)))","v":""},{"$f":"IF(LEN(A1116)=0,\"\",INDEX('Smelter Look-up'!$C:$C,MATCH($A1116,'Smelter Look-up'!$E:$E,0)))","v":""},null,{"$f":"IF(ISERROR($V1116),\"\",OFFSET('Smelter Look-up'!$D$4,$V1116-4,0)&\"\")","v":""},{"$f":"IF(ISERROR($V1116),\"\",OFFSET('Smelter Look-up'!$E$4,$V1116-4,0))","v":""},{"$f":"IF(C1116=$X$4,\"Enter smelter details\",IF(ISERROR($V1116),\"\",OFFSET('Smelter Look-up'!$F$4,$V1116-4,0)))","v":""},{"$f":"IF(ISERROR($V1116),\"\",OFFSET('Smelter Look-up'!$G$4,$V1116-4,0))","v":""},{"$f":"IF(ISERROR($V1116),\"\",OFFSET('Smelter Look-up'!$H$4,$V1116-4,0))","v":""},{"$f":"IF(ISERROR($V1116),\"\",OFFSET('Smelter Look-up'!$I$4,$V1116-4,0))","v":""},{"$nulls":7},{"$f":"IF(ISERROR($V1116),\"\",OFFSET('Smelter Look-up'!$C$4,$V1116-4,0)&\"\")","v":""},"",{"$f":"IF(B1116=\"\",\"\",IF(ISERROR(MATCH($J1116,SorP!$B$1:$B$5661,0)),\"\",INDIRECT(\"'SorP'!$A$\"&MATCH($J1116,SorP!$B$1:$B$5661,0))))","v":""},null,{"$f":"IF(C1116=\"\",NA(),MATCH($B1116&$C1116,'Smelter Look-up'!$J:$J,0))","v":{"$error":"#N/A"}},null,0,null,null,null,""]
[null,{"$f":"IF(LEN(A1117)=0,\"\",INDEX('Smelter Look-up'!$A:$A,MATCH($A1117,'Smelter Look-up'!$E:$E,0)))","v":""},{"$f":"IF(LEN(A1117)=0,\"\",INDEX('Smelter Look-up'!$C:$C,MATCH($A1117,'Smelter Look-up'!$E:$E,0)))","v":""},null,{"$f":"IF(ISERROR($V1117),\"\",OFFSET('Smelter Look-up'!$D$4,$V1117-4,0)&\"\")","v":""},{"$f":"IF(ISERROR($V1117),\"\",OFFSET('Smelter Look-up'!$E$4,$V1117-4,0))","v":""},{"$f":"IF(C1117=$X$4,\"Enter smelter details\",IF(ISERROR($V1117),\"\",OFFSET('Smelter Look-up'!$F$4,$V1117-4,0)))","v":""},{"$f":"IF(ISERROR($V1117),\"\",OFFSET('Smelter Look-up'!$G$4,$V1117-4,0))","v":""},{"$f":"IF(ISERROR($V1117),\"\",OFFSET('Smelter Look-up'!$H$4,$V1117-4,0))","v":""},{"$f":"IF(ISERROR($V1117),\"\",OFFSET('Smelter Look-up'!$I$4,$V1117-4,0))","v":""},{"$nulls":7},{"$f":"IF(ISERROR($V1117),\"\",OFFSET('Smelter Look-up'!$C$4,$V1117-4,0)&\"\")","v":""},"",{"$f":"IF(B1117=\"\",\"\",IF(ISERROR(MATCH($J1117,SorP!$B$1:$B$5661,0)),\"\",INDIRECT(\"'SorP'!$A$\"&MATCH($J1117,SorP!$B$1:$B$5661,0))))","v":""},null,{"$f":"IF(C1117=\"\",NA(),MATCH($B1117&$C1117,'Smelter Look-up'!$J:$J,0))","v":{"$error":"#N/A"}},null,0,null,null,null,""]
[null,{"$f":"IF(LEN(A1118)=0,\"\",INDEX('Smelter Look-up'!$A:$A,MATCH($A1118,'Smelter Look-up'!$E:$E,0)))","v":""},{"$f":"IF(LEN(A1118)=0,\"\",INDEX('Smelter Look-up'!$C:$C,MATCH($A1118,'Smelter Look-up'!$E:$E,0)))","v":""},null,{"$f":"IF(ISERROR($V1118),\"\",OFFSET('Smelter Look-up'!$D$4,$V1118-4,0)&\"\")","v":""},{"$f":"IF(ISERROR($V1118),\"\",OFFSET('Smelter Look-up'!$E$4,$V1118-4,0))","v":""},{"$f":"IF(C1118=$X$4,\"Enter smelter details\",IF(ISERROR($V1118),\"\",OFFSET('Smelter Look-up'!$F$4,$V1118-4,0)))","v":""},{"$f":"IF(ISERROR($V1118),\"\",OFFSET('Smelter Look-up'!$G$4,$V1118-4,0))","v":""},{"$f":"IF(ISERROR($V1118),\"\",OFFSET('Smelter Look-up'!$H$4,$V1118-4,0))","v":""},{"$f":"IF(ISERROR($V1118),\"\",OFFSET('Smelter Look-up'!$I$4,$V1118-4,0))","v":""},{"$nulls":7},{"$f":"IF(ISERROR($V1118),\"\",OFFSET('Smelter Look-up'!$C$4,$V1118-4,0)&\"\")","v":""},"",{"$f":"IF(B1118=\"\",\"\",IF(ISERROR(MATCH($J1118,SorP!$B$1:$B$5661,0)),\"\",INDIRECT(\"'SorP'!$A$\"&MATCH($J1118,SorP!$B$1:$B$5661,0))))","v":""},null,{"$f":"IF(C1118=\"\",NA(),MATCH($B1118&$C1118,'Smelter Look-up'!$J:$J,0))","v":{"$error":"#N/A"}},null,0,null,null,null,""]
[null,{"$f":"IF(LEN(A1119)=0,\"\",INDEX('Smelter Look-up'!$A:$A,MATCH($A1119,'Smelter Look-up'!$E:$E,0)))","v":""},{"$f":"IF(LEN(A1119)=0,\"\",INDEX('Smelter Look-up'!$C:$C,MATCH($A1119,'Smelter Look-up'!$E:$E,0)))","v":""},null,{"$f":"IF(ISERROR($V1119),\"\",OFFSET('Smelter Look-up'!$D$4,$V1119-4,0)&\"\")","v":""},{"$f":"IF(ISERROR($V1119),\"\",OFFSET('Smelter Look-up'!$E$4,$V1119-4,0))","v":""},{"$f":"IF(C1119=$X$4,\"Enter smelter details\",IF(ISERROR($V1119),\"\",OFFSET('Smelter Look-up'!$F$4,$V1119-4,0)))","v":""},{"$f":"IF(ISERROR($V1119),\"\",OFFSET('Smelter Look-up'!$G$4,$V1119-4,0))","v":""},{"$f":"IF(ISERROR($V1119),\"\",OFFSET('Smelter Look-up'!$H$4,$V1119-4,0))","v":""},{"$f":"IF(ISERROR($V1119),\"\",OFFSET('Smelter Look-up'!$I$4,$V1119-4,0))","v":""},{"$nulls":7},{"$f":"IF(ISERROR($V1119),\"\",OFFSET('Smelter Look-up'!$C$4,$V1119-4,0)&\"\")","v":""},"",{"$f":"IF(B1119=\"\",\"\",IF(ISERROR(MATCH($J1119,SorP!$B$1:$B$5661,0)),\"\",INDIRECT(\"'SorP'!$A$\"&MATCH($J1119,SorP!$B$1:$B$5661,0))))","v":""},null,{"$f":"IF(C1119=\"\",NA(),MATCH($B1119&$C1119,'Smelter Look-up'!$J:$J,0))","v":{"$error":"#N/A"}},null,0,null,null,null,""]
[null,{"$f":"IF(LEN(A1120)=0,\"\",INDEX('Smelter Look-up'!$A:$A,MATCH($A1120,'Smelter Look-up'!$E:$E,0)))","v":""},{"$f":"IF(LEN(A1120)=0,\"\",INDEX('Smelter Look-up'!$C:$C,MATCH($A1120,'Smelter Look-up'!$E:$E,0)))","v":""},null,{"$f":"IF(ISERROR($V1120),\"\",OFFSET('Smelter Look-up'!$D$4,$V1120-4,0)&\"\")","v":""},{"$f":"IF(ISERROR($V1120),\"\",OFFSET('Smelter Look-up'!$E$4,$V1120-4,0))","v":""},{"$f":"IF(C1120=$X$4,\"Enter smelter details\",IF(ISERROR($V1120),\"\",OFFSET('Smelter Look-up'!$F$4,$V1120-4,0)))","v":""},{"$f":"IF(ISERROR($V1120),\"\",OFFSET('Smelter Look-up'!$G$4,$V1120-4,0))","v":""},{"$f":"IF(ISERROR($V1120),\"\",OFFSET('Smelter Look-up'!$H$4,$V1120-4,0))","v":""},{"$f":"IF(ISERROR($V1120),\"\",OFFSET('Smelter Look-up'!$I$4,$V1120-4,0))","v":""},{"$nulls":7},{"$f":"IF(ISERROR($V1120),\"\",OFFSET('Smelter Look-up'!$C$4,$V1120-4,0)&\"\")","v":""},"",{"$f":"IF(B1120=\"\",\"\",IF(ISERROR(MATCH($J1120,SorP!$B$1:$B$5661,0)),\"\",INDIRECT(\"'SorP'!$A$\"&MATCH($J1120,SorP!$B$1:$B$5661,0))))","v":""},null,{"$f":"IF(C1120=\"\",NA(),MATCH($B1120&$C1120,'Smelter Look-up'!$J:$J,0))","v":{"$error":"#N/A"}},null,0,null,null,null,""]
[null,{"$f":"IF(LEN(A1121)=0,\"\",INDEX('Smelter Look-up'!$A:$A,MATCH($A1121,'Smelter Look-up'!$E:$E,0)))","v":""},{"$f":"IF(LEN(A1121)=0,\"\",INDEX('Smelter Look-up'!$C:$C,MATCH($A1121,'Smelter Look-up'!$E:$E,0)))","v":""},null,{"$f":"IF(ISERROR($V1121),\"\",OFFSET('Smelter Look-up'!$D$4,$V1121-4,0)&\"\")","v":""},{"$f":"IF(ISERROR($V1121),\"\",OFFSET('Smelter Look-up'!$E$4,$V1121-4,0))","v":""},{"$f":"IF(C1121=$X$4,\"Enter smelter details\",IF(ISERROR($V1121),\"\",OFFSET('Smelter Look-up'!$F$4,$V1121-4,0)))","v":""},{"$f":"IF(ISERROR($V1121),\"\",OFFSET('Smelter Look-up'!$G$4,$V1121-4,0))","v":""},{"$f":"IF(ISERROR($V1121),\"\",OFFSET('Smelter Look-up'!$H$4,$V1121-4,0))","v":""},{"$f":"IF(ISERROR($V1121),\"\",OFFSET('Smelter Look-up'!$I$4,$V1121-4,0))","v":""},{"$nulls":7},{"$f":"IF(ISERROR($V1121),\"\",OFFSET('Smelter Look-up'!$C$4,$V1121-4,0)&\"\")","v":""},"",{"$f":"IF(B1121=\"\",\"\",IF(ISERROR(MATCH($J1121,SorP!$B$1:$B$5661,0)),\"\",INDIRECT(\"'SorP'!$A$\"&MATCH($J1121,SorP!$B$1:$B$5661,0))))","v":""},null,{"$f":"IF(C1121=\"\",NA(),MATCH($B1121&$C1121,'Smelter Look-up'!$J:$J,0))","v":{"$error":"#N/A"}},null,0,null,null,null,""]
[null,{"$f":"IF(LEN(A1122)=0,\"\",INDEX('Smelter Look-up'!$A:$A,MATCH($A1122,'Smelter Look-up'!$E:$E,0)))","v":""},{"$f":"IF(LEN(A1122)=0,\"\",INDEX('Smelter Look-up'!$C:$C,MATCH($A1122,'Smelter Look-up'!$E:$E,0)))","v":""},null,{"$f":"IF(ISERROR($V1122),\"\",OFFSET('Smelter Look-up'!$D$4,$V1122-4,0)&\"\")","v":""},{"$f":"IF(ISERROR($V1122),\"\",OFFSET('Smelter Look-up'!$E$4,$V1122-4,0))","v":""},{"$f":"IF(C1122=$X$4,\"Enter smelter details\",IF(ISERROR($V1122),\"\",OFFSET('Smelter Look-up'!$F$4,$V1122-4,0)))","v":""},{"$f":"IF(ISERROR($V1122),\"\",OFFSET('Smelter Look-up'!$G$4,$V1122-4,0))","v":""},{"$f":"IF(ISERROR($V1122),\"\",OFFSET('Smelter Look-up'!$H$4,$V1122-4,0))","v":""},{"$f":"IF(ISERROR($V1122),\"\",OFFSET('Smelter Look-up'!$I$4,$V1122-4,0))","v":""},{"$nulls":7},{"$f":"IF(ISERROR($V1122),\"\",OFFSET('Smelter Look-up'!$C$4,$V1122-4,0)&\"\")","v":""},"",{"$f":"IF(B1122=\"\",\"\",IF(ISERROR(MATCH($J1122,SorP!$B$1:$B$5661,0)),\"\",INDIRECT(\"'SorP'!$A$\"&MATCH($J1122,SorP!$B$1:$B$5661,0))))","v":""},null,{"$f":"IF(C1122=\"\",NA(),MATCH($B1122&$C1122,'Smelter Look-up'!$J:$J,0))","v":{"$error":"#N/A"}},null,0,null,null,null,""]
[null,{"$f":"IF(LEN(A1123)=0,\"\",INDEX('Smelter Look-up'!$A:$A,MATCH($A1123,'Smelter Look-up'!$E:$E,0)))","v":""},{"$f":"IF(LEN(A1123)=0,\"\",INDEX('Smelter Look-up'!$C:$C,MATCH($A1123,'Smelter Look-up'!$E:$E,0)))","v":""},null,{"$f":"IF(ISERROR($V1123),\"\",OFFSET('Smelter Look-up'!$D$4,$V1123-4,0)&\"\")","v":""},{"$f":"IF(ISERROR($V1123),\"\",OFFSET('Smelter Look-up'!$E$4,$V1123-4,0))","v":""},{"$f":"IF(C1123=$X$4,\"Enter smelter details\",IF(ISERROR($V1123),\"\",OFFSET('Smelter Look-up'!$F$4,$V1123-4,0)))","v":""},{"$f":"IF(ISERROR($V1123),\"\",OFFSET('Smelter Look-up'!$G$4,$V1123-4,0))","v":""},{"$f":"IF(ISERROR($V1123),\"\",OFFSET('Smelter Look-up'!$H$4,$V1123-4,0))","v":""},{"$f":"IF(ISERROR($V1123),\"\",OFFSET('Smelter Look-up'!$I$4,$V1123-4,0))","v":""},{"$nulls":7},{"$f":"IF(ISERROR($V1123),\"\",OFFSET('Smelter Look-up'!$C$4,$V1123-4,0)&\"\")","v":""},"",{"$f":"IF(B1123=\"\",\"\",IF(ISERROR(MATCH($J1123,SorP!$B$1:$B$5661,0)),\"\",INDIRECT(\"'SorP'!$A$\"&MATCH($J1123,SorP!$B$1:$B$5661,0))))","v":""},null,{"$f":"IF(C1123=\"\",NA(),MATCH($B1123&$C1123,'Smelter Look-up'!$J:$J,0))","v":{"$error":"#N/A"}},null,0,null,null,null,""]
[null,{"$f":"IF(LEN(A1124)=0,\"\",INDEX('Smelter Look-up'!$A:$A,MATCH($A1124,'Smelter Look-up'!$E:$E,0)))","v":""},{"$f":"IF(LEN(A1124)=0,\"\",INDEX('Smelter Look-up'!$C:$C,MATCH($A1124,'Smelter Look-up'!$E:$E,0)))","v":""},null,{"$f":"IF(ISERROR($V1124),\"\",OFFSET('Smelter Look-up'!$D$4,$V1124-4,0)&\"\")","v":""},{"$f":"IF(ISERROR($V1124),\"\",OFFSET('Smelter Look-up'!$E$4,$V1124-4,0))","v":""},{"$f":"IF(C1124=$X$4,\"Enter smelter details\",IF(ISERROR($V1124),\"\",OFFSET('Smelter Look-up'!$F$4,$V1124-4,0)))","v":""},{"$f":"IF(ISERROR($V1124),\"\",OFFSET('Smelter Look-up'!$G$4,$V1124-4,0))","v":""},{"$f":"IF(ISERROR($V1124),\"\",OFFSET('Smelter Look-up'!$H$4,$V1124-4,0))","v":""},{"$f":"IF(ISERROR($V1124),\"\",OFFSET('Smelter Look-up'!$I$4,$V1124-4,0))","v":""},{"$nulls":7},{"$f":"IF(ISERROR($V1124),\"\",OFFSET('Smelter Look-up'!$C$4,$V1124-4,0)&\"\")","v":""},"",{"$f":"IF(B1124=\"\",\"\",IF(ISERROR(MATCH($J1124,SorP!$B$1:$B$5661,0)),\"\",INDIRECT(\"'SorP'!$A$\"&MATCH($J1124,SorP!$B$1:$B$5661,0))))","v":""},null,{"$f":"IF(C1124=\"\",NA(),MATCH($B1124&$C1124,'Smelter Look-up'!$J:$J,0))","v":{"$error":"#N/A"}},null,0,null,null,null,""]
[null,{"$f":"IF(LEN(A1125)=0,\"\",INDEX('Smelter Look-up'!$A:$A,MATCH($A1125,'Smelter Look-up'!$E:$E,0)))","v":""},{"$f":"IF(LEN(A1125)=0,\"\",INDEX('Smelter Look-up'!$C:$C,MATCH($A1125,'Smelter Look-up'!$E:$E,0)))","v":""},null,{"$f":"IF(ISERROR($V1125),\"\",OFFSET('Smelter Look-up'!$D$4,$V1125-4,0)&\"\")","v":""},{"$f":"IF(ISERROR($V1125),\"\",OFFSET('Smelter Look-up'!$E$4,$V1125-4,0))","v":""},{"$f":"IF(C1125=$X$4,\"Enter smelter details\",IF(ISERROR($V1125),\"\",OFFSET('Smelter Look-up'!$F$4,$V1125-4,0)))","v":""},{"$f":"IF(ISERROR($V1125),\"\",OFFSET('Smelter Look-up'!$G$4,$V1125-4,0))","v":""},{"$f":"IF(ISERROR($V1125),\"\",OFFSET('Smelter Look-up'!$H$4,$V1125-4,0))","v":""},{"$f":"IF(ISERROR($V1125),\"\",OFFSET('Smelter Look-up'!$I$4,$V1125-4,0))","v":""},{"$nulls":7},{"$f":"IF(ISERROR($V1125),\"\",OFFSET('Smelter Look-up'!$C$4,$V1125-4,0)&\"\")","v":""},"",{"$f":"IF(B1125=\"\",\"\",IF(ISERROR(MATCH($J1125,SorP!$B$1:$B$5661,0)),\"\",INDIRECT(\"'SorP'!$A$\"&MATCH($J1125,SorP!$B$1:$B$5661,0))))","v":""},null,{"$f":"IF(C1125=\"\",NA(),MATCH($B1125&$C1125,'Smelter Look-up'!$J:$J,0))","v":{"$error":"#N/A"}},null,0,null,null,null,""]
[null,{"$f":"IF(LEN(A1126)=0,\"\",INDEX('Smelter Look-up'!$A:$A,MATCH($A1126,'Smelter Look-up'!$E:$E,0)))","v":""},{"$f":"IF(LEN(A1126)=0,\"\",INDEX('Smelter Look-up'!$C:$C,MATCH($A1126,'Smelter Look-up'!$E:$E,0)))","v":""},null,{"$f":"IF(ISERROR($V1126),\"\",OFFSET('Smelter Look-up'!$D$4,$V1126-4,0)&\"\")","v":""},{"$f":"IF(ISERROR($V1126),\"\",OFFSET('Smelter Look-up'!$E$4,$V1126-4,0))","v":""},{"$f":"IF(C1126=$X$4,\"Enter smelter details\",IF(ISERROR($V1126),\"\",OFFSET('Smelter Look-up'!$F$4,$V1126-4,0)))","v":""},{"$f":"IF(ISERROR($V1126),\"\",OFFSET('Smelter Look-up'!$G$4,$V1126-4,0))","v":""},{"$f":"IF(ISERROR($V1126),\"\",OFFSET('Smelter Look-up'!$H$4,$V1126-4,0))","v":""},{"$f":"IF(ISERROR($V1126),\"\",OFFSET('Smelter Look-up'!$I$4,$V1126-4,0))","v":""},{"$nulls":7},{"$f":"IF(ISERROR($V1126),\"\",OFFSET('Smelter Look-up'!$C$4,$V1126-4,0)&\"\")","v":""},"",{"$f":"IF(B1126=\"\",\"\",IF(ISERROR(MATCH($J1126,SorP!$B$1:$B$5661,0)),\"\",INDIRECT(\"'SorP'!$A$\"&MATCH($J1126,SorP!$B$1:$B$5661,0))))","v":""},null,{"$f":"IF(C1126=\"\",NA(),MATCH($B1126&$C1126,'Smelter Look-up'!$J:$J,0))","v":{"$error":"#N/A"}},null,0,null,null,null,""]
[null,{"$f":"IF(LEN(A1127)=0,\"\",INDEX('Smelter Look-up'!$A:$A,MATCH($A1127,'Smelter Look-up'!$E:$E,0)))","v":""},{"$f":"IF(LEN(A1127)=0,\"\",INDEX('Smelter Look-up'!$C:$C,MATCH($A1127,'Smelter Look-up'!$E:$E,0)))","v":""},null,{"$f":"IF(ISERROR($V1127),\"\",OFFSET('Smelter Look-up'!$D$4,$V1127-4,0)&\"\")","v":""},{"$f":"IF(ISERROR($V1127),\"\",OFFSET('Smelter Look-up'!$E$4,$V1127-4,0))","v":""},{"$f":"IF(C1127=$X$4,\"Enter smelter details\",IF(ISERROR($V1127),\"\",OFFSET('Smelter Look-up'!$F$4,$V1127-4,0)))","v":""},{"$f":"IF(ISERROR($V1127),\"\",OFFSET('Smelter Look-up'!$G$4,$V1127-4,0))","v":""},{"$f":"IF(ISERROR($V1127),\"\",OFFSET('Smelter Look-up'!$H$4,$V1127-4,0))","v":""},{"$f":"IF(ISERROR($V1127),\"\",OFFSET('Smelter Look-up'!$I$4,$V1127-4,0))","v":""},{"$nulls":7},{"$f":"IF(ISERROR($V1127),\"\",OFFSET('Smelter Look-up'!$C$4,$V1127-4,0)&\"\")","v":""},"",{"$f":"IF(B1127=\"\",\"\",IF(ISERROR(MATCH($J1127,SorP!$B$1:$B$5661,0)),\"\",INDIRECT(\"'SorP'!$A$\"&MATCH($J1127,SorP!$B$1:$B$5661,0))))","v":""},null,{"$f":"IF(C1127=\"\",NA(),MATCH($B1127&$C1127,'Smelter Look-up'!$J:$J,0))","v":{"$error":"#N/A"}},null,0,null,null,null,""]
[null,{"$f":"IF(LEN(A1128)=0,\"\",INDEX('Smelter Look-up'!$A:$A,MATCH($A1128,'Smelter Look-up'!$E:$E,0)))","v":""},{"$f":"IF(LEN(A1128)=0,\"\",INDEX('Smelter Look-up'!$C:$C,MATCH($A1128,'Smelter Look-up'!$E:$E,0)))","v":""},null,{"$f":"IF(ISERROR($V1128),\"\",OFFSET('Smelter Look-up'!$D$4,$V1128-4,0)&\"\")","v":""},{"$f":"IF(ISERROR($V1128),\"\",OFFSET('Smelter Look-up'!$E$4,$V1128-4,0))","v":""},{"$f":"IF(C1128=$X$4,\"Enter smelter details\",IF(ISERROR($V1128),\"\",OFFSET('Smelter Look-up'!$F$4,$V1128-4,0)))","v":""},{"$f":"IF(ISERROR($V1128),\"\",OFFSET('Smelter Look-up'!$G$4,$V1128-4,0))","v":""},{"$f":"IF(ISERROR($V1128),\"\",OFFSET('Smelter Look-up'!$H$4,$V1128-4,0))","v":""},{"$f":"IF(ISERROR($V1128),\"\",OFFSET('Smelter Look-up'!$I$4,$V1128-4,0))","v":""},{"$nulls":7},{"$f":"IF(ISERROR($V1128),\"\",OFFSET('Smelter Look-up'!$C$4,$V1128-4,0)&\"\")","v":""},"",{"$f":"IF(B1128=\"\",\"\",IF(ISERROR(MATCH($J1128,SorP!$B$1:$B$5661,0)),\"\",INDIRECT(\"'SorP'!$A$\"&MATCH($J1128,SorP!$B$1:$B$5661,0))))","v":""},null,{"$f":"IF(C1128=\"\",NA(),MATCH($B1128&$C1128,'Smelter Look-up'!$J:$J,0))","v":{"$error":"#N/A"}},null,0,null,null,null,""]
[null,{"$f":"IF(LEN(A1129)=0,\"\",INDEX('Smelter Look-up'!$A:$A,MATCH($A1129,'Smelter Look-up'!$E:$E,0)))","v":""},{"$f":"IF(LEN(A1129)=0,\"\",INDEX('Smelter Look-up'!$C:$C,MATCH($A1129,'Smelter Look-up'!$E:$E,0)))","v":""},null,{"$f":"IF(ISERROR($V1129),\"\",OFFSET('Smelter Look-up'!$D$4,$V1129-4,0)&\"\")","v":""},{"$f":"IF(ISERROR($V1129),\"\",OFFSET('Smelter Look-up'!$E$4,$V1129-4,0))","v":""},{"$f":"IF(C1129=$X$4,\"Enter smelter details\",IF(ISERROR($V1129),\"\",OFFSET('Smelter Look-up'!$F$4,$V1129-4,0)))","v":""},{"$f":"IF(ISERROR($V1129),\"\",OFFSET('Smelter Look-up'!$G$4,$V1129-4,0))","v":""},{"$f":"IF(ISERROR($V1129),\"\",OFFSET('Smelter Look-up'!$H$4,$V1129-4,0))","v":""},{"$f":"IF(ISERROR($V1129),\"\",OFFSET('Smelter Look-up'!$I$4,$V1129-4,0))","v":""},{"$nulls":7},{"$f":"IF(ISERROR($V1129),\"\",OFFSET('Smelter Look-up'!$C$4,$V1129-4,0)&\"\")","v":""},"",{"$f":"IF(B1129=\"\",\"\",IF(ISERROR(MATCH($J1129,SorP!$B$1:$B$5661,0)),\"\",INDIRECT(\"'SorP'!$A$\"&MATCH($J1129,SorP!$B$1:$B$5661,0))))","v":""},null,{"$f":"IF(C1129=\"\",NA(),MATCH($B1129&$C1129,'Smelter Look-up'!$J:$J,0))","v":{"$error":"#N/A"}},null,0,null,null,null,""]
[null,{"$f":"IF(LEN(A1130)=0,\"\",INDEX('Smelter Look-up'!$A:$A,MATCH($A1130,'Smelter Look-up'!$E:$E,0)))","v":""},{"$f":"IF(LEN(A1130)=0,\"\",INDEX('Smelter Look-up'!$C:$C,MATCH($A1130,'Smelter Look-up'!$E:$E,0)))","v":""},null,{"$f":"IF(ISERROR($V1130),\"\",OFFSET('Smelter Look-up'!$D$4,$V1130-4,0)&\"\")","v":""},{"$f":"IF(ISERROR($V1130),\"\",OFFSET('Smelter Look-up'!$E$4,$V1130-4,0))","v":""},{"$f":"IF(C1130=$X$4,\"Enter smelter details\",IF(ISERROR($V1130),\"\",OFFSET('Smelter Look-up'!$F$4,$V1130-4,0)))","v":""},{"$f":"IF(ISERROR($V1130),\"\",OFFSET('Smelter Look-up'!$G$4,$V1130-4,0))","v":""},{"$f":"IF(ISERROR($V1130),\"\",OFFSET('Smelter Look-up'!$H$4,$V1130-4,0))","v":""},{"$f":"IF(ISERROR($V1130),\"\",OFFSET('Smelter Look-up'!$I$4,$V1130-4,0))","v":""},{"$nulls":7},{"$f":"IF(ISERROR($V1130),\"\",OFFSET('Smelter Look-up'!$C$4,$V1130-4,0)&\"\")","v":""},"",{"$f":"IF(B1130=\"\",\"\",IF(ISERROR(MATCH($J1130,SorP!$B$1:$B$5661,0)),\"\",INDIRECT(\"'SorP'!$A$\"&MATCH($J1130,SorP!$B$1:$B$5661,0))))","v":""},null,{"$f":"IF(C1130=\"\",NA(),MATCH($B1130&$C1130,'Smelter Look-up'!$J:$J,0))","v":{"$error":"#N/A"}},null,0,null,null,null,""]
[null,{"$f":"IF(LEN(A1131)=0,\"\",INDEX('Smelter Look-up'!$A:$A,MATCH($A1131,'Smelter Look-up'!$E:$E,0)))","v":""},{"$f":"IF(LEN(A1131)=0,\"\",INDEX('Smelter Look-up'!$C:$C,MATCH($A1131,'Smelter Look-up'!$E:$E,0)))","v":""},null,{"$f":"IF(ISERROR($V1131),\"\",OFFSET('Smelter Look-up'!$D$4,$V1131-4,0)&\"\")","v":""},{"$f":"IF(ISERROR($V1131),\"\",OFFSET('Smelter Look-up'!$E$4,$V1131-4,0))","v":""},{"$f":"IF(C1131=$X$4,\"Enter smelter details\",IF(ISERROR($V1131),\"\",OFFSET('Smelter Look-up'!$F$4,$V1131-4,0)))","v":""},{"$f":"IF(ISERROR($V1131),\"\",OFFSET('Smelter Look-up'!$G$4,$V1131-4,0))","v":""},{"$f":"IF(ISERROR($V1131),\"\",OFFSET('Smelter Look-up'!$H$4,$V1131-4,0))","v":""},{"$f":"IF(ISERROR($V1131),\"\",OFFSET('Smelter Look-up'!$I$4,$V1131-4,0))","v":""},{"$nulls":7},{"$f":"IF(ISERROR($V1131),\"\",OFFSET('Smelter Look-up'!$C$4,$V1131-4,0)&\"\")","v":""},"",{"$f":"IF(B1131=\"\",\"\",IF(ISERROR(MATCH($J1131,SorP!$B$1:$B$5661,0)),\"\",INDIRECT(\"'SorP'!$A$\"&MATCH($J1131,SorP!$B$1:$B$5661,0))))","v":""},null,{"$f":"IF(C1131=\"\",NA(),MATCH($B1131&$C1131,'Smelter Look-up'!$J:$J,0))","v":{"$error":"#N/A"}},null,0,null,null,null,""]
[null,{"$f":"IF(LEN(A1132)=0,\"\",INDEX('Smelter Look-up'!$A:$A,MATCH($A1132,'Smelter Look-up'!$E:$E,0)))","v":""},{"$f":"IF(LEN(A1132)=0,\"\",INDEX('Smelter Look-up'!$C:$C,MATCH($A1132,'Smelter Look-up'!$E:$E,0)))","v":""},null,{"$f":"IF(ISERROR($V1132),\"\",OFFSET('Smelter Look-up'!$D$4,$V1132-4,0)&\"\")","v":""},{"$f":"IF(ISERROR($V1132),\"\",OFFSET('Smelter Look-up'!$E$4,$V1132-4,0))","v":""},{"$f":"IF(C1132=$X$4,\"Enter smelter details\",IF(ISERROR($V1132),\"\",OFFSET('Smelter Look-up'!$F$4,$V1132-4,0)))","v":""},{"$f":"IF(ISERROR($V1132),\"\",OFFSET('Smelter Look-up'!$G$4,$V1132-4,0))","v":""},{"$f":"IF(ISERROR($V1132),\"\",OFFSET('Smelter Look-up'!$H$4,$V1132-4,0))","v":""},{"$f":"IF(ISERROR($V1132),\"\",OFFSET('Smelter Look-up'!$I$4,$V1132-4,0))","v":""},{"$nulls":7},{"$f":"IF(ISERROR($V1132),\"\",OFFSET('Smelter Look-up'!$C$4,$V1132-4,0)&\"\")","v":""},"",{"$f":"IF(B1132=\"\",\"\",IF(ISERROR(MATCH($J1132,SorP!$B$1:$B$5661,0)),\"\",INDIRECT(\"'SorP'!$A$\"&MATCH($J1132,SorP!$B$1:$B$5661,0))))","v":""},null,{"$f":"IF(C1132=\"\",NA(),MATCH($B1132&$C1132,'Smelter Look-up'!$J:$J,0))","v":{"$error":"#N/A"}},null,0,null,null,null,""]
[null,{"$f":"IF(LEN(A1133)=0,\"\",INDEX('Smelter Look-up'!$A:$A,MATCH($A1133,'Smelter Look-up'!$E:$E,0)))","v":""},{"$f":"IF(LEN(A1133)=0,\"\",INDEX('Smelter Look-up'!$C:$C,MATCH($A1133,'Smelter Look-up'!$E:$E,0)))","v":""},null,{"$f":"IF(ISERROR($V1133),\"\",OFFSET('Smelter Look-up'!$D$4,$V1133-4,0)&\"\")","v":""},{"$f":"IF(ISERROR($V1133),\"\",OFFSET('Smelter Look-up'!$E$4,$V1133-4,0))","v":""},{"$f":"IF(C1133=$X$4,\"Enter smelter details\",IF(ISERROR($V1133),\"\",OFFSET('Smelter Look-up'!$F$4,$V1133-4,0)))","v":""},{"$f":"IF(ISERROR($V1133),\"\",OFFSET('Smelter Look-up'!$G$4,$V1133-4,0))","v":""},{"$f":"IF(ISERROR($V1133),\"\",OFFSET('Smelter Look-up'!$H$4,$V1133-4,0))","v":""},{"$f":"IF(ISERROR($V1133),\"\",OFFSET('Smelter Look-up'!$I$4,$V1133-4,0))","v":""},{"$nulls":7},{"$f":"IF(ISERROR($V1133),\"\",OFFSET('Smelter Look-up'!$C$4,$V1133-4,0)&\"\")","v":""},"",{"$f":"IF(B1133=\"\",\"\",IF(ISERROR(MATCH($J1133,SorP!$B$1:$B$5661,0)),\"\",INDIRECT(\"'SorP'!$A$\"&MATCH($J1133,SorP!$B$1:$B$5661,0))))","v":""},null,{"$f":"IF(C1133=\"\",NA(),MATCH($B1133&$C1133,'Smelter Look-up'!$J:$J,0))","v":{"$error":"#N/A"}},null,0,null,null,null,""]
[null,{"$f":"IF(LEN(A1134)=0,\"\",INDEX('Smelter Look-up'!$A:$A,MATCH($A1134,'Smelter Look-up'!$E:$E,0)))","v":""},{"$f":"IF(LEN(A1134)=0,\"\",INDEX('Smelter Look-up'!$C:$C,MATCH($A1134,'Smelter Look-up'!$E:$E,0)))","v":""},null,{"$f":"IF(ISERROR($V1134),\"\",OFFSET('Smelter Look-up'!$D$4,$V1134-4,0)&\"\")","v":""},{"$f":"IF(ISERROR($V1134),\"\",OFFSET('Smelter Look-up'!$E$4,$V1134-4,0))","v":""},{"$f":"IF(C1134=$X$4,\"Enter smelter details\",IF(ISERROR($V1134),\"\",OFFSET('Smelter Look-up'!$F$4,$V1134-4,0)))","v":""},{"$f":"IF(ISERROR($V1134),\"\",OFFSET('Smelter Look-up'!$G$4,$V1134-4,0))","v":""},{"$f":"IF(ISERROR($V1134),\"\",OFFSET('Smelter Look-up'!$H$4,$V1134-4,0))","v":""},{"$f":"IF(ISERROR($V1134),\"\",OFFSET('Smelter Look-up'!$I$4,$V1134-4,0))","v":""},{"$nulls":7},{"$f":"IF(ISERROR($V1134),\"\",OFFSET('Smelter Look-up'!$C$4,$V1134-4,0)&\"\")","v":""},"",{"$f":"IF(B1134=\"\",\"\",IF(ISERROR(MATCH($J1134,SorP!$B$1:$B$5661,0)),\"\",INDIRECT(\"'SorP'!$A$\"&MATCH($J1134,SorP!$B$1:$B$5661,0))))","v":""},null,{"$f":"IF(C1134=\"\",NA(),MATCH($B1134&$C1134,'Smelter Look-up'!$J:$J,0))","v":{"$error":"#N/A"}},null,0,null,null,null,""]
[null,{"$f":"IF(LEN(A1135)=0,\"\",INDEX('Smelter Look-up'!$A:$A,MATCH($A1135,'Smelter Look-up'!$E:$E,0)))","v":""},{"$f":"IF(LEN(A1135)=0,\"\",INDEX('Smelter Look-up'!$C:$C,MATCH($A1135,'Smelter Look-up'!$E:$E,0)))","v":""},null,{"$f":"IF(ISERROR($V1135),\"\",OFFSET('Smelter Look-up'!$D$4,$V1135-4,0)&\"\")","v":""},{"$f":"IF(ISERROR($V1135),\"\",OFFSET('Smelter Look-up'!$E$4,$V1135-4,0))","v":""},{"$f":"IF(C1135=$X$4,\"Enter smelter details\",IF(ISERROR($V1135),\"\",OFFSET('Smelter Look-up'!$F$4,$V1135-4,0)))","v":""},{"$f":"IF(ISERROR($V1135),\"\",OFFSET('Smelter Look-up'!$G$4,$V1135-4,0))","v":""},{"$f":"IF(ISERROR($V1135),\"\",OFFSET('Smelter Look-up'!$H$4,$V1135-4,0))","v":""},{"$f":"IF(ISERROR($V1135),\"\",OFFSET('Smelter Look-up'!$I$4,$V1135-4,0))","v":""},{"$nulls":7},{"$f":"IF(ISERROR($V1135),\"\",OFFSET('Smelter Look-up'!$C$4,$V1135-4,0)&\"\")","v":""},"",{"$f":"IF(B1135=\"\",\"\",IF(ISERROR(MATCH($J1135,SorP!$B$1:$B$5661,0)),\"\",INDIRECT(\"'SorP'!$A$\"&MATCH($J1135,SorP!$B$1:$B$5661,0))))","v":""},null,{"$f":"IF(C1135=\"\",NA(),MATCH($B1135&$C1135,'Smelter Look-up'!$J:$J,0))","v":{"$error":"#N/A"}},null,0,null,null,null,""]
[null,{"$f":"IF(LEN(A1136)=0,\"\",INDEX('Smelter Look-up'!$A:$A,MATCH($A1136,'Smelter Look-up'!$E:$E,0)))","v":""},{"$f":"IF(LEN(A1136)=0,\"\",INDEX('Smelter Look-up'!$C:$C,MATCH($A1136,'Smelter Look-up'!$E:$E,0)))","v":""},null,{"$f":"IF(ISERROR($V1136),\"\",OFFSET('Smelter Look-up'!$D$4,$V1136-4,0)&\"\")","v":""},{"$f":"IF(ISERROR($V1136),\"\",OFFSET('Smelter Look-up'!$E$4,$V1136-4,0))","v":""},{"$f":"IF(C1136=$X$4,\"Enter smelter details\",IF(ISERROR($V1136),\"\",OFFSET('Smelter Look-up'!$F$4,$V1136-4,0)))","v":""},{"$f":"IF(ISERROR($V1136),\"\",OFFSET('Smelter Look-up'!$G$4,$V1136-4,0))","v":""},{"$f":"IF(ISERROR($V1136),\"\",OFFSET('Smelter Look-up'!$H$4,$V1136-4,0))","v":""},{"$f":"IF(ISERROR($V1136),\"\",OFFSET('Smelter Look-up'!$I$4,$V1136-4,0))","v":""},{"$nulls":7},{"$f":"IF(ISERROR($V1136),\"\",OFFSET('Smelter Look-up'!$C$4,$V1136-4,0)&\"\")","v":""},"",{"$f":"IF(B1136=\"\",\"\",IF(ISERROR(MATCH($J1136,SorP!$B$1:$B$5661,0)),\"\",INDIRECT(\"'SorP'!$A$\"&MATCH($J1136,SorP!$B$1:$B$5661,0))))","v":""},null,{"$f":"IF(C1136=\"\",NA(),MATCH($B1136&$C1136,'Smelter Look-up'!$J:$J,0))","v":{"$error":"#N/A"}},null,0,null,null,null,""]
[null,{"$f":"IF(LEN(A1137)=0,\"\",INDEX('Smelter Look-up'!$A:$A,MATCH($A1137,'Smelter Look-up'!$E:$E,0)))","v":""},{"$f":"IF(LEN(A1137)=0,\"\",INDEX('Smelter Look-up'!$C:$C,MATCH($A1137,'Smelter Look-up'!$E:$E,0)))","v":""},null,{"$f":"IF(ISERROR($V1137),\"\",OFFSET('Smelter Look-up'!$D$4,$V1137-4,0)&\"\")","v":""},{"$f":"IF(ISERROR($V1137),\"\",OFFSET('Smelter Look-up'!$E$4,$V1137-4,0))","v":""},{"$f":"IF(C1137=$X$4,\"Enter smelter details\",IF(ISERROR($V1137),\"\",OFFSET('Smelter Look-up'!$F$4,$V1137-4,0)))","v":""},{"$f":"IF(ISERROR($V1137),\"\",OFFSET('Smelter Look-up'!$G$4,$V1137-4,0))","v":""},{"$f":"IF(ISERROR($V1137),\"\",OFFSET('Smelter Look-up'!$H$4,$V1137-4,0))","v":""},{"$f":"IF(ISERROR($V1137),\"\",OFFSET('Smelter Look-up'!$I$4,$V1137-4,0))","v":""},{"$nulls":7},{"$f":"IF(ISERROR($V1137),\"\",OFFSET('Smelter Look-up'!$C$4,$V1137-4,0)&\"\")","v":""},"",{"$f":"IF(B1137=\"\",\"\",IF(ISERROR(MATCH($J1137,SorP!$B$1:$B$5661,0)),\"\",INDIRECT(\"'SorP'!$A$\"&MATCH($J1137,SorP!$B$1:$B$5661,0))))","v":""},null,{"$f":"IF(C1137=\"\",NA(),MATCH($B1137&$C1137,'Smelter Look-up'!$J:$J,0))","v":{"$error":"#N/A"}},null,0,null,null,null,""]
[null,{"$f":"IF(LEN(A1138)=0,\"\",INDEX('Smelter Look-up'!$A:$A,MATCH($A1138,'Smelter Look-up'!$E:$E,0)))","v":""},{"$f":"IF(LEN(A1138)=0,\"\",INDEX('Smelter Look-up'!$C:$C,MATCH($A1138,'Smelter Look-up'!$E:$E,0)))","v":""},null,{"$f":"IF(ISERROR($V1138),\"\",OFFSET('Smelter Look-up'!$D$4,$V1138-4,0)&\"\")","v":""},{"$f":"IF(ISERROR($V1138),\"\",OFFSET('Smelter Look-up'!$E$4,$V1138-4,0))","v":""},{"$f":"IF(C1138=$X$4,\"Enter smelter details\",IF(ISERROR($V1138),\"\",OFFSET('Smelter Look-up'!$F$4,$V1138-4,0)))","v":""},{"$f":"IF(ISERROR($V1138),\"\",OFFSET('Smelter Look-up'!$G$4,$V1138-4,0))","v":""},{"$f":"IF(ISERROR($V1138),\"\",OFFSET('Smelter Look-up'!$H$4,$V1138-4,0))","v":""},{"$f":"IF(ISERROR($V1138),\"\",OFFSET('Smelter Look-up'!$I$4,$V1138-4,0))","v":""},{"$nulls":7},{"$f":"IF(ISERROR($V1138),\"\",OFFSET('Smelter Look-up'!$C$4,$V1138-4,0)&\"\")","v":""},"",{"$f":"IF(B1138=\"\",\"\",IF(ISERROR(MATCH($J1138,SorP!$B$1:$B$5661,0)),\"\",INDIRECT(\"'SorP'!$A$\"&MATCH($J1138,SorP!$B$1:$B$5661,0))))","v":""},null,{"$f":"IF(C1138=\"\",NA(),MATCH($B1138&$C1138,'Smelter Look-up'!$J:$J,0))","v":{"$error":"#N/A"}},null,0,null,null,null,""]
[null,{"$f":"IF(LEN(A1139)=0,\"\",INDEX('Smelter Look-up'!$A:$A,MATCH($A1139,'Smelter Look-up'!$E:$E,0)))","v":""},{"$f":"IF(LEN(A1139)=0,\"\",INDEX('Smelter Look-up'!$C:$C,MATCH($A1139,'Smelter Look-up'!$E:$E,0)))","v":""},null,{"$f":"IF(ISERROR($V1139),\"\",OFFSET('Smelter Look-up'!$D$4,$V1139-4,0)&\"\")","v":""},{"$f":"IF(ISERROR($V1139),\"\",OFFSET('Smelter Look-up'!$E$4,$V1139-4,0))","v":""},{"$f":"IF(C1139=$X$4,\"Enter smelter details\",IF(ISERROR($V1139),\"\",OFFSET('Smelter Look-up'!$F$4,$V1139-4,0)))","v":""},{"$f":"IF(ISERROR($V1139),\"\",OFFSET('Smelter Look-up'!$G$4,$V1139-4,0))","v":""},{"$f":"IF(ISERROR($V1139),\"\",OFFSET('Smelter Look-up'!$H$4,$V1139-4,0))","v":""},{"$f":"IF(ISERROR($V1139),\"\",OFFSET('Smelter Look-up'!$I$4,$V1139-4,0))","v":""},{"$nulls":7},{"$f":"IF(ISERROR($V1139),\"\",OFFSET('Smelter Look-up'!$C$4,$V1139-4,0)&\"\")","v":""},"",{"$f":"IF(B1139=\"\",\"\",IF(ISERROR(MATCH($J1139,SorP!$B$1:$B$5661,0)),\"\",INDIRECT(\"'SorP'!$A$\"&MATCH($J1139,SorP!$B$1:$B$5661,0))))","v":""},null,{"$f":"IF(C1139=\"\",NA(),MATCH($B1139&$C1139,'Smelter Look-up'!$J:$J,0))","v":{"$error":"#N/A"}},null,0,null,null,null,""]
[null,{"$f":"IF(LEN(A1140)=0,\"\",INDEX('Smelter Look-up'!$A:$A,MATCH($A1140,'Smelter Look-up'!$E:$E,0)))","v":""},{"$f":"IF(LEN(A1140)=0,\"\",INDEX('Smelter Look-up'!$C:$C,MATCH($A1140,'Smelter Look-up'!$E:$E,0)))","v":""},null,{"$f":"IF(ISERROR($V1140),\"\",OFFSET('Smelter Look-up'!$D$4,$V1140-4,0)&\"\")","v":""},{"$f":"IF(ISERROR($V1140),\"\",OFFSET('Smelter Look-up'!$E$4,$V1140-4,0))","v":""},{"$f":"IF(C1140=$X$4,\"Enter smelter details\",IF(ISERROR($V1140),\"\",OFFSET('Smelter Look-up'!$F$4,$V1140-4,0)))","v":""},{"$f":"IF(ISERROR($V1140),\"\",OFFSET('Smelter Look-up'!$G$4,$V1140-4,0))","v":""},{"$f":"IF(ISERROR($V1140),\"\",OFFSET('Smelter Look-up'!$H$4,$V1140-4,0))","v":""},{"$f":"IF(ISERROR($V1140),\"\",OFFSET('Smelter Look-up'!$I$4,$V1140-4,0))","v":""},{"$nulls":7},{"$f":"IF(ISERROR($V1140),\"\",OFFSET('Smelter Look-up'!$C$4,$V1140-4,0)&\"\")","v":""},"",{"$f":"IF(B1140=\"\",\"\",IF(ISERROR(MATCH($J1140,SorP!$B$1:$B$5661,0)),\"\",INDIRECT(\"'SorP'!$A$\"&MATCH($J1140,SorP!$B$1:$B$5661,0))))","v":""},null,{"$f":"IF(C1140=\"\",NA(),MATCH($B1140&$C1140,'Smelter Look-up'!$J:$J,0))","v":{"$error":"#N/A"}},null,0,null,null,null,""]
[null,{"$f":"IF(LEN(A1141)=0,\"\",INDEX('Smelter Look-up'!$A:$A,MATCH($A1141,'Smelter Look-up'!$E:$E,0)))","v":""},{"$f":"IF(LEN(A1141)=0,\"\",INDEX('Smelter Look-up'!$C:$C,MATCH($A1141,'Smelter Look-up'!$E:$E,0)))","v":""},null,{"$f":"IF(ISERROR($V1141),\"\",OFFSET('Smelter Look-up'!$D$4,$V1141-4,0)&\"\")","v":""},{"$f":"IF(ISERROR($V1141),\"\",OFFSET('Smelter Look-up'!$E$4,$V1141-4,0))","v":""},{"$f":"IF(C1141=$X$4,\"Enter smelter details\",IF(ISERROR($V1141),\"\",OFFSET('Smelter Look-up'!$F$4,$V1141-4,0)))","v":""},{"$f":"IF(ISERROR($V1141),\"\",OFFSET('Smelter Look-up'!$G$4,$V1141-4,0))","v":""},{"$f":"IF(ISERROR($V1141),\"\",OFFSET('Smelter Look-up'!$H$4,$V1141-4,0))","v":""},{"$f":"IF(ISERROR($V1141),\"\",OFFSET('Smelter Look-up'!$I$4,$V1141-4,0))","v":""},{"$nulls":7},{"$f":"IF(ISERROR($V1141),\"\",OFFSET('Smelter Look-up'!$C$4,$V1141-4,0)&\"\")","v":""},"",{"$f":"IF(B1141=\"\",\"\",IF(ISERROR(MATCH($J1141,SorP!$B$1:$B$5661,0)),\"\",INDIRECT(\"'SorP'!$A$\"&MATCH($J1141,SorP!$B$1:$B$5661,0))))","v":""},null,{"$f":"IF(C1141=\"\",NA(),MATCH($B1141&$C1141,'Smelter Look-up'!$J:$J,0))","v":{"$error":"#N/A"}},null,0,null,null,null,""]
[null,{"$f":"IF(LEN(A1142)=0,\"\",INDEX('Smelter Look-up'!$A:$A,MATCH($A1142,'Smelter Look-up'!$E:$E,0)))","v":""},{"$f":"IF(LEN(A1142)=0,\"\",INDEX('Smelter Look-up'!$C:$C,MATCH($A1142,'Smelter Look-up'!$E:$E,0)))","v":""},null,{"$f":"IF(ISERROR($V1142),\"\",OFFSET('Smelter Look-up'!$D$4,$V1142-4,0)&\"\")","v":""},{"$f":"IF(ISERROR($V1142),\"\",OFFSET('Smelter Look-up'!$E$4,$V1142-4,0))","v":""},{"$f":"IF(C1142=$X$4,\"Enter smelter details\",IF(ISERROR($V1142),\"\",OFFSET('Smelter Look-up'!$F$4,$V1142-4,0)))","v":""},{"$f":"IF(ISERROR($V1142),\"\",OFFSET('Smelter Look-up'!$G$4,$V1142-4,0))","v":""},{"$f":"IF(ISERROR($V1142),\"\",OFFSET('Smelter Look-up'!$H$4,$V1142-4,0))","v":""},{"$f":"IF(ISERROR($V1142),\"\",OFFSET('Smelter Look-up'!$I$4,$V1142-4,0))","v":""},{"$nulls":7},{"$f":"IF(ISERROR($V1142),\"\",OFFSET('Smelter Look-up'!$C$4,$V1142-4,0)&\"\")","v":""},"",{"$f":"IF(B1142=\"\",\"\",IF(ISERROR(MATCH($J1142,SorP!$B$1:$B$5661,0)),\"\",INDIRECT(\"'SorP'!$A$\"&MATCH($J1142,SorP!$B$1:$B$5661,0))))","v":""},null,{"$f":"IF(C1142=\"\",NA(),MATCH($B1142&$C1142,'Smelter Look-up'!$J:$J,0))","v":{"$error":"#N/A"}},null,0,null,null,null,""]
[null,{"$f":"IF(LEN(A1143)=0,\"\",INDEX('Smelter Look-up'!$A:$A,MATCH($A1143,'Smelter Look-up'!$E:$E,0)))","v":""},{"$f":"IF(LEN(A1143)=0,\"\",INDEX('Smelter Look-up'!$C:$C,MATCH($A1143,'Smelter Look-up'!$E:$E,0)))","v":""},null,{"$f":"IF(ISERROR($V1143),\"\",OFFSET('Smelter Look-up'!$D$4,$V1143-4,0)&\"\")","v":""},{"$f":"IF(ISERROR($V1143),\"\",OFFSET('Smelter Look-up'!$E$4,$V1143-4,0))","v":""},{"$f":"IF(C1143=$X$4,\"Enter smelter details\",IF(ISERROR($V1143),\"\",OFFSET('Smelter Look-up'!$F$4,$V1143-4,0)))","v":""},{"$f":"IF(ISERROR($V1143),\"\",OFFSET('Smelter Look-up'!$G$4,$V1143-4,0))","v":""},{"$f":"IF(ISERROR($V1143),\"\",OFFSET('Smelter Look-up'!$H$4,$V1143-4,0))","v":""},{"$f":"IF(ISERROR($V1143),\"\",OFFSET('Smelter Look-up'!$I$4,$V1143-4,0))","v":""},{"$nulls":7},{"$f":"IF(ISERROR($V1143),\"\",OFFSET('Smelter Look-up'!$C$4,$V1143-4,0)&\"\")","v":""},"",{"$f":"IF(B1143=\"\",\"\",IF(ISERROR(MATCH($J1143,SorP!$B$1:$B$5661,0)),\"\",INDIRECT(\"'SorP'!$A$\"&MATCH($J1143,SorP!$B$1:$B$5661,0))))","v":""},null,{"$f":"IF(C1143=\"\",NA(),MATCH($B1143&$C1143,'Smelter Look-up'!$J:$J,0))","v":{"$error":"#N/A"}},null,0,null,null,null,""]
[null,{"$f":"IF(LEN(A1144)=0,\"\",INDEX('Smelter Look-up'!$A:$A,MATCH($A1144,'Smelter Look-up'!$E:$E,0)))","v":""},{"$f":"IF(LEN(A1144)=0,\"\",INDEX('Smelter Look-up'!$C:$C,MATCH($A1144,'Smelter Look-up'!$E:$E,0)))","v":""},null,{"$f":"IF(ISERROR($V1144),\"\",OFFSET('Smelter Look-up'!$D$4,$V1144-4,0)&\"\")","v":""},{"$f":"IF(ISERROR($V1144),\"\",OFFSET('Smelter Look-up'!$E$4,$V1144-4,0))","v":""},{"$f":"IF(C1144=$X$4,\"Enter smelter details\",IF(ISERROR($V1144),\"\",OFFSET('Smelter Look-up'!$F$4,$V1144-4,0)))","v":""},{"$f":"IF(ISERROR($V1144),\"\",OFFSET('Smelter Look-up'!$G$4,$V1144-4,0))","v":""},{"$f":"IF(ISERROR($V1144),\"\",OFFSET('Smelter Look-up'!$H$4,$V1144-4,0))","v":""},{"$f":"IF(ISERROR($V1144),\"\",OFFSET('Smelter Look-up'!$I$4,$V1144-4,0))","v":""},{"$nulls":7},{"$f":"IF(ISERROR($V1144),\"\",OFFSET('Smelter Look-up'!$C$4,$V1144-4,0)&\"\")","v":""},"",{"$f":"IF(B1144=\"\",\"\",IF(ISERROR(MATCH($J1144,SorP!$B$1:$B$5661,0)),\"\",INDIRECT(\"'SorP'!$A$\"&MATCH($J1144,SorP!$B$1:$B$5661,0))))","v":""},null,{"$f":"IF(C1144=\"\",NA(),MATCH($B1144&$C1144,'Smelter Look-up'!$J:$J,0))","v":{"$error":"#N/A"}},null,0,null,null,null,""]
[null,{"$f":"IF(LEN(A1145)=0,\"\",INDEX('Smelter Look-up'!$A:$A,MATCH($A1145,'Smelter Look-up'!$E:$E,0)))","v":""},{"$f":"IF(LEN(A1145)=0,\"\",INDEX('Smelter Look-up'!$C:$C,MATCH($A1145,'Smelter Look-up'!$E:$E,0)))","v":""},null,{"$f":"IF(ISERROR($V1145),\"\",OFFSET('Smelter Look-up'!$D$4,$V1145-4,0)&\"\")","v":""},{"$f":"IF(ISERROR($V1145),\"\",OFFSET('Smelter Look-up'!$E$4,$V1145-4,0))","v":""},{"$f":"IF(C1145=$X$4,\"Enter smelter details\",IF(ISERROR($V1145),\"\",OFFSET('Smelter Look-up'!$F$4,$V1145-4,0)))","v":""},{"$f":"IF(ISERROR($V1145),\"\",OFFSET('Smelter Look-up'!$G$4,$V1145-4,0))","v":""},{"$f":"IF(ISERROR($V1145),\"\",OFFSET('Smelter Look-up'!$H$4,$V1145-4,0))","v":""},{"$f":"IF(ISERROR($V1145),\"\",OFFSET('Smelter Look-up'!$I$4,$V1145-4,0))","v":""},{"$nulls":7},{"$f":"IF(ISERROR($V1145),\"\",OFFSET('Smelter Look-up'!$C$4,$V1145-4,0)&\"\")","v":""},"",{"$f":"IF(B1145=\"\",\"\",IF(ISERROR(MATCH($J1145,SorP!$B$1:$B$5661,0)),\"\",INDIRECT(\"'SorP'!$A$\"&MATCH($J1145,SorP!$B$1:$B$5661,0))))","v":""},null,{"$f":"IF(C1145=\"\",NA(),MATCH($B1145&$C1145,'Smelter Look-up'!$J:$J,0))","v":{"$error":"#N/A"}},null,0,null,null,null,""]
[null,{"$f":"IF(LEN(A1146)=0,\"\",INDEX('Smelter Look-up'!$A:$A,MATCH($A1146,'Smelter Look-up'!$E:$E,0)))","v":""},{"$f":"IF(LEN(A1146)=0,\"\",INDEX('Smelter Look-up'!$C:$C,MATCH($A1146,'Smelter Look-up'!$E:$E,0)))","v":""},null,{"$f":"IF(ISERROR($V1146),\"\",OFFSET('Smelter Look-up'!$D$4,$V1146-4,0)&\"\")","v":""},{"$f":"IF(ISERROR($V1146),\"\",OFFSET('Smelter Look-up'!$E$4,$V1146-4,0))","v":""},{"$f":"IF(C1146=$X$4,\"Enter smelter details\",IF(ISERROR($V1146),\"\",OFFSET('Smelter Look-up'!$F$4,$V1146-4,0)))","v":""},{"$f":"IF(ISERROR($V1146),\"\",OFFSET('Smelter Look-up'!$G$4,$V1146-4,0))","v":""},{"$f":"IF(ISERROR($V1146),\"\",OFFSET('Smelter Look-up'!$H$4,$V1146-4,0))","v":""},{"$f":"IF(ISERROR($V1146),\"\",OFFSET('Smelter Look-up'!$I$4,$V1146-4,0))","v":""},{"$nulls":7},{"$f":"IF(ISERROR($V1146),\"\",OFFSET('Smelter Look-up'!$C$4,$V1146-4,0)&\"\")","v":""},"",{"$f":"IF(B1146=\"\",\"\",IF(ISERROR(MATCH($J1146,SorP!$B$1:$B$5661,0)),\"\",INDIRECT(\"'SorP'!$A$\"&MATCH($J1146,SorP!$B$1:$B$5661,0))))","v":""},null,{"$f":"IF(C1146=\"\",NA(),MATCH($B1146&$C1146,'Smelter Look-up'!$J:$J,0))","v":{"$error":"#N/A"}},null,0,null,null,null,""]
[null,{"$f":"IF(LEN(A1147)=0,\"\",INDEX('Smelter Look-up'!$A:$A,MATCH($A1147,'Smelter Look-up'!$E:$E,0)))","v":""},{"$f":"IF(LEN(A1147)=0,\"\",INDEX('Smelter Look-up'!$C:$C,MATCH($A1147,'Smelter Look-up'!$E:$E,0)))","v":""},null,{"$f":"IF(ISERROR($V1147),\"\",OFFSET('Smelter Look-up'!$D$4,$V1147-4,0)&\"\")","v":""},{"$f":"IF(ISERROR($V1147),\"\",OFFSET('Smelter Look-up'!$E$4,$V1147-4,0))","v":""},{"$f":"IF(C1147=$X$4,\"Enter smelter details\",IF(ISERROR($V1147),\"\",OFFSET('Smelter Look-up'!$F$4,$V1147-4,0)))","v":""},{"$f":"IF(ISERROR($V1147),\"\",OFFSET('Smelter Look-up'!$G$4,$V1147-4,0))","v":""},{"$f":"IF(ISERROR($V1147),\"\",OFFSET('Smelter Look-up'!$H$4,$V1147-4,0))","v":""},{"$f":"IF(ISERROR($V1147),\"\",OFFSET('Smelter Look-up'!$I$4,$V1147-4,0))","v":""},{"$nulls":7},{"$f":"IF(ISERROR($V1147),\"\",OFFSET('Smelter Look-up'!$C$4,$V1147-4,0)&\"\")","v":""},"",{"$f":"IF(B1147=\"\",\"\",IF(ISERROR(MATCH($J1147,SorP!$B$1:$B$5661,0)),\"\",INDIRECT(\"'SorP'!$A$\"&MATCH($J1147,SorP!$B$1:$B$5661,0))))","v":""},null,{"$f":"IF(C1147=\"\",NA(),MATCH($B1147&$C1147,'Smelter Look-up'!$J:$J,0))","v":{"$error":"#N/A"}},null,0,null,null,null,""]
[null,{"$f":"IF(LEN(A1148)=0,\"\",INDEX('Smelter Look-up'!$A:$A,MATCH($A1148,'Smelter Look-up'!$E:$E,0)))","v":""},{"$f":"IF(LEN(A1148)=0,\"\",INDEX('Smelter Look-up'!$C:$C,MATCH($A1148,'Smelter Look-up'!$E:$E,0)))","v":""},null,{"$f":"IF(ISERROR($V1148),\"\",OFFSET('Smelter Look-up'!$D$4,$V1148-4,0)&\"\")","v":""},{"$f":"IF(ISERROR($V1148),\"\",OFFSET('Smelter Look-up'!$E$4,$V1148-4,0))","v":""},{"$f":"IF(C1148=$X$4,\"Enter smelter details\",IF(ISERROR($V1148),\"\",OFFSET('Smelter Look-up'!$F$4,$V1148-4,0)))","v":""},{"$f":"IF(ISERROR($V1148),\"\",OFFSET('Smelter Look-up'!$G$4,$V1148-4,0))","v":""},{"$f":"IF(ISERROR($V1148),\"\",OFFSET('Smelter Look-up'!$H$4,$V1148-4,0))","v":""},{"$f":"IF(ISERROR($V1148),\"\",OFFSET('Smelter Look-up'!$I$4,$V1148-4,0))","v":""},{"$nulls":7},{"$f":"IF(ISERROR($V1148),\"\",OFFSET('Smelter Look-up'!$C$4,$V1148-4,0)&\"\")","v":""},"",{"$f":"IF(B1148=\"\",\"\",IF(ISERROR(MATCH($J1148,SorP!$B$1:$B$5661,0)),\"\",INDIRECT(\"'SorP'!$A$\"&MATCH($J1148,SorP!$B$1:$B$5661,0))))","v":""},null,{"$f":"IF(C1148=\"\",NA(),MATCH($B1148&$C1148,'Smelter Look-up'!$J:$J,0))","v":{"$error":"#N/A"}},null,0,null,null,null,""]
[null,{"$f":"IF(LEN(A1149)=0,\"\",INDEX('Smelter Look-up'!$A:$A,MATCH($A1149,'Smelter Look-up'!$E:$E,0)))","v":""},{"$f":"IF(LEN(A1149)=0,\"\",INDEX('Smelter Look-up'!$C:$C,MATCH($A1149,'Smelter Look-up'!$E:$E,0)))","v":""},null,{"$f":"IF(ISERROR($V1149),\"\",OFFSET('Smelter Look-up'!$D$4,$V1149-4,0)&\"\")","v":""},{"$f":"IF(ISERROR($V1149),\"\",OFFSET('Smelter Look-up'!$E$4,$V1149-4,0))","v":""},{"$f":"IF(C1149=$X$4,\"Enter smelter details\",IF(ISERROR($V1149),\"\",OFFSET('Smelter Look-up'!$F$4,$V1149-4,0)))","v":""},{"$f":"IF(ISERROR($V1149),\"\",OFFSET('Smelter Look-up'!$G$4,$V1149-4,0))","v":""},{"$f":"IF(ISERROR($V1149),\"\",OFFSET('Smelter Look-up'!$H$4,$V1149-4,0))","v":""},{"$f":"IF(ISERROR($V1149),\"\",OFFSET('Smelter Look-up'!$I$4,$V1149-4,0))","v":""},{"$nulls":7},{"$f":"IF(ISERROR($V1149),\"\",OFFSET('Smelter Look-up'!$C$4,$V1149-4,0)&\"\")","v":""},"",{"$f":"IF(B1149=\"\",\"\",IF(ISERROR(MATCH($J1149,SorP!$B$1:$B$5661,0)),\"\",INDIRECT(\"'SorP'!$A$\"&MATCH($J1149,SorP!$B$1:$B$5661,0))))","v":""},null,{"$f":"IF(C1149=\"\",NA(),MATCH($B1149&$C1149,'Smelter Look-up'!$J:$J,0))","v":{"$error":"#N/A"}},null,0,null,null,null,""]
[null,{"$f":"IF(LEN(A1150)=0,\"\",INDEX('Smelter Look-up'!$A:$A,MATCH($A1150,'Smelter Look-up'!$E:$E,0)))","v":""},{"$f":"IF(LEN(A1150)=0,\"\",INDEX('Smelter Look-up'!$C:$C,MATCH($A1150,'Smelter Look-up'!$E:$E,0)))","v":""},null,{"$f":"IF(ISERROR($V1150),\"\",OFFSET('Smelter Look-up'!$D$4,$V1150-4,0)&\"\")","v":""},{"$f":"IF(ISERROR($V1150),\"\",OFFSET('Smelter Look-up'!$E$4,$V1150-4,0))","v":""},{"$f":"IF(C1150=$X$4,\"Enter smelter details\",IF(ISERROR($V1150),\"\",OFFSET('Smelter Look-up'!$F$4,$V1150-4,0)))","v":""},{"$f":"IF(ISERROR($V1150),\"\",OFFSET('Smelter Look-up'!$G$4,$V1150-4,0))","v":""},{"$f":"IF(ISERROR($V1150),\"\",OFFSET('Smelter Look-up'!$H$4,$V1150-4,0))","v":""},{"$f":"IF(ISERROR($V1150),\"\",OFFSET('Smelter Look-up'!$I$4,$V1150-4,0))","v":""},{"$nulls":7},{"$f":"IF(ISERROR($V1150),\"\",OFFSET('Smelter Look-up'!$C$4,$V1150-4,0)&\"\")","v":""},"",{"$f":"IF(B1150=\"\",\"\",IF(ISERROR(MATCH($J1150,SorP!$B$1:$B$5661,0)),\"\",INDIRECT(\"'SorP'!$A$\"&MATCH($J1150,SorP!$B$1:$B$5661,0))))","v":""},null,{"$f":"IF(C1150=\"\",NA(),MATCH($B1150&$C1150,'Smelter Look-up'!$J:$J,0))","v":{"$error":"#N/A"}},null,0,null,null,null,""]
[null,{"$f":"IF(LEN(A1151)=0,\"\",INDEX('Smelter Look-up'!$A:$A,MATCH($A1151,'Smelter Look-up'!$E:$E,0)))","v":""},{"$f":"IF(LEN(A1151)=0,\"\",INDEX('Smelter Look-up'!$C:$C,MATCH($A1151,'Smelter Look-up'!$E:$E,0)))","v":""},null,{"$f":"IF(ISERROR($V1151),\"\",OFFSET('Smelter Look-up'!$D$4,$V1151-4,0)&\"\")","v":""},{"$f":"IF(ISERROR($V1151),\"\",OFFSET('Smelter Look-up'!$E$4,$V1151-4,0))","v":""},{"$f":"IF(C1151=$X$4,\"Enter smelter details\",IF(ISERROR($V1151),\"\",OFFSET('Smelter Look-up'!$F$4,$V1151-4,0)))","v":""},{"$f":"IF(ISERROR($V1151),\"\",OFFSET('Smelter Look-up'!$G$4,$V1151-4,0))","v":""},{"$f":"IF(ISERROR($V1151),\"\",OFFSET('Smelter Look-up'!$H$4,$V1151-4,0))","v":""},{"$f":"IF(ISERROR($V1151),\"\",OFFSET('Smelter Look-up'!$I$4,$V1151-4,0))","v":""},{"$nulls":7},{"$f":"IF(ISERROR($V1151),\"\",OFFSET('Smelter Look-up'!$C$4,$V1151-4,0)&\"\")","v":""},"",{"$f":"IF(B1151=\"\",\"\",IF(ISERROR(MATCH($J1151,SorP!$B$1:$B$5661,0)),\"\",INDIRECT(\"'SorP'!$A$\"&MATCH($J1151,SorP!$B$1:$B$5661,0))))","v":""},null,{"$f":"IF(C1151=\"\",NA(),MATCH($B1151&$C1151,'Smelter Look-up'!$J:$J,0))","v":{"$error":"#N/A"}},null,{"$f":"IF(AND(C1151=\"Smelter not listed\",OR(LEN(D1151)=0,LEN(E1151)=0)),1,0)","v":0},null,null,null,{"$f":"B1151&C1151","v":""}]
[null,{"$f":"IF(LEN(A1152)=0,\"\",INDEX('Smelter Look-up'!$A:$A,MATCH($A1152,'Smelter Look-up'!$E:$E,0)))","v":""},{"$f":"IF(LEN(A1152)=0,\"\",INDEX('Smelter Look-up'!$C:$C,MATCH($A1152,'Smelter Look-up'!$E:$E,0)))","v":""},null,{"$f":"IF(ISERROR($V1152),\"\",OFFSET('Smelter Look-up'!$D$4,$V1152-4,0)&\"\")","v":""},{"$f":"IF(ISERROR($V1152),\"\",OFFSET('Smelter Look-up'!$E$4,$V1152-4,0))","v":""},{"$f":"IF(C1152=$X$4,\"Enter smelter details\",IF(ISERROR($V1152),\"\",OFFSET('Smelter Look-up'!$F$4,$V1152-4,0)))","v":""},{"$f":"IF(ISERROR($V1152),\"\",OFFSET('Smelter Look-up'!$G$4,$V1152-4,0))","v":""},{"$f":"IF(ISERROR($V1152),\"\",OFFSET('Smelter Look-up'!$H$4,$V1152-4,0))","v":""},{"$f":"IF(ISERROR($V1152),\"\",OFFSET('Smelter Look-up'!$I$4,$V1152-4,0))","v":""},{"$nulls":7},{"$f":"IF(ISERROR($V1152),\"\",OFFSET('Smelter Look-up'!$C$4,$V1152-4,0)&\"\")","v":""},{"$f":"IF(B1152=\"\",\"\",IF(ISERROR(MATCH($E1152,CL,0)),\"Unknown\",INDIRECT(\"'C'!$A$\"&MATCH($E1152,CL,0)+1)))","v":""},{"$f":"IF(B1152=\"\",\"\",IF(ISERROR(MATCH($J1152,SorP!$B$1:$B$5661,0)),\"\",INDIRECT(\"'SorP'!$A$\"&MATCH($J1152,SorP!$B$1:$B$5661,0))))","v":""},null,{"$f":"IF(C1152=\"\",NA(),MATCH($B1152&$C1152,'Smelter Look-up'!$J:$J,0))","v":{"$error":"#N/A"}},null,0,null,null,null,""]
[null,{"$f":"IF(LEN(A1153)=0,\"\",INDEX('Smelter Look-up'!$A:$A,MATCH($A1153,'Smelter Look-up'!$E:$E,0)))","v":""},{"$f":"IF(LEN(A1153)=0,\"\",INDEX('Smelter Look-up'!$C:$C,MATCH($A1153,'Smelter Look-up'!$E:$E,0)))","v":""},null,{"$f":"IF(ISERROR($V1153),\"\",OFFSET('Smelter Look-up'!$D$4,$V1153-4,0)&\"\")","v":""},{"$f":"IF(ISERROR($V1153),\"\",OFFSET('Smelter Look-up'!$E$4,$V1153-4,0))","v":""},{"$f":"IF(C1153=$X$4,\"Enter smelter details\",IF(ISERROR($V1153),\"\",OFFSET('Smelter Look-up'!$F$4,$V1153-4,0)))","v":""},{"$f":"IF(ISERROR($V1153),\"\",OFFSET('Smelter Look-up'!$G$4,$V1153-4,0))","v":""},{"$f":"IF(ISERROR($V1153),\"\",OFFSET('Smelter Look-up'!$H$4,$V1153-4,0))","v":""},{"$f":"IF(ISERROR($V1153),\"\",OFFSET('Smelter Look-up'!$I$4,$V1153-4,0))","v":""},{"$nulls":7},{"$f":"IF(ISERROR($V1153),\"\",OFFSET('Smelter Look-up'!$C$4,$V1153-4,0)&\"\")","v":""},"",{"$f":"IF(B1153=\"\",\"\",IF(ISERROR(MATCH($J1153,SorP!$B$1:$B$5661,0)),\"\",INDIRECT(\"'SorP'!$A$\"&MATCH($J1153,SorP!$B$1:$B$5661,0))))","v":""},null,{"$f":"IF(C1153=\"\",NA(),MATCH($B1153&$C1153,'Smelter Look-up'!$J:$J,0))","v":{"$error":"#N/A"}},null,0,null,null,null,""]
[null,{"$f":"IF(LEN(A1154)=0,\"\",INDEX('Smelter Look-up'!$A:$A,MATCH($A1154,'Smelter Look-up'!$E:$E,0)))","v":""},{"$f":"IF(LEN(A1154)=0,\"\",INDEX('Smelter Look-up'!$C:$C,MATCH($A1154,'Smelter Look-up'!$E:$E,0)))","v":""},null,{"$f":"IF(ISERROR($V1154),\"\",OFFSET('Smelter Look-up'!$D$4,$V1154-4,0)&\"\")","v":""},{"$f":"IF(ISERROR($V1154),\"\",OFFSET('Smelter Look-up'!$E$4,$V1154-4,0))","v":""},{"$f":"IF(C1154=$X$4,\"Enter smelter details\",IF(ISERROR($V1154),\"\",OFFSET('Smelter Look-up'!$F$4,$V1154-4,0)))","v":""},{"$f":"IF(ISERROR($V1154),\"\",OFFSET('Smelter Look-up'!$G$4,$V1154-4,0))","v":""},{"$f":"IF(ISERROR($V1154),\"\",OFFSET('Smelter Look-up'!$H$4,$V1154-4,0))","v":""},{"$f":"IF(ISERROR($V1154),\"\",OFFSET('Smelter Look-up'!$I$4,$V1154-4,0))","v":""},{"$nulls":7},{"$f":"IF(ISERROR($V1154),\"\",OFFSET('Smelter Look-up'!$C$4,$V1154-4,0)&\"\")","v":""},"",{"$f":"IF(B1154=\"\",\"\",IF(ISERROR(MATCH($J1154,SorP!$B$1:$B$5661,0)),\"\",INDIRECT(\"'SorP'!$A$\"&MATCH($J1154,SorP!$B$1:$B$5661,0))))","v":""},null,{"$f":"IF(C1154=\"\",NA(),MATCH($B1154&$C1154,'Smelter Look-up'!$J:$J,0))","v":{"$error":"#N/A"}},null,0,null,null,null,""]
[null,{"$f":"IF(LEN(A1155)=0,\"\",INDEX('Smelter Look-up'!$A:$A,MATCH($A1155,'Smelter Look-up'!$E:$E,0)))","v":""},{"$f":"IF(LEN(A1155)=0,\"\",INDEX('Smelter Look-up'!$C:$C,MATCH($A1155,'Smelter Look-up'!$E:$E,0)))","v":""},null,{"$f":"IF(ISERROR($V1155),\"\",OFFSET('Smelter Look-up'!$D$4,$V1155-4,0)&\"\")","v":""},{"$f":"IF(ISERROR($V1155),\"\",OFFSET('Smelter Look-up'!$E$4,$V1155-4,0))","v":""},{"$f":"IF(C1155=$X$4,\"Enter smelter details\",IF(ISERROR($V1155),\"\",OFFSET('Smelter Look-up'!$F$4,$V1155-4,0)))","v":""},{"$f":"IF(ISERROR($V1155),\"\",OFFSET('Smelter Look-up'!$G$4,$V1155-4,0))","v":""},{"$f":"IF(ISERROR($V1155),\"\",OFFSET('Smelter Look-up'!$H$4,$V1155-4,0))","v":""},{"$f":"IF(ISERROR($V1155),\"\",OFFSET('Smelter Look-up'!$I$4,$V1155-4,0))","v":""},{"$nulls":7},{"$f":"IF(ISERROR($V1155),\"\",OFFSET('Smelter Look-up'!$C$4,$V1155-4,0)&\"\")","v":""},"",{"$f":"IF(B1155=\"\",\"\",IF(ISERROR(MATCH($J1155,SorP!$B$1:$B$5661,0)),\"\",INDIRECT(\"'SorP'!$A$\"&MATCH($J1155,SorP!$B$1:$B$5661,0))))","v":""},null,{"$f":"IF(C1155=\"\",NA(),MATCH($B1155&$C1155,'Smelter Look-up'!$J:$J,0))","v":{"$error":"#N/A"}},null,0,null,null,null,""]
[null,{"$f":"IF(LEN(A1156)=0,\"\",INDEX('Smelter Look-up'!$A:$A,MATCH($A1156,'Smelter Look-up'!$E:$E,0)))","v":""},{"$f":"IF(LEN(A1156)=0,\"\",INDEX('Smelter Look-up'!$C:$C,MATCH($A1156,'Smelter Look-up'!$E:$E,0)))","v":""},null,{"$f":"IF(ISERROR($V1156),\"\",OFFSET('Smelter Look-up'!$D$4,$V1156-4,0)&\"\")","v":""},{"$f":"IF(ISERROR($V1156),\"\",OFFSET('Smelter Look-up'!$E$4,$V1156-4,0))","v":""},{"$f":"IF(C1156=$X$4,\"Enter smelter details\",IF(ISERROR($V1156),\"\",OFFSET('Smelter Look-up'!$F$4,$V1156-4,0)))","v":""},{"$f":"IF(ISERROR($V1156),\"\",OFFSET('Smelter Look-up'!$G$4,$V1156-4,0))","v":""},{"$f":"IF(ISERROR($V1156),\"\",OFFSET('Smelter Look-up'!$H$4,$V1156-4,0))","v":""},{"$f":"IF(ISERROR($V1156),\"\",OFFSET('Smelter Look-up'!$I$4,$V1156-4,0))","v":""},{"$nulls":7},{"$f":"IF(ISERROR($V1156),\"\",OFFSET('Smelter Look-up'!$C$4,$V1156-4,0)&\"\")","v":""},"",{"$f":"IF(B1156=\"\",\"\",IF(ISERROR(MATCH($J1156,SorP!$B$1:$B$5661,0)),\"\",INDIRECT(\"'SorP'!$A$\"&MATCH($J1156,SorP!$B$1:$B$5661,0))))","v":""},null,{"$f":"IF(C1156=\"\",NA(),MATCH($B1156&$C1156,'Smelter Look-up'!$J:$J,0))","v":{"$error":"#N/A"}},null,0,null,null,null,""]
[null,{"$f":"IF(LEN(A1157)=0,\"\",INDEX('Smelter Look-up'!$A:$A,MATCH($A1157,'Smelter Look-up'!$E:$E,0)))","v":""},{"$f":"IF(LEN(A1157)=0,\"\",INDEX('Smelter Look-up'!$C:$C,MATCH($A1157,'Smelter Look-up'!$E:$E,0)))","v":""},null,{"$f":"IF(ISERROR($V1157),\"\",OFFSET('Smelter Look-up'!$D$4,$V1157-4,0)&\"\")","v":""},{"$f":"IF(ISERROR($V1157),\"\",OFFSET('Smelter Look-up'!$E$4,$V1157-4,0))","v":""},{"$f":"IF(C1157=$X$4,\"Enter smelter details\",IF(ISERROR($V1157),\"\",OFFSET('Smelter Look-up'!$F$4,$V1157-4,0)))","v":""},{"$f":"IF(ISERROR($V1157),\"\",OFFSET('Smelter Look-up'!$G$4,$V1157-4,0))","v":""},{"$f":"IF(ISERROR($V1157),\"\",OFFSET('Smelter Look-up'!$H$4,$V1157-4,0))","v":""},{"$f":"IF(ISERROR($V1157),\"\",OFFSET('Smelter Look-up'!$I$4,$V1157-4,0))","v":""},{"$nulls":7},{"$f":"IF(ISERROR($V1157),\"\",OFFSET('Smelter Look-up'!$C$4,$V1157-4,0)&\"\")","v":""},"",{"$f":"IF(B1157=\"\",\"\",IF(ISERROR(MATCH($J1157,SorP!$B$1:$B$5661,0)),\"\",INDIRECT(\"'SorP'!$A$\"&MATCH($J1157,SorP!$B$1:$B$5661,0))))","v":""},null,{"$f":"IF(C1157=\"\",NA(),MATCH($B1157&$C1157,'Smelter Look-up'!$J:$J,0))","v":{"$error":"#N/A"}},null,0,null,null,null,""]
[null,{"$f":"IF(LEN(A1158)=0,\"\",INDEX('Smelter Look-up'!$A:$A,MATCH($A1158,'Smelter Look-up'!$E:$E,0)))","v":""},{"$f":"IF(LEN(A1158)=0,\"\",INDEX('Smelter Look-up'!$C:$C,MATCH($A1158,'Smelter Look-up'!$E:$E,0)))","v":""},null,{"$f":"IF(ISERROR($V1158),\"\",OFFSET('Smelter Look-up'!$D$4,$V1158-4,0)&\"\")","v":""},{"$f":"IF(ISERROR($V1158),\"\",OFFSET('Smelter Look-up'!$E$4,$V1158-4,0))","v":""},{"$f":"IF(C1158=$X$4,\"Enter smelter details\",IF(ISERROR($V1158),\"\",OFFSET('Smelter Look-up'!$F$4,$V1158-4,0)))","v":""},{"$f":"IF(ISERROR($V1158),\"\",OFFSET('Smelter Look-up'!$G$4,$V1158-4,0))","v":""},{"$f":"IF(ISERROR($V1158),\"\",OFFSET('Smelter Look-up'!$H$4,$V1158-4,0))","v":""},{"$f":"IF(ISERROR($V1158),\"\",OFFSET('Smelter Look-up'!$I$4,$V1158-4,0))","v":""},{"$nulls":7},{"$f":"IF(ISERROR($V1158),\"\",OFFSET('Smelter Look-up'!$C$4,$V1158-4,0)&\"\")","v":""},"",{"$f":"IF(B1158=\"\",\"\",IF(ISERROR(MATCH($J1158,SorP!$B$1:$B$5661,0)),\"\",INDIRECT(\"'SorP'!$A$\"&MATCH($J1158,SorP!$B$1:$B$5661,0))))","v":""},null,{"$f":"IF(C1158=\"\",NA(),MATCH($B1158&$C1158,'Smelter Look-up'!$J:$J,0))","v":{"$error":"#N/A"}},null,0,null,null,null,""]
[null,{"$f":"IF(LEN(A1159)=0,\"\",INDEX('Smelter Look-up'!$A:$A,MATCH($A1159,'Smelter Look-up'!$E:$E,0)))","v":""},{"$f":"IF(LEN(A1159)=0,\"\",INDEX('Smelter Look-up'!$C:$C,MATCH($A1159,'Smelter Look-up'!$E:$E,0)))","v":""},null,{"$f":"IF(ISERROR($V1159),\"\",OFFSET('Smelter Look-up'!$D$4,$V1159-4,0)&\"\")","v":""},{"$f":"IF(ISERROR($V1159),\"\",OFFSET('Smelter Look-up'!$E$4,$V1159-4,0))","v":""},{"$f":"IF(C1159=$X$4,\"Enter smelter details\",IF(ISERROR($V1159),\"\",OFFSET('Smelter Look-up'!$F$4,$V1159-4,0)))","v":""},{"$f":"IF(ISERROR($V1159),\"\",OFFSET('Smelter Look-up'!$G$4,$V1159-4,0))","v":""},{"$f":"IF(ISERROR($V1159),\"\",OFFSET('Smelter Look-up'!$H$4,$V1159-4,0))","v":""},{"$f":"IF(ISERROR($V1159),\"\",OFFSET('Smelter Look-up'!$I$4,$V1159-4,0))","v":""},{"$nulls":7},{"$f":"IF(ISERROR($V1159),\"\",OFFSET('Smelter Look-up'!$C$4,$V1159-4,0)&\"\")","v":""},"",{"$f":"IF(B1159=\"\",\"\",IF(ISERROR(MATCH($J1159,SorP!$B$1:$B$5661,0)),\"\",INDIRECT(\"'SorP'!$A$\"&MATCH($J1159,SorP!$B$1:$B$5661,0))))","v":""},null,{"$f":"IF(C1159=\"\",NA(),MATCH($B1159&$C1159,'Smelter Look-up'!$J:$J,0))","v":{"$error":"#N/A"}},null,0,null,null,null,""]
[null,{"$f":"IF(LEN(A1160)=0,\"\",INDEX('Smelter Look-up'!$A:$A,MATCH($A1160,'Smelter Look-up'!$E:$E,0)))","v":""},{"$f":"IF(LEN(A1160)=0,\"\",INDEX('Smelter Look-up'!$C:$C,MATCH($A1160,'Smelter Look-up'!$E:$E,0)))","v":""},null,{"$f":"IF(ISERROR($V1160),\"\",OFFSET('Smelter Look-up'!$D$4,$V1160-4,0)&\"\")","v":""},{"$f":"IF(ISERROR($V1160),\"\",OFFSET('Smelter Look-up'!$E$4,$V1160-4,0))","v":""},{"$f":"IF(C1160=$X$4,\"Enter smelter details\",IF(ISERROR($V1160),\"\",OFFSET('Smelter Look-up'!$F$4,$V1160-4,0)))","v":""},{"$f":"IF(ISERROR($V1160),\"\",OFFSET('Smelter Look-up'!$G$4,$V1160-4,0))","v":""},{"$f":"IF(ISERROR($V1160),\"\",OFFSET('Smelter Look-up'!$H$4,$V1160-4,0))","v":""},{"$f":"IF(ISERROR($V1160),\"\",OFFSET('Smelter Look-up'!$I$4,$V1160-4,0))","v":""},{"$nulls":7},{"$f":"IF(ISERROR($V1160),\"\",OFFSET('Smelter Look-up'!$C$4,$V1160-4,0)&\"\")","v":""},"",{"$f":"IF(B1160=\"\",\"\",IF(ISERROR(MATCH($J1160,SorP!$B$1:$B$5661,0)),\"\",INDIRECT(\"'SorP'!$A$\"&MATCH($J1160,SorP!$B$1:$B$5661,0))))","v":""},null,{"$f":"IF(C1160=\"\",NA(),MATCH($B1160&$C1160,'Smelter Look-up'!$J:$J,0))","v":{"$error":"#N/A"}},null,0,null,null,null,""]
[null,{"$f":"IF(LEN(A1161)=0,\"\",INDEX('Smelter Look-up'!$A:$A,MATCH($A1161,'Smelter Look-up'!$E:$E,0)))","v":""},{"$f":"IF(LEN(A1161)=0,\"\",INDEX('Smelter Look-up'!$C:$C,MATCH($A1161,'Smelter Look-up'!$E:$E,0)))","v":""},null,{"$f":"IF(ISERROR($V1161),\"\",OFFSET('Smelter Look-up'!$D$4,$V1161-4,0)&\"\")","v":""},{"$f":"IF(ISERROR($V1161),\"\",OFFSET('Smelter Look-up'!$E$4,$V1161-4,0))","v":""},{"$f":"IF(C1161=$X$4,\"Enter smelter details\",IF(ISERROR($V1161),\"\",OFFSET('Smelter Look-up'!$F$4,$V1161-4,0)))","v":""},{"$f":"IF(ISERROR($V1161),\"\",OFFSET('Smelter Look-up'!$G$4,$V1161-4,0))","v":""},{"$f":"IF(ISERROR($V1161),\"\",OFFSET('Smelter Look-up'!$H$4,$V1161-4,0))","v":""},{"$f":"IF(ISERROR($V1161),\"\",OFFSET('Smelter Look-up'!$I$4,$V1161-4,0))","v":""},{"$nulls":7},{"$f":"IF(ISERROR($V1161),\"\",OFFSET('Smelter Look-up'!$C$4,$V1161-4,0)&\"\")","v":""},"",{"$f":"IF(B1161=\"\",\"\",IF(ISERROR(MATCH($J1161,SorP!$B$1:$B$5661,0)),\"\",INDIRECT(\"'SorP'!$A$\"&MATCH($J1161,SorP!$B$1:$B$5661,0))))","v":""},null,{"$f":"IF(C1161=\"\",NA(),MATCH($B1161&$C1161,'Smelter Look-up'!$J:$J,0))","v":{"$error":"#N/A"}},null,0,null,null,null,""]
[null,{"$f":"IF(LEN(A1162)=0,\"\",INDEX('Smelter Look-up'!$A:$A,MATCH($A1162,'Smelter Look-up'!$E:$E,0)))","v":""},{"$f":"IF(LEN(A1162)=0,\"\",INDEX('Smelter Look-up'!$C:$C,MATCH($A1162,'Smelter Look-up'!$E:$E,0)))","v":""},null,{"$f":"IF(ISERROR($V1162),\"\",OFFSET('Smelter Look-up'!$D$4,$V1162-4,0)&\"\")","v":""},{"$f":"IF(ISERROR($V1162),\"\",OFFSET('Smelter Look-up'!$E$4,$V1162-4,0))","v":""},{"$f":"IF(C1162=$X$4,\"Enter smelter details\",IF(ISERROR($V1162),\"\",OFFSET('Smelter Look-up'!$F$4,$V1162-4,0)))","v":""},{"$f":"IF(ISERROR($V1162),\"\",OFFSET('Smelter Look-up'!$G$4,$V1162-4,0))","v":""},{"$f":"IF(ISERROR($V1162),\"\",OFFSET('Smelter Look-up'!$H$4,$V1162-4,0))","v":""},{"$f":"IF(ISERROR($V1162),\"\",OFFSET('Smelter Look-up'!$I$4,$V1162-4,0))","v":""},{"$nulls":7},{"$f":"IF(ISERROR($V1162),\"\",OFFSET('Smelter Look-up'!$C$4,$V1162-4,0)&\"\")","v":""},"",{"$f":"IF(B1162=\"\",\"\",IF(ISERROR(MATCH($J1162,SorP!$B$1:$B$5661,0)),\"\",INDIRECT(\"'SorP'!$A$\"&MATCH($J1162,SorP!$B$1:$B$5661,0))))","v":""},null,{"$f":"IF(C1162=\"\",NA(),MATCH($B1162&$C1162,'Smelter Look-up'!$J:$J,0))","v":{"$error":"#N/A"}},null,0,null,null,null,""]
[null,{"$f":"IF(LEN(A1163)=0,\"\",INDEX('Smelter Look-up'!$A:$A,MATCH($A1163,'Smelter Look-up'!$E:$E,0)))","v":""},{"$f":"IF(LEN(A1163)=0,\"\",INDEX('Smelter Look-up'!$C:$C,MATCH($A1163,'Smelter Look-up'!$E:$E,0)))","v":""},null,{"$f":"IF(ISERROR($V1163),\"\",OFFSET('Smelter Look-up'!$D$4,$V1163-4,0)&\"\")","v":""},{"$f":"IF(ISERROR($V1163),\"\",OFFSET('Smelter Look-up'!$E$4,$V1163-4,0))","v":""},{"$f":"IF(C1163=$X$4,\"Enter smelter details\",IF(ISERROR($V1163),\"\",OFFSET('Smelter Look-up'!$F$4,$V1163-4,0)))","v":""},{"$f":"IF(ISERROR($V1163),\"\",OFFSET('Smelter Look-up'!$G$4,$V1163-4,0))","v":""},{"$f":"IF(ISERROR($V1163),\"\",OFFSET('Smelter Look-up'!$H$4,$V1163-4,0))","v":""},{"$f":"IF(ISERROR($V1163),\"\",OFFSET('Smelter Look-up'!$I$4,$V1163-4,0))","v":""},{"$nulls":7},{"$f":"IF(ISERROR($V1163),\"\",OFFSET('Smelter Look-up'!$C$4,$V1163-4,0)&\"\")","v":""},"",{"$f":"IF(B1163=\"\",\"\",IF(ISERROR(MATCH($J1163,SorP!$B$1:$B$5661,0)),\"\",INDIRECT(\"'SorP'!$A$\"&MATCH($J1163,SorP!$B$1:$B$5661,0))))","v":""},null,{"$f":"IF(C1163=\"\",NA(),MATCH($B1163&$C1163,'Smelter Look-up'!$J:$J,0))","v":{"$error":"#N/A"}},null,0,null,null,null,""]
[null,{"$f":"IF(LEN(A1164)=0,\"\",INDEX('Smelter Look-up'!$A:$A,MATCH($A1164,'Smelter Look-up'!$E:$E,0)))","v":""},{"$f":"IF(LEN(A1164)=0,\"\",INDEX('Smelter Look-up'!$C:$C,MATCH($A1164,'Smelter Look-up'!$E:$E,0)))","v":""},null,{"$f":"IF(ISERROR($V1164),\"\",OFFSET('Smelter Look-up'!$D$4,$V1164-4,0)&\"\")","v":""},{"$f":"IF(ISERROR($V1164),\"\",OFFSET('Smelter Look-up'!$E$4,$V1164-4,0))","v":""},{"$f":"IF(C1164=$X$4,\"Enter smelter details\",IF(ISERROR($V1164),\"\",OFFSET('Smelter Look-up'!$F$4,$V1164-4,0)))","v":""},{"$f":"IF(ISERROR($V1164),\"\",OFFSET('Smelter Look-up'!$G$4,$V1164-4,0))","v":""},{"$f":"IF(ISERROR($V1164),\"\",OFFSET('Smelter Look-up'!$H$4,$V1164-4,0))","v":""},{"$f":"IF(ISERROR($V1164),\"\",OFFSET('Smelter Look-up'!$I$4,$V1164-4,0))","v":""},{"$nulls":7},{"$f":"IF(ISERROR($V1164),\"\",OFFSET('Smelter Look-up'!$C$4,$V1164-4,0)&\"\")","v":""},"",{"$f":"IF(B1164=\"\",\"\",IF(ISERROR(MATCH($J1164,SorP!$B$1:$B$5661,0)),\"\",INDIRECT(\"'SorP'!$A$\"&MATCH($J1164,SorP!$B$1:$B$5661,0))))","v":""},null,{"$f":"IF(C1164=\"\",NA(),MATCH($B1164&$C1164,'Smelter Look-up'!$J:$J,0))","v":{"$error":"#N/A"}},null,0,null,null,null,""]
[null,{"$f":"IF(LEN(A1165)=0,\"\",INDEX('Smelter Look-up'!$A:$A,MATCH($A1165,'Smelter Look-up'!$E:$E,0)))","v":""},{"$f":"IF(LEN(A1165)=0,\"\",INDEX('Smelter Look-up'!$C:$C,MATCH($A1165,'Smelter Look-up'!$E:$E,0)))","v":""},null,{"$f":"IF(ISERROR($V1165),\"\",OFFSET('Smelter Look-up'!$D$4,$V1165-4,0)&\"\")","v":""},{"$f":"IF(ISERROR($V1165),\"\",OFFSET('Smelter Look-up'!$E$4,$V1165-4,0))","v":""},{"$f":"IF(C1165=$X$4,\"Enter smelter details\",IF(ISERROR($V1165),\"\",OFFSET('Smelter Look-up'!$F$4,$V1165-4,0)))","v":""},{"$f":"IF(ISERROR($V1165),\"\",OFFSET('Smelter Look-up'!$G$4,$V1165-4,0))","v":""},{"$f":"IF(ISERROR($V1165),\"\",OFFSET('Smelter Look-up'!$H$4,$V1165-4,0))","v":""},{"$f":"IF(ISERROR($V1165),\"\",OFFSET('Smelter Look-up'!$I$4,$V1165-4,0))","v":""},{"$nulls":7},{"$f":"IF(ISERROR($V1165),\"\",OFFSET('Smelter Look-up'!$C$4,$V1165-4,0)&\"\")","v":""},"",{"$f":"IF(B1165=\"\",\"\",IF(ISERROR(MATCH($J1165,SorP!$B$1:$B$5661,0)),\"\",INDIRECT(\"'SorP'!$A$\"&MATCH($J1165,SorP!$B$1:$B$5661,0))))","v":""},null,{"$f":"IF(C1165=\"\",NA(),MATCH($B1165&$C1165,'Smelter Look-up'!$J:$J,0))","v":{"$error":"#N/A"}},null,0,null,null,null,""]
[null,{"$f":"IF(LEN(A1166)=0,\"\",INDEX('Smelter Look-up'!$A:$A,MATCH($A1166,'Smelter Look-up'!$E:$E,0)))","v":""},{"$f":"IF(LEN(A1166)=0,\"\",INDEX('Smelter Look-up'!$C:$C,MATCH($A1166,'Smelter Look-up'!$E:$E,0)))","v":""},null,{"$f":"IF(ISERROR($V1166),\"\",OFFSET('Smelter Look-up'!$D$4,$V1166-4,0)&\"\")","v":""},{"$f":"IF(ISERROR($V1166),\"\",OFFSET('Smelter Look-up'!$E$4,$V1166-4,0))","v":""},{"$f":"IF(C1166=$X$4,\"Enter smelter details\",IF(ISERROR($V1166),\"\",OFFSET('Smelter Look-up'!$F$4,$V1166-4,0)))","v":""},{"$f":"IF(ISERROR($V1166),\"\",OFFSET('Smelter Look-up'!$G$4,$V1166-4,0))","v":""},{"$f":"IF(ISERROR($V1166),\"\",OFFSET('Smelter Look-up'!$H$4,$V1166-4,0))","v":""},{"$f":"IF(ISERROR($V1166),\"\",OFFSET('Smelter Look-up'!$I$4,$V1166-4,0))","v":""},{"$nulls":7},{"$f":"IF(ISERROR($V1166),\"\",OFFSET('Smelter Look-up'!$C$4,$V1166-4,0)&\"\")","v":""},"",{"$f":"IF(B1166=\"\",\"\",IF(ISERROR(MATCH($J1166,SorP!$B$1:$B$5661,0)),\"\",INDIRECT(\"'SorP'!$A$\"&MATCH($J1166,SorP!$B$1:$B$5661,0))))","v":""},null,{"$f":"IF(C1166=\"\",NA(),MATCH($B1166&$C1166,'Smelter Look-up'!$J:$J,0))","v":{"$error":"#N/A"}},null,0,null,null,null,""]
[null,{"$f":"IF(LEN(A1167)=0,\"\",INDEX('Smelter Look-up'!$A:$A,MATCH($A1167,'Smelter Look-up'!$E:$E,0)))","v":""},{"$f":"IF(LEN(A1167)=0,\"\",INDEX('Smelter Look-up'!$C:$C,MATCH($A1167,'Smelter Look-up'!$E:$E,0)))","v":""},null,{"$f":"IF(ISERROR($V1167),\"\",OFFSET('Smelter Look-up'!$D$4,$V1167-4,0)&\"\")","v":""},{"$f":"IF(ISERROR($V1167),\"\",OFFSET('Smelter Look-up'!$E$4,$V1167-4,0))","v":""},{"$f":"IF(C1167=$X$4,\"Enter smelter details\",IF(ISERROR($V1167),\"\",OFFSET('Smelter Look-up'!$F$4,$V1167-4,0)))","v":""},{"$f":"IF(ISERROR($V1167),\"\",OFFSET('Smelter Look-up'!$G$4,$V1167-4,0))","v":""},{"$f":"IF(ISERROR($V1167),\"\",OFFSET('Smelter Look-up'!$H$4,$V1167-4,0))","v":""},{"$f":"IF(ISERROR($V1167),\"\",OFFSET('Smelter Look-up'!$I$4,$V1167-4,0))","v":""},{"$nulls":7},{"$f":"IF(ISERROR($V1167),\"\",OFFSET('Smelter Look-up'!$C$4,$V1167-4,0)&\"\")","v":""},"",{"$f":"IF(B1167=\"\",\"\",IF(ISERROR(MATCH($J1167,SorP!$B$1:$B$5661,0)),\"\",INDIRECT(\"'SorP'!$A$\"&MATCH($J1167,SorP!$B$1:$B$5661,0))))","v":""},null,{"$f":"IF(C1167=\"\",NA(),MATCH($B1167&$C1167,'Smelter Look-up'!$J:$J,0))","v":{"$error":"#N/A"}},null,0,null,null,null,""]
[null,{"$f":"IF(LEN(A1168)=0,\"\",INDEX('Smelter Look-up'!$A:$A,MATCH($A1168,'Smelter Look-up'!$E:$E,0)))","v":""},{"$f":"IF(LEN(A1168)=0,\"\",INDEX('Smelter Look-up'!$C:$C,MATCH($A1168,'Smelter Look-up'!$E:$E,0)))","v":""},null,{"$f":"IF(ISERROR($V1168),\"\",OFFSET('Smelter Look-up'!$D$4,$V1168-4,0)&\"\")","v":""},{"$f":"IF(ISERROR($V1168),\"\",OFFSET('Smelter Look-up'!$E$4,$V1168-4,0))","v":""},{"$f":"IF(C1168=$X$4,\"Enter smelter details\",IF(ISERROR($V1168),\"\",OFFSET('Smelter Look-up'!$F$4,$V1168-4,0)))","v":""},{"$f":"IF(ISERROR($V1168),\"\",OFFSET('Smelter Look-up'!$G$4,$V1168-4,0))","v":""},{"$f":"IF(ISERROR($V1168),\"\",OFFSET('Smelter Look-up'!$H$4,$V1168-4,0))","v":""},{"$f":"IF(ISERROR($V1168),\"\",OFFSET('Smelter Look-up'!$I$4,$V1168-4,0))","v":""},{"$nulls":7},{"$f":"IF(ISERROR($V1168),\"\",OFFSET('Smelter Look-up'!$C$4,$V1168-4,0)&\"\")","v":""},"",{"$f":"IF(B1168=\"\",\"\",IF(ISERROR(MATCH($J1168,SorP!$B$1:$B$5661,0)),\"\",INDIRECT(\"'SorP'!$A$\"&MATCH($J1168,SorP!$B$1:$B$5661,0))))","v":""},null,{"$f":"IF(C1168=\"\",NA(),MATCH($B1168&$C1168,'Smelter Look-up'!$J:$J,0))","v":{"$error":"#N/A"}},null,0,null,null,null,""]
[null,{"$f":"IF(LEN(A1169)=0,\"\",INDEX('Smelter Look-up'!$A:$A,MATCH($A1169,'Smelter Look-up'!$E:$E,0)))","v":""},{"$f":"IF(LEN(A1169)=0,\"\",INDEX('Smelter Look-up'!$C:$C,MATCH($A1169,'Smelter Look-up'!$E:$E,0)))","v":""},null,{"$f":"IF(ISERROR($V1169),\"\",OFFSET('Smelter Look-up'!$D$4,$V1169-4,0)&\"\")","v":""},{"$f":"IF(ISERROR($V1169),\"\",OFFSET('Smelter Look-up'!$E$4,$V1169-4,0))","v":""},{"$f":"IF(C1169=$X$4,\"Enter smelter details\",IF(ISERROR($V1169),\"\",OFFSET('Smelter Look-up'!$F$4,$V1169-4,0)))","v":""},{"$f":"IF(ISERROR($V1169),\"\",OFFSET('Smelter Look-up'!$G$4,$V1169-4,0))","v":""},{"$f":"IF(ISERROR($V1169),\"\",OFFSET('Smelter Look-up'!$H$4,$V1169-4,0))","v":""},{"$f":"IF(ISERROR($V1169),\"\",OFFSET('Smelter Look-up'!$I$4,$V1169-4,0))","v":""},{"$nulls":7},{"$f":"IF(ISERROR($V1169),\"\",OFFSET('Smelter Look-up'!$C$4,$V1169-4,0)&\"\")","v":""},"",{"$f":"IF(B1169=\"\",\"\",IF(ISERROR(MATCH($J1169,SorP!$B$1:$B$5661,0)),\"\",INDIRECT(\"'SorP'!$A$\"&MATCH($J1169,SorP!$B$1:$B$5661,0))))","v":""},null,{"$f":"IF(C1169=\"\",NA(),MATCH($B1169&$C1169,'Smelter Look-up'!$J:$J,0))","v":{"$error":"#N/A"}},null,0,null,null,null,""]
[null,{"$f":"IF(LEN(A1170)=0,\"\",INDEX('Smelter Look-up'!$A:$A,MATCH($A1170,'Smelter Look-up'!$E:$E,0)))","v":""},{"$f":"IF(LEN(A1170)=0,\"\",INDEX('Smelter Look-up'!$C:$C,MATCH($A1170,'Smelter Look-up'!$E:$E,0)))","v":""},null,{"$f":"IF(ISERROR($V1170),\"\",OFFSET('Smelter Look-up'!$D$4,$V1170-4,0)&\"\")","v":""},{"$f":"IF(ISERROR($V1170),\"\",OFFSET('Smelter Look-up'!$E$4,$V1170-4,0))","v":""},{"$f":"IF(C1170=$X$4,\"Enter smelter details\",IF(ISERROR($V1170),\"\",OFFSET('Smelter Look-up'!$F$4,$V1170-4,0)))","v":""},{"$f":"IF(ISERROR($V1170),\"\",OFFSET('Smelter Look-up'!$G$4,$V1170-4,0))","v":""},{"$f":"IF(ISERROR($V1170),\"\",OFFSET('Smelter Look-up'!$H$4,$V1170-4,0))","v":""},{"$f":"IF(ISERROR($V1170),\"\",OFFSET('Smelter Look-up'!$I$4,$V1170-4,0))","v":""},{"$nulls":7},{"$f":"IF(ISERROR($V1170),\"\",OFFSET('Smelter Look-up'!$C$4,$V1170-4,0)&\"\")","v":""},"",{"$f":"IF(B1170=\"\",\"\",IF(ISERROR(MATCH($J1170,SorP!$B$1:$B$5661,0)),\"\",INDIRECT(\"'SorP'!$A$\"&MATCH($J1170,SorP!$B$1:$B$5661,0))))","v":""},null,{"$f":"IF(C1170=\"\",NA(),MATCH($B1170&$C1170,'Smelter Look-up'!$J:$J,0))","v":{"$error":"#N/A"}},null,0,null,null,null,""]
[null,{"$f":"IF(LEN(A1171)=0,\"\",INDEX('Smelter Look-up'!$A:$A,MATCH($A1171,'Smelter Look-up'!$E:$E,0)))","v":""},{"$f":"IF(LEN(A1171)=0,\"\",INDEX('Smelter Look-up'!$C:$C,MATCH($A1171,'Smelter Look-up'!$E:$E,0)))","v":""},null,{"$f":"IF(ISERROR($V1171),\"\",OFFSET('Smelter Look-up'!$D$4,$V1171-4,0)&\"\")","v":""},{"$f":"IF(ISERROR($V1171),\"\",OFFSET('Smelter Look-up'!$E$4,$V1171-4,0))","v":""},{"$f":"IF(C1171=$X$4,\"Enter smelter details\",IF(ISERROR($V1171),\"\",OFFSET('Smelter Look-up'!$F$4,$V1171-4,0)))","v":""},{"$f":"IF(ISERROR($V1171),\"\",OFFSET('Smelter Look-up'!$G$4,$V1171-4,0))","v":""},{"$f":"IF(ISERROR($V1171),\"\",OFFSET('Smelter Look-up'!$H$4,$V1171-4,0))","v":""},{"$f":"IF(ISERROR($V1171),\"\",OFFSET('Smelter Look-up'!$I$4,$V1171-4,0))","v":""},{"$nulls":7},{"$f":"IF(ISERROR($V1171),\"\",OFFSET('Smelter Look-up'!$C$4,$V1171-4,0)&\"\")","v":""},"",{"$f":"IF(B1171=\"\",\"\",IF(ISERROR(MATCH($J1171,SorP!$B$1:$B$5661,0)),\"\",INDIRECT(\"'SorP'!$A$\"&MATCH($J1171,SorP!$B$1:$B$5661,0))))","v":""},null,{"$f":"IF(C1171=\"\",NA(),MATCH($B1171&$C1171,'Smelter Look-up'!$J:$J,0))","v":{"$error":"#N/A"}},null,0,null,null,null,""]
[null,{"$f":"IF(LEN(A1172)=0,\"\",INDEX('Smelter Look-up'!$A:$A,MATCH($A1172,'Smelter Look-up'!$E:$E,0)))","v":""},{"$f":"IF(LEN(A1172)=0,\"\",INDEX('Smelter Look-up'!$C:$C,MATCH($A1172,'Smelter Look-up'!$E:$E,0)))","v":""},null,{"$f":"IF(ISERROR($V1172),\"\",OFFSET('Smelter Look-up'!$D$4,$V1172-4,0)&\"\")","v":""},{"$f":"IF(ISERROR($V1172),\"\",OFFSET('Smelter Look-up'!$E$4,$V1172-4,0))","v":""},{"$f":"IF(C1172=$X$4,\"Enter smelter details\",IF(ISERROR($V1172),\"\",OFFSET('Smelter Look-up'!$F$4,$V1172-4,0)))","v":""},{"$f":"IF(ISERROR($V1172),\"\",OFFSET('Smelter Look-up'!$G$4,$V1172-4,0))","v":""},{"$f":"IF(ISERROR($V1172),\"\",OFFSET('Smelter Look-up'!$H$4,$V1172-4,0))","v":""},{"$f":"IF(ISERROR($V1172),\"\",OFFSET('Smelter Look-up'!$I$4,$V1172-4,0))","v":""},{"$nulls":7},{"$f":"IF(ISERROR($V1172),\"\",OFFSET('Smelter Look-up'!$C$4,$V1172-4,0)&\"\")","v":""},"",{"$f":"IF(B1172=\"\",\"\",IF(ISERROR(MATCH($J1172,SorP!$B$1:$B$5661,0)),\"\",INDIRECT(\"'SorP'!$A$\"&MATCH($J1172,SorP!$B$1:$B$5661,0))))","v":""},null,{"$f":"IF(C1172=\"\",NA(),MATCH($B1172&$C1172,'Smelter Look-up'!$J:$J,0))","v":{"$error":"#N/A"}},null,0,null,null,null,""]
[null,{"$f":"IF(LEN(A1173)=0,\"\",INDEX('Smelter Look-up'!$A:$A,MATCH($A1173,'Smelter Look-up'!$E:$E,0)))","v":""},{"$f":"IF(LEN(A1173)=0,\"\",INDEX('Smelter Look-up'!$C:$C,MATCH($A1173,'Smelter Look-up'!$E:$E,0)))","v":""},null,{"$f":"IF(ISERROR($V1173),\"\",OFFSET('Smelter Look-up'!$D$4,$V1173-4,0)&\"\")","v":""},{"$f":"IF(ISERROR($V1173),\"\",OFFSET('Smelter Look-up'!$E$4,$V1173-4,0))","v":""},{"$f":"IF(C1173=$X$4,\"Enter smelter details\",IF(ISERROR($V1173),\"\",OFFSET('Smelter Look-up'!$F$4,$V1173-4,0)))","v":""},{"$f":"IF(ISERROR($V1173),\"\",OFFSET('Smelter Look-up'!$G$4,$V1173-4,0))","v":""},{"$f":"IF(ISERROR($V1173),\"\",OFFSET('Smelter Look-up'!$H$4,$V1173-4,0))","v":""},{"$f":"IF(ISERROR($V1173),\"\",OFFSET('Smelter Look-up'!$I$4,$V1173-4,0))","v":""},{"$nulls":7},{"$f":"IF(ISERROR($V1173),\"\",OFFSET('Smelter Look-up'!$C$4,$V1173-4,0)&\"\")","v":""},"",{"$f":"IF(B1173=\"\",\"\",IF(ISERROR(MATCH($J1173,SorP!$B$1:$B$5661,0)),\"\",INDIRECT(\"'SorP'!$A$\"&MATCH($J1173,SorP!$B$1:$B$5661,0))))","v":""},null,{"$f":"IF(C1173=\"\",NA(),MATCH($B1173&$C1173,'Smelter Look-up'!$J:$J,0))","v":{"$error":"#N/A"}},null,0,null,null,null,""]
[null,{"$f":"IF(LEN(A1174)=0,\"\",INDEX('Smelter Look-up'!$A:$A,MATCH($A1174,'Smelter Look-up'!$E:$E,0)))","v":""},{"$f":"IF(LEN(A1174)=0,\"\",INDEX('Smelter Look-up'!$C:$C,MATCH($A1174,'Smelter Look-up'!$E:$E,0)))","v":""},null,{"$f":"IF(ISERROR($V1174),\"\",OFFSET('Smelter Look-up'!$D$4,$V1174-4,0)&\"\")","v":""},{"$f":"IF(ISERROR($V1174),\"\",OFFSET('Smelter Look-up'!$E$4,$V1174-4,0))","v":""},{"$f":"IF(C1174=$X$4,\"Enter smelter details\",IF(ISERROR($V1174),\"\",OFFSET('Smelter Look-up'!$F$4,$V1174-4,0)))","v":""},{"$f":"IF(ISERROR($V1174),\"\",OFFSET('Smelter Look-up'!$G$4,$V1174-4,0))","v":""},{"$f":"IF(ISERROR($V1174),\"\",OFFSET('Smelter Look-up'!$H$4,$V1174-4,0))","v":""},{"$f":"IF(ISERROR($V1174),\"\",OFFSET('Smelter Look-up'!$I$4,$V1174-4,0))","v":""},{"$nulls":7},{"$f":"IF(ISERROR($V1174),\"\",OFFSET('Smelter Look-up'!$C$4,$V1174-4,0)&\"\")","v":""},"",{"$f":"IF(B1174=\"\",\"\",IF(ISERROR(MATCH($J1174,SorP!$B$1:$B$5661,0)),\"\",INDIRECT(\"'SorP'!$A$\"&MATCH($J1174,SorP!$B$1:$B$5661,0))))","v":""},null,{"$f":"IF(C1174=\"\",NA(),MATCH($B1174&$C1174,'Smelter Look-up'!$J:$J,0))","v":{"$error":"#N/A"}},null,0,null,null,null,""]
[null,{"$f":"IF(LEN(A1175)=0,\"\",INDEX('Smelter Look-up'!$A:$A,MATCH($A1175,'Smelter Look-up'!$E:$E,0)))","v":""},{"$f":"IF(LEN(A1175)=0,\"\",INDEX('Smelter Look-up'!$C:$C,MATCH($A1175,'Smelter Look-up'!$E:$E,0)))","v":""},null,{"$f":"IF(ISERROR($V1175),\"\",OFFSET('Smelter Look-up'!$D$4,$V1175-4,0)&\"\")","v":""},{"$f":"IF(ISERROR($V1175),\"\",OFFSET('Smelter Look-up'!$E$4,$V1175-4,0))","v":""},{"$f":"IF(C1175=$X$4,\"Enter smelter details\",IF(ISERROR($V1175),\"\",OFFSET('Smelter Look-up'!$F$4,$V1175-4,0)))","v":""},{"$f":"IF(ISERROR($V1175),\"\",OFFSET('Smelter Look-up'!$G$4,$V1175-4,0))","v":""},{"$f":"IF(ISERROR($V1175),\"\",OFFSET('Smelter Look-up'!$H$4,$V1175-4,0))","v":""},{"$f":"IF(ISERROR($V1175),\"\",OFFSET('Smelter Look-up'!$I$4,$V1175-4,0))","v":""},{"$nulls":7},{"$f":"IF(ISERROR($V1175),\"\",OFFSET('Smelter Look-up'!$C$4,$V1175-4,0)&\"\")","v":""},"",{"$f":"IF(B1175=\"\",\"\",IF(ISERROR(MATCH($J1175,SorP!$B$1:$B$5661,0)),\"\",INDIRECT(\"'SorP'!$A$\"&MATCH($J1175,SorP!$B$1:$B$5661,0))))","v":""},null,{"$f":"IF(C1175=\"\",NA(),MATCH($B1175&$C1175,'Smelter Look-up'!$J:$J,0))","v":{"$error":"#N/A"}},null,0,null,null,null,""]
[null,{"$f":"IF(LEN(A1176)=0,\"\",INDEX('Smelter Look-up'!$A:$A,MATCH($A1176,'Smelter Look-up'!$E:$E,0)))","v":""},{"$f":"IF(LEN(A1176)=0,\"\",INDEX('Smelter Look-up'!$C:$C,MATCH($A1176,'Smelter Look-up'!$E:$E,0)))","v":""},null,{"$f":"IF(ISERROR($V1176),\"\",OFFSET('Smelter Look-up'!$D$4,$V1176-4,0)&\"\")","v":""},{"$f":"IF(ISERROR($V1176),\"\",OFFSET('Smelter Look-up'!$E$4,$V1176-4,0))","v":""},{"$f":"IF(C1176=$X$4,\"Enter smelter details\",IF(ISERROR($V1176),\"\",OFFSET('Smelter Look-up'!$F$4,$V1176-4,0)))","v":""},{"$f":"IF(ISERROR($V1176),\"\",OFFSET('Smelter Look-up'!$G$4,$V1176-4,0))","v":""},{"$f":"IF(ISERROR($V1176),\"\",OFFSET('Smelter Look-up'!$H$4,$V1176-4,0))","v":""},{"$f":"IF(ISERROR($V1176),\"\",OFFSET('Smelter Look-up'!$I$4,$V1176-4,0))","v":""},{"$nulls":7},{"$f":"IF(ISERROR($V1176),\"\",OFFSET('Smelter Look-up'!$C$4,$V1176-4,0)&\"\")","v":""},"",{"$f":"IF(B1176=\"\",\"\",IF(ISERROR(MATCH($J1176,SorP!$B$1:$B$5661,0)),\"\",INDIRECT(\"'SorP'!$A$\"&MATCH($J1176,SorP!$B$1:$B$5661,0))))","v":""},null,{"$f":"IF(C1176=\"\",NA(),MATCH($B1176&$C1176,'Smelter Look-up'!$J:$J,0))","v":{"$error":"#N/A"}},null,0,null,null,null,""]
[null,{"$f":"IF(LEN(A1177)=0,\"\",INDEX('Smelter Look-up'!$A:$A,MATCH($A1177,'Smelter Look-up'!$E:$E,0)))","v":""},{"$f":"IF(LEN(A1177)=0,\"\",INDEX('Smelter Look-up'!$C:$C,MATCH($A1177,'Smelter Look-up'!$E:$E,0)))","v":""},null,{"$f":"IF(ISERROR($V1177),\"\",OFFSET('Smelter Look-up'!$D$4,$V1177-4,0)&\"\")","v":""},{"$f":"IF(ISERROR($V1177),\"\",OFFSET('Smelter Look-up'!$E$4,$V1177-4,0))","v":""},{"$f":"IF(C1177=$X$4,\"Enter smelter details\",IF(ISERROR($V1177),\"\",OFFSET('Smelter Look-up'!$F$4,$V1177-4,0)))","v":""},{"$f":"IF(ISERROR($V1177),\"\",OFFSET('Smelter Look-up'!$G$4,$V1177-4,0))","v":""},{"$f":"IF(ISERROR($V1177),\"\",OFFSET('Smelter Look-up'!$H$4,$V1177-4,0))","v":""},{"$f":"IF(ISERROR($V1177),\"\",OFFSET('Smelter Look-up'!$I$4,$V1177-4,0))","v":""},{"$nulls":7},{"$f":"IF(ISERROR($V1177),\"\",OFFSET('Smelter Look-up'!$C$4,$V1177-4,0)&\"\")","v":""},"",{"$f":"IF(B1177=\"\",\"\",IF(ISERROR(MATCH($J1177,SorP!$B$1:$B$5661,0)),\"\",INDIRECT(\"'SorP'!$A$\"&MATCH($J1177,SorP!$B$1:$B$5661,0))))","v":""},null,{"$f":"IF(C1177=\"\",NA(),MATCH($B1177&$C1177,'Smelter Look-up'!$J:$J,0))","v":{"$error":"#N/A"}},null,0,null,null,null,""]
[null,{"$f":"IF(LEN(A1178)=0,\"\",INDEX('Smelter Look-up'!$A:$A,MATCH($A1178,'Smelter Look-up'!$E:$E,0)))","v":""},{"$f":"IF(LEN(A1178)=0,\"\",INDEX('Smelter Look-up'!$C:$C,MATCH($A1178,'Smelter Look-up'!$E:$E,0)))","v":""},null,{"$f":"IF(ISERROR($V1178),\"\",OFFSET('Smelter Look-up'!$D$4,$V1178-4,0)&\"\")","v":""},{"$f":"IF(ISERROR($V1178),\"\",OFFSET('Smelter Look-up'!$E$4,$V1178-4,0))","v":""},{"$f":"IF(C1178=$X$4,\"Enter smelter details\",IF(ISERROR($V1178),\"\",OFFSET('Smelter Look-up'!$F$4,$V1178-4,0)))","v":""},{"$f":"IF(ISERROR($V1178),\"\",OFFSET('Smelter Look-up'!$G$4,$V1178-4,0))","v":""},{"$f":"IF(ISERROR($V1178),\"\",OFFSET('Smelter Look-up'!$H$4,$V1178-4,0))","v":""},{"$f":"IF(ISERROR($V1178),\"\",OFFSET('Smelter Look-up'!$I$4,$V1178-4,0))","v":""},{"$nulls":7},{"$f":"IF(ISERROR($V1178),\"\",OFFSET('Smelter Look-up'!$C$4,$V1178-4,0)&\"\")","v":""},"",{"$f":"IF(B1178=\"\",\"\",IF(ISERROR(MATCH($J1178,SorP!$B$1:$B$5661,0)),\"\",INDIRECT(\"'SorP'!$A$\"&MATCH($J1178,SorP!$B$1:$B$5661,0))))","v":""},null,{"$f":"IF(C1178=\"\",NA(),MATCH($B1178&$C1178,'Smelter Look-up'!$J:$J,0))","v":{"$error":"#N/A"}},null,0,null,null,null,""]
[null,{"$f":"IF(LEN(A1179)=0,\"\",INDEX('Smelter Look-up'!$A:$A,MATCH($A1179,'Smelter Look-up'!$E:$E,0)))","v":""},{"$f":"IF(LEN(A1179)=0,\"\",INDEX('Smelter Look-up'!$C:$C,MATCH($A1179,'Smelter Look-up'!$E:$E,0)))","v":""},null,{"$f":"IF(ISERROR($V1179),\"\",OFFSET('Smelter Look-up'!$D$4,$V1179-4,0)&\"\")","v":""},{"$f":"IF(ISERROR($V1179),\"\",OFFSET('Smelter Look-up'!$E$4,$V1179-4,0))","v":""},{"$f":"IF(C1179=$X$4,\"Enter smelter details\",IF(ISERROR($V1179),\"\",OFFSET('Smelter Look-up'!$F$4,$V1179-4,0)))","v":""},{"$f":"IF(ISERROR($V1179),\"\",OFFSET('Smelter Look-up'!$G$4,$V1179-4,0))","v":""},{"$f":"IF(ISERROR($V1179),\"\",OFFSET('Smelter Look-up'!$H$4,$V1179-4,0))","v":""},{"$f":"IF(ISERROR($V1179),\"\",OFFSET('Smelter Look-up'!$I$4,$V1179-4,0))","v":""},{"$nulls":7},{"$f":"IF(ISERROR($V1179),\"\",OFFSET('Smelter Look-up'!$C$4,$V1179-4,0)&\"\")","v":""},"",{"$f":"IF(B1179=\"\",\"\",IF(ISERROR(MATCH($J1179,SorP!$B$1:$B$5661,0)),\"\",INDIRECT(\"'SorP'!$A$\"&MATCH($J1179,SorP!$B$1:$B$5661,0))))","v":""},null,{"$f":"IF(C1179=\"\",NA(),MATCH($B1179&$C1179,'Smelter Look-up'!$J:$J,0))","v":{"$error":"#N/A"}},null,0,null,null,null,""]
[null,{"$f":"IF(LEN(A1180)=0,\"\",INDEX('Smelter Look-up'!$A:$A,MATCH($A1180,'Smelter Look-up'!$E:$E,0)))","v":""},{"$f":"IF(LEN(A1180)=0,\"\",INDEX('Smelter Look-up'!$C:$C,MATCH($A1180,'Smelter Look-up'!$E:$E,0)))","v":""},null,{"$f":"IF(ISERROR($V1180),\"\",OFFSET('Smelter Look-up'!$D$4,$V1180-4,0)&\"\")","v":""},{"$f":"IF(ISERROR($V1180),\"\",OFFSET('Smelter Look-up'!$E$4,$V1180-4,0))","v":""},{"$f":"IF(C1180=$X$4,\"Enter smelter details\",IF(ISERROR($V1180),\"\",OFFSET('Smelter Look-up'!$F$4,$V1180-4,0)))","v":""},{"$f":"IF(ISERROR($V1180),\"\",OFFSET('Smelter Look-up'!$G$4,$V1180-4,0))","v":""},{"$f":"IF(ISERROR($V1180),\"\",OFFSET('Smelter Look-up'!$H$4,$V1180-4,0))","v":""},{"$f":"IF(ISERROR($V1180),\"\",OFFSET('Smelter Look-up'!$I$4,$V1180-4,0))","v":""},{"$nulls":7},{"$f":"IF(ISERROR($V1180),\"\",OFFSET('Smelter Look-up'!$C$4,$V1180-4,0)&\"\")","v":""},"",{"$f":"IF(B1180=\"\",\"\",IF(ISERROR(MATCH($J1180,SorP!$B$1:$B$5661,0)),\"\",INDIRECT(\"'SorP'!$A$\"&MATCH($J1180,SorP!$B$1:$B$5661,0))))","v":""},null,{"$f":"IF(C1180=\"\",NA(),MATCH($B1180&$C1180,'Smelter Look-up'!$J:$J,0))","v":{"$error":"#N/A"}},null,0,null,null,null,""]
[null,{"$f":"IF(LEN(A1181)=0,\"\",INDEX('Smelter Look-up'!$A:$A,MATCH($A1181,'Smelter Look-up'!$E:$E,0)))","v":""},{"$f":"IF(LEN(A1181)=0,\"\",INDEX('Smelter Look-up'!$C:$C,MATCH($A1181,'Smelter Look-up'!$E:$E,0)))","v":""},null,{"$f":"IF(ISERROR($V1181),\"\",OFFSET('Smelter Look-up'!$D$4,$V1181-4,0)&\"\")","v":""},{"$f":"IF(ISERROR($V1181),\"\",OFFSET('Smelter Look-up'!$E$4,$V1181-4,0))","v":""},{"$f":"IF(C1181=$X$4,\"Enter smelter details\",IF(ISERROR($V1181),\"\",OFFSET('Smelter Look-up'!$F$4,$V1181-4,0)))","v":""},{"$f":"IF(ISERROR($V1181),\"\",OFFSET('Smelter Look-up'!$G$4,$V1181-4,0))","v":""},{"$f":"IF(ISERROR($V1181),\"\",OFFSET('Smelter Look-up'!$H$4,$V1181-4,0))","v":""},{"$f":"IF(ISERROR($V1181),\"\",OFFSET('Smelter Look-up'!$I$4,$V1181-4,0))","v":""},{"$nulls":7},{"$f":"IF(ISERROR($V1181),\"\",OFFSET('Smelter Look-up'!$C$4,$V1181-4,0)&\"\")","v":""},"",{"$f":"IF(B1181=\"\",\"\",IF(ISERROR(MATCH($J1181,SorP!$B$1:$B$5661,0)),\"\",INDIRECT(\"'SorP'!$A$\"&MATCH($J1181,SorP!$B$1:$B$5661,0))))","v":""},null,{"$f":"IF(C1181=\"\",NA(),MATCH($B1181&$C1181,'Smelter Look-up'!$J:$J,0))","v":{"$error":"#N/A"}},null,0,null,null,null,""]
[null,{"$f":"IF(LEN(A1182)=0,\"\",INDEX('Smelter Look-up'!$A:$A,MATCH($A1182,'Smelter Look-up'!$E:$E,0)))","v":""},{"$f":"IF(LEN(A1182)=0,\"\",INDEX('Smelter Look-up'!$C:$C,MATCH($A1182,'Smelter Look-up'!$E:$E,0)))","v":""},null,{"$f":"IF(ISERROR($V1182),\"\",OFFSET('Smelter Look-up'!$D$4,$V1182-4,0)&\"\")","v":""},{"$f":"IF(ISERROR($V1182),\"\",OFFSET('Smelter Look-up'!$E$4,$V1182-4,0))","v":""},{"$f":"IF(C1182=$X$4,\"Enter smelter details\",IF(ISERROR($V1182),\"\",OFFSET('Smelter Look-up'!$F$4,$V1182-4,0)))","v":""},{"$f":"IF(ISERROR($V1182),\"\",OFFSET('Smelter Look-up'!$G$4,$V1182-4,0))","v":""},{"$f":"IF(ISERROR($V1182),\"\",OFFSET('Smelter Look-up'!$H$4,$V1182-4,0))","v":""},{"$f":"IF(ISERROR($V1182),\"\",OFFSET('Smelter Look-up'!$I$4,$V1182-4,0))","v":""},{"$nulls":7},{"$f":"IF(ISERROR($V1182),\"\",OFFSET('Smelter Look-up'!$C$4,$V1182-4,0)&\"\")","v":""},"",{"$f":"IF(B1182=\"\",\"\",IF(ISERROR(MATCH($J1182,SorP!$B$1:$B$5661,0)),\"\",INDIRECT(\"'SorP'!$A$\"&MATCH($J1182,SorP!$B$1:$B$5661,0))))","v":""},null,{"$f":"IF(C1182=\"\",NA(),MATCH($B1182&$C1182,'Smelter Look-up'!$J:$J,0))","v":{"$error":"#N/A"}},null,0,null,null,null,""]
[null,{"$f":"IF(LEN(A1183)=0,\"\",INDEX('Smelter Look-up'!$A:$A,MATCH($A1183,'Smelter Look-up'!$E:$E,0)))","v":""},{"$f":"IF(LEN(A1183)=0,\"\",INDEX('Smelter Look-up'!$C:$C,MATCH($A1183,'Smelter Look-up'!$E:$E,0)))","v":""},null,{"$f":"IF(ISERROR($V1183),\"\",OFFSET('Smelter Look-up'!$D$4,$V1183-4,0)&\"\")","v":""},{"$f":"IF(ISERROR($V1183),\"\",OFFSET('Smelter Look-up'!$E$4,$V1183-4,0))","v":""},{"$f":"IF(C1183=$X$4,\"Enter smelter details\",IF(ISERROR($V1183),\"\",OFFSET('Smelter Look-up'!$F$4,$V1183-4,0)))","v":""},{"$f":"IF(ISERROR($V1183),\"\",OFFSET('Smelter Look-up'!$G$4,$V1183-4,0))","v":""},{"$f":"IF(ISERROR($V1183),\"\",OFFSET('Smelter Look-up'!$H$4,$V1183-4,0))","v":""},{"$f":"IF(ISERROR($V1183),\"\",OFFSET('Smelter Look-up'!$I$4,$V1183-4,0))","v":""},{"$nulls":7},{"$f":"IF(ISERROR($V1183),\"\",OFFSET('Smelter Look-up'!$C$4,$V1183-4,0)&\"\")","v":""},"",{"$f":"IF(B1183=\"\",\"\",IF(ISERROR(MATCH($J1183,SorP!$B$1:$B$5661,0)),\"\",INDIRECT(\"'SorP'!$A$\"&MATCH($J1183,SorP!$B$1:$B$5661,0))))","v":""},null,{"$f":"IF(C1183=\"\",NA(),MATCH($B1183&$C1183,'Smelter Look-up'!$J:$J,0))","v":{"$error":"#N/A"}},null,0,null,null,null,""]
[null,{"$f":"IF(LEN(A1184)=0,\"\",INDEX('Smelter Look-up'!$A:$A,MATCH($A1184,'Smelter Look-up'!$E:$E,0)))","v":""},{"$f":"IF(LEN(A1184)=0,\"\",INDEX('Smelter Look-up'!$C:$C,MATCH($A1184,'Smelter Look-up'!$E:$E,0)))","v":""},null,{"$f":"IF(ISERROR($V1184),\"\",OFFSET('Smelter Look-up'!$D$4,$V1184-4,0)&\"\")","v":""},{"$f":"IF(ISERROR($V1184),\"\",OFFSET('Smelter Look-up'!$E$4,$V1184-4,0))","v":""},{"$f":"IF(C1184=$X$4,\"Enter smelter details\",IF(ISERROR($V1184),\"\",OFFSET('Smelter Look-up'!$F$4,$V1184-4,0)))","v":""},{"$f":"IF(ISERROR($V1184),\"\",OFFSET('Smelter Look-up'!$G$4,$V1184-4,0))","v":""},{"$f":"IF(ISERROR($V1184),\"\",OFFSET('Smelter Look-up'!$H$4,$V1184-4,0))","v":""},{"$f":"IF(ISERROR($V1184),\"\",OFFSET('Smelter Look-up'!$I$4,$V1184-4,0))","v":""},{"$nulls":7},{"$f":"IF(ISERROR($V1184),\"\",OFFSET('Smelter Look-up'!$C$4,$V1184-4,0)&\"\")","v":""},"",{"$f":"IF(B1184=\"\",\"\",IF(ISERROR(MATCH($J1184,SorP!$B$1:$B$5661,0)),\"\",INDIRECT(\"'SorP'!$A$\"&MATCH($J1184,SorP!$B$1:$B$5661,0))))","v":""},null,{"$f":"IF(C1184=\"\",NA(),MATCH($B1184&$C1184,'Smelter Look-up'!$J:$J,0))","v":{"$error":"#N/A"}},null,0,null,null,null,""]
[null,{"$f":"IF(LEN(A1185)=0,\"\",INDEX('Smelter Look-up'!$A:$A,MATCH($A1185,'Smelter Look-up'!$E:$E,0)))","v":""},{"$f":"IF(LEN(A1185)=0,\"\",INDEX('Smelter Look-up'!$C:$C,MATCH($A1185,'Smelter Look-up'!$E:$E,0)))","v":""},null,{"$f":"IF(ISERROR($V1185),\"\",OFFSET('Smelter Look-up'!$D$4,$V1185-4,0)&\"\")","v":""},{"$f":"IF(ISERROR($V1185),\"\",OFFSET('Smelter Look-up'!$E$4,$V1185-4,0))","v":""},{"$f":"IF(C1185=$X$4,\"Enter smelter details\",IF(ISERROR($V1185),\"\",OFFSET('Smelter Look-up'!$F$4,$V1185-4,0)))","v":""},{"$f":"IF(ISERROR($V1185),\"\",OFFSET('Smelter Look-up'!$G$4,$V1185-4,0))","v":""},{"$f":"IF(ISERROR($V1185),\"\",OFFSET('Smelter Look-up'!$H$4,$V1185-4,0))","v":""},{"$f":"IF(ISERROR($V1185),\"\",OFFSET('Smelter Look-up'!$I$4,$V1185-4,0))","v":""},{"$nulls":7},{"$f":"IF(ISERROR($V1185),\"\",OFFSET('Smelter Look-up'!$C$4,$V1185-4,0)&\"\")","v":""},"",{"$f":"IF(B1185=\"\",\"\",IF(ISERROR(MATCH($J1185,SorP!$B$1:$B$5661,0)),\"\",INDIRECT(\"'SorP'!$A$\"&MATCH($J1185,SorP!$B$1:$B$5661,0))))","v":""},null,{"$f":"IF(C1185=\"\",NA(),MATCH($B1185&$C1185,'Smelter Look-up'!$J:$J,0))","v":{"$error":"#N/A"}},null,0,null,null,null,""]
[null,{"$f":"IF(LEN(A1186)=0,\"\",INDEX('Smelter Look-up'!$A:$A,MATCH($A1186,'Smelter Look-up'!$E:$E,0)))","v":""},{"$f":"IF(LEN(A1186)=0,\"\",INDEX('Smelter Look-up'!$C:$C,MATCH($A1186,'Smelter Look-up'!$E:$E,0)))","v":""},null,{"$f":"IF(ISERROR($V1186),\"\",OFFSET('Smelter Look-up'!$D$4,$V1186-4,0)&\"\")","v":""},{"$f":"IF(ISERROR($V1186),\"\",OFFSET('Smelter Look-up'!$E$4,$V1186-4,0))","v":""},{"$f":"IF(C1186=$X$4,\"Enter smelter details\",IF(ISERROR($V1186),\"\",OFFSET('Smelter Look-up'!$F$4,$V1186-4,0)))","v":""},{"$f":"IF(ISERROR($V1186),\"\",OFFSET('Smelter Look-up'!$G$4,$V1186-4,0))","v":""},{"$f":"IF(ISERROR($V1186),\"\",OFFSET('Smelter Look-up'!$H$4,$V1186-4,0))","v":""},{"$f":"IF(ISERROR($V1186),\"\",OFFSET('Smelter Look-up'!$I$4,$V1186-4,0))","v":""},{"$nulls":7},{"$f":"IF(ISERROR($V1186),\"\",OFFSET('Smelter Look-up'!$C$4,$V1186-4,0)&\"\")","v":""},"",{"$f":"IF(B1186=\"\",\"\",IF(ISERROR(MATCH($J1186,SorP!$B$1:$B$5661,0)),\"\",INDIRECT(\"'SorP'!$A$\"&MATCH($J1186,SorP!$B$1:$B$5661,0))))","v":""},null,{"$f":"IF(C1186=\"\",NA(),MATCH($B1186&$C1186,'Smelter Look-up'!$J:$J,0))","v":{"$error":"#N/A"}},null,0,null,null,null,""]
[null,{"$f":"IF(LEN(A1187)=0,\"\",INDEX('Smelter Look-up'!$A:$A,MATCH($A1187,'Smelter Look-up'!$E:$E,0)))","v":""},{"$f":"IF(LEN(A1187)=0,\"\",INDEX('Smelter Look-up'!$C:$C,MATCH($A1187,'Smelter Look-up'!$E:$E,0)))","v":""},null,{"$f":"IF(ISERROR($V1187),\"\",OFFSET('Smelter Look-up'!$D$4,$V1187-4,0)&\"\")","v":""},{"$f":"IF(ISERROR($V1187),\"\",OFFSET('Smelter Look-up'!$E$4,$V1187-4,0))","v":""},{"$f":"IF(C1187=$X$4,\"Enter smelter details\",IF(ISERROR($V1187),\"\",OFFSET('Smelter Look-up'!$F$4,$V1187-4,0)))","v":""},{"$f":"IF(ISERROR($V1187),\"\",OFFSET('Smelter Look-up'!$G$4,$V1187-4,0))","v":""},{"$f":"IF(ISERROR($V1187),\"\",OFFSET('Smelter Look-up'!$H$4,$V1187-4,0))","v":""},{"$f":"IF(ISERROR($V1187),\"\",OFFSET('Smelter Look-up'!$I$4,$V1187-4,0))","v":""},{"$nulls":7},{"$f":"IF(ISERROR($V1187),\"\",OFFSET('Smelter Look-up'!$C$4,$V1187-4,0)&\"\")","v":""},"",{"$f":"IF(B1187=\"\",\"\",IF(ISERROR(MATCH($J1187,SorP!$B$1:$B$5661,0)),\"\",INDIRECT(\"'SorP'!$A$\"&MATCH($J1187,SorP!$B$1:$B$5661,0))))","v":""},null,{"$f":"IF(C1187=\"\",NA(),MATCH($B1187&$C1187,'Smelter Look-up'!$J:$J,0))","v":{"$error":"#N/A"}},null,0,null,null,null,""]
[null,{"$f":"IF(LEN(A1188)=0,\"\",INDEX('Smelter Look-up'!$A:$A,MATCH($A1188,'Smelter Look-up'!$E:$E,0)))","v":""},{"$f":"IF(LEN(A1188)=0,\"\",INDEX('Smelter Look-up'!$C:$C,MATCH($A1188,'Smelter Look-up'!$E:$E,0)))","v":""},null,{"$f":"IF(ISERROR($V1188),\"\",OFFSET('Smelter Look-up'!$D$4,$V1188-4,0)&\"\")","v":""},{"$f":"IF(ISERROR($V1188),\"\",OFFSET('Smelter Look-up'!$E$4,$V1188-4,0))","v":""},{"$f":"IF(C1188=$X$4,\"Enter smelter details\",IF(ISERROR($V1188),\"\",OFFSET('Smelter Look-up'!$F$4,$V1188-4,0)))","v":""},{"$f":"IF(ISERROR($V1188),\"\",OFFSET('Smelter Look-up'!$G$4,$V1188-4,0))","v":""},{"$f":"IF(ISERROR($V1188),\"\",OFFSET('Smelter Look-up'!$H$4,$V1188-4,0))","v":""},{"$f":"IF(ISERROR($V1188),\"\",OFFSET('Smelter Look-up'!$I$4,$V1188-4,0))","v":""},{"$nulls":7},{"$f":"IF(ISERROR($V1188),\"\",OFFSET('Smelter Look-up'!$C$4,$V1188-4,0)&\"\")","v":""},"",{"$f":"IF(B1188=\"\",\"\",IF(ISERROR(MATCH($J1188,SorP!$B$1:$B$5661,0)),\"\",INDIRECT(\"'SorP'!$A$\"&MATCH($J1188,SorP!$B$1:$B$5661,0))))","v":""},null,{"$f":"IF(C1188=\"\",NA(),MATCH($B1188&$C1188,'Smelter Look-up'!$J:$J,0))","v":{"$error":"#N/A"}},null,0,null,null,null,""]
[null,{"$f":"IF(LEN(A1189)=0,\"\",INDEX('Smelter Look-up'!$A:$A,MATCH($A1189,'Smelter Look-up'!$E:$E,0)))","v":""},{"$f":"IF(LEN(A1189)=0,\"\",INDEX('Smelter Look-up'!$C:$C,MATCH($A1189,'Smelter Look-up'!$E:$E,0)))","v":""},null,{"$f":"IF(ISERROR($V1189),\"\",OFFSET('Smelter Look-up'!$D$4,$V1189-4,0)&\"\")","v":""},{"$f":"IF(ISERROR($V1189),\"\",OFFSET('Smelter Look-up'!$E$4,$V1189-4,0))","v":""},{"$f":"IF(C1189=$X$4,\"Enter smelter details\",IF(ISERROR($V1189),\"\",OFFSET('Smelter Look-up'!$F$4,$V1189-4,0)))","v":""},{"$f":"IF(ISERROR($V1189),\"\",OFFSET('Smelter Look-up'!$G$4,$V1189-4,0))","v":""},{"$f":"IF(ISERROR($V1189),\"\",OFFSET('Smelter Look-up'!$H$4,$V1189-4,0))","v":""},{"$f":"IF(ISERROR($V1189),\"\",OFFSET('Smelter Look-up'!$I$4,$V1189-4,0))","v":""},{"$nulls":7},{"$f":"IF(ISERROR($V1189),\"\",OFFSET('Smelter Look-up'!$C$4,$V1189-4,0)&\"\")","v":""},"",{"$f":"IF(B1189=\"\",\"\",IF(ISERROR(MATCH($J1189,SorP!$B$1:$B$5661,0)),\"\",INDIRECT(\"'SorP'!$A$\"&MATCH($J1189,SorP!$B$1:$B$5661,0))))","v":""},null,{"$f":"IF(C1189=\"\",NA(),MATCH($B1189&$C1189,'Smelter Look-up'!$J:$J,0))","v":{"$error":"#N/A"}},null,0,null,null,null,""]
[null,{"$f":"IF(LEN(A1190)=0,\"\",INDEX('Smelter Look-up'!$A:$A,MATCH($A1190,'Smelter Look-up'!$E:$E,0)))","v":""},{"$f":"IF(LEN(A1190)=0,\"\",INDEX('Smelter Look-up'!$C:$C,MATCH($A1190,'Smelter Look-up'!$E:$E,0)))","v":""},null,{"$f":"IF(ISERROR($V1190),\"\",OFFSET('Smelter Look-up'!$D$4,$V1190-4,0)&\"\")","v":""},{"$f":"IF(ISERROR($V1190),\"\",OFFSET('Smelter Look-up'!$E$4,$V1190-4,0))","v":""},{"$f":"IF(C1190=$X$4,\"Enter smelter details\",IF(ISERROR($V1190),\"\",OFFSET('Smelter Look-up'!$F$4,$V1190-4,0)))","v":""},{"$f":"IF(ISERROR($V1190),\"\",OFFSET('Smelter Look-up'!$G$4,$V1190-4,0))","v":""},{"$f":"IF(ISERROR($V1190),\"\",OFFSET('Smelter Look-up'!$H$4,$V1190-4,0))","v":""},{"$f":"IF(ISERROR($V1190),\"\",OFFSET('Smelter Look-up'!$I$4,$V1190-4,0))","v":""},{"$nulls":7},{"$f":"IF(ISERROR($V1190),\"\",OFFSET('Smelter Look-up'!$C$4,$V1190-4,0)&\"\")","v":""},"",{"$f":"IF(B1190=\"\",\"\",IF(ISERROR(MATCH($J1190,SorP!$B$1:$B$5661,0)),\"\",INDIRECT(\"'SorP'!$A$\"&MATCH($J1190,SorP!$B$1:$B$5661,0))))","v":""},null,{"$f":"IF(C1190=\"\",NA(),MATCH($B1190&$C1190,'Smelter Look-up'!$J:$J,0))","v":{"$error":"#N/A"}},null,0,null,null,null,""]
[null,{"$f":"IF(LEN(A1191)=0,\"\",INDEX('Smelter Look-up'!$A:$A,MATCH($A1191,'Smelter Look-up'!$E:$E,0)))","v":""},{"$f":"IF(LEN(A1191)=0,\"\",INDEX('Smelter Look-up'!$C:$C,MATCH($A1191,'Smelter Look-up'!$E:$E,0)))","v":""},null,{"$f":"IF(ISERROR($V1191),\"\",OFFSET('Smelter Look-up'!$D$4,$V1191-4,0)&\"\")","v":""},{"$f":"IF(ISERROR($V1191),\"\",OFFSET('Smelter Look-up'!$E$4,$V1191-4,0))","v":""},{"$f":"IF(C1191=$X$4,\"Enter smelter details\",IF(ISERROR($V1191),\"\",OFFSET('Smelter Look-up'!$F$4,$V1191-4,0)))","v":""},{"$f":"IF(ISERROR($V1191),\"\",OFFSET('Smelter Look-up'!$G$4,$V1191-4,0))","v":""},{"$f":"IF(ISERROR($V1191),\"\",OFFSET('Smelter Look-up'!$H$4,$V1191-4,0))","v":""},{"$f":"IF(ISERROR($V1191),\"\",OFFSET('Smelter Look-up'!$I$4,$V1191-4,0))","v":""},{"$nulls":7},{"$f":"IF(ISERROR($V1191),\"\",OFFSET('Smelter Look-up'!$C$4,$V1191-4,0)&\"\")","v":""},"",{"$f":"IF(B1191=\"\",\"\",IF(ISERROR(MATCH($J1191,SorP!$B$1:$B$5661,0)),\"\",INDIRECT(\"'SorP'!$A$\"&MATCH($J1191,SorP!$B$1:$B$5661,0))))","v":""},null,{"$f":"IF(C1191=\"\",NA(),MATCH($B1191&$C1191,'Smelter Look-up'!$J:$J,0))","v":{"$error":"#N/A"}},null,0,null,null,null,""]
[null,{"$f":"IF(LEN(A1192)=0,\"\",INDEX('Smelter Look-up'!$A:$A,MATCH($A1192,'Smelter Look-up'!$E:$E,0)))","v":""},{"$f":"IF(LEN(A1192)=0,\"\",INDEX('Smelter Look-up'!$C:$C,MATCH($A1192,'Smelter Look-up'!$E:$E,0)))","v":""},null,{"$f":"IF(ISERROR($V1192),\"\",OFFSET('Smelter Look-up'!$D$4,$V1192-4,0)&\"\")","v":""},{"$f":"IF(ISERROR($V1192),\"\",OFFSET('Smelter Look-up'!$E$4,$V1192-4,0))","v":""},{"$f":"IF(C1192=$X$4,\"Enter smelter details\",IF(ISERROR($V1192),\"\",OFFSET('Smelter Look-up'!$F$4,$V1192-4,0)))","v":""},{"$f":"IF(ISERROR($V1192),\"\",OFFSET('Smelter Look-up'!$G$4,$V1192-4,0))","v":""},{"$f":"IF(ISERROR($V1192),\"\",OFFSET('Smelter Look-up'!$H$4,$V1192-4,0))","v":""},{"$f":"IF(ISERROR($V1192),\"\",OFFSET('Smelter Look-up'!$I$4,$V1192-4,0))","v":""},{"$nulls":7},{"$f":"IF(ISERROR($V1192),\"\",OFFSET('Smelter Look-up'!$C$4,$V1192-4,0)&\"\")","v":""},"",{"$f":"IF(B1192=\"\",\"\",IF(ISERROR(MATCH($J1192,SorP!$B$1:$B$5661,0)),\"\",INDIRECT(\"'SorP'!$A$\"&MATCH($J1192,SorP!$B$1:$B$5661,0))))","v":""},null,{"$f":"IF(C1192=\"\",NA(),MATCH($B1192&$C1192,'Smelter Look-up'!$J:$J,0))","v":{"$error":"#N/A"}},null,0,null,null,null,""]
[null,{"$f":"IF(LEN(A1193)=0,\"\",INDEX('Smelter Look-up'!$A:$A,MATCH($A1193,'Smelter Look-up'!$E:$E,0)))","v":""},{"$f":"IF(LEN(A1193)=0,\"\",INDEX('Smelter Look-up'!$C:$C,MATCH($A1193,'Smelter Look-up'!$E:$E,0)))","v":""},null,{"$f":"IF(ISERROR($V1193),\"\",OFFSET('Smelter Look-up'!$D$4,$V1193-4,0)&\"\")","v":""},{"$f":"IF(ISERROR($V1193),\"\",OFFSET('Smelter Look-up'!$E$4,$V1193-4,0))","v":""},{"$f":"IF(C1193=$X$4,\"Enter smelter details\",IF(ISERROR($V1193),\"\",OFFSET('Smelter Look-up'!$F$4,$V1193-4,0)))","v":""},{"$f":"IF(ISERROR($V1193),\"\",OFFSET('Smelter Look-up'!$G$4,$V1193-4,0))","v":""},{"$f":"IF(ISERROR($V1193),\"\",OFFSET('Smelter Look-up'!$H$4,$V1193-4,0))","v":""},{"$f":"IF(ISERROR($V1193),\"\",OFFSET('Smelter Look-up'!$I$4,$V1193-4,0))","v":""},{"$nulls":7},{"$f":"IF(ISERROR($V1193),\"\",OFFSET('Smelter Look-up'!$C$4,$V1193-4,0)&\"\")","v":""},"",{"$f":"IF(B1193=\"\",\"\",IF(ISERROR(MATCH($J1193,SorP!$B$1:$B$5661,0)),\"\",INDIRECT(\"'SorP'!$A$\"&MATCH($J1193,SorP!$B$1:$B$5661,0))))","v":""},null,{"$f":"IF(C1193=\"\",NA(),MATCH($B1193&$C1193,'Smelter Look-up'!$J:$J,0))","v":{"$error":"#N/A"}},null,0,null,null,null,""]
[null,{"$f":"IF(LEN(A1194)=0,\"\",INDEX('Smelter Look-up'!$A:$A,MATCH($A1194,'Smelter Look-up'!$E:$E,0)))","v":""},{"$f":"IF(LEN(A1194)=0,\"\",INDEX('Smelter Look-up'!$C:$C,MATCH($A1194,'Smelter Look-up'!$E:$E,0)))","v":""},null,{"$f":"IF(ISERROR($V1194),\"\",OFFSET('Smelter Look-up'!$D$4,$V1194-4,0)&\"\")","v":""},{"$f":"IF(ISERROR($V1194),\"\",OFFSET('Smelter Look-up'!$E$4,$V1194-4,0))","v":""},{"$f":"IF(C1194=$X$4,\"Enter smelter details\",IF(ISERROR($V1194),\"\",OFFSET('Smelter Look-up'!$F$4,$V1194-4,0)))","v":""},{"$f":"IF(ISERROR($V1194),\"\",OFFSET('Smelter Look-up'!$G$4,$V1194-4,0))","v":""},{"$f":"IF(ISERROR($V1194),\"\",OFFSET('Smelter Look-up'!$H$4,$V1194-4,0))","v":""},{"$f":"IF(ISERROR($V1194),\"\",OFFSET('Smelter Look-up'!$I$4,$V1194-4,0))","v":""},{"$nulls":7},{"$f":"IF(ISERROR($V1194),\"\",OFFSET('Smelter Look-up'!$C$4,$V1194-4,0)&\"\")","v":""},"",{"$f":"IF(B1194=\"\",\"\",IF(ISERROR(MATCH($J1194,SorP!$B$1:$B$5661,0)),\"\",INDIRECT(\"'SorP'!$A$\"&MATCH($J1194,SorP!$B$1:$B$5661,0))))","v":""},null,{"$f":"IF(C1194=\"\",NA(),MATCH($B1194&$C1194,'Smelter Look-up'!$J:$J,0))","v":{"$error":"#N/A"}},null,0,null,null,null,""]
[null,{"$f":"IF(LEN(A1195)=0,\"\",INDEX('Smelter Look-up'!$A:$A,MATCH($A1195,'Smelter Look-up'!$E:$E,0)))","v":""},{"$f":"IF(LEN(A1195)=0,\"\",INDEX('Smelter Look-up'!$C:$C,MATCH($A1195,'Smelter Look-up'!$E:$E,0)))","v":""},null,{"$f":"IF(ISERROR($V1195),\"\",OFFSET('Smelter Look-up'!$D$4,$V1195-4,0)&\"\")","v":""},{"$f":"IF(ISERROR($V1195),\"\",OFFSET('Smelter Look-up'!$E$4,$V1195-4,0))","v":""},{"$f":"IF(C1195=$X$4,\"Enter smelter details\",IF(ISERROR($V1195),\"\",OFFSET('Smelter Look-up'!$F$4,$V1195-4,0)))","v":""},{"$f":"IF(ISERROR($V1195),\"\",OFFSET('Smelter Look-up'!$G$4,$V1195-4,0))","v":""},{"$f":"IF(ISERROR($V1195),\"\",OFFSET('Smelter Look-up'!$H$4,$V1195-4,0))","v":""},{"$f":"IF(ISERROR($V1195),\"\",OFFSET('Smelter Look-up'!$I$4,$V1195-4,0))","v":""},{"$nulls":7},{"$f":"IF(ISERROR($V1195),\"\",OFFSET('Smelter Look-up'!$C$4,$V1195-4,0)&\"\")","v":""},"",{"$f":"IF(B1195=\"\",\"\",IF(ISERROR(MATCH($J1195,SorP!$B$1:$B$5661,0)),\"\",INDIRECT(\"'SorP'!$A$\"&MATCH($J1195,SorP!$B$1:$B$5661,0))))","v":""},null,{"$f":"IF(C1195=\"\",NA(),MATCH($B1195&$C1195,'Smelter Look-up'!$J:$J,0))","v":{"$error":"#N/A"}},null,0,null,null,null,""]
[null,{"$f":"IF(LEN(A1196)=0,\"\",INDEX('Smelter Look-up'!$A:$A,MATCH($A1196,'Smelter Look-up'!$E:$E,0)))","v":""},{"$f":"IF(LEN(A1196)=0,\"\",INDEX('Smelter Look-up'!$C:$C,MATCH($A1196,'Smelter Look-up'!$E:$E,0)))","v":""},null,{"$f":"IF(ISERROR($V1196),\"\",OFFSET('Smelter Look-up'!$D$4,$V1196-4,0)&\"\")","v":""},{"$f":"IF(ISERROR($V1196),\"\",OFFSET('Smelter Look-up'!$E$4,$V1196-4,0))","v":""},{"$f":"IF(C1196=$X$4,\"Enter smelter details\",IF(ISERROR($V1196),\"\",OFFSET('Smelter Look-up'!$F$4,$V1196-4,0)))","v":""},{"$f":"IF(ISERROR($V1196),\"\",OFFSET('Smelter Look-up'!$G$4,$V1196-4,0))","v":""},{"$f":"IF(ISERROR($V1196),\"\",OFFSET('Smelter Look-up'!$H$4,$V1196-4,0))","v":""},{"$f":"IF(ISERROR($V1196),\"\",OFFSET('Smelter Look-up'!$I$4,$V1196-4,0))","v":""},{"$nulls":7},{"$f":"IF(ISERROR($V1196),\"\",OFFSET('Smelter Look-up'!$C$4,$V1196-4,0)&\"\")","v":""},"",{"$f":"IF(B1196=\"\",\"\",IF(ISERROR(MATCH($J1196,SorP!$B$1:$B$5661,0)),\"\",INDIRECT(\"'SorP'!$A$\"&MATCH($J1196,SorP!$B$1:$B$5661,0))))","v":""},null,{"$f":"IF(C1196=\"\",NA(),MATCH($B1196&$C1196,'Smelter Look-up'!$J:$J,0))","v":{"$error":"#N/A"}},null,0,null,null,null,""]
[null,{"$f":"IF(LEN(A1197)=0,\"\",INDEX('Smelter Look-up'!$A:$A,MATCH($A1197,'Smelter Look-up'!$E:$E,0)))","v":""},{"$f":"IF(LEN(A1197)=0,\"\",INDEX('Smelter Look-up'!$C:$C,MATCH($A1197,'Smelter Look-up'!$E:$E,0)))","v":""},null,{"$f":"IF(ISERROR($V1197),\"\",OFFSET('Smelter Look-up'!$D$4,$V1197-4,0)&\"\")","v":""},{"$f":"IF(ISERROR($V1197),\"\",OFFSET('Smelter Look-up'!$E$4,$V1197-4,0))","v":""},{"$f":"IF(C1197=$X$4,\"Enter smelter details\",IF(ISERROR($V1197),\"\",OFFSET('Smelter Look-up'!$F$4,$V1197-4,0)))","v":""},{"$f":"IF(ISERROR($V1197),\"\",OFFSET('Smelter Look-up'!$G$4,$V1197-4,0))","v":""},{"$f":"IF(ISERROR($V1197),\"\",OFFSET('Smelter Look-up'!$H$4,$V1197-4,0))","v":""},{"$f":"IF(ISERROR($V1197),\"\",OFFSET('Smelter Look-up'!$I$4,$V1197-4,0))","v":""},{"$nulls":7},{"$f":"IF(ISERROR($V1197),\"\",OFFSET('Smelter Look-up'!$C$4,$V1197-4,0)&\"\")","v":""},"",{"$f":"IF(B1197=\"\",\"\",IF(ISERROR(MATCH($J1197,SorP!$B$1:$B$5661,0)),\"\",INDIRECT(\"'SorP'!$A$\"&MATCH($J1197,SorP!$B$1:$B$5661,0))))","v":""},null,{"$f":"IF(C1197=\"\",NA(),MATCH($B1197&$C1197,'Smelter Look-up'!$J:$J,0))","v":{"$error":"#N/A"}},null,0,null,null,null,""]
[null,{"$f":"IF(LEN(A1198)=0,\"\",INDEX('Smelter Look-up'!$A:$A,MATCH($A1198,'Smelter Look-up'!$E:$E,0)))","v":""},{"$f":"IF(LEN(A1198)=0,\"\",INDEX('Smelter Look-up'!$C:$C,MATCH($A1198,'Smelter Look-up'!$E:$E,0)))","v":""},null,{"$f":"IF(ISERROR($V1198),\"\",OFFSET('Smelter Look-up'!$D$4,$V1198-4,0)&\"\")","v":""},{"$f":"IF(ISERROR($V1198),\"\",OFFSET('Smelter Look-up'!$E$4,$V1198-4,0))","v":""},{"$f":"IF(C1198=$X$4,\"Enter smelter details\",IF(ISERROR($V1198),\"\",OFFSET('Smelter Look-up'!$F$4,$V1198-4,0)))","v":""},{"$f":"IF(ISERROR($V1198),\"\",OFFSET('Smelter Look-up'!$G$4,$V1198-4,0))","v":""},{"$f":"IF(ISERROR($V1198),\"\",OFFSET('Smelter Look-up'!$H$4,$V1198-4,0))","v":""},{"$f":"IF(ISERROR($V1198),\"\",OFFSET('Smelter Look-up'!$I$4,$V1198-4,0))","v":""},{"$nulls":7},{"$f":"IF(ISERROR($V1198),\"\",OFFSET('Smelter Look-up'!$C$4,$V1198-4,0)&\"\")","v":""},"",{"$f":"IF(B1198=\"\",\"\",IF(ISERROR(MATCH($J1198,SorP!$B$1:$B$5661,0)),\"\",INDIRECT(\"'SorP'!$A$\"&MATCH($J1198,SorP!$B$1:$B$5661,0))))","v":""},null,{"$f":"IF(C1198=\"\",NA(),MATCH($B1198&$C1198,'Smelter Look-up'!$J:$J,0))","v":{"$error":"#N/A"}},null,0,null,null,null,""]
[null,{"$f":"IF(LEN(A1199)=0,\"\",INDEX('Smelter Look-up'!$A:$A,MATCH($A1199,'Smelter Look-up'!$E:$E,0)))","v":""},{"$f":"IF(LEN(A1199)=0,\"\",INDEX('Smelter Look-up'!$C:$C,MATCH($A1199,'Smelter Look-up'!$E:$E,0)))","v":""},null,{"$f":"IF(ISERROR($V1199),\"\",OFFSET('Smelter Look-up'!$D$4,$V1199-4,0)&\"\")","v":""},{"$f":"IF(ISERROR($V1199),\"\",OFFSET('Smelter Look-up'!$E$4,$V1199-4,0))","v":""},{"$f":"IF(C1199=$X$4,\"Enter smelter details\",IF(ISERROR($V1199),\"\",OFFSET('Smelter Look-up'!$F$4,$V1199-4,0)))","v":""},{"$f":"IF(ISERROR($V1199),\"\",OFFSET('Smelter Look-up'!$G$4,$V1199-4,0))","v":""},{"$f":"IF(ISERROR($V1199),\"\",OFFSET('Smelter Look-up'!$H$4,$V1199-4,0))","v":""},{"$f":"IF(ISERROR($V1199),\"\",OFFSET('Smelter Look-up'!$I$4,$V1199-4,0))","v":""},{"$nulls":7},{"$f":"IF(ISERROR($V1199),\"\",OFFSET('Smelter Look-up'!$C$4,$V1199-4,0)&\"\")","v":""},"",{"$f":"IF(B1199=\"\",\"\",IF(ISERROR(MATCH($J1199,SorP!$B$1:$B$5661,0)),\"\",INDIRECT(\"'SorP'!$A$\"&MATCH($J1199,SorP!$B$1:$B$5661,0))))","v":""},null,{"$f":"IF(C1199=\"\",NA(),MATCH($B1199&$C1199,'Smelter Look-up'!$J:$J,0))","v":{"$error":"#N/A"}},null,0,null,null,null,""]
[null,{"$f":"IF(LEN(A1200)=0,\"\",INDEX('Smelter Look-up'!$A:$A,MATCH($A1200,'Smelter Look-up'!$E:$E,0)))","v":""},{"$f":"IF(LEN(A1200)=0,\"\",INDEX('Smelter Look-up'!$C:$C,MATCH($A1200,'Smelter Look-up'!$E:$E,0)))","v":""},null,{"$f":"IF(ISERROR($V1200),\"\",OFFSET('Smelter Look-up'!$D$4,$V1200-4,0)&\"\")","v":""},{"$f":"IF(ISERROR($V1200),\"\",OFFSET('Smelter Look-up'!$E$4,$V1200-4,0))","v":""},{"$f":"IF(C1200=$X$4,\"Enter smelter details\",IF(ISERROR($V1200),\"\",OFFSET('Smelter Look-up'!$F$4,$V1200-4,0)))","v":""},{"$f":"IF(ISERROR($V1200),\"\",OFFSET('Smelter Look-up'!$G$4,$V1200-4,0))","v":""},{"$f":"IF(ISERROR($V1200),\"\",OFFSET('Smelter Look-up'!$H$4,$V1200-4,0))","v":""},{"$f":"IF(ISERROR($V1200),\"\",OFFSET('Smelter Look-up'!$I$4,$V1200-4,0))","v":""},{"$nulls":7},{"$f":"IF(ISERROR($V1200),\"\",OFFSET('Smelter Look-up'!$C$4,$V1200-4,0)&\"\")","v":""},"",{"$f":"IF(B1200=\"\",\"\",IF(ISERROR(MATCH($J1200,SorP!$B$1:$B$5661,0)),\"\",INDIRECT(\"'SorP'!$A$\"&MATCH($J1200,SorP!$B$1:$B$5661,0))))","v":""},null,{"$f":"IF(C1200=\"\",NA(),MATCH($B1200&$C1200,'Smelter Look-up'!$J:$J,0))","v":{"$error":"#N/A"}},null,0,null,null,null,""]
[null,{"$f":"IF(LEN(A1201)=0,\"\",INDEX('Smelter Look-up'!$A:$A,MATCH($A1201,'Smelter Look-up'!$E:$E,0)))","v":""},{"$f":"IF(LEN(A1201)=0,\"\",INDEX('Smelter Look-up'!$C:$C,MATCH($A1201,'Smelter Look-up'!$E:$E,0)))","v":""},null,{"$f":"IF(ISERROR($V1201),\"\",OFFSET('Smelter Look-up'!$D$4,$V1201-4,0)&\"\")","v":""},{"$f":"IF(ISERROR($V1201),\"\",OFFSET('Smelter Look-up'!$E$4,$V1201-4,0))","v":""},{"$f":"IF(C1201=$X$4,\"Enter smelter details\",IF(ISERROR($V1201),\"\",OFFSET('Smelter Look-up'!$F$4,$V1201-4,0)))","v":""},{"$f":"IF(ISERROR($V1201),\"\",OFFSET('Smelter Look-up'!$G$4,$V1201-4,0))","v":""},{"$f":"IF(ISERROR($V1201),\"\",OFFSET('Smelter Look-up'!$H$4,$V1201-4,0))","v":""},{"$f":"IF(ISERROR($V1201),\"\",OFFSET('Smelter Look-up'!$I$4,$V1201-4,0))","v":""},{"$nulls":7},{"$f":"IF(ISERROR($V1201),\"\",OFFSET('Smelter Look-up'!$C$4,$V1201-4,0)&\"\")","v":""},"",{"$f":"IF(B1201=\"\",\"\",IF(ISERROR(MATCH($J1201,SorP!$B$1:$B$5661,0)),\"\",INDIRECT(\"'SorP'!$A$\"&MATCH($J1201,SorP!$B$1:$B$5661,0))))","v":""},null,{"$f":"IF(C1201=\"\",NA(),MATCH($B1201&$C1201,'Smelter Look-up'!$J:$J,0))","v":{"$error":"#N/A"}},null,0,null,null,null,""]
[null,{"$f":"IF(LEN(A1202)=0,\"\",INDEX('Smelter Look-up'!$A:$A,MATCH($A1202,'Smelter Look-up'!$E:$E,0)))","v":""},{"$f":"IF(LEN(A1202)=0,\"\",INDEX('Smelter Look-up'!$C:$C,MATCH($A1202,'Smelter Look-up'!$E:$E,0)))","v":""},null,{"$f":"IF(ISERROR($V1202),\"\",OFFSET('Smelter Look-up'!$D$4,$V1202-4,0)&\"\")","v":""},{"$f":"IF(ISERROR($V1202),\"\",OFFSET('Smelter Look-up'!$E$4,$V1202-4,0))","v":""},{"$f":"IF(C1202=$X$4,\"Enter smelter details\",IF(ISERROR($V1202),\"\",OFFSET('Smelter Look-up'!$F$4,$V1202-4,0)))","v":""},{"$f":"IF(ISERROR($V1202),\"\",OFFSET('Smelter Look-up'!$G$4,$V1202-4,0))","v":""},{"$f":"IF(ISERROR($V1202),\"\",OFFSET('Smelter Look-up'!$H$4,$V1202-4,0))","v":""},{"$f":"IF(ISERROR($V1202),\"\",OFFSET('Smelter Look-up'!$I$4,$V1202-4,0))","v":""},{"$nulls":7},{"$f":"IF(ISERROR($V1202),\"\",OFFSET('Smelter Look-up'!$C$4,$V1202-4,0)&\"\")","v":""},"",{"$f":"IF(B1202=\"\",\"\",IF(ISERROR(MATCH($J1202,SorP!$B$1:$B$5661,0)),\"\",INDIRECT(\"'SorP'!$A$\"&MATCH($J1202,SorP!$B$1:$B$5661,0))))","v":""},null,{"$f":"IF(C1202=\"\",NA(),MATCH($B1202&$C1202,'Smelter Look-up'!$J:$J,0))","v":{"$error":"#N/A"}},null,0,null,null,null,""]
[null,{"$f":"IF(LEN(A1203)=0,\"\",INDEX('Smelter Look-up'!$A:$A,MATCH($A1203,'Smelter Look-up'!$E:$E,0)))","v":""},{"$f":"IF(LEN(A1203)=0,\"\",INDEX('Smelter Look-up'!$C:$C,MATCH($A1203,'Smelter Look-up'!$E:$E,0)))","v":""},null,{"$f":"IF(ISERROR($V1203),\"\",OFFSET('Smelter Look-up'!$D$4,$V1203-4,0)&\"\")","v":""},{"$f":"IF(ISERROR($V1203),\"\",OFFSET('Smelter Look-up'!$E$4,$V1203-4,0))","v":""},{"$f":"IF(C1203=$X$4,\"Enter smelter details\",IF(ISERROR($V1203),\"\",OFFSET('Smelter Look-up'!$F$4,$V1203-4,0)))","v":""},{"$f":"IF(ISERROR($V1203),\"\",OFFSET('Smelter Look-up'!$G$4,$V1203-4,0))","v":""},{"$f":"IF(ISERROR($V1203),\"\",OFFSET('Smelter Look-up'!$H$4,$V1203-4,0))","v":""},{"$f":"IF(ISERROR($V1203),\"\",OFFSET('Smelter Look-up'!$I$4,$V1203-4,0))","v":""},{"$nulls":7},{"$f":"IF(ISERROR($V1203),\"\",OFFSET('Smelter Look-up'!$C$4,$V1203-4,0)&\"\")","v":""},"",{"$f":"IF(B1203=\"\",\"\",IF(ISERROR(MATCH($J1203,SorP!$B$1:$B$5661,0)),\"\",INDIRECT(\"'SorP'!$A$\"&MATCH($J1203,SorP!$B$1:$B$5661,0))))","v":""},null,{"$f":"IF(C1203=\"\",NA(),MATCH($B1203&$C1203,'Smelter Look-up'!$J:$J,0))","v":{"$error":"#N/A"}},null,0,null,null,null,""]
[null,{"$f":"IF(LEN(A1204)=0,\"\",INDEX('Smelter Look-up'!$A:$A,MATCH($A1204,'Smelter Look-up'!$E:$E,0)))","v":""},{"$f":"IF(LEN(A1204)=0,\"\",INDEX('Smelter Look-up'!$C:$C,MATCH($A1204,'Smelter Look-up'!$E:$E,0)))","v":""},null,{"$f":"IF(ISERROR($V1204),\"\",OFFSET('Smelter Look-up'!$D$4,$V1204-4,0)&\"\")","v":""},{"$f":"IF(ISERROR($V1204),\"\",OFFSET('Smelter Look-up'!$E$4,$V1204-4,0))","v":""},{"$f":"IF(C1204=$X$4,\"Enter smelter details\",IF(ISERROR($V1204),\"\",OFFSET('Smelter Look-up'!$F$4,$V1204-4,0)))","v":""},{"$f":"IF(ISERROR($V1204),\"\",OFFSET('Smelter Look-up'!$G$4,$V1204-4,0))","v":""},{"$f":"IF(ISERROR($V1204),\"\",OFFSET('Smelter Look-up'!$H$4,$V1204-4,0))","v":""},{"$f":"IF(ISERROR($V1204),\"\",OFFSET('Smelter Look-up'!$I$4,$V1204-4,0))","v":""},{"$nulls":7},{"$f":"IF(ISERROR($V1204),\"\",OFFSET('Smelter Look-up'!$C$4,$V1204-4,0)&\"\")","v":""},"",{"$f":"IF(B1204=\"\",\"\",IF(ISERROR(MATCH($J1204,SorP!$B$1:$B$5661,0)),\"\",INDIRECT(\"'SorP'!$A$\"&MATCH($J1204,SorP!$B$1:$B$5661,0))))","v":""},null,{"$f":"IF(C1204=\"\",NA(),MATCH($B1204&$C1204,'Smelter Look-up'!$J:$J,0))","v":{"$error":"#N/A"}},null,0,null,null,null,""]
[null,{"$f":"IF(LEN(A1205)=0,\"\",INDEX('Smelter Look-up'!$A:$A,MATCH($A1205,'Smelter Look-up'!$E:$E,0)))","v":""},{"$f":"IF(LEN(A1205)=0,\"\",INDEX('Smelter Look-up'!$C:$C,MATCH($A1205,'Smelter Look-up'!$E:$E,0)))","v":""},null,{"$f":"IF(ISERROR($V1205),\"\",OFFSET('Smelter Look-up'!$D$4,$V1205-4,0)&\"\")","v":""},{"$f":"IF(ISERROR($V1205),\"\",OFFSET('Smelter Look-up'!$E$4,$V1205-4,0))","v":""},{"$f":"IF(C1205=$X$4,\"Enter smelter details\",IF(ISERROR($V1205),\"\",OFFSET('Smelter Look-up'!$F$4,$V1205-4,0)))","v":""},{"$f":"IF(ISERROR($V1205),\"\",OFFSET('Smelter Look-up'!$G$4,$V1205-4,0))","v":""},{"$f":"IF(ISERROR($V1205),\"\",OFFSET('Smelter Look-up'!$H$4,$V1205-4,0))","v":""},{"$f":"IF(ISERROR($V1205),\"\",OFFSET('Smelter Look-up'!$I$4,$V1205-4,0))","v":""},{"$nulls":7},{"$f":"IF(ISERROR($V1205),\"\",OFFSET('Smelter Look-up'!$C$4,$V1205-4,0)&\"\")","v":""},"",{"$f":"IF(B1205=\"\",\"\",IF(ISERROR(MATCH($J1205,SorP!$B$1:$B$5661,0)),\"\",INDIRECT(\"'SorP'!$A$\"&MATCH($J1205,SorP!$B$1:$B$5661,0))))","v":""},null,{"$f":"IF(C1205=\"\",NA(),MATCH($B1205&$C1205,'Smelter Look-up'!$J:$J,0))","v":{"$error":"#N/A"}},null,0,null,null,null,""]
[null,{"$f":"IF(LEN(A1206)=0,\"\",INDEX('Smelter Look-up'!$A:$A,MATCH($A1206,'Smelter Look-up'!$E:$E,0)))","v":""},{"$f":"IF(LEN(A1206)=0,\"\",INDEX('Smelter Look-up'!$C:$C,MATCH($A1206,'Smelter Look-up'!$E:$E,0)))","v":""},null,{"$f":"IF(ISERROR($V1206),\"\",OFFSET('Smelter Look-up'!$D$4,$V1206-4,0)&\"\")","v":""},{"$f":"IF(ISERROR($V1206),\"\",OFFSET('Smelter Look-up'!$E$4,$V1206-4,0))","v":""},{"$f":"IF(C1206=$X$4,\"Enter smelter details\",IF(ISERROR($V1206),\"\",OFFSET('Smelter Look-up'!$F$4,$V1206-4,0)))","v":""},{"$f":"IF(ISERROR($V1206),\"\",OFFSET('Smelter Look-up'!$G$4,$V1206-4,0))","v":""},{"$f":"IF(ISERROR($V1206),\"\",OFFSET('Smelter Look-up'!$H$4,$V1206-4,0))","v":""},{"$f":"IF(ISERROR($V1206),\"\",OFFSET('Smelter Look-up'!$I$4,$V1206-4,0))","v":""},{"$nulls":7},{"$f":"IF(ISERROR($V1206),\"\",OFFSET('Smelter Look-up'!$C$4,$V1206-4,0)&\"\")","v":""},"",{"$f":"IF(B1206=\"\",\"\",IF(ISERROR(MATCH($J1206,SorP!$B$1:$B$5661,0)),\"\",INDIRECT(\"'SorP'!$A$\"&MATCH($J1206,SorP!$B$1:$B$5661,0))))","v":""},null,{"$f":"IF(C1206=\"\",NA(),MATCH($B1206&$C1206,'Smelter Look-up'!$J:$J,0))","v":{"$error":"#N/A"}},null,0,null,null,null,""]
[null,{"$f":"IF(LEN(A1207)=0,\"\",INDEX('Smelter Look-up'!$A:$A,MATCH($A1207,'Smelter Look-up'!$E:$E,0)))","v":""},{"$f":"IF(LEN(A1207)=0,\"\",INDEX('Smelter Look-up'!$C:$C,MATCH($A1207,'Smelter Look-up'!$E:$E,0)))","v":""},null,{"$f":"IF(ISERROR($V1207),\"\",OFFSET('Smelter Look-up'!$D$4,$V1207-4,0)&\"\")","v":""},{"$f":"IF(ISERROR($V1207),\"\",OFFSET('Smelter Look-up'!$E$4,$V1207-4,0))","v":""},{"$f":"IF(C1207=$X$4,\"Enter smelter details\",IF(ISERROR($V1207),\"\",OFFSET('Smelter Look-up'!$F$4,$V1207-4,0)))","v":""},{"$f":"IF(ISERROR($V1207),\"\",OFFSET('Smelter Look-up'!$G$4,$V1207-4,0))","v":""},{"$f":"IF(ISERROR($V1207),\"\",OFFSET('Smelter Look-up'!$H$4,$V1207-4,0))","v":""},{"$f":"IF(ISERROR($V1207),\"\",OFFSET('Smelter Look-up'!$I$4,$V1207-4,0))","v":""},{"$nulls":7},{"$f":"IF(ISERROR($V1207),\"\",OFFSET('Smelter Look-up'!$C$4,$V1207-4,0)&\"\")","v":""},"",{"$f":"IF(B1207=\"\",\"\",IF(ISERROR(MATCH($J1207,SorP!$B$1:$B$5661,0)),\"\",INDIRECT(\"'SorP'!$A$\"&MATCH($J1207,SorP!$B$1:$B$5661,0))))","v":""},null,{"$f":"IF(C1207=\"\",NA(),MATCH($B1207&$C1207,'Smelter Look-up'!$J:$J,0))","v":{"$error":"#N/A"}},null,0,null,null,null,""]
[null,{"$f":"IF(LEN(A1208)=0,\"\",INDEX('Smelter Look-up'!$A:$A,MATCH($A1208,'Smelter Look-up'!$E:$E,0)))","v":""},{"$f":"IF(LEN(A1208)=0,\"\",INDEX('Smelter Look-up'!$C:$C,MATCH($A1208,'Smelter Look-up'!$E:$E,0)))","v":""},null,{"$f":"IF(ISERROR($V1208),\"\",OFFSET('Smelter Look-up'!$D$4,$V1208-4,0)&\"\")","v":""},{"$f":"IF(ISERROR($V1208),\"\",OFFSET('Smelter Look-up'!$E$4,$V1208-4,0))","v":""},{"$f":"IF(C1208=$X$4,\"Enter smelter details\",IF(ISERROR($V1208),\"\",OFFSET('Smelter Look-up'!$F$4,$V1208-4,0)))","v":""},{"$f":"IF(ISERROR($V1208),\"\",OFFSET('Smelter Look-up'!$G$4,$V1208-4,0))","v":""},{"$f":"IF(ISERROR($V1208),\"\",OFFSET('Smelter Look-up'!$H$4,$V1208-4,0))","v":""},{"$f":"IF(ISERROR($V1208),\"\",OFFSET('Smelter Look-up'!$I$4,$V1208-4,0))","v":""},{"$nulls":7},{"$f":"IF(ISERROR($V1208),\"\",OFFSET('Smelter Look-up'!$C$4,$V1208-4,0)&\"\")","v":""},"",{"$f":"IF(B1208=\"\",\"\",IF(ISERROR(MATCH($J1208,SorP!$B$1:$B$5661,0)),\"\",INDIRECT(\"'SorP'!$A$\"&MATCH($J1208,SorP!$B$1:$B$5661,0))))","v":""},null,{"$f":"IF(C1208=\"\",NA(),MATCH($B1208&$C1208,'Smelter Look-up'!$J:$J,0))","v":{"$error":"#N/A"}},null,0,null,null,null,""]
[null,{"$f":"IF(LEN(A1209)=0,\"\",INDEX('Smelter Look-up'!$A:$A,MATCH($A1209,'Smelter Look-up'!$E:$E,0)))","v":""},{"$f":"IF(LEN(A1209)=0,\"\",INDEX('Smelter Look-up'!$C:$C,MATCH($A1209,'Smelter Look-up'!$E:$E,0)))","v":""},null,{"$f":"IF(ISERROR($V1209),\"\",OFFSET('Smelter Look-up'!$D$4,$V1209-4,0)&\"\")","v":""},{"$f":"IF(ISERROR($V1209),\"\",OFFSET('Smelter Look-up'!$E$4,$V1209-4,0))","v":""},{"$f":"IF(C1209=$X$4,\"Enter smelter details\",IF(ISERROR($V1209),\"\",OFFSET('Smelter Look-up'!$F$4,$V1209-4,0)))","v":""},{"$f":"IF(ISERROR($V1209),\"\",OFFSET('Smelter Look-up'!$G$4,$V1209-4,0))","v":""},{"$f":"IF(ISERROR($V1209),\"\",OFFSET('Smelter Look-up'!$H$4,$V1209-4,0))","v":""},{"$f":"IF(ISERROR($V1209),\"\",OFFSET('Smelter Look-up'!$I$4,$V1209-4,0))","v":""},{"$nulls":7},{"$f":"IF(ISERROR($V1209),\"\",OFFSET('Smelter Look-up'!$C$4,$V1209-4,0)&\"\")","v":""},"",{"$f":"IF(B1209=\"\",\"\",IF(ISERROR(MATCH($J1209,SorP!$B$1:$B$5661,0)),\"\",INDIRECT(\"'SorP'!$A$\"&MATCH($J1209,SorP!$B$1:$B$5661,0))))","v":""},null,{"$f":"IF(C1209=\"\",NA(),MATCH($B1209&$C1209,'Smelter Look-up'!$J:$J,0))","v":{"$error":"#N/A"}},null,0,null,null,null,""]
[null,{"$f":"IF(LEN(A1210)=0,\"\",INDEX('Smelter Look-up'!$A:$A,MATCH($A1210,'Smelter Look-up'!$E:$E,0)))","v":""},{"$f":"IF(LEN(A1210)=0,\"\",INDEX('Smelter Look-up'!$C:$C,MATCH($A1210,'Smelter Look-up'!$E:$E,0)))","v":""},null,{"$f":"IF(ISERROR($V1210),\"\",OFFSET('Smelter Look-up'!$D$4,$V1210-4,0)&\"\")","v":""},{"$f":"IF(ISERROR($V1210),\"\",OFFSET('Smelter Look-up'!$E$4,$V1210-4,0))","v":""},{"$f":"IF(C1210=$X$4,\"Enter smelter details\",IF(ISERROR($V1210),\"\",OFFSET('Smelter Look-up'!$F$4,$V1210-4,0)))","v":""},{"$f":"IF(ISERROR($V1210),\"\",OFFSET('Smelter Look-up'!$G$4,$V1210-4,0))","v":""},{"$f":"IF(ISERROR($V1210),\"\",OFFSET('Smelter Look-up'!$H$4,$V1210-4,0))","v":""},{"$f":"IF(ISERROR($V1210),\"\",OFFSET('Smelter Look-up'!$I$4,$V1210-4,0))","v":""},{"$nulls":7},{"$f":"IF(ISERROR($V1210),\"\",OFFSET('Smelter Look-up'!$C$4,$V1210-4,0)&\"\")","v":""},"",{"$f":"IF(B1210=\"\",\"\",IF(ISERROR(MATCH($J1210,SorP!$B$1:$B$5661,0)),\"\",INDIRECT(\"'SorP'!$A$\"&MATCH($J1210,SorP!$B$1:$B$5661,0))))","v":""},null,{"$f":"IF(C1210=\"\",NA(),MATCH($B1210&$C1210,'Smelter Look-up'!$J:$J,0))","v":{"$error":"#N/A"}},null,0,null,null,null,""]
[null,{"$f":"IF(LEN(A1211)=0,\"\",INDEX('Smelter Look-up'!$A:$A,MATCH($A1211,'Smelter Look-up'!$E:$E,0)))","v":""},{"$f":"IF(LEN(A1211)=0,\"\",INDEX('Smelter Look-up'!$C:$C,MATCH($A1211,'Smelter Look-up'!$E:$E,0)))","v":""},null,{"$f":"IF(ISERROR($V1211),\"\",OFFSET('Smelter Look-up'!$D$4,$V1211-4,0)&\"\")","v":""},{"$f":"IF(ISERROR($V1211),\"\",OFFSET('Smelter Look-up'!$E$4,$V1211-4,0))","v":""},{"$f":"IF(C1211=$X$4,\"Enter smelter details\",IF(ISERROR($V1211),\"\",OFFSET('Smelter Look-up'!$F$4,$V1211-4,0)))","v":""},{"$f":"IF(ISERROR($V1211),\"\",OFFSET('Smelter Look-up'!$G$4,$V1211-4,0))","v":""},{"$f":"IF(ISERROR($V1211),\"\",OFFSET('Smelter Look-up'!$H$4,$V1211-4,0))","v":""},{"$f":"IF(ISERROR($V1211),\"\",OFFSET('Smelter Look-up'!$I$4,$V1211-4,0))","v":""},{"$nulls":7},{"$f":"IF(ISERROR($V1211),\"\",OFFSET('Smelter Look-up'!$C$4,$V1211-4,0)&\"\")","v":""},"",{"$f":"IF(B1211=\"\",\"\",IF(ISERROR(MATCH($J1211,SorP!$B$1:$B$5661,0)),\"\",INDIRECT(\"'SorP'!$A$\"&MATCH($J1211,SorP!$B$1:$B$5661,0))))","v":""},null,{"$f":"IF(C1211=\"\",NA(),MATCH($B1211&$C1211,'Smelter Look-up'!$J:$J,0))","v":{"$error":"#N/A"}},null,0,null,null,null,""]
[null,{"$f":"IF(LEN(A1212)=0,\"\",INDEX('Smelter Look-up'!$A:$A,MATCH($A1212,'Smelter Look-up'!$E:$E,0)))","v":""},{"$f":"IF(LEN(A1212)=0,\"\",INDEX('Smelter Look-up'!$C:$C,MATCH($A1212,'Smelter Look-up'!$E:$E,0)))","v":""},null,{"$f":"IF(ISERROR($V1212),\"\",OFFSET('Smelter Look-up'!$D$4,$V1212-4,0)&\"\")","v":""},{"$f":"IF(ISERROR($V1212),\"\",OFFSET('Smelter Look-up'!$E$4,$V1212-4,0))","v":""},{"$f":"IF(C1212=$X$4,\"Enter smelter details\",IF(ISERROR($V1212),\"\",OFFSET('Smelter Look-up'!$F$4,$V1212-4,0)))","v":""},{"$f":"IF(ISERROR($V1212),\"\",OFFSET('Smelter Look-up'!$G$4,$V1212-4,0))","v":""},{"$f":"IF(ISERROR($V1212),\"\",OFFSET('Smelter Look-up'!$H$4,$V1212-4,0))","v":""},{"$f":"IF(ISERROR($V1212),\"\",OFFSET('Smelter Look-up'!$I$4,$V1212-4,0))","v":""},{"$nulls":7},{"$f":"IF(ISERROR($V1212),\"\",OFFSET('Smelter Look-up'!$C$4,$V1212-4,0)&\"\")","v":""},"",{"$f":"IF(B1212=\"\",\"\",IF(ISERROR(MATCH($J1212,SorP!$B$1:$B$5661,0)),\"\",INDIRECT(\"'SorP'!$A$\"&MATCH($J1212,SorP!$B$1:$B$5661,0))))","v":""},null,{"$f":"IF(C1212=\"\",NA(),MATCH($B1212&$C1212,'Smelter Look-up'!$J:$J,0))","v":{"$error":"#N/A"}},null,0,null,null,null,""]
[null,{"$f":"IF(LEN(A1213)=0,\"\",INDEX('Smelter Look-up'!$A:$A,MATCH($A1213,'Smelter Look-up'!$E:$E,0)))","v":""},{"$f":"IF(LEN(A1213)=0,\"\",INDEX('Smelter Look-up'!$C:$C,MATCH($A1213,'Smelter Look-up'!$E:$E,0)))","v":""},null,{"$f":"IF(ISERROR($V1213),\"\",OFFSET('Smelter Look-up'!$D$4,$V1213-4,0)&\"\")","v":""},{"$f":"IF(ISERROR($V1213),\"\",OFFSET('Smelter Look-up'!$E$4,$V1213-4,0))","v":""},{"$f":"IF(C1213=$X$4,\"Enter smelter details\",IF(ISERROR($V1213),\"\",OFFSET('Smelter Look-up'!$F$4,$V1213-4,0)))","v":""},{"$f":"IF(ISERROR($V1213),\"\",OFFSET('Smelter Look-up'!$G$4,$V1213-4,0))","v":""},{"$f":"IF(ISERROR($V1213),\"\",OFFSET('Smelter Look-up'!$H$4,$V1213-4,0))","v":""},{"$f":"IF(ISERROR($V1213),\"\",OFFSET('Smelter Look-up'!$I$4,$V1213-4,0))","v":""},{"$nulls":7},{"$f":"IF(ISERROR($V1213),\"\",OFFSET('Smelter Look-up'!$C$4,$V1213-4,0)&\"\")","v":""},"",{"$f":"IF(B1213=\"\",\"\",IF(ISERROR(MATCH($J1213,SorP!$B$1:$B$5661,0)),\"\",INDIRECT(\"'SorP'!$A$\"&MATCH($J1213,SorP!$B$1:$B$5661,0))))","v":""},null,{"$f":"IF(C1213=\"\",NA(),MATCH($B1213&$C1213,'Smelter Look-up'!$J:$J,0))","v":{"$error":"#N/A"}},null,0,null,null,null,""]
[null,{"$f":"IF(LEN(A1214)=0,\"\",INDEX('Smelter Look-up'!$A:$A,MATCH($A1214,'Smelter Look-up'!$E:$E,0)))","v":""},{"$f":"IF(LEN(A1214)=0,\"\",INDEX('Smelter Look-up'!$C:$C,MATCH($A1214,'Smelter Look-up'!$E:$E,0)))","v":""},null,{"$f":"IF(ISERROR($V1214),\"\",OFFSET('Smelter Look-up'!$D$4,$V1214-4,0)&\"\")","v":""},{"$f":"IF(ISERROR($V1214),\"\",OFFSET('Smelter Look-up'!$E$4,$V1214-4,0))","v":""},{"$f":"IF(C1214=$X$4,\"Enter smelter details\",IF(ISERROR($V1214),\"\",OFFSET('Smelter Look-up'!$F$4,$V1214-4,0)))","v":""},{"$f":"IF(ISERROR($V1214),\"\",OFFSET('Smelter Look-up'!$G$4,$V1214-4,0))","v":""},{"$f":"IF(ISERROR($V1214),\"\",OFFSET('Smelter Look-up'!$H$4,$V1214-4,0))","v":""},{"$f":"IF(ISERROR($V1214),\"\",OFFSET('Smelter Look-up'!$I$4,$V1214-4,0))","v":""},{"$nulls":7},{"$f":"IF(ISERROR($V1214),\"\",OFFSET('Smelter Look-up'!$C$4,$V1214-4,0)&\"\")","v":""},"",{"$f":"IF(B1214=\"\",\"\",IF(ISERROR(MATCH($J1214,SorP!$B$1:$B$5661,0)),\"\",INDIRECT(\"'SorP'!$A$\"&MATCH($J1214,SorP!$B$1:$B$5661,0))))","v":""},null,{"$f":"IF(C1214=\"\",NA(),MATCH($B1214&$C1214,'Smelter Look-up'!$J:$J,0))","v":{"$error":"#N/A"}},null,0,null,null,null,""]
[null,{"$f":"IF(LEN(A1215)=0,\"\",INDEX('Smelter Look-up'!$A:$A,MATCH($A1215,'Smelter Look-up'!$E:$E,0)))","v":""},{"$f":"IF(LEN(A1215)=0,\"\",INDEX('Smelter Look-up'!$C:$C,MATCH($A1215,'Smelter Look-up'!$E:$E,0)))","v":""},null,{"$f":"IF(ISERROR($V1215),\"\",OFFSET('Smelter Look-up'!$D$4,$V1215-4,0)&\"\")","v":""},{"$f":"IF(ISERROR($V1215),\"\",OFFSET('Smelter Look-up'!$E$4,$V1215-4,0))","v":""},{"$f":"IF(C1215=$X$4,\"Enter smelter details\",IF(ISERROR($V1215),\"\",OFFSET('Smelter Look-up'!$F$4,$V1215-4,0)))","v":""},{"$f":"IF(ISERROR($V1215),\"\",OFFSET('Smelter Look-up'!$G$4,$V1215-4,0))","v":""},{"$f":"IF(ISERROR($V1215),\"\",OFFSET('Smelter Look-up'!$H$4,$V1215-4,0))","v":""},{"$f":"IF(ISERROR($V1215),\"\",OFFSET('Smelter Look-up'!$I$4,$V1215-4,0))","v":""},{"$nulls":7},{"$f":"IF(ISERROR($V1215),\"\",OFFSET('Smelter Look-up'!$C$4,$V1215-4,0)&\"\")","v":""},"",{"$f":"IF(B1215=\"\",\"\",IF(ISERROR(MATCH($J1215,SorP!$B$1:$B$5661,0)),\"\",INDIRECT(\"'SorP'!$A$\"&MATCH($J1215,SorP!$B$1:$B$5661,0))))","v":""},null,{"$f":"IF(C1215=\"\",NA(),MATCH($B1215&$C1215,'Smelter Look-up'!$J:$J,0))","v":{"$error":"#N/A"}},null,{"$f":"IF(AND(C1215=\"Smelter not listed\",OR(LEN(D1215)=0,LEN(E1215)=0)),1,0)","v":0},null,null,null,{"$f":"B1215&C1215","v":""}]
[null,{"$f":"IF(LEN(A1216)=0,\"\",INDEX('Smelter Look-up'!$A:$A,MATCH($A1216,'Smelter Look-up'!$E:$E,0)))","v":""},{"$f":"IF(LEN(A1216)=0,\"\",INDEX('Smelter Look-up'!$C:$C,MATCH($A1216,'Smelter Look-up'!$E:$E,0)))","v":""},null,{"$f":"IF(ISERROR($V1216),\"\",OFFSET('Smelter Look-up'!$D$4,$V1216-4,0)&\"\")","v":""},{"$f":"IF(ISERROR($V1216),\"\",OFFSET('Smelter Look-up'!$E$4,$V1216-4,0))","v":""},{"$f":"IF(C1216=$X$4,\"Enter smelter details\",IF(ISERROR($V1216),\"\",OFFSET('Smelter Look-up'!$F$4,$V1216-4,0)))","v":""},{"$f":"IF(ISERROR($V1216),\"\",OFFSET('Smelter Look-up'!$G$4,$V1216-4,0))","v":""},{"$f":"IF(ISERROR($V1216),\"\",OFFSET('Smelter Look-up'!$H$4,$V1216-4,0))","v":""},{"$f":"IF(ISERROR($V1216),\"\",OFFSET('Smelter Look-up'!$I$4,$V1216-4,0))","v":""},{"$nulls":7},{"$f":"IF(ISERROR($V1216),\"\",OFFSET('Smelter Look-up'!$C$4,$V1216-4,0)&\"\")","v":""},{"$f":"IF(B1216=\"\",\"\",IF(ISERROR(MATCH($E1216,CL,0)),\"Unknown\",INDIRECT(\"'C'!$A$\"&MATCH($E1216,CL,0)+1)))","v":""},{"$f":"IF(B1216=\"\",\"\",IF(ISERROR(MATCH($J1216,SorP!$B$1:$B$5661,0)),\"\",INDIRECT(\"'SorP'!$A$\"&MATCH($J1216,SorP!$B$1:$B$5661,0))))","v":""},null,{"$f":"IF(C1216=\"\",NA(),MATCH($B1216&$C1216,'Smelter Look-up'!$J:$J,0))","v":{"$error":"#N/A"}},null,0,null,null,null,""]
[null,{"$f":"IF(LEN(A1217)=0,\"\",INDEX('Smelter Look-up'!$A:$A,MATCH($A1217,'Smelter Look-up'!$E:$E,0)))","v":""},{"$f":"IF(LEN(A1217)=0,\"\",INDEX('Smelter Look-up'!$C:$C,MATCH($A1217,'Smelter Look-up'!$E:$E,0)))","v":""},null,{"$f":"IF(ISERROR($V1217),\"\",OFFSET('Smelter Look-up'!$D$4,$V1217-4,0)&\"\")","v":""},{"$f":"IF(ISERROR($V1217),\"\",OFFSET('Smelter Look-up'!$E$4,$V1217-4,0))","v":""},{"$f":"IF(C1217=$X$4,\"Enter smelter details\",IF(ISERROR($V1217),\"\",OFFSET('Smelter Look-up'!$F$4,$V1217-4,0)))","v":""},{"$f":"IF(ISERROR($V1217),\"\",OFFSET('Smelter Look-up'!$G$4,$V1217-4,0))","v":""},{"$f":"IF(ISERROR($V1217),\"\",OFFSET('Smelter Look-up'!$H$4,$V1217-4,0))","v":""},{"$f":"IF(ISERROR($V1217),\"\",OFFSET('Smelter Look-up'!$I$4,$V1217-4,0))","v":""},{"$nulls":7},{"$f":"IF(ISERROR($V1217),\"\",OFFSET('Smelter Look-up'!$C$4,$V1217-4,0)&\"\")","v":""},"",{"$f":"IF(B1217=\"\",\"\",IF(ISERROR(MATCH($J1217,SorP!$B$1:$B$5661,0)),\"\",INDIRECT(\"'SorP'!$A$\"&MATCH($J1217,SorP!$B$1:$B$5661,0))))","v":""},null,{"$f":"IF(C1217=\"\",NA(),MATCH($B1217&$C1217,'Smelter Look-up'!$J:$J,0))","v":{"$error":"#N/A"}},null,0,null,null,null,""]
[null,{"$f":"IF(LEN(A1218)=0,\"\",INDEX('Smelter Look-up'!$A:$A,MATCH($A1218,'Smelter Look-up'!$E:$E,0)))","v":""},{"$f":"IF(LEN(A1218)=0,\"\",INDEX('Smelter Look-up'!$C:$C,MATCH($A1218,'Smelter Look-up'!$E:$E,0)))","v":""},null,{"$f":"IF(ISERROR($V1218),\"\",OFFSET('Smelter Look-up'!$D$4,$V1218-4,0)&\"\")","v":""},{"$f":"IF(ISERROR($V1218),\"\",OFFSET('Smelter Look-up'!$E$4,$V1218-4,0))","v":""},{"$f":"IF(C1218=$X$4,\"Enter smelter details\",IF(ISERROR($V1218),\"\",OFFSET('Smelter Look-up'!$F$4,$V1218-4,0)))","v":""},{"$f":"IF(ISERROR($V1218),\"\",OFFSET('Smelter Look-up'!$G$4,$V1218-4,0))","v":""},{"$f":"IF(ISERROR($V1218),\"\",OFFSET('Smelter Look-up'!$H$4,$V1218-4,0))","v":""},{"$f":"IF(ISERROR($V1218),\"\",OFFSET('Smelter Look-up'!$I$4,$V1218-4,0))","v":""},{"$nulls":7},{"$f":"IF(ISERROR($V1218),\"\",OFFSET('Smelter Look-up'!$C$4,$V1218-4,0)&\"\")","v":""},"",{"$f":"IF(B1218=\"\",\"\",IF(ISERROR(MATCH($J1218,SorP!$B$1:$B$5661,0)),\"\",INDIRECT(\"'SorP'!$A$\"&MATCH($J1218,SorP!$B$1:$B$5661,0))))","v":""},null,{"$f":"IF(C1218=\"\",NA(),MATCH($B1218&$C1218,'Smelter Look-up'!$J:$J,0))","v":{"$error":"#N/A"}},null,0,null,null,null,""]
[null,{"$f":"IF(LEN(A1219)=0,\"\",INDEX('Smelter Look-up'!$A:$A,MATCH($A1219,'Smelter Look-up'!$E:$E,0)))","v":""},{"$f":"IF(LEN(A1219)=0,\"\",INDEX('Smelter Look-up'!$C:$C,MATCH($A1219,'Smelter Look-up'!$E:$E,0)))","v":""},null,{"$f":"IF(ISERROR($V1219),\"\",OFFSET('Smelter Look-up'!$D$4,$V1219-4,0)&\"\")","v":""},{"$f":"IF(ISERROR($V1219),\"\",OFFSET('Smelter Look-up'!$E$4,$V1219-4,0))","v":""},{"$f":"IF(C1219=$X$4,\"Enter smelter details\",IF(ISERROR($V1219),\"\",OFFSET('Smelter Look-up'!$F$4,$V1219-4,0)))","v":""},{"$f":"IF(ISERROR($V1219),\"\",OFFSET('Smelter Look-up'!$G$4,$V1219-4,0))","v":""},{"$f":"IF(ISERROR($V1219),\"\",OFFSET('Smelter Look-up'!$H$4,$V1219-4,0))","v":""},{"$f":"IF(ISERROR($V1219),\"\",OFFSET('Smelter Look-up'!$I$4,$V1219-4,0))","v":""},{"$nulls":7},{"$f":"IF(ISERROR($V1219),\"\",OFFSET('Smelter Look-up'!$C$4,$V1219-4,0)&\"\")","v":""},"",{"$f":"IF(B1219=\"\",\"\",IF(ISERROR(MATCH($J1219,SorP!$B$1:$B$5661,0)),\"\",INDIRECT(\"'SorP'!$A$\"&MATCH($J1219,SorP!$B$1:$B$5661,0))))","v":""},null,{"$f":"IF(C1219=\"\",NA(),MATCH($B1219&$C1219,'Smelter Look-up'!$J:$J,0))","v":{"$error":"#N/A"}},null,0,null,null,null,""]
[null,{"$f":"IF(LEN(A1220)=0,\"\",INDEX('Smelter Look-up'!$A:$A,MATCH($A1220,'Smelter Look-up'!$E:$E,0)))","v":""},{"$f":"IF(LEN(A1220)=0,\"\",INDEX('Smelter Look-up'!$C:$C,MATCH($A1220,'Smelter Look-up'!$E:$E,0)))","v":""},null,{"$f":"IF(ISERROR($V1220),\"\",OFFSET('Smelter Look-up'!$D$4,$V1220-4,0)&\"\")","v":""},{"$f":"IF(ISERROR($V1220),\"\",OFFSET('Smelter Look-up'!$E$4,$V1220-4,0))","v":""},{"$f":"IF(C1220=$X$4,\"Enter smelter details\",IF(ISERROR($V1220),\"\",OFFSET('Smelter Look-up'!$F$4,$V1220-4,0)))","v":""},{"$f":"IF(ISERROR($V1220),\"\",OFFSET('Smelter Look-up'!$G$4,$V1220-4,0))","v":""},{"$f":"IF(ISERROR($V1220),\"\",OFFSET('Smelter Look-up'!$H$4,$V1220-4,0))","v":""},{"$f":"IF(ISERROR($V1220),\"\",OFFSET('Smelter Look-up'!$I$4,$V1220-4,0))","v":""},{"$nulls":7},{"$f":"IF(ISERROR($V1220),\"\",OFFSET('Smelter Look-up'!$C$4,$V1220-4,0)&\"\")","v":""},"",{"$f":"IF(B1220=\"\",\"\",IF(ISERROR(MATCH($J1220,SorP!$B$1:$B$5661,0)),\"\",INDIRECT(\"'SorP'!$A$\"&MATCH($J1220,SorP!$B$1:$B$5661,0))))","v":""},null,{"$f":"IF(C1220=\"\",NA(),MATCH($B1220&$C1220,'Smelter Look-up'!$J:$J,0))","v":{"$error":"#N/A"}},null,0,null,null,null,""]
[null,{"$f":"IF(LEN(A1221)=0,\"\",INDEX('Smelter Look-up'!$A:$A,MATCH($A1221,'Smelter Look-up'!$E:$E,0)))","v":""},{"$f":"IF(LEN(A1221)=0,\"\",INDEX('Smelter Look-up'!$C:$C,MATCH($A1221,'Smelter Look-up'!$E:$E,0)))","v":""},null,{"$f":"IF(ISERROR($V1221),\"\",OFFSET('Smelter Look-up'!$D$4,$V1221-4,0)&\"\")","v":""},{"$f":"IF(ISERROR($V1221),\"\",OFFSET('Smelter Look-up'!$E$4,$V1221-4,0))","v":""},{"$f":"IF(C1221=$X$4,\"Enter smelter details\",IF(ISERROR($V1221),\"\",OFFSET('Smelter Look-up'!$F$4,$V1221-4,0)))","v":""},{"$f":"IF(ISERROR($V1221),\"\",OFFSET('Smelter Look-up'!$G$4,$V1221-4,0))","v":""},{"$f":"IF(ISERROR($V1221),\"\",OFFSET('Smelter Look-up'!$H$4,$V1221-4,0))","v":""},{"$f":"IF(ISERROR($V1221),\"\",OFFSET('Smelter Look-up'!$I$4,$V1221-4,0))","v":""},{"$nulls":7},{"$f":"IF(ISERROR($V1221),\"\",OFFSET('Smelter Look-up'!$C$4,$V1221-4,0)&\"\")","v":""},"",{"$f":"IF(B1221=\"\",\"\",IF(ISERROR(MATCH($J1221,SorP!$B$1:$B$5661,0)),\"\",INDIRECT(\"'SorP'!$A$\"&MATCH($J1221,SorP!$B$1:$B$5661,0))))","v":""},null,{"$f":"IF(C1221=\"\",NA(),MATCH($B1221&$C1221,'Smelter Look-up'!$J:$J,0))","v":{"$error":"#N/A"}},null,0,null,null,null,""]
[null,{"$f":"IF(LEN(A1222)=0,\"\",INDEX('Smelter Look-up'!$A:$A,MATCH($A1222,'Smelter Look-up'!$E:$E,0)))","v":""},{"$f":"IF(LEN(A1222)=0,\"\",INDEX('Smelter Look-up'!$C:$C,MATCH($A1222,'Smelter Look-up'!$E:$E,0)))","v":""},null,{"$f":"IF(ISERROR($V1222),\"\",OFFSET('Smelter Look-up'!$D$4,$V1222-4,0)&\"\")","v":""},{"$f":"IF(ISERROR($V1222),\"\",OFFSET('Smelter Look-up'!$E$4,$V1222-4,0))","v":""},{"$f":"IF(C1222=$X$4,\"Enter smelter details\",IF(ISERROR($V1222),\"\",OFFSET('Smelter Look-up'!$F$4,$V1222-4,0)))","v":""},{"$f":"IF(ISERROR($V1222),\"\",OFFSET('Smelter Look-up'!$G$4,$V1222-4,0))","v":""},{"$f":"IF(ISERROR($V1222),\"\",OFFSET('Smelter Look-up'!$H$4,$V1222-4,0))","v":""},{"$f":"IF(ISERROR($V1222),\"\",OFFSET('Smelter Look-up'!$I$4,$V1222-4,0))","v":""},{"$nulls":7},{"$f":"IF(ISERROR($V1222),\"\",OFFSET('Smelter Look-up'!$C$4,$V1222-4,0)&\"\")","v":""},"",{"$f":"IF(B1222=\"\",\"\",IF(ISERROR(MATCH($J1222,SorP!$B$1:$B$5661,0)),\"\",INDIRECT(\"'SorP'!$A$\"&MATCH($J1222,SorP!$B$1:$B$5661,0))))","v":""},null,{"$f":"IF(C1222=\"\",NA(),MATCH($B1222&$C1222,'Smelter Look-up'!$J:$J,0))","v":{"$error":"#N/A"}},null,0,null,null,null,""]
[null,{"$f":"IF(LEN(A1223)=0,\"\",INDEX('Smelter Look-up'!$A:$A,MATCH($A1223,'Smelter Look-up'!$E:$E,0)))","v":""},{"$f":"IF(LEN(A1223)=0,\"\",INDEX('Smelter Look-up'!$C:$C,MATCH($A1223,'Smelter Look-up'!$E:$E,0)))","v":""},null,{"$f":"IF(ISERROR($V1223),\"\",OFFSET('Smelter Look-up'!$D$4,$V1223-4,0)&\"\")","v":""},{"$f":"IF(ISERROR($V1223),\"\",OFFSET('Smelter Look-up'!$E$4,$V1223-4,0))","v":""},{"$f":"IF(C1223=$X$4,\"Enter smelter details\",IF(ISERROR($V1223),\"\",OFFSET('Smelter Look-up'!$F$4,$V1223-4,0)))","v":""},{"$f":"IF(ISERROR($V1223),\"\",OFFSET('Smelter Look-up'!$G$4,$V1223-4,0))","v":""},{"$f":"IF(ISERROR($V1223),\"\",OFFSET('Smelter Look-up'!$H$4,$V1223-4,0))","v":""},{"$f":"IF(ISERROR($V1223),\"\",OFFSET('Smelter Look-up'!$I$4,$V1223-4,0))","v":""},{"$nulls":7},{"$f":"IF(ISERROR($V1223),\"\",OFFSET('Smelter Look-up'!$C$4,$V1223-4,0)&\"\")","v":""},"",{"$f":"IF(B1223=\"\",\"\",IF(ISERROR(MATCH($J1223,SorP!$B$1:$B$5661,0)),\"\",INDIRECT(\"'SorP'!$A$\"&MATCH($J1223,SorP!$B$1:$B$5661,0))))","v":""},null,{"$f":"IF(C1223=\"\",NA(),MATCH($B1223&$C1223,'Smelter Look-up'!$J:$J,0))","v":{"$error":"#N/A"}},null,0,null,null,null,""]
[null,{"$f":"IF(LEN(A1224)=0,\"\",INDEX('Smelter Look-up'!$A:$A,MATCH($A1224,'Smelter Look-up'!$E:$E,0)))","v":""},{"$f":"IF(LEN(A1224)=0,\"\",INDEX('Smelter Look-up'!$C:$C,MATCH($A1224,'Smelter Look-up'!$E:$E,0)))","v":""},null,{"$f":"IF(ISERROR($V1224),\"\",OFFSET('Smelter Look-up'!$D$4,$V1224-4,0)&\"\")","v":""},{"$f":"IF(ISERROR($V1224),\"\",OFFSET('Smelter Look-up'!$E$4,$V1224-4,0))","v":""},{"$f":"IF(C1224=$X$4,\"Enter smelter details\",IF(ISERROR($V1224),\"\",OFFSET('Smelter Look-up'!$F$4,$V1224-4,0)))","v":""},{"$f":"IF(ISERROR($V1224),\"\",OFFSET('Smelter Look-up'!$G$4,$V1224-4,0))","v":""},{"$f":"IF(ISERROR($V1224),\"\",OFFSET('Smelter Look-up'!$H$4,$V1224-4,0))","v":""},{"$f":"IF(ISERROR($V1224),\"\",OFFSET('Smelter Look-up'!$I$4,$V1224-4,0))","v":""},{"$nulls":7},{"$f":"IF(ISERROR($V1224),\"\",OFFSET('Smelter Look-up'!$C$4,$V1224-4,0)&\"\")","v":""},"",{"$f":"IF(B1224=\"\",\"\",IF(ISERROR(MATCH($J1224,SorP!$B$1:$B$5661,0)),\"\",INDIRECT(\"'SorP'!$A$\"&MATCH($J1224,SorP!$B$1:$B$5661,0))))","v":""},null,{"$f":"IF(C1224=\"\",NA(),MATCH($B1224&$C1224,'Smelter Look-up'!$J:$J,0))","v":{"$error":"#N/A"}},null,0,null,null,null,""]
[null,{"$f":"IF(LEN(A1225)=0,\"\",INDEX('Smelter Look-up'!$A:$A,MATCH($A1225,'Smelter Look-up'!$E:$E,0)))","v":""},{"$f":"IF(LEN(A1225)=0,\"\",INDEX('Smelter Look-up'!$C:$C,MATCH($A1225,'Smelter Look-up'!$E:$E,0)))","v":""},null,{"$f":"IF(ISERROR($V1225),\"\",OFFSET('Smelter Look-up'!$D$4,$V1225-4,0)&\"\")","v":""},{"$f":"IF(ISERROR($V1225),\"\",OFFSET('Smelter Look-up'!$E$4,$V1225-4,0))","v":""},{"$f":"IF(C1225=$X$4,\"Enter smelter details\",IF(ISERROR($V1225),\"\",OFFSET('Smelter Look-up'!$F$4,$V1225-4,0)))","v":""},{"$f":"IF(ISERROR($V1225),\"\",OFFSET('Smelter Look-up'!$G$4,$V1225-4,0))","v":""},{"$f":"IF(ISERROR($V1225),\"\",OFFSET('Smelter Look-up'!$H$4,$V1225-4,0))","v":""},{"$f":"IF(ISERROR($V1225),\"\",OFFSET('Smelter Look-up'!$I$4,$V1225-4,0))","v":""},{"$nulls":7},{"$f":"IF(ISERROR($V1225),\"\",OFFSET('Smelter Look-up'!$C$4,$V1225-4,0)&\"\")","v":""},"",{"$f":"IF(B1225=\"\",\"\",IF(ISERROR(MATCH($J1225,SorP!$B$1:$B$5661,0)),\"\",INDIRECT(\"'SorP'!$A$\"&MATCH($J1225,SorP!$B$1:$B$5661,0))))","v":""},null,{"$f":"IF(C1225=\"\",NA(),MATCH($B1225&$C1225,'Smelter Look-up'!$J:$J,0))","v":{"$error":"#N/A"}},null,0,null,null,null,""]
[null,{"$f":"IF(LEN(A1226)=0,\"\",INDEX('Smelter Look-up'!$A:$A,MATCH($A1226,'Smelter Look-up'!$E:$E,0)))","v":""},{"$f":"IF(LEN(A1226)=0,\"\",INDEX('Smelter Look-up'!$C:$C,MATCH($A1226,'Smelter Look-up'!$E:$E,0)))","v":""},null,{"$f":"IF(ISERROR($V1226),\"\",OFFSET('Smelter Look-up'!$D$4,$V1226-4,0)&\"\")","v":""},{"$f":"IF(ISERROR($V1226),\"\",OFFSET('Smelter Look-up'!$E$4,$V1226-4,0))","v":""},{"$f":"IF(C1226=$X$4,\"Enter smelter details\",IF(ISERROR($V1226),\"\",OFFSET('Smelter Look-up'!$F$4,$V1226-4,0)))","v":""},{"$f":"IF(ISERROR($V1226),\"\",OFFSET('Smelter Look-up'!$G$4,$V1226-4,0))","v":""},{"$f":"IF(ISERROR($V1226),\"\",OFFSET('Smelter Look-up'!$H$4,$V1226-4,0))","v":""},{"$f":"IF(ISERROR($V1226),\"\",OFFSET('Smelter Look-up'!$I$4,$V1226-4,0))","v":""},{"$nulls":7},{"$f":"IF(ISERROR($V1226),\"\",OFFSET('Smelter Look-up'!$C$4,$V1226-4,0)&\"\")","v":""},"",{"$f":"IF(B1226=\"\",\"\",IF(ISERROR(MATCH($J1226,SorP!$B$1:$B$5661,0)),\"\",INDIRECT(\"'SorP'!$A$\"&MATCH($J1226,SorP!$B$1:$B$5661,0))))","v":""},null,{"$f":"IF(C1226=\"\",NA(),MATCH($B1226&$C1226,'Smelter Look-up'!$J:$J,0))","v":{"$error":"#N/A"}},null,0,null,null,null,""]
[null,{"$f":"IF(LEN(A1227)=0,\"\",INDEX('Smelter Look-up'!$A:$A,MATCH($A1227,'Smelter Look-up'!$E:$E,0)))","v":""},{"$f":"IF(LEN(A1227)=0,\"\",INDEX('Smelter Look-up'!$C:$C,MATCH($A1227,'Smelter Look-up'!$E:$E,0)))","v":""},null,{"$f":"IF(ISERROR($V1227),\"\",OFFSET('Smelter Look-up'!$D$4,$V1227-4,0)&\"\")","v":""},{"$f":"IF(ISERROR($V1227),\"\",OFFSET('Smelter Look-up'!$E$4,$V1227-4,0))","v":""},{"$f":"IF(C1227=$X$4,\"Enter smelter details\",IF(ISERROR($V1227),\"\",OFFSET('Smelter Look-up'!$F$4,$V1227-4,0)))","v":""},{"$f":"IF(ISERROR($V1227),\"\",OFFSET('Smelter Look-up'!$G$4,$V1227-4,0))","v":""},{"$f":"IF(ISERROR($V1227),\"\",OFFSET('Smelter Look-up'!$H$4,$V1227-4,0))","v":""},{"$f":"IF(ISERROR($V1227),\"\",OFFSET('Smelter Look-up'!$I$4,$V1227-4,0))","v":""},{"$nulls":7},{"$f":"IF(ISERROR($V1227),\"\",OFFSET('Smelter Look-up'!$C$4,$V1227-4,0)&\"\")","v":""},"",{"$f":"IF(B1227=\"\",\"\",IF(ISERROR(MATCH($J1227,SorP!$B$1:$B$5661,0)),\"\",INDIRECT(\"'SorP'!$A$\"&MATCH($J1227,SorP!$B$1:$B$5661,0))))","v":""},null,{"$f":"IF(C1227=\"\",NA(),MATCH($B1227&$C1227,'Smelter Look-up'!$J:$J,0))","v":{"$error":"#N/A"}},null,0,null,null,null,""]
[null,{"$f":"IF(LEN(A1228)=0,\"\",INDEX('Smelter Look-up'!$A:$A,MATCH($A1228,'Smelter Look-up'!$E:$E,0)))","v":""},{"$f":"IF(LEN(A1228)=0,\"\",INDEX('Smelter Look-up'!$C:$C,MATCH($A1228,'Smelter Look-up'!$E:$E,0)))","v":""},null,{"$f":"IF(ISERROR($V1228),\"\",OFFSET('Smelter Look-up'!$D$4,$V1228-4,0)&\"\")","v":""},{"$f":"IF(ISERROR($V1228),\"\",OFFSET('Smelter Look-up'!$E$4,$V1228-4,0))","v":""},{"$f":"IF(C1228=$X$4,\"Enter smelter details\",IF(ISERROR($V1228),\"\",OFFSET('Smelter Look-up'!$F$4,$V1228-4,0)))","v":""},{"$f":"IF(ISERROR($V1228),\"\",OFFSET('Smelter Look-up'!$G$4,$V1228-4,0))","v":""},{"$f":"IF(ISERROR($V1228),\"\",OFFSET('Smelter Look-up'!$H$4,$V1228-4,0))","v":""},{"$f":"IF(ISERROR($V1228),\"\",OFFSET('Smelter Look-up'!$I$4,$V1228-4,0))","v":""},{"$nulls":7},{"$f":"IF(ISERROR($V1228),\"\",OFFSET('Smelter Look-up'!$C$4,$V1228-4,0)&\"\")","v":""},"",{"$f":"IF(B1228=\"\",\"\",IF(ISERROR(MATCH($J1228,SorP!$B$1:$B$5661,0)),\"\",INDIRECT(\"'SorP'!$A$\"&MATCH($J1228,SorP!$B$1:$B$5661,0))))","v":""},null,{"$f":"IF(C1228=\"\",NA(),MATCH($B1228&$C1228,'Smelter Look-up'!$J:$J,0))","v":{"$error":"#N/A"}},null,0,null,null,null,""]
[null,{"$f":"IF(LEN(A1229)=0,\"\",INDEX('Smelter Look-up'!$A:$A,MATCH($A1229,'Smelter Look-up'!$E:$E,0)))","v":""},{"$f":"IF(LEN(A1229)=0,\"\",INDEX('Smelter Look-up'!$C:$C,MATCH($A1229,'Smelter Look-up'!$E:$E,0)))","v":""},null,{"$f":"IF(ISERROR($V1229),\"\",OFFSET('Smelter Look-up'!$D$4,$V1229-4,0)&\"\")","v":""},{"$f":"IF(ISERROR($V1229),\"\",OFFSET('Smelter Look-up'!$E$4,$V1229-4,0))","v":""},{"$f":"IF(C1229=$X$4,\"Enter smelter details\",IF(ISERROR($V1229),\"\",OFFSET('Smelter Look-up'!$F$4,$V1229-4,0)))","v":""},{"$f":"IF(ISERROR($V1229),\"\",OFFSET('Smelter Look-up'!$G$4,$V1229-4,0))","v":""},{"$f":"IF(ISERROR($V1229),\"\",OFFSET('Smelter Look-up'!$H$4,$V1229-4,0))","v":""},{"$f":"IF(ISERROR($V1229),\"\",OFFSET('Smelter Look-up'!$I$4,$V1229-4,0))","v":""},{"$nulls":7},{"$f":"IF(ISERROR($V1229),\"\",OFFSET('Smelter Look-up'!$C$4,$V1229-4,0)&\"\")","v":""},"",{"$f":"IF(B1229=\"\",\"\",IF(ISERROR(MATCH($J1229,SorP!$B$1:$B$5661,0)),\"\",INDIRECT(\"'SorP'!$A$\"&MATCH($J1229,SorP!$B$1:$B$5661,0))))","v":""},null,{"$f":"IF(C1229=\"\",NA(),MATCH($B1229&$C1229,'Smelter Look-up'!$J:$J,0))","v":{"$error":"#N/A"}},null,0,null,null,null,""]
[null,{"$f":"IF(LEN(A1230)=0,\"\",INDEX('Smelter Look-up'!$A:$A,MATCH($A1230,'Smelter Look-up'!$E:$E,0)))","v":""},{"$f":"IF(LEN(A1230)=0,\"\",INDEX('Smelter Look-up'!$C:$C,MATCH($A1230,'Smelter Look-up'!$E:$E,0)))","v":""},null,{"$f":"IF(ISERROR($V1230),\"\",OFFSET('Smelter Look-up'!$D$4,$V1230-4,0)&\"\")","v":""},{"$f":"IF(ISERROR($V1230),\"\",OFFSET('Smelter Look-up'!$E$4,$V1230-4,0))","v":""},{"$f":"IF(C1230=$X$4,\"Enter smelter details\",IF(ISERROR($V1230),\"\",OFFSET('Smelter Look-up'!$F$4,$V1230-4,0)))","v":""},{"$f":"IF(ISERROR($V1230),\"\",OFFSET('Smelter Look-up'!$G$4,$V1230-4,0))","v":""},{"$f":"IF(ISERROR($V1230),\"\",OFFSET('Smelter Look-up'!$H$4,$V1230-4,0))","v":""},{"$f":"IF(ISERROR($V1230),\"\",OFFSET('Smelter Look-up'!$I$4,$V1230-4,0))","v":""},{"$nulls":7},{"$f":"IF(ISERROR($V1230),\"\",OFFSET('Smelter Look-up'!$C$4,$V1230-4,0)&\"\")","v":""},"",{"$f":"IF(B1230=\"\",\"\",IF(ISERROR(MATCH($J1230,SorP!$B$1:$B$5661,0)),\"\",INDIRECT(\"'SorP'!$A$\"&MATCH($J1230,SorP!$B$1:$B$5661,0))))","v":""},null,{"$f":"IF(C1230=\"\",NA(),MATCH($B1230&$C1230,'Smelter Look-up'!$J:$J,0))","v":{"$error":"#N/A"}},null,0,null,null,null,""]
[null,{"$f":"IF(LEN(A1231)=0,\"\",INDEX('Smelter Look-up'!$A:$A,MATCH($A1231,'Smelter Look-up'!$E:$E,0)))","v":""},{"$f":"IF(LEN(A1231)=0,\"\",INDEX('Smelter Look-up'!$C:$C,MATCH($A1231,'Smelter Look-up'!$E:$E,0)))","v":""},null,{"$f":"IF(ISERROR($V1231),\"\",OFFSET('Smelter Look-up'!$D$4,$V1231-4,0)&\"\")","v":""},{"$f":"IF(ISERROR($V1231),\"\",OFFSET('Smelter Look-up'!$E$4,$V1231-4,0))","v":""},{"$f":"IF(C1231=$X$4,\"Enter smelter details\",IF(ISERROR($V1231),\"\",OFFSET('Smelter Look-up'!$F$4,$V1231-4,0)))","v":""},{"$f":"IF(ISERROR($V1231),\"\",OFFSET('Smelter Look-up'!$G$4,$V1231-4,0))","v":""},{"$f":"IF(ISERROR($V1231),\"\",OFFSET('Smelter Look-up'!$H$4,$V1231-4,0))","v":""},{"$f":"IF(ISERROR($V1231),\"\",OFFSET('Smelter Look-up'!$I$4,$V1231-4,0))","v":""},{"$nulls":7},{"$f":"IF(ISERROR($V1231),\"\",OFFSET('Smelter Look-up'!$C$4,$V1231-4,0)&\"\")","v":""},"",{"$f":"IF(B1231=\"\",\"\",IF(ISERROR(MATCH($J1231,SorP!$B$1:$B$5661,0)),\"\",INDIRECT(\"'SorP'!$A$\"&MATCH($J1231,SorP!$B$1:$B$5661,0))))","v":""},null,{"$f":"IF(C1231=\"\",NA(),MATCH($B1231&$C1231,'Smelter Look-up'!$J:$J,0))","v":{"$error":"#N/A"}},null,0,null,null,null,""]
[null,{"$f":"IF(LEN(A1232)=0,\"\",INDEX('Smelter Look-up'!$A:$A,MATCH($A1232,'Smelter Look-up'!$E:$E,0)))","v":""},{"$f":"IF(LEN(A1232)=0,\"\",INDEX('Smelter Look-up'!$C:$C,MATCH($A1232,'Smelter Look-up'!$E:$E,0)))","v":""},null,{"$f":"IF(ISERROR($V1232),\"\",OFFSET('Smelter Look-up'!$D$4,$V1232-4,0)&\"\")","v":""},{"$f":"IF(ISERROR($V1232),\"\",OFFSET('Smelter Look-up'!$E$4,$V1232-4,0))","v":""},{"$f":"IF(C1232=$X$4,\"Enter smelter details\",IF(ISERROR($V1232),\"\",OFFSET('Smelter Look-up'!$F$4,$V1232-4,0)))","v":""},{"$f":"IF(ISERROR($V1232),\"\",OFFSET('Smelter Look-up'!$G$4,$V1232-4,0))","v":""},{"$f":"IF(ISERROR($V1232),\"\",OFFSET('Smelter Look-up'!$H$4,$V1232-4,0))","v":""},{"$f":"IF(ISERROR($V1232),\"\",OFFSET('Smelter Look-up'!$I$4,$V1232-4,0))","v":""},{"$nulls":7},{"$f":"IF(ISERROR($V1232),\"\",OFFSET('Smelter Look-up'!$C$4,$V1232-4,0)&\"\")","v":""},"",{"$f":"IF(B1232=\"\",\"\",IF(ISERROR(MATCH($J1232,SorP!$B$1:$B$5661,0)),\"\",INDIRECT(\"'SorP'!$A$\"&MATCH($J1232,SorP!$B$1:$B$5661,0))))","v":""},null,{"$f":"IF(C1232=\"\",NA(),MATCH($B1232&$C1232,'Smelter Look-up'!$J:$J,0))","v":{"$error":"#N/A"}},null,0,null,null,null,""]
[null,{"$f":"IF(LEN(A1233)=0,\"\",INDEX('Smelter Look-up'!$A:$A,MATCH($A1233,'Smelter Look-up'!$E:$E,0)))","v":""},{"$f":"IF(LEN(A1233)=0,\"\",INDEX('Smelter Look-up'!$C:$C,MATCH($A1233,'Smelter Look-up'!$E:$E,0)))","v":""},null,{"$f":"IF(ISERROR($V1233),\"\",OFFSET('Smelter Look-up'!$D$4,$V1233-4,0)&\"\")","v":""},{"$f":"IF(ISERROR($V1233),\"\",OFFSET('Smelter Look-up'!$E$4,$V1233-4,0))","v":""},{"$f":"IF(C1233=$X$4,\"Enter smelter details\",IF(ISERROR($V1233),\"\",OFFSET('Smelter Look-up'!$F$4,$V1233-4,0)))","v":""},{"$f":"IF(ISERROR($V1233),\"\",OFFSET('Smelter Look-up'!$G$4,$V1233-4,0))","v":""},{"$f":"IF(ISERROR($V1233),\"\",OFFSET('Smelter Look-up'!$H$4,$V1233-4,0))","v":""},{"$f":"IF(ISERROR($V1233),\"\",OFFSET('Smelter Look-up'!$I$4,$V1233-4,0))","v":""},{"$nulls":7},{"$f":"IF(ISERROR($V1233),\"\",OFFSET('Smelter Look-up'!$C$4,$V1233-4,0)&\"\")","v":""},"",{"$f":"IF(B1233=\"\",\"\",IF(ISERROR(MATCH($J1233,SorP!$B$1:$B$5661,0)),\"\",INDIRECT(\"'SorP'!$A$\"&MATCH($J1233,SorP!$B$1:$B$5661,0))))","v":""},null,{"$f":"IF(C1233=\"\",NA(),MATCH($B1233&$C1233,'Smelter Look-up'!$J:$J,0))","v":{"$error":"#N/A"}},null,0,null,null,null,""]
[null,{"$f":"IF(LEN(A1234)=0,\"\",INDEX('Smelter Look-up'!$A:$A,MATCH($A1234,'Smelter Look-up'!$E:$E,0)))","v":""},{"$f":"IF(LEN(A1234)=0,\"\",INDEX('Smelter Look-up'!$C:$C,MATCH($A1234,'Smelter Look-up'!$E:$E,0)))","v":""},null,{"$f":"IF(ISERROR($V1234),\"\",OFFSET('Smelter Look-up'!$D$4,$V1234-4,0)&\"\")","v":""},{"$f":"IF(ISERROR($V1234),\"\",OFFSET('Smelter Look-up'!$E$4,$V1234-4,0))","v":""},{"$f":"IF(C1234=$X$4,\"Enter smelter details\",IF(ISERROR($V1234),\"\",OFFSET('Smelter Look-up'!$F$4,$V1234-4,0)))","v":""},{"$f":"IF(ISERROR($V1234),\"\",OFFSET('Smelter Look-up'!$G$4,$V1234-4,0))","v":""},{"$f":"IF(ISERROR($V1234),\"\",OFFSET('Smelter Look-up'!$H$4,$V1234-4,0))","v":""},{"$f":"IF(ISERROR($V1234),\"\",OFFSET('Smelter Look-up'!$I$4,$V1234-4,0))","v":""},{"$nulls":7},{"$f":"IF(ISERROR($V1234),\"\",OFFSET('Smelter Look-up'!$C$4,$V1234-4,0)&\"\")","v":""},"",{"$f":"IF(B1234=\"\",\"\",IF(ISERROR(MATCH($J1234,SorP!$B$1:$B$5661,0)),\"\",INDIRECT(\"'SorP'!$A$\"&MATCH($J1234,SorP!$B$1:$B$5661,0))))","v":""},null,{"$f":"IF(C1234=\"\",NA(),MATCH($B1234&$C1234,'Smelter Look-up'!$J:$J,0))","v":{"$error":"#N/A"}},null,0,null,null,null,""]
[null,{"$f":"IF(LEN(A1235)=0,\"\",INDEX('Smelter Look-up'!$A:$A,MATCH($A1235,'Smelter Look-up'!$E:$E,0)))","v":""},{"$f":"IF(LEN(A1235)=0,\"\",INDEX('Smelter Look-up'!$C:$C,MATCH($A1235,'Smelter Look-up'!$E:$E,0)))","v":""},null,{"$f":"IF(ISERROR($V1235),\"\",OFFSET('Smelter Look-up'!$D$4,$V1235-4,0)&\"\")","v":""},{"$f":"IF(ISERROR($V1235),\"\",OFFSET('Smelter Look-up'!$E$4,$V1235-4,0))","v":""},{"$f":"IF(C1235=$X$4,\"Enter smelter details\",IF(ISERROR($V1235),\"\",OFFSET('Smelter Look-up'!$F$4,$V1235-4,0)))","v":""},{"$f":"IF(ISERROR($V1235),\"\",OFFSET('Smelter Look-up'!$G$4,$V1235-4,0))","v":""},{"$f":"IF(ISERROR($V1235),\"\",OFFSET('Smelter Look-up'!$H$4,$V1235-4,0))","v":""},{"$f":"IF(ISERROR($V1235),\"\",OFFSET('Smelter Look-up'!$I$4,$V1235-4,0))","v":""},{"$nulls":7},{"$f":"IF(ISERROR($V1235),\"\",OFFSET('Smelter Look-up'!$C$4,$V1235-4,0)&\"\")","v":""},"",{"$f":"IF(B1235=\"\",\"\",IF(ISERROR(MATCH($J1235,SorP!$B$1:$B$5661,0)),\"\",INDIRECT(\"'SorP'!$A$\"&MATCH($J1235,SorP!$B$1:$B$5661,0))))","v":""},null,{"$f":"IF(C1235=\"\",NA(),MATCH($B1235&$C1235,'Smelter Look-up'!$J:$J,0))","v":{"$error":"#N/A"}},null,0,null,null,null,""]
[null,{"$f":"IF(LEN(A1236)=0,\"\",INDEX('Smelter Look-up'!$A:$A,MATCH($A1236,'Smelter Look-up'!$E:$E,0)))","v":""},{"$f":"IF(LEN(A1236)=0,\"\",INDEX('Smelter Look-up'!$C:$C,MATCH($A1236,'Smelter Look-up'!$E:$E,0)))","v":""},null,{"$f":"IF(ISERROR($V1236),\"\",OFFSET('Smelter Look-up'!$D$4,$V1236-4,0)&\"\")","v":""},{"$f":"IF(ISERROR($V1236),\"\",OFFSET('Smelter Look-up'!$E$4,$V1236-4,0))","v":""},{"$f":"IF(C1236=$X$4,\"Enter smelter details\",IF(ISERROR($V1236),\"\",OFFSET('Smelter Look-up'!$F$4,$V1236-4,0)))","v":""},{"$f":"IF(ISERROR($V1236),\"\",OFFSET('Smelter Look-up'!$G$4,$V1236-4,0))","v":""},{"$f":"IF(ISERROR($V1236),\"\",OFFSET('Smelter Look-up'!$H$4,$V1236-4,0))","v":""},{"$f":"IF(ISERROR($V1236),\"\",OFFSET('Smelter Look-up'!$I$4,$V1236-4,0))","v":""},{"$nulls":7},{"$f":"IF(ISERROR($V1236),\"\",OFFSET('Smelter Look-up'!$C$4,$V1236-4,0)&\"\")","v":""},"",{"$f":"IF(B1236=\"\",\"\",IF(ISERROR(MATCH($J1236,SorP!$B$1:$B$5661,0)),\"\",INDIRECT(\"'SorP'!$A$\"&MATCH($J1236,SorP!$B$1:$B$5661,0))))","v":""},null,{"$f":"IF(C1236=\"\",NA(),MATCH($B1236&$C1236,'Smelter Look-up'!$J:$J,0))","v":{"$error":"#N/A"}},null,0,null,null,null,""]
[null,{"$f":"IF(LEN(A1237)=0,\"\",INDEX('Smelter Look-up'!$A:$A,MATCH($A1237,'Smelter Look-up'!$E:$E,0)))","v":""},{"$f":"IF(LEN(A1237)=0,\"\",INDEX('Smelter Look-up'!$C:$C,MATCH($A1237,'Smelter Look-up'!$E:$E,0)))","v":""},null,{"$f":"IF(ISERROR($V1237),\"\",OFFSET('Smelter Look-up'!$D$4,$V1237-4,0)&\"\")","v":""},{"$f":"IF(ISERROR($V1237),\"\",OFFSET('Smelter Look-up'!$E$4,$V1237-4,0))","v":""},{"$f":"IF(C1237=$X$4,\"Enter smelter details\",IF(ISERROR($V1237),\"\",OFFSET('Smelter Look-up'!$F$4,$V1237-4,0)))","v":""},{"$f":"IF(ISERROR($V1237),\"\",OFFSET('Smelter Look-up'!$G$4,$V1237-4,0))","v":""},{"$f":"IF(ISERROR($V1237),\"\",OFFSET('Smelter Look-up'!$H$4,$V1237-4,0))","v":""},{"$f":"IF(ISERROR($V1237),\"\",OFFSET('Smelter Look-up'!$I$4,$V1237-4,0))","v":""},{"$nulls":7},{"$f":"IF(ISERROR($V1237),\"\",OFFSET('Smelter Look-up'!$C$4,$V1237-4,0)&\"\")","v":""},"",{"$f":"IF(B1237=\"\",\"\",IF(ISERROR(MATCH($J1237,SorP!$B$1:$B$5661,0)),\"\",INDIRECT(\"'SorP'!$A$\"&MATCH($J1237,SorP!$B$1:$B$5661,0))))","v":""},null,{"$f":"IF(C1237=\"\",NA(),MATCH($B1237&$C1237,'Smelter Look-up'!$J:$J,0))","v":{"$error":"#N/A"}},null,0,null,null,null,""]
[null,{"$f":"IF(LEN(A1238)=0,\"\",INDEX('Smelter Look-up'!$A:$A,MATCH($A1238,'Smelter Look-up'!$E:$E,0)))","v":""},{"$f":"IF(LEN(A1238)=0,\"\",INDEX('Smelter Look-up'!$C:$C,MATCH($A1238,'Smelter Look-up'!$E:$E,0)))","v":""},null,{"$f":"IF(ISERROR($V1238),\"\",OFFSET('Smelter Look-up'!$D$4,$V1238-4,0)&\"\")","v":""},{"$f":"IF(ISERROR($V1238),\"\",OFFSET('Smelter Look-up'!$E$4,$V1238-4,0))","v":""},{"$f":"IF(C1238=$X$4,\"Enter smelter details\",IF(ISERROR($V1238),\"\",OFFSET('Smelter Look-up'!$F$4,$V1238-4,0)))","v":""},{"$f":"IF(ISERROR($V1238),\"\",OFFSET('Smelter Look-up'!$G$4,$V1238-4,0))","v":""},{"$f":"IF(ISERROR($V1238),\"\",OFFSET('Smelter Look-up'!$H$4,$V1238-4,0))","v":""},{"$f":"IF(ISERROR($V1238),\"\",OFFSET('Smelter Look-up'!$I$4,$V1238-4,0))","v":""},{"$nulls":7},{"$f":"IF(ISERROR($V1238),\"\",OFFSET('Smelter Look-up'!$C$4,$V1238-4,0)&\"\")","v":""},"",{"$f":"IF(B1238=\"\",\"\",IF(ISERROR(MATCH($J1238,SorP!$B$1:$B$5661,0)),\"\",INDIRECT(\"'SorP'!$A$\"&MATCH($J1238,SorP!$B$1:$B$5661,0))))","v":""},null,{"$f":"IF(C1238=\"\",NA(),MATCH($B1238&$C1238,'Smelter Look-up'!$J:$J,0))","v":{"$error":"#N/A"}},null,0,null,null,null,""]
[null,{"$f":"IF(LEN(A1239)=0,\"\",INDEX('Smelter Look-up'!$A:$A,MATCH($A1239,'Smelter Look-up'!$E:$E,0)))","v":""},{"$f":"IF(LEN(A1239)=0,\"\",INDEX('Smelter Look-up'!$C:$C,MATCH($A1239,'Smelter Look-up'!$E:$E,0)))","v":""},null,{"$f":"IF(ISERROR($V1239),\"\",OFFSET('Smelter Look-up'!$D$4,$V1239-4,0)&\"\")","v":""},{"$f":"IF(ISERROR($V1239),\"\",OFFSET('Smelter Look-up'!$E$4,$V1239-4,0))","v":""},{"$f":"IF(C1239=$X$4,\"Enter smelter details\",IF(ISERROR($V1239),\"\",OFFSET('Smelter Look-up'!$F$4,$V1239-4,0)))","v":""},{"$f":"IF(ISERROR($V1239),\"\",OFFSET('Smelter Look-up'!$G$4,$V1239-4,0))","v":""},{"$f":"IF(ISERROR($V1239),\"\",OFFSET('Smelter Look-up'!$H$4,$V1239-4,0))","v":""},{"$f":"IF(ISERROR($V1239),\"\",OFFSET('Smelter Look-up'!$I$4,$V1239-4,0))","v":""},{"$nulls":7},{"$f":"IF(ISERROR($V1239),\"\",OFFSET('Smelter Look-up'!$C$4,$V1239-4,0)&\"\")","v":""},"",{"$f":"IF(B1239=\"\",\"\",IF(ISERROR(MATCH($J1239,SorP!$B$1:$B$5661,0)),\"\",INDIRECT(\"'SorP'!$A$\"&MATCH($J1239,SorP!$B$1:$B$5661,0))))","v":""},null,{"$f":"IF(C1239=\"\",NA(),MATCH($B1239&$C1239,'Smelter Look-up'!$J:$J,0))","v":{"$error":"#N/A"}},null,0,null,null,null,""]
[null,{"$f":"IF(LEN(A1240)=0,\"\",INDEX('Smelter Look-up'!$A:$A,MATCH($A1240,'Smelter Look-up'!$E:$E,0)))","v":""},{"$f":"IF(LEN(A1240)=0,\"\",INDEX('Smelter Look-up'!$C:$C,MATCH($A1240,'Smelter Look-up'!$E:$E,0)))","v":""},null,{"$f":"IF(ISERROR($V1240),\"\",OFFSET('Smelter Look-up'!$D$4,$V1240-4,0)&\"\")","v":""},{"$f":"IF(ISERROR($V1240),\"\",OFFSET('Smelter Look-up'!$E$4,$V1240-4,0))","v":""},{"$f":"IF(C1240=$X$4,\"Enter smelter details\",IF(ISERROR($V1240),\"\",OFFSET('Smelter Look-up'!$F$4,$V1240-4,0)))","v":""},{"$f":"IF(ISERROR($V1240),\"\",OFFSET('Smelter Look-up'!$G$4,$V1240-4,0))","v":""},{"$f":"IF(ISERROR($V1240),\"\",OFFSET('Smelter Look-up'!$H$4,$V1240-4,0))","v":""},{"$f":"IF(ISERROR($V1240),\"\",OFFSET('Smelter Look-up'!$I$4,$V1240-4,0))","v":""},{"$nulls":7},{"$f":"IF(ISERROR($V1240),\"\",OFFSET('Smelter Look-up'!$C$4,$V1240-4,0)&\"\")","v":""},"",{"$f":"IF(B1240=\"\",\"\",IF(ISERROR(MATCH($J1240,SorP!$B$1:$B$5661,0)),\"\",INDIRECT(\"'SorP'!$A$\"&MATCH($J1240,SorP!$B$1:$B$5661,0))))","v":""},null,{"$f":"IF(C1240=\"\",NA(),MATCH($B1240&$C1240,'Smelter Look-up'!$J:$J,0))","v":{"$error":"#N/A"}},null,0,null,null,null,""]
[null,{"$f":"IF(LEN(A1241)=0,\"\",INDEX('Smelter Look-up'!$A:$A,MATCH($A1241,'Smelter Look-up'!$E:$E,0)))","v":""},{"$f":"IF(LEN(A1241)=0,\"\",INDEX('Smelter Look-up'!$C:$C,MATCH($A1241,'Smelter Look-up'!$E:$E,0)))","v":""},null,{"$f":"IF(ISERROR($V1241),\"\",OFFSET('Smelter Look-up'!$D$4,$V1241-4,0)&\"\")","v":""},{"$f":"IF(ISERROR($V1241),\"\",OFFSET('Smelter Look-up'!$E$4,$V1241-4,0))","v":""},{"$f":"IF(C1241=$X$4,\"Enter smelter details\",IF(ISERROR($V1241),\"\",OFFSET('Smelter Look-up'!$F$4,$V1241-4,0)))","v":""},{"$f":"IF(ISERROR($V1241),\"\",OFFSET('Smelter Look-up'!$G$4,$V1241-4,0))","v":""},{"$f":"IF(ISERROR($V1241),\"\",OFFSET('Smelter Look-up'!$H$4,$V1241-4,0))","v":""},{"$f":"IF(ISERROR($V1241),\"\",OFFSET('Smelter Look-up'!$I$4,$V1241-4,0))","v":""},{"$nulls":7},{"$f":"IF(ISERROR($V1241),\"\",OFFSET('Smelter Look-up'!$C$4,$V1241-4,0)&\"\")","v":""},"",{"$f":"IF(B1241=\"\",\"\",IF(ISERROR(MATCH($J1241,SorP!$B$1:$B$5661,0)),\"\",INDIRECT(\"'SorP'!$A$\"&MATCH($J1241,SorP!$B$1:$B$5661,0))))","v":""},null,{"$f":"IF(C1241=\"\",NA(),MATCH($B1241&$C1241,'Smelter Look-up'!$J:$J,0))","v":{"$error":"#N/A"}},null,0,null,null,null,""]
[null,{"$f":"IF(LEN(A1242)=0,\"\",INDEX('Smelter Look-up'!$A:$A,MATCH($A1242,'Smelter Look-up'!$E:$E,0)))","v":""},{"$f":"IF(LEN(A1242)=0,\"\",INDEX('Smelter Look-up'!$C:$C,MATCH($A1242,'Smelter Look-up'!$E:$E,0)))","v":""},null,{"$f":"IF(ISERROR($V1242),\"\",OFFSET('Smelter Look-up'!$D$4,$V1242-4,0)&\"\")","v":""},{"$f":"IF(ISERROR($V1242),\"\",OFFSET('Smelter Look-up'!$E$4,$V1242-4,0))","v":""},{"$f":"IF(C1242=$X$4,\"Enter smelter details\",IF(ISERROR($V1242),\"\",OFFSET('Smelter Look-up'!$F$4,$V1242-4,0)))","v":""},{"$f":"IF(ISERROR($V1242),\"\",OFFSET('Smelter Look-up'!$G$4,$V1242-4,0))","v":""},{"$f":"IF(ISERROR($V1242),\"\",OFFSET('Smelter Look-up'!$H$4,$V1242-4,0))","v":""},{"$f":"IF(ISERROR($V1242),\"\",OFFSET('Smelter Look-up'!$I$4,$V1242-4,0))","v":""},{"$nulls":7},{"$f":"IF(ISERROR($V1242),\"\",OFFSET('Smelter Look-up'!$C$4,$V1242-4,0)&\"\")","v":""},"",{"$f":"IF(B1242=\"\",\"\",IF(ISERROR(MATCH($J1242,SorP!$B$1:$B$5661,0)),\"\",INDIRECT(\"'SorP'!$A$\"&MATCH($J1242,SorP!$B$1:$B$5661,0))))","v":""},null,{"$f":"IF(C1242=\"\",NA(),MATCH($B1242&$C1242,'Smelter Look-up'!$J:$J,0))","v":{"$error":"#N/A"}},null,0,null,null,null,""]
[null,{"$f":"IF(LEN(A1243)=0,\"\",INDEX('Smelter Look-up'!$A:$A,MATCH($A1243,'Smelter Look-up'!$E:$E,0)))","v":""},{"$f":"IF(LEN(A1243)=0,\"\",INDEX('Smelter Look-up'!$C:$C,MATCH($A1243,'Smelter Look-up'!$E:$E,0)))","v":""},null,{"$f":"IF(ISERROR($V1243),\"\",OFFSET('Smelter Look-up'!$D$4,$V1243-4,0)&\"\")","v":""},{"$f":"IF(ISERROR($V1243),\"\",OFFSET('Smelter Look-up'!$E$4,$V1243-4,0))","v":""},{"$f":"IF(C1243=$X$4,\"Enter smelter details\",IF(ISERROR($V1243),\"\",OFFSET('Smelter Look-up'!$F$4,$V1243-4,0)))","v":""},{"$f":"IF(ISERROR($V1243),\"\",OFFSET('Smelter Look-up'!$G$4,$V1243-4,0))","v":""},{"$f":"IF(ISERROR($V1243),\"\",OFFSET('Smelter Look-up'!$H$4,$V1243-4,0))","v":""},{"$f":"IF(ISERROR($V1243),\"\",OFFSET('Smelter Look-up'!$I$4,$V1243-4,0))","v":""},{"$nulls":7},{"$f":"IF(ISERROR($V1243),\"\",OFFSET('Smelter Look-up'!$C$4,$V1243-4,0)&\"\")","v":""},"",{"$f":"IF(B1243=\"\",\"\",IF(ISERROR(MATCH($J1243,SorP!$B$1:$B$5661,0)),\"\",INDIRECT(\"'SorP'!$A$\"&MATCH($J1243,SorP!$B$1:$B$5661,0))))","v":""},null,{"$f":"IF(C1243=\"\",NA(),MATCH($B1243&$C1243,'Smelter Look-up'!$J:$J,0))","v":{"$error":"#N/A"}},null,0,null,null,null,""]
[null,{"$f":"IF(LEN(A1244)=0,\"\",INDEX('Smelter Look-up'!$A:$A,MATCH($A1244,'Smelter Look-up'!$E:$E,0)))","v":""},{"$f":"IF(LEN(A1244)=0,\"\",INDEX('Smelter Look-up'!$C:$C,MATCH($A1244,'Smelter Look-up'!$E:$E,0)))","v":""},null,{"$f":"IF(ISERROR($V1244),\"\",OFFSET('Smelter Look-up'!$D$4,$V1244-4,0)&\"\")","v":""},{"$f":"IF(ISERROR($V1244),\"\",OFFSET('Smelter Look-up'!$E$4,$V1244-4,0))","v":""},{"$f":"IF(C1244=$X$4,\"Enter smelter details\",IF(ISERROR($V1244),\"\",OFFSET('Smelter Look-up'!$F$4,$V1244-4,0)))","v":""},{"$f":"IF(ISERROR($V1244),\"\",OFFSET('Smelter Look-up'!$G$4,$V1244-4,0))","v":""},{"$f":"IF(ISERROR($V1244),\"\",OFFSET('Smelter Look-up'!$H$4,$V1244-4,0))","v":""},{"$f":"IF(ISERROR($V1244),\"\",OFFSET('Smelter Look-up'!$I$4,$V1244-4,0))","v":""},{"$nulls":7},{"$f":"IF(ISERROR($V1244),\"\",OFFSET('Smelter Look-up'!$C$4,$V1244-4,0)&\"\")","v":""},"",{"$f":"IF(B1244=\"\",\"\",IF(ISERROR(MATCH($J1244,SorP!$B$1:$B$5661,0)),\"\",INDIRECT(\"'SorP'!$A$\"&MATCH($J1244,SorP!$B$1:$B$5661,0))))","v":""},null,{"$f":"IF(C1244=\"\",NA(),MATCH($B1244&$C1244,'Smelter Look-up'!$J:$J,0))","v":{"$error":"#N/A"}},null,0,null,null,null,""]
[null,{"$f":"IF(LEN(A1245)=0,\"\",INDEX('Smelter Look-up'!$A:$A,MATCH($A1245,'Smelter Look-up'!$E:$E,0)))","v":""},{"$f":"IF(LEN(A1245)=0,\"\",INDEX('Smelter Look-up'!$C:$C,MATCH($A1245,'Smelter Look-up'!$E:$E,0)))","v":""},null,{"$f":"IF(ISERROR($V1245),\"\",OFFSET('Smelter Look-up'!$D$4,$V1245-4,0)&\"\")","v":""},{"$f":"IF(ISERROR($V1245),\"\",OFFSET('Smelter Look-up'!$E$4,$V1245-4,0))","v":""},{"$f":"IF(C1245=$X$4,\"Enter smelter details\",IF(ISERROR($V1245),\"\",OFFSET('Smelter Look-up'!$F$4,$V1245-4,0)))","v":""},{"$f":"IF(ISERROR($V1245),\"\",OFFSET('Smelter Look-up'!$G$4,$V1245-4,0))","v":""},{"$f":"IF(ISERROR($V1245),\"\",OFFSET('Smelter Look-up'!$H$4,$V1245-4,0))","v":""},{"$f":"IF(ISERROR($V1245),\"\",OFFSET('Smelter Look-up'!$I$4,$V1245-4,0))","v":""},{"$nulls":7},{"$f":"IF(ISERROR($V1245),\"\",OFFSET('Smelter Look-up'!$C$4,$V1245-4,0)&\"\")","v":""},"",{"$f":"IF(B1245=\"\",\"\",IF(ISERROR(MATCH($J1245,SorP!$B$1:$B$5661,0)),\"\",INDIRECT(\"'SorP'!$A$\"&MATCH($J1245,SorP!$B$1:$B$5661,0))))","v":""},null,{"$f":"IF(C1245=\"\",NA(),MATCH($B1245&$C1245,'Smelter Look-up'!$J:$J,0))","v":{"$error":"#N/A"}},null,0,null,null,null,""]
[null,{"$f":"IF(LEN(A1246)=0,\"\",INDEX('Smelter Look-up'!$A:$A,MATCH($A1246,'Smelter Look-up'!$E:$E,0)))","v":""},{"$f":"IF(LEN(A1246)=0,\"\",INDEX('Smelter Look-up'!$C:$C,MATCH($A1246,'Smelter Look-up'!$E:$E,0)))","v":""},null,{"$f":"IF(ISERROR($V1246),\"\",OFFSET('Smelter Look-up'!$D$4,$V1246-4,0)&\"\")","v":""},{"$f":"IF(ISERROR($V1246),\"\",OFFSET('Smelter Look-up'!$E$4,$V1246-4,0))","v":""},{"$f":"IF(C1246=$X$4,\"Enter smelter details\",IF(ISERROR($V1246),\"\",OFFSET('Smelter Look-up'!$F$4,$V1246-4,0)))","v":""},{"$f":"IF(ISERROR($V1246),\"\",OFFSET('Smelter Look-up'!$G$4,$V1246-4,0))","v":""},{"$f":"IF(ISERROR($V1246),\"\",OFFSET('Smelter Look-up'!$H$4,$V1246-4,0))","v":""},{"$f":"IF(ISERROR($V1246),\"\",OFFSET('Smelter Look-up'!$I$4,$V1246-4,0))","v":""},{"$nulls":7},{"$f":"IF(ISERROR($V1246),\"\",OFFSET('Smelter Look-up'!$C$4,$V1246-4,0)&\"\")","v":""},"",{"$f":"IF(B1246=\"\",\"\",IF(ISERROR(MATCH($J1246,SorP!$B$1:$B$5661,0)),\"\",INDIRECT(\"'SorP'!$A$\"&MATCH($J1246,SorP!$B$1:$B$5661,0))))","v":""},null,{"$f":"IF(C1246=\"\",NA(),MATCH($B1246&$C1246,'Smelter Look-up'!$J:$J,0))","v":{"$error":"#N/A"}},null,0,null,null,null,""]
[null,{"$f":"IF(LEN(A1247)=0,\"\",INDEX('Smelter Look-up'!$A:$A,MATCH($A1247,'Smelter Look-up'!$E:$E,0)))","v":""},{"$f":"IF(LEN(A1247)=0,\"\",INDEX('Smelter Look-up'!$C:$C,MATCH($A1247,'Smelter Look-up'!$E:$E,0)))","v":""},null,{"$f":"IF(ISERROR($V1247),\"\",OFFSET('Smelter Look-up'!$D$4,$V1247-4,0)&\"\")","v":""},{"$f":"IF(ISERROR($V1247),\"\",OFFSET('Smelter Look-up'!$E$4,$V1247-4,0))","v":""},{"$f":"IF(C1247=$X$4,\"Enter smelter details\",IF(ISERROR($V1247),\"\",OFFSET('Smelter Look-up'!$F$4,$V1247-4,0)))","v":""},{"$f":"IF(ISERROR($V1247),\"\",OFFSET('Smelter Look-up'!$G$4,$V1247-4,0))","v":""},{"$f":"IF(ISERROR($V1247),\"\",OFFSET('Smelter Look-up'!$H$4,$V1247-4,0))","v":""},{"$f":"IF(ISERROR($V1247),\"\",OFFSET('Smelter Look-up'!$I$4,$V1247-4,0))","v":""},{"$nulls":7},{"$f":"IF(ISERROR($V1247),\"\",OFFSET('Smelter Look-up'!$C$4,$V1247-4,0)&\"\")","v":""},"",{"$f":"IF(B1247=\"\",\"\",IF(ISERROR(MATCH($J1247,SorP!$B$1:$B$5661,0)),\"\",INDIRECT(\"'SorP'!$A$\"&MATCH($J1247,SorP!$B$1:$B$5661,0))))","v":""},null,{"$f":"IF(C1247=\"\",NA(),MATCH($B1247&$C1247,'Smelter Look-up'!$J:$J,0))","v":{"$error":"#N/A"}},null,0,null,null,null,""]
[null,{"$f":"IF(LEN(A1248)=0,\"\",INDEX('Smelter Look-up'!$A:$A,MATCH($A1248,'Smelter Look-up'!$E:$E,0)))","v":""},{"$f":"IF(LEN(A1248)=0,\"\",INDEX('Smelter Look-up'!$C:$C,MATCH($A1248,'Smelter Look-up'!$E:$E,0)))","v":""},null,{"$f":"IF(ISERROR($V1248),\"\",OFFSET('Smelter Look-up'!$D$4,$V1248-4,0)&\"\")","v":""},{"$f":"IF(ISERROR($V1248),\"\",OFFSET('Smelter Look-up'!$E$4,$V1248-4,0))","v":""},{"$f":"IF(C1248=$X$4,\"Enter smelter details\",IF(ISERROR($V1248),\"\",OFFSET('Smelter Look-up'!$F$4,$V1248-4,0)))","v":""},{"$f":"IF(ISERROR($V1248),\"\",OFFSET('Smelter Look-up'!$G$4,$V1248-4,0))","v":""},{"$f":"IF(ISERROR($V1248),\"\",OFFSET('Smelter Look-up'!$H$4,$V1248-4,0))","v":""},{"$f":"IF(ISERROR($V1248),\"\",OFFSET('Smelter Look-up'!$I$4,$V1248-4,0))","v":""},{"$nulls":7},{"$f":"IF(ISERROR($V1248),\"\",OFFSET('Smelter Look-up'!$C$4,$V1248-4,0)&\"\")","v":""},"",{"$f":"IF(B1248=\"\",\"\",IF(ISERROR(MATCH($J1248,SorP!$B$1:$B$5661,0)),\"\",INDIRECT(\"'SorP'!$A$\"&MATCH($J1248,SorP!$B$1:$B$5661,0))))","v":""},null,{"$f":"IF(C1248=\"\",NA(),MATCH($B1248&$C1248,'Smelter Look-up'!$J:$J,0))","v":{"$error":"#N/A"}},null,0,null,null,null,""]
[null,{"$f":"IF(LEN(A1249)=0,\"\",INDEX('Smelter Look-up'!$A:$A,MATCH($A1249,'Smelter Look-up'!$E:$E,0)))","v":""},{"$f":"IF(LEN(A1249)=0,\"\",INDEX('Smelter Look-up'!$C:$C,MATCH($A1249,'Smelter Look-up'!$E:$E,0)))","v":""},null,{"$f":"IF(ISERROR($V1249),\"\",OFFSET('Smelter Look-up'!$D$4,$V1249-4,0)&\"\")","v":""},{"$f":"IF(ISERROR($V1249),\"\",OFFSET('Smelter Look-up'!$E$4,$V1249-4,0))","v":""},{"$f":"IF(C1249=$X$4,\"Enter smelter details\",IF(ISERROR($V1249),\"\",OFFSET('Smelter Look-up'!$F$4,$V1249-4,0)))","v":""},{"$f":"IF(ISERROR($V1249),\"\",OFFSET('Smelter Look-up'!$G$4,$V1249-4,0))","v":""},{"$f":"IF(ISERROR($V1249),\"\",OFFSET('Smelter Look-up'!$H$4,$V1249-4,0))","v":""},{"$f":"IF(ISERROR($V1249),\"\",OFFSET('Smelter Look-up'!$I$4,$V1249-4,0))","v":""},{"$nulls":7},{"$f":"IF(ISERROR($V1249),\"\",OFFSET('Smelter Look-up'!$C$4,$V1249-4,0)&\"\")","v":""},"",{"$f":"IF(B1249=\"\",\"\",IF(ISERROR(MATCH($J1249,SorP!$B$1:$B$5661,0)),\"\",INDIRECT(\"'SorP'!$A$\"&MATCH($J1249,SorP!$B$1:$B$5661,0))))","v":""},null,{"$f":"IF(C1249=\"\",NA(),MATCH($B1249&$C1249,'Smelter Look-up'!$J:$J,0))","v":{"$error":"#N/A"}},null,0,null,null,null,""]
[null,{"$f":"IF(LEN(A1250)=0,\"\",INDEX('Smelter Look-up'!$A:$A,MATCH($A1250,'Smelter Look-up'!$E:$E,0)))","v":""},{"$f":"IF(LEN(A1250)=0,\"\",INDEX('Smelter Look-up'!$C:$C,MATCH($A1250,'Smelter Look-up'!$E:$E,0)))","v":""},null,{"$f":"IF(ISERROR($V1250),\"\",OFFSET('Smelter Look-up'!$D$4,$V1250-4,0)&\"\")","v":""},{"$f":"IF(ISERROR($V1250),\"\",OFFSET('Smelter Look-up'!$E$4,$V1250-4,0))","v":""},{"$f":"IF(C1250=$X$4,\"Enter smelter details\",IF(ISERROR($V1250),\"\",OFFSET('Smelter Look-up'!$F$4,$V1250-4,0)))","v":""},{"$f":"IF(ISERROR($V1250),\"\",OFFSET('Smelter Look-up'!$G$4,$V1250-4,0))","v":""},{"$f":"IF(ISERROR($V1250),\"\",OFFSET('Smelter Look-up'!$H$4,$V1250-4,0))","v":""},{"$f":"IF(ISERROR($V1250),\"\",OFFSET('Smelter Look-up'!$I$4,$V1250-4,0))","v":""},{"$nulls":7},{"$f":"IF(ISERROR($V1250),\"\",OFFSET('Smelter Look-up'!$C$4,$V1250-4,0)&\"\")","v":""},"",{"$f":"IF(B1250=\"\",\"\",IF(ISERROR(MATCH($J1250,SorP!$B$1:$B$5661,0)),\"\",INDIRECT(\"'SorP'!$A$\"&MATCH($J1250,SorP!$B$1:$B$5661,0))))","v":""},null,{"$f":"IF(C1250=\"\",NA(),MATCH($B1250&$C1250,'Smelter Look-up'!$J:$J,0))","v":{"$error":"#N/A"}},null,0,null,null,null,""]
[null,{"$f":"IF(LEN(A1251)=0,\"\",INDEX('Smelter Look-up'!$A:$A,MATCH($A1251,'Smelter Look-up'!$E:$E,0)))","v":""},{"$f":"IF(LEN(A1251)=0,\"\",INDEX('Smelter Look-up'!$C:$C,MATCH($A1251,'Smelter Look-up'!$E:$E,0)))","v":""},null,{"$f":"IF(ISERROR($V1251),\"\",OFFSET('Smelter Look-up'!$D$4,$V1251-4,0)&\"\")","v":""},{"$f":"IF(ISERROR($V1251),\"\",OFFSET('Smelter Look-up'!$E$4,$V1251-4,0))","v":""},{"$f":"IF(C1251=$X$4,\"Enter smelter details\",IF(ISERROR($V1251),\"\",OFFSET('Smelter Look-up'!$F$4,$V1251-4,0)))","v":""},{"$f":"IF(ISERROR($V1251),\"\",OFFSET('Smelter Look-up'!$G$4,$V1251-4,0))","v":""},{"$f":"IF(ISERROR($V1251),\"\",OFFSET('Smelter Look-up'!$H$4,$V1251-4,0))","v":""},{"$f":"IF(ISERROR($V1251),\"\",OFFSET('Smelter Look-up'!$I$4,$V1251-4,0))","v":""},{"$nulls":7},{"$f":"IF(ISERROR($V1251),\"\",OFFSET('Smelter Look-up'!$C$4,$V1251-4,0)&\"\")","v":""},"",{"$f":"IF(B1251=\"\",\"\",IF(ISERROR(MATCH($J1251,SorP!$B$1:$B$5661,0)),\"\",INDIRECT(\"'SorP'!$A$\"&MATCH($J1251,SorP!$B$1:$B$5661,0))))","v":""},null,{"$f":"IF(C1251=\"\",NA(),MATCH($B1251&$C1251,'Smelter Look-up'!$J:$J,0))","v":{"$error":"#N/A"}},null,0,null,null,null,""]
[null,{"$f":"IF(LEN(A1252)=0,\"\",INDEX('Smelter Look-up'!$A:$A,MATCH($A1252,'Smelter Look-up'!$E:$E,0)))","v":""},{"$f":"IF(LEN(A1252)=0,\"\",INDEX('Smelter Look-up'!$C:$C,MATCH($A1252,'Smelter Look-up'!$E:$E,0)))","v":""},null,{"$f":"IF(ISERROR($V1252),\"\",OFFSET('Smelter Look-up'!$D$4,$V1252-4,0)&\"\")","v":""},{"$f":"IF(ISERROR($V1252),\"\",OFFSET('Smelter Look-up'!$E$4,$V1252-4,0))","v":""},{"$f":"IF(C1252=$X$4,\"Enter smelter details\",IF(ISERROR($V1252),\"\",OFFSET('Smelter Look-up'!$F$4,$V1252-4,0)))","v":""},{"$f":"IF(ISERROR($V1252),\"\",OFFSET('Smelter Look-up'!$G$4,$V1252-4,0))","v":""},{"$f":"IF(ISERROR($V1252),\"\",OFFSET('Smelter Look-up'!$H$4,$V1252-4,0))","v":""},{"$f":"IF(ISERROR($V1252),\"\",OFFSET('Smelter Look-up'!$I$4,$V1252-4,0))","v":""},{"$nulls":7},{"$f":"IF(ISERROR($V1252),\"\",OFFSET('Smelter Look-up'!$C$4,$V1252-4,0)&\"\")","v":""},"",{"$f":"IF(B1252=\"\",\"\",IF(ISERROR(MATCH($J1252,SorP!$B$1:$B$5661,0)),\"\",INDIRECT(\"'SorP'!$A$\"&MATCH($J1252,SorP!$B$1:$B$5661,0))))","v":""},null,{"$f":"IF(C1252=\"\",NA(),MATCH($B1252&$C1252,'Smelter Look-up'!$J:$J,0))","v":{"$error":"#N/A"}},null,0,null,null,null,""]
[null,{"$f":"IF(LEN(A1253)=0,\"\",INDEX('Smelter Look-up'!$A:$A,MATCH($A1253,'Smelter Look-up'!$E:$E,0)))","v":""},{"$f":"IF(LEN(A1253)=0,\"\",INDEX('Smelter Look-up'!$C:$C,MATCH($A1253,'Smelter Look-up'!$E:$E,0)))","v":""},null,{"$f":"IF(ISERROR($V1253),\"\",OFFSET('Smelter Look-up'!$D$4,$V1253-4,0)&\"\")","v":""},{"$f":"IF(ISERROR($V1253),\"\",OFFSET('Smelter Look-up'!$E$4,$V1253-4,0))","v":""},{"$f":"IF(C1253=$X$4,\"Enter smelter details\",IF(ISERROR($V1253),\"\",OFFSET('Smelter Look-up'!$F$4,$V1253-4,0)))","v":""},{"$f":"IF(ISERROR($V1253),\"\",OFFSET('Smelter Look-up'!$G$4,$V1253-4,0))","v":""},{"$f":"IF(ISERROR($V1253),\"\",OFFSET('Smelter Look-up'!$H$4,$V1253-4,0))","v":""},{"$f":"IF(ISERROR($V1253),\"\",OFFSET('Smelter Look-up'!$I$4,$V1253-4,0))","v":""},{"$nulls":7},{"$f":"IF(ISERROR($V1253),\"\",OFFSET('Smelter Look-up'!$C$4,$V1253-4,0)&\"\")","v":""},"",{"$f":"IF(B1253=\"\",\"\",IF(ISERROR(MATCH($J1253,SorP!$B$1:$B$5661,0)),\"\",INDIRECT(\"'SorP'!$A$\"&MATCH($J1253,SorP!$B$1:$B$5661,0))))","v":""},null,{"$f":"IF(C1253=\"\",NA(),MATCH($B1253&$C1253,'Smelter Look-up'!$J:$J,0))","v":{"$error":"#N/A"}},null,0,null,null,null,""]
[null,{"$f":"IF(LEN(A1254)=0,\"\",INDEX('Smelter Look-up'!$A:$A,MATCH($A1254,'Smelter Look-up'!$E:$E,0)))","v":""},{"$f":"IF(LEN(A1254)=0,\"\",INDEX('Smelter Look-up'!$C:$C,MATCH($A1254,'Smelter Look-up'!$E:$E,0)))","v":""},null,{"$f":"IF(ISERROR($V1254),\"\",OFFSET('Smelter Look-up'!$D$4,$V1254-4,0)&\"\")","v":""},{"$f":"IF(ISERROR($V1254),\"\",OFFSET('Smelter Look-up'!$E$4,$V1254-4,0))","v":""},{"$f":"IF(C1254=$X$4,\"Enter smelter details\",IF(ISERROR($V1254),\"\",OFFSET('Smelter Look-up'!$F$4,$V1254-4,0)))","v":""},{"$f":"IF(ISERROR($V1254),\"\",OFFSET('Smelter Look-up'!$G$4,$V1254-4,0))","v":""},{"$f":"IF(ISERROR($V1254),\"\",OFFSET('Smelter Look-up'!$H$4,$V1254-4,0))","v":""},{"$f":"IF(ISERROR($V1254),\"\",OFFSET('Smelter Look-up'!$I$4,$V1254-4,0))","v":""},{"$nulls":7},{"$f":"IF(ISERROR($V1254),\"\",OFFSET('Smelter Look-up'!$C$4,$V1254-4,0)&\"\")","v":""},"",{"$f":"IF(B1254=\"\",\"\",IF(ISERROR(MATCH($J1254,SorP!$B$1:$B$5661,0)),\"\",INDIRECT(\"'SorP'!$A$\"&MATCH($J1254,SorP!$B$1:$B$5661,0))))","v":""},null,{"$f":"IF(C1254=\"\",NA(),MATCH($B1254&$C1254,'Smelter Look-up'!$J:$J,0))","v":{"$error":"#N/A"}},null,0,null,null,null,""]
[null,{"$f":"IF(LEN(A1255)=0,\"\",INDEX('Smelter Look-up'!$A:$A,MATCH($A1255,'Smelter Look-up'!$E:$E,0)))","v":""},{"$f":"IF(LEN(A1255)=0,\"\",INDEX('Smelter Look-up'!$C:$C,MATCH($A1255,'Smelter Look-up'!$E:$E,0)))","v":""},null,{"$f":"IF(ISERROR($V1255),\"\",OFFSET('Smelter Look-up'!$D$4,$V1255-4,0)&\"\")","v":""},{"$f":"IF(ISERROR($V1255),\"\",OFFSET('Smelter Look-up'!$E$4,$V1255-4,0))","v":""},{"$f":"IF(C1255=$X$4,\"Enter smelter details\",IF(ISERROR($V1255),\"\",OFFSET('Smelter Look-up'!$F$4,$V1255-4,0)))","v":""},{"$f":"IF(ISERROR($V1255),\"\",OFFSET('Smelter Look-up'!$G$4,$V1255-4,0))","v":""},{"$f":"IF(ISERROR($V1255),\"\",OFFSET('Smelter Look-up'!$H$4,$V1255-4,0))","v":""},{"$f":"IF(ISERROR($V1255),\"\",OFFSET('Smelter Look-up'!$I$4,$V1255-4,0))","v":""},{"$nulls":7},{"$f":"IF(ISERROR($V1255),\"\",OFFSET('Smelter Look-up'!$C$4,$V1255-4,0)&\"\")","v":""},"",{"$f":"IF(B1255=\"\",\"\",IF(ISERROR(MATCH($J1255,SorP!$B$1:$B$5661,0)),\"\",INDIRECT(\"'SorP'!$A$\"&MATCH($J1255,SorP!$B$1:$B$5661,0))))","v":""},null,{"$f":"IF(C1255=\"\",NA(),MATCH($B1255&$C1255,'Smelter Look-up'!$J:$J,0))","v":{"$error":"#N/A"}},null,0,null,null,null,""]
[null,{"$f":"IF(LEN(A1256)=0,\"\",INDEX('Smelter Look-up'!$A:$A,MATCH($A1256,'Smelter Look-up'!$E:$E,0)))","v":""},{"$f":"IF(LEN(A1256)=0,\"\",INDEX('Smelter Look-up'!$C:$C,MATCH($A1256,'Smelter Look-up'!$E:$E,0)))","v":""},null,{"$f":"IF(ISERROR($V1256),\"\",OFFSET('Smelter Look-up'!$D$4,$V1256-4,0)&\"\")","v":""},{"$f":"IF(ISERROR($V1256),\"\",OFFSET('Smelter Look-up'!$E$4,$V1256-4,0))","v":""},{"$f":"IF(C1256=$X$4,\"Enter smelter details\",IF(ISERROR($V1256),\"\",OFFSET('Smelter Look-up'!$F$4,$V1256-4,0)))","v":""},{"$f":"IF(ISERROR($V1256),\"\",OFFSET('Smelter Look-up'!$G$4,$V1256-4,0))","v":""},{"$f":"IF(ISERROR($V1256),\"\",OFFSET('Smelter Look-up'!$H$4,$V1256-4,0))","v":""},{"$f":"IF(ISERROR($V1256),\"\",OFFSET('Smelter Look-up'!$I$4,$V1256-4,0))","v":""},{"$nulls":7},{"$f":"IF(ISERROR($V1256),\"\",OFFSET('Smelter Look-up'!$C$4,$V1256-4,0)&\"\")","v":""},"",{"$f":"IF(B1256=\"\",\"\",IF(ISERROR(MATCH($J1256,SorP!$B$1:$B$5661,0)),\"\",INDIRECT(\"'SorP'!$A$\"&MATCH($J1256,SorP!$B$1:$B$5661,0))))","v":""},null,{"$f":"IF(C1256=\"\",NA(),MATCH($B1256&$C1256,'Smelter Look-up'!$J:$J,0))","v":{"$error":"#N/A"}},null,0,null,null,null,""]
[null,{"$f":"IF(LEN(A1257)=0,\"\",INDEX('Smelter Look-up'!$A:$A,MATCH($A1257,'Smelter Look-up'!$E:$E,0)))","v":""},{"$f":"IF(LEN(A1257)=0,\"\",INDEX('Smelter Look-up'!$C:$C,MATCH($A1257,'Smelter Look-up'!$E:$E,0)))","v":""},null,{"$f":"IF(ISERROR($V1257),\"\",OFFSET('Smelter Look-up'!$D$4,$V1257-4,0)&\"\")","v":""},{"$f":"IF(ISERROR($V1257),\"\",OFFSET('Smelter Look-up'!$E$4,$V1257-4,0))","v":""},{"$f":"IF(C1257=$X$4,\"Enter smelter details\",IF(ISERROR($V1257),\"\",OFFSET('Smelter Look-up'!$F$4,$V1257-4,0)))","v":""},{"$f":"IF(ISERROR($V1257),\"\",OFFSET('Smelter Look-up'!$G$4,$V1257-4,0))","v":""},{"$f":"IF(ISERROR($V1257),\"\",OFFSET('Smelter Look-up'!$H$4,$V1257-4,0))","v":""},{"$f":"IF(ISERROR($V1257),\"\",OFFSET('Smelter Look-up'!$I$4,$V1257-4,0))","v":""},{"$nulls":7},{"$f":"IF(ISERROR($V1257),\"\",OFFSET('Smelter Look-up'!$C$4,$V1257-4,0)&\"\")","v":""},"",{"$f":"IF(B1257=\"\",\"\",IF(ISERROR(MATCH($J1257,SorP!$B$1:$B$5661,0)),\"\",INDIRECT(\"'SorP'!$A$\"&MATCH($J1257,SorP!$B$1:$B$5661,0))))","v":""},null,{"$f":"IF(C1257=\"\",NA(),MATCH($B1257&$C1257,'Smelter Look-up'!$J:$J,0))","v":{"$error":"#N/A"}},null,0,null,null,null,""]
[null,{"$f":"IF(LEN(A1258)=0,\"\",INDEX('Smelter Look-up'!$A:$A,MATCH($A1258,'Smelter Look-up'!$E:$E,0)))","v":""},{"$f":"IF(LEN(A1258)=0,\"\",INDEX('Smelter Look-up'!$C:$C,MATCH($A1258,'Smelter Look-up'!$E:$E,0)))","v":""},null,{"$f":"IF(ISERROR($V1258),\"\",OFFSET('Smelter Look-up'!$D$4,$V1258-4,0)&\"\")","v":""},{"$f":"IF(ISERROR($V1258),\"\",OFFSET('Smelter Look-up'!$E$4,$V1258-4,0))","v":""},{"$f":"IF(C1258=$X$4,\"Enter smelter details\",IF(ISERROR($V1258),\"\",OFFSET('Smelter Look-up'!$F$4,$V1258-4,0)))","v":""},{"$f":"IF(ISERROR($V1258),\"\",OFFSET('Smelter Look-up'!$G$4,$V1258-4,0))","v":""},{"$f":"IF(ISERROR($V1258),\"\",OFFSET('Smelter Look-up'!$H$4,$V1258-4,0))","v":""},{"$f":"IF(ISERROR($V1258),\"\",OFFSET('Smelter Look-up'!$I$4,$V1258-4,0))","v":""},{"$nulls":7},{"$f":"IF(ISERROR($V1258),\"\",OFFSET('Smelter Look-up'!$C$4,$V1258-4,0)&\"\")","v":""},"",{"$f":"IF(B1258=\"\",\"\",IF(ISERROR(MATCH($J1258,SorP!$B$1:$B$5661,0)),\"\",INDIRECT(\"'SorP'!$A$\"&MATCH($J1258,SorP!$B$1:$B$5661,0))))","v":""},null,{"$f":"IF(C1258=\"\",NA(),MATCH($B1258&$C1258,'Smelter Look-up'!$J:$J,0))","v":{"$error":"#N/A"}},null,0,null,null,null,""]
[null,{"$f":"IF(LEN(A1259)=0,\"\",INDEX('Smelter Look-up'!$A:$A,MATCH($A1259,'Smelter Look-up'!$E:$E,0)))","v":""},{"$f":"IF(LEN(A1259)=0,\"\",INDEX('Smelter Look-up'!$C:$C,MATCH($A1259,'Smelter Look-up'!$E:$E,0)))","v":""},null,{"$f":"IF(ISERROR($V1259),\"\",OFFSET('Smelter Look-up'!$D$4,$V1259-4,0)&\"\")","v":""},{"$f":"IF(ISERROR($V1259),\"\",OFFSET('Smelter Look-up'!$E$4,$V1259-4,0))","v":""},{"$f":"IF(C1259=$X$4,\"Enter smelter details\",IF(ISERROR($V1259),\"\",OFFSET('Smelter Look-up'!$F$4,$V1259-4,0)))","v":""},{"$f":"IF(ISERROR($V1259),\"\",OFFSET('Smelter Look-up'!$G$4,$V1259-4,0))","v":""},{"$f":"IF(ISERROR($V1259),\"\",OFFSET('Smelter Look-up'!$H$4,$V1259-4,0))","v":""},{"$f":"IF(ISERROR($V1259),\"\",OFFSET('Smelter Look-up'!$I$4,$V1259-4,0))","v":""},{"$nulls":7},{"$f":"IF(ISERROR($V1259),\"\",OFFSET('Smelter Look-up'!$C$4,$V1259-4,0)&\"\")","v":""},"",{"$f":"IF(B1259=\"\",\"\",IF(ISERROR(MATCH($J1259,SorP!$B$1:$B$5661,0)),\"\",INDIRECT(\"'SorP'!$A$\"&MATCH($J1259,SorP!$B$1:$B$5661,0))))","v":""},null,{"$f":"IF(C1259=\"\",NA(),MATCH($B1259&$C1259,'Smelter Look-up'!$J:$J,0))","v":{"$error":"#N/A"}},null,0,null,null,null,""]
[null,{"$f":"IF(LEN(A1260)=0,\"\",INDEX('Smelter Look-up'!$A:$A,MATCH($A1260,'Smelter Look-up'!$E:$E,0)))","v":""},{"$f":"IF(LEN(A1260)=0,\"\",INDEX('Smelter Look-up'!$C:$C,MATCH($A1260,'Smelter Look-up'!$E:$E,0)))","v":""},null,{"$f":"IF(ISERROR($V1260),\"\",OFFSET('Smelter Look-up'!$D$4,$V1260-4,0)&\"\")","v":""},{"$f":"IF(ISERROR($V1260),\"\",OFFSET('Smelter Look-up'!$E$4,$V1260-4,0))","v":""},{"$f":"IF(C1260=$X$4,\"Enter smelter details\",IF(ISERROR($V1260),\"\",OFFSET('Smelter Look-up'!$F$4,$V1260-4,0)))","v":""},{"$f":"IF(ISERROR($V1260),\"\",OFFSET('Smelter Look-up'!$G$4,$V1260-4,0))","v":""},{"$f":"IF(ISERROR($V1260),\"\",OFFSET('Smelter Look-up'!$H$4,$V1260-4,0))","v":""},{"$f":"IF(ISERROR($V1260),\"\",OFFSET('Smelter Look-up'!$I$4,$V1260-4,0))","v":""},{"$nulls":7},{"$f":"IF(ISERROR($V1260),\"\",OFFSET('Smelter Look-up'!$C$4,$V1260-4,0)&\"\")","v":""},"",{"$f":"IF(B1260=\"\",\"\",IF(ISERROR(MATCH($J1260,SorP!$B$1:$B$5661,0)),\"\",INDIRECT(\"'SorP'!$A$\"&MATCH($J1260,SorP!$B$1:$B$5661,0))))","v":""},null,{"$f":"IF(C1260=\"\",NA(),MATCH($B1260&$C1260,'Smelter Look-up'!$J:$J,0))","v":{"$error":"#N/A"}},null,0,null,null,null,""]
[null,{"$f":"IF(LEN(A1261)=0,\"\",INDEX('Smelter Look-up'!$A:$A,MATCH($A1261,'Smelter Look-up'!$E:$E,0)))","v":""},{"$f":"IF(LEN(A1261)=0,\"\",INDEX('Smelter Look-up'!$C:$C,MATCH($A1261,'Smelter Look-up'!$E:$E,0)))","v":""},null,{"$f":"IF(ISERROR($V1261),\"\",OFFSET('Smelter Look-up'!$D$4,$V1261-4,0)&\"\")","v":""},{"$f":"IF(ISERROR($V1261),\"\",OFFSET('Smelter Look-up'!$E$4,$V1261-4,0))","v":""},{"$f":"IF(C1261=$X$4,\"Enter smelter details\",IF(ISERROR($V1261),\"\",OFFSET('Smelter Look-up'!$F$4,$V1261-4,0)))","v":""},{"$f":"IF(ISERROR($V1261),\"\",OFFSET('Smelter Look-up'!$G$4,$V1261-4,0))","v":""},{"$f":"IF(ISERROR($V1261),\"\",OFFSET('Smelter Look-up'!$H$4,$V1261-4,0))","v":""},{"$f":"IF(ISERROR($V1261),\"\",OFFSET('Smelter Look-up'!$I$4,$V1261-4,0))","v":""},{"$nulls":7},{"$f":"IF(ISERROR($V1261),\"\",OFFSET('Smelter Look-up'!$C$4,$V1261-4,0)&\"\")","v":""},"",{"$f":"IF(B1261=\"\",\"\",IF(ISERROR(MATCH($J1261,SorP!$B$1:$B$5661,0)),\"\",INDIRECT(\"'SorP'!$A$\"&MATCH($J1261,SorP!$B$1:$B$5661,0))))","v":""},null,{"$f":"IF(C1261=\"\",NA(),MATCH($B1261&$C1261,'Smelter Look-up'!$J:$J,0))","v":{"$error":"#N/A"}},null,0,null,null,null,""]
[null,{"$f":"IF(LEN(A1262)=0,\"\",INDEX('Smelter Look-up'!$A:$A,MATCH($A1262,'Smelter Look-up'!$E:$E,0)))","v":""},{"$f":"IF(LEN(A1262)=0,\"\",INDEX('Smelter Look-up'!$C:$C,MATCH($A1262,'Smelter Look-up'!$E:$E,0)))","v":""},null,{"$f":"IF(ISERROR($V1262),\"\",OFFSET('Smelter Look-up'!$D$4,$V1262-4,0)&\"\")","v":""},{"$f":"IF(ISERROR($V1262),\"\",OFFSET('Smelter Look-up'!$E$4,$V1262-4,0))","v":""},{"$f":"IF(C1262=$X$4,\"Enter smelter details\",IF(ISERROR($V1262),\"\",OFFSET('Smelter Look-up'!$F$4,$V1262-4,0)))","v":""},{"$f":"IF(ISERROR($V1262),\"\",OFFSET('Smelter Look-up'!$G$4,$V1262-4,0))","v":""},{"$f":"IF(ISERROR($V1262),\"\",OFFSET('Smelter Look-up'!$H$4,$V1262-4,0))","v":""},{"$f":"IF(ISERROR($V1262),\"\",OFFSET('Smelter Look-up'!$I$4,$V1262-4,0))","v":""},{"$nulls":7},{"$f":"IF(ISERROR($V1262),\"\",OFFSET('Smelter Look-up'!$C$4,$V1262-4,0)&\"\")","v":""},"",{"$f":"IF(B1262=\"\",\"\",IF(ISERROR(MATCH($J1262,SorP!$B$1:$B$5661,0)),\"\",INDIRECT(\"'SorP'!$A$\"&MATCH($J1262,SorP!$B$1:$B$5661,0))))","v":""},null,{"$f":"IF(C1262=\"\",NA(),MATCH($B1262&$C1262,'Smelter Look-up'!$J:$J,0))","v":{"$error":"#N/A"}},null,0,null,null,null,""]
[null,{"$f":"IF(LEN(A1263)=0,\"\",INDEX('Smelter Look-up'!$A:$A,MATCH($A1263,'Smelter Look-up'!$E:$E,0)))","v":""},{"$f":"IF(LEN(A1263)=0,\"\",INDEX('Smelter Look-up'!$C:$C,MATCH($A1263,'Smelter Look-up'!$E:$E,0)))","v":""},null,{"$f":"IF(ISERROR($V1263),\"\",OFFSET('Smelter Look-up'!$D$4,$V1263-4,0)&\"\")","v":""},{"$f":"IF(ISERROR($V1263),\"\",OFFSET('Smelter Look-up'!$E$4,$V1263-4,0))","v":""},{"$f":"IF(C1263=$X$4,\"Enter smelter details\",IF(ISERROR($V1263),\"\",OFFSET('Smelter Look-up'!$F$4,$V1263-4,0)))","v":""},{"$f":"IF(ISERROR($V1263),\"\",OFFSET('Smelter Look-up'!$G$4,$V1263-4,0))","v":""},{"$f":"IF(ISERROR($V1263),\"\",OFFSET('Smelter Look-up'!$H$4,$V1263-4,0))","v":""},{"$f":"IF(ISERROR($V1263),\"\",OFFSET('Smelter Look-up'!$I$4,$V1263-4,0))","v":""},{"$nulls":7},{"$f":"IF(ISERROR($V1263),\"\",OFFSET('Smelter Look-up'!$C$4,$V1263-4,0)&\"\")","v":""},"",{"$f":"IF(B1263=\"\",\"\",IF(ISERROR(MATCH($J1263,SorP!$B$1:$B$5661,0)),\"\",INDIRECT(\"'SorP'!$A$\"&MATCH($J1263,SorP!$B$1:$B$5661,0))))","v":""},null,{"$f":"IF(C1263=\"\",NA(),MATCH($B1263&$C1263,'Smelter Look-up'!$J:$J,0))","v":{"$error":"#N/A"}},null,0,null,null,null,""]
[null,{"$f":"IF(LEN(A1264)=0,\"\",INDEX('Smelter Look-up'!$A:$A,MATCH($A1264,'Smelter Look-up'!$E:$E,0)))","v":""},{"$f":"IF(LEN(A1264)=0,\"\",INDEX('Smelter Look-up'!$C:$C,MATCH($A1264,'Smelter Look-up'!$E:$E,0)))","v":""},null,{"$f":"IF(ISERROR($V1264),\"\",OFFSET('Smelter Look-up'!$D$4,$V1264-4,0)&\"\")","v":""},{"$f":"IF(ISERROR($V1264),\"\",OFFSET('Smelter Look-up'!$E$4,$V1264-4,0))","v":""},{"$f":"IF(C1264=$X$4,\"Enter smelter details\",IF(ISERROR($V1264),\"\",OFFSET('Smelter Look-up'!$F$4,$V1264-4,0)))","v":""},{"$f":"IF(ISERROR($V1264),\"\",OFFSET('Smelter Look-up'!$G$4,$V1264-4,0))","v":""},{"$f":"IF(ISERROR($V1264),\"\",OFFSET('Smelter Look-up'!$H$4,$V1264-4,0))","v":""},{"$f":"IF(ISERROR($V1264),\"\",OFFSET('Smelter Look-up'!$I$4,$V1264-4,0))","v":""},{"$nulls":7},{"$f":"IF(ISERROR($V1264),\"\",OFFSET('Smelter Look-up'!$C$4,$V1264-4,0)&\"\")","v":""},"",{"$f":"IF(B1264=\"\",\"\",IF(ISERROR(MATCH($J1264,SorP!$B$1:$B$5661,0)),\"\",INDIRECT(\"'SorP'!$A$\"&MATCH($J1264,SorP!$B$1:$B$5661,0))))","v":""},null,{"$f":"IF(C1264=\"\",NA(),MATCH($B1264&$C1264,'Smelter Look-up'!$J:$J,0))","v":{"$error":"#N/A"}},null,0,null,null,null,""]
[null,{"$f":"IF(LEN(A1265)=0,\"\",INDEX('Smelter Look-up'!$A:$A,MATCH($A1265,'Smelter Look-up'!$E:$E,0)))","v":""},{"$f":"IF(LEN(A1265)=0,\"\",INDEX('Smelter Look-up'!$C:$C,MATCH($A1265,'Smelter Look-up'!$E:$E,0)))","v":""},null,{"$f":"IF(ISERROR($V1265),\"\",OFFSET('Smelter Look-up'!$D$4,$V1265-4,0)&\"\")","v":""},{"$f":"IF(ISERROR($V1265),\"\",OFFSET('Smelter Look-up'!$E$4,$V1265-4,0))","v":""},{"$f":"IF(C1265=$X$4,\"Enter smelter details\",IF(ISERROR($V1265),\"\",OFFSET('Smelter Look-up'!$F$4,$V1265-4,0)))","v":""},{"$f":"IF(ISERROR($V1265),\"\",OFFSET('Smelter Look-up'!$G$4,$V1265-4,0))","v":""},{"$f":"IF(ISERROR($V1265),\"\",OFFSET('Smelter Look-up'!$H$4,$V1265-4,0))","v":""},{"$f":"IF(ISERROR($V1265),\"\",OFFSET('Smelter Look-up'!$I$4,$V1265-4,0))","v":""},{"$nulls":7},{"$f":"IF(ISERROR($V1265),\"\",OFFSET('Smelter Look-up'!$C$4,$V1265-4,0)&\"\")","v":""},"",{"$f":"IF(B1265=\"\",\"\",IF(ISERROR(MATCH($J1265,SorP!$B$1:$B$5661,0)),\"\",INDIRECT(\"'SorP'!$A$\"&MATCH($J1265,SorP!$B$1:$B$5661,0))))","v":""},null,{"$f":"IF(C1265=\"\",NA(),MATCH($B1265&$C1265,'Smelter Look-up'!$J:$J,0))","v":{"$error":"#N/A"}},null,0,null,null,null,""]
[null,{"$f":"IF(LEN(A1266)=0,\"\",INDEX('Smelter Look-up'!$A:$A,MATCH($A1266,'Smelter Look-up'!$E:$E,0)))","v":""},{"$f":"IF(LEN(A1266)=0,\"\",INDEX('Smelter Look-up'!$C:$C,MATCH($A1266,'Smelter Look-up'!$E:$E,0)))","v":""},null,{"$f":"IF(ISERROR($V1266),\"\",OFFSET('Smelter Look-up'!$D$4,$V1266-4,0)&\"\")","v":""},{"$f":"IF(ISERROR($V1266),\"\",OFFSET('Smelter Look-up'!$E$4,$V1266-4,0))","v":""},{"$f":"IF(C1266=$X$4,\"Enter smelter details\",IF(ISERROR($V1266),\"\",OFFSET('Smelter Look-up'!$F$4,$V1266-4,0)))","v":""},{"$f":"IF(ISERROR($V1266),\"\",OFFSET('Smelter Look-up'!$G$4,$V1266-4,0))","v":""},{"$f":"IF(ISERROR($V1266),\"\",OFFSET('Smelter Look-up'!$H$4,$V1266-4,0))","v":""},{"$f":"IF(ISERROR($V1266),\"\",OFFSET('Smelter Look-up'!$I$4,$V1266-4,0))","v":""},{"$nulls":7},{"$f":"IF(ISERROR($V1266),\"\",OFFSET('Smelter Look-up'!$C$4,$V1266-4,0)&\"\")","v":""},"",{"$f":"IF(B1266=\"\",\"\",IF(ISERROR(MATCH($J1266,SorP!$B$1:$B$5661,0)),\"\",INDIRECT(\"'SorP'!$A$\"&MATCH($J1266,SorP!$B$1:$B$5661,0))))","v":""},null,{"$f":"IF(C1266=\"\",NA(),MATCH($B1266&$C1266,'Smelter Look-up'!$J:$J,0))","v":{"$error":"#N/A"}},null,0,null,null,null,""]
[null,{"$f":"IF(LEN(A1267)=0,\"\",INDEX('Smelter Look-up'!$A:$A,MATCH($A1267,'Smelter Look-up'!$E:$E,0)))","v":""},{"$f":"IF(LEN(A1267)=0,\"\",INDEX('Smelter Look-up'!$C:$C,MATCH($A1267,'Smelter Look-up'!$E:$E,0)))","v":""},null,{"$f":"IF(ISERROR($V1267),\"\",OFFSET('Smelter Look-up'!$D$4,$V1267-4,0)&\"\")","v":""},{"$f":"IF(ISERROR($V1267),\"\",OFFSET('Smelter Look-up'!$E$4,$V1267-4,0))","v":""},{"$f":"IF(C1267=$X$4,\"Enter smelter details\",IF(ISERROR($V1267),\"\",OFFSET('Smelter Look-up'!$F$4,$V1267-4,0)))","v":""},{"$f":"IF(ISERROR($V1267),\"\",OFFSET('Smelter Look-up'!$G$4,$V1267-4,0))","v":""},{"$f":"IF(ISERROR($V1267),\"\",OFFSET('Smelter Look-up'!$H$4,$V1267-4,0))","v":""},{"$f":"IF(ISERROR($V1267),\"\",OFFSET('Smelter Look-up'!$I$4,$V1267-4,0))","v":""},{"$nulls":7},{"$f":"IF(ISERROR($V1267),\"\",OFFSET('Smelter Look-up'!$C$4,$V1267-4,0)&\"\")","v":""},"",{"$f":"IF(B1267=\"\",\"\",IF(ISERROR(MATCH($J1267,SorP!$B$1:$B$5661,0)),\"\",INDIRECT(\"'SorP'!$A$\"&MATCH($J1267,SorP!$B$1:$B$5661,0))))","v":""},null,{"$f":"IF(C1267=\"\",NA(),MATCH($B1267&$C1267,'Smelter Look-up'!$J:$J,0))","v":{"$error":"#N/A"}},null,0,null,null,null,""]
[null,{"$f":"IF(LEN(A1268)=0,\"\",INDEX('Smelter Look-up'!$A:$A,MATCH($A1268,'Smelter Look-up'!$E:$E,0)))","v":""},{"$f":"IF(LEN(A1268)=0,\"\",INDEX('Smelter Look-up'!$C:$C,MATCH($A1268,'Smelter Look-up'!$E:$E,0)))","v":""},null,{"$f":"IF(ISERROR($V1268),\"\",OFFSET('Smelter Look-up'!$D$4,$V1268-4,0)&\"\")","v":""},{"$f":"IF(ISERROR($V1268),\"\",OFFSET('Smelter Look-up'!$E$4,$V1268-4,0))","v":""},{"$f":"IF(C1268=$X$4,\"Enter smelter details\",IF(ISERROR($V1268),\"\",OFFSET('Smelter Look-up'!$F$4,$V1268-4,0)))","v":""},{"$f":"IF(ISERROR($V1268),\"\",OFFSET('Smelter Look-up'!$G$4,$V1268-4,0))","v":""},{"$f":"IF(ISERROR($V1268),\"\",OFFSET('Smelter Look-up'!$H$4,$V1268-4,0))","v":""},{"$f":"IF(ISERROR($V1268),\"\",OFFSET('Smelter Look-up'!$I$4,$V1268-4,0))","v":""},{"$nulls":7},{"$f":"IF(ISERROR($V1268),\"\",OFFSET('Smelter Look-up'!$C$4,$V1268-4,0)&\"\")","v":""},"",{"$f":"IF(B1268=\"\",\"\",IF(ISERROR(MATCH($J1268,SorP!$B$1:$B$5661,0)),\"\",INDIRECT(\"'SorP'!$A$\"&MATCH($J1268,SorP!$B$1:$B$5661,0))))","v":""},null,{"$f":"IF(C1268=\"\",NA(),MATCH($B1268&$C1268,'Smelter Look-up'!$J:$J,0))","v":{"$error":"#N/A"}},null,0,null,null,null,""]
[null,{"$f":"IF(LEN(A1269)=0,\"\",INDEX('Smelter Look-up'!$A:$A,MATCH($A1269,'Smelter Look-up'!$E:$E,0)))","v":""},{"$f":"IF(LEN(A1269)=0,\"\",INDEX('Smelter Look-up'!$C:$C,MATCH($A1269,'Smelter Look-up'!$E:$E,0)))","v":""},null,{"$f":"IF(ISERROR($V1269),\"\",OFFSET('Smelter Look-up'!$D$4,$V1269-4,0)&\"\")","v":""},{"$f":"IF(ISERROR($V1269),\"\",OFFSET('Smelter Look-up'!$E$4,$V1269-4,0))","v":""},{"$f":"IF(C1269=$X$4,\"Enter smelter details\",IF(ISERROR($V1269),\"\",OFFSET('Smelter Look-up'!$F$4,$V1269-4,0)))","v":""},{"$f":"IF(ISERROR($V1269),\"\",OFFSET('Smelter Look-up'!$G$4,$V1269-4,0))","v":""},{"$f":"IF(ISERROR($V1269),\"\",OFFSET('Smelter Look-up'!$H$4,$V1269-4,0))","v":""},{"$f":"IF(ISERROR($V1269),\"\",OFFSET('Smelter Look-up'!$I$4,$V1269-4,0))","v":""},{"$nulls":7},{"$f":"IF(ISERROR($V1269),\"\",OFFSET('Smelter Look-up'!$C$4,$V1269-4,0)&\"\")","v":""},"",{"$f":"IF(B1269=\"\",\"\",IF(ISERROR(MATCH($J1269,SorP!$B$1:$B$5661,0)),\"\",INDIRECT(\"'SorP'!$A$\"&MATCH($J1269,SorP!$B$1:$B$5661,0))))","v":""},null,{"$f":"IF(C1269=\"\",NA(),MATCH($B1269&$C1269,'Smelter Look-up'!$J:$J,0))","v":{"$error":"#N/A"}},null,0,null,null,null,""]
[null,{"$f":"IF(LEN(A1270)=0,\"\",INDEX('Smelter Look-up'!$A:$A,MATCH($A1270,'Smelter Look-up'!$E:$E,0)))","v":""},{"$f":"IF(LEN(A1270)=0,\"\",INDEX('Smelter Look-up'!$C:$C,MATCH($A1270,'Smelter Look-up'!$E:$E,0)))","v":""},null,{"$f":"IF(ISERROR($V1270),\"\",OFFSET('Smelter Look-up'!$D$4,$V1270-4,0)&\"\")","v":""},{"$f":"IF(ISERROR($V1270),\"\",OFFSET('Smelter Look-up'!$E$4,$V1270-4,0))","v":""},{"$f":"IF(C1270=$X$4,\"Enter smelter details\",IF(ISERROR($V1270),\"\",OFFSET('Smelter Look-up'!$F$4,$V1270-4,0)))","v":""},{"$f":"IF(ISERROR($V1270),\"\",OFFSET('Smelter Look-up'!$G$4,$V1270-4,0))","v":""},{"$f":"IF(ISERROR($V1270),\"\",OFFSET('Smelter Look-up'!$H$4,$V1270-4,0))","v":""},{"$f":"IF(ISERROR($V1270),\"\",OFFSET('Smelter Look-up'!$I$4,$V1270-4,0))","v":""},{"$nulls":7},{"$f":"IF(ISERROR($V1270),\"\",OFFSET('Smelter Look-up'!$C$4,$V1270-4,0)&\"\")","v":""},"",{"$f":"IF(B1270=\"\",\"\",IF(ISERROR(MATCH($J1270,SorP!$B$1:$B$5661,0)),\"\",INDIRECT(\"'SorP'!$A$\"&MATCH($J1270,SorP!$B$1:$B$5661,0))))","v":""},null,{"$f":"IF(C1270=\"\",NA(),MATCH($B1270&$C1270,'Smelter Look-up'!$J:$J,0))","v":{"$error":"#N/A"}},null,0,null,null,null,""]
[null,{"$f":"IF(LEN(A1271)=0,\"\",INDEX('Smelter Look-up'!$A:$A,MATCH($A1271,'Smelter Look-up'!$E:$E,0)))","v":""},{"$f":"IF(LEN(A1271)=0,\"\",INDEX('Smelter Look-up'!$C:$C,MATCH($A1271,'Smelter Look-up'!$E:$E,0)))","v":""},null,{"$f":"IF(ISERROR($V1271),\"\",OFFSET('Smelter Look-up'!$D$4,$V1271-4,0)&\"\")","v":""},{"$f":"IF(ISERROR($V1271),\"\",OFFSET('Smelter Look-up'!$E$4,$V1271-4,0))","v":""},{"$f":"IF(C1271=$X$4,\"Enter smelter details\",IF(ISERROR($V1271),\"\",OFFSET('Smelter Look-up'!$F$4,$V1271-4,0)))","v":""},{"$f":"IF(ISERROR($V1271),\"\",OFFSET('Smelter Look-up'!$G$4,$V1271-4,0))","v":""},{"$f":"IF(ISERROR($V1271),\"\",OFFSET('Smelter Look-up'!$H$4,$V1271-4,0))","v":""},{"$f":"IF(ISERROR($V1271),\"\",OFFSET('Smelter Look-up'!$I$4,$V1271-4,0))","v":""},{"$nulls":7},{"$f":"IF(ISERROR($V1271),\"\",OFFSET('Smelter Look-up'!$C$4,$V1271-4,0)&\"\")","v":""},"",{"$f":"IF(B1271=\"\",\"\",IF(ISERROR(MATCH($J1271,SorP!$B$1:$B$5661,0)),\"\",INDIRECT(\"'SorP'!$A$\"&MATCH($J1271,SorP!$B$1:$B$5661,0))))","v":""},null,{"$f":"IF(C1271=\"\",NA(),MATCH($B1271&$C1271,'Smelter Look-up'!$J:$J,0))","v":{"$error":"#N/A"}},null,0,null,null,null,""]
[null,{"$f":"IF(LEN(A1272)=0,\"\",INDEX('Smelter Look-up'!$A:$A,MATCH($A1272,'Smelter Look-up'!$E:$E,0)))","v":""},{"$f":"IF(LEN(A1272)=0,\"\",INDEX('Smelter Look-up'!$C:$C,MATCH($A1272,'Smelter Look-up'!$E:$E,0)))","v":""},null,{"$f":"IF(ISERROR($V1272),\"\",OFFSET('Smelter Look-up'!$D$4,$V1272-4,0)&\"\")","v":""},{"$f":"IF(ISERROR($V1272),\"\",OFFSET('Smelter Look-up'!$E$4,$V1272-4,0))","v":""},{"$f":"IF(C1272=$X$4,\"Enter smelter details\",IF(ISERROR($V1272),\"\",OFFSET('Smelter Look-up'!$F$4,$V1272-4,0)))","v":""},{"$f":"IF(ISERROR($V1272),\"\",OFFSET('Smelter Look-up'!$G$4,$V1272-4,0))","v":""},{"$f":"IF(ISERROR($V1272),\"\",OFFSET('Smelter Look-up'!$H$4,$V1272-4,0))","v":""},{"$f":"IF(ISERROR($V1272),\"\",OFFSET('Smelter Look-up'!$I$4,$V1272-4,0))","v":""},{"$nulls":7},{"$f":"IF(ISERROR($V1272),\"\",OFFSET('Smelter Look-up'!$C$4,$V1272-4,0)&\"\")","v":""},"",{"$f":"IF(B1272=\"\",\"\",IF(ISERROR(MATCH($J1272,SorP!$B$1:$B$5661,0)),\"\",INDIRECT(\"'SorP'!$A$\"&MATCH($J1272,SorP!$B$1:$B$5661,0))))","v":""},null,{"$f":"IF(C1272=\"\",NA(),MATCH($B1272&$C1272,'Smelter Look-up'!$J:$J,0))","v":{"$error":"#N/A"}},null,0,null,null,null,""]
[null,{"$f":"IF(LEN(A1273)=0,\"\",INDEX('Smelter Look-up'!$A:$A,MATCH($A1273,'Smelter Look-up'!$E:$E,0)))","v":""},{"$f":"IF(LEN(A1273)=0,\"\",INDEX('Smelter Look-up'!$C:$C,MATCH($A1273,'Smelter Look-up'!$E:$E,0)))","v":""},null,{"$f":"IF(ISERROR($V1273),\"\",OFFSET('Smelter Look-up'!$D$4,$V1273-4,0)&\"\")","v":""},{"$f":"IF(ISERROR($V1273),\"\",OFFSET('Smelter Look-up'!$E$4,$V1273-4,0))","v":""},{"$f":"IF(C1273=$X$4,\"Enter smelter details\",IF(ISERROR($V1273),\"\",OFFSET('Smelter Look-up'!$F$4,$V1273-4,0)))","v":""},{"$f":"IF(ISERROR($V1273),\"\",OFFSET('Smelter Look-up'!$G$4,$V1273-4,0))","v":""},{"$f":"IF(ISERROR($V1273),\"\",OFFSET('Smelter Look-up'!$H$4,$V1273-4,0))","v":""},{"$f":"IF(ISERROR($V1273),\"\",OFFSET('Smelter Look-up'!$I$4,$V1273-4,0))","v":""},{"$nulls":7},{"$f":"IF(ISERROR($V1273),\"\",OFFSET('Smelter Look-up'!$C$4,$V1273-4,0)&\"\")","v":""},"",{"$f":"IF(B1273=\"\",\"\",IF(ISERROR(MATCH($J1273,SorP!$B$1:$B$5661,0)),\"\",INDIRECT(\"'SorP'!$A$\"&MATCH($J1273,SorP!$B$1:$B$5661,0))))","v":""},null,{"$f":"IF(C1273=\"\",NA(),MATCH($B1273&$C1273,'Smelter Look-up'!$J:$J,0))","v":{"$error":"#N/A"}},null,0,null,null,null,""]
[null,{"$f":"IF(LEN(A1274)=0,\"\",INDEX('Smelter Look-up'!$A:$A,MATCH($A1274,'Smelter Look-up'!$E:$E,0)))","v":""},{"$f":"IF(LEN(A1274)=0,\"\",INDEX('Smelter Look-up'!$C:$C,MATCH($A1274,'Smelter Look-up'!$E:$E,0)))","v":""},null,{"$f":"IF(ISERROR($V1274),\"\",OFFSET('Smelter Look-up'!$D$4,$V1274-4,0)&\"\")","v":""},{"$f":"IF(ISERROR($V1274),\"\",OFFSET('Smelter Look-up'!$E$4,$V1274-4,0))","v":""},{"$f":"IF(C1274=$X$4,\"Enter smelter details\",IF(ISERROR($V1274),\"\",OFFSET('Smelter Look-up'!$F$4,$V1274-4,0)))","v":""},{"$f":"IF(ISERROR($V1274),\"\",OFFSET('Smelter Look-up'!$G$4,$V1274-4,0))","v":""},{"$f":"IF(ISERROR($V1274),\"\",OFFSET('Smelter Look-up'!$H$4,$V1274-4,0))","v":""},{"$f":"IF(ISERROR($V1274),\"\",OFFSET('Smelter Look-up'!$I$4,$V1274-4,0))","v":""},{"$nulls":7},{"$f":"IF(ISERROR($V1274),\"\",OFFSET('Smelter Look-up'!$C$4,$V1274-4,0)&\"\")","v":""},"",{"$f":"IF(B1274=\"\",\"\",IF(ISERROR(MATCH($J1274,SorP!$B$1:$B$5661,0)),\"\",INDIRECT(\"'SorP'!$A$\"&MATCH($J1274,SorP!$B$1:$B$5661,0))))","v":""},null,{"$f":"IF(C1274=\"\",NA(),MATCH($B1274&$C1274,'Smelter Look-up'!$J:$J,0))","v":{"$error":"#N/A"}},null,0,null,null,null,""]
[null,{"$f":"IF(LEN(A1275)=0,\"\",INDEX('Smelter Look-up'!$A:$A,MATCH($A1275,'Smelter Look-up'!$E:$E,0)))","v":""},{"$f":"IF(LEN(A1275)=0,\"\",INDEX('Smelter Look-up'!$C:$C,MATCH($A1275,'Smelter Look-up'!$E:$E,0)))","v":""},null,{"$f":"IF(ISERROR($V1275),\"\",OFFSET('Smelter Look-up'!$D$4,$V1275-4,0)&\"\")","v":""},{"$f":"IF(ISERROR($V1275),\"\",OFFSET('Smelter Look-up'!$E$4,$V1275-4,0))","v":""},{"$f":"IF(C1275=$X$4,\"Enter smelter details\",IF(ISERROR($V1275),\"\",OFFSET('Smelter Look-up'!$F$4,$V1275-4,0)))","v":""},{"$f":"IF(ISERROR($V1275),\"\",OFFSET('Smelter Look-up'!$G$4,$V1275-4,0))","v":""},{"$f":"IF(ISERROR($V1275),\"\",OFFSET('Smelter Look-up'!$H$4,$V1275-4,0))","v":""},{"$f":"IF(ISERROR($V1275),\"\",OFFSET('Smelter Look-up'!$I$4,$V1275-4,0))","v":""},{"$nulls":7},{"$f":"IF(ISERROR($V1275),\"\",OFFSET('Smelter Look-up'!$C$4,$V1275-4,0)&\"\")","v":""},"",{"$f":"IF(B1275=\"\",\"\",IF(ISERROR(MATCH($J1275,SorP!$B$1:$B$5661,0)),\"\",INDIRECT(\"'SorP'!$A$\"&MATCH($J1275,SorP!$B$1:$B$5661,0))))","v":""},null,{"$f":"IF(C1275=\"\",NA(),MATCH($B1275&$C1275,'Smelter Look-up'!$J:$J,0))","v":{"$error":"#N/A"}},null,0,null,null,null,""]
[null,{"$f":"IF(LEN(A1276)=0,\"\",INDEX('Smelter Look-up'!$A:$A,MATCH($A1276,'Smelter Look-up'!$E:$E,0)))","v":""},{"$f":"IF(LEN(A1276)=0,\"\",INDEX('Smelter Look-up'!$C:$C,MATCH($A1276,'Smelter Look-up'!$E:$E,0)))","v":""},null,{"$f":"IF(ISERROR($V1276),\"\",OFFSET('Smelter Look-up'!$D$4,$V1276-4,0)&\"\")","v":""},{"$f":"IF(ISERROR($V1276),\"\",OFFSET('Smelter Look-up'!$E$4,$V1276-4,0))","v":""},{"$f":"IF(C1276=$X$4,\"Enter smelter details\",IF(ISERROR($V1276),\"\",OFFSET('Smelter Look-up'!$F$4,$V1276-4,0)))","v":""},{"$f":"IF(ISERROR($V1276),\"\",OFFSET('Smelter Look-up'!$G$4,$V1276-4,0))","v":""},{"$f":"IF(ISERROR($V1276),\"\",OFFSET('Smelter Look-up'!$H$4,$V1276-4,0))","v":""},{"$f":"IF(ISERROR($V1276),\"\",OFFSET('Smelter Look-up'!$I$4,$V1276-4,0))","v":""},{"$nulls":7},{"$f":"IF(ISERROR($V1276),\"\",OFFSET('Smelter Look-up'!$C$4,$V1276-4,0)&\"\")","v":""},"",{"$f":"IF(B1276=\"\",\"\",IF(ISERROR(MATCH($J1276,SorP!$B$1:$B$5661,0)),\"\",INDIRECT(\"'SorP'!$A$\"&MATCH($J1276,SorP!$B$1:$B$5661,0))))","v":""},null,{"$f":"IF(C1276=\"\",NA(),MATCH($B1276&$C1276,'Smelter Look-up'!$J:$J,0))","v":{"$error":"#N/A"}},null,0,null,null,null,""]
[null,{"$f":"IF(LEN(A1277)=0,\"\",INDEX('Smelter Look-up'!$A:$A,MATCH($A1277,'Smelter Look-up'!$E:$E,0)))","v":""},{"$f":"IF(LEN(A1277)=0,\"\",INDEX('Smelter Look-up'!$C:$C,MATCH($A1277,'Smelter Look-up'!$E:$E,0)))","v":""},null,{"$f":"IF(ISERROR($V1277),\"\",OFFSET('Smelter Look-up'!$D$4,$V1277-4,0)&\"\")","v":""},{"$f":"IF(ISERROR($V1277),\"\",OFFSET('Smelter Look-up'!$E$4,$V1277-4,0))","v":""},{"$f":"IF(C1277=$X$4,\"Enter smelter details\",IF(ISERROR($V1277),\"\",OFFSET('Smelter Look-up'!$F$4,$V1277-4,0)))","v":""},{"$f":"IF(ISERROR($V1277),\"\",OFFSET('Smelter Look-up'!$G$4,$V1277-4,0))","v":""},{"$f":"IF(ISERROR($V1277),\"\",OFFSET('Smelter Look-up'!$H$4,$V1277-4,0))","v":""},{"$f":"IF(ISERROR($V1277),\"\",OFFSET('Smelter Look-up'!$I$4,$V1277-4,0))","v":""},{"$nulls":7},{"$f":"IF(ISERROR($V1277),\"\",OFFSET('Smelter Look-up'!$C$4,$V1277-4,0)&\"\")","v":""},"",{"$f":"IF(B1277=\"\",\"\",IF(ISERROR(MATCH($J1277,SorP!$B$1:$B$5661,0)),\"\",INDIRECT(\"'SorP'!$A$\"&MATCH($J1277,SorP!$B$1:$B$5661,0))))","v":""},null,{"$f":"IF(C1277=\"\",NA(),MATCH($B1277&$C1277,'Smelter Look-up'!$J:$J,0))","v":{"$error":"#N/A"}},null,0,null,null,null,""]
[null,{"$f":"IF(LEN(A1278)=0,\"\",INDEX('Smelter Look-up'!$A:$A,MATCH($A1278,'Smelter Look-up'!$E:$E,0)))","v":""},{"$f":"IF(LEN(A1278)=0,\"\",INDEX('Smelter Look-up'!$C:$C,MATCH($A1278,'Smelter Look-up'!$E:$E,0)))","v":""},null,{"$f":"IF(ISERROR($V1278),\"\",OFFSET('Smelter Look-up'!$D$4,$V1278-4,0)&\"\")","v":""},{"$f":"IF(ISERROR($V1278),\"\",OFFSET('Smelter Look-up'!$E$4,$V1278-4,0))","v":""},{"$f":"IF(C1278=$X$4,\"Enter smelter details\",IF(ISERROR($V1278),\"\",OFFSET('Smelter Look-up'!$F$4,$V1278-4,0)))","v":""},{"$f":"IF(ISERROR($V1278),\"\",OFFSET('Smelter Look-up'!$G$4,$V1278-4,0))","v":""},{"$f":"IF(ISERROR($V1278),\"\",OFFSET('Smelter Look-up'!$H$4,$V1278-4,0))","v":""},{"$f":"IF(ISERROR($V1278),\"\",OFFSET('Smelter Look-up'!$I$4,$V1278-4,0))","v":""},{"$nulls":7},{"$f":"IF(ISERROR($V1278),\"\",OFFSET('Smelter Look-up'!$C$4,$V1278-4,0)&\"\")","v":""},"",{"$f":"IF(B1278=\"\",\"\",IF(ISERROR(MATCH($J1278,SorP!$B$1:$B$5661,0)),\"\",INDIRECT(\"'SorP'!$A$\"&MATCH($J1278,SorP!$B$1:$B$5661,0))))","v":""},null,{"$f":"IF(C1278=\"\",NA(),MATCH($B1278&$C1278,'Smelter Look-up'!$J:$J,0))","v":{"$error":"#N/A"}},null,0,null,null,null,""]
[null,{"$f":"IF(LEN(A1279)=0,\"\",INDEX('Smelter Look-up'!$A:$A,MATCH($A1279,'Smelter Look-up'!$E:$E,0)))","v":""},{"$f":"IF(LEN(A1279)=0,\"\",INDEX('Smelter Look-up'!$C:$C,MATCH($A1279,'Smelter Look-up'!$E:$E,0)))","v":""},null,{"$f":"IF(ISERROR($V1279),\"\",OFFSET('Smelter Look-up'!$D$4,$V1279-4,0)&\"\")","v":""},{"$f":"IF(ISERROR($V1279),\"\",OFFSET('Smelter Look-up'!$E$4,$V1279-4,0))","v":""},{"$f":"IF(C1279=$X$4,\"Enter smelter details\",IF(ISERROR($V1279),\"\",OFFSET('Smelter Look-up'!$F$4,$V1279-4,0)))","v":""},{"$f":"IF(ISERROR($V1279),\"\",OFFSET('Smelter Look-up'!$G$4,$V1279-4,0))","v":""},{"$f":"IF(ISERROR($V1279),\"\",OFFSET('Smelter Look-up'!$H$4,$V1279-4,0))","v":""},{"$f":"IF(ISERROR($V1279),\"\",OFFSET('Smelter Look-up'!$I$4,$V1279-4,0))","v":""},{"$nulls":7},{"$f":"IF(ISERROR($V1279),\"\",OFFSET('Smelter Look-up'!$C$4,$V1279-4,0)&\"\")","v":""},"",{"$f":"IF(B1279=\"\",\"\",IF(ISERROR(MATCH($J1279,SorP!$B$1:$B$5661,0)),\"\",INDIRECT(\"'SorP'!$A$\"&MATCH($J1279,SorP!$B$1:$B$5661,0))))","v":""},null,{"$f":"IF(C1279=\"\",NA(),MATCH($B1279&$C1279,'Smelter Look-up'!$J:$J,0))","v":{"$error":"#N/A"}},null,{"$f":"IF(AND(C1279=\"Smelter not listed\",OR(LEN(D1279)=0,LEN(E1279)=0)),1,0)","v":0},null,null,null,{"$f":"B1279&C1279","v":""}]
[null,{"$f":"IF(LEN(A1280)=0,\"\",INDEX('Smelter Look-up'!$A:$A,MATCH($A1280,'Smelter Look-up'!$E:$E,0)))","v":""},{"$f":"IF(LEN(A1280)=0,\"\",INDEX('Smelter Look-up'!$C:$C,MATCH($A1280,'Smelter Look-up'!$E:$E,0)))","v":""},null,{"$f":"IF(ISERROR($V1280),\"\",OFFSET('Smelter Look-up'!$D$4,$V1280-4,0)&\"\")","v":""},{"$f":"IF(ISERROR($V1280),\"\",OFFSET('Smelter Look-up'!$E$4,$V1280-4,0))","v":""},{"$f":"IF(C1280=$X$4,\"Enter smelter details\",IF(ISERROR($V1280),\"\",OFFSET('Smelter Look-up'!$F$4,$V1280-4,0)))","v":""},{"$f":"IF(ISERROR($V1280),\"\",OFFSET('Smelter Look-up'!$G$4,$V1280-4,0))","v":""},{"$f":"IF(ISERROR($V1280),\"\",OFFSET('Smelter Look-up'!$H$4,$V1280-4,0))","v":""},{"$f":"IF(ISERROR($V1280),\"\",OFFSET('Smelter Look-up'!$I$4,$V1280-4,0))","v":""},{"$nulls":7},{"$f":"IF(ISERROR($V1280),\"\",OFFSET('Smelter Look-up'!$C$4,$V1280-4,0)&\"\")","v":""},{"$f":"IF(B1280=\"\",\"\",IF(ISERROR(MATCH($E1280,CL,0)),\"Unknown\",INDIRECT(\"'C'!$A$\"&MATCH($E1280,CL,0)+1)))","v":""},{"$f":"IF(B1280=\"\",\"\",IF(ISERROR(MATCH($J1280,SorP!$B$1:$B$5661,0)),\"\",INDIRECT(\"'SorP'!$A$\"&MATCH($J1280,SorP!$B$1:$B$5661,0))))","v":""},null,{"$f":"IF(C1280=\"\",NA(),MATCH($B1280&$C1280,'Smelter Look-up'!$J:$J,0))","v":{"$error":"#N/A"}},null,0,null,null,null,""]
[null,{"$f":"IF(LEN(A1281)=0,\"\",INDEX('Smelter Look-up'!$A:$A,MATCH($A1281,'Smelter Look-up'!$E:$E,0)))","v":""},{"$f":"IF(LEN(A1281)=0,\"\",INDEX('Smelter Look-up'!$C:$C,MATCH($A1281,'Smelter Look-up'!$E:$E,0)))","v":""},null,{"$f":"IF(ISERROR($V1281),\"\",OFFSET('Smelter Look-up'!$D$4,$V1281-4,0)&\"\")","v":""},{"$f":"IF(ISERROR($V1281),\"\",OFFSET('Smelter Look-up'!$E$4,$V1281-4,0))","v":""},{"$f":"IF(C1281=$X$4,\"Enter smelter details\",IF(ISERROR($V1281),\"\",OFFSET('Smelter Look-up'!$F$4,$V1281-4,0)))","v":""},{"$f":"IF(ISERROR($V1281),\"\",OFFSET('Smelter Look-up'!$G$4,$V1281-4,0))","v":""},{"$f":"IF(ISERROR($V1281),\"\",OFFSET('Smelter Look-up'!$H$4,$V1281-4,0))","v":""},{"$f":"IF(ISERROR($V1281),\"\",OFFSET('Smelter Look-up'!$I$4,$V1281-4,0))","v":""},{"$nulls":7},{"$f":"IF(ISERROR($V1281),\"\",OFFSET('Smelter Look-up'!$C$4,$V1281-4,0)&\"\")","v":""},"",{"$f":"IF(B1281=\"\",\"\",IF(ISERROR(MATCH($J1281,SorP!$B$1:$B$5661,0)),\"\",INDIRECT(\"'SorP'!$A$\"&MATCH($J1281,SorP!$B$1:$B$5661,0))))","v":""},null,{"$f":"IF(C1281=\"\",NA(),MATCH($B1281&$C1281,'Smelter Look-up'!$J:$J,0))","v":{"$error":"#N/A"}},null,0,null,null,null,""]
[null,{"$f":"IF(LEN(A1282)=0,\"\",INDEX('Smelter Look-up'!$A:$A,MATCH($A1282,'Smelter Look-up'!$E:$E,0)))","v":""},{"$f":"IF(LEN(A1282)=0,\"\",INDEX('Smelter Look-up'!$C:$C,MATCH($A1282,'Smelter Look-up'!$E:$E,0)))","v":""},null,{"$f":"IF(ISERROR($V1282),\"\",OFFSET('Smelter Look-up'!$D$4,$V1282-4,0)&\"\")","v":""},{"$f":"IF(ISERROR($V1282),\"\",OFFSET('Smelter Look-up'!$E$4,$V1282-4,0))","v":""},{"$f":"IF(C1282=$X$4,\"Enter smelter details\",IF(ISERROR($V1282),\"\",OFFSET('Smelter Look-up'!$F$4,$V1282-4,0)))","v":""},{"$f":"IF(ISERROR($V1282),\"\",OFFSET('Smelter Look-up'!$G$4,$V1282-4,0))","v":""},{"$f":"IF(ISERROR($V1282),\"\",OFFSET('Smelter Look-up'!$H$4,$V1282-4,0))","v":""},{"$f":"IF(ISERROR($V1282),\"\",OFFSET('Smelter Look-up'!$I$4,$V1282-4,0))","v":""},{"$nulls":7},{"$f":"IF(ISERROR($V1282),\"\",OFFSET('Smelter Look-up'!$C$4,$V1282-4,0)&\"\")","v":""},"",{"$f":"IF(B1282=\"\",\"\",IF(ISERROR(MATCH($J1282,SorP!$B$1:$B$5661,0)),\"\",INDIRECT(\"'SorP'!$A$\"&MATCH($J1282,SorP!$B$1:$B$5661,0))))","v":""},null,{"$f":"IF(C1282=\"\",NA(),MATCH($B1282&$C1282,'Smelter Look-up'!$J:$J,0))","v":{"$error":"#N/A"}},null,0,null,null,null,""]
[null,{"$f":"IF(LEN(A1283)=0,\"\",INDEX('Smelter Look-up'!$A:$A,MATCH($A1283,'Smelter Look-up'!$E:$E,0)))","v":""},{"$f":"IF(LEN(A1283)=0,\"\",INDEX('Smelter Look-up'!$C:$C,MATCH($A1283,'Smelter Look-up'!$E:$E,0)))","v":""},null,{"$f":"IF(ISERROR($V1283),\"\",OFFSET('Smelter Look-up'!$D$4,$V1283-4,0)&\"\")","v":""},{"$f":"IF(ISERROR($V1283),\"\",OFFSET('Smelter Look-up'!$E$4,$V1283-4,0))","v":""},{"$f":"IF(C1283=$X$4,\"Enter smelter details\",IF(ISERROR($V1283),\"\",OFFSET('Smelter Look-up'!$F$4,$V1283-4,0)))","v":""},{"$f":"IF(ISERROR($V1283),\"\",OFFSET('Smelter Look-up'!$G$4,$V1283-4,0))","v":""},{"$f":"IF(ISERROR($V1283),\"\",OFFSET('Smelter Look-up'!$H$4,$V1283-4,0))","v":""},{"$f":"IF(ISERROR($V1283),\"\",OFFSET('Smelter Look-up'!$I$4,$V1283-4,0))","v":""},{"$nulls":7},{"$f":"IF(ISERROR($V1283),\"\",OFFSET('Smelter Look-up'!$C$4,$V1283-4,0)&\"\")","v":""},"",{"$f":"IF(B1283=\"\",\"\",IF(ISERROR(MATCH($J1283,SorP!$B$1:$B$5661,0)),\"\",INDIRECT(\"'SorP'!$A$\"&MATCH($J1283,SorP!$B$1:$B$5661,0))))","v":""},null,{"$f":"IF(C1283=\"\",NA(),MATCH($B1283&$C1283,'Smelter Look-up'!$J:$J,0))","v":{"$error":"#N/A"}},null,0,null,null,null,""]
[null,{"$f":"IF(LEN(A1284)=0,\"\",INDEX('Smelter Look-up'!$A:$A,MATCH($A1284,'Smelter Look-up'!$E:$E,0)))","v":""},{"$f":"IF(LEN(A1284)=0,\"\",INDEX('Smelter Look-up'!$C:$C,MATCH($A1284,'Smelter Look-up'!$E:$E,0)))","v":""},null,{"$f":"IF(ISERROR($V1284),\"\",OFFSET('Smelter Look-up'!$D$4,$V1284-4,0)&\"\")","v":""},{"$f":"IF(ISERROR($V1284),\"\",OFFSET('Smelter Look-up'!$E$4,$V1284-4,0))","v":""},{"$f":"IF(C1284=$X$4,\"Enter smelter details\",IF(ISERROR($V1284),\"\",OFFSET('Smelter Look-up'!$F$4,$V1284-4,0)))","v":""},{"$f":"IF(ISERROR($V1284),\"\",OFFSET('Smelter Look-up'!$G$4,$V1284-4,0))","v":""},{"$f":"IF(ISERROR($V1284),\"\",OFFSET('Smelter Look-up'!$H$4,$V1284-4,0))","v":""},{"$f":"IF(ISERROR($V1284),\"\",OFFSET('Smelter Look-up'!$I$4,$V1284-4,0))","v":""},{"$nulls":7},{"$f":"IF(ISERROR($V1284),\"\",OFFSET('Smelter Look-up'!$C$4,$V1284-4,0)&\"\")","v":""},"",{"$f":"IF(B1284=\"\",\"\",IF(ISERROR(MATCH($J1284,SorP!$B$1:$B$5661,0)),\"\",INDIRECT(\"'SorP'!$A$\"&MATCH($J1284,SorP!$B$1:$B$5661,0))))","v":""},null,{"$f":"IF(C1284=\"\",NA(),MATCH($B1284&$C1284,'Smelter Look-up'!$J:$J,0))","v":{"$error":"#N/A"}},null,0,null,null,null,""]
[null,{"$f":"IF(LEN(A1285)=0,\"\",INDEX('Smelter Look-up'!$A:$A,MATCH($A1285,'Smelter Look-up'!$E:$E,0)))","v":""},{"$f":"IF(LEN(A1285)=0,\"\",INDEX('Smelter Look-up'!$C:$C,MATCH($A1285,'Smelter Look-up'!$E:$E,0)))","v":""},null,{"$f":"IF(ISERROR($V1285),\"\",OFFSET('Smelter Look-up'!$D$4,$V1285-4,0)&\"\")","v":""},{"$f":"IF(ISERROR($V1285),\"\",OFFSET('Smelter Look-up'!$E$4,$V1285-4,0))","v":""},{"$f":"IF(C1285=$X$4,\"Enter smelter details\",IF(ISERROR($V1285),\"\",OFFSET('Smelter Look-up'!$F$4,$V1285-4,0)))","v":""},{"$f":"IF(ISERROR($V1285),\"\",OFFSET('Smelter Look-up'!$G$4,$V1285-4,0))","v":""},{"$f":"IF(ISERROR($V1285),\"\",OFFSET('Smelter Look-up'!$H$4,$V1285-4,0))","v":""},{"$f":"IF(ISERROR($V1285),\"\",OFFSET('Smelter Look-up'!$I$4,$V1285-4,0))","v":""},{"$nulls":7},{"$f":"IF(ISERROR($V1285),\"\",OFFSET('Smelter Look-up'!$C$4,$V1285-4,0)&\"\")","v":""},"",{"$f":"IF(B1285=\"\",\"\",IF(ISERROR(MATCH($J1285,SorP!$B$1:$B$5661,0)),\"\",INDIRECT(\"'SorP'!$A$\"&MATCH($J1285,SorP!$B$1:$B$5661,0))))","v":""},null,{"$f":"IF(C1285=\"\",NA(),MATCH($B1285&$C1285,'Smelter Look-up'!$J:$J,0))","v":{"$error":"#N/A"}},null,0,null,null,null,""]
[null,{"$f":"IF(LEN(A1286)=0,\"\",INDEX('Smelter Look-up'!$A:$A,MATCH($A1286,'Smelter Look-up'!$E:$E,0)))","v":""},{"$f":"IF(LEN(A1286)=0,\"\",INDEX('Smelter Look-up'!$C:$C,MATCH($A1286,'Smelter Look-up'!$E:$E,0)))","v":""},null,{"$f":"IF(ISERROR($V1286),\"\",OFFSET('Smelter Look-up'!$D$4,$V1286-4,0)&\"\")","v":""},{"$f":"IF(ISERROR($V1286),\"\",OFFSET('Smelter Look-up'!$E$4,$V1286-4,0))","v":""},{"$f":"IF(C1286=$X$4,\"Enter smelter details\",IF(ISERROR($V1286),\"\",OFFSET('Smelter Look-up'!$F$4,$V1286-4,0)))","v":""},{"$f":"IF(ISERROR($V1286),\"\",OFFSET('Smelter Look-up'!$G$4,$V1286-4,0))","v":""},{"$f":"IF(ISERROR($V1286),\"\",OFFSET('Smelter Look-up'!$H$4,$V1286-4,0))","v":""},{"$f":"IF(ISERROR($V1286),\"\",OFFSET('Smelter Look-up'!$I$4,$V1286-4,0))","v":""},{"$nulls":7},{"$f":"IF(ISERROR($V1286),\"\",OFFSET('Smelter Look-up'!$C$4,$V1286-4,0)&\"\")","v":""},"",{"$f":"IF(B1286=\"\",\"\",IF(ISERROR(MATCH($J1286,SorP!$B$1:$B$5661,0)),\"\",INDIRECT(\"'SorP'!$A$\"&MATCH($J1286,SorP!$B$1:$B$5661,0))))","v":""},null,{"$f":"IF(C1286=\"\",NA(),MATCH($B1286&$C1286,'Smelter Look-up'!$J:$J,0))","v":{"$error":"#N/A"}},null,0,null,null,null,""]
[null,{"$f":"IF(LEN(A1287)=0,\"\",INDEX('Smelter Look-up'!$A:$A,MATCH($A1287,'Smelter Look-up'!$E:$E,0)))","v":""},{"$f":"IF(LEN(A1287)=0,\"\",INDEX('Smelter Look-up'!$C:$C,MATCH($A1287,'Smelter Look-up'!$E:$E,0)))","v":""},null,{"$f":"IF(ISERROR($V1287),\"\",OFFSET('Smelter Look-up'!$D$4,$V1287-4,0)&\"\")","v":""},{"$f":"IF(ISERROR($V1287),\"\",OFFSET('Smelter Look-up'!$E$4,$V1287-4,0))","v":""},{"$f":"IF(C1287=$X$4,\"Enter smelter details\",IF(ISERROR($V1287),\"\",OFFSET('Smelter Look-up'!$F$4,$V1287-4,0)))","v":""},{"$f":"IF(ISERROR($V1287),\"\",OFFSET('Smelter Look-up'!$G$4,$V1287-4,0))","v":""},{"$f":"IF(ISERROR($V1287),\"\",OFFSET('Smelter Look-up'!$H$4,$V1287-4,0))","v":""},{"$f":"IF(ISERROR($V1287),\"\",OFFSET('Smelter Look-up'!$I$4,$V1287-4,0))","v":""},{"$nulls":7},{"$f":"IF(ISERROR($V1287),\"\",OFFSET('Smelter Look-up'!$C$4,$V1287-4,0)&\"\")","v":""},"",{"$f":"IF(B1287=\"\",\"\",IF(ISERROR(MATCH($J1287,SorP!$B$1:$B$5661,0)),\"\",INDIRECT(\"'SorP'!$A$\"&MATCH($J1287,SorP!$B$1:$B$5661,0))))","v":""},null,{"$f":"IF(C1287=\"\",NA(),MATCH($B1287&$C1287,'Smelter Look-up'!$J:$J,0))","v":{"$error":"#N/A"}},null,0,null,null,null,""]
[null,{"$f":"IF(LEN(A1288)=0,\"\",INDEX('Smelter Look-up'!$A:$A,MATCH($A1288,'Smelter Look-up'!$E:$E,0)))","v":""},{"$f":"IF(LEN(A1288)=0,\"\",INDEX('Smelter Look-up'!$C:$C,MATCH($A1288,'Smelter Look-up'!$E:$E,0)))","v":""},null,{"$f":"IF(ISERROR($V1288),\"\",OFFSET('Smelter Look-up'!$D$4,$V1288-4,0)&\"\")","v":""},{"$f":"IF(ISERROR($V1288),\"\",OFFSET('Smelter Look-up'!$E$4,$V1288-4,0))","v":""},{"$f":"IF(C1288=$X$4,\"Enter smelter details\",IF(ISERROR($V1288),\"\",OFFSET('Smelter Look-up'!$F$4,$V1288-4,0)))","v":""},{"$f":"IF(ISERROR($V1288),\"\",OFFSET('Smelter Look-up'!$G$4,$V1288-4,0))","v":""},{"$f":"IF(ISERROR($V1288),\"\",OFFSET('Smelter Look-up'!$H$4,$V1288-4,0))","v":""},{"$f":"IF(ISERROR($V1288),\"\",OFFSET('Smelter Look-up'!$I$4,$V1288-4,0))","v":""},{"$nulls":7},{"$f":"IF(ISERROR($V1288),\"\",OFFSET('Smelter Look-up'!$C$4,$V1288-4,0)&\"\")","v":""},"",{"$f":"IF(B1288=\"\",\"\",IF(ISERROR(MATCH($J1288,SorP!$B$1:$B$5661,0)),\"\",INDIRECT(\"'SorP'!$A$\"&MATCH($J1288,SorP!$B$1:$B$5661,0))))","v":""},null,{"$f":"IF(C1288=\"\",NA(),MATCH($B1288&$C1288,'Smelter Look-up'!$J:$J,0))","v":{"$error":"#N/A"}},null,0,null,null,null,""]
[null,{"$f":"IF(LEN(A1289)=0,\"\",INDEX('Smelter Look-up'!$A:$A,MATCH($A1289,'Smelter Look-up'!$E:$E,0)))","v":""},{"$f":"IF(LEN(A1289)=0,\"\",INDEX('Smelter Look-up'!$C:$C,MATCH($A1289,'Smelter Look-up'!$E:$E,0)))","v":""},null,{"$f":"IF(ISERROR($V1289),\"\",OFFSET('Smelter Look-up'!$D$4,$V1289-4,0)&\"\")","v":""},{"$f":"IF(ISERROR($V1289),\"\",OFFSET('Smelter Look-up'!$E$4,$V1289-4,0))","v":""},{"$f":"IF(C1289=$X$4,\"Enter smelter details\",IF(ISERROR($V1289),\"\",OFFSET('Smelter Look-up'!$F$4,$V1289-4,0)))","v":""},{"$f":"IF(ISERROR($V1289),\"\",OFFSET('Smelter Look-up'!$G$4,$V1289-4,0))","v":""},{"$f":"IF(ISERROR($V1289),\"\",OFFSET('Smelter Look-up'!$H$4,$V1289-4,0))","v":""},{"$f":"IF(ISERROR($V1289),\"\",OFFSET('Smelter Look-up'!$I$4,$V1289-4,0))","v":""},{"$nulls":7},{"$f":"IF(ISERROR($V1289),\"\",OFFSET('Smelter Look-up'!$C$4,$V1289-4,0)&\"\")","v":""},"",{"$f":"IF(B1289=\"\",\"\",IF(ISERROR(MATCH($J1289,SorP!$B$1:$B$5661,0)),\"\",INDIRECT(\"'SorP'!$A$\"&MATCH($J1289,SorP!$B$1:$B$5661,0))))","v":""},null,{"$f":"IF(C1289=\"\",NA(),MATCH($B1289&$C1289,'Smelter Look-up'!$J:$J,0))","v":{"$error":"#N/A"}},null,0,null,null,null,""]
[null,{"$f":"IF(LEN(A1290)=0,\"\",INDEX('Smelter Look-up'!$A:$A,MATCH($A1290,'Smelter Look-up'!$E:$E,0)))","v":""},{"$f":"IF(LEN(A1290)=0,\"\",INDEX('Smelter Look-up'!$C:$C,MATCH($A1290,'Smelter Look-up'!$E:$E,0)))","v":""},null,{"$f":"IF(ISERROR($V1290),\"\",OFFSET('Smelter Look-up'!$D$4,$V1290-4,0)&\"\")","v":""},{"$f":"IF(ISERROR($V1290),\"\",OFFSET('Smelter Look-up'!$E$4,$V1290-4,0))","v":""},{"$f":"IF(C1290=$X$4,\"Enter smelter details\",IF(ISERROR($V1290),\"\",OFFSET('Smelter Look-up'!$F$4,$V1290-4,0)))","v":""},{"$f":"IF(ISERROR($V1290),\"\",OFFSET('Smelter Look-up'!$G$4,$V1290-4,0))","v":""},{"$f":"IF(ISERROR($V1290),\"\",OFFSET('Smelter Look-up'!$H$4,$V1290-4,0))","v":""},{"$f":"IF(ISERROR($V1290),\"\",OFFSET('Smelter Look-up'!$I$4,$V1290-4,0))","v":""},{"$nulls":7},{"$f":"IF(ISERROR($V1290),\"\",OFFSET('Smelter Look-up'!$C$4,$V1290-4,0)&\"\")","v":""},"",{"$f":"IF(B1290=\"\",\"\",IF(ISERROR(MATCH($J1290,SorP!$B$1:$B$5661,0)),\"\",INDIRECT(\"'SorP'!$A$\"&MATCH($J1290,SorP!$B$1:$B$5661,0))))","v":""},null,{"$f":"IF(C1290=\"\",NA(),MATCH($B1290&$C1290,'Smelter Look-up'!$J:$J,0))","v":{"$error":"#N/A"}},null,0,null,null,null,""]
[null,{"$f":"IF(LEN(A1291)=0,\"\",INDEX('Smelter Look-up'!$A:$A,MATCH($A1291,'Smelter Look-up'!$E:$E,0)))","v":""},{"$f":"IF(LEN(A1291)=0,\"\",INDEX('Smelter Look-up'!$C:$C,MATCH($A1291,'Smelter Look-up'!$E:$E,0)))","v":""},null,{"$f":"IF(ISERROR($V1291),\"\",OFFSET('Smelter Look-up'!$D$4,$V1291-4,0)&\"\")","v":""},{"$f":"IF(ISERROR($V1291),\"\",OFFSET('Smelter Look-up'!$E$4,$V1291-4,0))","v":""},{"$f":"IF(C1291=$X$4,\"Enter smelter details\",IF(ISERROR($V1291),\"\",OFFSET('Smelter Look-up'!$F$4,$V1291-4,0)))","v":""},{"$f":"IF(ISERROR($V1291),\"\",OFFSET('Smelter Look-up'!$G$4,$V1291-4,0))","v":""},{"$f":"IF(ISERROR($V1291),\"\",OFFSET('Smelter Look-up'!$H$4,$V1291-4,0))","v":""},{"$f":"IF(ISERROR($V1291),\"\",OFFSET('Smelter Look-up'!$I$4,$V1291-4,0))","v":""},{"$nulls":7},{"$f":"IF(ISERROR($V1291),\"\",OFFSET('Smelter Look-up'!$C$4,$V1291-4,0)&\"\")","v":""},"",{"$f":"IF(B1291=\"\",\"\",IF(ISERROR(MATCH($J1291,SorP!$B$1:$B$5661,0)),\"\",INDIRECT(\"'SorP'!$A$\"&MATCH($J1291,SorP!$B$1:$B$5661,0))))","v":""},null,{"$f":"IF(C1291=\"\",NA(),MATCH($B1291&$C1291,'Smelter Look-up'!$J:$J,0))","v":{"$error":"#N/A"}},null,0,null,null,null,""]
[null,{"$f":"IF(LEN(A1292)=0,\"\",INDEX('Smelter Look-up'!$A:$A,MATCH($A1292,'Smelter Look-up'!$E:$E,0)))","v":""},{"$f":"IF(LEN(A1292)=0,\"\",INDEX('Smelter Look-up'!$C:$C,MATCH($A1292,'Smelter Look-up'!$E:$E,0)))","v":""},null,{"$f":"IF(ISERROR($V1292),\"\",OFFSET('Smelter Look-up'!$D$4,$V1292-4,0)&\"\")","v":""},{"$f":"IF(ISERROR($V1292),\"\",OFFSET('Smelter Look-up'!$E$4,$V1292-4,0))","v":""},{"$f":"IF(C1292=$X$4,\"Enter smelter details\",IF(ISERROR($V1292),\"\",OFFSET('Smelter Look-up'!$F$4,$V1292-4,0)))","v":""},{"$f":"IF(ISERROR($V1292),\"\",OFFSET('Smelter Look-up'!$G$4,$V1292-4,0))","v":""},{"$f":"IF(ISERROR($V1292),\"\",OFFSET('Smelter Look-up'!$H$4,$V1292-4,0))","v":""},{"$f":"IF(ISERROR($V1292),\"\",OFFSET('Smelter Look-up'!$I$4,$V1292-4,0))","v":""},{"$nulls":7},{"$f":"IF(ISERROR($V1292),\"\",OFFSET('Smelter Look-up'!$C$4,$V1292-4,0)&\"\")","v":""},"",{"$f":"IF(B1292=\"\",\"\",IF(ISERROR(MATCH($J1292,SorP!$B$1:$B$5661,0)),\"\",INDIRECT(\"'SorP'!$A$\"&MATCH($J1292,SorP!$B$1:$B$5661,0))))","v":""},null,{"$f":"IF(C1292=\"\",NA(),MATCH($B1292&$C1292,'Smelter Look-up'!$J:$J,0))","v":{"$error":"#N/A"}},null,0,null,null,null,""]
[null,{"$f":"IF(LEN(A1293)=0,\"\",INDEX('Smelter Look-up'!$A:$A,MATCH($A1293,'Smelter Look-up'!$E:$E,0)))","v":""},{"$f":"IF(LEN(A1293)=0,\"\",INDEX('Smelter Look-up'!$C:$C,MATCH($A1293,'Smelter Look-up'!$E:$E,0)))","v":""},null,{"$f":"IF(ISERROR($V1293),\"\",OFFSET('Smelter Look-up'!$D$4,$V1293-4,0)&\"\")","v":""},{"$f":"IF(ISERROR($V1293),\"\",OFFSET('Smelter Look-up'!$E$4,$V1293-4,0))","v":""},{"$f":"IF(C1293=$X$4,\"Enter smelter details\",IF(ISERROR($V1293),\"\",OFFSET('Smelter Look-up'!$F$4,$V1293-4,0)))","v":""},{"$f":"IF(ISERROR($V1293),\"\",OFFSET('Smelter Look-up'!$G$4,$V1293-4,0))","v":""},{"$f":"IF(ISERROR($V1293),\"\",OFFSET('Smelter Look-up'!$H$4,$V1293-4,0))","v":""},{"$f":"IF(ISERROR($V1293),\"\",OFFSET('Smelter Look-up'!$I$4,$V1293-4,0))","v":""},{"$nulls":7},{"$f":"IF(ISERROR($V1293),\"\",OFFSET('Smelter Look-up'!$C$4,$V1293-4,0)&\"\")","v":""},"",{"$f":"IF(B1293=\"\",\"\",IF(ISERROR(MATCH($J1293,SorP!$B$1:$B$5661,0)),\"\",INDIRECT(\"'SorP'!$A$\"&MATCH($J1293,SorP!$B$1:$B$5661,0))))","v":""},null,{"$f":"IF(C1293=\"\",NA(),MATCH($B1293&$C1293,'Smelter Look-up'!$J:$J,0))","v":{"$error":"#N/A"}},null,0,null,null,null,""]
[null,{"$f":"IF(LEN(A1294)=0,\"\",INDEX('Smelter Look-up'!$A:$A,MATCH($A1294,'Smelter Look-up'!$E:$E,0)))","v":""},{"$f":"IF(LEN(A1294)=0,\"\",INDEX('Smelter Look-up'!$C:$C,MATCH($A1294,'Smelter Look-up'!$E:$E,0)))","v":""},null,{"$f":"IF(ISERROR($V1294),\"\",OFFSET('Smelter Look-up'!$D$4,$V1294-4,0)&\"\")","v":""},{"$f":"IF(ISERROR($V1294),\"\",OFFSET('Smelter Look-up'!$E$4,$V1294-4,0))","v":""},{"$f":"IF(C1294=$X$4,\"Enter smelter details\",IF(ISERROR($V1294),\"\",OFFSET('Smelter Look-up'!$F$4,$V1294-4,0)))","v":""},{"$f":"IF(ISERROR($V1294),\"\",OFFSET('Smelter Look-up'!$G$4,$V1294-4,0))","v":""},{"$f":"IF(ISERROR($V1294),\"\",OFFSET('Smelter Look-up'!$H$4,$V1294-4,0))","v":""},{"$f":"IF(ISERROR($V1294),\"\",OFFSET('Smelter Look-up'!$I$4,$V1294-4,0))","v":""},{"$nulls":7},{"$f":"IF(ISERROR($V1294),\"\",OFFSET('Smelter Look-up'!$C$4,$V1294-4,0)&\"\")","v":""},"",{"$f":"IF(B1294=\"\",\"\",IF(ISERROR(MATCH($J1294,SorP!$B$1:$B$5661,0)),\"\",INDIRECT(\"'SorP'!$A$\"&MATCH($J1294,SorP!$B$1:$B$5661,0))))","v":""},null,{"$f":"IF(C1294=\"\",NA(),MATCH($B1294&$C1294,'Smelter Look-up'!$J:$J,0))","v":{"$error":"#N/A"}},null,0,null,null,null,""]
[null,{"$f":"IF(LEN(A1295)=0,\"\",INDEX('Smelter Look-up'!$A:$A,MATCH($A1295,'Smelter Look-up'!$E:$E,0)))","v":""},{"$f":"IF(LEN(A1295)=0,\"\",INDEX('Smelter Look-up'!$C:$C,MATCH($A1295,'Smelter Look-up'!$E:$E,0)))","v":""},null,{"$f":"IF(ISERROR($V1295),\"\",OFFSET('Smelter Look-up'!$D$4,$V1295-4,0)&\"\")","v":""},{"$f":"IF(ISERROR($V1295),\"\",OFFSET('Smelter Look-up'!$E$4,$V1295-4,0))","v":""},{"$f":"IF(C1295=$X$4,\"Enter smelter details\",IF(ISERROR($V1295),\"\",OFFSET('Smelter Look-up'!$F$4,$V1295-4,0)))","v":""},{"$f":"IF(ISERROR($V1295),\"\",OFFSET('Smelter Look-up'!$G$4,$V1295-4,0))","v":""},{"$f":"IF(ISERROR($V1295),\"\",OFFSET('Smelter Look-up'!$H$4,$V1295-4,0))","v":""},{"$f":"IF(ISERROR($V1295),\"\",OFFSET('Smelter Look-up'!$I$4,$V1295-4,0))","v":""},{"$nulls":7},{"$f":"IF(ISERROR($V1295),\"\",OFFSET('Smelter Look-up'!$C$4,$V1295-4,0)&\"\")","v":""},"",{"$f":"IF(B1295=\"\",\"\",IF(ISERROR(MATCH($J1295,SorP!$B$1:$B$5661,0)),\"\",INDIRECT(\"'SorP'!$A$\"&MATCH($J1295,SorP!$B$1:$B$5661,0))))","v":""},null,{"$f":"IF(C1295=\"\",NA(),MATCH($B1295&$C1295,'Smelter Look-up'!$J:$J,0))","v":{"$error":"#N/A"}},null,0,null,null,null,""]
[null,{"$f":"IF(LEN(A1296)=0,\"\",INDEX('Smelter Look-up'!$A:$A,MATCH($A1296,'Smelter Look-up'!$E:$E,0)))","v":""},{"$f":"IF(LEN(A1296)=0,\"\",INDEX('Smelter Look-up'!$C:$C,MATCH($A1296,'Smelter Look-up'!$E:$E,0)))","v":""},null,{"$f":"IF(ISERROR($V1296),\"\",OFFSET('Smelter Look-up'!$D$4,$V1296-4,0)&\"\")","v":""},{"$f":"IF(ISERROR($V1296),\"\",OFFSET('Smelter Look-up'!$E$4,$V1296-4,0))","v":""},{"$f":"IF(C1296=$X$4,\"Enter smelter details\",IF(ISERROR($V1296),\"\",OFFSET('Smelter Look-up'!$F$4,$V1296-4,0)))","v":""},{"$f":"IF(ISERROR($V1296),\"\",OFFSET('Smelter Look-up'!$G$4,$V1296-4,0))","v":""},{"$f":"IF(ISERROR($V1296),\"\",OFFSET('Smelter Look-up'!$H$4,$V1296-4,0))","v":""},{"$f":"IF(ISERROR($V1296),\"\",OFFSET('Smelter Look-up'!$I$4,$V1296-4,0))","v":""},{"$nulls":7},{"$f":"IF(ISERROR($V1296),\"\",OFFSET('Smelter Look-up'!$C$4,$V1296-4,0)&\"\")","v":""},"",{"$f":"IF(B1296=\"\",\"\",IF(ISERROR(MATCH($J1296,SorP!$B$1:$B$5661,0)),\"\",INDIRECT(\"'SorP'!$A$\"&MATCH($J1296,SorP!$B$1:$B$5661,0))))","v":""},null,{"$f":"IF(C1296=\"\",NA(),MATCH($B1296&$C1296,'Smelter Look-up'!$J:$J,0))","v":{"$error":"#N/A"}},null,0,null,null,null,""]
[null,{"$f":"IF(LEN(A1297)=0,\"\",INDEX('Smelter Look-up'!$A:$A,MATCH($A1297,'Smelter Look-up'!$E:$E,0)))","v":""},{"$f":"IF(LEN(A1297)=0,\"\",INDEX('Smelter Look-up'!$C:$C,MATCH($A1297,'Smelter Look-up'!$E:$E,0)))","v":""},null,{"$f":"IF(ISERROR($V1297),\"\",OFFSET('Smelter Look-up'!$D$4,$V1297-4,0)&\"\")","v":""},{"$f":"IF(ISERROR($V1297),\"\",OFFSET('Smelter Look-up'!$E$4,$V1297-4,0))","v":""},{"$f":"IF(C1297=$X$4,\"Enter smelter details\",IF(ISERROR($V1297),\"\",OFFSET('Smelter Look-up'!$F$4,$V1297-4,0)))","v":""},{"$f":"IF(ISERROR($V1297),\"\",OFFSET('Smelter Look-up'!$G$4,$V1297-4,0))","v":""},{"$f":"IF(ISERROR($V1297),\"\",OFFSET('Smelter Look-up'!$H$4,$V1297-4,0))","v":""},{"$f":"IF(ISERROR($V1297),\"\",OFFSET('Smelter Look-up'!$I$4,$V1297-4,0))","v":""},{"$nulls":7},{"$f":"IF(ISERROR($V1297),\"\",OFFSET('Smelter Look-up'!$C$4,$V1297-4,0)&\"\")","v":""},"",{"$f":"IF(B1297=\"\",\"\",IF(ISERROR(MATCH($J1297,SorP!$B$1:$B$5661,0)),\"\",INDIRECT(\"'SorP'!$A$\"&MATCH($J1297,SorP!$B$1:$B$5661,0))))","v":""},null,{"$f":"IF(C1297=\"\",NA(),MATCH($B1297&$C1297,'Smelter Look-up'!$J:$J,0))","v":{"$error":"#N/A"}},null,0,null,null,null,""]
[null,{"$f":"IF(LEN(A1298)=0,\"\",INDEX('Smelter Look-up'!$A:$A,MATCH($A1298,'Smelter Look-up'!$E:$E,0)))","v":""},{"$f":"IF(LEN(A1298)=0,\"\",INDEX('Smelter Look-up'!$C:$C,MATCH($A1298,'Smelter Look-up'!$E:$E,0)))","v":""},null,{"$f":"IF(ISERROR($V1298),\"\",OFFSET('Smelter Look-up'!$D$4,$V1298-4,0)&\"\")","v":""},{"$f":"IF(ISERROR($V1298),\"\",OFFSET('Smelter Look-up'!$E$4,$V1298-4,0))","v":""},{"$f":"IF(C1298=$X$4,\"Enter smelter details\",IF(ISERROR($V1298),\"\",OFFSET('Smelter Look-up'!$F$4,$V1298-4,0)))","v":""},{"$f":"IF(ISERROR($V1298),\"\",OFFSET('Smelter Look-up'!$G$4,$V1298-4,0))","v":""},{"$f":"IF(ISERROR($V1298),\"\",OFFSET('Smelter Look-up'!$H$4,$V1298-4,0))","v":""},{"$f":"IF(ISERROR($V1298),\"\",OFFSET('Smelter Look-up'!$I$4,$V1298-4,0))","v":""},{"$nulls":7},{"$f":"IF(ISERROR($V1298),\"\",OFFSET('Smelter Look-up'!$C$4,$V1298-4,0)&\"\")","v":""},"",{"$f":"IF(B1298=\"\",\"\",IF(ISERROR(MATCH($J1298,SorP!$B$1:$B$5661,0)),\"\",INDIRECT(\"'SorP'!$A$\"&MATCH($J1298,SorP!$B$1:$B$5661,0))))","v":""},null,{"$f":"IF(C1298=\"\",NA(),MATCH($B1298&$C1298,'Smelter Look-up'!$J:$J,0))","v":{"$error":"#N/A"}},null,0,null,null,null,""]
[null,{"$f":"IF(LEN(A1299)=0,\"\",INDEX('Smelter Look-up'!$A:$A,MATCH($A1299,'Smelter Look-up'!$E:$E,0)))","v":""},{"$f":"IF(LEN(A1299)=0,\"\",INDEX('Smelter Look-up'!$C:$C,MATCH($A1299,'Smelter Look-up'!$E:$E,0)))","v":""},null,{"$f":"IF(ISERROR($V1299),\"\",OFFSET('Smelter Look-up'!$D$4,$V1299-4,0)&\"\")","v":""},{"$f":"IF(ISERROR($V1299),\"\",OFFSET('Smelter Look-up'!$E$4,$V1299-4,0))","v":""},{"$f":"IF(C1299=$X$4,\"Enter smelter details\",IF(ISERROR($V1299),\"\",OFFSET('Smelter Look-up'!$F$4,$V1299-4,0)))","v":""},{"$f":"IF(ISERROR($V1299),\"\",OFFSET('Smelter Look-up'!$G$4,$V1299-4,0))","v":""},{"$f":"IF(ISERROR($V1299),\"\",OFFSET('Smelter Look-up'!$H$4,$V1299-4,0))","v":""},{"$f":"IF(ISERROR($V1299),\"\",OFFSET('Smelter Look-up'!$I$4,$V1299-4,0))","v":""},{"$nulls":7},{"$f":"IF(ISERROR($V1299),\"\",OFFSET('Smelter Look-up'!$C$4,$V1299-4,0)&\"\")","v":""},"",{"$f":"IF(B1299=\"\",\"\",IF(ISERROR(MATCH($J1299,SorP!$B$1:$B$5661,0)),\"\",INDIRECT(\"'SorP'!$A$\"&MATCH($J1299,SorP!$B$1:$B$5661,0))))","v":""},null,{"$f":"IF(C1299=\"\",NA(),MATCH($B1299&$C1299,'Smelter Look-up'!$J:$J,0))","v":{"$error":"#N/A"}},null,0,null,null,null,""]
[null,{"$f":"IF(LEN(A1300)=0,\"\",INDEX('Smelter Look-up'!$A:$A,MATCH($A1300,'Smelter Look-up'!$E:$E,0)))","v":""},{"$f":"IF(LEN(A1300)=0,\"\",INDEX('Smelter Look-up'!$C:$C,MATCH($A1300,'Smelter Look-up'!$E:$E,0)))","v":""},null,{"$f":"IF(ISERROR($V1300),\"\",OFFSET('Smelter Look-up'!$D$4,$V1300-4,0)&\"\")","v":""},{"$f":"IF(ISERROR($V1300),\"\",OFFSET('Smelter Look-up'!$E$4,$V1300-4,0))","v":""},{"$f":"IF(C1300=$X$4,\"Enter smelter details\",IF(ISERROR($V1300),\"\",OFFSET('Smelter Look-up'!$F$4,$V1300-4,0)))","v":""},{"$f":"IF(ISERROR($V1300),\"\",OFFSET('Smelter Look-up'!$G$4,$V1300-4,0))","v":""},{"$f":"IF(ISERROR($V1300),\"\",OFFSET('Smelter Look-up'!$H$4,$V1300-4,0))","v":""},{"$f":"IF(ISERROR($V1300),\"\",OFFSET('Smelter Look-up'!$I$4,$V1300-4,0))","v":""},{"$nulls":7},{"$f":"IF(ISERROR($V1300),\"\",OFFSET('Smelter Look-up'!$C$4,$V1300-4,0)&\"\")","v":""},"",{"$f":"IF(B1300=\"\",\"\",IF(ISERROR(MATCH($J1300,SorP!$B$1:$B$5661,0)),\"\",INDIRECT(\"'SorP'!$A$\"&MATCH($J1300,SorP!$B$1:$B$5661,0))))","v":""},null,{"$f":"IF(C1300=\"\",NA(),MATCH($B1300&$C1300,'Smelter Look-up'!$J:$J,0))","v":{"$error":"#N/A"}},null,0,null,null,null,""]
[null,{"$f":"IF(LEN(A1301)=0,\"\",INDEX('Smelter Look-up'!$A:$A,MATCH($A1301,'Smelter Look-up'!$E:$E,0)))","v":""},{"$f":"IF(LEN(A1301)=0,\"\",INDEX('Smelter Look-up'!$C:$C,MATCH($A1301,'Smelter Look-up'!$E:$E,0)))","v":""},null,{"$f":"IF(ISERROR($V1301),\"\",OFFSET('Smelter Look-up'!$D$4,$V1301-4,0)&\"\")","v":""},{"$f":"IF(ISERROR($V1301),\"\",OFFSET('Smelter Look-up'!$E$4,$V1301-4,0))","v":""},{"$f":"IF(C1301=$X$4,\"Enter smelter details\",IF(ISERROR($V1301),\"\",OFFSET('Smelter Look-up'!$F$4,$V1301-4,0)))","v":""},{"$f":"IF(ISERROR($V1301),\"\",OFFSET('Smelter Look-up'!$G$4,$V1301-4,0))","v":""},{"$f":"IF(ISERROR($V1301),\"\",OFFSET('Smelter Look-up'!$H$4,$V1301-4,0))","v":""},{"$f":"IF(ISERROR($V1301),\"\",OFFSET('Smelter Look-up'!$I$4,$V1301-4,0))","v":""},{"$nulls":7},{"$f":"IF(ISERROR($V1301),\"\",OFFSET('Smelter Look-up'!$C$4,$V1301-4,0)&\"\")","v":""},"",{"$f":"IF(B1301=\"\",\"\",IF(ISERROR(MATCH($J1301,SorP!$B$1:$B$5661,0)),\"\",INDIRECT(\"'SorP'!$A$\"&MATCH($J1301,SorP!$B$1:$B$5661,0))))","v":""},null,{"$f":"IF(C1301=\"\",NA(),MATCH($B1301&$C1301,'Smelter Look-up'!$J:$J,0))","v":{"$error":"#N/A"}},null,0,null,null,null,""]
[null,{"$f":"IF(LEN(A1302)=0,\"\",INDEX('Smelter Look-up'!$A:$A,MATCH($A1302,'Smelter Look-up'!$E:$E,0)))","v":""},{"$f":"IF(LEN(A1302)=0,\"\",INDEX('Smelter Look-up'!$C:$C,MATCH($A1302,'Smelter Look-up'!$E:$E,0)))","v":""},null,{"$f":"IF(ISERROR($V1302),\"\",OFFSET('Smelter Look-up'!$D$4,$V1302-4,0)&\"\")","v":""},{"$f":"IF(ISERROR($V1302),\"\",OFFSET('Smelter Look-up'!$E$4,$V1302-4,0))","v":""},{"$f":"IF(C1302=$X$4,\"Enter smelter details\",IF(ISERROR($V1302),\"\",OFFSET('Smelter Look-up'!$F$4,$V1302-4,0)))","v":""},{"$f":"IF(ISERROR($V1302),\"\",OFFSET('Smelter Look-up'!$G$4,$V1302-4,0))","v":""},{"$f":"IF(ISERROR($V1302),\"\",OFFSET('Smelter Look-up'!$H$4,$V1302-4,0))","v":""},{"$f":"IF(ISERROR($V1302),\"\",OFFSET('Smelter Look-up'!$I$4,$V1302-4,0))","v":""},{"$nulls":7},{"$f":"IF(ISERROR($V1302),\"\",OFFSET('Smelter Look-up'!$C$4,$V1302-4,0)&\"\")","v":""},"",{"$f":"IF(B1302=\"\",\"\",IF(ISERROR(MATCH($J1302,SorP!$B$1:$B$5661,0)),\"\",INDIRECT(\"'SorP'!$A$\"&MATCH($J1302,SorP!$B$1:$B$5661,0))))","v":""},null,{"$f":"IF(C1302=\"\",NA(),MATCH($B1302&$C1302,'Smelter Look-up'!$J:$J,0))","v":{"$error":"#N/A"}},null,0,null,null,null,""]
[null,{"$f":"IF(LEN(A1303)=0,\"\",INDEX('Smelter Look-up'!$A:$A,MATCH($A1303,'Smelter Look-up'!$E:$E,0)))","v":""},{"$f":"IF(LEN(A1303)=0,\"\",INDEX('Smelter Look-up'!$C:$C,MATCH($A1303,'Smelter Look-up'!$E:$E,0)))","v":""},null,{"$f":"IF(ISERROR($V1303),\"\",OFFSET('Smelter Look-up'!$D$4,$V1303-4,0)&\"\")","v":""},{"$f":"IF(ISERROR($V1303),\"\",OFFSET('Smelter Look-up'!$E$4,$V1303-4,0))","v":""},{"$f":"IF(C1303=$X$4,\"Enter smelter details\",IF(ISERROR($V1303),\"\",OFFSET('Smelter Look-up'!$F$4,$V1303-4,0)))","v":""},{"$f":"IF(ISERROR($V1303),\"\",OFFSET('Smelter Look-up'!$G$4,$V1303-4,0))","v":""},{"$f":"IF(ISERROR($V1303),\"\",OFFSET('Smelter Look-up'!$H$4,$V1303-4,0))","v":""},{"$f":"IF(ISERROR($V1303),\"\",OFFSET('Smelter Look-up'!$I$4,$V1303-4,0))","v":""},{"$nulls":7},{"$f":"IF(ISERROR($V1303),\"\",OFFSET('Smelter Look-up'!$C$4,$V1303-4,0)&\"\")","v":""},"",{"$f":"IF(B1303=\"\",\"\",IF(ISERROR(MATCH($J1303,SorP!$B$1:$B$5661,0)),\"\",INDIRECT(\"'SorP'!$A$\"&MATCH($J1303,SorP!$B$1:$B$5661,0))))","v":""},null,{"$f":"IF(C1303=\"\",NA(),MATCH($B1303&$C1303,'Smelter Look-up'!$J:$J,0))","v":{"$error":"#N/A"}},null,0,null,null,null,""]
[null,{"$f":"IF(LEN(A1304)=0,\"\",INDEX('Smelter Look-up'!$A:$A,MATCH($A1304,'Smelter Look-up'!$E:$E,0)))","v":""},{"$f":"IF(LEN(A1304)=0,\"\",INDEX('Smelter Look-up'!$C:$C,MATCH($A1304,'Smelter Look-up'!$E:$E,0)))","v":""},null,{"$f":"IF(ISERROR($V1304),\"\",OFFSET('Smelter Look-up'!$D$4,$V1304-4,0)&\"\")","v":""},{"$f":"IF(ISERROR($V1304),\"\",OFFSET('Smelter Look-up'!$E$4,$V1304-4,0))","v":""},{"$f":"IF(C1304=$X$4,\"Enter smelter details\",IF(ISERROR($V1304),\"\",OFFSET('Smelter Look-up'!$F$4,$V1304-4,0)))","v":""},{"$f":"IF(ISERROR($V1304),\"\",OFFSET('Smelter Look-up'!$G$4,$V1304-4,0))","v":""},{"$f":"IF(ISERROR($V1304),\"\",OFFSET('Smelter Look-up'!$H$4,$V1304-4,0))","v":""},{"$f":"IF(ISERROR($V1304),\"\",OFFSET('Smelter Look-up'!$I$4,$V1304-4,0))","v":""},{"$nulls":7},{"$f":"IF(ISERROR($V1304),\"\",OFFSET('Smelter Look-up'!$C$4,$V1304-4,0)&\"\")","v":""},"",{"$f":"IF(B1304=\"\",\"\",IF(ISERROR(MATCH($J1304,SorP!$B$1:$B$5661,0)),\"\",INDIRECT(\"'SorP'!$A$\"&MATCH($J1304,SorP!$B$1:$B$5661,0))))","v":""},null,{"$f":"IF(C1304=\"\",NA(),MATCH($B1304&$C1304,'Smelter Look-up'!$J:$J,0))","v":{"$error":"#N/A"}},null,0,null,null,null,""]
[null,{"$f":"IF(LEN(A1305)=0,\"\",INDEX('Smelter Look-up'!$A:$A,MATCH($A1305,'Smelter Look-up'!$E:$E,0)))","v":""},{"$f":"IF(LEN(A1305)=0,\"\",INDEX('Smelter Look-up'!$C:$C,MATCH($A1305,'Smelter Look-up'!$E:$E,0)))","v":""},null,{"$f":"IF(ISERROR($V1305),\"\",OFFSET('Smelter Look-up'!$D$4,$V1305-4,0)&\"\")","v":""},{"$f":"IF(ISERROR($V1305),\"\",OFFSET('Smelter Look-up'!$E$4,$V1305-4,0))","v":""},{"$f":"IF(C1305=$X$4,\"Enter smelter details\",IF(ISERROR($V1305),\"\",OFFSET('Smelter Look-up'!$F$4,$V1305-4,0)))","v":""},{"$f":"IF(ISERROR($V1305),\"\",OFFSET('Smelter Look-up'!$G$4,$V1305-4,0))","v":""},{"$f":"IF(ISERROR($V1305),\"\",OFFSET('Smelter Look-up'!$H$4,$V1305-4,0))","v":""},{"$f":"IF(ISERROR($V1305),\"\",OFFSET('Smelter Look-up'!$I$4,$V1305-4,0))","v":""},{"$nulls":7},{"$f":"IF(ISERROR($V1305),\"\",OFFSET('Smelter Look-up'!$C$4,$V1305-4,0)&\"\")","v":""},"",{"$f":"IF(B1305=\"\",\"\",IF(ISERROR(MATCH($J1305,SorP!$B$1:$B$5661,0)),\"\",INDIRECT(\"'SorP'!$A$\"&MATCH($J1305,SorP!$B$1:$B$5661,0))))","v":""},null,{"$f":"IF(C1305=\"\",NA(),MATCH($B1305&$C1305,'Smelter Look-up'!$J:$J,0))","v":{"$error":"#N/A"}},null,0,null,null,null,""]
[null,{"$f":"IF(LEN(A1306)=0,\"\",INDEX('Smelter Look-up'!$A:$A,MATCH($A1306,'Smelter Look-up'!$E:$E,0)))","v":""},{"$f":"IF(LEN(A1306)=0,\"\",INDEX('Smelter Look-up'!$C:$C,MATCH($A1306,'Smelter Look-up'!$E:$E,0)))","v":""},null,{"$f":"IF(ISERROR($V1306),\"\",OFFSET('Smelter Look-up'!$D$4,$V1306-4,0)&\"\")","v":""},{"$f":"IF(ISERROR($V1306),\"\",OFFSET('Smelter Look-up'!$E$4,$V1306-4,0))","v":""},{"$f":"IF(C1306=$X$4,\"Enter smelter details\",IF(ISERROR($V1306),\"\",OFFSET('Smelter Look-up'!$F$4,$V1306-4,0)))","v":""},{"$f":"IF(ISERROR($V1306),\"\",OFFSET('Smelter Look-up'!$G$4,$V1306-4,0))","v":""},{"$f":"IF(ISERROR($V1306),\"\",OFFSET('Smelter Look-up'!$H$4,$V1306-4,0))","v":""},{"$f":"IF(ISERROR($V1306),\"\",OFFSET('Smelter Look-up'!$I$4,$V1306-4,0))","v":""},{"$nulls":7},{"$f":"IF(ISERROR($V1306),\"\",OFFSET('Smelter Look-up'!$C$4,$V1306-4,0)&\"\")","v":""},"",{"$f":"IF(B1306=\"\",\"\",IF(ISERROR(MATCH($J1306,SorP!$B$1:$B$5661,0)),\"\",INDIRECT(\"'SorP'!$A$\"&MATCH($J1306,SorP!$B$1:$B$5661,0))))","v":""},null,{"$f":"IF(C1306=\"\",NA(),MATCH($B1306&$C1306,'Smelter Look-up'!$J:$J,0))","v":{"$error":"#N/A"}},null,0,null,null,null,""]
[null,{"$f":"IF(LEN(A1307)=0,\"\",INDEX('Smelter Look-up'!$A:$A,MATCH($A1307,'Smelter Look-up'!$E:$E,0)))","v":""},{"$f":"IF(LEN(A1307)=0,\"\",INDEX('Smelter Look-up'!$C:$C,MATCH($A1307,'Smelter Look-up'!$E:$E,0)))","v":""},null,{"$f":"IF(ISERROR($V1307),\"\",OFFSET('Smelter Look-up'!$D$4,$V1307-4,0)&\"\")","v":""},{"$f":"IF(ISERROR($V1307),\"\",OFFSET('Smelter Look-up'!$E$4,$V1307-4,0))","v":""},{"$f":"IF(C1307=$X$4,\"Enter smelter details\",IF(ISERROR($V1307),\"\",OFFSET('Smelter Look-up'!$F$4,$V1307-4,0)))","v":""},{"$f":"IF(ISERROR($V1307),\"\",OFFSET('Smelter Look-up'!$G$4,$V1307-4,0))","v":""},{"$f":"IF(ISERROR($V1307),\"\",OFFSET('Smelter Look-up'!$H$4,$V1307-4,0))","v":""},{"$f":"IF(ISERROR($V1307),\"\",OFFSET('Smelter Look-up'!$I$4,$V1307-4,0))","v":""},{"$nulls":7},{"$f":"IF(ISERROR($V1307),\"\",OFFSET('Smelter Look-up'!$C$4,$V1307-4,0)&\"\")","v":""},"",{"$f":"IF(B1307=\"\",\"\",IF(ISERROR(MATCH($J1307,SorP!$B$1:$B$5661,0)),\"\",INDIRECT(\"'SorP'!$A$\"&MATCH($J1307,SorP!$B$1:$B$5661,0))))","v":""},null,{"$f":"IF(C1307=\"\",NA(),MATCH($B1307&$C1307,'Smelter Look-up'!$J:$J,0))","v":{"$error":"#N/A"}},null,0,null,null,null,""]
[null,{"$f":"IF(LEN(A1308)=0,\"\",INDEX('Smelter Look-up'!$A:$A,MATCH($A1308,'Smelter Look-up'!$E:$E,0)))","v":""},{"$f":"IF(LEN(A1308)=0,\"\",INDEX('Smelter Look-up'!$C:$C,MATCH($A1308,'Smelter Look-up'!$E:$E,0)))","v":""},null,{"$f":"IF(ISERROR($V1308),\"\",OFFSET('Smelter Look-up'!$D$4,$V1308-4,0)&\"\")","v":""},{"$f":"IF(ISERROR($V1308),\"\",OFFSET('Smelter Look-up'!$E$4,$V1308-4,0))","v":""},{"$f":"IF(C1308=$X$4,\"Enter smelter details\",IF(ISERROR($V1308),\"\",OFFSET('Smelter Look-up'!$F$4,$V1308-4,0)))","v":""},{"$f":"IF(ISERROR($V1308),\"\",OFFSET('Smelter Look-up'!$G$4,$V1308-4,0))","v":""},{"$f":"IF(ISERROR($V1308),\"\",OFFSET('Smelter Look-up'!$H$4,$V1308-4,0))","v":""},{"$f":"IF(ISERROR($V1308),\"\",OFFSET('Smelter Look-up'!$I$4,$V1308-4,0))","v":""},{"$nulls":7},{"$f":"IF(ISERROR($V1308),\"\",OFFSET('Smelter Look-up'!$C$4,$V1308-4,0)&\"\")","v":""},"",{"$f":"IF(B1308=\"\",\"\",IF(ISERROR(MATCH($J1308,SorP!$B$1:$B$5661,0)),\"\",INDIRECT(\"'SorP'!$A$\"&MATCH($J1308,SorP!$B$1:$B$5661,0))))","v":""},null,{"$f":"IF(C1308=\"\",NA(),MATCH($B1308&$C1308,'Smelter Look-up'!$J:$J,0))","v":{"$error":"#N/A"}},null,0,null,null,null,""]
[null,{"$f":"IF(LEN(A1309)=0,\"\",INDEX('Smelter Look-up'!$A:$A,MATCH($A1309,'Smelter Look-up'!$E:$E,0)))","v":""},{"$f":"IF(LEN(A1309)=0,\"\",INDEX('Smelter Look-up'!$C:$C,MATCH($A1309,'Smelter Look-up'!$E:$E,0)))","v":""},null,{"$f":"IF(ISERROR($V1309),\"\",OFFSET('Smelter Look-up'!$D$4,$V1309-4,0)&\"\")","v":""},{"$f":"IF(ISERROR($V1309),\"\",OFFSET('Smelter Look-up'!$E$4,$V1309-4,0))","v":""},{"$f":"IF(C1309=$X$4,\"Enter smelter details\",IF(ISERROR($V1309),\"\",OFFSET('Smelter Look-up'!$F$4,$V1309-4,0)))","v":""},{"$f":"IF(ISERROR($V1309),\"\",OFFSET('Smelter Look-up'!$G$4,$V1309-4,0))","v":""},{"$f":"IF(ISERROR($V1309),\"\",OFFSET('Smelter Look-up'!$H$4,$V1309-4,0))","v":""},{"$f":"IF(ISERROR($V1309),\"\",OFFSET('Smelter Look-up'!$I$4,$V1309-4,0))","v":""},{"$nulls":7},{"$f":"IF(ISERROR($V1309),\"\",OFFSET('Smelter Look-up'!$C$4,$V1309-4,0)&\"\")","v":""},"",{"$f":"IF(B1309=\"\",\"\",IF(ISERROR(MATCH($J1309,SorP!$B$1:$B$5661,0)),\"\",INDIRECT(\"'SorP'!$A$\"&MATCH($J1309,SorP!$B$1:$B$5661,0))))","v":""},null,{"$f":"IF(C1309=\"\",NA(),MATCH($B1309&$C1309,'Smelter Look-up'!$J:$J,0))","v":{"$error":"#N/A"}},null,0,null,null,null,""]
[null,{"$f":"IF(LEN(A1310)=0,\"\",INDEX('Smelter Look-up'!$A:$A,MATCH($A1310,'Smelter Look-up'!$E:$E,0)))","v":""},{"$f":"IF(LEN(A1310)=0,\"\",INDEX('Smelter Look-up'!$C:$C,MATCH($A1310,'Smelter Look-up'!$E:$E,0)))","v":""},null,{"$f":"IF(ISERROR($V1310),\"\",OFFSET('Smelter Look-up'!$D$4,$V1310-4,0)&\"\")","v":""},{"$f":"IF(ISERROR($V1310),\"\",OFFSET('Smelter Look-up'!$E$4,$V1310-4,0))","v":""},{"$f":"IF(C1310=$X$4,\"Enter smelter details\",IF(ISERROR($V1310),\"\",OFFSET('Smelter Look-up'!$F$4,$V1310-4,0)))","v":""},{"$f":"IF(ISERROR($V1310),\"\",OFFSET('Smelter Look-up'!$G$4,$V1310-4,0))","v":""},{"$f":"IF(ISERROR($V1310),\"\",OFFSET('Smelter Look-up'!$H$4,$V1310-4,0))","v":""},{"$f":"IF(ISERROR($V1310),\"\",OFFSET('Smelter Look-up'!$I$4,$V1310-4,0))","v":""},{"$nulls":7},{"$f":"IF(ISERROR($V1310),\"\",OFFSET('Smelter Look-up'!$C$4,$V1310-4,0)&\"\")","v":""},"",{"$f":"IF(B1310=\"\",\"\",IF(ISERROR(MATCH($J1310,SorP!$B$1:$B$5661,0)),\"\",INDIRECT(\"'SorP'!$A$\"&MATCH($J1310,SorP!$B$1:$B$5661,0))))","v":""},null,{"$f":"IF(C1310=\"\",NA(),MATCH($B1310&$C1310,'Smelter Look-up'!$J:$J,0))","v":{"$error":"#N/A"}},null,0,null,null,null,""]
[null,{"$f":"IF(LEN(A1311)=0,\"\",INDEX('Smelter Look-up'!$A:$A,MATCH($A1311,'Smelter Look-up'!$E:$E,0)))","v":""},{"$f":"IF(LEN(A1311)=0,\"\",INDEX('Smelter Look-up'!$C:$C,MATCH($A1311,'Smelter Look-up'!$E:$E,0)))","v":""},null,{"$f":"IF(ISERROR($V1311),\"\",OFFSET('Smelter Look-up'!$D$4,$V1311-4,0)&\"\")","v":""},{"$f":"IF(ISERROR($V1311),\"\",OFFSET('Smelter Look-up'!$E$4,$V1311-4,0))","v":""},{"$f":"IF(C1311=$X$4,\"Enter smelter details\",IF(ISERROR($V1311),\"\",OFFSET('Smelter Look-up'!$F$4,$V1311-4,0)))","v":""},{"$f":"IF(ISERROR($V1311),\"\",OFFSET('Smelter Look-up'!$G$4,$V1311-4,0))","v":""},{"$f":"IF(ISERROR($V1311),\"\",OFFSET('Smelter Look-up'!$H$4,$V1311-4,0))","v":""},{"$f":"IF(ISERROR($V1311),\"\",OFFSET('Smelter Look-up'!$I$4,$V1311-4,0))","v":""},{"$nulls":7},{"$f":"IF(ISERROR($V1311),\"\",OFFSET('Smelter Look-up'!$C$4,$V1311-4,0)&\"\")","v":""},"",{"$f":"IF(B1311=\"\",\"\",IF(ISERROR(MATCH($J1311,SorP!$B$1:$B$5661,0)),\"\",INDIRECT(\"'SorP'!$A$\"&MATCH($J1311,SorP!$B$1:$B$5661,0))))","v":""},null,{"$f":"IF(C1311=\"\",NA(),MATCH($B1311&$C1311,'Smelter Look-up'!$J:$J,0))","v":{"$error":"#N/A"}},null,0,null,null,null,""]
[null,{"$f":"IF(LEN(A1312)=0,\"\",INDEX('Smelter Look-up'!$A:$A,MATCH($A1312,'Smelter Look-up'!$E:$E,0)))","v":""},{"$f":"IF(LEN(A1312)=0,\"\",INDEX('Smelter Look-up'!$C:$C,MATCH($A1312,'Smelter Look-up'!$E:$E,0)))","v":""},null,{"$f":"IF(ISERROR($V1312),\"\",OFFSET('Smelter Look-up'!$D$4,$V1312-4,0)&\"\")","v":""},{"$f":"IF(ISERROR($V1312),\"\",OFFSET('Smelter Look-up'!$E$4,$V1312-4,0))","v":""},{"$f":"IF(C1312=$X$4,\"Enter smelter details\",IF(ISERROR($V1312),\"\",OFFSET('Smelter Look-up'!$F$4,$V1312-4,0)))","v":""},{"$f":"IF(ISERROR($V1312),\"\",OFFSET('Smelter Look-up'!$G$4,$V1312-4,0))","v":""},{"$f":"IF(ISERROR($V1312),\"\",OFFSET('Smelter Look-up'!$H$4,$V1312-4,0))","v":""},{"$f":"IF(ISERROR($V1312),\"\",OFFSET('Smelter Look-up'!$I$4,$V1312-4,0))","v":""},{"$nulls":7},{"$f":"IF(ISERROR($V1312),\"\",OFFSET('Smelter Look-up'!$C$4,$V1312-4,0)&\"\")","v":""},"",{"$f":"IF(B1312=\"\",\"\",IF(ISERROR(MATCH($J1312,SorP!$B$1:$B$5661,0)),\"\",INDIRECT(\"'SorP'!$A$\"&MATCH($J1312,SorP!$B$1:$B$5661,0))))","v":""},null,{"$f":"IF(C1312=\"\",NA(),MATCH($B1312&$C1312,'Smelter Look-up'!$J:$J,0))","v":{"$error":"#N/A"}},null,0,null,null,null,""]
[null,{"$f":"IF(LEN(A1313)=0,\"\",INDEX('Smelter Look-up'!$A:$A,MATCH($A1313,'Smelter Look-up'!$E:$E,0)))","v":""},{"$f":"IF(LEN(A1313)=0,\"\",INDEX('Smelter Look-up'!$C:$C,MATCH($A1313,'Smelter Look-up'!$E:$E,0)))","v":""},null,{"$f":"IF(ISERROR($V1313),\"\",OFFSET('Smelter Look-up'!$D$4,$V1313-4,0)&\"\")","v":""},{"$f":"IF(ISERROR($V1313),\"\",OFFSET('Smelter Look-up'!$E$4,$V1313-4,0))","v":""},{"$f":"IF(C1313=$X$4,\"Enter smelter details\",IF(ISERROR($V1313),\"\",OFFSET('Smelter Look-up'!$F$4,$V1313-4,0)))","v":""},{"$f":"IF(ISERROR($V1313),\"\",OFFSET('Smelter Look-up'!$G$4,$V1313-4,0))","v":""},{"$f":"IF(ISERROR($V1313),\"\",OFFSET('Smelter Look-up'!$H$4,$V1313-4,0))","v":""},{"$f":"IF(ISERROR($V1313),\"\",OFFSET('Smelter Look-up'!$I$4,$V1313-4,0))","v":""},{"$nulls":7},{"$f":"IF(ISERROR($V1313),\"\",OFFSET('Smelter Look-up'!$C$4,$V1313-4,0)&\"\")","v":""},"",{"$f":"IF(B1313=\"\",\"\",IF(ISERROR(MATCH($J1313,SorP!$B$1:$B$5661,0)),\"\",INDIRECT(\"'SorP'!$A$\"&MATCH($J1313,SorP!$B$1:$B$5661,0))))","v":""},null,{"$f":"IF(C1313=\"\",NA(),MATCH($B1313&$C1313,'Smelter Look-up'!$J:$J,0))","v":{"$error":"#N/A"}},null,0,null,null,null,""]
[null,{"$f":"IF(LEN(A1314)=0,\"\",INDEX('Smelter Look-up'!$A:$A,MATCH($A1314,'Smelter Look-up'!$E:$E,0)))","v":""},{"$f":"IF(LEN(A1314)=0,\"\",INDEX('Smelter Look-up'!$C:$C,MATCH($A1314,'Smelter Look-up'!$E:$E,0)))","v":""},null,{"$f":"IF(ISERROR($V1314),\"\",OFFSET('Smelter Look-up'!$D$4,$V1314-4,0)&\"\")","v":""},{"$f":"IF(ISERROR($V1314),\"\",OFFSET('Smelter Look-up'!$E$4,$V1314-4,0))","v":""},{"$f":"IF(C1314=$X$4,\"Enter smelter details\",IF(ISERROR($V1314),\"\",OFFSET('Smelter Look-up'!$F$4,$V1314-4,0)))","v":""},{"$f":"IF(ISERROR($V1314),\"\",OFFSET('Smelter Look-up'!$G$4,$V1314-4,0))","v":""},{"$f":"IF(ISERROR($V1314),\"\",OFFSET('Smelter Look-up'!$H$4,$V1314-4,0))","v":""},{"$f":"IF(ISERROR($V1314),\"\",OFFSET('Smelter Look-up'!$I$4,$V1314-4,0))","v":""},{"$nulls":7},{"$f":"IF(ISERROR($V1314),\"\",OFFSET('Smelter Look-up'!$C$4,$V1314-4,0)&\"\")","v":""},"",{"$f":"IF(B1314=\"\",\"\",IF(ISERROR(MATCH($J1314,SorP!$B$1:$B$5661,0)),\"\",INDIRECT(\"'SorP'!$A$\"&MATCH($J1314,SorP!$B$1:$B$5661,0))))","v":""},null,{"$f":"IF(C1314=\"\",NA(),MATCH($B1314&$C1314,'Smelter Look-up'!$J:$J,0))","v":{"$error":"#N/A"}},null,0,null,null,null,""]
[null,{"$f":"IF(LEN(A1315)=0,\"\",INDEX('Smelter Look-up'!$A:$A,MATCH($A1315,'Smelter Look-up'!$E:$E,0)))","v":""},{"$f":"IF(LEN(A1315)=0,\"\",INDEX('Smelter Look-up'!$C:$C,MATCH($A1315,'Smelter Look-up'!$E:$E,0)))","v":""},null,{"$f":"IF(ISERROR($V1315),\"\",OFFSET('Smelter Look-up'!$D$4,$V1315-4,0)&\"\")","v":""},{"$f":"IF(ISERROR($V1315),\"\",OFFSET('Smelter Look-up'!$E$4,$V1315-4,0))","v":""},{"$f":"IF(C1315=$X$4,\"Enter smelter details\",IF(ISERROR($V1315),\"\",OFFSET('Smelter Look-up'!$F$4,$V1315-4,0)))","v":""},{"$f":"IF(ISERROR($V1315),\"\",OFFSET('Smelter Look-up'!$G$4,$V1315-4,0))","v":""},{"$f":"IF(ISERROR($V1315),\"\",OFFSET('Smelter Look-up'!$H$4,$V1315-4,0))","v":""},{"$f":"IF(ISERROR($V1315),\"\",OFFSET('Smelter Look-up'!$I$4,$V1315-4,0))","v":""},{"$nulls":7},{"$f":"IF(ISERROR($V1315),\"\",OFFSET('Smelter Look-up'!$C$4,$V1315-4,0)&\"\")","v":""},"",{"$f":"IF(B1315=\"\",\"\",IF(ISERROR(MATCH($J1315,SorP!$B$1:$B$5661,0)),\"\",INDIRECT(\"'SorP'!$A$\"&MATCH($J1315,SorP!$B$1:$B$5661,0))))","v":""},null,{"$f":"IF(C1315=\"\",NA(),MATCH($B1315&$C1315,'Smelter Look-up'!$J:$J,0))","v":{"$error":"#N/A"}},null,0,null,null,null,""]
[null,{"$f":"IF(LEN(A1316)=0,\"\",INDEX('Smelter Look-up'!$A:$A,MATCH($A1316,'Smelter Look-up'!$E:$E,0)))","v":""},{"$f":"IF(LEN(A1316)=0,\"\",INDEX('Smelter Look-up'!$C:$C,MATCH($A1316,'Smelter Look-up'!$E:$E,0)))","v":""},null,{"$f":"IF(ISERROR($V1316),\"\",OFFSET('Smelter Look-up'!$D$4,$V1316-4,0)&\"\")","v":""},{"$f":"IF(ISERROR($V1316),\"\",OFFSET('Smelter Look-up'!$E$4,$V1316-4,0))","v":""},{"$f":"IF(C1316=$X$4,\"Enter smelter details\",IF(ISERROR($V1316),\"\",OFFSET('Smelter Look-up'!$F$4,$V1316-4,0)))","v":""},{"$f":"IF(ISERROR($V1316),\"\",OFFSET('Smelter Look-up'!$G$4,$V1316-4,0))","v":""},{"$f":"IF(ISERROR($V1316),\"\",OFFSET('Smelter Look-up'!$H$4,$V1316-4,0))","v":""},{"$f":"IF(ISERROR($V1316),\"\",OFFSET('Smelter Look-up'!$I$4,$V1316-4,0))","v":""},{"$nulls":7},{"$f":"IF(ISERROR($V1316),\"\",OFFSET('Smelter Look-up'!$C$4,$V1316-4,0)&\"\")","v":""},"",{"$f":"IF(B1316=\"\",\"\",IF(ISERROR(MATCH($J1316,SorP!$B$1:$B$5661,0)),\"\",INDIRECT(\"'SorP'!$A$\"&MATCH($J1316,SorP!$B$1:$B$5661,0))))","v":""},null,{"$f":"IF(C1316=\"\",NA(),MATCH($B1316&$C1316,'Smelter Look-up'!$J:$J,0))","v":{"$error":"#N/A"}},null,0,null,null,null,""]
[null,{"$f":"IF(LEN(A1317)=0,\"\",INDEX('Smelter Look-up'!$A:$A,MATCH($A1317,'Smelter Look-up'!$E:$E,0)))","v":""},{"$f":"IF(LEN(A1317)=0,\"\",INDEX('Smelter Look-up'!$C:$C,MATCH($A1317,'Smelter Look-up'!$E:$E,0)))","v":""},null,{"$f":"IF(ISERROR($V1317),\"\",OFFSET('Smelter Look-up'!$D$4,$V1317-4,0)&\"\")","v":""},{"$f":"IF(ISERROR($V1317),\"\",OFFSET('Smelter Look-up'!$E$4,$V1317-4,0))","v":""},{"$f":"IF(C1317=$X$4,\"Enter smelter details\",IF(ISERROR($V1317),\"\",OFFSET('Smelter Look-up'!$F$4,$V1317-4,0)))","v":""},{"$f":"IF(ISERROR($V1317),\"\",OFFSET('Smelter Look-up'!$G$4,$V1317-4,0))","v":""},{"$f":"IF(ISERROR($V1317),\"\",OFFSET('Smelter Look-up'!$H$4,$V1317-4,0))","v":""},{"$f":"IF(ISERROR($V1317),\"\",OFFSET('Smelter Look-up'!$I$4,$V1317-4,0))","v":""},{"$nulls":7},{"$f":"IF(ISERROR($V1317),\"\",OFFSET('Smelter Look-up'!$C$4,$V1317-4,0)&\"\")","v":""},"",{"$f":"IF(B1317=\"\",\"\",IF(ISERROR(MATCH($J1317,SorP!$B$1:$B$5661,0)),\"\",INDIRECT(\"'SorP'!$A$\"&MATCH($J1317,SorP!$B$1:$B$5661,0))))","v":""},null,{"$f":"IF(C1317=\"\",NA(),MATCH($B1317&$C1317,'Smelter Look-up'!$J:$J,0))","v":{"$error":"#N/A"}},null,0,null,null,null,""]
[null,{"$f":"IF(LEN(A1318)=0,\"\",INDEX('Smelter Look-up'!$A:$A,MATCH($A1318,'Smelter Look-up'!$E:$E,0)))","v":""},{"$f":"IF(LEN(A1318)=0,\"\",INDEX('Smelter Look-up'!$C:$C,MATCH($A1318,'Smelter Look-up'!$E:$E,0)))","v":""},null,{"$f":"IF(ISERROR($V1318),\"\",OFFSET('Smelter Look-up'!$D$4,$V1318-4,0)&\"\")","v":""},{"$f":"IF(ISERROR($V1318),\"\",OFFSET('Smelter Look-up'!$E$4,$V1318-4,0))","v":""},{"$f":"IF(C1318=$X$4,\"Enter smelter details\",IF(ISERROR($V1318),\"\",OFFSET('Smelter Look-up'!$F$4,$V1318-4,0)))","v":""},{"$f":"IF(ISERROR($V1318),\"\",OFFSET('Smelter Look-up'!$G$4,$V1318-4,0))","v":""},{"$f":"IF(ISERROR($V1318),\"\",OFFSET('Smelter Look-up'!$H$4,$V1318-4,0))","v":""},{"$f":"IF(ISERROR($V1318),\"\",OFFSET('Smelter Look-up'!$I$4,$V1318-4,0))","v":""},{"$nulls":7},{"$f":"IF(ISERROR($V1318),\"\",OFFSET('Smelter Look-up'!$C$4,$V1318-4,0)&\"\")","v":""},"",{"$f":"IF(B1318=\"\",\"\",IF(ISERROR(MATCH($J1318,SorP!$B$1:$B$5661,0)),\"\",INDIRECT(\"'SorP'!$A$\"&MATCH($J1318,SorP!$B$1:$B$5661,0))))","v":""},null,{"$f":"IF(C1318=\"\",NA(),MATCH($B1318&$C1318,'Smelter Look-up'!$J:$J,0))","v":{"$error":"#N/A"}},null,0,null,null,null,""]
[null,{"$f":"IF(LEN(A1319)=0,\"\",INDEX('Smelter Look-up'!$A:$A,MATCH($A1319,'Smelter Look-up'!$E:$E,0)))","v":""},{"$f":"IF(LEN(A1319)=0,\"\",INDEX('Smelter Look-up'!$C:$C,MATCH($A1319,'Smelter Look-up'!$E:$E,0)))","v":""},null,{"$f":"IF(ISERROR($V1319),\"\",OFFSET('Smelter Look-up'!$D$4,$V1319-4,0)&\"\")","v":""},{"$f":"IF(ISERROR($V1319),\"\",OFFSET('Smelter Look-up'!$E$4,$V1319-4,0))","v":""},{"$f":"IF(C1319=$X$4,\"Enter smelter details\",IF(ISERROR($V1319),\"\",OFFSET('Smelter Look-up'!$F$4,$V1319-4,0)))","v":""},{"$f":"IF(ISERROR($V1319),\"\",OFFSET('Smelter Look-up'!$G$4,$V1319-4,0))","v":""},{"$f":"IF(ISERROR($V1319),\"\",OFFSET('Smelter Look-up'!$H$4,$V1319-4,0))","v":""},{"$f":"IF(ISERROR($V1319),\"\",OFFSET('Smelter Look-up'!$I$4,$V1319-4,0))","v":""},{"$nulls":7},{"$f":"IF(ISERROR($V1319),\"\",OFFSET('Smelter Look-up'!$C$4,$V1319-4,0)&\"\")","v":""},"",{"$f":"IF(B1319=\"\",\"\",IF(ISERROR(MATCH($J1319,SorP!$B$1:$B$5661,0)),\"\",INDIRECT(\"'SorP'!$A$\"&MATCH($J1319,SorP!$B$1:$B$5661,0))))","v":""},null,{"$f":"IF(C1319=\"\",NA(),MATCH($B1319&$C1319,'Smelter Look-up'!$J:$J,0))","v":{"$error":"#N/A"}},null,0,null,null,null,""]
[null,{"$f":"IF(LEN(A1320)=0,\"\",INDEX('Smelter Look-up'!$A:$A,MATCH($A1320,'Smelter Look-up'!$E:$E,0)))","v":""},{"$f":"IF(LEN(A1320)=0,\"\",INDEX('Smelter Look-up'!$C:$C,MATCH($A1320,'Smelter Look-up'!$E:$E,0)))","v":""},null,{"$f":"IF(ISERROR($V1320),\"\",OFFSET('Smelter Look-up'!$D$4,$V1320-4,0)&\"\")","v":""},{"$f":"IF(ISERROR($V1320),\"\",OFFSET('Smelter Look-up'!$E$4,$V1320-4,0))","v":""},{"$f":"IF(C1320=$X$4,\"Enter smelter details\",IF(ISERROR($V1320),\"\",OFFSET('Smelter Look-up'!$F$4,$V1320-4,0)))","v":""},{"$f":"IF(ISERROR($V1320),\"\",OFFSET('Smelter Look-up'!$G$4,$V1320-4,0))","v":""},{"$f":"IF(ISERROR($V1320),\"\",OFFSET('Smelter Look-up'!$H$4,$V1320-4,0))","v":""},{"$f":"IF(ISERROR($V1320),\"\",OFFSET('Smelter Look-up'!$I$4,$V1320-4,0))","v":""},{"$nulls":7},{"$f":"IF(ISERROR($V1320),\"\",OFFSET('Smelter Look-up'!$C$4,$V1320-4,0)&\"\")","v":""},"",{"$f":"IF(B1320=\"\",\"\",IF(ISERROR(MATCH($J1320,SorP!$B$1:$B$5661,0)),\"\",INDIRECT(\"'SorP'!$A$\"&MATCH($J1320,SorP!$B$1:$B$5661,0))))","v":""},null,{"$f":"IF(C1320=\"\",NA(),MATCH($B1320&$C1320,'Smelter Look-up'!$J:$J,0))","v":{"$error":"#N/A"}},null,0,null,null,null,""]
[null,{"$f":"IF(LEN(A1321)=0,\"\",INDEX('Smelter Look-up'!$A:$A,MATCH($A1321,'Smelter Look-up'!$E:$E,0)))","v":""},{"$f":"IF(LEN(A1321)=0,\"\",INDEX('Smelter Look-up'!$C:$C,MATCH($A1321,'Smelter Look-up'!$E:$E,0)))","v":""},null,{"$f":"IF(ISERROR($V1321),\"\",OFFSET('Smelter Look-up'!$D$4,$V1321-4,0)&\"\")","v":""},{"$f":"IF(ISERROR($V1321),\"\",OFFSET('Smelter Look-up'!$E$4,$V1321-4,0))","v":""},{"$f":"IF(C1321=$X$4,\"Enter smelter details\",IF(ISERROR($V1321),\"\",OFFSET('Smelter Look-up'!$F$4,$V1321-4,0)))","v":""},{"$f":"IF(ISERROR($V1321),\"\",OFFSET('Smelter Look-up'!$G$4,$V1321-4,0))","v":""},{"$f":"IF(ISERROR($V1321),\"\",OFFSET('Smelter Look-up'!$H$4,$V1321-4,0))","v":""},{"$f":"IF(ISERROR($V1321),\"\",OFFSET('Smelter Look-up'!$I$4,$V1321-4,0))","v":""},{"$nulls":7},{"$f":"IF(ISERROR($V1321),\"\",OFFSET('Smelter Look-up'!$C$4,$V1321-4,0)&\"\")","v":""},"",{"$f":"IF(B1321=\"\",\"\",IF(ISERROR(MATCH($J1321,SorP!$B$1:$B$5661,0)),\"\",INDIRECT(\"'SorP'!$A$\"&MATCH($J1321,SorP!$B$1:$B$5661,0))))","v":""},null,{"$f":"IF(C1321=\"\",NA(),MATCH($B1321&$C1321,'Smelter Look-up'!$J:$J,0))","v":{"$error":"#N/A"}},null,0,null,null,null,""]
[null,{"$f":"IF(LEN(A1322)=0,\"\",INDEX('Smelter Look-up'!$A:$A,MATCH($A1322,'Smelter Look-up'!$E:$E,0)))","v":""},{"$f":"IF(LEN(A1322)=0,\"\",INDEX('Smelter Look-up'!$C:$C,MATCH($A1322,'Smelter Look-up'!$E:$E,0)))","v":""},null,{"$f":"IF(ISERROR($V1322),\"\",OFFSET('Smelter Look-up'!$D$4,$V1322-4,0)&\"\")","v":""},{"$f":"IF(ISERROR($V1322),\"\",OFFSET('Smelter Look-up'!$E$4,$V1322-4,0))","v":""},{"$f":"IF(C1322=$X$4,\"Enter smelter details\",IF(ISERROR($V1322),\"\",OFFSET('Smelter Look-up'!$F$4,$V1322-4,0)))","v":""},{"$f":"IF(ISERROR($V1322),\"\",OFFSET('Smelter Look-up'!$G$4,$V1322-4,0))","v":""},{"$f":"IF(ISERROR($V1322),\"\",OFFSET('Smelter Look-up'!$H$4,$V1322-4,0))","v":""},{"$f":"IF(ISERROR($V1322),\"\",OFFSET('Smelter Look-up'!$I$4,$V1322-4,0))","v":""},{"$nulls":7},{"$f":"IF(ISERROR($V1322),\"\",OFFSET('Smelter Look-up'!$C$4,$V1322-4,0)&\"\")","v":""},"",{"$f":"IF(B1322=\"\",\"\",IF(ISERROR(MATCH($J1322,SorP!$B$1:$B$5661,0)),\"\",INDIRECT(\"'SorP'!$A$\"&MATCH($J1322,SorP!$B$1:$B$5661,0))))","v":""},null,{"$f":"IF(C1322=\"\",NA(),MATCH($B1322&$C1322,'Smelter Look-up'!$J:$J,0))","v":{"$error":"#N/A"}},null,0,null,null,null,""]
[null,{"$f":"IF(LEN(A1323)=0,\"\",INDEX('Smelter Look-up'!$A:$A,MATCH($A1323,'Smelter Look-up'!$E:$E,0)))","v":""},{"$f":"IF(LEN(A1323)=0,\"\",INDEX('Smelter Look-up'!$C:$C,MATCH($A1323,'Smelter Look-up'!$E:$E,0)))","v":""},null,{"$f":"IF(ISERROR($V1323),\"\",OFFSET('Smelter Look-up'!$D$4,$V1323-4,0)&\"\")","v":""},{"$f":"IF(ISERROR($V1323),\"\",OFFSET('Smelter Look-up'!$E$4,$V1323-4,0))","v":""},{"$f":"IF(C1323=$X$4,\"Enter smelter details\",IF(ISERROR($V1323),\"\",OFFSET('Smelter Look-up'!$F$4,$V1323-4,0)))","v":""},{"$f":"IF(ISERROR($V1323),\"\",OFFSET('Smelter Look-up'!$G$4,$V1323-4,0))","v":""},{"$f":"IF(ISERROR($V1323),\"\",OFFSET('Smelter Look-up'!$H$4,$V1323-4,0))","v":""},{"$f":"IF(ISERROR($V1323),\"\",OFFSET('Smelter Look-up'!$I$4,$V1323-4,0))","v":""},{"$nulls":7},{"$f":"IF(ISERROR($V1323),\"\",OFFSET('Smelter Look-up'!$C$4,$V1323-4,0)&\"\")","v":""},"",{"$f":"IF(B1323=\"\",\"\",IF(ISERROR(MATCH($J1323,SorP!$B$1:$B$5661,0)),\"\",INDIRECT(\"'SorP'!$A$\"&MATCH($J1323,SorP!$B$1:$B$5661,0))))","v":""},null,{"$f":"IF(C1323=\"\",NA(),MATCH($B1323&$C1323,'Smelter Look-up'!$J:$J,0))","v":{"$error":"#N/A"}},null,0,null,null,null,""]
[null,{"$f":"IF(LEN(A1324)=0,\"\",INDEX('Smelter Look-up'!$A:$A,MATCH($A1324,'Smelter Look-up'!$E:$E,0)))","v":""},{"$f":"IF(LEN(A1324)=0,\"\",INDEX('Smelter Look-up'!$C:$C,MATCH($A1324,'Smelter Look-up'!$E:$E,0)))","v":""},null,{"$f":"IF(ISERROR($V1324),\"\",OFFSET('Smelter Look-up'!$D$4,$V1324-4,0)&\"\")","v":""},{"$f":"IF(ISERROR($V1324),\"\",OFFSET('Smelter Look-up'!$E$4,$V1324-4,0))","v":""},{"$f":"IF(C1324=$X$4,\"Enter smelter details\",IF(ISERROR($V1324),\"\",OFFSET('Smelter Look-up'!$F$4,$V1324-4,0)))","v":""},{"$f":"IF(ISERROR($V1324),\"\",OFFSET('Smelter Look-up'!$G$4,$V1324-4,0))","v":""},{"$f":"IF(ISERROR($V1324),\"\",OFFSET('Smelter Look-up'!$H$4,$V1324-4,0))","v":""},{"$f":"IF(ISERROR($V1324),\"\",OFFSET('Smelter Look-up'!$I$4,$V1324-4,0))","v":""},{"$nulls":7},{"$f":"IF(ISERROR($V1324),\"\",OFFSET('Smelter Look-up'!$C$4,$V1324-4,0)&\"\")","v":""},"",{"$f":"IF(B1324=\"\",\"\",IF(ISERROR(MATCH($J1324,SorP!$B$1:$B$5661,0)),\"\",INDIRECT(\"'SorP'!$A$\"&MATCH($J1324,SorP!$B$1:$B$5661,0))))","v":""},null,{"$f":"IF(C1324=\"\",NA(),MATCH($B1324&$C1324,'Smelter Look-up'!$J:$J,0))","v":{"$error":"#N/A"}},null,0,null,null,null,""]
[null,{"$f":"IF(LEN(A1325)=0,\"\",INDEX('Smelter Look-up'!$A:$A,MATCH($A1325,'Smelter Look-up'!$E:$E,0)))","v":""},{"$f":"IF(LEN(A1325)=0,\"\",INDEX('Smelter Look-up'!$C:$C,MATCH($A1325,'Smelter Look-up'!$E:$E,0)))","v":""},null,{"$f":"IF(ISERROR($V1325),\"\",OFFSET('Smelter Look-up'!$D$4,$V1325-4,0)&\"\")","v":""},{"$f":"IF(ISERROR($V1325),\"\",OFFSET('Smelter Look-up'!$E$4,$V1325-4,0))","v":""},{"$f":"IF(C1325=$X$4,\"Enter smelter details\",IF(ISERROR($V1325),\"\",OFFSET('Smelter Look-up'!$F$4,$V1325-4,0)))","v":""},{"$f":"IF(ISERROR($V1325),\"\",OFFSET('Smelter Look-up'!$G$4,$V1325-4,0))","v":""},{"$f":"IF(ISERROR($V1325),\"\",OFFSET('Smelter Look-up'!$H$4,$V1325-4,0))","v":""},{"$f":"IF(ISERROR($V1325),\"\",OFFSET('Smelter Look-up'!$I$4,$V1325-4,0))","v":""},{"$nulls":7},{"$f":"IF(ISERROR($V1325),\"\",OFFSET('Smelter Look-up'!$C$4,$V1325-4,0)&\"\")","v":""},"",{"$f":"IF(B1325=\"\",\"\",IF(ISERROR(MATCH($J1325,SorP!$B$1:$B$5661,0)),\"\",INDIRECT(\"'SorP'!$A$\"&MATCH($J1325,SorP!$B$1:$B$5661,0))))","v":""},null,{"$f":"IF(C1325=\"\",NA(),MATCH($B1325&$C1325,'Smelter Look-up'!$J:$J,0))","v":{"$error":"#N/A"}},null,0,null,null,null,""]
[null,{"$f":"IF(LEN(A1326)=0,\"\",INDEX('Smelter Look-up'!$A:$A,MATCH($A1326,'Smelter Look-up'!$E:$E,0)))","v":""},{"$f":"IF(LEN(A1326)=0,\"\",INDEX('Smelter Look-up'!$C:$C,MATCH($A1326,'Smelter Look-up'!$E:$E,0)))","v":""},null,{"$f":"IF(ISERROR($V1326),\"\",OFFSET('Smelter Look-up'!$D$4,$V1326-4,0)&\"\")","v":""},{"$f":"IF(ISERROR($V1326),\"\",OFFSET('Smelter Look-up'!$E$4,$V1326-4,0))","v":""},{"$f":"IF(C1326=$X$4,\"Enter smelter details\",IF(ISERROR($V1326),\"\",OFFSET('Smelter Look-up'!$F$4,$V1326-4,0)))","v":""},{"$f":"IF(ISERROR($V1326),\"\",OFFSET('Smelter Look-up'!$G$4,$V1326-4,0))","v":""},{"$f":"IF(ISERROR($V1326),\"\",OFFSET('Smelter Look-up'!$H$4,$V1326-4,0))","v":""},{"$f":"IF(ISERROR($V1326),\"\",OFFSET('Smelter Look-up'!$I$4,$V1326-4,0))","v":""},{"$nulls":7},{"$f":"IF(ISERROR($V1326),\"\",OFFSET('Smelter Look-up'!$C$4,$V1326-4,0)&\"\")","v":""},"",{"$f":"IF(B1326=\"\",\"\",IF(ISERROR(MATCH($J1326,SorP!$B$1:$B$5661,0)),\"\",INDIRECT(\"'SorP'!$A$\"&MATCH($J1326,SorP!$B$1:$B$5661,0))))","v":""},null,{"$f":"IF(C1326=\"\",NA(),MATCH($B1326&$C1326,'Smelter Look-up'!$J:$J,0))","v":{"$error":"#N/A"}},null,0,null,null,null,""]
[null,{"$f":"IF(LEN(A1327)=0,\"\",INDEX('Smelter Look-up'!$A:$A,MATCH($A1327,'Smelter Look-up'!$E:$E,0)))","v":""},{"$f":"IF(LEN(A1327)=0,\"\",INDEX('Smelter Look-up'!$C:$C,MATCH($A1327,'Smelter Look-up'!$E:$E,0)))","v":""},null,{"$f":"IF(ISERROR($V1327),\"\",OFFSET('Smelter Look-up'!$D$4,$V1327-4,0)&\"\")","v":""},{"$f":"IF(ISERROR($V1327),\"\",OFFSET('Smelter Look-up'!$E$4,$V1327-4,0))","v":""},{"$f":"IF(C1327=$X$4,\"Enter smelter details\",IF(ISERROR($V1327),\"\",OFFSET('Smelter Look-up'!$F$4,$V1327-4,0)))","v":""},{"$f":"IF(ISERROR($V1327),\"\",OFFSET('Smelter Look-up'!$G$4,$V1327-4,0))","v":""},{"$f":"IF(ISERROR($V1327),\"\",OFFSET('Smelter Look-up'!$H$4,$V1327-4,0))","v":""},{"$f":"IF(ISERROR($V1327),\"\",OFFSET('Smelter Look-up'!$I$4,$V1327-4,0))","v":""},{"$nulls":7},{"$f":"IF(ISERROR($V1327),\"\",OFFSET('Smelter Look-up'!$C$4,$V1327-4,0)&\"\")","v":""},"",{"$f":"IF(B1327=\"\",\"\",IF(ISERROR(MATCH($J1327,SorP!$B$1:$B$5661,0)),\"\",INDIRECT(\"'SorP'!$A$\"&MATCH($J1327,SorP!$B$1:$B$5661,0))))","v":""},null,{"$f":"IF(C1327=\"\",NA(),MATCH($B1327&$C1327,'Smelter Look-up'!$J:$J,0))","v":{"$error":"#N/A"}},null,0,null,null,null,""]
[null,{"$f":"IF(LEN(A1328)=0,\"\",INDEX('Smelter Look-up'!$A:$A,MATCH($A1328,'Smelter Look-up'!$E:$E,0)))","v":""},{"$f":"IF(LEN(A1328)=0,\"\",INDEX('Smelter Look-up'!$C:$C,MATCH($A1328,'Smelter Look-up'!$E:$E,0)))","v":""},null,{"$f":"IF(ISERROR($V1328),\"\",OFFSET('Smelter Look-up'!$D$4,$V1328-4,0)&\"\")","v":""},{"$f":"IF(ISERROR($V1328),\"\",OFFSET('Smelter Look-up'!$E$4,$V1328-4,0))","v":""},{"$f":"IF(C1328=$X$4,\"Enter smelter details\",IF(ISERROR($V1328),\"\",OFFSET('Smelter Look-up'!$F$4,$V1328-4,0)))","v":""},{"$f":"IF(ISERROR($V1328),\"\",OFFSET('Smelter Look-up'!$G$4,$V1328-4,0))","v":""},{"$f":"IF(ISERROR($V1328),\"\",OFFSET('Smelter Look-up'!$H$4,$V1328-4,0))","v":""},{"$f":"IF(ISERROR($V1328),\"\",OFFSET('Smelter Look-up'!$I$4,$V1328-4,0))","v":""},{"$nulls":7},{"$f":"IF(ISERROR($V1328),\"\",OFFSET('Smelter Look-up'!$C$4,$V1328-4,0)&\"\")","v":""},"",{"$f":"IF(B1328=\"\",\"\",IF(ISERROR(MATCH($J1328,SorP!$B$1:$B$5661,0)),\"\",INDIRECT(\"'SorP'!$A$\"&MATCH($J1328,SorP!$B$1:$B$5661,0))))","v":""},null,{"$f":"IF(C1328=\"\",NA(),MATCH($B1328&$C1328,'Smelter Look-up'!$J:$J,0))","v":{"$error":"#N/A"}},null,0,null,null,null,""]
[null,{"$f":"IF(LEN(A1329)=0,\"\",INDEX('Smelter Look-up'!$A:$A,MATCH($A1329,'Smelter Look-up'!$E:$E,0)))","v":""},{"$f":"IF(LEN(A1329)=0,\"\",INDEX('Smelter Look-up'!$C:$C,MATCH($A1329,'Smelter Look-up'!$E:$E,0)))","v":""},null,{"$f":"IF(ISERROR($V1329),\"\",OFFSET('Smelter Look-up'!$D$4,$V1329-4,0)&\"\")","v":""},{"$f":"IF(ISERROR($V1329),\"\",OFFSET('Smelter Look-up'!$E$4,$V1329-4,0))","v":""},{"$f":"IF(C1329=$X$4,\"Enter smelter details\",IF(ISERROR($V1329),\"\",OFFSET('Smelter Look-up'!$F$4,$V1329-4,0)))","v":""},{"$f":"IF(ISERROR($V1329),\"\",OFFSET('Smelter Look-up'!$G$4,$V1329-4,0))","v":""},{"$f":"IF(ISERROR($V1329),\"\",OFFSET('Smelter Look-up'!$H$4,$V1329-4,0))","v":""},{"$f":"IF(ISERROR($V1329),\"\",OFFSET('Smelter Look-up'!$I$4,$V1329-4,0))","v":""},{"$nulls":7},{"$f":"IF(ISERROR($V1329),\"\",OFFSET('Smelter Look-up'!$C$4,$V1329-4,0)&\"\")","v":""},"",{"$f":"IF(B1329=\"\",\"\",IF(ISERROR(MATCH($J1329,SorP!$B$1:$B$5661,0)),\"\",INDIRECT(\"'SorP'!$A$\"&MATCH($J1329,SorP!$B$1:$B$5661,0))))","v":""},null,{"$f":"IF(C1329=\"\",NA(),MATCH($B1329&$C1329,'Smelter Look-up'!$J:$J,0))","v":{"$error":"#N/A"}},null,0,null,null,null,""]
[null,{"$f":"IF(LEN(A1330)=0,\"\",INDEX('Smelter Look-up'!$A:$A,MATCH($A1330,'Smelter Look-up'!$E:$E,0)))","v":""},{"$f":"IF(LEN(A1330)=0,\"\",INDEX('Smelter Look-up'!$C:$C,MATCH($A1330,'Smelter Look-up'!$E:$E,0)))","v":""},null,{"$f":"IF(ISERROR($V1330),\"\",OFFSET('Smelter Look-up'!$D$4,$V1330-4,0)&\"\")","v":""},{"$f":"IF(ISERROR($V1330),\"\",OFFSET('Smelter Look-up'!$E$4,$V1330-4,0))","v":""},{"$f":"IF(C1330=$X$4,\"Enter smelter details\",IF(ISERROR($V1330),\"\",OFFSET('Smelter Look-up'!$F$4,$V1330-4,0)))","v":""},{"$f":"IF(ISERROR($V1330),\"\",OFFSET('Smelter Look-up'!$G$4,$V1330-4,0))","v":""},{"$f":"IF(ISERROR($V1330),\"\",OFFSET('Smelter Look-up'!$H$4,$V1330-4,0))","v":""},{"$f":"IF(ISERROR($V1330),\"\",OFFSET('Smelter Look-up'!$I$4,$V1330-4,0))","v":""},{"$nulls":7},{"$f":"IF(ISERROR($V1330),\"\",OFFSET('Smelter Look-up'!$C$4,$V1330-4,0)&\"\")","v":""},"",{"$f":"IF(B1330=\"\",\"\",IF(ISERROR(MATCH($J1330,SorP!$B$1:$B$5661,0)),\"\",INDIRECT(\"'SorP'!$A$\"&MATCH($J1330,SorP!$B$1:$B$5661,0))))","v":""},null,{"$f":"IF(C1330=\"\",NA(),MATCH($B1330&$C1330,'Smelter Look-up'!$J:$J,0))","v":{"$error":"#N/A"}},null,0,null,null,null,""]
[null,{"$f":"IF(LEN(A1331)=0,\"\",INDEX('Smelter Look-up'!$A:$A,MATCH($A1331,'Smelter Look-up'!$E:$E,0)))","v":""},{"$f":"IF(LEN(A1331)=0,\"\",INDEX('Smelter Look-up'!$C:$C,MATCH($A1331,'Smelter Look-up'!$E:$E,0)))","v":""},null,{"$f":"IF(ISERROR($V1331),\"\",OFFSET('Smelter Look-up'!$D$4,$V1331-4,0)&\"\")","v":""},{"$f":"IF(ISERROR($V1331),\"\",OFFSET('Smelter Look-up'!$E$4,$V1331-4,0))","v":""},{"$f":"IF(C1331=$X$4,\"Enter smelter details\",IF(ISERROR($V1331),\"\",OFFSET('Smelter Look-up'!$F$4,$V1331-4,0)))","v":""},{"$f":"IF(ISERROR($V1331),\"\",OFFSET('Smelter Look-up'!$G$4,$V1331-4,0))","v":""},{"$f":"IF(ISERROR($V1331),\"\",OFFSET('Smelter Look-up'!$H$4,$V1331-4,0))","v":""},{"$f":"IF(ISERROR($V1331),\"\",OFFSET('Smelter Look-up'!$I$4,$V1331-4,0))","v":""},{"$nulls":7},{"$f":"IF(ISERROR($V1331),\"\",OFFSET('Smelter Look-up'!$C$4,$V1331-4,0)&\"\")","v":""},"",{"$f":"IF(B1331=\"\",\"\",IF(ISERROR(MATCH($J1331,SorP!$B$1:$B$5661,0)),\"\",INDIRECT(\"'SorP'!$A$\"&MATCH($J1331,SorP!$B$1:$B$5661,0))))","v":""},null,{"$f":"IF(C1331=\"\",NA(),MATCH($B1331&$C1331,'Smelter Look-up'!$J:$J,0))","v":{"$error":"#N/A"}},null,0,null,null,null,""]
[null,{"$f":"IF(LEN(A1332)=0,\"\",INDEX('Smelter Look-up'!$A:$A,MATCH($A1332,'Smelter Look-up'!$E:$E,0)))","v":""},{"$f":"IF(LEN(A1332)=0,\"\",INDEX('Smelter Look-up'!$C:$C,MATCH($A1332,'Smelter Look-up'!$E:$E,0)))","v":""},null,{"$f":"IF(ISERROR($V1332),\"\",OFFSET('Smelter Look-up'!$D$4,$V1332-4,0)&\"\")","v":""},{"$f":"IF(ISERROR($V1332),\"\",OFFSET('Smelter Look-up'!$E$4,$V1332-4,0))","v":""},{"$f":"IF(C1332=$X$4,\"Enter smelter details\",IF(ISERROR($V1332),\"\",OFFSET('Smelter Look-up'!$F$4,$V1332-4,0)))","v":""},{"$f":"IF(ISERROR($V1332),\"\",OFFSET('Smelter Look-up'!$G$4,$V1332-4,0))","v":""},{"$f":"IF(ISERROR($V1332),\"\",OFFSET('Smelter Look-up'!$H$4,$V1332-4,0))","v":""},{"$f":"IF(ISERROR($V1332),\"\",OFFSET('Smelter Look-up'!$I$4,$V1332-4,0))","v":""},{"$nulls":7},{"$f":"IF(ISERROR($V1332),\"\",OFFSET('Smelter Look-up'!$C$4,$V1332-4,0)&\"\")","v":""},"",{"$f":"IF(B1332=\"\",\"\",IF(ISERROR(MATCH($J1332,SorP!$B$1:$B$5661,0)),\"\",INDIRECT(\"'SorP'!$A$\"&MATCH($J1332,SorP!$B$1:$B$5661,0))))","v":""},null,{"$f":"IF(C1332=\"\",NA(),MATCH($B1332&$C1332,'Smelter Look-up'!$J:$J,0))","v":{"$error":"#N/A"}},null,0,null,null,null,""]
[null,{"$f":"IF(LEN(A1333)=0,\"\",INDEX('Smelter Look-up'!$A:$A,MATCH($A1333,'Smelter Look-up'!$E:$E,0)))","v":""},{"$f":"IF(LEN(A1333)=0,\"\",INDEX('Smelter Look-up'!$C:$C,MATCH($A1333,'Smelter Look-up'!$E:$E,0)))","v":""},null,{"$f":"IF(ISERROR($V1333),\"\",OFFSET('Smelter Look-up'!$D$4,$V1333-4,0)&\"\")","v":""},{"$f":"IF(ISERROR($V1333),\"\",OFFSET('Smelter Look-up'!$E$4,$V1333-4,0))","v":""},{"$f":"IF(C1333=$X$4,\"Enter smelter details\",IF(ISERROR($V1333),\"\",OFFSET('Smelter Look-up'!$F$4,$V1333-4,0)))","v":""},{"$f":"IF(ISERROR($V1333),\"\",OFFSET('Smelter Look-up'!$G$4,$V1333-4,0))","v":""},{"$f":"IF(ISERROR($V1333),\"\",OFFSET('Smelter Look-up'!$H$4,$V1333-4,0))","v":""},{"$f":"IF(ISERROR($V1333),\"\",OFFSET('Smelter Look-up'!$I$4,$V1333-4,0))","v":""},{"$nulls":7},{"$f":"IF(ISERROR($V1333),\"\",OFFSET('Smelter Look-up'!$C$4,$V1333-4,0)&\"\")","v":""},"",{"$f":"IF(B1333=\"\",\"\",IF(ISERROR(MATCH($J1333,SorP!$B$1:$B$5661,0)),\"\",INDIRECT(\"'SorP'!$A$\"&MATCH($J1333,SorP!$B$1:$B$5661,0))))","v":""},null,{"$f":"IF(C1333=\"\",NA(),MATCH($B1333&$C1333,'Smelter Look-up'!$J:$J,0))","v":{"$error":"#N/A"}},null,0,null,null,null,""]
[null,{"$f":"IF(LEN(A1334)=0,\"\",INDEX('Smelter Look-up'!$A:$A,MATCH($A1334,'Smelter Look-up'!$E:$E,0)))","v":""},{"$f":"IF(LEN(A1334)=0,\"\",INDEX('Smelter Look-up'!$C:$C,MATCH($A1334,'Smelter Look-up'!$E:$E,0)))","v":""},null,{"$f":"IF(ISERROR($V1334),\"\",OFFSET('Smelter Look-up'!$D$4,$V1334-4,0)&\"\")","v":""},{"$f":"IF(ISERROR($V1334),\"\",OFFSET('Smelter Look-up'!$E$4,$V1334-4,0))","v":""},{"$f":"IF(C1334=$X$4,\"Enter smelter details\",IF(ISERROR($V1334),\"\",OFFSET('Smelter Look-up'!$F$4,$V1334-4,0)))","v":""},{"$f":"IF(ISERROR($V1334),\"\",OFFSET('Smelter Look-up'!$G$4,$V1334-4,0))","v":""},{"$f":"IF(ISERROR($V1334),\"\",OFFSET('Smelter Look-up'!$H$4,$V1334-4,0))","v":""},{"$f":"IF(ISERROR($V1334),\"\",OFFSET('Smelter Look-up'!$I$4,$V1334-4,0))","v":""},{"$nulls":7},{"$f":"IF(ISERROR($V1334),\"\",OFFSET('Smelter Look-up'!$C$4,$V1334-4,0)&\"\")","v":""},"",{"$f":"IF(B1334=\"\",\"\",IF(ISERROR(MATCH($J1334,SorP!$B$1:$B$5661,0)),\"\",INDIRECT(\"'SorP'!$A$\"&MATCH($J1334,SorP!$B$1:$B$5661,0))))","v":""},null,{"$f":"IF(C1334=\"\",NA(),MATCH($B1334&$C1334,'Smelter Look-up'!$J:$J,0))","v":{"$error":"#N/A"}},null,0,null,null,null,""]
[null,{"$f":"IF(LEN(A1335)=0,\"\",INDEX('Smelter Look-up'!$A:$A,MATCH($A1335,'Smelter Look-up'!$E:$E,0)))","v":""},{"$f":"IF(LEN(A1335)=0,\"\",INDEX('Smelter Look-up'!$C:$C,MATCH($A1335,'Smelter Look-up'!$E:$E,0)))","v":""},null,{"$f":"IF(ISERROR($V1335),\"\",OFFSET('Smelter Look-up'!$D$4,$V1335-4,0)&\"\")","v":""},{"$f":"IF(ISERROR($V1335),\"\",OFFSET('Smelter Look-up'!$E$4,$V1335-4,0))","v":""},{"$f":"IF(C1335=$X$4,\"Enter smelter details\",IF(ISERROR($V1335),\"\",OFFSET('Smelter Look-up'!$F$4,$V1335-4,0)))","v":""},{"$f":"IF(ISERROR($V1335),\"\",OFFSET('Smelter Look-up'!$G$4,$V1335-4,0))","v":""},{"$f":"IF(ISERROR($V1335),\"\",OFFSET('Smelter Look-up'!$H$4,$V1335-4,0))","v":""},{"$f":"IF(ISERROR($V1335),\"\",OFFSET('Smelter Look-up'!$I$4,$V1335-4,0))","v":""},{"$nulls":7},{"$f":"IF(ISERROR($V1335),\"\",OFFSET('Smelter Look-up'!$C$4,$V1335-4,0)&\"\")","v":""},"",{"$f":"IF(B1335=\"\",\"\",IF(ISERROR(MATCH($J1335,SorP!$B$1:$B$5661,0)),\"\",INDIRECT(\"'SorP'!$A$\"&MATCH($J1335,SorP!$B$1:$B$5661,0))))","v":""},null,{"$f":"IF(C1335=\"\",NA(),MATCH($B1335&$C1335,'Smelter Look-up'!$J:$J,0))","v":{"$error":"#N/A"}},null,0,null,null,null,""]
[null,{"$f":"IF(LEN(A1336)=0,\"\",INDEX('Smelter Look-up'!$A:$A,MATCH($A1336,'Smelter Look-up'!$E:$E,0)))","v":""},{"$f":"IF(LEN(A1336)=0,\"\",INDEX('Smelter Look-up'!$C:$C,MATCH($A1336,'Smelter Look-up'!$E:$E,0)))","v":""},null,{"$f":"IF(ISERROR($V1336),\"\",OFFSET('Smelter Look-up'!$D$4,$V1336-4,0)&\"\")","v":""},{"$f":"IF(ISERROR($V1336),\"\",OFFSET('Smelter Look-up'!$E$4,$V1336-4,0))","v":""},{"$f":"IF(C1336=$X$4,\"Enter smelter details\",IF(ISERROR($V1336),\"\",OFFSET('Smelter Look-up'!$F$4,$V1336-4,0)))","v":""},{"$f":"IF(ISERROR($V1336),\"\",OFFSET('Smelter Look-up'!$G$4,$V1336-4,0))","v":""},{"$f":"IF(ISERROR($V1336),\"\",OFFSET('Smelter Look-up'!$H$4,$V1336-4,0))","v":""},{"$f":"IF(ISERROR($V1336),\"\",OFFSET('Smelter Look-up'!$I$4,$V1336-4,0))","v":""},{"$nulls":7},{"$f":"IF(ISERROR($V1336),\"\",OFFSET('Smelter Look-up'!$C$4,$V1336-4,0)&\"\")","v":""},"",{"$f":"IF(B1336=\"\",\"\",IF(ISERROR(MATCH($J1336,SorP!$B$1:$B$5661,0)),\"\",INDIRECT(\"'SorP'!$A$\"&MATCH($J1336,SorP!$B$1:$B$5661,0))))","v":""},null,{"$f":"IF(C1336=\"\",NA(),MATCH($B1336&$C1336,'Smelter Look-up'!$J:$J,0))","v":{"$error":"#N/A"}},null,0,null,null,null,""]
[null,{"$f":"IF(LEN(A1337)=0,\"\",INDEX('Smelter Look-up'!$A:$A,MATCH($A1337,'Smelter Look-up'!$E:$E,0)))","v":""},{"$f":"IF(LEN(A1337)=0,\"\",INDEX('Smelter Look-up'!$C:$C,MATCH($A1337,'Smelter Look-up'!$E:$E,0)))","v":""},null,{"$f":"IF(ISERROR($V1337),\"\",OFFSET('Smelter Look-up'!$D$4,$V1337-4,0)&\"\")","v":""},{"$f":"IF(ISERROR($V1337),\"\",OFFSET('Smelter Look-up'!$E$4,$V1337-4,0))","v":""},{"$f":"IF(C1337=$X$4,\"Enter smelter details\",IF(ISERROR($V1337),\"\",OFFSET('Smelter Look-up'!$F$4,$V1337-4,0)))","v":""},{"$f":"IF(ISERROR($V1337),\"\",OFFSET('Smelter Look-up'!$G$4,$V1337-4,0))","v":""},{"$f":"IF(ISERROR($V1337),\"\",OFFSET('Smelter Look-up'!$H$4,$V1337-4,0))","v":""},{"$f":"IF(ISERROR($V1337),\"\",OFFSET('Smelter Look-up'!$I$4,$V1337-4,0))","v":""},{"$nulls":7},{"$f":"IF(ISERROR($V1337),\"\",OFFSET('Smelter Look-up'!$C$4,$V1337-4,0)&\"\")","v":""},"",{"$f":"IF(B1337=\"\",\"\",IF(ISERROR(MATCH($J1337,SorP!$B$1:$B$5661,0)),\"\",INDIRECT(\"'SorP'!$A$\"&MATCH($J1337,SorP!$B$1:$B$5661,0))))","v":""},null,{"$f":"IF(C1337=\"\",NA(),MATCH($B1337&$C1337,'Smelter Look-up'!$J:$J,0))","v":{"$error":"#N/A"}},null,0,null,null,null,""]
[null,{"$f":"IF(LEN(A1338)=0,\"\",INDEX('Smelter Look-up'!$A:$A,MATCH($A1338,'Smelter Look-up'!$E:$E,0)))","v":""},{"$f":"IF(LEN(A1338)=0,\"\",INDEX('Smelter Look-up'!$C:$C,MATCH($A1338,'Smelter Look-up'!$E:$E,0)))","v":""},null,{"$f":"IF(ISERROR($V1338),\"\",OFFSET('Smelter Look-up'!$D$4,$V1338-4,0)&\"\")","v":""},{"$f":"IF(ISERROR($V1338),\"\",OFFSET('Smelter Look-up'!$E$4,$V1338-4,0))","v":""},{"$f":"IF(C1338=$X$4,\"Enter smelter details\",IF(ISERROR($V1338),\"\",OFFSET('Smelter Look-up'!$F$4,$V1338-4,0)))","v":""},{"$f":"IF(ISERROR($V1338),\"\",OFFSET('Smelter Look-up'!$G$4,$V1338-4,0))","v":""},{"$f":"IF(ISERROR($V1338),\"\",OFFSET('Smelter Look-up'!$H$4,$V1338-4,0))","v":""},{"$f":"IF(ISERROR($V1338),\"\",OFFSET('Smelter Look-up'!$I$4,$V1338-4,0))","v":""},{"$nulls":7},{"$f":"IF(ISERROR($V1338),\"\",OFFSET('Smelter Look-up'!$C$4,$V1338-4,0)&\"\")","v":""},"",{"$f":"IF(B1338=\"\",\"\",IF(ISERROR(MATCH($J1338,SorP!$B$1:$B$5661,0)),\"\",INDIRECT(\"'SorP'!$A$\"&MATCH($J1338,SorP!$B$1:$B$5661,0))))","v":""},null,{"$f":"IF(C1338=\"\",NA(),MATCH($B1338&$C1338,'Smelter Look-up'!$J:$J,0))","v":{"$error":"#N/A"}},null,0,null,null,null,""]
[null,{"$f":"IF(LEN(A1339)=0,\"\",INDEX('Smelter Look-up'!$A:$A,MATCH($A1339,'Smelter Look-up'!$E:$E,0)))","v":""},{"$f":"IF(LEN(A1339)=0,\"\",INDEX('Smelter Look-up'!$C:$C,MATCH($A1339,'Smelter Look-up'!$E:$E,0)))","v":""},null,{"$f":"IF(ISERROR($V1339),\"\",OFFSET('Smelter Look-up'!$D$4,$V1339-4,0)&\"\")","v":""},{"$f":"IF(ISERROR($V1339),\"\",OFFSET('Smelter Look-up'!$E$4,$V1339-4,0))","v":""},{"$f":"IF(C1339=$X$4,\"Enter smelter details\",IF(ISERROR($V1339),\"\",OFFSET('Smelter Look-up'!$F$4,$V1339-4,0)))","v":""},{"$f":"IF(ISERROR($V1339),\"\",OFFSET('Smelter Look-up'!$G$4,$V1339-4,0))","v":""},{"$f":"IF(ISERROR($V1339),\"\",OFFSET('Smelter Look-up'!$H$4,$V1339-4,0))","v":""},{"$f":"IF(ISERROR($V1339),\"\",OFFSET('Smelter Look-up'!$I$4,$V1339-4,0))","v":""},{"$nulls":7},{"$f":"IF(ISERROR($V1339),\"\",OFFSET('Smelter Look-up'!$C$4,$V1339-4,0)&\"\")","v":""},"",{"$f":"IF(B1339=\"\",\"\",IF(ISERROR(MATCH($J1339,SorP!$B$1:$B$5661,0)),\"\",INDIRECT(\"'SorP'!$A$\"&MATCH($J1339,SorP!$B$1:$B$5661,0))))","v":""},null,{"$f":"IF(C1339=\"\",NA(),MATCH($B1339&$C1339,'Smelter Look-up'!$J:$J,0))","v":{"$error":"#N/A"}},null,0,null,null,null,""]
[null,{"$f":"IF(LEN(A1340)=0,\"\",INDEX('Smelter Look-up'!$A:$A,MATCH($A1340,'Smelter Look-up'!$E:$E,0)))","v":""},{"$f":"IF(LEN(A1340)=0,\"\",INDEX('Smelter Look-up'!$C:$C,MATCH($A1340,'Smelter Look-up'!$E:$E,0)))","v":""},null,{"$f":"IF(ISERROR($V1340),\"\",OFFSET('Smelter Look-up'!$D$4,$V1340-4,0)&\"\")","v":""},{"$f":"IF(ISERROR($V1340),\"\",OFFSET('Smelter Look-up'!$E$4,$V1340-4,0))","v":""},{"$f":"IF(C1340=$X$4,\"Enter smelter details\",IF(ISERROR($V1340),\"\",OFFSET('Smelter Look-up'!$F$4,$V1340-4,0)))","v":""},{"$f":"IF(ISERROR($V1340),\"\",OFFSET('Smelter Look-up'!$G$4,$V1340-4,0))","v":""},{"$f":"IF(ISERROR($V1340),\"\",OFFSET('Smelter Look-up'!$H$4,$V1340-4,0))","v":""},{"$f":"IF(ISERROR($V1340),\"\",OFFSET('Smelter Look-up'!$I$4,$V1340-4,0))","v":""},{"$nulls":7},{"$f":"IF(ISERROR($V1340),\"\",OFFSET('Smelter Look-up'!$C$4,$V1340-4,0)&\"\")","v":""},"",{"$f":"IF(B1340=\"\",\"\",IF(ISERROR(MATCH($J1340,SorP!$B$1:$B$5661,0)),\"\",INDIRECT(\"'SorP'!$A$\"&MATCH($J1340,SorP!$B$1:$B$5661,0))))","v":""},null,{"$f":"IF(C1340=\"\",NA(),MATCH($B1340&$C1340,'Smelter Look-up'!$J:$J,0))","v":{"$error":"#N/A"}},null,0,null,null,null,""]
[null,{"$f":"IF(LEN(A1341)=0,\"\",INDEX('Smelter Look-up'!$A:$A,MATCH($A1341,'Smelter Look-up'!$E:$E,0)))","v":""},{"$f":"IF(LEN(A1341)=0,\"\",INDEX('Smelter Look-up'!$C:$C,MATCH($A1341,'Smelter Look-up'!$E:$E,0)))","v":""},null,{"$f":"IF(ISERROR($V1341),\"\",OFFSET('Smelter Look-up'!$D$4,$V1341-4,0)&\"\")","v":""},{"$f":"IF(ISERROR($V1341),\"\",OFFSET('Smelter Look-up'!$E$4,$V1341-4,0))","v":""},{"$f":"IF(C1341=$X$4,\"Enter smelter details\",IF(ISERROR($V1341),\"\",OFFSET('Smelter Look-up'!$F$4,$V1341-4,0)))","v":""},{"$f":"IF(ISERROR($V1341),\"\",OFFSET('Smelter Look-up'!$G$4,$V1341-4,0))","v":""},{"$f":"IF(ISERROR($V1341),\"\",OFFSET('Smelter Look-up'!$H$4,$V1341-4,0))","v":""},{"$f":"IF(ISERROR($V1341),\"\",OFFSET('Smelter Look-up'!$I$4,$V1341-4,0))","v":""},{"$nulls":7},{"$f":"IF(ISERROR($V1341),\"\",OFFSET('Smelter Look-up'!$C$4,$V1341-4,0)&\"\")","v":""},"",{"$f":"IF(B1341=\"\",\"\",IF(ISERROR(MATCH($J1341,SorP!$B$1:$B$5661,0)),\"\",INDIRECT(\"'SorP'!$A$\"&MATCH($J1341,SorP!$B$1:$B$5661,0))))","v":""},null,{"$f":"IF(C1341=\"\",NA(),MATCH($B1341&$C1341,'Smelter Look-up'!$J:$J,0))","v":{"$error":"#N/A"}},null,0,null,null,null,""]
[null,{"$f":"IF(LEN(A1342)=0,\"\",INDEX('Smelter Look-up'!$A:$A,MATCH($A1342,'Smelter Look-up'!$E:$E,0)))","v":""},{"$f":"IF(LEN(A1342)=0,\"\",INDEX('Smelter Look-up'!$C:$C,MATCH($A1342,'Smelter Look-up'!$E:$E,0)))","v":""},null,{"$f":"IF(ISERROR($V1342),\"\",OFFSET('Smelter Look-up'!$D$4,$V1342-4,0)&\"\")","v":""},{"$f":"IF(ISERROR($V1342),\"\",OFFSET('Smelter Look-up'!$E$4,$V1342-4,0))","v":""},{"$f":"IF(C1342=$X$4,\"Enter smelter details\",IF(ISERROR($V1342),\"\",OFFSET('Smelter Look-up'!$F$4,$V1342-4,0)))","v":""},{"$f":"IF(ISERROR($V1342),\"\",OFFSET('Smelter Look-up'!$G$4,$V1342-4,0))","v":""},{"$f":"IF(ISERROR($V1342),\"\",OFFSET('Smelter Look-up'!$H$4,$V1342-4,0))","v":""},{"$f":"IF(ISERROR($V1342),\"\",OFFSET('Smelter Look-up'!$I$4,$V1342-4,0))","v":""},{"$nulls":7},{"$f":"IF(ISERROR($V1342),\"\",OFFSET('Smelter Look-up'!$C$4,$V1342-4,0)&\"\")","v":""},"",{"$f":"IF(B1342=\"\",\"\",IF(ISERROR(MATCH($J1342,SorP!$B$1:$B$5661,0)),\"\",INDIRECT(\"'SorP'!$A$\"&MATCH($J1342,SorP!$B$1:$B$5661,0))))","v":""},null,{"$f":"IF(C1342=\"\",NA(),MATCH($B1342&$C1342,'Smelter Look-up'!$J:$J,0))","v":{"$error":"#N/A"}},null,0,null,null,null,""]
[null,{"$f":"IF(LEN(A1343)=0,\"\",INDEX('Smelter Look-up'!$A:$A,MATCH($A1343,'Smelter Look-up'!$E:$E,0)))","v":""},{"$f":"IF(LEN(A1343)=0,\"\",INDEX('Smelter Look-up'!$C:$C,MATCH($A1343,'Smelter Look-up'!$E:$E,0)))","v":""},null,{"$f":"IF(ISERROR($V1343),\"\",OFFSET('Smelter Look-up'!$D$4,$V1343-4,0)&\"\")","v":""},{"$f":"IF(ISERROR($V1343),\"\",OFFSET('Smelter Look-up'!$E$4,$V1343-4,0))","v":""},{"$f":"IF(C1343=$X$4,\"Enter smelter details\",IF(ISERROR($V1343),\"\",OFFSET('Smelter Look-up'!$F$4,$V1343-4,0)))","v":""},{"$f":"IF(ISERROR($V1343),\"\",OFFSET('Smelter Look-up'!$G$4,$V1343-4,0))","v":""},{"$f":"IF(ISERROR($V1343),\"\",OFFSET('Smelter Look-up'!$H$4,$V1343-4,0))","v":""},{"$f":"IF(ISERROR($V1343),\"\",OFFSET('Smelter Look-up'!$I$4,$V1343-4,0))","v":""},{"$nulls":7},{"$f":"IF(ISERROR($V1343),\"\",OFFSET('Smelter Look-up'!$C$4,$V1343-4,0)&\"\")","v":""},"",{"$f":"IF(B1343=\"\",\"\",IF(ISERROR(MATCH($J1343,SorP!$B$1:$B$5661,0)),\"\",INDIRECT(\"'SorP'!$A$\"&MATCH($J1343,SorP!$B$1:$B$5661,0))))","v":""},null,{"$f":"IF(C1343=\"\",NA(),MATCH($B1343&$C1343,'Smelter Look-up'!$J:$J,0))","v":{"$error":"#N/A"}},null,{"$f":"IF(AND(C1343=\"Smelter not listed\",OR(LEN(D1343)=0,LEN(E1343)=0)),1,0)","v":0},null,null,null,{"$f":"B1343&C1343","v":""}]
[null,{"$f":"IF(LEN(A1344)=0,\"\",INDEX('Smelter Look-up'!$A:$A,MATCH($A1344,'Smelter Look-up'!$E:$E,0)))","v":""},{"$f":"IF(LEN(A1344)=0,\"\",INDEX('Smelter Look-up'!$C:$C,MATCH($A1344,'Smelter Look-up'!$E:$E,0)))","v":""},null,{"$f":"IF(ISERROR($V1344),\"\",OFFSET('Smelter Look-up'!$D$4,$V1344-4,0)&\"\")","v":""},{"$f":"IF(ISERROR($V1344),\"\",OFFSET('Smelter Look-up'!$E$4,$V1344-4,0))","v":""},{"$f":"IF(C1344=$X$4,\"Enter smelter details\",IF(ISERROR($V1344),\"\",OFFSET('Smelter Look-up'!$F$4,$V1344-4,0)))","v":""},{"$f":"IF(ISERROR($V1344),\"\",OFFSET('Smelter Look-up'!$G$4,$V1344-4,0))","v":""},{"$f":"IF(ISERROR($V1344),\"\",OFFSET('Smelter Look-up'!$H$4,$V1344-4,0))","v":""},{"$f":"IF(ISERROR($V1344),\"\",OFFSET('Smelter Look-up'!$I$4,$V1344-4,0))","v":""},{"$nulls":7},{"$f":"IF(ISERROR($V1344),\"\",OFFSET('Smelter Look-up'!$C$4,$V1344-4,0)&\"\")","v":""},{"$f":"IF(B1344=\"\",\"\",IF(ISERROR(MATCH($E1344,CL,0)),\"Unknown\",INDIRECT(\"'C'!$A$\"&MATCH($E1344,CL,0)+1)))","v":""},{"$f":"IF(B1344=\"\",\"\",IF(ISERROR(MATCH($J1344,SorP!$B$1:$B$5661,0)),\"\",INDIRECT(\"'SorP'!$A$\"&MATCH($J1344,SorP!$B$1:$B$5661,0))))","v":""},null,{"$f":"IF(C1344=\"\",NA(),MATCH($B1344&$C1344,'Smelter Look-up'!$J:$J,0))","v":{"$error":"#N/A"}},null,0,null,null,null,""]
[null,{"$f":"IF(LEN(A1345)=0,\"\",INDEX('Smelter Look-up'!$A:$A,MATCH($A1345,'Smelter Look-up'!$E:$E,0)))","v":""},{"$f":"IF(LEN(A1345)=0,\"\",INDEX('Smelter Look-up'!$C:$C,MATCH($A1345,'Smelter Look-up'!$E:$E,0)))","v":""},null,{"$f":"IF(ISERROR($V1345),\"\",OFFSET('Smelter Look-up'!$D$4,$V1345-4,0)&\"\")","v":""},{"$f":"IF(ISERROR($V1345),\"\",OFFSET('Smelter Look-up'!$E$4,$V1345-4,0))","v":""},{"$f":"IF(C1345=$X$4,\"Enter smelter details\",IF(ISERROR($V1345),\"\",OFFSET('Smelter Look-up'!$F$4,$V1345-4,0)))","v":""},{"$f":"IF(ISERROR($V1345),\"\",OFFSET('Smelter Look-up'!$G$4,$V1345-4,0))","v":""},{"$f":"IF(ISERROR($V1345),\"\",OFFSET('Smelter Look-up'!$H$4,$V1345-4,0))","v":""},{"$f":"IF(ISERROR($V1345),\"\",OFFSET('Smelter Look-up'!$I$4,$V1345-4,0))","v":""},{"$nulls":7},{"$f":"IF(ISERROR($V1345),\"\",OFFSET('Smelter Look-up'!$C$4,$V1345-4,0)&\"\")","v":""},"",{"$f":"IF(B1345=\"\",\"\",IF(ISERROR(MATCH($J1345,SorP!$B$1:$B$5661,0)),\"\",INDIRECT(\"'SorP'!$A$\"&MATCH($J1345,SorP!$B$1:$B$5661,0))))","v":""},null,{"$f":"IF(C1345=\"\",NA(),MATCH($B1345&$C1345,'Smelter Look-up'!$J:$J,0))","v":{"$error":"#N/A"}},null,0,null,null,null,""]
[null,{"$f":"IF(LEN(A1346)=0,\"\",INDEX('Smelter Look-up'!$A:$A,MATCH($A1346,'Smelter Look-up'!$E:$E,0)))","v":""},{"$f":"IF(LEN(A1346)=0,\"\",INDEX('Smelter Look-up'!$C:$C,MATCH($A1346,'Smelter Look-up'!$E:$E,0)))","v":""},null,{"$f":"IF(ISERROR($V1346),\"\",OFFSET('Smelter Look-up'!$D$4,$V1346-4,0)&\"\")","v":""},{"$f":"IF(ISERROR($V1346),\"\",OFFSET('Smelter Look-up'!$E$4,$V1346-4,0))","v":""},{"$f":"IF(C1346=$X$4,\"Enter smelter details\",IF(ISERROR($V1346),\"\",OFFSET('Smelter Look-up'!$F$4,$V1346-4,0)))","v":""},{"$f":"IF(ISERROR($V1346),\"\",OFFSET('Smelter Look-up'!$G$4,$V1346-4,0))","v":""},{"$f":"IF(ISERROR($V1346),\"\",OFFSET('Smelter Look-up'!$H$4,$V1346-4,0))","v":""},{"$f":"IF(ISERROR($V1346),\"\",OFFSET('Smelter Look-up'!$I$4,$V1346-4,0))","v":""},{"$nulls":7},{"$f":"IF(ISERROR($V1346),\"\",OFFSET('Smelter Look-up'!$C$4,$V1346-4,0)&\"\")","v":""},"",{"$f":"IF(B1346=\"\",\"\",IF(ISERROR(MATCH($J1346,SorP!$B$1:$B$5661,0)),\"\",INDIRECT(\"'SorP'!$A$\"&MATCH($J1346,SorP!$B$1:$B$5661,0))))","v":""},null,{"$f":"IF(C1346=\"\",NA(),MATCH($B1346&$C1346,'Smelter Look-up'!$J:$J,0))","v":{"$error":"#N/A"}},null,0,null,null,null,""]
[null,{"$f":"IF(LEN(A1347)=0,\"\",INDEX('Smelter Look-up'!$A:$A,MATCH($A1347,'Smelter Look-up'!$E:$E,0)))","v":""},{"$f":"IF(LEN(A1347)=0,\"\",INDEX('Smelter Look-up'!$C:$C,MATCH($A1347,'Smelter Look-up'!$E:$E,0)))","v":""},null,{"$f":"IF(ISERROR($V1347),\"\",OFFSET('Smelter Look-up'!$D$4,$V1347-4,0)&\"\")","v":""},{"$f":"IF(ISERROR($V1347),\"\",OFFSET('Smelter Look-up'!$E$4,$V1347-4,0))","v":""},{"$f":"IF(C1347=$X$4,\"Enter smelter details\",IF(ISERROR($V1347),\"\",OFFSET('Smelter Look-up'!$F$4,$V1347-4,0)))","v":""},{"$f":"IF(ISERROR($V1347),\"\",OFFSET('Smelter Look-up'!$G$4,$V1347-4,0))","v":""},{"$f":"IF(ISERROR($V1347),\"\",OFFSET('Smelter Look-up'!$H$4,$V1347-4,0))","v":""},{"$f":"IF(ISERROR($V1347),\"\",OFFSET('Smelter Look-up'!$I$4,$V1347-4,0))","v":""},{"$nulls":7},{"$f":"IF(ISERROR($V1347),\"\",OFFSET('Smelter Look-up'!$C$4,$V1347-4,0)&\"\")","v":""},"",{"$f":"IF(B1347=\"\",\"\",IF(ISERROR(MATCH($J1347,SorP!$B$1:$B$5661,0)),\"\",INDIRECT(\"'SorP'!$A$\"&MATCH($J1347,SorP!$B$1:$B$5661,0))))","v":""},null,{"$f":"IF(C1347=\"\",NA(),MATCH($B1347&$C1347,'Smelter Look-up'!$J:$J,0))","v":{"$error":"#N/A"}},null,0,null,null,null,""]
[null,{"$f":"IF(LEN(A1348)=0,\"\",INDEX('Smelter Look-up'!$A:$A,MATCH($A1348,'Smelter Look-up'!$E:$E,0)))","v":""},{"$f":"IF(LEN(A1348)=0,\"\",INDEX('Smelter Look-up'!$C:$C,MATCH($A1348,'Smelter Look-up'!$E:$E,0)))","v":""},null,{"$f":"IF(ISERROR($V1348),\"\",OFFSET('Smelter Look-up'!$D$4,$V1348-4,0)&\"\")","v":""},{"$f":"IF(ISERROR($V1348),\"\",OFFSET('Smelter Look-up'!$E$4,$V1348-4,0))","v":""},{"$f":"IF(C1348=$X$4,\"Enter smelter details\",IF(ISERROR($V1348),\"\",OFFSET('Smelter Look-up'!$F$4,$V1348-4,0)))","v":""},{"$f":"IF(ISERROR($V1348),\"\",OFFSET('Smelter Look-up'!$G$4,$V1348-4,0))","v":""},{"$f":"IF(ISERROR($V1348),\"\",OFFSET('Smelter Look-up'!$H$4,$V1348-4,0))","v":""},{"$f":"IF(ISERROR($V1348),\"\",OFFSET('Smelter Look-up'!$I$4,$V1348-4,0))","v":""},{"$nulls":7},{"$f":"IF(ISERROR($V1348),\"\",OFFSET('Smelter Look-up'!$C$4,$V1348-4,0)&\"\")","v":""},"",{"$f":"IF(B1348=\"\",\"\",IF(ISERROR(MATCH($J1348,SorP!$B$1:$B$5661,0)),\"\",INDIRECT(\"'SorP'!$A$\"&MATCH($J1348,SorP!$B$1:$B$5661,0))))","v":""},null,{"$f":"IF(C1348=\"\",NA(),MATCH($B1348&$C1348,'Smelter Look-up'!$J:$J,0))","v":{"$error":"#N/A"}},null,0,null,null,null,""]
[null,{"$f":"IF(LEN(A1349)=0,\"\",INDEX('Smelter Look-up'!$A:$A,MATCH($A1349,'Smelter Look-up'!$E:$E,0)))","v":""},{"$f":"IF(LEN(A1349)=0,\"\",INDEX('Smelter Look-up'!$C:$C,MATCH($A1349,'Smelter Look-up'!$E:$E,0)))","v":""},null,{"$f":"IF(ISERROR($V1349),\"\",OFFSET('Smelter Look-up'!$D$4,$V1349-4,0)&\"\")","v":""},{"$f":"IF(ISERROR($V1349),\"\",OFFSET('Smelter Look-up'!$E$4,$V1349-4,0))","v":""},{"$f":"IF(C1349=$X$4,\"Enter smelter details\",IF(ISERROR($V1349),\"\",OFFSET('Smelter Look-up'!$F$4,$V1349-4,0)))","v":""},{"$f":"IF(ISERROR($V1349),\"\",OFFSET('Smelter Look-up'!$G$4,$V1349-4,0))","v":""},{"$f":"IF(ISERROR($V1349),\"\",OFFSET('Smelter Look-up'!$H$4,$V1349-4,0))","v":""},{"$f":"IF(ISERROR($V1349),\"\",OFFSET('Smelter Look-up'!$I$4,$V1349-4,0))","v":""},{"$nulls":7},{"$f":"IF(ISERROR($V1349),\"\",OFFSET('Smelter Look-up'!$C$4,$V1349-4,0)&\"\")","v":""},"",{"$f":"IF(B1349=\"\",\"\",IF(ISERROR(MATCH($J1349,SorP!$B$1:$B$5661,0)),\"\",INDIRECT(\"'SorP'!$A$\"&MATCH($J1349,SorP!$B$1:$B$5661,0))))","v":""},null,{"$f":"IF(C1349=\"\",NA(),MATCH($B1349&$C1349,'Smelter Look-up'!$J:$J,0))","v":{"$error":"#N/A"}},null,0,null,null,null,""]
[null,{"$f":"IF(LEN(A1350)=0,\"\",INDEX('Smelter Look-up'!$A:$A,MATCH($A1350,'Smelter Look-up'!$E:$E,0)))","v":""},{"$f":"IF(LEN(A1350)=0,\"\",INDEX('Smelter Look-up'!$C:$C,MATCH($A1350,'Smelter Look-up'!$E:$E,0)))","v":""},null,{"$f":"IF(ISERROR($V1350),\"\",OFFSET('Smelter Look-up'!$D$4,$V1350-4,0)&\"\")","v":""},{"$f":"IF(ISERROR($V1350),\"\",OFFSET('Smelter Look-up'!$E$4,$V1350-4,0))","v":""},{"$f":"IF(C1350=$X$4,\"Enter smelter details\",IF(ISERROR($V1350),\"\",OFFSET('Smelter Look-up'!$F$4,$V1350-4,0)))","v":""},{"$f":"IF(ISERROR($V1350),\"\",OFFSET('Smelter Look-up'!$G$4,$V1350-4,0))","v":""},{"$f":"IF(ISERROR($V1350),\"\",OFFSET('Smelter Look-up'!$H$4,$V1350-4,0))","v":""},{"$f":"IF(ISERROR($V1350),\"\",OFFSET('Smelter Look-up'!$I$4,$V1350-4,0))","v":""},{"$nulls":7},{"$f":"IF(ISERROR($V1350),\"\",OFFSET('Smelter Look-up'!$C$4,$V1350-4,0)&\"\")","v":""},"",{"$f":"IF(B1350=\"\",\"\",IF(ISERROR(MATCH($J1350,SorP!$B$1:$B$5661,0)),\"\",INDIRECT(\"'SorP'!$A$\"&MATCH($J1350,SorP!$B$1:$B$5661,0))))","v":""},null,{"$f":"IF(C1350=\"\",NA(),MATCH($B1350&$C1350,'Smelter Look-up'!$J:$J,0))","v":{"$error":"#N/A"}},null,0,null,null,null,""]
[null,{"$f":"IF(LEN(A1351)=0,\"\",INDEX('Smelter Look-up'!$A:$A,MATCH($A1351,'Smelter Look-up'!$E:$E,0)))","v":""},{"$f":"IF(LEN(A1351)=0,\"\",INDEX('Smelter Look-up'!$C:$C,MATCH($A1351,'Smelter Look-up'!$E:$E,0)))","v":""},null,{"$f":"IF(ISERROR($V1351),\"\",OFFSET('Smelter Look-up'!$D$4,$V1351-4,0)&\"\")","v":""},{"$f":"IF(ISERROR($V1351),\"\",OFFSET('Smelter Look-up'!$E$4,$V1351-4,0))","v":""},{"$f":"IF(C1351=$X$4,\"Enter smelter details\",IF(ISERROR($V1351),\"\",OFFSET('Smelter Look-up'!$F$4,$V1351-4,0)))","v":""},{"$f":"IF(ISERROR($V1351),\"\",OFFSET('Smelter Look-up'!$G$4,$V1351-4,0))","v":""},{"$f":"IF(ISERROR($V1351),\"\",OFFSET('Smelter Look-up'!$H$4,$V1351-4,0))","v":""},{"$f":"IF(ISERROR($V1351),\"\",OFFSET('Smelter Look-up'!$I$4,$V1351-4,0))","v":""},{"$nulls":7},{"$f":"IF(ISERROR($V1351),\"\",OFFSET('Smelter Look-up'!$C$4,$V1351-4,0)&\"\")","v":""},"",{"$f":"IF(B1351=\"\",\"\",IF(ISERROR(MATCH($J1351,SorP!$B$1:$B$5661,0)),\"\",INDIRECT(\"'SorP'!$A$\"&MATCH($J1351,SorP!$B$1:$B$5661,0))))","v":""},null,{"$f":"IF(C1351=\"\",NA(),MATCH($B1351&$C1351,'Smelter Look-up'!$J:$J,0))","v":{"$error":"#N/A"}},null,0,null,null,null,""]
[null,{"$f":"IF(LEN(A1352)=0,\"\",INDEX('Smelter Look-up'!$A:$A,MATCH($A1352,'Smelter Look-up'!$E:$E,0)))","v":""},{"$f":"IF(LEN(A1352)=0,\"\",INDEX('Smelter Look-up'!$C:$C,MATCH($A1352,'Smelter Look-up'!$E:$E,0)))","v":""},null,{"$f":"IF(ISERROR($V1352),\"\",OFFSET('Smelter Look-up'!$D$4,$V1352-4,0)&\"\")","v":""},{"$f":"IF(ISERROR($V1352),\"\",OFFSET('Smelter Look-up'!$E$4,$V1352-4,0))","v":""},{"$f":"IF(C1352=$X$4,\"Enter smelter details\",IF(ISERROR($V1352),\"\",OFFSET('Smelter Look-up'!$F$4,$V1352-4,0)))","v":""},{"$f":"IF(ISERROR($V1352),\"\",OFFSET('Smelter Look-up'!$G$4,$V1352-4,0))","v":""},{"$f":"IF(ISERROR($V1352),\"\",OFFSET('Smelter Look-up'!$H$4,$V1352-4,0))","v":""},{"$f":"IF(ISERROR($V1352),\"\",OFFSET('Smelter Look-up'!$I$4,$V1352-4,0))","v":""},{"$nulls":7},{"$f":"IF(ISERROR($V1352),\"\",OFFSET('Smelter Look-up'!$C$4,$V1352-4,0)&\"\")","v":""},"",{"$f":"IF(B1352=\"\",\"\",IF(ISERROR(MATCH($J1352,SorP!$B$1:$B$5661,0)),\"\",INDIRECT(\"'SorP'!$A$\"&MATCH($J1352,SorP!$B$1:$B$5661,0))))","v":""},null,{"$f":"IF(C1352=\"\",NA(),MATCH($B1352&$C1352,'Smelter Look-up'!$J:$J,0))","v":{"$error":"#N/A"}},null,0,null,null,null,""]
[null,{"$f":"IF(LEN(A1353)=0,\"\",INDEX('Smelter Look-up'!$A:$A,MATCH($A1353,'Smelter Look-up'!$E:$E,0)))","v":""},{"$f":"IF(LEN(A1353)=0,\"\",INDEX('Smelter Look-up'!$C:$C,MATCH($A1353,'Smelter Look-up'!$E:$E,0)))","v":""},null,{"$f":"IF(ISERROR($V1353),\"\",OFFSET('Smelter Look-up'!$D$4,$V1353-4,0)&\"\")","v":""},{"$f":"IF(ISERROR($V1353),\"\",OFFSET('Smelter Look-up'!$E$4,$V1353-4,0))","v":""},{"$f":"IF(C1353=$X$4,\"Enter smelter details\",IF(ISERROR($V1353),\"\",OFFSET('Smelter Look-up'!$F$4,$V1353-4,0)))","v":""},{"$f":"IF(ISERROR($V1353),\"\",OFFSET('Smelter Look-up'!$G$4,$V1353-4,0))","v":""},{"$f":"IF(ISERROR($V1353),\"\",OFFSET('Smelter Look-up'!$H$4,$V1353-4,0))","v":""},{"$f":"IF(ISERROR($V1353),\"\",OFFSET('Smelter Look-up'!$I$4,$V1353-4,0))","v":""},{"$nulls":7},{"$f":"IF(ISERROR($V1353),\"\",OFFSET('Smelter Look-up'!$C$4,$V1353-4,0)&\"\")","v":""},"",{"$f":"IF(B1353=\"\",\"\",IF(ISERROR(MATCH($J1353,SorP!$B$1:$B$5661,0)),\"\",INDIRECT(\"'SorP'!$A$\"&MATCH($J1353,SorP!$B$1:$B$5661,0))))","v":""},null,{"$f":"IF(C1353=\"\",NA(),MATCH($B1353&$C1353,'Smelter Look-up'!$J:$J,0))","v":{"$error":"#N/A"}},null,0,null,null,null,""]
[null,{"$f":"IF(LEN(A1354)=0,\"\",INDEX('Smelter Look-up'!$A:$A,MATCH($A1354,'Smelter Look-up'!$E:$E,0)))","v":""},{"$f":"IF(LEN(A1354)=0,\"\",INDEX('Smelter Look-up'!$C:$C,MATCH($A1354,'Smelter Look-up'!$E:$E,0)))","v":""},null,{"$f":"IF(ISERROR($V1354),\"\",OFFSET('Smelter Look-up'!$D$4,$V1354-4,0)&\"\")","v":""},{"$f":"IF(ISERROR($V1354),\"\",OFFSET('Smelter Look-up'!$E$4,$V1354-4,0))","v":""},{"$f":"IF(C1354=$X$4,\"Enter smelter details\",IF(ISERROR($V1354),\"\",OFFSET('Smelter Look-up'!$F$4,$V1354-4,0)))","v":""},{"$f":"IF(ISERROR($V1354),\"\",OFFSET('Smelter Look-up'!$G$4,$V1354-4,0))","v":""},{"$f":"IF(ISERROR($V1354),\"\",OFFSET('Smelter Look-up'!$H$4,$V1354-4,0))","v":""},{"$f":"IF(ISERROR($V1354),\"\",OFFSET('Smelter Look-up'!$I$4,$V1354-4,0))","v":""},{"$nulls":7},{"$f":"IF(ISERROR($V1354),\"\",OFFSET('Smelter Look-up'!$C$4,$V1354-4,0)&\"\")","v":""},"",{"$f":"IF(B1354=\"\",\"\",IF(ISERROR(MATCH($J1354,SorP!$B$1:$B$5661,0)),\"\",INDIRECT(\"'SorP'!$A$\"&MATCH($J1354,SorP!$B$1:$B$5661,0))))","v":""},null,{"$f":"IF(C1354=\"\",NA(),MATCH($B1354&$C1354,'Smelter Look-up'!$J:$J,0))","v":{"$error":"#N/A"}},null,0,null,null,null,""]
[null,{"$f":"IF(LEN(A1355)=0,\"\",INDEX('Smelter Look-up'!$A:$A,MATCH($A1355,'Smelter Look-up'!$E:$E,0)))","v":""},{"$f":"IF(LEN(A1355)=0,\"\",INDEX('Smelter Look-up'!$C:$C,MATCH($A1355,'Smelter Look-up'!$E:$E,0)))","v":""},null,{"$f":"IF(ISERROR($V1355),\"\",OFFSET('Smelter Look-up'!$D$4,$V1355-4,0)&\"\")","v":""},{"$f":"IF(ISERROR($V1355),\"\",OFFSET('Smelter Look-up'!$E$4,$V1355-4,0))","v":""},{"$f":"IF(C1355=$X$4,\"Enter smelter details\",IF(ISERROR($V1355),\"\",OFFSET('Smelter Look-up'!$F$4,$V1355-4,0)))","v":""},{"$f":"IF(ISERROR($V1355),\"\",OFFSET('Smelter Look-up'!$G$4,$V1355-4,0))","v":""},{"$f":"IF(ISERROR($V1355),\"\",OFFSET('Smelter Look-up'!$H$4,$V1355-4,0))","v":""},{"$f":"IF(ISERROR($V1355),\"\",OFFSET('Smelter Look-up'!$I$4,$V1355-4,0))","v":""},{"$nulls":7},{"$f":"IF(ISERROR($V1355),\"\",OFFSET('Smelter Look-up'!$C$4,$V1355-4,0)&\"\")","v":""},"",{"$f":"IF(B1355=\"\",\"\",IF(ISERROR(MATCH($J1355,SorP!$B$1:$B$5661,0)),\"\",INDIRECT(\"'SorP'!$A$\"&MATCH($J1355,SorP!$B$1:$B$5661,0))))","v":""},null,{"$f":"IF(C1355=\"\",NA(),MATCH($B1355&$C1355,'Smelter Look-up'!$J:$J,0))","v":{"$error":"#N/A"}},null,0,null,null,null,""]
[null,{"$f":"IF(LEN(A1356)=0,\"\",INDEX('Smelter Look-up'!$A:$A,MATCH($A1356,'Smelter Look-up'!$E:$E,0)))","v":""},{"$f":"IF(LEN(A1356)=0,\"\",INDEX('Smelter Look-up'!$C:$C,MATCH($A1356,'Smelter Look-up'!$E:$E,0)))","v":""},null,{"$f":"IF(ISERROR($V1356),\"\",OFFSET('Smelter Look-up'!$D$4,$V1356-4,0)&\"\")","v":""},{"$f":"IF(ISERROR($V1356),\"\",OFFSET('Smelter Look-up'!$E$4,$V1356-4,0))","v":""},{"$f":"IF(C1356=$X$4,\"Enter smelter details\",IF(ISERROR($V1356),\"\",OFFSET('Smelter Look-up'!$F$4,$V1356-4,0)))","v":""},{"$f":"IF(ISERROR($V1356),\"\",OFFSET('Smelter Look-up'!$G$4,$V1356-4,0))","v":""},{"$f":"IF(ISERROR($V1356),\"\",OFFSET('Smelter Look-up'!$H$4,$V1356-4,0))","v":""},{"$f":"IF(ISERROR($V1356),\"\",OFFSET('Smelter Look-up'!$I$4,$V1356-4,0))","v":""},{"$nulls":7},{"$f":"IF(ISERROR($V1356),\"\",OFFSET('Smelter Look-up'!$C$4,$V1356-4,0)&\"\")","v":""},"",{"$f":"IF(B1356=\"\",\"\",IF(ISERROR(MATCH($J1356,SorP!$B$1:$B$5661,0)),\"\",INDIRECT(\"'SorP'!$A$\"&MATCH($J1356,SorP!$B$1:$B$5661,0))))","v":""},null,{"$f":"IF(C1356=\"\",NA(),MATCH($B1356&$C1356,'Smelter Look-up'!$J:$J,0))","v":{"$error":"#N/A"}},null,0,null,null,null,""]
[null,{"$f":"IF(LEN(A1357)=0,\"\",INDEX('Smelter Look-up'!$A:$A,MATCH($A1357,'Smelter Look-up'!$E:$E,0)))","v":""},{"$f":"IF(LEN(A1357)=0,\"\",INDEX('Smelter Look-up'!$C:$C,MATCH($A1357,'Smelter Look-up'!$E:$E,0)))","v":""},null,{"$f":"IF(ISERROR($V1357),\"\",OFFSET('Smelter Look-up'!$D$4,$V1357-4,0)&\"\")","v":""},{"$f":"IF(ISERROR($V1357),\"\",OFFSET('Smelter Look-up'!$E$4,$V1357-4,0))","v":""},{"$f":"IF(C1357=$X$4,\"Enter smelter details\",IF(ISERROR($V1357),\"\",OFFSET('Smelter Look-up'!$F$4,$V1357-4,0)))","v":""},{"$f":"IF(ISERROR($V1357),\"\",OFFSET('Smelter Look-up'!$G$4,$V1357-4,0))","v":""},{"$f":"IF(ISERROR($V1357),\"\",OFFSET('Smelter Look-up'!$H$4,$V1357-4,0))","v":""},{"$f":"IF(ISERROR($V1357),\"\",OFFSET('Smelter Look-up'!$I$4,$V1357-4,0))","v":""},{"$nulls":7},{"$f":"IF(ISERROR($V1357),\"\",OFFSET('Smelter Look-up'!$C$4,$V1357-4,0)&\"\")","v":""},"",{"$f":"IF(B1357=\"\",\"\",IF(ISERROR(MATCH($J1357,SorP!$B$1:$B$5661,0)),\"\",INDIRECT(\"'SorP'!$A$\"&MATCH($J1357,SorP!$B$1:$B$5661,0))))","v":""},null,{"$f":"IF(C1357=\"\",NA(),MATCH($B1357&$C1357,'Smelter Look-up'!$J:$J,0))","v":{"$error":"#N/A"}},null,0,null,null,null,""]
[null,{"$f":"IF(LEN(A1358)=0,\"\",INDEX('Smelter Look-up'!$A:$A,MATCH($A1358,'Smelter Look-up'!$E:$E,0)))","v":""},{"$f":"IF(LEN(A1358)=0,\"\",INDEX('Smelter Look-up'!$C:$C,MATCH($A1358,'Smelter Look-up'!$E:$E,0)))","v":""},null,{"$f":"IF(ISERROR($V1358),\"\",OFFSET('Smelter Look-up'!$D$4,$V1358-4,0)&\"\")","v":""},{"$f":"IF(ISERROR($V1358),\"\",OFFSET('Smelter Look-up'!$E$4,$V1358-4,0))","v":""},{"$f":"IF(C1358=$X$4,\"Enter smelter details\",IF(ISERROR($V1358),\"\",OFFSET('Smelter Look-up'!$F$4,$V1358-4,0)))","v":""},{"$f":"IF(ISERROR($V1358),\"\",OFFSET('Smelter Look-up'!$G$4,$V1358-4,0))","v":""},{"$f":"IF(ISERROR($V1358),\"\",OFFSET('Smelter Look-up'!$H$4,$V1358-4,0))","v":""},{"$f":"IF(ISERROR($V1358),\"\",OFFSET('Smelter Look-up'!$I$4,$V1358-4,0))","v":""},{"$nulls":7},{"$f":"IF(ISERROR($V1358),\"\",OFFSET('Smelter Look-up'!$C$4,$V1358-4,0)&\"\")","v":""},"",{"$f":"IF(B1358=\"\",\"\",IF(ISERROR(MATCH($J1358,SorP!$B$1:$B$5661,0)),\"\",INDIRECT(\"'SorP'!$A$\"&MATCH($J1358,SorP!$B$1:$B$5661,0))))","v":""},null,{"$f":"IF(C1358=\"\",NA(),MATCH($B1358&$C1358,'Smelter Look-up'!$J:$J,0))","v":{"$error":"#N/A"}},null,0,null,null,null,""]
[null,{"$f":"IF(LEN(A1359)=0,\"\",INDEX('Smelter Look-up'!$A:$A,MATCH($A1359,'Smelter Look-up'!$E:$E,0)))","v":""},{"$f":"IF(LEN(A1359)=0,\"\",INDEX('Smelter Look-up'!$C:$C,MATCH($A1359,'Smelter Look-up'!$E:$E,0)))","v":""},null,{"$f":"IF(ISERROR($V1359),\"\",OFFSET('Smelter Look-up'!$D$4,$V1359-4,0)&\"\")","v":""},{"$f":"IF(ISERROR($V1359),\"\",OFFSET('Smelter Look-up'!$E$4,$V1359-4,0))","v":""},{"$f":"IF(C1359=$X$4,\"Enter smelter details\",IF(ISERROR($V1359),\"\",OFFSET('Smelter Look-up'!$F$4,$V1359-4,0)))","v":""},{"$f":"IF(ISERROR($V1359),\"\",OFFSET('Smelter Look-up'!$G$4,$V1359-4,0))","v":""},{"$f":"IF(ISERROR($V1359),\"\",OFFSET('Smelter Look-up'!$H$4,$V1359-4,0))","v":""},{"$f":"IF(ISERROR($V1359),\"\",OFFSET('Smelter Look-up'!$I$4,$V1359-4,0))","v":""},{"$nulls":7},{"$f":"IF(ISERROR($V1359),\"\",OFFSET('Smelter Look-up'!$C$4,$V1359-4,0)&\"\")","v":""},"",{"$f":"IF(B1359=\"\",\"\",IF(ISERROR(MATCH($J1359,SorP!$B$1:$B$5661,0)),\"\",INDIRECT(\"'SorP'!$A$\"&MATCH($J1359,SorP!$B$1:$B$5661,0))))","v":""},null,{"$f":"IF(C1359=\"\",NA(),MATCH($B1359&$C1359,'Smelter Look-up'!$J:$J,0))","v":{"$error":"#N/A"}},null,0,null,null,null,""]
[null,{"$f":"IF(LEN(A1360)=0,\"\",INDEX('Smelter Look-up'!$A:$A,MATCH($A1360,'Smelter Look-up'!$E:$E,0)))","v":""},{"$f":"IF(LEN(A1360)=0,\"\",INDEX('Smelter Look-up'!$C:$C,MATCH($A1360,'Smelter Look-up'!$E:$E,0)))","v":""},null,{"$f":"IF(ISERROR($V1360),\"\",OFFSET('Smelter Look-up'!$D$4,$V1360-4,0)&\"\")","v":""},{"$f":"IF(ISERROR($V1360),\"\",OFFSET('Smelter Look-up'!$E$4,$V1360-4,0))","v":""},{"$f":"IF(C1360=$X$4,\"Enter smelter details\",IF(ISERROR($V1360),\"\",OFFSET('Smelter Look-up'!$F$4,$V1360-4,0)))","v":""},{"$f":"IF(ISERROR($V1360),\"\",OFFSET('Smelter Look-up'!$G$4,$V1360-4,0))","v":""},{"$f":"IF(ISERROR($V1360),\"\",OFFSET('Smelter Look-up'!$H$4,$V1360-4,0))","v":""},{"$f":"IF(ISERROR($V1360),\"\",OFFSET('Smelter Look-up'!$I$4,$V1360-4,0))","v":""},{"$nulls":7},{"$f":"IF(ISERROR($V1360),\"\",OFFSET('Smelter Look-up'!$C$4,$V1360-4,0)&\"\")","v":""},"",{"$f":"IF(B1360=\"\",\"\",IF(ISERROR(MATCH($J1360,SorP!$B$1:$B$5661,0)),\"\",INDIRECT(\"'SorP'!$A$\"&MATCH($J1360,SorP!$B$1:$B$5661,0))))","v":""},null,{"$f":"IF(C1360=\"\",NA(),MATCH($B1360&$C1360,'Smelter Look-up'!$J:$J,0))","v":{"$error":"#N/A"}},null,0,null,null,null,""]
[null,{"$f":"IF(LEN(A1361)=0,\"\",INDEX('Smelter Look-up'!$A:$A,MATCH($A1361,'Smelter Look-up'!$E:$E,0)))","v":""},{"$f":"IF(LEN(A1361)=0,\"\",INDEX('Smelter Look-up'!$C:$C,MATCH($A1361,'Smelter Look-up'!$E:$E,0)))","v":""},null,{"$f":"IF(ISERROR($V1361),\"\",OFFSET('Smelter Look-up'!$D$4,$V1361-4,0)&\"\")","v":""},{"$f":"IF(ISERROR($V1361),\"\",OFFSET('Smelter Look-up'!$E$4,$V1361-4,0))","v":""},{"$f":"IF(C1361=$X$4,\"Enter smelter details\",IF(ISERROR($V1361),\"\",OFFSET('Smelter Look-up'!$F$4,$V1361-4,0)))","v":""},{"$f":"IF(ISERROR($V1361),\"\",OFFSET('Smelter Look-up'!$G$4,$V1361-4,0))","v":""},{"$f":"IF(ISERROR($V1361),\"\",OFFSET('Smelter Look-up'!$H$4,$V1361-4,0))","v":""},{"$f":"IF(ISERROR($V1361),\"\",OFFSET('Smelter Look-up'!$I$4,$V1361-4,0))","v":""},{"$nulls":7},{"$f":"IF(ISERROR($V1361),\"\",OFFSET('Smelter Look-up'!$C$4,$V1361-4,0)&\"\")","v":""},"",{"$f":"IF(B1361=\"\",\"\",IF(ISERROR(MATCH($J1361,SorP!$B$1:$B$5661,0)),\"\",INDIRECT(\"'SorP'!$A$\"&MATCH($J1361,SorP!$B$1:$B$5661,0))))","v":""},null,{"$f":"IF(C1361=\"\",NA(),MATCH($B1361&$C1361,'Smelter Look-up'!$J:$J,0))","v":{"$error":"#N/A"}},null,0,null,null,null,""]
[null,{"$f":"IF(LEN(A1362)=0,\"\",INDEX('Smelter Look-up'!$A:$A,MATCH($A1362,'Smelter Look-up'!$E:$E,0)))","v":""},{"$f":"IF(LEN(A1362)=0,\"\",INDEX('Smelter Look-up'!$C:$C,MATCH($A1362,'Smelter Look-up'!$E:$E,0)))","v":""},null,{"$f":"IF(ISERROR($V1362),\"\",OFFSET('Smelter Look-up'!$D$4,$V1362-4,0)&\"\")","v":""},{"$f":"IF(ISERROR($V1362),\"\",OFFSET('Smelter Look-up'!$E$4,$V1362-4,0))","v":""},{"$f":"IF(C1362=$X$4,\"Enter smelter details\",IF(ISERROR($V1362),\"\",OFFSET('Smelter Look-up'!$F$4,$V1362-4,0)))","v":""},{"$f":"IF(ISERROR($V1362),\"\",OFFSET('Smelter Look-up'!$G$4,$V1362-4,0))","v":""},{"$f":"IF(ISERROR($V1362),\"\",OFFSET('Smelter Look-up'!$H$4,$V1362-4,0))","v":""},{"$f":"IF(ISERROR($V1362),\"\",OFFSET('Smelter Look-up'!$I$4,$V1362-4,0))","v":""},{"$nulls":7},{"$f":"IF(ISERROR($V1362),\"\",OFFSET('Smelter Look-up'!$C$4,$V1362-4,0)&\"\")","v":""},"",{"$f":"IF(B1362=\"\",\"\",IF(ISERROR(MATCH($J1362,SorP!$B$1:$B$5661,0)),\"\",INDIRECT(\"'SorP'!$A$\"&MATCH($J1362,SorP!$B$1:$B$5661,0))))","v":""},null,{"$f":"IF(C1362=\"\",NA(),MATCH($B1362&$C1362,'Smelter Look-up'!$J:$J,0))","v":{"$error":"#N/A"}},null,0,null,null,null,""]
[null,{"$f":"IF(LEN(A1363)=0,\"\",INDEX('Smelter Look-up'!$A:$A,MATCH($A1363,'Smelter Look-up'!$E:$E,0)))","v":""},{"$f":"IF(LEN(A1363)=0,\"\",INDEX('Smelter Look-up'!$C:$C,MATCH($A1363,'Smelter Look-up'!$E:$E,0)))","v":""},null,{"$f":"IF(ISERROR($V1363),\"\",OFFSET('Smelter Look-up'!$D$4,$V1363-4,0)&\"\")","v":""},{"$f":"IF(ISERROR($V1363),\"\",OFFSET('Smelter Look-up'!$E$4,$V1363-4,0))","v":""},{"$f":"IF(C1363=$X$4,\"Enter smelter details\",IF(ISERROR($V1363),\"\",OFFSET('Smelter Look-up'!$F$4,$V1363-4,0)))","v":""},{"$f":"IF(ISERROR($V1363),\"\",OFFSET('Smelter Look-up'!$G$4,$V1363-4,0))","v":""},{"$f":"IF(ISERROR($V1363),\"\",OFFSET('Smelter Look-up'!$H$4,$V1363-4,0))","v":""},{"$f":"IF(ISERROR($V1363),\"\",OFFSET('Smelter Look-up'!$I$4,$V1363-4,0))","v":""},{"$nulls":7},{"$f":"IF(ISERROR($V1363),\"\",OFFSET('Smelter Look-up'!$C$4,$V1363-4,0)&\"\")","v":""},"",{"$f":"IF(B1363=\"\",\"\",IF(ISERROR(MATCH($J1363,SorP!$B$1:$B$5661,0)),\"\",INDIRECT(\"'SorP'!$A$\"&MATCH($J1363,SorP!$B$1:$B$5661,0))))","v":""},null,{"$f":"IF(C1363=\"\",NA(),MATCH($B1363&$C1363,'Smelter Look-up'!$J:$J,0))","v":{"$error":"#N/A"}},null,0,null,null,null,""]
[null,{"$f":"IF(LEN(A1364)=0,\"\",INDEX('Smelter Look-up'!$A:$A,MATCH($A1364,'Smelter Look-up'!$E:$E,0)))","v":""},{"$f":"IF(LEN(A1364)=0,\"\",INDEX('Smelter Look-up'!$C:$C,MATCH($A1364,'Smelter Look-up'!$E:$E,0)))","v":""},null,{"$f":"IF(ISERROR($V1364),\"\",OFFSET('Smelter Look-up'!$D$4,$V1364-4,0)&\"\")","v":""},{"$f":"IF(ISERROR($V1364),\"\",OFFSET('Smelter Look-up'!$E$4,$V1364-4,0))","v":""},{"$f":"IF(C1364=$X$4,\"Enter smelter details\",IF(ISERROR($V1364),\"\",OFFSET('Smelter Look-up'!$F$4,$V1364-4,0)))","v":""},{"$f":"IF(ISERROR($V1364),\"\",OFFSET('Smelter Look-up'!$G$4,$V1364-4,0))","v":""},{"$f":"IF(ISERROR($V1364),\"\",OFFSET('Smelter Look-up'!$H$4,$V1364-4,0))","v":""},{"$f":"IF(ISERROR($V1364),\"\",OFFSET('Smelter Look-up'!$I$4,$V1364-4,0))","v":""},{"$nulls":7},{"$f":"IF(ISERROR($V1364),\"\",OFFSET('Smelter Look-up'!$C$4,$V1364-4,0)&\"\")","v":""},"",{"$f":"IF(B1364=\"\",\"\",IF(ISERROR(MATCH($J1364,SorP!$B$1:$B$5661,0)),\"\",INDIRECT(\"'SorP'!$A$\"&MATCH($J1364,SorP!$B$1:$B$5661,0))))","v":""},null,{"$f":"IF(C1364=\"\",NA(),MATCH($B1364&$C1364,'Smelter Look-up'!$J:$J,0))","v":{"$error":"#N/A"}},null,0,null,null,null,""]
[null,{"$f":"IF(LEN(A1365)=0,\"\",INDEX('Smelter Look-up'!$A:$A,MATCH($A1365,'Smelter Look-up'!$E:$E,0)))","v":""},{"$f":"IF(LEN(A1365)=0,\"\",INDEX('Smelter Look-up'!$C:$C,MATCH($A1365,'Smelter Look-up'!$E:$E,0)))","v":""},null,{"$f":"IF(ISERROR($V1365),\"\",OFFSET('Smelter Look-up'!$D$4,$V1365-4,0)&\"\")","v":""},{"$f":"IF(ISERROR($V1365),\"\",OFFSET('Smelter Look-up'!$E$4,$V1365-4,0))","v":""},{"$f":"IF(C1365=$X$4,\"Enter smelter details\",IF(ISERROR($V1365),\"\",OFFSET('Smelter Look-up'!$F$4,$V1365-4,0)))","v":""},{"$f":"IF(ISERROR($V1365),\"\",OFFSET('Smelter Look-up'!$G$4,$V1365-4,0))","v":""},{"$f":"IF(ISERROR($V1365),\"\",OFFSET('Smelter Look-up'!$H$4,$V1365-4,0))","v":""},{"$f":"IF(ISERROR($V1365),\"\",OFFSET('Smelter Look-up'!$I$4,$V1365-4,0))","v":""},{"$nulls":7},{"$f":"IF(ISERROR($V1365),\"\",OFFSET('Smelter Look-up'!$C$4,$V1365-4,0)&\"\")","v":""},"",{"$f":"IF(B1365=\"\",\"\",IF(ISERROR(MATCH($J1365,SorP!$B$1:$B$5661,0)),\"\",INDIRECT(\"'SorP'!$A$\"&MATCH($J1365,SorP!$B$1:$B$5661,0))))","v":""},null,{"$f":"IF(C1365=\"\",NA(),MATCH($B1365&$C1365,'Smelter Look-up'!$J:$J,0))","v":{"$error":"#N/A"}},null,0,null,null,null,""]
[null,{"$f":"IF(LEN(A1366)=0,\"\",INDEX('Smelter Look-up'!$A:$A,MATCH($A1366,'Smelter Look-up'!$E:$E,0)))","v":""},{"$f":"IF(LEN(A1366)=0,\"\",INDEX('Smelter Look-up'!$C:$C,MATCH($A1366,'Smelter Look-up'!$E:$E,0)))","v":""},null,{"$f":"IF(ISERROR($V1366),\"\",OFFSET('Smelter Look-up'!$D$4,$V1366-4,0)&\"\")","v":""},{"$f":"IF(ISERROR($V1366),\"\",OFFSET('Smelter Look-up'!$E$4,$V1366-4,0))","v":""},{"$f":"IF(C1366=$X$4,\"Enter smelter details\",IF(ISERROR($V1366),\"\",OFFSET('Smelter Look-up'!$F$4,$V1366-4,0)))","v":""},{"$f":"IF(ISERROR($V1366),\"\",OFFSET('Smelter Look-up'!$G$4,$V1366-4,0))","v":""},{"$f":"IF(ISERROR($V1366),\"\",OFFSET('Smelter Look-up'!$H$4,$V1366-4,0))","v":""},{"$f":"IF(ISERROR($V1366),\"\",OFFSET('Smelter Look-up'!$I$4,$V1366-4,0))","v":""},{"$nulls":7},{"$f":"IF(ISERROR($V1366),\"\",OFFSET('Smelter Look-up'!$C$4,$V1366-4,0)&\"\")","v":""},"",{"$f":"IF(B1366=\"\",\"\",IF(ISERROR(MATCH($J1366,SorP!$B$1:$B$5661,0)),\"\",INDIRECT(\"'SorP'!$A$\"&MATCH($J1366,SorP!$B$1:$B$5661,0))))","v":""},null,{"$f":"IF(C1366=\"\",NA(),MATCH($B1366&$C1366,'Smelter Look-up'!$J:$J,0))","v":{"$error":"#N/A"}},null,0,null,null,null,""]
[null,{"$f":"IF(LEN(A1367)=0,\"\",INDEX('Smelter Look-up'!$A:$A,MATCH($A1367,'Smelter Look-up'!$E:$E,0)))","v":""},{"$f":"IF(LEN(A1367)=0,\"\",INDEX('Smelter Look-up'!$C:$C,MATCH($A1367,'Smelter Look-up'!$E:$E,0)))","v":""},null,{"$f":"IF(ISERROR($V1367),\"\",OFFSET('Smelter Look-up'!$D$4,$V1367-4,0)&\"\")","v":""},{"$f":"IF(ISERROR($V1367),\"\",OFFSET('Smelter Look-up'!$E$4,$V1367-4,0))","v":""},{"$f":"IF(C1367=$X$4,\"Enter smelter details\",IF(ISERROR($V1367),\"\",OFFSET('Smelter Look-up'!$F$4,$V1367-4,0)))","v":""},{"$f":"IF(ISERROR($V1367),\"\",OFFSET('Smelter Look-up'!$G$4,$V1367-4,0))","v":""},{"$f":"IF(ISERROR($V1367),\"\",OFFSET('Smelter Look-up'!$H$4,$V1367-4,0))","v":""},{"$f":"IF(ISERROR($V1367),\"\",OFFSET('Smelter Look-up'!$I$4,$V1367-4,0))","v":""},{"$nulls":7},{"$f":"IF(ISERROR($V1367),\"\",OFFSET('Smelter Look-up'!$C$4,$V1367-4,0)&\"\")","v":""},"",{"$f":"IF(B1367=\"\",\"\",IF(ISERROR(MATCH($J1367,SorP!$B$1:$B$5661,0)),\"\",INDIRECT(\"'SorP'!$A$\"&MATCH($J1367,SorP!$B$1:$B$5661,0))))","v":""},null,{"$f":"IF(C1367=\"\",NA(),MATCH($B1367&$C1367,'Smelter Look-up'!$J:$J,0))","v":{"$error":"#N/A"}},null,0,null,null,null,""]
[null,{"$f":"IF(LEN(A1368)=0,\"\",INDEX('Smelter Look-up'!$A:$A,MATCH($A1368,'Smelter Look-up'!$E:$E,0)))","v":""},{"$f":"IF(LEN(A1368)=0,\"\",INDEX('Smelter Look-up'!$C:$C,MATCH($A1368,'Smelter Look-up'!$E:$E,0)))","v":""},null,{"$f":"IF(ISERROR($V1368),\"\",OFFSET('Smelter Look-up'!$D$4,$V1368-4,0)&\"\")","v":""},{"$f":"IF(ISERROR($V1368),\"\",OFFSET('Smelter Look-up'!$E$4,$V1368-4,0))","v":""},{"$f":"IF(C1368=$X$4,\"Enter smelter details\",IF(ISERROR($V1368),\"\",OFFSET('Smelter Look-up'!$F$4,$V1368-4,0)))","v":""},{"$f":"IF(ISERROR($V1368),\"\",OFFSET('Smelter Look-up'!$G$4,$V1368-4,0))","v":""},{"$f":"IF(ISERROR($V1368),\"\",OFFSET('Smelter Look-up'!$H$4,$V1368-4,0))","v":""},{"$f":"IF(ISERROR($V1368),\"\",OFFSET('Smelter Look-up'!$I$4,$V1368-4,0))","v":""},{"$nulls":7},{"$f":"IF(ISERROR($V1368),\"\",OFFSET('Smelter Look-up'!$C$4,$V1368-4,0)&\"\")","v":""},"",{"$f":"IF(B1368=\"\",\"\",IF(ISERROR(MATCH($J1368,SorP!$B$1:$B$5661,0)),\"\",INDIRECT(\"'SorP'!$A$\"&MATCH($J1368,SorP!$B$1:$B$5661,0))))","v":""},null,{"$f":"IF(C1368=\"\",NA(),MATCH($B1368&$C1368,'Smelter Look-up'!$J:$J,0))","v":{"$error":"#N/A"}},null,0,null,null,null,""]
[null,{"$f":"IF(LEN(A1369)=0,\"\",INDEX('Smelter Look-up'!$A:$A,MATCH($A1369,'Smelter Look-up'!$E:$E,0)))","v":""},{"$f":"IF(LEN(A1369)=0,\"\",INDEX('Smelter Look-up'!$C:$C,MATCH($A1369,'Smelter Look-up'!$E:$E,0)))","v":""},null,{"$f":"IF(ISERROR($V1369),\"\",OFFSET('Smelter Look-up'!$D$4,$V1369-4,0)&\"\")","v":""},{"$f":"IF(ISERROR($V1369),\"\",OFFSET('Smelter Look-up'!$E$4,$V1369-4,0))","v":""},{"$f":"IF(C1369=$X$4,\"Enter smelter details\",IF(ISERROR($V1369),\"\",OFFSET('Smelter Look-up'!$F$4,$V1369-4,0)))","v":""},{"$f":"IF(ISERROR($V1369),\"\",OFFSET('Smelter Look-up'!$G$4,$V1369-4,0))","v":""},{"$f":"IF(ISERROR($V1369),\"\",OFFSET('Smelter Look-up'!$H$4,$V1369-4,0))","v":""},{"$f":"IF(ISERROR($V1369),\"\",OFFSET('Smelter Look-up'!$I$4,$V1369-4,0))","v":""},{"$nulls":7},{"$f":"IF(ISERROR($V1369),\"\",OFFSET('Smelter Look-up'!$C$4,$V1369-4,0)&\"\")","v":""},"",{"$f":"IF(B1369=\"\",\"\",IF(ISERROR(MATCH($J1369,SorP!$B$1:$B$5661,0)),\"\",INDIRECT(\"'SorP'!$A$\"&MATCH($J1369,SorP!$B$1:$B$5661,0))))","v":""},null,{"$f":"IF(C1369=\"\",NA(),MATCH($B1369&$C1369,'Smelter Look-up'!$J:$J,0))","v":{"$error":"#N/A"}},null,0,null,null,null,""]
[null,{"$f":"IF(LEN(A1370)=0,\"\",INDEX('Smelter Look-up'!$A:$A,MATCH($A1370,'Smelter Look-up'!$E:$E,0)))","v":""},{"$f":"IF(LEN(A1370)=0,\"\",INDEX('Smelter Look-up'!$C:$C,MATCH($A1370,'Smelter Look-up'!$E:$E,0)))","v":""},null,{"$f":"IF(ISERROR($V1370),\"\",OFFSET('Smelter Look-up'!$D$4,$V1370-4,0)&\"\")","v":""},{"$f":"IF(ISERROR($V1370),\"\",OFFSET('Smelter Look-up'!$E$4,$V1370-4,0))","v":""},{"$f":"IF(C1370=$X$4,\"Enter smelter details\",IF(ISERROR($V1370),\"\",OFFSET('Smelter Look-up'!$F$4,$V1370-4,0)))","v":""},{"$f":"IF(ISERROR($V1370),\"\",OFFSET('Smelter Look-up'!$G$4,$V1370-4,0))","v":""},{"$f":"IF(ISERROR($V1370),\"\",OFFSET('Smelter Look-up'!$H$4,$V1370-4,0))","v":""},{"$f":"IF(ISERROR($V1370),\"\",OFFSET('Smelter Look-up'!$I$4,$V1370-4,0))","v":""},{"$nulls":7},{"$f":"IF(ISERROR($V1370),\"\",OFFSET('Smelter Look-up'!$C$4,$V1370-4,0)&\"\")","v":""},"",{"$f":"IF(B1370=\"\",\"\",IF(ISERROR(MATCH($J1370,SorP!$B$1:$B$5661,0)),\"\",INDIRECT(\"'SorP'!$A$\"&MATCH($J1370,SorP!$B$1:$B$5661,0))))","v":""},null,{"$f":"IF(C1370=\"\",NA(),MATCH($B1370&$C1370,'Smelter Look-up'!$J:$J,0))","v":{"$error":"#N/A"}},null,0,null,null,null,""]
[null,{"$f":"IF(LEN(A1371)=0,\"\",INDEX('Smelter Look-up'!$A:$A,MATCH($A1371,'Smelter Look-up'!$E:$E,0)))","v":""},{"$f":"IF(LEN(A1371)=0,\"\",INDEX('Smelter Look-up'!$C:$C,MATCH($A1371,'Smelter Look-up'!$E:$E,0)))","v":""},null,{"$f":"IF(ISERROR($V1371),\"\",OFFSET('Smelter Look-up'!$D$4,$V1371-4,0)&\"\")","v":""},{"$f":"IF(ISERROR($V1371),\"\",OFFSET('Smelter Look-up'!$E$4,$V1371-4,0))","v":""},{"$f":"IF(C1371=$X$4,\"Enter smelter details\",IF(ISERROR($V1371),\"\",OFFSET('Smelter Look-up'!$F$4,$V1371-4,0)))","v":""},{"$f":"IF(ISERROR($V1371),\"\",OFFSET('Smelter Look-up'!$G$4,$V1371-4,0))","v":""},{"$f":"IF(ISERROR($V1371),\"\",OFFSET('Smelter Look-up'!$H$4,$V1371-4,0))","v":""},{"$f":"IF(ISERROR($V1371),\"\",OFFSET('Smelter Look-up'!$I$4,$V1371-4,0))","v":""},{"$nulls":7},{"$f":"IF(ISERROR($V1371),\"\",OFFSET('Smelter Look-up'!$C$4,$V1371-4,0)&\"\")","v":""},"",{"$f":"IF(B1371=\"\",\"\",IF(ISERROR(MATCH($J1371,SorP!$B$1:$B$5661,0)),\"\",INDIRECT(\"'SorP'!$A$\"&MATCH($J1371,SorP!$B$1:$B$5661,0))))","v":""},null,{"$f":"IF(C1371=\"\",NA(),MATCH($B1371&$C1371,'Smelter Look-up'!$J:$J,0))","v":{"$error":"#N/A"}},null,0,null,null,null,""]
[null,{"$f":"IF(LEN(A1372)=0,\"\",INDEX('Smelter Look-up'!$A:$A,MATCH($A1372,'Smelter Look-up'!$E:$E,0)))","v":""},{"$f":"IF(LEN(A1372)=0,\"\",INDEX('Smelter Look-up'!$C:$C,MATCH($A1372,'Smelter Look-up'!$E:$E,0)))","v":""},null,{"$f":"IF(ISERROR($V1372),\"\",OFFSET('Smelter Look-up'!$D$4,$V1372-4,0)&\"\")","v":""},{"$f":"IF(ISERROR($V1372),\"\",OFFSET('Smelter Look-up'!$E$4,$V1372-4,0))","v":""},{"$f":"IF(C1372=$X$4,\"Enter smelter details\",IF(ISERROR($V1372),\"\",OFFSET('Smelter Look-up'!$F$4,$V1372-4,0)))","v":""},{"$f":"IF(ISERROR($V1372),\"\",OFFSET('Smelter Look-up'!$G$4,$V1372-4,0))","v":""},{"$f":"IF(ISERROR($V1372),\"\",OFFSET('Smelter Look-up'!$H$4,$V1372-4,0))","v":""},{"$f":"IF(ISERROR($V1372),\"\",OFFSET('Smelter Look-up'!$I$4,$V1372-4,0))","v":""},{"$nulls":7},{"$f":"IF(ISERROR($V1372),\"\",OFFSET('Smelter Look-up'!$C$4,$V1372-4,0)&\"\")","v":""},"",{"$f":"IF(B1372=\"\",\"\",IF(ISERROR(MATCH($J1372,SorP!$B$1:$B$5661,0)),\"\",INDIRECT(\"'SorP'!$A$\"&MATCH($J1372,SorP!$B$1:$B$5661,0))))","v":""},null,{"$f":"IF(C1372=\"\",NA(),MATCH($B1372&$C1372,'Smelter Look-up'!$J:$J,0))","v":{"$error":"#N/A"}},null,0,null,null,null,""]
[null,{"$f":"IF(LEN(A1373)=0,\"\",INDEX('Smelter Look-up'!$A:$A,MATCH($A1373,'Smelter Look-up'!$E:$E,0)))","v":""},{"$f":"IF(LEN(A1373)=0,\"\",INDEX('Smelter Look-up'!$C:$C,MATCH($A1373,'Smelter Look-up'!$E:$E,0)))","v":""},null,{"$f":"IF(ISERROR($V1373),\"\",OFFSET('Smelter Look-up'!$D$4,$V1373-4,0)&\"\")","v":""},{"$f":"IF(ISERROR($V1373),\"\",OFFSET('Smelter Look-up'!$E$4,$V1373-4,0))","v":""},{"$f":"IF(C1373=$X$4,\"Enter smelter details\",IF(ISERROR($V1373),\"\",OFFSET('Smelter Look-up'!$F$4,$V1373-4,0)))","v":""},{"$f":"IF(ISERROR($V1373),\"\",OFFSET('Smelter Look-up'!$G$4,$V1373-4,0))","v":""},{"$f":"IF(ISERROR($V1373),\"\",OFFSET('Smelter Look-up'!$H$4,$V1373-4,0))","v":""},{"$f":"IF(ISERROR($V1373),\"\",OFFSET('Smelter Look-up'!$I$4,$V1373-4,0))","v":""},{"$nulls":7},{"$f":"IF(ISERROR($V1373),\"\",OFFSET('Smelter Look-up'!$C$4,$V1373-4,0)&\"\")","v":""},"",{"$f":"IF(B1373=\"\",\"\",IF(ISERROR(MATCH($J1373,SorP!$B$1:$B$5661,0)),\"\",INDIRECT(\"'SorP'!$A$\"&MATCH($J1373,SorP!$B$1:$B$5661,0))))","v":""},null,{"$f":"IF(C1373=\"\",NA(),MATCH($B1373&$C1373,'Smelter Look-up'!$J:$J,0))","v":{"$error":"#N/A"}},null,0,null,null,null,""]
[null,{"$f":"IF(LEN(A1374)=0,\"\",INDEX('Smelter Look-up'!$A:$A,MATCH($A1374,'Smelter Look-up'!$E:$E,0)))","v":""},{"$f":"IF(LEN(A1374)=0,\"\",INDEX('Smelter Look-up'!$C:$C,MATCH($A1374,'Smelter Look-up'!$E:$E,0)))","v":""},null,{"$f":"IF(ISERROR($V1374),\"\",OFFSET('Smelter Look-up'!$D$4,$V1374-4,0)&\"\")","v":""},{"$f":"IF(ISERROR($V1374),\"\",OFFSET('Smelter Look-up'!$E$4,$V1374-4,0))","v":""},{"$f":"IF(C1374=$X$4,\"Enter smelter details\",IF(ISERROR($V1374),\"\",OFFSET('Smelter Look-up'!$F$4,$V1374-4,0)))","v":""},{"$f":"IF(ISERROR($V1374),\"\",OFFSET('Smelter Look-up'!$G$4,$V1374-4,0))","v":""},{"$f":"IF(ISERROR($V1374),\"\",OFFSET('Smelter Look-up'!$H$4,$V1374-4,0))","v":""},{"$f":"IF(ISERROR($V1374),\"\",OFFSET('Smelter Look-up'!$I$4,$V1374-4,0))","v":""},{"$nulls":7},{"$f":"IF(ISERROR($V1374),\"\",OFFSET('Smelter Look-up'!$C$4,$V1374-4,0)&\"\")","v":""},"",{"$f":"IF(B1374=\"\",\"\",IF(ISERROR(MATCH($J1374,SorP!$B$1:$B$5661,0)),\"\",INDIRECT(\"'SorP'!$A$\"&MATCH($J1374,SorP!$B$1:$B$5661,0))))","v":""},null,{"$f":"IF(C1374=\"\",NA(),MATCH($B1374&$C1374,'Smelter Look-up'!$J:$J,0))","v":{"$error":"#N/A"}},null,0,null,null,null,""]
[null,{"$f":"IF(LEN(A1375)=0,\"\",INDEX('Smelter Look-up'!$A:$A,MATCH($A1375,'Smelter Look-up'!$E:$E,0)))","v":""},{"$f":"IF(LEN(A1375)=0,\"\",INDEX('Smelter Look-up'!$C:$C,MATCH($A1375,'Smelter Look-up'!$E:$E,0)))","v":""},null,{"$f":"IF(ISERROR($V1375),\"\",OFFSET('Smelter Look-up'!$D$4,$V1375-4,0)&\"\")","v":""},{"$f":"IF(ISERROR($V1375),\"\",OFFSET('Smelter Look-up'!$E$4,$V1375-4,0))","v":""},{"$f":"IF(C1375=$X$4,\"Enter smelter details\",IF(ISERROR($V1375),\"\",OFFSET('Smelter Look-up'!$F$4,$V1375-4,0)))","v":""},{"$f":"IF(ISERROR($V1375),\"\",OFFSET('Smelter Look-up'!$G$4,$V1375-4,0))","v":""},{"$f":"IF(ISERROR($V1375),\"\",OFFSET('Smelter Look-up'!$H$4,$V1375-4,0))","v":""},{"$f":"IF(ISERROR($V1375),\"\",OFFSET('Smelter Look-up'!$I$4,$V1375-4,0))","v":""},{"$nulls":7},{"$f":"IF(ISERROR($V1375),\"\",OFFSET('Smelter Look-up'!$C$4,$V1375-4,0)&\"\")","v":""},"",{"$f":"IF(B1375=\"\",\"\",IF(ISERROR(MATCH($J1375,SorP!$B$1:$B$5661,0)),\"\",INDIRECT(\"'SorP'!$A$\"&MATCH($J1375,SorP!$B$1:$B$5661,0))))","v":""},null,{"$f":"IF(C1375=\"\",NA(),MATCH($B1375&$C1375,'Smelter Look-up'!$J:$J,0))","v":{"$error":"#N/A"}},null,0,null,null,null,""]
[null,{"$f":"IF(LEN(A1376)=0,\"\",INDEX('Smelter Look-up'!$A:$A,MATCH($A1376,'Smelter Look-up'!$E:$E,0)))","v":""},{"$f":"IF(LEN(A1376)=0,\"\",INDEX('Smelter Look-up'!$C:$C,MATCH($A1376,'Smelter Look-up'!$E:$E,0)))","v":""},null,{"$f":"IF(ISERROR($V1376),\"\",OFFSET('Smelter Look-up'!$D$4,$V1376-4,0)&\"\")","v":""},{"$f":"IF(ISERROR($V1376),\"\",OFFSET('Smelter Look-up'!$E$4,$V1376-4,0))","v":""},{"$f":"IF(C1376=$X$4,\"Enter smelter details\",IF(ISERROR($V1376),\"\",OFFSET('Smelter Look-up'!$F$4,$V1376-4,0)))","v":""},{"$f":"IF(ISERROR($V1376),\"\",OFFSET('Smelter Look-up'!$G$4,$V1376-4,0))","v":""},{"$f":"IF(ISERROR($V1376),\"\",OFFSET('Smelter Look-up'!$H$4,$V1376-4,0))","v":""},{"$f":"IF(ISERROR($V1376),\"\",OFFSET('Smelter Look-up'!$I$4,$V1376-4,0))","v":""},{"$nulls":7},{"$f":"IF(ISERROR($V1376),\"\",OFFSET('Smelter Look-up'!$C$4,$V1376-4,0)&\"\")","v":""},"",{"$f":"IF(B1376=\"\",\"\",IF(ISERROR(MATCH($J1376,SorP!$B$1:$B$5661,0)),\"\",INDIRECT(\"'SorP'!$A$\"&MATCH($J1376,SorP!$B$1:$B$5661,0))))","v":""},null,{"$f":"IF(C1376=\"\",NA(),MATCH($B1376&$C1376,'Smelter Look-up'!$J:$J,0))","v":{"$error":"#N/A"}},null,0,null,null,null,""]
[null,{"$f":"IF(LEN(A1377)=0,\"\",INDEX('Smelter Look-up'!$A:$A,MATCH($A1377,'Smelter Look-up'!$E:$E,0)))","v":""},{"$f":"IF(LEN(A1377)=0,\"\",INDEX('Smelter Look-up'!$C:$C,MATCH($A1377,'Smelter Look-up'!$E:$E,0)))","v":""},null,{"$f":"IF(ISERROR($V1377),\"\",OFFSET('Smelter Look-up'!$D$4,$V1377-4,0)&\"\")","v":""},{"$f":"IF(ISERROR($V1377),\"\",OFFSET('Smelter Look-up'!$E$4,$V1377-4,0))","v":""},{"$f":"IF(C1377=$X$4,\"Enter smelter details\",IF(ISERROR($V1377),\"\",OFFSET('Smelter Look-up'!$F$4,$V1377-4,0)))","v":""},{"$f":"IF(ISERROR($V1377),\"\",OFFSET('Smelter Look-up'!$G$4,$V1377-4,0))","v":""},{"$f":"IF(ISERROR($V1377),\"\",OFFSET('Smelter Look-up'!$H$4,$V1377-4,0))","v":""},{"$f":"IF(ISERROR($V1377),\"\",OFFSET('Smelter Look-up'!$I$4,$V1377-4,0))","v":""},{"$nulls":7},{"$f":"IF(ISERROR($V1377),\"\",OFFSET('Smelter Look-up'!$C$4,$V1377-4,0)&\"\")","v":""},"",{"$f":"IF(B1377=\"\",\"\",IF(ISERROR(MATCH($J1377,SorP!$B$1:$B$5661,0)),\"\",INDIRECT(\"'SorP'!$A$\"&MATCH($J1377,SorP!$B$1:$B$5661,0))))","v":""},null,{"$f":"IF(C1377=\"\",NA(),MATCH($B1377&$C1377,'Smelter Look-up'!$J:$J,0))","v":{"$error":"#N/A"}},null,0,null,null,null,""]
[null,{"$f":"IF(LEN(A1378)=0,\"\",INDEX('Smelter Look-up'!$A:$A,MATCH($A1378,'Smelter Look-up'!$E:$E,0)))","v":""},{"$f":"IF(LEN(A1378)=0,\"\",INDEX('Smelter Look-up'!$C:$C,MATCH($A1378,'Smelter Look-up'!$E:$E,0)))","v":""},null,{"$f":"IF(ISERROR($V1378),\"\",OFFSET('Smelter Look-up'!$D$4,$V1378-4,0)&\"\")","v":""},{"$f":"IF(ISERROR($V1378),\"\",OFFSET('Smelter Look-up'!$E$4,$V1378-4,0))","v":""},{"$f":"IF(C1378=$X$4,\"Enter smelter details\",IF(ISERROR($V1378),\"\",OFFSET('Smelter Look-up'!$F$4,$V1378-4,0)))","v":""},{"$f":"IF(ISERROR($V1378),\"\",OFFSET('Smelter Look-up'!$G$4,$V1378-4,0))","v":""},{"$f":"IF(ISERROR($V1378),\"\",OFFSET('Smelter Look-up'!$H$4,$V1378-4,0))","v":""},{"$f":"IF(ISERROR($V1378),\"\",OFFSET('Smelter Look-up'!$I$4,$V1378-4,0))","v":""},{"$nulls":7},{"$f":"IF(ISERROR($V1378),\"\",OFFSET('Smelter Look-up'!$C$4,$V1378-4,0)&\"\")","v":""},"",{"$f":"IF(B1378=\"\",\"\",IF(ISERROR(MATCH($J1378,SorP!$B$1:$B$5661,0)),\"\",INDIRECT(\"'SorP'!$A$\"&MATCH($J1378,SorP!$B$1:$B$5661,0))))","v":""},null,{"$f":"IF(C1378=\"\",NA(),MATCH($B1378&$C1378,'Smelter Look-up'!$J:$J,0))","v":{"$error":"#N/A"}},null,0,null,null,null,""]
[null,{"$f":"IF(LEN(A1379)=0,\"\",INDEX('Smelter Look-up'!$A:$A,MATCH($A1379,'Smelter Look-up'!$E:$E,0)))","v":""},{"$f":"IF(LEN(A1379)=0,\"\",INDEX('Smelter Look-up'!$C:$C,MATCH($A1379,'Smelter Look-up'!$E:$E,0)))","v":""},null,{"$f":"IF(ISERROR($V1379),\"\",OFFSET('Smelter Look-up'!$D$4,$V1379-4,0)&\"\")","v":""},{"$f":"IF(ISERROR($V1379),\"\",OFFSET('Smelter Look-up'!$E$4,$V1379-4,0))","v":""},{"$f":"IF(C1379=$X$4,\"Enter smelter details\",IF(ISERROR($V1379),\"\",OFFSET('Smelter Look-up'!$F$4,$V1379-4,0)))","v":""},{"$f":"IF(ISERROR($V1379),\"\",OFFSET('Smelter Look-up'!$G$4,$V1379-4,0))","v":""},{"$f":"IF(ISERROR($V1379),\"\",OFFSET('Smelter Look-up'!$H$4,$V1379-4,0))","v":""},{"$f":"IF(ISERROR($V1379),\"\",OFFSET('Smelter Look-up'!$I$4,$V1379-4,0))","v":""},{"$nulls":7},{"$f":"IF(ISERROR($V1379),\"\",OFFSET('Smelter Look-up'!$C$4,$V1379-4,0)&\"\")","v":""},"",{"$f":"IF(B1379=\"\",\"\",IF(ISERROR(MATCH($J1379,SorP!$B$1:$B$5661,0)),\"\",INDIRECT(\"'SorP'!$A$\"&MATCH($J1379,SorP!$B$1:$B$5661,0))))","v":""},null,{"$f":"IF(C1379=\"\",NA(),MATCH($B1379&$C1379,'Smelter Look-up'!$J:$J,0))","v":{"$error":"#N/A"}},null,0,null,null,null,""]
[null,{"$f":"IF(LEN(A1380)=0,\"\",INDEX('Smelter Look-up'!$A:$A,MATCH($A1380,'Smelter Look-up'!$E:$E,0)))","v":""},{"$f":"IF(LEN(A1380)=0,\"\",INDEX('Smelter Look-up'!$C:$C,MATCH($A1380,'Smelter Look-up'!$E:$E,0)))","v":""},null,{"$f":"IF(ISERROR($V1380),\"\",OFFSET('Smelter Look-up'!$D$4,$V1380-4,0)&\"\")","v":""},{"$f":"IF(ISERROR($V1380),\"\",OFFSET('Smelter Look-up'!$E$4,$V1380-4,0))","v":""},{"$f":"IF(C1380=$X$4,\"Enter smelter details\",IF(ISERROR($V1380),\"\",OFFSET('Smelter Look-up'!$F$4,$V1380-4,0)))","v":""},{"$f":"IF(ISERROR($V1380),\"\",OFFSET('Smelter Look-up'!$G$4,$V1380-4,0))","v":""},{"$f":"IF(ISERROR($V1380),\"\",OFFSET('Smelter Look-up'!$H$4,$V1380-4,0))","v":""},{"$f":"IF(ISERROR($V1380),\"\",OFFSET('Smelter Look-up'!$I$4,$V1380-4,0))","v":""},{"$nulls":7},{"$f":"IF(ISERROR($V1380),\"\",OFFSET('Smelter Look-up'!$C$4,$V1380-4,0)&\"\")","v":""},"",{"$f":"IF(B1380=\"\",\"\",IF(ISERROR(MATCH($J1380,SorP!$B$1:$B$5661,0)),\"\",INDIRECT(\"'SorP'!$A$\"&MATCH($J1380,SorP!$B$1:$B$5661,0))))","v":""},null,{"$f":"IF(C1380=\"\",NA(),MATCH($B1380&$C1380,'Smelter Look-up'!$J:$J,0))","v":{"$error":"#N/A"}},null,0,null,null,null,""]
[null,{"$f":"IF(LEN(A1381)=0,\"\",INDEX('Smelter Look-up'!$A:$A,MATCH($A1381,'Smelter Look-up'!$E:$E,0)))","v":""},{"$f":"IF(LEN(A1381)=0,\"\",INDEX('Smelter Look-up'!$C:$C,MATCH($A1381,'Smelter Look-up'!$E:$E,0)))","v":""},null,{"$f":"IF(ISERROR($V1381),\"\",OFFSET('Smelter Look-up'!$D$4,$V1381-4,0)&\"\")","v":""},{"$f":"IF(ISERROR($V1381),\"\",OFFSET('Smelter Look-up'!$E$4,$V1381-4,0))","v":""},{"$f":"IF(C1381=$X$4,\"Enter smelter details\",IF(ISERROR($V1381),\"\",OFFSET('Smelter Look-up'!$F$4,$V1381-4,0)))","v":""},{"$f":"IF(ISERROR($V1381),\"\",OFFSET('Smelter Look-up'!$G$4,$V1381-4,0))","v":""},{"$f":"IF(ISERROR($V1381),\"\",OFFSET('Smelter Look-up'!$H$4,$V1381-4,0))","v":""},{"$f":"IF(ISERROR($V1381),\"\",OFFSET('Smelter Look-up'!$I$4,$V1381-4,0))","v":""},{"$nulls":7},{"$f":"IF(ISERROR($V1381),\"\",OFFSET('Smelter Look-up'!$C$4,$V1381-4,0)&\"\")","v":""},"",{"$f":"IF(B1381=\"\",\"\",IF(ISERROR(MATCH($J1381,SorP!$B$1:$B$5661,0)),\"\",INDIRECT(\"'SorP'!$A$\"&MATCH($J1381,SorP!$B$1:$B$5661,0))))","v":""},null,{"$f":"IF(C1381=\"\",NA(),MATCH($B1381&$C1381,'Smelter Look-up'!$J:$J,0))","v":{"$error":"#N/A"}},null,0,null,null,null,""]
[null,{"$f":"IF(LEN(A1382)=0,\"\",INDEX('Smelter Look-up'!$A:$A,MATCH($A1382,'Smelter Look-up'!$E:$E,0)))","v":""},{"$f":"IF(LEN(A1382)=0,\"\",INDEX('Smelter Look-up'!$C:$C,MATCH($A1382,'Smelter Look-up'!$E:$E,0)))","v":""},null,{"$f":"IF(ISERROR($V1382),\"\",OFFSET('Smelter Look-up'!$D$4,$V1382-4,0)&\"\")","v":""},{"$f":"IF(ISERROR($V1382),\"\",OFFSET('Smelter Look-up'!$E$4,$V1382-4,0))","v":""},{"$f":"IF(C1382=$X$4,\"Enter smelter details\",IF(ISERROR($V1382),\"\",OFFSET('Smelter Look-up'!$F$4,$V1382-4,0)))","v":""},{"$f":"IF(ISERROR($V1382),\"\",OFFSET('Smelter Look-up'!$G$4,$V1382-4,0))","v":""},{"$f":"IF(ISERROR($V1382),\"\",OFFSET('Smelter Look-up'!$H$4,$V1382-4,0))","v":""},{"$f":"IF(ISERROR($V1382),\"\",OFFSET('Smelter Look-up'!$I$4,$V1382-4,0))","v":""},{"$nulls":7},{"$f":"IF(ISERROR($V1382),\"\",OFFSET('Smelter Look-up'!$C$4,$V1382-4,0)&\"\")","v":""},"",{"$f":"IF(B1382=\"\",\"\",IF(ISERROR(MATCH($J1382,SorP!$B$1:$B$5661,0)),\"\",INDIRECT(\"'SorP'!$A$\"&MATCH($J1382,SorP!$B$1:$B$5661,0))))","v":""},null,{"$f":"IF(C1382=\"\",NA(),MATCH($B1382&$C1382,'Smelter Look-up'!$J:$J,0))","v":{"$error":"#N/A"}},null,0,null,null,null,""]
[null,{"$f":"IF(LEN(A1383)=0,\"\",INDEX('Smelter Look-up'!$A:$A,MATCH($A1383,'Smelter Look-up'!$E:$E,0)))","v":""},{"$f":"IF(LEN(A1383)=0,\"\",INDEX('Smelter Look-up'!$C:$C,MATCH($A1383,'Smelter Look-up'!$E:$E,0)))","v":""},null,{"$f":"IF(ISERROR($V1383),\"\",OFFSET('Smelter Look-up'!$D$4,$V1383-4,0)&\"\")","v":""},{"$f":"IF(ISERROR($V1383),\"\",OFFSET('Smelter Look-up'!$E$4,$V1383-4,0))","v":""},{"$f":"IF(C1383=$X$4,\"Enter smelter details\",IF(ISERROR($V1383),\"\",OFFSET('Smelter Look-up'!$F$4,$V1383-4,0)))","v":""},{"$f":"IF(ISERROR($V1383),\"\",OFFSET('Smelter Look-up'!$G$4,$V1383-4,0))","v":""},{"$f":"IF(ISERROR($V1383),\"\",OFFSET('Smelter Look-up'!$H$4,$V1383-4,0))","v":""},{"$f":"IF(ISERROR($V1383),\"\",OFFSET('Smelter Look-up'!$I$4,$V1383-4,0))","v":""},{"$nulls":7},{"$f":"IF(ISERROR($V1383),\"\",OFFSET('Smelter Look-up'!$C$4,$V1383-4,0)&\"\")","v":""},"",{"$f":"IF(B1383=\"\",\"\",IF(ISERROR(MATCH($J1383,SorP!$B$1:$B$5661,0)),\"\",INDIRECT(\"'SorP'!$A$\"&MATCH($J1383,SorP!$B$1:$B$5661,0))))","v":""},null,{"$f":"IF(C1383=\"\",NA(),MATCH($B1383&$C1383,'Smelter Look-up'!$J:$J,0))","v":{"$error":"#N/A"}},null,0,null,null,null,""]
[null,{"$f":"IF(LEN(A1384)=0,\"\",INDEX('Smelter Look-up'!$A:$A,MATCH($A1384,'Smelter Look-up'!$E:$E,0)))","v":""},{"$f":"IF(LEN(A1384)=0,\"\",INDEX('Smelter Look-up'!$C:$C,MATCH($A1384,'Smelter Look-up'!$E:$E,0)))","v":""},null,{"$f":"IF(ISERROR($V1384),\"\",OFFSET('Smelter Look-up'!$D$4,$V1384-4,0)&\"\")","v":""},{"$f":"IF(ISERROR($V1384),\"\",OFFSET('Smelter Look-up'!$E$4,$V1384-4,0))","v":""},{"$f":"IF(C1384=$X$4,\"Enter smelter details\",IF(ISERROR($V1384),\"\",OFFSET('Smelter Look-up'!$F$4,$V1384-4,0)))","v":""},{"$f":"IF(ISERROR($V1384),\"\",OFFSET('Smelter Look-up'!$G$4,$V1384-4,0))","v":""},{"$f":"IF(ISERROR($V1384),\"\",OFFSET('Smelter Look-up'!$H$4,$V1384-4,0))","v":""},{"$f":"IF(ISERROR($V1384),\"\",OFFSET('Smelter Look-up'!$I$4,$V1384-4,0))","v":""},{"$nulls":7},{"$f":"IF(ISERROR($V1384),\"\",OFFSET('Smelter Look-up'!$C$4,$V1384-4,0)&\"\")","v":""},"",{"$f":"IF(B1384=\"\",\"\",IF(ISERROR(MATCH($J1384,SorP!$B$1:$B$5661,0)),\"\",INDIRECT(\"'SorP'!$A$\"&MATCH($J1384,SorP!$B$1:$B$5661,0))))","v":""},null,{"$f":"IF(C1384=\"\",NA(),MATCH($B1384&$C1384,'Smelter Look-up'!$J:$J,0))","v":{"$error":"#N/A"}},null,0,null,null,null,""]
[null,{"$f":"IF(LEN(A1385)=0,\"\",INDEX('Smelter Look-up'!$A:$A,MATCH($A1385,'Smelter Look-up'!$E:$E,0)))","v":""},{"$f":"IF(LEN(A1385)=0,\"\",INDEX('Smelter Look-up'!$C:$C,MATCH($A1385,'Smelter Look-up'!$E:$E,0)))","v":""},null,{"$f":"IF(ISERROR($V1385),\"\",OFFSET('Smelter Look-up'!$D$4,$V1385-4,0)&\"\")","v":""},{"$f":"IF(ISERROR($V1385),\"\",OFFSET('Smelter Look-up'!$E$4,$V1385-4,0))","v":""},{"$f":"IF(C1385=$X$4,\"Enter smelter details\",IF(ISERROR($V1385),\"\",OFFSET('Smelter Look-up'!$F$4,$V1385-4,0)))","v":""},{"$f":"IF(ISERROR($V1385),\"\",OFFSET('Smelter Look-up'!$G$4,$V1385-4,0))","v":""},{"$f":"IF(ISERROR($V1385),\"\",OFFSET('Smelter Look-up'!$H$4,$V1385-4,0))","v":""},{"$f":"IF(ISERROR($V1385),\"\",OFFSET('Smelter Look-up'!$I$4,$V1385-4,0))","v":""},{"$nulls":7},{"$f":"IF(ISERROR($V1385),\"\",OFFSET('Smelter Look-up'!$C$4,$V1385-4,0)&\"\")","v":""},"",{"$f":"IF(B1385=\"\",\"\",IF(ISERROR(MATCH($J1385,SorP!$B$1:$B$5661,0)),\"\",INDIRECT(\"'SorP'!$A$\"&MATCH($J1385,SorP!$B$1:$B$5661,0))))","v":""},null,{"$f":"IF(C1385=\"\",NA(),MATCH($B1385&$C1385,'Smelter Look-up'!$J:$J,0))","v":{"$error":"#N/A"}},null,0,null,null,null,""]
[null,{"$f":"IF(LEN(A1386)=0,\"\",INDEX('Smelter Look-up'!$A:$A,MATCH($A1386,'Smelter Look-up'!$E:$E,0)))","v":""},{"$f":"IF(LEN(A1386)=0,\"\",INDEX('Smelter Look-up'!$C:$C,MATCH($A1386,'Smelter Look-up'!$E:$E,0)))","v":""},null,{"$f":"IF(ISERROR($V1386),\"\",OFFSET('Smelter Look-up'!$D$4,$V1386-4,0)&\"\")","v":""},{"$f":"IF(ISERROR($V1386),\"\",OFFSET('Smelter Look-up'!$E$4,$V1386-4,0))","v":""},{"$f":"IF(C1386=$X$4,\"Enter smelter details\",IF(ISERROR($V1386),\"\",OFFSET('Smelter Look-up'!$F$4,$V1386-4,0)))","v":""},{"$f":"IF(ISERROR($V1386),\"\",OFFSET('Smelter Look-up'!$G$4,$V1386-4,0))","v":""},{"$f":"IF(ISERROR($V1386),\"\",OFFSET('Smelter Look-up'!$H$4,$V1386-4,0))","v":""},{"$f":"IF(ISERROR($V1386),\"\",OFFSET('Smelter Look-up'!$I$4,$V1386-4,0))","v":""},{"$nulls":7},{"$f":"IF(ISERROR($V1386),\"\",OFFSET('Smelter Look-up'!$C$4,$V1386-4,0)&\"\")","v":""},"",{"$f":"IF(B1386=\"\",\"\",IF(ISERROR(MATCH($J1386,SorP!$B$1:$B$5661,0)),\"\",INDIRECT(\"'SorP'!$A$\"&MATCH($J1386,SorP!$B$1:$B$5661,0))))","v":""},null,{"$f":"IF(C1386=\"\",NA(),MATCH($B1386&$C1386,'Smelter Look-up'!$J:$J,0))","v":{"$error":"#N/A"}},null,0,null,null,null,""]
[null,{"$f":"IF(LEN(A1387)=0,\"\",INDEX('Smelter Look-up'!$A:$A,MATCH($A1387,'Smelter Look-up'!$E:$E,0)))","v":""},{"$f":"IF(LEN(A1387)=0,\"\",INDEX('Smelter Look-up'!$C:$C,MATCH($A1387,'Smelter Look-up'!$E:$E,0)))","v":""},null,{"$f":"IF(ISERROR($V1387),\"\",OFFSET('Smelter Look-up'!$D$4,$V1387-4,0)&\"\")","v":""},{"$f":"IF(ISERROR($V1387),\"\",OFFSET('Smelter Look-up'!$E$4,$V1387-4,0))","v":""},{"$f":"IF(C1387=$X$4,\"Enter smelter details\",IF(ISERROR($V1387),\"\",OFFSET('Smelter Look-up'!$F$4,$V1387-4,0)))","v":""},{"$f":"IF(ISERROR($V1387),\"\",OFFSET('Smelter Look-up'!$G$4,$V1387-4,0))","v":""},{"$f":"IF(ISERROR($V1387),\"\",OFFSET('Smelter Look-up'!$H$4,$V1387-4,0))","v":""},{"$f":"IF(ISERROR($V1387),\"\",OFFSET('Smelter Look-up'!$I$4,$V1387-4,0))","v":""},{"$nulls":7},{"$f":"IF(ISERROR($V1387),\"\",OFFSET('Smelter Look-up'!$C$4,$V1387-4,0)&\"\")","v":""},"",{"$f":"IF(B1387=\"\",\"\",IF(ISERROR(MATCH($J1387,SorP!$B$1:$B$5661,0)),\"\",INDIRECT(\"'SorP'!$A$\"&MATCH($J1387,SorP!$B$1:$B$5661,0))))","v":""},null,{"$f":"IF(C1387=\"\",NA(),MATCH($B1387&$C1387,'Smelter Look-up'!$J:$J,0))","v":{"$error":"#N/A"}},null,0,null,null,null,""]
[null,{"$f":"IF(LEN(A1388)=0,\"\",INDEX('Smelter Look-up'!$A:$A,MATCH($A1388,'Smelter Look-up'!$E:$E,0)))","v":""},{"$f":"IF(LEN(A1388)=0,\"\",INDEX('Smelter Look-up'!$C:$C,MATCH($A1388,'Smelter Look-up'!$E:$E,0)))","v":""},null,{"$f":"IF(ISERROR($V1388),\"\",OFFSET('Smelter Look-up'!$D$4,$V1388-4,0)&\"\")","v":""},{"$f":"IF(ISERROR($V1388),\"\",OFFSET('Smelter Look-up'!$E$4,$V1388-4,0))","v":""},{"$f":"IF(C1388=$X$4,\"Enter smelter details\",IF(ISERROR($V1388),\"\",OFFSET('Smelter Look-up'!$F$4,$V1388-4,0)))","v":""},{"$f":"IF(ISERROR($V1388),\"\",OFFSET('Smelter Look-up'!$G$4,$V1388-4,0))","v":""},{"$f":"IF(ISERROR($V1388),\"\",OFFSET('Smelter Look-up'!$H$4,$V1388-4,0))","v":""},{"$f":"IF(ISERROR($V1388),\"\",OFFSET('Smelter Look-up'!$I$4,$V1388-4,0))","v":""},{"$nulls":7},{"$f":"IF(ISERROR($V1388),\"\",OFFSET('Smelter Look-up'!$C$4,$V1388-4,0)&\"\")","v":""},"",{"$f":"IF(B1388=\"\",\"\",IF(ISERROR(MATCH($J1388,SorP!$B$1:$B$5661,0)),\"\",INDIRECT(\"'SorP'!$A$\"&MATCH($J1388,SorP!$B$1:$B$5661,0))))","v":""},null,{"$f":"IF(C1388=\"\",NA(),MATCH($B1388&$C1388,'Smelter Look-up'!$J:$J,0))","v":{"$error":"#N/A"}},null,0,null,null,null,""]
[null,{"$f":"IF(LEN(A1389)=0,\"\",INDEX('Smelter Look-up'!$A:$A,MATCH($A1389,'Smelter Look-up'!$E:$E,0)))","v":""},{"$f":"IF(LEN(A1389)=0,\"\",INDEX('Smelter Look-up'!$C:$C,MATCH($A1389,'Smelter Look-up'!$E:$E,0)))","v":""},null,{"$f":"IF(ISERROR($V1389),\"\",OFFSET('Smelter Look-up'!$D$4,$V1389-4,0)&\"\")","v":""},{"$f":"IF(ISERROR($V1389),\"\",OFFSET('Smelter Look-up'!$E$4,$V1389-4,0))","v":""},{"$f":"IF(C1389=$X$4,\"Enter smelter details\",IF(ISERROR($V1389),\"\",OFFSET('Smelter Look-up'!$F$4,$V1389-4,0)))","v":""},{"$f":"IF(ISERROR($V1389),\"\",OFFSET('Smelter Look-up'!$G$4,$V1389-4,0))","v":""},{"$f":"IF(ISERROR($V1389),\"\",OFFSET('Smelter Look-up'!$H$4,$V1389-4,0))","v":""},{"$f":"IF(ISERROR($V1389),\"\",OFFSET('Smelter Look-up'!$I$4,$V1389-4,0))","v":""},{"$nulls":7},{"$f":"IF(ISERROR($V1389),\"\",OFFSET('Smelter Look-up'!$C$4,$V1389-4,0)&\"\")","v":""},"",{"$f":"IF(B1389=\"\",\"\",IF(ISERROR(MATCH($J1389,SorP!$B$1:$B$5661,0)),\"\",INDIRECT(\"'SorP'!$A$\"&MATCH($J1389,SorP!$B$1:$B$5661,0))))","v":""},null,{"$f":"IF(C1389=\"\",NA(),MATCH($B1389&$C1389,'Smelter Look-up'!$J:$J,0))","v":{"$error":"#N/A"}},null,0,null,null,null,""]
[null,{"$f":"IF(LEN(A1390)=0,\"\",INDEX('Smelter Look-up'!$A:$A,MATCH($A1390,'Smelter Look-up'!$E:$E,0)))","v":""},{"$f":"IF(LEN(A1390)=0,\"\",INDEX('Smelter Look-up'!$C:$C,MATCH($A1390,'Smelter Look-up'!$E:$E,0)))","v":""},null,{"$f":"IF(ISERROR($V1390),\"\",OFFSET('Smelter Look-up'!$D$4,$V1390-4,0)&\"\")","v":""},{"$f":"IF(ISERROR($V1390),\"\",OFFSET('Smelter Look-up'!$E$4,$V1390-4,0))","v":""},{"$f":"IF(C1390=$X$4,\"Enter smelter details\",IF(ISERROR($V1390),\"\",OFFSET('Smelter Look-up'!$F$4,$V1390-4,0)))","v":""},{"$f":"IF(ISERROR($V1390),\"\",OFFSET('Smelter Look-up'!$G$4,$V1390-4,0))","v":""},{"$f":"IF(ISERROR($V1390),\"\",OFFSET('Smelter Look-up'!$H$4,$V1390-4,0))","v":""},{"$f":"IF(ISERROR($V1390),\"\",OFFSET('Smelter Look-up'!$I$4,$V1390-4,0))","v":""},{"$nulls":7},{"$f":"IF(ISERROR($V1390),\"\",OFFSET('Smelter Look-up'!$C$4,$V1390-4,0)&\"\")","v":""},"",{"$f":"IF(B1390=\"\",\"\",IF(ISERROR(MATCH($J1390,SorP!$B$1:$B$5661,0)),\"\",INDIRECT(\"'SorP'!$A$\"&MATCH($J1390,SorP!$B$1:$B$5661,0))))","v":""},null,{"$f":"IF(C1390=\"\",NA(),MATCH($B1390&$C1390,'Smelter Look-up'!$J:$J,0))","v":{"$error":"#N/A"}},null,0,null,null,null,""]
[null,{"$f":"IF(LEN(A1391)=0,\"\",INDEX('Smelter Look-up'!$A:$A,MATCH($A1391,'Smelter Look-up'!$E:$E,0)))","v":""},{"$f":"IF(LEN(A1391)=0,\"\",INDEX('Smelter Look-up'!$C:$C,MATCH($A1391,'Smelter Look-up'!$E:$E,0)))","v":""},null,{"$f":"IF(ISERROR($V1391),\"\",OFFSET('Smelter Look-up'!$D$4,$V1391-4,0)&\"\")","v":""},{"$f":"IF(ISERROR($V1391),\"\",OFFSET('Smelter Look-up'!$E$4,$V1391-4,0))","v":""},{"$f":"IF(C1391=$X$4,\"Enter smelter details\",IF(ISERROR($V1391),\"\",OFFSET('Smelter Look-up'!$F$4,$V1391-4,0)))","v":""},{"$f":"IF(ISERROR($V1391),\"\",OFFSET('Smelter Look-up'!$G$4,$V1391-4,0))","v":""},{"$f":"IF(ISERROR($V1391),\"\",OFFSET('Smelter Look-up'!$H$4,$V1391-4,0))","v":""},{"$f":"IF(ISERROR($V1391),\"\",OFFSET('Smelter Look-up'!$I$4,$V1391-4,0))","v":""},{"$nulls":7},{"$f":"IF(ISERROR($V1391),\"\",OFFSET('Smelter Look-up'!$C$4,$V1391-4,0)&\"\")","v":""},"",{"$f":"IF(B1391=\"\",\"\",IF(ISERROR(MATCH($J1391,SorP!$B$1:$B$5661,0)),\"\",INDIRECT(\"'SorP'!$A$\"&MATCH($J1391,SorP!$B$1:$B$5661,0))))","v":""},null,{"$f":"IF(C1391=\"\",NA(),MATCH($B1391&$C1391,'Smelter Look-up'!$J:$J,0))","v":{"$error":"#N/A"}},null,0,null,null,null,""]
[null,{"$f":"IF(LEN(A1392)=0,\"\",INDEX('Smelter Look-up'!$A:$A,MATCH($A1392,'Smelter Look-up'!$E:$E,0)))","v":""},{"$f":"IF(LEN(A1392)=0,\"\",INDEX('Smelter Look-up'!$C:$C,MATCH($A1392,'Smelter Look-up'!$E:$E,0)))","v":""},null,{"$f":"IF(ISERROR($V1392),\"\",OFFSET('Smelter Look-up'!$D$4,$V1392-4,0)&\"\")","v":""},{"$f":"IF(ISERROR($V1392),\"\",OFFSET('Smelter Look-up'!$E$4,$V1392-4,0))","v":""},{"$f":"IF(C1392=$X$4,\"Enter smelter details\",IF(ISERROR($V1392),\"\",OFFSET('Smelter Look-up'!$F$4,$V1392-4,0)))","v":""},{"$f":"IF(ISERROR($V1392),\"\",OFFSET('Smelter Look-up'!$G$4,$V1392-4,0))","v":""},{"$f":"IF(ISERROR($V1392),\"\",OFFSET('Smelter Look-up'!$H$4,$V1392-4,0))","v":""},{"$f":"IF(ISERROR($V1392),\"\",OFFSET('Smelter Look-up'!$I$4,$V1392-4,0))","v":""},{"$nulls":7},{"$f":"IF(ISERROR($V1392),\"\",OFFSET('Smelter Look-up'!$C$4,$V1392-4,0)&\"\")","v":""},"",{"$f":"IF(B1392=\"\",\"\",IF(ISERROR(MATCH($J1392,SorP!$B$1:$B$5661,0)),\"\",INDIRECT(\"'SorP'!$A$\"&MATCH($J1392,SorP!$B$1:$B$5661,0))))","v":""},null,{"$f":"IF(C1392=\"\",NA(),MATCH($B1392&$C1392,'Smelter Look-up'!$J:$J,0))","v":{"$error":"#N/A"}},null,0,null,null,null,""]
[null,{"$f":"IF(LEN(A1393)=0,\"\",INDEX('Smelter Look-up'!$A:$A,MATCH($A1393,'Smelter Look-up'!$E:$E,0)))","v":""},{"$f":"IF(LEN(A1393)=0,\"\",INDEX('Smelter Look-up'!$C:$C,MATCH($A1393,'Smelter Look-up'!$E:$E,0)))","v":""},null,{"$f":"IF(ISERROR($V1393),\"\",OFFSET('Smelter Look-up'!$D$4,$V1393-4,0)&\"\")","v":""},{"$f":"IF(ISERROR($V1393),\"\",OFFSET('Smelter Look-up'!$E$4,$V1393-4,0))","v":""},{"$f":"IF(C1393=$X$4,\"Enter smelter details\",IF(ISERROR($V1393),\"\",OFFSET('Smelter Look-up'!$F$4,$V1393-4,0)))","v":""},{"$f":"IF(ISERROR($V1393),\"\",OFFSET('Smelter Look-up'!$G$4,$V1393-4,0))","v":""},{"$f":"IF(ISERROR($V1393),\"\",OFFSET('Smelter Look-up'!$H$4,$V1393-4,0))","v":""},{"$f":"IF(ISERROR($V1393),\"\",OFFSET('Smelter Look-up'!$I$4,$V1393-4,0))","v":""},{"$nulls":7},{"$f":"IF(ISERROR($V1393),\"\",OFFSET('Smelter Look-up'!$C$4,$V1393-4,0)&\"\")","v":""},"",{"$f":"IF(B1393=\"\",\"\",IF(ISERROR(MATCH($J1393,SorP!$B$1:$B$5661,0)),\"\",INDIRECT(\"'SorP'!$A$\"&MATCH($J1393,SorP!$B$1:$B$5661,0))))","v":""},null,{"$f":"IF(C1393=\"\",NA(),MATCH($B1393&$C1393,'Smelter Look-up'!$J:$J,0))","v":{"$error":"#N/A"}},null,0,null,null,null,""]
[null,{"$f":"IF(LEN(A1394)=0,\"\",INDEX('Smelter Look-up'!$A:$A,MATCH($A1394,'Smelter Look-up'!$E:$E,0)))","v":""},{"$f":"IF(LEN(A1394)=0,\"\",INDEX('Smelter Look-up'!$C:$C,MATCH($A1394,'Smelter Look-up'!$E:$E,0)))","v":""},null,{"$f":"IF(ISERROR($V1394),\"\",OFFSET('Smelter Look-up'!$D$4,$V1394-4,0)&\"\")","v":""},{"$f":"IF(ISERROR($V1394),\"\",OFFSET('Smelter Look-up'!$E$4,$V1394-4,0))","v":""},{"$f":"IF(C1394=$X$4,\"Enter smelter details\",IF(ISERROR($V1394),\"\",OFFSET('Smelter Look-up'!$F$4,$V1394-4,0)))","v":""},{"$f":"IF(ISERROR($V1394),\"\",OFFSET('Smelter Look-up'!$G$4,$V1394-4,0))","v":""},{"$f":"IF(ISERROR($V1394),\"\",OFFSET('Smelter Look-up'!$H$4,$V1394-4,0))","v":""},{"$f":"IF(ISERROR($V1394),\"\",OFFSET('Smelter Look-up'!$I$4,$V1394-4,0))","v":""},{"$nulls":7},{"$f":"IF(ISERROR($V1394),\"\",OFFSET('Smelter Look-up'!$C$4,$V1394-4,0)&\"\")","v":""},"",{"$f":"IF(B1394=\"\",\"\",IF(ISERROR(MATCH($J1394,SorP!$B$1:$B$5661,0)),\"\",INDIRECT(\"'SorP'!$A$\"&MATCH($J1394,SorP!$B$1:$B$5661,0))))","v":""},null,{"$f":"IF(C1394=\"\",NA(),MATCH($B1394&$C1394,'Smelter Look-up'!$J:$J,0))","v":{"$error":"#N/A"}},null,0,null,null,null,""]
[null,{"$f":"IF(LEN(A1395)=0,\"\",INDEX('Smelter Look-up'!$A:$A,MATCH($A1395,'Smelter Look-up'!$E:$E,0)))","v":""},{"$f":"IF(LEN(A1395)=0,\"\",INDEX('Smelter Look-up'!$C:$C,MATCH($A1395,'Smelter Look-up'!$E:$E,0)))","v":""},null,{"$f":"IF(ISERROR($V1395),\"\",OFFSET('Smelter Look-up'!$D$4,$V1395-4,0)&\"\")","v":""},{"$f":"IF(ISERROR($V1395),\"\",OFFSET('Smelter Look-up'!$E$4,$V1395-4,0))","v":""},{"$f":"IF(C1395=$X$4,\"Enter smelter details\",IF(ISERROR($V1395),\"\",OFFSET('Smelter Look-up'!$F$4,$V1395-4,0)))","v":""},{"$f":"IF(ISERROR($V1395),\"\",OFFSET('Smelter Look-up'!$G$4,$V1395-4,0))","v":""},{"$f":"IF(ISERROR($V1395),\"\",OFFSET('Smelter Look-up'!$H$4,$V1395-4,0))","v":""},{"$f":"IF(ISERROR($V1395),\"\",OFFSET('Smelter Look-up'!$I$4,$V1395-4,0))","v":""},{"$nulls":7},{"$f":"IF(ISERROR($V1395),\"\",OFFSET('Smelter Look-up'!$C$4,$V1395-4,0)&\"\")","v":""},"",{"$f":"IF(B1395=\"\",\"\",IF(ISERROR(MATCH($J1395,SorP!$B$1:$B$5661,0)),\"\",INDIRECT(\"'SorP'!$A$\"&MATCH($J1395,SorP!$B$1:$B$5661,0))))","v":""},null,{"$f":"IF(C1395=\"\",NA(),MATCH($B1395&$C1395,'Smelter Look-up'!$J:$J,0))","v":{"$error":"#N/A"}},null,0,null,null,null,""]
[null,{"$f":"IF(LEN(A1396)=0,\"\",INDEX('Smelter Look-up'!$A:$A,MATCH($A1396,'Smelter Look-up'!$E:$E,0)))","v":""},{"$f":"IF(LEN(A1396)=0,\"\",INDEX('Smelter Look-up'!$C:$C,MATCH($A1396,'Smelter Look-up'!$E:$E,0)))","v":""},null,{"$f":"IF(ISERROR($V1396),\"\",OFFSET('Smelter Look-up'!$D$4,$V1396-4,0)&\"\")","v":""},{"$f":"IF(ISERROR($V1396),\"\",OFFSET('Smelter Look-up'!$E$4,$V1396-4,0))","v":""},{"$f":"IF(C1396=$X$4,\"Enter smelter details\",IF(ISERROR($V1396),\"\",OFFSET('Smelter Look-up'!$F$4,$V1396-4,0)))","v":""},{"$f":"IF(ISERROR($V1396),\"\",OFFSET('Smelter Look-up'!$G$4,$V1396-4,0))","v":""},{"$f":"IF(ISERROR($V1396),\"\",OFFSET('Smelter Look-up'!$H$4,$V1396-4,0))","v":""},{"$f":"IF(ISERROR($V1396),\"\",OFFSET('Smelter Look-up'!$I$4,$V1396-4,0))","v":""},{"$nulls":7},{"$f":"IF(ISERROR($V1396),\"\",OFFSET('Smelter Look-up'!$C$4,$V1396-4,0)&\"\")","v":""},"",{"$f":"IF(B1396=\"\",\"\",IF(ISERROR(MATCH($J1396,SorP!$B$1:$B$5661,0)),\"\",INDIRECT(\"'SorP'!$A$\"&MATCH($J1396,SorP!$B$1:$B$5661,0))))","v":""},null,{"$f":"IF(C1396=\"\",NA(),MATCH($B1396&$C1396,'Smelter Look-up'!$J:$J,0))","v":{"$error":"#N/A"}},null,0,null,null,null,""]
[null,{"$f":"IF(LEN(A1397)=0,\"\",INDEX('Smelter Look-up'!$A:$A,MATCH($A1397,'Smelter Look-up'!$E:$E,0)))","v":""},{"$f":"IF(LEN(A1397)=0,\"\",INDEX('Smelter Look-up'!$C:$C,MATCH($A1397,'Smelter Look-up'!$E:$E,0)))","v":""},null,{"$f":"IF(ISERROR($V1397),\"\",OFFSET('Smelter Look-up'!$D$4,$V1397-4,0)&\"\")","v":""},{"$f":"IF(ISERROR($V1397),\"\",OFFSET('Smelter Look-up'!$E$4,$V1397-4,0))","v":""},{"$f":"IF(C1397=$X$4,\"Enter smelter details\",IF(ISERROR($V1397),\"\",OFFSET('Smelter Look-up'!$F$4,$V1397-4,0)))","v":""},{"$f":"IF(ISERROR($V1397),\"\",OFFSET('Smelter Look-up'!$G$4,$V1397-4,0))","v":""},{"$f":"IF(ISERROR($V1397),\"\",OFFSET('Smelter Look-up'!$H$4,$V1397-4,0))","v":""},{"$f":"IF(ISERROR($V1397),\"\",OFFSET('Smelter Look-up'!$I$4,$V1397-4,0))","v":""},{"$nulls":7},{"$f":"IF(ISERROR($V1397),\"\",OFFSET('Smelter Look-up'!$C$4,$V1397-4,0)&\"\")","v":""},"",{"$f":"IF(B1397=\"\",\"\",IF(ISERROR(MATCH($J1397,SorP!$B$1:$B$5661,0)),\"\",INDIRECT(\"'SorP'!$A$\"&MATCH($J1397,SorP!$B$1:$B$5661,0))))","v":""},null,{"$f":"IF(C1397=\"\",NA(),MATCH($B1397&$C1397,'Smelter Look-up'!$J:$J,0))","v":{"$error":"#N/A"}},null,0,null,null,null,""]
[null,{"$f":"IF(LEN(A1398)=0,\"\",INDEX('Smelter Look-up'!$A:$A,MATCH($A1398,'Smelter Look-up'!$E:$E,0)))","v":""},{"$f":"IF(LEN(A1398)=0,\"\",INDEX('Smelter Look-up'!$C:$C,MATCH($A1398,'Smelter Look-up'!$E:$E,0)))","v":""},null,{"$f":"IF(ISERROR($V1398),\"\",OFFSET('Smelter Look-up'!$D$4,$V1398-4,0)&\"\")","v":""},{"$f":"IF(ISERROR($V1398),\"\",OFFSET('Smelter Look-up'!$E$4,$V1398-4,0))","v":""},{"$f":"IF(C1398=$X$4,\"Enter smelter details\",IF(ISERROR($V1398),\"\",OFFSET('Smelter Look-up'!$F$4,$V1398-4,0)))","v":""},{"$f":"IF(ISERROR($V1398),\"\",OFFSET('Smelter Look-up'!$G$4,$V1398-4,0))","v":""},{"$f":"IF(ISERROR($V1398),\"\",OFFSET('Smelter Look-up'!$H$4,$V1398-4,0))","v":""},{"$f":"IF(ISERROR($V1398),\"\",OFFSET('Smelter Look-up'!$I$4,$V1398-4,0))","v":""},{"$nulls":7},{"$f":"IF(ISERROR($V1398),\"\",OFFSET('Smelter Look-up'!$C$4,$V1398-4,0)&\"\")","v":""},"",{"$f":"IF(B1398=\"\",\"\",IF(ISERROR(MATCH($J1398,SorP!$B$1:$B$5661,0)),\"\",INDIRECT(\"'SorP'!$A$\"&MATCH($J1398,SorP!$B$1:$B$5661,0))))","v":""},null,{"$f":"IF(C1398=\"\",NA(),MATCH($B1398&$C1398,'Smelter Look-up'!$J:$J,0))","v":{"$error":"#N/A"}},null,0,null,null,null,""]
[null,{"$f":"IF(LEN(A1399)=0,\"\",INDEX('Smelter Look-up'!$A:$A,MATCH($A1399,'Smelter Look-up'!$E:$E,0)))","v":""},{"$f":"IF(LEN(A1399)=0,\"\",INDEX('Smelter Look-up'!$C:$C,MATCH($A1399,'Smelter Look-up'!$E:$E,0)))","v":""},null,{"$f":"IF(ISERROR($V1399),\"\",OFFSET('Smelter Look-up'!$D$4,$V1399-4,0)&\"\")","v":""},{"$f":"IF(ISERROR($V1399),\"\",OFFSET('Smelter Look-up'!$E$4,$V1399-4,0))","v":""},{"$f":"IF(C1399=$X$4,\"Enter smelter details\",IF(ISERROR($V1399),\"\",OFFSET('Smelter Look-up'!$F$4,$V1399-4,0)))","v":""},{"$f":"IF(ISERROR($V1399),\"\",OFFSET('Smelter Look-up'!$G$4,$V1399-4,0))","v":""},{"$f":"IF(ISERROR($V1399),\"\",OFFSET('Smelter Look-up'!$H$4,$V1399-4,0))","v":""},{"$f":"IF(ISERROR($V1399),\"\",OFFSET('Smelter Look-up'!$I$4,$V1399-4,0))","v":""},{"$nulls":7},{"$f":"IF(ISERROR($V1399),\"\",OFFSET('Smelter Look-up'!$C$4,$V1399-4,0)&\"\")","v":""},"",{"$f":"IF(B1399=\"\",\"\",IF(ISERROR(MATCH($J1399,SorP!$B$1:$B$5661,0)),\"\",INDIRECT(\"'SorP'!$A$\"&MATCH($J1399,SorP!$B$1:$B$5661,0))))","v":""},null,{"$f":"IF(C1399=\"\",NA(),MATCH($B1399&$C1399,'Smelter Look-up'!$J:$J,0))","v":{"$error":"#N/A"}},null,0,null,null,null,""]
[null,{"$f":"IF(LEN(A1400)=0,\"\",INDEX('Smelter Look-up'!$A:$A,MATCH($A1400,'Smelter Look-up'!$E:$E,0)))","v":""},{"$f":"IF(LEN(A1400)=0,\"\",INDEX('Smelter Look-up'!$C:$C,MATCH($A1400,'Smelter Look-up'!$E:$E,0)))","v":""},null,{"$f":"IF(ISERROR($V1400),\"\",OFFSET('Smelter Look-up'!$D$4,$V1400-4,0)&\"\")","v":""},{"$f":"IF(ISERROR($V1400),\"\",OFFSET('Smelter Look-up'!$E$4,$V1400-4,0))","v":""},{"$f":"IF(C1400=$X$4,\"Enter smelter details\",IF(ISERROR($V1400),\"\",OFFSET('Smelter Look-up'!$F$4,$V1400-4,0)))","v":""},{"$f":"IF(ISERROR($V1400),\"\",OFFSET('Smelter Look-up'!$G$4,$V1400-4,0))","v":""},{"$f":"IF(ISERROR($V1400),\"\",OFFSET('Smelter Look-up'!$H$4,$V1400-4,0))","v":""},{"$f":"IF(ISERROR($V1400),\"\",OFFSET('Smelter Look-up'!$I$4,$V1400-4,0))","v":""},{"$nulls":7},{"$f":"IF(ISERROR($V1400),\"\",OFFSET('Smelter Look-up'!$C$4,$V1400-4,0)&\"\")","v":""},"",{"$f":"IF(B1400=\"\",\"\",IF(ISERROR(MATCH($J1400,SorP!$B$1:$B$5661,0)),\"\",INDIRECT(\"'SorP'!$A$\"&MATCH($J1400,SorP!$B$1:$B$5661,0))))","v":""},null,{"$f":"IF(C1400=\"\",NA(),MATCH($B1400&$C1400,'Smelter Look-up'!$J:$J,0))","v":{"$error":"#N/A"}},null,0,null,null,null,""]
[null,{"$f":"IF(LEN(A1401)=0,\"\",INDEX('Smelter Look-up'!$A:$A,MATCH($A1401,'Smelter Look-up'!$E:$E,0)))","v":""},{"$f":"IF(LEN(A1401)=0,\"\",INDEX('Smelter Look-up'!$C:$C,MATCH($A1401,'Smelter Look-up'!$E:$E,0)))","v":""},null,{"$f":"IF(ISERROR($V1401),\"\",OFFSET('Smelter Look-up'!$D$4,$V1401-4,0)&\"\")","v":""},{"$f":"IF(ISERROR($V1401),\"\",OFFSET('Smelter Look-up'!$E$4,$V1401-4,0))","v":""},{"$f":"IF(C1401=$X$4,\"Enter smelter details\",IF(ISERROR($V1401),\"\",OFFSET('Smelter Look-up'!$F$4,$V1401-4,0)))","v":""},{"$f":"IF(ISERROR($V1401),\"\",OFFSET('Smelter Look-up'!$G$4,$V1401-4,0))","v":""},{"$f":"IF(ISERROR($V1401),\"\",OFFSET('Smelter Look-up'!$H$4,$V1401-4,0))","v":""},{"$f":"IF(ISERROR($V1401),\"\",OFFSET('Smelter Look-up'!$I$4,$V1401-4,0))","v":""},{"$nulls":7},{"$f":"IF(ISERROR($V1401),\"\",OFFSET('Smelter Look-up'!$C$4,$V1401-4,0)&\"\")","v":""},"",{"$f":"IF(B1401=\"\",\"\",IF(ISERROR(MATCH($J1401,SorP!$B$1:$B$5661,0)),\"\",INDIRECT(\"'SorP'!$A$\"&MATCH($J1401,SorP!$B$1:$B$5661,0))))","v":""},null,{"$f":"IF(C1401=\"\",NA(),MATCH($B1401&$C1401,'Smelter Look-up'!$J:$J,0))","v":{"$error":"#N/A"}},null,0,null,null,null,""]
[null,{"$f":"IF(LEN(A1402)=0,\"\",INDEX('Smelter Look-up'!$A:$A,MATCH($A1402,'Smelter Look-up'!$E:$E,0)))","v":""},{"$f":"IF(LEN(A1402)=0,\"\",INDEX('Smelter Look-up'!$C:$C,MATCH($A1402,'Smelter Look-up'!$E:$E,0)))","v":""},null,{"$f":"IF(ISERROR($V1402),\"\",OFFSET('Smelter Look-up'!$D$4,$V1402-4,0)&\"\")","v":""},{"$f":"IF(ISERROR($V1402),\"\",OFFSET('Smelter Look-up'!$E$4,$V1402-4,0))","v":""},{"$f":"IF(C1402=$X$4,\"Enter smelter details\",IF(ISERROR($V1402),\"\",OFFSET('Smelter Look-up'!$F$4,$V1402-4,0)))","v":""},{"$f":"IF(ISERROR($V1402),\"\",OFFSET('Smelter Look-up'!$G$4,$V1402-4,0))","v":""},{"$f":"IF(ISERROR($V1402),\"\",OFFSET('Smelter Look-up'!$H$4,$V1402-4,0))","v":""},{"$f":"IF(ISERROR($V1402),\"\",OFFSET('Smelter Look-up'!$I$4,$V1402-4,0))","v":""},{"$nulls":7},{"$f":"IF(ISERROR($V1402),\"\",OFFSET('Smelter Look-up'!$C$4,$V1402-4,0)&\"\")","v":""},"",{"$f":"IF(B1402=\"\",\"\",IF(ISERROR(MATCH($J1402,SorP!$B$1:$B$5661,0)),\"\",INDIRECT(\"'SorP'!$A$\"&MATCH($J1402,SorP!$B$1:$B$5661,0))))","v":""},null,{"$f":"IF(C1402=\"\",NA(),MATCH($B1402&$C1402,'Smelter Look-up'!$J:$J,0))","v":{"$error":"#N/A"}},null,0,null,null,null,""]
[null,{"$f":"IF(LEN(A1403)=0,\"\",INDEX('Smelter Look-up'!$A:$A,MATCH($A1403,'Smelter Look-up'!$E:$E,0)))","v":""},{"$f":"IF(LEN(A1403)=0,\"\",INDEX('Smelter Look-up'!$C:$C,MATCH($A1403,'Smelter Look-up'!$E:$E,0)))","v":""},null,{"$f":"IF(ISERROR($V1403),\"\",OFFSET('Smelter Look-up'!$D$4,$V1403-4,0)&\"\")","v":""},{"$f":"IF(ISERROR($V1403),\"\",OFFSET('Smelter Look-up'!$E$4,$V1403-4,0))","v":""},{"$f":"IF(C1403=$X$4,\"Enter smelter details\",IF(ISERROR($V1403),\"\",OFFSET('Smelter Look-up'!$F$4,$V1403-4,0)))","v":""},{"$f":"IF(ISERROR($V1403),\"\",OFFSET('Smelter Look-up'!$G$4,$V1403-4,0))","v":""},{"$f":"IF(ISERROR($V1403),\"\",OFFSET('Smelter Look-up'!$H$4,$V1403-4,0))","v":""},{"$f":"IF(ISERROR($V1403),\"\",OFFSET('Smelter Look-up'!$I$4,$V1403-4,0))","v":""},{"$nulls":7},{"$f":"IF(ISERROR($V1403),\"\",OFFSET('Smelter Look-up'!$C$4,$V1403-4,0)&\"\")","v":""},"",{"$f":"IF(B1403=\"\",\"\",IF(ISERROR(MATCH($J1403,SorP!$B$1:$B$5661,0)),\"\",INDIRECT(\"'SorP'!$A$\"&MATCH($J1403,SorP!$B$1:$B$5661,0))))","v":""},null,{"$f":"IF(C1403=\"\",NA(),MATCH($B1403&$C1403,'Smelter Look-up'!$J:$J,0))","v":{"$error":"#N/A"}},null,0,null,null,null,""]
[null,{"$f":"IF(LEN(A1404)=0,\"\",INDEX('Smelter Look-up'!$A:$A,MATCH($A1404,'Smelter Look-up'!$E:$E,0)))","v":""},{"$f":"IF(LEN(A1404)=0,\"\",INDEX('Smelter Look-up'!$C:$C,MATCH($A1404,'Smelter Look-up'!$E:$E,0)))","v":""},null,{"$f":"IF(ISERROR($V1404),\"\",OFFSET('Smelter Look-up'!$D$4,$V1404-4,0)&\"\")","v":""},{"$f":"IF(ISERROR($V1404),\"\",OFFSET('Smelter Look-up'!$E$4,$V1404-4,0))","v":""},{"$f":"IF(C1404=$X$4,\"Enter smelter details\",IF(ISERROR($V1404),\"\",OFFSET('Smelter Look-up'!$F$4,$V1404-4,0)))","v":""},{"$f":"IF(ISERROR($V1404),\"\",OFFSET('Smelter Look-up'!$G$4,$V1404-4,0))","v":""},{"$f":"IF(ISERROR($V1404),\"\",OFFSET('Smelter Look-up'!$H$4,$V1404-4,0))","v":""},{"$f":"IF(ISERROR($V1404),\"\",OFFSET('Smelter Look-up'!$I$4,$V1404-4,0))","v":""},{"$nulls":7},{"$f":"IF(ISERROR($V1404),\"\",OFFSET('Smelter Look-up'!$C$4,$V1404-4,0)&\"\")","v":""},"",{"$f":"IF(B1404=\"\",\"\",IF(ISERROR(MATCH($J1404,SorP!$B$1:$B$5661,0)),\"\",INDIRECT(\"'SorP'!$A$\"&MATCH($J1404,SorP!$B$1:$B$5661,0))))","v":""},null,{"$f":"IF(C1404=\"\",NA(),MATCH($B1404&$C1404,'Smelter Look-up'!$J:$J,0))","v":{"$error":"#N/A"}},null,0,null,null,null,""]
[null,{"$f":"IF(LEN(A1405)=0,\"\",INDEX('Smelter Look-up'!$A:$A,MATCH($A1405,'Smelter Look-up'!$E:$E,0)))","v":""},{"$f":"IF(LEN(A1405)=0,\"\",INDEX('Smelter Look-up'!$C:$C,MATCH($A1405,'Smelter Look-up'!$E:$E,0)))","v":""},null,{"$f":"IF(ISERROR($V1405),\"\",OFFSET('Smelter Look-up'!$D$4,$V1405-4,0)&\"\")","v":""},{"$f":"IF(ISERROR($V1405),\"\",OFFSET('Smelter Look-up'!$E$4,$V1405-4,0))","v":""},{"$f":"IF(C1405=$X$4,\"Enter smelter details\",IF(ISERROR($V1405),\"\",OFFSET('Smelter Look-up'!$F$4,$V1405-4,0)))","v":""},{"$f":"IF(ISERROR($V1405),\"\",OFFSET('Smelter Look-up'!$G$4,$V1405-4,0))","v":""},{"$f":"IF(ISERROR($V1405),\"\",OFFSET('Smelter Look-up'!$H$4,$V1405-4,0))","v":""},{"$f":"IF(ISERROR($V1405),\"\",OFFSET('Smelter Look-up'!$I$4,$V1405-4,0))","v":""},{"$nulls":7},{"$f":"IF(ISERROR($V1405),\"\",OFFSET('Smelter Look-up'!$C$4,$V1405-4,0)&\"\")","v":""},"",{"$f":"IF(B1405=\"\",\"\",IF(ISERROR(MATCH($J1405,SorP!$B$1:$B$5661,0)),\"\",INDIRECT(\"'SorP'!$A$\"&MATCH($J1405,SorP!$B$1:$B$5661,0))))","v":""},null,{"$f":"IF(C1405=\"\",NA(),MATCH($B1405&$C1405,'Smelter Look-up'!$J:$J,0))","v":{"$error":"#N/A"}},null,0,null,null,null,""]
[null,{"$f":"IF(LEN(A1406)=0,\"\",INDEX('Smelter Look-up'!$A:$A,MATCH($A1406,'Smelter Look-up'!$E:$E,0)))","v":""},{"$f":"IF(LEN(A1406)=0,\"\",INDEX('Smelter Look-up'!$C:$C,MATCH($A1406,'Smelter Look-up'!$E:$E,0)))","v":""},null,{"$f":"IF(ISERROR($V1406),\"\",OFFSET('Smelter Look-up'!$D$4,$V1406-4,0)&\"\")","v":""},{"$f":"IF(ISERROR($V1406),\"\",OFFSET('Smelter Look-up'!$E$4,$V1406-4,0))","v":""},{"$f":"IF(C1406=$X$4,\"Enter smelter details\",IF(ISERROR($V1406),\"\",OFFSET('Smelter Look-up'!$F$4,$V1406-4,0)))","v":""},{"$f":"IF(ISERROR($V1406),\"\",OFFSET('Smelter Look-up'!$G$4,$V1406-4,0))","v":""},{"$f":"IF(ISERROR($V1406),\"\",OFFSET('Smelter Look-up'!$H$4,$V1406-4,0))","v":""},{"$f":"IF(ISERROR($V1406),\"\",OFFSET('Smelter Look-up'!$I$4,$V1406-4,0))","v":""},{"$nulls":7},{"$f":"IF(ISERROR($V1406),\"\",OFFSET('Smelter Look-up'!$C$4,$V1406-4,0)&\"\")","v":""},"",{"$f":"IF(B1406=\"\",\"\",IF(ISERROR(MATCH($J1406,SorP!$B$1:$B$5661,0)),\"\",INDIRECT(\"'SorP'!$A$\"&MATCH($J1406,SorP!$B$1:$B$5661,0))))","v":""},null,{"$f":"IF(C1406=\"\",NA(),MATCH($B1406&$C1406,'Smelter Look-up'!$J:$J,0))","v":{"$error":"#N/A"}},null,0,null,null,null,""]
[null,{"$f":"IF(LEN(A1407)=0,\"\",INDEX('Smelter Look-up'!$A:$A,MATCH($A1407,'Smelter Look-up'!$E:$E,0)))","v":""},{"$f":"IF(LEN(A1407)=0,\"\",INDEX('Smelter Look-up'!$C:$C,MATCH($A1407,'Smelter Look-up'!$E:$E,0)))","v":""},null,{"$f":"IF(ISERROR($V1407),\"\",OFFSET('Smelter Look-up'!$D$4,$V1407-4,0)&\"\")","v":""},{"$f":"IF(ISERROR($V1407),\"\",OFFSET('Smelter Look-up'!$E$4,$V1407-4,0))","v":""},{"$f":"IF(C1407=$X$4,\"Enter smelter details\",IF(ISERROR($V1407),\"\",OFFSET('Smelter Look-up'!$F$4,$V1407-4,0)))","v":""},{"$f":"IF(ISERROR($V1407),\"\",OFFSET('Smelter Look-up'!$G$4,$V1407-4,0))","v":""},{"$f":"IF(ISERROR($V1407),\"\",OFFSET('Smelter Look-up'!$H$4,$V1407-4,0))","v":""},{"$f":"IF(ISERROR($V1407),\"\",OFFSET('Smelter Look-up'!$I$4,$V1407-4,0))","v":""},{"$nulls":7},{"$f":"IF(ISERROR($V1407),\"\",OFFSET('Smelter Look-up'!$C$4,$V1407-4,0)&\"\")","v":""},"",{"$f":"IF(B1407=\"\",\"\",IF(ISERROR(MATCH($J1407,SorP!$B$1:$B$5661,0)),\"\",INDIRECT(\"'SorP'!$A$\"&MATCH($J1407,SorP!$B$1:$B$5661,0))))","v":""},null,{"$f":"IF(C1407=\"\",NA(),MATCH($B1407&$C1407,'Smelter Look-up'!$J:$J,0))","v":{"$error":"#N/A"}},null,{"$f":"IF(AND(C1407=\"Smelter not listed\",OR(LEN(D1407)=0,LEN(E1407)=0)),1,0)","v":0},null,null,null,{"$f":"B1407&C1407","v":""}]
[null,{"$f":"IF(LEN(A1408)=0,\"\",INDEX('Smelter Look-up'!$A:$A,MATCH($A1408,'Smelter Look-up'!$E:$E,0)))","v":""},{"$f":"IF(LEN(A1408)=0,\"\",INDEX('Smelter Look-up'!$C:$C,MATCH($A1408,'Smelter Look-up'!$E:$E,0)))","v":""},null,{"$f":"IF(ISERROR($V1408),\"\",OFFSET('Smelter Look-up'!$D$4,$V1408-4,0)&\"\")","v":""},{"$f":"IF(ISERROR($V1408),\"\",OFFSET('Smelter Look-up'!$E$4,$V1408-4,0))","v":""},{"$f":"IF(C1408=$X$4,\"Enter smelter details\",IF(ISERROR($V1408),\"\",OFFSET('Smelter Look-up'!$F$4,$V1408-4,0)))","v":""},{"$f":"IF(ISERROR($V1408),\"\",OFFSET('Smelter Look-up'!$G$4,$V1408-4,0))","v":""},{"$f":"IF(ISERROR($V1408),\"\",OFFSET('Smelter Look-up'!$H$4,$V1408-4,0))","v":""},{"$f":"IF(ISERROR($V1408),\"\",OFFSET('Smelter Look-up'!$I$4,$V1408-4,0))","v":""},{"$nulls":7},{"$f":"IF(ISERROR($V1408),\"\",OFFSET('Smelter Look-up'!$C$4,$V1408-4,0)&\"\")","v":""},{"$f":"IF(B1408=\"\",\"\",IF(ISERROR(MATCH($E1408,CL,0)),\"Unknown\",INDIRECT(\"'C'!$A$\"&MATCH($E1408,CL,0)+1)))","v":""},{"$f":"IF(B1408=\"\",\"\",IF(ISERROR(MATCH($J1408,SorP!$B$1:$B$5661,0)),\"\",INDIRECT(\"'SorP'!$A$\"&MATCH($J1408,SorP!$B$1:$B$5661,0))))","v":""},null,{"$f":"IF(C1408=\"\",NA(),MATCH($B1408&$C1408,'Smelter Look-up'!$J:$J,0))","v":{"$error":"#N/A"}},null,0,null,null,null,""]
[null,{"$f":"IF(LEN(A1409)=0,\"\",INDEX('Smelter Look-up'!$A:$A,MATCH($A1409,'Smelter Look-up'!$E:$E,0)))","v":""},{"$f":"IF(LEN(A1409)=0,\"\",INDEX('Smelter Look-up'!$C:$C,MATCH($A1409,'Smelter Look-up'!$E:$E,0)))","v":""},null,{"$f":"IF(ISERROR($V1409),\"\",OFFSET('Smelter Look-up'!$D$4,$V1409-4,0)&\"\")","v":""},{"$f":"IF(ISERROR($V1409),\"\",OFFSET('Smelter Look-up'!$E$4,$V1409-4,0))","v":""},{"$f":"IF(C1409=$X$4,\"Enter smelter details\",IF(ISERROR($V1409),\"\",OFFSET('Smelter Look-up'!$F$4,$V1409-4,0)))","v":""},{"$f":"IF(ISERROR($V1409),\"\",OFFSET('Smelter Look-up'!$G$4,$V1409-4,0))","v":""},{"$f":"IF(ISERROR($V1409),\"\",OFFSET('Smelter Look-up'!$H$4,$V1409-4,0))","v":""},{"$f":"IF(ISERROR($V1409),\"\",OFFSET('Smelter Look-up'!$I$4,$V1409-4,0))","v":""},{"$nulls":7},{"$f":"IF(ISERROR($V1409),\"\",OFFSET('Smelter Look-up'!$C$4,$V1409-4,0)&\"\")","v":""},"",{"$f":"IF(B1409=\"\",\"\",IF(ISERROR(MATCH($J1409,SorP!$B$1:$B$5661,0)),\"\",INDIRECT(\"'SorP'!$A$\"&MATCH($J1409,SorP!$B$1:$B$5661,0))))","v":""},null,{"$f":"IF(C1409=\"\",NA(),MATCH($B1409&$C1409,'Smelter Look-up'!$J:$J,0))","v":{"$error":"#N/A"}},null,0,null,null,null,""]
[null,{"$f":"IF(LEN(A1410)=0,\"\",INDEX('Smelter Look-up'!$A:$A,MATCH($A1410,'Smelter Look-up'!$E:$E,0)))","v":""},{"$f":"IF(LEN(A1410)=0,\"\",INDEX('Smelter Look-up'!$C:$C,MATCH($A1410,'Smelter Look-up'!$E:$E,0)))","v":""},null,{"$f":"IF(ISERROR($V1410),\"\",OFFSET('Smelter Look-up'!$D$4,$V1410-4,0)&\"\")","v":""},{"$f":"IF(ISERROR($V1410),\"\",OFFSET('Smelter Look-up'!$E$4,$V1410-4,0))","v":""},{"$f":"IF(C1410=$X$4,\"Enter smelter details\",IF(ISERROR($V1410),\"\",OFFSET('Smelter Look-up'!$F$4,$V1410-4,0)))","v":""},{"$f":"IF(ISERROR($V1410),\"\",OFFSET('Smelter Look-up'!$G$4,$V1410-4,0))","v":""},{"$f":"IF(ISERROR($V1410),\"\",OFFSET('Smelter Look-up'!$H$4,$V1410-4,0))","v":""},{"$f":"IF(ISERROR($V1410),\"\",OFFSET('Smelter Look-up'!$I$4,$V1410-4,0))","v":""},{"$nulls":7},{"$f":"IF(ISERROR($V1410),\"\",OFFSET('Smelter Look-up'!$C$4,$V1410-4,0)&\"\")","v":""},"",{"$f":"IF(B1410=\"\",\"\",IF(ISERROR(MATCH($J1410,SorP!$B$1:$B$5661,0)),\"\",INDIRECT(\"'SorP'!$A$\"&MATCH($J1410,SorP!$B$1:$B$5661,0))))","v":""},null,{"$f":"IF(C1410=\"\",NA(),MATCH($B1410&$C1410,'Smelter Look-up'!$J:$J,0))","v":{"$error":"#N/A"}},null,0,null,null,null,""]
[null,{"$f":"IF(LEN(A1411)=0,\"\",INDEX('Smelter Look-up'!$A:$A,MATCH($A1411,'Smelter Look-up'!$E:$E,0)))","v":""},{"$f":"IF(LEN(A1411)=0,\"\",INDEX('Smelter Look-up'!$C:$C,MATCH($A1411,'Smelter Look-up'!$E:$E,0)))","v":""},null,{"$f":"IF(ISERROR($V1411),\"\",OFFSET('Smelter Look-up'!$D$4,$V1411-4,0)&\"\")","v":""},{"$f":"IF(ISERROR($V1411),\"\",OFFSET('Smelter Look-up'!$E$4,$V1411-4,0))","v":""},{"$f":"IF(C1411=$X$4,\"Enter smelter details\",IF(ISERROR($V1411),\"\",OFFSET('Smelter Look-up'!$F$4,$V1411-4,0)))","v":""},{"$f":"IF(ISERROR($V1411),\"\",OFFSET('Smelter Look-up'!$G$4,$V1411-4,0))","v":""},{"$f":"IF(ISERROR($V1411),\"\",OFFSET('Smelter Look-up'!$H$4,$V1411-4,0))","v":""},{"$f":"IF(ISERROR($V1411),\"\",OFFSET('Smelter Look-up'!$I$4,$V1411-4,0))","v":""},{"$nulls":7},{"$f":"IF(ISERROR($V1411),\"\",OFFSET('Smelter Look-up'!$C$4,$V1411-4,0)&\"\")","v":""},"",{"$f":"IF(B1411=\"\",\"\",IF(ISERROR(MATCH($J1411,SorP!$B$1:$B$5661,0)),\"\",INDIRECT(\"'SorP'!$A$\"&MATCH($J1411,SorP!$B$1:$B$5661,0))))","v":""},null,{"$f":"IF(C1411=\"\",NA(),MATCH($B1411&$C1411,'Smelter Look-up'!$J:$J,0))","v":{"$error":"#N/A"}},null,0,null,null,null,""]
[null,{"$f":"IF(LEN(A1412)=0,\"\",INDEX('Smelter Look-up'!$A:$A,MATCH($A1412,'Smelter Look-up'!$E:$E,0)))","v":""},{"$f":"IF(LEN(A1412)=0,\"\",INDEX('Smelter Look-up'!$C:$C,MATCH($A1412,'Smelter Look-up'!$E:$E,0)))","v":""},null,{"$f":"IF(ISERROR($V1412),\"\",OFFSET('Smelter Look-up'!$D$4,$V1412-4,0)&\"\")","v":""},{"$f":"IF(ISERROR($V1412),\"\",OFFSET('Smelter Look-up'!$E$4,$V1412-4,0))","v":""},{"$f":"IF(C1412=$X$4,\"Enter smelter details\",IF(ISERROR($V1412),\"\",OFFSET('Smelter Look-up'!$F$4,$V1412-4,0)))","v":""},{"$f":"IF(ISERROR($V1412),\"\",OFFSET('Smelter Look-up'!$G$4,$V1412-4,0))","v":""},{"$f":"IF(ISERROR($V1412),\"\",OFFSET('Smelter Look-up'!$H$4,$V1412-4,0))","v":""},{"$f":"IF(ISERROR($V1412),\"\",OFFSET('Smelter Look-up'!$I$4,$V1412-4,0))","v":""},{"$nulls":7},{"$f":"IF(ISERROR($V1412),\"\",OFFSET('Smelter Look-up'!$C$4,$V1412-4,0)&\"\")","v":""},"",{"$f":"IF(B1412=\"\",\"\",IF(ISERROR(MATCH($J1412,SorP!$B$1:$B$5661,0)),\"\",INDIRECT(\"'SorP'!$A$\"&MATCH($J1412,SorP!$B$1:$B$5661,0))))","v":""},null,{"$f":"IF(C1412=\"\",NA(),MATCH($B1412&$C1412,'Smelter Look-up'!$J:$J,0))","v":{"$error":"#N/A"}},null,0,null,null,null,""]
[null,{"$f":"IF(LEN(A1413)=0,\"\",INDEX('Smelter Look-up'!$A:$A,MATCH($A1413,'Smelter Look-up'!$E:$E,0)))","v":""},{"$f":"IF(LEN(A1413)=0,\"\",INDEX('Smelter Look-up'!$C:$C,MATCH($A1413,'Smelter Look-up'!$E:$E,0)))","v":""},null,{"$f":"IF(ISERROR($V1413),\"\",OFFSET('Smelter Look-up'!$D$4,$V1413-4,0)&\"\")","v":""},{"$f":"IF(ISERROR($V1413),\"\",OFFSET('Smelter Look-up'!$E$4,$V1413-4,0))","v":""},{"$f":"IF(C1413=$X$4,\"Enter smelter details\",IF(ISERROR($V1413),\"\",OFFSET('Smelter Look-up'!$F$4,$V1413-4,0)))","v":""},{"$f":"IF(ISERROR($V1413),\"\",OFFSET('Smelter Look-up'!$G$4,$V1413-4,0))","v":""},{"$f":"IF(ISERROR($V1413),\"\",OFFSET('Smelter Look-up'!$H$4,$V1413-4,0))","v":""},{"$f":"IF(ISERROR($V1413),\"\",OFFSET('Smelter Look-up'!$I$4,$V1413-4,0))","v":""},{"$nulls":7},{"$f":"IF(ISERROR($V1413),\"\",OFFSET('Smelter Look-up'!$C$4,$V1413-4,0)&\"\")","v":""},"",{"$f":"IF(B1413=\"\",\"\",IF(ISERROR(MATCH($J1413,SorP!$B$1:$B$5661,0)),\"\",INDIRECT(\"'SorP'!$A$\"&MATCH($J1413,SorP!$B$1:$B$5661,0))))","v":""},null,{"$f":"IF(C1413=\"\",NA(),MATCH($B1413&$C1413,'Smelter Look-up'!$J:$J,0))","v":{"$error":"#N/A"}},null,0,null,null,null,""]
[null,{"$f":"IF(LEN(A1414)=0,\"\",INDEX('Smelter Look-up'!$A:$A,MATCH($A1414,'Smelter Look-up'!$E:$E,0)))","v":""},{"$f":"IF(LEN(A1414)=0,\"\",INDEX('Smelter Look-up'!$C:$C,MATCH($A1414,'Smelter Look-up'!$E:$E,0)))","v":""},null,{"$f":"IF(ISERROR($V1414),\"\",OFFSET('Smelter Look-up'!$D$4,$V1414-4,0)&\"\")","v":""},{"$f":"IF(ISERROR($V1414),\"\",OFFSET('Smelter Look-up'!$E$4,$V1414-4,0))","v":""},{"$f":"IF(C1414=$X$4,\"Enter smelter details\",IF(ISERROR($V1414),\"\",OFFSET('Smelter Look-up'!$F$4,$V1414-4,0)))","v":""},{"$f":"IF(ISERROR($V1414),\"\",OFFSET('Smelter Look-up'!$G$4,$V1414-4,0))","v":""},{"$f":"IF(ISERROR($V1414),\"\",OFFSET('Smelter Look-up'!$H$4,$V1414-4,0))","v":""},{"$f":"IF(ISERROR($V1414),\"\",OFFSET('Smelter Look-up'!$I$4,$V1414-4,0))","v":""},{"$nulls":7},{"$f":"IF(ISERROR($V1414),\"\",OFFSET('Smelter Look-up'!$C$4,$V1414-4,0)&\"\")","v":""},"",{"$f":"IF(B1414=\"\",\"\",IF(ISERROR(MATCH($J1414,SorP!$B$1:$B$5661,0)),\"\",INDIRECT(\"'SorP'!$A$\"&MATCH($J1414,SorP!$B$1:$B$5661,0))))","v":""},null,{"$f":"IF(C1414=\"\",NA(),MATCH($B1414&$C1414,'Smelter Look-up'!$J:$J,0))","v":{"$error":"#N/A"}},null,0,null,null,null,""]
[null,{"$f":"IF(LEN(A1415)=0,\"\",INDEX('Smelter Look-up'!$A:$A,MATCH($A1415,'Smelter Look-up'!$E:$E,0)))","v":""},{"$f":"IF(LEN(A1415)=0,\"\",INDEX('Smelter Look-up'!$C:$C,MATCH($A1415,'Smelter Look-up'!$E:$E,0)))","v":""},null,{"$f":"IF(ISERROR($V1415),\"\",OFFSET('Smelter Look-up'!$D$4,$V1415-4,0)&\"\")","v":""},{"$f":"IF(ISERROR($V1415),\"\",OFFSET('Smelter Look-up'!$E$4,$V1415-4,0))","v":""},{"$f":"IF(C1415=$X$4,\"Enter smelter details\",IF(ISERROR($V1415),\"\",OFFSET('Smelter Look-up'!$F$4,$V1415-4,0)))","v":""},{"$f":"IF(ISERROR($V1415),\"\",OFFSET('Smelter Look-up'!$G$4,$V1415-4,0))","v":""},{"$f":"IF(ISERROR($V1415),\"\",OFFSET('Smelter Look-up'!$H$4,$V1415-4,0))","v":""},{"$f":"IF(ISERROR($V1415),\"\",OFFSET('Smelter Look-up'!$I$4,$V1415-4,0))","v":""},{"$nulls":7},{"$f":"IF(ISERROR($V1415),\"\",OFFSET('Smelter Look-up'!$C$4,$V1415-4,0)&\"\")","v":""},"",{"$f":"IF(B1415=\"\",\"\",IF(ISERROR(MATCH($J1415,SorP!$B$1:$B$5661,0)),\"\",INDIRECT(\"'SorP'!$A$\"&MATCH($J1415,SorP!$B$1:$B$5661,0))))","v":""},null,{"$f":"IF(C1415=\"\",NA(),MATCH($B1415&$C1415,'Smelter Look-up'!$J:$J,0))","v":{"$error":"#N/A"}},null,0,null,null,null,""]
[null,{"$f":"IF(LEN(A1416)=0,\"\",INDEX('Smelter Look-up'!$A:$A,MATCH($A1416,'Smelter Look-up'!$E:$E,0)))","v":""},{"$f":"IF(LEN(A1416)=0,\"\",INDEX('Smelter Look-up'!$C:$C,MATCH($A1416,'Smelter Look-up'!$E:$E,0)))","v":""},null,{"$f":"IF(ISERROR($V1416),\"\",OFFSET('Smelter Look-up'!$D$4,$V1416-4,0)&\"\")","v":""},{"$f":"IF(ISERROR($V1416),\"\",OFFSET('Smelter Look-up'!$E$4,$V1416-4,0))","v":""},{"$f":"IF(C1416=$X$4,\"Enter smelter details\",IF(ISERROR($V1416),\"\",OFFSET('Smelter Look-up'!$F$4,$V1416-4,0)))","v":""},{"$f":"IF(ISERROR($V1416),\"\",OFFSET('Smelter Look-up'!$G$4,$V1416-4,0))","v":""},{"$f":"IF(ISERROR($V1416),\"\",OFFSET('Smelter Look-up'!$H$4,$V1416-4,0))","v":""},{"$f":"IF(ISERROR($V1416),\"\",OFFSET('Smelter Look-up'!$I$4,$V1416-4,0))","v":""},{"$nulls":7},{"$f":"IF(ISERROR($V1416),\"\",OFFSET('Smelter Look-up'!$C$4,$V1416-4,0)&\"\")","v":""},"",{"$f":"IF(B1416=\"\",\"\",IF(ISERROR(MATCH($J1416,SorP!$B$1:$B$5661,0)),\"\",INDIRECT(\"'SorP'!$A$\"&MATCH($J1416,SorP!$B$1:$B$5661,0))))","v":""},null,{"$f":"IF(C1416=\"\",NA(),MATCH($B1416&$C1416,'Smelter Look-up'!$J:$J,0))","v":{"$error":"#N/A"}},null,0,null,null,null,""]
[null,{"$f":"IF(LEN(A1417)=0,\"\",INDEX('Smelter Look-up'!$A:$A,MATCH($A1417,'Smelter Look-up'!$E:$E,0)))","v":""},{"$f":"IF(LEN(A1417)=0,\"\",INDEX('Smelter Look-up'!$C:$C,MATCH($A1417,'Smelter Look-up'!$E:$E,0)))","v":""},null,{"$f":"IF(ISERROR($V1417),\"\",OFFSET('Smelter Look-up'!$D$4,$V1417-4,0)&\"\")","v":""},{"$f":"IF(ISERROR($V1417),\"\",OFFSET('Smelter Look-up'!$E$4,$V1417-4,0))","v":""},{"$f":"IF(C1417=$X$4,\"Enter smelter details\",IF(ISERROR($V1417),\"\",OFFSET('Smelter Look-up'!$F$4,$V1417-4,0)))","v":""},{"$f":"IF(ISERROR($V1417),\"\",OFFSET('Smelter Look-up'!$G$4,$V1417-4,0))","v":""},{"$f":"IF(ISERROR($V1417),\"\",OFFSET('Smelter Look-up'!$H$4,$V1417-4,0))","v":""},{"$f":"IF(ISERROR($V1417),\"\",OFFSET('Smelter Look-up'!$I$4,$V1417-4,0))","v":""},{"$nulls":7},{"$f":"IF(ISERROR($V1417),\"\",OFFSET('Smelter Look-up'!$C$4,$V1417-4,0)&\"\")","v":""},"",{"$f":"IF(B1417=\"\",\"\",IF(ISERROR(MATCH($J1417,SorP!$B$1:$B$5661,0)),\"\",INDIRECT(\"'SorP'!$A$\"&MATCH($J1417,SorP!$B$1:$B$5661,0))))","v":""},null,{"$f":"IF(C1417=\"\",NA(),MATCH($B1417&$C1417,'Smelter Look-up'!$J:$J,0))","v":{"$error":"#N/A"}},null,0,null,null,null,""]
[null,{"$f":"IF(LEN(A1418)=0,\"\",INDEX('Smelter Look-up'!$A:$A,MATCH($A1418,'Smelter Look-up'!$E:$E,0)))","v":""},{"$f":"IF(LEN(A1418)=0,\"\",INDEX('Smelter Look-up'!$C:$C,MATCH($A1418,'Smelter Look-up'!$E:$E,0)))","v":""},null,{"$f":"IF(ISERROR($V1418),\"\",OFFSET('Smelter Look-up'!$D$4,$V1418-4,0)&\"\")","v":""},{"$f":"IF(ISERROR($V1418),\"\",OFFSET('Smelter Look-up'!$E$4,$V1418-4,0))","v":""},{"$f":"IF(C1418=$X$4,\"Enter smelter details\",IF(ISERROR($V1418),\"\",OFFSET('Smelter Look-up'!$F$4,$V1418-4,0)))","v":""},{"$f":"IF(ISERROR($V1418),\"\",OFFSET('Smelter Look-up'!$G$4,$V1418-4,0))","v":""},{"$f":"IF(ISERROR($V1418),\"\",OFFSET('Smelter Look-up'!$H$4,$V1418-4,0))","v":""},{"$f":"IF(ISERROR($V1418),\"\",OFFSET('Smelter Look-up'!$I$4,$V1418-4,0))","v":""},{"$nulls":7},{"$f":"IF(ISERROR($V1418),\"\",OFFSET('Smelter Look-up'!$C$4,$V1418-4,0)&\"\")","v":""},"",{"$f":"IF(B1418=\"\",\"\",IF(ISERROR(MATCH($J1418,SorP!$B$1:$B$5661,0)),\"\",INDIRECT(\"'SorP'!$A$\"&MATCH($J1418,SorP!$B$1:$B$5661,0))))","v":""},null,{"$f":"IF(C1418=\"\",NA(),MATCH($B1418&$C1418,'Smelter Look-up'!$J:$J,0))","v":{"$error":"#N/A"}},null,0,null,null,null,""]
[null,{"$f":"IF(LEN(A1419)=0,\"\",INDEX('Smelter Look-up'!$A:$A,MATCH($A1419,'Smelter Look-up'!$E:$E,0)))","v":""},{"$f":"IF(LEN(A1419)=0,\"\",INDEX('Smelter Look-up'!$C:$C,MATCH($A1419,'Smelter Look-up'!$E:$E,0)))","v":""},null,{"$f":"IF(ISERROR($V1419),\"\",OFFSET('Smelter Look-up'!$D$4,$V1419-4,0)&\"\")","v":""},{"$f":"IF(ISERROR($V1419),\"\",OFFSET('Smelter Look-up'!$E$4,$V1419-4,0))","v":""},{"$f":"IF(C1419=$X$4,\"Enter smelter details\",IF(ISERROR($V1419),\"\",OFFSET('Smelter Look-up'!$F$4,$V1419-4,0)))","v":""},{"$f":"IF(ISERROR($V1419),\"\",OFFSET('Smelter Look-up'!$G$4,$V1419-4,0))","v":""},{"$f":"IF(ISERROR($V1419),\"\",OFFSET('Smelter Look-up'!$H$4,$V1419-4,0))","v":""},{"$f":"IF(ISERROR($V1419),\"\",OFFSET('Smelter Look-up'!$I$4,$V1419-4,0))","v":""},{"$nulls":7},{"$f":"IF(ISERROR($V1419),\"\",OFFSET('Smelter Look-up'!$C$4,$V1419-4,0)&\"\")","v":""},"",{"$f":"IF(B1419=\"\",\"\",IF(ISERROR(MATCH($J1419,SorP!$B$1:$B$5661,0)),\"\",INDIRECT(\"'SorP'!$A$\"&MATCH($J1419,SorP!$B$1:$B$5661,0))))","v":""},null,{"$f":"IF(C1419=\"\",NA(),MATCH($B1419&$C1419,'Smelter Look-up'!$J:$J,0))","v":{"$error":"#N/A"}},null,0,null,null,null,""]
[null,{"$f":"IF(LEN(A1420)=0,\"\",INDEX('Smelter Look-up'!$A:$A,MATCH($A1420,'Smelter Look-up'!$E:$E,0)))","v":""},{"$f":"IF(LEN(A1420)=0,\"\",INDEX('Smelter Look-up'!$C:$C,MATCH($A1420,'Smelter Look-up'!$E:$E,0)))","v":""},null,{"$f":"IF(ISERROR($V1420),\"\",OFFSET('Smelter Look-up'!$D$4,$V1420-4,0)&\"\")","v":""},{"$f":"IF(ISERROR($V1420),\"\",OFFSET('Smelter Look-up'!$E$4,$V1420-4,0))","v":""},{"$f":"IF(C1420=$X$4,\"Enter smelter details\",IF(ISERROR($V1420),\"\",OFFSET('Smelter Look-up'!$F$4,$V1420-4,0)))","v":""},{"$f":"IF(ISERROR($V1420),\"\",OFFSET('Smelter Look-up'!$G$4,$V1420-4,0))","v":""},{"$f":"IF(ISERROR($V1420),\"\",OFFSET('Smelter Look-up'!$H$4,$V1420-4,0))","v":""},{"$f":"IF(ISERROR($V1420),\"\",OFFSET('Smelter Look-up'!$I$4,$V1420-4,0))","v":""},{"$nulls":7},{"$f":"IF(ISERROR($V1420),\"\",OFFSET('Smelter Look-up'!$C$4,$V1420-4,0)&\"\")","v":""},"",{"$f":"IF(B1420=\"\",\"\",IF(ISERROR(MATCH($J1420,SorP!$B$1:$B$5661,0)),\"\",INDIRECT(\"'SorP'!$A$\"&MATCH($J1420,SorP!$B$1:$B$5661,0))))","v":""},null,{"$f":"IF(C1420=\"\",NA(),MATCH($B1420&$C1420,'Smelter Look-up'!$J:$J,0))","v":{"$error":"#N/A"}},null,0,null,null,null,""]
[null,{"$f":"IF(LEN(A1421)=0,\"\",INDEX('Smelter Look-up'!$A:$A,MATCH($A1421,'Smelter Look-up'!$E:$E,0)))","v":""},{"$f":"IF(LEN(A1421)=0,\"\",INDEX('Smelter Look-up'!$C:$C,MATCH($A1421,'Smelter Look-up'!$E:$E,0)))","v":""},null,{"$f":"IF(ISERROR($V1421),\"\",OFFSET('Smelter Look-up'!$D$4,$V1421-4,0)&\"\")","v":""},{"$f":"IF(ISERROR($V1421),\"\",OFFSET('Smelter Look-up'!$E$4,$V1421-4,0))","v":""},{"$f":"IF(C1421=$X$4,\"Enter smelter details\",IF(ISERROR($V1421),\"\",OFFSET('Smelter Look-up'!$F$4,$V1421-4,0)))","v":""},{"$f":"IF(ISERROR($V1421),\"\",OFFSET('Smelter Look-up'!$G$4,$V1421-4,0))","v":""},{"$f":"IF(ISERROR($V1421),\"\",OFFSET('Smelter Look-up'!$H$4,$V1421-4,0))","v":""},{"$f":"IF(ISERROR($V1421),\"\",OFFSET('Smelter Look-up'!$I$4,$V1421-4,0))","v":""},{"$nulls":7},{"$f":"IF(ISERROR($V1421),\"\",OFFSET('Smelter Look-up'!$C$4,$V1421-4,0)&\"\")","v":""},"",{"$f":"IF(B1421=\"\",\"\",IF(ISERROR(MATCH($J1421,SorP!$B$1:$B$5661,0)),\"\",INDIRECT(\"'SorP'!$A$\"&MATCH($J1421,SorP!$B$1:$B$5661,0))))","v":""},null,{"$f":"IF(C1421=\"\",NA(),MATCH($B1421&$C1421,'Smelter Look-up'!$J:$J,0))","v":{"$error":"#N/A"}},null,0,null,null,null,""]
[null,{"$f":"IF(LEN(A1422)=0,\"\",INDEX('Smelter Look-up'!$A:$A,MATCH($A1422,'Smelter Look-up'!$E:$E,0)))","v":""},{"$f":"IF(LEN(A1422)=0,\"\",INDEX('Smelter Look-up'!$C:$C,MATCH($A1422,'Smelter Look-up'!$E:$E,0)))","v":""},null,{"$f":"IF(ISERROR($V1422),\"\",OFFSET('Smelter Look-up'!$D$4,$V1422-4,0)&\"\")","v":""},{"$f":"IF(ISERROR($V1422),\"\",OFFSET('Smelter Look-up'!$E$4,$V1422-4,0))","v":""},{"$f":"IF(C1422=$X$4,\"Enter smelter details\",IF(ISERROR($V1422),\"\",OFFSET('Smelter Look-up'!$F$4,$V1422-4,0)))","v":""},{"$f":"IF(ISERROR($V1422),\"\",OFFSET('Smelter Look-up'!$G$4,$V1422-4,0))","v":""},{"$f":"IF(ISERROR($V1422),\"\",OFFSET('Smelter Look-up'!$H$4,$V1422-4,0))","v":""},{"$f":"IF(ISERROR($V1422),\"\",OFFSET('Smelter Look-up'!$I$4,$V1422-4,0))","v":""},{"$nulls":7},{"$f":"IF(ISERROR($V1422),\"\",OFFSET('Smelter Look-up'!$C$4,$V1422-4,0)&\"\")","v":""},"",{"$f":"IF(B1422=\"\",\"\",IF(ISERROR(MATCH($J1422,SorP!$B$1:$B$5661,0)),\"\",INDIRECT(\"'SorP'!$A$\"&MATCH($J1422,SorP!$B$1:$B$5661,0))))","v":""},null,{"$f":"IF(C1422=\"\",NA(),MATCH($B1422&$C1422,'Smelter Look-up'!$J:$J,0))","v":{"$error":"#N/A"}},null,0,null,null,null,""]
[null,{"$f":"IF(LEN(A1423)=0,\"\",INDEX('Smelter Look-up'!$A:$A,MATCH($A1423,'Smelter Look-up'!$E:$E,0)))","v":""},{"$f":"IF(LEN(A1423)=0,\"\",INDEX('Smelter Look-up'!$C:$C,MATCH($A1423,'Smelter Look-up'!$E:$E,0)))","v":""},null,{"$f":"IF(ISERROR($V1423),\"\",OFFSET('Smelter Look-up'!$D$4,$V1423-4,0)&\"\")","v":""},{"$f":"IF(ISERROR($V1423),\"\",OFFSET('Smelter Look-up'!$E$4,$V1423-4,0))","v":""},{"$f":"IF(C1423=$X$4,\"Enter smelter details\",IF(ISERROR($V1423),\"\",OFFSET('Smelter Look-up'!$F$4,$V1423-4,0)))","v":""},{"$f":"IF(ISERROR($V1423),\"\",OFFSET('Smelter Look-up'!$G$4,$V1423-4,0))","v":""},{"$f":"IF(ISERROR($V1423),\"\",OFFSET('Smelter Look-up'!$H$4,$V1423-4,0))","v":""},{"$f":"IF(ISERROR($V1423),\"\",OFFSET('Smelter Look-up'!$I$4,$V1423-4,0))","v":""},{"$nulls":7},{"$f":"IF(ISERROR($V1423),\"\",OFFSET('Smelter Look-up'!$C$4,$V1423-4,0)&\"\")","v":""},"",{"$f":"IF(B1423=\"\",\"\",IF(ISERROR(MATCH($J1423,SorP!$B$1:$B$5661,0)),\"\",INDIRECT(\"'SorP'!$A$\"&MATCH($J1423,SorP!$B$1:$B$5661,0))))","v":""},null,{"$f":"IF(C1423=\"\",NA(),MATCH($B1423&$C1423,'Smelter Look-up'!$J:$J,0))","v":{"$error":"#N/A"}},null,0,null,null,null,""]
[null,{"$f":"IF(LEN(A1424)=0,\"\",INDEX('Smelter Look-up'!$A:$A,MATCH($A1424,'Smelter Look-up'!$E:$E,0)))","v":""},{"$f":"IF(LEN(A1424)=0,\"\",INDEX('Smelter Look-up'!$C:$C,MATCH($A1424,'Smelter Look-up'!$E:$E,0)))","v":""},null,{"$f":"IF(ISERROR($V1424),\"\",OFFSET('Smelter Look-up'!$D$4,$V1424-4,0)&\"\")","v":""},{"$f":"IF(ISERROR($V1424),\"\",OFFSET('Smelter Look-up'!$E$4,$V1424-4,0))","v":""},{"$f":"IF(C1424=$X$4,\"Enter smelter details\",IF(ISERROR($V1424),\"\",OFFSET('Smelter Look-up'!$F$4,$V1424-4,0)))","v":""},{"$f":"IF(ISERROR($V1424),\"\",OFFSET('Smelter Look-up'!$G$4,$V1424-4,0))","v":""},{"$f":"IF(ISERROR($V1424),\"\",OFFSET('Smelter Look-up'!$H$4,$V1424-4,0))","v":""},{"$f":"IF(ISERROR($V1424),\"\",OFFSET('Smelter Look-up'!$I$4,$V1424-4,0))","v":""},{"$nulls":7},{"$f":"IF(ISERROR($V1424),\"\",OFFSET('Smelter Look-up'!$C$4,$V1424-4,0)&\"\")","v":""},"",{"$f":"IF(B1424=\"\",\"\",IF(ISERROR(MATCH($J1424,SorP!$B$1:$B$5661,0)),\"\",INDIRECT(\"'SorP'!$A$\"&MATCH($J1424,SorP!$B$1:$B$5661,0))))","v":""},null,{"$f":"IF(C1424=\"\",NA(),MATCH($B1424&$C1424,'Smelter Look-up'!$J:$J,0))","v":{"$error":"#N/A"}},null,0,null,null,null,""]
[null,{"$f":"IF(LEN(A1425)=0,\"\",INDEX('Smelter Look-up'!$A:$A,MATCH($A1425,'Smelter Look-up'!$E:$E,0)))","v":""},{"$f":"IF(LEN(A1425)=0,\"\",INDEX('Smelter Look-up'!$C:$C,MATCH($A1425,'Smelter Look-up'!$E:$E,0)))","v":""},null,{"$f":"IF(ISERROR($V1425),\"\",OFFSET('Smelter Look-up'!$D$4,$V1425-4,0)&\"\")","v":""},{"$f":"IF(ISERROR($V1425),\"\",OFFSET('Smelter Look-up'!$E$4,$V1425-4,0))","v":""},{"$f":"IF(C1425=$X$4,\"Enter smelter details\",IF(ISERROR($V1425),\"\",OFFSET('Smelter Look-up'!$F$4,$V1425-4,0)))","v":""},{"$f":"IF(ISERROR($V1425),\"\",OFFSET('Smelter Look-up'!$G$4,$V1425-4,0))","v":""},{"$f":"IF(ISERROR($V1425),\"\",OFFSET('Smelter Look-up'!$H$4,$V1425-4,0))","v":""},{"$f":"IF(ISERROR($V1425),\"\",OFFSET('Smelter Look-up'!$I$4,$V1425-4,0))","v":""},{"$nulls":7},{"$f":"IF(ISERROR($V1425),\"\",OFFSET('Smelter Look-up'!$C$4,$V1425-4,0)&\"\")","v":""},"",{"$f":"IF(B1425=\"\",\"\",IF(ISERROR(MATCH($J1425,SorP!$B$1:$B$5661,0)),\"\",INDIRECT(\"'SorP'!$A$\"&MATCH($J1425,SorP!$B$1:$B$5661,0))))","v":""},null,{"$f":"IF(C1425=\"\",NA(),MATCH($B1425&$C1425,'Smelter Look-up'!$J:$J,0))","v":{"$error":"#N/A"}},null,0,null,null,null,""]
[null,{"$f":"IF(LEN(A1426)=0,\"\",INDEX('Smelter Look-up'!$A:$A,MATCH($A1426,'Smelter Look-up'!$E:$E,0)))","v":""},{"$f":"IF(LEN(A1426)=0,\"\",INDEX('Smelter Look-up'!$C:$C,MATCH($A1426,'Smelter Look-up'!$E:$E,0)))","v":""},null,{"$f":"IF(ISERROR($V1426),\"\",OFFSET('Smelter Look-up'!$D$4,$V1426-4,0)&\"\")","v":""},{"$f":"IF(ISERROR($V1426),\"\",OFFSET('Smelter Look-up'!$E$4,$V1426-4,0))","v":""},{"$f":"IF(C1426=$X$4,\"Enter smelter details\",IF(ISERROR($V1426),\"\",OFFSET('Smelter Look-up'!$F$4,$V1426-4,0)))","v":""},{"$f":"IF(ISERROR($V1426),\"\",OFFSET('Smelter Look-up'!$G$4,$V1426-4,0))","v":""},{"$f":"IF(ISERROR($V1426),\"\",OFFSET('Smelter Look-up'!$H$4,$V1426-4,0))","v":""},{"$f":"IF(ISERROR($V1426),\"\",OFFSET('Smelter Look-up'!$I$4,$V1426-4,0))","v":""},{"$nulls":7},{"$f":"IF(ISERROR($V1426),\"\",OFFSET('Smelter Look-up'!$C$4,$V1426-4,0)&\"\")","v":""},"",{"$f":"IF(B1426=\"\",\"\",IF(ISERROR(MATCH($J1426,SorP!$B$1:$B$5661,0)),\"\",INDIRECT(\"'SorP'!$A$\"&MATCH($J1426,SorP!$B$1:$B$5661,0))))","v":""},null,{"$f":"IF(C1426=\"\",NA(),MATCH($B1426&$C1426,'Smelter Look-up'!$J:$J,0))","v":{"$error":"#N/A"}},null,0,null,null,null,""]
[null,{"$f":"IF(LEN(A1427)=0,\"\",INDEX('Smelter Look-up'!$A:$A,MATCH($A1427,'Smelter Look-up'!$E:$E,0)))","v":""},{"$f":"IF(LEN(A1427)=0,\"\",INDEX('Smelter Look-up'!$C:$C,MATCH($A1427,'Smelter Look-up'!$E:$E,0)))","v":""},null,{"$f":"IF(ISERROR($V1427),\"\",OFFSET('Smelter Look-up'!$D$4,$V1427-4,0)&\"\")","v":""},{"$f":"IF(ISERROR($V1427),\"\",OFFSET('Smelter Look-up'!$E$4,$V1427-4,0))","v":""},{"$f":"IF(C1427=$X$4,\"Enter smelter details\",IF(ISERROR($V1427),\"\",OFFSET('Smelter Look-up'!$F$4,$V1427-4,0)))","v":""},{"$f":"IF(ISERROR($V1427),\"\",OFFSET('Smelter Look-up'!$G$4,$V1427-4,0))","v":""},{"$f":"IF(ISERROR($V1427),\"\",OFFSET('Smelter Look-up'!$H$4,$V1427-4,0))","v":""},{"$f":"IF(ISERROR($V1427),\"\",OFFSET('Smelter Look-up'!$I$4,$V1427-4,0))","v":""},{"$nulls":7},{"$f":"IF(ISERROR($V1427),\"\",OFFSET('Smelter Look-up'!$C$4,$V1427-4,0)&\"\")","v":""},"",{"$f":"IF(B1427=\"\",\"\",IF(ISERROR(MATCH($J1427,SorP!$B$1:$B$5661,0)),\"\",INDIRECT(\"'SorP'!$A$\"&MATCH($J1427,SorP!$B$1:$B$5661,0))))","v":""},null,{"$f":"IF(C1427=\"\",NA(),MATCH($B1427&$C1427,'Smelter Look-up'!$J:$J,0))","v":{"$error":"#N/A"}},null,0,null,null,null,""]
[null,{"$f":"IF(LEN(A1428)=0,\"\",INDEX('Smelter Look-up'!$A:$A,MATCH($A1428,'Smelter Look-up'!$E:$E,0)))","v":""},{"$f":"IF(LEN(A1428)=0,\"\",INDEX('Smelter Look-up'!$C:$C,MATCH($A1428,'Smelter Look-up'!$E:$E,0)))","v":""},null,{"$f":"IF(ISERROR($V1428),\"\",OFFSET('Smelter Look-up'!$D$4,$V1428-4,0)&\"\")","v":""},{"$f":"IF(ISERROR($V1428),\"\",OFFSET('Smelter Look-up'!$E$4,$V1428-4,0))","v":""},{"$f":"IF(C1428=$X$4,\"Enter smelter details\",IF(ISERROR($V1428),\"\",OFFSET('Smelter Look-up'!$F$4,$V1428-4,0)))","v":""},{"$f":"IF(ISERROR($V1428),\"\",OFFSET('Smelter Look-up'!$G$4,$V1428-4,0))","v":""},{"$f":"IF(ISERROR($V1428),\"\",OFFSET('Smelter Look-up'!$H$4,$V1428-4,0))","v":""},{"$f":"IF(ISERROR($V1428),\"\",OFFSET('Smelter Look-up'!$I$4,$V1428-4,0))","v":""},{"$nulls":7},{"$f":"IF(ISERROR($V1428),\"\",OFFSET('Smelter Look-up'!$C$4,$V1428-4,0)&\"\")","v":""},"",{"$f":"IF(B1428=\"\",\"\",IF(ISERROR(MATCH($J1428,SorP!$B$1:$B$5661,0)),\"\",INDIRECT(\"'SorP'!$A$\"&MATCH($J1428,SorP!$B$1:$B$5661,0))))","v":""},null,{"$f":"IF(C1428=\"\",NA(),MATCH($B1428&$C1428,'Smelter Look-up'!$J:$J,0))","v":{"$error":"#N/A"}},null,0,null,null,null,""]
[null,{"$f":"IF(LEN(A1429)=0,\"\",INDEX('Smelter Look-up'!$A:$A,MATCH($A1429,'Smelter Look-up'!$E:$E,0)))","v":""},{"$f":"IF(LEN(A1429)=0,\"\",INDEX('Smelter Look-up'!$C:$C,MATCH($A1429,'Smelter Look-up'!$E:$E,0)))","v":""},null,{"$f":"IF(ISERROR($V1429),\"\",OFFSET('Smelter Look-up'!$D$4,$V1429-4,0)&\"\")","v":""},{"$f":"IF(ISERROR($V1429),\"\",OFFSET('Smelter Look-up'!$E$4,$V1429-4,0))","v":""},{"$f":"IF(C1429=$X$4,\"Enter smelter details\",IF(ISERROR($V1429),\"\",OFFSET('Smelter Look-up'!$F$4,$V1429-4,0)))","v":""},{"$f":"IF(ISERROR($V1429),\"\",OFFSET('Smelter Look-up'!$G$4,$V1429-4,0))","v":""},{"$f":"IF(ISERROR($V1429),\"\",OFFSET('Smelter Look-up'!$H$4,$V1429-4,0))","v":""},{"$f":"IF(ISERROR($V1429),\"\",OFFSET('Smelter Look-up'!$I$4,$V1429-4,0))","v":""},{"$nulls":7},{"$f":"IF(ISERROR($V1429),\"\",OFFSET('Smelter Look-up'!$C$4,$V1429-4,0)&\"\")","v":""},"",{"$f":"IF(B1429=\"\",\"\",IF(ISERROR(MATCH($J1429,SorP!$B$1:$B$5661,0)),\"\",INDIRECT(\"'SorP'!$A$\"&MATCH($J1429,SorP!$B$1:$B$5661,0))))","v":""},null,{"$f":"IF(C1429=\"\",NA(),MATCH($B1429&$C1429,'Smelter Look-up'!$J:$J,0))","v":{"$error":"#N/A"}},null,0,null,null,null,""]
[null,{"$f":"IF(LEN(A1430)=0,\"\",INDEX('Smelter Look-up'!$A:$A,MATCH($A1430,'Smelter Look-up'!$E:$E,0)))","v":""},{"$f":"IF(LEN(A1430)=0,\"\",INDEX('Smelter Look-up'!$C:$C,MATCH($A1430,'Smelter Look-up'!$E:$E,0)))","v":""},null,{"$f":"IF(ISERROR($V1430),\"\",OFFSET('Smelter Look-up'!$D$4,$V1430-4,0)&\"\")","v":""},{"$f":"IF(ISERROR($V1430),\"\",OFFSET('Smelter Look-up'!$E$4,$V1430-4,0))","v":""},{"$f":"IF(C1430=$X$4,\"Enter smelter details\",IF(ISERROR($V1430),\"\",OFFSET('Smelter Look-up'!$F$4,$V1430-4,0)))","v":""},{"$f":"IF(ISERROR($V1430),\"\",OFFSET('Smelter Look-up'!$G$4,$V1430-4,0))","v":""},{"$f":"IF(ISERROR($V1430),\"\",OFFSET('Smelter Look-up'!$H$4,$V1430-4,0))","v":""},{"$f":"IF(ISERROR($V1430),\"\",OFFSET('Smelter Look-up'!$I$4,$V1430-4,0))","v":""},{"$nulls":7},{"$f":"IF(ISERROR($V1430),\"\",OFFSET('Smelter Look-up'!$C$4,$V1430-4,0)&\"\")","v":""},"",{"$f":"IF(B1430=\"\",\"\",IF(ISERROR(MATCH($J1430,SorP!$B$1:$B$5661,0)),\"\",INDIRECT(\"'SorP'!$A$\"&MATCH($J1430,SorP!$B$1:$B$5661,0))))","v":""},null,{"$f":"IF(C1430=\"\",NA(),MATCH($B1430&$C1430,'Smelter Look-up'!$J:$J,0))","v":{"$error":"#N/A"}},null,0,null,null,null,""]
[null,{"$f":"IF(LEN(A1431)=0,\"\",INDEX('Smelter Look-up'!$A:$A,MATCH($A1431,'Smelter Look-up'!$E:$E,0)))","v":""},{"$f":"IF(LEN(A1431)=0,\"\",INDEX('Smelter Look-up'!$C:$C,MATCH($A1431,'Smelter Look-up'!$E:$E,0)))","v":""},null,{"$f":"IF(ISERROR($V1431),\"\",OFFSET('Smelter Look-up'!$D$4,$V1431-4,0)&\"\")","v":""},{"$f":"IF(ISERROR($V1431),\"\",OFFSET('Smelter Look-up'!$E$4,$V1431-4,0))","v":""},{"$f":"IF(C1431=$X$4,\"Enter smelter details\",IF(ISERROR($V1431),\"\",OFFSET('Smelter Look-up'!$F$4,$V1431-4,0)))","v":""},{"$f":"IF(ISERROR($V1431),\"\",OFFSET('Smelter Look-up'!$G$4,$V1431-4,0))","v":""},{"$f":"IF(ISERROR($V1431),\"\",OFFSET('Smelter Look-up'!$H$4,$V1431-4,0))","v":""},{"$f":"IF(ISERROR($V1431),\"\",OFFSET('Smelter Look-up'!$I$4,$V1431-4,0))","v":""},{"$nulls":7},{"$f":"IF(ISERROR($V1431),\"\",OFFSET('Smelter Look-up'!$C$4,$V1431-4,0)&\"\")","v":""},"",{"$f":"IF(B1431=\"\",\"\",IF(ISERROR(MATCH($J1431,SorP!$B$1:$B$5661,0)),\"\",INDIRECT(\"'SorP'!$A$\"&MATCH($J1431,SorP!$B$1:$B$5661,0))))","v":""},null,{"$f":"IF(C1431=\"\",NA(),MATCH($B1431&$C1431,'Smelter Look-up'!$J:$J,0))","v":{"$error":"#N/A"}},null,0,null,null,null,""]
[null,{"$f":"IF(LEN(A1432)=0,\"\",INDEX('Smelter Look-up'!$A:$A,MATCH($A1432,'Smelter Look-up'!$E:$E,0)))","v":""},{"$f":"IF(LEN(A1432)=0,\"\",INDEX('Smelter Look-up'!$C:$C,MATCH($A1432,'Smelter Look-up'!$E:$E,0)))","v":""},null,{"$f":"IF(ISERROR($V1432),\"\",OFFSET('Smelter Look-up'!$D$4,$V1432-4,0)&\"\")","v":""},{"$f":"IF(ISERROR($V1432),\"\",OFFSET('Smelter Look-up'!$E$4,$V1432-4,0))","v":""},{"$f":"IF(C1432=$X$4,\"Enter smelter details\",IF(ISERROR($V1432),\"\",OFFSET('Smelter Look-up'!$F$4,$V1432-4,0)))","v":""},{"$f":"IF(ISERROR($V1432),\"\",OFFSET('Smelter Look-up'!$G$4,$V1432-4,0))","v":""},{"$f":"IF(ISERROR($V1432),\"\",OFFSET('Smelter Look-up'!$H$4,$V1432-4,0))","v":""},{"$f":"IF(ISERROR($V1432),\"\",OFFSET('Smelter Look-up'!$I$4,$V1432-4,0))","v":""},{"$nulls":7},{"$f":"IF(ISERROR($V1432),\"\",OFFSET('Smelter Look-up'!$C$4,$V1432-4,0)&\"\")","v":""},"",{"$f":"IF(B1432=\"\",\"\",IF(ISERROR(MATCH($J1432,SorP!$B$1:$B$5661,0)),\"\",INDIRECT(\"'SorP'!$A$\"&MATCH($J1432,SorP!$B$1:$B$5661,0))))","v":""},null,{"$f":"IF(C1432=\"\",NA(),MATCH($B1432&$C1432,'Smelter Look-up'!$J:$J,0))","v":{"$error":"#N/A"}},null,0,null,null,null,""]
[null,{"$f":"IF(LEN(A1433)=0,\"\",INDEX('Smelter Look-up'!$A:$A,MATCH($A1433,'Smelter Look-up'!$E:$E,0)))","v":""},{"$f":"IF(LEN(A1433)=0,\"\",INDEX('Smelter Look-up'!$C:$C,MATCH($A1433,'Smelter Look-up'!$E:$E,0)))","v":""},null,{"$f":"IF(ISERROR($V1433),\"\",OFFSET('Smelter Look-up'!$D$4,$V1433-4,0)&\"\")","v":""},{"$f":"IF(ISERROR($V1433),\"\",OFFSET('Smelter Look-up'!$E$4,$V1433-4,0))","v":""},{"$f":"IF(C1433=$X$4,\"Enter smelter details\",IF(ISERROR($V1433),\"\",OFFSET('Smelter Look-up'!$F$4,$V1433-4,0)))","v":""},{"$f":"IF(ISERROR($V1433),\"\",OFFSET('Smelter Look-up'!$G$4,$V1433-4,0))","v":""},{"$f":"IF(ISERROR($V1433),\"\",OFFSET('Smelter Look-up'!$H$4,$V1433-4,0))","v":""},{"$f":"IF(ISERROR($V1433),\"\",OFFSET('Smelter Look-up'!$I$4,$V1433-4,0))","v":""},{"$nulls":7},{"$f":"IF(ISERROR($V1433),\"\",OFFSET('Smelter Look-up'!$C$4,$V1433-4,0)&\"\")","v":""},"",{"$f":"IF(B1433=\"\",\"\",IF(ISERROR(MATCH($J1433,SorP!$B$1:$B$5661,0)),\"\",INDIRECT(\"'SorP'!$A$\"&MATCH($J1433,SorP!$B$1:$B$5661,0))))","v":""},null,{"$f":"IF(C1433=\"\",NA(),MATCH($B1433&$C1433,'Smelter Look-up'!$J:$J,0))","v":{"$error":"#N/A"}},null,0,null,null,null,""]
[null,{"$f":"IF(LEN(A1434)=0,\"\",INDEX('Smelter Look-up'!$A:$A,MATCH($A1434,'Smelter Look-up'!$E:$E,0)))","v":""},{"$f":"IF(LEN(A1434)=0,\"\",INDEX('Smelter Look-up'!$C:$C,MATCH($A1434,'Smelter Look-up'!$E:$E,0)))","v":""},null,{"$f":"IF(ISERROR($V1434),\"\",OFFSET('Smelter Look-up'!$D$4,$V1434-4,0)&\"\")","v":""},{"$f":"IF(ISERROR($V1434),\"\",OFFSET('Smelter Look-up'!$E$4,$V1434-4,0))","v":""},{"$f":"IF(C1434=$X$4,\"Enter smelter details\",IF(ISERROR($V1434),\"\",OFFSET('Smelter Look-up'!$F$4,$V1434-4,0)))","v":""},{"$f":"IF(ISERROR($V1434),\"\",OFFSET('Smelter Look-up'!$G$4,$V1434-4,0))","v":""},{"$f":"IF(ISERROR($V1434),\"\",OFFSET('Smelter Look-up'!$H$4,$V1434-4,0))","v":""},{"$f":"IF(ISERROR($V1434),\"\",OFFSET('Smelter Look-up'!$I$4,$V1434-4,0))","v":""},{"$nulls":7},{"$f":"IF(ISERROR($V1434),\"\",OFFSET('Smelter Look-up'!$C$4,$V1434-4,0)&\"\")","v":""},"",{"$f":"IF(B1434=\"\",\"\",IF(ISERROR(MATCH($J1434,SorP!$B$1:$B$5661,0)),\"\",INDIRECT(\"'SorP'!$A$\"&MATCH($J1434,SorP!$B$1:$B$5661,0))))","v":""},null,{"$f":"IF(C1434=\"\",NA(),MATCH($B1434&$C1434,'Smelter Look-up'!$J:$J,0))","v":{"$error":"#N/A"}},null,0,null,null,null,""]
[null,{"$f":"IF(LEN(A1435)=0,\"\",INDEX('Smelter Look-up'!$A:$A,MATCH($A1435,'Smelter Look-up'!$E:$E,0)))","v":""},{"$f":"IF(LEN(A1435)=0,\"\",INDEX('Smelter Look-up'!$C:$C,MATCH($A1435,'Smelter Look-up'!$E:$E,0)))","v":""},null,{"$f":"IF(ISERROR($V1435),\"\",OFFSET('Smelter Look-up'!$D$4,$V1435-4,0)&\"\")","v":""},{"$f":"IF(ISERROR($V1435),\"\",OFFSET('Smelter Look-up'!$E$4,$V1435-4,0))","v":""},{"$f":"IF(C1435=$X$4,\"Enter smelter details\",IF(ISERROR($V1435),\"\",OFFSET('Smelter Look-up'!$F$4,$V1435-4,0)))","v":""},{"$f":"IF(ISERROR($V1435),\"\",OFFSET('Smelter Look-up'!$G$4,$V1435-4,0))","v":""},{"$f":"IF(ISERROR($V1435),\"\",OFFSET('Smelter Look-up'!$H$4,$V1435-4,0))","v":""},{"$f":"IF(ISERROR($V1435),\"\",OFFSET('Smelter Look-up'!$I$4,$V1435-4,0))","v":""},{"$nulls":7},{"$f":"IF(ISERROR($V1435),\"\",OFFSET('Smelter Look-up'!$C$4,$V1435-4,0)&\"\")","v":""},"",{"$f":"IF(B1435=\"\",\"\",IF(ISERROR(MATCH($J1435,SorP!$B$1:$B$5661,0)),\"\",INDIRECT(\"'SorP'!$A$\"&MATCH($J1435,SorP!$B$1:$B$5661,0))))","v":""},null,{"$f":"IF(C1435=\"\",NA(),MATCH($B1435&$C1435,'Smelter Look-up'!$J:$J,0))","v":{"$error":"#N/A"}},null,0,null,null,null,""]
[null,{"$f":"IF(LEN(A1436)=0,\"\",INDEX('Smelter Look-up'!$A:$A,MATCH($A1436,'Smelter Look-up'!$E:$E,0)))","v":""},{"$f":"IF(LEN(A1436)=0,\"\",INDEX('Smelter Look-up'!$C:$C,MATCH($A1436,'Smelter Look-up'!$E:$E,0)))","v":""},null,{"$f":"IF(ISERROR($V1436),\"\",OFFSET('Smelter Look-up'!$D$4,$V1436-4,0)&\"\")","v":""},{"$f":"IF(ISERROR($V1436),\"\",OFFSET('Smelter Look-up'!$E$4,$V1436-4,0))","v":""},{"$f":"IF(C1436=$X$4,\"Enter smelter details\",IF(ISERROR($V1436),\"\",OFFSET('Smelter Look-up'!$F$4,$V1436-4,0)))","v":""},{"$f":"IF(ISERROR($V1436),\"\",OFFSET('Smelter Look-up'!$G$4,$V1436-4,0))","v":""},{"$f":"IF(ISERROR($V1436),\"\",OFFSET('Smelter Look-up'!$H$4,$V1436-4,0))","v":""},{"$f":"IF(ISERROR($V1436),\"\",OFFSET('Smelter Look-up'!$I$4,$V1436-4,0))","v":""},{"$nulls":7},{"$f":"IF(ISERROR($V1436),\"\",OFFSET('Smelter Look-up'!$C$4,$V1436-4,0)&\"\")","v":""},"",{"$f":"IF(B1436=\"\",\"\",IF(ISERROR(MATCH($J1436,SorP!$B$1:$B$5661,0)),\"\",INDIRECT(\"'SorP'!$A$\"&MATCH($J1436,SorP!$B$1:$B$5661,0))))","v":""},null,{"$f":"IF(C1436=\"\",NA(),MATCH($B1436&$C1436,'Smelter Look-up'!$J:$J,0))","v":{"$error":"#N/A"}},null,0,null,null,null,""]
[null,{"$f":"IF(LEN(A1437)=0,\"\",INDEX('Smelter Look-up'!$A:$A,MATCH($A1437,'Smelter Look-up'!$E:$E,0)))","v":""},{"$f":"IF(LEN(A1437)=0,\"\",INDEX('Smelter Look-up'!$C:$C,MATCH($A1437,'Smelter Look-up'!$E:$E,0)))","v":""},null,{"$f":"IF(ISERROR($V1437),\"\",OFFSET('Smelter Look-up'!$D$4,$V1437-4,0)&\"\")","v":""},{"$f":"IF(ISERROR($V1437),\"\",OFFSET('Smelter Look-up'!$E$4,$V1437-4,0))","v":""},{"$f":"IF(C1437=$X$4,\"Enter smelter details\",IF(ISERROR($V1437),\"\",OFFSET('Smelter Look-up'!$F$4,$V1437-4,0)))","v":""},{"$f":"IF(ISERROR($V1437),\"\",OFFSET('Smelter Look-up'!$G$4,$V1437-4,0))","v":""},{"$f":"IF(ISERROR($V1437),\"\",OFFSET('Smelter Look-up'!$H$4,$V1437-4,0))","v":""},{"$f":"IF(ISERROR($V1437),\"\",OFFSET('Smelter Look-up'!$I$4,$V1437-4,0))","v":""},{"$nulls":7},{"$f":"IF(ISERROR($V1437),\"\",OFFSET('Smelter Look-up'!$C$4,$V1437-4,0)&\"\")","v":""},"",{"$f":"IF(B1437=\"\",\"\",IF(ISERROR(MATCH($J1437,SorP!$B$1:$B$5661,0)),\"\",INDIRECT(\"'SorP'!$A$\"&MATCH($J1437,SorP!$B$1:$B$5661,0))))","v":""},null,{"$f":"IF(C1437=\"\",NA(),MATCH($B1437&$C1437,'Smelter Look-up'!$J:$J,0))","v":{"$error":"#N/A"}},null,0,null,null,null,""]
[null,{"$f":"IF(LEN(A1438)=0,\"\",INDEX('Smelter Look-up'!$A:$A,MATCH($A1438,'Smelter Look-up'!$E:$E,0)))","v":""},{"$f":"IF(LEN(A1438)=0,\"\",INDEX('Smelter Look-up'!$C:$C,MATCH($A1438,'Smelter Look-up'!$E:$E,0)))","v":""},null,{"$f":"IF(ISERROR($V1438),\"\",OFFSET('Smelter Look-up'!$D$4,$V1438-4,0)&\"\")","v":""},{"$f":"IF(ISERROR($V1438),\"\",OFFSET('Smelter Look-up'!$E$4,$V1438-4,0))","v":""},{"$f":"IF(C1438=$X$4,\"Enter smelter details\",IF(ISERROR($V1438),\"\",OFFSET('Smelter Look-up'!$F$4,$V1438-4,0)))","v":""},{"$f":"IF(ISERROR($V1438),\"\",OFFSET('Smelter Look-up'!$G$4,$V1438-4,0))","v":""},{"$f":"IF(ISERROR($V1438),\"\",OFFSET('Smelter Look-up'!$H$4,$V1438-4,0))","v":""},{"$f":"IF(ISERROR($V1438),\"\",OFFSET('Smelter Look-up'!$I$4,$V1438-4,0))","v":""},{"$nulls":7},{"$f":"IF(ISERROR($V1438),\"\",OFFSET('Smelter Look-up'!$C$4,$V1438-4,0)&\"\")","v":""},"",{"$f":"IF(B1438=\"\",\"\",IF(ISERROR(MATCH($J1438,SorP!$B$1:$B$5661,0)),\"\",INDIRECT(\"'SorP'!$A$\"&MATCH($J1438,SorP!$B$1:$B$5661,0))))","v":""},null,{"$f":"IF(C1438=\"\",NA(),MATCH($B1438&$C1438,'Smelter Look-up'!$J:$J,0))","v":{"$error":"#N/A"}},null,0,null,null,null,""]
[null,{"$f":"IF(LEN(A1439)=0,\"\",INDEX('Smelter Look-up'!$A:$A,MATCH($A1439,'Smelter Look-up'!$E:$E,0)))","v":""},{"$f":"IF(LEN(A1439)=0,\"\",INDEX('Smelter Look-up'!$C:$C,MATCH($A1439,'Smelter Look-up'!$E:$E,0)))","v":""},null,{"$f":"IF(ISERROR($V1439),\"\",OFFSET('Smelter Look-up'!$D$4,$V1439-4,0)&\"\")","v":""},{"$f":"IF(ISERROR($V1439),\"\",OFFSET('Smelter Look-up'!$E$4,$V1439-4,0))","v":""},{"$f":"IF(C1439=$X$4,\"Enter smelter details\",IF(ISERROR($V1439),\"\",OFFSET('Smelter Look-up'!$F$4,$V1439-4,0)))","v":""},{"$f":"IF(ISERROR($V1439),\"\",OFFSET('Smelter Look-up'!$G$4,$V1439-4,0))","v":""},{"$f":"IF(ISERROR($V1439),\"\",OFFSET('Smelter Look-up'!$H$4,$V1439-4,0))","v":""},{"$f":"IF(ISERROR($V1439),\"\",OFFSET('Smelter Look-up'!$I$4,$V1439-4,0))","v":""},{"$nulls":7},{"$f":"IF(ISERROR($V1439),\"\",OFFSET('Smelter Look-up'!$C$4,$V1439-4,0)&\"\")","v":""},"",{"$f":"IF(B1439=\"\",\"\",IF(ISERROR(MATCH($J1439,SorP!$B$1:$B$5661,0)),\"\",INDIRECT(\"'SorP'!$A$\"&MATCH($J1439,SorP!$B$1:$B$5661,0))))","v":""},null,{"$f":"IF(C1439=\"\",NA(),MATCH($B1439&$C1439,'Smelter Look-up'!$J:$J,0))","v":{"$error":"#N/A"}},null,0,null,null,null,""]
[null,{"$f":"IF(LEN(A1440)=0,\"\",INDEX('Smelter Look-up'!$A:$A,MATCH($A1440,'Smelter Look-up'!$E:$E,0)))","v":""},{"$f":"IF(LEN(A1440)=0,\"\",INDEX('Smelter Look-up'!$C:$C,MATCH($A1440,'Smelter Look-up'!$E:$E,0)))","v":""},null,{"$f":"IF(ISERROR($V1440),\"\",OFFSET('Smelter Look-up'!$D$4,$V1440-4,0)&\"\")","v":""},{"$f":"IF(ISERROR($V1440),\"\",OFFSET('Smelter Look-up'!$E$4,$V1440-4,0))","v":""},{"$f":"IF(C1440=$X$4,\"Enter smelter details\",IF(ISERROR($V1440),\"\",OFFSET('Smelter Look-up'!$F$4,$V1440-4,0)))","v":""},{"$f":"IF(ISERROR($V1440),\"\",OFFSET('Smelter Look-up'!$G$4,$V1440-4,0))","v":""},{"$f":"IF(ISERROR($V1440),\"\",OFFSET('Smelter Look-up'!$H$4,$V1440-4,0))","v":""},{"$f":"IF(ISERROR($V1440),\"\",OFFSET('Smelter Look-up'!$I$4,$V1440-4,0))","v":""},{"$nulls":7},{"$f":"IF(ISERROR($V1440),\"\",OFFSET('Smelter Look-up'!$C$4,$V1440-4,0)&\"\")","v":""},"",{"$f":"IF(B1440=\"\",\"\",IF(ISERROR(MATCH($J1440,SorP!$B$1:$B$5661,0)),\"\",INDIRECT(\"'SorP'!$A$\"&MATCH($J1440,SorP!$B$1:$B$5661,0))))","v":""},null,{"$f":"IF(C1440=\"\",NA(),MATCH($B1440&$C1440,'Smelter Look-up'!$J:$J,0))","v":{"$error":"#N/A"}},null,0,null,null,null,""]
[null,{"$f":"IF(LEN(A1441)=0,\"\",INDEX('Smelter Look-up'!$A:$A,MATCH($A1441,'Smelter Look-up'!$E:$E,0)))","v":""},{"$f":"IF(LEN(A1441)=0,\"\",INDEX('Smelter Look-up'!$C:$C,MATCH($A1441,'Smelter Look-up'!$E:$E,0)))","v":""},null,{"$f":"IF(ISERROR($V1441),\"\",OFFSET('Smelter Look-up'!$D$4,$V1441-4,0)&\"\")","v":""},{"$f":"IF(ISERROR($V1441),\"\",OFFSET('Smelter Look-up'!$E$4,$V1441-4,0))","v":""},{"$f":"IF(C1441=$X$4,\"Enter smelter details\",IF(ISERROR($V1441),\"\",OFFSET('Smelter Look-up'!$F$4,$V1441-4,0)))","v":""},{"$f":"IF(ISERROR($V1441),\"\",OFFSET('Smelter Look-up'!$G$4,$V1441-4,0))","v":""},{"$f":"IF(ISERROR($V1441),\"\",OFFSET('Smelter Look-up'!$H$4,$V1441-4,0))","v":""},{"$f":"IF(ISERROR($V1441),\"\",OFFSET('Smelter Look-up'!$I$4,$V1441-4,0))","v":""},{"$nulls":7},{"$f":"IF(ISERROR($V1441),\"\",OFFSET('Smelter Look-up'!$C$4,$V1441-4,0)&\"\")","v":""},"",{"$f":"IF(B1441=\"\",\"\",IF(ISERROR(MATCH($J1441,SorP!$B$1:$B$5661,0)),\"\",INDIRECT(\"'SorP'!$A$\"&MATCH($J1441,SorP!$B$1:$B$5661,0))))","v":""},null,{"$f":"IF(C1441=\"\",NA(),MATCH($B1441&$C1441,'Smelter Look-up'!$J:$J,0))","v":{"$error":"#N/A"}},null,0,null,null,null,""]
[null,{"$f":"IF(LEN(A1442)=0,\"\",INDEX('Smelter Look-up'!$A:$A,MATCH($A1442,'Smelter Look-up'!$E:$E,0)))","v":""},{"$f":"IF(LEN(A1442)=0,\"\",INDEX('Smelter Look-up'!$C:$C,MATCH($A1442,'Smelter Look-up'!$E:$E,0)))","v":""},null,{"$f":"IF(ISERROR($V1442),\"\",OFFSET('Smelter Look-up'!$D$4,$V1442-4,0)&\"\")","v":""},{"$f":"IF(ISERROR($V1442),\"\",OFFSET('Smelter Look-up'!$E$4,$V1442-4,0))","v":""},{"$f":"IF(C1442=$X$4,\"Enter smelter details\",IF(ISERROR($V1442),\"\",OFFSET('Smelter Look-up'!$F$4,$V1442-4,0)))","v":""},{"$f":"IF(ISERROR($V1442),\"\",OFFSET('Smelter Look-up'!$G$4,$V1442-4,0))","v":""},{"$f":"IF(ISERROR($V1442),\"\",OFFSET('Smelter Look-up'!$H$4,$V1442-4,0))","v":""},{"$f":"IF(ISERROR($V1442),\"\",OFFSET('Smelter Look-up'!$I$4,$V1442-4,0))","v":""},{"$nulls":7},{"$f":"IF(ISERROR($V1442),\"\",OFFSET('Smelter Look-up'!$C$4,$V1442-4,0)&\"\")","v":""},"",{"$f":"IF(B1442=\"\",\"\",IF(ISERROR(MATCH($J1442,SorP!$B$1:$B$5661,0)),\"\",INDIRECT(\"'SorP'!$A$\"&MATCH($J1442,SorP!$B$1:$B$5661,0))))","v":""},null,{"$f":"IF(C1442=\"\",NA(),MATCH($B1442&$C1442,'Smelter Look-up'!$J:$J,0))","v":{"$error":"#N/A"}},null,0,null,null,null,""]
[null,{"$f":"IF(LEN(A1443)=0,\"\",INDEX('Smelter Look-up'!$A:$A,MATCH($A1443,'Smelter Look-up'!$E:$E,0)))","v":""},{"$f":"IF(LEN(A1443)=0,\"\",INDEX('Smelter Look-up'!$C:$C,MATCH($A1443,'Smelter Look-up'!$E:$E,0)))","v":""},null,{"$f":"IF(ISERROR($V1443),\"\",OFFSET('Smelter Look-up'!$D$4,$V1443-4,0)&\"\")","v":""},{"$f":"IF(ISERROR($V1443),\"\",OFFSET('Smelter Look-up'!$E$4,$V1443-4,0))","v":""},{"$f":"IF(C1443=$X$4,\"Enter smelter details\",IF(ISERROR($V1443),\"\",OFFSET('Smelter Look-up'!$F$4,$V1443-4,0)))","v":""},{"$f":"IF(ISERROR($V1443),\"\",OFFSET('Smelter Look-up'!$G$4,$V1443-4,0))","v":""},{"$f":"IF(ISERROR($V1443),\"\",OFFSET('Smelter Look-up'!$H$4,$V1443-4,0))","v":""},{"$f":"IF(ISERROR($V1443),\"\",OFFSET('Smelter Look-up'!$I$4,$V1443-4,0))","v":""},{"$nulls":7},{"$f":"IF(ISERROR($V1443),\"\",OFFSET('Smelter Look-up'!$C$4,$V1443-4,0)&\"\")","v":""},"",{"$f":"IF(B1443=\"\",\"\",IF(ISERROR(MATCH($J1443,SorP!$B$1:$B$5661,0)),\"\",INDIRECT(\"'SorP'!$A$\"&MATCH($J1443,SorP!$B$1:$B$5661,0))))","v":""},null,{"$f":"IF(C1443=\"\",NA(),MATCH($B1443&$C1443,'Smelter Look-up'!$J:$J,0))","v":{"$error":"#N/A"}},null,0,null,null,null,""]
[null,{"$f":"IF(LEN(A1444)=0,\"\",INDEX('Smelter Look-up'!$A:$A,MATCH($A1444,'Smelter Look-up'!$E:$E,0)))","v":""},{"$f":"IF(LEN(A1444)=0,\"\",INDEX('Smelter Look-up'!$C:$C,MATCH($A1444,'Smelter Look-up'!$E:$E,0)))","v":""},null,{"$f":"IF(ISERROR($V1444),\"\",OFFSET('Smelter Look-up'!$D$4,$V1444-4,0)&\"\")","v":""},{"$f":"IF(ISERROR($V1444),\"\",OFFSET('Smelter Look-up'!$E$4,$V1444-4,0))","v":""},{"$f":"IF(C1444=$X$4,\"Enter smelter details\",IF(ISERROR($V1444),\"\",OFFSET('Smelter Look-up'!$F$4,$V1444-4,0)))","v":""},{"$f":"IF(ISERROR($V1444),\"\",OFFSET('Smelter Look-up'!$G$4,$V1444-4,0))","v":""},{"$f":"IF(ISERROR($V1444),\"\",OFFSET('Smelter Look-up'!$H$4,$V1444-4,0))","v":""},{"$f":"IF(ISERROR($V1444),\"\",OFFSET('Smelter Look-up'!$I$4,$V1444-4,0))","v":""},{"$nulls":7},{"$f":"IF(ISERROR($V1444),\"\",OFFSET('Smelter Look-up'!$C$4,$V1444-4,0)&\"\")","v":""},"",{"$f":"IF(B1444=\"\",\"\",IF(ISERROR(MATCH($J1444,SorP!$B$1:$B$5661,0)),\"\",INDIRECT(\"'SorP'!$A$\"&MATCH($J1444,SorP!$B$1:$B$5661,0))))","v":""},null,{"$f":"IF(C1444=\"\",NA(),MATCH($B1444&$C1444,'Smelter Look-up'!$J:$J,0))","v":{"$error":"#N/A"}},null,0,null,null,null,""]
[null,{"$f":"IF(LEN(A1445)=0,\"\",INDEX('Smelter Look-up'!$A:$A,MATCH($A1445,'Smelter Look-up'!$E:$E,0)))","v":""},{"$f":"IF(LEN(A1445)=0,\"\",INDEX('Smelter Look-up'!$C:$C,MATCH($A1445,'Smelter Look-up'!$E:$E,0)))","v":""},null,{"$f":"IF(ISERROR($V1445),\"\",OFFSET('Smelter Look-up'!$D$4,$V1445-4,0)&\"\")","v":""},{"$f":"IF(ISERROR($V1445),\"\",OFFSET('Smelter Look-up'!$E$4,$V1445-4,0))","v":""},{"$f":"IF(C1445=$X$4,\"Enter smelter details\",IF(ISERROR($V1445),\"\",OFFSET('Smelter Look-up'!$F$4,$V1445-4,0)))","v":""},{"$f":"IF(ISERROR($V1445),\"\",OFFSET('Smelter Look-up'!$G$4,$V1445-4,0))","v":""},{"$f":"IF(ISERROR($V1445),\"\",OFFSET('Smelter Look-up'!$H$4,$V1445-4,0))","v":""},{"$f":"IF(ISERROR($V1445),\"\",OFFSET('Smelter Look-up'!$I$4,$V1445-4,0))","v":""},{"$nulls":7},{"$f":"IF(ISERROR($V1445),\"\",OFFSET('Smelter Look-up'!$C$4,$V1445-4,0)&\"\")","v":""},"",{"$f":"IF(B1445=\"\",\"\",IF(ISERROR(MATCH($J1445,SorP!$B$1:$B$5661,0)),\"\",INDIRECT(\"'SorP'!$A$\"&MATCH($J1445,SorP!$B$1:$B$5661,0))))","v":""},null,{"$f":"IF(C1445=\"\",NA(),MATCH($B1445&$C1445,'Smelter Look-up'!$J:$J,0))","v":{"$error":"#N/A"}},null,0,null,null,null,""]
[null,{"$f":"IF(LEN(A1446)=0,\"\",INDEX('Smelter Look-up'!$A:$A,MATCH($A1446,'Smelter Look-up'!$E:$E,0)))","v":""},{"$f":"IF(LEN(A1446)=0,\"\",INDEX('Smelter Look-up'!$C:$C,MATCH($A1446,'Smelter Look-up'!$E:$E,0)))","v":""},null,{"$f":"IF(ISERROR($V1446),\"\",OFFSET('Smelter Look-up'!$D$4,$V1446-4,0)&\"\")","v":""},{"$f":"IF(ISERROR($V1446),\"\",OFFSET('Smelter Look-up'!$E$4,$V1446-4,0))","v":""},{"$f":"IF(C1446=$X$4,\"Enter smelter details\",IF(ISERROR($V1446),\"\",OFFSET('Smelter Look-up'!$F$4,$V1446-4,0)))","v":""},{"$f":"IF(ISERROR($V1446),\"\",OFFSET('Smelter Look-up'!$G$4,$V1446-4,0))","v":""},{"$f":"IF(ISERROR($V1446),\"\",OFFSET('Smelter Look-up'!$H$4,$V1446-4,0))","v":""},{"$f":"IF(ISERROR($V1446),\"\",OFFSET('Smelter Look-up'!$I$4,$V1446-4,0))","v":""},{"$nulls":7},{"$f":"IF(ISERROR($V1446),\"\",OFFSET('Smelter Look-up'!$C$4,$V1446-4,0)&\"\")","v":""},"",{"$f":"IF(B1446=\"\",\"\",IF(ISERROR(MATCH($J1446,SorP!$B$1:$B$5661,0)),\"\",INDIRECT(\"'SorP'!$A$\"&MATCH($J1446,SorP!$B$1:$B$5661,0))))","v":""},null,{"$f":"IF(C1446=\"\",NA(),MATCH($B1446&$C1446,'Smelter Look-up'!$J:$J,0))","v":{"$error":"#N/A"}},null,0,null,null,null,""]
[null,{"$f":"IF(LEN(A1447)=0,\"\",INDEX('Smelter Look-up'!$A:$A,MATCH($A1447,'Smelter Look-up'!$E:$E,0)))","v":""},{"$f":"IF(LEN(A1447)=0,\"\",INDEX('Smelter Look-up'!$C:$C,MATCH($A1447,'Smelter Look-up'!$E:$E,0)))","v":""},null,{"$f":"IF(ISERROR($V1447),\"\",OFFSET('Smelter Look-up'!$D$4,$V1447-4,0)&\"\")","v":""},{"$f":"IF(ISERROR($V1447),\"\",OFFSET('Smelter Look-up'!$E$4,$V1447-4,0))","v":""},{"$f":"IF(C1447=$X$4,\"Enter smelter details\",IF(ISERROR($V1447),\"\",OFFSET('Smelter Look-up'!$F$4,$V1447-4,0)))","v":""},{"$f":"IF(ISERROR($V1447),\"\",OFFSET('Smelter Look-up'!$G$4,$V1447-4,0))","v":""},{"$f":"IF(ISERROR($V1447),\"\",OFFSET('Smelter Look-up'!$H$4,$V1447-4,0))","v":""},{"$f":"IF(ISERROR($V1447),\"\",OFFSET('Smelter Look-up'!$I$4,$V1447-4,0))","v":""},{"$nulls":7},{"$f":"IF(ISERROR($V1447),\"\",OFFSET('Smelter Look-up'!$C$4,$V1447-4,0)&\"\")","v":""},"",{"$f":"IF(B1447=\"\",\"\",IF(ISERROR(MATCH($J1447,SorP!$B$1:$B$5661,0)),\"\",INDIRECT(\"'SorP'!$A$\"&MATCH($J1447,SorP!$B$1:$B$5661,0))))","v":""},null,{"$f":"IF(C1447=\"\",NA(),MATCH($B1447&$C1447,'Smelter Look-up'!$J:$J,0))","v":{"$error":"#N/A"}},null,0,null,null,null,""]
[null,{"$f":"IF(LEN(A1448)=0,\"\",INDEX('Smelter Look-up'!$A:$A,MATCH($A1448,'Smelter Look-up'!$E:$E,0)))","v":""},{"$f":"IF(LEN(A1448)=0,\"\",INDEX('Smelter Look-up'!$C:$C,MATCH($A1448,'Smelter Look-up'!$E:$E,0)))","v":""},null,{"$f":"IF(ISERROR($V1448),\"\",OFFSET('Smelter Look-up'!$D$4,$V1448-4,0)&\"\")","v":""},{"$f":"IF(ISERROR($V1448),\"\",OFFSET('Smelter Look-up'!$E$4,$V1448-4,0))","v":""},{"$f":"IF(C1448=$X$4,\"Enter smelter details\",IF(ISERROR($V1448),\"\",OFFSET('Smelter Look-up'!$F$4,$V1448-4,0)))","v":""},{"$f":"IF(ISERROR($V1448),\"\",OFFSET('Smelter Look-up'!$G$4,$V1448-4,0))","v":""},{"$f":"IF(ISERROR($V1448),\"\",OFFSET('Smelter Look-up'!$H$4,$V1448-4,0))","v":""},{"$f":"IF(ISERROR($V1448),\"\",OFFSET('Smelter Look-up'!$I$4,$V1448-4,0))","v":""},{"$nulls":7},{"$f":"IF(ISERROR($V1448),\"\",OFFSET('Smelter Look-up'!$C$4,$V1448-4,0)&\"\")","v":""},"",{"$f":"IF(B1448=\"\",\"\",IF(ISERROR(MATCH($J1448,SorP!$B$1:$B$5661,0)),\"\",INDIRECT(\"'SorP'!$A$\"&MATCH($J1448,SorP!$B$1:$B$5661,0))))","v":""},null,{"$f":"IF(C1448=\"\",NA(),MATCH($B1448&$C1448,'Smelter Look-up'!$J:$J,0))","v":{"$error":"#N/A"}},null,0,null,null,null,""]
[null,{"$f":"IF(LEN(A1449)=0,\"\",INDEX('Smelter Look-up'!$A:$A,MATCH($A1449,'Smelter Look-up'!$E:$E,0)))","v":""},{"$f":"IF(LEN(A1449)=0,\"\",INDEX('Smelter Look-up'!$C:$C,MATCH($A1449,'Smelter Look-up'!$E:$E,0)))","v":""},null,{"$f":"IF(ISERROR($V1449),\"\",OFFSET('Smelter Look-up'!$D$4,$V1449-4,0)&\"\")","v":""},{"$f":"IF(ISERROR($V1449),\"\",OFFSET('Smelter Look-up'!$E$4,$V1449-4,0))","v":""},{"$f":"IF(C1449=$X$4,\"Enter smelter details\",IF(ISERROR($V1449),\"\",OFFSET('Smelter Look-up'!$F$4,$V1449-4,0)))","v":""},{"$f":"IF(ISERROR($V1449),\"\",OFFSET('Smelter Look-up'!$G$4,$V1449-4,0))","v":""},{"$f":"IF(ISERROR($V1449),\"\",OFFSET('Smelter Look-up'!$H$4,$V1449-4,0))","v":""},{"$f":"IF(ISERROR($V1449),\"\",OFFSET('Smelter Look-up'!$I$4,$V1449-4,0))","v":""},{"$nulls":7},{"$f":"IF(ISERROR($V1449),\"\",OFFSET('Smelter Look-up'!$C$4,$V1449-4,0)&\"\")","v":""},"",{"$f":"IF(B1449=\"\",\"\",IF(ISERROR(MATCH($J1449,SorP!$B$1:$B$5661,0)),\"\",INDIRECT(\"'SorP'!$A$\"&MATCH($J1449,SorP!$B$1:$B$5661,0))))","v":""},null,{"$f":"IF(C1449=\"\",NA(),MATCH($B1449&$C1449,'Smelter Look-up'!$J:$J,0))","v":{"$error":"#N/A"}},null,0,null,null,null,""]
[null,{"$f":"IF(LEN(A1450)=0,\"\",INDEX('Smelter Look-up'!$A:$A,MATCH($A1450,'Smelter Look-up'!$E:$E,0)))","v":""},{"$f":"IF(LEN(A1450)=0,\"\",INDEX('Smelter Look-up'!$C:$C,MATCH($A1450,'Smelter Look-up'!$E:$E,0)))","v":""},null,{"$f":"IF(ISERROR($V1450),\"\",OFFSET('Smelter Look-up'!$D$4,$V1450-4,0)&\"\")","v":""},{"$f":"IF(ISERROR($V1450),\"\",OFFSET('Smelter Look-up'!$E$4,$V1450-4,0))","v":""},{"$f":"IF(C1450=$X$4,\"Enter smelter details\",IF(ISERROR($V1450),\"\",OFFSET('Smelter Look-up'!$F$4,$V1450-4,0)))","v":""},{"$f":"IF(ISERROR($V1450),\"\",OFFSET('Smelter Look-up'!$G$4,$V1450-4,0))","v":""},{"$f":"IF(ISERROR($V1450),\"\",OFFSET('Smelter Look-up'!$H$4,$V1450-4,0))","v":""},{"$f":"IF(ISERROR($V1450),\"\",OFFSET('Smelter Look-up'!$I$4,$V1450-4,0))","v":""},{"$nulls":7},{"$f":"IF(ISERROR($V1450),\"\",OFFSET('Smelter Look-up'!$C$4,$V1450-4,0)&\"\")","v":""},"",{"$f":"IF(B1450=\"\",\"\",IF(ISERROR(MATCH($J1450,SorP!$B$1:$B$5661,0)),\"\",INDIRECT(\"'SorP'!$A$\"&MATCH($J1450,SorP!$B$1:$B$5661,0))))","v":""},null,{"$f":"IF(C1450=\"\",NA(),MATCH($B1450&$C1450,'Smelter Look-up'!$J:$J,0))","v":{"$error":"#N/A"}},null,0,null,null,null,""]
[null,{"$f":"IF(LEN(A1451)=0,\"\",INDEX('Smelter Look-up'!$A:$A,MATCH($A1451,'Smelter Look-up'!$E:$E,0)))","v":""},{"$f":"IF(LEN(A1451)=0,\"\",INDEX('Smelter Look-up'!$C:$C,MATCH($A1451,'Smelter Look-up'!$E:$E,0)))","v":""},null,{"$f":"IF(ISERROR($V1451),\"\",OFFSET('Smelter Look-up'!$D$4,$V1451-4,0)&\"\")","v":""},{"$f":"IF(ISERROR($V1451),\"\",OFFSET('Smelter Look-up'!$E$4,$V1451-4,0))","v":""},{"$f":"IF(C1451=$X$4,\"Enter smelter details\",IF(ISERROR($V1451),\"\",OFFSET('Smelter Look-up'!$F$4,$V1451-4,0)))","v":""},{"$f":"IF(ISERROR($V1451),\"\",OFFSET('Smelter Look-up'!$G$4,$V1451-4,0))","v":""},{"$f":"IF(ISERROR($V1451),\"\",OFFSET('Smelter Look-up'!$H$4,$V1451-4,0))","v":""},{"$f":"IF(ISERROR($V1451),\"\",OFFSET('Smelter Look-up'!$I$4,$V1451-4,0))","v":""},{"$nulls":7},{"$f":"IF(ISERROR($V1451),\"\",OFFSET('Smelter Look-up'!$C$4,$V1451-4,0)&\"\")","v":""},"",{"$f":"IF(B1451=\"\",\"\",IF(ISERROR(MATCH($J1451,SorP!$B$1:$B$5661,0)),\"\",INDIRECT(\"'SorP'!$A$\"&MATCH($J1451,SorP!$B$1:$B$5661,0))))","v":""},null,{"$f":"IF(C1451=\"\",NA(),MATCH($B1451&$C1451,'Smelter Look-up'!$J:$J,0))","v":{"$error":"#N/A"}},null,0,null,null,null,""]
[null,{"$f":"IF(LEN(A1452)=0,\"\",INDEX('Smelter Look-up'!$A:$A,MATCH($A1452,'Smelter Look-up'!$E:$E,0)))","v":""},{"$f":"IF(LEN(A1452)=0,\"\",INDEX('Smelter Look-up'!$C:$C,MATCH($A1452,'Smelter Look-up'!$E:$E,0)))","v":""},null,{"$f":"IF(ISERROR($V1452),\"\",OFFSET('Smelter Look-up'!$D$4,$V1452-4,0)&\"\")","v":""},{"$f":"IF(ISERROR($V1452),\"\",OFFSET('Smelter Look-up'!$E$4,$V1452-4,0))","v":""},{"$f":"IF(C1452=$X$4,\"Enter smelter details\",IF(ISERROR($V1452),\"\",OFFSET('Smelter Look-up'!$F$4,$V1452-4,0)))","v":""},{"$f":"IF(ISERROR($V1452),\"\",OFFSET('Smelter Look-up'!$G$4,$V1452-4,0))","v":""},{"$f":"IF(ISERROR($V1452),\"\",OFFSET('Smelter Look-up'!$H$4,$V1452-4,0))","v":""},{"$f":"IF(ISERROR($V1452),\"\",OFFSET('Smelter Look-up'!$I$4,$V1452-4,0))","v":""},{"$nulls":7},{"$f":"IF(ISERROR($V1452),\"\",OFFSET('Smelter Look-up'!$C$4,$V1452-4,0)&\"\")","v":""},"",{"$f":"IF(B1452=\"\",\"\",IF(ISERROR(MATCH($J1452,SorP!$B$1:$B$5661,0)),\"\",INDIRECT(\"'SorP'!$A$\"&MATCH($J1452,SorP!$B$1:$B$5661,0))))","v":""},null,{"$f":"IF(C1452=\"\",NA(),MATCH($B1452&$C1452,'Smelter Look-up'!$J:$J,0))","v":{"$error":"#N/A"}},null,0,null,null,null,""]
[null,{"$f":"IF(LEN(A1453)=0,\"\",INDEX('Smelter Look-up'!$A:$A,MATCH($A1453,'Smelter Look-up'!$E:$E,0)))","v":""},{"$f":"IF(LEN(A1453)=0,\"\",INDEX('Smelter Look-up'!$C:$C,MATCH($A1453,'Smelter Look-up'!$E:$E,0)))","v":""},null,{"$f":"IF(ISERROR($V1453),\"\",OFFSET('Smelter Look-up'!$D$4,$V1453-4,0)&\"\")","v":""},{"$f":"IF(ISERROR($V1453),\"\",OFFSET('Smelter Look-up'!$E$4,$V1453-4,0))","v":""},{"$f":"IF(C1453=$X$4,\"Enter smelter details\",IF(ISERROR($V1453),\"\",OFFSET('Smelter Look-up'!$F$4,$V1453-4,0)))","v":""},{"$f":"IF(ISERROR($V1453),\"\",OFFSET('Smelter Look-up'!$G$4,$V1453-4,0))","v":""},{"$f":"IF(ISERROR($V1453),\"\",OFFSET('Smelter Look-up'!$H$4,$V1453-4,0))","v":""},{"$f":"IF(ISERROR($V1453),\"\",OFFSET('Smelter Look-up'!$I$4,$V1453-4,0))","v":""},{"$nulls":7},{"$f":"IF(ISERROR($V1453),\"\",OFFSET('Smelter Look-up'!$C$4,$V1453-4,0)&\"\")","v":""},"",{"$f":"IF(B1453=\"\",\"\",IF(ISERROR(MATCH($J1453,SorP!$B$1:$B$5661,0)),\"\",INDIRECT(\"'SorP'!$A$\"&MATCH($J1453,SorP!$B$1:$B$5661,0))))","v":""},null,{"$f":"IF(C1453=\"\",NA(),MATCH($B1453&$C1453,'Smelter Look-up'!$J:$J,0))","v":{"$error":"#N/A"}},null,0,null,null,null,""]
[null,{"$f":"IF(LEN(A1454)=0,\"\",INDEX('Smelter Look-up'!$A:$A,MATCH($A1454,'Smelter Look-up'!$E:$E,0)))","v":""},{"$f":"IF(LEN(A1454)=0,\"\",INDEX('Smelter Look-up'!$C:$C,MATCH($A1454,'Smelter Look-up'!$E:$E,0)))","v":""},null,{"$f":"IF(ISERROR($V1454),\"\",OFFSET('Smelter Look-up'!$D$4,$V1454-4,0)&\"\")","v":""},{"$f":"IF(ISERROR($V1454),\"\",OFFSET('Smelter Look-up'!$E$4,$V1454-4,0))","v":""},{"$f":"IF(C1454=$X$4,\"Enter smelter details\",IF(ISERROR($V1454),\"\",OFFSET('Smelter Look-up'!$F$4,$V1454-4,0)))","v":""},{"$f":"IF(ISERROR($V1454),\"\",OFFSET('Smelter Look-up'!$G$4,$V1454-4,0))","v":""},{"$f":"IF(ISERROR($V1454),\"\",OFFSET('Smelter Look-up'!$H$4,$V1454-4,0))","v":""},{"$f":"IF(ISERROR($V1454),\"\",OFFSET('Smelter Look-up'!$I$4,$V1454-4,0))","v":""},{"$nulls":7},{"$f":"IF(ISERROR($V1454),\"\",OFFSET('Smelter Look-up'!$C$4,$V1454-4,0)&\"\")","v":""},"",{"$f":"IF(B1454=\"\",\"\",IF(ISERROR(MATCH($J1454,SorP!$B$1:$B$5661,0)),\"\",INDIRECT(\"'SorP'!$A$\"&MATCH($J1454,SorP!$B$1:$B$5661,0))))","v":""},null,{"$f":"IF(C1454=\"\",NA(),MATCH($B1454&$C1454,'Smelter Look-up'!$J:$J,0))","v":{"$error":"#N/A"}},null,0,null,null,null,""]
[null,{"$f":"IF(LEN(A1455)=0,\"\",INDEX('Smelter Look-up'!$A:$A,MATCH($A1455,'Smelter Look-up'!$E:$E,0)))","v":""},{"$f":"IF(LEN(A1455)=0,\"\",INDEX('Smelter Look-up'!$C:$C,MATCH($A1455,'Smelter Look-up'!$E:$E,0)))","v":""},null,{"$f":"IF(ISERROR($V1455),\"\",OFFSET('Smelter Look-up'!$D$4,$V1455-4,0)&\"\")","v":""},{"$f":"IF(ISERROR($V1455),\"\",OFFSET('Smelter Look-up'!$E$4,$V1455-4,0))","v":""},{"$f":"IF(C1455=$X$4,\"Enter smelter details\",IF(ISERROR($V1455),\"\",OFFSET('Smelter Look-up'!$F$4,$V1455-4,0)))","v":""},{"$f":"IF(ISERROR($V1455),\"\",OFFSET('Smelter Look-up'!$G$4,$V1455-4,0))","v":""},{"$f":"IF(ISERROR($V1455),\"\",OFFSET('Smelter Look-up'!$H$4,$V1455-4,0))","v":""},{"$f":"IF(ISERROR($V1455),\"\",OFFSET('Smelter Look-up'!$I$4,$V1455-4,0))","v":""},{"$nulls":7},{"$f":"IF(ISERROR($V1455),\"\",OFFSET('Smelter Look-up'!$C$4,$V1455-4,0)&\"\")","v":""},"",{"$f":"IF(B1455=\"\",\"\",IF(ISERROR(MATCH($J1455,SorP!$B$1:$B$5661,0)),\"\",INDIRECT(\"'SorP'!$A$\"&MATCH($J1455,SorP!$B$1:$B$5661,0))))","v":""},null,{"$f":"IF(C1455=\"\",NA(),MATCH($B1455&$C1455,'Smelter Look-up'!$J:$J,0))","v":{"$error":"#N/A"}},null,0,null,null,null,""]
[null,{"$f":"IF(LEN(A1456)=0,\"\",INDEX('Smelter Look-up'!$A:$A,MATCH($A1456,'Smelter Look-up'!$E:$E,0)))","v":""},{"$f":"IF(LEN(A1456)=0,\"\",INDEX('Smelter Look-up'!$C:$C,MATCH($A1456,'Smelter Look-up'!$E:$E,0)))","v":""},null,{"$f":"IF(ISERROR($V1456),\"\",OFFSET('Smelter Look-up'!$D$4,$V1456-4,0)&\"\")","v":""},{"$f":"IF(ISERROR($V1456),\"\",OFFSET('Smelter Look-up'!$E$4,$V1456-4,0))","v":""},{"$f":"IF(C1456=$X$4,\"Enter smelter details\",IF(ISERROR($V1456),\"\",OFFSET('Smelter Look-up'!$F$4,$V1456-4,0)))","v":""},{"$f":"IF(ISERROR($V1456),\"\",OFFSET('Smelter Look-up'!$G$4,$V1456-4,0))","v":""},{"$f":"IF(ISERROR($V1456),\"\",OFFSET('Smelter Look-up'!$H$4,$V1456-4,0))","v":""},{"$f":"IF(ISERROR($V1456),\"\",OFFSET('Smelter Look-up'!$I$4,$V1456-4,0))","v":""},{"$nulls":7},{"$f":"IF(ISERROR($V1456),\"\",OFFSET('Smelter Look-up'!$C$4,$V1456-4,0)&\"\")","v":""},"",{"$f":"IF(B1456=\"\",\"\",IF(ISERROR(MATCH($J1456,SorP!$B$1:$B$5661,0)),\"\",INDIRECT(\"'SorP'!$A$\"&MATCH($J1456,SorP!$B$1:$B$5661,0))))","v":""},null,{"$f":"IF(C1456=\"\",NA(),MATCH($B1456&$C1456,'Smelter Look-up'!$J:$J,0))","v":{"$error":"#N/A"}},null,0,null,null,null,""]
[null,{"$f":"IF(LEN(A1457)=0,\"\",INDEX('Smelter Look-up'!$A:$A,MATCH($A1457,'Smelter Look-up'!$E:$E,0)))","v":""},{"$f":"IF(LEN(A1457)=0,\"\",INDEX('Smelter Look-up'!$C:$C,MATCH($A1457,'Smelter Look-up'!$E:$E,0)))","v":""},null,{"$f":"IF(ISERROR($V1457),\"\",OFFSET('Smelter Look-up'!$D$4,$V1457-4,0)&\"\")","v":""},{"$f":"IF(ISERROR($V1457),\"\",OFFSET('Smelter Look-up'!$E$4,$V1457-4,0))","v":""},{"$f":"IF(C1457=$X$4,\"Enter smelter details\",IF(ISERROR($V1457),\"\",OFFSET('Smelter Look-up'!$F$4,$V1457-4,0)))","v":""},{"$f":"IF(ISERROR($V1457),\"\",OFFSET('Smelter Look-up'!$G$4,$V1457-4,0))","v":""},{"$f":"IF(ISERROR($V1457),\"\",OFFSET('Smelter Look-up'!$H$4,$V1457-4,0))","v":""},{"$f":"IF(ISERROR($V1457),\"\",OFFSET('Smelter Look-up'!$I$4,$V1457-4,0))","v":""},{"$nulls":7},{"$f":"IF(ISERROR($V1457),\"\",OFFSET('Smelter Look-up'!$C$4,$V1457-4,0)&\"\")","v":""},"",{"$f":"IF(B1457=\"\",\"\",IF(ISERROR(MATCH($J1457,SorP!$B$1:$B$5661,0)),\"\",INDIRECT(\"'SorP'!$A$\"&MATCH($J1457,SorP!$B$1:$B$5661,0))))","v":""},null,{"$f":"IF(C1457=\"\",NA(),MATCH($B1457&$C1457,'Smelter Look-up'!$J:$J,0))","v":{"$error":"#N/A"}},null,0,null,null,null,""]
[null,{"$f":"IF(LEN(A1458)=0,\"\",INDEX('Smelter Look-up'!$A:$A,MATCH($A1458,'Smelter Look-up'!$E:$E,0)))","v":""},{"$f":"IF(LEN(A1458)=0,\"\",INDEX('Smelter Look-up'!$C:$C,MATCH($A1458,'Smelter Look-up'!$E:$E,0)))","v":""},null,{"$f":"IF(ISERROR($V1458),\"\",OFFSET('Smelter Look-up'!$D$4,$V1458-4,0)&\"\")","v":""},{"$f":"IF(ISERROR($V1458),\"\",OFFSET('Smelter Look-up'!$E$4,$V1458-4,0))","v":""},{"$f":"IF(C1458=$X$4,\"Enter smelter details\",IF(ISERROR($V1458),\"\",OFFSET('Smelter Look-up'!$F$4,$V1458-4,0)))","v":""},{"$f":"IF(ISERROR($V1458),\"\",OFFSET('Smelter Look-up'!$G$4,$V1458-4,0))","v":""},{"$f":"IF(ISERROR($V1458),\"\",OFFSET('Smelter Look-up'!$H$4,$V1458-4,0))","v":""},{"$f":"IF(ISERROR($V1458),\"\",OFFSET('Smelter Look-up'!$I$4,$V1458-4,0))","v":""},{"$nulls":7},{"$f":"IF(ISERROR($V1458),\"\",OFFSET('Smelter Look-up'!$C$4,$V1458-4,0)&\"\")","v":""},"",{"$f":"IF(B1458=\"\",\"\",IF(ISERROR(MATCH($J1458,SorP!$B$1:$B$5661,0)),\"\",INDIRECT(\"'SorP'!$A$\"&MATCH($J1458,SorP!$B$1:$B$5661,0))))","v":""},null,{"$f":"IF(C1458=\"\",NA(),MATCH($B1458&$C1458,'Smelter Look-up'!$J:$J,0))","v":{"$error":"#N/A"}},null,0,null,null,null,""]
[null,{"$f":"IF(LEN(A1459)=0,\"\",INDEX('Smelter Look-up'!$A:$A,MATCH($A1459,'Smelter Look-up'!$E:$E,0)))","v":""},{"$f":"IF(LEN(A1459)=0,\"\",INDEX('Smelter Look-up'!$C:$C,MATCH($A1459,'Smelter Look-up'!$E:$E,0)))","v":""},null,{"$f":"IF(ISERROR($V1459),\"\",OFFSET('Smelter Look-up'!$D$4,$V1459-4,0)&\"\")","v":""},{"$f":"IF(ISERROR($V1459),\"\",OFFSET('Smelter Look-up'!$E$4,$V1459-4,0))","v":""},{"$f":"IF(C1459=$X$4,\"Enter smelter details\",IF(ISERROR($V1459),\"\",OFFSET('Smelter Look-up'!$F$4,$V1459-4,0)))","v":""},{"$f":"IF(ISERROR($V1459),\"\",OFFSET('Smelter Look-up'!$G$4,$V1459-4,0))","v":""},{"$f":"IF(ISERROR($V1459),\"\",OFFSET('Smelter Look-up'!$H$4,$V1459-4,0))","v":""},{"$f":"IF(ISERROR($V1459),\"\",OFFSET('Smelter Look-up'!$I$4,$V1459-4,0))","v":""},{"$nulls":7},{"$f":"IF(ISERROR($V1459),\"\",OFFSET('Smelter Look-up'!$C$4,$V1459-4,0)&\"\")","v":""},"",{"$f":"IF(B1459=\"\",\"\",IF(ISERROR(MATCH($J1459,SorP!$B$1:$B$5661,0)),\"\",INDIRECT(\"'SorP'!$A$\"&MATCH($J1459,SorP!$B$1:$B$5661,0))))","v":""},null,{"$f":"IF(C1459=\"\",NA(),MATCH($B1459&$C1459,'Smelter Look-up'!$J:$J,0))","v":{"$error":"#N/A"}},null,0,null,null,null,""]
[null,{"$f":"IF(LEN(A1460)=0,\"\",INDEX('Smelter Look-up'!$A:$A,MATCH($A1460,'Smelter Look-up'!$E:$E,0)))","v":""},{"$f":"IF(LEN(A1460)=0,\"\",INDEX('Smelter Look-up'!$C:$C,MATCH($A1460,'Smelter Look-up'!$E:$E,0)))","v":""},null,{"$f":"IF(ISERROR($V1460),\"\",OFFSET('Smelter Look-up'!$D$4,$V1460-4,0)&\"\")","v":""},{"$f":"IF(ISERROR($V1460),\"\",OFFSET('Smelter Look-up'!$E$4,$V1460-4,0))","v":""},{"$f":"IF(C1460=$X$4,\"Enter smelter details\",IF(ISERROR($V1460),\"\",OFFSET('Smelter Look-up'!$F$4,$V1460-4,0)))","v":""},{"$f":"IF(ISERROR($V1460),\"\",OFFSET('Smelter Look-up'!$G$4,$V1460-4,0))","v":""},{"$f":"IF(ISERROR($V1460),\"\",OFFSET('Smelter Look-up'!$H$4,$V1460-4,0))","v":""},{"$f":"IF(ISERROR($V1460),\"\",OFFSET('Smelter Look-up'!$I$4,$V1460-4,0))","v":""},{"$nulls":7},{"$f":"IF(ISERROR($V1460),\"\",OFFSET('Smelter Look-up'!$C$4,$V1460-4,0)&\"\")","v":""},"",{"$f":"IF(B1460=\"\",\"\",IF(ISERROR(MATCH($J1460,SorP!$B$1:$B$5661,0)),\"\",INDIRECT(\"'SorP'!$A$\"&MATCH($J1460,SorP!$B$1:$B$5661,0))))","v":""},null,{"$f":"IF(C1460=\"\",NA(),MATCH($B1460&$C1460,'Smelter Look-up'!$J:$J,0))","v":{"$error":"#N/A"}},null,0,null,null,null,""]
[null,{"$f":"IF(LEN(A1461)=0,\"\",INDEX('Smelter Look-up'!$A:$A,MATCH($A1461,'Smelter Look-up'!$E:$E,0)))","v":""},{"$f":"IF(LEN(A1461)=0,\"\",INDEX('Smelter Look-up'!$C:$C,MATCH($A1461,'Smelter Look-up'!$E:$E,0)))","v":""},null,{"$f":"IF(ISERROR($V1461),\"\",OFFSET('Smelter Look-up'!$D$4,$V1461-4,0)&\"\")","v":""},{"$f":"IF(ISERROR($V1461),\"\",OFFSET('Smelter Look-up'!$E$4,$V1461-4,0))","v":""},{"$f":"IF(C1461=$X$4,\"Enter smelter details\",IF(ISERROR($V1461),\"\",OFFSET('Smelter Look-up'!$F$4,$V1461-4,0)))","v":""},{"$f":"IF(ISERROR($V1461),\"\",OFFSET('Smelter Look-up'!$G$4,$V1461-4,0))","v":""},{"$f":"IF(ISERROR($V1461),\"\",OFFSET('Smelter Look-up'!$H$4,$V1461-4,0))","v":""},{"$f":"IF(ISERROR($V1461),\"\",OFFSET('Smelter Look-up'!$I$4,$V1461-4,0))","v":""},{"$nulls":7},{"$f":"IF(ISERROR($V1461),\"\",OFFSET('Smelter Look-up'!$C$4,$V1461-4,0)&\"\")","v":""},"",{"$f":"IF(B1461=\"\",\"\",IF(ISERROR(MATCH($J1461,SorP!$B$1:$B$5661,0)),\"\",INDIRECT(\"'SorP'!$A$\"&MATCH($J1461,SorP!$B$1:$B$5661,0))))","v":""},null,{"$f":"IF(C1461=\"\",NA(),MATCH($B1461&$C1461,'Smelter Look-up'!$J:$J,0))","v":{"$error":"#N/A"}},null,0,null,null,null,""]
[null,{"$f":"IF(LEN(A1462)=0,\"\",INDEX('Smelter Look-up'!$A:$A,MATCH($A1462,'Smelter Look-up'!$E:$E,0)))","v":""},{"$f":"IF(LEN(A1462)=0,\"\",INDEX('Smelter Look-up'!$C:$C,MATCH($A1462,'Smelter Look-up'!$E:$E,0)))","v":""},null,{"$f":"IF(ISERROR($V1462),\"\",OFFSET('Smelter Look-up'!$D$4,$V1462-4,0)&\"\")","v":""},{"$f":"IF(ISERROR($V1462),\"\",OFFSET('Smelter Look-up'!$E$4,$V1462-4,0))","v":""},{"$f":"IF(C1462=$X$4,\"Enter smelter details\",IF(ISERROR($V1462),\"\",OFFSET('Smelter Look-up'!$F$4,$V1462-4,0)))","v":""},{"$f":"IF(ISERROR($V1462),\"\",OFFSET('Smelter Look-up'!$G$4,$V1462-4,0))","v":""},{"$f":"IF(ISERROR($V1462),\"\",OFFSET('Smelter Look-up'!$H$4,$V1462-4,0))","v":""},{"$f":"IF(ISERROR($V1462),\"\",OFFSET('Smelter Look-up'!$I$4,$V1462-4,0))","v":""},{"$nulls":7},{"$f":"IF(ISERROR($V1462),\"\",OFFSET('Smelter Look-up'!$C$4,$V1462-4,0)&\"\")","v":""},"",{"$f":"IF(B1462=\"\",\"\",IF(ISERROR(MATCH($J1462,SorP!$B$1:$B$5661,0)),\"\",INDIRECT(\"'SorP'!$A$\"&MATCH($J1462,SorP!$B$1:$B$5661,0))))","v":""},null,{"$f":"IF(C1462=\"\",NA(),MATCH($B1462&$C1462,'Smelter Look-up'!$J:$J,0))","v":{"$error":"#N/A"}},null,0,null,null,null,""]
[null,{"$f":"IF(LEN(A1463)=0,\"\",INDEX('Smelter Look-up'!$A:$A,MATCH($A1463,'Smelter Look-up'!$E:$E,0)))","v":""},{"$f":"IF(LEN(A1463)=0,\"\",INDEX('Smelter Look-up'!$C:$C,MATCH($A1463,'Smelter Look-up'!$E:$E,0)))","v":""},null,{"$f":"IF(ISERROR($V1463),\"\",OFFSET('Smelter Look-up'!$D$4,$V1463-4,0)&\"\")","v":""},{"$f":"IF(ISERROR($V1463),\"\",OFFSET('Smelter Look-up'!$E$4,$V1463-4,0))","v":""},{"$f":"IF(C1463=$X$4,\"Enter smelter details\",IF(ISERROR($V1463),\"\",OFFSET('Smelter Look-up'!$F$4,$V1463-4,0)))","v":""},{"$f":"IF(ISERROR($V1463),\"\",OFFSET('Smelter Look-up'!$G$4,$V1463-4,0))","v":""},{"$f":"IF(ISERROR($V1463),\"\",OFFSET('Smelter Look-up'!$H$4,$V1463-4,0))","v":""},{"$f":"IF(ISERROR($V1463),\"\",OFFSET('Smelter Look-up'!$I$4,$V1463-4,0))","v":""},{"$nulls":7},{"$f":"IF(ISERROR($V1463),\"\",OFFSET('Smelter Look-up'!$C$4,$V1463-4,0)&\"\")","v":""},"",{"$f":"IF(B1463=\"\",\"\",IF(ISERROR(MATCH($J1463,SorP!$B$1:$B$5661,0)),\"\",INDIRECT(\"'SorP'!$A$\"&MATCH($J1463,SorP!$B$1:$B$5661,0))))","v":""},null,{"$f":"IF(C1463=\"\",NA(),MATCH($B1463&$C1463,'Smelter Look-up'!$J:$J,0))","v":{"$error":"#N/A"}},null,0,null,null,null,""]
[null,{"$f":"IF(LEN(A1464)=0,\"\",INDEX('Smelter Look-up'!$A:$A,MATCH($A1464,'Smelter Look-up'!$E:$E,0)))","v":""},{"$f":"IF(LEN(A1464)=0,\"\",INDEX('Smelter Look-up'!$C:$C,MATCH($A1464,'Smelter Look-up'!$E:$E,0)))","v":""},null,{"$f":"IF(ISERROR($V1464),\"\",OFFSET('Smelter Look-up'!$D$4,$V1464-4,0)&\"\")","v":""},{"$f":"IF(ISERROR($V1464),\"\",OFFSET('Smelter Look-up'!$E$4,$V1464-4,0))","v":""},{"$f":"IF(C1464=$X$4,\"Enter smelter details\",IF(ISERROR($V1464),\"\",OFFSET('Smelter Look-up'!$F$4,$V1464-4,0)))","v":""},{"$f":"IF(ISERROR($V1464),\"\",OFFSET('Smelter Look-up'!$G$4,$V1464-4,0))","v":""},{"$f":"IF(ISERROR($V1464),\"\",OFFSET('Smelter Look-up'!$H$4,$V1464-4,0))","v":""},{"$f":"IF(ISERROR($V1464),\"\",OFFSET('Smelter Look-up'!$I$4,$V1464-4,0))","v":""},{"$nulls":7},{"$f":"IF(ISERROR($V1464),\"\",OFFSET('Smelter Look-up'!$C$4,$V1464-4,0)&\"\")","v":""},"",{"$f":"IF(B1464=\"\",\"\",IF(ISERROR(MATCH($J1464,SorP!$B$1:$B$5661,0)),\"\",INDIRECT(\"'SorP'!$A$\"&MATCH($J1464,SorP!$B$1:$B$5661,0))))","v":""},null,{"$f":"IF(C1464=\"\",NA(),MATCH($B1464&$C1464,'Smelter Look-up'!$J:$J,0))","v":{"$error":"#N/A"}},null,0,null,null,null,""]
[null,{"$f":"IF(LEN(A1465)=0,\"\",INDEX('Smelter Look-up'!$A:$A,MATCH($A1465,'Smelter Look-up'!$E:$E,0)))","v":""},{"$f":"IF(LEN(A1465)=0,\"\",INDEX('Smelter Look-up'!$C:$C,MATCH($A1465,'Smelter Look-up'!$E:$E,0)))","v":""},null,{"$f":"IF(ISERROR($V1465),\"\",OFFSET('Smelter Look-up'!$D$4,$V1465-4,0)&\"\")","v":""},{"$f":"IF(ISERROR($V1465),\"\",OFFSET('Smelter Look-up'!$E$4,$V1465-4,0))","v":""},{"$f":"IF(C1465=$X$4,\"Enter smelter details\",IF(ISERROR($V1465),\"\",OFFSET('Smelter Look-up'!$F$4,$V1465-4,0)))","v":""},{"$f":"IF(ISERROR($V1465),\"\",OFFSET('Smelter Look-up'!$G$4,$V1465-4,0))","v":""},{"$f":"IF(ISERROR($V1465),\"\",OFFSET('Smelter Look-up'!$H$4,$V1465-4,0))","v":""},{"$f":"IF(ISERROR($V1465),\"\",OFFSET('Smelter Look-up'!$I$4,$V1465-4,0))","v":""},{"$nulls":7},{"$f":"IF(ISERROR($V1465),\"\",OFFSET('Smelter Look-up'!$C$4,$V1465-4,0)&\"\")","v":""},"",{"$f":"IF(B1465=\"\",\"\",IF(ISERROR(MATCH($J1465,SorP!$B$1:$B$5661,0)),\"\",INDIRECT(\"'SorP'!$A$\"&MATCH($J1465,SorP!$B$1:$B$5661,0))))","v":""},null,{"$f":"IF(C1465=\"\",NA(),MATCH($B1465&$C1465,'Smelter Look-up'!$J:$J,0))","v":{"$error":"#N/A"}},null,0,null,null,null,""]
[null,{"$f":"IF(LEN(A1466)=0,\"\",INDEX('Smelter Look-up'!$A:$A,MATCH($A1466,'Smelter Look-up'!$E:$E,0)))","v":""},{"$f":"IF(LEN(A1466)=0,\"\",INDEX('Smelter Look-up'!$C:$C,MATCH($A1466,'Smelter Look-up'!$E:$E,0)))","v":""},null,{"$f":"IF(ISERROR($V1466),\"\",OFFSET('Smelter Look-up'!$D$4,$V1466-4,0)&\"\")","v":""},{"$f":"IF(ISERROR($V1466),\"\",OFFSET('Smelter Look-up'!$E$4,$V1466-4,0))","v":""},{"$f":"IF(C1466=$X$4,\"Enter smelter details\",IF(ISERROR($V1466),\"\",OFFSET('Smelter Look-up'!$F$4,$V1466-4,0)))","v":""},{"$f":"IF(ISERROR($V1466),\"\",OFFSET('Smelter Look-up'!$G$4,$V1466-4,0))","v":""},{"$f":"IF(ISERROR($V1466),\"\",OFFSET('Smelter Look-up'!$H$4,$V1466-4,0))","v":""},{"$f":"IF(ISERROR($V1466),\"\",OFFSET('Smelter Look-up'!$I$4,$V1466-4,0))","v":""},{"$nulls":7},{"$f":"IF(ISERROR($V1466),\"\",OFFSET('Smelter Look-up'!$C$4,$V1466-4,0)&\"\")","v":""},"",{"$f":"IF(B1466=\"\",\"\",IF(ISERROR(MATCH($J1466,SorP!$B$1:$B$5661,0)),\"\",INDIRECT(\"'SorP'!$A$\"&MATCH($J1466,SorP!$B$1:$B$5661,0))))","v":""},null,{"$f":"IF(C1466=\"\",NA(),MATCH($B1466&$C1466,'Smelter Look-up'!$J:$J,0))","v":{"$error":"#N/A"}},null,0,null,null,null,""]
[null,{"$f":"IF(LEN(A1467)=0,\"\",INDEX('Smelter Look-up'!$A:$A,MATCH($A1467,'Smelter Look-up'!$E:$E,0)))","v":""},{"$f":"IF(LEN(A1467)=0,\"\",INDEX('Smelter Look-up'!$C:$C,MATCH($A1467,'Smelter Look-up'!$E:$E,0)))","v":""},null,{"$f":"IF(ISERROR($V1467),\"\",OFFSET('Smelter Look-up'!$D$4,$V1467-4,0)&\"\")","v":""},{"$f":"IF(ISERROR($V1467),\"\",OFFSET('Smelter Look-up'!$E$4,$V1467-4,0))","v":""},{"$f":"IF(C1467=$X$4,\"Enter smelter details\",IF(ISERROR($V1467),\"\",OFFSET('Smelter Look-up'!$F$4,$V1467-4,0)))","v":""},{"$f":"IF(ISERROR($V1467),\"\",OFFSET('Smelter Look-up'!$G$4,$V1467-4,0))","v":""},{"$f":"IF(ISERROR($V1467),\"\",OFFSET('Smelter Look-up'!$H$4,$V1467-4,0))","v":""},{"$f":"IF(ISERROR($V1467),\"\",OFFSET('Smelter Look-up'!$I$4,$V1467-4,0))","v":""},{"$nulls":7},{"$f":"IF(ISERROR($V1467),\"\",OFFSET('Smelter Look-up'!$C$4,$V1467-4,0)&\"\")","v":""},"",{"$f":"IF(B1467=\"\",\"\",IF(ISERROR(MATCH($J1467,SorP!$B$1:$B$5661,0)),\"\",INDIRECT(\"'SorP'!$A$\"&MATCH($J1467,SorP!$B$1:$B$5661,0))))","v":""},null,{"$f":"IF(C1467=\"\",NA(),MATCH($B1467&$C1467,'Smelter Look-up'!$J:$J,0))","v":{"$error":"#N/A"}},null,0,null,null,null,""]
[null,{"$f":"IF(LEN(A1468)=0,\"\",INDEX('Smelter Look-up'!$A:$A,MATCH($A1468,'Smelter Look-up'!$E:$E,0)))","v":""},{"$f":"IF(LEN(A1468)=0,\"\",INDEX('Smelter Look-up'!$C:$C,MATCH($A1468,'Smelter Look-up'!$E:$E,0)))","v":""},null,{"$f":"IF(ISERROR($V1468),\"\",OFFSET('Smelter Look-up'!$D$4,$V1468-4,0)&\"\")","v":""},{"$f":"IF(ISERROR($V1468),\"\",OFFSET('Smelter Look-up'!$E$4,$V1468-4,0))","v":""},{"$f":"IF(C1468=$X$4,\"Enter smelter details\",IF(ISERROR($V1468),\"\",OFFSET('Smelter Look-up'!$F$4,$V1468-4,0)))","v":""},{"$f":"IF(ISERROR($V1468),\"\",OFFSET('Smelter Look-up'!$G$4,$V1468-4,0))","v":""},{"$f":"IF(ISERROR($V1468),\"\",OFFSET('Smelter Look-up'!$H$4,$V1468-4,0))","v":""},{"$f":"IF(ISERROR($V1468),\"\",OFFSET('Smelter Look-up'!$I$4,$V1468-4,0))","v":""},{"$nulls":7},{"$f":"IF(ISERROR($V1468),\"\",OFFSET('Smelter Look-up'!$C$4,$V1468-4,0)&\"\")","v":""},"",{"$f":"IF(B1468=\"\",\"\",IF(ISERROR(MATCH($J1468,SorP!$B$1:$B$5661,0)),\"\",INDIRECT(\"'SorP'!$A$\"&MATCH($J1468,SorP!$B$1:$B$5661,0))))","v":""},null,{"$f":"IF(C1468=\"\",NA(),MATCH($B1468&$C1468,'Smelter Look-up'!$J:$J,0))","v":{"$error":"#N/A"}},null,0,null,null,null,""]
[null,{"$f":"IF(LEN(A1469)=0,\"\",INDEX('Smelter Look-up'!$A:$A,MATCH($A1469,'Smelter Look-up'!$E:$E,0)))","v":""},{"$f":"IF(LEN(A1469)=0,\"\",INDEX('Smelter Look-up'!$C:$C,MATCH($A1469,'Smelter Look-up'!$E:$E,0)))","v":""},null,{"$f":"IF(ISERROR($V1469),\"\",OFFSET('Smelter Look-up'!$D$4,$V1469-4,0)&\"\")","v":""},{"$f":"IF(ISERROR($V1469),\"\",OFFSET('Smelter Look-up'!$E$4,$V1469-4,0))","v":""},{"$f":"IF(C1469=$X$4,\"Enter smelter details\",IF(ISERROR($V1469),\"\",OFFSET('Smelter Look-up'!$F$4,$V1469-4,0)))","v":""},{"$f":"IF(ISERROR($V1469),\"\",OFFSET('Smelter Look-up'!$G$4,$V1469-4,0))","v":""},{"$f":"IF(ISERROR($V1469),\"\",OFFSET('Smelter Look-up'!$H$4,$V1469-4,0))","v":""},{"$f":"IF(ISERROR($V1469),\"\",OFFSET('Smelter Look-up'!$I$4,$V1469-4,0))","v":""},{"$nulls":7},{"$f":"IF(ISERROR($V1469),\"\",OFFSET('Smelter Look-up'!$C$4,$V1469-4,0)&\"\")","v":""},"",{"$f":"IF(B1469=\"\",\"\",IF(ISERROR(MATCH($J1469,SorP!$B$1:$B$5661,0)),\"\",INDIRECT(\"'SorP'!$A$\"&MATCH($J1469,SorP!$B$1:$B$5661,0))))","v":""},null,{"$f":"IF(C1469=\"\",NA(),MATCH($B1469&$C1469,'Smelter Look-up'!$J:$J,0))","v":{"$error":"#N/A"}},null,0,null,null,null,""]
[null,{"$f":"IF(LEN(A1470)=0,\"\",INDEX('Smelter Look-up'!$A:$A,MATCH($A1470,'Smelter Look-up'!$E:$E,0)))","v":""},{"$f":"IF(LEN(A1470)=0,\"\",INDEX('Smelter Look-up'!$C:$C,MATCH($A1470,'Smelter Look-up'!$E:$E,0)))","v":""},null,{"$f":"IF(ISERROR($V1470),\"\",OFFSET('Smelter Look-up'!$D$4,$V1470-4,0)&\"\")","v":""},{"$f":"IF(ISERROR($V1470),\"\",OFFSET('Smelter Look-up'!$E$4,$V1470-4,0))","v":""},{"$f":"IF(C1470=$X$4,\"Enter smelter details\",IF(ISERROR($V1470),\"\",OFFSET('Smelter Look-up'!$F$4,$V1470-4,0)))","v":""},{"$f":"IF(ISERROR($V1470),\"\",OFFSET('Smelter Look-up'!$G$4,$V1470-4,0))","v":""},{"$f":"IF(ISERROR($V1470),\"\",OFFSET('Smelter Look-up'!$H$4,$V1470-4,0))","v":""},{"$f":"IF(ISERROR($V1470),\"\",OFFSET('Smelter Look-up'!$I$4,$V1470-4,0))","v":""},{"$nulls":7},{"$f":"IF(ISERROR($V1470),\"\",OFFSET('Smelter Look-up'!$C$4,$V1470-4,0)&\"\")","v":""},"",{"$f":"IF(B1470=\"\",\"\",IF(ISERROR(MATCH($J1470,SorP!$B$1:$B$5661,0)),\"\",INDIRECT(\"'SorP'!$A$\"&MATCH($J1470,SorP!$B$1:$B$5661,0))))","v":""},null,{"$f":"IF(C1470=\"\",NA(),MATCH($B1470&$C1470,'Smelter Look-up'!$J:$J,0))","v":{"$error":"#N/A"}},null,0,null,null,null,""]
[null,{"$f":"IF(LEN(A1471)=0,\"\",INDEX('Smelter Look-up'!$A:$A,MATCH($A1471,'Smelter Look-up'!$E:$E,0)))","v":""},{"$f":"IF(LEN(A1471)=0,\"\",INDEX('Smelter Look-up'!$C:$C,MATCH($A1471,'Smelter Look-up'!$E:$E,0)))","v":""},null,{"$f":"IF(ISERROR($V1471),\"\",OFFSET('Smelter Look-up'!$D$4,$V1471-4,0)&\"\")","v":""},{"$f":"IF(ISERROR($V1471),\"\",OFFSET('Smelter Look-up'!$E$4,$V1471-4,0))","v":""},{"$f":"IF(C1471=$X$4,\"Enter smelter details\",IF(ISERROR($V1471),\"\",OFFSET('Smelter Look-up'!$F$4,$V1471-4,0)))","v":""},{"$f":"IF(ISERROR($V1471),\"\",OFFSET('Smelter Look-up'!$G$4,$V1471-4,0))","v":""},{"$f":"IF(ISERROR($V1471),\"\",OFFSET('Smelter Look-up'!$H$4,$V1471-4,0))","v":""},{"$f":"IF(ISERROR($V1471),\"\",OFFSET('Smelter Look-up'!$I$4,$V1471-4,0))","v":""},{"$nulls":7},{"$f":"IF(ISERROR($V1471),\"\",OFFSET('Smelter Look-up'!$C$4,$V1471-4,0)&\"\")","v":""},"",{"$f":"IF(B1471=\"\",\"\",IF(ISERROR(MATCH($J1471,SorP!$B$1:$B$5661,0)),\"\",INDIRECT(\"'SorP'!$A$\"&MATCH($J1471,SorP!$B$1:$B$5661,0))))","v":""},null,{"$f":"IF(C1471=\"\",NA(),MATCH($B1471&$C1471,'Smelter Look-up'!$J:$J,0))","v":{"$error":"#N/A"}},null,{"$f":"IF(AND(C1471=\"Smelter not listed\",OR(LEN(D1471)=0,LEN(E1471)=0)),1,0)","v":0},null,null,null,{"$f":"B1471&C1471","v":""}]
[null,{"$f":"IF(LEN(A1472)=0,\"\",INDEX('Smelter Look-up'!$A:$A,MATCH($A1472,'Smelter Look-up'!$E:$E,0)))","v":""},{"$f":"IF(LEN(A1472)=0,\"\",INDEX('Smelter Look-up'!$C:$C,MATCH($A1472,'Smelter Look-up'!$E:$E,0)))","v":""},null,{"$f":"IF(ISERROR($V1472),\"\",OFFSET('Smelter Look-up'!$D$4,$V1472-4,0)&\"\")","v":""},{"$f":"IF(ISERROR($V1472),\"\",OFFSET('Smelter Look-up'!$E$4,$V1472-4,0))","v":""},{"$f":"IF(C1472=$X$4,\"Enter smelter details\",IF(ISERROR($V1472),\"\",OFFSET('Smelter Look-up'!$F$4,$V1472-4,0)))","v":""},{"$f":"IF(ISERROR($V1472),\"\",OFFSET('Smelter Look-up'!$G$4,$V1472-4,0))","v":""},{"$f":"IF(ISERROR($V1472),\"\",OFFSET('Smelter Look-up'!$H$4,$V1472-4,0))","v":""},{"$f":"IF(ISERROR($V1472),\"\",OFFSET('Smelter Look-up'!$I$4,$V1472-4,0))","v":""},{"$nulls":7},{"$f":"IF(ISERROR($V1472),\"\",OFFSET('Smelter Look-up'!$C$4,$V1472-4,0)&\"\")","v":""},{"$f":"IF(B1472=\"\",\"\",IF(ISERROR(MATCH($E1472,CL,0)),\"Unknown\",INDIRECT(\"'C'!$A$\"&MATCH($E1472,CL,0)+1)))","v":""},{"$f":"IF(B1472=\"\",\"\",IF(ISERROR(MATCH($J1472,SorP!$B$1:$B$5661,0)),\"\",INDIRECT(\"'SorP'!$A$\"&MATCH($J1472,SorP!$B$1:$B$5661,0))))","v":""},null,{"$f":"IF(C1472=\"\",NA(),MATCH($B1472&$C1472,'Smelter Look-up'!$J:$J,0))","v":{"$error":"#N/A"}},null,0,null,null,null,""]
[null,{"$f":"IF(LEN(A1473)=0,\"\",INDEX('Smelter Look-up'!$A:$A,MATCH($A1473,'Smelter Look-up'!$E:$E,0)))","v":""},{"$f":"IF(LEN(A1473)=0,\"\",INDEX('Smelter Look-up'!$C:$C,MATCH($A1473,'Smelter Look-up'!$E:$E,0)))","v":""},null,{"$f":"IF(ISERROR($V1473),\"\",OFFSET('Smelter Look-up'!$D$4,$V1473-4,0)&\"\")","v":""},{"$f":"IF(ISERROR($V1473),\"\",OFFSET('Smelter Look-up'!$E$4,$V1473-4,0))","v":""},{"$f":"IF(C1473=$X$4,\"Enter smelter details\",IF(ISERROR($V1473),\"\",OFFSET('Smelter Look-up'!$F$4,$V1473-4,0)))","v":""},{"$f":"IF(ISERROR($V1473),\"\",OFFSET('Smelter Look-up'!$G$4,$V1473-4,0))","v":""},{"$f":"IF(ISERROR($V1473),\"\",OFFSET('Smelter Look-up'!$H$4,$V1473-4,0))","v":""},{"$f":"IF(ISERROR($V1473),\"\",OFFSET('Smelter Look-up'!$I$4,$V1473-4,0))","v":""},{"$nulls":7},{"$f":"IF(ISERROR($V1473),\"\",OFFSET('Smelter Look-up'!$C$4,$V1473-4,0)&\"\")","v":""},"",{"$f":"IF(B1473=\"\",\"\",IF(ISERROR(MATCH($J1473,SorP!$B$1:$B$5661,0)),\"\",INDIRECT(\"'SorP'!$A$\"&MATCH($J1473,SorP!$B$1:$B$5661,0))))","v":""},null,{"$f":"IF(C1473=\"\",NA(),MATCH($B1473&$C1473,'Smelter Look-up'!$J:$J,0))","v":{"$error":"#N/A"}},null,0,null,null,null,""]
[null,{"$f":"IF(LEN(A1474)=0,\"\",INDEX('Smelter Look-up'!$A:$A,MATCH($A1474,'Smelter Look-up'!$E:$E,0)))","v":""},{"$f":"IF(LEN(A1474)=0,\"\",INDEX('Smelter Look-up'!$C:$C,MATCH($A1474,'Smelter Look-up'!$E:$E,0)))","v":""},null,{"$f":"IF(ISERROR($V1474),\"\",OFFSET('Smelter Look-up'!$D$4,$V1474-4,0)&\"\")","v":""},{"$f":"IF(ISERROR($V1474),\"\",OFFSET('Smelter Look-up'!$E$4,$V1474-4,0))","v":""},{"$f":"IF(C1474=$X$4,\"Enter smelter details\",IF(ISERROR($V1474),\"\",OFFSET('Smelter Look-up'!$F$4,$V1474-4,0)))","v":""},{"$f":"IF(ISERROR($V1474),\"\",OFFSET('Smelter Look-up'!$G$4,$V1474-4,0))","v":""},{"$f":"IF(ISERROR($V1474),\"\",OFFSET('Smelter Look-up'!$H$4,$V1474-4,0))","v":""},{"$f":"IF(ISERROR($V1474),\"\",OFFSET('Smelter Look-up'!$I$4,$V1474-4,0))","v":""},{"$nulls":7},{"$f":"IF(ISERROR($V1474),\"\",OFFSET('Smelter Look-up'!$C$4,$V1474-4,0)&\"\")","v":""},"",{"$f":"IF(B1474=\"\",\"\",IF(ISERROR(MATCH($J1474,SorP!$B$1:$B$5661,0)),\"\",INDIRECT(\"'SorP'!$A$\"&MATCH($J1474,SorP!$B$1:$B$5661,0))))","v":""},null,{"$f":"IF(C1474=\"\",NA(),MATCH($B1474&$C1474,'Smelter Look-up'!$J:$J,0))","v":{"$error":"#N/A"}},null,0,null,null,null,""]
[null,{"$f":"IF(LEN(A1475)=0,\"\",INDEX('Smelter Look-up'!$A:$A,MATCH($A1475,'Smelter Look-up'!$E:$E,0)))","v":""},{"$f":"IF(LEN(A1475)=0,\"\",INDEX('Smelter Look-up'!$C:$C,MATCH($A1475,'Smelter Look-up'!$E:$E,0)))","v":""},null,{"$f":"IF(ISERROR($V1475),\"\",OFFSET('Smelter Look-up'!$D$4,$V1475-4,0)&\"\")","v":""},{"$f":"IF(ISERROR($V1475),\"\",OFFSET('Smelter Look-up'!$E$4,$V1475-4,0))","v":""},{"$f":"IF(C1475=$X$4,\"Enter smelter details\",IF(ISERROR($V1475),\"\",OFFSET('Smelter Look-up'!$F$4,$V1475-4,0)))","v":""},{"$f":"IF(ISERROR($V1475),\"\",OFFSET('Smelter Look-up'!$G$4,$V1475-4,0))","v":""},{"$f":"IF(ISERROR($V1475),\"\",OFFSET('Smelter Look-up'!$H$4,$V1475-4,0))","v":""},{"$f":"IF(ISERROR($V1475),\"\",OFFSET('Smelter Look-up'!$I$4,$V1475-4,0))","v":""},{"$nulls":7},{"$f":"IF(ISERROR($V1475),\"\",OFFSET('Smelter Look-up'!$C$4,$V1475-4,0)&\"\")","v":""},"",{"$f":"IF(B1475=\"\",\"\",IF(ISERROR(MATCH($J1475,SorP!$B$1:$B$5661,0)),\"\",INDIRECT(\"'SorP'!$A$\"&MATCH($J1475,SorP!$B$1:$B$5661,0))))","v":""},null,{"$f":"IF(C1475=\"\",NA(),MATCH($B1475&$C1475,'Smelter Look-up'!$J:$J,0))","v":{"$error":"#N/A"}},null,0,null,null,null,""]
[null,{"$f":"IF(LEN(A1476)=0,\"\",INDEX('Smelter Look-up'!$A:$A,MATCH($A1476,'Smelter Look-up'!$E:$E,0)))","v":""},{"$f":"IF(LEN(A1476)=0,\"\",INDEX('Smelter Look-up'!$C:$C,MATCH($A1476,'Smelter Look-up'!$E:$E,0)))","v":""},null,{"$f":"IF(ISERROR($V1476),\"\",OFFSET('Smelter Look-up'!$D$4,$V1476-4,0)&\"\")","v":""},{"$f":"IF(ISERROR($V1476),\"\",OFFSET('Smelter Look-up'!$E$4,$V1476-4,0))","v":""},{"$f":"IF(C1476=$X$4,\"Enter smelter details\",IF(ISERROR($V1476),\"\",OFFSET('Smelter Look-up'!$F$4,$V1476-4,0)))","v":""},{"$f":"IF(ISERROR($V1476),\"\",OFFSET('Smelter Look-up'!$G$4,$V1476-4,0))","v":""},{"$f":"IF(ISERROR($V1476),\"\",OFFSET('Smelter Look-up'!$H$4,$V1476-4,0))","v":""},{"$f":"IF(ISERROR($V1476),\"\",OFFSET('Smelter Look-up'!$I$4,$V1476-4,0))","v":""},{"$nulls":7},{"$f":"IF(ISERROR($V1476),\"\",OFFSET('Smelter Look-up'!$C$4,$V1476-4,0)&\"\")","v":""},"",{"$f":"IF(B1476=\"\",\"\",IF(ISERROR(MATCH($J1476,SorP!$B$1:$B$5661,0)),\"\",INDIRECT(\"'SorP'!$A$\"&MATCH($J1476,SorP!$B$1:$B$5661,0))))","v":""},null,{"$f":"IF(C1476=\"\",NA(),MATCH($B1476&$C1476,'Smelter Look-up'!$J:$J,0))","v":{"$error":"#N/A"}},null,0,null,null,null,""]
[null,{"$f":"IF(LEN(A1477)=0,\"\",INDEX('Smelter Look-up'!$A:$A,MATCH($A1477,'Smelter Look-up'!$E:$E,0)))","v":""},{"$f":"IF(LEN(A1477)=0,\"\",INDEX('Smelter Look-up'!$C:$C,MATCH($A1477,'Smelter Look-up'!$E:$E,0)))","v":""},null,{"$f":"IF(ISERROR($V1477),\"\",OFFSET('Smelter Look-up'!$D$4,$V1477-4,0)&\"\")","v":""},{"$f":"IF(ISERROR($V1477),\"\",OFFSET('Smelter Look-up'!$E$4,$V1477-4,0))","v":""},{"$f":"IF(C1477=$X$4,\"Enter smelter details\",IF(ISERROR($V1477),\"\",OFFSET('Smelter Look-up'!$F$4,$V1477-4,0)))","v":""},{"$f":"IF(ISERROR($V1477),\"\",OFFSET('Smelter Look-up'!$G$4,$V1477-4,0))","v":""},{"$f":"IF(ISERROR($V1477),\"\",OFFSET('Smelter Look-up'!$H$4,$V1477-4,0))","v":""},{"$f":"IF(ISERROR($V1477),\"\",OFFSET('Smelter Look-up'!$I$4,$V1477-4,0))","v":""},{"$nulls":7},{"$f":"IF(ISERROR($V1477),\"\",OFFSET('Smelter Look-up'!$C$4,$V1477-4,0)&\"\")","v":""},"",{"$f":"IF(B1477=\"\",\"\",IF(ISERROR(MATCH($J1477,SorP!$B$1:$B$5661,0)),\"\",INDIRECT(\"'SorP'!$A$\"&MATCH($J1477,SorP!$B$1:$B$5661,0))))","v":""},null,{"$f":"IF(C1477=\"\",NA(),MATCH($B1477&$C1477,'Smelter Look-up'!$J:$J,0))","v":{"$error":"#N/A"}},null,0,null,null,null,""]
[null,{"$f":"IF(LEN(A1478)=0,\"\",INDEX('Smelter Look-up'!$A:$A,MATCH($A1478,'Smelter Look-up'!$E:$E,0)))","v":""},{"$f":"IF(LEN(A1478)=0,\"\",INDEX('Smelter Look-up'!$C:$C,MATCH($A1478,'Smelter Look-up'!$E:$E,0)))","v":""},null,{"$f":"IF(ISERROR($V1478),\"\",OFFSET('Smelter Look-up'!$D$4,$V1478-4,0)&\"\")","v":""},{"$f":"IF(ISERROR($V1478),\"\",OFFSET('Smelter Look-up'!$E$4,$V1478-4,0))","v":""},{"$f":"IF(C1478=$X$4,\"Enter smelter details\",IF(ISERROR($V1478),\"\",OFFSET('Smelter Look-up'!$F$4,$V1478-4,0)))","v":""},{"$f":"IF(ISERROR($V1478),\"\",OFFSET('Smelter Look-up'!$G$4,$V1478-4,0))","v":""},{"$f":"IF(ISERROR($V1478),\"\",OFFSET('Smelter Look-up'!$H$4,$V1478-4,0))","v":""},{"$f":"IF(ISERROR($V1478),\"\",OFFSET('Smelter Look-up'!$I$4,$V1478-4,0))","v":""},{"$nulls":7},{"$f":"IF(ISERROR($V1478),\"\",OFFSET('Smelter Look-up'!$C$4,$V1478-4,0)&\"\")","v":""},"",{"$f":"IF(B1478=\"\",\"\",IF(ISERROR(MATCH($J1478,SorP!$B$1:$B$5661,0)),\"\",INDIRECT(\"'SorP'!$A$\"&MATCH($J1478,SorP!$B$1:$B$5661,0))))","v":""},null,{"$f":"IF(C1478=\"\",NA(),MATCH($B1478&$C1478,'Smelter Look-up'!$J:$J,0))","v":{"$error":"#N/A"}},null,0,null,null,null,""]
[null,{"$f":"IF(LEN(A1479)=0,\"\",INDEX('Smelter Look-up'!$A:$A,MATCH($A1479,'Smelter Look-up'!$E:$E,0)))","v":""},{"$f":"IF(LEN(A1479)=0,\"\",INDEX('Smelter Look-up'!$C:$C,MATCH($A1479,'Smelter Look-up'!$E:$E,0)))","v":""},null,{"$f":"IF(ISERROR($V1479),\"\",OFFSET('Smelter Look-up'!$D$4,$V1479-4,0)&\"\")","v":""},{"$f":"IF(ISERROR($V1479),\"\",OFFSET('Smelter Look-up'!$E$4,$V1479-4,0))","v":""},{"$f":"IF(C1479=$X$4,\"Enter smelter details\",IF(ISERROR($V1479),\"\",OFFSET('Smelter Look-up'!$F$4,$V1479-4,0)))","v":""},{"$f":"IF(ISERROR($V1479),\"\",OFFSET('Smelter Look-up'!$G$4,$V1479-4,0))","v":""},{"$f":"IF(ISERROR($V1479),\"\",OFFSET('Smelter Look-up'!$H$4,$V1479-4,0))","v":""},{"$f":"IF(ISERROR($V1479),\"\",OFFSET('Smelter Look-up'!$I$4,$V1479-4,0))","v":""},{"$nulls":7},{"$f":"IF(ISERROR($V1479),\"\",OFFSET('Smelter Look-up'!$C$4,$V1479-4,0)&\"\")","v":""},"",{"$f":"IF(B1479=\"\",\"\",IF(ISERROR(MATCH($J1479,SorP!$B$1:$B$5661,0)),\"\",INDIRECT(\"'SorP'!$A$\"&MATCH($J1479,SorP!$B$1:$B$5661,0))))","v":""},null,{"$f":"IF(C1479=\"\",NA(),MATCH($B1479&$C1479,'Smelter Look-up'!$J:$J,0))","v":{"$error":"#N/A"}},null,0,null,null,null,""]
[null,{"$f":"IF(LEN(A1480)=0,\"\",INDEX('Smelter Look-up'!$A:$A,MATCH($A1480,'Smelter Look-up'!$E:$E,0)))","v":""},{"$f":"IF(LEN(A1480)=0,\"\",INDEX('Smelter Look-up'!$C:$C,MATCH($A1480,'Smelter Look-up'!$E:$E,0)))","v":""},null,{"$f":"IF(ISERROR($V1480),\"\",OFFSET('Smelter Look-up'!$D$4,$V1480-4,0)&\"\")","v":""},{"$f":"IF(ISERROR($V1480),\"\",OFFSET('Smelter Look-up'!$E$4,$V1480-4,0))","v":""},{"$f":"IF(C1480=$X$4,\"Enter smelter details\",IF(ISERROR($V1480),\"\",OFFSET('Smelter Look-up'!$F$4,$V1480-4,0)))","v":""},{"$f":"IF(ISERROR($V1480),\"\",OFFSET('Smelter Look-up'!$G$4,$V1480-4,0))","v":""},{"$f":"IF(ISERROR($V1480),\"\",OFFSET('Smelter Look-up'!$H$4,$V1480-4,0))","v":""},{"$f":"IF(ISERROR($V1480),\"\",OFFSET('Smelter Look-up'!$I$4,$V1480-4,0))","v":""},{"$nulls":7},{"$f":"IF(ISERROR($V1480),\"\",OFFSET('Smelter Look-up'!$C$4,$V1480-4,0)&\"\")","v":""},"",{"$f":"IF(B1480=\"\",\"\",IF(ISERROR(MATCH($J1480,SorP!$B$1:$B$5661,0)),\"\",INDIRECT(\"'SorP'!$A$\"&MATCH($J1480,SorP!$B$1:$B$5661,0))))","v":""},null,{"$f":"IF(C1480=\"\",NA(),MATCH($B1480&$C1480,'Smelter Look-up'!$J:$J,0))","v":{"$error":"#N/A"}},null,0,null,null,null,""]
[null,{"$f":"IF(LEN(A1481)=0,\"\",INDEX('Smelter Look-up'!$A:$A,MATCH($A1481,'Smelter Look-up'!$E:$E,0)))","v":""},{"$f":"IF(LEN(A1481)=0,\"\",INDEX('Smelter Look-up'!$C:$C,MATCH($A1481,'Smelter Look-up'!$E:$E,0)))","v":""},null,{"$f":"IF(ISERROR($V1481),\"\",OFFSET('Smelter Look-up'!$D$4,$V1481-4,0)&\"\")","v":""},{"$f":"IF(ISERROR($V1481),\"\",OFFSET('Smelter Look-up'!$E$4,$V1481-4,0))","v":""},{"$f":"IF(C1481=$X$4,\"Enter smelter details\",IF(ISERROR($V1481),\"\",OFFSET('Smelter Look-up'!$F$4,$V1481-4,0)))","v":""},{"$f":"IF(ISERROR($V1481),\"\",OFFSET('Smelter Look-up'!$G$4,$V1481-4,0))","v":""},{"$f":"IF(ISERROR($V1481),\"\",OFFSET('Smelter Look-up'!$H$4,$V1481-4,0))","v":""},{"$f":"IF(ISERROR($V1481),\"\",OFFSET('Smelter Look-up'!$I$4,$V1481-4,0))","v":""},{"$nulls":7},{"$f":"IF(ISERROR($V1481),\"\",OFFSET('Smelter Look-up'!$C$4,$V1481-4,0)&\"\")","v":""},"",{"$f":"IF(B1481=\"\",\"\",IF(ISERROR(MATCH($J1481,SorP!$B$1:$B$5661,0)),\"\",INDIRECT(\"'SorP'!$A$\"&MATCH($J1481,SorP!$B$1:$B$5661,0))))","v":""},null,{"$f":"IF(C1481=\"\",NA(),MATCH($B1481&$C1481,'Smelter Look-up'!$J:$J,0))","v":{"$error":"#N/A"}},null,0,null,null,null,""]
[null,{"$f":"IF(LEN(A1482)=0,\"\",INDEX('Smelter Look-up'!$A:$A,MATCH($A1482,'Smelter Look-up'!$E:$E,0)))","v":""},{"$f":"IF(LEN(A1482)=0,\"\",INDEX('Smelter Look-up'!$C:$C,MATCH($A1482,'Smelter Look-up'!$E:$E,0)))","v":""},null,{"$f":"IF(ISERROR($V1482),\"\",OFFSET('Smelter Look-up'!$D$4,$V1482-4,0)&\"\")","v":""},{"$f":"IF(ISERROR($V1482),\"\",OFFSET('Smelter Look-up'!$E$4,$V1482-4,0))","v":""},{"$f":"IF(C1482=$X$4,\"Enter smelter details\",IF(ISERROR($V1482),\"\",OFFSET('Smelter Look-up'!$F$4,$V1482-4,0)))","v":""},{"$f":"IF(ISERROR($V1482),\"\",OFFSET('Smelter Look-up'!$G$4,$V1482-4,0))","v":""},{"$f":"IF(ISERROR($V1482),\"\",OFFSET('Smelter Look-up'!$H$4,$V1482-4,0))","v":""},{"$f":"IF(ISERROR($V1482),\"\",OFFSET('Smelter Look-up'!$I$4,$V1482-4,0))","v":""},{"$nulls":7},{"$f":"IF(ISERROR($V1482),\"\",OFFSET('Smelter Look-up'!$C$4,$V1482-4,0)&\"\")","v":""},"",{"$f":"IF(B1482=\"\",\"\",IF(ISERROR(MATCH($J1482,SorP!$B$1:$B$5661,0)),\"\",INDIRECT(\"'SorP'!$A$\"&MATCH($J1482,SorP!$B$1:$B$5661,0))))","v":""},null,{"$f":"IF(C1482=\"\",NA(),MATCH($B1482&$C1482,'Smelter Look-up'!$J:$J,0))","v":{"$error":"#N/A"}},null,0,null,null,null,""]
[null,{"$f":"IF(LEN(A1483)=0,\"\",INDEX('Smelter Look-up'!$A:$A,MATCH($A1483,'Smelter Look-up'!$E:$E,0)))","v":""},{"$f":"IF(LEN(A1483)=0,\"\",INDEX('Smelter Look-up'!$C:$C,MATCH($A1483,'Smelter Look-up'!$E:$E,0)))","v":""},null,{"$f":"IF(ISERROR($V1483),\"\",OFFSET('Smelter Look-up'!$D$4,$V1483-4,0)&\"\")","v":""},{"$f":"IF(ISERROR($V1483),\"\",OFFSET('Smelter Look-up'!$E$4,$V1483-4,0))","v":""},{"$f":"IF(C1483=$X$4,\"Enter smelter details\",IF(ISERROR($V1483),\"\",OFFSET('Smelter Look-up'!$F$4,$V1483-4,0)))","v":""},{"$f":"IF(ISERROR($V1483),\"\",OFFSET('Smelter Look-up'!$G$4,$V1483-4,0))","v":""},{"$f":"IF(ISERROR($V1483),\"\",OFFSET('Smelter Look-up'!$H$4,$V1483-4,0))","v":""},{"$f":"IF(ISERROR($V1483),\"\",OFFSET('Smelter Look-up'!$I$4,$V1483-4,0))","v":""},{"$nulls":7},{"$f":"IF(ISERROR($V1483),\"\",OFFSET('Smelter Look-up'!$C$4,$V1483-4,0)&\"\")","v":""},"",{"$f":"IF(B1483=\"\",\"\",IF(ISERROR(MATCH($J1483,SorP!$B$1:$B$5661,0)),\"\",INDIRECT(\"'SorP'!$A$\"&MATCH($J1483,SorP!$B$1:$B$5661,0))))","v":""},null,{"$f":"IF(C1483=\"\",NA(),MATCH($B1483&$C1483,'Smelter Look-up'!$J:$J,0))","v":{"$error":"#N/A"}},null,0,null,null,null,""]
[null,{"$f":"IF(LEN(A1484)=0,\"\",INDEX('Smelter Look-up'!$A:$A,MATCH($A1484,'Smelter Look-up'!$E:$E,0)))","v":""},{"$f":"IF(LEN(A1484)=0,\"\",INDEX('Smelter Look-up'!$C:$C,MATCH($A1484,'Smelter Look-up'!$E:$E,0)))","v":""},null,{"$f":"IF(ISERROR($V1484),\"\",OFFSET('Smelter Look-up'!$D$4,$V1484-4,0)&\"\")","v":""},{"$f":"IF(ISERROR($V1484),\"\",OFFSET('Smelter Look-up'!$E$4,$V1484-4,0))","v":""},{"$f":"IF(C1484=$X$4,\"Enter smelter details\",IF(ISERROR($V1484),\"\",OFFSET('Smelter Look-up'!$F$4,$V1484-4,0)))","v":""},{"$f":"IF(ISERROR($V1484),\"\",OFFSET('Smelter Look-up'!$G$4,$V1484-4,0))","v":""},{"$f":"IF(ISERROR($V1484),\"\",OFFSET('Smelter Look-up'!$H$4,$V1484-4,0))","v":""},{"$f":"IF(ISERROR($V1484),\"\",OFFSET('Smelter Look-up'!$I$4,$V1484-4,0))","v":""},{"$nulls":7},{"$f":"IF(ISERROR($V1484),\"\",OFFSET('Smelter Look-up'!$C$4,$V1484-4,0)&\"\")","v":""},"",{"$f":"IF(B1484=\"\",\"\",IF(ISERROR(MATCH($J1484,SorP!$B$1:$B$5661,0)),\"\",INDIRECT(\"'SorP'!$A$\"&MATCH($J1484,SorP!$B$1:$B$5661,0))))","v":""},null,{"$f":"IF(C1484=\"\",NA(),MATCH($B1484&$C1484,'Smelter Look-up'!$J:$J,0))","v":{"$error":"#N/A"}},null,0,null,null,null,""]
[null,{"$f":"IF(LEN(A1485)=0,\"\",INDEX('Smelter Look-up'!$A:$A,MATCH($A1485,'Smelter Look-up'!$E:$E,0)))","v":""},{"$f":"IF(LEN(A1485)=0,\"\",INDEX('Smelter Look-up'!$C:$C,MATCH($A1485,'Smelter Look-up'!$E:$E,0)))","v":""},null,{"$f":"IF(ISERROR($V1485),\"\",OFFSET('Smelter Look-up'!$D$4,$V1485-4,0)&\"\")","v":""},{"$f":"IF(ISERROR($V1485),\"\",OFFSET('Smelter Look-up'!$E$4,$V1485-4,0))","v":""},{"$f":"IF(C1485=$X$4,\"Enter smelter details\",IF(ISERROR($V1485),\"\",OFFSET('Smelter Look-up'!$F$4,$V1485-4,0)))","v":""},{"$f":"IF(ISERROR($V1485),\"\",OFFSET('Smelter Look-up'!$G$4,$V1485-4,0))","v":""},{"$f":"IF(ISERROR($V1485),\"\",OFFSET('Smelter Look-up'!$H$4,$V1485-4,0))","v":""},{"$f":"IF(ISERROR($V1485),\"\",OFFSET('Smelter Look-up'!$I$4,$V1485-4,0))","v":""},{"$nulls":7},{"$f":"IF(ISERROR($V1485),\"\",OFFSET('Smelter Look-up'!$C$4,$V1485-4,0)&\"\")","v":""},"",{"$f":"IF(B1485=\"\",\"\",IF(ISERROR(MATCH($J1485,SorP!$B$1:$B$5661,0)),\"\",INDIRECT(\"'SorP'!$A$\"&MATCH($J1485,SorP!$B$1:$B$5661,0))))","v":""},null,{"$f":"IF(C1485=\"\",NA(),MATCH($B1485&$C1485,'Smelter Look-up'!$J:$J,0))","v":{"$error":"#N/A"}},null,0,null,null,null,""]
[null,{"$f":"IF(LEN(A1486)=0,\"\",INDEX('Smelter Look-up'!$A:$A,MATCH($A1486,'Smelter Look-up'!$E:$E,0)))","v":""},{"$f":"IF(LEN(A1486)=0,\"\",INDEX('Smelter Look-up'!$C:$C,MATCH($A1486,'Smelter Look-up'!$E:$E,0)))","v":""},null,{"$f":"IF(ISERROR($V1486),\"\",OFFSET('Smelter Look-up'!$D$4,$V1486-4,0)&\"\")","v":""},{"$f":"IF(ISERROR($V1486),\"\",OFFSET('Smelter Look-up'!$E$4,$V1486-4,0))","v":""},{"$f":"IF(C1486=$X$4,\"Enter smelter details\",IF(ISERROR($V1486),\"\",OFFSET('Smelter Look-up'!$F$4,$V1486-4,0)))","v":""},{"$f":"IF(ISERROR($V1486),\"\",OFFSET('Smelter Look-up'!$G$4,$V1486-4,0))","v":""},{"$f":"IF(ISERROR($V1486),\"\",OFFSET('Smelter Look-up'!$H$4,$V1486-4,0))","v":""},{"$f":"IF(ISERROR($V1486),\"\",OFFSET('Smelter Look-up'!$I$4,$V1486-4,0))","v":""},{"$nulls":7},{"$f":"IF(ISERROR($V1486),\"\",OFFSET('Smelter Look-up'!$C$4,$V1486-4,0)&\"\")","v":""},"",{"$f":"IF(B1486=\"\",\"\",IF(ISERROR(MATCH($J1486,SorP!$B$1:$B$5661,0)),\"\",INDIRECT(\"'SorP'!$A$\"&MATCH($J1486,SorP!$B$1:$B$5661,0))))","v":""},null,{"$f":"IF(C1486=\"\",NA(),MATCH($B1486&$C1486,'Smelter Look-up'!$J:$J,0))","v":{"$error":"#N/A"}},null,0,null,null,null,""]
[null,{"$f":"IF(LEN(A1487)=0,\"\",INDEX('Smelter Look-up'!$A:$A,MATCH($A1487,'Smelter Look-up'!$E:$E,0)))","v":""},{"$f":"IF(LEN(A1487)=0,\"\",INDEX('Smelter Look-up'!$C:$C,MATCH($A1487,'Smelter Look-up'!$E:$E,0)))","v":""},null,{"$f":"IF(ISERROR($V1487),\"\",OFFSET('Smelter Look-up'!$D$4,$V1487-4,0)&\"\")","v":""},{"$f":"IF(ISERROR($V1487),\"\",OFFSET('Smelter Look-up'!$E$4,$V1487-4,0))","v":""},{"$f":"IF(C1487=$X$4,\"Enter smelter details\",IF(ISERROR($V1487),\"\",OFFSET('Smelter Look-up'!$F$4,$V1487-4,0)))","v":""},{"$f":"IF(ISERROR($V1487),\"\",OFFSET('Smelter Look-up'!$G$4,$V1487-4,0))","v":""},{"$f":"IF(ISERROR($V1487),\"\",OFFSET('Smelter Look-up'!$H$4,$V1487-4,0))","v":""},{"$f":"IF(ISERROR($V1487),\"\",OFFSET('Smelter Look-up'!$I$4,$V1487-4,0))","v":""},{"$nulls":7},{"$f":"IF(ISERROR($V1487),\"\",OFFSET('Smelter Look-up'!$C$4,$V1487-4,0)&\"\")","v":""},"",{"$f":"IF(B1487=\"\",\"\",IF(ISERROR(MATCH($J1487,SorP!$B$1:$B$5661,0)),\"\",INDIRECT(\"'SorP'!$A$\"&MATCH($J1487,SorP!$B$1:$B$5661,0))))","v":""},null,{"$f":"IF(C1487=\"\",NA(),MATCH($B1487&$C1487,'Smelter Look-up'!$J:$J,0))","v":{"$error":"#N/A"}},null,0,null,null,null,""]
[null,{"$f":"IF(LEN(A1488)=0,\"\",INDEX('Smelter Look-up'!$A:$A,MATCH($A1488,'Smelter Look-up'!$E:$E,0)))","v":""},{"$f":"IF(LEN(A1488)=0,\"\",INDEX('Smelter Look-up'!$C:$C,MATCH($A1488,'Smelter Look-up'!$E:$E,0)))","v":""},null,{"$f":"IF(ISERROR($V1488),\"\",OFFSET('Smelter Look-up'!$D$4,$V1488-4,0)&\"\")","v":""},{"$f":"IF(ISERROR($V1488),\"\",OFFSET('Smelter Look-up'!$E$4,$V1488-4,0))","v":""},{"$f":"IF(C1488=$X$4,\"Enter smelter details\",IF(ISERROR($V1488),\"\",OFFSET('Smelter Look-up'!$F$4,$V1488-4,0)))","v":""},{"$f":"IF(ISERROR($V1488),\"\",OFFSET('Smelter Look-up'!$G$4,$V1488-4,0))","v":""},{"$f":"IF(ISERROR($V1488),\"\",OFFSET('Smelter Look-up'!$H$4,$V1488-4,0))","v":""},{"$f":"IF(ISERROR($V1488),\"\",OFFSET('Smelter Look-up'!$I$4,$V1488-4,0))","v":""},{"$nulls":7},{"$f":"IF(ISERROR($V1488),\"\",OFFSET('Smelter Look-up'!$C$4,$V1488-4,0)&\"\")","v":""},"",{"$f":"IF(B1488=\"\",\"\",IF(ISERROR(MATCH($J1488,SorP!$B$1:$B$5661,0)),\"\",INDIRECT(\"'SorP'!$A$\"&MATCH($J1488,SorP!$B$1:$B$5661,0))))","v":""},null,{"$f":"IF(C1488=\"\",NA(),MATCH($B1488&$C1488,'Smelter Look-up'!$J:$J,0))","v":{"$error":"#N/A"}},null,0,null,null,null,""]
[null,{"$f":"IF(LEN(A1489)=0,\"\",INDEX('Smelter Look-up'!$A:$A,MATCH($A1489,'Smelter Look-up'!$E:$E,0)))","v":""},{"$f":"IF(LEN(A1489)=0,\"\",INDEX('Smelter Look-up'!$C:$C,MATCH($A1489,'Smelter Look-up'!$E:$E,0)))","v":""},null,{"$f":"IF(ISERROR($V1489),\"\",OFFSET('Smelter Look-up'!$D$4,$V1489-4,0)&\"\")","v":""},{"$f":"IF(ISERROR($V1489),\"\",OFFSET('Smelter Look-up'!$E$4,$V1489-4,0))","v":""},{"$f":"IF(C1489=$X$4,\"Enter smelter details\",IF(ISERROR($V1489),\"\",OFFSET('Smelter Look-up'!$F$4,$V1489-4,0)))","v":""},{"$f":"IF(ISERROR($V1489),\"\",OFFSET('Smelter Look-up'!$G$4,$V1489-4,0))","v":""},{"$f":"IF(ISERROR($V1489),\"\",OFFSET('Smelter Look-up'!$H$4,$V1489-4,0))","v":""},{"$f":"IF(ISERROR($V1489),\"\",OFFSET('Smelter Look-up'!$I$4,$V1489-4,0))","v":""},{"$nulls":7},{"$f":"IF(ISERROR($V1489),\"\",OFFSET('Smelter Look-up'!$C$4,$V1489-4,0)&\"\")","v":""},"",{"$f":"IF(B1489=\"\",\"\",IF(ISERROR(MATCH($J1489,SorP!$B$1:$B$5661,0)),\"\",INDIRECT(\"'SorP'!$A$\"&MATCH($J1489,SorP!$B$1:$B$5661,0))))","v":""},null,{"$f":"IF(C1489=\"\",NA(),MATCH($B1489&$C1489,'Smelter Look-up'!$J:$J,0))","v":{"$error":"#N/A"}},null,0,null,null,null,""]
[null,{"$f":"IF(LEN(A1490)=0,\"\",INDEX('Smelter Look-up'!$A:$A,MATCH($A1490,'Smelter Look-up'!$E:$E,0)))","v":""},{"$f":"IF(LEN(A1490)=0,\"\",INDEX('Smelter Look-up'!$C:$C,MATCH($A1490,'Smelter Look-up'!$E:$E,0)))","v":""},null,{"$f":"IF(ISERROR($V1490),\"\",OFFSET('Smelter Look-up'!$D$4,$V1490-4,0)&\"\")","v":""},{"$f":"IF(ISERROR($V1490),\"\",OFFSET('Smelter Look-up'!$E$4,$V1490-4,0))","v":""},{"$f":"IF(C1490=$X$4,\"Enter smelter details\",IF(ISERROR($V1490),\"\",OFFSET('Smelter Look-up'!$F$4,$V1490-4,0)))","v":""},{"$f":"IF(ISERROR($V1490),\"\",OFFSET('Smelter Look-up'!$G$4,$V1490-4,0))","v":""},{"$f":"IF(ISERROR($V1490),\"\",OFFSET('Smelter Look-up'!$H$4,$V1490-4,0))","v":""},{"$f":"IF(ISERROR($V1490),\"\",OFFSET('Smelter Look-up'!$I$4,$V1490-4,0))","v":""},{"$nulls":7},{"$f":"IF(ISERROR($V1490),\"\",OFFSET('Smelter Look-up'!$C$4,$V1490-4,0)&\"\")","v":""},"",{"$f":"IF(B1490=\"\",\"\",IF(ISERROR(MATCH($J1490,SorP!$B$1:$B$5661,0)),\"\",INDIRECT(\"'SorP'!$A$\"&MATCH($J1490,SorP!$B$1:$B$5661,0))))","v":""},null,{"$f":"IF(C1490=\"\",NA(),MATCH($B1490&$C1490,'Smelter Look-up'!$J:$J,0))","v":{"$error":"#N/A"}},null,0,null,null,null,""]
[null,{"$f":"IF(LEN(A1491)=0,\"\",INDEX('Smelter Look-up'!$A:$A,MATCH($A1491,'Smelter Look-up'!$E:$E,0)))","v":""},{"$f":"IF(LEN(A1491)=0,\"\",INDEX('Smelter Look-up'!$C:$C,MATCH($A1491,'Smelter Look-up'!$E:$E,0)))","v":""},null,{"$f":"IF(ISERROR($V1491),\"\",OFFSET('Smelter Look-up'!$D$4,$V1491-4,0)&\"\")","v":""},{"$f":"IF(ISERROR($V1491),\"\",OFFSET('Smelter Look-up'!$E$4,$V1491-4,0))","v":""},{"$f":"IF(C1491=$X$4,\"Enter smelter details\",IF(ISERROR($V1491),\"\",OFFSET('Smelter Look-up'!$F$4,$V1491-4,0)))","v":""},{"$f":"IF(ISERROR($V1491),\"\",OFFSET('Smelter Look-up'!$G$4,$V1491-4,0))","v":""},{"$f":"IF(ISERROR($V1491),\"\",OFFSET('Smelter Look-up'!$H$4,$V1491-4,0))","v":""},{"$f":"IF(ISERROR($V1491),\"\",OFFSET('Smelter Look-up'!$I$4,$V1491-4,0))","v":""},{"$nulls":7},{"$f":"IF(ISERROR($V1491),\"\",OFFSET('Smelter Look-up'!$C$4,$V1491-4,0)&\"\")","v":""},"",{"$f":"IF(B1491=\"\",\"\",IF(ISERROR(MATCH($J1491,SorP!$B$1:$B$5661,0)),\"\",INDIRECT(\"'SorP'!$A$\"&MATCH($J1491,SorP!$B$1:$B$5661,0))))","v":""},null,{"$f":"IF(C1491=\"\",NA(),MATCH($B1491&$C1491,'Smelter Look-up'!$J:$J,0))","v":{"$error":"#N/A"}},null,0,null,null,null,""]
[null,{"$f":"IF(LEN(A1492)=0,\"\",INDEX('Smelter Look-up'!$A:$A,MATCH($A1492,'Smelter Look-up'!$E:$E,0)))","v":""},{"$f":"IF(LEN(A1492)=0,\"\",INDEX('Smelter Look-up'!$C:$C,MATCH($A1492,'Smelter Look-up'!$E:$E,0)))","v":""},null,{"$f":"IF(ISERROR($V1492),\"\",OFFSET('Smelter Look-up'!$D$4,$V1492-4,0)&\"\")","v":""},{"$f":"IF(ISERROR($V1492),\"\",OFFSET('Smelter Look-up'!$E$4,$V1492-4,0))","v":""},{"$f":"IF(C1492=$X$4,\"Enter smelter details\",IF(ISERROR($V1492),\"\",OFFSET('Smelter Look-up'!$F$4,$V1492-4,0)))","v":""},{"$f":"IF(ISERROR($V1492),\"\",OFFSET('Smelter Look-up'!$G$4,$V1492-4,0))","v":""},{"$f":"IF(ISERROR($V1492),\"\",OFFSET('Smelter Look-up'!$H$4,$V1492-4,0))","v":""},{"$f":"IF(ISERROR($V1492),\"\",OFFSET('Smelter Look-up'!$I$4,$V1492-4,0))","v":""},{"$nulls":7},{"$f":"IF(ISERROR($V1492),\"\",OFFSET('Smelter Look-up'!$C$4,$V1492-4,0)&\"\")","v":""},"",{"$f":"IF(B1492=\"\",\"\",IF(ISERROR(MATCH($J1492,SorP!$B$1:$B$5661,0)),\"\",INDIRECT(\"'SorP'!$A$\"&MATCH($J1492,SorP!$B$1:$B$5661,0))))","v":""},null,{"$f":"IF(C1492=\"\",NA(),MATCH($B1492&$C1492,'Smelter Look-up'!$J:$J,0))","v":{"$error":"#N/A"}},null,0,null,null,null,""]
[null,{"$f":"IF(LEN(A1493)=0,\"\",INDEX('Smelter Look-up'!$A:$A,MATCH($A1493,'Smelter Look-up'!$E:$E,0)))","v":""},{"$f":"IF(LEN(A1493)=0,\"\",INDEX('Smelter Look-up'!$C:$C,MATCH($A1493,'Smelter Look-up'!$E:$E,0)))","v":""},null,{"$f":"IF(ISERROR($V1493),\"\",OFFSET('Smelter Look-up'!$D$4,$V1493-4,0)&\"\")","v":""},{"$f":"IF(ISERROR($V1493),\"\",OFFSET('Smelter Look-up'!$E$4,$V1493-4,0))","v":""},{"$f":"IF(C1493=$X$4,\"Enter smelter details\",IF(ISERROR($V1493),\"\",OFFSET('Smelter Look-up'!$F$4,$V1493-4,0)))","v":""},{"$f":"IF(ISERROR($V1493),\"\",OFFSET('Smelter Look-up'!$G$4,$V1493-4,0))","v":""},{"$f":"IF(ISERROR($V1493),\"\",OFFSET('Smelter Look-up'!$H$4,$V1493-4,0))","v":""},{"$f":"IF(ISERROR($V1493),\"\",OFFSET('Smelter Look-up'!$I$4,$V1493-4,0))","v":""},{"$nulls":7},{"$f":"IF(ISERROR($V1493),\"\",OFFSET('Smelter Look-up'!$C$4,$V1493-4,0)&\"\")","v":""},"",{"$f":"IF(B1493=\"\",\"\",IF(ISERROR(MATCH($J1493,SorP!$B$1:$B$5661,0)),\"\",INDIRECT(\"'SorP'!$A$\"&MATCH($J1493,SorP!$B$1:$B$5661,0))))","v":""},null,{"$f":"IF(C1493=\"\",NA(),MATCH($B1493&$C1493,'Smelter Look-up'!$J:$J,0))","v":{"$error":"#N/A"}},null,0,null,null,null,""]
[null,{"$f":"IF(LEN(A1494)=0,\"\",INDEX('Smelter Look-up'!$A:$A,MATCH($A1494,'Smelter Look-up'!$E:$E,0)))","v":""},{"$f":"IF(LEN(A1494)=0,\"\",INDEX('Smelter Look-up'!$C:$C,MATCH($A1494,'Smelter Look-up'!$E:$E,0)))","v":""},null,{"$f":"IF(ISERROR($V1494),\"\",OFFSET('Smelter Look-up'!$D$4,$V1494-4,0)&\"\")","v":""},{"$f":"IF(ISERROR($V1494),\"\",OFFSET('Smelter Look-up'!$E$4,$V1494-4,0))","v":""},{"$f":"IF(C1494=$X$4,\"Enter smelter details\",IF(ISERROR($V1494),\"\",OFFSET('Smelter Look-up'!$F$4,$V1494-4,0)))","v":""},{"$f":"IF(ISERROR($V1494),\"\",OFFSET('Smelter Look-up'!$G$4,$V1494-4,0))","v":""},{"$f":"IF(ISERROR($V1494),\"\",OFFSET('Smelter Look-up'!$H$4,$V1494-4,0))","v":""},{"$f":"IF(ISERROR($V1494),\"\",OFFSET('Smelter Look-up'!$I$4,$V1494-4,0))","v":""},{"$nulls":7},{"$f":"IF(ISERROR($V1494),\"\",OFFSET('Smelter Look-up'!$C$4,$V1494-4,0)&\"\")","v":""},"",{"$f":"IF(B1494=\"\",\"\",IF(ISERROR(MATCH($J1494,SorP!$B$1:$B$5661,0)),\"\",INDIRECT(\"'SorP'!$A$\"&MATCH($J1494,SorP!$B$1:$B$5661,0))))","v":""},null,{"$f":"IF(C1494=\"\",NA(),MATCH($B1494&$C1494,'Smelter Look-up'!$J:$J,0))","v":{"$error":"#N/A"}},null,0,null,null,null,""]
[null,{"$f":"IF(LEN(A1495)=0,\"\",INDEX('Smelter Look-up'!$A:$A,MATCH($A1495,'Smelter Look-up'!$E:$E,0)))","v":""},{"$f":"IF(LEN(A1495)=0,\"\",INDEX('Smelter Look-up'!$C:$C,MATCH($A1495,'Smelter Look-up'!$E:$E,0)))","v":""},null,{"$f":"IF(ISERROR($V1495),\"\",OFFSET('Smelter Look-up'!$D$4,$V1495-4,0)&\"\")","v":""},{"$f":"IF(ISERROR($V1495),\"\",OFFSET('Smelter Look-up'!$E$4,$V1495-4,0))","v":""},{"$f":"IF(C1495=$X$4,\"Enter smelter details\",IF(ISERROR($V1495),\"\",OFFSET('Smelter Look-up'!$F$4,$V1495-4,0)))","v":""},{"$f":"IF(ISERROR($V1495),\"\",OFFSET('Smelter Look-up'!$G$4,$V1495-4,0))","v":""},{"$f":"IF(ISERROR($V1495),\"\",OFFSET('Smelter Look-up'!$H$4,$V1495-4,0))","v":""},{"$f":"IF(ISERROR($V1495),\"\",OFFSET('Smelter Look-up'!$I$4,$V1495-4,0))","v":""},{"$nulls":7},{"$f":"IF(ISERROR($V1495),\"\",OFFSET('Smelter Look-up'!$C$4,$V1495-4,0)&\"\")","v":""},"",{"$f":"IF(B1495=\"\",\"\",IF(ISERROR(MATCH($J1495,SorP!$B$1:$B$5661,0)),\"\",INDIRECT(\"'SorP'!$A$\"&MATCH($J1495,SorP!$B$1:$B$5661,0))))","v":""},null,{"$f":"IF(C1495=\"\",NA(),MATCH($B1495&$C1495,'Smelter Look-up'!$J:$J,0))","v":{"$error":"#N/A"}},null,0,null,null,null,""]
[null,{"$f":"IF(LEN(A1496)=0,\"\",INDEX('Smelter Look-up'!$A:$A,MATCH($A1496,'Smelter Look-up'!$E:$E,0)))","v":""},{"$f":"IF(LEN(A1496)=0,\"\",INDEX('Smelter Look-up'!$C:$C,MATCH($A1496,'Smelter Look-up'!$E:$E,0)))","v":""},null,{"$f":"IF(ISERROR($V1496),\"\",OFFSET('Smelter Look-up'!$D$4,$V1496-4,0)&\"\")","v":""},{"$f":"IF(ISERROR($V1496),\"\",OFFSET('Smelter Look-up'!$E$4,$V1496-4,0))","v":""},{"$f":"IF(C1496=$X$4,\"Enter smelter details\",IF(ISERROR($V1496),\"\",OFFSET('Smelter Look-up'!$F$4,$V1496-4,0)))","v":""},{"$f":"IF(ISERROR($V1496),\"\",OFFSET('Smelter Look-up'!$G$4,$V1496-4,0))","v":""},{"$f":"IF(ISERROR($V1496),\"\",OFFSET('Smelter Look-up'!$H$4,$V1496-4,0))","v":""},{"$f":"IF(ISERROR($V1496),\"\",OFFSET('Smelter Look-up'!$I$4,$V1496-4,0))","v":""},{"$nulls":7},{"$f":"IF(ISERROR($V1496),\"\",OFFSET('Smelter Look-up'!$C$4,$V1496-4,0)&\"\")","v":""},"",{"$f":"IF(B1496=\"\",\"\",IF(ISERROR(MATCH($J1496,SorP!$B$1:$B$5661,0)),\"\",INDIRECT(\"'SorP'!$A$\"&MATCH($J1496,SorP!$B$1:$B$5661,0))))","v":""},null,{"$f":"IF(C1496=\"\",NA(),MATCH($B1496&$C1496,'Smelter Look-up'!$J:$J,0))","v":{"$error":"#N/A"}},null,0,null,null,null,""]
[null,{"$f":"IF(LEN(A1497)=0,\"\",INDEX('Smelter Look-up'!$A:$A,MATCH($A1497,'Smelter Look-up'!$E:$E,0)))","v":""},{"$f":"IF(LEN(A1497)=0,\"\",INDEX('Smelter Look-up'!$C:$C,MATCH($A1497,'Smelter Look-up'!$E:$E,0)))","v":""},null,{"$f":"IF(ISERROR($V1497),\"\",OFFSET('Smelter Look-up'!$D$4,$V1497-4,0)&\"\")","v":""},{"$f":"IF(ISERROR($V1497),\"\",OFFSET('Smelter Look-up'!$E$4,$V1497-4,0))","v":""},{"$f":"IF(C1497=$X$4,\"Enter smelter details\",IF(ISERROR($V1497),\"\",OFFSET('Smelter Look-up'!$F$4,$V1497-4,0)))","v":""},{"$f":"IF(ISERROR($V1497),\"\",OFFSET('Smelter Look-up'!$G$4,$V1497-4,0))","v":""},{"$f":"IF(ISERROR($V1497),\"\",OFFSET('Smelter Look-up'!$H$4,$V1497-4,0))","v":""},{"$f":"IF(ISERROR($V1497),\"\",OFFSET('Smelter Look-up'!$I$4,$V1497-4,0))","v":""},{"$nulls":7},{"$f":"IF(ISERROR($V1497),\"\",OFFSET('Smelter Look-up'!$C$4,$V1497-4,0)&\"\")","v":""},"",{"$f":"IF(B1497=\"\",\"\",IF(ISERROR(MATCH($J1497,SorP!$B$1:$B$5661,0)),\"\",INDIRECT(\"'SorP'!$A$\"&MATCH($J1497,SorP!$B$1:$B$5661,0))))","v":""},null,{"$f":"IF(C1497=\"\",NA(),MATCH($B1497&$C1497,'Smelter Look-up'!$J:$J,0))","v":{"$error":"#N/A"}},null,0,null,null,null,""]
[null,{"$f":"IF(LEN(A1498)=0,\"\",INDEX('Smelter Look-up'!$A:$A,MATCH($A1498,'Smelter Look-up'!$E:$E,0)))","v":""},{"$f":"IF(LEN(A1498)=0,\"\",INDEX('Smelter Look-up'!$C:$C,MATCH($A1498,'Smelter Look-up'!$E:$E,0)))","v":""},null,{"$f":"IF(ISERROR($V1498),\"\",OFFSET('Smelter Look-up'!$D$4,$V1498-4,0)&\"\")","v":""},{"$f":"IF(ISERROR($V1498),\"\",OFFSET('Smelter Look-up'!$E$4,$V1498-4,0))","v":""},{"$f":"IF(C1498=$X$4,\"Enter smelter details\",IF(ISERROR($V1498),\"\",OFFSET('Smelter Look-up'!$F$4,$V1498-4,0)))","v":""},{"$f":"IF(ISERROR($V1498),\"\",OFFSET('Smelter Look-up'!$G$4,$V1498-4,0))","v":""},{"$f":"IF(ISERROR($V1498),\"\",OFFSET('Smelter Look-up'!$H$4,$V1498-4,0))","v":""},{"$f":"IF(ISERROR($V1498),\"\",OFFSET('Smelter Look-up'!$I$4,$V1498-4,0))","v":""},{"$nulls":7},{"$f":"IF(ISERROR($V1498),\"\",OFFSET('Smelter Look-up'!$C$4,$V1498-4,0)&\"\")","v":""},"",{"$f":"IF(B1498=\"\",\"\",IF(ISERROR(MATCH($J1498,SorP!$B$1:$B$5661,0)),\"\",INDIRECT(\"'SorP'!$A$\"&MATCH($J1498,SorP!$B$1:$B$5661,0))))","v":""},null,{"$f":"IF(C1498=\"\",NA(),MATCH($B1498&$C1498,'Smelter Look-up'!$J:$J,0))","v":{"$error":"#N/A"}},null,0,null,null,null,""]
[null,{"$f":"IF(LEN(A1499)=0,\"\",INDEX('Smelter Look-up'!$A:$A,MATCH($A1499,'Smelter Look-up'!$E:$E,0)))","v":""},{"$f":"IF(LEN(A1499)=0,\"\",INDEX('Smelter Look-up'!$C:$C,MATCH($A1499,'Smelter Look-up'!$E:$E,0)))","v":""},null,{"$f":"IF(ISERROR($V1499),\"\",OFFSET('Smelter Look-up'!$D$4,$V1499-4,0)&\"\")","v":""},{"$f":"IF(ISERROR($V1499),\"\",OFFSET('Smelter Look-up'!$E$4,$V1499-4,0))","v":""},{"$f":"IF(C1499=$X$4,\"Enter smelter details\",IF(ISERROR($V1499),\"\",OFFSET('Smelter Look-up'!$F$4,$V1499-4,0)))","v":""},{"$f":"IF(ISERROR($V1499),\"\",OFFSET('Smelter Look-up'!$G$4,$V1499-4,0))","v":""},{"$f":"IF(ISERROR($V1499),\"\",OFFSET('Smelter Look-up'!$H$4,$V1499-4,0))","v":""},{"$f":"IF(ISERROR($V1499),\"\",OFFSET('Smelter Look-up'!$I$4,$V1499-4,0))","v":""},{"$nulls":7},{"$f":"IF(ISERROR($V1499),\"\",OFFSET('Smelter Look-up'!$C$4,$V1499-4,0)&\"\")","v":""},"",{"$f":"IF(B1499=\"\",\"\",IF(ISERROR(MATCH($J1499,SorP!$B$1:$B$5661,0)),\"\",INDIRECT(\"'SorP'!$A$\"&MATCH($J1499,SorP!$B$1:$B$5661,0))))","v":""},null,{"$f":"IF(C1499=\"\",NA(),MATCH($B1499&$C1499,'Smelter Look-up'!$J:$J,0))","v":{"$error":"#N/A"}},null,0,null,null,null,""]
[null,{"$f":"IF(LEN(A1500)=0,\"\",INDEX('Smelter Look-up'!$A:$A,MATCH($A1500,'Smelter Look-up'!$E:$E,0)))","v":""},{"$f":"IF(LEN(A1500)=0,\"\",INDEX('Smelter Look-up'!$C:$C,MATCH($A1500,'Smelter Look-up'!$E:$E,0)))","v":""},null,{"$f":"IF(ISERROR($V1500),\"\",OFFSET('Smelter Look-up'!$D$4,$V1500-4,0)&\"\")","v":""},{"$f":"IF(ISERROR($V1500),\"\",OFFSET('Smelter Look-up'!$E$4,$V1500-4,0))","v":""},{"$f":"IF(C1500=$X$4,\"Enter smelter details\",IF(ISERROR($V1500),\"\",OFFSET('Smelter Look-up'!$F$4,$V1500-4,0)))","v":""},{"$f":"IF(ISERROR($V1500),\"\",OFFSET('Smelter Look-up'!$G$4,$V1500-4,0))","v":""},{"$f":"IF(ISERROR($V1500),\"\",OFFSET('Smelter Look-up'!$H$4,$V1500-4,0))","v":""},{"$f":"IF(ISERROR($V1500),\"\",OFFSET('Smelter Look-up'!$I$4,$V1500-4,0))","v":""},{"$nulls":7},{"$f":"IF(ISERROR($V1500),\"\",OFFSET('Smelter Look-up'!$C$4,$V1500-4,0)&\"\")","v":""},"",{"$f":"IF(B1500=\"\",\"\",IF(ISERROR(MATCH($J1500,SorP!$B$1:$B$5661,0)),\"\",INDIRECT(\"'SorP'!$A$\"&MATCH($J1500,SorP!$B$1:$B$5661,0))))","v":""},null,{"$f":"IF(C1500=\"\",NA(),MATCH($B1500&$C1500,'Smelter Look-up'!$J:$J,0))","v":{"$error":"#N/A"}},null,0,null,null,null,""]
[null,{"$f":"IF(LEN(A1501)=0,\"\",INDEX('Smelter Look-up'!$A:$A,MATCH($A1501,'Smelter Look-up'!$E:$E,0)))","v":""},{"$f":"IF(LEN(A1501)=0,\"\",INDEX('Smelter Look-up'!$C:$C,MATCH($A1501,'Smelter Look-up'!$E:$E,0)))","v":""},null,{"$f":"IF(ISERROR($V1501),\"\",OFFSET('Smelter Look-up'!$D$4,$V1501-4,0)&\"\")","v":""},{"$f":"IF(ISERROR($V1501),\"\",OFFSET('Smelter Look-up'!$E$4,$V1501-4,0))","v":""},{"$f":"IF(C1501=$X$4,\"Enter smelter details\",IF(ISERROR($V1501),\"\",OFFSET('Smelter Look-up'!$F$4,$V1501-4,0)))","v":""},{"$f":"IF(ISERROR($V1501),\"\",OFFSET('Smelter Look-up'!$G$4,$V1501-4,0))","v":""},{"$f":"IF(ISERROR($V1501),\"\",OFFSET('Smelter Look-up'!$H$4,$V1501-4,0))","v":""},{"$f":"IF(ISERROR($V1501),\"\",OFFSET('Smelter Look-up'!$I$4,$V1501-4,0))","v":""},{"$nulls":7},{"$f":"IF(ISERROR($V1501),\"\",OFFSET('Smelter Look-up'!$C$4,$V1501-4,0)&\"\")","v":""},"",{"$f":"IF(B1501=\"\",\"\",IF(ISERROR(MATCH($J1501,SorP!$B$1:$B$5661,0)),\"\",INDIRECT(\"'SorP'!$A$\"&MATCH($J1501,SorP!$B$1:$B$5661,0))))","v":""},null,{"$f":"IF(C1501=\"\",NA(),MATCH($B1501&$C1501,'Smelter Look-up'!$J:$J,0))","v":{"$error":"#N/A"}},null,0,null,null,null,""]
[null,{"$f":"IF(LEN(A1502)=0,\"\",INDEX('Smelter Look-up'!$A:$A,MATCH($A1502,'Smelter Look-up'!$E:$E,0)))","v":""},{"$f":"IF(LEN(A1502)=0,\"\",INDEX('Smelter Look-up'!$C:$C,MATCH($A1502,'Smelter Look-up'!$E:$E,0)))","v":""},null,{"$f":"IF(ISERROR($V1502),\"\",OFFSET('Smelter Look-up'!$D$4,$V1502-4,0)&\"\")","v":""},{"$f":"IF(ISERROR($V1502),\"\",OFFSET('Smelter Look-up'!$E$4,$V1502-4,0))","v":""},{"$f":"IF(C1502=$X$4,\"Enter smelter details\",IF(ISERROR($V1502),\"\",OFFSET('Smelter Look-up'!$F$4,$V1502-4,0)))","v":""},{"$f":"IF(ISERROR($V1502),\"\",OFFSET('Smelter Look-up'!$G$4,$V1502-4,0))","v":""},{"$f":"IF(ISERROR($V1502),\"\",OFFSET('Smelter Look-up'!$H$4,$V1502-4,0))","v":""},{"$f":"IF(ISERROR($V1502),\"\",OFFSET('Smelter Look-up'!$I$4,$V1502-4,0))","v":""},{"$nulls":7},{"$f":"IF(ISERROR($V1502),\"\",OFFSET('Smelter Look-up'!$C$4,$V1502-4,0)&\"\")","v":""},"",{"$f":"IF(B1502=\"\",\"\",IF(ISERROR(MATCH($J1502,SorP!$B$1:$B$5661,0)),\"\",INDIRECT(\"'SorP'!$A$\"&MATCH($J1502,SorP!$B$1:$B$5661,0))))","v":""},null,{"$f":"IF(C1502=\"\",NA(),MATCH($B1502&$C1502,'Smelter Look-up'!$J:$J,0))","v":{"$error":"#N/A"}},null,0,null,null,null,""]
[null,{"$f":"IF(LEN(A1503)=0,\"\",INDEX('Smelter Look-up'!$A:$A,MATCH($A1503,'Smelter Look-up'!$E:$E,0)))","v":""},{"$f":"IF(LEN(A1503)=0,\"\",INDEX('Smelter Look-up'!$C:$C,MATCH($A1503,'Smelter Look-up'!$E:$E,0)))","v":""},null,{"$f":"IF(ISERROR($V1503),\"\",OFFSET('Smelter Look-up'!$D$4,$V1503-4,0)&\"\")","v":""},{"$f":"IF(ISERROR($V1503),\"\",OFFSET('Smelter Look-up'!$E$4,$V1503-4,0))","v":""},{"$f":"IF(C1503=$X$4,\"Enter smelter details\",IF(ISERROR($V1503),\"\",OFFSET('Smelter Look-up'!$F$4,$V1503-4,0)))","v":""},{"$f":"IF(ISERROR($V1503),\"\",OFFSET('Smelter Look-up'!$G$4,$V1503-4,0))","v":""},{"$f":"IF(ISERROR($V1503),\"\",OFFSET('Smelter Look-up'!$H$4,$V1503-4,0))","v":""},{"$f":"IF(ISERROR($V1503),\"\",OFFSET('Smelter Look-up'!$I$4,$V1503-4,0))","v":""},{"$nulls":7},{"$f":"IF(ISERROR($V1503),\"\",OFFSET('Smelter Look-up'!$C$4,$V1503-4,0)&\"\")","v":""},"",{"$f":"IF(B1503=\"\",\"\",IF(ISERROR(MATCH($J1503,SorP!$B$1:$B$5661,0)),\"\",INDIRECT(\"'SorP'!$A$\"&MATCH($J1503,SorP!$B$1:$B$5661,0))))","v":""},null,{"$f":"IF(C1503=\"\",NA(),MATCH($B1503&$C1503,'Smelter Look-up'!$J:$J,0))","v":{"$error":"#N/A"}},null,0,null,null,null,""]
[null,{"$f":"IF(LEN(A1504)=0,\"\",INDEX('Smelter Look-up'!$A:$A,MATCH($A1504,'Smelter Look-up'!$E:$E,0)))","v":""},{"$f":"IF(LEN(A1504)=0,\"\",INDEX('Smelter Look-up'!$C:$C,MATCH($A1504,'Smelter Look-up'!$E:$E,0)))","v":""},null,{"$f":"IF(ISERROR($V1504),\"\",OFFSET('Smelter Look-up'!$D$4,$V1504-4,0)&\"\")","v":""},{"$f":"IF(ISERROR($V1504),\"\",OFFSET('Smelter Look-up'!$E$4,$V1504-4,0))","v":""},{"$f":"IF(C1504=$X$4,\"Enter smelter details\",IF(ISERROR($V1504),\"\",OFFSET('Smelter Look-up'!$F$4,$V1504-4,0)))","v":""},{"$f":"IF(ISERROR($V1504),\"\",OFFSET('Smelter Look-up'!$G$4,$V1504-4,0))","v":""},{"$f":"IF(ISERROR($V1504),\"\",OFFSET('Smelter Look-up'!$H$4,$V1504-4,0))","v":""},{"$f":"IF(ISERROR($V1504),\"\",OFFSET('Smelter Look-up'!$I$4,$V1504-4,0))","v":""},{"$nulls":7},{"$f":"IF(ISERROR($V1504),\"\",OFFSET('Smelter Look-up'!$C$4,$V1504-4,0)&\"\")","v":""},"",{"$f":"IF(B1504=\"\",\"\",IF(ISERROR(MATCH($J1504,SorP!$B$1:$B$5661,0)),\"\",INDIRECT(\"'SorP'!$A$\"&MATCH($J1504,SorP!$B$1:$B$5661,0))))","v":""},null,{"$f":"IF(C1504=\"\",NA(),MATCH($B1504&$C1504,'Smelter Look-up'!$J:$J,0))","v":{"$error":"#N/A"}},null,0,null,null,null,""]
[null,{"$f":"IF(LEN(A1505)=0,\"\",INDEX('Smelter Look-up'!$A:$A,MATCH($A1505,'Smelter Look-up'!$E:$E,0)))","v":""},{"$f":"IF(LEN(A1505)=0,\"\",INDEX('Smelter Look-up'!$C:$C,MATCH($A1505,'Smelter Look-up'!$E:$E,0)))","v":""},null,{"$f":"IF(ISERROR($V1505),\"\",OFFSET('Smelter Look-up'!$D$4,$V1505-4,0)&\"\")","v":""},{"$f":"IF(ISERROR($V1505),\"\",OFFSET('Smelter Look-up'!$E$4,$V1505-4,0))","v":""},{"$f":"IF(C1505=$X$4,\"Enter smelter details\",IF(ISERROR($V1505),\"\",OFFSET('Smelter Look-up'!$F$4,$V1505-4,0)))","v":""},{"$f":"IF(ISERROR($V1505),\"\",OFFSET('Smelter Look-up'!$G$4,$V1505-4,0))","v":""},{"$f":"IF(ISERROR($V1505),\"\",OFFSET('Smelter Look-up'!$H$4,$V1505-4,0))","v":""},{"$f":"IF(ISERROR($V1505),\"\",OFFSET('Smelter Look-up'!$I$4,$V1505-4,0))","v":""},{"$nulls":7},{"$f":"IF(ISERROR($V1505),\"\",OFFSET('Smelter Look-up'!$C$4,$V1505-4,0)&\"\")","v":""},"",{"$f":"IF(B1505=\"\",\"\",IF(ISERROR(MATCH($J1505,SorP!$B$1:$B$5661,0)),\"\",INDIRECT(\"'SorP'!$A$\"&MATCH($J1505,SorP!$B$1:$B$5661,0))))","v":""},null,{"$f":"IF(C1505=\"\",NA(),MATCH($B1505&$C1505,'Smelter Look-up'!$J:$J,0))","v":{"$error":"#N/A"}},null,0,null,null,null,""]
[null,{"$f":"IF(LEN(A1506)=0,\"\",INDEX('Smelter Look-up'!$A:$A,MATCH($A1506,'Smelter Look-up'!$E:$E,0)))","v":""},{"$f":"IF(LEN(A1506)=0,\"\",INDEX('Smelter Look-up'!$C:$C,MATCH($A1506,'Smelter Look-up'!$E:$E,0)))","v":""},null,{"$f":"IF(ISERROR($V1506),\"\",OFFSET('Smelter Look-up'!$D$4,$V1506-4,0)&\"\")","v":""},{"$f":"IF(ISERROR($V1506),\"\",OFFSET('Smelter Look-up'!$E$4,$V1506-4,0))","v":""},{"$f":"IF(C1506=$X$4,\"Enter smelter details\",IF(ISERROR($V1506),\"\",OFFSET('Smelter Look-up'!$F$4,$V1506-4,0)))","v":""},{"$f":"IF(ISERROR($V1506),\"\",OFFSET('Smelter Look-up'!$G$4,$V1506-4,0))","v":""},{"$f":"IF(ISERROR($V1506),\"\",OFFSET('Smelter Look-up'!$H$4,$V1506-4,0))","v":""},{"$f":"IF(ISERROR($V1506),\"\",OFFSET('Smelter Look-up'!$I$4,$V1506-4,0))","v":""},{"$nulls":7},{"$f":"IF(ISERROR($V1506),\"\",OFFSET('Smelter Look-up'!$C$4,$V1506-4,0)&\"\")","v":""},"",{"$f":"IF(B1506=\"\",\"\",IF(ISERROR(MATCH($J1506,SorP!$B$1:$B$5661,0)),\"\",INDIRECT(\"'SorP'!$A$\"&MATCH($J1506,SorP!$B$1:$B$5661,0))))","v":""},null,{"$f":"IF(C1506=\"\",NA(),MATCH($B1506&$C1506,'Smelter Look-up'!$J:$J,0))","v":{"$error":"#N/A"}},null,0,null,null,null,""]
[null,{"$f":"IF(LEN(A1507)=0,\"\",INDEX('Smelter Look-up'!$A:$A,MATCH($A1507,'Smelter Look-up'!$E:$E,0)))","v":""},{"$f":"IF(LEN(A1507)=0,\"\",INDEX('Smelter Look-up'!$C:$C,MATCH($A1507,'Smelter Look-up'!$E:$E,0)))","v":""},null,{"$f":"IF(ISERROR($V1507),\"\",OFFSET('Smelter Look-up'!$D$4,$V1507-4,0)&\"\")","v":""},{"$f":"IF(ISERROR($V1507),\"\",OFFSET('Smelter Look-up'!$E$4,$V1507-4,0))","v":""},{"$f":"IF(C1507=$X$4,\"Enter smelter details\",IF(ISERROR($V1507),\"\",OFFSET('Smelter Look-up'!$F$4,$V1507-4,0)))","v":""},{"$f":"IF(ISERROR($V1507),\"\",OFFSET('Smelter Look-up'!$G$4,$V1507-4,0))","v":""},{"$f":"IF(ISERROR($V1507),\"\",OFFSET('Smelter Look-up'!$H$4,$V1507-4,0))","v":""},{"$f":"IF(ISERROR($V1507),\"\",OFFSET('Smelter Look-up'!$I$4,$V1507-4,0))","v":""},{"$nulls":7},{"$f":"IF(ISERROR($V1507),\"\",OFFSET('Smelter Look-up'!$C$4,$V1507-4,0)&\"\")","v":""},"",{"$f":"IF(B1507=\"\",\"\",IF(ISERROR(MATCH($J1507,SorP!$B$1:$B$5661,0)),\"\",INDIRECT(\"'SorP'!$A$\"&MATCH($J1507,SorP!$B$1:$B$5661,0))))","v":""},null,{"$f":"IF(C1507=\"\",NA(),MATCH($B1507&$C1507,'Smelter Look-up'!$J:$J,0))","v":{"$error":"#N/A"}},null,0,null,null,null,""]
[null,{"$f":"IF(LEN(A1508)=0,\"\",INDEX('Smelter Look-up'!$A:$A,MATCH($A1508,'Smelter Look-up'!$E:$E,0)))","v":""},{"$f":"IF(LEN(A1508)=0,\"\",INDEX('Smelter Look-up'!$C:$C,MATCH($A1508,'Smelter Look-up'!$E:$E,0)))","v":""},null,{"$f":"IF(ISERROR($V1508),\"\",OFFSET('Smelter Look-up'!$D$4,$V1508-4,0)&\"\")","v":""},{"$f":"IF(ISERROR($V1508),\"\",OFFSET('Smelter Look-up'!$E$4,$V1508-4,0))","v":""},{"$f":"IF(C1508=$X$4,\"Enter smelter details\",IF(ISERROR($V1508),\"\",OFFSET('Smelter Look-up'!$F$4,$V1508-4,0)))","v":""},{"$f":"IF(ISERROR($V1508),\"\",OFFSET('Smelter Look-up'!$G$4,$V1508-4,0))","v":""},{"$f":"IF(ISERROR($V1508),\"\",OFFSET('Smelter Look-up'!$H$4,$V1508-4,0))","v":""},{"$f":"IF(ISERROR($V1508),\"\",OFFSET('Smelter Look-up'!$I$4,$V1508-4,0))","v":""},{"$nulls":7},{"$f":"IF(ISERROR($V1508),\"\",OFFSET('Smelter Look-up'!$C$4,$V1508-4,0)&\"\")","v":""},"",{"$f":"IF(B1508=\"\",\"\",IF(ISERROR(MATCH($J1508,SorP!$B$1:$B$5661,0)),\"\",INDIRECT(\"'SorP'!$A$\"&MATCH($J1508,SorP!$B$1:$B$5661,0))))","v":""},null,{"$f":"IF(C1508=\"\",NA(),MATCH($B1508&$C1508,'Smelter Look-up'!$J:$J,0))","v":{"$error":"#N/A"}},null,0,null,null,null,""]
[null,{"$f":"IF(LEN(A1509)=0,\"\",INDEX('Smelter Look-up'!$A:$A,MATCH($A1509,'Smelter Look-up'!$E:$E,0)))","v":""},{"$f":"IF(LEN(A1509)=0,\"\",INDEX('Smelter Look-up'!$C:$C,MATCH($A1509,'Smelter Look-up'!$E:$E,0)))","v":""},null,{"$f":"IF(ISERROR($V1509),\"\",OFFSET('Smelter Look-up'!$D$4,$V1509-4,0)&\"\")","v":""},{"$f":"IF(ISERROR($V1509),\"\",OFFSET('Smelter Look-up'!$E$4,$V1509-4,0))","v":""},{"$f":"IF(C1509=$X$4,\"Enter smelter details\",IF(ISERROR($V1509),\"\",OFFSET('Smelter Look-up'!$F$4,$V1509-4,0)))","v":""},{"$f":"IF(ISERROR($V1509),\"\",OFFSET('Smelter Look-up'!$G$4,$V1509-4,0))","v":""},{"$f":"IF(ISERROR($V1509),\"\",OFFSET('Smelter Look-up'!$H$4,$V1509-4,0))","v":""},{"$f":"IF(ISERROR($V1509),\"\",OFFSET('Smelter Look-up'!$I$4,$V1509-4,0))","v":""},{"$nulls":7},{"$f":"IF(ISERROR($V1509),\"\",OFFSET('Smelter Look-up'!$C$4,$V1509-4,0)&\"\")","v":""},"",{"$f":"IF(B1509=\"\",\"\",IF(ISERROR(MATCH($J1509,SorP!$B$1:$B$5661,0)),\"\",INDIRECT(\"'SorP'!$A$\"&MATCH($J1509,SorP!$B$1:$B$5661,0))))","v":""},null,{"$f":"IF(C1509=\"\",NA(),MATCH($B1509&$C1509,'Smelter Look-up'!$J:$J,0))","v":{"$error":"#N/A"}},null,0,null,null,null,""]
[null,{"$f":"IF(LEN(A1510)=0,\"\",INDEX('Smelter Look-up'!$A:$A,MATCH($A1510,'Smelter Look-up'!$E:$E,0)))","v":""},{"$f":"IF(LEN(A1510)=0,\"\",INDEX('Smelter Look-up'!$C:$C,MATCH($A1510,'Smelter Look-up'!$E:$E,0)))","v":""},null,{"$f":"IF(ISERROR($V1510),\"\",OFFSET('Smelter Look-up'!$D$4,$V1510-4,0)&\"\")","v":""},{"$f":"IF(ISERROR($V1510),\"\",OFFSET('Smelter Look-up'!$E$4,$V1510-4,0))","v":""},{"$f":"IF(C1510=$X$4,\"Enter smelter details\",IF(ISERROR($V1510),\"\",OFFSET('Smelter Look-up'!$F$4,$V1510-4,0)))","v":""},{"$f":"IF(ISERROR($V1510),\"\",OFFSET('Smelter Look-up'!$G$4,$V1510-4,0))","v":""},{"$f":"IF(ISERROR($V1510),\"\",OFFSET('Smelter Look-up'!$H$4,$V1510-4,0))","v":""},{"$f":"IF(ISERROR($V1510),\"\",OFFSET('Smelter Look-up'!$I$4,$V1510-4,0))","v":""},{"$nulls":7},{"$f":"IF(ISERROR($V1510),\"\",OFFSET('Smelter Look-up'!$C$4,$V1510-4,0)&\"\")","v":""},"",{"$f":"IF(B1510=\"\",\"\",IF(ISERROR(MATCH($J1510,SorP!$B$1:$B$5661,0)),\"\",INDIRECT(\"'SorP'!$A$\"&MATCH($J1510,SorP!$B$1:$B$5661,0))))","v":""},null,{"$f":"IF(C1510=\"\",NA(),MATCH($B1510&$C1510,'Smelter Look-up'!$J:$J,0))","v":{"$error":"#N/A"}},null,0,null,null,null,""]
[null,{"$f":"IF(LEN(A1511)=0,\"\",INDEX('Smelter Look-up'!$A:$A,MATCH($A1511,'Smelter Look-up'!$E:$E,0)))","v":""},{"$f":"IF(LEN(A1511)=0,\"\",INDEX('Smelter Look-up'!$C:$C,MATCH($A1511,'Smelter Look-up'!$E:$E,0)))","v":""},null,{"$f":"IF(ISERROR($V1511),\"\",OFFSET('Smelter Look-up'!$D$4,$V1511-4,0)&\"\")","v":""},{"$f":"IF(ISERROR($V1511),\"\",OFFSET('Smelter Look-up'!$E$4,$V1511-4,0))","v":""},{"$f":"IF(C1511=$X$4,\"Enter smelter details\",IF(ISERROR($V1511),\"\",OFFSET('Smelter Look-up'!$F$4,$V1511-4,0)))","v":""},{"$f":"IF(ISERROR($V1511),\"\",OFFSET('Smelter Look-up'!$G$4,$V1511-4,0))","v":""},{"$f":"IF(ISERROR($V1511),\"\",OFFSET('Smelter Look-up'!$H$4,$V1511-4,0))","v":""},{"$f":"IF(ISERROR($V1511),\"\",OFFSET('Smelter Look-up'!$I$4,$V1511-4,0))","v":""},{"$nulls":7},{"$f":"IF(ISERROR($V1511),\"\",OFFSET('Smelter Look-up'!$C$4,$V1511-4,0)&\"\")","v":""},"",{"$f":"IF(B1511=\"\",\"\",IF(ISERROR(MATCH($J1511,SorP!$B$1:$B$5661,0)),\"\",INDIRECT(\"'SorP'!$A$\"&MATCH($J1511,SorP!$B$1:$B$5661,0))))","v":""},null,{"$f":"IF(C1511=\"\",NA(),MATCH($B1511&$C1511,'Smelter Look-up'!$J:$J,0))","v":{"$error":"#N/A"}},null,0,null,null,null,""]
[null,{"$f":"IF(LEN(A1512)=0,\"\",INDEX('Smelter Look-up'!$A:$A,MATCH($A1512,'Smelter Look-up'!$E:$E,0)))","v":""},{"$f":"IF(LEN(A1512)=0,\"\",INDEX('Smelter Look-up'!$C:$C,MATCH($A1512,'Smelter Look-up'!$E:$E,0)))","v":""},null,{"$f":"IF(ISERROR($V1512),\"\",OFFSET('Smelter Look-up'!$D$4,$V1512-4,0)&\"\")","v":""},{"$f":"IF(ISERROR($V1512),\"\",OFFSET('Smelter Look-up'!$E$4,$V1512-4,0))","v":""},{"$f":"IF(C1512=$X$4,\"Enter smelter details\",IF(ISERROR($V1512),\"\",OFFSET('Smelter Look-up'!$F$4,$V1512-4,0)))","v":""},{"$f":"IF(ISERROR($V1512),\"\",OFFSET('Smelter Look-up'!$G$4,$V1512-4,0))","v":""},{"$f":"IF(ISERROR($V1512),\"\",OFFSET('Smelter Look-up'!$H$4,$V1512-4,0))","v":""},{"$f":"IF(ISERROR($V1512),\"\",OFFSET('Smelter Look-up'!$I$4,$V1512-4,0))","v":""},{"$nulls":7},{"$f":"IF(ISERROR($V1512),\"\",OFFSET('Smelter Look-up'!$C$4,$V1512-4,0)&\"\")","v":""},"",{"$f":"IF(B1512=\"\",\"\",IF(ISERROR(MATCH($J1512,SorP!$B$1:$B$5661,0)),\"\",INDIRECT(\"'SorP'!$A$\"&MATCH($J1512,SorP!$B$1:$B$5661,0))))","v":""},null,{"$f":"IF(C1512=\"\",NA(),MATCH($B1512&$C1512,'Smelter Look-up'!$J:$J,0))","v":{"$error":"#N/A"}},null,0,null,null,null,""]
[null,{"$f":"IF(LEN(A1513)=0,\"\",INDEX('Smelter Look-up'!$A:$A,MATCH($A1513,'Smelter Look-up'!$E:$E,0)))","v":""},{"$f":"IF(LEN(A1513)=0,\"\",INDEX('Smelter Look-up'!$C:$C,MATCH($A1513,'Smelter Look-up'!$E:$E,0)))","v":""},null,{"$f":"IF(ISERROR($V1513),\"\",OFFSET('Smelter Look-up'!$D$4,$V1513-4,0)&\"\")","v":""},{"$f":"IF(ISERROR($V1513),\"\",OFFSET('Smelter Look-up'!$E$4,$V1513-4,0))","v":""},{"$f":"IF(C1513=$X$4,\"Enter smelter details\",IF(ISERROR($V1513),\"\",OFFSET('Smelter Look-up'!$F$4,$V1513-4,0)))","v":""},{"$f":"IF(ISERROR($V1513),\"\",OFFSET('Smelter Look-up'!$G$4,$V1513-4,0))","v":""},{"$f":"IF(ISERROR($V1513),\"\",OFFSET('Smelter Look-up'!$H$4,$V1513-4,0))","v":""},{"$f":"IF(ISERROR($V1513),\"\",OFFSET('Smelter Look-up'!$I$4,$V1513-4,0))","v":""},{"$nulls":7},{"$f":"IF(ISERROR($V1513),\"\",OFFSET('Smelter Look-up'!$C$4,$V1513-4,0)&\"\")","v":""},"",{"$f":"IF(B1513=\"\",\"\",IF(ISERROR(MATCH($J1513,SorP!$B$1:$B$5661,0)),\"\",INDIRECT(\"'SorP'!$A$\"&MATCH($J1513,SorP!$B$1:$B$5661,0))))","v":""},null,{"$f":"IF(C1513=\"\",NA(),MATCH($B1513&$C1513,'Smelter Look-up'!$J:$J,0))","v":{"$error":"#N/A"}},null,0,null,null,null,""]
[null,{"$f":"IF(LEN(A1514)=0,\"\",INDEX('Smelter Look-up'!$A:$A,MATCH($A1514,'Smelter Look-up'!$E:$E,0)))","v":""},{"$f":"IF(LEN(A1514)=0,\"\",INDEX('Smelter Look-up'!$C:$C,MATCH($A1514,'Smelter Look-up'!$E:$E,0)))","v":""},null,{"$f":"IF(ISERROR($V1514),\"\",OFFSET('Smelter Look-up'!$D$4,$V1514-4,0)&\"\")","v":""},{"$f":"IF(ISERROR($V1514),\"\",OFFSET('Smelter Look-up'!$E$4,$V1514-4,0))","v":""},{"$f":"IF(C1514=$X$4,\"Enter smelter details\",IF(ISERROR($V1514),\"\",OFFSET('Smelter Look-up'!$F$4,$V1514-4,0)))","v":""},{"$f":"IF(ISERROR($V1514),\"\",OFFSET('Smelter Look-up'!$G$4,$V1514-4,0))","v":""},{"$f":"IF(ISERROR($V1514),\"\",OFFSET('Smelter Look-up'!$H$4,$V1514-4,0))","v":""},{"$f":"IF(ISERROR($V1514),\"\",OFFSET('Smelter Look-up'!$I$4,$V1514-4,0))","v":""},{"$nulls":7},{"$f":"IF(ISERROR($V1514),\"\",OFFSET('Smelter Look-up'!$C$4,$V1514-4,0)&\"\")","v":""},"",{"$f":"IF(B1514=\"\",\"\",IF(ISERROR(MATCH($J1514,SorP!$B$1:$B$5661,0)),\"\",INDIRECT(\"'SorP'!$A$\"&MATCH($J1514,SorP!$B$1:$B$5661,0))))","v":""},null,{"$f":"IF(C1514=\"\",NA(),MATCH($B1514&$C1514,'Smelter Look-up'!$J:$J,0))","v":{"$error":"#N/A"}},null,0,null,null,null,""]
[null,{"$f":"IF(LEN(A1515)=0,\"\",INDEX('Smelter Look-up'!$A:$A,MATCH($A1515,'Smelter Look-up'!$E:$E,0)))","v":""},{"$f":"IF(LEN(A1515)=0,\"\",INDEX('Smelter Look-up'!$C:$C,MATCH($A1515,'Smelter Look-up'!$E:$E,0)))","v":""},null,{"$f":"IF(ISERROR($V1515),\"\",OFFSET('Smelter Look-up'!$D$4,$V1515-4,0)&\"\")","v":""},{"$f":"IF(ISERROR($V1515),\"\",OFFSET('Smelter Look-up'!$E$4,$V1515-4,0))","v":""},{"$f":"IF(C1515=$X$4,\"Enter smelter details\",IF(ISERROR($V1515),\"\",OFFSET('Smelter Look-up'!$F$4,$V1515-4,0)))","v":""},{"$f":"IF(ISERROR($V1515),\"\",OFFSET('Smelter Look-up'!$G$4,$V1515-4,0))","v":""},{"$f":"IF(ISERROR($V1515),\"\",OFFSET('Smelter Look-up'!$H$4,$V1515-4,0))","v":""},{"$f":"IF(ISERROR($V1515),\"\",OFFSET('Smelter Look-up'!$I$4,$V1515-4,0))","v":""},{"$nulls":7},{"$f":"IF(ISERROR($V1515),\"\",OFFSET('Smelter Look-up'!$C$4,$V1515-4,0)&\"\")","v":""},"",{"$f":"IF(B1515=\"\",\"\",IF(ISERROR(MATCH($J1515,SorP!$B$1:$B$5661,0)),\"\",INDIRECT(\"'SorP'!$A$\"&MATCH($J1515,SorP!$B$1:$B$5661,0))))","v":""},null,{"$f":"IF(C1515=\"\",NA(),MATCH($B1515&$C1515,'Smelter Look-up'!$J:$J,0))","v":{"$error":"#N/A"}},null,0,null,null,null,""]
[null,{"$f":"IF(LEN(A1516)=0,\"\",INDEX('Smelter Look-up'!$A:$A,MATCH($A1516,'Smelter Look-up'!$E:$E,0)))","v":""},{"$f":"IF(LEN(A1516)=0,\"\",INDEX('Smelter Look-up'!$C:$C,MATCH($A1516,'Smelter Look-up'!$E:$E,0)))","v":""},null,{"$f":"IF(ISERROR($V1516),\"\",OFFSET('Smelter Look-up'!$D$4,$V1516-4,0)&\"\")","v":""},{"$f":"IF(ISERROR($V1516),\"\",OFFSET('Smelter Look-up'!$E$4,$V1516-4,0))","v":""},{"$f":"IF(C1516=$X$4,\"Enter smelter details\",IF(ISERROR($V1516),\"\",OFFSET('Smelter Look-up'!$F$4,$V1516-4,0)))","v":""},{"$f":"IF(ISERROR($V1516),\"\",OFFSET('Smelter Look-up'!$G$4,$V1516-4,0))","v":""},{"$f":"IF(ISERROR($V1516),\"\",OFFSET('Smelter Look-up'!$H$4,$V1516-4,0))","v":""},{"$f":"IF(ISERROR($V1516),\"\",OFFSET('Smelter Look-up'!$I$4,$V1516-4,0))","v":""},{"$nulls":7},{"$f":"IF(ISERROR($V1516),\"\",OFFSET('Smelter Look-up'!$C$4,$V1516-4,0)&\"\")","v":""},"",{"$f":"IF(B1516=\"\",\"\",IF(ISERROR(MATCH($J1516,SorP!$B$1:$B$5661,0)),\"\",INDIRECT(\"'SorP'!$A$\"&MATCH($J1516,SorP!$B$1:$B$5661,0))))","v":""},null,{"$f":"IF(C1516=\"\",NA(),MATCH($B1516&$C1516,'Smelter Look-up'!$J:$J,0))","v":{"$error":"#N/A"}},null,0,null,null,null,""]
[null,{"$f":"IF(LEN(A1517)=0,\"\",INDEX('Smelter Look-up'!$A:$A,MATCH($A1517,'Smelter Look-up'!$E:$E,0)))","v":""},{"$f":"IF(LEN(A1517)=0,\"\",INDEX('Smelter Look-up'!$C:$C,MATCH($A1517,'Smelter Look-up'!$E:$E,0)))","v":""},null,{"$f":"IF(ISERROR($V1517),\"\",OFFSET('Smelter Look-up'!$D$4,$V1517-4,0)&\"\")","v":""},{"$f":"IF(ISERROR($V1517),\"\",OFFSET('Smelter Look-up'!$E$4,$V1517-4,0))","v":""},{"$f":"IF(C1517=$X$4,\"Enter smelter details\",IF(ISERROR($V1517),\"\",OFFSET('Smelter Look-up'!$F$4,$V1517-4,0)))","v":""},{"$f":"IF(ISERROR($V1517),\"\",OFFSET('Smelter Look-up'!$G$4,$V1517-4,0))","v":""},{"$f":"IF(ISERROR($V1517),\"\",OFFSET('Smelter Look-up'!$H$4,$V1517-4,0))","v":""},{"$f":"IF(ISERROR($V1517),\"\",OFFSET('Smelter Look-up'!$I$4,$V1517-4,0))","v":""},{"$nulls":7},{"$f":"IF(ISERROR($V1517),\"\",OFFSET('Smelter Look-up'!$C$4,$V1517-4,0)&\"\")","v":""},"",{"$f":"IF(B1517=\"\",\"\",IF(ISERROR(MATCH($J1517,SorP!$B$1:$B$5661,0)),\"\",INDIRECT(\"'SorP'!$A$\"&MATCH($J1517,SorP!$B$1:$B$5661,0))))","v":""},null,{"$f":"IF(C1517=\"\",NA(),MATCH($B1517&$C1517,'Smelter Look-up'!$J:$J,0))","v":{"$error":"#N/A"}},null,0,null,null,null,""]
[null,{"$f":"IF(LEN(A1518)=0,\"\",INDEX('Smelter Look-up'!$A:$A,MATCH($A1518,'Smelter Look-up'!$E:$E,0)))","v":""},{"$f":"IF(LEN(A1518)=0,\"\",INDEX('Smelter Look-up'!$C:$C,MATCH($A1518,'Smelter Look-up'!$E:$E,0)))","v":""},null,{"$f":"IF(ISERROR($V1518),\"\",OFFSET('Smelter Look-up'!$D$4,$V1518-4,0)&\"\")","v":""},{"$f":"IF(ISERROR($V1518),\"\",OFFSET('Smelter Look-up'!$E$4,$V1518-4,0))","v":""},{"$f":"IF(C1518=$X$4,\"Enter smelter details\",IF(ISERROR($V1518),\"\",OFFSET('Smelter Look-up'!$F$4,$V1518-4,0)))","v":""},{"$f":"IF(ISERROR($V1518),\"\",OFFSET('Smelter Look-up'!$G$4,$V1518-4,0))","v":""},{"$f":"IF(ISERROR($V1518),\"\",OFFSET('Smelter Look-up'!$H$4,$V1518-4,0))","v":""},{"$f":"IF(ISERROR($V1518),\"\",OFFSET('Smelter Look-up'!$I$4,$V1518-4,0))","v":""},{"$nulls":7},{"$f":"IF(ISERROR($V1518),\"\",OFFSET('Smelter Look-up'!$C$4,$V1518-4,0)&\"\")","v":""},"",{"$f":"IF(B1518=\"\",\"\",IF(ISERROR(MATCH($J1518,SorP!$B$1:$B$5661,0)),\"\",INDIRECT(\"'SorP'!$A$\"&MATCH($J1518,SorP!$B$1:$B$5661,0))))","v":""},null,{"$f":"IF(C1518=\"\",NA(),MATCH($B1518&$C1518,'Smelter Look-up'!$J:$J,0))","v":{"$error":"#N/A"}},null,0,null,null,null,""]
[null,{"$f":"IF(LEN(A1519)=0,\"\",INDEX('Smelter Look-up'!$A:$A,MATCH($A1519,'Smelter Look-up'!$E:$E,0)))","v":""},{"$f":"IF(LEN(A1519)=0,\"\",INDEX('Smelter Look-up'!$C:$C,MATCH($A1519,'Smelter Look-up'!$E:$E,0)))","v":""},null,{"$f":"IF(ISERROR($V1519),\"\",OFFSET('Smelter Look-up'!$D$4,$V1519-4,0)&\"\")","v":""},{"$f":"IF(ISERROR($V1519),\"\",OFFSET('Smelter Look-up'!$E$4,$V1519-4,0))","v":""},{"$f":"IF(C1519=$X$4,\"Enter smelter details\",IF(ISERROR($V1519),\"\",OFFSET('Smelter Look-up'!$F$4,$V1519-4,0)))","v":""},{"$f":"IF(ISERROR($V1519),\"\",OFFSET('Smelter Look-up'!$G$4,$V1519-4,0))","v":""},{"$f":"IF(ISERROR($V1519),\"\",OFFSET('Smelter Look-up'!$H$4,$V1519-4,0))","v":""},{"$f":"IF(ISERROR($V1519),\"\",OFFSET('Smelter Look-up'!$I$4,$V1519-4,0))","v":""},{"$nulls":7},{"$f":"IF(ISERROR($V1519),\"\",OFFSET('Smelter Look-up'!$C$4,$V1519-4,0)&\"\")","v":""},"",{"$f":"IF(B1519=\"\",\"\",IF(ISERROR(MATCH($J1519,SorP!$B$1:$B$5661,0)),\"\",INDIRECT(\"'SorP'!$A$\"&MATCH($J1519,SorP!$B$1:$B$5661,0))))","v":""},null,{"$f":"IF(C1519=\"\",NA(),MATCH($B1519&$C1519,'Smelter Look-up'!$J:$J,0))","v":{"$error":"#N/A"}},null,0,null,null,null,""]
[null,{"$f":"IF(LEN(A1520)=0,\"\",INDEX('Smelter Look-up'!$A:$A,MATCH($A1520,'Smelter Look-up'!$E:$E,0)))","v":""},{"$f":"IF(LEN(A1520)=0,\"\",INDEX('Smelter Look-up'!$C:$C,MATCH($A1520,'Smelter Look-up'!$E:$E,0)))","v":""},null,{"$f":"IF(ISERROR($V1520),\"\",OFFSET('Smelter Look-up'!$D$4,$V1520-4,0)&\"\")","v":""},{"$f":"IF(ISERROR($V1520),\"\",OFFSET('Smelter Look-up'!$E$4,$V1520-4,0))","v":""},{"$f":"IF(C1520=$X$4,\"Enter smelter details\",IF(ISERROR($V1520),\"\",OFFSET('Smelter Look-up'!$F$4,$V1520-4,0)))","v":""},{"$f":"IF(ISERROR($V1520),\"\",OFFSET('Smelter Look-up'!$G$4,$V1520-4,0))","v":""},{"$f":"IF(ISERROR($V1520),\"\",OFFSET('Smelter Look-up'!$H$4,$V1520-4,0))","v":""},{"$f":"IF(ISERROR($V1520),\"\",OFFSET('Smelter Look-up'!$I$4,$V1520-4,0))","v":""},{"$nulls":7},{"$f":"IF(ISERROR($V1520),\"\",OFFSET('Smelter Look-up'!$C$4,$V1520-4,0)&\"\")","v":""},"",{"$f":"IF(B1520=\"\",\"\",IF(ISERROR(MATCH($J1520,SorP!$B$1:$B$5661,0)),\"\",INDIRECT(\"'SorP'!$A$\"&MATCH($J1520,SorP!$B$1:$B$5661,0))))","v":""},null,{"$f":"IF(C1520=\"\",NA(),MATCH($B1520&$C1520,'Smelter Look-up'!$J:$J,0))","v":{"$error":"#N/A"}},null,0,null,null,null,""]
[null,{"$f":"IF(LEN(A1521)=0,\"\",INDEX('Smelter Look-up'!$A:$A,MATCH($A1521,'Smelter Look-up'!$E:$E,0)))","v":""},{"$f":"IF(LEN(A1521)=0,\"\",INDEX('Smelter Look-up'!$C:$C,MATCH($A1521,'Smelter Look-up'!$E:$E,0)))","v":""},null,{"$f":"IF(ISERROR($V1521),\"\",OFFSET('Smelter Look-up'!$D$4,$V1521-4,0)&\"\")","v":""},{"$f":"IF(ISERROR($V1521),\"\",OFFSET('Smelter Look-up'!$E$4,$V1521-4,0))","v":""},{"$f":"IF(C1521=$X$4,\"Enter smelter details\",IF(ISERROR($V1521),\"\",OFFSET('Smelter Look-up'!$F$4,$V1521-4,0)))","v":""},{"$f":"IF(ISERROR($V1521),\"\",OFFSET('Smelter Look-up'!$G$4,$V1521-4,0))","v":""},{"$f":"IF(ISERROR($V1521),\"\",OFFSET('Smelter Look-up'!$H$4,$V1521-4,0))","v":""},{"$f":"IF(ISERROR($V1521),\"\",OFFSET('Smelter Look-up'!$I$4,$V1521-4,0))","v":""},{"$nulls":7},{"$f":"IF(ISERROR($V1521),\"\",OFFSET('Smelter Look-up'!$C$4,$V1521-4,0)&\"\")","v":""},"",{"$f":"IF(B1521=\"\",\"\",IF(ISERROR(MATCH($J1521,SorP!$B$1:$B$5661,0)),\"\",INDIRECT(\"'SorP'!$A$\"&MATCH($J1521,SorP!$B$1:$B$5661,0))))","v":""},null,{"$f":"IF(C1521=\"\",NA(),MATCH($B1521&$C1521,'Smelter Look-up'!$J:$J,0))","v":{"$error":"#N/A"}},null,0,null,null,null,""]
[null,{"$f":"IF(LEN(A1522)=0,\"\",INDEX('Smelter Look-up'!$A:$A,MATCH($A1522,'Smelter Look-up'!$E:$E,0)))","v":""},{"$f":"IF(LEN(A1522)=0,\"\",INDEX('Smelter Look-up'!$C:$C,MATCH($A1522,'Smelter Look-up'!$E:$E,0)))","v":""},null,{"$f":"IF(ISERROR($V1522),\"\",OFFSET('Smelter Look-up'!$D$4,$V1522-4,0)&\"\")","v":""},{"$f":"IF(ISERROR($V1522),\"\",OFFSET('Smelter Look-up'!$E$4,$V1522-4,0))","v":""},{"$f":"IF(C1522=$X$4,\"Enter smelter details\",IF(ISERROR($V1522),\"\",OFFSET('Smelter Look-up'!$F$4,$V1522-4,0)))","v":""},{"$f":"IF(ISERROR($V1522),\"\",OFFSET('Smelter Look-up'!$G$4,$V1522-4,0))","v":""},{"$f":"IF(ISERROR($V1522),\"\",OFFSET('Smelter Look-up'!$H$4,$V1522-4,0))","v":""},{"$f":"IF(ISERROR($V1522),\"\",OFFSET('Smelter Look-up'!$I$4,$V1522-4,0))","v":""},{"$nulls":7},{"$f":"IF(ISERROR($V1522),\"\",OFFSET('Smelter Look-up'!$C$4,$V1522-4,0)&\"\")","v":""},"",{"$f":"IF(B1522=\"\",\"\",IF(ISERROR(MATCH($J1522,SorP!$B$1:$B$5661,0)),\"\",INDIRECT(\"'SorP'!$A$\"&MATCH($J1522,SorP!$B$1:$B$5661,0))))","v":""},null,{"$f":"IF(C1522=\"\",NA(),MATCH($B1522&$C1522,'Smelter Look-up'!$J:$J,0))","v":{"$error":"#N/A"}},null,0,null,null,null,""]
[null,{"$f":"IF(LEN(A1523)=0,\"\",INDEX('Smelter Look-up'!$A:$A,MATCH($A1523,'Smelter Look-up'!$E:$E,0)))","v":""},{"$f":"IF(LEN(A1523)=0,\"\",INDEX('Smelter Look-up'!$C:$C,MATCH($A1523,'Smelter Look-up'!$E:$E,0)))","v":""},null,{"$f":"IF(ISERROR($V1523),\"\",OFFSET('Smelter Look-up'!$D$4,$V1523-4,0)&\"\")","v":""},{"$f":"IF(ISERROR($V1523),\"\",OFFSET('Smelter Look-up'!$E$4,$V1523-4,0))","v":""},{"$f":"IF(C1523=$X$4,\"Enter smelter details\",IF(ISERROR($V1523),\"\",OFFSET('Smelter Look-up'!$F$4,$V1523-4,0)))","v":""},{"$f":"IF(ISERROR($V1523),\"\",OFFSET('Smelter Look-up'!$G$4,$V1523-4,0))","v":""},{"$f":"IF(ISERROR($V1523),\"\",OFFSET('Smelter Look-up'!$H$4,$V1523-4,0))","v":""},{"$f":"IF(ISERROR($V1523),\"\",OFFSET('Smelter Look-up'!$I$4,$V1523-4,0))","v":""},{"$nulls":7},{"$f":"IF(ISERROR($V1523),\"\",OFFSET('Smelter Look-up'!$C$4,$V1523-4,0)&\"\")","v":""},"",{"$f":"IF(B1523=\"\",\"\",IF(ISERROR(MATCH($J1523,SorP!$B$1:$B$5661,0)),\"\",INDIRECT(\"'SorP'!$A$\"&MATCH($J1523,SorP!$B$1:$B$5661,0))))","v":""},null,{"$f":"IF(C1523=\"\",NA(),MATCH($B1523&$C1523,'Smelter Look-up'!$J:$J,0))","v":{"$error":"#N/A"}},null,0,null,null,null,""]
[null,{"$f":"IF(LEN(A1524)=0,\"\",INDEX('Smelter Look-up'!$A:$A,MATCH($A1524,'Smelter Look-up'!$E:$E,0)))","v":""},{"$f":"IF(LEN(A1524)=0,\"\",INDEX('Smelter Look-up'!$C:$C,MATCH($A1524,'Smelter Look-up'!$E:$E,0)))","v":""},null,{"$f":"IF(ISERROR($V1524),\"\",OFFSET('Smelter Look-up'!$D$4,$V1524-4,0)&\"\")","v":""},{"$f":"IF(ISERROR($V1524),\"\",OFFSET('Smelter Look-up'!$E$4,$V1524-4,0))","v":""},{"$f":"IF(C1524=$X$4,\"Enter smelter details\",IF(ISERROR($V1524),\"\",OFFSET('Smelter Look-up'!$F$4,$V1524-4,0)))","v":""},{"$f":"IF(ISERROR($V1524),\"\",OFFSET('Smelter Look-up'!$G$4,$V1524-4,0))","v":""},{"$f":"IF(ISERROR($V1524),\"\",OFFSET('Smelter Look-up'!$H$4,$V1524-4,0))","v":""},{"$f":"IF(ISERROR($V1524),\"\",OFFSET('Smelter Look-up'!$I$4,$V1524-4,0))","v":""},{"$nulls":7},{"$f":"IF(ISERROR($V1524),\"\",OFFSET('Smelter Look-up'!$C$4,$V1524-4,0)&\"\")","v":""},"",{"$f":"IF(B1524=\"\",\"\",IF(ISERROR(MATCH($J1524,SorP!$B$1:$B$5661,0)),\"\",INDIRECT(\"'SorP'!$A$\"&MATCH($J1524,SorP!$B$1:$B$5661,0))))","v":""},null,{"$f":"IF(C1524=\"\",NA(),MATCH($B1524&$C1524,'Smelter Look-up'!$J:$J,0))","v":{"$error":"#N/A"}},null,0,null,null,null,""]
[null,{"$f":"IF(LEN(A1525)=0,\"\",INDEX('Smelter Look-up'!$A:$A,MATCH($A1525,'Smelter Look-up'!$E:$E,0)))","v":""},{"$f":"IF(LEN(A1525)=0,\"\",INDEX('Smelter Look-up'!$C:$C,MATCH($A1525,'Smelter Look-up'!$E:$E,0)))","v":""},null,{"$f":"IF(ISERROR($V1525),\"\",OFFSET('Smelter Look-up'!$D$4,$V1525-4,0)&\"\")","v":""},{"$f":"IF(ISERROR($V1525),\"\",OFFSET('Smelter Look-up'!$E$4,$V1525-4,0))","v":""},{"$f":"IF(C1525=$X$4,\"Enter smelter details\",IF(ISERROR($V1525),\"\",OFFSET('Smelter Look-up'!$F$4,$V1525-4,0)))","v":""},{"$f":"IF(ISERROR($V1525),\"\",OFFSET('Smelter Look-up'!$G$4,$V1525-4,0))","v":""},{"$f":"IF(ISERROR($V1525),\"\",OFFSET('Smelter Look-up'!$H$4,$V1525-4,0))","v":""},{"$f":"IF(ISERROR($V1525),\"\",OFFSET('Smelter Look-up'!$I$4,$V1525-4,0))","v":""},{"$nulls":7},{"$f":"IF(ISERROR($V1525),\"\",OFFSET('Smelter Look-up'!$C$4,$V1525-4,0)&\"\")","v":""},"",{"$f":"IF(B1525=\"\",\"\",IF(ISERROR(MATCH($J1525,SorP!$B$1:$B$5661,0)),\"\",INDIRECT(\"'SorP'!$A$\"&MATCH($J1525,SorP!$B$1:$B$5661,0))))","v":""},null,{"$f":"IF(C1525=\"\",NA(),MATCH($B1525&$C1525,'Smelter Look-up'!$J:$J,0))","v":{"$error":"#N/A"}},null,0,null,null,null,""]
[null,{"$f":"IF(LEN(A1526)=0,\"\",INDEX('Smelter Look-up'!$A:$A,MATCH($A1526,'Smelter Look-up'!$E:$E,0)))","v":""},{"$f":"IF(LEN(A1526)=0,\"\",INDEX('Smelter Look-up'!$C:$C,MATCH($A1526,'Smelter Look-up'!$E:$E,0)))","v":""},null,{"$f":"IF(ISERROR($V1526),\"\",OFFSET('Smelter Look-up'!$D$4,$V1526-4,0)&\"\")","v":""},{"$f":"IF(ISERROR($V1526),\"\",OFFSET('Smelter Look-up'!$E$4,$V1526-4,0))","v":""},{"$f":"IF(C1526=$X$4,\"Enter smelter details\",IF(ISERROR($V1526),\"\",OFFSET('Smelter Look-up'!$F$4,$V1526-4,0)))","v":""},{"$f":"IF(ISERROR($V1526),\"\",OFFSET('Smelter Look-up'!$G$4,$V1526-4,0))","v":""},{"$f":"IF(ISERROR($V1526),\"\",OFFSET('Smelter Look-up'!$H$4,$V1526-4,0))","v":""},{"$f":"IF(ISERROR($V1526),\"\",OFFSET('Smelter Look-up'!$I$4,$V1526-4,0))","v":""},{"$nulls":7},{"$f":"IF(ISERROR($V1526),\"\",OFFSET('Smelter Look-up'!$C$4,$V1526-4,0)&\"\")","v":""},"",{"$f":"IF(B1526=\"\",\"\",IF(ISERROR(MATCH($J1526,SorP!$B$1:$B$5661,0)),\"\",INDIRECT(\"'SorP'!$A$\"&MATCH($J1526,SorP!$B$1:$B$5661,0))))","v":""},null,{"$f":"IF(C1526=\"\",NA(),MATCH($B1526&$C1526,'Smelter Look-up'!$J:$J,0))","v":{"$error":"#N/A"}},null,0,null,null,null,""]
[null,{"$f":"IF(LEN(A1527)=0,\"\",INDEX('Smelter Look-up'!$A:$A,MATCH($A1527,'Smelter Look-up'!$E:$E,0)))","v":""},{"$f":"IF(LEN(A1527)=0,\"\",INDEX('Smelter Look-up'!$C:$C,MATCH($A1527,'Smelter Look-up'!$E:$E,0)))","v":""},null,{"$f":"IF(ISERROR($V1527),\"\",OFFSET('Smelter Look-up'!$D$4,$V1527-4,0)&\"\")","v":""},{"$f":"IF(ISERROR($V1527),\"\",OFFSET('Smelter Look-up'!$E$4,$V1527-4,0))","v":""},{"$f":"IF(C1527=$X$4,\"Enter smelter details\",IF(ISERROR($V1527),\"\",OFFSET('Smelter Look-up'!$F$4,$V1527-4,0)))","v":""},{"$f":"IF(ISERROR($V1527),\"\",OFFSET('Smelter Look-up'!$G$4,$V1527-4,0))","v":""},{"$f":"IF(ISERROR($V1527),\"\",OFFSET('Smelter Look-up'!$H$4,$V1527-4,0))","v":""},{"$f":"IF(ISERROR($V1527),\"\",OFFSET('Smelter Look-up'!$I$4,$V1527-4,0))","v":""},{"$nulls":7},{"$f":"IF(ISERROR($V1527),\"\",OFFSET('Smelter Look-up'!$C$4,$V1527-4,0)&\"\")","v":""},"",{"$f":"IF(B1527=\"\",\"\",IF(ISERROR(MATCH($J1527,SorP!$B$1:$B$5661,0)),\"\",INDIRECT(\"'SorP'!$A$\"&MATCH($J1527,SorP!$B$1:$B$5661,0))))","v":""},null,{"$f":"IF(C1527=\"\",NA(),MATCH($B1527&$C1527,'Smelter Look-up'!$J:$J,0))","v":{"$error":"#N/A"}},null,0,null,null,null,""]
[null,{"$f":"IF(LEN(A1528)=0,\"\",INDEX('Smelter Look-up'!$A:$A,MATCH($A1528,'Smelter Look-up'!$E:$E,0)))","v":""},{"$f":"IF(LEN(A1528)=0,\"\",INDEX('Smelter Look-up'!$C:$C,MATCH($A1528,'Smelter Look-up'!$E:$E,0)))","v":""},null,{"$f":"IF(ISERROR($V1528),\"\",OFFSET('Smelter Look-up'!$D$4,$V1528-4,0)&\"\")","v":""},{"$f":"IF(ISERROR($V1528),\"\",OFFSET('Smelter Look-up'!$E$4,$V1528-4,0))","v":""},{"$f":"IF(C1528=$X$4,\"Enter smelter details\",IF(ISERROR($V1528),\"\",OFFSET('Smelter Look-up'!$F$4,$V1528-4,0)))","v":""},{"$f":"IF(ISERROR($V1528),\"\",OFFSET('Smelter Look-up'!$G$4,$V1528-4,0))","v":""},{"$f":"IF(ISERROR($V1528),\"\",OFFSET('Smelter Look-up'!$H$4,$V1528-4,0))","v":""},{"$f":"IF(ISERROR($V1528),\"\",OFFSET('Smelter Look-up'!$I$4,$V1528-4,0))","v":""},{"$nulls":7},{"$f":"IF(ISERROR($V1528),\"\",OFFSET('Smelter Look-up'!$C$4,$V1528-4,0)&\"\")","v":""},"",{"$f":"IF(B1528=\"\",\"\",IF(ISERROR(MATCH($J1528,SorP!$B$1:$B$5661,0)),\"\",INDIRECT(\"'SorP'!$A$\"&MATCH($J1528,SorP!$B$1:$B$5661,0))))","v":""},null,{"$f":"IF(C1528=\"\",NA(),MATCH($B1528&$C1528,'Smelter Look-up'!$J:$J,0))","v":{"$error":"#N/A"}},null,0,null,null,null,""]
[null,{"$f":"IF(LEN(A1529)=0,\"\",INDEX('Smelter Look-up'!$A:$A,MATCH($A1529,'Smelter Look-up'!$E:$E,0)))","v":""},{"$f":"IF(LEN(A1529)=0,\"\",INDEX('Smelter Look-up'!$C:$C,MATCH($A1529,'Smelter Look-up'!$E:$E,0)))","v":""},null,{"$f":"IF(ISERROR($V1529),\"\",OFFSET('Smelter Look-up'!$D$4,$V1529-4,0)&\"\")","v":""},{"$f":"IF(ISERROR($V1529),\"\",OFFSET('Smelter Look-up'!$E$4,$V1529-4,0))","v":""},{"$f":"IF(C1529=$X$4,\"Enter smelter details\",IF(ISERROR($V1529),\"\",OFFSET('Smelter Look-up'!$F$4,$V1529-4,0)))","v":""},{"$f":"IF(ISERROR($V1529),\"\",OFFSET('Smelter Look-up'!$G$4,$V1529-4,0))","v":""},{"$f":"IF(ISERROR($V1529),\"\",OFFSET('Smelter Look-up'!$H$4,$V1529-4,0))","v":""},{"$f":"IF(ISERROR($V1529),\"\",OFFSET('Smelter Look-up'!$I$4,$V1529-4,0))","v":""},{"$nulls":7},{"$f":"IF(ISERROR($V1529),\"\",OFFSET('Smelter Look-up'!$C$4,$V1529-4,0)&\"\")","v":""},"",{"$f":"IF(B1529=\"\",\"\",IF(ISERROR(MATCH($J1529,SorP!$B$1:$B$5661,0)),\"\",INDIRECT(\"'SorP'!$A$\"&MATCH($J1529,SorP!$B$1:$B$5661,0))))","v":""},null,{"$f":"IF(C1529=\"\",NA(),MATCH($B1529&$C1529,'Smelter Look-up'!$J:$J,0))","v":{"$error":"#N/A"}},null,0,null,null,null,""]
[null,{"$f":"IF(LEN(A1530)=0,\"\",INDEX('Smelter Look-up'!$A:$A,MATCH($A1530,'Smelter Look-up'!$E:$E,0)))","v":""},{"$f":"IF(LEN(A1530)=0,\"\",INDEX('Smelter Look-up'!$C:$C,MATCH($A1530,'Smelter Look-up'!$E:$E,0)))","v":""},null,{"$f":"IF(ISERROR($V1530),\"\",OFFSET('Smelter Look-up'!$D$4,$V1530-4,0)&\"\")","v":""},{"$f":"IF(ISERROR($V1530),\"\",OFFSET('Smelter Look-up'!$E$4,$V1530-4,0))","v":""},{"$f":"IF(C1530=$X$4,\"Enter smelter details\",IF(ISERROR($V1530),\"\",OFFSET('Smelter Look-up'!$F$4,$V1530-4,0)))","v":""},{"$f":"IF(ISERROR($V1530),\"\",OFFSET('Smelter Look-up'!$G$4,$V1530-4,0))","v":""},{"$f":"IF(ISERROR($V1530),\"\",OFFSET('Smelter Look-up'!$H$4,$V1530-4,0))","v":""},{"$f":"IF(ISERROR($V1530),\"\",OFFSET('Smelter Look-up'!$I$4,$V1530-4,0))","v":""},{"$nulls":7},{"$f":"IF(ISERROR($V1530),\"\",OFFSET('Smelter Look-up'!$C$4,$V1530-4,0)&\"\")","v":""},"",{"$f":"IF(B1530=\"\",\"\",IF(ISERROR(MATCH($J1530,SorP!$B$1:$B$5661,0)),\"\",INDIRECT(\"'SorP'!$A$\"&MATCH($J1530,SorP!$B$1:$B$5661,0))))","v":""},null,{"$f":"IF(C1530=\"\",NA(),MATCH($B1530&$C1530,'Smelter Look-up'!$J:$J,0))","v":{"$error":"#N/A"}},null,0,null,null,null,""]
[null,{"$f":"IF(LEN(A1531)=0,\"\",INDEX('Smelter Look-up'!$A:$A,MATCH($A1531,'Smelter Look-up'!$E:$E,0)))","v":""},{"$f":"IF(LEN(A1531)=0,\"\",INDEX('Smelter Look-up'!$C:$C,MATCH($A1531,'Smelter Look-up'!$E:$E,0)))","v":""},null,{"$f":"IF(ISERROR($V1531),\"\",OFFSET('Smelter Look-up'!$D$4,$V1531-4,0)&\"\")","v":""},{"$f":"IF(ISERROR($V1531),\"\",OFFSET('Smelter Look-up'!$E$4,$V1531-4,0))","v":""},{"$f":"IF(C1531=$X$4,\"Enter smelter details\",IF(ISERROR($V1531),\"\",OFFSET('Smelter Look-up'!$F$4,$V1531-4,0)))","v":""},{"$f":"IF(ISERROR($V1531),\"\",OFFSET('Smelter Look-up'!$G$4,$V1531-4,0))","v":""},{"$f":"IF(ISERROR($V1531),\"\",OFFSET('Smelter Look-up'!$H$4,$V1531-4,0))","v":""},{"$f":"IF(ISERROR($V1531),\"\",OFFSET('Smelter Look-up'!$I$4,$V1531-4,0))","v":""},{"$nulls":7},{"$f":"IF(ISERROR($V1531),\"\",OFFSET('Smelter Look-up'!$C$4,$V1531-4,0)&\"\")","v":""},"",{"$f":"IF(B1531=\"\",\"\",IF(ISERROR(MATCH($J1531,SorP!$B$1:$B$5661,0)),\"\",INDIRECT(\"'SorP'!$A$\"&MATCH($J1531,SorP!$B$1:$B$5661,0))))","v":""},null,{"$f":"IF(C1531=\"\",NA(),MATCH($B1531&$C1531,'Smelter Look-up'!$J:$J,0))","v":{"$error":"#N/A"}},null,0,null,null,null,""]
[null,{"$f":"IF(LEN(A1532)=0,\"\",INDEX('Smelter Look-up'!$A:$A,MATCH($A1532,'Smelter Look-up'!$E:$E,0)))","v":""},{"$f":"IF(LEN(A1532)=0,\"\",INDEX('Smelter Look-up'!$C:$C,MATCH($A1532,'Smelter Look-up'!$E:$E,0)))","v":""},null,{"$f":"IF(ISERROR($V1532),\"\",OFFSET('Smelter Look-up'!$D$4,$V1532-4,0)&\"\")","v":""},{"$f":"IF(ISERROR($V1532),\"\",OFFSET('Smelter Look-up'!$E$4,$V1532-4,0))","v":""},{"$f":"IF(C1532=$X$4,\"Enter smelter details\",IF(ISERROR($V1532),\"\",OFFSET('Smelter Look-up'!$F$4,$V1532-4,0)))","v":""},{"$f":"IF(ISERROR($V1532),\"\",OFFSET('Smelter Look-up'!$G$4,$V1532-4,0))","v":""},{"$f":"IF(ISERROR($V1532),\"\",OFFSET('Smelter Look-up'!$H$4,$V1532-4,0))","v":""},{"$f":"IF(ISERROR($V1532),\"\",OFFSET('Smelter Look-up'!$I$4,$V1532-4,0))","v":""},{"$nulls":7},{"$f":"IF(ISERROR($V1532),\"\",OFFSET('Smelter Look-up'!$C$4,$V1532-4,0)&\"\")","v":""},"",{"$f":"IF(B1532=\"\",\"\",IF(ISERROR(MATCH($J1532,SorP!$B$1:$B$5661,0)),\"\",INDIRECT(\"'SorP'!$A$\"&MATCH($J1532,SorP!$B$1:$B$5661,0))))","v":""},null,{"$f":"IF(C1532=\"\",NA(),MATCH($B1532&$C1532,'Smelter Look-up'!$J:$J,0))","v":{"$error":"#N/A"}},null,0,null,null,null,""]
[null,{"$f":"IF(LEN(A1533)=0,\"\",INDEX('Smelter Look-up'!$A:$A,MATCH($A1533,'Smelter Look-up'!$E:$E,0)))","v":""},{"$f":"IF(LEN(A1533)=0,\"\",INDEX('Smelter Look-up'!$C:$C,MATCH($A1533,'Smelter Look-up'!$E:$E,0)))","v":""},null,{"$f":"IF(ISERROR($V1533),\"\",OFFSET('Smelter Look-up'!$D$4,$V1533-4,0)&\"\")","v":""},{"$f":"IF(ISERROR($V1533),\"\",OFFSET('Smelter Look-up'!$E$4,$V1533-4,0))","v":""},{"$f":"IF(C1533=$X$4,\"Enter smelter details\",IF(ISERROR($V1533),\"\",OFFSET('Smelter Look-up'!$F$4,$V1533-4,0)))","v":""},{"$f":"IF(ISERROR($V1533),\"\",OFFSET('Smelter Look-up'!$G$4,$V1533-4,0))","v":""},{"$f":"IF(ISERROR($V1533),\"\",OFFSET('Smelter Look-up'!$H$4,$V1533-4,0))","v":""},{"$f":"IF(ISERROR($V1533),\"\",OFFSET('Smelter Look-up'!$I$4,$V1533-4,0))","v":""},{"$nulls":7},{"$f":"IF(ISERROR($V1533),\"\",OFFSET('Smelter Look-up'!$C$4,$V1533-4,0)&\"\")","v":""},"",{"$f":"IF(B1533=\"\",\"\",IF(ISERROR(MATCH($J1533,SorP!$B$1:$B$5661,0)),\"\",INDIRECT(\"'SorP'!$A$\"&MATCH($J1533,SorP!$B$1:$B$5661,0))))","v":""},null,{"$f":"IF(C1533=\"\",NA(),MATCH($B1533&$C1533,'Smelter Look-up'!$J:$J,0))","v":{"$error":"#N/A"}},null,0,null,null,null,""]
[null,{"$f":"IF(LEN(A1534)=0,\"\",INDEX('Smelter Look-up'!$A:$A,MATCH($A1534,'Smelter Look-up'!$E:$E,0)))","v":""},{"$f":"IF(LEN(A1534)=0,\"\",INDEX('Smelter Look-up'!$C:$C,MATCH($A1534,'Smelter Look-up'!$E:$E,0)))","v":""},null,{"$f":"IF(ISERROR($V1534),\"\",OFFSET('Smelter Look-up'!$D$4,$V1534-4,0)&\"\")","v":""},{"$f":"IF(ISERROR($V1534),\"\",OFFSET('Smelter Look-up'!$E$4,$V1534-4,0))","v":""},{"$f":"IF(C1534=$X$4,\"Enter smelter details\",IF(ISERROR($V1534),\"\",OFFSET('Smelter Look-up'!$F$4,$V1534-4,0)))","v":""},{"$f":"IF(ISERROR($V1534),\"\",OFFSET('Smelter Look-up'!$G$4,$V1534-4,0))","v":""},{"$f":"IF(ISERROR($V1534),\"\",OFFSET('Smelter Look-up'!$H$4,$V1534-4,0))","v":""},{"$f":"IF(ISERROR($V1534),\"\",OFFSET('Smelter Look-up'!$I$4,$V1534-4,0))","v":""},{"$nulls":7},{"$f":"IF(ISERROR($V1534),\"\",OFFSET('Smelter Look-up'!$C$4,$V1534-4,0)&\"\")","v":""},"",{"$f":"IF(B1534=\"\",\"\",IF(ISERROR(MATCH($J1534,SorP!$B$1:$B$5661,0)),\"\",INDIRECT(\"'SorP'!$A$\"&MATCH($J1534,SorP!$B$1:$B$5661,0))))","v":""},null,{"$f":"IF(C1534=\"\",NA(),MATCH($B1534&$C1534,'Smelter Look-up'!$J:$J,0))","v":{"$error":"#N/A"}},null,0,null,null,null,""]
[null,{"$f":"IF(LEN(A1535)=0,\"\",INDEX('Smelter Look-up'!$A:$A,MATCH($A1535,'Smelter Look-up'!$E:$E,0)))","v":""},{"$f":"IF(LEN(A1535)=0,\"\",INDEX('Smelter Look-up'!$C:$C,MATCH($A1535,'Smelter Look-up'!$E:$E,0)))","v":""},null,{"$f":"IF(ISERROR($V1535),\"\",OFFSET('Smelter Look-up'!$D$4,$V1535-4,0)&\"\")","v":""},{"$f":"IF(ISERROR($V1535),\"\",OFFSET('Smelter Look-up'!$E$4,$V1535-4,0))","v":""},{"$f":"IF(C1535=$X$4,\"Enter smelter details\",IF(ISERROR($V1535),\"\",OFFSET('Smelter Look-up'!$F$4,$V1535-4,0)))","v":""},{"$f":"IF(ISERROR($V1535),\"\",OFFSET('Smelter Look-up'!$G$4,$V1535-4,0))","v":""},{"$f":"IF(ISERROR($V1535),\"\",OFFSET('Smelter Look-up'!$H$4,$V1535-4,0))","v":""},{"$f":"IF(ISERROR($V1535),\"\",OFFSET('Smelter Look-up'!$I$4,$V1535-4,0))","v":""},{"$nulls":7},{"$f":"IF(ISERROR($V1535),\"\",OFFSET('Smelter Look-up'!$C$4,$V1535-4,0)&\"\")","v":""},"",{"$f":"IF(B1535=\"\",\"\",IF(ISERROR(MATCH($J1535,SorP!$B$1:$B$5661,0)),\"\",INDIRECT(\"'SorP'!$A$\"&MATCH($J1535,SorP!$B$1:$B$5661,0))))","v":""},null,{"$f":"IF(C1535=\"\",NA(),MATCH($B1535&$C1535,'Smelter Look-up'!$J:$J,0))","v":{"$error":"#N/A"}},null,{"$f":"IF(AND(C1535=\"Smelter not listed\",OR(LEN(D1535)=0,LEN(E1535)=0)),1,0)","v":0},null,null,null,{"$f":"B1535&C1535","v":""}]
[null,{"$f":"IF(LEN(A1536)=0,\"\",INDEX('Smelter Look-up'!$A:$A,MATCH($A1536,'Smelter Look-up'!$E:$E,0)))","v":""},{"$f":"IF(LEN(A1536)=0,\"\",INDEX('Smelter Look-up'!$C:$C,MATCH($A1536,'Smelter Look-up'!$E:$E,0)))","v":""},null,{"$f":"IF(ISERROR($V1536),\"\",OFFSET('Smelter Look-up'!$D$4,$V1536-4,0)&\"\")","v":""},{"$f":"IF(ISERROR($V1536),\"\",OFFSET('Smelter Look-up'!$E$4,$V1536-4,0))","v":""},{"$f":"IF(C1536=$X$4,\"Enter smelter details\",IF(ISERROR($V1536),\"\",OFFSET('Smelter Look-up'!$F$4,$V1536-4,0)))","v":""},{"$f":"IF(ISERROR($V1536),\"\",OFFSET('Smelter Look-up'!$G$4,$V1536-4,0))","v":""},{"$f":"IF(ISERROR($V1536),\"\",OFFSET('Smelter Look-up'!$H$4,$V1536-4,0))","v":""},{"$f":"IF(ISERROR($V1536),\"\",OFFSET('Smelter Look-up'!$I$4,$V1536-4,0))","v":""},{"$nulls":7},{"$f":"IF(ISERROR($V1536),\"\",OFFSET('Smelter Look-up'!$C$4,$V1536-4,0)&\"\")","v":""},{"$f":"IF(B1536=\"\",\"\",IF(ISERROR(MATCH($E1536,CL,0)),\"Unknown\",INDIRECT(\"'C'!$A$\"&MATCH($E1536,CL,0)+1)))","v":""},{"$f":"IF(B1536=\"\",\"\",IF(ISERROR(MATCH($J1536,SorP!$B$1:$B$5661,0)),\"\",INDIRECT(\"'SorP'!$A$\"&MATCH($J1536,SorP!$B$1:$B$5661,0))))","v":""},null,{"$f":"IF(C1536=\"\",NA(),MATCH($B1536&$C1536,'Smelter Look-up'!$J:$J,0))","v":{"$error":"#N/A"}},null,0,null,null,null,""]
[null,{"$f":"IF(LEN(A1537)=0,\"\",INDEX('Smelter Look-up'!$A:$A,MATCH($A1537,'Smelter Look-up'!$E:$E,0)))","v":""},{"$f":"IF(LEN(A1537)=0,\"\",INDEX('Smelter Look-up'!$C:$C,MATCH($A1537,'Smelter Look-up'!$E:$E,0)))","v":""},null,{"$f":"IF(ISERROR($V1537),\"\",OFFSET('Smelter Look-up'!$D$4,$V1537-4,0)&\"\")","v":""},{"$f":"IF(ISERROR($V1537),\"\",OFFSET('Smelter Look-up'!$E$4,$V1537-4,0))","v":""},{"$f":"IF(C1537=$X$4,\"Enter smelter details\",IF(ISERROR($V1537),\"\",OFFSET('Smelter Look-up'!$F$4,$V1537-4,0)))","v":""},{"$f":"IF(ISERROR($V1537),\"\",OFFSET('Smelter Look-up'!$G$4,$V1537-4,0))","v":""},{"$f":"IF(ISERROR($V1537),\"\",OFFSET('Smelter Look-up'!$H$4,$V1537-4,0))","v":""},{"$f":"IF(ISERROR($V1537),\"\",OFFSET('Smelter Look-up'!$I$4,$V1537-4,0))","v":""},{"$nulls":7},{"$f":"IF(ISERROR($V1537),\"\",OFFSET('Smelter Look-up'!$C$4,$V1537-4,0)&\"\")","v":""},"",{"$f":"IF(B1537=\"\",\"\",IF(ISERROR(MATCH($J1537,SorP!$B$1:$B$5661,0)),\"\",INDIRECT(\"'SorP'!$A$\"&MATCH($J1537,SorP!$B$1:$B$5661,0))))","v":""},null,{"$f":"IF(C1537=\"\",NA(),MATCH($B1537&$C1537,'Smelter Look-up'!$J:$J,0))","v":{"$error":"#N/A"}},null,0,null,null,null,""]
[null,{"$f":"IF(LEN(A1538)=0,\"\",INDEX('Smelter Look-up'!$A:$A,MATCH($A1538,'Smelter Look-up'!$E:$E,0)))","v":""},{"$f":"IF(LEN(A1538)=0,\"\",INDEX('Smelter Look-up'!$C:$C,MATCH($A1538,'Smelter Look-up'!$E:$E,0)))","v":""},null,{"$f":"IF(ISERROR($V1538),\"\",OFFSET('Smelter Look-up'!$D$4,$V1538-4,0)&\"\")","v":""},{"$f":"IF(ISERROR($V1538),\"\",OFFSET('Smelter Look-up'!$E$4,$V1538-4,0))","v":""},{"$f":"IF(C1538=$X$4,\"Enter smelter details\",IF(ISERROR($V1538),\"\",OFFSET('Smelter Look-up'!$F$4,$V1538-4,0)))","v":""},{"$f":"IF(ISERROR($V1538),\"\",OFFSET('Smelter Look-up'!$G$4,$V1538-4,0))","v":""},{"$f":"IF(ISERROR($V1538),\"\",OFFSET('Smelter Look-up'!$H$4,$V1538-4,0))","v":""},{"$f":"IF(ISERROR($V1538),\"\",OFFSET('Smelter Look-up'!$I$4,$V1538-4,0))","v":""},{"$nulls":7},{"$f":"IF(ISERROR($V1538),\"\",OFFSET('Smelter Look-up'!$C$4,$V1538-4,0)&\"\")","v":""},"",{"$f":"IF(B1538=\"\",\"\",IF(ISERROR(MATCH($J1538,SorP!$B$1:$B$5661,0)),\"\",INDIRECT(\"'SorP'!$A$\"&MATCH($J1538,SorP!$B$1:$B$5661,0))))","v":""},null,{"$f":"IF(C1538=\"\",NA(),MATCH($B1538&$C1538,'Smelter Look-up'!$J:$J,0))","v":{"$error":"#N/A"}},null,0,null,null,null,""]
[null,{"$f":"IF(LEN(A1539)=0,\"\",INDEX('Smelter Look-up'!$A:$A,MATCH($A1539,'Smelter Look-up'!$E:$E,0)))","v":""},{"$f":"IF(LEN(A1539)=0,\"\",INDEX('Smelter Look-up'!$C:$C,MATCH($A1539,'Smelter Look-up'!$E:$E,0)))","v":""},null,{"$f":"IF(ISERROR($V1539),\"\",OFFSET('Smelter Look-up'!$D$4,$V1539-4,0)&\"\")","v":""},{"$f":"IF(ISERROR($V1539),\"\",OFFSET('Smelter Look-up'!$E$4,$V1539-4,0))","v":""},{"$f":"IF(C1539=$X$4,\"Enter smelter details\",IF(ISERROR($V1539),\"\",OFFSET('Smelter Look-up'!$F$4,$V1539-4,0)))","v":""},{"$f":"IF(ISERROR($V1539),\"\",OFFSET('Smelter Look-up'!$G$4,$V1539-4,0))","v":""},{"$f":"IF(ISERROR($V1539),\"\",OFFSET('Smelter Look-up'!$H$4,$V1539-4,0))","v":""},{"$f":"IF(ISERROR($V1539),\"\",OFFSET('Smelter Look-up'!$I$4,$V1539-4,0))","v":""},{"$nulls":7},{"$f":"IF(ISERROR($V1539),\"\",OFFSET('Smelter Look-up'!$C$4,$V1539-4,0)&\"\")","v":""},"",{"$f":"IF(B1539=\"\",\"\",IF(ISERROR(MATCH($J1539,SorP!$B$1:$B$5661,0)),\"\",INDIRECT(\"'SorP'!$A$\"&MATCH($J1539,SorP!$B$1:$B$5661,0))))","v":""},null,{"$f":"IF(C1539=\"\",NA(),MATCH($B1539&$C1539,'Smelter Look-up'!$J:$J,0))","v":{"$error":"#N/A"}},null,0,null,null,null,""]
[null,{"$f":"IF(LEN(A1540)=0,\"\",INDEX('Smelter Look-up'!$A:$A,MATCH($A1540,'Smelter Look-up'!$E:$E,0)))","v":""},{"$f":"IF(LEN(A1540)=0,\"\",INDEX('Smelter Look-up'!$C:$C,MATCH($A1540,'Smelter Look-up'!$E:$E,0)))","v":""},null,{"$f":"IF(ISERROR($V1540),\"\",OFFSET('Smelter Look-up'!$D$4,$V1540-4,0)&\"\")","v":""},{"$f":"IF(ISERROR($V1540),\"\",OFFSET('Smelter Look-up'!$E$4,$V1540-4,0))","v":""},{"$f":"IF(C1540=$X$4,\"Enter smelter details\",IF(ISERROR($V1540),\"\",OFFSET('Smelter Look-up'!$F$4,$V1540-4,0)))","v":""},{"$f":"IF(ISERROR($V1540),\"\",OFFSET('Smelter Look-up'!$G$4,$V1540-4,0))","v":""},{"$f":"IF(ISERROR($V1540),\"\",OFFSET('Smelter Look-up'!$H$4,$V1540-4,0))","v":""},{"$f":"IF(ISERROR($V1540),\"\",OFFSET('Smelter Look-up'!$I$4,$V1540-4,0))","v":""},{"$nulls":7},{"$f":"IF(ISERROR($V1540),\"\",OFFSET('Smelter Look-up'!$C$4,$V1540-4,0)&\"\")","v":""},"",{"$f":"IF(B1540=\"\",\"\",IF(ISERROR(MATCH($J1540,SorP!$B$1:$B$5661,0)),\"\",INDIRECT(\"'SorP'!$A$\"&MATCH($J1540,SorP!$B$1:$B$5661,0))))","v":""},null,{"$f":"IF(C1540=\"\",NA(),MATCH($B1540&$C1540,'Smelter Look-up'!$J:$J,0))","v":{"$error":"#N/A"}},null,0,null,null,null,""]
[null,{"$f":"IF(LEN(A1541)=0,\"\",INDEX('Smelter Look-up'!$A:$A,MATCH($A1541,'Smelter Look-up'!$E:$E,0)))","v":""},{"$f":"IF(LEN(A1541)=0,\"\",INDEX('Smelter Look-up'!$C:$C,MATCH($A1541,'Smelter Look-up'!$E:$E,0)))","v":""},null,{"$f":"IF(ISERROR($V1541),\"\",OFFSET('Smelter Look-up'!$D$4,$V1541-4,0)&\"\")","v":""},{"$f":"IF(ISERROR($V1541),\"\",OFFSET('Smelter Look-up'!$E$4,$V1541-4,0))","v":""},{"$f":"IF(C1541=$X$4,\"Enter smelter details\",IF(ISERROR($V1541),\"\",OFFSET('Smelter Look-up'!$F$4,$V1541-4,0)))","v":""},{"$f":"IF(ISERROR($V1541),\"\",OFFSET('Smelter Look-up'!$G$4,$V1541-4,0))","v":""},{"$f":"IF(ISERROR($V1541),\"\",OFFSET('Smelter Look-up'!$H$4,$V1541-4,0))","v":""},{"$f":"IF(ISERROR($V1541),\"\",OFFSET('Smelter Look-up'!$I$4,$V1541-4,0))","v":""},{"$nulls":7},{"$f":"IF(ISERROR($V1541),\"\",OFFSET('Smelter Look-up'!$C$4,$V1541-4,0)&\"\")","v":""},"",{"$f":"IF(B1541=\"\",\"\",IF(ISERROR(MATCH($J1541,SorP!$B$1:$B$5661,0)),\"\",INDIRECT(\"'SorP'!$A$\"&MATCH($J1541,SorP!$B$1:$B$5661,0))))","v":""},null,{"$f":"IF(C1541=\"\",NA(),MATCH($B1541&$C1541,'Smelter Look-up'!$J:$J,0))","v":{"$error":"#N/A"}},null,0,null,null,null,""]
[null,{"$f":"IF(LEN(A1542)=0,\"\",INDEX('Smelter Look-up'!$A:$A,MATCH($A1542,'Smelter Look-up'!$E:$E,0)))","v":""},{"$f":"IF(LEN(A1542)=0,\"\",INDEX('Smelter Look-up'!$C:$C,MATCH($A1542,'Smelter Look-up'!$E:$E,0)))","v":""},null,{"$f":"IF(ISERROR($V1542),\"\",OFFSET('Smelter Look-up'!$D$4,$V1542-4,0)&\"\")","v":""},{"$f":"IF(ISERROR($V1542),\"\",OFFSET('Smelter Look-up'!$E$4,$V1542-4,0))","v":""},{"$f":"IF(C1542=$X$4,\"Enter smelter details\",IF(ISERROR($V1542),\"\",OFFSET('Smelter Look-up'!$F$4,$V1542-4,0)))","v":""},{"$f":"IF(ISERROR($V1542),\"\",OFFSET('Smelter Look-up'!$G$4,$V1542-4,0))","v":""},{"$f":"IF(ISERROR($V1542),\"\",OFFSET('Smelter Look-up'!$H$4,$V1542-4,0))","v":""},{"$f":"IF(ISERROR($V1542),\"\",OFFSET('Smelter Look-up'!$I$4,$V1542-4,0))","v":""},{"$nulls":7},{"$f":"IF(ISERROR($V1542),\"\",OFFSET('Smelter Look-up'!$C$4,$V1542-4,0)&\"\")","v":""},"",{"$f":"IF(B1542=\"\",\"\",IF(ISERROR(MATCH($J1542,SorP!$B$1:$B$5661,0)),\"\",INDIRECT(\"'SorP'!$A$\"&MATCH($J1542,SorP!$B$1:$B$5661,0))))","v":""},null,{"$f":"IF(C1542=\"\",NA(),MATCH($B1542&$C1542,'Smelter Look-up'!$J:$J,0))","v":{"$error":"#N/A"}},null,0,null,null,null,""]
[null,{"$f":"IF(LEN(A1543)=0,\"\",INDEX('Smelter Look-up'!$A:$A,MATCH($A1543,'Smelter Look-up'!$E:$E,0)))","v":""},{"$f":"IF(LEN(A1543)=0,\"\",INDEX('Smelter Look-up'!$C:$C,MATCH($A1543,'Smelter Look-up'!$E:$E,0)))","v":""},null,{"$f":"IF(ISERROR($V1543),\"\",OFFSET('Smelter Look-up'!$D$4,$V1543-4,0)&\"\")","v":""},{"$f":"IF(ISERROR($V1543),\"\",OFFSET('Smelter Look-up'!$E$4,$V1543-4,0))","v":""},{"$f":"IF(C1543=$X$4,\"Enter smelter details\",IF(ISERROR($V1543),\"\",OFFSET('Smelter Look-up'!$F$4,$V1543-4,0)))","v":""},{"$f":"IF(ISERROR($V1543),\"\",OFFSET('Smelter Look-up'!$G$4,$V1543-4,0))","v":""},{"$f":"IF(ISERROR($V1543),\"\",OFFSET('Smelter Look-up'!$H$4,$V1543-4,0))","v":""},{"$f":"IF(ISERROR($V1543),\"\",OFFSET('Smelter Look-up'!$I$4,$V1543-4,0))","v":""},{"$nulls":7},{"$f":"IF(ISERROR($V1543),\"\",OFFSET('Smelter Look-up'!$C$4,$V1543-4,0)&\"\")","v":""},"",{"$f":"IF(B1543=\"\",\"\",IF(ISERROR(MATCH($J1543,SorP!$B$1:$B$5661,0)),\"\",INDIRECT(\"'SorP'!$A$\"&MATCH($J1543,SorP!$B$1:$B$5661,0))))","v":""},null,{"$f":"IF(C1543=\"\",NA(),MATCH($B1543&$C1543,'Smelter Look-up'!$J:$J,0))","v":{"$error":"#N/A"}},null,0,null,null,null,""]
[null,{"$f":"IF(LEN(A1544)=0,\"\",INDEX('Smelter Look-up'!$A:$A,MATCH($A1544,'Smelter Look-up'!$E:$E,0)))","v":""},{"$f":"IF(LEN(A1544)=0,\"\",INDEX('Smelter Look-up'!$C:$C,MATCH($A1544,'Smelter Look-up'!$E:$E,0)))","v":""},null,{"$f":"IF(ISERROR($V1544),\"\",OFFSET('Smelter Look-up'!$D$4,$V1544-4,0)&\"\")","v":""},{"$f":"IF(ISERROR($V1544),\"\",OFFSET('Smelter Look-up'!$E$4,$V1544-4,0))","v":""},{"$f":"IF(C1544=$X$4,\"Enter smelter details\",IF(ISERROR($V1544),\"\",OFFSET('Smelter Look-up'!$F$4,$V1544-4,0)))","v":""},{"$f":"IF(ISERROR($V1544),\"\",OFFSET('Smelter Look-up'!$G$4,$V1544-4,0))","v":""},{"$f":"IF(ISERROR($V1544),\"\",OFFSET('Smelter Look-up'!$H$4,$V1544-4,0))","v":""},{"$f":"IF(ISERROR($V1544),\"\",OFFSET('Smelter Look-up'!$I$4,$V1544-4,0))","v":""},{"$nulls":7},{"$f":"IF(ISERROR($V1544),\"\",OFFSET('Smelter Look-up'!$C$4,$V1544-4,0)&\"\")","v":""},"",{"$f":"IF(B1544=\"\",\"\",IF(ISERROR(MATCH($J1544,SorP!$B$1:$B$5661,0)),\"\",INDIRECT(\"'SorP'!$A$\"&MATCH($J1544,SorP!$B$1:$B$5661,0))))","v":""},null,{"$f":"IF(C1544=\"\",NA(),MATCH($B1544&$C1544,'Smelter Look-up'!$J:$J,0))","v":{"$error":"#N/A"}},null,0,null,null,null,""]
[null,{"$f":"IF(LEN(A1545)=0,\"\",INDEX('Smelter Look-up'!$A:$A,MATCH($A1545,'Smelter Look-up'!$E:$E,0)))","v":""},{"$f":"IF(LEN(A1545)=0,\"\",INDEX('Smelter Look-up'!$C:$C,MATCH($A1545,'Smelter Look-up'!$E:$E,0)))","v":""},null,{"$f":"IF(ISERROR($V1545),\"\",OFFSET('Smelter Look-up'!$D$4,$V1545-4,0)&\"\")","v":""},{"$f":"IF(ISERROR($V1545),\"\",OFFSET('Smelter Look-up'!$E$4,$V1545-4,0))","v":""},{"$f":"IF(C1545=$X$4,\"Enter smelter details\",IF(ISERROR($V1545),\"\",OFFSET('Smelter Look-up'!$F$4,$V1545-4,0)))","v":""},{"$f":"IF(ISERROR($V1545),\"\",OFFSET('Smelter Look-up'!$G$4,$V1545-4,0))","v":""},{"$f":"IF(ISERROR($V1545),\"\",OFFSET('Smelter Look-up'!$H$4,$V1545-4,0))","v":""},{"$f":"IF(ISERROR($V1545),\"\",OFFSET('Smelter Look-up'!$I$4,$V1545-4,0))","v":""},{"$nulls":7},{"$f":"IF(ISERROR($V1545),\"\",OFFSET('Smelter Look-up'!$C$4,$V1545-4,0)&\"\")","v":""},"",{"$f":"IF(B1545=\"\",\"\",IF(ISERROR(MATCH($J1545,SorP!$B$1:$B$5661,0)),\"\",INDIRECT(\"'SorP'!$A$\"&MATCH($J1545,SorP!$B$1:$B$5661,0))))","v":""},null,{"$f":"IF(C1545=\"\",NA(),MATCH($B1545&$C1545,'Smelter Look-up'!$J:$J,0))","v":{"$error":"#N/A"}},null,0,null,null,null,""]
[null,{"$f":"IF(LEN(A1546)=0,\"\",INDEX('Smelter Look-up'!$A:$A,MATCH($A1546,'Smelter Look-up'!$E:$E,0)))","v":""},{"$f":"IF(LEN(A1546)=0,\"\",INDEX('Smelter Look-up'!$C:$C,MATCH($A1546,'Smelter Look-up'!$E:$E,0)))","v":""},null,{"$f":"IF(ISERROR($V1546),\"\",OFFSET('Smelter Look-up'!$D$4,$V1546-4,0)&\"\")","v":""},{"$f":"IF(ISERROR($V1546),\"\",OFFSET('Smelter Look-up'!$E$4,$V1546-4,0))","v":""},{"$f":"IF(C1546=$X$4,\"Enter smelter details\",IF(ISERROR($V1546),\"\",OFFSET('Smelter Look-up'!$F$4,$V1546-4,0)))","v":""},{"$f":"IF(ISERROR($V1546),\"\",OFFSET('Smelter Look-up'!$G$4,$V1546-4,0))","v":""},{"$f":"IF(ISERROR($V1546),\"\",OFFSET('Smelter Look-up'!$H$4,$V1546-4,0))","v":""},{"$f":"IF(ISERROR($V1546),\"\",OFFSET('Smelter Look-up'!$I$4,$V1546-4,0))","v":""},{"$nulls":7},{"$f":"IF(ISERROR($V1546),\"\",OFFSET('Smelter Look-up'!$C$4,$V1546-4,0)&\"\")","v":""},"",{"$f":"IF(B1546=\"\",\"\",IF(ISERROR(MATCH($J1546,SorP!$B$1:$B$5661,0)),\"\",INDIRECT(\"'SorP'!$A$\"&MATCH($J1546,SorP!$B$1:$B$5661,0))))","v":""},null,{"$f":"IF(C1546=\"\",NA(),MATCH($B1546&$C1546,'Smelter Look-up'!$J:$J,0))","v":{"$error":"#N/A"}},null,0,null,null,null,""]
[null,{"$f":"IF(LEN(A1547)=0,\"\",INDEX('Smelter Look-up'!$A:$A,MATCH($A1547,'Smelter Look-up'!$E:$E,0)))","v":""},{"$f":"IF(LEN(A1547)=0,\"\",INDEX('Smelter Look-up'!$C:$C,MATCH($A1547,'Smelter Look-up'!$E:$E,0)))","v":""},null,{"$f":"IF(ISERROR($V1547),\"\",OFFSET('Smelter Look-up'!$D$4,$V1547-4,0)&\"\")","v":""},{"$f":"IF(ISERROR($V1547),\"\",OFFSET('Smelter Look-up'!$E$4,$V1547-4,0))","v":""},{"$f":"IF(C1547=$X$4,\"Enter smelter details\",IF(ISERROR($V1547),\"\",OFFSET('Smelter Look-up'!$F$4,$V1547-4,0)))","v":""},{"$f":"IF(ISERROR($V1547),\"\",OFFSET('Smelter Look-up'!$G$4,$V1547-4,0))","v":""},{"$f":"IF(ISERROR($V1547),\"\",OFFSET('Smelter Look-up'!$H$4,$V1547-4,0))","v":""},{"$f":"IF(ISERROR($V1547),\"\",OFFSET('Smelter Look-up'!$I$4,$V1547-4,0))","v":""},{"$nulls":7},{"$f":"IF(ISERROR($V1547),\"\",OFFSET('Smelter Look-up'!$C$4,$V1547-4,0)&\"\")","v":""},"",{"$f":"IF(B1547=\"\",\"\",IF(ISERROR(MATCH($J1547,SorP!$B$1:$B$5661,0)),\"\",INDIRECT(\"'SorP'!$A$\"&MATCH($J1547,SorP!$B$1:$B$5661,0))))","v":""},null,{"$f":"IF(C1547=\"\",NA(),MATCH($B1547&$C1547,'Smelter Look-up'!$J:$J,0))","v":{"$error":"#N/A"}},null,0,null,null,null,""]
[null,{"$f":"IF(LEN(A1548)=0,\"\",INDEX('Smelter Look-up'!$A:$A,MATCH($A1548,'Smelter Look-up'!$E:$E,0)))","v":""},{"$f":"IF(LEN(A1548)=0,\"\",INDEX('Smelter Look-up'!$C:$C,MATCH($A1548,'Smelter Look-up'!$E:$E,0)))","v":""},null,{"$f":"IF(ISERROR($V1548),\"\",OFFSET('Smelter Look-up'!$D$4,$V1548-4,0)&\"\")","v":""},{"$f":"IF(ISERROR($V1548),\"\",OFFSET('Smelter Look-up'!$E$4,$V1548-4,0))","v":""},{"$f":"IF(C1548=$X$4,\"Enter smelter details\",IF(ISERROR($V1548),\"\",OFFSET('Smelter Look-up'!$F$4,$V1548-4,0)))","v":""},{"$f":"IF(ISERROR($V1548),\"\",OFFSET('Smelter Look-up'!$G$4,$V1548-4,0))","v":""},{"$f":"IF(ISERROR($V1548),\"\",OFFSET('Smelter Look-up'!$H$4,$V1548-4,0))","v":""},{"$f":"IF(ISERROR($V1548),\"\",OFFSET('Smelter Look-up'!$I$4,$V1548-4,0))","v":""},{"$nulls":7},{"$f":"IF(ISERROR($V1548),\"\",OFFSET('Smelter Look-up'!$C$4,$V1548-4,0)&\"\")","v":""},"",{"$f":"IF(B1548=\"\",\"\",IF(ISERROR(MATCH($J1548,SorP!$B$1:$B$5661,0)),\"\",INDIRECT(\"'SorP'!$A$\"&MATCH($J1548,SorP!$B$1:$B$5661,0))))","v":""},null,{"$f":"IF(C1548=\"\",NA(),MATCH($B1548&$C1548,'Smelter Look-up'!$J:$J,0))","v":{"$error":"#N/A"}},null,0,null,null,null,""]
[null,{"$f":"IF(LEN(A1549)=0,\"\",INDEX('Smelter Look-up'!$A:$A,MATCH($A1549,'Smelter Look-up'!$E:$E,0)))","v":""},{"$f":"IF(LEN(A1549)=0,\"\",INDEX('Smelter Look-up'!$C:$C,MATCH($A1549,'Smelter Look-up'!$E:$E,0)))","v":""},null,{"$f":"IF(ISERROR($V1549),\"\",OFFSET('Smelter Look-up'!$D$4,$V1549-4,0)&\"\")","v":""},{"$f":"IF(ISERROR($V1549),\"\",OFFSET('Smelter Look-up'!$E$4,$V1549-4,0))","v":""},{"$f":"IF(C1549=$X$4,\"Enter smelter details\",IF(ISERROR($V1549),\"\",OFFSET('Smelter Look-up'!$F$4,$V1549-4,0)))","v":""},{"$f":"IF(ISERROR($V1549),\"\",OFFSET('Smelter Look-up'!$G$4,$V1549-4,0))","v":""},{"$f":"IF(ISERROR($V1549),\"\",OFFSET('Smelter Look-up'!$H$4,$V1549-4,0))","v":""},{"$f":"IF(ISERROR($V1549),\"\",OFFSET('Smelter Look-up'!$I$4,$V1549-4,0))","v":""},{"$nulls":7},{"$f":"IF(ISERROR($V1549),\"\",OFFSET('Smelter Look-up'!$C$4,$V1549-4,0)&\"\")","v":""},"",{"$f":"IF(B1549=\"\",\"\",IF(ISERROR(MATCH($J1549,SorP!$B$1:$B$5661,0)),\"\",INDIRECT(\"'SorP'!$A$\"&MATCH($J1549,SorP!$B$1:$B$5661,0))))","v":""},null,{"$f":"IF(C1549=\"\",NA(),MATCH($B1549&$C1549,'Smelter Look-up'!$J:$J,0))","v":{"$error":"#N/A"}},null,0,null,null,null,""]
[null,{"$f":"IF(LEN(A1550)=0,\"\",INDEX('Smelter Look-up'!$A:$A,MATCH($A1550,'Smelter Look-up'!$E:$E,0)))","v":""},{"$f":"IF(LEN(A1550)=0,\"\",INDEX('Smelter Look-up'!$C:$C,MATCH($A1550,'Smelter Look-up'!$E:$E,0)))","v":""},null,{"$f":"IF(ISERROR($V1550),\"\",OFFSET('Smelter Look-up'!$D$4,$V1550-4,0)&\"\")","v":""},{"$f":"IF(ISERROR($V1550),\"\",OFFSET('Smelter Look-up'!$E$4,$V1550-4,0))","v":""},{"$f":"IF(C1550=$X$4,\"Enter smelter details\",IF(ISERROR($V1550),\"\",OFFSET('Smelter Look-up'!$F$4,$V1550-4,0)))","v":""},{"$f":"IF(ISERROR($V1550),\"\",OFFSET('Smelter Look-up'!$G$4,$V1550-4,0))","v":""},{"$f":"IF(ISERROR($V1550),\"\",OFFSET('Smelter Look-up'!$H$4,$V1550-4,0))","v":""},{"$f":"IF(ISERROR($V1550),\"\",OFFSET('Smelter Look-up'!$I$4,$V1550-4,0))","v":""},{"$nulls":7},{"$f":"IF(ISERROR($V1550),\"\",OFFSET('Smelter Look-up'!$C$4,$V1550-4,0)&\"\")","v":""},"",{"$f":"IF(B1550=\"\",\"\",IF(ISERROR(MATCH($J1550,SorP!$B$1:$B$5661,0)),\"\",INDIRECT(\"'SorP'!$A$\"&MATCH($J1550,SorP!$B$1:$B$5661,0))))","v":""},null,{"$f":"IF(C1550=\"\",NA(),MATCH($B1550&$C1550,'Smelter Look-up'!$J:$J,0))","v":{"$error":"#N/A"}},null,0,null,null,null,""]
[null,{"$f":"IF(LEN(A1551)=0,\"\",INDEX('Smelter Look-up'!$A:$A,MATCH($A1551,'Smelter Look-up'!$E:$E,0)))","v":""},{"$f":"IF(LEN(A1551)=0,\"\",INDEX('Smelter Look-up'!$C:$C,MATCH($A1551,'Smelter Look-up'!$E:$E,0)))","v":""},null,{"$f":"IF(ISERROR($V1551),\"\",OFFSET('Smelter Look-up'!$D$4,$V1551-4,0)&\"\")","v":""},{"$f":"IF(ISERROR($V1551),\"\",OFFSET('Smelter Look-up'!$E$4,$V1551-4,0))","v":""},{"$f":"IF(C1551=$X$4,\"Enter smelter details\",IF(ISERROR($V1551),\"\",OFFSET('Smelter Look-up'!$F$4,$V1551-4,0)))","v":""},{"$f":"IF(ISERROR($V1551),\"\",OFFSET('Smelter Look-up'!$G$4,$V1551-4,0))","v":""},{"$f":"IF(ISERROR($V1551),\"\",OFFSET('Smelter Look-up'!$H$4,$V1551-4,0))","v":""},{"$f":"IF(ISERROR($V1551),\"\",OFFSET('Smelter Look-up'!$I$4,$V1551-4,0))","v":""},{"$nulls":7},{"$f":"IF(ISERROR($V1551),\"\",OFFSET('Smelter Look-up'!$C$4,$V1551-4,0)&\"\")","v":""},"",{"$f":"IF(B1551=\"\",\"\",IF(ISERROR(MATCH($J1551,SorP!$B$1:$B$5661,0)),\"\",INDIRECT(\"'SorP'!$A$\"&MATCH($J1551,SorP!$B$1:$B$5661,0))))","v":""},null,{"$f":"IF(C1551=\"\",NA(),MATCH($B1551&$C1551,'Smelter Look-up'!$J:$J,0))","v":{"$error":"#N/A"}},null,0,null,null,null,""]
[null,{"$f":"IF(LEN(A1552)=0,\"\",INDEX('Smelter Look-up'!$A:$A,MATCH($A1552,'Smelter Look-up'!$E:$E,0)))","v":""},{"$f":"IF(LEN(A1552)=0,\"\",INDEX('Smelter Look-up'!$C:$C,MATCH($A1552,'Smelter Look-up'!$E:$E,0)))","v":""},null,{"$f":"IF(ISERROR($V1552),\"\",OFFSET('Smelter Look-up'!$D$4,$V1552-4,0)&\"\")","v":""},{"$f":"IF(ISERROR($V1552),\"\",OFFSET('Smelter Look-up'!$E$4,$V1552-4,0))","v":""},{"$f":"IF(C1552=$X$4,\"Enter smelter details\",IF(ISERROR($V1552),\"\",OFFSET('Smelter Look-up'!$F$4,$V1552-4,0)))","v":""},{"$f":"IF(ISERROR($V1552),\"\",OFFSET('Smelter Look-up'!$G$4,$V1552-4,0))","v":""},{"$f":"IF(ISERROR($V1552),\"\",OFFSET('Smelter Look-up'!$H$4,$V1552-4,0))","v":""},{"$f":"IF(ISERROR($V1552),\"\",OFFSET('Smelter Look-up'!$I$4,$V1552-4,0))","v":""},{"$nulls":7},{"$f":"IF(ISERROR($V1552),\"\",OFFSET('Smelter Look-up'!$C$4,$V1552-4,0)&\"\")","v":""},"",{"$f":"IF(B1552=\"\",\"\",IF(ISERROR(MATCH($J1552,SorP!$B$1:$B$5661,0)),\"\",INDIRECT(\"'SorP'!$A$\"&MATCH($J1552,SorP!$B$1:$B$5661,0))))","v":""},null,{"$f":"IF(C1552=\"\",NA(),MATCH($B1552&$C1552,'Smelter Look-up'!$J:$J,0))","v":{"$error":"#N/A"}},null,0,null,null,null,""]
[null,{"$f":"IF(LEN(A1553)=0,\"\",INDEX('Smelter Look-up'!$A:$A,MATCH($A1553,'Smelter Look-up'!$E:$E,0)))","v":""},{"$f":"IF(LEN(A1553)=0,\"\",INDEX('Smelter Look-up'!$C:$C,MATCH($A1553,'Smelter Look-up'!$E:$E,0)))","v":""},null,{"$f":"IF(ISERROR($V1553),\"\",OFFSET('Smelter Look-up'!$D$4,$V1553-4,0)&\"\")","v":""},{"$f":"IF(ISERROR($V1553),\"\",OFFSET('Smelter Look-up'!$E$4,$V1553-4,0))","v":""},{"$f":"IF(C1553=$X$4,\"Enter smelter details\",IF(ISERROR($V1553),\"\",OFFSET('Smelter Look-up'!$F$4,$V1553-4,0)))","v":""},{"$f":"IF(ISERROR($V1553),\"\",OFFSET('Smelter Look-up'!$G$4,$V1553-4,0))","v":""},{"$f":"IF(ISERROR($V1553),\"\",OFFSET('Smelter Look-up'!$H$4,$V1553-4,0))","v":""},{"$f":"IF(ISERROR($V1553),\"\",OFFSET('Smelter Look-up'!$I$4,$V1553-4,0))","v":""},{"$nulls":7},{"$f":"IF(ISERROR($V1553),\"\",OFFSET('Smelter Look-up'!$C$4,$V1553-4,0)&\"\")","v":""},"",{"$f":"IF(B1553=\"\",\"\",IF(ISERROR(MATCH($J1553,SorP!$B$1:$B$5661,0)),\"\",INDIRECT(\"'SorP'!$A$\"&MATCH($J1553,SorP!$B$1:$B$5661,0))))","v":""},null,{"$f":"IF(C1553=\"\",NA(),MATCH($B1553&$C1553,'Smelter Look-up'!$J:$J,0))","v":{"$error":"#N/A"}},null,0,null,null,null,""]
[null,{"$f":"IF(LEN(A1554)=0,\"\",INDEX('Smelter Look-up'!$A:$A,MATCH($A1554,'Smelter Look-up'!$E:$E,0)))","v":""},{"$f":"IF(LEN(A1554)=0,\"\",INDEX('Smelter Look-up'!$C:$C,MATCH($A1554,'Smelter Look-up'!$E:$E,0)))","v":""},null,{"$f":"IF(ISERROR($V1554),\"\",OFFSET('Smelter Look-up'!$D$4,$V1554-4,0)&\"\")","v":""},{"$f":"IF(ISERROR($V1554),\"\",OFFSET('Smelter Look-up'!$E$4,$V1554-4,0))","v":""},{"$f":"IF(C1554=$X$4,\"Enter smelter details\",IF(ISERROR($V1554),\"\",OFFSET('Smelter Look-up'!$F$4,$V1554-4,0)))","v":""},{"$f":"IF(ISERROR($V1554),\"\",OFFSET('Smelter Look-up'!$G$4,$V1554-4,0))","v":""},{"$f":"IF(ISERROR($V1554),\"\",OFFSET('Smelter Look-up'!$H$4,$V1554-4,0))","v":""},{"$f":"IF(ISERROR($V1554),\"\",OFFSET('Smelter Look-up'!$I$4,$V1554-4,0))","v":""},{"$nulls":7},{"$f":"IF(ISERROR($V1554),\"\",OFFSET('Smelter Look-up'!$C$4,$V1554-4,0)&\"\")","v":""},"",{"$f":"IF(B1554=\"\",\"\",IF(ISERROR(MATCH($J1554,SorP!$B$1:$B$5661,0)),\"\",INDIRECT(\"'SorP'!$A$\"&MATCH($J1554,SorP!$B$1:$B$5661,0))))","v":""},null,{"$f":"IF(C1554=\"\",NA(),MATCH($B1554&$C1554,'Smelter Look-up'!$J:$J,0))","v":{"$error":"#N/A"}},null,0,null,null,null,""]
[null,{"$f":"IF(LEN(A1555)=0,\"\",INDEX('Smelter Look-up'!$A:$A,MATCH($A1555,'Smelter Look-up'!$E:$E,0)))","v":""},{"$f":"IF(LEN(A1555)=0,\"\",INDEX('Smelter Look-up'!$C:$C,MATCH($A1555,'Smelter Look-up'!$E:$E,0)))","v":""},null,{"$f":"IF(ISERROR($V1555),\"\",OFFSET('Smelter Look-up'!$D$4,$V1555-4,0)&\"\")","v":""},{"$f":"IF(ISERROR($V1555),\"\",OFFSET('Smelter Look-up'!$E$4,$V1555-4,0))","v":""},{"$f":"IF(C1555=$X$4,\"Enter smelter details\",IF(ISERROR($V1555),\"\",OFFSET('Smelter Look-up'!$F$4,$V1555-4,0)))","v":""},{"$f":"IF(ISERROR($V1555),\"\",OFFSET('Smelter Look-up'!$G$4,$V1555-4,0))","v":""},{"$f":"IF(ISERROR($V1555),\"\",OFFSET('Smelter Look-up'!$H$4,$V1555-4,0))","v":""},{"$f":"IF(ISERROR($V1555),\"\",OFFSET('Smelter Look-up'!$I$4,$V1555-4,0))","v":""},{"$nulls":7},{"$f":"IF(ISERROR($V1555),\"\",OFFSET('Smelter Look-up'!$C$4,$V1555-4,0)&\"\")","v":""},"",{"$f":"IF(B1555=\"\",\"\",IF(ISERROR(MATCH($J1555,SorP!$B$1:$B$5661,0)),\"\",INDIRECT(\"'SorP'!$A$\"&MATCH($J1555,SorP!$B$1:$B$5661,0))))","v":""},null,{"$f":"IF(C1555=\"\",NA(),MATCH($B1555&$C1555,'Smelter Look-up'!$J:$J,0))","v":{"$error":"#N/A"}},null,0,null,null,null,""]
[null,{"$f":"IF(LEN(A1556)=0,\"\",INDEX('Smelter Look-up'!$A:$A,MATCH($A1556,'Smelter Look-up'!$E:$E,0)))","v":""},{"$f":"IF(LEN(A1556)=0,\"\",INDEX('Smelter Look-up'!$C:$C,MATCH($A1556,'Smelter Look-up'!$E:$E,0)))","v":""},null,{"$f":"IF(ISERROR($V1556),\"\",OFFSET('Smelter Look-up'!$D$4,$V1556-4,0)&\"\")","v":""},{"$f":"IF(ISERROR($V1556),\"\",OFFSET('Smelter Look-up'!$E$4,$V1556-4,0))","v":""},{"$f":"IF(C1556=$X$4,\"Enter smelter details\",IF(ISERROR($V1556),\"\",OFFSET('Smelter Look-up'!$F$4,$V1556-4,0)))","v":""},{"$f":"IF(ISERROR($V1556),\"\",OFFSET('Smelter Look-up'!$G$4,$V1556-4,0))","v":""},{"$f":"IF(ISERROR($V1556),\"\",OFFSET('Smelter Look-up'!$H$4,$V1556-4,0))","v":""},{"$f":"IF(ISERROR($V1556),\"\",OFFSET('Smelter Look-up'!$I$4,$V1556-4,0))","v":""},{"$nulls":7},{"$f":"IF(ISERROR($V1556),\"\",OFFSET('Smelter Look-up'!$C$4,$V1556-4,0)&\"\")","v":""},"",{"$f":"IF(B1556=\"\",\"\",IF(ISERROR(MATCH($J1556,SorP!$B$1:$B$5661,0)),\"\",INDIRECT(\"'SorP'!$A$\"&MATCH($J1556,SorP!$B$1:$B$5661,0))))","v":""},null,{"$f":"IF(C1556=\"\",NA(),MATCH($B1556&$C1556,'Smelter Look-up'!$J:$J,0))","v":{"$error":"#N/A"}},null,0,null,null,null,""]
[null,{"$f":"IF(LEN(A1557)=0,\"\",INDEX('Smelter Look-up'!$A:$A,MATCH($A1557,'Smelter Look-up'!$E:$E,0)))","v":""},{"$f":"IF(LEN(A1557)=0,\"\",INDEX('Smelter Look-up'!$C:$C,MATCH($A1557,'Smelter Look-up'!$E:$E,0)))","v":""},null,{"$f":"IF(ISERROR($V1557),\"\",OFFSET('Smelter Look-up'!$D$4,$V1557-4,0)&\"\")","v":""},{"$f":"IF(ISERROR($V1557),\"\",OFFSET('Smelter Look-up'!$E$4,$V1557-4,0))","v":""},{"$f":"IF(C1557=$X$4,\"Enter smelter details\",IF(ISERROR($V1557),\"\",OFFSET('Smelter Look-up'!$F$4,$V1557-4,0)))","v":""},{"$f":"IF(ISERROR($V1557),\"\",OFFSET('Smelter Look-up'!$G$4,$V1557-4,0))","v":""},{"$f":"IF(ISERROR($V1557),\"\",OFFSET('Smelter Look-up'!$H$4,$V1557-4,0))","v":""},{"$f":"IF(ISERROR($V1557),\"\",OFFSET('Smelter Look-up'!$I$4,$V1557-4,0))","v":""},{"$nulls":7},{"$f":"IF(ISERROR($V1557),\"\",OFFSET('Smelter Look-up'!$C$4,$V1557-4,0)&\"\")","v":""},"",{"$f":"IF(B1557=\"\",\"\",IF(ISERROR(MATCH($J1557,SorP!$B$1:$B$5661,0)),\"\",INDIRECT(\"'SorP'!$A$\"&MATCH($J1557,SorP!$B$1:$B$5661,0))))","v":""},null,{"$f":"IF(C1557=\"\",NA(),MATCH($B1557&$C1557,'Smelter Look-up'!$J:$J,0))","v":{"$error":"#N/A"}},null,0,null,null,null,""]
[null,{"$f":"IF(LEN(A1558)=0,\"\",INDEX('Smelter Look-up'!$A:$A,MATCH($A1558,'Smelter Look-up'!$E:$E,0)))","v":""},{"$f":"IF(LEN(A1558)=0,\"\",INDEX('Smelter Look-up'!$C:$C,MATCH($A1558,'Smelter Look-up'!$E:$E,0)))","v":""},null,{"$f":"IF(ISERROR($V1558),\"\",OFFSET('Smelter Look-up'!$D$4,$V1558-4,0)&\"\")","v":""},{"$f":"IF(ISERROR($V1558),\"\",OFFSET('Smelter Look-up'!$E$4,$V1558-4,0))","v":""},{"$f":"IF(C1558=$X$4,\"Enter smelter details\",IF(ISERROR($V1558),\"\",OFFSET('Smelter Look-up'!$F$4,$V1558-4,0)))","v":""},{"$f":"IF(ISERROR($V1558),\"\",OFFSET('Smelter Look-up'!$G$4,$V1558-4,0))","v":""},{"$f":"IF(ISERROR($V1558),\"\",OFFSET('Smelter Look-up'!$H$4,$V1558-4,0))","v":""},{"$f":"IF(ISERROR($V1558),\"\",OFFSET('Smelter Look-up'!$I$4,$V1558-4,0))","v":""},{"$nulls":7},{"$f":"IF(ISERROR($V1558),\"\",OFFSET('Smelter Look-up'!$C$4,$V1558-4,0)&\"\")","v":""},"",{"$f":"IF(B1558=\"\",\"\",IF(ISERROR(MATCH($J1558,SorP!$B$1:$B$5661,0)),\"\",INDIRECT(\"'SorP'!$A$\"&MATCH($J1558,SorP!$B$1:$B$5661,0))))","v":""},null,{"$f":"IF(C1558=\"\",NA(),MATCH($B1558&$C1558,'Smelter Look-up'!$J:$J,0))","v":{"$error":"#N/A"}},null,0,null,null,null,""]
[null,{"$f":"IF(LEN(A1559)=0,\"\",INDEX('Smelter Look-up'!$A:$A,MATCH($A1559,'Smelter Look-up'!$E:$E,0)))","v":""},{"$f":"IF(LEN(A1559)=0,\"\",INDEX('Smelter Look-up'!$C:$C,MATCH($A1559,'Smelter Look-up'!$E:$E,0)))","v":""},null,{"$f":"IF(ISERROR($V1559),\"\",OFFSET('Smelter Look-up'!$D$4,$V1559-4,0)&\"\")","v":""},{"$f":"IF(ISERROR($V1559),\"\",OFFSET('Smelter Look-up'!$E$4,$V1559-4,0))","v":""},{"$f":"IF(C1559=$X$4,\"Enter smelter details\",IF(ISERROR($V1559),\"\",OFFSET('Smelter Look-up'!$F$4,$V1559-4,0)))","v":""},{"$f":"IF(ISERROR($V1559),\"\",OFFSET('Smelter Look-up'!$G$4,$V1559-4,0))","v":""},{"$f":"IF(ISERROR($V1559),\"\",OFFSET('Smelter Look-up'!$H$4,$V1559-4,0))","v":""},{"$f":"IF(ISERROR($V1559),\"\",OFFSET('Smelter Look-up'!$I$4,$V1559-4,0))","v":""},{"$nulls":7},{"$f":"IF(ISERROR($V1559),\"\",OFFSET('Smelter Look-up'!$C$4,$V1559-4,0)&\"\")","v":""},"",{"$f":"IF(B1559=\"\",\"\",IF(ISERROR(MATCH($J1559,SorP!$B$1:$B$5661,0)),\"\",INDIRECT(\"'SorP'!$A$\"&MATCH($J1559,SorP!$B$1:$B$5661,0))))","v":""},null,{"$f":"IF(C1559=\"\",NA(),MATCH($B1559&$C1559,'Smelter Look-up'!$J:$J,0))","v":{"$error":"#N/A"}},null,0,null,null,null,""]
[null,{"$f":"IF(LEN(A1560)=0,\"\",INDEX('Smelter Look-up'!$A:$A,MATCH($A1560,'Smelter Look-up'!$E:$E,0)))","v":""},{"$f":"IF(LEN(A1560)=0,\"\",INDEX('Smelter Look-up'!$C:$C,MATCH($A1560,'Smelter Look-up'!$E:$E,0)))","v":""},null,{"$f":"IF(ISERROR($V1560),\"\",OFFSET('Smelter Look-up'!$D$4,$V1560-4,0)&\"\")","v":""},{"$f":"IF(ISERROR($V1560),\"\",OFFSET('Smelter Look-up'!$E$4,$V1560-4,0))","v":""},{"$f":"IF(C1560=$X$4,\"Enter smelter details\",IF(ISERROR($V1560),\"\",OFFSET('Smelter Look-up'!$F$4,$V1560-4,0)))","v":""},{"$f":"IF(ISERROR($V1560),\"\",OFFSET('Smelter Look-up'!$G$4,$V1560-4,0))","v":""},{"$f":"IF(ISERROR($V1560),\"\",OFFSET('Smelter Look-up'!$H$4,$V1560-4,0))","v":""},{"$f":"IF(ISERROR($V1560),\"\",OFFSET('Smelter Look-up'!$I$4,$V1560-4,0))","v":""},{"$nulls":7},{"$f":"IF(ISERROR($V1560),\"\",OFFSET('Smelter Look-up'!$C$4,$V1560-4,0)&\"\")","v":""},"",{"$f":"IF(B1560=\"\",\"\",IF(ISERROR(MATCH($J1560,SorP!$B$1:$B$5661,0)),\"\",INDIRECT(\"'SorP'!$A$\"&MATCH($J1560,SorP!$B$1:$B$5661,0))))","v":""},null,{"$f":"IF(C1560=\"\",NA(),MATCH($B1560&$C1560,'Smelter Look-up'!$J:$J,0))","v":{"$error":"#N/A"}},null,0,null,null,null,""]
[null,{"$f":"IF(LEN(A1561)=0,\"\",INDEX('Smelter Look-up'!$A:$A,MATCH($A1561,'Smelter Look-up'!$E:$E,0)))","v":""},{"$f":"IF(LEN(A1561)=0,\"\",INDEX('Smelter Look-up'!$C:$C,MATCH($A1561,'Smelter Look-up'!$E:$E,0)))","v":""},null,{"$f":"IF(ISERROR($V1561),\"\",OFFSET('Smelter Look-up'!$D$4,$V1561-4,0)&\"\")","v":""},{"$f":"IF(ISERROR($V1561),\"\",OFFSET('Smelter Look-up'!$E$4,$V1561-4,0))","v":""},{"$f":"IF(C1561=$X$4,\"Enter smelter details\",IF(ISERROR($V1561),\"\",OFFSET('Smelter Look-up'!$F$4,$V1561-4,0)))","v":""},{"$f":"IF(ISERROR($V1561),\"\",OFFSET('Smelter Look-up'!$G$4,$V1561-4,0))","v":""},{"$f":"IF(ISERROR($V1561),\"\",OFFSET('Smelter Look-up'!$H$4,$V1561-4,0))","v":""},{"$f":"IF(ISERROR($V1561),\"\",OFFSET('Smelter Look-up'!$I$4,$V1561-4,0))","v":""},{"$nulls":7},{"$f":"IF(ISERROR($V1561),\"\",OFFSET('Smelter Look-up'!$C$4,$V1561-4,0)&\"\")","v":""},"",{"$f":"IF(B1561=\"\",\"\",IF(ISERROR(MATCH($J1561,SorP!$B$1:$B$5661,0)),\"\",INDIRECT(\"'SorP'!$A$\"&MATCH($J1561,SorP!$B$1:$B$5661,0))))","v":""},null,{"$f":"IF(C1561=\"\",NA(),MATCH($B1561&$C1561,'Smelter Look-up'!$J:$J,0))","v":{"$error":"#N/A"}},null,0,null,null,null,""]
[null,{"$f":"IF(LEN(A1562)=0,\"\",INDEX('Smelter Look-up'!$A:$A,MATCH($A1562,'Smelter Look-up'!$E:$E,0)))","v":""},{"$f":"IF(LEN(A1562)=0,\"\",INDEX('Smelter Look-up'!$C:$C,MATCH($A1562,'Smelter Look-up'!$E:$E,0)))","v":""},null,{"$f":"IF(ISERROR($V1562),\"\",OFFSET('Smelter Look-up'!$D$4,$V1562-4,0)&\"\")","v":""},{"$f":"IF(ISERROR($V1562),\"\",OFFSET('Smelter Look-up'!$E$4,$V1562-4,0))","v":""},{"$f":"IF(C1562=$X$4,\"Enter smelter details\",IF(ISERROR($V1562),\"\",OFFSET('Smelter Look-up'!$F$4,$V1562-4,0)))","v":""},{"$f":"IF(ISERROR($V1562),\"\",OFFSET('Smelter Look-up'!$G$4,$V1562-4,0))","v":""},{"$f":"IF(ISERROR($V1562),\"\",OFFSET('Smelter Look-up'!$H$4,$V1562-4,0))","v":""},{"$f":"IF(ISERROR($V1562),\"\",OFFSET('Smelter Look-up'!$I$4,$V1562-4,0))","v":""},{"$nulls":7},{"$f":"IF(ISERROR($V1562),\"\",OFFSET('Smelter Look-up'!$C$4,$V1562-4,0)&\"\")","v":""},"",{"$f":"IF(B1562=\"\",\"\",IF(ISERROR(MATCH($J1562,SorP!$B$1:$B$5661,0)),\"\",INDIRECT(\"'SorP'!$A$\"&MATCH($J1562,SorP!$B$1:$B$5661,0))))","v":""},null,{"$f":"IF(C1562=\"\",NA(),MATCH($B1562&$C1562,'Smelter Look-up'!$J:$J,0))","v":{"$error":"#N/A"}},null,0,null,null,null,""]
[null,{"$f":"IF(LEN(A1563)=0,\"\",INDEX('Smelter Look-up'!$A:$A,MATCH($A1563,'Smelter Look-up'!$E:$E,0)))","v":""},{"$f":"IF(LEN(A1563)=0,\"\",INDEX('Smelter Look-up'!$C:$C,MATCH($A1563,'Smelter Look-up'!$E:$E,0)))","v":""},null,{"$f":"IF(ISERROR($V1563),\"\",OFFSET('Smelter Look-up'!$D$4,$V1563-4,0)&\"\")","v":""},{"$f":"IF(ISERROR($V1563),\"\",OFFSET('Smelter Look-up'!$E$4,$V1563-4,0))","v":""},{"$f":"IF(C1563=$X$4,\"Enter smelter details\",IF(ISERROR($V1563),\"\",OFFSET('Smelter Look-up'!$F$4,$V1563-4,0)))","v":""},{"$f":"IF(ISERROR($V1563),\"\",OFFSET('Smelter Look-up'!$G$4,$V1563-4,0))","v":""},{"$f":"IF(ISERROR($V1563),\"\",OFFSET('Smelter Look-up'!$H$4,$V1563-4,0))","v":""},{"$f":"IF(ISERROR($V1563),\"\",OFFSET('Smelter Look-up'!$I$4,$V1563-4,0))","v":""},{"$nulls":7},{"$f":"IF(ISERROR($V1563),\"\",OFFSET('Smelter Look-up'!$C$4,$V1563-4,0)&\"\")","v":""},"",{"$f":"IF(B1563=\"\",\"\",IF(ISERROR(MATCH($J1563,SorP!$B$1:$B$5661,0)),\"\",INDIRECT(\"'SorP'!$A$\"&MATCH($J1563,SorP!$B$1:$B$5661,0))))","v":""},null,{"$f":"IF(C1563=\"\",NA(),MATCH($B1563&$C1563,'Smelter Look-up'!$J:$J,0))","v":{"$error":"#N/A"}},null,0,null,null,null,""]
[null,{"$f":"IF(LEN(A1564)=0,\"\",INDEX('Smelter Look-up'!$A:$A,MATCH($A1564,'Smelter Look-up'!$E:$E,0)))","v":""},{"$f":"IF(LEN(A1564)=0,\"\",INDEX('Smelter Look-up'!$C:$C,MATCH($A1564,'Smelter Look-up'!$E:$E,0)))","v":""},null,{"$f":"IF(ISERROR($V1564),\"\",OFFSET('Smelter Look-up'!$D$4,$V1564-4,0)&\"\")","v":""},{"$f":"IF(ISERROR($V1564),\"\",OFFSET('Smelter Look-up'!$E$4,$V1564-4,0))","v":""},{"$f":"IF(C1564=$X$4,\"Enter smelter details\",IF(ISERROR($V1564),\"\",OFFSET('Smelter Look-up'!$F$4,$V1564-4,0)))","v":""},{"$f":"IF(ISERROR($V1564),\"\",OFFSET('Smelter Look-up'!$G$4,$V1564-4,0))","v":""},{"$f":"IF(ISERROR($V1564),\"\",OFFSET('Smelter Look-up'!$H$4,$V1564-4,0))","v":""},{"$f":"IF(ISERROR($V1564),\"\",OFFSET('Smelter Look-up'!$I$4,$V1564-4,0))","v":""},{"$nulls":7},{"$f":"IF(ISERROR($V1564),\"\",OFFSET('Smelter Look-up'!$C$4,$V1564-4,0)&\"\")","v":""},"",{"$f":"IF(B1564=\"\",\"\",IF(ISERROR(MATCH($J1564,SorP!$B$1:$B$5661,0)),\"\",INDIRECT(\"'SorP'!$A$\"&MATCH($J1564,SorP!$B$1:$B$5661,0))))","v":""},null,{"$f":"IF(C1564=\"\",NA(),MATCH($B1564&$C1564,'Smelter Look-up'!$J:$J,0))","v":{"$error":"#N/A"}},null,0,null,null,null,""]
[null,{"$f":"IF(LEN(A1565)=0,\"\",INDEX('Smelter Look-up'!$A:$A,MATCH($A1565,'Smelter Look-up'!$E:$E,0)))","v":""},{"$f":"IF(LEN(A1565)=0,\"\",INDEX('Smelter Look-up'!$C:$C,MATCH($A1565,'Smelter Look-up'!$E:$E,0)))","v":""},null,{"$f":"IF(ISERROR($V1565),\"\",OFFSET('Smelter Look-up'!$D$4,$V1565-4,0)&\"\")","v":""},{"$f":"IF(ISERROR($V1565),\"\",OFFSET('Smelter Look-up'!$E$4,$V1565-4,0))","v":""},{"$f":"IF(C1565=$X$4,\"Enter smelter details\",IF(ISERROR($V1565),\"\",OFFSET('Smelter Look-up'!$F$4,$V1565-4,0)))","v":""},{"$f":"IF(ISERROR($V1565),\"\",OFFSET('Smelter Look-up'!$G$4,$V1565-4,0))","v":""},{"$f":"IF(ISERROR($V1565),\"\",OFFSET('Smelter Look-up'!$H$4,$V1565-4,0))","v":""},{"$f":"IF(ISERROR($V1565),\"\",OFFSET('Smelter Look-up'!$I$4,$V1565-4,0))","v":""},{"$nulls":7},{"$f":"IF(ISERROR($V1565),\"\",OFFSET('Smelter Look-up'!$C$4,$V1565-4,0)&\"\")","v":""},"",{"$f":"IF(B1565=\"\",\"\",IF(ISERROR(MATCH($J1565,SorP!$B$1:$B$5661,0)),\"\",INDIRECT(\"'SorP'!$A$\"&MATCH($J1565,SorP!$B$1:$B$5661,0))))","v":""},null,{"$f":"IF(C1565=\"\",NA(),MATCH($B1565&$C1565,'Smelter Look-up'!$J:$J,0))","v":{"$error":"#N/A"}},null,0,null,null,null,""]
[null,{"$f":"IF(LEN(A1566)=0,\"\",INDEX('Smelter Look-up'!$A:$A,MATCH($A1566,'Smelter Look-up'!$E:$E,0)))","v":""},{"$f":"IF(LEN(A1566)=0,\"\",INDEX('Smelter Look-up'!$C:$C,MATCH($A1566,'Smelter Look-up'!$E:$E,0)))","v":""},null,{"$f":"IF(ISERROR($V1566),\"\",OFFSET('Smelter Look-up'!$D$4,$V1566-4,0)&\"\")","v":""},{"$f":"IF(ISERROR($V1566),\"\",OFFSET('Smelter Look-up'!$E$4,$V1566-4,0))","v":""},{"$f":"IF(C1566=$X$4,\"Enter smelter details\",IF(ISERROR($V1566),\"\",OFFSET('Smelter Look-up'!$F$4,$V1566-4,0)))","v":""},{"$f":"IF(ISERROR($V1566),\"\",OFFSET('Smelter Look-up'!$G$4,$V1566-4,0))","v":""},{"$f":"IF(ISERROR($V1566),\"\",OFFSET('Smelter Look-up'!$H$4,$V1566-4,0))","v":""},{"$f":"IF(ISERROR($V1566),\"\",OFFSET('Smelter Look-up'!$I$4,$V1566-4,0))","v":""},{"$nulls":7},{"$f":"IF(ISERROR($V1566),\"\",OFFSET('Smelter Look-up'!$C$4,$V1566-4,0)&\"\")","v":""},"",{"$f":"IF(B1566=\"\",\"\",IF(ISERROR(MATCH($J1566,SorP!$B$1:$B$5661,0)),\"\",INDIRECT(\"'SorP'!$A$\"&MATCH($J1566,SorP!$B$1:$B$5661,0))))","v":""},null,{"$f":"IF(C1566=\"\",NA(),MATCH($B1566&$C1566,'Smelter Look-up'!$J:$J,0))","v":{"$error":"#N/A"}},null,0,null,null,null,""]
[null,{"$f":"IF(LEN(A1567)=0,\"\",INDEX('Smelter Look-up'!$A:$A,MATCH($A1567,'Smelter Look-up'!$E:$E,0)))","v":""},{"$f":"IF(LEN(A1567)=0,\"\",INDEX('Smelter Look-up'!$C:$C,MATCH($A1567,'Smelter Look-up'!$E:$E,0)))","v":""},null,{"$f":"IF(ISERROR($V1567),\"\",OFFSET('Smelter Look-up'!$D$4,$V1567-4,0)&\"\")","v":""},{"$f":"IF(ISERROR($V1567),\"\",OFFSET('Smelter Look-up'!$E$4,$V1567-4,0))","v":""},{"$f":"IF(C1567=$X$4,\"Enter smelter details\",IF(ISERROR($V1567),\"\",OFFSET('Smelter Look-up'!$F$4,$V1567-4,0)))","v":""},{"$f":"IF(ISERROR($V1567),\"\",OFFSET('Smelter Look-up'!$G$4,$V1567-4,0))","v":""},{"$f":"IF(ISERROR($V1567),\"\",OFFSET('Smelter Look-up'!$H$4,$V1567-4,0))","v":""},{"$f":"IF(ISERROR($V1567),\"\",OFFSET('Smelter Look-up'!$I$4,$V1567-4,0))","v":""},{"$nulls":7},{"$f":"IF(ISERROR($V1567),\"\",OFFSET('Smelter Look-up'!$C$4,$V1567-4,0)&\"\")","v":""},"",{"$f":"IF(B1567=\"\",\"\",IF(ISERROR(MATCH($J1567,SorP!$B$1:$B$5661,0)),\"\",INDIRECT(\"'SorP'!$A$\"&MATCH($J1567,SorP!$B$1:$B$5661,0))))","v":""},null,{"$f":"IF(C1567=\"\",NA(),MATCH($B1567&$C1567,'Smelter Look-up'!$J:$J,0))","v":{"$error":"#N/A"}},null,0,null,null,null,""]
[null,{"$f":"IF(LEN(A1568)=0,\"\",INDEX('Smelter Look-up'!$A:$A,MATCH($A1568,'Smelter Look-up'!$E:$E,0)))","v":""},{"$f":"IF(LEN(A1568)=0,\"\",INDEX('Smelter Look-up'!$C:$C,MATCH($A1568,'Smelter Look-up'!$E:$E,0)))","v":""},null,{"$f":"IF(ISERROR($V1568),\"\",OFFSET('Smelter Look-up'!$D$4,$V1568-4,0)&\"\")","v":""},{"$f":"IF(ISERROR($V1568),\"\",OFFSET('Smelter Look-up'!$E$4,$V1568-4,0))","v":""},{"$f":"IF(C1568=$X$4,\"Enter smelter details\",IF(ISERROR($V1568),\"\",OFFSET('Smelter Look-up'!$F$4,$V1568-4,0)))","v":""},{"$f":"IF(ISERROR($V1568),\"\",OFFSET('Smelter Look-up'!$G$4,$V1568-4,0))","v":""},{"$f":"IF(ISERROR($V1568),\"\",OFFSET('Smelter Look-up'!$H$4,$V1568-4,0))","v":""},{"$f":"IF(ISERROR($V1568),\"\",OFFSET('Smelter Look-up'!$I$4,$V1568-4,0))","v":""},{"$nulls":7},{"$f":"IF(ISERROR($V1568),\"\",OFFSET('Smelter Look-up'!$C$4,$V1568-4,0)&\"\")","v":""},"",{"$f":"IF(B1568=\"\",\"\",IF(ISERROR(MATCH($J1568,SorP!$B$1:$B$5661,0)),\"\",INDIRECT(\"'SorP'!$A$\"&MATCH($J1568,SorP!$B$1:$B$5661,0))))","v":""},null,{"$f":"IF(C1568=\"\",NA(),MATCH($B1568&$C1568,'Smelter Look-up'!$J:$J,0))","v":{"$error":"#N/A"}},null,0,null,null,null,""]
[null,{"$f":"IF(LEN(A1569)=0,\"\",INDEX('Smelter Look-up'!$A:$A,MATCH($A1569,'Smelter Look-up'!$E:$E,0)))","v":""},{"$f":"IF(LEN(A1569)=0,\"\",INDEX('Smelter Look-up'!$C:$C,MATCH($A1569,'Smelter Look-up'!$E:$E,0)))","v":""},null,{"$f":"IF(ISERROR($V1569),\"\",OFFSET('Smelter Look-up'!$D$4,$V1569-4,0)&\"\")","v":""},{"$f":"IF(ISERROR($V1569),\"\",OFFSET('Smelter Look-up'!$E$4,$V1569-4,0))","v":""},{"$f":"IF(C1569=$X$4,\"Enter smelter details\",IF(ISERROR($V1569),\"\",OFFSET('Smelter Look-up'!$F$4,$V1569-4,0)))","v":""},{"$f":"IF(ISERROR($V1569),\"\",OFFSET('Smelter Look-up'!$G$4,$V1569-4,0))","v":""},{"$f":"IF(ISERROR($V1569),\"\",OFFSET('Smelter Look-up'!$H$4,$V1569-4,0))","v":""},{"$f":"IF(ISERROR($V1569),\"\",OFFSET('Smelter Look-up'!$I$4,$V1569-4,0))","v":""},{"$nulls":7},{"$f":"IF(ISERROR($V1569),\"\",OFFSET('Smelter Look-up'!$C$4,$V1569-4,0)&\"\")","v":""},"",{"$f":"IF(B1569=\"\",\"\",IF(ISERROR(MATCH($J1569,SorP!$B$1:$B$5661,0)),\"\",INDIRECT(\"'SorP'!$A$\"&MATCH($J1569,SorP!$B$1:$B$5661,0))))","v":""},null,{"$f":"IF(C1569=\"\",NA(),MATCH($B1569&$C1569,'Smelter Look-up'!$J:$J,0))","v":{"$error":"#N/A"}},null,0,null,null,null,""]
[null,{"$f":"IF(LEN(A1570)=0,\"\",INDEX('Smelter Look-up'!$A:$A,MATCH($A1570,'Smelter Look-up'!$E:$E,0)))","v":""},{"$f":"IF(LEN(A1570)=0,\"\",INDEX('Smelter Look-up'!$C:$C,MATCH($A1570,'Smelter Look-up'!$E:$E,0)))","v":""},null,{"$f":"IF(ISERROR($V1570),\"\",OFFSET('Smelter Look-up'!$D$4,$V1570-4,0)&\"\")","v":""},{"$f":"IF(ISERROR($V1570),\"\",OFFSET('Smelter Look-up'!$E$4,$V1570-4,0))","v":""},{"$f":"IF(C1570=$X$4,\"Enter smelter details\",IF(ISERROR($V1570),\"\",OFFSET('Smelter Look-up'!$F$4,$V1570-4,0)))","v":""},{"$f":"IF(ISERROR($V1570),\"\",OFFSET('Smelter Look-up'!$G$4,$V1570-4,0))","v":""},{"$f":"IF(ISERROR($V1570),\"\",OFFSET('Smelter Look-up'!$H$4,$V1570-4,0))","v":""},{"$f":"IF(ISERROR($V1570),\"\",OFFSET('Smelter Look-up'!$I$4,$V1570-4,0))","v":""},{"$nulls":7},{"$f":"IF(ISERROR($V1570),\"\",OFFSET('Smelter Look-up'!$C$4,$V1570-4,0)&\"\")","v":""},"",{"$f":"IF(B1570=\"\",\"\",IF(ISERROR(MATCH($J1570,SorP!$B$1:$B$5661,0)),\"\",INDIRECT(\"'SorP'!$A$\"&MATCH($J1570,SorP!$B$1:$B$5661,0))))","v":""},null,{"$f":"IF(C1570=\"\",NA(),MATCH($B1570&$C1570,'Smelter Look-up'!$J:$J,0))","v":{"$error":"#N/A"}},null,0,null,null,null,""]
[null,{"$f":"IF(LEN(A1571)=0,\"\",INDEX('Smelter Look-up'!$A:$A,MATCH($A1571,'Smelter Look-up'!$E:$E,0)))","v":""},{"$f":"IF(LEN(A1571)=0,\"\",INDEX('Smelter Look-up'!$C:$C,MATCH($A1571,'Smelter Look-up'!$E:$E,0)))","v":""},null,{"$f":"IF(ISERROR($V1571),\"\",OFFSET('Smelter Look-up'!$D$4,$V1571-4,0)&\"\")","v":""},{"$f":"IF(ISERROR($V1571),\"\",OFFSET('Smelter Look-up'!$E$4,$V1571-4,0))","v":""},{"$f":"IF(C1571=$X$4,\"Enter smelter details\",IF(ISERROR($V1571),\"\",OFFSET('Smelter Look-up'!$F$4,$V1571-4,0)))","v":""},{"$f":"IF(ISERROR($V1571),\"\",OFFSET('Smelter Look-up'!$G$4,$V1571-4,0))","v":""},{"$f":"IF(ISERROR($V1571),\"\",OFFSET('Smelter Look-up'!$H$4,$V1571-4,0))","v":""},{"$f":"IF(ISERROR($V1571),\"\",OFFSET('Smelter Look-up'!$I$4,$V1571-4,0))","v":""},{"$nulls":7},{"$f":"IF(ISERROR($V1571),\"\",OFFSET('Smelter Look-up'!$C$4,$V1571-4,0)&\"\")","v":""},"",{"$f":"IF(B1571=\"\",\"\",IF(ISERROR(MATCH($J1571,SorP!$B$1:$B$5661,0)),\"\",INDIRECT(\"'SorP'!$A$\"&MATCH($J1571,SorP!$B$1:$B$5661,0))))","v":""},null,{"$f":"IF(C1571=\"\",NA(),MATCH($B1571&$C1571,'Smelter Look-up'!$J:$J,0))","v":{"$error":"#N/A"}},null,0,null,null,null,""]
[null,{"$f":"IF(LEN(A1572)=0,\"\",INDEX('Smelter Look-up'!$A:$A,MATCH($A1572,'Smelter Look-up'!$E:$E,0)))","v":""},{"$f":"IF(LEN(A1572)=0,\"\",INDEX('Smelter Look-up'!$C:$C,MATCH($A1572,'Smelter Look-up'!$E:$E,0)))","v":""},null,{"$f":"IF(ISERROR($V1572),\"\",OFFSET('Smelter Look-up'!$D$4,$V1572-4,0)&\"\")","v":""},{"$f":"IF(ISERROR($V1572),\"\",OFFSET('Smelter Look-up'!$E$4,$V1572-4,0))","v":""},{"$f":"IF(C1572=$X$4,\"Enter smelter details\",IF(ISERROR($V1572),\"\",OFFSET('Smelter Look-up'!$F$4,$V1572-4,0)))","v":""},{"$f":"IF(ISERROR($V1572),\"\",OFFSET('Smelter Look-up'!$G$4,$V1572-4,0))","v":""},{"$f":"IF(ISERROR($V1572),\"\",OFFSET('Smelter Look-up'!$H$4,$V1572-4,0))","v":""},{"$f":"IF(ISERROR($V1572),\"\",OFFSET('Smelter Look-up'!$I$4,$V1572-4,0))","v":""},{"$nulls":7},{"$f":"IF(ISERROR($V1572),\"\",OFFSET('Smelter Look-up'!$C$4,$V1572-4,0)&\"\")","v":""},"",{"$f":"IF(B1572=\"\",\"\",IF(ISERROR(MATCH($J1572,SorP!$B$1:$B$5661,0)),\"\",INDIRECT(\"'SorP'!$A$\"&MATCH($J1572,SorP!$B$1:$B$5661,0))))","v":""},null,{"$f":"IF(C1572=\"\",NA(),MATCH($B1572&$C1572,'Smelter Look-up'!$J:$J,0))","v":{"$error":"#N/A"}},null,0,null,null,null,""]
[null,{"$f":"IF(LEN(A1573)=0,\"\",INDEX('Smelter Look-up'!$A:$A,MATCH($A1573,'Smelter Look-up'!$E:$E,0)))","v":""},{"$f":"IF(LEN(A1573)=0,\"\",INDEX('Smelter Look-up'!$C:$C,MATCH($A1573,'Smelter Look-up'!$E:$E,0)))","v":""},null,{"$f":"IF(ISERROR($V1573),\"\",OFFSET('Smelter Look-up'!$D$4,$V1573-4,0)&\"\")","v":""},{"$f":"IF(ISERROR($V1573),\"\",OFFSET('Smelter Look-up'!$E$4,$V1573-4,0))","v":""},{"$f":"IF(C1573=$X$4,\"Enter smelter details\",IF(ISERROR($V1573),\"\",OFFSET('Smelter Look-up'!$F$4,$V1573-4,0)))","v":""},{"$f":"IF(ISERROR($V1573),\"\",OFFSET('Smelter Look-up'!$G$4,$V1573-4,0))","v":""},{"$f":"IF(ISERROR($V1573),\"\",OFFSET('Smelter Look-up'!$H$4,$V1573-4,0))","v":""},{"$f":"IF(ISERROR($V1573),\"\",OFFSET('Smelter Look-up'!$I$4,$V1573-4,0))","v":""},{"$nulls":7},{"$f":"IF(ISERROR($V1573),\"\",OFFSET('Smelter Look-up'!$C$4,$V1573-4,0)&\"\")","v":""},"",{"$f":"IF(B1573=\"\",\"\",IF(ISERROR(MATCH($J1573,SorP!$B$1:$B$5661,0)),\"\",INDIRECT(\"'SorP'!$A$\"&MATCH($J1573,SorP!$B$1:$B$5661,0))))","v":""},null,{"$f":"IF(C1573=\"\",NA(),MATCH($B1573&$C1573,'Smelter Look-up'!$J:$J,0))","v":{"$error":"#N/A"}},null,0,null,null,null,""]
[null,{"$f":"IF(LEN(A1574)=0,\"\",INDEX('Smelter Look-up'!$A:$A,MATCH($A1574,'Smelter Look-up'!$E:$E,0)))","v":""},{"$f":"IF(LEN(A1574)=0,\"\",INDEX('Smelter Look-up'!$C:$C,MATCH($A1574,'Smelter Look-up'!$E:$E,0)))","v":""},null,{"$f":"IF(ISERROR($V1574),\"\",OFFSET('Smelter Look-up'!$D$4,$V1574-4,0)&\"\")","v":""},{"$f":"IF(ISERROR($V1574),\"\",OFFSET('Smelter Look-up'!$E$4,$V1574-4,0))","v":""},{"$f":"IF(C1574=$X$4,\"Enter smelter details\",IF(ISERROR($V1574),\"\",OFFSET('Smelter Look-up'!$F$4,$V1574-4,0)))","v":""},{"$f":"IF(ISERROR($V1574),\"\",OFFSET('Smelter Look-up'!$G$4,$V1574-4,0))","v":""},{"$f":"IF(ISERROR($V1574),\"\",OFFSET('Smelter Look-up'!$H$4,$V1574-4,0))","v":""},{"$f":"IF(ISERROR($V1574),\"\",OFFSET('Smelter Look-up'!$I$4,$V1574-4,0))","v":""},{"$nulls":7},{"$f":"IF(ISERROR($V1574),\"\",OFFSET('Smelter Look-up'!$C$4,$V1574-4,0)&\"\")","v":""},"",{"$f":"IF(B1574=\"\",\"\",IF(ISERROR(MATCH($J1574,SorP!$B$1:$B$5661,0)),\"\",INDIRECT(\"'SorP'!$A$\"&MATCH($J1574,SorP!$B$1:$B$5661,0))))","v":""},null,{"$f":"IF(C1574=\"\",NA(),MATCH($B1574&$C1574,'Smelter Look-up'!$J:$J,0))","v":{"$error":"#N/A"}},null,0,null,null,null,""]
[null,{"$f":"IF(LEN(A1575)=0,\"\",INDEX('Smelter Look-up'!$A:$A,MATCH($A1575,'Smelter Look-up'!$E:$E,0)))","v":""},{"$f":"IF(LEN(A1575)=0,\"\",INDEX('Smelter Look-up'!$C:$C,MATCH($A1575,'Smelter Look-up'!$E:$E,0)))","v":""},null,{"$f":"IF(ISERROR($V1575),\"\",OFFSET('Smelter Look-up'!$D$4,$V1575-4,0)&\"\")","v":""},{"$f":"IF(ISERROR($V1575),\"\",OFFSET('Smelter Look-up'!$E$4,$V1575-4,0))","v":""},{"$f":"IF(C1575=$X$4,\"Enter smelter details\",IF(ISERROR($V1575),\"\",OFFSET('Smelter Look-up'!$F$4,$V1575-4,0)))","v":""},{"$f":"IF(ISERROR($V1575),\"\",OFFSET('Smelter Look-up'!$G$4,$V1575-4,0))","v":""},{"$f":"IF(ISERROR($V1575),\"\",OFFSET('Smelter Look-up'!$H$4,$V1575-4,0))","v":""},{"$f":"IF(ISERROR($V1575),\"\",OFFSET('Smelter Look-up'!$I$4,$V1575-4,0))","v":""},{"$nulls":7},{"$f":"IF(ISERROR($V1575),\"\",OFFSET('Smelter Look-up'!$C$4,$V1575-4,0)&\"\")","v":""},"",{"$f":"IF(B1575=\"\",\"\",IF(ISERROR(MATCH($J1575,SorP!$B$1:$B$5661,0)),\"\",INDIRECT(\"'SorP'!$A$\"&MATCH($J1575,SorP!$B$1:$B$5661,0))))","v":""},null,{"$f":"IF(C1575=\"\",NA(),MATCH($B1575&$C1575,'Smelter Look-up'!$J:$J,0))","v":{"$error":"#N/A"}},null,0,null,null,null,""]
[null,{"$f":"IF(LEN(A1576)=0,\"\",INDEX('Smelter Look-up'!$A:$A,MATCH($A1576,'Smelter Look-up'!$E:$E,0)))","v":""},{"$f":"IF(LEN(A1576)=0,\"\",INDEX('Smelter Look-up'!$C:$C,MATCH($A1576,'Smelter Look-up'!$E:$E,0)))","v":""},null,{"$f":"IF(ISERROR($V1576),\"\",OFFSET('Smelter Look-up'!$D$4,$V1576-4,0)&\"\")","v":""},{"$f":"IF(ISERROR($V1576),\"\",OFFSET('Smelter Look-up'!$E$4,$V1576-4,0))","v":""},{"$f":"IF(C1576=$X$4,\"Enter smelter details\",IF(ISERROR($V1576),\"\",OFFSET('Smelter Look-up'!$F$4,$V1576-4,0)))","v":""},{"$f":"IF(ISERROR($V1576),\"\",OFFSET('Smelter Look-up'!$G$4,$V1576-4,0))","v":""},{"$f":"IF(ISERROR($V1576),\"\",OFFSET('Smelter Look-up'!$H$4,$V1576-4,0))","v":""},{"$f":"IF(ISERROR($V1576),\"\",OFFSET('Smelter Look-up'!$I$4,$V1576-4,0))","v":""},{"$nulls":7},{"$f":"IF(ISERROR($V1576),\"\",OFFSET('Smelter Look-up'!$C$4,$V1576-4,0)&\"\")","v":""},"",{"$f":"IF(B1576=\"\",\"\",IF(ISERROR(MATCH($J1576,SorP!$B$1:$B$5661,0)),\"\",INDIRECT(\"'SorP'!$A$\"&MATCH($J1576,SorP!$B$1:$B$5661,0))))","v":""},null,{"$f":"IF(C1576=\"\",NA(),MATCH($B1576&$C1576,'Smelter Look-up'!$J:$J,0))","v":{"$error":"#N/A"}},null,0,null,null,null,""]
[null,{"$f":"IF(LEN(A1577)=0,\"\",INDEX('Smelter Look-up'!$A:$A,MATCH($A1577,'Smelter Look-up'!$E:$E,0)))","v":""},{"$f":"IF(LEN(A1577)=0,\"\",INDEX('Smelter Look-up'!$C:$C,MATCH($A1577,'Smelter Look-up'!$E:$E,0)))","v":""},null,{"$f":"IF(ISERROR($V1577),\"\",OFFSET('Smelter Look-up'!$D$4,$V1577-4,0)&\"\")","v":""},{"$f":"IF(ISERROR($V1577),\"\",OFFSET('Smelter Look-up'!$E$4,$V1577-4,0))","v":""},{"$f":"IF(C1577=$X$4,\"Enter smelter details\",IF(ISERROR($V1577),\"\",OFFSET('Smelter Look-up'!$F$4,$V1577-4,0)))","v":""},{"$f":"IF(ISERROR($V1577),\"\",OFFSET('Smelter Look-up'!$G$4,$V1577-4,0))","v":""},{"$f":"IF(ISERROR($V1577),\"\",OFFSET('Smelter Look-up'!$H$4,$V1577-4,0))","v":""},{"$f":"IF(ISERROR($V1577),\"\",OFFSET('Smelter Look-up'!$I$4,$V1577-4,0))","v":""},{"$nulls":7},{"$f":"IF(ISERROR($V1577),\"\",OFFSET('Smelter Look-up'!$C$4,$V1577-4,0)&\"\")","v":""},"",{"$f":"IF(B1577=\"\",\"\",IF(ISERROR(MATCH($J1577,SorP!$B$1:$B$5661,0)),\"\",INDIRECT(\"'SorP'!$A$\"&MATCH($J1577,SorP!$B$1:$B$5661,0))))","v":""},null,{"$f":"IF(C1577=\"\",NA(),MATCH($B1577&$C1577,'Smelter Look-up'!$J:$J,0))","v":{"$error":"#N/A"}},null,0,null,null,null,""]
[null,{"$f":"IF(LEN(A1578)=0,\"\",INDEX('Smelter Look-up'!$A:$A,MATCH($A1578,'Smelter Look-up'!$E:$E,0)))","v":""},{"$f":"IF(LEN(A1578)=0,\"\",INDEX('Smelter Look-up'!$C:$C,MATCH($A1578,'Smelter Look-up'!$E:$E,0)))","v":""},null,{"$f":"IF(ISERROR($V1578),\"\",OFFSET('Smelter Look-up'!$D$4,$V1578-4,0)&\"\")","v":""},{"$f":"IF(ISERROR($V1578),\"\",OFFSET('Smelter Look-up'!$E$4,$V1578-4,0))","v":""},{"$f":"IF(C1578=$X$4,\"Enter smelter details\",IF(ISERROR($V1578),\"\",OFFSET('Smelter Look-up'!$F$4,$V1578-4,0)))","v":""},{"$f":"IF(ISERROR($V1578),\"\",OFFSET('Smelter Look-up'!$G$4,$V1578-4,0))","v":""},{"$f":"IF(ISERROR($V1578),\"\",OFFSET('Smelter Look-up'!$H$4,$V1578-4,0))","v":""},{"$f":"IF(ISERROR($V1578),\"\",OFFSET('Smelter Look-up'!$I$4,$V1578-4,0))","v":""},{"$nulls":7},{"$f":"IF(ISERROR($V1578),\"\",OFFSET('Smelter Look-up'!$C$4,$V1578-4,0)&\"\")","v":""},"",{"$f":"IF(B1578=\"\",\"\",IF(ISERROR(MATCH($J1578,SorP!$B$1:$B$5661,0)),\"\",INDIRECT(\"'SorP'!$A$\"&MATCH($J1578,SorP!$B$1:$B$5661,0))))","v":""},null,{"$f":"IF(C1578=\"\",NA(),MATCH($B1578&$C1578,'Smelter Look-up'!$J:$J,0))","v":{"$error":"#N/A"}},null,0,null,null,null,""]
[null,{"$f":"IF(LEN(A1579)=0,\"\",INDEX('Smelter Look-up'!$A:$A,MATCH($A1579,'Smelter Look-up'!$E:$E,0)))","v":""},{"$f":"IF(LEN(A1579)=0,\"\",INDEX('Smelter Look-up'!$C:$C,MATCH($A1579,'Smelter Look-up'!$E:$E,0)))","v":""},null,{"$f":"IF(ISERROR($V1579),\"\",OFFSET('Smelter Look-up'!$D$4,$V1579-4,0)&\"\")","v":""},{"$f":"IF(ISERROR($V1579),\"\",OFFSET('Smelter Look-up'!$E$4,$V1579-4,0))","v":""},{"$f":"IF(C1579=$X$4,\"Enter smelter details\",IF(ISERROR($V1579),\"\",OFFSET('Smelter Look-up'!$F$4,$V1579-4,0)))","v":""},{"$f":"IF(ISERROR($V1579),\"\",OFFSET('Smelter Look-up'!$G$4,$V1579-4,0))","v":""},{"$f":"IF(ISERROR($V1579),\"\",OFFSET('Smelter Look-up'!$H$4,$V1579-4,0))","v":""},{"$f":"IF(ISERROR($V1579),\"\",OFFSET('Smelter Look-up'!$I$4,$V1579-4,0))","v":""},{"$nulls":7},{"$f":"IF(ISERROR($V1579),\"\",OFFSET('Smelter Look-up'!$C$4,$V1579-4,0)&\"\")","v":""},"",{"$f":"IF(B1579=\"\",\"\",IF(ISERROR(MATCH($J1579,SorP!$B$1:$B$5661,0)),\"\",INDIRECT(\"'SorP'!$A$\"&MATCH($J1579,SorP!$B$1:$B$5661,0))))","v":""},null,{"$f":"IF(C1579=\"\",NA(),MATCH($B1579&$C1579,'Smelter Look-up'!$J:$J,0))","v":{"$error":"#N/A"}},null,0,null,null,null,""]
[null,{"$f":"IF(LEN(A1580)=0,\"\",INDEX('Smelter Look-up'!$A:$A,MATCH($A1580,'Smelter Look-up'!$E:$E,0)))","v":""},{"$f":"IF(LEN(A1580)=0,\"\",INDEX('Smelter Look-up'!$C:$C,MATCH($A1580,'Smelter Look-up'!$E:$E,0)))","v":""},null,{"$f":"IF(ISERROR($V1580),\"\",OFFSET('Smelter Look-up'!$D$4,$V1580-4,0)&\"\")","v":""},{"$f":"IF(ISERROR($V1580),\"\",OFFSET('Smelter Look-up'!$E$4,$V1580-4,0))","v":""},{"$f":"IF(C1580=$X$4,\"Enter smelter details\",IF(ISERROR($V1580),\"\",OFFSET('Smelter Look-up'!$F$4,$V1580-4,0)))","v":""},{"$f":"IF(ISERROR($V1580),\"\",OFFSET('Smelter Look-up'!$G$4,$V1580-4,0))","v":""},{"$f":"IF(ISERROR($V1580),\"\",OFFSET('Smelter Look-up'!$H$4,$V1580-4,0))","v":""},{"$f":"IF(ISERROR($V1580),\"\",OFFSET('Smelter Look-up'!$I$4,$V1580-4,0))","v":""},{"$nulls":7},{"$f":"IF(ISERROR($V1580),\"\",OFFSET('Smelter Look-up'!$C$4,$V1580-4,0)&\"\")","v":""},"",{"$f":"IF(B1580=\"\",\"\",IF(ISERROR(MATCH($J1580,SorP!$B$1:$B$5661,0)),\"\",INDIRECT(\"'SorP'!$A$\"&MATCH($J1580,SorP!$B$1:$B$5661,0))))","v":""},null,{"$f":"IF(C1580=\"\",NA(),MATCH($B1580&$C1580,'Smelter Look-up'!$J:$J,0))","v":{"$error":"#N/A"}},null,0,null,null,null,""]
[null,{"$f":"IF(LEN(A1581)=0,\"\",INDEX('Smelter Look-up'!$A:$A,MATCH($A1581,'Smelter Look-up'!$E:$E,0)))","v":""},{"$f":"IF(LEN(A1581)=0,\"\",INDEX('Smelter Look-up'!$C:$C,MATCH($A1581,'Smelter Look-up'!$E:$E,0)))","v":""},null,{"$f":"IF(ISERROR($V1581),\"\",OFFSET('Smelter Look-up'!$D$4,$V1581-4,0)&\"\")","v":""},{"$f":"IF(ISERROR($V1581),\"\",OFFSET('Smelter Look-up'!$E$4,$V1581-4,0))","v":""},{"$f":"IF(C1581=$X$4,\"Enter smelter details\",IF(ISERROR($V1581),\"\",OFFSET('Smelter Look-up'!$F$4,$V1581-4,0)))","v":""},{"$f":"IF(ISERROR($V1581),\"\",OFFSET('Smelter Look-up'!$G$4,$V1581-4,0))","v":""},{"$f":"IF(ISERROR($V1581),\"\",OFFSET('Smelter Look-up'!$H$4,$V1581-4,0))","v":""},{"$f":"IF(ISERROR($V1581),\"\",OFFSET('Smelter Look-up'!$I$4,$V1581-4,0))","v":""},{"$nulls":7},{"$f":"IF(ISERROR($V1581),\"\",OFFSET('Smelter Look-up'!$C$4,$V1581-4,0)&\"\")","v":""},"",{"$f":"IF(B1581=\"\",\"\",IF(ISERROR(MATCH($J1581,SorP!$B$1:$B$5661,0)),\"\",INDIRECT(\"'SorP'!$A$\"&MATCH($J1581,SorP!$B$1:$B$5661,0))))","v":""},null,{"$f":"IF(C1581=\"\",NA(),MATCH($B1581&$C1581,'Smelter Look-up'!$J:$J,0))","v":{"$error":"#N/A"}},null,0,null,null,null,""]
[null,{"$f":"IF(LEN(A1582)=0,\"\",INDEX('Smelter Look-up'!$A:$A,MATCH($A1582,'Smelter Look-up'!$E:$E,0)))","v":""},{"$f":"IF(LEN(A1582)=0,\"\",INDEX('Smelter Look-up'!$C:$C,MATCH($A1582,'Smelter Look-up'!$E:$E,0)))","v":""},null,{"$f":"IF(ISERROR($V1582),\"\",OFFSET('Smelter Look-up'!$D$4,$V1582-4,0)&\"\")","v":""},{"$f":"IF(ISERROR($V1582),\"\",OFFSET('Smelter Look-up'!$E$4,$V1582-4,0))","v":""},{"$f":"IF(C1582=$X$4,\"Enter smelter details\",IF(ISERROR($V1582),\"\",OFFSET('Smelter Look-up'!$F$4,$V1582-4,0)))","v":""},{"$f":"IF(ISERROR($V1582),\"\",OFFSET('Smelter Look-up'!$G$4,$V1582-4,0))","v":""},{"$f":"IF(ISERROR($V1582),\"\",OFFSET('Smelter Look-up'!$H$4,$V1582-4,0))","v":""},{"$f":"IF(ISERROR($V1582),\"\",OFFSET('Smelter Look-up'!$I$4,$V1582-4,0))","v":""},{"$nulls":7},{"$f":"IF(ISERROR($V1582),\"\",OFFSET('Smelter Look-up'!$C$4,$V1582-4,0)&\"\")","v":""},"",{"$f":"IF(B1582=\"\",\"\",IF(ISERROR(MATCH($J1582,SorP!$B$1:$B$5661,0)),\"\",INDIRECT(\"'SorP'!$A$\"&MATCH($J1582,SorP!$B$1:$B$5661,0))))","v":""},null,{"$f":"IF(C1582=\"\",NA(),MATCH($B1582&$C1582,'Smelter Look-up'!$J:$J,0))","v":{"$error":"#N/A"}},null,0,null,null,null,""]
[null,{"$f":"IF(LEN(A1583)=0,\"\",INDEX('Smelter Look-up'!$A:$A,MATCH($A1583,'Smelter Look-up'!$E:$E,0)))","v":""},{"$f":"IF(LEN(A1583)=0,\"\",INDEX('Smelter Look-up'!$C:$C,MATCH($A1583,'Smelter Look-up'!$E:$E,0)))","v":""},null,{"$f":"IF(ISERROR($V1583),\"\",OFFSET('Smelter Look-up'!$D$4,$V1583-4,0)&\"\")","v":""},{"$f":"IF(ISERROR($V1583),\"\",OFFSET('Smelter Look-up'!$E$4,$V1583-4,0))","v":""},{"$f":"IF(C1583=$X$4,\"Enter smelter details\",IF(ISERROR($V1583),\"\",OFFSET('Smelter Look-up'!$F$4,$V1583-4,0)))","v":""},{"$f":"IF(ISERROR($V1583),\"\",OFFSET('Smelter Look-up'!$G$4,$V1583-4,0))","v":""},{"$f":"IF(ISERROR($V1583),\"\",OFFSET('Smelter Look-up'!$H$4,$V1583-4,0))","v":""},{"$f":"IF(ISERROR($V1583),\"\",OFFSET('Smelter Look-up'!$I$4,$V1583-4,0))","v":""},{"$nulls":7},{"$f":"IF(ISERROR($V1583),\"\",OFFSET('Smelter Look-up'!$C$4,$V1583-4,0)&\"\")","v":""},"",{"$f":"IF(B1583=\"\",\"\",IF(ISERROR(MATCH($J1583,SorP!$B$1:$B$5661,0)),\"\",INDIRECT(\"'SorP'!$A$\"&MATCH($J1583,SorP!$B$1:$B$5661,0))))","v":""},null,{"$f":"IF(C1583=\"\",NA(),MATCH($B1583&$C1583,'Smelter Look-up'!$J:$J,0))","v":{"$error":"#N/A"}},null,0,null,null,null,""]
[null,{"$f":"IF(LEN(A1584)=0,\"\",INDEX('Smelter Look-up'!$A:$A,MATCH($A1584,'Smelter Look-up'!$E:$E,0)))","v":""},{"$f":"IF(LEN(A1584)=0,\"\",INDEX('Smelter Look-up'!$C:$C,MATCH($A1584,'Smelter Look-up'!$E:$E,0)))","v":""},null,{"$f":"IF(ISERROR($V1584),\"\",OFFSET('Smelter Look-up'!$D$4,$V1584-4,0)&\"\")","v":""},{"$f":"IF(ISERROR($V1584),\"\",OFFSET('Smelter Look-up'!$E$4,$V1584-4,0))","v":""},{"$f":"IF(C1584=$X$4,\"Enter smelter details\",IF(ISERROR($V1584),\"\",OFFSET('Smelter Look-up'!$F$4,$V1584-4,0)))","v":""},{"$f":"IF(ISERROR($V1584),\"\",OFFSET('Smelter Look-up'!$G$4,$V1584-4,0))","v":""},{"$f":"IF(ISERROR($V1584),\"\",OFFSET('Smelter Look-up'!$H$4,$V1584-4,0))","v":""},{"$f":"IF(ISERROR($V1584),\"\",OFFSET('Smelter Look-up'!$I$4,$V1584-4,0))","v":""},{"$nulls":7},{"$f":"IF(ISERROR($V1584),\"\",OFFSET('Smelter Look-up'!$C$4,$V1584-4,0)&\"\")","v":""},"",{"$f":"IF(B1584=\"\",\"\",IF(ISERROR(MATCH($J1584,SorP!$B$1:$B$5661,0)),\"\",INDIRECT(\"'SorP'!$A$\"&MATCH($J1584,SorP!$B$1:$B$5661,0))))","v":""},null,{"$f":"IF(C1584=\"\",NA(),MATCH($B1584&$C1584,'Smelter Look-up'!$J:$J,0))","v":{"$error":"#N/A"}},null,0,null,null,null,""]
[null,{"$f":"IF(LEN(A1585)=0,\"\",INDEX('Smelter Look-up'!$A:$A,MATCH($A1585,'Smelter Look-up'!$E:$E,0)))","v":""},{"$f":"IF(LEN(A1585)=0,\"\",INDEX('Smelter Look-up'!$C:$C,MATCH($A1585,'Smelter Look-up'!$E:$E,0)))","v":""},null,{"$f":"IF(ISERROR($V1585),\"\",OFFSET('Smelter Look-up'!$D$4,$V1585-4,0)&\"\")","v":""},{"$f":"IF(ISERROR($V1585),\"\",OFFSET('Smelter Look-up'!$E$4,$V1585-4,0))","v":""},{"$f":"IF(C1585=$X$4,\"Enter smelter details\",IF(ISERROR($V1585),\"\",OFFSET('Smelter Look-up'!$F$4,$V1585-4,0)))","v":""},{"$f":"IF(ISERROR($V1585),\"\",OFFSET('Smelter Look-up'!$G$4,$V1585-4,0))","v":""},{"$f":"IF(ISERROR($V1585),\"\",OFFSET('Smelter Look-up'!$H$4,$V1585-4,0))","v":""},{"$f":"IF(ISERROR($V1585),\"\",OFFSET('Smelter Look-up'!$I$4,$V1585-4,0))","v":""},{"$nulls":7},{"$f":"IF(ISERROR($V1585),\"\",OFFSET('Smelter Look-up'!$C$4,$V1585-4,0)&\"\")","v":""},"",{"$f":"IF(B1585=\"\",\"\",IF(ISERROR(MATCH($J1585,SorP!$B$1:$B$5661,0)),\"\",INDIRECT(\"'SorP'!$A$\"&MATCH($J1585,SorP!$B$1:$B$5661,0))))","v":""},null,{"$f":"IF(C1585=\"\",NA(),MATCH($B1585&$C1585,'Smelter Look-up'!$J:$J,0))","v":{"$error":"#N/A"}},null,0,null,null,null,""]
[null,{"$f":"IF(LEN(A1586)=0,\"\",INDEX('Smelter Look-up'!$A:$A,MATCH($A1586,'Smelter Look-up'!$E:$E,0)))","v":""},{"$f":"IF(LEN(A1586)=0,\"\",INDEX('Smelter Look-up'!$C:$C,MATCH($A1586,'Smelter Look-up'!$E:$E,0)))","v":""},null,{"$f":"IF(ISERROR($V1586),\"\",OFFSET('Smelter Look-up'!$D$4,$V1586-4,0)&\"\")","v":""},{"$f":"IF(ISERROR($V1586),\"\",OFFSET('Smelter Look-up'!$E$4,$V1586-4,0))","v":""},{"$f":"IF(C1586=$X$4,\"Enter smelter details\",IF(ISERROR($V1586),\"\",OFFSET('Smelter Look-up'!$F$4,$V1586-4,0)))","v":""},{"$f":"IF(ISERROR($V1586),\"\",OFFSET('Smelter Look-up'!$G$4,$V1586-4,0))","v":""},{"$f":"IF(ISERROR($V1586),\"\",OFFSET('Smelter Look-up'!$H$4,$V1586-4,0))","v":""},{"$f":"IF(ISERROR($V1586),\"\",OFFSET('Smelter Look-up'!$I$4,$V1586-4,0))","v":""},{"$nulls":7},{"$f":"IF(ISERROR($V1586),\"\",OFFSET('Smelter Look-up'!$C$4,$V1586-4,0)&\"\")","v":""},"",{"$f":"IF(B1586=\"\",\"\",IF(ISERROR(MATCH($J1586,SorP!$B$1:$B$5661,0)),\"\",INDIRECT(\"'SorP'!$A$\"&MATCH($J1586,SorP!$B$1:$B$5661,0))))","v":""},null,{"$f":"IF(C1586=\"\",NA(),MATCH($B1586&$C1586,'Smelter Look-up'!$J:$J,0))","v":{"$error":"#N/A"}},null,0,null,null,null,""]
[null,{"$f":"IF(LEN(A1587)=0,\"\",INDEX('Smelter Look-up'!$A:$A,MATCH($A1587,'Smelter Look-up'!$E:$E,0)))","v":""},{"$f":"IF(LEN(A1587)=0,\"\",INDEX('Smelter Look-up'!$C:$C,MATCH($A1587,'Smelter Look-up'!$E:$E,0)))","v":""},null,{"$f":"IF(ISERROR($V1587),\"\",OFFSET('Smelter Look-up'!$D$4,$V1587-4,0)&\"\")","v":""},{"$f":"IF(ISERROR($V1587),\"\",OFFSET('Smelter Look-up'!$E$4,$V1587-4,0))","v":""},{"$f":"IF(C1587=$X$4,\"Enter smelter details\",IF(ISERROR($V1587),\"\",OFFSET('Smelter Look-up'!$F$4,$V1587-4,0)))","v":""},{"$f":"IF(ISERROR($V1587),\"\",OFFSET('Smelter Look-up'!$G$4,$V1587-4,0))","v":""},{"$f":"IF(ISERROR($V1587),\"\",OFFSET('Smelter Look-up'!$H$4,$V1587-4,0))","v":""},{"$f":"IF(ISERROR($V1587),\"\",OFFSET('Smelter Look-up'!$I$4,$V1587-4,0))","v":""},{"$nulls":7},{"$f":"IF(ISERROR($V1587),\"\",OFFSET('Smelter Look-up'!$C$4,$V1587-4,0)&\"\")","v":""},"",{"$f":"IF(B1587=\"\",\"\",IF(ISERROR(MATCH($J1587,SorP!$B$1:$B$5661,0)),\"\",INDIRECT(\"'SorP'!$A$\"&MATCH($J1587,SorP!$B$1:$B$5661,0))))","v":""},null,{"$f":"IF(C1587=\"\",NA(),MATCH($B1587&$C1587,'Smelter Look-up'!$J:$J,0))","v":{"$error":"#N/A"}},null,0,null,null,null,""]
[null,{"$f":"IF(LEN(A1588)=0,\"\",INDEX('Smelter Look-up'!$A:$A,MATCH($A1588,'Smelter Look-up'!$E:$E,0)))","v":""},{"$f":"IF(LEN(A1588)=0,\"\",INDEX('Smelter Look-up'!$C:$C,MATCH($A1588,'Smelter Look-up'!$E:$E,0)))","v":""},null,{"$f":"IF(ISERROR($V1588),\"\",OFFSET('Smelter Look-up'!$D$4,$V1588-4,0)&\"\")","v":""},{"$f":"IF(ISERROR($V1588),\"\",OFFSET('Smelter Look-up'!$E$4,$V1588-4,0))","v":""},{"$f":"IF(C1588=$X$4,\"Enter smelter details\",IF(ISERROR($V1588),\"\",OFFSET('Smelter Look-up'!$F$4,$V1588-4,0)))","v":""},{"$f":"IF(ISERROR($V1588),\"\",OFFSET('Smelter Look-up'!$G$4,$V1588-4,0))","v":""},{"$f":"IF(ISERROR($V1588),\"\",OFFSET('Smelter Look-up'!$H$4,$V1588-4,0))","v":""},{"$f":"IF(ISERROR($V1588),\"\",OFFSET('Smelter Look-up'!$I$4,$V1588-4,0))","v":""},{"$nulls":7},{"$f":"IF(ISERROR($V1588),\"\",OFFSET('Smelter Look-up'!$C$4,$V1588-4,0)&\"\")","v":""},"",{"$f":"IF(B1588=\"\",\"\",IF(ISERROR(MATCH($J1588,SorP!$B$1:$B$5661,0)),\"\",INDIRECT(\"'SorP'!$A$\"&MATCH($J1588,SorP!$B$1:$B$5661,0))))","v":""},null,{"$f":"IF(C1588=\"\",NA(),MATCH($B1588&$C1588,'Smelter Look-up'!$J:$J,0))","v":{"$error":"#N/A"}},null,0,null,null,null,""]
[null,{"$f":"IF(LEN(A1589)=0,\"\",INDEX('Smelter Look-up'!$A:$A,MATCH($A1589,'Smelter Look-up'!$E:$E,0)))","v":""},{"$f":"IF(LEN(A1589)=0,\"\",INDEX('Smelter Look-up'!$C:$C,MATCH($A1589,'Smelter Look-up'!$E:$E,0)))","v":""},null,{"$f":"IF(ISERROR($V1589),\"\",OFFSET('Smelter Look-up'!$D$4,$V1589-4,0)&\"\")","v":""},{"$f":"IF(ISERROR($V1589),\"\",OFFSET('Smelter Look-up'!$E$4,$V1589-4,0))","v":""},{"$f":"IF(C1589=$X$4,\"Enter smelter details\",IF(ISERROR($V1589),\"\",OFFSET('Smelter Look-up'!$F$4,$V1589-4,0)))","v":""},{"$f":"IF(ISERROR($V1589),\"\",OFFSET('Smelter Look-up'!$G$4,$V1589-4,0))","v":""},{"$f":"IF(ISERROR($V1589),\"\",OFFSET('Smelter Look-up'!$H$4,$V1589-4,0))","v":""},{"$f":"IF(ISERROR($V1589),\"\",OFFSET('Smelter Look-up'!$I$4,$V1589-4,0))","v":""},{"$nulls":7},{"$f":"IF(ISERROR($V1589),\"\",OFFSET('Smelter Look-up'!$C$4,$V1589-4,0)&\"\")","v":""},"",{"$f":"IF(B1589=\"\",\"\",IF(ISERROR(MATCH($J1589,SorP!$B$1:$B$5661,0)),\"\",INDIRECT(\"'SorP'!$A$\"&MATCH($J1589,SorP!$B$1:$B$5661,0))))","v":""},null,{"$f":"IF(C1589=\"\",NA(),MATCH($B1589&$C1589,'Smelter Look-up'!$J:$J,0))","v":{"$error":"#N/A"}},null,0,null,null,null,""]
[null,{"$f":"IF(LEN(A1590)=0,\"\",INDEX('Smelter Look-up'!$A:$A,MATCH($A1590,'Smelter Look-up'!$E:$E,0)))","v":""},{"$f":"IF(LEN(A1590)=0,\"\",INDEX('Smelter Look-up'!$C:$C,MATCH($A1590,'Smelter Look-up'!$E:$E,0)))","v":""},null,{"$f":"IF(ISERROR($V1590),\"\",OFFSET('Smelter Look-up'!$D$4,$V1590-4,0)&\"\")","v":""},{"$f":"IF(ISERROR($V1590),\"\",OFFSET('Smelter Look-up'!$E$4,$V1590-4,0))","v":""},{"$f":"IF(C1590=$X$4,\"Enter smelter details\",IF(ISERROR($V1590),\"\",OFFSET('Smelter Look-up'!$F$4,$V1590-4,0)))","v":""},{"$f":"IF(ISERROR($V1590),\"\",OFFSET('Smelter Look-up'!$G$4,$V1590-4,0))","v":""},{"$f":"IF(ISERROR($V1590),\"\",OFFSET('Smelter Look-up'!$H$4,$V1590-4,0))","v":""},{"$f":"IF(ISERROR($V1590),\"\",OFFSET('Smelter Look-up'!$I$4,$V1590-4,0))","v":""},{"$nulls":7},{"$f":"IF(ISERROR($V1590),\"\",OFFSET('Smelter Look-up'!$C$4,$V1590-4,0)&\"\")","v":""},"",{"$f":"IF(B1590=\"\",\"\",IF(ISERROR(MATCH($J1590,SorP!$B$1:$B$5661,0)),\"\",INDIRECT(\"'SorP'!$A$\"&MATCH($J1590,SorP!$B$1:$B$5661,0))))","v":""},null,{"$f":"IF(C1590=\"\",NA(),MATCH($B1590&$C1590,'Smelter Look-up'!$J:$J,0))","v":{"$error":"#N/A"}},null,0,null,null,null,""]
[null,{"$f":"IF(LEN(A1591)=0,\"\",INDEX('Smelter Look-up'!$A:$A,MATCH($A1591,'Smelter Look-up'!$E:$E,0)))","v":""},{"$f":"IF(LEN(A1591)=0,\"\",INDEX('Smelter Look-up'!$C:$C,MATCH($A1591,'Smelter Look-up'!$E:$E,0)))","v":""},null,{"$f":"IF(ISERROR($V1591),\"\",OFFSET('Smelter Look-up'!$D$4,$V1591-4,0)&\"\")","v":""},{"$f":"IF(ISERROR($V1591),\"\",OFFSET('Smelter Look-up'!$E$4,$V1591-4,0))","v":""},{"$f":"IF(C1591=$X$4,\"Enter smelter details\",IF(ISERROR($V1591),\"\",OFFSET('Smelter Look-up'!$F$4,$V1591-4,0)))","v":""},{"$f":"IF(ISERROR($V1591),\"\",OFFSET('Smelter Look-up'!$G$4,$V1591-4,0))","v":""},{"$f":"IF(ISERROR($V1591),\"\",OFFSET('Smelter Look-up'!$H$4,$V1591-4,0))","v":""},{"$f":"IF(ISERROR($V1591),\"\",OFFSET('Smelter Look-up'!$I$4,$V1591-4,0))","v":""},{"$nulls":7},{"$f":"IF(ISERROR($V1591),\"\",OFFSET('Smelter Look-up'!$C$4,$V1591-4,0)&\"\")","v":""},"",{"$f":"IF(B1591=\"\",\"\",IF(ISERROR(MATCH($J1591,SorP!$B$1:$B$5661,0)),\"\",INDIRECT(\"'SorP'!$A$\"&MATCH($J1591,SorP!$B$1:$B$5661,0))))","v":""},null,{"$f":"IF(C1591=\"\",NA(),MATCH($B1591&$C1591,'Smelter Look-up'!$J:$J,0))","v":{"$error":"#N/A"}},null,0,null,null,null,""]
[null,{"$f":"IF(LEN(A1592)=0,\"\",INDEX('Smelter Look-up'!$A:$A,MATCH($A1592,'Smelter Look-up'!$E:$E,0)))","v":""},{"$f":"IF(LEN(A1592)=0,\"\",INDEX('Smelter Look-up'!$C:$C,MATCH($A1592,'Smelter Look-up'!$E:$E,0)))","v":""},null,{"$f":"IF(ISERROR($V1592),\"\",OFFSET('Smelter Look-up'!$D$4,$V1592-4,0)&\"\")","v":""},{"$f":"IF(ISERROR($V1592),\"\",OFFSET('Smelter Look-up'!$E$4,$V1592-4,0))","v":""},{"$f":"IF(C1592=$X$4,\"Enter smelter details\",IF(ISERROR($V1592),\"\",OFFSET('Smelter Look-up'!$F$4,$V1592-4,0)))","v":""},{"$f":"IF(ISERROR($V1592),\"\",OFFSET('Smelter Look-up'!$G$4,$V1592-4,0))","v":""},{"$f":"IF(ISERROR($V1592),\"\",OFFSET('Smelter Look-up'!$H$4,$V1592-4,0))","v":""},{"$f":"IF(ISERROR($V1592),\"\",OFFSET('Smelter Look-up'!$I$4,$V1592-4,0))","v":""},{"$nulls":7},{"$f":"IF(ISERROR($V1592),\"\",OFFSET('Smelter Look-up'!$C$4,$V1592-4,0)&\"\")","v":""},"",{"$f":"IF(B1592=\"\",\"\",IF(ISERROR(MATCH($J1592,SorP!$B$1:$B$5661,0)),\"\",INDIRECT(\"'SorP'!$A$\"&MATCH($J1592,SorP!$B$1:$B$5661,0))))","v":""},null,{"$f":"IF(C1592=\"\",NA(),MATCH($B1592&$C1592,'Smelter Look-up'!$J:$J,0))","v":{"$error":"#N/A"}},null,0,null,null,null,""]
[null,{"$f":"IF(LEN(A1593)=0,\"\",INDEX('Smelter Look-up'!$A:$A,MATCH($A1593,'Smelter Look-up'!$E:$E,0)))","v":""},{"$f":"IF(LEN(A1593)=0,\"\",INDEX('Smelter Look-up'!$C:$C,MATCH($A1593,'Smelter Look-up'!$E:$E,0)))","v":""},null,{"$f":"IF(ISERROR($V1593),\"\",OFFSET('Smelter Look-up'!$D$4,$V1593-4,0)&\"\")","v":""},{"$f":"IF(ISERROR($V1593),\"\",OFFSET('Smelter Look-up'!$E$4,$V1593-4,0))","v":""},{"$f":"IF(C1593=$X$4,\"Enter smelter details\",IF(ISERROR($V1593),\"\",OFFSET('Smelter Look-up'!$F$4,$V1593-4,0)))","v":""},{"$f":"IF(ISERROR($V1593),\"\",OFFSET('Smelter Look-up'!$G$4,$V1593-4,0))","v":""},{"$f":"IF(ISERROR($V1593),\"\",OFFSET('Smelter Look-up'!$H$4,$V1593-4,0))","v":""},{"$f":"IF(ISERROR($V1593),\"\",OFFSET('Smelter Look-up'!$I$4,$V1593-4,0))","v":""},{"$nulls":7},{"$f":"IF(ISERROR($V1593),\"\",OFFSET('Smelter Look-up'!$C$4,$V1593-4,0)&\"\")","v":""},"",{"$f":"IF(B1593=\"\",\"\",IF(ISERROR(MATCH($J1593,SorP!$B$1:$B$5661,0)),\"\",INDIRECT(\"'SorP'!$A$\"&MATCH($J1593,SorP!$B$1:$B$5661,0))))","v":""},null,{"$f":"IF(C1593=\"\",NA(),MATCH($B1593&$C1593,'Smelter Look-up'!$J:$J,0))","v":{"$error":"#N/A"}},null,0,null,null,null,""]
[null,{"$f":"IF(LEN(A1594)=0,\"\",INDEX('Smelter Look-up'!$A:$A,MATCH($A1594,'Smelter Look-up'!$E:$E,0)))","v":""},{"$f":"IF(LEN(A1594)=0,\"\",INDEX('Smelter Look-up'!$C:$C,MATCH($A1594,'Smelter Look-up'!$E:$E,0)))","v":""},null,{"$f":"IF(ISERROR($V1594),\"\",OFFSET('Smelter Look-up'!$D$4,$V1594-4,0)&\"\")","v":""},{"$f":"IF(ISERROR($V1594),\"\",OFFSET('Smelter Look-up'!$E$4,$V1594-4,0))","v":""},{"$f":"IF(C1594=$X$4,\"Enter smelter details\",IF(ISERROR($V1594),\"\",OFFSET('Smelter Look-up'!$F$4,$V1594-4,0)))","v":""},{"$f":"IF(ISERROR($V1594),\"\",OFFSET('Smelter Look-up'!$G$4,$V1594-4,0))","v":""},{"$f":"IF(ISERROR($V1594),\"\",OFFSET('Smelter Look-up'!$H$4,$V1594-4,0))","v":""},{"$f":"IF(ISERROR($V1594),\"\",OFFSET('Smelter Look-up'!$I$4,$V1594-4,0))","v":""},{"$nulls":7},{"$f":"IF(ISERROR($V1594),\"\",OFFSET('Smelter Look-up'!$C$4,$V1594-4,0)&\"\")","v":""},"",{"$f":"IF(B1594=\"\",\"\",IF(ISERROR(MATCH($J1594,SorP!$B$1:$B$5661,0)),\"\",INDIRECT(\"'SorP'!$A$\"&MATCH($J1594,SorP!$B$1:$B$5661,0))))","v":""},null,{"$f":"IF(C1594=\"\",NA(),MATCH($B1594&$C1594,'Smelter Look-up'!$J:$J,0))","v":{"$error":"#N/A"}},null,0,null,null,null,""]
[null,{"$f":"IF(LEN(A1595)=0,\"\",INDEX('Smelter Look-up'!$A:$A,MATCH($A1595,'Smelter Look-up'!$E:$E,0)))","v":""},{"$f":"IF(LEN(A1595)=0,\"\",INDEX('Smelter Look-up'!$C:$C,MATCH($A1595,'Smelter Look-up'!$E:$E,0)))","v":""},null,{"$f":"IF(ISERROR($V1595),\"\",OFFSET('Smelter Look-up'!$D$4,$V1595-4,0)&\"\")","v":""},{"$f":"IF(ISERROR($V1595),\"\",OFFSET('Smelter Look-up'!$E$4,$V1595-4,0))","v":""},{"$f":"IF(C1595=$X$4,\"Enter smelter details\",IF(ISERROR($V1595),\"\",OFFSET('Smelter Look-up'!$F$4,$V1595-4,0)))","v":""},{"$f":"IF(ISERROR($V1595),\"\",OFFSET('Smelter Look-up'!$G$4,$V1595-4,0))","v":""},{"$f":"IF(ISERROR($V1595),\"\",OFFSET('Smelter Look-up'!$H$4,$V1595-4,0))","v":""},{"$f":"IF(ISERROR($V1595),\"\",OFFSET('Smelter Look-up'!$I$4,$V1595-4,0))","v":""},{"$nulls":7},{"$f":"IF(ISERROR($V1595),\"\",OFFSET('Smelter Look-up'!$C$4,$V1595-4,0)&\"\")","v":""},"",{"$f":"IF(B1595=\"\",\"\",IF(ISERROR(MATCH($J1595,SorP!$B$1:$B$5661,0)),\"\",INDIRECT(\"'SorP'!$A$\"&MATCH($J1595,SorP!$B$1:$B$5661,0))))","v":""},null,{"$f":"IF(C1595=\"\",NA(),MATCH($B1595&$C1595,'Smelter Look-up'!$J:$J,0))","v":{"$error":"#N/A"}},null,0,null,null,null,""]
[null,{"$f":"IF(LEN(A1596)=0,\"\",INDEX('Smelter Look-up'!$A:$A,MATCH($A1596,'Smelter Look-up'!$E:$E,0)))","v":""},{"$f":"IF(LEN(A1596)=0,\"\",INDEX('Smelter Look-up'!$C:$C,MATCH($A1596,'Smelter Look-up'!$E:$E,0)))","v":""},null,{"$f":"IF(ISERROR($V1596),\"\",OFFSET('Smelter Look-up'!$D$4,$V1596-4,0)&\"\")","v":""},{"$f":"IF(ISERROR($V1596),\"\",OFFSET('Smelter Look-up'!$E$4,$V1596-4,0))","v":""},{"$f":"IF(C1596=$X$4,\"Enter smelter details\",IF(ISERROR($V1596),\"\",OFFSET('Smelter Look-up'!$F$4,$V1596-4,0)))","v":""},{"$f":"IF(ISERROR($V1596),\"\",OFFSET('Smelter Look-up'!$G$4,$V1596-4,0))","v":""},{"$f":"IF(ISERROR($V1596),\"\",OFFSET('Smelter Look-up'!$H$4,$V1596-4,0))","v":""},{"$f":"IF(ISERROR($V1596),\"\",OFFSET('Smelter Look-up'!$I$4,$V1596-4,0))","v":""},{"$nulls":7},{"$f":"IF(ISERROR($V1596),\"\",OFFSET('Smelter Look-up'!$C$4,$V1596-4,0)&\"\")","v":""},"",{"$f":"IF(B1596=\"\",\"\",IF(ISERROR(MATCH($J1596,SorP!$B$1:$B$5661,0)),\"\",INDIRECT(\"'SorP'!$A$\"&MATCH($J1596,SorP!$B$1:$B$5661,0))))","v":""},null,{"$f":"IF(C1596=\"\",NA(),MATCH($B1596&$C1596,'Smelter Look-up'!$J:$J,0))","v":{"$error":"#N/A"}},null,0,null,null,null,""]
[null,{"$f":"IF(LEN(A1597)=0,\"\",INDEX('Smelter Look-up'!$A:$A,MATCH($A1597,'Smelter Look-up'!$E:$E,0)))","v":""},{"$f":"IF(LEN(A1597)=0,\"\",INDEX('Smelter Look-up'!$C:$C,MATCH($A1597,'Smelter Look-up'!$E:$E,0)))","v":""},null,{"$f":"IF(ISERROR($V1597),\"\",OFFSET('Smelter Look-up'!$D$4,$V1597-4,0)&\"\")","v":""},{"$f":"IF(ISERROR($V1597),\"\",OFFSET('Smelter Look-up'!$E$4,$V1597-4,0))","v":""},{"$f":"IF(C1597=$X$4,\"Enter smelter details\",IF(ISERROR($V1597),\"\",OFFSET('Smelter Look-up'!$F$4,$V1597-4,0)))","v":""},{"$f":"IF(ISERROR($V1597),\"\",OFFSET('Smelter Look-up'!$G$4,$V1597-4,0))","v":""},{"$f":"IF(ISERROR($V1597),\"\",OFFSET('Smelter Look-up'!$H$4,$V1597-4,0))","v":""},{"$f":"IF(ISERROR($V1597),\"\",OFFSET('Smelter Look-up'!$I$4,$V1597-4,0))","v":""},{"$nulls":7},{"$f":"IF(ISERROR($V1597),\"\",OFFSET('Smelter Look-up'!$C$4,$V1597-4,0)&\"\")","v":""},"",{"$f":"IF(B1597=\"\",\"\",IF(ISERROR(MATCH($J1597,SorP!$B$1:$B$5661,0)),\"\",INDIRECT(\"'SorP'!$A$\"&MATCH($J1597,SorP!$B$1:$B$5661,0))))","v":""},null,{"$f":"IF(C1597=\"\",NA(),MATCH($B1597&$C1597,'Smelter Look-up'!$J:$J,0))","v":{"$error":"#N/A"}},null,0,null,null,null,""]
[null,{"$f":"IF(LEN(A1598)=0,\"\",INDEX('Smelter Look-up'!$A:$A,MATCH($A1598,'Smelter Look-up'!$E:$E,0)))","v":""},{"$f":"IF(LEN(A1598)=0,\"\",INDEX('Smelter Look-up'!$C:$C,MATCH($A1598,'Smelter Look-up'!$E:$E,0)))","v":""},null,{"$f":"IF(ISERROR($V1598),\"\",OFFSET('Smelter Look-up'!$D$4,$V1598-4,0)&\"\")","v":""},{"$f":"IF(ISERROR($V1598),\"\",OFFSET('Smelter Look-up'!$E$4,$V1598-4,0))","v":""},{"$f":"IF(C1598=$X$4,\"Enter smelter details\",IF(ISERROR($V1598),\"\",OFFSET('Smelter Look-up'!$F$4,$V1598-4,0)))","v":""},{"$f":"IF(ISERROR($V1598),\"\",OFFSET('Smelter Look-up'!$G$4,$V1598-4,0))","v":""},{"$f":"IF(ISERROR($V1598),\"\",OFFSET('Smelter Look-up'!$H$4,$V1598-4,0))","v":""},{"$f":"IF(ISERROR($V1598),\"\",OFFSET('Smelter Look-up'!$I$4,$V1598-4,0))","v":""},{"$nulls":7},{"$f":"IF(ISERROR($V1598),\"\",OFFSET('Smelter Look-up'!$C$4,$V1598-4,0)&\"\")","v":""},"",{"$f":"IF(B1598=\"\",\"\",IF(ISERROR(MATCH($J1598,SorP!$B$1:$B$5661,0)),\"\",INDIRECT(\"'SorP'!$A$\"&MATCH($J1598,SorP!$B$1:$B$5661,0))))","v":""},null,{"$f":"IF(C1598=\"\",NA(),MATCH($B1598&$C1598,'Smelter Look-up'!$J:$J,0))","v":{"$error":"#N/A"}},null,0,null,null,null,""]
[null,{"$f":"IF(LEN(A1599)=0,\"\",INDEX('Smelter Look-up'!$A:$A,MATCH($A1599,'Smelter Look-up'!$E:$E,0)))","v":""},{"$f":"IF(LEN(A1599)=0,\"\",INDEX('Smelter Look-up'!$C:$C,MATCH($A1599,'Smelter Look-up'!$E:$E,0)))","v":""},null,{"$f":"IF(ISERROR($V1599),\"\",OFFSET('Smelter Look-up'!$D$4,$V1599-4,0)&\"\")","v":""},{"$f":"IF(ISERROR($V1599),\"\",OFFSET('Smelter Look-up'!$E$4,$V1599-4,0))","v":""},{"$f":"IF(C1599=$X$4,\"Enter smelter details\",IF(ISERROR($V1599),\"\",OFFSET('Smelter Look-up'!$F$4,$V1599-4,0)))","v":""},{"$f":"IF(ISERROR($V1599),\"\",OFFSET('Smelter Look-up'!$G$4,$V1599-4,0))","v":""},{"$f":"IF(ISERROR($V1599),\"\",OFFSET('Smelter Look-up'!$H$4,$V1599-4,0))","v":""},{"$f":"IF(ISERROR($V1599),\"\",OFFSET('Smelter Look-up'!$I$4,$V1599-4,0))","v":""},{"$nulls":7},{"$f":"IF(ISERROR($V1599),\"\",OFFSET('Smelter Look-up'!$C$4,$V1599-4,0)&\"\")","v":""},"",{"$f":"IF(B1599=\"\",\"\",IF(ISERROR(MATCH($J1599,SorP!$B$1:$B$5661,0)),\"\",INDIRECT(\"'SorP'!$A$\"&MATCH($J1599,SorP!$B$1:$B$5661,0))))","v":""},null,{"$f":"IF(C1599=\"\",NA(),MATCH($B1599&$C1599,'Smelter Look-up'!$J:$J,0))","v":{"$error":"#N/A"}},null,{"$f":"IF(AND(C1599=\"Smelter not listed\",OR(LEN(D1599)=0,LEN(E1599)=0)),1,0)","v":0},null,null,null,{"$f":"B1599&C1599","v":""}]
[null,{"$f":"IF(LEN(A1600)=0,\"\",INDEX('Smelter Look-up'!$A:$A,MATCH($A1600,'Smelter Look-up'!$E:$E,0)))","v":""},{"$f":"IF(LEN(A1600)=0,\"\",INDEX('Smelter Look-up'!$C:$C,MATCH($A1600,'Smelter Look-up'!$E:$E,0)))","v":""},null,{"$f":"IF(ISERROR($V1600),\"\",OFFSET('Smelter Look-up'!$D$4,$V1600-4,0)&\"\")","v":""},{"$f":"IF(ISERROR($V1600),\"\",OFFSET('Smelter Look-up'!$E$4,$V1600-4,0))","v":""},{"$f":"IF(C1600=$X$4,\"Enter smelter details\",IF(ISERROR($V1600),\"\",OFFSET('Smelter Look-up'!$F$4,$V1600-4,0)))","v":""},{"$f":"IF(ISERROR($V1600),\"\",OFFSET('Smelter Look-up'!$G$4,$V1600-4,0))","v":""},{"$f":"IF(ISERROR($V1600),\"\",OFFSET('Smelter Look-up'!$H$4,$V1600-4,0))","v":""},{"$f":"IF(ISERROR($V1600),\"\",OFFSET('Smelter Look-up'!$I$4,$V1600-4,0))","v":""},{"$nulls":7},{"$f":"IF(ISERROR($V1600),\"\",OFFSET('Smelter Look-up'!$C$4,$V1600-4,0)&\"\")","v":""},{"$f":"IF(B1600=\"\",\"\",IF(ISERROR(MATCH($E1600,CL,0)),\"Unknown\",INDIRECT(\"'C'!$A$\"&MATCH($E1600,CL,0)+1)))","v":""},{"$f":"IF(B1600=\"\",\"\",IF(ISERROR(MATCH($J1600,SorP!$B$1:$B$5661,0)),\"\",INDIRECT(\"'SorP'!$A$\"&MATCH($J1600,SorP!$B$1:$B$5661,0))))","v":""},null,{"$f":"IF(C1600=\"\",NA(),MATCH($B1600&$C1600,'Smelter Look-up'!$J:$J,0))","v":{"$error":"#N/A"}},null,0,null,null,null,""]
[null,{"$f":"IF(LEN(A1601)=0,\"\",INDEX('Smelter Look-up'!$A:$A,MATCH($A1601,'Smelter Look-up'!$E:$E,0)))","v":""},{"$f":"IF(LEN(A1601)=0,\"\",INDEX('Smelter Look-up'!$C:$C,MATCH($A1601,'Smelter Look-up'!$E:$E,0)))","v":""},null,{"$f":"IF(ISERROR($V1601),\"\",OFFSET('Smelter Look-up'!$D$4,$V1601-4,0)&\"\")","v":""},{"$f":"IF(ISERROR($V1601),\"\",OFFSET('Smelter Look-up'!$E$4,$V1601-4,0))","v":""},{"$f":"IF(C1601=$X$4,\"Enter smelter details\",IF(ISERROR($V1601),\"\",OFFSET('Smelter Look-up'!$F$4,$V1601-4,0)))","v":""},{"$f":"IF(ISERROR($V1601),\"\",OFFSET('Smelter Look-up'!$G$4,$V1601-4,0))","v":""},{"$f":"IF(ISERROR($V1601),\"\",OFFSET('Smelter Look-up'!$H$4,$V1601-4,0))","v":""},{"$f":"IF(ISERROR($V1601),\"\",OFFSET('Smelter Look-up'!$I$4,$V1601-4,0))","v":""},{"$nulls":7},{"$f":"IF(ISERROR($V1601),\"\",OFFSET('Smelter Look-up'!$C$4,$V1601-4,0)&\"\")","v":""},"",{"$f":"IF(B1601=\"\",\"\",IF(ISERROR(MATCH($J1601,SorP!$B$1:$B$5661,0)),\"\",INDIRECT(\"'SorP'!$A$\"&MATCH($J1601,SorP!$B$1:$B$5661,0))))","v":""},null,{"$f":"IF(C1601=\"\",NA(),MATCH($B1601&$C1601,'Smelter Look-up'!$J:$J,0))","v":{"$error":"#N/A"}},null,0,null,null,null,""]
[null,{"$f":"IF(LEN(A1602)=0,\"\",INDEX('Smelter Look-up'!$A:$A,MATCH($A1602,'Smelter Look-up'!$E:$E,0)))","v":""},{"$f":"IF(LEN(A1602)=0,\"\",INDEX('Smelter Look-up'!$C:$C,MATCH($A1602,'Smelter Look-up'!$E:$E,0)))","v":""},null,{"$f":"IF(ISERROR($V1602),\"\",OFFSET('Smelter Look-up'!$D$4,$V1602-4,0)&\"\")","v":""},{"$f":"IF(ISERROR($V1602),\"\",OFFSET('Smelter Look-up'!$E$4,$V1602-4,0))","v":""},{"$f":"IF(C1602=$X$4,\"Enter smelter details\",IF(ISERROR($V1602),\"\",OFFSET('Smelter Look-up'!$F$4,$V1602-4,0)))","v":""},{"$f":"IF(ISERROR($V1602),\"\",OFFSET('Smelter Look-up'!$G$4,$V1602-4,0))","v":""},{"$f":"IF(ISERROR($V1602),\"\",OFFSET('Smelter Look-up'!$H$4,$V1602-4,0))","v":""},{"$f":"IF(ISERROR($V1602),\"\",OFFSET('Smelter Look-up'!$I$4,$V1602-4,0))","v":""},{"$nulls":7},{"$f":"IF(ISERROR($V1602),\"\",OFFSET('Smelter Look-up'!$C$4,$V1602-4,0)&\"\")","v":""},"",{"$f":"IF(B1602=\"\",\"\",IF(ISERROR(MATCH($J1602,SorP!$B$1:$B$5661,0)),\"\",INDIRECT(\"'SorP'!$A$\"&MATCH($J1602,SorP!$B$1:$B$5661,0))))","v":""},null,{"$f":"IF(C1602=\"\",NA(),MATCH($B1602&$C1602,'Smelter Look-up'!$J:$J,0))","v":{"$error":"#N/A"}},null,0,null,null,null,""]
[null,{"$f":"IF(LEN(A1603)=0,\"\",INDEX('Smelter Look-up'!$A:$A,MATCH($A1603,'Smelter Look-up'!$E:$E,0)))","v":""},{"$f":"IF(LEN(A1603)=0,\"\",INDEX('Smelter Look-up'!$C:$C,MATCH($A1603,'Smelter Look-up'!$E:$E,0)))","v":""},null,{"$f":"IF(ISERROR($V1603),\"\",OFFSET('Smelter Look-up'!$D$4,$V1603-4,0)&\"\")","v":""},{"$f":"IF(ISERROR($V1603),\"\",OFFSET('Smelter Look-up'!$E$4,$V1603-4,0))","v":""},{"$f":"IF(C1603=$X$4,\"Enter smelter details\",IF(ISERROR($V1603),\"\",OFFSET('Smelter Look-up'!$F$4,$V1603-4,0)))","v":""},{"$f":"IF(ISERROR($V1603),\"\",OFFSET('Smelter Look-up'!$G$4,$V1603-4,0))","v":""},{"$f":"IF(ISERROR($V1603),\"\",OFFSET('Smelter Look-up'!$H$4,$V1603-4,0))","v":""},{"$f":"IF(ISERROR($V1603),\"\",OFFSET('Smelter Look-up'!$I$4,$V1603-4,0))","v":""},{"$nulls":7},{"$f":"IF(ISERROR($V1603),\"\",OFFSET('Smelter Look-up'!$C$4,$V1603-4,0)&\"\")","v":""},"",{"$f":"IF(B1603=\"\",\"\",IF(ISERROR(MATCH($J1603,SorP!$B$1:$B$5661,0)),\"\",INDIRECT(\"'SorP'!$A$\"&MATCH($J1603,SorP!$B$1:$B$5661,0))))","v":""},null,{"$f":"IF(C1603=\"\",NA(),MATCH($B1603&$C1603,'Smelter Look-up'!$J:$J,0))","v":{"$error":"#N/A"}},null,0,null,null,null,""]
[null,{"$f":"IF(LEN(A1604)=0,\"\",INDEX('Smelter Look-up'!$A:$A,MATCH($A1604,'Smelter Look-up'!$E:$E,0)))","v":""},{"$f":"IF(LEN(A1604)=0,\"\",INDEX('Smelter Look-up'!$C:$C,MATCH($A1604,'Smelter Look-up'!$E:$E,0)))","v":""},null,{"$f":"IF(ISERROR($V1604),\"\",OFFSET('Smelter Look-up'!$D$4,$V1604-4,0)&\"\")","v":""},{"$f":"IF(ISERROR($V1604),\"\",OFFSET('Smelter Look-up'!$E$4,$V1604-4,0))","v":""},{"$f":"IF(C1604=$X$4,\"Enter smelter details\",IF(ISERROR($V1604),\"\",OFFSET('Smelter Look-up'!$F$4,$V1604-4,0)))","v":""},{"$f":"IF(ISERROR($V1604),\"\",OFFSET('Smelter Look-up'!$G$4,$V1604-4,0))","v":""},{"$f":"IF(ISERROR($V1604),\"\",OFFSET('Smelter Look-up'!$H$4,$V1604-4,0))","v":""},{"$f":"IF(ISERROR($V1604),\"\",OFFSET('Smelter Look-up'!$I$4,$V1604-4,0))","v":""},{"$nulls":7},{"$f":"IF(ISERROR($V1604),\"\",OFFSET('Smelter Look-up'!$C$4,$V1604-4,0)&\"\")","v":""},"",{"$f":"IF(B1604=\"\",\"\",IF(ISERROR(MATCH($J1604,SorP!$B$1:$B$5661,0)),\"\",INDIRECT(\"'SorP'!$A$\"&MATCH($J1604,SorP!$B$1:$B$5661,0))))","v":""},null,{"$f":"IF(C1604=\"\",NA(),MATCH($B1604&$C1604,'Smelter Look-up'!$J:$J,0))","v":{"$error":"#N/A"}},null,0,null,null,null,""]
[null,{"$f":"IF(LEN(A1605)=0,\"\",INDEX('Smelter Look-up'!$A:$A,MATCH($A1605,'Smelter Look-up'!$E:$E,0)))","v":""},{"$f":"IF(LEN(A1605)=0,\"\",INDEX('Smelter Look-up'!$C:$C,MATCH($A1605,'Smelter Look-up'!$E:$E,0)))","v":""},null,{"$f":"IF(ISERROR($V1605),\"\",OFFSET('Smelter Look-up'!$D$4,$V1605-4,0)&\"\")","v":""},{"$f":"IF(ISERROR($V1605),\"\",OFFSET('Smelter Look-up'!$E$4,$V1605-4,0))","v":""},{"$f":"IF(C1605=$X$4,\"Enter smelter details\",IF(ISERROR($V1605),\"\",OFFSET('Smelter Look-up'!$F$4,$V1605-4,0)))","v":""},{"$f":"IF(ISERROR($V1605),\"\",OFFSET('Smelter Look-up'!$G$4,$V1605-4,0))","v":""},{"$f":"IF(ISERROR($V1605),\"\",OFFSET('Smelter Look-up'!$H$4,$V1605-4,0))","v":""},{"$f":"IF(ISERROR($V1605),\"\",OFFSET('Smelter Look-up'!$I$4,$V1605-4,0))","v":""},{"$nulls":7},{"$f":"IF(ISERROR($V1605),\"\",OFFSET('Smelter Look-up'!$C$4,$V1605-4,0)&\"\")","v":""},"",{"$f":"IF(B1605=\"\",\"\",IF(ISERROR(MATCH($J1605,SorP!$B$1:$B$5661,0)),\"\",INDIRECT(\"'SorP'!$A$\"&MATCH($J1605,SorP!$B$1:$B$5661,0))))","v":""},null,{"$f":"IF(C1605=\"\",NA(),MATCH($B1605&$C1605,'Smelter Look-up'!$J:$J,0))","v":{"$error":"#N/A"}},null,0,null,null,null,""]
[null,{"$f":"IF(LEN(A1606)=0,\"\",INDEX('Smelter Look-up'!$A:$A,MATCH($A1606,'Smelter Look-up'!$E:$E,0)))","v":""},{"$f":"IF(LEN(A1606)=0,\"\",INDEX('Smelter Look-up'!$C:$C,MATCH($A1606,'Smelter Look-up'!$E:$E,0)))","v":""},null,{"$f":"IF(ISERROR($V1606),\"\",OFFSET('Smelter Look-up'!$D$4,$V1606-4,0)&\"\")","v":""},{"$f":"IF(ISERROR($V1606),\"\",OFFSET('Smelter Look-up'!$E$4,$V1606-4,0))","v":""},{"$f":"IF(C1606=$X$4,\"Enter smelter details\",IF(ISERROR($V1606),\"\",OFFSET('Smelter Look-up'!$F$4,$V1606-4,0)))","v":""},{"$f":"IF(ISERROR($V1606),\"\",OFFSET('Smelter Look-up'!$G$4,$V1606-4,0))","v":""},{"$f":"IF(ISERROR($V1606),\"\",OFFSET('Smelter Look-up'!$H$4,$V1606-4,0))","v":""},{"$f":"IF(ISERROR($V1606),\"\",OFFSET('Smelter Look-up'!$I$4,$V1606-4,0))","v":""},{"$nulls":7},{"$f":"IF(ISERROR($V1606),\"\",OFFSET('Smelter Look-up'!$C$4,$V1606-4,0)&\"\")","v":""},"",{"$f":"IF(B1606=\"\",\"\",IF(ISERROR(MATCH($J1606,SorP!$B$1:$B$5661,0)),\"\",INDIRECT(\"'SorP'!$A$\"&MATCH($J1606,SorP!$B$1:$B$5661,0))))","v":""},null,{"$f":"IF(C1606=\"\",NA(),MATCH($B1606&$C1606,'Smelter Look-up'!$J:$J,0))","v":{"$error":"#N/A"}},null,0,null,null,null,""]
[null,{"$f":"IF(LEN(A1607)=0,\"\",INDEX('Smelter Look-up'!$A:$A,MATCH($A1607,'Smelter Look-up'!$E:$E,0)))","v":""},{"$f":"IF(LEN(A1607)=0,\"\",INDEX('Smelter Look-up'!$C:$C,MATCH($A1607,'Smelter Look-up'!$E:$E,0)))","v":""},null,{"$f":"IF(ISERROR($V1607),\"\",OFFSET('Smelter Look-up'!$D$4,$V1607-4,0)&\"\")","v":""},{"$f":"IF(ISERROR($V1607),\"\",OFFSET('Smelter Look-up'!$E$4,$V1607-4,0))","v":""},{"$f":"IF(C1607=$X$4,\"Enter smelter details\",IF(ISERROR($V1607),\"\",OFFSET('Smelter Look-up'!$F$4,$V1607-4,0)))","v":""},{"$f":"IF(ISERROR($V1607),\"\",OFFSET('Smelter Look-up'!$G$4,$V1607-4,0))","v":""},{"$f":"IF(ISERROR($V1607),\"\",OFFSET('Smelter Look-up'!$H$4,$V1607-4,0))","v":""},{"$f":"IF(ISERROR($V1607),\"\",OFFSET('Smelter Look-up'!$I$4,$V1607-4,0))","v":""},{"$nulls":7},{"$f":"IF(ISERROR($V1607),\"\",OFFSET('Smelter Look-up'!$C$4,$V1607-4,0)&\"\")","v":""},"",{"$f":"IF(B1607=\"\",\"\",IF(ISERROR(MATCH($J1607,SorP!$B$1:$B$5661,0)),\"\",INDIRECT(\"'SorP'!$A$\"&MATCH($J1607,SorP!$B$1:$B$5661,0))))","v":""},null,{"$f":"IF(C1607=\"\",NA(),MATCH($B1607&$C1607,'Smelter Look-up'!$J:$J,0))","v":{"$error":"#N/A"}},null,0,null,null,null,""]
[null,{"$f":"IF(LEN(A1608)=0,\"\",INDEX('Smelter Look-up'!$A:$A,MATCH($A1608,'Smelter Look-up'!$E:$E,0)))","v":""},{"$f":"IF(LEN(A1608)=0,\"\",INDEX('Smelter Look-up'!$C:$C,MATCH($A1608,'Smelter Look-up'!$E:$E,0)))","v":""},null,{"$f":"IF(ISERROR($V1608),\"\",OFFSET('Smelter Look-up'!$D$4,$V1608-4,0)&\"\")","v":""},{"$f":"IF(ISERROR($V1608),\"\",OFFSET('Smelter Look-up'!$E$4,$V1608-4,0))","v":""},{"$f":"IF(C1608=$X$4,\"Enter smelter details\",IF(ISERROR($V1608),\"\",OFFSET('Smelter Look-up'!$F$4,$V1608-4,0)))","v":""},{"$f":"IF(ISERROR($V1608),\"\",OFFSET('Smelter Look-up'!$G$4,$V1608-4,0))","v":""},{"$f":"IF(ISERROR($V1608),\"\",OFFSET('Smelter Look-up'!$H$4,$V1608-4,0))","v":""},{"$f":"IF(ISERROR($V1608),\"\",OFFSET('Smelter Look-up'!$I$4,$V1608-4,0))","v":""},{"$nulls":7},{"$f":"IF(ISERROR($V1608),\"\",OFFSET('Smelter Look-up'!$C$4,$V1608-4,0)&\"\")","v":""},"",{"$f":"IF(B1608=\"\",\"\",IF(ISERROR(MATCH($J1608,SorP!$B$1:$B$5661,0)),\"\",INDIRECT(\"'SorP'!$A$\"&MATCH($J1608,SorP!$B$1:$B$5661,0))))","v":""},null,{"$f":"IF(C1608=\"\",NA(),MATCH($B1608&$C1608,'Smelter Look-up'!$J:$J,0))","v":{"$error":"#N/A"}},null,0,null,null,null,""]
[null,{"$f":"IF(LEN(A1609)=0,\"\",INDEX('Smelter Look-up'!$A:$A,MATCH($A1609,'Smelter Look-up'!$E:$E,0)))","v":""},{"$f":"IF(LEN(A1609)=0,\"\",INDEX('Smelter Look-up'!$C:$C,MATCH($A1609,'Smelter Look-up'!$E:$E,0)))","v":""},null,{"$f":"IF(ISERROR($V1609),\"\",OFFSET('Smelter Look-up'!$D$4,$V1609-4,0)&\"\")","v":""},{"$f":"IF(ISERROR($V1609),\"\",OFFSET('Smelter Look-up'!$E$4,$V1609-4,0))","v":""},{"$f":"IF(C1609=$X$4,\"Enter smelter details\",IF(ISERROR($V1609),\"\",OFFSET('Smelter Look-up'!$F$4,$V1609-4,0)))","v":""},{"$f":"IF(ISERROR($V1609),\"\",OFFSET('Smelter Look-up'!$G$4,$V1609-4,0))","v":""},{"$f":"IF(ISERROR($V1609),\"\",OFFSET('Smelter Look-up'!$H$4,$V1609-4,0))","v":""},{"$f":"IF(ISERROR($V1609),\"\",OFFSET('Smelter Look-up'!$I$4,$V1609-4,0))","v":""},{"$nulls":7},{"$f":"IF(ISERROR($V1609),\"\",OFFSET('Smelter Look-up'!$C$4,$V1609-4,0)&\"\")","v":""},"",{"$f":"IF(B1609=\"\",\"\",IF(ISERROR(MATCH($J1609,SorP!$B$1:$B$5661,0)),\"\",INDIRECT(\"'SorP'!$A$\"&MATCH($J1609,SorP!$B$1:$B$5661,0))))","v":""},null,{"$f":"IF(C1609=\"\",NA(),MATCH($B1609&$C1609,'Smelter Look-up'!$J:$J,0))","v":{"$error":"#N/A"}},null,0,null,null,null,""]
[null,{"$f":"IF(LEN(A1610)=0,\"\",INDEX('Smelter Look-up'!$A:$A,MATCH($A1610,'Smelter Look-up'!$E:$E,0)))","v":""},{"$f":"IF(LEN(A1610)=0,\"\",INDEX('Smelter Look-up'!$C:$C,MATCH($A1610,'Smelter Look-up'!$E:$E,0)))","v":""},null,{"$f":"IF(ISERROR($V1610),\"\",OFFSET('Smelter Look-up'!$D$4,$V1610-4,0)&\"\")","v":""},{"$f":"IF(ISERROR($V1610),\"\",OFFSET('Smelter Look-up'!$E$4,$V1610-4,0))","v":""},{"$f":"IF(C1610=$X$4,\"Enter smelter details\",IF(ISERROR($V1610),\"\",OFFSET('Smelter Look-up'!$F$4,$V1610-4,0)))","v":""},{"$f":"IF(ISERROR($V1610),\"\",OFFSET('Smelter Look-up'!$G$4,$V1610-4,0))","v":""},{"$f":"IF(ISERROR($V1610),\"\",OFFSET('Smelter Look-up'!$H$4,$V1610-4,0))","v":""},{"$f":"IF(ISERROR($V1610),\"\",OFFSET('Smelter Look-up'!$I$4,$V1610-4,0))","v":""},{"$nulls":7},{"$f":"IF(ISERROR($V1610),\"\",OFFSET('Smelter Look-up'!$C$4,$V1610-4,0)&\"\")","v":""},"",{"$f":"IF(B1610=\"\",\"\",IF(ISERROR(MATCH($J1610,SorP!$B$1:$B$5661,0)),\"\",INDIRECT(\"'SorP'!$A$\"&MATCH($J1610,SorP!$B$1:$B$5661,0))))","v":""},null,{"$f":"IF(C1610=\"\",NA(),MATCH($B1610&$C1610,'Smelter Look-up'!$J:$J,0))","v":{"$error":"#N/A"}},null,0,null,null,null,""]
[null,{"$f":"IF(LEN(A1611)=0,\"\",INDEX('Smelter Look-up'!$A:$A,MATCH($A1611,'Smelter Look-up'!$E:$E,0)))","v":""},{"$f":"IF(LEN(A1611)=0,\"\",INDEX('Smelter Look-up'!$C:$C,MATCH($A1611,'Smelter Look-up'!$E:$E,0)))","v":""},null,{"$f":"IF(ISERROR($V1611),\"\",OFFSET('Smelter Look-up'!$D$4,$V1611-4,0)&\"\")","v":""},{"$f":"IF(ISERROR($V1611),\"\",OFFSET('Smelter Look-up'!$E$4,$V1611-4,0))","v":""},{"$f":"IF(C1611=$X$4,\"Enter smelter details\",IF(ISERROR($V1611),\"\",OFFSET('Smelter Look-up'!$F$4,$V1611-4,0)))","v":""},{"$f":"IF(ISERROR($V1611),\"\",OFFSET('Smelter Look-up'!$G$4,$V1611-4,0))","v":""},{"$f":"IF(ISERROR($V1611),\"\",OFFSET('Smelter Look-up'!$H$4,$V1611-4,0))","v":""},{"$f":"IF(ISERROR($V1611),\"\",OFFSET('Smelter Look-up'!$I$4,$V1611-4,0))","v":""},{"$nulls":7},{"$f":"IF(ISERROR($V1611),\"\",OFFSET('Smelter Look-up'!$C$4,$V1611-4,0)&\"\")","v":""},"",{"$f":"IF(B1611=\"\",\"\",IF(ISERROR(MATCH($J1611,SorP!$B$1:$B$5661,0)),\"\",INDIRECT(\"'SorP'!$A$\"&MATCH($J1611,SorP!$B$1:$B$5661,0))))","v":""},null,{"$f":"IF(C1611=\"\",NA(),MATCH($B1611&$C1611,'Smelter Look-up'!$J:$J,0))","v":{"$error":"#N/A"}},null,0,null,null,null,""]
[null,{"$f":"IF(LEN(A1612)=0,\"\",INDEX('Smelter Look-up'!$A:$A,MATCH($A1612,'Smelter Look-up'!$E:$E,0)))","v":""},{"$f":"IF(LEN(A1612)=0,\"\",INDEX('Smelter Look-up'!$C:$C,MATCH($A1612,'Smelter Look-up'!$E:$E,0)))","v":""},null,{"$f":"IF(ISERROR($V1612),\"\",OFFSET('Smelter Look-up'!$D$4,$V1612-4,0)&\"\")","v":""},{"$f":"IF(ISERROR($V1612),\"\",OFFSET('Smelter Look-up'!$E$4,$V1612-4,0))","v":""},{"$f":"IF(C1612=$X$4,\"Enter smelter details\",IF(ISERROR($V1612),\"\",OFFSET('Smelter Look-up'!$F$4,$V1612-4,0)))","v":""},{"$f":"IF(ISERROR($V1612),\"\",OFFSET('Smelter Look-up'!$G$4,$V1612-4,0))","v":""},{"$f":"IF(ISERROR($V1612),\"\",OFFSET('Smelter Look-up'!$H$4,$V1612-4,0))","v":""},{"$f":"IF(ISERROR($V1612),\"\",OFFSET('Smelter Look-up'!$I$4,$V1612-4,0))","v":""},{"$nulls":7},{"$f":"IF(ISERROR($V1612),\"\",OFFSET('Smelter Look-up'!$C$4,$V1612-4,0)&\"\")","v":""},"",{"$f":"IF(B1612=\"\",\"\",IF(ISERROR(MATCH($J1612,SorP!$B$1:$B$5661,0)),\"\",INDIRECT(\"'SorP'!$A$\"&MATCH($J1612,SorP!$B$1:$B$5661,0))))","v":""},null,{"$f":"IF(C1612=\"\",NA(),MATCH($B1612&$C1612,'Smelter Look-up'!$J:$J,0))","v":{"$error":"#N/A"}},null,0,null,null,null,""]
[null,{"$f":"IF(LEN(A1613)=0,\"\",INDEX('Smelter Look-up'!$A:$A,MATCH($A1613,'Smelter Look-up'!$E:$E,0)))","v":""},{"$f":"IF(LEN(A1613)=0,\"\",INDEX('Smelter Look-up'!$C:$C,MATCH($A1613,'Smelter Look-up'!$E:$E,0)))","v":""},null,{"$f":"IF(ISERROR($V1613),\"\",OFFSET('Smelter Look-up'!$D$4,$V1613-4,0)&\"\")","v":""},{"$f":"IF(ISERROR($V1613),\"\",OFFSET('Smelter Look-up'!$E$4,$V1613-4,0))","v":""},{"$f":"IF(C1613=$X$4,\"Enter smelter details\",IF(ISERROR($V1613),\"\",OFFSET('Smelter Look-up'!$F$4,$V1613-4,0)))","v":""},{"$f":"IF(ISERROR($V1613),\"\",OFFSET('Smelter Look-up'!$G$4,$V1613-4,0))","v":""},{"$f":"IF(ISERROR($V1613),\"\",OFFSET('Smelter Look-up'!$H$4,$V1613-4,0))","v":""},{"$f":"IF(ISERROR($V1613),\"\",OFFSET('Smelter Look-up'!$I$4,$V1613-4,0))","v":""},{"$nulls":7},{"$f":"IF(ISERROR($V1613),\"\",OFFSET('Smelter Look-up'!$C$4,$V1613-4,0)&\"\")","v":""},"",{"$f":"IF(B1613=\"\",\"\",IF(ISERROR(MATCH($J1613,SorP!$B$1:$B$5661,0)),\"\",INDIRECT(\"'SorP'!$A$\"&MATCH($J1613,SorP!$B$1:$B$5661,0))))","v":""},null,{"$f":"IF(C1613=\"\",NA(),MATCH($B1613&$C1613,'Smelter Look-up'!$J:$J,0))","v":{"$error":"#N/A"}},null,0,null,null,null,""]
[null,{"$f":"IF(LEN(A1614)=0,\"\",INDEX('Smelter Look-up'!$A:$A,MATCH($A1614,'Smelter Look-up'!$E:$E,0)))","v":""},{"$f":"IF(LEN(A1614)=0,\"\",INDEX('Smelter Look-up'!$C:$C,MATCH($A1614,'Smelter Look-up'!$E:$E,0)))","v":""},null,{"$f":"IF(ISERROR($V1614),\"\",OFFSET('Smelter Look-up'!$D$4,$V1614-4,0)&\"\")","v":""},{"$f":"IF(ISERROR($V1614),\"\",OFFSET('Smelter Look-up'!$E$4,$V1614-4,0))","v":""},{"$f":"IF(C1614=$X$4,\"Enter smelter details\",IF(ISERROR($V1614),\"\",OFFSET('Smelter Look-up'!$F$4,$V1614-4,0)))","v":""},{"$f":"IF(ISERROR($V1614),\"\",OFFSET('Smelter Look-up'!$G$4,$V1614-4,0))","v":""},{"$f":"IF(ISERROR($V1614),\"\",OFFSET('Smelter Look-up'!$H$4,$V1614-4,0))","v":""},{"$f":"IF(ISERROR($V1614),\"\",OFFSET('Smelter Look-up'!$I$4,$V1614-4,0))","v":""},{"$nulls":7},{"$f":"IF(ISERROR($V1614),\"\",OFFSET('Smelter Look-up'!$C$4,$V1614-4,0)&\"\")","v":""},"",{"$f":"IF(B1614=\"\",\"\",IF(ISERROR(MATCH($J1614,SorP!$B$1:$B$5661,0)),\"\",INDIRECT(\"'SorP'!$A$\"&MATCH($J1614,SorP!$B$1:$B$5661,0))))","v":""},null,{"$f":"IF(C1614=\"\",NA(),MATCH($B1614&$C1614,'Smelter Look-up'!$J:$J,0))","v":{"$error":"#N/A"}},null,0,null,null,null,""]
[null,{"$f":"IF(LEN(A1615)=0,\"\",INDEX('Smelter Look-up'!$A:$A,MATCH($A1615,'Smelter Look-up'!$E:$E,0)))","v":""},{"$f":"IF(LEN(A1615)=0,\"\",INDEX('Smelter Look-up'!$C:$C,MATCH($A1615,'Smelter Look-up'!$E:$E,0)))","v":""},null,{"$f":"IF(ISERROR($V1615),\"\",OFFSET('Smelter Look-up'!$D$4,$V1615-4,0)&\"\")","v":""},{"$f":"IF(ISERROR($V1615),\"\",OFFSET('Smelter Look-up'!$E$4,$V1615-4,0))","v":""},{"$f":"IF(C1615=$X$4,\"Enter smelter details\",IF(ISERROR($V1615),\"\",OFFSET('Smelter Look-up'!$F$4,$V1615-4,0)))","v":""},{"$f":"IF(ISERROR($V1615),\"\",OFFSET('Smelter Look-up'!$G$4,$V1615-4,0))","v":""},{"$f":"IF(ISERROR($V1615),\"\",OFFSET('Smelter Look-up'!$H$4,$V1615-4,0))","v":""},{"$f":"IF(ISERROR($V1615),\"\",OFFSET('Smelter Look-up'!$I$4,$V1615-4,0))","v":""},{"$nulls":7},{"$f":"IF(ISERROR($V1615),\"\",OFFSET('Smelter Look-up'!$C$4,$V1615-4,0)&\"\")","v":""},"",{"$f":"IF(B1615=\"\",\"\",IF(ISERROR(MATCH($J1615,SorP!$B$1:$B$5661,0)),\"\",INDIRECT(\"'SorP'!$A$\"&MATCH($J1615,SorP!$B$1:$B$5661,0))))","v":""},null,{"$f":"IF(C1615=\"\",NA(),MATCH($B1615&$C1615,'Smelter Look-up'!$J:$J,0))","v":{"$error":"#N/A"}},null,0,null,null,null,""]
[null,{"$f":"IF(LEN(A1616)=0,\"\",INDEX('Smelter Look-up'!$A:$A,MATCH($A1616,'Smelter Look-up'!$E:$E,0)))","v":""},{"$f":"IF(LEN(A1616)=0,\"\",INDEX('Smelter Look-up'!$C:$C,MATCH($A1616,'Smelter Look-up'!$E:$E,0)))","v":""},null,{"$f":"IF(ISERROR($V1616),\"\",OFFSET('Smelter Look-up'!$D$4,$V1616-4,0)&\"\")","v":""},{"$f":"IF(ISERROR($V1616),\"\",OFFSET('Smelter Look-up'!$E$4,$V1616-4,0))","v":""},{"$f":"IF(C1616=$X$4,\"Enter smelter details\",IF(ISERROR($V1616),\"\",OFFSET('Smelter Look-up'!$F$4,$V1616-4,0)))","v":""},{"$f":"IF(ISERROR($V1616),\"\",OFFSET('Smelter Look-up'!$G$4,$V1616-4,0))","v":""},{"$f":"IF(ISERROR($V1616),\"\",OFFSET('Smelter Look-up'!$H$4,$V1616-4,0))","v":""},{"$f":"IF(ISERROR($V1616),\"\",OFFSET('Smelter Look-up'!$I$4,$V1616-4,0))","v":""},{"$nulls":7},{"$f":"IF(ISERROR($V1616),\"\",OFFSET('Smelter Look-up'!$C$4,$V1616-4,0)&\"\")","v":""},"",{"$f":"IF(B1616=\"\",\"\",IF(ISERROR(MATCH($J1616,SorP!$B$1:$B$5661,0)),\"\",INDIRECT(\"'SorP'!$A$\"&MATCH($J1616,SorP!$B$1:$B$5661,0))))","v":""},null,{"$f":"IF(C1616=\"\",NA(),MATCH($B1616&$C1616,'Smelter Look-up'!$J:$J,0))","v":{"$error":"#N/A"}},null,0,null,null,null,""]
[null,{"$f":"IF(LEN(A1617)=0,\"\",INDEX('Smelter Look-up'!$A:$A,MATCH($A1617,'Smelter Look-up'!$E:$E,0)))","v":""},{"$f":"IF(LEN(A1617)=0,\"\",INDEX('Smelter Look-up'!$C:$C,MATCH($A1617,'Smelter Look-up'!$E:$E,0)))","v":""},null,{"$f":"IF(ISERROR($V1617),\"\",OFFSET('Smelter Look-up'!$D$4,$V1617-4,0)&\"\")","v":""},{"$f":"IF(ISERROR($V1617),\"\",OFFSET('Smelter Look-up'!$E$4,$V1617-4,0))","v":""},{"$f":"IF(C1617=$X$4,\"Enter smelter details\",IF(ISERROR($V1617),\"\",OFFSET('Smelter Look-up'!$F$4,$V1617-4,0)))","v":""},{"$f":"IF(ISERROR($V1617),\"\",OFFSET('Smelter Look-up'!$G$4,$V1617-4,0))","v":""},{"$f":"IF(ISERROR($V1617),\"\",OFFSET('Smelter Look-up'!$H$4,$V1617-4,0))","v":""},{"$f":"IF(ISERROR($V1617),\"\",OFFSET('Smelter Look-up'!$I$4,$V1617-4,0))","v":""},{"$nulls":7},{"$f":"IF(ISERROR($V1617),\"\",OFFSET('Smelter Look-up'!$C$4,$V1617-4,0)&\"\")","v":""},"",{"$f":"IF(B1617=\"\",\"\",IF(ISERROR(MATCH($J1617,SorP!$B$1:$B$5661,0)),\"\",INDIRECT(\"'SorP'!$A$\"&MATCH($J1617,SorP!$B$1:$B$5661,0))))","v":""},null,{"$f":"IF(C1617=\"\",NA(),MATCH($B1617&$C1617,'Smelter Look-up'!$J:$J,0))","v":{"$error":"#N/A"}},null,0,null,null,null,""]
[null,{"$f":"IF(LEN(A1618)=0,\"\",INDEX('Smelter Look-up'!$A:$A,MATCH($A1618,'Smelter Look-up'!$E:$E,0)))","v":""},{"$f":"IF(LEN(A1618)=0,\"\",INDEX('Smelter Look-up'!$C:$C,MATCH($A1618,'Smelter Look-up'!$E:$E,0)))","v":""},null,{"$f":"IF(ISERROR($V1618),\"\",OFFSET('Smelter Look-up'!$D$4,$V1618-4,0)&\"\")","v":""},{"$f":"IF(ISERROR($V1618),\"\",OFFSET('Smelter Look-up'!$E$4,$V1618-4,0))","v":""},{"$f":"IF(C1618=$X$4,\"Enter smelter details\",IF(ISERROR($V1618),\"\",OFFSET('Smelter Look-up'!$F$4,$V1618-4,0)))","v":""},{"$f":"IF(ISERROR($V1618),\"\",OFFSET('Smelter Look-up'!$G$4,$V1618-4,0))","v":""},{"$f":"IF(ISERROR($V1618),\"\",OFFSET('Smelter Look-up'!$H$4,$V1618-4,0))","v":""},{"$f":"IF(ISERROR($V1618),\"\",OFFSET('Smelter Look-up'!$I$4,$V1618-4,0))","v":""},{"$nulls":7},{"$f":"IF(ISERROR($V1618),\"\",OFFSET('Smelter Look-up'!$C$4,$V1618-4,0)&\"\")","v":""},"",{"$f":"IF(B1618=\"\",\"\",IF(ISERROR(MATCH($J1618,SorP!$B$1:$B$5661,0)),\"\",INDIRECT(\"'SorP'!$A$\"&MATCH($J1618,SorP!$B$1:$B$5661,0))))","v":""},null,{"$f":"IF(C1618=\"\",NA(),MATCH($B1618&$C1618,'Smelter Look-up'!$J:$J,0))","v":{"$error":"#N/A"}},null,0,null,null,null,""]
[null,{"$f":"IF(LEN(A1619)=0,\"\",INDEX('Smelter Look-up'!$A:$A,MATCH($A1619,'Smelter Look-up'!$E:$E,0)))","v":""},{"$f":"IF(LEN(A1619)=0,\"\",INDEX('Smelter Look-up'!$C:$C,MATCH($A1619,'Smelter Look-up'!$E:$E,0)))","v":""},null,{"$f":"IF(ISERROR($V1619),\"\",OFFSET('Smelter Look-up'!$D$4,$V1619-4,0)&\"\")","v":""},{"$f":"IF(ISERROR($V1619),\"\",OFFSET('Smelter Look-up'!$E$4,$V1619-4,0))","v":""},{"$f":"IF(C1619=$X$4,\"Enter smelter details\",IF(ISERROR($V1619),\"\",OFFSET('Smelter Look-up'!$F$4,$V1619-4,0)))","v":""},{"$f":"IF(ISERROR($V1619),\"\",OFFSET('Smelter Look-up'!$G$4,$V1619-4,0))","v":""},{"$f":"IF(ISERROR($V1619),\"\",OFFSET('Smelter Look-up'!$H$4,$V1619-4,0))","v":""},{"$f":"IF(ISERROR($V1619),\"\",OFFSET('Smelter Look-up'!$I$4,$V1619-4,0))","v":""},{"$nulls":7},{"$f":"IF(ISERROR($V1619),\"\",OFFSET('Smelter Look-up'!$C$4,$V1619-4,0)&\"\")","v":""},"",{"$f":"IF(B1619=\"\",\"\",IF(ISERROR(MATCH($J1619,SorP!$B$1:$B$5661,0)),\"\",INDIRECT(\"'SorP'!$A$\"&MATCH($J1619,SorP!$B$1:$B$5661,0))))","v":""},null,{"$f":"IF(C1619=\"\",NA(),MATCH($B1619&$C1619,'Smelter Look-up'!$J:$J,0))","v":{"$error":"#N/A"}},null,0,null,null,null,""]
[null,{"$f":"IF(LEN(A1620)=0,\"\",INDEX('Smelter Look-up'!$A:$A,MATCH($A1620,'Smelter Look-up'!$E:$E,0)))","v":""},{"$f":"IF(LEN(A1620)=0,\"\",INDEX('Smelter Look-up'!$C:$C,MATCH($A1620,'Smelter Look-up'!$E:$E,0)))","v":""},null,{"$f":"IF(ISERROR($V1620),\"\",OFFSET('Smelter Look-up'!$D$4,$V1620-4,0)&\"\")","v":""},{"$f":"IF(ISERROR($V1620),\"\",OFFSET('Smelter Look-up'!$E$4,$V1620-4,0))","v":""},{"$f":"IF(C1620=$X$4,\"Enter smelter details\",IF(ISERROR($V1620),\"\",OFFSET('Smelter Look-up'!$F$4,$V1620-4,0)))","v":""},{"$f":"IF(ISERROR($V1620),\"\",OFFSET('Smelter Look-up'!$G$4,$V1620-4,0))","v":""},{"$f":"IF(ISERROR($V1620),\"\",OFFSET('Smelter Look-up'!$H$4,$V1620-4,0))","v":""},{"$f":"IF(ISERROR($V1620),\"\",OFFSET('Smelter Look-up'!$I$4,$V1620-4,0))","v":""},{"$nulls":7},{"$f":"IF(ISERROR($V1620),\"\",OFFSET('Smelter Look-up'!$C$4,$V1620-4,0)&\"\")","v":""},"",{"$f":"IF(B1620=\"\",\"\",IF(ISERROR(MATCH($J1620,SorP!$B$1:$B$5661,0)),\"\",INDIRECT(\"'SorP'!$A$\"&MATCH($J1620,SorP!$B$1:$B$5661,0))))","v":""},null,{"$f":"IF(C1620=\"\",NA(),MATCH($B1620&$C1620,'Smelter Look-up'!$J:$J,0))","v":{"$error":"#N/A"}},null,0,null,null,null,""]
[null,{"$f":"IF(LEN(A1621)=0,\"\",INDEX('Smelter Look-up'!$A:$A,MATCH($A1621,'Smelter Look-up'!$E:$E,0)))","v":""},{"$f":"IF(LEN(A1621)=0,\"\",INDEX('Smelter Look-up'!$C:$C,MATCH($A1621,'Smelter Look-up'!$E:$E,0)))","v":""},null,{"$f":"IF(ISERROR($V1621),\"\",OFFSET('Smelter Look-up'!$D$4,$V1621-4,0)&\"\")","v":""},{"$f":"IF(ISERROR($V1621),\"\",OFFSET('Smelter Look-up'!$E$4,$V1621-4,0))","v":""},{"$f":"IF(C1621=$X$4,\"Enter smelter details\",IF(ISERROR($V1621),\"\",OFFSET('Smelter Look-up'!$F$4,$V1621-4,0)))","v":""},{"$f":"IF(ISERROR($V1621),\"\",OFFSET('Smelter Look-up'!$G$4,$V1621-4,0))","v":""},{"$f":"IF(ISERROR($V1621),\"\",OFFSET('Smelter Look-up'!$H$4,$V1621-4,0))","v":""},{"$f":"IF(ISERROR($V1621),\"\",OFFSET('Smelter Look-up'!$I$4,$V1621-4,0))","v":""},{"$nulls":7},{"$f":"IF(ISERROR($V1621),\"\",OFFSET('Smelter Look-up'!$C$4,$V1621-4,0)&\"\")","v":""},"",{"$f":"IF(B1621=\"\",\"\",IF(ISERROR(MATCH($J1621,SorP!$B$1:$B$5661,0)),\"\",INDIRECT(\"'SorP'!$A$\"&MATCH($J1621,SorP!$B$1:$B$5661,0))))","v":""},null,{"$f":"IF(C1621=\"\",NA(),MATCH($B1621&$C1621,'Smelter Look-up'!$J:$J,0))","v":{"$error":"#N/A"}},null,0,null,null,null,""]
[null,{"$f":"IF(LEN(A1622)=0,\"\",INDEX('Smelter Look-up'!$A:$A,MATCH($A1622,'Smelter Look-up'!$E:$E,0)))","v":""},{"$f":"IF(LEN(A1622)=0,\"\",INDEX('Smelter Look-up'!$C:$C,MATCH($A1622,'Smelter Look-up'!$E:$E,0)))","v":""},null,{"$f":"IF(ISERROR($V1622),\"\",OFFSET('Smelter Look-up'!$D$4,$V1622-4,0)&\"\")","v":""},{"$f":"IF(ISERROR($V1622),\"\",OFFSET('Smelter Look-up'!$E$4,$V1622-4,0))","v":""},{"$f":"IF(C1622=$X$4,\"Enter smelter details\",IF(ISERROR($V1622),\"\",OFFSET('Smelter Look-up'!$F$4,$V1622-4,0)))","v":""},{"$f":"IF(ISERROR($V1622),\"\",OFFSET('Smelter Look-up'!$G$4,$V1622-4,0))","v":""},{"$f":"IF(ISERROR($V1622),\"\",OFFSET('Smelter Look-up'!$H$4,$V1622-4,0))","v":""},{"$f":"IF(ISERROR($V1622),\"\",OFFSET('Smelter Look-up'!$I$4,$V1622-4,0))","v":""},{"$nulls":7},{"$f":"IF(ISERROR($V1622),\"\",OFFSET('Smelter Look-up'!$C$4,$V1622-4,0)&\"\")","v":""},"",{"$f":"IF(B1622=\"\",\"\",IF(ISERROR(MATCH($J1622,SorP!$B$1:$B$5661,0)),\"\",INDIRECT(\"'SorP'!$A$\"&MATCH($J1622,SorP!$B$1:$B$5661,0))))","v":""},null,{"$f":"IF(C1622=\"\",NA(),MATCH($B1622&$C1622,'Smelter Look-up'!$J:$J,0))","v":{"$error":"#N/A"}},null,0,null,null,null,""]
[null,{"$f":"IF(LEN(A1623)=0,\"\",INDEX('Smelter Look-up'!$A:$A,MATCH($A1623,'Smelter Look-up'!$E:$E,0)))","v":""},{"$f":"IF(LEN(A1623)=0,\"\",INDEX('Smelter Look-up'!$C:$C,MATCH($A1623,'Smelter Look-up'!$E:$E,0)))","v":""},null,{"$f":"IF(ISERROR($V1623),\"\",OFFSET('Smelter Look-up'!$D$4,$V1623-4,0)&\"\")","v":""},{"$f":"IF(ISERROR($V1623),\"\",OFFSET('Smelter Look-up'!$E$4,$V1623-4,0))","v":""},{"$f":"IF(C1623=$X$4,\"Enter smelter details\",IF(ISERROR($V1623),\"\",OFFSET('Smelter Look-up'!$F$4,$V1623-4,0)))","v":""},{"$f":"IF(ISERROR($V1623),\"\",OFFSET('Smelter Look-up'!$G$4,$V1623-4,0))","v":""},{"$f":"IF(ISERROR($V1623),\"\",OFFSET('Smelter Look-up'!$H$4,$V1623-4,0))","v":""},{"$f":"IF(ISERROR($V1623),\"\",OFFSET('Smelter Look-up'!$I$4,$V1623-4,0))","v":""},{"$nulls":7},{"$f":"IF(ISERROR($V1623),\"\",OFFSET('Smelter Look-up'!$C$4,$V1623-4,0)&\"\")","v":""},"",{"$f":"IF(B1623=\"\",\"\",IF(ISERROR(MATCH($J1623,SorP!$B$1:$B$5661,0)),\"\",INDIRECT(\"'SorP'!$A$\"&MATCH($J1623,SorP!$B$1:$B$5661,0))))","v":""},null,{"$f":"IF(C1623=\"\",NA(),MATCH($B1623&$C1623,'Smelter Look-up'!$J:$J,0))","v":{"$error":"#N/A"}},null,0,null,null,null,""]
[null,{"$f":"IF(LEN(A1624)=0,\"\",INDEX('Smelter Look-up'!$A:$A,MATCH($A1624,'Smelter Look-up'!$E:$E,0)))","v":""},{"$f":"IF(LEN(A1624)=0,\"\",INDEX('Smelter Look-up'!$C:$C,MATCH($A1624,'Smelter Look-up'!$E:$E,0)))","v":""},null,{"$f":"IF(ISERROR($V1624),\"\",OFFSET('Smelter Look-up'!$D$4,$V1624-4,0)&\"\")","v":""},{"$f":"IF(ISERROR($V1624),\"\",OFFSET('Smelter Look-up'!$E$4,$V1624-4,0))","v":""},{"$f":"IF(C1624=$X$4,\"Enter smelter details\",IF(ISERROR($V1624),\"\",OFFSET('Smelter Look-up'!$F$4,$V1624-4,0)))","v":""},{"$f":"IF(ISERROR($V1624),\"\",OFFSET('Smelter Look-up'!$G$4,$V1624-4,0))","v":""},{"$f":"IF(ISERROR($V1624),\"\",OFFSET('Smelter Look-up'!$H$4,$V1624-4,0))","v":""},{"$f":"IF(ISERROR($V1624),\"\",OFFSET('Smelter Look-up'!$I$4,$V1624-4,0))","v":""},{"$nulls":7},{"$f":"IF(ISERROR($V1624),\"\",OFFSET('Smelter Look-up'!$C$4,$V1624-4,0)&\"\")","v":""},"",{"$f":"IF(B1624=\"\",\"\",IF(ISERROR(MATCH($J1624,SorP!$B$1:$B$5661,0)),\"\",INDIRECT(\"'SorP'!$A$\"&MATCH($J1624,SorP!$B$1:$B$5661,0))))","v":""},null,{"$f":"IF(C1624=\"\",NA(),MATCH($B1624&$C1624,'Smelter Look-up'!$J:$J,0))","v":{"$error":"#N/A"}},null,0,null,null,null,""]
[null,{"$f":"IF(LEN(A1625)=0,\"\",INDEX('Smelter Look-up'!$A:$A,MATCH($A1625,'Smelter Look-up'!$E:$E,0)))","v":""},{"$f":"IF(LEN(A1625)=0,\"\",INDEX('Smelter Look-up'!$C:$C,MATCH($A1625,'Smelter Look-up'!$E:$E,0)))","v":""},null,{"$f":"IF(ISERROR($V1625),\"\",OFFSET('Smelter Look-up'!$D$4,$V1625-4,0)&\"\")","v":""},{"$f":"IF(ISERROR($V1625),\"\",OFFSET('Smelter Look-up'!$E$4,$V1625-4,0))","v":""},{"$f":"IF(C1625=$X$4,\"Enter smelter details\",IF(ISERROR($V1625),\"\",OFFSET('Smelter Look-up'!$F$4,$V1625-4,0)))","v":""},{"$f":"IF(ISERROR($V1625),\"\",OFFSET('Smelter Look-up'!$G$4,$V1625-4,0))","v":""},{"$f":"IF(ISERROR($V1625),\"\",OFFSET('Smelter Look-up'!$H$4,$V1625-4,0))","v":""},{"$f":"IF(ISERROR($V1625),\"\",OFFSET('Smelter Look-up'!$I$4,$V1625-4,0))","v":""},{"$nulls":7},{"$f":"IF(ISERROR($V1625),\"\",OFFSET('Smelter Look-up'!$C$4,$V1625-4,0)&\"\")","v":""},"",{"$f":"IF(B1625=\"\",\"\",IF(ISERROR(MATCH($J1625,SorP!$B$1:$B$5661,0)),\"\",INDIRECT(\"'SorP'!$A$\"&MATCH($J1625,SorP!$B$1:$B$5661,0))))","v":""},null,{"$f":"IF(C1625=\"\",NA(),MATCH($B1625&$C1625,'Smelter Look-up'!$J:$J,0))","v":{"$error":"#N/A"}},null,0,null,null,null,""]
[null,{"$f":"IF(LEN(A1626)=0,\"\",INDEX('Smelter Look-up'!$A:$A,MATCH($A1626,'Smelter Look-up'!$E:$E,0)))","v":""},{"$f":"IF(LEN(A1626)=0,\"\",INDEX('Smelter Look-up'!$C:$C,MATCH($A1626,'Smelter Look-up'!$E:$E,0)))","v":""},null,{"$f":"IF(ISERROR($V1626),\"\",OFFSET('Smelter Look-up'!$D$4,$V1626-4,0)&\"\")","v":""},{"$f":"IF(ISERROR($V1626),\"\",OFFSET('Smelter Look-up'!$E$4,$V1626-4,0))","v":""},{"$f":"IF(C1626=$X$4,\"Enter smelter details\",IF(ISERROR($V1626),\"\",OFFSET('Smelter Look-up'!$F$4,$V1626-4,0)))","v":""},{"$f":"IF(ISERROR($V1626),\"\",OFFSET('Smelter Look-up'!$G$4,$V1626-4,0))","v":""},{"$f":"IF(ISERROR($V1626),\"\",OFFSET('Smelter Look-up'!$H$4,$V1626-4,0))","v":""},{"$f":"IF(ISERROR($V1626),\"\",OFFSET('Smelter Look-up'!$I$4,$V1626-4,0))","v":""},{"$nulls":7},{"$f":"IF(ISERROR($V1626),\"\",OFFSET('Smelter Look-up'!$C$4,$V1626-4,0)&\"\")","v":""},"",{"$f":"IF(B1626=\"\",\"\",IF(ISERROR(MATCH($J1626,SorP!$B$1:$B$5661,0)),\"\",INDIRECT(\"'SorP'!$A$\"&MATCH($J1626,SorP!$B$1:$B$5661,0))))","v":""},null,{"$f":"IF(C1626=\"\",NA(),MATCH($B1626&$C1626,'Smelter Look-up'!$J:$J,0))","v":{"$error":"#N/A"}},null,0,null,null,null,""]
[null,{"$f":"IF(LEN(A1627)=0,\"\",INDEX('Smelter Look-up'!$A:$A,MATCH($A1627,'Smelter Look-up'!$E:$E,0)))","v":""},{"$f":"IF(LEN(A1627)=0,\"\",INDEX('Smelter Look-up'!$C:$C,MATCH($A1627,'Smelter Look-up'!$E:$E,0)))","v":""},null,{"$f":"IF(ISERROR($V1627),\"\",OFFSET('Smelter Look-up'!$D$4,$V1627-4,0)&\"\")","v":""},{"$f":"IF(ISERROR($V1627),\"\",OFFSET('Smelter Look-up'!$E$4,$V1627-4,0))","v":""},{"$f":"IF(C1627=$X$4,\"Enter smelter details\",IF(ISERROR($V1627),\"\",OFFSET('Smelter Look-up'!$F$4,$V1627-4,0)))","v":""},{"$f":"IF(ISERROR($V1627),\"\",OFFSET('Smelter Look-up'!$G$4,$V1627-4,0))","v":""},{"$f":"IF(ISERROR($V1627),\"\",OFFSET('Smelter Look-up'!$H$4,$V1627-4,0))","v":""},{"$f":"IF(ISERROR($V1627),\"\",OFFSET('Smelter Look-up'!$I$4,$V1627-4,0))","v":""},{"$nulls":7},{"$f":"IF(ISERROR($V1627),\"\",OFFSET('Smelter Look-up'!$C$4,$V1627-4,0)&\"\")","v":""},"",{"$f":"IF(B1627=\"\",\"\",IF(ISERROR(MATCH($J1627,SorP!$B$1:$B$5661,0)),\"\",INDIRECT(\"'SorP'!$A$\"&MATCH($J1627,SorP!$B$1:$B$5661,0))))","v":""},null,{"$f":"IF(C1627=\"\",NA(),MATCH($B1627&$C1627,'Smelter Look-up'!$J:$J,0))","v":{"$error":"#N/A"}},null,0,null,null,null,""]
[null,{"$f":"IF(LEN(A1628)=0,\"\",INDEX('Smelter Look-up'!$A:$A,MATCH($A1628,'Smelter Look-up'!$E:$E,0)))","v":""},{"$f":"IF(LEN(A1628)=0,\"\",INDEX('Smelter Look-up'!$C:$C,MATCH($A1628,'Smelter Look-up'!$E:$E,0)))","v":""},null,{"$f":"IF(ISERROR($V1628),\"\",OFFSET('Smelter Look-up'!$D$4,$V1628-4,0)&\"\")","v":""},{"$f":"IF(ISERROR($V1628),\"\",OFFSET('Smelter Look-up'!$E$4,$V1628-4,0))","v":""},{"$f":"IF(C1628=$X$4,\"Enter smelter details\",IF(ISERROR($V1628),\"\",OFFSET('Smelter Look-up'!$F$4,$V1628-4,0)))","v":""},{"$f":"IF(ISERROR($V1628),\"\",OFFSET('Smelter Look-up'!$G$4,$V1628-4,0))","v":""},{"$f":"IF(ISERROR($V1628),\"\",OFFSET('Smelter Look-up'!$H$4,$V1628-4,0))","v":""},{"$f":"IF(ISERROR($V1628),\"\",OFFSET('Smelter Look-up'!$I$4,$V1628-4,0))","v":""},{"$nulls":7},{"$f":"IF(ISERROR($V1628),\"\",OFFSET('Smelter Look-up'!$C$4,$V1628-4,0)&\"\")","v":""},"",{"$f":"IF(B1628=\"\",\"\",IF(ISERROR(MATCH($J1628,SorP!$B$1:$B$5661,0)),\"\",INDIRECT(\"'SorP'!$A$\"&MATCH($J1628,SorP!$B$1:$B$5661,0))))","v":""},null,{"$f":"IF(C1628=\"\",NA(),MATCH($B1628&$C1628,'Smelter Look-up'!$J:$J,0))","v":{"$error":"#N/A"}},null,0,null,null,null,""]
[null,{"$f":"IF(LEN(A1629)=0,\"\",INDEX('Smelter Look-up'!$A:$A,MATCH($A1629,'Smelter Look-up'!$E:$E,0)))","v":""},{"$f":"IF(LEN(A1629)=0,\"\",INDEX('Smelter Look-up'!$C:$C,MATCH($A1629,'Smelter Look-up'!$E:$E,0)))","v":""},null,{"$f":"IF(ISERROR($V1629),\"\",OFFSET('Smelter Look-up'!$D$4,$V1629-4,0)&\"\")","v":""},{"$f":"IF(ISERROR($V1629),\"\",OFFSET('Smelter Look-up'!$E$4,$V1629-4,0))","v":""},{"$f":"IF(C1629=$X$4,\"Enter smelter details\",IF(ISERROR($V1629),\"\",OFFSET('Smelter Look-up'!$F$4,$V1629-4,0)))","v":""},{"$f":"IF(ISERROR($V1629),\"\",OFFSET('Smelter Look-up'!$G$4,$V1629-4,0))","v":""},{"$f":"IF(ISERROR($V1629),\"\",OFFSET('Smelter Look-up'!$H$4,$V1629-4,0))","v":""},{"$f":"IF(ISERROR($V1629),\"\",OFFSET('Smelter Look-up'!$I$4,$V1629-4,0))","v":""},{"$nulls":7},{"$f":"IF(ISERROR($V1629),\"\",OFFSET('Smelter Look-up'!$C$4,$V1629-4,0)&\"\")","v":""},"",{"$f":"IF(B1629=\"\",\"\",IF(ISERROR(MATCH($J1629,SorP!$B$1:$B$5661,0)),\"\",INDIRECT(\"'SorP'!$A$\"&MATCH($J1629,SorP!$B$1:$B$5661,0))))","v":""},null,{"$f":"IF(C1629=\"\",NA(),MATCH($B1629&$C1629,'Smelter Look-up'!$J:$J,0))","v":{"$error":"#N/A"}},null,0,null,null,null,""]
[null,{"$f":"IF(LEN(A1630)=0,\"\",INDEX('Smelter Look-up'!$A:$A,MATCH($A1630,'Smelter Look-up'!$E:$E,0)))","v":""},{"$f":"IF(LEN(A1630)=0,\"\",INDEX('Smelter Look-up'!$C:$C,MATCH($A1630,'Smelter Look-up'!$E:$E,0)))","v":""},null,{"$f":"IF(ISERROR($V1630),\"\",OFFSET('Smelter Look-up'!$D$4,$V1630-4,0)&\"\")","v":""},{"$f":"IF(ISERROR($V1630),\"\",OFFSET('Smelter Look-up'!$E$4,$V1630-4,0))","v":""},{"$f":"IF(C1630=$X$4,\"Enter smelter details\",IF(ISERROR($V1630),\"\",OFFSET('Smelter Look-up'!$F$4,$V1630-4,0)))","v":""},{"$f":"IF(ISERROR($V1630),\"\",OFFSET('Smelter Look-up'!$G$4,$V1630-4,0))","v":""},{"$f":"IF(ISERROR($V1630),\"\",OFFSET('Smelter Look-up'!$H$4,$V1630-4,0))","v":""},{"$f":"IF(ISERROR($V1630),\"\",OFFSET('Smelter Look-up'!$I$4,$V1630-4,0))","v":""},{"$nulls":7},{"$f":"IF(ISERROR($V1630),\"\",OFFSET('Smelter Look-up'!$C$4,$V1630-4,0)&\"\")","v":""},"",{"$f":"IF(B1630=\"\",\"\",IF(ISERROR(MATCH($J1630,SorP!$B$1:$B$5661,0)),\"\",INDIRECT(\"'SorP'!$A$\"&MATCH($J1630,SorP!$B$1:$B$5661,0))))","v":""},null,{"$f":"IF(C1630=\"\",NA(),MATCH($B1630&$C1630,'Smelter Look-up'!$J:$J,0))","v":{"$error":"#N/A"}},null,0,null,null,null,""]
[null,{"$f":"IF(LEN(A1631)=0,\"\",INDEX('Smelter Look-up'!$A:$A,MATCH($A1631,'Smelter Look-up'!$E:$E,0)))","v":""},{"$f":"IF(LEN(A1631)=0,\"\",INDEX('Smelter Look-up'!$C:$C,MATCH($A1631,'Smelter Look-up'!$E:$E,0)))","v":""},null,{"$f":"IF(ISERROR($V1631),\"\",OFFSET('Smelter Look-up'!$D$4,$V1631-4,0)&\"\")","v":""},{"$f":"IF(ISERROR($V1631),\"\",OFFSET('Smelter Look-up'!$E$4,$V1631-4,0))","v":""},{"$f":"IF(C1631=$X$4,\"Enter smelter details\",IF(ISERROR($V1631),\"\",OFFSET('Smelter Look-up'!$F$4,$V1631-4,0)))","v":""},{"$f":"IF(ISERROR($V1631),\"\",OFFSET('Smelter Look-up'!$G$4,$V1631-4,0))","v":""},{"$f":"IF(ISERROR($V1631),\"\",OFFSET('Smelter Look-up'!$H$4,$V1631-4,0))","v":""},{"$f":"IF(ISERROR($V1631),\"\",OFFSET('Smelter Look-up'!$I$4,$V1631-4,0))","v":""},{"$nulls":7},{"$f":"IF(ISERROR($V1631),\"\",OFFSET('Smelter Look-up'!$C$4,$V1631-4,0)&\"\")","v":""},"",{"$f":"IF(B1631=\"\",\"\",IF(ISERROR(MATCH($J1631,SorP!$B$1:$B$5661,0)),\"\",INDIRECT(\"'SorP'!$A$\"&MATCH($J1631,SorP!$B$1:$B$5661,0))))","v":""},null,{"$f":"IF(C1631=\"\",NA(),MATCH($B1631&$C1631,'Smelter Look-up'!$J:$J,0))","v":{"$error":"#N/A"}},null,0,null,null,null,""]
[null,{"$f":"IF(LEN(A1632)=0,\"\",INDEX('Smelter Look-up'!$A:$A,MATCH($A1632,'Smelter Look-up'!$E:$E,0)))","v":""},{"$f":"IF(LEN(A1632)=0,\"\",INDEX('Smelter Look-up'!$C:$C,MATCH($A1632,'Smelter Look-up'!$E:$E,0)))","v":""},null,{"$f":"IF(ISERROR($V1632),\"\",OFFSET('Smelter Look-up'!$D$4,$V1632-4,0)&\"\")","v":""},{"$f":"IF(ISERROR($V1632),\"\",OFFSET('Smelter Look-up'!$E$4,$V1632-4,0))","v":""},{"$f":"IF(C1632=$X$4,\"Enter smelter details\",IF(ISERROR($V1632),\"\",OFFSET('Smelter Look-up'!$F$4,$V1632-4,0)))","v":""},{"$f":"IF(ISERROR($V1632),\"\",OFFSET('Smelter Look-up'!$G$4,$V1632-4,0))","v":""},{"$f":"IF(ISERROR($V1632),\"\",OFFSET('Smelter Look-up'!$H$4,$V1632-4,0))","v":""},{"$f":"IF(ISERROR($V1632),\"\",OFFSET('Smelter Look-up'!$I$4,$V1632-4,0))","v":""},{"$nulls":7},{"$f":"IF(ISERROR($V1632),\"\",OFFSET('Smelter Look-up'!$C$4,$V1632-4,0)&\"\")","v":""},"",{"$f":"IF(B1632=\"\",\"\",IF(ISERROR(MATCH($J1632,SorP!$B$1:$B$5661,0)),\"\",INDIRECT(\"'SorP'!$A$\"&MATCH($J1632,SorP!$B$1:$B$5661,0))))","v":""},null,{"$f":"IF(C1632=\"\",NA(),MATCH($B1632&$C1632,'Smelter Look-up'!$J:$J,0))","v":{"$error":"#N/A"}},null,0,null,null,null,""]
[null,{"$f":"IF(LEN(A1633)=0,\"\",INDEX('Smelter Look-up'!$A:$A,MATCH($A1633,'Smelter Look-up'!$E:$E,0)))","v":""},{"$f":"IF(LEN(A1633)=0,\"\",INDEX('Smelter Look-up'!$C:$C,MATCH($A1633,'Smelter Look-up'!$E:$E,0)))","v":""},null,{"$f":"IF(ISERROR($V1633),\"\",OFFSET('Smelter Look-up'!$D$4,$V1633-4,0)&\"\")","v":""},{"$f":"IF(ISERROR($V1633),\"\",OFFSET('Smelter Look-up'!$E$4,$V1633-4,0))","v":""},{"$f":"IF(C1633=$X$4,\"Enter smelter details\",IF(ISERROR($V1633),\"\",OFFSET('Smelter Look-up'!$F$4,$V1633-4,0)))","v":""},{"$f":"IF(ISERROR($V1633),\"\",OFFSET('Smelter Look-up'!$G$4,$V1633-4,0))","v":""},{"$f":"IF(ISERROR($V1633),\"\",OFFSET('Smelter Look-up'!$H$4,$V1633-4,0))","v":""},{"$f":"IF(ISERROR($V1633),\"\",OFFSET('Smelter Look-up'!$I$4,$V1633-4,0))","v":""},{"$nulls":7},{"$f":"IF(ISERROR($V1633),\"\",OFFSET('Smelter Look-up'!$C$4,$V1633-4,0)&\"\")","v":""},"",{"$f":"IF(B1633=\"\",\"\",IF(ISERROR(MATCH($J1633,SorP!$B$1:$B$5661,0)),\"\",INDIRECT(\"'SorP'!$A$\"&MATCH($J1633,SorP!$B$1:$B$5661,0))))","v":""},null,{"$f":"IF(C1633=\"\",NA(),MATCH($B1633&$C1633,'Smelter Look-up'!$J:$J,0))","v":{"$error":"#N/A"}},null,0,null,null,null,""]
[null,{"$f":"IF(LEN(A1634)=0,\"\",INDEX('Smelter Look-up'!$A:$A,MATCH($A1634,'Smelter Look-up'!$E:$E,0)))","v":""},{"$f":"IF(LEN(A1634)=0,\"\",INDEX('Smelter Look-up'!$C:$C,MATCH($A1634,'Smelter Look-up'!$E:$E,0)))","v":""},null,{"$f":"IF(ISERROR($V1634),\"\",OFFSET('Smelter Look-up'!$D$4,$V1634-4,0)&\"\")","v":""},{"$f":"IF(ISERROR($V1634),\"\",OFFSET('Smelter Look-up'!$E$4,$V1634-4,0))","v":""},{"$f":"IF(C1634=$X$4,\"Enter smelter details\",IF(ISERROR($V1634),\"\",OFFSET('Smelter Look-up'!$F$4,$V1634-4,0)))","v":""},{"$f":"IF(ISERROR($V1634),\"\",OFFSET('Smelter Look-up'!$G$4,$V1634-4,0))","v":""},{"$f":"IF(ISERROR($V1634),\"\",OFFSET('Smelter Look-up'!$H$4,$V1634-4,0))","v":""},{"$f":"IF(ISERROR($V1634),\"\",OFFSET('Smelter Look-up'!$I$4,$V1634-4,0))","v":""},{"$nulls":7},{"$f":"IF(ISERROR($V1634),\"\",OFFSET('Smelter Look-up'!$C$4,$V1634-4,0)&\"\")","v":""},"",{"$f":"IF(B1634=\"\",\"\",IF(ISERROR(MATCH($J1634,SorP!$B$1:$B$5661,0)),\"\",INDIRECT(\"'SorP'!$A$\"&MATCH($J1634,SorP!$B$1:$B$5661,0))))","v":""},null,{"$f":"IF(C1634=\"\",NA(),MATCH($B1634&$C1634,'Smelter Look-up'!$J:$J,0))","v":{"$error":"#N/A"}},null,0,null,null,null,""]
[null,{"$f":"IF(LEN(A1635)=0,\"\",INDEX('Smelter Look-up'!$A:$A,MATCH($A1635,'Smelter Look-up'!$E:$E,0)))","v":""},{"$f":"IF(LEN(A1635)=0,\"\",INDEX('Smelter Look-up'!$C:$C,MATCH($A1635,'Smelter Look-up'!$E:$E,0)))","v":""},null,{"$f":"IF(ISERROR($V1635),\"\",OFFSET('Smelter Look-up'!$D$4,$V1635-4,0)&\"\")","v":""},{"$f":"IF(ISERROR($V1635),\"\",OFFSET('Smelter Look-up'!$E$4,$V1635-4,0))","v":""},{"$f":"IF(C1635=$X$4,\"Enter smelter details\",IF(ISERROR($V1635),\"\",OFFSET('Smelter Look-up'!$F$4,$V1635-4,0)))","v":""},{"$f":"IF(ISERROR($V1635),\"\",OFFSET('Smelter Look-up'!$G$4,$V1635-4,0))","v":""},{"$f":"IF(ISERROR($V1635),\"\",OFFSET('Smelter Look-up'!$H$4,$V1635-4,0))","v":""},{"$f":"IF(ISERROR($V1635),\"\",OFFSET('Smelter Look-up'!$I$4,$V1635-4,0))","v":""},{"$nulls":7},{"$f":"IF(ISERROR($V1635),\"\",OFFSET('Smelter Look-up'!$C$4,$V1635-4,0)&\"\")","v":""},"",{"$f":"IF(B1635=\"\",\"\",IF(ISERROR(MATCH($J1635,SorP!$B$1:$B$5661,0)),\"\",INDIRECT(\"'SorP'!$A$\"&MATCH($J1635,SorP!$B$1:$B$5661,0))))","v":""},null,{"$f":"IF(C1635=\"\",NA(),MATCH($B1635&$C1635,'Smelter Look-up'!$J:$J,0))","v":{"$error":"#N/A"}},null,0,null,null,null,""]
[null,{"$f":"IF(LEN(A1636)=0,\"\",INDEX('Smelter Look-up'!$A:$A,MATCH($A1636,'Smelter Look-up'!$E:$E,0)))","v":""},{"$f":"IF(LEN(A1636)=0,\"\",INDEX('Smelter Look-up'!$C:$C,MATCH($A1636,'Smelter Look-up'!$E:$E,0)))","v":""},null,{"$f":"IF(ISERROR($V1636),\"\",OFFSET('Smelter Look-up'!$D$4,$V1636-4,0)&\"\")","v":""},{"$f":"IF(ISERROR($V1636),\"\",OFFSET('Smelter Look-up'!$E$4,$V1636-4,0))","v":""},{"$f":"IF(C1636=$X$4,\"Enter smelter details\",IF(ISERROR($V1636),\"\",OFFSET('Smelter Look-up'!$F$4,$V1636-4,0)))","v":""},{"$f":"IF(ISERROR($V1636),\"\",OFFSET('Smelter Look-up'!$G$4,$V1636-4,0))","v":""},{"$f":"IF(ISERROR($V1636),\"\",OFFSET('Smelter Look-up'!$H$4,$V1636-4,0))","v":""},{"$f":"IF(ISERROR($V1636),\"\",OFFSET('Smelter Look-up'!$I$4,$V1636-4,0))","v":""},{"$nulls":7},{"$f":"IF(ISERROR($V1636),\"\",OFFSET('Smelter Look-up'!$C$4,$V1636-4,0)&\"\")","v":""},"",{"$f":"IF(B1636=\"\",\"\",IF(ISERROR(MATCH($J1636,SorP!$B$1:$B$5661,0)),\"\",INDIRECT(\"'SorP'!$A$\"&MATCH($J1636,SorP!$B$1:$B$5661,0))))","v":""},null,{"$f":"IF(C1636=\"\",NA(),MATCH($B1636&$C1636,'Smelter Look-up'!$J:$J,0))","v":{"$error":"#N/A"}},null,0,null,null,null,""]
[null,{"$f":"IF(LEN(A1637)=0,\"\",INDEX('Smelter Look-up'!$A:$A,MATCH($A1637,'Smelter Look-up'!$E:$E,0)))","v":""},{"$f":"IF(LEN(A1637)=0,\"\",INDEX('Smelter Look-up'!$C:$C,MATCH($A1637,'Smelter Look-up'!$E:$E,0)))","v":""},null,{"$f":"IF(ISERROR($V1637),\"\",OFFSET('Smelter Look-up'!$D$4,$V1637-4,0)&\"\")","v":""},{"$f":"IF(ISERROR($V1637),\"\",OFFSET('Smelter Look-up'!$E$4,$V1637-4,0))","v":""},{"$f":"IF(C1637=$X$4,\"Enter smelter details\",IF(ISERROR($V1637),\"\",OFFSET('Smelter Look-up'!$F$4,$V1637-4,0)))","v":""},{"$f":"IF(ISERROR($V1637),\"\",OFFSET('Smelter Look-up'!$G$4,$V1637-4,0))","v":""},{"$f":"IF(ISERROR($V1637),\"\",OFFSET('Smelter Look-up'!$H$4,$V1637-4,0))","v":""},{"$f":"IF(ISERROR($V1637),\"\",OFFSET('Smelter Look-up'!$I$4,$V1637-4,0))","v":""},{"$nulls":7},{"$f":"IF(ISERROR($V1637),\"\",OFFSET('Smelter Look-up'!$C$4,$V1637-4,0)&\"\")","v":""},"",{"$f":"IF(B1637=\"\",\"\",IF(ISERROR(MATCH($J1637,SorP!$B$1:$B$5661,0)),\"\",INDIRECT(\"'SorP'!$A$\"&MATCH($J1637,SorP!$B$1:$B$5661,0))))","v":""},null,{"$f":"IF(C1637=\"\",NA(),MATCH($B1637&$C1637,'Smelter Look-up'!$J:$J,0))","v":{"$error":"#N/A"}},null,0,null,null,null,""]
[null,{"$f":"IF(LEN(A1638)=0,\"\",INDEX('Smelter Look-up'!$A:$A,MATCH($A1638,'Smelter Look-up'!$E:$E,0)))","v":""},{"$f":"IF(LEN(A1638)=0,\"\",INDEX('Smelter Look-up'!$C:$C,MATCH($A1638,'Smelter Look-up'!$E:$E,0)))","v":""},null,{"$f":"IF(ISERROR($V1638),\"\",OFFSET('Smelter Look-up'!$D$4,$V1638-4,0)&\"\")","v":""},{"$f":"IF(ISERROR($V1638),\"\",OFFSET('Smelter Look-up'!$E$4,$V1638-4,0))","v":""},{"$f":"IF(C1638=$X$4,\"Enter smelter details\",IF(ISERROR($V1638),\"\",OFFSET('Smelter Look-up'!$F$4,$V1638-4,0)))","v":""},{"$f":"IF(ISERROR($V1638),\"\",OFFSET('Smelter Look-up'!$G$4,$V1638-4,0))","v":""},{"$f":"IF(ISERROR($V1638),\"\",OFFSET('Smelter Look-up'!$H$4,$V1638-4,0))","v":""},{"$f":"IF(ISERROR($V1638),\"\",OFFSET('Smelter Look-up'!$I$4,$V1638-4,0))","v":""},{"$nulls":7},{"$f":"IF(ISERROR($V1638),\"\",OFFSET('Smelter Look-up'!$C$4,$V1638-4,0)&\"\")","v":""},"",{"$f":"IF(B1638=\"\",\"\",IF(ISERROR(MATCH($J1638,SorP!$B$1:$B$5661,0)),\"\",INDIRECT(\"'SorP'!$A$\"&MATCH($J1638,SorP!$B$1:$B$5661,0))))","v":""},null,{"$f":"IF(C1638=\"\",NA(),MATCH($B1638&$C1638,'Smelter Look-up'!$J:$J,0))","v":{"$error":"#N/A"}},null,0,null,null,null,""]
[null,{"$f":"IF(LEN(A1639)=0,\"\",INDEX('Smelter Look-up'!$A:$A,MATCH($A1639,'Smelter Look-up'!$E:$E,0)))","v":""},{"$f":"IF(LEN(A1639)=0,\"\",INDEX('Smelter Look-up'!$C:$C,MATCH($A1639,'Smelter Look-up'!$E:$E,0)))","v":""},null,{"$f":"IF(ISERROR($V1639),\"\",OFFSET('Smelter Look-up'!$D$4,$V1639-4,0)&\"\")","v":""},{"$f":"IF(ISERROR($V1639),\"\",OFFSET('Smelter Look-up'!$E$4,$V1639-4,0))","v":""},{"$f":"IF(C1639=$X$4,\"Enter smelter details\",IF(ISERROR($V1639),\"\",OFFSET('Smelter Look-up'!$F$4,$V1639-4,0)))","v":""},{"$f":"IF(ISERROR($V1639),\"\",OFFSET('Smelter Look-up'!$G$4,$V1639-4,0))","v":""},{"$f":"IF(ISERROR($V1639),\"\",OFFSET('Smelter Look-up'!$H$4,$V1639-4,0))","v":""},{"$f":"IF(ISERROR($V1639),\"\",OFFSET('Smelter Look-up'!$I$4,$V1639-4,0))","v":""},{"$nulls":7},{"$f":"IF(ISERROR($V1639),\"\",OFFSET('Smelter Look-up'!$C$4,$V1639-4,0)&\"\")","v":""},"",{"$f":"IF(B1639=\"\",\"\",IF(ISERROR(MATCH($J1639,SorP!$B$1:$B$5661,0)),\"\",INDIRECT(\"'SorP'!$A$\"&MATCH($J1639,SorP!$B$1:$B$5661,0))))","v":""},null,{"$f":"IF(C1639=\"\",NA(),MATCH($B1639&$C1639,'Smelter Look-up'!$J:$J,0))","v":{"$error":"#N/A"}},null,0,null,null,null,""]
[null,{"$f":"IF(LEN(A1640)=0,\"\",INDEX('Smelter Look-up'!$A:$A,MATCH($A1640,'Smelter Look-up'!$E:$E,0)))","v":""},{"$f":"IF(LEN(A1640)=0,\"\",INDEX('Smelter Look-up'!$C:$C,MATCH($A1640,'Smelter Look-up'!$E:$E,0)))","v":""},null,{"$f":"IF(ISERROR($V1640),\"\",OFFSET('Smelter Look-up'!$D$4,$V1640-4,0)&\"\")","v":""},{"$f":"IF(ISERROR($V1640),\"\",OFFSET('Smelter Look-up'!$E$4,$V1640-4,0))","v":""},{"$f":"IF(C1640=$X$4,\"Enter smelter details\",IF(ISERROR($V1640),\"\",OFFSET('Smelter Look-up'!$F$4,$V1640-4,0)))","v":""},{"$f":"IF(ISERROR($V1640),\"\",OFFSET('Smelter Look-up'!$G$4,$V1640-4,0))","v":""},{"$f":"IF(ISERROR($V1640),\"\",OFFSET('Smelter Look-up'!$H$4,$V1640-4,0))","v":""},{"$f":"IF(ISERROR($V1640),\"\",OFFSET('Smelter Look-up'!$I$4,$V1640-4,0))","v":""},{"$nulls":7},{"$f":"IF(ISERROR($V1640),\"\",OFFSET('Smelter Look-up'!$C$4,$V1640-4,0)&\"\")","v":""},"",{"$f":"IF(B1640=\"\",\"\",IF(ISERROR(MATCH($J1640,SorP!$B$1:$B$5661,0)),\"\",INDIRECT(\"'SorP'!$A$\"&MATCH($J1640,SorP!$B$1:$B$5661,0))))","v":""},null,{"$f":"IF(C1640=\"\",NA(),MATCH($B1640&$C1640,'Smelter Look-up'!$J:$J,0))","v":{"$error":"#N/A"}},null,0,null,null,null,""]
[null,{"$f":"IF(LEN(A1641)=0,\"\",INDEX('Smelter Look-up'!$A:$A,MATCH($A1641,'Smelter Look-up'!$E:$E,0)))","v":""},{"$f":"IF(LEN(A1641)=0,\"\",INDEX('Smelter Look-up'!$C:$C,MATCH($A1641,'Smelter Look-up'!$E:$E,0)))","v":""},null,{"$f":"IF(ISERROR($V1641),\"\",OFFSET('Smelter Look-up'!$D$4,$V1641-4,0)&\"\")","v":""},{"$f":"IF(ISERROR($V1641),\"\",OFFSET('Smelter Look-up'!$E$4,$V1641-4,0))","v":""},{"$f":"IF(C1641=$X$4,\"Enter smelter details\",IF(ISERROR($V1641),\"\",OFFSET('Smelter Look-up'!$F$4,$V1641-4,0)))","v":""},{"$f":"IF(ISERROR($V1641),\"\",OFFSET('Smelter Look-up'!$G$4,$V1641-4,0))","v":""},{"$f":"IF(ISERROR($V1641),\"\",OFFSET('Smelter Look-up'!$H$4,$V1641-4,0))","v":""},{"$f":"IF(ISERROR($V1641),\"\",OFFSET('Smelter Look-up'!$I$4,$V1641-4,0))","v":""},{"$nulls":7},{"$f":"IF(ISERROR($V1641),\"\",OFFSET('Smelter Look-up'!$C$4,$V1641-4,0)&\"\")","v":""},"",{"$f":"IF(B1641=\"\",\"\",IF(ISERROR(MATCH($J1641,SorP!$B$1:$B$5661,0)),\"\",INDIRECT(\"'SorP'!$A$\"&MATCH($J1641,SorP!$B$1:$B$5661,0))))","v":""},null,{"$f":"IF(C1641=\"\",NA(),MATCH($B1641&$C1641,'Smelter Look-up'!$J:$J,0))","v":{"$error":"#N/A"}},null,0,null,null,null,""]
[null,{"$f":"IF(LEN(A1642)=0,\"\",INDEX('Smelter Look-up'!$A:$A,MATCH($A1642,'Smelter Look-up'!$E:$E,0)))","v":""},{"$f":"IF(LEN(A1642)=0,\"\",INDEX('Smelter Look-up'!$C:$C,MATCH($A1642,'Smelter Look-up'!$E:$E,0)))","v":""},null,{"$f":"IF(ISERROR($V1642),\"\",OFFSET('Smelter Look-up'!$D$4,$V1642-4,0)&\"\")","v":""},{"$f":"IF(ISERROR($V1642),\"\",OFFSET('Smelter Look-up'!$E$4,$V1642-4,0))","v":""},{"$f":"IF(C1642=$X$4,\"Enter smelter details\",IF(ISERROR($V1642),\"\",OFFSET('Smelter Look-up'!$F$4,$V1642-4,0)))","v":""},{"$f":"IF(ISERROR($V1642),\"\",OFFSET('Smelter Look-up'!$G$4,$V1642-4,0))","v":""},{"$f":"IF(ISERROR($V1642),\"\",OFFSET('Smelter Look-up'!$H$4,$V1642-4,0))","v":""},{"$f":"IF(ISERROR($V1642),\"\",OFFSET('Smelter Look-up'!$I$4,$V1642-4,0))","v":""},{"$nulls":7},{"$f":"IF(ISERROR($V1642),\"\",OFFSET('Smelter Look-up'!$C$4,$V1642-4,0)&\"\")","v":""},"",{"$f":"IF(B1642=\"\",\"\",IF(ISERROR(MATCH($J1642,SorP!$B$1:$B$5661,0)),\"\",INDIRECT(\"'SorP'!$A$\"&MATCH($J1642,SorP!$B$1:$B$5661,0))))","v":""},null,{"$f":"IF(C1642=\"\",NA(),MATCH($B1642&$C1642,'Smelter Look-up'!$J:$J,0))","v":{"$error":"#N/A"}},null,0,null,null,null,""]
[null,{"$f":"IF(LEN(A1643)=0,\"\",INDEX('Smelter Look-up'!$A:$A,MATCH($A1643,'Smelter Look-up'!$E:$E,0)))","v":""},{"$f":"IF(LEN(A1643)=0,\"\",INDEX('Smelter Look-up'!$C:$C,MATCH($A1643,'Smelter Look-up'!$E:$E,0)))","v":""},null,{"$f":"IF(ISERROR($V1643),\"\",OFFSET('Smelter Look-up'!$D$4,$V1643-4,0)&\"\")","v":""},{"$f":"IF(ISERROR($V1643),\"\",OFFSET('Smelter Look-up'!$E$4,$V1643-4,0))","v":""},{"$f":"IF(C1643=$X$4,\"Enter smelter details\",IF(ISERROR($V1643),\"\",OFFSET('Smelter Look-up'!$F$4,$V1643-4,0)))","v":""},{"$f":"IF(ISERROR($V1643),\"\",OFFSET('Smelter Look-up'!$G$4,$V1643-4,0))","v":""},{"$f":"IF(ISERROR($V1643),\"\",OFFSET('Smelter Look-up'!$H$4,$V1643-4,0))","v":""},{"$f":"IF(ISERROR($V1643),\"\",OFFSET('Smelter Look-up'!$I$4,$V1643-4,0))","v":""},{"$nulls":7},{"$f":"IF(ISERROR($V1643),\"\",OFFSET('Smelter Look-up'!$C$4,$V1643-4,0)&\"\")","v":""},"",{"$f":"IF(B1643=\"\",\"\",IF(ISERROR(MATCH($J1643,SorP!$B$1:$B$5661,0)),\"\",INDIRECT(\"'SorP'!$A$\"&MATCH($J1643,SorP!$B$1:$B$5661,0))))","v":""},null,{"$f":"IF(C1643=\"\",NA(),MATCH($B1643&$C1643,'Smelter Look-up'!$J:$J,0))","v":{"$error":"#N/A"}},null,0,null,null,null,""]
[null,{"$f":"IF(LEN(A1644)=0,\"\",INDEX('Smelter Look-up'!$A:$A,MATCH($A1644,'Smelter Look-up'!$E:$E,0)))","v":""},{"$f":"IF(LEN(A1644)=0,\"\",INDEX('Smelter Look-up'!$C:$C,MATCH($A1644,'Smelter Look-up'!$E:$E,0)))","v":""},null,{"$f":"IF(ISERROR($V1644),\"\",OFFSET('Smelter Look-up'!$D$4,$V1644-4,0)&\"\")","v":""},{"$f":"IF(ISERROR($V1644),\"\",OFFSET('Smelter Look-up'!$E$4,$V1644-4,0))","v":""},{"$f":"IF(C1644=$X$4,\"Enter smelter details\",IF(ISERROR($V1644),\"\",OFFSET('Smelter Look-up'!$F$4,$V1644-4,0)))","v":""},{"$f":"IF(ISERROR($V1644),\"\",OFFSET('Smelter Look-up'!$G$4,$V1644-4,0))","v":""},{"$f":"IF(ISERROR($V1644),\"\",OFFSET('Smelter Look-up'!$H$4,$V1644-4,0))","v":""},{"$f":"IF(ISERROR($V1644),\"\",OFFSET('Smelter Look-up'!$I$4,$V1644-4,0))","v":""},{"$nulls":7},{"$f":"IF(ISERROR($V1644),\"\",OFFSET('Smelter Look-up'!$C$4,$V1644-4,0)&\"\")","v":""},"",{"$f":"IF(B1644=\"\",\"\",IF(ISERROR(MATCH($J1644,SorP!$B$1:$B$5661,0)),\"\",INDIRECT(\"'SorP'!$A$\"&MATCH($J1644,SorP!$B$1:$B$5661,0))))","v":""},null,{"$f":"IF(C1644=\"\",NA(),MATCH($B1644&$C1644,'Smelter Look-up'!$J:$J,0))","v":{"$error":"#N/A"}},null,0,null,null,null,""]
[null,{"$f":"IF(LEN(A1645)=0,\"\",INDEX('Smelter Look-up'!$A:$A,MATCH($A1645,'Smelter Look-up'!$E:$E,0)))","v":""},{"$f":"IF(LEN(A1645)=0,\"\",INDEX('Smelter Look-up'!$C:$C,MATCH($A1645,'Smelter Look-up'!$E:$E,0)))","v":""},null,{"$f":"IF(ISERROR($V1645),\"\",OFFSET('Smelter Look-up'!$D$4,$V1645-4,0)&\"\")","v":""},{"$f":"IF(ISERROR($V1645),\"\",OFFSET('Smelter Look-up'!$E$4,$V1645-4,0))","v":""},{"$f":"IF(C1645=$X$4,\"Enter smelter details\",IF(ISERROR($V1645),\"\",OFFSET('Smelter Look-up'!$F$4,$V1645-4,0)))","v":""},{"$f":"IF(ISERROR($V1645),\"\",OFFSET('Smelter Look-up'!$G$4,$V1645-4,0))","v":""},{"$f":"IF(ISERROR($V1645),\"\",OFFSET('Smelter Look-up'!$H$4,$V1645-4,0))","v":""},{"$f":"IF(ISERROR($V1645),\"\",OFFSET('Smelter Look-up'!$I$4,$V1645-4,0))","v":""},{"$nulls":7},{"$f":"IF(ISERROR($V1645),\"\",OFFSET('Smelter Look-up'!$C$4,$V1645-4,0)&\"\")","v":""},"",{"$f":"IF(B1645=\"\",\"\",IF(ISERROR(MATCH($J1645,SorP!$B$1:$B$5661,0)),\"\",INDIRECT(\"'SorP'!$A$\"&MATCH($J1645,SorP!$B$1:$B$5661,0))))","v":""},null,{"$f":"IF(C1645=\"\",NA(),MATCH($B1645&$C1645,'Smelter Look-up'!$J:$J,0))","v":{"$error":"#N/A"}},null,0,null,null,null,""]
[null,{"$f":"IF(LEN(A1646)=0,\"\",INDEX('Smelter Look-up'!$A:$A,MATCH($A1646,'Smelter Look-up'!$E:$E,0)))","v":""},{"$f":"IF(LEN(A1646)=0,\"\",INDEX('Smelter Look-up'!$C:$C,MATCH($A1646,'Smelter Look-up'!$E:$E,0)))","v":""},null,{"$f":"IF(ISERROR($V1646),\"\",OFFSET('Smelter Look-up'!$D$4,$V1646-4,0)&\"\")","v":""},{"$f":"IF(ISERROR($V1646),\"\",OFFSET('Smelter Look-up'!$E$4,$V1646-4,0))","v":""},{"$f":"IF(C1646=$X$4,\"Enter smelter details\",IF(ISERROR($V1646),\"\",OFFSET('Smelter Look-up'!$F$4,$V1646-4,0)))","v":""},{"$f":"IF(ISERROR($V1646),\"\",OFFSET('Smelter Look-up'!$G$4,$V1646-4,0))","v":""},{"$f":"IF(ISERROR($V1646),\"\",OFFSET('Smelter Look-up'!$H$4,$V1646-4,0))","v":""},{"$f":"IF(ISERROR($V1646),\"\",OFFSET('Smelter Look-up'!$I$4,$V1646-4,0))","v":""},{"$nulls":7},{"$f":"IF(ISERROR($V1646),\"\",OFFSET('Smelter Look-up'!$C$4,$V1646-4,0)&\"\")","v":""},"",{"$f":"IF(B1646=\"\",\"\",IF(ISERROR(MATCH($J1646,SorP!$B$1:$B$5661,0)),\"\",INDIRECT(\"'SorP'!$A$\"&MATCH($J1646,SorP!$B$1:$B$5661,0))))","v":""},null,{"$f":"IF(C1646=\"\",NA(),MATCH($B1646&$C1646,'Smelter Look-up'!$J:$J,0))","v":{"$error":"#N/A"}},null,0,null,null,null,""]
[null,{"$f":"IF(LEN(A1647)=0,\"\",INDEX('Smelter Look-up'!$A:$A,MATCH($A1647,'Smelter Look-up'!$E:$E,0)))","v":""},{"$f":"IF(LEN(A1647)=0,\"\",INDEX('Smelter Look-up'!$C:$C,MATCH($A1647,'Smelter Look-up'!$E:$E,0)))","v":""},null,{"$f":"IF(ISERROR($V1647),\"\",OFFSET('Smelter Look-up'!$D$4,$V1647-4,0)&\"\")","v":""},{"$f":"IF(ISERROR($V1647),\"\",OFFSET('Smelter Look-up'!$E$4,$V1647-4,0))","v":""},{"$f":"IF(C1647=$X$4,\"Enter smelter details\",IF(ISERROR($V1647),\"\",OFFSET('Smelter Look-up'!$F$4,$V1647-4,0)))","v":""},{"$f":"IF(ISERROR($V1647),\"\",OFFSET('Smelter Look-up'!$G$4,$V1647-4,0))","v":""},{"$f":"IF(ISERROR($V1647),\"\",OFFSET('Smelter Look-up'!$H$4,$V1647-4,0))","v":""},{"$f":"IF(ISERROR($V1647),\"\",OFFSET('Smelter Look-up'!$I$4,$V1647-4,0))","v":""},{"$nulls":7},{"$f":"IF(ISERROR($V1647),\"\",OFFSET('Smelter Look-up'!$C$4,$V1647-4,0)&\"\")","v":""},"",{"$f":"IF(B1647=\"\",\"\",IF(ISERROR(MATCH($J1647,SorP!$B$1:$B$5661,0)),\"\",INDIRECT(\"'SorP'!$A$\"&MATCH($J1647,SorP!$B$1:$B$5661,0))))","v":""},null,{"$f":"IF(C1647=\"\",NA(),MATCH($B1647&$C1647,'Smelter Look-up'!$J:$J,0))","v":{"$error":"#N/A"}},null,0,null,null,null,""]
[null,{"$f":"IF(LEN(A1648)=0,\"\",INDEX('Smelter Look-up'!$A:$A,MATCH($A1648,'Smelter Look-up'!$E:$E,0)))","v":""},{"$f":"IF(LEN(A1648)=0,\"\",INDEX('Smelter Look-up'!$C:$C,MATCH($A1648,'Smelter Look-up'!$E:$E,0)))","v":""},null,{"$f":"IF(ISERROR($V1648),\"\",OFFSET('Smelter Look-up'!$D$4,$V1648-4,0)&\"\")","v":""},{"$f":"IF(ISERROR($V1648),\"\",OFFSET('Smelter Look-up'!$E$4,$V1648-4,0))","v":""},{"$f":"IF(C1648=$X$4,\"Enter smelter details\",IF(ISERROR($V1648),\"\",OFFSET('Smelter Look-up'!$F$4,$V1648-4,0)))","v":""},{"$f":"IF(ISERROR($V1648),\"\",OFFSET('Smelter Look-up'!$G$4,$V1648-4,0))","v":""},{"$f":"IF(ISERROR($V1648),\"\",OFFSET('Smelter Look-up'!$H$4,$V1648-4,0))","v":""},{"$f":"IF(ISERROR($V1648),\"\",OFFSET('Smelter Look-up'!$I$4,$V1648-4,0))","v":""},{"$nulls":7},{"$f":"IF(ISERROR($V1648),\"\",OFFSET('Smelter Look-up'!$C$4,$V1648-4,0)&\"\")","v":""},"",{"$f":"IF(B1648=\"\",\"\",IF(ISERROR(MATCH($J1648,SorP!$B$1:$B$5661,0)),\"\",INDIRECT(\"'SorP'!$A$\"&MATCH($J1648,SorP!$B$1:$B$5661,0))))","v":""},null,{"$f":"IF(C1648=\"\",NA(),MATCH($B1648&$C1648,'Smelter Look-up'!$J:$J,0))","v":{"$error":"#N/A"}},null,0,null,null,null,""]
[null,{"$f":"IF(LEN(A1649)=0,\"\",INDEX('Smelter Look-up'!$A:$A,MATCH($A1649,'Smelter Look-up'!$E:$E,0)))","v":""},{"$f":"IF(LEN(A1649)=0,\"\",INDEX('Smelter Look-up'!$C:$C,MATCH($A1649,'Smelter Look-up'!$E:$E,0)))","v":""},null,{"$f":"IF(ISERROR($V1649),\"\",OFFSET('Smelter Look-up'!$D$4,$V1649-4,0)&\"\")","v":""},{"$f":"IF(ISERROR($V1649),\"\",OFFSET('Smelter Look-up'!$E$4,$V1649-4,0))","v":""},{"$f":"IF(C1649=$X$4,\"Enter smelter details\",IF(ISERROR($V1649),\"\",OFFSET('Smelter Look-up'!$F$4,$V1649-4,0)))","v":""},{"$f":"IF(ISERROR($V1649),\"\",OFFSET('Smelter Look-up'!$G$4,$V1649-4,0))","v":""},{"$f":"IF(ISERROR($V1649),\"\",OFFSET('Smelter Look-up'!$H$4,$V1649-4,0))","v":""},{"$f":"IF(ISERROR($V1649),\"\",OFFSET('Smelter Look-up'!$I$4,$V1649-4,0))","v":""},{"$nulls":7},{"$f":"IF(ISERROR($V1649),\"\",OFFSET('Smelter Look-up'!$C$4,$V1649-4,0)&\"\")","v":""},"",{"$f":"IF(B1649=\"\",\"\",IF(ISERROR(MATCH($J1649,SorP!$B$1:$B$5661,0)),\"\",INDIRECT(\"'SorP'!$A$\"&MATCH($J1649,SorP!$B$1:$B$5661,0))))","v":""},null,{"$f":"IF(C1649=\"\",NA(),MATCH($B1649&$C1649,'Smelter Look-up'!$J:$J,0))","v":{"$error":"#N/A"}},null,0,null,null,null,""]
[null,{"$f":"IF(LEN(A1650)=0,\"\",INDEX('Smelter Look-up'!$A:$A,MATCH($A1650,'Smelter Look-up'!$E:$E,0)))","v":""},{"$f":"IF(LEN(A1650)=0,\"\",INDEX('Smelter Look-up'!$C:$C,MATCH($A1650,'Smelter Look-up'!$E:$E,0)))","v":""},null,{"$f":"IF(ISERROR($V1650),\"\",OFFSET('Smelter Look-up'!$D$4,$V1650-4,0)&\"\")","v":""},{"$f":"IF(ISERROR($V1650),\"\",OFFSET('Smelter Look-up'!$E$4,$V1650-4,0))","v":""},{"$f":"IF(C1650=$X$4,\"Enter smelter details\",IF(ISERROR($V1650),\"\",OFFSET('Smelter Look-up'!$F$4,$V1650-4,0)))","v":""},{"$f":"IF(ISERROR($V1650),\"\",OFFSET('Smelter Look-up'!$G$4,$V1650-4,0))","v":""},{"$f":"IF(ISERROR($V1650),\"\",OFFSET('Smelter Look-up'!$H$4,$V1650-4,0))","v":""},{"$f":"IF(ISERROR($V1650),\"\",OFFSET('Smelter Look-up'!$I$4,$V1650-4,0))","v":""},{"$nulls":7},{"$f":"IF(ISERROR($V1650),\"\",OFFSET('Smelter Look-up'!$C$4,$V1650-4,0)&\"\")","v":""},"",{"$f":"IF(B1650=\"\",\"\",IF(ISERROR(MATCH($J1650,SorP!$B$1:$B$5661,0)),\"\",INDIRECT(\"'SorP'!$A$\"&MATCH($J1650,SorP!$B$1:$B$5661,0))))","v":""},null,{"$f":"IF(C1650=\"\",NA(),MATCH($B1650&$C1650,'Smelter Look-up'!$J:$J,0))","v":{"$error":"#N/A"}},null,0,null,null,null,""]
[null,{"$f":"IF(LEN(A1651)=0,\"\",INDEX('Smelter Look-up'!$A:$A,MATCH($A1651,'Smelter Look-up'!$E:$E,0)))","v":""},{"$f":"IF(LEN(A1651)=0,\"\",INDEX('Smelter Look-up'!$C:$C,MATCH($A1651,'Smelter Look-up'!$E:$E,0)))","v":""},null,{"$f":"IF(ISERROR($V1651),\"\",OFFSET('Smelter Look-up'!$D$4,$V1651-4,0)&\"\")","v":""},{"$f":"IF(ISERROR($V1651),\"\",OFFSET('Smelter Look-up'!$E$4,$V1651-4,0))","v":""},{"$f":"IF(C1651=$X$4,\"Enter smelter details\",IF(ISERROR($V1651),\"\",OFFSET('Smelter Look-up'!$F$4,$V1651-4,0)))","v":""},{"$f":"IF(ISERROR($V1651),\"\",OFFSET('Smelter Look-up'!$G$4,$V1651-4,0))","v":""},{"$f":"IF(ISERROR($V1651),\"\",OFFSET('Smelter Look-up'!$H$4,$V1651-4,0))","v":""},{"$f":"IF(ISERROR($V1651),\"\",OFFSET('Smelter Look-up'!$I$4,$V1651-4,0))","v":""},{"$nulls":7},{"$f":"IF(ISERROR($V1651),\"\",OFFSET('Smelter Look-up'!$C$4,$V1651-4,0)&\"\")","v":""},"",{"$f":"IF(B1651=\"\",\"\",IF(ISERROR(MATCH($J1651,SorP!$B$1:$B$5661,0)),\"\",INDIRECT(\"'SorP'!$A$\"&MATCH($J1651,SorP!$B$1:$B$5661,0))))","v":""},null,{"$f":"IF(C1651=\"\",NA(),MATCH($B1651&$C1651,'Smelter Look-up'!$J:$J,0))","v":{"$error":"#N/A"}},null,0,null,null,null,""]
[null,{"$f":"IF(LEN(A1652)=0,\"\",INDEX('Smelter Look-up'!$A:$A,MATCH($A1652,'Smelter Look-up'!$E:$E,0)))","v":""},{"$f":"IF(LEN(A1652)=0,\"\",INDEX('Smelter Look-up'!$C:$C,MATCH($A1652,'Smelter Look-up'!$E:$E,0)))","v":""},null,{"$f":"IF(ISERROR($V1652),\"\",OFFSET('Smelter Look-up'!$D$4,$V1652-4,0)&\"\")","v":""},{"$f":"IF(ISERROR($V1652),\"\",OFFSET('Smelter Look-up'!$E$4,$V1652-4,0))","v":""},{"$f":"IF(C1652=$X$4,\"Enter smelter details\",IF(ISERROR($V1652),\"\",OFFSET('Smelter Look-up'!$F$4,$V1652-4,0)))","v":""},{"$f":"IF(ISERROR($V1652),\"\",OFFSET('Smelter Look-up'!$G$4,$V1652-4,0))","v":""},{"$f":"IF(ISERROR($V1652),\"\",OFFSET('Smelter Look-up'!$H$4,$V1652-4,0))","v":""},{"$f":"IF(ISERROR($V1652),\"\",OFFSET('Smelter Look-up'!$I$4,$V1652-4,0))","v":""},{"$nulls":7},{"$f":"IF(ISERROR($V1652),\"\",OFFSET('Smelter Look-up'!$C$4,$V1652-4,0)&\"\")","v":""},"",{"$f":"IF(B1652=\"\",\"\",IF(ISERROR(MATCH($J1652,SorP!$B$1:$B$5661,0)),\"\",INDIRECT(\"'SorP'!$A$\"&MATCH($J1652,SorP!$B$1:$B$5661,0))))","v":""},null,{"$f":"IF(C1652=\"\",NA(),MATCH($B1652&$C1652,'Smelter Look-up'!$J:$J,0))","v":{"$error":"#N/A"}},null,0,null,null,null,""]
[null,{"$f":"IF(LEN(A1653)=0,\"\",INDEX('Smelter Look-up'!$A:$A,MATCH($A1653,'Smelter Look-up'!$E:$E,0)))","v":""},{"$f":"IF(LEN(A1653)=0,\"\",INDEX('Smelter Look-up'!$C:$C,MATCH($A1653,'Smelter Look-up'!$E:$E,0)))","v":""},null,{"$f":"IF(ISERROR($V1653),\"\",OFFSET('Smelter Look-up'!$D$4,$V1653-4,0)&\"\")","v":""},{"$f":"IF(ISERROR($V1653),\"\",OFFSET('Smelter Look-up'!$E$4,$V1653-4,0))","v":""},{"$f":"IF(C1653=$X$4,\"Enter smelter details\",IF(ISERROR($V1653),\"\",OFFSET('Smelter Look-up'!$F$4,$V1653-4,0)))","v":""},{"$f":"IF(ISERROR($V1653),\"\",OFFSET('Smelter Look-up'!$G$4,$V1653-4,0))","v":""},{"$f":"IF(ISERROR($V1653),\"\",OFFSET('Smelter Look-up'!$H$4,$V1653-4,0))","v":""},{"$f":"IF(ISERROR($V1653),\"\",OFFSET('Smelter Look-up'!$I$4,$V1653-4,0))","v":""},{"$nulls":7},{"$f":"IF(ISERROR($V1653),\"\",OFFSET('Smelter Look-up'!$C$4,$V1653-4,0)&\"\")","v":""},"",{"$f":"IF(B1653=\"\",\"\",IF(ISERROR(MATCH($J1653,SorP!$B$1:$B$5661,0)),\"\",INDIRECT(\"'SorP'!$A$\"&MATCH($J1653,SorP!$B$1:$B$5661,0))))","v":""},null,{"$f":"IF(C1653=\"\",NA(),MATCH($B1653&$C1653,'Smelter Look-up'!$J:$J,0))","v":{"$error":"#N/A"}},null,0,null,null,null,""]
[null,{"$f":"IF(LEN(A1654)=0,\"\",INDEX('Smelter Look-up'!$A:$A,MATCH($A1654,'Smelter Look-up'!$E:$E,0)))","v":""},{"$f":"IF(LEN(A1654)=0,\"\",INDEX('Smelter Look-up'!$C:$C,MATCH($A1654,'Smelter Look-up'!$E:$E,0)))","v":""},null,{"$f":"IF(ISERROR($V1654),\"\",OFFSET('Smelter Look-up'!$D$4,$V1654-4,0)&\"\")","v":""},{"$f":"IF(ISERROR($V1654),\"\",OFFSET('Smelter Look-up'!$E$4,$V1654-4,0))","v":""},{"$f":"IF(C1654=$X$4,\"Enter smelter details\",IF(ISERROR($V1654),\"\",OFFSET('Smelter Look-up'!$F$4,$V1654-4,0)))","v":""},{"$f":"IF(ISERROR($V1654),\"\",OFFSET('Smelter Look-up'!$G$4,$V1654-4,0))","v":""},{"$f":"IF(ISERROR($V1654),\"\",OFFSET('Smelter Look-up'!$H$4,$V1654-4,0))","v":""},{"$f":"IF(ISERROR($V1654),\"\",OFFSET('Smelter Look-up'!$I$4,$V1654-4,0))","v":""},{"$nulls":7},{"$f":"IF(ISERROR($V1654),\"\",OFFSET('Smelter Look-up'!$C$4,$V1654-4,0)&\"\")","v":""},"",{"$f":"IF(B1654=\"\",\"\",IF(ISERROR(MATCH($J1654,SorP!$B$1:$B$5661,0)),\"\",INDIRECT(\"'SorP'!$A$\"&MATCH($J1654,SorP!$B$1:$B$5661,0))))","v":""},null,{"$f":"IF(C1654=\"\",NA(),MATCH($B1654&$C1654,'Smelter Look-up'!$J:$J,0))","v":{"$error":"#N/A"}},null,0,null,null,null,""]
[null,{"$f":"IF(LEN(A1655)=0,\"\",INDEX('Smelter Look-up'!$A:$A,MATCH($A1655,'Smelter Look-up'!$E:$E,0)))","v":""},{"$f":"IF(LEN(A1655)=0,\"\",INDEX('Smelter Look-up'!$C:$C,MATCH($A1655,'Smelter Look-up'!$E:$E,0)))","v":""},null,{"$f":"IF(ISERROR($V1655),\"\",OFFSET('Smelter Look-up'!$D$4,$V1655-4,0)&\"\")","v":""},{"$f":"IF(ISERROR($V1655),\"\",OFFSET('Smelter Look-up'!$E$4,$V1655-4,0))","v":""},{"$f":"IF(C1655=$X$4,\"Enter smelter details\",IF(ISERROR($V1655),\"\",OFFSET('Smelter Look-up'!$F$4,$V1655-4,0)))","v":""},{"$f":"IF(ISERROR($V1655),\"\",OFFSET('Smelter Look-up'!$G$4,$V1655-4,0))","v":""},{"$f":"IF(ISERROR($V1655),\"\",OFFSET('Smelter Look-up'!$H$4,$V1655-4,0))","v":""},{"$f":"IF(ISERROR($V1655),\"\",OFFSET('Smelter Look-up'!$I$4,$V1655-4,0))","v":""},{"$nulls":7},{"$f":"IF(ISERROR($V1655),\"\",OFFSET('Smelter Look-up'!$C$4,$V1655-4,0)&\"\")","v":""},"",{"$f":"IF(B1655=\"\",\"\",IF(ISERROR(MATCH($J1655,SorP!$B$1:$B$5661,0)),\"\",INDIRECT(\"'SorP'!$A$\"&MATCH($J1655,SorP!$B$1:$B$5661,0))))","v":""},null,{"$f":"IF(C1655=\"\",NA(),MATCH($B1655&$C1655,'Smelter Look-up'!$J:$J,0))","v":{"$error":"#N/A"}},null,0,null,null,null,""]
[null,{"$f":"IF(LEN(A1656)=0,\"\",INDEX('Smelter Look-up'!$A:$A,MATCH($A1656,'Smelter Look-up'!$E:$E,0)))","v":""},{"$f":"IF(LEN(A1656)=0,\"\",INDEX('Smelter Look-up'!$C:$C,MATCH($A1656,'Smelter Look-up'!$E:$E,0)))","v":""},null,{"$f":"IF(ISERROR($V1656),\"\",OFFSET('Smelter Look-up'!$D$4,$V1656-4,0)&\"\")","v":""},{"$f":"IF(ISERROR($V1656),\"\",OFFSET('Smelter Look-up'!$E$4,$V1656-4,0))","v":""},{"$f":"IF(C1656=$X$4,\"Enter smelter details\",IF(ISERROR($V1656),\"\",OFFSET('Smelter Look-up'!$F$4,$V1656-4,0)))","v":""},{"$f":"IF(ISERROR($V1656),\"\",OFFSET('Smelter Look-up'!$G$4,$V1656-4,0))","v":""},{"$f":"IF(ISERROR($V1656),\"\",OFFSET('Smelter Look-up'!$H$4,$V1656-4,0))","v":""},{"$f":"IF(ISERROR($V1656),\"\",OFFSET('Smelter Look-up'!$I$4,$V1656-4,0))","v":""},{"$nulls":7},{"$f":"IF(ISERROR($V1656),\"\",OFFSET('Smelter Look-up'!$C$4,$V1656-4,0)&\"\")","v":""},"",{"$f":"IF(B1656=\"\",\"\",IF(ISERROR(MATCH($J1656,SorP!$B$1:$B$5661,0)),\"\",INDIRECT(\"'SorP'!$A$\"&MATCH($J1656,SorP!$B$1:$B$5661,0))))","v":""},null,{"$f":"IF(C1656=\"\",NA(),MATCH($B1656&$C1656,'Smelter Look-up'!$J:$J,0))","v":{"$error":"#N/A"}},null,0,null,null,null,""]
[null,{"$f":"IF(LEN(A1657)=0,\"\",INDEX('Smelter Look-up'!$A:$A,MATCH($A1657,'Smelter Look-up'!$E:$E,0)))","v":""},{"$f":"IF(LEN(A1657)=0,\"\",INDEX('Smelter Look-up'!$C:$C,MATCH($A1657,'Smelter Look-up'!$E:$E,0)))","v":""},null,{"$f":"IF(ISERROR($V1657),\"\",OFFSET('Smelter Look-up'!$D$4,$V1657-4,0)&\"\")","v":""},{"$f":"IF(ISERROR($V1657),\"\",OFFSET('Smelter Look-up'!$E$4,$V1657-4,0))","v":""},{"$f":"IF(C1657=$X$4,\"Enter smelter details\",IF(ISERROR($V1657),\"\",OFFSET('Smelter Look-up'!$F$4,$V1657-4,0)))","v":""},{"$f":"IF(ISERROR($V1657),\"\",OFFSET('Smelter Look-up'!$G$4,$V1657-4,0))","v":""},{"$f":"IF(ISERROR($V1657),\"\",OFFSET('Smelter Look-up'!$H$4,$V1657-4,0))","v":""},{"$f":"IF(ISERROR($V1657),\"\",OFFSET('Smelter Look-up'!$I$4,$V1657-4,0))","v":""},{"$nulls":7},{"$f":"IF(ISERROR($V1657),\"\",OFFSET('Smelter Look-up'!$C$4,$V1657-4,0)&\"\")","v":""},"",{"$f":"IF(B1657=\"\",\"\",IF(ISERROR(MATCH($J1657,SorP!$B$1:$B$5661,0)),\"\",INDIRECT(\"'SorP'!$A$\"&MATCH($J1657,SorP!$B$1:$B$5661,0))))","v":""},null,{"$f":"IF(C1657=\"\",NA(),MATCH($B1657&$C1657,'Smelter Look-up'!$J:$J,0))","v":{"$error":"#N/A"}},null,0,null,null,null,""]
[null,{"$f":"IF(LEN(A1658)=0,\"\",INDEX('Smelter Look-up'!$A:$A,MATCH($A1658,'Smelter Look-up'!$E:$E,0)))","v":""},{"$f":"IF(LEN(A1658)=0,\"\",INDEX('Smelter Look-up'!$C:$C,MATCH($A1658,'Smelter Look-up'!$E:$E,0)))","v":""},null,{"$f":"IF(ISERROR($V1658),\"\",OFFSET('Smelter Look-up'!$D$4,$V1658-4,0)&\"\")","v":""},{"$f":"IF(ISERROR($V1658),\"\",OFFSET('Smelter Look-up'!$E$4,$V1658-4,0))","v":""},{"$f":"IF(C1658=$X$4,\"Enter smelter details\",IF(ISERROR($V1658),\"\",OFFSET('Smelter Look-up'!$F$4,$V1658-4,0)))","v":""},{"$f":"IF(ISERROR($V1658),\"\",OFFSET('Smelter Look-up'!$G$4,$V1658-4,0))","v":""},{"$f":"IF(ISERROR($V1658),\"\",OFFSET('Smelter Look-up'!$H$4,$V1658-4,0))","v":""},{"$f":"IF(ISERROR($V1658),\"\",OFFSET('Smelter Look-up'!$I$4,$V1658-4,0))","v":""},{"$nulls":7},{"$f":"IF(ISERROR($V1658),\"\",OFFSET('Smelter Look-up'!$C$4,$V1658-4,0)&\"\")","v":""},"",{"$f":"IF(B1658=\"\",\"\",IF(ISERROR(MATCH($J1658,SorP!$B$1:$B$5661,0)),\"\",INDIRECT(\"'SorP'!$A$\"&MATCH($J1658,SorP!$B$1:$B$5661,0))))","v":""},null,{"$f":"IF(C1658=\"\",NA(),MATCH($B1658&$C1658,'Smelter Look-up'!$J:$J,0))","v":{"$error":"#N/A"}},null,0,null,null,null,""]
[null,{"$f":"IF(LEN(A1659)=0,\"\",INDEX('Smelter Look-up'!$A:$A,MATCH($A1659,'Smelter Look-up'!$E:$E,0)))","v":""},{"$f":"IF(LEN(A1659)=0,\"\",INDEX('Smelter Look-up'!$C:$C,MATCH($A1659,'Smelter Look-up'!$E:$E,0)))","v":""},null,{"$f":"IF(ISERROR($V1659),\"\",OFFSET('Smelter Look-up'!$D$4,$V1659-4,0)&\"\")","v":""},{"$f":"IF(ISERROR($V1659),\"\",OFFSET('Smelter Look-up'!$E$4,$V1659-4,0))","v":""},{"$f":"IF(C1659=$X$4,\"Enter smelter details\",IF(ISERROR($V1659),\"\",OFFSET('Smelter Look-up'!$F$4,$V1659-4,0)))","v":""},{"$f":"IF(ISERROR($V1659),\"\",OFFSET('Smelter Look-up'!$G$4,$V1659-4,0))","v":""},{"$f":"IF(ISERROR($V1659),\"\",OFFSET('Smelter Look-up'!$H$4,$V1659-4,0))","v":""},{"$f":"IF(ISERROR($V1659),\"\",OFFSET('Smelter Look-up'!$I$4,$V1659-4,0))","v":""},{"$nulls":7},{"$f":"IF(ISERROR($V1659),\"\",OFFSET('Smelter Look-up'!$C$4,$V1659-4,0)&\"\")","v":""},"",{"$f":"IF(B1659=\"\",\"\",IF(ISERROR(MATCH($J1659,SorP!$B$1:$B$5661,0)),\"\",INDIRECT(\"'SorP'!$A$\"&MATCH($J1659,SorP!$B$1:$B$5661,0))))","v":""},null,{"$f":"IF(C1659=\"\",NA(),MATCH($B1659&$C1659,'Smelter Look-up'!$J:$J,0))","v":{"$error":"#N/A"}},null,0,null,null,null,""]
[null,{"$f":"IF(LEN(A1660)=0,\"\",INDEX('Smelter Look-up'!$A:$A,MATCH($A1660,'Smelter Look-up'!$E:$E,0)))","v":""},{"$f":"IF(LEN(A1660)=0,\"\",INDEX('Smelter Look-up'!$C:$C,MATCH($A1660,'Smelter Look-up'!$E:$E,0)))","v":""},null,{"$f":"IF(ISERROR($V1660),\"\",OFFSET('Smelter Look-up'!$D$4,$V1660-4,0)&\"\")","v":""},{"$f":"IF(ISERROR($V1660),\"\",OFFSET('Smelter Look-up'!$E$4,$V1660-4,0))","v":""},{"$f":"IF(C1660=$X$4,\"Enter smelter details\",IF(ISERROR($V1660),\"\",OFFSET('Smelter Look-up'!$F$4,$V1660-4,0)))","v":""},{"$f":"IF(ISERROR($V1660),\"\",OFFSET('Smelter Look-up'!$G$4,$V1660-4,0))","v":""},{"$f":"IF(ISERROR($V1660),\"\",OFFSET('Smelter Look-up'!$H$4,$V1660-4,0))","v":""},{"$f":"IF(ISERROR($V1660),\"\",OFFSET('Smelter Look-up'!$I$4,$V1660-4,0))","v":""},{"$nulls":7},{"$f":"IF(ISERROR($V1660),\"\",OFFSET('Smelter Look-up'!$C$4,$V1660-4,0)&\"\")","v":""},"",{"$f":"IF(B1660=\"\",\"\",IF(ISERROR(MATCH($J1660,SorP!$B$1:$B$5661,0)),\"\",INDIRECT(\"'SorP'!$A$\"&MATCH($J1660,SorP!$B$1:$B$5661,0))))","v":""},null,{"$f":"IF(C1660=\"\",NA(),MATCH($B1660&$C1660,'Smelter Look-up'!$J:$J,0))","v":{"$error":"#N/A"}},null,0,null,null,null,""]
[null,{"$f":"IF(LEN(A1661)=0,\"\",INDEX('Smelter Look-up'!$A:$A,MATCH($A1661,'Smelter Look-up'!$E:$E,0)))","v":""},{"$f":"IF(LEN(A1661)=0,\"\",INDEX('Smelter Look-up'!$C:$C,MATCH($A1661,'Smelter Look-up'!$E:$E,0)))","v":""},null,{"$f":"IF(ISERROR($V1661),\"\",OFFSET('Smelter Look-up'!$D$4,$V1661-4,0)&\"\")","v":""},{"$f":"IF(ISERROR($V1661),\"\",OFFSET('Smelter Look-up'!$E$4,$V1661-4,0))","v":""},{"$f":"IF(C1661=$X$4,\"Enter smelter details\",IF(ISERROR($V1661),\"\",OFFSET('Smelter Look-up'!$F$4,$V1661-4,0)))","v":""},{"$f":"IF(ISERROR($V1661),\"\",OFFSET('Smelter Look-up'!$G$4,$V1661-4,0))","v":""},{"$f":"IF(ISERROR($V1661),\"\",OFFSET('Smelter Look-up'!$H$4,$V1661-4,0))","v":""},{"$f":"IF(ISERROR($V1661),\"\",OFFSET('Smelter Look-up'!$I$4,$V1661-4,0))","v":""},{"$nulls":7},{"$f":"IF(ISERROR($V1661),\"\",OFFSET('Smelter Look-up'!$C$4,$V1661-4,0)&\"\")","v":""},"",{"$f":"IF(B1661=\"\",\"\",IF(ISERROR(MATCH($J1661,SorP!$B$1:$B$5661,0)),\"\",INDIRECT(\"'SorP'!$A$\"&MATCH($J1661,SorP!$B$1:$B$5661,0))))","v":""},null,{"$f":"IF(C1661=\"\",NA(),MATCH($B1661&$C1661,'Smelter Look-up'!$J:$J,0))","v":{"$error":"#N/A"}},null,0,null,null,null,""]
[null,{"$f":"IF(LEN(A1662)=0,\"\",INDEX('Smelter Look-up'!$A:$A,MATCH($A1662,'Smelter Look-up'!$E:$E,0)))","v":""},{"$f":"IF(LEN(A1662)=0,\"\",INDEX('Smelter Look-up'!$C:$C,MATCH($A1662,'Smelter Look-up'!$E:$E,0)))","v":""},null,{"$f":"IF(ISERROR($V1662),\"\",OFFSET('Smelter Look-up'!$D$4,$V1662-4,0)&\"\")","v":""},{"$f":"IF(ISERROR($V1662),\"\",OFFSET('Smelter Look-up'!$E$4,$V1662-4,0))","v":""},{"$f":"IF(C1662=$X$4,\"Enter smelter details\",IF(ISERROR($V1662),\"\",OFFSET('Smelter Look-up'!$F$4,$V1662-4,0)))","v":""},{"$f":"IF(ISERROR($V1662),\"\",OFFSET('Smelter Look-up'!$G$4,$V1662-4,0))","v":""},{"$f":"IF(ISERROR($V1662),\"\",OFFSET('Smelter Look-up'!$H$4,$V1662-4,0))","v":""},{"$f":"IF(ISERROR($V1662),\"\",OFFSET('Smelter Look-up'!$I$4,$V1662-4,0))","v":""},{"$nulls":7},{"$f":"IF(ISERROR($V1662),\"\",OFFSET('Smelter Look-up'!$C$4,$V1662-4,0)&\"\")","v":""},"",{"$f":"IF(B1662=\"\",\"\",IF(ISERROR(MATCH($J1662,SorP!$B$1:$B$5661,0)),\"\",INDIRECT(\"'SorP'!$A$\"&MATCH($J1662,SorP!$B$1:$B$5661,0))))","v":""},null,{"$f":"IF(C1662=\"\",NA(),MATCH($B1662&$C1662,'Smelter Look-up'!$J:$J,0))","v":{"$error":"#N/A"}},null,0,null,null,null,""]
[null,{"$f":"IF(LEN(A1663)=0,\"\",INDEX('Smelter Look-up'!$A:$A,MATCH($A1663,'Smelter Look-up'!$E:$E,0)))","v":""},{"$f":"IF(LEN(A1663)=0,\"\",INDEX('Smelter Look-up'!$C:$C,MATCH($A1663,'Smelter Look-up'!$E:$E,0)))","v":""},null,{"$f":"IF(ISERROR($V1663),\"\",OFFSET('Smelter Look-up'!$D$4,$V1663-4,0)&\"\")","v":""},{"$f":"IF(ISERROR($V1663),\"\",OFFSET('Smelter Look-up'!$E$4,$V1663-4,0))","v":""},{"$f":"IF(C1663=$X$4,\"Enter smelter details\",IF(ISERROR($V1663),\"\",OFFSET('Smelter Look-up'!$F$4,$V1663-4,0)))","v":""},{"$f":"IF(ISERROR($V1663),\"\",OFFSET('Smelter Look-up'!$G$4,$V1663-4,0))","v":""},{"$f":"IF(ISERROR($V1663),\"\",OFFSET('Smelter Look-up'!$H$4,$V1663-4,0))","v":""},{"$f":"IF(ISERROR($V1663),\"\",OFFSET('Smelter Look-up'!$I$4,$V1663-4,0))","v":""},{"$nulls":7},{"$f":"IF(ISERROR($V1663),\"\",OFFSET('Smelter Look-up'!$C$4,$V1663-4,0)&\"\")","v":""},"",{"$f":"IF(B1663=\"\",\"\",IF(ISERROR(MATCH($J1663,SorP!$B$1:$B$5661,0)),\"\",INDIRECT(\"'SorP'!$A$\"&MATCH($J1663,SorP!$B$1:$B$5661,0))))","v":""},null,{"$f":"IF(C1663=\"\",NA(),MATCH($B1663&$C1663,'Smelter Look-up'!$J:$J,0))","v":{"$error":"#N/A"}},null,{"$f":"IF(AND(C1663=\"Smelter not listed\",OR(LEN(D1663)=0,LEN(E1663)=0)),1,0)","v":0},null,null,null,{"$f":"B1663&C1663","v":""}]
[null,{"$f":"IF(LEN(A1664)=0,\"\",INDEX('Smelter Look-up'!$A:$A,MATCH($A1664,'Smelter Look-up'!$E:$E,0)))","v":""},{"$f":"IF(LEN(A1664)=0,\"\",INDEX('Smelter Look-up'!$C:$C,MATCH($A1664,'Smelter Look-up'!$E:$E,0)))","v":""},null,{"$f":"IF(ISERROR($V1664),\"\",OFFSET('Smelter Look-up'!$D$4,$V1664-4,0)&\"\")","v":""},{"$f":"IF(ISERROR($V1664),\"\",OFFSET('Smelter Look-up'!$E$4,$V1664-4,0))","v":""},{"$f":"IF(C1664=$X$4,\"Enter smelter details\",IF(ISERROR($V1664),\"\",OFFSET('Smelter Look-up'!$F$4,$V1664-4,0)))","v":""},{"$f":"IF(ISERROR($V1664),\"\",OFFSET('Smelter Look-up'!$G$4,$V1664-4,0))","v":""},{"$f":"IF(ISERROR($V1664),\"\",OFFSET('Smelter Look-up'!$H$4,$V1664-4,0))","v":""},{"$f":"IF(ISERROR($V1664),\"\",OFFSET('Smelter Look-up'!$I$4,$V1664-4,0))","v":""},{"$nulls":7},{"$f":"IF(ISERROR($V1664),\"\",OFFSET('Smelter Look-up'!$C$4,$V1664-4,0)&\"\")","v":""},{"$f":"IF(B1664=\"\",\"\",IF(ISERROR(MATCH($E1664,CL,0)),\"Unknown\",INDIRECT(\"'C'!$A$\"&MATCH($E1664,CL,0)+1)))","v":""},{"$f":"IF(B1664=\"\",\"\",IF(ISERROR(MATCH($J1664,SorP!$B$1:$B$5661,0)),\"\",INDIRECT(\"'SorP'!$A$\"&MATCH($J1664,SorP!$B$1:$B$5661,0))))","v":""},null,{"$f":"IF(C1664=\"\",NA(),MATCH($B1664&$C1664,'Smelter Look-up'!$J:$J,0))","v":{"$error":"#N/A"}},null,0,null,null,null,""]
[null,{"$f":"IF(LEN(A1665)=0,\"\",INDEX('Smelter Look-up'!$A:$A,MATCH($A1665,'Smelter Look-up'!$E:$E,0)))","v":""},{"$f":"IF(LEN(A1665)=0,\"\",INDEX('Smelter Look-up'!$C:$C,MATCH($A1665,'Smelter Look-up'!$E:$E,0)))","v":""},null,{"$f":"IF(ISERROR($V1665),\"\",OFFSET('Smelter Look-up'!$D$4,$V1665-4,0)&\"\")","v":""},{"$f":"IF(ISERROR($V1665),\"\",OFFSET('Smelter Look-up'!$E$4,$V1665-4,0))","v":""},{"$f":"IF(C1665=$X$4,\"Enter smelter details\",IF(ISERROR($V1665),\"\",OFFSET('Smelter Look-up'!$F$4,$V1665-4,0)))","v":""},{"$f":"IF(ISERROR($V1665),\"\",OFFSET('Smelter Look-up'!$G$4,$V1665-4,0))","v":""},{"$f":"IF(ISERROR($V1665),\"\",OFFSET('Smelter Look-up'!$H$4,$V1665-4,0))","v":""},{"$f":"IF(ISERROR($V1665),\"\",OFFSET('Smelter Look-up'!$I$4,$V1665-4,0))","v":""},{"$nulls":7},{"$f":"IF(ISERROR($V1665),\"\",OFFSET('Smelter Look-up'!$C$4,$V1665-4,0)&\"\")","v":""},"",{"$f":"IF(B1665=\"\",\"\",IF(ISERROR(MATCH($J1665,SorP!$B$1:$B$5661,0)),\"\",INDIRECT(\"'SorP'!$A$\"&MATCH($J1665,SorP!$B$1:$B$5661,0))))","v":""},null,{"$f":"IF(C1665=\"\",NA(),MATCH($B1665&$C1665,'Smelter Look-up'!$J:$J,0))","v":{"$error":"#N/A"}},null,0,null,null,null,""]
[null,{"$f":"IF(LEN(A1666)=0,\"\",INDEX('Smelter Look-up'!$A:$A,MATCH($A1666,'Smelter Look-up'!$E:$E,0)))","v":""},{"$f":"IF(LEN(A1666)=0,\"\",INDEX('Smelter Look-up'!$C:$C,MATCH($A1666,'Smelter Look-up'!$E:$E,0)))","v":""},null,{"$f":"IF(ISERROR($V1666),\"\",OFFSET('Smelter Look-up'!$D$4,$V1666-4,0)&\"\")","v":""},{"$f":"IF(ISERROR($V1666),\"\",OFFSET('Smelter Look-up'!$E$4,$V1666-4,0))","v":""},{"$f":"IF(C1666=$X$4,\"Enter smelter details\",IF(ISERROR($V1666),\"\",OFFSET('Smelter Look-up'!$F$4,$V1666-4,0)))","v":""},{"$f":"IF(ISERROR($V1666),\"\",OFFSET('Smelter Look-up'!$G$4,$V1666-4,0))","v":""},{"$f":"IF(ISERROR($V1666),\"\",OFFSET('Smelter Look-up'!$H$4,$V1666-4,0))","v":""},{"$f":"IF(ISERROR($V1666),\"\",OFFSET('Smelter Look-up'!$I$4,$V1666-4,0))","v":""},{"$nulls":7},{"$f":"IF(ISERROR($V1666),\"\",OFFSET('Smelter Look-up'!$C$4,$V1666-4,0)&\"\")","v":""},"",{"$f":"IF(B1666=\"\",\"\",IF(ISERROR(MATCH($J1666,SorP!$B$1:$B$5661,0)),\"\",INDIRECT(\"'SorP'!$A$\"&MATCH($J1666,SorP!$B$1:$B$5661,0))))","v":""},null,{"$f":"IF(C1666=\"\",NA(),MATCH($B1666&$C1666,'Smelter Look-up'!$J:$J,0))","v":{"$error":"#N/A"}},null,0,null,null,null,""]
[null,{"$f":"IF(LEN(A1667)=0,\"\",INDEX('Smelter Look-up'!$A:$A,MATCH($A1667,'Smelter Look-up'!$E:$E,0)))","v":""},{"$f":"IF(LEN(A1667)=0,\"\",INDEX('Smelter Look-up'!$C:$C,MATCH($A1667,'Smelter Look-up'!$E:$E,0)))","v":""},null,{"$f":"IF(ISERROR($V1667),\"\",OFFSET('Smelter Look-up'!$D$4,$V1667-4,0)&\"\")","v":""},{"$f":"IF(ISERROR($V1667),\"\",OFFSET('Smelter Look-up'!$E$4,$V1667-4,0))","v":""},{"$f":"IF(C1667=$X$4,\"Enter smelter details\",IF(ISERROR($V1667),\"\",OFFSET('Smelter Look-up'!$F$4,$V1667-4,0)))","v":""},{"$f":"IF(ISERROR($V1667),\"\",OFFSET('Smelter Look-up'!$G$4,$V1667-4,0))","v":""},{"$f":"IF(ISERROR($V1667),\"\",OFFSET('Smelter Look-up'!$H$4,$V1667-4,0))","v":""},{"$f":"IF(ISERROR($V1667),\"\",OFFSET('Smelter Look-up'!$I$4,$V1667-4,0))","v":""},{"$nulls":7},{"$f":"IF(ISERROR($V1667),\"\",OFFSET('Smelter Look-up'!$C$4,$V1667-4,0)&\"\")","v":""},"",{"$f":"IF(B1667=\"\",\"\",IF(ISERROR(MATCH($J1667,SorP!$B$1:$B$5661,0)),\"\",INDIRECT(\"'SorP'!$A$\"&MATCH($J1667,SorP!$B$1:$B$5661,0))))","v":""},null,{"$f":"IF(C1667=\"\",NA(),MATCH($B1667&$C1667,'Smelter Look-up'!$J:$J,0))","v":{"$error":"#N/A"}},null,0,null,null,null,""]
[null,{"$f":"IF(LEN(A1668)=0,\"\",INDEX('Smelter Look-up'!$A:$A,MATCH($A1668,'Smelter Look-up'!$E:$E,0)))","v":""},{"$f":"IF(LEN(A1668)=0,\"\",INDEX('Smelter Look-up'!$C:$C,MATCH($A1668,'Smelter Look-up'!$E:$E,0)))","v":""},null,{"$f":"IF(ISERROR($V1668),\"\",OFFSET('Smelter Look-up'!$D$4,$V1668-4,0)&\"\")","v":""},{"$f":"IF(ISERROR($V1668),\"\",OFFSET('Smelter Look-up'!$E$4,$V1668-4,0))","v":""},{"$f":"IF(C1668=$X$4,\"Enter smelter details\",IF(ISERROR($V1668),\"\",OFFSET('Smelter Look-up'!$F$4,$V1668-4,0)))","v":""},{"$f":"IF(ISERROR($V1668),\"\",OFFSET('Smelter Look-up'!$G$4,$V1668-4,0))","v":""},{"$f":"IF(ISERROR($V1668),\"\",OFFSET('Smelter Look-up'!$H$4,$V1668-4,0))","v":""},{"$f":"IF(ISERROR($V1668),\"\",OFFSET('Smelter Look-up'!$I$4,$V1668-4,0))","v":""},{"$nulls":7},{"$f":"IF(ISERROR($V1668),\"\",OFFSET('Smelter Look-up'!$C$4,$V1668-4,0)&\"\")","v":""},"",{"$f":"IF(B1668=\"\",\"\",IF(ISERROR(MATCH($J1668,SorP!$B$1:$B$5661,0)),\"\",INDIRECT(\"'SorP'!$A$\"&MATCH($J1668,SorP!$B$1:$B$5661,0))))","v":""},null,{"$f":"IF(C1668=\"\",NA(),MATCH($B1668&$C1668,'Smelter Look-up'!$J:$J,0))","v":{"$error":"#N/A"}},null,0,null,null,null,""]
[null,{"$f":"IF(LEN(A1669)=0,\"\",INDEX('Smelter Look-up'!$A:$A,MATCH($A1669,'Smelter Look-up'!$E:$E,0)))","v":""},{"$f":"IF(LEN(A1669)=0,\"\",INDEX('Smelter Look-up'!$C:$C,MATCH($A1669,'Smelter Look-up'!$E:$E,0)))","v":""},null,{"$f":"IF(ISERROR($V1669),\"\",OFFSET('Smelter Look-up'!$D$4,$V1669-4,0)&\"\")","v":""},{"$f":"IF(ISERROR($V1669),\"\",OFFSET('Smelter Look-up'!$E$4,$V1669-4,0))","v":""},{"$f":"IF(C1669=$X$4,\"Enter smelter details\",IF(ISERROR($V1669),\"\",OFFSET('Smelter Look-up'!$F$4,$V1669-4,0)))","v":""},{"$f":"IF(ISERROR($V1669),\"\",OFFSET('Smelter Look-up'!$G$4,$V1669-4,0))","v":""},{"$f":"IF(ISERROR($V1669),\"\",OFFSET('Smelter Look-up'!$H$4,$V1669-4,0))","v":""},{"$f":"IF(ISERROR($V1669),\"\",OFFSET('Smelter Look-up'!$I$4,$V1669-4,0))","v":""},{"$nulls":7},{"$f":"IF(ISERROR($V1669),\"\",OFFSET('Smelter Look-up'!$C$4,$V1669-4,0)&\"\")","v":""},"",{"$f":"IF(B1669=\"\",\"\",IF(ISERROR(MATCH($J1669,SorP!$B$1:$B$5661,0)),\"\",INDIRECT(\"'SorP'!$A$\"&MATCH($J1669,SorP!$B$1:$B$5661,0))))","v":""},null,{"$f":"IF(C1669=\"\",NA(),MATCH($B1669&$C1669,'Smelter Look-up'!$J:$J,0))","v":{"$error":"#N/A"}},null,0,null,null,null,""]
[null,{"$f":"IF(LEN(A1670)=0,\"\",INDEX('Smelter Look-up'!$A:$A,MATCH($A1670,'Smelter Look-up'!$E:$E,0)))","v":""},{"$f":"IF(LEN(A1670)=0,\"\",INDEX('Smelter Look-up'!$C:$C,MATCH($A1670,'Smelter Look-up'!$E:$E,0)))","v":""},null,{"$f":"IF(ISERROR($V1670),\"\",OFFSET('Smelter Look-up'!$D$4,$V1670-4,0)&\"\")","v":""},{"$f":"IF(ISERROR($V1670),\"\",OFFSET('Smelter Look-up'!$E$4,$V1670-4,0))","v":""},{"$f":"IF(C1670=$X$4,\"Enter smelter details\",IF(ISERROR($V1670),\"\",OFFSET('Smelter Look-up'!$F$4,$V1670-4,0)))","v":""},{"$f":"IF(ISERROR($V1670),\"\",OFFSET('Smelter Look-up'!$G$4,$V1670-4,0))","v":""},{"$f":"IF(ISERROR($V1670),\"\",OFFSET('Smelter Look-up'!$H$4,$V1670-4,0))","v":""},{"$f":"IF(ISERROR($V1670),\"\",OFFSET('Smelter Look-up'!$I$4,$V1670-4,0))","v":""},{"$nulls":7},{"$f":"IF(ISERROR($V1670),\"\",OFFSET('Smelter Look-up'!$C$4,$V1670-4,0)&\"\")","v":""},"",{"$f":"IF(B1670=\"\",\"\",IF(ISERROR(MATCH($J1670,SorP!$B$1:$B$5661,0)),\"\",INDIRECT(\"'SorP'!$A$\"&MATCH($J1670,SorP!$B$1:$B$5661,0))))","v":""},null,{"$f":"IF(C1670=\"\",NA(),MATCH($B1670&$C1670,'Smelter Look-up'!$J:$J,0))","v":{"$error":"#N/A"}},null,0,null,null,null,""]
[null,{"$f":"IF(LEN(A1671)=0,\"\",INDEX('Smelter Look-up'!$A:$A,MATCH($A1671,'Smelter Look-up'!$E:$E,0)))","v":""},{"$f":"IF(LEN(A1671)=0,\"\",INDEX('Smelter Look-up'!$C:$C,MATCH($A1671,'Smelter Look-up'!$E:$E,0)))","v":""},null,{"$f":"IF(ISERROR($V1671),\"\",OFFSET('Smelter Look-up'!$D$4,$V1671-4,0)&\"\")","v":""},{"$f":"IF(ISERROR($V1671),\"\",OFFSET('Smelter Look-up'!$E$4,$V1671-4,0))","v":""},{"$f":"IF(C1671=$X$4,\"Enter smelter details\",IF(ISERROR($V1671),\"\",OFFSET('Smelter Look-up'!$F$4,$V1671-4,0)))","v":""},{"$f":"IF(ISERROR($V1671),\"\",OFFSET('Smelter Look-up'!$G$4,$V1671-4,0))","v":""},{"$f":"IF(ISERROR($V1671),\"\",OFFSET('Smelter Look-up'!$H$4,$V1671-4,0))","v":""},{"$f":"IF(ISERROR($V1671),\"\",OFFSET('Smelter Look-up'!$I$4,$V1671-4,0))","v":""},{"$nulls":7},{"$f":"IF(ISERROR($V1671),\"\",OFFSET('Smelter Look-up'!$C$4,$V1671-4,0)&\"\")","v":""},"",{"$f":"IF(B1671=\"\",\"\",IF(ISERROR(MATCH($J1671,SorP!$B$1:$B$5661,0)),\"\",INDIRECT(\"'SorP'!$A$\"&MATCH($J1671,SorP!$B$1:$B$5661,0))))","v":""},null,{"$f":"IF(C1671=\"\",NA(),MATCH($B1671&$C1671,'Smelter Look-up'!$J:$J,0))","v":{"$error":"#N/A"}},null,0,null,null,null,""]
[null,{"$f":"IF(LEN(A1672)=0,\"\",INDEX('Smelter Look-up'!$A:$A,MATCH($A1672,'Smelter Look-up'!$E:$E,0)))","v":""},{"$f":"IF(LEN(A1672)=0,\"\",INDEX('Smelter Look-up'!$C:$C,MATCH($A1672,'Smelter Look-up'!$E:$E,0)))","v":""},null,{"$f":"IF(ISERROR($V1672),\"\",OFFSET('Smelter Look-up'!$D$4,$V1672-4,0)&\"\")","v":""},{"$f":"IF(ISERROR($V1672),\"\",OFFSET('Smelter Look-up'!$E$4,$V1672-4,0))","v":""},{"$f":"IF(C1672=$X$4,\"Enter smelter details\",IF(ISERROR($V1672),\"\",OFFSET('Smelter Look-up'!$F$4,$V1672-4,0)))","v":""},{"$f":"IF(ISERROR($V1672),\"\",OFFSET('Smelter Look-up'!$G$4,$V1672-4,0))","v":""},{"$f":"IF(ISERROR($V1672),\"\",OFFSET('Smelter Look-up'!$H$4,$V1672-4,0))","v":""},{"$f":"IF(ISERROR($V1672),\"\",OFFSET('Smelter Look-up'!$I$4,$V1672-4,0))","v":""},{"$nulls":7},{"$f":"IF(ISERROR($V1672),\"\",OFFSET('Smelter Look-up'!$C$4,$V1672-4,0)&\"\")","v":""},"",{"$f":"IF(B1672=\"\",\"\",IF(ISERROR(MATCH($J1672,SorP!$B$1:$B$5661,0)),\"\",INDIRECT(\"'SorP'!$A$\"&MATCH($J1672,SorP!$B$1:$B$5661,0))))","v":""},null,{"$f":"IF(C1672=\"\",NA(),MATCH($B1672&$C1672,'Smelter Look-up'!$J:$J,0))","v":{"$error":"#N/A"}},null,0,null,null,null,""]
[null,{"$f":"IF(LEN(A1673)=0,\"\",INDEX('Smelter Look-up'!$A:$A,MATCH($A1673,'Smelter Look-up'!$E:$E,0)))","v":""},{"$f":"IF(LEN(A1673)=0,\"\",INDEX('Smelter Look-up'!$C:$C,MATCH($A1673,'Smelter Look-up'!$E:$E,0)))","v":""},null,{"$f":"IF(ISERROR($V1673),\"\",OFFSET('Smelter Look-up'!$D$4,$V1673-4,0)&\"\")","v":""},{"$f":"IF(ISERROR($V1673),\"\",OFFSET('Smelter Look-up'!$E$4,$V1673-4,0))","v":""},{"$f":"IF(C1673=$X$4,\"Enter smelter details\",IF(ISERROR($V1673),\"\",OFFSET('Smelter Look-up'!$F$4,$V1673-4,0)))","v":""},{"$f":"IF(ISERROR($V1673),\"\",OFFSET('Smelter Look-up'!$G$4,$V1673-4,0))","v":""},{"$f":"IF(ISERROR($V1673),\"\",OFFSET('Smelter Look-up'!$H$4,$V1673-4,0))","v":""},{"$f":"IF(ISERROR($V1673),\"\",OFFSET('Smelter Look-up'!$I$4,$V1673-4,0))","v":""},{"$nulls":7},{"$f":"IF(ISERROR($V1673),\"\",OFFSET('Smelter Look-up'!$C$4,$V1673-4,0)&\"\")","v":""},"",{"$f":"IF(B1673=\"\",\"\",IF(ISERROR(MATCH($J1673,SorP!$B$1:$B$5661,0)),\"\",INDIRECT(\"'SorP'!$A$\"&MATCH($J1673,SorP!$B$1:$B$5661,0))))","v":""},null,{"$f":"IF(C1673=\"\",NA(),MATCH($B1673&$C1673,'Smelter Look-up'!$J:$J,0))","v":{"$error":"#N/A"}},null,0,null,null,null,""]
[null,{"$f":"IF(LEN(A1674)=0,\"\",INDEX('Smelter Look-up'!$A:$A,MATCH($A1674,'Smelter Look-up'!$E:$E,0)))","v":""},{"$f":"IF(LEN(A1674)=0,\"\",INDEX('Smelter Look-up'!$C:$C,MATCH($A1674,'Smelter Look-up'!$E:$E,0)))","v":""},null,{"$f":"IF(ISERROR($V1674),\"\",OFFSET('Smelter Look-up'!$D$4,$V1674-4,0)&\"\")","v":""},{"$f":"IF(ISERROR($V1674),\"\",OFFSET('Smelter Look-up'!$E$4,$V1674-4,0))","v":""},{"$f":"IF(C1674=$X$4,\"Enter smelter details\",IF(ISERROR($V1674),\"\",OFFSET('Smelter Look-up'!$F$4,$V1674-4,0)))","v":""},{"$f":"IF(ISERROR($V1674),\"\",OFFSET('Smelter Look-up'!$G$4,$V1674-4,0))","v":""},{"$f":"IF(ISERROR($V1674),\"\",OFFSET('Smelter Look-up'!$H$4,$V1674-4,0))","v":""},{"$f":"IF(ISERROR($V1674),\"\",OFFSET('Smelter Look-up'!$I$4,$V1674-4,0))","v":""},{"$nulls":7},{"$f":"IF(ISERROR($V1674),\"\",OFFSET('Smelter Look-up'!$C$4,$V1674-4,0)&\"\")","v":""},"",{"$f":"IF(B1674=\"\",\"\",IF(ISERROR(MATCH($J1674,SorP!$B$1:$B$5661,0)),\"\",INDIRECT(\"'SorP'!$A$\"&MATCH($J1674,SorP!$B$1:$B$5661,0))))","v":""},null,{"$f":"IF(C1674=\"\",NA(),MATCH($B1674&$C1674,'Smelter Look-up'!$J:$J,0))","v":{"$error":"#N/A"}},null,0,null,null,null,""]
[null,{"$f":"IF(LEN(A1675)=0,\"\",INDEX('Smelter Look-up'!$A:$A,MATCH($A1675,'Smelter Look-up'!$E:$E,0)))","v":""},{"$f":"IF(LEN(A1675)=0,\"\",INDEX('Smelter Look-up'!$C:$C,MATCH($A1675,'Smelter Look-up'!$E:$E,0)))","v":""},null,{"$f":"IF(ISERROR($V1675),\"\",OFFSET('Smelter Look-up'!$D$4,$V1675-4,0)&\"\")","v":""},{"$f":"IF(ISERROR($V1675),\"\",OFFSET('Smelter Look-up'!$E$4,$V1675-4,0))","v":""},{"$f":"IF(C1675=$X$4,\"Enter smelter details\",IF(ISERROR($V1675),\"\",OFFSET('Smelter Look-up'!$F$4,$V1675-4,0)))","v":""},{"$f":"IF(ISERROR($V1675),\"\",OFFSET('Smelter Look-up'!$G$4,$V1675-4,0))","v":""},{"$f":"IF(ISERROR($V1675),\"\",OFFSET('Smelter Look-up'!$H$4,$V1675-4,0))","v":""},{"$f":"IF(ISERROR($V1675),\"\",OFFSET('Smelter Look-up'!$I$4,$V1675-4,0))","v":""},{"$nulls":7},{"$f":"IF(ISERROR($V1675),\"\",OFFSET('Smelter Look-up'!$C$4,$V1675-4,0)&\"\")","v":""},"",{"$f":"IF(B1675=\"\",\"\",IF(ISERROR(MATCH($J1675,SorP!$B$1:$B$5661,0)),\"\",INDIRECT(\"'SorP'!$A$\"&MATCH($J1675,SorP!$B$1:$B$5661,0))))","v":""},null,{"$f":"IF(C1675=\"\",NA(),MATCH($B1675&$C1675,'Smelter Look-up'!$J:$J,0))","v":{"$error":"#N/A"}},null,0,null,null,null,""]
[null,{"$f":"IF(LEN(A1676)=0,\"\",INDEX('Smelter Look-up'!$A:$A,MATCH($A1676,'Smelter Look-up'!$E:$E,0)))","v":""},{"$f":"IF(LEN(A1676)=0,\"\",INDEX('Smelter Look-up'!$C:$C,MATCH($A1676,'Smelter Look-up'!$E:$E,0)))","v":""},null,{"$f":"IF(ISERROR($V1676),\"\",OFFSET('Smelter Look-up'!$D$4,$V1676-4,0)&\"\")","v":""},{"$f":"IF(ISERROR($V1676),\"\",OFFSET('Smelter Look-up'!$E$4,$V1676-4,0))","v":""},{"$f":"IF(C1676=$X$4,\"Enter smelter details\",IF(ISERROR($V1676),\"\",OFFSET('Smelter Look-up'!$F$4,$V1676-4,0)))","v":""},{"$f":"IF(ISERROR($V1676),\"\",OFFSET('Smelter Look-up'!$G$4,$V1676-4,0))","v":""},{"$f":"IF(ISERROR($V1676),\"\",OFFSET('Smelter Look-up'!$H$4,$V1676-4,0))","v":""},{"$f":"IF(ISERROR($V1676),\"\",OFFSET('Smelter Look-up'!$I$4,$V1676-4,0))","v":""},{"$nulls":7},{"$f":"IF(ISERROR($V1676),\"\",OFFSET('Smelter Look-up'!$C$4,$V1676-4,0)&\"\")","v":""},"",{"$f":"IF(B1676=\"\",\"\",IF(ISERROR(MATCH($J1676,SorP!$B$1:$B$5661,0)),\"\",INDIRECT(\"'SorP'!$A$\"&MATCH($J1676,SorP!$B$1:$B$5661,0))))","v":""},null,{"$f":"IF(C1676=\"\",NA(),MATCH($B1676&$C1676,'Smelter Look-up'!$J:$J,0))","v":{"$error":"#N/A"}},null,0,null,null,null,""]
[null,{"$f":"IF(LEN(A1677)=0,\"\",INDEX('Smelter Look-up'!$A:$A,MATCH($A1677,'Smelter Look-up'!$E:$E,0)))","v":""},{"$f":"IF(LEN(A1677)=0,\"\",INDEX('Smelter Look-up'!$C:$C,MATCH($A1677,'Smelter Look-up'!$E:$E,0)))","v":""},null,{"$f":"IF(ISERROR($V1677),\"\",OFFSET('Smelter Look-up'!$D$4,$V1677-4,0)&\"\")","v":""},{"$f":"IF(ISERROR($V1677),\"\",OFFSET('Smelter Look-up'!$E$4,$V1677-4,0))","v":""},{"$f":"IF(C1677=$X$4,\"Enter smelter details\",IF(ISERROR($V1677),\"\",OFFSET('Smelter Look-up'!$F$4,$V1677-4,0)))","v":""},{"$f":"IF(ISERROR($V1677),\"\",OFFSET('Smelter Look-up'!$G$4,$V1677-4,0))","v":""},{"$f":"IF(ISERROR($V1677),\"\",OFFSET('Smelter Look-up'!$H$4,$V1677-4,0))","v":""},{"$f":"IF(ISERROR($V1677),\"\",OFFSET('Smelter Look-up'!$I$4,$V1677-4,0))","v":""},{"$nulls":7},{"$f":"IF(ISERROR($V1677),\"\",OFFSET('Smelter Look-up'!$C$4,$V1677-4,0)&\"\")","v":""},"",{"$f":"IF(B1677=\"\",\"\",IF(ISERROR(MATCH($J1677,SorP!$B$1:$B$5661,0)),\"\",INDIRECT(\"'SorP'!$A$\"&MATCH($J1677,SorP!$B$1:$B$5661,0))))","v":""},null,{"$f":"IF(C1677=\"\",NA(),MATCH($B1677&$C1677,'Smelter Look-up'!$J:$J,0))","v":{"$error":"#N/A"}},null,0,null,null,null,""]
[null,{"$f":"IF(LEN(A1678)=0,\"\",INDEX('Smelter Look-up'!$A:$A,MATCH($A1678,'Smelter Look-up'!$E:$E,0)))","v":""},{"$f":"IF(LEN(A1678)=0,\"\",INDEX('Smelter Look-up'!$C:$C,MATCH($A1678,'Smelter Look-up'!$E:$E,0)))","v":""},null,{"$f":"IF(ISERROR($V1678),\"\",OFFSET('Smelter Look-up'!$D$4,$V1678-4,0)&\"\")","v":""},{"$f":"IF(ISERROR($V1678),\"\",OFFSET('Smelter Look-up'!$E$4,$V1678-4,0))","v":""},{"$f":"IF(C1678=$X$4,\"Enter smelter details\",IF(ISERROR($V1678),\"\",OFFSET('Smelter Look-up'!$F$4,$V1678-4,0)))","v":""},{"$f":"IF(ISERROR($V1678),\"\",OFFSET('Smelter Look-up'!$G$4,$V1678-4,0))","v":""},{"$f":"IF(ISERROR($V1678),\"\",OFFSET('Smelter Look-up'!$H$4,$V1678-4,0))","v":""},{"$f":"IF(ISERROR($V1678),\"\",OFFSET('Smelter Look-up'!$I$4,$V1678-4,0))","v":""},{"$nulls":7},{"$f":"IF(ISERROR($V1678),\"\",OFFSET('Smelter Look-up'!$C$4,$V1678-4,0)&\"\")","v":""},"",{"$f":"IF(B1678=\"\",\"\",IF(ISERROR(MATCH($J1678,SorP!$B$1:$B$5661,0)),\"\",INDIRECT(\"'SorP'!$A$\"&MATCH($J1678,SorP!$B$1:$B$5661,0))))","v":""},null,{"$f":"IF(C1678=\"\",NA(),MATCH($B1678&$C1678,'Smelter Look-up'!$J:$J,0))","v":{"$error":"#N/A"}},null,0,null,null,null,""]
[null,{"$f":"IF(LEN(A1679)=0,\"\",INDEX('Smelter Look-up'!$A:$A,MATCH($A1679,'Smelter Look-up'!$E:$E,0)))","v":""},{"$f":"IF(LEN(A1679)=0,\"\",INDEX('Smelter Look-up'!$C:$C,MATCH($A1679,'Smelter Look-up'!$E:$E,0)))","v":""},null,{"$f":"IF(ISERROR($V1679),\"\",OFFSET('Smelter Look-up'!$D$4,$V1679-4,0)&\"\")","v":""},{"$f":"IF(ISERROR($V1679),\"\",OFFSET('Smelter Look-up'!$E$4,$V1679-4,0))","v":""},{"$f":"IF(C1679=$X$4,\"Enter smelter details\",IF(ISERROR($V1679),\"\",OFFSET('Smelter Look-up'!$F$4,$V1679-4,0)))","v":""},{"$f":"IF(ISERROR($V1679),\"\",OFFSET('Smelter Look-up'!$G$4,$V1679-4,0))","v":""},{"$f":"IF(ISERROR($V1679),\"\",OFFSET('Smelter Look-up'!$H$4,$V1679-4,0))","v":""},{"$f":"IF(ISERROR($V1679),\"\",OFFSET('Smelter Look-up'!$I$4,$V1679-4,0))","v":""},{"$nulls":7},{"$f":"IF(ISERROR($V1679),\"\",OFFSET('Smelter Look-up'!$C$4,$V1679-4,0)&\"\")","v":""},"",{"$f":"IF(B1679=\"\",\"\",IF(ISERROR(MATCH($J1679,SorP!$B$1:$B$5661,0)),\"\",INDIRECT(\"'SorP'!$A$\"&MATCH($J1679,SorP!$B$1:$B$5661,0))))","v":""},null,{"$f":"IF(C1679=\"\",NA(),MATCH($B1679&$C1679,'Smelter Look-up'!$J:$J,0))","v":{"$error":"#N/A"}},null,0,null,null,null,""]
[null,{"$f":"IF(LEN(A1680)=0,\"\",INDEX('Smelter Look-up'!$A:$A,MATCH($A1680,'Smelter Look-up'!$E:$E,0)))","v":""},{"$f":"IF(LEN(A1680)=0,\"\",INDEX('Smelter Look-up'!$C:$C,MATCH($A1680,'Smelter Look-up'!$E:$E,0)))","v":""},null,{"$f":"IF(ISERROR($V1680),\"\",OFFSET('Smelter Look-up'!$D$4,$V1680-4,0)&\"\")","v":""},{"$f":"IF(ISERROR($V1680),\"\",OFFSET('Smelter Look-up'!$E$4,$V1680-4,0))","v":""},{"$f":"IF(C1680=$X$4,\"Enter smelter details\",IF(ISERROR($V1680),\"\",OFFSET('Smelter Look-up'!$F$4,$V1680-4,0)))","v":""},{"$f":"IF(ISERROR($V1680),\"\",OFFSET('Smelter Look-up'!$G$4,$V1680-4,0))","v":""},{"$f":"IF(ISERROR($V1680),\"\",OFFSET('Smelter Look-up'!$H$4,$V1680-4,0))","v":""},{"$f":"IF(ISERROR($V1680),\"\",OFFSET('Smelter Look-up'!$I$4,$V1680-4,0))","v":""},{"$nulls":7},{"$f":"IF(ISERROR($V1680),\"\",OFFSET('Smelter Look-up'!$C$4,$V1680-4,0)&\"\")","v":""},"",{"$f":"IF(B1680=\"\",\"\",IF(ISERROR(MATCH($J1680,SorP!$B$1:$B$5661,0)),\"\",INDIRECT(\"'SorP'!$A$\"&MATCH($J1680,SorP!$B$1:$B$5661,0))))","v":""},null,{"$f":"IF(C1680=\"\",NA(),MATCH($B1680&$C1680,'Smelter Look-up'!$J:$J,0))","v":{"$error":"#N/A"}},null,0,null,null,null,""]
[null,{"$f":"IF(LEN(A1681)=0,\"\",INDEX('Smelter Look-up'!$A:$A,MATCH($A1681,'Smelter Look-up'!$E:$E,0)))","v":""},{"$f":"IF(LEN(A1681)=0,\"\",INDEX('Smelter Look-up'!$C:$C,MATCH($A1681,'Smelter Look-up'!$E:$E,0)))","v":""},null,{"$f":"IF(ISERROR($V1681),\"\",OFFSET('Smelter Look-up'!$D$4,$V1681-4,0)&\"\")","v":""},{"$f":"IF(ISERROR($V1681),\"\",OFFSET('Smelter Look-up'!$E$4,$V1681-4,0))","v":""},{"$f":"IF(C1681=$X$4,\"Enter smelter details\",IF(ISERROR($V1681),\"\",OFFSET('Smelter Look-up'!$F$4,$V1681-4,0)))","v":""},{"$f":"IF(ISERROR($V1681),\"\",OFFSET('Smelter Look-up'!$G$4,$V1681-4,0))","v":""},{"$f":"IF(ISERROR($V1681),\"\",OFFSET('Smelter Look-up'!$H$4,$V1681-4,0))","v":""},{"$f":"IF(ISERROR($V1681),\"\",OFFSET('Smelter Look-up'!$I$4,$V1681-4,0))","v":""},{"$nulls":7},{"$f":"IF(ISERROR($V1681),\"\",OFFSET('Smelter Look-up'!$C$4,$V1681-4,0)&\"\")","v":""},"",{"$f":"IF(B1681=\"\",\"\",IF(ISERROR(MATCH($J1681,SorP!$B$1:$B$5661,0)),\"\",INDIRECT(\"'SorP'!$A$\"&MATCH($J1681,SorP!$B$1:$B$5661,0))))","v":""},null,{"$f":"IF(C1681=\"\",NA(),MATCH($B1681&$C1681,'Smelter Look-up'!$J:$J,0))","v":{"$error":"#N/A"}},null,0,null,null,null,""]
[null,{"$f":"IF(LEN(A1682)=0,\"\",INDEX('Smelter Look-up'!$A:$A,MATCH($A1682,'Smelter Look-up'!$E:$E,0)))","v":""},{"$f":"IF(LEN(A1682)=0,\"\",INDEX('Smelter Look-up'!$C:$C,MATCH($A1682,'Smelter Look-up'!$E:$E,0)))","v":""},null,{"$f":"IF(ISERROR($V1682),\"\",OFFSET('Smelter Look-up'!$D$4,$V1682-4,0)&\"\")","v":""},{"$f":"IF(ISERROR($V1682),\"\",OFFSET('Smelter Look-up'!$E$4,$V1682-4,0))","v":""},{"$f":"IF(C1682=$X$4,\"Enter smelter details\",IF(ISERROR($V1682),\"\",OFFSET('Smelter Look-up'!$F$4,$V1682-4,0)))","v":""},{"$f":"IF(ISERROR($V1682),\"\",OFFSET('Smelter Look-up'!$G$4,$V1682-4,0))","v":""},{"$f":"IF(ISERROR($V1682),\"\",OFFSET('Smelter Look-up'!$H$4,$V1682-4,0))","v":""},{"$f":"IF(ISERROR($V1682),\"\",OFFSET('Smelter Look-up'!$I$4,$V1682-4,0))","v":""},{"$nulls":7},{"$f":"IF(ISERROR($V1682),\"\",OFFSET('Smelter Look-up'!$C$4,$V1682-4,0)&\"\")","v":""},"",{"$f":"IF(B1682=\"\",\"\",IF(ISERROR(MATCH($J1682,SorP!$B$1:$B$5661,0)),\"\",INDIRECT(\"'SorP'!$A$\"&MATCH($J1682,SorP!$B$1:$B$5661,0))))","v":""},null,{"$f":"IF(C1682=\"\",NA(),MATCH($B1682&$C1682,'Smelter Look-up'!$J:$J,0))","v":{"$error":"#N/A"}},null,0,null,null,null,""]
[null,{"$f":"IF(LEN(A1683)=0,\"\",INDEX('Smelter Look-up'!$A:$A,MATCH($A1683,'Smelter Look-up'!$E:$E,0)))","v":""},{"$f":"IF(LEN(A1683)=0,\"\",INDEX('Smelter Look-up'!$C:$C,MATCH($A1683,'Smelter Look-up'!$E:$E,0)))","v":""},null,{"$f":"IF(ISERROR($V1683),\"\",OFFSET('Smelter Look-up'!$D$4,$V1683-4,0)&\"\")","v":""},{"$f":"IF(ISERROR($V1683),\"\",OFFSET('Smelter Look-up'!$E$4,$V1683-4,0))","v":""},{"$f":"IF(C1683=$X$4,\"Enter smelter details\",IF(ISERROR($V1683),\"\",OFFSET('Smelter Look-up'!$F$4,$V1683-4,0)))","v":""},{"$f":"IF(ISERROR($V1683),\"\",OFFSET('Smelter Look-up'!$G$4,$V1683-4,0))","v":""},{"$f":"IF(ISERROR($V1683),\"\",OFFSET('Smelter Look-up'!$H$4,$V1683-4,0))","v":""},{"$f":"IF(ISERROR($V1683),\"\",OFFSET('Smelter Look-up'!$I$4,$V1683-4,0))","v":""},{"$nulls":7},{"$f":"IF(ISERROR($V1683),\"\",OFFSET('Smelter Look-up'!$C$4,$V1683-4,0)&\"\")","v":""},"",{"$f":"IF(B1683=\"\",\"\",IF(ISERROR(MATCH($J1683,SorP!$B$1:$B$5661,0)),\"\",INDIRECT(\"'SorP'!$A$\"&MATCH($J1683,SorP!$B$1:$B$5661,0))))","v":""},null,{"$f":"IF(C1683=\"\",NA(),MATCH($B1683&$C1683,'Smelter Look-up'!$J:$J,0))","v":{"$error":"#N/A"}},null,0,null,null,null,""]
[null,{"$f":"IF(LEN(A1684)=0,\"\",INDEX('Smelter Look-up'!$A:$A,MATCH($A1684,'Smelter Look-up'!$E:$E,0)))","v":""},{"$f":"IF(LEN(A1684)=0,\"\",INDEX('Smelter Look-up'!$C:$C,MATCH($A1684,'Smelter Look-up'!$E:$E,0)))","v":""},null,{"$f":"IF(ISERROR($V1684),\"\",OFFSET('Smelter Look-up'!$D$4,$V1684-4,0)&\"\")","v":""},{"$f":"IF(ISERROR($V1684),\"\",OFFSET('Smelter Look-up'!$E$4,$V1684-4,0))","v":""},{"$f":"IF(C1684=$X$4,\"Enter smelter details\",IF(ISERROR($V1684),\"\",OFFSET('Smelter Look-up'!$F$4,$V1684-4,0)))","v":""},{"$f":"IF(ISERROR($V1684),\"\",OFFSET('Smelter Look-up'!$G$4,$V1684-4,0))","v":""},{"$f":"IF(ISERROR($V1684),\"\",OFFSET('Smelter Look-up'!$H$4,$V1684-4,0))","v":""},{"$f":"IF(ISERROR($V1684),\"\",OFFSET('Smelter Look-up'!$I$4,$V1684-4,0))","v":""},{"$nulls":7},{"$f":"IF(ISERROR($V1684),\"\",OFFSET('Smelter Look-up'!$C$4,$V1684-4,0)&\"\")","v":""},"",{"$f":"IF(B1684=\"\",\"\",IF(ISERROR(MATCH($J1684,SorP!$B$1:$B$5661,0)),\"\",INDIRECT(\"'SorP'!$A$\"&MATCH($J1684,SorP!$B$1:$B$5661,0))))","v":""},null,{"$f":"IF(C1684=\"\",NA(),MATCH($B1684&$C1684,'Smelter Look-up'!$J:$J,0))","v":{"$error":"#N/A"}},null,0,null,null,null,""]
[null,{"$f":"IF(LEN(A1685)=0,\"\",INDEX('Smelter Look-up'!$A:$A,MATCH($A1685,'Smelter Look-up'!$E:$E,0)))","v":""},{"$f":"IF(LEN(A1685)=0,\"\",INDEX('Smelter Look-up'!$C:$C,MATCH($A1685,'Smelter Look-up'!$E:$E,0)))","v":""},null,{"$f":"IF(ISERROR($V1685),\"\",OFFSET('Smelter Look-up'!$D$4,$V1685-4,0)&\"\")","v":""},{"$f":"IF(ISERROR($V1685),\"\",OFFSET('Smelter Look-up'!$E$4,$V1685-4,0))","v":""},{"$f":"IF(C1685=$X$4,\"Enter smelter details\",IF(ISERROR($V1685),\"\",OFFSET('Smelter Look-up'!$F$4,$V1685-4,0)))","v":""},{"$f":"IF(ISERROR($V1685),\"\",OFFSET('Smelter Look-up'!$G$4,$V1685-4,0))","v":""},{"$f":"IF(ISERROR($V1685),\"\",OFFSET('Smelter Look-up'!$H$4,$V1685-4,0))","v":""},{"$f":"IF(ISERROR($V1685),\"\",OFFSET('Smelter Look-up'!$I$4,$V1685-4,0))","v":""},{"$nulls":7},{"$f":"IF(ISERROR($V1685),\"\",OFFSET('Smelter Look-up'!$C$4,$V1685-4,0)&\"\")","v":""},"",{"$f":"IF(B1685=\"\",\"\",IF(ISERROR(MATCH($J1685,SorP!$B$1:$B$5661,0)),\"\",INDIRECT(\"'SorP'!$A$\"&MATCH($J1685,SorP!$B$1:$B$5661,0))))","v":""},null,{"$f":"IF(C1685=\"\",NA(),MATCH($B1685&$C1685,'Smelter Look-up'!$J:$J,0))","v":{"$error":"#N/A"}},null,0,null,null,null,""]
[null,{"$f":"IF(LEN(A1686)=0,\"\",INDEX('Smelter Look-up'!$A:$A,MATCH($A1686,'Smelter Look-up'!$E:$E,0)))","v":""},{"$f":"IF(LEN(A1686)=0,\"\",INDEX('Smelter Look-up'!$C:$C,MATCH($A1686,'Smelter Look-up'!$E:$E,0)))","v":""},null,{"$f":"IF(ISERROR($V1686),\"\",OFFSET('Smelter Look-up'!$D$4,$V1686-4,0)&\"\")","v":""},{"$f":"IF(ISERROR($V1686),\"\",OFFSET('Smelter Look-up'!$E$4,$V1686-4,0))","v":""},{"$f":"IF(C1686=$X$4,\"Enter smelter details\",IF(ISERROR($V1686),\"\",OFFSET('Smelter Look-up'!$F$4,$V1686-4,0)))","v":""},{"$f":"IF(ISERROR($V1686),\"\",OFFSET('Smelter Look-up'!$G$4,$V1686-4,0))","v":""},{"$f":"IF(ISERROR($V1686),\"\",OFFSET('Smelter Look-up'!$H$4,$V1686-4,0))","v":""},{"$f":"IF(ISERROR($V1686),\"\",OFFSET('Smelter Look-up'!$I$4,$V1686-4,0))","v":""},{"$nulls":7},{"$f":"IF(ISERROR($V1686),\"\",OFFSET('Smelter Look-up'!$C$4,$V1686-4,0)&\"\")","v":""},"",{"$f":"IF(B1686=\"\",\"\",IF(ISERROR(MATCH($J1686,SorP!$B$1:$B$5661,0)),\"\",INDIRECT(\"'SorP'!$A$\"&MATCH($J1686,SorP!$B$1:$B$5661,0))))","v":""},null,{"$f":"IF(C1686=\"\",NA(),MATCH($B1686&$C1686,'Smelter Look-up'!$J:$J,0))","v":{"$error":"#N/A"}},null,0,null,null,null,""]
[null,{"$f":"IF(LEN(A1687)=0,\"\",INDEX('Smelter Look-up'!$A:$A,MATCH($A1687,'Smelter Look-up'!$E:$E,0)))","v":""},{"$f":"IF(LEN(A1687)=0,\"\",INDEX('Smelter Look-up'!$C:$C,MATCH($A1687,'Smelter Look-up'!$E:$E,0)))","v":""},null,{"$f":"IF(ISERROR($V1687),\"\",OFFSET('Smelter Look-up'!$D$4,$V1687-4,0)&\"\")","v":""},{"$f":"IF(ISERROR($V1687),\"\",OFFSET('Smelter Look-up'!$E$4,$V1687-4,0))","v":""},{"$f":"IF(C1687=$X$4,\"Enter smelter details\",IF(ISERROR($V1687),\"\",OFFSET('Smelter Look-up'!$F$4,$V1687-4,0)))","v":""},{"$f":"IF(ISERROR($V1687),\"\",OFFSET('Smelter Look-up'!$G$4,$V1687-4,0))","v":""},{"$f":"IF(ISERROR($V1687),\"\",OFFSET('Smelter Look-up'!$H$4,$V1687-4,0))","v":""},{"$f":"IF(ISERROR($V1687),\"\",OFFSET('Smelter Look-up'!$I$4,$V1687-4,0))","v":""},{"$nulls":7},{"$f":"IF(ISERROR($V1687),\"\",OFFSET('Smelter Look-up'!$C$4,$V1687-4,0)&\"\")","v":""},"",{"$f":"IF(B1687=\"\",\"\",IF(ISERROR(MATCH($J1687,SorP!$B$1:$B$5661,0)),\"\",INDIRECT(\"'SorP'!$A$\"&MATCH($J1687,SorP!$B$1:$B$5661,0))))","v":""},null,{"$f":"IF(C1687=\"\",NA(),MATCH($B1687&$C1687,'Smelter Look-up'!$J:$J,0))","v":{"$error":"#N/A"}},null,0,null,null,null,""]
[null,{"$f":"IF(LEN(A1688)=0,\"\",INDEX('Smelter Look-up'!$A:$A,MATCH($A1688,'Smelter Look-up'!$E:$E,0)))","v":""},{"$f":"IF(LEN(A1688)=0,\"\",INDEX('Smelter Look-up'!$C:$C,MATCH($A1688,'Smelter Look-up'!$E:$E,0)))","v":""},null,{"$f":"IF(ISERROR($V1688),\"\",OFFSET('Smelter Look-up'!$D$4,$V1688-4,0)&\"\")","v":""},{"$f":"IF(ISERROR($V1688),\"\",OFFSET('Smelter Look-up'!$E$4,$V1688-4,0))","v":""},{"$f":"IF(C1688=$X$4,\"Enter smelter details\",IF(ISERROR($V1688),\"\",OFFSET('Smelter Look-up'!$F$4,$V1688-4,0)))","v":""},{"$f":"IF(ISERROR($V1688),\"\",OFFSET('Smelter Look-up'!$G$4,$V1688-4,0))","v":""},{"$f":"IF(ISERROR($V1688),\"\",OFFSET('Smelter Look-up'!$H$4,$V1688-4,0))","v":""},{"$f":"IF(ISERROR($V1688),\"\",OFFSET('Smelter Look-up'!$I$4,$V1688-4,0))","v":""},{"$nulls":7},{"$f":"IF(ISERROR($V1688),\"\",OFFSET('Smelter Look-up'!$C$4,$V1688-4,0)&\"\")","v":""},"",{"$f":"IF(B1688=\"\",\"\",IF(ISERROR(MATCH($J1688,SorP!$B$1:$B$5661,0)),\"\",INDIRECT(\"'SorP'!$A$\"&MATCH($J1688,SorP!$B$1:$B$5661,0))))","v":""},null,{"$f":"IF(C1688=\"\",NA(),MATCH($B1688&$C1688,'Smelter Look-up'!$J:$J,0))","v":{"$error":"#N/A"}},null,0,null,null,null,""]
[null,{"$f":"IF(LEN(A1689)=0,\"\",INDEX('Smelter Look-up'!$A:$A,MATCH($A1689,'Smelter Look-up'!$E:$E,0)))","v":""},{"$f":"IF(LEN(A1689)=0,\"\",INDEX('Smelter Look-up'!$C:$C,MATCH($A1689,'Smelter Look-up'!$E:$E,0)))","v":""},null,{"$f":"IF(ISERROR($V1689),\"\",OFFSET('Smelter Look-up'!$D$4,$V1689-4,0)&\"\")","v":""},{"$f":"IF(ISERROR($V1689),\"\",OFFSET('Smelter Look-up'!$E$4,$V1689-4,0))","v":""},{"$f":"IF(C1689=$X$4,\"Enter smelter details\",IF(ISERROR($V1689),\"\",OFFSET('Smelter Look-up'!$F$4,$V1689-4,0)))","v":""},{"$f":"IF(ISERROR($V1689),\"\",OFFSET('Smelter Look-up'!$G$4,$V1689-4,0))","v":""},{"$f":"IF(ISERROR($V1689),\"\",OFFSET('Smelter Look-up'!$H$4,$V1689-4,0))","v":""},{"$f":"IF(ISERROR($V1689),\"\",OFFSET('Smelter Look-up'!$I$4,$V1689-4,0))","v":""},{"$nulls":7},{"$f":"IF(ISERROR($V1689),\"\",OFFSET('Smelter Look-up'!$C$4,$V1689-4,0)&\"\")","v":""},"",{"$f":"IF(B1689=\"\",\"\",IF(ISERROR(MATCH($J1689,SorP!$B$1:$B$5661,0)),\"\",INDIRECT(\"'SorP'!$A$\"&MATCH($J1689,SorP!$B$1:$B$5661,0))))","v":""},null,{"$f":"IF(C1689=\"\",NA(),MATCH($B1689&$C1689,'Smelter Look-up'!$J:$J,0))","v":{"$error":"#N/A"}},null,0,null,null,null,""]
[null,{"$f":"IF(LEN(A1690)=0,\"\",INDEX('Smelter Look-up'!$A:$A,MATCH($A1690,'Smelter Look-up'!$E:$E,0)))","v":""},{"$f":"IF(LEN(A1690)=0,\"\",INDEX('Smelter Look-up'!$C:$C,MATCH($A1690,'Smelter Look-up'!$E:$E,0)))","v":""},null,{"$f":"IF(ISERROR($V1690),\"\",OFFSET('Smelter Look-up'!$D$4,$V1690-4,0)&\"\")","v":""},{"$f":"IF(ISERROR($V1690),\"\",OFFSET('Smelter Look-up'!$E$4,$V1690-4,0))","v":""},{"$f":"IF(C1690=$X$4,\"Enter smelter details\",IF(ISERROR($V1690),\"\",OFFSET('Smelter Look-up'!$F$4,$V1690-4,0)))","v":""},{"$f":"IF(ISERROR($V1690),\"\",OFFSET('Smelter Look-up'!$G$4,$V1690-4,0))","v":""},{"$f":"IF(ISERROR($V1690),\"\",OFFSET('Smelter Look-up'!$H$4,$V1690-4,0))","v":""},{"$f":"IF(ISERROR($V1690),\"\",OFFSET('Smelter Look-up'!$I$4,$V1690-4,0))","v":""},{"$nulls":7},{"$f":"IF(ISERROR($V1690),\"\",OFFSET('Smelter Look-up'!$C$4,$V1690-4,0)&\"\")","v":""},"",{"$f":"IF(B1690=\"\",\"\",IF(ISERROR(MATCH($J1690,SorP!$B$1:$B$5661,0)),\"\",INDIRECT(\"'SorP'!$A$\"&MATCH($J1690,SorP!$B$1:$B$5661,0))))","v":""},null,{"$f":"IF(C1690=\"\",NA(),MATCH($B1690&$C1690,'Smelter Look-up'!$J:$J,0))","v":{"$error":"#N/A"}},null,0,null,null,null,""]
[null,{"$f":"IF(LEN(A1691)=0,\"\",INDEX('Smelter Look-up'!$A:$A,MATCH($A1691,'Smelter Look-up'!$E:$E,0)))","v":""},{"$f":"IF(LEN(A1691)=0,\"\",INDEX('Smelter Look-up'!$C:$C,MATCH($A1691,'Smelter Look-up'!$E:$E,0)))","v":""},null,{"$f":"IF(ISERROR($V1691),\"\",OFFSET('Smelter Look-up'!$D$4,$V1691-4,0)&\"\")","v":""},{"$f":"IF(ISERROR($V1691),\"\",OFFSET('Smelter Look-up'!$E$4,$V1691-4,0))","v":""},{"$f":"IF(C1691=$X$4,\"Enter smelter details\",IF(ISERROR($V1691),\"\",OFFSET('Smelter Look-up'!$F$4,$V1691-4,0)))","v":""},{"$f":"IF(ISERROR($V1691),\"\",OFFSET('Smelter Look-up'!$G$4,$V1691-4,0))","v":""},{"$f":"IF(ISERROR($V1691),\"\",OFFSET('Smelter Look-up'!$H$4,$V1691-4,0))","v":""},{"$f":"IF(ISERROR($V1691),\"\",OFFSET('Smelter Look-up'!$I$4,$V1691-4,0))","v":""},{"$nulls":7},{"$f":"IF(ISERROR($V1691),\"\",OFFSET('Smelter Look-up'!$C$4,$V1691-4,0)&\"\")","v":""},"",{"$f":"IF(B1691=\"\",\"\",IF(ISERROR(MATCH($J1691,SorP!$B$1:$B$5661,0)),\"\",INDIRECT(\"'SorP'!$A$\"&MATCH($J1691,SorP!$B$1:$B$5661,0))))","v":""},null,{"$f":"IF(C1691=\"\",NA(),MATCH($B1691&$C1691,'Smelter Look-up'!$J:$J,0))","v":{"$error":"#N/A"}},null,0,null,null,null,""]
[null,{"$f":"IF(LEN(A1692)=0,\"\",INDEX('Smelter Look-up'!$A:$A,MATCH($A1692,'Smelter Look-up'!$E:$E,0)))","v":""},{"$f":"IF(LEN(A1692)=0,\"\",INDEX('Smelter Look-up'!$C:$C,MATCH($A1692,'Smelter Look-up'!$E:$E,0)))","v":""},null,{"$f":"IF(ISERROR($V1692),\"\",OFFSET('Smelter Look-up'!$D$4,$V1692-4,0)&\"\")","v":""},{"$f":"IF(ISERROR($V1692),\"\",OFFSET('Smelter Look-up'!$E$4,$V1692-4,0))","v":""},{"$f":"IF(C1692=$X$4,\"Enter smelter details\",IF(ISERROR($V1692),\"\",OFFSET('Smelter Look-up'!$F$4,$V1692-4,0)))","v":""},{"$f":"IF(ISERROR($V1692),\"\",OFFSET('Smelter Look-up'!$G$4,$V1692-4,0))","v":""},{"$f":"IF(ISERROR($V1692),\"\",OFFSET('Smelter Look-up'!$H$4,$V1692-4,0))","v":""},{"$f":"IF(ISERROR($V1692),\"\",OFFSET('Smelter Look-up'!$I$4,$V1692-4,0))","v":""},{"$nulls":7},{"$f":"IF(ISERROR($V1692),\"\",OFFSET('Smelter Look-up'!$C$4,$V1692-4,0)&\"\")","v":""},"",{"$f":"IF(B1692=\"\",\"\",IF(ISERROR(MATCH($J1692,SorP!$B$1:$B$5661,0)),\"\",INDIRECT(\"'SorP'!$A$\"&MATCH($J1692,SorP!$B$1:$B$5661,0))))","v":""},null,{"$f":"IF(C1692=\"\",NA(),MATCH($B1692&$C1692,'Smelter Look-up'!$J:$J,0))","v":{"$error":"#N/A"}},null,0,null,null,null,""]
[null,{"$f":"IF(LEN(A1693)=0,\"\",INDEX('Smelter Look-up'!$A:$A,MATCH($A1693,'Smelter Look-up'!$E:$E,0)))","v":""},{"$f":"IF(LEN(A1693)=0,\"\",INDEX('Smelter Look-up'!$C:$C,MATCH($A1693,'Smelter Look-up'!$E:$E,0)))","v":""},null,{"$f":"IF(ISERROR($V1693),\"\",OFFSET('Smelter Look-up'!$D$4,$V1693-4,0)&\"\")","v":""},{"$f":"IF(ISERROR($V1693),\"\",OFFSET('Smelter Look-up'!$E$4,$V1693-4,0))","v":""},{"$f":"IF(C1693=$X$4,\"Enter smelter details\",IF(ISERROR($V1693),\"\",OFFSET('Smelter Look-up'!$F$4,$V1693-4,0)))","v":""},{"$f":"IF(ISERROR($V1693),\"\",OFFSET('Smelter Look-up'!$G$4,$V1693-4,0))","v":""},{"$f":"IF(ISERROR($V1693),\"\",OFFSET('Smelter Look-up'!$H$4,$V1693-4,0))","v":""},{"$f":"IF(ISERROR($V1693),\"\",OFFSET('Smelter Look-up'!$I$4,$V1693-4,0))","v":""},{"$nulls":7},{"$f":"IF(ISERROR($V1693),\"\",OFFSET('Smelter Look-up'!$C$4,$V1693-4,0)&\"\")","v":""},"",{"$f":"IF(B1693=\"\",\"\",IF(ISERROR(MATCH($J1693,SorP!$B$1:$B$5661,0)),\"\",INDIRECT(\"'SorP'!$A$\"&MATCH($J1693,SorP!$B$1:$B$5661,0))))","v":""},null,{"$f":"IF(C1693=\"\",NA(),MATCH($B1693&$C1693,'Smelter Look-up'!$J:$J,0))","v":{"$error":"#N/A"}},null,0,null,null,null,""]
[null,{"$f":"IF(LEN(A1694)=0,\"\",INDEX('Smelter Look-up'!$A:$A,MATCH($A1694,'Smelter Look-up'!$E:$E,0)))","v":""},{"$f":"IF(LEN(A1694)=0,\"\",INDEX('Smelter Look-up'!$C:$C,MATCH($A1694,'Smelter Look-up'!$E:$E,0)))","v":""},null,{"$f":"IF(ISERROR($V1694),\"\",OFFSET('Smelter Look-up'!$D$4,$V1694-4,0)&\"\")","v":""},{"$f":"IF(ISERROR($V1694),\"\",OFFSET('Smelter Look-up'!$E$4,$V1694-4,0))","v":""},{"$f":"IF(C1694=$X$4,\"Enter smelter details\",IF(ISERROR($V1694),\"\",OFFSET('Smelter Look-up'!$F$4,$V1694-4,0)))","v":""},{"$f":"IF(ISERROR($V1694),\"\",OFFSET('Smelter Look-up'!$G$4,$V1694-4,0))","v":""},{"$f":"IF(ISERROR($V1694),\"\",OFFSET('Smelter Look-up'!$H$4,$V1694-4,0))","v":""},{"$f":"IF(ISERROR($V1694),\"\",OFFSET('Smelter Look-up'!$I$4,$V1694-4,0))","v":""},{"$nulls":7},{"$f":"IF(ISERROR($V1694),\"\",OFFSET('Smelter Look-up'!$C$4,$V1694-4,0)&\"\")","v":""},"",{"$f":"IF(B1694=\"\",\"\",IF(ISERROR(MATCH($J1694,SorP!$B$1:$B$5661,0)),\"\",INDIRECT(\"'SorP'!$A$\"&MATCH($J1694,SorP!$B$1:$B$5661,0))))","v":""},null,{"$f":"IF(C1694=\"\",NA(),MATCH($B1694&$C1694,'Smelter Look-up'!$J:$J,0))","v":{"$error":"#N/A"}},null,0,null,null,null,""]
[null,{"$f":"IF(LEN(A1695)=0,\"\",INDEX('Smelter Look-up'!$A:$A,MATCH($A1695,'Smelter Look-up'!$E:$E,0)))","v":""},{"$f":"IF(LEN(A1695)=0,\"\",INDEX('Smelter Look-up'!$C:$C,MATCH($A1695,'Smelter Look-up'!$E:$E,0)))","v":""},null,{"$f":"IF(ISERROR($V1695),\"\",OFFSET('Smelter Look-up'!$D$4,$V1695-4,0)&\"\")","v":""},{"$f":"IF(ISERROR($V1695),\"\",OFFSET('Smelter Look-up'!$E$4,$V1695-4,0))","v":""},{"$f":"IF(C1695=$X$4,\"Enter smelter details\",IF(ISERROR($V1695),\"\",OFFSET('Smelter Look-up'!$F$4,$V1695-4,0)))","v":""},{"$f":"IF(ISERROR($V1695),\"\",OFFSET('Smelter Look-up'!$G$4,$V1695-4,0))","v":""},{"$f":"IF(ISERROR($V1695),\"\",OFFSET('Smelter Look-up'!$H$4,$V1695-4,0))","v":""},{"$f":"IF(ISERROR($V1695),\"\",OFFSET('Smelter Look-up'!$I$4,$V1695-4,0))","v":""},{"$nulls":7},{"$f":"IF(ISERROR($V1695),\"\",OFFSET('Smelter Look-up'!$C$4,$V1695-4,0)&\"\")","v":""},"",{"$f":"IF(B1695=\"\",\"\",IF(ISERROR(MATCH($J1695,SorP!$B$1:$B$5661,0)),\"\",INDIRECT(\"'SorP'!$A$\"&MATCH($J1695,SorP!$B$1:$B$5661,0))))","v":""},null,{"$f":"IF(C1695=\"\",NA(),MATCH($B1695&$C1695,'Smelter Look-up'!$J:$J,0))","v":{"$error":"#N/A"}},null,0,null,null,null,""]
[null,{"$f":"IF(LEN(A1696)=0,\"\",INDEX('Smelter Look-up'!$A:$A,MATCH($A1696,'Smelter Look-up'!$E:$E,0)))","v":""},{"$f":"IF(LEN(A1696)=0,\"\",INDEX('Smelter Look-up'!$C:$C,MATCH($A1696,'Smelter Look-up'!$E:$E,0)))","v":""},null,{"$f":"IF(ISERROR($V1696),\"\",OFFSET('Smelter Look-up'!$D$4,$V1696-4,0)&\"\")","v":""},{"$f":"IF(ISERROR($V1696),\"\",OFFSET('Smelter Look-up'!$E$4,$V1696-4,0))","v":""},{"$f":"IF(C1696=$X$4,\"Enter smelter details\",IF(ISERROR($V1696),\"\",OFFSET('Smelter Look-up'!$F$4,$V1696-4,0)))","v":""},{"$f":"IF(ISERROR($V1696),\"\",OFFSET('Smelter Look-up'!$G$4,$V1696-4,0))","v":""},{"$f":"IF(ISERROR($V1696),\"\",OFFSET('Smelter Look-up'!$H$4,$V1696-4,0))","v":""},{"$f":"IF(ISERROR($V1696),\"\",OFFSET('Smelter Look-up'!$I$4,$V1696-4,0))","v":""},{"$nulls":7},{"$f":"IF(ISERROR($V1696),\"\",OFFSET('Smelter Look-up'!$C$4,$V1696-4,0)&\"\")","v":""},"",{"$f":"IF(B1696=\"\",\"\",IF(ISERROR(MATCH($J1696,SorP!$B$1:$B$5661,0)),\"\",INDIRECT(\"'SorP'!$A$\"&MATCH($J1696,SorP!$B$1:$B$5661,0))))","v":""},null,{"$f":"IF(C1696=\"\",NA(),MATCH($B1696&$C1696,'Smelter Look-up'!$J:$J,0))","v":{"$error":"#N/A"}},null,0,null,null,null,""]
[null,{"$f":"IF(LEN(A1697)=0,\"\",INDEX('Smelter Look-up'!$A:$A,MATCH($A1697,'Smelter Look-up'!$E:$E,0)))","v":""},{"$f":"IF(LEN(A1697)=0,\"\",INDEX('Smelter Look-up'!$C:$C,MATCH($A1697,'Smelter Look-up'!$E:$E,0)))","v":""},null,{"$f":"IF(ISERROR($V1697),\"\",OFFSET('Smelter Look-up'!$D$4,$V1697-4,0)&\"\")","v":""},{"$f":"IF(ISERROR($V1697),\"\",OFFSET('Smelter Look-up'!$E$4,$V1697-4,0))","v":""},{"$f":"IF(C1697=$X$4,\"Enter smelter details\",IF(ISERROR($V1697),\"\",OFFSET('Smelter Look-up'!$F$4,$V1697-4,0)))","v":""},{"$f":"IF(ISERROR($V1697),\"\",OFFSET('Smelter Look-up'!$G$4,$V1697-4,0))","v":""},{"$f":"IF(ISERROR($V1697),\"\",OFFSET('Smelter Look-up'!$H$4,$V1697-4,0))","v":""},{"$f":"IF(ISERROR($V1697),\"\",OFFSET('Smelter Look-up'!$I$4,$V1697-4,0))","v":""},{"$nulls":7},{"$f":"IF(ISERROR($V1697),\"\",OFFSET('Smelter Look-up'!$C$4,$V1697-4,0)&\"\")","v":""},"",{"$f":"IF(B1697=\"\",\"\",IF(ISERROR(MATCH($J1697,SorP!$B$1:$B$5661,0)),\"\",INDIRECT(\"'SorP'!$A$\"&MATCH($J1697,SorP!$B$1:$B$5661,0))))","v":""},null,{"$f":"IF(C1697=\"\",NA(),MATCH($B1697&$C1697,'Smelter Look-up'!$J:$J,0))","v":{"$error":"#N/A"}},null,0,null,null,null,""]
[null,{"$f":"IF(LEN(A1698)=0,\"\",INDEX('Smelter Look-up'!$A:$A,MATCH($A1698,'Smelter Look-up'!$E:$E,0)))","v":""},{"$f":"IF(LEN(A1698)=0,\"\",INDEX('Smelter Look-up'!$C:$C,MATCH($A1698,'Smelter Look-up'!$E:$E,0)))","v":""},null,{"$f":"IF(ISERROR($V1698),\"\",OFFSET('Smelter Look-up'!$D$4,$V1698-4,0)&\"\")","v":""},{"$f":"IF(ISERROR($V1698),\"\",OFFSET('Smelter Look-up'!$E$4,$V1698-4,0))","v":""},{"$f":"IF(C1698=$X$4,\"Enter smelter details\",IF(ISERROR($V1698),\"\",OFFSET('Smelter Look-up'!$F$4,$V1698-4,0)))","v":""},{"$f":"IF(ISERROR($V1698),\"\",OFFSET('Smelter Look-up'!$G$4,$V1698-4,0))","v":""},{"$f":"IF(ISERROR($V1698),\"\",OFFSET('Smelter Look-up'!$H$4,$V1698-4,0))","v":""},{"$f":"IF(ISERROR($V1698),\"\",OFFSET('Smelter Look-up'!$I$4,$V1698-4,0))","v":""},{"$nulls":7},{"$f":"IF(ISERROR($V1698),\"\",OFFSET('Smelter Look-up'!$C$4,$V1698-4,0)&\"\")","v":""},"",{"$f":"IF(B1698=\"\",\"\",IF(ISERROR(MATCH($J1698,SorP!$B$1:$B$5661,0)),\"\",INDIRECT(\"'SorP'!$A$\"&MATCH($J1698,SorP!$B$1:$B$5661,0))))","v":""},null,{"$f":"IF(C1698=\"\",NA(),MATCH($B1698&$C1698,'Smelter Look-up'!$J:$J,0))","v":{"$error":"#N/A"}},null,0,null,null,null,""]
[null,{"$f":"IF(LEN(A1699)=0,\"\",INDEX('Smelter Look-up'!$A:$A,MATCH($A1699,'Smelter Look-up'!$E:$E,0)))","v":""},{"$f":"IF(LEN(A1699)=0,\"\",INDEX('Smelter Look-up'!$C:$C,MATCH($A1699,'Smelter Look-up'!$E:$E,0)))","v":""},null,{"$f":"IF(ISERROR($V1699),\"\",OFFSET('Smelter Look-up'!$D$4,$V1699-4,0)&\"\")","v":""},{"$f":"IF(ISERROR($V1699),\"\",OFFSET('Smelter Look-up'!$E$4,$V1699-4,0))","v":""},{"$f":"IF(C1699=$X$4,\"Enter smelter details\",IF(ISERROR($V1699),\"\",OFFSET('Smelter Look-up'!$F$4,$V1699-4,0)))","v":""},{"$f":"IF(ISERROR($V1699),\"\",OFFSET('Smelter Look-up'!$G$4,$V1699-4,0))","v":""},{"$f":"IF(ISERROR($V1699),\"\",OFFSET('Smelter Look-up'!$H$4,$V1699-4,0))","v":""},{"$f":"IF(ISERROR($V1699),\"\",OFFSET('Smelter Look-up'!$I$4,$V1699-4,0))","v":""},{"$nulls":7},{"$f":"IF(ISERROR($V1699),\"\",OFFSET('Smelter Look-up'!$C$4,$V1699-4,0)&\"\")","v":""},"",{"$f":"IF(B1699=\"\",\"\",IF(ISERROR(MATCH($J1699,SorP!$B$1:$B$5661,0)),\"\",INDIRECT(\"'SorP'!$A$\"&MATCH($J1699,SorP!$B$1:$B$5661,0))))","v":""},null,{"$f":"IF(C1699=\"\",NA(),MATCH($B1699&$C1699,'Smelter Look-up'!$J:$J,0))","v":{"$error":"#N/A"}},null,0,null,null,null,""]
[null,{"$f":"IF(LEN(A1700)=0,\"\",INDEX('Smelter Look-up'!$A:$A,MATCH($A1700,'Smelter Look-up'!$E:$E,0)))","v":""},{"$f":"IF(LEN(A1700)=0,\"\",INDEX('Smelter Look-up'!$C:$C,MATCH($A1700,'Smelter Look-up'!$E:$E,0)))","v":""},null,{"$f":"IF(ISERROR($V1700),\"\",OFFSET('Smelter Look-up'!$D$4,$V1700-4,0)&\"\")","v":""},{"$f":"IF(ISERROR($V1700),\"\",OFFSET('Smelter Look-up'!$E$4,$V1700-4,0))","v":""},{"$f":"IF(C1700=$X$4,\"Enter smelter details\",IF(ISERROR($V1700),\"\",OFFSET('Smelter Look-up'!$F$4,$V1700-4,0)))","v":""},{"$f":"IF(ISERROR($V1700),\"\",OFFSET('Smelter Look-up'!$G$4,$V1700-4,0))","v":""},{"$f":"IF(ISERROR($V1700),\"\",OFFSET('Smelter Look-up'!$H$4,$V1700-4,0))","v":""},{"$f":"IF(ISERROR($V1700),\"\",OFFSET('Smelter Look-up'!$I$4,$V1700-4,0))","v":""},{"$nulls":7},{"$f":"IF(ISERROR($V1700),\"\",OFFSET('Smelter Look-up'!$C$4,$V1700-4,0)&\"\")","v":""},"",{"$f":"IF(B1700=\"\",\"\",IF(ISERROR(MATCH($J1700,SorP!$B$1:$B$5661,0)),\"\",INDIRECT(\"'SorP'!$A$\"&MATCH($J1700,SorP!$B$1:$B$5661,0))))","v":""},null,{"$f":"IF(C1700=\"\",NA(),MATCH($B1700&$C1700,'Smelter Look-up'!$J:$J,0))","v":{"$error":"#N/A"}},null,0,null,null,null,""]
[null,{"$f":"IF(LEN(A1701)=0,\"\",INDEX('Smelter Look-up'!$A:$A,MATCH($A1701,'Smelter Look-up'!$E:$E,0)))","v":""},{"$f":"IF(LEN(A1701)=0,\"\",INDEX('Smelter Look-up'!$C:$C,MATCH($A1701,'Smelter Look-up'!$E:$E,0)))","v":""},null,{"$f":"IF(ISERROR($V1701),\"\",OFFSET('Smelter Look-up'!$D$4,$V1701-4,0)&\"\")","v":""},{"$f":"IF(ISERROR($V1701),\"\",OFFSET('Smelter Look-up'!$E$4,$V1701-4,0))","v":""},{"$f":"IF(C1701=$X$4,\"Enter smelter details\",IF(ISERROR($V1701),\"\",OFFSET('Smelter Look-up'!$F$4,$V1701-4,0)))","v":""},{"$f":"IF(ISERROR($V1701),\"\",OFFSET('Smelter Look-up'!$G$4,$V1701-4,0))","v":""},{"$f":"IF(ISERROR($V1701),\"\",OFFSET('Smelter Look-up'!$H$4,$V1701-4,0))","v":""},{"$f":"IF(ISERROR($V1701),\"\",OFFSET('Smelter Look-up'!$I$4,$V1701-4,0))","v":""},{"$nulls":7},{"$f":"IF(ISERROR($V1701),\"\",OFFSET('Smelter Look-up'!$C$4,$V1701-4,0)&\"\")","v":""},"",{"$f":"IF(B1701=\"\",\"\",IF(ISERROR(MATCH($J1701,SorP!$B$1:$B$5661,0)),\"\",INDIRECT(\"'SorP'!$A$\"&MATCH($J1701,SorP!$B$1:$B$5661,0))))","v":""},null,{"$f":"IF(C1701=\"\",NA(),MATCH($B1701&$C1701,'Smelter Look-up'!$J:$J,0))","v":{"$error":"#N/A"}},null,0,null,null,null,""]
[null,{"$f":"IF(LEN(A1702)=0,\"\",INDEX('Smelter Look-up'!$A:$A,MATCH($A1702,'Smelter Look-up'!$E:$E,0)))","v":""},{"$f":"IF(LEN(A1702)=0,\"\",INDEX('Smelter Look-up'!$C:$C,MATCH($A1702,'Smelter Look-up'!$E:$E,0)))","v":""},null,{"$f":"IF(ISERROR($V1702),\"\",OFFSET('Smelter Look-up'!$D$4,$V1702-4,0)&\"\")","v":""},{"$f":"IF(ISERROR($V1702),\"\",OFFSET('Smelter Look-up'!$E$4,$V1702-4,0))","v":""},{"$f":"IF(C1702=$X$4,\"Enter smelter details\",IF(ISERROR($V1702),\"\",OFFSET('Smelter Look-up'!$F$4,$V1702-4,0)))","v":""},{"$f":"IF(ISERROR($V1702),\"\",OFFSET('Smelter Look-up'!$G$4,$V1702-4,0))","v":""},{"$f":"IF(ISERROR($V1702),\"\",OFFSET('Smelter Look-up'!$H$4,$V1702-4,0))","v":""},{"$f":"IF(ISERROR($V1702),\"\",OFFSET('Smelter Look-up'!$I$4,$V1702-4,0))","v":""},{"$nulls":7},{"$f":"IF(ISERROR($V1702),\"\",OFFSET('Smelter Look-up'!$C$4,$V1702-4,0)&\"\")","v":""},"",{"$f":"IF(B1702=\"\",\"\",IF(ISERROR(MATCH($J1702,SorP!$B$1:$B$5661,0)),\"\",INDIRECT(\"'SorP'!$A$\"&MATCH($J1702,SorP!$B$1:$B$5661,0))))","v":""},null,{"$f":"IF(C1702=\"\",NA(),MATCH($B1702&$C1702,'Smelter Look-up'!$J:$J,0))","v":{"$error":"#N/A"}},null,0,null,null,null,""]
[null,{"$f":"IF(LEN(A1703)=0,\"\",INDEX('Smelter Look-up'!$A:$A,MATCH($A1703,'Smelter Look-up'!$E:$E,0)))","v":""},{"$f":"IF(LEN(A1703)=0,\"\",INDEX('Smelter Look-up'!$C:$C,MATCH($A1703,'Smelter Look-up'!$E:$E,0)))","v":""},null,{"$f":"IF(ISERROR($V1703),\"\",OFFSET('Smelter Look-up'!$D$4,$V1703-4,0)&\"\")","v":""},{"$f":"IF(ISERROR($V1703),\"\",OFFSET('Smelter Look-up'!$E$4,$V1703-4,0))","v":""},{"$f":"IF(C1703=$X$4,\"Enter smelter details\",IF(ISERROR($V1703),\"\",OFFSET('Smelter Look-up'!$F$4,$V1703-4,0)))","v":""},{"$f":"IF(ISERROR($V1703),\"\",OFFSET('Smelter Look-up'!$G$4,$V1703-4,0))","v":""},{"$f":"IF(ISERROR($V1703),\"\",OFFSET('Smelter Look-up'!$H$4,$V1703-4,0))","v":""},{"$f":"IF(ISERROR($V1703),\"\",OFFSET('Smelter Look-up'!$I$4,$V1703-4,0))","v":""},{"$nulls":7},{"$f":"IF(ISERROR($V1703),\"\",OFFSET('Smelter Look-up'!$C$4,$V1703-4,0)&\"\")","v":""},"",{"$f":"IF(B1703=\"\",\"\",IF(ISERROR(MATCH($J1703,SorP!$B$1:$B$5661,0)),\"\",INDIRECT(\"'SorP'!$A$\"&MATCH($J1703,SorP!$B$1:$B$5661,0))))","v":""},null,{"$f":"IF(C1703=\"\",NA(),MATCH($B1703&$C1703,'Smelter Look-up'!$J:$J,0))","v":{"$error":"#N/A"}},null,0,null,null,null,""]
[null,{"$f":"IF(LEN(A1704)=0,\"\",INDEX('Smelter Look-up'!$A:$A,MATCH($A1704,'Smelter Look-up'!$E:$E,0)))","v":""},{"$f":"IF(LEN(A1704)=0,\"\",INDEX('Smelter Look-up'!$C:$C,MATCH($A1704,'Smelter Look-up'!$E:$E,0)))","v":""},null,{"$f":"IF(ISERROR($V1704),\"\",OFFSET('Smelter Look-up'!$D$4,$V1704-4,0)&\"\")","v":""},{"$f":"IF(ISERROR($V1704),\"\",OFFSET('Smelter Look-up'!$E$4,$V1704-4,0))","v":""},{"$f":"IF(C1704=$X$4,\"Enter smelter details\",IF(ISERROR($V1704),\"\",OFFSET('Smelter Look-up'!$F$4,$V1704-4,0)))","v":""},{"$f":"IF(ISERROR($V1704),\"\",OFFSET('Smelter Look-up'!$G$4,$V1704-4,0))","v":""},{"$f":"IF(ISERROR($V1704),\"\",OFFSET('Smelter Look-up'!$H$4,$V1704-4,0))","v":""},{"$f":"IF(ISERROR($V1704),\"\",OFFSET('Smelter Look-up'!$I$4,$V1704-4,0))","v":""},{"$nulls":7},{"$f":"IF(ISERROR($V1704),\"\",OFFSET('Smelter Look-up'!$C$4,$V1704-4,0)&\"\")","v":""},"",{"$f":"IF(B1704=\"\",\"\",IF(ISERROR(MATCH($J1704,SorP!$B$1:$B$5661,0)),\"\",INDIRECT(\"'SorP'!$A$\"&MATCH($J1704,SorP!$B$1:$B$5661,0))))","v":""},null,{"$f":"IF(C1704=\"\",NA(),MATCH($B1704&$C1704,'Smelter Look-up'!$J:$J,0))","v":{"$error":"#N/A"}},null,0,null,null,null,""]
[null,{"$f":"IF(LEN(A1705)=0,\"\",INDEX('Smelter Look-up'!$A:$A,MATCH($A1705,'Smelter Look-up'!$E:$E,0)))","v":""},{"$f":"IF(LEN(A1705)=0,\"\",INDEX('Smelter Look-up'!$C:$C,MATCH($A1705,'Smelter Look-up'!$E:$E,0)))","v":""},null,{"$f":"IF(ISERROR($V1705),\"\",OFFSET('Smelter Look-up'!$D$4,$V1705-4,0)&\"\")","v":""},{"$f":"IF(ISERROR($V1705),\"\",OFFSET('Smelter Look-up'!$E$4,$V1705-4,0))","v":""},{"$f":"IF(C1705=$X$4,\"Enter smelter details\",IF(ISERROR($V1705),\"\",OFFSET('Smelter Look-up'!$F$4,$V1705-4,0)))","v":""},{"$f":"IF(ISERROR($V1705),\"\",OFFSET('Smelter Look-up'!$G$4,$V1705-4,0))","v":""},{"$f":"IF(ISERROR($V1705),\"\",OFFSET('Smelter Look-up'!$H$4,$V1705-4,0))","v":""},{"$f":"IF(ISERROR($V1705),\"\",OFFSET('Smelter Look-up'!$I$4,$V1705-4,0))","v":""},{"$nulls":7},{"$f":"IF(ISERROR($V1705),\"\",OFFSET('Smelter Look-up'!$C$4,$V1705-4,0)&\"\")","v":""},"",{"$f":"IF(B1705=\"\",\"\",IF(ISERROR(MATCH($J1705,SorP!$B$1:$B$5661,0)),\"\",INDIRECT(\"'SorP'!$A$\"&MATCH($J1705,SorP!$B$1:$B$5661,0))))","v":""},null,{"$f":"IF(C1705=\"\",NA(),MATCH($B1705&$C1705,'Smelter Look-up'!$J:$J,0))","v":{"$error":"#N/A"}},null,0,null,null,null,""]
[null,{"$f":"IF(LEN(A1706)=0,\"\",INDEX('Smelter Look-up'!$A:$A,MATCH($A1706,'Smelter Look-up'!$E:$E,0)))","v":""},{"$f":"IF(LEN(A1706)=0,\"\",INDEX('Smelter Look-up'!$C:$C,MATCH($A1706,'Smelter Look-up'!$E:$E,0)))","v":""},null,{"$f":"IF(ISERROR($V1706),\"\",OFFSET('Smelter Look-up'!$D$4,$V1706-4,0)&\"\")","v":""},{"$f":"IF(ISERROR($V1706),\"\",OFFSET('Smelter Look-up'!$E$4,$V1706-4,0))","v":""},{"$f":"IF(C1706=$X$4,\"Enter smelter details\",IF(ISERROR($V1706),\"\",OFFSET('Smelter Look-up'!$F$4,$V1706-4,0)))","v":""},{"$f":"IF(ISERROR($V1706),\"\",OFFSET('Smelter Look-up'!$G$4,$V1706-4,0))","v":""},{"$f":"IF(ISERROR($V1706),\"\",OFFSET('Smelter Look-up'!$H$4,$V1706-4,0))","v":""},{"$f":"IF(ISERROR($V1706),\"\",OFFSET('Smelter Look-up'!$I$4,$V1706-4,0))","v":""},{"$nulls":7},{"$f":"IF(ISERROR($V1706),\"\",OFFSET('Smelter Look-up'!$C$4,$V1706-4,0)&\"\")","v":""},"",{"$f":"IF(B1706=\"\",\"\",IF(ISERROR(MATCH($J1706,SorP!$B$1:$B$5661,0)),\"\",INDIRECT(\"'SorP'!$A$\"&MATCH($J1706,SorP!$B$1:$B$5661,0))))","v":""},null,{"$f":"IF(C1706=\"\",NA(),MATCH($B1706&$C1706,'Smelter Look-up'!$J:$J,0))","v":{"$error":"#N/A"}},null,0,null,null,null,""]
[null,{"$f":"IF(LEN(A1707)=0,\"\",INDEX('Smelter Look-up'!$A:$A,MATCH($A1707,'Smelter Look-up'!$E:$E,0)))","v":""},{"$f":"IF(LEN(A1707)=0,\"\",INDEX('Smelter Look-up'!$C:$C,MATCH($A1707,'Smelter Look-up'!$E:$E,0)))","v":""},null,{"$f":"IF(ISERROR($V1707),\"\",OFFSET('Smelter Look-up'!$D$4,$V1707-4,0)&\"\")","v":""},{"$f":"IF(ISERROR($V1707),\"\",OFFSET('Smelter Look-up'!$E$4,$V1707-4,0))","v":""},{"$f":"IF(C1707=$X$4,\"Enter smelter details\",IF(ISERROR($V1707),\"\",OFFSET('Smelter Look-up'!$F$4,$V1707-4,0)))","v":""},{"$f":"IF(ISERROR($V1707),\"\",OFFSET('Smelter Look-up'!$G$4,$V1707-4,0))","v":""},{"$f":"IF(ISERROR($V1707),\"\",OFFSET('Smelter Look-up'!$H$4,$V1707-4,0))","v":""},{"$f":"IF(ISERROR($V1707),\"\",OFFSET('Smelter Look-up'!$I$4,$V1707-4,0))","v":""},{"$nulls":7},{"$f":"IF(ISERROR($V1707),\"\",OFFSET('Smelter Look-up'!$C$4,$V1707-4,0)&\"\")","v":""},"",{"$f":"IF(B1707=\"\",\"\",IF(ISERROR(MATCH($J1707,SorP!$B$1:$B$5661,0)),\"\",INDIRECT(\"'SorP'!$A$\"&MATCH($J1707,SorP!$B$1:$B$5661,0))))","v":""},null,{"$f":"IF(C1707=\"\",NA(),MATCH($B1707&$C1707,'Smelter Look-up'!$J:$J,0))","v":{"$error":"#N/A"}},null,0,null,null,null,""]
[null,{"$f":"IF(LEN(A1708)=0,\"\",INDEX('Smelter Look-up'!$A:$A,MATCH($A1708,'Smelter Look-up'!$E:$E,0)))","v":""},{"$f":"IF(LEN(A1708)=0,\"\",INDEX('Smelter Look-up'!$C:$C,MATCH($A1708,'Smelter Look-up'!$E:$E,0)))","v":""},null,{"$f":"IF(ISERROR($V1708),\"\",OFFSET('Smelter Look-up'!$D$4,$V1708-4,0)&\"\")","v":""},{"$f":"IF(ISERROR($V1708),\"\",OFFSET('Smelter Look-up'!$E$4,$V1708-4,0))","v":""},{"$f":"IF(C1708=$X$4,\"Enter smelter details\",IF(ISERROR($V1708),\"\",OFFSET('Smelter Look-up'!$F$4,$V1708-4,0)))","v":""},{"$f":"IF(ISERROR($V1708),\"\",OFFSET('Smelter Look-up'!$G$4,$V1708-4,0))","v":""},{"$f":"IF(ISERROR($V1708),\"\",OFFSET('Smelter Look-up'!$H$4,$V1708-4,0))","v":""},{"$f":"IF(ISERROR($V1708),\"\",OFFSET('Smelter Look-up'!$I$4,$V1708-4,0))","v":""},{"$nulls":7},{"$f":"IF(ISERROR($V1708),\"\",OFFSET('Smelter Look-up'!$C$4,$V1708-4,0)&\"\")","v":""},"",{"$f":"IF(B1708=\"\",\"\",IF(ISERROR(MATCH($J1708,SorP!$B$1:$B$5661,0)),\"\",INDIRECT(\"'SorP'!$A$\"&MATCH($J1708,SorP!$B$1:$B$5661,0))))","v":""},null,{"$f":"IF(C1708=\"\",NA(),MATCH($B1708&$C1708,'Smelter Look-up'!$J:$J,0))","v":{"$error":"#N/A"}},null,0,null,null,null,""]
[null,{"$f":"IF(LEN(A1709)=0,\"\",INDEX('Smelter Look-up'!$A:$A,MATCH($A1709,'Smelter Look-up'!$E:$E,0)))","v":""},{"$f":"IF(LEN(A1709)=0,\"\",INDEX('Smelter Look-up'!$C:$C,MATCH($A1709,'Smelter Look-up'!$E:$E,0)))","v":""},null,{"$f":"IF(ISERROR($V1709),\"\",OFFSET('Smelter Look-up'!$D$4,$V1709-4,0)&\"\")","v":""},{"$f":"IF(ISERROR($V1709),\"\",OFFSET('Smelter Look-up'!$E$4,$V1709-4,0))","v":""},{"$f":"IF(C1709=$X$4,\"Enter smelter details\",IF(ISERROR($V1709),\"\",OFFSET('Smelter Look-up'!$F$4,$V1709-4,0)))","v":""},{"$f":"IF(ISERROR($V1709),\"\",OFFSET('Smelter Look-up'!$G$4,$V1709-4,0))","v":""},{"$f":"IF(ISERROR($V1709),\"\",OFFSET('Smelter Look-up'!$H$4,$V1709-4,0))","v":""},{"$f":"IF(ISERROR($V1709),\"\",OFFSET('Smelter Look-up'!$I$4,$V1709-4,0))","v":""},{"$nulls":7},{"$f":"IF(ISERROR($V1709),\"\",OFFSET('Smelter Look-up'!$C$4,$V1709-4,0)&\"\")","v":""},"",{"$f":"IF(B1709=\"\",\"\",IF(ISERROR(MATCH($J1709,SorP!$B$1:$B$5661,0)),\"\",INDIRECT(\"'SorP'!$A$\"&MATCH($J1709,SorP!$B$1:$B$5661,0))))","v":""},null,{"$f":"IF(C1709=\"\",NA(),MATCH($B1709&$C1709,'Smelter Look-up'!$J:$J,0))","v":{"$error":"#N/A"}},null,0,null,null,null,""]
[null,{"$f":"IF(LEN(A1710)=0,\"\",INDEX('Smelter Look-up'!$A:$A,MATCH($A1710,'Smelter Look-up'!$E:$E,0)))","v":""},{"$f":"IF(LEN(A1710)=0,\"\",INDEX('Smelter Look-up'!$C:$C,MATCH($A1710,'Smelter Look-up'!$E:$E,0)))","v":""},null,{"$f":"IF(ISERROR($V1710),\"\",OFFSET('Smelter Look-up'!$D$4,$V1710-4,0)&\"\")","v":""},{"$f":"IF(ISERROR($V1710),\"\",OFFSET('Smelter Look-up'!$E$4,$V1710-4,0))","v":""},{"$f":"IF(C1710=$X$4,\"Enter smelter details\",IF(ISERROR($V1710),\"\",OFFSET('Smelter Look-up'!$F$4,$V1710-4,0)))","v":""},{"$f":"IF(ISERROR($V1710),\"\",OFFSET('Smelter Look-up'!$G$4,$V1710-4,0))","v":""},{"$f":"IF(ISERROR($V1710),\"\",OFFSET('Smelter Look-up'!$H$4,$V1710-4,0))","v":""},{"$f":"IF(ISERROR($V1710),\"\",OFFSET('Smelter Look-up'!$I$4,$V1710-4,0))","v":""},{"$nulls":7},{"$f":"IF(ISERROR($V1710),\"\",OFFSET('Smelter Look-up'!$C$4,$V1710-4,0)&\"\")","v":""},"",{"$f":"IF(B1710=\"\",\"\",IF(ISERROR(MATCH($J1710,SorP!$B$1:$B$5661,0)),\"\",INDIRECT(\"'SorP'!$A$\"&MATCH($J1710,SorP!$B$1:$B$5661,0))))","v":""},null,{"$f":"IF(C1710=\"\",NA(),MATCH($B1710&$C1710,'Smelter Look-up'!$J:$J,0))","v":{"$error":"#N/A"}},null,0,null,null,null,""]
[null,{"$f":"IF(LEN(A1711)=0,\"\",INDEX('Smelter Look-up'!$A:$A,MATCH($A1711,'Smelter Look-up'!$E:$E,0)))","v":""},{"$f":"IF(LEN(A1711)=0,\"\",INDEX('Smelter Look-up'!$C:$C,MATCH($A1711,'Smelter Look-up'!$E:$E,0)))","v":""},null,{"$f":"IF(ISERROR($V1711),\"\",OFFSET('Smelter Look-up'!$D$4,$V1711-4,0)&\"\")","v":""},{"$f":"IF(ISERROR($V1711),\"\",OFFSET('Smelter Look-up'!$E$4,$V1711-4,0))","v":""},{"$f":"IF(C1711=$X$4,\"Enter smelter details\",IF(ISERROR($V1711),\"\",OFFSET('Smelter Look-up'!$F$4,$V1711-4,0)))","v":""},{"$f":"IF(ISERROR($V1711),\"\",OFFSET('Smelter Look-up'!$G$4,$V1711-4,0))","v":""},{"$f":"IF(ISERROR($V1711),\"\",OFFSET('Smelter Look-up'!$H$4,$V1711-4,0))","v":""},{"$f":"IF(ISERROR($V1711),\"\",OFFSET('Smelter Look-up'!$I$4,$V1711-4,0))","v":""},{"$nulls":7},{"$f":"IF(ISERROR($V1711),\"\",OFFSET('Smelter Look-up'!$C$4,$V1711-4,0)&\"\")","v":""},"",{"$f":"IF(B1711=\"\",\"\",IF(ISERROR(MATCH($J1711,SorP!$B$1:$B$5661,0)),\"\",INDIRECT(\"'SorP'!$A$\"&MATCH($J1711,SorP!$B$1:$B$5661,0))))","v":""},null,{"$f":"IF(C1711=\"\",NA(),MATCH($B1711&$C1711,'Smelter Look-up'!$J:$J,0))","v":{"$error":"#N/A"}},null,0,null,null,null,""]
[null,{"$f":"IF(LEN(A1712)=0,\"\",INDEX('Smelter Look-up'!$A:$A,MATCH($A1712,'Smelter Look-up'!$E:$E,0)))","v":""},{"$f":"IF(LEN(A1712)=0,\"\",INDEX('Smelter Look-up'!$C:$C,MATCH($A1712,'Smelter Look-up'!$E:$E,0)))","v":""},null,{"$f":"IF(ISERROR($V1712),\"\",OFFSET('Smelter Look-up'!$D$4,$V1712-4,0)&\"\")","v":""},{"$f":"IF(ISERROR($V1712),\"\",OFFSET('Smelter Look-up'!$E$4,$V1712-4,0))","v":""},{"$f":"IF(C1712=$X$4,\"Enter smelter details\",IF(ISERROR($V1712),\"\",OFFSET('Smelter Look-up'!$F$4,$V1712-4,0)))","v":""},{"$f":"IF(ISERROR($V1712),\"\",OFFSET('Smelter Look-up'!$G$4,$V1712-4,0))","v":""},{"$f":"IF(ISERROR($V1712),\"\",OFFSET('Smelter Look-up'!$H$4,$V1712-4,0))","v":""},{"$f":"IF(ISERROR($V1712),\"\",OFFSET('Smelter Look-up'!$I$4,$V1712-4,0))","v":""},{"$nulls":7},{"$f":"IF(ISERROR($V1712),\"\",OFFSET('Smelter Look-up'!$C$4,$V1712-4,0)&\"\")","v":""},"",{"$f":"IF(B1712=\"\",\"\",IF(ISERROR(MATCH($J1712,SorP!$B$1:$B$5661,0)),\"\",INDIRECT(\"'SorP'!$A$\"&MATCH($J1712,SorP!$B$1:$B$5661,0))))","v":""},null,{"$f":"IF(C1712=\"\",NA(),MATCH($B1712&$C1712,'Smelter Look-up'!$J:$J,0))","v":{"$error":"#N/A"}},null,0,null,null,null,""]
[null,{"$f":"IF(LEN(A1713)=0,\"\",INDEX('Smelter Look-up'!$A:$A,MATCH($A1713,'Smelter Look-up'!$E:$E,0)))","v":""},{"$f":"IF(LEN(A1713)=0,\"\",INDEX('Smelter Look-up'!$C:$C,MATCH($A1713,'Smelter Look-up'!$E:$E,0)))","v":""},null,{"$f":"IF(ISERROR($V1713),\"\",OFFSET('Smelter Look-up'!$D$4,$V1713-4,0)&\"\")","v":""},{"$f":"IF(ISERROR($V1713),\"\",OFFSET('Smelter Look-up'!$E$4,$V1713-4,0))","v":""},{"$f":"IF(C1713=$X$4,\"Enter smelter details\",IF(ISERROR($V1713),\"\",OFFSET('Smelter Look-up'!$F$4,$V1713-4,0)))","v":""},{"$f":"IF(ISERROR($V1713),\"\",OFFSET('Smelter Look-up'!$G$4,$V1713-4,0))","v":""},{"$f":"IF(ISERROR($V1713),\"\",OFFSET('Smelter Look-up'!$H$4,$V1713-4,0))","v":""},{"$f":"IF(ISERROR($V1713),\"\",OFFSET('Smelter Look-up'!$I$4,$V1713-4,0))","v":""},{"$nulls":7},{"$f":"IF(ISERROR($V1713),\"\",OFFSET('Smelter Look-up'!$C$4,$V1713-4,0)&\"\")","v":""},"",{"$f":"IF(B1713=\"\",\"\",IF(ISERROR(MATCH($J1713,SorP!$B$1:$B$5661,0)),\"\",INDIRECT(\"'SorP'!$A$\"&MATCH($J1713,SorP!$B$1:$B$5661,0))))","v":""},null,{"$f":"IF(C1713=\"\",NA(),MATCH($B1713&$C1713,'Smelter Look-up'!$J:$J,0))","v":{"$error":"#N/A"}},null,0,null,null,null,""]
[null,{"$f":"IF(LEN(A1714)=0,\"\",INDEX('Smelter Look-up'!$A:$A,MATCH($A1714,'Smelter Look-up'!$E:$E,0)))","v":""},{"$f":"IF(LEN(A1714)=0,\"\",INDEX('Smelter Look-up'!$C:$C,MATCH($A1714,'Smelter Look-up'!$E:$E,0)))","v":""},null,{"$f":"IF(ISERROR($V1714),\"\",OFFSET('Smelter Look-up'!$D$4,$V1714-4,0)&\"\")","v":""},{"$f":"IF(ISERROR($V1714),\"\",OFFSET('Smelter Look-up'!$E$4,$V1714-4,0))","v":""},{"$f":"IF(C1714=$X$4,\"Enter smelter details\",IF(ISERROR($V1714),\"\",OFFSET('Smelter Look-up'!$F$4,$V1714-4,0)))","v":""},{"$f":"IF(ISERROR($V1714),\"\",OFFSET('Smelter Look-up'!$G$4,$V1714-4,0))","v":""},{"$f":"IF(ISERROR($V1714),\"\",OFFSET('Smelter Look-up'!$H$4,$V1714-4,0))","v":""},{"$f":"IF(ISERROR($V1714),\"\",OFFSET('Smelter Look-up'!$I$4,$V1714-4,0))","v":""},{"$nulls":7},{"$f":"IF(ISERROR($V1714),\"\",OFFSET('Smelter Look-up'!$C$4,$V1714-4,0)&\"\")","v":""},"",{"$f":"IF(B1714=\"\",\"\",IF(ISERROR(MATCH($J1714,SorP!$B$1:$B$5661,0)),\"\",INDIRECT(\"'SorP'!$A$\"&MATCH($J1714,SorP!$B$1:$B$5661,0))))","v":""},null,{"$f":"IF(C1714=\"\",NA(),MATCH($B1714&$C1714,'Smelter Look-up'!$J:$J,0))","v":{"$error":"#N/A"}},null,0,null,null,null,""]
[null,{"$f":"IF(LEN(A1715)=0,\"\",INDEX('Smelter Look-up'!$A:$A,MATCH($A1715,'Smelter Look-up'!$E:$E,0)))","v":""},{"$f":"IF(LEN(A1715)=0,\"\",INDEX('Smelter Look-up'!$C:$C,MATCH($A1715,'Smelter Look-up'!$E:$E,0)))","v":""},null,{"$f":"IF(ISERROR($V1715),\"\",OFFSET('Smelter Look-up'!$D$4,$V1715-4,0)&\"\")","v":""},{"$f":"IF(ISERROR($V1715),\"\",OFFSET('Smelter Look-up'!$E$4,$V1715-4,0))","v":""},{"$f":"IF(C1715=$X$4,\"Enter smelter details\",IF(ISERROR($V1715),\"\",OFFSET('Smelter Look-up'!$F$4,$V1715-4,0)))","v":""},{"$f":"IF(ISERROR($V1715),\"\",OFFSET('Smelter Look-up'!$G$4,$V1715-4,0))","v":""},{"$f":"IF(ISERROR($V1715),\"\",OFFSET('Smelter Look-up'!$H$4,$V1715-4,0))","v":""},{"$f":"IF(ISERROR($V1715),\"\",OFFSET('Smelter Look-up'!$I$4,$V1715-4,0))","v":""},{"$nulls":7},{"$f":"IF(ISERROR($V1715),\"\",OFFSET('Smelter Look-up'!$C$4,$V1715-4,0)&\"\")","v":""},"",{"$f":"IF(B1715=\"\",\"\",IF(ISERROR(MATCH($J1715,SorP!$B$1:$B$5661,0)),\"\",INDIRECT(\"'SorP'!$A$\"&MATCH($J1715,SorP!$B$1:$B$5661,0))))","v":""},null,{"$f":"IF(C1715=\"\",NA(),MATCH($B1715&$C1715,'Smelter Look-up'!$J:$J,0))","v":{"$error":"#N/A"}},null,0,null,null,null,""]
[null,{"$f":"IF(LEN(A1716)=0,\"\",INDEX('Smelter Look-up'!$A:$A,MATCH($A1716,'Smelter Look-up'!$E:$E,0)))","v":""},{"$f":"IF(LEN(A1716)=0,\"\",INDEX('Smelter Look-up'!$C:$C,MATCH($A1716,'Smelter Look-up'!$E:$E,0)))","v":""},null,{"$f":"IF(ISERROR($V1716),\"\",OFFSET('Smelter Look-up'!$D$4,$V1716-4,0)&\"\")","v":""},{"$f":"IF(ISERROR($V1716),\"\",OFFSET('Smelter Look-up'!$E$4,$V1716-4,0))","v":""},{"$f":"IF(C1716=$X$4,\"Enter smelter details\",IF(ISERROR($V1716),\"\",OFFSET('Smelter Look-up'!$F$4,$V1716-4,0)))","v":""},{"$f":"IF(ISERROR($V1716),\"\",OFFSET('Smelter Look-up'!$G$4,$V1716-4,0))","v":""},{"$f":"IF(ISERROR($V1716),\"\",OFFSET('Smelter Look-up'!$H$4,$V1716-4,0))","v":""},{"$f":"IF(ISERROR($V1716),\"\",OFFSET('Smelter Look-up'!$I$4,$V1716-4,0))","v":""},{"$nulls":7},{"$f":"IF(ISERROR($V1716),\"\",OFFSET('Smelter Look-up'!$C$4,$V1716-4,0)&\"\")","v":""},"",{"$f":"IF(B1716=\"\",\"\",IF(ISERROR(MATCH($J1716,SorP!$B$1:$B$5661,0)),\"\",INDIRECT(\"'SorP'!$A$\"&MATCH($J1716,SorP!$B$1:$B$5661,0))))","v":""},null,{"$f":"IF(C1716=\"\",NA(),MATCH($B1716&$C1716,'Smelter Look-up'!$J:$J,0))","v":{"$error":"#N/A"}},null,0,null,null,null,""]
[null,{"$f":"IF(LEN(A1717)=0,\"\",INDEX('Smelter Look-up'!$A:$A,MATCH($A1717,'Smelter Look-up'!$E:$E,0)))","v":""},{"$f":"IF(LEN(A1717)=0,\"\",INDEX('Smelter Look-up'!$C:$C,MATCH($A1717,'Smelter Look-up'!$E:$E,0)))","v":""},null,{"$f":"IF(ISERROR($V1717),\"\",OFFSET('Smelter Look-up'!$D$4,$V1717-4,0)&\"\")","v":""},{"$f":"IF(ISERROR($V1717),\"\",OFFSET('Smelter Look-up'!$E$4,$V1717-4,0))","v":""},{"$f":"IF(C1717=$X$4,\"Enter smelter details\",IF(ISERROR($V1717),\"\",OFFSET('Smelter Look-up'!$F$4,$V1717-4,0)))","v":""},{"$f":"IF(ISERROR($V1717),\"\",OFFSET('Smelter Look-up'!$G$4,$V1717-4,0))","v":""},{"$f":"IF(ISERROR($V1717),\"\",OFFSET('Smelter Look-up'!$H$4,$V1717-4,0))","v":""},{"$f":"IF(ISERROR($V1717),\"\",OFFSET('Smelter Look-up'!$I$4,$V1717-4,0))","v":""},{"$nulls":7},{"$f":"IF(ISERROR($V1717),\"\",OFFSET('Smelter Look-up'!$C$4,$V1717-4,0)&\"\")","v":""},"",{"$f":"IF(B1717=\"\",\"\",IF(ISERROR(MATCH($J1717,SorP!$B$1:$B$5661,0)),\"\",INDIRECT(\"'SorP'!$A$\"&MATCH($J1717,SorP!$B$1:$B$5661,0))))","v":""},null,{"$f":"IF(C1717=\"\",NA(),MATCH($B1717&$C1717,'Smelter Look-up'!$J:$J,0))","v":{"$error":"#N/A"}},null,0,null,null,null,""]
[null,{"$f":"IF(LEN(A1718)=0,\"\",INDEX('Smelter Look-up'!$A:$A,MATCH($A1718,'Smelter Look-up'!$E:$E,0)))","v":""},{"$f":"IF(LEN(A1718)=0,\"\",INDEX('Smelter Look-up'!$C:$C,MATCH($A1718,'Smelter Look-up'!$E:$E,0)))","v":""},null,{"$f":"IF(ISERROR($V1718),\"\",OFFSET('Smelter Look-up'!$D$4,$V1718-4,0)&\"\")","v":""},{"$f":"IF(ISERROR($V1718),\"\",OFFSET('Smelter Look-up'!$E$4,$V1718-4,0))","v":""},{"$f":"IF(C1718=$X$4,\"Enter smelter details\",IF(ISERROR($V1718),\"\",OFFSET('Smelter Look-up'!$F$4,$V1718-4,0)))","v":""},{"$f":"IF(ISERROR($V1718),\"\",OFFSET('Smelter Look-up'!$G$4,$V1718-4,0))","v":""},{"$f":"IF(ISERROR($V1718),\"\",OFFSET('Smelter Look-up'!$H$4,$V1718-4,0))","v":""},{"$f":"IF(ISERROR($V1718),\"\",OFFSET('Smelter Look-up'!$I$4,$V1718-4,0))","v":""},{"$nulls":7},{"$f":"IF(ISERROR($V1718),\"\",OFFSET('Smelter Look-up'!$C$4,$V1718-4,0)&\"\")","v":""},"",{"$f":"IF(B1718=\"\",\"\",IF(ISERROR(MATCH($J1718,SorP!$B$1:$B$5661,0)),\"\",INDIRECT(\"'SorP'!$A$\"&MATCH($J1718,SorP!$B$1:$B$5661,0))))","v":""},null,{"$f":"IF(C1718=\"\",NA(),MATCH($B1718&$C1718,'Smelter Look-up'!$J:$J,0))","v":{"$error":"#N/A"}},null,0,null,null,null,""]
[null,{"$f":"IF(LEN(A1719)=0,\"\",INDEX('Smelter Look-up'!$A:$A,MATCH($A1719,'Smelter Look-up'!$E:$E,0)))","v":""},{"$f":"IF(LEN(A1719)=0,\"\",INDEX('Smelter Look-up'!$C:$C,MATCH($A1719,'Smelter Look-up'!$E:$E,0)))","v":""},null,{"$f":"IF(ISERROR($V1719),\"\",OFFSET('Smelter Look-up'!$D$4,$V1719-4,0)&\"\")","v":""},{"$f":"IF(ISERROR($V1719),\"\",OFFSET('Smelter Look-up'!$E$4,$V1719-4,0))","v":""},{"$f":"IF(C1719=$X$4,\"Enter smelter details\",IF(ISERROR($V1719),\"\",OFFSET('Smelter Look-up'!$F$4,$V1719-4,0)))","v":""},{"$f":"IF(ISERROR($V1719),\"\",OFFSET('Smelter Look-up'!$G$4,$V1719-4,0))","v":""},{"$f":"IF(ISERROR($V1719),\"\",OFFSET('Smelter Look-up'!$H$4,$V1719-4,0))","v":""},{"$f":"IF(ISERROR($V1719),\"\",OFFSET('Smelter Look-up'!$I$4,$V1719-4,0))","v":""},{"$nulls":7},{"$f":"IF(ISERROR($V1719),\"\",OFFSET('Smelter Look-up'!$C$4,$V1719-4,0)&\"\")","v":""},"",{"$f":"IF(B1719=\"\",\"\",IF(ISERROR(MATCH($J1719,SorP!$B$1:$B$5661,0)),\"\",INDIRECT(\"'SorP'!$A$\"&MATCH($J1719,SorP!$B$1:$B$5661,0))))","v":""},null,{"$f":"IF(C1719=\"\",NA(),MATCH($B1719&$C1719,'Smelter Look-up'!$J:$J,0))","v":{"$error":"#N/A"}},null,0,null,null,null,""]
[null,{"$f":"IF(LEN(A1720)=0,\"\",INDEX('Smelter Look-up'!$A:$A,MATCH($A1720,'Smelter Look-up'!$E:$E,0)))","v":""},{"$f":"IF(LEN(A1720)=0,\"\",INDEX('Smelter Look-up'!$C:$C,MATCH($A1720,'Smelter Look-up'!$E:$E,0)))","v":""},null,{"$f":"IF(ISERROR($V1720),\"\",OFFSET('Smelter Look-up'!$D$4,$V1720-4,0)&\"\")","v":""},{"$f":"IF(ISERROR($V1720),\"\",OFFSET('Smelter Look-up'!$E$4,$V1720-4,0))","v":""},{"$f":"IF(C1720=$X$4,\"Enter smelter details\",IF(ISERROR($V1720),\"\",OFFSET('Smelter Look-up'!$F$4,$V1720-4,0)))","v":""},{"$f":"IF(ISERROR($V1720),\"\",OFFSET('Smelter Look-up'!$G$4,$V1720-4,0))","v":""},{"$f":"IF(ISERROR($V1720),\"\",OFFSET('Smelter Look-up'!$H$4,$V1720-4,0))","v":""},{"$f":"IF(ISERROR($V1720),\"\",OFFSET('Smelter Look-up'!$I$4,$V1720-4,0))","v":""},{"$nulls":7},{"$f":"IF(ISERROR($V1720),\"\",OFFSET('Smelter Look-up'!$C$4,$V1720-4,0)&\"\")","v":""},"",{"$f":"IF(B1720=\"\",\"\",IF(ISERROR(MATCH($J1720,SorP!$B$1:$B$5661,0)),\"\",INDIRECT(\"'SorP'!$A$\"&MATCH($J1720,SorP!$B$1:$B$5661,0))))","v":""},null,{"$f":"IF(C1720=\"\",NA(),MATCH($B1720&$C1720,'Smelter Look-up'!$J:$J,0))","v":{"$error":"#N/A"}},null,0,null,null,null,""]
[null,{"$f":"IF(LEN(A1721)=0,\"\",INDEX('Smelter Look-up'!$A:$A,MATCH($A1721,'Smelter Look-up'!$E:$E,0)))","v":""},{"$f":"IF(LEN(A1721)=0,\"\",INDEX('Smelter Look-up'!$C:$C,MATCH($A1721,'Smelter Look-up'!$E:$E,0)))","v":""},null,{"$f":"IF(ISERROR($V1721),\"\",OFFSET('Smelter Look-up'!$D$4,$V1721-4,0)&\"\")","v":""},{"$f":"IF(ISERROR($V1721),\"\",OFFSET('Smelter Look-up'!$E$4,$V1721-4,0))","v":""},{"$f":"IF(C1721=$X$4,\"Enter smelter details\",IF(ISERROR($V1721),\"\",OFFSET('Smelter Look-up'!$F$4,$V1721-4,0)))","v":""},{"$f":"IF(ISERROR($V1721),\"\",OFFSET('Smelter Look-up'!$G$4,$V1721-4,0))","v":""},{"$f":"IF(ISERROR($V1721),\"\",OFFSET('Smelter Look-up'!$H$4,$V1721-4,0))","v":""},{"$f":"IF(ISERROR($V1721),\"\",OFFSET('Smelter Look-up'!$I$4,$V1721-4,0))","v":""},{"$nulls":7},{"$f":"IF(ISERROR($V1721),\"\",OFFSET('Smelter Look-up'!$C$4,$V1721-4,0)&\"\")","v":""},"",{"$f":"IF(B1721=\"\",\"\",IF(ISERROR(MATCH($J1721,SorP!$B$1:$B$5661,0)),\"\",INDIRECT(\"'SorP'!$A$\"&MATCH($J1721,SorP!$B$1:$B$5661,0))))","v":""},null,{"$f":"IF(C1721=\"\",NA(),MATCH($B1721&$C1721,'Smelter Look-up'!$J:$J,0))","v":{"$error":"#N/A"}},null,0,null,null,null,""]
[null,{"$f":"IF(LEN(A1722)=0,\"\",INDEX('Smelter Look-up'!$A:$A,MATCH($A1722,'Smelter Look-up'!$E:$E,0)))","v":""},{"$f":"IF(LEN(A1722)=0,\"\",INDEX('Smelter Look-up'!$C:$C,MATCH($A1722,'Smelter Look-up'!$E:$E,0)))","v":""},null,{"$f":"IF(ISERROR($V1722),\"\",OFFSET('Smelter Look-up'!$D$4,$V1722-4,0)&\"\")","v":""},{"$f":"IF(ISERROR($V1722),\"\",OFFSET('Smelter Look-up'!$E$4,$V1722-4,0))","v":""},{"$f":"IF(C1722=$X$4,\"Enter smelter details\",IF(ISERROR($V1722),\"\",OFFSET('Smelter Look-up'!$F$4,$V1722-4,0)))","v":""},{"$f":"IF(ISERROR($V1722),\"\",OFFSET('Smelter Look-up'!$G$4,$V1722-4,0))","v":""},{"$f":"IF(ISERROR($V1722),\"\",OFFSET('Smelter Look-up'!$H$4,$V1722-4,0))","v":""},{"$f":"IF(ISERROR($V1722),\"\",OFFSET('Smelter Look-up'!$I$4,$V1722-4,0))","v":""},{"$nulls":7},{"$f":"IF(ISERROR($V1722),\"\",OFFSET('Smelter Look-up'!$C$4,$V1722-4,0)&\"\")","v":""},"",{"$f":"IF(B1722=\"\",\"\",IF(ISERROR(MATCH($J1722,SorP!$B$1:$B$5661,0)),\"\",INDIRECT(\"'SorP'!$A$\"&MATCH($J1722,SorP!$B$1:$B$5661,0))))","v":""},null,{"$f":"IF(C1722=\"\",NA(),MATCH($B1722&$C1722,'Smelter Look-up'!$J:$J,0))","v":{"$error":"#N/A"}},null,0,null,null,null,""]
[null,{"$f":"IF(LEN(A1723)=0,\"\",INDEX('Smelter Look-up'!$A:$A,MATCH($A1723,'Smelter Look-up'!$E:$E,0)))","v":""},{"$f":"IF(LEN(A1723)=0,\"\",INDEX('Smelter Look-up'!$C:$C,MATCH($A1723,'Smelter Look-up'!$E:$E,0)))","v":""},null,{"$f":"IF(ISERROR($V1723),\"\",OFFSET('Smelter Look-up'!$D$4,$V1723-4,0)&\"\")","v":""},{"$f":"IF(ISERROR($V1723),\"\",OFFSET('Smelter Look-up'!$E$4,$V1723-4,0))","v":""},{"$f":"IF(C1723=$X$4,\"Enter smelter details\",IF(ISERROR($V1723),\"\",OFFSET('Smelter Look-up'!$F$4,$V1723-4,0)))","v":""},{"$f":"IF(ISERROR($V1723),\"\",OFFSET('Smelter Look-up'!$G$4,$V1723-4,0))","v":""},{"$f":"IF(ISERROR($V1723),\"\",OFFSET('Smelter Look-up'!$H$4,$V1723-4,0))","v":""},{"$f":"IF(ISERROR($V1723),\"\",OFFSET('Smelter Look-up'!$I$4,$V1723-4,0))","v":""},{"$nulls":7},{"$f":"IF(ISERROR($V1723),\"\",OFFSET('Smelter Look-up'!$C$4,$V1723-4,0)&\"\")","v":""},"",{"$f":"IF(B1723=\"\",\"\",IF(ISERROR(MATCH($J1723,SorP!$B$1:$B$5661,0)),\"\",INDIRECT(\"'SorP'!$A$\"&MATCH($J1723,SorP!$B$1:$B$5661,0))))","v":""},null,{"$f":"IF(C1723=\"\",NA(),MATCH($B1723&$C1723,'Smelter Look-up'!$J:$J,0))","v":{"$error":"#N/A"}},null,0,null,null,null,""]
[null,{"$f":"IF(LEN(A1724)=0,\"\",INDEX('Smelter Look-up'!$A:$A,MATCH($A1724,'Smelter Look-up'!$E:$E,0)))","v":""},{"$f":"IF(LEN(A1724)=0,\"\",INDEX('Smelter Look-up'!$C:$C,MATCH($A1724,'Smelter Look-up'!$E:$E,0)))","v":""},null,{"$f":"IF(ISERROR($V1724),\"\",OFFSET('Smelter Look-up'!$D$4,$V1724-4,0)&\"\")","v":""},{"$f":"IF(ISERROR($V1724),\"\",OFFSET('Smelter Look-up'!$E$4,$V1724-4,0))","v":""},{"$f":"IF(C1724=$X$4,\"Enter smelter details\",IF(ISERROR($V1724),\"\",OFFSET('Smelter Look-up'!$F$4,$V1724-4,0)))","v":""},{"$f":"IF(ISERROR($V1724),\"\",OFFSET('Smelter Look-up'!$G$4,$V1724-4,0))","v":""},{"$f":"IF(ISERROR($V1724),\"\",OFFSET('Smelter Look-up'!$H$4,$V1724-4,0))","v":""},{"$f":"IF(ISERROR($V1724),\"\",OFFSET('Smelter Look-up'!$I$4,$V1724-4,0))","v":""},{"$nulls":7},{"$f":"IF(ISERROR($V1724),\"\",OFFSET('Smelter Look-up'!$C$4,$V1724-4,0)&\"\")","v":""},"",{"$f":"IF(B1724=\"\",\"\",IF(ISERROR(MATCH($J1724,SorP!$B$1:$B$5661,0)),\"\",INDIRECT(\"'SorP'!$A$\"&MATCH($J1724,SorP!$B$1:$B$5661,0))))","v":""},null,{"$f":"IF(C1724=\"\",NA(),MATCH($B1724&$C1724,'Smelter Look-up'!$J:$J,0))","v":{"$error":"#N/A"}},null,0,null,null,null,""]
[null,{"$f":"IF(LEN(A1725)=0,\"\",INDEX('Smelter Look-up'!$A:$A,MATCH($A1725,'Smelter Look-up'!$E:$E,0)))","v":""},{"$f":"IF(LEN(A1725)=0,\"\",INDEX('Smelter Look-up'!$C:$C,MATCH($A1725,'Smelter Look-up'!$E:$E,0)))","v":""},null,{"$f":"IF(ISERROR($V1725),\"\",OFFSET('Smelter Look-up'!$D$4,$V1725-4,0)&\"\")","v":""},{"$f":"IF(ISERROR($V1725),\"\",OFFSET('Smelter Look-up'!$E$4,$V1725-4,0))","v":""},{"$f":"IF(C1725=$X$4,\"Enter smelter details\",IF(ISERROR($V1725),\"\",OFFSET('Smelter Look-up'!$F$4,$V1725-4,0)))","v":""},{"$f":"IF(ISERROR($V1725),\"\",OFFSET('Smelter Look-up'!$G$4,$V1725-4,0))","v":""},{"$f":"IF(ISERROR($V1725),\"\",OFFSET('Smelter Look-up'!$H$4,$V1725-4,0))","v":""},{"$f":"IF(ISERROR($V1725),\"\",OFFSET('Smelter Look-up'!$I$4,$V1725-4,0))","v":""},{"$nulls":7},{"$f":"IF(ISERROR($V1725),\"\",OFFSET('Smelter Look-up'!$C$4,$V1725-4,0)&\"\")","v":""},"",{"$f":"IF(B1725=\"\",\"\",IF(ISERROR(MATCH($J1725,SorP!$B$1:$B$5661,0)),\"\",INDIRECT(\"'SorP'!$A$\"&MATCH($J1725,SorP!$B$1:$B$5661,0))))","v":""},null,{"$f":"IF(C1725=\"\",NA(),MATCH($B1725&$C1725,'Smelter Look-up'!$J:$J,0))","v":{"$error":"#N/A"}},null,0,null,null,null,""]
[null,{"$f":"IF(LEN(A1726)=0,\"\",INDEX('Smelter Look-up'!$A:$A,MATCH($A1726,'Smelter Look-up'!$E:$E,0)))","v":""},{"$f":"IF(LEN(A1726)=0,\"\",INDEX('Smelter Look-up'!$C:$C,MATCH($A1726,'Smelter Look-up'!$E:$E,0)))","v":""},null,{"$f":"IF(ISERROR($V1726),\"\",OFFSET('Smelter Look-up'!$D$4,$V1726-4,0)&\"\")","v":""},{"$f":"IF(ISERROR($V1726),\"\",OFFSET('Smelter Look-up'!$E$4,$V1726-4,0))","v":""},{"$f":"IF(C1726=$X$4,\"Enter smelter details\",IF(ISERROR($V1726),\"\",OFFSET('Smelter Look-up'!$F$4,$V1726-4,0)))","v":""},{"$f":"IF(ISERROR($V1726),\"\",OFFSET('Smelter Look-up'!$G$4,$V1726-4,0))","v":""},{"$f":"IF(ISERROR($V1726),\"\",OFFSET('Smelter Look-up'!$H$4,$V1726-4,0))","v":""},{"$f":"IF(ISERROR($V1726),\"\",OFFSET('Smelter Look-up'!$I$4,$V1726-4,0))","v":""},{"$nulls":7},{"$f":"IF(ISERROR($V1726),\"\",OFFSET('Smelter Look-up'!$C$4,$V1726-4,0)&\"\")","v":""},"",{"$f":"IF(B1726=\"\",\"\",IF(ISERROR(MATCH($J1726,SorP!$B$1:$B$5661,0)),\"\",INDIRECT(\"'SorP'!$A$\"&MATCH($J1726,SorP!$B$1:$B$5661,0))))","v":""},null,{"$f":"IF(C1726=\"\",NA(),MATCH($B1726&$C1726,'Smelter Look-up'!$J:$J,0))","v":{"$error":"#N/A"}},null,0,null,null,null,""]
[null,{"$f":"IF(LEN(A1727)=0,\"\",INDEX('Smelter Look-up'!$A:$A,MATCH($A1727,'Smelter Look-up'!$E:$E,0)))","v":""},{"$f":"IF(LEN(A1727)=0,\"\",INDEX('Smelter Look-up'!$C:$C,MATCH($A1727,'Smelter Look-up'!$E:$E,0)))","v":""},null,{"$f":"IF(ISERROR($V1727),\"\",OFFSET('Smelter Look-up'!$D$4,$V1727-4,0)&\"\")","v":""},{"$f":"IF(ISERROR($V1727),\"\",OFFSET('Smelter Look-up'!$E$4,$V1727-4,0))","v":""},{"$f":"IF(C1727=$X$4,\"Enter smelter details\",IF(ISERROR($V1727),\"\",OFFSET('Smelter Look-up'!$F$4,$V1727-4,0)))","v":""},{"$f":"IF(ISERROR($V1727),\"\",OFFSET('Smelter Look-up'!$G$4,$V1727-4,0))","v":""},{"$f":"IF(ISERROR($V1727),\"\",OFFSET('Smelter Look-up'!$H$4,$V1727-4,0))","v":""},{"$f":"IF(ISERROR($V1727),\"\",OFFSET('Smelter Look-up'!$I$4,$V1727-4,0))","v":""},{"$nulls":7},{"$f":"IF(ISERROR($V1727),\"\",OFFSET('Smelter Look-up'!$C$4,$V1727-4,0)&\"\")","v":""},"",{"$f":"IF(B1727=\"\",\"\",IF(ISERROR(MATCH($J1727,SorP!$B$1:$B$5661,0)),\"\",INDIRECT(\"'SorP'!$A$\"&MATCH($J1727,SorP!$B$1:$B$5661,0))))","v":""},null,{"$f":"IF(C1727=\"\",NA(),MATCH($B1727&$C1727,'Smelter Look-up'!$J:$J,0))","v":{"$error":"#N/A"}},null,{"$f":"IF(AND(C1727=\"Smelter not listed\",OR(LEN(D1727)=0,LEN(E1727)=0)),1,0)","v":0},null,null,null,{"$f":"B1727&C1727","v":""}]
[null,{"$f":"IF(LEN(A1728)=0,\"\",INDEX('Smelter Look-up'!$A:$A,MATCH($A1728,'Smelter Look-up'!$E:$E,0)))","v":""},{"$f":"IF(LEN(A1728)=0,\"\",INDEX('Smelter Look-up'!$C:$C,MATCH($A1728,'Smelter Look-up'!$E:$E,0)))","v":""},null,{"$f":"IF(ISERROR($V1728),\"\",OFFSET('Smelter Look-up'!$D$4,$V1728-4,0)&\"\")","v":""},{"$f":"IF(ISERROR($V1728),\"\",OFFSET('Smelter Look-up'!$E$4,$V1728-4,0))","v":""},{"$f":"IF(C1728=$X$4,\"Enter smelter details\",IF(ISERROR($V1728),\"\",OFFSET('Smelter Look-up'!$F$4,$V1728-4,0)))","v":""},{"$f":"IF(ISERROR($V1728),\"\",OFFSET('Smelter Look-up'!$G$4,$V1728-4,0))","v":""},{"$f":"IF(ISERROR($V1728),\"\",OFFSET('Smelter Look-up'!$H$4,$V1728-4,0))","v":""},{"$f":"IF(ISERROR($V1728),\"\",OFFSET('Smelter Look-up'!$I$4,$V1728-4,0))","v":""},{"$nulls":7},{"$f":"IF(ISERROR($V1728),\"\",OFFSET('Smelter Look-up'!$C$4,$V1728-4,0)&\"\")","v":""},{"$f":"IF(B1728=\"\",\"\",IF(ISERROR(MATCH($E1728,CL,0)),\"Unknown\",INDIRECT(\"'C'!$A$\"&MATCH($E1728,CL,0)+1)))","v":""},{"$f":"IF(B1728=\"\",\"\",IF(ISERROR(MATCH($J1728,SorP!$B$1:$B$5661,0)),\"\",INDIRECT(\"'SorP'!$A$\"&MATCH($J1728,SorP!$B$1:$B$5661,0))))","v":""},null,{"$f":"IF(C1728=\"\",NA(),MATCH($B1728&$C1728,'Smelter Look-up'!$J:$J,0))","v":{"$error":"#N/A"}},null,0,null,null,null,""]
[null,{"$f":"IF(LEN(A1729)=0,\"\",INDEX('Smelter Look-up'!$A:$A,MATCH($A1729,'Smelter Look-up'!$E:$E,0)))","v":""},{"$f":"IF(LEN(A1729)=0,\"\",INDEX('Smelter Look-up'!$C:$C,MATCH($A1729,'Smelter Look-up'!$E:$E,0)))","v":""},null,{"$f":"IF(ISERROR($V1729),\"\",OFFSET('Smelter Look-up'!$D$4,$V1729-4,0)&\"\")","v":""},{"$f":"IF(ISERROR($V1729),\"\",OFFSET('Smelter Look-up'!$E$4,$V1729-4,0))","v":""},{"$f":"IF(C1729=$X$4,\"Enter smelter details\",IF(ISERROR($V1729),\"\",OFFSET('Smelter Look-up'!$F$4,$V1729-4,0)))","v":""},{"$f":"IF(ISERROR($V1729),\"\",OFFSET('Smelter Look-up'!$G$4,$V1729-4,0))","v":""},{"$f":"IF(ISERROR($V1729),\"\",OFFSET('Smelter Look-up'!$H$4,$V1729-4,0))","v":""},{"$f":"IF(ISERROR($V1729),\"\",OFFSET('Smelter Look-up'!$I$4,$V1729-4,0))","v":""},{"$nulls":7},{"$f":"IF(ISERROR($V1729),\"\",OFFSET('Smelter Look-up'!$C$4,$V1729-4,0)&\"\")","v":""},"",{"$f":"IF(B1729=\"\",\"\",IF(ISERROR(MATCH($J1729,SorP!$B$1:$B$5661,0)),\"\",INDIRECT(\"'SorP'!$A$\"&MATCH($J1729,SorP!$B$1:$B$5661,0))))","v":""},null,{"$f":"IF(C1729=\"\",NA(),MATCH($B1729&$C1729,'Smelter Look-up'!$J:$J,0))","v":{"$error":"#N/A"}},null,0,null,null,null,""]
[null,{"$f":"IF(LEN(A1730)=0,\"\",INDEX('Smelter Look-up'!$A:$A,MATCH($A1730,'Smelter Look-up'!$E:$E,0)))","v":""},{"$f":"IF(LEN(A1730)=0,\"\",INDEX('Smelter Look-up'!$C:$C,MATCH($A1730,'Smelter Look-up'!$E:$E,0)))","v":""},null,{"$f":"IF(ISERROR($V1730),\"\",OFFSET('Smelter Look-up'!$D$4,$V1730-4,0)&\"\")","v":""},{"$f":"IF(ISERROR($V1730),\"\",OFFSET('Smelter Look-up'!$E$4,$V1730-4,0))","v":""},{"$f":"IF(C1730=$X$4,\"Enter smelter details\",IF(ISERROR($V1730),\"\",OFFSET('Smelter Look-up'!$F$4,$V1730-4,0)))","v":""},{"$f":"IF(ISERROR($V1730),\"\",OFFSET('Smelter Look-up'!$G$4,$V1730-4,0))","v":""},{"$f":"IF(ISERROR($V1730),\"\",OFFSET('Smelter Look-up'!$H$4,$V1730-4,0))","v":""},{"$f":"IF(ISERROR($V1730),\"\",OFFSET('Smelter Look-up'!$I$4,$V1730-4,0))","v":""},{"$nulls":7},{"$f":"IF(ISERROR($V1730),\"\",OFFSET('Smelter Look-up'!$C$4,$V1730-4,0)&\"\")","v":""},"",{"$f":"IF(B1730=\"\",\"\",IF(ISERROR(MATCH($J1730,SorP!$B$1:$B$5661,0)),\"\",INDIRECT(\"'SorP'!$A$\"&MATCH($J1730,SorP!$B$1:$B$5661,0))))","v":""},null,{"$f":"IF(C1730=\"\",NA(),MATCH($B1730&$C1730,'Smelter Look-up'!$J:$J,0))","v":{"$error":"#N/A"}},null,0,null,null,null,""]
[null,{"$f":"IF(LEN(A1731)=0,\"\",INDEX('Smelter Look-up'!$A:$A,MATCH($A1731,'Smelter Look-up'!$E:$E,0)))","v":""},{"$f":"IF(LEN(A1731)=0,\"\",INDEX('Smelter Look-up'!$C:$C,MATCH($A1731,'Smelter Look-up'!$E:$E,0)))","v":""},null,{"$f":"IF(ISERROR($V1731),\"\",OFFSET('Smelter Look-up'!$D$4,$V1731-4,0)&\"\")","v":""},{"$f":"IF(ISERROR($V1731),\"\",OFFSET('Smelter Look-up'!$E$4,$V1731-4,0))","v":""},{"$f":"IF(C1731=$X$4,\"Enter smelter details\",IF(ISERROR($V1731),\"\",OFFSET('Smelter Look-up'!$F$4,$V1731-4,0)))","v":""},{"$f":"IF(ISERROR($V1731),\"\",OFFSET('Smelter Look-up'!$G$4,$V1731-4,0))","v":""},{"$f":"IF(ISERROR($V1731),\"\",OFFSET('Smelter Look-up'!$H$4,$V1731-4,0))","v":""},{"$f":"IF(ISERROR($V1731),\"\",OFFSET('Smelter Look-up'!$I$4,$V1731-4,0))","v":""},{"$nulls":7},{"$f":"IF(ISERROR($V1731),\"\",OFFSET('Smelter Look-up'!$C$4,$V1731-4,0)&\"\")","v":""},"",{"$f":"IF(B1731=\"\",\"\",IF(ISERROR(MATCH($J1731,SorP!$B$1:$B$5661,0)),\"\",INDIRECT(\"'SorP'!$A$\"&MATCH($J1731,SorP!$B$1:$B$5661,0))))","v":""},null,{"$f":"IF(C1731=\"\",NA(),MATCH($B1731&$C1731,'Smelter Look-up'!$J:$J,0))","v":{"$error":"#N/A"}},null,0,null,null,null,""]
[null,{"$f":"IF(LEN(A1732)=0,\"\",INDEX('Smelter Look-up'!$A:$A,MATCH($A1732,'Smelter Look-up'!$E:$E,0)))","v":""},{"$f":"IF(LEN(A1732)=0,\"\",INDEX('Smelter Look-up'!$C:$C,MATCH($A1732,'Smelter Look-up'!$E:$E,0)))","v":""},null,{"$f":"IF(ISERROR($V1732),\"\",OFFSET('Smelter Look-up'!$D$4,$V1732-4,0)&\"\")","v":""},{"$f":"IF(ISERROR($V1732),\"\",OFFSET('Smelter Look-up'!$E$4,$V1732-4,0))","v":""},{"$f":"IF(C1732=$X$4,\"Enter smelter details\",IF(ISERROR($V1732),\"\",OFFSET('Smelter Look-up'!$F$4,$V1732-4,0)))","v":""},{"$f":"IF(ISERROR($V1732),\"\",OFFSET('Smelter Look-up'!$G$4,$V1732-4,0))","v":""},{"$f":"IF(ISERROR($V1732),\"\",OFFSET('Smelter Look-up'!$H$4,$V1732-4,0))","v":""},{"$f":"IF(ISERROR($V1732),\"\",OFFSET('Smelter Look-up'!$I$4,$V1732-4,0))","v":""},{"$nulls":7},{"$f":"IF(ISERROR($V1732),\"\",OFFSET('Smelter Look-up'!$C$4,$V1732-4,0)&\"\")","v":""},"",{"$f":"IF(B1732=\"\",\"\",IF(ISERROR(MATCH($J1732,SorP!$B$1:$B$5661,0)),\"\",INDIRECT(\"'SorP'!$A$\"&MATCH($J1732,SorP!$B$1:$B$5661,0))))","v":""},null,{"$f":"IF(C1732=\"\",NA(),MATCH($B1732&$C1732,'Smelter Look-up'!$J:$J,0))","v":{"$error":"#N/A"}},null,0,null,null,null,""]
[null,{"$f":"IF(LEN(A1733)=0,\"\",INDEX('Smelter Look-up'!$A:$A,MATCH($A1733,'Smelter Look-up'!$E:$E,0)))","v":""},{"$f":"IF(LEN(A1733)=0,\"\",INDEX('Smelter Look-up'!$C:$C,MATCH($A1733,'Smelter Look-up'!$E:$E,0)))","v":""},null,{"$f":"IF(ISERROR($V1733),\"\",OFFSET('Smelter Look-up'!$D$4,$V1733-4,0)&\"\")","v":""},{"$f":"IF(ISERROR($V1733),\"\",OFFSET('Smelter Look-up'!$E$4,$V1733-4,0))","v":""},{"$f":"IF(C1733=$X$4,\"Enter smelter details\",IF(ISERROR($V1733),\"\",OFFSET('Smelter Look-up'!$F$4,$V1733-4,0)))","v":""},{"$f":"IF(ISERROR($V1733),\"\",OFFSET('Smelter Look-up'!$G$4,$V1733-4,0))","v":""},{"$f":"IF(ISERROR($V1733),\"\",OFFSET('Smelter Look-up'!$H$4,$V1733-4,0))","v":""},{"$f":"IF(ISERROR($V1733),\"\",OFFSET('Smelter Look-up'!$I$4,$V1733-4,0))","v":""},{"$nulls":7},{"$f":"IF(ISERROR($V1733),\"\",OFFSET('Smelter Look-up'!$C$4,$V1733-4,0)&\"\")","v":""},"",{"$f":"IF(B1733=\"\",\"\",IF(ISERROR(MATCH($J1733,SorP!$B$1:$B$5661,0)),\"\",INDIRECT(\"'SorP'!$A$\"&MATCH($J1733,SorP!$B$1:$B$5661,0))))","v":""},null,{"$f":"IF(C1733=\"\",NA(),MATCH($B1733&$C1733,'Smelter Look-up'!$J:$J,0))","v":{"$error":"#N/A"}},null,0,null,null,null,""]
[null,{"$f":"IF(LEN(A1734)=0,\"\",INDEX('Smelter Look-up'!$A:$A,MATCH($A1734,'Smelter Look-up'!$E:$E,0)))","v":""},{"$f":"IF(LEN(A1734)=0,\"\",INDEX('Smelter Look-up'!$C:$C,MATCH($A1734,'Smelter Look-up'!$E:$E,0)))","v":""},null,{"$f":"IF(ISERROR($V1734),\"\",OFFSET('Smelter Look-up'!$D$4,$V1734-4,0)&\"\")","v":""},{"$f":"IF(ISERROR($V1734),\"\",OFFSET('Smelter Look-up'!$E$4,$V1734-4,0))","v":""},{"$f":"IF(C1734=$X$4,\"Enter smelter details\",IF(ISERROR($V1734),\"\",OFFSET('Smelter Look-up'!$F$4,$V1734-4,0)))","v":""},{"$f":"IF(ISERROR($V1734),\"\",OFFSET('Smelter Look-up'!$G$4,$V1734-4,0))","v":""},{"$f":"IF(ISERROR($V1734),\"\",OFFSET('Smelter Look-up'!$H$4,$V1734-4,0))","v":""},{"$f":"IF(ISERROR($V1734),\"\",OFFSET('Smelter Look-up'!$I$4,$V1734-4,0))","v":""},{"$nulls":7},{"$f":"IF(ISERROR($V1734),\"\",OFFSET('Smelter Look-up'!$C$4,$V1734-4,0)&\"\")","v":""},"",{"$f":"IF(B1734=\"\",\"\",IF(ISERROR(MATCH($J1734,SorP!$B$1:$B$5661,0)),\"\",INDIRECT(\"'SorP'!$A$\"&MATCH($J1734,SorP!$B$1:$B$5661,0))))","v":""},null,{"$f":"IF(C1734=\"\",NA(),MATCH($B1734&$C1734,'Smelter Look-up'!$J:$J,0))","v":{"$error":"#N/A"}},null,0,null,null,null,""]
[null,{"$f":"IF(LEN(A1735)=0,\"\",INDEX('Smelter Look-up'!$A:$A,MATCH($A1735,'Smelter Look-up'!$E:$E,0)))","v":""},{"$f":"IF(LEN(A1735)=0,\"\",INDEX('Smelter Look-up'!$C:$C,MATCH($A1735,'Smelter Look-up'!$E:$E,0)))","v":""},null,{"$f":"IF(ISERROR($V1735),\"\",OFFSET('Smelter Look-up'!$D$4,$V1735-4,0)&\"\")","v":""},{"$f":"IF(ISERROR($V1735),\"\",OFFSET('Smelter Look-up'!$E$4,$V1735-4,0))","v":""},{"$f":"IF(C1735=$X$4,\"Enter smelter details\",IF(ISERROR($V1735),\"\",OFFSET('Smelter Look-up'!$F$4,$V1735-4,0)))","v":""},{"$f":"IF(ISERROR($V1735),\"\",OFFSET('Smelter Look-up'!$G$4,$V1735-4,0))","v":""},{"$f":"IF(ISERROR($V1735),\"\",OFFSET('Smelter Look-up'!$H$4,$V1735-4,0))","v":""},{"$f":"IF(ISERROR($V1735),\"\",OFFSET('Smelter Look-up'!$I$4,$V1735-4,0))","v":""},{"$nulls":7},{"$f":"IF(ISERROR($V1735),\"\",OFFSET('Smelter Look-up'!$C$4,$V1735-4,0)&\"\")","v":""},"",{"$f":"IF(B1735=\"\",\"\",IF(ISERROR(MATCH($J1735,SorP!$B$1:$B$5661,0)),\"\",INDIRECT(\"'SorP'!$A$\"&MATCH($J1735,SorP!$B$1:$B$5661,0))))","v":""},null,{"$f":"IF(C1735=\"\",NA(),MATCH($B1735&$C1735,'Smelter Look-up'!$J:$J,0))","v":{"$error":"#N/A"}},null,0,null,null,null,""]
[null,{"$f":"IF(LEN(A1736)=0,\"\",INDEX('Smelter Look-up'!$A:$A,MATCH($A1736,'Smelter Look-up'!$E:$E,0)))","v":""},{"$f":"IF(LEN(A1736)=0,\"\",INDEX('Smelter Look-up'!$C:$C,MATCH($A1736,'Smelter Look-up'!$E:$E,0)))","v":""},null,{"$f":"IF(ISERROR($V1736),\"\",OFFSET('Smelter Look-up'!$D$4,$V1736-4,0)&\"\")","v":""},{"$f":"IF(ISERROR($V1736),\"\",OFFSET('Smelter Look-up'!$E$4,$V1736-4,0))","v":""},{"$f":"IF(C1736=$X$4,\"Enter smelter details\",IF(ISERROR($V1736),\"\",OFFSET('Smelter Look-up'!$F$4,$V1736-4,0)))","v":""},{"$f":"IF(ISERROR($V1736),\"\",OFFSET('Smelter Look-up'!$G$4,$V1736-4,0))","v":""},{"$f":"IF(ISERROR($V1736),\"\",OFFSET('Smelter Look-up'!$H$4,$V1736-4,0))","v":""},{"$f":"IF(ISERROR($V1736),\"\",OFFSET('Smelter Look-up'!$I$4,$V1736-4,0))","v":""},{"$nulls":7},{"$f":"IF(ISERROR($V1736),\"\",OFFSET('Smelter Look-up'!$C$4,$V1736-4,0)&\"\")","v":""},"",{"$f":"IF(B1736=\"\",\"\",IF(ISERROR(MATCH($J1736,SorP!$B$1:$B$5661,0)),\"\",INDIRECT(\"'SorP'!$A$\"&MATCH($J1736,SorP!$B$1:$B$5661,0))))","v":""},null,{"$f":"IF(C1736=\"\",NA(),MATCH($B1736&$C1736,'Smelter Look-up'!$J:$J,0))","v":{"$error":"#N/A"}},null,0,null,null,null,""]
[null,{"$f":"IF(LEN(A1737)=0,\"\",INDEX('Smelter Look-up'!$A:$A,MATCH($A1737,'Smelter Look-up'!$E:$E,0)))","v":""},{"$f":"IF(LEN(A1737)=0,\"\",INDEX('Smelter Look-up'!$C:$C,MATCH($A1737,'Smelter Look-up'!$E:$E,0)))","v":""},null,{"$f":"IF(ISERROR($V1737),\"\",OFFSET('Smelter Look-up'!$D$4,$V1737-4,0)&\"\")","v":""},{"$f":"IF(ISERROR($V1737),\"\",OFFSET('Smelter Look-up'!$E$4,$V1737-4,0))","v":""},{"$f":"IF(C1737=$X$4,\"Enter smelter details\",IF(ISERROR($V1737),\"\",OFFSET('Smelter Look-up'!$F$4,$V1737-4,0)))","v":""},{"$f":"IF(ISERROR($V1737),\"\",OFFSET('Smelter Look-up'!$G$4,$V1737-4,0))","v":""},{"$f":"IF(ISERROR($V1737),\"\",OFFSET('Smelter Look-up'!$H$4,$V1737-4,0))","v":""},{"$f":"IF(ISERROR($V1737),\"\",OFFSET('Smelter Look-up'!$I$4,$V1737-4,0))","v":""},{"$nulls":7},{"$f":"IF(ISERROR($V1737),\"\",OFFSET('Smelter Look-up'!$C$4,$V1737-4,0)&\"\")","v":""},"",{"$f":"IF(B1737=\"\",\"\",IF(ISERROR(MATCH($J1737,SorP!$B$1:$B$5661,0)),\"\",INDIRECT(\"'SorP'!$A$\"&MATCH($J1737,SorP!$B$1:$B$5661,0))))","v":""},null,{"$f":"IF(C1737=\"\",NA(),MATCH($B1737&$C1737,'Smelter Look-up'!$J:$J,0))","v":{"$error":"#N/A"}},null,0,null,null,null,""]
[null,{"$f":"IF(LEN(A1738)=0,\"\",INDEX('Smelter Look-up'!$A:$A,MATCH($A1738,'Smelter Look-up'!$E:$E,0)))","v":""},{"$f":"IF(LEN(A1738)=0,\"\",INDEX('Smelter Look-up'!$C:$C,MATCH($A1738,'Smelter Look-up'!$E:$E,0)))","v":""},null,{"$f":"IF(ISERROR($V1738),\"\",OFFSET('Smelter Look-up'!$D$4,$V1738-4,0)&\"\")","v":""},{"$f":"IF(ISERROR($V1738),\"\",OFFSET('Smelter Look-up'!$E$4,$V1738-4,0))","v":""},{"$f":"IF(C1738=$X$4,\"Enter smelter details\",IF(ISERROR($V1738),\"\",OFFSET('Smelter Look-up'!$F$4,$V1738-4,0)))","v":""},{"$f":"IF(ISERROR($V1738),\"\",OFFSET('Smelter Look-up'!$G$4,$V1738-4,0))","v":""},{"$f":"IF(ISERROR($V1738),\"\",OFFSET('Smelter Look-up'!$H$4,$V1738-4,0))","v":""},{"$f":"IF(ISERROR($V1738),\"\",OFFSET('Smelter Look-up'!$I$4,$V1738-4,0))","v":""},{"$nulls":7},{"$f":"IF(ISERROR($V1738),\"\",OFFSET('Smelter Look-up'!$C$4,$V1738-4,0)&\"\")","v":""},"",{"$f":"IF(B1738=\"\",\"\",IF(ISERROR(MATCH($J1738,SorP!$B$1:$B$5661,0)),\"\",INDIRECT(\"'SorP'!$A$\"&MATCH($J1738,SorP!$B$1:$B$5661,0))))","v":""},null,{"$f":"IF(C1738=\"\",NA(),MATCH($B1738&$C1738,'Smelter Look-up'!$J:$J,0))","v":{"$error":"#N/A"}},null,0,null,null,null,""]
[null,{"$f":"IF(LEN(A1739)=0,\"\",INDEX('Smelter Look-up'!$A:$A,MATCH($A1739,'Smelter Look-up'!$E:$E,0)))","v":""},{"$f":"IF(LEN(A1739)=0,\"\",INDEX('Smelter Look-up'!$C:$C,MATCH($A1739,'Smelter Look-up'!$E:$E,0)))","v":""},null,{"$f":"IF(ISERROR($V1739),\"\",OFFSET('Smelter Look-up'!$D$4,$V1739-4,0)&\"\")","v":""},{"$f":"IF(ISERROR($V1739),\"\",OFFSET('Smelter Look-up'!$E$4,$V1739-4,0))","v":""},{"$f":"IF(C1739=$X$4,\"Enter smelter details\",IF(ISERROR($V1739),\"\",OFFSET('Smelter Look-up'!$F$4,$V1739-4,0)))","v":""},{"$f":"IF(ISERROR($V1739),\"\",OFFSET('Smelter Look-up'!$G$4,$V1739-4,0))","v":""},{"$f":"IF(ISERROR($V1739),\"\",OFFSET('Smelter Look-up'!$H$4,$V1739-4,0))","v":""},{"$f":"IF(ISERROR($V1739),\"\",OFFSET('Smelter Look-up'!$I$4,$V1739-4,0))","v":""},{"$nulls":7},{"$f":"IF(ISERROR($V1739),\"\",OFFSET('Smelter Look-up'!$C$4,$V1739-4,0)&\"\")","v":""},"",{"$f":"IF(B1739=\"\",\"\",IF(ISERROR(MATCH($J1739,SorP!$B$1:$B$5661,0)),\"\",INDIRECT(\"'SorP'!$A$\"&MATCH($J1739,SorP!$B$1:$B$5661,0))))","v":""},null,{"$f":"IF(C1739=\"\",NA(),MATCH($B1739&$C1739,'Smelter Look-up'!$J:$J,0))","v":{"$error":"#N/A"}},null,0,null,null,null,""]
[null,{"$f":"IF(LEN(A1740)=0,\"\",INDEX('Smelter Look-up'!$A:$A,MATCH($A1740,'Smelter Look-up'!$E:$E,0)))","v":""},{"$f":"IF(LEN(A1740)=0,\"\",INDEX('Smelter Look-up'!$C:$C,MATCH($A1740,'Smelter Look-up'!$E:$E,0)))","v":""},null,{"$f":"IF(ISERROR($V1740),\"\",OFFSET('Smelter Look-up'!$D$4,$V1740-4,0)&\"\")","v":""},{"$f":"IF(ISERROR($V1740),\"\",OFFSET('Smelter Look-up'!$E$4,$V1740-4,0))","v":""},{"$f":"IF(C1740=$X$4,\"Enter smelter details\",IF(ISERROR($V1740),\"\",OFFSET('Smelter Look-up'!$F$4,$V1740-4,0)))","v":""},{"$f":"IF(ISERROR($V1740),\"\",OFFSET('Smelter Look-up'!$G$4,$V1740-4,0))","v":""},{"$f":"IF(ISERROR($V1740),\"\",OFFSET('Smelter Look-up'!$H$4,$V1740-4,0))","v":""},{"$f":"IF(ISERROR($V1740),\"\",OFFSET('Smelter Look-up'!$I$4,$V1740-4,0))","v":""},{"$nulls":7},{"$f":"IF(ISERROR($V1740),\"\",OFFSET('Smelter Look-up'!$C$4,$V1740-4,0)&\"\")","v":""},"",{"$f":"IF(B1740=\"\",\"\",IF(ISERROR(MATCH($J1740,SorP!$B$1:$B$5661,0)),\"\",INDIRECT(\"'SorP'!$A$\"&MATCH($J1740,SorP!$B$1:$B$5661,0))))","v":""},null,{"$f":"IF(C1740=\"\",NA(),MATCH($B1740&$C1740,'Smelter Look-up'!$J:$J,0))","v":{"$error":"#N/A"}},null,0,null,null,null,""]
[null,{"$f":"IF(LEN(A1741)=0,\"\",INDEX('Smelter Look-up'!$A:$A,MATCH($A1741,'Smelter Look-up'!$E:$E,0)))","v":""},{"$f":"IF(LEN(A1741)=0,\"\",INDEX('Smelter Look-up'!$C:$C,MATCH($A1741,'Smelter Look-up'!$E:$E,0)))","v":""},null,{"$f":"IF(ISERROR($V1741),\"\",OFFSET('Smelter Look-up'!$D$4,$V1741-4,0)&\"\")","v":""},{"$f":"IF(ISERROR($V1741),\"\",OFFSET('Smelter Look-up'!$E$4,$V1741-4,0))","v":""},{"$f":"IF(C1741=$X$4,\"Enter smelter details\",IF(ISERROR($V1741),\"\",OFFSET('Smelter Look-up'!$F$4,$V1741-4,0)))","v":""},{"$f":"IF(ISERROR($V1741),\"\",OFFSET('Smelter Look-up'!$G$4,$V1741-4,0))","v":""},{"$f":"IF(ISERROR($V1741),\"\",OFFSET('Smelter Look-up'!$H$4,$V1741-4,0))","v":""},{"$f":"IF(ISERROR($V1741),\"\",OFFSET('Smelter Look-up'!$I$4,$V1741-4,0))","v":""},{"$nulls":7},{"$f":"IF(ISERROR($V1741),\"\",OFFSET('Smelter Look-up'!$C$4,$V1741-4,0)&\"\")","v":""},"",{"$f":"IF(B1741=\"\",\"\",IF(ISERROR(MATCH($J1741,SorP!$B$1:$B$5661,0)),\"\",INDIRECT(\"'SorP'!$A$\"&MATCH($J1741,SorP!$B$1:$B$5661,0))))","v":""},null,{"$f":"IF(C1741=\"\",NA(),MATCH($B1741&$C1741,'Smelter Look-up'!$J:$J,0))","v":{"$error":"#N/A"}},null,0,null,null,null,""]
[null,{"$f":"IF(LEN(A1742)=0,\"\",INDEX('Smelter Look-up'!$A:$A,MATCH($A1742,'Smelter Look-up'!$E:$E,0)))","v":""},{"$f":"IF(LEN(A1742)=0,\"\",INDEX('Smelter Look-up'!$C:$C,MATCH($A1742,'Smelter Look-up'!$E:$E,0)))","v":""},null,{"$f":"IF(ISERROR($V1742),\"\",OFFSET('Smelter Look-up'!$D$4,$V1742-4,0)&\"\")","v":""},{"$f":"IF(ISERROR($V1742),\"\",OFFSET('Smelter Look-up'!$E$4,$V1742-4,0))","v":""},{"$f":"IF(C1742=$X$4,\"Enter smelter details\",IF(ISERROR($V1742),\"\",OFFSET('Smelter Look-up'!$F$4,$V1742-4,0)))","v":""},{"$f":"IF(ISERROR($V1742),\"\",OFFSET('Smelter Look-up'!$G$4,$V1742-4,0))","v":""},{"$f":"IF(ISERROR($V1742),\"\",OFFSET('Smelter Look-up'!$H$4,$V1742-4,0))","v":""},{"$f":"IF(ISERROR($V1742),\"\",OFFSET('Smelter Look-up'!$I$4,$V1742-4,0))","v":""},{"$nulls":7},{"$f":"IF(ISERROR($V1742),\"\",OFFSET('Smelter Look-up'!$C$4,$V1742-4,0)&\"\")","v":""},"",{"$f":"IF(B1742=\"\",\"\",IF(ISERROR(MATCH($J1742,SorP!$B$1:$B$5661,0)),\"\",INDIRECT(\"'SorP'!$A$\"&MATCH($J1742,SorP!$B$1:$B$5661,0))))","v":""},null,{"$f":"IF(C1742=\"\",NA(),MATCH($B1742&$C1742,'Smelter Look-up'!$J:$J,0))","v":{"$error":"#N/A"}},null,0,null,null,null,""]
[null,{"$f":"IF(LEN(A1743)=0,\"\",INDEX('Smelter Look-up'!$A:$A,MATCH($A1743,'Smelter Look-up'!$E:$E,0)))","v":""},{"$f":"IF(LEN(A1743)=0,\"\",INDEX('Smelter Look-up'!$C:$C,MATCH($A1743,'Smelter Look-up'!$E:$E,0)))","v":""},null,{"$f":"IF(ISERROR($V1743),\"\",OFFSET('Smelter Look-up'!$D$4,$V1743-4,0)&\"\")","v":""},{"$f":"IF(ISERROR($V1743),\"\",OFFSET('Smelter Look-up'!$E$4,$V1743-4,0))","v":""},{"$f":"IF(C1743=$X$4,\"Enter smelter details\",IF(ISERROR($V1743),\"\",OFFSET('Smelter Look-up'!$F$4,$V1743-4,0)))","v":""},{"$f":"IF(ISERROR($V1743),\"\",OFFSET('Smelter Look-up'!$G$4,$V1743-4,0))","v":""},{"$f":"IF(ISERROR($V1743),\"\",OFFSET('Smelter Look-up'!$H$4,$V1743-4,0))","v":""},{"$f":"IF(ISERROR($V1743),\"\",OFFSET('Smelter Look-up'!$I$4,$V1743-4,0))","v":""},{"$nulls":7},{"$f":"IF(ISERROR($V1743),\"\",OFFSET('Smelter Look-up'!$C$4,$V1743-4,0)&\"\")","v":""},"",{"$f":"IF(B1743=\"\",\"\",IF(ISERROR(MATCH($J1743,SorP!$B$1:$B$5661,0)),\"\",INDIRECT(\"'SorP'!$A$\"&MATCH($J1743,SorP!$B$1:$B$5661,0))))","v":""},null,{"$f":"IF(C1743=\"\",NA(),MATCH($B1743&$C1743,'Smelter Look-up'!$J:$J,0))","v":{"$error":"#N/A"}},null,0,null,null,null,""]
[null,{"$f":"IF(LEN(A1744)=0,\"\",INDEX('Smelter Look-up'!$A:$A,MATCH($A1744,'Smelter Look-up'!$E:$E,0)))","v":""},{"$f":"IF(LEN(A1744)=0,\"\",INDEX('Smelter Look-up'!$C:$C,MATCH($A1744,'Smelter Look-up'!$E:$E,0)))","v":""},null,{"$f":"IF(ISERROR($V1744),\"\",OFFSET('Smelter Look-up'!$D$4,$V1744-4,0)&\"\")","v":""},{"$f":"IF(ISERROR($V1744),\"\",OFFSET('Smelter Look-up'!$E$4,$V1744-4,0))","v":""},{"$f":"IF(C1744=$X$4,\"Enter smelter details\",IF(ISERROR($V1744),\"\",OFFSET('Smelter Look-up'!$F$4,$V1744-4,0)))","v":""},{"$f":"IF(ISERROR($V1744),\"\",OFFSET('Smelter Look-up'!$G$4,$V1744-4,0))","v":""},{"$f":"IF(ISERROR($V1744),\"\",OFFSET('Smelter Look-up'!$H$4,$V1744-4,0))","v":""},{"$f":"IF(ISERROR($V1744),\"\",OFFSET('Smelter Look-up'!$I$4,$V1744-4,0))","v":""},{"$nulls":7},{"$f":"IF(ISERROR($V1744),\"\",OFFSET('Smelter Look-up'!$C$4,$V1744-4,0)&\"\")","v":""},"",{"$f":"IF(B1744=\"\",\"\",IF(ISERROR(MATCH($J1744,SorP!$B$1:$B$5661,0)),\"\",INDIRECT(\"'SorP'!$A$\"&MATCH($J1744,SorP!$B$1:$B$5661,0))))","v":""},null,{"$f":"IF(C1744=\"\",NA(),MATCH($B1744&$C1744,'Smelter Look-up'!$J:$J,0))","v":{"$error":"#N/A"}},null,0,null,null,null,""]
[null,{"$f":"IF(LEN(A1745)=0,\"\",INDEX('Smelter Look-up'!$A:$A,MATCH($A1745,'Smelter Look-up'!$E:$E,0)))","v":""},{"$f":"IF(LEN(A1745)=0,\"\",INDEX('Smelter Look-up'!$C:$C,MATCH($A1745,'Smelter Look-up'!$E:$E,0)))","v":""},null,{"$f":"IF(ISERROR($V1745),\"\",OFFSET('Smelter Look-up'!$D$4,$V1745-4,0)&\"\")","v":""},{"$f":"IF(ISERROR($V1745),\"\",OFFSET('Smelter Look-up'!$E$4,$V1745-4,0))","v":""},{"$f":"IF(C1745=$X$4,\"Enter smelter details\",IF(ISERROR($V1745),\"\",OFFSET('Smelter Look-up'!$F$4,$V1745-4,0)))","v":""},{"$f":"IF(ISERROR($V1745),\"\",OFFSET('Smelter Look-up'!$G$4,$V1745-4,0))","v":""},{"$f":"IF(ISERROR($V1745),\"\",OFFSET('Smelter Look-up'!$H$4,$V1745-4,0))","v":""},{"$f":"IF(ISERROR($V1745),\"\",OFFSET('Smelter Look-up'!$I$4,$V1745-4,0))","v":""},{"$nulls":7},{"$f":"IF(ISERROR($V1745),\"\",OFFSET('Smelter Look-up'!$C$4,$V1745-4,0)&\"\")","v":""},"",{"$f":"IF(B1745=\"\",\"\",IF(ISERROR(MATCH($J1745,SorP!$B$1:$B$5661,0)),\"\",INDIRECT(\"'SorP'!$A$\"&MATCH($J1745,SorP!$B$1:$B$5661,0))))","v":""},null,{"$f":"IF(C1745=\"\",NA(),MATCH($B1745&$C1745,'Smelter Look-up'!$J:$J,0))","v":{"$error":"#N/A"}},null,0,null,null,null,""]
[null,{"$f":"IF(LEN(A1746)=0,\"\",INDEX('Smelter Look-up'!$A:$A,MATCH($A1746,'Smelter Look-up'!$E:$E,0)))","v":""},{"$f":"IF(LEN(A1746)=0,\"\",INDEX('Smelter Look-up'!$C:$C,MATCH($A1746,'Smelter Look-up'!$E:$E,0)))","v":""},null,{"$f":"IF(ISERROR($V1746),\"\",OFFSET('Smelter Look-up'!$D$4,$V1746-4,0)&\"\")","v":""},{"$f":"IF(ISERROR($V1746),\"\",OFFSET('Smelter Look-up'!$E$4,$V1746-4,0))","v":""},{"$f":"IF(C1746=$X$4,\"Enter smelter details\",IF(ISERROR($V1746),\"\",OFFSET('Smelter Look-up'!$F$4,$V1746-4,0)))","v":""},{"$f":"IF(ISERROR($V1746),\"\",OFFSET('Smelter Look-up'!$G$4,$V1746-4,0))","v":""},{"$f":"IF(ISERROR($V1746),\"\",OFFSET('Smelter Look-up'!$H$4,$V1746-4,0))","v":""},{"$f":"IF(ISERROR($V1746),\"\",OFFSET('Smelter Look-up'!$I$4,$V1746-4,0))","v":""},{"$nulls":7},{"$f":"IF(ISERROR($V1746),\"\",OFFSET('Smelter Look-up'!$C$4,$V1746-4,0)&\"\")","v":""},"",{"$f":"IF(B1746=\"\",\"\",IF(ISERROR(MATCH($J1746,SorP!$B$1:$B$5661,0)),\"\",INDIRECT(\"'SorP'!$A$\"&MATCH($J1746,SorP!$B$1:$B$5661,0))))","v":""},null,{"$f":"IF(C1746=\"\",NA(),MATCH($B1746&$C1746,'Smelter Look-up'!$J:$J,0))","v":{"$error":"#N/A"}},null,0,null,null,null,""]
[null,{"$f":"IF(LEN(A1747)=0,\"\",INDEX('Smelter Look-up'!$A:$A,MATCH($A1747,'Smelter Look-up'!$E:$E,0)))","v":""},{"$f":"IF(LEN(A1747)=0,\"\",INDEX('Smelter Look-up'!$C:$C,MATCH($A1747,'Smelter Look-up'!$E:$E,0)))","v":""},null,{"$f":"IF(ISERROR($V1747),\"\",OFFSET('Smelter Look-up'!$D$4,$V1747-4,0)&\"\")","v":""},{"$f":"IF(ISERROR($V1747),\"\",OFFSET('Smelter Look-up'!$E$4,$V1747-4,0))","v":""},{"$f":"IF(C1747=$X$4,\"Enter smelter details\",IF(ISERROR($V1747),\"\",OFFSET('Smelter Look-up'!$F$4,$V1747-4,0)))","v":""},{"$f":"IF(ISERROR($V1747),\"\",OFFSET('Smelter Look-up'!$G$4,$V1747-4,0))","v":""},{"$f":"IF(ISERROR($V1747),\"\",OFFSET('Smelter Look-up'!$H$4,$V1747-4,0))","v":""},{"$f":"IF(ISERROR($V1747),\"\",OFFSET('Smelter Look-up'!$I$4,$V1747-4,0))","v":""},{"$nulls":7},{"$f":"IF(ISERROR($V1747),\"\",OFFSET('Smelter Look-up'!$C$4,$V1747-4,0)&\"\")","v":""},"",{"$f":"IF(B1747=\"\",\"\",IF(ISERROR(MATCH($J1747,SorP!$B$1:$B$5661,0)),\"\",INDIRECT(\"'SorP'!$A$\"&MATCH($J1747,SorP!$B$1:$B$5661,0))))","v":""},null,{"$f":"IF(C1747=\"\",NA(),MATCH($B1747&$C1747,'Smelter Look-up'!$J:$J,0))","v":{"$error":"#N/A"}},null,0,null,null,null,""]
[null,{"$f":"IF(LEN(A1748)=0,\"\",INDEX('Smelter Look-up'!$A:$A,MATCH($A1748,'Smelter Look-up'!$E:$E,0)))","v":""},{"$f":"IF(LEN(A1748)=0,\"\",INDEX('Smelter Look-up'!$C:$C,MATCH($A1748,'Smelter Look-up'!$E:$E,0)))","v":""},null,{"$f":"IF(ISERROR($V1748),\"\",OFFSET('Smelter Look-up'!$D$4,$V1748-4,0)&\"\")","v":""},{"$f":"IF(ISERROR($V1748),\"\",OFFSET('Smelter Look-up'!$E$4,$V1748-4,0))","v":""},{"$f":"IF(C1748=$X$4,\"Enter smelter details\",IF(ISERROR($V1748),\"\",OFFSET('Smelter Look-up'!$F$4,$V1748-4,0)))","v":""},{"$f":"IF(ISERROR($V1748),\"\",OFFSET('Smelter Look-up'!$G$4,$V1748-4,0))","v":""},{"$f":"IF(ISERROR($V1748),\"\",OFFSET('Smelter Look-up'!$H$4,$V1748-4,0))","v":""},{"$f":"IF(ISERROR($V1748),\"\",OFFSET('Smelter Look-up'!$I$4,$V1748-4,0))","v":""},{"$nulls":7},{"$f":"IF(ISERROR($V1748),\"\",OFFSET('Smelter Look-up'!$C$4,$V1748-4,0)&\"\")","v":""},"",{"$f":"IF(B1748=\"\",\"\",IF(ISERROR(MATCH($J1748,SorP!$B$1:$B$5661,0)),\"\",INDIRECT(\"'SorP'!$A$\"&MATCH($J1748,SorP!$B$1:$B$5661,0))))","v":""},null,{"$f":"IF(C1748=\"\",NA(),MATCH($B1748&$C1748,'Smelter Look-up'!$J:$J,0))","v":{"$error":"#N/A"}},null,0,null,null,null,""]
[null,{"$f":"IF(LEN(A1749)=0,\"\",INDEX('Smelter Look-up'!$A:$A,MATCH($A1749,'Smelter Look-up'!$E:$E,0)))","v":""},{"$f":"IF(LEN(A1749)=0,\"\",INDEX('Smelter Look-up'!$C:$C,MATCH($A1749,'Smelter Look-up'!$E:$E,0)))","v":""},null,{"$f":"IF(ISERROR($V1749),\"\",OFFSET('Smelter Look-up'!$D$4,$V1749-4,0)&\"\")","v":""},{"$f":"IF(ISERROR($V1749),\"\",OFFSET('Smelter Look-up'!$E$4,$V1749-4,0))","v":""},{"$f":"IF(C1749=$X$4,\"Enter smelter details\",IF(ISERROR($V1749),\"\",OFFSET('Smelter Look-up'!$F$4,$V1749-4,0)))","v":""},{"$f":"IF(ISERROR($V1749),\"\",OFFSET('Smelter Look-up'!$G$4,$V1749-4,0))","v":""},{"$f":"IF(ISERROR($V1749),\"\",OFFSET('Smelter Look-up'!$H$4,$V1749-4,0))","v":""},{"$f":"IF(ISERROR($V1749),\"\",OFFSET('Smelter Look-up'!$I$4,$V1749-4,0))","v":""},{"$nulls":7},{"$f":"IF(ISERROR($V1749),\"\",OFFSET('Smelter Look-up'!$C$4,$V1749-4,0)&\"\")","v":""},"",{"$f":"IF(B1749=\"\",\"\",IF(ISERROR(MATCH($J1749,SorP!$B$1:$B$5661,0)),\"\",INDIRECT(\"'SorP'!$A$\"&MATCH($J1749,SorP!$B$1:$B$5661,0))))","v":""},null,{"$f":"IF(C1749=\"\",NA(),MATCH($B1749&$C1749,'Smelter Look-up'!$J:$J,0))","v":{"$error":"#N/A"}},null,0,null,null,null,""]
[null,{"$f":"IF(LEN(A1750)=0,\"\",INDEX('Smelter Look-up'!$A:$A,MATCH($A1750,'Smelter Look-up'!$E:$E,0)))","v":""},{"$f":"IF(LEN(A1750)=0,\"\",INDEX('Smelter Look-up'!$C:$C,MATCH($A1750,'Smelter Look-up'!$E:$E,0)))","v":""},null,{"$f":"IF(ISERROR($V1750),\"\",OFFSET('Smelter Look-up'!$D$4,$V1750-4,0)&\"\")","v":""},{"$f":"IF(ISERROR($V1750),\"\",OFFSET('Smelter Look-up'!$E$4,$V1750-4,0))","v":""},{"$f":"IF(C1750=$X$4,\"Enter smelter details\",IF(ISERROR($V1750),\"\",OFFSET('Smelter Look-up'!$F$4,$V1750-4,0)))","v":""},{"$f":"IF(ISERROR($V1750),\"\",OFFSET('Smelter Look-up'!$G$4,$V1750-4,0))","v":""},{"$f":"IF(ISERROR($V1750),\"\",OFFSET('Smelter Look-up'!$H$4,$V1750-4,0))","v":""},{"$f":"IF(ISERROR($V1750),\"\",OFFSET('Smelter Look-up'!$I$4,$V1750-4,0))","v":""},{"$nulls":7},{"$f":"IF(ISERROR($V1750),\"\",OFFSET('Smelter Look-up'!$C$4,$V1750-4,0)&\"\")","v":""},"",{"$f":"IF(B1750=\"\",\"\",IF(ISERROR(MATCH($J1750,SorP!$B$1:$B$5661,0)),\"\",INDIRECT(\"'SorP'!$A$\"&MATCH($J1750,SorP!$B$1:$B$5661,0))))","v":""},null,{"$f":"IF(C1750=\"\",NA(),MATCH($B1750&$C1750,'Smelter Look-up'!$J:$J,0))","v":{"$error":"#N/A"}},null,0,null,null,null,""]
[null,{"$f":"IF(LEN(A1751)=0,\"\",INDEX('Smelter Look-up'!$A:$A,MATCH($A1751,'Smelter Look-up'!$E:$E,0)))","v":""},{"$f":"IF(LEN(A1751)=0,\"\",INDEX('Smelter Look-up'!$C:$C,MATCH($A1751,'Smelter Look-up'!$E:$E,0)))","v":""},null,{"$f":"IF(ISERROR($V1751),\"\",OFFSET('Smelter Look-up'!$D$4,$V1751-4,0)&\"\")","v":""},{"$f":"IF(ISERROR($V1751),\"\",OFFSET('Smelter Look-up'!$E$4,$V1751-4,0))","v":""},{"$f":"IF(C1751=$X$4,\"Enter smelter details\",IF(ISERROR($V1751),\"\",OFFSET('Smelter Look-up'!$F$4,$V1751-4,0)))","v":""},{"$f":"IF(ISERROR($V1751),\"\",OFFSET('Smelter Look-up'!$G$4,$V1751-4,0))","v":""},{"$f":"IF(ISERROR($V1751),\"\",OFFSET('Smelter Look-up'!$H$4,$V1751-4,0))","v":""},{"$f":"IF(ISERROR($V1751),\"\",OFFSET('Smelter Look-up'!$I$4,$V1751-4,0))","v":""},{"$nulls":7},{"$f":"IF(ISERROR($V1751),\"\",OFFSET('Smelter Look-up'!$C$4,$V1751-4,0)&\"\")","v":""},"",{"$f":"IF(B1751=\"\",\"\",IF(ISERROR(MATCH($J1751,SorP!$B$1:$B$5661,0)),\"\",INDIRECT(\"'SorP'!$A$\"&MATCH($J1751,SorP!$B$1:$B$5661,0))))","v":""},null,{"$f":"IF(C1751=\"\",NA(),MATCH($B1751&$C1751,'Smelter Look-up'!$J:$J,0))","v":{"$error":"#N/A"}},null,0,null,null,null,""]
[null,{"$f":"IF(LEN(A1752)=0,\"\",INDEX('Smelter Look-up'!$A:$A,MATCH($A1752,'Smelter Look-up'!$E:$E,0)))","v":""},{"$f":"IF(LEN(A1752)=0,\"\",INDEX('Smelter Look-up'!$C:$C,MATCH($A1752,'Smelter Look-up'!$E:$E,0)))","v":""},null,{"$f":"IF(ISERROR($V1752),\"\",OFFSET('Smelter Look-up'!$D$4,$V1752-4,0)&\"\")","v":""},{"$f":"IF(ISERROR($V1752),\"\",OFFSET('Smelter Look-up'!$E$4,$V1752-4,0))","v":""},{"$f":"IF(C1752=$X$4,\"Enter smelter details\",IF(ISERROR($V1752),\"\",OFFSET('Smelter Look-up'!$F$4,$V1752-4,0)))","v":""},{"$f":"IF(ISERROR($V1752),\"\",OFFSET('Smelter Look-up'!$G$4,$V1752-4,0))","v":""},{"$f":"IF(ISERROR($V1752),\"\",OFFSET('Smelter Look-up'!$H$4,$V1752-4,0))","v":""},{"$f":"IF(ISERROR($V1752),\"\",OFFSET('Smelter Look-up'!$I$4,$V1752-4,0))","v":""},{"$nulls":7},{"$f":"IF(ISERROR($V1752),\"\",OFFSET('Smelter Look-up'!$C$4,$V1752-4,0)&\"\")","v":""},"",{"$f":"IF(B1752=\"\",\"\",IF(ISERROR(MATCH($J1752,SorP!$B$1:$B$5661,0)),\"\",INDIRECT(\"'SorP'!$A$\"&MATCH($J1752,SorP!$B$1:$B$5661,0))))","v":""},null,{"$f":"IF(C1752=\"\",NA(),MATCH($B1752&$C1752,'Smelter Look-up'!$J:$J,0))","v":{"$error":"#N/A"}},null,0,null,null,null,""]
[null,{"$f":"IF(LEN(A1753)=0,\"\",INDEX('Smelter Look-up'!$A:$A,MATCH($A1753,'Smelter Look-up'!$E:$E,0)))","v":""},{"$f":"IF(LEN(A1753)=0,\"\",INDEX('Smelter Look-up'!$C:$C,MATCH($A1753,'Smelter Look-up'!$E:$E,0)))","v":""},null,{"$f":"IF(ISERROR($V1753),\"\",OFFSET('Smelter Look-up'!$D$4,$V1753-4,0)&\"\")","v":""},{"$f":"IF(ISERROR($V1753),\"\",OFFSET('Smelter Look-up'!$E$4,$V1753-4,0))","v":""},{"$f":"IF(C1753=$X$4,\"Enter smelter details\",IF(ISERROR($V1753),\"\",OFFSET('Smelter Look-up'!$F$4,$V1753-4,0)))","v":""},{"$f":"IF(ISERROR($V1753),\"\",OFFSET('Smelter Look-up'!$G$4,$V1753-4,0))","v":""},{"$f":"IF(ISERROR($V1753),\"\",OFFSET('Smelter Look-up'!$H$4,$V1753-4,0))","v":""},{"$f":"IF(ISERROR($V1753),\"\",OFFSET('Smelter Look-up'!$I$4,$V1753-4,0))","v":""},{"$nulls":7},{"$f":"IF(ISERROR($V1753),\"\",OFFSET('Smelter Look-up'!$C$4,$V1753-4,0)&\"\")","v":""},"",{"$f":"IF(B1753=\"\",\"\",IF(ISERROR(MATCH($J1753,SorP!$B$1:$B$5661,0)),\"\",INDIRECT(\"'SorP'!$A$\"&MATCH($J1753,SorP!$B$1:$B$5661,0))))","v":""},null,{"$f":"IF(C1753=\"\",NA(),MATCH($B1753&$C1753,'Smelter Look-up'!$J:$J,0))","v":{"$error":"#N/A"}},null,0,null,null,null,""]
[null,{"$f":"IF(LEN(A1754)=0,\"\",INDEX('Smelter Look-up'!$A:$A,MATCH($A1754,'Smelter Look-up'!$E:$E,0)))","v":""},{"$f":"IF(LEN(A1754)=0,\"\",INDEX('Smelter Look-up'!$C:$C,MATCH($A1754,'Smelter Look-up'!$E:$E,0)))","v":""},null,{"$f":"IF(ISERROR($V1754),\"\",OFFSET('Smelter Look-up'!$D$4,$V1754-4,0)&\"\")","v":""},{"$f":"IF(ISERROR($V1754),\"\",OFFSET('Smelter Look-up'!$E$4,$V1754-4,0))","v":""},{"$f":"IF(C1754=$X$4,\"Enter smelter details\",IF(ISERROR($V1754),\"\",OFFSET('Smelter Look-up'!$F$4,$V1754-4,0)))","v":""},{"$f":"IF(ISERROR($V1754),\"\",OFFSET('Smelter Look-up'!$G$4,$V1754-4,0))","v":""},{"$f":"IF(ISERROR($V1754),\"\",OFFSET('Smelter Look-up'!$H$4,$V1754-4,0))","v":""},{"$f":"IF(ISERROR($V1754),\"\",OFFSET('Smelter Look-up'!$I$4,$V1754-4,0))","v":""},{"$nulls":7},{"$f":"IF(ISERROR($V1754),\"\",OFFSET('Smelter Look-up'!$C$4,$V1754-4,0)&\"\")","v":""},"",{"$f":"IF(B1754=\"\",\"\",IF(ISERROR(MATCH($J1754,SorP!$B$1:$B$5661,0)),\"\",INDIRECT(\"'SorP'!$A$\"&MATCH($J1754,SorP!$B$1:$B$5661,0))))","v":""},null,{"$f":"IF(C1754=\"\",NA(),MATCH($B1754&$C1754,'Smelter Look-up'!$J:$J,0))","v":{"$error":"#N/A"}},null,0,null,null,null,""]
[null,{"$f":"IF(LEN(A1755)=0,\"\",INDEX('Smelter Look-up'!$A:$A,MATCH($A1755,'Smelter Look-up'!$E:$E,0)))","v":""},{"$f":"IF(LEN(A1755)=0,\"\",INDEX('Smelter Look-up'!$C:$C,MATCH($A1755,'Smelter Look-up'!$E:$E,0)))","v":""},null,{"$f":"IF(ISERROR($V1755),\"\",OFFSET('Smelter Look-up'!$D$4,$V1755-4,0)&\"\")","v":""},{"$f":"IF(ISERROR($V1755),\"\",OFFSET('Smelter Look-up'!$E$4,$V1755-4,0))","v":""},{"$f":"IF(C1755=$X$4,\"Enter smelter details\",IF(ISERROR($V1755),\"\",OFFSET('Smelter Look-up'!$F$4,$V1755-4,0)))","v":""},{"$f":"IF(ISERROR($V1755),\"\",OFFSET('Smelter Look-up'!$G$4,$V1755-4,0))","v":""},{"$f":"IF(ISERROR($V1755),\"\",OFFSET('Smelter Look-up'!$H$4,$V1755-4,0))","v":""},{"$f":"IF(ISERROR($V1755),\"\",OFFSET('Smelter Look-up'!$I$4,$V1755-4,0))","v":""},{"$nulls":7},{"$f":"IF(ISERROR($V1755),\"\",OFFSET('Smelter Look-up'!$C$4,$V1755-4,0)&\"\")","v":""},"",{"$f":"IF(B1755=\"\",\"\",IF(ISERROR(MATCH($J1755,SorP!$B$1:$B$5661,0)),\"\",INDIRECT(\"'SorP'!$A$\"&MATCH($J1755,SorP!$B$1:$B$5661,0))))","v":""},null,{"$f":"IF(C1755=\"\",NA(),MATCH($B1755&$C1755,'Smelter Look-up'!$J:$J,0))","v":{"$error":"#N/A"}},null,0,null,null,null,""]
[null,{"$f":"IF(LEN(A1756)=0,\"\",INDEX('Smelter Look-up'!$A:$A,MATCH($A1756,'Smelter Look-up'!$E:$E,0)))","v":""},{"$f":"IF(LEN(A1756)=0,\"\",INDEX('Smelter Look-up'!$C:$C,MATCH($A1756,'Smelter Look-up'!$E:$E,0)))","v":""},null,{"$f":"IF(ISERROR($V1756),\"\",OFFSET('Smelter Look-up'!$D$4,$V1756-4,0)&\"\")","v":""},{"$f":"IF(ISERROR($V1756),\"\",OFFSET('Smelter Look-up'!$E$4,$V1756-4,0))","v":""},{"$f":"IF(C1756=$X$4,\"Enter smelter details\",IF(ISERROR($V1756),\"\",OFFSET('Smelter Look-up'!$F$4,$V1756-4,0)))","v":""},{"$f":"IF(ISERROR($V1756),\"\",OFFSET('Smelter Look-up'!$G$4,$V1756-4,0))","v":""},{"$f":"IF(ISERROR($V1756),\"\",OFFSET('Smelter Look-up'!$H$4,$V1756-4,0))","v":""},{"$f":"IF(ISERROR($V1756),\"\",OFFSET('Smelter Look-up'!$I$4,$V1756-4,0))","v":""},{"$nulls":7},{"$f":"IF(ISERROR($V1756),\"\",OFFSET('Smelter Look-up'!$C$4,$V1756-4,0)&\"\")","v":""},"",{"$f":"IF(B1756=\"\",\"\",IF(ISERROR(MATCH($J1756,SorP!$B$1:$B$5661,0)),\"\",INDIRECT(\"'SorP'!$A$\"&MATCH($J1756,SorP!$B$1:$B$5661,0))))","v":""},null,{"$f":"IF(C1756=\"\",NA(),MATCH($B1756&$C1756,'Smelter Look-up'!$J:$J,0))","v":{"$error":"#N/A"}},null,0,null,null,null,""]
[null,{"$f":"IF(LEN(A1757)=0,\"\",INDEX('Smelter Look-up'!$A:$A,MATCH($A1757,'Smelter Look-up'!$E:$E,0)))","v":""},{"$f":"IF(LEN(A1757)=0,\"\",INDEX('Smelter Look-up'!$C:$C,MATCH($A1757,'Smelter Look-up'!$E:$E,0)))","v":""},null,{"$f":"IF(ISERROR($V1757),\"\",OFFSET('Smelter Look-up'!$D$4,$V1757-4,0)&\"\")","v":""},{"$f":"IF(ISERROR($V1757),\"\",OFFSET('Smelter Look-up'!$E$4,$V1757-4,0))","v":""},{"$f":"IF(C1757=$X$4,\"Enter smelter details\",IF(ISERROR($V1757),\"\",OFFSET('Smelter Look-up'!$F$4,$V1757-4,0)))","v":""},{"$f":"IF(ISERROR($V1757),\"\",OFFSET('Smelter Look-up'!$G$4,$V1757-4,0))","v":""},{"$f":"IF(ISERROR($V1757),\"\",OFFSET('Smelter Look-up'!$H$4,$V1757-4,0))","v":""},{"$f":"IF(ISERROR($V1757),\"\",OFFSET('Smelter Look-up'!$I$4,$V1757-4,0))","v":""},{"$nulls":7},{"$f":"IF(ISERROR($V1757),\"\",OFFSET('Smelter Look-up'!$C$4,$V1757-4,0)&\"\")","v":""},"",{"$f":"IF(B1757=\"\",\"\",IF(ISERROR(MATCH($J1757,SorP!$B$1:$B$5661,0)),\"\",INDIRECT(\"'SorP'!$A$\"&MATCH($J1757,SorP!$B$1:$B$5661,0))))","v":""},null,{"$f":"IF(C1757=\"\",NA(),MATCH($B1757&$C1757,'Smelter Look-up'!$J:$J,0))","v":{"$error":"#N/A"}},null,0,null,null,null,""]
[null,{"$f":"IF(LEN(A1758)=0,\"\",INDEX('Smelter Look-up'!$A:$A,MATCH($A1758,'Smelter Look-up'!$E:$E,0)))","v":""},{"$f":"IF(LEN(A1758)=0,\"\",INDEX('Smelter Look-up'!$C:$C,MATCH($A1758,'Smelter Look-up'!$E:$E,0)))","v":""},null,{"$f":"IF(ISERROR($V1758),\"\",OFFSET('Smelter Look-up'!$D$4,$V1758-4,0)&\"\")","v":""},{"$f":"IF(ISERROR($V1758),\"\",OFFSET('Smelter Look-up'!$E$4,$V1758-4,0))","v":""},{"$f":"IF(C1758=$X$4,\"Enter smelter details\",IF(ISERROR($V1758),\"\",OFFSET('Smelter Look-up'!$F$4,$V1758-4,0)))","v":""},{"$f":"IF(ISERROR($V1758),\"\",OFFSET('Smelter Look-up'!$G$4,$V1758-4,0))","v":""},{"$f":"IF(ISERROR($V1758),\"\",OFFSET('Smelter Look-up'!$H$4,$V1758-4,0))","v":""},{"$f":"IF(ISERROR($V1758),\"\",OFFSET('Smelter Look-up'!$I$4,$V1758-4,0))","v":""},{"$nulls":7},{"$f":"IF(ISERROR($V1758),\"\",OFFSET('Smelter Look-up'!$C$4,$V1758-4,0)&\"\")","v":""},"",{"$f":"IF(B1758=\"\",\"\",IF(ISERROR(MATCH($J1758,SorP!$B$1:$B$5661,0)),\"\",INDIRECT(\"'SorP'!$A$\"&MATCH($J1758,SorP!$B$1:$B$5661,0))))","v":""},null,{"$f":"IF(C1758=\"\",NA(),MATCH($B1758&$C1758,'Smelter Look-up'!$J:$J,0))","v":{"$error":"#N/A"}},null,0,null,null,null,""]
[null,{"$f":"IF(LEN(A1759)=0,\"\",INDEX('Smelter Look-up'!$A:$A,MATCH($A1759,'Smelter Look-up'!$E:$E,0)))","v":""},{"$f":"IF(LEN(A1759)=0,\"\",INDEX('Smelter Look-up'!$C:$C,MATCH($A1759,'Smelter Look-up'!$E:$E,0)))","v":""},null,{"$f":"IF(ISERROR($V1759),\"\",OFFSET('Smelter Look-up'!$D$4,$V1759-4,0)&\"\")","v":""},{"$f":"IF(ISERROR($V1759),\"\",OFFSET('Smelter Look-up'!$E$4,$V1759-4,0))","v":""},{"$f":"IF(C1759=$X$4,\"Enter smelter details\",IF(ISERROR($V1759),\"\",OFFSET('Smelter Look-up'!$F$4,$V1759-4,0)))","v":""},{"$f":"IF(ISERROR($V1759),\"\",OFFSET('Smelter Look-up'!$G$4,$V1759-4,0))","v":""},{"$f":"IF(ISERROR($V1759),\"\",OFFSET('Smelter Look-up'!$H$4,$V1759-4,0))","v":""},{"$f":"IF(ISERROR($V1759),\"\",OFFSET('Smelter Look-up'!$I$4,$V1759-4,0))","v":""},{"$nulls":7},{"$f":"IF(ISERROR($V1759),\"\",OFFSET('Smelter Look-up'!$C$4,$V1759-4,0)&\"\")","v":""},"",{"$f":"IF(B1759=\"\",\"\",IF(ISERROR(MATCH($J1759,SorP!$B$1:$B$5661,0)),\"\",INDIRECT(\"'SorP'!$A$\"&MATCH($J1759,SorP!$B$1:$B$5661,0))))","v":""},null,{"$f":"IF(C1759=\"\",NA(),MATCH($B1759&$C1759,'Smelter Look-up'!$J:$J,0))","v":{"$error":"#N/A"}},null,0,null,null,null,""]
[null,{"$f":"IF(LEN(A1760)=0,\"\",INDEX('Smelter Look-up'!$A:$A,MATCH($A1760,'Smelter Look-up'!$E:$E,0)))","v":""},{"$f":"IF(LEN(A1760)=0,\"\",INDEX('Smelter Look-up'!$C:$C,MATCH($A1760,'Smelter Look-up'!$E:$E,0)))","v":""},null,{"$f":"IF(ISERROR($V1760),\"\",OFFSET('Smelter Look-up'!$D$4,$V1760-4,0)&\"\")","v":""},{"$f":"IF(ISERROR($V1760),\"\",OFFSET('Smelter Look-up'!$E$4,$V1760-4,0))","v":""},{"$f":"IF(C1760=$X$4,\"Enter smelter details\",IF(ISERROR($V1760),\"\",OFFSET('Smelter Look-up'!$F$4,$V1760-4,0)))","v":""},{"$f":"IF(ISERROR($V1760),\"\",OFFSET('Smelter Look-up'!$G$4,$V1760-4,0))","v":""},{"$f":"IF(ISERROR($V1760),\"\",OFFSET('Smelter Look-up'!$H$4,$V1760-4,0))","v":""},{"$f":"IF(ISERROR($V1760),\"\",OFFSET('Smelter Look-up'!$I$4,$V1760-4,0))","v":""},{"$nulls":7},{"$f":"IF(ISERROR($V1760),\"\",OFFSET('Smelter Look-up'!$C$4,$V1760-4,0)&\"\")","v":""},"",{"$f":"IF(B1760=\"\",\"\",IF(ISERROR(MATCH($J1760,SorP!$B$1:$B$5661,0)),\"\",INDIRECT(\"'SorP'!$A$\"&MATCH($J1760,SorP!$B$1:$B$5661,0))))","v":""},null,{"$f":"IF(C1760=\"\",NA(),MATCH($B1760&$C1760,'Smelter Look-up'!$J:$J,0))","v":{"$error":"#N/A"}},null,0,null,null,null,""]
[null,{"$f":"IF(LEN(A1761)=0,\"\",INDEX('Smelter Look-up'!$A:$A,MATCH($A1761,'Smelter Look-up'!$E:$E,0)))","v":""},{"$f":"IF(LEN(A1761)=0,\"\",INDEX('Smelter Look-up'!$C:$C,MATCH($A1761,'Smelter Look-up'!$E:$E,0)))","v":""},null,{"$f":"IF(ISERROR($V1761),\"\",OFFSET('Smelter Look-up'!$D$4,$V1761-4,0)&\"\")","v":""},{"$f":"IF(ISERROR($V1761),\"\",OFFSET('Smelter Look-up'!$E$4,$V1761-4,0))","v":""},{"$f":"IF(C1761=$X$4,\"Enter smelter details\",IF(ISERROR($V1761),\"\",OFFSET('Smelter Look-up'!$F$4,$V1761-4,0)))","v":""},{"$f":"IF(ISERROR($V1761),\"\",OFFSET('Smelter Look-up'!$G$4,$V1761-4,0))","v":""},{"$f":"IF(ISERROR($V1761),\"\",OFFSET('Smelter Look-up'!$H$4,$V1761-4,0))","v":""},{"$f":"IF(ISERROR($V1761),\"\",OFFSET('Smelter Look-up'!$I$4,$V1761-4,0))","v":""},{"$nulls":7},{"$f":"IF(ISERROR($V1761),\"\",OFFSET('Smelter Look-up'!$C$4,$V1761-4,0)&\"\")","v":""},"",{"$f":"IF(B1761=\"\",\"\",IF(ISERROR(MATCH($J1761,SorP!$B$1:$B$5661,0)),\"\",INDIRECT(\"'SorP'!$A$\"&MATCH($J1761,SorP!$B$1:$B$5661,0))))","v":""},null,{"$f":"IF(C1761=\"\",NA(),MATCH($B1761&$C1761,'Smelter Look-up'!$J:$J,0))","v":{"$error":"#N/A"}},null,0,null,null,null,""]
[null,{"$f":"IF(LEN(A1762)=0,\"\",INDEX('Smelter Look-up'!$A:$A,MATCH($A1762,'Smelter Look-up'!$E:$E,0)))","v":""},{"$f":"IF(LEN(A1762)=0,\"\",INDEX('Smelter Look-up'!$C:$C,MATCH($A1762,'Smelter Look-up'!$E:$E,0)))","v":""},null,{"$f":"IF(ISERROR($V1762),\"\",OFFSET('Smelter Look-up'!$D$4,$V1762-4,0)&\"\")","v":""},{"$f":"IF(ISERROR($V1762),\"\",OFFSET('Smelter Look-up'!$E$4,$V1762-4,0))","v":""},{"$f":"IF(C1762=$X$4,\"Enter smelter details\",IF(ISERROR($V1762),\"\",OFFSET('Smelter Look-up'!$F$4,$V1762-4,0)))","v":""},{"$f":"IF(ISERROR($V1762),\"\",OFFSET('Smelter Look-up'!$G$4,$V1762-4,0))","v":""},{"$f":"IF(ISERROR($V1762),\"\",OFFSET('Smelter Look-up'!$H$4,$V1762-4,0))","v":""},{"$f":"IF(ISERROR($V1762),\"\",OFFSET('Smelter Look-up'!$I$4,$V1762-4,0))","v":""},{"$nulls":7},{"$f":"IF(ISERROR($V1762),\"\",OFFSET('Smelter Look-up'!$C$4,$V1762-4,0)&\"\")","v":""},"",{"$f":"IF(B1762=\"\",\"\",IF(ISERROR(MATCH($J1762,SorP!$B$1:$B$5661,0)),\"\",INDIRECT(\"'SorP'!$A$\"&MATCH($J1762,SorP!$B$1:$B$5661,0))))","v":""},null,{"$f":"IF(C1762=\"\",NA(),MATCH($B1762&$C1762,'Smelter Look-up'!$J:$J,0))","v":{"$error":"#N/A"}},null,0,null,null,null,""]
[null,{"$f":"IF(LEN(A1763)=0,\"\",INDEX('Smelter Look-up'!$A:$A,MATCH($A1763,'Smelter Look-up'!$E:$E,0)))","v":""},{"$f":"IF(LEN(A1763)=0,\"\",INDEX('Smelter Look-up'!$C:$C,MATCH($A1763,'Smelter Look-up'!$E:$E,0)))","v":""},null,{"$f":"IF(ISERROR($V1763),\"\",OFFSET('Smelter Look-up'!$D$4,$V1763-4,0)&\"\")","v":""},{"$f":"IF(ISERROR($V1763),\"\",OFFSET('Smelter Look-up'!$E$4,$V1763-4,0))","v":""},{"$f":"IF(C1763=$X$4,\"Enter smelter details\",IF(ISERROR($V1763),\"\",OFFSET('Smelter Look-up'!$F$4,$V1763-4,0)))","v":""},{"$f":"IF(ISERROR($V1763),\"\",OFFSET('Smelter Look-up'!$G$4,$V1763-4,0))","v":""},{"$f":"IF(ISERROR($V1763),\"\",OFFSET('Smelter Look-up'!$H$4,$V1763-4,0))","v":""},{"$f":"IF(ISERROR($V1763),\"\",OFFSET('Smelter Look-up'!$I$4,$V1763-4,0))","v":""},{"$nulls":7},{"$f":"IF(ISERROR($V1763),\"\",OFFSET('Smelter Look-up'!$C$4,$V1763-4,0)&\"\")","v":""},"",{"$f":"IF(B1763=\"\",\"\",IF(ISERROR(MATCH($J1763,SorP!$B$1:$B$5661,0)),\"\",INDIRECT(\"'SorP'!$A$\"&MATCH($J1763,SorP!$B$1:$B$5661,0))))","v":""},null,{"$f":"IF(C1763=\"\",NA(),MATCH($B1763&$C1763,'Smelter Look-up'!$J:$J,0))","v":{"$error":"#N/A"}},null,0,null,null,null,""]
[null,{"$f":"IF(LEN(A1764)=0,\"\",INDEX('Smelter Look-up'!$A:$A,MATCH($A1764,'Smelter Look-up'!$E:$E,0)))","v":""},{"$f":"IF(LEN(A1764)=0,\"\",INDEX('Smelter Look-up'!$C:$C,MATCH($A1764,'Smelter Look-up'!$E:$E,0)))","v":""},null,{"$f":"IF(ISERROR($V1764),\"\",OFFSET('Smelter Look-up'!$D$4,$V1764-4,0)&\"\")","v":""},{"$f":"IF(ISERROR($V1764),\"\",OFFSET('Smelter Look-up'!$E$4,$V1764-4,0))","v":""},{"$f":"IF(C1764=$X$4,\"Enter smelter details\",IF(ISERROR($V1764),\"\",OFFSET('Smelter Look-up'!$F$4,$V1764-4,0)))","v":""},{"$f":"IF(ISERROR($V1764),\"\",OFFSET('Smelter Look-up'!$G$4,$V1764-4,0))","v":""},{"$f":"IF(ISERROR($V1764),\"\",OFFSET('Smelter Look-up'!$H$4,$V1764-4,0))","v":""},{"$f":"IF(ISERROR($V1764),\"\",OFFSET('Smelter Look-up'!$I$4,$V1764-4,0))","v":""},{"$nulls":7},{"$f":"IF(ISERROR($V1764),\"\",OFFSET('Smelter Look-up'!$C$4,$V1764-4,0)&\"\")","v":""},"",{"$f":"IF(B1764=\"\",\"\",IF(ISERROR(MATCH($J1764,SorP!$B$1:$B$5661,0)),\"\",INDIRECT(\"'SorP'!$A$\"&MATCH($J1764,SorP!$B$1:$B$5661,0))))","v":""},null,{"$f":"IF(C1764=\"\",NA(),MATCH($B1764&$C1764,'Smelter Look-up'!$J:$J,0))","v":{"$error":"#N/A"}},null,0,null,null,null,""]
[null,{"$f":"IF(LEN(A1765)=0,\"\",INDEX('Smelter Look-up'!$A:$A,MATCH($A1765,'Smelter Look-up'!$E:$E,0)))","v":""},{"$f":"IF(LEN(A1765)=0,\"\",INDEX('Smelter Look-up'!$C:$C,MATCH($A1765,'Smelter Look-up'!$E:$E,0)))","v":""},null,{"$f":"IF(ISERROR($V1765),\"\",OFFSET('Smelter Look-up'!$D$4,$V1765-4,0)&\"\")","v":""},{"$f":"IF(ISERROR($V1765),\"\",OFFSET('Smelter Look-up'!$E$4,$V1765-4,0))","v":""},{"$f":"IF(C1765=$X$4,\"Enter smelter details\",IF(ISERROR($V1765),\"\",OFFSET('Smelter Look-up'!$F$4,$V1765-4,0)))","v":""},{"$f":"IF(ISERROR($V1765),\"\",OFFSET('Smelter Look-up'!$G$4,$V1765-4,0))","v":""},{"$f":"IF(ISERROR($V1765),\"\",OFFSET('Smelter Look-up'!$H$4,$V1765-4,0))","v":""},{"$f":"IF(ISERROR($V1765),\"\",OFFSET('Smelter Look-up'!$I$4,$V1765-4,0))","v":""},{"$nulls":7},{"$f":"IF(ISERROR($V1765),\"\",OFFSET('Smelter Look-up'!$C$4,$V1765-4,0)&\"\")","v":""},"",{"$f":"IF(B1765=\"\",\"\",IF(ISERROR(MATCH($J1765,SorP!$B$1:$B$5661,0)),\"\",INDIRECT(\"'SorP'!$A$\"&MATCH($J1765,SorP!$B$1:$B$5661,0))))","v":""},null,{"$f":"IF(C1765=\"\",NA(),MATCH($B1765&$C1765,'Smelter Look-up'!$J:$J,0))","v":{"$error":"#N/A"}},null,0,null,null,null,""]
[null,{"$f":"IF(LEN(A1766)=0,\"\",INDEX('Smelter Look-up'!$A:$A,MATCH($A1766,'Smelter Look-up'!$E:$E,0)))","v":""},{"$f":"IF(LEN(A1766)=0,\"\",INDEX('Smelter Look-up'!$C:$C,MATCH($A1766,'Smelter Look-up'!$E:$E,0)))","v":""},null,{"$f":"IF(ISERROR($V1766),\"\",OFFSET('Smelter Look-up'!$D$4,$V1766-4,0)&\"\")","v":""},{"$f":"IF(ISERROR($V1766),\"\",OFFSET('Smelter Look-up'!$E$4,$V1766-4,0))","v":""},{"$f":"IF(C1766=$X$4,\"Enter smelter details\",IF(ISERROR($V1766),\"\",OFFSET('Smelter Look-up'!$F$4,$V1766-4,0)))","v":""},{"$f":"IF(ISERROR($V1766),\"\",OFFSET('Smelter Look-up'!$G$4,$V1766-4,0))","v":""},{"$f":"IF(ISERROR($V1766),\"\",OFFSET('Smelter Look-up'!$H$4,$V1766-4,0))","v":""},{"$f":"IF(ISERROR($V1766),\"\",OFFSET('Smelter Look-up'!$I$4,$V1766-4,0))","v":""},{"$nulls":7},{"$f":"IF(ISERROR($V1766),\"\",OFFSET('Smelter Look-up'!$C$4,$V1766-4,0)&\"\")","v":""},"",{"$f":"IF(B1766=\"\",\"\",IF(ISERROR(MATCH($J1766,SorP!$B$1:$B$5661,0)),\"\",INDIRECT(\"'SorP'!$A$\"&MATCH($J1766,SorP!$B$1:$B$5661,0))))","v":""},null,{"$f":"IF(C1766=\"\",NA(),MATCH($B1766&$C1766,'Smelter Look-up'!$J:$J,0))","v":{"$error":"#N/A"}},null,0,null,null,null,""]
[null,{"$f":"IF(LEN(A1767)=0,\"\",INDEX('Smelter Look-up'!$A:$A,MATCH($A1767,'Smelter Look-up'!$E:$E,0)))","v":""},{"$f":"IF(LEN(A1767)=0,\"\",INDEX('Smelter Look-up'!$C:$C,MATCH($A1767,'Smelter Look-up'!$E:$E,0)))","v":""},null,{"$f":"IF(ISERROR($V1767),\"\",OFFSET('Smelter Look-up'!$D$4,$V1767-4,0)&\"\")","v":""},{"$f":"IF(ISERROR($V1767),\"\",OFFSET('Smelter Look-up'!$E$4,$V1767-4,0))","v":""},{"$f":"IF(C1767=$X$4,\"Enter smelter details\",IF(ISERROR($V1767),\"\",OFFSET('Smelter Look-up'!$F$4,$V1767-4,0)))","v":""},{"$f":"IF(ISERROR($V1767),\"\",OFFSET('Smelter Look-up'!$G$4,$V1767-4,0))","v":""},{"$f":"IF(ISERROR($V1767),\"\",OFFSET('Smelter Look-up'!$H$4,$V1767-4,0))","v":""},{"$f":"IF(ISERROR($V1767),\"\",OFFSET('Smelter Look-up'!$I$4,$V1767-4,0))","v":""},{"$nulls":7},{"$f":"IF(ISERROR($V1767),\"\",OFFSET('Smelter Look-up'!$C$4,$V1767-4,0)&\"\")","v":""},"",{"$f":"IF(B1767=\"\",\"\",IF(ISERROR(MATCH($J1767,SorP!$B$1:$B$5661,0)),\"\",INDIRECT(\"'SorP'!$A$\"&MATCH($J1767,SorP!$B$1:$B$5661,0))))","v":""},null,{"$f":"IF(C1767=\"\",NA(),MATCH($B1767&$C1767,'Smelter Look-up'!$J:$J,0))","v":{"$error":"#N/A"}},null,0,null,null,null,""]
[null,{"$f":"IF(LEN(A1768)=0,\"\",INDEX('Smelter Look-up'!$A:$A,MATCH($A1768,'Smelter Look-up'!$E:$E,0)))","v":""},{"$f":"IF(LEN(A1768)=0,\"\",INDEX('Smelter Look-up'!$C:$C,MATCH($A1768,'Smelter Look-up'!$E:$E,0)))","v":""},null,{"$f":"IF(ISERROR($V1768),\"\",OFFSET('Smelter Look-up'!$D$4,$V1768-4,0)&\"\")","v":""},{"$f":"IF(ISERROR($V1768),\"\",OFFSET('Smelter Look-up'!$E$4,$V1768-4,0))","v":""},{"$f":"IF(C1768=$X$4,\"Enter smelter details\",IF(ISERROR($V1768),\"\",OFFSET('Smelter Look-up'!$F$4,$V1768-4,0)))","v":""},{"$f":"IF(ISERROR($V1768),\"\",OFFSET('Smelter Look-up'!$G$4,$V1768-4,0))","v":""},{"$f":"IF(ISERROR($V1768),\"\",OFFSET('Smelter Look-up'!$H$4,$V1768-4,0))","v":""},{"$f":"IF(ISERROR($V1768),\"\",OFFSET('Smelter Look-up'!$I$4,$V1768-4,0))","v":""},{"$nulls":7},{"$f":"IF(ISERROR($V1768),\"\",OFFSET('Smelter Look-up'!$C$4,$V1768-4,0)&\"\")","v":""},"",{"$f":"IF(B1768=\"\",\"\",IF(ISERROR(MATCH($J1768,SorP!$B$1:$B$5661,0)),\"\",INDIRECT(\"'SorP'!$A$\"&MATCH($J1768,SorP!$B$1:$B$5661,0))))","v":""},null,{"$f":"IF(C1768=\"\",NA(),MATCH($B1768&$C1768,'Smelter Look-up'!$J:$J,0))","v":{"$error":"#N/A"}},null,0,null,null,null,""]
[null,{"$f":"IF(LEN(A1769)=0,\"\",INDEX('Smelter Look-up'!$A:$A,MATCH($A1769,'Smelter Look-up'!$E:$E,0)))","v":""},{"$f":"IF(LEN(A1769)=0,\"\",INDEX('Smelter Look-up'!$C:$C,MATCH($A1769,'Smelter Look-up'!$E:$E,0)))","v":""},null,{"$f":"IF(ISERROR($V1769),\"\",OFFSET('Smelter Look-up'!$D$4,$V1769-4,0)&\"\")","v":""},{"$f":"IF(ISERROR($V1769),\"\",OFFSET('Smelter Look-up'!$E$4,$V1769-4,0))","v":""},{"$f":"IF(C1769=$X$4,\"Enter smelter details\",IF(ISERROR($V1769),\"\",OFFSET('Smelter Look-up'!$F$4,$V1769-4,0)))","v":""},{"$f":"IF(ISERROR($V1769),\"\",OFFSET('Smelter Look-up'!$G$4,$V1769-4,0))","v":""},{"$f":"IF(ISERROR($V1769),\"\",OFFSET('Smelter Look-up'!$H$4,$V1769-4,0))","v":""},{"$f":"IF(ISERROR($V1769),\"\",OFFSET('Smelter Look-up'!$I$4,$V1769-4,0))","v":""},{"$nulls":7},{"$f":"IF(ISERROR($V1769),\"\",OFFSET('Smelter Look-up'!$C$4,$V1769-4,0)&\"\")","v":""},"",{"$f":"IF(B1769=\"\",\"\",IF(ISERROR(MATCH($J1769,SorP!$B$1:$B$5661,0)),\"\",INDIRECT(\"'SorP'!$A$\"&MATCH($J1769,SorP!$B$1:$B$5661,0))))","v":""},null,{"$f":"IF(C1769=\"\",NA(),MATCH($B1769&$C1769,'Smelter Look-up'!$J:$J,0))","v":{"$error":"#N/A"}},null,0,null,null,null,""]
[null,{"$f":"IF(LEN(A1770)=0,\"\",INDEX('Smelter Look-up'!$A:$A,MATCH($A1770,'Smelter Look-up'!$E:$E,0)))","v":""},{"$f":"IF(LEN(A1770)=0,\"\",INDEX('Smelter Look-up'!$C:$C,MATCH($A1770,'Smelter Look-up'!$E:$E,0)))","v":""},null,{"$f":"IF(ISERROR($V1770),\"\",OFFSET('Smelter Look-up'!$D$4,$V1770-4,0)&\"\")","v":""},{"$f":"IF(ISERROR($V1770),\"\",OFFSET('Smelter Look-up'!$E$4,$V1770-4,0))","v":""},{"$f":"IF(C1770=$X$4,\"Enter smelter details\",IF(ISERROR($V1770),\"\",OFFSET('Smelter Look-up'!$F$4,$V1770-4,0)))","v":""},{"$f":"IF(ISERROR($V1770),\"\",OFFSET('Smelter Look-up'!$G$4,$V1770-4,0))","v":""},{"$f":"IF(ISERROR($V1770),\"\",OFFSET('Smelter Look-up'!$H$4,$V1770-4,0))","v":""},{"$f":"IF(ISERROR($V1770),\"\",OFFSET('Smelter Look-up'!$I$4,$V1770-4,0))","v":""},{"$nulls":7},{"$f":"IF(ISERROR($V1770),\"\",OFFSET('Smelter Look-up'!$C$4,$V1770-4,0)&\"\")","v":""},"",{"$f":"IF(B1770=\"\",\"\",IF(ISERROR(MATCH($J1770,SorP!$B$1:$B$5661,0)),\"\",INDIRECT(\"'SorP'!$A$\"&MATCH($J1770,SorP!$B$1:$B$5661,0))))","v":""},null,{"$f":"IF(C1770=\"\",NA(),MATCH($B1770&$C1770,'Smelter Look-up'!$J:$J,0))","v":{"$error":"#N/A"}},null,0,null,null,null,""]
[null,{"$f":"IF(LEN(A1771)=0,\"\",INDEX('Smelter Look-up'!$A:$A,MATCH($A1771,'Smelter Look-up'!$E:$E,0)))","v":""},{"$f":"IF(LEN(A1771)=0,\"\",INDEX('Smelter Look-up'!$C:$C,MATCH($A1771,'Smelter Look-up'!$E:$E,0)))","v":""},null,{"$f":"IF(ISERROR($V1771),\"\",OFFSET('Smelter Look-up'!$D$4,$V1771-4,0)&\"\")","v":""},{"$f":"IF(ISERROR($V1771),\"\",OFFSET('Smelter Look-up'!$E$4,$V1771-4,0))","v":""},{"$f":"IF(C1771=$X$4,\"Enter smelter details\",IF(ISERROR($V1771),\"\",OFFSET('Smelter Look-up'!$F$4,$V1771-4,0)))","v":""},{"$f":"IF(ISERROR($V1771),\"\",OFFSET('Smelter Look-up'!$G$4,$V1771-4,0))","v":""},{"$f":"IF(ISERROR($V1771),\"\",OFFSET('Smelter Look-up'!$H$4,$V1771-4,0))","v":""},{"$f":"IF(ISERROR($V1771),\"\",OFFSET('Smelter Look-up'!$I$4,$V1771-4,0))","v":""},{"$nulls":7},{"$f":"IF(ISERROR($V1771),\"\",OFFSET('Smelter Look-up'!$C$4,$V1771-4,0)&\"\")","v":""},"",{"$f":"IF(B1771=\"\",\"\",IF(ISERROR(MATCH($J1771,SorP!$B$1:$B$5661,0)),\"\",INDIRECT(\"'SorP'!$A$\"&MATCH($J1771,SorP!$B$1:$B$5661,0))))","v":""},null,{"$f":"IF(C1771=\"\",NA(),MATCH($B1771&$C1771,'Smelter Look-up'!$J:$J,0))","v":{"$error":"#N/A"}},null,0,null,null,null,""]
[null,{"$f":"IF(LEN(A1772)=0,\"\",INDEX('Smelter Look-up'!$A:$A,MATCH($A1772,'Smelter Look-up'!$E:$E,0)))","v":""},{"$f":"IF(LEN(A1772)=0,\"\",INDEX('Smelter Look-up'!$C:$C,MATCH($A1772,'Smelter Look-up'!$E:$E,0)))","v":""},null,{"$f":"IF(ISERROR($V1772),\"\",OFFSET('Smelter Look-up'!$D$4,$V1772-4,0)&\"\")","v":""},{"$f":"IF(ISERROR($V1772),\"\",OFFSET('Smelter Look-up'!$E$4,$V1772-4,0))","v":""},{"$f":"IF(C1772=$X$4,\"Enter smelter details\",IF(ISERROR($V1772),\"\",OFFSET('Smelter Look-up'!$F$4,$V1772-4,0)))","v":""},{"$f":"IF(ISERROR($V1772),\"\",OFFSET('Smelter Look-up'!$G$4,$V1772-4,0))","v":""},{"$f":"IF(ISERROR($V1772),\"\",OFFSET('Smelter Look-up'!$H$4,$V1772-4,0))","v":""},{"$f":"IF(ISERROR($V1772),\"\",OFFSET('Smelter Look-up'!$I$4,$V1772-4,0))","v":""},{"$nulls":7},{"$f":"IF(ISERROR($V1772),\"\",OFFSET('Smelter Look-up'!$C$4,$V1772-4,0)&\"\")","v":""},"",{"$f":"IF(B1772=\"\",\"\",IF(ISERROR(MATCH($J1772,SorP!$B$1:$B$5661,0)),\"\",INDIRECT(\"'SorP'!$A$\"&MATCH($J1772,SorP!$B$1:$B$5661,0))))","v":""},null,{"$f":"IF(C1772=\"\",NA(),MATCH($B1772&$C1772,'Smelter Look-up'!$J:$J,0))","v":{"$error":"#N/A"}},null,0,null,null,null,""]
[null,{"$f":"IF(LEN(A1773)=0,\"\",INDEX('Smelter Look-up'!$A:$A,MATCH($A1773,'Smelter Look-up'!$E:$E,0)))","v":""},{"$f":"IF(LEN(A1773)=0,\"\",INDEX('Smelter Look-up'!$C:$C,MATCH($A1773,'Smelter Look-up'!$E:$E,0)))","v":""},null,{"$f":"IF(ISERROR($V1773),\"\",OFFSET('Smelter Look-up'!$D$4,$V1773-4,0)&\"\")","v":""},{"$f":"IF(ISERROR($V1773),\"\",OFFSET('Smelter Look-up'!$E$4,$V1773-4,0))","v":""},{"$f":"IF(C1773=$X$4,\"Enter smelter details\",IF(ISERROR($V1773),\"\",OFFSET('Smelter Look-up'!$F$4,$V1773-4,0)))","v":""},{"$f":"IF(ISERROR($V1773),\"\",OFFSET('Smelter Look-up'!$G$4,$V1773-4,0))","v":""},{"$f":"IF(ISERROR($V1773),\"\",OFFSET('Smelter Look-up'!$H$4,$V1773-4,0))","v":""},{"$f":"IF(ISERROR($V1773),\"\",OFFSET('Smelter Look-up'!$I$4,$V1773-4,0))","v":""},{"$nulls":7},{"$f":"IF(ISERROR($V1773),\"\",OFFSET('Smelter Look-up'!$C$4,$V1773-4,0)&\"\")","v":""},"",{"$f":"IF(B1773=\"\",\"\",IF(ISERROR(MATCH($J1773,SorP!$B$1:$B$5661,0)),\"\",INDIRECT(\"'SorP'!$A$\"&MATCH($J1773,SorP!$B$1:$B$5661,0))))","v":""},null,{"$f":"IF(C1773=\"\",NA(),MATCH($B1773&$C1773,'Smelter Look-up'!$J:$J,0))","v":{"$error":"#N/A"}},null,0,null,null,null,""]
[null,{"$f":"IF(LEN(A1774)=0,\"\",INDEX('Smelter Look-up'!$A:$A,MATCH($A1774,'Smelter Look-up'!$E:$E,0)))","v":""},{"$f":"IF(LEN(A1774)=0,\"\",INDEX('Smelter Look-up'!$C:$C,MATCH($A1774,'Smelter Look-up'!$E:$E,0)))","v":""},null,{"$f":"IF(ISERROR($V1774),\"\",OFFSET('Smelter Look-up'!$D$4,$V1774-4,0)&\"\")","v":""},{"$f":"IF(ISERROR($V1774),\"\",OFFSET('Smelter Look-up'!$E$4,$V1774-4,0))","v":""},{"$f":"IF(C1774=$X$4,\"Enter smelter details\",IF(ISERROR($V1774),\"\",OFFSET('Smelter Look-up'!$F$4,$V1774-4,0)))","v":""},{"$f":"IF(ISERROR($V1774),\"\",OFFSET('Smelter Look-up'!$G$4,$V1774-4,0))","v":""},{"$f":"IF(ISERROR($V1774),\"\",OFFSET('Smelter Look-up'!$H$4,$V1774-4,0))","v":""},{"$f":"IF(ISERROR($V1774),\"\",OFFSET('Smelter Look-up'!$I$4,$V1774-4,0))","v":""},{"$nulls":7},{"$f":"IF(ISERROR($V1774),\"\",OFFSET('Smelter Look-up'!$C$4,$V1774-4,0)&\"\")","v":""},"",{"$f":"IF(B1774=\"\",\"\",IF(ISERROR(MATCH($J1774,SorP!$B$1:$B$5661,0)),\"\",INDIRECT(\"'SorP'!$A$\"&MATCH($J1774,SorP!$B$1:$B$5661,0))))","v":""},null,{"$f":"IF(C1774=\"\",NA(),MATCH($B1774&$C1774,'Smelter Look-up'!$J:$J,0))","v":{"$error":"#N/A"}},null,0,null,null,null,""]
[null,{"$f":"IF(LEN(A1775)=0,\"\",INDEX('Smelter Look-up'!$A:$A,MATCH($A1775,'Smelter Look-up'!$E:$E,0)))","v":""},{"$f":"IF(LEN(A1775)=0,\"\",INDEX('Smelter Look-up'!$C:$C,MATCH($A1775,'Smelter Look-up'!$E:$E,0)))","v":""},null,{"$f":"IF(ISERROR($V1775),\"\",OFFSET('Smelter Look-up'!$D$4,$V1775-4,0)&\"\")","v":""},{"$f":"IF(ISERROR($V1775),\"\",OFFSET('Smelter Look-up'!$E$4,$V1775-4,0))","v":""},{"$f":"IF(C1775=$X$4,\"Enter smelter details\",IF(ISERROR($V1775),\"\",OFFSET('Smelter Look-up'!$F$4,$V1775-4,0)))","v":""},{"$f":"IF(ISERROR($V1775),\"\",OFFSET('Smelter Look-up'!$G$4,$V1775-4,0))","v":""},{"$f":"IF(ISERROR($V1775),\"\",OFFSET('Smelter Look-up'!$H$4,$V1775-4,0))","v":""},{"$f":"IF(ISERROR($V1775),\"\",OFFSET('Smelter Look-up'!$I$4,$V1775-4,0))","v":""},{"$nulls":7},{"$f":"IF(ISERROR($V1775),\"\",OFFSET('Smelter Look-up'!$C$4,$V1775-4,0)&\"\")","v":""},"",{"$f":"IF(B1775=\"\",\"\",IF(ISERROR(MATCH($J1775,SorP!$B$1:$B$5661,0)),\"\",INDIRECT(\"'SorP'!$A$\"&MATCH($J1775,SorP!$B$1:$B$5661,0))))","v":""},null,{"$f":"IF(C1775=\"\",NA(),MATCH($B1775&$C1775,'Smelter Look-up'!$J:$J,0))","v":{"$error":"#N/A"}},null,0,null,null,null,""]
[null,{"$f":"IF(LEN(A1776)=0,\"\",INDEX('Smelter Look-up'!$A:$A,MATCH($A1776,'Smelter Look-up'!$E:$E,0)))","v":""},{"$f":"IF(LEN(A1776)=0,\"\",INDEX('Smelter Look-up'!$C:$C,MATCH($A1776,'Smelter Look-up'!$E:$E,0)))","v":""},null,{"$f":"IF(ISERROR($V1776),\"\",OFFSET('Smelter Look-up'!$D$4,$V1776-4,0)&\"\")","v":""},{"$f":"IF(ISERROR($V1776),\"\",OFFSET('Smelter Look-up'!$E$4,$V1776-4,0))","v":""},{"$f":"IF(C1776=$X$4,\"Enter smelter details\",IF(ISERROR($V1776),\"\",OFFSET('Smelter Look-up'!$F$4,$V1776-4,0)))","v":""},{"$f":"IF(ISERROR($V1776),\"\",OFFSET('Smelter Look-up'!$G$4,$V1776-4,0))","v":""},{"$f":"IF(ISERROR($V1776),\"\",OFFSET('Smelter Look-up'!$H$4,$V1776-4,0))","v":""},{"$f":"IF(ISERROR($V1776),\"\",OFFSET('Smelter Look-up'!$I$4,$V1776-4,0))","v":""},{"$nulls":7},{"$f":"IF(ISERROR($V1776),\"\",OFFSET('Smelter Look-up'!$C$4,$V1776-4,0)&\"\")","v":""},"",{"$f":"IF(B1776=\"\",\"\",IF(ISERROR(MATCH($J1776,SorP!$B$1:$B$5661,0)),\"\",INDIRECT(\"'SorP'!$A$\"&MATCH($J1776,SorP!$B$1:$B$5661,0))))","v":""},null,{"$f":"IF(C1776=\"\",NA(),MATCH($B1776&$C1776,'Smelter Look-up'!$J:$J,0))","v":{"$error":"#N/A"}},null,0,null,null,null,""]
[null,{"$f":"IF(LEN(A1777)=0,\"\",INDEX('Smelter Look-up'!$A:$A,MATCH($A1777,'Smelter Look-up'!$E:$E,0)))","v":""},{"$f":"IF(LEN(A1777)=0,\"\",INDEX('Smelter Look-up'!$C:$C,MATCH($A1777,'Smelter Look-up'!$E:$E,0)))","v":""},null,{"$f":"IF(ISERROR($V1777),\"\",OFFSET('Smelter Look-up'!$D$4,$V1777-4,0)&\"\")","v":""},{"$f":"IF(ISERROR($V1777),\"\",OFFSET('Smelter Look-up'!$E$4,$V1777-4,0))","v":""},{"$f":"IF(C1777=$X$4,\"Enter smelter details\",IF(ISERROR($V1777),\"\",OFFSET('Smelter Look-up'!$F$4,$V1777-4,0)))","v":""},{"$f":"IF(ISERROR($V1777),\"\",OFFSET('Smelter Look-up'!$G$4,$V1777-4,0))","v":""},{"$f":"IF(ISERROR($V1777),\"\",OFFSET('Smelter Look-up'!$H$4,$V1777-4,0))","v":""},{"$f":"IF(ISERROR($V1777),\"\",OFFSET('Smelter Look-up'!$I$4,$V1777-4,0))","v":""},{"$nulls":7},{"$f":"IF(ISERROR($V1777),\"\",OFFSET('Smelter Look-up'!$C$4,$V1777-4,0)&\"\")","v":""},"",{"$f":"IF(B1777=\"\",\"\",IF(ISERROR(MATCH($J1777,SorP!$B$1:$B$5661,0)),\"\",INDIRECT(\"'SorP'!$A$\"&MATCH($J1777,SorP!$B$1:$B$5661,0))))","v":""},null,{"$f":"IF(C1777=\"\",NA(),MATCH($B1777&$C1777,'Smelter Look-up'!$J:$J,0))","v":{"$error":"#N/A"}},null,0,null,null,null,""]
[null,{"$f":"IF(LEN(A1778)=0,\"\",INDEX('Smelter Look-up'!$A:$A,MATCH($A1778,'Smelter Look-up'!$E:$E,0)))","v":""},{"$f":"IF(LEN(A1778)=0,\"\",INDEX('Smelter Look-up'!$C:$C,MATCH($A1778,'Smelter Look-up'!$E:$E,0)))","v":""},null,{"$f":"IF(ISERROR($V1778),\"\",OFFSET('Smelter Look-up'!$D$4,$V1778-4,0)&\"\")","v":""},{"$f":"IF(ISERROR($V1778),\"\",OFFSET('Smelter Look-up'!$E$4,$V1778-4,0))","v":""},{"$f":"IF(C1778=$X$4,\"Enter smelter details\",IF(ISERROR($V1778),\"\",OFFSET('Smelter Look-up'!$F$4,$V1778-4,0)))","v":""},{"$f":"IF(ISERROR($V1778),\"\",OFFSET('Smelter Look-up'!$G$4,$V1778-4,0))","v":""},{"$f":"IF(ISERROR($V1778),\"\",OFFSET('Smelter Look-up'!$H$4,$V1778-4,0))","v":""},{"$f":"IF(ISERROR($V1778),\"\",OFFSET('Smelter Look-up'!$I$4,$V1778-4,0))","v":""},{"$nulls":7},{"$f":"IF(ISERROR($V1778),\"\",OFFSET('Smelter Look-up'!$C$4,$V1778-4,0)&\"\")","v":""},"",{"$f":"IF(B1778=\"\",\"\",IF(ISERROR(MATCH($J1778,SorP!$B$1:$B$5661,0)),\"\",INDIRECT(\"'SorP'!$A$\"&MATCH($J1778,SorP!$B$1:$B$5661,0))))","v":""},null,{"$f":"IF(C1778=\"\",NA(),MATCH($B1778&$C1778,'Smelter Look-up'!$J:$J,0))","v":{"$error":"#N/A"}},null,0,null,null,null,""]
[null,{"$f":"IF(LEN(A1779)=0,\"\",INDEX('Smelter Look-up'!$A:$A,MATCH($A1779,'Smelter Look-up'!$E:$E,0)))","v":""},{"$f":"IF(LEN(A1779)=0,\"\",INDEX('Smelter Look-up'!$C:$C,MATCH($A1779,'Smelter Look-up'!$E:$E,0)))","v":""},null,{"$f":"IF(ISERROR($V1779),\"\",OFFSET('Smelter Look-up'!$D$4,$V1779-4,0)&\"\")","v":""},{"$f":"IF(ISERROR($V1779),\"\",OFFSET('Smelter Look-up'!$E$4,$V1779-4,0))","v":""},{"$f":"IF(C1779=$X$4,\"Enter smelter details\",IF(ISERROR($V1779),\"\",OFFSET('Smelter Look-up'!$F$4,$V1779-4,0)))","v":""},{"$f":"IF(ISERROR($V1779),\"\",OFFSET('Smelter Look-up'!$G$4,$V1779-4,0))","v":""},{"$f":"IF(ISERROR($V1779),\"\",OFFSET('Smelter Look-up'!$H$4,$V1779-4,0))","v":""},{"$f":"IF(ISERROR($V1779),\"\",OFFSET('Smelter Look-up'!$I$4,$V1779-4,0))","v":""},{"$nulls":7},{"$f":"IF(ISERROR($V1779),\"\",OFFSET('Smelter Look-up'!$C$4,$V1779-4,0)&\"\")","v":""},"",{"$f":"IF(B1779=\"\",\"\",IF(ISERROR(MATCH($J1779,SorP!$B$1:$B$5661,0)),\"\",INDIRECT(\"'SorP'!$A$\"&MATCH($J1779,SorP!$B$1:$B$5661,0))))","v":""},null,{"$f":"IF(C1779=\"\",NA(),MATCH($B1779&$C1779,'Smelter Look-up'!$J:$J,0))","v":{"$error":"#N/A"}},null,0,null,null,null,""]
[null,{"$f":"IF(LEN(A1780)=0,\"\",INDEX('Smelter Look-up'!$A:$A,MATCH($A1780,'Smelter Look-up'!$E:$E,0)))","v":""},{"$f":"IF(LEN(A1780)=0,\"\",INDEX('Smelter Look-up'!$C:$C,MATCH($A1780,'Smelter Look-up'!$E:$E,0)))","v":""},null,{"$f":"IF(ISERROR($V1780),\"\",OFFSET('Smelter Look-up'!$D$4,$V1780-4,0)&\"\")","v":""},{"$f":"IF(ISERROR($V1780),\"\",OFFSET('Smelter Look-up'!$E$4,$V1780-4,0))","v":""},{"$f":"IF(C1780=$X$4,\"Enter smelter details\",IF(ISERROR($V1780),\"\",OFFSET('Smelter Look-up'!$F$4,$V1780-4,0)))","v":""},{"$f":"IF(ISERROR($V1780),\"\",OFFSET('Smelter Look-up'!$G$4,$V1780-4,0))","v":""},{"$f":"IF(ISERROR($V1780),\"\",OFFSET('Smelter Look-up'!$H$4,$V1780-4,0))","v":""},{"$f":"IF(ISERROR($V1780),\"\",OFFSET('Smelter Look-up'!$I$4,$V1780-4,0))","v":""},{"$nulls":7},{"$f":"IF(ISERROR($V1780),\"\",OFFSET('Smelter Look-up'!$C$4,$V1780-4,0)&\"\")","v":""},"",{"$f":"IF(B1780=\"\",\"\",IF(ISERROR(MATCH($J1780,SorP!$B$1:$B$5661,0)),\"\",INDIRECT(\"'SorP'!$A$\"&MATCH($J1780,SorP!$B$1:$B$5661,0))))","v":""},null,{"$f":"IF(C1780=\"\",NA(),MATCH($B1780&$C1780,'Smelter Look-up'!$J:$J,0))","v":{"$error":"#N/A"}},null,0,null,null,null,""]
[null,{"$f":"IF(LEN(A1781)=0,\"\",INDEX('Smelter Look-up'!$A:$A,MATCH($A1781,'Smelter Look-up'!$E:$E,0)))","v":""},{"$f":"IF(LEN(A1781)=0,\"\",INDEX('Smelter Look-up'!$C:$C,MATCH($A1781,'Smelter Look-up'!$E:$E,0)))","v":""},null,{"$f":"IF(ISERROR($V1781),\"\",OFFSET('Smelter Look-up'!$D$4,$V1781-4,0)&\"\")","v":""},{"$f":"IF(ISERROR($V1781),\"\",OFFSET('Smelter Look-up'!$E$4,$V1781-4,0))","v":""},{"$f":"IF(C1781=$X$4,\"Enter smelter details\",IF(ISERROR($V1781),\"\",OFFSET('Smelter Look-up'!$F$4,$V1781-4,0)))","v":""},{"$f":"IF(ISERROR($V1781),\"\",OFFSET('Smelter Look-up'!$G$4,$V1781-4,0))","v":""},{"$f":"IF(ISERROR($V1781),\"\",OFFSET('Smelter Look-up'!$H$4,$V1781-4,0))","v":""},{"$f":"IF(ISERROR($V1781),\"\",OFFSET('Smelter Look-up'!$I$4,$V1781-4,0))","v":""},{"$nulls":7},{"$f":"IF(ISERROR($V1781),\"\",OFFSET('Smelter Look-up'!$C$4,$V1781-4,0)&\"\")","v":""},"",{"$f":"IF(B1781=\"\",\"\",IF(ISERROR(MATCH($J1781,SorP!$B$1:$B$5661,0)),\"\",INDIRECT(\"'SorP'!$A$\"&MATCH($J1781,SorP!$B$1:$B$5661,0))))","v":""},null,{"$f":"IF(C1781=\"\",NA(),MATCH($B1781&$C1781,'Smelter Look-up'!$J:$J,0))","v":{"$error":"#N/A"}},null,0,null,null,null,""]
[null,{"$f":"IF(LEN(A1782)=0,\"\",INDEX('Smelter Look-up'!$A:$A,MATCH($A1782,'Smelter Look-up'!$E:$E,0)))","v":""},{"$f":"IF(LEN(A1782)=0,\"\",INDEX('Smelter Look-up'!$C:$C,MATCH($A1782,'Smelter Look-up'!$E:$E,0)))","v":""},null,{"$f":"IF(ISERROR($V1782),\"\",OFFSET('Smelter Look-up'!$D$4,$V1782-4,0)&\"\")","v":""},{"$f":"IF(ISERROR($V1782),\"\",OFFSET('Smelter Look-up'!$E$4,$V1782-4,0))","v":""},{"$f":"IF(C1782=$X$4,\"Enter smelter details\",IF(ISERROR($V1782),\"\",OFFSET('Smelter Look-up'!$F$4,$V1782-4,0)))","v":""},{"$f":"IF(ISERROR($V1782),\"\",OFFSET('Smelter Look-up'!$G$4,$V1782-4,0))","v":""},{"$f":"IF(ISERROR($V1782),\"\",OFFSET('Smelter Look-up'!$H$4,$V1782-4,0))","v":""},{"$f":"IF(ISERROR($V1782),\"\",OFFSET('Smelter Look-up'!$I$4,$V1782-4,0))","v":""},{"$nulls":7},{"$f":"IF(ISERROR($V1782),\"\",OFFSET('Smelter Look-up'!$C$4,$V1782-4,0)&\"\")","v":""},"",{"$f":"IF(B1782=\"\",\"\",IF(ISERROR(MATCH($J1782,SorP!$B$1:$B$5661,0)),\"\",INDIRECT(\"'SorP'!$A$\"&MATCH($J1782,SorP!$B$1:$B$5661,0))))","v":""},null,{"$f":"IF(C1782=\"\",NA(),MATCH($B1782&$C1782,'Smelter Look-up'!$J:$J,0))","v":{"$error":"#N/A"}},null,0,null,null,null,""]
[null,{"$f":"IF(LEN(A1783)=0,\"\",INDEX('Smelter Look-up'!$A:$A,MATCH($A1783,'Smelter Look-up'!$E:$E,0)))","v":""},{"$f":"IF(LEN(A1783)=0,\"\",INDEX('Smelter Look-up'!$C:$C,MATCH($A1783,'Smelter Look-up'!$E:$E,0)))","v":""},null,{"$f":"IF(ISERROR($V1783),\"\",OFFSET('Smelter Look-up'!$D$4,$V1783-4,0)&\"\")","v":""},{"$f":"IF(ISERROR($V1783),\"\",OFFSET('Smelter Look-up'!$E$4,$V1783-4,0))","v":""},{"$f":"IF(C1783=$X$4,\"Enter smelter details\",IF(ISERROR($V1783),\"\",OFFSET('Smelter Look-up'!$F$4,$V1783-4,0)))","v":""},{"$f":"IF(ISERROR($V1783),\"\",OFFSET('Smelter Look-up'!$G$4,$V1783-4,0))","v":""},{"$f":"IF(ISERROR($V1783),\"\",OFFSET('Smelter Look-up'!$H$4,$V1783-4,0))","v":""},{"$f":"IF(ISERROR($V1783),\"\",OFFSET('Smelter Look-up'!$I$4,$V1783-4,0))","v":""},{"$nulls":7},{"$f":"IF(ISERROR($V1783),\"\",OFFSET('Smelter Look-up'!$C$4,$V1783-4,0)&\"\")","v":""},"",{"$f":"IF(B1783=\"\",\"\",IF(ISERROR(MATCH($J1783,SorP!$B$1:$B$5661,0)),\"\",INDIRECT(\"'SorP'!$A$\"&MATCH($J1783,SorP!$B$1:$B$5661,0))))","v":""},null,{"$f":"IF(C1783=\"\",NA(),MATCH($B1783&$C1783,'Smelter Look-up'!$J:$J,0))","v":{"$error":"#N/A"}},null,0,null,null,null,""]
[null,{"$f":"IF(LEN(A1784)=0,\"\",INDEX('Smelter Look-up'!$A:$A,MATCH($A1784,'Smelter Look-up'!$E:$E,0)))","v":""},{"$f":"IF(LEN(A1784)=0,\"\",INDEX('Smelter Look-up'!$C:$C,MATCH($A1784,'Smelter Look-up'!$E:$E,0)))","v":""},null,{"$f":"IF(ISERROR($V1784),\"\",OFFSET('Smelter Look-up'!$D$4,$V1784-4,0)&\"\")","v":""},{"$f":"IF(ISERROR($V1784),\"\",OFFSET('Smelter Look-up'!$E$4,$V1784-4,0))","v":""},{"$f":"IF(C1784=$X$4,\"Enter smelter details\",IF(ISERROR($V1784),\"\",OFFSET('Smelter Look-up'!$F$4,$V1784-4,0)))","v":""},{"$f":"IF(ISERROR($V1784),\"\",OFFSET('Smelter Look-up'!$G$4,$V1784-4,0))","v":""},{"$f":"IF(ISERROR($V1784),\"\",OFFSET('Smelter Look-up'!$H$4,$V1784-4,0))","v":""},{"$f":"IF(ISERROR($V1784),\"\",OFFSET('Smelter Look-up'!$I$4,$V1784-4,0))","v":""},{"$nulls":7},{"$f":"IF(ISERROR($V1784),\"\",OFFSET('Smelter Look-up'!$C$4,$V1784-4,0)&\"\")","v":""},"",{"$f":"IF(B1784=\"\",\"\",IF(ISERROR(MATCH($J1784,SorP!$B$1:$B$5661,0)),\"\",INDIRECT(\"'SorP'!$A$\"&MATCH($J1784,SorP!$B$1:$B$5661,0))))","v":""},null,{"$f":"IF(C1784=\"\",NA(),MATCH($B1784&$C1784,'Smelter Look-up'!$J:$J,0))","v":{"$error":"#N/A"}},null,0,null,null,null,""]
[null,{"$f":"IF(LEN(A1785)=0,\"\",INDEX('Smelter Look-up'!$A:$A,MATCH($A1785,'Smelter Look-up'!$E:$E,0)))","v":""},{"$f":"IF(LEN(A1785)=0,\"\",INDEX('Smelter Look-up'!$C:$C,MATCH($A1785,'Smelter Look-up'!$E:$E,0)))","v":""},null,{"$f":"IF(ISERROR($V1785),\"\",OFFSET('Smelter Look-up'!$D$4,$V1785-4,0)&\"\")","v":""},{"$f":"IF(ISERROR($V1785),\"\",OFFSET('Smelter Look-up'!$E$4,$V1785-4,0))","v":""},{"$f":"IF(C1785=$X$4,\"Enter smelter details\",IF(ISERROR($V1785),\"\",OFFSET('Smelter Look-up'!$F$4,$V1785-4,0)))","v":""},{"$f":"IF(ISERROR($V1785),\"\",OFFSET('Smelter Look-up'!$G$4,$V1785-4,0))","v":""},{"$f":"IF(ISERROR($V1785),\"\",OFFSET('Smelter Look-up'!$H$4,$V1785-4,0))","v":""},{"$f":"IF(ISERROR($V1785),\"\",OFFSET('Smelter Look-up'!$I$4,$V1785-4,0))","v":""},{"$nulls":7},{"$f":"IF(ISERROR($V1785),\"\",OFFSET('Smelter Look-up'!$C$4,$V1785-4,0)&\"\")","v":""},"",{"$f":"IF(B1785=\"\",\"\",IF(ISERROR(MATCH($J1785,SorP!$B$1:$B$5661,0)),\"\",INDIRECT(\"'SorP'!$A$\"&MATCH($J1785,SorP!$B$1:$B$5661,0))))","v":""},null,{"$f":"IF(C1785=\"\",NA(),MATCH($B1785&$C1785,'Smelter Look-up'!$J:$J,0))","v":{"$error":"#N/A"}},null,0,null,null,null,""]
[null,{"$f":"IF(LEN(A1786)=0,\"\",INDEX('Smelter Look-up'!$A:$A,MATCH($A1786,'Smelter Look-up'!$E:$E,0)))","v":""},{"$f":"IF(LEN(A1786)=0,\"\",INDEX('Smelter Look-up'!$C:$C,MATCH($A1786,'Smelter Look-up'!$E:$E,0)))","v":""},null,{"$f":"IF(ISERROR($V1786),\"\",OFFSET('Smelter Look-up'!$D$4,$V1786-4,0)&\"\")","v":""},{"$f":"IF(ISERROR($V1786),\"\",OFFSET('Smelter Look-up'!$E$4,$V1786-4,0))","v":""},{"$f":"IF(C1786=$X$4,\"Enter smelter details\",IF(ISERROR($V1786),\"\",OFFSET('Smelter Look-up'!$F$4,$V1786-4,0)))","v":""},{"$f":"IF(ISERROR($V1786),\"\",OFFSET('Smelter Look-up'!$G$4,$V1786-4,0))","v":""},{"$f":"IF(ISERROR($V1786),\"\",OFFSET('Smelter Look-up'!$H$4,$V1786-4,0))","v":""},{"$f":"IF(ISERROR($V1786),\"\",OFFSET('Smelter Look-up'!$I$4,$V1786-4,0))","v":""},{"$nulls":7},{"$f":"IF(ISERROR($V1786),\"\",OFFSET('Smelter Look-up'!$C$4,$V1786-4,0)&\"\")","v":""},"",{"$f":"IF(B1786=\"\",\"\",IF(ISERROR(MATCH($J1786,SorP!$B$1:$B$5661,0)),\"\",INDIRECT(\"'SorP'!$A$\"&MATCH($J1786,SorP!$B$1:$B$5661,0))))","v":""},null,{"$f":"IF(C1786=\"\",NA(),MATCH($B1786&$C1786,'Smelter Look-up'!$J:$J,0))","v":{"$error":"#N/A"}},null,0,null,null,null,""]
[null,{"$f":"IF(LEN(A1787)=0,\"\",INDEX('Smelter Look-up'!$A:$A,MATCH($A1787,'Smelter Look-up'!$E:$E,0)))","v":""},{"$f":"IF(LEN(A1787)=0,\"\",INDEX('Smelter Look-up'!$C:$C,MATCH($A1787,'Smelter Look-up'!$E:$E,0)))","v":""},null,{"$f":"IF(ISERROR($V1787),\"\",OFFSET('Smelter Look-up'!$D$4,$V1787-4,0)&\"\")","v":""},{"$f":"IF(ISERROR($V1787),\"\",OFFSET('Smelter Look-up'!$E$4,$V1787-4,0))","v":""},{"$f":"IF(C1787=$X$4,\"Enter smelter details\",IF(ISERROR($V1787),\"\",OFFSET('Smelter Look-up'!$F$4,$V1787-4,0)))","v":""},{"$f":"IF(ISERROR($V1787),\"\",OFFSET('Smelter Look-up'!$G$4,$V1787-4,0))","v":""},{"$f":"IF(ISERROR($V1787),\"\",OFFSET('Smelter Look-up'!$H$4,$V1787-4,0))","v":""},{"$f":"IF(ISERROR($V1787),\"\",OFFSET('Smelter Look-up'!$I$4,$V1787-4,0))","v":""},{"$nulls":7},{"$f":"IF(ISERROR($V1787),\"\",OFFSET('Smelter Look-up'!$C$4,$V1787-4,0)&\"\")","v":""},"",{"$f":"IF(B1787=\"\",\"\",IF(ISERROR(MATCH($J1787,SorP!$B$1:$B$5661,0)),\"\",INDIRECT(\"'SorP'!$A$\"&MATCH($J1787,SorP!$B$1:$B$5661,0))))","v":""},null,{"$f":"IF(C1787=\"\",NA(),MATCH($B1787&$C1787,'Smelter Look-up'!$J:$J,0))","v":{"$error":"#N/A"}},null,0,null,null,null,""]
[null,{"$f":"IF(LEN(A1788)=0,\"\",INDEX('Smelter Look-up'!$A:$A,MATCH($A1788,'Smelter Look-up'!$E:$E,0)))","v":""},{"$f":"IF(LEN(A1788)=0,\"\",INDEX('Smelter Look-up'!$C:$C,MATCH($A1788,'Smelter Look-up'!$E:$E,0)))","v":""},null,{"$f":"IF(ISERROR($V1788),\"\",OFFSET('Smelter Look-up'!$D$4,$V1788-4,0)&\"\")","v":""},{"$f":"IF(ISERROR($V1788),\"\",OFFSET('Smelter Look-up'!$E$4,$V1788-4,0))","v":""},{"$f":"IF(C1788=$X$4,\"Enter smelter details\",IF(ISERROR($V1788),\"\",OFFSET('Smelter Look-up'!$F$4,$V1788-4,0)))","v":""},{"$f":"IF(ISERROR($V1788),\"\",OFFSET('Smelter Look-up'!$G$4,$V1788-4,0))","v":""},{"$f":"IF(ISERROR($V1788),\"\",OFFSET('Smelter Look-up'!$H$4,$V1788-4,0))","v":""},{"$f":"IF(ISERROR($V1788),\"\",OFFSET('Smelter Look-up'!$I$4,$V1788-4,0))","v":""},{"$nulls":7},{"$f":"IF(ISERROR($V1788),\"\",OFFSET('Smelter Look-up'!$C$4,$V1788-4,0)&\"\")","v":""},"",{"$f":"IF(B1788=\"\",\"\",IF(ISERROR(MATCH($J1788,SorP!$B$1:$B$5661,0)),\"\",INDIRECT(\"'SorP'!$A$\"&MATCH($J1788,SorP!$B$1:$B$5661,0))))","v":""},null,{"$f":"IF(C1788=\"\",NA(),MATCH($B1788&$C1788,'Smelter Look-up'!$J:$J,0))","v":{"$error":"#N/A"}},null,0,null,null,null,""]
[null,{"$f":"IF(LEN(A1789)=0,\"\",INDEX('Smelter Look-up'!$A:$A,MATCH($A1789,'Smelter Look-up'!$E:$E,0)))","v":""},{"$f":"IF(LEN(A1789)=0,\"\",INDEX('Smelter Look-up'!$C:$C,MATCH($A1789,'Smelter Look-up'!$E:$E,0)))","v":""},null,{"$f":"IF(ISERROR($V1789),\"\",OFFSET('Smelter Look-up'!$D$4,$V1789-4,0)&\"\")","v":""},{"$f":"IF(ISERROR($V1789),\"\",OFFSET('Smelter Look-up'!$E$4,$V1789-4,0))","v":""},{"$f":"IF(C1789=$X$4,\"Enter smelter details\",IF(ISERROR($V1789),\"\",OFFSET('Smelter Look-up'!$F$4,$V1789-4,0)))","v":""},{"$f":"IF(ISERROR($V1789),\"\",OFFSET('Smelter Look-up'!$G$4,$V1789-4,0))","v":""},{"$f":"IF(ISERROR($V1789),\"\",OFFSET('Smelter Look-up'!$H$4,$V1789-4,0))","v":""},{"$f":"IF(ISERROR($V1789),\"\",OFFSET('Smelter Look-up'!$I$4,$V1789-4,0))","v":""},{"$nulls":7},{"$f":"IF(ISERROR($V1789),\"\",OFFSET('Smelter Look-up'!$C$4,$V1789-4,0)&\"\")","v":""},"",{"$f":"IF(B1789=\"\",\"\",IF(ISERROR(MATCH($J1789,SorP!$B$1:$B$5661,0)),\"\",INDIRECT(\"'SorP'!$A$\"&MATCH($J1789,SorP!$B$1:$B$5661,0))))","v":""},null,{"$f":"IF(C1789=\"\",NA(),MATCH($B1789&$C1789,'Smelter Look-up'!$J:$J,0))","v":{"$error":"#N/A"}},null,0,null,null,null,""]
[null,{"$f":"IF(LEN(A1790)=0,\"\",INDEX('Smelter Look-up'!$A:$A,MATCH($A1790,'Smelter Look-up'!$E:$E,0)))","v":""},{"$f":"IF(LEN(A1790)=0,\"\",INDEX('Smelter Look-up'!$C:$C,MATCH($A1790,'Smelter Look-up'!$E:$E,0)))","v":""},null,{"$f":"IF(ISERROR($V1790),\"\",OFFSET('Smelter Look-up'!$D$4,$V1790-4,0)&\"\")","v":""},{"$f":"IF(ISERROR($V1790),\"\",OFFSET('Smelter Look-up'!$E$4,$V1790-4,0))","v":""},{"$f":"IF(C1790=$X$4,\"Enter smelter details\",IF(ISERROR($V1790),\"\",OFFSET('Smelter Look-up'!$F$4,$V1790-4,0)))","v":""},{"$f":"IF(ISERROR($V1790),\"\",OFFSET('Smelter Look-up'!$G$4,$V1790-4,0))","v":""},{"$f":"IF(ISERROR($V1790),\"\",OFFSET('Smelter Look-up'!$H$4,$V1790-4,0))","v":""},{"$f":"IF(ISERROR($V1790),\"\",OFFSET('Smelter Look-up'!$I$4,$V1790-4,0))","v":""},{"$nulls":7},{"$f":"IF(ISERROR($V1790),\"\",OFFSET('Smelter Look-up'!$C$4,$V1790-4,0)&\"\")","v":""},"",{"$f":"IF(B1790=\"\",\"\",IF(ISERROR(MATCH($J1790,SorP!$B$1:$B$5661,0)),\"\",INDIRECT(\"'SorP'!$A$\"&MATCH($J1790,SorP!$B$1:$B$5661,0))))","v":""},null,{"$f":"IF(C1790=\"\",NA(),MATCH($B1790&$C1790,'Smelter Look-up'!$J:$J,0))","v":{"$error":"#N/A"}},null,0,null,null,null,""]
[null,{"$f":"IF(LEN(A1791)=0,\"\",INDEX('Smelter Look-up'!$A:$A,MATCH($A1791,'Smelter Look-up'!$E:$E,0)))","v":""},{"$f":"IF(LEN(A1791)=0,\"\",INDEX('Smelter Look-up'!$C:$C,MATCH($A1791,'Smelter Look-up'!$E:$E,0)))","v":""},null,{"$f":"IF(ISERROR($V1791),\"\",OFFSET('Smelter Look-up'!$D$4,$V1791-4,0)&\"\")","v":""},{"$f":"IF(ISERROR($V1791),\"\",OFFSET('Smelter Look-up'!$E$4,$V1791-4,0))","v":""},{"$f":"IF(C1791=$X$4,\"Enter smelter details\",IF(ISERROR($V1791),\"\",OFFSET('Smelter Look-up'!$F$4,$V1791-4,0)))","v":""},{"$f":"IF(ISERROR($V1791),\"\",OFFSET('Smelter Look-up'!$G$4,$V1791-4,0))","v":""},{"$f":"IF(ISERROR($V1791),\"\",OFFSET('Smelter Look-up'!$H$4,$V1791-4,0))","v":""},{"$f":"IF(ISERROR($V1791),\"\",OFFSET('Smelter Look-up'!$I$4,$V1791-4,0))","v":""},{"$nulls":7},{"$f":"IF(ISERROR($V1791),\"\",OFFSET('Smelter Look-up'!$C$4,$V1791-4,0)&\"\")","v":""},"",{"$f":"IF(B1791=\"\",\"\",IF(ISERROR(MATCH($J1791,SorP!$B$1:$B$5661,0)),\"\",INDIRECT(\"'SorP'!$A$\"&MATCH($J1791,SorP!$B$1:$B$5661,0))))","v":""},null,{"$f":"IF(C1791=\"\",NA(),MATCH($B1791&$C1791,'Smelter Look-up'!$J:$J,0))","v":{"$error":"#N/A"}},null,{"$f":"IF(AND(C1791=\"Smelter not listed\",OR(LEN(D1791)=0,LEN(E1791)=0)),1,0)","v":0},null,null,null,{"$f":"B1791&C1791","v":""}]
[null,{"$f":"IF(LEN(A1792)=0,\"\",INDEX('Smelter Look-up'!$A:$A,MATCH($A1792,'Smelter Look-up'!$E:$E,0)))","v":""},{"$f":"IF(LEN(A1792)=0,\"\",INDEX('Smelter Look-up'!$C:$C,MATCH($A1792,'Smelter Look-up'!$E:$E,0)))","v":""},null,{"$f":"IF(ISERROR($V1792),\"\",OFFSET('Smelter Look-up'!$D$4,$V1792-4,0)&\"\")","v":""},{"$f":"IF(ISERROR($V1792),\"\",OFFSET('Smelter Look-up'!$E$4,$V1792-4,0))","v":""},{"$f":"IF(C1792=$X$4,\"Enter smelter details\",IF(ISERROR($V1792),\"\",OFFSET('Smelter Look-up'!$F$4,$V1792-4,0)))","v":""},{"$f":"IF(ISERROR($V1792),\"\",OFFSET('Smelter Look-up'!$G$4,$V1792-4,0))","v":""},{"$f":"IF(ISERROR($V1792),\"\",OFFSET('Smelter Look-up'!$H$4,$V1792-4,0))","v":""},{"$f":"IF(ISERROR($V1792),\"\",OFFSET('Smelter Look-up'!$I$4,$V1792-4,0))","v":""},{"$nulls":7},{"$f":"IF(ISERROR($V1792),\"\",OFFSET('Smelter Look-up'!$C$4,$V1792-4,0)&\"\")","v":""},{"$f":"IF(B1792=\"\",\"\",IF(ISERROR(MATCH($E1792,CL,0)),\"Unknown\",INDIRECT(\"'C'!$A$\"&MATCH($E1792,CL,0)+1)))","v":""},{"$f":"IF(B1792=\"\",\"\",IF(ISERROR(MATCH($J1792,SorP!$B$1:$B$5661,0)),\"\",INDIRECT(\"'SorP'!$A$\"&MATCH($J1792,SorP!$B$1:$B$5661,0))))","v":""},null,{"$f":"IF(C1792=\"\",NA(),MATCH($B1792&$C1792,'Smelter Look-up'!$J:$J,0))","v":{"$error":"#N/A"}},null,0,null,null,null,""]
[null,{"$f":"IF(LEN(A1793)=0,\"\",INDEX('Smelter Look-up'!$A:$A,MATCH($A1793,'Smelter Look-up'!$E:$E,0)))","v":""},{"$f":"IF(LEN(A1793)=0,\"\",INDEX('Smelter Look-up'!$C:$C,MATCH($A1793,'Smelter Look-up'!$E:$E,0)))","v":""},null,{"$f":"IF(ISERROR($V1793),\"\",OFFSET('Smelter Look-up'!$D$4,$V1793-4,0)&\"\")","v":""},{"$f":"IF(ISERROR($V1793),\"\",OFFSET('Smelter Look-up'!$E$4,$V1793-4,0))","v":""},{"$f":"IF(C1793=$X$4,\"Enter smelter details\",IF(ISERROR($V1793),\"\",OFFSET('Smelter Look-up'!$F$4,$V1793-4,0)))","v":""},{"$f":"IF(ISERROR($V1793),\"\",OFFSET('Smelter Look-up'!$G$4,$V1793-4,0))","v":""},{"$f":"IF(ISERROR($V1793),\"\",OFFSET('Smelter Look-up'!$H$4,$V1793-4,0))","v":""},{"$f":"IF(ISERROR($V1793),\"\",OFFSET('Smelter Look-up'!$I$4,$V1793-4,0))","v":""},{"$nulls":7},{"$f":"IF(ISERROR($V1793),\"\",OFFSET('Smelter Look-up'!$C$4,$V1793-4,0)&\"\")","v":""},"",{"$f":"IF(B1793=\"\",\"\",IF(ISERROR(MATCH($J1793,SorP!$B$1:$B$5661,0)),\"\",INDIRECT(\"'SorP'!$A$\"&MATCH($J1793,SorP!$B$1:$B$5661,0))))","v":""},null,{"$f":"IF(C1793=\"\",NA(),MATCH($B1793&$C1793,'Smelter Look-up'!$J:$J,0))","v":{"$error":"#N/A"}},null,0,null,null,null,""]
[null,{"$f":"IF(LEN(A1794)=0,\"\",INDEX('Smelter Look-up'!$A:$A,MATCH($A1794,'Smelter Look-up'!$E:$E,0)))","v":""},{"$f":"IF(LEN(A1794)=0,\"\",INDEX('Smelter Look-up'!$C:$C,MATCH($A1794,'Smelter Look-up'!$E:$E,0)))","v":""},null,{"$f":"IF(ISERROR($V1794),\"\",OFFSET('Smelter Look-up'!$D$4,$V1794-4,0)&\"\")","v":""},{"$f":"IF(ISERROR($V1794),\"\",OFFSET('Smelter Look-up'!$E$4,$V1794-4,0))","v":""},{"$f":"IF(C1794=$X$4,\"Enter smelter details\",IF(ISERROR($V1794),\"\",OFFSET('Smelter Look-up'!$F$4,$V1794-4,0)))","v":""},{"$f":"IF(ISERROR($V1794),\"\",OFFSET('Smelter Look-up'!$G$4,$V1794-4,0))","v":""},{"$f":"IF(ISERROR($V1794),\"\",OFFSET('Smelter Look-up'!$H$4,$V1794-4,0))","v":""},{"$f":"IF(ISERROR($V1794),\"\",OFFSET('Smelter Look-up'!$I$4,$V1794-4,0))","v":""},{"$nulls":7},{"$f":"IF(ISERROR($V1794),\"\",OFFSET('Smelter Look-up'!$C$4,$V1794-4,0)&\"\")","v":""},"",{"$f":"IF(B1794=\"\",\"\",IF(ISERROR(MATCH($J1794,SorP!$B$1:$B$5661,0)),\"\",INDIRECT(\"'SorP'!$A$\"&MATCH($J1794,SorP!$B$1:$B$5661,0))))","v":""},null,{"$f":"IF(C1794=\"\",NA(),MATCH($B1794&$C1794,'Smelter Look-up'!$J:$J,0))","v":{"$error":"#N/A"}},null,0,null,null,null,""]
[null,{"$f":"IF(LEN(A1795)=0,\"\",INDEX('Smelter Look-up'!$A:$A,MATCH($A1795,'Smelter Look-up'!$E:$E,0)))","v":""},{"$f":"IF(LEN(A1795)=0,\"\",INDEX('Smelter Look-up'!$C:$C,MATCH($A1795,'Smelter Look-up'!$E:$E,0)))","v":""},null,{"$f":"IF(ISERROR($V1795),\"\",OFFSET('Smelter Look-up'!$D$4,$V1795-4,0)&\"\")","v":""},{"$f":"IF(ISERROR($V1795),\"\",OFFSET('Smelter Look-up'!$E$4,$V1795-4,0))","v":""},{"$f":"IF(C1795=$X$4,\"Enter smelter details\",IF(ISERROR($V1795),\"\",OFFSET('Smelter Look-up'!$F$4,$V1795-4,0)))","v":""},{"$f":"IF(ISERROR($V1795),\"\",OFFSET('Smelter Look-up'!$G$4,$V1795-4,0))","v":""},{"$f":"IF(ISERROR($V1795),\"\",OFFSET('Smelter Look-up'!$H$4,$V1795-4,0))","v":""},{"$f":"IF(ISERROR($V1795),\"\",OFFSET('Smelter Look-up'!$I$4,$V1795-4,0))","v":""},{"$nulls":7},{"$f":"IF(ISERROR($V1795),\"\",OFFSET('Smelter Look-up'!$C$4,$V1795-4,0)&\"\")","v":""},"",{"$f":"IF(B1795=\"\",\"\",IF(ISERROR(MATCH($J1795,SorP!$B$1:$B$5661,0)),\"\",INDIRECT(\"'SorP'!$A$\"&MATCH($J1795,SorP!$B$1:$B$5661,0))))","v":""},null,{"$f":"IF(C1795=\"\",NA(),MATCH($B1795&$C1795,'Smelter Look-up'!$J:$J,0))","v":{"$error":"#N/A"}},null,0,null,null,null,""]
[null,{"$f":"IF(LEN(A1796)=0,\"\",INDEX('Smelter Look-up'!$A:$A,MATCH($A1796,'Smelter Look-up'!$E:$E,0)))","v":""},{"$f":"IF(LEN(A1796)=0,\"\",INDEX('Smelter Look-up'!$C:$C,MATCH($A1796,'Smelter Look-up'!$E:$E,0)))","v":""},null,{"$f":"IF(ISERROR($V1796),\"\",OFFSET('Smelter Look-up'!$D$4,$V1796-4,0)&\"\")","v":""},{"$f":"IF(ISERROR($V1796),\"\",OFFSET('Smelter Look-up'!$E$4,$V1796-4,0))","v":""},{"$f":"IF(C1796=$X$4,\"Enter smelter details\",IF(ISERROR($V1796),\"\",OFFSET('Smelter Look-up'!$F$4,$V1796-4,0)))","v":""},{"$f":"IF(ISERROR($V1796),\"\",OFFSET('Smelter Look-up'!$G$4,$V1796-4,0))","v":""},{"$f":"IF(ISERROR($V1796),\"\",OFFSET('Smelter Look-up'!$H$4,$V1796-4,0))","v":""},{"$f":"IF(ISERROR($V1796),\"\",OFFSET('Smelter Look-up'!$I$4,$V1796-4,0))","v":""},{"$nulls":7},{"$f":"IF(ISERROR($V1796),\"\",OFFSET('Smelter Look-up'!$C$4,$V1796-4,0)&\"\")","v":""},"",{"$f":"IF(B1796=\"\",\"\",IF(ISERROR(MATCH($J1796,SorP!$B$1:$B$5661,0)),\"\",INDIRECT(\"'SorP'!$A$\"&MATCH($J1796,SorP!$B$1:$B$5661,0))))","v":""},null,{"$f":"IF(C1796=\"\",NA(),MATCH($B1796&$C1796,'Smelter Look-up'!$J:$J,0))","v":{"$error":"#N/A"}},null,0,null,null,null,""]
[null,{"$f":"IF(LEN(A1797)=0,\"\",INDEX('Smelter Look-up'!$A:$A,MATCH($A1797,'Smelter Look-up'!$E:$E,0)))","v":""},{"$f":"IF(LEN(A1797)=0,\"\",INDEX('Smelter Look-up'!$C:$C,MATCH($A1797,'Smelter Look-up'!$E:$E,0)))","v":""},null,{"$f":"IF(ISERROR($V1797),\"\",OFFSET('Smelter Look-up'!$D$4,$V1797-4,0)&\"\")","v":""},{"$f":"IF(ISERROR($V1797),\"\",OFFSET('Smelter Look-up'!$E$4,$V1797-4,0))","v":""},{"$f":"IF(C1797=$X$4,\"Enter smelter details\",IF(ISERROR($V1797),\"\",OFFSET('Smelter Look-up'!$F$4,$V1797-4,0)))","v":""},{"$f":"IF(ISERROR($V1797),\"\",OFFSET('Smelter Look-up'!$G$4,$V1797-4,0))","v":""},{"$f":"IF(ISERROR($V1797),\"\",OFFSET('Smelter Look-up'!$H$4,$V1797-4,0))","v":""},{"$f":"IF(ISERROR($V1797),\"\",OFFSET('Smelter Look-up'!$I$4,$V1797-4,0))","v":""},{"$nulls":7},{"$f":"IF(ISERROR($V1797),\"\",OFFSET('Smelter Look-up'!$C$4,$V1797-4,0)&\"\")","v":""},"",{"$f":"IF(B1797=\"\",\"\",IF(ISERROR(MATCH($J1797,SorP!$B$1:$B$5661,0)),\"\",INDIRECT(\"'SorP'!$A$\"&MATCH($J1797,SorP!$B$1:$B$5661,0))))","v":""},null,{"$f":"IF(C1797=\"\",NA(),MATCH($B1797&$C1797,'Smelter Look-up'!$J:$J,0))","v":{"$error":"#N/A"}},null,0,null,null,null,""]
[null,{"$f":"IF(LEN(A1798)=0,\"\",INDEX('Smelter Look-up'!$A:$A,MATCH($A1798,'Smelter Look-up'!$E:$E,0)))","v":""},{"$f":"IF(LEN(A1798)=0,\"\",INDEX('Smelter Look-up'!$C:$C,MATCH($A1798,'Smelter Look-up'!$E:$E,0)))","v":""},null,{"$f":"IF(ISERROR($V1798),\"\",OFFSET('Smelter Look-up'!$D$4,$V1798-4,0)&\"\")","v":""},{"$f":"IF(ISERROR($V1798),\"\",OFFSET('Smelter Look-up'!$E$4,$V1798-4,0))","v":""},{"$f":"IF(C1798=$X$4,\"Enter smelter details\",IF(ISERROR($V1798),\"\",OFFSET('Smelter Look-up'!$F$4,$V1798-4,0)))","v":""},{"$f":"IF(ISERROR($V1798),\"\",OFFSET('Smelter Look-up'!$G$4,$V1798-4,0))","v":""},{"$f":"IF(ISERROR($V1798),\"\",OFFSET('Smelter Look-up'!$H$4,$V1798-4,0))","v":""},{"$f":"IF(ISERROR($V1798),\"\",OFFSET('Smelter Look-up'!$I$4,$V1798-4,0))","v":""},{"$nulls":7},{"$f":"IF(ISERROR($V1798),\"\",OFFSET('Smelter Look-up'!$C$4,$V1798-4,0)&\"\")","v":""},"",{"$f":"IF(B1798=\"\",\"\",IF(ISERROR(MATCH($J1798,SorP!$B$1:$B$5661,0)),\"\",INDIRECT(\"'SorP'!$A$\"&MATCH($J1798,SorP!$B$1:$B$5661,0))))","v":""},null,{"$f":"IF(C1798=\"\",NA(),MATCH($B1798&$C1798,'Smelter Look-up'!$J:$J,0))","v":{"$error":"#N/A"}},null,0,null,null,null,""]
[null,{"$f":"IF(LEN(A1799)=0,\"\",INDEX('Smelter Look-up'!$A:$A,MATCH($A1799,'Smelter Look-up'!$E:$E,0)))","v":""},{"$f":"IF(LEN(A1799)=0,\"\",INDEX('Smelter Look-up'!$C:$C,MATCH($A1799,'Smelter Look-up'!$E:$E,0)))","v":""},null,{"$f":"IF(ISERROR($V1799),\"\",OFFSET('Smelter Look-up'!$D$4,$V1799-4,0)&\"\")","v":""},{"$f":"IF(ISERROR($V1799),\"\",OFFSET('Smelter Look-up'!$E$4,$V1799-4,0))","v":""},{"$f":"IF(C1799=$X$4,\"Enter smelter details\",IF(ISERROR($V1799),\"\",OFFSET('Smelter Look-up'!$F$4,$V1799-4,0)))","v":""},{"$f":"IF(ISERROR($V1799),\"\",OFFSET('Smelter Look-up'!$G$4,$V1799-4,0))","v":""},{"$f":"IF(ISERROR($V1799),\"\",OFFSET('Smelter Look-up'!$H$4,$V1799-4,0))","v":""},{"$f":"IF(ISERROR($V1799),\"\",OFFSET('Smelter Look-up'!$I$4,$V1799-4,0))","v":""},{"$nulls":7},{"$f":"IF(ISERROR($V1799),\"\",OFFSET('Smelter Look-up'!$C$4,$V1799-4,0)&\"\")","v":""},"",{"$f":"IF(B1799=\"\",\"\",IF(ISERROR(MATCH($J1799,SorP!$B$1:$B$5661,0)),\"\",INDIRECT(\"'SorP'!$A$\"&MATCH($J1799,SorP!$B$1:$B$5661,0))))","v":""},null,{"$f":"IF(C1799=\"\",NA(),MATCH($B1799&$C1799,'Smelter Look-up'!$J:$J,0))","v":{"$error":"#N/A"}},null,0,null,null,null,""]
[null,{"$f":"IF(LEN(A1800)=0,\"\",INDEX('Smelter Look-up'!$A:$A,MATCH($A1800,'Smelter Look-up'!$E:$E,0)))","v":""},{"$f":"IF(LEN(A1800)=0,\"\",INDEX('Smelter Look-up'!$C:$C,MATCH($A1800,'Smelter Look-up'!$E:$E,0)))","v":""},null,{"$f":"IF(ISERROR($V1800),\"\",OFFSET('Smelter Look-up'!$D$4,$V1800-4,0)&\"\")","v":""},{"$f":"IF(ISERROR($V1800),\"\",OFFSET('Smelter Look-up'!$E$4,$V1800-4,0))","v":""},{"$f":"IF(C1800=$X$4,\"Enter smelter details\",IF(ISERROR($V1800),\"\",OFFSET('Smelter Look-up'!$F$4,$V1800-4,0)))","v":""},{"$f":"IF(ISERROR($V1800),\"\",OFFSET('Smelter Look-up'!$G$4,$V1800-4,0))","v":""},{"$f":"IF(ISERROR($V1800),\"\",OFFSET('Smelter Look-up'!$H$4,$V1800-4,0))","v":""},{"$f":"IF(ISERROR($V1800),\"\",OFFSET('Smelter Look-up'!$I$4,$V1800-4,0))","v":""},{"$nulls":7},{"$f":"IF(ISERROR($V1800),\"\",OFFSET('Smelter Look-up'!$C$4,$V1800-4,0)&\"\")","v":""},"",{"$f":"IF(B1800=\"\",\"\",IF(ISERROR(MATCH($J1800,SorP!$B$1:$B$5661,0)),\"\",INDIRECT(\"'SorP'!$A$\"&MATCH($J1800,SorP!$B$1:$B$5661,0))))","v":""},null,{"$f":"IF(C1800=\"\",NA(),MATCH($B1800&$C1800,'Smelter Look-up'!$J:$J,0))","v":{"$error":"#N/A"}},null,0,null,null,null,""]
[null,{"$f":"IF(LEN(A1801)=0,\"\",INDEX('Smelter Look-up'!$A:$A,MATCH($A1801,'Smelter Look-up'!$E:$E,0)))","v":""},{"$f":"IF(LEN(A1801)=0,\"\",INDEX('Smelter Look-up'!$C:$C,MATCH($A1801,'Smelter Look-up'!$E:$E,0)))","v":""},null,{"$f":"IF(ISERROR($V1801),\"\",OFFSET('Smelter Look-up'!$D$4,$V1801-4,0)&\"\")","v":""},{"$f":"IF(ISERROR($V1801),\"\",OFFSET('Smelter Look-up'!$E$4,$V1801-4,0))","v":""},{"$f":"IF(C1801=$X$4,\"Enter smelter details\",IF(ISERROR($V1801),\"\",OFFSET('Smelter Look-up'!$F$4,$V1801-4,0)))","v":""},{"$f":"IF(ISERROR($V1801),\"\",OFFSET('Smelter Look-up'!$G$4,$V1801-4,0))","v":""},{"$f":"IF(ISERROR($V1801),\"\",OFFSET('Smelter Look-up'!$H$4,$V1801-4,0))","v":""},{"$f":"IF(ISERROR($V1801),\"\",OFFSET('Smelter Look-up'!$I$4,$V1801-4,0))","v":""},{"$nulls":7},{"$f":"IF(ISERROR($V1801),\"\",OFFSET('Smelter Look-up'!$C$4,$V1801-4,0)&\"\")","v":""},"",{"$f":"IF(B1801=\"\",\"\",IF(ISERROR(MATCH($J1801,SorP!$B$1:$B$5661,0)),\"\",INDIRECT(\"'SorP'!$A$\"&MATCH($J1801,SorP!$B$1:$B$5661,0))))","v":""},null,{"$f":"IF(C1801=\"\",NA(),MATCH($B1801&$C1801,'Smelter Look-up'!$J:$J,0))","v":{"$error":"#N/A"}},null,0,null,null,null,""]
[null,{"$f":"IF(LEN(A1802)=0,\"\",INDEX('Smelter Look-up'!$A:$A,MATCH($A1802,'Smelter Look-up'!$E:$E,0)))","v":""},{"$f":"IF(LEN(A1802)=0,\"\",INDEX('Smelter Look-up'!$C:$C,MATCH($A1802,'Smelter Look-up'!$E:$E,0)))","v":""},null,{"$f":"IF(ISERROR($V1802),\"\",OFFSET('Smelter Look-up'!$D$4,$V1802-4,0)&\"\")","v":""},{"$f":"IF(ISERROR($V1802),\"\",OFFSET('Smelter Look-up'!$E$4,$V1802-4,0))","v":""},{"$f":"IF(C1802=$X$4,\"Enter smelter details\",IF(ISERROR($V1802),\"\",OFFSET('Smelter Look-up'!$F$4,$V1802-4,0)))","v":""},{"$f":"IF(ISERROR($V1802),\"\",OFFSET('Smelter Look-up'!$G$4,$V1802-4,0))","v":""},{"$f":"IF(ISERROR($V1802),\"\",OFFSET('Smelter Look-up'!$H$4,$V1802-4,0))","v":""},{"$f":"IF(ISERROR($V1802),\"\",OFFSET('Smelter Look-up'!$I$4,$V1802-4,0))","v":""},{"$nulls":7},{"$f":"IF(ISERROR($V1802),\"\",OFFSET('Smelter Look-up'!$C$4,$V1802-4,0)&\"\")","v":""},"",{"$f":"IF(B1802=\"\",\"\",IF(ISERROR(MATCH($J1802,SorP!$B$1:$B$5661,0)),\"\",INDIRECT(\"'SorP'!$A$\"&MATCH($J1802,SorP!$B$1:$B$5661,0))))","v":""},null,{"$f":"IF(C1802=\"\",NA(),MATCH($B1802&$C1802,'Smelter Look-up'!$J:$J,0))","v":{"$error":"#N/A"}},null,0,null,null,null,""]
[null,{"$f":"IF(LEN(A1803)=0,\"\",INDEX('Smelter Look-up'!$A:$A,MATCH($A1803,'Smelter Look-up'!$E:$E,0)))","v":""},{"$f":"IF(LEN(A1803)=0,\"\",INDEX('Smelter Look-up'!$C:$C,MATCH($A1803,'Smelter Look-up'!$E:$E,0)))","v":""},null,{"$f":"IF(ISERROR($V1803),\"\",OFFSET('Smelter Look-up'!$D$4,$V1803-4,0)&\"\")","v":""},{"$f":"IF(ISERROR($V1803),\"\",OFFSET('Smelter Look-up'!$E$4,$V1803-4,0))","v":""},{"$f":"IF(C1803=$X$4,\"Enter smelter details\",IF(ISERROR($V1803),\"\",OFFSET('Smelter Look-up'!$F$4,$V1803-4,0)))","v":""},{"$f":"IF(ISERROR($V1803),\"\",OFFSET('Smelter Look-up'!$G$4,$V1803-4,0))","v":""},{"$f":"IF(ISERROR($V1803),\"\",OFFSET('Smelter Look-up'!$H$4,$V1803-4,0))","v":""},{"$f":"IF(ISERROR($V1803),\"\",OFFSET('Smelter Look-up'!$I$4,$V1803-4,0))","v":""},{"$nulls":7},{"$f":"IF(ISERROR($V1803),\"\",OFFSET('Smelter Look-up'!$C$4,$V1803-4,0)&\"\")","v":""},"",{"$f":"IF(B1803=\"\",\"\",IF(ISERROR(MATCH($J1803,SorP!$B$1:$B$5661,0)),\"\",INDIRECT(\"'SorP'!$A$\"&MATCH($J1803,SorP!$B$1:$B$5661,0))))","v":""},null,{"$f":"IF(C1803=\"\",NA(),MATCH($B1803&$C1803,'Smelter Look-up'!$J:$J,0))","v":{"$error":"#N/A"}},null,0,null,null,null,""]
[null,{"$f":"IF(LEN(A1804)=0,\"\",INDEX('Smelter Look-up'!$A:$A,MATCH($A1804,'Smelter Look-up'!$E:$E,0)))","v":""},{"$f":"IF(LEN(A1804)=0,\"\",INDEX('Smelter Look-up'!$C:$C,MATCH($A1804,'Smelter Look-up'!$E:$E,0)))","v":""},null,{"$f":"IF(ISERROR($V1804),\"\",OFFSET('Smelter Look-up'!$D$4,$V1804-4,0)&\"\")","v":""},{"$f":"IF(ISERROR($V1804),\"\",OFFSET('Smelter Look-up'!$E$4,$V1804-4,0))","v":""},{"$f":"IF(C1804=$X$4,\"Enter smelter details\",IF(ISERROR($V1804),\"\",OFFSET('Smelter Look-up'!$F$4,$V1804-4,0)))","v":""},{"$f":"IF(ISERROR($V1804),\"\",OFFSET('Smelter Look-up'!$G$4,$V1804-4,0))","v":""},{"$f":"IF(ISERROR($V1804),\"\",OFFSET('Smelter Look-up'!$H$4,$V1804-4,0))","v":""},{"$f":"IF(ISERROR($V1804),\"\",OFFSET('Smelter Look-up'!$I$4,$V1804-4,0))","v":""},{"$nulls":7},{"$f":"IF(ISERROR($V1804),\"\",OFFSET('Smelter Look-up'!$C$4,$V1804-4,0)&\"\")","v":""},"",{"$f":"IF(B1804=\"\",\"\",IF(ISERROR(MATCH($J1804,SorP!$B$1:$B$5661,0)),\"\",INDIRECT(\"'SorP'!$A$\"&MATCH($J1804,SorP!$B$1:$B$5661,0))))","v":""},null,{"$f":"IF(C1804=\"\",NA(),MATCH($B1804&$C1804,'Smelter Look-up'!$J:$J,0))","v":{"$error":"#N/A"}},null,0,null,null,null,""]
[null,{"$f":"IF(LEN(A1805)=0,\"\",INDEX('Smelter Look-up'!$A:$A,MATCH($A1805,'Smelter Look-up'!$E:$E,0)))","v":""},{"$f":"IF(LEN(A1805)=0,\"\",INDEX('Smelter Look-up'!$C:$C,MATCH($A1805,'Smelter Look-up'!$E:$E,0)))","v":""},null,{"$f":"IF(ISERROR($V1805),\"\",OFFSET('Smelter Look-up'!$D$4,$V1805-4,0)&\"\")","v":""},{"$f":"IF(ISERROR($V1805),\"\",OFFSET('Smelter Look-up'!$E$4,$V1805-4,0))","v":""},{"$f":"IF(C1805=$X$4,\"Enter smelter details\",IF(ISERROR($V1805),\"\",OFFSET('Smelter Look-up'!$F$4,$V1805-4,0)))","v":""},{"$f":"IF(ISERROR($V1805),\"\",OFFSET('Smelter Look-up'!$G$4,$V1805-4,0))","v":""},{"$f":"IF(ISERROR($V1805),\"\",OFFSET('Smelter Look-up'!$H$4,$V1805-4,0))","v":""},{"$f":"IF(ISERROR($V1805),\"\",OFFSET('Smelter Look-up'!$I$4,$V1805-4,0))","v":""},{"$nulls":7},{"$f":"IF(ISERROR($V1805),\"\",OFFSET('Smelter Look-up'!$C$4,$V1805-4,0)&\"\")","v":""},"",{"$f":"IF(B1805=\"\",\"\",IF(ISERROR(MATCH($J1805,SorP!$B$1:$B$5661,0)),\"\",INDIRECT(\"'SorP'!$A$\"&MATCH($J1805,SorP!$B$1:$B$5661,0))))","v":""},null,{"$f":"IF(C1805=\"\",NA(),MATCH($B1805&$C1805,'Smelter Look-up'!$J:$J,0))","v":{"$error":"#N/A"}},null,0,null,null,null,""]
[null,{"$f":"IF(LEN(A1806)=0,\"\",INDEX('Smelter Look-up'!$A:$A,MATCH($A1806,'Smelter Look-up'!$E:$E,0)))","v":""},{"$f":"IF(LEN(A1806)=0,\"\",INDEX('Smelter Look-up'!$C:$C,MATCH($A1806,'Smelter Look-up'!$E:$E,0)))","v":""},null,{"$f":"IF(ISERROR($V1806),\"\",OFFSET('Smelter Look-up'!$D$4,$V1806-4,0)&\"\")","v":""},{"$f":"IF(ISERROR($V1806),\"\",OFFSET('Smelter Look-up'!$E$4,$V1806-4,0))","v":""},{"$f":"IF(C1806=$X$4,\"Enter smelter details\",IF(ISERROR($V1806),\"\",OFFSET('Smelter Look-up'!$F$4,$V1806-4,0)))","v":""},{"$f":"IF(ISERROR($V1806),\"\",OFFSET('Smelter Look-up'!$G$4,$V1806-4,0))","v":""},{"$f":"IF(ISERROR($V1806),\"\",OFFSET('Smelter Look-up'!$H$4,$V1806-4,0))","v":""},{"$f":"IF(ISERROR($V1806),\"\",OFFSET('Smelter Look-up'!$I$4,$V1806-4,0))","v":""},{"$nulls":7},{"$f":"IF(ISERROR($V1806),\"\",OFFSET('Smelter Look-up'!$C$4,$V1806-4,0)&\"\")","v":""},"",{"$f":"IF(B1806=\"\",\"\",IF(ISERROR(MATCH($J1806,SorP!$B$1:$B$5661,0)),\"\",INDIRECT(\"'SorP'!$A$\"&MATCH($J1806,SorP!$B$1:$B$5661,0))))","v":""},null,{"$f":"IF(C1806=\"\",NA(),MATCH($B1806&$C1806,'Smelter Look-up'!$J:$J,0))","v":{"$error":"#N/A"}},null,0,null,null,null,""]
[null,{"$f":"IF(LEN(A1807)=0,\"\",INDEX('Smelter Look-up'!$A:$A,MATCH($A1807,'Smelter Look-up'!$E:$E,0)))","v":""},{"$f":"IF(LEN(A1807)=0,\"\",INDEX('Smelter Look-up'!$C:$C,MATCH($A1807,'Smelter Look-up'!$E:$E,0)))","v":""},null,{"$f":"IF(ISERROR($V1807),\"\",OFFSET('Smelter Look-up'!$D$4,$V1807-4,0)&\"\")","v":""},{"$f":"IF(ISERROR($V1807),\"\",OFFSET('Smelter Look-up'!$E$4,$V1807-4,0))","v":""},{"$f":"IF(C1807=$X$4,\"Enter smelter details\",IF(ISERROR($V1807),\"\",OFFSET('Smelter Look-up'!$F$4,$V1807-4,0)))","v":""},{"$f":"IF(ISERROR($V1807),\"\",OFFSET('Smelter Look-up'!$G$4,$V1807-4,0))","v":""},{"$f":"IF(ISERROR($V1807),\"\",OFFSET('Smelter Look-up'!$H$4,$V1807-4,0))","v":""},{"$f":"IF(ISERROR($V1807),\"\",OFFSET('Smelter Look-up'!$I$4,$V1807-4,0))","v":""},{"$nulls":7},{"$f":"IF(ISERROR($V1807),\"\",OFFSET('Smelter Look-up'!$C$4,$V1807-4,0)&\"\")","v":""},"",{"$f":"IF(B1807=\"\",\"\",IF(ISERROR(MATCH($J1807,SorP!$B$1:$B$5661,0)),\"\",INDIRECT(\"'SorP'!$A$\"&MATCH($J1807,SorP!$B$1:$B$5661,0))))","v":""},null,{"$f":"IF(C1807=\"\",NA(),MATCH($B1807&$C1807,'Smelter Look-up'!$J:$J,0))","v":{"$error":"#N/A"}},null,0,null,null,null,""]
[null,{"$f":"IF(LEN(A1808)=0,\"\",INDEX('Smelter Look-up'!$A:$A,MATCH($A1808,'Smelter Look-up'!$E:$E,0)))","v":""},{"$f":"IF(LEN(A1808)=0,\"\",INDEX('Smelter Look-up'!$C:$C,MATCH($A1808,'Smelter Look-up'!$E:$E,0)))","v":""},null,{"$f":"IF(ISERROR($V1808),\"\",OFFSET('Smelter Look-up'!$D$4,$V1808-4,0)&\"\")","v":""},{"$f":"IF(ISERROR($V1808),\"\",OFFSET('Smelter Look-up'!$E$4,$V1808-4,0))","v":""},{"$f":"IF(C1808=$X$4,\"Enter smelter details\",IF(ISERROR($V1808),\"\",OFFSET('Smelter Look-up'!$F$4,$V1808-4,0)))","v":""},{"$f":"IF(ISERROR($V1808),\"\",OFFSET('Smelter Look-up'!$G$4,$V1808-4,0))","v":""},{"$f":"IF(ISERROR($V1808),\"\",OFFSET('Smelter Look-up'!$H$4,$V1808-4,0))","v":""},{"$f":"IF(ISERROR($V1808),\"\",OFFSET('Smelter Look-up'!$I$4,$V1808-4,0))","v":""},{"$nulls":7},{"$f":"IF(ISERROR($V1808),\"\",OFFSET('Smelter Look-up'!$C$4,$V1808-4,0)&\"\")","v":""},"",{"$f":"IF(B1808=\"\",\"\",IF(ISERROR(MATCH($J1808,SorP!$B$1:$B$5661,0)),\"\",INDIRECT(\"'SorP'!$A$\"&MATCH($J1808,SorP!$B$1:$B$5661,0))))","v":""},null,{"$f":"IF(C1808=\"\",NA(),MATCH($B1808&$C1808,'Smelter Look-up'!$J:$J,0))","v":{"$error":"#N/A"}},null,0,null,null,null,""]
[null,{"$f":"IF(LEN(A1809)=0,\"\",INDEX('Smelter Look-up'!$A:$A,MATCH($A1809,'Smelter Look-up'!$E:$E,0)))","v":""},{"$f":"IF(LEN(A1809)=0,\"\",INDEX('Smelter Look-up'!$C:$C,MATCH($A1809,'Smelter Look-up'!$E:$E,0)))","v":""},null,{"$f":"IF(ISERROR($V1809),\"\",OFFSET('Smelter Look-up'!$D$4,$V1809-4,0)&\"\")","v":""},{"$f":"IF(ISERROR($V1809),\"\",OFFSET('Smelter Look-up'!$E$4,$V1809-4,0))","v":""},{"$f":"IF(C1809=$X$4,\"Enter smelter details\",IF(ISERROR($V1809),\"\",OFFSET('Smelter Look-up'!$F$4,$V1809-4,0)))","v":""},{"$f":"IF(ISERROR($V1809),\"\",OFFSET('Smelter Look-up'!$G$4,$V1809-4,0))","v":""},{"$f":"IF(ISERROR($V1809),\"\",OFFSET('Smelter Look-up'!$H$4,$V1809-4,0))","v":""},{"$f":"IF(ISERROR($V1809),\"\",OFFSET('Smelter Look-up'!$I$4,$V1809-4,0))","v":""},{"$nulls":7},{"$f":"IF(ISERROR($V1809),\"\",OFFSET('Smelter Look-up'!$C$4,$V1809-4,0)&\"\")","v":""},"",{"$f":"IF(B1809=\"\",\"\",IF(ISERROR(MATCH($J1809,SorP!$B$1:$B$5661,0)),\"\",INDIRECT(\"'SorP'!$A$\"&MATCH($J1809,SorP!$B$1:$B$5661,0))))","v":""},null,{"$f":"IF(C1809=\"\",NA(),MATCH($B1809&$C1809,'Smelter Look-up'!$J:$J,0))","v":{"$error":"#N/A"}},null,0,null,null,null,""]
[null,{"$f":"IF(LEN(A1810)=0,\"\",INDEX('Smelter Look-up'!$A:$A,MATCH($A1810,'Smelter Look-up'!$E:$E,0)))","v":""},{"$f":"IF(LEN(A1810)=0,\"\",INDEX('Smelter Look-up'!$C:$C,MATCH($A1810,'Smelter Look-up'!$E:$E,0)))","v":""},null,{"$f":"IF(ISERROR($V1810),\"\",OFFSET('Smelter Look-up'!$D$4,$V1810-4,0)&\"\")","v":""},{"$f":"IF(ISERROR($V1810),\"\",OFFSET('Smelter Look-up'!$E$4,$V1810-4,0))","v":""},{"$f":"IF(C1810=$X$4,\"Enter smelter details\",IF(ISERROR($V1810),\"\",OFFSET('Smelter Look-up'!$F$4,$V1810-4,0)))","v":""},{"$f":"IF(ISERROR($V1810),\"\",OFFSET('Smelter Look-up'!$G$4,$V1810-4,0))","v":""},{"$f":"IF(ISERROR($V1810),\"\",OFFSET('Smelter Look-up'!$H$4,$V1810-4,0))","v":""},{"$f":"IF(ISERROR($V1810),\"\",OFFSET('Smelter Look-up'!$I$4,$V1810-4,0))","v":""},{"$nulls":7},{"$f":"IF(ISERROR($V1810),\"\",OFFSET('Smelter Look-up'!$C$4,$V1810-4,0)&\"\")","v":""},"",{"$f":"IF(B1810=\"\",\"\",IF(ISERROR(MATCH($J1810,SorP!$B$1:$B$5661,0)),\"\",INDIRECT(\"'SorP'!$A$\"&MATCH($J1810,SorP!$B$1:$B$5661,0))))","v":""},null,{"$f":"IF(C1810=\"\",NA(),MATCH($B1810&$C1810,'Smelter Look-up'!$J:$J,0))","v":{"$error":"#N/A"}},null,0,null,null,null,""]
[null,{"$f":"IF(LEN(A1811)=0,\"\",INDEX('Smelter Look-up'!$A:$A,MATCH($A1811,'Smelter Look-up'!$E:$E,0)))","v":""},{"$f":"IF(LEN(A1811)=0,\"\",INDEX('Smelter Look-up'!$C:$C,MATCH($A1811,'Smelter Look-up'!$E:$E,0)))","v":""},null,{"$f":"IF(ISERROR($V1811),\"\",OFFSET('Smelter Look-up'!$D$4,$V1811-4,0)&\"\")","v":""},{"$f":"IF(ISERROR($V1811),\"\",OFFSET('Smelter Look-up'!$E$4,$V1811-4,0))","v":""},{"$f":"IF(C1811=$X$4,\"Enter smelter details\",IF(ISERROR($V1811),\"\",OFFSET('Smelter Look-up'!$F$4,$V1811-4,0)))","v":""},{"$f":"IF(ISERROR($V1811),\"\",OFFSET('Smelter Look-up'!$G$4,$V1811-4,0))","v":""},{"$f":"IF(ISERROR($V1811),\"\",OFFSET('Smelter Look-up'!$H$4,$V1811-4,0))","v":""},{"$f":"IF(ISERROR($V1811),\"\",OFFSET('Smelter Look-up'!$I$4,$V1811-4,0))","v":""},{"$nulls":7},{"$f":"IF(ISERROR($V1811),\"\",OFFSET('Smelter Look-up'!$C$4,$V1811-4,0)&\"\")","v":""},"",{"$f":"IF(B1811=\"\",\"\",IF(ISERROR(MATCH($J1811,SorP!$B$1:$B$5661,0)),\"\",INDIRECT(\"'SorP'!$A$\"&MATCH($J1811,SorP!$B$1:$B$5661,0))))","v":""},null,{"$f":"IF(C1811=\"\",NA(),MATCH($B1811&$C1811,'Smelter Look-up'!$J:$J,0))","v":{"$error":"#N/A"}},null,0,null,null,null,""]
[null,{"$f":"IF(LEN(A1812)=0,\"\",INDEX('Smelter Look-up'!$A:$A,MATCH($A1812,'Smelter Look-up'!$E:$E,0)))","v":""},{"$f":"IF(LEN(A1812)=0,\"\",INDEX('Smelter Look-up'!$C:$C,MATCH($A1812,'Smelter Look-up'!$E:$E,0)))","v":""},null,{"$f":"IF(ISERROR($V1812),\"\",OFFSET('Smelter Look-up'!$D$4,$V1812-4,0)&\"\")","v":""},{"$f":"IF(ISERROR($V1812),\"\",OFFSET('Smelter Look-up'!$E$4,$V1812-4,0))","v":""},{"$f":"IF(C1812=$X$4,\"Enter smelter details\",IF(ISERROR($V1812),\"\",OFFSET('Smelter Look-up'!$F$4,$V1812-4,0)))","v":""},{"$f":"IF(ISERROR($V1812),\"\",OFFSET('Smelter Look-up'!$G$4,$V1812-4,0))","v":""},{"$f":"IF(ISERROR($V1812),\"\",OFFSET('Smelter Look-up'!$H$4,$V1812-4,0))","v":""},{"$f":"IF(ISERROR($V1812),\"\",OFFSET('Smelter Look-up'!$I$4,$V1812-4,0))","v":""},{"$nulls":7},{"$f":"IF(ISERROR($V1812),\"\",OFFSET('Smelter Look-up'!$C$4,$V1812-4,0)&\"\")","v":""},"",{"$f":"IF(B1812=\"\",\"\",IF(ISERROR(MATCH($J1812,SorP!$B$1:$B$5661,0)),\"\",INDIRECT(\"'SorP'!$A$\"&MATCH($J1812,SorP!$B$1:$B$5661,0))))","v":""},null,{"$f":"IF(C1812=\"\",NA(),MATCH($B1812&$C1812,'Smelter Look-up'!$J:$J,0))","v":{"$error":"#N/A"}},null,0,null,null,null,""]
[null,{"$f":"IF(LEN(A1813)=0,\"\",INDEX('Smelter Look-up'!$A:$A,MATCH($A1813,'Smelter Look-up'!$E:$E,0)))","v":""},{"$f":"IF(LEN(A1813)=0,\"\",INDEX('Smelter Look-up'!$C:$C,MATCH($A1813,'Smelter Look-up'!$E:$E,0)))","v":""},null,{"$f":"IF(ISERROR($V1813),\"\",OFFSET('Smelter Look-up'!$D$4,$V1813-4,0)&\"\")","v":""},{"$f":"IF(ISERROR($V1813),\"\",OFFSET('Smelter Look-up'!$E$4,$V1813-4,0))","v":""},{"$f":"IF(C1813=$X$4,\"Enter smelter details\",IF(ISERROR($V1813),\"\",OFFSET('Smelter Look-up'!$F$4,$V1813-4,0)))","v":""},{"$f":"IF(ISERROR($V1813),\"\",OFFSET('Smelter Look-up'!$G$4,$V1813-4,0))","v":""},{"$f":"IF(ISERROR($V1813),\"\",OFFSET('Smelter Look-up'!$H$4,$V1813-4,0))","v":""},{"$f":"IF(ISERROR($V1813),\"\",OFFSET('Smelter Look-up'!$I$4,$V1813-4,0))","v":""},{"$nulls":7},{"$f":"IF(ISERROR($V1813),\"\",OFFSET('Smelter Look-up'!$C$4,$V1813-4,0)&\"\")","v":""},"",{"$f":"IF(B1813=\"\",\"\",IF(ISERROR(MATCH($J1813,SorP!$B$1:$B$5661,0)),\"\",INDIRECT(\"'SorP'!$A$\"&MATCH($J1813,SorP!$B$1:$B$5661,0))))","v":""},null,{"$f":"IF(C1813=\"\",NA(),MATCH($B1813&$C1813,'Smelter Look-up'!$J:$J,0))","v":{"$error":"#N/A"}},null,0,null,null,null,""]
[null,{"$f":"IF(LEN(A1814)=0,\"\",INDEX('Smelter Look-up'!$A:$A,MATCH($A1814,'Smelter Look-up'!$E:$E,0)))","v":""},{"$f":"IF(LEN(A1814)=0,\"\",INDEX('Smelter Look-up'!$C:$C,MATCH($A1814,'Smelter Look-up'!$E:$E,0)))","v":""},null,{"$f":"IF(ISERROR($V1814),\"\",OFFSET('Smelter Look-up'!$D$4,$V1814-4,0)&\"\")","v":""},{"$f":"IF(ISERROR($V1814),\"\",OFFSET('Smelter Look-up'!$E$4,$V1814-4,0))","v":""},{"$f":"IF(C1814=$X$4,\"Enter smelter details\",IF(ISERROR($V1814),\"\",OFFSET('Smelter Look-up'!$F$4,$V1814-4,0)))","v":""},{"$f":"IF(ISERROR($V1814),\"\",OFFSET('Smelter Look-up'!$G$4,$V1814-4,0))","v":""},{"$f":"IF(ISERROR($V1814),\"\",OFFSET('Smelter Look-up'!$H$4,$V1814-4,0))","v":""},{"$f":"IF(ISERROR($V1814),\"\",OFFSET('Smelter Look-up'!$I$4,$V1814-4,0))","v":""},{"$nulls":7},{"$f":"IF(ISERROR($V1814),\"\",OFFSET('Smelter Look-up'!$C$4,$V1814-4,0)&\"\")","v":""},"",{"$f":"IF(B1814=\"\",\"\",IF(ISERROR(MATCH($J1814,SorP!$B$1:$B$5661,0)),\"\",INDIRECT(\"'SorP'!$A$\"&MATCH($J1814,SorP!$B$1:$B$5661,0))))","v":""},null,{"$f":"IF(C1814=\"\",NA(),MATCH($B1814&$C1814,'Smelter Look-up'!$J:$J,0))","v":{"$error":"#N/A"}},null,0,null,null,null,""]
[null,{"$f":"IF(LEN(A1815)=0,\"\",INDEX('Smelter Look-up'!$A:$A,MATCH($A1815,'Smelter Look-up'!$E:$E,0)))","v":""},{"$f":"IF(LEN(A1815)=0,\"\",INDEX('Smelter Look-up'!$C:$C,MATCH($A1815,'Smelter Look-up'!$E:$E,0)))","v":""},null,{"$f":"IF(ISERROR($V1815),\"\",OFFSET('Smelter Look-up'!$D$4,$V1815-4,0)&\"\")","v":""},{"$f":"IF(ISERROR($V1815),\"\",OFFSET('Smelter Look-up'!$E$4,$V1815-4,0))","v":""},{"$f":"IF(C1815=$X$4,\"Enter smelter details\",IF(ISERROR($V1815),\"\",OFFSET('Smelter Look-up'!$F$4,$V1815-4,0)))","v":""},{"$f":"IF(ISERROR($V1815),\"\",OFFSET('Smelter Look-up'!$G$4,$V1815-4,0))","v":""},{"$f":"IF(ISERROR($V1815),\"\",OFFSET('Smelter Look-up'!$H$4,$V1815-4,0))","v":""},{"$f":"IF(ISERROR($V1815),\"\",OFFSET('Smelter Look-up'!$I$4,$V1815-4,0))","v":""},{"$nulls":7},{"$f":"IF(ISERROR($V1815),\"\",OFFSET('Smelter Look-up'!$C$4,$V1815-4,0)&\"\")","v":""},"",{"$f":"IF(B1815=\"\",\"\",IF(ISERROR(MATCH($J1815,SorP!$B$1:$B$5661,0)),\"\",INDIRECT(\"'SorP'!$A$\"&MATCH($J1815,SorP!$B$1:$B$5661,0))))","v":""},null,{"$f":"IF(C1815=\"\",NA(),MATCH($B1815&$C1815,'Smelter Look-up'!$J:$J,0))","v":{"$error":"#N/A"}},null,0,null,null,null,""]
[null,{"$f":"IF(LEN(A1816)=0,\"\",INDEX('Smelter Look-up'!$A:$A,MATCH($A1816,'Smelter Look-up'!$E:$E,0)))","v":""},{"$f":"IF(LEN(A1816)=0,\"\",INDEX('Smelter Look-up'!$C:$C,MATCH($A1816,'Smelter Look-up'!$E:$E,0)))","v":""},null,{"$f":"IF(ISERROR($V1816),\"\",OFFSET('Smelter Look-up'!$D$4,$V1816-4,0)&\"\")","v":""},{"$f":"IF(ISERROR($V1816),\"\",OFFSET('Smelter Look-up'!$E$4,$V1816-4,0))","v":""},{"$f":"IF(C1816=$X$4,\"Enter smelter details\",IF(ISERROR($V1816),\"\",OFFSET('Smelter Look-up'!$F$4,$V1816-4,0)))","v":""},{"$f":"IF(ISERROR($V1816),\"\",OFFSET('Smelter Look-up'!$G$4,$V1816-4,0))","v":""},{"$f":"IF(ISERROR($V1816),\"\",OFFSET('Smelter Look-up'!$H$4,$V1816-4,0))","v":""},{"$f":"IF(ISERROR($V1816),\"\",OFFSET('Smelter Look-up'!$I$4,$V1816-4,0))","v":""},{"$nulls":7},{"$f":"IF(ISERROR($V1816),\"\",OFFSET('Smelter Look-up'!$C$4,$V1816-4,0)&\"\")","v":""},"",{"$f":"IF(B1816=\"\",\"\",IF(ISERROR(MATCH($J1816,SorP!$B$1:$B$5661,0)),\"\",INDIRECT(\"'SorP'!$A$\"&MATCH($J1816,SorP!$B$1:$B$5661,0))))","v":""},null,{"$f":"IF(C1816=\"\",NA(),MATCH($B1816&$C1816,'Smelter Look-up'!$J:$J,0))","v":{"$error":"#N/A"}},null,0,null,null,null,""]
[null,{"$f":"IF(LEN(A1817)=0,\"\",INDEX('Smelter Look-up'!$A:$A,MATCH($A1817,'Smelter Look-up'!$E:$E,0)))","v":""},{"$f":"IF(LEN(A1817)=0,\"\",INDEX('Smelter Look-up'!$C:$C,MATCH($A1817,'Smelter Look-up'!$E:$E,0)))","v":""},null,{"$f":"IF(ISERROR($V1817),\"\",OFFSET('Smelter Look-up'!$D$4,$V1817-4,0)&\"\")","v":""},{"$f":"IF(ISERROR($V1817),\"\",OFFSET('Smelter Look-up'!$E$4,$V1817-4,0))","v":""},{"$f":"IF(C1817=$X$4,\"Enter smelter details\",IF(ISERROR($V1817),\"\",OFFSET('Smelter Look-up'!$F$4,$V1817-4,0)))","v":""},{"$f":"IF(ISERROR($V1817),\"\",OFFSET('Smelter Look-up'!$G$4,$V1817-4,0))","v":""},{"$f":"IF(ISERROR($V1817),\"\",OFFSET('Smelter Look-up'!$H$4,$V1817-4,0))","v":""},{"$f":"IF(ISERROR($V1817),\"\",OFFSET('Smelter Look-up'!$I$4,$V1817-4,0))","v":""},{"$nulls":7},{"$f":"IF(ISERROR($V1817),\"\",OFFSET('Smelter Look-up'!$C$4,$V1817-4,0)&\"\")","v":""},"",{"$f":"IF(B1817=\"\",\"\",IF(ISERROR(MATCH($J1817,SorP!$B$1:$B$5661,0)),\"\",INDIRECT(\"'SorP'!$A$\"&MATCH($J1817,SorP!$B$1:$B$5661,0))))","v":""},null,{"$f":"IF(C1817=\"\",NA(),MATCH($B1817&$C1817,'Smelter Look-up'!$J:$J,0))","v":{"$error":"#N/A"}},null,0,null,null,null,""]
[null,{"$f":"IF(LEN(A1818)=0,\"\",INDEX('Smelter Look-up'!$A:$A,MATCH($A1818,'Smelter Look-up'!$E:$E,0)))","v":""},{"$f":"IF(LEN(A1818)=0,\"\",INDEX('Smelter Look-up'!$C:$C,MATCH($A1818,'Smelter Look-up'!$E:$E,0)))","v":""},null,{"$f":"IF(ISERROR($V1818),\"\",OFFSET('Smelter Look-up'!$D$4,$V1818-4,0)&\"\")","v":""},{"$f":"IF(ISERROR($V1818),\"\",OFFSET('Smelter Look-up'!$E$4,$V1818-4,0))","v":""},{"$f":"IF(C1818=$X$4,\"Enter smelter details\",IF(ISERROR($V1818),\"\",OFFSET('Smelter Look-up'!$F$4,$V1818-4,0)))","v":""},{"$f":"IF(ISERROR($V1818),\"\",OFFSET('Smelter Look-up'!$G$4,$V1818-4,0))","v":""},{"$f":"IF(ISERROR($V1818),\"\",OFFSET('Smelter Look-up'!$H$4,$V1818-4,0))","v":""},{"$f":"IF(ISERROR($V1818),\"\",OFFSET('Smelter Look-up'!$I$4,$V1818-4,0))","v":""},{"$nulls":7},{"$f":"IF(ISERROR($V1818),\"\",OFFSET('Smelter Look-up'!$C$4,$V1818-4,0)&\"\")","v":""},"",{"$f":"IF(B1818=\"\",\"\",IF(ISERROR(MATCH($J1818,SorP!$B$1:$B$5661,0)),\"\",INDIRECT(\"'SorP'!$A$\"&MATCH($J1818,SorP!$B$1:$B$5661,0))))","v":""},null,{"$f":"IF(C1818=\"\",NA(),MATCH($B1818&$C1818,'Smelter Look-up'!$J:$J,0))","v":{"$error":"#N/A"}},null,0,null,null,null,""]
[null,{"$f":"IF(LEN(A1819)=0,\"\",INDEX('Smelter Look-up'!$A:$A,MATCH($A1819,'Smelter Look-up'!$E:$E,0)))","v":""},{"$f":"IF(LEN(A1819)=0,\"\",INDEX('Smelter Look-up'!$C:$C,MATCH($A1819,'Smelter Look-up'!$E:$E,0)))","v":""},null,{"$f":"IF(ISERROR($V1819),\"\",OFFSET('Smelter Look-up'!$D$4,$V1819-4,0)&\"\")","v":""},{"$f":"IF(ISERROR($V1819),\"\",OFFSET('Smelter Look-up'!$E$4,$V1819-4,0))","v":""},{"$f":"IF(C1819=$X$4,\"Enter smelter details\",IF(ISERROR($V1819),\"\",OFFSET('Smelter Look-up'!$F$4,$V1819-4,0)))","v":""},{"$f":"IF(ISERROR($V1819),\"\",OFFSET('Smelter Look-up'!$G$4,$V1819-4,0))","v":""},{"$f":"IF(ISERROR($V1819),\"\",OFFSET('Smelter Look-up'!$H$4,$V1819-4,0))","v":""},{"$f":"IF(ISERROR($V1819),\"\",OFFSET('Smelter Look-up'!$I$4,$V1819-4,0))","v":""},{"$nulls":7},{"$f":"IF(ISERROR($V1819),\"\",OFFSET('Smelter Look-up'!$C$4,$V1819-4,0)&\"\")","v":""},"",{"$f":"IF(B1819=\"\",\"\",IF(ISERROR(MATCH($J1819,SorP!$B$1:$B$5661,0)),\"\",INDIRECT(\"'SorP'!$A$\"&MATCH($J1819,SorP!$B$1:$B$5661,0))))","v":""},null,{"$f":"IF(C1819=\"\",NA(),MATCH($B1819&$C1819,'Smelter Look-up'!$J:$J,0))","v":{"$error":"#N/A"}},null,0,null,null,null,""]
[null,{"$f":"IF(LEN(A1820)=0,\"\",INDEX('Smelter Look-up'!$A:$A,MATCH($A1820,'Smelter Look-up'!$E:$E,0)))","v":""},{"$f":"IF(LEN(A1820)=0,\"\",INDEX('Smelter Look-up'!$C:$C,MATCH($A1820,'Smelter Look-up'!$E:$E,0)))","v":""},null,{"$f":"IF(ISERROR($V1820),\"\",OFFSET('Smelter Look-up'!$D$4,$V1820-4,0)&\"\")","v":""},{"$f":"IF(ISERROR($V1820),\"\",OFFSET('Smelter Look-up'!$E$4,$V1820-4,0))","v":""},{"$f":"IF(C1820=$X$4,\"Enter smelter details\",IF(ISERROR($V1820),\"\",OFFSET('Smelter Look-up'!$F$4,$V1820-4,0)))","v":""},{"$f":"IF(ISERROR($V1820),\"\",OFFSET('Smelter Look-up'!$G$4,$V1820-4,0))","v":""},{"$f":"IF(ISERROR($V1820),\"\",OFFSET('Smelter Look-up'!$H$4,$V1820-4,0))","v":""},{"$f":"IF(ISERROR($V1820),\"\",OFFSET('Smelter Look-up'!$I$4,$V1820-4,0))","v":""},{"$nulls":7},{"$f":"IF(ISERROR($V1820),\"\",OFFSET('Smelter Look-up'!$C$4,$V1820-4,0)&\"\")","v":""},"",{"$f":"IF(B1820=\"\",\"\",IF(ISERROR(MATCH($J1820,SorP!$B$1:$B$5661,0)),\"\",INDIRECT(\"'SorP'!$A$\"&MATCH($J1820,SorP!$B$1:$B$5661,0))))","v":""},null,{"$f":"IF(C1820=\"\",NA(),MATCH($B1820&$C1820,'Smelter Look-up'!$J:$J,0))","v":{"$error":"#N/A"}},null,0,null,null,null,""]
[null,{"$f":"IF(LEN(A1821)=0,\"\",INDEX('Smelter Look-up'!$A:$A,MATCH($A1821,'Smelter Look-up'!$E:$E,0)))","v":""},{"$f":"IF(LEN(A1821)=0,\"\",INDEX('Smelter Look-up'!$C:$C,MATCH($A1821,'Smelter Look-up'!$E:$E,0)))","v":""},null,{"$f":"IF(ISERROR($V1821),\"\",OFFSET('Smelter Look-up'!$D$4,$V1821-4,0)&\"\")","v":""},{"$f":"IF(ISERROR($V1821),\"\",OFFSET('Smelter Look-up'!$E$4,$V1821-4,0))","v":""},{"$f":"IF(C1821=$X$4,\"Enter smelter details\",IF(ISERROR($V1821),\"\",OFFSET('Smelter Look-up'!$F$4,$V1821-4,0)))","v":""},{"$f":"IF(ISERROR($V1821),\"\",OFFSET('Smelter Look-up'!$G$4,$V1821-4,0))","v":""},{"$f":"IF(ISERROR($V1821),\"\",OFFSET('Smelter Look-up'!$H$4,$V1821-4,0))","v":""},{"$f":"IF(ISERROR($V1821),\"\",OFFSET('Smelter Look-up'!$I$4,$V1821-4,0))","v":""},{"$nulls":7},{"$f":"IF(ISERROR($V1821),\"\",OFFSET('Smelter Look-up'!$C$4,$V1821-4,0)&\"\")","v":""},"",{"$f":"IF(B1821=\"\",\"\",IF(ISERROR(MATCH($J1821,SorP!$B$1:$B$5661,0)),\"\",INDIRECT(\"'SorP'!$A$\"&MATCH($J1821,SorP!$B$1:$B$5661,0))))","v":""},null,{"$f":"IF(C1821=\"\",NA(),MATCH($B1821&$C1821,'Smelter Look-up'!$J:$J,0))","v":{"$error":"#N/A"}},null,0,null,null,null,""]
[null,{"$f":"IF(LEN(A1822)=0,\"\",INDEX('Smelter Look-up'!$A:$A,MATCH($A1822,'Smelter Look-up'!$E:$E,0)))","v":""},{"$f":"IF(LEN(A1822)=0,\"\",INDEX('Smelter Look-up'!$C:$C,MATCH($A1822,'Smelter Look-up'!$E:$E,0)))","v":""},null,{"$f":"IF(ISERROR($V1822),\"\",OFFSET('Smelter Look-up'!$D$4,$V1822-4,0)&\"\")","v":""},{"$f":"IF(ISERROR($V1822),\"\",OFFSET('Smelter Look-up'!$E$4,$V1822-4,0))","v":""},{"$f":"IF(C1822=$X$4,\"Enter smelter details\",IF(ISERROR($V1822),\"\",OFFSET('Smelter Look-up'!$F$4,$V1822-4,0)))","v":""},{"$f":"IF(ISERROR($V1822),\"\",OFFSET('Smelter Look-up'!$G$4,$V1822-4,0))","v":""},{"$f":"IF(ISERROR($V1822),\"\",OFFSET('Smelter Look-up'!$H$4,$V1822-4,0))","v":""},{"$f":"IF(ISERROR($V1822),\"\",OFFSET('Smelter Look-up'!$I$4,$V1822-4,0))","v":""},{"$nulls":7},{"$f":"IF(ISERROR($V1822),\"\",OFFSET('Smelter Look-up'!$C$4,$V1822-4,0)&\"\")","v":""},"",{"$f":"IF(B1822=\"\",\"\",IF(ISERROR(MATCH($J1822,SorP!$B$1:$B$5661,0)),\"\",INDIRECT(\"'SorP'!$A$\"&MATCH($J1822,SorP!$B$1:$B$5661,0))))","v":""},null,{"$f":"IF(C1822=\"\",NA(),MATCH($B1822&$C1822,'Smelter Look-up'!$J:$J,0))","v":{"$error":"#N/A"}},null,0,null,null,null,""]
[null,{"$f":"IF(LEN(A1823)=0,\"\",INDEX('Smelter Look-up'!$A:$A,MATCH($A1823,'Smelter Look-up'!$E:$E,0)))","v":""},{"$f":"IF(LEN(A1823)=0,\"\",INDEX('Smelter Look-up'!$C:$C,MATCH($A1823,'Smelter Look-up'!$E:$E,0)))","v":""},null,{"$f":"IF(ISERROR($V1823),\"\",OFFSET('Smelter Look-up'!$D$4,$V1823-4,0)&\"\")","v":""},{"$f":"IF(ISERROR($V1823),\"\",OFFSET('Smelter Look-up'!$E$4,$V1823-4,0))","v":""},{"$f":"IF(C1823=$X$4,\"Enter smelter details\",IF(ISERROR($V1823),\"\",OFFSET('Smelter Look-up'!$F$4,$V1823-4,0)))","v":""},{"$f":"IF(ISERROR($V1823),\"\",OFFSET('Smelter Look-up'!$G$4,$V1823-4,0))","v":""},{"$f":"IF(ISERROR($V1823),\"\",OFFSET('Smelter Look-up'!$H$4,$V1823-4,0))","v":""},{"$f":"IF(ISERROR($V1823),\"\",OFFSET('Smelter Look-up'!$I$4,$V1823-4,0))","v":""},{"$nulls":7},{"$f":"IF(ISERROR($V1823),\"\",OFFSET('Smelter Look-up'!$C$4,$V1823-4,0)&\"\")","v":""},"",{"$f":"IF(B1823=\"\",\"\",IF(ISERROR(MATCH($J1823,SorP!$B$1:$B$5661,0)),\"\",INDIRECT(\"'SorP'!$A$\"&MATCH($J1823,SorP!$B$1:$B$5661,0))))","v":""},null,{"$f":"IF(C1823=\"\",NA(),MATCH($B1823&$C1823,'Smelter Look-up'!$J:$J,0))","v":{"$error":"#N/A"}},null,0,null,null,null,""]
[null,{"$f":"IF(LEN(A1824)=0,\"\",INDEX('Smelter Look-up'!$A:$A,MATCH($A1824,'Smelter Look-up'!$E:$E,0)))","v":""},{"$f":"IF(LEN(A1824)=0,\"\",INDEX('Smelter Look-up'!$C:$C,MATCH($A1824,'Smelter Look-up'!$E:$E,0)))","v":""},null,{"$f":"IF(ISERROR($V1824),\"\",OFFSET('Smelter Look-up'!$D$4,$V1824-4,0)&\"\")","v":""},{"$f":"IF(ISERROR($V1824),\"\",OFFSET('Smelter Look-up'!$E$4,$V1824-4,0))","v":""},{"$f":"IF(C1824=$X$4,\"Enter smelter details\",IF(ISERROR($V1824),\"\",OFFSET('Smelter Look-up'!$F$4,$V1824-4,0)))","v":""},{"$f":"IF(ISERROR($V1824),\"\",OFFSET('Smelter Look-up'!$G$4,$V1824-4,0))","v":""},{"$f":"IF(ISERROR($V1824),\"\",OFFSET('Smelter Look-up'!$H$4,$V1824-4,0))","v":""},{"$f":"IF(ISERROR($V1824),\"\",OFFSET('Smelter Look-up'!$I$4,$V1824-4,0))","v":""},{"$nulls":7},{"$f":"IF(ISERROR($V1824),\"\",OFFSET('Smelter Look-up'!$C$4,$V1824-4,0)&\"\")","v":""},"",{"$f":"IF(B1824=\"\",\"\",IF(ISERROR(MATCH($J1824,SorP!$B$1:$B$5661,0)),\"\",INDIRECT(\"'SorP'!$A$\"&MATCH($J1824,SorP!$B$1:$B$5661,0))))","v":""},null,{"$f":"IF(C1824=\"\",NA(),MATCH($B1824&$C1824,'Smelter Look-up'!$J:$J,0))","v":{"$error":"#N/A"}},null,0,null,null,null,""]
[null,{"$f":"IF(LEN(A1825)=0,\"\",INDEX('Smelter Look-up'!$A:$A,MATCH($A1825,'Smelter Look-up'!$E:$E,0)))","v":""},{"$f":"IF(LEN(A1825)=0,\"\",INDEX('Smelter Look-up'!$C:$C,MATCH($A1825,'Smelter Look-up'!$E:$E,0)))","v":""},null,{"$f":"IF(ISERROR($V1825),\"\",OFFSET('Smelter Look-up'!$D$4,$V1825-4,0)&\"\")","v":""},{"$f":"IF(ISERROR($V1825),\"\",OFFSET('Smelter Look-up'!$E$4,$V1825-4,0))","v":""},{"$f":"IF(C1825=$X$4,\"Enter smelter details\",IF(ISERROR($V1825),\"\",OFFSET('Smelter Look-up'!$F$4,$V1825-4,0)))","v":""},{"$f":"IF(ISERROR($V1825),\"\",OFFSET('Smelter Look-up'!$G$4,$V1825-4,0))","v":""},{"$f":"IF(ISERROR($V1825),\"\",OFFSET('Smelter Look-up'!$H$4,$V1825-4,0))","v":""},{"$f":"IF(ISERROR($V1825),\"\",OFFSET('Smelter Look-up'!$I$4,$V1825-4,0))","v":""},{"$nulls":7},{"$f":"IF(ISERROR($V1825),\"\",OFFSET('Smelter Look-up'!$C$4,$V1825-4,0)&\"\")","v":""},"",{"$f":"IF(B1825=\"\",\"\",IF(ISERROR(MATCH($J1825,SorP!$B$1:$B$5661,0)),\"\",INDIRECT(\"'SorP'!$A$\"&MATCH($J1825,SorP!$B$1:$B$5661,0))))","v":""},null,{"$f":"IF(C1825=\"\",NA(),MATCH($B1825&$C1825,'Smelter Look-up'!$J:$J,0))","v":{"$error":"#N/A"}},null,0,null,null,null,""]
[null,{"$f":"IF(LEN(A1826)=0,\"\",INDEX('Smelter Look-up'!$A:$A,MATCH($A1826,'Smelter Look-up'!$E:$E,0)))","v":""},{"$f":"IF(LEN(A1826)=0,\"\",INDEX('Smelter Look-up'!$C:$C,MATCH($A1826,'Smelter Look-up'!$E:$E,0)))","v":""},null,{"$f":"IF(ISERROR($V1826),\"\",OFFSET('Smelter Look-up'!$D$4,$V1826-4,0)&\"\")","v":""},{"$f":"IF(ISERROR($V1826),\"\",OFFSET('Smelter Look-up'!$E$4,$V1826-4,0))","v":""},{"$f":"IF(C1826=$X$4,\"Enter smelter details\",IF(ISERROR($V1826),\"\",OFFSET('Smelter Look-up'!$F$4,$V1826-4,0)))","v":""},{"$f":"IF(ISERROR($V1826),\"\",OFFSET('Smelter Look-up'!$G$4,$V1826-4,0))","v":""},{"$f":"IF(ISERROR($V1826),\"\",OFFSET('Smelter Look-up'!$H$4,$V1826-4,0))","v":""},{"$f":"IF(ISERROR($V1826),\"\",OFFSET('Smelter Look-up'!$I$4,$V1826-4,0))","v":""},{"$nulls":7},{"$f":"IF(ISERROR($V1826),\"\",OFFSET('Smelter Look-up'!$C$4,$V1826-4,0)&\"\")","v":""},"",{"$f":"IF(B1826=\"\",\"\",IF(ISERROR(MATCH($J1826,SorP!$B$1:$B$5661,0)),\"\",INDIRECT(\"'SorP'!$A$\"&MATCH($J1826,SorP!$B$1:$B$5661,0))))","v":""},null,{"$f":"IF(C1826=\"\",NA(),MATCH($B1826&$C1826,'Smelter Look-up'!$J:$J,0))","v":{"$error":"#N/A"}},null,0,null,null,null,""]
[null,{"$f":"IF(LEN(A1827)=0,\"\",INDEX('Smelter Look-up'!$A:$A,MATCH($A1827,'Smelter Look-up'!$E:$E,0)))","v":""},{"$f":"IF(LEN(A1827)=0,\"\",INDEX('Smelter Look-up'!$C:$C,MATCH($A1827,'Smelter Look-up'!$E:$E,0)))","v":""},null,{"$f":"IF(ISERROR($V1827),\"\",OFFSET('Smelter Look-up'!$D$4,$V1827-4,0)&\"\")","v":""},{"$f":"IF(ISERROR($V1827),\"\",OFFSET('Smelter Look-up'!$E$4,$V1827-4,0))","v":""},{"$f":"IF(C1827=$X$4,\"Enter smelter details\",IF(ISERROR($V1827),\"\",OFFSET('Smelter Look-up'!$F$4,$V1827-4,0)))","v":""},{"$f":"IF(ISERROR($V1827),\"\",OFFSET('Smelter Look-up'!$G$4,$V1827-4,0))","v":""},{"$f":"IF(ISERROR($V1827),\"\",OFFSET('Smelter Look-up'!$H$4,$V1827-4,0))","v":""},{"$f":"IF(ISERROR($V1827),\"\",OFFSET('Smelter Look-up'!$I$4,$V1827-4,0))","v":""},{"$nulls":7},{"$f":"IF(ISERROR($V1827),\"\",OFFSET('Smelter Look-up'!$C$4,$V1827-4,0)&\"\")","v":""},"",{"$f":"IF(B1827=\"\",\"\",IF(ISERROR(MATCH($J1827,SorP!$B$1:$B$5661,0)),\"\",INDIRECT(\"'SorP'!$A$\"&MATCH($J1827,SorP!$B$1:$B$5661,0))))","v":""},null,{"$f":"IF(C1827=\"\",NA(),MATCH($B1827&$C1827,'Smelter Look-up'!$J:$J,0))","v":{"$error":"#N/A"}},null,0,null,null,null,""]
[null,{"$f":"IF(LEN(A1828)=0,\"\",INDEX('Smelter Look-up'!$A:$A,MATCH($A1828,'Smelter Look-up'!$E:$E,0)))","v":""},{"$f":"IF(LEN(A1828)=0,\"\",INDEX('Smelter Look-up'!$C:$C,MATCH($A1828,'Smelter Look-up'!$E:$E,0)))","v":""},null,{"$f":"IF(ISERROR($V1828),\"\",OFFSET('Smelter Look-up'!$D$4,$V1828-4,0)&\"\")","v":""},{"$f":"IF(ISERROR($V1828),\"\",OFFSET('Smelter Look-up'!$E$4,$V1828-4,0))","v":""},{"$f":"IF(C1828=$X$4,\"Enter smelter details\",IF(ISERROR($V1828),\"\",OFFSET('Smelter Look-up'!$F$4,$V1828-4,0)))","v":""},{"$f":"IF(ISERROR($V1828),\"\",OFFSET('Smelter Look-up'!$G$4,$V1828-4,0))","v":""},{"$f":"IF(ISERROR($V1828),\"\",OFFSET('Smelter Look-up'!$H$4,$V1828-4,0))","v":""},{"$f":"IF(ISERROR($V1828),\"\",OFFSET('Smelter Look-up'!$I$4,$V1828-4,0))","v":""},{"$nulls":7},{"$f":"IF(ISERROR($V1828),\"\",OFFSET('Smelter Look-up'!$C$4,$V1828-4,0)&\"\")","v":""},"",{"$f":"IF(B1828=\"\",\"\",IF(ISERROR(MATCH($J1828,SorP!$B$1:$B$5661,0)),\"\",INDIRECT(\"'SorP'!$A$\"&MATCH($J1828,SorP!$B$1:$B$5661,0))))","v":""},null,{"$f":"IF(C1828=\"\",NA(),MATCH($B1828&$C1828,'Smelter Look-up'!$J:$J,0))","v":{"$error":"#N/A"}},null,0,null,null,null,""]
[null,{"$f":"IF(LEN(A1829)=0,\"\",INDEX('Smelter Look-up'!$A:$A,MATCH($A1829,'Smelter Look-up'!$E:$E,0)))","v":""},{"$f":"IF(LEN(A1829)=0,\"\",INDEX('Smelter Look-up'!$C:$C,MATCH($A1829,'Smelter Look-up'!$E:$E,0)))","v":""},null,{"$f":"IF(ISERROR($V1829),\"\",OFFSET('Smelter Look-up'!$D$4,$V1829-4,0)&\"\")","v":""},{"$f":"IF(ISERROR($V1829),\"\",OFFSET('Smelter Look-up'!$E$4,$V1829-4,0))","v":""},{"$f":"IF(C1829=$X$4,\"Enter smelter details\",IF(ISERROR($V1829),\"\",OFFSET('Smelter Look-up'!$F$4,$V1829-4,0)))","v":""},{"$f":"IF(ISERROR($V1829),\"\",OFFSET('Smelter Look-up'!$G$4,$V1829-4,0))","v":""},{"$f":"IF(ISERROR($V1829),\"\",OFFSET('Smelter Look-up'!$H$4,$V1829-4,0))","v":""},{"$f":"IF(ISERROR($V1829),\"\",OFFSET('Smelter Look-up'!$I$4,$V1829-4,0))","v":""},{"$nulls":7},{"$f":"IF(ISERROR($V1829),\"\",OFFSET('Smelter Look-up'!$C$4,$V1829-4,0)&\"\")","v":""},"",{"$f":"IF(B1829=\"\",\"\",IF(ISERROR(MATCH($J1829,SorP!$B$1:$B$5661,0)),\"\",INDIRECT(\"'SorP'!$A$\"&MATCH($J1829,SorP!$B$1:$B$5661,0))))","v":""},null,{"$f":"IF(C1829=\"\",NA(),MATCH($B1829&$C1829,'Smelter Look-up'!$J:$J,0))","v":{"$error":"#N/A"}},null,0,null,null,null,""]
[null,{"$f":"IF(LEN(A1830)=0,\"\",INDEX('Smelter Look-up'!$A:$A,MATCH($A1830,'Smelter Look-up'!$E:$E,0)))","v":""},{"$f":"IF(LEN(A1830)=0,\"\",INDEX('Smelter Look-up'!$C:$C,MATCH($A1830,'Smelter Look-up'!$E:$E,0)))","v":""},null,{"$f":"IF(ISERROR($V1830),\"\",OFFSET('Smelter Look-up'!$D$4,$V1830-4,0)&\"\")","v":""},{"$f":"IF(ISERROR($V1830),\"\",OFFSET('Smelter Look-up'!$E$4,$V1830-4,0))","v":""},{"$f":"IF(C1830=$X$4,\"Enter smelter details\",IF(ISERROR($V1830),\"\",OFFSET('Smelter Look-up'!$F$4,$V1830-4,0)))","v":""},{"$f":"IF(ISERROR($V1830),\"\",OFFSET('Smelter Look-up'!$G$4,$V1830-4,0))","v":""},{"$f":"IF(ISERROR($V1830),\"\",OFFSET('Smelter Look-up'!$H$4,$V1830-4,0))","v":""},{"$f":"IF(ISERROR($V1830),\"\",OFFSET('Smelter Look-up'!$I$4,$V1830-4,0))","v":""},{"$nulls":7},{"$f":"IF(ISERROR($V1830),\"\",OFFSET('Smelter Look-up'!$C$4,$V1830-4,0)&\"\")","v":""},"",{"$f":"IF(B1830=\"\",\"\",IF(ISERROR(MATCH($J1830,SorP!$B$1:$B$5661,0)),\"\",INDIRECT(\"'SorP'!$A$\"&MATCH($J1830,SorP!$B$1:$B$5661,0))))","v":""},null,{"$f":"IF(C1830=\"\",NA(),MATCH($B1830&$C1830,'Smelter Look-up'!$J:$J,0))","v":{"$error":"#N/A"}},null,0,null,null,null,""]
[null,{"$f":"IF(LEN(A1831)=0,\"\",INDEX('Smelter Look-up'!$A:$A,MATCH($A1831,'Smelter Look-up'!$E:$E,0)))","v":""},{"$f":"IF(LEN(A1831)=0,\"\",INDEX('Smelter Look-up'!$C:$C,MATCH($A1831,'Smelter Look-up'!$E:$E,0)))","v":""},null,{"$f":"IF(ISERROR($V1831),\"\",OFFSET('Smelter Look-up'!$D$4,$V1831-4,0)&\"\")","v":""},{"$f":"IF(ISERROR($V1831),\"\",OFFSET('Smelter Look-up'!$E$4,$V1831-4,0))","v":""},{"$f":"IF(C1831=$X$4,\"Enter smelter details\",IF(ISERROR($V1831),\"\",OFFSET('Smelter Look-up'!$F$4,$V1831-4,0)))","v":""},{"$f":"IF(ISERROR($V1831),\"\",OFFSET('Smelter Look-up'!$G$4,$V1831-4,0))","v":""},{"$f":"IF(ISERROR($V1831),\"\",OFFSET('Smelter Look-up'!$H$4,$V1831-4,0))","v":""},{"$f":"IF(ISERROR($V1831),\"\",OFFSET('Smelter Look-up'!$I$4,$V1831-4,0))","v":""},{"$nulls":7},{"$f":"IF(ISERROR($V1831),\"\",OFFSET('Smelter Look-up'!$C$4,$V1831-4,0)&\"\")","v":""},"",{"$f":"IF(B1831=\"\",\"\",IF(ISERROR(MATCH($J1831,SorP!$B$1:$B$5661,0)),\"\",INDIRECT(\"'SorP'!$A$\"&MATCH($J1831,SorP!$B$1:$B$5661,0))))","v":""},null,{"$f":"IF(C1831=\"\",NA(),MATCH($B1831&$C1831,'Smelter Look-up'!$J:$J,0))","v":{"$error":"#N/A"}},null,0,null,null,null,""]
[null,{"$f":"IF(LEN(A1832)=0,\"\",INDEX('Smelter Look-up'!$A:$A,MATCH($A1832,'Smelter Look-up'!$E:$E,0)))","v":""},{"$f":"IF(LEN(A1832)=0,\"\",INDEX('Smelter Look-up'!$C:$C,MATCH($A1832,'Smelter Look-up'!$E:$E,0)))","v":""},null,{"$f":"IF(ISERROR($V1832),\"\",OFFSET('Smelter Look-up'!$D$4,$V1832-4,0)&\"\")","v":""},{"$f":"IF(ISERROR($V1832),\"\",OFFSET('Smelter Look-up'!$E$4,$V1832-4,0))","v":""},{"$f":"IF(C1832=$X$4,\"Enter smelter details\",IF(ISERROR($V1832),\"\",OFFSET('Smelter Look-up'!$F$4,$V1832-4,0)))","v":""},{"$f":"IF(ISERROR($V1832),\"\",OFFSET('Smelter Look-up'!$G$4,$V1832-4,0))","v":""},{"$f":"IF(ISERROR($V1832),\"\",OFFSET('Smelter Look-up'!$H$4,$V1832-4,0))","v":""},{"$f":"IF(ISERROR($V1832),\"\",OFFSET('Smelter Look-up'!$I$4,$V1832-4,0))","v":""},{"$nulls":7},{"$f":"IF(ISERROR($V1832),\"\",OFFSET('Smelter Look-up'!$C$4,$V1832-4,0)&\"\")","v":""},"",{"$f":"IF(B1832=\"\",\"\",IF(ISERROR(MATCH($J1832,SorP!$B$1:$B$5661,0)),\"\",INDIRECT(\"'SorP'!$A$\"&MATCH($J1832,SorP!$B$1:$B$5661,0))))","v":""},null,{"$f":"IF(C1832=\"\",NA(),MATCH($B1832&$C1832,'Smelter Look-up'!$J:$J,0))","v":{"$error":"#N/A"}},null,0,null,null,null,""]
[null,{"$f":"IF(LEN(A1833)=0,\"\",INDEX('Smelter Look-up'!$A:$A,MATCH($A1833,'Smelter Look-up'!$E:$E,0)))","v":""},{"$f":"IF(LEN(A1833)=0,\"\",INDEX('Smelter Look-up'!$C:$C,MATCH($A1833,'Smelter Look-up'!$E:$E,0)))","v":""},null,{"$f":"IF(ISERROR($V1833),\"\",OFFSET('Smelter Look-up'!$D$4,$V1833-4,0)&\"\")","v":""},{"$f":"IF(ISERROR($V1833),\"\",OFFSET('Smelter Look-up'!$E$4,$V1833-4,0))","v":""},{"$f":"IF(C1833=$X$4,\"Enter smelter details\",IF(ISERROR($V1833),\"\",OFFSET('Smelter Look-up'!$F$4,$V1833-4,0)))","v":""},{"$f":"IF(ISERROR($V1833),\"\",OFFSET('Smelter Look-up'!$G$4,$V1833-4,0))","v":""},{"$f":"IF(ISERROR($V1833),\"\",OFFSET('Smelter Look-up'!$H$4,$V1833-4,0))","v":""},{"$f":"IF(ISERROR($V1833),\"\",OFFSET('Smelter Look-up'!$I$4,$V1833-4,0))","v":""},{"$nulls":7},{"$f":"IF(ISERROR($V1833),\"\",OFFSET('Smelter Look-up'!$C$4,$V1833-4,0)&\"\")","v":""},"",{"$f":"IF(B1833=\"\",\"\",IF(ISERROR(MATCH($J1833,SorP!$B$1:$B$5661,0)),\"\",INDIRECT(\"'SorP'!$A$\"&MATCH($J1833,SorP!$B$1:$B$5661,0))))","v":""},null,{"$f":"IF(C1833=\"\",NA(),MATCH($B1833&$C1833,'Smelter Look-up'!$J:$J,0))","v":{"$error":"#N/A"}},null,0,null,null,null,""]
[null,{"$f":"IF(LEN(A1834)=0,\"\",INDEX('Smelter Look-up'!$A:$A,MATCH($A1834,'Smelter Look-up'!$E:$E,0)))","v":""},{"$f":"IF(LEN(A1834)=0,\"\",INDEX('Smelter Look-up'!$C:$C,MATCH($A1834,'Smelter Look-up'!$E:$E,0)))","v":""},null,{"$f":"IF(ISERROR($V1834),\"\",OFFSET('Smelter Look-up'!$D$4,$V1834-4,0)&\"\")","v":""},{"$f":"IF(ISERROR($V1834),\"\",OFFSET('Smelter Look-up'!$E$4,$V1834-4,0))","v":""},{"$f":"IF(C1834=$X$4,\"Enter smelter details\",IF(ISERROR($V1834),\"\",OFFSET('Smelter Look-up'!$F$4,$V1834-4,0)))","v":""},{"$f":"IF(ISERROR($V1834),\"\",OFFSET('Smelter Look-up'!$G$4,$V1834-4,0))","v":""},{"$f":"IF(ISERROR($V1834),\"\",OFFSET('Smelter Look-up'!$H$4,$V1834-4,0))","v":""},{"$f":"IF(ISERROR($V1834),\"\",OFFSET('Smelter Look-up'!$I$4,$V1834-4,0))","v":""},{"$nulls":7},{"$f":"IF(ISERROR($V1834),\"\",OFFSET('Smelter Look-up'!$C$4,$V1834-4,0)&\"\")","v":""},"",{"$f":"IF(B1834=\"\",\"\",IF(ISERROR(MATCH($J1834,SorP!$B$1:$B$5661,0)),\"\",INDIRECT(\"'SorP'!$A$\"&MATCH($J1834,SorP!$B$1:$B$5661,0))))","v":""},null,{"$f":"IF(C1834=\"\",NA(),MATCH($B1834&$C1834,'Smelter Look-up'!$J:$J,0))","v":{"$error":"#N/A"}},null,0,null,null,null,""]
[null,{"$f":"IF(LEN(A1835)=0,\"\",INDEX('Smelter Look-up'!$A:$A,MATCH($A1835,'Smelter Look-up'!$E:$E,0)))","v":""},{"$f":"IF(LEN(A1835)=0,\"\",INDEX('Smelter Look-up'!$C:$C,MATCH($A1835,'Smelter Look-up'!$E:$E,0)))","v":""},null,{"$f":"IF(ISERROR($V1835),\"\",OFFSET('Smelter Look-up'!$D$4,$V1835-4,0)&\"\")","v":""},{"$f":"IF(ISERROR($V1835),\"\",OFFSET('Smelter Look-up'!$E$4,$V1835-4,0))","v":""},{"$f":"IF(C1835=$X$4,\"Enter smelter details\",IF(ISERROR($V1835),\"\",OFFSET('Smelter Look-up'!$F$4,$V1835-4,0)))","v":""},{"$f":"IF(ISERROR($V1835),\"\",OFFSET('Smelter Look-up'!$G$4,$V1835-4,0))","v":""},{"$f":"IF(ISERROR($V1835),\"\",OFFSET('Smelter Look-up'!$H$4,$V1835-4,0))","v":""},{"$f":"IF(ISERROR($V1835),\"\",OFFSET('Smelter Look-up'!$I$4,$V1835-4,0))","v":""},{"$nulls":7},{"$f":"IF(ISERROR($V1835),\"\",OFFSET('Smelter Look-up'!$C$4,$V1835-4,0)&\"\")","v":""},"",{"$f":"IF(B1835=\"\",\"\",IF(ISERROR(MATCH($J1835,SorP!$B$1:$B$5661,0)),\"\",INDIRECT(\"'SorP'!$A$\"&MATCH($J1835,SorP!$B$1:$B$5661,0))))","v":""},null,{"$f":"IF(C1835=\"\",NA(),MATCH($B1835&$C1835,'Smelter Look-up'!$J:$J,0))","v":{"$error":"#N/A"}},null,0,null,null,null,""]
[null,{"$f":"IF(LEN(A1836)=0,\"\",INDEX('Smelter Look-up'!$A:$A,MATCH($A1836,'Smelter Look-up'!$E:$E,0)))","v":""},{"$f":"IF(LEN(A1836)=0,\"\",INDEX('Smelter Look-up'!$C:$C,MATCH($A1836,'Smelter Look-up'!$E:$E,0)))","v":""},null,{"$f":"IF(ISERROR($V1836),\"\",OFFSET('Smelter Look-up'!$D$4,$V1836-4,0)&\"\")","v":""},{"$f":"IF(ISERROR($V1836),\"\",OFFSET('Smelter Look-up'!$E$4,$V1836-4,0))","v":""},{"$f":"IF(C1836=$X$4,\"Enter smelter details\",IF(ISERROR($V1836),\"\",OFFSET('Smelter Look-up'!$F$4,$V1836-4,0)))","v":""},{"$f":"IF(ISERROR($V1836),\"\",OFFSET('Smelter Look-up'!$G$4,$V1836-4,0))","v":""},{"$f":"IF(ISERROR($V1836),\"\",OFFSET('Smelter Look-up'!$H$4,$V1836-4,0))","v":""},{"$f":"IF(ISERROR($V1836),\"\",OFFSET('Smelter Look-up'!$I$4,$V1836-4,0))","v":""},{"$nulls":7},{"$f":"IF(ISERROR($V1836),\"\",OFFSET('Smelter Look-up'!$C$4,$V1836-4,0)&\"\")","v":""},"",{"$f":"IF(B1836=\"\",\"\",IF(ISERROR(MATCH($J1836,SorP!$B$1:$B$5661,0)),\"\",INDIRECT(\"'SorP'!$A$\"&MATCH($J1836,SorP!$B$1:$B$5661,0))))","v":""},null,{"$f":"IF(C1836=\"\",NA(),MATCH($B1836&$C1836,'Smelter Look-up'!$J:$J,0))","v":{"$error":"#N/A"}},null,0,null,null,null,""]
[null,{"$f":"IF(LEN(A1837)=0,\"\",INDEX('Smelter Look-up'!$A:$A,MATCH($A1837,'Smelter Look-up'!$E:$E,0)))","v":""},{"$f":"IF(LEN(A1837)=0,\"\",INDEX('Smelter Look-up'!$C:$C,MATCH($A1837,'Smelter Look-up'!$E:$E,0)))","v":""},null,{"$f":"IF(ISERROR($V1837),\"\",OFFSET('Smelter Look-up'!$D$4,$V1837-4,0)&\"\")","v":""},{"$f":"IF(ISERROR($V1837),\"\",OFFSET('Smelter Look-up'!$E$4,$V1837-4,0))","v":""},{"$f":"IF(C1837=$X$4,\"Enter smelter details\",IF(ISERROR($V1837),\"\",OFFSET('Smelter Look-up'!$F$4,$V1837-4,0)))","v":""},{"$f":"IF(ISERROR($V1837),\"\",OFFSET('Smelter Look-up'!$G$4,$V1837-4,0))","v":""},{"$f":"IF(ISERROR($V1837),\"\",OFFSET('Smelter Look-up'!$H$4,$V1837-4,0))","v":""},{"$f":"IF(ISERROR($V1837),\"\",OFFSET('Smelter Look-up'!$I$4,$V1837-4,0))","v":""},{"$nulls":7},{"$f":"IF(ISERROR($V1837),\"\",OFFSET('Smelter Look-up'!$C$4,$V1837-4,0)&\"\")","v":""},"",{"$f":"IF(B1837=\"\",\"\",IF(ISERROR(MATCH($J1837,SorP!$B$1:$B$5661,0)),\"\",INDIRECT(\"'SorP'!$A$\"&MATCH($J1837,SorP!$B$1:$B$5661,0))))","v":""},null,{"$f":"IF(C1837=\"\",NA(),MATCH($B1837&$C1837,'Smelter Look-up'!$J:$J,0))","v":{"$error":"#N/A"}},null,0,null,null,null,""]
[null,{"$f":"IF(LEN(A1838)=0,\"\",INDEX('Smelter Look-up'!$A:$A,MATCH($A1838,'Smelter Look-up'!$E:$E,0)))","v":""},{"$f":"IF(LEN(A1838)=0,\"\",INDEX('Smelter Look-up'!$C:$C,MATCH($A1838,'Smelter Look-up'!$E:$E,0)))","v":""},null,{"$f":"IF(ISERROR($V1838),\"\",OFFSET('Smelter Look-up'!$D$4,$V1838-4,0)&\"\")","v":""},{"$f":"IF(ISERROR($V1838),\"\",OFFSET('Smelter Look-up'!$E$4,$V1838-4,0))","v":""},{"$f":"IF(C1838=$X$4,\"Enter smelter details\",IF(ISERROR($V1838),\"\",OFFSET('Smelter Look-up'!$F$4,$V1838-4,0)))","v":""},{"$f":"IF(ISERROR($V1838),\"\",OFFSET('Smelter Look-up'!$G$4,$V1838-4,0))","v":""},{"$f":"IF(ISERROR($V1838),\"\",OFFSET('Smelter Look-up'!$H$4,$V1838-4,0))","v":""},{"$f":"IF(ISERROR($V1838),\"\",OFFSET('Smelter Look-up'!$I$4,$V1838-4,0))","v":""},{"$nulls":7},{"$f":"IF(ISERROR($V1838),\"\",OFFSET('Smelter Look-up'!$C$4,$V1838-4,0)&\"\")","v":""},"",{"$f":"IF(B1838=\"\",\"\",IF(ISERROR(MATCH($J1838,SorP!$B$1:$B$5661,0)),\"\",INDIRECT(\"'SorP'!$A$\"&MATCH($J1838,SorP!$B$1:$B$5661,0))))","v":""},null,{"$f":"IF(C1838=\"\",NA(),MATCH($B1838&$C1838,'Smelter Look-up'!$J:$J,0))","v":{"$error":"#N/A"}},null,0,null,null,null,""]
[null,{"$f":"IF(LEN(A1839)=0,\"\",INDEX('Smelter Look-up'!$A:$A,MATCH($A1839,'Smelter Look-up'!$E:$E,0)))","v":""},{"$f":"IF(LEN(A1839)=0,\"\",INDEX('Smelter Look-up'!$C:$C,MATCH($A1839,'Smelter Look-up'!$E:$E,0)))","v":""},null,{"$f":"IF(ISERROR($V1839),\"\",OFFSET('Smelter Look-up'!$D$4,$V1839-4,0)&\"\")","v":""},{"$f":"IF(ISERROR($V1839),\"\",OFFSET('Smelter Look-up'!$E$4,$V1839-4,0))","v":""},{"$f":"IF(C1839=$X$4,\"Enter smelter details\",IF(ISERROR($V1839),\"\",OFFSET('Smelter Look-up'!$F$4,$V1839-4,0)))","v":""},{"$f":"IF(ISERROR($V1839),\"\",OFFSET('Smelter Look-up'!$G$4,$V1839-4,0))","v":""},{"$f":"IF(ISERROR($V1839),\"\",OFFSET('Smelter Look-up'!$H$4,$V1839-4,0))","v":""},{"$f":"IF(ISERROR($V1839),\"\",OFFSET('Smelter Look-up'!$I$4,$V1839-4,0))","v":""},{"$nulls":7},{"$f":"IF(ISERROR($V1839),\"\",OFFSET('Smelter Look-up'!$C$4,$V1839-4,0)&\"\")","v":""},"",{"$f":"IF(B1839=\"\",\"\",IF(ISERROR(MATCH($J1839,SorP!$B$1:$B$5661,0)),\"\",INDIRECT(\"'SorP'!$A$\"&MATCH($J1839,SorP!$B$1:$B$5661,0))))","v":""},null,{"$f":"IF(C1839=\"\",NA(),MATCH($B1839&$C1839,'Smelter Look-up'!$J:$J,0))","v":{"$error":"#N/A"}},null,0,null,null,null,""]
[null,{"$f":"IF(LEN(A1840)=0,\"\",INDEX('Smelter Look-up'!$A:$A,MATCH($A1840,'Smelter Look-up'!$E:$E,0)))","v":""},{"$f":"IF(LEN(A1840)=0,\"\",INDEX('Smelter Look-up'!$C:$C,MATCH($A1840,'Smelter Look-up'!$E:$E,0)))","v":""},null,{"$f":"IF(ISERROR($V1840),\"\",OFFSET('Smelter Look-up'!$D$4,$V1840-4,0)&\"\")","v":""},{"$f":"IF(ISERROR($V1840),\"\",OFFSET('Smelter Look-up'!$E$4,$V1840-4,0))","v":""},{"$f":"IF(C1840=$X$4,\"Enter smelter details\",IF(ISERROR($V1840),\"\",OFFSET('Smelter Look-up'!$F$4,$V1840-4,0)))","v":""},{"$f":"IF(ISERROR($V1840),\"\",OFFSET('Smelter Look-up'!$G$4,$V1840-4,0))","v":""},{"$f":"IF(ISERROR($V1840),\"\",OFFSET('Smelter Look-up'!$H$4,$V1840-4,0))","v":""},{"$f":"IF(ISERROR($V1840),\"\",OFFSET('Smelter Look-up'!$I$4,$V1840-4,0))","v":""},{"$nulls":7},{"$f":"IF(ISERROR($V1840),\"\",OFFSET('Smelter Look-up'!$C$4,$V1840-4,0)&\"\")","v":""},"",{"$f":"IF(B1840=\"\",\"\",IF(ISERROR(MATCH($J1840,SorP!$B$1:$B$5661,0)),\"\",INDIRECT(\"'SorP'!$A$\"&MATCH($J1840,SorP!$B$1:$B$5661,0))))","v":""},null,{"$f":"IF(C1840=\"\",NA(),MATCH($B1840&$C1840,'Smelter Look-up'!$J:$J,0))","v":{"$error":"#N/A"}},null,0,null,null,null,""]
[null,{"$f":"IF(LEN(A1841)=0,\"\",INDEX('Smelter Look-up'!$A:$A,MATCH($A1841,'Smelter Look-up'!$E:$E,0)))","v":""},{"$f":"IF(LEN(A1841)=0,\"\",INDEX('Smelter Look-up'!$C:$C,MATCH($A1841,'Smelter Look-up'!$E:$E,0)))","v":""},null,{"$f":"IF(ISERROR($V1841),\"\",OFFSET('Smelter Look-up'!$D$4,$V1841-4,0)&\"\")","v":""},{"$f":"IF(ISERROR($V1841),\"\",OFFSET('Smelter Look-up'!$E$4,$V1841-4,0))","v":""},{"$f":"IF(C1841=$X$4,\"Enter smelter details\",IF(ISERROR($V1841),\"\",OFFSET('Smelter Look-up'!$F$4,$V1841-4,0)))","v":""},{"$f":"IF(ISERROR($V1841),\"\",OFFSET('Smelter Look-up'!$G$4,$V1841-4,0))","v":""},{"$f":"IF(ISERROR($V1841),\"\",OFFSET('Smelter Look-up'!$H$4,$V1841-4,0))","v":""},{"$f":"IF(ISERROR($V1841),\"\",OFFSET('Smelter Look-up'!$I$4,$V1841-4,0))","v":""},{"$nulls":7},{"$f":"IF(ISERROR($V1841),\"\",OFFSET('Smelter Look-up'!$C$4,$V1841-4,0)&\"\")","v":""},"",{"$f":"IF(B1841=\"\",\"\",IF(ISERROR(MATCH($J1841,SorP!$B$1:$B$5661,0)),\"\",INDIRECT(\"'SorP'!$A$\"&MATCH($J1841,SorP!$B$1:$B$5661,0))))","v":""},null,{"$f":"IF(C1841=\"\",NA(),MATCH($B1841&$C1841,'Smelter Look-up'!$J:$J,0))","v":{"$error":"#N/A"}},null,0,null,null,null,""]
[null,{"$f":"IF(LEN(A1842)=0,\"\",INDEX('Smelter Look-up'!$A:$A,MATCH($A1842,'Smelter Look-up'!$E:$E,0)))","v":""},{"$f":"IF(LEN(A1842)=0,\"\",INDEX('Smelter Look-up'!$C:$C,MATCH($A1842,'Smelter Look-up'!$E:$E,0)))","v":""},null,{"$f":"IF(ISERROR($V1842),\"\",OFFSET('Smelter Look-up'!$D$4,$V1842-4,0)&\"\")","v":""},{"$f":"IF(ISERROR($V1842),\"\",OFFSET('Smelter Look-up'!$E$4,$V1842-4,0))","v":""},{"$f":"IF(C1842=$X$4,\"Enter smelter details\",IF(ISERROR($V1842),\"\",OFFSET('Smelter Look-up'!$F$4,$V1842-4,0)))","v":""},{"$f":"IF(ISERROR($V1842),\"\",OFFSET('Smelter Look-up'!$G$4,$V1842-4,0))","v":""},{"$f":"IF(ISERROR($V1842),\"\",OFFSET('Smelter Look-up'!$H$4,$V1842-4,0))","v":""},{"$f":"IF(ISERROR($V1842),\"\",OFFSET('Smelter Look-up'!$I$4,$V1842-4,0))","v":""},{"$nulls":7},{"$f":"IF(ISERROR($V1842),\"\",OFFSET('Smelter Look-up'!$C$4,$V1842-4,0)&\"\")","v":""},"",{"$f":"IF(B1842=\"\",\"\",IF(ISERROR(MATCH($J1842,SorP!$B$1:$B$5661,0)),\"\",INDIRECT(\"'SorP'!$A$\"&MATCH($J1842,SorP!$B$1:$B$5661,0))))","v":""},null,{"$f":"IF(C1842=\"\",NA(),MATCH($B1842&$C1842,'Smelter Look-up'!$J:$J,0))","v":{"$error":"#N/A"}},null,0,null,null,null,""]
[null,{"$f":"IF(LEN(A1843)=0,\"\",INDEX('Smelter Look-up'!$A:$A,MATCH($A1843,'Smelter Look-up'!$E:$E,0)))","v":""},{"$f":"IF(LEN(A1843)=0,\"\",INDEX('Smelter Look-up'!$C:$C,MATCH($A1843,'Smelter Look-up'!$E:$E,0)))","v":""},null,{"$f":"IF(ISERROR($V1843),\"\",OFFSET('Smelter Look-up'!$D$4,$V1843-4,0)&\"\")","v":""},{"$f":"IF(ISERROR($V1843),\"\",OFFSET('Smelter Look-up'!$E$4,$V1843-4,0))","v":""},{"$f":"IF(C1843=$X$4,\"Enter smelter details\",IF(ISERROR($V1843),\"\",OFFSET('Smelter Look-up'!$F$4,$V1843-4,0)))","v":""},{"$f":"IF(ISERROR($V1843),\"\",OFFSET('Smelter Look-up'!$G$4,$V1843-4,0))","v":""},{"$f":"IF(ISERROR($V1843),\"\",OFFSET('Smelter Look-up'!$H$4,$V1843-4,0))","v":""},{"$f":"IF(ISERROR($V1843),\"\",OFFSET('Smelter Look-up'!$I$4,$V1843-4,0))","v":""},{"$nulls":7},{"$f":"IF(ISERROR($V1843),\"\",OFFSET('Smelter Look-up'!$C$4,$V1843-4,0)&\"\")","v":""},"",{"$f":"IF(B1843=\"\",\"\",IF(ISERROR(MATCH($J1843,SorP!$B$1:$B$5661,0)),\"\",INDIRECT(\"'SorP'!$A$\"&MATCH($J1843,SorP!$B$1:$B$5661,0))))","v":""},null,{"$f":"IF(C1843=\"\",NA(),MATCH($B1843&$C1843,'Smelter Look-up'!$J:$J,0))","v":{"$error":"#N/A"}},null,0,null,null,null,""]
[null,{"$f":"IF(LEN(A1844)=0,\"\",INDEX('Smelter Look-up'!$A:$A,MATCH($A1844,'Smelter Look-up'!$E:$E,0)))","v":""},{"$f":"IF(LEN(A1844)=0,\"\",INDEX('Smelter Look-up'!$C:$C,MATCH($A1844,'Smelter Look-up'!$E:$E,0)))","v":""},null,{"$f":"IF(ISERROR($V1844),\"\",OFFSET('Smelter Look-up'!$D$4,$V1844-4,0)&\"\")","v":""},{"$f":"IF(ISERROR($V1844),\"\",OFFSET('Smelter Look-up'!$E$4,$V1844-4,0))","v":""},{"$f":"IF(C1844=$X$4,\"Enter smelter details\",IF(ISERROR($V1844),\"\",OFFSET('Smelter Look-up'!$F$4,$V1844-4,0)))","v":""},{"$f":"IF(ISERROR($V1844),\"\",OFFSET('Smelter Look-up'!$G$4,$V1844-4,0))","v":""},{"$f":"IF(ISERROR($V1844),\"\",OFFSET('Smelter Look-up'!$H$4,$V1844-4,0))","v":""},{"$f":"IF(ISERROR($V1844),\"\",OFFSET('Smelter Look-up'!$I$4,$V1844-4,0))","v":""},{"$nulls":7},{"$f":"IF(ISERROR($V1844),\"\",OFFSET('Smelter Look-up'!$C$4,$V1844-4,0)&\"\")","v":""},"",{"$f":"IF(B1844=\"\",\"\",IF(ISERROR(MATCH($J1844,SorP!$B$1:$B$5661,0)),\"\",INDIRECT(\"'SorP'!$A$\"&MATCH($J1844,SorP!$B$1:$B$5661,0))))","v":""},null,{"$f":"IF(C1844=\"\",NA(),MATCH($B1844&$C1844,'Smelter Look-up'!$J:$J,0))","v":{"$error":"#N/A"}},null,0,null,null,null,""]
[null,{"$f":"IF(LEN(A1845)=0,\"\",INDEX('Smelter Look-up'!$A:$A,MATCH($A1845,'Smelter Look-up'!$E:$E,0)))","v":""},{"$f":"IF(LEN(A1845)=0,\"\",INDEX('Smelter Look-up'!$C:$C,MATCH($A1845,'Smelter Look-up'!$E:$E,0)))","v":""},null,{"$f":"IF(ISERROR($V1845),\"\",OFFSET('Smelter Look-up'!$D$4,$V1845-4,0)&\"\")","v":""},{"$f":"IF(ISERROR($V1845),\"\",OFFSET('Smelter Look-up'!$E$4,$V1845-4,0))","v":""},{"$f":"IF(C1845=$X$4,\"Enter smelter details\",IF(ISERROR($V1845),\"\",OFFSET('Smelter Look-up'!$F$4,$V1845-4,0)))","v":""},{"$f":"IF(ISERROR($V1845),\"\",OFFSET('Smelter Look-up'!$G$4,$V1845-4,0))","v":""},{"$f":"IF(ISERROR($V1845),\"\",OFFSET('Smelter Look-up'!$H$4,$V1845-4,0))","v":""},{"$f":"IF(ISERROR($V1845),\"\",OFFSET('Smelter Look-up'!$I$4,$V1845-4,0))","v":""},{"$nulls":7},{"$f":"IF(ISERROR($V1845),\"\",OFFSET('Smelter Look-up'!$C$4,$V1845-4,0)&\"\")","v":""},"",{"$f":"IF(B1845=\"\",\"\",IF(ISERROR(MATCH($J1845,SorP!$B$1:$B$5661,0)),\"\",INDIRECT(\"'SorP'!$A$\"&MATCH($J1845,SorP!$B$1:$B$5661,0))))","v":""},null,{"$f":"IF(C1845=\"\",NA(),MATCH($B1845&$C1845,'Smelter Look-up'!$J:$J,0))","v":{"$error":"#N/A"}},null,0,null,null,null,""]
[null,{"$f":"IF(LEN(A1846)=0,\"\",INDEX('Smelter Look-up'!$A:$A,MATCH($A1846,'Smelter Look-up'!$E:$E,0)))","v":""},{"$f":"IF(LEN(A1846)=0,\"\",INDEX('Smelter Look-up'!$C:$C,MATCH($A1846,'Smelter Look-up'!$E:$E,0)))","v":""},null,{"$f":"IF(ISERROR($V1846),\"\",OFFSET('Smelter Look-up'!$D$4,$V1846-4,0)&\"\")","v":""},{"$f":"IF(ISERROR($V1846),\"\",OFFSET('Smelter Look-up'!$E$4,$V1846-4,0))","v":""},{"$f":"IF(C1846=$X$4,\"Enter smelter details\",IF(ISERROR($V1846),\"\",OFFSET('Smelter Look-up'!$F$4,$V1846-4,0)))","v":""},{"$f":"IF(ISERROR($V1846),\"\",OFFSET('Smelter Look-up'!$G$4,$V1846-4,0))","v":""},{"$f":"IF(ISERROR($V1846),\"\",OFFSET('Smelter Look-up'!$H$4,$V1846-4,0))","v":""},{"$f":"IF(ISERROR($V1846),\"\",OFFSET('Smelter Look-up'!$I$4,$V1846-4,0))","v":""},{"$nulls":7},{"$f":"IF(ISERROR($V1846),\"\",OFFSET('Smelter Look-up'!$C$4,$V1846-4,0)&\"\")","v":""},"",{"$f":"IF(B1846=\"\",\"\",IF(ISERROR(MATCH($J1846,SorP!$B$1:$B$5661,0)),\"\",INDIRECT(\"'SorP'!$A$\"&MATCH($J1846,SorP!$B$1:$B$5661,0))))","v":""},null,{"$f":"IF(C1846=\"\",NA(),MATCH($B1846&$C1846,'Smelter Look-up'!$J:$J,0))","v":{"$error":"#N/A"}},null,0,null,null,null,""]
[null,{"$f":"IF(LEN(A1847)=0,\"\",INDEX('Smelter Look-up'!$A:$A,MATCH($A1847,'Smelter Look-up'!$E:$E,0)))","v":""},{"$f":"IF(LEN(A1847)=0,\"\",INDEX('Smelter Look-up'!$C:$C,MATCH($A1847,'Smelter Look-up'!$E:$E,0)))","v":""},null,{"$f":"IF(ISERROR($V1847),\"\",OFFSET('Smelter Look-up'!$D$4,$V1847-4,0)&\"\")","v":""},{"$f":"IF(ISERROR($V1847),\"\",OFFSET('Smelter Look-up'!$E$4,$V1847-4,0))","v":""},{"$f":"IF(C1847=$X$4,\"Enter smelter details\",IF(ISERROR($V1847),\"\",OFFSET('Smelter Look-up'!$F$4,$V1847-4,0)))","v":""},{"$f":"IF(ISERROR($V1847),\"\",OFFSET('Smelter Look-up'!$G$4,$V1847-4,0))","v":""},{"$f":"IF(ISERROR($V1847),\"\",OFFSET('Smelter Look-up'!$H$4,$V1847-4,0))","v":""},{"$f":"IF(ISERROR($V1847),\"\",OFFSET('Smelter Look-up'!$I$4,$V1847-4,0))","v":""},{"$nulls":7},{"$f":"IF(ISERROR($V1847),\"\",OFFSET('Smelter Look-up'!$C$4,$V1847-4,0)&\"\")","v":""},"",{"$f":"IF(B1847=\"\",\"\",IF(ISERROR(MATCH($J1847,SorP!$B$1:$B$5661,0)),\"\",INDIRECT(\"'SorP'!$A$\"&MATCH($J1847,SorP!$B$1:$B$5661,0))))","v":""},null,{"$f":"IF(C1847=\"\",NA(),MATCH($B1847&$C1847,'Smelter Look-up'!$J:$J,0))","v":{"$error":"#N/A"}},null,0,null,null,null,""]
[null,{"$f":"IF(LEN(A1848)=0,\"\",INDEX('Smelter Look-up'!$A:$A,MATCH($A1848,'Smelter Look-up'!$E:$E,0)))","v":""},{"$f":"IF(LEN(A1848)=0,\"\",INDEX('Smelter Look-up'!$C:$C,MATCH($A1848,'Smelter Look-up'!$E:$E,0)))","v":""},null,{"$f":"IF(ISERROR($V1848),\"\",OFFSET('Smelter Look-up'!$D$4,$V1848-4,0)&\"\")","v":""},{"$f":"IF(ISERROR($V1848),\"\",OFFSET('Smelter Look-up'!$E$4,$V1848-4,0))","v":""},{"$f":"IF(C1848=$X$4,\"Enter smelter details\",IF(ISERROR($V1848),\"\",OFFSET('Smelter Look-up'!$F$4,$V1848-4,0)))","v":""},{"$f":"IF(ISERROR($V1848),\"\",OFFSET('Smelter Look-up'!$G$4,$V1848-4,0))","v":""},{"$f":"IF(ISERROR($V1848),\"\",OFFSET('Smelter Look-up'!$H$4,$V1848-4,0))","v":""},{"$f":"IF(ISERROR($V1848),\"\",OFFSET('Smelter Look-up'!$I$4,$V1848-4,0))","v":""},{"$nulls":7},{"$f":"IF(ISERROR($V1848),\"\",OFFSET('Smelter Look-up'!$C$4,$V1848-4,0)&\"\")","v":""},"",{"$f":"IF(B1848=\"\",\"\",IF(ISERROR(MATCH($J1848,SorP!$B$1:$B$5661,0)),\"\",INDIRECT(\"'SorP'!$A$\"&MATCH($J1848,SorP!$B$1:$B$5661,0))))","v":""},null,{"$f":"IF(C1848=\"\",NA(),MATCH($B1848&$C1848,'Smelter Look-up'!$J:$J,0))","v":{"$error":"#N/A"}},null,0,null,null,null,""]
[null,{"$f":"IF(LEN(A1849)=0,\"\",INDEX('Smelter Look-up'!$A:$A,MATCH($A1849,'Smelter Look-up'!$E:$E,0)))","v":""},{"$f":"IF(LEN(A1849)=0,\"\",INDEX('Smelter Look-up'!$C:$C,MATCH($A1849,'Smelter Look-up'!$E:$E,0)))","v":""},null,{"$f":"IF(ISERROR($V1849),\"\",OFFSET('Smelter Look-up'!$D$4,$V1849-4,0)&\"\")","v":""},{"$f":"IF(ISERROR($V1849),\"\",OFFSET('Smelter Look-up'!$E$4,$V1849-4,0))","v":""},{"$f":"IF(C1849=$X$4,\"Enter smelter details\",IF(ISERROR($V1849),\"\",OFFSET('Smelter Look-up'!$F$4,$V1849-4,0)))","v":""},{"$f":"IF(ISERROR($V1849),\"\",OFFSET('Smelter Look-up'!$G$4,$V1849-4,0))","v":""},{"$f":"IF(ISERROR($V1849),\"\",OFFSET('Smelter Look-up'!$H$4,$V1849-4,0))","v":""},{"$f":"IF(ISERROR($V1849),\"\",OFFSET('Smelter Look-up'!$I$4,$V1849-4,0))","v":""},{"$nulls":7},{"$f":"IF(ISERROR($V1849),\"\",OFFSET('Smelter Look-up'!$C$4,$V1849-4,0)&\"\")","v":""},"",{"$f":"IF(B1849=\"\",\"\",IF(ISERROR(MATCH($J1849,SorP!$B$1:$B$5661,0)),\"\",INDIRECT(\"'SorP'!$A$\"&MATCH($J1849,SorP!$B$1:$B$5661,0))))","v":""},null,{"$f":"IF(C1849=\"\",NA(),MATCH($B1849&$C1849,'Smelter Look-up'!$J:$J,0))","v":{"$error":"#N/A"}},null,0,null,null,null,""]
[null,{"$f":"IF(LEN(A1850)=0,\"\",INDEX('Smelter Look-up'!$A:$A,MATCH($A1850,'Smelter Look-up'!$E:$E,0)))","v":""},{"$f":"IF(LEN(A1850)=0,\"\",INDEX('Smelter Look-up'!$C:$C,MATCH($A1850,'Smelter Look-up'!$E:$E,0)))","v":""},null,{"$f":"IF(ISERROR($V1850),\"\",OFFSET('Smelter Look-up'!$D$4,$V1850-4,0)&\"\")","v":""},{"$f":"IF(ISERROR($V1850),\"\",OFFSET('Smelter Look-up'!$E$4,$V1850-4,0))","v":""},{"$f":"IF(C1850=$X$4,\"Enter smelter details\",IF(ISERROR($V1850),\"\",OFFSET('Smelter Look-up'!$F$4,$V1850-4,0)))","v":""},{"$f":"IF(ISERROR($V1850),\"\",OFFSET('Smelter Look-up'!$G$4,$V1850-4,0))","v":""},{"$f":"IF(ISERROR($V1850),\"\",OFFSET('Smelter Look-up'!$H$4,$V1850-4,0))","v":""},{"$f":"IF(ISERROR($V1850),\"\",OFFSET('Smelter Look-up'!$I$4,$V1850-4,0))","v":""},{"$nulls":7},{"$f":"IF(ISERROR($V1850),\"\",OFFSET('Smelter Look-up'!$C$4,$V1850-4,0)&\"\")","v":""},"",{"$f":"IF(B1850=\"\",\"\",IF(ISERROR(MATCH($J1850,SorP!$B$1:$B$5661,0)),\"\",INDIRECT(\"'SorP'!$A$\"&MATCH($J1850,SorP!$B$1:$B$5661,0))))","v":""},null,{"$f":"IF(C1850=\"\",NA(),MATCH($B1850&$C1850,'Smelter Look-up'!$J:$J,0))","v":{"$error":"#N/A"}},null,0,null,null,null,""]
[null,{"$f":"IF(LEN(A1851)=0,\"\",INDEX('Smelter Look-up'!$A:$A,MATCH($A1851,'Smelter Look-up'!$E:$E,0)))","v":""},{"$f":"IF(LEN(A1851)=0,\"\",INDEX('Smelter Look-up'!$C:$C,MATCH($A1851,'Smelter Look-up'!$E:$E,0)))","v":""},null,{"$f":"IF(ISERROR($V1851),\"\",OFFSET('Smelter Look-up'!$D$4,$V1851-4,0)&\"\")","v":""},{"$f":"IF(ISERROR($V1851),\"\",OFFSET('Smelter Look-up'!$E$4,$V1851-4,0))","v":""},{"$f":"IF(C1851=$X$4,\"Enter smelter details\",IF(ISERROR($V1851),\"\",OFFSET('Smelter Look-up'!$F$4,$V1851-4,0)))","v":""},{"$f":"IF(ISERROR($V1851),\"\",OFFSET('Smelter Look-up'!$G$4,$V1851-4,0))","v":""},{"$f":"IF(ISERROR($V1851),\"\",OFFSET('Smelter Look-up'!$H$4,$V1851-4,0))","v":""},{"$f":"IF(ISERROR($V1851),\"\",OFFSET('Smelter Look-up'!$I$4,$V1851-4,0))","v":""},{"$nulls":7},{"$f":"IF(ISERROR($V1851),\"\",OFFSET('Smelter Look-up'!$C$4,$V1851-4,0)&\"\")","v":""},"",{"$f":"IF(B1851=\"\",\"\",IF(ISERROR(MATCH($J1851,SorP!$B$1:$B$5661,0)),\"\",INDIRECT(\"'SorP'!$A$\"&MATCH($J1851,SorP!$B$1:$B$5661,0))))","v":""},null,{"$f":"IF(C1851=\"\",NA(),MATCH($B1851&$C1851,'Smelter Look-up'!$J:$J,0))","v":{"$error":"#N/A"}},null,0,null,null,null,""]
[null,{"$f":"IF(LEN(A1852)=0,\"\",INDEX('Smelter Look-up'!$A:$A,MATCH($A1852,'Smelter Look-up'!$E:$E,0)))","v":""},{"$f":"IF(LEN(A1852)=0,\"\",INDEX('Smelter Look-up'!$C:$C,MATCH($A1852,'Smelter Look-up'!$E:$E,0)))","v":""},null,{"$f":"IF(ISERROR($V1852),\"\",OFFSET('Smelter Look-up'!$D$4,$V1852-4,0)&\"\")","v":""},{"$f":"IF(ISERROR($V1852),\"\",OFFSET('Smelter Look-up'!$E$4,$V1852-4,0))","v":""},{"$f":"IF(C1852=$X$4,\"Enter smelter details\",IF(ISERROR($V1852),\"\",OFFSET('Smelter Look-up'!$F$4,$V1852-4,0)))","v":""},{"$f":"IF(ISERROR($V1852),\"\",OFFSET('Smelter Look-up'!$G$4,$V1852-4,0))","v":""},{"$f":"IF(ISERROR($V1852),\"\",OFFSET('Smelter Look-up'!$H$4,$V1852-4,0))","v":""},{"$f":"IF(ISERROR($V1852),\"\",OFFSET('Smelter Look-up'!$I$4,$V1852-4,0))","v":""},{"$nulls":7},{"$f":"IF(ISERROR($V1852),\"\",OFFSET('Smelter Look-up'!$C$4,$V1852-4,0)&\"\")","v":""},"",{"$f":"IF(B1852=\"\",\"\",IF(ISERROR(MATCH($J1852,SorP!$B$1:$B$5661,0)),\"\",INDIRECT(\"'SorP'!$A$\"&MATCH($J1852,SorP!$B$1:$B$5661,0))))","v":""},null,{"$f":"IF(C1852=\"\",NA(),MATCH($B1852&$C1852,'Smelter Look-up'!$J:$J,0))","v":{"$error":"#N/A"}},null,0,null,null,null,""]
[null,{"$f":"IF(LEN(A1853)=0,\"\",INDEX('Smelter Look-up'!$A:$A,MATCH($A1853,'Smelter Look-up'!$E:$E,0)))","v":""},{"$f":"IF(LEN(A1853)=0,\"\",INDEX('Smelter Look-up'!$C:$C,MATCH($A1853,'Smelter Look-up'!$E:$E,0)))","v":""},null,{"$f":"IF(ISERROR($V1853),\"\",OFFSET('Smelter Look-up'!$D$4,$V1853-4,0)&\"\")","v":""},{"$f":"IF(ISERROR($V1853),\"\",OFFSET('Smelter Look-up'!$E$4,$V1853-4,0))","v":""},{"$f":"IF(C1853=$X$4,\"Enter smelter details\",IF(ISERROR($V1853),\"\",OFFSET('Smelter Look-up'!$F$4,$V1853-4,0)))","v":""},{"$f":"IF(ISERROR($V1853),\"\",OFFSET('Smelter Look-up'!$G$4,$V1853-4,0))","v":""},{"$f":"IF(ISERROR($V1853),\"\",OFFSET('Smelter Look-up'!$H$4,$V1853-4,0))","v":""},{"$f":"IF(ISERROR($V1853),\"\",OFFSET('Smelter Look-up'!$I$4,$V1853-4,0))","v":""},{"$nulls":7},{"$f":"IF(ISERROR($V1853),\"\",OFFSET('Smelter Look-up'!$C$4,$V1853-4,0)&\"\")","v":""},"",{"$f":"IF(B1853=\"\",\"\",IF(ISERROR(MATCH($J1853,SorP!$B$1:$B$5661,0)),\"\",INDIRECT(\"'SorP'!$A$\"&MATCH($J1853,SorP!$B$1:$B$5661,0))))","v":""},null,{"$f":"IF(C1853=\"\",NA(),MATCH($B1853&$C1853,'Smelter Look-up'!$J:$J,0))","v":{"$error":"#N/A"}},null,0,null,null,null,""]
[null,{"$f":"IF(LEN(A1854)=0,\"\",INDEX('Smelter Look-up'!$A:$A,MATCH($A1854,'Smelter Look-up'!$E:$E,0)))","v":""},{"$f":"IF(LEN(A1854)=0,\"\",INDEX('Smelter Look-up'!$C:$C,MATCH($A1854,'Smelter Look-up'!$E:$E,0)))","v":""},null,{"$f":"IF(ISERROR($V1854),\"\",OFFSET('Smelter Look-up'!$D$4,$V1854-4,0)&\"\")","v":""},{"$f":"IF(ISERROR($V1854),\"\",OFFSET('Smelter Look-up'!$E$4,$V1854-4,0))","v":""},{"$f":"IF(C1854=$X$4,\"Enter smelter details\",IF(ISERROR($V1854),\"\",OFFSET('Smelter Look-up'!$F$4,$V1854-4,0)))","v":""},{"$f":"IF(ISERROR($V1854),\"\",OFFSET('Smelter Look-up'!$G$4,$V1854-4,0))","v":""},{"$f":"IF(ISERROR($V1854),\"\",OFFSET('Smelter Look-up'!$H$4,$V1854-4,0))","v":""},{"$f":"IF(ISERROR($V1854),\"\",OFFSET('Smelter Look-up'!$I$4,$V1854-4,0))","v":""},{"$nulls":7},{"$f":"IF(ISERROR($V1854),\"\",OFFSET('Smelter Look-up'!$C$4,$V1854-4,0)&\"\")","v":""},"",{"$f":"IF(B1854=\"\",\"\",IF(ISERROR(MATCH($J1854,SorP!$B$1:$B$5661,0)),\"\",INDIRECT(\"'SorP'!$A$\"&MATCH($J1854,SorP!$B$1:$B$5661,0))))","v":""},null,{"$f":"IF(C1854=\"\",NA(),MATCH($B1854&$C1854,'Smelter Look-up'!$J:$J,0))","v":{"$error":"#N/A"}},null,0,null,null,null,""]
[null,{"$f":"IF(LEN(A1855)=0,\"\",INDEX('Smelter Look-up'!$A:$A,MATCH($A1855,'Smelter Look-up'!$E:$E,0)))","v":""},{"$f":"IF(LEN(A1855)=0,\"\",INDEX('Smelter Look-up'!$C:$C,MATCH($A1855,'Smelter Look-up'!$E:$E,0)))","v":""},null,{"$f":"IF(ISERROR($V1855),\"\",OFFSET('Smelter Look-up'!$D$4,$V1855-4,0)&\"\")","v":""},{"$f":"IF(ISERROR($V1855),\"\",OFFSET('Smelter Look-up'!$E$4,$V1855-4,0))","v":""},{"$f":"IF(C1855=$X$4,\"Enter smelter details\",IF(ISERROR($V1855),\"\",OFFSET('Smelter Look-up'!$F$4,$V1855-4,0)))","v":""},{"$f":"IF(ISERROR($V1855),\"\",OFFSET('Smelter Look-up'!$G$4,$V1855-4,0))","v":""},{"$f":"IF(ISERROR($V1855),\"\",OFFSET('Smelter Look-up'!$H$4,$V1855-4,0))","v":""},{"$f":"IF(ISERROR($V1855),\"\",OFFSET('Smelter Look-up'!$I$4,$V1855-4,0))","v":""},{"$nulls":7},{"$f":"IF(ISERROR($V1855),\"\",OFFSET('Smelter Look-up'!$C$4,$V1855-4,0)&\"\")","v":""},"",{"$f":"IF(B1855=\"\",\"\",IF(ISERROR(MATCH($J1855,SorP!$B$1:$B$5661,0)),\"\",INDIRECT(\"'SorP'!$A$\"&MATCH($J1855,SorP!$B$1:$B$5661,0))))","v":""},null,{"$f":"IF(C1855=\"\",NA(),MATCH($B1855&$C1855,'Smelter Look-up'!$J:$J,0))","v":{"$error":"#N/A"}},null,{"$f":"IF(AND(C1855=\"Smelter not listed\",OR(LEN(D1855)=0,LEN(E1855)=0)),1,0)","v":0},null,null,null,{"$f":"B1855&C1855","v":""}]
[null,{"$f":"IF(LEN(A1856)=0,\"\",INDEX('Smelter Look-up'!$A:$A,MATCH($A1856,'Smelter Look-up'!$E:$E,0)))","v":""},{"$f":"IF(LEN(A1856)=0,\"\",INDEX('Smelter Look-up'!$C:$C,MATCH($A1856,'Smelter Look-up'!$E:$E,0)))","v":""},null,{"$f":"IF(ISERROR($V1856),\"\",OFFSET('Smelter Look-up'!$D$4,$V1856-4,0)&\"\")","v":""},{"$f":"IF(ISERROR($V1856),\"\",OFFSET('Smelter Look-up'!$E$4,$V1856-4,0))","v":""},{"$f":"IF(C1856=$X$4,\"Enter smelter details\",IF(ISERROR($V1856),\"\",OFFSET('Smelter Look-up'!$F$4,$V1856-4,0)))","v":""},{"$f":"IF(ISERROR($V1856),\"\",OFFSET('Smelter Look-up'!$G$4,$V1856-4,0))","v":""},{"$f":"IF(ISERROR($V1856),\"\",OFFSET('Smelter Look-up'!$H$4,$V1856-4,0))","v":""},{"$f":"IF(ISERROR($V1856),\"\",OFFSET('Smelter Look-up'!$I$4,$V1856-4,0))","v":""},{"$nulls":7},{"$f":"IF(ISERROR($V1856),\"\",OFFSET('Smelter Look-up'!$C$4,$V1856-4,0)&\"\")","v":""},{"$f":"IF(B1856=\"\",\"\",IF(ISERROR(MATCH($E1856,CL,0)),\"Unknown\",INDIRECT(\"'C'!$A$\"&MATCH($E1856,CL,0)+1)))","v":""},{"$f":"IF(B1856=\"\",\"\",IF(ISERROR(MATCH($J1856,SorP!$B$1:$B$5661,0)),\"\",INDIRECT(\"'SorP'!$A$\"&MATCH($J1856,SorP!$B$1:$B$5661,0))))","v":""},null,{"$f":"IF(C1856=\"\",NA(),MATCH($B1856&$C1856,'Smelter Look-up'!$J:$J,0))","v":{"$error":"#N/A"}},null,0,null,null,null,""]
[null,{"$f":"IF(LEN(A1857)=0,\"\",INDEX('Smelter Look-up'!$A:$A,MATCH($A1857,'Smelter Look-up'!$E:$E,0)))","v":""},{"$f":"IF(LEN(A1857)=0,\"\",INDEX('Smelter Look-up'!$C:$C,MATCH($A1857,'Smelter Look-up'!$E:$E,0)))","v":""},null,{"$f":"IF(ISERROR($V1857),\"\",OFFSET('Smelter Look-up'!$D$4,$V1857-4,0)&\"\")","v":""},{"$f":"IF(ISERROR($V1857),\"\",OFFSET('Smelter Look-up'!$E$4,$V1857-4,0))","v":""},{"$f":"IF(C1857=$X$4,\"Enter smelter details\",IF(ISERROR($V1857),\"\",OFFSET('Smelter Look-up'!$F$4,$V1857-4,0)))","v":""},{"$f":"IF(ISERROR($V1857),\"\",OFFSET('Smelter Look-up'!$G$4,$V1857-4,0))","v":""},{"$f":"IF(ISERROR($V1857),\"\",OFFSET('Smelter Look-up'!$H$4,$V1857-4,0))","v":""},{"$f":"IF(ISERROR($V1857),\"\",OFFSET('Smelter Look-up'!$I$4,$V1857-4,0))","v":""},{"$nulls":7},{"$f":"IF(ISERROR($V1857),\"\",OFFSET('Smelter Look-up'!$C$4,$V1857-4,0)&\"\")","v":""},"",{"$f":"IF(B1857=\"\",\"\",IF(ISERROR(MATCH($J1857,SorP!$B$1:$B$5661,0)),\"\",INDIRECT(\"'SorP'!$A$\"&MATCH($J1857,SorP!$B$1:$B$5661,0))))","v":""},null,{"$f":"IF(C1857=\"\",NA(),MATCH($B1857&$C1857,'Smelter Look-up'!$J:$J,0))","v":{"$error":"#N/A"}},null,0,null,null,null,""]
[null,{"$f":"IF(LEN(A1858)=0,\"\",INDEX('Smelter Look-up'!$A:$A,MATCH($A1858,'Smelter Look-up'!$E:$E,0)))","v":""},{"$f":"IF(LEN(A1858)=0,\"\",INDEX('Smelter Look-up'!$C:$C,MATCH($A1858,'Smelter Look-up'!$E:$E,0)))","v":""},null,{"$f":"IF(ISERROR($V1858),\"\",OFFSET('Smelter Look-up'!$D$4,$V1858-4,0)&\"\")","v":""},{"$f":"IF(ISERROR($V1858),\"\",OFFSET('Smelter Look-up'!$E$4,$V1858-4,0))","v":""},{"$f":"IF(C1858=$X$4,\"Enter smelter details\",IF(ISERROR($V1858),\"\",OFFSET('Smelter Look-up'!$F$4,$V1858-4,0)))","v":""},{"$f":"IF(ISERROR($V1858),\"\",OFFSET('Smelter Look-up'!$G$4,$V1858-4,0))","v":""},{"$f":"IF(ISERROR($V1858),\"\",OFFSET('Smelter Look-up'!$H$4,$V1858-4,0))","v":""},{"$f":"IF(ISERROR($V1858),\"\",OFFSET('Smelter Look-up'!$I$4,$V1858-4,0))","v":""},{"$nulls":7},{"$f":"IF(ISERROR($V1858),\"\",OFFSET('Smelter Look-up'!$C$4,$V1858-4,0)&\"\")","v":""},"",{"$f":"IF(B1858=\"\",\"\",IF(ISERROR(MATCH($J1858,SorP!$B$1:$B$5661,0)),\"\",INDIRECT(\"'SorP'!$A$\"&MATCH($J1858,SorP!$B$1:$B$5661,0))))","v":""},null,{"$f":"IF(C1858=\"\",NA(),MATCH($B1858&$C1858,'Smelter Look-up'!$J:$J,0))","v":{"$error":"#N/A"}},null,0,null,null,null,""]
[null,{"$f":"IF(LEN(A1859)=0,\"\",INDEX('Smelter Look-up'!$A:$A,MATCH($A1859,'Smelter Look-up'!$E:$E,0)))","v":""},{"$f":"IF(LEN(A1859)=0,\"\",INDEX('Smelter Look-up'!$C:$C,MATCH($A1859,'Smelter Look-up'!$E:$E,0)))","v":""},null,{"$f":"IF(ISERROR($V1859),\"\",OFFSET('Smelter Look-up'!$D$4,$V1859-4,0)&\"\")","v":""},{"$f":"IF(ISERROR($V1859),\"\",OFFSET('Smelter Look-up'!$E$4,$V1859-4,0))","v":""},{"$f":"IF(C1859=$X$4,\"Enter smelter details\",IF(ISERROR($V1859),\"\",OFFSET('Smelter Look-up'!$F$4,$V1859-4,0)))","v":""},{"$f":"IF(ISERROR($V1859),\"\",OFFSET('Smelter Look-up'!$G$4,$V1859-4,0))","v":""},{"$f":"IF(ISERROR($V1859),\"\",OFFSET('Smelter Look-up'!$H$4,$V1859-4,0))","v":""},{"$f":"IF(ISERROR($V1859),\"\",OFFSET('Smelter Look-up'!$I$4,$V1859-4,0))","v":""},{"$nulls":7},{"$f":"IF(ISERROR($V1859),\"\",OFFSET('Smelter Look-up'!$C$4,$V1859-4,0)&\"\")","v":""},"",{"$f":"IF(B1859=\"\",\"\",IF(ISERROR(MATCH($J1859,SorP!$B$1:$B$5661,0)),\"\",INDIRECT(\"'SorP'!$A$\"&MATCH($J1859,SorP!$B$1:$B$5661,0))))","v":""},null,{"$f":"IF(C1859=\"\",NA(),MATCH($B1859&$C1859,'Smelter Look-up'!$J:$J,0))","v":{"$error":"#N/A"}},null,0,null,null,null,""]
[null,{"$f":"IF(LEN(A1860)=0,\"\",INDEX('Smelter Look-up'!$A:$A,MATCH($A1860,'Smelter Look-up'!$E:$E,0)))","v":""},{"$f":"IF(LEN(A1860)=0,\"\",INDEX('Smelter Look-up'!$C:$C,MATCH($A1860,'Smelter Look-up'!$E:$E,0)))","v":""},null,{"$f":"IF(ISERROR($V1860),\"\",OFFSET('Smelter Look-up'!$D$4,$V1860-4,0)&\"\")","v":""},{"$f":"IF(ISERROR($V1860),\"\",OFFSET('Smelter Look-up'!$E$4,$V1860-4,0))","v":""},{"$f":"IF(C1860=$X$4,\"Enter smelter details\",IF(ISERROR($V1860),\"\",OFFSET('Smelter Look-up'!$F$4,$V1860-4,0)))","v":""},{"$f":"IF(ISERROR($V1860),\"\",OFFSET('Smelter Look-up'!$G$4,$V1860-4,0))","v":""},{"$f":"IF(ISERROR($V1860),\"\",OFFSET('Smelter Look-up'!$H$4,$V1860-4,0))","v":""},{"$f":"IF(ISERROR($V1860),\"\",OFFSET('Smelter Look-up'!$I$4,$V1860-4,0))","v":""},{"$nulls":7},{"$f":"IF(ISERROR($V1860),\"\",OFFSET('Smelter Look-up'!$C$4,$V1860-4,0)&\"\")","v":""},"",{"$f":"IF(B1860=\"\",\"\",IF(ISERROR(MATCH($J1860,SorP!$B$1:$B$5661,0)),\"\",INDIRECT(\"'SorP'!$A$\"&MATCH($J1860,SorP!$B$1:$B$5661,0))))","v":""},null,{"$f":"IF(C1860=\"\",NA(),MATCH($B1860&$C1860,'Smelter Look-up'!$J:$J,0))","v":{"$error":"#N/A"}},null,0,null,null,null,""]
[null,{"$f":"IF(LEN(A1861)=0,\"\",INDEX('Smelter Look-up'!$A:$A,MATCH($A1861,'Smelter Look-up'!$E:$E,0)))","v":""},{"$f":"IF(LEN(A1861)=0,\"\",INDEX('Smelter Look-up'!$C:$C,MATCH($A1861,'Smelter Look-up'!$E:$E,0)))","v":""},null,{"$f":"IF(ISERROR($V1861),\"\",OFFSET('Smelter Look-up'!$D$4,$V1861-4,0)&\"\")","v":""},{"$f":"IF(ISERROR($V1861),\"\",OFFSET('Smelter Look-up'!$E$4,$V1861-4,0))","v":""},{"$f":"IF(C1861=$X$4,\"Enter smelter details\",IF(ISERROR($V1861),\"\",OFFSET('Smelter Look-up'!$F$4,$V1861-4,0)))","v":""},{"$f":"IF(ISERROR($V1861),\"\",OFFSET('Smelter Look-up'!$G$4,$V1861-4,0))","v":""},{"$f":"IF(ISERROR($V1861),\"\",OFFSET('Smelter Look-up'!$H$4,$V1861-4,0))","v":""},{"$f":"IF(ISERROR($V1861),\"\",OFFSET('Smelter Look-up'!$I$4,$V1861-4,0))","v":""},{"$nulls":7},{"$f":"IF(ISERROR($V1861),\"\",OFFSET('Smelter Look-up'!$C$4,$V1861-4,0)&\"\")","v":""},"",{"$f":"IF(B1861=\"\",\"\",IF(ISERROR(MATCH($J1861,SorP!$B$1:$B$5661,0)),\"\",INDIRECT(\"'SorP'!$A$\"&MATCH($J1861,SorP!$B$1:$B$5661,0))))","v":""},null,{"$f":"IF(C1861=\"\",NA(),MATCH($B1861&$C1861,'Smelter Look-up'!$J:$J,0))","v":{"$error":"#N/A"}},null,0,null,null,null,""]
[null,{"$f":"IF(LEN(A1862)=0,\"\",INDEX('Smelter Look-up'!$A:$A,MATCH($A1862,'Smelter Look-up'!$E:$E,0)))","v":""},{"$f":"IF(LEN(A1862)=0,\"\",INDEX('Smelter Look-up'!$C:$C,MATCH($A1862,'Smelter Look-up'!$E:$E,0)))","v":""},null,{"$f":"IF(ISERROR($V1862),\"\",OFFSET('Smelter Look-up'!$D$4,$V1862-4,0)&\"\")","v":""},{"$f":"IF(ISERROR($V1862),\"\",OFFSET('Smelter Look-up'!$E$4,$V1862-4,0))","v":""},{"$f":"IF(C1862=$X$4,\"Enter smelter details\",IF(ISERROR($V1862),\"\",OFFSET('Smelter Look-up'!$F$4,$V1862-4,0)))","v":""},{"$f":"IF(ISERROR($V1862),\"\",OFFSET('Smelter Look-up'!$G$4,$V1862-4,0))","v":""},{"$f":"IF(ISERROR($V1862),\"\",OFFSET('Smelter Look-up'!$H$4,$V1862-4,0))","v":""},{"$f":"IF(ISERROR($V1862),\"\",OFFSET('Smelter Look-up'!$I$4,$V1862-4,0))","v":""},{"$nulls":7},{"$f":"IF(ISERROR($V1862),\"\",OFFSET('Smelter Look-up'!$C$4,$V1862-4,0)&\"\")","v":""},"",{"$f":"IF(B1862=\"\",\"\",IF(ISERROR(MATCH($J1862,SorP!$B$1:$B$5661,0)),\"\",INDIRECT(\"'SorP'!$A$\"&MATCH($J1862,SorP!$B$1:$B$5661,0))))","v":""},null,{"$f":"IF(C1862=\"\",NA(),MATCH($B1862&$C1862,'Smelter Look-up'!$J:$J,0))","v":{"$error":"#N/A"}},null,0,null,null,null,""]
[null,{"$f":"IF(LEN(A1863)=0,\"\",INDEX('Smelter Look-up'!$A:$A,MATCH($A1863,'Smelter Look-up'!$E:$E,0)))","v":""},{"$f":"IF(LEN(A1863)=0,\"\",INDEX('Smelter Look-up'!$C:$C,MATCH($A1863,'Smelter Look-up'!$E:$E,0)))","v":""},null,{"$f":"IF(ISERROR($V1863),\"\",OFFSET('Smelter Look-up'!$D$4,$V1863-4,0)&\"\")","v":""},{"$f":"IF(ISERROR($V1863),\"\",OFFSET('Smelter Look-up'!$E$4,$V1863-4,0))","v":""},{"$f":"IF(C1863=$X$4,\"Enter smelter details\",IF(ISERROR($V1863),\"\",OFFSET('Smelter Look-up'!$F$4,$V1863-4,0)))","v":""},{"$f":"IF(ISERROR($V1863),\"\",OFFSET('Smelter Look-up'!$G$4,$V1863-4,0))","v":""},{"$f":"IF(ISERROR($V1863),\"\",OFFSET('Smelter Look-up'!$H$4,$V1863-4,0))","v":""},{"$f":"IF(ISERROR($V1863),\"\",OFFSET('Smelter Look-up'!$I$4,$V1863-4,0))","v":""},{"$nulls":7},{"$f":"IF(ISERROR($V1863),\"\",OFFSET('Smelter Look-up'!$C$4,$V1863-4,0)&\"\")","v":""},"",{"$f":"IF(B1863=\"\",\"\",IF(ISERROR(MATCH($J1863,SorP!$B$1:$B$5661,0)),\"\",INDIRECT(\"'SorP'!$A$\"&MATCH($J1863,SorP!$B$1:$B$5661,0))))","v":""},null,{"$f":"IF(C1863=\"\",NA(),MATCH($B1863&$C1863,'Smelter Look-up'!$J:$J,0))","v":{"$error":"#N/A"}},null,0,null,null,null,""]
[null,{"$f":"IF(LEN(A1864)=0,\"\",INDEX('Smelter Look-up'!$A:$A,MATCH($A1864,'Smelter Look-up'!$E:$E,0)))","v":""},{"$f":"IF(LEN(A1864)=0,\"\",INDEX('Smelter Look-up'!$C:$C,MATCH($A1864,'Smelter Look-up'!$E:$E,0)))","v":""},null,{"$f":"IF(ISERROR($V1864),\"\",OFFSET('Smelter Look-up'!$D$4,$V1864-4,0)&\"\")","v":""},{"$f":"IF(ISERROR($V1864),\"\",OFFSET('Smelter Look-up'!$E$4,$V1864-4,0))","v":""},{"$f":"IF(C1864=$X$4,\"Enter smelter details\",IF(ISERROR($V1864),\"\",OFFSET('Smelter Look-up'!$F$4,$V1864-4,0)))","v":""},{"$f":"IF(ISERROR($V1864),\"\",OFFSET('Smelter Look-up'!$G$4,$V1864-4,0))","v":""},{"$f":"IF(ISERROR($V1864),\"\",OFFSET('Smelter Look-up'!$H$4,$V1864-4,0))","v":""},{"$f":"IF(ISERROR($V1864),\"\",OFFSET('Smelter Look-up'!$I$4,$V1864-4,0))","v":""},{"$nulls":7},{"$f":"IF(ISERROR($V1864),\"\",OFFSET('Smelter Look-up'!$C$4,$V1864-4,0)&\"\")","v":""},"",{"$f":"IF(B1864=\"\",\"\",IF(ISERROR(MATCH($J1864,SorP!$B$1:$B$5661,0)),\"\",INDIRECT(\"'SorP'!$A$\"&MATCH($J1864,SorP!$B$1:$B$5661,0))))","v":""},null,{"$f":"IF(C1864=\"\",NA(),MATCH($B1864&$C1864,'Smelter Look-up'!$J:$J,0))","v":{"$error":"#N/A"}},null,0,null,null,null,""]
[null,{"$f":"IF(LEN(A1865)=0,\"\",INDEX('Smelter Look-up'!$A:$A,MATCH($A1865,'Smelter Look-up'!$E:$E,0)))","v":""},{"$f":"IF(LEN(A1865)=0,\"\",INDEX('Smelter Look-up'!$C:$C,MATCH($A1865,'Smelter Look-up'!$E:$E,0)))","v":""},null,{"$f":"IF(ISERROR($V1865),\"\",OFFSET('Smelter Look-up'!$D$4,$V1865-4,0)&\"\")","v":""},{"$f":"IF(ISERROR($V1865),\"\",OFFSET('Smelter Look-up'!$E$4,$V1865-4,0))","v":""},{"$f":"IF(C1865=$X$4,\"Enter smelter details\",IF(ISERROR($V1865),\"\",OFFSET('Smelter Look-up'!$F$4,$V1865-4,0)))","v":""},{"$f":"IF(ISERROR($V1865),\"\",OFFSET('Smelter Look-up'!$G$4,$V1865-4,0))","v":""},{"$f":"IF(ISERROR($V1865),\"\",OFFSET('Smelter Look-up'!$H$4,$V1865-4,0))","v":""},{"$f":"IF(ISERROR($V1865),\"\",OFFSET('Smelter Look-up'!$I$4,$V1865-4,0))","v":""},{"$nulls":7},{"$f":"IF(ISERROR($V1865),\"\",OFFSET('Smelter Look-up'!$C$4,$V1865-4,0)&\"\")","v":""},"",{"$f":"IF(B1865=\"\",\"\",IF(ISERROR(MATCH($J1865,SorP!$B$1:$B$5661,0)),\"\",INDIRECT(\"'SorP'!$A$\"&MATCH($J1865,SorP!$B$1:$B$5661,0))))","v":""},null,{"$f":"IF(C1865=\"\",NA(),MATCH($B1865&$C1865,'Smelter Look-up'!$J:$J,0))","v":{"$error":"#N/A"}},null,0,null,null,null,""]
[null,{"$f":"IF(LEN(A1866)=0,\"\",INDEX('Smelter Look-up'!$A:$A,MATCH($A1866,'Smelter Look-up'!$E:$E,0)))","v":""},{"$f":"IF(LEN(A1866)=0,\"\",INDEX('Smelter Look-up'!$C:$C,MATCH($A1866,'Smelter Look-up'!$E:$E,0)))","v":""},null,{"$f":"IF(ISERROR($V1866),\"\",OFFSET('Smelter Look-up'!$D$4,$V1866-4,0)&\"\")","v":""},{"$f":"IF(ISERROR($V1866),\"\",OFFSET('Smelter Look-up'!$E$4,$V1866-4,0))","v":""},{"$f":"IF(C1866=$X$4,\"Enter smelter details\",IF(ISERROR($V1866),\"\",OFFSET('Smelter Look-up'!$F$4,$V1866-4,0)))","v":""},{"$f":"IF(ISERROR($V1866),\"\",OFFSET('Smelter Look-up'!$G$4,$V1866-4,0))","v":""},{"$f":"IF(ISERROR($V1866),\"\",OFFSET('Smelter Look-up'!$H$4,$V1866-4,0))","v":""},{"$f":"IF(ISERROR($V1866),\"\",OFFSET('Smelter Look-up'!$I$4,$V1866-4,0))","v":""},{"$nulls":7},{"$f":"IF(ISERROR($V1866),\"\",OFFSET('Smelter Look-up'!$C$4,$V1866-4,0)&\"\")","v":""},"",{"$f":"IF(B1866=\"\",\"\",IF(ISERROR(MATCH($J1866,SorP!$B$1:$B$5661,0)),\"\",INDIRECT(\"'SorP'!$A$\"&MATCH($J1866,SorP!$B$1:$B$5661,0))))","v":""},null,{"$f":"IF(C1866=\"\",NA(),MATCH($B1866&$C1866,'Smelter Look-up'!$J:$J,0))","v":{"$error":"#N/A"}},null,0,null,null,null,""]
[null,{"$f":"IF(LEN(A1867)=0,\"\",INDEX('Smelter Look-up'!$A:$A,MATCH($A1867,'Smelter Look-up'!$E:$E,0)))","v":""},{"$f":"IF(LEN(A1867)=0,\"\",INDEX('Smelter Look-up'!$C:$C,MATCH($A1867,'Smelter Look-up'!$E:$E,0)))","v":""},null,{"$f":"IF(ISERROR($V1867),\"\",OFFSET('Smelter Look-up'!$D$4,$V1867-4,0)&\"\")","v":""},{"$f":"IF(ISERROR($V1867),\"\",OFFSET('Smelter Look-up'!$E$4,$V1867-4,0))","v":""},{"$f":"IF(C1867=$X$4,\"Enter smelter details\",IF(ISERROR($V1867),\"\",OFFSET('Smelter Look-up'!$F$4,$V1867-4,0)))","v":""},{"$f":"IF(ISERROR($V1867),\"\",OFFSET('Smelter Look-up'!$G$4,$V1867-4,0))","v":""},{"$f":"IF(ISERROR($V1867),\"\",OFFSET('Smelter Look-up'!$H$4,$V1867-4,0))","v":""},{"$f":"IF(ISERROR($V1867),\"\",OFFSET('Smelter Look-up'!$I$4,$V1867-4,0))","v":""},{"$nulls":7},{"$f":"IF(ISERROR($V1867),\"\",OFFSET('Smelter Look-up'!$C$4,$V1867-4,0)&\"\")","v":""},"",{"$f":"IF(B1867=\"\",\"\",IF(ISERROR(MATCH($J1867,SorP!$B$1:$B$5661,0)),\"\",INDIRECT(\"'SorP'!$A$\"&MATCH($J1867,SorP!$B$1:$B$5661,0))))","v":""},null,{"$f":"IF(C1867=\"\",NA(),MATCH($B1867&$C1867,'Smelter Look-up'!$J:$J,0))","v":{"$error":"#N/A"}},null,0,null,null,null,""]
[null,{"$f":"IF(LEN(A1868)=0,\"\",INDEX('Smelter Look-up'!$A:$A,MATCH($A1868,'Smelter Look-up'!$E:$E,0)))","v":""},{"$f":"IF(LEN(A1868)=0,\"\",INDEX('Smelter Look-up'!$C:$C,MATCH($A1868,'Smelter Look-up'!$E:$E,0)))","v":""},null,{"$f":"IF(ISERROR($V1868),\"\",OFFSET('Smelter Look-up'!$D$4,$V1868-4,0)&\"\")","v":""},{"$f":"IF(ISERROR($V1868),\"\",OFFSET('Smelter Look-up'!$E$4,$V1868-4,0))","v":""},{"$f":"IF(C1868=$X$4,\"Enter smelter details\",IF(ISERROR($V1868),\"\",OFFSET('Smelter Look-up'!$F$4,$V1868-4,0)))","v":""},{"$f":"IF(ISERROR($V1868),\"\",OFFSET('Smelter Look-up'!$G$4,$V1868-4,0))","v":""},{"$f":"IF(ISERROR($V1868),\"\",OFFSET('Smelter Look-up'!$H$4,$V1868-4,0))","v":""},{"$f":"IF(ISERROR($V1868),\"\",OFFSET('Smelter Look-up'!$I$4,$V1868-4,0))","v":""},{"$nulls":7},{"$f":"IF(ISERROR($V1868),\"\",OFFSET('Smelter Look-up'!$C$4,$V1868-4,0)&\"\")","v":""},"",{"$f":"IF(B1868=\"\",\"\",IF(ISERROR(MATCH($J1868,SorP!$B$1:$B$5661,0)),\"\",INDIRECT(\"'SorP'!$A$\"&MATCH($J1868,SorP!$B$1:$B$5661,0))))","v":""},null,{"$f":"IF(C1868=\"\",NA(),MATCH($B1868&$C1868,'Smelter Look-up'!$J:$J,0))","v":{"$error":"#N/A"}},null,0,null,null,null,""]
[null,{"$f":"IF(LEN(A1869)=0,\"\",INDEX('Smelter Look-up'!$A:$A,MATCH($A1869,'Smelter Look-up'!$E:$E,0)))","v":""},{"$f":"IF(LEN(A1869)=0,\"\",INDEX('Smelter Look-up'!$C:$C,MATCH($A1869,'Smelter Look-up'!$E:$E,0)))","v":""},null,{"$f":"IF(ISERROR($V1869),\"\",OFFSET('Smelter Look-up'!$D$4,$V1869-4,0)&\"\")","v":""},{"$f":"IF(ISERROR($V1869),\"\",OFFSET('Smelter Look-up'!$E$4,$V1869-4,0))","v":""},{"$f":"IF(C1869=$X$4,\"Enter smelter details\",IF(ISERROR($V1869),\"\",OFFSET('Smelter Look-up'!$F$4,$V1869-4,0)))","v":""},{"$f":"IF(ISERROR($V1869),\"\",OFFSET('Smelter Look-up'!$G$4,$V1869-4,0))","v":""},{"$f":"IF(ISERROR($V1869),\"\",OFFSET('Smelter Look-up'!$H$4,$V1869-4,0))","v":""},{"$f":"IF(ISERROR($V1869),\"\",OFFSET('Smelter Look-up'!$I$4,$V1869-4,0))","v":""},{"$nulls":7},{"$f":"IF(ISERROR($V1869),\"\",OFFSET('Smelter Look-up'!$C$4,$V1869-4,0)&\"\")","v":""},"",{"$f":"IF(B1869=\"\",\"\",IF(ISERROR(MATCH($J1869,SorP!$B$1:$B$5661,0)),\"\",INDIRECT(\"'SorP'!$A$\"&MATCH($J1869,SorP!$B$1:$B$5661,0))))","v":""},null,{"$f":"IF(C1869=\"\",NA(),MATCH($B1869&$C1869,'Smelter Look-up'!$J:$J,0))","v":{"$error":"#N/A"}},null,0,null,null,null,""]
[null,{"$f":"IF(LEN(A1870)=0,\"\",INDEX('Smelter Look-up'!$A:$A,MATCH($A1870,'Smelter Look-up'!$E:$E,0)))","v":""},{"$f":"IF(LEN(A1870)=0,\"\",INDEX('Smelter Look-up'!$C:$C,MATCH($A1870,'Smelter Look-up'!$E:$E,0)))","v":""},null,{"$f":"IF(ISERROR($V1870),\"\",OFFSET('Smelter Look-up'!$D$4,$V1870-4,0)&\"\")","v":""},{"$f":"IF(ISERROR($V1870),\"\",OFFSET('Smelter Look-up'!$E$4,$V1870-4,0))","v":""},{"$f":"IF(C1870=$X$4,\"Enter smelter details\",IF(ISERROR($V1870),\"\",OFFSET('Smelter Look-up'!$F$4,$V1870-4,0)))","v":""},{"$f":"IF(ISERROR($V1870),\"\",OFFSET('Smelter Look-up'!$G$4,$V1870-4,0))","v":""},{"$f":"IF(ISERROR($V1870),\"\",OFFSET('Smelter Look-up'!$H$4,$V1870-4,0))","v":""},{"$f":"IF(ISERROR($V1870),\"\",OFFSET('Smelter Look-up'!$I$4,$V1870-4,0))","v":""},{"$nulls":7},{"$f":"IF(ISERROR($V1870),\"\",OFFSET('Smelter Look-up'!$C$4,$V1870-4,0)&\"\")","v":""},"",{"$f":"IF(B1870=\"\",\"\",IF(ISERROR(MATCH($J1870,SorP!$B$1:$B$5661,0)),\"\",INDIRECT(\"'SorP'!$A$\"&MATCH($J1870,SorP!$B$1:$B$5661,0))))","v":""},null,{"$f":"IF(C1870=\"\",NA(),MATCH($B1870&$C1870,'Smelter Look-up'!$J:$J,0))","v":{"$error":"#N/A"}},null,0,null,null,null,""]
[null,{"$f":"IF(LEN(A1871)=0,\"\",INDEX('Smelter Look-up'!$A:$A,MATCH($A1871,'Smelter Look-up'!$E:$E,0)))","v":""},{"$f":"IF(LEN(A1871)=0,\"\",INDEX('Smelter Look-up'!$C:$C,MATCH($A1871,'Smelter Look-up'!$E:$E,0)))","v":""},null,{"$f":"IF(ISERROR($V1871),\"\",OFFSET('Smelter Look-up'!$D$4,$V1871-4,0)&\"\")","v":""},{"$f":"IF(ISERROR($V1871),\"\",OFFSET('Smelter Look-up'!$E$4,$V1871-4,0))","v":""},{"$f":"IF(C1871=$X$4,\"Enter smelter details\",IF(ISERROR($V1871),\"\",OFFSET('Smelter Look-up'!$F$4,$V1871-4,0)))","v":""},{"$f":"IF(ISERROR($V1871),\"\",OFFSET('Smelter Look-up'!$G$4,$V1871-4,0))","v":""},{"$f":"IF(ISERROR($V1871),\"\",OFFSET('Smelter Look-up'!$H$4,$V1871-4,0))","v":""},{"$f":"IF(ISERROR($V1871),\"\",OFFSET('Smelter Look-up'!$I$4,$V1871-4,0))","v":""},{"$nulls":7},{"$f":"IF(ISERROR($V1871),\"\",OFFSET('Smelter Look-up'!$C$4,$V1871-4,0)&\"\")","v":""},"",{"$f":"IF(B1871=\"\",\"\",IF(ISERROR(MATCH($J1871,SorP!$B$1:$B$5661,0)),\"\",INDIRECT(\"'SorP'!$A$\"&MATCH($J1871,SorP!$B$1:$B$5661,0))))","v":""},null,{"$f":"IF(C1871=\"\",NA(),MATCH($B1871&$C1871,'Smelter Look-up'!$J:$J,0))","v":{"$error":"#N/A"}},null,0,null,null,null,""]
[null,{"$f":"IF(LEN(A1872)=0,\"\",INDEX('Smelter Look-up'!$A:$A,MATCH($A1872,'Smelter Look-up'!$E:$E,0)))","v":""},{"$f":"IF(LEN(A1872)=0,\"\",INDEX('Smelter Look-up'!$C:$C,MATCH($A1872,'Smelter Look-up'!$E:$E,0)))","v":""},null,{"$f":"IF(ISERROR($V1872),\"\",OFFSET('Smelter Look-up'!$D$4,$V1872-4,0)&\"\")","v":""},{"$f":"IF(ISERROR($V1872),\"\",OFFSET('Smelter Look-up'!$E$4,$V1872-4,0))","v":""},{"$f":"IF(C1872=$X$4,\"Enter smelter details\",IF(ISERROR($V1872),\"\",OFFSET('Smelter Look-up'!$F$4,$V1872-4,0)))","v":""},{"$f":"IF(ISERROR($V1872),\"\",OFFSET('Smelter Look-up'!$G$4,$V1872-4,0))","v":""},{"$f":"IF(ISERROR($V1872),\"\",OFFSET('Smelter Look-up'!$H$4,$V1872-4,0))","v":""},{"$f":"IF(ISERROR($V1872),\"\",OFFSET('Smelter Look-up'!$I$4,$V1872-4,0))","v":""},{"$nulls":7},{"$f":"IF(ISERROR($V1872),\"\",OFFSET('Smelter Look-up'!$C$4,$V1872-4,0)&\"\")","v":""},"",{"$f":"IF(B1872=\"\",\"\",IF(ISERROR(MATCH($J1872,SorP!$B$1:$B$5661,0)),\"\",INDIRECT(\"'SorP'!$A$\"&MATCH($J1872,SorP!$B$1:$B$5661,0))))","v":""},null,{"$f":"IF(C1872=\"\",NA(),MATCH($B1872&$C1872,'Smelter Look-up'!$J:$J,0))","v":{"$error":"#N/A"}},null,0,null,null,null,""]
[null,{"$f":"IF(LEN(A1873)=0,\"\",INDEX('Smelter Look-up'!$A:$A,MATCH($A1873,'Smelter Look-up'!$E:$E,0)))","v":""},{"$f":"IF(LEN(A1873)=0,\"\",INDEX('Smelter Look-up'!$C:$C,MATCH($A1873,'Smelter Look-up'!$E:$E,0)))","v":""},null,{"$f":"IF(ISERROR($V1873),\"\",OFFSET('Smelter Look-up'!$D$4,$V1873-4,0)&\"\")","v":""},{"$f":"IF(ISERROR($V1873),\"\",OFFSET('Smelter Look-up'!$E$4,$V1873-4,0))","v":""},{"$f":"IF(C1873=$X$4,\"Enter smelter details\",IF(ISERROR($V1873),\"\",OFFSET('Smelter Look-up'!$F$4,$V1873-4,0)))","v":""},{"$f":"IF(ISERROR($V1873),\"\",OFFSET('Smelter Look-up'!$G$4,$V1873-4,0))","v":""},{"$f":"IF(ISERROR($V1873),\"\",OFFSET('Smelter Look-up'!$H$4,$V1873-4,0))","v":""},{"$f":"IF(ISERROR($V1873),\"\",OFFSET('Smelter Look-up'!$I$4,$V1873-4,0))","v":""},{"$nulls":7},{"$f":"IF(ISERROR($V1873),\"\",OFFSET('Smelter Look-up'!$C$4,$V1873-4,0)&\"\")","v":""},"",{"$f":"IF(B1873=\"\",\"\",IF(ISERROR(MATCH($J1873,SorP!$B$1:$B$5661,0)),\"\",INDIRECT(\"'SorP'!$A$\"&MATCH($J1873,SorP!$B$1:$B$5661,0))))","v":""},null,{"$f":"IF(C1873=\"\",NA(),MATCH($B1873&$C1873,'Smelter Look-up'!$J:$J,0))","v":{"$error":"#N/A"}},null,0,null,null,null,""]
[null,{"$f":"IF(LEN(A1874)=0,\"\",INDEX('Smelter Look-up'!$A:$A,MATCH($A1874,'Smelter Look-up'!$E:$E,0)))","v":""},{"$f":"IF(LEN(A1874)=0,\"\",INDEX('Smelter Look-up'!$C:$C,MATCH($A1874,'Smelter Look-up'!$E:$E,0)))","v":""},null,{"$f":"IF(ISERROR($V1874),\"\",OFFSET('Smelter Look-up'!$D$4,$V1874-4,0)&\"\")","v":""},{"$f":"IF(ISERROR($V1874),\"\",OFFSET('Smelter Look-up'!$E$4,$V1874-4,0))","v":""},{"$f":"IF(C1874=$X$4,\"Enter smelter details\",IF(ISERROR($V1874),\"\",OFFSET('Smelter Look-up'!$F$4,$V1874-4,0)))","v":""},{"$f":"IF(ISERROR($V1874),\"\",OFFSET('Smelter Look-up'!$G$4,$V1874-4,0))","v":""},{"$f":"IF(ISERROR($V1874),\"\",OFFSET('Smelter Look-up'!$H$4,$V1874-4,0))","v":""},{"$f":"IF(ISERROR($V1874),\"\",OFFSET('Smelter Look-up'!$I$4,$V1874-4,0))","v":""},{"$nulls":7},{"$f":"IF(ISERROR($V1874),\"\",OFFSET('Smelter Look-up'!$C$4,$V1874-4,0)&\"\")","v":""},"",{"$f":"IF(B1874=\"\",\"\",IF(ISERROR(MATCH($J1874,SorP!$B$1:$B$5661,0)),\"\",INDIRECT(\"'SorP'!$A$\"&MATCH($J1874,SorP!$B$1:$B$5661,0))))","v":""},null,{"$f":"IF(C1874=\"\",NA(),MATCH($B1874&$C1874,'Smelter Look-up'!$J:$J,0))","v":{"$error":"#N/A"}},null,0,null,null,null,""]
[null,{"$f":"IF(LEN(A1875)=0,\"\",INDEX('Smelter Look-up'!$A:$A,MATCH($A1875,'Smelter Look-up'!$E:$E,0)))","v":""},{"$f":"IF(LEN(A1875)=0,\"\",INDEX('Smelter Look-up'!$C:$C,MATCH($A1875,'Smelter Look-up'!$E:$E,0)))","v":""},null,{"$f":"IF(ISERROR($V1875),\"\",OFFSET('Smelter Look-up'!$D$4,$V1875-4,0)&\"\")","v":""},{"$f":"IF(ISERROR($V1875),\"\",OFFSET('Smelter Look-up'!$E$4,$V1875-4,0))","v":""},{"$f":"IF(C1875=$X$4,\"Enter smelter details\",IF(ISERROR($V1875),\"\",OFFSET('Smelter Look-up'!$F$4,$V1875-4,0)))","v":""},{"$f":"IF(ISERROR($V1875),\"\",OFFSET('Smelter Look-up'!$G$4,$V1875-4,0))","v":""},{"$f":"IF(ISERROR($V1875),\"\",OFFSET('Smelter Look-up'!$H$4,$V1875-4,0))","v":""},{"$f":"IF(ISERROR($V1875),\"\",OFFSET('Smelter Look-up'!$I$4,$V1875-4,0))","v":""},{"$nulls":7},{"$f":"IF(ISERROR($V1875),\"\",OFFSET('Smelter Look-up'!$C$4,$V1875-4,0)&\"\")","v":""},"",{"$f":"IF(B1875=\"\",\"\",IF(ISERROR(MATCH($J1875,SorP!$B$1:$B$5661,0)),\"\",INDIRECT(\"'SorP'!$A$\"&MATCH($J1875,SorP!$B$1:$B$5661,0))))","v":""},null,{"$f":"IF(C1875=\"\",NA(),MATCH($B1875&$C1875,'Smelter Look-up'!$J:$J,0))","v":{"$error":"#N/A"}},null,0,null,null,null,""]
[null,{"$f":"IF(LEN(A1876)=0,\"\",INDEX('Smelter Look-up'!$A:$A,MATCH($A1876,'Smelter Look-up'!$E:$E,0)))","v":""},{"$f":"IF(LEN(A1876)=0,\"\",INDEX('Smelter Look-up'!$C:$C,MATCH($A1876,'Smelter Look-up'!$E:$E,0)))","v":""},null,{"$f":"IF(ISERROR($V1876),\"\",OFFSET('Smelter Look-up'!$D$4,$V1876-4,0)&\"\")","v":""},{"$f":"IF(ISERROR($V1876),\"\",OFFSET('Smelter Look-up'!$E$4,$V1876-4,0))","v":""},{"$f":"IF(C1876=$X$4,\"Enter smelter details\",IF(ISERROR($V1876),\"\",OFFSET('Smelter Look-up'!$F$4,$V1876-4,0)))","v":""},{"$f":"IF(ISERROR($V1876),\"\",OFFSET('Smelter Look-up'!$G$4,$V1876-4,0))","v":""},{"$f":"IF(ISERROR($V1876),\"\",OFFSET('Smelter Look-up'!$H$4,$V1876-4,0))","v":""},{"$f":"IF(ISERROR($V1876),\"\",OFFSET('Smelter Look-up'!$I$4,$V1876-4,0))","v":""},{"$nulls":7},{"$f":"IF(ISERROR($V1876),\"\",OFFSET('Smelter Look-up'!$C$4,$V1876-4,0)&\"\")","v":""},"",{"$f":"IF(B1876=\"\",\"\",IF(ISERROR(MATCH($J1876,SorP!$B$1:$B$5661,0)),\"\",INDIRECT(\"'SorP'!$A$\"&MATCH($J1876,SorP!$B$1:$B$5661,0))))","v":""},null,{"$f":"IF(C1876=\"\",NA(),MATCH($B1876&$C1876,'Smelter Look-up'!$J:$J,0))","v":{"$error":"#N/A"}},null,0,null,null,null,""]
[null,{"$f":"IF(LEN(A1877)=0,\"\",INDEX('Smelter Look-up'!$A:$A,MATCH($A1877,'Smelter Look-up'!$E:$E,0)))","v":""},{"$f":"IF(LEN(A1877)=0,\"\",INDEX('Smelter Look-up'!$C:$C,MATCH($A1877,'Smelter Look-up'!$E:$E,0)))","v":""},null,{"$f":"IF(ISERROR($V1877),\"\",OFFSET('Smelter Look-up'!$D$4,$V1877-4,0)&\"\")","v":""},{"$f":"IF(ISERROR($V1877),\"\",OFFSET('Smelter Look-up'!$E$4,$V1877-4,0))","v":""},{"$f":"IF(C1877=$X$4,\"Enter smelter details\",IF(ISERROR($V1877),\"\",OFFSET('Smelter Look-up'!$F$4,$V1877-4,0)))","v":""},{"$f":"IF(ISERROR($V1877),\"\",OFFSET('Smelter Look-up'!$G$4,$V1877-4,0))","v":""},{"$f":"IF(ISERROR($V1877),\"\",OFFSET('Smelter Look-up'!$H$4,$V1877-4,0))","v":""},{"$f":"IF(ISERROR($V1877),\"\",OFFSET('Smelter Look-up'!$I$4,$V1877-4,0))","v":""},{"$nulls":7},{"$f":"IF(ISERROR($V1877),\"\",OFFSET('Smelter Look-up'!$C$4,$V1877-4,0)&\"\")","v":""},"",{"$f":"IF(B1877=\"\",\"\",IF(ISERROR(MATCH($J1877,SorP!$B$1:$B$5661,0)),\"\",INDIRECT(\"'SorP'!$A$\"&MATCH($J1877,SorP!$B$1:$B$5661,0))))","v":""},null,{"$f":"IF(C1877=\"\",NA(),MATCH($B1877&$C1877,'Smelter Look-up'!$J:$J,0))","v":{"$error":"#N/A"}},null,0,null,null,null,""]
[null,{"$f":"IF(LEN(A1878)=0,\"\",INDEX('Smelter Look-up'!$A:$A,MATCH($A1878,'Smelter Look-up'!$E:$E,0)))","v":""},{"$f":"IF(LEN(A1878)=0,\"\",INDEX('Smelter Look-up'!$C:$C,MATCH($A1878,'Smelter Look-up'!$E:$E,0)))","v":""},null,{"$f":"IF(ISERROR($V1878),\"\",OFFSET('Smelter Look-up'!$D$4,$V1878-4,0)&\"\")","v":""},{"$f":"IF(ISERROR($V1878),\"\",OFFSET('Smelter Look-up'!$E$4,$V1878-4,0))","v":""},{"$f":"IF(C1878=$X$4,\"Enter smelter details\",IF(ISERROR($V1878),\"\",OFFSET('Smelter Look-up'!$F$4,$V1878-4,0)))","v":""},{"$f":"IF(ISERROR($V1878),\"\",OFFSET('Smelter Look-up'!$G$4,$V1878-4,0))","v":""},{"$f":"IF(ISERROR($V1878),\"\",OFFSET('Smelter Look-up'!$H$4,$V1878-4,0))","v":""},{"$f":"IF(ISERROR($V1878),\"\",OFFSET('Smelter Look-up'!$I$4,$V1878-4,0))","v":""},{"$nulls":7},{"$f":"IF(ISERROR($V1878),\"\",OFFSET('Smelter Look-up'!$C$4,$V1878-4,0)&\"\")","v":""},"",{"$f":"IF(B1878=\"\",\"\",IF(ISERROR(MATCH($J1878,SorP!$B$1:$B$5661,0)),\"\",INDIRECT(\"'SorP'!$A$\"&MATCH($J1878,SorP!$B$1:$B$5661,0))))","v":""},null,{"$f":"IF(C1878=\"\",NA(),MATCH($B1878&$C1878,'Smelter Look-up'!$J:$J,0))","v":{"$error":"#N/A"}},null,0,null,null,null,""]
[null,{"$f":"IF(LEN(A1879)=0,\"\",INDEX('Smelter Look-up'!$A:$A,MATCH($A1879,'Smelter Look-up'!$E:$E,0)))","v":""},{"$f":"IF(LEN(A1879)=0,\"\",INDEX('Smelter Look-up'!$C:$C,MATCH($A1879,'Smelter Look-up'!$E:$E,0)))","v":""},null,{"$f":"IF(ISERROR($V1879),\"\",OFFSET('Smelter Look-up'!$D$4,$V1879-4,0)&\"\")","v":""},{"$f":"IF(ISERROR($V1879),\"\",OFFSET('Smelter Look-up'!$E$4,$V1879-4,0))","v":""},{"$f":"IF(C1879=$X$4,\"Enter smelter details\",IF(ISERROR($V1879),\"\",OFFSET('Smelter Look-up'!$F$4,$V1879-4,0)))","v":""},{"$f":"IF(ISERROR($V1879),\"\",OFFSET('Smelter Look-up'!$G$4,$V1879-4,0))","v":""},{"$f":"IF(ISERROR($V1879),\"\",OFFSET('Smelter Look-up'!$H$4,$V1879-4,0))","v":""},{"$f":"IF(ISERROR($V1879),\"\",OFFSET('Smelter Look-up'!$I$4,$V1879-4,0))","v":""},{"$nulls":7},{"$f":"IF(ISERROR($V1879),\"\",OFFSET('Smelter Look-up'!$C$4,$V1879-4,0)&\"\")","v":""},"",{"$f":"IF(B1879=\"\",\"\",IF(ISERROR(MATCH($J1879,SorP!$B$1:$B$5661,0)),\"\",INDIRECT(\"'SorP'!$A$\"&MATCH($J1879,SorP!$B$1:$B$5661,0))))","v":""},null,{"$f":"IF(C1879=\"\",NA(),MATCH($B1879&$C1879,'Smelter Look-up'!$J:$J,0))","v":{"$error":"#N/A"}},null,0,null,null,null,""]
[null,{"$f":"IF(LEN(A1880)=0,\"\",INDEX('Smelter Look-up'!$A:$A,MATCH($A1880,'Smelter Look-up'!$E:$E,0)))","v":""},{"$f":"IF(LEN(A1880)=0,\"\",INDEX('Smelter Look-up'!$C:$C,MATCH($A1880,'Smelter Look-up'!$E:$E,0)))","v":""},null,{"$f":"IF(ISERROR($V1880),\"\",OFFSET('Smelter Look-up'!$D$4,$V1880-4,0)&\"\")","v":""},{"$f":"IF(ISERROR($V1880),\"\",OFFSET('Smelter Look-up'!$E$4,$V1880-4,0))","v":""},{"$f":"IF(C1880=$X$4,\"Enter smelter details\",IF(ISERROR($V1880),\"\",OFFSET('Smelter Look-up'!$F$4,$V1880-4,0)))","v":""},{"$f":"IF(ISERROR($V1880),\"\",OFFSET('Smelter Look-up'!$G$4,$V1880-4,0))","v":""},{"$f":"IF(ISERROR($V1880),\"\",OFFSET('Smelter Look-up'!$H$4,$V1880-4,0))","v":""},{"$f":"IF(ISERROR($V1880),\"\",OFFSET('Smelter Look-up'!$I$4,$V1880-4,0))","v":""},{"$nulls":7},{"$f":"IF(ISERROR($V1880),\"\",OFFSET('Smelter Look-up'!$C$4,$V1880-4,0)&\"\")","v":""},"",{"$f":"IF(B1880=\"\",\"\",IF(ISERROR(MATCH($J1880,SorP!$B$1:$B$5661,0)),\"\",INDIRECT(\"'SorP'!$A$\"&MATCH($J1880,SorP!$B$1:$B$5661,0))))","v":""},null,{"$f":"IF(C1880=\"\",NA(),MATCH($B1880&$C1880,'Smelter Look-up'!$J:$J,0))","v":{"$error":"#N/A"}},null,0,null,null,null,""]
[null,{"$f":"IF(LEN(A1881)=0,\"\",INDEX('Smelter Look-up'!$A:$A,MATCH($A1881,'Smelter Look-up'!$E:$E,0)))","v":""},{"$f":"IF(LEN(A1881)=0,\"\",INDEX('Smelter Look-up'!$C:$C,MATCH($A1881,'Smelter Look-up'!$E:$E,0)))","v":""},null,{"$f":"IF(ISERROR($V1881),\"\",OFFSET('Smelter Look-up'!$D$4,$V1881-4,0)&\"\")","v":""},{"$f":"IF(ISERROR($V1881),\"\",OFFSET('Smelter Look-up'!$E$4,$V1881-4,0))","v":""},{"$f":"IF(C1881=$X$4,\"Enter smelter details\",IF(ISERROR($V1881),\"\",OFFSET('Smelter Look-up'!$F$4,$V1881-4,0)))","v":""},{"$f":"IF(ISERROR($V1881),\"\",OFFSET('Smelter Look-up'!$G$4,$V1881-4,0))","v":""},{"$f":"IF(ISERROR($V1881),\"\",OFFSET('Smelter Look-up'!$H$4,$V1881-4,0))","v":""},{"$f":"IF(ISERROR($V1881),\"\",OFFSET('Smelter Look-up'!$I$4,$V1881-4,0))","v":""},{"$nulls":7},{"$f":"IF(ISERROR($V1881),\"\",OFFSET('Smelter Look-up'!$C$4,$V1881-4,0)&\"\")","v":""},"",{"$f":"IF(B1881=\"\",\"\",IF(ISERROR(MATCH($J1881,SorP!$B$1:$B$5661,0)),\"\",INDIRECT(\"'SorP'!$A$\"&MATCH($J1881,SorP!$B$1:$B$5661,0))))","v":""},null,{"$f":"IF(C1881=\"\",NA(),MATCH($B1881&$C1881,'Smelter Look-up'!$J:$J,0))","v":{"$error":"#N/A"}},null,0,null,null,null,""]
[null,{"$f":"IF(LEN(A1882)=0,\"\",INDEX('Smelter Look-up'!$A:$A,MATCH($A1882,'Smelter Look-up'!$E:$E,0)))","v":""},{"$f":"IF(LEN(A1882)=0,\"\",INDEX('Smelter Look-up'!$C:$C,MATCH($A1882,'Smelter Look-up'!$E:$E,0)))","v":""},null,{"$f":"IF(ISERROR($V1882),\"\",OFFSET('Smelter Look-up'!$D$4,$V1882-4,0)&\"\")","v":""},{"$f":"IF(ISERROR($V1882),\"\",OFFSET('Smelter Look-up'!$E$4,$V1882-4,0))","v":""},{"$f":"IF(C1882=$X$4,\"Enter smelter details\",IF(ISERROR($V1882),\"\",OFFSET('Smelter Look-up'!$F$4,$V1882-4,0)))","v":""},{"$f":"IF(ISERROR($V1882),\"\",OFFSET('Smelter Look-up'!$G$4,$V1882-4,0))","v":""},{"$f":"IF(ISERROR($V1882),\"\",OFFSET('Smelter Look-up'!$H$4,$V1882-4,0))","v":""},{"$f":"IF(ISERROR($V1882),\"\",OFFSET('Smelter Look-up'!$I$4,$V1882-4,0))","v":""},{"$nulls":7},{"$f":"IF(ISERROR($V1882),\"\",OFFSET('Smelter Look-up'!$C$4,$V1882-4,0)&\"\")","v":""},"",{"$f":"IF(B1882=\"\",\"\",IF(ISERROR(MATCH($J1882,SorP!$B$1:$B$5661,0)),\"\",INDIRECT(\"'SorP'!$A$\"&MATCH($J1882,SorP!$B$1:$B$5661,0))))","v":""},null,{"$f":"IF(C1882=\"\",NA(),MATCH($B1882&$C1882,'Smelter Look-up'!$J:$J,0))","v":{"$error":"#N/A"}},null,0,null,null,null,""]
[null,{"$f":"IF(LEN(A1883)=0,\"\",INDEX('Smelter Look-up'!$A:$A,MATCH($A1883,'Smelter Look-up'!$E:$E,0)))","v":""},{"$f":"IF(LEN(A1883)=0,\"\",INDEX('Smelter Look-up'!$C:$C,MATCH($A1883,'Smelter Look-up'!$E:$E,0)))","v":""},null,{"$f":"IF(ISERROR($V1883),\"\",OFFSET('Smelter Look-up'!$D$4,$V1883-4,0)&\"\")","v":""},{"$f":"IF(ISERROR($V1883),\"\",OFFSET('Smelter Look-up'!$E$4,$V1883-4,0))","v":""},{"$f":"IF(C1883=$X$4,\"Enter smelter details\",IF(ISERROR($V1883),\"\",OFFSET('Smelter Look-up'!$F$4,$V1883-4,0)))","v":""},{"$f":"IF(ISERROR($V1883),\"\",OFFSET('Smelter Look-up'!$G$4,$V1883-4,0))","v":""},{"$f":"IF(ISERROR($V1883),\"\",OFFSET('Smelter Look-up'!$H$4,$V1883-4,0))","v":""},{"$f":"IF(ISERROR($V1883),\"\",OFFSET('Smelter Look-up'!$I$4,$V1883-4,0))","v":""},{"$nulls":7},{"$f":"IF(ISERROR($V1883),\"\",OFFSET('Smelter Look-up'!$C$4,$V1883-4,0)&\"\")","v":""},"",{"$f":"IF(B1883=\"\",\"\",IF(ISERROR(MATCH($J1883,SorP!$B$1:$B$5661,0)),\"\",INDIRECT(\"'SorP'!$A$\"&MATCH($J1883,SorP!$B$1:$B$5661,0))))","v":""},null,{"$f":"IF(C1883=\"\",NA(),MATCH($B1883&$C1883,'Smelter Look-up'!$J:$J,0))","v":{"$error":"#N/A"}},null,0,null,null,null,""]
[null,{"$f":"IF(LEN(A1884)=0,\"\",INDEX('Smelter Look-up'!$A:$A,MATCH($A1884,'Smelter Look-up'!$E:$E,0)))","v":""},{"$f":"IF(LEN(A1884)=0,\"\",INDEX('Smelter Look-up'!$C:$C,MATCH($A1884,'Smelter Look-up'!$E:$E,0)))","v":""},null,{"$f":"IF(ISERROR($V1884),\"\",OFFSET('Smelter Look-up'!$D$4,$V1884-4,0)&\"\")","v":""},{"$f":"IF(ISERROR($V1884),\"\",OFFSET('Smelter Look-up'!$E$4,$V1884-4,0))","v":""},{"$f":"IF(C1884=$X$4,\"Enter smelter details\",IF(ISERROR($V1884),\"\",OFFSET('Smelter Look-up'!$F$4,$V1884-4,0)))","v":""},{"$f":"IF(ISERROR($V1884),\"\",OFFSET('Smelter Look-up'!$G$4,$V1884-4,0))","v":""},{"$f":"IF(ISERROR($V1884),\"\",OFFSET('Smelter Look-up'!$H$4,$V1884-4,0))","v":""},{"$f":"IF(ISERROR($V1884),\"\",OFFSET('Smelter Look-up'!$I$4,$V1884-4,0))","v":""},{"$nulls":7},{"$f":"IF(ISERROR($V1884),\"\",OFFSET('Smelter Look-up'!$C$4,$V1884-4,0)&\"\")","v":""},"",{"$f":"IF(B1884=\"\",\"\",IF(ISERROR(MATCH($J1884,SorP!$B$1:$B$5661,0)),\"\",INDIRECT(\"'SorP'!$A$\"&MATCH($J1884,SorP!$B$1:$B$5661,0))))","v":""},null,{"$f":"IF(C1884=\"\",NA(),MATCH($B1884&$C1884,'Smelter Look-up'!$J:$J,0))","v":{"$error":"#N/A"}},null,0,null,null,null,""]
[null,{"$f":"IF(LEN(A1885)=0,\"\",INDEX('Smelter Look-up'!$A:$A,MATCH($A1885,'Smelter Look-up'!$E:$E,0)))","v":""},{"$f":"IF(LEN(A1885)=0,\"\",INDEX('Smelter Look-up'!$C:$C,MATCH($A1885,'Smelter Look-up'!$E:$E,0)))","v":""},null,{"$f":"IF(ISERROR($V1885),\"\",OFFSET('Smelter Look-up'!$D$4,$V1885-4,0)&\"\")","v":""},{"$f":"IF(ISERROR($V1885),\"\",OFFSET('Smelter Look-up'!$E$4,$V1885-4,0))","v":""},{"$f":"IF(C1885=$X$4,\"Enter smelter details\",IF(ISERROR($V1885),\"\",OFFSET('Smelter Look-up'!$F$4,$V1885-4,0)))","v":""},{"$f":"IF(ISERROR($V1885),\"\",OFFSET('Smelter Look-up'!$G$4,$V1885-4,0))","v":""},{"$f":"IF(ISERROR($V1885),\"\",OFFSET('Smelter Look-up'!$H$4,$V1885-4,0))","v":""},{"$f":"IF(ISERROR($V1885),\"\",OFFSET('Smelter Look-up'!$I$4,$V1885-4,0))","v":""},{"$nulls":7},{"$f":"IF(ISERROR($V1885),\"\",OFFSET('Smelter Look-up'!$C$4,$V1885-4,0)&\"\")","v":""},"",{"$f":"IF(B1885=\"\",\"\",IF(ISERROR(MATCH($J1885,SorP!$B$1:$B$5661,0)),\"\",INDIRECT(\"'SorP'!$A$\"&MATCH($J1885,SorP!$B$1:$B$5661,0))))","v":""},null,{"$f":"IF(C1885=\"\",NA(),MATCH($B1885&$C1885,'Smelter Look-up'!$J:$J,0))","v":{"$error":"#N/A"}},null,0,null,null,null,""]
[null,{"$f":"IF(LEN(A1886)=0,\"\",INDEX('Smelter Look-up'!$A:$A,MATCH($A1886,'Smelter Look-up'!$E:$E,0)))","v":""},{"$f":"IF(LEN(A1886)=0,\"\",INDEX('Smelter Look-up'!$C:$C,MATCH($A1886,'Smelter Look-up'!$E:$E,0)))","v":""},null,{"$f":"IF(ISERROR($V1886),\"\",OFFSET('Smelter Look-up'!$D$4,$V1886-4,0)&\"\")","v":""},{"$f":"IF(ISERROR($V1886),\"\",OFFSET('Smelter Look-up'!$E$4,$V1886-4,0))","v":""},{"$f":"IF(C1886=$X$4,\"Enter smelter details\",IF(ISERROR($V1886),\"\",OFFSET('Smelter Look-up'!$F$4,$V1886-4,0)))","v":""},{"$f":"IF(ISERROR($V1886),\"\",OFFSET('Smelter Look-up'!$G$4,$V1886-4,0))","v":""},{"$f":"IF(ISERROR($V1886),\"\",OFFSET('Smelter Look-up'!$H$4,$V1886-4,0))","v":""},{"$f":"IF(ISERROR($V1886),\"\",OFFSET('Smelter Look-up'!$I$4,$V1886-4,0))","v":""},{"$nulls":7},{"$f":"IF(ISERROR($V1886),\"\",OFFSET('Smelter Look-up'!$C$4,$V1886-4,0)&\"\")","v":""},"",{"$f":"IF(B1886=\"\",\"\",IF(ISERROR(MATCH($J1886,SorP!$B$1:$B$5661,0)),\"\",INDIRECT(\"'SorP'!$A$\"&MATCH($J1886,SorP!$B$1:$B$5661,0))))","v":""},null,{"$f":"IF(C1886=\"\",NA(),MATCH($B1886&$C1886,'Smelter Look-up'!$J:$J,0))","v":{"$error":"#N/A"}},null,0,null,null,null,""]
[null,{"$f":"IF(LEN(A1887)=0,\"\",INDEX('Smelter Look-up'!$A:$A,MATCH($A1887,'Smelter Look-up'!$E:$E,0)))","v":""},{"$f":"IF(LEN(A1887)=0,\"\",INDEX('Smelter Look-up'!$C:$C,MATCH($A1887,'Smelter Look-up'!$E:$E,0)))","v":""},null,{"$f":"IF(ISERROR($V1887),\"\",OFFSET('Smelter Look-up'!$D$4,$V1887-4,0)&\"\")","v":""},{"$f":"IF(ISERROR($V1887),\"\",OFFSET('Smelter Look-up'!$E$4,$V1887-4,0))","v":""},{"$f":"IF(C1887=$X$4,\"Enter smelter details\",IF(ISERROR($V1887),\"\",OFFSET('Smelter Look-up'!$F$4,$V1887-4,0)))","v":""},{"$f":"IF(ISERROR($V1887),\"\",OFFSET('Smelter Look-up'!$G$4,$V1887-4,0))","v":""},{"$f":"IF(ISERROR($V1887),\"\",OFFSET('Smelter Look-up'!$H$4,$V1887-4,0))","v":""},{"$f":"IF(ISERROR($V1887),\"\",OFFSET('Smelter Look-up'!$I$4,$V1887-4,0))","v":""},{"$nulls":7},{"$f":"IF(ISERROR($V1887),\"\",OFFSET('Smelter Look-up'!$C$4,$V1887-4,0)&\"\")","v":""},"",{"$f":"IF(B1887=\"\",\"\",IF(ISERROR(MATCH($J1887,SorP!$B$1:$B$5661,0)),\"\",INDIRECT(\"'SorP'!$A$\"&MATCH($J1887,SorP!$B$1:$B$5661,0))))","v":""},null,{"$f":"IF(C1887=\"\",NA(),MATCH($B1887&$C1887,'Smelter Look-up'!$J:$J,0))","v":{"$error":"#N/A"}},null,0,null,null,null,""]
[null,{"$f":"IF(LEN(A1888)=0,\"\",INDEX('Smelter Look-up'!$A:$A,MATCH($A1888,'Smelter Look-up'!$E:$E,0)))","v":""},{"$f":"IF(LEN(A1888)=0,\"\",INDEX('Smelter Look-up'!$C:$C,MATCH($A1888,'Smelter Look-up'!$E:$E,0)))","v":""},null,{"$f":"IF(ISERROR($V1888),\"\",OFFSET('Smelter Look-up'!$D$4,$V1888-4,0)&\"\")","v":""},{"$f":"IF(ISERROR($V1888),\"\",OFFSET('Smelter Look-up'!$E$4,$V1888-4,0))","v":""},{"$f":"IF(C1888=$X$4,\"Enter smelter details\",IF(ISERROR($V1888),\"\",OFFSET('Smelter Look-up'!$F$4,$V1888-4,0)))","v":""},{"$f":"IF(ISERROR($V1888),\"\",OFFSET('Smelter Look-up'!$G$4,$V1888-4,0))","v":""},{"$f":"IF(ISERROR($V1888),\"\",OFFSET('Smelter Look-up'!$H$4,$V1888-4,0))","v":""},{"$f":"IF(ISERROR($V1888),\"\",OFFSET('Smelter Look-up'!$I$4,$V1888-4,0))","v":""},{"$nulls":7},{"$f":"IF(ISERROR($V1888),\"\",OFFSET('Smelter Look-up'!$C$4,$V1888-4,0)&\"\")","v":""},"",{"$f":"IF(B1888=\"\",\"\",IF(ISERROR(MATCH($J1888,SorP!$B$1:$B$5661,0)),\"\",INDIRECT(\"'SorP'!$A$\"&MATCH($J1888,SorP!$B$1:$B$5661,0))))","v":""},null,{"$f":"IF(C1888=\"\",NA(),MATCH($B1888&$C1888,'Smelter Look-up'!$J:$J,0))","v":{"$error":"#N/A"}},null,0,null,null,null,""]
[null,{"$f":"IF(LEN(A1889)=0,\"\",INDEX('Smelter Look-up'!$A:$A,MATCH($A1889,'Smelter Look-up'!$E:$E,0)))","v":""},{"$f":"IF(LEN(A1889)=0,\"\",INDEX('Smelter Look-up'!$C:$C,MATCH($A1889,'Smelter Look-up'!$E:$E,0)))","v":""},null,{"$f":"IF(ISERROR($V1889),\"\",OFFSET('Smelter Look-up'!$D$4,$V1889-4,0)&\"\")","v":""},{"$f":"IF(ISERROR($V1889),\"\",OFFSET('Smelter Look-up'!$E$4,$V1889-4,0))","v":""},{"$f":"IF(C1889=$X$4,\"Enter smelter details\",IF(ISERROR($V1889),\"\",OFFSET('Smelter Look-up'!$F$4,$V1889-4,0)))","v":""},{"$f":"IF(ISERROR($V1889),\"\",OFFSET('Smelter Look-up'!$G$4,$V1889-4,0))","v":""},{"$f":"IF(ISERROR($V1889),\"\",OFFSET('Smelter Look-up'!$H$4,$V1889-4,0))","v":""},{"$f":"IF(ISERROR($V1889),\"\",OFFSET('Smelter Look-up'!$I$4,$V1889-4,0))","v":""},{"$nulls":7},{"$f":"IF(ISERROR($V1889),\"\",OFFSET('Smelter Look-up'!$C$4,$V1889-4,0)&\"\")","v":""},"",{"$f":"IF(B1889=\"\",\"\",IF(ISERROR(MATCH($J1889,SorP!$B$1:$B$5661,0)),\"\",INDIRECT(\"'SorP'!$A$\"&MATCH($J1889,SorP!$B$1:$B$5661,0))))","v":""},null,{"$f":"IF(C1889=\"\",NA(),MATCH($B1889&$C1889,'Smelter Look-up'!$J:$J,0))","v":{"$error":"#N/A"}},null,0,null,null,null,""]
[null,{"$f":"IF(LEN(A1890)=0,\"\",INDEX('Smelter Look-up'!$A:$A,MATCH($A1890,'Smelter Look-up'!$E:$E,0)))","v":""},{"$f":"IF(LEN(A1890)=0,\"\",INDEX('Smelter Look-up'!$C:$C,MATCH($A1890,'Smelter Look-up'!$E:$E,0)))","v":""},null,{"$f":"IF(ISERROR($V1890),\"\",OFFSET('Smelter Look-up'!$D$4,$V1890-4,0)&\"\")","v":""},{"$f":"IF(ISERROR($V1890),\"\",OFFSET('Smelter Look-up'!$E$4,$V1890-4,0))","v":""},{"$f":"IF(C1890=$X$4,\"Enter smelter details\",IF(ISERROR($V1890),\"\",OFFSET('Smelter Look-up'!$F$4,$V1890-4,0)))","v":""},{"$f":"IF(ISERROR($V1890),\"\",OFFSET('Smelter Look-up'!$G$4,$V1890-4,0))","v":""},{"$f":"IF(ISERROR($V1890),\"\",OFFSET('Smelter Look-up'!$H$4,$V1890-4,0))","v":""},{"$f":"IF(ISERROR($V1890),\"\",OFFSET('Smelter Look-up'!$I$4,$V1890-4,0))","v":""},{"$nulls":7},{"$f":"IF(ISERROR($V1890),\"\",OFFSET('Smelter Look-up'!$C$4,$V1890-4,0)&\"\")","v":""},"",{"$f":"IF(B1890=\"\",\"\",IF(ISERROR(MATCH($J1890,SorP!$B$1:$B$5661,0)),\"\",INDIRECT(\"'SorP'!$A$\"&MATCH($J1890,SorP!$B$1:$B$5661,0))))","v":""},null,{"$f":"IF(C1890=\"\",NA(),MATCH($B1890&$C1890,'Smelter Look-up'!$J:$J,0))","v":{"$error":"#N/A"}},null,0,null,null,null,""]
[null,{"$f":"IF(LEN(A1891)=0,\"\",INDEX('Smelter Look-up'!$A:$A,MATCH($A1891,'Smelter Look-up'!$E:$E,0)))","v":""},{"$f":"IF(LEN(A1891)=0,\"\",INDEX('Smelter Look-up'!$C:$C,MATCH($A1891,'Smelter Look-up'!$E:$E,0)))","v":""},null,{"$f":"IF(ISERROR($V1891),\"\",OFFSET('Smelter Look-up'!$D$4,$V1891-4,0)&\"\")","v":""},{"$f":"IF(ISERROR($V1891),\"\",OFFSET('Smelter Look-up'!$E$4,$V1891-4,0))","v":""},{"$f":"IF(C1891=$X$4,\"Enter smelter details\",IF(ISERROR($V1891),\"\",OFFSET('Smelter Look-up'!$F$4,$V1891-4,0)))","v":""},{"$f":"IF(ISERROR($V1891),\"\",OFFSET('Smelter Look-up'!$G$4,$V1891-4,0))","v":""},{"$f":"IF(ISERROR($V1891),\"\",OFFSET('Smelter Look-up'!$H$4,$V1891-4,0))","v":""},{"$f":"IF(ISERROR($V1891),\"\",OFFSET('Smelter Look-up'!$I$4,$V1891-4,0))","v":""},{"$nulls":7},{"$f":"IF(ISERROR($V1891),\"\",OFFSET('Smelter Look-up'!$C$4,$V1891-4,0)&\"\")","v":""},"",{"$f":"IF(B1891=\"\",\"\",IF(ISERROR(MATCH($J1891,SorP!$B$1:$B$5661,0)),\"\",INDIRECT(\"'SorP'!$A$\"&MATCH($J1891,SorP!$B$1:$B$5661,0))))","v":""},null,{"$f":"IF(C1891=\"\",NA(),MATCH($B1891&$C1891,'Smelter Look-up'!$J:$J,0))","v":{"$error":"#N/A"}},null,0,null,null,null,""]
[null,{"$f":"IF(LEN(A1892)=0,\"\",INDEX('Smelter Look-up'!$A:$A,MATCH($A1892,'Smelter Look-up'!$E:$E,0)))","v":""},{"$f":"IF(LEN(A1892)=0,\"\",INDEX('Smelter Look-up'!$C:$C,MATCH($A1892,'Smelter Look-up'!$E:$E,0)))","v":""},null,{"$f":"IF(ISERROR($V1892),\"\",OFFSET('Smelter Look-up'!$D$4,$V1892-4,0)&\"\")","v":""},{"$f":"IF(ISERROR($V1892),\"\",OFFSET('Smelter Look-up'!$E$4,$V1892-4,0))","v":""},{"$f":"IF(C1892=$X$4,\"Enter smelter details\",IF(ISERROR($V1892),\"\",OFFSET('Smelter Look-up'!$F$4,$V1892-4,0)))","v":""},{"$f":"IF(ISERROR($V1892),\"\",OFFSET('Smelter Look-up'!$G$4,$V1892-4,0))","v":""},{"$f":"IF(ISERROR($V1892),\"\",OFFSET('Smelter Look-up'!$H$4,$V1892-4,0))","v":""},{"$f":"IF(ISERROR($V1892),\"\",OFFSET('Smelter Look-up'!$I$4,$V1892-4,0))","v":""},{"$nulls":7},{"$f":"IF(ISERROR($V1892),\"\",OFFSET('Smelter Look-up'!$C$4,$V1892-4,0)&\"\")","v":""},"",{"$f":"IF(B1892=\"\",\"\",IF(ISERROR(MATCH($J1892,SorP!$B$1:$B$5661,0)),\"\",INDIRECT(\"'SorP'!$A$\"&MATCH($J1892,SorP!$B$1:$B$5661,0))))","v":""},null,{"$f":"IF(C1892=\"\",NA(),MATCH($B1892&$C1892,'Smelter Look-up'!$J:$J,0))","v":{"$error":"#N/A"}},null,0,null,null,null,""]
[null,{"$f":"IF(LEN(A1893)=0,\"\",INDEX('Smelter Look-up'!$A:$A,MATCH($A1893,'Smelter Look-up'!$E:$E,0)))","v":""},{"$f":"IF(LEN(A1893)=0,\"\",INDEX('Smelter Look-up'!$C:$C,MATCH($A1893,'Smelter Look-up'!$E:$E,0)))","v":""},null,{"$f":"IF(ISERROR($V1893),\"\",OFFSET('Smelter Look-up'!$D$4,$V1893-4,0)&\"\")","v":""},{"$f":"IF(ISERROR($V1893),\"\",OFFSET('Smelter Look-up'!$E$4,$V1893-4,0))","v":""},{"$f":"IF(C1893=$X$4,\"Enter smelter details\",IF(ISERROR($V1893),\"\",OFFSET('Smelter Look-up'!$F$4,$V1893-4,0)))","v":""},{"$f":"IF(ISERROR($V1893),\"\",OFFSET('Smelter Look-up'!$G$4,$V1893-4,0))","v":""},{"$f":"IF(ISERROR($V1893),\"\",OFFSET('Smelter Look-up'!$H$4,$V1893-4,0))","v":""},{"$f":"IF(ISERROR($V1893),\"\",OFFSET('Smelter Look-up'!$I$4,$V1893-4,0))","v":""},{"$nulls":7},{"$f":"IF(ISERROR($V1893),\"\",OFFSET('Smelter Look-up'!$C$4,$V1893-4,0)&\"\")","v":""},"",{"$f":"IF(B1893=\"\",\"\",IF(ISERROR(MATCH($J1893,SorP!$B$1:$B$5661,0)),\"\",INDIRECT(\"'SorP'!$A$\"&MATCH($J1893,SorP!$B$1:$B$5661,0))))","v":""},null,{"$f":"IF(C1893=\"\",NA(),MATCH($B1893&$C1893,'Smelter Look-up'!$J:$J,0))","v":{"$error":"#N/A"}},null,0,null,null,null,""]
[null,{"$f":"IF(LEN(A1894)=0,\"\",INDEX('Smelter Look-up'!$A:$A,MATCH($A1894,'Smelter Look-up'!$E:$E,0)))","v":""},{"$f":"IF(LEN(A1894)=0,\"\",INDEX('Smelter Look-up'!$C:$C,MATCH($A1894,'Smelter Look-up'!$E:$E,0)))","v":""},null,{"$f":"IF(ISERROR($V1894),\"\",OFFSET('Smelter Look-up'!$D$4,$V1894-4,0)&\"\")","v":""},{"$f":"IF(ISERROR($V1894),\"\",OFFSET('Smelter Look-up'!$E$4,$V1894-4,0))","v":""},{"$f":"IF(C1894=$X$4,\"Enter smelter details\",IF(ISERROR($V1894),\"\",OFFSET('Smelter Look-up'!$F$4,$V1894-4,0)))","v":""},{"$f":"IF(ISERROR($V1894),\"\",OFFSET('Smelter Look-up'!$G$4,$V1894-4,0))","v":""},{"$f":"IF(ISERROR($V1894),\"\",OFFSET('Smelter Look-up'!$H$4,$V1894-4,0))","v":""},{"$f":"IF(ISERROR($V1894),\"\",OFFSET('Smelter Look-up'!$I$4,$V1894-4,0))","v":""},{"$nulls":7},{"$f":"IF(ISERROR($V1894),\"\",OFFSET('Smelter Look-up'!$C$4,$V1894-4,0)&\"\")","v":""},"",{"$f":"IF(B1894=\"\",\"\",IF(ISERROR(MATCH($J1894,SorP!$B$1:$B$5661,0)),\"\",INDIRECT(\"'SorP'!$A$\"&MATCH($J1894,SorP!$B$1:$B$5661,0))))","v":""},null,{"$f":"IF(C1894=\"\",NA(),MATCH($B1894&$C1894,'Smelter Look-up'!$J:$J,0))","v":{"$error":"#N/A"}},null,0,null,null,null,""]
[null,{"$f":"IF(LEN(A1895)=0,\"\",INDEX('Smelter Look-up'!$A:$A,MATCH($A1895,'Smelter Look-up'!$E:$E,0)))","v":""},{"$f":"IF(LEN(A1895)=0,\"\",INDEX('Smelter Look-up'!$C:$C,MATCH($A1895,'Smelter Look-up'!$E:$E,0)))","v":""},null,{"$f":"IF(ISERROR($V1895),\"\",OFFSET('Smelter Look-up'!$D$4,$V1895-4,0)&\"\")","v":""},{"$f":"IF(ISERROR($V1895),\"\",OFFSET('Smelter Look-up'!$E$4,$V1895-4,0))","v":""},{"$f":"IF(C1895=$X$4,\"Enter smelter details\",IF(ISERROR($V1895),\"\",OFFSET('Smelter Look-up'!$F$4,$V1895-4,0)))","v":""},{"$f":"IF(ISERROR($V1895),\"\",OFFSET('Smelter Look-up'!$G$4,$V1895-4,0))","v":""},{"$f":"IF(ISERROR($V1895),\"\",OFFSET('Smelter Look-up'!$H$4,$V1895-4,0))","v":""},{"$f":"IF(ISERROR($V1895),\"\",OFFSET('Smelter Look-up'!$I$4,$V1895-4,0))","v":""},{"$nulls":7},{"$f":"IF(ISERROR($V1895),\"\",OFFSET('Smelter Look-up'!$C$4,$V1895-4,0)&\"\")","v":""},"",{"$f":"IF(B1895=\"\",\"\",IF(ISERROR(MATCH($J1895,SorP!$B$1:$B$5661,0)),\"\",INDIRECT(\"'SorP'!$A$\"&MATCH($J1895,SorP!$B$1:$B$5661,0))))","v":""},null,{"$f":"IF(C1895=\"\",NA(),MATCH($B1895&$C1895,'Smelter Look-up'!$J:$J,0))","v":{"$error":"#N/A"}},null,0,null,null,null,""]
[null,{"$f":"IF(LEN(A1896)=0,\"\",INDEX('Smelter Look-up'!$A:$A,MATCH($A1896,'Smelter Look-up'!$E:$E,0)))","v":""},{"$f":"IF(LEN(A1896)=0,\"\",INDEX('Smelter Look-up'!$C:$C,MATCH($A1896,'Smelter Look-up'!$E:$E,0)))","v":""},null,{"$f":"IF(ISERROR($V1896),\"\",OFFSET('Smelter Look-up'!$D$4,$V1896-4,0)&\"\")","v":""},{"$f":"IF(ISERROR($V1896),\"\",OFFSET('Smelter Look-up'!$E$4,$V1896-4,0))","v":""},{"$f":"IF(C1896=$X$4,\"Enter smelter details\",IF(ISERROR($V1896),\"\",OFFSET('Smelter Look-up'!$F$4,$V1896-4,0)))","v":""},{"$f":"IF(ISERROR($V1896),\"\",OFFSET('Smelter Look-up'!$G$4,$V1896-4,0))","v":""},{"$f":"IF(ISERROR($V1896),\"\",OFFSET('Smelter Look-up'!$H$4,$V1896-4,0))","v":""},{"$f":"IF(ISERROR($V1896),\"\",OFFSET('Smelter Look-up'!$I$4,$V1896-4,0))","v":""},{"$nulls":7},{"$f":"IF(ISERROR($V1896),\"\",OFFSET('Smelter Look-up'!$C$4,$V1896-4,0)&\"\")","v":""},"",{"$f":"IF(B1896=\"\",\"\",IF(ISERROR(MATCH($J1896,SorP!$B$1:$B$5661,0)),\"\",INDIRECT(\"'SorP'!$A$\"&MATCH($J1896,SorP!$B$1:$B$5661,0))))","v":""},null,{"$f":"IF(C1896=\"\",NA(),MATCH($B1896&$C1896,'Smelter Look-up'!$J:$J,0))","v":{"$error":"#N/A"}},null,0,null,null,null,""]
[null,{"$f":"IF(LEN(A1897)=0,\"\",INDEX('Smelter Look-up'!$A:$A,MATCH($A1897,'Smelter Look-up'!$E:$E,0)))","v":""},{"$f":"IF(LEN(A1897)=0,\"\",INDEX('Smelter Look-up'!$C:$C,MATCH($A1897,'Smelter Look-up'!$E:$E,0)))","v":""},null,{"$f":"IF(ISERROR($V1897),\"\",OFFSET('Smelter Look-up'!$D$4,$V1897-4,0)&\"\")","v":""},{"$f":"IF(ISERROR($V1897),\"\",OFFSET('Smelter Look-up'!$E$4,$V1897-4,0))","v":""},{"$f":"IF(C1897=$X$4,\"Enter smelter details\",IF(ISERROR($V1897),\"\",OFFSET('Smelter Look-up'!$F$4,$V1897-4,0)))","v":""},{"$f":"IF(ISERROR($V1897),\"\",OFFSET('Smelter Look-up'!$G$4,$V1897-4,0))","v":""},{"$f":"IF(ISERROR($V1897),\"\",OFFSET('Smelter Look-up'!$H$4,$V1897-4,0))","v":""},{"$f":"IF(ISERROR($V1897),\"\",OFFSET('Smelter Look-up'!$I$4,$V1897-4,0))","v":""},{"$nulls":7},{"$f":"IF(ISERROR($V1897),\"\",OFFSET('Smelter Look-up'!$C$4,$V1897-4,0)&\"\")","v":""},"",{"$f":"IF(B1897=\"\",\"\",IF(ISERROR(MATCH($J1897,SorP!$B$1:$B$5661,0)),\"\",INDIRECT(\"'SorP'!$A$\"&MATCH($J1897,SorP!$B$1:$B$5661,0))))","v":""},null,{"$f":"IF(C1897=\"\",NA(),MATCH($B1897&$C1897,'Smelter Look-up'!$J:$J,0))","v":{"$error":"#N/A"}},null,0,null,null,null,""]
[null,{"$f":"IF(LEN(A1898)=0,\"\",INDEX('Smelter Look-up'!$A:$A,MATCH($A1898,'Smelter Look-up'!$E:$E,0)))","v":""},{"$f":"IF(LEN(A1898)=0,\"\",INDEX('Smelter Look-up'!$C:$C,MATCH($A1898,'Smelter Look-up'!$E:$E,0)))","v":""},null,{"$f":"IF(ISERROR($V1898),\"\",OFFSET('Smelter Look-up'!$D$4,$V1898-4,0)&\"\")","v":""},{"$f":"IF(ISERROR($V1898),\"\",OFFSET('Smelter Look-up'!$E$4,$V1898-4,0))","v":""},{"$f":"IF(C1898=$X$4,\"Enter smelter details\",IF(ISERROR($V1898),\"\",OFFSET('Smelter Look-up'!$F$4,$V1898-4,0)))","v":""},{"$f":"IF(ISERROR($V1898),\"\",OFFSET('Smelter Look-up'!$G$4,$V1898-4,0))","v":""},{"$f":"IF(ISERROR($V1898),\"\",OFFSET('Smelter Look-up'!$H$4,$V1898-4,0))","v":""},{"$f":"IF(ISERROR($V1898),\"\",OFFSET('Smelter Look-up'!$I$4,$V1898-4,0))","v":""},{"$nulls":7},{"$f":"IF(ISERROR($V1898),\"\",OFFSET('Smelter Look-up'!$C$4,$V1898-4,0)&\"\")","v":""},"",{"$f":"IF(B1898=\"\",\"\",IF(ISERROR(MATCH($J1898,SorP!$B$1:$B$5661,0)),\"\",INDIRECT(\"'SorP'!$A$\"&MATCH($J1898,SorP!$B$1:$B$5661,0))))","v":""},null,{"$f":"IF(C1898=\"\",NA(),MATCH($B1898&$C1898,'Smelter Look-up'!$J:$J,0))","v":{"$error":"#N/A"}},null,0,null,null,null,""]
[null,{"$f":"IF(LEN(A1899)=0,\"\",INDEX('Smelter Look-up'!$A:$A,MATCH($A1899,'Smelter Look-up'!$E:$E,0)))","v":""},{"$f":"IF(LEN(A1899)=0,\"\",INDEX('Smelter Look-up'!$C:$C,MATCH($A1899,'Smelter Look-up'!$E:$E,0)))","v":""},null,{"$f":"IF(ISERROR($V1899),\"\",OFFSET('Smelter Look-up'!$D$4,$V1899-4,0)&\"\")","v":""},{"$f":"IF(ISERROR($V1899),\"\",OFFSET('Smelter Look-up'!$E$4,$V1899-4,0))","v":""},{"$f":"IF(C1899=$X$4,\"Enter smelter details\",IF(ISERROR($V1899),\"\",OFFSET('Smelter Look-up'!$F$4,$V1899-4,0)))","v":""},{"$f":"IF(ISERROR($V1899),\"\",OFFSET('Smelter Look-up'!$G$4,$V1899-4,0))","v":""},{"$f":"IF(ISERROR($V1899),\"\",OFFSET('Smelter Look-up'!$H$4,$V1899-4,0))","v":""},{"$f":"IF(ISERROR($V1899),\"\",OFFSET('Smelter Look-up'!$I$4,$V1899-4,0))","v":""},{"$nulls":7},{"$f":"IF(ISERROR($V1899),\"\",OFFSET('Smelter Look-up'!$C$4,$V1899-4,0)&\"\")","v":""},"",{"$f":"IF(B1899=\"\",\"\",IF(ISERROR(MATCH($J1899,SorP!$B$1:$B$5661,0)),\"\",INDIRECT(\"'SorP'!$A$\"&MATCH($J1899,SorP!$B$1:$B$5661,0))))","v":""},null,{"$f":"IF(C1899=\"\",NA(),MATCH($B1899&$C1899,'Smelter Look-up'!$J:$J,0))","v":{"$error":"#N/A"}},null,0,null,null,null,""]
[null,{"$f":"IF(LEN(A1900)=0,\"\",INDEX('Smelter Look-up'!$A:$A,MATCH($A1900,'Smelter Look-up'!$E:$E,0)))","v":""},{"$f":"IF(LEN(A1900)=0,\"\",INDEX('Smelter Look-up'!$C:$C,MATCH($A1900,'Smelter Look-up'!$E:$E,0)))","v":""},null,{"$f":"IF(ISERROR($V1900),\"\",OFFSET('Smelter Look-up'!$D$4,$V1900-4,0)&\"\")","v":""},{"$f":"IF(ISERROR($V1900),\"\",OFFSET('Smelter Look-up'!$E$4,$V1900-4,0))","v":""},{"$f":"IF(C1900=$X$4,\"Enter smelter details\",IF(ISERROR($V1900),\"\",OFFSET('Smelter Look-up'!$F$4,$V1900-4,0)))","v":""},{"$f":"IF(ISERROR($V1900),\"\",OFFSET('Smelter Look-up'!$G$4,$V1900-4,0))","v":""},{"$f":"IF(ISERROR($V1900),\"\",OFFSET('Smelter Look-up'!$H$4,$V1900-4,0))","v":""},{"$f":"IF(ISERROR($V1900),\"\",OFFSET('Smelter Look-up'!$I$4,$V1900-4,0))","v":""},{"$nulls":7},{"$f":"IF(ISERROR($V1900),\"\",OFFSET('Smelter Look-up'!$C$4,$V1900-4,0)&\"\")","v":""},"",{"$f":"IF(B1900=\"\",\"\",IF(ISERROR(MATCH($J1900,SorP!$B$1:$B$5661,0)),\"\",INDIRECT(\"'SorP'!$A$\"&MATCH($J1900,SorP!$B$1:$B$5661,0))))","v":""},null,{"$f":"IF(C1900=\"\",NA(),MATCH($B1900&$C1900,'Smelter Look-up'!$J:$J,0))","v":{"$error":"#N/A"}},null,0,null,null,null,""]
[null,{"$f":"IF(LEN(A1901)=0,\"\",INDEX('Smelter Look-up'!$A:$A,MATCH($A1901,'Smelter Look-up'!$E:$E,0)))","v":""},{"$f":"IF(LEN(A1901)=0,\"\",INDEX('Smelter Look-up'!$C:$C,MATCH($A1901,'Smelter Look-up'!$E:$E,0)))","v":""},null,{"$f":"IF(ISERROR($V1901),\"\",OFFSET('Smelter Look-up'!$D$4,$V1901-4,0)&\"\")","v":""},{"$f":"IF(ISERROR($V1901),\"\",OFFSET('Smelter Look-up'!$E$4,$V1901-4,0))","v":""},{"$f":"IF(C1901=$X$4,\"Enter smelter details\",IF(ISERROR($V1901),\"\",OFFSET('Smelter Look-up'!$F$4,$V1901-4,0)))","v":""},{"$f":"IF(ISERROR($V1901),\"\",OFFSET('Smelter Look-up'!$G$4,$V1901-4,0))","v":""},{"$f":"IF(ISERROR($V1901),\"\",OFFSET('Smelter Look-up'!$H$4,$V1901-4,0))","v":""},{"$f":"IF(ISERROR($V1901),\"\",OFFSET('Smelter Look-up'!$I$4,$V1901-4,0))","v":""},{"$nulls":7},{"$f":"IF(ISERROR($V1901),\"\",OFFSET('Smelter Look-up'!$C$4,$V1901-4,0)&\"\")","v":""},"",{"$f":"IF(B1901=\"\",\"\",IF(ISERROR(MATCH($J1901,SorP!$B$1:$B$5661,0)),\"\",INDIRECT(\"'SorP'!$A$\"&MATCH($J1901,SorP!$B$1:$B$5661,0))))","v":""},null,{"$f":"IF(C1901=\"\",NA(),MATCH($B1901&$C1901,'Smelter Look-up'!$J:$J,0))","v":{"$error":"#N/A"}},null,0,null,null,null,""]
[null,{"$f":"IF(LEN(A1902)=0,\"\",INDEX('Smelter Look-up'!$A:$A,MATCH($A1902,'Smelter Look-up'!$E:$E,0)))","v":""},{"$f":"IF(LEN(A1902)=0,\"\",INDEX('Smelter Look-up'!$C:$C,MATCH($A1902,'Smelter Look-up'!$E:$E,0)))","v":""},null,{"$f":"IF(ISERROR($V1902),\"\",OFFSET('Smelter Look-up'!$D$4,$V1902-4,0)&\"\")","v":""},{"$f":"IF(ISERROR($V1902),\"\",OFFSET('Smelter Look-up'!$E$4,$V1902-4,0))","v":""},{"$f":"IF(C1902=$X$4,\"Enter smelter details\",IF(ISERROR($V1902),\"\",OFFSET('Smelter Look-up'!$F$4,$V1902-4,0)))","v":""},{"$f":"IF(ISERROR($V1902),\"\",OFFSET('Smelter Look-up'!$G$4,$V1902-4,0))","v":""},{"$f":"IF(ISERROR($V1902),\"\",OFFSET('Smelter Look-up'!$H$4,$V1902-4,0))","v":""},{"$f":"IF(ISERROR($V1902),\"\",OFFSET('Smelter Look-up'!$I$4,$V1902-4,0))","v":""},{"$nulls":7},{"$f":"IF(ISERROR($V1902),\"\",OFFSET('Smelter Look-up'!$C$4,$V1902-4,0)&\"\")","v":""},"",{"$f":"IF(B1902=\"\",\"\",IF(ISERROR(MATCH($J1902,SorP!$B$1:$B$5661,0)),\"\",INDIRECT(\"'SorP'!$A$\"&MATCH($J1902,SorP!$B$1:$B$5661,0))))","v":""},null,{"$f":"IF(C1902=\"\",NA(),MATCH($B1902&$C1902,'Smelter Look-up'!$J:$J,0))","v":{"$error":"#N/A"}},null,0,null,null,null,""]
[null,{"$f":"IF(LEN(A1903)=0,\"\",INDEX('Smelter Look-up'!$A:$A,MATCH($A1903,'Smelter Look-up'!$E:$E,0)))","v":""},{"$f":"IF(LEN(A1903)=0,\"\",INDEX('Smelter Look-up'!$C:$C,MATCH($A1903,'Smelter Look-up'!$E:$E,0)))","v":""},null,{"$f":"IF(ISERROR($V1903),\"\",OFFSET('Smelter Look-up'!$D$4,$V1903-4,0)&\"\")","v":""},{"$f":"IF(ISERROR($V1903),\"\",OFFSET('Smelter Look-up'!$E$4,$V1903-4,0))","v":""},{"$f":"IF(C1903=$X$4,\"Enter smelter details\",IF(ISERROR($V1903),\"\",OFFSET('Smelter Look-up'!$F$4,$V1903-4,0)))","v":""},{"$f":"IF(ISERROR($V1903),\"\",OFFSET('Smelter Look-up'!$G$4,$V1903-4,0))","v":""},{"$f":"IF(ISERROR($V1903),\"\",OFFSET('Smelter Look-up'!$H$4,$V1903-4,0))","v":""},{"$f":"IF(ISERROR($V1903),\"\",OFFSET('Smelter Look-up'!$I$4,$V1903-4,0))","v":""},{"$nulls":7},{"$f":"IF(ISERROR($V1903),\"\",OFFSET('Smelter Look-up'!$C$4,$V1903-4,0)&\"\")","v":""},"",{"$f":"IF(B1903=\"\",\"\",IF(ISERROR(MATCH($J1903,SorP!$B$1:$B$5661,0)),\"\",INDIRECT(\"'SorP'!$A$\"&MATCH($J1903,SorP!$B$1:$B$5661,0))))","v":""},null,{"$f":"IF(C1903=\"\",NA(),MATCH($B1903&$C1903,'Smelter Look-up'!$J:$J,0))","v":{"$error":"#N/A"}},null,0,null,null,null,""]
[null,{"$f":"IF(LEN(A1904)=0,\"\",INDEX('Smelter Look-up'!$A:$A,MATCH($A1904,'Smelter Look-up'!$E:$E,0)))","v":""},{"$f":"IF(LEN(A1904)=0,\"\",INDEX('Smelter Look-up'!$C:$C,MATCH($A1904,'Smelter Look-up'!$E:$E,0)))","v":""},null,{"$f":"IF(ISERROR($V1904),\"\",OFFSET('Smelter Look-up'!$D$4,$V1904-4,0)&\"\")","v":""},{"$f":"IF(ISERROR($V1904),\"\",OFFSET('Smelter Look-up'!$E$4,$V1904-4,0))","v":""},{"$f":"IF(C1904=$X$4,\"Enter smelter details\",IF(ISERROR($V1904),\"\",OFFSET('Smelter Look-up'!$F$4,$V1904-4,0)))","v":""},{"$f":"IF(ISERROR($V1904),\"\",OFFSET('Smelter Look-up'!$G$4,$V1904-4,0))","v":""},{"$f":"IF(ISERROR($V1904),\"\",OFFSET('Smelter Look-up'!$H$4,$V1904-4,0))","v":""},{"$f":"IF(ISERROR($V1904),\"\",OFFSET('Smelter Look-up'!$I$4,$V1904-4,0))","v":""},{"$nulls":7},{"$f":"IF(ISERROR($V1904),\"\",OFFSET('Smelter Look-up'!$C$4,$V1904-4,0)&\"\")","v":""},"",{"$f":"IF(B1904=\"\",\"\",IF(ISERROR(MATCH($J1904,SorP!$B$1:$B$5661,0)),\"\",INDIRECT(\"'SorP'!$A$\"&MATCH($J1904,SorP!$B$1:$B$5661,0))))","v":""},null,{"$f":"IF(C1904=\"\",NA(),MATCH($B1904&$C1904,'Smelter Look-up'!$J:$J,0))","v":{"$error":"#N/A"}},null,0,null,null,null,""]
[null,{"$f":"IF(LEN(A1905)=0,\"\",INDEX('Smelter Look-up'!$A:$A,MATCH($A1905,'Smelter Look-up'!$E:$E,0)))","v":""},{"$f":"IF(LEN(A1905)=0,\"\",INDEX('Smelter Look-up'!$C:$C,MATCH($A1905,'Smelter Look-up'!$E:$E,0)))","v":""},null,{"$f":"IF(ISERROR($V1905),\"\",OFFSET('Smelter Look-up'!$D$4,$V1905-4,0)&\"\")","v":""},{"$f":"IF(ISERROR($V1905),\"\",OFFSET('Smelter Look-up'!$E$4,$V1905-4,0))","v":""},{"$f":"IF(C1905=$X$4,\"Enter smelter details\",IF(ISERROR($V1905),\"\",OFFSET('Smelter Look-up'!$F$4,$V1905-4,0)))","v":""},{"$f":"IF(ISERROR($V1905),\"\",OFFSET('Smelter Look-up'!$G$4,$V1905-4,0))","v":""},{"$f":"IF(ISERROR($V1905),\"\",OFFSET('Smelter Look-up'!$H$4,$V1905-4,0))","v":""},{"$f":"IF(ISERROR($V1905),\"\",OFFSET('Smelter Look-up'!$I$4,$V1905-4,0))","v":""},{"$nulls":7},{"$f":"IF(ISERROR($V1905),\"\",OFFSET('Smelter Look-up'!$C$4,$V1905-4,0)&\"\")","v":""},"",{"$f":"IF(B1905=\"\",\"\",IF(ISERROR(MATCH($J1905,SorP!$B$1:$B$5661,0)),\"\",INDIRECT(\"'SorP'!$A$\"&MATCH($J1905,SorP!$B$1:$B$5661,0))))","v":""},null,{"$f":"IF(C1905=\"\",NA(),MATCH($B1905&$C1905,'Smelter Look-up'!$J:$J,0))","v":{"$error":"#N/A"}},null,0,null,null,null,""]
[null,{"$f":"IF(LEN(A1906)=0,\"\",INDEX('Smelter Look-up'!$A:$A,MATCH($A1906,'Smelter Look-up'!$E:$E,0)))","v":""},{"$f":"IF(LEN(A1906)=0,\"\",INDEX('Smelter Look-up'!$C:$C,MATCH($A1906,'Smelter Look-up'!$E:$E,0)))","v":""},null,{"$f":"IF(ISERROR($V1906),\"\",OFFSET('Smelter Look-up'!$D$4,$V1906-4,0)&\"\")","v":""},{"$f":"IF(ISERROR($V1906),\"\",OFFSET('Smelter Look-up'!$E$4,$V1906-4,0))","v":""},{"$f":"IF(C1906=$X$4,\"Enter smelter details\",IF(ISERROR($V1906),\"\",OFFSET('Smelter Look-up'!$F$4,$V1906-4,0)))","v":""},{"$f":"IF(ISERROR($V1906),\"\",OFFSET('Smelter Look-up'!$G$4,$V1906-4,0))","v":""},{"$f":"IF(ISERROR($V1906),\"\",OFFSET('Smelter Look-up'!$H$4,$V1906-4,0))","v":""},{"$f":"IF(ISERROR($V1906),\"\",OFFSET('Smelter Look-up'!$I$4,$V1906-4,0))","v":""},{"$nulls":7},{"$f":"IF(ISERROR($V1906),\"\",OFFSET('Smelter Look-up'!$C$4,$V1906-4,0)&\"\")","v":""},"",{"$f":"IF(B1906=\"\",\"\",IF(ISERROR(MATCH($J1906,SorP!$B$1:$B$5661,0)),\"\",INDIRECT(\"'SorP'!$A$\"&MATCH($J1906,SorP!$B$1:$B$5661,0))))","v":""},null,{"$f":"IF(C1906=\"\",NA(),MATCH($B1906&$C1906,'Smelter Look-up'!$J:$J,0))","v":{"$error":"#N/A"}},null,0,null,null,null,""]
[null,{"$f":"IF(LEN(A1907)=0,\"\",INDEX('Smelter Look-up'!$A:$A,MATCH($A1907,'Smelter Look-up'!$E:$E,0)))","v":""},{"$f":"IF(LEN(A1907)=0,\"\",INDEX('Smelter Look-up'!$C:$C,MATCH($A1907,'Smelter Look-up'!$E:$E,0)))","v":""},null,{"$f":"IF(ISERROR($V1907),\"\",OFFSET('Smelter Look-up'!$D$4,$V1907-4,0)&\"\")","v":""},{"$f":"IF(ISERROR($V1907),\"\",OFFSET('Smelter Look-up'!$E$4,$V1907-4,0))","v":""},{"$f":"IF(C1907=$X$4,\"Enter smelter details\",IF(ISERROR($V1907),\"\",OFFSET('Smelter Look-up'!$F$4,$V1907-4,0)))","v":""},{"$f":"IF(ISERROR($V1907),\"\",OFFSET('Smelter Look-up'!$G$4,$V1907-4,0))","v":""},{"$f":"IF(ISERROR($V1907),\"\",OFFSET('Smelter Look-up'!$H$4,$V1907-4,0))","v":""},{"$f":"IF(ISERROR($V1907),\"\",OFFSET('Smelter Look-up'!$I$4,$V1907-4,0))","v":""},{"$nulls":7},{"$f":"IF(ISERROR($V1907),\"\",OFFSET('Smelter Look-up'!$C$4,$V1907-4,0)&\"\")","v":""},"",{"$f":"IF(B1907=\"\",\"\",IF(ISERROR(MATCH($J1907,SorP!$B$1:$B$5661,0)),\"\",INDIRECT(\"'SorP'!$A$\"&MATCH($J1907,SorP!$B$1:$B$5661,0))))","v":""},null,{"$f":"IF(C1907=\"\",NA(),MATCH($B1907&$C1907,'Smelter Look-up'!$J:$J,0))","v":{"$error":"#N/A"}},null,0,null,null,null,""]
[null,{"$f":"IF(LEN(A1908)=0,\"\",INDEX('Smelter Look-up'!$A:$A,MATCH($A1908,'Smelter Look-up'!$E:$E,0)))","v":""},{"$f":"IF(LEN(A1908)=0,\"\",INDEX('Smelter Look-up'!$C:$C,MATCH($A1908,'Smelter Look-up'!$E:$E,0)))","v":""},null,{"$f":"IF(ISERROR($V1908),\"\",OFFSET('Smelter Look-up'!$D$4,$V1908-4,0)&\"\")","v":""},{"$f":"IF(ISERROR($V1908),\"\",OFFSET('Smelter Look-up'!$E$4,$V1908-4,0))","v":""},{"$f":"IF(C1908=$X$4,\"Enter smelter details\",IF(ISERROR($V1908),\"\",OFFSET('Smelter Look-up'!$F$4,$V1908-4,0)))","v":""},{"$f":"IF(ISERROR($V1908),\"\",OFFSET('Smelter Look-up'!$G$4,$V1908-4,0))","v":""},{"$f":"IF(ISERROR($V1908),\"\",OFFSET('Smelter Look-up'!$H$4,$V1908-4,0))","v":""},{"$f":"IF(ISERROR($V1908),\"\",OFFSET('Smelter Look-up'!$I$4,$V1908-4,0))","v":""},{"$nulls":7},{"$f":"IF(ISERROR($V1908),\"\",OFFSET('Smelter Look-up'!$C$4,$V1908-4,0)&\"\")","v":""},"",{"$f":"IF(B1908=\"\",\"\",IF(ISERROR(MATCH($J1908,SorP!$B$1:$B$5661,0)),\"\",INDIRECT(\"'SorP'!$A$\"&MATCH($J1908,SorP!$B$1:$B$5661,0))))","v":""},null,{"$f":"IF(C1908=\"\",NA(),MATCH($B1908&$C1908,'Smelter Look-up'!$J:$J,0))","v":{"$error":"#N/A"}},null,0,null,null,null,""]
[null,{"$f":"IF(LEN(A1909)=0,\"\",INDEX('Smelter Look-up'!$A:$A,MATCH($A1909,'Smelter Look-up'!$E:$E,0)))","v":""},{"$f":"IF(LEN(A1909)=0,\"\",INDEX('Smelter Look-up'!$C:$C,MATCH($A1909,'Smelter Look-up'!$E:$E,0)))","v":""},null,{"$f":"IF(ISERROR($V1909),\"\",OFFSET('Smelter Look-up'!$D$4,$V1909-4,0)&\"\")","v":""},{"$f":"IF(ISERROR($V1909),\"\",OFFSET('Smelter Look-up'!$E$4,$V1909-4,0))","v":""},{"$f":"IF(C1909=$X$4,\"Enter smelter details\",IF(ISERROR($V1909),\"\",OFFSET('Smelter Look-up'!$F$4,$V1909-4,0)))","v":""},{"$f":"IF(ISERROR($V1909),\"\",OFFSET('Smelter Look-up'!$G$4,$V1909-4,0))","v":""},{"$f":"IF(ISERROR($V1909),\"\",OFFSET('Smelter Look-up'!$H$4,$V1909-4,0))","v":""},{"$f":"IF(ISERROR($V1909),\"\",OFFSET('Smelter Look-up'!$I$4,$V1909-4,0))","v":""},{"$nulls":7},{"$f":"IF(ISERROR($V1909),\"\",OFFSET('Smelter Look-up'!$C$4,$V1909-4,0)&\"\")","v":""},"",{"$f":"IF(B1909=\"\",\"\",IF(ISERROR(MATCH($J1909,SorP!$B$1:$B$5661,0)),\"\",INDIRECT(\"'SorP'!$A$\"&MATCH($J1909,SorP!$B$1:$B$5661,0))))","v":""},null,{"$f":"IF(C1909=\"\",NA(),MATCH($B1909&$C1909,'Smelter Look-up'!$J:$J,0))","v":{"$error":"#N/A"}},null,0,null,null,null,""]
[null,{"$f":"IF(LEN(A1910)=0,\"\",INDEX('Smelter Look-up'!$A:$A,MATCH($A1910,'Smelter Look-up'!$E:$E,0)))","v":""},{"$f":"IF(LEN(A1910)=0,\"\",INDEX('Smelter Look-up'!$C:$C,MATCH($A1910,'Smelter Look-up'!$E:$E,0)))","v":""},null,{"$f":"IF(ISERROR($V1910),\"\",OFFSET('Smelter Look-up'!$D$4,$V1910-4,0)&\"\")","v":""},{"$f":"IF(ISERROR($V1910),\"\",OFFSET('Smelter Look-up'!$E$4,$V1910-4,0))","v":""},{"$f":"IF(C1910=$X$4,\"Enter smelter details\",IF(ISERROR($V1910),\"\",OFFSET('Smelter Look-up'!$F$4,$V1910-4,0)))","v":""},{"$f":"IF(ISERROR($V1910),\"\",OFFSET('Smelter Look-up'!$G$4,$V1910-4,0))","v":""},{"$f":"IF(ISERROR($V1910),\"\",OFFSET('Smelter Look-up'!$H$4,$V1910-4,0))","v":""},{"$f":"IF(ISERROR($V1910),\"\",OFFSET('Smelter Look-up'!$I$4,$V1910-4,0))","v":""},{"$nulls":7},{"$f":"IF(ISERROR($V1910),\"\",OFFSET('Smelter Look-up'!$C$4,$V1910-4,0)&\"\")","v":""},"",{"$f":"IF(B1910=\"\",\"\",IF(ISERROR(MATCH($J1910,SorP!$B$1:$B$5661,0)),\"\",INDIRECT(\"'SorP'!$A$\"&MATCH($J1910,SorP!$B$1:$B$5661,0))))","v":""},null,{"$f":"IF(C1910=\"\",NA(),MATCH($B1910&$C1910,'Smelter Look-up'!$J:$J,0))","v":{"$error":"#N/A"}},null,0,null,null,null,""]
[null,{"$f":"IF(LEN(A1911)=0,\"\",INDEX('Smelter Look-up'!$A:$A,MATCH($A1911,'Smelter Look-up'!$E:$E,0)))","v":""},{"$f":"IF(LEN(A1911)=0,\"\",INDEX('Smelter Look-up'!$C:$C,MATCH($A1911,'Smelter Look-up'!$E:$E,0)))","v":""},null,{"$f":"IF(ISERROR($V1911),\"\",OFFSET('Smelter Look-up'!$D$4,$V1911-4,0)&\"\")","v":""},{"$f":"IF(ISERROR($V1911),\"\",OFFSET('Smelter Look-up'!$E$4,$V1911-4,0))","v":""},{"$f":"IF(C1911=$X$4,\"Enter smelter details\",IF(ISERROR($V1911),\"\",OFFSET('Smelter Look-up'!$F$4,$V1911-4,0)))","v":""},{"$f":"IF(ISERROR($V1911),\"\",OFFSET('Smelter Look-up'!$G$4,$V1911-4,0))","v":""},{"$f":"IF(ISERROR($V1911),\"\",OFFSET('Smelter Look-up'!$H$4,$V1911-4,0))","v":""},{"$f":"IF(ISERROR($V1911),\"\",OFFSET('Smelter Look-up'!$I$4,$V1911-4,0))","v":""},{"$nulls":7},{"$f":"IF(ISERROR($V1911),\"\",OFFSET('Smelter Look-up'!$C$4,$V1911-4,0)&\"\")","v":""},"",{"$f":"IF(B1911=\"\",\"\",IF(ISERROR(MATCH($J1911,SorP!$B$1:$B$5661,0)),\"\",INDIRECT(\"'SorP'!$A$\"&MATCH($J1911,SorP!$B$1:$B$5661,0))))","v":""},null,{"$f":"IF(C1911=\"\",NA(),MATCH($B1911&$C1911,'Smelter Look-up'!$J:$J,0))","v":{"$error":"#N/A"}},null,0,null,null,null,""]
[null,{"$f":"IF(LEN(A1912)=0,\"\",INDEX('Smelter Look-up'!$A:$A,MATCH($A1912,'Smelter Look-up'!$E:$E,0)))","v":""},{"$f":"IF(LEN(A1912)=0,\"\",INDEX('Smelter Look-up'!$C:$C,MATCH($A1912,'Smelter Look-up'!$E:$E,0)))","v":""},null,{"$f":"IF(ISERROR($V1912),\"\",OFFSET('Smelter Look-up'!$D$4,$V1912-4,0)&\"\")","v":""},{"$f":"IF(ISERROR($V1912),\"\",OFFSET('Smelter Look-up'!$E$4,$V1912-4,0))","v":""},{"$f":"IF(C1912=$X$4,\"Enter smelter details\",IF(ISERROR($V1912),\"\",OFFSET('Smelter Look-up'!$F$4,$V1912-4,0)))","v":""},{"$f":"IF(ISERROR($V1912),\"\",OFFSET('Smelter Look-up'!$G$4,$V1912-4,0))","v":""},{"$f":"IF(ISERROR($V1912),\"\",OFFSET('Smelter Look-up'!$H$4,$V1912-4,0))","v":""},{"$f":"IF(ISERROR($V1912),\"\",OFFSET('Smelter Look-up'!$I$4,$V1912-4,0))","v":""},{"$nulls":7},{"$f":"IF(ISERROR($V1912),\"\",OFFSET('Smelter Look-up'!$C$4,$V1912-4,0)&\"\")","v":""},"",{"$f":"IF(B1912=\"\",\"\",IF(ISERROR(MATCH($J1912,SorP!$B$1:$B$5661,0)),\"\",INDIRECT(\"'SorP'!$A$\"&MATCH($J1912,SorP!$B$1:$B$5661,0))))","v":""},null,{"$f":"IF(C1912=\"\",NA(),MATCH($B1912&$C1912,'Smelter Look-up'!$J:$J,0))","v":{"$error":"#N/A"}},null,0,null,null,null,""]
[null,{"$f":"IF(LEN(A1913)=0,\"\",INDEX('Smelter Look-up'!$A:$A,MATCH($A1913,'Smelter Look-up'!$E:$E,0)))","v":""},{"$f":"IF(LEN(A1913)=0,\"\",INDEX('Smelter Look-up'!$C:$C,MATCH($A1913,'Smelter Look-up'!$E:$E,0)))","v":""},null,{"$f":"IF(ISERROR($V1913),\"\",OFFSET('Smelter Look-up'!$D$4,$V1913-4,0)&\"\")","v":""},{"$f":"IF(ISERROR($V1913),\"\",OFFSET('Smelter Look-up'!$E$4,$V1913-4,0))","v":""},{"$f":"IF(C1913=$X$4,\"Enter smelter details\",IF(ISERROR($V1913),\"\",OFFSET('Smelter Look-up'!$F$4,$V1913-4,0)))","v":""},{"$f":"IF(ISERROR($V1913),\"\",OFFSET('Smelter Look-up'!$G$4,$V1913-4,0))","v":""},{"$f":"IF(ISERROR($V1913),\"\",OFFSET('Smelter Look-up'!$H$4,$V1913-4,0))","v":""},{"$f":"IF(ISERROR($V1913),\"\",OFFSET('Smelter Look-up'!$I$4,$V1913-4,0))","v":""},{"$nulls":7},{"$f":"IF(ISERROR($V1913),\"\",OFFSET('Smelter Look-up'!$C$4,$V1913-4,0)&\"\")","v":""},"",{"$f":"IF(B1913=\"\",\"\",IF(ISERROR(MATCH($J1913,SorP!$B$1:$B$5661,0)),\"\",INDIRECT(\"'SorP'!$A$\"&MATCH($J1913,SorP!$B$1:$B$5661,0))))","v":""},null,{"$f":"IF(C1913=\"\",NA(),MATCH($B1913&$C1913,'Smelter Look-up'!$J:$J,0))","v":{"$error":"#N/A"}},null,0,null,null,null,""]
[null,{"$f":"IF(LEN(A1914)=0,\"\",INDEX('Smelter Look-up'!$A:$A,MATCH($A1914,'Smelter Look-up'!$E:$E,0)))","v":""},{"$f":"IF(LEN(A1914)=0,\"\",INDEX('Smelter Look-up'!$C:$C,MATCH($A1914,'Smelter Look-up'!$E:$E,0)))","v":""},null,{"$f":"IF(ISERROR($V1914),\"\",OFFSET('Smelter Look-up'!$D$4,$V1914-4,0)&\"\")","v":""},{"$f":"IF(ISERROR($V1914),\"\",OFFSET('Smelter Look-up'!$E$4,$V1914-4,0))","v":""},{"$f":"IF(C1914=$X$4,\"Enter smelter details\",IF(ISERROR($V1914),\"\",OFFSET('Smelter Look-up'!$F$4,$V1914-4,0)))","v":""},{"$f":"IF(ISERROR($V1914),\"\",OFFSET('Smelter Look-up'!$G$4,$V1914-4,0))","v":""},{"$f":"IF(ISERROR($V1914),\"\",OFFSET('Smelter Look-up'!$H$4,$V1914-4,0))","v":""},{"$f":"IF(ISERROR($V1914),\"\",OFFSET('Smelter Look-up'!$I$4,$V1914-4,0))","v":""},{"$nulls":7},{"$f":"IF(ISERROR($V1914),\"\",OFFSET('Smelter Look-up'!$C$4,$V1914-4,0)&\"\")","v":""},"",{"$f":"IF(B1914=\"\",\"\",IF(ISERROR(MATCH($J1914,SorP!$B$1:$B$5661,0)),\"\",INDIRECT(\"'SorP'!$A$\"&MATCH($J1914,SorP!$B$1:$B$5661,0))))","v":""},null,{"$f":"IF(C1914=\"\",NA(),MATCH($B1914&$C1914,'Smelter Look-up'!$J:$J,0))","v":{"$error":"#N/A"}},null,0,null,null,null,""]
[null,{"$f":"IF(LEN(A1915)=0,\"\",INDEX('Smelter Look-up'!$A:$A,MATCH($A1915,'Smelter Look-up'!$E:$E,0)))","v":""},{"$f":"IF(LEN(A1915)=0,\"\",INDEX('Smelter Look-up'!$C:$C,MATCH($A1915,'Smelter Look-up'!$E:$E,0)))","v":""},null,{"$f":"IF(ISERROR($V1915),\"\",OFFSET('Smelter Look-up'!$D$4,$V1915-4,0)&\"\")","v":""},{"$f":"IF(ISERROR($V1915),\"\",OFFSET('Smelter Look-up'!$E$4,$V1915-4,0))","v":""},{"$f":"IF(C1915=$X$4,\"Enter smelter details\",IF(ISERROR($V1915),\"\",OFFSET('Smelter Look-up'!$F$4,$V1915-4,0)))","v":""},{"$f":"IF(ISERROR($V1915),\"\",OFFSET('Smelter Look-up'!$G$4,$V1915-4,0))","v":""},{"$f":"IF(ISERROR($V1915),\"\",OFFSET('Smelter Look-up'!$H$4,$V1915-4,0))","v":""},{"$f":"IF(ISERROR($V1915),\"\",OFFSET('Smelter Look-up'!$I$4,$V1915-4,0))","v":""},{"$nulls":7},{"$f":"IF(ISERROR($V1915),\"\",OFFSET('Smelter Look-up'!$C$4,$V1915-4,0)&\"\")","v":""},"",{"$f":"IF(B1915=\"\",\"\",IF(ISERROR(MATCH($J1915,SorP!$B$1:$B$5661,0)),\"\",INDIRECT(\"'SorP'!$A$\"&MATCH($J1915,SorP!$B$1:$B$5661,0))))","v":""},null,{"$f":"IF(C1915=\"\",NA(),MATCH($B1915&$C1915,'Smelter Look-up'!$J:$J,0))","v":{"$error":"#N/A"}},null,0,null,null,null,""]
[null,{"$f":"IF(LEN(A1916)=0,\"\",INDEX('Smelter Look-up'!$A:$A,MATCH($A1916,'Smelter Look-up'!$E:$E,0)))","v":""},{"$f":"IF(LEN(A1916)=0,\"\",INDEX('Smelter Look-up'!$C:$C,MATCH($A1916,'Smelter Look-up'!$E:$E,0)))","v":""},null,{"$f":"IF(ISERROR($V1916),\"\",OFFSET('Smelter Look-up'!$D$4,$V1916-4,0)&\"\")","v":""},{"$f":"IF(ISERROR($V1916),\"\",OFFSET('Smelter Look-up'!$E$4,$V1916-4,0))","v":""},{"$f":"IF(C1916=$X$4,\"Enter smelter details\",IF(ISERROR($V1916),\"\",OFFSET('Smelter Look-up'!$F$4,$V1916-4,0)))","v":""},{"$f":"IF(ISERROR($V1916),\"\",OFFSET('Smelter Look-up'!$G$4,$V1916-4,0))","v":""},{"$f":"IF(ISERROR($V1916),\"\",OFFSET('Smelter Look-up'!$H$4,$V1916-4,0))","v":""},{"$f":"IF(ISERROR($V1916),\"\",OFFSET('Smelter Look-up'!$I$4,$V1916-4,0))","v":""},{"$nulls":7},{"$f":"IF(ISERROR($V1916),\"\",OFFSET('Smelter Look-up'!$C$4,$V1916-4,0)&\"\")","v":""},"",{"$f":"IF(B1916=\"\",\"\",IF(ISERROR(MATCH($J1916,SorP!$B$1:$B$5661,0)),\"\",INDIRECT(\"'SorP'!$A$\"&MATCH($J1916,SorP!$B$1:$B$5661,0))))","v":""},null,{"$f":"IF(C1916=\"\",NA(),MATCH($B1916&$C1916,'Smelter Look-up'!$J:$J,0))","v":{"$error":"#N/A"}},null,0,null,null,null,""]
[null,{"$f":"IF(LEN(A1917)=0,\"\",INDEX('Smelter Look-up'!$A:$A,MATCH($A1917,'Smelter Look-up'!$E:$E,0)))","v":""},{"$f":"IF(LEN(A1917)=0,\"\",INDEX('Smelter Look-up'!$C:$C,MATCH($A1917,'Smelter Look-up'!$E:$E,0)))","v":""},null,{"$f":"IF(ISERROR($V1917),\"\",OFFSET('Smelter Look-up'!$D$4,$V1917-4,0)&\"\")","v":""},{"$f":"IF(ISERROR($V1917),\"\",OFFSET('Smelter Look-up'!$E$4,$V1917-4,0))","v":""},{"$f":"IF(C1917=$X$4,\"Enter smelter details\",IF(ISERROR($V1917),\"\",OFFSET('Smelter Look-up'!$F$4,$V1917-4,0)))","v":""},{"$f":"IF(ISERROR($V1917),\"\",OFFSET('Smelter Look-up'!$G$4,$V1917-4,0))","v":""},{"$f":"IF(ISERROR($V1917),\"\",OFFSET('Smelter Look-up'!$H$4,$V1917-4,0))","v":""},{"$f":"IF(ISERROR($V1917),\"\",OFFSET('Smelter Look-up'!$I$4,$V1917-4,0))","v":""},{"$nulls":7},{"$f":"IF(ISERROR($V1917),\"\",OFFSET('Smelter Look-up'!$C$4,$V1917-4,0)&\"\")","v":""},"",{"$f":"IF(B1917=\"\",\"\",IF(ISERROR(MATCH($J1917,SorP!$B$1:$B$5661,0)),\"\",INDIRECT(\"'SorP'!$A$\"&MATCH($J1917,SorP!$B$1:$B$5661,0))))","v":""},null,{"$f":"IF(C1917=\"\",NA(),MATCH($B1917&$C1917,'Smelter Look-up'!$J:$J,0))","v":{"$error":"#N/A"}},null,0,null,null,null,""]
[null,{"$f":"IF(LEN(A1918)=0,\"\",INDEX('Smelter Look-up'!$A:$A,MATCH($A1918,'Smelter Look-up'!$E:$E,0)))","v":""},{"$f":"IF(LEN(A1918)=0,\"\",INDEX('Smelter Look-up'!$C:$C,MATCH($A1918,'Smelter Look-up'!$E:$E,0)))","v":""},null,{"$f":"IF(ISERROR($V1918),\"\",OFFSET('Smelter Look-up'!$D$4,$V1918-4,0)&\"\")","v":""},{"$f":"IF(ISERROR($V1918),\"\",OFFSET('Smelter Look-up'!$E$4,$V1918-4,0))","v":""},{"$f":"IF(C1918=$X$4,\"Enter smelter details\",IF(ISERROR($V1918),\"\",OFFSET('Smelter Look-up'!$F$4,$V1918-4,0)))","v":""},{"$f":"IF(ISERROR($V1918),\"\",OFFSET('Smelter Look-up'!$G$4,$V1918-4,0))","v":""},{"$f":"IF(ISERROR($V1918),\"\",OFFSET('Smelter Look-up'!$H$4,$V1918-4,0))","v":""},{"$f":"IF(ISERROR($V1918),\"\",OFFSET('Smelter Look-up'!$I$4,$V1918-4,0))","v":""},{"$nulls":7},{"$f":"IF(ISERROR($V1918),\"\",OFFSET('Smelter Look-up'!$C$4,$V1918-4,0)&\"\")","v":""},"",{"$f":"IF(B1918=\"\",\"\",IF(ISERROR(MATCH($J1918,SorP!$B$1:$B$5661,0)),\"\",INDIRECT(\"'SorP'!$A$\"&MATCH($J1918,SorP!$B$1:$B$5661,0))))","v":""},null,{"$f":"IF(C1918=\"\",NA(),MATCH($B1918&$C1918,'Smelter Look-up'!$J:$J,0))","v":{"$error":"#N/A"}},null,0,null,null,null,""]
[null,{"$f":"IF(LEN(A1919)=0,\"\",INDEX('Smelter Look-up'!$A:$A,MATCH($A1919,'Smelter Look-up'!$E:$E,0)))","v":""},{"$f":"IF(LEN(A1919)=0,\"\",INDEX('Smelter Look-up'!$C:$C,MATCH($A1919,'Smelter Look-up'!$E:$E,0)))","v":""},null,{"$f":"IF(ISERROR($V1919),\"\",OFFSET('Smelter Look-up'!$D$4,$V1919-4,0)&\"\")","v":""},{"$f":"IF(ISERROR($V1919),\"\",OFFSET('Smelter Look-up'!$E$4,$V1919-4,0))","v":""},{"$f":"IF(C1919=$X$4,\"Enter smelter details\",IF(ISERROR($V1919),\"\",OFFSET('Smelter Look-up'!$F$4,$V1919-4,0)))","v":""},{"$f":"IF(ISERROR($V1919),\"\",OFFSET('Smelter Look-up'!$G$4,$V1919-4,0))","v":""},{"$f":"IF(ISERROR($V1919),\"\",OFFSET('Smelter Look-up'!$H$4,$V1919-4,0))","v":""},{"$f":"IF(ISERROR($V1919),\"\",OFFSET('Smelter Look-up'!$I$4,$V1919-4,0))","v":""},{"$nulls":7},{"$f":"IF(ISERROR($V1919),\"\",OFFSET('Smelter Look-up'!$C$4,$V1919-4,0)&\"\")","v":""},"",{"$f":"IF(B1919=\"\",\"\",IF(ISERROR(MATCH($J1919,SorP!$B$1:$B$5661,0)),\"\",INDIRECT(\"'SorP'!$A$\"&MATCH($J1919,SorP!$B$1:$B$5661,0))))","v":""},null,{"$f":"IF(C1919=\"\",NA(),MATCH($B1919&$C1919,'Smelter Look-up'!$J:$J,0))","v":{"$error":"#N/A"}},null,{"$f":"IF(AND(C1919=\"Smelter not listed\",OR(LEN(D1919)=0,LEN(E1919)=0)),1,0)","v":0},null,null,null,{"$f":"B1919&C1919","v":""}]
[null,{"$f":"IF(LEN(A1920)=0,\"\",INDEX('Smelter Look-up'!$A:$A,MATCH($A1920,'Smelter Look-up'!$E:$E,0)))","v":""},{"$f":"IF(LEN(A1920)=0,\"\",INDEX('Smelter Look-up'!$C:$C,MATCH($A1920,'Smelter Look-up'!$E:$E,0)))","v":""},null,{"$f":"IF(ISERROR($V1920),\"\",OFFSET('Smelter Look-up'!$D$4,$V1920-4,0)&\"\")","v":""},{"$f":"IF(ISERROR($V1920),\"\",OFFSET('Smelter Look-up'!$E$4,$V1920-4,0))","v":""},{"$f":"IF(C1920=$X$4,\"Enter smelter details\",IF(ISERROR($V1920),\"\",OFFSET('Smelter Look-up'!$F$4,$V1920-4,0)))","v":""},{"$f":"IF(ISERROR($V1920),\"\",OFFSET('Smelter Look-up'!$G$4,$V1920-4,0))","v":""},{"$f":"IF(ISERROR($V1920),\"\",OFFSET('Smelter Look-up'!$H$4,$V1920-4,0))","v":""},{"$f":"IF(ISERROR($V1920),\"\",OFFSET('Smelter Look-up'!$I$4,$V1920-4,0))","v":""},{"$nulls":7},{"$f":"IF(ISERROR($V1920),\"\",OFFSET('Smelter Look-up'!$C$4,$V1920-4,0)&\"\")","v":""},{"$f":"IF(B1920=\"\",\"\",IF(ISERROR(MATCH($E1920,CL,0)),\"Unknown\",INDIRECT(\"'C'!$A$\"&MATCH($E1920,CL,0)+1)))","v":""},{"$f":"IF(B1920=\"\",\"\",IF(ISERROR(MATCH($J1920,SorP!$B$1:$B$5661,0)),\"\",INDIRECT(\"'SorP'!$A$\"&MATCH($J1920,SorP!$B$1:$B$5661,0))))","v":""},null,{"$f":"IF(C1920=\"\",NA(),MATCH($B1920&$C1920,'Smelter Look-up'!$J:$J,0))","v":{"$error":"#N/A"}},null,0,null,null,null,""]
[null,{"$f":"IF(LEN(A1921)=0,\"\",INDEX('Smelter Look-up'!$A:$A,MATCH($A1921,'Smelter Look-up'!$E:$E,0)))","v":""},{"$f":"IF(LEN(A1921)=0,\"\",INDEX('Smelter Look-up'!$C:$C,MATCH($A1921,'Smelter Look-up'!$E:$E,0)))","v":""},null,{"$f":"IF(ISERROR($V1921),\"\",OFFSET('Smelter Look-up'!$D$4,$V1921-4,0)&\"\")","v":""},{"$f":"IF(ISERROR($V1921),\"\",OFFSET('Smelter Look-up'!$E$4,$V1921-4,0))","v":""},{"$f":"IF(C1921=$X$4,\"Enter smelter details\",IF(ISERROR($V1921),\"\",OFFSET('Smelter Look-up'!$F$4,$V1921-4,0)))","v":""},{"$f":"IF(ISERROR($V1921),\"\",OFFSET('Smelter Look-up'!$G$4,$V1921-4,0))","v":""},{"$f":"IF(ISERROR($V1921),\"\",OFFSET('Smelter Look-up'!$H$4,$V1921-4,0))","v":""},{"$f":"IF(ISERROR($V1921),\"\",OFFSET('Smelter Look-up'!$I$4,$V1921-4,0))","v":""},{"$nulls":7},{"$f":"IF(ISERROR($V1921),\"\",OFFSET('Smelter Look-up'!$C$4,$V1921-4,0)&\"\")","v":""},"",{"$f":"IF(B1921=\"\",\"\",IF(ISERROR(MATCH($J1921,SorP!$B$1:$B$5661,0)),\"\",INDIRECT(\"'SorP'!$A$\"&MATCH($J1921,SorP!$B$1:$B$5661,0))))","v":""},null,{"$f":"IF(C1921=\"\",NA(),MATCH($B1921&$C1921,'Smelter Look-up'!$J:$J,0))","v":{"$error":"#N/A"}},null,0,null,null,null,""]
[null,{"$f":"IF(LEN(A1922)=0,\"\",INDEX('Smelter Look-up'!$A:$A,MATCH($A1922,'Smelter Look-up'!$E:$E,0)))","v":""},{"$f":"IF(LEN(A1922)=0,\"\",INDEX('Smelter Look-up'!$C:$C,MATCH($A1922,'Smelter Look-up'!$E:$E,0)))","v":""},null,{"$f":"IF(ISERROR($V1922),\"\",OFFSET('Smelter Look-up'!$D$4,$V1922-4,0)&\"\")","v":""},{"$f":"IF(ISERROR($V1922),\"\",OFFSET('Smelter Look-up'!$E$4,$V1922-4,0))","v":""},{"$f":"IF(C1922=$X$4,\"Enter smelter details\",IF(ISERROR($V1922),\"\",OFFSET('Smelter Look-up'!$F$4,$V1922-4,0)))","v":""},{"$f":"IF(ISERROR($V1922),\"\",OFFSET('Smelter Look-up'!$G$4,$V1922-4,0))","v":""},{"$f":"IF(ISERROR($V1922),\"\",OFFSET('Smelter Look-up'!$H$4,$V1922-4,0))","v":""},{"$f":"IF(ISERROR($V1922),\"\",OFFSET('Smelter Look-up'!$I$4,$V1922-4,0))","v":""},{"$nulls":7},{"$f":"IF(ISERROR($V1922),\"\",OFFSET('Smelter Look-up'!$C$4,$V1922-4,0)&\"\")","v":""},"",{"$f":"IF(B1922=\"\",\"\",IF(ISERROR(MATCH($J1922,SorP!$B$1:$B$5661,0)),\"\",INDIRECT(\"'SorP'!$A$\"&MATCH($J1922,SorP!$B$1:$B$5661,0))))","v":""},null,{"$f":"IF(C1922=\"\",NA(),MATCH($B1922&$C1922,'Smelter Look-up'!$J:$J,0))","v":{"$error":"#N/A"}},null,0,null,null,null,""]
[null,{"$f":"IF(LEN(A1923)=0,\"\",INDEX('Smelter Look-up'!$A:$A,MATCH($A1923,'Smelter Look-up'!$E:$E,0)))","v":""},{"$f":"IF(LEN(A1923)=0,\"\",INDEX('Smelter Look-up'!$C:$C,MATCH($A1923,'Smelter Look-up'!$E:$E,0)))","v":""},null,{"$f":"IF(ISERROR($V1923),\"\",OFFSET('Smelter Look-up'!$D$4,$V1923-4,0)&\"\")","v":""},{"$f":"IF(ISERROR($V1923),\"\",OFFSET('Smelter Look-up'!$E$4,$V1923-4,0))","v":""},{"$f":"IF(C1923=$X$4,\"Enter smelter details\",IF(ISERROR($V1923),\"\",OFFSET('Smelter Look-up'!$F$4,$V1923-4,0)))","v":""},{"$f":"IF(ISERROR($V1923),\"\",OFFSET('Smelter Look-up'!$G$4,$V1923-4,0))","v":""},{"$f":"IF(ISERROR($V1923),\"\",OFFSET('Smelter Look-up'!$H$4,$V1923-4,0))","v":""},{"$f":"IF(ISERROR($V1923),\"\",OFFSET('Smelter Look-up'!$I$4,$V1923-4,0))","v":""},{"$nulls":7},{"$f":"IF(ISERROR($V1923),\"\",OFFSET('Smelter Look-up'!$C$4,$V1923-4,0)&\"\")","v":""},"",{"$f":"IF(B1923=\"\",\"\",IF(ISERROR(MATCH($J1923,SorP!$B$1:$B$5661,0)),\"\",INDIRECT(\"'SorP'!$A$\"&MATCH($J1923,SorP!$B$1:$B$5661,0))))","v":""},null,{"$f":"IF(C1923=\"\",NA(),MATCH($B1923&$C1923,'Smelter Look-up'!$J:$J,0))","v":{"$error":"#N/A"}},null,0,null,null,null,""]
[null,{"$f":"IF(LEN(A1924)=0,\"\",INDEX('Smelter Look-up'!$A:$A,MATCH($A1924,'Smelter Look-up'!$E:$E,0)))","v":""},{"$f":"IF(LEN(A1924)=0,\"\",INDEX('Smelter Look-up'!$C:$C,MATCH($A1924,'Smelter Look-up'!$E:$E,0)))","v":""},null,{"$f":"IF(ISERROR($V1924),\"\",OFFSET('Smelter Look-up'!$D$4,$V1924-4,0)&\"\")","v":""},{"$f":"IF(ISERROR($V1924),\"\",OFFSET('Smelter Look-up'!$E$4,$V1924-4,0))","v":""},{"$f":"IF(C1924=$X$4,\"Enter smelter details\",IF(ISERROR($V1924),\"\",OFFSET('Smelter Look-up'!$F$4,$V1924-4,0)))","v":""},{"$f":"IF(ISERROR($V1924),\"\",OFFSET('Smelter Look-up'!$G$4,$V1924-4,0))","v":""},{"$f":"IF(ISERROR($V1924),\"\",OFFSET('Smelter Look-up'!$H$4,$V1924-4,0))","v":""},{"$f":"IF(ISERROR($V1924),\"\",OFFSET('Smelter Look-up'!$I$4,$V1924-4,0))","v":""},{"$nulls":7},{"$f":"IF(ISERROR($V1924),\"\",OFFSET('Smelter Look-up'!$C$4,$V1924-4,0)&\"\")","v":""},"",{"$f":"IF(B1924=\"\",\"\",IF(ISERROR(MATCH($J1924,SorP!$B$1:$B$5661,0)),\"\",INDIRECT(\"'SorP'!$A$\"&MATCH($J1924,SorP!$B$1:$B$5661,0))))","v":""},null,{"$f":"IF(C1924=\"\",NA(),MATCH($B1924&$C1924,'Smelter Look-up'!$J:$J,0))","v":{"$error":"#N/A"}},null,0,null,null,null,""]
[null,{"$f":"IF(LEN(A1925)=0,\"\",INDEX('Smelter Look-up'!$A:$A,MATCH($A1925,'Smelter Look-up'!$E:$E,0)))","v":""},{"$f":"IF(LEN(A1925)=0,\"\",INDEX('Smelter Look-up'!$C:$C,MATCH($A1925,'Smelter Look-up'!$E:$E,0)))","v":""},null,{"$f":"IF(ISERROR($V1925),\"\",OFFSET('Smelter Look-up'!$D$4,$V1925-4,0)&\"\")","v":""},{"$f":"IF(ISERROR($V1925),\"\",OFFSET('Smelter Look-up'!$E$4,$V1925-4,0))","v":""},{"$f":"IF(C1925=$X$4,\"Enter smelter details\",IF(ISERROR($V1925),\"\",OFFSET('Smelter Look-up'!$F$4,$V1925-4,0)))","v":""},{"$f":"IF(ISERROR($V1925),\"\",OFFSET('Smelter Look-up'!$G$4,$V1925-4,0))","v":""},{"$f":"IF(ISERROR($V1925),\"\",OFFSET('Smelter Look-up'!$H$4,$V1925-4,0))","v":""},{"$f":"IF(ISERROR($V1925),\"\",OFFSET('Smelter Look-up'!$I$4,$V1925-4,0))","v":""},{"$nulls":7},{"$f":"IF(ISERROR($V1925),\"\",OFFSET('Smelter Look-up'!$C$4,$V1925-4,0)&\"\")","v":""},"",{"$f":"IF(B1925=\"\",\"\",IF(ISERROR(MATCH($J1925,SorP!$B$1:$B$5661,0)),\"\",INDIRECT(\"'SorP'!$A$\"&MATCH($J1925,SorP!$B$1:$B$5661,0))))","v":""},null,{"$f":"IF(C1925=\"\",NA(),MATCH($B1925&$C1925,'Smelter Look-up'!$J:$J,0))","v":{"$error":"#N/A"}},null,0,null,null,null,""]
[null,{"$f":"IF(LEN(A1926)=0,\"\",INDEX('Smelter Look-up'!$A:$A,MATCH($A1926,'Smelter Look-up'!$E:$E,0)))","v":""},{"$f":"IF(LEN(A1926)=0,\"\",INDEX('Smelter Look-up'!$C:$C,MATCH($A1926,'Smelter Look-up'!$E:$E,0)))","v":""},null,{"$f":"IF(ISERROR($V1926),\"\",OFFSET('Smelter Look-up'!$D$4,$V1926-4,0)&\"\")","v":""},{"$f":"IF(ISERROR($V1926),\"\",OFFSET('Smelter Look-up'!$E$4,$V1926-4,0))","v":""},{"$f":"IF(C1926=$X$4,\"Enter smelter details\",IF(ISERROR($V1926),\"\",OFFSET('Smelter Look-up'!$F$4,$V1926-4,0)))","v":""},{"$f":"IF(ISERROR($V1926),\"\",OFFSET('Smelter Look-up'!$G$4,$V1926-4,0))","v":""},{"$f":"IF(ISERROR($V1926),\"\",OFFSET('Smelter Look-up'!$H$4,$V1926-4,0))","v":""},{"$f":"IF(ISERROR($V1926),\"\",OFFSET('Smelter Look-up'!$I$4,$V1926-4,0))","v":""},{"$nulls":7},{"$f":"IF(ISERROR($V1926),\"\",OFFSET('Smelter Look-up'!$C$4,$V1926-4,0)&\"\")","v":""},"",{"$f":"IF(B1926=\"\",\"\",IF(ISERROR(MATCH($J1926,SorP!$B$1:$B$5661,0)),\"\",INDIRECT(\"'SorP'!$A$\"&MATCH($J1926,SorP!$B$1:$B$5661,0))))","v":""},null,{"$f":"IF(C1926=\"\",NA(),MATCH($B1926&$C1926,'Smelter Look-up'!$J:$J,0))","v":{"$error":"#N/A"}},null,0,null,null,null,""]
[null,{"$f":"IF(LEN(A1927)=0,\"\",INDEX('Smelter Look-up'!$A:$A,MATCH($A1927,'Smelter Look-up'!$E:$E,0)))","v":""},{"$f":"IF(LEN(A1927)=0,\"\",INDEX('Smelter Look-up'!$C:$C,MATCH($A1927,'Smelter Look-up'!$E:$E,0)))","v":""},null,{"$f":"IF(ISERROR($V1927),\"\",OFFSET('Smelter Look-up'!$D$4,$V1927-4,0)&\"\")","v":""},{"$f":"IF(ISERROR($V1927),\"\",OFFSET('Smelter Look-up'!$E$4,$V1927-4,0))","v":""},{"$f":"IF(C1927=$X$4,\"Enter smelter details\",IF(ISERROR($V1927),\"\",OFFSET('Smelter Look-up'!$F$4,$V1927-4,0)))","v":""},{"$f":"IF(ISERROR($V1927),\"\",OFFSET('Smelter Look-up'!$G$4,$V1927-4,0))","v":""},{"$f":"IF(ISERROR($V1927),\"\",OFFSET('Smelter Look-up'!$H$4,$V1927-4,0))","v":""},{"$f":"IF(ISERROR($V1927),\"\",OFFSET('Smelter Look-up'!$I$4,$V1927-4,0))","v":""},{"$nulls":7},{"$f":"IF(ISERROR($V1927),\"\",OFFSET('Smelter Look-up'!$C$4,$V1927-4,0)&\"\")","v":""},"",{"$f":"IF(B1927=\"\",\"\",IF(ISERROR(MATCH($J1927,SorP!$B$1:$B$5661,0)),\"\",INDIRECT(\"'SorP'!$A$\"&MATCH($J1927,SorP!$B$1:$B$5661,0))))","v":""},null,{"$f":"IF(C1927=\"\",NA(),MATCH($B1927&$C1927,'Smelter Look-up'!$J:$J,0))","v":{"$error":"#N/A"}},null,0,null,null,null,""]
[null,{"$f":"IF(LEN(A1928)=0,\"\",INDEX('Smelter Look-up'!$A:$A,MATCH($A1928,'Smelter Look-up'!$E:$E,0)))","v":""},{"$f":"IF(LEN(A1928)=0,\"\",INDEX('Smelter Look-up'!$C:$C,MATCH($A1928,'Smelter Look-up'!$E:$E,0)))","v":""},null,{"$f":"IF(ISERROR($V1928),\"\",OFFSET('Smelter Look-up'!$D$4,$V1928-4,0)&\"\")","v":""},{"$f":"IF(ISERROR($V1928),\"\",OFFSET('Smelter Look-up'!$E$4,$V1928-4,0))","v":""},{"$f":"IF(C1928=$X$4,\"Enter smelter details\",IF(ISERROR($V1928),\"\",OFFSET('Smelter Look-up'!$F$4,$V1928-4,0)))","v":""},{"$f":"IF(ISERROR($V1928),\"\",OFFSET('Smelter Look-up'!$G$4,$V1928-4,0))","v":""},{"$f":"IF(ISERROR($V1928),\"\",OFFSET('Smelter Look-up'!$H$4,$V1928-4,0))","v":""},{"$f":"IF(ISERROR($V1928),\"\",OFFSET('Smelter Look-up'!$I$4,$V1928-4,0))","v":""},{"$nulls":7},{"$f":"IF(ISERROR($V1928),\"\",OFFSET('Smelter Look-up'!$C$4,$V1928-4,0)&\"\")","v":""},"",{"$f":"IF(B1928=\"\",\"\",IF(ISERROR(MATCH($J1928,SorP!$B$1:$B$5661,0)),\"\",INDIRECT(\"'SorP'!$A$\"&MATCH($J1928,SorP!$B$1:$B$5661,0))))","v":""},null,{"$f":"IF(C1928=\"\",NA(),MATCH($B1928&$C1928,'Smelter Look-up'!$J:$J,0))","v":{"$error":"#N/A"}},null,0,null,null,null,""]
[null,{"$f":"IF(LEN(A1929)=0,\"\",INDEX('Smelter Look-up'!$A:$A,MATCH($A1929,'Smelter Look-up'!$E:$E,0)))","v":""},{"$f":"IF(LEN(A1929)=0,\"\",INDEX('Smelter Look-up'!$C:$C,MATCH($A1929,'Smelter Look-up'!$E:$E,0)))","v":""},null,{"$f":"IF(ISERROR($V1929),\"\",OFFSET('Smelter Look-up'!$D$4,$V1929-4,0)&\"\")","v":""},{"$f":"IF(ISERROR($V1929),\"\",OFFSET('Smelter Look-up'!$E$4,$V1929-4,0))","v":""},{"$f":"IF(C1929=$X$4,\"Enter smelter details\",IF(ISERROR($V1929),\"\",OFFSET('Smelter Look-up'!$F$4,$V1929-4,0)))","v":""},{"$f":"IF(ISERROR($V1929),\"\",OFFSET('Smelter Look-up'!$G$4,$V1929-4,0))","v":""},{"$f":"IF(ISERROR($V1929),\"\",OFFSET('Smelter Look-up'!$H$4,$V1929-4,0))","v":""},{"$f":"IF(ISERROR($V1929),\"\",OFFSET('Smelter Look-up'!$I$4,$V1929-4,0))","v":""},{"$nulls":7},{"$f":"IF(ISERROR($V1929),\"\",OFFSET('Smelter Look-up'!$C$4,$V1929-4,0)&\"\")","v":""},"",{"$f":"IF(B1929=\"\",\"\",IF(ISERROR(MATCH($J1929,SorP!$B$1:$B$5661,0)),\"\",INDIRECT(\"'SorP'!$A$\"&MATCH($J1929,SorP!$B$1:$B$5661,0))))","v":""},null,{"$f":"IF(C1929=\"\",NA(),MATCH($B1929&$C1929,'Smelter Look-up'!$J:$J,0))","v":{"$error":"#N/A"}},null,0,null,null,null,""]
[null,{"$f":"IF(LEN(A1930)=0,\"\",INDEX('Smelter Look-up'!$A:$A,MATCH($A1930,'Smelter Look-up'!$E:$E,0)))","v":""},{"$f":"IF(LEN(A1930)=0,\"\",INDEX('Smelter Look-up'!$C:$C,MATCH($A1930,'Smelter Look-up'!$E:$E,0)))","v":""},null,{"$f":"IF(ISERROR($V1930),\"\",OFFSET('Smelter Look-up'!$D$4,$V1930-4,0)&\"\")","v":""},{"$f":"IF(ISERROR($V1930),\"\",OFFSET('Smelter Look-up'!$E$4,$V1930-4,0))","v":""},{"$f":"IF(C1930=$X$4,\"Enter smelter details\",IF(ISERROR($V1930),\"\",OFFSET('Smelter Look-up'!$F$4,$V1930-4,0)))","v":""},{"$f":"IF(ISERROR($V1930),\"\",OFFSET('Smelter Look-up'!$G$4,$V1930-4,0))","v":""},{"$f":"IF(ISERROR($V1930),\"\",OFFSET('Smelter Look-up'!$H$4,$V1930-4,0))","v":""},{"$f":"IF(ISERROR($V1930),\"\",OFFSET('Smelter Look-up'!$I$4,$V1930-4,0))","v":""},{"$nulls":7},{"$f":"IF(ISERROR($V1930),\"\",OFFSET('Smelter Look-up'!$C$4,$V1930-4,0)&\"\")","v":""},"",{"$f":"IF(B1930=\"\",\"\",IF(ISERROR(MATCH($J1930,SorP!$B$1:$B$5661,0)),\"\",INDIRECT(\"'SorP'!$A$\"&MATCH($J1930,SorP!$B$1:$B$5661,0))))","v":""},null,{"$f":"IF(C1930=\"\",NA(),MATCH($B1930&$C1930,'Smelter Look-up'!$J:$J,0))","v":{"$error":"#N/A"}},null,0,null,null,null,""]
[null,{"$f":"IF(LEN(A1931)=0,\"\",INDEX('Smelter Look-up'!$A:$A,MATCH($A1931,'Smelter Look-up'!$E:$E,0)))","v":""},{"$f":"IF(LEN(A1931)=0,\"\",INDEX('Smelter Look-up'!$C:$C,MATCH($A1931,'Smelter Look-up'!$E:$E,0)))","v":""},null,{"$f":"IF(ISERROR($V1931),\"\",OFFSET('Smelter Look-up'!$D$4,$V1931-4,0)&\"\")","v":""},{"$f":"IF(ISERROR($V1931),\"\",OFFSET('Smelter Look-up'!$E$4,$V1931-4,0))","v":""},{"$f":"IF(C1931=$X$4,\"Enter smelter details\",IF(ISERROR($V1931),\"\",OFFSET('Smelter Look-up'!$F$4,$V1931-4,0)))","v":""},{"$f":"IF(ISERROR($V1931),\"\",OFFSET('Smelter Look-up'!$G$4,$V1931-4,0))","v":""},{"$f":"IF(ISERROR($V1931),\"\",OFFSET('Smelter Look-up'!$H$4,$V1931-4,0))","v":""},{"$f":"IF(ISERROR($V1931),\"\",OFFSET('Smelter Look-up'!$I$4,$V1931-4,0))","v":""},{"$nulls":7},{"$f":"IF(ISERROR($V1931),\"\",OFFSET('Smelter Look-up'!$C$4,$V1931-4,0)&\"\")","v":""},"",{"$f":"IF(B1931=\"\",\"\",IF(ISERROR(MATCH($J1931,SorP!$B$1:$B$5661,0)),\"\",INDIRECT(\"'SorP'!$A$\"&MATCH($J1931,SorP!$B$1:$B$5661,0))))","v":""},null,{"$f":"IF(C1931=\"\",NA(),MATCH($B1931&$C1931,'Smelter Look-up'!$J:$J,0))","v":{"$error":"#N/A"}},null,0,null,null,null,""]
[null,{"$f":"IF(LEN(A1932)=0,\"\",INDEX('Smelter Look-up'!$A:$A,MATCH($A1932,'Smelter Look-up'!$E:$E,0)))","v":""},{"$f":"IF(LEN(A1932)=0,\"\",INDEX('Smelter Look-up'!$C:$C,MATCH($A1932,'Smelter Look-up'!$E:$E,0)))","v":""},null,{"$f":"IF(ISERROR($V1932),\"\",OFFSET('Smelter Look-up'!$D$4,$V1932-4,0)&\"\")","v":""},{"$f":"IF(ISERROR($V1932),\"\",OFFSET('Smelter Look-up'!$E$4,$V1932-4,0))","v":""},{"$f":"IF(C1932=$X$4,\"Enter smelter details\",IF(ISERROR($V1932),\"\",OFFSET('Smelter Look-up'!$F$4,$V1932-4,0)))","v":""},{"$f":"IF(ISERROR($V1932),\"\",OFFSET('Smelter Look-up'!$G$4,$V1932-4,0))","v":""},{"$f":"IF(ISERROR($V1932),\"\",OFFSET('Smelter Look-up'!$H$4,$V1932-4,0))","v":""},{"$f":"IF(ISERROR($V1932),\"\",OFFSET('Smelter Look-up'!$I$4,$V1932-4,0))","v":""},{"$nulls":7},{"$f":"IF(ISERROR($V1932),\"\",OFFSET('Smelter Look-up'!$C$4,$V1932-4,0)&\"\")","v":""},"",{"$f":"IF(B1932=\"\",\"\",IF(ISERROR(MATCH($J1932,SorP!$B$1:$B$5661,0)),\"\",INDIRECT(\"'SorP'!$A$\"&MATCH($J1932,SorP!$B$1:$B$5661,0))))","v":""},null,{"$f":"IF(C1932=\"\",NA(),MATCH($B1932&$C1932,'Smelter Look-up'!$J:$J,0))","v":{"$error":"#N/A"}},null,0,null,null,null,""]
[null,{"$f":"IF(LEN(A1933)=0,\"\",INDEX('Smelter Look-up'!$A:$A,MATCH($A1933,'Smelter Look-up'!$E:$E,0)))","v":""},{"$f":"IF(LEN(A1933)=0,\"\",INDEX('Smelter Look-up'!$C:$C,MATCH($A1933,'Smelter Look-up'!$E:$E,0)))","v":""},null,{"$f":"IF(ISERROR($V1933),\"\",OFFSET('Smelter Look-up'!$D$4,$V1933-4,0)&\"\")","v":""},{"$f":"IF(ISERROR($V1933),\"\",OFFSET('Smelter Look-up'!$E$4,$V1933-4,0))","v":""},{"$f":"IF(C1933=$X$4,\"Enter smelter details\",IF(ISERROR($V1933),\"\",OFFSET('Smelter Look-up'!$F$4,$V1933-4,0)))","v":""},{"$f":"IF(ISERROR($V1933),\"\",OFFSET('Smelter Look-up'!$G$4,$V1933-4,0))","v":""},{"$f":"IF(ISERROR($V1933),\"\",OFFSET('Smelter Look-up'!$H$4,$V1933-4,0))","v":""},{"$f":"IF(ISERROR($V1933),\"\",OFFSET('Smelter Look-up'!$I$4,$V1933-4,0))","v":""},{"$nulls":7},{"$f":"IF(ISERROR($V1933),\"\",OFFSET('Smelter Look-up'!$C$4,$V1933-4,0)&\"\")","v":""},"",{"$f":"IF(B1933=\"\",\"\",IF(ISERROR(MATCH($J1933,SorP!$B$1:$B$5661,0)),\"\",INDIRECT(\"'SorP'!$A$\"&MATCH($J1933,SorP!$B$1:$B$5661,0))))","v":""},null,{"$f":"IF(C1933=\"\",NA(),MATCH($B1933&$C1933,'Smelter Look-up'!$J:$J,0))","v":{"$error":"#N/A"}},null,0,null,null,null,""]
[null,{"$f":"IF(LEN(A1934)=0,\"\",INDEX('Smelter Look-up'!$A:$A,MATCH($A1934,'Smelter Look-up'!$E:$E,0)))","v":""},{"$f":"IF(LEN(A1934)=0,\"\",INDEX('Smelter Look-up'!$C:$C,MATCH($A1934,'Smelter Look-up'!$E:$E,0)))","v":""},null,{"$f":"IF(ISERROR($V1934),\"\",OFFSET('Smelter Look-up'!$D$4,$V1934-4,0)&\"\")","v":""},{"$f":"IF(ISERROR($V1934),\"\",OFFSET('Smelter Look-up'!$E$4,$V1934-4,0))","v":""},{"$f":"IF(C1934=$X$4,\"Enter smelter details\",IF(ISERROR($V1934),\"\",OFFSET('Smelter Look-up'!$F$4,$V1934-4,0)))","v":""},{"$f":"IF(ISERROR($V1934),\"\",OFFSET('Smelter Look-up'!$G$4,$V1934-4,0))","v":""},{"$f":"IF(ISERROR($V1934),\"\",OFFSET('Smelter Look-up'!$H$4,$V1934-4,0))","v":""},{"$f":"IF(ISERROR($V1934),\"\",OFFSET('Smelter Look-up'!$I$4,$V1934-4,0))","v":""},{"$nulls":7},{"$f":"IF(ISERROR($V1934),\"\",OFFSET('Smelter Look-up'!$C$4,$V1934-4,0)&\"\")","v":""},"",{"$f":"IF(B1934=\"\",\"\",IF(ISERROR(MATCH($J1934,SorP!$B$1:$B$5661,0)),\"\",INDIRECT(\"'SorP'!$A$\"&MATCH($J1934,SorP!$B$1:$B$5661,0))))","v":""},null,{"$f":"IF(C1934=\"\",NA(),MATCH($B1934&$C1934,'Smelter Look-up'!$J:$J,0))","v":{"$error":"#N/A"}},null,0,null,null,null,""]
[null,{"$f":"IF(LEN(A1935)=0,\"\",INDEX('Smelter Look-up'!$A:$A,MATCH($A1935,'Smelter Look-up'!$E:$E,0)))","v":""},{"$f":"IF(LEN(A1935)=0,\"\",INDEX('Smelter Look-up'!$C:$C,MATCH($A1935,'Smelter Look-up'!$E:$E,0)))","v":""},null,{"$f":"IF(ISERROR($V1935),\"\",OFFSET('Smelter Look-up'!$D$4,$V1935-4,0)&\"\")","v":""},{"$f":"IF(ISERROR($V1935),\"\",OFFSET('Smelter Look-up'!$E$4,$V1935-4,0))","v":""},{"$f":"IF(C1935=$X$4,\"Enter smelter details\",IF(ISERROR($V1935),\"\",OFFSET('Smelter Look-up'!$F$4,$V1935-4,0)))","v":""},{"$f":"IF(ISERROR($V1935),\"\",OFFSET('Smelter Look-up'!$G$4,$V1935-4,0))","v":""},{"$f":"IF(ISERROR($V1935),\"\",OFFSET('Smelter Look-up'!$H$4,$V1935-4,0))","v":""},{"$f":"IF(ISERROR($V1935),\"\",OFFSET('Smelter Look-up'!$I$4,$V1935-4,0))","v":""},{"$nulls":7},{"$f":"IF(ISERROR($V1935),\"\",OFFSET('Smelter Look-up'!$C$4,$V1935-4,0)&\"\")","v":""},"",{"$f":"IF(B1935=\"\",\"\",IF(ISERROR(MATCH($J1935,SorP!$B$1:$B$5661,0)),\"\",INDIRECT(\"'SorP'!$A$\"&MATCH($J1935,SorP!$B$1:$B$5661,0))))","v":""},null,{"$f":"IF(C1935=\"\",NA(),MATCH($B1935&$C1935,'Smelter Look-up'!$J:$J,0))","v":{"$error":"#N/A"}},null,0,null,null,null,""]
[null,{"$f":"IF(LEN(A1936)=0,\"\",INDEX('Smelter Look-up'!$A:$A,MATCH($A1936,'Smelter Look-up'!$E:$E,0)))","v":""},{"$f":"IF(LEN(A1936)=0,\"\",INDEX('Smelter Look-up'!$C:$C,MATCH($A1936,'Smelter Look-up'!$E:$E,0)))","v":""},null,{"$f":"IF(ISERROR($V1936),\"\",OFFSET('Smelter Look-up'!$D$4,$V1936-4,0)&\"\")","v":""},{"$f":"IF(ISERROR($V1936),\"\",OFFSET('Smelter Look-up'!$E$4,$V1936-4,0))","v":""},{"$f":"IF(C1936=$X$4,\"Enter smelter details\",IF(ISERROR($V1936),\"\",OFFSET('Smelter Look-up'!$F$4,$V1936-4,0)))","v":""},{"$f":"IF(ISERROR($V1936),\"\",OFFSET('Smelter Look-up'!$G$4,$V1936-4,0))","v":""},{"$f":"IF(ISERROR($V1936),\"\",OFFSET('Smelter Look-up'!$H$4,$V1936-4,0))","v":""},{"$f":"IF(ISERROR($V1936),\"\",OFFSET('Smelter Look-up'!$I$4,$V1936-4,0))","v":""},{"$nulls":7},{"$f":"IF(ISERROR($V1936),\"\",OFFSET('Smelter Look-up'!$C$4,$V1936-4,0)&\"\")","v":""},"",{"$f":"IF(B1936=\"\",\"\",IF(ISERROR(MATCH($J1936,SorP!$B$1:$B$5661,0)),\"\",INDIRECT(\"'SorP'!$A$\"&MATCH($J1936,SorP!$B$1:$B$5661,0))))","v":""},null,{"$f":"IF(C1936=\"\",NA(),MATCH($B1936&$C1936,'Smelter Look-up'!$J:$J,0))","v":{"$error":"#N/A"}},null,0,null,null,null,""]
[null,{"$f":"IF(LEN(A1937)=0,\"\",INDEX('Smelter Look-up'!$A:$A,MATCH($A1937,'Smelter Look-up'!$E:$E,0)))","v":""},{"$f":"IF(LEN(A1937)=0,\"\",INDEX('Smelter Look-up'!$C:$C,MATCH($A1937,'Smelter Look-up'!$E:$E,0)))","v":""},null,{"$f":"IF(ISERROR($V1937),\"\",OFFSET('Smelter Look-up'!$D$4,$V1937-4,0)&\"\")","v":""},{"$f":"IF(ISERROR($V1937),\"\",OFFSET('Smelter Look-up'!$E$4,$V1937-4,0))","v":""},{"$f":"IF(C1937=$X$4,\"Enter smelter details\",IF(ISERROR($V1937),\"\",OFFSET('Smelter Look-up'!$F$4,$V1937-4,0)))","v":""},{"$f":"IF(ISERROR($V1937),\"\",OFFSET('Smelter Look-up'!$G$4,$V1937-4,0))","v":""},{"$f":"IF(ISERROR($V1937),\"\",OFFSET('Smelter Look-up'!$H$4,$V1937-4,0))","v":""},{"$f":"IF(ISERROR($V1937),\"\",OFFSET('Smelter Look-up'!$I$4,$V1937-4,0))","v":""},{"$nulls":7},{"$f":"IF(ISERROR($V1937),\"\",OFFSET('Smelter Look-up'!$C$4,$V1937-4,0)&\"\")","v":""},"",{"$f":"IF(B1937=\"\",\"\",IF(ISERROR(MATCH($J1937,SorP!$B$1:$B$5661,0)),\"\",INDIRECT(\"'SorP'!$A$\"&MATCH($J1937,SorP!$B$1:$B$5661,0))))","v":""},null,{"$f":"IF(C1937=\"\",NA(),MATCH($B1937&$C1937,'Smelter Look-up'!$J:$J,0))","v":{"$error":"#N/A"}},null,0,null,null,null,""]
[null,{"$f":"IF(LEN(A1938)=0,\"\",INDEX('Smelter Look-up'!$A:$A,MATCH($A1938,'Smelter Look-up'!$E:$E,0)))","v":""},{"$f":"IF(LEN(A1938)=0,\"\",INDEX('Smelter Look-up'!$C:$C,MATCH($A1938,'Smelter Look-up'!$E:$E,0)))","v":""},null,{"$f":"IF(ISERROR($V1938),\"\",OFFSET('Smelter Look-up'!$D$4,$V1938-4,0)&\"\")","v":""},{"$f":"IF(ISERROR($V1938),\"\",OFFSET('Smelter Look-up'!$E$4,$V1938-4,0))","v":""},{"$f":"IF(C1938=$X$4,\"Enter smelter details\",IF(ISERROR($V1938),\"\",OFFSET('Smelter Look-up'!$F$4,$V1938-4,0)))","v":""},{"$f":"IF(ISERROR($V1938),\"\",OFFSET('Smelter Look-up'!$G$4,$V1938-4,0))","v":""},{"$f":"IF(ISERROR($V1938),\"\",OFFSET('Smelter Look-up'!$H$4,$V1938-4,0))","v":""},{"$f":"IF(ISERROR($V1938),\"\",OFFSET('Smelter Look-up'!$I$4,$V1938-4,0))","v":""},{"$nulls":7},{"$f":"IF(ISERROR($V1938),\"\",OFFSET('Smelter Look-up'!$C$4,$V1938-4,0)&\"\")","v":""},"",{"$f":"IF(B1938=\"\",\"\",IF(ISERROR(MATCH($J1938,SorP!$B$1:$B$5661,0)),\"\",INDIRECT(\"'SorP'!$A$\"&MATCH($J1938,SorP!$B$1:$B$5661,0))))","v":""},null,{"$f":"IF(C1938=\"\",NA(),MATCH($B1938&$C1938,'Smelter Look-up'!$J:$J,0))","v":{"$error":"#N/A"}},null,0,null,null,null,""]
[null,{"$f":"IF(LEN(A1939)=0,\"\",INDEX('Smelter Look-up'!$A:$A,MATCH($A1939,'Smelter Look-up'!$E:$E,0)))","v":""},{"$f":"IF(LEN(A1939)=0,\"\",INDEX('Smelter Look-up'!$C:$C,MATCH($A1939,'Smelter Look-up'!$E:$E,0)))","v":""},null,{"$f":"IF(ISERROR($V1939),\"\",OFFSET('Smelter Look-up'!$D$4,$V1939-4,0)&\"\")","v":""},{"$f":"IF(ISERROR($V1939),\"\",OFFSET('Smelter Look-up'!$E$4,$V1939-4,0))","v":""},{"$f":"IF(C1939=$X$4,\"Enter smelter details\",IF(ISERROR($V1939),\"\",OFFSET('Smelter Look-up'!$F$4,$V1939-4,0)))","v":""},{"$f":"IF(ISERROR($V1939),\"\",OFFSET('Smelter Look-up'!$G$4,$V1939-4,0))","v":""},{"$f":"IF(ISERROR($V1939),\"\",OFFSET('Smelter Look-up'!$H$4,$V1939-4,0))","v":""},{"$f":"IF(ISERROR($V1939),\"\",OFFSET('Smelter Look-up'!$I$4,$V1939-4,0))","v":""},{"$nulls":7},{"$f":"IF(ISERROR($V1939),\"\",OFFSET('Smelter Look-up'!$C$4,$V1939-4,0)&\"\")","v":""},"",{"$f":"IF(B1939=\"\",\"\",IF(ISERROR(MATCH($J1939,SorP!$B$1:$B$5661,0)),\"\",INDIRECT(\"'SorP'!$A$\"&MATCH($J1939,SorP!$B$1:$B$5661,0))))","v":""},null,{"$f":"IF(C1939=\"\",NA(),MATCH($B1939&$C1939,'Smelter Look-up'!$J:$J,0))","v":{"$error":"#N/A"}},null,0,null,null,null,""]
[null,{"$f":"IF(LEN(A1940)=0,\"\",INDEX('Smelter Look-up'!$A:$A,MATCH($A1940,'Smelter Look-up'!$E:$E,0)))","v":""},{"$f":"IF(LEN(A1940)=0,\"\",INDEX('Smelter Look-up'!$C:$C,MATCH($A1940,'Smelter Look-up'!$E:$E,0)))","v":""},null,{"$f":"IF(ISERROR($V1940),\"\",OFFSET('Smelter Look-up'!$D$4,$V1940-4,0)&\"\")","v":""},{"$f":"IF(ISERROR($V1940),\"\",OFFSET('Smelter Look-up'!$E$4,$V1940-4,0))","v":""},{"$f":"IF(C1940=$X$4,\"Enter smelter details\",IF(ISERROR($V1940),\"\",OFFSET('Smelter Look-up'!$F$4,$V1940-4,0)))","v":""},{"$f":"IF(ISERROR($V1940),\"\",OFFSET('Smelter Look-up'!$G$4,$V1940-4,0))","v":""},{"$f":"IF(ISERROR($V1940),\"\",OFFSET('Smelter Look-up'!$H$4,$V1940-4,0))","v":""},{"$f":"IF(ISERROR($V1940),\"\",OFFSET('Smelter Look-up'!$I$4,$V1940-4,0))","v":""},{"$nulls":7},{"$f":"IF(ISERROR($V1940),\"\",OFFSET('Smelter Look-up'!$C$4,$V1940-4,0)&\"\")","v":""},"",{"$f":"IF(B1940=\"\",\"\",IF(ISERROR(MATCH($J1940,SorP!$B$1:$B$5661,0)),\"\",INDIRECT(\"'SorP'!$A$\"&MATCH($J1940,SorP!$B$1:$B$5661,0))))","v":""},null,{"$f":"IF(C1940=\"\",NA(),MATCH($B1940&$C1940,'Smelter Look-up'!$J:$J,0))","v":{"$error":"#N/A"}},null,0,null,null,null,""]
[null,{"$f":"IF(LEN(A1941)=0,\"\",INDEX('Smelter Look-up'!$A:$A,MATCH($A1941,'Smelter Look-up'!$E:$E,0)))","v":""},{"$f":"IF(LEN(A1941)=0,\"\",INDEX('Smelter Look-up'!$C:$C,MATCH($A1941,'Smelter Look-up'!$E:$E,0)))","v":""},null,{"$f":"IF(ISERROR($V1941),\"\",OFFSET('Smelter Look-up'!$D$4,$V1941-4,0)&\"\")","v":""},{"$f":"IF(ISERROR($V1941),\"\",OFFSET('Smelter Look-up'!$E$4,$V1941-4,0))","v":""},{"$f":"IF(C1941=$X$4,\"Enter smelter details\",IF(ISERROR($V1941),\"\",OFFSET('Smelter Look-up'!$F$4,$V1941-4,0)))","v":""},{"$f":"IF(ISERROR($V1941),\"\",OFFSET('Smelter Look-up'!$G$4,$V1941-4,0))","v":""},{"$f":"IF(ISERROR($V1941),\"\",OFFSET('Smelter Look-up'!$H$4,$V1941-4,0))","v":""},{"$f":"IF(ISERROR($V1941),\"\",OFFSET('Smelter Look-up'!$I$4,$V1941-4,0))","v":""},{"$nulls":7},{"$f":"IF(ISERROR($V1941),\"\",OFFSET('Smelter Look-up'!$C$4,$V1941-4,0)&\"\")","v":""},"",{"$f":"IF(B1941=\"\",\"\",IF(ISERROR(MATCH($J1941,SorP!$B$1:$B$5661,0)),\"\",INDIRECT(\"'SorP'!$A$\"&MATCH($J1941,SorP!$B$1:$B$5661,0))))","v":""},null,{"$f":"IF(C1941=\"\",NA(),MATCH($B1941&$C1941,'Smelter Look-up'!$J:$J,0))","v":{"$error":"#N/A"}},null,0,null,null,null,""]
[null,{"$f":"IF(LEN(A1942)=0,\"\",INDEX('Smelter Look-up'!$A:$A,MATCH($A1942,'Smelter Look-up'!$E:$E,0)))","v":""},{"$f":"IF(LEN(A1942)=0,\"\",INDEX('Smelter Look-up'!$C:$C,MATCH($A1942,'Smelter Look-up'!$E:$E,0)))","v":""},null,{"$f":"IF(ISERROR($V1942),\"\",OFFSET('Smelter Look-up'!$D$4,$V1942-4,0)&\"\")","v":""},{"$f":"IF(ISERROR($V1942),\"\",OFFSET('Smelter Look-up'!$E$4,$V1942-4,0))","v":""},{"$f":"IF(C1942=$X$4,\"Enter smelter details\",IF(ISERROR($V1942),\"\",OFFSET('Smelter Look-up'!$F$4,$V1942-4,0)))","v":""},{"$f":"IF(ISERROR($V1942),\"\",OFFSET('Smelter Look-up'!$G$4,$V1942-4,0))","v":""},{"$f":"IF(ISERROR($V1942),\"\",OFFSET('Smelter Look-up'!$H$4,$V1942-4,0))","v":""},{"$f":"IF(ISERROR($V1942),\"\",OFFSET('Smelter Look-up'!$I$4,$V1942-4,0))","v":""},{"$nulls":7},{"$f":"IF(ISERROR($V1942),\"\",OFFSET('Smelter Look-up'!$C$4,$V1942-4,0)&\"\")","v":""},"",{"$f":"IF(B1942=\"\",\"\",IF(ISERROR(MATCH($J1942,SorP!$B$1:$B$5661,0)),\"\",INDIRECT(\"'SorP'!$A$\"&MATCH($J1942,SorP!$B$1:$B$5661,0))))","v":""},null,{"$f":"IF(C1942=\"\",NA(),MATCH($B1942&$C1942,'Smelter Look-up'!$J:$J,0))","v":{"$error":"#N/A"}},null,0,null,null,null,""]
[null,{"$f":"IF(LEN(A1943)=0,\"\",INDEX('Smelter Look-up'!$A:$A,MATCH($A1943,'Smelter Look-up'!$E:$E,0)))","v":""},{"$f":"IF(LEN(A1943)=0,\"\",INDEX('Smelter Look-up'!$C:$C,MATCH($A1943,'Smelter Look-up'!$E:$E,0)))","v":""},null,{"$f":"IF(ISERROR($V1943),\"\",OFFSET('Smelter Look-up'!$D$4,$V1943-4,0)&\"\")","v":""},{"$f":"IF(ISERROR($V1943),\"\",OFFSET('Smelter Look-up'!$E$4,$V1943-4,0))","v":""},{"$f":"IF(C1943=$X$4,\"Enter smelter details\",IF(ISERROR($V1943),\"\",OFFSET('Smelter Look-up'!$F$4,$V1943-4,0)))","v":""},{"$f":"IF(ISERROR($V1943),\"\",OFFSET('Smelter Look-up'!$G$4,$V1943-4,0))","v":""},{"$f":"IF(ISERROR($V1943),\"\",OFFSET('Smelter Look-up'!$H$4,$V1943-4,0))","v":""},{"$f":"IF(ISERROR($V1943),\"\",OFFSET('Smelter Look-up'!$I$4,$V1943-4,0))","v":""},{"$nulls":7},{"$f":"IF(ISERROR($V1943),\"\",OFFSET('Smelter Look-up'!$C$4,$V1943-4,0)&\"\")","v":""},"",{"$f":"IF(B1943=\"\",\"\",IF(ISERROR(MATCH($J1943,SorP!$B$1:$B$5661,0)),\"\",INDIRECT(\"'SorP'!$A$\"&MATCH($J1943,SorP!$B$1:$B$5661,0))))","v":""},null,{"$f":"IF(C1943=\"\",NA(),MATCH($B1943&$C1943,'Smelter Look-up'!$J:$J,0))","v":{"$error":"#N/A"}},null,0,null,null,null,""]
[null,{"$f":"IF(LEN(A1944)=0,\"\",INDEX('Smelter Look-up'!$A:$A,MATCH($A1944,'Smelter Look-up'!$E:$E,0)))","v":""},{"$f":"IF(LEN(A1944)=0,\"\",INDEX('Smelter Look-up'!$C:$C,MATCH($A1944,'Smelter Look-up'!$E:$E,0)))","v":""},null,{"$f":"IF(ISERROR($V1944),\"\",OFFSET('Smelter Look-up'!$D$4,$V1944-4,0)&\"\")","v":""},{"$f":"IF(ISERROR($V1944),\"\",OFFSET('Smelter Look-up'!$E$4,$V1944-4,0))","v":""},{"$f":"IF(C1944=$X$4,\"Enter smelter details\",IF(ISERROR($V1944),\"\",OFFSET('Smelter Look-up'!$F$4,$V1944-4,0)))","v":""},{"$f":"IF(ISERROR($V1944),\"\",OFFSET('Smelter Look-up'!$G$4,$V1944-4,0))","v":""},{"$f":"IF(ISERROR($V1944),\"\",OFFSET('Smelter Look-up'!$H$4,$V1944-4,0))","v":""},{"$f":"IF(ISERROR($V1944),\"\",OFFSET('Smelter Look-up'!$I$4,$V1944-4,0))","v":""},{"$nulls":7},{"$f":"IF(ISERROR($V1944),\"\",OFFSET('Smelter Look-up'!$C$4,$V1944-4,0)&\"\")","v":""},"",{"$f":"IF(B1944=\"\",\"\",IF(ISERROR(MATCH($J1944,SorP!$B$1:$B$5661,0)),\"\",INDIRECT(\"'SorP'!$A$\"&MATCH($J1944,SorP!$B$1:$B$5661,0))))","v":""},null,{"$f":"IF(C1944=\"\",NA(),MATCH($B1944&$C1944,'Smelter Look-up'!$J:$J,0))","v":{"$error":"#N/A"}},null,0,null,null,null,""]
[null,{"$f":"IF(LEN(A1945)=0,\"\",INDEX('Smelter Look-up'!$A:$A,MATCH($A1945,'Smelter Look-up'!$E:$E,0)))","v":""},{"$f":"IF(LEN(A1945)=0,\"\",INDEX('Smelter Look-up'!$C:$C,MATCH($A1945,'Smelter Look-up'!$E:$E,0)))","v":""},null,{"$f":"IF(ISERROR($V1945),\"\",OFFSET('Smelter Look-up'!$D$4,$V1945-4,0)&\"\")","v":""},{"$f":"IF(ISERROR($V1945),\"\",OFFSET('Smelter Look-up'!$E$4,$V1945-4,0))","v":""},{"$f":"IF(C1945=$X$4,\"Enter smelter details\",IF(ISERROR($V1945),\"\",OFFSET('Smelter Look-up'!$F$4,$V1945-4,0)))","v":""},{"$f":"IF(ISERROR($V1945),\"\",OFFSET('Smelter Look-up'!$G$4,$V1945-4,0))","v":""},{"$f":"IF(ISERROR($V1945),\"\",OFFSET('Smelter Look-up'!$H$4,$V1945-4,0))","v":""},{"$f":"IF(ISERROR($V1945),\"\",OFFSET('Smelter Look-up'!$I$4,$V1945-4,0))","v":""},{"$nulls":7},{"$f":"IF(ISERROR($V1945),\"\",OFFSET('Smelter Look-up'!$C$4,$V1945-4,0)&\"\")","v":""},"",{"$f":"IF(B1945=\"\",\"\",IF(ISERROR(MATCH($J1945,SorP!$B$1:$B$5661,0)),\"\",INDIRECT(\"'SorP'!$A$\"&MATCH($J1945,SorP!$B$1:$B$5661,0))))","v":""},null,{"$f":"IF(C1945=\"\",NA(),MATCH($B1945&$C1945,'Smelter Look-up'!$J:$J,0))","v":{"$error":"#N/A"}},null,0,null,null,null,""]
[null,{"$f":"IF(LEN(A1946)=0,\"\",INDEX('Smelter Look-up'!$A:$A,MATCH($A1946,'Smelter Look-up'!$E:$E,0)))","v":""},{"$f":"IF(LEN(A1946)=0,\"\",INDEX('Smelter Look-up'!$C:$C,MATCH($A1946,'Smelter Look-up'!$E:$E,0)))","v":""},null,{"$f":"IF(ISERROR($V1946),\"\",OFFSET('Smelter Look-up'!$D$4,$V1946-4,0)&\"\")","v":""},{"$f":"IF(ISERROR($V1946),\"\",OFFSET('Smelter Look-up'!$E$4,$V1946-4,0))","v":""},{"$f":"IF(C1946=$X$4,\"Enter smelter details\",IF(ISERROR($V1946),\"\",OFFSET('Smelter Look-up'!$F$4,$V1946-4,0)))","v":""},{"$f":"IF(ISERROR($V1946),\"\",OFFSET('Smelter Look-up'!$G$4,$V1946-4,0))","v":""},{"$f":"IF(ISERROR($V1946),\"\",OFFSET('Smelter Look-up'!$H$4,$V1946-4,0))","v":""},{"$f":"IF(ISERROR($V1946),\"\",OFFSET('Smelter Look-up'!$I$4,$V1946-4,0))","v":""},{"$nulls":7},{"$f":"IF(ISERROR($V1946),\"\",OFFSET('Smelter Look-up'!$C$4,$V1946-4,0)&\"\")","v":""},"",{"$f":"IF(B1946=\"\",\"\",IF(ISERROR(MATCH($J1946,SorP!$B$1:$B$5661,0)),\"\",INDIRECT(\"'SorP'!$A$\"&MATCH($J1946,SorP!$B$1:$B$5661,0))))","v":""},null,{"$f":"IF(C1946=\"\",NA(),MATCH($B1946&$C1946,'Smelter Look-up'!$J:$J,0))","v":{"$error":"#N/A"}},null,0,null,null,null,""]
[null,{"$f":"IF(LEN(A1947)=0,\"\",INDEX('Smelter Look-up'!$A:$A,MATCH($A1947,'Smelter Look-up'!$E:$E,0)))","v":""},{"$f":"IF(LEN(A1947)=0,\"\",INDEX('Smelter Look-up'!$C:$C,MATCH($A1947,'Smelter Look-up'!$E:$E,0)))","v":""},null,{"$f":"IF(ISERROR($V1947),\"\",OFFSET('Smelter Look-up'!$D$4,$V1947-4,0)&\"\")","v":""},{"$f":"IF(ISERROR($V1947),\"\",OFFSET('Smelter Look-up'!$E$4,$V1947-4,0))","v":""},{"$f":"IF(C1947=$X$4,\"Enter smelter details\",IF(ISERROR($V1947),\"\",OFFSET('Smelter Look-up'!$F$4,$V1947-4,0)))","v":""},{"$f":"IF(ISERROR($V1947),\"\",OFFSET('Smelter Look-up'!$G$4,$V1947-4,0))","v":""},{"$f":"IF(ISERROR($V1947),\"\",OFFSET('Smelter Look-up'!$H$4,$V1947-4,0))","v":""},{"$f":"IF(ISERROR($V1947),\"\",OFFSET('Smelter Look-up'!$I$4,$V1947-4,0))","v":""},{"$nulls":7},{"$f":"IF(ISERROR($V1947),\"\",OFFSET('Smelter Look-up'!$C$4,$V1947-4,0)&\"\")","v":""},"",{"$f":"IF(B1947=\"\",\"\",IF(ISERROR(MATCH($J1947,SorP!$B$1:$B$5661,0)),\"\",INDIRECT(\"'SorP'!$A$\"&MATCH($J1947,SorP!$B$1:$B$5661,0))))","v":""},null,{"$f":"IF(C1947=\"\",NA(),MATCH($B1947&$C1947,'Smelter Look-up'!$J:$J,0))","v":{"$error":"#N/A"}},null,0,null,null,null,""]
[null,{"$f":"IF(LEN(A1948)=0,\"\",INDEX('Smelter Look-up'!$A:$A,MATCH($A1948,'Smelter Look-up'!$E:$E,0)))","v":""},{"$f":"IF(LEN(A1948)=0,\"\",INDEX('Smelter Look-up'!$C:$C,MATCH($A1948,'Smelter Look-up'!$E:$E,0)))","v":""},null,{"$f":"IF(ISERROR($V1948),\"\",OFFSET('Smelter Look-up'!$D$4,$V1948-4,0)&\"\")","v":""},{"$f":"IF(ISERROR($V1948),\"\",OFFSET('Smelter Look-up'!$E$4,$V1948-4,0))","v":""},{"$f":"IF(C1948=$X$4,\"Enter smelter details\",IF(ISERROR($V1948),\"\",OFFSET('Smelter Look-up'!$F$4,$V1948-4,0)))","v":""},{"$f":"IF(ISERROR($V1948),\"\",OFFSET('Smelter Look-up'!$G$4,$V1948-4,0))","v":""},{"$f":"IF(ISERROR($V1948),\"\",OFFSET('Smelter Look-up'!$H$4,$V1948-4,0))","v":""},{"$f":"IF(ISERROR($V1948),\"\",OFFSET('Smelter Look-up'!$I$4,$V1948-4,0))","v":""},{"$nulls":7},{"$f":"IF(ISERROR($V1948),\"\",OFFSET('Smelter Look-up'!$C$4,$V1948-4,0)&\"\")","v":""},"",{"$f":"IF(B1948=\"\",\"\",IF(ISERROR(MATCH($J1948,SorP!$B$1:$B$5661,0)),\"\",INDIRECT(\"'SorP'!$A$\"&MATCH($J1948,SorP!$B$1:$B$5661,0))))","v":""},null,{"$f":"IF(C1948=\"\",NA(),MATCH($B1948&$C1948,'Smelter Look-up'!$J:$J,0))","v":{"$error":"#N/A"}},null,0,null,null,null,""]
[null,{"$f":"IF(LEN(A1949)=0,\"\",INDEX('Smelter Look-up'!$A:$A,MATCH($A1949,'Smelter Look-up'!$E:$E,0)))","v":""},{"$f":"IF(LEN(A1949)=0,\"\",INDEX('Smelter Look-up'!$C:$C,MATCH($A1949,'Smelter Look-up'!$E:$E,0)))","v":""},null,{"$f":"IF(ISERROR($V1949),\"\",OFFSET('Smelter Look-up'!$D$4,$V1949-4,0)&\"\")","v":""},{"$f":"IF(ISERROR($V1949),\"\",OFFSET('Smelter Look-up'!$E$4,$V1949-4,0))","v":""},{"$f":"IF(C1949=$X$4,\"Enter smelter details\",IF(ISERROR($V1949),\"\",OFFSET('Smelter Look-up'!$F$4,$V1949-4,0)))","v":""},{"$f":"IF(ISERROR($V1949),\"\",OFFSET('Smelter Look-up'!$G$4,$V1949-4,0))","v":""},{"$f":"IF(ISERROR($V1949),\"\",OFFSET('Smelter Look-up'!$H$4,$V1949-4,0))","v":""},{"$f":"IF(ISERROR($V1949),\"\",OFFSET('Smelter Look-up'!$I$4,$V1949-4,0))","v":""},{"$nulls":7},{"$f":"IF(ISERROR($V1949),\"\",OFFSET('Smelter Look-up'!$C$4,$V1949-4,0)&\"\")","v":""},"",{"$f":"IF(B1949=\"\",\"\",IF(ISERROR(MATCH($J1949,SorP!$B$1:$B$5661,0)),\"\",INDIRECT(\"'SorP'!$A$\"&MATCH($J1949,SorP!$B$1:$B$5661,0))))","v":""},null,{"$f":"IF(C1949=\"\",NA(),MATCH($B1949&$C1949,'Smelter Look-up'!$J:$J,0))","v":{"$error":"#N/A"}},null,0,null,null,null,""]
[null,{"$f":"IF(LEN(A1950)=0,\"\",INDEX('Smelter Look-up'!$A:$A,MATCH($A1950,'Smelter Look-up'!$E:$E,0)))","v":""},{"$f":"IF(LEN(A1950)=0,\"\",INDEX('Smelter Look-up'!$C:$C,MATCH($A1950,'Smelter Look-up'!$E:$E,0)))","v":""},null,{"$f":"IF(ISERROR($V1950),\"\",OFFSET('Smelter Look-up'!$D$4,$V1950-4,0)&\"\")","v":""},{"$f":"IF(ISERROR($V1950),\"\",OFFSET('Smelter Look-up'!$E$4,$V1950-4,0))","v":""},{"$f":"IF(C1950=$X$4,\"Enter smelter details\",IF(ISERROR($V1950),\"\",OFFSET('Smelter Look-up'!$F$4,$V1950-4,0)))","v":""},{"$f":"IF(ISERROR($V1950),\"\",OFFSET('Smelter Look-up'!$G$4,$V1950-4,0))","v":""},{"$f":"IF(ISERROR($V1950),\"\",OFFSET('Smelter Look-up'!$H$4,$V1950-4,0))","v":""},{"$f":"IF(ISERROR($V1950),\"\",OFFSET('Smelter Look-up'!$I$4,$V1950-4,0))","v":""},{"$nulls":7},{"$f":"IF(ISERROR($V1950),\"\",OFFSET('Smelter Look-up'!$C$4,$V1950-4,0)&\"\")","v":""},"",{"$f":"IF(B1950=\"\",\"\",IF(ISERROR(MATCH($J1950,SorP!$B$1:$B$5661,0)),\"\",INDIRECT(\"'SorP'!$A$\"&MATCH($J1950,SorP!$B$1:$B$5661,0))))","v":""},null,{"$f":"IF(C1950=\"\",NA(),MATCH($B1950&$C1950,'Smelter Look-up'!$J:$J,0))","v":{"$error":"#N/A"}},null,0,null,null,null,""]
[null,{"$f":"IF(LEN(A1951)=0,\"\",INDEX('Smelter Look-up'!$A:$A,MATCH($A1951,'Smelter Look-up'!$E:$E,0)))","v":""},{"$f":"IF(LEN(A1951)=0,\"\",INDEX('Smelter Look-up'!$C:$C,MATCH($A1951,'Smelter Look-up'!$E:$E,0)))","v":""},null,{"$f":"IF(ISERROR($V1951),\"\",OFFSET('Smelter Look-up'!$D$4,$V1951-4,0)&\"\")","v":""},{"$f":"IF(ISERROR($V1951),\"\",OFFSET('Smelter Look-up'!$E$4,$V1951-4,0))","v":""},{"$f":"IF(C1951=$X$4,\"Enter smelter details\",IF(ISERROR($V1951),\"\",OFFSET('Smelter Look-up'!$F$4,$V1951-4,0)))","v":""},{"$f":"IF(ISERROR($V1951),\"\",OFFSET('Smelter Look-up'!$G$4,$V1951-4,0))","v":""},{"$f":"IF(ISERROR($V1951),\"\",OFFSET('Smelter Look-up'!$H$4,$V1951-4,0))","v":""},{"$f":"IF(ISERROR($V1951),\"\",OFFSET('Smelter Look-up'!$I$4,$V1951-4,0))","v":""},{"$nulls":7},{"$f":"IF(ISERROR($V1951),\"\",OFFSET('Smelter Look-up'!$C$4,$V1951-4,0)&\"\")","v":""},"",{"$f":"IF(B1951=\"\",\"\",IF(ISERROR(MATCH($J1951,SorP!$B$1:$B$5661,0)),\"\",INDIRECT(\"'SorP'!$A$\"&MATCH($J1951,SorP!$B$1:$B$5661,0))))","v":""},null,{"$f":"IF(C1951=\"\",NA(),MATCH($B1951&$C1951,'Smelter Look-up'!$J:$J,0))","v":{"$error":"#N/A"}},null,0,null,null,null,""]
[null,{"$f":"IF(LEN(A1952)=0,\"\",INDEX('Smelter Look-up'!$A:$A,MATCH($A1952,'Smelter Look-up'!$E:$E,0)))","v":""},{"$f":"IF(LEN(A1952)=0,\"\",INDEX('Smelter Look-up'!$C:$C,MATCH($A1952,'Smelter Look-up'!$E:$E,0)))","v":""},null,{"$f":"IF(ISERROR($V1952),\"\",OFFSET('Smelter Look-up'!$D$4,$V1952-4,0)&\"\")","v":""},{"$f":"IF(ISERROR($V1952),\"\",OFFSET('Smelter Look-up'!$E$4,$V1952-4,0))","v":""},{"$f":"IF(C1952=$X$4,\"Enter smelter details\",IF(ISERROR($V1952),\"\",OFFSET('Smelter Look-up'!$F$4,$V1952-4,0)))","v":""},{"$f":"IF(ISERROR($V1952),\"\",OFFSET('Smelter Look-up'!$G$4,$V1952-4,0))","v":""},{"$f":"IF(ISERROR($V1952),\"\",OFFSET('Smelter Look-up'!$H$4,$V1952-4,0))","v":""},{"$f":"IF(ISERROR($V1952),\"\",OFFSET('Smelter Look-up'!$I$4,$V1952-4,0))","v":""},{"$nulls":7},{"$f":"IF(ISERROR($V1952),\"\",OFFSET('Smelter Look-up'!$C$4,$V1952-4,0)&\"\")","v":""},"",{"$f":"IF(B1952=\"\",\"\",IF(ISERROR(MATCH($J1952,SorP!$B$1:$B$5661,0)),\"\",INDIRECT(\"'SorP'!$A$\"&MATCH($J1952,SorP!$B$1:$B$5661,0))))","v":""},null,{"$f":"IF(C1952=\"\",NA(),MATCH($B1952&$C1952,'Smelter Look-up'!$J:$J,0))","v":{"$error":"#N/A"}},null,0,null,null,null,""]
[null,{"$f":"IF(LEN(A1953)=0,\"\",INDEX('Smelter Look-up'!$A:$A,MATCH($A1953,'Smelter Look-up'!$E:$E,0)))","v":""},{"$f":"IF(LEN(A1953)=0,\"\",INDEX('Smelter Look-up'!$C:$C,MATCH($A1953,'Smelter Look-up'!$E:$E,0)))","v":""},null,{"$f":"IF(ISERROR($V1953),\"\",OFFSET('Smelter Look-up'!$D$4,$V1953-4,0)&\"\")","v":""},{"$f":"IF(ISERROR($V1953),\"\",OFFSET('Smelter Look-up'!$E$4,$V1953-4,0))","v":""},{"$f":"IF(C1953=$X$4,\"Enter smelter details\",IF(ISERROR($V1953),\"\",OFFSET('Smelter Look-up'!$F$4,$V1953-4,0)))","v":""},{"$f":"IF(ISERROR($V1953),\"\",OFFSET('Smelter Look-up'!$G$4,$V1953-4,0))","v":""},{"$f":"IF(ISERROR($V1953),\"\",OFFSET('Smelter Look-up'!$H$4,$V1953-4,0))","v":""},{"$f":"IF(ISERROR($V1953),\"\",OFFSET('Smelter Look-up'!$I$4,$V1953-4,0))","v":""},{"$nulls":7},{"$f":"IF(ISERROR($V1953),\"\",OFFSET('Smelter Look-up'!$C$4,$V1953-4,0)&\"\")","v":""},"",{"$f":"IF(B1953=\"\",\"\",IF(ISERROR(MATCH($J1953,SorP!$B$1:$B$5661,0)),\"\",INDIRECT(\"'SorP'!$A$\"&MATCH($J1953,SorP!$B$1:$B$5661,0))))","v":""},null,{"$f":"IF(C1953=\"\",NA(),MATCH($B1953&$C1953,'Smelter Look-up'!$J:$J,0))","v":{"$error":"#N/A"}},null,0,null,null,null,""]
[null,{"$f":"IF(LEN(A1954)=0,\"\",INDEX('Smelter Look-up'!$A:$A,MATCH($A1954,'Smelter Look-up'!$E:$E,0)))","v":""},{"$f":"IF(LEN(A1954)=0,\"\",INDEX('Smelter Look-up'!$C:$C,MATCH($A1954,'Smelter Look-up'!$E:$E,0)))","v":""},null,{"$f":"IF(ISERROR($V1954),\"\",OFFSET('Smelter Look-up'!$D$4,$V1954-4,0)&\"\")","v":""},{"$f":"IF(ISERROR($V1954),\"\",OFFSET('Smelter Look-up'!$E$4,$V1954-4,0))","v":""},{"$f":"IF(C1954=$X$4,\"Enter smelter details\",IF(ISERROR($V1954),\"\",OFFSET('Smelter Look-up'!$F$4,$V1954-4,0)))","v":""},{"$f":"IF(ISERROR($V1954),\"\",OFFSET('Smelter Look-up'!$G$4,$V1954-4,0))","v":""},{"$f":"IF(ISERROR($V1954),\"\",OFFSET('Smelter Look-up'!$H$4,$V1954-4,0))","v":""},{"$f":"IF(ISERROR($V1954),\"\",OFFSET('Smelter Look-up'!$I$4,$V1954-4,0))","v":""},{"$nulls":7},{"$f":"IF(ISERROR($V1954),\"\",OFFSET('Smelter Look-up'!$C$4,$V1954-4,0)&\"\")","v":""},"",{"$f":"IF(B1954=\"\",\"\",IF(ISERROR(MATCH($J1954,SorP!$B$1:$B$5661,0)),\"\",INDIRECT(\"'SorP'!$A$\"&MATCH($J1954,SorP!$B$1:$B$5661,0))))","v":""},null,{"$f":"IF(C1954=\"\",NA(),MATCH($B1954&$C1954,'Smelter Look-up'!$J:$J,0))","v":{"$error":"#N/A"}},null,0,null,null,null,""]
[null,{"$f":"IF(LEN(A1955)=0,\"\",INDEX('Smelter Look-up'!$A:$A,MATCH($A1955,'Smelter Look-up'!$E:$E,0)))","v":""},{"$f":"IF(LEN(A1955)=0,\"\",INDEX('Smelter Look-up'!$C:$C,MATCH($A1955,'Smelter Look-up'!$E:$E,0)))","v":""},null,{"$f":"IF(ISERROR($V1955),\"\",OFFSET('Smelter Look-up'!$D$4,$V1955-4,0)&\"\")","v":""},{"$f":"IF(ISERROR($V1955),\"\",OFFSET('Smelter Look-up'!$E$4,$V1955-4,0))","v":""},{"$f":"IF(C1955=$X$4,\"Enter smelter details\",IF(ISERROR($V1955),\"\",OFFSET('Smelter Look-up'!$F$4,$V1955-4,0)))","v":""},{"$f":"IF(ISERROR($V1955),\"\",OFFSET('Smelter Look-up'!$G$4,$V1955-4,0))","v":""},{"$f":"IF(ISERROR($V1955),\"\",OFFSET('Smelter Look-up'!$H$4,$V1955-4,0))","v":""},{"$f":"IF(ISERROR($V1955),\"\",OFFSET('Smelter Look-up'!$I$4,$V1955-4,0))","v":""},{"$nulls":7},{"$f":"IF(ISERROR($V1955),\"\",OFFSET('Smelter Look-up'!$C$4,$V1955-4,0)&\"\")","v":""},"",{"$f":"IF(B1955=\"\",\"\",IF(ISERROR(MATCH($J1955,SorP!$B$1:$B$5661,0)),\"\",INDIRECT(\"'SorP'!$A$\"&MATCH($J1955,SorP!$B$1:$B$5661,0))))","v":""},null,{"$f":"IF(C1955=\"\",NA(),MATCH($B1955&$C1955,'Smelter Look-up'!$J:$J,0))","v":{"$error":"#N/A"}},null,0,null,null,null,""]
[null,{"$f":"IF(LEN(A1956)=0,\"\",INDEX('Smelter Look-up'!$A:$A,MATCH($A1956,'Smelter Look-up'!$E:$E,0)))","v":""},{"$f":"IF(LEN(A1956)=0,\"\",INDEX('Smelter Look-up'!$C:$C,MATCH($A1956,'Smelter Look-up'!$E:$E,0)))","v":""},null,{"$f":"IF(ISERROR($V1956),\"\",OFFSET('Smelter Look-up'!$D$4,$V1956-4,0)&\"\")","v":""},{"$f":"IF(ISERROR($V1956),\"\",OFFSET('Smelter Look-up'!$E$4,$V1956-4,0))","v":""},{"$f":"IF(C1956=$X$4,\"Enter smelter details\",IF(ISERROR($V1956),\"\",OFFSET('Smelter Look-up'!$F$4,$V1956-4,0)))","v":""},{"$f":"IF(ISERROR($V1956),\"\",OFFSET('Smelter Look-up'!$G$4,$V1956-4,0))","v":""},{"$f":"IF(ISERROR($V1956),\"\",OFFSET('Smelter Look-up'!$H$4,$V1956-4,0))","v":""},{"$f":"IF(ISERROR($V1956),\"\",OFFSET('Smelter Look-up'!$I$4,$V1956-4,0))","v":""},{"$nulls":7},{"$f":"IF(ISERROR($V1956),\"\",OFFSET('Smelter Look-up'!$C$4,$V1956-4,0)&\"\")","v":""},"",{"$f":"IF(B1956=\"\",\"\",IF(ISERROR(MATCH($J1956,SorP!$B$1:$B$5661,0)),\"\",INDIRECT(\"'SorP'!$A$\"&MATCH($J1956,SorP!$B$1:$B$5661,0))))","v":""},null,{"$f":"IF(C1956=\"\",NA(),MATCH($B1956&$C1956,'Smelter Look-up'!$J:$J,0))","v":{"$error":"#N/A"}},null,0,null,null,null,""]
[null,{"$f":"IF(LEN(A1957)=0,\"\",INDEX('Smelter Look-up'!$A:$A,MATCH($A1957,'Smelter Look-up'!$E:$E,0)))","v":""},{"$f":"IF(LEN(A1957)=0,\"\",INDEX('Smelter Look-up'!$C:$C,MATCH($A1957,'Smelter Look-up'!$E:$E,0)))","v":""},null,{"$f":"IF(ISERROR($V1957),\"\",OFFSET('Smelter Look-up'!$D$4,$V1957-4,0)&\"\")","v":""},{"$f":"IF(ISERROR($V1957),\"\",OFFSET('Smelter Look-up'!$E$4,$V1957-4,0))","v":""},{"$f":"IF(C1957=$X$4,\"Enter smelter details\",IF(ISERROR($V1957),\"\",OFFSET('Smelter Look-up'!$F$4,$V1957-4,0)))","v":""},{"$f":"IF(ISERROR($V1957),\"\",OFFSET('Smelter Look-up'!$G$4,$V1957-4,0))","v":""},{"$f":"IF(ISERROR($V1957),\"\",OFFSET('Smelter Look-up'!$H$4,$V1957-4,0))","v":""},{"$f":"IF(ISERROR($V1957),\"\",OFFSET('Smelter Look-up'!$I$4,$V1957-4,0))","v":""},{"$nulls":7},{"$f":"IF(ISERROR($V1957),\"\",OFFSET('Smelter Look-up'!$C$4,$V1957-4,0)&\"\")","v":""},"",{"$f":"IF(B1957=\"\",\"\",IF(ISERROR(MATCH($J1957,SorP!$B$1:$B$5661,0)),\"\",INDIRECT(\"'SorP'!$A$\"&MATCH($J1957,SorP!$B$1:$B$5661,0))))","v":""},null,{"$f":"IF(C1957=\"\",NA(),MATCH($B1957&$C1957,'Smelter Look-up'!$J:$J,0))","v":{"$error":"#N/A"}},null,0,null,null,null,""]
[null,{"$f":"IF(LEN(A1958)=0,\"\",INDEX('Smelter Look-up'!$A:$A,MATCH($A1958,'Smelter Look-up'!$E:$E,0)))","v":""},{"$f":"IF(LEN(A1958)=0,\"\",INDEX('Smelter Look-up'!$C:$C,MATCH($A1958,'Smelter Look-up'!$E:$E,0)))","v":""},null,{"$f":"IF(ISERROR($V1958),\"\",OFFSET('Smelter Look-up'!$D$4,$V1958-4,0)&\"\")","v":""},{"$f":"IF(ISERROR($V1958),\"\",OFFSET('Smelter Look-up'!$E$4,$V1958-4,0))","v":""},{"$f":"IF(C1958=$X$4,\"Enter smelter details\",IF(ISERROR($V1958),\"\",OFFSET('Smelter Look-up'!$F$4,$V1958-4,0)))","v":""},{"$f":"IF(ISERROR($V1958),\"\",OFFSET('Smelter Look-up'!$G$4,$V1958-4,0))","v":""},{"$f":"IF(ISERROR($V1958),\"\",OFFSET('Smelter Look-up'!$H$4,$V1958-4,0))","v":""},{"$f":"IF(ISERROR($V1958),\"\",OFFSET('Smelter Look-up'!$I$4,$V1958-4,0))","v":""},{"$nulls":7},{"$f":"IF(ISERROR($V1958),\"\",OFFSET('Smelter Look-up'!$C$4,$V1958-4,0)&\"\")","v":""},"",{"$f":"IF(B1958=\"\",\"\",IF(ISERROR(MATCH($J1958,SorP!$B$1:$B$5661,0)),\"\",INDIRECT(\"'SorP'!$A$\"&MATCH($J1958,SorP!$B$1:$B$5661,0))))","v":""},null,{"$f":"IF(C1958=\"\",NA(),MATCH($B1958&$C1958,'Smelter Look-up'!$J:$J,0))","v":{"$error":"#N/A"}},null,0,null,null,null,""]
[null,{"$f":"IF(LEN(A1959)=0,\"\",INDEX('Smelter Look-up'!$A:$A,MATCH($A1959,'Smelter Look-up'!$E:$E,0)))","v":""},{"$f":"IF(LEN(A1959)=0,\"\",INDEX('Smelter Look-up'!$C:$C,MATCH($A1959,'Smelter Look-up'!$E:$E,0)))","v":""},null,{"$f":"IF(ISERROR($V1959),\"\",OFFSET('Smelter Look-up'!$D$4,$V1959-4,0)&\"\")","v":""},{"$f":"IF(ISERROR($V1959),\"\",OFFSET('Smelter Look-up'!$E$4,$V1959-4,0))","v":""},{"$f":"IF(C1959=$X$4,\"Enter smelter details\",IF(ISERROR($V1959),\"\",OFFSET('Smelter Look-up'!$F$4,$V1959-4,0)))","v":""},{"$f":"IF(ISERROR($V1959),\"\",OFFSET('Smelter Look-up'!$G$4,$V1959-4,0))","v":""},{"$f":"IF(ISERROR($V1959),\"\",OFFSET('Smelter Look-up'!$H$4,$V1959-4,0))","v":""},{"$f":"IF(ISERROR($V1959),\"\",OFFSET('Smelter Look-up'!$I$4,$V1959-4,0))","v":""},{"$nulls":7},{"$f":"IF(ISERROR($V1959),\"\",OFFSET('Smelter Look-up'!$C$4,$V1959-4,0)&\"\")","v":""},"",{"$f":"IF(B1959=\"\",\"\",IF(ISERROR(MATCH($J1959,SorP!$B$1:$B$5661,0)),\"\",INDIRECT(\"'SorP'!$A$\"&MATCH($J1959,SorP!$B$1:$B$5661,0))))","v":""},null,{"$f":"IF(C1959=\"\",NA(),MATCH($B1959&$C1959,'Smelter Look-up'!$J:$J,0))","v":{"$error":"#N/A"}},null,0,null,null,null,""]
[null,{"$f":"IF(LEN(A1960)=0,\"\",INDEX('Smelter Look-up'!$A:$A,MATCH($A1960,'Smelter Look-up'!$E:$E,0)))","v":""},{"$f":"IF(LEN(A1960)=0,\"\",INDEX('Smelter Look-up'!$C:$C,MATCH($A1960,'Smelter Look-up'!$E:$E,0)))","v":""},null,{"$f":"IF(ISERROR($V1960),\"\",OFFSET('Smelter Look-up'!$D$4,$V1960-4,0)&\"\")","v":""},{"$f":"IF(ISERROR($V1960),\"\",OFFSET('Smelter Look-up'!$E$4,$V1960-4,0))","v":""},{"$f":"IF(C1960=$X$4,\"Enter smelter details\",IF(ISERROR($V1960),\"\",OFFSET('Smelter Look-up'!$F$4,$V1960-4,0)))","v":""},{"$f":"IF(ISERROR($V1960),\"\",OFFSET('Smelter Look-up'!$G$4,$V1960-4,0))","v":""},{"$f":"IF(ISERROR($V1960),\"\",OFFSET('Smelter Look-up'!$H$4,$V1960-4,0))","v":""},{"$f":"IF(ISERROR($V1960),\"\",OFFSET('Smelter Look-up'!$I$4,$V1960-4,0))","v":""},{"$nulls":7},{"$f":"IF(ISERROR($V1960),\"\",OFFSET('Smelter Look-up'!$C$4,$V1960-4,0)&\"\")","v":""},"",{"$f":"IF(B1960=\"\",\"\",IF(ISERROR(MATCH($J1960,SorP!$B$1:$B$5661,0)),\"\",INDIRECT(\"'SorP'!$A$\"&MATCH($J1960,SorP!$B$1:$B$5661,0))))","v":""},null,{"$f":"IF(C1960=\"\",NA(),MATCH($B1960&$C1960,'Smelter Look-up'!$J:$J,0))","v":{"$error":"#N/A"}},null,0,null,null,null,""]
[null,{"$f":"IF(LEN(A1961)=0,\"\",INDEX('Smelter Look-up'!$A:$A,MATCH($A1961,'Smelter Look-up'!$E:$E,0)))","v":""},{"$f":"IF(LEN(A1961)=0,\"\",INDEX('Smelter Look-up'!$C:$C,MATCH($A1961,'Smelter Look-up'!$E:$E,0)))","v":""},null,{"$f":"IF(ISERROR($V1961),\"\",OFFSET('Smelter Look-up'!$D$4,$V1961-4,0)&\"\")","v":""},{"$f":"IF(ISERROR($V1961),\"\",OFFSET('Smelter Look-up'!$E$4,$V1961-4,0))","v":""},{"$f":"IF(C1961=$X$4,\"Enter smelter details\",IF(ISERROR($V1961),\"\",OFFSET('Smelter Look-up'!$F$4,$V1961-4,0)))","v":""},{"$f":"IF(ISERROR($V1961),\"\",OFFSET('Smelter Look-up'!$G$4,$V1961-4,0))","v":""},{"$f":"IF(ISERROR($V1961),\"\",OFFSET('Smelter Look-up'!$H$4,$V1961-4,0))","v":""},{"$f":"IF(ISERROR($V1961),\"\",OFFSET('Smelter Look-up'!$I$4,$V1961-4,0))","v":""},{"$nulls":7},{"$f":"IF(ISERROR($V1961),\"\",OFFSET('Smelter Look-up'!$C$4,$V1961-4,0)&\"\")","v":""},"",{"$f":"IF(B1961=\"\",\"\",IF(ISERROR(MATCH($J1961,SorP!$B$1:$B$5661,0)),\"\",INDIRECT(\"'SorP'!$A$\"&MATCH($J1961,SorP!$B$1:$B$5661,0))))","v":""},null,{"$f":"IF(C1961=\"\",NA(),MATCH($B1961&$C1961,'Smelter Look-up'!$J:$J,0))","v":{"$error":"#N/A"}},null,0,null,null,null,""]
[null,{"$f":"IF(LEN(A1962)=0,\"\",INDEX('Smelter Look-up'!$A:$A,MATCH($A1962,'Smelter Look-up'!$E:$E,0)))","v":""},{"$f":"IF(LEN(A1962)=0,\"\",INDEX('Smelter Look-up'!$C:$C,MATCH($A1962,'Smelter Look-up'!$E:$E,0)))","v":""},null,{"$f":"IF(ISERROR($V1962),\"\",OFFSET('Smelter Look-up'!$D$4,$V1962-4,0)&\"\")","v":""},{"$f":"IF(ISERROR($V1962),\"\",OFFSET('Smelter Look-up'!$E$4,$V1962-4,0))","v":""},{"$f":"IF(C1962=$X$4,\"Enter smelter details\",IF(ISERROR($V1962),\"\",OFFSET('Smelter Look-up'!$F$4,$V1962-4,0)))","v":""},{"$f":"IF(ISERROR($V1962),\"\",OFFSET('Smelter Look-up'!$G$4,$V1962-4,0))","v":""},{"$f":"IF(ISERROR($V1962),\"\",OFFSET('Smelter Look-up'!$H$4,$V1962-4,0))","v":""},{"$f":"IF(ISERROR($V1962),\"\",OFFSET('Smelter Look-up'!$I$4,$V1962-4,0))","v":""},{"$nulls":7},{"$f":"IF(ISERROR($V1962),\"\",OFFSET('Smelter Look-up'!$C$4,$V1962-4,0)&\"\")","v":""},"",{"$f":"IF(B1962=\"\",\"\",IF(ISERROR(MATCH($J1962,SorP!$B$1:$B$5661,0)),\"\",INDIRECT(\"'SorP'!$A$\"&MATCH($J1962,SorP!$B$1:$B$5661,0))))","v":""},null,{"$f":"IF(C1962=\"\",NA(),MATCH($B1962&$C1962,'Smelter Look-up'!$J:$J,0))","v":{"$error":"#N/A"}},null,0,null,null,null,""]
[null,{"$f":"IF(LEN(A1963)=0,\"\",INDEX('Smelter Look-up'!$A:$A,MATCH($A1963,'Smelter Look-up'!$E:$E,0)))","v":""},{"$f":"IF(LEN(A1963)=0,\"\",INDEX('Smelter Look-up'!$C:$C,MATCH($A1963,'Smelter Look-up'!$E:$E,0)))","v":""},null,{"$f":"IF(ISERROR($V1963),\"\",OFFSET('Smelter Look-up'!$D$4,$V1963-4,0)&\"\")","v":""},{"$f":"IF(ISERROR($V1963),\"\",OFFSET('Smelter Look-up'!$E$4,$V1963-4,0))","v":""},{"$f":"IF(C1963=$X$4,\"Enter smelter details\",IF(ISERROR($V1963),\"\",OFFSET('Smelter Look-up'!$F$4,$V1963-4,0)))","v":""},{"$f":"IF(ISERROR($V1963),\"\",OFFSET('Smelter Look-up'!$G$4,$V1963-4,0))","v":""},{"$f":"IF(ISERROR($V1963),\"\",OFFSET('Smelter Look-up'!$H$4,$V1963-4,0))","v":""},{"$f":"IF(ISERROR($V1963),\"\",OFFSET('Smelter Look-up'!$I$4,$V1963-4,0))","v":""},{"$nulls":7},{"$f":"IF(ISERROR($V1963),\"\",OFFSET('Smelter Look-up'!$C$4,$V1963-4,0)&\"\")","v":""},"",{"$f":"IF(B1963=\"\",\"\",IF(ISERROR(MATCH($J1963,SorP!$B$1:$B$5661,0)),\"\",INDIRECT(\"'SorP'!$A$\"&MATCH($J1963,SorP!$B$1:$B$5661,0))))","v":""},null,{"$f":"IF(C1963=\"\",NA(),MATCH($B1963&$C1963,'Smelter Look-up'!$J:$J,0))","v":{"$error":"#N/A"}},null,0,null,null,null,""]
[null,{"$f":"IF(LEN(A1964)=0,\"\",INDEX('Smelter Look-up'!$A:$A,MATCH($A1964,'Smelter Look-up'!$E:$E,0)))","v":""},{"$f":"IF(LEN(A1964)=0,\"\",INDEX('Smelter Look-up'!$C:$C,MATCH($A1964,'Smelter Look-up'!$E:$E,0)))","v":""},null,{"$f":"IF(ISERROR($V1964),\"\",OFFSET('Smelter Look-up'!$D$4,$V1964-4,0)&\"\")","v":""},{"$f":"IF(ISERROR($V1964),\"\",OFFSET('Smelter Look-up'!$E$4,$V1964-4,0))","v":""},{"$f":"IF(C1964=$X$4,\"Enter smelter details\",IF(ISERROR($V1964),\"\",OFFSET('Smelter Look-up'!$F$4,$V1964-4,0)))","v":""},{"$f":"IF(ISERROR($V1964),\"\",OFFSET('Smelter Look-up'!$G$4,$V1964-4,0))","v":""},{"$f":"IF(ISERROR($V1964),\"\",OFFSET('Smelter Look-up'!$H$4,$V1964-4,0))","v":""},{"$f":"IF(ISERROR($V1964),\"\",OFFSET('Smelter Look-up'!$I$4,$V1964-4,0))","v":""},{"$nulls":7},{"$f":"IF(ISERROR($V1964),\"\",OFFSET('Smelter Look-up'!$C$4,$V1964-4,0)&\"\")","v":""},"",{"$f":"IF(B1964=\"\",\"\",IF(ISERROR(MATCH($J1964,SorP!$B$1:$B$5661,0)),\"\",INDIRECT(\"'SorP'!$A$\"&MATCH($J1964,SorP!$B$1:$B$5661,0))))","v":""},null,{"$f":"IF(C1964=\"\",NA(),MATCH($B1964&$C1964,'Smelter Look-up'!$J:$J,0))","v":{"$error":"#N/A"}},null,0,null,null,null,""]
[null,{"$f":"IF(LEN(A1965)=0,\"\",INDEX('Smelter Look-up'!$A:$A,MATCH($A1965,'Smelter Look-up'!$E:$E,0)))","v":""},{"$f":"IF(LEN(A1965)=0,\"\",INDEX('Smelter Look-up'!$C:$C,MATCH($A1965,'Smelter Look-up'!$E:$E,0)))","v":""},null,{"$f":"IF(ISERROR($V1965),\"\",OFFSET('Smelter Look-up'!$D$4,$V1965-4,0)&\"\")","v":""},{"$f":"IF(ISERROR($V1965),\"\",OFFSET('Smelter Look-up'!$E$4,$V1965-4,0))","v":""},{"$f":"IF(C1965=$X$4,\"Enter smelter details\",IF(ISERROR($V1965),\"\",OFFSET('Smelter Look-up'!$F$4,$V1965-4,0)))","v":""},{"$f":"IF(ISERROR($V1965),\"\",OFFSET('Smelter Look-up'!$G$4,$V1965-4,0))","v":""},{"$f":"IF(ISERROR($V1965),\"\",OFFSET('Smelter Look-up'!$H$4,$V1965-4,0))","v":""},{"$f":"IF(ISERROR($V1965),\"\",OFFSET('Smelter Look-up'!$I$4,$V1965-4,0))","v":""},{"$nulls":7},{"$f":"IF(ISERROR($V1965),\"\",OFFSET('Smelter Look-up'!$C$4,$V1965-4,0)&\"\")","v":""},"",{"$f":"IF(B1965=\"\",\"\",IF(ISERROR(MATCH($J1965,SorP!$B$1:$B$5661,0)),\"\",INDIRECT(\"'SorP'!$A$\"&MATCH($J1965,SorP!$B$1:$B$5661,0))))","v":""},null,{"$f":"IF(C1965=\"\",NA(),MATCH($B1965&$C1965,'Smelter Look-up'!$J:$J,0))","v":{"$error":"#N/A"}},null,0,null,null,null,""]
[null,{"$f":"IF(LEN(A1966)=0,\"\",INDEX('Smelter Look-up'!$A:$A,MATCH($A1966,'Smelter Look-up'!$E:$E,0)))","v":""},{"$f":"IF(LEN(A1966)=0,\"\",INDEX('Smelter Look-up'!$C:$C,MATCH($A1966,'Smelter Look-up'!$E:$E,0)))","v":""},null,{"$f":"IF(ISERROR($V1966),\"\",OFFSET('Smelter Look-up'!$D$4,$V1966-4,0)&\"\")","v":""},{"$f":"IF(ISERROR($V1966),\"\",OFFSET('Smelter Look-up'!$E$4,$V1966-4,0))","v":""},{"$f":"IF(C1966=$X$4,\"Enter smelter details\",IF(ISERROR($V1966),\"\",OFFSET('Smelter Look-up'!$F$4,$V1966-4,0)))","v":""},{"$f":"IF(ISERROR($V1966),\"\",OFFSET('Smelter Look-up'!$G$4,$V1966-4,0))","v":""},{"$f":"IF(ISERROR($V1966),\"\",OFFSET('Smelter Look-up'!$H$4,$V1966-4,0))","v":""},{"$f":"IF(ISERROR($V1966),\"\",OFFSET('Smelter Look-up'!$I$4,$V1966-4,0))","v":""},{"$nulls":7},{"$f":"IF(ISERROR($V1966),\"\",OFFSET('Smelter Look-up'!$C$4,$V1966-4,0)&\"\")","v":""},"",{"$f":"IF(B1966=\"\",\"\",IF(ISERROR(MATCH($J1966,SorP!$B$1:$B$5661,0)),\"\",INDIRECT(\"'SorP'!$A$\"&MATCH($J1966,SorP!$B$1:$B$5661,0))))","v":""},null,{"$f":"IF(C1966=\"\",NA(),MATCH($B1966&$C1966,'Smelter Look-up'!$J:$J,0))","v":{"$error":"#N/A"}},null,0,null,null,null,""]
[null,{"$f":"IF(LEN(A1967)=0,\"\",INDEX('Smelter Look-up'!$A:$A,MATCH($A1967,'Smelter Look-up'!$E:$E,0)))","v":""},{"$f":"IF(LEN(A1967)=0,\"\",INDEX('Smelter Look-up'!$C:$C,MATCH($A1967,'Smelter Look-up'!$E:$E,0)))","v":""},null,{"$f":"IF(ISERROR($V1967),\"\",OFFSET('Smelter Look-up'!$D$4,$V1967-4,0)&\"\")","v":""},{"$f":"IF(ISERROR($V1967),\"\",OFFSET('Smelter Look-up'!$E$4,$V1967-4,0))","v":""},{"$f":"IF(C1967=$X$4,\"Enter smelter details\",IF(ISERROR($V1967),\"\",OFFSET('Smelter Look-up'!$F$4,$V1967-4,0)))","v":""},{"$f":"IF(ISERROR($V1967),\"\",OFFSET('Smelter Look-up'!$G$4,$V1967-4,0))","v":""},{"$f":"IF(ISERROR($V1967),\"\",OFFSET('Smelter Look-up'!$H$4,$V1967-4,0))","v":""},{"$f":"IF(ISERROR($V1967),\"\",OFFSET('Smelter Look-up'!$I$4,$V1967-4,0))","v":""},{"$nulls":7},{"$f":"IF(ISERROR($V1967),\"\",OFFSET('Smelter Look-up'!$C$4,$V1967-4,0)&\"\")","v":""},"",{"$f":"IF(B1967=\"\",\"\",IF(ISERROR(MATCH($J1967,SorP!$B$1:$B$5661,0)),\"\",INDIRECT(\"'SorP'!$A$\"&MATCH($J1967,SorP!$B$1:$B$5661,0))))","v":""},null,{"$f":"IF(C1967=\"\",NA(),MATCH($B1967&$C1967,'Smelter Look-up'!$J:$J,0))","v":{"$error":"#N/A"}},null,0,null,null,null,""]
[null,{"$f":"IF(LEN(A1968)=0,\"\",INDEX('Smelter Look-up'!$A:$A,MATCH($A1968,'Smelter Look-up'!$E:$E,0)))","v":""},{"$f":"IF(LEN(A1968)=0,\"\",INDEX('Smelter Look-up'!$C:$C,MATCH($A1968,'Smelter Look-up'!$E:$E,0)))","v":""},null,{"$f":"IF(ISERROR($V1968),\"\",OFFSET('Smelter Look-up'!$D$4,$V1968-4,0)&\"\")","v":""},{"$f":"IF(ISERROR($V1968),\"\",OFFSET('Smelter Look-up'!$E$4,$V1968-4,0))","v":""},{"$f":"IF(C1968=$X$4,\"Enter smelter details\",IF(ISERROR($V1968),\"\",OFFSET('Smelter Look-up'!$F$4,$V1968-4,0)))","v":""},{"$f":"IF(ISERROR($V1968),\"\",OFFSET('Smelter Look-up'!$G$4,$V1968-4,0))","v":""},{"$f":"IF(ISERROR($V1968),\"\",OFFSET('Smelter Look-up'!$H$4,$V1968-4,0))","v":""},{"$f":"IF(ISERROR($V1968),\"\",OFFSET('Smelter Look-up'!$I$4,$V1968-4,0))","v":""},{"$nulls":7},{"$f":"IF(ISERROR($V1968),\"\",OFFSET('Smelter Look-up'!$C$4,$V1968-4,0)&\"\")","v":""},"",{"$f":"IF(B1968=\"\",\"\",IF(ISERROR(MATCH($J1968,SorP!$B$1:$B$5661,0)),\"\",INDIRECT(\"'SorP'!$A$\"&MATCH($J1968,SorP!$B$1:$B$5661,0))))","v":""},null,{"$f":"IF(C1968=\"\",NA(),MATCH($B1968&$C1968,'Smelter Look-up'!$J:$J,0))","v":{"$error":"#N/A"}},null,0,null,null,null,""]
[null,{"$f":"IF(LEN(A1969)=0,\"\",INDEX('Smelter Look-up'!$A:$A,MATCH($A1969,'Smelter Look-up'!$E:$E,0)))","v":""},{"$f":"IF(LEN(A1969)=0,\"\",INDEX('Smelter Look-up'!$C:$C,MATCH($A1969,'Smelter Look-up'!$E:$E,0)))","v":""},null,{"$f":"IF(ISERROR($V1969),\"\",OFFSET('Smelter Look-up'!$D$4,$V1969-4,0)&\"\")","v":""},{"$f":"IF(ISERROR($V1969),\"\",OFFSET('Smelter Look-up'!$E$4,$V1969-4,0))","v":""},{"$f":"IF(C1969=$X$4,\"Enter smelter details\",IF(ISERROR($V1969),\"\",OFFSET('Smelter Look-up'!$F$4,$V1969-4,0)))","v":""},{"$f":"IF(ISERROR($V1969),\"\",OFFSET('Smelter Look-up'!$G$4,$V1969-4,0))","v":""},{"$f":"IF(ISERROR($V1969),\"\",OFFSET('Smelter Look-up'!$H$4,$V1969-4,0))","v":""},{"$f":"IF(ISERROR($V1969),\"\",OFFSET('Smelter Look-up'!$I$4,$V1969-4,0))","v":""},{"$nulls":7},{"$f":"IF(ISERROR($V1969),\"\",OFFSET('Smelter Look-up'!$C$4,$V1969-4,0)&\"\")","v":""},"",{"$f":"IF(B1969=\"\",\"\",IF(ISERROR(MATCH($J1969,SorP!$B$1:$B$5661,0)),\"\",INDIRECT(\"'SorP'!$A$\"&MATCH($J1969,SorP!$B$1:$B$5661,0))))","v":""},null,{"$f":"IF(C1969=\"\",NA(),MATCH($B1969&$C1969,'Smelter Look-up'!$J:$J,0))","v":{"$error":"#N/A"}},null,0,null,null,null,""]
[null,{"$f":"IF(LEN(A1970)=0,\"\",INDEX('Smelter Look-up'!$A:$A,MATCH($A1970,'Smelter Look-up'!$E:$E,0)))","v":""},{"$f":"IF(LEN(A1970)=0,\"\",INDEX('Smelter Look-up'!$C:$C,MATCH($A1970,'Smelter Look-up'!$E:$E,0)))","v":""},null,{"$f":"IF(ISERROR($V1970),\"\",OFFSET('Smelter Look-up'!$D$4,$V1970-4,0)&\"\")","v":""},{"$f":"IF(ISERROR($V1970),\"\",OFFSET('Smelter Look-up'!$E$4,$V1970-4,0))","v":""},{"$f":"IF(C1970=$X$4,\"Enter smelter details\",IF(ISERROR($V1970),\"\",OFFSET('Smelter Look-up'!$F$4,$V1970-4,0)))","v":""},{"$f":"IF(ISERROR($V1970),\"\",OFFSET('Smelter Look-up'!$G$4,$V1970-4,0))","v":""},{"$f":"IF(ISERROR($V1970),\"\",OFFSET('Smelter Look-up'!$H$4,$V1970-4,0))","v":""},{"$f":"IF(ISERROR($V1970),\"\",OFFSET('Smelter Look-up'!$I$4,$V1970-4,0))","v":""},{"$nulls":7},{"$f":"IF(ISERROR($V1970),\"\",OFFSET('Smelter Look-up'!$C$4,$V1970-4,0)&\"\")","v":""},"",{"$f":"IF(B1970=\"\",\"\",IF(ISERROR(MATCH($J1970,SorP!$B$1:$B$5661,0)),\"\",INDIRECT(\"'SorP'!$A$\"&MATCH($J1970,SorP!$B$1:$B$5661,0))))","v":""},null,{"$f":"IF(C1970=\"\",NA(),MATCH($B1970&$C1970,'Smelter Look-up'!$J:$J,0))","v":{"$error":"#N/A"}},null,0,null,null,null,""]
[null,{"$f":"IF(LEN(A1971)=0,\"\",INDEX('Smelter Look-up'!$A:$A,MATCH($A1971,'Smelter Look-up'!$E:$E,0)))","v":""},{"$f":"IF(LEN(A1971)=0,\"\",INDEX('Smelter Look-up'!$C:$C,MATCH($A1971,'Smelter Look-up'!$E:$E,0)))","v":""},null,{"$f":"IF(ISERROR($V1971),\"\",OFFSET('Smelter Look-up'!$D$4,$V1971-4,0)&\"\")","v":""},{"$f":"IF(ISERROR($V1971),\"\",OFFSET('Smelter Look-up'!$E$4,$V1971-4,0))","v":""},{"$f":"IF(C1971=$X$4,\"Enter smelter details\",IF(ISERROR($V1971),\"\",OFFSET('Smelter Look-up'!$F$4,$V1971-4,0)))","v":""},{"$f":"IF(ISERROR($V1971),\"\",OFFSET('Smelter Look-up'!$G$4,$V1971-4,0))","v":""},{"$f":"IF(ISERROR($V1971),\"\",OFFSET('Smelter Look-up'!$H$4,$V1971-4,0))","v":""},{"$f":"IF(ISERROR($V1971),\"\",OFFSET('Smelter Look-up'!$I$4,$V1971-4,0))","v":""},{"$nulls":7},{"$f":"IF(ISERROR($V1971),\"\",OFFSET('Smelter Look-up'!$C$4,$V1971-4,0)&\"\")","v":""},"",{"$f":"IF(B1971=\"\",\"\",IF(ISERROR(MATCH($J1971,SorP!$B$1:$B$5661,0)),\"\",INDIRECT(\"'SorP'!$A$\"&MATCH($J1971,SorP!$B$1:$B$5661,0))))","v":""},null,{"$f":"IF(C1971=\"\",NA(),MATCH($B1971&$C1971,'Smelter Look-up'!$J:$J,0))","v":{"$error":"#N/A"}},null,0,null,null,null,""]
[null,{"$f":"IF(LEN(A1972)=0,\"\",INDEX('Smelter Look-up'!$A:$A,MATCH($A1972,'Smelter Look-up'!$E:$E,0)))","v":""},{"$f":"IF(LEN(A1972)=0,\"\",INDEX('Smelter Look-up'!$C:$C,MATCH($A1972,'Smelter Look-up'!$E:$E,0)))","v":""},null,{"$f":"IF(ISERROR($V1972),\"\",OFFSET('Smelter Look-up'!$D$4,$V1972-4,0)&\"\")","v":""},{"$f":"IF(ISERROR($V1972),\"\",OFFSET('Smelter Look-up'!$E$4,$V1972-4,0))","v":""},{"$f":"IF(C1972=$X$4,\"Enter smelter details\",IF(ISERROR($V1972),\"\",OFFSET('Smelter Look-up'!$F$4,$V1972-4,0)))","v":""},{"$f":"IF(ISERROR($V1972),\"\",OFFSET('Smelter Look-up'!$G$4,$V1972-4,0))","v":""},{"$f":"IF(ISERROR($V1972),\"\",OFFSET('Smelter Look-up'!$H$4,$V1972-4,0))","v":""},{"$f":"IF(ISERROR($V1972),\"\",OFFSET('Smelter Look-up'!$I$4,$V1972-4,0))","v":""},{"$nulls":7},{"$f":"IF(ISERROR($V1972),\"\",OFFSET('Smelter Look-up'!$C$4,$V1972-4,0)&\"\")","v":""},"",{"$f":"IF(B1972=\"\",\"\",IF(ISERROR(MATCH($J1972,SorP!$B$1:$B$5661,0)),\"\",INDIRECT(\"'SorP'!$A$\"&MATCH($J1972,SorP!$B$1:$B$5661,0))))","v":""},null,{"$f":"IF(C1972=\"\",NA(),MATCH($B1972&$C1972,'Smelter Look-up'!$J:$J,0))","v":{"$error":"#N/A"}},null,0,null,null,null,""]
[null,{"$f":"IF(LEN(A1973)=0,\"\",INDEX('Smelter Look-up'!$A:$A,MATCH($A1973,'Smelter Look-up'!$E:$E,0)))","v":""},{"$f":"IF(LEN(A1973)=0,\"\",INDEX('Smelter Look-up'!$C:$C,MATCH($A1973,'Smelter Look-up'!$E:$E,0)))","v":""},null,{"$f":"IF(ISERROR($V1973),\"\",OFFSET('Smelter Look-up'!$D$4,$V1973-4,0)&\"\")","v":""},{"$f":"IF(ISERROR($V1973),\"\",OFFSET('Smelter Look-up'!$E$4,$V1973-4,0))","v":""},{"$f":"IF(C1973=$X$4,\"Enter smelter details\",IF(ISERROR($V1973),\"\",OFFSET('Smelter Look-up'!$F$4,$V1973-4,0)))","v":""},{"$f":"IF(ISERROR($V1973),\"\",OFFSET('Smelter Look-up'!$G$4,$V1973-4,0))","v":""},{"$f":"IF(ISERROR($V1973),\"\",OFFSET('Smelter Look-up'!$H$4,$V1973-4,0))","v":""},{"$f":"IF(ISERROR($V1973),\"\",OFFSET('Smelter Look-up'!$I$4,$V1973-4,0))","v":""},{"$nulls":7},{"$f":"IF(ISERROR($V1973),\"\",OFFSET('Smelter Look-up'!$C$4,$V1973-4,0)&\"\")","v":""},"",{"$f":"IF(B1973=\"\",\"\",IF(ISERROR(MATCH($J1973,SorP!$B$1:$B$5661,0)),\"\",INDIRECT(\"'SorP'!$A$\"&MATCH($J1973,SorP!$B$1:$B$5661,0))))","v":""},null,{"$f":"IF(C1973=\"\",NA(),MATCH($B1973&$C1973,'Smelter Look-up'!$J:$J,0))","v":{"$error":"#N/A"}},null,0,null,null,null,""]
[null,{"$f":"IF(LEN(A1974)=0,\"\",INDEX('Smelter Look-up'!$A:$A,MATCH($A1974,'Smelter Look-up'!$E:$E,0)))","v":""},{"$f":"IF(LEN(A1974)=0,\"\",INDEX('Smelter Look-up'!$C:$C,MATCH($A1974,'Smelter Look-up'!$E:$E,0)))","v":""},null,{"$f":"IF(ISERROR($V1974),\"\",OFFSET('Smelter Look-up'!$D$4,$V1974-4,0)&\"\")","v":""},{"$f":"IF(ISERROR($V1974),\"\",OFFSET('Smelter Look-up'!$E$4,$V1974-4,0))","v":""},{"$f":"IF(C1974=$X$4,\"Enter smelter details\",IF(ISERROR($V1974),\"\",OFFSET('Smelter Look-up'!$F$4,$V1974-4,0)))","v":""},{"$f":"IF(ISERROR($V1974),\"\",OFFSET('Smelter Look-up'!$G$4,$V1974-4,0))","v":""},{"$f":"IF(ISERROR($V1974),\"\",OFFSET('Smelter Look-up'!$H$4,$V1974-4,0))","v":""},{"$f":"IF(ISERROR($V1974),\"\",OFFSET('Smelter Look-up'!$I$4,$V1974-4,0))","v":""},{"$nulls":7},{"$f":"IF(ISERROR($V1974),\"\",OFFSET('Smelter Look-up'!$C$4,$V1974-4,0)&\"\")","v":""},"",{"$f":"IF(B1974=\"\",\"\",IF(ISERROR(MATCH($J1974,SorP!$B$1:$B$5661,0)),\"\",INDIRECT(\"'SorP'!$A$\"&MATCH($J1974,SorP!$B$1:$B$5661,0))))","v":""},null,{"$f":"IF(C1974=\"\",NA(),MATCH($B1974&$C1974,'Smelter Look-up'!$J:$J,0))","v":{"$error":"#N/A"}},null,0,null,null,null,""]
[null,{"$f":"IF(LEN(A1975)=0,\"\",INDEX('Smelter Look-up'!$A:$A,MATCH($A1975,'Smelter Look-up'!$E:$E,0)))","v":""},{"$f":"IF(LEN(A1975)=0,\"\",INDEX('Smelter Look-up'!$C:$C,MATCH($A1975,'Smelter Look-up'!$E:$E,0)))","v":""},null,{"$f":"IF(ISERROR($V1975),\"\",OFFSET('Smelter Look-up'!$D$4,$V1975-4,0)&\"\")","v":""},{"$f":"IF(ISERROR($V1975),\"\",OFFSET('Smelter Look-up'!$E$4,$V1975-4,0))","v":""},{"$f":"IF(C1975=$X$4,\"Enter smelter details\",IF(ISERROR($V1975),\"\",OFFSET('Smelter Look-up'!$F$4,$V1975-4,0)))","v":""},{"$f":"IF(ISERROR($V1975),\"\",OFFSET('Smelter Look-up'!$G$4,$V1975-4,0))","v":""},{"$f":"IF(ISERROR($V1975),\"\",OFFSET('Smelter Look-up'!$H$4,$V1975-4,0))","v":""},{"$f":"IF(ISERROR($V1975),\"\",OFFSET('Smelter Look-up'!$I$4,$V1975-4,0))","v":""},{"$nulls":7},{"$f":"IF(ISERROR($V1975),\"\",OFFSET('Smelter Look-up'!$C$4,$V1975-4,0)&\"\")","v":""},"",{"$f":"IF(B1975=\"\",\"\",IF(ISERROR(MATCH($J1975,SorP!$B$1:$B$5661,0)),\"\",INDIRECT(\"'SorP'!$A$\"&MATCH($J1975,SorP!$B$1:$B$5661,0))))","v":""},null,{"$f":"IF(C1975=\"\",NA(),MATCH($B1975&$C1975,'Smelter Look-up'!$J:$J,0))","v":{"$error":"#N/A"}},null,0,null,null,null,""]
[null,{"$f":"IF(LEN(A1976)=0,\"\",INDEX('Smelter Look-up'!$A:$A,MATCH($A1976,'Smelter Look-up'!$E:$E,0)))","v":""},{"$f":"IF(LEN(A1976)=0,\"\",INDEX('Smelter Look-up'!$C:$C,MATCH($A1976,'Smelter Look-up'!$E:$E,0)))","v":""},null,{"$f":"IF(ISERROR($V1976),\"\",OFFSET('Smelter Look-up'!$D$4,$V1976-4,0)&\"\")","v":""},{"$f":"IF(ISERROR($V1976),\"\",OFFSET('Smelter Look-up'!$E$4,$V1976-4,0))","v":""},{"$f":"IF(C1976=$X$4,\"Enter smelter details\",IF(ISERROR($V1976),\"\",OFFSET('Smelter Look-up'!$F$4,$V1976-4,0)))","v":""},{"$f":"IF(ISERROR($V1976),\"\",OFFSET('Smelter Look-up'!$G$4,$V1976-4,0))","v":""},{"$f":"IF(ISERROR($V1976),\"\",OFFSET('Smelter Look-up'!$H$4,$V1976-4,0))","v":""},{"$f":"IF(ISERROR($V1976),\"\",OFFSET('Smelter Look-up'!$I$4,$V1976-4,0))","v":""},{"$nulls":7},{"$f":"IF(ISERROR($V1976),\"\",OFFSET('Smelter Look-up'!$C$4,$V1976-4,0)&\"\")","v":""},"",{"$f":"IF(B1976=\"\",\"\",IF(ISERROR(MATCH($J1976,SorP!$B$1:$B$5661,0)),\"\",INDIRECT(\"'SorP'!$A$\"&MATCH($J1976,SorP!$B$1:$B$5661,0))))","v":""},null,{"$f":"IF(C1976=\"\",NA(),MATCH($B1976&$C1976,'Smelter Look-up'!$J:$J,0))","v":{"$error":"#N/A"}},null,0,null,null,null,""]
[null,{"$f":"IF(LEN(A1977)=0,\"\",INDEX('Smelter Look-up'!$A:$A,MATCH($A1977,'Smelter Look-up'!$E:$E,0)))","v":""},{"$f":"IF(LEN(A1977)=0,\"\",INDEX('Smelter Look-up'!$C:$C,MATCH($A1977,'Smelter Look-up'!$E:$E,0)))","v":""},null,{"$f":"IF(ISERROR($V1977),\"\",OFFSET('Smelter Look-up'!$D$4,$V1977-4,0)&\"\")","v":""},{"$f":"IF(ISERROR($V1977),\"\",OFFSET('Smelter Look-up'!$E$4,$V1977-4,0))","v":""},{"$f":"IF(C1977=$X$4,\"Enter smelter details\",IF(ISERROR($V1977),\"\",OFFSET('Smelter Look-up'!$F$4,$V1977-4,0)))","v":""},{"$f":"IF(ISERROR($V1977),\"\",OFFSET('Smelter Look-up'!$G$4,$V1977-4,0))","v":""},{"$f":"IF(ISERROR($V1977),\"\",OFFSET('Smelter Look-up'!$H$4,$V1977-4,0))","v":""},{"$f":"IF(ISERROR($V1977),\"\",OFFSET('Smelter Look-up'!$I$4,$V1977-4,0))","v":""},{"$nulls":7},{"$f":"IF(ISERROR($V1977),\"\",OFFSET('Smelter Look-up'!$C$4,$V1977-4,0)&\"\")","v":""},"",{"$f":"IF(B1977=\"\",\"\",IF(ISERROR(MATCH($J1977,SorP!$B$1:$B$5661,0)),\"\",INDIRECT(\"'SorP'!$A$\"&MATCH($J1977,SorP!$B$1:$B$5661,0))))","v":""},null,{"$f":"IF(C1977=\"\",NA(),MATCH($B1977&$C1977,'Smelter Look-up'!$J:$J,0))","v":{"$error":"#N/A"}},null,0,null,null,null,""]
[null,{"$f":"IF(LEN(A1978)=0,\"\",INDEX('Smelter Look-up'!$A:$A,MATCH($A1978,'Smelter Look-up'!$E:$E,0)))","v":""},{"$f":"IF(LEN(A1978)=0,\"\",INDEX('Smelter Look-up'!$C:$C,MATCH($A1978,'Smelter Look-up'!$E:$E,0)))","v":""},null,{"$f":"IF(ISERROR($V1978),\"\",OFFSET('Smelter Look-up'!$D$4,$V1978-4,0)&\"\")","v":""},{"$f":"IF(ISERROR($V1978),\"\",OFFSET('Smelter Look-up'!$E$4,$V1978-4,0))","v":""},{"$f":"IF(C1978=$X$4,\"Enter smelter details\",IF(ISERROR($V1978),\"\",OFFSET('Smelter Look-up'!$F$4,$V1978-4,0)))","v":""},{"$f":"IF(ISERROR($V1978),\"\",OFFSET('Smelter Look-up'!$G$4,$V1978-4,0))","v":""},{"$f":"IF(ISERROR($V1978),\"\",OFFSET('Smelter Look-up'!$H$4,$V1978-4,0))","v":""},{"$f":"IF(ISERROR($V1978),\"\",OFFSET('Smelter Look-up'!$I$4,$V1978-4,0))","v":""},{"$nulls":7},{"$f":"IF(ISERROR($V1978),\"\",OFFSET('Smelter Look-up'!$C$4,$V1978-4,0)&\"\")","v":""},"",{"$f":"IF(B1978=\"\",\"\",IF(ISERROR(MATCH($J1978,SorP!$B$1:$B$5661,0)),\"\",INDIRECT(\"'SorP'!$A$\"&MATCH($J1978,SorP!$B$1:$B$5661,0))))","v":""},null,{"$f":"IF(C1978=\"\",NA(),MATCH($B1978&$C1978,'Smelter Look-up'!$J:$J,0))","v":{"$error":"#N/A"}},null,0,null,null,null,""]
[null,{"$f":"IF(LEN(A1979)=0,\"\",INDEX('Smelter Look-up'!$A:$A,MATCH($A1979,'Smelter Look-up'!$E:$E,0)))","v":""},{"$f":"IF(LEN(A1979)=0,\"\",INDEX('Smelter Look-up'!$C:$C,MATCH($A1979,'Smelter Look-up'!$E:$E,0)))","v":""},null,{"$f":"IF(ISERROR($V1979),\"\",OFFSET('Smelter Look-up'!$D$4,$V1979-4,0)&\"\")","v":""},{"$f":"IF(ISERROR($V1979),\"\",OFFSET('Smelter Look-up'!$E$4,$V1979-4,0))","v":""},{"$f":"IF(C1979=$X$4,\"Enter smelter details\",IF(ISERROR($V1979),\"\",OFFSET('Smelter Look-up'!$F$4,$V1979-4,0)))","v":""},{"$f":"IF(ISERROR($V1979),\"\",OFFSET('Smelter Look-up'!$G$4,$V1979-4,0))","v":""},{"$f":"IF(ISERROR($V1979),\"\",OFFSET('Smelter Look-up'!$H$4,$V1979-4,0))","v":""},{"$f":"IF(ISERROR($V1979),\"\",OFFSET('Smelter Look-up'!$I$4,$V1979-4,0))","v":""},{"$nulls":7},{"$f":"IF(ISERROR($V1979),\"\",OFFSET('Smelter Look-up'!$C$4,$V1979-4,0)&\"\")","v":""},"",{"$f":"IF(B1979=\"\",\"\",IF(ISERROR(MATCH($J1979,SorP!$B$1:$B$5661,0)),\"\",INDIRECT(\"'SorP'!$A$\"&MATCH($J1979,SorP!$B$1:$B$5661,0))))","v":""},null,{"$f":"IF(C1979=\"\",NA(),MATCH($B1979&$C1979,'Smelter Look-up'!$J:$J,0))","v":{"$error":"#N/A"}},null,0,null,null,null,""]
[null,{"$f":"IF(LEN(A1980)=0,\"\",INDEX('Smelter Look-up'!$A:$A,MATCH($A1980,'Smelter Look-up'!$E:$E,0)))","v":""},{"$f":"IF(LEN(A1980)=0,\"\",INDEX('Smelter Look-up'!$C:$C,MATCH($A1980,'Smelter Look-up'!$E:$E,0)))","v":""},null,{"$f":"IF(ISERROR($V1980),\"\",OFFSET('Smelter Look-up'!$D$4,$V1980-4,0)&\"\")","v":""},{"$f":"IF(ISERROR($V1980),\"\",OFFSET('Smelter Look-up'!$E$4,$V1980-4,0))","v":""},{"$f":"IF(C1980=$X$4,\"Enter smelter details\",IF(ISERROR($V1980),\"\",OFFSET('Smelter Look-up'!$F$4,$V1980-4,0)))","v":""},{"$f":"IF(ISERROR($V1980),\"\",OFFSET('Smelter Look-up'!$G$4,$V1980-4,0))","v":""},{"$f":"IF(ISERROR($V1980),\"\",OFFSET('Smelter Look-up'!$H$4,$V1980-4,0))","v":""},{"$f":"IF(ISERROR($V1980),\"\",OFFSET('Smelter Look-up'!$I$4,$V1980-4,0))","v":""},{"$nulls":7},{"$f":"IF(ISERROR($V1980),\"\",OFFSET('Smelter Look-up'!$C$4,$V1980-4,0)&\"\")","v":""},"",{"$f":"IF(B1980=\"\",\"\",IF(ISERROR(MATCH($J1980,SorP!$B$1:$B$5661,0)),\"\",INDIRECT(\"'SorP'!$A$\"&MATCH($J1980,SorP!$B$1:$B$5661,0))))","v":""},null,{"$f":"IF(C1980=\"\",NA(),MATCH($B1980&$C1980,'Smelter Look-up'!$J:$J,0))","v":{"$error":"#N/A"}},null,0,null,null,null,""]
[null,{"$f":"IF(LEN(A1981)=0,\"\",INDEX('Smelter Look-up'!$A:$A,MATCH($A1981,'Smelter Look-up'!$E:$E,0)))","v":""},{"$f":"IF(LEN(A1981)=0,\"\",INDEX('Smelter Look-up'!$C:$C,MATCH($A1981,'Smelter Look-up'!$E:$E,0)))","v":""},null,{"$f":"IF(ISERROR($V1981),\"\",OFFSET('Smelter Look-up'!$D$4,$V1981-4,0)&\"\")","v":""},{"$f":"IF(ISERROR($V1981),\"\",OFFSET('Smelter Look-up'!$E$4,$V1981-4,0))","v":""},{"$f":"IF(C1981=$X$4,\"Enter smelter details\",IF(ISERROR($V1981),\"\",OFFSET('Smelter Look-up'!$F$4,$V1981-4,0)))","v":""},{"$f":"IF(ISERROR($V1981),\"\",OFFSET('Smelter Look-up'!$G$4,$V1981-4,0))","v":""},{"$f":"IF(ISERROR($V1981),\"\",OFFSET('Smelter Look-up'!$H$4,$V1981-4,0))","v":""},{"$f":"IF(ISERROR($V1981),\"\",OFFSET('Smelter Look-up'!$I$4,$V1981-4,0))","v":""},{"$nulls":7},{"$f":"IF(ISERROR($V1981),\"\",OFFSET('Smelter Look-up'!$C$4,$V1981-4,0)&\"\")","v":""},"",{"$f":"IF(B1981=\"\",\"\",IF(ISERROR(MATCH($J1981,SorP!$B$1:$B$5661,0)),\"\",INDIRECT(\"'SorP'!$A$\"&MATCH($J1981,SorP!$B$1:$B$5661,0))))","v":""},null,{"$f":"IF(C1981=\"\",NA(),MATCH($B1981&$C1981,'Smelter Look-up'!$J:$J,0))","v":{"$error":"#N/A"}},null,0,null,null,null,""]
[null,{"$f":"IF(LEN(A1982)=0,\"\",INDEX('Smelter Look-up'!$A:$A,MATCH($A1982,'Smelter Look-up'!$E:$E,0)))","v":""},{"$f":"IF(LEN(A1982)=0,\"\",INDEX('Smelter Look-up'!$C:$C,MATCH($A1982,'Smelter Look-up'!$E:$E,0)))","v":""},null,{"$f":"IF(ISERROR($V1982),\"\",OFFSET('Smelter Look-up'!$D$4,$V1982-4,0)&\"\")","v":""},{"$f":"IF(ISERROR($V1982),\"\",OFFSET('Smelter Look-up'!$E$4,$V1982-4,0))","v":""},{"$f":"IF(C1982=$X$4,\"Enter smelter details\",IF(ISERROR($V1982),\"\",OFFSET('Smelter Look-up'!$F$4,$V1982-4,0)))","v":""},{"$f":"IF(ISERROR($V1982),\"\",OFFSET('Smelter Look-up'!$G$4,$V1982-4,0))","v":""},{"$f":"IF(ISERROR($V1982),\"\",OFFSET('Smelter Look-up'!$H$4,$V1982-4,0))","v":""},{"$f":"IF(ISERROR($V1982),\"\",OFFSET('Smelter Look-up'!$I$4,$V1982-4,0))","v":""},{"$nulls":7},{"$f":"IF(ISERROR($V1982),\"\",OFFSET('Smelter Look-up'!$C$4,$V1982-4,0)&\"\")","v":""},"",{"$f":"IF(B1982=\"\",\"\",IF(ISERROR(MATCH($J1982,SorP!$B$1:$B$5661,0)),\"\",INDIRECT(\"'SorP'!$A$\"&MATCH($J1982,SorP!$B$1:$B$5661,0))))","v":""},null,{"$f":"IF(C1982=\"\",NA(),MATCH($B1982&$C1982,'Smelter Look-up'!$J:$J,0))","v":{"$error":"#N/A"}},null,0,null,null,null,""]
[null,{"$f":"IF(LEN(A1983)=0,\"\",INDEX('Smelter Look-up'!$A:$A,MATCH($A1983,'Smelter Look-up'!$E:$E,0)))","v":""},{"$f":"IF(LEN(A1983)=0,\"\",INDEX('Smelter Look-up'!$C:$C,MATCH($A1983,'Smelter Look-up'!$E:$E,0)))","v":""},null,{"$f":"IF(ISERROR($V1983),\"\",OFFSET('Smelter Look-up'!$D$4,$V1983-4,0)&\"\")","v":""},{"$f":"IF(ISERROR($V1983),\"\",OFFSET('Smelter Look-up'!$E$4,$V1983-4,0))","v":""},{"$f":"IF(C1983=$X$4,\"Enter smelter details\",IF(ISERROR($V1983),\"\",OFFSET('Smelter Look-up'!$F$4,$V1983-4,0)))","v":""},{"$f":"IF(ISERROR($V1983),\"\",OFFSET('Smelter Look-up'!$G$4,$V1983-4,0))","v":""},{"$f":"IF(ISERROR($V1983),\"\",OFFSET('Smelter Look-up'!$H$4,$V1983-4,0))","v":""},{"$f":"IF(ISERROR($V1983),\"\",OFFSET('Smelter Look-up'!$I$4,$V1983-4,0))","v":""},{"$nulls":7},{"$f":"IF(ISERROR($V1983),\"\",OFFSET('Smelter Look-up'!$C$4,$V1983-4,0)&\"\")","v":""},"",{"$f":"IF(B1983=\"\",\"\",IF(ISERROR(MATCH($J1983,SorP!$B$1:$B$5661,0)),\"\",INDIRECT(\"'SorP'!$A$\"&MATCH($J1983,SorP!$B$1:$B$5661,0))))","v":""},null,{"$f":"IF(C1983=\"\",NA(),MATCH($B1983&$C1983,'Smelter Look-up'!$J:$J,0))","v":{"$error":"#N/A"}},null,{"$f":"IF(AND(C1983=\"Smelter not listed\",OR(LEN(D1983)=0,LEN(E1983)=0)),1,0)","v":0},null,null,null,{"$f":"B1983&C1983","v":""}]
[null,{"$f":"IF(LEN(A1984)=0,\"\",INDEX('Smelter Look-up'!$A:$A,MATCH($A1984,'Smelter Look-up'!$E:$E,0)))","v":""},{"$f":"IF(LEN(A1984)=0,\"\",INDEX('Smelter Look-up'!$C:$C,MATCH($A1984,'Smelter Look-up'!$E:$E,0)))","v":""},null,{"$f":"IF(ISERROR($V1984),\"\",OFFSET('Smelter Look-up'!$D$4,$V1984-4,0)&\"\")","v":""},{"$f":"IF(ISERROR($V1984),\"\",OFFSET('Smelter Look-up'!$E$4,$V1984-4,0))","v":""},{"$f":"IF(C1984=$X$4,\"Enter smelter details\",IF(ISERROR($V1984),\"\",OFFSET('Smelter Look-up'!$F$4,$V1984-4,0)))","v":""},{"$f":"IF(ISERROR($V1984),\"\",OFFSET('Smelter Look-up'!$G$4,$V1984-4,0))","v":""},{"$f":"IF(ISERROR($V1984),\"\",OFFSET('Smelter Look-up'!$H$4,$V1984-4,0))","v":""},{"$f":"IF(ISERROR($V1984),\"\",OFFSET('Smelter Look-up'!$I$4,$V1984-4,0))","v":""},{"$nulls":7},{"$f":"IF(ISERROR($V1984),\"\",OFFSET('Smelter Look-up'!$C$4,$V1984-4,0)&\"\")","v":""},{"$f":"IF(B1984=\"\",\"\",IF(ISERROR(MATCH($E1984,CL,0)),\"Unknown\",INDIRECT(\"'C'!$A$\"&MATCH($E1984,CL,0)+1)))","v":""},{"$f":"IF(B1984=\"\",\"\",IF(ISERROR(MATCH($J1984,SorP!$B$1:$B$5661,0)),\"\",INDIRECT(\"'SorP'!$A$\"&MATCH($J1984,SorP!$B$1:$B$5661,0))))","v":""},null,{"$f":"IF(C1984=\"\",NA(),MATCH($B1984&$C1984,'Smelter Look-up'!$J:$J,0))","v":{"$error":"#N/A"}},null,0,null,null,null,""]
[null,{"$f":"IF(LEN(A1985)=0,\"\",INDEX('Smelter Look-up'!$A:$A,MATCH($A1985,'Smelter Look-up'!$E:$E,0)))","v":""},{"$f":"IF(LEN(A1985)=0,\"\",INDEX('Smelter Look-up'!$C:$C,MATCH($A1985,'Smelter Look-up'!$E:$E,0)))","v":""},null,{"$f":"IF(ISERROR($V1985),\"\",OFFSET('Smelter Look-up'!$D$4,$V1985-4,0)&\"\")","v":""},{"$f":"IF(ISERROR($V1985),\"\",OFFSET('Smelter Look-up'!$E$4,$V1985-4,0))","v":""},{"$f":"IF(C1985=$X$4,\"Enter smelter details\",IF(ISERROR($V1985),\"\",OFFSET('Smelter Look-up'!$F$4,$V1985-4,0)))","v":""},{"$f":"IF(ISERROR($V1985),\"\",OFFSET('Smelter Look-up'!$G$4,$V1985-4,0))","v":""},{"$f":"IF(ISERROR($V1985),\"\",OFFSET('Smelter Look-up'!$H$4,$V1985-4,0))","v":""},{"$f":"IF(ISERROR($V1985),\"\",OFFSET('Smelter Look-up'!$I$4,$V1985-4,0))","v":""},{"$nulls":7},{"$f":"IF(ISERROR($V1985),\"\",OFFSET('Smelter Look-up'!$C$4,$V1985-4,0)&\"\")","v":""},"",{"$f":"IF(B1985=\"\",\"\",IF(ISERROR(MATCH($J1985,SorP!$B$1:$B$5661,0)),\"\",INDIRECT(\"'SorP'!$A$\"&MATCH($J1985,SorP!$B$1:$B$5661,0))))","v":""},null,{"$f":"IF(C1985=\"\",NA(),MATCH($B1985&$C1985,'Smelter Look-up'!$J:$J,0))","v":{"$error":"#N/A"}},null,0,null,null,null,""]
[null,{"$f":"IF(LEN(A1986)=0,\"\",INDEX('Smelter Look-up'!$A:$A,MATCH($A1986,'Smelter Look-up'!$E:$E,0)))","v":""},{"$f":"IF(LEN(A1986)=0,\"\",INDEX('Smelter Look-up'!$C:$C,MATCH($A1986,'Smelter Look-up'!$E:$E,0)))","v":""},null,{"$f":"IF(ISERROR($V1986),\"\",OFFSET('Smelter Look-up'!$D$4,$V1986-4,0)&\"\")","v":""},{"$f":"IF(ISERROR($V1986),\"\",OFFSET('Smelter Look-up'!$E$4,$V1986-4,0))","v":""},{"$f":"IF(C1986=$X$4,\"Enter smelter details\",IF(ISERROR($V1986),\"\",OFFSET('Smelter Look-up'!$F$4,$V1986-4,0)))","v":""},{"$f":"IF(ISERROR($V1986),\"\",OFFSET('Smelter Look-up'!$G$4,$V1986-4,0))","v":""},{"$f":"IF(ISERROR($V1986),\"\",OFFSET('Smelter Look-up'!$H$4,$V1986-4,0))","v":""},{"$f":"IF(ISERROR($V1986),\"\",OFFSET('Smelter Look-up'!$I$4,$V1986-4,0))","v":""},{"$nulls":7},{"$f":"IF(ISERROR($V1986),\"\",OFFSET('Smelter Look-up'!$C$4,$V1986-4,0)&\"\")","v":""},"",{"$f":"IF(B1986=\"\",\"\",IF(ISERROR(MATCH($J1986,SorP!$B$1:$B$5661,0)),\"\",INDIRECT(\"'SorP'!$A$\"&MATCH($J1986,SorP!$B$1:$B$5661,0))))","v":""},null,{"$f":"IF(C1986=\"\",NA(),MATCH($B1986&$C1986,'Smelter Look-up'!$J:$J,0))","v":{"$error":"#N/A"}},null,0,null,null,null,""]
[null,{"$f":"IF(LEN(A1987)=0,\"\",INDEX('Smelter Look-up'!$A:$A,MATCH($A1987,'Smelter Look-up'!$E:$E,0)))","v":""},{"$f":"IF(LEN(A1987)=0,\"\",INDEX('Smelter Look-up'!$C:$C,MATCH($A1987,'Smelter Look-up'!$E:$E,0)))","v":""},null,{"$f":"IF(ISERROR($V1987),\"\",OFFSET('Smelter Look-up'!$D$4,$V1987-4,0)&\"\")","v":""},{"$f":"IF(ISERROR($V1987),\"\",OFFSET('Smelter Look-up'!$E$4,$V1987-4,0))","v":""},{"$f":"IF(C1987=$X$4,\"Enter smelter details\",IF(ISERROR($V1987),\"\",OFFSET('Smelter Look-up'!$F$4,$V1987-4,0)))","v":""},{"$f":"IF(ISERROR($V1987),\"\",OFFSET('Smelter Look-up'!$G$4,$V1987-4,0))","v":""},{"$f":"IF(ISERROR($V1987),\"\",OFFSET('Smelter Look-up'!$H$4,$V1987-4,0))","v":""},{"$f":"IF(ISERROR($V1987),\"\",OFFSET('Smelter Look-up'!$I$4,$V1987-4,0))","v":""},{"$nulls":7},{"$f":"IF(ISERROR($V1987),\"\",OFFSET('Smelter Look-up'!$C$4,$V1987-4,0)&\"\")","v":""},"",{"$f":"IF(B1987=\"\",\"\",IF(ISERROR(MATCH($J1987,SorP!$B$1:$B$5661,0)),\"\",INDIRECT(\"'SorP'!$A$\"&MATCH($J1987,SorP!$B$1:$B$5661,0))))","v":""},null,{"$f":"IF(C1987=\"\",NA(),MATCH($B1987&$C1987,'Smelter Look-up'!$J:$J,0))","v":{"$error":"#N/A"}},null,0,null,null,null,""]
[null,{"$f":"IF(LEN(A1988)=0,\"\",INDEX('Smelter Look-up'!$A:$A,MATCH($A1988,'Smelter Look-up'!$E:$E,0)))","v":""},{"$f":"IF(LEN(A1988)=0,\"\",INDEX('Smelter Look-up'!$C:$C,MATCH($A1988,'Smelter Look-up'!$E:$E,0)))","v":""},null,{"$f":"IF(ISERROR($V1988),\"\",OFFSET('Smelter Look-up'!$D$4,$V1988-4,0)&\"\")","v":""},{"$f":"IF(ISERROR($V1988),\"\",OFFSET('Smelter Look-up'!$E$4,$V1988-4,0))","v":""},{"$f":"IF(C1988=$X$4,\"Enter smelter details\",IF(ISERROR($V1988),\"\",OFFSET('Smelter Look-up'!$F$4,$V1988-4,0)))","v":""},{"$f":"IF(ISERROR($V1988),\"\",OFFSET('Smelter Look-up'!$G$4,$V1988-4,0))","v":""},{"$f":"IF(ISERROR($V1988),\"\",OFFSET('Smelter Look-up'!$H$4,$V1988-4,0))","v":""},{"$f":"IF(ISERROR($V1988),\"\",OFFSET('Smelter Look-up'!$I$4,$V1988-4,0))","v":""},{"$nulls":7},{"$f":"IF(ISERROR($V1988),\"\",OFFSET('Smelter Look-up'!$C$4,$V1988-4,0)&\"\")","v":""},"",{"$f":"IF(B1988=\"\",\"\",IF(ISERROR(MATCH($J1988,SorP!$B$1:$B$5661,0)),\"\",INDIRECT(\"'SorP'!$A$\"&MATCH($J1988,SorP!$B$1:$B$5661,0))))","v":""},null,{"$f":"IF(C1988=\"\",NA(),MATCH($B1988&$C1988,'Smelter Look-up'!$J:$J,0))","v":{"$error":"#N/A"}},null,0,null,null,null,""]
[null,{"$f":"IF(LEN(A1989)=0,\"\",INDEX('Smelter Look-up'!$A:$A,MATCH($A1989,'Smelter Look-up'!$E:$E,0)))","v":""},{"$f":"IF(LEN(A1989)=0,\"\",INDEX('Smelter Look-up'!$C:$C,MATCH($A1989,'Smelter Look-up'!$E:$E,0)))","v":""},null,{"$f":"IF(ISERROR($V1989),\"\",OFFSET('Smelter Look-up'!$D$4,$V1989-4,0)&\"\")","v":""},{"$f":"IF(ISERROR($V1989),\"\",OFFSET('Smelter Look-up'!$E$4,$V1989-4,0))","v":""},{"$f":"IF(C1989=$X$4,\"Enter smelter details\",IF(ISERROR($V1989),\"\",OFFSET('Smelter Look-up'!$F$4,$V1989-4,0)))","v":""},{"$f":"IF(ISERROR($V1989),\"\",OFFSET('Smelter Look-up'!$G$4,$V1989-4,0))","v":""},{"$f":"IF(ISERROR($V1989),\"\",OFFSET('Smelter Look-up'!$H$4,$V1989-4,0))","v":""},{"$f":"IF(ISERROR($V1989),\"\",OFFSET('Smelter Look-up'!$I$4,$V1989-4,0))","v":""},{"$nulls":7},{"$f":"IF(ISERROR($V1989),\"\",OFFSET('Smelter Look-up'!$C$4,$V1989-4,0)&\"\")","v":""},"",{"$f":"IF(B1989=\"\",\"\",IF(ISERROR(MATCH($J1989,SorP!$B$1:$B$5661,0)),\"\",INDIRECT(\"'SorP'!$A$\"&MATCH($J1989,SorP!$B$1:$B$5661,0))))","v":""},null,{"$f":"IF(C1989=\"\",NA(),MATCH($B1989&$C1989,'Smelter Look-up'!$J:$J,0))","v":{"$error":"#N/A"}},null,0,null,null,null,""]
[null,{"$f":"IF(LEN(A1990)=0,\"\",INDEX('Smelter Look-up'!$A:$A,MATCH($A1990,'Smelter Look-up'!$E:$E,0)))","v":""},{"$f":"IF(LEN(A1990)=0,\"\",INDEX('Smelter Look-up'!$C:$C,MATCH($A1990,'Smelter Look-up'!$E:$E,0)))","v":""},null,{"$f":"IF(ISERROR($V1990),\"\",OFFSET('Smelter Look-up'!$D$4,$V1990-4,0)&\"\")","v":""},{"$f":"IF(ISERROR($V1990),\"\",OFFSET('Smelter Look-up'!$E$4,$V1990-4,0))","v":""},{"$f":"IF(C1990=$X$4,\"Enter smelter details\",IF(ISERROR($V1990),\"\",OFFSET('Smelter Look-up'!$F$4,$V1990-4,0)))","v":""},{"$f":"IF(ISERROR($V1990),\"\",OFFSET('Smelter Look-up'!$G$4,$V1990-4,0))","v":""},{"$f":"IF(ISERROR($V1990),\"\",OFFSET('Smelter Look-up'!$H$4,$V1990-4,0))","v":""},{"$f":"IF(ISERROR($V1990),\"\",OFFSET('Smelter Look-up'!$I$4,$V1990-4,0))","v":""},{"$nulls":7},{"$f":"IF(ISERROR($V1990),\"\",OFFSET('Smelter Look-up'!$C$4,$V1990-4,0)&\"\")","v":""},"",{"$f":"IF(B1990=\"\",\"\",IF(ISERROR(MATCH($J1990,SorP!$B$1:$B$5661,0)),\"\",INDIRECT(\"'SorP'!$A$\"&MATCH($J1990,SorP!$B$1:$B$5661,0))))","v":""},null,{"$f":"IF(C1990=\"\",NA(),MATCH($B1990&$C1990,'Smelter Look-up'!$J:$J,0))","v":{"$error":"#N/A"}},null,0,null,null,null,""]
[null,{"$f":"IF(LEN(A1991)=0,\"\",INDEX('Smelter Look-up'!$A:$A,MATCH($A1991,'Smelter Look-up'!$E:$E,0)))","v":""},{"$f":"IF(LEN(A1991)=0,\"\",INDEX('Smelter Look-up'!$C:$C,MATCH($A1991,'Smelter Look-up'!$E:$E,0)))","v":""},null,{"$f":"IF(ISERROR($V1991),\"\",OFFSET('Smelter Look-up'!$D$4,$V1991-4,0)&\"\")","v":""},{"$f":"IF(ISERROR($V1991),\"\",OFFSET('Smelter Look-up'!$E$4,$V1991-4,0))","v":""},{"$f":"IF(C1991=$X$4,\"Enter smelter details\",IF(ISERROR($V1991),\"\",OFFSET('Smelter Look-up'!$F$4,$V1991-4,0)))","v":""},{"$f":"IF(ISERROR($V1991),\"\",OFFSET('Smelter Look-up'!$G$4,$V1991-4,0))","v":""},{"$f":"IF(ISERROR($V1991),\"\",OFFSET('Smelter Look-up'!$H$4,$V1991-4,0))","v":""},{"$f":"IF(ISERROR($V1991),\"\",OFFSET('Smelter Look-up'!$I$4,$V1991-4,0))","v":""},{"$nulls":7},{"$f":"IF(ISERROR($V1991),\"\",OFFSET('Smelter Look-up'!$C$4,$V1991-4,0)&\"\")","v":""},"",{"$f":"IF(B1991=\"\",\"\",IF(ISERROR(MATCH($J1991,SorP!$B$1:$B$5661,0)),\"\",INDIRECT(\"'SorP'!$A$\"&MATCH($J1991,SorP!$B$1:$B$5661,0))))","v":""},null,{"$f":"IF(C1991=\"\",NA(),MATCH($B1991&$C1991,'Smelter Look-up'!$J:$J,0))","v":{"$error":"#N/A"}},null,0,null,null,null,""]
[null,{"$f":"IF(LEN(A1992)=0,\"\",INDEX('Smelter Look-up'!$A:$A,MATCH($A1992,'Smelter Look-up'!$E:$E,0)))","v":""},{"$f":"IF(LEN(A1992)=0,\"\",INDEX('Smelter Look-up'!$C:$C,MATCH($A1992,'Smelter Look-up'!$E:$E,0)))","v":""},null,{"$f":"IF(ISERROR($V1992),\"\",OFFSET('Smelter Look-up'!$D$4,$V1992-4,0)&\"\")","v":""},{"$f":"IF(ISERROR($V1992),\"\",OFFSET('Smelter Look-up'!$E$4,$V1992-4,0))","v":""},{"$f":"IF(C1992=$X$4,\"Enter smelter details\",IF(ISERROR($V1992),\"\",OFFSET('Smelter Look-up'!$F$4,$V1992-4,0)))","v":""},{"$f":"IF(ISERROR($V1992),\"\",OFFSET('Smelter Look-up'!$G$4,$V1992-4,0))","v":""},{"$f":"IF(ISERROR($V1992),\"\",OFFSET('Smelter Look-up'!$H$4,$V1992-4,0))","v":""},{"$f":"IF(ISERROR($V1992),\"\",OFFSET('Smelter Look-up'!$I$4,$V1992-4,0))","v":""},{"$nulls":7},{"$f":"IF(ISERROR($V1992),\"\",OFFSET('Smelter Look-up'!$C$4,$V1992-4,0)&\"\")","v":""},"",{"$f":"IF(B1992=\"\",\"\",IF(ISERROR(MATCH($J1992,SorP!$B$1:$B$5661,0)),\"\",INDIRECT(\"'SorP'!$A$\"&MATCH($J1992,SorP!$B$1:$B$5661,0))))","v":""},null,{"$f":"IF(C1992=\"\",NA(),MATCH($B1992&$C1992,'Smelter Look-up'!$J:$J,0))","v":{"$error":"#N/A"}},null,0,null,null,null,""]
[null,{"$f":"IF(LEN(A1993)=0,\"\",INDEX('Smelter Look-up'!$A:$A,MATCH($A1993,'Smelter Look-up'!$E:$E,0)))","v":""},{"$f":"IF(LEN(A1993)=0,\"\",INDEX('Smelter Look-up'!$C:$C,MATCH($A1993,'Smelter Look-up'!$E:$E,0)))","v":""},null,{"$f":"IF(ISERROR($V1993),\"\",OFFSET('Smelter Look-up'!$D$4,$V1993-4,0)&\"\")","v":""},{"$f":"IF(ISERROR($V1993),\"\",OFFSET('Smelter Look-up'!$E$4,$V1993-4,0))","v":""},{"$f":"IF(C1993=$X$4,\"Enter smelter details\",IF(ISERROR($V1993),\"\",OFFSET('Smelter Look-up'!$F$4,$V1993-4,0)))","v":""},{"$f":"IF(ISERROR($V1993),\"\",OFFSET('Smelter Look-up'!$G$4,$V1993-4,0))","v":""},{"$f":"IF(ISERROR($V1993),\"\",OFFSET('Smelter Look-up'!$H$4,$V1993-4,0))","v":""},{"$f":"IF(ISERROR($V1993),\"\",OFFSET('Smelter Look-up'!$I$4,$V1993-4,0))","v":""},{"$nulls":7},{"$f":"IF(ISERROR($V1993),\"\",OFFSET('Smelter Look-up'!$C$4,$V1993-4,0)&\"\")","v":""},"",{"$f":"IF(B1993=\"\",\"\",IF(ISERROR(MATCH($J1993,SorP!$B$1:$B$5661,0)),\"\",INDIRECT(\"'SorP'!$A$\"&MATCH($J1993,SorP!$B$1:$B$5661,0))))","v":""},null,{"$f":"IF(C1993=\"\",NA(),MATCH($B1993&$C1993,'Smelter Look-up'!$J:$J,0))","v":{"$error":"#N/A"}},null,0,null,null,null,""]
[null,{"$f":"IF(LEN(A1994)=0,\"\",INDEX('Smelter Look-up'!$A:$A,MATCH($A1994,'Smelter Look-up'!$E:$E,0)))","v":""},{"$f":"IF(LEN(A1994)=0,\"\",INDEX('Smelter Look-up'!$C:$C,MATCH($A1994,'Smelter Look-up'!$E:$E,0)))","v":""},null,{"$f":"IF(ISERROR($V1994),\"\",OFFSET('Smelter Look-up'!$D$4,$V1994-4,0)&\"\")","v":""},{"$f":"IF(ISERROR($V1994),\"\",OFFSET('Smelter Look-up'!$E$4,$V1994-4,0))","v":""},{"$f":"IF(C1994=$X$4,\"Enter smelter details\",IF(ISERROR($V1994),\"\",OFFSET('Smelter Look-up'!$F$4,$V1994-4,0)))","v":""},{"$f":"IF(ISERROR($V1994),\"\",OFFSET('Smelter Look-up'!$G$4,$V1994-4,0))","v":""},{"$f":"IF(ISERROR($V1994),\"\",OFFSET('Smelter Look-up'!$H$4,$V1994-4,0))","v":""},{"$f":"IF(ISERROR($V1994),\"\",OFFSET('Smelter Look-up'!$I$4,$V1994-4,0))","v":""},{"$nulls":7},{"$f":"IF(ISERROR($V1994),\"\",OFFSET('Smelter Look-up'!$C$4,$V1994-4,0)&\"\")","v":""},"",{"$f":"IF(B1994=\"\",\"\",IF(ISERROR(MATCH($J1994,SorP!$B$1:$B$5661,0)),\"\",INDIRECT(\"'SorP'!$A$\"&MATCH($J1994,SorP!$B$1:$B$5661,0))))","v":""},null,{"$f":"IF(C1994=\"\",NA(),MATCH($B1994&$C1994,'Smelter Look-up'!$J:$J,0))","v":{"$error":"#N/A"}},null,0,null,null,null,""]
[null,{"$f":"IF(LEN(A1995)=0,\"\",INDEX('Smelter Look-up'!$A:$A,MATCH($A1995,'Smelter Look-up'!$E:$E,0)))","v":""},{"$f":"IF(LEN(A1995)=0,\"\",INDEX('Smelter Look-up'!$C:$C,MATCH($A1995,'Smelter Look-up'!$E:$E,0)))","v":""},null,{"$f":"IF(ISERROR($V1995),\"\",OFFSET('Smelter Look-up'!$D$4,$V1995-4,0)&\"\")","v":""},{"$f":"IF(ISERROR($V1995),\"\",OFFSET('Smelter Look-up'!$E$4,$V1995-4,0))","v":""},{"$f":"IF(C1995=$X$4,\"Enter smelter details\",IF(ISERROR($V1995),\"\",OFFSET('Smelter Look-up'!$F$4,$V1995-4,0)))","v":""},{"$f":"IF(ISERROR($V1995),\"\",OFFSET('Smelter Look-up'!$G$4,$V1995-4,0))","v":""},{"$f":"IF(ISERROR($V1995),\"\",OFFSET('Smelter Look-up'!$H$4,$V1995-4,0))","v":""},{"$f":"IF(ISERROR($V1995),\"\",OFFSET('Smelter Look-up'!$I$4,$V1995-4,0))","v":""},{"$nulls":7},{"$f":"IF(ISERROR($V1995),\"\",OFFSET('Smelter Look-up'!$C$4,$V1995-4,0)&\"\")","v":""},"",{"$f":"IF(B1995=\"\",\"\",IF(ISERROR(MATCH($J1995,SorP!$B$1:$B$5661,0)),\"\",INDIRECT(\"'SorP'!$A$\"&MATCH($J1995,SorP!$B$1:$B$5661,0))))","v":""},null,{"$f":"IF(C1995=\"\",NA(),MATCH($B1995&$C1995,'Smelter Look-up'!$J:$J,0))","v":{"$error":"#N/A"}},null,0,null,null,null,""]
[null,{"$f":"IF(LEN(A1996)=0,\"\",INDEX('Smelter Look-up'!$A:$A,MATCH($A1996,'Smelter Look-up'!$E:$E,0)))","v":""},{"$f":"IF(LEN(A1996)=0,\"\",INDEX('Smelter Look-up'!$C:$C,MATCH($A1996,'Smelter Look-up'!$E:$E,0)))","v":""},null,{"$f":"IF(ISERROR($V1996),\"\",OFFSET('Smelter Look-up'!$D$4,$V1996-4,0)&\"\")","v":""},{"$f":"IF(ISERROR($V1996),\"\",OFFSET('Smelter Look-up'!$E$4,$V1996-4,0))","v":""},{"$f":"IF(C1996=$X$4,\"Enter smelter details\",IF(ISERROR($V1996),\"\",OFFSET('Smelter Look-up'!$F$4,$V1996-4,0)))","v":""},{"$f":"IF(ISERROR($V1996),\"\",OFFSET('Smelter Look-up'!$G$4,$V1996-4,0))","v":""},{"$f":"IF(ISERROR($V1996),\"\",OFFSET('Smelter Look-up'!$H$4,$V1996-4,0))","v":""},{"$f":"IF(ISERROR($V1996),\"\",OFFSET('Smelter Look-up'!$I$4,$V1996-4,0))","v":""},{"$nulls":7},{"$f":"IF(ISERROR($V1996),\"\",OFFSET('Smelter Look-up'!$C$4,$V1996-4,0)&\"\")","v":""},"",{"$f":"IF(B1996=\"\",\"\",IF(ISERROR(MATCH($J1996,SorP!$B$1:$B$5661,0)),\"\",INDIRECT(\"'SorP'!$A$\"&MATCH($J1996,SorP!$B$1:$B$5661,0))))","v":""},null,{"$f":"IF(C1996=\"\",NA(),MATCH($B1996&$C1996,'Smelter Look-up'!$J:$J,0))","v":{"$error":"#N/A"}},null,0,null,null,null,""]
[null,{"$f":"IF(LEN(A1997)=0,\"\",INDEX('Smelter Look-up'!$A:$A,MATCH($A1997,'Smelter Look-up'!$E:$E,0)))","v":""},{"$f":"IF(LEN(A1997)=0,\"\",INDEX('Smelter Look-up'!$C:$C,MATCH($A1997,'Smelter Look-up'!$E:$E,0)))","v":""},null,{"$f":"IF(ISERROR($V1997),\"\",OFFSET('Smelter Look-up'!$D$4,$V1997-4,0)&\"\")","v":""},{"$f":"IF(ISERROR($V1997),\"\",OFFSET('Smelter Look-up'!$E$4,$V1997-4,0))","v":""},{"$f":"IF(C1997=$X$4,\"Enter smelter details\",IF(ISERROR($V1997),\"\",OFFSET('Smelter Look-up'!$F$4,$V1997-4,0)))","v":""},{"$f":"IF(ISERROR($V1997),\"\",OFFSET('Smelter Look-up'!$G$4,$V1997-4,0))","v":""},{"$f":"IF(ISERROR($V1997),\"\",OFFSET('Smelter Look-up'!$H$4,$V1997-4,0))","v":""},{"$f":"IF(ISERROR($V1997),\"\",OFFSET('Smelter Look-up'!$I$4,$V1997-4,0))","v":""},{"$nulls":7},{"$f":"IF(ISERROR($V1997),\"\",OFFSET('Smelter Look-up'!$C$4,$V1997-4,0)&\"\")","v":""},"",{"$f":"IF(B1997=\"\",\"\",IF(ISERROR(MATCH($J1997,SorP!$B$1:$B$5661,0)),\"\",INDIRECT(\"'SorP'!$A$\"&MATCH($J1997,SorP!$B$1:$B$5661,0))))","v":""},null,{"$f":"IF(C1997=\"\",NA(),MATCH($B1997&$C1997,'Smelter Look-up'!$J:$J,0))","v":{"$error":"#N/A"}},null,0,null,null,null,""]
[null,{"$f":"IF(LEN(A1998)=0,\"\",INDEX('Smelter Look-up'!$A:$A,MATCH($A1998,'Smelter Look-up'!$E:$E,0)))","v":""},{"$f":"IF(LEN(A1998)=0,\"\",INDEX('Smelter Look-up'!$C:$C,MATCH($A1998,'Smelter Look-up'!$E:$E,0)))","v":""},null,{"$f":"IF(ISERROR($V1998),\"\",OFFSET('Smelter Look-up'!$D$4,$V1998-4,0)&\"\")","v":""},{"$f":"IF(ISERROR($V1998),\"\",OFFSET('Smelter Look-up'!$E$4,$V1998-4,0))","v":""},{"$f":"IF(C1998=$X$4,\"Enter smelter details\",IF(ISERROR($V1998),\"\",OFFSET('Smelter Look-up'!$F$4,$V1998-4,0)))","v":""},{"$f":"IF(ISERROR($V1998),\"\",OFFSET('Smelter Look-up'!$G$4,$V1998-4,0))","v":""},{"$f":"IF(ISERROR($V1998),\"\",OFFSET('Smelter Look-up'!$H$4,$V1998-4,0))","v":""},{"$f":"IF(ISERROR($V1998),\"\",OFFSET('Smelter Look-up'!$I$4,$V1998-4,0))","v":""},{"$nulls":7},{"$f":"IF(ISERROR($V1998),\"\",OFFSET('Smelter Look-up'!$C$4,$V1998-4,0)&\"\")","v":""},"",{"$f":"IF(B1998=\"\",\"\",IF(ISERROR(MATCH($J1998,SorP!$B$1:$B$5661,0)),\"\",INDIRECT(\"'SorP'!$A$\"&MATCH($J1998,SorP!$B$1:$B$5661,0))))","v":""},null,{"$f":"IF(C1998=\"\",NA(),MATCH($B1998&$C1998,'Smelter Look-up'!$J:$J,0))","v":{"$error":"#N/A"}},null,0,null,null,null,""]
[null,{"$f":"IF(LEN(A1999)=0,\"\",INDEX('Smelter Look-up'!$A:$A,MATCH($A1999,'Smelter Look-up'!$E:$E,0)))","v":""},{"$f":"IF(LEN(A1999)=0,\"\",INDEX('Smelter Look-up'!$C:$C,MATCH($A1999,'Smelter Look-up'!$E:$E,0)))","v":""},null,{"$f":"IF(ISERROR($V1999),\"\",OFFSET('Smelter Look-up'!$D$4,$V1999-4,0)&\"\")","v":""},{"$f":"IF(ISERROR($V1999),\"\",OFFSET('Smelter Look-up'!$E$4,$V1999-4,0))","v":""},{"$f":"IF(C1999=$X$4,\"Enter smelter details\",IF(ISERROR($V1999),\"\",OFFSET('Smelter Look-up'!$F$4,$V1999-4,0)))","v":""},{"$f":"IF(ISERROR($V1999),\"\",OFFSET('Smelter Look-up'!$G$4,$V1999-4,0))","v":""},{"$f":"IF(ISERROR($V1999),\"\",OFFSET('Smelter Look-up'!$H$4,$V1999-4,0))","v":""},{"$f":"IF(ISERROR($V1999),\"\",OFFSET('Smelter Look-up'!$I$4,$V1999-4,0))","v":""},{"$nulls":7},{"$f":"IF(ISERROR($V1999),\"\",OFFSET('Smelter Look-up'!$C$4,$V1999-4,0)&\"\")","v":""},"",{"$f":"IF(B1999=\"\",\"\",IF(ISERROR(MATCH($J1999,SorP!$B$1:$B$5661,0)),\"\",INDIRECT(\"'SorP'!$A$\"&MATCH($J1999,SorP!$B$1:$B$5661,0))))","v":""},null,{"$f":"IF(C1999=\"\",NA(),MATCH($B1999&$C1999,'Smelter Look-up'!$J:$J,0))","v":{"$error":"#N/A"}},null,0,null,null,null,""]
[null,{"$f":"IF(LEN(A2000)=0,\"\",INDEX('Smelter Look-up'!$A:$A,MATCH($A2000,'Smelter Look-up'!$E:$E,0)))","v":""},{"$f":"IF(LEN(A2000)=0,\"\",INDEX('Smelter Look-up'!$C:$C,MATCH($A2000,'Smelter Look-up'!$E:$E,0)))","v":""},null,{"$f":"IF(ISERROR($V2000),\"\",OFFSET('Smelter Look-up'!$D$4,$V2000-4,0)&\"\")","v":""},{"$f":"IF(ISERROR($V2000),\"\",OFFSET('Smelter Look-up'!$E$4,$V2000-4,0))","v":""},{"$f":"IF(C2000=$X$4,\"Enter smelter details\",IF(ISERROR($V2000),\"\",OFFSET('Smelter Look-up'!$F$4,$V2000-4,0)))","v":""},{"$f":"IF(ISERROR($V2000),\"\",OFFSET('Smelter Look-up'!$G$4,$V2000-4,0))","v":""},{"$f":"IF(ISERROR($V2000),\"\",OFFSET('Smelter Look-up'!$H$4,$V2000-4,0))","v":""},{"$f":"IF(ISERROR($V2000),\"\",OFFSET('Smelter Look-up'!$I$4,$V2000-4,0))","v":""},{"$nulls":7},{"$f":"IF(ISERROR($V2000),\"\",OFFSET('Smelter Look-up'!$C$4,$V2000-4,0)&\"\")","v":""},"",{"$f":"IF(B2000=\"\",\"\",IF(ISERROR(MATCH($J2000,SorP!$B$1:$B$5661,0)),\"\",INDIRECT(\"'SorP'!$A$\"&MATCH($J2000,SorP!$B$1:$B$5661,0))))","v":""},null,{"$f":"IF(C2000=\"\",NA(),MATCH($B2000&$C2000,'Smelter Look-up'!$J:$J,0))","v":{"$error":"#N/A"}},null,0,null,null,null,""]
[null,{"$f":"IF(LEN(A2001)=0,\"\",INDEX('Smelter Look-up'!$A:$A,MATCH($A2001,'Smelter Look-up'!$E:$E,0)))","v":""},{"$f":"IF(LEN(A2001)=0,\"\",INDEX('Smelter Look-up'!$C:$C,MATCH($A2001,'Smelter Look-up'!$E:$E,0)))","v":""},null,{"$f":"IF(ISERROR($V2001),\"\",OFFSET('Smelter Look-up'!$D$4,$V2001-4,0)&\"\")","v":""},{"$f":"IF(ISERROR($V2001),\"\",OFFSET('Smelter Look-up'!$E$4,$V2001-4,0))","v":""},{"$f":"IF(C2001=$X$4,\"Enter smelter details\",IF(ISERROR($V2001),\"\",OFFSET('Smelter Look-up'!$F$4,$V2001-4,0)))","v":""},{"$f":"IF(ISERROR($V2001),\"\",OFFSET('Smelter Look-up'!$G$4,$V2001-4,0))","v":""},{"$f":"IF(ISERROR($V2001),\"\",OFFSET('Smelter Look-up'!$H$4,$V2001-4,0))","v":""},{"$f":"IF(ISERROR($V2001),\"\",OFFSET('Smelter Look-up'!$I$4,$V2001-4,0))","v":""},{"$nulls":7},{"$f":"IF(ISERROR($V2001),\"\",OFFSET('Smelter Look-up'!$C$4,$V2001-4,0)&\"\")","v":""},"",{"$f":"IF(B2001=\"\",\"\",IF(ISERROR(MATCH($J2001,SorP!$B$1:$B$5661,0)),\"\",INDIRECT(\"'SorP'!$A$\"&MATCH($J2001,SorP!$B$1:$B$5661,0))))","v":""},null,{"$f":"IF(C2001=\"\",NA(),MATCH($B2001&$C2001,'Smelter Look-up'!$J:$J,0))","v":{"$error":"#N/A"}},null,0,null,null,null,""]
[null,{"$f":"IF(LEN(A2002)=0,\"\",INDEX('Smelter Look-up'!$A:$A,MATCH($A2002,'Smelter Look-up'!$E:$E,0)))","v":""},{"$f":"IF(LEN(A2002)=0,\"\",INDEX('Smelter Look-up'!$C:$C,MATCH($A2002,'Smelter Look-up'!$E:$E,0)))","v":""},null,{"$f":"IF(ISERROR($V2002),\"\",OFFSET('Smelter Look-up'!$D$4,$V2002-4,0)&\"\")","v":""},{"$f":"IF(ISERROR($V2002),\"\",OFFSET('Smelter Look-up'!$E$4,$V2002-4,0))","v":""},{"$f":"IF(C2002=$X$4,\"Enter smelter details\",IF(ISERROR($V2002),\"\",OFFSET('Smelter Look-up'!$F$4,$V2002-4,0)))","v":""},{"$f":"IF(ISERROR($V2002),\"\",OFFSET('Smelter Look-up'!$G$4,$V2002-4,0))","v":""},{"$f":"IF(ISERROR($V2002),\"\",OFFSET('Smelter Look-up'!$H$4,$V2002-4,0))","v":""},{"$f":"IF(ISERROR($V2002),\"\",OFFSET('Smelter Look-up'!$I$4,$V2002-4,0))","v":""},{"$nulls":7},{"$f":"IF(ISERROR($V2002),\"\",OFFSET('Smelter Look-up'!$C$4,$V2002-4,0)&\"\")","v":""},"",{"$f":"IF(B2002=\"\",\"\",IF(ISERROR(MATCH($J2002,SorP!$B$1:$B$5661,0)),\"\",INDIRECT(\"'SorP'!$A$\"&MATCH($J2002,SorP!$B$1:$B$5661,0))))","v":""},null,{"$f":"IF(C2002=\"\",NA(),MATCH($B2002&$C2002,'Smelter Look-up'!$J:$J,0))","v":{"$error":"#N/A"}},null,0,null,null,null,""]
[null,{"$f":"IF(LEN(A2003)=0,\"\",INDEX('Smelter Look-up'!$A:$A,MATCH($A2003,'Smelter Look-up'!$E:$E,0)))","v":""},{"$f":"IF(LEN(A2003)=0,\"\",INDEX('Smelter Look-up'!$C:$C,MATCH($A2003,'Smelter Look-up'!$E:$E,0)))","v":""},null,{"$f":"IF(ISERROR($V2003),\"\",OFFSET('Smelter Look-up'!$D$4,$V2003-4,0)&\"\")","v":""},{"$f":"IF(ISERROR($V2003),\"\",OFFSET('Smelter Look-up'!$E$4,$V2003-4,0))","v":""},{"$f":"IF(C2003=$X$4,\"Enter smelter details\",IF(ISERROR($V2003),\"\",OFFSET('Smelter Look-up'!$F$4,$V2003-4,0)))","v":""},{"$f":"IF(ISERROR($V2003),\"\",OFFSET('Smelter Look-up'!$G$4,$V2003-4,0))","v":""},{"$f":"IF(ISERROR($V2003),\"\",OFFSET('Smelter Look-up'!$H$4,$V2003-4,0))","v":""},{"$f":"IF(ISERROR($V2003),\"\",OFFSET('Smelter Look-up'!$I$4,$V2003-4,0))","v":""},{"$nulls":7},{"$f":"IF(ISERROR($V2003),\"\",OFFSET('Smelter Look-up'!$C$4,$V2003-4,0)&\"\")","v":""},"",{"$f":"IF(B2003=\"\",\"\",IF(ISERROR(MATCH($J2003,SorP!$B$1:$B$5661,0)),\"\",INDIRECT(\"'SorP'!$A$\"&MATCH($J2003,SorP!$B$1:$B$5661,0))))","v":""},null,{"$f":"IF(C2003=\"\",NA(),MATCH($B2003&$C2003,'Smelter Look-up'!$J:$J,0))","v":{"$error":"#N/A"}},null,0,null,null,null,""]
[null,{"$f":"IF(LEN(A2004)=0,\"\",INDEX('Smelter Look-up'!$A:$A,MATCH($A2004,'Smelter Look-up'!$E:$E,0)))","v":""},{"$f":"IF(LEN(A2004)=0,\"\",INDEX('Smelter Look-up'!$C:$C,MATCH($A2004,'Smelter Look-up'!$E:$E,0)))","v":""},null,{"$f":"IF(ISERROR($V2004),\"\",OFFSET('Smelter Look-up'!$D$4,$V2004-4,0)&\"\")","v":""},{"$f":"IF(ISERROR($V2004),\"\",OFFSET('Smelter Look-up'!$E$4,$V2004-4,0))","v":""},{"$f":"IF(C2004=$X$4,\"Enter smelter details\",IF(ISERROR($V2004),\"\",OFFSET('Smelter Look-up'!$F$4,$V2004-4,0)))","v":""},{"$f":"IF(ISERROR($V2004),\"\",OFFSET('Smelter Look-up'!$G$4,$V2004-4,0))","v":""},{"$f":"IF(ISERROR($V2004),\"\",OFFSET('Smelter Look-up'!$H$4,$V2004-4,0))","v":""},{"$f":"IF(ISERROR($V2004),\"\",OFFSET('Smelter Look-up'!$I$4,$V2004-4,0))","v":""},{"$nulls":7},{"$f":"IF(ISERROR($V2004),\"\",OFFSET('Smelter Look-up'!$C$4,$V2004-4,0)&\"\")","v":""},"",{"$f":"IF(B2004=\"\",\"\",IF(ISERROR(MATCH($J2004,SorP!$B$1:$B$5661,0)),\"\",INDIRECT(\"'SorP'!$A$\"&MATCH($J2004,SorP!$B$1:$B$5661,0))))","v":""},null,{"$f":"IF(C2004=\"\",NA(),MATCH($B2004&$C2004,'Smelter Look-up'!$J:$J,0))","v":{"$error":"#N/A"}},null,0,null,null,null,""]
[null,{"$f":"IF(LEN(A2005)=0,\"\",INDEX('Smelter Look-up'!$A:$A,MATCH($A2005,'Smelter Look-up'!$E:$E,0)))","v":""},{"$f":"IF(LEN(A2005)=0,\"\",INDEX('Smelter Look-up'!$C:$C,MATCH($A2005,'Smelter Look-up'!$E:$E,0)))","v":""},null,{"$f":"IF(ISERROR($V2005),\"\",OFFSET('Smelter Look-up'!$D$4,$V2005-4,0)&\"\")","v":""},{"$f":"IF(ISERROR($V2005),\"\",OFFSET('Smelter Look-up'!$E$4,$V2005-4,0))","v":""},{"$f":"IF(C2005=$X$4,\"Enter smelter details\",IF(ISERROR($V2005),\"\",OFFSET('Smelter Look-up'!$F$4,$V2005-4,0)))","v":""},{"$f":"IF(ISERROR($V2005),\"\",OFFSET('Smelter Look-up'!$G$4,$V2005-4,0))","v":""},{"$f":"IF(ISERROR($V2005),\"\",OFFSET('Smelter Look-up'!$H$4,$V2005-4,0))","v":""},{"$f":"IF(ISERROR($V2005),\"\",OFFSET('Smelter Look-up'!$I$4,$V2005-4,0))","v":""},{"$nulls":7},{"$f":"IF(ISERROR($V2005),\"\",OFFSET('Smelter Look-up'!$C$4,$V2005-4,0)&\"\")","v":""},"",{"$f":"IF(B2005=\"\",\"\",IF(ISERROR(MATCH($J2005,SorP!$B$1:$B$5661,0)),\"\",INDIRECT(\"'SorP'!$A$\"&MATCH($J2005,SorP!$B$1:$B$5661,0))))","v":""},null,{"$f":"IF(C2005=\"\",NA(),MATCH($B2005&$C2005,'Smelter Look-up'!$J:$J,0))","v":{"$error":"#N/A"}},null,0,null,null,null,""]
[null,{"$f":"IF(LEN(A2006)=0,\"\",INDEX('Smelter Look-up'!$A:$A,MATCH($A2006,'Smelter Look-up'!$E:$E,0)))","v":""},{"$f":"IF(LEN(A2006)=0,\"\",INDEX('Smelter Look-up'!$C:$C,MATCH($A2006,'Smelter Look-up'!$E:$E,0)))","v":""},null,{"$f":"IF(ISERROR($V2006),\"\",OFFSET('Smelter Look-up'!$D$4,$V2006-4,0)&\"\")","v":""},{"$f":"IF(ISERROR($V2006),\"\",OFFSET('Smelter Look-up'!$E$4,$V2006-4,0))","v":""},{"$f":"IF(C2006=$X$4,\"Enter smelter details\",IF(ISERROR($V2006),\"\",OFFSET('Smelter Look-up'!$F$4,$V2006-4,0)))","v":""},{"$f":"IF(ISERROR($V2006),\"\",OFFSET('Smelter Look-up'!$G$4,$V2006-4,0))","v":""},{"$f":"IF(ISERROR($V2006),\"\",OFFSET('Smelter Look-up'!$H$4,$V2006-4,0))","v":""},{"$f":"IF(ISERROR($V2006),\"\",OFFSET('Smelter Look-up'!$I$4,$V2006-4,0))","v":""},{"$nulls":7},{"$f":"IF(ISERROR($V2006),\"\",OFFSET('Smelter Look-up'!$C$4,$V2006-4,0)&\"\")","v":""},"",{"$f":"IF(B2006=\"\",\"\",IF(ISERROR(MATCH($J2006,SorP!$B$1:$B$5661,0)),\"\",INDIRECT(\"'SorP'!$A$\"&MATCH($J2006,SorP!$B$1:$B$5661,0))))","v":""},null,{"$f":"IF(C2006=\"\",NA(),MATCH($B2006&$C2006,'Smelter Look-up'!$J:$J,0))","v":{"$error":"#N/A"}},null,0,null,null,null,""]
[null,{"$f":"IF(LEN(A2007)=0,\"\",INDEX('Smelter Look-up'!$A:$A,MATCH($A2007,'Smelter Look-up'!$E:$E,0)))","v":""},{"$f":"IF(LEN(A2007)=0,\"\",INDEX('Smelter Look-up'!$C:$C,MATCH($A2007,'Smelter Look-up'!$E:$E,0)))","v":""},null,{"$f":"IF(ISERROR($V2007),\"\",OFFSET('Smelter Look-up'!$D$4,$V2007-4,0)&\"\")","v":""},{"$f":"IF(ISERROR($V2007),\"\",OFFSET('Smelter Look-up'!$E$4,$V2007-4,0))","v":""},{"$f":"IF(C2007=$X$4,\"Enter smelter details\",IF(ISERROR($V2007),\"\",OFFSET('Smelter Look-up'!$F$4,$V2007-4,0)))","v":""},{"$f":"IF(ISERROR($V2007),\"\",OFFSET('Smelter Look-up'!$G$4,$V2007-4,0))","v":""},{"$f":"IF(ISERROR($V2007),\"\",OFFSET('Smelter Look-up'!$H$4,$V2007-4,0))","v":""},{"$f":"IF(ISERROR($V2007),\"\",OFFSET('Smelter Look-up'!$I$4,$V2007-4,0))","v":""},{"$nulls":7},{"$f":"IF(ISERROR($V2007),\"\",OFFSET('Smelter Look-up'!$C$4,$V2007-4,0)&\"\")","v":""},"",{"$f":"IF(B2007=\"\",\"\",IF(ISERROR(MATCH($J2007,SorP!$B$1:$B$5661,0)),\"\",INDIRECT(\"'SorP'!$A$\"&MATCH($J2007,SorP!$B$1:$B$5661,0))))","v":""},null,{"$f":"IF(C2007=\"\",NA(),MATCH($B2007&$C2007,'Smelter Look-up'!$J:$J,0))","v":{"$error":"#N/A"}},null,0,null,null,null,""]
[null,{"$f":"IF(LEN(A2008)=0,\"\",INDEX('Smelter Look-up'!$A:$A,MATCH($A2008,'Smelter Look-up'!$E:$E,0)))","v":""},{"$f":"IF(LEN(A2008)=0,\"\",INDEX('Smelter Look-up'!$C:$C,MATCH($A2008,'Smelter Look-up'!$E:$E,0)))","v":""},null,{"$f":"IF(ISERROR($V2008),\"\",OFFSET('Smelter Look-up'!$D$4,$V2008-4,0)&\"\")","v":""},{"$f":"IF(ISERROR($V2008),\"\",OFFSET('Smelter Look-up'!$E$4,$V2008-4,0))","v":""},{"$f":"IF(C2008=$X$4,\"Enter smelter details\",IF(ISERROR($V2008),\"\",OFFSET('Smelter Look-up'!$F$4,$V2008-4,0)))","v":""},{"$f":"IF(ISERROR($V2008),\"\",OFFSET('Smelter Look-up'!$G$4,$V2008-4,0))","v":""},{"$f":"IF(ISERROR($V2008),\"\",OFFSET('Smelter Look-up'!$H$4,$V2008-4,0))","v":""},{"$f":"IF(ISERROR($V2008),\"\",OFFSET('Smelter Look-up'!$I$4,$V2008-4,0))","v":""},{"$nulls":7},{"$f":"IF(ISERROR($V2008),\"\",OFFSET('Smelter Look-up'!$C$4,$V2008-4,0)&\"\")","v":""},"",{"$f":"IF(B2008=\"\",\"\",IF(ISERROR(MATCH($J2008,SorP!$B$1:$B$5661,0)),\"\",INDIRECT(\"'SorP'!$A$\"&MATCH($J2008,SorP!$B$1:$B$5661,0))))","v":""},null,{"$f":"IF(C2008=\"\",NA(),MATCH($B2008&$C2008,'Smelter Look-up'!$J:$J,0))","v":{"$error":"#N/A"}},null,0,null,null,null,""]
[null,{"$f":"IF(LEN(A2009)=0,\"\",INDEX('Smelter Look-up'!$A:$A,MATCH($A2009,'Smelter Look-up'!$E:$E,0)))","v":""},{"$f":"IF(LEN(A2009)=0,\"\",INDEX('Smelter Look-up'!$C:$C,MATCH($A2009,'Smelter Look-up'!$E:$E,0)))","v":""},null,{"$f":"IF(ISERROR($V2009),\"\",OFFSET('Smelter Look-up'!$D$4,$V2009-4,0)&\"\")","v":""},{"$f":"IF(ISERROR($V2009),\"\",OFFSET('Smelter Look-up'!$E$4,$V2009-4,0))","v":""},{"$f":"IF(C2009=$X$4,\"Enter smelter details\",IF(ISERROR($V2009),\"\",OFFSET('Smelter Look-up'!$F$4,$V2009-4,0)))","v":""},{"$f":"IF(ISERROR($V2009),\"\",OFFSET('Smelter Look-up'!$G$4,$V2009-4,0))","v":""},{"$f":"IF(ISERROR($V2009),\"\",OFFSET('Smelter Look-up'!$H$4,$V2009-4,0))","v":""},{"$f":"IF(ISERROR($V2009),\"\",OFFSET('Smelter Look-up'!$I$4,$V2009-4,0))","v":""},{"$nulls":7},{"$f":"IF(ISERROR($V2009),\"\",OFFSET('Smelter Look-up'!$C$4,$V2009-4,0)&\"\")","v":""},"",{"$f":"IF(B2009=\"\",\"\",IF(ISERROR(MATCH($J2009,SorP!$B$1:$B$5661,0)),\"\",INDIRECT(\"'SorP'!$A$\"&MATCH($J2009,SorP!$B$1:$B$5661,0))))","v":""},null,{"$f":"IF(C2009=\"\",NA(),MATCH($B2009&$C2009,'Smelter Look-up'!$J:$J,0))","v":{"$error":"#N/A"}},null,0,null,null,null,""]
[null,{"$f":"IF(LEN(A2010)=0,\"\",INDEX('Smelter Look-up'!$A:$A,MATCH($A2010,'Smelter Look-up'!$E:$E,0)))","v":""},{"$f":"IF(LEN(A2010)=0,\"\",INDEX('Smelter Look-up'!$C:$C,MATCH($A2010,'Smelter Look-up'!$E:$E,0)))","v":""},null,{"$f":"IF(ISERROR($V2010),\"\",OFFSET('Smelter Look-up'!$D$4,$V2010-4,0)&\"\")","v":""},{"$f":"IF(ISERROR($V2010),\"\",OFFSET('Smelter Look-up'!$E$4,$V2010-4,0))","v":""},{"$f":"IF(C2010=$X$4,\"Enter smelter details\",IF(ISERROR($V2010),\"\",OFFSET('Smelter Look-up'!$F$4,$V2010-4,0)))","v":""},{"$f":"IF(ISERROR($V2010),\"\",OFFSET('Smelter Look-up'!$G$4,$V2010-4,0))","v":""},{"$f":"IF(ISERROR($V2010),\"\",OFFSET('Smelter Look-up'!$H$4,$V2010-4,0))","v":""},{"$f":"IF(ISERROR($V2010),\"\",OFFSET('Smelter Look-up'!$I$4,$V2010-4,0))","v":""},{"$nulls":7},{"$f":"IF(ISERROR($V2010),\"\",OFFSET('Smelter Look-up'!$C$4,$V2010-4,0)&\"\")","v":""},"",{"$f":"IF(B2010=\"\",\"\",IF(ISERROR(MATCH($J2010,SorP!$B$1:$B$5661,0)),\"\",INDIRECT(\"'SorP'!$A$\"&MATCH($J2010,SorP!$B$1:$B$5661,0))))","v":""},null,{"$f":"IF(C2010=\"\",NA(),MATCH($B2010&$C2010,'Smelter Look-up'!$J:$J,0))","v":{"$error":"#N/A"}},null,0,null,null,null,""]
[null,{"$f":"IF(LEN(A2011)=0,\"\",INDEX('Smelter Look-up'!$A:$A,MATCH($A2011,'Smelter Look-up'!$E:$E,0)))","v":""},{"$f":"IF(LEN(A2011)=0,\"\",INDEX('Smelter Look-up'!$C:$C,MATCH($A2011,'Smelter Look-up'!$E:$E,0)))","v":""},null,{"$f":"IF(ISERROR($V2011),\"\",OFFSET('Smelter Look-up'!$D$4,$V2011-4,0)&\"\")","v":""},{"$f":"IF(ISERROR($V2011),\"\",OFFSET('Smelter Look-up'!$E$4,$V2011-4,0))","v":""},{"$f":"IF(C2011=$X$4,\"Enter smelter details\",IF(ISERROR($V2011),\"\",OFFSET('Smelter Look-up'!$F$4,$V2011-4,0)))","v":""},{"$f":"IF(ISERROR($V2011),\"\",OFFSET('Smelter Look-up'!$G$4,$V2011-4,0))","v":""},{"$f":"IF(ISERROR($V2011),\"\",OFFSET('Smelter Look-up'!$H$4,$V2011-4,0))","v":""},{"$f":"IF(ISERROR($V2011),\"\",OFFSET('Smelter Look-up'!$I$4,$V2011-4,0))","v":""},{"$nulls":7},{"$f":"IF(ISERROR($V2011),\"\",OFFSET('Smelter Look-up'!$C$4,$V2011-4,0)&\"\")","v":""},"",{"$f":"IF(B2011=\"\",\"\",IF(ISERROR(MATCH($J2011,SorP!$B$1:$B$5661,0)),\"\",INDIRECT(\"'SorP'!$A$\"&MATCH($J2011,SorP!$B$1:$B$5661,0))))","v":""},null,{"$f":"IF(C2011=\"\",NA(),MATCH($B2011&$C2011,'Smelter Look-up'!$J:$J,0))","v":{"$error":"#N/A"}},null,0,null,null,null,""]
[null,{"$f":"IF(LEN(A2012)=0,\"\",INDEX('Smelter Look-up'!$A:$A,MATCH($A2012,'Smelter Look-up'!$E:$E,0)))","v":""},{"$f":"IF(LEN(A2012)=0,\"\",INDEX('Smelter Look-up'!$C:$C,MATCH($A2012,'Smelter Look-up'!$E:$E,0)))","v":""},null,{"$f":"IF(ISERROR($V2012),\"\",OFFSET('Smelter Look-up'!$D$4,$V2012-4,0)&\"\")","v":""},{"$f":"IF(ISERROR($V2012),\"\",OFFSET('Smelter Look-up'!$E$4,$V2012-4,0))","v":""},{"$f":"IF(C2012=$X$4,\"Enter smelter details\",IF(ISERROR($V2012),\"\",OFFSET('Smelter Look-up'!$F$4,$V2012-4,0)))","v":""},{"$f":"IF(ISERROR($V2012),\"\",OFFSET('Smelter Look-up'!$G$4,$V2012-4,0))","v":""},{"$f":"IF(ISERROR($V2012),\"\",OFFSET('Smelter Look-up'!$H$4,$V2012-4,0))","v":""},{"$f":"IF(ISERROR($V2012),\"\",OFFSET('Smelter Look-up'!$I$4,$V2012-4,0))","v":""},{"$nulls":7},{"$f":"IF(ISERROR($V2012),\"\",OFFSET('Smelter Look-up'!$C$4,$V2012-4,0)&\"\")","v":""},"",{"$f":"IF(B2012=\"\",\"\",IF(ISERROR(MATCH($J2012,SorP!$B$1:$B$5661,0)),\"\",INDIRECT(\"'SorP'!$A$\"&MATCH($J2012,SorP!$B$1:$B$5661,0))))","v":""},null,{"$f":"IF(C2012=\"\",NA(),MATCH($B2012&$C2012,'Smelter Look-up'!$J:$J,0))","v":{"$error":"#N/A"}},null,0,null,null,null,""]
[null,{"$f":"IF(LEN(A2013)=0,\"\",INDEX('Smelter Look-up'!$A:$A,MATCH($A2013,'Smelter Look-up'!$E:$E,0)))","v":""},{"$f":"IF(LEN(A2013)=0,\"\",INDEX('Smelter Look-up'!$C:$C,MATCH($A2013,'Smelter Look-up'!$E:$E,0)))","v":""},null,{"$f":"IF(ISERROR($V2013),\"\",OFFSET('Smelter Look-up'!$D$4,$V2013-4,0)&\"\")","v":""},{"$f":"IF(ISERROR($V2013),\"\",OFFSET('Smelter Look-up'!$E$4,$V2013-4,0))","v":""},{"$f":"IF(C2013=$X$4,\"Enter smelter details\",IF(ISERROR($V2013),\"\",OFFSET('Smelter Look-up'!$F$4,$V2013-4,0)))","v":""},{"$f":"IF(ISERROR($V2013),\"\",OFFSET('Smelter Look-up'!$G$4,$V2013-4,0))","v":""},{"$f":"IF(ISERROR($V2013),\"\",OFFSET('Smelter Look-up'!$H$4,$V2013-4,0))","v":""},{"$f":"IF(ISERROR($V2013),\"\",OFFSET('Smelter Look-up'!$I$4,$V2013-4,0))","v":""},{"$nulls":7},{"$f":"IF(ISERROR($V2013),\"\",OFFSET('Smelter Look-up'!$C$4,$V2013-4,0)&\"\")","v":""},"",{"$f":"IF(B2013=\"\",\"\",IF(ISERROR(MATCH($J2013,SorP!$B$1:$B$5661,0)),\"\",INDIRECT(\"'SorP'!$A$\"&MATCH($J2013,SorP!$B$1:$B$5661,0))))","v":""},null,{"$f":"IF(C2013=\"\",NA(),MATCH($B2013&$C2013,'Smelter Look-up'!$J:$J,0))","v":{"$error":"#N/A"}},null,0,null,null,null,""]
[null,{"$f":"IF(LEN(A2014)=0,\"\",INDEX('Smelter Look-up'!$A:$A,MATCH($A2014,'Smelter Look-up'!$E:$E,0)))","v":""},{"$f":"IF(LEN(A2014)=0,\"\",INDEX('Smelter Look-up'!$C:$C,MATCH($A2014,'Smelter Look-up'!$E:$E,0)))","v":""},null,{"$f":"IF(ISERROR($V2014),\"\",OFFSET('Smelter Look-up'!$D$4,$V2014-4,0)&\"\")","v":""},{"$f":"IF(ISERROR($V2014),\"\",OFFSET('Smelter Look-up'!$E$4,$V2014-4,0))","v":""},{"$f":"IF(C2014=$X$4,\"Enter smelter details\",IF(ISERROR($V2014),\"\",OFFSET('Smelter Look-up'!$F$4,$V2014-4,0)))","v":""},{"$f":"IF(ISERROR($V2014),\"\",OFFSET('Smelter Look-up'!$G$4,$V2014-4,0))","v":""},{"$f":"IF(ISERROR($V2014),\"\",OFFSET('Smelter Look-up'!$H$4,$V2014-4,0))","v":""},{"$f":"IF(ISERROR($V2014),\"\",OFFSET('Smelter Look-up'!$I$4,$V2014-4,0))","v":""},{"$nulls":7},{"$f":"IF(ISERROR($V2014),\"\",OFFSET('Smelter Look-up'!$C$4,$V2014-4,0)&\"\")","v":""},"",{"$f":"IF(B2014=\"\",\"\",IF(ISERROR(MATCH($J2014,SorP!$B$1:$B$5661,0)),\"\",INDIRECT(\"'SorP'!$A$\"&MATCH($J2014,SorP!$B$1:$B$5661,0))))","v":""},null,{"$f":"IF(C2014=\"\",NA(),MATCH($B2014&$C2014,'Smelter Look-up'!$J:$J,0))","v":{"$error":"#N/A"}},null,0,null,null,null,""]
[null,{"$f":"IF(LEN(A2015)=0,\"\",INDEX('Smelter Look-up'!$A:$A,MATCH($A2015,'Smelter Look-up'!$E:$E,0)))","v":""},{"$f":"IF(LEN(A2015)=0,\"\",INDEX('Smelter Look-up'!$C:$C,MATCH($A2015,'Smelter Look-up'!$E:$E,0)))","v":""},null,{"$f":"IF(ISERROR($V2015),\"\",OFFSET('Smelter Look-up'!$D$4,$V2015-4,0)&\"\")","v":""},{"$f":"IF(ISERROR($V2015),\"\",OFFSET('Smelter Look-up'!$E$4,$V2015-4,0))","v":""},{"$f":"IF(C2015=$X$4,\"Enter smelter details\",IF(ISERROR($V2015),\"\",OFFSET('Smelter Look-up'!$F$4,$V2015-4,0)))","v":""},{"$f":"IF(ISERROR($V2015),\"\",OFFSET('Smelter Look-up'!$G$4,$V2015-4,0))","v":""},{"$f":"IF(ISERROR($V2015),\"\",OFFSET('Smelter Look-up'!$H$4,$V2015-4,0))","v":""},{"$f":"IF(ISERROR($V2015),\"\",OFFSET('Smelter Look-up'!$I$4,$V2015-4,0))","v":""},{"$nulls":7},{"$f":"IF(ISERROR($V2015),\"\",OFFSET('Smelter Look-up'!$C$4,$V2015-4,0)&\"\")","v":""},"",{"$f":"IF(B2015=\"\",\"\",IF(ISERROR(MATCH($J2015,SorP!$B$1:$B$5661,0)),\"\",INDIRECT(\"'SorP'!$A$\"&MATCH($J2015,SorP!$B$1:$B$5661,0))))","v":""},null,{"$f":"IF(C2015=\"\",NA(),MATCH($B2015&$C2015,'Smelter Look-up'!$J:$J,0))","v":{"$error":"#N/A"}},null,0,null,null,null,""]
[null,{"$f":"IF(LEN(A2016)=0,\"\",INDEX('Smelter Look-up'!$A:$A,MATCH($A2016,'Smelter Look-up'!$E:$E,0)))","v":""},{"$f":"IF(LEN(A2016)=0,\"\",INDEX('Smelter Look-up'!$C:$C,MATCH($A2016,'Smelter Look-up'!$E:$E,0)))","v":""},null,{"$f":"IF(ISERROR($V2016),\"\",OFFSET('Smelter Look-up'!$D$4,$V2016-4,0)&\"\")","v":""},{"$f":"IF(ISERROR($V2016),\"\",OFFSET('Smelter Look-up'!$E$4,$V2016-4,0))","v":""},{"$f":"IF(C2016=$X$4,\"Enter smelter details\",IF(ISERROR($V2016),\"\",OFFSET('Smelter Look-up'!$F$4,$V2016-4,0)))","v":""},{"$f":"IF(ISERROR($V2016),\"\",OFFSET('Smelter Look-up'!$G$4,$V2016-4,0))","v":""},{"$f":"IF(ISERROR($V2016),\"\",OFFSET('Smelter Look-up'!$H$4,$V2016-4,0))","v":""},{"$f":"IF(ISERROR($V2016),\"\",OFFSET('Smelter Look-up'!$I$4,$V2016-4,0))","v":""},{"$nulls":7},{"$f":"IF(ISERROR($V2016),\"\",OFFSET('Smelter Look-up'!$C$4,$V2016-4,0)&\"\")","v":""},"",{"$f":"IF(B2016=\"\",\"\",IF(ISERROR(MATCH($J2016,SorP!$B$1:$B$5661,0)),\"\",INDIRECT(\"'SorP'!$A$\"&MATCH($J2016,SorP!$B$1:$B$5661,0))))","v":""},null,{"$f":"IF(C2016=\"\",NA(),MATCH($B2016&$C2016,'Smelter Look-up'!$J:$J,0))","v":{"$error":"#N/A"}},null,0,null,null,null,""]
[null,{"$f":"IF(LEN(A2017)=0,\"\",INDEX('Smelter Look-up'!$A:$A,MATCH($A2017,'Smelter Look-up'!$E:$E,0)))","v":""},{"$f":"IF(LEN(A2017)=0,\"\",INDEX('Smelter Look-up'!$C:$C,MATCH($A2017,'Smelter Look-up'!$E:$E,0)))","v":""},null,{"$f":"IF(ISERROR($V2017),\"\",OFFSET('Smelter Look-up'!$D$4,$V2017-4,0)&\"\")","v":""},{"$f":"IF(ISERROR($V2017),\"\",OFFSET('Smelter Look-up'!$E$4,$V2017-4,0))","v":""},{"$f":"IF(C2017=$X$4,\"Enter smelter details\",IF(ISERROR($V2017),\"\",OFFSET('Smelter Look-up'!$F$4,$V2017-4,0)))","v":""},{"$f":"IF(ISERROR($V2017),\"\",OFFSET('Smelter Look-up'!$G$4,$V2017-4,0))","v":""},{"$f":"IF(ISERROR($V2017),\"\",OFFSET('Smelter Look-up'!$H$4,$V2017-4,0))","v":""},{"$f":"IF(ISERROR($V2017),\"\",OFFSET('Smelter Look-up'!$I$4,$V2017-4,0))","v":""},{"$nulls":7},{"$f":"IF(ISERROR($V2017),\"\",OFFSET('Smelter Look-up'!$C$4,$V2017-4,0)&\"\")","v":""},"",{"$f":"IF(B2017=\"\",\"\",IF(ISERROR(MATCH($J2017,SorP!$B$1:$B$5661,0)),\"\",INDIRECT(\"'SorP'!$A$\"&MATCH($J2017,SorP!$B$1:$B$5661,0))))","v":""},null,{"$f":"IF(C2017=\"\",NA(),MATCH($B2017&$C2017,'Smelter Look-up'!$J:$J,0))","v":{"$error":"#N/A"}},null,0,null,null,null,""]
[null,{"$f":"IF(LEN(A2018)=0,\"\",INDEX('Smelter Look-up'!$A:$A,MATCH($A2018,'Smelter Look-up'!$E:$E,0)))","v":""},{"$f":"IF(LEN(A2018)=0,\"\",INDEX('Smelter Look-up'!$C:$C,MATCH($A2018,'Smelter Look-up'!$E:$E,0)))","v":""},null,{"$f":"IF(ISERROR($V2018),\"\",OFFSET('Smelter Look-up'!$D$4,$V2018-4,0)&\"\")","v":""},{"$f":"IF(ISERROR($V2018),\"\",OFFSET('Smelter Look-up'!$E$4,$V2018-4,0))","v":""},{"$f":"IF(C2018=$X$4,\"Enter smelter details\",IF(ISERROR($V2018),\"\",OFFSET('Smelter Look-up'!$F$4,$V2018-4,0)))","v":""},{"$f":"IF(ISERROR($V2018),\"\",OFFSET('Smelter Look-up'!$G$4,$V2018-4,0))","v":""},{"$f":"IF(ISERROR($V2018),\"\",OFFSET('Smelter Look-up'!$H$4,$V2018-4,0))","v":""},{"$f":"IF(ISERROR($V2018),\"\",OFFSET('Smelter Look-up'!$I$4,$V2018-4,0))","v":""},{"$nulls":7},{"$f":"IF(ISERROR($V2018),\"\",OFFSET('Smelter Look-up'!$C$4,$V2018-4,0)&\"\")","v":""},"",{"$f":"IF(B2018=\"\",\"\",IF(ISERROR(MATCH($J2018,SorP!$B$1:$B$5661,0)),\"\",INDIRECT(\"'SorP'!$A$\"&MATCH($J2018,SorP!$B$1:$B$5661,0))))","v":""},null,{"$f":"IF(C2018=\"\",NA(),MATCH($B2018&$C2018,'Smelter Look-up'!$J:$J,0))","v":{"$error":"#N/A"}},null,0,null,null,null,""]
[null,{"$f":"IF(LEN(A2019)=0,\"\",INDEX('Smelter Look-up'!$A:$A,MATCH($A2019,'Smelter Look-up'!$E:$E,0)))","v":""},{"$f":"IF(LEN(A2019)=0,\"\",INDEX('Smelter Look-up'!$C:$C,MATCH($A2019,'Smelter Look-up'!$E:$E,0)))","v":""},null,{"$f":"IF(ISERROR($V2019),\"\",OFFSET('Smelter Look-up'!$D$4,$V2019-4,0)&\"\")","v":""},{"$f":"IF(ISERROR($V2019),\"\",OFFSET('Smelter Look-up'!$E$4,$V2019-4,0))","v":""},{"$f":"IF(C2019=$X$4,\"Enter smelter details\",IF(ISERROR($V2019),\"\",OFFSET('Smelter Look-up'!$F$4,$V2019-4,0)))","v":""},{"$f":"IF(ISERROR($V2019),\"\",OFFSET('Smelter Look-up'!$G$4,$V2019-4,0))","v":""},{"$f":"IF(ISERROR($V2019),\"\",OFFSET('Smelter Look-up'!$H$4,$V2019-4,0))","v":""},{"$f":"IF(ISERROR($V2019),\"\",OFFSET('Smelter Look-up'!$I$4,$V2019-4,0))","v":""},{"$nulls":7},{"$f":"IF(ISERROR($V2019),\"\",OFFSET('Smelter Look-up'!$C$4,$V2019-4,0)&\"\")","v":""},"",{"$f":"IF(B2019=\"\",\"\",IF(ISERROR(MATCH($J2019,SorP!$B$1:$B$5661,0)),\"\",INDIRECT(\"'SorP'!$A$\"&MATCH($J2019,SorP!$B$1:$B$5661,0))))","v":""},null,{"$f":"IF(C2019=\"\",NA(),MATCH($B2019&$C2019,'Smelter Look-up'!$J:$J,0))","v":{"$error":"#N/A"}},null,0,null,null,null,""]
[null,{"$f":"IF(LEN(A2020)=0,\"\",INDEX('Smelter Look-up'!$A:$A,MATCH($A2020,'Smelter Look-up'!$E:$E,0)))","v":""},{"$f":"IF(LEN(A2020)=0,\"\",INDEX('Smelter Look-up'!$C:$C,MATCH($A2020,'Smelter Look-up'!$E:$E,0)))","v":""},null,{"$f":"IF(ISERROR($V2020),\"\",OFFSET('Smelter Look-up'!$D$4,$V2020-4,0)&\"\")","v":""},{"$f":"IF(ISERROR($V2020),\"\",OFFSET('Smelter Look-up'!$E$4,$V2020-4,0))","v":""},{"$f":"IF(C2020=$X$4,\"Enter smelter details\",IF(ISERROR($V2020),\"\",OFFSET('Smelter Look-up'!$F$4,$V2020-4,0)))","v":""},{"$f":"IF(ISERROR($V2020),\"\",OFFSET('Smelter Look-up'!$G$4,$V2020-4,0))","v":""},{"$f":"IF(ISERROR($V2020),\"\",OFFSET('Smelter Look-up'!$H$4,$V2020-4,0))","v":""},{"$f":"IF(ISERROR($V2020),\"\",OFFSET('Smelter Look-up'!$I$4,$V2020-4,0))","v":""},{"$nulls":7},{"$f":"IF(ISERROR($V2020),\"\",OFFSET('Smelter Look-up'!$C$4,$V2020-4,0)&\"\")","v":""},"",{"$f":"IF(B2020=\"\",\"\",IF(ISERROR(MATCH($J2020,SorP!$B$1:$B$5661,0)),\"\",INDIRECT(\"'SorP'!$A$\"&MATCH($J2020,SorP!$B$1:$B$5661,0))))","v":""},null,{"$f":"IF(C2020=\"\",NA(),MATCH($B2020&$C2020,'Smelter Look-up'!$J:$J,0))","v":{"$error":"#N/A"}},null,0,null,null,null,""]
[null,{"$f":"IF(LEN(A2021)=0,\"\",INDEX('Smelter Look-up'!$A:$A,MATCH($A2021,'Smelter Look-up'!$E:$E,0)))","v":""},{"$f":"IF(LEN(A2021)=0,\"\",INDEX('Smelter Look-up'!$C:$C,MATCH($A2021,'Smelter Look-up'!$E:$E,0)))","v":""},null,{"$f":"IF(ISERROR($V2021),\"\",OFFSET('Smelter Look-up'!$D$4,$V2021-4,0)&\"\")","v":""},{"$f":"IF(ISERROR($V2021),\"\",OFFSET('Smelter Look-up'!$E$4,$V2021-4,0))","v":""},{"$f":"IF(C2021=$X$4,\"Enter smelter details\",IF(ISERROR($V2021),\"\",OFFSET('Smelter Look-up'!$F$4,$V2021-4,0)))","v":""},{"$f":"IF(ISERROR($V2021),\"\",OFFSET('Smelter Look-up'!$G$4,$V2021-4,0))","v":""},{"$f":"IF(ISERROR($V2021),\"\",OFFSET('Smelter Look-up'!$H$4,$V2021-4,0))","v":""},{"$f":"IF(ISERROR($V2021),\"\",OFFSET('Smelter Look-up'!$I$4,$V2021-4,0))","v":""},{"$nulls":7},{"$f":"IF(ISERROR($V2021),\"\",OFFSET('Smelter Look-up'!$C$4,$V2021-4,0)&\"\")","v":""},"",{"$f":"IF(B2021=\"\",\"\",IF(ISERROR(MATCH($J2021,SorP!$B$1:$B$5661,0)),\"\",INDIRECT(\"'SorP'!$A$\"&MATCH($J2021,SorP!$B$1:$B$5661,0))))","v":""},null,{"$f":"IF(C2021=\"\",NA(),MATCH($B2021&$C2021,'Smelter Look-up'!$J:$J,0))","v":{"$error":"#N/A"}},null,0,null,null,null,""]
[null,{"$f":"IF(LEN(A2022)=0,\"\",INDEX('Smelter Look-up'!$A:$A,MATCH($A2022,'Smelter Look-up'!$E:$E,0)))","v":""},{"$f":"IF(LEN(A2022)=0,\"\",INDEX('Smelter Look-up'!$C:$C,MATCH($A2022,'Smelter Look-up'!$E:$E,0)))","v":""},null,{"$f":"IF(ISERROR($V2022),\"\",OFFSET('Smelter Look-up'!$D$4,$V2022-4,0)&\"\")","v":""},{"$f":"IF(ISERROR($V2022),\"\",OFFSET('Smelter Look-up'!$E$4,$V2022-4,0))","v":""},{"$f":"IF(C2022=$X$4,\"Enter smelter details\",IF(ISERROR($V2022),\"\",OFFSET('Smelter Look-up'!$F$4,$V2022-4,0)))","v":""},{"$f":"IF(ISERROR($V2022),\"\",OFFSET('Smelter Look-up'!$G$4,$V2022-4,0))","v":""},{"$f":"IF(ISERROR($V2022),\"\",OFFSET('Smelter Look-up'!$H$4,$V2022-4,0))","v":""},{"$f":"IF(ISERROR($V2022),\"\",OFFSET('Smelter Look-up'!$I$4,$V2022-4,0))","v":""},{"$nulls":7},{"$f":"IF(ISERROR($V2022),\"\",OFFSET('Smelter Look-up'!$C$4,$V2022-4,0)&\"\")","v":""},"",{"$f":"IF(B2022=\"\",\"\",IF(ISERROR(MATCH($J2022,SorP!$B$1:$B$5661,0)),\"\",INDIRECT(\"'SorP'!$A$\"&MATCH($J2022,SorP!$B$1:$B$5661,0))))","v":""},null,{"$f":"IF(C2022=\"\",NA(),MATCH($B2022&$C2022,'Smelter Look-up'!$J:$J,0))","v":{"$error":"#N/A"}},null,0,null,null,null,""]
[null,{"$f":"IF(LEN(A2023)=0,\"\",INDEX('Smelter Look-up'!$A:$A,MATCH($A2023,'Smelter Look-up'!$E:$E,0)))","v":""},{"$f":"IF(LEN(A2023)=0,\"\",INDEX('Smelter Look-up'!$C:$C,MATCH($A2023,'Smelter Look-up'!$E:$E,0)))","v":""},null,{"$f":"IF(ISERROR($V2023),\"\",OFFSET('Smelter Look-up'!$D$4,$V2023-4,0)&\"\")","v":""},{"$f":"IF(ISERROR($V2023),\"\",OFFSET('Smelter Look-up'!$E$4,$V2023-4,0))","v":""},{"$f":"IF(C2023=$X$4,\"Enter smelter details\",IF(ISERROR($V2023),\"\",OFFSET('Smelter Look-up'!$F$4,$V2023-4,0)))","v":""},{"$f":"IF(ISERROR($V2023),\"\",OFFSET('Smelter Look-up'!$G$4,$V2023-4,0))","v":""},{"$f":"IF(ISERROR($V2023),\"\",OFFSET('Smelter Look-up'!$H$4,$V2023-4,0))","v":""},{"$f":"IF(ISERROR($V2023),\"\",OFFSET('Smelter Look-up'!$I$4,$V2023-4,0))","v":""},{"$nulls":7},{"$f":"IF(ISERROR($V2023),\"\",OFFSET('Smelter Look-up'!$C$4,$V2023-4,0)&\"\")","v":""},"",{"$f":"IF(B2023=\"\",\"\",IF(ISERROR(MATCH($J2023,SorP!$B$1:$B$5661,0)),\"\",INDIRECT(\"'SorP'!$A$\"&MATCH($J2023,SorP!$B$1:$B$5661,0))))","v":""},null,{"$f":"IF(C2023=\"\",NA(),MATCH($B2023&$C2023,'Smelter Look-up'!$J:$J,0))","v":{"$error":"#N/A"}},null,0,null,null,null,""]
[null,{"$f":"IF(LEN(A2024)=0,\"\",INDEX('Smelter Look-up'!$A:$A,MATCH($A2024,'Smelter Look-up'!$E:$E,0)))","v":""},{"$f":"IF(LEN(A2024)=0,\"\",INDEX('Smelter Look-up'!$C:$C,MATCH($A2024,'Smelter Look-up'!$E:$E,0)))","v":""},null,{"$f":"IF(ISERROR($V2024),\"\",OFFSET('Smelter Look-up'!$D$4,$V2024-4,0)&\"\")","v":""},{"$f":"IF(ISERROR($V2024),\"\",OFFSET('Smelter Look-up'!$E$4,$V2024-4,0))","v":""},{"$f":"IF(C2024=$X$4,\"Enter smelter details\",IF(ISERROR($V2024),\"\",OFFSET('Smelter Look-up'!$F$4,$V2024-4,0)))","v":""},{"$f":"IF(ISERROR($V2024),\"\",OFFSET('Smelter Look-up'!$G$4,$V2024-4,0))","v":""},{"$f":"IF(ISERROR($V2024),\"\",OFFSET('Smelter Look-up'!$H$4,$V2024-4,0))","v":""},{"$f":"IF(ISERROR($V2024),\"\",OFFSET('Smelter Look-up'!$I$4,$V2024-4,0))","v":""},{"$nulls":7},{"$f":"IF(ISERROR($V2024),\"\",OFFSET('Smelter Look-up'!$C$4,$V2024-4,0)&\"\")","v":""},"",{"$f":"IF(B2024=\"\",\"\",IF(ISERROR(MATCH($J2024,SorP!$B$1:$B$5661,0)),\"\",INDIRECT(\"'SorP'!$A$\"&MATCH($J2024,SorP!$B$1:$B$5661,0))))","v":""},null,{"$f":"IF(C2024=\"\",NA(),MATCH($B2024&$C2024,'Smelter Look-up'!$J:$J,0))","v":{"$error":"#N/A"}},null,0,null,null,null,""]
[null,{"$f":"IF(LEN(A2025)=0,\"\",INDEX('Smelter Look-up'!$A:$A,MATCH($A2025,'Smelter Look-up'!$E:$E,0)))","v":""},{"$f":"IF(LEN(A2025)=0,\"\",INDEX('Smelter Look-up'!$C:$C,MATCH($A2025,'Smelter Look-up'!$E:$E,0)))","v":""},null,{"$f":"IF(ISERROR($V2025),\"\",OFFSET('Smelter Look-up'!$D$4,$V2025-4,0)&\"\")","v":""},{"$f":"IF(ISERROR($V2025),\"\",OFFSET('Smelter Look-up'!$E$4,$V2025-4,0))","v":""},{"$f":"IF(C2025=$X$4,\"Enter smelter details\",IF(ISERROR($V2025),\"\",OFFSET('Smelter Look-up'!$F$4,$V2025-4,0)))","v":""},{"$f":"IF(ISERROR($V2025),\"\",OFFSET('Smelter Look-up'!$G$4,$V2025-4,0))","v":""},{"$f":"IF(ISERROR($V2025),\"\",OFFSET('Smelter Look-up'!$H$4,$V2025-4,0))","v":""},{"$f":"IF(ISERROR($V2025),\"\",OFFSET('Smelter Look-up'!$I$4,$V2025-4,0))","v":""},{"$nulls":7},{"$f":"IF(ISERROR($V2025),\"\",OFFSET('Smelter Look-up'!$C$4,$V2025-4,0)&\"\")","v":""},"",{"$f":"IF(B2025=\"\",\"\",IF(ISERROR(MATCH($J2025,SorP!$B$1:$B$5661,0)),\"\",INDIRECT(\"'SorP'!$A$\"&MATCH($J2025,SorP!$B$1:$B$5661,0))))","v":""},null,{"$f":"IF(C2025=\"\",NA(),MATCH($B2025&$C2025,'Smelter Look-up'!$J:$J,0))","v":{"$error":"#N/A"}},null,0,null,null,null,""]
[null,{"$f":"IF(LEN(A2026)=0,\"\",INDEX('Smelter Look-up'!$A:$A,MATCH($A2026,'Smelter Look-up'!$E:$E,0)))","v":""},{"$f":"IF(LEN(A2026)=0,\"\",INDEX('Smelter Look-up'!$C:$C,MATCH($A2026,'Smelter Look-up'!$E:$E,0)))","v":""},null,{"$f":"IF(ISERROR($V2026),\"\",OFFSET('Smelter Look-up'!$D$4,$V2026-4,0)&\"\")","v":""},{"$f":"IF(ISERROR($V2026),\"\",OFFSET('Smelter Look-up'!$E$4,$V2026-4,0))","v":""},{"$f":"IF(C2026=$X$4,\"Enter smelter details\",IF(ISERROR($V2026),\"\",OFFSET('Smelter Look-up'!$F$4,$V2026-4,0)))","v":""},{"$f":"IF(ISERROR($V2026),\"\",OFFSET('Smelter Look-up'!$G$4,$V2026-4,0))","v":""},{"$f":"IF(ISERROR($V2026),\"\",OFFSET('Smelter Look-up'!$H$4,$V2026-4,0))","v":""},{"$f":"IF(ISERROR($V2026),\"\",OFFSET('Smelter Look-up'!$I$4,$V2026-4,0))","v":""},{"$nulls":7},{"$f":"IF(ISERROR($V2026),\"\",OFFSET('Smelter Look-up'!$C$4,$V2026-4,0)&\"\")","v":""},"",{"$f":"IF(B2026=\"\",\"\",IF(ISERROR(MATCH($J2026,SorP!$B$1:$B$5661,0)),\"\",INDIRECT(\"'SorP'!$A$\"&MATCH($J2026,SorP!$B$1:$B$5661,0))))","v":""},null,{"$f":"IF(C2026=\"\",NA(),MATCH($B2026&$C2026,'Smelter Look-up'!$J:$J,0))","v":{"$error":"#N/A"}},null,0,null,null,null,""]
[null,{"$f":"IF(LEN(A2027)=0,\"\",INDEX('Smelter Look-up'!$A:$A,MATCH($A2027,'Smelter Look-up'!$E:$E,0)))","v":""},{"$f":"IF(LEN(A2027)=0,\"\",INDEX('Smelter Look-up'!$C:$C,MATCH($A2027,'Smelter Look-up'!$E:$E,0)))","v":""},null,{"$f":"IF(ISERROR($V2027),\"\",OFFSET('Smelter Look-up'!$D$4,$V2027-4,0)&\"\")","v":""},{"$f":"IF(ISERROR($V2027),\"\",OFFSET('Smelter Look-up'!$E$4,$V2027-4,0))","v":""},{"$f":"IF(C2027=$X$4,\"Enter smelter details\",IF(ISERROR($V2027),\"\",OFFSET('Smelter Look-up'!$F$4,$V2027-4,0)))","v":""},{"$f":"IF(ISERROR($V2027),\"\",OFFSET('Smelter Look-up'!$G$4,$V2027-4,0))","v":""},{"$f":"IF(ISERROR($V2027),\"\",OFFSET('Smelter Look-up'!$H$4,$V2027-4,0))","v":""},{"$f":"IF(ISERROR($V2027),\"\",OFFSET('Smelter Look-up'!$I$4,$V2027-4,0))","v":""},{"$nulls":7},{"$f":"IF(ISERROR($V2027),\"\",OFFSET('Smelter Look-up'!$C$4,$V2027-4,0)&\"\")","v":""},"",{"$f":"IF(B2027=\"\",\"\",IF(ISERROR(MATCH($J2027,SorP!$B$1:$B$5661,0)),\"\",INDIRECT(\"'SorP'!$A$\"&MATCH($J2027,SorP!$B$1:$B$5661,0))))","v":""},null,{"$f":"IF(C2027=\"\",NA(),MATCH($B2027&$C2027,'Smelter Look-up'!$J:$J,0))","v":{"$error":"#N/A"}},null,0,null,null,null,""]
[null,{"$f":"IF(LEN(A2028)=0,\"\",INDEX('Smelter Look-up'!$A:$A,MATCH($A2028,'Smelter Look-up'!$E:$E,0)))","v":""},{"$f":"IF(LEN(A2028)=0,\"\",INDEX('Smelter Look-up'!$C:$C,MATCH($A2028,'Smelter Look-up'!$E:$E,0)))","v":""},null,{"$f":"IF(ISERROR($V2028),\"\",OFFSET('Smelter Look-up'!$D$4,$V2028-4,0)&\"\")","v":""},{"$f":"IF(ISERROR($V2028),\"\",OFFSET('Smelter Look-up'!$E$4,$V2028-4,0))","v":""},{"$f":"IF(C2028=$X$4,\"Enter smelter details\",IF(ISERROR($V2028),\"\",OFFSET('Smelter Look-up'!$F$4,$V2028-4,0)))","v":""},{"$f":"IF(ISERROR($V2028),\"\",OFFSET('Smelter Look-up'!$G$4,$V2028-4,0))","v":""},{"$f":"IF(ISERROR($V2028),\"\",OFFSET('Smelter Look-up'!$H$4,$V2028-4,0))","v":""},{"$f":"IF(ISERROR($V2028),\"\",OFFSET('Smelter Look-up'!$I$4,$V2028-4,0))","v":""},{"$nulls":7},{"$f":"IF(ISERROR($V2028),\"\",OFFSET('Smelter Look-up'!$C$4,$V2028-4,0)&\"\")","v":""},"",{"$f":"IF(B2028=\"\",\"\",IF(ISERROR(MATCH($J2028,SorP!$B$1:$B$5661,0)),\"\",INDIRECT(\"'SorP'!$A$\"&MATCH($J2028,SorP!$B$1:$B$5661,0))))","v":""},null,{"$f":"IF(C2028=\"\",NA(),MATCH($B2028&$C2028,'Smelter Look-up'!$J:$J,0))","v":{"$error":"#N/A"}},null,0,null,null,null,""]
[null,{"$f":"IF(LEN(A2029)=0,\"\",INDEX('Smelter Look-up'!$A:$A,MATCH($A2029,'Smelter Look-up'!$E:$E,0)))","v":""},{"$f":"IF(LEN(A2029)=0,\"\",INDEX('Smelter Look-up'!$C:$C,MATCH($A2029,'Smelter Look-up'!$E:$E,0)))","v":""},null,{"$f":"IF(ISERROR($V2029),\"\",OFFSET('Smelter Look-up'!$D$4,$V2029-4,0)&\"\")","v":""},{"$f":"IF(ISERROR($V2029),\"\",OFFSET('Smelter Look-up'!$E$4,$V2029-4,0))","v":""},{"$f":"IF(C2029=$X$4,\"Enter smelter details\",IF(ISERROR($V2029),\"\",OFFSET('Smelter Look-up'!$F$4,$V2029-4,0)))","v":""},{"$f":"IF(ISERROR($V2029),\"\",OFFSET('Smelter Look-up'!$G$4,$V2029-4,0))","v":""},{"$f":"IF(ISERROR($V2029),\"\",OFFSET('Smelter Look-up'!$H$4,$V2029-4,0))","v":""},{"$f":"IF(ISERROR($V2029),\"\",OFFSET('Smelter Look-up'!$I$4,$V2029-4,0))","v":""},{"$nulls":7},{"$f":"IF(ISERROR($V2029),\"\",OFFSET('Smelter Look-up'!$C$4,$V2029-4,0)&\"\")","v":""},"",{"$f":"IF(B2029=\"\",\"\",IF(ISERROR(MATCH($J2029,SorP!$B$1:$B$5661,0)),\"\",INDIRECT(\"'SorP'!$A$\"&MATCH($J2029,SorP!$B$1:$B$5661,0))))","v":""},null,{"$f":"IF(C2029=\"\",NA(),MATCH($B2029&$C2029,'Smelter Look-up'!$J:$J,0))","v":{"$error":"#N/A"}},null,0,null,null,null,""]
[null,{"$f":"IF(LEN(A2030)=0,\"\",INDEX('Smelter Look-up'!$A:$A,MATCH($A2030,'Smelter Look-up'!$E:$E,0)))","v":""},{"$f":"IF(LEN(A2030)=0,\"\",INDEX('Smelter Look-up'!$C:$C,MATCH($A2030,'Smelter Look-up'!$E:$E,0)))","v":""},null,{"$f":"IF(ISERROR($V2030),\"\",OFFSET('Smelter Look-up'!$D$4,$V2030-4,0)&\"\")","v":""},{"$f":"IF(ISERROR($V2030),\"\",OFFSET('Smelter Look-up'!$E$4,$V2030-4,0))","v":""},{"$f":"IF(C2030=$X$4,\"Enter smelter details\",IF(ISERROR($V2030),\"\",OFFSET('Smelter Look-up'!$F$4,$V2030-4,0)))","v":""},{"$f":"IF(ISERROR($V2030),\"\",OFFSET('Smelter Look-up'!$G$4,$V2030-4,0))","v":""},{"$f":"IF(ISERROR($V2030),\"\",OFFSET('Smelter Look-up'!$H$4,$V2030-4,0))","v":""},{"$f":"IF(ISERROR($V2030),\"\",OFFSET('Smelter Look-up'!$I$4,$V2030-4,0))","v":""},{"$nulls":7},{"$f":"IF(ISERROR($V2030),\"\",OFFSET('Smelter Look-up'!$C$4,$V2030-4,0)&\"\")","v":""},"",{"$f":"IF(B2030=\"\",\"\",IF(ISERROR(MATCH($J2030,SorP!$B$1:$B$5661,0)),\"\",INDIRECT(\"'SorP'!$A$\"&MATCH($J2030,SorP!$B$1:$B$5661,0))))","v":""},null,{"$f":"IF(C2030=\"\",NA(),MATCH($B2030&$C2030,'Smelter Look-up'!$J:$J,0))","v":{"$error":"#N/A"}},null,0,null,null,null,""]
[null,{"$f":"IF(LEN(A2031)=0,\"\",INDEX('Smelter Look-up'!$A:$A,MATCH($A2031,'Smelter Look-up'!$E:$E,0)))","v":""},{"$f":"IF(LEN(A2031)=0,\"\",INDEX('Smelter Look-up'!$C:$C,MATCH($A2031,'Smelter Look-up'!$E:$E,0)))","v":""},null,{"$f":"IF(ISERROR($V2031),\"\",OFFSET('Smelter Look-up'!$D$4,$V2031-4,0)&\"\")","v":""},{"$f":"IF(ISERROR($V2031),\"\",OFFSET('Smelter Look-up'!$E$4,$V2031-4,0))","v":""},{"$f":"IF(C2031=$X$4,\"Enter smelter details\",IF(ISERROR($V2031),\"\",OFFSET('Smelter Look-up'!$F$4,$V2031-4,0)))","v":""},{"$f":"IF(ISERROR($V2031),\"\",OFFSET('Smelter Look-up'!$G$4,$V2031-4,0))","v":""},{"$f":"IF(ISERROR($V2031),\"\",OFFSET('Smelter Look-up'!$H$4,$V2031-4,0))","v":""},{"$f":"IF(ISERROR($V2031),\"\",OFFSET('Smelter Look-up'!$I$4,$V2031-4,0))","v":""},{"$nulls":7},{"$f":"IF(ISERROR($V2031),\"\",OFFSET('Smelter Look-up'!$C$4,$V2031-4,0)&\"\")","v":""},"",{"$f":"IF(B2031=\"\",\"\",IF(ISERROR(MATCH($J2031,SorP!$B$1:$B$5661,0)),\"\",INDIRECT(\"'SorP'!$A$\"&MATCH($J2031,SorP!$B$1:$B$5661,0))))","v":""},null,{"$f":"IF(C2031=\"\",NA(),MATCH($B2031&$C2031,'Smelter Look-up'!$J:$J,0))","v":{"$error":"#N/A"}},null,0,null,null,null,""]
[null,{"$f":"IF(LEN(A2032)=0,\"\",INDEX('Smelter Look-up'!$A:$A,MATCH($A2032,'Smelter Look-up'!$E:$E,0)))","v":""},{"$f":"IF(LEN(A2032)=0,\"\",INDEX('Smelter Look-up'!$C:$C,MATCH($A2032,'Smelter Look-up'!$E:$E,0)))","v":""},null,{"$f":"IF(ISERROR($V2032),\"\",OFFSET('Smelter Look-up'!$D$4,$V2032-4,0)&\"\")","v":""},{"$f":"IF(ISERROR($V2032),\"\",OFFSET('Smelter Look-up'!$E$4,$V2032-4,0))","v":""},{"$f":"IF(C2032=$X$4,\"Enter smelter details\",IF(ISERROR($V2032),\"\",OFFSET('Smelter Look-up'!$F$4,$V2032-4,0)))","v":""},{"$f":"IF(ISERROR($V2032),\"\",OFFSET('Smelter Look-up'!$G$4,$V2032-4,0))","v":""},{"$f":"IF(ISERROR($V2032),\"\",OFFSET('Smelter Look-up'!$H$4,$V2032-4,0))","v":""},{"$f":"IF(ISERROR($V2032),\"\",OFFSET('Smelter Look-up'!$I$4,$V2032-4,0))","v":""},{"$nulls":7},{"$f":"IF(ISERROR($V2032),\"\",OFFSET('Smelter Look-up'!$C$4,$V2032-4,0)&\"\")","v":""},"",{"$f":"IF(B2032=\"\",\"\",IF(ISERROR(MATCH($J2032,SorP!$B$1:$B$5661,0)),\"\",INDIRECT(\"'SorP'!$A$\"&MATCH($J2032,SorP!$B$1:$B$5661,0))))","v":""},null,{"$f":"IF(C2032=\"\",NA(),MATCH($B2032&$C2032,'Smelter Look-up'!$J:$J,0))","v":{"$error":"#N/A"}},null,0,null,null,null,""]
[null,{"$f":"IF(LEN(A2033)=0,\"\",INDEX('Smelter Look-up'!$A:$A,MATCH($A2033,'Smelter Look-up'!$E:$E,0)))","v":""},{"$f":"IF(LEN(A2033)=0,\"\",INDEX('Smelter Look-up'!$C:$C,MATCH($A2033,'Smelter Look-up'!$E:$E,0)))","v":""},null,{"$f":"IF(ISERROR($V2033),\"\",OFFSET('Smelter Look-up'!$D$4,$V2033-4,0)&\"\")","v":""},{"$f":"IF(ISERROR($V2033),\"\",OFFSET('Smelter Look-up'!$E$4,$V2033-4,0))","v":""},{"$f":"IF(C2033=$X$4,\"Enter smelter details\",IF(ISERROR($V2033),\"\",OFFSET('Smelter Look-up'!$F$4,$V2033-4,0)))","v":""},{"$f":"IF(ISERROR($V2033),\"\",OFFSET('Smelter Look-up'!$G$4,$V2033-4,0))","v":""},{"$f":"IF(ISERROR($V2033),\"\",OFFSET('Smelter Look-up'!$H$4,$V2033-4,0))","v":""},{"$f":"IF(ISERROR($V2033),\"\",OFFSET('Smelter Look-up'!$I$4,$V2033-4,0))","v":""},{"$nulls":7},{"$f":"IF(ISERROR($V2033),\"\",OFFSET('Smelter Look-up'!$C$4,$V2033-4,0)&\"\")","v":""},"",{"$f":"IF(B2033=\"\",\"\",IF(ISERROR(MATCH($J2033,SorP!$B$1:$B$5661,0)),\"\",INDIRECT(\"'SorP'!$A$\"&MATCH($J2033,SorP!$B$1:$B$5661,0))))","v":""},null,{"$f":"IF(C2033=\"\",NA(),MATCH($B2033&$C2033,'Smelter Look-up'!$J:$J,0))","v":{"$error":"#N/A"}},null,0,null,null,null,""]
[null,{"$f":"IF(LEN(A2034)=0,\"\",INDEX('Smelter Look-up'!$A:$A,MATCH($A2034,'Smelter Look-up'!$E:$E,0)))","v":""},{"$f":"IF(LEN(A2034)=0,\"\",INDEX('Smelter Look-up'!$C:$C,MATCH($A2034,'Smelter Look-up'!$E:$E,0)))","v":""},null,{"$f":"IF(ISERROR($V2034),\"\",OFFSET('Smelter Look-up'!$D$4,$V2034-4,0)&\"\")","v":""},{"$f":"IF(ISERROR($V2034),\"\",OFFSET('Smelter Look-up'!$E$4,$V2034-4,0))","v":""},{"$f":"IF(C2034=$X$4,\"Enter smelter details\",IF(ISERROR($V2034),\"\",OFFSET('Smelter Look-up'!$F$4,$V2034-4,0)))","v":""},{"$f":"IF(ISERROR($V2034),\"\",OFFSET('Smelter Look-up'!$G$4,$V2034-4,0))","v":""},{"$f":"IF(ISERROR($V2034),\"\",OFFSET('Smelter Look-up'!$H$4,$V2034-4,0))","v":""},{"$f":"IF(ISERROR($V2034),\"\",OFFSET('Smelter Look-up'!$I$4,$V2034-4,0))","v":""},{"$nulls":7},{"$f":"IF(ISERROR($V2034),\"\",OFFSET('Smelter Look-up'!$C$4,$V2034-4,0)&\"\")","v":""},"",{"$f":"IF(B2034=\"\",\"\",IF(ISERROR(MATCH($J2034,SorP!$B$1:$B$5661,0)),\"\",INDIRECT(\"'SorP'!$A$\"&MATCH($J2034,SorP!$B$1:$B$5661,0))))","v":""},null,{"$f":"IF(C2034=\"\",NA(),MATCH($B2034&$C2034,'Smelter Look-up'!$J:$J,0))","v":{"$error":"#N/A"}},null,0,null,null,null,""]
[null,{"$f":"IF(LEN(A2035)=0,\"\",INDEX('Smelter Look-up'!$A:$A,MATCH($A2035,'Smelter Look-up'!$E:$E,0)))","v":""},{"$f":"IF(LEN(A2035)=0,\"\",INDEX('Smelter Look-up'!$C:$C,MATCH($A2035,'Smelter Look-up'!$E:$E,0)))","v":""},null,{"$f":"IF(ISERROR($V2035),\"\",OFFSET('Smelter Look-up'!$D$4,$V2035-4,0)&\"\")","v":""},{"$f":"IF(ISERROR($V2035),\"\",OFFSET('Smelter Look-up'!$E$4,$V2035-4,0))","v":""},{"$f":"IF(C2035=$X$4,\"Enter smelter details\",IF(ISERROR($V2035),\"\",OFFSET('Smelter Look-up'!$F$4,$V2035-4,0)))","v":""},{"$f":"IF(ISERROR($V2035),\"\",OFFSET('Smelter Look-up'!$G$4,$V2035-4,0))","v":""},{"$f":"IF(ISERROR($V2035),\"\",OFFSET('Smelter Look-up'!$H$4,$V2035-4,0))","v":""},{"$f":"IF(ISERROR($V2035),\"\",OFFSET('Smelter Look-up'!$I$4,$V2035-4,0))","v":""},{"$nulls":7},{"$f":"IF(ISERROR($V2035),\"\",OFFSET('Smelter Look-up'!$C$4,$V2035-4,0)&\"\")","v":""},"",{"$f":"IF(B2035=\"\",\"\",IF(ISERROR(MATCH($J2035,SorP!$B$1:$B$5661,0)),\"\",INDIRECT(\"'SorP'!$A$\"&MATCH($J2035,SorP!$B$1:$B$5661,0))))","v":""},null,{"$f":"IF(C2035=\"\",NA(),MATCH($B2035&$C2035,'Smelter Look-up'!$J:$J,0))","v":{"$error":"#N/A"}},null,0,null,null,null,""]
[null,{"$f":"IF(LEN(A2036)=0,\"\",INDEX('Smelter Look-up'!$A:$A,MATCH($A2036,'Smelter Look-up'!$E:$E,0)))","v":""},{"$f":"IF(LEN(A2036)=0,\"\",INDEX('Smelter Look-up'!$C:$C,MATCH($A2036,'Smelter Look-up'!$E:$E,0)))","v":""},null,{"$f":"IF(ISERROR($V2036),\"\",OFFSET('Smelter Look-up'!$D$4,$V2036-4,0)&\"\")","v":""},{"$f":"IF(ISERROR($V2036),\"\",OFFSET('Smelter Look-up'!$E$4,$V2036-4,0))","v":""},{"$f":"IF(C2036=$X$4,\"Enter smelter details\",IF(ISERROR($V2036),\"\",OFFSET('Smelter Look-up'!$F$4,$V2036-4,0)))","v":""},{"$f":"IF(ISERROR($V2036),\"\",OFFSET('Smelter Look-up'!$G$4,$V2036-4,0))","v":""},{"$f":"IF(ISERROR($V2036),\"\",OFFSET('Smelter Look-up'!$H$4,$V2036-4,0))","v":""},{"$f":"IF(ISERROR($V2036),\"\",OFFSET('Smelter Look-up'!$I$4,$V2036-4,0))","v":""},{"$nulls":7},{"$f":"IF(ISERROR($V2036),\"\",OFFSET('Smelter Look-up'!$C$4,$V2036-4,0)&\"\")","v":""},"",{"$f":"IF(B2036=\"\",\"\",IF(ISERROR(MATCH($J2036,SorP!$B$1:$B$5661,0)),\"\",INDIRECT(\"'SorP'!$A$\"&MATCH($J2036,SorP!$B$1:$B$5661,0))))","v":""},null,{"$f":"IF(C2036=\"\",NA(),MATCH($B2036&$C2036,'Smelter Look-up'!$J:$J,0))","v":{"$error":"#N/A"}},null,0,null,null,null,""]
[null,{"$f":"IF(LEN(A2037)=0,\"\",INDEX('Smelter Look-up'!$A:$A,MATCH($A2037,'Smelter Look-up'!$E:$E,0)))","v":""},{"$f":"IF(LEN(A2037)=0,\"\",INDEX('Smelter Look-up'!$C:$C,MATCH($A2037,'Smelter Look-up'!$E:$E,0)))","v":""},null,{"$f":"IF(ISERROR($V2037),\"\",OFFSET('Smelter Look-up'!$D$4,$V2037-4,0)&\"\")","v":""},{"$f":"IF(ISERROR($V2037),\"\",OFFSET('Smelter Look-up'!$E$4,$V2037-4,0))","v":""},{"$f":"IF(C2037=$X$4,\"Enter smelter details\",IF(ISERROR($V2037),\"\",OFFSET('Smelter Look-up'!$F$4,$V2037-4,0)))","v":""},{"$f":"IF(ISERROR($V2037),\"\",OFFSET('Smelter Look-up'!$G$4,$V2037-4,0))","v":""},{"$f":"IF(ISERROR($V2037),\"\",OFFSET('Smelter Look-up'!$H$4,$V2037-4,0))","v":""},{"$f":"IF(ISERROR($V2037),\"\",OFFSET('Smelter Look-up'!$I$4,$V2037-4,0))","v":""},{"$nulls":7},{"$f":"IF(ISERROR($V2037),\"\",OFFSET('Smelter Look-up'!$C$4,$V2037-4,0)&\"\")","v":""},"",{"$f":"IF(B2037=\"\",\"\",IF(ISERROR(MATCH($J2037,SorP!$B$1:$B$5661,0)),\"\",INDIRECT(\"'SorP'!$A$\"&MATCH($J2037,SorP!$B$1:$B$5661,0))))","v":""},null,{"$f":"IF(C2037=\"\",NA(),MATCH($B2037&$C2037,'Smelter Look-up'!$J:$J,0))","v":{"$error":"#N/A"}},null,0,null,null,null,""]
[null,{"$f":"IF(LEN(A2038)=0,\"\",INDEX('Smelter Look-up'!$A:$A,MATCH($A2038,'Smelter Look-up'!$E:$E,0)))","v":""},{"$f":"IF(LEN(A2038)=0,\"\",INDEX('Smelter Look-up'!$C:$C,MATCH($A2038,'Smelter Look-up'!$E:$E,0)))","v":""},null,{"$f":"IF(ISERROR($V2038),\"\",OFFSET('Smelter Look-up'!$D$4,$V2038-4,0)&\"\")","v":""},{"$f":"IF(ISERROR($V2038),\"\",OFFSET('Smelter Look-up'!$E$4,$V2038-4,0))","v":""},{"$f":"IF(C2038=$X$4,\"Enter smelter details\",IF(ISERROR($V2038),\"\",OFFSET('Smelter Look-up'!$F$4,$V2038-4,0)))","v":""},{"$f":"IF(ISERROR($V2038),\"\",OFFSET('Smelter Look-up'!$G$4,$V2038-4,0))","v":""},{"$f":"IF(ISERROR($V2038),\"\",OFFSET('Smelter Look-up'!$H$4,$V2038-4,0))","v":""},{"$f":"IF(ISERROR($V2038),\"\",OFFSET('Smelter Look-up'!$I$4,$V2038-4,0))","v":""},{"$nulls":7},{"$f":"IF(ISERROR($V2038),\"\",OFFSET('Smelter Look-up'!$C$4,$V2038-4,0)&\"\")","v":""},"",{"$f":"IF(B2038=\"\",\"\",IF(ISERROR(MATCH($J2038,SorP!$B$1:$B$5661,0)),\"\",INDIRECT(\"'SorP'!$A$\"&MATCH($J2038,SorP!$B$1:$B$5661,0))))","v":""},null,{"$f":"IF(C2038=\"\",NA(),MATCH($B2038&$C2038,'Smelter Look-up'!$J:$J,0))","v":{"$error":"#N/A"}},null,0,null,null,null,""]
[null,{"$f":"IF(LEN(A2039)=0,\"\",INDEX('Smelter Look-up'!$A:$A,MATCH($A2039,'Smelter Look-up'!$E:$E,0)))","v":""},{"$f":"IF(LEN(A2039)=0,\"\",INDEX('Smelter Look-up'!$C:$C,MATCH($A2039,'Smelter Look-up'!$E:$E,0)))","v":""},null,{"$f":"IF(ISERROR($V2039),\"\",OFFSET('Smelter Look-up'!$D$4,$V2039-4,0)&\"\")","v":""},{"$f":"IF(ISERROR($V2039),\"\",OFFSET('Smelter Look-up'!$E$4,$V2039-4,0))","v":""},{"$f":"IF(C2039=$X$4,\"Enter smelter details\",IF(ISERROR($V2039),\"\",OFFSET('Smelter Look-up'!$F$4,$V2039-4,0)))","v":""},{"$f":"IF(ISERROR($V2039),\"\",OFFSET('Smelter Look-up'!$G$4,$V2039-4,0))","v":""},{"$f":"IF(ISERROR($V2039),\"\",OFFSET('Smelter Look-up'!$H$4,$V2039-4,0))","v":""},{"$f":"IF(ISERROR($V2039),\"\",OFFSET('Smelter Look-up'!$I$4,$V2039-4,0))","v":""},{"$nulls":7},{"$f":"IF(ISERROR($V2039),\"\",OFFSET('Smelter Look-up'!$C$4,$V2039-4,0)&\"\")","v":""},"",{"$f":"IF(B2039=\"\",\"\",IF(ISERROR(MATCH($J2039,SorP!$B$1:$B$5661,0)),\"\",INDIRECT(\"'SorP'!$A$\"&MATCH($J2039,SorP!$B$1:$B$5661,0))))","v":""},null,{"$f":"IF(C2039=\"\",NA(),MATCH($B2039&$C2039,'Smelter Look-up'!$J:$J,0))","v":{"$error":"#N/A"}},null,0,null,null,null,""]
[null,{"$f":"IF(LEN(A2040)=0,\"\",INDEX('Smelter Look-up'!$A:$A,MATCH($A2040,'Smelter Look-up'!$E:$E,0)))","v":""},{"$f":"IF(LEN(A2040)=0,\"\",INDEX('Smelter Look-up'!$C:$C,MATCH($A2040,'Smelter Look-up'!$E:$E,0)))","v":""},null,{"$f":"IF(ISERROR($V2040),\"\",OFFSET('Smelter Look-up'!$D$4,$V2040-4,0)&\"\")","v":""},{"$f":"IF(ISERROR($V2040),\"\",OFFSET('Smelter Look-up'!$E$4,$V2040-4,0))","v":""},{"$f":"IF(C2040=$X$4,\"Enter smelter details\",IF(ISERROR($V2040),\"\",OFFSET('Smelter Look-up'!$F$4,$V2040-4,0)))","v":""},{"$f":"IF(ISERROR($V2040),\"\",OFFSET('Smelter Look-up'!$G$4,$V2040-4,0))","v":""},{"$f":"IF(ISERROR($V2040),\"\",OFFSET('Smelter Look-up'!$H$4,$V2040-4,0))","v":""},{"$f":"IF(ISERROR($V2040),\"\",OFFSET('Smelter Look-up'!$I$4,$V2040-4,0))","v":""},{"$nulls":7},{"$f":"IF(ISERROR($V2040),\"\",OFFSET('Smelter Look-up'!$C$4,$V2040-4,0)&\"\")","v":""},"",{"$f":"IF(B2040=\"\",\"\",IF(ISERROR(MATCH($J2040,SorP!$B$1:$B$5661,0)),\"\",INDIRECT(\"'SorP'!$A$\"&MATCH($J2040,SorP!$B$1:$B$5661,0))))","v":""},null,{"$f":"IF(C2040=\"\",NA(),MATCH($B2040&$C2040,'Smelter Look-up'!$J:$J,0))","v":{"$error":"#N/A"}},null,0,null,null,null,""]
[null,{"$f":"IF(LEN(A2041)=0,\"\",INDEX('Smelter Look-up'!$A:$A,MATCH($A2041,'Smelter Look-up'!$E:$E,0)))","v":""},{"$f":"IF(LEN(A2041)=0,\"\",INDEX('Smelter Look-up'!$C:$C,MATCH($A2041,'Smelter Look-up'!$E:$E,0)))","v":""},null,{"$f":"IF(ISERROR($V2041),\"\",OFFSET('Smelter Look-up'!$D$4,$V2041-4,0)&\"\")","v":""},{"$f":"IF(ISERROR($V2041),\"\",OFFSET('Smelter Look-up'!$E$4,$V2041-4,0))","v":""},{"$f":"IF(C2041=$X$4,\"Enter smelter details\",IF(ISERROR($V2041),\"\",OFFSET('Smelter Look-up'!$F$4,$V2041-4,0)))","v":""},{"$f":"IF(ISERROR($V2041),\"\",OFFSET('Smelter Look-up'!$G$4,$V2041-4,0))","v":""},{"$f":"IF(ISERROR($V2041),\"\",OFFSET('Smelter Look-up'!$H$4,$V2041-4,0))","v":""},{"$f":"IF(ISERROR($V2041),\"\",OFFSET('Smelter Look-up'!$I$4,$V2041-4,0))","v":""},{"$nulls":7},{"$f":"IF(ISERROR($V2041),\"\",OFFSET('Smelter Look-up'!$C$4,$V2041-4,0)&\"\")","v":""},"",{"$f":"IF(B2041=\"\",\"\",IF(ISERROR(MATCH($J2041,SorP!$B$1:$B$5661,0)),\"\",INDIRECT(\"'SorP'!$A$\"&MATCH($J2041,SorP!$B$1:$B$5661,0))))","v":""},null,{"$f":"IF(C2041=\"\",NA(),MATCH($B2041&$C2041,'Smelter Look-up'!$J:$J,0))","v":{"$error":"#N/A"}},null,0,null,null,null,""]
[null,{"$f":"IF(LEN(A2042)=0,\"\",INDEX('Smelter Look-up'!$A:$A,MATCH($A2042,'Smelter Look-up'!$E:$E,0)))","v":""},{"$f":"IF(LEN(A2042)=0,\"\",INDEX('Smelter Look-up'!$C:$C,MATCH($A2042,'Smelter Look-up'!$E:$E,0)))","v":""},null,{"$f":"IF(ISERROR($V2042),\"\",OFFSET('Smelter Look-up'!$D$4,$V2042-4,0)&\"\")","v":""},{"$f":"IF(ISERROR($V2042),\"\",OFFSET('Smelter Look-up'!$E$4,$V2042-4,0))","v":""},{"$f":"IF(C2042=$X$4,\"Enter smelter details\",IF(ISERROR($V2042),\"\",OFFSET('Smelter Look-up'!$F$4,$V2042-4,0)))","v":""},{"$f":"IF(ISERROR($V2042),\"\",OFFSET('Smelter Look-up'!$G$4,$V2042-4,0))","v":""},{"$f":"IF(ISERROR($V2042),\"\",OFFSET('Smelter Look-up'!$H$4,$V2042-4,0))","v":""},{"$f":"IF(ISERROR($V2042),\"\",OFFSET('Smelter Look-up'!$I$4,$V2042-4,0))","v":""},{"$nulls":7},{"$f":"IF(ISERROR($V2042),\"\",OFFSET('Smelter Look-up'!$C$4,$V2042-4,0)&\"\")","v":""},"",{"$f":"IF(B2042=\"\",\"\",IF(ISERROR(MATCH($J2042,SorP!$B$1:$B$5661,0)),\"\",INDIRECT(\"'SorP'!$A$\"&MATCH($J2042,SorP!$B$1:$B$5661,0))))","v":""},null,{"$f":"IF(C2042=\"\",NA(),MATCH($B2042&$C2042,'Smelter Look-up'!$J:$J,0))","v":{"$error":"#N/A"}},null,0,null,null,null,""]
[null,{"$f":"IF(LEN(A2043)=0,\"\",INDEX('Smelter Look-up'!$A:$A,MATCH($A2043,'Smelter Look-up'!$E:$E,0)))","v":""},{"$f":"IF(LEN(A2043)=0,\"\",INDEX('Smelter Look-up'!$C:$C,MATCH($A2043,'Smelter Look-up'!$E:$E,0)))","v":""},null,{"$f":"IF(ISERROR($V2043),\"\",OFFSET('Smelter Look-up'!$D$4,$V2043-4,0)&\"\")","v":""},{"$f":"IF(ISERROR($V2043),\"\",OFFSET('Smelter Look-up'!$E$4,$V2043-4,0))","v":""},{"$f":"IF(C2043=$X$4,\"Enter smelter details\",IF(ISERROR($V2043),\"\",OFFSET('Smelter Look-up'!$F$4,$V2043-4,0)))","v":""},{"$f":"IF(ISERROR($V2043),\"\",OFFSET('Smelter Look-up'!$G$4,$V2043-4,0))","v":""},{"$f":"IF(ISERROR($V2043),\"\",OFFSET('Smelter Look-up'!$H$4,$V2043-4,0))","v":""},{"$f":"IF(ISERROR($V2043),\"\",OFFSET('Smelter Look-up'!$I$4,$V2043-4,0))","v":""},{"$nulls":7},{"$f":"IF(ISERROR($V2043),\"\",OFFSET('Smelter Look-up'!$C$4,$V2043-4,0)&\"\")","v":""},"",{"$f":"IF(B2043=\"\",\"\",IF(ISERROR(MATCH($J2043,SorP!$B$1:$B$5661,0)),\"\",INDIRECT(\"'SorP'!$A$\"&MATCH($J2043,SorP!$B$1:$B$5661,0))))","v":""},null,{"$f":"IF(C2043=\"\",NA(),MATCH($B2043&$C2043,'Smelter Look-up'!$J:$J,0))","v":{"$error":"#N/A"}},null,0,null,null,null,""]
[null,{"$f":"IF(LEN(A2044)=0,\"\",INDEX('Smelter Look-up'!$A:$A,MATCH($A2044,'Smelter Look-up'!$E:$E,0)))","v":""},{"$f":"IF(LEN(A2044)=0,\"\",INDEX('Smelter Look-up'!$C:$C,MATCH($A2044,'Smelter Look-up'!$E:$E,0)))","v":""},null,{"$f":"IF(ISERROR($V2044),\"\",OFFSET('Smelter Look-up'!$D$4,$V2044-4,0)&\"\")","v":""},{"$f":"IF(ISERROR($V2044),\"\",OFFSET('Smelter Look-up'!$E$4,$V2044-4,0))","v":""},{"$f":"IF(C2044=$X$4,\"Enter smelter details\",IF(ISERROR($V2044),\"\",OFFSET('Smelter Look-up'!$F$4,$V2044-4,0)))","v":""},{"$f":"IF(ISERROR($V2044),\"\",OFFSET('Smelter Look-up'!$G$4,$V2044-4,0))","v":""},{"$f":"IF(ISERROR($V2044),\"\",OFFSET('Smelter Look-up'!$H$4,$V2044-4,0))","v":""},{"$f":"IF(ISERROR($V2044),\"\",OFFSET('Smelter Look-up'!$I$4,$V2044-4,0))","v":""},{"$nulls":7},{"$f":"IF(ISERROR($V2044),\"\",OFFSET('Smelter Look-up'!$C$4,$V2044-4,0)&\"\")","v":""},"",{"$f":"IF(B2044=\"\",\"\",IF(ISERROR(MATCH($J2044,SorP!$B$1:$B$5661,0)),\"\",INDIRECT(\"'SorP'!$A$\"&MATCH($J2044,SorP!$B$1:$B$5661,0))))","v":""},null,{"$f":"IF(C2044=\"\",NA(),MATCH($B2044&$C2044,'Smelter Look-up'!$J:$J,0))","v":{"$error":"#N/A"}},null,0,null,null,null,""]
[null,{"$f":"IF(LEN(A2045)=0,\"\",INDEX('Smelter Look-up'!$A:$A,MATCH($A2045,'Smelter Look-up'!$E:$E,0)))","v":""},{"$f":"IF(LEN(A2045)=0,\"\",INDEX('Smelter Look-up'!$C:$C,MATCH($A2045,'Smelter Look-up'!$E:$E,0)))","v":""},null,{"$f":"IF(ISERROR($V2045),\"\",OFFSET('Smelter Look-up'!$D$4,$V2045-4,0)&\"\")","v":""},{"$f":"IF(ISERROR($V2045),\"\",OFFSET('Smelter Look-up'!$E$4,$V2045-4,0))","v":""},{"$f":"IF(C2045=$X$4,\"Enter smelter details\",IF(ISERROR($V2045),\"\",OFFSET('Smelter Look-up'!$F$4,$V2045-4,0)))","v":""},{"$f":"IF(ISERROR($V2045),\"\",OFFSET('Smelter Look-up'!$G$4,$V2045-4,0))","v":""},{"$f":"IF(ISERROR($V2045),\"\",OFFSET('Smelter Look-up'!$H$4,$V2045-4,0))","v":""},{"$f":"IF(ISERROR($V2045),\"\",OFFSET('Smelter Look-up'!$I$4,$V2045-4,0))","v":""},{"$nulls":7},{"$f":"IF(ISERROR($V2045),\"\",OFFSET('Smelter Look-up'!$C$4,$V2045-4,0)&\"\")","v":""},"",{"$f":"IF(B2045=\"\",\"\",IF(ISERROR(MATCH($J2045,SorP!$B$1:$B$5661,0)),\"\",INDIRECT(\"'SorP'!$A$\"&MATCH($J2045,SorP!$B$1:$B$5661,0))))","v":""},null,{"$f":"IF(C2045=\"\",NA(),MATCH($B2045&$C2045,'Smelter Look-up'!$J:$J,0))","v":{"$error":"#N/A"}},null,0,null,null,null,""]
[null,{"$f":"IF(LEN(A2046)=0,\"\",INDEX('Smelter Look-up'!$A:$A,MATCH($A2046,'Smelter Look-up'!$E:$E,0)))","v":""},{"$f":"IF(LEN(A2046)=0,\"\",INDEX('Smelter Look-up'!$C:$C,MATCH($A2046,'Smelter Look-up'!$E:$E,0)))","v":""},null,{"$f":"IF(ISERROR($V2046),\"\",OFFSET('Smelter Look-up'!$D$4,$V2046-4,0)&\"\")","v":""},{"$f":"IF(ISERROR($V2046),\"\",OFFSET('Smelter Look-up'!$E$4,$V2046-4,0))","v":""},{"$f":"IF(C2046=$X$4,\"Enter smelter details\",IF(ISERROR($V2046),\"\",OFFSET('Smelter Look-up'!$F$4,$V2046-4,0)))","v":""},{"$f":"IF(ISERROR($V2046),\"\",OFFSET('Smelter Look-up'!$G$4,$V2046-4,0))","v":""},{"$f":"IF(ISERROR($V2046),\"\",OFFSET('Smelter Look-up'!$H$4,$V2046-4,0))","v":""},{"$f":"IF(ISERROR($V2046),\"\",OFFSET('Smelter Look-up'!$I$4,$V2046-4,0))","v":""},{"$nulls":7},{"$f":"IF(ISERROR($V2046),\"\",OFFSET('Smelter Look-up'!$C$4,$V2046-4,0)&\"\")","v":""},"",{"$f":"IF(B2046=\"\",\"\",IF(ISERROR(MATCH($J2046,SorP!$B$1:$B$5661,0)),\"\",INDIRECT(\"'SorP'!$A$\"&MATCH($J2046,SorP!$B$1:$B$5661,0))))","v":""},null,{"$f":"IF(C2046=\"\",NA(),MATCH($B2046&$C2046,'Smelter Look-up'!$J:$J,0))","v":{"$error":"#N/A"}},null,0,null,null,null,""]
[null,{"$f":"IF(LEN(A2047)=0,\"\",INDEX('Smelter Look-up'!$A:$A,MATCH($A2047,'Smelter Look-up'!$E:$E,0)))","v":""},{"$f":"IF(LEN(A2047)=0,\"\",INDEX('Smelter Look-up'!$C:$C,MATCH($A2047,'Smelter Look-up'!$E:$E,0)))","v":""},null,{"$f":"IF(ISERROR($V2047),\"\",OFFSET('Smelter Look-up'!$D$4,$V2047-4,0)&\"\")","v":""},{"$f":"IF(ISERROR($V2047),\"\",OFFSET('Smelter Look-up'!$E$4,$V2047-4,0))","v":""},{"$f":"IF(C2047=$X$4,\"Enter smelter details\",IF(ISERROR($V2047),\"\",OFFSET('Smelter Look-up'!$F$4,$V2047-4,0)))","v":""},{"$f":"IF(ISERROR($V2047),\"\",OFFSET('Smelter Look-up'!$G$4,$V2047-4,0))","v":""},{"$f":"IF(ISERROR($V2047),\"\",OFFSET('Smelter Look-up'!$H$4,$V2047-4,0))","v":""},{"$f":"IF(ISERROR($V2047),\"\",OFFSET('Smelter Look-up'!$I$4,$V2047-4,0))","v":""},{"$nulls":7},{"$f":"IF(ISERROR($V2047),\"\",OFFSET('Smelter Look-up'!$C$4,$V2047-4,0)&\"\")","v":""},"",{"$f":"IF(B2047=\"\",\"\",IF(ISERROR(MATCH($J2047,SorP!$B$1:$B$5661,0)),\"\",INDIRECT(\"'SorP'!$A$\"&MATCH($J2047,SorP!$B$1:$B$5661,0))))","v":""},null,{"$f":"IF(C2047=\"\",NA(),MATCH($B2047&$C2047,'Smelter Look-up'!$J:$J,0))","v":{"$error":"#N/A"}},null,{"$f":"IF(AND(C2047=\"Smelter not listed\",OR(LEN(D2047)=0,LEN(E2047)=0)),1,0)","v":0},null,null,null,{"$f":"B2047&C2047","v":""}]
[null,{"$f":"IF(LEN(A2048)=0,\"\",INDEX('Smelter Look-up'!$A:$A,MATCH($A2048,'Smelter Look-up'!$E:$E,0)))","v":""},{"$f":"IF(LEN(A2048)=0,\"\",INDEX('Smelter Look-up'!$C:$C,MATCH($A2048,'Smelter Look-up'!$E:$E,0)))","v":""},null,{"$f":"IF(ISERROR($V2048),\"\",OFFSET('Smelter Look-up'!$D$4,$V2048-4,0)&\"\")","v":""},{"$f":"IF(ISERROR($V2048),\"\",OFFSET('Smelter Look-up'!$E$4,$V2048-4,0))","v":""},{"$f":"IF(C2048=$X$4,\"Enter smelter details\",IF(ISERROR($V2048),\"\",OFFSET('Smelter Look-up'!$F$4,$V2048-4,0)))","v":""},{"$f":"IF(ISERROR($V2048),\"\",OFFSET('Smelter Look-up'!$G$4,$V2048-4,0))","v":""},{"$f":"IF(ISERROR($V2048),\"\",OFFSET('Smelter Look-up'!$H$4,$V2048-4,0))","v":""},{"$f":"IF(ISERROR($V2048),\"\",OFFSET('Smelter Look-up'!$I$4,$V2048-4,0))","v":""},{"$nulls":7},{"$f":"IF(ISERROR($V2048),\"\",OFFSET('Smelter Look-up'!$C$4,$V2048-4,0)&\"\")","v":""},{"$f":"IF(B2048=\"\",\"\",IF(ISERROR(MATCH($E2048,CL,0)),\"Unknown\",INDIRECT(\"'C'!$A$\"&MATCH($E2048,CL,0)+1)))","v":""},{"$f":"IF(B2048=\"\",\"\",IF(ISERROR(MATCH($J2048,SorP!$B$1:$B$5661,0)),\"\",INDIRECT(\"'SorP'!$A$\"&MATCH($J2048,SorP!$B$1:$B$5661,0))))","v":""},null,{"$f":"IF(C2048=\"\",NA(),MATCH($B2048&$C2048,'Smelter Look-up'!$J:$J,0))","v":{"$error":"#N/A"}},null,0,null,null,null,""]
[null,{"$f":"IF(LEN(A2049)=0,\"\",INDEX('Smelter Look-up'!$A:$A,MATCH($A2049,'Smelter Look-up'!$E:$E,0)))","v":""},{"$f":"IF(LEN(A2049)=0,\"\",INDEX('Smelter Look-up'!$C:$C,MATCH($A2049,'Smelter Look-up'!$E:$E,0)))","v":""},null,{"$f":"IF(ISERROR($V2049),\"\",OFFSET('Smelter Look-up'!$D$4,$V2049-4,0)&\"\")","v":""},{"$f":"IF(ISERROR($V2049),\"\",OFFSET('Smelter Look-up'!$E$4,$V2049-4,0))","v":""},{"$f":"IF(C2049=$X$4,\"Enter smelter details\",IF(ISERROR($V2049),\"\",OFFSET('Smelter Look-up'!$F$4,$V2049-4,0)))","v":""},{"$f":"IF(ISERROR($V2049),\"\",OFFSET('Smelter Look-up'!$G$4,$V2049-4,0))","v":""},{"$f":"IF(ISERROR($V2049),\"\",OFFSET('Smelter Look-up'!$H$4,$V2049-4,0))","v":""},{"$f":"IF(ISERROR($V2049),\"\",OFFSET('Smelter Look-up'!$I$4,$V2049-4,0))","v":""},{"$nulls":7},{"$f":"IF(ISERROR($V2049),\"\",OFFSET('Smelter Look-up'!$C$4,$V2049-4,0)&\"\")","v":""},"",{"$f":"IF(B2049=\"\",\"\",IF(ISERROR(MATCH($J2049,SorP!$B$1:$B$5661,0)),\"\",INDIRECT(\"'SorP'!$A$\"&MATCH($J2049,SorP!$B$1:$B$5661,0))))","v":""},null,{"$f":"IF(C2049=\"\",NA(),MATCH($B2049&$C2049,'Smelter Look-up'!$J:$J,0))","v":{"$error":"#N/A"}},null,0,null,null,null,""]
[null,{"$f":"IF(LEN(A2050)=0,\"\",INDEX('Smelter Look-up'!$A:$A,MATCH($A2050,'Smelter Look-up'!$E:$E,0)))","v":""},{"$f":"IF(LEN(A2050)=0,\"\",INDEX('Smelter Look-up'!$C:$C,MATCH($A2050,'Smelter Look-up'!$E:$E,0)))","v":""},null,{"$f":"IF(ISERROR($V2050),\"\",OFFSET('Smelter Look-up'!$D$4,$V2050-4,0)&\"\")","v":""},{"$f":"IF(ISERROR($V2050),\"\",OFFSET('Smelter Look-up'!$E$4,$V2050-4,0))","v":""},{"$f":"IF(C2050=$X$4,\"Enter smelter details\",IF(ISERROR($V2050),\"\",OFFSET('Smelter Look-up'!$F$4,$V2050-4,0)))","v":""},{"$f":"IF(ISERROR($V2050),\"\",OFFSET('Smelter Look-up'!$G$4,$V2050-4,0))","v":""},{"$f":"IF(ISERROR($V2050),\"\",OFFSET('Smelter Look-up'!$H$4,$V2050-4,0))","v":""},{"$f":"IF(ISERROR($V2050),\"\",OFFSET('Smelter Look-up'!$I$4,$V2050-4,0))","v":""},{"$nulls":7},{"$f":"IF(ISERROR($V2050),\"\",OFFSET('Smelter Look-up'!$C$4,$V2050-4,0)&\"\")","v":""},"",{"$f":"IF(B2050=\"\",\"\",IF(ISERROR(MATCH($J2050,SorP!$B$1:$B$5661,0)),\"\",INDIRECT(\"'SorP'!$A$\"&MATCH($J2050,SorP!$B$1:$B$5661,0))))","v":""},null,{"$f":"IF(C2050=\"\",NA(),MATCH($B2050&$C2050,'Smelter Look-up'!$J:$J,0))","v":{"$error":"#N/A"}},null,0,null,null,null,""]
[null,{"$f":"IF(LEN(A2051)=0,\"\",INDEX('Smelter Look-up'!$A:$A,MATCH($A2051,'Smelter Look-up'!$E:$E,0)))","v":""},{"$f":"IF(LEN(A2051)=0,\"\",INDEX('Smelter Look-up'!$C:$C,MATCH($A2051,'Smelter Look-up'!$E:$E,0)))","v":""},null,{"$f":"IF(ISERROR($V2051),\"\",OFFSET('Smelter Look-up'!$D$4,$V2051-4,0)&\"\")","v":""},{"$f":"IF(ISERROR($V2051),\"\",OFFSET('Smelter Look-up'!$E$4,$V2051-4,0))","v":""},{"$f":"IF(C2051=$X$4,\"Enter smelter details\",IF(ISERROR($V2051),\"\",OFFSET('Smelter Look-up'!$F$4,$V2051-4,0)))","v":""},{"$f":"IF(ISERROR($V2051),\"\",OFFSET('Smelter Look-up'!$G$4,$V2051-4,0))","v":""},{"$f":"IF(ISERROR($V2051),\"\",OFFSET('Smelter Look-up'!$H$4,$V2051-4,0))","v":""},{"$f":"IF(ISERROR($V2051),\"\",OFFSET('Smelter Look-up'!$I$4,$V2051-4,0))","v":""},{"$nulls":7},{"$f":"IF(ISERROR($V2051),\"\",OFFSET('Smelter Look-up'!$C$4,$V2051-4,0)&\"\")","v":""},"",{"$f":"IF(B2051=\"\",\"\",IF(ISERROR(MATCH($J2051,SorP!$B$1:$B$5661,0)),\"\",INDIRECT(\"'SorP'!$A$\"&MATCH($J2051,SorP!$B$1:$B$5661,0))))","v":""},null,{"$f":"IF(C2051=\"\",NA(),MATCH($B2051&$C2051,'Smelter Look-up'!$J:$J,0))","v":{"$error":"#N/A"}},null,0,null,null,null,""]
[null,{"$f":"IF(LEN(A2052)=0,\"\",INDEX('Smelter Look-up'!$A:$A,MATCH($A2052,'Smelter Look-up'!$E:$E,0)))","v":""},{"$f":"IF(LEN(A2052)=0,\"\",INDEX('Smelter Look-up'!$C:$C,MATCH($A2052,'Smelter Look-up'!$E:$E,0)))","v":""},null,{"$f":"IF(ISERROR($V2052),\"\",OFFSET('Smelter Look-up'!$D$4,$V2052-4,0)&\"\")","v":""},{"$f":"IF(ISERROR($V2052),\"\",OFFSET('Smelter Look-up'!$E$4,$V2052-4,0))","v":""},{"$f":"IF(C2052=$X$4,\"Enter smelter details\",IF(ISERROR($V2052),\"\",OFFSET('Smelter Look-up'!$F$4,$V2052-4,0)))","v":""},{"$f":"IF(ISERROR($V2052),\"\",OFFSET('Smelter Look-up'!$G$4,$V2052-4,0))","v":""},{"$f":"IF(ISERROR($V2052),\"\",OFFSET('Smelter Look-up'!$H$4,$V2052-4,0))","v":""},{"$f":"IF(ISERROR($V2052),\"\",OFFSET('Smelter Look-up'!$I$4,$V2052-4,0))","v":""},{"$nulls":7},{"$f":"IF(ISERROR($V2052),\"\",OFFSET('Smelter Look-up'!$C$4,$V2052-4,0)&\"\")","v":""},"",{"$f":"IF(B2052=\"\",\"\",IF(ISERROR(MATCH($J2052,SorP!$B$1:$B$5661,0)),\"\",INDIRECT(\"'SorP'!$A$\"&MATCH($J2052,SorP!$B$1:$B$5661,0))))","v":""},null,{"$f":"IF(C2052=\"\",NA(),MATCH($B2052&$C2052,'Smelter Look-up'!$J:$J,0))","v":{"$error":"#N/A"}},null,0,null,null,null,""]
[null,{"$f":"IF(LEN(A2053)=0,\"\",INDEX('Smelter Look-up'!$A:$A,MATCH($A2053,'Smelter Look-up'!$E:$E,0)))","v":""},{"$f":"IF(LEN(A2053)=0,\"\",INDEX('Smelter Look-up'!$C:$C,MATCH($A2053,'Smelter Look-up'!$E:$E,0)))","v":""},null,{"$f":"IF(ISERROR($V2053),\"\",OFFSET('Smelter Look-up'!$D$4,$V2053-4,0)&\"\")","v":""},{"$f":"IF(ISERROR($V2053),\"\",OFFSET('Smelter Look-up'!$E$4,$V2053-4,0))","v":""},{"$f":"IF(C2053=$X$4,\"Enter smelter details\",IF(ISERROR($V2053),\"\",OFFSET('Smelter Look-up'!$F$4,$V2053-4,0)))","v":""},{"$f":"IF(ISERROR($V2053),\"\",OFFSET('Smelter Look-up'!$G$4,$V2053-4,0))","v":""},{"$f":"IF(ISERROR($V2053),\"\",OFFSET('Smelter Look-up'!$H$4,$V2053-4,0))","v":""},{"$f":"IF(ISERROR($V2053),\"\",OFFSET('Smelter Look-up'!$I$4,$V2053-4,0))","v":""},{"$nulls":7},{"$f":"IF(ISERROR($V2053),\"\",OFFSET('Smelter Look-up'!$C$4,$V2053-4,0)&\"\")","v":""},"",{"$f":"IF(B2053=\"\",\"\",IF(ISERROR(MATCH($J2053,SorP!$B$1:$B$5661,0)),\"\",INDIRECT(\"'SorP'!$A$\"&MATCH($J2053,SorP!$B$1:$B$5661,0))))","v":""},null,{"$f":"IF(C2053=\"\",NA(),MATCH($B2053&$C2053,'Smelter Look-up'!$J:$J,0))","v":{"$error":"#N/A"}},null,0,null,null,null,""]
[null,{"$f":"IF(LEN(A2054)=0,\"\",INDEX('Smelter Look-up'!$A:$A,MATCH($A2054,'Smelter Look-up'!$E:$E,0)))","v":""},{"$f":"IF(LEN(A2054)=0,\"\",INDEX('Smelter Look-up'!$C:$C,MATCH($A2054,'Smelter Look-up'!$E:$E,0)))","v":""},null,{"$f":"IF(ISERROR($V2054),\"\",OFFSET('Smelter Look-up'!$D$4,$V2054-4,0)&\"\")","v":""},{"$f":"IF(ISERROR($V2054),\"\",OFFSET('Smelter Look-up'!$E$4,$V2054-4,0))","v":""},{"$f":"IF(C2054=$X$4,\"Enter smelter details\",IF(ISERROR($V2054),\"\",OFFSET('Smelter Look-up'!$F$4,$V2054-4,0)))","v":""},{"$f":"IF(ISERROR($V2054),\"\",OFFSET('Smelter Look-up'!$G$4,$V2054-4,0))","v":""},{"$f":"IF(ISERROR($V2054),\"\",OFFSET('Smelter Look-up'!$H$4,$V2054-4,0))","v":""},{"$f":"IF(ISERROR($V2054),\"\",OFFSET('Smelter Look-up'!$I$4,$V2054-4,0))","v":""},{"$nulls":7},{"$f":"IF(ISERROR($V2054),\"\",OFFSET('Smelter Look-up'!$C$4,$V2054-4,0)&\"\")","v":""},"",{"$f":"IF(B2054=\"\",\"\",IF(ISERROR(MATCH($J2054,SorP!$B$1:$B$5661,0)),\"\",INDIRECT(\"'SorP'!$A$\"&MATCH($J2054,SorP!$B$1:$B$5661,0))))","v":""},null,{"$f":"IF(C2054=\"\",NA(),MATCH($B2054&$C2054,'Smelter Look-up'!$J:$J,0))","v":{"$error":"#N/A"}},null,0,null,null,null,""]
[null,{"$f":"IF(LEN(A2055)=0,\"\",INDEX('Smelter Look-up'!$A:$A,MATCH($A2055,'Smelter Look-up'!$E:$E,0)))","v":""},{"$f":"IF(LEN(A2055)=0,\"\",INDEX('Smelter Look-up'!$C:$C,MATCH($A2055,'Smelter Look-up'!$E:$E,0)))","v":""},null,{"$f":"IF(ISERROR($V2055),\"\",OFFSET('Smelter Look-up'!$D$4,$V2055-4,0)&\"\")","v":""},{"$f":"IF(ISERROR($V2055),\"\",OFFSET('Smelter Look-up'!$E$4,$V2055-4,0))","v":""},{"$f":"IF(C2055=$X$4,\"Enter smelter details\",IF(ISERROR($V2055),\"\",OFFSET('Smelter Look-up'!$F$4,$V2055-4,0)))","v":""},{"$f":"IF(ISERROR($V2055),\"\",OFFSET('Smelter Look-up'!$G$4,$V2055-4,0))","v":""},{"$f":"IF(ISERROR($V2055),\"\",OFFSET('Smelter Look-up'!$H$4,$V2055-4,0))","v":""},{"$f":"IF(ISERROR($V2055),\"\",OFFSET('Smelter Look-up'!$I$4,$V2055-4,0))","v":""},{"$nulls":7},{"$f":"IF(ISERROR($V2055),\"\",OFFSET('Smelter Look-up'!$C$4,$V2055-4,0)&\"\")","v":""},"",{"$f":"IF(B2055=\"\",\"\",IF(ISERROR(MATCH($J2055,SorP!$B$1:$B$5661,0)),\"\",INDIRECT(\"'SorP'!$A$\"&MATCH($J2055,SorP!$B$1:$B$5661,0))))","v":""},null,{"$f":"IF(C2055=\"\",NA(),MATCH($B2055&$C2055,'Smelter Look-up'!$J:$J,0))","v":{"$error":"#N/A"}},null,0,null,null,null,""]
[null,{"$f":"IF(LEN(A2056)=0,\"\",INDEX('Smelter Look-up'!$A:$A,MATCH($A2056,'Smelter Look-up'!$E:$E,0)))","v":""},{"$f":"IF(LEN(A2056)=0,\"\",INDEX('Smelter Look-up'!$C:$C,MATCH($A2056,'Smelter Look-up'!$E:$E,0)))","v":""},null,{"$f":"IF(ISERROR($V2056),\"\",OFFSET('Smelter Look-up'!$D$4,$V2056-4,0)&\"\")","v":""},{"$f":"IF(ISERROR($V2056),\"\",OFFSET('Smelter Look-up'!$E$4,$V2056-4,0))","v":""},{"$f":"IF(C2056=$X$4,\"Enter smelter details\",IF(ISERROR($V2056),\"\",OFFSET('Smelter Look-up'!$F$4,$V2056-4,0)))","v":""},{"$f":"IF(ISERROR($V2056),\"\",OFFSET('Smelter Look-up'!$G$4,$V2056-4,0))","v":""},{"$f":"IF(ISERROR($V2056),\"\",OFFSET('Smelter Look-up'!$H$4,$V2056-4,0))","v":""},{"$f":"IF(ISERROR($V2056),\"\",OFFSET('Smelter Look-up'!$I$4,$V2056-4,0))","v":""},{"$nulls":7},{"$f":"IF(ISERROR($V2056),\"\",OFFSET('Smelter Look-up'!$C$4,$V2056-4,0)&\"\")","v":""},"",{"$f":"IF(B2056=\"\",\"\",IF(ISERROR(MATCH($J2056,SorP!$B$1:$B$5661,0)),\"\",INDIRECT(\"'SorP'!$A$\"&MATCH($J2056,SorP!$B$1:$B$5661,0))))","v":""},null,{"$f":"IF(C2056=\"\",NA(),MATCH($B2056&$C2056,'Smelter Look-up'!$J:$J,0))","v":{"$error":"#N/A"}},null,0,null,null,null,""]
[null,{"$f":"IF(LEN(A2057)=0,\"\",INDEX('Smelter Look-up'!$A:$A,MATCH($A2057,'Smelter Look-up'!$E:$E,0)))","v":""},{"$f":"IF(LEN(A2057)=0,\"\",INDEX('Smelter Look-up'!$C:$C,MATCH($A2057,'Smelter Look-up'!$E:$E,0)))","v":""},null,{"$f":"IF(ISERROR($V2057),\"\",OFFSET('Smelter Look-up'!$D$4,$V2057-4,0)&\"\")","v":""},{"$f":"IF(ISERROR($V2057),\"\",OFFSET('Smelter Look-up'!$E$4,$V2057-4,0))","v":""},{"$f":"IF(C2057=$X$4,\"Enter smelter details\",IF(ISERROR($V2057),\"\",OFFSET('Smelter Look-up'!$F$4,$V2057-4,0)))","v":""},{"$f":"IF(ISERROR($V2057),\"\",OFFSET('Smelter Look-up'!$G$4,$V2057-4,0))","v":""},{"$f":"IF(ISERROR($V2057),\"\",OFFSET('Smelter Look-up'!$H$4,$V2057-4,0))","v":""},{"$f":"IF(ISERROR($V2057),\"\",OFFSET('Smelter Look-up'!$I$4,$V2057-4,0))","v":""},{"$nulls":7},{"$f":"IF(ISERROR($V2057),\"\",OFFSET('Smelter Look-up'!$C$4,$V2057-4,0)&\"\")","v":""},"",{"$f":"IF(B2057=\"\",\"\",IF(ISERROR(MATCH($J2057,SorP!$B$1:$B$5661,0)),\"\",INDIRECT(\"'SorP'!$A$\"&MATCH($J2057,SorP!$B$1:$B$5661,0))))","v":""},null,{"$f":"IF(C2057=\"\",NA(),MATCH($B2057&$C2057,'Smelter Look-up'!$J:$J,0))","v":{"$error":"#N/A"}},null,0,null,null,null,""]
[null,{"$f":"IF(LEN(A2058)=0,\"\",INDEX('Smelter Look-up'!$A:$A,MATCH($A2058,'Smelter Look-up'!$E:$E,0)))","v":""},{"$f":"IF(LEN(A2058)=0,\"\",INDEX('Smelter Look-up'!$C:$C,MATCH($A2058,'Smelter Look-up'!$E:$E,0)))","v":""},null,{"$f":"IF(ISERROR($V2058),\"\",OFFSET('Smelter Look-up'!$D$4,$V2058-4,0)&\"\")","v":""},{"$f":"IF(ISERROR($V2058),\"\",OFFSET('Smelter Look-up'!$E$4,$V2058-4,0))","v":""},{"$f":"IF(C2058=$X$4,\"Enter smelter details\",IF(ISERROR($V2058),\"\",OFFSET('Smelter Look-up'!$F$4,$V2058-4,0)))","v":""},{"$f":"IF(ISERROR($V2058),\"\",OFFSET('Smelter Look-up'!$G$4,$V2058-4,0))","v":""},{"$f":"IF(ISERROR($V2058),\"\",OFFSET('Smelter Look-up'!$H$4,$V2058-4,0))","v":""},{"$f":"IF(ISERROR($V2058),\"\",OFFSET('Smelter Look-up'!$I$4,$V2058-4,0))","v":""},{"$nulls":7},{"$f":"IF(ISERROR($V2058),\"\",OFFSET('Smelter Look-up'!$C$4,$V2058-4,0)&\"\")","v":""},"",{"$f":"IF(B2058=\"\",\"\",IF(ISERROR(MATCH($J2058,SorP!$B$1:$B$5661,0)),\"\",INDIRECT(\"'SorP'!$A$\"&MATCH($J2058,SorP!$B$1:$B$5661,0))))","v":""},null,{"$f":"IF(C2058=\"\",NA(),MATCH($B2058&$C2058,'Smelter Look-up'!$J:$J,0))","v":{"$error":"#N/A"}},null,0,null,null,null,""]
[null,{"$f":"IF(LEN(A2059)=0,\"\",INDEX('Smelter Look-up'!$A:$A,MATCH($A2059,'Smelter Look-up'!$E:$E,0)))","v":""},{"$f":"IF(LEN(A2059)=0,\"\",INDEX('Smelter Look-up'!$C:$C,MATCH($A2059,'Smelter Look-up'!$E:$E,0)))","v":""},null,{"$f":"IF(ISERROR($V2059),\"\",OFFSET('Smelter Look-up'!$D$4,$V2059-4,0)&\"\")","v":""},{"$f":"IF(ISERROR($V2059),\"\",OFFSET('Smelter Look-up'!$E$4,$V2059-4,0))","v":""},{"$f":"IF(C2059=$X$4,\"Enter smelter details\",IF(ISERROR($V2059),\"\",OFFSET('Smelter Look-up'!$F$4,$V2059-4,0)))","v":""},{"$f":"IF(ISERROR($V2059),\"\",OFFSET('Smelter Look-up'!$G$4,$V2059-4,0))","v":""},{"$f":"IF(ISERROR($V2059),\"\",OFFSET('Smelter Look-up'!$H$4,$V2059-4,0))","v":""},{"$f":"IF(ISERROR($V2059),\"\",OFFSET('Smelter Look-up'!$I$4,$V2059-4,0))","v":""},{"$nulls":7},{"$f":"IF(ISERROR($V2059),\"\",OFFSET('Smelter Look-up'!$C$4,$V2059-4,0)&\"\")","v":""},"",{"$f":"IF(B2059=\"\",\"\",IF(ISERROR(MATCH($J2059,SorP!$B$1:$B$5661,0)),\"\",INDIRECT(\"'SorP'!$A$\"&MATCH($J2059,SorP!$B$1:$B$5661,0))))","v":""},null,{"$f":"IF(C2059=\"\",NA(),MATCH($B2059&$C2059,'Smelter Look-up'!$J:$J,0))","v":{"$error":"#N/A"}},null,0,null,null,null,""]
[null,{"$f":"IF(LEN(A2060)=0,\"\",INDEX('Smelter Look-up'!$A:$A,MATCH($A2060,'Smelter Look-up'!$E:$E,0)))","v":""},{"$f":"IF(LEN(A2060)=0,\"\",INDEX('Smelter Look-up'!$C:$C,MATCH($A2060,'Smelter Look-up'!$E:$E,0)))","v":""},null,{"$f":"IF(ISERROR($V2060),\"\",OFFSET('Smelter Look-up'!$D$4,$V2060-4,0)&\"\")","v":""},{"$f":"IF(ISERROR($V2060),\"\",OFFSET('Smelter Look-up'!$E$4,$V2060-4,0))","v":""},{"$f":"IF(C2060=$X$4,\"Enter smelter details\",IF(ISERROR($V2060),\"\",OFFSET('Smelter Look-up'!$F$4,$V2060-4,0)))","v":""},{"$f":"IF(ISERROR($V2060),\"\",OFFSET('Smelter Look-up'!$G$4,$V2060-4,0))","v":""},{"$f":"IF(ISERROR($V2060),\"\",OFFSET('Smelter Look-up'!$H$4,$V2060-4,0))","v":""},{"$f":"IF(ISERROR($V2060),\"\",OFFSET('Smelter Look-up'!$I$4,$V2060-4,0))","v":""},{"$nulls":7},{"$f":"IF(ISERROR($V2060),\"\",OFFSET('Smelter Look-up'!$C$4,$V2060-4,0)&\"\")","v":""},"",{"$f":"IF(B2060=\"\",\"\",IF(ISERROR(MATCH($J2060,SorP!$B$1:$B$5661,0)),\"\",INDIRECT(\"'SorP'!$A$\"&MATCH($J2060,SorP!$B$1:$B$5661,0))))","v":""},null,{"$f":"IF(C2060=\"\",NA(),MATCH($B2060&$C2060,'Smelter Look-up'!$J:$J,0))","v":{"$error":"#N/A"}},null,0,null,null,null,""]
[null,{"$f":"IF(LEN(A2061)=0,\"\",INDEX('Smelter Look-up'!$A:$A,MATCH($A2061,'Smelter Look-up'!$E:$E,0)))","v":""},{"$f":"IF(LEN(A2061)=0,\"\",INDEX('Smelter Look-up'!$C:$C,MATCH($A2061,'Smelter Look-up'!$E:$E,0)))","v":""},null,{"$f":"IF(ISERROR($V2061),\"\",OFFSET('Smelter Look-up'!$D$4,$V2061-4,0)&\"\")","v":""},{"$f":"IF(ISERROR($V2061),\"\",OFFSET('Smelter Look-up'!$E$4,$V2061-4,0))","v":""},{"$f":"IF(C2061=$X$4,\"Enter smelter details\",IF(ISERROR($V2061),\"\",OFFSET('Smelter Look-up'!$F$4,$V2061-4,0)))","v":""},{"$f":"IF(ISERROR($V2061),\"\",OFFSET('Smelter Look-up'!$G$4,$V2061-4,0))","v":""},{"$f":"IF(ISERROR($V2061),\"\",OFFSET('Smelter Look-up'!$H$4,$V2061-4,0))","v":""},{"$f":"IF(ISERROR($V2061),\"\",OFFSET('Smelter Look-up'!$I$4,$V2061-4,0))","v":""},{"$nulls":7},{"$f":"IF(ISERROR($V2061),\"\",OFFSET('Smelter Look-up'!$C$4,$V2061-4,0)&\"\")","v":""},"",{"$f":"IF(B2061=\"\",\"\",IF(ISERROR(MATCH($J2061,SorP!$B$1:$B$5661,0)),\"\",INDIRECT(\"'SorP'!$A$\"&MATCH($J2061,SorP!$B$1:$B$5661,0))))","v":""},null,{"$f":"IF(C2061=\"\",NA(),MATCH($B2061&$C2061,'Smelter Look-up'!$J:$J,0))","v":{"$error":"#N/A"}},null,0,null,null,null,""]
[null,{"$f":"IF(LEN(A2062)=0,\"\",INDEX('Smelter Look-up'!$A:$A,MATCH($A2062,'Smelter Look-up'!$E:$E,0)))","v":""},{"$f":"IF(LEN(A2062)=0,\"\",INDEX('Smelter Look-up'!$C:$C,MATCH($A2062,'Smelter Look-up'!$E:$E,0)))","v":""},null,{"$f":"IF(ISERROR($V2062),\"\",OFFSET('Smelter Look-up'!$D$4,$V2062-4,0)&\"\")","v":""},{"$f":"IF(ISERROR($V2062),\"\",OFFSET('Smelter Look-up'!$E$4,$V2062-4,0))","v":""},{"$f":"IF(C2062=$X$4,\"Enter smelter details\",IF(ISERROR($V2062),\"\",OFFSET('Smelter Look-up'!$F$4,$V2062-4,0)))","v":""},{"$f":"IF(ISERROR($V2062),\"\",OFFSET('Smelter Look-up'!$G$4,$V2062-4,0))","v":""},{"$f":"IF(ISERROR($V2062),\"\",OFFSET('Smelter Look-up'!$H$4,$V2062-4,0))","v":""},{"$f":"IF(ISERROR($V2062),\"\",OFFSET('Smelter Look-up'!$I$4,$V2062-4,0))","v":""},{"$nulls":7},{"$f":"IF(ISERROR($V2062),\"\",OFFSET('Smelter Look-up'!$C$4,$V2062-4,0)&\"\")","v":""},"",{"$f":"IF(B2062=\"\",\"\",IF(ISERROR(MATCH($J2062,SorP!$B$1:$B$5661,0)),\"\",INDIRECT(\"'SorP'!$A$\"&MATCH($J2062,SorP!$B$1:$B$5661,0))))","v":""},null,{"$f":"IF(C2062=\"\",NA(),MATCH($B2062&$C2062,'Smelter Look-up'!$J:$J,0))","v":{"$error":"#N/A"}},null,0,null,null,null,""]
[null,{"$f":"IF(LEN(A2063)=0,\"\",INDEX('Smelter Look-up'!$A:$A,MATCH($A2063,'Smelter Look-up'!$E:$E,0)))","v":""},{"$f":"IF(LEN(A2063)=0,\"\",INDEX('Smelter Look-up'!$C:$C,MATCH($A2063,'Smelter Look-up'!$E:$E,0)))","v":""},null,{"$f":"IF(ISERROR($V2063),\"\",OFFSET('Smelter Look-up'!$D$4,$V2063-4,0)&\"\")","v":""},{"$f":"IF(ISERROR($V2063),\"\",OFFSET('Smelter Look-up'!$E$4,$V2063-4,0))","v":""},{"$f":"IF(C2063=$X$4,\"Enter smelter details\",IF(ISERROR($V2063),\"\",OFFSET('Smelter Look-up'!$F$4,$V2063-4,0)))","v":""},{"$f":"IF(ISERROR($V2063),\"\",OFFSET('Smelter Look-up'!$G$4,$V2063-4,0))","v":""},{"$f":"IF(ISERROR($V2063),\"\",OFFSET('Smelter Look-up'!$H$4,$V2063-4,0))","v":""},{"$f":"IF(ISERROR($V2063),\"\",OFFSET('Smelter Look-up'!$I$4,$V2063-4,0))","v":""},{"$nulls":7},{"$f":"IF(ISERROR($V2063),\"\",OFFSET('Smelter Look-up'!$C$4,$V2063-4,0)&\"\")","v":""},"",{"$f":"IF(B2063=\"\",\"\",IF(ISERROR(MATCH($J2063,SorP!$B$1:$B$5661,0)),\"\",INDIRECT(\"'SorP'!$A$\"&MATCH($J2063,SorP!$B$1:$B$5661,0))))","v":""},null,{"$f":"IF(C2063=\"\",NA(),MATCH($B2063&$C2063,'Smelter Look-up'!$J:$J,0))","v":{"$error":"#N/A"}},null,0,null,null,null,""]
[null,{"$f":"IF(LEN(A2064)=0,\"\",INDEX('Smelter Look-up'!$A:$A,MATCH($A2064,'Smelter Look-up'!$E:$E,0)))","v":""},{"$f":"IF(LEN(A2064)=0,\"\",INDEX('Smelter Look-up'!$C:$C,MATCH($A2064,'Smelter Look-up'!$E:$E,0)))","v":""},null,{"$f":"IF(ISERROR($V2064),\"\",OFFSET('Smelter Look-up'!$D$4,$V2064-4,0)&\"\")","v":""},{"$f":"IF(ISERROR($V2064),\"\",OFFSET('Smelter Look-up'!$E$4,$V2064-4,0))","v":""},{"$f":"IF(C2064=$X$4,\"Enter smelter details\",IF(ISERROR($V2064),\"\",OFFSET('Smelter Look-up'!$F$4,$V2064-4,0)))","v":""},{"$f":"IF(ISERROR($V2064),\"\",OFFSET('Smelter Look-up'!$G$4,$V2064-4,0))","v":""},{"$f":"IF(ISERROR($V2064),\"\",OFFSET('Smelter Look-up'!$H$4,$V2064-4,0))","v":""},{"$f":"IF(ISERROR($V2064),\"\",OFFSET('Smelter Look-up'!$I$4,$V2064-4,0))","v":""},{"$nulls":7},{"$f":"IF(ISERROR($V2064),\"\",OFFSET('Smelter Look-up'!$C$4,$V2064-4,0)&\"\")","v":""},"",{"$f":"IF(B2064=\"\",\"\",IF(ISERROR(MATCH($J2064,SorP!$B$1:$B$5661,0)),\"\",INDIRECT(\"'SorP'!$A$\"&MATCH($J2064,SorP!$B$1:$B$5661,0))))","v":""},null,{"$f":"IF(C2064=\"\",NA(),MATCH($B2064&$C2064,'Smelter Look-up'!$J:$J,0))","v":{"$error":"#N/A"}},null,0,null,null,null,""]
[null,{"$f":"IF(LEN(A2065)=0,\"\",INDEX('Smelter Look-up'!$A:$A,MATCH($A2065,'Smelter Look-up'!$E:$E,0)))","v":""},{"$f":"IF(LEN(A2065)=0,\"\",INDEX('Smelter Look-up'!$C:$C,MATCH($A2065,'Smelter Look-up'!$E:$E,0)))","v":""},null,{"$f":"IF(ISERROR($V2065),\"\",OFFSET('Smelter Look-up'!$D$4,$V2065-4,0)&\"\")","v":""},{"$f":"IF(ISERROR($V2065),\"\",OFFSET('Smelter Look-up'!$E$4,$V2065-4,0))","v":""},{"$f":"IF(C2065=$X$4,\"Enter smelter details\",IF(ISERROR($V2065),\"\",OFFSET('Smelter Look-up'!$F$4,$V2065-4,0)))","v":""},{"$f":"IF(ISERROR($V2065),\"\",OFFSET('Smelter Look-up'!$G$4,$V2065-4,0))","v":""},{"$f":"IF(ISERROR($V2065),\"\",OFFSET('Smelter Look-up'!$H$4,$V2065-4,0))","v":""},{"$f":"IF(ISERROR($V2065),\"\",OFFSET('Smelter Look-up'!$I$4,$V2065-4,0))","v":""},{"$nulls":7},{"$f":"IF(ISERROR($V2065),\"\",OFFSET('Smelter Look-up'!$C$4,$V2065-4,0)&\"\")","v":""},"",{"$f":"IF(B2065=\"\",\"\",IF(ISERROR(MATCH($J2065,SorP!$B$1:$B$5661,0)),\"\",INDIRECT(\"'SorP'!$A$\"&MATCH($J2065,SorP!$B$1:$B$5661,0))))","v":""},null,{"$f":"IF(C2065=\"\",NA(),MATCH($B2065&$C2065,'Smelter Look-up'!$J:$J,0))","v":{"$error":"#N/A"}},null,0,null,null,null,""]
[null,{"$f":"IF(LEN(A2066)=0,\"\",INDEX('Smelter Look-up'!$A:$A,MATCH($A2066,'Smelter Look-up'!$E:$E,0)))","v":""},{"$f":"IF(LEN(A2066)=0,\"\",INDEX('Smelter Look-up'!$C:$C,MATCH($A2066,'Smelter Look-up'!$E:$E,0)))","v":""},null,{"$f":"IF(ISERROR($V2066),\"\",OFFSET('Smelter Look-up'!$D$4,$V2066-4,0)&\"\")","v":""},{"$f":"IF(ISERROR($V2066),\"\",OFFSET('Smelter Look-up'!$E$4,$V2066-4,0))","v":""},{"$f":"IF(C2066=$X$4,\"Enter smelter details\",IF(ISERROR($V2066),\"\",OFFSET('Smelter Look-up'!$F$4,$V2066-4,0)))","v":""},{"$f":"IF(ISERROR($V2066),\"\",OFFSET('Smelter Look-up'!$G$4,$V2066-4,0))","v":""},{"$f":"IF(ISERROR($V2066),\"\",OFFSET('Smelter Look-up'!$H$4,$V2066-4,0))","v":""},{"$f":"IF(ISERROR($V2066),\"\",OFFSET('Smelter Look-up'!$I$4,$V2066-4,0))","v":""},{"$nulls":7},{"$f":"IF(ISERROR($V2066),\"\",OFFSET('Smelter Look-up'!$C$4,$V2066-4,0)&\"\")","v":""},"",{"$f":"IF(B2066=\"\",\"\",IF(ISERROR(MATCH($J2066,SorP!$B$1:$B$5661,0)),\"\",INDIRECT(\"'SorP'!$A$\"&MATCH($J2066,SorP!$B$1:$B$5661,0))))","v":""},null,{"$f":"IF(C2066=\"\",NA(),MATCH($B2066&$C2066,'Smelter Look-up'!$J:$J,0))","v":{"$error":"#N/A"}},null,0,null,null,null,""]
[null,{"$f":"IF(LEN(A2067)=0,\"\",INDEX('Smelter Look-up'!$A:$A,MATCH($A2067,'Smelter Look-up'!$E:$E,0)))","v":""},{"$f":"IF(LEN(A2067)=0,\"\",INDEX('Smelter Look-up'!$C:$C,MATCH($A2067,'Smelter Look-up'!$E:$E,0)))","v":""},null,{"$f":"IF(ISERROR($V2067),\"\",OFFSET('Smelter Look-up'!$D$4,$V2067-4,0)&\"\")","v":""},{"$f":"IF(ISERROR($V2067),\"\",OFFSET('Smelter Look-up'!$E$4,$V2067-4,0))","v":""},{"$f":"IF(C2067=$X$4,\"Enter smelter details\",IF(ISERROR($V2067),\"\",OFFSET('Smelter Look-up'!$F$4,$V2067-4,0)))","v":""},{"$f":"IF(ISERROR($V2067),\"\",OFFSET('Smelter Look-up'!$G$4,$V2067-4,0))","v":""},{"$f":"IF(ISERROR($V2067),\"\",OFFSET('Smelter Look-up'!$H$4,$V2067-4,0))","v":""},{"$f":"IF(ISERROR($V2067),\"\",OFFSET('Smelter Look-up'!$I$4,$V2067-4,0))","v":""},{"$nulls":7},{"$f":"IF(ISERROR($V2067),\"\",OFFSET('Smelter Look-up'!$C$4,$V2067-4,0)&\"\")","v":""},"",{"$f":"IF(B2067=\"\",\"\",IF(ISERROR(MATCH($J2067,SorP!$B$1:$B$5661,0)),\"\",INDIRECT(\"'SorP'!$A$\"&MATCH($J2067,SorP!$B$1:$B$5661,0))))","v":""},null,{"$f":"IF(C2067=\"\",NA(),MATCH($B2067&$C2067,'Smelter Look-up'!$J:$J,0))","v":{"$error":"#N/A"}},null,0,null,null,null,""]
[null,{"$f":"IF(LEN(A2068)=0,\"\",INDEX('Smelter Look-up'!$A:$A,MATCH($A2068,'Smelter Look-up'!$E:$E,0)))","v":""},{"$f":"IF(LEN(A2068)=0,\"\",INDEX('Smelter Look-up'!$C:$C,MATCH($A2068,'Smelter Look-up'!$E:$E,0)))","v":""},null,{"$f":"IF(ISERROR($V2068),\"\",OFFSET('Smelter Look-up'!$D$4,$V2068-4,0)&\"\")","v":""},{"$f":"IF(ISERROR($V2068),\"\",OFFSET('Smelter Look-up'!$E$4,$V2068-4,0))","v":""},{"$f":"IF(C2068=$X$4,\"Enter smelter details\",IF(ISERROR($V2068),\"\",OFFSET('Smelter Look-up'!$F$4,$V2068-4,0)))","v":""},{"$f":"IF(ISERROR($V2068),\"\",OFFSET('Smelter Look-up'!$G$4,$V2068-4,0))","v":""},{"$f":"IF(ISERROR($V2068),\"\",OFFSET('Smelter Look-up'!$H$4,$V2068-4,0))","v":""},{"$f":"IF(ISERROR($V2068),\"\",OFFSET('Smelter Look-up'!$I$4,$V2068-4,0))","v":""},{"$nulls":7},{"$f":"IF(ISERROR($V2068),\"\",OFFSET('Smelter Look-up'!$C$4,$V2068-4,0)&\"\")","v":""},"",{"$f":"IF(B2068=\"\",\"\",IF(ISERROR(MATCH($J2068,SorP!$B$1:$B$5661,0)),\"\",INDIRECT(\"'SorP'!$A$\"&MATCH($J2068,SorP!$B$1:$B$5661,0))))","v":""},null,{"$f":"IF(C2068=\"\",NA(),MATCH($B2068&$C2068,'Smelter Look-up'!$J:$J,0))","v":{"$error":"#N/A"}},null,0,null,null,null,""]
[null,{"$f":"IF(LEN(A2069)=0,\"\",INDEX('Smelter Look-up'!$A:$A,MATCH($A2069,'Smelter Look-up'!$E:$E,0)))","v":""},{"$f":"IF(LEN(A2069)=0,\"\",INDEX('Smelter Look-up'!$C:$C,MATCH($A2069,'Smelter Look-up'!$E:$E,0)))","v":""},null,{"$f":"IF(ISERROR($V2069),\"\",OFFSET('Smelter Look-up'!$D$4,$V2069-4,0)&\"\")","v":""},{"$f":"IF(ISERROR($V2069),\"\",OFFSET('Smelter Look-up'!$E$4,$V2069-4,0))","v":""},{"$f":"IF(C2069=$X$4,\"Enter smelter details\",IF(ISERROR($V2069),\"\",OFFSET('Smelter Look-up'!$F$4,$V2069-4,0)))","v":""},{"$f":"IF(ISERROR($V2069),\"\",OFFSET('Smelter Look-up'!$G$4,$V2069-4,0))","v":""},{"$f":"IF(ISERROR($V2069),\"\",OFFSET('Smelter Look-up'!$H$4,$V2069-4,0))","v":""},{"$f":"IF(ISERROR($V2069),\"\",OFFSET('Smelter Look-up'!$I$4,$V2069-4,0))","v":""},{"$nulls":7},{"$f":"IF(ISERROR($V2069),\"\",OFFSET('Smelter Look-up'!$C$4,$V2069-4,0)&\"\")","v":""},"",{"$f":"IF(B2069=\"\",\"\",IF(ISERROR(MATCH($J2069,SorP!$B$1:$B$5661,0)),\"\",INDIRECT(\"'SorP'!$A$\"&MATCH($J2069,SorP!$B$1:$B$5661,0))))","v":""},null,{"$f":"IF(C2069=\"\",NA(),MATCH($B2069&$C2069,'Smelter Look-up'!$J:$J,0))","v":{"$error":"#N/A"}},null,0,null,null,null,""]
[null,{"$f":"IF(LEN(A2070)=0,\"\",INDEX('Smelter Look-up'!$A:$A,MATCH($A2070,'Smelter Look-up'!$E:$E,0)))","v":""},{"$f":"IF(LEN(A2070)=0,\"\",INDEX('Smelter Look-up'!$C:$C,MATCH($A2070,'Smelter Look-up'!$E:$E,0)))","v":""},null,{"$f":"IF(ISERROR($V2070),\"\",OFFSET('Smelter Look-up'!$D$4,$V2070-4,0)&\"\")","v":""},{"$f":"IF(ISERROR($V2070),\"\",OFFSET('Smelter Look-up'!$E$4,$V2070-4,0))","v":""},{"$f":"IF(C2070=$X$4,\"Enter smelter details\",IF(ISERROR($V2070),\"\",OFFSET('Smelter Look-up'!$F$4,$V2070-4,0)))","v":""},{"$f":"IF(ISERROR($V2070),\"\",OFFSET('Smelter Look-up'!$G$4,$V2070-4,0))","v":""},{"$f":"IF(ISERROR($V2070),\"\",OFFSET('Smelter Look-up'!$H$4,$V2070-4,0))","v":""},{"$f":"IF(ISERROR($V2070),\"\",OFFSET('Smelter Look-up'!$I$4,$V2070-4,0))","v":""},{"$nulls":7},{"$f":"IF(ISERROR($V2070),\"\",OFFSET('Smelter Look-up'!$C$4,$V2070-4,0)&\"\")","v":""},"",{"$f":"IF(B2070=\"\",\"\",IF(ISERROR(MATCH($J2070,SorP!$B$1:$B$5661,0)),\"\",INDIRECT(\"'SorP'!$A$\"&MATCH($J2070,SorP!$B$1:$B$5661,0))))","v":""},null,{"$f":"IF(C2070=\"\",NA(),MATCH($B2070&$C2070,'Smelter Look-up'!$J:$J,0))","v":{"$error":"#N/A"}},null,0,null,null,null,""]
[null,{"$f":"IF(LEN(A2071)=0,\"\",INDEX('Smelter Look-up'!$A:$A,MATCH($A2071,'Smelter Look-up'!$E:$E,0)))","v":""},{"$f":"IF(LEN(A2071)=0,\"\",INDEX('Smelter Look-up'!$C:$C,MATCH($A2071,'Smelter Look-up'!$E:$E,0)))","v":""},null,{"$f":"IF(ISERROR($V2071),\"\",OFFSET('Smelter Look-up'!$D$4,$V2071-4,0)&\"\")","v":""},{"$f":"IF(ISERROR($V2071),\"\",OFFSET('Smelter Look-up'!$E$4,$V2071-4,0))","v":""},{"$f":"IF(C2071=$X$4,\"Enter smelter details\",IF(ISERROR($V2071),\"\",OFFSET('Smelter Look-up'!$F$4,$V2071-4,0)))","v":""},{"$f":"IF(ISERROR($V2071),\"\",OFFSET('Smelter Look-up'!$G$4,$V2071-4,0))","v":""},{"$f":"IF(ISERROR($V2071),\"\",OFFSET('Smelter Look-up'!$H$4,$V2071-4,0))","v":""},{"$f":"IF(ISERROR($V2071),\"\",OFFSET('Smelter Look-up'!$I$4,$V2071-4,0))","v":""},{"$nulls":7},{"$f":"IF(ISERROR($V2071),\"\",OFFSET('Smelter Look-up'!$C$4,$V2071-4,0)&\"\")","v":""},"",{"$f":"IF(B2071=\"\",\"\",IF(ISERROR(MATCH($J2071,SorP!$B$1:$B$5661,0)),\"\",INDIRECT(\"'SorP'!$A$\"&MATCH($J2071,SorP!$B$1:$B$5661,0))))","v":""},null,{"$f":"IF(C2071=\"\",NA(),MATCH($B2071&$C2071,'Smelter Look-up'!$J:$J,0))","v":{"$error":"#N/A"}},null,0,null,null,null,""]
[null,{"$f":"IF(LEN(A2072)=0,\"\",INDEX('Smelter Look-up'!$A:$A,MATCH($A2072,'Smelter Look-up'!$E:$E,0)))","v":""},{"$f":"IF(LEN(A2072)=0,\"\",INDEX('Smelter Look-up'!$C:$C,MATCH($A2072,'Smelter Look-up'!$E:$E,0)))","v":""},null,{"$f":"IF(ISERROR($V2072),\"\",OFFSET('Smelter Look-up'!$D$4,$V2072-4,0)&\"\")","v":""},{"$f":"IF(ISERROR($V2072),\"\",OFFSET('Smelter Look-up'!$E$4,$V2072-4,0))","v":""},{"$f":"IF(C2072=$X$4,\"Enter smelter details\",IF(ISERROR($V2072),\"\",OFFSET('Smelter Look-up'!$F$4,$V2072-4,0)))","v":""},{"$f":"IF(ISERROR($V2072),\"\",OFFSET('Smelter Look-up'!$G$4,$V2072-4,0))","v":""},{"$f":"IF(ISERROR($V2072),\"\",OFFSET('Smelter Look-up'!$H$4,$V2072-4,0))","v":""},{"$f":"IF(ISERROR($V2072),\"\",OFFSET('Smelter Look-up'!$I$4,$V2072-4,0))","v":""},{"$nulls":7},{"$f":"IF(ISERROR($V2072),\"\",OFFSET('Smelter Look-up'!$C$4,$V2072-4,0)&\"\")","v":""},"",{"$f":"IF(B2072=\"\",\"\",IF(ISERROR(MATCH($J2072,SorP!$B$1:$B$5661,0)),\"\",INDIRECT(\"'SorP'!$A$\"&MATCH($J2072,SorP!$B$1:$B$5661,0))))","v":""},null,{"$f":"IF(C2072=\"\",NA(),MATCH($B2072&$C2072,'Smelter Look-up'!$J:$J,0))","v":{"$error":"#N/A"}},null,0,null,null,null,""]
[null,{"$f":"IF(LEN(A2073)=0,\"\",INDEX('Smelter Look-up'!$A:$A,MATCH($A2073,'Smelter Look-up'!$E:$E,0)))","v":""},{"$f":"IF(LEN(A2073)=0,\"\",INDEX('Smelter Look-up'!$C:$C,MATCH($A2073,'Smelter Look-up'!$E:$E,0)))","v":""},null,{"$f":"IF(ISERROR($V2073),\"\",OFFSET('Smelter Look-up'!$D$4,$V2073-4,0)&\"\")","v":""},{"$f":"IF(ISERROR($V2073),\"\",OFFSET('Smelter Look-up'!$E$4,$V2073-4,0))","v":""},{"$f":"IF(C2073=$X$4,\"Enter smelter details\",IF(ISERROR($V2073),\"\",OFFSET('Smelter Look-up'!$F$4,$V2073-4,0)))","v":""},{"$f":"IF(ISERROR($V2073),\"\",OFFSET('Smelter Look-up'!$G$4,$V2073-4,0))","v":""},{"$f":"IF(ISERROR($V2073),\"\",OFFSET('Smelter Look-up'!$H$4,$V2073-4,0))","v":""},{"$f":"IF(ISERROR($V2073),\"\",OFFSET('Smelter Look-up'!$I$4,$V2073-4,0))","v":""},{"$nulls":7},{"$f":"IF(ISERROR($V2073),\"\",OFFSET('Smelter Look-up'!$C$4,$V2073-4,0)&\"\")","v":""},"",{"$f":"IF(B2073=\"\",\"\",IF(ISERROR(MATCH($J2073,SorP!$B$1:$B$5661,0)),\"\",INDIRECT(\"'SorP'!$A$\"&MATCH($J2073,SorP!$B$1:$B$5661,0))))","v":""},null,{"$f":"IF(C2073=\"\",NA(),MATCH($B2073&$C2073,'Smelter Look-up'!$J:$J,0))","v":{"$error":"#N/A"}},null,0,null,null,null,""]
[null,{"$f":"IF(LEN(A2074)=0,\"\",INDEX('Smelter Look-up'!$A:$A,MATCH($A2074,'Smelter Look-up'!$E:$E,0)))","v":""},{"$f":"IF(LEN(A2074)=0,\"\",INDEX('Smelter Look-up'!$C:$C,MATCH($A2074,'Smelter Look-up'!$E:$E,0)))","v":""},null,{"$f":"IF(ISERROR($V2074),\"\",OFFSET('Smelter Look-up'!$D$4,$V2074-4,0)&\"\")","v":""},{"$f":"IF(ISERROR($V2074),\"\",OFFSET('Smelter Look-up'!$E$4,$V2074-4,0))","v":""},{"$f":"IF(C2074=$X$4,\"Enter smelter details\",IF(ISERROR($V2074),\"\",OFFSET('Smelter Look-up'!$F$4,$V2074-4,0)))","v":""},{"$f":"IF(ISERROR($V2074),\"\",OFFSET('Smelter Look-up'!$G$4,$V2074-4,0))","v":""},{"$f":"IF(ISERROR($V2074),\"\",OFFSET('Smelter Look-up'!$H$4,$V2074-4,0))","v":""},{"$f":"IF(ISERROR($V2074),\"\",OFFSET('Smelter Look-up'!$I$4,$V2074-4,0))","v":""},{"$nulls":7},{"$f":"IF(ISERROR($V2074),\"\",OFFSET('Smelter Look-up'!$C$4,$V2074-4,0)&\"\")","v":""},"",{"$f":"IF(B2074=\"\",\"\",IF(ISERROR(MATCH($J2074,SorP!$B$1:$B$5661,0)),\"\",INDIRECT(\"'SorP'!$A$\"&MATCH($J2074,SorP!$B$1:$B$5661,0))))","v":""},null,{"$f":"IF(C2074=\"\",NA(),MATCH($B2074&$C2074,'Smelter Look-up'!$J:$J,0))","v":{"$error":"#N/A"}},null,0,null,null,null,""]
[null,{"$f":"IF(LEN(A2075)=0,\"\",INDEX('Smelter Look-up'!$A:$A,MATCH($A2075,'Smelter Look-up'!$E:$E,0)))","v":""},{"$f":"IF(LEN(A2075)=0,\"\",INDEX('Smelter Look-up'!$C:$C,MATCH($A2075,'Smelter Look-up'!$E:$E,0)))","v":""},null,{"$f":"IF(ISERROR($V2075),\"\",OFFSET('Smelter Look-up'!$D$4,$V2075-4,0)&\"\")","v":""},{"$f":"IF(ISERROR($V2075),\"\",OFFSET('Smelter Look-up'!$E$4,$V2075-4,0))","v":""},{"$f":"IF(C2075=$X$4,\"Enter smelter details\",IF(ISERROR($V2075),\"\",OFFSET('Smelter Look-up'!$F$4,$V2075-4,0)))","v":""},{"$f":"IF(ISERROR($V2075),\"\",OFFSET('Smelter Look-up'!$G$4,$V2075-4,0))","v":""},{"$f":"IF(ISERROR($V2075),\"\",OFFSET('Smelter Look-up'!$H$4,$V2075-4,0))","v":""},{"$f":"IF(ISERROR($V2075),\"\",OFFSET('Smelter Look-up'!$I$4,$V2075-4,0))","v":""},{"$nulls":7},{"$f":"IF(ISERROR($V2075),\"\",OFFSET('Smelter Look-up'!$C$4,$V2075-4,0)&\"\")","v":""},"",{"$f":"IF(B2075=\"\",\"\",IF(ISERROR(MATCH($J2075,SorP!$B$1:$B$5661,0)),\"\",INDIRECT(\"'SorP'!$A$\"&MATCH($J2075,SorP!$B$1:$B$5661,0))))","v":""},null,{"$f":"IF(C2075=\"\",NA(),MATCH($B2075&$C2075,'Smelter Look-up'!$J:$J,0))","v":{"$error":"#N/A"}},null,0,null,null,null,""]
[null,{"$f":"IF(LEN(A2076)=0,\"\",INDEX('Smelter Look-up'!$A:$A,MATCH($A2076,'Smelter Look-up'!$E:$E,0)))","v":""},{"$f":"IF(LEN(A2076)=0,\"\",INDEX('Smelter Look-up'!$C:$C,MATCH($A2076,'Smelter Look-up'!$E:$E,0)))","v":""},null,{"$f":"IF(ISERROR($V2076),\"\",OFFSET('Smelter Look-up'!$D$4,$V2076-4,0)&\"\")","v":""},{"$f":"IF(ISERROR($V2076),\"\",OFFSET('Smelter Look-up'!$E$4,$V2076-4,0))","v":""},{"$f":"IF(C2076=$X$4,\"Enter smelter details\",IF(ISERROR($V2076),\"\",OFFSET('Smelter Look-up'!$F$4,$V2076-4,0)))","v":""},{"$f":"IF(ISERROR($V2076),\"\",OFFSET('Smelter Look-up'!$G$4,$V2076-4,0))","v":""},{"$f":"IF(ISERROR($V2076),\"\",OFFSET('Smelter Look-up'!$H$4,$V2076-4,0))","v":""},{"$f":"IF(ISERROR($V2076),\"\",OFFSET('Smelter Look-up'!$I$4,$V2076-4,0))","v":""},{"$nulls":7},{"$f":"IF(ISERROR($V2076),\"\",OFFSET('Smelter Look-up'!$C$4,$V2076-4,0)&\"\")","v":""},"",{"$f":"IF(B2076=\"\",\"\",IF(ISERROR(MATCH($J2076,SorP!$B$1:$B$5661,0)),\"\",INDIRECT(\"'SorP'!$A$\"&MATCH($J2076,SorP!$B$1:$B$5661,0))))","v":""},null,{"$f":"IF(C2076=\"\",NA(),MATCH($B2076&$C2076,'Smelter Look-up'!$J:$J,0))","v":{"$error":"#N/A"}},null,0,null,null,null,""]
[null,{"$f":"IF(LEN(A2077)=0,\"\",INDEX('Smelter Look-up'!$A:$A,MATCH($A2077,'Smelter Look-up'!$E:$E,0)))","v":""},{"$f":"IF(LEN(A2077)=0,\"\",INDEX('Smelter Look-up'!$C:$C,MATCH($A2077,'Smelter Look-up'!$E:$E,0)))","v":""},null,{"$f":"IF(ISERROR($V2077),\"\",OFFSET('Smelter Look-up'!$D$4,$V2077-4,0)&\"\")","v":""},{"$f":"IF(ISERROR($V2077),\"\",OFFSET('Smelter Look-up'!$E$4,$V2077-4,0))","v":""},{"$f":"IF(C2077=$X$4,\"Enter smelter details\",IF(ISERROR($V2077),\"\",OFFSET('Smelter Look-up'!$F$4,$V2077-4,0)))","v":""},{"$f":"IF(ISERROR($V2077),\"\",OFFSET('Smelter Look-up'!$G$4,$V2077-4,0))","v":""},{"$f":"IF(ISERROR($V2077),\"\",OFFSET('Smelter Look-up'!$H$4,$V2077-4,0))","v":""},{"$f":"IF(ISERROR($V2077),\"\",OFFSET('Smelter Look-up'!$I$4,$V2077-4,0))","v":""},{"$nulls":7},{"$f":"IF(ISERROR($V2077),\"\",OFFSET('Smelter Look-up'!$C$4,$V2077-4,0)&\"\")","v":""},"",{"$f":"IF(B2077=\"\",\"\",IF(ISERROR(MATCH($J2077,SorP!$B$1:$B$5661,0)),\"\",INDIRECT(\"'SorP'!$A$\"&MATCH($J2077,SorP!$B$1:$B$5661,0))))","v":""},null,{"$f":"IF(C2077=\"\",NA(),MATCH($B2077&$C2077,'Smelter Look-up'!$J:$J,0))","v":{"$error":"#N/A"}},null,0,null,null,null,""]
[null,{"$f":"IF(LEN(A2078)=0,\"\",INDEX('Smelter Look-up'!$A:$A,MATCH($A2078,'Smelter Look-up'!$E:$E,0)))","v":""},{"$f":"IF(LEN(A2078)=0,\"\",INDEX('Smelter Look-up'!$C:$C,MATCH($A2078,'Smelter Look-up'!$E:$E,0)))","v":""},null,{"$f":"IF(ISERROR($V2078),\"\",OFFSET('Smelter Look-up'!$D$4,$V2078-4,0)&\"\")","v":""},{"$f":"IF(ISERROR($V2078),\"\",OFFSET('Smelter Look-up'!$E$4,$V2078-4,0))","v":""},{"$f":"IF(C2078=$X$4,\"Enter smelter details\",IF(ISERROR($V2078),\"\",OFFSET('Smelter Look-up'!$F$4,$V2078-4,0)))","v":""},{"$f":"IF(ISERROR($V2078),\"\",OFFSET('Smelter Look-up'!$G$4,$V2078-4,0))","v":""},{"$f":"IF(ISERROR($V2078),\"\",OFFSET('Smelter Look-up'!$H$4,$V2078-4,0))","v":""},{"$f":"IF(ISERROR($V2078),\"\",OFFSET('Smelter Look-up'!$I$4,$V2078-4,0))","v":""},{"$nulls":7},{"$f":"IF(ISERROR($V2078),\"\",OFFSET('Smelter Look-up'!$C$4,$V2078-4,0)&\"\")","v":""},"",{"$f":"IF(B2078=\"\",\"\",IF(ISERROR(MATCH($J2078,SorP!$B$1:$B$5661,0)),\"\",INDIRECT(\"'SorP'!$A$\"&MATCH($J2078,SorP!$B$1:$B$5661,0))))","v":""},null,{"$f":"IF(C2078=\"\",NA(),MATCH($B2078&$C2078,'Smelter Look-up'!$J:$J,0))","v":{"$error":"#N/A"}},null,0,null,null,null,""]
[null,{"$f":"IF(LEN(A2079)=0,\"\",INDEX('Smelter Look-up'!$A:$A,MATCH($A2079,'Smelter Look-up'!$E:$E,0)))","v":""},{"$f":"IF(LEN(A2079)=0,\"\",INDEX('Smelter Look-up'!$C:$C,MATCH($A2079,'Smelter Look-up'!$E:$E,0)))","v":""},null,{"$f":"IF(ISERROR($V2079),\"\",OFFSET('Smelter Look-up'!$D$4,$V2079-4,0)&\"\")","v":""},{"$f":"IF(ISERROR($V2079),\"\",OFFSET('Smelter Look-up'!$E$4,$V2079-4,0))","v":""},{"$f":"IF(C2079=$X$4,\"Enter smelter details\",IF(ISERROR($V2079),\"\",OFFSET('Smelter Look-up'!$F$4,$V2079-4,0)))","v":""},{"$f":"IF(ISERROR($V2079),\"\",OFFSET('Smelter Look-up'!$G$4,$V2079-4,0))","v":""},{"$f":"IF(ISERROR($V2079),\"\",OFFSET('Smelter Look-up'!$H$4,$V2079-4,0))","v":""},{"$f":"IF(ISERROR($V2079),\"\",OFFSET('Smelter Look-up'!$I$4,$V2079-4,0))","v":""},{"$nulls":7},{"$f":"IF(ISERROR($V2079),\"\",OFFSET('Smelter Look-up'!$C$4,$V2079-4,0)&\"\")","v":""},"",{"$f":"IF(B2079=\"\",\"\",IF(ISERROR(MATCH($J2079,SorP!$B$1:$B$5661,0)),\"\",INDIRECT(\"'SorP'!$A$\"&MATCH($J2079,SorP!$B$1:$B$5661,0))))","v":""},null,{"$f":"IF(C2079=\"\",NA(),MATCH($B2079&$C2079,'Smelter Look-up'!$J:$J,0))","v":{"$error":"#N/A"}},null,0,null,null,null,""]
[null,{"$f":"IF(LEN(A2080)=0,\"\",INDEX('Smelter Look-up'!$A:$A,MATCH($A2080,'Smelter Look-up'!$E:$E,0)))","v":""},{"$f":"IF(LEN(A2080)=0,\"\",INDEX('Smelter Look-up'!$C:$C,MATCH($A2080,'Smelter Look-up'!$E:$E,0)))","v":""},null,{"$f":"IF(ISERROR($V2080),\"\",OFFSET('Smelter Look-up'!$D$4,$V2080-4,0)&\"\")","v":""},{"$f":"IF(ISERROR($V2080),\"\",OFFSET('Smelter Look-up'!$E$4,$V2080-4,0))","v":""},{"$f":"IF(C2080=$X$4,\"Enter smelter details\",IF(ISERROR($V2080),\"\",OFFSET('Smelter Look-up'!$F$4,$V2080-4,0)))","v":""},{"$f":"IF(ISERROR($V2080),\"\",OFFSET('Smelter Look-up'!$G$4,$V2080-4,0))","v":""},{"$f":"IF(ISERROR($V2080),\"\",OFFSET('Smelter Look-up'!$H$4,$V2080-4,0))","v":""},{"$f":"IF(ISERROR($V2080),\"\",OFFSET('Smelter Look-up'!$I$4,$V2080-4,0))","v":""},{"$nulls":7},{"$f":"IF(ISERROR($V2080),\"\",OFFSET('Smelter Look-up'!$C$4,$V2080-4,0)&\"\")","v":""},"",{"$f":"IF(B2080=\"\",\"\",IF(ISERROR(MATCH($J2080,SorP!$B$1:$B$5661,0)),\"\",INDIRECT(\"'SorP'!$A$\"&MATCH($J2080,SorP!$B$1:$B$5661,0))))","v":""},null,{"$f":"IF(C2080=\"\",NA(),MATCH($B2080&$C2080,'Smelter Look-up'!$J:$J,0))","v":{"$error":"#N/A"}},null,0,null,null,null,""]
[null,{"$f":"IF(LEN(A2081)=0,\"\",INDEX('Smelter Look-up'!$A:$A,MATCH($A2081,'Smelter Look-up'!$E:$E,0)))","v":""},{"$f":"IF(LEN(A2081)=0,\"\",INDEX('Smelter Look-up'!$C:$C,MATCH($A2081,'Smelter Look-up'!$E:$E,0)))","v":""},null,{"$f":"IF(ISERROR($V2081),\"\",OFFSET('Smelter Look-up'!$D$4,$V2081-4,0)&\"\")","v":""},{"$f":"IF(ISERROR($V2081),\"\",OFFSET('Smelter Look-up'!$E$4,$V2081-4,0))","v":""},{"$f":"IF(C2081=$X$4,\"Enter smelter details\",IF(ISERROR($V2081),\"\",OFFSET('Smelter Look-up'!$F$4,$V2081-4,0)))","v":""},{"$f":"IF(ISERROR($V2081),\"\",OFFSET('Smelter Look-up'!$G$4,$V2081-4,0))","v":""},{"$f":"IF(ISERROR($V2081),\"\",OFFSET('Smelter Look-up'!$H$4,$V2081-4,0))","v":""},{"$f":"IF(ISERROR($V2081),\"\",OFFSET('Smelter Look-up'!$I$4,$V2081-4,0))","v":""},{"$nulls":7},{"$f":"IF(ISERROR($V2081),\"\",OFFSET('Smelter Look-up'!$C$4,$V2081-4,0)&\"\")","v":""},"",{"$f":"IF(B2081=\"\",\"\",IF(ISERROR(MATCH($J2081,SorP!$B$1:$B$5661,0)),\"\",INDIRECT(\"'SorP'!$A$\"&MATCH($J2081,SorP!$B$1:$B$5661,0))))","v":""},null,{"$f":"IF(C2081=\"\",NA(),MATCH($B2081&$C2081,'Smelter Look-up'!$J:$J,0))","v":{"$error":"#N/A"}},null,0,null,null,null,""]
[null,{"$f":"IF(LEN(A2082)=0,\"\",INDEX('Smelter Look-up'!$A:$A,MATCH($A2082,'Smelter Look-up'!$E:$E,0)))","v":""},{"$f":"IF(LEN(A2082)=0,\"\",INDEX('Smelter Look-up'!$C:$C,MATCH($A2082,'Smelter Look-up'!$E:$E,0)))","v":""},null,{"$f":"IF(ISERROR($V2082),\"\",OFFSET('Smelter Look-up'!$D$4,$V2082-4,0)&\"\")","v":""},{"$f":"IF(ISERROR($V2082),\"\",OFFSET('Smelter Look-up'!$E$4,$V2082-4,0))","v":""},{"$f":"IF(C2082=$X$4,\"Enter smelter details\",IF(ISERROR($V2082),\"\",OFFSET('Smelter Look-up'!$F$4,$V2082-4,0)))","v":""},{"$f":"IF(ISERROR($V2082),\"\",OFFSET('Smelter Look-up'!$G$4,$V2082-4,0))","v":""},{"$f":"IF(ISERROR($V2082),\"\",OFFSET('Smelter Look-up'!$H$4,$V2082-4,0))","v":""},{"$f":"IF(ISERROR($V2082),\"\",OFFSET('Smelter Look-up'!$I$4,$V2082-4,0))","v":""},{"$nulls":7},{"$f":"IF(ISERROR($V2082),\"\",OFFSET('Smelter Look-up'!$C$4,$V2082-4,0)&\"\")","v":""},"",{"$f":"IF(B2082=\"\",\"\",IF(ISERROR(MATCH($J2082,SorP!$B$1:$B$5661,0)),\"\",INDIRECT(\"'SorP'!$A$\"&MATCH($J2082,SorP!$B$1:$B$5661,0))))","v":""},null,{"$f":"IF(C2082=\"\",NA(),MATCH($B2082&$C2082,'Smelter Look-up'!$J:$J,0))","v":{"$error":"#N/A"}},null,0,null,null,null,""]
[null,{"$f":"IF(LEN(A2083)=0,\"\",INDEX('Smelter Look-up'!$A:$A,MATCH($A2083,'Smelter Look-up'!$E:$E,0)))","v":""},{"$f":"IF(LEN(A2083)=0,\"\",INDEX('Smelter Look-up'!$C:$C,MATCH($A2083,'Smelter Look-up'!$E:$E,0)))","v":""},null,{"$f":"IF(ISERROR($V2083),\"\",OFFSET('Smelter Look-up'!$D$4,$V2083-4,0)&\"\")","v":""},{"$f":"IF(ISERROR($V2083),\"\",OFFSET('Smelter Look-up'!$E$4,$V2083-4,0))","v":""},{"$f":"IF(C2083=$X$4,\"Enter smelter details\",IF(ISERROR($V2083),\"\",OFFSET('Smelter Look-up'!$F$4,$V2083-4,0)))","v":""},{"$f":"IF(ISERROR($V2083),\"\",OFFSET('Smelter Look-up'!$G$4,$V2083-4,0))","v":""},{"$f":"IF(ISERROR($V2083),\"\",OFFSET('Smelter Look-up'!$H$4,$V2083-4,0))","v":""},{"$f":"IF(ISERROR($V2083),\"\",OFFSET('Smelter Look-up'!$I$4,$V2083-4,0))","v":""},{"$nulls":7},{"$f":"IF(ISERROR($V2083),\"\",OFFSET('Smelter Look-up'!$C$4,$V2083-4,0)&\"\")","v":""},"",{"$f":"IF(B2083=\"\",\"\",IF(ISERROR(MATCH($J2083,SorP!$B$1:$B$5661,0)),\"\",INDIRECT(\"'SorP'!$A$\"&MATCH($J2083,SorP!$B$1:$B$5661,0))))","v":""},null,{"$f":"IF(C2083=\"\",NA(),MATCH($B2083&$C2083,'Smelter Look-up'!$J:$J,0))","v":{"$error":"#N/A"}},null,0,null,null,null,""]
[null,{"$f":"IF(LEN(A2084)=0,\"\",INDEX('Smelter Look-up'!$A:$A,MATCH($A2084,'Smelter Look-up'!$E:$E,0)))","v":""},{"$f":"IF(LEN(A2084)=0,\"\",INDEX('Smelter Look-up'!$C:$C,MATCH($A2084,'Smelter Look-up'!$E:$E,0)))","v":""},null,{"$f":"IF(ISERROR($V2084),\"\",OFFSET('Smelter Look-up'!$D$4,$V2084-4,0)&\"\")","v":""},{"$f":"IF(ISERROR($V2084),\"\",OFFSET('Smelter Look-up'!$E$4,$V2084-4,0))","v":""},{"$f":"IF(C2084=$X$4,\"Enter smelter details\",IF(ISERROR($V2084),\"\",OFFSET('Smelter Look-up'!$F$4,$V2084-4,0)))","v":""},{"$f":"IF(ISERROR($V2084),\"\",OFFSET('Smelter Look-up'!$G$4,$V2084-4,0))","v":""},{"$f":"IF(ISERROR($V2084),\"\",OFFSET('Smelter Look-up'!$H$4,$V2084-4,0))","v":""},{"$f":"IF(ISERROR($V2084),\"\",OFFSET('Smelter Look-up'!$I$4,$V2084-4,0))","v":""},{"$nulls":7},{"$f":"IF(ISERROR($V2084),\"\",OFFSET('Smelter Look-up'!$C$4,$V2084-4,0)&\"\")","v":""},"",{"$f":"IF(B2084=\"\",\"\",IF(ISERROR(MATCH($J2084,SorP!$B$1:$B$5661,0)),\"\",INDIRECT(\"'SorP'!$A$\"&MATCH($J2084,SorP!$B$1:$B$5661,0))))","v":""},null,{"$f":"IF(C2084=\"\",NA(),MATCH($B2084&$C2084,'Smelter Look-up'!$J:$J,0))","v":{"$error":"#N/A"}},null,0,null,null,null,""]
[null,{"$f":"IF(LEN(A2085)=0,\"\",INDEX('Smelter Look-up'!$A:$A,MATCH($A2085,'Smelter Look-up'!$E:$E,0)))","v":""},{"$f":"IF(LEN(A2085)=0,\"\",INDEX('Smelter Look-up'!$C:$C,MATCH($A2085,'Smelter Look-up'!$E:$E,0)))","v":""},null,{"$f":"IF(ISERROR($V2085),\"\",OFFSET('Smelter Look-up'!$D$4,$V2085-4,0)&\"\")","v":""},{"$f":"IF(ISERROR($V2085),\"\",OFFSET('Smelter Look-up'!$E$4,$V2085-4,0))","v":""},{"$f":"IF(C2085=$X$4,\"Enter smelter details\",IF(ISERROR($V2085),\"\",OFFSET('Smelter Look-up'!$F$4,$V2085-4,0)))","v":""},{"$f":"IF(ISERROR($V2085),\"\",OFFSET('Smelter Look-up'!$G$4,$V2085-4,0))","v":""},{"$f":"IF(ISERROR($V2085),\"\",OFFSET('Smelter Look-up'!$H$4,$V2085-4,0))","v":""},{"$f":"IF(ISERROR($V2085),\"\",OFFSET('Smelter Look-up'!$I$4,$V2085-4,0))","v":""},{"$nulls":7},{"$f":"IF(ISERROR($V2085),\"\",OFFSET('Smelter Look-up'!$C$4,$V2085-4,0)&\"\")","v":""},"",{"$f":"IF(B2085=\"\",\"\",IF(ISERROR(MATCH($J2085,SorP!$B$1:$B$5661,0)),\"\",INDIRECT(\"'SorP'!$A$\"&MATCH($J2085,SorP!$B$1:$B$5661,0))))","v":""},null,{"$f":"IF(C2085=\"\",NA(),MATCH($B2085&$C2085,'Smelter Look-up'!$J:$J,0))","v":{"$error":"#N/A"}},null,0,null,null,null,""]
[null,{"$f":"IF(LEN(A2086)=0,\"\",INDEX('Smelter Look-up'!$A:$A,MATCH($A2086,'Smelter Look-up'!$E:$E,0)))","v":""},{"$f":"IF(LEN(A2086)=0,\"\",INDEX('Smelter Look-up'!$C:$C,MATCH($A2086,'Smelter Look-up'!$E:$E,0)))","v":""},null,{"$f":"IF(ISERROR($V2086),\"\",OFFSET('Smelter Look-up'!$D$4,$V2086-4,0)&\"\")","v":""},{"$f":"IF(ISERROR($V2086),\"\",OFFSET('Smelter Look-up'!$E$4,$V2086-4,0))","v":""},{"$f":"IF(C2086=$X$4,\"Enter smelter details\",IF(ISERROR($V2086),\"\",OFFSET('Smelter Look-up'!$F$4,$V2086-4,0)))","v":""},{"$f":"IF(ISERROR($V2086),\"\",OFFSET('Smelter Look-up'!$G$4,$V2086-4,0))","v":""},{"$f":"IF(ISERROR($V2086),\"\",OFFSET('Smelter Look-up'!$H$4,$V2086-4,0))","v":""},{"$f":"IF(ISERROR($V2086),\"\",OFFSET('Smelter Look-up'!$I$4,$V2086-4,0))","v":""},{"$nulls":7},{"$f":"IF(ISERROR($V2086),\"\",OFFSET('Smelter Look-up'!$C$4,$V2086-4,0)&\"\")","v":""},"",{"$f":"IF(B2086=\"\",\"\",IF(ISERROR(MATCH($J2086,SorP!$B$1:$B$5661,0)),\"\",INDIRECT(\"'SorP'!$A$\"&MATCH($J2086,SorP!$B$1:$B$5661,0))))","v":""},null,{"$f":"IF(C2086=\"\",NA(),MATCH($B2086&$C2086,'Smelter Look-up'!$J:$J,0))","v":{"$error":"#N/A"}},null,0,null,null,null,""]
[null,{"$f":"IF(LEN(A2087)=0,\"\",INDEX('Smelter Look-up'!$A:$A,MATCH($A2087,'Smelter Look-up'!$E:$E,0)))","v":""},{"$f":"IF(LEN(A2087)=0,\"\",INDEX('Smelter Look-up'!$C:$C,MATCH($A2087,'Smelter Look-up'!$E:$E,0)))","v":""},null,{"$f":"IF(ISERROR($V2087),\"\",OFFSET('Smelter Look-up'!$D$4,$V2087-4,0)&\"\")","v":""},{"$f":"IF(ISERROR($V2087),\"\",OFFSET('Smelter Look-up'!$E$4,$V2087-4,0))","v":""},{"$f":"IF(C2087=$X$4,\"Enter smelter details\",IF(ISERROR($V2087),\"\",OFFSET('Smelter Look-up'!$F$4,$V2087-4,0)))","v":""},{"$f":"IF(ISERROR($V2087),\"\",OFFSET('Smelter Look-up'!$G$4,$V2087-4,0))","v":""},{"$f":"IF(ISERROR($V2087),\"\",OFFSET('Smelter Look-up'!$H$4,$V2087-4,0))","v":""},{"$f":"IF(ISERROR($V2087),\"\",OFFSET('Smelter Look-up'!$I$4,$V2087-4,0))","v":""},{"$nulls":7},{"$f":"IF(ISERROR($V2087),\"\",OFFSET('Smelter Look-up'!$C$4,$V2087-4,0)&\"\")","v":""},"",{"$f":"IF(B2087=\"\",\"\",IF(ISERROR(MATCH($J2087,SorP!$B$1:$B$5661,0)),\"\",INDIRECT(\"'SorP'!$A$\"&MATCH($J2087,SorP!$B$1:$B$5661,0))))","v":""},null,{"$f":"IF(C2087=\"\",NA(),MATCH($B2087&$C2087,'Smelter Look-up'!$J:$J,0))","v":{"$error":"#N/A"}},null,0,null,null,null,""]
[null,{"$f":"IF(LEN(A2088)=0,\"\",INDEX('Smelter Look-up'!$A:$A,MATCH($A2088,'Smelter Look-up'!$E:$E,0)))","v":""},{"$f":"IF(LEN(A2088)=0,\"\",INDEX('Smelter Look-up'!$C:$C,MATCH($A2088,'Smelter Look-up'!$E:$E,0)))","v":""},null,{"$f":"IF(ISERROR($V2088),\"\",OFFSET('Smelter Look-up'!$D$4,$V2088-4,0)&\"\")","v":""},{"$f":"IF(ISERROR($V2088),\"\",OFFSET('Smelter Look-up'!$E$4,$V2088-4,0))","v":""},{"$f":"IF(C2088=$X$4,\"Enter smelter details\",IF(ISERROR($V2088),\"\",OFFSET('Smelter Look-up'!$F$4,$V2088-4,0)))","v":""},{"$f":"IF(ISERROR($V2088),\"\",OFFSET('Smelter Look-up'!$G$4,$V2088-4,0))","v":""},{"$f":"IF(ISERROR($V2088),\"\",OFFSET('Smelter Look-up'!$H$4,$V2088-4,0))","v":""},{"$f":"IF(ISERROR($V2088),\"\",OFFSET('Smelter Look-up'!$I$4,$V2088-4,0))","v":""},{"$nulls":7},{"$f":"IF(ISERROR($V2088),\"\",OFFSET('Smelter Look-up'!$C$4,$V2088-4,0)&\"\")","v":""},"",{"$f":"IF(B2088=\"\",\"\",IF(ISERROR(MATCH($J2088,SorP!$B$1:$B$5661,0)),\"\",INDIRECT(\"'SorP'!$A$\"&MATCH($J2088,SorP!$B$1:$B$5661,0))))","v":""},null,{"$f":"IF(C2088=\"\",NA(),MATCH($B2088&$C2088,'Smelter Look-up'!$J:$J,0))","v":{"$error":"#N/A"}},null,0,null,null,null,""]
[null,{"$f":"IF(LEN(A2089)=0,\"\",INDEX('Smelter Look-up'!$A:$A,MATCH($A2089,'Smelter Look-up'!$E:$E,0)))","v":""},{"$f":"IF(LEN(A2089)=0,\"\",INDEX('Smelter Look-up'!$C:$C,MATCH($A2089,'Smelter Look-up'!$E:$E,0)))","v":""},null,{"$f":"IF(ISERROR($V2089),\"\",OFFSET('Smelter Look-up'!$D$4,$V2089-4,0)&\"\")","v":""},{"$f":"IF(ISERROR($V2089),\"\",OFFSET('Smelter Look-up'!$E$4,$V2089-4,0))","v":""},{"$f":"IF(C2089=$X$4,\"Enter smelter details\",IF(ISERROR($V2089),\"\",OFFSET('Smelter Look-up'!$F$4,$V2089-4,0)))","v":""},{"$f":"IF(ISERROR($V2089),\"\",OFFSET('Smelter Look-up'!$G$4,$V2089-4,0))","v":""},{"$f":"IF(ISERROR($V2089),\"\",OFFSET('Smelter Look-up'!$H$4,$V2089-4,0))","v":""},{"$f":"IF(ISERROR($V2089),\"\",OFFSET('Smelter Look-up'!$I$4,$V2089-4,0))","v":""},{"$nulls":7},{"$f":"IF(ISERROR($V2089),\"\",OFFSET('Smelter Look-up'!$C$4,$V2089-4,0)&\"\")","v":""},"",{"$f":"IF(B2089=\"\",\"\",IF(ISERROR(MATCH($J2089,SorP!$B$1:$B$5661,0)),\"\",INDIRECT(\"'SorP'!$A$\"&MATCH($J2089,SorP!$B$1:$B$5661,0))))","v":""},null,{"$f":"IF(C2089=\"\",NA(),MATCH($B2089&$C2089,'Smelter Look-up'!$J:$J,0))","v":{"$error":"#N/A"}},null,0,null,null,null,""]
[null,{"$f":"IF(LEN(A2090)=0,\"\",INDEX('Smelter Look-up'!$A:$A,MATCH($A2090,'Smelter Look-up'!$E:$E,0)))","v":""},{"$f":"IF(LEN(A2090)=0,\"\",INDEX('Smelter Look-up'!$C:$C,MATCH($A2090,'Smelter Look-up'!$E:$E,0)))","v":""},null,{"$f":"IF(ISERROR($V2090),\"\",OFFSET('Smelter Look-up'!$D$4,$V2090-4,0)&\"\")","v":""},{"$f":"IF(ISERROR($V2090),\"\",OFFSET('Smelter Look-up'!$E$4,$V2090-4,0))","v":""},{"$f":"IF(C2090=$X$4,\"Enter smelter details\",IF(ISERROR($V2090),\"\",OFFSET('Smelter Look-up'!$F$4,$V2090-4,0)))","v":""},{"$f":"IF(ISERROR($V2090),\"\",OFFSET('Smelter Look-up'!$G$4,$V2090-4,0))","v":""},{"$f":"IF(ISERROR($V2090),\"\",OFFSET('Smelter Look-up'!$H$4,$V2090-4,0))","v":""},{"$f":"IF(ISERROR($V2090),\"\",OFFSET('Smelter Look-up'!$I$4,$V2090-4,0))","v":""},{"$nulls":7},{"$f":"IF(ISERROR($V2090),\"\",OFFSET('Smelter Look-up'!$C$4,$V2090-4,0)&\"\")","v":""},"",{"$f":"IF(B2090=\"\",\"\",IF(ISERROR(MATCH($J2090,SorP!$B$1:$B$5661,0)),\"\",INDIRECT(\"'SorP'!$A$\"&MATCH($J2090,SorP!$B$1:$B$5661,0))))","v":""},null,{"$f":"IF(C2090=\"\",NA(),MATCH($B2090&$C2090,'Smelter Look-up'!$J:$J,0))","v":{"$error":"#N/A"}},null,0,null,null,null,""]
[null,{"$f":"IF(LEN(A2091)=0,\"\",INDEX('Smelter Look-up'!$A:$A,MATCH($A2091,'Smelter Look-up'!$E:$E,0)))","v":""},{"$f":"IF(LEN(A2091)=0,\"\",INDEX('Smelter Look-up'!$C:$C,MATCH($A2091,'Smelter Look-up'!$E:$E,0)))","v":""},null,{"$f":"IF(ISERROR($V2091),\"\",OFFSET('Smelter Look-up'!$D$4,$V2091-4,0)&\"\")","v":""},{"$f":"IF(ISERROR($V2091),\"\",OFFSET('Smelter Look-up'!$E$4,$V2091-4,0))","v":""},{"$f":"IF(C2091=$X$4,\"Enter smelter details\",IF(ISERROR($V2091),\"\",OFFSET('Smelter Look-up'!$F$4,$V2091-4,0)))","v":""},{"$f":"IF(ISERROR($V2091),\"\",OFFSET('Smelter Look-up'!$G$4,$V2091-4,0))","v":""},{"$f":"IF(ISERROR($V2091),\"\",OFFSET('Smelter Look-up'!$H$4,$V2091-4,0))","v":""},{"$f":"IF(ISERROR($V2091),\"\",OFFSET('Smelter Look-up'!$I$4,$V2091-4,0))","v":""},{"$nulls":7},{"$f":"IF(ISERROR($V2091),\"\",OFFSET('Smelter Look-up'!$C$4,$V2091-4,0)&\"\")","v":""},"",{"$f":"IF(B2091=\"\",\"\",IF(ISERROR(MATCH($J2091,SorP!$B$1:$B$5661,0)),\"\",INDIRECT(\"'SorP'!$A$\"&MATCH($J2091,SorP!$B$1:$B$5661,0))))","v":""},null,{"$f":"IF(C2091=\"\",NA(),MATCH($B2091&$C2091,'Smelter Look-up'!$J:$J,0))","v":{"$error":"#N/A"}},null,0,null,null,null,""]
[null,{"$f":"IF(LEN(A2092)=0,\"\",INDEX('Smelter Look-up'!$A:$A,MATCH($A2092,'Smelter Look-up'!$E:$E,0)))","v":""},{"$f":"IF(LEN(A2092)=0,\"\",INDEX('Smelter Look-up'!$C:$C,MATCH($A2092,'Smelter Look-up'!$E:$E,0)))","v":""},null,{"$f":"IF(ISERROR($V2092),\"\",OFFSET('Smelter Look-up'!$D$4,$V2092-4,0)&\"\")","v":""},{"$f":"IF(ISERROR($V2092),\"\",OFFSET('Smelter Look-up'!$E$4,$V2092-4,0))","v":""},{"$f":"IF(C2092=$X$4,\"Enter smelter details\",IF(ISERROR($V2092),\"\",OFFSET('Smelter Look-up'!$F$4,$V2092-4,0)))","v":""},{"$f":"IF(ISERROR($V2092),\"\",OFFSET('Smelter Look-up'!$G$4,$V2092-4,0))","v":""},{"$f":"IF(ISERROR($V2092),\"\",OFFSET('Smelter Look-up'!$H$4,$V2092-4,0))","v":""},{"$f":"IF(ISERROR($V2092),\"\",OFFSET('Smelter Look-up'!$I$4,$V2092-4,0))","v":""},{"$nulls":7},{"$f":"IF(ISERROR($V2092),\"\",OFFSET('Smelter Look-up'!$C$4,$V2092-4,0)&\"\")","v":""},"",{"$f":"IF(B2092=\"\",\"\",IF(ISERROR(MATCH($J2092,SorP!$B$1:$B$5661,0)),\"\",INDIRECT(\"'SorP'!$A$\"&MATCH($J2092,SorP!$B$1:$B$5661,0))))","v":""},null,{"$f":"IF(C2092=\"\",NA(),MATCH($B2092&$C2092,'Smelter Look-up'!$J:$J,0))","v":{"$error":"#N/A"}},null,0,null,null,null,""]
[null,{"$f":"IF(LEN(A2093)=0,\"\",INDEX('Smelter Look-up'!$A:$A,MATCH($A2093,'Smelter Look-up'!$E:$E,0)))","v":""},{"$f":"IF(LEN(A2093)=0,\"\",INDEX('Smelter Look-up'!$C:$C,MATCH($A2093,'Smelter Look-up'!$E:$E,0)))","v":""},null,{"$f":"IF(ISERROR($V2093),\"\",OFFSET('Smelter Look-up'!$D$4,$V2093-4,0)&\"\")","v":""},{"$f":"IF(ISERROR($V2093),\"\",OFFSET('Smelter Look-up'!$E$4,$V2093-4,0))","v":""},{"$f":"IF(C2093=$X$4,\"Enter smelter details\",IF(ISERROR($V2093),\"\",OFFSET('Smelter Look-up'!$F$4,$V2093-4,0)))","v":""},{"$f":"IF(ISERROR($V2093),\"\",OFFSET('Smelter Look-up'!$G$4,$V2093-4,0))","v":""},{"$f":"IF(ISERROR($V2093),\"\",OFFSET('Smelter Look-up'!$H$4,$V2093-4,0))","v":""},{"$f":"IF(ISERROR($V2093),\"\",OFFSET('Smelter Look-up'!$I$4,$V2093-4,0))","v":""},{"$nulls":7},{"$f":"IF(ISERROR($V2093),\"\",OFFSET('Smelter Look-up'!$C$4,$V2093-4,0)&\"\")","v":""},"",{"$f":"IF(B2093=\"\",\"\",IF(ISERROR(MATCH($J2093,SorP!$B$1:$B$5661,0)),\"\",INDIRECT(\"'SorP'!$A$\"&MATCH($J2093,SorP!$B$1:$B$5661,0))))","v":""},null,{"$f":"IF(C2093=\"\",NA(),MATCH($B2093&$C2093,'Smelter Look-up'!$J:$J,0))","v":{"$error":"#N/A"}},null,0,null,null,null,""]
[null,{"$f":"IF(LEN(A2094)=0,\"\",INDEX('Smelter Look-up'!$A:$A,MATCH($A2094,'Smelter Look-up'!$E:$E,0)))","v":""},{"$f":"IF(LEN(A2094)=0,\"\",INDEX('Smelter Look-up'!$C:$C,MATCH($A2094,'Smelter Look-up'!$E:$E,0)))","v":""},null,{"$f":"IF(ISERROR($V2094),\"\",OFFSET('Smelter Look-up'!$D$4,$V2094-4,0)&\"\")","v":""},{"$f":"IF(ISERROR($V2094),\"\",OFFSET('Smelter Look-up'!$E$4,$V2094-4,0))","v":""},{"$f":"IF(C2094=$X$4,\"Enter smelter details\",IF(ISERROR($V2094),\"\",OFFSET('Smelter Look-up'!$F$4,$V2094-4,0)))","v":""},{"$f":"IF(ISERROR($V2094),\"\",OFFSET('Smelter Look-up'!$G$4,$V2094-4,0))","v":""},{"$f":"IF(ISERROR($V2094),\"\",OFFSET('Smelter Look-up'!$H$4,$V2094-4,0))","v":""},{"$f":"IF(ISERROR($V2094),\"\",OFFSET('Smelter Look-up'!$I$4,$V2094-4,0))","v":""},{"$nulls":7},{"$f":"IF(ISERROR($V2094),\"\",OFFSET('Smelter Look-up'!$C$4,$V2094-4,0)&\"\")","v":""},"",{"$f":"IF(B2094=\"\",\"\",IF(ISERROR(MATCH($J2094,SorP!$B$1:$B$5661,0)),\"\",INDIRECT(\"'SorP'!$A$\"&MATCH($J2094,SorP!$B$1:$B$5661,0))))","v":""},null,{"$f":"IF(C2094=\"\",NA(),MATCH($B2094&$C2094,'Smelter Look-up'!$J:$J,0))","v":{"$error":"#N/A"}},null,0,null,null,null,""]
[null,{"$f":"IF(LEN(A2095)=0,\"\",INDEX('Smelter Look-up'!$A:$A,MATCH($A2095,'Smelter Look-up'!$E:$E,0)))","v":""},{"$f":"IF(LEN(A2095)=0,\"\",INDEX('Smelter Look-up'!$C:$C,MATCH($A2095,'Smelter Look-up'!$E:$E,0)))","v":""},null,{"$f":"IF(ISERROR($V2095),\"\",OFFSET('Smelter Look-up'!$D$4,$V2095-4,0)&\"\")","v":""},{"$f":"IF(ISERROR($V2095),\"\",OFFSET('Smelter Look-up'!$E$4,$V2095-4,0))","v":""},{"$f":"IF(C2095=$X$4,\"Enter smelter details\",IF(ISERROR($V2095),\"\",OFFSET('Smelter Look-up'!$F$4,$V2095-4,0)))","v":""},{"$f":"IF(ISERROR($V2095),\"\",OFFSET('Smelter Look-up'!$G$4,$V2095-4,0))","v":""},{"$f":"IF(ISERROR($V2095),\"\",OFFSET('Smelter Look-up'!$H$4,$V2095-4,0))","v":""},{"$f":"IF(ISERROR($V2095),\"\",OFFSET('Smelter Look-up'!$I$4,$V2095-4,0))","v":""},{"$nulls":7},{"$f":"IF(ISERROR($V2095),\"\",OFFSET('Smelter Look-up'!$C$4,$V2095-4,0)&\"\")","v":""},"",{"$f":"IF(B2095=\"\",\"\",IF(ISERROR(MATCH($J2095,SorP!$B$1:$B$5661,0)),\"\",INDIRECT(\"'SorP'!$A$\"&MATCH($J2095,SorP!$B$1:$B$5661,0))))","v":""},null,{"$f":"IF(C2095=\"\",NA(),MATCH($B2095&$C2095,'Smelter Look-up'!$J:$J,0))","v":{"$error":"#N/A"}},null,0,null,null,null,""]
[null,{"$f":"IF(LEN(A2096)=0,\"\",INDEX('Smelter Look-up'!$A:$A,MATCH($A2096,'Smelter Look-up'!$E:$E,0)))","v":""},{"$f":"IF(LEN(A2096)=0,\"\",INDEX('Smelter Look-up'!$C:$C,MATCH($A2096,'Smelter Look-up'!$E:$E,0)))","v":""},null,{"$f":"IF(ISERROR($V2096),\"\",OFFSET('Smelter Look-up'!$D$4,$V2096-4,0)&\"\")","v":""},{"$f":"IF(ISERROR($V2096),\"\",OFFSET('Smelter Look-up'!$E$4,$V2096-4,0))","v":""},{"$f":"IF(C2096=$X$4,\"Enter smelter details\",IF(ISERROR($V2096),\"\",OFFSET('Smelter Look-up'!$F$4,$V2096-4,0)))","v":""},{"$f":"IF(ISERROR($V2096),\"\",OFFSET('Smelter Look-up'!$G$4,$V2096-4,0))","v":""},{"$f":"IF(ISERROR($V2096),\"\",OFFSET('Smelter Look-up'!$H$4,$V2096-4,0))","v":""},{"$f":"IF(ISERROR($V2096),\"\",OFFSET('Smelter Look-up'!$I$4,$V2096-4,0))","v":""},{"$nulls":7},{"$f":"IF(ISERROR($V2096),\"\",OFFSET('Smelter Look-up'!$C$4,$V2096-4,0)&\"\")","v":""},"",{"$f":"IF(B2096=\"\",\"\",IF(ISERROR(MATCH($J2096,SorP!$B$1:$B$5661,0)),\"\",INDIRECT(\"'SorP'!$A$\"&MATCH($J2096,SorP!$B$1:$B$5661,0))))","v":""},null,{"$f":"IF(C2096=\"\",NA(),MATCH($B2096&$C2096,'Smelter Look-up'!$J:$J,0))","v":{"$error":"#N/A"}},null,0,null,null,null,""]
[null,{"$f":"IF(LEN(A2097)=0,\"\",INDEX('Smelter Look-up'!$A:$A,MATCH($A2097,'Smelter Look-up'!$E:$E,0)))","v":""},{"$f":"IF(LEN(A2097)=0,\"\",INDEX('Smelter Look-up'!$C:$C,MATCH($A2097,'Smelter Look-up'!$E:$E,0)))","v":""},null,{"$f":"IF(ISERROR($V2097),\"\",OFFSET('Smelter Look-up'!$D$4,$V2097-4,0)&\"\")","v":""},{"$f":"IF(ISERROR($V2097),\"\",OFFSET('Smelter Look-up'!$E$4,$V2097-4,0))","v":""},{"$f":"IF(C2097=$X$4,\"Enter smelter details\",IF(ISERROR($V2097),\"\",OFFSET('Smelter Look-up'!$F$4,$V2097-4,0)))","v":""},{"$f":"IF(ISERROR($V2097),\"\",OFFSET('Smelter Look-up'!$G$4,$V2097-4,0))","v":""},{"$f":"IF(ISERROR($V2097),\"\",OFFSET('Smelter Look-up'!$H$4,$V2097-4,0))","v":""},{"$f":"IF(ISERROR($V2097),\"\",OFFSET('Smelter Look-up'!$I$4,$V2097-4,0))","v":""},{"$nulls":7},{"$f":"IF(ISERROR($V2097),\"\",OFFSET('Smelter Look-up'!$C$4,$V2097-4,0)&\"\")","v":""},"",{"$f":"IF(B2097=\"\",\"\",IF(ISERROR(MATCH($J2097,SorP!$B$1:$B$5661,0)),\"\",INDIRECT(\"'SorP'!$A$\"&MATCH($J2097,SorP!$B$1:$B$5661,0))))","v":""},null,{"$f":"IF(C2097=\"\",NA(),MATCH($B2097&$C2097,'Smelter Look-up'!$J:$J,0))","v":{"$error":"#N/A"}},null,0,null,null,null,""]
[null,{"$f":"IF(LEN(A2098)=0,\"\",INDEX('Smelter Look-up'!$A:$A,MATCH($A2098,'Smelter Look-up'!$E:$E,0)))","v":""},{"$f":"IF(LEN(A2098)=0,\"\",INDEX('Smelter Look-up'!$C:$C,MATCH($A2098,'Smelter Look-up'!$E:$E,0)))","v":""},null,{"$f":"IF(ISERROR($V2098),\"\",OFFSET('Smelter Look-up'!$D$4,$V2098-4,0)&\"\")","v":""},{"$f":"IF(ISERROR($V2098),\"\",OFFSET('Smelter Look-up'!$E$4,$V2098-4,0))","v":""},{"$f":"IF(C2098=$X$4,\"Enter smelter details\",IF(ISERROR($V2098),\"\",OFFSET('Smelter Look-up'!$F$4,$V2098-4,0)))","v":""},{"$f":"IF(ISERROR($V2098),\"\",OFFSET('Smelter Look-up'!$G$4,$V2098-4,0))","v":""},{"$f":"IF(ISERROR($V2098),\"\",OFFSET('Smelter Look-up'!$H$4,$V2098-4,0))","v":""},{"$f":"IF(ISERROR($V2098),\"\",OFFSET('Smelter Look-up'!$I$4,$V2098-4,0))","v":""},{"$nulls":7},{"$f":"IF(ISERROR($V2098),\"\",OFFSET('Smelter Look-up'!$C$4,$V2098-4,0)&\"\")","v":""},"",{"$f":"IF(B2098=\"\",\"\",IF(ISERROR(MATCH($J2098,SorP!$B$1:$B$5661,0)),\"\",INDIRECT(\"'SorP'!$A$\"&MATCH($J2098,SorP!$B$1:$B$5661,0))))","v":""},null,{"$f":"IF(C2098=\"\",NA(),MATCH($B2098&$C2098,'Smelter Look-up'!$J:$J,0))","v":{"$error":"#N/A"}},null,0,null,null,null,""]
[null,{"$f":"IF(LEN(A2099)=0,\"\",INDEX('Smelter Look-up'!$A:$A,MATCH($A2099,'Smelter Look-up'!$E:$E,0)))","v":""},{"$f":"IF(LEN(A2099)=0,\"\",INDEX('Smelter Look-up'!$C:$C,MATCH($A2099,'Smelter Look-up'!$E:$E,0)))","v":""},null,{"$f":"IF(ISERROR($V2099),\"\",OFFSET('Smelter Look-up'!$D$4,$V2099-4,0)&\"\")","v":""},{"$f":"IF(ISERROR($V2099),\"\",OFFSET('Smelter Look-up'!$E$4,$V2099-4,0))","v":""},{"$f":"IF(C2099=$X$4,\"Enter smelter details\",IF(ISERROR($V2099),\"\",OFFSET('Smelter Look-up'!$F$4,$V2099-4,0)))","v":""},{"$f":"IF(ISERROR($V2099),\"\",OFFSET('Smelter Look-up'!$G$4,$V2099-4,0))","v":""},{"$f":"IF(ISERROR($V2099),\"\",OFFSET('Smelter Look-up'!$H$4,$V2099-4,0))","v":""},{"$f":"IF(ISERROR($V2099),\"\",OFFSET('Smelter Look-up'!$I$4,$V2099-4,0))","v":""},{"$nulls":7},{"$f":"IF(ISERROR($V2099),\"\",OFFSET('Smelter Look-up'!$C$4,$V2099-4,0)&\"\")","v":""},"",{"$f":"IF(B2099=\"\",\"\",IF(ISERROR(MATCH($J2099,SorP!$B$1:$B$5661,0)),\"\",INDIRECT(\"'SorP'!$A$\"&MATCH($J2099,SorP!$B$1:$B$5661,0))))","v":""},null,{"$f":"IF(C2099=\"\",NA(),MATCH($B2099&$C2099,'Smelter Look-up'!$J:$J,0))","v":{"$error":"#N/A"}},null,0,null,null,null,""]
[null,{"$f":"IF(LEN(A2100)=0,\"\",INDEX('Smelter Look-up'!$A:$A,MATCH($A2100,'Smelter Look-up'!$E:$E,0)))","v":""},{"$f":"IF(LEN(A2100)=0,\"\",INDEX('Smelter Look-up'!$C:$C,MATCH($A2100,'Smelter Look-up'!$E:$E,0)))","v":""},null,{"$f":"IF(ISERROR($V2100),\"\",OFFSET('Smelter Look-up'!$D$4,$V2100-4,0)&\"\")","v":""},{"$f":"IF(ISERROR($V2100),\"\",OFFSET('Smelter Look-up'!$E$4,$V2100-4,0))","v":""},{"$f":"IF(C2100=$X$4,\"Enter smelter details\",IF(ISERROR($V2100),\"\",OFFSET('Smelter Look-up'!$F$4,$V2100-4,0)))","v":""},{"$f":"IF(ISERROR($V2100),\"\",OFFSET('Smelter Look-up'!$G$4,$V2100-4,0))","v":""},{"$f":"IF(ISERROR($V2100),\"\",OFFSET('Smelter Look-up'!$H$4,$V2100-4,0))","v":""},{"$f":"IF(ISERROR($V2100),\"\",OFFSET('Smelter Look-up'!$I$4,$V2100-4,0))","v":""},{"$nulls":7},{"$f":"IF(ISERROR($V2100),\"\",OFFSET('Smelter Look-up'!$C$4,$V2100-4,0)&\"\")","v":""},"",{"$f":"IF(B2100=\"\",\"\",IF(ISERROR(MATCH($J2100,SorP!$B$1:$B$5661,0)),\"\",INDIRECT(\"'SorP'!$A$\"&MATCH($J2100,SorP!$B$1:$B$5661,0))))","v":""},null,{"$f":"IF(C2100=\"\",NA(),MATCH($B2100&$C2100,'Smelter Look-up'!$J:$J,0))","v":{"$error":"#N/A"}},null,0,null,null,null,""]
[null,{"$f":"IF(LEN(A2101)=0,\"\",INDEX('Smelter Look-up'!$A:$A,MATCH($A2101,'Smelter Look-up'!$E:$E,0)))","v":""},{"$f":"IF(LEN(A2101)=0,\"\",INDEX('Smelter Look-up'!$C:$C,MATCH($A2101,'Smelter Look-up'!$E:$E,0)))","v":""},null,{"$f":"IF(ISERROR($V2101),\"\",OFFSET('Smelter Look-up'!$D$4,$V2101-4,0)&\"\")","v":""},{"$f":"IF(ISERROR($V2101),\"\",OFFSET('Smelter Look-up'!$E$4,$V2101-4,0))","v":""},{"$f":"IF(C2101=$X$4,\"Enter smelter details\",IF(ISERROR($V2101),\"\",OFFSET('Smelter Look-up'!$F$4,$V2101-4,0)))","v":""},{"$f":"IF(ISERROR($V2101),\"\",OFFSET('Smelter Look-up'!$G$4,$V2101-4,0))","v":""},{"$f":"IF(ISERROR($V2101),\"\",OFFSET('Smelter Look-up'!$H$4,$V2101-4,0))","v":""},{"$f":"IF(ISERROR($V2101),\"\",OFFSET('Smelter Look-up'!$I$4,$V2101-4,0))","v":""},{"$nulls":7},{"$f":"IF(ISERROR($V2101),\"\",OFFSET('Smelter Look-up'!$C$4,$V2101-4,0)&\"\")","v":""},"",{"$f":"IF(B2101=\"\",\"\",IF(ISERROR(MATCH($J2101,SorP!$B$1:$B$5661,0)),\"\",INDIRECT(\"'SorP'!$A$\"&MATCH($J2101,SorP!$B$1:$B$5661,0))))","v":""},null,{"$f":"IF(C2101=\"\",NA(),MATCH($B2101&$C2101,'Smelter Look-up'!$J:$J,0))","v":{"$error":"#N/A"}},null,0,null,null,null,""]
[null,{"$f":"IF(LEN(A2102)=0,\"\",INDEX('Smelter Look-up'!$A:$A,MATCH($A2102,'Smelter Look-up'!$E:$E,0)))","v":""},{"$f":"IF(LEN(A2102)=0,\"\",INDEX('Smelter Look-up'!$C:$C,MATCH($A2102,'Smelter Look-up'!$E:$E,0)))","v":""},null,{"$f":"IF(ISERROR($V2102),\"\",OFFSET('Smelter Look-up'!$D$4,$V2102-4,0)&\"\")","v":""},{"$f":"IF(ISERROR($V2102),\"\",OFFSET('Smelter Look-up'!$E$4,$V2102-4,0))","v":""},{"$f":"IF(C2102=$X$4,\"Enter smelter details\",IF(ISERROR($V2102),\"\",OFFSET('Smelter Look-up'!$F$4,$V2102-4,0)))","v":""},{"$f":"IF(ISERROR($V2102),\"\",OFFSET('Smelter Look-up'!$G$4,$V2102-4,0))","v":""},{"$f":"IF(ISERROR($V2102),\"\",OFFSET('Smelter Look-up'!$H$4,$V2102-4,0))","v":""},{"$f":"IF(ISERROR($V2102),\"\",OFFSET('Smelter Look-up'!$I$4,$V2102-4,0))","v":""},{"$nulls":7},{"$f":"IF(ISERROR($V2102),\"\",OFFSET('Smelter Look-up'!$C$4,$V2102-4,0)&\"\")","v":""},"",{"$f":"IF(B2102=\"\",\"\",IF(ISERROR(MATCH($J2102,SorP!$B$1:$B$5661,0)),\"\",INDIRECT(\"'SorP'!$A$\"&MATCH($J2102,SorP!$B$1:$B$5661,0))))","v":""},null,{"$f":"IF(C2102=\"\",NA(),MATCH($B2102&$C2102,'Smelter Look-up'!$J:$J,0))","v":{"$error":"#N/A"}},null,0,null,null,null,""]
[null,{"$f":"IF(LEN(A2103)=0,\"\",INDEX('Smelter Look-up'!$A:$A,MATCH($A2103,'Smelter Look-up'!$E:$E,0)))","v":""},{"$f":"IF(LEN(A2103)=0,\"\",INDEX('Smelter Look-up'!$C:$C,MATCH($A2103,'Smelter Look-up'!$E:$E,0)))","v":""},null,{"$f":"IF(ISERROR($V2103),\"\",OFFSET('Smelter Look-up'!$D$4,$V2103-4,0)&\"\")","v":""},{"$f":"IF(ISERROR($V2103),\"\",OFFSET('Smelter Look-up'!$E$4,$V2103-4,0))","v":""},{"$f":"IF(C2103=$X$4,\"Enter smelter details\",IF(ISERROR($V2103),\"\",OFFSET('Smelter Look-up'!$F$4,$V2103-4,0)))","v":""},{"$f":"IF(ISERROR($V2103),\"\",OFFSET('Smelter Look-up'!$G$4,$V2103-4,0))","v":""},{"$f":"IF(ISERROR($V2103),\"\",OFFSET('Smelter Look-up'!$H$4,$V2103-4,0))","v":""},{"$f":"IF(ISERROR($V2103),\"\",OFFSET('Smelter Look-up'!$I$4,$V2103-4,0))","v":""},{"$nulls":7},{"$f":"IF(ISERROR($V2103),\"\",OFFSET('Smelter Look-up'!$C$4,$V2103-4,0)&\"\")","v":""},"",{"$f":"IF(B2103=\"\",\"\",IF(ISERROR(MATCH($J2103,SorP!$B$1:$B$5661,0)),\"\",INDIRECT(\"'SorP'!$A$\"&MATCH($J2103,SorP!$B$1:$B$5661,0))))","v":""},null,{"$f":"IF(C2103=\"\",NA(),MATCH($B2103&$C2103,'Smelter Look-up'!$J:$J,0))","v":{"$error":"#N/A"}},null,0,null,null,null,""]
[null,{"$f":"IF(LEN(A2104)=0,\"\",INDEX('Smelter Look-up'!$A:$A,MATCH($A2104,'Smelter Look-up'!$E:$E,0)))","v":""},{"$f":"IF(LEN(A2104)=0,\"\",INDEX('Smelter Look-up'!$C:$C,MATCH($A2104,'Smelter Look-up'!$E:$E,0)))","v":""},null,{"$f":"IF(ISERROR($V2104),\"\",OFFSET('Smelter Look-up'!$D$4,$V2104-4,0)&\"\")","v":""},{"$f":"IF(ISERROR($V2104),\"\",OFFSET('Smelter Look-up'!$E$4,$V2104-4,0))","v":""},{"$f":"IF(C2104=$X$4,\"Enter smelter details\",IF(ISERROR($V2104),\"\",OFFSET('Smelter Look-up'!$F$4,$V2104-4,0)))","v":""},{"$f":"IF(ISERROR($V2104),\"\",OFFSET('Smelter Look-up'!$G$4,$V2104-4,0))","v":""},{"$f":"IF(ISERROR($V2104),\"\",OFFSET('Smelter Look-up'!$H$4,$V2104-4,0))","v":""},{"$f":"IF(ISERROR($V2104),\"\",OFFSET('Smelter Look-up'!$I$4,$V2104-4,0))","v":""},{"$nulls":7},{"$f":"IF(ISERROR($V2104),\"\",OFFSET('Smelter Look-up'!$C$4,$V2104-4,0)&\"\")","v":""},"",{"$f":"IF(B2104=\"\",\"\",IF(ISERROR(MATCH($J2104,SorP!$B$1:$B$5661,0)),\"\",INDIRECT(\"'SorP'!$A$\"&MATCH($J2104,SorP!$B$1:$B$5661,0))))","v":""},null,{"$f":"IF(C2104=\"\",NA(),MATCH($B2104&$C2104,'Smelter Look-up'!$J:$J,0))","v":{"$error":"#N/A"}},null,0,null,null,null,""]
[null,{"$f":"IF(LEN(A2105)=0,\"\",INDEX('Smelter Look-up'!$A:$A,MATCH($A2105,'Smelter Look-up'!$E:$E,0)))","v":""},{"$f":"IF(LEN(A2105)=0,\"\",INDEX('Smelter Look-up'!$C:$C,MATCH($A2105,'Smelter Look-up'!$E:$E,0)))","v":""},null,{"$f":"IF(ISERROR($V2105),\"\",OFFSET('Smelter Look-up'!$D$4,$V2105-4,0)&\"\")","v":""},{"$f":"IF(ISERROR($V2105),\"\",OFFSET('Smelter Look-up'!$E$4,$V2105-4,0))","v":""},{"$f":"IF(C2105=$X$4,\"Enter smelter details\",IF(ISERROR($V2105),\"\",OFFSET('Smelter Look-up'!$F$4,$V2105-4,0)))","v":""},{"$f":"IF(ISERROR($V2105),\"\",OFFSET('Smelter Look-up'!$G$4,$V2105-4,0))","v":""},{"$f":"IF(ISERROR($V2105),\"\",OFFSET('Smelter Look-up'!$H$4,$V2105-4,0))","v":""},{"$f":"IF(ISERROR($V2105),\"\",OFFSET('Smelter Look-up'!$I$4,$V2105-4,0))","v":""},{"$nulls":7},{"$f":"IF(ISERROR($V2105),\"\",OFFSET('Smelter Look-up'!$C$4,$V2105-4,0)&\"\")","v":""},"",{"$f":"IF(B2105=\"\",\"\",IF(ISERROR(MATCH($J2105,SorP!$B$1:$B$5661,0)),\"\",INDIRECT(\"'SorP'!$A$\"&MATCH($J2105,SorP!$B$1:$B$5661,0))))","v":""},null,{"$f":"IF(C2105=\"\",NA(),MATCH($B2105&$C2105,'Smelter Look-up'!$J:$J,0))","v":{"$error":"#N/A"}},null,0,null,null,null,""]
[null,{"$f":"IF(LEN(A2106)=0,\"\",INDEX('Smelter Look-up'!$A:$A,MATCH($A2106,'Smelter Look-up'!$E:$E,0)))","v":""},{"$f":"IF(LEN(A2106)=0,\"\",INDEX('Smelter Look-up'!$C:$C,MATCH($A2106,'Smelter Look-up'!$E:$E,0)))","v":""},null,{"$f":"IF(ISERROR($V2106),\"\",OFFSET('Smelter Look-up'!$D$4,$V2106-4,0)&\"\")","v":""},{"$f":"IF(ISERROR($V2106),\"\",OFFSET('Smelter Look-up'!$E$4,$V2106-4,0))","v":""},{"$f":"IF(C2106=$X$4,\"Enter smelter details\",IF(ISERROR($V2106),\"\",OFFSET('Smelter Look-up'!$F$4,$V2106-4,0)))","v":""},{"$f":"IF(ISERROR($V2106),\"\",OFFSET('Smelter Look-up'!$G$4,$V2106-4,0))","v":""},{"$f":"IF(ISERROR($V2106),\"\",OFFSET('Smelter Look-up'!$H$4,$V2106-4,0))","v":""},{"$f":"IF(ISERROR($V2106),\"\",OFFSET('Smelter Look-up'!$I$4,$V2106-4,0))","v":""},{"$nulls":7},{"$f":"IF(ISERROR($V2106),\"\",OFFSET('Smelter Look-up'!$C$4,$V2106-4,0)&\"\")","v":""},"",{"$f":"IF(B2106=\"\",\"\",IF(ISERROR(MATCH($J2106,SorP!$B$1:$B$5661,0)),\"\",INDIRECT(\"'SorP'!$A$\"&MATCH($J2106,SorP!$B$1:$B$5661,0))))","v":""},null,{"$f":"IF(C2106=\"\",NA(),MATCH($B2106&$C2106,'Smelter Look-up'!$J:$J,0))","v":{"$error":"#N/A"}},null,0,null,null,null,""]
[null,{"$f":"IF(LEN(A2107)=0,\"\",INDEX('Smelter Look-up'!$A:$A,MATCH($A2107,'Smelter Look-up'!$E:$E,0)))","v":""},{"$f":"IF(LEN(A2107)=0,\"\",INDEX('Smelter Look-up'!$C:$C,MATCH($A2107,'Smelter Look-up'!$E:$E,0)))","v":""},null,{"$f":"IF(ISERROR($V2107),\"\",OFFSET('Smelter Look-up'!$D$4,$V2107-4,0)&\"\")","v":""},{"$f":"IF(ISERROR($V2107),\"\",OFFSET('Smelter Look-up'!$E$4,$V2107-4,0))","v":""},{"$f":"IF(C2107=$X$4,\"Enter smelter details\",IF(ISERROR($V2107),\"\",OFFSET('Smelter Look-up'!$F$4,$V2107-4,0)))","v":""},{"$f":"IF(ISERROR($V2107),\"\",OFFSET('Smelter Look-up'!$G$4,$V2107-4,0))","v":""},{"$f":"IF(ISERROR($V2107),\"\",OFFSET('Smelter Look-up'!$H$4,$V2107-4,0))","v":""},{"$f":"IF(ISERROR($V2107),\"\",OFFSET('Smelter Look-up'!$I$4,$V2107-4,0))","v":""},{"$nulls":7},{"$f":"IF(ISERROR($V2107),\"\",OFFSET('Smelter Look-up'!$C$4,$V2107-4,0)&\"\")","v":""},"",{"$f":"IF(B2107=\"\",\"\",IF(ISERROR(MATCH($J2107,SorP!$B$1:$B$5661,0)),\"\",INDIRECT(\"'SorP'!$A$\"&MATCH($J2107,SorP!$B$1:$B$5661,0))))","v":""},null,{"$f":"IF(C2107=\"\",NA(),MATCH($B2107&$C2107,'Smelter Look-up'!$J:$J,0))","v":{"$error":"#N/A"}},null,0,null,null,null,""]
[null,{"$f":"IF(LEN(A2108)=0,\"\",INDEX('Smelter Look-up'!$A:$A,MATCH($A2108,'Smelter Look-up'!$E:$E,0)))","v":""},{"$f":"IF(LEN(A2108)=0,\"\",INDEX('Smelter Look-up'!$C:$C,MATCH($A2108,'Smelter Look-up'!$E:$E,0)))","v":""},null,{"$f":"IF(ISERROR($V2108),\"\",OFFSET('Smelter Look-up'!$D$4,$V2108-4,0)&\"\")","v":""},{"$f":"IF(ISERROR($V2108),\"\",OFFSET('Smelter Look-up'!$E$4,$V2108-4,0))","v":""},{"$f":"IF(C2108=$X$4,\"Enter smelter details\",IF(ISERROR($V2108),\"\",OFFSET('Smelter Look-up'!$F$4,$V2108-4,0)))","v":""},{"$f":"IF(ISERROR($V2108),\"\",OFFSET('Smelter Look-up'!$G$4,$V2108-4,0))","v":""},{"$f":"IF(ISERROR($V2108),\"\",OFFSET('Smelter Look-up'!$H$4,$V2108-4,0))","v":""},{"$f":"IF(ISERROR($V2108),\"\",OFFSET('Smelter Look-up'!$I$4,$V2108-4,0))","v":""},{"$nulls":7},{"$f":"IF(ISERROR($V2108),\"\",OFFSET('Smelter Look-up'!$C$4,$V2108-4,0)&\"\")","v":""},"",{"$f":"IF(B2108=\"\",\"\",IF(ISERROR(MATCH($J2108,SorP!$B$1:$B$5661,0)),\"\",INDIRECT(\"'SorP'!$A$\"&MATCH($J2108,SorP!$B$1:$B$5661,0))))","v":""},null,{"$f":"IF(C2108=\"\",NA(),MATCH($B2108&$C2108,'Smelter Look-up'!$J:$J,0))","v":{"$error":"#N/A"}},null,0,null,null,null,""]
[null,{"$f":"IF(LEN(A2109)=0,\"\",INDEX('Smelter Look-up'!$A:$A,MATCH($A2109,'Smelter Look-up'!$E:$E,0)))","v":""},{"$f":"IF(LEN(A2109)=0,\"\",INDEX('Smelter Look-up'!$C:$C,MATCH($A2109,'Smelter Look-up'!$E:$E,0)))","v":""},null,{"$f":"IF(ISERROR($V2109),\"\",OFFSET('Smelter Look-up'!$D$4,$V2109-4,0)&\"\")","v":""},{"$f":"IF(ISERROR($V2109),\"\",OFFSET('Smelter Look-up'!$E$4,$V2109-4,0))","v":""},{"$f":"IF(C2109=$X$4,\"Enter smelter details\",IF(ISERROR($V2109),\"\",OFFSET('Smelter Look-up'!$F$4,$V2109-4,0)))","v":""},{"$f":"IF(ISERROR($V2109),\"\",OFFSET('Smelter Look-up'!$G$4,$V2109-4,0))","v":""},{"$f":"IF(ISERROR($V2109),\"\",OFFSET('Smelter Look-up'!$H$4,$V2109-4,0))","v":""},{"$f":"IF(ISERROR($V2109),\"\",OFFSET('Smelter Look-up'!$I$4,$V2109-4,0))","v":""},{"$nulls":7},{"$f":"IF(ISERROR($V2109),\"\",OFFSET('Smelter Look-up'!$C$4,$V2109-4,0)&\"\")","v":""},"",{"$f":"IF(B2109=\"\",\"\",IF(ISERROR(MATCH($J2109,SorP!$B$1:$B$5661,0)),\"\",INDIRECT(\"'SorP'!$A$\"&MATCH($J2109,SorP!$B$1:$B$5661,0))))","v":""},null,{"$f":"IF(C2109=\"\",NA(),MATCH($B2109&$C2109,'Smelter Look-up'!$J:$J,0))","v":{"$error":"#N/A"}},null,0,null,null,null,""]
[null,{"$f":"IF(LEN(A2110)=0,\"\",INDEX('Smelter Look-up'!$A:$A,MATCH($A2110,'Smelter Look-up'!$E:$E,0)))","v":""},{"$f":"IF(LEN(A2110)=0,\"\",INDEX('Smelter Look-up'!$C:$C,MATCH($A2110,'Smelter Look-up'!$E:$E,0)))","v":""},null,{"$f":"IF(ISERROR($V2110),\"\",OFFSET('Smelter Look-up'!$D$4,$V2110-4,0)&\"\")","v":""},{"$f":"IF(ISERROR($V2110),\"\",OFFSET('Smelter Look-up'!$E$4,$V2110-4,0))","v":""},{"$f":"IF(C2110=$X$4,\"Enter smelter details\",IF(ISERROR($V2110),\"\",OFFSET('Smelter Look-up'!$F$4,$V2110-4,0)))","v":""},{"$f":"IF(ISERROR($V2110),\"\",OFFSET('Smelter Look-up'!$G$4,$V2110-4,0))","v":""},{"$f":"IF(ISERROR($V2110),\"\",OFFSET('Smelter Look-up'!$H$4,$V2110-4,0))","v":""},{"$f":"IF(ISERROR($V2110),\"\",OFFSET('Smelter Look-up'!$I$4,$V2110-4,0))","v":""},{"$nulls":7},{"$f":"IF(ISERROR($V2110),\"\",OFFSET('Smelter Look-up'!$C$4,$V2110-4,0)&\"\")","v":""},"",{"$f":"IF(B2110=\"\",\"\",IF(ISERROR(MATCH($J2110,SorP!$B$1:$B$5661,0)),\"\",INDIRECT(\"'SorP'!$A$\"&MATCH($J2110,SorP!$B$1:$B$5661,0))))","v":""},null,{"$f":"IF(C2110=\"\",NA(),MATCH($B2110&$C2110,'Smelter Look-up'!$J:$J,0))","v":{"$error":"#N/A"}},null,0,null,null,null,""]
[null,{"$f":"IF(LEN(A2111)=0,\"\",INDEX('Smelter Look-up'!$A:$A,MATCH($A2111,'Smelter Look-up'!$E:$E,0)))","v":""},{"$f":"IF(LEN(A2111)=0,\"\",INDEX('Smelter Look-up'!$C:$C,MATCH($A2111,'Smelter Look-up'!$E:$E,0)))","v":""},null,{"$f":"IF(ISERROR($V2111),\"\",OFFSET('Smelter Look-up'!$D$4,$V2111-4,0)&\"\")","v":""},{"$f":"IF(ISERROR($V2111),\"\",OFFSET('Smelter Look-up'!$E$4,$V2111-4,0))","v":""},{"$f":"IF(C2111=$X$4,\"Enter smelter details\",IF(ISERROR($V2111),\"\",OFFSET('Smelter Look-up'!$F$4,$V2111-4,0)))","v":""},{"$f":"IF(ISERROR($V2111),\"\",OFFSET('Smelter Look-up'!$G$4,$V2111-4,0))","v":""},{"$f":"IF(ISERROR($V2111),\"\",OFFSET('Smelter Look-up'!$H$4,$V2111-4,0))","v":""},{"$f":"IF(ISERROR($V2111),\"\",OFFSET('Smelter Look-up'!$I$4,$V2111-4,0))","v":""},{"$nulls":7},{"$f":"IF(ISERROR($V2111),\"\",OFFSET('Smelter Look-up'!$C$4,$V2111-4,0)&\"\")","v":""},"",{"$f":"IF(B2111=\"\",\"\",IF(ISERROR(MATCH($J2111,SorP!$B$1:$B$5661,0)),\"\",INDIRECT(\"'SorP'!$A$\"&MATCH($J2111,SorP!$B$1:$B$5661,0))))","v":""},null,{"$f":"IF(C2111=\"\",NA(),MATCH($B2111&$C2111,'Smelter Look-up'!$J:$J,0))","v":{"$error":"#N/A"}},null,{"$f":"IF(AND(C2111=\"Smelter not listed\",OR(LEN(D2111)=0,LEN(E2111)=0)),1,0)","v":0},null,null,null,{"$f":"B2111&C2111","v":""}]
[null,{"$f":"IF(LEN(A2112)=0,\"\",INDEX('Smelter Look-up'!$A:$A,MATCH($A2112,'Smelter Look-up'!$E:$E,0)))","v":""},{"$f":"IF(LEN(A2112)=0,\"\",INDEX('Smelter Look-up'!$C:$C,MATCH($A2112,'Smelter Look-up'!$E:$E,0)))","v":""},null,{"$f":"IF(ISERROR($V2112),\"\",OFFSET('Smelter Look-up'!$D$4,$V2112-4,0)&\"\")","v":""},{"$f":"IF(ISERROR($V2112),\"\",OFFSET('Smelter Look-up'!$E$4,$V2112-4,0))","v":""},{"$f":"IF(C2112=$X$4,\"Enter smelter details\",IF(ISERROR($V2112),\"\",OFFSET('Smelter Look-up'!$F$4,$V2112-4,0)))","v":""},{"$f":"IF(ISERROR($V2112),\"\",OFFSET('Smelter Look-up'!$G$4,$V2112-4,0))","v":""},{"$f":"IF(ISERROR($V2112),\"\",OFFSET('Smelter Look-up'!$H$4,$V2112-4,0))","v":""},{"$f":"IF(ISERROR($V2112),\"\",OFFSET('Smelter Look-up'!$I$4,$V2112-4,0))","v":""},{"$nulls":7},{"$f":"IF(ISERROR($V2112),\"\",OFFSET('Smelter Look-up'!$C$4,$V2112-4,0)&\"\")","v":""},{"$f":"IF(B2112=\"\",\"\",IF(ISERROR(MATCH($E2112,CL,0)),\"Unknown\",INDIRECT(\"'C'!$A$\"&MATCH($E2112,CL,0)+1)))","v":""},{"$f":"IF(B2112=\"\",\"\",IF(ISERROR(MATCH($J2112,SorP!$B$1:$B$5661,0)),\"\",INDIRECT(\"'SorP'!$A$\"&MATCH($J2112,SorP!$B$1:$B$5661,0))))","v":""},null,{"$f":"IF(C2112=\"\",NA(),MATCH($B2112&$C2112,'Smelter Look-up'!$J:$J,0))","v":{"$error":"#N/A"}},null,0,null,null,null,""]
[null,{"$f":"IF(LEN(A2113)=0,\"\",INDEX('Smelter Look-up'!$A:$A,MATCH($A2113,'Smelter Look-up'!$E:$E,0)))","v":""},{"$f":"IF(LEN(A2113)=0,\"\",INDEX('Smelter Look-up'!$C:$C,MATCH($A2113,'Smelter Look-up'!$E:$E,0)))","v":""},null,{"$f":"IF(ISERROR($V2113),\"\",OFFSET('Smelter Look-up'!$D$4,$V2113-4,0)&\"\")","v":""},{"$f":"IF(ISERROR($V2113),\"\",OFFSET('Smelter Look-up'!$E$4,$V2113-4,0))","v":""},{"$f":"IF(C2113=$X$4,\"Enter smelter details\",IF(ISERROR($V2113),\"\",OFFSET('Smelter Look-up'!$F$4,$V2113-4,0)))","v":""},{"$f":"IF(ISERROR($V2113),\"\",OFFSET('Smelter Look-up'!$G$4,$V2113-4,0))","v":""},{"$f":"IF(ISERROR($V2113),\"\",OFFSET('Smelter Look-up'!$H$4,$V2113-4,0))","v":""},{"$f":"IF(ISERROR($V2113),\"\",OFFSET('Smelter Look-up'!$I$4,$V2113-4,0))","v":""},{"$nulls":7},{"$f":"IF(ISERROR($V2113),\"\",OFFSET('Smelter Look-up'!$C$4,$V2113-4,0)&\"\")","v":""},"",{"$f":"IF(B2113=\"\",\"\",IF(ISERROR(MATCH($J2113,SorP!$B$1:$B$5661,0)),\"\",INDIRECT(\"'SorP'!$A$\"&MATCH($J2113,SorP!$B$1:$B$5661,0))))","v":""},null,{"$f":"IF(C2113=\"\",NA(),MATCH($B2113&$C2113,'Smelter Look-up'!$J:$J,0))","v":{"$error":"#N/A"}},null,0,null,null,null,""]
[null,{"$f":"IF(LEN(A2114)=0,\"\",INDEX('Smelter Look-up'!$A:$A,MATCH($A2114,'Smelter Look-up'!$E:$E,0)))","v":""},{"$f":"IF(LEN(A2114)=0,\"\",INDEX('Smelter Look-up'!$C:$C,MATCH($A2114,'Smelter Look-up'!$E:$E,0)))","v":""},null,{"$f":"IF(ISERROR($V2114),\"\",OFFSET('Smelter Look-up'!$D$4,$V2114-4,0)&\"\")","v":""},{"$f":"IF(ISERROR($V2114),\"\",OFFSET('Smelter Look-up'!$E$4,$V2114-4,0))","v":""},{"$f":"IF(C2114=$X$4,\"Enter smelter details\",IF(ISERROR($V2114),\"\",OFFSET('Smelter Look-up'!$F$4,$V2114-4,0)))","v":""},{"$f":"IF(ISERROR($V2114),\"\",OFFSET('Smelter Look-up'!$G$4,$V2114-4,0))","v":""},{"$f":"IF(ISERROR($V2114),\"\",OFFSET('Smelter Look-up'!$H$4,$V2114-4,0))","v":""},{"$f":"IF(ISERROR($V2114),\"\",OFFSET('Smelter Look-up'!$I$4,$V2114-4,0))","v":""},{"$nulls":7},{"$f":"IF(ISERROR($V2114),\"\",OFFSET('Smelter Look-up'!$C$4,$V2114-4,0)&\"\")","v":""},"",{"$f":"IF(B2114=\"\",\"\",IF(ISERROR(MATCH($J2114,SorP!$B$1:$B$5661,0)),\"\",INDIRECT(\"'SorP'!$A$\"&MATCH($J2114,SorP!$B$1:$B$5661,0))))","v":""},null,{"$f":"IF(C2114=\"\",NA(),MATCH($B2114&$C2114,'Smelter Look-up'!$J:$J,0))","v":{"$error":"#N/A"}},null,0,null,null,null,""]
[null,{"$f":"IF(LEN(A2115)=0,\"\",INDEX('Smelter Look-up'!$A:$A,MATCH($A2115,'Smelter Look-up'!$E:$E,0)))","v":""},{"$f":"IF(LEN(A2115)=0,\"\",INDEX('Smelter Look-up'!$C:$C,MATCH($A2115,'Smelter Look-up'!$E:$E,0)))","v":""},null,{"$f":"IF(ISERROR($V2115),\"\",OFFSET('Smelter Look-up'!$D$4,$V2115-4,0)&\"\")","v":""},{"$f":"IF(ISERROR($V2115),\"\",OFFSET('Smelter Look-up'!$E$4,$V2115-4,0))","v":""},{"$f":"IF(C2115=$X$4,\"Enter smelter details\",IF(ISERROR($V2115),\"\",OFFSET('Smelter Look-up'!$F$4,$V2115-4,0)))","v":""},{"$f":"IF(ISERROR($V2115),\"\",OFFSET('Smelter Look-up'!$G$4,$V2115-4,0))","v":""},{"$f":"IF(ISERROR($V2115),\"\",OFFSET('Smelter Look-up'!$H$4,$V2115-4,0))","v":""},{"$f":"IF(ISERROR($V2115),\"\",OFFSET('Smelter Look-up'!$I$4,$V2115-4,0))","v":""},{"$nulls":7},{"$f":"IF(ISERROR($V2115),\"\",OFFSET('Smelter Look-up'!$C$4,$V2115-4,0)&\"\")","v":""},"",{"$f":"IF(B2115=\"\",\"\",IF(ISERROR(MATCH($J2115,SorP!$B$1:$B$5661,0)),\"\",INDIRECT(\"'SorP'!$A$\"&MATCH($J2115,SorP!$B$1:$B$5661,0))))","v":""},null,{"$f":"IF(C2115=\"\",NA(),MATCH($B2115&$C2115,'Smelter Look-up'!$J:$J,0))","v":{"$error":"#N/A"}},null,0,null,null,null,""]
[null,{"$f":"IF(LEN(A2116)=0,\"\",INDEX('Smelter Look-up'!$A:$A,MATCH($A2116,'Smelter Look-up'!$E:$E,0)))","v":""},{"$f":"IF(LEN(A2116)=0,\"\",INDEX('Smelter Look-up'!$C:$C,MATCH($A2116,'Smelter Look-up'!$E:$E,0)))","v":""},null,{"$f":"IF(ISERROR($V2116),\"\",OFFSET('Smelter Look-up'!$D$4,$V2116-4,0)&\"\")","v":""},{"$f":"IF(ISERROR($V2116),\"\",OFFSET('Smelter Look-up'!$E$4,$V2116-4,0))","v":""},{"$f":"IF(C2116=$X$4,\"Enter smelter details\",IF(ISERROR($V2116),\"\",OFFSET('Smelter Look-up'!$F$4,$V2116-4,0)))","v":""},{"$f":"IF(ISERROR($V2116),\"\",OFFSET('Smelter Look-up'!$G$4,$V2116-4,0))","v":""},{"$f":"IF(ISERROR($V2116),\"\",OFFSET('Smelter Look-up'!$H$4,$V2116-4,0))","v":""},{"$f":"IF(ISERROR($V2116),\"\",OFFSET('Smelter Look-up'!$I$4,$V2116-4,0))","v":""},{"$nulls":7},{"$f":"IF(ISERROR($V2116),\"\",OFFSET('Smelter Look-up'!$C$4,$V2116-4,0)&\"\")","v":""},"",{"$f":"IF(B2116=\"\",\"\",IF(ISERROR(MATCH($J2116,SorP!$B$1:$B$5661,0)),\"\",INDIRECT(\"'SorP'!$A$\"&MATCH($J2116,SorP!$B$1:$B$5661,0))))","v":""},null,{"$f":"IF(C2116=\"\",NA(),MATCH($B2116&$C2116,'Smelter Look-up'!$J:$J,0))","v":{"$error":"#N/A"}},null,0,null,null,null,""]
[null,{"$f":"IF(LEN(A2117)=0,\"\",INDEX('Smelter Look-up'!$A:$A,MATCH($A2117,'Smelter Look-up'!$E:$E,0)))","v":""},{"$f":"IF(LEN(A2117)=0,\"\",INDEX('Smelter Look-up'!$C:$C,MATCH($A2117,'Smelter Look-up'!$E:$E,0)))","v":""},null,{"$f":"IF(ISERROR($V2117),\"\",OFFSET('Smelter Look-up'!$D$4,$V2117-4,0)&\"\")","v":""},{"$f":"IF(ISERROR($V2117),\"\",OFFSET('Smelter Look-up'!$E$4,$V2117-4,0))","v":""},{"$f":"IF(C2117=$X$4,\"Enter smelter details\",IF(ISERROR($V2117),\"\",OFFSET('Smelter Look-up'!$F$4,$V2117-4,0)))","v":""},{"$f":"IF(ISERROR($V2117),\"\",OFFSET('Smelter Look-up'!$G$4,$V2117-4,0))","v":""},{"$f":"IF(ISERROR($V2117),\"\",OFFSET('Smelter Look-up'!$H$4,$V2117-4,0))","v":""},{"$f":"IF(ISERROR($V2117),\"\",OFFSET('Smelter Look-up'!$I$4,$V2117-4,0))","v":""},{"$nulls":7},{"$f":"IF(ISERROR($V2117),\"\",OFFSET('Smelter Look-up'!$C$4,$V2117-4,0)&\"\")","v":""},"",{"$f":"IF(B2117=\"\",\"\",IF(ISERROR(MATCH($J2117,SorP!$B$1:$B$5661,0)),\"\",INDIRECT(\"'SorP'!$A$\"&MATCH($J2117,SorP!$B$1:$B$5661,0))))","v":""},null,{"$f":"IF(C2117=\"\",NA(),MATCH($B2117&$C2117,'Smelter Look-up'!$J:$J,0))","v":{"$error":"#N/A"}},null,0,null,null,null,""]
[null,{"$f":"IF(LEN(A2118)=0,\"\",INDEX('Smelter Look-up'!$A:$A,MATCH($A2118,'Smelter Look-up'!$E:$E,0)))","v":""},{"$f":"IF(LEN(A2118)=0,\"\",INDEX('Smelter Look-up'!$C:$C,MATCH($A2118,'Smelter Look-up'!$E:$E,0)))","v":""},null,{"$f":"IF(ISERROR($V2118),\"\",OFFSET('Smelter Look-up'!$D$4,$V2118-4,0)&\"\")","v":""},{"$f":"IF(ISERROR($V2118),\"\",OFFSET('Smelter Look-up'!$E$4,$V2118-4,0))","v":""},{"$f":"IF(C2118=$X$4,\"Enter smelter details\",IF(ISERROR($V2118),\"\",OFFSET('Smelter Look-up'!$F$4,$V2118-4,0)))","v":""},{"$f":"IF(ISERROR($V2118),\"\",OFFSET('Smelter Look-up'!$G$4,$V2118-4,0))","v":""},{"$f":"IF(ISERROR($V2118),\"\",OFFSET('Smelter Look-up'!$H$4,$V2118-4,0))","v":""},{"$f":"IF(ISERROR($V2118),\"\",OFFSET('Smelter Look-up'!$I$4,$V2118-4,0))","v":""},{"$nulls":7},{"$f":"IF(ISERROR($V2118),\"\",OFFSET('Smelter Look-up'!$C$4,$V2118-4,0)&\"\")","v":""},"",{"$f":"IF(B2118=\"\",\"\",IF(ISERROR(MATCH($J2118,SorP!$B$1:$B$5661,0)),\"\",INDIRECT(\"'SorP'!$A$\"&MATCH($J2118,SorP!$B$1:$B$5661,0))))","v":""},null,{"$f":"IF(C2118=\"\",NA(),MATCH($B2118&$C2118,'Smelter Look-up'!$J:$J,0))","v":{"$error":"#N/A"}},null,0,null,null,null,""]
[null,{"$f":"IF(LEN(A2119)=0,\"\",INDEX('Smelter Look-up'!$A:$A,MATCH($A2119,'Smelter Look-up'!$E:$E,0)))","v":""},{"$f":"IF(LEN(A2119)=0,\"\",INDEX('Smelter Look-up'!$C:$C,MATCH($A2119,'Smelter Look-up'!$E:$E,0)))","v":""},null,{"$f":"IF(ISERROR($V2119),\"\",OFFSET('Smelter Look-up'!$D$4,$V2119-4,0)&\"\")","v":""},{"$f":"IF(ISERROR($V2119),\"\",OFFSET('Smelter Look-up'!$E$4,$V2119-4,0))","v":""},{"$f":"IF(C2119=$X$4,\"Enter smelter details\",IF(ISERROR($V2119),\"\",OFFSET('Smelter Look-up'!$F$4,$V2119-4,0)))","v":""},{"$f":"IF(ISERROR($V2119),\"\",OFFSET('Smelter Look-up'!$G$4,$V2119-4,0))","v":""},{"$f":"IF(ISERROR($V2119),\"\",OFFSET('Smelter Look-up'!$H$4,$V2119-4,0))","v":""},{"$f":"IF(ISERROR($V2119),\"\",OFFSET('Smelter Look-up'!$I$4,$V2119-4,0))","v":""},{"$nulls":7},{"$f":"IF(ISERROR($V2119),\"\",OFFSET('Smelter Look-up'!$C$4,$V2119-4,0)&\"\")","v":""},"",{"$f":"IF(B2119=\"\",\"\",IF(ISERROR(MATCH($J2119,SorP!$B$1:$B$5661,0)),\"\",INDIRECT(\"'SorP'!$A$\"&MATCH($J2119,SorP!$B$1:$B$5661,0))))","v":""},null,{"$f":"IF(C2119=\"\",NA(),MATCH($B2119&$C2119,'Smelter Look-up'!$J:$J,0))","v":{"$error":"#N/A"}},null,0,null,null,null,""]
[null,{"$f":"IF(LEN(A2120)=0,\"\",INDEX('Smelter Look-up'!$A:$A,MATCH($A2120,'Smelter Look-up'!$E:$E,0)))","v":""},{"$f":"IF(LEN(A2120)=0,\"\",INDEX('Smelter Look-up'!$C:$C,MATCH($A2120,'Smelter Look-up'!$E:$E,0)))","v":""},null,{"$f":"IF(ISERROR($V2120),\"\",OFFSET('Smelter Look-up'!$D$4,$V2120-4,0)&\"\")","v":""},{"$f":"IF(ISERROR($V2120),\"\",OFFSET('Smelter Look-up'!$E$4,$V2120-4,0))","v":""},{"$f":"IF(C2120=$X$4,\"Enter smelter details\",IF(ISERROR($V2120),\"\",OFFSET('Smelter Look-up'!$F$4,$V2120-4,0)))","v":""},{"$f":"IF(ISERROR($V2120),\"\",OFFSET('Smelter Look-up'!$G$4,$V2120-4,0))","v":""},{"$f":"IF(ISERROR($V2120),\"\",OFFSET('Smelter Look-up'!$H$4,$V2120-4,0))","v":""},{"$f":"IF(ISERROR($V2120),\"\",OFFSET('Smelter Look-up'!$I$4,$V2120-4,0))","v":""},{"$nulls":7},{"$f":"IF(ISERROR($V2120),\"\",OFFSET('Smelter Look-up'!$C$4,$V2120-4,0)&\"\")","v":""},"",{"$f":"IF(B2120=\"\",\"\",IF(ISERROR(MATCH($J2120,SorP!$B$1:$B$5661,0)),\"\",INDIRECT(\"'SorP'!$A$\"&MATCH($J2120,SorP!$B$1:$B$5661,0))))","v":""},null,{"$f":"IF(C2120=\"\",NA(),MATCH($B2120&$C2120,'Smelter Look-up'!$J:$J,0))","v":{"$error":"#N/A"}},null,0,null,null,null,""]
[null,{"$f":"IF(LEN(A2121)=0,\"\",INDEX('Smelter Look-up'!$A:$A,MATCH($A2121,'Smelter Look-up'!$E:$E,0)))","v":""},{"$f":"IF(LEN(A2121)=0,\"\",INDEX('Smelter Look-up'!$C:$C,MATCH($A2121,'Smelter Look-up'!$E:$E,0)))","v":""},null,{"$f":"IF(ISERROR($V2121),\"\",OFFSET('Smelter Look-up'!$D$4,$V2121-4,0)&\"\")","v":""},{"$f":"IF(ISERROR($V2121),\"\",OFFSET('Smelter Look-up'!$E$4,$V2121-4,0))","v":""},{"$f":"IF(C2121=$X$4,\"Enter smelter details\",IF(ISERROR($V2121),\"\",OFFSET('Smelter Look-up'!$F$4,$V2121-4,0)))","v":""},{"$f":"IF(ISERROR($V2121),\"\",OFFSET('Smelter Look-up'!$G$4,$V2121-4,0))","v":""},{"$f":"IF(ISERROR($V2121),\"\",OFFSET('Smelter Look-up'!$H$4,$V2121-4,0))","v":""},{"$f":"IF(ISERROR($V2121),\"\",OFFSET('Smelter Look-up'!$I$4,$V2121-4,0))","v":""},{"$nulls":7},{"$f":"IF(ISERROR($V2121),\"\",OFFSET('Smelter Look-up'!$C$4,$V2121-4,0)&\"\")","v":""},"",{"$f":"IF(B2121=\"\",\"\",IF(ISERROR(MATCH($J2121,SorP!$B$1:$B$5661,0)),\"\",INDIRECT(\"'SorP'!$A$\"&MATCH($J2121,SorP!$B$1:$B$5661,0))))","v":""},null,{"$f":"IF(C2121=\"\",NA(),MATCH($B2121&$C2121,'Smelter Look-up'!$J:$J,0))","v":{"$error":"#N/A"}},null,0,null,null,null,""]
[null,{"$f":"IF(LEN(A2122)=0,\"\",INDEX('Smelter Look-up'!$A:$A,MATCH($A2122,'Smelter Look-up'!$E:$E,0)))","v":""},{"$f":"IF(LEN(A2122)=0,\"\",INDEX('Smelter Look-up'!$C:$C,MATCH($A2122,'Smelter Look-up'!$E:$E,0)))","v":""},null,{"$f":"IF(ISERROR($V2122),\"\",OFFSET('Smelter Look-up'!$D$4,$V2122-4,0)&\"\")","v":""},{"$f":"IF(ISERROR($V2122),\"\",OFFSET('Smelter Look-up'!$E$4,$V2122-4,0))","v":""},{"$f":"IF(C2122=$X$4,\"Enter smelter details\",IF(ISERROR($V2122),\"\",OFFSET('Smelter Look-up'!$F$4,$V2122-4,0)))","v":""},{"$f":"IF(ISERROR($V2122),\"\",OFFSET('Smelter Look-up'!$G$4,$V2122-4,0))","v":""},{"$f":"IF(ISERROR($V2122),\"\",OFFSET('Smelter Look-up'!$H$4,$V2122-4,0))","v":""},{"$f":"IF(ISERROR($V2122),\"\",OFFSET('Smelter Look-up'!$I$4,$V2122-4,0))","v":""},{"$nulls":7},{"$f":"IF(ISERROR($V2122),\"\",OFFSET('Smelter Look-up'!$C$4,$V2122-4,0)&\"\")","v":""},"",{"$f":"IF(B2122=\"\",\"\",IF(ISERROR(MATCH($J2122,SorP!$B$1:$B$5661,0)),\"\",INDIRECT(\"'SorP'!$A$\"&MATCH($J2122,SorP!$B$1:$B$5661,0))))","v":""},null,{"$f":"IF(C2122=\"\",NA(),MATCH($B2122&$C2122,'Smelter Look-up'!$J:$J,0))","v":{"$error":"#N/A"}},null,0,null,null,null,""]
[null,{"$f":"IF(LEN(A2123)=0,\"\",INDEX('Smelter Look-up'!$A:$A,MATCH($A2123,'Smelter Look-up'!$E:$E,0)))","v":""},{"$f":"IF(LEN(A2123)=0,\"\",INDEX('Smelter Look-up'!$C:$C,MATCH($A2123,'Smelter Look-up'!$E:$E,0)))","v":""},null,{"$f":"IF(ISERROR($V2123),\"\",OFFSET('Smelter Look-up'!$D$4,$V2123-4,0)&\"\")","v":""},{"$f":"IF(ISERROR($V2123),\"\",OFFSET('Smelter Look-up'!$E$4,$V2123-4,0))","v":""},{"$f":"IF(C2123=$X$4,\"Enter smelter details\",IF(ISERROR($V2123),\"\",OFFSET('Smelter Look-up'!$F$4,$V2123-4,0)))","v":""},{"$f":"IF(ISERROR($V2123),\"\",OFFSET('Smelter Look-up'!$G$4,$V2123-4,0))","v":""},{"$f":"IF(ISERROR($V2123),\"\",OFFSET('Smelter Look-up'!$H$4,$V2123-4,0))","v":""},{"$f":"IF(ISERROR($V2123),\"\",OFFSET('Smelter Look-up'!$I$4,$V2123-4,0))","v":""},{"$nulls":7},{"$f":"IF(ISERROR($V2123),\"\",OFFSET('Smelter Look-up'!$C$4,$V2123-4,0)&\"\")","v":""},"",{"$f":"IF(B2123=\"\",\"\",IF(ISERROR(MATCH($J2123,SorP!$B$1:$B$5661,0)),\"\",INDIRECT(\"'SorP'!$A$\"&MATCH($J2123,SorP!$B$1:$B$5661,0))))","v":""},null,{"$f":"IF(C2123=\"\",NA(),MATCH($B2123&$C2123,'Smelter Look-up'!$J:$J,0))","v":{"$error":"#N/A"}},null,0,null,null,null,""]
[null,{"$f":"IF(LEN(A2124)=0,\"\",INDEX('Smelter Look-up'!$A:$A,MATCH($A2124,'Smelter Look-up'!$E:$E,0)))","v":""},{"$f":"IF(LEN(A2124)=0,\"\",INDEX('Smelter Look-up'!$C:$C,MATCH($A2124,'Smelter Look-up'!$E:$E,0)))","v":""},null,{"$f":"IF(ISERROR($V2124),\"\",OFFSET('Smelter Look-up'!$D$4,$V2124-4,0)&\"\")","v":""},{"$f":"IF(ISERROR($V2124),\"\",OFFSET('Smelter Look-up'!$E$4,$V2124-4,0))","v":""},{"$f":"IF(C2124=$X$4,\"Enter smelter details\",IF(ISERROR($V2124),\"\",OFFSET('Smelter Look-up'!$F$4,$V2124-4,0)))","v":""},{"$f":"IF(ISERROR($V2124),\"\",OFFSET('Smelter Look-up'!$G$4,$V2124-4,0))","v":""},{"$f":"IF(ISERROR($V2124),\"\",OFFSET('Smelter Look-up'!$H$4,$V2124-4,0))","v":""},{"$f":"IF(ISERROR($V2124),\"\",OFFSET('Smelter Look-up'!$I$4,$V2124-4,0))","v":""},{"$nulls":7},{"$f":"IF(ISERROR($V2124),\"\",OFFSET('Smelter Look-up'!$C$4,$V2124-4,0)&\"\")","v":""},"",{"$f":"IF(B2124=\"\",\"\",IF(ISERROR(MATCH($J2124,SorP!$B$1:$B$5661,0)),\"\",INDIRECT(\"'SorP'!$A$\"&MATCH($J2124,SorP!$B$1:$B$5661,0))))","v":""},null,{"$f":"IF(C2124=\"\",NA(),MATCH($B2124&$C2124,'Smelter Look-up'!$J:$J,0))","v":{"$error":"#N/A"}},null,0,null,null,null,""]
[null,{"$f":"IF(LEN(A2125)=0,\"\",INDEX('Smelter Look-up'!$A:$A,MATCH($A2125,'Smelter Look-up'!$E:$E,0)))","v":""},{"$f":"IF(LEN(A2125)=0,\"\",INDEX('Smelter Look-up'!$C:$C,MATCH($A2125,'Smelter Look-up'!$E:$E,0)))","v":""},null,{"$f":"IF(ISERROR($V2125),\"\",OFFSET('Smelter Look-up'!$D$4,$V2125-4,0)&\"\")","v":""},{"$f":"IF(ISERROR($V2125),\"\",OFFSET('Smelter Look-up'!$E$4,$V2125-4,0))","v":""},{"$f":"IF(C2125=$X$4,\"Enter smelter details\",IF(ISERROR($V2125),\"\",OFFSET('Smelter Look-up'!$F$4,$V2125-4,0)))","v":""},{"$f":"IF(ISERROR($V2125),\"\",OFFSET('Smelter Look-up'!$G$4,$V2125-4,0))","v":""},{"$f":"IF(ISERROR($V2125),\"\",OFFSET('Smelter Look-up'!$H$4,$V2125-4,0))","v":""},{"$f":"IF(ISERROR($V2125),\"\",OFFSET('Smelter Look-up'!$I$4,$V2125-4,0))","v":""},{"$nulls":7},{"$f":"IF(ISERROR($V2125),\"\",OFFSET('Smelter Look-up'!$C$4,$V2125-4,0)&\"\")","v":""},"",{"$f":"IF(B2125=\"\",\"\",IF(ISERROR(MATCH($J2125,SorP!$B$1:$B$5661,0)),\"\",INDIRECT(\"'SorP'!$A$\"&MATCH($J2125,SorP!$B$1:$B$5661,0))))","v":""},null,{"$f":"IF(C2125=\"\",NA(),MATCH($B2125&$C2125,'Smelter Look-up'!$J:$J,0))","v":{"$error":"#N/A"}},null,0,null,null,null,""]
[null,{"$f":"IF(LEN(A2126)=0,\"\",INDEX('Smelter Look-up'!$A:$A,MATCH($A2126,'Smelter Look-up'!$E:$E,0)))","v":""},{"$f":"IF(LEN(A2126)=0,\"\",INDEX('Smelter Look-up'!$C:$C,MATCH($A2126,'Smelter Look-up'!$E:$E,0)))","v":""},null,{"$f":"IF(ISERROR($V2126),\"\",OFFSET('Smelter Look-up'!$D$4,$V2126-4,0)&\"\")","v":""},{"$f":"IF(ISERROR($V2126),\"\",OFFSET('Smelter Look-up'!$E$4,$V2126-4,0))","v":""},{"$f":"IF(C2126=$X$4,\"Enter smelter details\",IF(ISERROR($V2126),\"\",OFFSET('Smelter Look-up'!$F$4,$V2126-4,0)))","v":""},{"$f":"IF(ISERROR($V2126),\"\",OFFSET('Smelter Look-up'!$G$4,$V2126-4,0))","v":""},{"$f":"IF(ISERROR($V2126),\"\",OFFSET('Smelter Look-up'!$H$4,$V2126-4,0))","v":""},{"$f":"IF(ISERROR($V2126),\"\",OFFSET('Smelter Look-up'!$I$4,$V2126-4,0))","v":""},{"$nulls":7},{"$f":"IF(ISERROR($V2126),\"\",OFFSET('Smelter Look-up'!$C$4,$V2126-4,0)&\"\")","v":""},"",{"$f":"IF(B2126=\"\",\"\",IF(ISERROR(MATCH($J2126,SorP!$B$1:$B$5661,0)),\"\",INDIRECT(\"'SorP'!$A$\"&MATCH($J2126,SorP!$B$1:$B$5661,0))))","v":""},null,{"$f":"IF(C2126=\"\",NA(),MATCH($B2126&$C2126,'Smelter Look-up'!$J:$J,0))","v":{"$error":"#N/A"}},null,0,null,null,null,""]
[null,{"$f":"IF(LEN(A2127)=0,\"\",INDEX('Smelter Look-up'!$A:$A,MATCH($A2127,'Smelter Look-up'!$E:$E,0)))","v":""},{"$f":"IF(LEN(A2127)=0,\"\",INDEX('Smelter Look-up'!$C:$C,MATCH($A2127,'Smelter Look-up'!$E:$E,0)))","v":""},null,{"$f":"IF(ISERROR($V2127),\"\",OFFSET('Smelter Look-up'!$D$4,$V2127-4,0)&\"\")","v":""},{"$f":"IF(ISERROR($V2127),\"\",OFFSET('Smelter Look-up'!$E$4,$V2127-4,0))","v":""},{"$f":"IF(C2127=$X$4,\"Enter smelter details\",IF(ISERROR($V2127),\"\",OFFSET('Smelter Look-up'!$F$4,$V2127-4,0)))","v":""},{"$f":"IF(ISERROR($V2127),\"\",OFFSET('Smelter Look-up'!$G$4,$V2127-4,0))","v":""},{"$f":"IF(ISERROR($V2127),\"\",OFFSET('Smelter Look-up'!$H$4,$V2127-4,0))","v":""},{"$f":"IF(ISERROR($V2127),\"\",OFFSET('Smelter Look-up'!$I$4,$V2127-4,0))","v":""},{"$nulls":7},{"$f":"IF(ISERROR($V2127),\"\",OFFSET('Smelter Look-up'!$C$4,$V2127-4,0)&\"\")","v":""},"",{"$f":"IF(B2127=\"\",\"\",IF(ISERROR(MATCH($J2127,SorP!$B$1:$B$5661,0)),\"\",INDIRECT(\"'SorP'!$A$\"&MATCH($J2127,SorP!$B$1:$B$5661,0))))","v":""},null,{"$f":"IF(C2127=\"\",NA(),MATCH($B2127&$C2127,'Smelter Look-up'!$J:$J,0))","v":{"$error":"#N/A"}},null,0,null,null,null,""]
[null,{"$f":"IF(LEN(A2128)=0,\"\",INDEX('Smelter Look-up'!$A:$A,MATCH($A2128,'Smelter Look-up'!$E:$E,0)))","v":""},{"$f":"IF(LEN(A2128)=0,\"\",INDEX('Smelter Look-up'!$C:$C,MATCH($A2128,'Smelter Look-up'!$E:$E,0)))","v":""},null,{"$f":"IF(ISERROR($V2128),\"\",OFFSET('Smelter Look-up'!$D$4,$V2128-4,0)&\"\")","v":""},{"$f":"IF(ISERROR($V2128),\"\",OFFSET('Smelter Look-up'!$E$4,$V2128-4,0))","v":""},{"$f":"IF(C2128=$X$4,\"Enter smelter details\",IF(ISERROR($V2128),\"\",OFFSET('Smelter Look-up'!$F$4,$V2128-4,0)))","v":""},{"$f":"IF(ISERROR($V2128),\"\",OFFSET('Smelter Look-up'!$G$4,$V2128-4,0))","v":""},{"$f":"IF(ISERROR($V2128),\"\",OFFSET('Smelter Look-up'!$H$4,$V2128-4,0))","v":""},{"$f":"IF(ISERROR($V2128),\"\",OFFSET('Smelter Look-up'!$I$4,$V2128-4,0))","v":""},{"$nulls":7},{"$f":"IF(ISERROR($V2128),\"\",OFFSET('Smelter Look-up'!$C$4,$V2128-4,0)&\"\")","v":""},"",{"$f":"IF(B2128=\"\",\"\",IF(ISERROR(MATCH($J2128,SorP!$B$1:$B$5661,0)),\"\",INDIRECT(\"'SorP'!$A$\"&MATCH($J2128,SorP!$B$1:$B$5661,0))))","v":""},null,{"$f":"IF(C2128=\"\",NA(),MATCH($B2128&$C2128,'Smelter Look-up'!$J:$J,0))","v":{"$error":"#N/A"}},null,0,null,null,null,""]
[null,{"$f":"IF(LEN(A2129)=0,\"\",INDEX('Smelter Look-up'!$A:$A,MATCH($A2129,'Smelter Look-up'!$E:$E,0)))","v":""},{"$f":"IF(LEN(A2129)=0,\"\",INDEX('Smelter Look-up'!$C:$C,MATCH($A2129,'Smelter Look-up'!$E:$E,0)))","v":""},null,{"$f":"IF(ISERROR($V2129),\"\",OFFSET('Smelter Look-up'!$D$4,$V2129-4,0)&\"\")","v":""},{"$f":"IF(ISERROR($V2129),\"\",OFFSET('Smelter Look-up'!$E$4,$V2129-4,0))","v":""},{"$f":"IF(C2129=$X$4,\"Enter smelter details\",IF(ISERROR($V2129),\"\",OFFSET('Smelter Look-up'!$F$4,$V2129-4,0)))","v":""},{"$f":"IF(ISERROR($V2129),\"\",OFFSET('Smelter Look-up'!$G$4,$V2129-4,0))","v":""},{"$f":"IF(ISERROR($V2129),\"\",OFFSET('Smelter Look-up'!$H$4,$V2129-4,0))","v":""},{"$f":"IF(ISERROR($V2129),\"\",OFFSET('Smelter Look-up'!$I$4,$V2129-4,0))","v":""},{"$nulls":7},{"$f":"IF(ISERROR($V2129),\"\",OFFSET('Smelter Look-up'!$C$4,$V2129-4,0)&\"\")","v":""},"",{"$f":"IF(B2129=\"\",\"\",IF(ISERROR(MATCH($J2129,SorP!$B$1:$B$5661,0)),\"\",INDIRECT(\"'SorP'!$A$\"&MATCH($J2129,SorP!$B$1:$B$5661,0))))","v":""},null,{"$f":"IF(C2129=\"\",NA(),MATCH($B2129&$C2129,'Smelter Look-up'!$J:$J,0))","v":{"$error":"#N/A"}},null,0,null,null,null,""]
[null,{"$f":"IF(LEN(A2130)=0,\"\",INDEX('Smelter Look-up'!$A:$A,MATCH($A2130,'Smelter Look-up'!$E:$E,0)))","v":""},{"$f":"IF(LEN(A2130)=0,\"\",INDEX('Smelter Look-up'!$C:$C,MATCH($A2130,'Smelter Look-up'!$E:$E,0)))","v":""},null,{"$f":"IF(ISERROR($V2130),\"\",OFFSET('Smelter Look-up'!$D$4,$V2130-4,0)&\"\")","v":""},{"$f":"IF(ISERROR($V2130),\"\",OFFSET('Smelter Look-up'!$E$4,$V2130-4,0))","v":""},{"$f":"IF(C2130=$X$4,\"Enter smelter details\",IF(ISERROR($V2130),\"\",OFFSET('Smelter Look-up'!$F$4,$V2130-4,0)))","v":""},{"$f":"IF(ISERROR($V2130),\"\",OFFSET('Smelter Look-up'!$G$4,$V2130-4,0))","v":""},{"$f":"IF(ISERROR($V2130),\"\",OFFSET('Smelter Look-up'!$H$4,$V2130-4,0))","v":""},{"$f":"IF(ISERROR($V2130),\"\",OFFSET('Smelter Look-up'!$I$4,$V2130-4,0))","v":""},{"$nulls":7},{"$f":"IF(ISERROR($V2130),\"\",OFFSET('Smelter Look-up'!$C$4,$V2130-4,0)&\"\")","v":""},"",{"$f":"IF(B2130=\"\",\"\",IF(ISERROR(MATCH($J2130,SorP!$B$1:$B$5661,0)),\"\",INDIRECT(\"'SorP'!$A$\"&MATCH($J2130,SorP!$B$1:$B$5661,0))))","v":""},null,{"$f":"IF(C2130=\"\",NA(),MATCH($B2130&$C2130,'Smelter Look-up'!$J:$J,0))","v":{"$error":"#N/A"}},null,0,null,null,null,""]
[null,{"$f":"IF(LEN(A2131)=0,\"\",INDEX('Smelter Look-up'!$A:$A,MATCH($A2131,'Smelter Look-up'!$E:$E,0)))","v":""},{"$f":"IF(LEN(A2131)=0,\"\",INDEX('Smelter Look-up'!$C:$C,MATCH($A2131,'Smelter Look-up'!$E:$E,0)))","v":""},null,{"$f":"IF(ISERROR($V2131),\"\",OFFSET('Smelter Look-up'!$D$4,$V2131-4,0)&\"\")","v":""},{"$f":"IF(ISERROR($V2131),\"\",OFFSET('Smelter Look-up'!$E$4,$V2131-4,0))","v":""},{"$f":"IF(C2131=$X$4,\"Enter smelter details\",IF(ISERROR($V2131),\"\",OFFSET('Smelter Look-up'!$F$4,$V2131-4,0)))","v":""},{"$f":"IF(ISERROR($V2131),\"\",OFFSET('Smelter Look-up'!$G$4,$V2131-4,0))","v":""},{"$f":"IF(ISERROR($V2131),\"\",OFFSET('Smelter Look-up'!$H$4,$V2131-4,0))","v":""},{"$f":"IF(ISERROR($V2131),\"\",OFFSET('Smelter Look-up'!$I$4,$V2131-4,0))","v":""},{"$nulls":7},{"$f":"IF(ISERROR($V2131),\"\",OFFSET('Smelter Look-up'!$C$4,$V2131-4,0)&\"\")","v":""},"",{"$f":"IF(B2131=\"\",\"\",IF(ISERROR(MATCH($J2131,SorP!$B$1:$B$5661,0)),\"\",INDIRECT(\"'SorP'!$A$\"&MATCH($J2131,SorP!$B$1:$B$5661,0))))","v":""},null,{"$f":"IF(C2131=\"\",NA(),MATCH($B2131&$C2131,'Smelter Look-up'!$J:$J,0))","v":{"$error":"#N/A"}},null,0,null,null,null,""]
[null,{"$f":"IF(LEN(A2132)=0,\"\",INDEX('Smelter Look-up'!$A:$A,MATCH($A2132,'Smelter Look-up'!$E:$E,0)))","v":""},{"$f":"IF(LEN(A2132)=0,\"\",INDEX('Smelter Look-up'!$C:$C,MATCH($A2132,'Smelter Look-up'!$E:$E,0)))","v":""},null,{"$f":"IF(ISERROR($V2132),\"\",OFFSET('Smelter Look-up'!$D$4,$V2132-4,0)&\"\")","v":""},{"$f":"IF(ISERROR($V2132),\"\",OFFSET('Smelter Look-up'!$E$4,$V2132-4,0))","v":""},{"$f":"IF(C2132=$X$4,\"Enter smelter details\",IF(ISERROR($V2132),\"\",OFFSET('Smelter Look-up'!$F$4,$V2132-4,0)))","v":""},{"$f":"IF(ISERROR($V2132),\"\",OFFSET('Smelter Look-up'!$G$4,$V2132-4,0))","v":""},{"$f":"IF(ISERROR($V2132),\"\",OFFSET('Smelter Look-up'!$H$4,$V2132-4,0))","v":""},{"$f":"IF(ISERROR($V2132),\"\",OFFSET('Smelter Look-up'!$I$4,$V2132-4,0))","v":""},{"$nulls":7},{"$f":"IF(ISERROR($V2132),\"\",OFFSET('Smelter Look-up'!$C$4,$V2132-4,0)&\"\")","v":""},"",{"$f":"IF(B2132=\"\",\"\",IF(ISERROR(MATCH($J2132,SorP!$B$1:$B$5661,0)),\"\",INDIRECT(\"'SorP'!$A$\"&MATCH($J2132,SorP!$B$1:$B$5661,0))))","v":""},null,{"$f":"IF(C2132=\"\",NA(),MATCH($B2132&$C2132,'Smelter Look-up'!$J:$J,0))","v":{"$error":"#N/A"}},null,0,null,null,null,""]
[null,{"$f":"IF(LEN(A2133)=0,\"\",INDEX('Smelter Look-up'!$A:$A,MATCH($A2133,'Smelter Look-up'!$E:$E,0)))","v":""},{"$f":"IF(LEN(A2133)=0,\"\",INDEX('Smelter Look-up'!$C:$C,MATCH($A2133,'Smelter Look-up'!$E:$E,0)))","v":""},null,{"$f":"IF(ISERROR($V2133),\"\",OFFSET('Smelter Look-up'!$D$4,$V2133-4,0)&\"\")","v":""},{"$f":"IF(ISERROR($V2133),\"\",OFFSET('Smelter Look-up'!$E$4,$V2133-4,0))","v":""},{"$f":"IF(C2133=$X$4,\"Enter smelter details\",IF(ISERROR($V2133),\"\",OFFSET('Smelter Look-up'!$F$4,$V2133-4,0)))","v":""},{"$f":"IF(ISERROR($V2133),\"\",OFFSET('Smelter Look-up'!$G$4,$V2133-4,0))","v":""},{"$f":"IF(ISERROR($V2133),\"\",OFFSET('Smelter Look-up'!$H$4,$V2133-4,0))","v":""},{"$f":"IF(ISERROR($V2133),\"\",OFFSET('Smelter Look-up'!$I$4,$V2133-4,0))","v":""},{"$nulls":7},{"$f":"IF(ISERROR($V2133),\"\",OFFSET('Smelter Look-up'!$C$4,$V2133-4,0)&\"\")","v":""},"",{"$f":"IF(B2133=\"\",\"\",IF(ISERROR(MATCH($J2133,SorP!$B$1:$B$5661,0)),\"\",INDIRECT(\"'SorP'!$A$\"&MATCH($J2133,SorP!$B$1:$B$5661,0))))","v":""},null,{"$f":"IF(C2133=\"\",NA(),MATCH($B2133&$C2133,'Smelter Look-up'!$J:$J,0))","v":{"$error":"#N/A"}},null,0,null,null,null,""]
[null,{"$f":"IF(LEN(A2134)=0,\"\",INDEX('Smelter Look-up'!$A:$A,MATCH($A2134,'Smelter Look-up'!$E:$E,0)))","v":""},{"$f":"IF(LEN(A2134)=0,\"\",INDEX('Smelter Look-up'!$C:$C,MATCH($A2134,'Smelter Look-up'!$E:$E,0)))","v":""},null,{"$f":"IF(ISERROR($V2134),\"\",OFFSET('Smelter Look-up'!$D$4,$V2134-4,0)&\"\")","v":""},{"$f":"IF(ISERROR($V2134),\"\",OFFSET('Smelter Look-up'!$E$4,$V2134-4,0))","v":""},{"$f":"IF(C2134=$X$4,\"Enter smelter details\",IF(ISERROR($V2134),\"\",OFFSET('Smelter Look-up'!$F$4,$V2134-4,0)))","v":""},{"$f":"IF(ISERROR($V2134),\"\",OFFSET('Smelter Look-up'!$G$4,$V2134-4,0))","v":""},{"$f":"IF(ISERROR($V2134),\"\",OFFSET('Smelter Look-up'!$H$4,$V2134-4,0))","v":""},{"$f":"IF(ISERROR($V2134),\"\",OFFSET('Smelter Look-up'!$I$4,$V2134-4,0))","v":""},{"$nulls":7},{"$f":"IF(ISERROR($V2134),\"\",OFFSET('Smelter Look-up'!$C$4,$V2134-4,0)&\"\")","v":""},"",{"$f":"IF(B2134=\"\",\"\",IF(ISERROR(MATCH($J2134,SorP!$B$1:$B$5661,0)),\"\",INDIRECT(\"'SorP'!$A$\"&MATCH($J2134,SorP!$B$1:$B$5661,0))))","v":""},null,{"$f":"IF(C2134=\"\",NA(),MATCH($B2134&$C2134,'Smelter Look-up'!$J:$J,0))","v":{"$error":"#N/A"}},null,0,null,null,null,""]
[null,{"$f":"IF(LEN(A2135)=0,\"\",INDEX('Smelter Look-up'!$A:$A,MATCH($A2135,'Smelter Look-up'!$E:$E,0)))","v":""},{"$f":"IF(LEN(A2135)=0,\"\",INDEX('Smelter Look-up'!$C:$C,MATCH($A2135,'Smelter Look-up'!$E:$E,0)))","v":""},null,{"$f":"IF(ISERROR($V2135),\"\",OFFSET('Smelter Look-up'!$D$4,$V2135-4,0)&\"\")","v":""},{"$f":"IF(ISERROR($V2135),\"\",OFFSET('Smelter Look-up'!$E$4,$V2135-4,0))","v":""},{"$f":"IF(C2135=$X$4,\"Enter smelter details\",IF(ISERROR($V2135),\"\",OFFSET('Smelter Look-up'!$F$4,$V2135-4,0)))","v":""},{"$f":"IF(ISERROR($V2135),\"\",OFFSET('Smelter Look-up'!$G$4,$V2135-4,0))","v":""},{"$f":"IF(ISERROR($V2135),\"\",OFFSET('Smelter Look-up'!$H$4,$V2135-4,0))","v":""},{"$f":"IF(ISERROR($V2135),\"\",OFFSET('Smelter Look-up'!$I$4,$V2135-4,0))","v":""},{"$nulls":7},{"$f":"IF(ISERROR($V2135),\"\",OFFSET('Smelter Look-up'!$C$4,$V2135-4,0)&\"\")","v":""},"",{"$f":"IF(B2135=\"\",\"\",IF(ISERROR(MATCH($J2135,SorP!$B$1:$B$5661,0)),\"\",INDIRECT(\"'SorP'!$A$\"&MATCH($J2135,SorP!$B$1:$B$5661,0))))","v":""},null,{"$f":"IF(C2135=\"\",NA(),MATCH($B2135&$C2135,'Smelter Look-up'!$J:$J,0))","v":{"$error":"#N/A"}},null,0,null,null,null,""]
[null,{"$f":"IF(LEN(A2136)=0,\"\",INDEX('Smelter Look-up'!$A:$A,MATCH($A2136,'Smelter Look-up'!$E:$E,0)))","v":""},{"$f":"IF(LEN(A2136)=0,\"\",INDEX('Smelter Look-up'!$C:$C,MATCH($A2136,'Smelter Look-up'!$E:$E,0)))","v":""},null,{"$f":"IF(ISERROR($V2136),\"\",OFFSET('Smelter Look-up'!$D$4,$V2136-4,0)&\"\")","v":""},{"$f":"IF(ISERROR($V2136),\"\",OFFSET('Smelter Look-up'!$E$4,$V2136-4,0))","v":""},{"$f":"IF(C2136=$X$4,\"Enter smelter details\",IF(ISERROR($V2136),\"\",OFFSET('Smelter Look-up'!$F$4,$V2136-4,0)))","v":""},{"$f":"IF(ISERROR($V2136),\"\",OFFSET('Smelter Look-up'!$G$4,$V2136-4,0))","v":""},{"$f":"IF(ISERROR($V2136),\"\",OFFSET('Smelter Look-up'!$H$4,$V2136-4,0))","v":""},{"$f":"IF(ISERROR($V2136),\"\",OFFSET('Smelter Look-up'!$I$4,$V2136-4,0))","v":""},{"$nulls":7},{"$f":"IF(ISERROR($V2136),\"\",OFFSET('Smelter Look-up'!$C$4,$V2136-4,0)&\"\")","v":""},"",{"$f":"IF(B2136=\"\",\"\",IF(ISERROR(MATCH($J2136,SorP!$B$1:$B$5661,0)),\"\",INDIRECT(\"'SorP'!$A$\"&MATCH($J2136,SorP!$B$1:$B$5661,0))))","v":""},null,{"$f":"IF(C2136=\"\",NA(),MATCH($B2136&$C2136,'Smelter Look-up'!$J:$J,0))","v":{"$error":"#N/A"}},null,0,null,null,null,""]
[null,{"$f":"IF(LEN(A2137)=0,\"\",INDEX('Smelter Look-up'!$A:$A,MATCH($A2137,'Smelter Look-up'!$E:$E,0)))","v":""},{"$f":"IF(LEN(A2137)=0,\"\",INDEX('Smelter Look-up'!$C:$C,MATCH($A2137,'Smelter Look-up'!$E:$E,0)))","v":""},null,{"$f":"IF(ISERROR($V2137),\"\",OFFSET('Smelter Look-up'!$D$4,$V2137-4,0)&\"\")","v":""},{"$f":"IF(ISERROR($V2137),\"\",OFFSET('Smelter Look-up'!$E$4,$V2137-4,0))","v":""},{"$f":"IF(C2137=$X$4,\"Enter smelter details\",IF(ISERROR($V2137),\"\",OFFSET('Smelter Look-up'!$F$4,$V2137-4,0)))","v":""},{"$f":"IF(ISERROR($V2137),\"\",OFFSET('Smelter Look-up'!$G$4,$V2137-4,0))","v":""},{"$f":"IF(ISERROR($V2137),\"\",OFFSET('Smelter Look-up'!$H$4,$V2137-4,0))","v":""},{"$f":"IF(ISERROR($V2137),\"\",OFFSET('Smelter Look-up'!$I$4,$V2137-4,0))","v":""},{"$nulls":7},{"$f":"IF(ISERROR($V2137),\"\",OFFSET('Smelter Look-up'!$C$4,$V2137-4,0)&\"\")","v":""},"",{"$f":"IF(B2137=\"\",\"\",IF(ISERROR(MATCH($J2137,SorP!$B$1:$B$5661,0)),\"\",INDIRECT(\"'SorP'!$A$\"&MATCH($J2137,SorP!$B$1:$B$5661,0))))","v":""},null,{"$f":"IF(C2137=\"\",NA(),MATCH($B2137&$C2137,'Smelter Look-up'!$J:$J,0))","v":{"$error":"#N/A"}},null,0,null,null,null,""]
[null,{"$f":"IF(LEN(A2138)=0,\"\",INDEX('Smelter Look-up'!$A:$A,MATCH($A2138,'Smelter Look-up'!$E:$E,0)))","v":""},{"$f":"IF(LEN(A2138)=0,\"\",INDEX('Smelter Look-up'!$C:$C,MATCH($A2138,'Smelter Look-up'!$E:$E,0)))","v":""},null,{"$f":"IF(ISERROR($V2138),\"\",OFFSET('Smelter Look-up'!$D$4,$V2138-4,0)&\"\")","v":""},{"$f":"IF(ISERROR($V2138),\"\",OFFSET('Smelter Look-up'!$E$4,$V2138-4,0))","v":""},{"$f":"IF(C2138=$X$4,\"Enter smelter details\",IF(ISERROR($V2138),\"\",OFFSET('Smelter Look-up'!$F$4,$V2138-4,0)))","v":""},{"$f":"IF(ISERROR($V2138),\"\",OFFSET('Smelter Look-up'!$G$4,$V2138-4,0))","v":""},{"$f":"IF(ISERROR($V2138),\"\",OFFSET('Smelter Look-up'!$H$4,$V2138-4,0))","v":""},{"$f":"IF(ISERROR($V2138),\"\",OFFSET('Smelter Look-up'!$I$4,$V2138-4,0))","v":""},{"$nulls":7},{"$f":"IF(ISERROR($V2138),\"\",OFFSET('Smelter Look-up'!$C$4,$V2138-4,0)&\"\")","v":""},"",{"$f":"IF(B2138=\"\",\"\",IF(ISERROR(MATCH($J2138,SorP!$B$1:$B$5661,0)),\"\",INDIRECT(\"'SorP'!$A$\"&MATCH($J2138,SorP!$B$1:$B$5661,0))))","v":""},null,{"$f":"IF(C2138=\"\",NA(),MATCH($B2138&$C2138,'Smelter Look-up'!$J:$J,0))","v":{"$error":"#N/A"}},null,0,null,null,null,""]
[null,{"$f":"IF(LEN(A2139)=0,\"\",INDEX('Smelter Look-up'!$A:$A,MATCH($A2139,'Smelter Look-up'!$E:$E,0)))","v":""},{"$f":"IF(LEN(A2139)=0,\"\",INDEX('Smelter Look-up'!$C:$C,MATCH($A2139,'Smelter Look-up'!$E:$E,0)))","v":""},null,{"$f":"IF(ISERROR($V2139),\"\",OFFSET('Smelter Look-up'!$D$4,$V2139-4,0)&\"\")","v":""},{"$f":"IF(ISERROR($V2139),\"\",OFFSET('Smelter Look-up'!$E$4,$V2139-4,0))","v":""},{"$f":"IF(C2139=$X$4,\"Enter smelter details\",IF(ISERROR($V2139),\"\",OFFSET('Smelter Look-up'!$F$4,$V2139-4,0)))","v":""},{"$f":"IF(ISERROR($V2139),\"\",OFFSET('Smelter Look-up'!$G$4,$V2139-4,0))","v":""},{"$f":"IF(ISERROR($V2139),\"\",OFFSET('Smelter Look-up'!$H$4,$V2139-4,0))","v":""},{"$f":"IF(ISERROR($V2139),\"\",OFFSET('Smelter Look-up'!$I$4,$V2139-4,0))","v":""},{"$nulls":7},{"$f":"IF(ISERROR($V2139),\"\",OFFSET('Smelter Look-up'!$C$4,$V2139-4,0)&\"\")","v":""},"",{"$f":"IF(B2139=\"\",\"\",IF(ISERROR(MATCH($J2139,SorP!$B$1:$B$5661,0)),\"\",INDIRECT(\"'SorP'!$A$\"&MATCH($J2139,SorP!$B$1:$B$5661,0))))","v":""},null,{"$f":"IF(C2139=\"\",NA(),MATCH($B2139&$C2139,'Smelter Look-up'!$J:$J,0))","v":{"$error":"#N/A"}},null,0,null,null,null,""]
[null,{"$f":"IF(LEN(A2140)=0,\"\",INDEX('Smelter Look-up'!$A:$A,MATCH($A2140,'Smelter Look-up'!$E:$E,0)))","v":""},{"$f":"IF(LEN(A2140)=0,\"\",INDEX('Smelter Look-up'!$C:$C,MATCH($A2140,'Smelter Look-up'!$E:$E,0)))","v":""},null,{"$f":"IF(ISERROR($V2140),\"\",OFFSET('Smelter Look-up'!$D$4,$V2140-4,0)&\"\")","v":""},{"$f":"IF(ISERROR($V2140),\"\",OFFSET('Smelter Look-up'!$E$4,$V2140-4,0))","v":""},{"$f":"IF(C2140=$X$4,\"Enter smelter details\",IF(ISERROR($V2140),\"\",OFFSET('Smelter Look-up'!$F$4,$V2140-4,0)))","v":""},{"$f":"IF(ISERROR($V2140),\"\",OFFSET('Smelter Look-up'!$G$4,$V2140-4,0))","v":""},{"$f":"IF(ISERROR($V2140),\"\",OFFSET('Smelter Look-up'!$H$4,$V2140-4,0))","v":""},{"$f":"IF(ISERROR($V2140),\"\",OFFSET('Smelter Look-up'!$I$4,$V2140-4,0))","v":""},{"$nulls":7},{"$f":"IF(ISERROR($V2140),\"\",OFFSET('Smelter Look-up'!$C$4,$V2140-4,0)&\"\")","v":""},"",{"$f":"IF(B2140=\"\",\"\",IF(ISERROR(MATCH($J2140,SorP!$B$1:$B$5661,0)),\"\",INDIRECT(\"'SorP'!$A$\"&MATCH($J2140,SorP!$B$1:$B$5661,0))))","v":""},null,{"$f":"IF(C2140=\"\",NA(),MATCH($B2140&$C2140,'Smelter Look-up'!$J:$J,0))","v":{"$error":"#N/A"}},null,0,null,null,null,""]
[null,{"$f":"IF(LEN(A2141)=0,\"\",INDEX('Smelter Look-up'!$A:$A,MATCH($A2141,'Smelter Look-up'!$E:$E,0)))","v":""},{"$f":"IF(LEN(A2141)=0,\"\",INDEX('Smelter Look-up'!$C:$C,MATCH($A2141,'Smelter Look-up'!$E:$E,0)))","v":""},null,{"$f":"IF(ISERROR($V2141),\"\",OFFSET('Smelter Look-up'!$D$4,$V2141-4,0)&\"\")","v":""},{"$f":"IF(ISERROR($V2141),\"\",OFFSET('Smelter Look-up'!$E$4,$V2141-4,0))","v":""},{"$f":"IF(C2141=$X$4,\"Enter smelter details\",IF(ISERROR($V2141),\"\",OFFSET('Smelter Look-up'!$F$4,$V2141-4,0)))","v":""},{"$f":"IF(ISERROR($V2141),\"\",OFFSET('Smelter Look-up'!$G$4,$V2141-4,0))","v":""},{"$f":"IF(ISERROR($V2141),\"\",OFFSET('Smelter Look-up'!$H$4,$V2141-4,0))","v":""},{"$f":"IF(ISERROR($V2141),\"\",OFFSET('Smelter Look-up'!$I$4,$V2141-4,0))","v":""},{"$nulls":7},{"$f":"IF(ISERROR($V2141),\"\",OFFSET('Smelter Look-up'!$C$4,$V2141-4,0)&\"\")","v":""},"",{"$f":"IF(B2141=\"\",\"\",IF(ISERROR(MATCH($J2141,SorP!$B$1:$B$5661,0)),\"\",INDIRECT(\"'SorP'!$A$\"&MATCH($J2141,SorP!$B$1:$B$5661,0))))","v":""},null,{"$f":"IF(C2141=\"\",NA(),MATCH($B2141&$C2141,'Smelter Look-up'!$J:$J,0))","v":{"$error":"#N/A"}},null,0,null,null,null,""]
[null,{"$f":"IF(LEN(A2142)=0,\"\",INDEX('Smelter Look-up'!$A:$A,MATCH($A2142,'Smelter Look-up'!$E:$E,0)))","v":""},{"$f":"IF(LEN(A2142)=0,\"\",INDEX('Smelter Look-up'!$C:$C,MATCH($A2142,'Smelter Look-up'!$E:$E,0)))","v":""},null,{"$f":"IF(ISERROR($V2142),\"\",OFFSET('Smelter Look-up'!$D$4,$V2142-4,0)&\"\")","v":""},{"$f":"IF(ISERROR($V2142),\"\",OFFSET('Smelter Look-up'!$E$4,$V2142-4,0))","v":""},{"$f":"IF(C2142=$X$4,\"Enter smelter details\",IF(ISERROR($V2142),\"\",OFFSET('Smelter Look-up'!$F$4,$V2142-4,0)))","v":""},{"$f":"IF(ISERROR($V2142),\"\",OFFSET('Smelter Look-up'!$G$4,$V2142-4,0))","v":""},{"$f":"IF(ISERROR($V2142),\"\",OFFSET('Smelter Look-up'!$H$4,$V2142-4,0))","v":""},{"$f":"IF(ISERROR($V2142),\"\",OFFSET('Smelter Look-up'!$I$4,$V2142-4,0))","v":""},{"$nulls":7},{"$f":"IF(ISERROR($V2142),\"\",OFFSET('Smelter Look-up'!$C$4,$V2142-4,0)&\"\")","v":""},"",{"$f":"IF(B2142=\"\",\"\",IF(ISERROR(MATCH($J2142,SorP!$B$1:$B$5661,0)),\"\",INDIRECT(\"'SorP'!$A$\"&MATCH($J2142,SorP!$B$1:$B$5661,0))))","v":""},null,{"$f":"IF(C2142=\"\",NA(),MATCH($B2142&$C2142,'Smelter Look-up'!$J:$J,0))","v":{"$error":"#N/A"}},null,0,null,null,null,""]
[null,{"$f":"IF(LEN(A2143)=0,\"\",INDEX('Smelter Look-up'!$A:$A,MATCH($A2143,'Smelter Look-up'!$E:$E,0)))","v":""},{"$f":"IF(LEN(A2143)=0,\"\",INDEX('Smelter Look-up'!$C:$C,MATCH($A2143,'Smelter Look-up'!$E:$E,0)))","v":""},null,{"$f":"IF(ISERROR($V2143),\"\",OFFSET('Smelter Look-up'!$D$4,$V2143-4,0)&\"\")","v":""},{"$f":"IF(ISERROR($V2143),\"\",OFFSET('Smelter Look-up'!$E$4,$V2143-4,0))","v":""},{"$f":"IF(C2143=$X$4,\"Enter smelter details\",IF(ISERROR($V2143),\"\",OFFSET('Smelter Look-up'!$F$4,$V2143-4,0)))","v":""},{"$f":"IF(ISERROR($V2143),\"\",OFFSET('Smelter Look-up'!$G$4,$V2143-4,0))","v":""},{"$f":"IF(ISERROR($V2143),\"\",OFFSET('Smelter Look-up'!$H$4,$V2143-4,0))","v":""},{"$f":"IF(ISERROR($V2143),\"\",OFFSET('Smelter Look-up'!$I$4,$V2143-4,0))","v":""},{"$nulls":7},{"$f":"IF(ISERROR($V2143),\"\",OFFSET('Smelter Look-up'!$C$4,$V2143-4,0)&\"\")","v":""},"",{"$f":"IF(B2143=\"\",\"\",IF(ISERROR(MATCH($J2143,SorP!$B$1:$B$5661,0)),\"\",INDIRECT(\"'SorP'!$A$\"&MATCH($J2143,SorP!$B$1:$B$5661,0))))","v":""},null,{"$f":"IF(C2143=\"\",NA(),MATCH($B2143&$C2143,'Smelter Look-up'!$J:$J,0))","v":{"$error":"#N/A"}},null,0,null,null,null,""]
[null,{"$f":"IF(LEN(A2144)=0,\"\",INDEX('Smelter Look-up'!$A:$A,MATCH($A2144,'Smelter Look-up'!$E:$E,0)))","v":""},{"$f":"IF(LEN(A2144)=0,\"\",INDEX('Smelter Look-up'!$C:$C,MATCH($A2144,'Smelter Look-up'!$E:$E,0)))","v":""},null,{"$f":"IF(ISERROR($V2144),\"\",OFFSET('Smelter Look-up'!$D$4,$V2144-4,0)&\"\")","v":""},{"$f":"IF(ISERROR($V2144),\"\",OFFSET('Smelter Look-up'!$E$4,$V2144-4,0))","v":""},{"$f":"IF(C2144=$X$4,\"Enter smelter details\",IF(ISERROR($V2144),\"\",OFFSET('Smelter Look-up'!$F$4,$V2144-4,0)))","v":""},{"$f":"IF(ISERROR($V2144),\"\",OFFSET('Smelter Look-up'!$G$4,$V2144-4,0))","v":""},{"$f":"IF(ISERROR($V2144),\"\",OFFSET('Smelter Look-up'!$H$4,$V2144-4,0))","v":""},{"$f":"IF(ISERROR($V2144),\"\",OFFSET('Smelter Look-up'!$I$4,$V2144-4,0))","v":""},{"$nulls":7},{"$f":"IF(ISERROR($V2144),\"\",OFFSET('Smelter Look-up'!$C$4,$V2144-4,0)&\"\")","v":""},"",{"$f":"IF(B2144=\"\",\"\",IF(ISERROR(MATCH($J2144,SorP!$B$1:$B$5661,0)),\"\",INDIRECT(\"'SorP'!$A$\"&MATCH($J2144,SorP!$B$1:$B$5661,0))))","v":""},null,{"$f":"IF(C2144=\"\",NA(),MATCH($B2144&$C2144,'Smelter Look-up'!$J:$J,0))","v":{"$error":"#N/A"}},null,0,null,null,null,""]
[null,{"$f":"IF(LEN(A2145)=0,\"\",INDEX('Smelter Look-up'!$A:$A,MATCH($A2145,'Smelter Look-up'!$E:$E,0)))","v":""},{"$f":"IF(LEN(A2145)=0,\"\",INDEX('Smelter Look-up'!$C:$C,MATCH($A2145,'Smelter Look-up'!$E:$E,0)))","v":""},null,{"$f":"IF(ISERROR($V2145),\"\",OFFSET('Smelter Look-up'!$D$4,$V2145-4,0)&\"\")","v":""},{"$f":"IF(ISERROR($V2145),\"\",OFFSET('Smelter Look-up'!$E$4,$V2145-4,0))","v":""},{"$f":"IF(C2145=$X$4,\"Enter smelter details\",IF(ISERROR($V2145),\"\",OFFSET('Smelter Look-up'!$F$4,$V2145-4,0)))","v":""},{"$f":"IF(ISERROR($V2145),\"\",OFFSET('Smelter Look-up'!$G$4,$V2145-4,0))","v":""},{"$f":"IF(ISERROR($V2145),\"\",OFFSET('Smelter Look-up'!$H$4,$V2145-4,0))","v":""},{"$f":"IF(ISERROR($V2145),\"\",OFFSET('Smelter Look-up'!$I$4,$V2145-4,0))","v":""},{"$nulls":7},{"$f":"IF(ISERROR($V2145),\"\",OFFSET('Smelter Look-up'!$C$4,$V2145-4,0)&\"\")","v":""},"",{"$f":"IF(B2145=\"\",\"\",IF(ISERROR(MATCH($J2145,SorP!$B$1:$B$5661,0)),\"\",INDIRECT(\"'SorP'!$A$\"&MATCH($J2145,SorP!$B$1:$B$5661,0))))","v":""},null,{"$f":"IF(C2145=\"\",NA(),MATCH($B2145&$C2145,'Smelter Look-up'!$J:$J,0))","v":{"$error":"#N/A"}},null,0,null,null,null,""]
[null,{"$f":"IF(LEN(A2146)=0,\"\",INDEX('Smelter Look-up'!$A:$A,MATCH($A2146,'Smelter Look-up'!$E:$E,0)))","v":""},{"$f":"IF(LEN(A2146)=0,\"\",INDEX('Smelter Look-up'!$C:$C,MATCH($A2146,'Smelter Look-up'!$E:$E,0)))","v":""},null,{"$f":"IF(ISERROR($V2146),\"\",OFFSET('Smelter Look-up'!$D$4,$V2146-4,0)&\"\")","v":""},{"$f":"IF(ISERROR($V2146),\"\",OFFSET('Smelter Look-up'!$E$4,$V2146-4,0))","v":""},{"$f":"IF(C2146=$X$4,\"Enter smelter details\",IF(ISERROR($V2146),\"\",OFFSET('Smelter Look-up'!$F$4,$V2146-4,0)))","v":""},{"$f":"IF(ISERROR($V2146),\"\",OFFSET('Smelter Look-up'!$G$4,$V2146-4,0))","v":""},{"$f":"IF(ISERROR($V2146),\"\",OFFSET('Smelter Look-up'!$H$4,$V2146-4,0))","v":""},{"$f":"IF(ISERROR($V2146),\"\",OFFSET('Smelter Look-up'!$I$4,$V2146-4,0))","v":""},{"$nulls":7},{"$f":"IF(ISERROR($V2146),\"\",OFFSET('Smelter Look-up'!$C$4,$V2146-4,0)&\"\")","v":""},"",{"$f":"IF(B2146=\"\",\"\",IF(ISERROR(MATCH($J2146,SorP!$B$1:$B$5661,0)),\"\",INDIRECT(\"'SorP'!$A$\"&MATCH($J2146,SorP!$B$1:$B$5661,0))))","v":""},null,{"$f":"IF(C2146=\"\",NA(),MATCH($B2146&$C2146,'Smelter Look-up'!$J:$J,0))","v":{"$error":"#N/A"}},null,0,null,null,null,""]
[null,{"$f":"IF(LEN(A2147)=0,\"\",INDEX('Smelter Look-up'!$A:$A,MATCH($A2147,'Smelter Look-up'!$E:$E,0)))","v":""},{"$f":"IF(LEN(A2147)=0,\"\",INDEX('Smelter Look-up'!$C:$C,MATCH($A2147,'Smelter Look-up'!$E:$E,0)))","v":""},null,{"$f":"IF(ISERROR($V2147),\"\",OFFSET('Smelter Look-up'!$D$4,$V2147-4,0)&\"\")","v":""},{"$f":"IF(ISERROR($V2147),\"\",OFFSET('Smelter Look-up'!$E$4,$V2147-4,0))","v":""},{"$f":"IF(C2147=$X$4,\"Enter smelter details\",IF(ISERROR($V2147),\"\",OFFSET('Smelter Look-up'!$F$4,$V2147-4,0)))","v":""},{"$f":"IF(ISERROR($V2147),\"\",OFFSET('Smelter Look-up'!$G$4,$V2147-4,0))","v":""},{"$f":"IF(ISERROR($V2147),\"\",OFFSET('Smelter Look-up'!$H$4,$V2147-4,0))","v":""},{"$f":"IF(ISERROR($V2147),\"\",OFFSET('Smelter Look-up'!$I$4,$V2147-4,0))","v":""},{"$nulls":7},{"$f":"IF(ISERROR($V2147),\"\",OFFSET('Smelter Look-up'!$C$4,$V2147-4,0)&\"\")","v":""},"",{"$f":"IF(B2147=\"\",\"\",IF(ISERROR(MATCH($J2147,SorP!$B$1:$B$5661,0)),\"\",INDIRECT(\"'SorP'!$A$\"&MATCH($J2147,SorP!$B$1:$B$5661,0))))","v":""},null,{"$f":"IF(C2147=\"\",NA(),MATCH($B2147&$C2147,'Smelter Look-up'!$J:$J,0))","v":{"$error":"#N/A"}},null,0,null,null,null,""]
[null,{"$f":"IF(LEN(A2148)=0,\"\",INDEX('Smelter Look-up'!$A:$A,MATCH($A2148,'Smelter Look-up'!$E:$E,0)))","v":""},{"$f":"IF(LEN(A2148)=0,\"\",INDEX('Smelter Look-up'!$C:$C,MATCH($A2148,'Smelter Look-up'!$E:$E,0)))","v":""},null,{"$f":"IF(ISERROR($V2148),\"\",OFFSET('Smelter Look-up'!$D$4,$V2148-4,0)&\"\")","v":""},{"$f":"IF(ISERROR($V2148),\"\",OFFSET('Smelter Look-up'!$E$4,$V2148-4,0))","v":""},{"$f":"IF(C2148=$X$4,\"Enter smelter details\",IF(ISERROR($V2148),\"\",OFFSET('Smelter Look-up'!$F$4,$V2148-4,0)))","v":""},{"$f":"IF(ISERROR($V2148),\"\",OFFSET('Smelter Look-up'!$G$4,$V2148-4,0))","v":""},{"$f":"IF(ISERROR($V2148),\"\",OFFSET('Smelter Look-up'!$H$4,$V2148-4,0))","v":""},{"$f":"IF(ISERROR($V2148),\"\",OFFSET('Smelter Look-up'!$I$4,$V2148-4,0))","v":""},{"$nulls":7},{"$f":"IF(ISERROR($V2148),\"\",OFFSET('Smelter Look-up'!$C$4,$V2148-4,0)&\"\")","v":""},"",{"$f":"IF(B2148=\"\",\"\",IF(ISERROR(MATCH($J2148,SorP!$B$1:$B$5661,0)),\"\",INDIRECT(\"'SorP'!$A$\"&MATCH($J2148,SorP!$B$1:$B$5661,0))))","v":""},null,{"$f":"IF(C2148=\"\",NA(),MATCH($B2148&$C2148,'Smelter Look-up'!$J:$J,0))","v":{"$error":"#N/A"}},null,0,null,null,null,""]
[null,{"$f":"IF(LEN(A2149)=0,\"\",INDEX('Smelter Look-up'!$A:$A,MATCH($A2149,'Smelter Look-up'!$E:$E,0)))","v":""},{"$f":"IF(LEN(A2149)=0,\"\",INDEX('Smelter Look-up'!$C:$C,MATCH($A2149,'Smelter Look-up'!$E:$E,0)))","v":""},null,{"$f":"IF(ISERROR($V2149),\"\",OFFSET('Smelter Look-up'!$D$4,$V2149-4,0)&\"\")","v":""},{"$f":"IF(ISERROR($V2149),\"\",OFFSET('Smelter Look-up'!$E$4,$V2149-4,0))","v":""},{"$f":"IF(C2149=$X$4,\"Enter smelter details\",IF(ISERROR($V2149),\"\",OFFSET('Smelter Look-up'!$F$4,$V2149-4,0)))","v":""},{"$f":"IF(ISERROR($V2149),\"\",OFFSET('Smelter Look-up'!$G$4,$V2149-4,0))","v":""},{"$f":"IF(ISERROR($V2149),\"\",OFFSET('Smelter Look-up'!$H$4,$V2149-4,0))","v":""},{"$f":"IF(ISERROR($V2149),\"\",OFFSET('Smelter Look-up'!$I$4,$V2149-4,0))","v":""},{"$nulls":7},{"$f":"IF(ISERROR($V2149),\"\",OFFSET('Smelter Look-up'!$C$4,$V2149-4,0)&\"\")","v":""},"",{"$f":"IF(B2149=\"\",\"\",IF(ISERROR(MATCH($J2149,SorP!$B$1:$B$5661,0)),\"\",INDIRECT(\"'SorP'!$A$\"&MATCH($J2149,SorP!$B$1:$B$5661,0))))","v":""},null,{"$f":"IF(C2149=\"\",NA(),MATCH($B2149&$C2149,'Smelter Look-up'!$J:$J,0))","v":{"$error":"#N/A"}},null,0,null,null,null,""]
[null,{"$f":"IF(LEN(A2150)=0,\"\",INDEX('Smelter Look-up'!$A:$A,MATCH($A2150,'Smelter Look-up'!$E:$E,0)))","v":""},{"$f":"IF(LEN(A2150)=0,\"\",INDEX('Smelter Look-up'!$C:$C,MATCH($A2150,'Smelter Look-up'!$E:$E,0)))","v":""},null,{"$f":"IF(ISERROR($V2150),\"\",OFFSET('Smelter Look-up'!$D$4,$V2150-4,0)&\"\")","v":""},{"$f":"IF(ISERROR($V2150),\"\",OFFSET('Smelter Look-up'!$E$4,$V2150-4,0))","v":""},{"$f":"IF(C2150=$X$4,\"Enter smelter details\",IF(ISERROR($V2150),\"\",OFFSET('Smelter Look-up'!$F$4,$V2150-4,0)))","v":""},{"$f":"IF(ISERROR($V2150),\"\",OFFSET('Smelter Look-up'!$G$4,$V2150-4,0))","v":""},{"$f":"IF(ISERROR($V2150),\"\",OFFSET('Smelter Look-up'!$H$4,$V2150-4,0))","v":""},{"$f":"IF(ISERROR($V2150),\"\",OFFSET('Smelter Look-up'!$I$4,$V2150-4,0))","v":""},{"$nulls":7},{"$f":"IF(ISERROR($V2150),\"\",OFFSET('Smelter Look-up'!$C$4,$V2150-4,0)&\"\")","v":""},"",{"$f":"IF(B2150=\"\",\"\",IF(ISERROR(MATCH($J2150,SorP!$B$1:$B$5661,0)),\"\",INDIRECT(\"'SorP'!$A$\"&MATCH($J2150,SorP!$B$1:$B$5661,0))))","v":""},null,{"$f":"IF(C2150=\"\",NA(),MATCH($B2150&$C2150,'Smelter Look-up'!$J:$J,0))","v":{"$error":"#N/A"}},null,0,null,null,null,""]
[null,{"$f":"IF(LEN(A2151)=0,\"\",INDEX('Smelter Look-up'!$A:$A,MATCH($A2151,'Smelter Look-up'!$E:$E,0)))","v":""},{"$f":"IF(LEN(A2151)=0,\"\",INDEX('Smelter Look-up'!$C:$C,MATCH($A2151,'Smelter Look-up'!$E:$E,0)))","v":""},null,{"$f":"IF(ISERROR($V2151),\"\",OFFSET('Smelter Look-up'!$D$4,$V2151-4,0)&\"\")","v":""},{"$f":"IF(ISERROR($V2151),\"\",OFFSET('Smelter Look-up'!$E$4,$V2151-4,0))","v":""},{"$f":"IF(C2151=$X$4,\"Enter smelter details\",IF(ISERROR($V2151),\"\",OFFSET('Smelter Look-up'!$F$4,$V2151-4,0)))","v":""},{"$f":"IF(ISERROR($V2151),\"\",OFFSET('Smelter Look-up'!$G$4,$V2151-4,0))","v":""},{"$f":"IF(ISERROR($V2151),\"\",OFFSET('Smelter Look-up'!$H$4,$V2151-4,0))","v":""},{"$f":"IF(ISERROR($V2151),\"\",OFFSET('Smelter Look-up'!$I$4,$V2151-4,0))","v":""},{"$nulls":7},{"$f":"IF(ISERROR($V2151),\"\",OFFSET('Smelter Look-up'!$C$4,$V2151-4,0)&\"\")","v":""},"",{"$f":"IF(B2151=\"\",\"\",IF(ISERROR(MATCH($J2151,SorP!$B$1:$B$5661,0)),\"\",INDIRECT(\"'SorP'!$A$\"&MATCH($J2151,SorP!$B$1:$B$5661,0))))","v":""},null,{"$f":"IF(C2151=\"\",NA(),MATCH($B2151&$C2151,'Smelter Look-up'!$J:$J,0))","v":{"$error":"#N/A"}},null,0,null,null,null,""]
[null,{"$f":"IF(LEN(A2152)=0,\"\",INDEX('Smelter Look-up'!$A:$A,MATCH($A2152,'Smelter Look-up'!$E:$E,0)))","v":""},{"$f":"IF(LEN(A2152)=0,\"\",INDEX('Smelter Look-up'!$C:$C,MATCH($A2152,'Smelter Look-up'!$E:$E,0)))","v":""},null,{"$f":"IF(ISERROR($V2152),\"\",OFFSET('Smelter Look-up'!$D$4,$V2152-4,0)&\"\")","v":""},{"$f":"IF(ISERROR($V2152),\"\",OFFSET('Smelter Look-up'!$E$4,$V2152-4,0))","v":""},{"$f":"IF(C2152=$X$4,\"Enter smelter details\",IF(ISERROR($V2152),\"\",OFFSET('Smelter Look-up'!$F$4,$V2152-4,0)))","v":""},{"$f":"IF(ISERROR($V2152),\"\",OFFSET('Smelter Look-up'!$G$4,$V2152-4,0))","v":""},{"$f":"IF(ISERROR($V2152),\"\",OFFSET('Smelter Look-up'!$H$4,$V2152-4,0))","v":""},{"$f":"IF(ISERROR($V2152),\"\",OFFSET('Smelter Look-up'!$I$4,$V2152-4,0))","v":""},{"$nulls":7},{"$f":"IF(ISERROR($V2152),\"\",OFFSET('Smelter Look-up'!$C$4,$V2152-4,0)&\"\")","v":""},"",{"$f":"IF(B2152=\"\",\"\",IF(ISERROR(MATCH($J2152,SorP!$B$1:$B$5661,0)),\"\",INDIRECT(\"'SorP'!$A$\"&MATCH($J2152,SorP!$B$1:$B$5661,0))))","v":""},null,{"$f":"IF(C2152=\"\",NA(),MATCH($B2152&$C2152,'Smelter Look-up'!$J:$J,0))","v":{"$error":"#N/A"}},null,0,null,null,null,""]
[null,{"$f":"IF(LEN(A2153)=0,\"\",INDEX('Smelter Look-up'!$A:$A,MATCH($A2153,'Smelter Look-up'!$E:$E,0)))","v":""},{"$f":"IF(LEN(A2153)=0,\"\",INDEX('Smelter Look-up'!$C:$C,MATCH($A2153,'Smelter Look-up'!$E:$E,0)))","v":""},null,{"$f":"IF(ISERROR($V2153),\"\",OFFSET('Smelter Look-up'!$D$4,$V2153-4,0)&\"\")","v":""},{"$f":"IF(ISERROR($V2153),\"\",OFFSET('Smelter Look-up'!$E$4,$V2153-4,0))","v":""},{"$f":"IF(C2153=$X$4,\"Enter smelter details\",IF(ISERROR($V2153),\"\",OFFSET('Smelter Look-up'!$F$4,$V2153-4,0)))","v":""},{"$f":"IF(ISERROR($V2153),\"\",OFFSET('Smelter Look-up'!$G$4,$V2153-4,0))","v":""},{"$f":"IF(ISERROR($V2153),\"\",OFFSET('Smelter Look-up'!$H$4,$V2153-4,0))","v":""},{"$f":"IF(ISERROR($V2153),\"\",OFFSET('Smelter Look-up'!$I$4,$V2153-4,0))","v":""},{"$nulls":7},{"$f":"IF(ISERROR($V2153),\"\",OFFSET('Smelter Look-up'!$C$4,$V2153-4,0)&\"\")","v":""},"",{"$f":"IF(B2153=\"\",\"\",IF(ISERROR(MATCH($J2153,SorP!$B$1:$B$5661,0)),\"\",INDIRECT(\"'SorP'!$A$\"&MATCH($J2153,SorP!$B$1:$B$5661,0))))","v":""},null,{"$f":"IF(C2153=\"\",NA(),MATCH($B2153&$C2153,'Smelter Look-up'!$J:$J,0))","v":{"$error":"#N/A"}},null,0,null,null,null,""]
[null,{"$f":"IF(LEN(A2154)=0,\"\",INDEX('Smelter Look-up'!$A:$A,MATCH($A2154,'Smelter Look-up'!$E:$E,0)))","v":""},{"$f":"IF(LEN(A2154)=0,\"\",INDEX('Smelter Look-up'!$C:$C,MATCH($A2154,'Smelter Look-up'!$E:$E,0)))","v":""},null,{"$f":"IF(ISERROR($V2154),\"\",OFFSET('Smelter Look-up'!$D$4,$V2154-4,0)&\"\")","v":""},{"$f":"IF(ISERROR($V2154),\"\",OFFSET('Smelter Look-up'!$E$4,$V2154-4,0))","v":""},{"$f":"IF(C2154=$X$4,\"Enter smelter details\",IF(ISERROR($V2154),\"\",OFFSET('Smelter Look-up'!$F$4,$V2154-4,0)))","v":""},{"$f":"IF(ISERROR($V2154),\"\",OFFSET('Smelter Look-up'!$G$4,$V2154-4,0))","v":""},{"$f":"IF(ISERROR($V2154),\"\",OFFSET('Smelter Look-up'!$H$4,$V2154-4,0))","v":""},{"$f":"IF(ISERROR($V2154),\"\",OFFSET('Smelter Look-up'!$I$4,$V2154-4,0))","v":""},{"$nulls":7},{"$f":"IF(ISERROR($V2154),\"\",OFFSET('Smelter Look-up'!$C$4,$V2154-4,0)&\"\")","v":""},"",{"$f":"IF(B2154=\"\",\"\",IF(ISERROR(MATCH($J2154,SorP!$B$1:$B$5661,0)),\"\",INDIRECT(\"'SorP'!$A$\"&MATCH($J2154,SorP!$B$1:$B$5661,0))))","v":""},null,{"$f":"IF(C2154=\"\",NA(),MATCH($B2154&$C2154,'Smelter Look-up'!$J:$J,0))","v":{"$error":"#N/A"}},null,0,null,null,null,""]
[null,{"$f":"IF(LEN(A2155)=0,\"\",INDEX('Smelter Look-up'!$A:$A,MATCH($A2155,'Smelter Look-up'!$E:$E,0)))","v":""},{"$f":"IF(LEN(A2155)=0,\"\",INDEX('Smelter Look-up'!$C:$C,MATCH($A2155,'Smelter Look-up'!$E:$E,0)))","v":""},null,{"$f":"IF(ISERROR($V2155),\"\",OFFSET('Smelter Look-up'!$D$4,$V2155-4,0)&\"\")","v":""},{"$f":"IF(ISERROR($V2155),\"\",OFFSET('Smelter Look-up'!$E$4,$V2155-4,0))","v":""},{"$f":"IF(C2155=$X$4,\"Enter smelter details\",IF(ISERROR($V2155),\"\",OFFSET('Smelter Look-up'!$F$4,$V2155-4,0)))","v":""},{"$f":"IF(ISERROR($V2155),\"\",OFFSET('Smelter Look-up'!$G$4,$V2155-4,0))","v":""},{"$f":"IF(ISERROR($V2155),\"\",OFFSET('Smelter Look-up'!$H$4,$V2155-4,0))","v":""},{"$f":"IF(ISERROR($V2155),\"\",OFFSET('Smelter Look-up'!$I$4,$V2155-4,0))","v":""},{"$nulls":7},{"$f":"IF(ISERROR($V2155),\"\",OFFSET('Smelter Look-up'!$C$4,$V2155-4,0)&\"\")","v":""},"",{"$f":"IF(B2155=\"\",\"\",IF(ISERROR(MATCH($J2155,SorP!$B$1:$B$5661,0)),\"\",INDIRECT(\"'SorP'!$A$\"&MATCH($J2155,SorP!$B$1:$B$5661,0))))","v":""},null,{"$f":"IF(C2155=\"\",NA(),MATCH($B2155&$C2155,'Smelter Look-up'!$J:$J,0))","v":{"$error":"#N/A"}},null,0,null,null,null,""]
[null,{"$f":"IF(LEN(A2156)=0,\"\",INDEX('Smelter Look-up'!$A:$A,MATCH($A2156,'Smelter Look-up'!$E:$E,0)))","v":""},{"$f":"IF(LEN(A2156)=0,\"\",INDEX('Smelter Look-up'!$C:$C,MATCH($A2156,'Smelter Look-up'!$E:$E,0)))","v":""},null,{"$f":"IF(ISERROR($V2156),\"\",OFFSET('Smelter Look-up'!$D$4,$V2156-4,0)&\"\")","v":""},{"$f":"IF(ISERROR($V2156),\"\",OFFSET('Smelter Look-up'!$E$4,$V2156-4,0))","v":""},{"$f":"IF(C2156=$X$4,\"Enter smelter details\",IF(ISERROR($V2156),\"\",OFFSET('Smelter Look-up'!$F$4,$V2156-4,0)))","v":""},{"$f":"IF(ISERROR($V2156),\"\",OFFSET('Smelter Look-up'!$G$4,$V2156-4,0))","v":""},{"$f":"IF(ISERROR($V2156),\"\",OFFSET('Smelter Look-up'!$H$4,$V2156-4,0))","v":""},{"$f":"IF(ISERROR($V2156),\"\",OFFSET('Smelter Look-up'!$I$4,$V2156-4,0))","v":""},{"$nulls":7},{"$f":"IF(ISERROR($V2156),\"\",OFFSET('Smelter Look-up'!$C$4,$V2156-4,0)&\"\")","v":""},"",{"$f":"IF(B2156=\"\",\"\",IF(ISERROR(MATCH($J2156,SorP!$B$1:$B$5661,0)),\"\",INDIRECT(\"'SorP'!$A$\"&MATCH($J2156,SorP!$B$1:$B$5661,0))))","v":""},null,{"$f":"IF(C2156=\"\",NA(),MATCH($B2156&$C2156,'Smelter Look-up'!$J:$J,0))","v":{"$error":"#N/A"}},null,0,null,null,null,""]
[null,{"$f":"IF(LEN(A2157)=0,\"\",INDEX('Smelter Look-up'!$A:$A,MATCH($A2157,'Smelter Look-up'!$E:$E,0)))","v":""},{"$f":"IF(LEN(A2157)=0,\"\",INDEX('Smelter Look-up'!$C:$C,MATCH($A2157,'Smelter Look-up'!$E:$E,0)))","v":""},null,{"$f":"IF(ISERROR($V2157),\"\",OFFSET('Smelter Look-up'!$D$4,$V2157-4,0)&\"\")","v":""},{"$f":"IF(ISERROR($V2157),\"\",OFFSET('Smelter Look-up'!$E$4,$V2157-4,0))","v":""},{"$f":"IF(C2157=$X$4,\"Enter smelter details\",IF(ISERROR($V2157),\"\",OFFSET('Smelter Look-up'!$F$4,$V2157-4,0)))","v":""},{"$f":"IF(ISERROR($V2157),\"\",OFFSET('Smelter Look-up'!$G$4,$V2157-4,0))","v":""},{"$f":"IF(ISERROR($V2157),\"\",OFFSET('Smelter Look-up'!$H$4,$V2157-4,0))","v":""},{"$f":"IF(ISERROR($V2157),\"\",OFFSET('Smelter Look-up'!$I$4,$V2157-4,0))","v":""},{"$nulls":7},{"$f":"IF(ISERROR($V2157),\"\",OFFSET('Smelter Look-up'!$C$4,$V2157-4,0)&\"\")","v":""},"",{"$f":"IF(B2157=\"\",\"\",IF(ISERROR(MATCH($J2157,SorP!$B$1:$B$5661,0)),\"\",INDIRECT(\"'SorP'!$A$\"&MATCH($J2157,SorP!$B$1:$B$5661,0))))","v":""},null,{"$f":"IF(C2157=\"\",NA(),MATCH($B2157&$C2157,'Smelter Look-up'!$J:$J,0))","v":{"$error":"#N/A"}},null,0,null,null,null,""]
[null,{"$f":"IF(LEN(A2158)=0,\"\",INDEX('Smelter Look-up'!$A:$A,MATCH($A2158,'Smelter Look-up'!$E:$E,0)))","v":""},{"$f":"IF(LEN(A2158)=0,\"\",INDEX('Smelter Look-up'!$C:$C,MATCH($A2158,'Smelter Look-up'!$E:$E,0)))","v":""},null,{"$f":"IF(ISERROR($V2158),\"\",OFFSET('Smelter Look-up'!$D$4,$V2158-4,0)&\"\")","v":""},{"$f":"IF(ISERROR($V2158),\"\",OFFSET('Smelter Look-up'!$E$4,$V2158-4,0))","v":""},{"$f":"IF(C2158=$X$4,\"Enter smelter details\",IF(ISERROR($V2158),\"\",OFFSET('Smelter Look-up'!$F$4,$V2158-4,0)))","v":""},{"$f":"IF(ISERROR($V2158),\"\",OFFSET('Smelter Look-up'!$G$4,$V2158-4,0))","v":""},{"$f":"IF(ISERROR($V2158),\"\",OFFSET('Smelter Look-up'!$H$4,$V2158-4,0))","v":""},{"$f":"IF(ISERROR($V2158),\"\",OFFSET('Smelter Look-up'!$I$4,$V2158-4,0))","v":""},{"$nulls":7},{"$f":"IF(ISERROR($V2158),\"\",OFFSET('Smelter Look-up'!$C$4,$V2158-4,0)&\"\")","v":""},"",{"$f":"IF(B2158=\"\",\"\",IF(ISERROR(MATCH($J2158,SorP!$B$1:$B$5661,0)),\"\",INDIRECT(\"'SorP'!$A$\"&MATCH($J2158,SorP!$B$1:$B$5661,0))))","v":""},null,{"$f":"IF(C2158=\"\",NA(),MATCH($B2158&$C2158,'Smelter Look-up'!$J:$J,0))","v":{"$error":"#N/A"}},null,0,null,null,null,""]
[null,{"$f":"IF(LEN(A2159)=0,\"\",INDEX('Smelter Look-up'!$A:$A,MATCH($A2159,'Smelter Look-up'!$E:$E,0)))","v":""},{"$f":"IF(LEN(A2159)=0,\"\",INDEX('Smelter Look-up'!$C:$C,MATCH($A2159,'Smelter Look-up'!$E:$E,0)))","v":""},null,{"$f":"IF(ISERROR($V2159),\"\",OFFSET('Smelter Look-up'!$D$4,$V2159-4,0)&\"\")","v":""},{"$f":"IF(ISERROR($V2159),\"\",OFFSET('Smelter Look-up'!$E$4,$V2159-4,0))","v":""},{"$f":"IF(C2159=$X$4,\"Enter smelter details\",IF(ISERROR($V2159),\"\",OFFSET('Smelter Look-up'!$F$4,$V2159-4,0)))","v":""},{"$f":"IF(ISERROR($V2159),\"\",OFFSET('Smelter Look-up'!$G$4,$V2159-4,0))","v":""},{"$f":"IF(ISERROR($V2159),\"\",OFFSET('Smelter Look-up'!$H$4,$V2159-4,0))","v":""},{"$f":"IF(ISERROR($V2159),\"\",OFFSET('Smelter Look-up'!$I$4,$V2159-4,0))","v":""},{"$nulls":7},{"$f":"IF(ISERROR($V2159),\"\",OFFSET('Smelter Look-up'!$C$4,$V2159-4,0)&\"\")","v":""},"",{"$f":"IF(B2159=\"\",\"\",IF(ISERROR(MATCH($J2159,SorP!$B$1:$B$5661,0)),\"\",INDIRECT(\"'SorP'!$A$\"&MATCH($J2159,SorP!$B$1:$B$5661,0))))","v":""},null,{"$f":"IF(C2159=\"\",NA(),MATCH($B2159&$C2159,'Smelter Look-up'!$J:$J,0))","v":{"$error":"#N/A"}},null,0,null,null,null,""]
[null,{"$f":"IF(LEN(A2160)=0,\"\",INDEX('Smelter Look-up'!$A:$A,MATCH($A2160,'Smelter Look-up'!$E:$E,0)))","v":""},{"$f":"IF(LEN(A2160)=0,\"\",INDEX('Smelter Look-up'!$C:$C,MATCH($A2160,'Smelter Look-up'!$E:$E,0)))","v":""},null,{"$f":"IF(ISERROR($V2160),\"\",OFFSET('Smelter Look-up'!$D$4,$V2160-4,0)&\"\")","v":""},{"$f":"IF(ISERROR($V2160),\"\",OFFSET('Smelter Look-up'!$E$4,$V2160-4,0))","v":""},{"$f":"IF(C2160=$X$4,\"Enter smelter details\",IF(ISERROR($V2160),\"\",OFFSET('Smelter Look-up'!$F$4,$V2160-4,0)))","v":""},{"$f":"IF(ISERROR($V2160),\"\",OFFSET('Smelter Look-up'!$G$4,$V2160-4,0))","v":""},{"$f":"IF(ISERROR($V2160),\"\",OFFSET('Smelter Look-up'!$H$4,$V2160-4,0))","v":""},{"$f":"IF(ISERROR($V2160),\"\",OFFSET('Smelter Look-up'!$I$4,$V2160-4,0))","v":""},{"$nulls":7},{"$f":"IF(ISERROR($V2160),\"\",OFFSET('Smelter Look-up'!$C$4,$V2160-4,0)&\"\")","v":""},"",{"$f":"IF(B2160=\"\",\"\",IF(ISERROR(MATCH($J2160,SorP!$B$1:$B$5661,0)),\"\",INDIRECT(\"'SorP'!$A$\"&MATCH($J2160,SorP!$B$1:$B$5661,0))))","v":""},null,{"$f":"IF(C2160=\"\",NA(),MATCH($B2160&$C2160,'Smelter Look-up'!$J:$J,0))","v":{"$error":"#N/A"}},null,0,null,null,null,""]
[null,{"$f":"IF(LEN(A2161)=0,\"\",INDEX('Smelter Look-up'!$A:$A,MATCH($A2161,'Smelter Look-up'!$E:$E,0)))","v":""},{"$f":"IF(LEN(A2161)=0,\"\",INDEX('Smelter Look-up'!$C:$C,MATCH($A2161,'Smelter Look-up'!$E:$E,0)))","v":""},null,{"$f":"IF(ISERROR($V2161),\"\",OFFSET('Smelter Look-up'!$D$4,$V2161-4,0)&\"\")","v":""},{"$f":"IF(ISERROR($V2161),\"\",OFFSET('Smelter Look-up'!$E$4,$V2161-4,0))","v":""},{"$f":"IF(C2161=$X$4,\"Enter smelter details\",IF(ISERROR($V2161),\"\",OFFSET('Smelter Look-up'!$F$4,$V2161-4,0)))","v":""},{"$f":"IF(ISERROR($V2161),\"\",OFFSET('Smelter Look-up'!$G$4,$V2161-4,0))","v":""},{"$f":"IF(ISERROR($V2161),\"\",OFFSET('Smelter Look-up'!$H$4,$V2161-4,0))","v":""},{"$f":"IF(ISERROR($V2161),\"\",OFFSET('Smelter Look-up'!$I$4,$V2161-4,0))","v":""},{"$nulls":7},{"$f":"IF(ISERROR($V2161),\"\",OFFSET('Smelter Look-up'!$C$4,$V2161-4,0)&\"\")","v":""},"",{"$f":"IF(B2161=\"\",\"\",IF(ISERROR(MATCH($J2161,SorP!$B$1:$B$5661,0)),\"\",INDIRECT(\"'SorP'!$A$\"&MATCH($J2161,SorP!$B$1:$B$5661,0))))","v":""},null,{"$f":"IF(C2161=\"\",NA(),MATCH($B2161&$C2161,'Smelter Look-up'!$J:$J,0))","v":{"$error":"#N/A"}},null,0,null,null,null,""]
[null,{"$f":"IF(LEN(A2162)=0,\"\",INDEX('Smelter Look-up'!$A:$A,MATCH($A2162,'Smelter Look-up'!$E:$E,0)))","v":""},{"$f":"IF(LEN(A2162)=0,\"\",INDEX('Smelter Look-up'!$C:$C,MATCH($A2162,'Smelter Look-up'!$E:$E,0)))","v":""},null,{"$f":"IF(ISERROR($V2162),\"\",OFFSET('Smelter Look-up'!$D$4,$V2162-4,0)&\"\")","v":""},{"$f":"IF(ISERROR($V2162),\"\",OFFSET('Smelter Look-up'!$E$4,$V2162-4,0))","v":""},{"$f":"IF(C2162=$X$4,\"Enter smelter details\",IF(ISERROR($V2162),\"\",OFFSET('Smelter Look-up'!$F$4,$V2162-4,0)))","v":""},{"$f":"IF(ISERROR($V2162),\"\",OFFSET('Smelter Look-up'!$G$4,$V2162-4,0))","v":""},{"$f":"IF(ISERROR($V2162),\"\",OFFSET('Smelter Look-up'!$H$4,$V2162-4,0))","v":""},{"$f":"IF(ISERROR($V2162),\"\",OFFSET('Smelter Look-up'!$I$4,$V2162-4,0))","v":""},{"$nulls":7},{"$f":"IF(ISERROR($V2162),\"\",OFFSET('Smelter Look-up'!$C$4,$V2162-4,0)&\"\")","v":""},"",{"$f":"IF(B2162=\"\",\"\",IF(ISERROR(MATCH($J2162,SorP!$B$1:$B$5661,0)),\"\",INDIRECT(\"'SorP'!$A$\"&MATCH($J2162,SorP!$B$1:$B$5661,0))))","v":""},null,{"$f":"IF(C2162=\"\",NA(),MATCH($B2162&$C2162,'Smelter Look-up'!$J:$J,0))","v":{"$error":"#N/A"}},null,0,null,null,null,""]
[null,{"$f":"IF(LEN(A2163)=0,\"\",INDEX('Smelter Look-up'!$A:$A,MATCH($A2163,'Smelter Look-up'!$E:$E,0)))","v":""},{"$f":"IF(LEN(A2163)=0,\"\",INDEX('Smelter Look-up'!$C:$C,MATCH($A2163,'Smelter Look-up'!$E:$E,0)))","v":""},null,{"$f":"IF(ISERROR($V2163),\"\",OFFSET('Smelter Look-up'!$D$4,$V2163-4,0)&\"\")","v":""},{"$f":"IF(ISERROR($V2163),\"\",OFFSET('Smelter Look-up'!$E$4,$V2163-4,0))","v":""},{"$f":"IF(C2163=$X$4,\"Enter smelter details\",IF(ISERROR($V2163),\"\",OFFSET('Smelter Look-up'!$F$4,$V2163-4,0)))","v":""},{"$f":"IF(ISERROR($V2163),\"\",OFFSET('Smelter Look-up'!$G$4,$V2163-4,0))","v":""},{"$f":"IF(ISERROR($V2163),\"\",OFFSET('Smelter Look-up'!$H$4,$V2163-4,0))","v":""},{"$f":"IF(ISERROR($V2163),\"\",OFFSET('Smelter Look-up'!$I$4,$V2163-4,0))","v":""},{"$nulls":7},{"$f":"IF(ISERROR($V2163),\"\",OFFSET('Smelter Look-up'!$C$4,$V2163-4,0)&\"\")","v":""},"",{"$f":"IF(B2163=\"\",\"\",IF(ISERROR(MATCH($J2163,SorP!$B$1:$B$5661,0)),\"\",INDIRECT(\"'SorP'!$A$\"&MATCH($J2163,SorP!$B$1:$B$5661,0))))","v":""},null,{"$f":"IF(C2163=\"\",NA(),MATCH($B2163&$C2163,'Smelter Look-up'!$J:$J,0))","v":{"$error":"#N/A"}},null,0,null,null,null,""]
[null,{"$f":"IF(LEN(A2164)=0,\"\",INDEX('Smelter Look-up'!$A:$A,MATCH($A2164,'Smelter Look-up'!$E:$E,0)))","v":""},{"$f":"IF(LEN(A2164)=0,\"\",INDEX('Smelter Look-up'!$C:$C,MATCH($A2164,'Smelter Look-up'!$E:$E,0)))","v":""},null,{"$f":"IF(ISERROR($V2164),\"\",OFFSET('Smelter Look-up'!$D$4,$V2164-4,0)&\"\")","v":""},{"$f":"IF(ISERROR($V2164),\"\",OFFSET('Smelter Look-up'!$E$4,$V2164-4,0))","v":""},{"$f":"IF(C2164=$X$4,\"Enter smelter details\",IF(ISERROR($V2164),\"\",OFFSET('Smelter Look-up'!$F$4,$V2164-4,0)))","v":""},{"$f":"IF(ISERROR($V2164),\"\",OFFSET('Smelter Look-up'!$G$4,$V2164-4,0))","v":""},{"$f":"IF(ISERROR($V2164),\"\",OFFSET('Smelter Look-up'!$H$4,$V2164-4,0))","v":""},{"$f":"IF(ISERROR($V2164),\"\",OFFSET('Smelter Look-up'!$I$4,$V2164-4,0))","v":""},{"$nulls":7},{"$f":"IF(ISERROR($V2164),\"\",OFFSET('Smelter Look-up'!$C$4,$V2164-4,0)&\"\")","v":""},"",{"$f":"IF(B2164=\"\",\"\",IF(ISERROR(MATCH($J2164,SorP!$B$1:$B$5661,0)),\"\",INDIRECT(\"'SorP'!$A$\"&MATCH($J2164,SorP!$B$1:$B$5661,0))))","v":""},null,{"$f":"IF(C2164=\"\",NA(),MATCH($B2164&$C2164,'Smelter Look-up'!$J:$J,0))","v":{"$error":"#N/A"}},null,0,null,null,null,""]
[null,{"$f":"IF(LEN(A2165)=0,\"\",INDEX('Smelter Look-up'!$A:$A,MATCH($A2165,'Smelter Look-up'!$E:$E,0)))","v":""},{"$f":"IF(LEN(A2165)=0,\"\",INDEX('Smelter Look-up'!$C:$C,MATCH($A2165,'Smelter Look-up'!$E:$E,0)))","v":""},null,{"$f":"IF(ISERROR($V2165),\"\",OFFSET('Smelter Look-up'!$D$4,$V2165-4,0)&\"\")","v":""},{"$f":"IF(ISERROR($V2165),\"\",OFFSET('Smelter Look-up'!$E$4,$V2165-4,0))","v":""},{"$f":"IF(C2165=$X$4,\"Enter smelter details\",IF(ISERROR($V2165),\"\",OFFSET('Smelter Look-up'!$F$4,$V2165-4,0)))","v":""},{"$f":"IF(ISERROR($V2165),\"\",OFFSET('Smelter Look-up'!$G$4,$V2165-4,0))","v":""},{"$f":"IF(ISERROR($V2165),\"\",OFFSET('Smelter Look-up'!$H$4,$V2165-4,0))","v":""},{"$f":"IF(ISERROR($V2165),\"\",OFFSET('Smelter Look-up'!$I$4,$V2165-4,0))","v":""},{"$nulls":7},{"$f":"IF(ISERROR($V2165),\"\",OFFSET('Smelter Look-up'!$C$4,$V2165-4,0)&\"\")","v":""},"",{"$f":"IF(B2165=\"\",\"\",IF(ISERROR(MATCH($J2165,SorP!$B$1:$B$5661,0)),\"\",INDIRECT(\"'SorP'!$A$\"&MATCH($J2165,SorP!$B$1:$B$5661,0))))","v":""},null,{"$f":"IF(C2165=\"\",NA(),MATCH($B2165&$C2165,'Smelter Look-up'!$J:$J,0))","v":{"$error":"#N/A"}},null,0,null,null,null,""]
[null,{"$f":"IF(LEN(A2166)=0,\"\",INDEX('Smelter Look-up'!$A:$A,MATCH($A2166,'Smelter Look-up'!$E:$E,0)))","v":""},{"$f":"IF(LEN(A2166)=0,\"\",INDEX('Smelter Look-up'!$C:$C,MATCH($A2166,'Smelter Look-up'!$E:$E,0)))","v":""},null,{"$f":"IF(ISERROR($V2166),\"\",OFFSET('Smelter Look-up'!$D$4,$V2166-4,0)&\"\")","v":""},{"$f":"IF(ISERROR($V2166),\"\",OFFSET('Smelter Look-up'!$E$4,$V2166-4,0))","v":""},{"$f":"IF(C2166=$X$4,\"Enter smelter details\",IF(ISERROR($V2166),\"\",OFFSET('Smelter Look-up'!$F$4,$V2166-4,0)))","v":""},{"$f":"IF(ISERROR($V2166),\"\",OFFSET('Smelter Look-up'!$G$4,$V2166-4,0))","v":""},{"$f":"IF(ISERROR($V2166),\"\",OFFSET('Smelter Look-up'!$H$4,$V2166-4,0))","v":""},{"$f":"IF(ISERROR($V2166),\"\",OFFSET('Smelter Look-up'!$I$4,$V2166-4,0))","v":""},{"$nulls":7},{"$f":"IF(ISERROR($V2166),\"\",OFFSET('Smelter Look-up'!$C$4,$V2166-4,0)&\"\")","v":""},"",{"$f":"IF(B2166=\"\",\"\",IF(ISERROR(MATCH($J2166,SorP!$B$1:$B$5661,0)),\"\",INDIRECT(\"'SorP'!$A$\"&MATCH($J2166,SorP!$B$1:$B$5661,0))))","v":""},null,{"$f":"IF(C2166=\"\",NA(),MATCH($B2166&$C2166,'Smelter Look-up'!$J:$J,0))","v":{"$error":"#N/A"}},null,0,null,null,null,""]
[null,{"$f":"IF(LEN(A2167)=0,\"\",INDEX('Smelter Look-up'!$A:$A,MATCH($A2167,'Smelter Look-up'!$E:$E,0)))","v":""},{"$f":"IF(LEN(A2167)=0,\"\",INDEX('Smelter Look-up'!$C:$C,MATCH($A2167,'Smelter Look-up'!$E:$E,0)))","v":""},null,{"$f":"IF(ISERROR($V2167),\"\",OFFSET('Smelter Look-up'!$D$4,$V2167-4,0)&\"\")","v":""},{"$f":"IF(ISERROR($V2167),\"\",OFFSET('Smelter Look-up'!$E$4,$V2167-4,0))","v":""},{"$f":"IF(C2167=$X$4,\"Enter smelter details\",IF(ISERROR($V2167),\"\",OFFSET('Smelter Look-up'!$F$4,$V2167-4,0)))","v":""},{"$f":"IF(ISERROR($V2167),\"\",OFFSET('Smelter Look-up'!$G$4,$V2167-4,0))","v":""},{"$f":"IF(ISERROR($V2167),\"\",OFFSET('Smelter Look-up'!$H$4,$V2167-4,0))","v":""},{"$f":"IF(ISERROR($V2167),\"\",OFFSET('Smelter Look-up'!$I$4,$V2167-4,0))","v":""},{"$nulls":7},{"$f":"IF(ISERROR($V2167),\"\",OFFSET('Smelter Look-up'!$C$4,$V2167-4,0)&\"\")","v":""},"",{"$f":"IF(B2167=\"\",\"\",IF(ISERROR(MATCH($J2167,SorP!$B$1:$B$5661,0)),\"\",INDIRECT(\"'SorP'!$A$\"&MATCH($J2167,SorP!$B$1:$B$5661,0))))","v":""},null,{"$f":"IF(C2167=\"\",NA(),MATCH($B2167&$C2167,'Smelter Look-up'!$J:$J,0))","v":{"$error":"#N/A"}},null,0,null,null,null,""]
[null,{"$f":"IF(LEN(A2168)=0,\"\",INDEX('Smelter Look-up'!$A:$A,MATCH($A2168,'Smelter Look-up'!$E:$E,0)))","v":""},{"$f":"IF(LEN(A2168)=0,\"\",INDEX('Smelter Look-up'!$C:$C,MATCH($A2168,'Smelter Look-up'!$E:$E,0)))","v":""},null,{"$f":"IF(ISERROR($V2168),\"\",OFFSET('Smelter Look-up'!$D$4,$V2168-4,0)&\"\")","v":""},{"$f":"IF(ISERROR($V2168),\"\",OFFSET('Smelter Look-up'!$E$4,$V2168-4,0))","v":""},{"$f":"IF(C2168=$X$4,\"Enter smelter details\",IF(ISERROR($V2168),\"\",OFFSET('Smelter Look-up'!$F$4,$V2168-4,0)))","v":""},{"$f":"IF(ISERROR($V2168),\"\",OFFSET('Smelter Look-up'!$G$4,$V2168-4,0))","v":""},{"$f":"IF(ISERROR($V2168),\"\",OFFSET('Smelter Look-up'!$H$4,$V2168-4,0))","v":""},{"$f":"IF(ISERROR($V2168),\"\",OFFSET('Smelter Look-up'!$I$4,$V2168-4,0))","v":""},{"$nulls":7},{"$f":"IF(ISERROR($V2168),\"\",OFFSET('Smelter Look-up'!$C$4,$V2168-4,0)&\"\")","v":""},"",{"$f":"IF(B2168=\"\",\"\",IF(ISERROR(MATCH($J2168,SorP!$B$1:$B$5661,0)),\"\",INDIRECT(\"'SorP'!$A$\"&MATCH($J2168,SorP!$B$1:$B$5661,0))))","v":""},null,{"$f":"IF(C2168=\"\",NA(),MATCH($B2168&$C2168,'Smelter Look-up'!$J:$J,0))","v":{"$error":"#N/A"}},null,0,null,null,null,""]
[null,{"$f":"IF(LEN(A2169)=0,\"\",INDEX('Smelter Look-up'!$A:$A,MATCH($A2169,'Smelter Look-up'!$E:$E,0)))","v":""},{"$f":"IF(LEN(A2169)=0,\"\",INDEX('Smelter Look-up'!$C:$C,MATCH($A2169,'Smelter Look-up'!$E:$E,0)))","v":""},null,{"$f":"IF(ISERROR($V2169),\"\",OFFSET('Smelter Look-up'!$D$4,$V2169-4,0)&\"\")","v":""},{"$f":"IF(ISERROR($V2169),\"\",OFFSET('Smelter Look-up'!$E$4,$V2169-4,0))","v":""},{"$f":"IF(C2169=$X$4,\"Enter smelter details\",IF(ISERROR($V2169),\"\",OFFSET('Smelter Look-up'!$F$4,$V2169-4,0)))","v":""},{"$f":"IF(ISERROR($V2169),\"\",OFFSET('Smelter Look-up'!$G$4,$V2169-4,0))","v":""},{"$f":"IF(ISERROR($V2169),\"\",OFFSET('Smelter Look-up'!$H$4,$V2169-4,0))","v":""},{"$f":"IF(ISERROR($V2169),\"\",OFFSET('Smelter Look-up'!$I$4,$V2169-4,0))","v":""},{"$nulls":7},{"$f":"IF(ISERROR($V2169),\"\",OFFSET('Smelter Look-up'!$C$4,$V2169-4,0)&\"\")","v":""},"",{"$f":"IF(B2169=\"\",\"\",IF(ISERROR(MATCH($J2169,SorP!$B$1:$B$5661,0)),\"\",INDIRECT(\"'SorP'!$A$\"&MATCH($J2169,SorP!$B$1:$B$5661,0))))","v":""},null,{"$f":"IF(C2169=\"\",NA(),MATCH($B2169&$C2169,'Smelter Look-up'!$J:$J,0))","v":{"$error":"#N/A"}},null,0,null,null,null,""]
[null,{"$f":"IF(LEN(A2170)=0,\"\",INDEX('Smelter Look-up'!$A:$A,MATCH($A2170,'Smelter Look-up'!$E:$E,0)))","v":""},{"$f":"IF(LEN(A2170)=0,\"\",INDEX('Smelter Look-up'!$C:$C,MATCH($A2170,'Smelter Look-up'!$E:$E,0)))","v":""},null,{"$f":"IF(ISERROR($V2170),\"\",OFFSET('Smelter Look-up'!$D$4,$V2170-4,0)&\"\")","v":""},{"$f":"IF(ISERROR($V2170),\"\",OFFSET('Smelter Look-up'!$E$4,$V2170-4,0))","v":""},{"$f":"IF(C2170=$X$4,\"Enter smelter details\",IF(ISERROR($V2170),\"\",OFFSET('Smelter Look-up'!$F$4,$V2170-4,0)))","v":""},{"$f":"IF(ISERROR($V2170),\"\",OFFSET('Smelter Look-up'!$G$4,$V2170-4,0))","v":""},{"$f":"IF(ISERROR($V2170),\"\",OFFSET('Smelter Look-up'!$H$4,$V2170-4,0))","v":""},{"$f":"IF(ISERROR($V2170),\"\",OFFSET('Smelter Look-up'!$I$4,$V2170-4,0))","v":""},{"$nulls":7},{"$f":"IF(ISERROR($V2170),\"\",OFFSET('Smelter Look-up'!$C$4,$V2170-4,0)&\"\")","v":""},"",{"$f":"IF(B2170=\"\",\"\",IF(ISERROR(MATCH($J2170,SorP!$B$1:$B$5661,0)),\"\",INDIRECT(\"'SorP'!$A$\"&MATCH($J2170,SorP!$B$1:$B$5661,0))))","v":""},null,{"$f":"IF(C2170=\"\",NA(),MATCH($B2170&$C2170,'Smelter Look-up'!$J:$J,0))","v":{"$error":"#N/A"}},null,0,null,null,null,""]
[null,{"$f":"IF(LEN(A2171)=0,\"\",INDEX('Smelter Look-up'!$A:$A,MATCH($A2171,'Smelter Look-up'!$E:$E,0)))","v":""},{"$f":"IF(LEN(A2171)=0,\"\",INDEX('Smelter Look-up'!$C:$C,MATCH($A2171,'Smelter Look-up'!$E:$E,0)))","v":""},null,{"$f":"IF(ISERROR($V2171),\"\",OFFSET('Smelter Look-up'!$D$4,$V2171-4,0)&\"\")","v":""},{"$f":"IF(ISERROR($V2171),\"\",OFFSET('Smelter Look-up'!$E$4,$V2171-4,0))","v":""},{"$f":"IF(C2171=$X$4,\"Enter smelter details\",IF(ISERROR($V2171),\"\",OFFSET('Smelter Look-up'!$F$4,$V2171-4,0)))","v":""},{"$f":"IF(ISERROR($V2171),\"\",OFFSET('Smelter Look-up'!$G$4,$V2171-4,0))","v":""},{"$f":"IF(ISERROR($V2171),\"\",OFFSET('Smelter Look-up'!$H$4,$V2171-4,0))","v":""},{"$f":"IF(ISERROR($V2171),\"\",OFFSET('Smelter Look-up'!$I$4,$V2171-4,0))","v":""},{"$nulls":7},{"$f":"IF(ISERROR($V2171),\"\",OFFSET('Smelter Look-up'!$C$4,$V2171-4,0)&\"\")","v":""},"",{"$f":"IF(B2171=\"\",\"\",IF(ISERROR(MATCH($J2171,SorP!$B$1:$B$5661,0)),\"\",INDIRECT(\"'SorP'!$A$\"&MATCH($J2171,SorP!$B$1:$B$5661,0))))","v":""},null,{"$f":"IF(C2171=\"\",NA(),MATCH($B2171&$C2171,'Smelter Look-up'!$J:$J,0))","v":{"$error":"#N/A"}},null,0,null,null,null,""]
[null,{"$f":"IF(LEN(A2172)=0,\"\",INDEX('Smelter Look-up'!$A:$A,MATCH($A2172,'Smelter Look-up'!$E:$E,0)))","v":""},{"$f":"IF(LEN(A2172)=0,\"\",INDEX('Smelter Look-up'!$C:$C,MATCH($A2172,'Smelter Look-up'!$E:$E,0)))","v":""},null,{"$f":"IF(ISERROR($V2172),\"\",OFFSET('Smelter Look-up'!$D$4,$V2172-4,0)&\"\")","v":""},{"$f":"IF(ISERROR($V2172),\"\",OFFSET('Smelter Look-up'!$E$4,$V2172-4,0))","v":""},{"$f":"IF(C2172=$X$4,\"Enter smelter details\",IF(ISERROR($V2172),\"\",OFFSET('Smelter Look-up'!$F$4,$V2172-4,0)))","v":""},{"$f":"IF(ISERROR($V2172),\"\",OFFSET('Smelter Look-up'!$G$4,$V2172-4,0))","v":""},{"$f":"IF(ISERROR($V2172),\"\",OFFSET('Smelter Look-up'!$H$4,$V2172-4,0))","v":""},{"$f":"IF(ISERROR($V2172),\"\",OFFSET('Smelter Look-up'!$I$4,$V2172-4,0))","v":""},{"$nulls":7},{"$f":"IF(ISERROR($V2172),\"\",OFFSET('Smelter Look-up'!$C$4,$V2172-4,0)&\"\")","v":""},"",{"$f":"IF(B2172=\"\",\"\",IF(ISERROR(MATCH($J2172,SorP!$B$1:$B$5661,0)),\"\",INDIRECT(\"'SorP'!$A$\"&MATCH($J2172,SorP!$B$1:$B$5661,0))))","v":""},null,{"$f":"IF(C2172=\"\",NA(),MATCH($B2172&$C2172,'Smelter Look-up'!$J:$J,0))","v":{"$error":"#N/A"}},null,0,null,null,null,""]
[null,{"$f":"IF(LEN(A2173)=0,\"\",INDEX('Smelter Look-up'!$A:$A,MATCH($A2173,'Smelter Look-up'!$E:$E,0)))","v":""},{"$f":"IF(LEN(A2173)=0,\"\",INDEX('Smelter Look-up'!$C:$C,MATCH($A2173,'Smelter Look-up'!$E:$E,0)))","v":""},null,{"$f":"IF(ISERROR($V2173),\"\",OFFSET('Smelter Look-up'!$D$4,$V2173-4,0)&\"\")","v":""},{"$f":"IF(ISERROR($V2173),\"\",OFFSET('Smelter Look-up'!$E$4,$V2173-4,0))","v":""},{"$f":"IF(C2173=$X$4,\"Enter smelter details\",IF(ISERROR($V2173),\"\",OFFSET('Smelter Look-up'!$F$4,$V2173-4,0)))","v":""},{"$f":"IF(ISERROR($V2173),\"\",OFFSET('Smelter Look-up'!$G$4,$V2173-4,0))","v":""},{"$f":"IF(ISERROR($V2173),\"\",OFFSET('Smelter Look-up'!$H$4,$V2173-4,0))","v":""},{"$f":"IF(ISERROR($V2173),\"\",OFFSET('Smelter Look-up'!$I$4,$V2173-4,0))","v":""},{"$nulls":7},{"$f":"IF(ISERROR($V2173),\"\",OFFSET('Smelter Look-up'!$C$4,$V2173-4,0)&\"\")","v":""},"",{"$f":"IF(B2173=\"\",\"\",IF(ISERROR(MATCH($J2173,SorP!$B$1:$B$5661,0)),\"\",INDIRECT(\"'SorP'!$A$\"&MATCH($J2173,SorP!$B$1:$B$5661,0))))","v":""},null,{"$f":"IF(C2173=\"\",NA(),MATCH($B2173&$C2173,'Smelter Look-up'!$J:$J,0))","v":{"$error":"#N/A"}},null,0,null,null,null,""]
[null,{"$f":"IF(LEN(A2174)=0,\"\",INDEX('Smelter Look-up'!$A:$A,MATCH($A2174,'Smelter Look-up'!$E:$E,0)))","v":""},{"$f":"IF(LEN(A2174)=0,\"\",INDEX('Smelter Look-up'!$C:$C,MATCH($A2174,'Smelter Look-up'!$E:$E,0)))","v":""},null,{"$f":"IF(ISERROR($V2174),\"\",OFFSET('Smelter Look-up'!$D$4,$V2174-4,0)&\"\")","v":""},{"$f":"IF(ISERROR($V2174),\"\",OFFSET('Smelter Look-up'!$E$4,$V2174-4,0))","v":""},{"$f":"IF(C2174=$X$4,\"Enter smelter details\",IF(ISERROR($V2174),\"\",OFFSET('Smelter Look-up'!$F$4,$V2174-4,0)))","v":""},{"$f":"IF(ISERROR($V2174),\"\",OFFSET('Smelter Look-up'!$G$4,$V2174-4,0))","v":""},{"$f":"IF(ISERROR($V2174),\"\",OFFSET('Smelter Look-up'!$H$4,$V2174-4,0))","v":""},{"$f":"IF(ISERROR($V2174),\"\",OFFSET('Smelter Look-up'!$I$4,$V2174-4,0))","v":""},{"$nulls":7},{"$f":"IF(ISERROR($V2174),\"\",OFFSET('Smelter Look-up'!$C$4,$V2174-4,0)&\"\")","v":""},"",{"$f":"IF(B2174=\"\",\"\",IF(ISERROR(MATCH($J2174,SorP!$B$1:$B$5661,0)),\"\",INDIRECT(\"'SorP'!$A$\"&MATCH($J2174,SorP!$B$1:$B$5661,0))))","v":""},null,{"$f":"IF(C2174=\"\",NA(),MATCH($B2174&$C2174,'Smelter Look-up'!$J:$J,0))","v":{"$error":"#N/A"}},null,0,null,null,null,""]
[null,{"$f":"IF(LEN(A2175)=0,\"\",INDEX('Smelter Look-up'!$A:$A,MATCH($A2175,'Smelter Look-up'!$E:$E,0)))","v":""},{"$f":"IF(LEN(A2175)=0,\"\",INDEX('Smelter Look-up'!$C:$C,MATCH($A2175,'Smelter Look-up'!$E:$E,0)))","v":""},null,{"$f":"IF(ISERROR($V2175),\"\",OFFSET('Smelter Look-up'!$D$4,$V2175-4,0)&\"\")","v":""},{"$f":"IF(ISERROR($V2175),\"\",OFFSET('Smelter Look-up'!$E$4,$V2175-4,0))","v":""},{"$f":"IF(C2175=$X$4,\"Enter smelter details\",IF(ISERROR($V2175),\"\",OFFSET('Smelter Look-up'!$F$4,$V2175-4,0)))","v":""},{"$f":"IF(ISERROR($V2175),\"\",OFFSET('Smelter Look-up'!$G$4,$V2175-4,0))","v":""},{"$f":"IF(ISERROR($V2175),\"\",OFFSET('Smelter Look-up'!$H$4,$V2175-4,0))","v":""},{"$f":"IF(ISERROR($V2175),\"\",OFFSET('Smelter Look-up'!$I$4,$V2175-4,0))","v":""},{"$nulls":7},{"$f":"IF(ISERROR($V2175),\"\",OFFSET('Smelter Look-up'!$C$4,$V2175-4,0)&\"\")","v":""},"",{"$f":"IF(B2175=\"\",\"\",IF(ISERROR(MATCH($J2175,SorP!$B$1:$B$5661,0)),\"\",INDIRECT(\"'SorP'!$A$\"&MATCH($J2175,SorP!$B$1:$B$5661,0))))","v":""},null,{"$f":"IF(C2175=\"\",NA(),MATCH($B2175&$C2175,'Smelter Look-up'!$J:$J,0))","v":{"$error":"#N/A"}},null,{"$f":"IF(AND(C2175=\"Smelter not listed\",OR(LEN(D2175)=0,LEN(E2175)=0)),1,0)","v":0},null,null,null,{"$f":"B2175&C2175","v":""}]
[null,{"$f":"IF(LEN(A2176)=0,\"\",INDEX('Smelter Look-up'!$A:$A,MATCH($A2176,'Smelter Look-up'!$E:$E,0)))","v":""},{"$f":"IF(LEN(A2176)=0,\"\",INDEX('Smelter Look-up'!$C:$C,MATCH($A2176,'Smelter Look-up'!$E:$E,0)))","v":""},null,{"$f":"IF(ISERROR($V2176),\"\",OFFSET('Smelter Look-up'!$D$4,$V2176-4,0)&\"\")","v":""},{"$f":"IF(ISERROR($V2176),\"\",OFFSET('Smelter Look-up'!$E$4,$V2176-4,0))","v":""},{"$f":"IF(C2176=$X$4,\"Enter smelter details\",IF(ISERROR($V2176),\"\",OFFSET('Smelter Look-up'!$F$4,$V2176-4,0)))","v":""},{"$f":"IF(ISERROR($V2176),\"\",OFFSET('Smelter Look-up'!$G$4,$V2176-4,0))","v":""},{"$f":"IF(ISERROR($V2176),\"\",OFFSET('Smelter Look-up'!$H$4,$V2176-4,0))","v":""},{"$f":"IF(ISERROR($V2176),\"\",OFFSET('Smelter Look-up'!$I$4,$V2176-4,0))","v":""},{"$nulls":7},{"$f":"IF(ISERROR($V2176),\"\",OFFSET('Smelter Look-up'!$C$4,$V2176-4,0)&\"\")","v":""},{"$f":"IF(B2176=\"\",\"\",IF(ISERROR(MATCH($E2176,CL,0)),\"Unknown\",INDIRECT(\"'C'!$A$\"&MATCH($E2176,CL,0)+1)))","v":""},{"$f":"IF(B2176=\"\",\"\",IF(ISERROR(MATCH($J2176,SorP!$B$1:$B$5661,0)),\"\",INDIRECT(\"'SorP'!$A$\"&MATCH($J2176,SorP!$B$1:$B$5661,0))))","v":""},null,{"$f":"IF(C2176=\"\",NA(),MATCH($B2176&$C2176,'Smelter Look-up'!$J:$J,0))","v":{"$error":"#N/A"}},null,0,null,null,null,""]
[null,{"$f":"IF(LEN(A2177)=0,\"\",INDEX('Smelter Look-up'!$A:$A,MATCH($A2177,'Smelter Look-up'!$E:$E,0)))","v":""},{"$f":"IF(LEN(A2177)=0,\"\",INDEX('Smelter Look-up'!$C:$C,MATCH($A2177,'Smelter Look-up'!$E:$E,0)))","v":""},null,{"$f":"IF(ISERROR($V2177),\"\",OFFSET('Smelter Look-up'!$D$4,$V2177-4,0)&\"\")","v":""},{"$f":"IF(ISERROR($V2177),\"\",OFFSET('Smelter Look-up'!$E$4,$V2177-4,0))","v":""},{"$f":"IF(C2177=$X$4,\"Enter smelter details\",IF(ISERROR($V2177),\"\",OFFSET('Smelter Look-up'!$F$4,$V2177-4,0)))","v":""},{"$f":"IF(ISERROR($V2177),\"\",OFFSET('Smelter Look-up'!$G$4,$V2177-4,0))","v":""},{"$f":"IF(ISERROR($V2177),\"\",OFFSET('Smelter Look-up'!$H$4,$V2177-4,0))","v":""},{"$f":"IF(ISERROR($V2177),\"\",OFFSET('Smelter Look-up'!$I$4,$V2177-4,0))","v":""},{"$nulls":7},{"$f":"IF(ISERROR($V2177),\"\",OFFSET('Smelter Look-up'!$C$4,$V2177-4,0)&\"\")","v":""},"",{"$f":"IF(B2177=\"\",\"\",IF(ISERROR(MATCH($J2177,SorP!$B$1:$B$5661,0)),\"\",INDIRECT(\"'SorP'!$A$\"&MATCH($J2177,SorP!$B$1:$B$5661,0))))","v":""},null,{"$f":"IF(C2177=\"\",NA(),MATCH($B2177&$C2177,'Smelter Look-up'!$J:$J,0))","v":{"$error":"#N/A"}},null,0,null,null,null,""]
[null,{"$f":"IF(LEN(A2178)=0,\"\",INDEX('Smelter Look-up'!$A:$A,MATCH($A2178,'Smelter Look-up'!$E:$E,0)))","v":""},{"$f":"IF(LEN(A2178)=0,\"\",INDEX('Smelter Look-up'!$C:$C,MATCH($A2178,'Smelter Look-up'!$E:$E,0)))","v":""},null,{"$f":"IF(ISERROR($V2178),\"\",OFFSET('Smelter Look-up'!$D$4,$V2178-4,0)&\"\")","v":""},{"$f":"IF(ISERROR($V2178),\"\",OFFSET('Smelter Look-up'!$E$4,$V2178-4,0))","v":""},{"$f":"IF(C2178=$X$4,\"Enter smelter details\",IF(ISERROR($V2178),\"\",OFFSET('Smelter Look-up'!$F$4,$V2178-4,0)))","v":""},{"$f":"IF(ISERROR($V2178),\"\",OFFSET('Smelter Look-up'!$G$4,$V2178-4,0))","v":""},{"$f":"IF(ISERROR($V2178),\"\",OFFSET('Smelter Look-up'!$H$4,$V2178-4,0))","v":""},{"$f":"IF(ISERROR($V2178),\"\",OFFSET('Smelter Look-up'!$I$4,$V2178-4,0))","v":""},{"$nulls":7},{"$f":"IF(ISERROR($V2178),\"\",OFFSET('Smelter Look-up'!$C$4,$V2178-4,0)&\"\")","v":""},"",{"$f":"IF(B2178=\"\",\"\",IF(ISERROR(MATCH($J2178,SorP!$B$1:$B$5661,0)),\"\",INDIRECT(\"'SorP'!$A$\"&MATCH($J2178,SorP!$B$1:$B$5661,0))))","v":""},null,{"$f":"IF(C2178=\"\",NA(),MATCH($B2178&$C2178,'Smelter Look-up'!$J:$J,0))","v":{"$error":"#N/A"}},null,0,null,null,null,""]
[null,{"$f":"IF(LEN(A2179)=0,\"\",INDEX('Smelter Look-up'!$A:$A,MATCH($A2179,'Smelter Look-up'!$E:$E,0)))","v":""},{"$f":"IF(LEN(A2179)=0,\"\",INDEX('Smelter Look-up'!$C:$C,MATCH($A2179,'Smelter Look-up'!$E:$E,0)))","v":""},null,{"$f":"IF(ISERROR($V2179),\"\",OFFSET('Smelter Look-up'!$D$4,$V2179-4,0)&\"\")","v":""},{"$f":"IF(ISERROR($V2179),\"\",OFFSET('Smelter Look-up'!$E$4,$V2179-4,0))","v":""},{"$f":"IF(C2179=$X$4,\"Enter smelter details\",IF(ISERROR($V2179),\"\",OFFSET('Smelter Look-up'!$F$4,$V2179-4,0)))","v":""},{"$f":"IF(ISERROR($V2179),\"\",OFFSET('Smelter Look-up'!$G$4,$V2179-4,0))","v":""},{"$f":"IF(ISERROR($V2179),\"\",OFFSET('Smelter Look-up'!$H$4,$V2179-4,0))","v":""},{"$f":"IF(ISERROR($V2179),\"\",OFFSET('Smelter Look-up'!$I$4,$V2179-4,0))","v":""},{"$nulls":7},{"$f":"IF(ISERROR($V2179),\"\",OFFSET('Smelter Look-up'!$C$4,$V2179-4,0)&\"\")","v":""},"",{"$f":"IF(B2179=\"\",\"\",IF(ISERROR(MATCH($J2179,SorP!$B$1:$B$5661,0)),\"\",INDIRECT(\"'SorP'!$A$\"&MATCH($J2179,SorP!$B$1:$B$5661,0))))","v":""},null,{"$f":"IF(C2179=\"\",NA(),MATCH($B2179&$C2179,'Smelter Look-up'!$J:$J,0))","v":{"$error":"#N/A"}},null,0,null,null,null,""]
[null,{"$f":"IF(LEN(A2180)=0,\"\",INDEX('Smelter Look-up'!$A:$A,MATCH($A2180,'Smelter Look-up'!$E:$E,0)))","v":""},{"$f":"IF(LEN(A2180)=0,\"\",INDEX('Smelter Look-up'!$C:$C,MATCH($A2180,'Smelter Look-up'!$E:$E,0)))","v":""},null,{"$f":"IF(ISERROR($V2180),\"\",OFFSET('Smelter Look-up'!$D$4,$V2180-4,0)&\"\")","v":""},{"$f":"IF(ISERROR($V2180),\"\",OFFSET('Smelter Look-up'!$E$4,$V2180-4,0))","v":""},{"$f":"IF(C2180=$X$4,\"Enter smelter details\",IF(ISERROR($V2180),\"\",OFFSET('Smelter Look-up'!$F$4,$V2180-4,0)))","v":""},{"$f":"IF(ISERROR($V2180),\"\",OFFSET('Smelter Look-up'!$G$4,$V2180-4,0))","v":""},{"$f":"IF(ISERROR($V2180),\"\",OFFSET('Smelter Look-up'!$H$4,$V2180-4,0))","v":""},{"$f":"IF(ISERROR($V2180),\"\",OFFSET('Smelter Look-up'!$I$4,$V2180-4,0))","v":""},{"$nulls":7},{"$f":"IF(ISERROR($V2180),\"\",OFFSET('Smelter Look-up'!$C$4,$V2180-4,0)&\"\")","v":""},"",{"$f":"IF(B2180=\"\",\"\",IF(ISERROR(MATCH($J2180,SorP!$B$1:$B$5661,0)),\"\",INDIRECT(\"'SorP'!$A$\"&MATCH($J2180,SorP!$B$1:$B$5661,0))))","v":""},null,{"$f":"IF(C2180=\"\",NA(),MATCH($B2180&$C2180,'Smelter Look-up'!$J:$J,0))","v":{"$error":"#N/A"}},null,0,null,null,null,""]
[null,{"$f":"IF(LEN(A2181)=0,\"\",INDEX('Smelter Look-up'!$A:$A,MATCH($A2181,'Smelter Look-up'!$E:$E,0)))","v":""},{"$f":"IF(LEN(A2181)=0,\"\",INDEX('Smelter Look-up'!$C:$C,MATCH($A2181,'Smelter Look-up'!$E:$E,0)))","v":""},null,{"$f":"IF(ISERROR($V2181),\"\",OFFSET('Smelter Look-up'!$D$4,$V2181-4,0)&\"\")","v":""},{"$f":"IF(ISERROR($V2181),\"\",OFFSET('Smelter Look-up'!$E$4,$V2181-4,0))","v":""},{"$f":"IF(C2181=$X$4,\"Enter smelter details\",IF(ISERROR($V2181),\"\",OFFSET('Smelter Look-up'!$F$4,$V2181-4,0)))","v":""},{"$f":"IF(ISERROR($V2181),\"\",OFFSET('Smelter Look-up'!$G$4,$V2181-4,0))","v":""},{"$f":"IF(ISERROR($V2181),\"\",OFFSET('Smelter Look-up'!$H$4,$V2181-4,0))","v":""},{"$f":"IF(ISERROR($V2181),\"\",OFFSET('Smelter Look-up'!$I$4,$V2181-4,0))","v":""},{"$nulls":7},{"$f":"IF(ISERROR($V2181),\"\",OFFSET('Smelter Look-up'!$C$4,$V2181-4,0)&\"\")","v":""},"",{"$f":"IF(B2181=\"\",\"\",IF(ISERROR(MATCH($J2181,SorP!$B$1:$B$5661,0)),\"\",INDIRECT(\"'SorP'!$A$\"&MATCH($J2181,SorP!$B$1:$B$5661,0))))","v":""},null,{"$f":"IF(C2181=\"\",NA(),MATCH($B2181&$C2181,'Smelter Look-up'!$J:$J,0))","v":{"$error":"#N/A"}},null,0,null,null,null,""]
[null,{"$f":"IF(LEN(A2182)=0,\"\",INDEX('Smelter Look-up'!$A:$A,MATCH($A2182,'Smelter Look-up'!$E:$E,0)))","v":""},{"$f":"IF(LEN(A2182)=0,\"\",INDEX('Smelter Look-up'!$C:$C,MATCH($A2182,'Smelter Look-up'!$E:$E,0)))","v":""},null,{"$f":"IF(ISERROR($V2182),\"\",OFFSET('Smelter Look-up'!$D$4,$V2182-4,0)&\"\")","v":""},{"$f":"IF(ISERROR($V2182),\"\",OFFSET('Smelter Look-up'!$E$4,$V2182-4,0))","v":""},{"$f":"IF(C2182=$X$4,\"Enter smelter details\",IF(ISERROR($V2182),\"\",OFFSET('Smelter Look-up'!$F$4,$V2182-4,0)))","v":""},{"$f":"IF(ISERROR($V2182),\"\",OFFSET('Smelter Look-up'!$G$4,$V2182-4,0))","v":""},{"$f":"IF(ISERROR($V2182),\"\",OFFSET('Smelter Look-up'!$H$4,$V2182-4,0))","v":""},{"$f":"IF(ISERROR($V2182),\"\",OFFSET('Smelter Look-up'!$I$4,$V2182-4,0))","v":""},{"$nulls":7},{"$f":"IF(ISERROR($V2182),\"\",OFFSET('Smelter Look-up'!$C$4,$V2182-4,0)&\"\")","v":""},"",{"$f":"IF(B2182=\"\",\"\",IF(ISERROR(MATCH($J2182,SorP!$B$1:$B$5661,0)),\"\",INDIRECT(\"'SorP'!$A$\"&MATCH($J2182,SorP!$B$1:$B$5661,0))))","v":""},null,{"$f":"IF(C2182=\"\",NA(),MATCH($B2182&$C2182,'Smelter Look-up'!$J:$J,0))","v":{"$error":"#N/A"}},null,0,null,null,null,""]
[null,{"$f":"IF(LEN(A2183)=0,\"\",INDEX('Smelter Look-up'!$A:$A,MATCH($A2183,'Smelter Look-up'!$E:$E,0)))","v":""},{"$f":"IF(LEN(A2183)=0,\"\",INDEX('Smelter Look-up'!$C:$C,MATCH($A2183,'Smelter Look-up'!$E:$E,0)))","v":""},null,{"$f":"IF(ISERROR($V2183),\"\",OFFSET('Smelter Look-up'!$D$4,$V2183-4,0)&\"\")","v":""},{"$f":"IF(ISERROR($V2183),\"\",OFFSET('Smelter Look-up'!$E$4,$V2183-4,0))","v":""},{"$f":"IF(C2183=$X$4,\"Enter smelter details\",IF(ISERROR($V2183),\"\",OFFSET('Smelter Look-up'!$F$4,$V2183-4,0)))","v":""},{"$f":"IF(ISERROR($V2183),\"\",OFFSET('Smelter Look-up'!$G$4,$V2183-4,0))","v":""},{"$f":"IF(ISERROR($V2183),\"\",OFFSET('Smelter Look-up'!$H$4,$V2183-4,0))","v":""},{"$f":"IF(ISERROR($V2183),\"\",OFFSET('Smelter Look-up'!$I$4,$V2183-4,0))","v":""},{"$nulls":7},{"$f":"IF(ISERROR($V2183),\"\",OFFSET('Smelter Look-up'!$C$4,$V2183-4,0)&\"\")","v":""},"",{"$f":"IF(B2183=\"\",\"\",IF(ISERROR(MATCH($J2183,SorP!$B$1:$B$5661,0)),\"\",INDIRECT(\"'SorP'!$A$\"&MATCH($J2183,SorP!$B$1:$B$5661,0))))","v":""},null,{"$f":"IF(C2183=\"\",NA(),MATCH($B2183&$C2183,'Smelter Look-up'!$J:$J,0))","v":{"$error":"#N/A"}},null,0,null,null,null,""]
[null,{"$f":"IF(LEN(A2184)=0,\"\",INDEX('Smelter Look-up'!$A:$A,MATCH($A2184,'Smelter Look-up'!$E:$E,0)))","v":""},{"$f":"IF(LEN(A2184)=0,\"\",INDEX('Smelter Look-up'!$C:$C,MATCH($A2184,'Smelter Look-up'!$E:$E,0)))","v":""},null,{"$f":"IF(ISERROR($V2184),\"\",OFFSET('Smelter Look-up'!$D$4,$V2184-4,0)&\"\")","v":""},{"$f":"IF(ISERROR($V2184),\"\",OFFSET('Smelter Look-up'!$E$4,$V2184-4,0))","v":""},{"$f":"IF(C2184=$X$4,\"Enter smelter details\",IF(ISERROR($V2184),\"\",OFFSET('Smelter Look-up'!$F$4,$V2184-4,0)))","v":""},{"$f":"IF(ISERROR($V2184),\"\",OFFSET('Smelter Look-up'!$G$4,$V2184-4,0))","v":""},{"$f":"IF(ISERROR($V2184),\"\",OFFSET('Smelter Look-up'!$H$4,$V2184-4,0))","v":""},{"$f":"IF(ISERROR($V2184),\"\",OFFSET('Smelter Look-up'!$I$4,$V2184-4,0))","v":""},{"$nulls":7},{"$f":"IF(ISERROR($V2184),\"\",OFFSET('Smelter Look-up'!$C$4,$V2184-4,0)&\"\")","v":""},"",{"$f":"IF(B2184=\"\",\"\",IF(ISERROR(MATCH($J2184,SorP!$B$1:$B$5661,0)),\"\",INDIRECT(\"'SorP'!$A$\"&MATCH($J2184,SorP!$B$1:$B$5661,0))))","v":""},null,{"$f":"IF(C2184=\"\",NA(),MATCH($B2184&$C2184,'Smelter Look-up'!$J:$J,0))","v":{"$error":"#N/A"}},null,0,null,null,null,""]
[null,{"$f":"IF(LEN(A2185)=0,\"\",INDEX('Smelter Look-up'!$A:$A,MATCH($A2185,'Smelter Look-up'!$E:$E,0)))","v":""},{"$f":"IF(LEN(A2185)=0,\"\",INDEX('Smelter Look-up'!$C:$C,MATCH($A2185,'Smelter Look-up'!$E:$E,0)))","v":""},null,{"$f":"IF(ISERROR($V2185),\"\",OFFSET('Smelter Look-up'!$D$4,$V2185-4,0)&\"\")","v":""},{"$f":"IF(ISERROR($V2185),\"\",OFFSET('Smelter Look-up'!$E$4,$V2185-4,0))","v":""},{"$f":"IF(C2185=$X$4,\"Enter smelter details\",IF(ISERROR($V2185),\"\",OFFSET('Smelter Look-up'!$F$4,$V2185-4,0)))","v":""},{"$f":"IF(ISERROR($V2185),\"\",OFFSET('Smelter Look-up'!$G$4,$V2185-4,0))","v":""},{"$f":"IF(ISERROR($V2185),\"\",OFFSET('Smelter Look-up'!$H$4,$V2185-4,0))","v":""},{"$f":"IF(ISERROR($V2185),\"\",OFFSET('Smelter Look-up'!$I$4,$V2185-4,0))","v":""},{"$nulls":7},{"$f":"IF(ISERROR($V2185),\"\",OFFSET('Smelter Look-up'!$C$4,$V2185-4,0)&\"\")","v":""},"",{"$f":"IF(B2185=\"\",\"\",IF(ISERROR(MATCH($J2185,SorP!$B$1:$B$5661,0)),\"\",INDIRECT(\"'SorP'!$A$\"&MATCH($J2185,SorP!$B$1:$B$5661,0))))","v":""},null,{"$f":"IF(C2185=\"\",NA(),MATCH($B2185&$C2185,'Smelter Look-up'!$J:$J,0))","v":{"$error":"#N/A"}},null,0,null,null,null,""]
[null,{"$f":"IF(LEN(A2186)=0,\"\",INDEX('Smelter Look-up'!$A:$A,MATCH($A2186,'Smelter Look-up'!$E:$E,0)))","v":""},{"$f":"IF(LEN(A2186)=0,\"\",INDEX('Smelter Look-up'!$C:$C,MATCH($A2186,'Smelter Look-up'!$E:$E,0)))","v":""},null,{"$f":"IF(ISERROR($V2186),\"\",OFFSET('Smelter Look-up'!$D$4,$V2186-4,0)&\"\")","v":""},{"$f":"IF(ISERROR($V2186),\"\",OFFSET('Smelter Look-up'!$E$4,$V2186-4,0))","v":""},{"$f":"IF(C2186=$X$4,\"Enter smelter details\",IF(ISERROR($V2186),\"\",OFFSET('Smelter Look-up'!$F$4,$V2186-4,0)))","v":""},{"$f":"IF(ISERROR($V2186),\"\",OFFSET('Smelter Look-up'!$G$4,$V2186-4,0))","v":""},{"$f":"IF(ISERROR($V2186),\"\",OFFSET('Smelter Look-up'!$H$4,$V2186-4,0))","v":""},{"$f":"IF(ISERROR($V2186),\"\",OFFSET('Smelter Look-up'!$I$4,$V2186-4,0))","v":""},{"$nulls":7},{"$f":"IF(ISERROR($V2186),\"\",OFFSET('Smelter Look-up'!$C$4,$V2186-4,0)&\"\")","v":""},"",{"$f":"IF(B2186=\"\",\"\",IF(ISERROR(MATCH($J2186,SorP!$B$1:$B$5661,0)),\"\",INDIRECT(\"'SorP'!$A$\"&MATCH($J2186,SorP!$B$1:$B$5661,0))))","v":""},null,{"$f":"IF(C2186=\"\",NA(),MATCH($B2186&$C2186,'Smelter Look-up'!$J:$J,0))","v":{"$error":"#N/A"}},null,0,null,null,null,""]
[null,{"$f":"IF(LEN(A2187)=0,\"\",INDEX('Smelter Look-up'!$A:$A,MATCH($A2187,'Smelter Look-up'!$E:$E,0)))","v":""},{"$f":"IF(LEN(A2187)=0,\"\",INDEX('Smelter Look-up'!$C:$C,MATCH($A2187,'Smelter Look-up'!$E:$E,0)))","v":""},null,{"$f":"IF(ISERROR($V2187),\"\",OFFSET('Smelter Look-up'!$D$4,$V2187-4,0)&\"\")","v":""},{"$f":"IF(ISERROR($V2187),\"\",OFFSET('Smelter Look-up'!$E$4,$V2187-4,0))","v":""},{"$f":"IF(C2187=$X$4,\"Enter smelter details\",IF(ISERROR($V2187),\"\",OFFSET('Smelter Look-up'!$F$4,$V2187-4,0)))","v":""},{"$f":"IF(ISERROR($V2187),\"\",OFFSET('Smelter Look-up'!$G$4,$V2187-4,0))","v":""},{"$f":"IF(ISERROR($V2187),\"\",OFFSET('Smelter Look-up'!$H$4,$V2187-4,0))","v":""},{"$f":"IF(ISERROR($V2187),\"\",OFFSET('Smelter Look-up'!$I$4,$V2187-4,0))","v":""},{"$nulls":7},{"$f":"IF(ISERROR($V2187),\"\",OFFSET('Smelter Look-up'!$C$4,$V2187-4,0)&\"\")","v":""},"",{"$f":"IF(B2187=\"\",\"\",IF(ISERROR(MATCH($J2187,SorP!$B$1:$B$5661,0)),\"\",INDIRECT(\"'SorP'!$A$\"&MATCH($J2187,SorP!$B$1:$B$5661,0))))","v":""},null,{"$f":"IF(C2187=\"\",NA(),MATCH($B2187&$C2187,'Smelter Look-up'!$J:$J,0))","v":{"$error":"#N/A"}},null,0,null,null,null,""]
[null,{"$f":"IF(LEN(A2188)=0,\"\",INDEX('Smelter Look-up'!$A:$A,MATCH($A2188,'Smelter Look-up'!$E:$E,0)))","v":""},{"$f":"IF(LEN(A2188)=0,\"\",INDEX('Smelter Look-up'!$C:$C,MATCH($A2188,'Smelter Look-up'!$E:$E,0)))","v":""},null,{"$f":"IF(ISERROR($V2188),\"\",OFFSET('Smelter Look-up'!$D$4,$V2188-4,0)&\"\")","v":""},{"$f":"IF(ISERROR($V2188),\"\",OFFSET('Smelter Look-up'!$E$4,$V2188-4,0))","v":""},{"$f":"IF(C2188=$X$4,\"Enter smelter details\",IF(ISERROR($V2188),\"\",OFFSET('Smelter Look-up'!$F$4,$V2188-4,0)))","v":""},{"$f":"IF(ISERROR($V2188),\"\",OFFSET('Smelter Look-up'!$G$4,$V2188-4,0))","v":""},{"$f":"IF(ISERROR($V2188),\"\",OFFSET('Smelter Look-up'!$H$4,$V2188-4,0))","v":""},{"$f":"IF(ISERROR($V2188),\"\",OFFSET('Smelter Look-up'!$I$4,$V2188-4,0))","v":""},{"$nulls":7},{"$f":"IF(ISERROR($V2188),\"\",OFFSET('Smelter Look-up'!$C$4,$V2188-4,0)&\"\")","v":""},"",{"$f":"IF(B2188=\"\",\"\",IF(ISERROR(MATCH($J2188,SorP!$B$1:$B$5661,0)),\"\",INDIRECT(\"'SorP'!$A$\"&MATCH($J2188,SorP!$B$1:$B$5661,0))))","v":""},null,{"$f":"IF(C2188=\"\",NA(),MATCH($B2188&$C2188,'Smelter Look-up'!$J:$J,0))","v":{"$error":"#N/A"}},null,0,null,null,null,""]
[null,{"$f":"IF(LEN(A2189)=0,\"\",INDEX('Smelter Look-up'!$A:$A,MATCH($A2189,'Smelter Look-up'!$E:$E,0)))","v":""},{"$f":"IF(LEN(A2189)=0,\"\",INDEX('Smelter Look-up'!$C:$C,MATCH($A2189,'Smelter Look-up'!$E:$E,0)))","v":""},null,{"$f":"IF(ISERROR($V2189),\"\",OFFSET('Smelter Look-up'!$D$4,$V2189-4,0)&\"\")","v":""},{"$f":"IF(ISERROR($V2189),\"\",OFFSET('Smelter Look-up'!$E$4,$V2189-4,0))","v":""},{"$f":"IF(C2189=$X$4,\"Enter smelter details\",IF(ISERROR($V2189),\"\",OFFSET('Smelter Look-up'!$F$4,$V2189-4,0)))","v":""},{"$f":"IF(ISERROR($V2189),\"\",OFFSET('Smelter Look-up'!$G$4,$V2189-4,0))","v":""},{"$f":"IF(ISERROR($V2189),\"\",OFFSET('Smelter Look-up'!$H$4,$V2189-4,0))","v":""},{"$f":"IF(ISERROR($V2189),\"\",OFFSET('Smelter Look-up'!$I$4,$V2189-4,0))","v":""},{"$nulls":7},{"$f":"IF(ISERROR($V2189),\"\",OFFSET('Smelter Look-up'!$C$4,$V2189-4,0)&\"\")","v":""},"",{"$f":"IF(B2189=\"\",\"\",IF(ISERROR(MATCH($J2189,SorP!$B$1:$B$5661,0)),\"\",INDIRECT(\"'SorP'!$A$\"&MATCH($J2189,SorP!$B$1:$B$5661,0))))","v":""},null,{"$f":"IF(C2189=\"\",NA(),MATCH($B2189&$C2189,'Smelter Look-up'!$J:$J,0))","v":{"$error":"#N/A"}},null,0,null,null,null,""]
[null,{"$f":"IF(LEN(A2190)=0,\"\",INDEX('Smelter Look-up'!$A:$A,MATCH($A2190,'Smelter Look-up'!$E:$E,0)))","v":""},{"$f":"IF(LEN(A2190)=0,\"\",INDEX('Smelter Look-up'!$C:$C,MATCH($A2190,'Smelter Look-up'!$E:$E,0)))","v":""},null,{"$f":"IF(ISERROR($V2190),\"\",OFFSET('Smelter Look-up'!$D$4,$V2190-4,0)&\"\")","v":""},{"$f":"IF(ISERROR($V2190),\"\",OFFSET('Smelter Look-up'!$E$4,$V2190-4,0))","v":""},{"$f":"IF(C2190=$X$4,\"Enter smelter details\",IF(ISERROR($V2190),\"\",OFFSET('Smelter Look-up'!$F$4,$V2190-4,0)))","v":""},{"$f":"IF(ISERROR($V2190),\"\",OFFSET('Smelter Look-up'!$G$4,$V2190-4,0))","v":""},{"$f":"IF(ISERROR($V2190),\"\",OFFSET('Smelter Look-up'!$H$4,$V2190-4,0))","v":""},{"$f":"IF(ISERROR($V2190),\"\",OFFSET('Smelter Look-up'!$I$4,$V2190-4,0))","v":""},{"$nulls":7},{"$f":"IF(ISERROR($V2190),\"\",OFFSET('Smelter Look-up'!$C$4,$V2190-4,0)&\"\")","v":""},"",{"$f":"IF(B2190=\"\",\"\",IF(ISERROR(MATCH($J2190,SorP!$B$1:$B$5661,0)),\"\",INDIRECT(\"'SorP'!$A$\"&MATCH($J2190,SorP!$B$1:$B$5661,0))))","v":""},null,{"$f":"IF(C2190=\"\",NA(),MATCH($B2190&$C2190,'Smelter Look-up'!$J:$J,0))","v":{"$error":"#N/A"}},null,0,null,null,null,""]
[null,{"$f":"IF(LEN(A2191)=0,\"\",INDEX('Smelter Look-up'!$A:$A,MATCH($A2191,'Smelter Look-up'!$E:$E,0)))","v":""},{"$f":"IF(LEN(A2191)=0,\"\",INDEX('Smelter Look-up'!$C:$C,MATCH($A2191,'Smelter Look-up'!$E:$E,0)))","v":""},null,{"$f":"IF(ISERROR($V2191),\"\",OFFSET('Smelter Look-up'!$D$4,$V2191-4,0)&\"\")","v":""},{"$f":"IF(ISERROR($V2191),\"\",OFFSET('Smelter Look-up'!$E$4,$V2191-4,0))","v":""},{"$f":"IF(C2191=$X$4,\"Enter smelter details\",IF(ISERROR($V2191),\"\",OFFSET('Smelter Look-up'!$F$4,$V2191-4,0)))","v":""},{"$f":"IF(ISERROR($V2191),\"\",OFFSET('Smelter Look-up'!$G$4,$V2191-4,0))","v":""},{"$f":"IF(ISERROR($V2191),\"\",OFFSET('Smelter Look-up'!$H$4,$V2191-4,0))","v":""},{"$f":"IF(ISERROR($V2191),\"\",OFFSET('Smelter Look-up'!$I$4,$V2191-4,0))","v":""},{"$nulls":7},{"$f":"IF(ISERROR($V2191),\"\",OFFSET('Smelter Look-up'!$C$4,$V2191-4,0)&\"\")","v":""},"",{"$f":"IF(B2191=\"\",\"\",IF(ISERROR(MATCH($J2191,SorP!$B$1:$B$5661,0)),\"\",INDIRECT(\"'SorP'!$A$\"&MATCH($J2191,SorP!$B$1:$B$5661,0))))","v":""},null,{"$f":"IF(C2191=\"\",NA(),MATCH($B2191&$C2191,'Smelter Look-up'!$J:$J,0))","v":{"$error":"#N/A"}},null,0,null,null,null,""]
[null,{"$f":"IF(LEN(A2192)=0,\"\",INDEX('Smelter Look-up'!$A:$A,MATCH($A2192,'Smelter Look-up'!$E:$E,0)))","v":""},{"$f":"IF(LEN(A2192)=0,\"\",INDEX('Smelter Look-up'!$C:$C,MATCH($A2192,'Smelter Look-up'!$E:$E,0)))","v":""},null,{"$f":"IF(ISERROR($V2192),\"\",OFFSET('Smelter Look-up'!$D$4,$V2192-4,0)&\"\")","v":""},{"$f":"IF(ISERROR($V2192),\"\",OFFSET('Smelter Look-up'!$E$4,$V2192-4,0))","v":""},{"$f":"IF(C2192=$X$4,\"Enter smelter details\",IF(ISERROR($V2192),\"\",OFFSET('Smelter Look-up'!$F$4,$V2192-4,0)))","v":""},{"$f":"IF(ISERROR($V2192),\"\",OFFSET('Smelter Look-up'!$G$4,$V2192-4,0))","v":""},{"$f":"IF(ISERROR($V2192),\"\",OFFSET('Smelter Look-up'!$H$4,$V2192-4,0))","v":""},{"$f":"IF(ISERROR($V2192),\"\",OFFSET('Smelter Look-up'!$I$4,$V2192-4,0))","v":""},{"$nulls":7},{"$f":"IF(ISERROR($V2192),\"\",OFFSET('Smelter Look-up'!$C$4,$V2192-4,0)&\"\")","v":""},"",{"$f":"IF(B2192=\"\",\"\",IF(ISERROR(MATCH($J2192,SorP!$B$1:$B$5661,0)),\"\",INDIRECT(\"'SorP'!$A$\"&MATCH($J2192,SorP!$B$1:$B$5661,0))))","v":""},null,{"$f":"IF(C2192=\"\",NA(),MATCH($B2192&$C2192,'Smelter Look-up'!$J:$J,0))","v":{"$error":"#N/A"}},null,0,null,null,null,""]
[null,{"$f":"IF(LEN(A2193)=0,\"\",INDEX('Smelter Look-up'!$A:$A,MATCH($A2193,'Smelter Look-up'!$E:$E,0)))","v":""},{"$f":"IF(LEN(A2193)=0,\"\",INDEX('Smelter Look-up'!$C:$C,MATCH($A2193,'Smelter Look-up'!$E:$E,0)))","v":""},null,{"$f":"IF(ISERROR($V2193),\"\",OFFSET('Smelter Look-up'!$D$4,$V2193-4,0)&\"\")","v":""},{"$f":"IF(ISERROR($V2193),\"\",OFFSET('Smelter Look-up'!$E$4,$V2193-4,0))","v":""},{"$f":"IF(C2193=$X$4,\"Enter smelter details\",IF(ISERROR($V2193),\"\",OFFSET('Smelter Look-up'!$F$4,$V2193-4,0)))","v":""},{"$f":"IF(ISERROR($V2193),\"\",OFFSET('Smelter Look-up'!$G$4,$V2193-4,0))","v":""},{"$f":"IF(ISERROR($V2193),\"\",OFFSET('Smelter Look-up'!$H$4,$V2193-4,0))","v":""},{"$f":"IF(ISERROR($V2193),\"\",OFFSET('Smelter Look-up'!$I$4,$V2193-4,0))","v":""},{"$nulls":7},{"$f":"IF(ISERROR($V2193),\"\",OFFSET('Smelter Look-up'!$C$4,$V2193-4,0)&\"\")","v":""},"",{"$f":"IF(B2193=\"\",\"\",IF(ISERROR(MATCH($J2193,SorP!$B$1:$B$5661,0)),\"\",INDIRECT(\"'SorP'!$A$\"&MATCH($J2193,SorP!$B$1:$B$5661,0))))","v":""},null,{"$f":"IF(C2193=\"\",NA(),MATCH($B2193&$C2193,'Smelter Look-up'!$J:$J,0))","v":{"$error":"#N/A"}},null,0,null,null,null,""]
[null,{"$f":"IF(LEN(A2194)=0,\"\",INDEX('Smelter Look-up'!$A:$A,MATCH($A2194,'Smelter Look-up'!$E:$E,0)))","v":""},{"$f":"IF(LEN(A2194)=0,\"\",INDEX('Smelter Look-up'!$C:$C,MATCH($A2194,'Smelter Look-up'!$E:$E,0)))","v":""},null,{"$f":"IF(ISERROR($V2194),\"\",OFFSET('Smelter Look-up'!$D$4,$V2194-4,0)&\"\")","v":""},{"$f":"IF(ISERROR($V2194),\"\",OFFSET('Smelter Look-up'!$E$4,$V2194-4,0))","v":""},{"$f":"IF(C2194=$X$4,\"Enter smelter details\",IF(ISERROR($V2194),\"\",OFFSET('Smelter Look-up'!$F$4,$V2194-4,0)))","v":""},{"$f":"IF(ISERROR($V2194),\"\",OFFSET('Smelter Look-up'!$G$4,$V2194-4,0))","v":""},{"$f":"IF(ISERROR($V2194),\"\",OFFSET('Smelter Look-up'!$H$4,$V2194-4,0))","v":""},{"$f":"IF(ISERROR($V2194),\"\",OFFSET('Smelter Look-up'!$I$4,$V2194-4,0))","v":""},{"$nulls":7},{"$f":"IF(ISERROR($V2194),\"\",OFFSET('Smelter Look-up'!$C$4,$V2194-4,0)&\"\")","v":""},"",{"$f":"IF(B2194=\"\",\"\",IF(ISERROR(MATCH($J2194,SorP!$B$1:$B$5661,0)),\"\",INDIRECT(\"'SorP'!$A$\"&MATCH($J2194,SorP!$B$1:$B$5661,0))))","v":""},null,{"$f":"IF(C2194=\"\",NA(),MATCH($B2194&$C2194,'Smelter Look-up'!$J:$J,0))","v":{"$error":"#N/A"}},null,0,null,null,null,""]
[null,{"$f":"IF(LEN(A2195)=0,\"\",INDEX('Smelter Look-up'!$A:$A,MATCH($A2195,'Smelter Look-up'!$E:$E,0)))","v":""},{"$f":"IF(LEN(A2195)=0,\"\",INDEX('Smelter Look-up'!$C:$C,MATCH($A2195,'Smelter Look-up'!$E:$E,0)))","v":""},null,{"$f":"IF(ISERROR($V2195),\"\",OFFSET('Smelter Look-up'!$D$4,$V2195-4,0)&\"\")","v":""},{"$f":"IF(ISERROR($V2195),\"\",OFFSET('Smelter Look-up'!$E$4,$V2195-4,0))","v":""},{"$f":"IF(C2195=$X$4,\"Enter smelter details\",IF(ISERROR($V2195),\"\",OFFSET('Smelter Look-up'!$F$4,$V2195-4,0)))","v":""},{"$f":"IF(ISERROR($V2195),\"\",OFFSET('Smelter Look-up'!$G$4,$V2195-4,0))","v":""},{"$f":"IF(ISERROR($V2195),\"\",OFFSET('Smelter Look-up'!$H$4,$V2195-4,0))","v":""},{"$f":"IF(ISERROR($V2195),\"\",OFFSET('Smelter Look-up'!$I$4,$V2195-4,0))","v":""},{"$nulls":7},{"$f":"IF(ISERROR($V2195),\"\",OFFSET('Smelter Look-up'!$C$4,$V2195-4,0)&\"\")","v":""},"",{"$f":"IF(B2195=\"\",\"\",IF(ISERROR(MATCH($J2195,SorP!$B$1:$B$5661,0)),\"\",INDIRECT(\"'SorP'!$A$\"&MATCH($J2195,SorP!$B$1:$B$5661,0))))","v":""},null,{"$f":"IF(C2195=\"\",NA(),MATCH($B2195&$C2195,'Smelter Look-up'!$J:$J,0))","v":{"$error":"#N/A"}},null,0,null,null,null,""]
[null,{"$f":"IF(LEN(A2196)=0,\"\",INDEX('Smelter Look-up'!$A:$A,MATCH($A2196,'Smelter Look-up'!$E:$E,0)))","v":""},{"$f":"IF(LEN(A2196)=0,\"\",INDEX('Smelter Look-up'!$C:$C,MATCH($A2196,'Smelter Look-up'!$E:$E,0)))","v":""},null,{"$f":"IF(ISERROR($V2196),\"\",OFFSET('Smelter Look-up'!$D$4,$V2196-4,0)&\"\")","v":""},{"$f":"IF(ISERROR($V2196),\"\",OFFSET('Smelter Look-up'!$E$4,$V2196-4,0))","v":""},{"$f":"IF(C2196=$X$4,\"Enter smelter details\",IF(ISERROR($V2196),\"\",OFFSET('Smelter Look-up'!$F$4,$V2196-4,0)))","v":""},{"$f":"IF(ISERROR($V2196),\"\",OFFSET('Smelter Look-up'!$G$4,$V2196-4,0))","v":""},{"$f":"IF(ISERROR($V2196),\"\",OFFSET('Smelter Look-up'!$H$4,$V2196-4,0))","v":""},{"$f":"IF(ISERROR($V2196),\"\",OFFSET('Smelter Look-up'!$I$4,$V2196-4,0))","v":""},{"$nulls":7},{"$f":"IF(ISERROR($V2196),\"\",OFFSET('Smelter Look-up'!$C$4,$V2196-4,0)&\"\")","v":""},"",{"$f":"IF(B2196=\"\",\"\",IF(ISERROR(MATCH($J2196,SorP!$B$1:$B$5661,0)),\"\",INDIRECT(\"'SorP'!$A$\"&MATCH($J2196,SorP!$B$1:$B$5661,0))))","v":""},null,{"$f":"IF(C2196=\"\",NA(),MATCH($B2196&$C2196,'Smelter Look-up'!$J:$J,0))","v":{"$error":"#N/A"}},null,0,null,null,null,""]
[null,{"$f":"IF(LEN(A2197)=0,\"\",INDEX('Smelter Look-up'!$A:$A,MATCH($A2197,'Smelter Look-up'!$E:$E,0)))","v":""},{"$f":"IF(LEN(A2197)=0,\"\",INDEX('Smelter Look-up'!$C:$C,MATCH($A2197,'Smelter Look-up'!$E:$E,0)))","v":""},null,{"$f":"IF(ISERROR($V2197),\"\",OFFSET('Smelter Look-up'!$D$4,$V2197-4,0)&\"\")","v":""},{"$f":"IF(ISERROR($V2197),\"\",OFFSET('Smelter Look-up'!$E$4,$V2197-4,0))","v":""},{"$f":"IF(C2197=$X$4,\"Enter smelter details\",IF(ISERROR($V2197),\"\",OFFSET('Smelter Look-up'!$F$4,$V2197-4,0)))","v":""},{"$f":"IF(ISERROR($V2197),\"\",OFFSET('Smelter Look-up'!$G$4,$V2197-4,0))","v":""},{"$f":"IF(ISERROR($V2197),\"\",OFFSET('Smelter Look-up'!$H$4,$V2197-4,0))","v":""},{"$f":"IF(ISERROR($V2197),\"\",OFFSET('Smelter Look-up'!$I$4,$V2197-4,0))","v":""},{"$nulls":7},{"$f":"IF(ISERROR($V2197),\"\",OFFSET('Smelter Look-up'!$C$4,$V2197-4,0)&\"\")","v":""},"",{"$f":"IF(B2197=\"\",\"\",IF(ISERROR(MATCH($J2197,SorP!$B$1:$B$5661,0)),\"\",INDIRECT(\"'SorP'!$A$\"&MATCH($J2197,SorP!$B$1:$B$5661,0))))","v":""},null,{"$f":"IF(C2197=\"\",NA(),MATCH($B2197&$C2197,'Smelter Look-up'!$J:$J,0))","v":{"$error":"#N/A"}},null,0,null,null,null,""]
[null,{"$f":"IF(LEN(A2198)=0,\"\",INDEX('Smelter Look-up'!$A:$A,MATCH($A2198,'Smelter Look-up'!$E:$E,0)))","v":""},{"$f":"IF(LEN(A2198)=0,\"\",INDEX('Smelter Look-up'!$C:$C,MATCH($A2198,'Smelter Look-up'!$E:$E,0)))","v":""},null,{"$f":"IF(ISERROR($V2198),\"\",OFFSET('Smelter Look-up'!$D$4,$V2198-4,0)&\"\")","v":""},{"$f":"IF(ISERROR($V2198),\"\",OFFSET('Smelter Look-up'!$E$4,$V2198-4,0))","v":""},{"$f":"IF(C2198=$X$4,\"Enter smelter details\",IF(ISERROR($V2198),\"\",OFFSET('Smelter Look-up'!$F$4,$V2198-4,0)))","v":""},{"$f":"IF(ISERROR($V2198),\"\",OFFSET('Smelter Look-up'!$G$4,$V2198-4,0))","v":""},{"$f":"IF(ISERROR($V2198),\"\",OFFSET('Smelter Look-up'!$H$4,$V2198-4,0))","v":""},{"$f":"IF(ISERROR($V2198),\"\",OFFSET('Smelter Look-up'!$I$4,$V2198-4,0))","v":""},{"$nulls":7},{"$f":"IF(ISERROR($V2198),\"\",OFFSET('Smelter Look-up'!$C$4,$V2198-4,0)&\"\")","v":""},"",{"$f":"IF(B2198=\"\",\"\",IF(ISERROR(MATCH($J2198,SorP!$B$1:$B$5661,0)),\"\",INDIRECT(\"'SorP'!$A$\"&MATCH($J2198,SorP!$B$1:$B$5661,0))))","v":""},null,{"$f":"IF(C2198=\"\",NA(),MATCH($B2198&$C2198,'Smelter Look-up'!$J:$J,0))","v":{"$error":"#N/A"}},null,0,null,null,null,""]
[null,{"$f":"IF(LEN(A2199)=0,\"\",INDEX('Smelter Look-up'!$A:$A,MATCH($A2199,'Smelter Look-up'!$E:$E,0)))","v":""},{"$f":"IF(LEN(A2199)=0,\"\",INDEX('Smelter Look-up'!$C:$C,MATCH($A2199,'Smelter Look-up'!$E:$E,0)))","v":""},null,{"$f":"IF(ISERROR($V2199),\"\",OFFSET('Smelter Look-up'!$D$4,$V2199-4,0)&\"\")","v":""},{"$f":"IF(ISERROR($V2199),\"\",OFFSET('Smelter Look-up'!$E$4,$V2199-4,0))","v":""},{"$f":"IF(C2199=$X$4,\"Enter smelter details\",IF(ISERROR($V2199),\"\",OFFSET('Smelter Look-up'!$F$4,$V2199-4,0)))","v":""},{"$f":"IF(ISERROR($V2199),\"\",OFFSET('Smelter Look-up'!$G$4,$V2199-4,0))","v":""},{"$f":"IF(ISERROR($V2199),\"\",OFFSET('Smelter Look-up'!$H$4,$V2199-4,0))","v":""},{"$f":"IF(ISERROR($V2199),\"\",OFFSET('Smelter Look-up'!$I$4,$V2199-4,0))","v":""},{"$nulls":7},{"$f":"IF(ISERROR($V2199),\"\",OFFSET('Smelter Look-up'!$C$4,$V2199-4,0)&\"\")","v":""},"",{"$f":"IF(B2199=\"\",\"\",IF(ISERROR(MATCH($J2199,SorP!$B$1:$B$5661,0)),\"\",INDIRECT(\"'SorP'!$A$\"&MATCH($J2199,SorP!$B$1:$B$5661,0))))","v":""},null,{"$f":"IF(C2199=\"\",NA(),MATCH($B2199&$C2199,'Smelter Look-up'!$J:$J,0))","v":{"$error":"#N/A"}},null,0,null,null,null,""]
[null,{"$f":"IF(LEN(A2200)=0,\"\",INDEX('Smelter Look-up'!$A:$A,MATCH($A2200,'Smelter Look-up'!$E:$E,0)))","v":""},{"$f":"IF(LEN(A2200)=0,\"\",INDEX('Smelter Look-up'!$C:$C,MATCH($A2200,'Smelter Look-up'!$E:$E,0)))","v":""},null,{"$f":"IF(ISERROR($V2200),\"\",OFFSET('Smelter Look-up'!$D$4,$V2200-4,0)&\"\")","v":""},{"$f":"IF(ISERROR($V2200),\"\",OFFSET('Smelter Look-up'!$E$4,$V2200-4,0))","v":""},{"$f":"IF(C2200=$X$4,\"Enter smelter details\",IF(ISERROR($V2200),\"\",OFFSET('Smelter Look-up'!$F$4,$V2200-4,0)))","v":""},{"$f":"IF(ISERROR($V2200),\"\",OFFSET('Smelter Look-up'!$G$4,$V2200-4,0))","v":""},{"$f":"IF(ISERROR($V2200),\"\",OFFSET('Smelter Look-up'!$H$4,$V2200-4,0))","v":""},{"$f":"IF(ISERROR($V2200),\"\",OFFSET('Smelter Look-up'!$I$4,$V2200-4,0))","v":""},{"$nulls":7},{"$f":"IF(ISERROR($V2200),\"\",OFFSET('Smelter Look-up'!$C$4,$V2200-4,0)&\"\")","v":""},"",{"$f":"IF(B2200=\"\",\"\",IF(ISERROR(MATCH($J2200,SorP!$B$1:$B$5661,0)),\"\",INDIRECT(\"'SorP'!$A$\"&MATCH($J2200,SorP!$B$1:$B$5661,0))))","v":""},null,{"$f":"IF(C2200=\"\",NA(),MATCH($B2200&$C2200,'Smelter Look-up'!$J:$J,0))","v":{"$error":"#N/A"}},null,0,null,null,null,""]
[null,{"$f":"IF(LEN(A2201)=0,\"\",INDEX('Smelter Look-up'!$A:$A,MATCH($A2201,'Smelter Look-up'!$E:$E,0)))","v":""},{"$f":"IF(LEN(A2201)=0,\"\",INDEX('Smelter Look-up'!$C:$C,MATCH($A2201,'Smelter Look-up'!$E:$E,0)))","v":""},null,{"$f":"IF(ISERROR($V2201),\"\",OFFSET('Smelter Look-up'!$D$4,$V2201-4,0)&\"\")","v":""},{"$f":"IF(ISERROR($V2201),\"\",OFFSET('Smelter Look-up'!$E$4,$V2201-4,0))","v":""},{"$f":"IF(C2201=$X$4,\"Enter smelter details\",IF(ISERROR($V2201),\"\",OFFSET('Smelter Look-up'!$F$4,$V2201-4,0)))","v":""},{"$f":"IF(ISERROR($V2201),\"\",OFFSET('Smelter Look-up'!$G$4,$V2201-4,0))","v":""},{"$f":"IF(ISERROR($V2201),\"\",OFFSET('Smelter Look-up'!$H$4,$V2201-4,0))","v":""},{"$f":"IF(ISERROR($V2201),\"\",OFFSET('Smelter Look-up'!$I$4,$V2201-4,0))","v":""},{"$nulls":7},{"$f":"IF(ISERROR($V2201),\"\",OFFSET('Smelter Look-up'!$C$4,$V2201-4,0)&\"\")","v":""},"",{"$f":"IF(B2201=\"\",\"\",IF(ISERROR(MATCH($J2201,SorP!$B$1:$B$5661,0)),\"\",INDIRECT(\"'SorP'!$A$\"&MATCH($J2201,SorP!$B$1:$B$5661,0))))","v":""},null,{"$f":"IF(C2201=\"\",NA(),MATCH($B2201&$C2201,'Smelter Look-up'!$J:$J,0))","v":{"$error":"#N/A"}},null,0,null,null,null,""]
[null,{"$f":"IF(LEN(A2202)=0,\"\",INDEX('Smelter Look-up'!$A:$A,MATCH($A2202,'Smelter Look-up'!$E:$E,0)))","v":""},{"$f":"IF(LEN(A2202)=0,\"\",INDEX('Smelter Look-up'!$C:$C,MATCH($A2202,'Smelter Look-up'!$E:$E,0)))","v":""},null,{"$f":"IF(ISERROR($V2202),\"\",OFFSET('Smelter Look-up'!$D$4,$V2202-4,0)&\"\")","v":""},{"$f":"IF(ISERROR($V2202),\"\",OFFSET('Smelter Look-up'!$E$4,$V2202-4,0))","v":""},{"$f":"IF(C2202=$X$4,\"Enter smelter details\",IF(ISERROR($V2202),\"\",OFFSET('Smelter Look-up'!$F$4,$V2202-4,0)))","v":""},{"$f":"IF(ISERROR($V2202),\"\",OFFSET('Smelter Look-up'!$G$4,$V2202-4,0))","v":""},{"$f":"IF(ISERROR($V2202),\"\",OFFSET('Smelter Look-up'!$H$4,$V2202-4,0))","v":""},{"$f":"IF(ISERROR($V2202),\"\",OFFSET('Smelter Look-up'!$I$4,$V2202-4,0))","v":""},{"$nulls":7},{"$f":"IF(ISERROR($V2202),\"\",OFFSET('Smelter Look-up'!$C$4,$V2202-4,0)&\"\")","v":""},"",{"$f":"IF(B2202=\"\",\"\",IF(ISERROR(MATCH($J2202,SorP!$B$1:$B$5661,0)),\"\",INDIRECT(\"'SorP'!$A$\"&MATCH($J2202,SorP!$B$1:$B$5661,0))))","v":""},null,{"$f":"IF(C2202=\"\",NA(),MATCH($B2202&$C2202,'Smelter Look-up'!$J:$J,0))","v":{"$error":"#N/A"}},null,0,null,null,null,""]
[null,{"$f":"IF(LEN(A2203)=0,\"\",INDEX('Smelter Look-up'!$A:$A,MATCH($A2203,'Smelter Look-up'!$E:$E,0)))","v":""},{"$f":"IF(LEN(A2203)=0,\"\",INDEX('Smelter Look-up'!$C:$C,MATCH($A2203,'Smelter Look-up'!$E:$E,0)))","v":""},null,{"$f":"IF(ISERROR($V2203),\"\",OFFSET('Smelter Look-up'!$D$4,$V2203-4,0)&\"\")","v":""},{"$f":"IF(ISERROR($V2203),\"\",OFFSET('Smelter Look-up'!$E$4,$V2203-4,0))","v":""},{"$f":"IF(C2203=$X$4,\"Enter smelter details\",IF(ISERROR($V2203),\"\",OFFSET('Smelter Look-up'!$F$4,$V2203-4,0)))","v":""},{"$f":"IF(ISERROR($V2203),\"\",OFFSET('Smelter Look-up'!$G$4,$V2203-4,0))","v":""},{"$f":"IF(ISERROR($V2203),\"\",OFFSET('Smelter Look-up'!$H$4,$V2203-4,0))","v":""},{"$f":"IF(ISERROR($V2203),\"\",OFFSET('Smelter Look-up'!$I$4,$V2203-4,0))","v":""},{"$nulls":7},{"$f":"IF(ISERROR($V2203),\"\",OFFSET('Smelter Look-up'!$C$4,$V2203-4,0)&\"\")","v":""},"",{"$f":"IF(B2203=\"\",\"\",IF(ISERROR(MATCH($J2203,SorP!$B$1:$B$5661,0)),\"\",INDIRECT(\"'SorP'!$A$\"&MATCH($J2203,SorP!$B$1:$B$5661,0))))","v":""},null,{"$f":"IF(C2203=\"\",NA(),MATCH($B2203&$C2203,'Smelter Look-up'!$J:$J,0))","v":{"$error":"#N/A"}},null,0,null,null,null,""]
[null,{"$f":"IF(LEN(A2204)=0,\"\",INDEX('Smelter Look-up'!$A:$A,MATCH($A2204,'Smelter Look-up'!$E:$E,0)))","v":""},{"$f":"IF(LEN(A2204)=0,\"\",INDEX('Smelter Look-up'!$C:$C,MATCH($A2204,'Smelter Look-up'!$E:$E,0)))","v":""},null,{"$f":"IF(ISERROR($V2204),\"\",OFFSET('Smelter Look-up'!$D$4,$V2204-4,0)&\"\")","v":""},{"$f":"IF(ISERROR($V2204),\"\",OFFSET('Smelter Look-up'!$E$4,$V2204-4,0))","v":""},{"$f":"IF(C2204=$X$4,\"Enter smelter details\",IF(ISERROR($V2204),\"\",OFFSET('Smelter Look-up'!$F$4,$V2204-4,0)))","v":""},{"$f":"IF(ISERROR($V2204),\"\",OFFSET('Smelter Look-up'!$G$4,$V2204-4,0))","v":""},{"$f":"IF(ISERROR($V2204),\"\",OFFSET('Smelter Look-up'!$H$4,$V2204-4,0))","v":""},{"$f":"IF(ISERROR($V2204),\"\",OFFSET('Smelter Look-up'!$I$4,$V2204-4,0))","v":""},{"$nulls":7},{"$f":"IF(ISERROR($V2204),\"\",OFFSET('Smelter Look-up'!$C$4,$V2204-4,0)&\"\")","v":""},"",{"$f":"IF(B2204=\"\",\"\",IF(ISERROR(MATCH($J2204,SorP!$B$1:$B$5661,0)),\"\",INDIRECT(\"'SorP'!$A$\"&MATCH($J2204,SorP!$B$1:$B$5661,0))))","v":""},null,{"$f":"IF(C2204=\"\",NA(),MATCH($B2204&$C2204,'Smelter Look-up'!$J:$J,0))","v":{"$error":"#N/A"}},null,0,null,null,null,""]
[null,{"$f":"IF(LEN(A2205)=0,\"\",INDEX('Smelter Look-up'!$A:$A,MATCH($A2205,'Smelter Look-up'!$E:$E,0)))","v":""},{"$f":"IF(LEN(A2205)=0,\"\",INDEX('Smelter Look-up'!$C:$C,MATCH($A2205,'Smelter Look-up'!$E:$E,0)))","v":""},null,{"$f":"IF(ISERROR($V2205),\"\",OFFSET('Smelter Look-up'!$D$4,$V2205-4,0)&\"\")","v":""},{"$f":"IF(ISERROR($V2205),\"\",OFFSET('Smelter Look-up'!$E$4,$V2205-4,0))","v":""},{"$f":"IF(C2205=$X$4,\"Enter smelter details\",IF(ISERROR($V2205),\"\",OFFSET('Smelter Look-up'!$F$4,$V2205-4,0)))","v":""},{"$f":"IF(ISERROR($V2205),\"\",OFFSET('Smelter Look-up'!$G$4,$V2205-4,0))","v":""},{"$f":"IF(ISERROR($V2205),\"\",OFFSET('Smelter Look-up'!$H$4,$V2205-4,0))","v":""},{"$f":"IF(ISERROR($V2205),\"\",OFFSET('Smelter Look-up'!$I$4,$V2205-4,0))","v":""},{"$nulls":7},{"$f":"IF(ISERROR($V2205),\"\",OFFSET('Smelter Look-up'!$C$4,$V2205-4,0)&\"\")","v":""},"",{"$f":"IF(B2205=\"\",\"\",IF(ISERROR(MATCH($J2205,SorP!$B$1:$B$5661,0)),\"\",INDIRECT(\"'SorP'!$A$\"&MATCH($J2205,SorP!$B$1:$B$5661,0))))","v":""},null,{"$f":"IF(C2205=\"\",NA(),MATCH($B2205&$C2205,'Smelter Look-up'!$J:$J,0))","v":{"$error":"#N/A"}},null,0,null,null,null,""]
[null,{"$f":"IF(LEN(A2206)=0,\"\",INDEX('Smelter Look-up'!$A:$A,MATCH($A2206,'Smelter Look-up'!$E:$E,0)))","v":""},{"$f":"IF(LEN(A2206)=0,\"\",INDEX('Smelter Look-up'!$C:$C,MATCH($A2206,'Smelter Look-up'!$E:$E,0)))","v":""},null,{"$f":"IF(ISERROR($V2206),\"\",OFFSET('Smelter Look-up'!$D$4,$V2206-4,0)&\"\")","v":""},{"$f":"IF(ISERROR($V2206),\"\",OFFSET('Smelter Look-up'!$E$4,$V2206-4,0))","v":""},{"$f":"IF(C2206=$X$4,\"Enter smelter details\",IF(ISERROR($V2206),\"\",OFFSET('Smelter Look-up'!$F$4,$V2206-4,0)))","v":""},{"$f":"IF(ISERROR($V2206),\"\",OFFSET('Smelter Look-up'!$G$4,$V2206-4,0))","v":""},{"$f":"IF(ISERROR($V2206),\"\",OFFSET('Smelter Look-up'!$H$4,$V2206-4,0))","v":""},{"$f":"IF(ISERROR($V2206),\"\",OFFSET('Smelter Look-up'!$I$4,$V2206-4,0))","v":""},{"$nulls":7},{"$f":"IF(ISERROR($V2206),\"\",OFFSET('Smelter Look-up'!$C$4,$V2206-4,0)&\"\")","v":""},"",{"$f":"IF(B2206=\"\",\"\",IF(ISERROR(MATCH($J2206,SorP!$B$1:$B$5661,0)),\"\",INDIRECT(\"'SorP'!$A$\"&MATCH($J2206,SorP!$B$1:$B$5661,0))))","v":""},null,{"$f":"IF(C2206=\"\",NA(),MATCH($B2206&$C2206,'Smelter Look-up'!$J:$J,0))","v":{"$error":"#N/A"}},null,0,null,null,null,""]
[null,{"$f":"IF(LEN(A2207)=0,\"\",INDEX('Smelter Look-up'!$A:$A,MATCH($A2207,'Smelter Look-up'!$E:$E,0)))","v":""},{"$f":"IF(LEN(A2207)=0,\"\",INDEX('Smelter Look-up'!$C:$C,MATCH($A2207,'Smelter Look-up'!$E:$E,0)))","v":""},null,{"$f":"IF(ISERROR($V2207),\"\",OFFSET('Smelter Look-up'!$D$4,$V2207-4,0)&\"\")","v":""},{"$f":"IF(ISERROR($V2207),\"\",OFFSET('Smelter Look-up'!$E$4,$V2207-4,0))","v":""},{"$f":"IF(C2207=$X$4,\"Enter smelter details\",IF(ISERROR($V2207),\"\",OFFSET('Smelter Look-up'!$F$4,$V2207-4,0)))","v":""},{"$f":"IF(ISERROR($V2207),\"\",OFFSET('Smelter Look-up'!$G$4,$V2207-4,0))","v":""},{"$f":"IF(ISERROR($V2207),\"\",OFFSET('Smelter Look-up'!$H$4,$V2207-4,0))","v":""},{"$f":"IF(ISERROR($V2207),\"\",OFFSET('Smelter Look-up'!$I$4,$V2207-4,0))","v":""},{"$nulls":7},{"$f":"IF(ISERROR($V2207),\"\",OFFSET('Smelter Look-up'!$C$4,$V2207-4,0)&\"\")","v":""},"",{"$f":"IF(B2207=\"\",\"\",IF(ISERROR(MATCH($J2207,SorP!$B$1:$B$5661,0)),\"\",INDIRECT(\"'SorP'!$A$\"&MATCH($J2207,SorP!$B$1:$B$5661,0))))","v":""},null,{"$f":"IF(C2207=\"\",NA(),MATCH($B2207&$C2207,'Smelter Look-up'!$J:$J,0))","v":{"$error":"#N/A"}},null,0,null,null,null,""]
[null,{"$f":"IF(LEN(A2208)=0,\"\",INDEX('Smelter Look-up'!$A:$A,MATCH($A2208,'Smelter Look-up'!$E:$E,0)))","v":""},{"$f":"IF(LEN(A2208)=0,\"\",INDEX('Smelter Look-up'!$C:$C,MATCH($A2208,'Smelter Look-up'!$E:$E,0)))","v":""},null,{"$f":"IF(ISERROR($V2208),\"\",OFFSET('Smelter Look-up'!$D$4,$V2208-4,0)&\"\")","v":""},{"$f":"IF(ISERROR($V2208),\"\",OFFSET('Smelter Look-up'!$E$4,$V2208-4,0))","v":""},{"$f":"IF(C2208=$X$4,\"Enter smelter details\",IF(ISERROR($V2208),\"\",OFFSET('Smelter Look-up'!$F$4,$V2208-4,0)))","v":""},{"$f":"IF(ISERROR($V2208),\"\",OFFSET('Smelter Look-up'!$G$4,$V2208-4,0))","v":""},{"$f":"IF(ISERROR($V2208),\"\",OFFSET('Smelter Look-up'!$H$4,$V2208-4,0))","v":""},{"$f":"IF(ISERROR($V2208),\"\",OFFSET('Smelter Look-up'!$I$4,$V2208-4,0))","v":""},{"$nulls":7},{"$f":"IF(ISERROR($V2208),\"\",OFFSET('Smelter Look-up'!$C$4,$V2208-4,0)&\"\")","v":""},"",{"$f":"IF(B2208=\"\",\"\",IF(ISERROR(MATCH($J2208,SorP!$B$1:$B$5661,0)),\"\",INDIRECT(\"'SorP'!$A$\"&MATCH($J2208,SorP!$B$1:$B$5661,0))))","v":""},null,{"$f":"IF(C2208=\"\",NA(),MATCH($B2208&$C2208,'Smelter Look-up'!$J:$J,0))","v":{"$error":"#N/A"}},null,0,null,null,null,""]
[null,{"$f":"IF(LEN(A2209)=0,\"\",INDEX('Smelter Look-up'!$A:$A,MATCH($A2209,'Smelter Look-up'!$E:$E,0)))","v":""},{"$f":"IF(LEN(A2209)=0,\"\",INDEX('Smelter Look-up'!$C:$C,MATCH($A2209,'Smelter Look-up'!$E:$E,0)))","v":""},null,{"$f":"IF(ISERROR($V2209),\"\",OFFSET('Smelter Look-up'!$D$4,$V2209-4,0)&\"\")","v":""},{"$f":"IF(ISERROR($V2209),\"\",OFFSET('Smelter Look-up'!$E$4,$V2209-4,0))","v":""},{"$f":"IF(C2209=$X$4,\"Enter smelter details\",IF(ISERROR($V2209),\"\",OFFSET('Smelter Look-up'!$F$4,$V2209-4,0)))","v":""},{"$f":"IF(ISERROR($V2209),\"\",OFFSET('Smelter Look-up'!$G$4,$V2209-4,0))","v":""},{"$f":"IF(ISERROR($V2209),\"\",OFFSET('Smelter Look-up'!$H$4,$V2209-4,0))","v":""},{"$f":"IF(ISERROR($V2209),\"\",OFFSET('Smelter Look-up'!$I$4,$V2209-4,0))","v":""},{"$nulls":7},{"$f":"IF(ISERROR($V2209),\"\",OFFSET('Smelter Look-up'!$C$4,$V2209-4,0)&\"\")","v":""},"",{"$f":"IF(B2209=\"\",\"\",IF(ISERROR(MATCH($J2209,SorP!$B$1:$B$5661,0)),\"\",INDIRECT(\"'SorP'!$A$\"&MATCH($J2209,SorP!$B$1:$B$5661,0))))","v":""},null,{"$f":"IF(C2209=\"\",NA(),MATCH($B2209&$C2209,'Smelter Look-up'!$J:$J,0))","v":{"$error":"#N/A"}},null,0,null,null,null,""]
[null,{"$f":"IF(LEN(A2210)=0,\"\",INDEX('Smelter Look-up'!$A:$A,MATCH($A2210,'Smelter Look-up'!$E:$E,0)))","v":""},{"$f":"IF(LEN(A2210)=0,\"\",INDEX('Smelter Look-up'!$C:$C,MATCH($A2210,'Smelter Look-up'!$E:$E,0)))","v":""},null,{"$f":"IF(ISERROR($V2210),\"\",OFFSET('Smelter Look-up'!$D$4,$V2210-4,0)&\"\")","v":""},{"$f":"IF(ISERROR($V2210),\"\",OFFSET('Smelter Look-up'!$E$4,$V2210-4,0))","v":""},{"$f":"IF(C2210=$X$4,\"Enter smelter details\",IF(ISERROR($V2210),\"\",OFFSET('Smelter Look-up'!$F$4,$V2210-4,0)))","v":""},{"$f":"IF(ISERROR($V2210),\"\",OFFSET('Smelter Look-up'!$G$4,$V2210-4,0))","v":""},{"$f":"IF(ISERROR($V2210),\"\",OFFSET('Smelter Look-up'!$H$4,$V2210-4,0))","v":""},{"$f":"IF(ISERROR($V2210),\"\",OFFSET('Smelter Look-up'!$I$4,$V2210-4,0))","v":""},{"$nulls":7},{"$f":"IF(ISERROR($V2210),\"\",OFFSET('Smelter Look-up'!$C$4,$V2210-4,0)&\"\")","v":""},"",{"$f":"IF(B2210=\"\",\"\",IF(ISERROR(MATCH($J2210,SorP!$B$1:$B$5661,0)),\"\",INDIRECT(\"'SorP'!$A$\"&MATCH($J2210,SorP!$B$1:$B$5661,0))))","v":""},null,{"$f":"IF(C2210=\"\",NA(),MATCH($B2210&$C2210,'Smelter Look-up'!$J:$J,0))","v":{"$error":"#N/A"}},null,0,null,null,null,""]
[null,{"$f":"IF(LEN(A2211)=0,\"\",INDEX('Smelter Look-up'!$A:$A,MATCH($A2211,'Smelter Look-up'!$E:$E,0)))","v":""},{"$f":"IF(LEN(A2211)=0,\"\",INDEX('Smelter Look-up'!$C:$C,MATCH($A2211,'Smelter Look-up'!$E:$E,0)))","v":""},null,{"$f":"IF(ISERROR($V2211),\"\",OFFSET('Smelter Look-up'!$D$4,$V2211-4,0)&\"\")","v":""},{"$f":"IF(ISERROR($V2211),\"\",OFFSET('Smelter Look-up'!$E$4,$V2211-4,0))","v":""},{"$f":"IF(C2211=$X$4,\"Enter smelter details\",IF(ISERROR($V2211),\"\",OFFSET('Smelter Look-up'!$F$4,$V2211-4,0)))","v":""},{"$f":"IF(ISERROR($V2211),\"\",OFFSET('Smelter Look-up'!$G$4,$V2211-4,0))","v":""},{"$f":"IF(ISERROR($V2211),\"\",OFFSET('Smelter Look-up'!$H$4,$V2211-4,0))","v":""},{"$f":"IF(ISERROR($V2211),\"\",OFFSET('Smelter Look-up'!$I$4,$V2211-4,0))","v":""},{"$nulls":7},{"$f":"IF(ISERROR($V2211),\"\",OFFSET('Smelter Look-up'!$C$4,$V2211-4,0)&\"\")","v":""},"",{"$f":"IF(B2211=\"\",\"\",IF(ISERROR(MATCH($J2211,SorP!$B$1:$B$5661,0)),\"\",INDIRECT(\"'SorP'!$A$\"&MATCH($J2211,SorP!$B$1:$B$5661,0))))","v":""},null,{"$f":"IF(C2211=\"\",NA(),MATCH($B2211&$C2211,'Smelter Look-up'!$J:$J,0))","v":{"$error":"#N/A"}},null,0,null,null,null,""]
[null,{"$f":"IF(LEN(A2212)=0,\"\",INDEX('Smelter Look-up'!$A:$A,MATCH($A2212,'Smelter Look-up'!$E:$E,0)))","v":""},{"$f":"IF(LEN(A2212)=0,\"\",INDEX('Smelter Look-up'!$C:$C,MATCH($A2212,'Smelter Look-up'!$E:$E,0)))","v":""},null,{"$f":"IF(ISERROR($V2212),\"\",OFFSET('Smelter Look-up'!$D$4,$V2212-4,0)&\"\")","v":""},{"$f":"IF(ISERROR($V2212),\"\",OFFSET('Smelter Look-up'!$E$4,$V2212-4,0))","v":""},{"$f":"IF(C2212=$X$4,\"Enter smelter details\",IF(ISERROR($V2212),\"\",OFFSET('Smelter Look-up'!$F$4,$V2212-4,0)))","v":""},{"$f":"IF(ISERROR($V2212),\"\",OFFSET('Smelter Look-up'!$G$4,$V2212-4,0))","v":""},{"$f":"IF(ISERROR($V2212),\"\",OFFSET('Smelter Look-up'!$H$4,$V2212-4,0))","v":""},{"$f":"IF(ISERROR($V2212),\"\",OFFSET('Smelter Look-up'!$I$4,$V2212-4,0))","v":""},{"$nulls":7},{"$f":"IF(ISERROR($V2212),\"\",OFFSET('Smelter Look-up'!$C$4,$V2212-4,0)&\"\")","v":""},"",{"$f":"IF(B2212=\"\",\"\",IF(ISERROR(MATCH($J2212,SorP!$B$1:$B$5661,0)),\"\",INDIRECT(\"'SorP'!$A$\"&MATCH($J2212,SorP!$B$1:$B$5661,0))))","v":""},null,{"$f":"IF(C2212=\"\",NA(),MATCH($B2212&$C2212,'Smelter Look-up'!$J:$J,0))","v":{"$error":"#N/A"}},null,0,null,null,null,""]
[null,{"$f":"IF(LEN(A2213)=0,\"\",INDEX('Smelter Look-up'!$A:$A,MATCH($A2213,'Smelter Look-up'!$E:$E,0)))","v":""},{"$f":"IF(LEN(A2213)=0,\"\",INDEX('Smelter Look-up'!$C:$C,MATCH($A2213,'Smelter Look-up'!$E:$E,0)))","v":""},null,{"$f":"IF(ISERROR($V2213),\"\",OFFSET('Smelter Look-up'!$D$4,$V2213-4,0)&\"\")","v":""},{"$f":"IF(ISERROR($V2213),\"\",OFFSET('Smelter Look-up'!$E$4,$V2213-4,0))","v":""},{"$f":"IF(C2213=$X$4,\"Enter smelter details\",IF(ISERROR($V2213),\"\",OFFSET('Smelter Look-up'!$F$4,$V2213-4,0)))","v":""},{"$f":"IF(ISERROR($V2213),\"\",OFFSET('Smelter Look-up'!$G$4,$V2213-4,0))","v":""},{"$f":"IF(ISERROR($V2213),\"\",OFFSET('Smelter Look-up'!$H$4,$V2213-4,0))","v":""},{"$f":"IF(ISERROR($V2213),\"\",OFFSET('Smelter Look-up'!$I$4,$V2213-4,0))","v":""},{"$nulls":7},{"$f":"IF(ISERROR($V2213),\"\",OFFSET('Smelter Look-up'!$C$4,$V2213-4,0)&\"\")","v":""},"",{"$f":"IF(B2213=\"\",\"\",IF(ISERROR(MATCH($J2213,SorP!$B$1:$B$5661,0)),\"\",INDIRECT(\"'SorP'!$A$\"&MATCH($J2213,SorP!$B$1:$B$5661,0))))","v":""},null,{"$f":"IF(C2213=\"\",NA(),MATCH($B2213&$C2213,'Smelter Look-up'!$J:$J,0))","v":{"$error":"#N/A"}},null,0,null,null,null,""]
[null,{"$f":"IF(LEN(A2214)=0,\"\",INDEX('Smelter Look-up'!$A:$A,MATCH($A2214,'Smelter Look-up'!$E:$E,0)))","v":""},{"$f":"IF(LEN(A2214)=0,\"\",INDEX('Smelter Look-up'!$C:$C,MATCH($A2214,'Smelter Look-up'!$E:$E,0)))","v":""},null,{"$f":"IF(ISERROR($V2214),\"\",OFFSET('Smelter Look-up'!$D$4,$V2214-4,0)&\"\")","v":""},{"$f":"IF(ISERROR($V2214),\"\",OFFSET('Smelter Look-up'!$E$4,$V2214-4,0))","v":""},{"$f":"IF(C2214=$X$4,\"Enter smelter details\",IF(ISERROR($V2214),\"\",OFFSET('Smelter Look-up'!$F$4,$V2214-4,0)))","v":""},{"$f":"IF(ISERROR($V2214),\"\",OFFSET('Smelter Look-up'!$G$4,$V2214-4,0))","v":""},{"$f":"IF(ISERROR($V2214),\"\",OFFSET('Smelter Look-up'!$H$4,$V2214-4,0))","v":""},{"$f":"IF(ISERROR($V2214),\"\",OFFSET('Smelter Look-up'!$I$4,$V2214-4,0))","v":""},{"$nulls":7},{"$f":"IF(ISERROR($V2214),\"\",OFFSET('Smelter Look-up'!$C$4,$V2214-4,0)&\"\")","v":""},"",{"$f":"IF(B2214=\"\",\"\",IF(ISERROR(MATCH($J2214,SorP!$B$1:$B$5661,0)),\"\",INDIRECT(\"'SorP'!$A$\"&MATCH($J2214,SorP!$B$1:$B$5661,0))))","v":""},null,{"$f":"IF(C2214=\"\",NA(),MATCH($B2214&$C2214,'Smelter Look-up'!$J:$J,0))","v":{"$error":"#N/A"}},null,0,null,null,null,""]
[null,{"$f":"IF(LEN(A2215)=0,\"\",INDEX('Smelter Look-up'!$A:$A,MATCH($A2215,'Smelter Look-up'!$E:$E,0)))","v":""},{"$f":"IF(LEN(A2215)=0,\"\",INDEX('Smelter Look-up'!$C:$C,MATCH($A2215,'Smelter Look-up'!$E:$E,0)))","v":""},null,{"$f":"IF(ISERROR($V2215),\"\",OFFSET('Smelter Look-up'!$D$4,$V2215-4,0)&\"\")","v":""},{"$f":"IF(ISERROR($V2215),\"\",OFFSET('Smelter Look-up'!$E$4,$V2215-4,0))","v":""},{"$f":"IF(C2215=$X$4,\"Enter smelter details\",IF(ISERROR($V2215),\"\",OFFSET('Smelter Look-up'!$F$4,$V2215-4,0)))","v":""},{"$f":"IF(ISERROR($V2215),\"\",OFFSET('Smelter Look-up'!$G$4,$V2215-4,0))","v":""},{"$f":"IF(ISERROR($V2215),\"\",OFFSET('Smelter Look-up'!$H$4,$V2215-4,0))","v":""},{"$f":"IF(ISERROR($V2215),\"\",OFFSET('Smelter Look-up'!$I$4,$V2215-4,0))","v":""},{"$nulls":7},{"$f":"IF(ISERROR($V2215),\"\",OFFSET('Smelter Look-up'!$C$4,$V2215-4,0)&\"\")","v":""},"",{"$f":"IF(B2215=\"\",\"\",IF(ISERROR(MATCH($J2215,SorP!$B$1:$B$5661,0)),\"\",INDIRECT(\"'SorP'!$A$\"&MATCH($J2215,SorP!$B$1:$B$5661,0))))","v":""},null,{"$f":"IF(C2215=\"\",NA(),MATCH($B2215&$C2215,'Smelter Look-up'!$J:$J,0))","v":{"$error":"#N/A"}},null,0,null,null,null,""]
[null,{"$f":"IF(LEN(A2216)=0,\"\",INDEX('Smelter Look-up'!$A:$A,MATCH($A2216,'Smelter Look-up'!$E:$E,0)))","v":""},{"$f":"IF(LEN(A2216)=0,\"\",INDEX('Smelter Look-up'!$C:$C,MATCH($A2216,'Smelter Look-up'!$E:$E,0)))","v":""},null,{"$f":"IF(ISERROR($V2216),\"\",OFFSET('Smelter Look-up'!$D$4,$V2216-4,0)&\"\")","v":""},{"$f":"IF(ISERROR($V2216),\"\",OFFSET('Smelter Look-up'!$E$4,$V2216-4,0))","v":""},{"$f":"IF(C2216=$X$4,\"Enter smelter details\",IF(ISERROR($V2216),\"\",OFFSET('Smelter Look-up'!$F$4,$V2216-4,0)))","v":""},{"$f":"IF(ISERROR($V2216),\"\",OFFSET('Smelter Look-up'!$G$4,$V2216-4,0))","v":""},{"$f":"IF(ISERROR($V2216),\"\",OFFSET('Smelter Look-up'!$H$4,$V2216-4,0))","v":""},{"$f":"IF(ISERROR($V2216),\"\",OFFSET('Smelter Look-up'!$I$4,$V2216-4,0))","v":""},{"$nulls":7},{"$f":"IF(ISERROR($V2216),\"\",OFFSET('Smelter Look-up'!$C$4,$V2216-4,0)&\"\")","v":""},"",{"$f":"IF(B2216=\"\",\"\",IF(ISERROR(MATCH($J2216,SorP!$B$1:$B$5661,0)),\"\",INDIRECT(\"'SorP'!$A$\"&MATCH($J2216,SorP!$B$1:$B$5661,0))))","v":""},null,{"$f":"IF(C2216=\"\",NA(),MATCH($B2216&$C2216,'Smelter Look-up'!$J:$J,0))","v":{"$error":"#N/A"}},null,0,null,null,null,""]
[null,{"$f":"IF(LEN(A2217)=0,\"\",INDEX('Smelter Look-up'!$A:$A,MATCH($A2217,'Smelter Look-up'!$E:$E,0)))","v":""},{"$f":"IF(LEN(A2217)=0,\"\",INDEX('Smelter Look-up'!$C:$C,MATCH($A2217,'Smelter Look-up'!$E:$E,0)))","v":""},null,{"$f":"IF(ISERROR($V2217),\"\",OFFSET('Smelter Look-up'!$D$4,$V2217-4,0)&\"\")","v":""},{"$f":"IF(ISERROR($V2217),\"\",OFFSET('Smelter Look-up'!$E$4,$V2217-4,0))","v":""},{"$f":"IF(C2217=$X$4,\"Enter smelter details\",IF(ISERROR($V2217),\"\",OFFSET('Smelter Look-up'!$F$4,$V2217-4,0)))","v":""},{"$f":"IF(ISERROR($V2217),\"\",OFFSET('Smelter Look-up'!$G$4,$V2217-4,0))","v":""},{"$f":"IF(ISERROR($V2217),\"\",OFFSET('Smelter Look-up'!$H$4,$V2217-4,0))","v":""},{"$f":"IF(ISERROR($V2217),\"\",OFFSET('Smelter Look-up'!$I$4,$V2217-4,0))","v":""},{"$nulls":7},{"$f":"IF(ISERROR($V2217),\"\",OFFSET('Smelter Look-up'!$C$4,$V2217-4,0)&\"\")","v":""},"",{"$f":"IF(B2217=\"\",\"\",IF(ISERROR(MATCH($J2217,SorP!$B$1:$B$5661,0)),\"\",INDIRECT(\"'SorP'!$A$\"&MATCH($J2217,SorP!$B$1:$B$5661,0))))","v":""},null,{"$f":"IF(C2217=\"\",NA(),MATCH($B2217&$C2217,'Smelter Look-up'!$J:$J,0))","v":{"$error":"#N/A"}},null,0,null,null,null,""]
[null,{"$f":"IF(LEN(A2218)=0,\"\",INDEX('Smelter Look-up'!$A:$A,MATCH($A2218,'Smelter Look-up'!$E:$E,0)))","v":""},{"$f":"IF(LEN(A2218)=0,\"\",INDEX('Smelter Look-up'!$C:$C,MATCH($A2218,'Smelter Look-up'!$E:$E,0)))","v":""},null,{"$f":"IF(ISERROR($V2218),\"\",OFFSET('Smelter Look-up'!$D$4,$V2218-4,0)&\"\")","v":""},{"$f":"IF(ISERROR($V2218),\"\",OFFSET('Smelter Look-up'!$E$4,$V2218-4,0))","v":""},{"$f":"IF(C2218=$X$4,\"Enter smelter details\",IF(ISERROR($V2218),\"\",OFFSET('Smelter Look-up'!$F$4,$V2218-4,0)))","v":""},{"$f":"IF(ISERROR($V2218),\"\",OFFSET('Smelter Look-up'!$G$4,$V2218-4,0))","v":""},{"$f":"IF(ISERROR($V2218),\"\",OFFSET('Smelter Look-up'!$H$4,$V2218-4,0))","v":""},{"$f":"IF(ISERROR($V2218),\"\",OFFSET('Smelter Look-up'!$I$4,$V2218-4,0))","v":""},{"$nulls":7},{"$f":"IF(ISERROR($V2218),\"\",OFFSET('Smelter Look-up'!$C$4,$V2218-4,0)&\"\")","v":""},"",{"$f":"IF(B2218=\"\",\"\",IF(ISERROR(MATCH($J2218,SorP!$B$1:$B$5661,0)),\"\",INDIRECT(\"'SorP'!$A$\"&MATCH($J2218,SorP!$B$1:$B$5661,0))))","v":""},null,{"$f":"IF(C2218=\"\",NA(),MATCH($B2218&$C2218,'Smelter Look-up'!$J:$J,0))","v":{"$error":"#N/A"}},null,0,null,null,null,""]
[null,{"$f":"IF(LEN(A2219)=0,\"\",INDEX('Smelter Look-up'!$A:$A,MATCH($A2219,'Smelter Look-up'!$E:$E,0)))","v":""},{"$f":"IF(LEN(A2219)=0,\"\",INDEX('Smelter Look-up'!$C:$C,MATCH($A2219,'Smelter Look-up'!$E:$E,0)))","v":""},null,{"$f":"IF(ISERROR($V2219),\"\",OFFSET('Smelter Look-up'!$D$4,$V2219-4,0)&\"\")","v":""},{"$f":"IF(ISERROR($V2219),\"\",OFFSET('Smelter Look-up'!$E$4,$V2219-4,0))","v":""},{"$f":"IF(C2219=$X$4,\"Enter smelter details\",IF(ISERROR($V2219),\"\",OFFSET('Smelter Look-up'!$F$4,$V2219-4,0)))","v":""},{"$f":"IF(ISERROR($V2219),\"\",OFFSET('Smelter Look-up'!$G$4,$V2219-4,0))","v":""},{"$f":"IF(ISERROR($V2219),\"\",OFFSET('Smelter Look-up'!$H$4,$V2219-4,0))","v":""},{"$f":"IF(ISERROR($V2219),\"\",OFFSET('Smelter Look-up'!$I$4,$V2219-4,0))","v":""},{"$nulls":7},{"$f":"IF(ISERROR($V2219),\"\",OFFSET('Smelter Look-up'!$C$4,$V2219-4,0)&\"\")","v":""},"",{"$f":"IF(B2219=\"\",\"\",IF(ISERROR(MATCH($J2219,SorP!$B$1:$B$5661,0)),\"\",INDIRECT(\"'SorP'!$A$\"&MATCH($J2219,SorP!$B$1:$B$5661,0))))","v":""},null,{"$f":"IF(C2219=\"\",NA(),MATCH($B2219&$C2219,'Smelter Look-up'!$J:$J,0))","v":{"$error":"#N/A"}},null,0,null,null,null,""]
[null,{"$f":"IF(LEN(A2220)=0,\"\",INDEX('Smelter Look-up'!$A:$A,MATCH($A2220,'Smelter Look-up'!$E:$E,0)))","v":""},{"$f":"IF(LEN(A2220)=0,\"\",INDEX('Smelter Look-up'!$C:$C,MATCH($A2220,'Smelter Look-up'!$E:$E,0)))","v":""},null,{"$f":"IF(ISERROR($V2220),\"\",OFFSET('Smelter Look-up'!$D$4,$V2220-4,0)&\"\")","v":""},{"$f":"IF(ISERROR($V2220),\"\",OFFSET('Smelter Look-up'!$E$4,$V2220-4,0))","v":""},{"$f":"IF(C2220=$X$4,\"Enter smelter details\",IF(ISERROR($V2220),\"\",OFFSET('Smelter Look-up'!$F$4,$V2220-4,0)))","v":""},{"$f":"IF(ISERROR($V2220),\"\",OFFSET('Smelter Look-up'!$G$4,$V2220-4,0))","v":""},{"$f":"IF(ISERROR($V2220),\"\",OFFSET('Smelter Look-up'!$H$4,$V2220-4,0))","v":""},{"$f":"IF(ISERROR($V2220),\"\",OFFSET('Smelter Look-up'!$I$4,$V2220-4,0))","v":""},{"$nulls":7},{"$f":"IF(ISERROR($V2220),\"\",OFFSET('Smelter Look-up'!$C$4,$V2220-4,0)&\"\")","v":""},"",{"$f":"IF(B2220=\"\",\"\",IF(ISERROR(MATCH($J2220,SorP!$B$1:$B$5661,0)),\"\",INDIRECT(\"'SorP'!$A$\"&MATCH($J2220,SorP!$B$1:$B$5661,0))))","v":""},null,{"$f":"IF(C2220=\"\",NA(),MATCH($B2220&$C2220,'Smelter Look-up'!$J:$J,0))","v":{"$error":"#N/A"}},null,0,null,null,null,""]
[null,{"$f":"IF(LEN(A2221)=0,\"\",INDEX('Smelter Look-up'!$A:$A,MATCH($A2221,'Smelter Look-up'!$E:$E,0)))","v":""},{"$f":"IF(LEN(A2221)=0,\"\",INDEX('Smelter Look-up'!$C:$C,MATCH($A2221,'Smelter Look-up'!$E:$E,0)))","v":""},null,{"$f":"IF(ISERROR($V2221),\"\",OFFSET('Smelter Look-up'!$D$4,$V2221-4,0)&\"\")","v":""},{"$f":"IF(ISERROR($V2221),\"\",OFFSET('Smelter Look-up'!$E$4,$V2221-4,0))","v":""},{"$f":"IF(C2221=$X$4,\"Enter smelter details\",IF(ISERROR($V2221),\"\",OFFSET('Smelter Look-up'!$F$4,$V2221-4,0)))","v":""},{"$f":"IF(ISERROR($V2221),\"\",OFFSET('Smelter Look-up'!$G$4,$V2221-4,0))","v":""},{"$f":"IF(ISERROR($V2221),\"\",OFFSET('Smelter Look-up'!$H$4,$V2221-4,0))","v":""},{"$f":"IF(ISERROR($V2221),\"\",OFFSET('Smelter Look-up'!$I$4,$V2221-4,0))","v":""},{"$nulls":7},{"$f":"IF(ISERROR($V2221),\"\",OFFSET('Smelter Look-up'!$C$4,$V2221-4,0)&\"\")","v":""},"",{"$f":"IF(B2221=\"\",\"\",IF(ISERROR(MATCH($J2221,SorP!$B$1:$B$5661,0)),\"\",INDIRECT(\"'SorP'!$A$\"&MATCH($J2221,SorP!$B$1:$B$5661,0))))","v":""},null,{"$f":"IF(C2221=\"\",NA(),MATCH($B2221&$C2221,'Smelter Look-up'!$J:$J,0))","v":{"$error":"#N/A"}},null,0,null,null,null,""]
[null,{"$f":"IF(LEN(A2222)=0,\"\",INDEX('Smelter Look-up'!$A:$A,MATCH($A2222,'Smelter Look-up'!$E:$E,0)))","v":""},{"$f":"IF(LEN(A2222)=0,\"\",INDEX('Smelter Look-up'!$C:$C,MATCH($A2222,'Smelter Look-up'!$E:$E,0)))","v":""},null,{"$f":"IF(ISERROR($V2222),\"\",OFFSET('Smelter Look-up'!$D$4,$V2222-4,0)&\"\")","v":""},{"$f":"IF(ISERROR($V2222),\"\",OFFSET('Smelter Look-up'!$E$4,$V2222-4,0))","v":""},{"$f":"IF(C2222=$X$4,\"Enter smelter details\",IF(ISERROR($V2222),\"\",OFFSET('Smelter Look-up'!$F$4,$V2222-4,0)))","v":""},{"$f":"IF(ISERROR($V2222),\"\",OFFSET('Smelter Look-up'!$G$4,$V2222-4,0))","v":""},{"$f":"IF(ISERROR($V2222),\"\",OFFSET('Smelter Look-up'!$H$4,$V2222-4,0))","v":""},{"$f":"IF(ISERROR($V2222),\"\",OFFSET('Smelter Look-up'!$I$4,$V2222-4,0))","v":""},{"$nulls":7},{"$f":"IF(ISERROR($V2222),\"\",OFFSET('Smelter Look-up'!$C$4,$V2222-4,0)&\"\")","v":""},"",{"$f":"IF(B2222=\"\",\"\",IF(ISERROR(MATCH($J2222,SorP!$B$1:$B$5661,0)),\"\",INDIRECT(\"'SorP'!$A$\"&MATCH($J2222,SorP!$B$1:$B$5661,0))))","v":""},null,{"$f":"IF(C2222=\"\",NA(),MATCH($B2222&$C2222,'Smelter Look-up'!$J:$J,0))","v":{"$error":"#N/A"}},null,0,null,null,null,""]
[null,{"$f":"IF(LEN(A2223)=0,\"\",INDEX('Smelter Look-up'!$A:$A,MATCH($A2223,'Smelter Look-up'!$E:$E,0)))","v":""},{"$f":"IF(LEN(A2223)=0,\"\",INDEX('Smelter Look-up'!$C:$C,MATCH($A2223,'Smelter Look-up'!$E:$E,0)))","v":""},null,{"$f":"IF(ISERROR($V2223),\"\",OFFSET('Smelter Look-up'!$D$4,$V2223-4,0)&\"\")","v":""},{"$f":"IF(ISERROR($V2223),\"\",OFFSET('Smelter Look-up'!$E$4,$V2223-4,0))","v":""},{"$f":"IF(C2223=$X$4,\"Enter smelter details\",IF(ISERROR($V2223),\"\",OFFSET('Smelter Look-up'!$F$4,$V2223-4,0)))","v":""},{"$f":"IF(ISERROR($V2223),\"\",OFFSET('Smelter Look-up'!$G$4,$V2223-4,0))","v":""},{"$f":"IF(ISERROR($V2223),\"\",OFFSET('Smelter Look-up'!$H$4,$V2223-4,0))","v":""},{"$f":"IF(ISERROR($V2223),\"\",OFFSET('Smelter Look-up'!$I$4,$V2223-4,0))","v":""},{"$nulls":7},{"$f":"IF(ISERROR($V2223),\"\",OFFSET('Smelter Look-up'!$C$4,$V2223-4,0)&\"\")","v":""},"",{"$f":"IF(B2223=\"\",\"\",IF(ISERROR(MATCH($J2223,SorP!$B$1:$B$5661,0)),\"\",INDIRECT(\"'SorP'!$A$\"&MATCH($J2223,SorP!$B$1:$B$5661,0))))","v":""},null,{"$f":"IF(C2223=\"\",NA(),MATCH($B2223&$C2223,'Smelter Look-up'!$J:$J,0))","v":{"$error":"#N/A"}},null,0,null,null,null,""]
[null,{"$f":"IF(LEN(A2224)=0,\"\",INDEX('Smelter Look-up'!$A:$A,MATCH($A2224,'Smelter Look-up'!$E:$E,0)))","v":""},{"$f":"IF(LEN(A2224)=0,\"\",INDEX('Smelter Look-up'!$C:$C,MATCH($A2224,'Smelter Look-up'!$E:$E,0)))","v":""},null,{"$f":"IF(ISERROR($V2224),\"\",OFFSET('Smelter Look-up'!$D$4,$V2224-4,0)&\"\")","v":""},{"$f":"IF(ISERROR($V2224),\"\",OFFSET('Smelter Look-up'!$E$4,$V2224-4,0))","v":""},{"$f":"IF(C2224=$X$4,\"Enter smelter details\",IF(ISERROR($V2224),\"\",OFFSET('Smelter Look-up'!$F$4,$V2224-4,0)))","v":""},{"$f":"IF(ISERROR($V2224),\"\",OFFSET('Smelter Look-up'!$G$4,$V2224-4,0))","v":""},{"$f":"IF(ISERROR($V2224),\"\",OFFSET('Smelter Look-up'!$H$4,$V2224-4,0))","v":""},{"$f":"IF(ISERROR($V2224),\"\",OFFSET('Smelter Look-up'!$I$4,$V2224-4,0))","v":""},{"$nulls":7},{"$f":"IF(ISERROR($V2224),\"\",OFFSET('Smelter Look-up'!$C$4,$V2224-4,0)&\"\")","v":""},"",{"$f":"IF(B2224=\"\",\"\",IF(ISERROR(MATCH($J2224,SorP!$B$1:$B$5661,0)),\"\",INDIRECT(\"'SorP'!$A$\"&MATCH($J2224,SorP!$B$1:$B$5661,0))))","v":""},null,{"$f":"IF(C2224=\"\",NA(),MATCH($B2224&$C2224,'Smelter Look-up'!$J:$J,0))","v":{"$error":"#N/A"}},null,0,null,null,null,""]
[null,{"$f":"IF(LEN(A2225)=0,\"\",INDEX('Smelter Look-up'!$A:$A,MATCH($A2225,'Smelter Look-up'!$E:$E,0)))","v":""},{"$f":"IF(LEN(A2225)=0,\"\",INDEX('Smelter Look-up'!$C:$C,MATCH($A2225,'Smelter Look-up'!$E:$E,0)))","v":""},null,{"$f":"IF(ISERROR($V2225),\"\",OFFSET('Smelter Look-up'!$D$4,$V2225-4,0)&\"\")","v":""},{"$f":"IF(ISERROR($V2225),\"\",OFFSET('Smelter Look-up'!$E$4,$V2225-4,0))","v":""},{"$f":"IF(C2225=$X$4,\"Enter smelter details\",IF(ISERROR($V2225),\"\",OFFSET('Smelter Look-up'!$F$4,$V2225-4,0)))","v":""},{"$f":"IF(ISERROR($V2225),\"\",OFFSET('Smelter Look-up'!$G$4,$V2225-4,0))","v":""},{"$f":"IF(ISERROR($V2225),\"\",OFFSET('Smelter Look-up'!$H$4,$V2225-4,0))","v":""},{"$f":"IF(ISERROR($V2225),\"\",OFFSET('Smelter Look-up'!$I$4,$V2225-4,0))","v":""},{"$nulls":7},{"$f":"IF(ISERROR($V2225),\"\",OFFSET('Smelter Look-up'!$C$4,$V2225-4,0)&\"\")","v":""},"",{"$f":"IF(B2225=\"\",\"\",IF(ISERROR(MATCH($J2225,SorP!$B$1:$B$5661,0)),\"\",INDIRECT(\"'SorP'!$A$\"&MATCH($J2225,SorP!$B$1:$B$5661,0))))","v":""},null,{"$f":"IF(C2225=\"\",NA(),MATCH($B2225&$C2225,'Smelter Look-up'!$J:$J,0))","v":{"$error":"#N/A"}},null,0,null,null,null,""]
[null,{"$f":"IF(LEN(A2226)=0,\"\",INDEX('Smelter Look-up'!$A:$A,MATCH($A2226,'Smelter Look-up'!$E:$E,0)))","v":""},{"$f":"IF(LEN(A2226)=0,\"\",INDEX('Smelter Look-up'!$C:$C,MATCH($A2226,'Smelter Look-up'!$E:$E,0)))","v":""},null,{"$f":"IF(ISERROR($V2226),\"\",OFFSET('Smelter Look-up'!$D$4,$V2226-4,0)&\"\")","v":""},{"$f":"IF(ISERROR($V2226),\"\",OFFSET('Smelter Look-up'!$E$4,$V2226-4,0))","v":""},{"$f":"IF(C2226=$X$4,\"Enter smelter details\",IF(ISERROR($V2226),\"\",OFFSET('Smelter Look-up'!$F$4,$V2226-4,0)))","v":""},{"$f":"IF(ISERROR($V2226),\"\",OFFSET('Smelter Look-up'!$G$4,$V2226-4,0))","v":""},{"$f":"IF(ISERROR($V2226),\"\",OFFSET('Smelter Look-up'!$H$4,$V2226-4,0))","v":""},{"$f":"IF(ISERROR($V2226),\"\",OFFSET('Smelter Look-up'!$I$4,$V2226-4,0))","v":""},{"$nulls":7},{"$f":"IF(ISERROR($V2226),\"\",OFFSET('Smelter Look-up'!$C$4,$V2226-4,0)&\"\")","v":""},"",{"$f":"IF(B2226=\"\",\"\",IF(ISERROR(MATCH($J2226,SorP!$B$1:$B$5661,0)),\"\",INDIRECT(\"'SorP'!$A$\"&MATCH($J2226,SorP!$B$1:$B$5661,0))))","v":""},null,{"$f":"IF(C2226=\"\",NA(),MATCH($B2226&$C2226,'Smelter Look-up'!$J:$J,0))","v":{"$error":"#N/A"}},null,0,null,null,null,""]
[null,{"$f":"IF(LEN(A2227)=0,\"\",INDEX('Smelter Look-up'!$A:$A,MATCH($A2227,'Smelter Look-up'!$E:$E,0)))","v":""},{"$f":"IF(LEN(A2227)=0,\"\",INDEX('Smelter Look-up'!$C:$C,MATCH($A2227,'Smelter Look-up'!$E:$E,0)))","v":""},null,{"$f":"IF(ISERROR($V2227),\"\",OFFSET('Smelter Look-up'!$D$4,$V2227-4,0)&\"\")","v":""},{"$f":"IF(ISERROR($V2227),\"\",OFFSET('Smelter Look-up'!$E$4,$V2227-4,0))","v":""},{"$f":"IF(C2227=$X$4,\"Enter smelter details\",IF(ISERROR($V2227),\"\",OFFSET('Smelter Look-up'!$F$4,$V2227-4,0)))","v":""},{"$f":"IF(ISERROR($V2227),\"\",OFFSET('Smelter Look-up'!$G$4,$V2227-4,0))","v":""},{"$f":"IF(ISERROR($V2227),\"\",OFFSET('Smelter Look-up'!$H$4,$V2227-4,0))","v":""},{"$f":"IF(ISERROR($V2227),\"\",OFFSET('Smelter Look-up'!$I$4,$V2227-4,0))","v":""},{"$nulls":7},{"$f":"IF(ISERROR($V2227),\"\",OFFSET('Smelter Look-up'!$C$4,$V2227-4,0)&\"\")","v":""},"",{"$f":"IF(B2227=\"\",\"\",IF(ISERROR(MATCH($J2227,SorP!$B$1:$B$5661,0)),\"\",INDIRECT(\"'SorP'!$A$\"&MATCH($J2227,SorP!$B$1:$B$5661,0))))","v":""},null,{"$f":"IF(C2227=\"\",NA(),MATCH($B2227&$C2227,'Smelter Look-up'!$J:$J,0))","v":{"$error":"#N/A"}},null,0,null,null,null,""]
[null,{"$f":"IF(LEN(A2228)=0,\"\",INDEX('Smelter Look-up'!$A:$A,MATCH($A2228,'Smelter Look-up'!$E:$E,0)))","v":""},{"$f":"IF(LEN(A2228)=0,\"\",INDEX('Smelter Look-up'!$C:$C,MATCH($A2228,'Smelter Look-up'!$E:$E,0)))","v":""},null,{"$f":"IF(ISERROR($V2228),\"\",OFFSET('Smelter Look-up'!$D$4,$V2228-4,0)&\"\")","v":""},{"$f":"IF(ISERROR($V2228),\"\",OFFSET('Smelter Look-up'!$E$4,$V2228-4,0))","v":""},{"$f":"IF(C2228=$X$4,\"Enter smelter details\",IF(ISERROR($V2228),\"\",OFFSET('Smelter Look-up'!$F$4,$V2228-4,0)))","v":""},{"$f":"IF(ISERROR($V2228),\"\",OFFSET('Smelter Look-up'!$G$4,$V2228-4,0))","v":""},{"$f":"IF(ISERROR($V2228),\"\",OFFSET('Smelter Look-up'!$H$4,$V2228-4,0))","v":""},{"$f":"IF(ISERROR($V2228),\"\",OFFSET('Smelter Look-up'!$I$4,$V2228-4,0))","v":""},{"$nulls":7},{"$f":"IF(ISERROR($V2228),\"\",OFFSET('Smelter Look-up'!$C$4,$V2228-4,0)&\"\")","v":""},"",{"$f":"IF(B2228=\"\",\"\",IF(ISERROR(MATCH($J2228,SorP!$B$1:$B$5661,0)),\"\",INDIRECT(\"'SorP'!$A$\"&MATCH($J2228,SorP!$B$1:$B$5661,0))))","v":""},null,{"$f":"IF(C2228=\"\",NA(),MATCH($B2228&$C2228,'Smelter Look-up'!$J:$J,0))","v":{"$error":"#N/A"}},null,0,null,null,null,""]
[null,{"$f":"IF(LEN(A2229)=0,\"\",INDEX('Smelter Look-up'!$A:$A,MATCH($A2229,'Smelter Look-up'!$E:$E,0)))","v":""},{"$f":"IF(LEN(A2229)=0,\"\",INDEX('Smelter Look-up'!$C:$C,MATCH($A2229,'Smelter Look-up'!$E:$E,0)))","v":""},null,{"$f":"IF(ISERROR($V2229),\"\",OFFSET('Smelter Look-up'!$D$4,$V2229-4,0)&\"\")","v":""},{"$f":"IF(ISERROR($V2229),\"\",OFFSET('Smelter Look-up'!$E$4,$V2229-4,0))","v":""},{"$f":"IF(C2229=$X$4,\"Enter smelter details\",IF(ISERROR($V2229),\"\",OFFSET('Smelter Look-up'!$F$4,$V2229-4,0)))","v":""},{"$f":"IF(ISERROR($V2229),\"\",OFFSET('Smelter Look-up'!$G$4,$V2229-4,0))","v":""},{"$f":"IF(ISERROR($V2229),\"\",OFFSET('Smelter Look-up'!$H$4,$V2229-4,0))","v":""},{"$f":"IF(ISERROR($V2229),\"\",OFFSET('Smelter Look-up'!$I$4,$V2229-4,0))","v":""},{"$nulls":7},{"$f":"IF(ISERROR($V2229),\"\",OFFSET('Smelter Look-up'!$C$4,$V2229-4,0)&\"\")","v":""},"",{"$f":"IF(B2229=\"\",\"\",IF(ISERROR(MATCH($J2229,SorP!$B$1:$B$5661,0)),\"\",INDIRECT(\"'SorP'!$A$\"&MATCH($J2229,SorP!$B$1:$B$5661,0))))","v":""},null,{"$f":"IF(C2229=\"\",NA(),MATCH($B2229&$C2229,'Smelter Look-up'!$J:$J,0))","v":{"$error":"#N/A"}},null,0,null,null,null,""]
[null,{"$f":"IF(LEN(A2230)=0,\"\",INDEX('Smelter Look-up'!$A:$A,MATCH($A2230,'Smelter Look-up'!$E:$E,0)))","v":""},{"$f":"IF(LEN(A2230)=0,\"\",INDEX('Smelter Look-up'!$C:$C,MATCH($A2230,'Smelter Look-up'!$E:$E,0)))","v":""},null,{"$f":"IF(ISERROR($V2230),\"\",OFFSET('Smelter Look-up'!$D$4,$V2230-4,0)&\"\")","v":""},{"$f":"IF(ISERROR($V2230),\"\",OFFSET('Smelter Look-up'!$E$4,$V2230-4,0))","v":""},{"$f":"IF(C2230=$X$4,\"Enter smelter details\",IF(ISERROR($V2230),\"\",OFFSET('Smelter Look-up'!$F$4,$V2230-4,0)))","v":""},{"$f":"IF(ISERROR($V2230),\"\",OFFSET('Smelter Look-up'!$G$4,$V2230-4,0))","v":""},{"$f":"IF(ISERROR($V2230),\"\",OFFSET('Smelter Look-up'!$H$4,$V2230-4,0))","v":""},{"$f":"IF(ISERROR($V2230),\"\",OFFSET('Smelter Look-up'!$I$4,$V2230-4,0))","v":""},{"$nulls":7},{"$f":"IF(ISERROR($V2230),\"\",OFFSET('Smelter Look-up'!$C$4,$V2230-4,0)&\"\")","v":""},"",{"$f":"IF(B2230=\"\",\"\",IF(ISERROR(MATCH($J2230,SorP!$B$1:$B$5661,0)),\"\",INDIRECT(\"'SorP'!$A$\"&MATCH($J2230,SorP!$B$1:$B$5661,0))))","v":""},null,{"$f":"IF(C2230=\"\",NA(),MATCH($B2230&$C2230,'Smelter Look-up'!$J:$J,0))","v":{"$error":"#N/A"}},null,0,null,null,null,""]
[null,{"$f":"IF(LEN(A2231)=0,\"\",INDEX('Smelter Look-up'!$A:$A,MATCH($A2231,'Smelter Look-up'!$E:$E,0)))","v":""},{"$f":"IF(LEN(A2231)=0,\"\",INDEX('Smelter Look-up'!$C:$C,MATCH($A2231,'Smelter Look-up'!$E:$E,0)))","v":""},null,{"$f":"IF(ISERROR($V2231),\"\",OFFSET('Smelter Look-up'!$D$4,$V2231-4,0)&\"\")","v":""},{"$f":"IF(ISERROR($V2231),\"\",OFFSET('Smelter Look-up'!$E$4,$V2231-4,0))","v":""},{"$f":"IF(C2231=$X$4,\"Enter smelter details\",IF(ISERROR($V2231),\"\",OFFSET('Smelter Look-up'!$F$4,$V2231-4,0)))","v":""},{"$f":"IF(ISERROR($V2231),\"\",OFFSET('Smelter Look-up'!$G$4,$V2231-4,0))","v":""},{"$f":"IF(ISERROR($V2231),\"\",OFFSET('Smelter Look-up'!$H$4,$V2231-4,0))","v":""},{"$f":"IF(ISERROR($V2231),\"\",OFFSET('Smelter Look-up'!$I$4,$V2231-4,0))","v":""},{"$nulls":7},{"$f":"IF(ISERROR($V2231),\"\",OFFSET('Smelter Look-up'!$C$4,$V2231-4,0)&\"\")","v":""},"",{"$f":"IF(B2231=\"\",\"\",IF(ISERROR(MATCH($J2231,SorP!$B$1:$B$5661,0)),\"\",INDIRECT(\"'SorP'!$A$\"&MATCH($J2231,SorP!$B$1:$B$5661,0))))","v":""},null,{"$f":"IF(C2231=\"\",NA(),MATCH($B2231&$C2231,'Smelter Look-up'!$J:$J,0))","v":{"$error":"#N/A"}},null,0,null,null,null,""]
[null,{"$f":"IF(LEN(A2232)=0,\"\",INDEX('Smelter Look-up'!$A:$A,MATCH($A2232,'Smelter Look-up'!$E:$E,0)))","v":""},{"$f":"IF(LEN(A2232)=0,\"\",INDEX('Smelter Look-up'!$C:$C,MATCH($A2232,'Smelter Look-up'!$E:$E,0)))","v":""},null,{"$f":"IF(ISERROR($V2232),\"\",OFFSET('Smelter Look-up'!$D$4,$V2232-4,0)&\"\")","v":""},{"$f":"IF(ISERROR($V2232),\"\",OFFSET('Smelter Look-up'!$E$4,$V2232-4,0))","v":""},{"$f":"IF(C2232=$X$4,\"Enter smelter details\",IF(ISERROR($V2232),\"\",OFFSET('Smelter Look-up'!$F$4,$V2232-4,0)))","v":""},{"$f":"IF(ISERROR($V2232),\"\",OFFSET('Smelter Look-up'!$G$4,$V2232-4,0))","v":""},{"$f":"IF(ISERROR($V2232),\"\",OFFSET('Smelter Look-up'!$H$4,$V2232-4,0))","v":""},{"$f":"IF(ISERROR($V2232),\"\",OFFSET('Smelter Look-up'!$I$4,$V2232-4,0))","v":""},{"$nulls":7},{"$f":"IF(ISERROR($V2232),\"\",OFFSET('Smelter Look-up'!$C$4,$V2232-4,0)&\"\")","v":""},"",{"$f":"IF(B2232=\"\",\"\",IF(ISERROR(MATCH($J2232,SorP!$B$1:$B$5661,0)),\"\",INDIRECT(\"'SorP'!$A$\"&MATCH($J2232,SorP!$B$1:$B$5661,0))))","v":""},null,{"$f":"IF(C2232=\"\",NA(),MATCH($B2232&$C2232,'Smelter Look-up'!$J:$J,0))","v":{"$error":"#N/A"}},null,0,null,null,null,""]
[null,{"$f":"IF(LEN(A2233)=0,\"\",INDEX('Smelter Look-up'!$A:$A,MATCH($A2233,'Smelter Look-up'!$E:$E,0)))","v":""},{"$f":"IF(LEN(A2233)=0,\"\",INDEX('Smelter Look-up'!$C:$C,MATCH($A2233,'Smelter Look-up'!$E:$E,0)))","v":""},null,{"$f":"IF(ISERROR($V2233),\"\",OFFSET('Smelter Look-up'!$D$4,$V2233-4,0)&\"\")","v":""},{"$f":"IF(ISERROR($V2233),\"\",OFFSET('Smelter Look-up'!$E$4,$V2233-4,0))","v":""},{"$f":"IF(C2233=$X$4,\"Enter smelter details\",IF(ISERROR($V2233),\"\",OFFSET('Smelter Look-up'!$F$4,$V2233-4,0)))","v":""},{"$f":"IF(ISERROR($V2233),\"\",OFFSET('Smelter Look-up'!$G$4,$V2233-4,0))","v":""},{"$f":"IF(ISERROR($V2233),\"\",OFFSET('Smelter Look-up'!$H$4,$V2233-4,0))","v":""},{"$f":"IF(ISERROR($V2233),\"\",OFFSET('Smelter Look-up'!$I$4,$V2233-4,0))","v":""},{"$nulls":7},{"$f":"IF(ISERROR($V2233),\"\",OFFSET('Smelter Look-up'!$C$4,$V2233-4,0)&\"\")","v":""},"",{"$f":"IF(B2233=\"\",\"\",IF(ISERROR(MATCH($J2233,SorP!$B$1:$B$5661,0)),\"\",INDIRECT(\"'SorP'!$A$\"&MATCH($J2233,SorP!$B$1:$B$5661,0))))","v":""},null,{"$f":"IF(C2233=\"\",NA(),MATCH($B2233&$C2233,'Smelter Look-up'!$J:$J,0))","v":{"$error":"#N/A"}},null,0,null,null,null,""]
[null,{"$f":"IF(LEN(A2234)=0,\"\",INDEX('Smelter Look-up'!$A:$A,MATCH($A2234,'Smelter Look-up'!$E:$E,0)))","v":""},{"$f":"IF(LEN(A2234)=0,\"\",INDEX('Smelter Look-up'!$C:$C,MATCH($A2234,'Smelter Look-up'!$E:$E,0)))","v":""},null,{"$f":"IF(ISERROR($V2234),\"\",OFFSET('Smelter Look-up'!$D$4,$V2234-4,0)&\"\")","v":""},{"$f":"IF(ISERROR($V2234),\"\",OFFSET('Smelter Look-up'!$E$4,$V2234-4,0))","v":""},{"$f":"IF(C2234=$X$4,\"Enter smelter details\",IF(ISERROR($V2234),\"\",OFFSET('Smelter Look-up'!$F$4,$V2234-4,0)))","v":""},{"$f":"IF(ISERROR($V2234),\"\",OFFSET('Smelter Look-up'!$G$4,$V2234-4,0))","v":""},{"$f":"IF(ISERROR($V2234),\"\",OFFSET('Smelter Look-up'!$H$4,$V2234-4,0))","v":""},{"$f":"IF(ISERROR($V2234),\"\",OFFSET('Smelter Look-up'!$I$4,$V2234-4,0))","v":""},{"$nulls":7},{"$f":"IF(ISERROR($V2234),\"\",OFFSET('Smelter Look-up'!$C$4,$V2234-4,0)&\"\")","v":""},"",{"$f":"IF(B2234=\"\",\"\",IF(ISERROR(MATCH($J2234,SorP!$B$1:$B$5661,0)),\"\",INDIRECT(\"'SorP'!$A$\"&MATCH($J2234,SorP!$B$1:$B$5661,0))))","v":""},null,{"$f":"IF(C2234=\"\",NA(),MATCH($B2234&$C2234,'Smelter Look-up'!$J:$J,0))","v":{"$error":"#N/A"}},null,0,null,null,null,""]
[null,{"$f":"IF(LEN(A2235)=0,\"\",INDEX('Smelter Look-up'!$A:$A,MATCH($A2235,'Smelter Look-up'!$E:$E,0)))","v":""},{"$f":"IF(LEN(A2235)=0,\"\",INDEX('Smelter Look-up'!$C:$C,MATCH($A2235,'Smelter Look-up'!$E:$E,0)))","v":""},null,{"$f":"IF(ISERROR($V2235),\"\",OFFSET('Smelter Look-up'!$D$4,$V2235-4,0)&\"\")","v":""},{"$f":"IF(ISERROR($V2235),\"\",OFFSET('Smelter Look-up'!$E$4,$V2235-4,0))","v":""},{"$f":"IF(C2235=$X$4,\"Enter smelter details\",IF(ISERROR($V2235),\"\",OFFSET('Smelter Look-up'!$F$4,$V2235-4,0)))","v":""},{"$f":"IF(ISERROR($V2235),\"\",OFFSET('Smelter Look-up'!$G$4,$V2235-4,0))","v":""},{"$f":"IF(ISERROR($V2235),\"\",OFFSET('Smelter Look-up'!$H$4,$V2235-4,0))","v":""},{"$f":"IF(ISERROR($V2235),\"\",OFFSET('Smelter Look-up'!$I$4,$V2235-4,0))","v":""},{"$nulls":7},{"$f":"IF(ISERROR($V2235),\"\",OFFSET('Smelter Look-up'!$C$4,$V2235-4,0)&\"\")","v":""},"",{"$f":"IF(B2235=\"\",\"\",IF(ISERROR(MATCH($J2235,SorP!$B$1:$B$5661,0)),\"\",INDIRECT(\"'SorP'!$A$\"&MATCH($J2235,SorP!$B$1:$B$5661,0))))","v":""},null,{"$f":"IF(C2235=\"\",NA(),MATCH($B2235&$C2235,'Smelter Look-up'!$J:$J,0))","v":{"$error":"#N/A"}},null,0,null,null,null,""]
[null,{"$f":"IF(LEN(A2236)=0,\"\",INDEX('Smelter Look-up'!$A:$A,MATCH($A2236,'Smelter Look-up'!$E:$E,0)))","v":""},{"$f":"IF(LEN(A2236)=0,\"\",INDEX('Smelter Look-up'!$C:$C,MATCH($A2236,'Smelter Look-up'!$E:$E,0)))","v":""},null,{"$f":"IF(ISERROR($V2236),\"\",OFFSET('Smelter Look-up'!$D$4,$V2236-4,0)&\"\")","v":""},{"$f":"IF(ISERROR($V2236),\"\",OFFSET('Smelter Look-up'!$E$4,$V2236-4,0))","v":""},{"$f":"IF(C2236=$X$4,\"Enter smelter details\",IF(ISERROR($V2236),\"\",OFFSET('Smelter Look-up'!$F$4,$V2236-4,0)))","v":""},{"$f":"IF(ISERROR($V2236),\"\",OFFSET('Smelter Look-up'!$G$4,$V2236-4,0))","v":""},{"$f":"IF(ISERROR($V2236),\"\",OFFSET('Smelter Look-up'!$H$4,$V2236-4,0))","v":""},{"$f":"IF(ISERROR($V2236),\"\",OFFSET('Smelter Look-up'!$I$4,$V2236-4,0))","v":""},{"$nulls":7},{"$f":"IF(ISERROR($V2236),\"\",OFFSET('Smelter Look-up'!$C$4,$V2236-4,0)&\"\")","v":""},"",{"$f":"IF(B2236=\"\",\"\",IF(ISERROR(MATCH($J2236,SorP!$B$1:$B$5661,0)),\"\",INDIRECT(\"'SorP'!$A$\"&MATCH($J2236,SorP!$B$1:$B$5661,0))))","v":""},null,{"$f":"IF(C2236=\"\",NA(),MATCH($B2236&$C2236,'Smelter Look-up'!$J:$J,0))","v":{"$error":"#N/A"}},null,0,null,null,null,""]
[null,{"$f":"IF(LEN(A2237)=0,\"\",INDEX('Smelter Look-up'!$A:$A,MATCH($A2237,'Smelter Look-up'!$E:$E,0)))","v":""},{"$f":"IF(LEN(A2237)=0,\"\",INDEX('Smelter Look-up'!$C:$C,MATCH($A2237,'Smelter Look-up'!$E:$E,0)))","v":""},null,{"$f":"IF(ISERROR($V2237),\"\",OFFSET('Smelter Look-up'!$D$4,$V2237-4,0)&\"\")","v":""},{"$f":"IF(ISERROR($V2237),\"\",OFFSET('Smelter Look-up'!$E$4,$V2237-4,0))","v":""},{"$f":"IF(C2237=$X$4,\"Enter smelter details\",IF(ISERROR($V2237),\"\",OFFSET('Smelter Look-up'!$F$4,$V2237-4,0)))","v":""},{"$f":"IF(ISERROR($V2237),\"\",OFFSET('Smelter Look-up'!$G$4,$V2237-4,0))","v":""},{"$f":"IF(ISERROR($V2237),\"\",OFFSET('Smelter Look-up'!$H$4,$V2237-4,0))","v":""},{"$f":"IF(ISERROR($V2237),\"\",OFFSET('Smelter Look-up'!$I$4,$V2237-4,0))","v":""},{"$nulls":7},{"$f":"IF(ISERROR($V2237),\"\",OFFSET('Smelter Look-up'!$C$4,$V2237-4,0)&\"\")","v":""},"",{"$f":"IF(B2237=\"\",\"\",IF(ISERROR(MATCH($J2237,SorP!$B$1:$B$5661,0)),\"\",INDIRECT(\"'SorP'!$A$\"&MATCH($J2237,SorP!$B$1:$B$5661,0))))","v":""},null,{"$f":"IF(C2237=\"\",NA(),MATCH($B2237&$C2237,'Smelter Look-up'!$J:$J,0))","v":{"$error":"#N/A"}},null,0,null,null,null,""]
[null,{"$f":"IF(LEN(A2238)=0,\"\",INDEX('Smelter Look-up'!$A:$A,MATCH($A2238,'Smelter Look-up'!$E:$E,0)))","v":""},{"$f":"IF(LEN(A2238)=0,\"\",INDEX('Smelter Look-up'!$C:$C,MATCH($A2238,'Smelter Look-up'!$E:$E,0)))","v":""},null,{"$f":"IF(ISERROR($V2238),\"\",OFFSET('Smelter Look-up'!$D$4,$V2238-4,0)&\"\")","v":""},{"$f":"IF(ISERROR($V2238),\"\",OFFSET('Smelter Look-up'!$E$4,$V2238-4,0))","v":""},{"$f":"IF(C2238=$X$4,\"Enter smelter details\",IF(ISERROR($V2238),\"\",OFFSET('Smelter Look-up'!$F$4,$V2238-4,0)))","v":""},{"$f":"IF(ISERROR($V2238),\"\",OFFSET('Smelter Look-up'!$G$4,$V2238-4,0))","v":""},{"$f":"IF(ISERROR($V2238),\"\",OFFSET('Smelter Look-up'!$H$4,$V2238-4,0))","v":""},{"$f":"IF(ISERROR($V2238),\"\",OFFSET('Smelter Look-up'!$I$4,$V2238-4,0))","v":""},{"$nulls":7},{"$f":"IF(ISERROR($V2238),\"\",OFFSET('Smelter Look-up'!$C$4,$V2238-4,0)&\"\")","v":""},"",{"$f":"IF(B2238=\"\",\"\",IF(ISERROR(MATCH($J2238,SorP!$B$1:$B$5661,0)),\"\",INDIRECT(\"'SorP'!$A$\"&MATCH($J2238,SorP!$B$1:$B$5661,0))))","v":""},null,{"$f":"IF(C2238=\"\",NA(),MATCH($B2238&$C2238,'Smelter Look-up'!$J:$J,0))","v":{"$error":"#N/A"}},null,0,null,null,null,""]
[null,{"$f":"IF(LEN(A2239)=0,\"\",INDEX('Smelter Look-up'!$A:$A,MATCH($A2239,'Smelter Look-up'!$E:$E,0)))","v":""},{"$f":"IF(LEN(A2239)=0,\"\",INDEX('Smelter Look-up'!$C:$C,MATCH($A2239,'Smelter Look-up'!$E:$E,0)))","v":""},null,{"$f":"IF(ISERROR($V2239),\"\",OFFSET('Smelter Look-up'!$D$4,$V2239-4,0)&\"\")","v":""},{"$f":"IF(ISERROR($V2239),\"\",OFFSET('Smelter Look-up'!$E$4,$V2239-4,0))","v":""},{"$f":"IF(C2239=$X$4,\"Enter smelter details\",IF(ISERROR($V2239),\"\",OFFSET('Smelter Look-up'!$F$4,$V2239-4,0)))","v":""},{"$f":"IF(ISERROR($V2239),\"\",OFFSET('Smelter Look-up'!$G$4,$V2239-4,0))","v":""},{"$f":"IF(ISERROR($V2239),\"\",OFFSET('Smelter Look-up'!$H$4,$V2239-4,0))","v":""},{"$f":"IF(ISERROR($V2239),\"\",OFFSET('Smelter Look-up'!$I$4,$V2239-4,0))","v":""},{"$nulls":7},{"$f":"IF(ISERROR($V2239),\"\",OFFSET('Smelter Look-up'!$C$4,$V2239-4,0)&\"\")","v":""},"",{"$f":"IF(B2239=\"\",\"\",IF(ISERROR(MATCH($J2239,SorP!$B$1:$B$5661,0)),\"\",INDIRECT(\"'SorP'!$A$\"&MATCH($J2239,SorP!$B$1:$B$5661,0))))","v":""},null,{"$f":"IF(C2239=\"\",NA(),MATCH($B2239&$C2239,'Smelter Look-up'!$J:$J,0))","v":{"$error":"#N/A"}},null,{"$f":"IF(AND(C2239=\"Smelter not listed\",OR(LEN(D2239)=0,LEN(E2239)=0)),1,0)","v":0},null,null,null,{"$f":"B2239&C2239","v":""}]
[null,{"$f":"IF(LEN(A2240)=0,\"\",INDEX('Smelter Look-up'!$A:$A,MATCH($A2240,'Smelter Look-up'!$E:$E,0)))","v":""},{"$f":"IF(LEN(A2240)=0,\"\",INDEX('Smelter Look-up'!$C:$C,MATCH($A2240,'Smelter Look-up'!$E:$E,0)))","v":""},null,{"$f":"IF(ISERROR($V2240),\"\",OFFSET('Smelter Look-up'!$D$4,$V2240-4,0)&\"\")","v":""},{"$f":"IF(ISERROR($V2240),\"\",OFFSET('Smelter Look-up'!$E$4,$V2240-4,0))","v":""},{"$f":"IF(C2240=$X$4,\"Enter smelter details\",IF(ISERROR($V2240),\"\",OFFSET('Smelter Look-up'!$F$4,$V2240-4,0)))","v":""},{"$f":"IF(ISERROR($V2240),\"\",OFFSET('Smelter Look-up'!$G$4,$V2240-4,0))","v":""},{"$f":"IF(ISERROR($V2240),\"\",OFFSET('Smelter Look-up'!$H$4,$V2240-4,0))","v":""},{"$f":"IF(ISERROR($V2240),\"\",OFFSET('Smelter Look-up'!$I$4,$V2240-4,0))","v":""},{"$nulls":7},{"$f":"IF(ISERROR($V2240),\"\",OFFSET('Smelter Look-up'!$C$4,$V2240-4,0)&\"\")","v":""},{"$f":"IF(B2240=\"\",\"\",IF(ISERROR(MATCH($E2240,CL,0)),\"Unknown\",INDIRECT(\"'C'!$A$\"&MATCH($E2240,CL,0)+1)))","v":""},{"$f":"IF(B2240=\"\",\"\",IF(ISERROR(MATCH($J2240,SorP!$B$1:$B$5661,0)),\"\",INDIRECT(\"'SorP'!$A$\"&MATCH($J2240,SorP!$B$1:$B$5661,0))))","v":""},null,{"$f":"IF(C2240=\"\",NA(),MATCH($B2240&$C2240,'Smelter Look-up'!$J:$J,0))","v":{"$error":"#N/A"}},null,0,null,null,null,""]
[null,{"$f":"IF(LEN(A2241)=0,\"\",INDEX('Smelter Look-up'!$A:$A,MATCH($A2241,'Smelter Look-up'!$E:$E,0)))","v":""},{"$f":"IF(LEN(A2241)=0,\"\",INDEX('Smelter Look-up'!$C:$C,MATCH($A2241,'Smelter Look-up'!$E:$E,0)))","v":""},null,{"$f":"IF(ISERROR($V2241),\"\",OFFSET('Smelter Look-up'!$D$4,$V2241-4,0)&\"\")","v":""},{"$f":"IF(ISERROR($V2241),\"\",OFFSET('Smelter Look-up'!$E$4,$V2241-4,0))","v":""},{"$f":"IF(C2241=$X$4,\"Enter smelter details\",IF(ISERROR($V2241),\"\",OFFSET('Smelter Look-up'!$F$4,$V2241-4,0)))","v":""},{"$f":"IF(ISERROR($V2241),\"\",OFFSET('Smelter Look-up'!$G$4,$V2241-4,0))","v":""},{"$f":"IF(ISERROR($V2241),\"\",OFFSET('Smelter Look-up'!$H$4,$V2241-4,0))","v":""},{"$f":"IF(ISERROR($V2241),\"\",OFFSET('Smelter Look-up'!$I$4,$V2241-4,0))","v":""},{"$nulls":7},{"$f":"IF(ISERROR($V2241),\"\",OFFSET('Smelter Look-up'!$C$4,$V2241-4,0)&\"\")","v":""},"",{"$f":"IF(B2241=\"\",\"\",IF(ISERROR(MATCH($J2241,SorP!$B$1:$B$5661,0)),\"\",INDIRECT(\"'SorP'!$A$\"&MATCH($J2241,SorP!$B$1:$B$5661,0))))","v":""},null,{"$f":"IF(C2241=\"\",NA(),MATCH($B2241&$C2241,'Smelter Look-up'!$J:$J,0))","v":{"$error":"#N/A"}},null,0,null,null,null,""]
[null,{"$f":"IF(LEN(A2242)=0,\"\",INDEX('Smelter Look-up'!$A:$A,MATCH($A2242,'Smelter Look-up'!$E:$E,0)))","v":""},{"$f":"IF(LEN(A2242)=0,\"\",INDEX('Smelter Look-up'!$C:$C,MATCH($A2242,'Smelter Look-up'!$E:$E,0)))","v":""},null,{"$f":"IF(ISERROR($V2242),\"\",OFFSET('Smelter Look-up'!$D$4,$V2242-4,0)&\"\")","v":""},{"$f":"IF(ISERROR($V2242),\"\",OFFSET('Smelter Look-up'!$E$4,$V2242-4,0))","v":""},{"$f":"IF(C2242=$X$4,\"Enter smelter details\",IF(ISERROR($V2242),\"\",OFFSET('Smelter Look-up'!$F$4,$V2242-4,0)))","v":""},{"$f":"IF(ISERROR($V2242),\"\",OFFSET('Smelter Look-up'!$G$4,$V2242-4,0))","v":""},{"$f":"IF(ISERROR($V2242),\"\",OFFSET('Smelter Look-up'!$H$4,$V2242-4,0))","v":""},{"$f":"IF(ISERROR($V2242),\"\",OFFSET('Smelter Look-up'!$I$4,$V2242-4,0))","v":""},{"$nulls":7},{"$f":"IF(ISERROR($V2242),\"\",OFFSET('Smelter Look-up'!$C$4,$V2242-4,0)&\"\")","v":""},"",{"$f":"IF(B2242=\"\",\"\",IF(ISERROR(MATCH($J2242,SorP!$B$1:$B$5661,0)),\"\",INDIRECT(\"'SorP'!$A$\"&MATCH($J2242,SorP!$B$1:$B$5661,0))))","v":""},null,{"$f":"IF(C2242=\"\",NA(),MATCH($B2242&$C2242,'Smelter Look-up'!$J:$J,0))","v":{"$error":"#N/A"}},null,0,null,null,null,""]
[null,{"$f":"IF(LEN(A2243)=0,\"\",INDEX('Smelter Look-up'!$A:$A,MATCH($A2243,'Smelter Look-up'!$E:$E,0)))","v":""},{"$f":"IF(LEN(A2243)=0,\"\",INDEX('Smelter Look-up'!$C:$C,MATCH($A2243,'Smelter Look-up'!$E:$E,0)))","v":""},null,{"$f":"IF(ISERROR($V2243),\"\",OFFSET('Smelter Look-up'!$D$4,$V2243-4,0)&\"\")","v":""},{"$f":"IF(ISERROR($V2243),\"\",OFFSET('Smelter Look-up'!$E$4,$V2243-4,0))","v":""},{"$f":"IF(C2243=$X$4,\"Enter smelter details\",IF(ISERROR($V2243),\"\",OFFSET('Smelter Look-up'!$F$4,$V2243-4,0)))","v":""},{"$f":"IF(ISERROR($V2243),\"\",OFFSET('Smelter Look-up'!$G$4,$V2243-4,0))","v":""},{"$f":"IF(ISERROR($V2243),\"\",OFFSET('Smelter Look-up'!$H$4,$V2243-4,0))","v":""},{"$f":"IF(ISERROR($V2243),\"\",OFFSET('Smelter Look-up'!$I$4,$V2243-4,0))","v":""},{"$nulls":7},{"$f":"IF(ISERROR($V2243),\"\",OFFSET('Smelter Look-up'!$C$4,$V2243-4,0)&\"\")","v":""},"",{"$f":"IF(B2243=\"\",\"\",IF(ISERROR(MATCH($J2243,SorP!$B$1:$B$5661,0)),\"\",INDIRECT(\"'SorP'!$A$\"&MATCH($J2243,SorP!$B$1:$B$5661,0))))","v":""},null,{"$f":"IF(C2243=\"\",NA(),MATCH($B2243&$C2243,'Smelter Look-up'!$J:$J,0))","v":{"$error":"#N/A"}},null,0,null,null,null,""]
[null,{"$f":"IF(LEN(A2244)=0,\"\",INDEX('Smelter Look-up'!$A:$A,MATCH($A2244,'Smelter Look-up'!$E:$E,0)))","v":""},{"$f":"IF(LEN(A2244)=0,\"\",INDEX('Smelter Look-up'!$C:$C,MATCH($A2244,'Smelter Look-up'!$E:$E,0)))","v":""},null,{"$f":"IF(ISERROR($V2244),\"\",OFFSET('Smelter Look-up'!$D$4,$V2244-4,0)&\"\")","v":""},{"$f":"IF(ISERROR($V2244),\"\",OFFSET('Smelter Look-up'!$E$4,$V2244-4,0))","v":""},{"$f":"IF(C2244=$X$4,\"Enter smelter details\",IF(ISERROR($V2244),\"\",OFFSET('Smelter Look-up'!$F$4,$V2244-4,0)))","v":""},{"$f":"IF(ISERROR($V2244),\"\",OFFSET('Smelter Look-up'!$G$4,$V2244-4,0))","v":""},{"$f":"IF(ISERROR($V2244),\"\",OFFSET('Smelter Look-up'!$H$4,$V2244-4,0))","v":""},{"$f":"IF(ISERROR($V2244),\"\",OFFSET('Smelter Look-up'!$I$4,$V2244-4,0))","v":""},{"$nulls":7},{"$f":"IF(ISERROR($V2244),\"\",OFFSET('Smelter Look-up'!$C$4,$V2244-4,0)&\"\")","v":""},"",{"$f":"IF(B2244=\"\",\"\",IF(ISERROR(MATCH($J2244,SorP!$B$1:$B$5661,0)),\"\",INDIRECT(\"'SorP'!$A$\"&MATCH($J2244,SorP!$B$1:$B$5661,0))))","v":""},null,{"$f":"IF(C2244=\"\",NA(),MATCH($B2244&$C2244,'Smelter Look-up'!$J:$J,0))","v":{"$error":"#N/A"}},null,0,null,null,null,""]
[null,{"$f":"IF(LEN(A2245)=0,\"\",INDEX('Smelter Look-up'!$A:$A,MATCH($A2245,'Smelter Look-up'!$E:$E,0)))","v":""},{"$f":"IF(LEN(A2245)=0,\"\",INDEX('Smelter Look-up'!$C:$C,MATCH($A2245,'Smelter Look-up'!$E:$E,0)))","v":""},null,{"$f":"IF(ISERROR($V2245),\"\",OFFSET('Smelter Look-up'!$D$4,$V2245-4,0)&\"\")","v":""},{"$f":"IF(ISERROR($V2245),\"\",OFFSET('Smelter Look-up'!$E$4,$V2245-4,0))","v":""},{"$f":"IF(C2245=$X$4,\"Enter smelter details\",IF(ISERROR($V2245),\"\",OFFSET('Smelter Look-up'!$F$4,$V2245-4,0)))","v":""},{"$f":"IF(ISERROR($V2245),\"\",OFFSET('Smelter Look-up'!$G$4,$V2245-4,0))","v":""},{"$f":"IF(ISERROR($V2245),\"\",OFFSET('Smelter Look-up'!$H$4,$V2245-4,0))","v":""},{"$f":"IF(ISERROR($V2245),\"\",OFFSET('Smelter Look-up'!$I$4,$V2245-4,0))","v":""},{"$nulls":7},{"$f":"IF(ISERROR($V2245),\"\",OFFSET('Smelter Look-up'!$C$4,$V2245-4,0)&\"\")","v":""},"",{"$f":"IF(B2245=\"\",\"\",IF(ISERROR(MATCH($J2245,SorP!$B$1:$B$5661,0)),\"\",INDIRECT(\"'SorP'!$A$\"&MATCH($J2245,SorP!$B$1:$B$5661,0))))","v":""},null,{"$f":"IF(C2245=\"\",NA(),MATCH($B2245&$C2245,'Smelter Look-up'!$J:$J,0))","v":{"$error":"#N/A"}},null,0,null,null,null,""]
[null,{"$f":"IF(LEN(A2246)=0,\"\",INDEX('Smelter Look-up'!$A:$A,MATCH($A2246,'Smelter Look-up'!$E:$E,0)))","v":""},{"$f":"IF(LEN(A2246)=0,\"\",INDEX('Smelter Look-up'!$C:$C,MATCH($A2246,'Smelter Look-up'!$E:$E,0)))","v":""},null,{"$f":"IF(ISERROR($V2246),\"\",OFFSET('Smelter Look-up'!$D$4,$V2246-4,0)&\"\")","v":""},{"$f":"IF(ISERROR($V2246),\"\",OFFSET('Smelter Look-up'!$E$4,$V2246-4,0))","v":""},{"$f":"IF(C2246=$X$4,\"Enter smelter details\",IF(ISERROR($V2246),\"\",OFFSET('Smelter Look-up'!$F$4,$V2246-4,0)))","v":""},{"$f":"IF(ISERROR($V2246),\"\",OFFSET('Smelter Look-up'!$G$4,$V2246-4,0))","v":""},{"$f":"IF(ISERROR($V2246),\"\",OFFSET('Smelter Look-up'!$H$4,$V2246-4,0))","v":""},{"$f":"IF(ISERROR($V2246),\"\",OFFSET('Smelter Look-up'!$I$4,$V2246-4,0))","v":""},{"$nulls":7},{"$f":"IF(ISERROR($V2246),\"\",OFFSET('Smelter Look-up'!$C$4,$V2246-4,0)&\"\")","v":""},"",{"$f":"IF(B2246=\"\",\"\",IF(ISERROR(MATCH($J2246,SorP!$B$1:$B$5661,0)),\"\",INDIRECT(\"'SorP'!$A$\"&MATCH($J2246,SorP!$B$1:$B$5661,0))))","v":""},null,{"$f":"IF(C2246=\"\",NA(),MATCH($B2246&$C2246,'Smelter Look-up'!$J:$J,0))","v":{"$error":"#N/A"}},null,0,null,null,null,""]
[null,{"$f":"IF(LEN(A2247)=0,\"\",INDEX('Smelter Look-up'!$A:$A,MATCH($A2247,'Smelter Look-up'!$E:$E,0)))","v":""},{"$f":"IF(LEN(A2247)=0,\"\",INDEX('Smelter Look-up'!$C:$C,MATCH($A2247,'Smelter Look-up'!$E:$E,0)))","v":""},null,{"$f":"IF(ISERROR($V2247),\"\",OFFSET('Smelter Look-up'!$D$4,$V2247-4,0)&\"\")","v":""},{"$f":"IF(ISERROR($V2247),\"\",OFFSET('Smelter Look-up'!$E$4,$V2247-4,0))","v":""},{"$f":"IF(C2247=$X$4,\"Enter smelter details\",IF(ISERROR($V2247),\"\",OFFSET('Smelter Look-up'!$F$4,$V2247-4,0)))","v":""},{"$f":"IF(ISERROR($V2247),\"\",OFFSET('Smelter Look-up'!$G$4,$V2247-4,0))","v":""},{"$f":"IF(ISERROR($V2247),\"\",OFFSET('Smelter Look-up'!$H$4,$V2247-4,0))","v":""},{"$f":"IF(ISERROR($V2247),\"\",OFFSET('Smelter Look-up'!$I$4,$V2247-4,0))","v":""},{"$nulls":7},{"$f":"IF(ISERROR($V2247),\"\",OFFSET('Smelter Look-up'!$C$4,$V2247-4,0)&\"\")","v":""},"",{"$f":"IF(B2247=\"\",\"\",IF(ISERROR(MATCH($J2247,SorP!$B$1:$B$5661,0)),\"\",INDIRECT(\"'SorP'!$A$\"&MATCH($J2247,SorP!$B$1:$B$5661,0))))","v":""},null,{"$f":"IF(C2247=\"\",NA(),MATCH($B2247&$C2247,'Smelter Look-up'!$J:$J,0))","v":{"$error":"#N/A"}},null,0,null,null,null,""]
[null,{"$f":"IF(LEN(A2248)=0,\"\",INDEX('Smelter Look-up'!$A:$A,MATCH($A2248,'Smelter Look-up'!$E:$E,0)))","v":""},{"$f":"IF(LEN(A2248)=0,\"\",INDEX('Smelter Look-up'!$C:$C,MATCH($A2248,'Smelter Look-up'!$E:$E,0)))","v":""},null,{"$f":"IF(ISERROR($V2248),\"\",OFFSET('Smelter Look-up'!$D$4,$V2248-4,0)&\"\")","v":""},{"$f":"IF(ISERROR($V2248),\"\",OFFSET('Smelter Look-up'!$E$4,$V2248-4,0))","v":""},{"$f":"IF(C2248=$X$4,\"Enter smelter details\",IF(ISERROR($V2248),\"\",OFFSET('Smelter Look-up'!$F$4,$V2248-4,0)))","v":""},{"$f":"IF(ISERROR($V2248),\"\",OFFSET('Smelter Look-up'!$G$4,$V2248-4,0))","v":""},{"$f":"IF(ISERROR($V2248),\"\",OFFSET('Smelter Look-up'!$H$4,$V2248-4,0))","v":""},{"$f":"IF(ISERROR($V2248),\"\",OFFSET('Smelter Look-up'!$I$4,$V2248-4,0))","v":""},{"$nulls":7},{"$f":"IF(ISERROR($V2248),\"\",OFFSET('Smelter Look-up'!$C$4,$V2248-4,0)&\"\")","v":""},"",{"$f":"IF(B2248=\"\",\"\",IF(ISERROR(MATCH($J2248,SorP!$B$1:$B$5661,0)),\"\",INDIRECT(\"'SorP'!$A$\"&MATCH($J2248,SorP!$B$1:$B$5661,0))))","v":""},null,{"$f":"IF(C2248=\"\",NA(),MATCH($B2248&$C2248,'Smelter Look-up'!$J:$J,0))","v":{"$error":"#N/A"}},null,0,null,null,null,""]
[null,{"$f":"IF(LEN(A2249)=0,\"\",INDEX('Smelter Look-up'!$A:$A,MATCH($A2249,'Smelter Look-up'!$E:$E,0)))","v":""},{"$f":"IF(LEN(A2249)=0,\"\",INDEX('Smelter Look-up'!$C:$C,MATCH($A2249,'Smelter Look-up'!$E:$E,0)))","v":""},null,{"$f":"IF(ISERROR($V2249),\"\",OFFSET('Smelter Look-up'!$D$4,$V2249-4,0)&\"\")","v":""},{"$f":"IF(ISERROR($V2249),\"\",OFFSET('Smelter Look-up'!$E$4,$V2249-4,0))","v":""},{"$f":"IF(C2249=$X$4,\"Enter smelter details\",IF(ISERROR($V2249),\"\",OFFSET('Smelter Look-up'!$F$4,$V2249-4,0)))","v":""},{"$f":"IF(ISERROR($V2249),\"\",OFFSET('Smelter Look-up'!$G$4,$V2249-4,0))","v":""},{"$f":"IF(ISERROR($V2249),\"\",OFFSET('Smelter Look-up'!$H$4,$V2249-4,0))","v":""},{"$f":"IF(ISERROR($V2249),\"\",OFFSET('Smelter Look-up'!$I$4,$V2249-4,0))","v":""},{"$nulls":7},{"$f":"IF(ISERROR($V2249),\"\",OFFSET('Smelter Look-up'!$C$4,$V2249-4,0)&\"\")","v":""},"",{"$f":"IF(B2249=\"\",\"\",IF(ISERROR(MATCH($J2249,SorP!$B$1:$B$5661,0)),\"\",INDIRECT(\"'SorP'!$A$\"&MATCH($J2249,SorP!$B$1:$B$5661,0))))","v":""},null,{"$f":"IF(C2249=\"\",NA(),MATCH($B2249&$C2249,'Smelter Look-up'!$J:$J,0))","v":{"$error":"#N/A"}},null,0,null,null,null,""]
[null,{"$f":"IF(LEN(A2250)=0,\"\",INDEX('Smelter Look-up'!$A:$A,MATCH($A2250,'Smelter Look-up'!$E:$E,0)))","v":""},{"$f":"IF(LEN(A2250)=0,\"\",INDEX('Smelter Look-up'!$C:$C,MATCH($A2250,'Smelter Look-up'!$E:$E,0)))","v":""},null,{"$f":"IF(ISERROR($V2250),\"\",OFFSET('Smelter Look-up'!$D$4,$V2250-4,0)&\"\")","v":""},{"$f":"IF(ISERROR($V2250),\"\",OFFSET('Smelter Look-up'!$E$4,$V2250-4,0))","v":""},{"$f":"IF(C2250=$X$4,\"Enter smelter details\",IF(ISERROR($V2250),\"\",OFFSET('Smelter Look-up'!$F$4,$V2250-4,0)))","v":""},{"$f":"IF(ISERROR($V2250),\"\",OFFSET('Smelter Look-up'!$G$4,$V2250-4,0))","v":""},{"$f":"IF(ISERROR($V2250),\"\",OFFSET('Smelter Look-up'!$H$4,$V2250-4,0))","v":""},{"$f":"IF(ISERROR($V2250),\"\",OFFSET('Smelter Look-up'!$I$4,$V2250-4,0))","v":""},{"$nulls":7},{"$f":"IF(ISERROR($V2250),\"\",OFFSET('Smelter Look-up'!$C$4,$V2250-4,0)&\"\")","v":""},"",{"$f":"IF(B2250=\"\",\"\",IF(ISERROR(MATCH($J2250,SorP!$B$1:$B$5661,0)),\"\",INDIRECT(\"'SorP'!$A$\"&MATCH($J2250,SorP!$B$1:$B$5661,0))))","v":""},null,{"$f":"IF(C2250=\"\",NA(),MATCH($B2250&$C2250,'Smelter Look-up'!$J:$J,0))","v":{"$error":"#N/A"}},null,0,null,null,null,""]
[null,{"$f":"IF(LEN(A2251)=0,\"\",INDEX('Smelter Look-up'!$A:$A,MATCH($A2251,'Smelter Look-up'!$E:$E,0)))","v":""},{"$f":"IF(LEN(A2251)=0,\"\",INDEX('Smelter Look-up'!$C:$C,MATCH($A2251,'Smelter Look-up'!$E:$E,0)))","v":""},null,{"$f":"IF(ISERROR($V2251),\"\",OFFSET('Smelter Look-up'!$D$4,$V2251-4,0)&\"\")","v":""},{"$f":"IF(ISERROR($V2251),\"\",OFFSET('Smelter Look-up'!$E$4,$V2251-4,0))","v":""},{"$f":"IF(C2251=$X$4,\"Enter smelter details\",IF(ISERROR($V2251),\"\",OFFSET('Smelter Look-up'!$F$4,$V2251-4,0)))","v":""},{"$f":"IF(ISERROR($V2251),\"\",OFFSET('Smelter Look-up'!$G$4,$V2251-4,0))","v":""},{"$f":"IF(ISERROR($V2251),\"\",OFFSET('Smelter Look-up'!$H$4,$V2251-4,0))","v":""},{"$f":"IF(ISERROR($V2251),\"\",OFFSET('Smelter Look-up'!$I$4,$V2251-4,0))","v":""},{"$nulls":7},{"$f":"IF(ISERROR($V2251),\"\",OFFSET('Smelter Look-up'!$C$4,$V2251-4,0)&\"\")","v":""},"",{"$f":"IF(B2251=\"\",\"\",IF(ISERROR(MATCH($J2251,SorP!$B$1:$B$5661,0)),\"\",INDIRECT(\"'SorP'!$A$\"&MATCH($J2251,SorP!$B$1:$B$5661,0))))","v":""},null,{"$f":"IF(C2251=\"\",NA(),MATCH($B2251&$C2251,'Smelter Look-up'!$J:$J,0))","v":{"$error":"#N/A"}},null,0,null,null,null,""]
[null,{"$f":"IF(LEN(A2252)=0,\"\",INDEX('Smelter Look-up'!$A:$A,MATCH($A2252,'Smelter Look-up'!$E:$E,0)))","v":""},{"$f":"IF(LEN(A2252)=0,\"\",INDEX('Smelter Look-up'!$C:$C,MATCH($A2252,'Smelter Look-up'!$E:$E,0)))","v":""},null,{"$f":"IF(ISERROR($V2252),\"\",OFFSET('Smelter Look-up'!$D$4,$V2252-4,0)&\"\")","v":""},{"$f":"IF(ISERROR($V2252),\"\",OFFSET('Smelter Look-up'!$E$4,$V2252-4,0))","v":""},{"$f":"IF(C2252=$X$4,\"Enter smelter details\",IF(ISERROR($V2252),\"\",OFFSET('Smelter Look-up'!$F$4,$V2252-4,0)))","v":""},{"$f":"IF(ISERROR($V2252),\"\",OFFSET('Smelter Look-up'!$G$4,$V2252-4,0))","v":""},{"$f":"IF(ISERROR($V2252),\"\",OFFSET('Smelter Look-up'!$H$4,$V2252-4,0))","v":""},{"$f":"IF(ISERROR($V2252),\"\",OFFSET('Smelter Look-up'!$I$4,$V2252-4,0))","v":""},{"$nulls":7},{"$f":"IF(ISERROR($V2252),\"\",OFFSET('Smelter Look-up'!$C$4,$V2252-4,0)&\"\")","v":""},"",{"$f":"IF(B2252=\"\",\"\",IF(ISERROR(MATCH($J2252,SorP!$B$1:$B$5661,0)),\"\",INDIRECT(\"'SorP'!$A$\"&MATCH($J2252,SorP!$B$1:$B$5661,0))))","v":""},null,{"$f":"IF(C2252=\"\",NA(),MATCH($B2252&$C2252,'Smelter Look-up'!$J:$J,0))","v":{"$error":"#N/A"}},null,0,null,null,null,""]
[null,{"$f":"IF(LEN(A2253)=0,\"\",INDEX('Smelter Look-up'!$A:$A,MATCH($A2253,'Smelter Look-up'!$E:$E,0)))","v":""},{"$f":"IF(LEN(A2253)=0,\"\",INDEX('Smelter Look-up'!$C:$C,MATCH($A2253,'Smelter Look-up'!$E:$E,0)))","v":""},null,{"$f":"IF(ISERROR($V2253),\"\",OFFSET('Smelter Look-up'!$D$4,$V2253-4,0)&\"\")","v":""},{"$f":"IF(ISERROR($V2253),\"\",OFFSET('Smelter Look-up'!$E$4,$V2253-4,0))","v":""},{"$f":"IF(C2253=$X$4,\"Enter smelter details\",IF(ISERROR($V2253),\"\",OFFSET('Smelter Look-up'!$F$4,$V2253-4,0)))","v":""},{"$f":"IF(ISERROR($V2253),\"\",OFFSET('Smelter Look-up'!$G$4,$V2253-4,0))","v":""},{"$f":"IF(ISERROR($V2253),\"\",OFFSET('Smelter Look-up'!$H$4,$V2253-4,0))","v":""},{"$f":"IF(ISERROR($V2253),\"\",OFFSET('Smelter Look-up'!$I$4,$V2253-4,0))","v":""},{"$nulls":7},{"$f":"IF(ISERROR($V2253),\"\",OFFSET('Smelter Look-up'!$C$4,$V2253-4,0)&\"\")","v":""},"",{"$f":"IF(B2253=\"\",\"\",IF(ISERROR(MATCH($J2253,SorP!$B$1:$B$5661,0)),\"\",INDIRECT(\"'SorP'!$A$\"&MATCH($J2253,SorP!$B$1:$B$5661,0))))","v":""},null,{"$f":"IF(C2253=\"\",NA(),MATCH($B2253&$C2253,'Smelter Look-up'!$J:$J,0))","v":{"$error":"#N/A"}},null,0,null,null,null,""]
[null,{"$f":"IF(LEN(A2254)=0,\"\",INDEX('Smelter Look-up'!$A:$A,MATCH($A2254,'Smelter Look-up'!$E:$E,0)))","v":""},{"$f":"IF(LEN(A2254)=0,\"\",INDEX('Smelter Look-up'!$C:$C,MATCH($A2254,'Smelter Look-up'!$E:$E,0)))","v":""},null,{"$f":"IF(ISERROR($V2254),\"\",OFFSET('Smelter Look-up'!$D$4,$V2254-4,0)&\"\")","v":""},{"$f":"IF(ISERROR($V2254),\"\",OFFSET('Smelter Look-up'!$E$4,$V2254-4,0))","v":""},{"$f":"IF(C2254=$X$4,\"Enter smelter details\",IF(ISERROR($V2254),\"\",OFFSET('Smelter Look-up'!$F$4,$V2254-4,0)))","v":""},{"$f":"IF(ISERROR($V2254),\"\",OFFSET('Smelter Look-up'!$G$4,$V2254-4,0))","v":""},{"$f":"IF(ISERROR($V2254),\"\",OFFSET('Smelter Look-up'!$H$4,$V2254-4,0))","v":""},{"$f":"IF(ISERROR($V2254),\"\",OFFSET('Smelter Look-up'!$I$4,$V2254-4,0))","v":""},{"$nulls":7},{"$f":"IF(ISERROR($V2254),\"\",OFFSET('Smelter Look-up'!$C$4,$V2254-4,0)&\"\")","v":""},"",{"$f":"IF(B2254=\"\",\"\",IF(ISERROR(MATCH($J2254,SorP!$B$1:$B$5661,0)),\"\",INDIRECT(\"'SorP'!$A$\"&MATCH($J2254,SorP!$B$1:$B$5661,0))))","v":""},null,{"$f":"IF(C2254=\"\",NA(),MATCH($B2254&$C2254,'Smelter Look-up'!$J:$J,0))","v":{"$error":"#N/A"}},null,0,null,null,null,""]
[null,{"$f":"IF(LEN(A2255)=0,\"\",INDEX('Smelter Look-up'!$A:$A,MATCH($A2255,'Smelter Look-up'!$E:$E,0)))","v":""},{"$f":"IF(LEN(A2255)=0,\"\",INDEX('Smelter Look-up'!$C:$C,MATCH($A2255,'Smelter Look-up'!$E:$E,0)))","v":""},null,{"$f":"IF(ISERROR($V2255),\"\",OFFSET('Smelter Look-up'!$D$4,$V2255-4,0)&\"\")","v":""},{"$f":"IF(ISERROR($V2255),\"\",OFFSET('Smelter Look-up'!$E$4,$V2255-4,0))","v":""},{"$f":"IF(C2255=$X$4,\"Enter smelter details\",IF(ISERROR($V2255),\"\",OFFSET('Smelter Look-up'!$F$4,$V2255-4,0)))","v":""},{"$f":"IF(ISERROR($V2255),\"\",OFFSET('Smelter Look-up'!$G$4,$V2255-4,0))","v":""},{"$f":"IF(ISERROR($V2255),\"\",OFFSET('Smelter Look-up'!$H$4,$V2255-4,0))","v":""},{"$f":"IF(ISERROR($V2255),\"\",OFFSET('Smelter Look-up'!$I$4,$V2255-4,0))","v":""},{"$nulls":7},{"$f":"IF(ISERROR($V2255),\"\",OFFSET('Smelter Look-up'!$C$4,$V2255-4,0)&\"\")","v":""},"",{"$f":"IF(B2255=\"\",\"\",IF(ISERROR(MATCH($J2255,SorP!$B$1:$B$5661,0)),\"\",INDIRECT(\"'SorP'!$A$\"&MATCH($J2255,SorP!$B$1:$B$5661,0))))","v":""},null,{"$f":"IF(C2255=\"\",NA(),MATCH($B2255&$C2255,'Smelter Look-up'!$J:$J,0))","v":{"$error":"#N/A"}},null,0,null,null,null,""]
[null,{"$f":"IF(LEN(A2256)=0,\"\",INDEX('Smelter Look-up'!$A:$A,MATCH($A2256,'Smelter Look-up'!$E:$E,0)))","v":""},{"$f":"IF(LEN(A2256)=0,\"\",INDEX('Smelter Look-up'!$C:$C,MATCH($A2256,'Smelter Look-up'!$E:$E,0)))","v":""},null,{"$f":"IF(ISERROR($V2256),\"\",OFFSET('Smelter Look-up'!$D$4,$V2256-4,0)&\"\")","v":""},{"$f":"IF(ISERROR($V2256),\"\",OFFSET('Smelter Look-up'!$E$4,$V2256-4,0))","v":""},{"$f":"IF(C2256=$X$4,\"Enter smelter details\",IF(ISERROR($V2256),\"\",OFFSET('Smelter Look-up'!$F$4,$V2256-4,0)))","v":""},{"$f":"IF(ISERROR($V2256),\"\",OFFSET('Smelter Look-up'!$G$4,$V2256-4,0))","v":""},{"$f":"IF(ISERROR($V2256),\"\",OFFSET('Smelter Look-up'!$H$4,$V2256-4,0))","v":""},{"$f":"IF(ISERROR($V2256),\"\",OFFSET('Smelter Look-up'!$I$4,$V2256-4,0))","v":""},{"$nulls":7},{"$f":"IF(ISERROR($V2256),\"\",OFFSET('Smelter Look-up'!$C$4,$V2256-4,0)&\"\")","v":""},"",{"$f":"IF(B2256=\"\",\"\",IF(ISERROR(MATCH($J2256,SorP!$B$1:$B$5661,0)),\"\",INDIRECT(\"'SorP'!$A$\"&MATCH($J2256,SorP!$B$1:$B$5661,0))))","v":""},null,{"$f":"IF(C2256=\"\",NA(),MATCH($B2256&$C2256,'Smelter Look-up'!$J:$J,0))","v":{"$error":"#N/A"}},null,0,null,null,null,""]
[null,{"$f":"IF(LEN(A2257)=0,\"\",INDEX('Smelter Look-up'!$A:$A,MATCH($A2257,'Smelter Look-up'!$E:$E,0)))","v":""},{"$f":"IF(LEN(A2257)=0,\"\",INDEX('Smelter Look-up'!$C:$C,MATCH($A2257,'Smelter Look-up'!$E:$E,0)))","v":""},null,{"$f":"IF(ISERROR($V2257),\"\",OFFSET('Smelter Look-up'!$D$4,$V2257-4,0)&\"\")","v":""},{"$f":"IF(ISERROR($V2257),\"\",OFFSET('Smelter Look-up'!$E$4,$V2257-4,0))","v":""},{"$f":"IF(C2257=$X$4,\"Enter smelter details\",IF(ISERROR($V2257),\"\",OFFSET('Smelter Look-up'!$F$4,$V2257-4,0)))","v":""},{"$f":"IF(ISERROR($V2257),\"\",OFFSET('Smelter Look-up'!$G$4,$V2257-4,0))","v":""},{"$f":"IF(ISERROR($V2257),\"\",OFFSET('Smelter Look-up'!$H$4,$V2257-4,0))","v":""},{"$f":"IF(ISERROR($V2257),\"\",OFFSET('Smelter Look-up'!$I$4,$V2257-4,0))","v":""},{"$nulls":7},{"$f":"IF(ISERROR($V2257),\"\",OFFSET('Smelter Look-up'!$C$4,$V2257-4,0)&\"\")","v":""},"",{"$f":"IF(B2257=\"\",\"\",IF(ISERROR(MATCH($J2257,SorP!$B$1:$B$5661,0)),\"\",INDIRECT(\"'SorP'!$A$\"&MATCH($J2257,SorP!$B$1:$B$5661,0))))","v":""},null,{"$f":"IF(C2257=\"\",NA(),MATCH($B2257&$C2257,'Smelter Look-up'!$J:$J,0))","v":{"$error":"#N/A"}},null,0,null,null,null,""]
[null,{"$f":"IF(LEN(A2258)=0,\"\",INDEX('Smelter Look-up'!$A:$A,MATCH($A2258,'Smelter Look-up'!$E:$E,0)))","v":""},{"$f":"IF(LEN(A2258)=0,\"\",INDEX('Smelter Look-up'!$C:$C,MATCH($A2258,'Smelter Look-up'!$E:$E,0)))","v":""},null,{"$f":"IF(ISERROR($V2258),\"\",OFFSET('Smelter Look-up'!$D$4,$V2258-4,0)&\"\")","v":""},{"$f":"IF(ISERROR($V2258),\"\",OFFSET('Smelter Look-up'!$E$4,$V2258-4,0))","v":""},{"$f":"IF(C2258=$X$4,\"Enter smelter details\",IF(ISERROR($V2258),\"\",OFFSET('Smelter Look-up'!$F$4,$V2258-4,0)))","v":""},{"$f":"IF(ISERROR($V2258),\"\",OFFSET('Smelter Look-up'!$G$4,$V2258-4,0))","v":""},{"$f":"IF(ISERROR($V2258),\"\",OFFSET('Smelter Look-up'!$H$4,$V2258-4,0))","v":""},{"$f":"IF(ISERROR($V2258),\"\",OFFSET('Smelter Look-up'!$I$4,$V2258-4,0))","v":""},{"$nulls":7},{"$f":"IF(ISERROR($V2258),\"\",OFFSET('Smelter Look-up'!$C$4,$V2258-4,0)&\"\")","v":""},"",{"$f":"IF(B2258=\"\",\"\",IF(ISERROR(MATCH($J2258,SorP!$B$1:$B$5661,0)),\"\",INDIRECT(\"'SorP'!$A$\"&MATCH($J2258,SorP!$B$1:$B$5661,0))))","v":""},null,{"$f":"IF(C2258=\"\",NA(),MATCH($B2258&$C2258,'Smelter Look-up'!$J:$J,0))","v":{"$error":"#N/A"}},null,0,null,null,null,""]
[null,{"$f":"IF(LEN(A2259)=0,\"\",INDEX('Smelter Look-up'!$A:$A,MATCH($A2259,'Smelter Look-up'!$E:$E,0)))","v":""},{"$f":"IF(LEN(A2259)=0,\"\",INDEX('Smelter Look-up'!$C:$C,MATCH($A2259,'Smelter Look-up'!$E:$E,0)))","v":""},null,{"$f":"IF(ISERROR($V2259),\"\",OFFSET('Smelter Look-up'!$D$4,$V2259-4,0)&\"\")","v":""},{"$f":"IF(ISERROR($V2259),\"\",OFFSET('Smelter Look-up'!$E$4,$V2259-4,0))","v":""},{"$f":"IF(C2259=$X$4,\"Enter smelter details\",IF(ISERROR($V2259),\"\",OFFSET('Smelter Look-up'!$F$4,$V2259-4,0)))","v":""},{"$f":"IF(ISERROR($V2259),\"\",OFFSET('Smelter Look-up'!$G$4,$V2259-4,0))","v":""},{"$f":"IF(ISERROR($V2259),\"\",OFFSET('Smelter Look-up'!$H$4,$V2259-4,0))","v":""},{"$f":"IF(ISERROR($V2259),\"\",OFFSET('Smelter Look-up'!$I$4,$V2259-4,0))","v":""},{"$nulls":7},{"$f":"IF(ISERROR($V2259),\"\",OFFSET('Smelter Look-up'!$C$4,$V2259-4,0)&\"\")","v":""},"",{"$f":"IF(B2259=\"\",\"\",IF(ISERROR(MATCH($J2259,SorP!$B$1:$B$5661,0)),\"\",INDIRECT(\"'SorP'!$A$\"&MATCH($J2259,SorP!$B$1:$B$5661,0))))","v":""},null,{"$f":"IF(C2259=\"\",NA(),MATCH($B2259&$C2259,'Smelter Look-up'!$J:$J,0))","v":{"$error":"#N/A"}},null,0,null,null,null,""]
[null,{"$f":"IF(LEN(A2260)=0,\"\",INDEX('Smelter Look-up'!$A:$A,MATCH($A2260,'Smelter Look-up'!$E:$E,0)))","v":""},{"$f":"IF(LEN(A2260)=0,\"\",INDEX('Smelter Look-up'!$C:$C,MATCH($A2260,'Smelter Look-up'!$E:$E,0)))","v":""},null,{"$f":"IF(ISERROR($V2260),\"\",OFFSET('Smelter Look-up'!$D$4,$V2260-4,0)&\"\")","v":""},{"$f":"IF(ISERROR($V2260),\"\",OFFSET('Smelter Look-up'!$E$4,$V2260-4,0))","v":""},{"$f":"IF(C2260=$X$4,\"Enter smelter details\",IF(ISERROR($V2260),\"\",OFFSET('Smelter Look-up'!$F$4,$V2260-4,0)))","v":""},{"$f":"IF(ISERROR($V2260),\"\",OFFSET('Smelter Look-up'!$G$4,$V2260-4,0))","v":""},{"$f":"IF(ISERROR($V2260),\"\",OFFSET('Smelter Look-up'!$H$4,$V2260-4,0))","v":""},{"$f":"IF(ISERROR($V2260),\"\",OFFSET('Smelter Look-up'!$I$4,$V2260-4,0))","v":""},{"$nulls":7},{"$f":"IF(ISERROR($V2260),\"\",OFFSET('Smelter Look-up'!$C$4,$V2260-4,0)&\"\")","v":""},"",{"$f":"IF(B2260=\"\",\"\",IF(ISERROR(MATCH($J2260,SorP!$B$1:$B$5661,0)),\"\",INDIRECT(\"'SorP'!$A$\"&MATCH($J2260,SorP!$B$1:$B$5661,0))))","v":""},null,{"$f":"IF(C2260=\"\",NA(),MATCH($B2260&$C2260,'Smelter Look-up'!$J:$J,0))","v":{"$error":"#N/A"}},null,0,null,null,null,""]
[null,{"$f":"IF(LEN(A2261)=0,\"\",INDEX('Smelter Look-up'!$A:$A,MATCH($A2261,'Smelter Look-up'!$E:$E,0)))","v":""},{"$f":"IF(LEN(A2261)=0,\"\",INDEX('Smelter Look-up'!$C:$C,MATCH($A2261,'Smelter Look-up'!$E:$E,0)))","v":""},null,{"$f":"IF(ISERROR($V2261),\"\",OFFSET('Smelter Look-up'!$D$4,$V2261-4,0)&\"\")","v":""},{"$f":"IF(ISERROR($V2261),\"\",OFFSET('Smelter Look-up'!$E$4,$V2261-4,0))","v":""},{"$f":"IF(C2261=$X$4,\"Enter smelter details\",IF(ISERROR($V2261),\"\",OFFSET('Smelter Look-up'!$F$4,$V2261-4,0)))","v":""},{"$f":"IF(ISERROR($V2261),\"\",OFFSET('Smelter Look-up'!$G$4,$V2261-4,0))","v":""},{"$f":"IF(ISERROR($V2261),\"\",OFFSET('Smelter Look-up'!$H$4,$V2261-4,0))","v":""},{"$f":"IF(ISERROR($V2261),\"\",OFFSET('Smelter Look-up'!$I$4,$V2261-4,0))","v":""},{"$nulls":7},{"$f":"IF(ISERROR($V2261),\"\",OFFSET('Smelter Look-up'!$C$4,$V2261-4,0)&\"\")","v":""},"",{"$f":"IF(B2261=\"\",\"\",IF(ISERROR(MATCH($J2261,SorP!$B$1:$B$5661,0)),\"\",INDIRECT(\"'SorP'!$A$\"&MATCH($J2261,SorP!$B$1:$B$5661,0))))","v":""},null,{"$f":"IF(C2261=\"\",NA(),MATCH($B2261&$C2261,'Smelter Look-up'!$J:$J,0))","v":{"$error":"#N/A"}},null,0,null,null,null,""]
[null,{"$f":"IF(LEN(A2262)=0,\"\",INDEX('Smelter Look-up'!$A:$A,MATCH($A2262,'Smelter Look-up'!$E:$E,0)))","v":""},{"$f":"IF(LEN(A2262)=0,\"\",INDEX('Smelter Look-up'!$C:$C,MATCH($A2262,'Smelter Look-up'!$E:$E,0)))","v":""},null,{"$f":"IF(ISERROR($V2262),\"\",OFFSET('Smelter Look-up'!$D$4,$V2262-4,0)&\"\")","v":""},{"$f":"IF(ISERROR($V2262),\"\",OFFSET('Smelter Look-up'!$E$4,$V2262-4,0))","v":""},{"$f":"IF(C2262=$X$4,\"Enter smelter details\",IF(ISERROR($V2262),\"\",OFFSET('Smelter Look-up'!$F$4,$V2262-4,0)))","v":""},{"$f":"IF(ISERROR($V2262),\"\",OFFSET('Smelter Look-up'!$G$4,$V2262-4,0))","v":""},{"$f":"IF(ISERROR($V2262),\"\",OFFSET('Smelter Look-up'!$H$4,$V2262-4,0))","v":""},{"$f":"IF(ISERROR($V2262),\"\",OFFSET('Smelter Look-up'!$I$4,$V2262-4,0))","v":""},{"$nulls":7},{"$f":"IF(ISERROR($V2262),\"\",OFFSET('Smelter Look-up'!$C$4,$V2262-4,0)&\"\")","v":""},"",{"$f":"IF(B2262=\"\",\"\",IF(ISERROR(MATCH($J2262,SorP!$B$1:$B$5661,0)),\"\",INDIRECT(\"'SorP'!$A$\"&MATCH($J2262,SorP!$B$1:$B$5661,0))))","v":""},null,{"$f":"IF(C2262=\"\",NA(),MATCH($B2262&$C2262,'Smelter Look-up'!$J:$J,0))","v":{"$error":"#N/A"}},null,0,null,null,null,""]
[null,{"$f":"IF(LEN(A2263)=0,\"\",INDEX('Smelter Look-up'!$A:$A,MATCH($A2263,'Smelter Look-up'!$E:$E,0)))","v":""},{"$f":"IF(LEN(A2263)=0,\"\",INDEX('Smelter Look-up'!$C:$C,MATCH($A2263,'Smelter Look-up'!$E:$E,0)))","v":""},null,{"$f":"IF(ISERROR($V2263),\"\",OFFSET('Smelter Look-up'!$D$4,$V2263-4,0)&\"\")","v":""},{"$f":"IF(ISERROR($V2263),\"\",OFFSET('Smelter Look-up'!$E$4,$V2263-4,0))","v":""},{"$f":"IF(C2263=$X$4,\"Enter smelter details\",IF(ISERROR($V2263),\"\",OFFSET('Smelter Look-up'!$F$4,$V2263-4,0)))","v":""},{"$f":"IF(ISERROR($V2263),\"\",OFFSET('Smelter Look-up'!$G$4,$V2263-4,0))","v":""},{"$f":"IF(ISERROR($V2263),\"\",OFFSET('Smelter Look-up'!$H$4,$V2263-4,0))","v":""},{"$f":"IF(ISERROR($V2263),\"\",OFFSET('Smelter Look-up'!$I$4,$V2263-4,0))","v":""},{"$nulls":7},{"$f":"IF(ISERROR($V2263),\"\",OFFSET('Smelter Look-up'!$C$4,$V2263-4,0)&\"\")","v":""},"",{"$f":"IF(B2263=\"\",\"\",IF(ISERROR(MATCH($J2263,SorP!$B$1:$B$5661,0)),\"\",INDIRECT(\"'SorP'!$A$\"&MATCH($J2263,SorP!$B$1:$B$5661,0))))","v":""},null,{"$f":"IF(C2263=\"\",NA(),MATCH($B2263&$C2263,'Smelter Look-up'!$J:$J,0))","v":{"$error":"#N/A"}},null,0,null,null,null,""]
[null,{"$f":"IF(LEN(A2264)=0,\"\",INDEX('Smelter Look-up'!$A:$A,MATCH($A2264,'Smelter Look-up'!$E:$E,0)))","v":""},{"$f":"IF(LEN(A2264)=0,\"\",INDEX('Smelter Look-up'!$C:$C,MATCH($A2264,'Smelter Look-up'!$E:$E,0)))","v":""},null,{"$f":"IF(ISERROR($V2264),\"\",OFFSET('Smelter Look-up'!$D$4,$V2264-4,0)&\"\")","v":""},{"$f":"IF(ISERROR($V2264),\"\",OFFSET('Smelter Look-up'!$E$4,$V2264-4,0))","v":""},{"$f":"IF(C2264=$X$4,\"Enter smelter details\",IF(ISERROR($V2264),\"\",OFFSET('Smelter Look-up'!$F$4,$V2264-4,0)))","v":""},{"$f":"IF(ISERROR($V2264),\"\",OFFSET('Smelter Look-up'!$G$4,$V2264-4,0))","v":""},{"$f":"IF(ISERROR($V2264),\"\",OFFSET('Smelter Look-up'!$H$4,$V2264-4,0))","v":""},{"$f":"IF(ISERROR($V2264),\"\",OFFSET('Smelter Look-up'!$I$4,$V2264-4,0))","v":""},{"$nulls":7},{"$f":"IF(ISERROR($V2264),\"\",OFFSET('Smelter Look-up'!$C$4,$V2264-4,0)&\"\")","v":""},"",{"$f":"IF(B2264=\"\",\"\",IF(ISERROR(MATCH($J2264,SorP!$B$1:$B$5661,0)),\"\",INDIRECT(\"'SorP'!$A$\"&MATCH($J2264,SorP!$B$1:$B$5661,0))))","v":""},null,{"$f":"IF(C2264=\"\",NA(),MATCH($B2264&$C2264,'Smelter Look-up'!$J:$J,0))","v":{"$error":"#N/A"}},null,0,null,null,null,""]
[null,{"$f":"IF(LEN(A2265)=0,\"\",INDEX('Smelter Look-up'!$A:$A,MATCH($A2265,'Smelter Look-up'!$E:$E,0)))","v":""},{"$f":"IF(LEN(A2265)=0,\"\",INDEX('Smelter Look-up'!$C:$C,MATCH($A2265,'Smelter Look-up'!$E:$E,0)))","v":""},null,{"$f":"IF(ISERROR($V2265),\"\",OFFSET('Smelter Look-up'!$D$4,$V2265-4,0)&\"\")","v":""},{"$f":"IF(ISERROR($V2265),\"\",OFFSET('Smelter Look-up'!$E$4,$V2265-4,0))","v":""},{"$f":"IF(C2265=$X$4,\"Enter smelter details\",IF(ISERROR($V2265),\"\",OFFSET('Smelter Look-up'!$F$4,$V2265-4,0)))","v":""},{"$f":"IF(ISERROR($V2265),\"\",OFFSET('Smelter Look-up'!$G$4,$V2265-4,0))","v":""},{"$f":"IF(ISERROR($V2265),\"\",OFFSET('Smelter Look-up'!$H$4,$V2265-4,0))","v":""},{"$f":"IF(ISERROR($V2265),\"\",OFFSET('Smelter Look-up'!$I$4,$V2265-4,0))","v":""},{"$nulls":7},{"$f":"IF(ISERROR($V2265),\"\",OFFSET('Smelter Look-up'!$C$4,$V2265-4,0)&\"\")","v":""},"",{"$f":"IF(B2265=\"\",\"\",IF(ISERROR(MATCH($J2265,SorP!$B$1:$B$5661,0)),\"\",INDIRECT(\"'SorP'!$A$\"&MATCH($J2265,SorP!$B$1:$B$5661,0))))","v":""},null,{"$f":"IF(C2265=\"\",NA(),MATCH($B2265&$C2265,'Smelter Look-up'!$J:$J,0))","v":{"$error":"#N/A"}},null,0,null,null,null,""]
[null,{"$f":"IF(LEN(A2266)=0,\"\",INDEX('Smelter Look-up'!$A:$A,MATCH($A2266,'Smelter Look-up'!$E:$E,0)))","v":""},{"$f":"IF(LEN(A2266)=0,\"\",INDEX('Smelter Look-up'!$C:$C,MATCH($A2266,'Smelter Look-up'!$E:$E,0)))","v":""},null,{"$f":"IF(ISERROR($V2266),\"\",OFFSET('Smelter Look-up'!$D$4,$V2266-4,0)&\"\")","v":""},{"$f":"IF(ISERROR($V2266),\"\",OFFSET('Smelter Look-up'!$E$4,$V2266-4,0))","v":""},{"$f":"IF(C2266=$X$4,\"Enter smelter details\",IF(ISERROR($V2266),\"\",OFFSET('Smelter Look-up'!$F$4,$V2266-4,0)))","v":""},{"$f":"IF(ISERROR($V2266),\"\",OFFSET('Smelter Look-up'!$G$4,$V2266-4,0))","v":""},{"$f":"IF(ISERROR($V2266),\"\",OFFSET('Smelter Look-up'!$H$4,$V2266-4,0))","v":""},{"$f":"IF(ISERROR($V2266),\"\",OFFSET('Smelter Look-up'!$I$4,$V2266-4,0))","v":""},{"$nulls":7},{"$f":"IF(ISERROR($V2266),\"\",OFFSET('Smelter Look-up'!$C$4,$V2266-4,0)&\"\")","v":""},"",{"$f":"IF(B2266=\"\",\"\",IF(ISERROR(MATCH($J2266,SorP!$B$1:$B$5661,0)),\"\",INDIRECT(\"'SorP'!$A$\"&MATCH($J2266,SorP!$B$1:$B$5661,0))))","v":""},null,{"$f":"IF(C2266=\"\",NA(),MATCH($B2266&$C2266,'Smelter Look-up'!$J:$J,0))","v":{"$error":"#N/A"}},null,0,null,null,null,""]
[null,{"$f":"IF(LEN(A2267)=0,\"\",INDEX('Smelter Look-up'!$A:$A,MATCH($A2267,'Smelter Look-up'!$E:$E,0)))","v":""},{"$f":"IF(LEN(A2267)=0,\"\",INDEX('Smelter Look-up'!$C:$C,MATCH($A2267,'Smelter Look-up'!$E:$E,0)))","v":""},null,{"$f":"IF(ISERROR($V2267),\"\",OFFSET('Smelter Look-up'!$D$4,$V2267-4,0)&\"\")","v":""},{"$f":"IF(ISERROR($V2267),\"\",OFFSET('Smelter Look-up'!$E$4,$V2267-4,0))","v":""},{"$f":"IF(C2267=$X$4,\"Enter smelter details\",IF(ISERROR($V2267),\"\",OFFSET('Smelter Look-up'!$F$4,$V2267-4,0)))","v":""},{"$f":"IF(ISERROR($V2267),\"\",OFFSET('Smelter Look-up'!$G$4,$V2267-4,0))","v":""},{"$f":"IF(ISERROR($V2267),\"\",OFFSET('Smelter Look-up'!$H$4,$V2267-4,0))","v":""},{"$f":"IF(ISERROR($V2267),\"\",OFFSET('Smelter Look-up'!$I$4,$V2267-4,0))","v":""},{"$nulls":7},{"$f":"IF(ISERROR($V2267),\"\",OFFSET('Smelter Look-up'!$C$4,$V2267-4,0)&\"\")","v":""},"",{"$f":"IF(B2267=\"\",\"\",IF(ISERROR(MATCH($J2267,SorP!$B$1:$B$5661,0)),\"\",INDIRECT(\"'SorP'!$A$\"&MATCH($J2267,SorP!$B$1:$B$5661,0))))","v":""},null,{"$f":"IF(C2267=\"\",NA(),MATCH($B2267&$C2267,'Smelter Look-up'!$J:$J,0))","v":{"$error":"#N/A"}},null,0,null,null,null,""]
[null,{"$f":"IF(LEN(A2268)=0,\"\",INDEX('Smelter Look-up'!$A:$A,MATCH($A2268,'Smelter Look-up'!$E:$E,0)))","v":""},{"$f":"IF(LEN(A2268)=0,\"\",INDEX('Smelter Look-up'!$C:$C,MATCH($A2268,'Smelter Look-up'!$E:$E,0)))","v":""},null,{"$f":"IF(ISERROR($V2268),\"\",OFFSET('Smelter Look-up'!$D$4,$V2268-4,0)&\"\")","v":""},{"$f":"IF(ISERROR($V2268),\"\",OFFSET('Smelter Look-up'!$E$4,$V2268-4,0))","v":""},{"$f":"IF(C2268=$X$4,\"Enter smelter details\",IF(ISERROR($V2268),\"\",OFFSET('Smelter Look-up'!$F$4,$V2268-4,0)))","v":""},{"$f":"IF(ISERROR($V2268),\"\",OFFSET('Smelter Look-up'!$G$4,$V2268-4,0))","v":""},{"$f":"IF(ISERROR($V2268),\"\",OFFSET('Smelter Look-up'!$H$4,$V2268-4,0))","v":""},{"$f":"IF(ISERROR($V2268),\"\",OFFSET('Smelter Look-up'!$I$4,$V2268-4,0))","v":""},{"$nulls":7},{"$f":"IF(ISERROR($V2268),\"\",OFFSET('Smelter Look-up'!$C$4,$V2268-4,0)&\"\")","v":""},"",{"$f":"IF(B2268=\"\",\"\",IF(ISERROR(MATCH($J2268,SorP!$B$1:$B$5661,0)),\"\",INDIRECT(\"'SorP'!$A$\"&MATCH($J2268,SorP!$B$1:$B$5661,0))))","v":""},null,{"$f":"IF(C2268=\"\",NA(),MATCH($B2268&$C2268,'Smelter Look-up'!$J:$J,0))","v":{"$error":"#N/A"}},null,0,null,null,null,""]
[null,{"$f":"IF(LEN(A2269)=0,\"\",INDEX('Smelter Look-up'!$A:$A,MATCH($A2269,'Smelter Look-up'!$E:$E,0)))","v":""},{"$f":"IF(LEN(A2269)=0,\"\",INDEX('Smelter Look-up'!$C:$C,MATCH($A2269,'Smelter Look-up'!$E:$E,0)))","v":""},null,{"$f":"IF(ISERROR($V2269),\"\",OFFSET('Smelter Look-up'!$D$4,$V2269-4,0)&\"\")","v":""},{"$f":"IF(ISERROR($V2269),\"\",OFFSET('Smelter Look-up'!$E$4,$V2269-4,0))","v":""},{"$f":"IF(C2269=$X$4,\"Enter smelter details\",IF(ISERROR($V2269),\"\",OFFSET('Smelter Look-up'!$F$4,$V2269-4,0)))","v":""},{"$f":"IF(ISERROR($V2269),\"\",OFFSET('Smelter Look-up'!$G$4,$V2269-4,0))","v":""},{"$f":"IF(ISERROR($V2269),\"\",OFFSET('Smelter Look-up'!$H$4,$V2269-4,0))","v":""},{"$f":"IF(ISERROR($V2269),\"\",OFFSET('Smelter Look-up'!$I$4,$V2269-4,0))","v":""},{"$nulls":7},{"$f":"IF(ISERROR($V2269),\"\",OFFSET('Smelter Look-up'!$C$4,$V2269-4,0)&\"\")","v":""},"",{"$f":"IF(B2269=\"\",\"\",IF(ISERROR(MATCH($J2269,SorP!$B$1:$B$5661,0)),\"\",INDIRECT(\"'SorP'!$A$\"&MATCH($J2269,SorP!$B$1:$B$5661,0))))","v":""},null,{"$f":"IF(C2269=\"\",NA(),MATCH($B2269&$C2269,'Smelter Look-up'!$J:$J,0))","v":{"$error":"#N/A"}},null,0,null,null,null,""]
[null,{"$f":"IF(LEN(A2270)=0,\"\",INDEX('Smelter Look-up'!$A:$A,MATCH($A2270,'Smelter Look-up'!$E:$E,0)))","v":""},{"$f":"IF(LEN(A2270)=0,\"\",INDEX('Smelter Look-up'!$C:$C,MATCH($A2270,'Smelter Look-up'!$E:$E,0)))","v":""},null,{"$f":"IF(ISERROR($V2270),\"\",OFFSET('Smelter Look-up'!$D$4,$V2270-4,0)&\"\")","v":""},{"$f":"IF(ISERROR($V2270),\"\",OFFSET('Smelter Look-up'!$E$4,$V2270-4,0))","v":""},{"$f":"IF(C2270=$X$4,\"Enter smelter details\",IF(ISERROR($V2270),\"\",OFFSET('Smelter Look-up'!$F$4,$V2270-4,0)))","v":""},{"$f":"IF(ISERROR($V2270),\"\",OFFSET('Smelter Look-up'!$G$4,$V2270-4,0))","v":""},{"$f":"IF(ISERROR($V2270),\"\",OFFSET('Smelter Look-up'!$H$4,$V2270-4,0))","v":""},{"$f":"IF(ISERROR($V2270),\"\",OFFSET('Smelter Look-up'!$I$4,$V2270-4,0))","v":""},{"$nulls":7},{"$f":"IF(ISERROR($V2270),\"\",OFFSET('Smelter Look-up'!$C$4,$V2270-4,0)&\"\")","v":""},"",{"$f":"IF(B2270=\"\",\"\",IF(ISERROR(MATCH($J2270,SorP!$B$1:$B$5661,0)),\"\",INDIRECT(\"'SorP'!$A$\"&MATCH($J2270,SorP!$B$1:$B$5661,0))))","v":""},null,{"$f":"IF(C2270=\"\",NA(),MATCH($B2270&$C2270,'Smelter Look-up'!$J:$J,0))","v":{"$error":"#N/A"}},null,0,null,null,null,""]
[null,{"$f":"IF(LEN(A2271)=0,\"\",INDEX('Smelter Look-up'!$A:$A,MATCH($A2271,'Smelter Look-up'!$E:$E,0)))","v":""},{"$f":"IF(LEN(A2271)=0,\"\",INDEX('Smelter Look-up'!$C:$C,MATCH($A2271,'Smelter Look-up'!$E:$E,0)))","v":""},null,{"$f":"IF(ISERROR($V2271),\"\",OFFSET('Smelter Look-up'!$D$4,$V2271-4,0)&\"\")","v":""},{"$f":"IF(ISERROR($V2271),\"\",OFFSET('Smelter Look-up'!$E$4,$V2271-4,0))","v":""},{"$f":"IF(C2271=$X$4,\"Enter smelter details\",IF(ISERROR($V2271),\"\",OFFSET('Smelter Look-up'!$F$4,$V2271-4,0)))","v":""},{"$f":"IF(ISERROR($V2271),\"\",OFFSET('Smelter Look-up'!$G$4,$V2271-4,0))","v":""},{"$f":"IF(ISERROR($V2271),\"\",OFFSET('Smelter Look-up'!$H$4,$V2271-4,0))","v":""},{"$f":"IF(ISERROR($V2271),\"\",OFFSET('Smelter Look-up'!$I$4,$V2271-4,0))","v":""},{"$nulls":7},{"$f":"IF(ISERROR($V2271),\"\",OFFSET('Smelter Look-up'!$C$4,$V2271-4,0)&\"\")","v":""},"",{"$f":"IF(B2271=\"\",\"\",IF(ISERROR(MATCH($J2271,SorP!$B$1:$B$5661,0)),\"\",INDIRECT(\"'SorP'!$A$\"&MATCH($J2271,SorP!$B$1:$B$5661,0))))","v":""},null,{"$f":"IF(C2271=\"\",NA(),MATCH($B2271&$C2271,'Smelter Look-up'!$J:$J,0))","v":{"$error":"#N/A"}},null,0,null,null,null,""]
[null,{"$f":"IF(LEN(A2272)=0,\"\",INDEX('Smelter Look-up'!$A:$A,MATCH($A2272,'Smelter Look-up'!$E:$E,0)))","v":""},{"$f":"IF(LEN(A2272)=0,\"\",INDEX('Smelter Look-up'!$C:$C,MATCH($A2272,'Smelter Look-up'!$E:$E,0)))","v":""},null,{"$f":"IF(ISERROR($V2272),\"\",OFFSET('Smelter Look-up'!$D$4,$V2272-4,0)&\"\")","v":""},{"$f":"IF(ISERROR($V2272),\"\",OFFSET('Smelter Look-up'!$E$4,$V2272-4,0))","v":""},{"$f":"IF(C2272=$X$4,\"Enter smelter details\",IF(ISERROR($V2272),\"\",OFFSET('Smelter Look-up'!$F$4,$V2272-4,0)))","v":""},{"$f":"IF(ISERROR($V2272),\"\",OFFSET('Smelter Look-up'!$G$4,$V2272-4,0))","v":""},{"$f":"IF(ISERROR($V2272),\"\",OFFSET('Smelter Look-up'!$H$4,$V2272-4,0))","v":""},{"$f":"IF(ISERROR($V2272),\"\",OFFSET('Smelter Look-up'!$I$4,$V2272-4,0))","v":""},{"$nulls":7},{"$f":"IF(ISERROR($V2272),\"\",OFFSET('Smelter Look-up'!$C$4,$V2272-4,0)&\"\")","v":""},"",{"$f":"IF(B2272=\"\",\"\",IF(ISERROR(MATCH($J2272,SorP!$B$1:$B$5661,0)),\"\",INDIRECT(\"'SorP'!$A$\"&MATCH($J2272,SorP!$B$1:$B$5661,0))))","v":""},null,{"$f":"IF(C2272=\"\",NA(),MATCH($B2272&$C2272,'Smelter Look-up'!$J:$J,0))","v":{"$error":"#N/A"}},null,0,null,null,null,""]
[null,{"$f":"IF(LEN(A2273)=0,\"\",INDEX('Smelter Look-up'!$A:$A,MATCH($A2273,'Smelter Look-up'!$E:$E,0)))","v":""},{"$f":"IF(LEN(A2273)=0,\"\",INDEX('Smelter Look-up'!$C:$C,MATCH($A2273,'Smelter Look-up'!$E:$E,0)))","v":""},null,{"$f":"IF(ISERROR($V2273),\"\",OFFSET('Smelter Look-up'!$D$4,$V2273-4,0)&\"\")","v":""},{"$f":"IF(ISERROR($V2273),\"\",OFFSET('Smelter Look-up'!$E$4,$V2273-4,0))","v":""},{"$f":"IF(C2273=$X$4,\"Enter smelter details\",IF(ISERROR($V2273),\"\",OFFSET('Smelter Look-up'!$F$4,$V2273-4,0)))","v":""},{"$f":"IF(ISERROR($V2273),\"\",OFFSET('Smelter Look-up'!$G$4,$V2273-4,0))","v":""},{"$f":"IF(ISERROR($V2273),\"\",OFFSET('Smelter Look-up'!$H$4,$V2273-4,0))","v":""},{"$f":"IF(ISERROR($V2273),\"\",OFFSET('Smelter Look-up'!$I$4,$V2273-4,0))","v":""},{"$nulls":7},{"$f":"IF(ISERROR($V2273),\"\",OFFSET('Smelter Look-up'!$C$4,$V2273-4,0)&\"\")","v":""},"",{"$f":"IF(B2273=\"\",\"\",IF(ISERROR(MATCH($J2273,SorP!$B$1:$B$5661,0)),\"\",INDIRECT(\"'SorP'!$A$\"&MATCH($J2273,SorP!$B$1:$B$5661,0))))","v":""},null,{"$f":"IF(C2273=\"\",NA(),MATCH($B2273&$C2273,'Smelter Look-up'!$J:$J,0))","v":{"$error":"#N/A"}},null,0,null,null,null,""]
[null,{"$f":"IF(LEN(A2274)=0,\"\",INDEX('Smelter Look-up'!$A:$A,MATCH($A2274,'Smelter Look-up'!$E:$E,0)))","v":""},{"$f":"IF(LEN(A2274)=0,\"\",INDEX('Smelter Look-up'!$C:$C,MATCH($A2274,'Smelter Look-up'!$E:$E,0)))","v":""},null,{"$f":"IF(ISERROR($V2274),\"\",OFFSET('Smelter Look-up'!$D$4,$V2274-4,0)&\"\")","v":""},{"$f":"IF(ISERROR($V2274),\"\",OFFSET('Smelter Look-up'!$E$4,$V2274-4,0))","v":""},{"$f":"IF(C2274=$X$4,\"Enter smelter details\",IF(ISERROR($V2274),\"\",OFFSET('Smelter Look-up'!$F$4,$V2274-4,0)))","v":""},{"$f":"IF(ISERROR($V2274),\"\",OFFSET('Smelter Look-up'!$G$4,$V2274-4,0))","v":""},{"$f":"IF(ISERROR($V2274),\"\",OFFSET('Smelter Look-up'!$H$4,$V2274-4,0))","v":""},{"$f":"IF(ISERROR($V2274),\"\",OFFSET('Smelter Look-up'!$I$4,$V2274-4,0))","v":""},{"$nulls":7},{"$f":"IF(ISERROR($V2274),\"\",OFFSET('Smelter Look-up'!$C$4,$V2274-4,0)&\"\")","v":""},"",{"$f":"IF(B2274=\"\",\"\",IF(ISERROR(MATCH($J2274,SorP!$B$1:$B$5661,0)),\"\",INDIRECT(\"'SorP'!$A$\"&MATCH($J2274,SorP!$B$1:$B$5661,0))))","v":""},null,{"$f":"IF(C2274=\"\",NA(),MATCH($B2274&$C2274,'Smelter Look-up'!$J:$J,0))","v":{"$error":"#N/A"}},null,0,null,null,null,""]
[null,{"$f":"IF(LEN(A2275)=0,\"\",INDEX('Smelter Look-up'!$A:$A,MATCH($A2275,'Smelter Look-up'!$E:$E,0)))","v":""},{"$f":"IF(LEN(A2275)=0,\"\",INDEX('Smelter Look-up'!$C:$C,MATCH($A2275,'Smelter Look-up'!$E:$E,0)))","v":""},null,{"$f":"IF(ISERROR($V2275),\"\",OFFSET('Smelter Look-up'!$D$4,$V2275-4,0)&\"\")","v":""},{"$f":"IF(ISERROR($V2275),\"\",OFFSET('Smelter Look-up'!$E$4,$V2275-4,0))","v":""},{"$f":"IF(C2275=$X$4,\"Enter smelter details\",IF(ISERROR($V2275),\"\",OFFSET('Smelter Look-up'!$F$4,$V2275-4,0)))","v":""},{"$f":"IF(ISERROR($V2275),\"\",OFFSET('Smelter Look-up'!$G$4,$V2275-4,0))","v":""},{"$f":"IF(ISERROR($V2275),\"\",OFFSET('Smelter Look-up'!$H$4,$V2275-4,0))","v":""},{"$f":"IF(ISERROR($V2275),\"\",OFFSET('Smelter Look-up'!$I$4,$V2275-4,0))","v":""},{"$nulls":7},{"$f":"IF(ISERROR($V2275),\"\",OFFSET('Smelter Look-up'!$C$4,$V2275-4,0)&\"\")","v":""},"",{"$f":"IF(B2275=\"\",\"\",IF(ISERROR(MATCH($J2275,SorP!$B$1:$B$5661,0)),\"\",INDIRECT(\"'SorP'!$A$\"&MATCH($J2275,SorP!$B$1:$B$5661,0))))","v":""},null,{"$f":"IF(C2275=\"\",NA(),MATCH($B2275&$C2275,'Smelter Look-up'!$J:$J,0))","v":{"$error":"#N/A"}},null,0,null,null,null,""]
[null,{"$f":"IF(LEN(A2276)=0,\"\",INDEX('Smelter Look-up'!$A:$A,MATCH($A2276,'Smelter Look-up'!$E:$E,0)))","v":""},{"$f":"IF(LEN(A2276)=0,\"\",INDEX('Smelter Look-up'!$C:$C,MATCH($A2276,'Smelter Look-up'!$E:$E,0)))","v":""},null,{"$f":"IF(ISERROR($V2276),\"\",OFFSET('Smelter Look-up'!$D$4,$V2276-4,0)&\"\")","v":""},{"$f":"IF(ISERROR($V2276),\"\",OFFSET('Smelter Look-up'!$E$4,$V2276-4,0))","v":""},{"$f":"IF(C2276=$X$4,\"Enter smelter details\",IF(ISERROR($V2276),\"\",OFFSET('Smelter Look-up'!$F$4,$V2276-4,0)))","v":""},{"$f":"IF(ISERROR($V2276),\"\",OFFSET('Smelter Look-up'!$G$4,$V2276-4,0))","v":""},{"$f":"IF(ISERROR($V2276),\"\",OFFSET('Smelter Look-up'!$H$4,$V2276-4,0))","v":""},{"$f":"IF(ISERROR($V2276),\"\",OFFSET('Smelter Look-up'!$I$4,$V2276-4,0))","v":""},{"$nulls":7},{"$f":"IF(ISERROR($V2276),\"\",OFFSET('Smelter Look-up'!$C$4,$V2276-4,0)&\"\")","v":""},"",{"$f":"IF(B2276=\"\",\"\",IF(ISERROR(MATCH($J2276,SorP!$B$1:$B$5661,0)),\"\",INDIRECT(\"'SorP'!$A$\"&MATCH($J2276,SorP!$B$1:$B$5661,0))))","v":""},null,{"$f":"IF(C2276=\"\",NA(),MATCH($B2276&$C2276,'Smelter Look-up'!$J:$J,0))","v":{"$error":"#N/A"}},null,0,null,null,null,""]
[null,{"$f":"IF(LEN(A2277)=0,\"\",INDEX('Smelter Look-up'!$A:$A,MATCH($A2277,'Smelter Look-up'!$E:$E,0)))","v":""},{"$f":"IF(LEN(A2277)=0,\"\",INDEX('Smelter Look-up'!$C:$C,MATCH($A2277,'Smelter Look-up'!$E:$E,0)))","v":""},null,{"$f":"IF(ISERROR($V2277),\"\",OFFSET('Smelter Look-up'!$D$4,$V2277-4,0)&\"\")","v":""},{"$f":"IF(ISERROR($V2277),\"\",OFFSET('Smelter Look-up'!$E$4,$V2277-4,0))","v":""},{"$f":"IF(C2277=$X$4,\"Enter smelter details\",IF(ISERROR($V2277),\"\",OFFSET('Smelter Look-up'!$F$4,$V2277-4,0)))","v":""},{"$f":"IF(ISERROR($V2277),\"\",OFFSET('Smelter Look-up'!$G$4,$V2277-4,0))","v":""},{"$f":"IF(ISERROR($V2277),\"\",OFFSET('Smelter Look-up'!$H$4,$V2277-4,0))","v":""},{"$f":"IF(ISERROR($V2277),\"\",OFFSET('Smelter Look-up'!$I$4,$V2277-4,0))","v":""},{"$nulls":7},{"$f":"IF(ISERROR($V2277),\"\",OFFSET('Smelter Look-up'!$C$4,$V2277-4,0)&\"\")","v":""},"",{"$f":"IF(B2277=\"\",\"\",IF(ISERROR(MATCH($J2277,SorP!$B$1:$B$5661,0)),\"\",INDIRECT(\"'SorP'!$A$\"&MATCH($J2277,SorP!$B$1:$B$5661,0))))","v":""},null,{"$f":"IF(C2277=\"\",NA(),MATCH($B2277&$C2277,'Smelter Look-up'!$J:$J,0))","v":{"$error":"#N/A"}},null,0,null,null,null,""]
[null,{"$f":"IF(LEN(A2278)=0,\"\",INDEX('Smelter Look-up'!$A:$A,MATCH($A2278,'Smelter Look-up'!$E:$E,0)))","v":""},{"$f":"IF(LEN(A2278)=0,\"\",INDEX('Smelter Look-up'!$C:$C,MATCH($A2278,'Smelter Look-up'!$E:$E,0)))","v":""},null,{"$f":"IF(ISERROR($V2278),\"\",OFFSET('Smelter Look-up'!$D$4,$V2278-4,0)&\"\")","v":""},{"$f":"IF(ISERROR($V2278),\"\",OFFSET('Smelter Look-up'!$E$4,$V2278-4,0))","v":""},{"$f":"IF(C2278=$X$4,\"Enter smelter details\",IF(ISERROR($V2278),\"\",OFFSET('Smelter Look-up'!$F$4,$V2278-4,0)))","v":""},{"$f":"IF(ISERROR($V2278),\"\",OFFSET('Smelter Look-up'!$G$4,$V2278-4,0))","v":""},{"$f":"IF(ISERROR($V2278),\"\",OFFSET('Smelter Look-up'!$H$4,$V2278-4,0))","v":""},{"$f":"IF(ISERROR($V2278),\"\",OFFSET('Smelter Look-up'!$I$4,$V2278-4,0))","v":""},{"$nulls":7},{"$f":"IF(ISERROR($V2278),\"\",OFFSET('Smelter Look-up'!$C$4,$V2278-4,0)&\"\")","v":""},"",{"$f":"IF(B2278=\"\",\"\",IF(ISERROR(MATCH($J2278,SorP!$B$1:$B$5661,0)),\"\",INDIRECT(\"'SorP'!$A$\"&MATCH($J2278,SorP!$B$1:$B$5661,0))))","v":""},null,{"$f":"IF(C2278=\"\",NA(),MATCH($B2278&$C2278,'Smelter Look-up'!$J:$J,0))","v":{"$error":"#N/A"}},null,0,null,null,null,""]
[null,{"$f":"IF(LEN(A2279)=0,\"\",INDEX('Smelter Look-up'!$A:$A,MATCH($A2279,'Smelter Look-up'!$E:$E,0)))","v":""},{"$f":"IF(LEN(A2279)=0,\"\",INDEX('Smelter Look-up'!$C:$C,MATCH($A2279,'Smelter Look-up'!$E:$E,0)))","v":""},null,{"$f":"IF(ISERROR($V2279),\"\",OFFSET('Smelter Look-up'!$D$4,$V2279-4,0)&\"\")","v":""},{"$f":"IF(ISERROR($V2279),\"\",OFFSET('Smelter Look-up'!$E$4,$V2279-4,0))","v":""},{"$f":"IF(C2279=$X$4,\"Enter smelter details\",IF(ISERROR($V2279),\"\",OFFSET('Smelter Look-up'!$F$4,$V2279-4,0)))","v":""},{"$f":"IF(ISERROR($V2279),\"\",OFFSET('Smelter Look-up'!$G$4,$V2279-4,0))","v":""},{"$f":"IF(ISERROR($V2279),\"\",OFFSET('Smelter Look-up'!$H$4,$V2279-4,0))","v":""},{"$f":"IF(ISERROR($V2279),\"\",OFFSET('Smelter Look-up'!$I$4,$V2279-4,0))","v":""},{"$nulls":7},{"$f":"IF(ISERROR($V2279),\"\",OFFSET('Smelter Look-up'!$C$4,$V2279-4,0)&\"\")","v":""},"",{"$f":"IF(B2279=\"\",\"\",IF(ISERROR(MATCH($J2279,SorP!$B$1:$B$5661,0)),\"\",INDIRECT(\"'SorP'!$A$\"&MATCH($J2279,SorP!$B$1:$B$5661,0))))","v":""},null,{"$f":"IF(C2279=\"\",NA(),MATCH($B2279&$C2279,'Smelter Look-up'!$J:$J,0))","v":{"$error":"#N/A"}},null,0,null,null,null,""]
[null,{"$f":"IF(LEN(A2280)=0,\"\",INDEX('Smelter Look-up'!$A:$A,MATCH($A2280,'Smelter Look-up'!$E:$E,0)))","v":""},{"$f":"IF(LEN(A2280)=0,\"\",INDEX('Smelter Look-up'!$C:$C,MATCH($A2280,'Smelter Look-up'!$E:$E,0)))","v":""},null,{"$f":"IF(ISERROR($V2280),\"\",OFFSET('Smelter Look-up'!$D$4,$V2280-4,0)&\"\")","v":""},{"$f":"IF(ISERROR($V2280),\"\",OFFSET('Smelter Look-up'!$E$4,$V2280-4,0))","v":""},{"$f":"IF(C2280=$X$4,\"Enter smelter details\",IF(ISERROR($V2280),\"\",OFFSET('Smelter Look-up'!$F$4,$V2280-4,0)))","v":""},{"$f":"IF(ISERROR($V2280),\"\",OFFSET('Smelter Look-up'!$G$4,$V2280-4,0))","v":""},{"$f":"IF(ISERROR($V2280),\"\",OFFSET('Smelter Look-up'!$H$4,$V2280-4,0))","v":""},{"$f":"IF(ISERROR($V2280),\"\",OFFSET('Smelter Look-up'!$I$4,$V2280-4,0))","v":""},{"$nulls":7},{"$f":"IF(ISERROR($V2280),\"\",OFFSET('Smelter Look-up'!$C$4,$V2280-4,0)&\"\")","v":""},"",{"$f":"IF(B2280=\"\",\"\",IF(ISERROR(MATCH($J2280,SorP!$B$1:$B$5661,0)),\"\",INDIRECT(\"'SorP'!$A$\"&MATCH($J2280,SorP!$B$1:$B$5661,0))))","v":""},null,{"$f":"IF(C2280=\"\",NA(),MATCH($B2280&$C2280,'Smelter Look-up'!$J:$J,0))","v":{"$error":"#N/A"}},null,0,null,null,null,""]
[null,{"$f":"IF(LEN(A2281)=0,\"\",INDEX('Smelter Look-up'!$A:$A,MATCH($A2281,'Smelter Look-up'!$E:$E,0)))","v":""},{"$f":"IF(LEN(A2281)=0,\"\",INDEX('Smelter Look-up'!$C:$C,MATCH($A2281,'Smelter Look-up'!$E:$E,0)))","v":""},null,{"$f":"IF(ISERROR($V2281),\"\",OFFSET('Smelter Look-up'!$D$4,$V2281-4,0)&\"\")","v":""},{"$f":"IF(ISERROR($V2281),\"\",OFFSET('Smelter Look-up'!$E$4,$V2281-4,0))","v":""},{"$f":"IF(C2281=$X$4,\"Enter smelter details\",IF(ISERROR($V2281),\"\",OFFSET('Smelter Look-up'!$F$4,$V2281-4,0)))","v":""},{"$f":"IF(ISERROR($V2281),\"\",OFFSET('Smelter Look-up'!$G$4,$V2281-4,0))","v":""},{"$f":"IF(ISERROR($V2281),\"\",OFFSET('Smelter Look-up'!$H$4,$V2281-4,0))","v":""},{"$f":"IF(ISERROR($V2281),\"\",OFFSET('Smelter Look-up'!$I$4,$V2281-4,0))","v":""},{"$nulls":7},{"$f":"IF(ISERROR($V2281),\"\",OFFSET('Smelter Look-up'!$C$4,$V2281-4,0)&\"\")","v":""},"",{"$f":"IF(B2281=\"\",\"\",IF(ISERROR(MATCH($J2281,SorP!$B$1:$B$5661,0)),\"\",INDIRECT(\"'SorP'!$A$\"&MATCH($J2281,SorP!$B$1:$B$5661,0))))","v":""},null,{"$f":"IF(C2281=\"\",NA(),MATCH($B2281&$C2281,'Smelter Look-up'!$J:$J,0))","v":{"$error":"#N/A"}},null,0,null,null,null,""]
[null,{"$f":"IF(LEN(A2282)=0,\"\",INDEX('Smelter Look-up'!$A:$A,MATCH($A2282,'Smelter Look-up'!$E:$E,0)))","v":""},{"$f":"IF(LEN(A2282)=0,\"\",INDEX('Smelter Look-up'!$C:$C,MATCH($A2282,'Smelter Look-up'!$E:$E,0)))","v":""},null,{"$f":"IF(ISERROR($V2282),\"\",OFFSET('Smelter Look-up'!$D$4,$V2282-4,0)&\"\")","v":""},{"$f":"IF(ISERROR($V2282),\"\",OFFSET('Smelter Look-up'!$E$4,$V2282-4,0))","v":""},{"$f":"IF(C2282=$X$4,\"Enter smelter details\",IF(ISERROR($V2282),\"\",OFFSET('Smelter Look-up'!$F$4,$V2282-4,0)))","v":""},{"$f":"IF(ISERROR($V2282),\"\",OFFSET('Smelter Look-up'!$G$4,$V2282-4,0))","v":""},{"$f":"IF(ISERROR($V2282),\"\",OFFSET('Smelter Look-up'!$H$4,$V2282-4,0))","v":""},{"$f":"IF(ISERROR($V2282),\"\",OFFSET('Smelter Look-up'!$I$4,$V2282-4,0))","v":""},{"$nulls":7},{"$f":"IF(ISERROR($V2282),\"\",OFFSET('Smelter Look-up'!$C$4,$V2282-4,0)&\"\")","v":""},"",{"$f":"IF(B2282=\"\",\"\",IF(ISERROR(MATCH($J2282,SorP!$B$1:$B$5661,0)),\"\",INDIRECT(\"'SorP'!$A$\"&MATCH($J2282,SorP!$B$1:$B$5661,0))))","v":""},null,{"$f":"IF(C2282=\"\",NA(),MATCH($B2282&$C2282,'Smelter Look-up'!$J:$J,0))","v":{"$error":"#N/A"}},null,0,null,null,null,""]
[null,{"$f":"IF(LEN(A2283)=0,\"\",INDEX('Smelter Look-up'!$A:$A,MATCH($A2283,'Smelter Look-up'!$E:$E,0)))","v":""},{"$f":"IF(LEN(A2283)=0,\"\",INDEX('Smelter Look-up'!$C:$C,MATCH($A2283,'Smelter Look-up'!$E:$E,0)))","v":""},null,{"$f":"IF(ISERROR($V2283),\"\",OFFSET('Smelter Look-up'!$D$4,$V2283-4,0)&\"\")","v":""},{"$f":"IF(ISERROR($V2283),\"\",OFFSET('Smelter Look-up'!$E$4,$V2283-4,0))","v":""},{"$f":"IF(C2283=$X$4,\"Enter smelter details\",IF(ISERROR($V2283),\"\",OFFSET('Smelter Look-up'!$F$4,$V2283-4,0)))","v":""},{"$f":"IF(ISERROR($V2283),\"\",OFFSET('Smelter Look-up'!$G$4,$V2283-4,0))","v":""},{"$f":"IF(ISERROR($V2283),\"\",OFFSET('Smelter Look-up'!$H$4,$V2283-4,0))","v":""},{"$f":"IF(ISERROR($V2283),\"\",OFFSET('Smelter Look-up'!$I$4,$V2283-4,0))","v":""},{"$nulls":7},{"$f":"IF(ISERROR($V2283),\"\",OFFSET('Smelter Look-up'!$C$4,$V2283-4,0)&\"\")","v":""},"",{"$f":"IF(B2283=\"\",\"\",IF(ISERROR(MATCH($J2283,SorP!$B$1:$B$5661,0)),\"\",INDIRECT(\"'SorP'!$A$\"&MATCH($J2283,SorP!$B$1:$B$5661,0))))","v":""},null,{"$f":"IF(C2283=\"\",NA(),MATCH($B2283&$C2283,'Smelter Look-up'!$J:$J,0))","v":{"$error":"#N/A"}},null,0,null,null,null,""]
[null,{"$f":"IF(LEN(A2284)=0,\"\",INDEX('Smelter Look-up'!$A:$A,MATCH($A2284,'Smelter Look-up'!$E:$E,0)))","v":""},{"$f":"IF(LEN(A2284)=0,\"\",INDEX('Smelter Look-up'!$C:$C,MATCH($A2284,'Smelter Look-up'!$E:$E,0)))","v":""},null,{"$f":"IF(ISERROR($V2284),\"\",OFFSET('Smelter Look-up'!$D$4,$V2284-4,0)&\"\")","v":""},{"$f":"IF(ISERROR($V2284),\"\",OFFSET('Smelter Look-up'!$E$4,$V2284-4,0))","v":""},{"$f":"IF(C2284=$X$4,\"Enter smelter details\",IF(ISERROR($V2284),\"\",OFFSET('Smelter Look-up'!$F$4,$V2284-4,0)))","v":""},{"$f":"IF(ISERROR($V2284),\"\",OFFSET('Smelter Look-up'!$G$4,$V2284-4,0))","v":""},{"$f":"IF(ISERROR($V2284),\"\",OFFSET('Smelter Look-up'!$H$4,$V2284-4,0))","v":""},{"$f":"IF(ISERROR($V2284),\"\",OFFSET('Smelter Look-up'!$I$4,$V2284-4,0))","v":""},{"$nulls":7},{"$f":"IF(ISERROR($V2284),\"\",OFFSET('Smelter Look-up'!$C$4,$V2284-4,0)&\"\")","v":""},"",{"$f":"IF(B2284=\"\",\"\",IF(ISERROR(MATCH($J2284,SorP!$B$1:$B$5661,0)),\"\",INDIRECT(\"'SorP'!$A$\"&MATCH($J2284,SorP!$B$1:$B$5661,0))))","v":""},null,{"$f":"IF(C2284=\"\",NA(),MATCH($B2284&$C2284,'Smelter Look-up'!$J:$J,0))","v":{"$error":"#N/A"}},null,0,null,null,null,""]
[null,{"$f":"IF(LEN(A2285)=0,\"\",INDEX('Smelter Look-up'!$A:$A,MATCH($A2285,'Smelter Look-up'!$E:$E,0)))","v":""},{"$f":"IF(LEN(A2285)=0,\"\",INDEX('Smelter Look-up'!$C:$C,MATCH($A2285,'Smelter Look-up'!$E:$E,0)))","v":""},null,{"$f":"IF(ISERROR($V2285),\"\",OFFSET('Smelter Look-up'!$D$4,$V2285-4,0)&\"\")","v":""},{"$f":"IF(ISERROR($V2285),\"\",OFFSET('Smelter Look-up'!$E$4,$V2285-4,0))","v":""},{"$f":"IF(C2285=$X$4,\"Enter smelter details\",IF(ISERROR($V2285),\"\",OFFSET('Smelter Look-up'!$F$4,$V2285-4,0)))","v":""},{"$f":"IF(ISERROR($V2285),\"\",OFFSET('Smelter Look-up'!$G$4,$V2285-4,0))","v":""},{"$f":"IF(ISERROR($V2285),\"\",OFFSET('Smelter Look-up'!$H$4,$V2285-4,0))","v":""},{"$f":"IF(ISERROR($V2285),\"\",OFFSET('Smelter Look-up'!$I$4,$V2285-4,0))","v":""},{"$nulls":7},{"$f":"IF(ISERROR($V2285),\"\",OFFSET('Smelter Look-up'!$C$4,$V2285-4,0)&\"\")","v":""},"",{"$f":"IF(B2285=\"\",\"\",IF(ISERROR(MATCH($J2285,SorP!$B$1:$B$5661,0)),\"\",INDIRECT(\"'SorP'!$A$\"&MATCH($J2285,SorP!$B$1:$B$5661,0))))","v":""},null,{"$f":"IF(C2285=\"\",NA(),MATCH($B2285&$C2285,'Smelter Look-up'!$J:$J,0))","v":{"$error":"#N/A"}},null,0,null,null,null,""]
[null,{"$f":"IF(LEN(A2286)=0,\"\",INDEX('Smelter Look-up'!$A:$A,MATCH($A2286,'Smelter Look-up'!$E:$E,0)))","v":""},{"$f":"IF(LEN(A2286)=0,\"\",INDEX('Smelter Look-up'!$C:$C,MATCH($A2286,'Smelter Look-up'!$E:$E,0)))","v":""},null,{"$f":"IF(ISERROR($V2286),\"\",OFFSET('Smelter Look-up'!$D$4,$V2286-4,0)&\"\")","v":""},{"$f":"IF(ISERROR($V2286),\"\",OFFSET('Smelter Look-up'!$E$4,$V2286-4,0))","v":""},{"$f":"IF(C2286=$X$4,\"Enter smelter details\",IF(ISERROR($V2286),\"\",OFFSET('Smelter Look-up'!$F$4,$V2286-4,0)))","v":""},{"$f":"IF(ISERROR($V2286),\"\",OFFSET('Smelter Look-up'!$G$4,$V2286-4,0))","v":""},{"$f":"IF(ISERROR($V2286),\"\",OFFSET('Smelter Look-up'!$H$4,$V2286-4,0))","v":""},{"$f":"IF(ISERROR($V2286),\"\",OFFSET('Smelter Look-up'!$I$4,$V2286-4,0))","v":""},{"$nulls":7},{"$f":"IF(ISERROR($V2286),\"\",OFFSET('Smelter Look-up'!$C$4,$V2286-4,0)&\"\")","v":""},"",{"$f":"IF(B2286=\"\",\"\",IF(ISERROR(MATCH($J2286,SorP!$B$1:$B$5661,0)),\"\",INDIRECT(\"'SorP'!$A$\"&MATCH($J2286,SorP!$B$1:$B$5661,0))))","v":""},null,{"$f":"IF(C2286=\"\",NA(),MATCH($B2286&$C2286,'Smelter Look-up'!$J:$J,0))","v":{"$error":"#N/A"}},null,0,null,null,null,""]
[null,{"$f":"IF(LEN(A2287)=0,\"\",INDEX('Smelter Look-up'!$A:$A,MATCH($A2287,'Smelter Look-up'!$E:$E,0)))","v":""},{"$f":"IF(LEN(A2287)=0,\"\",INDEX('Smelter Look-up'!$C:$C,MATCH($A2287,'Smelter Look-up'!$E:$E,0)))","v":""},null,{"$f":"IF(ISERROR($V2287),\"\",OFFSET('Smelter Look-up'!$D$4,$V2287-4,0)&\"\")","v":""},{"$f":"IF(ISERROR($V2287),\"\",OFFSET('Smelter Look-up'!$E$4,$V2287-4,0))","v":""},{"$f":"IF(C2287=$X$4,\"Enter smelter details\",IF(ISERROR($V2287),\"\",OFFSET('Smelter Look-up'!$F$4,$V2287-4,0)))","v":""},{"$f":"IF(ISERROR($V2287),\"\",OFFSET('Smelter Look-up'!$G$4,$V2287-4,0))","v":""},{"$f":"IF(ISERROR($V2287),\"\",OFFSET('Smelter Look-up'!$H$4,$V2287-4,0))","v":""},{"$f":"IF(ISERROR($V2287),\"\",OFFSET('Smelter Look-up'!$I$4,$V2287-4,0))","v":""},{"$nulls":7},{"$f":"IF(ISERROR($V2287),\"\",OFFSET('Smelter Look-up'!$C$4,$V2287-4,0)&\"\")","v":""},"",{"$f":"IF(B2287=\"\",\"\",IF(ISERROR(MATCH($J2287,SorP!$B$1:$B$5661,0)),\"\",INDIRECT(\"'SorP'!$A$\"&MATCH($J2287,SorP!$B$1:$B$5661,0))))","v":""},null,{"$f":"IF(C2287=\"\",NA(),MATCH($B2287&$C2287,'Smelter Look-up'!$J:$J,0))","v":{"$error":"#N/A"}},null,0,null,null,null,""]
[null,{"$f":"IF(LEN(A2288)=0,\"\",INDEX('Smelter Look-up'!$A:$A,MATCH($A2288,'Smelter Look-up'!$E:$E,0)))","v":""},{"$f":"IF(LEN(A2288)=0,\"\",INDEX('Smelter Look-up'!$C:$C,MATCH($A2288,'Smelter Look-up'!$E:$E,0)))","v":""},null,{"$f":"IF(ISERROR($V2288),\"\",OFFSET('Smelter Look-up'!$D$4,$V2288-4,0)&\"\")","v":""},{"$f":"IF(ISERROR($V2288),\"\",OFFSET('Smelter Look-up'!$E$4,$V2288-4,0))","v":""},{"$f":"IF(C2288=$X$4,\"Enter smelter details\",IF(ISERROR($V2288),\"\",OFFSET('Smelter Look-up'!$F$4,$V2288-4,0)))","v":""},{"$f":"IF(ISERROR($V2288),\"\",OFFSET('Smelter Look-up'!$G$4,$V2288-4,0))","v":""},{"$f":"IF(ISERROR($V2288),\"\",OFFSET('Smelter Look-up'!$H$4,$V2288-4,0))","v":""},{"$f":"IF(ISERROR($V2288),\"\",OFFSET('Smelter Look-up'!$I$4,$V2288-4,0))","v":""},{"$nulls":7},{"$f":"IF(ISERROR($V2288),\"\",OFFSET('Smelter Look-up'!$C$4,$V2288-4,0)&\"\")","v":""},"",{"$f":"IF(B2288=\"\",\"\",IF(ISERROR(MATCH($J2288,SorP!$B$1:$B$5661,0)),\"\",INDIRECT(\"'SorP'!$A$\"&MATCH($J2288,SorP!$B$1:$B$5661,0))))","v":""},null,{"$f":"IF(C2288=\"\",NA(),MATCH($B2288&$C2288,'Smelter Look-up'!$J:$J,0))","v":{"$error":"#N/A"}},null,0,null,null,null,""]
[null,{"$f":"IF(LEN(A2289)=0,\"\",INDEX('Smelter Look-up'!$A:$A,MATCH($A2289,'Smelter Look-up'!$E:$E,0)))","v":""},{"$f":"IF(LEN(A2289)=0,\"\",INDEX('Smelter Look-up'!$C:$C,MATCH($A2289,'Smelter Look-up'!$E:$E,0)))","v":""},null,{"$f":"IF(ISERROR($V2289),\"\",OFFSET('Smelter Look-up'!$D$4,$V2289-4,0)&\"\")","v":""},{"$f":"IF(ISERROR($V2289),\"\",OFFSET('Smelter Look-up'!$E$4,$V2289-4,0))","v":""},{"$f":"IF(C2289=$X$4,\"Enter smelter details\",IF(ISERROR($V2289),\"\",OFFSET('Smelter Look-up'!$F$4,$V2289-4,0)))","v":""},{"$f":"IF(ISERROR($V2289),\"\",OFFSET('Smelter Look-up'!$G$4,$V2289-4,0))","v":""},{"$f":"IF(ISERROR($V2289),\"\",OFFSET('Smelter Look-up'!$H$4,$V2289-4,0))","v":""},{"$f":"IF(ISERROR($V2289),\"\",OFFSET('Smelter Look-up'!$I$4,$V2289-4,0))","v":""},{"$nulls":7},{"$f":"IF(ISERROR($V2289),\"\",OFFSET('Smelter Look-up'!$C$4,$V2289-4,0)&\"\")","v":""},"",{"$f":"IF(B2289=\"\",\"\",IF(ISERROR(MATCH($J2289,SorP!$B$1:$B$5661,0)),\"\",INDIRECT(\"'SorP'!$A$\"&MATCH($J2289,SorP!$B$1:$B$5661,0))))","v":""},null,{"$f":"IF(C2289=\"\",NA(),MATCH($B2289&$C2289,'Smelter Look-up'!$J:$J,0))","v":{"$error":"#N/A"}},null,0,null,null,null,""]
[null,{"$f":"IF(LEN(A2290)=0,\"\",INDEX('Smelter Look-up'!$A:$A,MATCH($A2290,'Smelter Look-up'!$E:$E,0)))","v":""},{"$f":"IF(LEN(A2290)=0,\"\",INDEX('Smelter Look-up'!$C:$C,MATCH($A2290,'Smelter Look-up'!$E:$E,0)))","v":""},null,{"$f":"IF(ISERROR($V2290),\"\",OFFSET('Smelter Look-up'!$D$4,$V2290-4,0)&\"\")","v":""},{"$f":"IF(ISERROR($V2290),\"\",OFFSET('Smelter Look-up'!$E$4,$V2290-4,0))","v":""},{"$f":"IF(C2290=$X$4,\"Enter smelter details\",IF(ISERROR($V2290),\"\",OFFSET('Smelter Look-up'!$F$4,$V2290-4,0)))","v":""},{"$f":"IF(ISERROR($V2290),\"\",OFFSET('Smelter Look-up'!$G$4,$V2290-4,0))","v":""},{"$f":"IF(ISERROR($V2290),\"\",OFFSET('Smelter Look-up'!$H$4,$V2290-4,0))","v":""},{"$f":"IF(ISERROR($V2290),\"\",OFFSET('Smelter Look-up'!$I$4,$V2290-4,0))","v":""},{"$nulls":7},{"$f":"IF(ISERROR($V2290),\"\",OFFSET('Smelter Look-up'!$C$4,$V2290-4,0)&\"\")","v":""},"",{"$f":"IF(B2290=\"\",\"\",IF(ISERROR(MATCH($J2290,SorP!$B$1:$B$5661,0)),\"\",INDIRECT(\"'SorP'!$A$\"&MATCH($J2290,SorP!$B$1:$B$5661,0))))","v":""},null,{"$f":"IF(C2290=\"\",NA(),MATCH($B2290&$C2290,'Smelter Look-up'!$J:$J,0))","v":{"$error":"#N/A"}},null,0,null,null,null,""]
[null,{"$f":"IF(LEN(A2291)=0,\"\",INDEX('Smelter Look-up'!$A:$A,MATCH($A2291,'Smelter Look-up'!$E:$E,0)))","v":""},{"$f":"IF(LEN(A2291)=0,\"\",INDEX('Smelter Look-up'!$C:$C,MATCH($A2291,'Smelter Look-up'!$E:$E,0)))","v":""},null,{"$f":"IF(ISERROR($V2291),\"\",OFFSET('Smelter Look-up'!$D$4,$V2291-4,0)&\"\")","v":""},{"$f":"IF(ISERROR($V2291),\"\",OFFSET('Smelter Look-up'!$E$4,$V2291-4,0))","v":""},{"$f":"IF(C2291=$X$4,\"Enter smelter details\",IF(ISERROR($V2291),\"\",OFFSET('Smelter Look-up'!$F$4,$V2291-4,0)))","v":""},{"$f":"IF(ISERROR($V2291),\"\",OFFSET('Smelter Look-up'!$G$4,$V2291-4,0))","v":""},{"$f":"IF(ISERROR($V2291),\"\",OFFSET('Smelter Look-up'!$H$4,$V2291-4,0))","v":""},{"$f":"IF(ISERROR($V2291),\"\",OFFSET('Smelter Look-up'!$I$4,$V2291-4,0))","v":""},{"$nulls":7},{"$f":"IF(ISERROR($V2291),\"\",OFFSET('Smelter Look-up'!$C$4,$V2291-4,0)&\"\")","v":""},"",{"$f":"IF(B2291=\"\",\"\",IF(ISERROR(MATCH($J2291,SorP!$B$1:$B$5661,0)),\"\",INDIRECT(\"'SorP'!$A$\"&MATCH($J2291,SorP!$B$1:$B$5661,0))))","v":""},null,{"$f":"IF(C2291=\"\",NA(),MATCH($B2291&$C2291,'Smelter Look-up'!$J:$J,0))","v":{"$error":"#N/A"}},null,0,null,null,null,""]
[null,{"$f":"IF(LEN(A2292)=0,\"\",INDEX('Smelter Look-up'!$A:$A,MATCH($A2292,'Smelter Look-up'!$E:$E,0)))","v":""},{"$f":"IF(LEN(A2292)=0,\"\",INDEX('Smelter Look-up'!$C:$C,MATCH($A2292,'Smelter Look-up'!$E:$E,0)))","v":""},null,{"$f":"IF(ISERROR($V2292),\"\",OFFSET('Smelter Look-up'!$D$4,$V2292-4,0)&\"\")","v":""},{"$f":"IF(ISERROR($V2292),\"\",OFFSET('Smelter Look-up'!$E$4,$V2292-4,0))","v":""},{"$f":"IF(C2292=$X$4,\"Enter smelter details\",IF(ISERROR($V2292),\"\",OFFSET('Smelter Look-up'!$F$4,$V2292-4,0)))","v":""},{"$f":"IF(ISERROR($V2292),\"\",OFFSET('Smelter Look-up'!$G$4,$V2292-4,0))","v":""},{"$f":"IF(ISERROR($V2292),\"\",OFFSET('Smelter Look-up'!$H$4,$V2292-4,0))","v":""},{"$f":"IF(ISERROR($V2292),\"\",OFFSET('Smelter Look-up'!$I$4,$V2292-4,0))","v":""},{"$nulls":7},{"$f":"IF(ISERROR($V2292),\"\",OFFSET('Smelter Look-up'!$C$4,$V2292-4,0)&\"\")","v":""},"",{"$f":"IF(B2292=\"\",\"\",IF(ISERROR(MATCH($J2292,SorP!$B$1:$B$5661,0)),\"\",INDIRECT(\"'SorP'!$A$\"&MATCH($J2292,SorP!$B$1:$B$5661,0))))","v":""},null,{"$f":"IF(C2292=\"\",NA(),MATCH($B2292&$C2292,'Smelter Look-up'!$J:$J,0))","v":{"$error":"#N/A"}},null,0,null,null,null,""]
[null,{"$f":"IF(LEN(A2293)=0,\"\",INDEX('Smelter Look-up'!$A:$A,MATCH($A2293,'Smelter Look-up'!$E:$E,0)))","v":""},{"$f":"IF(LEN(A2293)=0,\"\",INDEX('Smelter Look-up'!$C:$C,MATCH($A2293,'Smelter Look-up'!$E:$E,0)))","v":""},null,{"$f":"IF(ISERROR($V2293),\"\",OFFSET('Smelter Look-up'!$D$4,$V2293-4,0)&\"\")","v":""},{"$f":"IF(ISERROR($V2293),\"\",OFFSET('Smelter Look-up'!$E$4,$V2293-4,0))","v":""},{"$f":"IF(C2293=$X$4,\"Enter smelter details\",IF(ISERROR($V2293),\"\",OFFSET('Smelter Look-up'!$F$4,$V2293-4,0)))","v":""},{"$f":"IF(ISERROR($V2293),\"\",OFFSET('Smelter Look-up'!$G$4,$V2293-4,0))","v":""},{"$f":"IF(ISERROR($V2293),\"\",OFFSET('Smelter Look-up'!$H$4,$V2293-4,0))","v":""},{"$f":"IF(ISERROR($V2293),\"\",OFFSET('Smelter Look-up'!$I$4,$V2293-4,0))","v":""},{"$nulls":7},{"$f":"IF(ISERROR($V2293),\"\",OFFSET('Smelter Look-up'!$C$4,$V2293-4,0)&\"\")","v":""},"",{"$f":"IF(B2293=\"\",\"\",IF(ISERROR(MATCH($J2293,SorP!$B$1:$B$5661,0)),\"\",INDIRECT(\"'SorP'!$A$\"&MATCH($J2293,SorP!$B$1:$B$5661,0))))","v":""},null,{"$f":"IF(C2293=\"\",NA(),MATCH($B2293&$C2293,'Smelter Look-up'!$J:$J,0))","v":{"$error":"#N/A"}},null,0,null,null,null,""]
[null,{"$f":"IF(LEN(A2294)=0,\"\",INDEX('Smelter Look-up'!$A:$A,MATCH($A2294,'Smelter Look-up'!$E:$E,0)))","v":""},{"$f":"IF(LEN(A2294)=0,\"\",INDEX('Smelter Look-up'!$C:$C,MATCH($A2294,'Smelter Look-up'!$E:$E,0)))","v":""},null,{"$f":"IF(ISERROR($V2294),\"\",OFFSET('Smelter Look-up'!$D$4,$V2294-4,0)&\"\")","v":""},{"$f":"IF(ISERROR($V2294),\"\",OFFSET('Smelter Look-up'!$E$4,$V2294-4,0))","v":""},{"$f":"IF(C2294=$X$4,\"Enter smelter details\",IF(ISERROR($V2294),\"\",OFFSET('Smelter Look-up'!$F$4,$V2294-4,0)))","v":""},{"$f":"IF(ISERROR($V2294),\"\",OFFSET('Smelter Look-up'!$G$4,$V2294-4,0))","v":""},{"$f":"IF(ISERROR($V2294),\"\",OFFSET('Smelter Look-up'!$H$4,$V2294-4,0))","v":""},{"$f":"IF(ISERROR($V2294),\"\",OFFSET('Smelter Look-up'!$I$4,$V2294-4,0))","v":""},{"$nulls":7},{"$f":"IF(ISERROR($V2294),\"\",OFFSET('Smelter Look-up'!$C$4,$V2294-4,0)&\"\")","v":""},"",{"$f":"IF(B2294=\"\",\"\",IF(ISERROR(MATCH($J2294,SorP!$B$1:$B$5661,0)),\"\",INDIRECT(\"'SorP'!$A$\"&MATCH($J2294,SorP!$B$1:$B$5661,0))))","v":""},null,{"$f":"IF(C2294=\"\",NA(),MATCH($B2294&$C2294,'Smelter Look-up'!$J:$J,0))","v":{"$error":"#N/A"}},null,0,null,null,null,""]
[null,{"$f":"IF(LEN(A2295)=0,\"\",INDEX('Smelter Look-up'!$A:$A,MATCH($A2295,'Smelter Look-up'!$E:$E,0)))","v":""},{"$f":"IF(LEN(A2295)=0,\"\",INDEX('Smelter Look-up'!$C:$C,MATCH($A2295,'Smelter Look-up'!$E:$E,0)))","v":""},null,{"$f":"IF(ISERROR($V2295),\"\",OFFSET('Smelter Look-up'!$D$4,$V2295-4,0)&\"\")","v":""},{"$f":"IF(ISERROR($V2295),\"\",OFFSET('Smelter Look-up'!$E$4,$V2295-4,0))","v":""},{"$f":"IF(C2295=$X$4,\"Enter smelter details\",IF(ISERROR($V2295),\"\",OFFSET('Smelter Look-up'!$F$4,$V2295-4,0)))","v":""},{"$f":"IF(ISERROR($V2295),\"\",OFFSET('Smelter Look-up'!$G$4,$V2295-4,0))","v":""},{"$f":"IF(ISERROR($V2295),\"\",OFFSET('Smelter Look-up'!$H$4,$V2295-4,0))","v":""},{"$f":"IF(ISERROR($V2295),\"\",OFFSET('Smelter Look-up'!$I$4,$V2295-4,0))","v":""},{"$nulls":7},{"$f":"IF(ISERROR($V2295),\"\",OFFSET('Smelter Look-up'!$C$4,$V2295-4,0)&\"\")","v":""},"",{"$f":"IF(B2295=\"\",\"\",IF(ISERROR(MATCH($J2295,SorP!$B$1:$B$5661,0)),\"\",INDIRECT(\"'SorP'!$A$\"&MATCH($J2295,SorP!$B$1:$B$5661,0))))","v":""},null,{"$f":"IF(C2295=\"\",NA(),MATCH($B2295&$C2295,'Smelter Look-up'!$J:$J,0))","v":{"$error":"#N/A"}},null,0,null,null,null,""]
[null,{"$f":"IF(LEN(A2296)=0,\"\",INDEX('Smelter Look-up'!$A:$A,MATCH($A2296,'Smelter Look-up'!$E:$E,0)))","v":""},{"$f":"IF(LEN(A2296)=0,\"\",INDEX('Smelter Look-up'!$C:$C,MATCH($A2296,'Smelter Look-up'!$E:$E,0)))","v":""},null,{"$f":"IF(ISERROR($V2296),\"\",OFFSET('Smelter Look-up'!$D$4,$V2296-4,0)&\"\")","v":""},{"$f":"IF(ISERROR($V2296),\"\",OFFSET('Smelter Look-up'!$E$4,$V2296-4,0))","v":""},{"$f":"IF(C2296=$X$4,\"Enter smelter details\",IF(ISERROR($V2296),\"\",OFFSET('Smelter Look-up'!$F$4,$V2296-4,0)))","v":""},{"$f":"IF(ISERROR($V2296),\"\",OFFSET('Smelter Look-up'!$G$4,$V2296-4,0))","v":""},{"$f":"IF(ISERROR($V2296),\"\",OFFSET('Smelter Look-up'!$H$4,$V2296-4,0))","v":""},{"$f":"IF(ISERROR($V2296),\"\",OFFSET('Smelter Look-up'!$I$4,$V2296-4,0))","v":""},{"$nulls":7},{"$f":"IF(ISERROR($V2296),\"\",OFFSET('Smelter Look-up'!$C$4,$V2296-4,0)&\"\")","v":""},"",{"$f":"IF(B2296=\"\",\"\",IF(ISERROR(MATCH($J2296,SorP!$B$1:$B$5661,0)),\"\",INDIRECT(\"'SorP'!$A$\"&MATCH($J2296,SorP!$B$1:$B$5661,0))))","v":""},null,{"$f":"IF(C2296=\"\",NA(),MATCH($B2296&$C2296,'Smelter Look-up'!$J:$J,0))","v":{"$error":"#N/A"}},null,0,null,null,null,""]
[null,{"$f":"IF(LEN(A2297)=0,\"\",INDEX('Smelter Look-up'!$A:$A,MATCH($A2297,'Smelter Look-up'!$E:$E,0)))","v":""},{"$f":"IF(LEN(A2297)=0,\"\",INDEX('Smelter Look-up'!$C:$C,MATCH($A2297,'Smelter Look-up'!$E:$E,0)))","v":""},null,{"$f":"IF(ISERROR($V2297),\"\",OFFSET('Smelter Look-up'!$D$4,$V2297-4,0)&\"\")","v":""},{"$f":"IF(ISERROR($V2297),\"\",OFFSET('Smelter Look-up'!$E$4,$V2297-4,0))","v":""},{"$f":"IF(C2297=$X$4,\"Enter smelter details\",IF(ISERROR($V2297),\"\",OFFSET('Smelter Look-up'!$F$4,$V2297-4,0)))","v":""},{"$f":"IF(ISERROR($V2297),\"\",OFFSET('Smelter Look-up'!$G$4,$V2297-4,0))","v":""},{"$f":"IF(ISERROR($V2297),\"\",OFFSET('Smelter Look-up'!$H$4,$V2297-4,0))","v":""},{"$f":"IF(ISERROR($V2297),\"\",OFFSET('Smelter Look-up'!$I$4,$V2297-4,0))","v":""},{"$nulls":7},{"$f":"IF(ISERROR($V2297),\"\",OFFSET('Smelter Look-up'!$C$4,$V2297-4,0)&\"\")","v":""},"",{"$f":"IF(B2297=\"\",\"\",IF(ISERROR(MATCH($J2297,SorP!$B$1:$B$5661,0)),\"\",INDIRECT(\"'SorP'!$A$\"&MATCH($J2297,SorP!$B$1:$B$5661,0))))","v":""},null,{"$f":"IF(C2297=\"\",NA(),MATCH($B2297&$C2297,'Smelter Look-up'!$J:$J,0))","v":{"$error":"#N/A"}},null,0,null,null,null,""]
[null,{"$f":"IF(LEN(A2298)=0,\"\",INDEX('Smelter Look-up'!$A:$A,MATCH($A2298,'Smelter Look-up'!$E:$E,0)))","v":""},{"$f":"IF(LEN(A2298)=0,\"\",INDEX('Smelter Look-up'!$C:$C,MATCH($A2298,'Smelter Look-up'!$E:$E,0)))","v":""},null,{"$f":"IF(ISERROR($V2298),\"\",OFFSET('Smelter Look-up'!$D$4,$V2298-4,0)&\"\")","v":""},{"$f":"IF(ISERROR($V2298),\"\",OFFSET('Smelter Look-up'!$E$4,$V2298-4,0))","v":""},{"$f":"IF(C2298=$X$4,\"Enter smelter details\",IF(ISERROR($V2298),\"\",OFFSET('Smelter Look-up'!$F$4,$V2298-4,0)))","v":""},{"$f":"IF(ISERROR($V2298),\"\",OFFSET('Smelter Look-up'!$G$4,$V2298-4,0))","v":""},{"$f":"IF(ISERROR($V2298),\"\",OFFSET('Smelter Look-up'!$H$4,$V2298-4,0))","v":""},{"$f":"IF(ISERROR($V2298),\"\",OFFSET('Smelter Look-up'!$I$4,$V2298-4,0))","v":""},{"$nulls":7},{"$f":"IF(ISERROR($V2298),\"\",OFFSET('Smelter Look-up'!$C$4,$V2298-4,0)&\"\")","v":""},"",{"$f":"IF(B2298=\"\",\"\",IF(ISERROR(MATCH($J2298,SorP!$B$1:$B$5661,0)),\"\",INDIRECT(\"'SorP'!$A$\"&MATCH($J2298,SorP!$B$1:$B$5661,0))))","v":""},null,{"$f":"IF(C2298=\"\",NA(),MATCH($B2298&$C2298,'Smelter Look-up'!$J:$J,0))","v":{"$error":"#N/A"}},null,0,null,null,null,""]
[null,{"$f":"IF(LEN(A2299)=0,\"\",INDEX('Smelter Look-up'!$A:$A,MATCH($A2299,'Smelter Look-up'!$E:$E,0)))","v":""},{"$f":"IF(LEN(A2299)=0,\"\",INDEX('Smelter Look-up'!$C:$C,MATCH($A2299,'Smelter Look-up'!$E:$E,0)))","v":""},null,{"$f":"IF(ISERROR($V2299),\"\",OFFSET('Smelter Look-up'!$D$4,$V2299-4,0)&\"\")","v":""},{"$f":"IF(ISERROR($V2299),\"\",OFFSET('Smelter Look-up'!$E$4,$V2299-4,0))","v":""},{"$f":"IF(C2299=$X$4,\"Enter smelter details\",IF(ISERROR($V2299),\"\",OFFSET('Smelter Look-up'!$F$4,$V2299-4,0)))","v":""},{"$f":"IF(ISERROR($V2299),\"\",OFFSET('Smelter Look-up'!$G$4,$V2299-4,0))","v":""},{"$f":"IF(ISERROR($V2299),\"\",OFFSET('Smelter Look-up'!$H$4,$V2299-4,0))","v":""},{"$f":"IF(ISERROR($V2299),\"\",OFFSET('Smelter Look-up'!$I$4,$V2299-4,0))","v":""},{"$nulls":7},{"$f":"IF(ISERROR($V2299),\"\",OFFSET('Smelter Look-up'!$C$4,$V2299-4,0)&\"\")","v":""},"",{"$f":"IF(B2299=\"\",\"\",IF(ISERROR(MATCH($J2299,SorP!$B$1:$B$5661,0)),\"\",INDIRECT(\"'SorP'!$A$\"&MATCH($J2299,SorP!$B$1:$B$5661,0))))","v":""},null,{"$f":"IF(C2299=\"\",NA(),MATCH($B2299&$C2299,'Smelter Look-up'!$J:$J,0))","v":{"$error":"#N/A"}},null,0,null,null,null,""]
[null,{"$f":"IF(LEN(A2300)=0,\"\",INDEX('Smelter Look-up'!$A:$A,MATCH($A2300,'Smelter Look-up'!$E:$E,0)))","v":""},{"$f":"IF(LEN(A2300)=0,\"\",INDEX('Smelter Look-up'!$C:$C,MATCH($A2300,'Smelter Look-up'!$E:$E,0)))","v":""},null,{"$f":"IF(ISERROR($V2300),\"\",OFFSET('Smelter Look-up'!$D$4,$V2300-4,0)&\"\")","v":""},{"$f":"IF(ISERROR($V2300),\"\",OFFSET('Smelter Look-up'!$E$4,$V2300-4,0))","v":""},{"$f":"IF(C2300=$X$4,\"Enter smelter details\",IF(ISERROR($V2300),\"\",OFFSET('Smelter Look-up'!$F$4,$V2300-4,0)))","v":""},{"$f":"IF(ISERROR($V2300),\"\",OFFSET('Smelter Look-up'!$G$4,$V2300-4,0))","v":""},{"$f":"IF(ISERROR($V2300),\"\",OFFSET('Smelter Look-up'!$H$4,$V2300-4,0))","v":""},{"$f":"IF(ISERROR($V2300),\"\",OFFSET('Smelter Look-up'!$I$4,$V2300-4,0))","v":""},{"$nulls":7},{"$f":"IF(ISERROR($V2300),\"\",OFFSET('Smelter Look-up'!$C$4,$V2300-4,0)&\"\")","v":""},"",{"$f":"IF(B2300=\"\",\"\",IF(ISERROR(MATCH($J2300,SorP!$B$1:$B$5661,0)),\"\",INDIRECT(\"'SorP'!$A$\"&MATCH($J2300,SorP!$B$1:$B$5661,0))))","v":""},null,{"$f":"IF(C2300=\"\",NA(),MATCH($B2300&$C2300,'Smelter Look-up'!$J:$J,0))","v":{"$error":"#N/A"}},null,0,null,null,null,""]
[null,{"$f":"IF(LEN(A2301)=0,\"\",INDEX('Smelter Look-up'!$A:$A,MATCH($A2301,'Smelter Look-up'!$E:$E,0)))","v":""},{"$f":"IF(LEN(A2301)=0,\"\",INDEX('Smelter Look-up'!$C:$C,MATCH($A2301,'Smelter Look-up'!$E:$E,0)))","v":""},null,{"$f":"IF(ISERROR($V2301),\"\",OFFSET('Smelter Look-up'!$D$4,$V2301-4,0)&\"\")","v":""},{"$f":"IF(ISERROR($V2301),\"\",OFFSET('Smelter Look-up'!$E$4,$V2301-4,0))","v":""},{"$f":"IF(C2301=$X$4,\"Enter smelter details\",IF(ISERROR($V2301),\"\",OFFSET('Smelter Look-up'!$F$4,$V2301-4,0)))","v":""},{"$f":"IF(ISERROR($V2301),\"\",OFFSET('Smelter Look-up'!$G$4,$V2301-4,0))","v":""},{"$f":"IF(ISERROR($V2301),\"\",OFFSET('Smelter Look-up'!$H$4,$V2301-4,0))","v":""},{"$f":"IF(ISERROR($V2301),\"\",OFFSET('Smelter Look-up'!$I$4,$V2301-4,0))","v":""},{"$nulls":7},{"$f":"IF(ISERROR($V2301),\"\",OFFSET('Smelter Look-up'!$C$4,$V2301-4,0)&\"\")","v":""},"",{"$f":"IF(B2301=\"\",\"\",IF(ISERROR(MATCH($J2301,SorP!$B$1:$B$5661,0)),\"\",INDIRECT(\"'SorP'!$A$\"&MATCH($J2301,SorP!$B$1:$B$5661,0))))","v":""},null,{"$f":"IF(C2301=\"\",NA(),MATCH($B2301&$C2301,'Smelter Look-up'!$J:$J,0))","v":{"$error":"#N/A"}},null,0,null,null,null,""]
[null,{"$f":"IF(LEN(A2302)=0,\"\",INDEX('Smelter Look-up'!$A:$A,MATCH($A2302,'Smelter Look-up'!$E:$E,0)))","v":""},{"$f":"IF(LEN(A2302)=0,\"\",INDEX('Smelter Look-up'!$C:$C,MATCH($A2302,'Smelter Look-up'!$E:$E,0)))","v":""},null,{"$f":"IF(ISERROR($V2302),\"\",OFFSET('Smelter Look-up'!$D$4,$V2302-4,0)&\"\")","v":""},{"$f":"IF(ISERROR($V2302),\"\",OFFSET('Smelter Look-up'!$E$4,$V2302-4,0))","v":""},{"$f":"IF(C2302=$X$4,\"Enter smelter details\",IF(ISERROR($V2302),\"\",OFFSET('Smelter Look-up'!$F$4,$V2302-4,0)))","v":""},{"$f":"IF(ISERROR($V2302),\"\",OFFSET('Smelter Look-up'!$G$4,$V2302-4,0))","v":""},{"$f":"IF(ISERROR($V2302),\"\",OFFSET('Smelter Look-up'!$H$4,$V2302-4,0))","v":""},{"$f":"IF(ISERROR($V2302),\"\",OFFSET('Smelter Look-up'!$I$4,$V2302-4,0))","v":""},{"$nulls":7},{"$f":"IF(ISERROR($V2302),\"\",OFFSET('Smelter Look-up'!$C$4,$V2302-4,0)&\"\")","v":""},"",{"$f":"IF(B2302=\"\",\"\",IF(ISERROR(MATCH($J2302,SorP!$B$1:$B$5661,0)),\"\",INDIRECT(\"'SorP'!$A$\"&MATCH($J2302,SorP!$B$1:$B$5661,0))))","v":""},null,{"$f":"IF(C2302=\"\",NA(),MATCH($B2302&$C2302,'Smelter Look-up'!$J:$J,0))","v":{"$error":"#N/A"}},null,0,null,null,null,""]
[null,{"$f":"IF(LEN(A2303)=0,\"\",INDEX('Smelter Look-up'!$A:$A,MATCH($A2303,'Smelter Look-up'!$E:$E,0)))","v":""},{"$f":"IF(LEN(A2303)=0,\"\",INDEX('Smelter Look-up'!$C:$C,MATCH($A2303,'Smelter Look-up'!$E:$E,0)))","v":""},null,{"$f":"IF(ISERROR($V2303),\"\",OFFSET('Smelter Look-up'!$D$4,$V2303-4,0)&\"\")","v":""},{"$f":"IF(ISERROR($V2303),\"\",OFFSET('Smelter Look-up'!$E$4,$V2303-4,0))","v":""},{"$f":"IF(C2303=$X$4,\"Enter smelter details\",IF(ISERROR($V2303),\"\",OFFSET('Smelter Look-up'!$F$4,$V2303-4,0)))","v":""},{"$f":"IF(ISERROR($V2303),\"\",OFFSET('Smelter Look-up'!$G$4,$V2303-4,0))","v":""},{"$f":"IF(ISERROR($V2303),\"\",OFFSET('Smelter Look-up'!$H$4,$V2303-4,0))","v":""},{"$f":"IF(ISERROR($V2303),\"\",OFFSET('Smelter Look-up'!$I$4,$V2303-4,0))","v":""},{"$nulls":7},{"$f":"IF(ISERROR($V2303),\"\",OFFSET('Smelter Look-up'!$C$4,$V2303-4,0)&\"\")","v":""},"",{"$f":"IF(B2303=\"\",\"\",IF(ISERROR(MATCH($J2303,SorP!$B$1:$B$5661,0)),\"\",INDIRECT(\"'SorP'!$A$\"&MATCH($J2303,SorP!$B$1:$B$5661,0))))","v":""},null,{"$f":"IF(C2303=\"\",NA(),MATCH($B2303&$C2303,'Smelter Look-up'!$J:$J,0))","v":{"$error":"#N/A"}},null,{"$f":"IF(AND(C2303=\"Smelter not listed\",OR(LEN(D2303)=0,LEN(E2303)=0)),1,0)","v":0},null,null,null,{"$f":"B2303&C2303","v":""}]
[null,{"$f":"IF(LEN(A2304)=0,\"\",INDEX('Smelter Look-up'!$A:$A,MATCH($A2304,'Smelter Look-up'!$E:$E,0)))","v":""},{"$f":"IF(LEN(A2304)=0,\"\",INDEX('Smelter Look-up'!$C:$C,MATCH($A2304,'Smelter Look-up'!$E:$E,0)))","v":""},null,{"$f":"IF(ISERROR($V2304),\"\",OFFSET('Smelter Look-up'!$D$4,$V2304-4,0)&\"\")","v":""},{"$f":"IF(ISERROR($V2304),\"\",OFFSET('Smelter Look-up'!$E$4,$V2304-4,0))","v":""},{"$f":"IF(C2304=$X$4,\"Enter smelter details\",IF(ISERROR($V2304),\"\",OFFSET('Smelter Look-up'!$F$4,$V2304-4,0)))","v":""},{"$f":"IF(ISERROR($V2304),\"\",OFFSET('Smelter Look-up'!$G$4,$V2304-4,0))","v":""},{"$f":"IF(ISERROR($V2304),\"\",OFFSET('Smelter Look-up'!$H$4,$V2304-4,0))","v":""},{"$f":"IF(ISERROR($V2304),\"\",OFFSET('Smelter Look-up'!$I$4,$V2304-4,0))","v":""},{"$nulls":7},{"$f":"IF(ISERROR($V2304),\"\",OFFSET('Smelter Look-up'!$C$4,$V2304-4,0)&\"\")","v":""},{"$f":"IF(B2304=\"\",\"\",IF(ISERROR(MATCH($E2304,CL,0)),\"Unknown\",INDIRECT(\"'C'!$A$\"&MATCH($E2304,CL,0)+1)))","v":""},{"$f":"IF(B2304=\"\",\"\",IF(ISERROR(MATCH($J2304,SorP!$B$1:$B$5661,0)),\"\",INDIRECT(\"'SorP'!$A$\"&MATCH($J2304,SorP!$B$1:$B$5661,0))))","v":""},null,{"$f":"IF(C2304=\"\",NA(),MATCH($B2304&$C2304,'Smelter Look-up'!$J:$J,0))","v":{"$error":"#N/A"}},null,0,null,null,null,""]
[null,{"$f":"IF(LEN(A2305)=0,\"\",INDEX('Smelter Look-up'!$A:$A,MATCH($A2305,'Smelter Look-up'!$E:$E,0)))","v":""},{"$f":"IF(LEN(A2305)=0,\"\",INDEX('Smelter Look-up'!$C:$C,MATCH($A2305,'Smelter Look-up'!$E:$E,0)))","v":""},null,{"$f":"IF(ISERROR($V2305),\"\",OFFSET('Smelter Look-up'!$D$4,$V2305-4,0)&\"\")","v":""},{"$f":"IF(ISERROR($V2305),\"\",OFFSET('Smelter Look-up'!$E$4,$V2305-4,0))","v":""},{"$f":"IF(C2305=$X$4,\"Enter smelter details\",IF(ISERROR($V2305),\"\",OFFSET('Smelter Look-up'!$F$4,$V2305-4,0)))","v":""},{"$f":"IF(ISERROR($V2305),\"\",OFFSET('Smelter Look-up'!$G$4,$V2305-4,0))","v":""},{"$f":"IF(ISERROR($V2305),\"\",OFFSET('Smelter Look-up'!$H$4,$V2305-4,0))","v":""},{"$f":"IF(ISERROR($V2305),\"\",OFFSET('Smelter Look-up'!$I$4,$V2305-4,0))","v":""},{"$nulls":7},{"$f":"IF(ISERROR($V2305),\"\",OFFSET('Smelter Look-up'!$C$4,$V2305-4,0)&\"\")","v":""},"",{"$f":"IF(B2305=\"\",\"\",IF(ISERROR(MATCH($J2305,SorP!$B$1:$B$5661,0)),\"\",INDIRECT(\"'SorP'!$A$\"&MATCH($J2305,SorP!$B$1:$B$5661,0))))","v":""},null,{"$f":"IF(C2305=\"\",NA(),MATCH($B2305&$C2305,'Smelter Look-up'!$J:$J,0))","v":{"$error":"#N/A"}},null,0,null,null,null,""]
[null,{"$f":"IF(LEN(A2306)=0,\"\",INDEX('Smelter Look-up'!$A:$A,MATCH($A2306,'Smelter Look-up'!$E:$E,0)))","v":""},{"$f":"IF(LEN(A2306)=0,\"\",INDEX('Smelter Look-up'!$C:$C,MATCH($A2306,'Smelter Look-up'!$E:$E,0)))","v":""},null,{"$f":"IF(ISERROR($V2306),\"\",OFFSET('Smelter Look-up'!$D$4,$V2306-4,0)&\"\")","v":""},{"$f":"IF(ISERROR($V2306),\"\",OFFSET('Smelter Look-up'!$E$4,$V2306-4,0))","v":""},{"$f":"IF(C2306=$X$4,\"Enter smelter details\",IF(ISERROR($V2306),\"\",OFFSET('Smelter Look-up'!$F$4,$V2306-4,0)))","v":""},{"$f":"IF(ISERROR($V2306),\"\",OFFSET('Smelter Look-up'!$G$4,$V2306-4,0))","v":""},{"$f":"IF(ISERROR($V2306),\"\",OFFSET('Smelter Look-up'!$H$4,$V2306-4,0))","v":""},{"$f":"IF(ISERROR($V2306),\"\",OFFSET('Smelter Look-up'!$I$4,$V2306-4,0))","v":""},{"$nulls":7},{"$f":"IF(ISERROR($V2306),\"\",OFFSET('Smelter Look-up'!$C$4,$V2306-4,0)&\"\")","v":""},"",{"$f":"IF(B2306=\"\",\"\",IF(ISERROR(MATCH($J2306,SorP!$B$1:$B$5661,0)),\"\",INDIRECT(\"'SorP'!$A$\"&MATCH($J2306,SorP!$B$1:$B$5661,0))))","v":""},null,{"$f":"IF(C2306=\"\",NA(),MATCH($B2306&$C2306,'Smelter Look-up'!$J:$J,0))","v":{"$error":"#N/A"}},null,0,null,null,null,""]
[null,{"$f":"IF(LEN(A2307)=0,\"\",INDEX('Smelter Look-up'!$A:$A,MATCH($A2307,'Smelter Look-up'!$E:$E,0)))","v":""},{"$f":"IF(LEN(A2307)=0,\"\",INDEX('Smelter Look-up'!$C:$C,MATCH($A2307,'Smelter Look-up'!$E:$E,0)))","v":""},null,{"$f":"IF(ISERROR($V2307),\"\",OFFSET('Smelter Look-up'!$D$4,$V2307-4,0)&\"\")","v":""},{"$f":"IF(ISERROR($V2307),\"\",OFFSET('Smelter Look-up'!$E$4,$V2307-4,0))","v":""},{"$f":"IF(C2307=$X$4,\"Enter smelter details\",IF(ISERROR($V2307),\"\",OFFSET('Smelter Look-up'!$F$4,$V2307-4,0)))","v":""},{"$f":"IF(ISERROR($V2307),\"\",OFFSET('Smelter Look-up'!$G$4,$V2307-4,0))","v":""},{"$f":"IF(ISERROR($V2307),\"\",OFFSET('Smelter Look-up'!$H$4,$V2307-4,0))","v":""},{"$f":"IF(ISERROR($V2307),\"\",OFFSET('Smelter Look-up'!$I$4,$V2307-4,0))","v":""},{"$nulls":7},{"$f":"IF(ISERROR($V2307),\"\",OFFSET('Smelter Look-up'!$C$4,$V2307-4,0)&\"\")","v":""},"",{"$f":"IF(B2307=\"\",\"\",IF(ISERROR(MATCH($J2307,SorP!$B$1:$B$5661,0)),\"\",INDIRECT(\"'SorP'!$A$\"&MATCH($J2307,SorP!$B$1:$B$5661,0))))","v":""},null,{"$f":"IF(C2307=\"\",NA(),MATCH($B2307&$C2307,'Smelter Look-up'!$J:$J,0))","v":{"$error":"#N/A"}},null,0,null,null,null,""]
[null,{"$f":"IF(LEN(A2308)=0,\"\",INDEX('Smelter Look-up'!$A:$A,MATCH($A2308,'Smelter Look-up'!$E:$E,0)))","v":""},{"$f":"IF(LEN(A2308)=0,\"\",INDEX('Smelter Look-up'!$C:$C,MATCH($A2308,'Smelter Look-up'!$E:$E,0)))","v":""},null,{"$f":"IF(ISERROR($V2308),\"\",OFFSET('Smelter Look-up'!$D$4,$V2308-4,0)&\"\")","v":""},{"$f":"IF(ISERROR($V2308),\"\",OFFSET('Smelter Look-up'!$E$4,$V2308-4,0))","v":""},{"$f":"IF(C2308=$X$4,\"Enter smelter details\",IF(ISERROR($V2308),\"\",OFFSET('Smelter Look-up'!$F$4,$V2308-4,0)))","v":""},{"$f":"IF(ISERROR($V2308),\"\",OFFSET('Smelter Look-up'!$G$4,$V2308-4,0))","v":""},{"$f":"IF(ISERROR($V2308),\"\",OFFSET('Smelter Look-up'!$H$4,$V2308-4,0))","v":""},{"$f":"IF(ISERROR($V2308),\"\",OFFSET('Smelter Look-up'!$I$4,$V2308-4,0))","v":""},{"$nulls":7},{"$f":"IF(ISERROR($V2308),\"\",OFFSET('Smelter Look-up'!$C$4,$V2308-4,0)&\"\")","v":""},"",{"$f":"IF(B2308=\"\",\"\",IF(ISERROR(MATCH($J2308,SorP!$B$1:$B$5661,0)),\"\",INDIRECT(\"'SorP'!$A$\"&MATCH($J2308,SorP!$B$1:$B$5661,0))))","v":""},null,{"$f":"IF(C2308=\"\",NA(),MATCH($B2308&$C2308,'Smelter Look-up'!$J:$J,0))","v":{"$error":"#N/A"}},null,0,null,null,null,""]
[null,{"$f":"IF(LEN(A2309)=0,\"\",INDEX('Smelter Look-up'!$A:$A,MATCH($A2309,'Smelter Look-up'!$E:$E,0)))","v":""},{"$f":"IF(LEN(A2309)=0,\"\",INDEX('Smelter Look-up'!$C:$C,MATCH($A2309,'Smelter Look-up'!$E:$E,0)))","v":""},null,{"$f":"IF(ISERROR($V2309),\"\",OFFSET('Smelter Look-up'!$D$4,$V2309-4,0)&\"\")","v":""},{"$f":"IF(ISERROR($V2309),\"\",OFFSET('Smelter Look-up'!$E$4,$V2309-4,0))","v":""},{"$f":"IF(C2309=$X$4,\"Enter smelter details\",IF(ISERROR($V2309),\"\",OFFSET('Smelter Look-up'!$F$4,$V2309-4,0)))","v":""},{"$f":"IF(ISERROR($V2309),\"\",OFFSET('Smelter Look-up'!$G$4,$V2309-4,0))","v":""},{"$f":"IF(ISERROR($V2309),\"\",OFFSET('Smelter Look-up'!$H$4,$V2309-4,0))","v":""},{"$f":"IF(ISERROR($V2309),\"\",OFFSET('Smelter Look-up'!$I$4,$V2309-4,0))","v":""},{"$nulls":7},{"$f":"IF(ISERROR($V2309),\"\",OFFSET('Smelter Look-up'!$C$4,$V2309-4,0)&\"\")","v":""},"",{"$f":"IF(B2309=\"\",\"\",IF(ISERROR(MATCH($J2309,SorP!$B$1:$B$5661,0)),\"\",INDIRECT(\"'SorP'!$A$\"&MATCH($J2309,SorP!$B$1:$B$5661,0))))","v":""},null,{"$f":"IF(C2309=\"\",NA(),MATCH($B2309&$C2309,'Smelter Look-up'!$J:$J,0))","v":{"$error":"#N/A"}},null,0,null,null,null,""]
[null,{"$f":"IF(LEN(A2310)=0,\"\",INDEX('Smelter Look-up'!$A:$A,MATCH($A2310,'Smelter Look-up'!$E:$E,0)))","v":""},{"$f":"IF(LEN(A2310)=0,\"\",INDEX('Smelter Look-up'!$C:$C,MATCH($A2310,'Smelter Look-up'!$E:$E,0)))","v":""},null,{"$f":"IF(ISERROR($V2310),\"\",OFFSET('Smelter Look-up'!$D$4,$V2310-4,0)&\"\")","v":""},{"$f":"IF(ISERROR($V2310),\"\",OFFSET('Smelter Look-up'!$E$4,$V2310-4,0))","v":""},{"$f":"IF(C2310=$X$4,\"Enter smelter details\",IF(ISERROR($V2310),\"\",OFFSET('Smelter Look-up'!$F$4,$V2310-4,0)))","v":""},{"$f":"IF(ISERROR($V2310),\"\",OFFSET('Smelter Look-up'!$G$4,$V2310-4,0))","v":""},{"$f":"IF(ISERROR($V2310),\"\",OFFSET('Smelter Look-up'!$H$4,$V2310-4,0))","v":""},{"$f":"IF(ISERROR($V2310),\"\",OFFSET('Smelter Look-up'!$I$4,$V2310-4,0))","v":""},{"$nulls":7},{"$f":"IF(ISERROR($V2310),\"\",OFFSET('Smelter Look-up'!$C$4,$V2310-4,0)&\"\")","v":""},"",{"$f":"IF(B2310=\"\",\"\",IF(ISERROR(MATCH($J2310,SorP!$B$1:$B$5661,0)),\"\",INDIRECT(\"'SorP'!$A$\"&MATCH($J2310,SorP!$B$1:$B$5661,0))))","v":""},null,{"$f":"IF(C2310=\"\",NA(),MATCH($B2310&$C2310,'Smelter Look-up'!$J:$J,0))","v":{"$error":"#N/A"}},null,0,null,null,null,""]
[null,{"$f":"IF(LEN(A2311)=0,\"\",INDEX('Smelter Look-up'!$A:$A,MATCH($A2311,'Smelter Look-up'!$E:$E,0)))","v":""},{"$f":"IF(LEN(A2311)=0,\"\",INDEX('Smelter Look-up'!$C:$C,MATCH($A2311,'Smelter Look-up'!$E:$E,0)))","v":""},null,{"$f":"IF(ISERROR($V2311),\"\",OFFSET('Smelter Look-up'!$D$4,$V2311-4,0)&\"\")","v":""},{"$f":"IF(ISERROR($V2311),\"\",OFFSET('Smelter Look-up'!$E$4,$V2311-4,0))","v":""},{"$f":"IF(C2311=$X$4,\"Enter smelter details\",IF(ISERROR($V2311),\"\",OFFSET('Smelter Look-up'!$F$4,$V2311-4,0)))","v":""},{"$f":"IF(ISERROR($V2311),\"\",OFFSET('Smelter Look-up'!$G$4,$V2311-4,0))","v":""},{"$f":"IF(ISERROR($V2311),\"\",OFFSET('Smelter Look-up'!$H$4,$V2311-4,0))","v":""},{"$f":"IF(ISERROR($V2311),\"\",OFFSET('Smelter Look-up'!$I$4,$V2311-4,0))","v":""},{"$nulls":7},{"$f":"IF(ISERROR($V2311),\"\",OFFSET('Smelter Look-up'!$C$4,$V2311-4,0)&\"\")","v":""},"",{"$f":"IF(B2311=\"\",\"\",IF(ISERROR(MATCH($J2311,SorP!$B$1:$B$5661,0)),\"\",INDIRECT(\"'SorP'!$A$\"&MATCH($J2311,SorP!$B$1:$B$5661,0))))","v":""},null,{"$f":"IF(C2311=\"\",NA(),MATCH($B2311&$C2311,'Smelter Look-up'!$J:$J,0))","v":{"$error":"#N/A"}},null,0,null,null,null,""]
[null,{"$f":"IF(LEN(A2312)=0,\"\",INDEX('Smelter Look-up'!$A:$A,MATCH($A2312,'Smelter Look-up'!$E:$E,0)))","v":""},{"$f":"IF(LEN(A2312)=0,\"\",INDEX('Smelter Look-up'!$C:$C,MATCH($A2312,'Smelter Look-up'!$E:$E,0)))","v":""},null,{"$f":"IF(ISERROR($V2312),\"\",OFFSET('Smelter Look-up'!$D$4,$V2312-4,0)&\"\")","v":""},{"$f":"IF(ISERROR($V2312),\"\",OFFSET('Smelter Look-up'!$E$4,$V2312-4,0))","v":""},{"$f":"IF(C2312=$X$4,\"Enter smelter details\",IF(ISERROR($V2312),\"\",OFFSET('Smelter Look-up'!$F$4,$V2312-4,0)))","v":""},{"$f":"IF(ISERROR($V2312),\"\",OFFSET('Smelter Look-up'!$G$4,$V2312-4,0))","v":""},{"$f":"IF(ISERROR($V2312),\"\",OFFSET('Smelter Look-up'!$H$4,$V2312-4,0))","v":""},{"$f":"IF(ISERROR($V2312),\"\",OFFSET('Smelter Look-up'!$I$4,$V2312-4,0))","v":""},{"$nulls":7},{"$f":"IF(ISERROR($V2312),\"\",OFFSET('Smelter Look-up'!$C$4,$V2312-4,0)&\"\")","v":""},"",{"$f":"IF(B2312=\"\",\"\",IF(ISERROR(MATCH($J2312,SorP!$B$1:$B$5661,0)),\"\",INDIRECT(\"'SorP'!$A$\"&MATCH($J2312,SorP!$B$1:$B$5661,0))))","v":""},null,{"$f":"IF(C2312=\"\",NA(),MATCH($B2312&$C2312,'Smelter Look-up'!$J:$J,0))","v":{"$error":"#N/A"}},null,0,null,null,null,""]
[null,{"$f":"IF(LEN(A2313)=0,\"\",INDEX('Smelter Look-up'!$A:$A,MATCH($A2313,'Smelter Look-up'!$E:$E,0)))","v":""},{"$f":"IF(LEN(A2313)=0,\"\",INDEX('Smelter Look-up'!$C:$C,MATCH($A2313,'Smelter Look-up'!$E:$E,0)))","v":""},null,{"$f":"IF(ISERROR($V2313),\"\",OFFSET('Smelter Look-up'!$D$4,$V2313-4,0)&\"\")","v":""},{"$f":"IF(ISERROR($V2313),\"\",OFFSET('Smelter Look-up'!$E$4,$V2313-4,0))","v":""},{"$f":"IF(C2313=$X$4,\"Enter smelter details\",IF(ISERROR($V2313),\"\",OFFSET('Smelter Look-up'!$F$4,$V2313-4,0)))","v":""},{"$f":"IF(ISERROR($V2313),\"\",OFFSET('Smelter Look-up'!$G$4,$V2313-4,0))","v":""},{"$f":"IF(ISERROR($V2313),\"\",OFFSET('Smelter Look-up'!$H$4,$V2313-4,0))","v":""},{"$f":"IF(ISERROR($V2313),\"\",OFFSET('Smelter Look-up'!$I$4,$V2313-4,0))","v":""},{"$nulls":7},{"$f":"IF(ISERROR($V2313),\"\",OFFSET('Smelter Look-up'!$C$4,$V2313-4,0)&\"\")","v":""},"",{"$f":"IF(B2313=\"\",\"\",IF(ISERROR(MATCH($J2313,SorP!$B$1:$B$5661,0)),\"\",INDIRECT(\"'SorP'!$A$\"&MATCH($J2313,SorP!$B$1:$B$5661,0))))","v":""},null,{"$f":"IF(C2313=\"\",NA(),MATCH($B2313&$C2313,'Smelter Look-up'!$J:$J,0))","v":{"$error":"#N/A"}},null,0,null,null,null,""]
[null,{"$f":"IF(LEN(A2314)=0,\"\",INDEX('Smelter Look-up'!$A:$A,MATCH($A2314,'Smelter Look-up'!$E:$E,0)))","v":""},{"$f":"IF(LEN(A2314)=0,\"\",INDEX('Smelter Look-up'!$C:$C,MATCH($A2314,'Smelter Look-up'!$E:$E,0)))","v":""},null,{"$f":"IF(ISERROR($V2314),\"\",OFFSET('Smelter Look-up'!$D$4,$V2314-4,0)&\"\")","v":""},{"$f":"IF(ISERROR($V2314),\"\",OFFSET('Smelter Look-up'!$E$4,$V2314-4,0))","v":""},{"$f":"IF(C2314=$X$4,\"Enter smelter details\",IF(ISERROR($V2314),\"\",OFFSET('Smelter Look-up'!$F$4,$V2314-4,0)))","v":""},{"$f":"IF(ISERROR($V2314),\"\",OFFSET('Smelter Look-up'!$G$4,$V2314-4,0))","v":""},{"$f":"IF(ISERROR($V2314),\"\",OFFSET('Smelter Look-up'!$H$4,$V2314-4,0))","v":""},{"$f":"IF(ISERROR($V2314),\"\",OFFSET('Smelter Look-up'!$I$4,$V2314-4,0))","v":""},{"$nulls":7},{"$f":"IF(ISERROR($V2314),\"\",OFFSET('Smelter Look-up'!$C$4,$V2314-4,0)&\"\")","v":""},"",{"$f":"IF(B2314=\"\",\"\",IF(ISERROR(MATCH($J2314,SorP!$B$1:$B$5661,0)),\"\",INDIRECT(\"'SorP'!$A$\"&MATCH($J2314,SorP!$B$1:$B$5661,0))))","v":""},null,{"$f":"IF(C2314=\"\",NA(),MATCH($B2314&$C2314,'Smelter Look-up'!$J:$J,0))","v":{"$error":"#N/A"}},null,0,null,null,null,""]
[null,{"$f":"IF(LEN(A2315)=0,\"\",INDEX('Smelter Look-up'!$A:$A,MATCH($A2315,'Smelter Look-up'!$E:$E,0)))","v":""},{"$f":"IF(LEN(A2315)=0,\"\",INDEX('Smelter Look-up'!$C:$C,MATCH($A2315,'Smelter Look-up'!$E:$E,0)))","v":""},null,{"$f":"IF(ISERROR($V2315),\"\",OFFSET('Smelter Look-up'!$D$4,$V2315-4,0)&\"\")","v":""},{"$f":"IF(ISERROR($V2315),\"\",OFFSET('Smelter Look-up'!$E$4,$V2315-4,0))","v":""},{"$f":"IF(C2315=$X$4,\"Enter smelter details\",IF(ISERROR($V2315),\"\",OFFSET('Smelter Look-up'!$F$4,$V2315-4,0)))","v":""},{"$f":"IF(ISERROR($V2315),\"\",OFFSET('Smelter Look-up'!$G$4,$V2315-4,0))","v":""},{"$f":"IF(ISERROR($V2315),\"\",OFFSET('Smelter Look-up'!$H$4,$V2315-4,0))","v":""},{"$f":"IF(ISERROR($V2315),\"\",OFFSET('Smelter Look-up'!$I$4,$V2315-4,0))","v":""},{"$nulls":7},{"$f":"IF(ISERROR($V2315),\"\",OFFSET('Smelter Look-up'!$C$4,$V2315-4,0)&\"\")","v":""},"",{"$f":"IF(B2315=\"\",\"\",IF(ISERROR(MATCH($J2315,SorP!$B$1:$B$5661,0)),\"\",INDIRECT(\"'SorP'!$A$\"&MATCH($J2315,SorP!$B$1:$B$5661,0))))","v":""},null,{"$f":"IF(C2315=\"\",NA(),MATCH($B2315&$C2315,'Smelter Look-up'!$J:$J,0))","v":{"$error":"#N/A"}},null,0,null,null,null,""]
[null,{"$f":"IF(LEN(A2316)=0,\"\",INDEX('Smelter Look-up'!$A:$A,MATCH($A2316,'Smelter Look-up'!$E:$E,0)))","v":""},{"$f":"IF(LEN(A2316)=0,\"\",INDEX('Smelter Look-up'!$C:$C,MATCH($A2316,'Smelter Look-up'!$E:$E,0)))","v":""},null,{"$f":"IF(ISERROR($V2316),\"\",OFFSET('Smelter Look-up'!$D$4,$V2316-4,0)&\"\")","v":""},{"$f":"IF(ISERROR($V2316),\"\",OFFSET('Smelter Look-up'!$E$4,$V2316-4,0))","v":""},{"$f":"IF(C2316=$X$4,\"Enter smelter details\",IF(ISERROR($V2316),\"\",OFFSET('Smelter Look-up'!$F$4,$V2316-4,0)))","v":""},{"$f":"IF(ISERROR($V2316),\"\",OFFSET('Smelter Look-up'!$G$4,$V2316-4,0))","v":""},{"$f":"IF(ISERROR($V2316),\"\",OFFSET('Smelter Look-up'!$H$4,$V2316-4,0))","v":""},{"$f":"IF(ISERROR($V2316),\"\",OFFSET('Smelter Look-up'!$I$4,$V2316-4,0))","v":""},{"$nulls":7},{"$f":"IF(ISERROR($V2316),\"\",OFFSET('Smelter Look-up'!$C$4,$V2316-4,0)&\"\")","v":""},"",{"$f":"IF(B2316=\"\",\"\",IF(ISERROR(MATCH($J2316,SorP!$B$1:$B$5661,0)),\"\",INDIRECT(\"'SorP'!$A$\"&MATCH($J2316,SorP!$B$1:$B$5661,0))))","v":""},null,{"$f":"IF(C2316=\"\",NA(),MATCH($B2316&$C2316,'Smelter Look-up'!$J:$J,0))","v":{"$error":"#N/A"}},null,0,null,null,null,""]
[null,{"$f":"IF(LEN(A2317)=0,\"\",INDEX('Smelter Look-up'!$A:$A,MATCH($A2317,'Smelter Look-up'!$E:$E,0)))","v":""},{"$f":"IF(LEN(A2317)=0,\"\",INDEX('Smelter Look-up'!$C:$C,MATCH($A2317,'Smelter Look-up'!$E:$E,0)))","v":""},null,{"$f":"IF(ISERROR($V2317),\"\",OFFSET('Smelter Look-up'!$D$4,$V2317-4,0)&\"\")","v":""},{"$f":"IF(ISERROR($V2317),\"\",OFFSET('Smelter Look-up'!$E$4,$V2317-4,0))","v":""},{"$f":"IF(C2317=$X$4,\"Enter smelter details\",IF(ISERROR($V2317),\"\",OFFSET('Smelter Look-up'!$F$4,$V2317-4,0)))","v":""},{"$f":"IF(ISERROR($V2317),\"\",OFFSET('Smelter Look-up'!$G$4,$V2317-4,0))","v":""},{"$f":"IF(ISERROR($V2317),\"\",OFFSET('Smelter Look-up'!$H$4,$V2317-4,0))","v":""},{"$f":"IF(ISERROR($V2317),\"\",OFFSET('Smelter Look-up'!$I$4,$V2317-4,0))","v":""},{"$nulls":7},{"$f":"IF(ISERROR($V2317),\"\",OFFSET('Smelter Look-up'!$C$4,$V2317-4,0)&\"\")","v":""},"",{"$f":"IF(B2317=\"\",\"\",IF(ISERROR(MATCH($J2317,SorP!$B$1:$B$5661,0)),\"\",INDIRECT(\"'SorP'!$A$\"&MATCH($J2317,SorP!$B$1:$B$5661,0))))","v":""},null,{"$f":"IF(C2317=\"\",NA(),MATCH($B2317&$C2317,'Smelter Look-up'!$J:$J,0))","v":{"$error":"#N/A"}},null,0,null,null,null,""]
[null,{"$f":"IF(LEN(A2318)=0,\"\",INDEX('Smelter Look-up'!$A:$A,MATCH($A2318,'Smelter Look-up'!$E:$E,0)))","v":""},{"$f":"IF(LEN(A2318)=0,\"\",INDEX('Smelter Look-up'!$C:$C,MATCH($A2318,'Smelter Look-up'!$E:$E,0)))","v":""},null,{"$f":"IF(ISERROR($V2318),\"\",OFFSET('Smelter Look-up'!$D$4,$V2318-4,0)&\"\")","v":""},{"$f":"IF(ISERROR($V2318),\"\",OFFSET('Smelter Look-up'!$E$4,$V2318-4,0))","v":""},{"$f":"IF(C2318=$X$4,\"Enter smelter details\",IF(ISERROR($V2318),\"\",OFFSET('Smelter Look-up'!$F$4,$V2318-4,0)))","v":""},{"$f":"IF(ISERROR($V2318),\"\",OFFSET('Smelter Look-up'!$G$4,$V2318-4,0))","v":""},{"$f":"IF(ISERROR($V2318),\"\",OFFSET('Smelter Look-up'!$H$4,$V2318-4,0))","v":""},{"$f":"IF(ISERROR($V2318),\"\",OFFSET('Smelter Look-up'!$I$4,$V2318-4,0))","v":""},{"$nulls":7},{"$f":"IF(ISERROR($V2318),\"\",OFFSET('Smelter Look-up'!$C$4,$V2318-4,0)&\"\")","v":""},"",{"$f":"IF(B2318=\"\",\"\",IF(ISERROR(MATCH($J2318,SorP!$B$1:$B$5661,0)),\"\",INDIRECT(\"'SorP'!$A$\"&MATCH($J2318,SorP!$B$1:$B$5661,0))))","v":""},null,{"$f":"IF(C2318=\"\",NA(),MATCH($B2318&$C2318,'Smelter Look-up'!$J:$J,0))","v":{"$error":"#N/A"}},null,0,null,null,null,""]
[null,{"$f":"IF(LEN(A2319)=0,\"\",INDEX('Smelter Look-up'!$A:$A,MATCH($A2319,'Smelter Look-up'!$E:$E,0)))","v":""},{"$f":"IF(LEN(A2319)=0,\"\",INDEX('Smelter Look-up'!$C:$C,MATCH($A2319,'Smelter Look-up'!$E:$E,0)))","v":""},null,{"$f":"IF(ISERROR($V2319),\"\",OFFSET('Smelter Look-up'!$D$4,$V2319-4,0)&\"\")","v":""},{"$f":"IF(ISERROR($V2319),\"\",OFFSET('Smelter Look-up'!$E$4,$V2319-4,0))","v":""},{"$f":"IF(C2319=$X$4,\"Enter smelter details\",IF(ISERROR($V2319),\"\",OFFSET('Smelter Look-up'!$F$4,$V2319-4,0)))","v":""},{"$f":"IF(ISERROR($V2319),\"\",OFFSET('Smelter Look-up'!$G$4,$V2319-4,0))","v":""},{"$f":"IF(ISERROR($V2319),\"\",OFFSET('Smelter Look-up'!$H$4,$V2319-4,0))","v":""},{"$f":"IF(ISERROR($V2319),\"\",OFFSET('Smelter Look-up'!$I$4,$V2319-4,0))","v":""},{"$nulls":7},{"$f":"IF(ISERROR($V2319),\"\",OFFSET('Smelter Look-up'!$C$4,$V2319-4,0)&\"\")","v":""},"",{"$f":"IF(B2319=\"\",\"\",IF(ISERROR(MATCH($J2319,SorP!$B$1:$B$5661,0)),\"\",INDIRECT(\"'SorP'!$A$\"&MATCH($J2319,SorP!$B$1:$B$5661,0))))","v":""},null,{"$f":"IF(C2319=\"\",NA(),MATCH($B2319&$C2319,'Smelter Look-up'!$J:$J,0))","v":{"$error":"#N/A"}},null,0,null,null,null,""]
[null,{"$f":"IF(LEN(A2320)=0,\"\",INDEX('Smelter Look-up'!$A:$A,MATCH($A2320,'Smelter Look-up'!$E:$E,0)))","v":""},{"$f":"IF(LEN(A2320)=0,\"\",INDEX('Smelter Look-up'!$C:$C,MATCH($A2320,'Smelter Look-up'!$E:$E,0)))","v":""},null,{"$f":"IF(ISERROR($V2320),\"\",OFFSET('Smelter Look-up'!$D$4,$V2320-4,0)&\"\")","v":""},{"$f":"IF(ISERROR($V2320),\"\",OFFSET('Smelter Look-up'!$E$4,$V2320-4,0))","v":""},{"$f":"IF(C2320=$X$4,\"Enter smelter details\",IF(ISERROR($V2320),\"\",OFFSET('Smelter Look-up'!$F$4,$V2320-4,0)))","v":""},{"$f":"IF(ISERROR($V2320),\"\",OFFSET('Smelter Look-up'!$G$4,$V2320-4,0))","v":""},{"$f":"IF(ISERROR($V2320),\"\",OFFSET('Smelter Look-up'!$H$4,$V2320-4,0))","v":""},{"$f":"IF(ISERROR($V2320),\"\",OFFSET('Smelter Look-up'!$I$4,$V2320-4,0))","v":""},{"$nulls":7},{"$f":"IF(ISERROR($V2320),\"\",OFFSET('Smelter Look-up'!$C$4,$V2320-4,0)&\"\")","v":""},"",{"$f":"IF(B2320=\"\",\"\",IF(ISERROR(MATCH($J2320,SorP!$B$1:$B$5661,0)),\"\",INDIRECT(\"'SorP'!$A$\"&MATCH($J2320,SorP!$B$1:$B$5661,0))))","v":""},null,{"$f":"IF(C2320=\"\",NA(),MATCH($B2320&$C2320,'Smelter Look-up'!$J:$J,0))","v":{"$error":"#N/A"}},null,0,null,null,null,""]
[null,{"$f":"IF(LEN(A2321)=0,\"\",INDEX('Smelter Look-up'!$A:$A,MATCH($A2321,'Smelter Look-up'!$E:$E,0)))","v":""},{"$f":"IF(LEN(A2321)=0,\"\",INDEX('Smelter Look-up'!$C:$C,MATCH($A2321,'Smelter Look-up'!$E:$E,0)))","v":""},null,{"$f":"IF(ISERROR($V2321),\"\",OFFSET('Smelter Look-up'!$D$4,$V2321-4,0)&\"\")","v":""},{"$f":"IF(ISERROR($V2321),\"\",OFFSET('Smelter Look-up'!$E$4,$V2321-4,0))","v":""},{"$f":"IF(C2321=$X$4,\"Enter smelter details\",IF(ISERROR($V2321),\"\",OFFSET('Smelter Look-up'!$F$4,$V2321-4,0)))","v":""},{"$f":"IF(ISERROR($V2321),\"\",OFFSET('Smelter Look-up'!$G$4,$V2321-4,0))","v":""},{"$f":"IF(ISERROR($V2321),\"\",OFFSET('Smelter Look-up'!$H$4,$V2321-4,0))","v":""},{"$f":"IF(ISERROR($V2321),\"\",OFFSET('Smelter Look-up'!$I$4,$V2321-4,0))","v":""},{"$nulls":7},{"$f":"IF(ISERROR($V2321),\"\",OFFSET('Smelter Look-up'!$C$4,$V2321-4,0)&\"\")","v":""},"",{"$f":"IF(B2321=\"\",\"\",IF(ISERROR(MATCH($J2321,SorP!$B$1:$B$5661,0)),\"\",INDIRECT(\"'SorP'!$A$\"&MATCH($J2321,SorP!$B$1:$B$5661,0))))","v":""},null,{"$f":"IF(C2321=\"\",NA(),MATCH($B2321&$C2321,'Smelter Look-up'!$J:$J,0))","v":{"$error":"#N/A"}},null,0,null,null,null,""]
[null,{"$f":"IF(LEN(A2322)=0,\"\",INDEX('Smelter Look-up'!$A:$A,MATCH($A2322,'Smelter Look-up'!$E:$E,0)))","v":""},{"$f":"IF(LEN(A2322)=0,\"\",INDEX('Smelter Look-up'!$C:$C,MATCH($A2322,'Smelter Look-up'!$E:$E,0)))","v":""},null,{"$f":"IF(ISERROR($V2322),\"\",OFFSET('Smelter Look-up'!$D$4,$V2322-4,0)&\"\")","v":""},{"$f":"IF(ISERROR($V2322),\"\",OFFSET('Smelter Look-up'!$E$4,$V2322-4,0))","v":""},{"$f":"IF(C2322=$X$4,\"Enter smelter details\",IF(ISERROR($V2322),\"\",OFFSET('Smelter Look-up'!$F$4,$V2322-4,0)))","v":""},{"$f":"IF(ISERROR($V2322),\"\",OFFSET('Smelter Look-up'!$G$4,$V2322-4,0))","v":""},{"$f":"IF(ISERROR($V2322),\"\",OFFSET('Smelter Look-up'!$H$4,$V2322-4,0))","v":""},{"$f":"IF(ISERROR($V2322),\"\",OFFSET('Smelter Look-up'!$I$4,$V2322-4,0))","v":""},{"$nulls":7},{"$f":"IF(ISERROR($V2322),\"\",OFFSET('Smelter Look-up'!$C$4,$V2322-4,0)&\"\")","v":""},"",{"$f":"IF(B2322=\"\",\"\",IF(ISERROR(MATCH($J2322,SorP!$B$1:$B$5661,0)),\"\",INDIRECT(\"'SorP'!$A$\"&MATCH($J2322,SorP!$B$1:$B$5661,0))))","v":""},null,{"$f":"IF(C2322=\"\",NA(),MATCH($B2322&$C2322,'Smelter Look-up'!$J:$J,0))","v":{"$error":"#N/A"}},null,0,null,null,null,""]
[null,{"$f":"IF(LEN(A2323)=0,\"\",INDEX('Smelter Look-up'!$A:$A,MATCH($A2323,'Smelter Look-up'!$E:$E,0)))","v":""},{"$f":"IF(LEN(A2323)=0,\"\",INDEX('Smelter Look-up'!$C:$C,MATCH($A2323,'Smelter Look-up'!$E:$E,0)))","v":""},null,{"$f":"IF(ISERROR($V2323),\"\",OFFSET('Smelter Look-up'!$D$4,$V2323-4,0)&\"\")","v":""},{"$f":"IF(ISERROR($V2323),\"\",OFFSET('Smelter Look-up'!$E$4,$V2323-4,0))","v":""},{"$f":"IF(C2323=$X$4,\"Enter smelter details\",IF(ISERROR($V2323),\"\",OFFSET('Smelter Look-up'!$F$4,$V2323-4,0)))","v":""},{"$f":"IF(ISERROR($V2323),\"\",OFFSET('Smelter Look-up'!$G$4,$V2323-4,0))","v":""},{"$f":"IF(ISERROR($V2323),\"\",OFFSET('Smelter Look-up'!$H$4,$V2323-4,0))","v":""},{"$f":"IF(ISERROR($V2323),\"\",OFFSET('Smelter Look-up'!$I$4,$V2323-4,0))","v":""},{"$nulls":7},{"$f":"IF(ISERROR($V2323),\"\",OFFSET('Smelter Look-up'!$C$4,$V2323-4,0)&\"\")","v":""},"",{"$f":"IF(B2323=\"\",\"\",IF(ISERROR(MATCH($J2323,SorP!$B$1:$B$5661,0)),\"\",INDIRECT(\"'SorP'!$A$\"&MATCH($J2323,SorP!$B$1:$B$5661,0))))","v":""},null,{"$f":"IF(C2323=\"\",NA(),MATCH($B2323&$C2323,'Smelter Look-up'!$J:$J,0))","v":{"$error":"#N/A"}},null,0,null,null,null,""]
[null,{"$f":"IF(LEN(A2324)=0,\"\",INDEX('Smelter Look-up'!$A:$A,MATCH($A2324,'Smelter Look-up'!$E:$E,0)))","v":""},{"$f":"IF(LEN(A2324)=0,\"\",INDEX('Smelter Look-up'!$C:$C,MATCH($A2324,'Smelter Look-up'!$E:$E,0)))","v":""},null,{"$f":"IF(ISERROR($V2324),\"\",OFFSET('Smelter Look-up'!$D$4,$V2324-4,0)&\"\")","v":""},{"$f":"IF(ISERROR($V2324),\"\",OFFSET('Smelter Look-up'!$E$4,$V2324-4,0))","v":""},{"$f":"IF(C2324=$X$4,\"Enter smelter details\",IF(ISERROR($V2324),\"\",OFFSET('Smelter Look-up'!$F$4,$V2324-4,0)))","v":""},{"$f":"IF(ISERROR($V2324),\"\",OFFSET('Smelter Look-up'!$G$4,$V2324-4,0))","v":""},{"$f":"IF(ISERROR($V2324),\"\",OFFSET('Smelter Look-up'!$H$4,$V2324-4,0))","v":""},{"$f":"IF(ISERROR($V2324),\"\",OFFSET('Smelter Look-up'!$I$4,$V2324-4,0))","v":""},{"$nulls":7},{"$f":"IF(ISERROR($V2324),\"\",OFFSET('Smelter Look-up'!$C$4,$V2324-4,0)&\"\")","v":""},"",{"$f":"IF(B2324=\"\",\"\",IF(ISERROR(MATCH($J2324,SorP!$B$1:$B$5661,0)),\"\",INDIRECT(\"'SorP'!$A$\"&MATCH($J2324,SorP!$B$1:$B$5661,0))))","v":""},null,{"$f":"IF(C2324=\"\",NA(),MATCH($B2324&$C2324,'Smelter Look-up'!$J:$J,0))","v":{"$error":"#N/A"}},null,0,null,null,null,""]
[null,{"$f":"IF(LEN(A2325)=0,\"\",INDEX('Smelter Look-up'!$A:$A,MATCH($A2325,'Smelter Look-up'!$E:$E,0)))","v":""},{"$f":"IF(LEN(A2325)=0,\"\",INDEX('Smelter Look-up'!$C:$C,MATCH($A2325,'Smelter Look-up'!$E:$E,0)))","v":""},null,{"$f":"IF(ISERROR($V2325),\"\",OFFSET('Smelter Look-up'!$D$4,$V2325-4,0)&\"\")","v":""},{"$f":"IF(ISERROR($V2325),\"\",OFFSET('Smelter Look-up'!$E$4,$V2325-4,0))","v":""},{"$f":"IF(C2325=$X$4,\"Enter smelter details\",IF(ISERROR($V2325),\"\",OFFSET('Smelter Look-up'!$F$4,$V2325-4,0)))","v":""},{"$f":"IF(ISERROR($V2325),\"\",OFFSET('Smelter Look-up'!$G$4,$V2325-4,0))","v":""},{"$f":"IF(ISERROR($V2325),\"\",OFFSET('Smelter Look-up'!$H$4,$V2325-4,0))","v":""},{"$f":"IF(ISERROR($V2325),\"\",OFFSET('Smelter Look-up'!$I$4,$V2325-4,0))","v":""},{"$nulls":7},{"$f":"IF(ISERROR($V2325),\"\",OFFSET('Smelter Look-up'!$C$4,$V2325-4,0)&\"\")","v":""},"",{"$f":"IF(B2325=\"\",\"\",IF(ISERROR(MATCH($J2325,SorP!$B$1:$B$5661,0)),\"\",INDIRECT(\"'SorP'!$A$\"&MATCH($J2325,SorP!$B$1:$B$5661,0))))","v":""},null,{"$f":"IF(C2325=\"\",NA(),MATCH($B2325&$C2325,'Smelter Look-up'!$J:$J,0))","v":{"$error":"#N/A"}},null,0,null,null,null,""]
[null,{"$f":"IF(LEN(A2326)=0,\"\",INDEX('Smelter Look-up'!$A:$A,MATCH($A2326,'Smelter Look-up'!$E:$E,0)))","v":""},{"$f":"IF(LEN(A2326)=0,\"\",INDEX('Smelter Look-up'!$C:$C,MATCH($A2326,'Smelter Look-up'!$E:$E,0)))","v":""},null,{"$f":"IF(ISERROR($V2326),\"\",OFFSET('Smelter Look-up'!$D$4,$V2326-4,0)&\"\")","v":""},{"$f":"IF(ISERROR($V2326),\"\",OFFSET('Smelter Look-up'!$E$4,$V2326-4,0))","v":""},{"$f":"IF(C2326=$X$4,\"Enter smelter details\",IF(ISERROR($V2326),\"\",OFFSET('Smelter Look-up'!$F$4,$V2326-4,0)))","v":""},{"$f":"IF(ISERROR($V2326),\"\",OFFSET('Smelter Look-up'!$G$4,$V2326-4,0))","v":""},{"$f":"IF(ISERROR($V2326),\"\",OFFSET('Smelter Look-up'!$H$4,$V2326-4,0))","v":""},{"$f":"IF(ISERROR($V2326),\"\",OFFSET('Smelter Look-up'!$I$4,$V2326-4,0))","v":""},{"$nulls":7},{"$f":"IF(ISERROR($V2326),\"\",OFFSET('Smelter Look-up'!$C$4,$V2326-4,0)&\"\")","v":""},"",{"$f":"IF(B2326=\"\",\"\",IF(ISERROR(MATCH($J2326,SorP!$B$1:$B$5661,0)),\"\",INDIRECT(\"'SorP'!$A$\"&MATCH($J2326,SorP!$B$1:$B$5661,0))))","v":""},null,{"$f":"IF(C2326=\"\",NA(),MATCH($B2326&$C2326,'Smelter Look-up'!$J:$J,0))","v":{"$error":"#N/A"}},null,0,null,null,null,""]
[null,{"$f":"IF(LEN(A2327)=0,\"\",INDEX('Smelter Look-up'!$A:$A,MATCH($A2327,'Smelter Look-up'!$E:$E,0)))","v":""},{"$f":"IF(LEN(A2327)=0,\"\",INDEX('Smelter Look-up'!$C:$C,MATCH($A2327,'Smelter Look-up'!$E:$E,0)))","v":""},null,{"$f":"IF(ISERROR($V2327),\"\",OFFSET('Smelter Look-up'!$D$4,$V2327-4,0)&\"\")","v":""},{"$f":"IF(ISERROR($V2327),\"\",OFFSET('Smelter Look-up'!$E$4,$V2327-4,0))","v":""},{"$f":"IF(C2327=$X$4,\"Enter smelter details\",IF(ISERROR($V2327),\"\",OFFSET('Smelter Look-up'!$F$4,$V2327-4,0)))","v":""},{"$f":"IF(ISERROR($V2327),\"\",OFFSET('Smelter Look-up'!$G$4,$V2327-4,0))","v":""},{"$f":"IF(ISERROR($V2327),\"\",OFFSET('Smelter Look-up'!$H$4,$V2327-4,0))","v":""},{"$f":"IF(ISERROR($V2327),\"\",OFFSET('Smelter Look-up'!$I$4,$V2327-4,0))","v":""},{"$nulls":7},{"$f":"IF(ISERROR($V2327),\"\",OFFSET('Smelter Look-up'!$C$4,$V2327-4,0)&\"\")","v":""},"",{"$f":"IF(B2327=\"\",\"\",IF(ISERROR(MATCH($J2327,SorP!$B$1:$B$5661,0)),\"\",INDIRECT(\"'SorP'!$A$\"&MATCH($J2327,SorP!$B$1:$B$5661,0))))","v":""},null,{"$f":"IF(C2327=\"\",NA(),MATCH($B2327&$C2327,'Smelter Look-up'!$J:$J,0))","v":{"$error":"#N/A"}},null,0,null,null,null,""]
[null,{"$f":"IF(LEN(A2328)=0,\"\",INDEX('Smelter Look-up'!$A:$A,MATCH($A2328,'Smelter Look-up'!$E:$E,0)))","v":""},{"$f":"IF(LEN(A2328)=0,\"\",INDEX('Smelter Look-up'!$C:$C,MATCH($A2328,'Smelter Look-up'!$E:$E,0)))","v":""},null,{"$f":"IF(ISERROR($V2328),\"\",OFFSET('Smelter Look-up'!$D$4,$V2328-4,0)&\"\")","v":""},{"$f":"IF(ISERROR($V2328),\"\",OFFSET('Smelter Look-up'!$E$4,$V2328-4,0))","v":""},{"$f":"IF(C2328=$X$4,\"Enter smelter details\",IF(ISERROR($V2328),\"\",OFFSET('Smelter Look-up'!$F$4,$V2328-4,0)))","v":""},{"$f":"IF(ISERROR($V2328),\"\",OFFSET('Smelter Look-up'!$G$4,$V2328-4,0))","v":""},{"$f":"IF(ISERROR($V2328),\"\",OFFSET('Smelter Look-up'!$H$4,$V2328-4,0))","v":""},{"$f":"IF(ISERROR($V2328),\"\",OFFSET('Smelter Look-up'!$I$4,$V2328-4,0))","v":""},{"$nulls":7},{"$f":"IF(ISERROR($V2328),\"\",OFFSET('Smelter Look-up'!$C$4,$V2328-4,0)&\"\")","v":""},"",{"$f":"IF(B2328=\"\",\"\",IF(ISERROR(MATCH($J2328,SorP!$B$1:$B$5661,0)),\"\",INDIRECT(\"'SorP'!$A$\"&MATCH($J2328,SorP!$B$1:$B$5661,0))))","v":""},null,{"$f":"IF(C2328=\"\",NA(),MATCH($B2328&$C2328,'Smelter Look-up'!$J:$J,0))","v":{"$error":"#N/A"}},null,0,null,null,null,""]
[null,{"$f":"IF(LEN(A2329)=0,\"\",INDEX('Smelter Look-up'!$A:$A,MATCH($A2329,'Smelter Look-up'!$E:$E,0)))","v":""},{"$f":"IF(LEN(A2329)=0,\"\",INDEX('Smelter Look-up'!$C:$C,MATCH($A2329,'Smelter Look-up'!$E:$E,0)))","v":""},null,{"$f":"IF(ISERROR($V2329),\"\",OFFSET('Smelter Look-up'!$D$4,$V2329-4,0)&\"\")","v":""},{"$f":"IF(ISERROR($V2329),\"\",OFFSET('Smelter Look-up'!$E$4,$V2329-4,0))","v":""},{"$f":"IF(C2329=$X$4,\"Enter smelter details\",IF(ISERROR($V2329),\"\",OFFSET('Smelter Look-up'!$F$4,$V2329-4,0)))","v":""},{"$f":"IF(ISERROR($V2329),\"\",OFFSET('Smelter Look-up'!$G$4,$V2329-4,0))","v":""},{"$f":"IF(ISERROR($V2329),\"\",OFFSET('Smelter Look-up'!$H$4,$V2329-4,0))","v":""},{"$f":"IF(ISERROR($V2329),\"\",OFFSET('Smelter Look-up'!$I$4,$V2329-4,0))","v":""},{"$nulls":7},{"$f":"IF(ISERROR($V2329),\"\",OFFSET('Smelter Look-up'!$C$4,$V2329-4,0)&\"\")","v":""},"",{"$f":"IF(B2329=\"\",\"\",IF(ISERROR(MATCH($J2329,SorP!$B$1:$B$5661,0)),\"\",INDIRECT(\"'SorP'!$A$\"&MATCH($J2329,SorP!$B$1:$B$5661,0))))","v":""},null,{"$f":"IF(C2329=\"\",NA(),MATCH($B2329&$C2329,'Smelter Look-up'!$J:$J,0))","v":{"$error":"#N/A"}},null,0,null,null,null,""]
[null,{"$f":"IF(LEN(A2330)=0,\"\",INDEX('Smelter Look-up'!$A:$A,MATCH($A2330,'Smelter Look-up'!$E:$E,0)))","v":""},{"$f":"IF(LEN(A2330)=0,\"\",INDEX('Smelter Look-up'!$C:$C,MATCH($A2330,'Smelter Look-up'!$E:$E,0)))","v":""},null,{"$f":"IF(ISERROR($V2330),\"\",OFFSET('Smelter Look-up'!$D$4,$V2330-4,0)&\"\")","v":""},{"$f":"IF(ISERROR($V2330),\"\",OFFSET('Smelter Look-up'!$E$4,$V2330-4,0))","v":""},{"$f":"IF(C2330=$X$4,\"Enter smelter details\",IF(ISERROR($V2330),\"\",OFFSET('Smelter Look-up'!$F$4,$V2330-4,0)))","v":""},{"$f":"IF(ISERROR($V2330),\"\",OFFSET('Smelter Look-up'!$G$4,$V2330-4,0))","v":""},{"$f":"IF(ISERROR($V2330),\"\",OFFSET('Smelter Look-up'!$H$4,$V2330-4,0))","v":""},{"$f":"IF(ISERROR($V2330),\"\",OFFSET('Smelter Look-up'!$I$4,$V2330-4,0))","v":""},{"$nulls":7},{"$f":"IF(ISERROR($V2330),\"\",OFFSET('Smelter Look-up'!$C$4,$V2330-4,0)&\"\")","v":""},"",{"$f":"IF(B2330=\"\",\"\",IF(ISERROR(MATCH($J2330,SorP!$B$1:$B$5661,0)),\"\",INDIRECT(\"'SorP'!$A$\"&MATCH($J2330,SorP!$B$1:$B$5661,0))))","v":""},null,{"$f":"IF(C2330=\"\",NA(),MATCH($B2330&$C2330,'Smelter Look-up'!$J:$J,0))","v":{"$error":"#N/A"}},null,0,null,null,null,""]
[null,{"$f":"IF(LEN(A2331)=0,\"\",INDEX('Smelter Look-up'!$A:$A,MATCH($A2331,'Smelter Look-up'!$E:$E,0)))","v":""},{"$f":"IF(LEN(A2331)=0,\"\",INDEX('Smelter Look-up'!$C:$C,MATCH($A2331,'Smelter Look-up'!$E:$E,0)))","v":""},null,{"$f":"IF(ISERROR($V2331),\"\",OFFSET('Smelter Look-up'!$D$4,$V2331-4,0)&\"\")","v":""},{"$f":"IF(ISERROR($V2331),\"\",OFFSET('Smelter Look-up'!$E$4,$V2331-4,0))","v":""},{"$f":"IF(C2331=$X$4,\"Enter smelter details\",IF(ISERROR($V2331),\"\",OFFSET('Smelter Look-up'!$F$4,$V2331-4,0)))","v":""},{"$f":"IF(ISERROR($V2331),\"\",OFFSET('Smelter Look-up'!$G$4,$V2331-4,0))","v":""},{"$f":"IF(ISERROR($V2331),\"\",OFFSET('Smelter Look-up'!$H$4,$V2331-4,0))","v":""},{"$f":"IF(ISERROR($V2331),\"\",OFFSET('Smelter Look-up'!$I$4,$V2331-4,0))","v":""},{"$nulls":7},{"$f":"IF(ISERROR($V2331),\"\",OFFSET('Smelter Look-up'!$C$4,$V2331-4,0)&\"\")","v":""},"",{"$f":"IF(B2331=\"\",\"\",IF(ISERROR(MATCH($J2331,SorP!$B$1:$B$5661,0)),\"\",INDIRECT(\"'SorP'!$A$\"&MATCH($J2331,SorP!$B$1:$B$5661,0))))","v":""},null,{"$f":"IF(C2331=\"\",NA(),MATCH($B2331&$C2331,'Smelter Look-up'!$J:$J,0))","v":{"$error":"#N/A"}},null,0,null,null,null,""]
[null,{"$f":"IF(LEN(A2332)=0,\"\",INDEX('Smelter Look-up'!$A:$A,MATCH($A2332,'Smelter Look-up'!$E:$E,0)))","v":""},{"$f":"IF(LEN(A2332)=0,\"\",INDEX('Smelter Look-up'!$C:$C,MATCH($A2332,'Smelter Look-up'!$E:$E,0)))","v":""},null,{"$f":"IF(ISERROR($V2332),\"\",OFFSET('Smelter Look-up'!$D$4,$V2332-4,0)&\"\")","v":""},{"$f":"IF(ISERROR($V2332),\"\",OFFSET('Smelter Look-up'!$E$4,$V2332-4,0))","v":""},{"$f":"IF(C2332=$X$4,\"Enter smelter details\",IF(ISERROR($V2332),\"\",OFFSET('Smelter Look-up'!$F$4,$V2332-4,0)))","v":""},{"$f":"IF(ISERROR($V2332),\"\",OFFSET('Smelter Look-up'!$G$4,$V2332-4,0))","v":""},{"$f":"IF(ISERROR($V2332),\"\",OFFSET('Smelter Look-up'!$H$4,$V2332-4,0))","v":""},{"$f":"IF(ISERROR($V2332),\"\",OFFSET('Smelter Look-up'!$I$4,$V2332-4,0))","v":""},{"$nulls":7},{"$f":"IF(ISERROR($V2332),\"\",OFFSET('Smelter Look-up'!$C$4,$V2332-4,0)&\"\")","v":""},"",{"$f":"IF(B2332=\"\",\"\",IF(ISERROR(MATCH($J2332,SorP!$B$1:$B$5661,0)),\"\",INDIRECT(\"'SorP'!$A$\"&MATCH($J2332,SorP!$B$1:$B$5661,0))))","v":""},null,{"$f":"IF(C2332=\"\",NA(),MATCH($B2332&$C2332,'Smelter Look-up'!$J:$J,0))","v":{"$error":"#N/A"}},null,0,null,null,null,""]
[null,{"$f":"IF(LEN(A2333)=0,\"\",INDEX('Smelter Look-up'!$A:$A,MATCH($A2333,'Smelter Look-up'!$E:$E,0)))","v":""},{"$f":"IF(LEN(A2333)=0,\"\",INDEX('Smelter Look-up'!$C:$C,MATCH($A2333,'Smelter Look-up'!$E:$E,0)))","v":""},null,{"$f":"IF(ISERROR($V2333),\"\",OFFSET('Smelter Look-up'!$D$4,$V2333-4,0)&\"\")","v":""},{"$f":"IF(ISERROR($V2333),\"\",OFFSET('Smelter Look-up'!$E$4,$V2333-4,0))","v":""},{"$f":"IF(C2333=$X$4,\"Enter smelter details\",IF(ISERROR($V2333),\"\",OFFSET('Smelter Look-up'!$F$4,$V2333-4,0)))","v":""},{"$f":"IF(ISERROR($V2333),\"\",OFFSET('Smelter Look-up'!$G$4,$V2333-4,0))","v":""},{"$f":"IF(ISERROR($V2333),\"\",OFFSET('Smelter Look-up'!$H$4,$V2333-4,0))","v":""},{"$f":"IF(ISERROR($V2333),\"\",OFFSET('Smelter Look-up'!$I$4,$V2333-4,0))","v":""},{"$nulls":7},{"$f":"IF(ISERROR($V2333),\"\",OFFSET('Smelter Look-up'!$C$4,$V2333-4,0)&\"\")","v":""},"",{"$f":"IF(B2333=\"\",\"\",IF(ISERROR(MATCH($J2333,SorP!$B$1:$B$5661,0)),\"\",INDIRECT(\"'SorP'!$A$\"&MATCH($J2333,SorP!$B$1:$B$5661,0))))","v":""},null,{"$f":"IF(C2333=\"\",NA(),MATCH($B2333&$C2333,'Smelter Look-up'!$J:$J,0))","v":{"$error":"#N/A"}},null,0,null,null,null,""]
[null,{"$f":"IF(LEN(A2334)=0,\"\",INDEX('Smelter Look-up'!$A:$A,MATCH($A2334,'Smelter Look-up'!$E:$E,0)))","v":""},{"$f":"IF(LEN(A2334)=0,\"\",INDEX('Smelter Look-up'!$C:$C,MATCH($A2334,'Smelter Look-up'!$E:$E,0)))","v":""},null,{"$f":"IF(ISERROR($V2334),\"\",OFFSET('Smelter Look-up'!$D$4,$V2334-4,0)&\"\")","v":""},{"$f":"IF(ISERROR($V2334),\"\",OFFSET('Smelter Look-up'!$E$4,$V2334-4,0))","v":""},{"$f":"IF(C2334=$X$4,\"Enter smelter details\",IF(ISERROR($V2334),\"\",OFFSET('Smelter Look-up'!$F$4,$V2334-4,0)))","v":""},{"$f":"IF(ISERROR($V2334),\"\",OFFSET('Smelter Look-up'!$G$4,$V2334-4,0))","v":""},{"$f":"IF(ISERROR($V2334),\"\",OFFSET('Smelter Look-up'!$H$4,$V2334-4,0))","v":""},{"$f":"IF(ISERROR($V2334),\"\",OFFSET('Smelter Look-up'!$I$4,$V2334-4,0))","v":""},{"$nulls":7},{"$f":"IF(ISERROR($V2334),\"\",OFFSET('Smelter Look-up'!$C$4,$V2334-4,0)&\"\")","v":""},"",{"$f":"IF(B2334=\"\",\"\",IF(ISERROR(MATCH($J2334,SorP!$B$1:$B$5661,0)),\"\",INDIRECT(\"'SorP'!$A$\"&MATCH($J2334,SorP!$B$1:$B$5661,0))))","v":""},null,{"$f":"IF(C2334=\"\",NA(),MATCH($B2334&$C2334,'Smelter Look-up'!$J:$J,0))","v":{"$error":"#N/A"}},null,0,null,null,null,""]
[null,{"$f":"IF(LEN(A2335)=0,\"\",INDEX('Smelter Look-up'!$A:$A,MATCH($A2335,'Smelter Look-up'!$E:$E,0)))","v":""},{"$f":"IF(LEN(A2335)=0,\"\",INDEX('Smelter Look-up'!$C:$C,MATCH($A2335,'Smelter Look-up'!$E:$E,0)))","v":""},null,{"$f":"IF(ISERROR($V2335),\"\",OFFSET('Smelter Look-up'!$D$4,$V2335-4,0)&\"\")","v":""},{"$f":"IF(ISERROR($V2335),\"\",OFFSET('Smelter Look-up'!$E$4,$V2335-4,0))","v":""},{"$f":"IF(C2335=$X$4,\"Enter smelter details\",IF(ISERROR($V2335),\"\",OFFSET('Smelter Look-up'!$F$4,$V2335-4,0)))","v":""},{"$f":"IF(ISERROR($V2335),\"\",OFFSET('Smelter Look-up'!$G$4,$V2335-4,0))","v":""},{"$f":"IF(ISERROR($V2335),\"\",OFFSET('Smelter Look-up'!$H$4,$V2335-4,0))","v":""},{"$f":"IF(ISERROR($V2335),\"\",OFFSET('Smelter Look-up'!$I$4,$V2335-4,0))","v":""},{"$nulls":7},{"$f":"IF(ISERROR($V2335),\"\",OFFSET('Smelter Look-up'!$C$4,$V2335-4,0)&\"\")","v":""},"",{"$f":"IF(B2335=\"\",\"\",IF(ISERROR(MATCH($J2335,SorP!$B$1:$B$5661,0)),\"\",INDIRECT(\"'SorP'!$A$\"&MATCH($J2335,SorP!$B$1:$B$5661,0))))","v":""},null,{"$f":"IF(C2335=\"\",NA(),MATCH($B2335&$C2335,'Smelter Look-up'!$J:$J,0))","v":{"$error":"#N/A"}},null,0,null,null,null,""]
[null,{"$f":"IF(LEN(A2336)=0,\"\",INDEX('Smelter Look-up'!$A:$A,MATCH($A2336,'Smelter Look-up'!$E:$E,0)))","v":""},{"$f":"IF(LEN(A2336)=0,\"\",INDEX('Smelter Look-up'!$C:$C,MATCH($A2336,'Smelter Look-up'!$E:$E,0)))","v":""},null,{"$f":"IF(ISERROR($V2336),\"\",OFFSET('Smelter Look-up'!$D$4,$V2336-4,0)&\"\")","v":""},{"$f":"IF(ISERROR($V2336),\"\",OFFSET('Smelter Look-up'!$E$4,$V2336-4,0))","v":""},{"$f":"IF(C2336=$X$4,\"Enter smelter details\",IF(ISERROR($V2336),\"\",OFFSET('Smelter Look-up'!$F$4,$V2336-4,0)))","v":""},{"$f":"IF(ISERROR($V2336),\"\",OFFSET('Smelter Look-up'!$G$4,$V2336-4,0))","v":""},{"$f":"IF(ISERROR($V2336),\"\",OFFSET('Smelter Look-up'!$H$4,$V2336-4,0))","v":""},{"$f":"IF(ISERROR($V2336),\"\",OFFSET('Smelter Look-up'!$I$4,$V2336-4,0))","v":""},{"$nulls":7},{"$f":"IF(ISERROR($V2336),\"\",OFFSET('Smelter Look-up'!$C$4,$V2336-4,0)&\"\")","v":""},"",{"$f":"IF(B2336=\"\",\"\",IF(ISERROR(MATCH($J2336,SorP!$B$1:$B$5661,0)),\"\",INDIRECT(\"'SorP'!$A$\"&MATCH($J2336,SorP!$B$1:$B$5661,0))))","v":""},null,{"$f":"IF(C2336=\"\",NA(),MATCH($B2336&$C2336,'Smelter Look-up'!$J:$J,0))","v":{"$error":"#N/A"}},null,0,null,null,null,""]
[null,{"$f":"IF(LEN(A2337)=0,\"\",INDEX('Smelter Look-up'!$A:$A,MATCH($A2337,'Smelter Look-up'!$E:$E,0)))","v":""},{"$f":"IF(LEN(A2337)=0,\"\",INDEX('Smelter Look-up'!$C:$C,MATCH($A2337,'Smelter Look-up'!$E:$E,0)))","v":""},null,{"$f":"IF(ISERROR($V2337),\"\",OFFSET('Smelter Look-up'!$D$4,$V2337-4,0)&\"\")","v":""},{"$f":"IF(ISERROR($V2337),\"\",OFFSET('Smelter Look-up'!$E$4,$V2337-4,0))","v":""},{"$f":"IF(C2337=$X$4,\"Enter smelter details\",IF(ISERROR($V2337),\"\",OFFSET('Smelter Look-up'!$F$4,$V2337-4,0)))","v":""},{"$f":"IF(ISERROR($V2337),\"\",OFFSET('Smelter Look-up'!$G$4,$V2337-4,0))","v":""},{"$f":"IF(ISERROR($V2337),\"\",OFFSET('Smelter Look-up'!$H$4,$V2337-4,0))","v":""},{"$f":"IF(ISERROR($V2337),\"\",OFFSET('Smelter Look-up'!$I$4,$V2337-4,0))","v":""},{"$nulls":7},{"$f":"IF(ISERROR($V2337),\"\",OFFSET('Smelter Look-up'!$C$4,$V2337-4,0)&\"\")","v":""},"",{"$f":"IF(B2337=\"\",\"\",IF(ISERROR(MATCH($J2337,SorP!$B$1:$B$5661,0)),\"\",INDIRECT(\"'SorP'!$A$\"&MATCH($J2337,SorP!$B$1:$B$5661,0))))","v":""},null,{"$f":"IF(C2337=\"\",NA(),MATCH($B2337&$C2337,'Smelter Look-up'!$J:$J,0))","v":{"$error":"#N/A"}},null,0,null,null,null,""]
[null,{"$f":"IF(LEN(A2338)=0,\"\",INDEX('Smelter Look-up'!$A:$A,MATCH($A2338,'Smelter Look-up'!$E:$E,0)))","v":""},{"$f":"IF(LEN(A2338)=0,\"\",INDEX('Smelter Look-up'!$C:$C,MATCH($A2338,'Smelter Look-up'!$E:$E,0)))","v":""},null,{"$f":"IF(ISERROR($V2338),\"\",OFFSET('Smelter Look-up'!$D$4,$V2338-4,0)&\"\")","v":""},{"$f":"IF(ISERROR($V2338),\"\",OFFSET('Smelter Look-up'!$E$4,$V2338-4,0))","v":""},{"$f":"IF(C2338=$X$4,\"Enter smelter details\",IF(ISERROR($V2338),\"\",OFFSET('Smelter Look-up'!$F$4,$V2338-4,0)))","v":""},{"$f":"IF(ISERROR($V2338),\"\",OFFSET('Smelter Look-up'!$G$4,$V2338-4,0))","v":""},{"$f":"IF(ISERROR($V2338),\"\",OFFSET('Smelter Look-up'!$H$4,$V2338-4,0))","v":""},{"$f":"IF(ISERROR($V2338),\"\",OFFSET('Smelter Look-up'!$I$4,$V2338-4,0))","v":""},{"$nulls":7},{"$f":"IF(ISERROR($V2338),\"\",OFFSET('Smelter Look-up'!$C$4,$V2338-4,0)&\"\")","v":""},"",{"$f":"IF(B2338=\"\",\"\",IF(ISERROR(MATCH($J2338,SorP!$B$1:$B$5661,0)),\"\",INDIRECT(\"'SorP'!$A$\"&MATCH($J2338,SorP!$B$1:$B$5661,0))))","v":""},null,{"$f":"IF(C2338=\"\",NA(),MATCH($B2338&$C2338,'Smelter Look-up'!$J:$J,0))","v":{"$error":"#N/A"}},null,0,null,null,null,""]
[null,{"$f":"IF(LEN(A2339)=0,\"\",INDEX('Smelter Look-up'!$A:$A,MATCH($A2339,'Smelter Look-up'!$E:$E,0)))","v":""},{"$f":"IF(LEN(A2339)=0,\"\",INDEX('Smelter Look-up'!$C:$C,MATCH($A2339,'Smelter Look-up'!$E:$E,0)))","v":""},null,{"$f":"IF(ISERROR($V2339),\"\",OFFSET('Smelter Look-up'!$D$4,$V2339-4,0)&\"\")","v":""},{"$f":"IF(ISERROR($V2339),\"\",OFFSET('Smelter Look-up'!$E$4,$V2339-4,0))","v":""},{"$f":"IF(C2339=$X$4,\"Enter smelter details\",IF(ISERROR($V2339),\"\",OFFSET('Smelter Look-up'!$F$4,$V2339-4,0)))","v":""},{"$f":"IF(ISERROR($V2339),\"\",OFFSET('Smelter Look-up'!$G$4,$V2339-4,0))","v":""},{"$f":"IF(ISERROR($V2339),\"\",OFFSET('Smelter Look-up'!$H$4,$V2339-4,0))","v":""},{"$f":"IF(ISERROR($V2339),\"\",OFFSET('Smelter Look-up'!$I$4,$V2339-4,0))","v":""},{"$nulls":7},{"$f":"IF(ISERROR($V2339),\"\",OFFSET('Smelter Look-up'!$C$4,$V2339-4,0)&\"\")","v":""},"",{"$f":"IF(B2339=\"\",\"\",IF(ISERROR(MATCH($J2339,SorP!$B$1:$B$5661,0)),\"\",INDIRECT(\"'SorP'!$A$\"&MATCH($J2339,SorP!$B$1:$B$5661,0))))","v":""},null,{"$f":"IF(C2339=\"\",NA(),MATCH($B2339&$C2339,'Smelter Look-up'!$J:$J,0))","v":{"$error":"#N/A"}},null,0,null,null,null,""]
[null,{"$f":"IF(LEN(A2340)=0,\"\",INDEX('Smelter Look-up'!$A:$A,MATCH($A2340,'Smelter Look-up'!$E:$E,0)))","v":""},{"$f":"IF(LEN(A2340)=0,\"\",INDEX('Smelter Look-up'!$C:$C,MATCH($A2340,'Smelter Look-up'!$E:$E,0)))","v":""},null,{"$f":"IF(ISERROR($V2340),\"\",OFFSET('Smelter Look-up'!$D$4,$V2340-4,0)&\"\")","v":""},{"$f":"IF(ISERROR($V2340),\"\",OFFSET('Smelter Look-up'!$E$4,$V2340-4,0))","v":""},{"$f":"IF(C2340=$X$4,\"Enter smelter details\",IF(ISERROR($V2340),\"\",OFFSET('Smelter Look-up'!$F$4,$V2340-4,0)))","v":""},{"$f":"IF(ISERROR($V2340),\"\",OFFSET('Smelter Look-up'!$G$4,$V2340-4,0))","v":""},{"$f":"IF(ISERROR($V2340),\"\",OFFSET('Smelter Look-up'!$H$4,$V2340-4,0))","v":""},{"$f":"IF(ISERROR($V2340),\"\",OFFSET('Smelter Look-up'!$I$4,$V2340-4,0))","v":""},{"$nulls":7},{"$f":"IF(ISERROR($V2340),\"\",OFFSET('Smelter Look-up'!$C$4,$V2340-4,0)&\"\")","v":""},"",{"$f":"IF(B2340=\"\",\"\",IF(ISERROR(MATCH($J2340,SorP!$B$1:$B$5661,0)),\"\",INDIRECT(\"'SorP'!$A$\"&MATCH($J2340,SorP!$B$1:$B$5661,0))))","v":""},null,{"$f":"IF(C2340=\"\",NA(),MATCH($B2340&$C2340,'Smelter Look-up'!$J:$J,0))","v":{"$error":"#N/A"}},null,0,null,null,null,""]
[null,{"$f":"IF(LEN(A2341)=0,\"\",INDEX('Smelter Look-up'!$A:$A,MATCH($A2341,'Smelter Look-up'!$E:$E,0)))","v":""},{"$f":"IF(LEN(A2341)=0,\"\",INDEX('Smelter Look-up'!$C:$C,MATCH($A2341,'Smelter Look-up'!$E:$E,0)))","v":""},null,{"$f":"IF(ISERROR($V2341),\"\",OFFSET('Smelter Look-up'!$D$4,$V2341-4,0)&\"\")","v":""},{"$f":"IF(ISERROR($V2341),\"\",OFFSET('Smelter Look-up'!$E$4,$V2341-4,0))","v":""},{"$f":"IF(C2341=$X$4,\"Enter smelter details\",IF(ISERROR($V2341),\"\",OFFSET('Smelter Look-up'!$F$4,$V2341-4,0)))","v":""},{"$f":"IF(ISERROR($V2341),\"\",OFFSET('Smelter Look-up'!$G$4,$V2341-4,0))","v":""},{"$f":"IF(ISERROR($V2341),\"\",OFFSET('Smelter Look-up'!$H$4,$V2341-4,0))","v":""},{"$f":"IF(ISERROR($V2341),\"\",OFFSET('Smelter Look-up'!$I$4,$V2341-4,0))","v":""},{"$nulls":7},{"$f":"IF(ISERROR($V2341),\"\",OFFSET('Smelter Look-up'!$C$4,$V2341-4,0)&\"\")","v":""},"",{"$f":"IF(B2341=\"\",\"\",IF(ISERROR(MATCH($J2341,SorP!$B$1:$B$5661,0)),\"\",INDIRECT(\"'SorP'!$A$\"&MATCH($J2341,SorP!$B$1:$B$5661,0))))","v":""},null,{"$f":"IF(C2341=\"\",NA(),MATCH($B2341&$C2341,'Smelter Look-up'!$J:$J,0))","v":{"$error":"#N/A"}},null,0,null,null,null,""]
[null,{"$f":"IF(LEN(A2342)=0,\"\",INDEX('Smelter Look-up'!$A:$A,MATCH($A2342,'Smelter Look-up'!$E:$E,0)))","v":""},{"$f":"IF(LEN(A2342)=0,\"\",INDEX('Smelter Look-up'!$C:$C,MATCH($A2342,'Smelter Look-up'!$E:$E,0)))","v":""},null,{"$f":"IF(ISERROR($V2342),\"\",OFFSET('Smelter Look-up'!$D$4,$V2342-4,0)&\"\")","v":""},{"$f":"IF(ISERROR($V2342),\"\",OFFSET('Smelter Look-up'!$E$4,$V2342-4,0))","v":""},{"$f":"IF(C2342=$X$4,\"Enter smelter details\",IF(ISERROR($V2342),\"\",OFFSET('Smelter Look-up'!$F$4,$V2342-4,0)))","v":""},{"$f":"IF(ISERROR($V2342),\"\",OFFSET('Smelter Look-up'!$G$4,$V2342-4,0))","v":""},{"$f":"IF(ISERROR($V2342),\"\",OFFSET('Smelter Look-up'!$H$4,$V2342-4,0))","v":""},{"$f":"IF(ISERROR($V2342),\"\",OFFSET('Smelter Look-up'!$I$4,$V2342-4,0))","v":""},{"$nulls":7},{"$f":"IF(ISERROR($V2342),\"\",OFFSET('Smelter Look-up'!$C$4,$V2342-4,0)&\"\")","v":""},"",{"$f":"IF(B2342=\"\",\"\",IF(ISERROR(MATCH($J2342,SorP!$B$1:$B$5661,0)),\"\",INDIRECT(\"'SorP'!$A$\"&MATCH($J2342,SorP!$B$1:$B$5661,0))))","v":""},null,{"$f":"IF(C2342=\"\",NA(),MATCH($B2342&$C2342,'Smelter Look-up'!$J:$J,0))","v":{"$error":"#N/A"}},null,0,null,null,null,""]
[null,{"$f":"IF(LEN(A2343)=0,\"\",INDEX('Smelter Look-up'!$A:$A,MATCH($A2343,'Smelter Look-up'!$E:$E,0)))","v":""},{"$f":"IF(LEN(A2343)=0,\"\",INDEX('Smelter Look-up'!$C:$C,MATCH($A2343,'Smelter Look-up'!$E:$E,0)))","v":""},null,{"$f":"IF(ISERROR($V2343),\"\",OFFSET('Smelter Look-up'!$D$4,$V2343-4,0)&\"\")","v":""},{"$f":"IF(ISERROR($V2343),\"\",OFFSET('Smelter Look-up'!$E$4,$V2343-4,0))","v":""},{"$f":"IF(C2343=$X$4,\"Enter smelter details\",IF(ISERROR($V2343),\"\",OFFSET('Smelter Look-up'!$F$4,$V2343-4,0)))","v":""},{"$f":"IF(ISERROR($V2343),\"\",OFFSET('Smelter Look-up'!$G$4,$V2343-4,0))","v":""},{"$f":"IF(ISERROR($V2343),\"\",OFFSET('Smelter Look-up'!$H$4,$V2343-4,0))","v":""},{"$f":"IF(ISERROR($V2343),\"\",OFFSET('Smelter Look-up'!$I$4,$V2343-4,0))","v":""},{"$nulls":7},{"$f":"IF(ISERROR($V2343),\"\",OFFSET('Smelter Look-up'!$C$4,$V2343-4,0)&\"\")","v":""},"",{"$f":"IF(B2343=\"\",\"\",IF(ISERROR(MATCH($J2343,SorP!$B$1:$B$5661,0)),\"\",INDIRECT(\"'SorP'!$A$\"&MATCH($J2343,SorP!$B$1:$B$5661,0))))","v":""},null,{"$f":"IF(C2343=\"\",NA(),MATCH($B2343&$C2343,'Smelter Look-up'!$J:$J,0))","v":{"$error":"#N/A"}},null,0,null,null,null,""]
[null,{"$f":"IF(LEN(A2344)=0,\"\",INDEX('Smelter Look-up'!$A:$A,MATCH($A2344,'Smelter Look-up'!$E:$E,0)))","v":""},{"$f":"IF(LEN(A2344)=0,\"\",INDEX('Smelter Look-up'!$C:$C,MATCH($A2344,'Smelter Look-up'!$E:$E,0)))","v":""},null,{"$f":"IF(ISERROR($V2344),\"\",OFFSET('Smelter Look-up'!$D$4,$V2344-4,0)&\"\")","v":""},{"$f":"IF(ISERROR($V2344),\"\",OFFSET('Smelter Look-up'!$E$4,$V2344-4,0))","v":""},{"$f":"IF(C2344=$X$4,\"Enter smelter details\",IF(ISERROR($V2344),\"\",OFFSET('Smelter Look-up'!$F$4,$V2344-4,0)))","v":""},{"$f":"IF(ISERROR($V2344),\"\",OFFSET('Smelter Look-up'!$G$4,$V2344-4,0))","v":""},{"$f":"IF(ISERROR($V2344),\"\",OFFSET('Smelter Look-up'!$H$4,$V2344-4,0))","v":""},{"$f":"IF(ISERROR($V2344),\"\",OFFSET('Smelter Look-up'!$I$4,$V2344-4,0))","v":""},{"$nulls":7},{"$f":"IF(ISERROR($V2344),\"\",OFFSET('Smelter Look-up'!$C$4,$V2344-4,0)&\"\")","v":""},"",{"$f":"IF(B2344=\"\",\"\",IF(ISERROR(MATCH($J2344,SorP!$B$1:$B$5661,0)),\"\",INDIRECT(\"'SorP'!$A$\"&MATCH($J2344,SorP!$B$1:$B$5661,0))))","v":""},null,{"$f":"IF(C2344=\"\",NA(),MATCH($B2344&$C2344,'Smelter Look-up'!$J:$J,0))","v":{"$error":"#N/A"}},null,0,null,null,null,""]
[null,{"$f":"IF(LEN(A2345)=0,\"\",INDEX('Smelter Look-up'!$A:$A,MATCH($A2345,'Smelter Look-up'!$E:$E,0)))","v":""},{"$f":"IF(LEN(A2345)=0,\"\",INDEX('Smelter Look-up'!$C:$C,MATCH($A2345,'Smelter Look-up'!$E:$E,0)))","v":""},null,{"$f":"IF(ISERROR($V2345),\"\",OFFSET('Smelter Look-up'!$D$4,$V2345-4,0)&\"\")","v":""},{"$f":"IF(ISERROR($V2345),\"\",OFFSET('Smelter Look-up'!$E$4,$V2345-4,0))","v":""},{"$f":"IF(C2345=$X$4,\"Enter smelter details\",IF(ISERROR($V2345),\"\",OFFSET('Smelter Look-up'!$F$4,$V2345-4,0)))","v":""},{"$f":"IF(ISERROR($V2345),\"\",OFFSET('Smelter Look-up'!$G$4,$V2345-4,0))","v":""},{"$f":"IF(ISERROR($V2345),\"\",OFFSET('Smelter Look-up'!$H$4,$V2345-4,0))","v":""},{"$f":"IF(ISERROR($V2345),\"\",OFFSET('Smelter Look-up'!$I$4,$V2345-4,0))","v":""},{"$nulls":7},{"$f":"IF(ISERROR($V2345),\"\",OFFSET('Smelter Look-up'!$C$4,$V2345-4,0)&\"\")","v":""},"",{"$f":"IF(B2345=\"\",\"\",IF(ISERROR(MATCH($J2345,SorP!$B$1:$B$5661,0)),\"\",INDIRECT(\"'SorP'!$A$\"&MATCH($J2345,SorP!$B$1:$B$5661,0))))","v":""},null,{"$f":"IF(C2345=\"\",NA(),MATCH($B2345&$C2345,'Smelter Look-up'!$J:$J,0))","v":{"$error":"#N/A"}},null,0,null,null,null,""]
[null,{"$f":"IF(LEN(A2346)=0,\"\",INDEX('Smelter Look-up'!$A:$A,MATCH($A2346,'Smelter Look-up'!$E:$E,0)))","v":""},{"$f":"IF(LEN(A2346)=0,\"\",INDEX('Smelter Look-up'!$C:$C,MATCH($A2346,'Smelter Look-up'!$E:$E,0)))","v":""},null,{"$f":"IF(ISERROR($V2346),\"\",OFFSET('Smelter Look-up'!$D$4,$V2346-4,0)&\"\")","v":""},{"$f":"IF(ISERROR($V2346),\"\",OFFSET('Smelter Look-up'!$E$4,$V2346-4,0))","v":""},{"$f":"IF(C2346=$X$4,\"Enter smelter details\",IF(ISERROR($V2346),\"\",OFFSET('Smelter Look-up'!$F$4,$V2346-4,0)))","v":""},{"$f":"IF(ISERROR($V2346),\"\",OFFSET('Smelter Look-up'!$G$4,$V2346-4,0))","v":""},{"$f":"IF(ISERROR($V2346),\"\",OFFSET('Smelter Look-up'!$H$4,$V2346-4,0))","v":""},{"$f":"IF(ISERROR($V2346),\"\",OFFSET('Smelter Look-up'!$I$4,$V2346-4,0))","v":""},{"$nulls":7},{"$f":"IF(ISERROR($V2346),\"\",OFFSET('Smelter Look-up'!$C$4,$V2346-4,0)&\"\")","v":""},"",{"$f":"IF(B2346=\"\",\"\",IF(ISERROR(MATCH($J2346,SorP!$B$1:$B$5661,0)),\"\",INDIRECT(\"'SorP'!$A$\"&MATCH($J2346,SorP!$B$1:$B$5661,0))))","v":""},null,{"$f":"IF(C2346=\"\",NA(),MATCH($B2346&$C2346,'Smelter Look-up'!$J:$J,0))","v":{"$error":"#N/A"}},null,0,null,null,null,""]
[null,{"$f":"IF(LEN(A2347)=0,\"\",INDEX('Smelter Look-up'!$A:$A,MATCH($A2347,'Smelter Look-up'!$E:$E,0)))","v":""},{"$f":"IF(LEN(A2347)=0,\"\",INDEX('Smelter Look-up'!$C:$C,MATCH($A2347,'Smelter Look-up'!$E:$E,0)))","v":""},null,{"$f":"IF(ISERROR($V2347),\"\",OFFSET('Smelter Look-up'!$D$4,$V2347-4,0)&\"\")","v":""},{"$f":"IF(ISERROR($V2347),\"\",OFFSET('Smelter Look-up'!$E$4,$V2347-4,0))","v":""},{"$f":"IF(C2347=$X$4,\"Enter smelter details\",IF(ISERROR($V2347),\"\",OFFSET('Smelter Look-up'!$F$4,$V2347-4,0)))","v":""},{"$f":"IF(ISERROR($V2347),\"\",OFFSET('Smelter Look-up'!$G$4,$V2347-4,0))","v":""},{"$f":"IF(ISERROR($V2347),\"\",OFFSET('Smelter Look-up'!$H$4,$V2347-4,0))","v":""},{"$f":"IF(ISERROR($V2347),\"\",OFFSET('Smelter Look-up'!$I$4,$V2347-4,0))","v":""},{"$nulls":7},{"$f":"IF(ISERROR($V2347),\"\",OFFSET('Smelter Look-up'!$C$4,$V2347-4,0)&\"\")","v":""},"",{"$f":"IF(B2347=\"\",\"\",IF(ISERROR(MATCH($J2347,SorP!$B$1:$B$5661,0)),\"\",INDIRECT(\"'SorP'!$A$\"&MATCH($J2347,SorP!$B$1:$B$5661,0))))","v":""},null,{"$f":"IF(C2347=\"\",NA(),MATCH($B2347&$C2347,'Smelter Look-up'!$J:$J,0))","v":{"$error":"#N/A"}},null,0,null,null,null,""]
[null,{"$f":"IF(LEN(A2348)=0,\"\",INDEX('Smelter Look-up'!$A:$A,MATCH($A2348,'Smelter Look-up'!$E:$E,0)))","v":""},{"$f":"IF(LEN(A2348)=0,\"\",INDEX('Smelter Look-up'!$C:$C,MATCH($A2348,'Smelter Look-up'!$E:$E,0)))","v":""},null,{"$f":"IF(ISERROR($V2348),\"\",OFFSET('Smelter Look-up'!$D$4,$V2348-4,0)&\"\")","v":""},{"$f":"IF(ISERROR($V2348),\"\",OFFSET('Smelter Look-up'!$E$4,$V2348-4,0))","v":""},{"$f":"IF(C2348=$X$4,\"Enter smelter details\",IF(ISERROR($V2348),\"\",OFFSET('Smelter Look-up'!$F$4,$V2348-4,0)))","v":""},{"$f":"IF(ISERROR($V2348),\"\",OFFSET('Smelter Look-up'!$G$4,$V2348-4,0))","v":""},{"$f":"IF(ISERROR($V2348),\"\",OFFSET('Smelter Look-up'!$H$4,$V2348-4,0))","v":""},{"$f":"IF(ISERROR($V2348),\"\",OFFSET('Smelter Look-up'!$I$4,$V2348-4,0))","v":""},{"$nulls":7},{"$f":"IF(ISERROR($V2348),\"\",OFFSET('Smelter Look-up'!$C$4,$V2348-4,0)&\"\")","v":""},"",{"$f":"IF(B2348=\"\",\"\",IF(ISERROR(MATCH($J2348,SorP!$B$1:$B$5661,0)),\"\",INDIRECT(\"'SorP'!$A$\"&MATCH($J2348,SorP!$B$1:$B$5661,0))))","v":""},null,{"$f":"IF(C2348=\"\",NA(),MATCH($B2348&$C2348,'Smelter Look-up'!$J:$J,0))","v":{"$error":"#N/A"}},null,0,null,null,null,""]
[null,{"$f":"IF(LEN(A2349)=0,\"\",INDEX('Smelter Look-up'!$A:$A,MATCH($A2349,'Smelter Look-up'!$E:$E,0)))","v":""},{"$f":"IF(LEN(A2349)=0,\"\",INDEX('Smelter Look-up'!$C:$C,MATCH($A2349,'Smelter Look-up'!$E:$E,0)))","v":""},null,{"$f":"IF(ISERROR($V2349),\"\",OFFSET('Smelter Look-up'!$D$4,$V2349-4,0)&\"\")","v":""},{"$f":"IF(ISERROR($V2349),\"\",OFFSET('Smelter Look-up'!$E$4,$V2349-4,0))","v":""},{"$f":"IF(C2349=$X$4,\"Enter smelter details\",IF(ISERROR($V2349),\"\",OFFSET('Smelter Look-up'!$F$4,$V2349-4,0)))","v":""},{"$f":"IF(ISERROR($V2349),\"\",OFFSET('Smelter Look-up'!$G$4,$V2349-4,0))","v":""},{"$f":"IF(ISERROR($V2349),\"\",OFFSET('Smelter Look-up'!$H$4,$V2349-4,0))","v":""},{"$f":"IF(ISERROR($V2349),\"\",OFFSET('Smelter Look-up'!$I$4,$V2349-4,0))","v":""},{"$nulls":7},{"$f":"IF(ISERROR($V2349),\"\",OFFSET('Smelter Look-up'!$C$4,$V2349-4,0)&\"\")","v":""},"",{"$f":"IF(B2349=\"\",\"\",IF(ISERROR(MATCH($J2349,SorP!$B$1:$B$5661,0)),\"\",INDIRECT(\"'SorP'!$A$\"&MATCH($J2349,SorP!$B$1:$B$5661,0))))","v":""},null,{"$f":"IF(C2349=\"\",NA(),MATCH($B2349&$C2349,'Smelter Look-up'!$J:$J,0))","v":{"$error":"#N/A"}},null,0,null,null,null,""]
[null,{"$f":"IF(LEN(A2350)=0,\"\",INDEX('Smelter Look-up'!$A:$A,MATCH($A2350,'Smelter Look-up'!$E:$E,0)))","v":""},{"$f":"IF(LEN(A2350)=0,\"\",INDEX('Smelter Look-up'!$C:$C,MATCH($A2350,'Smelter Look-up'!$E:$E,0)))","v":""},null,{"$f":"IF(ISERROR($V2350),\"\",OFFSET('Smelter Look-up'!$D$4,$V2350-4,0)&\"\")","v":""},{"$f":"IF(ISERROR($V2350),\"\",OFFSET('Smelter Look-up'!$E$4,$V2350-4,0))","v":""},{"$f":"IF(C2350=$X$4,\"Enter smelter details\",IF(ISERROR($V2350),\"\",OFFSET('Smelter Look-up'!$F$4,$V2350-4,0)))","v":""},{"$f":"IF(ISERROR($V2350),\"\",OFFSET('Smelter Look-up'!$G$4,$V2350-4,0))","v":""},{"$f":"IF(ISERROR($V2350),\"\",OFFSET('Smelter Look-up'!$H$4,$V2350-4,0))","v":""},{"$f":"IF(ISERROR($V2350),\"\",OFFSET('Smelter Look-up'!$I$4,$V2350-4,0))","v":""},{"$nulls":7},{"$f":"IF(ISERROR($V2350),\"\",OFFSET('Smelter Look-up'!$C$4,$V2350-4,0)&\"\")","v":""},"",{"$f":"IF(B2350=\"\",\"\",IF(ISERROR(MATCH($J2350,SorP!$B$1:$B$5661,0)),\"\",INDIRECT(\"'SorP'!$A$\"&MATCH($J2350,SorP!$B$1:$B$5661,0))))","v":""},null,{"$f":"IF(C2350=\"\",NA(),MATCH($B2350&$C2350,'Smelter Look-up'!$J:$J,0))","v":{"$error":"#N/A"}},null,0,null,null,null,""]
[null,{"$f":"IF(LEN(A2351)=0,\"\",INDEX('Smelter Look-up'!$A:$A,MATCH($A2351,'Smelter Look-up'!$E:$E,0)))","v":""},{"$f":"IF(LEN(A2351)=0,\"\",INDEX('Smelter Look-up'!$C:$C,MATCH($A2351,'Smelter Look-up'!$E:$E,0)))","v":""},null,{"$f":"IF(ISERROR($V2351),\"\",OFFSET('Smelter Look-up'!$D$4,$V2351-4,0)&\"\")","v":""},{"$f":"IF(ISERROR($V2351),\"\",OFFSET('Smelter Look-up'!$E$4,$V2351-4,0))","v":""},{"$f":"IF(C2351=$X$4,\"Enter smelter details\",IF(ISERROR($V2351),\"\",OFFSET('Smelter Look-up'!$F$4,$V2351-4,0)))","v":""},{"$f":"IF(ISERROR($V2351),\"\",OFFSET('Smelter Look-up'!$G$4,$V2351-4,0))","v":""},{"$f":"IF(ISERROR($V2351),\"\",OFFSET('Smelter Look-up'!$H$4,$V2351-4,0))","v":""},{"$f":"IF(ISERROR($V2351),\"\",OFFSET('Smelter Look-up'!$I$4,$V2351-4,0))","v":""},{"$nulls":7},{"$f":"IF(ISERROR($V2351),\"\",OFFSET('Smelter Look-up'!$C$4,$V2351-4,0)&\"\")","v":""},"",{"$f":"IF(B2351=\"\",\"\",IF(ISERROR(MATCH($J2351,SorP!$B$1:$B$5661,0)),\"\",INDIRECT(\"'SorP'!$A$\"&MATCH($J2351,SorP!$B$1:$B$5661,0))))","v":""},null,{"$f":"IF(C2351=\"\",NA(),MATCH($B2351&$C2351,'Smelter Look-up'!$J:$J,0))","v":{"$error":"#N/A"}},null,0,null,null,null,""]
[null,{"$f":"IF(LEN(A2352)=0,\"\",INDEX('Smelter Look-up'!$A:$A,MATCH($A2352,'Smelter Look-up'!$E:$E,0)))","v":""},{"$f":"IF(LEN(A2352)=0,\"\",INDEX('Smelter Look-up'!$C:$C,MATCH($A2352,'Smelter Look-up'!$E:$E,0)))","v":""},null,{"$f":"IF(ISERROR($V2352),\"\",OFFSET('Smelter Look-up'!$D$4,$V2352-4,0)&\"\")","v":""},{"$f":"IF(ISERROR($V2352),\"\",OFFSET('Smelter Look-up'!$E$4,$V2352-4,0))","v":""},{"$f":"IF(C2352=$X$4,\"Enter smelter details\",IF(ISERROR($V2352),\"\",OFFSET('Smelter Look-up'!$F$4,$V2352-4,0)))","v":""},{"$f":"IF(ISERROR($V2352),\"\",OFFSET('Smelter Look-up'!$G$4,$V2352-4,0))","v":""},{"$f":"IF(ISERROR($V2352),\"\",OFFSET('Smelter Look-up'!$H$4,$V2352-4,0))","v":""},{"$f":"IF(ISERROR($V2352),\"\",OFFSET('Smelter Look-up'!$I$4,$V2352-4,0))","v":""},{"$nulls":7},{"$f":"IF(ISERROR($V2352),\"\",OFFSET('Smelter Look-up'!$C$4,$V2352-4,0)&\"\")","v":""},"",{"$f":"IF(B2352=\"\",\"\",IF(ISERROR(MATCH($J2352,SorP!$B$1:$B$5661,0)),\"\",INDIRECT(\"'SorP'!$A$\"&MATCH($J2352,SorP!$B$1:$B$5661,0))))","v":""},null,{"$f":"IF(C2352=\"\",NA(),MATCH($B2352&$C2352,'Smelter Look-up'!$J:$J,0))","v":{"$error":"#N/A"}},null,0,null,null,null,""]
[null,{"$f":"IF(LEN(A2353)=0,\"\",INDEX('Smelter Look-up'!$A:$A,MATCH($A2353,'Smelter Look-up'!$E:$E,0)))","v":""},{"$f":"IF(LEN(A2353)=0,\"\",INDEX('Smelter Look-up'!$C:$C,MATCH($A2353,'Smelter Look-up'!$E:$E,0)))","v":""},null,{"$f":"IF(ISERROR($V2353),\"\",OFFSET('Smelter Look-up'!$D$4,$V2353-4,0)&\"\")","v":""},{"$f":"IF(ISERROR($V2353),\"\",OFFSET('Smelter Look-up'!$E$4,$V2353-4,0))","v":""},{"$f":"IF(C2353=$X$4,\"Enter smelter details\",IF(ISERROR($V2353),\"\",OFFSET('Smelter Look-up'!$F$4,$V2353-4,0)))","v":""},{"$f":"IF(ISERROR($V2353),\"\",OFFSET('Smelter Look-up'!$G$4,$V2353-4,0))","v":""},{"$f":"IF(ISERROR($V2353),\"\",OFFSET('Smelter Look-up'!$H$4,$V2353-4,0))","v":""},{"$f":"IF(ISERROR($V2353),\"\",OFFSET('Smelter Look-up'!$I$4,$V2353-4,0))","v":""},{"$nulls":7},{"$f":"IF(ISERROR($V2353),\"\",OFFSET('Smelter Look-up'!$C$4,$V2353-4,0)&\"\")","v":""},"",{"$f":"IF(B2353=\"\",\"\",IF(ISERROR(MATCH($J2353,SorP!$B$1:$B$5661,0)),\"\",INDIRECT(\"'SorP'!$A$\"&MATCH($J2353,SorP!$B$1:$B$5661,0))))","v":""},null,{"$f":"IF(C2353=\"\",NA(),MATCH($B2353&$C2353,'Smelter Look-up'!$J:$J,0))","v":{"$error":"#N/A"}},null,0,null,null,null,""]
[null,{"$f":"IF(LEN(A2354)=0,\"\",INDEX('Smelter Look-up'!$A:$A,MATCH($A2354,'Smelter Look-up'!$E:$E,0)))","v":""},{"$f":"IF(LEN(A2354)=0,\"\",INDEX('Smelter Look-up'!$C:$C,MATCH($A2354,'Smelter Look-up'!$E:$E,0)))","v":""},null,{"$f":"IF(ISERROR($V2354),\"\",OFFSET('Smelter Look-up'!$D$4,$V2354-4,0)&\"\")","v":""},{"$f":"IF(ISERROR($V2354),\"\",OFFSET('Smelter Look-up'!$E$4,$V2354-4,0))","v":""},{"$f":"IF(C2354=$X$4,\"Enter smelter details\",IF(ISERROR($V2354),\"\",OFFSET('Smelter Look-up'!$F$4,$V2354-4,0)))","v":""},{"$f":"IF(ISERROR($V2354),\"\",OFFSET('Smelter Look-up'!$G$4,$V2354-4,0))","v":""},{"$f":"IF(ISERROR($V2354),\"\",OFFSET('Smelter Look-up'!$H$4,$V2354-4,0))","v":""},{"$f":"IF(ISERROR($V2354),\"\",OFFSET('Smelter Look-up'!$I$4,$V2354-4,0))","v":""},{"$nulls":7},{"$f":"IF(ISERROR($V2354),\"\",OFFSET('Smelter Look-up'!$C$4,$V2354-4,0)&\"\")","v":""},"",{"$f":"IF(B2354=\"\",\"\",IF(ISERROR(MATCH($J2354,SorP!$B$1:$B$5661,0)),\"\",INDIRECT(\"'SorP'!$A$\"&MATCH($J2354,SorP!$B$1:$B$5661,0))))","v":""},null,{"$f":"IF(C2354=\"\",NA(),MATCH($B2354&$C2354,'Smelter Look-up'!$J:$J,0))","v":{"$error":"#N/A"}},null,0,null,null,null,""]
[null,{"$f":"IF(LEN(A2355)=0,\"\",INDEX('Smelter Look-up'!$A:$A,MATCH($A2355,'Smelter Look-up'!$E:$E,0)))","v":""},{"$f":"IF(LEN(A2355)=0,\"\",INDEX('Smelter Look-up'!$C:$C,MATCH($A2355,'Smelter Look-up'!$E:$E,0)))","v":""},null,{"$f":"IF(ISERROR($V2355),\"\",OFFSET('Smelter Look-up'!$D$4,$V2355-4,0)&\"\")","v":""},{"$f":"IF(ISERROR($V2355),\"\",OFFSET('Smelter Look-up'!$E$4,$V2355-4,0))","v":""},{"$f":"IF(C2355=$X$4,\"Enter smelter details\",IF(ISERROR($V2355),\"\",OFFSET('Smelter Look-up'!$F$4,$V2355-4,0)))","v":""},{"$f":"IF(ISERROR($V2355),\"\",OFFSET('Smelter Look-up'!$G$4,$V2355-4,0))","v":""},{"$f":"IF(ISERROR($V2355),\"\",OFFSET('Smelter Look-up'!$H$4,$V2355-4,0))","v":""},{"$f":"IF(ISERROR($V2355),\"\",OFFSET('Smelter Look-up'!$I$4,$V2355-4,0))","v":""},{"$nulls":7},{"$f":"IF(ISERROR($V2355),\"\",OFFSET('Smelter Look-up'!$C$4,$V2355-4,0)&\"\")","v":""},"",{"$f":"IF(B2355=\"\",\"\",IF(ISERROR(MATCH($J2355,SorP!$B$1:$B$5661,0)),\"\",INDIRECT(\"'SorP'!$A$\"&MATCH($J2355,SorP!$B$1:$B$5661,0))))","v":""},null,{"$f":"IF(C2355=\"\",NA(),MATCH($B2355&$C2355,'Smelter Look-up'!$J:$J,0))","v":{"$error":"#N/A"}},null,0,null,null,null,""]
[null,{"$f":"IF(LEN(A2356)=0,\"\",INDEX('Smelter Look-up'!$A:$A,MATCH($A2356,'Smelter Look-up'!$E:$E,0)))","v":""},{"$f":"IF(LEN(A2356)=0,\"\",INDEX('Smelter Look-up'!$C:$C,MATCH($A2356,'Smelter Look-up'!$E:$E,0)))","v":""},null,{"$f":"IF(ISERROR($V2356),\"\",OFFSET('Smelter Look-up'!$D$4,$V2356-4,0)&\"\")","v":""},{"$f":"IF(ISERROR($V2356),\"\",OFFSET('Smelter Look-up'!$E$4,$V2356-4,0))","v":""},{"$f":"IF(C2356=$X$4,\"Enter smelter details\",IF(ISERROR($V2356),\"\",OFFSET('Smelter Look-up'!$F$4,$V2356-4,0)))","v":""},{"$f":"IF(ISERROR($V2356),\"\",OFFSET('Smelter Look-up'!$G$4,$V2356-4,0))","v":""},{"$f":"IF(ISERROR($V2356),\"\",OFFSET('Smelter Look-up'!$H$4,$V2356-4,0))","v":""},{"$f":"IF(ISERROR($V2356),\"\",OFFSET('Smelter Look-up'!$I$4,$V2356-4,0))","v":""},{"$nulls":7},{"$f":"IF(ISERROR($V2356),\"\",OFFSET('Smelter Look-up'!$C$4,$V2356-4,0)&\"\")","v":""},"",{"$f":"IF(B2356=\"\",\"\",IF(ISERROR(MATCH($J2356,SorP!$B$1:$B$5661,0)),\"\",INDIRECT(\"'SorP'!$A$\"&MATCH($J2356,SorP!$B$1:$B$5661,0))))","v":""},null,{"$f":"IF(C2356=\"\",NA(),MATCH($B2356&$C2356,'Smelter Look-up'!$J:$J,0))","v":{"$error":"#N/A"}},null,0,null,null,null,""]
[null,{"$f":"IF(LEN(A2357)=0,\"\",INDEX('Smelter Look-up'!$A:$A,MATCH($A2357,'Smelter Look-up'!$E:$E,0)))","v":""},{"$f":"IF(LEN(A2357)=0,\"\",INDEX('Smelter Look-up'!$C:$C,MATCH($A2357,'Smelter Look-up'!$E:$E,0)))","v":""},null,{"$f":"IF(ISERROR($V2357),\"\",OFFSET('Smelter Look-up'!$D$4,$V2357-4,0)&\"\")","v":""},{"$f":"IF(ISERROR($V2357),\"\",OFFSET('Smelter Look-up'!$E$4,$V2357-4,0))","v":""},{"$f":"IF(C2357=$X$4,\"Enter smelter details\",IF(ISERROR($V2357),\"\",OFFSET('Smelter Look-up'!$F$4,$V2357-4,0)))","v":""},{"$f":"IF(ISERROR($V2357),\"\",OFFSET('Smelter Look-up'!$G$4,$V2357-4,0))","v":""},{"$f":"IF(ISERROR($V2357),\"\",OFFSET('Smelter Look-up'!$H$4,$V2357-4,0))","v":""},{"$f":"IF(ISERROR($V2357),\"\",OFFSET('Smelter Look-up'!$I$4,$V2357-4,0))","v":""},{"$nulls":7},{"$f":"IF(ISERROR($V2357),\"\",OFFSET('Smelter Look-up'!$C$4,$V2357-4,0)&\"\")","v":""},"",{"$f":"IF(B2357=\"\",\"\",IF(ISERROR(MATCH($J2357,SorP!$B$1:$B$5661,0)),\"\",INDIRECT(\"'SorP'!$A$\"&MATCH($J2357,SorP!$B$1:$B$5661,0))))","v":""},null,{"$f":"IF(C2357=\"\",NA(),MATCH($B2357&$C2357,'Smelter Look-up'!$J:$J,0))","v":{"$error":"#N/A"}},null,0,null,null,null,""]
[null,{"$f":"IF(LEN(A2358)=0,\"\",INDEX('Smelter Look-up'!$A:$A,MATCH($A2358,'Smelter Look-up'!$E:$E,0)))","v":""},{"$f":"IF(LEN(A2358)=0,\"\",INDEX('Smelter Look-up'!$C:$C,MATCH($A2358,'Smelter Look-up'!$E:$E,0)))","v":""},null,{"$f":"IF(ISERROR($V2358),\"\",OFFSET('Smelter Look-up'!$D$4,$V2358-4,0)&\"\")","v":""},{"$f":"IF(ISERROR($V2358),\"\",OFFSET('Smelter Look-up'!$E$4,$V2358-4,0))","v":""},{"$f":"IF(C2358=$X$4,\"Enter smelter details\",IF(ISERROR($V2358),\"\",OFFSET('Smelter Look-up'!$F$4,$V2358-4,0)))","v":""},{"$f":"IF(ISERROR($V2358),\"\",OFFSET('Smelter Look-up'!$G$4,$V2358-4,0))","v":""},{"$f":"IF(ISERROR($V2358),\"\",OFFSET('Smelter Look-up'!$H$4,$V2358-4,0))","v":""},{"$f":"IF(ISERROR($V2358),\"\",OFFSET('Smelter Look-up'!$I$4,$V2358-4,0))","v":""},{"$nulls":7},{"$f":"IF(ISERROR($V2358),\"\",OFFSET('Smelter Look-up'!$C$4,$V2358-4,0)&\"\")","v":""},"",{"$f":"IF(B2358=\"\",\"\",IF(ISERROR(MATCH($J2358,SorP!$B$1:$B$5661,0)),\"\",INDIRECT(\"'SorP'!$A$\"&MATCH($J2358,SorP!$B$1:$B$5661,0))))","v":""},null,{"$f":"IF(C2358=\"\",NA(),MATCH($B2358&$C2358,'Smelter Look-up'!$J:$J,0))","v":{"$error":"#N/A"}},null,0,null,null,null,""]
[null,{"$f":"IF(LEN(A2359)=0,\"\",INDEX('Smelter Look-up'!$A:$A,MATCH($A2359,'Smelter Look-up'!$E:$E,0)))","v":""},{"$f":"IF(LEN(A2359)=0,\"\",INDEX('Smelter Look-up'!$C:$C,MATCH($A2359,'Smelter Look-up'!$E:$E,0)))","v":""},null,{"$f":"IF(ISERROR($V2359),\"\",OFFSET('Smelter Look-up'!$D$4,$V2359-4,0)&\"\")","v":""},{"$f":"IF(ISERROR($V2359),\"\",OFFSET('Smelter Look-up'!$E$4,$V2359-4,0))","v":""},{"$f":"IF(C2359=$X$4,\"Enter smelter details\",IF(ISERROR($V2359),\"\",OFFSET('Smelter Look-up'!$F$4,$V2359-4,0)))","v":""},{"$f":"IF(ISERROR($V2359),\"\",OFFSET('Smelter Look-up'!$G$4,$V2359-4,0))","v":""},{"$f":"IF(ISERROR($V2359),\"\",OFFSET('Smelter Look-up'!$H$4,$V2359-4,0))","v":""},{"$f":"IF(ISERROR($V2359),\"\",OFFSET('Smelter Look-up'!$I$4,$V2359-4,0))","v":""},{"$nulls":7},{"$f":"IF(ISERROR($V2359),\"\",OFFSET('Smelter Look-up'!$C$4,$V2359-4,0)&\"\")","v":""},"",{"$f":"IF(B2359=\"\",\"\",IF(ISERROR(MATCH($J2359,SorP!$B$1:$B$5661,0)),\"\",INDIRECT(\"'SorP'!$A$\"&MATCH($J2359,SorP!$B$1:$B$5661,0))))","v":""},null,{"$f":"IF(C2359=\"\",NA(),MATCH($B2359&$C2359,'Smelter Look-up'!$J:$J,0))","v":{"$error":"#N/A"}},null,0,null,null,null,""]
[null,{"$f":"IF(LEN(A2360)=0,\"\",INDEX('Smelter Look-up'!$A:$A,MATCH($A2360,'Smelter Look-up'!$E:$E,0)))","v":""},{"$f":"IF(LEN(A2360)=0,\"\",INDEX('Smelter Look-up'!$C:$C,MATCH($A2360,'Smelter Look-up'!$E:$E,0)))","v":""},null,{"$f":"IF(ISERROR($V2360),\"\",OFFSET('Smelter Look-up'!$D$4,$V2360-4,0)&\"\")","v":""},{"$f":"IF(ISERROR($V2360),\"\",OFFSET('Smelter Look-up'!$E$4,$V2360-4,0))","v":""},{"$f":"IF(C2360=$X$4,\"Enter smelter details\",IF(ISERROR($V2360),\"\",OFFSET('Smelter Look-up'!$F$4,$V2360-4,0)))","v":""},{"$f":"IF(ISERROR($V2360),\"\",OFFSET('Smelter Look-up'!$G$4,$V2360-4,0))","v":""},{"$f":"IF(ISERROR($V2360),\"\",OFFSET('Smelter Look-up'!$H$4,$V2360-4,0))","v":""},{"$f":"IF(ISERROR($V2360),\"\",OFFSET('Smelter Look-up'!$I$4,$V2360-4,0))","v":""},{"$nulls":7},{"$f":"IF(ISERROR($V2360),\"\",OFFSET('Smelter Look-up'!$C$4,$V2360-4,0)&\"\")","v":""},"",{"$f":"IF(B2360=\"\",\"\",IF(ISERROR(MATCH($J2360,SorP!$B$1:$B$5661,0)),\"\",INDIRECT(\"'SorP'!$A$\"&MATCH($J2360,SorP!$B$1:$B$5661,0))))","v":""},null,{"$f":"IF(C2360=\"\",NA(),MATCH($B2360&$C2360,'Smelter Look-up'!$J:$J,0))","v":{"$error":"#N/A"}},null,0,null,null,null,""]
[null,{"$f":"IF(LEN(A2361)=0,\"\",INDEX('Smelter Look-up'!$A:$A,MATCH($A2361,'Smelter Look-up'!$E:$E,0)))","v":""},{"$f":"IF(LEN(A2361)=0,\"\",INDEX('Smelter Look-up'!$C:$C,MATCH($A2361,'Smelter Look-up'!$E:$E,0)))","v":""},null,{"$f":"IF(ISERROR($V2361),\"\",OFFSET('Smelter Look-up'!$D$4,$V2361-4,0)&\"\")","v":""},{"$f":"IF(ISERROR($V2361),\"\",OFFSET('Smelter Look-up'!$E$4,$V2361-4,0))","v":""},{"$f":"IF(C2361=$X$4,\"Enter smelter details\",IF(ISERROR($V2361),\"\",OFFSET('Smelter Look-up'!$F$4,$V2361-4,0)))","v":""},{"$f":"IF(ISERROR($V2361),\"\",OFFSET('Smelter Look-up'!$G$4,$V2361-4,0))","v":""},{"$f":"IF(ISERROR($V2361),\"\",OFFSET('Smelter Look-up'!$H$4,$V2361-4,0))","v":""},{"$f":"IF(ISERROR($V2361),\"\",OFFSET('Smelter Look-up'!$I$4,$V2361-4,0))","v":""},{"$nulls":7},{"$f":"IF(ISERROR($V2361),\"\",OFFSET('Smelter Look-up'!$C$4,$V2361-4,0)&\"\")","v":""},"",{"$f":"IF(B2361=\"\",\"\",IF(ISERROR(MATCH($J2361,SorP!$B$1:$B$5661,0)),\"\",INDIRECT(\"'SorP'!$A$\"&MATCH($J2361,SorP!$B$1:$B$5661,0))))","v":""},null,{"$f":"IF(C2361=\"\",NA(),MATCH($B2361&$C2361,'Smelter Look-up'!$J:$J,0))","v":{"$error":"#N/A"}},null,0,null,null,null,""]
[null,{"$f":"IF(LEN(A2362)=0,\"\",INDEX('Smelter Look-up'!$A:$A,MATCH($A2362,'Smelter Look-up'!$E:$E,0)))","v":""},{"$f":"IF(LEN(A2362)=0,\"\",INDEX('Smelter Look-up'!$C:$C,MATCH($A2362,'Smelter Look-up'!$E:$E,0)))","v":""},null,{"$f":"IF(ISERROR($V2362),\"\",OFFSET('Smelter Look-up'!$D$4,$V2362-4,0)&\"\")","v":""},{"$f":"IF(ISERROR($V2362),\"\",OFFSET('Smelter Look-up'!$E$4,$V2362-4,0))","v":""},{"$f":"IF(C2362=$X$4,\"Enter smelter details\",IF(ISERROR($V2362),\"\",OFFSET('Smelter Look-up'!$F$4,$V2362-4,0)))","v":""},{"$f":"IF(ISERROR($V2362),\"\",OFFSET('Smelter Look-up'!$G$4,$V2362-4,0))","v":""},{"$f":"IF(ISERROR($V2362),\"\",OFFSET('Smelter Look-up'!$H$4,$V2362-4,0))","v":""},{"$f":"IF(ISERROR($V2362),\"\",OFFSET('Smelter Look-up'!$I$4,$V2362-4,0))","v":""},{"$nulls":7},{"$f":"IF(ISERROR($V2362),\"\",OFFSET('Smelter Look-up'!$C$4,$V2362-4,0)&\"\")","v":""},"",{"$f":"IF(B2362=\"\",\"\",IF(ISERROR(MATCH($J2362,SorP!$B$1:$B$5661,0)),\"\",INDIRECT(\"'SorP'!$A$\"&MATCH($J2362,SorP!$B$1:$B$5661,0))))","v":""},null,{"$f":"IF(C2362=\"\",NA(),MATCH($B2362&$C2362,'Smelter Look-up'!$J:$J,0))","v":{"$error":"#N/A"}},null,0,null,null,null,""]
[null,{"$f":"IF(LEN(A2363)=0,\"\",INDEX('Smelter Look-up'!$A:$A,MATCH($A2363,'Smelter Look-up'!$E:$E,0)))","v":""},{"$f":"IF(LEN(A2363)=0,\"\",INDEX('Smelter Look-up'!$C:$C,MATCH($A2363,'Smelter Look-up'!$E:$E,0)))","v":""},null,{"$f":"IF(ISERROR($V2363),\"\",OFFSET('Smelter Look-up'!$D$4,$V2363-4,0)&\"\")","v":""},{"$f":"IF(ISERROR($V2363),\"\",OFFSET('Smelter Look-up'!$E$4,$V2363-4,0))","v":""},{"$f":"IF(C2363=$X$4,\"Enter smelter details\",IF(ISERROR($V2363),\"\",OFFSET('Smelter Look-up'!$F$4,$V2363-4,0)))","v":""},{"$f":"IF(ISERROR($V2363),\"\",OFFSET('Smelter Look-up'!$G$4,$V2363-4,0))","v":""},{"$f":"IF(ISERROR($V2363),\"\",OFFSET('Smelter Look-up'!$H$4,$V2363-4,0))","v":""},{"$f":"IF(ISERROR($V2363),\"\",OFFSET('Smelter Look-up'!$I$4,$V2363-4,0))","v":""},{"$nulls":7},{"$f":"IF(ISERROR($V2363),\"\",OFFSET('Smelter Look-up'!$C$4,$V2363-4,0)&\"\")","v":""},"",{"$f":"IF(B2363=\"\",\"\",IF(ISERROR(MATCH($J2363,SorP!$B$1:$B$5661,0)),\"\",INDIRECT(\"'SorP'!$A$\"&MATCH($J2363,SorP!$B$1:$B$5661,0))))","v":""},null,{"$f":"IF(C2363=\"\",NA(),MATCH($B2363&$C2363,'Smelter Look-up'!$J:$J,0))","v":{"$error":"#N/A"}},null,0,null,null,null,""]
[null,{"$f":"IF(LEN(A2364)=0,\"\",INDEX('Smelter Look-up'!$A:$A,MATCH($A2364,'Smelter Look-up'!$E:$E,0)))","v":""},{"$f":"IF(LEN(A2364)=0,\"\",INDEX('Smelter Look-up'!$C:$C,MATCH($A2364,'Smelter Look-up'!$E:$E,0)))","v":""},null,{"$f":"IF(ISERROR($V2364),\"\",OFFSET('Smelter Look-up'!$D$4,$V2364-4,0)&\"\")","v":""},{"$f":"IF(ISERROR($V2364),\"\",OFFSET('Smelter Look-up'!$E$4,$V2364-4,0))","v":""},{"$f":"IF(C2364=$X$4,\"Enter smelter details\",IF(ISERROR($V2364),\"\",OFFSET('Smelter Look-up'!$F$4,$V2364-4,0)))","v":""},{"$f":"IF(ISERROR($V2364),\"\",OFFSET('Smelter Look-up'!$G$4,$V2364-4,0))","v":""},{"$f":"IF(ISERROR($V2364),\"\",OFFSET('Smelter Look-up'!$H$4,$V2364-4,0))","v":""},{"$f":"IF(ISERROR($V2364),\"\",OFFSET('Smelter Look-up'!$I$4,$V2364-4,0))","v":""},{"$nulls":7},{"$f":"IF(ISERROR($V2364),\"\",OFFSET('Smelter Look-up'!$C$4,$V2364-4,0)&\"\")","v":""},"",{"$f":"IF(B2364=\"\",\"\",IF(ISERROR(MATCH($J2364,SorP!$B$1:$B$5661,0)),\"\",INDIRECT(\"'SorP'!$A$\"&MATCH($J2364,SorP!$B$1:$B$5661,0))))","v":""},null,{"$f":"IF(C2364=\"\",NA(),MATCH($B2364&$C2364,'Smelter Look-up'!$J:$J,0))","v":{"$error":"#N/A"}},null,0,null,null,null,""]
[null,{"$f":"IF(LEN(A2365)=0,\"\",INDEX('Smelter Look-up'!$A:$A,MATCH($A2365,'Smelter Look-up'!$E:$E,0)))","v":""},{"$f":"IF(LEN(A2365)=0,\"\",INDEX('Smelter Look-up'!$C:$C,MATCH($A2365,'Smelter Look-up'!$E:$E,0)))","v":""},null,{"$f":"IF(ISERROR($V2365),\"\",OFFSET('Smelter Look-up'!$D$4,$V2365-4,0)&\"\")","v":""},{"$f":"IF(ISERROR($V2365),\"\",OFFSET('Smelter Look-up'!$E$4,$V2365-4,0))","v":""},{"$f":"IF(C2365=$X$4,\"Enter smelter details\",IF(ISERROR($V2365),\"\",OFFSET('Smelter Look-up'!$F$4,$V2365-4,0)))","v":""},{"$f":"IF(ISERROR($V2365),\"\",OFFSET('Smelter Look-up'!$G$4,$V2365-4,0))","v":""},{"$f":"IF(ISERROR($V2365),\"\",OFFSET('Smelter Look-up'!$H$4,$V2365-4,0))","v":""},{"$f":"IF(ISERROR($V2365),\"\",OFFSET('Smelter Look-up'!$I$4,$V2365-4,0))","v":""},{"$nulls":7},{"$f":"IF(ISERROR($V2365),\"\",OFFSET('Smelter Look-up'!$C$4,$V2365-4,0)&\"\")","v":""},"",{"$f":"IF(B2365=\"\",\"\",IF(ISERROR(MATCH($J2365,SorP!$B$1:$B$5661,0)),\"\",INDIRECT(\"'SorP'!$A$\"&MATCH($J2365,SorP!$B$1:$B$5661,0))))","v":""},null,{"$f":"IF(C2365=\"\",NA(),MATCH($B2365&$C2365,'Smelter Look-up'!$J:$J,0))","v":{"$error":"#N/A"}},null,0,null,null,null,""]
[null,{"$f":"IF(LEN(A2366)=0,\"\",INDEX('Smelter Look-up'!$A:$A,MATCH($A2366,'Smelter Look-up'!$E:$E,0)))","v":""},{"$f":"IF(LEN(A2366)=0,\"\",INDEX('Smelter Look-up'!$C:$C,MATCH($A2366,'Smelter Look-up'!$E:$E,0)))","v":""},null,{"$f":"IF(ISERROR($V2366),\"\",OFFSET('Smelter Look-up'!$D$4,$V2366-4,0)&\"\")","v":""},{"$f":"IF(ISERROR($V2366),\"\",OFFSET('Smelter Look-up'!$E$4,$V2366-4,0))","v":""},{"$f":"IF(C2366=$X$4,\"Enter smelter details\",IF(ISERROR($V2366),\"\",OFFSET('Smelter Look-up'!$F$4,$V2366-4,0)))","v":""},{"$f":"IF(ISERROR($V2366),\"\",OFFSET('Smelter Look-up'!$G$4,$V2366-4,0))","v":""},{"$f":"IF(ISERROR($V2366),\"\",OFFSET('Smelter Look-up'!$H$4,$V2366-4,0))","v":""},{"$f":"IF(ISERROR($V2366),\"\",OFFSET('Smelter Look-up'!$I$4,$V2366-4,0))","v":""},{"$nulls":7},{"$f":"IF(ISERROR($V2366),\"\",OFFSET('Smelter Look-up'!$C$4,$V2366-4,0)&\"\")","v":""},"",{"$f":"IF(B2366=\"\",\"\",IF(ISERROR(MATCH($J2366,SorP!$B$1:$B$5661,0)),\"\",INDIRECT(\"'SorP'!$A$\"&MATCH($J2366,SorP!$B$1:$B$5661,0))))","v":""},null,{"$f":"IF(C2366=\"\",NA(),MATCH($B2366&$C2366,'Smelter Look-up'!$J:$J,0))","v":{"$error":"#N/A"}},null,0,null,null,null,""]
[null,{"$f":"IF(LEN(A2367)=0,\"\",INDEX('Smelter Look-up'!$A:$A,MATCH($A2367,'Smelter Look-up'!$E:$E,0)))","v":""},{"$f":"IF(LEN(A2367)=0,\"\",INDEX('Smelter Look-up'!$C:$C,MATCH($A2367,'Smelter Look-up'!$E:$E,0)))","v":""},null,{"$f":"IF(ISERROR($V2367),\"\",OFFSET('Smelter Look-up'!$D$4,$V2367-4,0)&\"\")","v":""},{"$f":"IF(ISERROR($V2367),\"\",OFFSET('Smelter Look-up'!$E$4,$V2367-4,0))","v":""},{"$f":"IF(C2367=$X$4,\"Enter smelter details\",IF(ISERROR($V2367),\"\",OFFSET('Smelter Look-up'!$F$4,$V2367-4,0)))","v":""},{"$f":"IF(ISERROR($V2367),\"\",OFFSET('Smelter Look-up'!$G$4,$V2367-4,0))","v":""},{"$f":"IF(ISERROR($V2367),\"\",OFFSET('Smelter Look-up'!$H$4,$V2367-4,0))","v":""},{"$f":"IF(ISERROR($V2367),\"\",OFFSET('Smelter Look-up'!$I$4,$V2367-4,0))","v":""},{"$nulls":7},{"$f":"IF(ISERROR($V2367),\"\",OFFSET('Smelter Look-up'!$C$4,$V2367-4,0)&\"\")","v":""},"",{"$f":"IF(B2367=\"\",\"\",IF(ISERROR(MATCH($J2367,SorP!$B$1:$B$5661,0)),\"\",INDIRECT(\"'SorP'!$A$\"&MATCH($J2367,SorP!$B$1:$B$5661,0))))","v":""},null,{"$f":"IF(C2367=\"\",NA(),MATCH($B2367&$C2367,'Smelter Look-up'!$J:$J,0))","v":{"$error":"#N/A"}},null,{"$f":"IF(AND(C2367=\"Smelter not listed\",OR(LEN(D2367)=0,LEN(E2367)=0)),1,0)","v":0},null,null,null,{"$f":"B2367&C2367","v":""}]
[null,{"$f":"IF(LEN(A2368)=0,\"\",INDEX('Smelter Look-up'!$A:$A,MATCH($A2368,'Smelter Look-up'!$E:$E,0)))","v":""},{"$f":"IF(LEN(A2368)=0,\"\",INDEX('Smelter Look-up'!$C:$C,MATCH($A2368,'Smelter Look-up'!$E:$E,0)))","v":""},null,{"$f":"IF(ISERROR($V2368),\"\",OFFSET('Smelter Look-up'!$D$4,$V2368-4,0)&\"\")","v":""},{"$f":"IF(ISERROR($V2368),\"\",OFFSET('Smelter Look-up'!$E$4,$V2368-4,0))","v":""},{"$f":"IF(C2368=$X$4,\"Enter smelter details\",IF(ISERROR($V2368),\"\",OFFSET('Smelter Look-up'!$F$4,$V2368-4,0)))","v":""},{"$f":"IF(ISERROR($V2368),\"\",OFFSET('Smelter Look-up'!$G$4,$V2368-4,0))","v":""},{"$f":"IF(ISERROR($V2368),\"\",OFFSET('Smelter Look-up'!$H$4,$V2368-4,0))","v":""},{"$f":"IF(ISERROR($V2368),\"\",OFFSET('Smelter Look-up'!$I$4,$V2368-4,0))","v":""},{"$nulls":7},{"$f":"IF(ISERROR($V2368),\"\",OFFSET('Smelter Look-up'!$C$4,$V2368-4,0)&\"\")","v":""},{"$f":"IF(B2368=\"\",\"\",IF(ISERROR(MATCH($E2368,CL,0)),\"Unknown\",INDIRECT(\"'C'!$A$\"&MATCH($E2368,CL,0)+1)))","v":""},{"$f":"IF(B2368=\"\",\"\",IF(ISERROR(MATCH($J2368,SorP!$B$1:$B$5661,0)),\"\",INDIRECT(\"'SorP'!$A$\"&MATCH($J2368,SorP!$B$1:$B$5661,0))))","v":""},null,{"$f":"IF(C2368=\"\",NA(),MATCH($B2368&$C2368,'Smelter Look-up'!$J:$J,0))","v":{"$error":"#N/A"}},null,0,null,null,null,""]
[null,{"$f":"IF(LEN(A2369)=0,\"\",INDEX('Smelter Look-up'!$A:$A,MATCH($A2369,'Smelter Look-up'!$E:$E,0)))","v":""},{"$f":"IF(LEN(A2369)=0,\"\",INDEX('Smelter Look-up'!$C:$C,MATCH($A2369,'Smelter Look-up'!$E:$E,0)))","v":""},null,{"$f":"IF(ISERROR($V2369),\"\",OFFSET('Smelter Look-up'!$D$4,$V2369-4,0)&\"\")","v":""},{"$f":"IF(ISERROR($V2369),\"\",OFFSET('Smelter Look-up'!$E$4,$V2369-4,0))","v":""},{"$f":"IF(C2369=$X$4,\"Enter smelter details\",IF(ISERROR($V2369),\"\",OFFSET('Smelter Look-up'!$F$4,$V2369-4,0)))","v":""},{"$f":"IF(ISERROR($V2369),\"\",OFFSET('Smelter Look-up'!$G$4,$V2369-4,0))","v":""},{"$f":"IF(ISERROR($V2369),\"\",OFFSET('Smelter Look-up'!$H$4,$V2369-4,0))","v":""},{"$f":"IF(ISERROR($V2369),\"\",OFFSET('Smelter Look-up'!$I$4,$V2369-4,0))","v":""},{"$nulls":7},{"$f":"IF(ISERROR($V2369),\"\",OFFSET('Smelter Look-up'!$C$4,$V2369-4,0)&\"\")","v":""},"",{"$f":"IF(B2369=\"\",\"\",IF(ISERROR(MATCH($J2369,SorP!$B$1:$B$5661,0)),\"\",INDIRECT(\"'SorP'!$A$\"&MATCH($J2369,SorP!$B$1:$B$5661,0))))","v":""},null,{"$f":"IF(C2369=\"\",NA(),MATCH($B2369&$C2369,'Smelter Look-up'!$J:$J,0))","v":{"$error":"#N/A"}},null,0,null,null,null,""]
[null,{"$f":"IF(LEN(A2370)=0,\"\",INDEX('Smelter Look-up'!$A:$A,MATCH($A2370,'Smelter Look-up'!$E:$E,0)))","v":""},{"$f":"IF(LEN(A2370)=0,\"\",INDEX('Smelter Look-up'!$C:$C,MATCH($A2370,'Smelter Look-up'!$E:$E,0)))","v":""},null,{"$f":"IF(ISERROR($V2370),\"\",OFFSET('Smelter Look-up'!$D$4,$V2370-4,0)&\"\")","v":""},{"$f":"IF(ISERROR($V2370),\"\",OFFSET('Smelter Look-up'!$E$4,$V2370-4,0))","v":""},{"$f":"IF(C2370=$X$4,\"Enter smelter details\",IF(ISERROR($V2370),\"\",OFFSET('Smelter Look-up'!$F$4,$V2370-4,0)))","v":""},{"$f":"IF(ISERROR($V2370),\"\",OFFSET('Smelter Look-up'!$G$4,$V2370-4,0))","v":""},{"$f":"IF(ISERROR($V2370),\"\",OFFSET('Smelter Look-up'!$H$4,$V2370-4,0))","v":""},{"$f":"IF(ISERROR($V2370),\"\",OFFSET('Smelter Look-up'!$I$4,$V2370-4,0))","v":""},{"$nulls":7},{"$f":"IF(ISERROR($V2370),\"\",OFFSET('Smelter Look-up'!$C$4,$V2370-4,0)&\"\")","v":""},"",{"$f":"IF(B2370=\"\",\"\",IF(ISERROR(MATCH($J2370,SorP!$B$1:$B$5661,0)),\"\",INDIRECT(\"'SorP'!$A$\"&MATCH($J2370,SorP!$B$1:$B$5661,0))))","v":""},null,{"$f":"IF(C2370=\"\",NA(),MATCH($B2370&$C2370,'Smelter Look-up'!$J:$J,0))","v":{"$error":"#N/A"}},null,0,null,null,null,""]
[null,{"$f":"IF(LEN(A2371)=0,\"\",INDEX('Smelter Look-up'!$A:$A,MATCH($A2371,'Smelter Look-up'!$E:$E,0)))","v":""},{"$f":"IF(LEN(A2371)=0,\"\",INDEX('Smelter Look-up'!$C:$C,MATCH($A2371,'Smelter Look-up'!$E:$E,0)))","v":""},null,{"$f":"IF(ISERROR($V2371),\"\",OFFSET('Smelter Look-up'!$D$4,$V2371-4,0)&\"\")","v":""},{"$f":"IF(ISERROR($V2371),\"\",OFFSET('Smelter Look-up'!$E$4,$V2371-4,0))","v":""},{"$f":"IF(C2371=$X$4,\"Enter smelter details\",IF(ISERROR($V2371),\"\",OFFSET('Smelter Look-up'!$F$4,$V2371-4,0)))","v":""},{"$f":"IF(ISERROR($V2371),\"\",OFFSET('Smelter Look-up'!$G$4,$V2371-4,0))","v":""},{"$f":"IF(ISERROR($V2371),\"\",OFFSET('Smelter Look-up'!$H$4,$V2371-4,0))","v":""},{"$f":"IF(ISERROR($V2371),\"\",OFFSET('Smelter Look-up'!$I$4,$V2371-4,0))","v":""},{"$nulls":7},{"$f":"IF(ISERROR($V2371),\"\",OFFSET('Smelter Look-up'!$C$4,$V2371-4,0)&\"\")","v":""},"",{"$f":"IF(B2371=\"\",\"\",IF(ISERROR(MATCH($J2371,SorP!$B$1:$B$5661,0)),\"\",INDIRECT(\"'SorP'!$A$\"&MATCH($J2371,SorP!$B$1:$B$5661,0))))","v":""},null,{"$f":"IF(C2371=\"\",NA(),MATCH($B2371&$C2371,'Smelter Look-up'!$J:$J,0))","v":{"$error":"#N/A"}},null,0,null,null,null,""]
[null,{"$f":"IF(LEN(A2372)=0,\"\",INDEX('Smelter Look-up'!$A:$A,MATCH($A2372,'Smelter Look-up'!$E:$E,0)))","v":""},{"$f":"IF(LEN(A2372)=0,\"\",INDEX('Smelter Look-up'!$C:$C,MATCH($A2372,'Smelter Look-up'!$E:$E,0)))","v":""},null,{"$f":"IF(ISERROR($V2372),\"\",OFFSET('Smelter Look-up'!$D$4,$V2372-4,0)&\"\")","v":""},{"$f":"IF(ISERROR($V2372),\"\",OFFSET('Smelter Look-up'!$E$4,$V2372-4,0))","v":""},{"$f":"IF(C2372=$X$4,\"Enter smelter details\",IF(ISERROR($V2372),\"\",OFFSET('Smelter Look-up'!$F$4,$V2372-4,0)))","v":""},{"$f":"IF(ISERROR($V2372),\"\",OFFSET('Smelter Look-up'!$G$4,$V2372-4,0))","v":""},{"$f":"IF(ISERROR($V2372),\"\",OFFSET('Smelter Look-up'!$H$4,$V2372-4,0))","v":""},{"$f":"IF(ISERROR($V2372),\"\",OFFSET('Smelter Look-up'!$I$4,$V2372-4,0))","v":""},{"$nulls":7},{"$f":"IF(ISERROR($V2372),\"\",OFFSET('Smelter Look-up'!$C$4,$V2372-4,0)&\"\")","v":""},"",{"$f":"IF(B2372=\"\",\"\",IF(ISERROR(MATCH($J2372,SorP!$B$1:$B$5661,0)),\"\",INDIRECT(\"'SorP'!$A$\"&MATCH($J2372,SorP!$B$1:$B$5661,0))))","v":""},null,{"$f":"IF(C2372=\"\",NA(),MATCH($B2372&$C2372,'Smelter Look-up'!$J:$J,0))","v":{"$error":"#N/A"}},null,0,null,null,null,""]
[null,{"$f":"IF(LEN(A2373)=0,\"\",INDEX('Smelter Look-up'!$A:$A,MATCH($A2373,'Smelter Look-up'!$E:$E,0)))","v":""},{"$f":"IF(LEN(A2373)=0,\"\",INDEX('Smelter Look-up'!$C:$C,MATCH($A2373,'Smelter Look-up'!$E:$E,0)))","v":""},null,{"$f":"IF(ISERROR($V2373),\"\",OFFSET('Smelter Look-up'!$D$4,$V2373-4,0)&\"\")","v":""},{"$f":"IF(ISERROR($V2373),\"\",OFFSET('Smelter Look-up'!$E$4,$V2373-4,0))","v":""},{"$f":"IF(C2373=$X$4,\"Enter smelter details\",IF(ISERROR($V2373),\"\",OFFSET('Smelter Look-up'!$F$4,$V2373-4,0)))","v":""},{"$f":"IF(ISERROR($V2373),\"\",OFFSET('Smelter Look-up'!$G$4,$V2373-4,0))","v":""},{"$f":"IF(ISERROR($V2373),\"\",OFFSET('Smelter Look-up'!$H$4,$V2373-4,0))","v":""},{"$f":"IF(ISERROR($V2373),\"\",OFFSET('Smelter Look-up'!$I$4,$V2373-4,0))","v":""},{"$nulls":7},{"$f":"IF(ISERROR($V2373),\"\",OFFSET('Smelter Look-up'!$C$4,$V2373-4,0)&\"\")","v":""},"",{"$f":"IF(B2373=\"\",\"\",IF(ISERROR(MATCH($J2373,SorP!$B$1:$B$5661,0)),\"\",INDIRECT(\"'SorP'!$A$\"&MATCH($J2373,SorP!$B$1:$B$5661,0))))","v":""},null,{"$f":"IF(C2373=\"\",NA(),MATCH($B2373&$C2373,'Smelter Look-up'!$J:$J,0))","v":{"$error":"#N/A"}},null,0,null,null,null,""]
[null,{"$f":"IF(LEN(A2374)=0,\"\",INDEX('Smelter Look-up'!$A:$A,MATCH($A2374,'Smelter Look-up'!$E:$E,0)))","v":""},{"$f":"IF(LEN(A2374)=0,\"\",INDEX('Smelter Look-up'!$C:$C,MATCH($A2374,'Smelter Look-up'!$E:$E,0)))","v":""},null,{"$f":"IF(ISERROR($V2374),\"\",OFFSET('Smelter Look-up'!$D$4,$V2374-4,0)&\"\")","v":""},{"$f":"IF(ISERROR($V2374),\"\",OFFSET('Smelter Look-up'!$E$4,$V2374-4,0))","v":""},{"$f":"IF(C2374=$X$4,\"Enter smelter details\",IF(ISERROR($V2374),\"\",OFFSET('Smelter Look-up'!$F$4,$V2374-4,0)))","v":""},{"$f":"IF(ISERROR($V2374),\"\",OFFSET('Smelter Look-up'!$G$4,$V2374-4,0))","v":""},{"$f":"IF(ISERROR($V2374),\"\",OFFSET('Smelter Look-up'!$H$4,$V2374-4,0))","v":""},{"$f":"IF(ISERROR($V2374),\"\",OFFSET('Smelter Look-up'!$I$4,$V2374-4,0))","v":""},{"$nulls":7},{"$f":"IF(ISERROR($V2374),\"\",OFFSET('Smelter Look-up'!$C$4,$V2374-4,0)&\"\")","v":""},"",{"$f":"IF(B2374=\"\",\"\",IF(ISERROR(MATCH($J2374,SorP!$B$1:$B$5661,0)),\"\",INDIRECT(\"'SorP'!$A$\"&MATCH($J2374,SorP!$B$1:$B$5661,0))))","v":""},null,{"$f":"IF(C2374=\"\",NA(),MATCH($B2374&$C2374,'Smelter Look-up'!$J:$J,0))","v":{"$error":"#N/A"}},null,0,null,null,null,""]
[null,{"$f":"IF(LEN(A2375)=0,\"\",INDEX('Smelter Look-up'!$A:$A,MATCH($A2375,'Smelter Look-up'!$E:$E,0)))","v":""},{"$f":"IF(LEN(A2375)=0,\"\",INDEX('Smelter Look-up'!$C:$C,MATCH($A2375,'Smelter Look-up'!$E:$E,0)))","v":""},null,{"$f":"IF(ISERROR($V2375),\"\",OFFSET('Smelter Look-up'!$D$4,$V2375-4,0)&\"\")","v":""},{"$f":"IF(ISERROR($V2375),\"\",OFFSET('Smelter Look-up'!$E$4,$V2375-4,0))","v":""},{"$f":"IF(C2375=$X$4,\"Enter smelter details\",IF(ISERROR($V2375),\"\",OFFSET('Smelter Look-up'!$F$4,$V2375-4,0)))","v":""},{"$f":"IF(ISERROR($V2375),\"\",OFFSET('Smelter Look-up'!$G$4,$V2375-4,0))","v":""},{"$f":"IF(ISERROR($V2375),\"\",OFFSET('Smelter Look-up'!$H$4,$V2375-4,0))","v":""},{"$f":"IF(ISERROR($V2375),\"\",OFFSET('Smelter Look-up'!$I$4,$V2375-4,0))","v":""},{"$nulls":7},{"$f":"IF(ISERROR($V2375),\"\",OFFSET('Smelter Look-up'!$C$4,$V2375-4,0)&\"\")","v":""},"",{"$f":"IF(B2375=\"\",\"\",IF(ISERROR(MATCH($J2375,SorP!$B$1:$B$5661,0)),\"\",INDIRECT(\"'SorP'!$A$\"&MATCH($J2375,SorP!$B$1:$B$5661,0))))","v":""},null,{"$f":"IF(C2375=\"\",NA(),MATCH($B2375&$C2375,'Smelter Look-up'!$J:$J,0))","v":{"$error":"#N/A"}},null,0,null,null,null,""]
[null,{"$f":"IF(LEN(A2376)=0,\"\",INDEX('Smelter Look-up'!$A:$A,MATCH($A2376,'Smelter Look-up'!$E:$E,0)))","v":""},{"$f":"IF(LEN(A2376)=0,\"\",INDEX('Smelter Look-up'!$C:$C,MATCH($A2376,'Smelter Look-up'!$E:$E,0)))","v":""},null,{"$f":"IF(ISERROR($V2376),\"\",OFFSET('Smelter Look-up'!$D$4,$V2376-4,0)&\"\")","v":""},{"$f":"IF(ISERROR($V2376),\"\",OFFSET('Smelter Look-up'!$E$4,$V2376-4,0))","v":""},{"$f":"IF(C2376=$X$4,\"Enter smelter details\",IF(ISERROR($V2376),\"\",OFFSET('Smelter Look-up'!$F$4,$V2376-4,0)))","v":""},{"$f":"IF(ISERROR($V2376),\"\",OFFSET('Smelter Look-up'!$G$4,$V2376-4,0))","v":""},{"$f":"IF(ISERROR($V2376),\"\",OFFSET('Smelter Look-up'!$H$4,$V2376-4,0))","v":""},{"$f":"IF(ISERROR($V2376),\"\",OFFSET('Smelter Look-up'!$I$4,$V2376-4,0))","v":""},{"$nulls":7},{"$f":"IF(ISERROR($V2376),\"\",OFFSET('Smelter Look-up'!$C$4,$V2376-4,0)&\"\")","v":""},"",{"$f":"IF(B2376=\"\",\"\",IF(ISERROR(MATCH($J2376,SorP!$B$1:$B$5661,0)),\"\",INDIRECT(\"'SorP'!$A$\"&MATCH($J2376,SorP!$B$1:$B$5661,0))))","v":""},null,{"$f":"IF(C2376=\"\",NA(),MATCH($B2376&$C2376,'Smelter Look-up'!$J:$J,0))","v":{"$error":"#N/A"}},null,0,null,null,null,""]
[null,{"$f":"IF(LEN(A2377)=0,\"\",INDEX('Smelter Look-up'!$A:$A,MATCH($A2377,'Smelter Look-up'!$E:$E,0)))","v":""},{"$f":"IF(LEN(A2377)=0,\"\",INDEX('Smelter Look-up'!$C:$C,MATCH($A2377,'Smelter Look-up'!$E:$E,0)))","v":""},null,{"$f":"IF(ISERROR($V2377),\"\",OFFSET('Smelter Look-up'!$D$4,$V2377-4,0)&\"\")","v":""},{"$f":"IF(ISERROR($V2377),\"\",OFFSET('Smelter Look-up'!$E$4,$V2377-4,0))","v":""},{"$f":"IF(C2377=$X$4,\"Enter smelter details\",IF(ISERROR($V2377),\"\",OFFSET('Smelter Look-up'!$F$4,$V2377-4,0)))","v":""},{"$f":"IF(ISERROR($V2377),\"\",OFFSET('Smelter Look-up'!$G$4,$V2377-4,0))","v":""},{"$f":"IF(ISERROR($V2377),\"\",OFFSET('Smelter Look-up'!$H$4,$V2377-4,0))","v":""},{"$f":"IF(ISERROR($V2377),\"\",OFFSET('Smelter Look-up'!$I$4,$V2377-4,0))","v":""},{"$nulls":7},{"$f":"IF(ISERROR($V2377),\"\",OFFSET('Smelter Look-up'!$C$4,$V2377-4,0)&\"\")","v":""},"",{"$f":"IF(B2377=\"\",\"\",IF(ISERROR(MATCH($J2377,SorP!$B$1:$B$5661,0)),\"\",INDIRECT(\"'SorP'!$A$\"&MATCH($J2377,SorP!$B$1:$B$5661,0))))","v":""},null,{"$f":"IF(C2377=\"\",NA(),MATCH($B2377&$C2377,'Smelter Look-up'!$J:$J,0))","v":{"$error":"#N/A"}},null,0,null,null,null,""]
[null,{"$f":"IF(LEN(A2378)=0,\"\",INDEX('Smelter Look-up'!$A:$A,MATCH($A2378,'Smelter Look-up'!$E:$E,0)))","v":""},{"$f":"IF(LEN(A2378)=0,\"\",INDEX('Smelter Look-up'!$C:$C,MATCH($A2378,'Smelter Look-up'!$E:$E,0)))","v":""},null,{"$f":"IF(ISERROR($V2378),\"\",OFFSET('Smelter Look-up'!$D$4,$V2378-4,0)&\"\")","v":""},{"$f":"IF(ISERROR($V2378),\"\",OFFSET('Smelter Look-up'!$E$4,$V2378-4,0))","v":""},{"$f":"IF(C2378=$X$4,\"Enter smelter details\",IF(ISERROR($V2378),\"\",OFFSET('Smelter Look-up'!$F$4,$V2378-4,0)))","v":""},{"$f":"IF(ISERROR($V2378),\"\",OFFSET('Smelter Look-up'!$G$4,$V2378-4,0))","v":""},{"$f":"IF(ISERROR($V2378),\"\",OFFSET('Smelter Look-up'!$H$4,$V2378-4,0))","v":""},{"$f":"IF(ISERROR($V2378),\"\",OFFSET('Smelter Look-up'!$I$4,$V2378-4,0))","v":""},{"$nulls":7},{"$f":"IF(ISERROR($V2378),\"\",OFFSET('Smelter Look-up'!$C$4,$V2378-4,0)&\"\")","v":""},"",{"$f":"IF(B2378=\"\",\"\",IF(ISERROR(MATCH($J2378,SorP!$B$1:$B$5661,0)),\"\",INDIRECT(\"'SorP'!$A$\"&MATCH($J2378,SorP!$B$1:$B$5661,0))))","v":""},null,{"$f":"IF(C2378=\"\",NA(),MATCH($B2378&$C2378,'Smelter Look-up'!$J:$J,0))","v":{"$error":"#N/A"}},null,0,null,null,null,""]
[null,{"$f":"IF(LEN(A2379)=0,\"\",INDEX('Smelter Look-up'!$A:$A,MATCH($A2379,'Smelter Look-up'!$E:$E,0)))","v":""},{"$f":"IF(LEN(A2379)=0,\"\",INDEX('Smelter Look-up'!$C:$C,MATCH($A2379,'Smelter Look-up'!$E:$E,0)))","v":""},null,{"$f":"IF(ISERROR($V2379),\"\",OFFSET('Smelter Look-up'!$D$4,$V2379-4,0)&\"\")","v":""},{"$f":"IF(ISERROR($V2379),\"\",OFFSET('Smelter Look-up'!$E$4,$V2379-4,0))","v":""},{"$f":"IF(C2379=$X$4,\"Enter smelter details\",IF(ISERROR($V2379),\"\",OFFSET('Smelter Look-up'!$F$4,$V2379-4,0)))","v":""},{"$f":"IF(ISERROR($V2379),\"\",OFFSET('Smelter Look-up'!$G$4,$V2379-4,0))","v":""},{"$f":"IF(ISERROR($V2379),\"\",OFFSET('Smelter Look-up'!$H$4,$V2379-4,0))","v":""},{"$f":"IF(ISERROR($V2379),\"\",OFFSET('Smelter Look-up'!$I$4,$V2379-4,0))","v":""},{"$nulls":7},{"$f":"IF(ISERROR($V2379),\"\",OFFSET('Smelter Look-up'!$C$4,$V2379-4,0)&\"\")","v":""},"",{"$f":"IF(B2379=\"\",\"\",IF(ISERROR(MATCH($J2379,SorP!$B$1:$B$5661,0)),\"\",INDIRECT(\"'SorP'!$A$\"&MATCH($J2379,SorP!$B$1:$B$5661,0))))","v":""},null,{"$f":"IF(C2379=\"\",NA(),MATCH($B2379&$C2379,'Smelter Look-up'!$J:$J,0))","v":{"$error":"#N/A"}},null,0,null,null,null,""]
[null,{"$f":"IF(LEN(A2380)=0,\"\",INDEX('Smelter Look-up'!$A:$A,MATCH($A2380,'Smelter Look-up'!$E:$E,0)))","v":""},{"$f":"IF(LEN(A2380)=0,\"\",INDEX('Smelter Look-up'!$C:$C,MATCH($A2380,'Smelter Look-up'!$E:$E,0)))","v":""},null,{"$f":"IF(ISERROR($V2380),\"\",OFFSET('Smelter Look-up'!$D$4,$V2380-4,0)&\"\")","v":""},{"$f":"IF(ISERROR($V2380),\"\",OFFSET('Smelter Look-up'!$E$4,$V2380-4,0))","v":""},{"$f":"IF(C2380=$X$4,\"Enter smelter details\",IF(ISERROR($V2380),\"\",OFFSET('Smelter Look-up'!$F$4,$V2380-4,0)))","v":""},{"$f":"IF(ISERROR($V2380),\"\",OFFSET('Smelter Look-up'!$G$4,$V2380-4,0))","v":""},{"$f":"IF(ISERROR($V2380),\"\",OFFSET('Smelter Look-up'!$H$4,$V2380-4,0))","v":""},{"$f":"IF(ISERROR($V2380),\"\",OFFSET('Smelter Look-up'!$I$4,$V2380-4,0))","v":""},{"$nulls":7},{"$f":"IF(ISERROR($V2380),\"\",OFFSET('Smelter Look-up'!$C$4,$V2380-4,0)&\"\")","v":""},"",{"$f":"IF(B2380=\"\",\"\",IF(ISERROR(MATCH($J2380,SorP!$B$1:$B$5661,0)),\"\",INDIRECT(\"'SorP'!$A$\"&MATCH($J2380,SorP!$B$1:$B$5661,0))))","v":""},null,{"$f":"IF(C2380=\"\",NA(),MATCH($B2380&$C2380,'Smelter Look-up'!$J:$J,0))","v":{"$error":"#N/A"}},null,0,null,null,null,""]
[null,{"$f":"IF(LEN(A2381)=0,\"\",INDEX('Smelter Look-up'!$A:$A,MATCH($A2381,'Smelter Look-up'!$E:$E,0)))","v":""},{"$f":"IF(LEN(A2381)=0,\"\",INDEX('Smelter Look-up'!$C:$C,MATCH($A2381,'Smelter Look-up'!$E:$E,0)))","v":""},null,{"$f":"IF(ISERROR($V2381),\"\",OFFSET('Smelter Look-up'!$D$4,$V2381-4,0)&\"\")","v":""},{"$f":"IF(ISERROR($V2381),\"\",OFFSET('Smelter Look-up'!$E$4,$V2381-4,0))","v":""},{"$f":"IF(C2381=$X$4,\"Enter smelter details\",IF(ISERROR($V2381),\"\",OFFSET('Smelter Look-up'!$F$4,$V2381-4,0)))","v":""},{"$f":"IF(ISERROR($V2381),\"\",OFFSET('Smelter Look-up'!$G$4,$V2381-4,0))","v":""},{"$f":"IF(ISERROR($V2381),\"\",OFFSET('Smelter Look-up'!$H$4,$V2381-4,0))","v":""},{"$f":"IF(ISERROR($V2381),\"\",OFFSET('Smelter Look-up'!$I$4,$V2381-4,0))","v":""},{"$nulls":7},{"$f":"IF(ISERROR($V2381),\"\",OFFSET('Smelter Look-up'!$C$4,$V2381-4,0)&\"\")","v":""},"",{"$f":"IF(B2381=\"\",\"\",IF(ISERROR(MATCH($J2381,SorP!$B$1:$B$5661,0)),\"\",INDIRECT(\"'SorP'!$A$\"&MATCH($J2381,SorP!$B$1:$B$5661,0))))","v":""},null,{"$f":"IF(C2381=\"\",NA(),MATCH($B2381&$C2381,'Smelter Look-up'!$J:$J,0))","v":{"$error":"#N/A"}},null,0,null,null,null,""]
[null,{"$f":"IF(LEN(A2382)=0,\"\",INDEX('Smelter Look-up'!$A:$A,MATCH($A2382,'Smelter Look-up'!$E:$E,0)))","v":""},{"$f":"IF(LEN(A2382)=0,\"\",INDEX('Smelter Look-up'!$C:$C,MATCH($A2382,'Smelter Look-up'!$E:$E,0)))","v":""},null,{"$f":"IF(ISERROR($V2382),\"\",OFFSET('Smelter Look-up'!$D$4,$V2382-4,0)&\"\")","v":""},{"$f":"IF(ISERROR($V2382),\"\",OFFSET('Smelter Look-up'!$E$4,$V2382-4,0))","v":""},{"$f":"IF(C2382=$X$4,\"Enter smelter details\",IF(ISERROR($V2382),\"\",OFFSET('Smelter Look-up'!$F$4,$V2382-4,0)))","v":""},{"$f":"IF(ISERROR($V2382),\"\",OFFSET('Smelter Look-up'!$G$4,$V2382-4,0))","v":""},{"$f":"IF(ISERROR($V2382),\"\",OFFSET('Smelter Look-up'!$H$4,$V2382-4,0))","v":""},{"$f":"IF(ISERROR($V2382),\"\",OFFSET('Smelter Look-up'!$I$4,$V2382-4,0))","v":""},{"$nulls":7},{"$f":"IF(ISERROR($V2382),\"\",OFFSET('Smelter Look-up'!$C$4,$V2382-4,0)&\"\")","v":""},"",{"$f":"IF(B2382=\"\",\"\",IF(ISERROR(MATCH($J2382,SorP!$B$1:$B$5661,0)),\"\",INDIRECT(\"'SorP'!$A$\"&MATCH($J2382,SorP!$B$1:$B$5661,0))))","v":""},null,{"$f":"IF(C2382=\"\",NA(),MATCH($B2382&$C2382,'Smelter Look-up'!$J:$J,0))","v":{"$error":"#N/A"}},null,0,null,null,null,""]
[null,{"$f":"IF(LEN(A2383)=0,\"\",INDEX('Smelter Look-up'!$A:$A,MATCH($A2383,'Smelter Look-up'!$E:$E,0)))","v":""},{"$f":"IF(LEN(A2383)=0,\"\",INDEX('Smelter Look-up'!$C:$C,MATCH($A2383,'Smelter Look-up'!$E:$E,0)))","v":""},null,{"$f":"IF(ISERROR($V2383),\"\",OFFSET('Smelter Look-up'!$D$4,$V2383-4,0)&\"\")","v":""},{"$f":"IF(ISERROR($V2383),\"\",OFFSET('Smelter Look-up'!$E$4,$V2383-4,0))","v":""},{"$f":"IF(C2383=$X$4,\"Enter smelter details\",IF(ISERROR($V2383),\"\",OFFSET('Smelter Look-up'!$F$4,$V2383-4,0)))","v":""},{"$f":"IF(ISERROR($V2383),\"\",OFFSET('Smelter Look-up'!$G$4,$V2383-4,0))","v":""},{"$f":"IF(ISERROR($V2383),\"\",OFFSET('Smelter Look-up'!$H$4,$V2383-4,0))","v":""},{"$f":"IF(ISERROR($V2383),\"\",OFFSET('Smelter Look-up'!$I$4,$V2383-4,0))","v":""},{"$nulls":7},{"$f":"IF(ISERROR($V2383),\"\",OFFSET('Smelter Look-up'!$C$4,$V2383-4,0)&\"\")","v":""},"",{"$f":"IF(B2383=\"\",\"\",IF(ISERROR(MATCH($J2383,SorP!$B$1:$B$5661,0)),\"\",INDIRECT(\"'SorP'!$A$\"&MATCH($J2383,SorP!$B$1:$B$5661,0))))","v":""},null,{"$f":"IF(C2383=\"\",NA(),MATCH($B2383&$C2383,'Smelter Look-up'!$J:$J,0))","v":{"$error":"#N/A"}},null,0,null,null,null,""]
[null,{"$f":"IF(LEN(A2384)=0,\"\",INDEX('Smelter Look-up'!$A:$A,MATCH($A2384,'Smelter Look-up'!$E:$E,0)))","v":""},{"$f":"IF(LEN(A2384)=0,\"\",INDEX('Smelter Look-up'!$C:$C,MATCH($A2384,'Smelter Look-up'!$E:$E,0)))","v":""},null,{"$f":"IF(ISERROR($V2384),\"\",OFFSET('Smelter Look-up'!$D$4,$V2384-4,0)&\"\")","v":""},{"$f":"IF(ISERROR($V2384),\"\",OFFSET('Smelter Look-up'!$E$4,$V2384-4,0))","v":""},{"$f":"IF(C2384=$X$4,\"Enter smelter details\",IF(ISERROR($V2384),\"\",OFFSET('Smelter Look-up'!$F$4,$V2384-4,0)))","v":""},{"$f":"IF(ISERROR($V2384),\"\",OFFSET('Smelter Look-up'!$G$4,$V2384-4,0))","v":""},{"$f":"IF(ISERROR($V2384),\"\",OFFSET('Smelter Look-up'!$H$4,$V2384-4,0))","v":""},{"$f":"IF(ISERROR($V2384),\"\",OFFSET('Smelter Look-up'!$I$4,$V2384-4,0))","v":""},{"$nulls":7},{"$f":"IF(ISERROR($V2384),\"\",OFFSET('Smelter Look-up'!$C$4,$V2384-4,0)&\"\")","v":""},"",{"$f":"IF(B2384=\"\",\"\",IF(ISERROR(MATCH($J2384,SorP!$B$1:$B$5661,0)),\"\",INDIRECT(\"'SorP'!$A$\"&MATCH($J2384,SorP!$B$1:$B$5661,0))))","v":""},null,{"$f":"IF(C2384=\"\",NA(),MATCH($B2384&$C2384,'Smelter Look-up'!$J:$J,0))","v":{"$error":"#N/A"}},null,0,null,null,null,""]
[null,{"$f":"IF(LEN(A2385)=0,\"\",INDEX('Smelter Look-up'!$A:$A,MATCH($A2385,'Smelter Look-up'!$E:$E,0)))","v":""},{"$f":"IF(LEN(A2385)=0,\"\",INDEX('Smelter Look-up'!$C:$C,MATCH($A2385,'Smelter Look-up'!$E:$E,0)))","v":""},null,{"$f":"IF(ISERROR($V2385),\"\",OFFSET('Smelter Look-up'!$D$4,$V2385-4,0)&\"\")","v":""},{"$f":"IF(ISERROR($V2385),\"\",OFFSET('Smelter Look-up'!$E$4,$V2385-4,0))","v":""},{"$f":"IF(C2385=$X$4,\"Enter smelter details\",IF(ISERROR($V2385),\"\",OFFSET('Smelter Look-up'!$F$4,$V2385-4,0)))","v":""},{"$f":"IF(ISERROR($V2385),\"\",OFFSET('Smelter Look-up'!$G$4,$V2385-4,0))","v":""},{"$f":"IF(ISERROR($V2385),\"\",OFFSET('Smelter Look-up'!$H$4,$V2385-4,0))","v":""},{"$f":"IF(ISERROR($V2385),\"\",OFFSET('Smelter Look-up'!$I$4,$V2385-4,0))","v":""},{"$nulls":7},{"$f":"IF(ISERROR($V2385),\"\",OFFSET('Smelter Look-up'!$C$4,$V2385-4,0)&\"\")","v":""},"",{"$f":"IF(B2385=\"\",\"\",IF(ISERROR(MATCH($J2385,SorP!$B$1:$B$5661,0)),\"\",INDIRECT(\"'SorP'!$A$\"&MATCH($J2385,SorP!$B$1:$B$5661,0))))","v":""},null,{"$f":"IF(C2385=\"\",NA(),MATCH($B2385&$C2385,'Smelter Look-up'!$J:$J,0))","v":{"$error":"#N/A"}},null,0,null,null,null,""]
[null,{"$f":"IF(LEN(A2386)=0,\"\",INDEX('Smelter Look-up'!$A:$A,MATCH($A2386,'Smelter Look-up'!$E:$E,0)))","v":""},{"$f":"IF(LEN(A2386)=0,\"\",INDEX('Smelter Look-up'!$C:$C,MATCH($A2386,'Smelter Look-up'!$E:$E,0)))","v":""},null,{"$f":"IF(ISERROR($V2386),\"\",OFFSET('Smelter Look-up'!$D$4,$V2386-4,0)&\"\")","v":""},{"$f":"IF(ISERROR($V2386),\"\",OFFSET('Smelter Look-up'!$E$4,$V2386-4,0))","v":""},{"$f":"IF(C2386=$X$4,\"Enter smelter details\",IF(ISERROR($V2386),\"\",OFFSET('Smelter Look-up'!$F$4,$V2386-4,0)))","v":""},{"$f":"IF(ISERROR($V2386),\"\",OFFSET('Smelter Look-up'!$G$4,$V2386-4,0))","v":""},{"$f":"IF(ISERROR($V2386),\"\",OFFSET('Smelter Look-up'!$H$4,$V2386-4,0))","v":""},{"$f":"IF(ISERROR($V2386),\"\",OFFSET('Smelter Look-up'!$I$4,$V2386-4,0))","v":""},{"$nulls":7},{"$f":"IF(ISERROR($V2386),\"\",OFFSET('Smelter Look-up'!$C$4,$V2386-4,0)&\"\")","v":""},"",{"$f":"IF(B2386=\"\",\"\",IF(ISERROR(MATCH($J2386,SorP!$B$1:$B$5661,0)),\"\",INDIRECT(\"'SorP'!$A$\"&MATCH($J2386,SorP!$B$1:$B$5661,0))))","v":""},null,{"$f":"IF(C2386=\"\",NA(),MATCH($B2386&$C2386,'Smelter Look-up'!$J:$J,0))","v":{"$error":"#N/A"}},null,0,null,null,null,""]
[null,{"$f":"IF(LEN(A2387)=0,\"\",INDEX('Smelter Look-up'!$A:$A,MATCH($A2387,'Smelter Look-up'!$E:$E,0)))","v":""},{"$f":"IF(LEN(A2387)=0,\"\",INDEX('Smelter Look-up'!$C:$C,MATCH($A2387,'Smelter Look-up'!$E:$E,0)))","v":""},null,{"$f":"IF(ISERROR($V2387),\"\",OFFSET('Smelter Look-up'!$D$4,$V2387-4,0)&\"\")","v":""},{"$f":"IF(ISERROR($V2387),\"\",OFFSET('Smelter Look-up'!$E$4,$V2387-4,0))","v":""},{"$f":"IF(C2387=$X$4,\"Enter smelter details\",IF(ISERROR($V2387),\"\",OFFSET('Smelter Look-up'!$F$4,$V2387-4,0)))","v":""},{"$f":"IF(ISERROR($V2387),\"\",OFFSET('Smelter Look-up'!$G$4,$V2387-4,0))","v":""},{"$f":"IF(ISERROR($V2387),\"\",OFFSET('Smelter Look-up'!$H$4,$V2387-4,0))","v":""},{"$f":"IF(ISERROR($V2387),\"\",OFFSET('Smelter Look-up'!$I$4,$V2387-4,0))","v":""},{"$nulls":7},{"$f":"IF(ISERROR($V2387),\"\",OFFSET('Smelter Look-up'!$C$4,$V2387-4,0)&\"\")","v":""},"",{"$f":"IF(B2387=\"\",\"\",IF(ISERROR(MATCH($J2387,SorP!$B$1:$B$5661,0)),\"\",INDIRECT(\"'SorP'!$A$\"&MATCH($J2387,SorP!$B$1:$B$5661,0))))","v":""},null,{"$f":"IF(C2387=\"\",NA(),MATCH($B2387&$C2387,'Smelter Look-up'!$J:$J,0))","v":{"$error":"#N/A"}},null,0,null,null,null,""]
[null,{"$f":"IF(LEN(A2388)=0,\"\",INDEX('Smelter Look-up'!$A:$A,MATCH($A2388,'Smelter Look-up'!$E:$E,0)))","v":""},{"$f":"IF(LEN(A2388)=0,\"\",INDEX('Smelter Look-up'!$C:$C,MATCH($A2388,'Smelter Look-up'!$E:$E,0)))","v":""},null,{"$f":"IF(ISERROR($V2388),\"\",OFFSET('Smelter Look-up'!$D$4,$V2388-4,0)&\"\")","v":""},{"$f":"IF(ISERROR($V2388),\"\",OFFSET('Smelter Look-up'!$E$4,$V2388-4,0))","v":""},{"$f":"IF(C2388=$X$4,\"Enter smelter details\",IF(ISERROR($V2388),\"\",OFFSET('Smelter Look-up'!$F$4,$V2388-4,0)))","v":""},{"$f":"IF(ISERROR($V2388),\"\",OFFSET('Smelter Look-up'!$G$4,$V2388-4,0))","v":""},{"$f":"IF(ISERROR($V2388),\"\",OFFSET('Smelter Look-up'!$H$4,$V2388-4,0))","v":""},{"$f":"IF(ISERROR($V2388),\"\",OFFSET('Smelter Look-up'!$I$4,$V2388-4,0))","v":""},{"$nulls":7},{"$f":"IF(ISERROR($V2388),\"\",OFFSET('Smelter Look-up'!$C$4,$V2388-4,0)&\"\")","v":""},"",{"$f":"IF(B2388=\"\",\"\",IF(ISERROR(MATCH($J2388,SorP!$B$1:$B$5661,0)),\"\",INDIRECT(\"'SorP'!$A$\"&MATCH($J2388,SorP!$B$1:$B$5661,0))))","v":""},null,{"$f":"IF(C2388=\"\",NA(),MATCH($B2388&$C2388,'Smelter Look-up'!$J:$J,0))","v":{"$error":"#N/A"}},null,0,null,null,null,""]
[null,{"$f":"IF(LEN(A2389)=0,\"\",INDEX('Smelter Look-up'!$A:$A,MATCH($A2389,'Smelter Look-up'!$E:$E,0)))","v":""},{"$f":"IF(LEN(A2389)=0,\"\",INDEX('Smelter Look-up'!$C:$C,MATCH($A2389,'Smelter Look-up'!$E:$E,0)))","v":""},null,{"$f":"IF(ISERROR($V2389),\"\",OFFSET('Smelter Look-up'!$D$4,$V2389-4,0)&\"\")","v":""},{"$f":"IF(ISERROR($V2389),\"\",OFFSET('Smelter Look-up'!$E$4,$V2389-4,0))","v":""},{"$f":"IF(C2389=$X$4,\"Enter smelter details\",IF(ISERROR($V2389),\"\",OFFSET('Smelter Look-up'!$F$4,$V2389-4,0)))","v":""},{"$f":"IF(ISERROR($V2389),\"\",OFFSET('Smelter Look-up'!$G$4,$V2389-4,0))","v":""},{"$f":"IF(ISERROR($V2389),\"\",OFFSET('Smelter Look-up'!$H$4,$V2389-4,0))","v":""},{"$f":"IF(ISERROR($V2389),\"\",OFFSET('Smelter Look-up'!$I$4,$V2389-4,0))","v":""},{"$nulls":7},{"$f":"IF(ISERROR($V2389),\"\",OFFSET('Smelter Look-up'!$C$4,$V2389-4,0)&\"\")","v":""},"",{"$f":"IF(B2389=\"\",\"\",IF(ISERROR(MATCH($J2389,SorP!$B$1:$B$5661,0)),\"\",INDIRECT(\"'SorP'!$A$\"&MATCH($J2389,SorP!$B$1:$B$5661,0))))","v":""},null,{"$f":"IF(C2389=\"\",NA(),MATCH($B2389&$C2389,'Smelter Look-up'!$J:$J,0))","v":{"$error":"#N/A"}},null,0,null,null,null,""]
[null,{"$f":"IF(LEN(A2390)=0,\"\",INDEX('Smelter Look-up'!$A:$A,MATCH($A2390,'Smelter Look-up'!$E:$E,0)))","v":""},{"$f":"IF(LEN(A2390)=0,\"\",INDEX('Smelter Look-up'!$C:$C,MATCH($A2390,'Smelter Look-up'!$E:$E,0)))","v":""},null,{"$f":"IF(ISERROR($V2390),\"\",OFFSET('Smelter Look-up'!$D$4,$V2390-4,0)&\"\")","v":""},{"$f":"IF(ISERROR($V2390),\"\",OFFSET('Smelter Look-up'!$E$4,$V2390-4,0))","v":""},{"$f":"IF(C2390=$X$4,\"Enter smelter details\",IF(ISERROR($V2390),\"\",OFFSET('Smelter Look-up'!$F$4,$V2390-4,0)))","v":""},{"$f":"IF(ISERROR($V2390),\"\",OFFSET('Smelter Look-up'!$G$4,$V2390-4,0))","v":""},{"$f":"IF(ISERROR($V2390),\"\",OFFSET('Smelter Look-up'!$H$4,$V2390-4,0))","v":""},{"$f":"IF(ISERROR($V2390),\"\",OFFSET('Smelter Look-up'!$I$4,$V2390-4,0))","v":""},{"$nulls":7},{"$f":"IF(ISERROR($V2390),\"\",OFFSET('Smelter Look-up'!$C$4,$V2390-4,0)&\"\")","v":""},"",{"$f":"IF(B2390=\"\",\"\",IF(ISERROR(MATCH($J2390,SorP!$B$1:$B$5661,0)),\"\",INDIRECT(\"'SorP'!$A$\"&MATCH($J2390,SorP!$B$1:$B$5661,0))))","v":""},null,{"$f":"IF(C2390=\"\",NA(),MATCH($B2390&$C2390,'Smelter Look-up'!$J:$J,0))","v":{"$error":"#N/A"}},null,0,null,null,null,""]
[null,{"$f":"IF(LEN(A2391)=0,\"\",INDEX('Smelter Look-up'!$A:$A,MATCH($A2391,'Smelter Look-up'!$E:$E,0)))","v":""},{"$f":"IF(LEN(A2391)=0,\"\",INDEX('Smelter Look-up'!$C:$C,MATCH($A2391,'Smelter Look-up'!$E:$E,0)))","v":""},null,{"$f":"IF(ISERROR($V2391),\"\",OFFSET('Smelter Look-up'!$D$4,$V2391-4,0)&\"\")","v":""},{"$f":"IF(ISERROR($V2391),\"\",OFFSET('Smelter Look-up'!$E$4,$V2391-4,0))","v":""},{"$f":"IF(C2391=$X$4,\"Enter smelter details\",IF(ISERROR($V2391),\"\",OFFSET('Smelter Look-up'!$F$4,$V2391-4,0)))","v":""},{"$f":"IF(ISERROR($V2391),\"\",OFFSET('Smelter Look-up'!$G$4,$V2391-4,0))","v":""},{"$f":"IF(ISERROR($V2391),\"\",OFFSET('Smelter Look-up'!$H$4,$V2391-4,0))","v":""},{"$f":"IF(ISERROR($V2391),\"\",OFFSET('Smelter Look-up'!$I$4,$V2391-4,0))","v":""},{"$nulls":7},{"$f":"IF(ISERROR($V2391),\"\",OFFSET('Smelter Look-up'!$C$4,$V2391-4,0)&\"\")","v":""},"",{"$f":"IF(B2391=\"\",\"\",IF(ISERROR(MATCH($J2391,SorP!$B$1:$B$5661,0)),\"\",INDIRECT(\"'SorP'!$A$\"&MATCH($J2391,SorP!$B$1:$B$5661,0))))","v":""},null,{"$f":"IF(C2391=\"\",NA(),MATCH($B2391&$C2391,'Smelter Look-up'!$J:$J,0))","v":{"$error":"#N/A"}},null,0,null,null,null,""]
[null,{"$f":"IF(LEN(A2392)=0,\"\",INDEX('Smelter Look-up'!$A:$A,MATCH($A2392,'Smelter Look-up'!$E:$E,0)))","v":""},{"$f":"IF(LEN(A2392)=0,\"\",INDEX('Smelter Look-up'!$C:$C,MATCH($A2392,'Smelter Look-up'!$E:$E,0)))","v":""},null,{"$f":"IF(ISERROR($V2392),\"\",OFFSET('Smelter Look-up'!$D$4,$V2392-4,0)&\"\")","v":""},{"$f":"IF(ISERROR($V2392),\"\",OFFSET('Smelter Look-up'!$E$4,$V2392-4,0))","v":""},{"$f":"IF(C2392=$X$4,\"Enter smelter details\",IF(ISERROR($V2392),\"\",OFFSET('Smelter Look-up'!$F$4,$V2392-4,0)))","v":""},{"$f":"IF(ISERROR($V2392),\"\",OFFSET('Smelter Look-up'!$G$4,$V2392-4,0))","v":""},{"$f":"IF(ISERROR($V2392),\"\",OFFSET('Smelter Look-up'!$H$4,$V2392-4,0))","v":""},{"$f":"IF(ISERROR($V2392),\"\",OFFSET('Smelter Look-up'!$I$4,$V2392-4,0))","v":""},{"$nulls":7},{"$f":"IF(ISERROR($V2392),\"\",OFFSET('Smelter Look-up'!$C$4,$V2392-4,0)&\"\")","v":""},"",{"$f":"IF(B2392=\"\",\"\",IF(ISERROR(MATCH($J2392,SorP!$B$1:$B$5661,0)),\"\",INDIRECT(\"'SorP'!$A$\"&MATCH($J2392,SorP!$B$1:$B$5661,0))))","v":""},null,{"$f":"IF(C2392=\"\",NA(),MATCH($B2392&$C2392,'Smelter Look-up'!$J:$J,0))","v":{"$error":"#N/A"}},null,0,null,null,null,""]
[null,{"$f":"IF(LEN(A2393)=0,\"\",INDEX('Smelter Look-up'!$A:$A,MATCH($A2393,'Smelter Look-up'!$E:$E,0)))","v":""},{"$f":"IF(LEN(A2393)=0,\"\",INDEX('Smelter Look-up'!$C:$C,MATCH($A2393,'Smelter Look-up'!$E:$E,0)))","v":""},null,{"$f":"IF(ISERROR($V2393),\"\",OFFSET('Smelter Look-up'!$D$4,$V2393-4,0)&\"\")","v":""},{"$f":"IF(ISERROR($V2393),\"\",OFFSET('Smelter Look-up'!$E$4,$V2393-4,0))","v":""},{"$f":"IF(C2393=$X$4,\"Enter smelter details\",IF(ISERROR($V2393),\"\",OFFSET('Smelter Look-up'!$F$4,$V2393-4,0)))","v":""},{"$f":"IF(ISERROR($V2393),\"\",OFFSET('Smelter Look-up'!$G$4,$V2393-4,0))","v":""},{"$f":"IF(ISERROR($V2393),\"\",OFFSET('Smelter Look-up'!$H$4,$V2393-4,0))","v":""},{"$f":"IF(ISERROR($V2393),\"\",OFFSET('Smelter Look-up'!$I$4,$V2393-4,0))","v":""},{"$nulls":7},{"$f":"IF(ISERROR($V2393),\"\",OFFSET('Smelter Look-up'!$C$4,$V2393-4,0)&\"\")","v":""},"",{"$f":"IF(B2393=\"\",\"\",IF(ISERROR(MATCH($J2393,SorP!$B$1:$B$5661,0)),\"\",INDIRECT(\"'SorP'!$A$\"&MATCH($J2393,SorP!$B$1:$B$5661,0))))","v":""},null,{"$f":"IF(C2393=\"\",NA(),MATCH($B2393&$C2393,'Smelter Look-up'!$J:$J,0))","v":{"$error":"#N/A"}},null,0,null,null,null,""]
[null,{"$f":"IF(LEN(A2394)=0,\"\",INDEX('Smelter Look-up'!$A:$A,MATCH($A2394,'Smelter Look-up'!$E:$E,0)))","v":""},{"$f":"IF(LEN(A2394)=0,\"\",INDEX('Smelter Look-up'!$C:$C,MATCH($A2394,'Smelter Look-up'!$E:$E,0)))","v":""},null,{"$f":"IF(ISERROR($V2394),\"\",OFFSET('Smelter Look-up'!$D$4,$V2394-4,0)&\"\")","v":""},{"$f":"IF(ISERROR($V2394),\"\",OFFSET('Smelter Look-up'!$E$4,$V2394-4,0))","v":""},{"$f":"IF(C2394=$X$4,\"Enter smelter details\",IF(ISERROR($V2394),\"\",OFFSET('Smelter Look-up'!$F$4,$V2394-4,0)))","v":""},{"$f":"IF(ISERROR($V2394),\"\",OFFSET('Smelter Look-up'!$G$4,$V2394-4,0))","v":""},{"$f":"IF(ISERROR($V2394),\"\",OFFSET('Smelter Look-up'!$H$4,$V2394-4,0))","v":""},{"$f":"IF(ISERROR($V2394),\"\",OFFSET('Smelter Look-up'!$I$4,$V2394-4,0))","v":""},{"$nulls":7},{"$f":"IF(ISERROR($V2394),\"\",OFFSET('Smelter Look-up'!$C$4,$V2394-4,0)&\"\")","v":""},"",{"$f":"IF(B2394=\"\",\"\",IF(ISERROR(MATCH($J2394,SorP!$B$1:$B$5661,0)),\"\",INDIRECT(\"'SorP'!$A$\"&MATCH($J2394,SorP!$B$1:$B$5661,0))))","v":""},null,{"$f":"IF(C2394=\"\",NA(),MATCH($B2394&$C2394,'Smelter Look-up'!$J:$J,0))","v":{"$error":"#N/A"}},null,0,null,null,null,""]
[null,{"$f":"IF(LEN(A2395)=0,\"\",INDEX('Smelter Look-up'!$A:$A,MATCH($A2395,'Smelter Look-up'!$E:$E,0)))","v":""},{"$f":"IF(LEN(A2395)=0,\"\",INDEX('Smelter Look-up'!$C:$C,MATCH($A2395,'Smelter Look-up'!$E:$E,0)))","v":""},null,{"$f":"IF(ISERROR($V2395),\"\",OFFSET('Smelter Look-up'!$D$4,$V2395-4,0)&\"\")","v":""},{"$f":"IF(ISERROR($V2395),\"\",OFFSET('Smelter Look-up'!$E$4,$V2395-4,0))","v":""},{"$f":"IF(C2395=$X$4,\"Enter smelter details\",IF(ISERROR($V2395),\"\",OFFSET('Smelter Look-up'!$F$4,$V2395-4,0)))","v":""},{"$f":"IF(ISERROR($V2395),\"\",OFFSET('Smelter Look-up'!$G$4,$V2395-4,0))","v":""},{"$f":"IF(ISERROR($V2395),\"\",OFFSET('Smelter Look-up'!$H$4,$V2395-4,0))","v":""},{"$f":"IF(ISERROR($V2395),\"\",OFFSET('Smelter Look-up'!$I$4,$V2395-4,0))","v":""},{"$nulls":7},{"$f":"IF(ISERROR($V2395),\"\",OFFSET('Smelter Look-up'!$C$4,$V2395-4,0)&\"\")","v":""},"",{"$f":"IF(B2395=\"\",\"\",IF(ISERROR(MATCH($J2395,SorP!$B$1:$B$5661,0)),\"\",INDIRECT(\"'SorP'!$A$\"&MATCH($J2395,SorP!$B$1:$B$5661,0))))","v":""},null,{"$f":"IF(C2395=\"\",NA(),MATCH($B2395&$C2395,'Smelter Look-up'!$J:$J,0))","v":{"$error":"#N/A"}},null,0,null,null,null,""]
[null,{"$f":"IF(LEN(A2396)=0,\"\",INDEX('Smelter Look-up'!$A:$A,MATCH($A2396,'Smelter Look-up'!$E:$E,0)))","v":""},{"$f":"IF(LEN(A2396)=0,\"\",INDEX('Smelter Look-up'!$C:$C,MATCH($A2396,'Smelter Look-up'!$E:$E,0)))","v":""},null,{"$f":"IF(ISERROR($V2396),\"\",OFFSET('Smelter Look-up'!$D$4,$V2396-4,0)&\"\")","v":""},{"$f":"IF(ISERROR($V2396),\"\",OFFSET('Smelter Look-up'!$E$4,$V2396-4,0))","v":""},{"$f":"IF(C2396=$X$4,\"Enter smelter details\",IF(ISERROR($V2396),\"\",OFFSET('Smelter Look-up'!$F$4,$V2396-4,0)))","v":""},{"$f":"IF(ISERROR($V2396),\"\",OFFSET('Smelter Look-up'!$G$4,$V2396-4,0))","v":""},{"$f":"IF(ISERROR($V2396),\"\",OFFSET('Smelter Look-up'!$H$4,$V2396-4,0))","v":""},{"$f":"IF(ISERROR($V2396),\"\",OFFSET('Smelter Look-up'!$I$4,$V2396-4,0))","v":""},{"$nulls":7},{"$f":"IF(ISERROR($V2396),\"\",OFFSET('Smelter Look-up'!$C$4,$V2396-4,0)&\"\")","v":""},"",{"$f":"IF(B2396=\"\",\"\",IF(ISERROR(MATCH($J2396,SorP!$B$1:$B$5661,0)),\"\",INDIRECT(\"'SorP'!$A$\"&MATCH($J2396,SorP!$B$1:$B$5661,0))))","v":""},null,{"$f":"IF(C2396=\"\",NA(),MATCH($B2396&$C2396,'Smelter Look-up'!$J:$J,0))","v":{"$error":"#N/A"}},null,0,null,null,null,""]
[null,{"$f":"IF(LEN(A2397)=0,\"\",INDEX('Smelter Look-up'!$A:$A,MATCH($A2397,'Smelter Look-up'!$E:$E,0)))","v":""},{"$f":"IF(LEN(A2397)=0,\"\",INDEX('Smelter Look-up'!$C:$C,MATCH($A2397,'Smelter Look-up'!$E:$E,0)))","v":""},null,{"$f":"IF(ISERROR($V2397),\"\",OFFSET('Smelter Look-up'!$D$4,$V2397-4,0)&\"\")","v":""},{"$f":"IF(ISERROR($V2397),\"\",OFFSET('Smelter Look-up'!$E$4,$V2397-4,0))","v":""},{"$f":"IF(C2397=$X$4,\"Enter smelter details\",IF(ISERROR($V2397),\"\",OFFSET('Smelter Look-up'!$F$4,$V2397-4,0)))","v":""},{"$f":"IF(ISERROR($V2397),\"\",OFFSET('Smelter Look-up'!$G$4,$V2397-4,0))","v":""},{"$f":"IF(ISERROR($V2397),\"\",OFFSET('Smelter Look-up'!$H$4,$V2397-4,0))","v":""},{"$f":"IF(ISERROR($V2397),\"\",OFFSET('Smelter Look-up'!$I$4,$V2397-4,0))","v":""},{"$nulls":7},{"$f":"IF(ISERROR($V2397),\"\",OFFSET('Smelter Look-up'!$C$4,$V2397-4,0)&\"\")","v":""},"",{"$f":"IF(B2397=\"\",\"\",IF(ISERROR(MATCH($J2397,SorP!$B$1:$B$5661,0)),\"\",INDIRECT(\"'SorP'!$A$\"&MATCH($J2397,SorP!$B$1:$B$5661,0))))","v":""},null,{"$f":"IF(C2397=\"\",NA(),MATCH($B2397&$C2397,'Smelter Look-up'!$J:$J,0))","v":{"$error":"#N/A"}},null,0,null,null,null,""]
[null,{"$f":"IF(LEN(A2398)=0,\"\",INDEX('Smelter Look-up'!$A:$A,MATCH($A2398,'Smelter Look-up'!$E:$E,0)))","v":""},{"$f":"IF(LEN(A2398)=0,\"\",INDEX('Smelter Look-up'!$C:$C,MATCH($A2398,'Smelter Look-up'!$E:$E,0)))","v":""},null,{"$f":"IF(ISERROR($V2398),\"\",OFFSET('Smelter Look-up'!$D$4,$V2398-4,0)&\"\")","v":""},{"$f":"IF(ISERROR($V2398),\"\",OFFSET('Smelter Look-up'!$E$4,$V2398-4,0))","v":""},{"$f":"IF(C2398=$X$4,\"Enter smelter details\",IF(ISERROR($V2398),\"\",OFFSET('Smelter Look-up'!$F$4,$V2398-4,0)))","v":""},{"$f":"IF(ISERROR($V2398),\"\",OFFSET('Smelter Look-up'!$G$4,$V2398-4,0))","v":""},{"$f":"IF(ISERROR($V2398),\"\",OFFSET('Smelter Look-up'!$H$4,$V2398-4,0))","v":""},{"$f":"IF(ISERROR($V2398),\"\",OFFSET('Smelter Look-up'!$I$4,$V2398-4,0))","v":""},{"$nulls":7},{"$f":"IF(ISERROR($V2398),\"\",OFFSET('Smelter Look-up'!$C$4,$V2398-4,0)&\"\")","v":""},"",{"$f":"IF(B2398=\"\",\"\",IF(ISERROR(MATCH($J2398,SorP!$B$1:$B$5661,0)),\"\",INDIRECT(\"'SorP'!$A$\"&MATCH($J2398,SorP!$B$1:$B$5661,0))))","v":""},null,{"$f":"IF(C2398=\"\",NA(),MATCH($B2398&$C2398,'Smelter Look-up'!$J:$J,0))","v":{"$error":"#N/A"}},null,0,null,null,null,""]
[null,{"$f":"IF(LEN(A2399)=0,\"\",INDEX('Smelter Look-up'!$A:$A,MATCH($A2399,'Smelter Look-up'!$E:$E,0)))","v":""},{"$f":"IF(LEN(A2399)=0,\"\",INDEX('Smelter Look-up'!$C:$C,MATCH($A2399,'Smelter Look-up'!$E:$E,0)))","v":""},null,{"$f":"IF(ISERROR($V2399),\"\",OFFSET('Smelter Look-up'!$D$4,$V2399-4,0)&\"\")","v":""},{"$f":"IF(ISERROR($V2399),\"\",OFFSET('Smelter Look-up'!$E$4,$V2399-4,0))","v":""},{"$f":"IF(C2399=$X$4,\"Enter smelter details\",IF(ISERROR($V2399),\"\",OFFSET('Smelter Look-up'!$F$4,$V2399-4,0)))","v":""},{"$f":"IF(ISERROR($V2399),\"\",OFFSET('Smelter Look-up'!$G$4,$V2399-4,0))","v":""},{"$f":"IF(ISERROR($V2399),\"\",OFFSET('Smelter Look-up'!$H$4,$V2399-4,0))","v":""},{"$f":"IF(ISERROR($V2399),\"\",OFFSET('Smelter Look-up'!$I$4,$V2399-4,0))","v":""},{"$nulls":7},{"$f":"IF(ISERROR($V2399),\"\",OFFSET('Smelter Look-up'!$C$4,$V2399-4,0)&\"\")","v":""},"",{"$f":"IF(B2399=\"\",\"\",IF(ISERROR(MATCH($J2399,SorP!$B$1:$B$5661,0)),\"\",INDIRECT(\"'SorP'!$A$\"&MATCH($J2399,SorP!$B$1:$B$5661,0))))","v":""},null,{"$f":"IF(C2399=\"\",NA(),MATCH($B2399&$C2399,'Smelter Look-up'!$J:$J,0))","v":{"$error":"#N/A"}},null,0,null,null,null,""]
[null,{"$f":"IF(LEN(A2400)=0,\"\",INDEX('Smelter Look-up'!$A:$A,MATCH($A2400,'Smelter Look-up'!$E:$E,0)))","v":""},{"$f":"IF(LEN(A2400)=0,\"\",INDEX('Smelter Look-up'!$C:$C,MATCH($A2400,'Smelter Look-up'!$E:$E,0)))","v":""},null,{"$f":"IF(ISERROR($V2400),\"\",OFFSET('Smelter Look-up'!$D$4,$V2400-4,0)&\"\")","v":""},{"$f":"IF(ISERROR($V2400),\"\",OFFSET('Smelter Look-up'!$E$4,$V2400-4,0))","v":""},{"$f":"IF(C2400=$X$4,\"Enter smelter details\",IF(ISERROR($V2400),\"\",OFFSET('Smelter Look-up'!$F$4,$V2400-4,0)))","v":""},{"$f":"IF(ISERROR($V2400),\"\",OFFSET('Smelter Look-up'!$G$4,$V2400-4,0))","v":""},{"$f":"IF(ISERROR($V2400),\"\",OFFSET('Smelter Look-up'!$H$4,$V2400-4,0))","v":""},{"$f":"IF(ISERROR($V2400),\"\",OFFSET('Smelter Look-up'!$I$4,$V2400-4,0))","v":""},{"$nulls":7},{"$f":"IF(ISERROR($V2400),\"\",OFFSET('Smelter Look-up'!$C$4,$V2400-4,0)&\"\")","v":""},"",{"$f":"IF(B2400=\"\",\"\",IF(ISERROR(MATCH($J2400,SorP!$B$1:$B$5661,0)),\"\",INDIRECT(\"'SorP'!$A$\"&MATCH($J2400,SorP!$B$1:$B$5661,0))))","v":""},null,{"$f":"IF(C2400=\"\",NA(),MATCH($B2400&$C2400,'Smelter Look-up'!$J:$J,0))","v":{"$error":"#N/A"}},null,0,null,null,null,""]
[null,{"$f":"IF(LEN(A2401)=0,\"\",INDEX('Smelter Look-up'!$A:$A,MATCH($A2401,'Smelter Look-up'!$E:$E,0)))","v":""},{"$f":"IF(LEN(A2401)=0,\"\",INDEX('Smelter Look-up'!$C:$C,MATCH($A2401,'Smelter Look-up'!$E:$E,0)))","v":""},null,{"$f":"IF(ISERROR($V2401),\"\",OFFSET('Smelter Look-up'!$D$4,$V2401-4,0)&\"\")","v":""},{"$f":"IF(ISERROR($V2401),\"\",OFFSET('Smelter Look-up'!$E$4,$V2401-4,0))","v":""},{"$f":"IF(C2401=$X$4,\"Enter smelter details\",IF(ISERROR($V2401),\"\",OFFSET('Smelter Look-up'!$F$4,$V2401-4,0)))","v":""},{"$f":"IF(ISERROR($V2401),\"\",OFFSET('Smelter Look-up'!$G$4,$V2401-4,0))","v":""},{"$f":"IF(ISERROR($V2401),\"\",OFFSET('Smelter Look-up'!$H$4,$V2401-4,0))","v":""},{"$f":"IF(ISERROR($V2401),\"\",OFFSET('Smelter Look-up'!$I$4,$V2401-4,0))","v":""},{"$nulls":7},{"$f":"IF(ISERROR($V2401),\"\",OFFSET('Smelter Look-up'!$C$4,$V2401-4,0)&\"\")","v":""},"",{"$f":"IF(B2401=\"\",\"\",IF(ISERROR(MATCH($J2401,SorP!$B$1:$B$5661,0)),\"\",INDIRECT(\"'SorP'!$A$\"&MATCH($J2401,SorP!$B$1:$B$5661,0))))","v":""},null,{"$f":"IF(C2401=\"\",NA(),MATCH($B2401&$C2401,'Smelter Look-up'!$J:$J,0))","v":{"$error":"#N/A"}},null,0,null,null,null,""]
[null,{"$f":"IF(LEN(A2402)=0,\"\",INDEX('Smelter Look-up'!$A:$A,MATCH($A2402,'Smelter Look-up'!$E:$E,0)))","v":""},{"$f":"IF(LEN(A2402)=0,\"\",INDEX('Smelter Look-up'!$C:$C,MATCH($A2402,'Smelter Look-up'!$E:$E,0)))","v":""},null,{"$f":"IF(ISERROR($V2402),\"\",OFFSET('Smelter Look-up'!$D$4,$V2402-4,0)&\"\")","v":""},{"$f":"IF(ISERROR($V2402),\"\",OFFSET('Smelter Look-up'!$E$4,$V2402-4,0))","v":""},{"$f":"IF(C2402=$X$4,\"Enter smelter details\",IF(ISERROR($V2402),\"\",OFFSET('Smelter Look-up'!$F$4,$V2402-4,0)))","v":""},{"$f":"IF(ISERROR($V2402),\"\",OFFSET('Smelter Look-up'!$G$4,$V2402-4,0))","v":""},{"$f":"IF(ISERROR($V2402),\"\",OFFSET('Smelter Look-up'!$H$4,$V2402-4,0))","v":""},{"$f":"IF(ISERROR($V2402),\"\",OFFSET('Smelter Look-up'!$I$4,$V2402-4,0))","v":""},{"$nulls":7},{"$f":"IF(ISERROR($V2402),\"\",OFFSET('Smelter Look-up'!$C$4,$V2402-4,0)&\"\")","v":""},"",{"$f":"IF(B2402=\"\",\"\",IF(ISERROR(MATCH($J2402,SorP!$B$1:$B$5661,0)),\"\",INDIRECT(\"'SorP'!$A$\"&MATCH($J2402,SorP!$B$1:$B$5661,0))))","v":""},null,{"$f":"IF(C2402=\"\",NA(),MATCH($B2402&$C2402,'Smelter Look-up'!$J:$J,0))","v":{"$error":"#N/A"}},null,0,null,null,null,""]
[null,{"$f":"IF(LEN(A2403)=0,\"\",INDEX('Smelter Look-up'!$A:$A,MATCH($A2403,'Smelter Look-up'!$E:$E,0)))","v":""},{"$f":"IF(LEN(A2403)=0,\"\",INDEX('Smelter Look-up'!$C:$C,MATCH($A2403,'Smelter Look-up'!$E:$E,0)))","v":""},null,{"$f":"IF(ISERROR($V2403),\"\",OFFSET('Smelter Look-up'!$D$4,$V2403-4,0)&\"\")","v":""},{"$f":"IF(ISERROR($V2403),\"\",OFFSET('Smelter Look-up'!$E$4,$V2403-4,0))","v":""},{"$f":"IF(C2403=$X$4,\"Enter smelter details\",IF(ISERROR($V2403),\"\",OFFSET('Smelter Look-up'!$F$4,$V2403-4,0)))","v":""},{"$f":"IF(ISERROR($V2403),\"\",OFFSET('Smelter Look-up'!$G$4,$V2403-4,0))","v":""},{"$f":"IF(ISERROR($V2403),\"\",OFFSET('Smelter Look-up'!$H$4,$V2403-4,0))","v":""},{"$f":"IF(ISERROR($V2403),\"\",OFFSET('Smelter Look-up'!$I$4,$V2403-4,0))","v":""},{"$nulls":7},{"$f":"IF(ISERROR($V2403),\"\",OFFSET('Smelter Look-up'!$C$4,$V2403-4,0)&\"\")","v":""},"",{"$f":"IF(B2403=\"\",\"\",IF(ISERROR(MATCH($J2403,SorP!$B$1:$B$5661,0)),\"\",INDIRECT(\"'SorP'!$A$\"&MATCH($J2403,SorP!$B$1:$B$5661,0))))","v":""},null,{"$f":"IF(C2403=\"\",NA(),MATCH($B2403&$C2403,'Smelter Look-up'!$J:$J,0))","v":{"$error":"#N/A"}},null,0,null,null,null,""]
[null,{"$f":"IF(LEN(A2404)=0,\"\",INDEX('Smelter Look-up'!$A:$A,MATCH($A2404,'Smelter Look-up'!$E:$E,0)))","v":""},{"$f":"IF(LEN(A2404)=0,\"\",INDEX('Smelter Look-up'!$C:$C,MATCH($A2404,'Smelter Look-up'!$E:$E,0)))","v":""},null,{"$f":"IF(ISERROR($V2404),\"\",OFFSET('Smelter Look-up'!$D$4,$V2404-4,0)&\"\")","v":""},{"$f":"IF(ISERROR($V2404),\"\",OFFSET('Smelter Look-up'!$E$4,$V2404-4,0))","v":""},{"$f":"IF(C2404=$X$4,\"Enter smelter details\",IF(ISERROR($V2404),\"\",OFFSET('Smelter Look-up'!$F$4,$V2404-4,0)))","v":""},{"$f":"IF(ISERROR($V2404),\"\",OFFSET('Smelter Look-up'!$G$4,$V2404-4,0))","v":""},{"$f":"IF(ISERROR($V2404),\"\",OFFSET('Smelter Look-up'!$H$4,$V2404-4,0))","v":""},{"$f":"IF(ISERROR($V2404),\"\",OFFSET('Smelter Look-up'!$I$4,$V2404-4,0))","v":""},{"$nulls":7},{"$f":"IF(ISERROR($V2404),\"\",OFFSET('Smelter Look-up'!$C$4,$V2404-4,0)&\"\")","v":""},"",{"$f":"IF(B2404=\"\",\"\",IF(ISERROR(MATCH($J2404,SorP!$B$1:$B$5661,0)),\"\",INDIRECT(\"'SorP'!$A$\"&MATCH($J2404,SorP!$B$1:$B$5661,0))))","v":""},null,{"$f":"IF(C2404=\"\",NA(),MATCH($B2404&$C2404,'Smelter Look-up'!$J:$J,0))","v":{"$error":"#N/A"}},null,0,null,null,null,""]
[null,{"$f":"IF(LEN(A2405)=0,\"\",INDEX('Smelter Look-up'!$A:$A,MATCH($A2405,'Smelter Look-up'!$E:$E,0)))","v":""},{"$f":"IF(LEN(A2405)=0,\"\",INDEX('Smelter Look-up'!$C:$C,MATCH($A2405,'Smelter Look-up'!$E:$E,0)))","v":""},null,{"$f":"IF(ISERROR($V2405),\"\",OFFSET('Smelter Look-up'!$D$4,$V2405-4,0)&\"\")","v":""},{"$f":"IF(ISERROR($V2405),\"\",OFFSET('Smelter Look-up'!$E$4,$V2405-4,0))","v":""},{"$f":"IF(C2405=$X$4,\"Enter smelter details\",IF(ISERROR($V2405),\"\",OFFSET('Smelter Look-up'!$F$4,$V2405-4,0)))","v":""},{"$f":"IF(ISERROR($V2405),\"\",OFFSET('Smelter Look-up'!$G$4,$V2405-4,0))","v":""},{"$f":"IF(ISERROR($V2405),\"\",OFFSET('Smelter Look-up'!$H$4,$V2405-4,0))","v":""},{"$f":"IF(ISERROR($V2405),\"\",OFFSET('Smelter Look-up'!$I$4,$V2405-4,0))","v":""},{"$nulls":7},{"$f":"IF(ISERROR($V2405),\"\",OFFSET('Smelter Look-up'!$C$4,$V2405-4,0)&\"\")","v":""},"",{"$f":"IF(B2405=\"\",\"\",IF(ISERROR(MATCH($J2405,SorP!$B$1:$B$5661,0)),\"\",INDIRECT(\"'SorP'!$A$\"&MATCH($J2405,SorP!$B$1:$B$5661,0))))","v":""},null,{"$f":"IF(C2405=\"\",NA(),MATCH($B2405&$C2405,'Smelter Look-up'!$J:$J,0))","v":{"$error":"#N/A"}},null,0,null,null,null,""]
[null,{"$f":"IF(LEN(A2406)=0,\"\",INDEX('Smelter Look-up'!$A:$A,MATCH($A2406,'Smelter Look-up'!$E:$E,0)))","v":""},{"$f":"IF(LEN(A2406)=0,\"\",INDEX('Smelter Look-up'!$C:$C,MATCH($A2406,'Smelter Look-up'!$E:$E,0)))","v":""},null,{"$f":"IF(ISERROR($V2406),\"\",OFFSET('Smelter Look-up'!$D$4,$V2406-4,0)&\"\")","v":""},{"$f":"IF(ISERROR($V2406),\"\",OFFSET('Smelter Look-up'!$E$4,$V2406-4,0))","v":""},{"$f":"IF(C2406=$X$4,\"Enter smelter details\",IF(ISERROR($V2406),\"\",OFFSET('Smelter Look-up'!$F$4,$V2406-4,0)))","v":""},{"$f":"IF(ISERROR($V2406),\"\",OFFSET('Smelter Look-up'!$G$4,$V2406-4,0))","v":""},{"$f":"IF(ISERROR($V2406),\"\",OFFSET('Smelter Look-up'!$H$4,$V2406-4,0))","v":""},{"$f":"IF(ISERROR($V2406),\"\",OFFSET('Smelter Look-up'!$I$4,$V2406-4,0))","v":""},{"$nulls":7},{"$f":"IF(ISERROR($V2406),\"\",OFFSET('Smelter Look-up'!$C$4,$V2406-4,0)&\"\")","v":""},"",{"$f":"IF(B2406=\"\",\"\",IF(ISERROR(MATCH($J2406,SorP!$B$1:$B$5661,0)),\"\",INDIRECT(\"'SorP'!$A$\"&MATCH($J2406,SorP!$B$1:$B$5661,0))))","v":""},null,{"$f":"IF(C2406=\"\",NA(),MATCH($B2406&$C2406,'Smelter Look-up'!$J:$J,0))","v":{"$error":"#N/A"}},null,0,null,null,null,""]
[null,{"$f":"IF(LEN(A2407)=0,\"\",INDEX('Smelter Look-up'!$A:$A,MATCH($A2407,'Smelter Look-up'!$E:$E,0)))","v":""},{"$f":"IF(LEN(A2407)=0,\"\",INDEX('Smelter Look-up'!$C:$C,MATCH($A2407,'Smelter Look-up'!$E:$E,0)))","v":""},null,{"$f":"IF(ISERROR($V2407),\"\",OFFSET('Smelter Look-up'!$D$4,$V2407-4,0)&\"\")","v":""},{"$f":"IF(ISERROR($V2407),\"\",OFFSET('Smelter Look-up'!$E$4,$V2407-4,0))","v":""},{"$f":"IF(C2407=$X$4,\"Enter smelter details\",IF(ISERROR($V2407),\"\",OFFSET('Smelter Look-up'!$F$4,$V2407-4,0)))","v":""},{"$f":"IF(ISERROR($V2407),\"\",OFFSET('Smelter Look-up'!$G$4,$V2407-4,0))","v":""},{"$f":"IF(ISERROR($V2407),\"\",OFFSET('Smelter Look-up'!$H$4,$V2407-4,0))","v":""},{"$f":"IF(ISERROR($V2407),\"\",OFFSET('Smelter Look-up'!$I$4,$V2407-4,0))","v":""},{"$nulls":7},{"$f":"IF(ISERROR($V2407),\"\",OFFSET('Smelter Look-up'!$C$4,$V2407-4,0)&\"\")","v":""},"",{"$f":"IF(B2407=\"\",\"\",IF(ISERROR(MATCH($J2407,SorP!$B$1:$B$5661,0)),\"\",INDIRECT(\"'SorP'!$A$\"&MATCH($J2407,SorP!$B$1:$B$5661,0))))","v":""},null,{"$f":"IF(C2407=\"\",NA(),MATCH($B2407&$C2407,'Smelter Look-up'!$J:$J,0))","v":{"$error":"#N/A"}},null,0,null,null,null,""]
[null,{"$f":"IF(LEN(A2408)=0,\"\",INDEX('Smelter Look-up'!$A:$A,MATCH($A2408,'Smelter Look-up'!$E:$E,0)))","v":""},{"$f":"IF(LEN(A2408)=0,\"\",INDEX('Smelter Look-up'!$C:$C,MATCH($A2408,'Smelter Look-up'!$E:$E,0)))","v":""},null,{"$f":"IF(ISERROR($V2408),\"\",OFFSET('Smelter Look-up'!$D$4,$V2408-4,0)&\"\")","v":""},{"$f":"IF(ISERROR($V2408),\"\",OFFSET('Smelter Look-up'!$E$4,$V2408-4,0))","v":""},{"$f":"IF(C2408=$X$4,\"Enter smelter details\",IF(ISERROR($V2408),\"\",OFFSET('Smelter Look-up'!$F$4,$V2408-4,0)))","v":""},{"$f":"IF(ISERROR($V2408),\"\",OFFSET('Smelter Look-up'!$G$4,$V2408-4,0))","v":""},{"$f":"IF(ISERROR($V2408),\"\",OFFSET('Smelter Look-up'!$H$4,$V2408-4,0))","v":""},{"$f":"IF(ISERROR($V2408),\"\",OFFSET('Smelter Look-up'!$I$4,$V2408-4,0))","v":""},{"$nulls":7},{"$f":"IF(ISERROR($V2408),\"\",OFFSET('Smelter Look-up'!$C$4,$V2408-4,0)&\"\")","v":""},"",{"$f":"IF(B2408=\"\",\"\",IF(ISERROR(MATCH($J2408,SorP!$B$1:$B$5661,0)),\"\",INDIRECT(\"'SorP'!$A$\"&MATCH($J2408,SorP!$B$1:$B$5661,0))))","v":""},null,{"$f":"IF(C2408=\"\",NA(),MATCH($B2408&$C2408,'Smelter Look-up'!$J:$J,0))","v":{"$error":"#N/A"}},null,0,null,null,null,""]
[null,{"$f":"IF(LEN(A2409)=0,\"\",INDEX('Smelter Look-up'!$A:$A,MATCH($A2409,'Smelter Look-up'!$E:$E,0)))","v":""},{"$f":"IF(LEN(A2409)=0,\"\",INDEX('Smelter Look-up'!$C:$C,MATCH($A2409,'Smelter Look-up'!$E:$E,0)))","v":""},null,{"$f":"IF(ISERROR($V2409),\"\",OFFSET('Smelter Look-up'!$D$4,$V2409-4,0)&\"\")","v":""},{"$f":"IF(ISERROR($V2409),\"\",OFFSET('Smelter Look-up'!$E$4,$V2409-4,0))","v":""},{"$f":"IF(C2409=$X$4,\"Enter smelter details\",IF(ISERROR($V2409),\"\",OFFSET('Smelter Look-up'!$F$4,$V2409-4,0)))","v":""},{"$f":"IF(ISERROR($V2409),\"\",OFFSET('Smelter Look-up'!$G$4,$V2409-4,0))","v":""},{"$f":"IF(ISERROR($V2409),\"\",OFFSET('Smelter Look-up'!$H$4,$V2409-4,0))","v":""},{"$f":"IF(ISERROR($V2409),\"\",OFFSET('Smelter Look-up'!$I$4,$V2409-4,0))","v":""},{"$nulls":7},{"$f":"IF(ISERROR($V2409),\"\",OFFSET('Smelter Look-up'!$C$4,$V2409-4,0)&\"\")","v":""},"",{"$f":"IF(B2409=\"\",\"\",IF(ISERROR(MATCH($J2409,SorP!$B$1:$B$5661,0)),\"\",INDIRECT(\"'SorP'!$A$\"&MATCH($J2409,SorP!$B$1:$B$5661,0))))","v":""},null,{"$f":"IF(C2409=\"\",NA(),MATCH($B2409&$C2409,'Smelter Look-up'!$J:$J,0))","v":{"$error":"#N/A"}},null,0,null,null,null,""]
[null,{"$f":"IF(LEN(A2410)=0,\"\",INDEX('Smelter Look-up'!$A:$A,MATCH($A2410,'Smelter Look-up'!$E:$E,0)))","v":""},{"$f":"IF(LEN(A2410)=0,\"\",INDEX('Smelter Look-up'!$C:$C,MATCH($A2410,'Smelter Look-up'!$E:$E,0)))","v":""},null,{"$f":"IF(ISERROR($V2410),\"\",OFFSET('Smelter Look-up'!$D$4,$V2410-4,0)&\"\")","v":""},{"$f":"IF(ISERROR($V2410),\"\",OFFSET('Smelter Look-up'!$E$4,$V2410-4,0))","v":""},{"$f":"IF(C2410=$X$4,\"Enter smelter details\",IF(ISERROR($V2410),\"\",OFFSET('Smelter Look-up'!$F$4,$V2410-4,0)))","v":""},{"$f":"IF(ISERROR($V2410),\"\",OFFSET('Smelter Look-up'!$G$4,$V2410-4,0))","v":""},{"$f":"IF(ISERROR($V2410),\"\",OFFSET('Smelter Look-up'!$H$4,$V2410-4,0))","v":""},{"$f":"IF(ISERROR($V2410),\"\",OFFSET('Smelter Look-up'!$I$4,$V2410-4,0))","v":""},{"$nulls":7},{"$f":"IF(ISERROR($V2410),\"\",OFFSET('Smelter Look-up'!$C$4,$V2410-4,0)&\"\")","v":""},"",{"$f":"IF(B2410=\"\",\"\",IF(ISERROR(MATCH($J2410,SorP!$B$1:$B$5661,0)),\"\",INDIRECT(\"'SorP'!$A$\"&MATCH($J2410,SorP!$B$1:$B$5661,0))))","v":""},null,{"$f":"IF(C2410=\"\",NA(),MATCH($B2410&$C2410,'Smelter Look-up'!$J:$J,0))","v":{"$error":"#N/A"}},null,0,null,null,null,""]
[null,{"$f":"IF(LEN(A2411)=0,\"\",INDEX('Smelter Look-up'!$A:$A,MATCH($A2411,'Smelter Look-up'!$E:$E,0)))","v":""},{"$f":"IF(LEN(A2411)=0,\"\",INDEX('Smelter Look-up'!$C:$C,MATCH($A2411,'Smelter Look-up'!$E:$E,0)))","v":""},null,{"$f":"IF(ISERROR($V2411),\"\",OFFSET('Smelter Look-up'!$D$4,$V2411-4,0)&\"\")","v":""},{"$f":"IF(ISERROR($V2411),\"\",OFFSET('Smelter Look-up'!$E$4,$V2411-4,0))","v":""},{"$f":"IF(C2411=$X$4,\"Enter smelter details\",IF(ISERROR($V2411),\"\",OFFSET('Smelter Look-up'!$F$4,$V2411-4,0)))","v":""},{"$f":"IF(ISERROR($V2411),\"\",OFFSET('Smelter Look-up'!$G$4,$V2411-4,0))","v":""},{"$f":"IF(ISERROR($V2411),\"\",OFFSET('Smelter Look-up'!$H$4,$V2411-4,0))","v":""},{"$f":"IF(ISERROR($V2411),\"\",OFFSET('Smelter Look-up'!$I$4,$V2411-4,0))","v":""},{"$nulls":7},{"$f":"IF(ISERROR($V2411),\"\",OFFSET('Smelter Look-up'!$C$4,$V2411-4,0)&\"\")","v":""},"",{"$f":"IF(B2411=\"\",\"\",IF(ISERROR(MATCH($J2411,SorP!$B$1:$B$5661,0)),\"\",INDIRECT(\"'SorP'!$A$\"&MATCH($J2411,SorP!$B$1:$B$5661,0))))","v":""},null,{"$f":"IF(C2411=\"\",NA(),MATCH($B2411&$C2411,'Smelter Look-up'!$J:$J,0))","v":{"$error":"#N/A"}},null,0,null,null,null,""]
[null,{"$f":"IF(LEN(A2412)=0,\"\",INDEX('Smelter Look-up'!$A:$A,MATCH($A2412,'Smelter Look-up'!$E:$E,0)))","v":""},{"$f":"IF(LEN(A2412)=0,\"\",INDEX('Smelter Look-up'!$C:$C,MATCH($A2412,'Smelter Look-up'!$E:$E,0)))","v":""},null,{"$f":"IF(ISERROR($V2412),\"\",OFFSET('Smelter Look-up'!$D$4,$V2412-4,0)&\"\")","v":""},{"$f":"IF(ISERROR($V2412),\"\",OFFSET('Smelter Look-up'!$E$4,$V2412-4,0))","v":""},{"$f":"IF(C2412=$X$4,\"Enter smelter details\",IF(ISERROR($V2412),\"\",OFFSET('Smelter Look-up'!$F$4,$V2412-4,0)))","v":""},{"$f":"IF(ISERROR($V2412),\"\",OFFSET('Smelter Look-up'!$G$4,$V2412-4,0))","v":""},{"$f":"IF(ISERROR($V2412),\"\",OFFSET('Smelter Look-up'!$H$4,$V2412-4,0))","v":""},{"$f":"IF(ISERROR($V2412),\"\",OFFSET('Smelter Look-up'!$I$4,$V2412-4,0))","v":""},{"$nulls":7},{"$f":"IF(ISERROR($V2412),\"\",OFFSET('Smelter Look-up'!$C$4,$V2412-4,0)&\"\")","v":""},"",{"$f":"IF(B2412=\"\",\"\",IF(ISERROR(MATCH($J2412,SorP!$B$1:$B$5661,0)),\"\",INDIRECT(\"'SorP'!$A$\"&MATCH($J2412,SorP!$B$1:$B$5661,0))))","v":""},null,{"$f":"IF(C2412=\"\",NA(),MATCH($B2412&$C2412,'Smelter Look-up'!$J:$J,0))","v":{"$error":"#N/A"}},null,0,null,null,null,""]
[null,{"$f":"IF(LEN(A2413)=0,\"\",INDEX('Smelter Look-up'!$A:$A,MATCH($A2413,'Smelter Look-up'!$E:$E,0)))","v":""},{"$f":"IF(LEN(A2413)=0,\"\",INDEX('Smelter Look-up'!$C:$C,MATCH($A2413,'Smelter Look-up'!$E:$E,0)))","v":""},null,{"$f":"IF(ISERROR($V2413),\"\",OFFSET('Smelter Look-up'!$D$4,$V2413-4,0)&\"\")","v":""},{"$f":"IF(ISERROR($V2413),\"\",OFFSET('Smelter Look-up'!$E$4,$V2413-4,0))","v":""},{"$f":"IF(C2413=$X$4,\"Enter smelter details\",IF(ISERROR($V2413),\"\",OFFSET('Smelter Look-up'!$F$4,$V2413-4,0)))","v":""},{"$f":"IF(ISERROR($V2413),\"\",OFFSET('Smelter Look-up'!$G$4,$V2413-4,0))","v":""},{"$f":"IF(ISERROR($V2413),\"\",OFFSET('Smelter Look-up'!$H$4,$V2413-4,0))","v":""},{"$f":"IF(ISERROR($V2413),\"\",OFFSET('Smelter Look-up'!$I$4,$V2413-4,0))","v":""},{"$nulls":7},{"$f":"IF(ISERROR($V2413),\"\",OFFSET('Smelter Look-up'!$C$4,$V2413-4,0)&\"\")","v":""},"",{"$f":"IF(B2413=\"\",\"\",IF(ISERROR(MATCH($J2413,SorP!$B$1:$B$5661,0)),\"\",INDIRECT(\"'SorP'!$A$\"&MATCH($J2413,SorP!$B$1:$B$5661,0))))","v":""},null,{"$f":"IF(C2413=\"\",NA(),MATCH($B2413&$C2413,'Smelter Look-up'!$J:$J,0))","v":{"$error":"#N/A"}},null,0,null,null,null,""]
[null,{"$f":"IF(LEN(A2414)=0,\"\",INDEX('Smelter Look-up'!$A:$A,MATCH($A2414,'Smelter Look-up'!$E:$E,0)))","v":""},{"$f":"IF(LEN(A2414)=0,\"\",INDEX('Smelter Look-up'!$C:$C,MATCH($A2414,'Smelter Look-up'!$E:$E,0)))","v":""},null,{"$f":"IF(ISERROR($V2414),\"\",OFFSET('Smelter Look-up'!$D$4,$V2414-4,0)&\"\")","v":""},{"$f":"IF(ISERROR($V2414),\"\",OFFSET('Smelter Look-up'!$E$4,$V2414-4,0))","v":""},{"$f":"IF(C2414=$X$4,\"Enter smelter details\",IF(ISERROR($V2414),\"\",OFFSET('Smelter Look-up'!$F$4,$V2414-4,0)))","v":""},{"$f":"IF(ISERROR($V2414),\"\",OFFSET('Smelter Look-up'!$G$4,$V2414-4,0))","v":""},{"$f":"IF(ISERROR($V2414),\"\",OFFSET('Smelter Look-up'!$H$4,$V2414-4,0))","v":""},{"$f":"IF(ISERROR($V2414),\"\",OFFSET('Smelter Look-up'!$I$4,$V2414-4,0))","v":""},{"$nulls":7},{"$f":"IF(ISERROR($V2414),\"\",OFFSET('Smelter Look-up'!$C$4,$V2414-4,0)&\"\")","v":""},"",{"$f":"IF(B2414=\"\",\"\",IF(ISERROR(MATCH($J2414,SorP!$B$1:$B$5661,0)),\"\",INDIRECT(\"'SorP'!$A$\"&MATCH($J2414,SorP!$B$1:$B$5661,0))))","v":""},null,{"$f":"IF(C2414=\"\",NA(),MATCH($B2414&$C2414,'Smelter Look-up'!$J:$J,0))","v":{"$error":"#N/A"}},null,0,null,null,null,""]
[null,{"$f":"IF(LEN(A2415)=0,\"\",INDEX('Smelter Look-up'!$A:$A,MATCH($A2415,'Smelter Look-up'!$E:$E,0)))","v":""},{"$f":"IF(LEN(A2415)=0,\"\",INDEX('Smelter Look-up'!$C:$C,MATCH($A2415,'Smelter Look-up'!$E:$E,0)))","v":""},null,{"$f":"IF(ISERROR($V2415),\"\",OFFSET('Smelter Look-up'!$D$4,$V2415-4,0)&\"\")","v":""},{"$f":"IF(ISERROR($V2415),\"\",OFFSET('Smelter Look-up'!$E$4,$V2415-4,0))","v":""},{"$f":"IF(C2415=$X$4,\"Enter smelter details\",IF(ISERROR($V2415),\"\",OFFSET('Smelter Look-up'!$F$4,$V2415-4,0)))","v":""},{"$f":"IF(ISERROR($V2415),\"\",OFFSET('Smelter Look-up'!$G$4,$V2415-4,0))","v":""},{"$f":"IF(ISERROR($V2415),\"\",OFFSET('Smelter Look-up'!$H$4,$V2415-4,0))","v":""},{"$f":"IF(ISERROR($V2415),\"\",OFFSET('Smelter Look-up'!$I$4,$V2415-4,0))","v":""},{"$nulls":7},{"$f":"IF(ISERROR($V2415),\"\",OFFSET('Smelter Look-up'!$C$4,$V2415-4,0)&\"\")","v":""},"",{"$f":"IF(B2415=\"\",\"\",IF(ISERROR(MATCH($J2415,SorP!$B$1:$B$5661,0)),\"\",INDIRECT(\"'SorP'!$A$\"&MATCH($J2415,SorP!$B$1:$B$5661,0))))","v":""},null,{"$f":"IF(C2415=\"\",NA(),MATCH($B2415&$C2415,'Smelter Look-up'!$J:$J,0))","v":{"$error":"#N/A"}},null,0,null,null,null,""]
[null,{"$f":"IF(LEN(A2416)=0,\"\",INDEX('Smelter Look-up'!$A:$A,MATCH($A2416,'Smelter Look-up'!$E:$E,0)))","v":""},{"$f":"IF(LEN(A2416)=0,\"\",INDEX('Smelter Look-up'!$C:$C,MATCH($A2416,'Smelter Look-up'!$E:$E,0)))","v":""},null,{"$f":"IF(ISERROR($V2416),\"\",OFFSET('Smelter Look-up'!$D$4,$V2416-4,0)&\"\")","v":""},{"$f":"IF(ISERROR($V2416),\"\",OFFSET('Smelter Look-up'!$E$4,$V2416-4,0))","v":""},{"$f":"IF(C2416=$X$4,\"Enter smelter details\",IF(ISERROR($V2416),\"\",OFFSET('Smelter Look-up'!$F$4,$V2416-4,0)))","v":""},{"$f":"IF(ISERROR($V2416),\"\",OFFSET('Smelter Look-up'!$G$4,$V2416-4,0))","v":""},{"$f":"IF(ISERROR($V2416),\"\",OFFSET('Smelter Look-up'!$H$4,$V2416-4,0))","v":""},{"$f":"IF(ISERROR($V2416),\"\",OFFSET('Smelter Look-up'!$I$4,$V2416-4,0))","v":""},{"$nulls":7},{"$f":"IF(ISERROR($V2416),\"\",OFFSET('Smelter Look-up'!$C$4,$V2416-4,0)&\"\")","v":""},"",{"$f":"IF(B2416=\"\",\"\",IF(ISERROR(MATCH($J2416,SorP!$B$1:$B$5661,0)),\"\",INDIRECT(\"'SorP'!$A$\"&MATCH($J2416,SorP!$B$1:$B$5661,0))))","v":""},null,{"$f":"IF(C2416=\"\",NA(),MATCH($B2416&$C2416,'Smelter Look-up'!$J:$J,0))","v":{"$error":"#N/A"}},null,0,null,null,null,""]
[null,{"$f":"IF(LEN(A2417)=0,\"\",INDEX('Smelter Look-up'!$A:$A,MATCH($A2417,'Smelter Look-up'!$E:$E,0)))","v":""},{"$f":"IF(LEN(A2417)=0,\"\",INDEX('Smelter Look-up'!$C:$C,MATCH($A2417,'Smelter Look-up'!$E:$E,0)))","v":""},null,{"$f":"IF(ISERROR($V2417),\"\",OFFSET('Smelter Look-up'!$D$4,$V2417-4,0)&\"\")","v":""},{"$f":"IF(ISERROR($V2417),\"\",OFFSET('Smelter Look-up'!$E$4,$V2417-4,0))","v":""},{"$f":"IF(C2417=$X$4,\"Enter smelter details\",IF(ISERROR($V2417),\"\",OFFSET('Smelter Look-up'!$F$4,$V2417-4,0)))","v":""},{"$f":"IF(ISERROR($V2417),\"\",OFFSET('Smelter Look-up'!$G$4,$V2417-4,0))","v":""},{"$f":"IF(ISERROR($V2417),\"\",OFFSET('Smelter Look-up'!$H$4,$V2417-4,0))","v":""},{"$f":"IF(ISERROR($V2417),\"\",OFFSET('Smelter Look-up'!$I$4,$V2417-4,0))","v":""},{"$nulls":7},{"$f":"IF(ISERROR($V2417),\"\",OFFSET('Smelter Look-up'!$C$4,$V2417-4,0)&\"\")","v":""},"",{"$f":"IF(B2417=\"\",\"\",IF(ISERROR(MATCH($J2417,SorP!$B$1:$B$5661,0)),\"\",INDIRECT(\"'SorP'!$A$\"&MATCH($J2417,SorP!$B$1:$B$5661,0))))","v":""},null,{"$f":"IF(C2417=\"\",NA(),MATCH($B2417&$C2417,'Smelter Look-up'!$J:$J,0))","v":{"$error":"#N/A"}},null,0,null,null,null,""]
[null,{"$f":"IF(LEN(A2418)=0,\"\",INDEX('Smelter Look-up'!$A:$A,MATCH($A2418,'Smelter Look-up'!$E:$E,0)))","v":""},{"$f":"IF(LEN(A2418)=0,\"\",INDEX('Smelter Look-up'!$C:$C,MATCH($A2418,'Smelter Look-up'!$E:$E,0)))","v":""},null,{"$f":"IF(ISERROR($V2418),\"\",OFFSET('Smelter Look-up'!$D$4,$V2418-4,0)&\"\")","v":""},{"$f":"IF(ISERROR($V2418),\"\",OFFSET('Smelter Look-up'!$E$4,$V2418-4,0))","v":""},{"$f":"IF(C2418=$X$4,\"Enter smelter details\",IF(ISERROR($V2418),\"\",OFFSET('Smelter Look-up'!$F$4,$V2418-4,0)))","v":""},{"$f":"IF(ISERROR($V2418),\"\",OFFSET('Smelter Look-up'!$G$4,$V2418-4,0))","v":""},{"$f":"IF(ISERROR($V2418),\"\",OFFSET('Smelter Look-up'!$H$4,$V2418-4,0))","v":""},{"$f":"IF(ISERROR($V2418),\"\",OFFSET('Smelter Look-up'!$I$4,$V2418-4,0))","v":""},{"$nulls":7},{"$f":"IF(ISERROR($V2418),\"\",OFFSET('Smelter Look-up'!$C$4,$V2418-4,0)&\"\")","v":""},"",{"$f":"IF(B2418=\"\",\"\",IF(ISERROR(MATCH($J2418,SorP!$B$1:$B$5661,0)),\"\",INDIRECT(\"'SorP'!$A$\"&MATCH($J2418,SorP!$B$1:$B$5661,0))))","v":""},null,{"$f":"IF(C2418=\"\",NA(),MATCH($B2418&$C2418,'Smelter Look-up'!$J:$J,0))","v":{"$error":"#N/A"}},null,0,null,null,null,""]
[null,{"$f":"IF(LEN(A2419)=0,\"\",INDEX('Smelter Look-up'!$A:$A,MATCH($A2419,'Smelter Look-up'!$E:$E,0)))","v":""},{"$f":"IF(LEN(A2419)=0,\"\",INDEX('Smelter Look-up'!$C:$C,MATCH($A2419,'Smelter Look-up'!$E:$E,0)))","v":""},null,{"$f":"IF(ISERROR($V2419),\"\",OFFSET('Smelter Look-up'!$D$4,$V2419-4,0)&\"\")","v":""},{"$f":"IF(ISERROR($V2419),\"\",OFFSET('Smelter Look-up'!$E$4,$V2419-4,0))","v":""},{"$f":"IF(C2419=$X$4,\"Enter smelter details\",IF(ISERROR($V2419),\"\",OFFSET('Smelter Look-up'!$F$4,$V2419-4,0)))","v":""},{"$f":"IF(ISERROR($V2419),\"\",OFFSET('Smelter Look-up'!$G$4,$V2419-4,0))","v":""},{"$f":"IF(ISERROR($V2419),\"\",OFFSET('Smelter Look-up'!$H$4,$V2419-4,0))","v":""},{"$f":"IF(ISERROR($V2419),\"\",OFFSET('Smelter Look-up'!$I$4,$V2419-4,0))","v":""},{"$nulls":7},{"$f":"IF(ISERROR($V2419),\"\",OFFSET('Smelter Look-up'!$C$4,$V2419-4,0)&\"\")","v":""},"",{"$f":"IF(B2419=\"\",\"\",IF(ISERROR(MATCH($J2419,SorP!$B$1:$B$5661,0)),\"\",INDIRECT(\"'SorP'!$A$\"&MATCH($J2419,SorP!$B$1:$B$5661,0))))","v":""},null,{"$f":"IF(C2419=\"\",NA(),MATCH($B2419&$C2419,'Smelter Look-up'!$J:$J,0))","v":{"$error":"#N/A"}},null,0,null,null,null,""]
[null,{"$f":"IF(LEN(A2420)=0,\"\",INDEX('Smelter Look-up'!$A:$A,MATCH($A2420,'Smelter Look-up'!$E:$E,0)))","v":""},{"$f":"IF(LEN(A2420)=0,\"\",INDEX('Smelter Look-up'!$C:$C,MATCH($A2420,'Smelter Look-up'!$E:$E,0)))","v":""},null,{"$f":"IF(ISERROR($V2420),\"\",OFFSET('Smelter Look-up'!$D$4,$V2420-4,0)&\"\")","v":""},{"$f":"IF(ISERROR($V2420),\"\",OFFSET('Smelter Look-up'!$E$4,$V2420-4,0))","v":""},{"$f":"IF(C2420=$X$4,\"Enter smelter details\",IF(ISERROR($V2420),\"\",OFFSET('Smelter Look-up'!$F$4,$V2420-4,0)))","v":""},{"$f":"IF(ISERROR($V2420),\"\",OFFSET('Smelter Look-up'!$G$4,$V2420-4,0))","v":""},{"$f":"IF(ISERROR($V2420),\"\",OFFSET('Smelter Look-up'!$H$4,$V2420-4,0))","v":""},{"$f":"IF(ISERROR($V2420),\"\",OFFSET('Smelter Look-up'!$I$4,$V2420-4,0))","v":""},{"$nulls":7},{"$f":"IF(ISERROR($V2420),\"\",OFFSET('Smelter Look-up'!$C$4,$V2420-4,0)&\"\")","v":""},"",{"$f":"IF(B2420=\"\",\"\",IF(ISERROR(MATCH($J2420,SorP!$B$1:$B$5661,0)),\"\",INDIRECT(\"'SorP'!$A$\"&MATCH($J2420,SorP!$B$1:$B$5661,0))))","v":""},null,{"$f":"IF(C2420=\"\",NA(),MATCH($B2420&$C2420,'Smelter Look-up'!$J:$J,0))","v":{"$error":"#N/A"}},null,0,null,null,null,""]
[null,{"$f":"IF(LEN(A2421)=0,\"\",INDEX('Smelter Look-up'!$A:$A,MATCH($A2421,'Smelter Look-up'!$E:$E,0)))","v":""},{"$f":"IF(LEN(A2421)=0,\"\",INDEX('Smelter Look-up'!$C:$C,MATCH($A2421,'Smelter Look-up'!$E:$E,0)))","v":""},null,{"$f":"IF(ISERROR($V2421),\"\",OFFSET('Smelter Look-up'!$D$4,$V2421-4,0)&\"\")","v":""},{"$f":"IF(ISERROR($V2421),\"\",OFFSET('Smelter Look-up'!$E$4,$V2421-4,0))","v":""},{"$f":"IF(C2421=$X$4,\"Enter smelter details\",IF(ISERROR($V2421),\"\",OFFSET('Smelter Look-up'!$F$4,$V2421-4,0)))","v":""},{"$f":"IF(ISERROR($V2421),\"\",OFFSET('Smelter Look-up'!$G$4,$V2421-4,0))","v":""},{"$f":"IF(ISERROR($V2421),\"\",OFFSET('Smelter Look-up'!$H$4,$V2421-4,0))","v":""},{"$f":"IF(ISERROR($V2421),\"\",OFFSET('Smelter Look-up'!$I$4,$V2421-4,0))","v":""},{"$nulls":7},{"$f":"IF(ISERROR($V2421),\"\",OFFSET('Smelter Look-up'!$C$4,$V2421-4,0)&\"\")","v":""},"",{"$f":"IF(B2421=\"\",\"\",IF(ISERROR(MATCH($J2421,SorP!$B$1:$B$5661,0)),\"\",INDIRECT(\"'SorP'!$A$\"&MATCH($J2421,SorP!$B$1:$B$5661,0))))","v":""},null,{"$f":"IF(C2421=\"\",NA(),MATCH($B2421&$C2421,'Smelter Look-up'!$J:$J,0))","v":{"$error":"#N/A"}},null,0,null,null,null,""]
[null,{"$f":"IF(LEN(A2422)=0,\"\",INDEX('Smelter Look-up'!$A:$A,MATCH($A2422,'Smelter Look-up'!$E:$E,0)))","v":""},{"$f":"IF(LEN(A2422)=0,\"\",INDEX('Smelter Look-up'!$C:$C,MATCH($A2422,'Smelter Look-up'!$E:$E,0)))","v":""},null,{"$f":"IF(ISERROR($V2422),\"\",OFFSET('Smelter Look-up'!$D$4,$V2422-4,0)&\"\")","v":""},{"$f":"IF(ISERROR($V2422),\"\",OFFSET('Smelter Look-up'!$E$4,$V2422-4,0))","v":""},{"$f":"IF(C2422=$X$4,\"Enter smelter details\",IF(ISERROR($V2422),\"\",OFFSET('Smelter Look-up'!$F$4,$V2422-4,0)))","v":""},{"$f":"IF(ISERROR($V2422),\"\",OFFSET('Smelter Look-up'!$G$4,$V2422-4,0))","v":""},{"$f":"IF(ISERROR($V2422),\"\",OFFSET('Smelter Look-up'!$H$4,$V2422-4,0))","v":""},{"$f":"IF(ISERROR($V2422),\"\",OFFSET('Smelter Look-up'!$I$4,$V2422-4,0))","v":""},{"$nulls":7},{"$f":"IF(ISERROR($V2422),\"\",OFFSET('Smelter Look-up'!$C$4,$V2422-4,0)&\"\")","v":""},"",{"$f":"IF(B2422=\"\",\"\",IF(ISERROR(MATCH($J2422,SorP!$B$1:$B$5661,0)),\"\",INDIRECT(\"'SorP'!$A$\"&MATCH($J2422,SorP!$B$1:$B$5661,0))))","v":""},null,{"$f":"IF(C2422=\"\",NA(),MATCH($B2422&$C2422,'Smelter Look-up'!$J:$J,0))","v":{"$error":"#N/A"}},null,0,null,null,null,""]
[null,{"$f":"IF(LEN(A2423)=0,\"\",INDEX('Smelter Look-up'!$A:$A,MATCH($A2423,'Smelter Look-up'!$E:$E,0)))","v":""},{"$f":"IF(LEN(A2423)=0,\"\",INDEX('Smelter Look-up'!$C:$C,MATCH($A2423,'Smelter Look-up'!$E:$E,0)))","v":""},null,{"$f":"IF(ISERROR($V2423),\"\",OFFSET('Smelter Look-up'!$D$4,$V2423-4,0)&\"\")","v":""},{"$f":"IF(ISERROR($V2423),\"\",OFFSET('Smelter Look-up'!$E$4,$V2423-4,0))","v":""},{"$f":"IF(C2423=$X$4,\"Enter smelter details\",IF(ISERROR($V2423),\"\",OFFSET('Smelter Look-up'!$F$4,$V2423-4,0)))","v":""},{"$f":"IF(ISERROR($V2423),\"\",OFFSET('Smelter Look-up'!$G$4,$V2423-4,0))","v":""},{"$f":"IF(ISERROR($V2423),\"\",OFFSET('Smelter Look-up'!$H$4,$V2423-4,0))","v":""},{"$f":"IF(ISERROR($V2423),\"\",OFFSET('Smelter Look-up'!$I$4,$V2423-4,0))","v":""},{"$nulls":7},{"$f":"IF(ISERROR($V2423),\"\",OFFSET('Smelter Look-up'!$C$4,$V2423-4,0)&\"\")","v":""},"",{"$f":"IF(B2423=\"\",\"\",IF(ISERROR(MATCH($J2423,SorP!$B$1:$B$5661,0)),\"\",INDIRECT(\"'SorP'!$A$\"&MATCH($J2423,SorP!$B$1:$B$5661,0))))","v":""},null,{"$f":"IF(C2423=\"\",NA(),MATCH($B2423&$C2423,'Smelter Look-up'!$J:$J,0))","v":{"$error":"#N/A"}},null,0,null,null,null,""]
[null,{"$f":"IF(LEN(A2424)=0,\"\",INDEX('Smelter Look-up'!$A:$A,MATCH($A2424,'Smelter Look-up'!$E:$E,0)))","v":""},{"$f":"IF(LEN(A2424)=0,\"\",INDEX('Smelter Look-up'!$C:$C,MATCH($A2424,'Smelter Look-up'!$E:$E,0)))","v":""},null,{"$f":"IF(ISERROR($V2424),\"\",OFFSET('Smelter Look-up'!$D$4,$V2424-4,0)&\"\")","v":""},{"$f":"IF(ISERROR($V2424),\"\",OFFSET('Smelter Look-up'!$E$4,$V2424-4,0))","v":""},{"$f":"IF(C2424=$X$4,\"Enter smelter details\",IF(ISERROR($V2424),\"\",OFFSET('Smelter Look-up'!$F$4,$V2424-4,0)))","v":""},{"$f":"IF(ISERROR($V2424),\"\",OFFSET('Smelter Look-up'!$G$4,$V2424-4,0))","v":""},{"$f":"IF(ISERROR($V2424),\"\",OFFSET('Smelter Look-up'!$H$4,$V2424-4,0))","v":""},{"$f":"IF(ISERROR($V2424),\"\",OFFSET('Smelter Look-up'!$I$4,$V2424-4,0))","v":""},{"$nulls":7},{"$f":"IF(ISERROR($V2424),\"\",OFFSET('Smelter Look-up'!$C$4,$V2424-4,0)&\"\")","v":""},"",{"$f":"IF(B2424=\"\",\"\",IF(ISERROR(MATCH($J2424,SorP!$B$1:$B$5661,0)),\"\",INDIRECT(\"'SorP'!$A$\"&MATCH($J2424,SorP!$B$1:$B$5661,0))))","v":""},null,{"$f":"IF(C2424=\"\",NA(),MATCH($B2424&$C2424,'Smelter Look-up'!$J:$J,0))","v":{"$error":"#N/A"}},null,0,null,null,null,""]
[null,{"$f":"IF(LEN(A2425)=0,\"\",INDEX('Smelter Look-up'!$A:$A,MATCH($A2425,'Smelter Look-up'!$E:$E,0)))","v":""},{"$f":"IF(LEN(A2425)=0,\"\",INDEX('Smelter Look-up'!$C:$C,MATCH($A2425,'Smelter Look-up'!$E:$E,0)))","v":""},null,{"$f":"IF(ISERROR($V2425),\"\",OFFSET('Smelter Look-up'!$D$4,$V2425-4,0)&\"\")","v":""},{"$f":"IF(ISERROR($V2425),\"\",OFFSET('Smelter Look-up'!$E$4,$V2425-4,0))","v":""},{"$f":"IF(C2425=$X$4,\"Enter smelter details\",IF(ISERROR($V2425),\"\",OFFSET('Smelter Look-up'!$F$4,$V2425-4,0)))","v":""},{"$f":"IF(ISERROR($V2425),\"\",OFFSET('Smelter Look-up'!$G$4,$V2425-4,0))","v":""},{"$f":"IF(ISERROR($V2425),\"\",OFFSET('Smelter Look-up'!$H$4,$V2425-4,0))","v":""},{"$f":"IF(ISERROR($V2425),\"\",OFFSET('Smelter Look-up'!$I$4,$V2425-4,0))","v":""},{"$nulls":7},{"$f":"IF(ISERROR($V2425),\"\",OFFSET('Smelter Look-up'!$C$4,$V2425-4,0)&\"\")","v":""},"",{"$f":"IF(B2425=\"\",\"\",IF(ISERROR(MATCH($J2425,SorP!$B$1:$B$5661,0)),\"\",INDIRECT(\"'SorP'!$A$\"&MATCH($J2425,SorP!$B$1:$B$5661,0))))","v":""},null,{"$f":"IF(C2425=\"\",NA(),MATCH($B2425&$C2425,'Smelter Look-up'!$J:$J,0))","v":{"$error":"#N/A"}},null,0,null,null,null,""]
[null,{"$f":"IF(LEN(A2426)=0,\"\",INDEX('Smelter Look-up'!$A:$A,MATCH($A2426,'Smelter Look-up'!$E:$E,0)))","v":""},{"$f":"IF(LEN(A2426)=0,\"\",INDEX('Smelter Look-up'!$C:$C,MATCH($A2426,'Smelter Look-up'!$E:$E,0)))","v":""},null,{"$f":"IF(ISERROR($V2426),\"\",OFFSET('Smelter Look-up'!$D$4,$V2426-4,0)&\"\")","v":""},{"$f":"IF(ISERROR($V2426),\"\",OFFSET('Smelter Look-up'!$E$4,$V2426-4,0))","v":""},{"$f":"IF(C2426=$X$4,\"Enter smelter details\",IF(ISERROR($V2426),\"\",OFFSET('Smelter Look-up'!$F$4,$V2426-4,0)))","v":""},{"$f":"IF(ISERROR($V2426),\"\",OFFSET('Smelter Look-up'!$G$4,$V2426-4,0))","v":""},{"$f":"IF(ISERROR($V2426),\"\",OFFSET('Smelter Look-up'!$H$4,$V2426-4,0))","v":""},{"$f":"IF(ISERROR($V2426),\"\",OFFSET('Smelter Look-up'!$I$4,$V2426-4,0))","v":""},{"$nulls":7},{"$f":"IF(ISERROR($V2426),\"\",OFFSET('Smelter Look-up'!$C$4,$V2426-4,0)&\"\")","v":""},"",{"$f":"IF(B2426=\"\",\"\",IF(ISERROR(MATCH($J2426,SorP!$B$1:$B$5661,0)),\"\",INDIRECT(\"'SorP'!$A$\"&MATCH($J2426,SorP!$B$1:$B$5661,0))))","v":""},null,{"$f":"IF(C2426=\"\",NA(),MATCH($B2426&$C2426,'Smelter Look-up'!$J:$J,0))","v":{"$error":"#N/A"}},null,0,null,null,null,""]
[null,{"$f":"IF(LEN(A2427)=0,\"\",INDEX('Smelter Look-up'!$A:$A,MATCH($A2427,'Smelter Look-up'!$E:$E,0)))","v":""},{"$f":"IF(LEN(A2427)=0,\"\",INDEX('Smelter Look-up'!$C:$C,MATCH($A2427,'Smelter Look-up'!$E:$E,0)))","v":""},null,{"$f":"IF(ISERROR($V2427),\"\",OFFSET('Smelter Look-up'!$D$4,$V2427-4,0)&\"\")","v":""},{"$f":"IF(ISERROR($V2427),\"\",OFFSET('Smelter Look-up'!$E$4,$V2427-4,0))","v":""},{"$f":"IF(C2427=$X$4,\"Enter smelter details\",IF(ISERROR($V2427),\"\",OFFSET('Smelter Look-up'!$F$4,$V2427-4,0)))","v":""},{"$f":"IF(ISERROR($V2427),\"\",OFFSET('Smelter Look-up'!$G$4,$V2427-4,0))","v":""},{"$f":"IF(ISERROR($V2427),\"\",OFFSET('Smelter Look-up'!$H$4,$V2427-4,0))","v":""},{"$f":"IF(ISERROR($V2427),\"\",OFFSET('Smelter Look-up'!$I$4,$V2427-4,0))","v":""},{"$nulls":7},{"$f":"IF(ISERROR($V2427),\"\",OFFSET('Smelter Look-up'!$C$4,$V2427-4,0)&\"\")","v":""},"",{"$f":"IF(B2427=\"\",\"\",IF(ISERROR(MATCH($J2427,SorP!$B$1:$B$5661,0)),\"\",INDIRECT(\"'SorP'!$A$\"&MATCH($J2427,SorP!$B$1:$B$5661,0))))","v":""},null,{"$f":"IF(C2427=\"\",NA(),MATCH($B2427&$C2427,'Smelter Look-up'!$J:$J,0))","v":{"$error":"#N/A"}},null,0,null,null,null,""]
[null,{"$f":"IF(LEN(A2428)=0,\"\",INDEX('Smelter Look-up'!$A:$A,MATCH($A2428,'Smelter Look-up'!$E:$E,0)))","v":""},{"$f":"IF(LEN(A2428)=0,\"\",INDEX('Smelter Look-up'!$C:$C,MATCH($A2428,'Smelter Look-up'!$E:$E,0)))","v":""},null,{"$f":"IF(ISERROR($V2428),\"\",OFFSET('Smelter Look-up'!$D$4,$V2428-4,0)&\"\")","v":""},{"$f":"IF(ISERROR($V2428),\"\",OFFSET('Smelter Look-up'!$E$4,$V2428-4,0))","v":""},{"$f":"IF(C2428=$X$4,\"Enter smelter details\",IF(ISERROR($V2428),\"\",OFFSET('Smelter Look-up'!$F$4,$V2428-4,0)))","v":""},{"$f":"IF(ISERROR($V2428),\"\",OFFSET('Smelter Look-up'!$G$4,$V2428-4,0))","v":""},{"$f":"IF(ISERROR($V2428),\"\",OFFSET('Smelter Look-up'!$H$4,$V2428-4,0))","v":""},{"$f":"IF(ISERROR($V2428),\"\",OFFSET('Smelter Look-up'!$I$4,$V2428-4,0))","v":""},{"$nulls":7},{"$f":"IF(ISERROR($V2428),\"\",OFFSET('Smelter Look-up'!$C$4,$V2428-4,0)&\"\")","v":""},"",{"$f":"IF(B2428=\"\",\"\",IF(ISERROR(MATCH($J2428,SorP!$B$1:$B$5661,0)),\"\",INDIRECT(\"'SorP'!$A$\"&MATCH($J2428,SorP!$B$1:$B$5661,0))))","v":""},null,{"$f":"IF(C2428=\"\",NA(),MATCH($B2428&$C2428,'Smelter Look-up'!$J:$J,0))","v":{"$error":"#N/A"}},null,0,null,null,null,""]
[null,{"$f":"IF(LEN(A2429)=0,\"\",INDEX('Smelter Look-up'!$A:$A,MATCH($A2429,'Smelter Look-up'!$E:$E,0)))","v":""},{"$f":"IF(LEN(A2429)=0,\"\",INDEX('Smelter Look-up'!$C:$C,MATCH($A2429,'Smelter Look-up'!$E:$E,0)))","v":""},null,{"$f":"IF(ISERROR($V2429),\"\",OFFSET('Smelter Look-up'!$D$4,$V2429-4,0)&\"\")","v":""},{"$f":"IF(ISERROR($V2429),\"\",OFFSET('Smelter Look-up'!$E$4,$V2429-4,0))","v":""},{"$f":"IF(C2429=$X$4,\"Enter smelter details\",IF(ISERROR($V2429),\"\",OFFSET('Smelter Look-up'!$F$4,$V2429-4,0)))","v":""},{"$f":"IF(ISERROR($V2429),\"\",OFFSET('Smelter Look-up'!$G$4,$V2429-4,0))","v":""},{"$f":"IF(ISERROR($V2429),\"\",OFFSET('Smelter Look-up'!$H$4,$V2429-4,0))","v":""},{"$f":"IF(ISERROR($V2429),\"\",OFFSET('Smelter Look-up'!$I$4,$V2429-4,0))","v":""},{"$nulls":7},{"$f":"IF(ISERROR($V2429),\"\",OFFSET('Smelter Look-up'!$C$4,$V2429-4,0)&\"\")","v":""},"",{"$f":"IF(B2429=\"\",\"\",IF(ISERROR(MATCH($J2429,SorP!$B$1:$B$5661,0)),\"\",INDIRECT(\"'SorP'!$A$\"&MATCH($J2429,SorP!$B$1:$B$5661,0))))","v":""},null,{"$f":"IF(C2429=\"\",NA(),MATCH($B2429&$C2429,'Smelter Look-up'!$J:$J,0))","v":{"$error":"#N/A"}},null,0,null,null,null,""]
[null,{"$f":"IF(LEN(A2430)=0,\"\",INDEX('Smelter Look-up'!$A:$A,MATCH($A2430,'Smelter Look-up'!$E:$E,0)))","v":""},{"$f":"IF(LEN(A2430)=0,\"\",INDEX('Smelter Look-up'!$C:$C,MATCH($A2430,'Smelter Look-up'!$E:$E,0)))","v":""},null,{"$f":"IF(ISERROR($V2430),\"\",OFFSET('Smelter Look-up'!$D$4,$V2430-4,0)&\"\")","v":""},{"$f":"IF(ISERROR($V2430),\"\",OFFSET('Smelter Look-up'!$E$4,$V2430-4,0))","v":""},{"$f":"IF(C2430=$X$4,\"Enter smelter details\",IF(ISERROR($V2430),\"\",OFFSET('Smelter Look-up'!$F$4,$V2430-4,0)))","v":""},{"$f":"IF(ISERROR($V2430),\"\",OFFSET('Smelter Look-up'!$G$4,$V2430-4,0))","v":""},{"$f":"IF(ISERROR($V2430),\"\",OFFSET('Smelter Look-up'!$H$4,$V2430-4,0))","v":""},{"$f":"IF(ISERROR($V2430),\"\",OFFSET('Smelter Look-up'!$I$4,$V2430-4,0))","v":""},{"$nulls":7},{"$f":"IF(ISERROR($V2430),\"\",OFFSET('Smelter Look-up'!$C$4,$V2430-4,0)&\"\")","v":""},"",{"$f":"IF(B2430=\"\",\"\",IF(ISERROR(MATCH($J2430,SorP!$B$1:$B$5661,0)),\"\",INDIRECT(\"'SorP'!$A$\"&MATCH($J2430,SorP!$B$1:$B$5661,0))))","v":""},null,{"$f":"IF(C2430=\"\",NA(),MATCH($B2430&$C2430,'Smelter Look-up'!$J:$J,0))","v":{"$error":"#N/A"}},null,0,null,null,null,""]
[null,{"$f":"IF(LEN(A2431)=0,\"\",INDEX('Smelter Look-up'!$A:$A,MATCH($A2431,'Smelter Look-up'!$E:$E,0)))","v":""},{"$f":"IF(LEN(A2431)=0,\"\",INDEX('Smelter Look-up'!$C:$C,MATCH($A2431,'Smelter Look-up'!$E:$E,0)))","v":""},null,{"$f":"IF(ISERROR($V2431),\"\",OFFSET('Smelter Look-up'!$D$4,$V2431-4,0)&\"\")","v":""},{"$f":"IF(ISERROR($V2431),\"\",OFFSET('Smelter Look-up'!$E$4,$V2431-4,0))","v":""},{"$f":"IF(C2431=$X$4,\"Enter smelter details\",IF(ISERROR($V2431),\"\",OFFSET('Smelter Look-up'!$F$4,$V2431-4,0)))","v":""},{"$f":"IF(ISERROR($V2431),\"\",OFFSET('Smelter Look-up'!$G$4,$V2431-4,0))","v":""},{"$f":"IF(ISERROR($V2431),\"\",OFFSET('Smelter Look-up'!$H$4,$V2431-4,0))","v":""},{"$f":"IF(ISERROR($V2431),\"\",OFFSET('Smelter Look-up'!$I$4,$V2431-4,0))","v":""},{"$nulls":7},{"$f":"IF(ISERROR($V2431),\"\",OFFSET('Smelter Look-up'!$C$4,$V2431-4,0)&\"\")","v":""},"",{"$f":"IF(B2431=\"\",\"\",IF(ISERROR(MATCH($J2431,SorP!$B$1:$B$5661,0)),\"\",INDIRECT(\"'SorP'!$A$\"&MATCH($J2431,SorP!$B$1:$B$5661,0))))","v":""},null,{"$f":"IF(C2431=\"\",NA(),MATCH($B2431&$C2431,'Smelter Look-up'!$J:$J,0))","v":{"$error":"#N/A"}},null,{"$f":"IF(AND(C2431=\"Smelter not listed\",OR(LEN(D2431)=0,LEN(E2431)=0)),1,0)","v":0},null,null,null,{"$f":"B2431&C2431","v":""}]
[null,{"$f":"IF(LEN(A2432)=0,\"\",INDEX('Smelter Look-up'!$A:$A,MATCH($A2432,'Smelter Look-up'!$E:$E,0)))","v":""},{"$f":"IF(LEN(A2432)=0,\"\",INDEX('Smelter Look-up'!$C:$C,MATCH($A2432,'Smelter Look-up'!$E:$E,0)))","v":""},null,{"$f":"IF(ISERROR($V2432),\"\",OFFSET('Smelter Look-up'!$D$4,$V2432-4,0)&\"\")","v":""},{"$f":"IF(ISERROR($V2432),\"\",OFFSET('Smelter Look-up'!$E$4,$V2432-4,0))","v":""},{"$f":"IF(C2432=$X$4,\"Enter smelter details\",IF(ISERROR($V2432),\"\",OFFSET('Smelter Look-up'!$F$4,$V2432-4,0)))","v":""},{"$f":"IF(ISERROR($V2432),\"\",OFFSET('Smelter Look-up'!$G$4,$V2432-4,0))","v":""},{"$f":"IF(ISERROR($V2432),\"\",OFFSET('Smelter Look-up'!$H$4,$V2432-4,0))","v":""},{"$f":"IF(ISERROR($V2432),\"\",OFFSET('Smelter Look-up'!$I$4,$V2432-4,0))","v":""},{"$nulls":7},{"$f":"IF(ISERROR($V2432),\"\",OFFSET('Smelter Look-up'!$C$4,$V2432-4,0)&\"\")","v":""},{"$f":"IF(B2432=\"\",\"\",IF(ISERROR(MATCH($E2432,CL,0)),\"Unknown\",INDIRECT(\"'C'!$A$\"&MATCH($E2432,CL,0)+1)))","v":""},{"$f":"IF(B2432=\"\",\"\",IF(ISERROR(MATCH($J2432,SorP!$B$1:$B$5661,0)),\"\",INDIRECT(\"'SorP'!$A$\"&MATCH($J2432,SorP!$B$1:$B$5661,0))))","v":""},null,{"$f":"IF(C2432=\"\",NA(),MATCH($B2432&$C2432,'Smelter Look-up'!$J:$J,0))","v":{"$error":"#N/A"}},null,0,null,null,null,""]
[null,{"$f":"IF(LEN(A2433)=0,\"\",INDEX('Smelter Look-up'!$A:$A,MATCH($A2433,'Smelter Look-up'!$E:$E,0)))","v":""},{"$f":"IF(LEN(A2433)=0,\"\",INDEX('Smelter Look-up'!$C:$C,MATCH($A2433,'Smelter Look-up'!$E:$E,0)))","v":""},null,{"$f":"IF(ISERROR($V2433),\"\",OFFSET('Smelter Look-up'!$D$4,$V2433-4,0)&\"\")","v":""},{"$f":"IF(ISERROR($V2433),\"\",OFFSET('Smelter Look-up'!$E$4,$V2433-4,0))","v":""},{"$f":"IF(C2433=$X$4,\"Enter smelter details\",IF(ISERROR($V2433),\"\",OFFSET('Smelter Look-up'!$F$4,$V2433-4,0)))","v":""},{"$f":"IF(ISERROR($V2433),\"\",OFFSET('Smelter Look-up'!$G$4,$V2433-4,0))","v":""},{"$f":"IF(ISERROR($V2433),\"\",OFFSET('Smelter Look-up'!$H$4,$V2433-4,0))","v":""},{"$f":"IF(ISERROR($V2433),\"\",OFFSET('Smelter Look-up'!$I$4,$V2433-4,0))","v":""},{"$nulls":7},{"$f":"IF(ISERROR($V2433),\"\",OFFSET('Smelter Look-up'!$C$4,$V2433-4,0)&\"\")","v":""},"",{"$f":"IF(B2433=\"\",\"\",IF(ISERROR(MATCH($J2433,SorP!$B$1:$B$5661,0)),\"\",INDIRECT(\"'SorP'!$A$\"&MATCH($J2433,SorP!$B$1:$B$5661,0))))","v":""},null,{"$f":"IF(C2433=\"\",NA(),MATCH($B2433&$C2433,'Smelter Look-up'!$J:$J,0))","v":{"$error":"#N/A"}},null,0,null,null,null,""]
[null,{"$f":"IF(LEN(A2434)=0,\"\",INDEX('Smelter Look-up'!$A:$A,MATCH($A2434,'Smelter Look-up'!$E:$E,0)))","v":""},{"$f":"IF(LEN(A2434)=0,\"\",INDEX('Smelter Look-up'!$C:$C,MATCH($A2434,'Smelter Look-up'!$E:$E,0)))","v":""},null,{"$f":"IF(ISERROR($V2434),\"\",OFFSET('Smelter Look-up'!$D$4,$V2434-4,0)&\"\")","v":""},{"$f":"IF(ISERROR($V2434),\"\",OFFSET('Smelter Look-up'!$E$4,$V2434-4,0))","v":""},{"$f":"IF(C2434=$X$4,\"Enter smelter details\",IF(ISERROR($V2434),\"\",OFFSET('Smelter Look-up'!$F$4,$V2434-4,0)))","v":""},{"$f":"IF(ISERROR($V2434),\"\",OFFSET('Smelter Look-up'!$G$4,$V2434-4,0))","v":""},{"$f":"IF(ISERROR($V2434),\"\",OFFSET('Smelter Look-up'!$H$4,$V2434-4,0))","v":""},{"$f":"IF(ISERROR($V2434),\"\",OFFSET('Smelter Look-up'!$I$4,$V2434-4,0))","v":""},{"$nulls":7},{"$f":"IF(ISERROR($V2434),\"\",OFFSET('Smelter Look-up'!$C$4,$V2434-4,0)&\"\")","v":""},"",{"$f":"IF(B2434=\"\",\"\",IF(ISERROR(MATCH($J2434,SorP!$B$1:$B$5661,0)),\"\",INDIRECT(\"'SorP'!$A$\"&MATCH($J2434,SorP!$B$1:$B$5661,0))))","v":""},null,{"$f":"IF(C2434=\"\",NA(),MATCH($B2434&$C2434,'Smelter Look-up'!$J:$J,0))","v":{"$error":"#N/A"}},null,0,null,null,null,""]
[null,{"$f":"IF(LEN(A2435)=0,\"\",INDEX('Smelter Look-up'!$A:$A,MATCH($A2435,'Smelter Look-up'!$E:$E,0)))","v":""},{"$f":"IF(LEN(A2435)=0,\"\",INDEX('Smelter Look-up'!$C:$C,MATCH($A2435,'Smelter Look-up'!$E:$E,0)))","v":""},null,{"$f":"IF(ISERROR($V2435),\"\",OFFSET('Smelter Look-up'!$D$4,$V2435-4,0)&\"\")","v":""},{"$f":"IF(ISERROR($V2435),\"\",OFFSET('Smelter Look-up'!$E$4,$V2435-4,0))","v":""},{"$f":"IF(C2435=$X$4,\"Enter smelter details\",IF(ISERROR($V2435),\"\",OFFSET('Smelter Look-up'!$F$4,$V2435-4,0)))","v":""},{"$f":"IF(ISERROR($V2435),\"\",OFFSET('Smelter Look-up'!$G$4,$V2435-4,0))","v":""},{"$f":"IF(ISERROR($V2435),\"\",OFFSET('Smelter Look-up'!$H$4,$V2435-4,0))","v":""},{"$f":"IF(ISERROR($V2435),\"\",OFFSET('Smelter Look-up'!$I$4,$V2435-4,0))","v":""},{"$nulls":7},{"$f":"IF(ISERROR($V2435),\"\",OFFSET('Smelter Look-up'!$C$4,$V2435-4,0)&\"\")","v":""},"",{"$f":"IF(B2435=\"\",\"\",IF(ISERROR(MATCH($J2435,SorP!$B$1:$B$5661,0)),\"\",INDIRECT(\"'SorP'!$A$\"&MATCH($J2435,SorP!$B$1:$B$5661,0))))","v":""},null,{"$f":"IF(C2435=\"\",NA(),MATCH($B2435&$C2435,'Smelter Look-up'!$J:$J,0))","v":{"$error":"#N/A"}},null,0,null,null,null,""]
[null,{"$f":"IF(LEN(A2436)=0,\"\",INDEX('Smelter Look-up'!$A:$A,MATCH($A2436,'Smelter Look-up'!$E:$E,0)))","v":""},{"$f":"IF(LEN(A2436)=0,\"\",INDEX('Smelter Look-up'!$C:$C,MATCH($A2436,'Smelter Look-up'!$E:$E,0)))","v":""},null,{"$f":"IF(ISERROR($V2436),\"\",OFFSET('Smelter Look-up'!$D$4,$V2436-4,0)&\"\")","v":""},{"$f":"IF(ISERROR($V2436),\"\",OFFSET('Smelter Look-up'!$E$4,$V2436-4,0))","v":""},{"$f":"IF(C2436=$X$4,\"Enter smelter details\",IF(ISERROR($V2436),\"\",OFFSET('Smelter Look-up'!$F$4,$V2436-4,0)))","v":""},{"$f":"IF(ISERROR($V2436),\"\",OFFSET('Smelter Look-up'!$G$4,$V2436-4,0))","v":""},{"$f":"IF(ISERROR($V2436),\"\",OFFSET('Smelter Look-up'!$H$4,$V2436-4,0))","v":""},{"$f":"IF(ISERROR($V2436),\"\",OFFSET('Smelter Look-up'!$I$4,$V2436-4,0))","v":""},{"$nulls":7},{"$f":"IF(ISERROR($V2436),\"\",OFFSET('Smelter Look-up'!$C$4,$V2436-4,0)&\"\")","v":""},"",{"$f":"IF(B2436=\"\",\"\",IF(ISERROR(MATCH($J2436,SorP!$B$1:$B$5661,0)),\"\",INDIRECT(\"'SorP'!$A$\"&MATCH($J2436,SorP!$B$1:$B$5661,0))))","v":""},null,{"$f":"IF(C2436=\"\",NA(),MATCH($B2436&$C2436,'Smelter Look-up'!$J:$J,0))","v":{"$error":"#N/A"}},null,0,null,null,null,""]
[null,{"$f":"IF(LEN(A2437)=0,\"\",INDEX('Smelter Look-up'!$A:$A,MATCH($A2437,'Smelter Look-up'!$E:$E,0)))","v":""},{"$f":"IF(LEN(A2437)=0,\"\",INDEX('Smelter Look-up'!$C:$C,MATCH($A2437,'Smelter Look-up'!$E:$E,0)))","v":""},null,{"$f":"IF(ISERROR($V2437),\"\",OFFSET('Smelter Look-up'!$D$4,$V2437-4,0)&\"\")","v":""},{"$f":"IF(ISERROR($V2437),\"\",OFFSET('Smelter Look-up'!$E$4,$V2437-4,0))","v":""},{"$f":"IF(C2437=$X$4,\"Enter smelter details\",IF(ISERROR($V2437),\"\",OFFSET('Smelter Look-up'!$F$4,$V2437-4,0)))","v":""},{"$f":"IF(ISERROR($V2437),\"\",OFFSET('Smelter Look-up'!$G$4,$V2437-4,0))","v":""},{"$f":"IF(ISERROR($V2437),\"\",OFFSET('Smelter Look-up'!$H$4,$V2437-4,0))","v":""},{"$f":"IF(ISERROR($V2437),\"\",OFFSET('Smelter Look-up'!$I$4,$V2437-4,0))","v":""},{"$nulls":7},{"$f":"IF(ISERROR($V2437),\"\",OFFSET('Smelter Look-up'!$C$4,$V2437-4,0)&\"\")","v":""},"",{"$f":"IF(B2437=\"\",\"\",IF(ISERROR(MATCH($J2437,SorP!$B$1:$B$5661,0)),\"\",INDIRECT(\"'SorP'!$A$\"&MATCH($J2437,SorP!$B$1:$B$5661,0))))","v":""},null,{"$f":"IF(C2437=\"\",NA(),MATCH($B2437&$C2437,'Smelter Look-up'!$J:$J,0))","v":{"$error":"#N/A"}},null,0,null,null,null,""]
[null,{"$f":"IF(LEN(A2438)=0,\"\",INDEX('Smelter Look-up'!$A:$A,MATCH($A2438,'Smelter Look-up'!$E:$E,0)))","v":""},{"$f":"IF(LEN(A2438)=0,\"\",INDEX('Smelter Look-up'!$C:$C,MATCH($A2438,'Smelter Look-up'!$E:$E,0)))","v":""},null,{"$f":"IF(ISERROR($V2438),\"\",OFFSET('Smelter Look-up'!$D$4,$V2438-4,0)&\"\")","v":""},{"$f":"IF(ISERROR($V2438),\"\",OFFSET('Smelter Look-up'!$E$4,$V2438-4,0))","v":""},{"$f":"IF(C2438=$X$4,\"Enter smelter details\",IF(ISERROR($V2438),\"\",OFFSET('Smelter Look-up'!$F$4,$V2438-4,0)))","v":""},{"$f":"IF(ISERROR($V2438),\"\",OFFSET('Smelter Look-up'!$G$4,$V2438-4,0))","v":""},{"$f":"IF(ISERROR($V2438),\"\",OFFSET('Smelter Look-up'!$H$4,$V2438-4,0))","v":""},{"$f":"IF(ISERROR($V2438),\"\",OFFSET('Smelter Look-up'!$I$4,$V2438-4,0))","v":""},{"$nulls":7},{"$f":"IF(ISERROR($V2438),\"\",OFFSET('Smelter Look-up'!$C$4,$V2438-4,0)&\"\")","v":""},"",{"$f":"IF(B2438=\"\",\"\",IF(ISERROR(MATCH($J2438,SorP!$B$1:$B$5661,0)),\"\",INDIRECT(\"'SorP'!$A$\"&MATCH($J2438,SorP!$B$1:$B$5661,0))))","v":""},null,{"$f":"IF(C2438=\"\",NA(),MATCH($B2438&$C2438,'Smelter Look-up'!$J:$J,0))","v":{"$error":"#N/A"}},null,0,null,null,null,""]
[null,{"$f":"IF(LEN(A2439)=0,\"\",INDEX('Smelter Look-up'!$A:$A,MATCH($A2439,'Smelter Look-up'!$E:$E,0)))","v":""},{"$f":"IF(LEN(A2439)=0,\"\",INDEX('Smelter Look-up'!$C:$C,MATCH($A2439,'Smelter Look-up'!$E:$E,0)))","v":""},null,{"$f":"IF(ISERROR($V2439),\"\",OFFSET('Smelter Look-up'!$D$4,$V2439-4,0)&\"\")","v":""},{"$f":"IF(ISERROR($V2439),\"\",OFFSET('Smelter Look-up'!$E$4,$V2439-4,0))","v":""},{"$f":"IF(C2439=$X$4,\"Enter smelter details\",IF(ISERROR($V2439),\"\",OFFSET('Smelter Look-up'!$F$4,$V2439-4,0)))","v":""},{"$f":"IF(ISERROR($V2439),\"\",OFFSET('Smelter Look-up'!$G$4,$V2439-4,0))","v":""},{"$f":"IF(ISERROR($V2439),\"\",OFFSET('Smelter Look-up'!$H$4,$V2439-4,0))","v":""},{"$f":"IF(ISERROR($V2439),\"\",OFFSET('Smelter Look-up'!$I$4,$V2439-4,0))","v":""},{"$nulls":7},{"$f":"IF(ISERROR($V2439),\"\",OFFSET('Smelter Look-up'!$C$4,$V2439-4,0)&\"\")","v":""},"",{"$f":"IF(B2439=\"\",\"\",IF(ISERROR(MATCH($J2439,SorP!$B$1:$B$5661,0)),\"\",INDIRECT(\"'SorP'!$A$\"&MATCH($J2439,SorP!$B$1:$B$5661,0))))","v":""},null,{"$f":"IF(C2439=\"\",NA(),MATCH($B2439&$C2439,'Smelter Look-up'!$J:$J,0))","v":{"$error":"#N/A"}},null,0,null,null,null,""]
[null,{"$f":"IF(LEN(A2440)=0,\"\",INDEX('Smelter Look-up'!$A:$A,MATCH($A2440,'Smelter Look-up'!$E:$E,0)))","v":""},{"$f":"IF(LEN(A2440)=0,\"\",INDEX('Smelter Look-up'!$C:$C,MATCH($A2440,'Smelter Look-up'!$E:$E,0)))","v":""},null,{"$f":"IF(ISERROR($V2440),\"\",OFFSET('Smelter Look-up'!$D$4,$V2440-4,0)&\"\")","v":""},{"$f":"IF(ISERROR($V2440),\"\",OFFSET('Smelter Look-up'!$E$4,$V2440-4,0))","v":""},{"$f":"IF(C2440=$X$4,\"Enter smelter details\",IF(ISERROR($V2440),\"\",OFFSET('Smelter Look-up'!$F$4,$V2440-4,0)))","v":""},{"$f":"IF(ISERROR($V2440),\"\",OFFSET('Smelter Look-up'!$G$4,$V2440-4,0))","v":""},{"$f":"IF(ISERROR($V2440),\"\",OFFSET('Smelter Look-up'!$H$4,$V2440-4,0))","v":""},{"$f":"IF(ISERROR($V2440),\"\",OFFSET('Smelter Look-up'!$I$4,$V2440-4,0))","v":""},{"$nulls":7},{"$f":"IF(ISERROR($V2440),\"\",OFFSET('Smelter Look-up'!$C$4,$V2440-4,0)&\"\")","v":""},"",{"$f":"IF(B2440=\"\",\"\",IF(ISERROR(MATCH($J2440,SorP!$B$1:$B$5661,0)),\"\",INDIRECT(\"'SorP'!$A$\"&MATCH($J2440,SorP!$B$1:$B$5661,0))))","v":""},null,{"$f":"IF(C2440=\"\",NA(),MATCH($B2440&$C2440,'Smelter Look-up'!$J:$J,0))","v":{"$error":"#N/A"}},null,0,null,null,null,""]
[null,{"$f":"IF(LEN(A2441)=0,\"\",INDEX('Smelter Look-up'!$A:$A,MATCH($A2441,'Smelter Look-up'!$E:$E,0)))","v":""},{"$f":"IF(LEN(A2441)=0,\"\",INDEX('Smelter Look-up'!$C:$C,MATCH($A2441,'Smelter Look-up'!$E:$E,0)))","v":""},null,{"$f":"IF(ISERROR($V2441),\"\",OFFSET('Smelter Look-up'!$D$4,$V2441-4,0)&\"\")","v":""},{"$f":"IF(ISERROR($V2441),\"\",OFFSET('Smelter Look-up'!$E$4,$V2441-4,0))","v":""},{"$f":"IF(C2441=$X$4,\"Enter smelter details\",IF(ISERROR($V2441),\"\",OFFSET('Smelter Look-up'!$F$4,$V2441-4,0)))","v":""},{"$f":"IF(ISERROR($V2441),\"\",OFFSET('Smelter Look-up'!$G$4,$V2441-4,0))","v":""},{"$f":"IF(ISERROR($V2441),\"\",OFFSET('Smelter Look-up'!$H$4,$V2441-4,0))","v":""},{"$f":"IF(ISERROR($V2441),\"\",OFFSET('Smelter Look-up'!$I$4,$V2441-4,0))","v":""},{"$nulls":7},{"$f":"IF(ISERROR($V2441),\"\",OFFSET('Smelter Look-up'!$C$4,$V2441-4,0)&\"\")","v":""},"",{"$f":"IF(B2441=\"\",\"\",IF(ISERROR(MATCH($J2441,SorP!$B$1:$B$5661,0)),\"\",INDIRECT(\"'SorP'!$A$\"&MATCH($J2441,SorP!$B$1:$B$5661,0))))","v":""},null,{"$f":"IF(C2441=\"\",NA(),MATCH($B2441&$C2441,'Smelter Look-up'!$J:$J,0))","v":{"$error":"#N/A"}},null,0,null,null,null,""]
[null,{"$f":"IF(LEN(A2442)=0,\"\",INDEX('Smelter Look-up'!$A:$A,MATCH($A2442,'Smelter Look-up'!$E:$E,0)))","v":""},{"$f":"IF(LEN(A2442)=0,\"\",INDEX('Smelter Look-up'!$C:$C,MATCH($A2442,'Smelter Look-up'!$E:$E,0)))","v":""},null,{"$f":"IF(ISERROR($V2442),\"\",OFFSET('Smelter Look-up'!$D$4,$V2442-4,0)&\"\")","v":""},{"$f":"IF(ISERROR($V2442),\"\",OFFSET('Smelter Look-up'!$E$4,$V2442-4,0))","v":""},{"$f":"IF(C2442=$X$4,\"Enter smelter details\",IF(ISERROR($V2442),\"\",OFFSET('Smelter Look-up'!$F$4,$V2442-4,0)))","v":""},{"$f":"IF(ISERROR($V2442),\"\",OFFSET('Smelter Look-up'!$G$4,$V2442-4,0))","v":""},{"$f":"IF(ISERROR($V2442),\"\",OFFSET('Smelter Look-up'!$H$4,$V2442-4,0))","v":""},{"$f":"IF(ISERROR($V2442),\"\",OFFSET('Smelter Look-up'!$I$4,$V2442-4,0))","v":""},{"$nulls":7},{"$f":"IF(ISERROR($V2442),\"\",OFFSET('Smelter Look-up'!$C$4,$V2442-4,0)&\"\")","v":""},"",{"$f":"IF(B2442=\"\",\"\",IF(ISERROR(MATCH($J2442,SorP!$B$1:$B$5661,0)),\"\",INDIRECT(\"'SorP'!$A$\"&MATCH($J2442,SorP!$B$1:$B$5661,0))))","v":""},null,{"$f":"IF(C2442=\"\",NA(),MATCH($B2442&$C2442,'Smelter Look-up'!$J:$J,0))","v":{"$error":"#N/A"}},null,0,null,null,null,""]
[null,{"$f":"IF(LEN(A2443)=0,\"\",INDEX('Smelter Look-up'!$A:$A,MATCH($A2443,'Smelter Look-up'!$E:$E,0)))","v":""},{"$f":"IF(LEN(A2443)=0,\"\",INDEX('Smelter Look-up'!$C:$C,MATCH($A2443,'Smelter Look-up'!$E:$E,0)))","v":""},null,{"$f":"IF(ISERROR($V2443),\"\",OFFSET('Smelter Look-up'!$D$4,$V2443-4,0)&\"\")","v":""},{"$f":"IF(ISERROR($V2443),\"\",OFFSET('Smelter Look-up'!$E$4,$V2443-4,0))","v":""},{"$f":"IF(C2443=$X$4,\"Enter smelter details\",IF(ISERROR($V2443),\"\",OFFSET('Smelter Look-up'!$F$4,$V2443-4,0)))","v":""},{"$f":"IF(ISERROR($V2443),\"\",OFFSET('Smelter Look-up'!$G$4,$V2443-4,0))","v":""},{"$f":"IF(ISERROR($V2443),\"\",OFFSET('Smelter Look-up'!$H$4,$V2443-4,0))","v":""},{"$f":"IF(ISERROR($V2443),\"\",OFFSET('Smelter Look-up'!$I$4,$V2443-4,0))","v":""},{"$nulls":7},{"$f":"IF(ISERROR($V2443),\"\",OFFSET('Smelter Look-up'!$C$4,$V2443-4,0)&\"\")","v":""},"",{"$f":"IF(B2443=\"\",\"\",IF(ISERROR(MATCH($J2443,SorP!$B$1:$B$5661,0)),\"\",INDIRECT(\"'SorP'!$A$\"&MATCH($J2443,SorP!$B$1:$B$5661,0))))","v":""},null,{"$f":"IF(C2443=\"\",NA(),MATCH($B2443&$C2443,'Smelter Look-up'!$J:$J,0))","v":{"$error":"#N/A"}},null,0,null,null,null,""]
[null,{"$f":"IF(LEN(A2444)=0,\"\",INDEX('Smelter Look-up'!$A:$A,MATCH($A2444,'Smelter Look-up'!$E:$E,0)))","v":""},{"$f":"IF(LEN(A2444)=0,\"\",INDEX('Smelter Look-up'!$C:$C,MATCH($A2444,'Smelter Look-up'!$E:$E,0)))","v":""},null,{"$f":"IF(ISERROR($V2444),\"\",OFFSET('Smelter Look-up'!$D$4,$V2444-4,0)&\"\")","v":""},{"$f":"IF(ISERROR($V2444),\"\",OFFSET('Smelter Look-up'!$E$4,$V2444-4,0))","v":""},{"$f":"IF(C2444=$X$4,\"Enter smelter details\",IF(ISERROR($V2444),\"\",OFFSET('Smelter Look-up'!$F$4,$V2444-4,0)))","v":""},{"$f":"IF(ISERROR($V2444),\"\",OFFSET('Smelter Look-up'!$G$4,$V2444-4,0))","v":""},{"$f":"IF(ISERROR($V2444),\"\",OFFSET('Smelter Look-up'!$H$4,$V2444-4,0))","v":""},{"$f":"IF(ISERROR($V2444),\"\",OFFSET('Smelter Look-up'!$I$4,$V2444-4,0))","v":""},{"$nulls":7},{"$f":"IF(ISERROR($V2444),\"\",OFFSET('Smelter Look-up'!$C$4,$V2444-4,0)&\"\")","v":""},"",{"$f":"IF(B2444=\"\",\"\",IF(ISERROR(MATCH($J2444,SorP!$B$1:$B$5661,0)),\"\",INDIRECT(\"'SorP'!$A$\"&MATCH($J2444,SorP!$B$1:$B$5661,0))))","v":""},null,{"$f":"IF(C2444=\"\",NA(),MATCH($B2444&$C2444,'Smelter Look-up'!$J:$J,0))","v":{"$error":"#N/A"}},null,0,null,null,null,""]
[null,{"$f":"IF(LEN(A2445)=0,\"\",INDEX('Smelter Look-up'!$A:$A,MATCH($A2445,'Smelter Look-up'!$E:$E,0)))","v":""},{"$f":"IF(LEN(A2445)=0,\"\",INDEX('Smelter Look-up'!$C:$C,MATCH($A2445,'Smelter Look-up'!$E:$E,0)))","v":""},null,{"$f":"IF(ISERROR($V2445),\"\",OFFSET('Smelter Look-up'!$D$4,$V2445-4,0)&\"\")","v":""},{"$f":"IF(ISERROR($V2445),\"\",OFFSET('Smelter Look-up'!$E$4,$V2445-4,0))","v":""},{"$f":"IF(C2445=$X$4,\"Enter smelter details\",IF(ISERROR($V2445),\"\",OFFSET('Smelter Look-up'!$F$4,$V2445-4,0)))","v":""},{"$f":"IF(ISERROR($V2445),\"\",OFFSET('Smelter Look-up'!$G$4,$V2445-4,0))","v":""},{"$f":"IF(ISERROR($V2445),\"\",OFFSET('Smelter Look-up'!$H$4,$V2445-4,0))","v":""},{"$f":"IF(ISERROR($V2445),\"\",OFFSET('Smelter Look-up'!$I$4,$V2445-4,0))","v":""},{"$nulls":7},{"$f":"IF(ISERROR($V2445),\"\",OFFSET('Smelter Look-up'!$C$4,$V2445-4,0)&\"\")","v":""},"",{"$f":"IF(B2445=\"\",\"\",IF(ISERROR(MATCH($J2445,SorP!$B$1:$B$5661,0)),\"\",INDIRECT(\"'SorP'!$A$\"&MATCH($J2445,SorP!$B$1:$B$5661,0))))","v":""},null,{"$f":"IF(C2445=\"\",NA(),MATCH($B2445&$C2445,'Smelter Look-up'!$J:$J,0))","v":{"$error":"#N/A"}},null,0,null,null,null,""]
[null,{"$f":"IF(LEN(A2446)=0,\"\",INDEX('Smelter Look-up'!$A:$A,MATCH($A2446,'Smelter Look-up'!$E:$E,0)))","v":""},{"$f":"IF(LEN(A2446)=0,\"\",INDEX('Smelter Look-up'!$C:$C,MATCH($A2446,'Smelter Look-up'!$E:$E,0)))","v":""},null,{"$f":"IF(ISERROR($V2446),\"\",OFFSET('Smelter Look-up'!$D$4,$V2446-4,0)&\"\")","v":""},{"$f":"IF(ISERROR($V2446),\"\",OFFSET('Smelter Look-up'!$E$4,$V2446-4,0))","v":""},{"$f":"IF(C2446=$X$4,\"Enter smelter details\",IF(ISERROR($V2446),\"\",OFFSET('Smelter Look-up'!$F$4,$V2446-4,0)))","v":""},{"$f":"IF(ISERROR($V2446),\"\",OFFSET('Smelter Look-up'!$G$4,$V2446-4,0))","v":""},{"$f":"IF(ISERROR($V2446),\"\",OFFSET('Smelter Look-up'!$H$4,$V2446-4,0))","v":""},{"$f":"IF(ISERROR($V2446),\"\",OFFSET('Smelter Look-up'!$I$4,$V2446-4,0))","v":""},{"$nulls":7},{"$f":"IF(ISERROR($V2446),\"\",OFFSET('Smelter Look-up'!$C$4,$V2446-4,0)&\"\")","v":""},"",{"$f":"IF(B2446=\"\",\"\",IF(ISERROR(MATCH($J2446,SorP!$B$1:$B$5661,0)),\"\",INDIRECT(\"'SorP'!$A$\"&MATCH($J2446,SorP!$B$1:$B$5661,0))))","v":""},null,{"$f":"IF(C2446=\"\",NA(),MATCH($B2446&$C2446,'Smelter Look-up'!$J:$J,0))","v":{"$error":"#N/A"}},null,0,null,null,null,""]
[null,{"$f":"IF(LEN(A2447)=0,\"\",INDEX('Smelter Look-up'!$A:$A,MATCH($A2447,'Smelter Look-up'!$E:$E,0)))","v":""},{"$f":"IF(LEN(A2447)=0,\"\",INDEX('Smelter Look-up'!$C:$C,MATCH($A2447,'Smelter Look-up'!$E:$E,0)))","v":""},null,{"$f":"IF(ISERROR($V2447),\"\",OFFSET('Smelter Look-up'!$D$4,$V2447-4,0)&\"\")","v":""},{"$f":"IF(ISERROR($V2447),\"\",OFFSET('Smelter Look-up'!$E$4,$V2447-4,0))","v":""},{"$f":"IF(C2447=$X$4,\"Enter smelter details\",IF(ISERROR($V2447),\"\",OFFSET('Smelter Look-up'!$F$4,$V2447-4,0)))","v":""},{"$f":"IF(ISERROR($V2447),\"\",OFFSET('Smelter Look-up'!$G$4,$V2447-4,0))","v":""},{"$f":"IF(ISERROR($V2447),\"\",OFFSET('Smelter Look-up'!$H$4,$V2447-4,0))","v":""},{"$f":"IF(ISERROR($V2447),\"\",OFFSET('Smelter Look-up'!$I$4,$V2447-4,0))","v":""},{"$nulls":7},{"$f":"IF(ISERROR($V2447),\"\",OFFSET('Smelter Look-up'!$C$4,$V2447-4,0)&\"\")","v":""},"",{"$f":"IF(B2447=\"\",\"\",IF(ISERROR(MATCH($J2447,SorP!$B$1:$B$5661,0)),\"\",INDIRECT(\"'SorP'!$A$\"&MATCH($J2447,SorP!$B$1:$B$5661,0))))","v":""},null,{"$f":"IF(C2447=\"\",NA(),MATCH($B2447&$C2447,'Smelter Look-up'!$J:$J,0))","v":{"$error":"#N/A"}},null,0,null,null,null,""]
[null,{"$f":"IF(LEN(A2448)=0,\"\",INDEX('Smelter Look-up'!$A:$A,MATCH($A2448,'Smelter Look-up'!$E:$E,0)))","v":""},{"$f":"IF(LEN(A2448)=0,\"\",INDEX('Smelter Look-up'!$C:$C,MATCH($A2448,'Smelter Look-up'!$E:$E,0)))","v":""},null,{"$f":"IF(ISERROR($V2448),\"\",OFFSET('Smelter Look-up'!$D$4,$V2448-4,0)&\"\")","v":""},{"$f":"IF(ISERROR($V2448),\"\",OFFSET('Smelter Look-up'!$E$4,$V2448-4,0))","v":""},{"$f":"IF(C2448=$X$4,\"Enter smelter details\",IF(ISERROR($V2448),\"\",OFFSET('Smelter Look-up'!$F$4,$V2448-4,0)))","v":""},{"$f":"IF(ISERROR($V2448),\"\",OFFSET('Smelter Look-up'!$G$4,$V2448-4,0))","v":""},{"$f":"IF(ISERROR($V2448),\"\",OFFSET('Smelter Look-up'!$H$4,$V2448-4,0))","v":""},{"$f":"IF(ISERROR($V2448),\"\",OFFSET('Smelter Look-up'!$I$4,$V2448-4,0))","v":""},{"$nulls":7},{"$f":"IF(ISERROR($V2448),\"\",OFFSET('Smelter Look-up'!$C$4,$V2448-4,0)&\"\")","v":""},"",{"$f":"IF(B2448=\"\",\"\",IF(ISERROR(MATCH($J2448,SorP!$B$1:$B$5661,0)),\"\",INDIRECT(\"'SorP'!$A$\"&MATCH($J2448,SorP!$B$1:$B$5661,0))))","v":""},null,{"$f":"IF(C2448=\"\",NA(),MATCH($B2448&$C2448,'Smelter Look-up'!$J:$J,0))","v":{"$error":"#N/A"}},null,0,null,null,null,""]
[null,{"$f":"IF(LEN(A2449)=0,\"\",INDEX('Smelter Look-up'!$A:$A,MATCH($A2449,'Smelter Look-up'!$E:$E,0)))","v":""},{"$f":"IF(LEN(A2449)=0,\"\",INDEX('Smelter Look-up'!$C:$C,MATCH($A2449,'Smelter Look-up'!$E:$E,0)))","v":""},null,{"$f":"IF(ISERROR($V2449),\"\",OFFSET('Smelter Look-up'!$D$4,$V2449-4,0)&\"\")","v":""},{"$f":"IF(ISERROR($V2449),\"\",OFFSET('Smelter Look-up'!$E$4,$V2449-4,0))","v":""},{"$f":"IF(C2449=$X$4,\"Enter smelter details\",IF(ISERROR($V2449),\"\",OFFSET('Smelter Look-up'!$F$4,$V2449-4,0)))","v":""},{"$f":"IF(ISERROR($V2449),\"\",OFFSET('Smelter Look-up'!$G$4,$V2449-4,0))","v":""},{"$f":"IF(ISERROR($V2449),\"\",OFFSET('Smelter Look-up'!$H$4,$V2449-4,0))","v":""},{"$f":"IF(ISERROR($V2449),\"\",OFFSET('Smelter Look-up'!$I$4,$V2449-4,0))","v":""},{"$nulls":7},{"$f":"IF(ISERROR($V2449),\"\",OFFSET('Smelter Look-up'!$C$4,$V2449-4,0)&\"\")","v":""},"",{"$f":"IF(B2449=\"\",\"\",IF(ISERROR(MATCH($J2449,SorP!$B$1:$B$5661,0)),\"\",INDIRECT(\"'SorP'!$A$\"&MATCH($J2449,SorP!$B$1:$B$5661,0))))","v":""},null,{"$f":"IF(C2449=\"\",NA(),MATCH($B2449&$C2449,'Smelter Look-up'!$J:$J,0))","v":{"$error":"#N/A"}},null,0,null,null,null,""]
[null,{"$f":"IF(LEN(A2450)=0,\"\",INDEX('Smelter Look-up'!$A:$A,MATCH($A2450,'Smelter Look-up'!$E:$E,0)))","v":""},{"$f":"IF(LEN(A2450)=0,\"\",INDEX('Smelter Look-up'!$C:$C,MATCH($A2450,'Smelter Look-up'!$E:$E,0)))","v":""},null,{"$f":"IF(ISERROR($V2450),\"\",OFFSET('Smelter Look-up'!$D$4,$V2450-4,0)&\"\")","v":""},{"$f":"IF(ISERROR($V2450),\"\",OFFSET('Smelter Look-up'!$E$4,$V2450-4,0))","v":""},{"$f":"IF(C2450=$X$4,\"Enter smelter details\",IF(ISERROR($V2450),\"\",OFFSET('Smelter Look-up'!$F$4,$V2450-4,0)))","v":""},{"$f":"IF(ISERROR($V2450),\"\",OFFSET('Smelter Look-up'!$G$4,$V2450-4,0))","v":""},{"$f":"IF(ISERROR($V2450),\"\",OFFSET('Smelter Look-up'!$H$4,$V2450-4,0))","v":""},{"$f":"IF(ISERROR($V2450),\"\",OFFSET('Smelter Look-up'!$I$4,$V2450-4,0))","v":""},{"$nulls":7},{"$f":"IF(ISERROR($V2450),\"\",OFFSET('Smelter Look-up'!$C$4,$V2450-4,0)&\"\")","v":""},"",{"$f":"IF(B2450=\"\",\"\",IF(ISERROR(MATCH($J2450,SorP!$B$1:$B$5661,0)),\"\",INDIRECT(\"'SorP'!$A$\"&MATCH($J2450,SorP!$B$1:$B$5661,0))))","v":""},null,{"$f":"IF(C2450=\"\",NA(),MATCH($B2450&$C2450,'Smelter Look-up'!$J:$J,0))","v":{"$error":"#N/A"}},null,0,null,null,null,""]
[null,{"$f":"IF(LEN(A2451)=0,\"\",INDEX('Smelter Look-up'!$A:$A,MATCH($A2451,'Smelter Look-up'!$E:$E,0)))","v":""},{"$f":"IF(LEN(A2451)=0,\"\",INDEX('Smelter Look-up'!$C:$C,MATCH($A2451,'Smelter Look-up'!$E:$E,0)))","v":""},null,{"$f":"IF(ISERROR($V2451),\"\",OFFSET('Smelter Look-up'!$D$4,$V2451-4,0)&\"\")","v":""},{"$f":"IF(ISERROR($V2451),\"\",OFFSET('Smelter Look-up'!$E$4,$V2451-4,0))","v":""},{"$f":"IF(C2451=$X$4,\"Enter smelter details\",IF(ISERROR($V2451),\"\",OFFSET('Smelter Look-up'!$F$4,$V2451-4,0)))","v":""},{"$f":"IF(ISERROR($V2451),\"\",OFFSET('Smelter Look-up'!$G$4,$V2451-4,0))","v":""},{"$f":"IF(ISERROR($V2451),\"\",OFFSET('Smelter Look-up'!$H$4,$V2451-4,0))","v":""},{"$f":"IF(ISERROR($V2451),\"\",OFFSET('Smelter Look-up'!$I$4,$V2451-4,0))","v":""},{"$nulls":7},{"$f":"IF(ISERROR($V2451),\"\",OFFSET('Smelter Look-up'!$C$4,$V2451-4,0)&\"\")","v":""},"",{"$f":"IF(B2451=\"\",\"\",IF(ISERROR(MATCH($J2451,SorP!$B$1:$B$5661,0)),\"\",INDIRECT(\"'SorP'!$A$\"&MATCH($J2451,SorP!$B$1:$B$5661,0))))","v":""},null,{"$f":"IF(C2451=\"\",NA(),MATCH($B2451&$C2451,'Smelter Look-up'!$J:$J,0))","v":{"$error":"#N/A"}},null,0,null,null,null,""]
[null,{"$f":"IF(LEN(A2452)=0,\"\",INDEX('Smelter Look-up'!$A:$A,MATCH($A2452,'Smelter Look-up'!$E:$E,0)))","v":""},{"$f":"IF(LEN(A2452)=0,\"\",INDEX('Smelter Look-up'!$C:$C,MATCH($A2452,'Smelter Look-up'!$E:$E,0)))","v":""},null,{"$f":"IF(ISERROR($V2452),\"\",OFFSET('Smelter Look-up'!$D$4,$V2452-4,0)&\"\")","v":""},{"$f":"IF(ISERROR($V2452),\"\",OFFSET('Smelter Look-up'!$E$4,$V2452-4,0))","v":""},{"$f":"IF(C2452=$X$4,\"Enter smelter details\",IF(ISERROR($V2452),\"\",OFFSET('Smelter Look-up'!$F$4,$V2452-4,0)))","v":""},{"$f":"IF(ISERROR($V2452),\"\",OFFSET('Smelter Look-up'!$G$4,$V2452-4,0))","v":""},{"$f":"IF(ISERROR($V2452),\"\",OFFSET('Smelter Look-up'!$H$4,$V2452-4,0))","v":""},{"$f":"IF(ISERROR($V2452),\"\",OFFSET('Smelter Look-up'!$I$4,$V2452-4,0))","v":""},{"$nulls":7},{"$f":"IF(ISERROR($V2452),\"\",OFFSET('Smelter Look-up'!$C$4,$V2452-4,0)&\"\")","v":""},"",{"$f":"IF(B2452=\"\",\"\",IF(ISERROR(MATCH($J2452,SorP!$B$1:$B$5661,0)),\"\",INDIRECT(\"'SorP'!$A$\"&MATCH($J2452,SorP!$B$1:$B$5661,0))))","v":""},null,{"$f":"IF(C2452=\"\",NA(),MATCH($B2452&$C2452,'Smelter Look-up'!$J:$J,0))","v":{"$error":"#N/A"}},null,0,null,null,null,""]
[null,{"$f":"IF(LEN(A2453)=0,\"\",INDEX('Smelter Look-up'!$A:$A,MATCH($A2453,'Smelter Look-up'!$E:$E,0)))","v":""},{"$f":"IF(LEN(A2453)=0,\"\",INDEX('Smelter Look-up'!$C:$C,MATCH($A2453,'Smelter Look-up'!$E:$E,0)))","v":""},null,{"$f":"IF(ISERROR($V2453),\"\",OFFSET('Smelter Look-up'!$D$4,$V2453-4,0)&\"\")","v":""},{"$f":"IF(ISERROR($V2453),\"\",OFFSET('Smelter Look-up'!$E$4,$V2453-4,0))","v":""},{"$f":"IF(C2453=$X$4,\"Enter smelter details\",IF(ISERROR($V2453),\"\",OFFSET('Smelter Look-up'!$F$4,$V2453-4,0)))","v":""},{"$f":"IF(ISERROR($V2453),\"\",OFFSET('Smelter Look-up'!$G$4,$V2453-4,0))","v":""},{"$f":"IF(ISERROR($V2453),\"\",OFFSET('Smelter Look-up'!$H$4,$V2453-4,0))","v":""},{"$f":"IF(ISERROR($V2453),\"\",OFFSET('Smelter Look-up'!$I$4,$V2453-4,0))","v":""},{"$nulls":7},{"$f":"IF(ISERROR($V2453),\"\",OFFSET('Smelter Look-up'!$C$4,$V2453-4,0)&\"\")","v":""},"",{"$f":"IF(B2453=\"\",\"\",IF(ISERROR(MATCH($J2453,SorP!$B$1:$B$5661,0)),\"\",INDIRECT(\"'SorP'!$A$\"&MATCH($J2453,SorP!$B$1:$B$5661,0))))","v":""},null,{"$f":"IF(C2453=\"\",NA(),MATCH($B2453&$C2453,'Smelter Look-up'!$J:$J,0))","v":{"$error":"#N/A"}},null,0,null,null,null,""]
[null,{"$f":"IF(LEN(A2454)=0,\"\",INDEX('Smelter Look-up'!$A:$A,MATCH($A2454,'Smelter Look-up'!$E:$E,0)))","v":""},{"$f":"IF(LEN(A2454)=0,\"\",INDEX('Smelter Look-up'!$C:$C,MATCH($A2454,'Smelter Look-up'!$E:$E,0)))","v":""},null,{"$f":"IF(ISERROR($V2454),\"\",OFFSET('Smelter Look-up'!$D$4,$V2454-4,0)&\"\")","v":""},{"$f":"IF(ISERROR($V2454),\"\",OFFSET('Smelter Look-up'!$E$4,$V2454-4,0))","v":""},{"$f":"IF(C2454=$X$4,\"Enter smelter details\",IF(ISERROR($V2454),\"\",OFFSET('Smelter Look-up'!$F$4,$V2454-4,0)))","v":""},{"$f":"IF(ISERROR($V2454),\"\",OFFSET('Smelter Look-up'!$G$4,$V2454-4,0))","v":""},{"$f":"IF(ISERROR($V2454),\"\",OFFSET('Smelter Look-up'!$H$4,$V2454-4,0))","v":""},{"$f":"IF(ISERROR($V2454),\"\",OFFSET('Smelter Look-up'!$I$4,$V2454-4,0))","v":""},{"$nulls":7},{"$f":"IF(ISERROR($V2454),\"\",OFFSET('Smelter Look-up'!$C$4,$V2454-4,0)&\"\")","v":""},"",{"$f":"IF(B2454=\"\",\"\",IF(ISERROR(MATCH($J2454,SorP!$B$1:$B$5661,0)),\"\",INDIRECT(\"'SorP'!$A$\"&MATCH($J2454,SorP!$B$1:$B$5661,0))))","v":""},null,{"$f":"IF(C2454=\"\",NA(),MATCH($B2454&$C2454,'Smelter Look-up'!$J:$J,0))","v":{"$error":"#N/A"}},null,0,null,null,null,""]
[null,{"$f":"IF(LEN(A2455)=0,\"\",INDEX('Smelter Look-up'!$A:$A,MATCH($A2455,'Smelter Look-up'!$E:$E,0)))","v":""},{"$f":"IF(LEN(A2455)=0,\"\",INDEX('Smelter Look-up'!$C:$C,MATCH($A2455,'Smelter Look-up'!$E:$E,0)))","v":""},null,{"$f":"IF(ISERROR($V2455),\"\",OFFSET('Smelter Look-up'!$D$4,$V2455-4,0)&\"\")","v":""},{"$f":"IF(ISERROR($V2455),\"\",OFFSET('Smelter Look-up'!$E$4,$V2455-4,0))","v":""},{"$f":"IF(C2455=$X$4,\"Enter smelter details\",IF(ISERROR($V2455),\"\",OFFSET('Smelter Look-up'!$F$4,$V2455-4,0)))","v":""},{"$f":"IF(ISERROR($V2455),\"\",OFFSET('Smelter Look-up'!$G$4,$V2455-4,0))","v":""},{"$f":"IF(ISERROR($V2455),\"\",OFFSET('Smelter Look-up'!$H$4,$V2455-4,0))","v":""},{"$f":"IF(ISERROR($V2455),\"\",OFFSET('Smelter Look-up'!$I$4,$V2455-4,0))","v":""},{"$nulls":7},{"$f":"IF(ISERROR($V2455),\"\",OFFSET('Smelter Look-up'!$C$4,$V2455-4,0)&\"\")","v":""},"",{"$f":"IF(B2455=\"\",\"\",IF(ISERROR(MATCH($J2455,SorP!$B$1:$B$5661,0)),\"\",INDIRECT(\"'SorP'!$A$\"&MATCH($J2455,SorP!$B$1:$B$5661,0))))","v":""},null,{"$f":"IF(C2455=\"\",NA(),MATCH($B2455&$C2455,'Smelter Look-up'!$J:$J,0))","v":{"$error":"#N/A"}},null,0,null,null,null,""]
[null,{"$f":"IF(LEN(A2456)=0,\"\",INDEX('Smelter Look-up'!$A:$A,MATCH($A2456,'Smelter Look-up'!$E:$E,0)))","v":""},{"$f":"IF(LEN(A2456)=0,\"\",INDEX('Smelter Look-up'!$C:$C,MATCH($A2456,'Smelter Look-up'!$E:$E,0)))","v":""},null,{"$f":"IF(ISERROR($V2456),\"\",OFFSET('Smelter Look-up'!$D$4,$V2456-4,0)&\"\")","v":""},{"$f":"IF(ISERROR($V2456),\"\",OFFSET('Smelter Look-up'!$E$4,$V2456-4,0))","v":""},{"$f":"IF(C2456=$X$4,\"Enter smelter details\",IF(ISERROR($V2456),\"\",OFFSET('Smelter Look-up'!$F$4,$V2456-4,0)))","v":""},{"$f":"IF(ISERROR($V2456),\"\",OFFSET('Smelter Look-up'!$G$4,$V2456-4,0))","v":""},{"$f":"IF(ISERROR($V2456),\"\",OFFSET('Smelter Look-up'!$H$4,$V2456-4,0))","v":""},{"$f":"IF(ISERROR($V2456),\"\",OFFSET('Smelter Look-up'!$I$4,$V2456-4,0))","v":""},{"$nulls":7},{"$f":"IF(ISERROR($V2456),\"\",OFFSET('Smelter Look-up'!$C$4,$V2456-4,0)&\"\")","v":""},"",{"$f":"IF(B2456=\"\",\"\",IF(ISERROR(MATCH($J2456,SorP!$B$1:$B$5661,0)),\"\",INDIRECT(\"'SorP'!$A$\"&MATCH($J2456,SorP!$B$1:$B$5661,0))))","v":""},null,{"$f":"IF(C2456=\"\",NA(),MATCH($B2456&$C2456,'Smelter Look-up'!$J:$J,0))","v":{"$error":"#N/A"}},null,0,null,null,null,""]
[null,{"$f":"IF(LEN(A2457)=0,\"\",INDEX('Smelter Look-up'!$A:$A,MATCH($A2457,'Smelter Look-up'!$E:$E,0)))","v":""},{"$f":"IF(LEN(A2457)=0,\"\",INDEX('Smelter Look-up'!$C:$C,MATCH($A2457,'Smelter Look-up'!$E:$E,0)))","v":""},null,{"$f":"IF(ISERROR($V2457),\"\",OFFSET('Smelter Look-up'!$D$4,$V2457-4,0)&\"\")","v":""},{"$f":"IF(ISERROR($V2457),\"\",OFFSET('Smelter Look-up'!$E$4,$V2457-4,0))","v":""},{"$f":"IF(C2457=$X$4,\"Enter smelter details\",IF(ISERROR($V2457),\"\",OFFSET('Smelter Look-up'!$F$4,$V2457-4,0)))","v":""},{"$f":"IF(ISERROR($V2457),\"\",OFFSET('Smelter Look-up'!$G$4,$V2457-4,0))","v":""},{"$f":"IF(ISERROR($V2457),\"\",OFFSET('Smelter Look-up'!$H$4,$V2457-4,0))","v":""},{"$f":"IF(ISERROR($V2457),\"\",OFFSET('Smelter Look-up'!$I$4,$V2457-4,0))","v":""},{"$nulls":7},{"$f":"IF(ISERROR($V2457),\"\",OFFSET('Smelter Look-up'!$C$4,$V2457-4,0)&\"\")","v":""},"",{"$f":"IF(B2457=\"\",\"\",IF(ISERROR(MATCH($J2457,SorP!$B$1:$B$5661,0)),\"\",INDIRECT(\"'SorP'!$A$\"&MATCH($J2457,SorP!$B$1:$B$5661,0))))","v":""},null,{"$f":"IF(C2457=\"\",NA(),MATCH($B2457&$C2457,'Smelter Look-up'!$J:$J,0))","v":{"$error":"#N/A"}},null,0,null,null,null,""]
[null,{"$f":"IF(LEN(A2458)=0,\"\",INDEX('Smelter Look-up'!$A:$A,MATCH($A2458,'Smelter Look-up'!$E:$E,0)))","v":""},{"$f":"IF(LEN(A2458)=0,\"\",INDEX('Smelter Look-up'!$C:$C,MATCH($A2458,'Smelter Look-up'!$E:$E,0)))","v":""},null,{"$f":"IF(ISERROR($V2458),\"\",OFFSET('Smelter Look-up'!$D$4,$V2458-4,0)&\"\")","v":""},{"$f":"IF(ISERROR($V2458),\"\",OFFSET('Smelter Look-up'!$E$4,$V2458-4,0))","v":""},{"$f":"IF(C2458=$X$4,\"Enter smelter details\",IF(ISERROR($V2458),\"\",OFFSET('Smelter Look-up'!$F$4,$V2458-4,0)))","v":""},{"$f":"IF(ISERROR($V2458),\"\",OFFSET('Smelter Look-up'!$G$4,$V2458-4,0))","v":""},{"$f":"IF(ISERROR($V2458),\"\",OFFSET('Smelter Look-up'!$H$4,$V2458-4,0))","v":""},{"$f":"IF(ISERROR($V2458),\"\",OFFSET('Smelter Look-up'!$I$4,$V2458-4,0))","v":""},{"$nulls":7},{"$f":"IF(ISERROR($V2458),\"\",OFFSET('Smelter Look-up'!$C$4,$V2458-4,0)&\"\")","v":""},"",{"$f":"IF(B2458=\"\",\"\",IF(ISERROR(MATCH($J2458,SorP!$B$1:$B$5661,0)),\"\",INDIRECT(\"'SorP'!$A$\"&MATCH($J2458,SorP!$B$1:$B$5661,0))))","v":""},null,{"$f":"IF(C2458=\"\",NA(),MATCH($B2458&$C2458,'Smelter Look-up'!$J:$J,0))","v":{"$error":"#N/A"}},null,0,null,null,null,""]
[null,{"$f":"IF(LEN(A2459)=0,\"\",INDEX('Smelter Look-up'!$A:$A,MATCH($A2459,'Smelter Look-up'!$E:$E,0)))","v":""},{"$f":"IF(LEN(A2459)=0,\"\",INDEX('Smelter Look-up'!$C:$C,MATCH($A2459,'Smelter Look-up'!$E:$E,0)))","v":""},null,{"$f":"IF(ISERROR($V2459),\"\",OFFSET('Smelter Look-up'!$D$4,$V2459-4,0)&\"\")","v":""},{"$f":"IF(ISERROR($V2459),\"\",OFFSET('Smelter Look-up'!$E$4,$V2459-4,0))","v":""},{"$f":"IF(C2459=$X$4,\"Enter smelter details\",IF(ISERROR($V2459),\"\",OFFSET('Smelter Look-up'!$F$4,$V2459-4,0)))","v":""},{"$f":"IF(ISERROR($V2459),\"\",OFFSET('Smelter Look-up'!$G$4,$V2459-4,0))","v":""},{"$f":"IF(ISERROR($V2459),\"\",OFFSET('Smelter Look-up'!$H$4,$V2459-4,0))","v":""},{"$f":"IF(ISERROR($V2459),\"\",OFFSET('Smelter Look-up'!$I$4,$V2459-4,0))","v":""},{"$nulls":7},{"$f":"IF(ISERROR($V2459),\"\",OFFSET('Smelter Look-up'!$C$4,$V2459-4,0)&\"\")","v":""},"",{"$f":"IF(B2459=\"\",\"\",IF(ISERROR(MATCH($J2459,SorP!$B$1:$B$5661,0)),\"\",INDIRECT(\"'SorP'!$A$\"&MATCH($J2459,SorP!$B$1:$B$5661,0))))","v":""},null,{"$f":"IF(C2459=\"\",NA(),MATCH($B2459&$C2459,'Smelter Look-up'!$J:$J,0))","v":{"$error":"#N/A"}},null,0,null,null,null,""]
[null,{"$f":"IF(LEN(A2460)=0,\"\",INDEX('Smelter Look-up'!$A:$A,MATCH($A2460,'Smelter Look-up'!$E:$E,0)))","v":""},{"$f":"IF(LEN(A2460)=0,\"\",INDEX('Smelter Look-up'!$C:$C,MATCH($A2460,'Smelter Look-up'!$E:$E,0)))","v":""},null,{"$f":"IF(ISERROR($V2460),\"\",OFFSET('Smelter Look-up'!$D$4,$V2460-4,0)&\"\")","v":""},{"$f":"IF(ISERROR($V2460),\"\",OFFSET('Smelter Look-up'!$E$4,$V2460-4,0))","v":""},{"$f":"IF(C2460=$X$4,\"Enter smelter details\",IF(ISERROR($V2460),\"\",OFFSET('Smelter Look-up'!$F$4,$V2460-4,0)))","v":""},{"$f":"IF(ISERROR($V2460),\"\",OFFSET('Smelter Look-up'!$G$4,$V2460-4,0))","v":""},{"$f":"IF(ISERROR($V2460),\"\",OFFSET('Smelter Look-up'!$H$4,$V2460-4,0))","v":""},{"$f":"IF(ISERROR($V2460),\"\",OFFSET('Smelter Look-up'!$I$4,$V2460-4,0))","v":""},{"$nulls":7},{"$f":"IF(ISERROR($V2460),\"\",OFFSET('Smelter Look-up'!$C$4,$V2460-4,0)&\"\")","v":""},"",{"$f":"IF(B2460=\"\",\"\",IF(ISERROR(MATCH($J2460,SorP!$B$1:$B$5661,0)),\"\",INDIRECT(\"'SorP'!$A$\"&MATCH($J2460,SorP!$B$1:$B$5661,0))))","v":""},null,{"$f":"IF(C2460=\"\",NA(),MATCH($B2460&$C2460,'Smelter Look-up'!$J:$J,0))","v":{"$error":"#N/A"}},null,0,null,null,null,""]
[null,{"$f":"IF(LEN(A2461)=0,\"\",INDEX('Smelter Look-up'!$A:$A,MATCH($A2461,'Smelter Look-up'!$E:$E,0)))","v":""},{"$f":"IF(LEN(A2461)=0,\"\",INDEX('Smelter Look-up'!$C:$C,MATCH($A2461,'Smelter Look-up'!$E:$E,0)))","v":""},null,{"$f":"IF(ISERROR($V2461),\"\",OFFSET('Smelter Look-up'!$D$4,$V2461-4,0)&\"\")","v":""},{"$f":"IF(ISERROR($V2461),\"\",OFFSET('Smelter Look-up'!$E$4,$V2461-4,0))","v":""},{"$f":"IF(C2461=$X$4,\"Enter smelter details\",IF(ISERROR($V2461),\"\",OFFSET('Smelter Look-up'!$F$4,$V2461-4,0)))","v":""},{"$f":"IF(ISERROR($V2461),\"\",OFFSET('Smelter Look-up'!$G$4,$V2461-4,0))","v":""},{"$f":"IF(ISERROR($V2461),\"\",OFFSET('Smelter Look-up'!$H$4,$V2461-4,0))","v":""},{"$f":"IF(ISERROR($V2461),\"\",OFFSET('Smelter Look-up'!$I$4,$V2461-4,0))","v":""},{"$nulls":7},{"$f":"IF(ISERROR($V2461),\"\",OFFSET('Smelter Look-up'!$C$4,$V2461-4,0)&\"\")","v":""},"",{"$f":"IF(B2461=\"\",\"\",IF(ISERROR(MATCH($J2461,SorP!$B$1:$B$5661,0)),\"\",INDIRECT(\"'SorP'!$A$\"&MATCH($J2461,SorP!$B$1:$B$5661,0))))","v":""},null,{"$f":"IF(C2461=\"\",NA(),MATCH($B2461&$C2461,'Smelter Look-up'!$J:$J,0))","v":{"$error":"#N/A"}},null,0,null,null,null,""]
[null,{"$f":"IF(LEN(A2462)=0,\"\",INDEX('Smelter Look-up'!$A:$A,MATCH($A2462,'Smelter Look-up'!$E:$E,0)))","v":""},{"$f":"IF(LEN(A2462)=0,\"\",INDEX('Smelter Look-up'!$C:$C,MATCH($A2462,'Smelter Look-up'!$E:$E,0)))","v":""},null,{"$f":"IF(ISERROR($V2462),\"\",OFFSET('Smelter Look-up'!$D$4,$V2462-4,0)&\"\")","v":""},{"$f":"IF(ISERROR($V2462),\"\",OFFSET('Smelter Look-up'!$E$4,$V2462-4,0))","v":""},{"$f":"IF(C2462=$X$4,\"Enter smelter details\",IF(ISERROR($V2462),\"\",OFFSET('Smelter Look-up'!$F$4,$V2462-4,0)))","v":""},{"$f":"IF(ISERROR($V2462),\"\",OFFSET('Smelter Look-up'!$G$4,$V2462-4,0))","v":""},{"$f":"IF(ISERROR($V2462),\"\",OFFSET('Smelter Look-up'!$H$4,$V2462-4,0))","v":""},{"$f":"IF(ISERROR($V2462),\"\",OFFSET('Smelter Look-up'!$I$4,$V2462-4,0))","v":""},{"$nulls":7},{"$f":"IF(ISERROR($V2462),\"\",OFFSET('Smelter Look-up'!$C$4,$V2462-4,0)&\"\")","v":""},"",{"$f":"IF(B2462=\"\",\"\",IF(ISERROR(MATCH($J2462,SorP!$B$1:$B$5661,0)),\"\",INDIRECT(\"'SorP'!$A$\"&MATCH($J2462,SorP!$B$1:$B$5661,0))))","v":""},null,{"$f":"IF(C2462=\"\",NA(),MATCH($B2462&$C2462,'Smelter Look-up'!$J:$J,0))","v":{"$error":"#N/A"}},null,0,null,null,null,""]
[null,{"$f":"IF(LEN(A2463)=0,\"\",INDEX('Smelter Look-up'!$A:$A,MATCH($A2463,'Smelter Look-up'!$E:$E,0)))","v":""},{"$f":"IF(LEN(A2463)=0,\"\",INDEX('Smelter Look-up'!$C:$C,MATCH($A2463,'Smelter Look-up'!$E:$E,0)))","v":""},null,{"$f":"IF(ISERROR($V2463),\"\",OFFSET('Smelter Look-up'!$D$4,$V2463-4,0)&\"\")","v":""},{"$f":"IF(ISERROR($V2463),\"\",OFFSET('Smelter Look-up'!$E$4,$V2463-4,0))","v":""},{"$f":"IF(C2463=$X$4,\"Enter smelter details\",IF(ISERROR($V2463),\"\",OFFSET('Smelter Look-up'!$F$4,$V2463-4,0)))","v":""},{"$f":"IF(ISERROR($V2463),\"\",OFFSET('Smelter Look-up'!$G$4,$V2463-4,0))","v":""},{"$f":"IF(ISERROR($V2463),\"\",OFFSET('Smelter Look-up'!$H$4,$V2463-4,0))","v":""},{"$f":"IF(ISERROR($V2463),\"\",OFFSET('Smelter Look-up'!$I$4,$V2463-4,0))","v":""},{"$nulls":7},{"$f":"IF(ISERROR($V2463),\"\",OFFSET('Smelter Look-up'!$C$4,$V2463-4,0)&\"\")","v":""},"",{"$f":"IF(B2463=\"\",\"\",IF(ISERROR(MATCH($J2463,SorP!$B$1:$B$5661,0)),\"\",INDIRECT(\"'SorP'!$A$\"&MATCH($J2463,SorP!$B$1:$B$5661,0))))","v":""},null,{"$f":"IF(C2463=\"\",NA(),MATCH($B2463&$C2463,'Smelter Look-up'!$J:$J,0))","v":{"$error":"#N/A"}},null,0,null,null,null,""]
[null,{"$f":"IF(LEN(A2464)=0,\"\",INDEX('Smelter Look-up'!$A:$A,MATCH($A2464,'Smelter Look-up'!$E:$E,0)))","v":""},{"$f":"IF(LEN(A2464)=0,\"\",INDEX('Smelter Look-up'!$C:$C,MATCH($A2464,'Smelter Look-up'!$E:$E,0)))","v":""},null,{"$f":"IF(ISERROR($V2464),\"\",OFFSET('Smelter Look-up'!$D$4,$V2464-4,0)&\"\")","v":""},{"$f":"IF(ISERROR($V2464),\"\",OFFSET('Smelter Look-up'!$E$4,$V2464-4,0))","v":""},{"$f":"IF(C2464=$X$4,\"Enter smelter details\",IF(ISERROR($V2464),\"\",OFFSET('Smelter Look-up'!$F$4,$V2464-4,0)))","v":""},{"$f":"IF(ISERROR($V2464),\"\",OFFSET('Smelter Look-up'!$G$4,$V2464-4,0))","v":""},{"$f":"IF(ISERROR($V2464),\"\",OFFSET('Smelter Look-up'!$H$4,$V2464-4,0))","v":""},{"$f":"IF(ISERROR($V2464),\"\",OFFSET('Smelter Look-up'!$I$4,$V2464-4,0))","v":""},{"$nulls":7},{"$f":"IF(ISERROR($V2464),\"\",OFFSET('Smelter Look-up'!$C$4,$V2464-4,0)&\"\")","v":""},"",{"$f":"IF(B2464=\"\",\"\",IF(ISERROR(MATCH($J2464,SorP!$B$1:$B$5661,0)),\"\",INDIRECT(\"'SorP'!$A$\"&MATCH($J2464,SorP!$B$1:$B$5661,0))))","v":""},null,{"$f":"IF(C2464=\"\",NA(),MATCH($B2464&$C2464,'Smelter Look-up'!$J:$J,0))","v":{"$error":"#N/A"}},null,0,null,null,null,""]
[null,{"$f":"IF(LEN(A2465)=0,\"\",INDEX('Smelter Look-up'!$A:$A,MATCH($A2465,'Smelter Look-up'!$E:$E,0)))","v":""},{"$f":"IF(LEN(A2465)=0,\"\",INDEX('Smelter Look-up'!$C:$C,MATCH($A2465,'Smelter Look-up'!$E:$E,0)))","v":""},null,{"$f":"IF(ISERROR($V2465),\"\",OFFSET('Smelter Look-up'!$D$4,$V2465-4,0)&\"\")","v":""},{"$f":"IF(ISERROR($V2465),\"\",OFFSET('Smelter Look-up'!$E$4,$V2465-4,0))","v":""},{"$f":"IF(C2465=$X$4,\"Enter smelter details\",IF(ISERROR($V2465),\"\",OFFSET('Smelter Look-up'!$F$4,$V2465-4,0)))","v":""},{"$f":"IF(ISERROR($V2465),\"\",OFFSET('Smelter Look-up'!$G$4,$V2465-4,0))","v":""},{"$f":"IF(ISERROR($V2465),\"\",OFFSET('Smelter Look-up'!$H$4,$V2465-4,0))","v":""},{"$f":"IF(ISERROR($V2465),\"\",OFFSET('Smelter Look-up'!$I$4,$V2465-4,0))","v":""},{"$nulls":7},{"$f":"IF(ISERROR($V2465),\"\",OFFSET('Smelter Look-up'!$C$4,$V2465-4,0)&\"\")","v":""},"",{"$f":"IF(B2465=\"\",\"\",IF(ISERROR(MATCH($J2465,SorP!$B$1:$B$5661,0)),\"\",INDIRECT(\"'SorP'!$A$\"&MATCH($J2465,SorP!$B$1:$B$5661,0))))","v":""},null,{"$f":"IF(C2465=\"\",NA(),MATCH($B2465&$C2465,'Smelter Look-up'!$J:$J,0))","v":{"$error":"#N/A"}},null,0,null,null,null,""]
[null,{"$f":"IF(LEN(A2466)=0,\"\",INDEX('Smelter Look-up'!$A:$A,MATCH($A2466,'Smelter Look-up'!$E:$E,0)))","v":""},{"$f":"IF(LEN(A2466)=0,\"\",INDEX('Smelter Look-up'!$C:$C,MATCH($A2466,'Smelter Look-up'!$E:$E,0)))","v":""},null,{"$f":"IF(ISERROR($V2466),\"\",OFFSET('Smelter Look-up'!$D$4,$V2466-4,0)&\"\")","v":""},{"$f":"IF(ISERROR($V2466),\"\",OFFSET('Smelter Look-up'!$E$4,$V2466-4,0))","v":""},{"$f":"IF(C2466=$X$4,\"Enter smelter details\",IF(ISERROR($V2466),\"\",OFFSET('Smelter Look-up'!$F$4,$V2466-4,0)))","v":""},{"$f":"IF(ISERROR($V2466),\"\",OFFSET('Smelter Look-up'!$G$4,$V2466-4,0))","v":""},{"$f":"IF(ISERROR($V2466),\"\",OFFSET('Smelter Look-up'!$H$4,$V2466-4,0))","v":""},{"$f":"IF(ISERROR($V2466),\"\",OFFSET('Smelter Look-up'!$I$4,$V2466-4,0))","v":""},{"$nulls":7},{"$f":"IF(ISERROR($V2466),\"\",OFFSET('Smelter Look-up'!$C$4,$V2466-4,0)&\"\")","v":""},"",{"$f":"IF(B2466=\"\",\"\",IF(ISERROR(MATCH($J2466,SorP!$B$1:$B$5661,0)),\"\",INDIRECT(\"'SorP'!$A$\"&MATCH($J2466,SorP!$B$1:$B$5661,0))))","v":""},null,{"$f":"IF(C2466=\"\",NA(),MATCH($B2466&$C2466,'Smelter Look-up'!$J:$J,0))","v":{"$error":"#N/A"}},null,0,null,null,null,""]
[null,{"$f":"IF(LEN(A2467)=0,\"\",INDEX('Smelter Look-up'!$A:$A,MATCH($A2467,'Smelter Look-up'!$E:$E,0)))","v":""},{"$f":"IF(LEN(A2467)=0,\"\",INDEX('Smelter Look-up'!$C:$C,MATCH($A2467,'Smelter Look-up'!$E:$E,0)))","v":""},null,{"$f":"IF(ISERROR($V2467),\"\",OFFSET('Smelter Look-up'!$D$4,$V2467-4,0)&\"\")","v":""},{"$f":"IF(ISERROR($V2467),\"\",OFFSET('Smelter Look-up'!$E$4,$V2467-4,0))","v":""},{"$f":"IF(C2467=$X$4,\"Enter smelter details\",IF(ISERROR($V2467),\"\",OFFSET('Smelter Look-up'!$F$4,$V2467-4,0)))","v":""},{"$f":"IF(ISERROR($V2467),\"\",OFFSET('Smelter Look-up'!$G$4,$V2467-4,0))","v":""},{"$f":"IF(ISERROR($V2467),\"\",OFFSET('Smelter Look-up'!$H$4,$V2467-4,0))","v":""},{"$f":"IF(ISERROR($V2467),\"\",OFFSET('Smelter Look-up'!$I$4,$V2467-4,0))","v":""},{"$nulls":7},{"$f":"IF(ISERROR($V2467),\"\",OFFSET('Smelter Look-up'!$C$4,$V2467-4,0)&\"\")","v":""},"",{"$f":"IF(B2467=\"\",\"\",IF(ISERROR(MATCH($J2467,SorP!$B$1:$B$5661,0)),\"\",INDIRECT(\"'SorP'!$A$\"&MATCH($J2467,SorP!$B$1:$B$5661,0))))","v":""},null,{"$f":"IF(C2467=\"\",NA(),MATCH($B2467&$C2467,'Smelter Look-up'!$J:$J,0))","v":{"$error":"#N/A"}},null,0,null,null,null,""]
[null,{"$f":"IF(LEN(A2468)=0,\"\",INDEX('Smelter Look-up'!$A:$A,MATCH($A2468,'Smelter Look-up'!$E:$E,0)))","v":""},{"$f":"IF(LEN(A2468)=0,\"\",INDEX('Smelter Look-up'!$C:$C,MATCH($A2468,'Smelter Look-up'!$E:$E,0)))","v":""},null,{"$f":"IF(ISERROR($V2468),\"\",OFFSET('Smelter Look-up'!$D$4,$V2468-4,0)&\"\")","v":""},{"$f":"IF(ISERROR($V2468),\"\",OFFSET('Smelter Look-up'!$E$4,$V2468-4,0))","v":""},{"$f":"IF(C2468=$X$4,\"Enter smelter details\",IF(ISERROR($V2468),\"\",OFFSET('Smelter Look-up'!$F$4,$V2468-4,0)))","v":""},{"$f":"IF(ISERROR($V2468),\"\",OFFSET('Smelter Look-up'!$G$4,$V2468-4,0))","v":""},{"$f":"IF(ISERROR($V2468),\"\",OFFSET('Smelter Look-up'!$H$4,$V2468-4,0))","v":""},{"$f":"IF(ISERROR($V2468),\"\",OFFSET('Smelter Look-up'!$I$4,$V2468-4,0))","v":""},{"$nulls":7},{"$f":"IF(ISERROR($V2468),\"\",OFFSET('Smelter Look-up'!$C$4,$V2468-4,0)&\"\")","v":""},"",{"$f":"IF(B2468=\"\",\"\",IF(ISERROR(MATCH($J2468,SorP!$B$1:$B$5661,0)),\"\",INDIRECT(\"'SorP'!$A$\"&MATCH($J2468,SorP!$B$1:$B$5661,0))))","v":""},null,{"$f":"IF(C2468=\"\",NA(),MATCH($B2468&$C2468,'Smelter Look-up'!$J:$J,0))","v":{"$error":"#N/A"}},null,0,null,null,null,""]
[null,{"$f":"IF(LEN(A2469)=0,\"\",INDEX('Smelter Look-up'!$A:$A,MATCH($A2469,'Smelter Look-up'!$E:$E,0)))","v":""},{"$f":"IF(LEN(A2469)=0,\"\",INDEX('Smelter Look-up'!$C:$C,MATCH($A2469,'Smelter Look-up'!$E:$E,0)))","v":""},null,{"$f":"IF(ISERROR($V2469),\"\",OFFSET('Smelter Look-up'!$D$4,$V2469-4,0)&\"\")","v":""},{"$f":"IF(ISERROR($V2469),\"\",OFFSET('Smelter Look-up'!$E$4,$V2469-4,0))","v":""},{"$f":"IF(C2469=$X$4,\"Enter smelter details\",IF(ISERROR($V2469),\"\",OFFSET('Smelter Look-up'!$F$4,$V2469-4,0)))","v":""},{"$f":"IF(ISERROR($V2469),\"\",OFFSET('Smelter Look-up'!$G$4,$V2469-4,0))","v":""},{"$f":"IF(ISERROR($V2469),\"\",OFFSET('Smelter Look-up'!$H$4,$V2469-4,0))","v":""},{"$f":"IF(ISERROR($V2469),\"\",OFFSET('Smelter Look-up'!$I$4,$V2469-4,0))","v":""},{"$nulls":7},{"$f":"IF(ISERROR($V2469),\"\",OFFSET('Smelter Look-up'!$C$4,$V2469-4,0)&\"\")","v":""},"",{"$f":"IF(B2469=\"\",\"\",IF(ISERROR(MATCH($J2469,SorP!$B$1:$B$5661,0)),\"\",INDIRECT(\"'SorP'!$A$\"&MATCH($J2469,SorP!$B$1:$B$5661,0))))","v":""},null,{"$f":"IF(C2469=\"\",NA(),MATCH($B2469&$C2469,'Smelter Look-up'!$J:$J,0))","v":{"$error":"#N/A"}},null,0,null,null,null,""]
[null,{"$f":"IF(LEN(A2470)=0,\"\",INDEX('Smelter Look-up'!$A:$A,MATCH($A2470,'Smelter Look-up'!$E:$E,0)))","v":""},{"$f":"IF(LEN(A2470)=0,\"\",INDEX('Smelter Look-up'!$C:$C,MATCH($A2470,'Smelter Look-up'!$E:$E,0)))","v":""},null,{"$f":"IF(ISERROR($V2470),\"\",OFFSET('Smelter Look-up'!$D$4,$V2470-4,0)&\"\")","v":""},{"$f":"IF(ISERROR($V2470),\"\",OFFSET('Smelter Look-up'!$E$4,$V2470-4,0))","v":""},{"$f":"IF(C2470=$X$4,\"Enter smelter details\",IF(ISERROR($V2470),\"\",OFFSET('Smelter Look-up'!$F$4,$V2470-4,0)))","v":""},{"$f":"IF(ISERROR($V2470),\"\",OFFSET('Smelter Look-up'!$G$4,$V2470-4,0))","v":""},{"$f":"IF(ISERROR($V2470),\"\",OFFSET('Smelter Look-up'!$H$4,$V2470-4,0))","v":""},{"$f":"IF(ISERROR($V2470),\"\",OFFSET('Smelter Look-up'!$I$4,$V2470-4,0))","v":""},{"$nulls":7},{"$f":"IF(ISERROR($V2470),\"\",OFFSET('Smelter Look-up'!$C$4,$V2470-4,0)&\"\")","v":""},"",{"$f":"IF(B2470=\"\",\"\",IF(ISERROR(MATCH($J2470,SorP!$B$1:$B$5661,0)),\"\",INDIRECT(\"'SorP'!$A$\"&MATCH($J2470,SorP!$B$1:$B$5661,0))))","v":""},null,{"$f":"IF(C2470=\"\",NA(),MATCH($B2470&$C2470,'Smelter Look-up'!$J:$J,0))","v":{"$error":"#N/A"}},null,0,null,null,null,""]
[null,{"$f":"IF(LEN(A2471)=0,\"\",INDEX('Smelter Look-up'!$A:$A,MATCH($A2471,'Smelter Look-up'!$E:$E,0)))","v":""},{"$f":"IF(LEN(A2471)=0,\"\",INDEX('Smelter Look-up'!$C:$C,MATCH($A2471,'Smelter Look-up'!$E:$E,0)))","v":""},null,{"$f":"IF(ISERROR($V2471),\"\",OFFSET('Smelter Look-up'!$D$4,$V2471-4,0)&\"\")","v":""},{"$f":"IF(ISERROR($V2471),\"\",OFFSET('Smelter Look-up'!$E$4,$V2471-4,0))","v":""},{"$f":"IF(C2471=$X$4,\"Enter smelter details\",IF(ISERROR($V2471),\"\",OFFSET('Smelter Look-up'!$F$4,$V2471-4,0)))","v":""},{"$f":"IF(ISERROR($V2471),\"\",OFFSET('Smelter Look-up'!$G$4,$V2471-4,0))","v":""},{"$f":"IF(ISERROR($V2471),\"\",OFFSET('Smelter Look-up'!$H$4,$V2471-4,0))","v":""},{"$f":"IF(ISERROR($V2471),\"\",OFFSET('Smelter Look-up'!$I$4,$V2471-4,0))","v":""},{"$nulls":7},{"$f":"IF(ISERROR($V2471),\"\",OFFSET('Smelter Look-up'!$C$4,$V2471-4,0)&\"\")","v":""},"",{"$f":"IF(B2471=\"\",\"\",IF(ISERROR(MATCH($J2471,SorP!$B$1:$B$5661,0)),\"\",INDIRECT(\"'SorP'!$A$\"&MATCH($J2471,SorP!$B$1:$B$5661,0))))","v":""},null,{"$f":"IF(C2471=\"\",NA(),MATCH($B2471&$C2471,'Smelter Look-up'!$J:$J,0))","v":{"$error":"#N/A"}},null,0,null,null,null,""]
[null,{"$f":"IF(LEN(A2472)=0,\"\",INDEX('Smelter Look-up'!$A:$A,MATCH($A2472,'Smelter Look-up'!$E:$E,0)))","v":""},{"$f":"IF(LEN(A2472)=0,\"\",INDEX('Smelter Look-up'!$C:$C,MATCH($A2472,'Smelter Look-up'!$E:$E,0)))","v":""},null,{"$f":"IF(ISERROR($V2472),\"\",OFFSET('Smelter Look-up'!$D$4,$V2472-4,0)&\"\")","v":""},{"$f":"IF(ISERROR($V2472),\"\",OFFSET('Smelter Look-up'!$E$4,$V2472-4,0))","v":""},{"$f":"IF(C2472=$X$4,\"Enter smelter details\",IF(ISERROR($V2472),\"\",OFFSET('Smelter Look-up'!$F$4,$V2472-4,0)))","v":""},{"$f":"IF(ISERROR($V2472),\"\",OFFSET('Smelter Look-up'!$G$4,$V2472-4,0))","v":""},{"$f":"IF(ISERROR($V2472),\"\",OFFSET('Smelter Look-up'!$H$4,$V2472-4,0))","v":""},{"$f":"IF(ISERROR($V2472),\"\",OFFSET('Smelter Look-up'!$I$4,$V2472-4,0))","v":""},{"$nulls":7},{"$f":"IF(ISERROR($V2472),\"\",OFFSET('Smelter Look-up'!$C$4,$V2472-4,0)&\"\")","v":""},"",{"$f":"IF(B2472=\"\",\"\",IF(ISERROR(MATCH($J2472,SorP!$B$1:$B$5661,0)),\"\",INDIRECT(\"'SorP'!$A$\"&MATCH($J2472,SorP!$B$1:$B$5661,0))))","v":""},null,{"$f":"IF(C2472=\"\",NA(),MATCH($B2472&$C2472,'Smelter Look-up'!$J:$J,0))","v":{"$error":"#N/A"}},null,0,null,null,null,""]
[null,{"$f":"IF(LEN(A2473)=0,\"\",INDEX('Smelter Look-up'!$A:$A,MATCH($A2473,'Smelter Look-up'!$E:$E,0)))","v":""},{"$f":"IF(LEN(A2473)=0,\"\",INDEX('Smelter Look-up'!$C:$C,MATCH($A2473,'Smelter Look-up'!$E:$E,0)))","v":""},null,{"$f":"IF(ISERROR($V2473),\"\",OFFSET('Smelter Look-up'!$D$4,$V2473-4,0)&\"\")","v":""},{"$f":"IF(ISERROR($V2473),\"\",OFFSET('Smelter Look-up'!$E$4,$V2473-4,0))","v":""},{"$f":"IF(C2473=$X$4,\"Enter smelter details\",IF(ISERROR($V2473),\"\",OFFSET('Smelter Look-up'!$F$4,$V2473-4,0)))","v":""},{"$f":"IF(ISERROR($V2473),\"\",OFFSET('Smelter Look-up'!$G$4,$V2473-4,0))","v":""},{"$f":"IF(ISERROR($V2473),\"\",OFFSET('Smelter Look-up'!$H$4,$V2473-4,0))","v":""},{"$f":"IF(ISERROR($V2473),\"\",OFFSET('Smelter Look-up'!$I$4,$V2473-4,0))","v":""},{"$nulls":7},{"$f":"IF(ISERROR($V2473),\"\",OFFSET('Smelter Look-up'!$C$4,$V2473-4,0)&\"\")","v":""},"",{"$f":"IF(B2473=\"\",\"\",IF(ISERROR(MATCH($J2473,SorP!$B$1:$B$5661,0)),\"\",INDIRECT(\"'SorP'!$A$\"&MATCH($J2473,SorP!$B$1:$B$5661,0))))","v":""},null,{"$f":"IF(C2473=\"\",NA(),MATCH($B2473&$C2473,'Smelter Look-up'!$J:$J,0))","v":{"$error":"#N/A"}},null,0,null,null,null,""]
[null,{"$f":"IF(LEN(A2474)=0,\"\",INDEX('Smelter Look-up'!$A:$A,MATCH($A2474,'Smelter Look-up'!$E:$E,0)))","v":""},{"$f":"IF(LEN(A2474)=0,\"\",INDEX('Smelter Look-up'!$C:$C,MATCH($A2474,'Smelter Look-up'!$E:$E,0)))","v":""},null,{"$f":"IF(ISERROR($V2474),\"\",OFFSET('Smelter Look-up'!$D$4,$V2474-4,0)&\"\")","v":""},{"$f":"IF(ISERROR($V2474),\"\",OFFSET('Smelter Look-up'!$E$4,$V2474-4,0))","v":""},{"$f":"IF(C2474=$X$4,\"Enter smelter details\",IF(ISERROR($V2474),\"\",OFFSET('Smelter Look-up'!$F$4,$V2474-4,0)))","v":""},{"$f":"IF(ISERROR($V2474),\"\",OFFSET('Smelter Look-up'!$G$4,$V2474-4,0))","v":""},{"$f":"IF(ISERROR($V2474),\"\",OFFSET('Smelter Look-up'!$H$4,$V2474-4,0))","v":""},{"$f":"IF(ISERROR($V2474),\"\",OFFSET('Smelter Look-up'!$I$4,$V2474-4,0))","v":""},{"$nulls":7},{"$f":"IF(ISERROR($V2474),\"\",OFFSET('Smelter Look-up'!$C$4,$V2474-4,0)&\"\")","v":""},"",{"$f":"IF(B2474=\"\",\"\",IF(ISERROR(MATCH($J2474,SorP!$B$1:$B$5661,0)),\"\",INDIRECT(\"'SorP'!$A$\"&MATCH($J2474,SorP!$B$1:$B$5661,0))))","v":""},null,{"$f":"IF(C2474=\"\",NA(),MATCH($B2474&$C2474,'Smelter Look-up'!$J:$J,0))","v":{"$error":"#N/A"}},null,0,null,null,null,""]
[null,{"$f":"IF(LEN(A2475)=0,\"\",INDEX('Smelter Look-up'!$A:$A,MATCH($A2475,'Smelter Look-up'!$E:$E,0)))","v":""},{"$f":"IF(LEN(A2475)=0,\"\",INDEX('Smelter Look-up'!$C:$C,MATCH($A2475,'Smelter Look-up'!$E:$E,0)))","v":""},null,{"$f":"IF(ISERROR($V2475),\"\",OFFSET('Smelter Look-up'!$D$4,$V2475-4,0)&\"\")","v":""},{"$f":"IF(ISERROR($V2475),\"\",OFFSET('Smelter Look-up'!$E$4,$V2475-4,0))","v":""},{"$f":"IF(C2475=$X$4,\"Enter smelter details\",IF(ISERROR($V2475),\"\",OFFSET('Smelter Look-up'!$F$4,$V2475-4,0)))","v":""},{"$f":"IF(ISERROR($V2475),\"\",OFFSET('Smelter Look-up'!$G$4,$V2475-4,0))","v":""},{"$f":"IF(ISERROR($V2475),\"\",OFFSET('Smelter Look-up'!$H$4,$V2475-4,0))","v":""},{"$f":"IF(ISERROR($V2475),\"\",OFFSET('Smelter Look-up'!$I$4,$V2475-4,0))","v":""},{"$nulls":7},{"$f":"IF(ISERROR($V2475),\"\",OFFSET('Smelter Look-up'!$C$4,$V2475-4,0)&\"\")","v":""},"",{"$f":"IF(B2475=\"\",\"\",IF(ISERROR(MATCH($J2475,SorP!$B$1:$B$5661,0)),\"\",INDIRECT(\"'SorP'!$A$\"&MATCH($J2475,SorP!$B$1:$B$5661,0))))","v":""},null,{"$f":"IF(C2475=\"\",NA(),MATCH($B2475&$C2475,'Smelter Look-up'!$J:$J,0))","v":{"$error":"#N/A"}},null,0,null,null,null,""]
[null,{"$f":"IF(LEN(A2476)=0,\"\",INDEX('Smelter Look-up'!$A:$A,MATCH($A2476,'Smelter Look-up'!$E:$E,0)))","v":""},{"$f":"IF(LEN(A2476)=0,\"\",INDEX('Smelter Look-up'!$C:$C,MATCH($A2476,'Smelter Look-up'!$E:$E,0)))","v":""},null,{"$f":"IF(ISERROR($V2476),\"\",OFFSET('Smelter Look-up'!$D$4,$V2476-4,0)&\"\")","v":""},{"$f":"IF(ISERROR($V2476),\"\",OFFSET('Smelter Look-up'!$E$4,$V2476-4,0))","v":""},{"$f":"IF(C2476=$X$4,\"Enter smelter details\",IF(ISERROR($V2476),\"\",OFFSET('Smelter Look-up'!$F$4,$V2476-4,0)))","v":""},{"$f":"IF(ISERROR($V2476),\"\",OFFSET('Smelter Look-up'!$G$4,$V2476-4,0))","v":""},{"$f":"IF(ISERROR($V2476),\"\",OFFSET('Smelter Look-up'!$H$4,$V2476-4,0))","v":""},{"$f":"IF(ISERROR($V2476),\"\",OFFSET('Smelter Look-up'!$I$4,$V2476-4,0))","v":""},{"$nulls":7},{"$f":"IF(ISERROR($V2476),\"\",OFFSET('Smelter Look-up'!$C$4,$V2476-4,0)&\"\")","v":""},"",{"$f":"IF(B2476=\"\",\"\",IF(ISERROR(MATCH($J2476,SorP!$B$1:$B$5661,0)),\"\",INDIRECT(\"'SorP'!$A$\"&MATCH($J2476,SorP!$B$1:$B$5661,0))))","v":""},null,{"$f":"IF(C2476=\"\",NA(),MATCH($B2476&$C2476,'Smelter Look-up'!$J:$J,0))","v":{"$error":"#N/A"}},null,0,null,null,null,""]
[null,{"$f":"IF(LEN(A2477)=0,\"\",INDEX('Smelter Look-up'!$A:$A,MATCH($A2477,'Smelter Look-up'!$E:$E,0)))","v":""},{"$f":"IF(LEN(A2477)=0,\"\",INDEX('Smelter Look-up'!$C:$C,MATCH($A2477,'Smelter Look-up'!$E:$E,0)))","v":""},null,{"$f":"IF(ISERROR($V2477),\"\",OFFSET('Smelter Look-up'!$D$4,$V2477-4,0)&\"\")","v":""},{"$f":"IF(ISERROR($V2477),\"\",OFFSET('Smelter Look-up'!$E$4,$V2477-4,0))","v":""},{"$f":"IF(C2477=$X$4,\"Enter smelter details\",IF(ISERROR($V2477),\"\",OFFSET('Smelter Look-up'!$F$4,$V2477-4,0)))","v":""},{"$f":"IF(ISERROR($V2477),\"\",OFFSET('Smelter Look-up'!$G$4,$V2477-4,0))","v":""},{"$f":"IF(ISERROR($V2477),\"\",OFFSET('Smelter Look-up'!$H$4,$V2477-4,0))","v":""},{"$f":"IF(ISERROR($V2477),\"\",OFFSET('Smelter Look-up'!$I$4,$V2477-4,0))","v":""},{"$nulls":7},{"$f":"IF(ISERROR($V2477),\"\",OFFSET('Smelter Look-up'!$C$4,$V2477-4,0)&\"\")","v":""},"",{"$f":"IF(B2477=\"\",\"\",IF(ISERROR(MATCH($J2477,SorP!$B$1:$B$5661,0)),\"\",INDIRECT(\"'SorP'!$A$\"&MATCH($J2477,SorP!$B$1:$B$5661,0))))","v":""},null,{"$f":"IF(C2477=\"\",NA(),MATCH($B2477&$C2477,'Smelter Look-up'!$J:$J,0))","v":{"$error":"#N/A"}},null,0,null,null,null,""]
[null,{"$f":"IF(LEN(A2478)=0,\"\",INDEX('Smelter Look-up'!$A:$A,MATCH($A2478,'Smelter Look-up'!$E:$E,0)))","v":""},{"$f":"IF(LEN(A2478)=0,\"\",INDEX('Smelter Look-up'!$C:$C,MATCH($A2478,'Smelter Look-up'!$E:$E,0)))","v":""},null,{"$f":"IF(ISERROR($V2478),\"\",OFFSET('Smelter Look-up'!$D$4,$V2478-4,0)&\"\")","v":""},{"$f":"IF(ISERROR($V2478),\"\",OFFSET('Smelter Look-up'!$E$4,$V2478-4,0))","v":""},{"$f":"IF(C2478=$X$4,\"Enter smelter details\",IF(ISERROR($V2478),\"\",OFFSET('Smelter Look-up'!$F$4,$V2478-4,0)))","v":""},{"$f":"IF(ISERROR($V2478),\"\",OFFSET('Smelter Look-up'!$G$4,$V2478-4,0))","v":""},{"$f":"IF(ISERROR($V2478),\"\",OFFSET('Smelter Look-up'!$H$4,$V2478-4,0))","v":""},{"$f":"IF(ISERROR($V2478),\"\",OFFSET('Smelter Look-up'!$I$4,$V2478-4,0))","v":""},{"$nulls":7},{"$f":"IF(ISERROR($V2478),\"\",OFFSET('Smelter Look-up'!$C$4,$V2478-4,0)&\"\")","v":""},"",{"$f":"IF(B2478=\"\",\"\",IF(ISERROR(MATCH($J2478,SorP!$B$1:$B$5661,0)),\"\",INDIRECT(\"'SorP'!$A$\"&MATCH($J2478,SorP!$B$1:$B$5661,0))))","v":""},null,{"$f":"IF(C2478=\"\",NA(),MATCH($B2478&$C2478,'Smelter Look-up'!$J:$J,0))","v":{"$error":"#N/A"}},null,0,null,null,null,""]
[null,{"$f":"IF(LEN(A2479)=0,\"\",INDEX('Smelter Look-up'!$A:$A,MATCH($A2479,'Smelter Look-up'!$E:$E,0)))","v":""},{"$f":"IF(LEN(A2479)=0,\"\",INDEX('Smelter Look-up'!$C:$C,MATCH($A2479,'Smelter Look-up'!$E:$E,0)))","v":""},null,{"$f":"IF(ISERROR($V2479),\"\",OFFSET('Smelter Look-up'!$D$4,$V2479-4,0)&\"\")","v":""},{"$f":"IF(ISERROR($V2479),\"\",OFFSET('Smelter Look-up'!$E$4,$V2479-4,0))","v":""},{"$f":"IF(C2479=$X$4,\"Enter smelter details\",IF(ISERROR($V2479),\"\",OFFSET('Smelter Look-up'!$F$4,$V2479-4,0)))","v":""},{"$f":"IF(ISERROR($V2479),\"\",OFFSET('Smelter Look-up'!$G$4,$V2479-4,0))","v":""},{"$f":"IF(ISERROR($V2479),\"\",OFFSET('Smelter Look-up'!$H$4,$V2479-4,0))","v":""},{"$f":"IF(ISERROR($V2479),\"\",OFFSET('Smelter Look-up'!$I$4,$V2479-4,0))","v":""},{"$nulls":7},{"$f":"IF(ISERROR($V2479),\"\",OFFSET('Smelter Look-up'!$C$4,$V2479-4,0)&\"\")","v":""},"",{"$f":"IF(B2479=\"\",\"\",IF(ISERROR(MATCH($J2479,SorP!$B$1:$B$5661,0)),\"\",INDIRECT(\"'SorP'!$A$\"&MATCH($J2479,SorP!$B$1:$B$5661,0))))","v":""},null,{"$f":"IF(C2479=\"\",NA(),MATCH($B2479&$C2479,'Smelter Look-up'!$J:$J,0))","v":{"$error":"#N/A"}},null,0,null,null,null,""]
[null,{"$f":"IF(LEN(A2480)=0,\"\",INDEX('Smelter Look-up'!$A:$A,MATCH($A2480,'Smelter Look-up'!$E:$E,0)))","v":""},{"$f":"IF(LEN(A2480)=0,\"\",INDEX('Smelter Look-up'!$C:$C,MATCH($A2480,'Smelter Look-up'!$E:$E,0)))","v":""},null,{"$f":"IF(ISERROR($V2480),\"\",OFFSET('Smelter Look-up'!$D$4,$V2480-4,0)&\"\")","v":""},{"$f":"IF(ISERROR($V2480),\"\",OFFSET('Smelter Look-up'!$E$4,$V2480-4,0))","v":""},{"$f":"IF(C2480=$X$4,\"Enter smelter details\",IF(ISERROR($V2480),\"\",OFFSET('Smelter Look-up'!$F$4,$V2480-4,0)))","v":""},{"$f":"IF(ISERROR($V2480),\"\",OFFSET('Smelter Look-up'!$G$4,$V2480-4,0))","v":""},{"$f":"IF(ISERROR($V2480),\"\",OFFSET('Smelter Look-up'!$H$4,$V2480-4,0))","v":""},{"$f":"IF(ISERROR($V2480),\"\",OFFSET('Smelter Look-up'!$I$4,$V2480-4,0))","v":""},{"$nulls":7},{"$f":"IF(ISERROR($V2480),\"\",OFFSET('Smelter Look-up'!$C$4,$V2480-4,0)&\"\")","v":""},"",{"$f":"IF(B2480=\"\",\"\",IF(ISERROR(MATCH($J2480,SorP!$B$1:$B$5661,0)),\"\",INDIRECT(\"'SorP'!$A$\"&MATCH($J2480,SorP!$B$1:$B$5661,0))))","v":""},null,{"$f":"IF(C2480=\"\",NA(),MATCH($B2480&$C2480,'Smelter Look-up'!$J:$J,0))","v":{"$error":"#N/A"}},null,0,null,null,null,""]
[null,{"$f":"IF(LEN(A2481)=0,\"\",INDEX('Smelter Look-up'!$A:$A,MATCH($A2481,'Smelter Look-up'!$E:$E,0)))","v":""},{"$f":"IF(LEN(A2481)=0,\"\",INDEX('Smelter Look-up'!$C:$C,MATCH($A2481,'Smelter Look-up'!$E:$E,0)))","v":""},null,{"$f":"IF(ISERROR($V2481),\"\",OFFSET('Smelter Look-up'!$D$4,$V2481-4,0)&\"\")","v":""},{"$f":"IF(ISERROR($V2481),\"\",OFFSET('Smelter Look-up'!$E$4,$V2481-4,0))","v":""},{"$f":"IF(C2481=$X$4,\"Enter smelter details\",IF(ISERROR($V2481),\"\",OFFSET('Smelter Look-up'!$F$4,$V2481-4,0)))","v":""},{"$f":"IF(ISERROR($V2481),\"\",OFFSET('Smelter Look-up'!$G$4,$V2481-4,0))","v":""},{"$f":"IF(ISERROR($V2481),\"\",OFFSET('Smelter Look-up'!$H$4,$V2481-4,0))","v":""},{"$f":"IF(ISERROR($V2481),\"\",OFFSET('Smelter Look-up'!$I$4,$V2481-4,0))","v":""},{"$nulls":7},{"$f":"IF(ISERROR($V2481),\"\",OFFSET('Smelter Look-up'!$C$4,$V2481-4,0)&\"\")","v":""},"",{"$f":"IF(B2481=\"\",\"\",IF(ISERROR(MATCH($J2481,SorP!$B$1:$B$5661,0)),\"\",INDIRECT(\"'SorP'!$A$\"&MATCH($J2481,SorP!$B$1:$B$5661,0))))","v":""},null,{"$f":"IF(C2481=\"\",NA(),MATCH($B2481&$C2481,'Smelter Look-up'!$J:$J,0))","v":{"$error":"#N/A"}},null,0,null,null,null,""]
[null,{"$f":"IF(LEN(A2482)=0,\"\",INDEX('Smelter Look-up'!$A:$A,MATCH($A2482,'Smelter Look-up'!$E:$E,0)))","v":""},{"$f":"IF(LEN(A2482)=0,\"\",INDEX('Smelter Look-up'!$C:$C,MATCH($A2482,'Smelter Look-up'!$E:$E,0)))","v":""},null,{"$f":"IF(ISERROR($V2482),\"\",OFFSET('Smelter Look-up'!$D$4,$V2482-4,0)&\"\")","v":""},{"$f":"IF(ISERROR($V2482),\"\",OFFSET('Smelter Look-up'!$E$4,$V2482-4,0))","v":""},{"$f":"IF(C2482=$X$4,\"Enter smelter details\",IF(ISERROR($V2482),\"\",OFFSET('Smelter Look-up'!$F$4,$V2482-4,0)))","v":""},{"$f":"IF(ISERROR($V2482),\"\",OFFSET('Smelter Look-up'!$G$4,$V2482-4,0))","v":""},{"$f":"IF(ISERROR($V2482),\"\",OFFSET('Smelter Look-up'!$H$4,$V2482-4,0))","v":""},{"$f":"IF(ISERROR($V2482),\"\",OFFSET('Smelter Look-up'!$I$4,$V2482-4,0))","v":""},{"$nulls":7},{"$f":"IF(ISERROR($V2482),\"\",OFFSET('Smelter Look-up'!$C$4,$V2482-4,0)&\"\")","v":""},"",{"$f":"IF(B2482=\"\",\"\",IF(ISERROR(MATCH($J2482,SorP!$B$1:$B$5661,0)),\"\",INDIRECT(\"'SorP'!$A$\"&MATCH($J2482,SorP!$B$1:$B$5661,0))))","v":""},null,{"$f":"IF(C2482=\"\",NA(),MATCH($B2482&$C2482,'Smelter Look-up'!$J:$J,0))","v":{"$error":"#N/A"}},null,0,null,null,null,""]
[null,{"$f":"IF(LEN(A2483)=0,\"\",INDEX('Smelter Look-up'!$A:$A,MATCH($A2483,'Smelter Look-up'!$E:$E,0)))","v":""},{"$f":"IF(LEN(A2483)=0,\"\",INDEX('Smelter Look-up'!$C:$C,MATCH($A2483,'Smelter Look-up'!$E:$E,0)))","v":""},null,{"$f":"IF(ISERROR($V2483),\"\",OFFSET('Smelter Look-up'!$D$4,$V2483-4,0)&\"\")","v":""},{"$f":"IF(ISERROR($V2483),\"\",OFFSET('Smelter Look-up'!$E$4,$V2483-4,0))","v":""},{"$f":"IF(C2483=$X$4,\"Enter smelter details\",IF(ISERROR($V2483),\"\",OFFSET('Smelter Look-up'!$F$4,$V2483-4,0)))","v":""},{"$f":"IF(ISERROR($V2483),\"\",OFFSET('Smelter Look-up'!$G$4,$V2483-4,0))","v":""},{"$f":"IF(ISERROR($V2483),\"\",OFFSET('Smelter Look-up'!$H$4,$V2483-4,0))","v":""},{"$f":"IF(ISERROR($V2483),\"\",OFFSET('Smelter Look-up'!$I$4,$V2483-4,0))","v":""},{"$nulls":7},{"$f":"IF(ISERROR($V2483),\"\",OFFSET('Smelter Look-up'!$C$4,$V2483-4,0)&\"\")","v":""},"",{"$f":"IF(B2483=\"\",\"\",IF(ISERROR(MATCH($J2483,SorP!$B$1:$B$5661,0)),\"\",INDIRECT(\"'SorP'!$A$\"&MATCH($J2483,SorP!$B$1:$B$5661,0))))","v":""},null,{"$f":"IF(C2483=\"\",NA(),MATCH($B2483&$C2483,'Smelter Look-up'!$J:$J,0))","v":{"$error":"#N/A"}},null,0,null,null,null,""]
[null,{"$f":"IF(LEN(A2484)=0,\"\",INDEX('Smelter Look-up'!$A:$A,MATCH($A2484,'Smelter Look-up'!$E:$E,0)))","v":""},{"$f":"IF(LEN(A2484)=0,\"\",INDEX('Smelter Look-up'!$C:$C,MATCH($A2484,'Smelter Look-up'!$E:$E,0)))","v":""},null,{"$f":"IF(ISERROR($V2484),\"\",OFFSET('Smelter Look-up'!$D$4,$V2484-4,0)&\"\")","v":""},{"$f":"IF(ISERROR($V2484),\"\",OFFSET('Smelter Look-up'!$E$4,$V2484-4,0))","v":""},{"$f":"IF(C2484=$X$4,\"Enter smelter details\",IF(ISERROR($V2484),\"\",OFFSET('Smelter Look-up'!$F$4,$V2484-4,0)))","v":""},{"$f":"IF(ISERROR($V2484),\"\",OFFSET('Smelter Look-up'!$G$4,$V2484-4,0))","v":""},{"$f":"IF(ISERROR($V2484),\"\",OFFSET('Smelter Look-up'!$H$4,$V2484-4,0))","v":""},{"$f":"IF(ISERROR($V2484),\"\",OFFSET('Smelter Look-up'!$I$4,$V2484-4,0))","v":""},{"$nulls":7},{"$f":"IF(ISERROR($V2484),\"\",OFFSET('Smelter Look-up'!$C$4,$V2484-4,0)&\"\")","v":""},"",{"$f":"IF(B2484=\"\",\"\",IF(ISERROR(MATCH($J2484,SorP!$B$1:$B$5661,0)),\"\",INDIRECT(\"'SorP'!$A$\"&MATCH($J2484,SorP!$B$1:$B$5661,0))))","v":""},null,{"$f":"IF(C2484=\"\",NA(),MATCH($B2484&$C2484,'Smelter Look-up'!$J:$J,0))","v":{"$error":"#N/A"}},null,0,null,null,null,""]
[null,{"$f":"IF(LEN(A2485)=0,\"\",INDEX('Smelter Look-up'!$A:$A,MATCH($A2485,'Smelter Look-up'!$E:$E,0)))","v":""},{"$f":"IF(LEN(A2485)=0,\"\",INDEX('Smelter Look-up'!$C:$C,MATCH($A2485,'Smelter Look-up'!$E:$E,0)))","v":""},null,{"$f":"IF(ISERROR($V2485),\"\",OFFSET('Smelter Look-up'!$D$4,$V2485-4,0)&\"\")","v":""},{"$f":"IF(ISERROR($V2485),\"\",OFFSET('Smelter Look-up'!$E$4,$V2485-4,0))","v":""},{"$f":"IF(C2485=$X$4,\"Enter smelter details\",IF(ISERROR($V2485),\"\",OFFSET('Smelter Look-up'!$F$4,$V2485-4,0)))","v":""},{"$f":"IF(ISERROR($V2485),\"\",OFFSET('Smelter Look-up'!$G$4,$V2485-4,0))","v":""},{"$f":"IF(ISERROR($V2485),\"\",OFFSET('Smelter Look-up'!$H$4,$V2485-4,0))","v":""},{"$f":"IF(ISERROR($V2485),\"\",OFFSET('Smelter Look-up'!$I$4,$V2485-4,0))","v":""},{"$nulls":7},{"$f":"IF(ISERROR($V2485),\"\",OFFSET('Smelter Look-up'!$C$4,$V2485-4,0)&\"\")","v":""},"",{"$f":"IF(B2485=\"\",\"\",IF(ISERROR(MATCH($J2485,SorP!$B$1:$B$5661,0)),\"\",INDIRECT(\"'SorP'!$A$\"&MATCH($J2485,SorP!$B$1:$B$5661,0))))","v":""},null,{"$f":"IF(C2485=\"\",NA(),MATCH($B2485&$C2485,'Smelter Look-up'!$J:$J,0))","v":{"$error":"#N/A"}},null,0,null,null,null,""]
[null,{"$f":"IF(LEN(A2486)=0,\"\",INDEX('Smelter Look-up'!$A:$A,MATCH($A2486,'Smelter Look-up'!$E:$E,0)))","v":""},{"$f":"IF(LEN(A2486)=0,\"\",INDEX('Smelter Look-up'!$C:$C,MATCH($A2486,'Smelter Look-up'!$E:$E,0)))","v":""},null,{"$f":"IF(ISERROR($V2486),\"\",OFFSET('Smelter Look-up'!$D$4,$V2486-4,0)&\"\")","v":""},{"$f":"IF(ISERROR($V2486),\"\",OFFSET('Smelter Look-up'!$E$4,$V2486-4,0))","v":""},{"$f":"IF(C2486=$X$4,\"Enter smelter details\",IF(ISERROR($V2486),\"\",OFFSET('Smelter Look-up'!$F$4,$V2486-4,0)))","v":""},{"$f":"IF(ISERROR($V2486),\"\",OFFSET('Smelter Look-up'!$G$4,$V2486-4,0))","v":""},{"$f":"IF(ISERROR($V2486),\"\",OFFSET('Smelter Look-up'!$H$4,$V2486-4,0))","v":""},{"$f":"IF(ISERROR($V2486),\"\",OFFSET('Smelter Look-up'!$I$4,$V2486-4,0))","v":""},{"$nulls":7},{"$f":"IF(ISERROR($V2486),\"\",OFFSET('Smelter Look-up'!$C$4,$V2486-4,0)&\"\")","v":""},"",{"$f":"IF(B2486=\"\",\"\",IF(ISERROR(MATCH($J2486,SorP!$B$1:$B$5661,0)),\"\",INDIRECT(\"'SorP'!$A$\"&MATCH($J2486,SorP!$B$1:$B$5661,0))))","v":""},null,{"$f":"IF(C2486=\"\",NA(),MATCH($B2486&$C2486,'Smelter Look-up'!$J:$J,0))","v":{"$error":"#N/A"}},null,0,null,null,null,""]
[null,{"$f":"IF(LEN(A2487)=0,\"\",INDEX('Smelter Look-up'!$A:$A,MATCH($A2487,'Smelter Look-up'!$E:$E,0)))","v":""},{"$f":"IF(LEN(A2487)=0,\"\",INDEX('Smelter Look-up'!$C:$C,MATCH($A2487,'Smelter Look-up'!$E:$E,0)))","v":""},null,{"$f":"IF(ISERROR($V2487),\"\",OFFSET('Smelter Look-up'!$D$4,$V2487-4,0)&\"\")","v":""},{"$f":"IF(ISERROR($V2487),\"\",OFFSET('Smelter Look-up'!$E$4,$V2487-4,0))","v":""},{"$f":"IF(C2487=$X$4,\"Enter smelter details\",IF(ISERROR($V2487),\"\",OFFSET('Smelter Look-up'!$F$4,$V2487-4,0)))","v":""},{"$f":"IF(ISERROR($V2487),\"\",OFFSET('Smelter Look-up'!$G$4,$V2487-4,0))","v":""},{"$f":"IF(ISERROR($V2487),\"\",OFFSET('Smelter Look-up'!$H$4,$V2487-4,0))","v":""},{"$f":"IF(ISERROR($V2487),\"\",OFFSET('Smelter Look-up'!$I$4,$V2487-4,0))","v":""},{"$nulls":7},{"$f":"IF(ISERROR($V2487),\"\",OFFSET('Smelter Look-up'!$C$4,$V2487-4,0)&\"\")","v":""},"",{"$f":"IF(B2487=\"\",\"\",IF(ISERROR(MATCH($J2487,SorP!$B$1:$B$5661,0)),\"\",INDIRECT(\"'SorP'!$A$\"&MATCH($J2487,SorP!$B$1:$B$5661,0))))","v":""},null,{"$f":"IF(C2487=\"\",NA(),MATCH($B2487&$C2487,'Smelter Look-up'!$J:$J,0))","v":{"$error":"#N/A"}},null,0,null,null,null,""]
[null,{"$f":"IF(LEN(A2488)=0,\"\",INDEX('Smelter Look-up'!$A:$A,MATCH($A2488,'Smelter Look-up'!$E:$E,0)))","v":""},{"$f":"IF(LEN(A2488)=0,\"\",INDEX('Smelter Look-up'!$C:$C,MATCH($A2488,'Smelter Look-up'!$E:$E,0)))","v":""},null,{"$f":"IF(ISERROR($V2488),\"\",OFFSET('Smelter Look-up'!$D$4,$V2488-4,0)&\"\")","v":""},{"$f":"IF(ISERROR($V2488),\"\",OFFSET('Smelter Look-up'!$E$4,$V2488-4,0))","v":""},{"$f":"IF(C2488=$X$4,\"Enter smelter details\",IF(ISERROR($V2488),\"\",OFFSET('Smelter Look-up'!$F$4,$V2488-4,0)))","v":""},{"$f":"IF(ISERROR($V2488),\"\",OFFSET('Smelter Look-up'!$G$4,$V2488-4,0))","v":""},{"$f":"IF(ISERROR($V2488),\"\",OFFSET('Smelter Look-up'!$H$4,$V2488-4,0))","v":""},{"$f":"IF(ISERROR($V2488),\"\",OFFSET('Smelter Look-up'!$I$4,$V2488-4,0))","v":""},{"$nulls":7},{"$f":"IF(ISERROR($V2488),\"\",OFFSET('Smelter Look-up'!$C$4,$V2488-4,0)&\"\")","v":""},"",{"$f":"IF(B2488=\"\",\"\",IF(ISERROR(MATCH($J2488,SorP!$B$1:$B$5661,0)),\"\",INDIRECT(\"'SorP'!$A$\"&MATCH($J2488,SorP!$B$1:$B$5661,0))))","v":""},null,{"$f":"IF(C2488=\"\",NA(),MATCH($B2488&$C2488,'Smelter Look-up'!$J:$J,0))","v":{"$error":"#N/A"}},null,0,null,null,null,""]
[null,{"$f":"IF(LEN(A2489)=0,\"\",INDEX('Smelter Look-up'!$A:$A,MATCH($A2489,'Smelter Look-up'!$E:$E,0)))","v":""},{"$f":"IF(LEN(A2489)=0,\"\",INDEX('Smelter Look-up'!$C:$C,MATCH($A2489,'Smelter Look-up'!$E:$E,0)))","v":""},null,{"$f":"IF(ISERROR($V2489),\"\",OFFSET('Smelter Look-up'!$D$4,$V2489-4,0)&\"\")","v":""},{"$f":"IF(ISERROR($V2489),\"\",OFFSET('Smelter Look-up'!$E$4,$V2489-4,0))","v":""},{"$f":"IF(C2489=$X$4,\"Enter smelter details\",IF(ISERROR($V2489),\"\",OFFSET('Smelter Look-up'!$F$4,$V2489-4,0)))","v":""},{"$f":"IF(ISERROR($V2489),\"\",OFFSET('Smelter Look-up'!$G$4,$V2489-4,0))","v":""},{"$f":"IF(ISERROR($V2489),\"\",OFFSET('Smelter Look-up'!$H$4,$V2489-4,0))","v":""},{"$f":"IF(ISERROR($V2489),\"\",OFFSET('Smelter Look-up'!$I$4,$V2489-4,0))","v":""},{"$nulls":7},{"$f":"IF(ISERROR($V2489),\"\",OFFSET('Smelter Look-up'!$C$4,$V2489-4,0)&\"\")","v":""},"",{"$f":"IF(B2489=\"\",\"\",IF(ISERROR(MATCH($J2489,SorP!$B$1:$B$5661,0)),\"\",INDIRECT(\"'SorP'!$A$\"&MATCH($J2489,SorP!$B$1:$B$5661,0))))","v":""},null,{"$f":"IF(C2489=\"\",NA(),MATCH($B2489&$C2489,'Smelter Look-up'!$J:$J,0))","v":{"$error":"#N/A"}},null,0,null,null,null,""]
[null,{"$f":"IF(LEN(A2490)=0,\"\",INDEX('Smelter Look-up'!$A:$A,MATCH($A2490,'Smelter Look-up'!$E:$E,0)))","v":""},{"$f":"IF(LEN(A2490)=0,\"\",INDEX('Smelter Look-up'!$C:$C,MATCH($A2490,'Smelter Look-up'!$E:$E,0)))","v":""},null,{"$f":"IF(ISERROR($V2490),\"\",OFFSET('Smelter Look-up'!$D$4,$V2490-4,0)&\"\")","v":""},{"$f":"IF(ISERROR($V2490),\"\",OFFSET('Smelter Look-up'!$E$4,$V2490-4,0))","v":""},{"$f":"IF(C2490=$X$4,\"Enter smelter details\",IF(ISERROR($V2490),\"\",OFFSET('Smelter Look-up'!$F$4,$V2490-4,0)))","v":""},{"$f":"IF(ISERROR($V2490),\"\",OFFSET('Smelter Look-up'!$G$4,$V2490-4,0))","v":""},{"$f":"IF(ISERROR($V2490),\"\",OFFSET('Smelter Look-up'!$H$4,$V2490-4,0))","v":""},{"$f":"IF(ISERROR($V2490),\"\",OFFSET('Smelter Look-up'!$I$4,$V2490-4,0))","v":""},{"$nulls":7},{"$f":"IF(ISERROR($V2490),\"\",OFFSET('Smelter Look-up'!$C$4,$V2490-4,0)&\"\")","v":""},"",{"$f":"IF(B2490=\"\",\"\",IF(ISERROR(MATCH($J2490,SorP!$B$1:$B$5661,0)),\"\",INDIRECT(\"'SorP'!$A$\"&MATCH($J2490,SorP!$B$1:$B$5661,0))))","v":""},null,{"$f":"IF(C2490=\"\",NA(),MATCH($B2490&$C2490,'Smelter Look-up'!$J:$J,0))","v":{"$error":"#N/A"}},null,0,null,null,null,""]
[null,{"$f":"IF(LEN(A2491)=0,\"\",INDEX('Smelter Look-up'!$A:$A,MATCH($A2491,'Smelter Look-up'!$E:$E,0)))","v":""},{"$f":"IF(LEN(A2491)=0,\"\",INDEX('Smelter Look-up'!$C:$C,MATCH($A2491,'Smelter Look-up'!$E:$E,0)))","v":""},null,{"$f":"IF(ISERROR($V2491),\"\",OFFSET('Smelter Look-up'!$D$4,$V2491-4,0)&\"\")","v":""},{"$f":"IF(ISERROR($V2491),\"\",OFFSET('Smelter Look-up'!$E$4,$V2491-4,0))","v":""},{"$f":"IF(C2491=$X$4,\"Enter smelter details\",IF(ISERROR($V2491),\"\",OFFSET('Smelter Look-up'!$F$4,$V2491-4,0)))","v":""},{"$f":"IF(ISERROR($V2491),\"\",OFFSET('Smelter Look-up'!$G$4,$V2491-4,0))","v":""},{"$f":"IF(ISERROR($V2491),\"\",OFFSET('Smelter Look-up'!$H$4,$V2491-4,0))","v":""},{"$f":"IF(ISERROR($V2491),\"\",OFFSET('Smelter Look-up'!$I$4,$V2491-4,0))","v":""},{"$nulls":7},{"$f":"IF(ISERROR($V2491),\"\",OFFSET('Smelter Look-up'!$C$4,$V2491-4,0)&\"\")","v":""},"",{"$f":"IF(B2491=\"\",\"\",IF(ISERROR(MATCH($J2491,SorP!$B$1:$B$5661,0)),\"\",INDIRECT(\"'SorP'!$A$\"&MATCH($J2491,SorP!$B$1:$B$5661,0))))","v":""},null,{"$f":"IF(C2491=\"\",NA(),MATCH($B2491&$C2491,'Smelter Look-up'!$J:$J,0))","v":{"$error":"#N/A"}},null,0,null,null,null,""]
[null,{"$f":"IF(LEN(A2492)=0,\"\",INDEX('Smelter Look-up'!$A:$A,MATCH($A2492,'Smelter Look-up'!$E:$E,0)))","v":""},{"$f":"IF(LEN(A2492)=0,\"\",INDEX('Smelter Look-up'!$C:$C,MATCH($A2492,'Smelter Look-up'!$E:$E,0)))","v":""},null,{"$f":"IF(ISERROR($V2492),\"\",OFFSET('Smelter Look-up'!$D$4,$V2492-4,0)&\"\")","v":""},{"$f":"IF(ISERROR($V2492),\"\",OFFSET('Smelter Look-up'!$E$4,$V2492-4,0))","v":""},{"$f":"IF(C2492=$X$4,\"Enter smelter details\",IF(ISERROR($V2492),\"\",OFFSET('Smelter Look-up'!$F$4,$V2492-4,0)))","v":""},{"$f":"IF(ISERROR($V2492),\"\",OFFSET('Smelter Look-up'!$G$4,$V2492-4,0))","v":""},{"$f":"IF(ISERROR($V2492),\"\",OFFSET('Smelter Look-up'!$H$4,$V2492-4,0))","v":""},{"$f":"IF(ISERROR($V2492),\"\",OFFSET('Smelter Look-up'!$I$4,$V2492-4,0))","v":""},{"$nulls":7},{"$f":"IF(ISERROR($V2492),\"\",OFFSET('Smelter Look-up'!$C$4,$V2492-4,0)&\"\")","v":""},"",{"$f":"IF(B2492=\"\",\"\",IF(ISERROR(MATCH($J2492,SorP!$B$1:$B$5661,0)),\"\",INDIRECT(\"'SorP'!$A$\"&MATCH($J2492,SorP!$B$1:$B$5661,0))))","v":""},null,{"$f":"IF(C2492=\"\",NA(),MATCH($B2492&$C2492,'Smelter Look-up'!$J:$J,0))","v":{"$error":"#N/A"}},null,0,null,null,null,""]
[null,{"$f":"IF(LEN(A2493)=0,\"\",INDEX('Smelter Look-up'!$A:$A,MATCH($A2493,'Smelter Look-up'!$E:$E,0)))","v":""},{"$f":"IF(LEN(A2493)=0,\"\",INDEX('Smelter Look-up'!$C:$C,MATCH($A2493,'Smelter Look-up'!$E:$E,0)))","v":""},null,{"$f":"IF(ISERROR($V2493),\"\",OFFSET('Smelter Look-up'!$D$4,$V2493-4,0)&\"\")","v":""},{"$f":"IF(ISERROR($V2493),\"\",OFFSET('Smelter Look-up'!$E$4,$V2493-4,0))","v":""},{"$f":"IF(C2493=$X$4,\"Enter smelter details\",IF(ISERROR($V2493),\"\",OFFSET('Smelter Look-up'!$F$4,$V2493-4,0)))","v":""},{"$f":"IF(ISERROR($V2493),\"\",OFFSET('Smelter Look-up'!$G$4,$V2493-4,0))","v":""},{"$f":"IF(ISERROR($V2493),\"\",OFFSET('Smelter Look-up'!$H$4,$V2493-4,0))","v":""},{"$f":"IF(ISERROR($V2493),\"\",OFFSET('Smelter Look-up'!$I$4,$V2493-4,0))","v":""},{"$nulls":7},{"$f":"IF(ISERROR($V2493),\"\",OFFSET('Smelter Look-up'!$C$4,$V2493-4,0)&\"\")","v":""},"",{"$f":"IF(B2493=\"\",\"\",IF(ISERROR(MATCH($J2493,SorP!$B$1:$B$5661,0)),\"\",INDIRECT(\"'SorP'!$A$\"&MATCH($J2493,SorP!$B$1:$B$5661,0))))","v":""},null,{"$f":"IF(C2493=\"\",NA(),MATCH($B2493&$C2493,'Smelter Look-up'!$J:$J,0))","v":{"$error":"#N/A"}},null,0,null,null,null,""]
[null,{"$f":"IF(LEN(A2494)=0,\"\",INDEX('Smelter Look-up'!$A:$A,MATCH($A2494,'Smelter Look-up'!$E:$E,0)))","v":""},{"$f":"IF(LEN(A2494)=0,\"\",INDEX('Smelter Look-up'!$C:$C,MATCH($A2494,'Smelter Look-up'!$E:$E,0)))","v":""},null,{"$f":"IF(ISERROR($V2494),\"\",OFFSET('Smelter Look-up'!$D$4,$V2494-4,0)&\"\")","v":""},{"$f":"IF(ISERROR($V2494),\"\",OFFSET('Smelter Look-up'!$E$4,$V2494-4,0))","v":""},{"$f":"IF(C2494=$X$4,\"Enter smelter details\",IF(ISERROR($V2494),\"\",OFFSET('Smelter Look-up'!$F$4,$V2494-4,0)))","v":""},{"$f":"IF(ISERROR($V2494),\"\",OFFSET('Smelter Look-up'!$G$4,$V2494-4,0))","v":""},{"$f":"IF(ISERROR($V2494),\"\",OFFSET('Smelter Look-up'!$H$4,$V2494-4,0))","v":""},{"$f":"IF(ISERROR($V2494),\"\",OFFSET('Smelter Look-up'!$I$4,$V2494-4,0))","v":""},{"$nulls":7},{"$f":"IF(ISERROR($V2494),\"\",OFFSET('Smelter Look-up'!$C$4,$V2494-4,0)&\"\")","v":""},"",{"$f":"IF(B2494=\"\",\"\",IF(ISERROR(MATCH($J2494,SorP!$B$1:$B$5661,0)),\"\",INDIRECT(\"'SorP'!$A$\"&MATCH($J2494,SorP!$B$1:$B$5661,0))))","v":""},null,{"$f":"IF(C2494=\"\",NA(),MATCH($B2494&$C2494,'Smelter Look-up'!$J:$J,0))","v":{"$error":"#N/A"}},null,0,null,null,null,""]
[null,{"$f":"IF(LEN(A2495)=0,\"\",INDEX('Smelter Look-up'!$A:$A,MATCH($A2495,'Smelter Look-up'!$E:$E,0)))","v":""},{"$f":"IF(LEN(A2495)=0,\"\",INDEX('Smelter Look-up'!$C:$C,MATCH($A2495,'Smelter Look-up'!$E:$E,0)))","v":""},null,{"$f":"IF(ISERROR($V2495),\"\",OFFSET('Smelter Look-up'!$D$4,$V2495-4,0)&\"\")","v":""},{"$f":"IF(ISERROR($V2495),\"\",OFFSET('Smelter Look-up'!$E$4,$V2495-4,0))","v":""},{"$f":"IF(C2495=$X$4,\"Enter smelter details\",IF(ISERROR($V2495),\"\",OFFSET('Smelter Look-up'!$F$4,$V2495-4,0)))","v":""},{"$f":"IF(ISERROR($V2495),\"\",OFFSET('Smelter Look-up'!$G$4,$V2495-4,0))","v":""},{"$f":"IF(ISERROR($V2495),\"\",OFFSET('Smelter Look-up'!$H$4,$V2495-4,0))","v":""},{"$f":"IF(ISERROR($V2495),\"\",OFFSET('Smelter Look-up'!$I$4,$V2495-4,0))","v":""},{"$nulls":7},{"$f":"IF(ISERROR($V2495),\"\",OFFSET('Smelter Look-up'!$C$4,$V2495-4,0)&\"\")","v":""},"",{"$f":"IF(B2495=\"\",\"\",IF(ISERROR(MATCH($J2495,SorP!$B$1:$B$5661,0)),\"\",INDIRECT(\"'SorP'!$A$\"&MATCH($J2495,SorP!$B$1:$B$5661,0))))","v":""},null,{"$f":"IF(C2495=\"\",NA(),MATCH($B2495&$C2495,'Smelter Look-up'!$J:$J,0))","v":{"$error":"#N/A"}},null,{"$f":"IF(AND(C2495=\"Smelter not listed\",OR(LEN(D2495)=0,LEN(E2495)=0)),1,0)","v":0},null,null,null,{"$f":"B2495&C2495","v":""}]
[null,{"$f":"IF(LEN(A2496)=0,\"\",INDEX('Smelter Look-up'!$A:$A,MATCH($A2496,'Smelter Look-up'!$E:$E,0)))","v":""},{"$f":"IF(LEN(A2496)=0,\"\",INDEX('Smelter Look-up'!$C:$C,MATCH($A2496,'Smelter Look-up'!$E:$E,0)))","v":""},null,{"$f":"IF(ISERROR($V2496),\"\",OFFSET('Smelter Look-up'!$D$4,$V2496-4,0)&\"\")","v":""},{"$f":"IF(ISERROR($V2496),\"\",OFFSET('Smelter Look-up'!$E$4,$V2496-4,0))","v":""},{"$f":"IF(C2496=$X$4,\"Enter smelter details\",IF(ISERROR($V2496),\"\",OFFSET('Smelter Look-up'!$F$4,$V2496-4,0)))","v":""},{"$f":"IF(ISERROR($V2496),\"\",OFFSET('Smelter Look-up'!$G$4,$V2496-4,0))","v":""},{"$f":"IF(ISERROR($V2496),\"\",OFFSET('Smelter Look-up'!$H$4,$V2496-4,0))","v":""},{"$f":"IF(ISERROR($V2496),\"\",OFFSET('Smelter Look-up'!$I$4,$V2496-4,0))","v":""},{"$nulls":7},{"$f":"IF(ISERROR($V2496),\"\",OFFSET('Smelter Look-up'!$C$4,$V2496-4,0)&\"\")","v":""},"",{"$f":"IF(B2496=\"\",\"\",IF(ISERROR(MATCH($J2496,SorP!$B$1:$B$5661,0)),\"\",INDIRECT(\"'SorP'!$A$\"&MATCH($J2496,SorP!$B$1:$B$5661,0))))","v":""},null,{"$f":"IF(C2496=\"\",NA(),MATCH($B2496&$C2496,'Smelter Look-up'!$J:$J,0))","v":{"$error":"#N/A"}},null,0,null,null,null,""]
[null,{"$f":"IF(LEN(A2497)=0,\"\",INDEX('Smelter Look-up'!$A:$A,MATCH($A2497,'Smelter Look-up'!$E:$E,0)))","v":""},{"$f":"IF(LEN(A2497)=0,\"\",INDEX('Smelter Look-up'!$C:$C,MATCH($A2497,'Smelter Look-up'!$E:$E,0)))","v":""},null,{"$f":"IF(ISERROR($V2497),\"\",OFFSET('Smelter Look-up'!$D$4,$V2497-4,0)&\"\")","v":""},{"$f":"IF(ISERROR($V2497),\"\",OFFSET('Smelter Look-up'!$E$4,$V2497-4,0))","v":""},{"$f":"IF(C2497=$X$4,\"Enter smelter details\",IF(ISERROR($V2497),\"\",OFFSET('Smelter Look-up'!$F$4,$V2497-4,0)))","v":""},{"$f":"IF(ISERROR($V2497),\"\",OFFSET('Smelter Look-up'!$G$4,$V2497-4,0))","v":""},{"$f":"IF(ISERROR($V2497),\"\",OFFSET('Smelter Look-up'!$H$4,$V2497-4,0))","v":""},{"$f":"IF(ISERROR($V2497),\"\",OFFSET('Smelter Look-up'!$I$4,$V2497-4,0))","v":""},{"$nulls":7},{"$f":"IF(ISERROR($V2497),\"\",OFFSET('Smelter Look-up'!$C$4,$V2497-4,0)&\"\")","v":""},"",{"$f":"IF(B2497=\"\",\"\",IF(ISERROR(MATCH($J2497,SorP!$B$1:$B$5661,0)),\"\",INDIRECT(\"'SorP'!$A$\"&MATCH($J2497,SorP!$B$1:$B$5661,0))))","v":""},null,{"$f":"IF(C2497=\"\",NA(),MATCH($B2497&$C2497,'Smelter Look-up'!$J:$J,0))","v":{"$error":"#N/A"}},null,0,null,null,null,""]
[null,{"$f":"IF(LEN(A2498)=0,\"\",INDEX('Smelter Look-up'!$A:$A,MATCH($A2498,'Smelter Look-up'!$E:$E,0)))","v":""},{"$f":"IF(LEN(A2498)=0,\"\",INDEX('Smelter Look-up'!$C:$C,MATCH($A2498,'Smelter Look-up'!$E:$E,0)))","v":""},null,{"$f":"IF(ISERROR($V2498),\"\",OFFSET('Smelter Look-up'!$D$4,$V2498-4,0)&\"\")","v":""},{"$f":"IF(ISERROR($V2498),\"\",OFFSET('Smelter Look-up'!$E$4,$V2498-4,0))","v":""},{"$f":"IF(C2498=$X$4,\"Enter smelter details\",IF(ISERROR($V2498),\"\",OFFSET('Smelter Look-up'!$F$4,$V2498-4,0)))","v":""},{"$f":"IF(ISERROR($V2498),\"\",OFFSET('Smelter Look-up'!$G$4,$V2498-4,0))","v":""},{"$f":"IF(ISERROR($V2498),\"\",OFFSET('Smelter Look-up'!$H$4,$V2498-4,0))","v":""},{"$f":"IF(ISERROR($V2498),\"\",OFFSET('Smelter Look-up'!$I$4,$V2498-4,0))","v":""},{"$nulls":7},{"$f":"IF(ISERROR($V2498),\"\",OFFSET('Smelter Look-up'!$C$4,$V2498-4,0)&\"\")","v":""},{"$f":"IF(B2498=\"\",\"\",IF(ISERROR(MATCH($E2498,CL,0)),\"Unknown\",INDIRECT(\"'C'!$A$\"&MATCH($E2498,CL,0)+1)))","v":""},{"$f":"IF(B2498=\"\",\"\",IF(ISERROR(MATCH($J2498,SorP!$B$1:$B$5661,0)),\"\",INDIRECT(\"'SorP'!$A$\"&MATCH($J2498,SorP!$B$1:$B$5661,0))))","v":""},null,{"$f":"IF(C2498=\"\",NA(),MATCH($B2498&$C2498,'Smelter Look-up'!$J:$J,0))","v":{"$error":"#N/A"}},null,0,null,null,null,""]
[null,{"$f":"IF(LEN(A2499)=0,\"\",INDEX('Smelter Look-up'!$A:$A,MATCH($A2499,'Smelter Look-up'!$E:$E,0)))","v":""},{"$f":"IF(LEN(A2499)=0,\"\",INDEX('Smelter Look-up'!$C:$C,MATCH($A2499,'Smelter Look-up'!$E:$E,0)))","v":""},null,{"$f":"IF(ISERROR($V2499),\"\",OFFSET('Smelter Look-up'!$D$4,$V2499-4,0)&\"\")","v":""},{"$f":"IF(ISERROR($V2499),\"\",OFFSET('Smelter Look-up'!$E$4,$V2499-4,0))","v":""},{"$f":"IF(C2499=$X$4,\"Enter smelter details\",IF(ISERROR($V2499),\"\",OFFSET('Smelter Look-up'!$F$4,$V2499-4,0)))","v":""},{"$f":"IF(ISERROR($V2499),\"\",OFFSET('Smelter Look-up'!$G$4,$V2499-4,0))","v":""},{"$f":"IF(ISERROR($V2499),\"\",OFFSET('Smelter Look-up'!$H$4,$V2499-4,0))","v":""},{"$f":"IF(ISERROR($V2499),\"\",OFFSET('Smelter Look-up'!$I$4,$V2499-4,0))","v":""},{"$nulls":7},{"$f":"IF(ISERROR($V2499),\"\",OFFSET('Smelter Look-up'!$C$4,$V2499-4,0)&\"\")","v":""},"",{"$f":"IF(B2499=\"\",\"\",IF(ISERROR(MATCH($J2499,SorP!$B$1:$B$5661,0)),\"\",INDIRECT(\"'SorP'!$A$\"&MATCH($J2499,SorP!$B$1:$B$5661,0))))","v":""},null,{"$f":"IF(C2499=\"\",NA(),MATCH($B2499&$C2499,'Smelter Look-up'!$J:$J,0))","v":{"$error":"#N/A"}},null,0,null,null,null,""]
[null,{"$f":"IF(LEN(A2500)=0,\"\",INDEX('Smelter Look-up'!$A:$A,MATCH($A2500,'Smelter Look-up'!$E:$E,0)))","v":""},{"$f":"IF(LEN(A2500)=0,\"\",INDEX('Smelter Look-up'!$C:$C,MATCH($A2500,'Smelter Look-up'!$E:$E,0)))","v":""},null,{"$f":"IF(ISERROR($V2500),\"\",OFFSET('Smelter Look-up'!$D$4,$V2500-4,0)&\"\")","v":""},{"$f":"IF(ISERROR($V2500),\"\",OFFSET('Smelter Look-up'!$E$4,$V2500-4,0))","v":""},{"$f":"IF(C2500=$X$4,\"Enter smelter details\",IF(ISERROR($V2500),\"\",OFFSET('Smelter Look-up'!$F$4,$V2500-4,0)))","v":""},{"$f":"IF(ISERROR($V2500),\"\",OFFSET('Smelter Look-up'!$G$4,$V2500-4,0))","v":""},{"$f":"IF(ISERROR($V2500),\"\",OFFSET('Smelter Look-up'!$H$4,$V2500-4,0))","v":""},{"$f":"IF(ISERROR($V2500),\"\",OFFSET('Smelter Look-up'!$I$4,$V2500-4,0))","v":""},{"$nulls":7},{"$f":"IF(ISERROR($V2500),\"\",OFFSET('Smelter Look-up'!$C$4,$V2500-4,0)&\"\")","v":""},{"$f":"IF(B2500=\"\",\"\",IF(ISERROR(MATCH($E2500,CL,0)),\"Unknown\",INDIRECT(\"'C'!$A$\"&MATCH($E2500,CL,0)+1)))","v":""},{"$f":"IF(B2500=\"\",\"\",IF(ISERROR(MATCH($J2500,SorP!$B$1:$B$5661,0)),\"\",INDIRECT(\"'SorP'!$A$\"&MATCH($J2500,SorP!$B$1:$B$5661,0))))","v":""},null,{"$f":"IF(C2500=\"\",NA(),MATCH($B2500&$C2500,'Smelter Look-up'!$J:$J,0))","v":{"$error":"#N/A"}},null,0,null,null,null,""]

{"sheet":"Checker","index":5,"n_rows":65,"n_cols":12,"rows_kept":65,"cut":false,"hidden":false,"merged":[[0,0,0,2]]}
[{"$f":"OFFSET(L!$C$1,MATCH(\"Checker\"&ADDRESS(ROW(),COLUMN(),4),L!$A:$A,0)-1,SL,,)","v":"To ensure all required fields have been populated before submitting to your customers review form for any line items highlighted in red"},null,null,{"$f":"OFFSET(L!$C$1,MATCH(\"Checker\"&ADDRESS(ROW(),COLUMN(),4),L!$A:$A,0)-1,SL,,)","v":"Required fields remaining to be completed"},"\n"]
["Click here to return to Declaration tab",{"$f":"IF(F60=1,\"Click here to return to Smelter List\",\"\")","v":"Click here to return to Smelter List"},{"$f":"IF(F59=1,\"Click here to return to Product List\",\"\")","v":""},{"$f":"IF(H65=0,\"0\",H65)","v":"0"}]
[{"$f":"OFFSET(L!$C$1,MATCH(\"Checker\"&ADDRESS(ROW(),COLUMN(),4),L!$A:$A,0)-1,SL,,)","v":"Required Fields"},{"$f":"OFFSET(L!$C$1,MATCH(\"Checker\"&ADDRESS(ROW(),COLUMN(),4),L!$A:$A,0)-1,SL,,)","v":"Answer provided"},{"$f":"OFFSET(L!$C$1,MATCH(\"Checker\"&ADDRESS(ROW(),COLUMN(),4),L!$A:$A,0)-1,SL,,)","v":"Notes"},{"$f":"OFFSET(L!$C$1,MATCH(\"Checker\"&ADDRESS(ROW(),COLUMN(),4),L!$A:$A,0)-1,SL,,)","v":"Hyperlink to source"},null,"necessary?","complete?","incomplete","comment1","comment for remaining"]
[{"$f":"Declaration!B8","v":"Company Name (*):"},{"$f":"Declaration!D8","v":"Samtec Inc"},{"$f":"IF(H4=1,J4,I4)","v":"Complete"},{"$f":"IF(H4=1,\"Click here to enter Company Name\",\"\")","v":""},"\n\n",1,{"$f":"IF(B4=0,1,0)","v":0},{"$f":"F4*G4","v":0},{"$f":"OFFSET(L!$C$1,MATCH(\"Checker\"&\"Comp\",L!$A:$A,0)-1,SL,,)","v":"Complete"},{"$f":"OFFSET(L!$C$1,MATCH(\"Checker\"&ADDRESS(ROW(),COLUMN(),4),L!$A:$A,0)-1,SL,,)","v":"Provide your company name on the Declaration tab cell D8"}]
[{"$f":"Declaration!B9","v":"Declaration Scope or Class (*):"},{"$f":"Declaration!D9","v":"A. Company"},"Complete",{"$f":"IF(H5=1,\"Click here to enter Declaration Scope\",\"\")","v":""},"\n\n",1,0,{"$f":"F5*G5","v":0},{"$f":"OFFSET(L!$C$1,MATCH(\"Checker\"&\"Comp\",L!$A:$A,0)-1,SL,,)","v":"Complete"},{"$f":"OFFSET(L!$C$1,MATCH(\"Checker\"&ADDRESS(ROW(),COLUMN(),4),L!$A:$A,0)-1,SL,,)","v":"Select the scope of declaration on the Declaration tab cell D9"}]
[{"$f":"Declaration!B10","v":"Description of Scope:"},{"$f":"Declaration!D10","v":"Samtec products containing BeCu Alloy components or Xcede modules. Please review the \"Comments\" column in the 'Smelter List' tab to determine which smelters are applicable. "},"Complete",{"$f":"IF(H6=1,\"Click here to provide a Description of Scope\",\"\")","v":""},"\n\n",{"$f":"IF(OR(B5=Declaration!P9,B5=Declaration!Q9,B5=0),0,1)","v":0},0,0,{"$f":"OFFSET(L!$C$1,MATCH(\"Checker\"&\"Comp\",L!$A:$A,0)-1,SL,,)","v":"Complete"},{"$f":"OFFSET(L!$C$1,MATCH(\"Checker\"&ADDRESS(ROW(),COLUMN(),4),L!$A:$A,0)-1,SL,,)","v":"Provide description of scope on Declaration tab cell D10"}]
[{"$f":"Declaration!B15","v":"Contact Name (*):"},{"$f":"Declaration!D15","v":"Product Environmental Compliance Group"},"Complete",{"$f":"IF(H7=1,\"Click here to enter Contact Name\",\"\")","v":""},"\n\n",1,0,0,{"$f":"OFFSET(L!$C$1,MATCH(\"Checker\"&\"Comp\",L!$A:$A,0)-1,SL,,)","v":"Complete"},{"$f":"OFFSET(L!$C$1,MATCH(\"Checker\"&ADDRESS(ROW(),COLUMN(),4),L!$A:$A,0)-1,SL,,)","v":"Provide contact name in Declaration tab cell D15"}]
[{"$f":"Declaration!B16","v":"Email – Contact (*):"},{"$f":"Declaration!D16","v":"PEC@samtec.com"},"Complete",{"$f":"IF(H8=1,\"Click here to enter Email-Contact\",\"\")","v":""},"\n\n",1,{"$f":"IF(ISNUMBER(SEARCH(\"@\",B8)),0,1)","v":0},0,{"$f":"OFFSET(L!$C$1,MATCH(\"Checker\"&\"Comp\",L!$A:$A,0)-1,SL,,)","v":"Complete"},{"$f":"OFFSET(L!$C$1,MATCH(\"Checker\"&ADDRESS(ROW(),COLUMN(),4),L!$A:$A,0)-1,SL,,)","v":"Provide a valid email for contact in Declaration tab cell D16"}]
[{"$f":"Declaration!B17","v":"Phone – Contact (*):"},{"$f":"Declaration!D17","v":"1-812-944-6733"},"Complete",{"$f":"IF(H9=1,\"Click here to enter Phone-Contact\",\"\")","v":""},"\n\n",1,0,0,{"$f":"OFFSET(L!$C$1,MATCH(\"Checker\"&\"Comp\",L!$A:$A,0)-1,SL,,)","v":"Complete"},{"$f":"OFFSET(L!$C$1,MATCH(\"Checker\"&ADDRESS(ROW(),COLUMN(),4),L!$A:$A,0)-1,SL,,)","v":"Provide a phone number for contact in Declaration tab cell D17"}]
[{"$f":"Declaration!B18","v":"Authorizer (*):"},{"$f":"Declaration!D18","v":"Mark Bobo"},{"$f":"IF(H10=1,J10,I10)","v":"Complete"},{"$f":"IF(H10=1,\"Click here to enter an Authorized Company Representative's name\",\"\")","v":""},"\n\n",1,{"$f":"IF(B10=0,1,0)","v":0},0,{"$f":"OFFSET(L!$C$1,MATCH(\"Checker\"&\"Comp\",L!$A:$A,0)-1,SL,,)","v":"Complete"},{"$f":"OFFSET(L!$C$1,MATCH(\"Checker\"&ADDRESS(ROW(),COLUMN(),4),L!$A:$A,0)-1,SL,,)","v":"Provide authorized company representative contact name in Declaration tab cell D18"}]
[{"$f":"Declaration!B20","v":"Email - Authorizer (*):"},{"$f":"Declaration!D20","v":"mark.bobo@samtec.com"},"Complete",{"$f":"IF(H11=1,\"Click here to enter Representative's email\",\"\")","v":""},"\n\n",1,{"$f":"IF(ISNUMBER(SEARCH(\"@\",B11)),0,1)","v":0},0,{"$f":"OFFSET(L!$C$1,MATCH(\"Checker\"&\"Comp\",L!$A:$A,0)-1,SL,,)","v":"Complete"},{"$f":"OFFSET(L!$C$1,MATCH(\"Checker\"&ADDRESS(ROW(),COLUMN(),4),L!$A:$A,0)-1,SL,,)","v":"Provide an email for authorized company representative on Declaration tab cell D20"}]
[{"$f":"Declaration!B21","v":"Phone - Authorizer:"},{"$f":"Declaration!D21","v":0},{"$f":"IF(H12=1,J12,I12)","v":"Complete"},{"$f":"IF(H12=1,\"Click here to enter Representative's phone\",\"\")","v":""},"\n\n",null,{"$f":"IF(B12=0,1,0)","v":1},{"$f":"F12*G12","v":0},{"$f":"OFFSET(L!$C$1,MATCH(\"Checker\"&\"Comp\",L!$A:$A,0)-1,SL,,)","v":"Complete"},{"$f":"OFFSET(L!$C$1,MATCH(\"Checker\"&ADDRESS(ROW(),COLUMN(),4),L!$A:$A,0)-1,SL,,)","v":"Provide a phone number for authorized company representative on Declaration tab cell D21"}]
[{"$f":"Declaration!B22","v":"Effective Date (*):"},{"$f":"Declaration!D22","v":"2023-09-13"},"Complete",{"$f":"IF(H13=1,\"Click here to enter Date of Completion\",\"\")","v":""},"\n\n",1,0,0,{"$f":"OFFSET(L!$C$1,MATCH(\"Checker\"&\"Comp\",L!$A:$A,0)-1,SL,,)","v":"Complete"},{"$f":"OFFSET(L!$C$1,MATCH(\"Checker\"&ADDRESS(ROW(),COLUMN(),4),L!$A:$A,0)-1,SL,,)","v":"Provide date the form was completed on Declaration tab cell D22"}]
[{"$f":"Declaration!B25","v":"1) Is any of the cobalt or natural mica intentionally added or used in the product(s) or in the production process? (*)"},null,null,null,"\n\n\n\n",null,null,0]
[{"$f":"Declaration!B26","v":"Cobalt(*)"},{"$f":"Declaration!D26","v":"Yes"},"Complete",{"$f":"IF(H15=1,\"Click here to answer question 1 for Cobalt\",\"\")","v":""},"\n",1,0,0,{"$f":"OFFSET(L!$C$1,MATCH(\"Checker\"&\"Comp\",L!$A:$A,0)-1,SL,,)","v":"Complete"},{"$f":"OFFSET(L!$C$1,MATCH(\"Checker\"&ADDRESS(ROW(),COLUMN(),4),L!$A:$A,0)-1,SL,,)","v":"Declare if cobalt is intentionally added to your products on Declaration tab cell D26"}]
[{"$f":"Declaration!B27","v":"Mica"},{"$f":"Declaration!D27","v":"No"},"Complete",{"$f":"IF(H16=1,\"Click here to answer question 1 for Mica\",\"\")","v":""},"\n\n",1,0,0,{"$f":"OFFSET(L!$C$1,MATCH(\"Checker\"&\"Comp\",L!$A:$A,0)-1,SL,,)","v":"Complete"},{"$f":"OFFSET(L!$C$1,MATCH(\"Checker\"&ADDRESS(ROW(),COLUMN(),4),L!$A:$A,0)-1,SL,,)","v":"Declare if natural mica is intentionally added to your products on Declaration tab cell D27"}]
[{"$f":"Declaration!B28","v":""},{"$f":"Declaration!D28","v":"No"},"Complete",{"$f":"IF(H17=1,\"Click here to answer question 1 for Gold\",\"\")","v":""},"\n\n",1,0,0,{"$f":"OFFSET(L!$C$1,MATCH(\"Checker\"&\"Comp\",L!$A:$A,0)-1,SL,,)","v":"Complete"},{"$f":"OFFSET(L!$C$1,MATCH(\"Checker\"&ADDRESS(ROW(),COLUMN(),4),L!$A:$A,0)-1,SL,,)","v":0}]
[{"$f":"Declaration!B29","v":""},{"$f":"Declaration!D29","v":"No"},"Complete",{"$f":"IF(H18=1,\"Click here to answer question 1 for Tungsten\",\"\")","v":""},"\n\n",1,0,0,{"$f":"OFFSET(L!$C$1,MATCH(\"Checker\"&\"Comp\",L!$A:$A,0)-1,SL,,)","v":"Complete"},{"$f":"OFFSET(L!$C$1,MATCH(\"Checker\"&ADDRESS(ROW(),COLUMN(),4),L!$A:$A,0)-1,SL,,)","v":0}]
[{"$f":"Declaration!B31","v":"2) Does any cobalt or natural mica remain in the product(s)? (*)"},null,null,null,"\n\n"]
[{"$f":"Declaration!B32","v":"Cobalt(*)"},{"$f":"Declaration!D32","v":"Yes"},{"$f":"IF(H20=1,J20,I20)","v":"Complete"},{"$f":"IF(H20=1,\"Click here to answer question 2 for Cobalt\",\"\")","v":""},"\n\n",{"$f":"IF(OR(B$15=\"No\",B$15=\"Unknown\",B$15=\"Not applicable for this declaration\"),0,1)","v":1},{"$f":"IF(B20=0,1,0)","v":0},{"$f":"F20*G20","v":0},{"$f":"OFFSET(L!$C$1,MATCH(\"Checker\"&\"Comp\",L!$A:$A,0)-1,SL,,)","v":"Complete"},{"$f":"OFFSET(L!$C$1,MATCH(\"Checker\"&ADDRESS(ROW(),COLUMN(),4),L!$A:$A,0)-1,SL,,)","v":"Declare if cobalt is necessary to the production of your products and contained within the finished products declared in Declaration tab cell D32"}]
[{"$f":"Declaration!B33","v":"Mica"},{"$f":"Declaration!D33","v":0},"Complete",{"$f":"IF(H21=1,\"Click here to answer question 2 for Mica\",\"\")","v":""},"\n\n",{"$f":"IF(OR(B$16=\"No\",B$16=\"Unknown\",B$16=\"Not applicable for this declaration\"),0,1)","v":0},{"$f":"IF(B21=0,1,0)","v":1},{"$f":"F21*G21","v":0},{"$f":"OFFSET(L!$C$1,MATCH(\"Checker\"&\"Comp\",L!$A:$A,0)-1,SL,,)","v":"Complete"},{"$f":"OFFSET(L!$C$1,MATCH(\"Checker\"&ADDRESS(ROW(),COLUMN(),4),L!$A:$A,0)-1,SL,,)","v":"Declare if mica is necessary to the production of your products and contained within the finished products declared in Declaration tab cell D33"}]
[{"$f":"Declaration!B37","v":"3) Do any of the smelters or processors in your supply chain source the cobalt or natural mica from conflict-affected and high-risk areas? (OECD Due Diligence Guidance, see definitions tab) (*)"},null,null,null,"\n\n"]
[{"$f":"Declaration!B38","v":"Cobalt(*)"},{"$f":"Declaration!D38","v":"Yes"},"Complete",{"$f":"IF(H23=1,\"Click here to answer question 3 for Cobalt\",\"\")","v":""},"\n\n",{"$f":"IF(OR(B$15=\"No\",B$15=\"Unknown\",B$15=\"Not applicable for this declaration\",B$20=\"No\",B$20=\"Unknown\",B$20=\"Not applicable for this declaration\"),0,1)","v":1},{"$f":"IF(B23=0,1,0)","v":0},{"$f":"F23*G23","v":0},{"$f":"OFFSET(L!$C$1,MATCH(\"Checker\"&\"Comp\",L!$A:$A,0)-1,SL,,)","v":"Complete"},{"$f":"OFFSET(L!$C$1,MATCH(\"Checker\"&ADDRESS(ROW(),COLUMN(),4),L!$A:$A,0)-1,SL,,)","v":"Declare if cobalt used within the scope of products declared within this survey response originated from a conflict-affected and high-risk area on the Declaration tab cell D38"}]
[{"$f":"Declaration!B39","v":"Mica"},{"$f":"Declaration!D39","v":0},"Complete",{"$f":"IF(H24=1,\"Click here to answer question 3 for Mica\",\"\")","v":""},"\n\n",{"$f":"IF(OR(B$16=\"No\",B$16=\"Unknown\",B$16=\"Not applicable for this declaration\",B$21=\"No\",B$21=\"Unknown\",B$21=\"Not applicable for this declaration\"),0,1)","v":0},1,0,{"$f":"OFFSET(L!$C$1,MATCH(\"Checker\"&\"Comp\",L!$A:$A,0)-1,SL,,)","v":"Complete"},{"$f":"OFFSET(L!$C$1,MATCH(\"Checker\"&ADDRESS(ROW(),COLUMN(),4),L!$A:$A,0)-1,SL,,)","v":"Declare if mica used within the scope of products declared within this survey response originated from a conflict-affected and high-risk area on the Declaration tab cell D39"}]
[{"$f":"Declaration!B40","v":0},{"$f":"Declaration!D40","v":0},"Complete",{"$f":"IF(H25=1,\"Click here to answer question 3 for Gold\",\"\")","v":""},"\n\n",{"$f":"IF(B$17=\"No\",0,1)","v":0},1,0,{"$f":"OFFSET(L!$C$1,MATCH(\"Checker\"&\"Comp\",L!$A:$A,0)-1,SL,,)","v":"Complete"},{"$f":"OFFSET(L!$C$1,MATCH(\"Checker\"&ADDRESS(ROW(),COLUMN(),4),L!$A:$A,0)-1,SL,,)","v":{"$error":"#N/A"}}]
[{"$f":"Declaration!B41","v":0},{"$f":"Declaration!D41","v":0},"Complete",{"$f":"IF(H26=1,\"Click here to answer question 3 for Tungsten\",\"\")","v":""},"\n\n",{"$f":"IF(B$18=\"No\",0,1)","v":0},1,0,{"$f":"OFFSET(L!$C$1,MATCH(\"Checker\"&\"Comp\",L!$A:$A,0)-1,SL,,)","v":"Complete"},{"$f":"OFFSET(L!$C$1,MATCH(\"Checker\"&ADDRESS(ROW(),COLUMN(),4),L!$A:$A,0)-1,SL,,)","v":{"$error":"#N/A"}}]
[{"$f":"Declaration!B43","v":"4) Does 100 percent of the cobalt originate from recycled or scrap sources? (*)"},null,null,null,"\n\n"]
[{"$f":"Declaration!B44","v":"Cobalt(*)"},{"$f":"Declaration!D44","v":"No"},{"$f":"IF(H28=1,J28,I28)","v":"Complete"},{"$f":"IF(H28=1,\"Click here to answer question 4 for Cobalt\",\"\")","v":""},"\n\n",{"$f":"F23","v":1},{"$f":"IF(B28=0,1,0)","v":0},{"$f":"F28*G28","v":0},{"$f":"OFFSET(L!$C$1,MATCH(\"Checker\"&\"Comp\",L!$A:$A,0)-1,SL,,)","v":"Complete"},{"$f":"OFFSET(L!$C$1,MATCH(\"Checker\"&ADDRESS(ROW(),COLUMN(),4),L!$A:$A,0)-1,SL,,)","v":"Declare if cobalt used within the scope of products declared within this survey response originated entirely from a recycled or scrap source on the Declaration tab cell D44"}]
[{"$f":"Declaration!B45","v":0},{"$f":"Declaration!D45","v":0},{"$f":"IF(H29=1,J29,I29)","v":"Complete"},{"$f":"IF(H29=1,\"Click here to answer question 4 for Mica\",\"\")","v":""},"\n\n",null,{"$f":"IF(B29=0,1,0)","v":1},{"$f":"F29*G29","v":0},{"$f":"OFFSET(L!$C$1,MATCH(\"Checker\"&\"Comp\",L!$A:$A,0)-1,SL,,)","v":"Complete"},{"$f":"OFFSET(L!$C$1,MATCH(\"Checker\"&ADDRESS(ROW(),COLUMN(),4),L!$A:$A,0)-1,SL,,)","v":"Declare if mica used within the scope of products declared within this survey response originated entirely from a recycled or scrap source on the Declaration tab cell D45"}]
[{"$f":"Declaration!B46","v":0},{"$f":"Declaration!D46","v":0},{"$f":"IF(H30=1,J30,I30)","v":"Complete"},{"$f":"IF(H30=1,\"Click here to answer question 4 for Gold\",\"\")","v":""},"\n\n",{"$f":"F25","v":0},{"$f":"IF(B30=0,1,0)","v":1},{"$f":"F30*G30","v":0},{"$f":"OFFSET(L!$C$1,MATCH(\"Checker\"&\"Comp\",L!$A:$A,0)-1,SL,,)","v":"Complete"},{"$f":"OFFSET(L!$C$1,MATCH(\"Checker\"&ADDRESS(ROW(),COLUMN(),4),L!$A:$A,0)-1,SL,,)","v":{"$error":"#N/A"}}]
[{"$f":"Declaration!B47","v":0},{"$f":"Declaration!D47","v":0},{"$f":"IF(H31=1,J31,I31)","v":"Complete"},{"$f":"IF(H31=1,\"Click here to answer question 4 for Tungsten\",\"\")","v":""},"\n\n",{"$f":"F26","v":0},{"$f":"IF(B31=0,1,0)","v":1},{"$f":"F31*G31","v":0},{"$f":"OFFSET(L!$C$1,MATCH(\"Checker\"&\"Comp\",L!$A:$A,0)-1,SL,,)","v":"Complete"},{"$f":"OFFSET(L!$C$1,MATCH(\"Checker\"&ADDRESS(ROW(),COLUMN(),4),L!$A:$A,0)-1,SL,,)","v":{"$error":"#N/A"}}]
[{"$f":"Declaration!B49","v":"5) What percentage of relevant suppliers have provided a response to your supply chain survey?(*)"},null,null,null,"\n\n"]
[{"$f":"Declaration!B50","v":"Cobalt(*)"},{"$f":"Declaration!D50","v":1},"Complete",{"$f":"IF(H33=1,\"Click here to answer question 5 for Cobalt\",\"\")","v":""},"\n",{"$f":"F23","v":1},0,0,{"$f":"OFFSET(L!$C$1,MATCH(\"Checker\"&\"Comp\",L!$A:$A,0)-1,SL,,)","v":"Complete"},{"$f":"OFFSET(L!$C$1,MATCH(\"Checker\"&ADDRESS(ROW(),COLUMN(),4),L!$A:$A,0)-1,SL,,)","v":"Provide % of completeness of supplier's smelter information on Declaration tab cell D50"}]
[{"$f":"Declaration!B51","v":"Mica"},{"$f":"Declaration!D51","v":0},"Complete",{"$f":"IF(H34=1,\"Click here to answer question 5 for Mica\",\"\")","v":""},"\n",{"$f":"F24","v":0},1,0,{"$f":"OFFSET(L!$C$1,MATCH(\"Checker\"&\"Comp\",L!$A:$A,0)-1,SL,,)","v":"Complete"},{"$f":"OFFSET(L!$C$1,MATCH(\"Checker\"&ADDRESS(ROW(),COLUMN(),4),L!$A:$A,0)-1,SL,,)","v":"Provide % of completeness of supplier's smelter information on Declaration tab cell D51"}]
[{"$f":"Declaration!B52","v":0},{"$f":"Declaration!D52","v":0},"Complete",{"$f":"IF(H35=1,\"Click here to answer question 5 for Gold\",\"\")","v":""},"\n",{"$f":"F25","v":0},1,0,{"$f":"OFFSET(L!$C$1,MATCH(\"Checker\"&\"Comp\",L!$A:$A,0)-1,SL,,)","v":"Complete"},{"$f":"OFFSET(L!$C$1,MATCH(\"Checker\"&ADDRESS(ROW(),COLUMN(),4),L!$A:$A,0)-1,SL,,)","v":{"$error":"#N/A"}}]
[{"$f":"Declaration!B53","v":0},{"$f":"Declaration!D53","v":0},"Complete",{"$f":"IF(H36=1,\"Click here to answer question 5 for Tungsten\",\"\")","v":""},"\n",{"$f":"F26","v":0},1,0,{"$f":"OFFSET(L!$C$1,MATCH(\"Checker\"&\"Comp\",L!$A:$A,0)-1,SL,,)","v":"Complete"},{"$f":"OFFSET(L!$C$1,MATCH(\"Checker\"&ADDRESS(ROW(),COLUMN(),4),L!$A:$A,0)-1,SL,,)","v":{"$error":"#N/A"}}]
[{"$f":"Declaration!B55","v":"6) Have you identified all of the smelters or processors supplying the cobalt or natural mica to your supply chain?(*)"},null,null,null,"\n\n\n"]
[{"$f":"Declaration!B56","v":"Cobalt(*)"},{"$f":"Declaration!D56","v":"Yes"},"Complete",{"$f":"IF(H38=1,\"Click here to answer question 6 for Cobalt\",\"\")","v":""},"\n\n\n",{"$f":"F23","v":1},0,0,{"$f":"OFFSET(L!$C$1,MATCH(\"Checker\"&\"Comp\",L!$A:$A,0)-1,SL,,)","v":"Complete"},{"$f":"OFFSET(L!$C$1,MATCH(\"Checker\"&ADDRESS(ROW(),COLUMN(),4),L!$A:$A,0)-1,SL,,)","v":"Declare if all smelter names have been provided in this survey response under the scope of products declared on the Declaration tab cell D56"}]
[{"$f":"Declaration!B57","v":"Mica"},{"$f":"Declaration!D57","v":0},"Complete",{"$f":"IF(H39=1,\"Click here to answer question 6 for Mica\",\"\")","v":""},"\n\n\n",{"$f":"F24","v":0},1,0,{"$f":"OFFSET(L!$C$1,MATCH(\"Checker\"&\"Comp\",L!$A:$A,0)-1,SL,,)","v":"Complete"},{"$f":"OFFSET(L!$C$1,MATCH(\"Checker\"&ADDRESS(ROW(),COLUMN(),4),L!$A:$A,0)-1,SL,,)","v":"Declare if all smelter names have been provided in this survey response under the scope of products declared on the Declaration tab cell D57"}]
[{"$f":"Declaration!B58","v":0},{"$f":"Declaration!D58","v":0},"Complete",{"$f":"IF(H40=1,\"Click here to answer question 6 for Gold\",\"\")","v":""},"\n\n\n",{"$f":"F25","v":0},1,0,{"$f":"OFFSET(L!$C$1,MATCH(\"Checker\"&\"Comp\",L!$A:$A,0)-1,SL,,)","v":"Complete"},{"$f":"OFFSET(L!$C$1,MATCH(\"Checker\"&ADDRESS(ROW(),COLUMN(),4),L!$A:$A,0)-1,SL,,)","v":{"$error":"#N/A"}}]
[{"$f":"Declaration!B59","v":0},{"$f":"Declaration!D59","v":0},"Complete",{"$f":"IF(H41=1,\"Click here to answer question 6 for Tungsten\",\"\")","v":""},"\n\n\n",{"$f":"F26","v":0},1,0,{"$f":"OFFSET(L!$C$1,MATCH(\"Checker\"&\"Comp\",L!$A:$A,0)-1,SL,,)","v":"Complete"},{"$f":"OFFSET(L!$C$1,MATCH(\"Checker\"&ADDRESS(ROW(),COLUMN(),4),L!$A:$A,0)-1,SL,,)","v":{"$error":"#N/A"}}]
[{"$f":"Declaration!B61","v":"7) Has all applicable smelter or processor information received by your company been reported in this declaration?(*)"},null,null,null,"\n\n\n\n"]
[{"$f":"Declaration!B62","v":"Cobalt(*)"},{"$f":"Declaration!D62","v":"Yes"},"Complete",{"$f":"IF(H43=1,\"Click here to answer question 7 for Cobalt\",\"\")","v":""},"\n\n",{"$f":"F23","v":1},0,0,{"$f":"OFFSET(L!$C$1,MATCH(\"Checker\"&\"Comp\",L!$A:$A,0)-1,SL,,)","v":"Complete"},{"$f":"OFFSET(L!$C$1,MATCH(\"Checker\"&ADDRESS(ROW(),COLUMN(),4),L!$A:$A,0)-1,SL,,)","v":"Declare if all applicable cobalt smelter information has been provided on Declaration tab cell D62"}]
[{"$f":"Declaration!B63","v":"Mica"},{"$f":"Declaration!D63","v":0},"Complete",{"$f":"IF(H44=1,\"Click here to answer question 7 for Mica\",\"\")","v":""},"\n\n",{"$f":"F24","v":0},1,0,{"$f":"OFFSET(L!$C$1,MATCH(\"Checker\"&\"Comp\",L!$A:$A,0)-1,SL,,)","v":"Complete"},{"$f":"OFFSET(L!$C$1,MATCH(\"Checker\"&ADDRESS(ROW(),COLUMN(),4),L!$A:$A,0)-1,SL,,)","v":"Declare if all applicable mica processor information has been provided on Declaration tab cell D63"}]
[{"$f":"Declaration!B64","v":0},{"$f":"Declaration!D64","v":0},"Complete",{"$f":"IF(H45=1,\"Click here to answer question 7 for Gold\",\"\")","v":""},"\n\n",{"$f":"F25","v":0},1,0,{"$f":"OFFSET(L!$C$1,MATCH(\"Checker\"&\"Comp\",L!$A:$A,0)-1,SL,,)","v":"Complete"},"Please close this document to restore clipboard usage."]
[{"$f":"Declaration!B65","v":0},{"$f":"Declaration!D65","v":0},"Complete",{"$f":"IF(H46=1,\"Click here to answer question 7 for Tungsten\",\"\")","v":""},"\n\n",{"$f":"F26","v":0},1,0,{"$f":"OFFSET(L!$C$1,MATCH(\"Checker\"&\"Comp\",L!$A:$A,0)-1,SL,,)","v":"Complete"}]
[{"$f":"Declaration!B68","v":"Question"},null,null,null,"\n"]
[{"$f":"Declaration!B69","v":"A. Have you established a responsible minerals sourcing policy?(*)"},{"$f":"Declaration!D69","v":"Yes"},"Complete",{"$f":"IF(H48=1,\"Click here to answer question (A)\",\"\")","v":""},"\n\n",{"$f":"IF(SUM(F$23:F$24)=0,0,1)","v":1},0,0,{"$f":"OFFSET(L!$C$1,MATCH(\"Checker\"&\"Comp\",L!$A:$A,0)-1,SL,,)","v":"Complete"},{"$f":"OFFSET(L!$C$1,MATCH(\"Checker\"&ADDRESS(ROW(),COLUMN(),4),L!$A:$A,0)-1,SL,,)","v":"Answer if your company has a responsible minerals sourcing policy on the Declaration tab cell D69"}]
[{"$f":"Declaration!B71","v":"B. Is your responsible minerals sourcing policy publicly available on your website? (Note – If yes, the user shall specify the URL in the comment field.) (*)"},{"$f":"Declaration!D71","v":"Yes"},{"$f":"IF(H49=1,J49,I49)","v":"Complete"},{"$f":"IF(H49=1,\"Click here to answer question (B)\",\"\")","v":""},"\n\n",{"$f":"F$48","v":1},0,0,{"$f":"OFFSET(L!$C$1,MATCH(\"Checker\"&\"Comp\",L!$A:$A,0)-1,SL,,)","v":"Complete"},{"$f":"OFFSET(L!$C$1,MATCH(\"Checker\"&ADDRESS(ROW(),COLUMN(),4),L!$A:$A,0)-1,SL,,)","v":"Answer if your company has made your responsible minerals sourcing policy publically available on your website on the Declaration tab cell D71"}]
["The URL in the comment field",{"$f":"Declaration!G71","v":"http://suddendocs.samtec.com/environmental_compliance/certifications/drc_coc_certification.pdf"},{"$f":"IF(H50=1,J50,I50)","v":"Complete"},{"$f":"IF(H50=1,\"Click here to answer question (C)\",\"\")","v":""},"\n\n",{"$f":"IF(AND(F49=1,B49=\"Yes\"),1,0)","v":1},{"$f":"IF(LEN(B50)>1,0,1)","v":0},{"$f":"F50*G50","v":0},{"$f":"OFFSET(L!$C$1,MATCH(\"Checker\"&\"Comp\",L!$A:$A,0)-1,SL,,)","v":"Complete"},{"$f":"OFFSET(L!$C$1,MATCH(\"Checker\"&ADDRESS(ROW(),COLUMN(),4),L!$A:$A,0)-1,SL,,)","v":"Enter the URL in Declaration worksheet cell G71 if you answer \"Yes\" for question B. The format of the URL should be \"www.companyname.com\""}]
[{"$f":"Declaration!B73","v":"C. Do you require your direct suppliers to source cobalt from smelters or natural mica from processors whose due diligence practices have been validated by an independent third-party audit program?(*)"},null,null,null,"\n\n",{"$nulls":4},{"$f":"OFFSET(L!$C$1,MATCH(\"Checker\"&ADDRESS(ROW(),COLUMN(),4),L!$A:$A,0)-1,SL,,)","v":{"$error":"#N/A"}}]
[{"$f":"Declaration!B74","v":"Cobalt(*)"},{"$f":"Declaration!D74","v":"No"},"Complete",{"$f":"IF(H52=1,\"Click here to answer question (C)\",\"\")","v":""},null,{"$f":"F23*F$48","v":1},0,0,{"$f":"OFFSET(L!$C$1,MATCH(\"Checker\"&\"Comp\",L!$A:$A,0)-1,SL,,)","v":"Complete"},{"$f":"OFFSET(L!$C$1,MATCH(\"Checker\"&ADDRESS(ROW(),COLUMN(),4),L!$A:$A,0)-1,SL,,)","v":"Answer if you require your direct suppliers to source cobalt from smelters whose due diligence practices have been validated by an independent third-party audit program, like the Responsible Minerals Assurance Process, on Declaration tab cell D74"}]
[{"$f":"Declaration!B75","v":"Mica"},{"$f":"Declaration!D75","v":0},"Complete",{"$f":"IF(H53=1,\"Click here to answer question (C)\",\"\")","v":""},null,{"$f":"F24*F$48","v":0},1,0,{"$f":"OFFSET(L!$C$1,MATCH(\"Checker\"&\"Comp\",L!$A:$A,0)-1,SL,,)","v":"Complete"},{"$f":"OFFSET(L!$C$1,MATCH(\"Checker\"&ADDRESS(ROW(),COLUMN(),4),L!$A:$A,0)-1,SL,,)","v":"Answer if you require your direct suppliers to source mica from processors whose due diligence practices have been validated by an independent third-party audit program, like the Responsible Minerals Assurance Process, on Declaration tab cell D75"}]
[{"$f":"Declaration!B77","v":"D. Have you implemented due diligence measures for responsible sourcing?(*)"},{"$f":"Declaration!D77","v":"Yes"},{"$f":"IF(H54=1,J54,I54)","v":"Complete"},{"$f":"IF(H54=1,\"Click here to answer question (D)\",\"\")","v":""},"\n\n",1,0,0,{"$f":"OFFSET(L!$C$1,MATCH(\"Checker\"&\"Comp\",L!$A:$A,0)-1,SL,,)","v":"Complete"},{"$f":"OFFSET(L!$C$1,MATCH(\"Checker\"&ADDRESS(ROW(),COLUMN(),4),L!$A:$A,0)-1,SL,,)","v":"Answer if you have implemented due diligence measures for responsible sourcing on Declaration tab cell D77"}]
[{"$f":"Declaration!B79","v":"E. Does your company conduct cobalt and/or natural mica supply chain survey(s) of your relevant supplier(s)?(*)"},{"$f":"IF(Declaration!D79=\"No\",Declaration!D79,IF(Declaration!D79=\"Yes, in conformance with IPC1755 (e.g. EMRT)\",Declaration!D79,IF(Declaration!D79=\"Yes, Using Other Format (Describe)\",Declaration!G79,0)))","v":"Yes, in conformance with IPC1755 (e.g. EMRT)"},"Complete",{"$f":"IF(H55=1,\"Click here to answer question (E)\",\"\")","v":""},"\n\n",1,{"$f":"IF(B55=0,1,0)","v":0},0,{"$f":"OFFSET(L!$C$1,MATCH(\"Checker\"&\"Comp\",L!$A:$A,0)-1,SL,,)","v":"Complete"},{"$f":"OFFSET(L!$C$1,MATCH(\"Checker\"&ADDRESS(ROW(),COLUMN(),4),L!$A:$A,0)-1,SL,,)","v":"Answer if you conduct cobalt or natural mica supply chain surveys on the declaration tab cell D79"}]
[]
[{"$f":"Declaration!B81","v":"F. Do you review due diligence information received from your suppliers against your company’s expectations? (*)"},{"$f":"Declaration!D81","v":"Yes"},{"$f":"IF(H57=1,J57,I57)","v":"Complete"},{"$f":"IF(H57=1,\"Click here to answer question (F)\",\"\")","v":""},"\n\n",1,{"$f":"IF(B57=0,1,0)","v":0},0,{"$f":"OFFSET(L!$C$1,MATCH(\"Checker\"&\"Comp\",L!$A:$A,0)-1,SL,,)","v":"Complete"},{"$f":"OFFSET(L!$C$1,MATCH(\"Checker\"&ADDRESS(ROW(),COLUMN(),4),L!$A:$A,0)-1,SL,,)","v":"Answer if you verify responses from your suppliers against your company's expectations on Declaration tab cell D81"}]
[{"$f":"Declaration!B83","v":"G. Does your review process include corrective action management? (*)"},{"$f":"Declaration!D83","v":"Yes"},"Complete",{"$f":"IF(H58=1,\"Click here to answer question (G)\",\"\")","v":""},"\n\n",1,0,0,{"$f":"OFFSET(L!$C$1,MATCH(\"Checker\"&\"Comp\",L!$A:$A,0)-1,SL,,)","v":"Complete"},{"$f":"OFFSET(L!$C$1,MATCH(\"Checker\"&ADDRESS(ROW(),COLUMN(),4),L!$A:$A,0)-1,SL,,)","v":"Answer if your verification process includes corrective action management on Declaration tab cell D83"}]
["Product List",{"$f":"IF(G59=1,\"No products or item numbers listed\",\"One or more product / item numbers have been provided\")","v":"No products or item numbers listed"},{"$f":"IF(H59=1,J59,I59)","v":"Complete"},{"$f":"IF(H59=1,\"Click here to enter detail on Product List tab\",\"\")","v":""},"\n\n",{"$f":"IF(B5=Declaration!Q9,1,0)","v":0},{"$f":"IF('Product List'!B6=\"\",1,0)","v":1},{"$f":"F59*G59","v":0},{"$f":"OFFSET(L!$C$1,MATCH(\"Checker\"&\"Comp\",L!$A:$A,0)-1,SL,,)","v":"Complete"},{"$f":"OFFSET(L!$C$1,MATCH(\"Checker\"&ADDRESS(ROW(),COLUMN(),4),L!$A:$A,0)-1,SL,,)","v":0}]
["Smelter List - Cobalt",null,{"$f":"IF(H60=1,J60,I60)","v":"Complete"},{"$f":"IF(H60=0,\"\",\"Click here to provide smelter information\")","v":""},"\n\n",{"$f":"F23","v":1},{"$f":"IF(AND(COUNTIF(SmelterIdetifiedForMetal,\"Cobalt\")>0,COUNTIF('Smelter List'!AB$5:AB$2500,\"Cobalt?*\")>0),0,1)","v":0},{"$f":"F60*G60","v":0},{"$f":"OFFSET(L!$C$1,MATCH(\"Checker\"&\"Comp\",L!$A:$A,0)-1,SL,,)","v":"Complete"},{"$f":"OFFSET(L!$C$1,MATCH(\"Checker\"&ADDRESS(ROW(),COLUMN(),4),L!$A:$A,0)-1,SL,,)","v":"Provide list of cobalt smelters contributing material to supply chain on Smelter List tab"},{"$f":"IF(H15>0,1,0)","v":0},{"$f":"OFFSET(L!$C$1,MATCH(\"Checker\"&ADDRESS(ROW(),COLUMN(),4),L!$A:$A,0)-1,SL,,)","v":{"$error":"#N/A"}}]
["Smelter List - Mica",null,{"$f":"IF(H61=1,J61,I61)","v":"Complete"},{"$f":"IF(H61=0,\"\",\"Click here to provide smelter information\")","v":""},"\n\n",{"$f":"F24","v":0},{"$f":"IF(AND(COUNTIF(SmelterIdetifiedForMetal,\"Mica\")>0,COUNTIF('Smelter List'!AB$5:AB$2500,\"Mica?*\")>0),0,1)","v":1},{"$f":"F61*G61","v":0},{"$f":"OFFSET(L!$C$1,MATCH(\"Checker\"&\"Comp\",L!$A:$A,0)-1,SL,,)","v":"Complete"},{"$f":"OFFSET(L!$C$1,MATCH(\"Checker\"&ADDRESS(ROW(),COLUMN(),4),L!$A:$A,0)-1,SL,,)","v":"Provide list of mica processors contributing material to supply chain on Smelter List tab"},{"$f":"IF(H16>0,1,0)","v":0},{"$f":"OFFSET(L!$C$1,MATCH(\"Checker\"&ADDRESS(ROW(),COLUMN(),4),L!$A:$A,0)-1,SL,,)","v":{"$error":"#N/A"}}]
[{"$nulls":4},"\n\n",null,null,null,{"$f":"OFFSET(L!$C$1,MATCH(\"Checker\"&\"Comp\",L!$A:$A,0)-1,SL,,)","v":"Complete"}]
[{"$nulls":4},"\n\n",null,null,null,{"$f":"OFFSET(L!$C$1,MATCH(\"Checker\"&\"Comp\",L!$A:$A,0)-1,SL,,)","v":"Complete"}]
["All rows with \"Smelter not listed\" selected, have a name and country listed",null,{"$f":"IF(F64=0,J64,IF(G64=0,I64,L64))","v":"N/A"},null,null,{"$f":"IF(COUNTIF('Smelter List'!$C:$C,\"Smelter Not Listed\")>0,1,0)","v":0},{"$f":"IF(OR(SUMPRODUCT(('Smelter List'!$C:$C=\"Smelter not listed\")*('Smelter List'!$D:$D=\"\"))>0,SUMPRODUCT(('Smelter List'!$C:$C=\"Smelter not listed\")*('Smelter List'!$E:$E=\"\"))>0),1,0)","v":0},{"$f":"F64*G64","v":0},{"$f":"OFFSET(L!$C$1,MATCH(\"Checker\"&\"Comp\",L!$A:$A,0)-1,SL,,)","v":"Complete"},"N/A",null,"Please complete columns D & E on Smelter List for all rows \"Smelter Not Listed\" selected in column C"]
[{"$nulls":7},{"$f":"SUM(H4:H64)","v":0}]

{"sheet":"Product List","index":6,"n_rows":1001,"n_cols":4,"rows_kept":1001,"cut":false,"hidden":false,"merged":[[3,1,3,3],[0,0,0,3],[1000,1,1000,3]]}
[{"$f":"OFFSET(L!$C$1,MATCH(\"Product List\"&ADDRESS(ROW(),COLUMN(),4),L!$A:$A,0)-1,SL,,)","v":"Completion required only if reporting level \"Product (or List of Products)\" selected on the 'Declaration' worksheet."}]
[]
[]
[null,"Click here to return to Declaration tab"]
[null,{"$f":"OFFSET(L!$C$1,MATCH(\"Product List\"&ADDRESS(ROW(),COLUMN(),4),L!$A:$A,0)-1,SL,,)","v":"Manufacturer’s Product Number (*)"},{"$f":"OFFSET(L!$C$1,MATCH(\"Product List\"&ADDRESS(ROW(),COLUMN(),4),L!$A:$A,0)-1,SL,,)","v":"Manufacturer’s Product Name"},{"$f":"OFFSET(L!$C$1,MATCH(\"Product List\"&ADDRESS(ROW(),COLUMN(),4),L!$A:$A,0)-1,SL,,)","v":"Comments"}]
{"$rows_empty":995}
[null,{"$f":"OFFSET(L!$C$1,MATCH(\"General\"&\"Cpy\",L!$A:$A,0)-1,SL,,)","v":"© 2023 Responsible Minerals Initiative. All rights reserved."}]

{"sheet":"Smelter Look-up","index":7,"n_rows":164,"n_cols":11,"rows_kept":164,"cut":false,"hidden":false,"merged":[[0,0,0,6],[1,0,2,8]]}
[{"$f":"OFFSET(L!$C$1,MATCH(\"Smelter Look-up\"&ADDRESS(ROW(),COLUMN(),4),L!$A:$A,0)-1,SL,,)","v":"The following list represents the RMI's latest smelter name/alias information as of this templates release.  This list is updated frequently,  and the most up-to-date version can be found on the RMI website http://www.responsiblemineralsinitiative.org/responsible-minerals-assurance-process/exports/cmt-export/.  The presence of a smelter here is NOT a guarantee that it is currently Active or Conformant within an independent third party audit program.\n\nPlease refer to the RMI web site www.responsiblemineralsinitiative.org for the most current and accurate list of standard smelter names that are Active or Conformant. \n\nNames included in column B represent company names that are commonly recognized and reported by the supply chain for a particular smelter. These names may include former company names, alternate names, abbreviations, or other variations. Although the names may not be the Standard Smelter Name, the reference names are helpful to identify the smelter, which is listed under column C in the Smelter Look-up.\n\nColumn C is the list of the official standard smelter names, in the ASCII character set. The majority of smelters will have the same entry for both columns, however if the common name varies from the standard name, the variation is noted in Column B. "}]
[]
[]
[{"$f":"OFFSET(L!$C$1,MATCH(\"Smelter Look-up\"&ADDRESS(ROW(),COLUMN(),4),L!$A:$A,0)-1,SL,,)","v":"Metal"},{"$f":"OFFSET(L!$C$1,MATCH(\"Smelter Look-up\"&ADDRESS(ROW(),COLUMN(),4),L!$A:$A,0)-1,SL,,)","v":"Smelter Look-up (*)"},{"$f":"OFFSET(L!$C$1,MATCH(\"Smelter Look-up\"&ADDRESS(ROW(),COLUMN(),4),L!$A:$A,0)-1,SL,,)","v":"Standard Smelter Names"},{"$f":"OFFSET(L!$C$1,MATCH(\"Smelter Look-up\"&ADDRESS(ROW(),COLUMN(),4),L!$A:$A,0)-1,SL,,)","v":"Smelter Facility Location: Country"},{"$f":"OFFSET(L!$C$1,MATCH(\"Smelter Look-up\"&ADDRESS(ROW(),COLUMN(),4),L!$A:$A,0)-1,SL,,)","v":"Smelter ID"},{"$f":"OFFSET(L!$C$1,MATCH(\"Smelter Look-up\"&ADDRESS(ROW(),COLUMN(),4),L!$A:$A,0)-1,SL,,)","v":"Source of Smelter Identification Number"},{"$f":"OFFSET(L!$C$1,MATCH(\"Smelter Look-up\"&ADDRESS(ROW(),COLUMN(),4),L!$A:$A,0)-1,SL,,)","v":"Smelter Street "},{"$f":"OFFSET(L!$C$1,MATCH(\"Smelter Look-up\"&ADDRESS(ROW(),COLUMN(),4),L!$A:$A,0)-1,SL,,)","v":"Smelter City"},{"$f":"OFFSET(L!$C$1,MATCH(\"Smelter Look-up\"&ADDRESS(ROW(),COLUMN(),4),L!$A:$A,0)-1,SL,,)","v":"Smelter Facility Location: State / Province"},"METAL+Alias","METAL+Alias"]
["Cobalt","Anhui Hanrui New Material Co., Ltd.","Anhui Hanrui New Material Co., Ltd.","CHINA","CID003927","RMI",null,"Chuzhou","Anhui Sheng",{"$f":"A5&B5","v":"CobaltAnhui Hanrui New Material Co., Ltd."},{"$f":"A5&B5","v":"CobaltAnhui Hanrui New Material Co., Ltd."}]
["Cobalt","CDM Lubumbashi","STE CONGO DONGFANG INTERNATIONAL MINING SAS","CONGO, DEMOCRATIC REPUBLIC OF THE","CID003430","RMI",null,"Lubumbashi","Haut-Katanga",{"$f":"A6&B6","v":"CobaltCDM Lubumbashi"},{"$f":"A6&B6","v":"CobaltCDM Lubumbashi"}]
["Cobalt","Chemaf Etoile","Chemaf Etoile","CONGO, DEMOCRATIC REPUBLIC OF THE","CID003264","RMI",null,"Lubumbashi","Haut-Katanga","CobaltChemaf Etoile","CobaltChemaf Etoile"]
["Cobalt","Chizhou CN New Materials and Technology Co., Ltd.","Chizhou CN New Materials and Technology Co., Ltd.","CHINA","CID003481","RMI",null,"Chizhou","Anhui Sheng","CobaltChizhou CN New Materials and Technology Co., Ltd.","CobaltChizhou CN New Materials and Technology Co., Ltd."]
["Cobalt","Chizhou Xi’en New Material Technology Co., Ltd.","Chizhou CN New Materials and Technology Co., Ltd.","CHINA","CID003481","RMI",null,"Chizhou","Anhui Sheng","CobaltChizhou Xi’en New Material Technology Co., Ltd.","CobaltChizhou Xi’en New Material Technology Co., Ltd."]
["Cobalt","Compagnie de Tifnout Tiranimine","Compagnie de Tifnout Tiranimine","MOROCCO","CID003280","RMI",null,"Marrakech","Marrakech-Safi","CobaltCompagnie de Tifnout Tiranimine","CobaltCompagnie de Tifnout Tiranimine"]
["Cobalt","Complexe hydrométallurgique de Guemassa","Compagnie de Tifnout Tiranimine","MOROCCO","CID003280","RMI",null,"Marrakech","Marrakech-Safi","CobaltComplexe hydrométallurgique de Guemassa","CobaltComplexe hydrométallurgique de Guemassa"]
["Cobalt","CoreMax Corporation","CoreMax Corporation","TAIWAN, PROVINCE OF CHINA","CID003473","RMI",null,"Toufen","Miaoli","CobaltCoreMax Corporation","CobaltCoreMax Corporation"]
["Cobalt","Cosmo Chemical, Ltd.","Cosmo Chemical, Ltd.","KOREA, REPUBLIC OF","CID003415","RMI",null,"Ulsan","Gyeongsangnam-do","CobaltCosmo Chemical, Ltd.","CobaltCosmo Chemical, Ltd."]
["Cobalt","Cosmo EcoChem Co., Ltd.","Cosmo Chemical, Ltd.","KOREA, REPUBLIC OF","CID003415","RMI",null,"Ulsan","Gyeongsangnam-do","CobaltCosmo EcoChem Co., Ltd.","CobaltCosmo EcoChem Co., Ltd."]
["Cobalt","Dynatec Madagascar Company","Dynatec Madagascar Company","MADAGASCAR","CID003232","RMI",null,"Toamasina","Toamasina","CobaltDynatec Madagascar Company","CobaltDynatec Madagascar Company"]
["Cobalt","Eti Bakir A.S","Eti Bakir A.S","TURKEY","CID004057","RMI",null,"Mardin","Mardin","CobaltEti Bakir A.S","CobaltEti Bakir A.S"]
["Cobalt","Eti Bakır A.S","Eti Bakir A.S","TURKEY","CID004057","RMI",null,"Mardin","Mardin","CobaltEti Bakır A.S","CobaltEti Bakır A.S"]
["Cobalt","Eti Bakır A.Ş","Eti Bakir A.S","TURKEY","CID004057","RMI",null,"Mardin","Mardin","CobaltEti Bakır A.Ş","CobaltEti Bakır A.Ş"]
["Cobalt","Fairsky Industrial Co., Limited","Fairsky Industrial Co., Limited","CHINA","CID003469","RMI",null,"Baoding","Hebei Sheng","CobaltFairsky Industrial Co., Limited","CobaltFairsky Industrial Co., Limited"]
["Cobalt","Fort Saskatchewan Metals Facility","Fort Saskatchewan Metals Facility","CANADA","CID003242","RMI",null,"Toronto","Ontario","CobaltFort Saskatchewan Metals Facility","CobaltFort Saskatchewan Metals Facility"]
["Cobalt","Freeport Kokkola","Umicore Finland Oy","FINLAND","CID003226","RMI",null,"Kokkola","Mellersta Österbotten","CobaltFreeport Kokkola","CobaltFreeport Kokkola"]
["Cobalt","Fujian Evergreen New Energy Technology Co.","Fujian Evergreen New Energy Technology Co.","CHINA","CID003974","RMI",null,"Longyan City","Fujian Sheng","CobaltFujian Evergreen New Energy Technology Co.","CobaltFujian Evergreen New Energy Technology Co."]
["Cobalt","Gangzhou Yi Hao Umicore Industry Co.","Gangzhou Yi Hao Umicore Industry Co.","CHINA","CID003227","RMI",null,"Ganzhou","Jiangxi Sheng","CobaltGangzhou Yi Hao Umicore Industry Co.","CobaltGangzhou Yi Hao Umicore Industry Co."]
["Cobalt","Ganzhou Highpower Technology Co., Ltd.","Ganzhou Highpower Technology Co., Ltd.","CHINA","CID003384","RMI",null,"Ganzhou","Jiangxi Sheng","CobaltGanzhou Highpower Technology Co., Ltd.","CobaltGanzhou Highpower Technology Co., Ltd."]
["Cobalt","Ganzhou Tengyuan Cobalt New Material Co., Ltd.","Ganzhou Tengyuan Cobalt New Material Co., Ltd.","CHINA","CID003212","RMI",null,"Ganzhou","Jiangxi Sheng","CobaltGanzhou Tengyuan Cobalt New Material Co., Ltd.","CobaltGanzhou Tengyuan Cobalt New Material Co., Ltd."]
["Cobalt","Gem (Jiangsu) Cobalt Industry Co., Ltd.","Gem (Jiangsu) Cobalt Industry Co., Ltd.","CHINA","CID003209","RMI",null,"Taixing","Jiangsu Sheng","CobaltGem (Jiangsu) Cobalt Industry Co., Ltd.","CobaltGem (Jiangsu) Cobalt Industry Co., Ltd."]
["Cobalt","Glencore Nikkelverk Refinery","Glencore Nikkelverk Refinery","NORWAY","CID003403","RMI",null,"Kristiansand","Aust-Agder","CobaltGlencore Nikkelverk Refinery","CobaltGlencore Nikkelverk Refinery"]
["Cobalt","Guangdong Fangyuan Environment Co., Ltd.","Guangdong Fangyuan Environment Co., Ltd.","CHINA","CID003940","RMI",null,"Jiangmen City","Guangdong Sheng","CobaltGuangdong Fangyuan Environment Co., Ltd.","CobaltGuangdong Fangyuan Environment Co., Ltd."]
["Cobalt","Guangdong Jiana Energy Technology Co., Ltd.","Guangdong Jiana Energy Technology Co., Ltd.","CHINA","CID003291","RMI",null,"Guangzhou","Guangdong Sheng","CobaltGuangdong Jiana Energy Technology Co., Ltd.","CobaltGuangdong Jiana Energy Technology Co., Ltd."]
["Cobalt","Guangxi Yinyi Advanced Material Co., Ltd.","Guangxi Yinyi Advanced Material Co., Ltd.","CHINA","CID003213","RMI",null,"Yulin","Guangxi Zhuangzu Zizhiqu","CobaltGuangxi Yinyi Advanced Material Co., Ltd.","CobaltGuangxi Yinyi Advanced Material Co., Ltd."]
["Cobalt","Guizhou CNGR Resource Recycling Industry Development Co., Ltd.","Guizhou CNGR Resource Recycling Industry Development Co., Ltd.","CHINA","CID003610","RMI",null,"Tongren","Guizhou Sheng","CobaltGuizhou CNGR Resource Recycling Industry Development Co., Ltd.","CobaltGuizhou CNGR Resource Recycling Industry Development Co., Ltd."]
["Cobalt","Guizhou Red Star Electronic Material Co., Ltd.","Guizhou Red Star Electronic Material Co., Ltd.","CHINA","CID004391","RMI",null,"Tongren","Guizhou Sheng","CobaltGuizhou Red Star Electronic Material Co., Ltd.","CobaltGuizhou Red Star Electronic Material Co., Ltd."]
["Cobalt","Harima Refinery","Harima Refinery, Sumitomo Metal Mining","JAPAN","CID003577","RMI",null,"Kako-gun","Hyogo","CobaltHarima Refinery","CobaltHarima Refinery"]
["Cobalt","Harima Refinery, Sumitomo Metal Mining","Harima Refinery, Sumitomo Metal Mining","JAPAN","CID003577","RMI",null,"Kako-gun","Hyogo","CobaltHarima Refinery, Sumitomo Metal Mining","CobaltHarima Refinery, Sumitomo Metal Mining"]
["Cobalt","Hefei Rongjie Metal Technology Co., Ltd.","Hefei Rongjie Metal Technology Co., Ltd.","CHINA","CID003571","RMI",null,"Hefei","Anhui Sheng","CobaltHefei Rongjie Metal Technology Co., Ltd.","CobaltHefei Rongjie Metal Technology Co., Ltd."]
["Cobalt","Hunan Brunp Recycling Technology Co., Ltd.","Hunan Brunp Recycling Technology Co., Ltd.","CHINA","CID003219","RMI",null,"Changsha","Hunan Sheng","CobaltHunan Brunp Recycling Technology Co., Ltd.","CobaltHunan Brunp Recycling Technology Co., Ltd."]
["Cobalt","Hunan CNGR New Energy Science & Technology Co., Ltd.","Hunan CNGR New Energy Science & Technology Co., Ltd.","CHINA","CID003411","RMI",null,"Changsha","Hunan Sheng","CobaltHunan CNGR New Energy Science & Technology Co., Ltd.","CobaltHunan CNGR New Energy Science & Technology Co., Ltd."]
["Cobalt","Hunan Hina Advanced Material Co., Ltd.","Hunan CNGR New Energy Science & Technology Co., Ltd.","CHINA","CID003411","RMI",null,"Changsha","Hunan Sheng","CobaltHunan Hina Advanced Material Co., Ltd.","CobaltHunan Hina Advanced Material Co., Ltd."]
["Cobalt","Hunan Jinxin New Material Holding Co., Ltd.","Hunan Jinxin New Material Holding Co., Ltd.","CHINA","CID003470","RMI",null,"Yiyang","Hunan Sheng","CobaltHunan Jinxin New Material Holding Co., Ltd.","CobaltHunan Jinxin New Material Holding Co., Ltd."]
["Cobalt","Hunan Jinxin New Materials Co., Ltd.","Hunan Jinxin New Material Holding Co., Ltd.","CHINA","CID003470","RMI",null,"Yiyang","Hunan Sheng","CobaltHunan Jinxin New Materials Co., Ltd.","CobaltHunan Jinxin New Materials Co., Ltd."]
["Cobalt","Hunan Shiji Yintian New Material Co., Ltd.","Hunan Shiji Yintian New Material Co., Ltd.","CHINA","CID003467","RMI",null,"Yiyang","Hunan Sheng","CobaltHunan Shiji Yintian New Material Co., Ltd.","CobaltHunan Shiji Yintian New Material Co., Ltd."]
["Cobalt","Hunan Yacheng New Materials Co., Ltd.","Hunan Yacheng New Materials Co., Ltd.","CHINA","CID003404","RMI",null,"Changsha","Hunan Sheng","CobaltHunan Yacheng New Materials Co., Ltd.","CobaltHunan Yacheng New Materials Co., Ltd."]
["Cobalt","Hunan Zoomwe New Energy Science & Technology Co., Ltd.","Hunan CNGR New Energy Science & Technology Co., Ltd.","CHINA","CID003411","RMI",null,"Changsha","Hunan Sheng","CobaltHunan Zoomwe New Energy Science & Technology Co., Ltd.","CobaltHunan Zoomwe New Energy Science & Technology Co., Ltd."]
["Cobalt","ICoNiChem","ICoNiChem","UNITED KINGDOM OF GREAT BRITAIN AND NORTHERN IRELAND","CID003491","RMI",null,"Widnes","Cheshire West and Chester","CobaltICoNiChem","CobaltICoNiChem"]
["Cobalt","Jiana","Guangdong Jiana Energy Technology Co., Ltd.","CHINA","CID003291","RMI",null,"Guangzhou","Guangdong Sheng","CobaltJiana","CobaltJiana"]
["Cobalt","Jiangsu Cobalt Nickel Metal (KLK)","Gem (Jiangsu) Cobalt Industry Co., Ltd.","CHINA","CID003209","RMI",null,"Taixing","Jiangsu Sheng","CobaltJiangsu Cobalt Nickel Metal (KLK)","CobaltJiangsu Cobalt Nickel Metal (KLK)"]
["Cobalt","Jiangsu KLK Cobalt Nickel Metal Co., Ltd.","Gem (Jiangsu) Cobalt Industry Co., Ltd.","CHINA","CID003209","RMI",null,"Taixing","Jiangsu Sheng","CobaltJiangsu KLK Cobalt Nickel Metal Co., Ltd.","CobaltJiangsu KLK Cobalt Nickel Metal Co., Ltd."]
["Cobalt","Jiangsu Xiongfeng Technology Co., Ltd.","Jiangsu Xiongfeng Technology Co., Ltd.","CHINA","CID003293","RMI",null,"Haimen","Jiangsu Sheng","CobaltJiangsu Xiongfeng Technology Co., Ltd.","CobaltJiangsu Xiongfeng Technology Co., Ltd."]
["Cobalt","Jiangxi Jiangwu Cobalt industrial Co., Ltd.","Jiangxi Jiangwu Cobalt industrial Co., Ltd.","CHINA","CID003377","RMI",null,"Ganzhou","Jiangxi Sheng","CobaltJiangxi Jiangwu Cobalt industrial Co., Ltd.","CobaltJiangxi Jiangwu Cobalt industrial Co., Ltd."]
["Cobalt","Jiangxi Miracle Golden Tiger Cobalt Co. Ltd.","Jiangxi Miracle Golden Tiger Cobalt Co. Ltd.","CHINA","CID004003","RMI",null,"Ganzhou City","Jiangxi Sheng","CobaltJiangxi Miracle Golden Tiger Cobalt Co. Ltd.","CobaltJiangxi Miracle Golden Tiger Cobalt Co. Ltd."]
["Cobalt","Jiangxi Rui da Xinnengyuan Technology Co., Ltd.","Jiangxi Rui da Xinnengyuan Technology Co., Ltd.","CHINA","CID003447","RMI",null,"Yichun","Jiangxi Sheng","CobaltJiangxi Rui da Xinnengyuan Technology Co., Ltd.","CobaltJiangxi Rui da Xinnengyuan Technology Co., Ltd."]
["Cobalt","Jingmen GEM Co., Ltd.","Jingmen GEM Co., Ltd.","CHINA","CID003378","RMI",null,"Jingmen","Hubei Sheng","CobaltJingmen GEM Co., Ltd.","CobaltJingmen GEM Co., Ltd."]
["Cobalt","JSC Kolskaya Mining and Metallurgical Company (Kola MMC)","JSC Kolskaya Mining and Metallurgical Company (Kola MMC)","RUSSIAN FEDERATION","CID003233","RMI",null,"Monchegorsk","Murmanskaya oblast'","CobaltJSC Kolskaya Mining and Metallurgical Company (Kola MMC)","CobaltJSC Kolskaya Mining and Metallurgical Company (Kola MMC)"]
["Cobalt","Kamoto Copper Company","Kamoto Copper Company","CONGO, DEMOCRATIC REPUBLIC OF THE","CID003261","RMI",null,"Kolwezi","Lualaba","CobaltKamoto Copper Company","CobaltKamoto Copper Company"]
["Cobalt","Kasombo Minerals (SPRL) - MIKAS Huayou","LA MINIERE DE KASOMBO SAS","CONGO, DEMOCRATIC REPUBLIC OF THE","CID003276","RMI",null,"Lubumbashi","Haut-Katanga","CobaltKasombo Minerals (SPRL) - MIKAS Huayou","CobaltKasombo Minerals (SPRL) - MIKAS Huayou"]
["Cobalt","Kisanfu","Kisanfu Mining (Kimin)","CONGO, DEMOCRATIC REPUBLIC OF THE","CID003587","RMI",null,"Kolwezi","Lualaba","CobaltKisanfu","CobaltKisanfu"]
["Cobalt","Kisanfu Mining (Kimin)","Kisanfu Mining (Kimin)","CONGO, DEMOCRATIC REPUBLIC OF THE","CID003587","RMI",null,"Kolwezi","Lualaba","CobaltKisanfu Mining (Kimin)","CobaltKisanfu Mining (Kimin)"]
["Cobalt","Kola Mining and Metallurgical Company","JSC Kolskaya Mining and Metallurgical Company (Kola MMC)","RUSSIAN FEDERATION","CID003233","RMI",null,"Monchegorsk","Murmanskaya oblast'","CobaltKola Mining and Metallurgical Company","CobaltKola Mining and Metallurgical Company"]
["Cobalt","Kolwezi Tailings (KMT, aka Kingamyambo Musonoi Tailings)","La Compagnie de Traitement des Rejets de Kingamyambo S.A. (Metalkol S.A.)","CONGO, DEMOCRATIC REPUBLIC OF THE","CID003275","RMI",null,"Lubumbashi","Haut-Katanga","CobaltKolwezi Tailings (KMT, aka Kingamyambo Musonoi Tailings)","CobaltKolwezi Tailings (KMT, aka Kingamyambo Musonoi Tailings)"]
["Cobalt","La Compagnie de Traitement des Rejets de Kingamyambo S.A. (Metalkol S.A.)","La Compagnie de Traitement des Rejets de Kingamyambo S.A. (Metalkol S.A.)","CONGO, DEMOCRATIC REPUBLIC OF THE","CID003275","RMI",null,"Lubumbashi","Haut-Katanga","CobaltLa Compagnie de Traitement des Rejets de Kingamyambo S.A. (Metalkol S.A.)","CobaltLa Compagnie de Traitement des Rejets de Kingamyambo S.A. (Metalkol S.A.)"]
["Cobalt","La Miniere de Kambove","LA MINIERE DE KASOMBO SAS","CONGO, DEMOCRATIC REPUBLIC OF THE","CID003276","RMI",null,"Lubumbashi","Haut-Katanga","CobaltLa Miniere de Kambove","CobaltLa Miniere de Kambove"]
["Cobalt","La Miniere de Kasombo","LA MINIERE DE KASOMBO SAS","CONGO, DEMOCRATIC REPUBLIC OF THE","CID003276","RMI",null,"Lubumbashi","Haut-Katanga","CobaltLa Miniere de Kasombo","CobaltLa Miniere de Kasombo"]
["Cobalt","LA MINIERE DE KASOMBO SAS","LA MINIERE DE KASOMBO SAS","CONGO, DEMOCRATIC REPUBLIC OF THE","CID003276","RMI",null,"Lubumbashi","Haut-Katanga","CobaltLA MINIERE DE KASOMBO SAS","CobaltLA MINIERE DE KASOMBO SAS"]
["Cobalt","Lanzhou Jinchuan Advanced Materials Technology Co., Ltd.","Lanzhou Jinchuan Advanced Materials Technology Co., Ltd.","CHINA","CID003210","RMI",null,"Lanzhou","Gansu Sheng","CobaltLanzhou Jinchuan Advanced Materials Technology Co., Ltd.","CobaltLanzhou Jinchuan Advanced Materials Technology Co., Ltd."]
["Cobalt","Lianyou Metals Co., Ltd.","Lianyou Metals Co., Ltd.","TAIWAN, PROVINCE OF CHINA","CID004393","RMI",null,"Fangliao","Pingtung","CobaltLianyou Metals Co., Ltd.","CobaltLianyou Metals Co., Ltd."]
["Cobalt","LLC Vostok","LLC Vostok","RUSSIAN FEDERATION","CID003704","RMI",null,"Kostroma","Kostromskaya oblast'","CobaltLLC Vostok","CobaltLLC Vostok"]
["Cobalt","Lubumbashi (Mine de L’Etoile)","Chemaf Etoile","CONGO, DEMOCRATIC REPUBLIC OF THE","CID003264","RMI",null,"Lubumbashi","Haut-Katanga","CobaltLubumbashi (Mine de L’Etoile)","CobaltLubumbashi (Mine de L’Etoile)"]
["Cobalt","Luilu Metallurgical Plant","Kamoto Copper Company","CONGO, DEMOCRATIC REPUBLIC OF THE","CID003261","RMI",null,"Kolwezi","Lualaba","CobaltLuilu Metallurgical Plant","CobaltLuilu Metallurgical Plant"]
["Cobalt","Maolian","Tianjin Maolian Science & Technology Co., Ltd.","CHINA","CID003215","RMI",null,"Tianjin","Tianjin Shi","CobaltMaolian","CobaltMaolian"]
["Cobalt","Mechema Chemicals (Thailand) Co., Ltd.","Mechema Chemicals (Thailand) Co., Ltd.","THAILAND","CID003537","RMI",null,"Rayong","Rayong",{"$f":"A70&B70","v":"CobaltMechema Chemicals (Thailand) Co., Ltd."},{"$f":"A70&B70","v":"CobaltMechema Chemicals (Thailand) Co., Ltd."}]
["Cobalt","Mechema Chemicals shang-yu","Mechema Chemicals shang-yu","CHINA","CID003536","RMI",null,"Shaoxing","Zhejiang Sheng","CobaltMechema Chemicals shang-yu","CobaltMechema Chemicals shang-yu"]
["Cobalt","Mechema Korea, Co., Ltd.","Mechema Korea, Co., Ltd.","KOREA, REPUBLIC OF","CID003535","RMI",null,"Ulsan","Gyeongsangnam-do","CobaltMechema Korea, Co., Ltd.","CobaltMechema Korea, Co., Ltd."]
["Cobalt","Mechema Taiwan Plant 1","Mechema Taiwan Plant 1","TAIWAN, PROVINCE OF CHINA","CID003533","RMI",null,"Taoyuan","Taoyuan","CobaltMechema Taiwan Plant 1","CobaltMechema Taiwan Plant 1"]
["Cobalt","Mechema Taiwan Plant 2","Mechema Taiwan Plant 2","TAIWAN, PROVINCE OF CHINA","CID003534","RMI",null,"Taoyuan","Taoyuan","CobaltMechema Taiwan Plant 2","CobaltMechema Taiwan Plant 2"]
["Cobalt","METAL MINES SARL","METAL MINES SARL","CONGO, DEMOCRATIC REPUBLIC OF THE","CID003385","RMI",null,"Likasi","Haut-Katanga","CobaltMETAL MINES SARL","CobaltMETAL MINES SARL"]
["Cobalt","Metalkol","La Compagnie de Traitement des Rejets de Kingamyambo S.A. (Metalkol S.A.)","CONGO, DEMOCRATIC REPUBLIC OF THE","CID003275","RMI",null,"Lubumbashi","Haut-Katanga","CobaltMetalkol","CobaltMetalkol"]
["Cobalt","MIKAS","LA MINIERE DE KASOMBO SAS","CONGO, DEMOCRATIC REPUBLIC OF THE","CID003276","RMI",null,"Lubumbashi","Haut-Katanga","CobaltMIKAS","CobaltMIKAS"]
["Cobalt","Minara Resources Pty","Murrin Murrin Nickel Cobalt Plant","AUSTRALIA","CID003406","RMI",null,"Laverton","Western Australia","CobaltMinara Resources Pty","CobaltMinara Resources Pty"]
["Cobalt","Minara Resources Pty Ltd.","Murrin Murrin Nickel Cobalt Plant","AUSTRALIA","CID003406","RMI",null,"Laverton","Western Australia","CobaltMinara Resources Pty Ltd.","CobaltMinara Resources Pty Ltd."]
["Cobalt","Mine de Bou-Azzer","Mine de Bou-Azzer","MOROCCO","CID003279","RMI",null,"Tazenakht","Drâa-Tafilalet","CobaltMine de Bou-Azzer","CobaltMine de Bou-Azzer"]
["Cobalt","MKM - La Miniere de Kalumbwe Myunga","MKM - La Miniere de Kalumbwe Myunga","CONGO, DEMOCRATIC REPUBLIC OF THE","CID003464","RMI",null,"Kisanfu","Lualaba","CobaltMKM - La Miniere de Kalumbwe Myunga","CobaltMKM - La Miniere de Kalumbwe Myunga"]
["Cobalt","MKM - La Minière de Kalumbwe Myunga","MKM - La Miniere de Kalumbwe Myunga","CONGO, DEMOCRATIC REPUBLIC OF THE","CID003464","RMI",null,"Kisanfu","Lualaba","CobaltMKM - La Minière de Kalumbwe Myunga","CobaltMKM - La Minière de Kalumbwe Myunga"]
["Cobalt","Murrin Murrin Nickel Cobalt Plant","Murrin Murrin Nickel Cobalt Plant","AUSTRALIA","CID003406","RMI",null,"Laverton","Western Australia","CobaltMurrin Murrin Nickel Cobalt Plant","CobaltMurrin Murrin Nickel Cobalt Plant"]
["Cobalt","Mutanda Mining SPRL","Mutanda Mining SPRL","CONGO, DEMOCRATIC REPUBLIC OF THE","CID003301","RMI",null,"Kolwezi","Lualaba","CobaltMutanda Mining SPRL","CobaltMutanda Mining SPRL"]
["Cobalt","Nadezhda Metallurgical Plant (named after B.I. Kolesnikov) of the Polar Division of PJSC MMC Norilsk Nickel","Nadezhda Metallurgical Plant of MMC Norilsk Nickel's Polar Division","RUSSIAN FEDERATION","CID004011","RMI",null,"Norilsk","Krasnoyarskiy kray","CobaltNadezhda Metallurgical Plant (named after B.I. Kolesnikov) of the Polar Division of PJSC MMC Norilsk Nickel","CobaltNadezhda Metallurgical Plant (named after B.I. Kolesnikov) of the Polar Division of PJSC MMC Norilsk Nickel"]
["Cobalt","Nadezhda Metallurgical Plant of MMC Norilsk Nickel's Polar Division","Nadezhda Metallurgical Plant of MMC Norilsk Nickel's Polar Division","RUSSIAN FEDERATION","CID004011","RMI",null,"Norilsk","Krasnoyarskiy kray","CobaltNadezhda Metallurgical Plant of MMC Norilsk Nickel's Polar Division","CobaltNadezhda Metallurgical Plant of MMC Norilsk Nickel's Polar Division"]
["Cobalt","Nam Viet Cromit Joint Stock Company","Nam Viet Cromit Joint Stock Company","VIET NAM","CID004033","RMI",null,"Trieu Son","Thanh Hóa","CobaltNam Viet Cromit Joint Stock Company","CobaltNam Viet Cromit Joint Stock Company"]
["Cobalt","Nan Viet Ferrochrome Co., Ltd.","Nam Viet Cromit Joint Stock Company","VIET NAM","CID004033","RMI",null,"Trieu Son","Thanh Hóa","CobaltNan Viet Ferrochrome Co., Ltd.","CobaltNan Viet Ferrochrome Co., Ltd."]
["Cobalt","Nanjing Hanrui Cobalt","Nanjing Hanrui Cobalt","CHINA","CID003252","RMI",null,"Nanjing","Jiangsu Sheng","CobaltNanjing Hanrui Cobalt","CobaltNanjing Hanrui Cobalt"]
["Cobalt","Nantong Xinwei","Nantong Xinwei Nickel Cobalt Technology Development Co., Ltd.","CHINA","CID003221","RMI",null,"Haimei","Jiangsu Sheng","CobaltNantong Xinwei","CobaltNantong Xinwei"]
["Cobalt","Nantong Xinwei Nickel Cobalt Technology Development Co., Ltd.","Nantong Xinwei Nickel Cobalt Technology Development Co., Ltd.","CHINA","CID003221","RMI",null,"Haimei","Jiangsu Sheng","CobaltNantong Xinwei Nickel Cobalt Technology Development Co., Ltd.","CobaltNantong Xinwei Nickel Cobalt Technology Development Co., Ltd."]
["Cobalt","New Era Group Zhejiang Zhongneng Cycle Technology Co., Ltd.","Zhejiang New Era Zhongneng Technology Co., Ltd.","CHINA","CID003398","RMI",null,"Shaoxing","Zhejiang Sheng","CobaltNew Era Group Zhejiang Zhongneng Cycle Technology Co., Ltd.","CobaltNew Era Group Zhejiang Zhongneng Cycle Technology Co., Ltd."]
["Cobalt","New Providence Metals Marketing Inc.","Fort Saskatchewan Metals Facility","CANADA","CID003242","RMI",null,"Toronto","Ontario","CobaltNew Providence Metals Marketing Inc.","CobaltNew Providence Metals Marketing Inc."]
["Cobalt","Niihama Nickel and Cobalt Facility","Niihama Nickel Refinery, Sumitomo Metal Mining","JAPAN","CID003278","RMI",null,"Niihama","Ehime","CobaltNiihama Nickel and Cobalt Facility","CobaltNiihama Nickel and Cobalt Facility"]
["Cobalt","Niihama Nickel Refinery","Niihama Nickel Refinery, Sumitomo Metal Mining","JAPAN","CID003278","RMI",null,"Niihama","Ehime","CobaltNiihama Nickel Refinery","CobaltNiihama Nickel Refinery"]
["Cobalt","Niihama Nickel Refinery, Sumitomo Metal Mining","Niihama Nickel Refinery, Sumitomo Metal Mining","JAPAN","CID003278","RMI",null,"Niihama","Ehime","CobaltNiihama Nickel Refinery, Sumitomo Metal Mining","CobaltNiihama Nickel Refinery, Sumitomo Metal Mining"]
["Cobalt","Ningbo Hubang New Material Co., Ltd.","Ningbo Hubang New Material Co., Ltd.","CHINA","CID003465","RMI",null,"Ningbo","Zhejiang Sheng","CobaltNingbo Hubang New Material Co., Ltd.","CobaltNingbo Hubang New Material Co., Ltd."]
["Cobalt","Ningbo Yanmen Chemical Co., Ltd.","Ningbo Yanmen Chemical Co., Ltd.","CHINA","CID003422","RMI",null,"Ningbo","Zhejiang Sheng","CobaltNingbo Yanmen Chemical Co., Ltd.","CobaltNingbo Yanmen Chemical Co., Ltd."]
["Cobalt","NORILSK NICKEL HARJAVALTA OY","NORILSK NICKEL HARJAVALTA OY","FINLAND","CID003390","RMI",null,"Harvjavalta","Satakunta","CobaltNORILSK NICKEL HARJAVALTA OY","CobaltNORILSK NICKEL HARJAVALTA OY"]
["Cobalt","Port Colborne Refinery","Port Colborne Refinery","CANADA","CID003239","RMI",null,"Port Colborne","Ontario","CobaltPort Colborne Refinery","CobaltPort Colborne Refinery"]
["Cobalt","PT Mechema Indonesia","PT Mechema Indonesia","INDONESIA","CID003538","RMI",null,"Bekasi","Jawa Barat","CobaltPT Mechema Indonesia","CobaltPT Mechema Indonesia"]
["Cobalt","Quzhou Huayou Cobalt New Material Co., Ltd.","Quzhou Huayou Cobalt New Material Co., Ltd.","CHINA","CID003255","RMI",null,"Quzhou","Zhejiang Sheng","CobaltQuzhou Huayou Cobalt New Material Co., Ltd.","CobaltQuzhou Huayou Cobalt New Material Co., Ltd."]
["Cobalt","Ruashi","Ruashi Mining SAS","CONGO, DEMOCRATIC REPUBLIC OF THE","CID003442","RMI",null,"Luano","Haut-Katanga","CobaltRuashi","CobaltRuashi"]
["Cobalt","Ruashi Mining SAS","Ruashi Mining SAS","CONGO, DEMOCRATIC REPUBLIC OF THE","CID003442","RMI",null,"Luano","Haut-Katanga","CobaltRuashi Mining SAS","CobaltRuashi Mining SAS"]
["Cobalt","Sherritt","Fort Saskatchewan Metals Facility","CANADA","CID003242","RMI",null,"Toronto","Ontario","CobaltSherritt","CobaltSherritt"]
["Cobalt","SOCIETE MINIERE DU KATANGA (SOMIKA SARL)","SOCIETE MINIERE DU KATANGA (SOMIKA SARL)","CONGO, DEMOCRATIC REPUBLIC OF THE","CID003426","RMI",null,"Lubumbashi","Haut-Katanga","CobaltSOCIETE MINIERE DU KATANGA (SOMIKA SARL)","CobaltSOCIETE MINIERE DU KATANGA (SOMIKA SARL)"]
["Cobalt","Societe pour le Traitment du Terril de Lubumbashi (STL)","Societe pour le Traitment du Terril de Lubumbashi (STL)","CONGO, DEMOCRATIC REPUBLIC OF THE","CID003266","RMI",null,"Lubumbashi","Haut-Katanga","CobaltSociete pour le Traitment du Terril de Lubumbashi (STL)","CobaltSociete pour le Traitment du Terril de Lubumbashi (STL)"]
["Cobalt","STE CONGO DONGFANG INTERNATIONAL MINING SAS","STE CONGO DONGFANG INTERNATIONAL MINING SAS","CONGO, DEMOCRATIC REPUBLIC OF THE","CID003430","RMI",null,"Lubumbashi","Haut-Katanga","CobaltSTE CONGO DONGFANG INTERNATIONAL MINING SAS","CobaltSTE CONGO DONGFANG INTERNATIONAL MINING SAS"]
["Cobalt","Sumitomo Metal Mining","Niihama Nickel Refinery, Sumitomo Metal Mining","JAPAN","CID003278","RMI",null,"Niihama","Ehime","CobaltSumitomo Metal Mining","CobaltSumitomo Metal Mining"]
["Cobalt","SungEel HiMetal Co., Ltd.","SungEel HiTech Co., Ltd.","KOREA, REPUBLIC OF","CID003338","RMI",null,"Gunsan-si","Jeollabuk-do","CobaltSungEel HiMetal Co., Ltd.","CobaltSungEel HiMetal Co., Ltd."]
["Cobalt","SungEel HiTech Co., Ltd.","SungEel HiTech Co., Ltd.","KOREA, REPUBLIC OF","CID003338","RMI",null,"Gunsan-si","Jeollabuk-do","CobaltSungEel HiTech Co., Ltd.","CobaltSungEel HiTech Co., Ltd."]
["Cobalt","Tenke Fungrume Mining (TFM)","Tenke Fungurume Mining SA","CONGO, DEMOCRATIC REPUBLIC OF THE","CID003429","RMI",null,"Kolwezi","Lualaba","CobaltTenke Fungrume Mining (TFM)","CobaltTenke Fungrume Mining (TFM)"]
["Cobalt","Tenke Fungurume","Tenke Fungurume Mining SA","CONGO, DEMOCRATIC REPUBLIC OF THE","CID003429","RMI",null,"Kolwezi","Lualaba","CobaltTenke Fungurume","CobaltTenke Fungurume"]
["Cobalt","Tenke Fungurume Mining SA","Tenke Fungurume Mining SA","CONGO, DEMOCRATIC REPUBLIC OF THE","CID003429","RMI",null,"Kolwezi","Lualaba","CobaltTenke Fungurume Mining SA","CobaltTenke Fungurume Mining SA"]
["Cobalt","The Ambatovy","Dynatec Madagascar Company","MADAGASCAR","CID003232","RMI",null,"Toamasina","Toamasina","CobaltThe Ambatovy","CobaltThe Ambatovy"]
["Cobalt","Tianjin Maolian Science & Technology Co., Ltd.","Tianjin Maolian Science & Technology Co., Ltd.","CHINA","CID003215","RMI",null,"Tianjin","Tianjin Shi","CobaltTianjin Maolian Science & Technology Co., Ltd.","CobaltTianjin Maolian Science & Technology Co., Ltd."]
["Cobalt","Umicore Finland Oy","Umicore Finland Oy","FINLAND","CID003226","RMI",null,"Kokkola","Mellersta Österbotten","CobaltUmicore Finland Oy","CobaltUmicore Finland Oy"]
["Cobalt","Umicore Olen","Umicore Olen","BELGIUM","CID003228","RMI",null,"Olen","Antwerpen","CobaltUmicore Olen","CobaltUmicore Olen"]
["Cobalt","Vale – Long Harbour Processing Plant (LHPP)","Vale – Long Harbour Processing Plant (LHPP)","CANADA","CID003584","RMI",null,"Long Harbour","Newfoundland and Labrador","CobaltVale – Long Harbour Processing Plant (LHPP)","CobaltVale – Long Harbour Processing Plant (LHPP)"]
["Cobalt","Vale New Caledonia","Vale New Caledonia","FRANCE","CID003303","RMI",null,"Le Mont-Dore","Nouvelle-Calédonie (see also separate country code entry under NC)","CobaltVale New Caledonia","CobaltVale New Caledonia"]
["Cobalt","Vale Nouvelle-Caledonie S.A.S","Vale New Caledonia","FRANCE","CID003303","RMI",null,"Le Mont-Dore","Nouvelle-Calédonie (see also separate country code entry under NC)","CobaltVale Nouvelle-Caledonie S.A.S","CobaltVale Nouvelle-Caledonie S.A.S"]
["Cobalt","Vital Materials Plant","Vital Materials Plant","CHINA","CID003875","RMI",null,"Qingyuan City","Guangdong Sheng","CobaltVital Materials Plant","CobaltVital Materials Plant"]
["Cobalt","Vital Materials Workshop","Vital Materials Workshop","CHINA","CID003803","RMI",null,"Qingyuan City","Guangdong Sheng","CobaltVital Materials Workshop","CobaltVital Materials Workshop"]
["Cobalt","W&Q Metal Products Co., Limited","W&Q Metal Products Co., Limited","CHINA","CID003640","RMI",null,"Baoding","Hebei Sheng","CobaltW&Q Metal Products Co., Limited","CobaltW&Q Metal Products Co., Limited"]
["Cobalt","Xiangtan Huacheng Nickel Cobalt New Material Co., Ltd.","Xiangtan Huacheng Nickel Cobalt New Material Co., Ltd.","CHINA","CID003466","RMI",null,"Xiangtan","Hunan Sheng","CobaltXiangtan Huacheng Nickel Cobalt New Material Co., Ltd.","CobaltXiangtan Huacheng Nickel Cobalt New Material Co., Ltd."]
["Cobalt","Xiongfeng","Jiangsu Xiongfeng Technology Co., Ltd.","CHINA","CID003293","RMI",null,"Haimen","Jiangsu Sheng","CobaltXiongfeng","CobaltXiongfeng"]
["Cobalt","XTC New Energy Materials (Xiamen) LTD.","XTC New Energy Materials (Xiamen) LTD.","CHINA","CID003376","RMI",null,"Xiamen","Fujian Sheng","CobaltXTC New Energy Materials (Xiamen) LTD.","CobaltXTC New Energy Materials (Xiamen) LTD."]
["Cobalt","Zhejiang Greatpower Cobalt Materials Co., Ltd.","Zhejiang Greatpower Cobalt Materials Co., Ltd.","CHINA","CID003526","RMI",null,"Shaoxing","Zhejiang Sheng","CobaltZhejiang Greatpower Cobalt Materials Co., Ltd.","CobaltZhejiang Greatpower Cobalt Materials Co., Ltd."]
["Cobalt","Zhejiang Huayou Cobalt Co., Ltd.","Zhejiang Huayou Cobalt Company Limited","CHINA","CID003225","RMI",null,"Tongxiang","Zhejiang Sheng","CobaltZhejiang Huayou Cobalt Co., Ltd.","CobaltZhejiang Huayou Cobalt Co., Ltd."]
["Cobalt","Zhejiang Huayou Cobalt Company Limited","Zhejiang Huayou Cobalt Company Limited","CHINA","CID003225","RMI",null,"Tongxiang","Zhejiang Sheng","CobaltZhejiang Huayou Cobalt Company Limited","CobaltZhejiang Huayou Cobalt Company Limited"]
["Cobalt","Zhejiang New Era Zhongneng Technology Co., Ltd.","Zhejiang New Era Zhongneng Technology Co., Ltd.","CHINA","CID003398","RMI",null,"Shaoxing","Zhejiang Sheng","CobaltZhejiang New Era Zhongneng Technology Co., Ltd.","CobaltZhejiang New Era Zhongneng Technology Co., Ltd."]
["Cobalt","Zhejiang Power New Energy Materials Co., Ltd.","Zhejiang Power New Energy Materials Co., Ltd.","CHINA","CID003702","RMI",null,"Zhuji City","Zhejiang Sheng","CobaltZhejiang Power New Energy Materials Co., Ltd.","CobaltZhejiang Power New Energy Materials Co., Ltd."]
["Cobalt","Zhejiang Zhongjin Greatpower Lithium-Battery Industrial Corporation Co., Ltd.","Zhejiang Greatpower Cobalt Materials Co., Ltd.","CHINA","CID003526","RMI",null,"Shaoxing","Zhejiang Sheng","CobaltZhejiang Zhongjin Greatpower Lithium-Battery Industrial Corporation Co., Ltd.","CobaltZhejiang Zhongjin Greatpower Lithium-Battery Industrial Corporation Co., Ltd."]
["Cobalt","Zhuhai Kelixin Metal Materials Co., Ltd.","Zhuhai Kelixin Metal Materials Co., Ltd.","CHINA","CID003211","RMI",null,"Zhuhai","Guangdong Sheng",{"$f":"A134&B134","v":"CobaltZhuhai Kelixin Metal Materials Co., Ltd."},{"$f":"A134&B134","v":"CobaltZhuhai Kelixin Metal Materials Co., Ltd."}]
["Cobalt","Smelter not listed",{"$nulls":7},"CobaltSmelter not listed",{"$f":"A135&B135","v":"CobaltSmelter not listed"}]
["Cobalt","Smelter not yet identified","Unknown",{"$nulls":6},"CobaltSmelter not yet identified",{"$f":"A136&B136","v":"CobaltSmelter not yet identified"}]
["Mica","Arctic Minerals, LLC","Arctic Minerals, LLC","UNITED STATES OF AMERICA","CID003592","RMI",null,"Jeffersonville","Indiana","MicaArctic Minerals, LLC","MicaArctic Minerals, LLC"]
["Mica","DARUKA INTERNATIONAL","DARUKA INTERNATIONAL","INDIA","CID003621","RMI",null,"Pune","Mahārāshtra","MicaDARUKA INTERNATIONAL","MicaDARUKA INTERNATIONAL"]
["Mica","DARUKA MINCHEM PVT.LTD","DARUKA MINCHEM PVT.LTD","INDIA","CID004001","RMI",null,"Bhilwara","Rājasthān","MicaDARUKA MINCHEM PVT.LTD","MicaDARUKA MINCHEM PVT.LTD"]
["Mica","DARUKA MINERALS","DARUKA MINERALS","INDIA","CID003626","RMI",null,"Koderma","Jhārkhand","MicaDARUKA MINERALS","MicaDARUKA MINERALS"]
["Mica","G. K. INTERNATIONAL","G. K. INTERNATIONAL","INDIA","CID003623","RMI",null,"Kolkata","West Bengal","MicaG. K. INTERNATIONAL","MicaG. K. INTERNATIONAL"]
["Mica","HEBEI LINGSHOU COUNTY ZHONGKE MINERAL POWDER CO., LTD.","HEBEI LINGSHOU COUNTY ZHONGKE MINERAL POWDER CO., LTD.","CHINA","CID003979","RMI",null,"Shijiazhuang","Hebei Sheng","MicaHEBEI LINGSHOU COUNTY ZHONGKE MINERAL POWDER CO., LTD.","MicaHEBEI LINGSHOU COUNTY ZHONGKE MINERAL POWDER CO., LTD."]
["Mica","Hunan Rongtai New Material Co., Ltd.","Hunan Rongtai New Material Co., Ltd.","CHINA","CID003980","RMI",null,"Yueyang","Hunan Sheng","MicaHunan Rongtai New Material Co., Ltd.","MicaHunan Rongtai New Material Co., Ltd."]
["Mica","Imerys Canada, Inc.","Imerys Canada, Inc.","CANADA","CID003589","RMI",null,"Montreal","Quebec","MicaImerys Canada, Inc.","MicaImerys Canada, Inc."]
["Mica","Imerys Mica Kings Mountain, Inc.","Imerys Mica Kings Mountain, Inc.","UNITED STATES OF AMERICA","CID003591","RMI",null,"Kings Mountain","North Carolina","MicaImerys Mica Kings Mountain, Inc.","MicaImerys Mica Kings Mountain, Inc."]
["Mica","JSC “Sludyanaya Fabrika”","JSC “Sludyanaya Fabrika”","RUSSIAN FEDERATION","CID003664","RMI",null,"Saint-Petersburg","Sankt-Peterburg","MicaJSC “Sludyanaya Fabrika”","MicaJSC “Sludyanaya Fabrika”"]
["Mica","LAXIM MINERALS CORPORATION","LAXIM MINERALS CORPORATION","INDIA","CID003624","RMI",null,"Koderma","Jhārkhand","MicaLAXIM MINERALS CORPORATION","MicaLAXIM MINERALS CORPORATION"]
["Mica","Mica Electrical Material (Luhe) Co., Ltd.","Mica Electrical Material (Luhe) Co., Ltd.","CHINA","CID003987","RMI",null,"Shanwei","Guangdong Sheng","MicaMica Electrical Material (Luhe) Co., Ltd.","MicaMica Electrical Material (Luhe) Co., Ltd."]
["Mica","Minerals i Derivats, S.A.","Minerals i Derivats, S.A.","SPAIN","CID003985","RMI",null,"L'Arboc","Tarragona [Tarragona]","MicaMinerals i Derivats, S.A.","MicaMinerals i Derivats, S.A."]
["Mica","MODI MICA ENTERPRISES","Modi Mica Enterprises","INDIA","CID003513","RMI",null,"Koderma","Jhārkhand","MicaMODI MICA ENTERPRISES","MicaMODI MICA ENTERPRISES"]
["Mica","Nanjing Jinyun Mica Ltd.","Nanjing Jinyun Mica Ltd.","CHINA","CID003787","RMI",null,"Nanjing","Jiangsu Sheng","MicaNanjing Jinyun Mica Ltd.","MicaNanjing Jinyun Mica Ltd."]
["Mica","Pachisia & Co.","Pachisia & Co.","INDIA","CID003599","RMI",null,"Koderma","Jhārkhand","MicaPachisia & Co.","MicaPachisia & Co."]
["Mica","Southeastern Performance Minerals, LLC","Southeastern Performance Minerals, LLC","UNITED STATES OF AMERICA","CID003590","RMI",null,"Sandersville","Georgia","MicaSoutheastern Performance Minerals, LLC","MicaSoutheastern Performance Minerals, LLC"]
["Mica","SUBLIME MICA EXPORTS","SUBLIME MICA EXPORTS","INDIA","CID003629","RMI",null,"Gudur","Andhra Pradesh","MicaSUBLIME MICA EXPORTS","MicaSUBLIME MICA EXPORTS"]
["Mica","The Jai Mica Supply Co., PVT Ltd.","The Jai Mica Supply Co., PVT Ltd.","INDIA","CID004067","RMI",null,"Giridih","Jhārkhand","MicaThe Jai Mica Supply Co., PVT Ltd.","MicaThe Jai Mica Supply Co., PVT Ltd."]
["Mica","The JAI Mica Supply Company Limited","The Jai Mica Supply Co., PVT Ltd.","INDIA","CID004067","RMI",null,"Giridih","Jhārkhand","MicaThe JAI Mica Supply Company Limited","MicaThe JAI Mica Supply Company Limited"]
["Mica","Von Roll Brazil Ltd.","VON ROLL BRAZIL LTDA","BRAZIL","CID003593","RMI",null,"Maracanaú","Ceará","MicaVon Roll Brazil Ltd.","MicaVon Roll Brazil Ltd."]
["Mica","VON ROLL BRAZIL LTDA","VON ROLL BRAZIL LTDA","BRAZIL","CID003593","RMI",null,"Maracanaú","Ceará","MicaVON ROLL BRAZIL LTDA","MicaVON ROLL BRAZIL LTDA"]
["Mica","Von Roll do Brasil Ltda","VON ROLL BRAZIL LTDA","BRAZIL","CID003593","RMI",null,"Maracanaú","Ceará","MicaVon Roll do Brasil Ltda","MicaVon Roll do Brasil Ltda"]
["Mica","Yamaguchi Mica","Yamaguchi Mica","JAPAN","CID003512","RMI",null,"Toyokawa","Aichi","MicaYamaguchi Mica","MicaYamaguchi Mica"]
["Mica","Yamaguchi Mica Co., Ltd. Shinshiro Factory","Yamaguchi Mica Co., Ltd. Shinshiro Factory","JAPAN","CID003971","RMI",null,"Shinshiro","Aichi","MicaYamaguchi Mica Co., Ltd. Shinshiro Factory","MicaYamaguchi Mica Co., Ltd. Shinshiro Factory"]
["Mica","Yamaguchi Mica Co., Ltd. Toyohashi Factory","Yamaguchi Mica Co., Ltd. Toyohashi Factory","JAPAN","CID003970","RMI",null,"Toyohashi","Aichi","MicaYamaguchi Mica Co., Ltd. Toyohashi Factory","MicaYamaguchi Mica Co., Ltd. Toyohashi Factory"]
["Mica","Smelter not listed",{"$nulls":7},"MicaSmelter not listed","MicaSmelter not listed"]
["Mica","Smelter not yet identified","Unknown",{"$nulls":6},"MicaSmelter not yet identified","MicaSmelter not yet identified"]

{"sheet":"L","index":8,"n_rows":291,"n_cols":8,"rows_kept":291,"cut":false,"hidden":true,"merged":[]}
[null,"Sheets","Cells","English","中文 Chinese","日本語 Japanese","한국어 Korean","Français"]
[{"$f":"B2&C2","v":"InstructionsA1"},"Instructions","A1","RMI:www.responsiblemineralsinitiative.org/","RMI 网站：(http://www.responsiblemineralsinitiative.org/)","RMIウェブサイト：www.responsiblemineralsinitiative.org/","RMI:www.responsiblemineralsinitiative.org/","RMI:www.responsiblemineralsinitiative.org/"]
[{"$f":"B3&C3","v":"InstructionsA2"},"Instructions","A2","Introduction","介绍","始めに","소개","Introduction"]
["InstructionsA3","Instructions","A3","This Extended Mineral Reporting Template (EMRT) is a free, standardized reporting template created by the Responsible Minerals Initiative® (RMI®). The Template facilitates the transfer of information through the supply chain regarding mineral country of origin and smelters, refiners and processors being utilized and supports the exercise of due diligence in accordance with the OECD Due Diligence Guidance for Responsible Supply Chains of Minerals from Conflict-Affected and High-Risk Areas. The template also facilitates the identification of new smelters and refiners to potentially undergo an audit via the Responsible Minerals Assurance Process.\n\nThe EMRT was designed for downstream companies to disclose information about their supply chains up to but not including the smelter.  If you are a smelter or refiner, we recommend you enter your own name in the smelter list tab.\n\nWhen filling out the form, none of the cell entries should start with \"=\" or \"#.\"","此扩展矿物报告模板 (EMRT) 是 Responsible Minerals Initiative®（负责任矿物计划® (RMI®)）创建的免费标准化报告‏‎模板。该模板促进了通过关于矿产原产国、所使用冶炼厂、精炼厂和加工厂的供应链的信息传输，并且支持了按照《经济合作与发展组织关于来自受冲突影响和高风险地区矿石的负责任供应链尽职调查指南》(OECD Due Diligence Guidance for Responsible Supply Chains of Minerals from Conflict-Af‎‎‎fected and High-Risk Areas) 执行尽职调查。该模板还促进辨识新的冶炼厂和精炼厂以通过负责任矿物审验流程对这些厂家进行潜在的审核。\n\nEMRT 旨在供下游企业披露与其供应链\n（截至但不包括冶炼厂）相关的信息。如果贵公司是冶炼厂或精炼厂，我们建议您在“冶炼厂目录”选项卡中输入贵公司名称。\n\n填好的表格中不应有单元格条目以“=”或\n“#”开头。","この拡張鉱物報告テンプレート（EMRT）は、Responsible Minerals Initiative®（RMI®）が作成した、無料の標準報告テンプレートです。このテンプレートは鉱物の原産国と、使用される製錬業者、精製業者、加工業者に関しサプライチェーンを通して情報を収集することを円滑にし、OECD紛争地域および高リスク地域からの鉱物の責任あるサプライチェーンのためのデュー・ディリジェンスガイダンスに沿ったデュー・ディリジェンスの実施を支援します。このテンプレートは、責任ある鉱物保証プロセス（Responsible Minerals Assurance Process）に則った監査を受ける可能性のある、新たな製錬・精製業者の特定も支援します。\n\nEMRTは、川下企業が、川下企業から製錬業者までの（製錬業者を含まない）サプライチェーンに関する情報を開示するために考案されたものです。製錬業者または精製業者の場合は、「製錬業者リストタブ（Smelter List）」に貴社名を記入することをお勧めします。\n\nフォームに記入する際、セルへの記入内容が「=」または「#」で始まることはできません。","본 확대된 광물 보고 양식(EMRT) 은  Responsible Minerals Initiative®(RMI®)가 만든 표준화 된 무상 보고 양식입니다. 이 보고 양식은 공급망 간 광물의 원산지 국가, 관여된 제련소, 정련소, 가공업자들에 관한 정보 전달을 용이하게 하고, 분쟁및 고위험지역에서의 책임있는 광물조달에 대한 OECD 실사지침에 따른 실사 이행을 지원합니다.  이 보고서 양식은 책임있는 광물 보증 프로세스를 통한 감사 받을 가능성이 있는 새로운 제련소, 정련소에 대한 확인을 용이하게 합니다.\n\nEMRT 는 다운스트림 회사가 제련소를 포함하지 않는 선까지의  회사 공급망 정보를 공개하도록 설계되었습니다. 귀사가 제련소 또는 정련소인 경우에는 귀사이름을 제련소 목록 탭에 귀사 이름을 기입할 것을 권장합니다. \n\n양식에 기입할때 어떠한 셀에도 \"=' 또는 \"#\" 로 시작하는 내용이 없어야 합니다. ","Ce modèle de rapport sur les minerais élargi (Extended Mineral Reporting Template (EMRT)) est un modèle derapport standard et gratuit créé par l’Initiative pour des minerais responsables (Responsible Minerals Initiative®, RMI®). Le modèle permet le transfert d’informations tout au long de la chaîne d’approvisionnement concernant le pays d’origine du minerai, les fonderies, les raffineries et les transformateurs utilisés. Il soutient l’exercice de la diligence raisonnable conformément aux Directives de l’OCDE en matière de diligence raisonnable pour les chaînes d’approvisionnement responsables des minéraux issus de zones de conflit et à haut risque. Le modèle permet également l’identification de nouvelles fonderies et raffineries pour les soumettre éventuellement à un audit via le Processus d’assurance des minéraux responsables.\n\nL’EMRT a été conçu pour que les entreprises en aval divulguent des informations sur leurs chaînes d’approvisionnement jusqu’à leur fonderie, mais excluant celle-ci. Si vous êtes un fondeur ou un raffineur, nous vous recommandons de saisir votre propre nom dans l’onglet Liste de fonderies.\n\nLorsque vous remplissez le formulaire, aucune des cellules ne doit commencer par « = » ou « # ».\n"]
["InstructionsA5","Instructions","A5","Instructions for completing Company Information questions (rows 8 - 22).\nProvide comments in ENGLISH only","公司资料填写说明（第8-22行）。只限英文作答","会社情報の記入（8～22行）に関する解説。\n回答は英語(半角)で入力してください。","회사 정보 질문(8~22행)의 답변 지침. \n영어로만 의견을 작성하십시오","Instructions pour compléter les informations relatives à votre entreprise (lignes 8 - 22). Merci de répondre en anglais uniquement."]
["InstructionsA6","Instructions","A6","Note:  Entries with (*) are mandatory fields. ","注：带星号（*）的栏目必须填写","注：(*)のある欄は必須回答項目です。","참고:  (*) 표시가 있는 항목은 필수 기재란입니다. ","Remarque : Les astérisques (*) marquent des champs obligatoires."]
["InstructionsA7","Instructions","A7","1. Insert your company's Legal Name.  Please do not use abbreviations. In this field you have the option to add other commercial names, DBAs, etc. This field is mandatory.","1. 插入贵公司的法定名称。请不要使用缩写。\n在此字段中，您可以选择添加其他商业名称、营业名称等。此栏必须填写。","1. 貴社の正式名称を記入してください。省略形は使わないでください。このフィールドでは、他の社名やDBAなどを追加することができます。このフィールドは記入必須です。","1. 귀사의 법적인 공식 명칭을 기입하십시오. 축약된 명칭을 기입하면 안됩니다. 이 항목에는 다른 상업명, DBA 등을 추가할 수 있는 옵션이 있습니다. 이 기재란은 필수 사항입니다.","1. Entrez la dénomination sociale de votre société. Merci de ne pas utiliser d’abréviations. Dans ce champ, vous avez la possibilité d’ajouter d’autres noms commerciaux, le gestionnaire de votre base de données, etc. Ce champ est obligatoire."]
["InstructionsA8","Instructions","A8","2. Select your company's Declaration Scope.  The options for scope are:\n\nA.  Company-wide\nB.  Product (or List of Products)\nC.  User-Defined \n\nFor \"Company-wide\", the declaration encompasses the entirety of a company's products or product substances produced by the parent company. Therefore if the user is reporting cobalt or natural mica data at the company level, they will be reporting data on all products they manufacture. \n\nFor Scope selection of Product (or List of Products), a link to the worksheet tab for Product List will be displayed.  If this scope is chosen, it is mandatory to list the Manufacturer's Product Number of the products covered under the Scope of this Declaration in Column B of the Product List worksheet. It is optional to list the Manufacturer's Product Name in Column C of the Product List worksheet.\n\nFor Scope selection of \"User Defined\", it is mandatory that the user describes the scope to which the cobalt or natural mica disclosure is applicable. The scope of this class shall be defined in a text field by the supplier and should be easily understood by customers or the receivers of the document. As an example, companies may provide a link to clarifying information.\n\nThis field is mandatory.","2. 选择贵公司的申报范围。范围的选项为：\n\nA. 全公司\nB. 产品（或产品清单）\nC. 自定义 \n\n如果选择范围为“全公司”，申报包括该公司的全部产品或由其母公司生产的全部产品物质。如果用户从公司层面报告钴数据，则需要报告关于其生产的所有产品的数据。\n\n如果选择范围为“产品（或产品清单）”，将显示产品清单的工作表选项卡。如果选择了此范围，则必须在“产品清单”工作表的 B 列中列出此申报范围涵盖的\n产品的制造商产品序号。可以选择是否在“产品清单”工作表的 C 列中列出制造商产品名称。\n\n如果选择范围为“自定义”，用户必须描述钴披露适用的范围。该分类的范围应当由供应商在文本字段中定义，并且易于被客户或文档的接收人理解。举个例子，公司可以提供阐明信息的链接。\n\n此栏必须填写。","2.  貴社の申告範囲を選択してください。申告範囲の選択肢は以下のとおりです:\n\nA. Company-wide（全社）\nB. Product (or List of Products)（製品（または製品リスト））\nC. User-Defined（ユーザー定義）\n\n「全社」の場合、申告には親会社が製造する製品又は製品素材全体が含まれます。したがって貴社が企業レベルでのコバルト又は天然マイカデータを報告している場合は、貴社が製造する全製品に関するデータを報告することになります。\n\n申告範囲に「製品レベル」を選択すると、製品リストのワークシートへのリンクが表示されます。この申告範囲を選択した場合は、本申告範囲に当てはまる製品のメーカー品目番号を製品リストシートのB列に記入してください。製品リストシートC列へのメーカー品目説明の記入は任意です。\n\n申告範囲に「ユーザー定義」を選択した場合、コバルト又は天然マイカの開示が適用される範囲を記入しなければなりません。このクラスの申告範囲は、顧客又はサプライヤーが容易に理解できるように、サプライヤーによってテキストフィールドに申告範囲を定義されなければなりません。一例として、企業は明確な情報へのリンクを提供することができます。\n\n\n\nこのフィールドは記入必須です。","2. 귀사의 선언 범위를 선택하십시오. 선언 범위에 대한 선택 샤야은: \n\nA.  회사전체\nB.  제품(또는 제품 목록)\nC.  사용자 정의 \n\n\"회사전체\"를 선택할 경우, 이 선언은 회사의 제품 또는 모회사에 의해 생산된 제품의 구성물질 전체를 포함합니다. 그러므로 사용자가 회사 수준에서 코발트 또는 천연운모 데이터를 선언하고 있는 경우, 회사가 제조하는 모든 제품에 대해 데이터를 선언하게 될 것입니다.\n\n“제품(또는 제품의 목록)”을 선택하면, 제품 목록을 위한 워크시트 탭의 링크가 나타납니다. 이 범위가 선택된다면 이 선언범위에 속하는 제조자의 제품 번호를 제품 목록 워크시트의 칼럼 B에 열거하여야 합니다. 제품목록 워크시트의 C 열에 제품이름을 열거하는 것은 선택사항입니다. \n\n\"사용자 정의\"를 선택하면, 사용자는 반드시 코발트 또는 천연운모 공개가 적용될 범위를 설명해야 합니다. 이 등급의 범위는 공급자가 텍스트란에 정의해야 하며 고객 또는 문서의 수신자가 쉽게 이해할 수 있어야 합니다. 예를 들어, 회사는 정보를 명확하게 하기 위해 링크를 제공할 수도 있습니다. \n\n이 기재란은 필수 사항입니다.","2. Sélectionnez le champ d’application de la déclaration de votre société. Les options de champ d’application sont les suivantes :\n\nA. Ensemble de la société\nB. Produit (ou Liste de produits)\nC. Défini par l’utilisateur \n\nPour l’option « Ensemble de la société », la déclaration englobe la totalité des produits de la société ou substances des produits fabriqués par la société mère. Ainsi, si l’utilisateur déclare des données concernant du cobalt ou du mica minéral à l’échelle de la société, il déclarera des données sur tous les produits qu’il fabrique. \n\nSi le champ d’application est le produit (ou liste de produits), un lien vers l’onglet de la feuille de travail de liste des produits sera affiché. Si ce champ d’application est sélectionné, il est obligatoire de mentionner le numéro de produit du fabricant pour les produits couverts par le champ d’application de cette déclaration dans la colonne B de la feuille de travail de liste des produits. Il n’est pas obligatoire de mentionner le nom des produits du fabricant dans la colonne C de la feuille de travail de liste de produits.\n\nEn sélectionnant le champ d’application « Défini par l’utilisateur », l’utilisateur doit décrire le champ d’application faisant l’objet de la déclaration de cobalt ou de mica naturel. Pour cette classe, le champ d’application doit être renseigné dans un champ de texte par le fournisseur et doit être facilement compris par les clients ou les destinataires du document. Par exemple, les entreprises peuvent fournir un lien vers des informations explicatives complémentaires.\n\nCe champ est obligatoire."]
["InstructionsA9","Instructions","A9","3. Insert your company’s unique identifier number or code (DUNS number, VAT number, customer-specific identifier, etc.)","3. 输入贵公司的唯一识别序号或编号\n（DUNS号码，VAT号码，客户特定识别码等）","3.  貴社固有の識別番号又はコードを記入してください（DUNSナンバー、VATナンバー、顧客固有番号等）。","3. 귀사의 고유 식별 번호 또는 코드(DUNS 번호, VAT 번호, 고객별 식별자 등)를 입력하십시오. ","3. Entrez le numéro ou code identificateur unique de votre entreprise (numéro DUNS, numéro TVA, identifiant spécifique au client, etc.)"]
[{"$f":"B10&C10","v":"InstructionsA10"},"Instructions","A10","4. Insert the source for the unique identifier number or code (\"DUNS\", \"VAT\", \"Customer\", etc).  ","4. 输入唯一识别序号或编号的出处 （如“DUNS”，“VAT”，“客户”等）","4. 固有の識別番号又はコードの発行元を記入してください（「DUNS」「VAT」「顧客」等）。","4. 고유 식별 번호 또는 코드의 출처를 입력하십시오(\"DUNS\", \"VAT\", \"고객\" 등)  ","4. Indiquer la source pour l'identifiant unique de votre entreprise (numéro DUNS, numéro TVA, etc…)"]
["InstructionsA11","Instructions","A11","5. Insert your full company address (street, city, state, country, postal code). This field is optional.","5. 插入贵公司的完整地址（街道、城市、州、国家或地区、邮政编码）。此为必填字段。","5. 貴社の住所を省略せずに記入してください（番地、市、州/都道府県、国、郵便番号） 。このフィールドは任意です。","5.  귀사의 주소를 기입하십시오. (시, 구, 동, 우편번호 등).  이 필드는 선택 사항입니다.","5. Entrez l’adresse complète de votre entreprise (rue, ville, pays, code postal). Ce champ est optionnel."]
["InstructionsA12","Instructions","A12","6. Insert the name of the person to contact regarding the contents of the declaration information. This field is mandatory.","6. 插入与申报信息内容相关的联系人姓名。\n此栏必须填写。","6. 申告内容に関する連絡先の名前を記入してください。このフィールドは記入必須です。","6. 신고 정보의 내용에 관해서 연락할 사람의 이름을 입력하십시오. 이 기재란은 필수 사항입니다.","6. Insérez le nom de la personne à contacter concernant le contenu des informations de la déclaration. Ce champ est obligatoire."]
["InstructionsA13","Instructions","A13","7. Insert the email address of the contact person.  If an email address is not available, state \"not available\" or \"n/a\". A blank field may cause an error in form implementation. This field is mandatory.  ","7. 插入联系人的电子邮件地址。如果没有电子邮件地址，请说明“无”或“不适用”。如留空此字段，会导致此表格出错。此为必填字段。","7.連絡先の電子メール・アドレスを記入してください。電子メールが利用不可能な場合、「利用不可」又はn/aとしてください。空欄のままにするとフォームの実行時にエラーが発生する可能性があるため記入してください。このフィールドは記入必須です。","7.  담당직원 이메일 주소를 기입하십시오. 혹 이메일 주소가 없는 경우, \"not available\" (없음) 또는 \"N/A\"를 기입하십시오.","7. Indiquez l'adresse email de la personne à contacter. Si cette personne n'a pas d'adresse email, indiquez « non disponible » ou « n/a ». Un champ vide peut provoquer une erreur dans l'exécution de ce formulaire. Ce champ est obligatoire."]
["InstructionsA14","Instructions","A14","8. Insert the telephone number for the contact. This field is mandatory.","8. 插入联系人的电话号码。此栏必须填写。","8. 連絡先電話番号を記入してください。このフィールドは記入必須です。","8. 연락할 사람의 전화번호를 입력하십시오. 이 기재란은 필수 사항입니다.","8. Insérez le numéro de téléphone du contact. Ce champ est obligatoire."]
["InstructionsA15","Instructions","A15","9. Insert the name of the person who  is responsible for the contents of the declaration information. The authorizer may be a different individual than the contact person. It is not correct to use the words ‘‘same’’ or similar identification to provide the name of the authorizer. This field is mandatory.","9. 插入负责申报信息内容的人的姓名。\n授权人可能是另一人而非联系人。使用“相\n同”字眼或类似认定以提供授权人的姓名是不正确的。此栏必须填写。","9.申告内容の回答責任者の名前を記入してください。連絡先と異なる人でも構いません。回答責任者を「同上」又は同様の表現は避けてください。このフィールドは記入必須です。","9. 선언 정보의 책임자 이름을 입력하십시오. 책임자는 연락처 담당자와 다른 사람일 수 있습니다. 책임자의 이름을 입력할 때 \"same(상동)\" 또는 이와 유사한 식별 단어를 사용하지 마십시오. 이 기재란은 필수 사항입니다.","9. Insérez le nom de la personne responsable du contenu des informations de la déclaration. L’approbateur peut ne pas être la même personne que le contact. Il n’est pas correct d’utiliser les mots « même personne » ou une identification similaire pour fournir le nom de l’approbateur. Ce champ est obligatoire"]
["InstructionsA16","Instructions","A16","10. Insert the title for the Authorizing person. This field is optional.","10. 输入授权人的职位。 此为选填字段。","10. 回答責任者の役職を記入してください。このフィールドは任意です。","10. 책임자 직함을 기입하십시오.   이 필드는 선택 사항입니다.","10. Indiquez le titre de la personne donnant l’autorisation. Ce champ est facultatif."]
["InstructionsA17","Instructions","A17","11. Insert the email address of the Authorizing person.  If an email address is not available, state ‘‘not available’’ or ‘‘n/a.’’ A blank field may cause an error in form implementation. This field is mandatory.","11. 插入授权人的电子邮件地址。\n如果电子邮件地址不可用，说明“不可用”或“n/a”。空白字段可能导致表格填写错误。此栏必须填写。","11.回答責任者の電子メールアドレスを記入してください。電子メールが不可の場合、「利用不可」又は「n/a」としてください。このフィールドが空欄の場合、フォームの実行時にエラーが発生する可能性があります。このフィールドは記入必須です。","11. 책임자의 이메일 주소를 입력하십시오. 이메일 주소를 제공할 수 없는 경우에는 “해당 없음” 또는 “n/a”라고 입력하십시오. 항목을 비워두면 양식 구현에 오류가 발생할 수 있습니다. 이 기재란은 필수 사항입니다.","11. Insérez l’adresse e-mail de la personne donnant l’autorisation. Si une adresse e-mail n’est pas disponible, saisissez « non disponible » ou « n/a ». Un champ vide peut entraîner une erreur dans le traitement du formulaire. Ce champ est obligatoire."]
[{"$f":"B18&C18","v":"InstructionsA18"},"Instructions","A18","12. Insert the telephone number for the Authorizing person. This field is optional.","12. 插入授权人的电话号码。此字段自由选择填写。","12. 回答責任者の電話番号を記入してください。このフィールドは任意です。","12. 책임자의 전화 번호를 입력하십시오. 이 기재란은 필수 사항입니다.","12. Indiquez le numéro de téléphone de la personne donnant l’autorisation. Ce champ est facultatif."]
["InstructionsA19","Instructions","A19","13. Please enter the Date of Completion for this form using the format DD-MMM-YYYY.  This field is mandatory.","13. 请使用以下格式输入表格填写完毕的\n日期：年—月—日。此栏必须填写。","13. このテンプレートの作成日をDD-MMM-YYYY（例: 01-JAN-2012）の形式で記入してください。このフィールドは記入必須です。","13. DD-MM-YYYY 형식을 사용하여 이 양식의 완료일을 입력하십시오. 이 기재란은 필수 사항입니다.","13. Veuillez saisir la date de fin de ce formulaire au format JJ-MM-AAAA. Ce champ est obligatoire."]
["InstructionsA20","Instructions","A20","14. As an example, the user may save the file name as:  companyname-date.xlsx (date as YYYY-MM-DD).  ","14. 申报人应按“公司名-年月日.xlsx”\n格式来命名并存档本报告。（日期格式为年-月-日）","14. 例えば、ファイル名を「会社名-日付.xlsx」として保存します（日付はYYYY-MM-DDで記述）。","14. 예를 들어, 사용자는 파일명을 회사이름-날짜.xlsx (날짜로서 YYYY-MM-DD 사용)로 저장할 수 있습니다. ","14. Le rapport peut par exemple être sauvegardé sous le nom suivant: nomdelentreprise-date.xlsx (date au format AAAA-MM-JJ)."]
["InstructionsA22","Instructions","A22","Instructions for completing the seven Declaration of Scope Questions (rows 24 - 63).\nProvide answers in ENGLISH only","六个申报范围问题的答复说明（第 24 - 63 行）。\n仅以英文提供答复","デュー・ディリジェンスに関する6つの質問（24 - 63行）に対する解説。\n回答は英語（半角）で入力してください。","6개 신고 범위 질문의 답변 지침(24 - 63행). \n답변은 영어로만 기입하십시오","Instructions pour répondre aux sept questions relatives à la Déclaration sur la portée (lignes 24 à 63).\nMerci de répondre en ANGLAIS uniquement.\n"]
["InstructionsA23","Instructions","A23","These seven questions define the usage, origination and sourcing identification for cobalt or natural mica. The questions are designed to collect information about the use of cobalt or natural mica in the company’s product(s) and the completeness of reporting. Responses to these questions shall represent the ‘Declaration Scope’ selected in the company information section.","这七个问题明确了钴的用途、原产地和采购识别信息。这些问题旨在收集关于公司产品中钴的使用情况和报告完整性的信息。对于这些问题的答复应当陈述公司信息部分中选择的“申报范围”。","これらの7つの質問は、コバルト又は天然マイカの使用法、原産地、調達先を明確にするものです。質問は、貴社の製品中へのコバルト又は天然マイカの使用と報告の完全性に関する情報を収集するために作られています。質問への回答は、企業情報に関するセクションで選択した「申告範囲」が対象となります。","다음의 일곱 가지 질문은 코발트 또는 전연운모에 대한 사용, 원산지, 조달 식별 정보를 규정합니다. 이 질문들은 회사 제품에 코발트 또는 천연운모 사용에 대한 정보를 수집하고, 완전한 보고를  가능하도록 하기 위한 것입니다.  이러한 질문에 대한 답변은 회사 정보 섹션에서 선택한 ‘선언 범위’에 대한 것입니다. ","Ces sept questions définissent l’usage, l’origine et l’identification de la provenance du cobalt ou du mica naturel. Les questions sont conçues pour recueillir des informations au sujet de l’utilisation du cobalt ou du mica naturel dans le(s) produit(s) de la société et sur l’exhaustivité des rapports. Les réponses à ces questions doivent représenter la « portée de la déclaration » sélectionnée dans la section des informations sur la société."]
[{"$f":"B23&C23","v":"InstructionsA24"},"Instructions","A24","Provide comments in the Comment sections as required to clarify your responses.","按要求在备注部分提供备注来进一步说明您的答复。","回答を補足する必要がある場合は、備考欄に記入してください。","답변을 명확하게 하기 위해 필요에 따라 의견 섹션에 의견을 작성해 주십시오. ","Si nécessaire, merci d'inscrire vos commentaires dans la section prévue à cet effet afin de clarifier vos réponses"]
["InstructionsA25","Instructions","A25","Provide an answer using the pull down menu selections. If the response for cobalt or natural mica to question 1 and 2 is positive, then all questions shall be completed for cobalt or natural mica and the following due diligence questions (A to G) shall be completed about the company’s overall due diligence program.","使用下拉菜单选项提供答案。如果钴的问题 1 答复是肯定的，则应完成钴的所有问题，而且应完成关于公司的总体审核鉴定计划的后续审核鉴定问题（A 至 I）。","コバルト又は天然マイカに関する質問1への回答が「Yes」の場合、コバルト又は天然マイカについてすべての質問に記入し、貴社のデュー・ディリジェンスプログラム全体に関する下記のデュー・ディリジェンス関連の質問（A～I）にも回答する必要があります。","풀다운 선택 메뉴 선택을 이용하여 답변을 제공합니다. 코발트 또는 천연운모에 대한 질문 1과 2의 답변이 예인 경우, 코발트 또는 전연운모에 대한 모든 질문들이 답변 되어야 하고, 회사의 전반적인 실사 프로그램과 관련된 이어지는 실사 질문들(A 에서 G 까지)에도 답변을 제공해야 합니다.","Fournissez une réponse à l’aide des sélections du menu déroulant. Si la réponse à la question 1 et 2 est positive pour le cobalt ou le mica naturel, vous devez répondre à toutes les questions pour le cobalt ou le mica naturel, et répondre aux questions suivantes sur la diligence raisonnable (A à G) concernant le programme global de diligence raisonnable de votre société."]
["InstructionsA26","Instructions","A26","1. This question is used to determine whether cobalt or natural mica is within the scope of the reporting requirement.  The response to this question serves to exclude any trace-level contaminants or naturally-occurring by-products.\n\nThis question asks if any cobalt or natural mica is used as raw material, component or additive in a product that you manufacture, including compounds. Impurities from raw materials, components, additives, abrasives, and cutting tools are outside the scope of the survey.\n\nThe answer to this question shall be either \"yes\" \"no\" \"unknown\" or \"not applicable for this declaration\". \"Not applicable for this declaration\" can be used if a material is not in scope of the declaration.","1. 此问题用于确定钴或天然云母是否在报告要求的范围内。此问题的答复用于排除任何痕量级杂质或自然生成的副产品。\n\n此问题询问是否有任何钴或天然云母在贵公司生产的产品（包括化合物）中用作原材料、组件或添加物。原材料、组件、添加物、磨具和切削工具中的杂质不在此调查范围。\n\n此问题的有效答复为“是”、“否”、“不知道”、“对此申报不适用”。当原料不在申报的范围内时，可以回答“对此申报不适用”。","1.この質問は、コバルト又は天然マイカが報告要件の範囲内に当てはまるかを判定するために使用されます。 この質問の回答は、微量の汚染物質や自然発生する副産物を排除することができます。\n\nこの質問では、貴社が製造する化学物質を含む製品に原材料、部品又は添加物としてコバルト又は天然マイカが使用されているか否かを質問します。原材料、部品、添加物、研磨剤および切削工具からの不純物は本調査の範囲外です。\n\n「Yes（はい）」「No（いいえ）」「Unknown（不明）」又は「Not applicable for this declaration（本申告適用外）」で回答してください。「Not applicable for this declaration（本申告適用外）」は、材料が申告の範囲内にない場合に使用できます。","1. 이 질문은 코발트 또는 천연 운모가 보고 요건 범위 내에 있는지 결정하기 위해 사용됩니다. 이 질문에 대한 답변은 모든 미소량 오염 물질 또는 자연 발생 부산물을 배제하기 위한 것입니다. \n\n이 질문은 화합물을 포함하여 귀사가 제조한 제품에서 원료, 구성요소 또는 첨가제로서 코발트 또는 천연 운모의 사용 여부를 묻습니다. 원료, 구성요소, 첨가제, 연마제, 절삭 공구에서 나온 불순물은 본 설문조사의 범위가 아닙니다. \n\n이 질문에 대한 유효한 답변은 \"Yes(예)\", \"No(아니요)\", \"unknown(모름)\" 또는 \"이 선언에 해당하지 않음\"이어야 합니다. \"이 선언에 해당하지 않음\"은 물질이 선언 범위에 속하지 않을 경우에 사용할 수 있습니다.","1. Cette question est utilisée pour déterminer si le cobalt ou le mica naturel est dans la portée des exigences de déclaration. La réponse à cette question permet d’exclure les contaminants à l'état de traces ou les sous-produits apparaissant naturellement.\n\nCette question a pour but de déterminer si du cobalt ou du mica naturel est utilisé comme matériau brut, composant ou additif dans un produit que vous fabriquez, y compris les composés. Les impuretés provenant de matières premières, composés, additifs, abrasifs et outils de coupe ne relèvent pas de l’étude.\n\nLes réponses valides à cette question sont « oui », « non », « ne sais pas » ou « non applicable pour cette déclaration ». « Non applicable pour cette déclaration » peut être utilisée si le matériau n’est pas dans la portée de la déclaration."]
["InstructionsA27","Instructions","A27","Some companies may require substantiation for a \"No\" answer that should be entered into the Comment Field.","部分公司可能要求给出“否”答复的证据，这些证据应当输入备注字段。","「No（いいえ）」という回答に対して、コメント欄に具体的な内容の記入を要求する企業もあります。","일부 기업은 \"No(아니요)\" 답변에 대해 입증할 수 있는 근거를 의견 란에 입력하도록 요구할 수 있습니다. ","Dans le cas d'une réponse négative, certaines entreprises peuvent exiger des justifications qui devront être saisies dans le champ de commentaire."]
["InstructionsA28","Instructions","A28","2. This question shall be answered for cobalt and/or mica for which the answer to question 1 is \"yes.\" This is the second of two questions for which the response is used to determine whether the cobalt or mica is within the scope of this reporting template.  This question is dependent upon the question and response to Question 1.  This question is intended to identify cobalt and mica which are intentionally added or included in the manufacturing process of a product where some amount of the cobalt and mica remains in the finished product.  This includes cobalt and mica which may not have been intended to become part of the final product and may not be necessary to the functionality of the product but are only present as residuals of the manufacturing process.  In many cases, the manufacturer may have attempted to remove or facilitate consumption of the cobalt and mica during the manufacturing process, however, some amount of the cobalt and mica remains.  Should the cobalt or mica, which is added or included during the manufacturing process, be completely removed such that none of the cobalt or mica remains upon the completion of that process, the response to this question would be no.\n\nThis question shall be answered for cobalt and mica. Valid answers to this question are either \"yes\", \"no\", or \"unknown\". This question is mandatory. ","2. 对于对问题 1 答复“是”的每个情况，必须为钴和/或云母回答此问题。这是两个问题中的第一个问题，其答复用来确定钴或云母是否在冲突矿产报告模版的范围内。此问题取决于问题和对问题 1 的答复。此问题旨在确定在产品生产过程中有意添加或包含的钴和云母（若一定数量的钴和云母仍保留在成品中）。这包括可能并非要成为成品中的一部分以及可能并非对产品的功能有必要，而只是作为生产过程的残留物存在的钴和云母。在很多情况下，制造商可能已在生产过程中试图除去或促进消耗钴和云母，但还是有一定数量的钴和云母残留。若在生产过程中添加或纳入的钴或云母被完全移除，因此在该过程完成后，将没有钴或云母残留，对此问题的答复将是否。\n\n必须为钴或云母回答这个问题。此问题的有效答复为“是”、“否”、“不知道”。此问题必须作答。","2. この質問は、質問1の回答が「Yes（はい）」である場合にはコバルト及び／又はマイカについて回答するものとします。これは2つある質問の2番目の質問で、コバルト又はマイカがこの報告テンプレートの範囲内にあるか否かを判定するためにこの質問の回答は使用されます。この質問は、質問1の質問や回答と関連付けられています。この質問は、コバルト及びマイカがある程度完成品に残留している場合、コバルト及びマイカが意図的に製品の製造過程で追加又は使用されているのかを特定するためのものです。これには、完成品の一部として使用する意図がなく、製品の機能性にとって必要性が低いものの、製造過程の残留物として存在しているコバルト及びマイカも含まれます。多くの場合、メーカーは製造過程中にコバルト及びマイカの削除又は消耗を促進しようと努めますが、ある程度のコバルト及びマイカが残留します。コバルト又はマイカが製造過程中に加えられた又は含まれたが、その製造過程の完了時にコバルト又はマイカが残留しないように完全に除去された場合、この質問の回答は「No（いいえ）」となります。\n\nこの質問は、コバルト及びマイカについて回答する必要があります。「Yes（はい）」「No（いいえ）」又は「Unknown（不明）」で回答してください。この質問への回答は必須です。","2. 이 질문은 질문 1에 대한 답변이 '예' 인 코발트 또는 운모 대해 답변되어야 합니다. 이 질문은 코발트 또는 운모가 보고요건의 범주 안에 속하는지 여부를 판단하기 위한 두가지 질문들 중 두번째 질문입니다.  이질문 첫번째 질문과 관련이 없으며, 별개로 답변되어야 합니다.  이 질문은 일정량의 코발트 또는 운모가 남아 있는 최종 완제품의  제조공정에 의도적으로 투입되거나 포함되는 코발트 또는 운모를 파악하기 위한 것입니다. 이는 의도적인 최종제품 구성의 일부가 아니거나 제품의 기능구현에 필요하지는 않지만, 단지 제조 공정상에서 잔여물로 남아 있는 코발트나 운모도 이에 해당합니다. 많은 경우에 제조업체는 제조 공정 중에 사용된 코발트 및 운모를 제거하거나 소진되게끔  하지만, 일정량의 코발트및 운모가 남아 있을 수 있습니다. 코발트 또는 운모가 제조 공정 중에는 추가 또는 포함되지만 공정 완료 시에 코발트 또는 운모 가 완전히 제거되는 경우에는 이 질문에 \"No\"라고 답해야 합니다. \n\n이 질문은 각 코발트 및 운모에 대해 답해야 합니다. 이 질문에 대한 유효한 답변은 \"Yes(예)\", \"No(아니요)\" 또는 \"unknown(모름)\" 입니다. 이 질문은 필수 사항입니다. ","2. Vous devrez répondre à cette question pour le cobalt et/ou le mica dont la réponse à la question 1 est « oui ». Il s’agit de la deuxième des deux questions dont la réponse est utilisée pour déterminer si le cobalt ou le mica est concerné par la portée du modèle de déclaration. Cette question dépend de la question et de la réponse à la question 1. Cette question vise à identifier le cobalt et le mica qui sont ajoutés ou intégrés volontairement au processus de fabrication d’un produit, lorsqu’une certaine quantité du cobalt et du mica demeure dans le produit fini. Cela comprend le cobalt et le mica qui n’étaient probablement pas destinés à faire partie du produit final et n’étaient probablement pas « indispensables au fonctionnement » du produit, mais qui étaient présents uniquement en tant que résidus du processus de fabrication. Dans de nombreux cas, le fabricant peut avoir tenté de supprimer ou de faciliter la consommation de cobalt et de mica lors du processus de fabrication, mais une certaine quantité de cobalt et de mica demeure. Si le cobalt et le mica ajoutés ou intégrés au cours du processus de fabrication sont totalement éliminés de manière à ce qu'il n'en reste aucun à la fin du processus, la réponse à cette question est « non ». Une réponse doit être donnée pour le cobalt et le mica. Les réponses valides à cette question sont soit « oui », « non » ou « ne sais pas ». La réponse à cette question est obligatoire. "]
[{"$f":"B28&C28","v":"InstructionsA29"},"Instructions","A29","3. This is a declaration that any portion of the cobalt or natural mica contained in a product or multiple products originates from a conflict-affected and high-risk area (CAHRA). The answer to this question should be \"yes\" if any smelter in the supply chain sources from CAHRAs, regardless of whether such a smelter has been independently audited or not.\n\nThe answers to this question for cobalt shall be \"yes,\" \"no,\" \"unknown,\" or \"DRC only.\" The answers to this question for mica shall be \"yes,\" \"no,\" \"unknown,\" or \"India and/or Madagascar only.\" Substantiate a \"Yes\" answer in the comments section.  An answer of \"unknown\" is an acceptable response. This question is mandatory for cobalt or natural mica if the response to Question 1 and 2 is \"Yes.\"","3. 此申报是要确定一种产品或多种产品中钴或天然云母的任何部分的源产地是受冲突影响和高风险地区 (CAHRA)。如果供应链中的任何冶炼厂从 CAHRA 进行采购，无论此冶炼厂是否经过独立审计，则对此问题的答复应为“是”。\n\n为钴回答此问题时，答案应该是“是”、“否”、“不知道”或者“仅刚果民主共和国”。为云母回答此问题时，答案应该是“是”、“否”、“不知道”或者“仅印度和/或马达加斯加”。 如果回答“是”，请在备注部分提供证明。回答“不知道”是可接受的。如果对问题 1 和 2 的答复为“是”，则必须为钴或天然云母回答此问题。","3.これは、製品または複数の製品に含まれるコバルト又は天然マイカの一部が、紛争地域および高リスク地域（CAHRA）を原産としているかの申告です。 そのような製錬業者が独立した第三者から監査されているかどうかに関わらず、サプライチェーン上の製錬業者がCAHRAsから調達している場合は、この質問に対する回答は「Yes（はい）」になります。\n\nコバルトに関するこの質問には「Yes（はい）」「No（いいえ）」「Unknown（不明）」又は「DRC only（DRCのみ）」で回答してください。マイカに関するこの質問には、「Yes（はい）」「No（いいえ）」「Unknown（不明）」又は「India and/or Madagascar only（インド及び／又はマダガスカルのみ）」で回答してください。「Yes（はい）」の場合は、具体的に備考欄に記入してください。「Unknown（不明）」と回答することも可能です。質問1及び2の回答が「Yes（はい）」の場合、この質問はコバル又は天然マイカに関して必須です。","3. 이것은 단일 제품 또는 여러 제품들에 포함된 코발트 또는 천연운모 어느 부분이라도 분쟁 및 고위험 지역(CAHRA)으로부터 유래된 것인지에 대한 선언입니다. 공급망에 있는 제련소가 고위험지역(CAHRA)에서 조달하는 경우에는 그러한 제련소가 독립적으로 감사를 받았는지 여부에 관계없이 이 질문에 \"Yes(예)\"라고 답해야 합니다.\n\n코발트에 대한 이 질문에 대한 답변은 \"Yes(예)\", \"No(아니요)\", \"unknown(모름)\", \"DRC 또는 그 인접 국가만\" 가능한 합니다. 운모에 대한 이 질문에 대한 답변은 \"Yes(예)\", \"No(아니요)\", \"Unknown(모름)\" 또는 \"India and/or Madagascar only(인도 및/또는 마다가스카만\" 입니다. 답변이 \"Yes(예)\"인 경우, 의견 섹션에 구체적인 내용을 기재하십시오. \"unknown(모름\")이라는 답변도 가능한 답변입니다. 이 질문은 질문 1 및 2의 답변이 \"Yes(예)\"인 경우 필수로 답변하여야합니다.","3. Ceci est une déclaration indiquant qu’une partie du cobalt ou du mica naturel contenu dans un produit ou plusieurs produits provient d’une zone touchée par des conflits et à haut risque (Conflict-Affected and High-Risk Area, CAHRA). La réponse à cette question doit être « Oui » si une fonderie de la chaîne d’approvisionnement se fournit dans des CAHRA, qu’une telle fonderie ait été auditée indépendamment ou non.\n\nLes réponses à cette question seront « oui », « non », « ne sais pas », « RDC uniquement ». Les réponses pour cette question pour le mica seront « oui », « non », « ne sais pas » ou « Inde et/ou Madagascar uniquement ». Justifiez la réponse « Oui » dans la section commentaires. Une réponse « Ne sais pas » est une réponse acceptable. Cette question est obligatoire pour le cobalt ou le mica naturel si la réponse à la question 1 est « Oui ».\n"]
["InstructionsA30","Instructions","A30","4. This is a declaration that identifies whether cobalt contained in the product(s) originate exclusively from recycled or scrap sources. \n\nThe answer to this question shall be \"yes\", \"no\", or \"unknown\".\n\nA \"Yes\" answer means that 100% of the cobalt comes from recycled or scrap sources.  A \"No\" answer means that some of the raw material does not come from recycled or scrap sources. An \"Unknown\" answer means that the user does not know whether or not 100% of the raw material comes from recycled or scrap sources.  This field is mandatory.\n\nNote: As of the date of this publication, there is no significant post-consumer recycling of mica.","4. 此申报确定产品中包含的钴是否完全来自回收料或报废料。\n\n以“是”、“否”或“不知道”来答复此问题。\n\n答复“是”表示 100% 的钴来自回收料或报废料。答复“否”表示部分原材料不是来自回收料或报废料。答复“不知道”表示用户不知道是否 100% 的原材料来自回收料或报废料。此字段必须填写。\n\n注：至本模版出版之日，目前尚未进行规模化回收用后云母。","4.これは、製品に含まれるコバルトが再生利用品又はスクラップ起源を由来としているかどうかを示す申告です。\n\n「Yes（はい）」「No（いいえ）」又は「Unknown（不明）」で回答してください。\n\n「Yes（はい）」とは、コバルトの全てを再生利用品又はスクラップ起源を由来としていることを意味します。「No（いいえ）」とは、原材料の一部は再生利用品又はスクラップ起源から調達していないことを意味します。「Unknown（不明）」とは、原材料の全てが再生利用品又はスクラップ起源から調達されているかどうかを貴社が把握していないことを意味します。このフィールドは記入必須です。\n\n注：本文書の発行時点で、際立った使用済みマイカの再生利用はありません。","3. 이것은 제품에 포함된 코발트가 재활용이나 폐자원에서 나온 것인지 여부를 식별하는 선언입니다.\n\n이 질문에 대한 답변은 \"Yes(예)\", \"No(아니요)\" 또는 \"unknown(모름)\"이어야 합니다.\n\n\"Yes(예)\"는 코발트의 100%가 재활용이나 폐자원에서 나온 것임을 의미합니다. \"No(아니요)\"는 원자재의 일부가 재활용이나 폐자원에서 나온 것이 아님을 의미합니다. \"Unknown(모름)\"은 원자재의 100%가 재활용이나 폐자원에서 나온 것인지 여부를 사용자가 알지 못함을 의미합니다. 이 기재란은 필수 사항입니다.\n\n참고: 이 발행물의 발간 시점에 운모의 유의미한 사용 후 재활용은 없습니다.","4. Ceci est une déclaration qui détermine si le cobalt contenu dans le ou les produits provient exclusivement de sources recyclées ou de déchets.\n\nLa réponse à cette question doit être « Oui », « Non » ou « Ne sais pas ».\n\nLa réponse « Oui » signifie que 100 % du cobalt provient de sources recyclées ou de déchets. La réponse « Non » signifie qu’une partie des matériaux bruts ne provient pas de sources recyclées ou de déchets. La réponse « Ne sais pas » signifie que l’utilisateur ne sait pas si 100 % des matériaux bruts proviennent de sources recyclées ou de déchets. Ce champ est obligatoire. \n\nRemarque : À la date de cette publication, il n’existe pas de recyclage important de mica après utilisation.\n\n"]
["InstructionsA31","Instructions","A31","5. This is a question to determine whether a company has received disclosures from all direct suppliers reasonably believed to be providing cobalt or natural mica contained in the products covered by the scope of this declaration. Permissible responses to this question are:\n\n­ 100%\n­ Greater than 90%\n­ Greater than 75%\n- Greater than 50%\n- 50% or less\n- None\n\nThis field is mandatory.","5. 此问题是要确定公司是否已经从被合理认为提供本申报范围中产品含有的钴或天然云母的所有直接供应商处得到相关披露。本问题的允许答复有：\n\"\n­ 100%\n­ 超过 90%\n­ 超过 75%\n­ 超过 50%\n- 50% 或以下\n- 无\n\n此栏必须填写。","5. 企業が、申告範囲内の製品に含まれるコバルト又は天然マイカを供給すると合理的に考えられる全ての直接サプライヤーからの開示情報を受け取ったかを企業が判定する申告です。回答は、以下の中から選択してください。\n\n- 100%\n- 90%超\n- 75%超\n- 50%超\n- 50%以下\n- なし\n\nこのフィールドは記入必須です。","4. 이 질문은 회사가 본 선언의 범주에 있는 제품에 포함된 코발트 또는 천연 운모를 공급한다고 합리적으로 간주되는 모든 직접 공급업체로부터 보고를 받았는지 여부를 판단하기 위한 것입니다. 이 질문에 허용되는 답변은 다음과 같습니다.\n\n­ 100%\n- 90% 초과\n- 75% 초과\n- 50% 초과\n- 50% 이하\n- 없음\n\n이 기재란은 필수 사항입니다.","5. Il s’agit d’une question visant à déterminer si une société a reçu des divulgations en provenance de tous les fournisseurs directs raisonnablement susceptibles de fournir du cobalt ou du mica naturel contenu dans les produits couverts par le champ d'application de cette déclaration. Les réponses possibles à cette question sont :\n\n- 100 %\n- Supérieur à 90 %\n- Supérieur à 75 %\n- Supérieur à 50 %\n- 50 % ou moins\n- Aucune\n\nCe champ est obligatoire.\n"]
["InstructionsA32","Instructions","A32","6. This question verifies if the supplier has reason to believe they have identified all of the smelters providing cobalt or natural mica in the products covered by this declaration. The answer to this question shall be \"Yes\" \"No\" or \"unknown\", along with a comment in certain cases, e.g. list of smelters. This field is mandatory.","6. 此问题是要核实供应商是否有理由相信他们已识别出提供此申报涵盖的产品中的钴或天然云母的所有冶炼厂。本问题的答复有“是”、“否”或“不知道”，并就情况进行说明，如冶炼厂目录。此字段必须填写。","6. この質問は、サプライヤーがこの申告の対象となるコバルト又は天然マイカを供給する製錬業者を全て特定したと考えられる理由があるかどうかを検証します。この質問への回答は、「Yes（はい）」「No（いいえ）」又は「Unknown（不明）」で、コメントを伴う場合もあります（例：製錬業者のリスト）。このフィールドは記入必須です。","5. 이 질문은 공급업체가 본 선언 범주내의 제품에 있는 코발트 또는 천연 운모를 제공하는 모든 제련소를 파악했다고 신뢰할 이유가 있는지 여부를 확인합니다. 이 질문에 대한 답변은 \"Yes(예)\", \"No(아니요)\" 또는 \"unknown(모름)\"이어야 합니다(어떤 경우에는 의견, 예를 들어 제련소 목록을 첨부함). 이 기재란은 필수 사항입니다.","6. Cette question vise à déterminer si le fournisseur a des raisons de croire qu’il a identifié toutes les fonderies qui lui fournissent du cobalt ou du mica naturel relativement aux produits couverts par cette déclaration. La réponse à cette question doit être « Oui », « Non » ou « Ne sais pas », accompagnée d’un commentaire dans certains cas, par exemple une liste des fonderies. Ce champ est obligatoire."]
["InstructionsA33","Instructions","A33","7. This question verifies that all of the smelters or processors identified to be providing any of the raw materials contained in the products covered by the scope of this declaration have been reported in this declaration. The answer to this question shall be \"yes,\" \"no,\" or \"unknown\" along with a comment in certain cases e.g. list of smelters.","7. 此问题是要核实经确定为提供此申报范围涵盖产品中含有的任何原材料的所有冶炼厂或加工厂是否已在此申报中报告。本问题的答复有“是”、“否”或“不知道”，并就情况说明，如冶炼厂目录。","7. この質問は、この申告の範囲の対象となる製品に含まれているいずれかの原材料を供給すると特定されている全ての精錬業者又は加工業者が、この申告で報告されていることを検証します。この質問への回答は、「Yes（はい）」「No（いいえ）」又は「Unknown（不明）」で、コメントを伴う場合もあります（例：製錬業者のリスト）。","7. 이 질문은 이 선언 범주내의 제품에 원재료를 제공하는 모든 제련소 또는 가공업체가 본 선언에 보고되었는지를 확인합니다. 이 질문에 대한 답변은 \"Yes(예)\", \"No(아니요)\" 또는 \"Unknown(모름):이어야 하며, 필요한 경우에는 주석을 달 수 있습니다. 예를 들어 '제련소 목록'을 첨부함.","7. Cette question vise à déterminer si toutes les fonderies et les transformateurs identifiés comme fournissant tout matériau brut contenu dans les produits couverts par la portée de cette déclaration ont été signalés dans cette déclaration. La réponse à cette question peut être doit être « oui », « non » ou « ne sais pas » accompagnée d’un commentaire dans certains cas, par exemple une liste des fonderies. "]
["InstructionsA35","Instructions","A35","Instructions for completing Questions A. – G. (rows 69 - 83). Questions A through G are mandatory if the response to Question 1 and Question 2 is \"Yes\" for cobalt or natural mica.\nProvide answers in ENGLISH only.","问题 A – G 回答说明（69 - 83 行）。如果为钴或天然云母回答问题 1 和 2 的答复为“是”，则必须回答问题 A 到 G。\n仅以英文提供答复。","質問A～Gの記入方法について（行69～83）。コバルトまたは天然マイカに対する質問1及び質問2の回答が「Yes（はい）」の場合、A～Gまでの質問は必須となります。　\n英語のみで回答してください。","질문 A. - G.(69 - 83행) 에 대한 답변 지침. 코발트 및 천연 운모대한 질문 1과 질문 2가 \"Yes(예)\"일 경우, 질문 A. ~ G.에 대한 답변은 필수입니다. \n답변은 영어로만 기입하십시오","Instructions pour les questions A à G (lignes 69 - 83). Les questions A à G sont obligatoires, si la réponse à la question 1 et 2 est « Oui » pour le cobalt ou le mica naturel.\nRépondez en ANGLAIS uniquement"]
["InstructionsA36","Instructions","A36","The OECD Due Diligence Guidance for Responsible Supply Chains of Minerals from Conflict-affected and High-risk Areas (OECD Guidance) defines “Due Diligence” as “an on-going, proactive and reactive process through which companies can ensure that they respect human rights and do not contribute to conflict”. More information is available at http://www.responsiblemineralsinitiative.org/training-and-resources/conflict-affected-and-high-risk-areas/.\n\nQuestions A. through G are designed to assess your company’s cobalt and/or natural mica sourcing due diligence activities. Responses to these questions shall represent the full scope of your company’s activities and shall not be limited to the ‘Declaration Scope’ selected in the company information section.","《经济合作与发展组织关于来自受冲突影响和高风险地区矿石的负责任供应链尽职调查指南》（简称“经合组织指南”）将“尽职调查”定义为“一个持续的、主动性和应对性流程，通过该流程，公司可以确保其尊重人权而不会导致冲突。” 更多信息可以在 http://www.responsiblemineralsinitiative.org/training-and-resources/conflict-affected-and-high-risk-areas/.\n\n问题 A – G 旨在评估贵公司钴和/或天然云母采购的尽职调查活动。对这些问题的答复应当代表贵公司的完整活动范围，不仅限于公司信息部分选择的“申报范围”。对这些问题的答复应当代表贵公司的完整活动范围，不仅限于公司信息部分选择的“申报范围”。","「OECD紛争地域及び高リスク地域からの鉱物の責任あるサプライチェーンのためのデュー・ディリジェンスガイダンス」は、「デュー・ディリジェンス」を「企業が人権を尊重し、紛争に寄与しないことを確実とする、継続的、自主的、かつ状況に応じたプロセス」と定義しています。詳細情報はhttp://www.responsiblemineralsinitiative.org/training-and-resources/conflict-affected-and-high-risk-areas/を参照してください。\n\n次の質問A～Gは貴社のコバルト及び／又は天然マイカ調達のデュー・ディリジェンス活動を評価するために設計されています。 これらの質問に対する回答は、貴社全体の取組みを対象としており、企業情報に関するセクションで選定した「申告範囲」に限定するものではありません。","분쟁 및 고위험 지역에서의 책임있는 광물 공급망을 위한 OECD 실사지침은 (OECD 실사지침) “실사”를 “기업이 인권을 존중하고 분쟁에 기여하지 않는다는 것을 보장할 수 있는 지속적이고, 선제적이며, 대응적인 과정\"으로 정의합니다. 더 자세한 정보는 http://www.responsiblemineralsinitiative.org/training-and-resources/conflict-affected-and-high-risk-areas/에서 볼 수 있습니다. \n\n질문 A~G는 귀사의 코발트 및/또는 천연 운모 조달 실사 활동을 평가하기 위해 설계되어 있습니다. 이러한 질문에 대한 답변은 귀사의 전체 활동에 대한 것이어야 하며 회사 정보 섹션에서 선택한 ‘선언 범위’에 국한되지 않아야 합니다. ","Le Guide OCDE sur le devoir de diligence pour des chaînes responsables d’approvisionnement en minéraux provenant de zones de conflit ou à haut risque (Guide OCDE) définit l’exercice du « devoir de diligence » comme étant « le processus continu, proactif et réactif qui permet aux entreprises de s’assurer qu’elles respectent les droits humains et qu’elles ne contribuent pas aux conflits ». Des informations supplémentaires sont disponibles sur http://www.responsiblemineralsinitiative.org/training-and-resources/conflict-affected-and-high-risk-areas/. \n\nLes questions A à G ont pour but d’évaluer les activités en place dans votre entreprise dans le cadre du devoir de diligence de votre compagnie pour l’approvisionnement en cobalt et/ou mica naturel. Les réponses à ces questions doivent représenter le périmètre complet des activités de votre entreprise et ne doivent pas être limitées au « Périmètre de la Déclaration » sélectionné dans la section information sur la société ."]
["InstructionsA37","Instructions","A37","A. This is a declaration to disclose whether a company has a responsible minerals sourcing policy. The answer to this question shall be \"yes\" or \"no.\"","A. 此申报是为披露公司是否具有可公开查阅的负责任矿物采购政策。以“是”或“否”来答复此问题。","A. これは、責任ある鉱物調達方針が企業にあるかどうかを明らかにする申告です。「Yes（はい）」又は「No（いいえ）」で回答してください。\nこのフィールドは記入必須です。","A. 이것은 회사에 대외적인 책임있는 광물 조달 정책이 있는지 여부를 밝히는 선언입니다. 이 질문에 대한 답은 \"Yes(예)\" 또는 \"No(아니요)\"여야 합니다.","A. Cette déclaration permet de déterminer si une société dispose d'une politique responsable d'approvisionnement en minerais. La réponse à cette question doit être « oui » ou « non ». "]
["InstructionsA38","Instructions","A38","B. This is a declaration to disclose whether a company's responsible minerals sourcing policy is available on the company website. The answer to this question shall be \"yes\" or \"no.\" If \"yes,\" add the URL in the comments field.","B. 此申报是为披露公司的负责任矿物采购政策是否可在公司网站上获取。以“是”或“否”来答复此问题。如果答案为“是”，请在备注字段中填写 URL。","B. これは、企業の責任ある鉱物調達方針が、企業のウェブサイトで入手可能かどうかを明らかにする申告です。「Yes（はい）」又は「No（いいえ）」で回答してください。「Yes（はい）」の場合は、備考欄にURLを記入してください。 \n\n","B. 이것은 회사의 책임있는 광물조달 정책이 회사 웹사이트에 있는지 여부를 공개하는 선언입니다. 이 질문에 대한 답은 \"Yes(예)\", \"No(아니요)\"이어야 합니다. \"Yes(예)\"일 경우, 의견란에 URL을 추가합니다.\n ","B. Ceci est une déclaration pour divulguer si le site Web de l’entreprise comporte une politique responsable d’approvisionnement pour les minerais. La réponse à cette question doit être « oui » ou « non ». Si la réponse est positive, ajouter l’URL dans le champ des commentaires."]
["InstructionsA39","Instructions","A39","C. This is a declaration to determine whether a company requires their direct suppliers to source cobalt and/or natural mica from independently validated smelters and processors. The answer to this question for cobalt shall be \"yes\" or \"no.\" The answer to this question for mica shall be \"yes,\" \"yes, when more processors are validated,\" or \"no.\" Comments should be captured in a question comment field. This field is mandatory.\n","C. 此申报是要确定公司是否要求其直接供应商从经独立验证的冶炼厂和加工厂处采购钴和/或天然云母。以“是”或“否”来为钴答复此问题。为云母回答此问题时的答案应该是“是”、“是，当多个加工厂已被验证”或“否”。 应在问题备注字段记录备注。此字段必须填写。\n","C. 企業が、企業の直接サプライヤーに対して、独立した第三者の検証を受けた製錬業者及び加工業者からコバルト及び／又は天然マイカを調達することを要求しているかを判定するための申告です。コバルトに関するこの質問には「Yes（はい）」又は「No（いいえ）」で回答してください。マイカに関するこの質問には「Yes（はい）」「Yes, when more processors are validated（より多くの加工業者が検証される時、はい）」又は「No（いいえ）」で回答してください。コメントは質問の備考欄に記入してください。このフィールドは記入必須です。","C. 이것은 회사가 직접 공급업체에게 독립적으로 검증된 제련소 및 가공업체로부터 코발트 및/또는 천연 운모를 조달하도록 요구하는지 여부를 판단하기 위한 선언입니다. 코발트에 대한 답변은 'Yes(예)' 또는 '아니오(No)' 이어야 합니다. 운모에 대한 답변은 \"Yes(예)\",'예, \"추가 가공업체들이 검증된 경우\" 또는 \"No(아니요)\"이어야 합니다. 추가 설명은 질문에 대한 의견 기재란에 기입하십시오. 이 기재란은 필수 사항입니다.","C. Ceci est une déclaration visant à indiquer si une société impose à ses fournisseurs directs de s’approvisionner en cobalt ou mica naturel auprès de fonderies et transformateurs validés de manière indépendante. La réponse à cette question concernant le cobalt doit être « oui » ou « non ». La réponse à cette question pour le mica doit être « oui », « oui , lorsque un plus grand nombre de transformateurs sont validés » ou « non ». Les commentaires doivent être saisis dans le champ dédié à la question. Ce champ est obligatoire.\n"]
["InstructionsA40","Instructions","A40","D. This is a question to disclose whether a company has implemented responsible minerals sourcing due diligence measures. This question is not intended to provide details of a company's due diligence measures. The aspects of acceptable due diligence measures shall be determined by the requestor and supplier.\n\nThe answer to this question shall be \"yes\" or \"no.\" If \"yes,\" the user shall describe the due diligence measures implemented in the question comment field (e.g. OECD Due Diligence Framework).","D. 此申报是要披露公司是否实施了负责任矿物采购尽职调查措施。此问题的目的不是要公司提供尽职调查措施的详情。可接受的尽职调查措施的具体情况应当由请求者和供应商决定。\n\n以“是”或“否”来答复此问题。如果答案是“是”，用户应该在问题的备注字段中概述已实施的尽职调查措施（如：《经合组织尽职调查指南》）。","D. これは、企業が責任のある鉱物調達デュー・ディリジェンス対策の実施を要求しているかどうかを判定する質問です。 この質問は、企業のデュー・ディリジェンス対策の詳細を提供することは意図されていません。許容されるデュー・ディリジェンス対策の側面は、要求者および供給者が決定します。\n\nこの質問には「Yes（はい）」又は「No（いいえ）」で回答してください。「Yes（はい）」の場合、質問の備考欄で、実施したデュー・ディリジェンス対策を説明してください（例：OECDデュー・ディリジェンスの枠組み）。\n","D. 회사가 책임있는 광물 조달 실사 조치를 이행했는지 밝히기 위한 질문입니다. 이 질문은 회사의 실사 조치에 대한 세부 사항을 제공하기 위한 것이 아닙니다. 수용 가능한 실사 조치의 요소들은 요청자와 공급업체가 결정해야 합니다. \n\n이 질문에 대한 답은 \"Yes(예)\" 또는 \"No(아니요)\"여야 합니다. \"Yes(예)\"일 경우, 사용자는 질문의 의견란에 이행된 실사 조치를 기술해야 합니다(예: OECD 실사 프레임워크).","D. Ceci est une déclaration visant à déterminer si une société exerce une diligence raisonnable pour la chaîne d’approvisionnement de minéraux . Cette question n’est pas censée permettre de fournir des informations sur les mesures concernant la diligence raisonnable de la société. Les aspects de la mesure de la diligence raisonnable doivent être déterminés par celui qui en fait la demande ou par le fournisseur. La réponse à cette question doit être « oui » ou « non ». Si la réponse est « oui », l’utilisateur doit décrire la mesure de la diligence raisonnable implémentée dans le champ du commentaire de la question (par exemple, OECD Due Diligence Framework)."]
[{"$f":"B39&C39","v":"InstructionsA41"},"Instructions","A41","E. This is a question to disclose whether a company requests their supplier to fill out an extended mineral reporting template. Acceptable answers are listed below, in certain cases further explanation may be required, i.e., to provide the format used for collecting information. If the answer is \"Yes, using other format\" the user shall provide a comment in a question comment field.  Permissible responses to this question are:\n\n- Yes, in conformance with IPC-1755 (e.g. EMRT)\n- Yes, using other format (describe)\n- No\n\nThis field is mandatory.","E. 此问题是要披露公司是否要求其供应商填写扩展矿物报告模版。接受的答复载列如下，在部分情况中，可能需要进一步解释，即提供用于收集信息的格式。如果答复为“是，使用其他格式”，用户须在问题备注字段提供备注。本问题的允许答复有：\n\n- 是，根据 IPC-1755 要求（如 EMRT）\n- 是，使用其他格式（请描述）\n- 否\n\n此字段必须填写。","E. 企業が、企業のサプライヤーに対し、拡張鉱物報告テンプレートを記入することを依頼しているかを判定するための質問です。受け入れ可能な回答は以下の通りです。情報収集に使用されるフォーマットの提供等さらなる要求を受ける場合があります。「Yes, using other format（はい、他のフォーマットを使用）」と回答する場合、備考欄に追加情報を入力してください。この質問に対する許容可能な回答は以下のとおりです。\n\n- Yes, in conformance with IPC-1755 (e.g. EMRT)（はい、IPC-1755に準拠（例えば、EMRT））\n- Yes, using other format (describe)（はい、他のフォーマットを使用（記述する））\n- No（いいえ）\n\nこのフィールドは記入必須です。","E. 회사가 공급업체에게 확장 광물 보고 템플릿을 작성하도록 요청하는지 밝히기 위한 질문입니다. 가능한 답변은 아래와 같으며, 정보수집을 위해 사용된 포맷의 제공등 어떤 특정한 경우 추가 설명이 필요할 수 있습니다. 답변이 \"예, 다른 포맷 사용\"일 경우, 사용자는 질문 주석 필드에 주석을 제공해야 합니다. 이 질문에 대해 허용 가능한 답변: \n\n- Yes(예), IPC-1755 준수(예: EMRT)\n- Yes(예), 다른 포맷 사용(상세기술)\n- No(아니요)\n\n이 기재란은 필수 사항입니다.","E. Ceci est une question visant à indiquer si une société impose à ses fournisseurs de remplir un modèle de rapport élargi sur les minerais. Les réponses acceptables sont énumérées ci-dessous. Dans certains cas, une explication supplémentaire doit être fournie, par exemple pour indiquer le mode utilisé pour collecter les informations. Si la réponse est « Oui, avec un autre mode », l'utilisateur doit saisir un commentaire dans le champ dédié à la question. Les réponses possibles à cette question sont :\n\n- Oui, en conformité avec IPC-1755 (par exemple, EMRT)\n- Oui, avec un autre mode (préciser)\n- Non\n\nCe champ est obligatoire."]
[{"$f":"B40&C40","v":"InstructionsA42"},"Instructions","A42","F. Please answer “Yes” or “No”.  In the comments section, you can provide additional information on your approach. Examples could be:\n\n “3rd party audit” - on-site audits of your suppliers conducted by independent third parties.  \n “Documentation review only” - a review of supplier submitted records and documentation conducted by independent third parties and, or your company personnel.   \n “Internal audit” - on-site audits of your suppliers conducted by your company personnel.\n\nThis field is mandatory.","F. 请答复“是”或“否”。在备注部分，\n您可以提供有关贵公司所采用方法的其他信\n息。示例可以为：\n\n “第三方审计”——由独立第三方进行的供应商现场审计。\n “仅审核文件编制情况”——由独立第三方和/或贵公司工作人员对供应商提交的记录和文件予以审核。\n “内部审计”——由贵公司工作人员进行的供应商现场审计。\n\n此栏必须填写。","F. 「Yes（はい）」又は「No（いいえ）」で回答してください。備考欄で、追加情報を入力することができます。\n\n例えば：\n「第三者監査」-独立した第三者が実施したサプライヤー現地監査\n「文書審査のみ」-サプライヤーが提出した独立した第三者および/又は貴社の職員が実施した記録や文書のレビュー\n「内部監査」-貴社が実施した貴社サプライヤーへの現地監査\n\nこのフィールドは記入必須です。","F. 질문에 \"Yes(예)\" 또는 \"No(아니요)\"로 답변하십시오. 답변 방식에 대한 추가 정보는 의견란에 작성할 수 있습니다. 예를 들면, 다음과 같습니다.\n\n “제3자 감사” - 귀사의 공급업체에 대해 독립된 제3자가 현장 감사 시행.\n “문서만 검토” - 공급업체가 제출한 기록과 문서를 독립된 제3자 및/또는 귀사의 직원이 검토.\n “내부 감사” - 귀사 공급자에 대해 귀사의 직원이 현장 감사 시행.\n\n이 기재란은 필수 사항입니다.","F. Veuillez répondre « Oui » ou « Non ». Vous pouvez détailler votre approche dans la section des commentaires. Exemples :\n\n « Audit d'un tiers » : audits sur site de vos fournisseurs menés par des tiers indépendants. \n « Examen des documents uniquement » : examen des archives et documents du fournisseur par des tiers indépendants et/ou le personnel de votre société. \n « Audit interne » : audits sur site de vos fournisseurs menés par le personnel de votre société.\n\nCe champ est obligatoire."]
["InstructionsA43","Instructions","A43","G. This is a question to disclose whether a company’s review process includes corrective action management. The answer to this question shall be \"yes\" or \"no.\" Comments shall be captured in a question comment field. This field is mandatory.","G. 此问题是要披露公司的审核流程是否\n包括纠正措施管理。以“是”或“否”来答复此问题。须在问题备注字段记录备注。此栏必须填写。","G. これは、企業の検証プロセスに是正措置管理が含まれているかを判定するための質問です。「Yes（はい）」又は「No（いいえ）」で回答してください。コメントは、質問の備考欄に記入してください。このフィールドは記入必須です。","G. 이 질문은 회사의 검토 프로세스에 시정 조치 관리가 포함되어 있는지 여부를 공개하기 위한 것입니다. 이 질문에 대한 답은 \"Yes(예)\" 또는 \"No(아니요)\"여야 합니다. 추가 설명은 질문에 대한 의견 기재란에 기입하십시오. 이 기재란은 필수 사항입니다.","G. Ceci est une question qui permet d'indiquer si le processus d'examen de la société intègre la gestion des actions correctives. La réponse à cette question doit être « Oui » ou « Non ». Les commentaires doivent être saisis dans le champ dédié à la question. Ce champ est obligatoire."]
["InstructionsA45","Instructions","A45","Instructions for completing the Smelter List Tab.\nProvide answers in ENGLISH only\n\nNote:  Columns with (*) are mandatory fields","冶炼厂名单工作表的填写说明。只限英文作答\n\n注：带星号（*）列表示此区域必须填写。","Smelter List（製錬業者リスト）シートの記入に関する解説。\n回答は英語（半角）で入力してください。\n\n注：(*)のある欄は必須項目です。","제련소 목록 탭 작성에 대한 지침. \n답변은 영어로만 기입하십시오\n\n참고:  (*) 표시가 있는 열은 필수 기재란입니다. ","Instructions pour compléter la liste des fonderies.\nMerci de répondre en ANGLAIS uniquement\n\nRemarque: Les colonnes avec un astérisque (*) indiquent des champs obligatoires"]
["InstructionsA46","Instructions","A46","This template allows for the identification of smelters, refiners, or processors using the Smelter Look-up.  Columns B, and C must be completed in order from left to right to utilize the Smelter Look-up feature.\nUse a separate line for each metal/smelter/country combination.","此模版可以使用冶炼厂查询清单来填写冶炼厂、精炼厂、加工厂。必须从左到右填写 B 列和 C 列，才能利用冶炼厂查询清单功能。\n对于金属/冶炼厂/国家组合应使用分割线。","このテンプレートは、Smelter Look-up （製錬業者検索）を使用して製錬業者、精製業者、または加工業者を特定することができます。Smelter Look-Up機能を利用するには、左から右へ順にB列とC列を記入する必要があります。\n金属/製錬業者/国の組み合わせごとに別々の行を使用します。","이 템플릿은 제련소 찾기(Smelter Look-up) 을 이용하여 제련소, 정련소 또는 가공업체를 식별 가능하게 합니다. 제련소 찾기 기능을 사용하려면 B 및 C열이 왼쪽에서 오른쪽 순으로 작성되어야 합니다. \n각 광물/제련소/국가 조합에 대해 별도의 행을 사용하십시오. ","Ce modèle permet l'identification des fonderies, des affineurs ou des transformateurs à l'aide de la Recherche de fonderie. L'utilisation de cette fonctionnalité implique de renseigner les colonnes B et C dans l'ordre, et de gauche à droite.\nUtilisez une ligne différente pour chaque combinaison métal/fonderie/pays."]
["InstructionsA48","Instructions","A48","1. Smelter Identification Input Column - If you know the Smelter Identification Number, input the number in Column A (columns B, C, D, E, F, G, I, and J will auto-populate).  Column A does not autopopulate ","1. 冶炼厂识别输入列－如果您知道冶炼厂\n识别号码，则在 A 列输入号码（B、C、D、\nE、F、G、I 和 J 列将自动填入）。A 列不会自动填入。","1. 製錬業者識別番号の入力列－製錬業者識別番号が分かる場合は、その番号をA列に入力してください（B、C、E、F、G、I、およびJは自動入力されます）。A列は自動入力されません。","1. 제련소 ID 입력 열 – 제련소 ID 번호를 아는 경우 A열에 번호를 입력합니다(B, C, D, E, F, G, I 및 J열은 자동으로 입력됨). A열은 자동으로 입력되지 않습니다. ","1. Colonne d’entrée de l’identification de la fonderie. Si vous connaissez le numéro d’identification de la fonderie, saisissez-le dans la colonne A (les colonnes B, C, D, E, F, G, I et J se rempliront automatiquement). La colonne A ne se remplit pas automatiquement."]
[{"$f":"B45&C45","v":"InstructionsA49"},"Instructions","A49","2. Metal (*)   -   Use the pull down menu to select the metal for which you are entering smelter information. This field is mandatory.","2. 金属（*）- 在下拉菜单中选择\n正在录入信息的冶炼厂所提炼的金属。 ","2. 金属(*) － ドロップダウンメニューを使用して、製錬業者情報を入力する該当金属を選択してください。","2. 금속 (*)   -   풀다운 메뉴를 사용하여 제련소 정보를 입력할 금속을 선택합니다. 이 입력은 필수 입력입니다. ","2. Métal (*) – Utiliser la liste déroulante pour sélectionner le métal pour lequel vous entrez l’information. Ce champ est obligatoire."]
["InstructionsA50","Instructions","A50","3. Smelter Look-up (*) - Select from dropdown.  This is the list of known smelters as of template release date.  If smelter is not listed select 'Smelter Not Listed'.  This will allow you to enter the name of the smelter in Column D.  If you do not know the name or location of the smelter, select 'Smelter Not Yet Identified.'  For this option,  columns D and E will autopopulate to say, 'unknown.' This field is mandatory.","3. 冶炼厂查找 (*) - 从下拉菜单中\n选择。目录列出了所有直到发布此申报模板时已知的冶炼厂。如果冶炼厂不在目录中时请选择‘冶炼厂没列出’。出现这种情况时请将该冶炼厂的名称输入 D 列。如果您不知道冶炼厂\n的名称或地点，请选择‘冶炼厂尚未被识\n别’。对于这个选项，D 和 E 列将会\n自动填入‘未知’.  ","3. Smelter Look-up（製錬業者検索）（*） - ドロップダウンから選択します。製錬業者リストは、テンプレート発行日時点で把握している製錬業者名です。製錬業者がリストにない場合、「Smelter not listed（製錬業者がリストに含まれていない）」を選択してください。これを選択すると、製錬業者名をD列に記入できるようになります。製錬業者の名前や所在地が分からない場合は、「Smelter not yet identified（製錬業者がまだ特定されていない）」を選択してください。これを選択すると、D列とE列には「Unknown（不明）」と自動入力されます。","3. 제련소 찾기 (*) - 드롭다운에서 선택합니다. 이것은 템플릿 출시일을 기준으로 알려진 제련소 목록입니다. 제련소가 목록에 없으면 '제련소명 목록에 없음(Smelter Not Listed)'을 선택합니다. 이렇게 하면 D열에서 제련소명을 입력할 수 있습니다. 제련소명이나 위치를 모르는 경우 '제련소가 아직 식별되지 않음(Smelter Not Yet Identified)'을 선택합니다. 이 옵션의 경우 D열과 E열이 'unknown(모름)'으로 자동으로 입력됩니다. 이 입력란은 필수 입력란 입니다. ","3. Recherche de fonderie (*) : sélectionner la fonderie dans le menu déroulant. Il s’agit de la liste des fonderies identifiées à la date de publication du formulaire. Si la fonderie ne figure pas dans la liste, choisissez « Fonderie non répertoriée ». Cela vous permettra de saisir le nom de la fonderie dans la colonne D. Si vous ne connaissez pas le nom ou l’emplacement de la fonderie, choisissez « La fonderie n’est pas encore identifiée ». Dans ce cas, les colonnes D et E indiqueront automatiquement «ne sais pas ». Ce champ est obligatoire."]
["InstructionsA51","Instructions","A51","4. Smelter Name (1)- Fill in smelter name if you selected \"Smelter Not Listed\" in column C.  This field will auto-populate when a smelter name in selected in Column C. This field is mandatory.","4. 冶炼厂名称 (1)- 如果在 C 列选择了\n“冶炼厂未列出”，则填入冶炼厂名称。当在 C 列选择了冶炼厂名称后，\n此字段将自动填充。此字段必须填写。","4. 製錬業者名(1)　－　C列で「Smelter not listed（製錬業者がリストに含まれていない）」を選択した場合、製錬業者名を記入してください。C列で製錬業者名を選択した場合には、この欄は自動入力されます。このフィールドは記入必須です。","4. 제련소 이름 (1)-C열에서 \"제련소명 목록에 없음\"을 선택한 경우 제련소 이름을 입력하십시오. 이 항목은 C열에서 제련소 이름을 선택하면 자동으로 채워집니다. 이 입력란은 필수 입력란입니다. ","4. Nom de la fonderie (1) - Renseignez le nom de la fonderie si vous avez sélectionné « Fonderie non répertoriée » dans la colonne C. Ce champ se remplit automatiquement lorsqu’un nom de fonderie est sélectionné dans la colonne C. Ce champ est obligatoire."]
["InstructionsA52","Instructions","A52","5. Smelter Country (*) – This field will auto-populate when a smelter name is selected in column C. If you selected \"Smelter Not Listed\" in column C, use the pull down menu to select the country location of the smelter. This field is mandatory.","5. 冶炼厂所在国家 (*) - 当在 C 列选择了\n冶炼厂名称，此字段将自动填充。如果在 C 列选择了“冶炼厂未列出”，则使用下拉菜单选择冶炼厂的国家位置。此栏必须填写。","5. 製錬業者所在地：国(*)　－　C列で製錬業者名を選択した場合には、この欄は自動入力されます。C列で「Smelter Not Listed（製錬業者がリストに含まれていない）」を選択した場合、ドロップダウンメニューの中から、製錬業者の所在する国を選択してください。このフィールドは入力必須です。","5. 제련소 국가 (*) – 이 항목은 C열에서 제련소 이름이 선택되면 자동으로 채워집니다. C열에서 \"제련소명 목록에 없음\"을 선택한 경우 풀다운 메뉴를 사용하여 제련소의 국가 위치를 선택하십시오. 이 입력란은 필수 입력란입니다. ","5. Pays de la fonderie (*) – Ce champ se remplit automatiquement lorsqu’un nom de fonderie est sélectionné dans la colonne C. Si vous avez sélectionné « Fonderie non répertoriée » dans la colonne C, utilisez le menu déroulant pour sélectionner le pays où se trouve la fonderie. Ce champ est obligatoire."]
[{"$f":"B49&C49","v":"InstructionsA53"},"Instructions","A53","6. Smelter Identification - This is a unique identifier assigned to a smelter or refiner according to an established smelter and refinery identification system. It is expected that multiple names or aliases could be used to describe a single smelter or refiner and therefore multiple names or aliases could be associated to a single ‘Smelter ID’.","6. 冶炼厂识别 - 依据冶炼厂和\n精炼厂识别系统每一冶炼厂或精炼厂均有一独一无二的标识。 相信会有一间冶炼厂或一间\n精炼厂存在多个名称的情况出现。因此，唯一的冶炼厂标识能将其它名称和别名进行统一。 ","6. 製錬業者識別番号　－　 これは確立された製錬・精製業者の識別システムに従い、製錬・精製業者に割り当てられた固有の識別番号です。一つの精錬・精製業者を表記するために、複数の名前や別名が使用されることが予想されるため、複数の名前や別名を単一の「製錬業者識別番号（Smelter ID）」に紐づけることができます。","6. 제련소 ID - 이 항목은 구축된 제련소 및 정련소 식별 시스템에 따라 제련소 또는 정련소에 할당된 고유한 식별자입니다. 단일 제련소 또는 정련소를 기술하기 위해 복수의 이름 또는 별칭을 사용할 수 있으므로 복수의 이름 또는 별칭들은 단일 ‘제련소 ID’와 연결될 수 있습니다.  ","6. Identification de la fonderie - Il s'agit d'un identifiant unique attribué à chaque fonderie ou affineur selon un système d'identification des fonderies et des affineries. Plusieurs noms ou désignations peuvent être utilisés pour décrire une seule fonderie ou un seul affineur et donc ces noms ou désignations multiples pourraient être associés à un seul « Smelter ID »."]
[{"$f":"B50&C50","v":"InstructionsA54"},"Instructions","A54","7. Source of Smelter Identification Number - This is the source of the Smelter Identification Number entered in Column F.  If a smelter name was selected in Column C using the dropdown box, this field will auto-populate. ","7. 冶炼厂识别号码 -  F 列包括所有的\n冶炼厂识别号码。如果在 C 列中选出冶炼厂\n名称，此栏会自动填入。 ","7. 製錬業者識別番号の発行元　－　これはF列に入力された製錬業者識別番号の発行元です。ドロップダウンボックスを使ってC列に製錬業者名を選択すると、この欄は自動入力されます。","7. 제련소 식별 번호 츨처 - 이 항목은 F열에 입력된 제련소 식별 번호의 출처입니다. 드롭다운 상자를 이용해 C열에서 제련소 이름을 선택하면 이 항목은 자동으로 채워집니다. ","7. Type de l'identifiant de la fonderie - C'est la source du numéro d'identification de la fonderie identifiée dans la colonne F. Si un nom de fonderie a été sélectionné dans la colonne C en utilisant la liste déroulante, ce champ est automatiquement renseigné."]
["InstructionsA55","Instructions","A55","8. Smelter Street -  Provide the street name on which the smelter is located. This field is optional.","8. 冶炼厂所在街道 - 提供冶炼厂所在街道的名称。","8. 製錬業者所在地：番地　－　製錬業者の所在する番地を記入してください。","8. 제련소 주소 - 제련소가 위치하고 있는 거리 주소를 기입하십시오. 이 입력은 선택 입력입니다. ","8. Rue de la fonderie – indique le nom de la rue où est située la fonderie. Ce champ est facultatif."]
["InstructionsA56","Instructions","A56","9. Smelter City – Provide the city name of where the smelter is located. This field is optional.","9. 冶炼厂所在城市 - 提供冶炼厂所在城市的名称。","9. 製錬業者所在地：市　－　製錬業者の所在する市を記入してください。","9. 제련소 시 – 제련소가 위치하고 있는 도시를 기입하십시오. ","9. Ville de la fonderie – indique le nom de la ville où est située la fonderie. Ce champ est facultatif."]
["InstructionsA57","Instructions","A57","10. Smelter Location: State/Province, if applicable – Provide the state or province where the smelter is located. This field is optional.","10. 冶炼厂地点： 州/省（如适用）- 提供冶炼厂所在的州/省。","10. 製錬業者所在地： 州／県／省（該当する場合のみ回答）　－　製錬業者の所在する州又は県を記入してください。","10. 제련소 위치: 도/주, 해당할 경우 – 제련소가 위치하고 있는 도나 주를 기입하십시오. 이 입력은 선택 입력입니다. ","10. Emplacement de la fonderie : État/province, le cas échéant – indique l’État ou la province où est située la fonderie. Ce champ est facultatif."]
["InstructionsA58","Instructions","A58","11. Smelter Contact Name – The Extended Mineral Reporting Template (EMRT) is circulated among companies in the requesting company's supply chain to exercise due diligence in accordance with the OECD Due Diligence Guidance for Responsible Supply Chains of Minerals from Conflict-Affected and High-Risk.\n\nIf the template is circulated in a country where laws protecting personal information exist, sharing personal contact information in the EMRT may violate related regulations. Therefore, it is recommended that the requesting company take precautions such as obtaining the contact person's permission to share the information with other companies in the supply chain when completing \"Smelter Contact Name\" and the \"Smelter Contact Email\" columns.\n\nIf you have permission to share this information, please fill in the name of the Smelter Facility Contact person who you worked with.","11. 冶炼厂联系人姓名——扩展矿物报告模板 (EMRT) 在提出请求的公司的供应链公司中流传，以按照《经济合作与发展组织关于来自受冲突影响和高风险地区矿石的负责任供应链尽职调查指南》执行尽职调查。\n\n如果该模板在有保护个人信息立法的国家流传，在 EMRT 中分享个人信息可能会违反相关法规。因此，建议提出请求的公司采取预防措施，例如获得联系人的相关许可，以在填写“冶炼厂联系人姓名”以及“冶炼厂联系人电子邮件”列时可与供应链中的其他公司分享该信息。\n\"\n如果获得了分享该信息的许可，请填入与贵公司合作的冶炼厂设施联系人姓名。","11. 製錬業者連絡先担当者名　－　 拡張鉱物報告テンプレート（EMRT）は、企業がOECD紛争地域および高リスク地域からの鉱物のサプライチェーンに関するデューディリジェンスガイダンスに沿ったデューディリジェンスを実施するため、企業のサプライチェーンを構成する企業の間で回覧されます。\n\nテンプレートが個人情報保護法のある国で使用される可能性がある場合は、EMRTの個人連絡先情報を共有すると、関連法規に抵触する可能性がありますので「製錬業者連絡先担当者名」及び「製錬業者連絡先電子メール」の記載については、これらの情報を上記の企業間で共有することについて担当者の同意を得るなどの対応を行うことを推奨します。\n\nこの情報を共有する許可を得た場合、貴社が連絡をとっている製錬業者担当者名を記入してください。\n\n","11. 제련소 연락 담당자 이름 - 확장 광물 보고 템플릿(EMRT)은 분쟁 및 고위험 지역으로부터의 책임 있는 광물 공급망을 위한 OECD 실사 지침에 따른 실사이행을 위해 요청하는 회사의 공급망에 존재하는 회사들간 유포됩니다.  \n\n이 템플릿이 개인 정보 보호법이 존재하는 국가에서 유포되는 경우 EMRT에 있는 개인 연락처 정보를 공유하는 것은 관련 규정을 위반하는 것일 수도 있습니다. 그러므로 “제련소 연락 담당자 이름”과 “제련소 연락 담당자 이메일” 열을 작성할 때 요청 회사는 공급망내의 다른 회사와 정보를 공유하기 위해 연락 담당자의 허락을 얻는 등의 예방 조치를 취할 것을 권장합니다. \n\n이러한 정보를 공유하는 것에 대한 허락을 받았다면 해당 제련소 시설의 연락 담당자의 이름을 입력해하십시오. ","11 Nom du contact de la fonderie - Le formulaire de rapport sur les minerais élargi (Extended Mineral Reporting Template (EMRT)) est distribué aux entreprises de la chaîne d'approvisionnement de l'entreprise demandeuse pour assurer la conformité au guide de l'OCDE sur le devoir de diligence pour des chaînes d’approvisionnement responsables en minerais provenant de zones de conflit ou à haut risque.\n\nSi le formulaire est utilisé dans un pays où existent des lois sur la protection des données personnelles, partager le nom d'un contact dans l’EMRT peut les enfreindre. Par conséquent, il est recommandé que l'entreprise requérante prenne certaines précautions, telles qu’obtenir une autorisation du contact pour partager le nom et l'e-mail indiqués dans le formulaire avec d'autres entreprises de la chaîne d'approvisionnement.\n\nSi vous avez l'autorisation de partager cette information, merci de remplir le nom du contact avec lequel vous avez communiqué dans la fonderie."]
["InstructionsA59","Instructions","A59","12. Smelter Contact Email – Fill in the email address of the Smelter Facility contact person who was identified as the Smelter Contact Name.  Example: John.Smith@SmelterXXX.com.  Please review the instructions for Smelter Contact Name before completing this field.","12. 冶炼厂联系电邮地址 - 填入被确认为冶炼厂联系人的电邮地址作为冶炼厂联系信息。 例如： John.Smith@SmelterXXX.com。         请在填写此栏前阅读冶炼厂联系名称指引。 ","12. 製錬業者連絡先電子メール　－　上記製錬施設連絡先担当者のメールアドレスを記入してください。\n例：John.Smith@SmelterXXX.com 　この欄を記入する前に、「製錬業者連絡先担当者名」の説明を確認してください。","12. 제련소 연락 담당자 이메일 - 제련소 연락 담당자 이름으로 식별되는 제련소 시설 연락 담당자의 이메일 주소를 입력하십시오. 예: John.Smith@SmelterXXX.com. 이 항목을 작성하기 전에 제련소 연락 담당자에 대한 지침을 검토해 주십시오. ","12. Adresse Email du contact de la fonderie - Indiquez l'adresse email du contact que vous avez identifié pour la fonderie. Exemple: John.Smith@SmelterXXX.com. Merci de lire les instructions sur le nom du contact de la fonderie avant de remplir ce champ."]
["InstructionsA60","Instructions","A60","13. Name of Mine(s) - This field allows a company to define the actual mines being used by the smelter.  Please enter the actual mine names if known.  If 100% of the smelter’s feedstock originates from recycled or scrap sources, enter \"Recycled\" or \"Scrap\" in place of the name of the mine and answer \"Yes\" in Column P.","13. 矿场名称——此字段供公司确定冶炼厂\n正在使用的实际矿场。如果已知实际矿场的名称，请输入该名称。如果冶炼厂的所有原料均来自回收料或报废料资源，则输入“回收料”或“报废料”以取代矿场名称，并在 P 列回答“是”。","13. 鉱山名－この欄で企業は、製錬業者が使用している実際の鉱山を記入できます。判明している場合は実際の鉱山名を記入してください。製錬業者が原料の100%をリサイクルまたはスクラップ資源を由来とする場合は、鉱山名の代わりに「Recycled（リサイクル）」または「Scrap（スクラップ）」と記入し、P列に「Yes（はい）」と回答してください。","13. 광산 이름 - 제련소에서 실제로 사용하는 광산을 이 열에 기입할 수 있습니다. 이름을 아는 경우 실제 광산의 이름을 기입하시오. 제련소 원료의 100%가 재활용 또는 폐자원에서 왔다면, 광산의 이름에 \"Recycled\" 또는 \"Scrap\"을 입력하고, P열에 \"Yes\"로 답하시오. ","13. Nom de la/des mine(s) – Ce champ permet à la société de définir les mines effectivement exploitées par la fonderie. Veuillez saisir les noms des mines si vous les connaissez. Si 100 % de la matière de base de la fonderie provient de sources recyclées ou de débris, saisissez « Recyclé » ou « Débris » à la place du nom de la mine et répondez « Oui » à la colonne P.\n\n.\n"]
["InstructionsA61","Instructions","A61","14. Location (Country) of Mine(s) - This is a free form text field that allows a company to define the location of the mines being used by the smelter.   Please enter the country of the mine(s).  If the country of origin is not known, enter \"Unknown\".   If 100% of the smelter’s feedstock originates from recycled or scrap sources, enter \"Recycled\" or \"Scrap\" in place of the country of origin.  This field is optional.","14. 矿场地点（国家）——这是可自由输入\n文字的字段，供公司注明冶炼厂正在使用的矿场地点。请输入矿场所在国家。如果原产国未知，则输入“不知道”。如果冶炼厂的所有原料均来自回收料或报废料资源，则输入“回收料”或“报废料”以取代原产国。此字段自由选择填写。","14. 鉱山の場所（国名）－自由形式のテキスト欄で、企業は製錬業者が使用している鉱山の場所を記載できます。鉱山が所在する国名を記入してください。原産国が不明の場合は「Unknown（不明）」とお答えください。製錬業者が原料の100%をリサイクルまたはスクラップ資源を由来とする場合は、原産国の代わりに「Recycled（リサイクル業者）」または「Scrap（スクラップサプライヤー）」と記入してください。この欄は任意です。","14. 광산의 위치(국가) - 회사가 제련소에 의해 실제로 이용되는 광산의 위치를 기입할 수 있는 자유 양식 텍스트 입력란입니다. 광산이 위치한 국가를 기입하십시오. 원산국의 이름을 모르면 \"Unknown(모름)\"을 기입하십시오. 제련소 원료의 100%가 재활용 또는 폐자원에서 왔다면, 원산국에 \"Recycled\" 또는 \"Scrap\"을 기입하십시오. 이 항목은 선택사항입니다. ","14. Emplacement (pays) de la/des mine(s) – Ce champ de texte libre permet à une société de définir l’emplacement des mines exploitées par la fonderie. Veuillez saisir le pays de la/des mine(s). Si vous ne connaissez pas le pays d’origine, saisissez « Ne sais pas ». Si 100 % de la matière de base de la fonderie provient de sources recyclées ou de débris, saisissez « Recyclé » ou « Débris » à la place du pays d’origine. Ce champ est facultatif.\n\n\n"]
[{"$f":"B58&C58","v":"InstructionsA62"},"Instructions","A62","15. Indicates whether the smelter solely obtains inputs for its smelting process(es) from recycled or scrap sources. This question is optional.  Permissible responses to this question are:\n\n- Yes\n- No\n- Unknown","15. 表明冶炼厂是否仅从回收料或报废料资源\n中获取冶炼过程的来料。此问题自由选择答\n复。本问题的允许答复有：\n\n- 是\n- 否\n- 不知道","15. 製錬業者がリサイクル又はスクラップ資源からの製錬プロセスの投入量を単独で取得するかどうかを示します。この質問は任意です。回答は、以下の中から選択してください。\n\n- Yes（はい）\n- No（いいえ）\n- Unknown（不明）","15. 제련소가 제련 공정에 필요한 물질을 재활용 또는 폐기 자원에서만 조달하는지 표시합니다. 이 질문은 선택 사항입니다. 이 질문에 허용되는 답변은 다음과 같습니다:\n\n- 예\n- 아니요\n- 모름","15. Indique si la fonderie utilise uniquement des sources recyclées ou des débris pour ses procédés de fusion. Cette question est facultative. Les réponses possibles à cette question sont :\n\n– Oui\n– Non\n– Ne sais pas"]
["InstructionsA63","Instructions","A63","16. Comments – free form text field to enter any comments concerning the smelter.  Example: smelter is being acquired by Company YYY","16. 注释 - 用自由的格式的文字栏来输入\n任何有关冶炼厂的意见。例如：冶炼厂正在被\nYYY公司收购","16. 備考　－　製錬業者に関するコメントがあれば備考欄に記述してください。例：製錬業者はYYY社に買収されている","16. 의견 - 제련소와 관련된 어떠한 의견이라도 입력할 수 있는 자유 양식 텍스트 입력란입니다. 예: 제련소가 회사 YYY에 인수됩니다. ","16. Commentaires - Zone de texte pour indiquer tout commentaire relatif à la fonderie. Exemple: la fonderie a été achetée par l'entreprise YYY."]
[{"$f":"B60&C60","v":"InstructionsA65"},"Instructions","A65","The Checker worksheet is used to verify if all the required information in the Template has been completed. It is updated real-time and can be reviewed at any time while using the Template. It is used to verify completion.\n\nTo use this sheet, verify if all required fields have been completed (completed fields will be highlighted in green). If not, look for the red field(s) and review the \"Notes\" in Column C for required actions. You may use the URL in Column D to directly access the field for completion.","检查工作表用于确认模板中的全部必要信息是否均已填妥。该表格实时更新，并在使用模板时可以随时查阅。此工作表用于确认填写完\n毕。\n\n要使用此表，确认已填完所有的必填字段（已填写的字段将用绿色突出显示）。否则请寻找红色的字段，并查阅 C 列中的“备注”并按照\n指示操作。贵公司可以使用 D 列中的 URL 以直接访问相关字段进行填写。","チェッカーシート（Checker）は、テンプレート内の必須情報がすべて記入されていることを確認するために使います。リアルタイムで更新され、テンプレート使用中いつでも確認できます。記入完了を確認するために使います。\n\nこのシートを使い、必須項目がすべて記入されているかを確認してください（記入済みの項目は緑色になります）。すべて記入されていない場合、赤の項目を探してC列の「注釈」を確認し、必要な作業をしてください。D列のURLを使って該当項目に直接アクセスして記入することもできます。","\"Checker\" 워크시트는 템플릿의 모든 필수 정보가 완료되었는지 확인하기 위해 사용됩니다. 이 워크시트는 실시간으로 업데이트되며 템플릿을 사용하는 동안 아무 때나 검토할 수 있습니다. 작성 완료를 확인하기 위해 사용됩니다. \n\n이 시트를 사용하려면 모든 필수 항목을 작성 완료했는지 확인하십시오(작성 완료된 항목은 녹색으로 강조 표시됩니다). 그렇지 않은 경우에는 빨간색 항목을 찾은 다음, 필요한 조치에 대해 C열의 “참고”를 검토하십시오. D열의 URL을 사용하여 항목에 직접 액세스하여 완료할 수도 있습니다. ","La feuille « Checker » permet de vérifier si toutes les informations requises dans le formulaire ont été complétées. Elle est mise à jour en temps réel et peut être revue à tout moment pendant l'utilisation du formulaire. Elle est utilisée pour vérifier si les données sont complètes.\n\nUtilisation de cette feuille : vérifiez si tous les champs obligatoires ont été remplis (les champs remplis seront surlignés en vert). Sinon, chercher le(s) champ(s) rouge(s) et examinez les « Notes » identifiant les actions requises dans la colonne « C ». Vous pouvez utiliser l'URL dans la colonne « D » pour accéder directement au champ à compléter."]
["InstructionsA67","Instructions","A67","TERMS AND CONDITIONS","条款和条件\n如有异议，以英文版扩展矿产报告模板为准。","利用規約","약관","CONDITIONS GENERALES"]
["InstructionsA68","Instructions","A68","The Responsible Minerals Initiative Smelter List (the \"List\") and Program templates and tools, including, without limitation, the Extended Mineral Reporting Template  (collectively “Tools”), including, without limitation, all information provided therein, are provided for informational purposes only and are current as of the date set forth therein. Any inaccuracy or omission in the List or any Tool is not the responsibility of the Responsible Business Alliance, Incorporated, a Delaware non-stock corporation (\"RBA\"). Determination of whether and/or how to use all or any portion of the List or any Tool is to be made in the User’s sole and absolute discretion. Prior to using the List or any Tool, you should review it with your own legal counsel.  No part of the List or any Tool constitutes legal advice. Use of the List or any Tool is voluntary.","责任商业联盟冶炼厂目录（“目录”）及计划模板和工具，包括但不限于扩展矿物报告模板（统称为“工具”），包括但不限于此处所提供的一切信息，仅供参考之用，并以其上载明日期为准。在目录或工具中，如有任何不准确或遗漏的信息，责任商业联盟 (RBA)（特拉华州注册的非股份公司）\n概不负责。是否使用和/或如何使用全部或部分目录或任何工具，用户拥有唯一及绝对的决定权​​。使用目录或任何工具之前，您应该向自己的法律顾问征询意见。目录或工具中没有任何一部份会构成法律意见。使用目录或任何工具都是自愿性行为。","拡張鉱物報告テンプレート（総称して「ツール」）を含むがこれに限定されない、責任ある鉱物イニシアチブ製錬業者リスト（以下「リスト」）およびプログラムテンプレートおよびツール、ならびにここに提供されるあらゆる情報は、情報提供の目的のみに使用されるものであり、ここに明示される日付時点の最新版です。リスト又はツールに不正確な点や脱落があった場合、それがいかなるものであれ、デラウェア州の非株式会社であるResponsible Business Alliance （以下「RBA」）の責任ではありません。リストの全部もしくは一部、あるいはツールを使用するかどうか、またどのように使用するかの決断は、使用者単独の自由裁量によって行われるものです。リスト又はツールの利用に際しては、事前に使用者自身の法律顧問とともに当該リスト又はツールの精査を行うことが望まれます。リスト又はツールには法的助言は一切含まれていません。 リスト又はツールの利用は自由意思によるものです。","Responsible Minerals Initiative 제련소 목록(이하 “목록”), 확장광물보고 템플릿과 그것을 통해 제공되는 정보를 포함한 프로그램 템플릿 및 도구 (통칭 \"도구\") 는 정보 목적으로만 제공되고 거기에 명시된 날짜 기준으로 최신입니다. 목록 또는 모든 도구에 있을 수 있는 부정확성 또는 누락은 델라웨어 비주식회사인, Responsible Business Alliance, Incorporated(“RBA”)의 책임이 아닙니다. 목록 또는 모든 도구의 전부 또는 일부의 사용 여부 및 또는 사용방법에 대한 판단은 사용자의 절대적인 단독 재량으로 결정해야 합니다. 목록 또는 도구를 사용하기에 앞서 자신의 법률 고문과 함께 이를 검토해야 합니다. 목록 또는 도구의 어떠한 부분도 법률적 자문으로 여겨지지 않습니다. 목록 또는 모든 도구의 사용은 자발적입니다. ","La Responsible Minerals Initiative Smelter List (la « Liste ») et les modèles et outils du Programme, incluant, sans limitation, le modèle de rapport sur les minerais étendu (collectivement dénommés ci-après « Outils »), incluant, sans limitation, toutes les informations fournies ci-incluses, sont uniquement fournis à titre d’information et sont les dernières en date à ce jour. La Responsible Busines Alliance, Incorporated, corporation non cotée du Delaware (« RBA ») ne saurait être tenue responsable de toute inexactitude ou omission dans la Liste ou les Outils. La décision d’utiliser ou non et/ou de comment utiliser tout ou partie de cette Liste ou l’un des Outils est prise à la seule et absolue discrétion de l’Utilisateur. Vous devriez examiner avec votre conseiller juridique cette Liste ou l'un des Outils avant de l'utiliser. L'utilisation de la Liste ou de l'un des Outils est volontaire."]
["InstructionsA69","Instructions","A69","RBA does not make any representations or warranties with respect to the List or any Tool. The List and Tools are provided on an \"AS IS\" and on an \"AS AVAILABLE\" basis. RBA hereby disclaim all warranties of any nature, express, implied or otherwise, or arising from trade or custom, including, without limitation, any implied warranties of merchantability, non-infringement, quality, title, fitness for a particular purpose, completeness or accuracy. ","RBA 不为目录或任何工具作任何的申述或保证。\n目录和工具是依据“原样”和“现有”基础来提供。RBA 特此否认任何性质\n（明示、暗示或其他方式）的所有保证，或因业务或惯例产生的所有保证，包括但不限于适销性、非侵权、质量、所有权、针对特定目的的适用性、完整性或准确性的任何暗示保证。","RBAは、リスト又はツールに関していかなる表明も保証も行いません。リスト及びツールは「現状有姿のまま」かつ「提供可能な限度」で提供されています。  RBAは、市販性、権利不侵害、品質、タイトル、特定目的との適合、完全性、正確性を含むが、必ずしもこれらに限定されない、明示的であれ黙示的であれ、もしくはその他の方法であれ、取引もしくは慣習から生じるものであれ、いかなる性質のものであろうと、一切の保証を行わないものとします。","RBA는 리스트 또는 어떤 도구에 대해서도 진술 또는 보장을 하지 않읍니다. 리스트와 도구들은 “있는 그대로” 및 “사용 가능한” 경우에 제공됩니다. RBA는 어떠한 경우, 명시적, 묵시적 또는 다른 경우 또는 무역이나 관습으로 부터 생기는 모든 보장을 부인한며, 이 보장은 양도성, 비침해, 품질, 소유, 특정 목적에의 적합성, 완성도 및 정확성으로부터의 묵시적 보장을 포함하며 이에 제한되지 않읍니다.","RBA ne donne ni déclarations ni garanties concernant la Liste ou les Outils. La Liste et les Outils sont fournis « TELS QUELS » et « TELS QUE DISPONIBLES ». La RBA nie par la présente toute garantie, de toute sorte, expresse, tacite ou autre, ou émanant du commerce ou des douanes, incluant sans limitation, toute garantie implicite de qualité marchande, de non-contrefaçon, de qualité, de titre, de modèle pour un but particulier, de complétude et d’exactitude."]
["InstructionsA70","Instructions","A70","To the fullest extent permitted by applicable laws, RBA renounces any liability for any losses, expenses or damages of any nature, including, without limitation, special, incidental, punitive, direct, indirect or consequential damages or lost income or profits, resulting from or arising out of the User’s use of the List or any Tool, whether arising in tort, contract, statute, or otherwise, even if shown that they were advised of the possibility of such damages. ","在适用法律允许的最大范围内，RBA 声明，不对任何性质的损失、费用或损害赔偿金承担任何责任，包括但不限于，因用户使用目录或任何工具而造成或引起的特殊的、偶发的、惩罚性的、直接的、间接的或后果性损害或收入或利润损失，不论是否因侵权行为、合同、条例或其他方式产生，即使已被告知此类损害的可能性。","適用される法律で認められる最大限の範囲内で、RBAは、不法行為、契約、規則、もしくはその他の状況下で生じたものであるかどうかにかかわらず、損害が生じる可能性について報告を受けていたとしても、リスト又はツールを利用したことに起因する特別損害、付帯損害、懲罰的損害、直接損害、間接損害もしくは偶発的損害、又は収益や利益の損失に関し、何らの責任も負いません。","해당 법률이 허용하는 한도까지, RBA는 어떠한 경우의 손실, 비용, 손해배상의 책임을  부인하며, 이에는 특별한, 우발적, 징벌적, 직접, 간접 또는 결과적 손해, 또는 사용자로부터 또는 사용자의 리스트 또는 툴의 사용으로 인한 수입 또는 이익의 손실이 불법 행위, 계약, 법령 또는 기타 사유로 발생한 경우 및 심지어 그러한 손해배상의 발생가능성이 있다고 표시된 경우를 포함하며 이에 국한되지 않읍습니다. ","Dans les limites prévues par la loi, la RBA renonce à toute responsabilité pour toute perte, dépense ou tous dommages et intérêts de quelque nature que ce soit, incluant, sans limitation, des dommages spéciaux, accessoires, punitifs, directs, indirects ou conséquents ou perte de revenus ou de bénéfices, résultant ou émanant de l’utilisation de la Liste ou d’un Outil par l’Utilisateur, que cela émane d’un délit, d’un contrat, de la loi, ou pour tout autre motif, même s’ils étaient prévenus de la possibilité de tels dommages."]
["InstructionsA71","Instructions","A71","In consideration for access and use of the List and/or any Tool, THE USER hereby agrees to and does (a) release and forever discharge RBA as well as its officers, directors, agents, employees, volunteers, representatives, contractors, successors, and assigns, from any and all claims, actions, losses, suits, damages, judgments, levies, and executions, which the User has ever had, has, or ever can, shall, or may have or claim to have against RBA , as well as its officers, directors, agents, employees, volunteers, representatives, contractors, successors, and assigns, resulting from or arising out of the List or any Tool or use thereof, and agrees to (b) indemnify, defend and hold harmless RBA, as well as its officers, directors, agents, employees, volunteers, representatives, contractors, successors, and assigns, from any and all claims,  actions, losses, suits, damages, judgments, levies, and executions resulting from or arising out of the USER'S use of the List or any Tool.","鉴于对目录和/或任何工具的访问和使用，用户在此同意 (a) 因目录或任何工具\n或及其使用而导致或产生的用户有过或者可能拥有或声称拥有的对 RBA 及其管理人员、\n董事、代理、员工、志愿者、代表、承包商、继承人、指定人的任何及全部索赔、起诉、损失、诉讼、损害赔偿、判决、征费和处决，让 RBA 以及其管理人员、董事、代理、\n员工、志愿者、代表、承包商、继承人、指定人解除并永远免除责任；(b) 保护 RBA 及其管理人员、董事、代理、员工、\n志愿者、代表、承包商、继承人、指定人，确保他们不承担因用户使用目录或任何工具而导致或产生的任何及全部索赔、起诉、损失、诉讼、损害赔偿、判决、征费和处决。","リストやツールへのアクセス及びその利用を考慮して、使用者はここに、(a) RBA、ならびにその役員、理事、代理人、被雇用者、任意行為者、代表者、契約者、継承者、譲受人に対し、リストやツールによる、もしくはそれらを利用したことによる、又はそこから生じたり、生じた可能性がある、あるいは使用者がRBA、ならびにその役員、理事、代理人、被雇用者、任意行為者、代表者、契約者、継承者、譲受人に対してそのように主張する、いかなる請求、訴訟、損失、請願、損害、判決、押収、強制執行についても一切の責任を問わず、(b) RBA、ならびにその役員、理事、代理人、被雇用者、任意行為者、代表者、契約者、継承者、譲受人に対し、使用者がリスト又はツールを利用したことによる、いかなる請求、訴訟、損失、請願、損害、判決、押収、強制執行に関しても免責の保証を与え、擁護し、責任を免除することに同意するものとします。","목록및 도구로의 접속 및 사용에 대하여, 사용자는 (a) RBA 뿐만 아니라 RBA 임원, 이사, 대리인, 직원, 자원 봉사자, 대표자, 계약자, 승계인, 양수인에 대해 사용자가 목록이나 도구로부터 또는 이의 사용으로부터 발생하여 RBA 뿐만 아니라 RBA 임원, 이사, 대리인, 직원, 자원 봉사자, 대표자, 계약자, 승계인, 양수인이 가졌거나 가지고 있거나 혹은 할 수 있고, 해야 하거나 가지고 있다고 주장할 수 있는 모든 청구, 조치, 손실, 소송, 손해 배상, 판결, 부가금, 그리고 이행에 대해, 영구히 면책하며, (b) 사용자의 목록이나 도구의 사용으로부터 또는 사용으로 인해 생기거나 발생한 모든 청구, 조치, 손실, 소송, 손해 배상, 판결, 부가금, 그리고 이행에 대해 RBA 뿐만 RBA 임원, 이사, 대리인, 직원, 자원 봉사자, 대표자, 계약자, 승계인, 양수인을 면책하고, 방어하며, 해가 미치지 않도록 하는 데 동의합니다.","Compte tenu de l’accès et de l’utilisation de la Liste et/ou d’un Outil, l’Utilisateur accepte par la présente de (a) libérer et pour toujours décharger la RBA, ainsi que ses officiers, directeurs, agents, employés, volontaires, représentants, sous-traitants, successeurs, et cède, pour chacun(e) et tous(te)s les revendications, actions, pertes, procès, dommages et intérêts, jugements, impôts, exécution, que l’Utilisateur a eu, a, pourra, devra ou prétendra avoir contre la RBA ainsi que ses officiers, directeurs, agents, employés, volontaires, représentants, sous-traitants, successeurs et assignés résultant de ou émanant de la Liste ou d’un Outil ou de l’utilisation de ceux-ci, et accepte (b) d’indemniser, défendre et décharger de la responsabilité la RBA ainsi que ses officiers, directeurs, agents, employés, volontaires, représentants, sous-traitants, successeurs, et ayants-droits cède toutes les revendications, actions, pertes, procès, dommages et intérêts, jugements, impôts, et exécutions, résultant ou émanant de la Liste ou d’un Outil ou de l’utilisation de ceux-ci par l’Utilisateur."]
["InstructionsA72","Instructions","A72","If any part of any provision of these Terms and Conditions shall be invalid or unenforceable under applicable law, said part shall be deemed ineffective to the extent of such invalidity or unenforceability only, without in any way affecting the remaining parts of said provision or the remaining provisions of these Terms and Conditions.","如果本条款和条件的任何部分被适用法律认为无效或不可执行，该部分将仅因此类无效或不可执行性而无效，但不会以任何方式影响所述条款的剩余部分或上述条款和条件的剩余条款的效力。","これらの利用規約の規定条項に、無効とすべき部分、もしくは適用される法律の下で執行不可能な部分が存在する場合、当該箇所は、当該規定条項のそれ以外の部分、もしくは本利用規約のそれ以外の規定条項にいかなる影響も与えることなく、そのような無効性や実行不可能性の範囲においてのみ無効とみなされるものとします。","이러한 약관사항과 조건들 규정 중 일부가 관련 법에 의해 무효이거나 실행될 수 없는 경우 이러한 부분은 무효 또는 이행불가의 정도만큼만 효력이 없으며, 이러한 부분 또는 약관사항과 조건들의 나머지 부분에 영향을 미치지는 않읍니다.","Si toute ou partie des dispositions de ces Conditions Générales est invalide ou inapplicable en vertu du droit en vigueur, cette partie des dispositions sera jugée sans effet, sans affecter d’aucune façon les parties restantes de ladite disposition ou les autres dispositions de ces Conditions Générales ."]
["InstructionsA73","Instructions","A73","By accessing and using the List or any Tool, and in consideration thereof, the User agrees to the foregoing. ","访问和使用此目录或任何工具以及考虑此目录和任何工具时，即表示该用户同意上述条款。","リストもしくはツールへのアクセス、又はその利用によって、またそれを考慮して、使用者は前述の事項に同意するものとします。","목록 또는 모든 도구에 접근하고 사용함으로써 사용자는 앞서 말한 내용에 동의하는 것으로 간주합니다. ","En accédant et en utilisant cette Liste ou l’un des Outils, et en contrepartie de ceux-ci, l’Utilisateur accepte les dispositions précitées."]
["DefinitionsB2","Definitions","B2","ITEM","项目","項目","항목","ITEM"]
["DefinitionsB3","Definitions","B3","Authorizer","授权人","回答責任者","책임자","Personne responsable"]
[{"$f":"B70&C70","v":"DefinitionsB4"},"Definitions","B4","Cobalt Refiner","钴精炼厂","コバルト精製業者","코발트 정련소","Affineur de cobalt"]
[{"$f":"B71&C71","v":"DefinitionsB5"},"Definitions","B5","Conflict-Affected and High-Risk Areas (CAHRA)","受冲突影响和高风险地区 (CAHRA)","紛争地域および高リスク地域（CAHRA)","분쟁 및 고위험 지역(CAHRA)","Zones touchées par des conflits et à haut risque (CAHRA)"]
[{"$f":"B72&C72","v":"DefinitionsB6"},"Definitions","B6","Declaration of Scope or Class","申报范围或类别","申告範囲またはクラス","선언 범주 또는 등급","Déclaration de champ d’application ou de classe"]
[{"$f":"B73&C73","v":"DefinitionsB7"},"Definitions","B7","Due Diligence","尽职调查","デュー・ディリジェンス","실사","Diligence raisonnable"]
[{"$f":"B74&C74","v":"DefinitionsB8"},"Definitions","B8","Independent Third-Party Audit Firm","独立的私营审核机构","独立第三者監査法人","제3자 독립 감사 회사","Cabinet d’audit indépendant du secteur privé"]
["DefinitionsB9","Definitions","B9","Intentionally added","有目的添加","意図的な付加","의도적으로 추가됨","Ajouté intentionnellement"]
["DefinitionsB10","Definitions","B10","OECD","组织经济合作与发展","経済協力開発機構（OECD）","OECD","OCDE"]
["DefinitionsB11","Definitions","B11","Mica (Natural)","云母（天然）","マイカ（天然）","운모(천연)","Mica (Naturel)"]
["DefinitionsB12","Definitions","B12","Mica (Synthetic)","云母（合成）","マイカ（合成）","운모(합성)","Mica(Synthétique)"]
["DefinitionsB13","Definitions","B13","Processor","加工商","加工業者","가공업체","Transformateur"]
[{"$f":"B80&C80","v":"DefinitionsB14"},"Definitions","B14","Product","产品","製品","제품","Produit"]
["DefinitionsB15","Definitions","B15","Recycled or Scrap Sources","回收或废料源","再生利用品又はスクラップ起源\nRecycled and Scrap Sources","재활용 또는 폐자원","Sources de produits recyclés ou déchets"]
[{"$f":"B82&C82","v":"DefinitionsB16"},"Definitions","B16","Responsible Business Alliance (RBA)","责任商业联盟 (RBA)","Responsible Business Alliance (RBA)","Responsible Business Alliance (RBA)","Responsible Business Alliance (RBA)"]
[{"$f":"B83&C83","v":"DefinitionsB17"},"Definitions","B17","Responsible Minerals Assurance Process (RMAP)","不使用冲突矿产冶炼厂计划（RMAP）","責任ある鉱物保証プロセス (RMAP)　Responsible Minerals Assurance Process(RMAP)","책임 있는 광물 보증 프로세스(RMAP)","Processus d’assurance des minéraux responsables (RMAP)"]
[{"$f":"B84&C84","v":"DefinitionsB18"},"Definitions","B18","Responsible Minerals Initiative (RMI)","负责任矿物计划 (RMI)","責任ある鉱物イニシアチブ(RMI) Responsible Minerals Initiative (RMI)","책임 있는 광물 이니셔티브 (RMI)","Initiative pour des minerais responsables (RMI)"]
[{"$f":"B85&C85","v":"DefinitionsB19"},"Definitions","B19","RMAP Conformant Smelter List","RMAP 合规冶炼厂目录","RMAP適合製錬業者リスト","RMAP 준수 제련소 목록","Liste de fonderies conformes RMAP"]
["DefinitionsB20","Definitions","B20","Smelter","冶炼厂","製錬業者","제련소","Fonderie"]
[{"$f":"B87&C87","v":"DefinitionsB21"},"Definitions","B21","Smelter Identification Number","冶炼厂识别序号","製錬業者識別番号","제련소 식별 번호","Numéro d’identification d’une fonderie"]
["DefinitionsC2","Definitions","C2","DEFINITION","定义","定義","정의","DÉFINITION"]
["DefinitionsC3","Definitions","C3","This field identifies the person responsible for the content of the declaration. The authorizer may be a different individual from the contact person. It is not correct to use the words ‘‘same’’ or similar identification to provide the name of the authorizer. ","此栏目定义对申报内容负责的责任人.授权人可能与申报内容责任人不一致，故不能填写“相同一样”, 需提供授权人的姓名。 ","この欄は、申告内容の回答責任者を特定します。回答責任者は連絡先と異なる人でもかまいません。「同上」又は同様の表現は避けてください。","이 항목은 선언 내용의 책임자를 뜻합니다. 책임자는 문의 담당자와는 다른 사람일 수 있습니다. 책임자의 이름을 입력할 때 \"same(동일)\" 또는 이와 유사한 식별 단어를 사용하지 마십시오. ","Ce champ indique la personne responsable du contenu de la déclaration. La personne responsable peut être différente du contact. Il n’est pas autorisé d’utiliser le mot « identique » ou équivalent au lieu de fournir le nom de la personne responsable. "]
[{"$f":"B90&C90","v":"DefinitionsC4"},"Definitions","C4","An entity that processes cobalt concentrates, intermediates or recycled feed and produces a cobalt product for direct use in a downstream manufacturing process.","处理钴精矿、中间产品或再循环材料并生产直接用于下游制造工艺的钴产品的实体。","コバルトの濃縮物、中間物、またはリサイクル材を加工し、川下製造プロセスで直接使用するためのコバルト製品を製造する企業。","코발트 정광, 중간 생산물 또는 재활용 원료를 공정하고 다운스트림 생산 공정에서 직접 사용할 수 있는 코발트 물질을 생산하는 회사입니다.","Une entité qui traite des concentrés, des produits semi-finis ou recyclés à partir du cobalt et qui fabrique un produit à base de cobalt pour une utilisation directe dans un procédé de fabrication en aval."]
[{"$f":"B91&C91","v":"DefinitionsC5"},"Definitions","C5","Conflict-Affected and High-Risk Areas (CAHRA) are defined by the OECD Due Diligence Guidance as \"areas identified by the presence of armed conflict, widespread violence or other risks of harm to people. Armed conflict may take a variety of forms, such as a conflict of international or non-international character, which may involve two or more states, or may consist of wars of liberation, or insurgencies, civil wars, etc. High-risk areas may include areas of political instability or repression, institutional weakness, insecurity, collapse of civil infrastructure and widespread violence. Such areas are often characterised by widespread human right abuses and violations of national or international law.\"","根据《经合组织尽职调查指南》的定义，受冲突影响和高风险地区 (CAHRA) 是指“识别为\n存在武装冲突、大面积暴力活动或其他存在使人民遭受伤害风险的地区。武装冲突的形式多种多样，如国际冲突或非国际冲突，可能涉及两个或两个以上国家，可能由解放战争、叛\n乱、内战等构成。高风险地区可能包括那些政局不稳或存在政治压迫、制度缺陷、不安全因素、民用基础设施崩溃、大面积暴力活动的地区。这类地区的特点往往是大规模侵犯人权、违反国际国内法律等。”","OECDは「紛争地域および高リスク地域（CAHRA）」を「武力による紛争、広範にわたる暴力、もしくは人々に危害が及ぶその他のリスクの有無によって特定される地域です。武力による紛争は様々な形をとることがあり、例えば、2ヵ国ないしそれ以上が関与することもあれば、解放戦争、反乱、内戦などによることもある、国際的もしくは非国際的対立などです。高リスク地域には、政情不安や抑圧、制度上の欠点、不安定などが見られる地域や、国内のインフラが崩壊した地域、さらに暴力が広範におよんでいる地域などがあります。これらの地域では広範におよぶ人権侵害や、国内法または国際法違反が見られます。 」 と定義しています。","분쟁 및 고위험 지역(CAHRA)은 OECE 실사 지침에 의해 무력 충돌, 광범위한 폭력 또는 사람에게 위해를 가하는 기타 위험의 존재로 확인되는 지역으로 정의됩니다. 무력 충돌은 국제적 또는 비국제적 성격의 충돌 등 둘 이상의 국가가 관여할 수 있고 독립전쟁이나 반란, 내전 등 다양한 종류의 형태로 나타날 수 있습니다. 고위험 지역에는 정치적 불안정이나 억압, 취약한 제도, \n열악한 치안, 시민사회 인프라 붕괴 및 광범위한 폭력이 자행되는 지역이 포함될 수 있습니다. 그 같은 지역의 특징은 광범위한 인권 유린과 국내 및 국제법을 위반한다는 것입니다.\". ","Les zones touchées par des conflits et à haut risque (CAHRA) sont définies ainsi par la directive de l’OCDE en matière de diligence raisonnable : « Les zones de conflit se caractérisent par l’existence d’un conflit armé, d’une violence généralisée ou d’autres risques d’atteinte aux populations. Il existe plusieurs types de conflits armés : internationaux (impliquant deux ou plusieurs États) ou non, guerres de libération, insurrections, guerres civiles, etc. Les zones à haut risque se caractérisent souvent par l’instabilité politique ou la\nrépression, la faiblesse des institutions, l’insécurité, l’effondrement des infrastructures civiles ou une violence généralisée, mais aussi des atteintes systématiques aux droits de l’homme et des violations du droit national et international. »"]
[{"$f":"B92&C92","v":"DefinitionsC6"},"Definitions","C6","For the purposes of this template, “scope” describes the applicability of the information provided by the reporting company.  The scope may encompass the entirety of a company’s services and/or products, or at a company’s discretion, the template may be used to report on a specific product (or products), or, be ‘User defined’.  The ‘User defined’ scope selection or class may be used to describe any subset of a company’s operation or product portfolio","就本模板而言，“范围”明确了申报公司所提供信息的适用性。范围可能涵盖了公司的全部服务和/或产品，或者，根据公司自行决定，模板也可用于报告特定产品，或者可以“自定\n义”。选择“自定义”范围或类别可以用于说明公司运营或产品组合的任何子集。","本テンプレートにおいて、「申告範囲」とは、報告企業が提供した情報の適用範囲を指します。申告範囲には、企業のサービスおよび／または製品全体を含むことが可能です。企業の判断で、特定の製品（または複数の製品）の報告に本テンプレートを使用することや、「ユーザー定義」を選択することもできます。「ユーザー定義」による申告範囲またはクラスを選択した場合、企業の業務または製品ポートフォリオの一部を申告することができます。","본 템플릿의 목적상, “범위”는 보고 회사가 제공하는 정보의 적용 가능성을 설명합니다. 범위는 회사의 서비스 및/또는 제품 전체를 포함할 수 있으며, 회사의 재량에 따라 특정 제품(또는 제품)을 보고하는 데 템플릿을 사용하거나 템플릿을 ‘사용자 정의’할 수 있습니다. '사용자 정의' 범위 선택 또는 등급을 사용하여 회사의 운영 또는 제품 포트폴리오의 하위 집합을 설명할 수 있습니다.","Pour ce modèle, le « champ d’application » décrit l’applicabilité des informations fournies par la société produisant les rapports. Le champ d’application peut englober l’intégralité des services et/ou des produits d’une société, ou à la discrétion d’une société, le modèle peut être utilisé pour signaler un ou plusieurs produits spécifiques, ou être « Défini par l’utilisateur ». La sélection ou la classe du champ d’application « Défini par l’utilisateur » peut être utilisée pour décrire tout sous-ensemble de l’exploitation ou du portefeuille de produits d’une entreprise."]
["DefinitionsC7","Definitions","C7","The OECD Due Diligence Guidance for Responsible Supply Chains of Minerals from Conflict-affected and High-risk Areas (OECD Guidance) defines “Due Diligence” as “an on-going, proactive and reactive process through which companies can ensure that they respect human rights and do not contribute to conflict”. More information is available at http://www.responsiblemineralsinitiative.org/training-and-resources/conflict-affected-and-high-risk-areas/.","《经济合作与发展组织关于来自受冲突影响和高风险地区矿石的负责任供应链尽职调查指\n南》（简称“经合组织指南”）将“尽职调\n查”定义为“一个持续的、主动性和应对性流程，通过该流程，公司可以确保其尊重人权而不会导致冲突。” \n更多信息可以在 http://www.responsiblemineralsinitiative.org/training-and-resources/conflict-affected-and-high-risk-areas/.","OECD紛争地域および高リスク地域からの鉱物の責任あるサプライチェーンのためのデュー・ディリジェンスガイダンス（OECDガイダンス）はデュー・ディリジェンスを「企業が人権を尊重すること、ならびに紛争に手を貸さないことを確実にする、能動的かつ受動的で、継続的なプロセス」と定義している。更なる情報はhttp://www.responsiblemineralsinitiative.org/training-and-resources/conflict-affected-and-high-risk-areas/を参照。","분쟁 및 고위험 지역(OECD 지침) 광물의 책임 있는 공급망을 위한 OECD 실사 지침은 “실사”를 “기업이 인권을 존중하고 분쟁에 기여하지 않는다는 것을 보장할 수 있는 지속적이고, 선제적이며, 대응적인 과정\"으로 정의합니다. 더 자세한 정보는 http://www.responsiblemineralsinitiative.org/training-and-resources/conflict-affected-and-high-risk-areas/에서 볼 수 있습니다. ","Le guide OCDE sur le devoir de diligence pour des chaînes d’approvisionnement responsable en minerais provenant des zones de conflit ou à haut risque (Guide OCDE) définit le devoir de diligence comme « un processus continu, proactif et réactif, à travers lequel les entreprises peuvent s’assurer qu’elles respectent les droits humains et ne contribuent pas à des conflits ». Plus d'informations sont disponibles sur http://www.responsiblemineralsinitiative.org/training-and-resources/conflict-affected-and-high-risk-areas/."]
["DefinitionsC8","Definitions","C8","With respect to smelter audits, an “Independent Third-Party Audit Firm” is a private sector organization competent in evaluating the smelter or refiner’s due diligence system against a defined standard.  To maintain neutrality and impartiality, such organization and its audit team members must have no conflicts of interest with the auditee.","就冶炼厂审计而言，“独立第三方审计事务\n所”是指能够按照制定的标准对冶炼厂或精炼厂的尽职调查体系进行评估的私营机构。为保持中立和公正性，此类机构及其审计团队不得与被审单位存在利益冲突。","製錬業者監査について、「独立第三者監査会社」とは、製錬業者又は精錬所のデュー・ディリジェンスシステムを基準に照らして評価する資格を持つ民間機関です。中立性および公平性を保つために、こうした組織と監査チームのメンバーは、被監査者と利害の衝突があってはならない。","제련소 감사와 관련하여 “제3자 독립 감사 회사”는 정의된 표준에 대해 제련소나 정련소의 실사 시스템을 평가할 역량을 갖춘 민간 부문 조직입니다. 중립성과 공정성을 유지하기 위해, 이러한 조직과 그 조직의 감사팀 구성원은 피감사인과 이해 상충 관계가 없어야 합니다. ","En ce qui concerne les audits de fonderies, un « cabinet d’audit indépendant du secteur privé » est une entreprise privée compétente pour évaluer la traçabilité des matériaux utilisés par un fondeur ou un affineur par rapport aux normes du RMAP ou de protocoles d’audit équivalents. Pour être neutres et impartiaux, cette organisation et ses auditeurs ne doivent avoir aucun conflit d’intérêts avec l’audité."]
["DefinitionsC9","Definitions","C9","Intentionally added is commonly known as the deliberate use of a substance, or in this case metal, in the formulation of a product where continued presence is desired to provide a specific characteristic, appearance or quality.","“有意添加”通常指故意将某种物质（此处指金属）按设想添加到产品配方中，以持续呈现某种具体的特征、外观或质量。","意図的な添加とは、通常、製品の特性、外観又は品質を保持するために、製品の製造において継続的に存在することが 望まれる物質（この場合は金属）の計画的な使用として知られている。","의도적으로 추가하는 것은 특정 특성, 외관 또는 품질을 지속적으로 제공해야 하는 제품의 배합에서 물질의, 또는 이 경우에는 금속의, 의도적인 사용인 것으로 알려져 있습니다. ","« Ajouté intentionnellement » est communément admis comme l’utilisation délibérée d’une substance, ou dans ce cas d’un métal, dans la formulation d’un produit où la présence continue est souhaitable pour procurer une caractéristique, un aspect ou une qualité spécifique."]
["DefinitionsC10","Definitions","C10","Organisation for Economic Co-operation and Development.  The OECD has developed the OECD Due Diligence Guidance for Responsible Supply Chains.  The OECD Due Diligence Guidance provides detailed recommendations to help companies respect human rights and avoid contributing to conflict through their mineral purchasing decisions and practices and uses a reasonableness approach. This Guidance is for use by any company potentially sourcing minerals or metals from conflict-affected and high-risk areas. The OECD Guidance is global in scope, and applies to all mineral supply chains. (http://mneguidelines.oecd.org/mining.htm)","经济合作与发展组织。经合组织制定了《经合组织负责任供应链尽职调查指南》。《经合组织尽职调查指南》内含详细建议，可帮助公司充分尊重人权，避免因其矿物采购的决定和行为而加剧冲突。该指南适用于可能从受冲突影响及高风险地区采购矿物或金属的任何公司。经合组织指南适用于全球范围内的所有矿物供应链。\n(http://mneguidelines.oecd.org/mining.htm)","経済協力開発機構OECDは、責任あるサプライチェーンのためのOECDデュー・ディリジェンスガイダンスを策定した。OECDデュー・ディリジェンスガイダンスは、企業が人権を尊重し、鉱物の購入決定と慣行を通じて紛争への加担を避けるための詳細な勧告を提供している。 このガイダンスは、紛争地域および高リスク地域から鉱物や金属を調達する可能性のあるすべての企業のためのものである。 OECDガイダンスは、世界中のすべての鉱物サプライチェーンに適用される。 （http://mneguidelines.oecd.org/mining.htm）","경제협력개발기구. OECD는 책임 있는 공급망을 위해 OECD 실사 지침을 개발했습니다. OECD 실사 지침은 기업이 광물 구매를 결정하고 광물 구매 관행을 거칠 때 인권을 존중하고 갈등에 기여하지 않도록 돕기 위해 상세한 권고안을 제공합니다. 이 지침은 분쟁 및 고위험 지역에서 광물이나 금속을 조달할 가능성이 있는 모든 회사에서 사용하기 위한 것입니다. OECD 지침의 적용 범위는 전 세계적이며 모든 광물 공급망에 적용됩니다. (http://mneguidelines.oecd.org/mining.htm)","Organisation pour la Coopération et le Développement Économique. L'OCDE a développé un Guide OCDE sur le devoir de diligence pour des chaînes d’approvisionnement responsables en minerais provenant de zones de conflit ou à haut risque. Ce guide du devoir de diligence de l'OCDE fournit des recommandations détaillées pour aider les sociétés à respecter les droits humains et à éviter de contribuer à des conflits via leurs décisions d'achats de minerais et leurs pratiques et à utiliser une approche raisonnée. Ce Guide est à utiliser par toute société susceptible de se fournir en matériaux ou en métaux depuis des zones de conflit ou à hauts risques. Le Guide de l'OCDE est à portée mondiale et s'applique à toutes les chaînes d'approvisionnement en minéraux. (http://mneguidelines.oecd.org/mining.htm)\n"]
["DefinitionsC11","Definitions","C11","Natural mica is a mineral that is mined or naturally occurring, such as muscovite and phlogopite.","天然云母是开采出或自然形成的矿物，如白云母或金云母。","天然マイカは、白雲母及び金雲母のように、採掘されるか天然に発生する鉱物です。","천연 운모는 백운모 및 금운모 같이 채굴하거나 자연적으로 생성되는 광물입니다.","Le mica naturel est un minerai exploité ou d'origine naturelle comme la muscovite et le phlogopite."]
["DefinitionsC12","Definitions","C12","Synthetic mica (fluorophlogopite) is a man-made material composed of such materials as magnesium, aluminum and silicon. ","合成云母（氟金云母）是一种人工合成的材料，使用的原料包括镁、铝和硅。","合成マイカ（フッ素金雲母）は、マグネシウム、アルミニウム及びシリコンのような材料で構成されている人工材料です。","합성 운모(플루오르플로고파이트)는 마그네슘, 알루미늄 및 실리콘과 같은 물질로 이루어진 인공 물질입니다.","Le mica synthétique (fluorophlogopite) est un matériau synthétique composé de matériaux tels que le magnésium, l’aluminium et le silicium."]
["DefinitionsC13","Definitions","C13","A mica processor is an entity that takes raw mined minerals such as pegmatites (schist), feldspar, kaolin, muscovite or phlogopite and subjects them to various physical or mechanical methods to separate non-mica components from mica components, then produce grades of mica products for use in downstream manufacturing processes. Raw mineral processing can include sorting, separation, milling, grinding, cutting, stamping and binding.","云母加工厂是指对开采的原矿（如伟晶岩（片岩）、长石、高岭土、白云母或金云母）施加各种物理或机械方法将非云母成分和云母成分分离，然后生产供下游生产工艺使用的具有一定等级的云母产品的实体。原矿加工包括分选、分离、研磨、磨矿、切割、冲压和结合。","マイカ加工業者は、ペグマタイト（片岩）、長石、カオリン、白雲母または金雲母のような原鉱を採取し、さまざまは物理的または機械的方法を利用して、マイカ以外の成分をマイカ成分から分離し、川下の製造プロセスで使用するために複数の等級のマイカ製品を製造します。原鉱加工には、選別、分離、フライス、研削、切削、スタンピング、結合を含めることができます。","운모 가공업체는 페그마타이트(편암), 장석, 카올린, 백운모 또는 금운모와 같은 채굴된 원료 광물을 다양한 물리적 또는 기계적 방법에 적용하여 운모 성분으로부터 비운모 성분을 분리한 후 하위 제조 공정에서 사용 가능한 등급의 운모 물질을 생성하는 법인입니다. 원료 광물 가공에는 분류, 분리, 제분, 연마, 절단, 압인 및 접합 등이 포함될 수 있습니다.","Un processeur de mica est une entité qui prend des minéraux bruts extraits tels que les pegmatites (schiste), le feldspath, le kaolin, la muscovite ou la phlogopite et les soumet à diverses méthodes physiques ou mécaniques pour séparer les composants non-mica des composants mica, puis produit différentes qualités de produits mica pour une utilisation dans les processus de fabrication en aval. Le traitement des minéraux bruts peut comprendre le tri, la séparation, le broyage, la coupe, l’estampage et le réassemblage."]
[{"$f":"B100&C100","v":"DefinitionsC14"},"Definitions","C14","A company’s Product or Finished good is a material or item which has completed the final stage of manufacturing and/or processing and is available for distribution or sale to customers.","公司的产品或成品是指在制造生产阶段或最后完成阶段的物料或物品，并且已可以交付或销售给客户。 ","企業の製品又は完成品とは、製造や生産の最終段階を終了し、流通又は顧客への販売が可能になっている材料や品目です。","회사의 제품 또는 완제품은 제조 및/또는 가공의 최종 단계를 완료하고 고객에게 유통 또는 판매할 수 있는 물질 또는 품목입니다. ","Le produit fini d’une entreprise est un matériel ou un élément qui est arrivé au stade final de sa fabrication et est disponible pour la distribution ou la vente aux clients."]
["DefinitionsC15","Definitions","C15","Recycled or scrap sources are recycled cobalt that are reclaimed end-user or post-consumer products, or scrap processed cobalt created during product manufacturing. Recycled cobalt includes excess, obsolete, defective, and scrap cobalt materials that contain refined or processed metals that are appropriate to recycle in the production of such metals. Minerals partially processed, unprocessed or byproducts from other ores are not included in the definition of recycled cobalt.\n\nNote: As of the date of this publication, there is no significant post-consumer recycling of mica.","回收料或报废料资源是指来自回收的最终用户产品或消费后产品的再生钴，或者在产品制造期间产生的钴加工废料。再生钴包括某些多余的、废弃的、缺陷的和废钴等材料，这些材料含有在生产此类金属时适于回收的已精炼或加工金属。再生钴的定义中不包括部分加工、未加工的矿物或者其他矿石的副产品。\n\n注：至本模版出版之日，目前尚未进行规模化回收用后云母。","再生利用品又はスクラップ起源とは、再生された最終消費者製品又は使用済み製品である再生コバルト、又は製品製造中に作り出されスクラップ加工されたコバルトです。再生コバルトには、適切な精製又は加工がなされた、過剰分、廃品、不良品及びスクラップのコバルト素材があります。加工中か未加工なコバルト又はその他の鉱石の副産物は、再生コバルトの定義に含まれません。\n\n注：本文書の発行時点で、顕著な使用済みマイカの再生利用はありません。","재활용 또는 폐자원은 최종 사용자 또는 사용 후 제품을 환원한 재활용 코발트 또는 제품 제조 과정에서 생성된 폐품 처리된 코발트입니다. 재활용 코발트에는 이러한 금속의 생산에서 재활용하기에 적합한 정제되거나 가공된 금속을 포함하고 있는 여분의 쓸모없고 결함이 있는 폐기 코발트 물질이 포함됩니다. 부분적으로 가공되거나, 가공되지 않은 광물 또는 다른 광석에서 나온 부산물은 재활용 코발트의 정의에 포함되지 않습니다.\n\n참고: 이 발행일 현재 운모의 소비자 사용 후 재활용은 없습니다.","Les sources de produits recyclés ou déchets sont du cobalt recyclé qui est récupéré par l’utilisateur final ou depuis des produits déjà utilisés ou des rebuts de cobalt créé durant la fabrication du produit. Le cobalt recyclé inclus des matériaux en cobalt en excès, obsolètes, défectueux, et les débris qui contiennent des métaux affinés ou transformés qui peuvent être recyclés pour produire ce métal. Les minerais partiellement on non-traités ou sous-produits d’autres minerais ne répondent pas la définition du recyclage du cobalt.\n\nRemarque : À la date de cette publication, il n’existe pas de recyclage important de mica après utilisation."]
[{"$f":"B102&C102","v":"DefinitionsC16"},"Definitions","C16","Founded in 2004 the Responsible Business Alliance is the world’s largest industry coalition dedicated to electronics supply chain responsibility. (http://www.responsiblebusiness.org)\n","责任商业联盟成立于 2004 年，是全球最大的\n致力于在电子行业供应链中倡导企业责任的行业联盟。\n(http://www.responsiblebusiness.org)\n","2004年に設立されたResponsible Business Alliance（RBA）は、責任あるエレクトロニクスサプライチェーン専門の世界最大の産業連合です。\n(http://www.responsiblebusiness.org)","2004년에 설립된 Responsible Business Alliance는 전자 공급망 책무에 전념하는 세계에서 제일 큰 규모의 산업 연대입니다. (http://www.responsiblebusiness.org)\n","La Responsible Business Alliance, fondée en 2004, est la plus grande coalition industrielle dédiée à la responsabilité de la chaîne d'approvisionnement électronique.\n(http://www.responsiblebusiness.org)"]
[{"$f":"B103&C103","v":"DefinitionsC17"},"Definitions","C17","The Responsible Minerals Assurance Process (RMAP) is a program developed by the RBA and GeSI to enhance company capability to verify the responsible sourcing of metals. Further details of the RMAP can be found here: http://www.responsiblemineralsinitiative.org/smelter-introduction/","不使用冲突矿产冶炼厂计划是由电子行业公民联盟(RBA) 和全球电子可持续发展倡议组织 (GeSI) 来制定用以提高公司对金属责任采购\n进行查证的能力。 如要了解更多详细的计划信息请登陆http://www.responsiblemineralsinitiative.org/smelter-introduction/","責任ある鉱物保証プロセス（RMAP）とは、鉱物の責任ある調達の検証を強化するために、RBAとGeSIによって開発されたプログラムです。RMAPに関する詳しい情報は以下のサイトに掲載されています。\nhttp://www.responsiblemineralsinitiative.org/responsible-minerals-assurance-process/。","Responsible Minerals Assurance Process(RMAP)는 금속의 책임 있는 조달을 검증할 수 있도록 회사의 역량을 강화하기 위해 RBA 및 GeSI가 개발한 프로그램입니다. 여기에서 RMAP에 대한 더 자세한 내용은 볼 수 있습니다: http://www.responsiblemineralsinitiative.org/smelter-introduction/","Le Processus d’assurance des minéraux responsables (RMAP) est un programme développé par la RBA et la GeSI pour augmenter la capacité des entreprises à vérifier leur approvisionnement responsable en métaux. De plus amples détails sur le RMAP sont disponibles sur : http://www.responsiblemineralsinitiative.org/smelter-introduction/"]
[{"$f":"B104&C104","v":"DefinitionsC18"},"Definitions","C18","Founded in 2008 by members of the Responsible Business Alliance and the Global e-Sustainability Initiative, the Responsible Minerals Initiative has grown into one of the most utilized and respected resources for companies addressing conflict minerals issues in their supply chains. Over 150 companies from seven different industries participate in the RMI today, contributing to a range of tools and resources including the Responsible Minerals Assurance Process, the Conflict Minerals Reporting Template, Reasonable Country of Origin Inquiry data and a range of guidance documents on conflict minerals sourcing. The RMI also runs regular workshops on conflict minerals issues and contributes to policy development and debates with leading civil society organizations and governments. Additional information is available at http://www.responsiblemineralsinitiative.org/. ","负责任矿物计划 (RMI) 是由责任商业联盟和全球电子永续\n倡议组织的成员于 2008 发起成立，\n已发展成为公司解决其供应链中的冲突矿产问题而最广泛使用和认可的资源之一。今天来自 7 个不同行业的超过 150 家公司加入了 RMI，这些公司贡献了一系列工具和资源，包括负责任矿物审验流程、冲突矿产报告模板、合理原产国查询数据以及各类关于冲突矿产采购的指导文档。RMI 还定期举办关于冲突矿产问题\n的研讨会，促进政策制订，并且与主要公民社会组织和政府展开辩论。更多信息请访问 http://www.responsiblemineralsinitiative.org/。","RBAおよびGeSIのメンバーにより2008年に設立されたRMIは、サプライチェーンにおける紛争鉱物問題に取り組む企業が最も利用し尊重する組織のひとつに成長しました。現在異なる7業界から150社以上の企業がRMIに参加し、RMAP、CMRT、合理的な原産国調査(RCOI)データおよび紛争鉱物調達に関するさまざまなガイダンス文書を含む幅広いツールおよびリソースを提供しています。RMIは紛争鉱物問題の定期的なワークショップを実施し、政策展開に貢献し、主要な市民社会団体および政府とも協議を重ねています。詳細については以下を参照してください。http://www.responsiblemineralsinitiative.org/. ","Responsible Business Alliance 및 글로벌 e-지속가능성 이니셔티브 회원사에 의해 2008년에 시작된 Responsible Minerals Initiative는 공급망의 분쟁광물 문제를 해결하기 위해 노력하는 기업들이 가장 많이 활용하고 신뢰하는 프로그램으로 성장했습니다. 오늘날 일곱 가지 산업 분야에 종사하는 150개 이상의 기업이 RMI에 참여하여 책임 있는 광물 보증 프로세스, 분쟁 광물 보고 템플릿, 합리적인 원산지 국가 조회 데이터, 분쟁 광물 조달에 관한 다양한 지침 문서를 포함하여 다양한 도구 및 자원에 기여하고 있습니다. 또한 RMI는 분쟁광물 문제에 관한 정기 워크샵을 개최하고 주요 시민사회 단체 및 정부와의 정책 개발과 토론에 기여한다. 추가 정보는 http://www.responsiblemineralsinitiative.org/에서 보실 수 있습니다. ","Fondée en 2008 par des membres de la Responsible Business Alliance et de la Global e-Sustainability Initiative, l'Initiative pour des minerais responsables (RMI) est devenue l’une des ressources les plus utilisées et les plus respectées pour les entreprises s’attaquant aux problèmes de minerais de conflit dans leurs chaînes d’approvisionnement. Plus de 150 entreprises de sept secteurs différents participent aujourd’hui au RMI, contribuant à une gamme d’outils et de ressources, notamment le Processus d’assurance des minéraux responsables, le modèle de rapport sur les minerais de conflit, les données d’enquête raisonnable sur le pays d’origine et une gamme de documents d’orientation sur l’approvisionnement en minerais de conflit. Le RMI organise également des ateliers réguliers sur les problèmes liés aux minerais de conflit et contribue à l’élaboration de politiques et aux débats avec les principales organisations de la société civile et les gouvernements. Des informations supplémentaires sont disponibles sur http://www.responsiblemineralsinitiative.org/."]
[{"$f":"B105&C105","v":"DefinitionsC19"},"Definitions","C19","The Responsible Minerals Assurance Process (RMAP) Conformant Smelter List is a published list of smelters and refiners that have undergone assessment through the RMAP, a program of the Responsible Minerals Initiative (RMI) or industry equivalent program (such as Responsible Jewellery Council or London Bullion Market Association) and have been validated to be in conformance with the protocols. If a smelter or refiner is not on the list, it has either not completed a RMAP assessment or is not in conformance with the RMAP protocol. \n\nA list of smelters and refiners which have been validated to be conformant to the RMAP can be found at www.responsiblemineralsinitiative.org","负责任矿物审验流程 (RMAP) 中的合规冶炼\n厂目录包含了所有被评估并且符合标准的冶炼厂和精炼厂。其中的标准有负责任矿物审验流程 (RMAP)、负责任矿物计划 (RMI) 或其它对等机构计划（如，责任珠宝委员会或伦敦金银市场协会）。如果冶炼厂或精炼厂不在目录内，则表示其未完成 RMAP 评估或不\n符合 RMAP 标准要求。\n\n要查看经验证符合 RMAP 的冶炼厂和精炼厂\n目录，请访问 www.responsiblemineralsinitiative.\norg。","責任ある鉱物保証プロセス（RMAP）適合製錬業者リストとは、Responsible Minerals Initiative（RMI）のプログラムであるRMAP、またはこれに相当する業界プログラム（責任あるジュエリー協議会、ロンドン地金市場協会など）の認証を受け、既定に準拠していることが実証された製錬業者および精製業者の公表リストを指します。製錬業者または精製業者が本リスト上に存在しない場合、その業者はRMAP評価を完了していないか、RMAPプロトコルに準拠していません。\n\nRMAPへの準拠が確認された製錬業者および精製業者のリストは、www.responsiblemineralsinitiative.orgで閲覧可能です。","책임 있는 광물 보증 프로세스(RMAP) 준수 제련소 목록은 RMAP, Responsible Minerals Initiative(RMI) 또는 업계의 동등한 프로그램(예를 들어 Responsible Jewellery Council 또는 London Bullion Market Association)을 통해 평가를 받고 절차를 준수하는지 평가된 제련소와 정련소의 공개된 목록입니다. 제련소 또는 정련소가 이 목록에 있지 않다면, RMAP 평가를 완료하지 못했거나 RMAP 절차를 준수하지 않고 있다는 것입니다.\n\nRMAP를 준수하는 것으로 확인된 제련소 및 정련소 목록은 www.responsiblemineralsinitiative.org에서 볼 수 있습니다.","La liste des fonderies conformes au Processus d’assurance de minerais responsables (Responsible Minerals Assurance Process, RMAP) est une liste publiée des fonderies et raffineries qui ont suivi une évaluation par l’intermédiaire du RMAP, un programme de l’Initiative pour des minerais responsables (Responsible Minerals Initiative, RMI) ou un programme sectoriel équivalent (notamment le Responsible Jewellery Council ou la London Bullion Market Association) et ont été validés pour leur conformité aux protocoles. Si une fonderie ou une affinerie n’est pas sur la liste, c’est soit parce qu’elle n’a pas rempli d’évaluation RMAP, soit parce qu’elle n’est pas conforme au protocole RMAP. \n\nUne liste des fonderies et affineries qui ont été validées pour leur conformité au RMAP est disponible sur www.responsiblemineralsinitiative.org"]
["DefinitionsC20","Definitions","C20","A smelter or refiner is a company that procures and processes mineral ore, slag and/or materials from recycled or scrap sources into refined metal or metal containing intermediate products.  The output can be pure (99.5% or greater) metals, powders, ingots, bars, grains, oxides or salts. The terms \"smelter\", \"refiner\", and \"processor\" are used interchangeably throughout various publications.","冶炼厂或精炼厂是指从回收料或报废料资源中采购和加工矿石、矿渣和/或原料并由此生成精炼金属或含有中间产品的金属的公司。其产物可以是纯的（99.5% 或以上）金属、粉末、铸块、棒条、颗粒、氧化物或金属盐。术语“冶炼厂”、“精炼厂”、“加工厂”在各种出版物中可通用。","製錬業者又は精製業者とは、鉱石、スラグ及び／又は再生利用品もしくはスクラップ起源からの材料を調達し、精錬された金属、又は中間生成物を含む金属に加工する企業です。その生産物には、純金属（99.5%以上）、金属粉、インゴット、金属棒、金属粒子、金属酸化物もしくは金属塩があります。「精錬業者」「精製業者」「加工業者」という用語は、さまざまな発行物で、同じ意味で使用されます。","제련소 또는 정련소는 광물 광석, 슬래그 및/또는 재활용 또는 폐자원을 구매하여 정제된 금속이나 금속이 함유 중간 물질로 가공하는 회사입니다. 생산품은 순금속(99.5% 이상), 분말, 잉곳, 바, 그레인, 산화물 또는 염이 될 수 있습니다. \"제련소\", \"정련소\" 및 \"가공업체\"라는 용어는 다양한 발행물에서 서로 바꿔 사용됩니다.","Une fonderie ou une affinerie est une entreprise qui achète et transforme du minerai, des scories et/ou des matériaux provenant de sources recyclées ou de déchets en métal raffiné ou en produits intermédiaires contenant du métal. Le résultat de ce traitement peut être des métaux purs (99,5 % ou plus), des poudres, des lingots, des barres, du grain, des oxydes ou des sels. Les termes « fondeur », « affineur » et « transformateur » sont utilisés de manière interchangeable dans diverses publications."]
[{"$f":"B107&C107","v":"DefinitionsC21"},"Definitions","C21","A unique identification number the RMI assigns to companies that have been reported by members of the supply chain as smelters or refiners, whether or not they have been verified to meet the characteristics of smelters or refiners as defined in the RMAP audit protocols or other applicable audit programs.","RMI 为一些公司指定的唯一识别号，这些公司被供应链中的成员报告为冶炼厂或精炼厂，无论它们是否经过验证符合 RMAP 审计标准或其他适用审计计划所定义的冶炼厂或精炼厂的特征。","RMIは、サプライチェーンを構成する企業が製錬・精製業者として報告した企業に対し、固有の識別番号を割り当てます。これは、これらの企業がRMAP監査手順の定義する製錬・精製業者の特性を満たしていると検証されているかどうかとは無関係です。","RMI는 RMAP 감사 프로토콜이나 기타 적용 가능한 감사 프로그램에 정의된 제련소나 정련소의 특성을 충족하는 것으로 검증되었는지 여부에 관계없이 제련소나 정련소로서 공급망의 회원에 의해 보고된 기업에게 고유한 식별 번호를 부여합니다. ","Un code d’identification unique est attribué par le RMI aux entreprises qui ont été identifiées par les membres de la chaîne d’approvisionnement comme des fondeurs ou des affineurs, et ce qu’ils répondent ou non aux exigences définies par le protocole d’audit du RMAP pour les fondeurs et les affineurs."]
["DeclarationD2","Declaration","D2","Extended Mineral Reporting Template (EMRT)","扩展矿物报告模版 (EMRT)","拡張鉱物報告テンプレート（EMRT）","확장 광물 보고 템플릿(EMRT)","Modèle de rapport sur les minerais élargi (Extended Mineral Reporting Template (EMRT))"]
["DeclarationF3","Declaration","F3","Click here to check required fields completion","点击此处检查必填字段填写情况","必須欄の記入状況を確認するにはこちらをクリック","필수 항목이 모두 작성되었는지 확인하려면 여기를 클릭하십시오. ","Cliquez ici pour vérifier le remplissage des champs obligatoires"]
["DeclarationI3","Declaration","I3","One (1) or more required fields needs to be populated","需要填写一个 (1) 或多个必填字段","1つ以上の必須欄に記入する必要があります","하나(1) 이상의 필수 항목을 작성해야 합니다. ","Un (1) ou plusieurs champs obligatoires doivent être remplis"]
["DeclarationI4","Declaration","I4","Link to Terms & Conditions","链接至条款和条件","利用規約へのリンク","이용 약관으로 연결되는 링크","Lien vers les Conditions générales"]
["DeclarationB4","Declaration","B4","The purpose of this document is to collect sourcing information on cobalt or natural mica.","本文件旨在收集产品中使用的特定原材料（特别是钴或天然云母）的采购信息。","この文書の目的は、製品に使用される特定の原材料、特にコバルト又は天然マイカの調達先情報を収集することです","본 문서의 목적은 코발트 또는 천연운모의 조달 정보를 수집하는 것입니다. ","Le but de ce document est de collecter des informations sur la provenance du cobalt ou du mica naturel."]
["DeclarationB6","Declaration","B6","Mandatory fields are noted with an asterisk (*).  Consult the instructions tab for guidance on how to answer each question.","必填字段标记以星号 (*)。参考说明选项卡，获取关于如何答复每个问题的指南。","必須項目は（*）で表示。各質問の回答方法については、「説明（Instructions）」タブを参照してください。","필수 기재란은 별표(*)로 표시됩니다. 각 질문에 대한 답변 방법은 지침 탭을 참조하십시오. ","Les champs obligatoires sont indiqués par un astérisque (*). Consultez l’onglet Instructions pour savoir comment répondre à chaque question."]
["DeclarationB7","Declaration","B7","Company Information","公司信息","会社情報","회사 정보","Informations sur l’entreprise"]
["DeclarationB8","Declaration","B8","Company Name (*):","公司名称（*）：","会社名(*):","회사 이름 (*):","Nom de l’entreprise (*) :"]
["DeclarationB9","Declaration","B9","Declaration Scope or Class (*):","申报范围或种类 (*):","申告範囲又はクラス(*):","선언 범위 또는 등급 (*):","Périmètre de la déclaration (*) :"]
["DeclarationB10","Declaration","B10","Description of Scope:","范围描述：","申告範囲の説明:","선언 범위:","Description du périmètre :"]
[{"$f":"B118&C118","v":"DeclarationB10A"},"Declaration","B10A","Description of Scope:","范围描述：","申告範囲の説明：","선언 범위:","Description du périmètre :"]
[{"$f":"B119&C119","v":"DeclarationB10C"},"Declaration","B10C","Description of Scope: (*)","范围描述：(*)","申告範囲の説明 (*):","선언 범위: (*)","Description du périmètre (*):"]
[{"$f":"B120&C120","v":"DeclarationB10B"},"Declaration","B10B","Go to Product List tab to enter products this declaration applies to","转到产品目录表输入所需申报的所有产品","この申告に適用される製品は製品一覧表(Product List)のシートに移動して入力","이 선언이 적용되는 제품을 입력하려면 제품 목록 탭으로 이동하십시오. ","Allez sur l’onglet « Liste des produits » pour saisir les produits auxquels cette déclaration s’applique"]
[{"$f":"B121&C121","v":"DeclarationD11"},"Declaration","D11","Click here to enter the products this declaration applies to","点击此处输入此申报所适用的产品","クリックして、この申告が適用される製品を入力してください","이 선언이 적용되는 제품을 입력하려면 여기를 클릭하십시오. ","Cliquez ici pour saisir les produits auxquels la présente déclaration s’applique"]
["DeclarationB12","Declaration","B12","Company Unique ID:","公司唯一识别信息： ","会社固有の識別番号:","회사 고유 ID:","Identifiant unique de l’entreprise :"]
["DeclarationB13","Declaration","B13","Company Unique ID Authority:","公司唯一授权识别信息：","会社固有の識別番号の発行元","회사 고유 ID 권한:","Autorité délivrant l’identifiant unique :"]
["DeclarationB14","Declaration","B14","Address:","地址：","住所:","주소:","Adresse :"]
["DeclarationB15","Declaration","B15","Contact Name (*):","联系人姓名 (*):","連絡先担当者名(*):","문의 담당자 이름(*):","Nom du contact (*) :"]
["DeclarationB16","Declaration","B16","Email – Contact (*):","联系人电邮地址 (*):","連絡先担当者の電子メール(*):","이메일 - 문의 담당자(*):","E-mail du contact (*) :"]
["DeclarationB17","Declaration","B17","Phone – Contact (*):","联系人电话 (*):","連絡先担当者の電話番号(*):","전화 - 문의 담당자(*):","Téléphone du contact (*) :"]
["DeclarationB18","Declaration","B18","Authorizer (*):","授权人姓名 (*):","回答責任者名(*):","책임자(*):","Nom de la personne responsable de la déclaration (*) :"]
["DeclarationB19","Declaration","B19","Title - Authorizer:","授权人职务:","回答責任者の役職:","직책 - 책임자:","Titre du responsable :"]
["DeclarationB20","Declaration","B20","Email - Authorizer (*):","授权人电邮地址 (*):","回答責任者の電子メール(*):","이메일 - 책임자(*):","E-mail du responsable (*) :"]
["DeclarationB21","Declaration","B21","Phone - Authorizer:","授权人电话 :","回答責任者の電話番号:","전화번호 - 책임자:","Téléphone du responsable :"]
["DeclarationB22","Declaration","B22","Effective Date (*):","授权日期 (*):"," 記入日(*):","발효일자(*):","Date de la déclaration (*) :"]
["DeclarationB24","Declaration","B24","Answer the following questions 1 - 7 based on the declaration scope indicated above","根据上述指明的申报范围回答下列问题 1 - 7","上記の申告範囲にもとづいて、以下の1～7の質問にお答えください","위에 표시된 선언 범위를 근거로 다음 질문 1 - 7에 답변하십시오. ","Répondre aux questions 1 à 7 suivantes pour le périmètre de la déclaration indiqué ci-dessus"]
[{"$f":"B134&C134","v":"DeclarationB25"},"Declaration","B25","1) Is any of the cobalt or natural mica intentionally added or used in the product(s) or in the production process? (*)","1) 是否在产品或生产流程中有意添加或使用任何钴或天然云母？ (*)","1）製品自体や製造過程で、コバルト又は天然マイカが意図的に添加又は使用されていますか？ （*）\n","1) 코발트 또는 천연 운모가 제품 또는 생산 공정에서 의도적으로 추가 또는 사용됩니까? (*)\n","1) Du cobalt ou du mica naturel est-il intentionnellement ajouté ou utilisé dans le(s) produit(s) ou les processus de production ?"]
[{"$f":"B135&C135","v":"DeclarationB31"},"Declaration","B31","2) Does any cobalt or natural mica remain in the product(s)? (*)","2) 产品中是否还存有任何钴或天然云母？ (*)","2）コバルト又は天然マイカは製品に残留していますか？","2) 제품에 코발트 또는 천연 운모 잔여물이 있습니까?","2) Reste-t-il du cobalt ou du mica naturel dans le(s) produit(s) ? (*)"]
["DeclarationB37","Declaration","B37","3) Do any of the smelters or processors in your supply chain source the cobalt or natural mica from conflict-affected and high-risk areas? (OECD Due Diligence Guidance, see definitions tab) ","3) 贵公司供应链中是否有冶炼厂或加工厂从受冲突影响和高风险地区采购钴或天然云母？ （《经合组织尽职调查指南》，参见定义选项卡） ","3）貴社サプライチェーン内の製錬業者又は加工業者のいずれかが、紛争地域および高リスク地域をコバルト又は天然マイカの原産地としていますか？（OECDデュー・ディリジェンスガイダンスの「定義（Definitions）」タブを参照） (*)\n\n","3) 귀사의 공급망에 있는 모든 제련소 또는 가공업체 중에 분쟁 및 고위험 지역에서 코발트 또는 천연운모를 조달하는 제련소가 있습니까? (OECD 실사 지침, 정의 탭 참조) ","3) Est-ce que l’une des fonderies ou des transformateurs de votre chaîne d’approvisionnement se fournit en cobalt ou en mica naturel dans une zone touchée par des conflits et à haut risque ? (Directive de l’OCDE sur la diligence raisonnable, voir l’onglet Définitions)"]
["DeclarationB43","Declaration","B43","4) Does 100 percent of the cobalt originate from recycled or scrap sources? ","4) 是否 100% 的钴来自回收料或\n报废料资源？ ","4）コバルトは全て、再生利用品又はスクラップ起源から調達していますか？","4) 코발트에 대해서 100% 재활용 또는 폐자원에서 조달합니까?","4) Est-ce que 100 % du cobalt du mica naturel provient de sources recyclées ou de déchets ?"]
["DeclarationB49","Declaration","B49","5) What percentage of relevant suppliers have provided a response to your supply chain survey?","5) 百分之多少的相关供应商已对贵公司\n的供应链调查提供答复？","5）サプライチェーン調査に回答した関連するサプライヤーは何パーセントですか？","5) 관련 공급업체가 귀사의 공급망 설문조사에 응답한 비율은 몇 퍼센트입니까?","5) Combien de fournisseurs concernés (en %) ont répondu à l’enquête sur la chaîne d’approvisionnement ?"]
["DeclarationB55","Declaration","B55","6) Have you identified all of the smelters or processors supplying the cobalt or natural mica to your supply chain?","6) 您是否识别出为贵公司的供应链供应钴或天然云母的所有冶炼厂或加工厂？","6）貴社のサプライチェーンにコバルト又は天然マイカを供給する全ての製錬業者又は加工業者を特定しましたか？","6) 귀사의 공급망에 코발트 또는 천연 운모를 공급하는 모든 제련소 또는 가공업체를 확인했습니까?","6) Avez-vous identifié toutes les fonderies et transformateurs qui fournissent le cobalt ou le mica naturel à votre chaîne d’approvisionnement ?"]
["DeclarationB61","Declaration","B61","7) Has all applicable smelter or processor information received by your company been reported in this declaration?","7) 贵公司收到的所有适用冶炼厂或加工厂信息是否已在此申报中报告？","7）貴社は受領した該当する全ての製錬業者又は加工業者情報を、この申告で報告していますか？","7) 귀사에서 받은 해당하는 모든 제련소 또는 가공업체 정보가 이 템플릿에 선언되었습니까?","7) Est-ce que toutes les informations pertinentes reçues des fonderies et transformateurs par votre société ont été mentionnées dans cette déclaration ?"]
["DeclarationB67","Declaration","B67","Answer the Following Questions at a Company Level","从公司层面来回答以下问题","会社レベルで以下の質問にお答えください","회사 차원에서 다음의 질문에 답변하십시오. ","Répondre à la question suivante au niveau de l’entreprise"]
["DeclarationB69","Declaration","B69","A. Have you established a responsible minerals sourcing policy?","A. 贵公司是否制定了可公开查阅的矿产采购政策？","A. 責任ある鉱物調達方針を確定しましたか？","A. 귀사는 공개적인 책임있는 광물 조달 정책을 수립했습니까? ","A. Avez-vous mis en place une politique responsable d’approvisionnement en minerais ?"]
["DeclarationB71","Declaration","B71","B. Is your responsible minerals sourcing policy publicly available on your website? (Note – If yes, the user shall specify the URL in the comment field.) ","B. 贵公司的负责任矿产采购政策是否公开发布于贵公司网页上？（备注 - 如果是，请在注释字段中注明 URL。）","B.その責任ある鉱物調達方針は、貴社のホームページで閲覧できますか？（回答が「はい」の場合、その方針が掲載されているURLをコメント欄に記入する）","B. 귀사의 책임있는 광물 조달 정책은 귀사 웹사이트에서 공개적으로 구할 수 있습니까? (주목 - \"예\" 의 답변인 경우, 의견란에 URL 를 기입하여야 합니다.)","B. Votre politique responsable d’approvisionnement en minerais est-elle disponible sur votre site Web ? (remarque : si oui, l'utilisateur doit spécifier l'URL dans le champ commentaire.)"]
[{"$f":"B144&C144","v":"Declaration"},"Declaration",null,"C. Do you require suppliers to exercise due diligence over the mineral supply chain in accordance with the OECD Due Diligence Guidance?","D. 贵公司是否要求供应商按照《经合组织\n尽职调查指南》针对钴供应链实施尽职调查？ ","C. 貴社は、サプライヤーに対して、OECDデューディリジェンスガイダンスに沿って鉱物サプライチェーンのデューディリジェンスを実施することを要求していますか　This question should be deleted.","D. 귀사는 공급업체에게 OECD 실사 지침에 따라 광물 공급망에 대한 실사를 실시하도록 요구합니까?","C. Exigez-vous que les fournisseurs fassent preuve de diligence raisonnable sur la chaîne d’approvisionnement en minerai conformément aux Directives de l’OCDE en matière de diligence raisonnable ?"]
["DeclarationB73","Declaration","B73","C. Do you require your direct suppliers to source cobalt from smelters or natural mica from processors whose due diligence practices have been validated by an independent third-party audit program?","C. 贵公司是否要求贵公司的直接供应商从尽职调查实践经独立第三方审计计划验证过的冶炼厂采购钴或从拥有相同资质的加工厂采购天然云母？","C.貴社は直接サプライヤーに対し、独立民間監査会社の監査プログラムによりデュー・ディリジェンス業務が認証された製錬業者からコバルトを、また認証された加工業者から天然マイカを調達することを要求していますか？","C. 귀사는 귀사의 직접 공급업체에게 독립된 제3자 감사 프로그램에 의해 실사를 확인받은 제련소 또는 가공업체로부터 코발트 또는 천연 운모를 조달할 것을 요구하고 있습니까?","C. Est-ce que vous imposez à vos fournisseurs directs de s’approvisionner en cobalt ou en mica naturel auprès de fonderies ou transformateurs dont les pratiques de diligence raisonnable ont été validées par un programme d’audit externe indépendant ?"]
["DeclarationB77","Declaration","B77","D. Have you implemented due diligence measures for responsible sourcing?","D. 贵公司是否已实施负责任矿产采购的尽职调查措施？","D. 責任ある鉱物調達のためのデュー・ディリジェンス対策を実施していますか？\n","D. 귀사는 책임있는 조달을 위한 실사를 시행하였습니까?","D. Exigez-vous des pratiques de diligence raisonnable concernant l'approvisionnement responsable ?"]
["DeclarationB79","Declaration","B79","E. Does your company conduct cobalt and/or natural mica supply chain survey(s) of your relevant supplier(s)?","E. 贵公司是否针对相关供应商进行钴和/或天然云母供应链调查？","E.貴社は関連するサプライヤーのコバルト及び／又は天然マイカサプライチェーン調査を行っていますか？","E. 귀사는 관련 공급업체의 코발트 및/또는 천연 운모 공급망 조사를 실시합니까?","E. Votre société réalise-t-elle des enquêtes sur la chaîne d’approvisionnement en cobalt ou en mica naturel de votre ou vos fournisseurs concernés ?"]
["DeclarationB81","Declaration","B81","F. Do you review due diligence information received from your suppliers against your company’s expectations? ","F. 贵公司是否会根据预期审核从供应商处收到的尽职调查信息？","F.サプライヤーからのデュー・ディリジェンス情報を貴社の期待を基に検証していますか？","F. 귀사는 공급업체로부터 받은 실사 정보를 귀사의 기대사항과 비교해 검토합니까?","F. Comparez-vous les informations de diligence raisonnable reçues de vos fournisseurs aux attentes de votre société ?"]
["DeclarationB83","Declaration","B83","G. Does your review process include corrective action management? ","G. 贵公司的审核流程是否包括纠错行动管理？ \n","G. 貴社の検証プロセスには是正措置管理が含まれていますか？","G. 귀사의 검토 프로세스에 시정 조치 관리가 포함되어 있습니까?","G. Votre processus d’examen comprend-il la gestion des mesures correctives ?"]
["DeclarationD25","Declaration","D25","Answer","回答","回答","답변","Réponse"]
["DeclarationB68","Declaration","B68","Question","问题","質問","질문","Question"]
["DeclarationG25","Declaration","G25","Comments","注释","備考","의견","Commentaires"]
["DeclarationB26","Declaration","B26","Cobalt","钴","コバルト","코발트","Cobalt"]
["DeclarationB27","Declaration","B27","Mica","云母","マイカ","운모","Mica"]
["DeclarationB28","Declaration","B28"]
["DeclarationB29","Declaration","B29"]
["DeclarationB32","Declaration","B32","Cobalt","钴","コバルト","코발트","Cobalt"]
["DeclarationB33","Declaration","B33","Mica","云母","マイカ","운모","Mica"]
["DeclarationB34","Declaration","B34"]
["DeclarationB35","Declaration","B35"]
[{"$f":"B161&C161","v":"DeclarationB38"},"Declaration","B38","Cobalt","钴","コバルト","코발트","Cobalt"]
["DeclarationB39","Declaration","B39","Mica","云母","マイカ","운모","Mica"]
["DeclarationB40","Declaration","B40"]
["DeclarationB41","Declaration","B41"]
["DeclarationAth","Declaration","Ath","Comments and Attachments","注释和附件","備考・添付書類","의견 및 첨부","Commentaires et pièces jointes"]
["DeclarationB86","Declaration","B86","Yes","是","はい","예","Oui"]
["DeclarationB87","Declaration","B87","No","否","いいえ","아니요","No"]
["DeclarationB88","Declaration","B88","Unknown","不知道","不明","모름","Ne sais pas"]
["DeclarationB89","Declaration","B89",1,1,1,1,"100 %"]
["DeclarationB90","Declaration","B90","Greater than 90%","超过 90%","90%超","90% 초과","Supérieur à 90 %"]
["DeclarationB91","Declaration","B91","Greater than 75%","超过 75%","75%超","75% 초과","Supérieur à 75 %"]
["DeclarationB92","Declaration","B92","Greater than 50%","超过 50%","50%超","50% 초과","Supérieur à 50 %"]
["DeclarationB93","Declaration","B93","50% or less","50% 或以下","50%以下","50% 이하","50 % ou moins"]
["DeclarationB94","Declaration","B94","None","完全没有","ゼロ","없음","Aucun"]
["DeclarationB95","Declaration","B95","Yes, Extended Mineral Reporting Template","是，钴报告模板","はい、拡張鉱物報告テンプレート","예, 확장 광물 보고 템플릿","Oui, modèle de rapport sur les minerais élargi"]
["DeclarationB96","Declaration","B96","Yes, using other format (describe)","是，使用其他格式（请描述）","はい、他のフォーマットを使用（記述する）","예, 다른 형식 사용(설명)","Oui, par un autre mode (donnez des explications)"]
["DeclarationB97","Declaration","B97","No","否","いいえ","아니요","Non"]
[{"$f":"B178&C178","v":"Smelter Look-upA1"},"Smelter Look-up","A1","The following list represents the RMI's latest smelter name/alias information as of this templates release.  This list is updated frequently,  and the most up-to-date version can be found on the RMI website http://www.responsiblemineralsinitiative.org/responsible-minerals-assurance-process/exports/cmt-export/.  The presence of a smelter here is NOT a guarantee that it is currently Active or Conformant within an independent third party audit program.\n\nPlease refer to the RMI web site www.responsiblemineralsinitiative.org for the most current and accurate list of standard smelter names that are Active or Conformant. \n\nNames included in column B represent company names that are commonly recognized and reported by the supply chain for a particular smelter. These names may include former company names, alternate names, abbreviations, or other variations. Although the names may not be the Standard Smelter Name, the reference names are helpful to identify the smelter, which is listed under column C in the Smelter Look-up.\n\nColumn C is the list of the official standard smelter names, in the ASCII character set. The majority of smelters will have the same entry for both columns, however if the common name varies from the standard name, the variation is noted in Column B. ","以下目录是截至此模板发布时 RBA 的最新冶炼厂名称/别名信息。  此目录会适时更新。  冶炼厂存在于此目录中并不保证它就是独立第三方审计计划内的目前有效或合规的冶炼厂。\n\n在 B 列中包括的名称表示供应链对于特定冶炼厂\n通常认可和报告使用的公司名称。这些名称可能包括公司曾用名、备用名称、简称或其他变体。虽然这些名称可能不是标准冶炼厂名称，但参考名称有助于识别列在“冶炼厂查找”中 C 列下的\n冶炼厂。\n\n在 ASCII 字符集中，C 列是正式标准冶炼厂名\n称目录。大多数冶炼厂的这两列具有相同的条目，然而，如果常用名称与标准名称不同，则在 B 列中注明这种变化。","以下の製錬業者リストは、このテンプレートのリリース時点でRBAの最新の製錬業者／別名の情報である。このリストは頻繁に更新される。このリストに製錬業者の名前が掲載されている場合でも、第三者の監査プログラムにおけるアクティブ（Active）又は適合（Conformant）を保証するものではない。\n\nB列に記載されている名前は、特定の製錬業者のサプライチェーンによって一般的に認められており、また報告されている会社名である。これらの名前には、旧社名、別名、略称その他のバリエーションが含まれる。名前はRMI標準製錬業者名ではないかもしれないが、参照名は製錬業者を特定するのに役立つ。製錬業者は、Smelter Look-up（製錬業者検索）のC列に記載されている。\n\nC列は、ASCII文字セットで表す公式の標準製錬業者名のリストである。大多数の製錬業者の名前は両方の列で同一だが、一般名称が正式名と違う場合は、B列にその違いが注記されている。","다음 목록은 이 템플릿의 발표 시점을 기준으로 한 RBA의 최신 제련소 명칭/별칭 정보를 나타냅니다.   이 목록은 자주 업데이트됩니다.   이 목록에 제련소가 포함되어 있다고 해서 해당 제련소가 현재 제3자 독립 감사 프로그램 내에서 활동 중이거나 준수한다고 보장하는 것은 아닙니다. \n\nB열에 포함된 명칭은 특정 제련소에 대한 공급망에 의해 일반적으로 인식 및 보고되는 회사명을 나타냅니다. 이러한 이름에는 이전의 회사명, 대체 명칭, 약어 또는 기타 다른 명칭이 포함될 수 있습니다. 이름이 표준 제련소 명칭이 아닐 수 있지만, 참조 이름은 제련소를 식별하는 데 도움이 되며 제련소 찾기의 C열에 나열되어 있습니다. \n\nC열은 ASCII 문자열로 표시되는 공식 표준 제련소 명칭의 목록입니다. 대다수 제련소들의 명칭이 두 열 모두 동일하지만, 일반 명칭이 표준 명칭과 다를 경우, 다른 명칭이 B열에 표기됩니다. ","La liste suivante représente les dernières informations de la RMI relatives au nom/pseudonyme de la fonderie au moment de la publication de ce modèle. Cette liste est mise à jour régulièrement et la version la plus à jour peut être consultée sur le site Web de la RMI à l’adresse http://www.conflictfreesourcing.org/conflict-free-smelter-program/exports/cmrt-export/. La présence d’une fonderie sur cette liste ne garantit PAS que celle-ci est actuellement active ou conforme au Programme des fonderies hors conflits (Conflict Free Smelter Program, RMAP).\n\nVeuillez consulter le site Web de la RMI, www.conflictfreesourcing.org, pour obtenir la liste actualisée et précise de noms des fonderies standard qui sont actives ou conformes.\n\nLes noms figurant dans la colonne B représentent des noms de sociétés généralement reconnues et déclarées par la chaîne d’approvisionnement pour une fonderie particulière. Ces noms peuvent comprendre d’anciens noms de sociétés, d’autres noms, des abréviations ou d’autres variantes. Bien que les noms ne soient pas forcément des noms de fonderies standard de la RMI, les noms de référence peuvent permettre d’identifier la fonderie dans la colonne C de la Recherche de fonderie.\n\nLa colonne C correspond à la liste des noms standard officiels des fonderies, dans le jeu de caractères de la norme ASCII. La plupart des fonderies auront la même entrée pour les deux colonnes ; toutefois, si le nom courant est différent du nom standard, la variation est indiquée dans la colonne B."]
["Smelter Look-upA4","Smelter Look-up","A4","Metal",null,"金属","금속","Métal"]
["Smelter Look-upB4","Smelter Look-up","B4","Smelter Look-up (*)","冶炼厂查找 (*)","Smelter Look-Up（製錬業者名検索）（*）","제련소 찾기(*)","Recherche de fonderie (*)"]
["Smelter Look-up","Smelter Look-up",null,"Known alias",null,"既知の別名","알려진 별칭","Alias connus"]
["Smelter Look-upC4","Smelter Look-up","C4","Standard Smelter Names","在 B 列中包括的名称表示供应链对于特定冶炼厂通常认可和报告使用的公司名称。这些名称可能包括公司曾用名、备用名称、简称、或其他变体。虽然这些名称可能不是 RMI 标准冶炼厂名称，但参考名称有助于识别冶炼厂，该冶炼厂列在冶炼厂参考列表中的 C 列下。","標準製錬業者名","표준 제련소 명칭","Noms standard des fonderies"]
["Smelter Look-upD4","Smelter Look-up","D4","Smelter Facility Location: Country",null,"製錬施設所在地：国","제련소 시설 위치: 국가","Localisation de la fonderie : pays "]
["Smelter Look-upE4","Smelter Look-up","E4","Smelter ID","冶炼厂 ID","製錬業者ID","제련소 ID","Identifiant fonderie"]
["Smelter Look-upF4","Smelter Look-up","F4","Source of Smelter Identification Number","冶炼厂出处识别号","製錬業者識別番号の発行元","제련소 조달 식별 번호","Source de l’identifiant de la fonderie"]
["Smelter Look-upG4","Smelter Look-up","G4","Smelter Street ","冶炼工厂地址（街道）","製錬業者所在地：番地","제련소 도로명 ","Localisation de la fonderie : Rue"]
["Smelter Look-upH4","Smelter Look-up","H4","Smelter City","冶炼工厂地址（城市）","製錬業者所在地：市","제련소 도시","Localisation de la fonderie : Ville"]
["Smelter Look-upI4","Smelter Look-up","I4","Smelter Facility Location: State / Province","冶炼工厂地址（州/省）","製錬施設所在地：州／県","제련소 시설 위치: 시/도","Localisation de la fonderie : État / Province"]
["Smelter ListA4","Smelter List","A4","Smelter Identification Number Input Column","冶炼厂识别号码输入列","製錬業者識別番号の入力列","제련소 식별 번호 입력 열","Colonne de saisie du numéro d’identification de la fonderie"]
["Smelter ListB4","Smelter List","B4","Metal (*)","金属 l (*)","金属 (*)","금속(*)","Métal (*)"]
["Smelter ListC4","Smelter List","C4","Smelter Look-up (*)","冶炼厂查找 (*)","Smelter Look-Up（製錬業者名検索）（*）","제련소 찾기(*)","Recherche de fonderie (*)"]
["Smelter ListD4","Smelter List","D4","Smelter Name (1)","冶炼厂名称 (1)","製錬業者名(1)\n","제련소 명칭(1)","Nom de la fonderie (1)"]
["Smelter ListE4","Smelter List","E4","Smelter Country (*)","冶炼工厂地址（国家） (*)","製錬業者所在地：国(*)","제련소 국가(*)","Localisation de la fonderie : Pays (*)"]
["Smelter ListH4","Smelter List","H4","Smelter Street ","冶炼工厂地址（街道）","製錬業者所在地：番地","제련소 도로명 ","Localisation de la fonderie : Rue"]
["Smelter ListI4","Smelter List","I4","Smelter City","冶炼工厂地址（城市）","製錬業者所在地：市","제련소 도시","Localisation de la fonderie : Ville"]
["Smelter ListJ4","Smelter List","J4","Smelter Facility Location: State / Province","冶炼工厂地址（州/省）","製錬施設所在地：州／県","제련소 시설 위치: 시/도","Localisation de la fonderie : État / Province"]
["Smelter ListK4","Smelter List","K4","Smelter Contact Name","冶炼厂联系名称","製錬業者連絡先担当者名","제련소 연락 담당자 이름","Nom du contact de la fonderie"]
["Smelter ListL4","Smelter List","L4","Smelter Contact Email","冶炼厂联系电邮地址","製錬業者連絡先電子メール","제련소 연락 담당자 이메일","E-mail du contact de la fonderie"]
["Smelter ListM4","Smelter List","M4","Proposed next steps","建议的后续步骤","今後の対策案","제시된 다음 단계","Prochaines étapes proposées"]
["Smelter ListN4","Smelter List","N4","Name of Mine(s) or if recycled or scrap sourced, enter \"recycled\" or \"scrap\"","填所有矿井名称，或如所用矿产来自回收料和报废料时请填“回收”或“报废”。","鉱山名を記入。リサイクル又はスクラップ資源を由来とする場合は「recycled（リサイクル）」 又は「scrap（スクラップ）」と記入","광산 이름, 또는 재활용 또는 폐자원에서 조달된 경우에는 \"recycled\" 또는 \"scrap\"을 입력하십시오. ","Nom des Mine(s), ou si provenant de produits recyclés ou déchets, saisir « recyclé » ou « déchets »"]
["Smelter ListO4","Smelter List","O4","Location (Country) of Mine(s) or if recycled or scrap sourced, enter \"recycled\" or \"scrap\"","填所有矿井所在的国家名称，或如所用矿产来自回收料和报废料时请填“回收”或“报废”。","鉱山の所在地（国）を記入。リサイクル又はスクラップ資源を由来とした場合は「recycled（リサイクル）」 又は「scrap（スクラップ）」と記入","광산 위치(국가), 또는 재활용 또는 폐자원에서 조달된 경우에는 \"recycled\" 또는 \"scrap\"을 입력하십시오. ","Localisation (Pays) des Mine(s) ou si provenant de produits recyclés ou déchets, saisir « recyclé » ou « déchets »"]
["Smelter ListP4","Smelter List","P4","Does 100% of the smelter’s feedstock originate from recycled or scrap sources?","冶炼厂的被冶炼物料100%完全来自回收料或报废料吗？","製錬業者の原料はすべてリサイクル又はスクラップ資源を由来としていますか？","제련소의 공급 원료의 100%가 재활용 또는 폐자원에서 유래합니까? ","100 % des produits utilisés par la fonderie proviennent-ils de produits recyclés ou de déchets ?"]
["Smelter ListQ4","Smelter List","Q4","Comments","注释","備考","의견","Commentaires"]
["Smelter ListJ2","Smelter List","J2","Link to \"RMAP Conformant Smelter List\"","链接至“RMAP 合规冶炼厂目录”","「RMAP適合製錬業者リスト」へのリンク","\"RMAP 준수 제련소 목록\"의 링크","Lien vers la liste des fonderies conformes au programme RMAP (« RMAP Conformant Smelter List »)"]
["Smelter ListB2","Smelter List","B2","TO BEGIN:","首先：","開始するには\n","시작하려면:","POUR COMMENCER :"]
[{"$f":"B206&C206","v":"Smelter ListB3"},"Smelter List","B3","\nOption A: If you know the Smelter Identification Number, input the number in Column A (columns B, C, E, F, G, I and J will auto-populate); D will grey out.\n\nOption B:  If you have a cobalt or natural mica and Smelter Look-up name combination, complete the following steps:\nStep 1. Select Metal in column B\nStep 2. Select from dropdown in column C\n\nOption C: If you have a cobalt or natural mica and Smelter Name combination, complete the following steps:\nStep 1. Select Metal in column B\nStep 2: Select \"Smelter Not Listed\" in the Smelter Look-up drop down and complete columns D & E\nStep 3. Enter all available smelter information in columns H through Q\n\n(*) Mandatory fields are noted with an asterisk.\n(1) Entry required when Smelter Look-up = \"Smelter Not Listed\"\n\nNOTE: A combination of Options A, B and C may be used to complete the Smelter List.  Do not alter autopopulated cells.  All errors in the Smelter Look-up should be reported to RBA by contacting RMI@ResponsibleBusiness.org.","\n选项 A：如果您知道冶炼厂识别号码，请在 A 列输入号码（B、C、E、F、G、I 和 J 列将自动填入）。D 列将变为灰色。\n\n选项 B：如果您有金属和冶炼厂查找名称组合，则完成以下步骤：\n步骤 1. 在 B 列中选择金属\n步骤 2. 从 C 列的下拉菜单中选择\n\n选项 C：如果您有金属和冶炼厂名称组合，则完成以下步骤：\n步骤 1. 在 B 列中选择金属\n步骤 2：在“冶炼厂查找”下拉菜单中选择“冶炼厂未列出”，然后填写 D 和 E 列\n步骤 3. 在 H 列到 Q 列输入所有现有的冶炼厂信息\n\n(*) 必填字段以星号表示。\n(1) 当“冶炼厂查找”=“冶炼厂未列出”时，需要输入\n\n注：可结合使用选项 A、B 和 C 来填写冶炼厂目录。请勿更改自动填写的单元格。应通过联系 RMI@ResponsibleBusiness.org，向 RBA 报告“冶炼厂查找”中的所有错误。","\nオプションA：製錬業者識別番号が分かる場合は、その番号をA列に入力してください（B、C、E、F、G、I、およびJ列は自動入力されます）。D列はグレー表示されます。\n\nオプションB：金属と製錬業者検索名の組み合わせが分かる場合は、以下のステップを行ってください。\nステップ1. B列で金属を選択\nステップ2. C列のドロップダウンメニューで製錬業者名を選択\n\nオプションC：金属と製錬業者名の組み合わせが分かる場合は、以下のステップを行ってください。\nステップ1. B列で金属を選択\nステップ2. Smelter Look-Up（製錬業者検索）ドロップダウンで［Smelter Not Listed（製錬業者が表に含まれていない）］を選択し、D列とE列を記入します　\nステップ3. 入手可能なすべての製錬業者情報をH列～Q列に記入します\n\n必須項目は（*）で表示。\n（1）Smelter Look-up（製錬業者検索）が 「Smelter Not Listed（製錬業者が表に含まれていない）」である場合に必要とされる入力情報\n\n注：オプションA、B、Cの組み合わせを使用して、「Smelter List（製錬業者リスト）」を入力することができます。自動入力されたセルは変更しないでください。製錬業者検索タブのエラーはすべて、RMI@ResponsibleBusiness.orgを使用してRMIに報告してください。","\n옵션 A: 제련소 식별 번호를 아는 경우, A열에 번호를 입력하십시오(B, C, E, F, G, I 및 J열은 자동으로 입력됨). D열은 회색으로 비활성화됩니다. \n\n옵션 B:  코발트 또는 천연운모와 제련소 찾기 이름의 조합이 있는 경우, 다음 단계를 수행합니다:\n1단계. B열에서 금속을 선택합니다. \n2단계. C열의 드롭다운에서 선택합니다. \n\n옵션 C: 코발트 또는 천연운모와 제련소 찾기 이름의 조합이 있는 경우, 다음 단계를 수행합니다:\n1단계. B열에서 금속을 선택합니다. \n2단계: 제련소 찾기 드롭다운에서 \"제련소명 없음(Smelter Not Listed)\"을 선택하고 D 및 E열을 작성합니다\n3단계. H ~ Q열에 가용한 모든 제련소 정보를 입력합니다. \n\n(*)필수 기재란은 별표로 표시됩니다. \n(1) 제련소 찾기 = \"제련소명 없음(Smelter Not Listed)\"인 경우에는 직접 입력해야 합니다\n\n참고: 제련소 목록(Smelter List)을 작성하는 데 옵션 A, B 및 C의 조합을 사용할 수도 있습니다. 자동으로 입력된 셀을 변경하지 마십시오. 제련소 찾기에서 발생한 모든 오류는 RMI@ResponsibleBusiness.org로 연락하여 RBA에 보고되어야 합니다. ","Option A : Si vous connaissez le numéro d’identification de la fonderie, saisissez-le dans la colonne A (les colonnes B, C, E, F, G, G, I, et J seront remplies automatiquement) ; la colonne D sera grisée.\n\nOption B : Si vous connaissez une combinaison cobalt ou mica naturel et nom de fonderie figurant dans la Recherche de fonderie, effectuez les étapes suivantes :\nÉtape 1. Sélectionnez le métal dans la colonne B\nÉtape 2. Sélectionnez dans la liste déroulante de la colonne C\n\nOption C : Si vous connaissez une combinaison cobalt ou mica naturel et nom de fonderie, effectuez les étapes suivantes :\nÉtape 1. Sélectionnez le métal dans la colonne B\nÉtape 2 : Sélectionnez « La fonderie ne figure pas dans la liste » dans la liste déroulante Recherche de fonderie, puis renseignez les colonnes D et E\nÉtape 3. Saisissez toutes les informations disponibles sur la fonderie dans les colonnes H à Q\n\n(*) Les champs obligatoires sont indiqués par un astérisque.\n(1) Entrée obligatoire lorsque Recherche de fonderie = « La fonderie ne figure pas dans la liste »\n\nREMARQUE : Une combinaison des options A, B et C peut être utilisée pour remplir l’onglet Liste des fonderies. Ne modifiez pas les cellules remplies automatiquement. Toutes les erreurs figurant dans l’onglet Recherche de fonderie doivent être signalées à la RMI en contactant RMI@ResponsibleBusiness.org."]
["Smelter ListF4","Smelter List","F4","Smelter Identification","冶炼厂识别","製錬業者識別番号","제련소 식별","Identifiant de la fonderie"]
["Smelter ListG4","Smelter List","G4","Source of Smelter Identification Number","冶炼厂出处识别号","製錬業者識別番号の発行元","제련소 식별 번호 출처","Source de l’identifiant de la fonderie"]
["Smelter ListAH5","Smelter List","AH5","Yes","是","はい","예","Oui"]
["Smelter ListAH6","Smelter List","AH6","No","否","いいえ","아니요","No"]
["Smelter ListAH7","Smelter List","AH7","Unknown","不知道","不明","모름","Ne sais pas"]
["CheckerA1","Checker","A1","To ensure all required fields have been populated before submitting to your customers review form for any line items highlighted in red","在提交报告给客户检查本报告红色提示内容前， 请确保所有必填栏目已填写完成。","顧客に回答を提出する前に、赤で表示されている必須項目について、すべて記入されているかを確認してください。","고객에게 제출하기 전에 모든 필수 항목이 입력되었는지 확인하려면 빨간색으로 강조 표시된 모든 줄의 품목에 대해 양식을 검토하십시오. ","Afin de s’assurer que tous les champs obligatoires ont été complétés avant de soumettre le document à vos clients, merci de vérifier tous les champs surlignés en rouge"]
["CheckerD1","Checker","D1","Required fields remaining to be completed","待完成的必填栏目","未記入の必須項目があります","남아 있는 완료할 필수 항목","Champs obligatoires non complétés"]
["CheckerA3","Checker","A3","Required Fields","必填栏目","必須項目","필수 항목","Champs obligatoires"]
["CheckerB3","Checker","B3","Answer provided","已提供的答案","回答","답변 작성함","Réponse fournie"]
["CheckerC3","Checker","C3","Notes","备注","注","참고","Remarques"]
["CheckerD3","Checker","D3","Hyperlink to source","信息源链接","該当箇所へのリンク","출처에 대한 하이퍼링크","Lien au document d’origine"]
["CheckerB62","Checker","B62","No smelter names provided on Smelter List tab","在“冶炼厂目录”选项卡中未提供冶炼厂名称","製錬業者リスト（Smelter List）タブに製錬業者名が記入されていない","제련소 목록(Smelter List) 탭에 제련소 명칭이 없습니다. ","Aucun nom de fonderie indiqué sur l’onglet Liste de fonderies"]
["CheckerB63","Checker","B63","No smelter names provided on Smelter List tab","在“冶炼厂目录”选项卡中未提供冶炼厂名称","製錬業者リスト（Smelter List）タブに製錬業者名が記入されていない","제련소 목록(Smelter List) 탭에 제련소 명칭이 없습니다. ","Aucun nom de fonderie indiqué sur l’onglet Liste de fonderies"]
["CheckerB64","Checker","B64","No smelter names provided on Smelter List tab","在“冶炼厂目录”选项卡中未提供冶炼厂名称","製錬業者リスト（Smelter List）タブに製錬業者名が記入されていない","제련소 목록(Smelter List) 탭에 제련소 명칭이 없습니다. ","Aucun nom de fonderie indiqué sur l’onglet Liste de fonderies"]
["CheckerB65","Checker","B65","No smelter names provided on Smelter List tab","在“冶炼厂目录”选项卡中未提供冶炼厂名称","製錬業者リスト（Smelter List）タブに製錬業者名が記入されていない","제련소 목록(Smelter List) 탭에 제련소 명칭이 없습니다. ","Aucun nom de fonderie indiqué sur l’onglet Liste de fonderies"]
["CheckerCOMP","Checker","COMP","Complete","填写","記入済","완료","Complétez"]
["CheckerJ4","Checker","J4","Provide your company name on the Declaration tab cell D8","在“申报”选项卡 D8 单元格中提供您的公司名称","「申告（Declaration）」タブのD8セルに貴社名を記入してください","선언(Declaration) 탭의 D8 셀에 회사 명칭을 제공하십시오. ","Indiquez le nom de votre entreprise dans la cellule D8 de l’onglet Déclaration "]
["CheckerJ5","Checker","J5","Select the scope of declaration on the Declaration tab cell D9","在“申报”选项卡 D9 单元格中选择申报范围","「申告（Declaration）」タブのD9セルで申告範囲を選択してください","선언(Declaration) 탭의 D9 셀에서 신고 범위를 선택하십시오. ","Sélectionnez le champ d’application de la déclaration dans la cellule D9 de l’onglet Déclaration "]
["CheckerJ6","Checker","J6","Provide description of scope on Declaration tab cell D10","在“申报”选项卡 D10 单元格中提供范围说明","「申告（Declaration）」タブのD10セルに申告範囲の説明を記入してください","선언(Declaration) 탭의 D10 셀에 범위 설명을 제공하십시오. ","Saisissez une description du champ d’application dans la cellule D10 de l’onglet Déclaration "]
["CheckerJ7","Checker","J7","Provide contact name in Declaration tab cell D15","在“申报”选项卡 D15 单元格中提供联系人姓名","「申告（Declaration）」タブのD15セルに連絡先担当者名を記入してください","선언(Declaration) 탭의 D15 셀에 담당자 이름을 제공하십시오. ","Saisissez le nom de contact dans la cellule D15 de l’onglet Déclaration"]
["CheckerJ8","Checker","J8","Provide a valid email for contact in Declaration tab cell D16","在“申报”选项卡 D16 单元格中提供联系人有效的电子邮件地址","「申告（Declaration）」タブのD16セルに連絡先担当者の有効な電子メールを記入してください","선언(Declaration) 탭의 D16 셀에 유효한 담당자 이메일을 입력하십시오. ","Saisissez une adresse e-mail de contact valide dans la cellule D16 de l’onglet Déclaration"]
["CheckerJ9","Checker","J9","Provide a phone number for contact in Declaration tab cell D17","在“申报”选项卡 D17 单元格中提供联系人的电话号码","「申告（Declaration）」タブのD17セルに連絡先担当者の電話番号を記入してください","선언(Declaration) 탭의 D17 셀에 담당자 전화 번호를 제공하십시오. ","Saisissez un numéro de téléphone de contact dans la cellule D17 de l’onglet Déclaration"]
["CheckerJ10","Checker","J10","Provide authorized company representative contact name in Declaration tab cell D18","在“申报”选项卡 D18 单元格中提供授权公司代表联系人姓名","「申告（Declaration）」タブのD18セルに会社から正式に認められた代表者の連絡先担当者名を記入してください","선언(Declaration) 탭의 D18 셀에 회사를 대표하는 책임자 이름을 제공하십시오.  ","Saisissez le nom de contact du représentant agréé de l’entreprise dans la cellule D18 de l’onglet Déclaration"]
["CheckerJ11","Checker","J11","Provide an email for authorized company representative on Declaration tab cell D20","在“申报”选项卡 D20 单元格中提供授权公司代表的有效的电子邮件地址","「申告（Declaration）」タブのD20セルに会社から正式に認められた代表者の有効な電子メールを記入してください","선언(Declaration) 탭의 D20 셀에 회사를 대표하는 책임자 이메일을 제공하십시오.  ","Saisissez une adresse e-mail valide du représentant agréé de la société dans la cellule D20 de l’onglet Déclaration"]
["CheckerJ12","Checker","J12","Provide a phone number for authorized company representative on Declaration tab cell D21","在“申报”选项卡 D21 单元格中提供授权公司代表的电话号码","「申告（Declaration）」タブのD21セルに会社から正式に認められた代表者の電話番号を記入してください","선언(Declaration) 탭의 D21 셀에 회사를 대표하는 책임자 전화 번호를 제공하십시오. ","Saisissez le numéro de téléphone du représentant agréé de l’entreprise dans la cellule D21 de l’onglet Déclaration"]
["CheckerJ13","Checker","J13","Provide date the form was completed on Declaration tab cell D22","在“申报”选项卡 D22 单元格中提供表格填写日期","「申告（Declaration）」タブのD22セルに書式への記入日を記入してください","선언(Declaration) 탭의 D22 셀에 양식이 작성된 날짜를 제공하십시오. ","Saisissez la date de remplissage du formulaire dans la cellule D22 de l’onglet Déclaration "]
["CheckerJ15","Checker","J15","Declare if cobalt is intentionally added to your products on Declaration tab cell D26","在“申报”选项卡 D26 单元格中申报是否有意将钴增加到贵公司的产品中","コバルトが貴社製品に意図的に付加された場合は「申告（Declaration）」タブのD26セルに申告してください","선언(Declaration) 탭의 D26 셀에 코발트가 의도적으로 제품에 첨가되었는지 여부를 신고하십시오.","Déclarez si du cobalt est intentionnellement ajouté à vos produits dans la cellule D26 de l’onglet Déclaration "]
["CheckerJ16","Checker","J16","Declare if natural mica is intentionally added to your products on Declaration tab cell D27","在“申报”选项卡 D27 单元格中申报天然云母是否有意增加到贵公司的产品中","天然マイカが貴社製品に意図的に付加された場合は「申告（Declaration）」タブのD27セルに申告してください","선언(Declaration) 탭의 D27 셀에 천연 운모가 의도적으로 제품에 첨가되었는지 여부를 신고하십시오.","Déclarez si du mica est intentionnellement ajouté à vos produits dans la cellule D27 de l’onglet Déclaration"]
["CheckerJ17","Checker","J17"]
["CheckerJ18","Checker","J18"]
["CheckerJ20","Checker","J20","Declare if cobalt is necessary to the production of your products and contained within the finished products declared in Declaration tab cell D32","在“申报”选项卡 D32 单元格中申报钴是否必须用于贵公司产品的生产中并且包含在申报的成品内","コバルトが貴社製品の製造に必要で、申告されている最終製品内に含まれる場合は、「申告（Declaration）」タブのD32セルで申告してください","선언(Declaration) 탭의 D32 셀에 제품의 생산에 코발트가 필요하며 신고된 완제품에 포함되어 있는지 여부를 신고하십시오.","Déclarez si le cobalt est nécessaire à la production de vos produits et s'il est présent dans les produits finis déclarés dans la cellule D32 de l'onglet Déclaration"]
[{"$f":"B238&C238","v":"CheckerJ21"},"Checker","J21","Declare if mica is necessary to the production of your products and contained within the finished products declared in Declaration tab cell D33","在“申报”选项卡 D33 单元格中申报云母是否必须用于贵公司产品的生产中并且包含在申报的成品内","マイカが貴社製品の製造に必要で、申告されている最終製品内に含まれる場合は、「申告（Declaration）」タブのD33セルで申告してください","선언(Declaration) 탭의 D33 셀에 제품의 생산에 운모가 필요하며 신고된 완제품에 포함되어 있는지 여부를 신고하십시오.","Déclarez si le mica est nécessaire à la production de vos produits et s'il est présent dans les produits finis déclarés dans la cellule D32 de l'onglet Déclaration"]
["CheckerJ22","Checker","J22"]
["CheckerJ23","Checker","J23","Declare if cobalt used within the scope of products declared within this survey response originated from a conflict-affected and high-risk area on the Declaration tab cell D38","在“申报”选项卡 D38 单元格中申报此调查回答中所申报产品范围内使用的钴的原产地是否为受冲突影响和高风险地区","本調査回答で申告された製品範囲内で使用されるコバルトが、紛争地域および高リスク地域を原産としている場合、「申告（Declaration）」タブのD38セルで申告してください","선언(Declaration) 탭의 D38 셀에 이 설문조사의 응답 내용에 신고된 제품에  사용된 코발트가 분쟁 및 고위험 지역에서 조달된 것인지 여부를 신고하십시오.","Déclarez si le cobalt utilisé dans le cadre des produits déclarés dans les réponses à cette enquête provient d’une zone touchée par un conflit et à haut risque dans la cellule D38 de l’onglet Déclaration."]
["CheckerJ24","Checker","J24","Declare if mica used within the scope of products declared within this survey response originated from a conflict-affected and high-risk area on the Declaration tab cell D39","在“申报”选项卡 D39 单元格中申报此调查回答中所申报产品范围内使用的云母的原产地是否为受冲突影响和高风险地区","本調査回答で申告された製品範囲内で使用されるマイカが、紛争地域および高リスク地域を原産としている場合、「申告（Declaration）」タブのD39セルで申告してください","선언(Declaration) 탭의 D39 셀에 이 설문조사의 응답 내용에 신고된 제품에 사용된 운모가 분쟁 및 고위험 지역에서 조달된 것인지 여부를 신고하십시오.","Déclarez si le mica utilisé dans le cadre des produits déclarés dans les réponses à cette enquête provient d’une zone touchée par un conflit et à haut risque dans la cellule D39 de l’onglet Déclaration"]
["CheckerJ28","Checker","J28","Declare if cobalt used within the scope of products declared within this survey response originated entirely from a recycled or scrap source on the Declaration tab cell D44","在“申报”选项卡 D44 单元格中申报在此调查回答中所申报产品范围内使用的钴是否完全来自回收料或报废料","本調査回答で申告された製品範囲内で使用されるコバルトの100%が再生利用品およびスクラップ起源を由来としている場合は、「申告（Declaration）」タブのD44セルに申告してください","선언(Declaration) 탭의 D44 셀에 이 설문조사의 응답 내용에 신고된 제품에 사용된 코발트가 전적으로 재활용이나 폐자원에서 나온 것인지 여부를 선언하십시오. ","Déclarez si le cobalt utilisé dans le cadre des produits déclarés dans cette réponse à l’enquête provient d’une source entièrement recyclée ou de débris dans la cellule D44 de l’onglet Déclaration"]
["CheckerJ29","Checker","J29","Declare if mica used within the scope of products declared within this survey response originated entirely from a recycled or scrap source on the Declaration tab cell D45","在“申报”选项卡 D45 单元格中申报在此调查回答内申报的产品范围内使用的云母是否完全来自回收料或报废料","本調査回答で申告された製品範囲内で使用されるマイカの100%が再生利用品およびスクラップ起源を由来としている場合は、「申告（Declaration）」タブのD45セルに申告してください","선언(Declaration) 탭의 D45 셀에 이 설문조사의 응답 내용에 신고된 제품에 사용된 운모가 전적으로 재활용이나 폐자원에서 나온 것인지 여부를 선언하십시오. ","Déclarez si le mica utilisé dans le cadre des produits déclarés dans cette réponse à l’enquête provient d’une source entièrement recyclée ou de débris dans la cellule D45 de l’onglet Déclaration"]
["CheckerJ27","Checker","J27"]
["CheckerJ28","Checker","J28"]
["CheckerJ33","Checker","J33","Provide % of completeness of supplier's smelter information on Declaration tab cell D50","在“申报”选项卡 D50 单元格中提供供应商的冶炼厂信息填写百分比","サプライヤーの製錬業者情報の回答率を割合（%）で「申告（Declaration）」タブのD50セルに記入してください","선언(Declaration) 탭의 D50 셀에 공급업체의 제련소 정보 요청에 대한 응답비율(%)을 제공하십시오. ","Indiquez le pourcentage d'exhaustivité des informations sur la fonderie données par le fournisseur dans la cellule D50 de l'onglet Déclaration"]
["CheckerJ34","Checker","J34","Provide % of completeness of supplier's smelter information on Declaration tab cell D51","在“申报”选项卡 D51 单元格中提供供应商的冶炼厂信息填写百分比","サプライヤーの製錬業者情報の回答率を割合（%）で「申告（Declaration）」タブのD51セルに記入してください","선언(Declaration) 탭의 D51 셀에 공급업체의 제련소 정보 요청에 대한 응답비율(%)을 제공하십시오. ","Indiquez le pourcentage d'exhaustivité des informations sur la fonderie données par le fournisseur dans la cellule D51 de l'onglet Déclaration "]
["CheckerJ32","Checker","J32"]
["CheckerJ33","Checker","J33"]
["CheckerJ38","Checker","J38","Declare if all smelter names have been provided in this survey response under the scope of products declared on the Declaration tab cell D56","在“申报”选项卡 D56 单元格中申报是否在此调查回答内的申报产品范围下面提供了所有冶炼厂名称","申告範囲内で全ての製錬業者名が本調査回答で提供された場合は、「申告」タブのD56セルに申告してください","선언(Declaration) 탭의 D56 셀에 신고된 제품 범위에 해당하는 모든 제련소 명칭이 본 설문조사 응답내용으로서 제공되었는지 여부를 선언하십시오. ","Déclarez si tous les noms de la fonderie ont été fournis dans cette réponse à l'enquête dans le cadre du champ d'application des produits déclarés dans la cellule D56 de l'onglet Déclaration"]
["CheckerJ39","Checker","J39","Declare if all smelter names have been provided in this survey response under the scope of products declared on the Declaration tab cell D57","在“申报”选项卡 D57 单元格中申报是否在此调查回答内的申报产品范围下面提供了所有冶炼厂名称","申告範囲内で全ての製錬業者名が本調査回答で提供された場合は、「申告」タブのD57セルに申告してください","선언(Declaration) 탭의 D57 셀에 신고된 제품 범위에 해당하는 모든 제련소 명칭이 본 설문조사 응답내용으로서 제공되었는지 여부를 선언하십시오. ","Déclarez si tous les noms de la fonderie ont été fournis dans cette réponse à l'enquête dans le cadre du champ d'application des produits déclarés dans la cellule D57 de l'onglet Déclaration"]
["CheckerJ37","Checker","J37"]
["CheckerJ38","Checker","J38"]
["CheckerJ43","Checker","J43","Declare if all applicable cobalt smelter information has been provided on Declaration tab cell D62","在“申报”选项卡 D62 单元格中申报是否已提供所有适用钴冶炼厂信息","全ての該当するコバルト製錬業者情報が提供された場合は、「申告（Declaration）」タブのD62セルに申告してください","선언(Declaration) 탭의 D62 셀에 코발트 제련소에 대한 모든 해당 정보가 제공되었는지 여부를 신고하십시오. ","Déclarez si toutes les informations applicables sur la fonderie de cobalt ont été fournies dans la cellule D62 de l'onglet Déclaration"]
["CheckerJ44","Checker","J44","Declare if all applicable mica processor information has been provided on Declaration tab cell D63","在“申报”选项卡 D63 单元格中申报是否已提供所有适用云母冶炼厂信息","全ての該当するマイカ加工業者情報が提供された場合は、「申告（Declaration）」タブのD63セルに申告してください","선언(Declaration) 탭의 D63 셀에 운모 가공업체에 대한 모든 해당 정보가 제공되었는지 여부를 신고하십시오. ","Déclarez si toutes les informations applicables sur la fonderie de mica ont été fournies dans la cellule D63 de l'onglet Déclaration"]
["CheckerJ52","Checker","J52","Answer if you require your direct suppliers to source cobalt from smelters whose due diligence practices have been validated by an independent third-party audit program, like the Responsible Minerals Assurance Process, on Declaration tab cell D74","在“申报”选项卡 D74 单元格中回答贵公司是否要求贵公司的直接供应商从尽职调查实践经独立第三方审计计划，如负责任矿物审验流程，验证过的冶炼厂采购钴。","貴社が直接サプライヤーに対し、責任ある鉱物保証プロセス（Responsible Minerals Assurance Process）のような独立した第三者の監査プログラムによりデュー・ディリジェンス業務が認証された製錬業者から、コバルトを調達することを要求する場合は、「申告（Declaration）」タブのD74セルに申告してください","귀사는 귀사의 1차 공급업체로 하여금 그 실사 방식이 독립된 제 3자 감사 프로그램(예: 책임있는 광물 보장 프로세스)에 의해 검증된 제련소로부터 코발트를 조달하도록 요구하는지 선언(Declaration) 탭의 D74셀에 답하십시오.","Déclarez si vous demandez à vos fournisseurs directs de s'approvisionner en cobalt auprès de fonderies dont les pratiques de diligence responsable ont été validées par un programme d'audit tiers indépendant, comme le processus d'assurance des minéraux responsables, dans la cellule D74 de l'onglet Déclaration."]
[{"$f":"B257&C257","v":"CheckerJ53"},"Checker","J53","Answer if you require your direct suppliers to source mica from processors whose due diligence practices have been validated by an independent third-party audit program, like the Responsible Minerals Assurance Process, on Declaration tab cell D75","在“申报”选项卡 D75 单元格中回答贵公司是否要求贵公司的直接供应商从尽职调查实践经独立第三方审计计划，如负责任矿物审验流程，验证过的加工厂采购云母。","貴社は直接サプライヤーに対し、責任ある鉱物保証プロセス（Responsible Minerals Assurance Process）のような独立した第三者の監査プログラムによりデュー・ディリジェンス業務が認証された加工業者から、マイカを調達することを要求する場合は、「申告（Declaration）」タブのD75セルに申告してください","귀사는 귀사의 1차 공급업체로 하여금 그 실사 방식이 독립된 제 3자 감사 프로그램(예: 책임있는 광물 보장 프로세스)에 의해 검증된 제련소로부터 운모를 조달하도록 요구하는지 선언(Declaration) 탭의 D75셀에 답하십시오.","Déclarez si vous demandez à vos fournisseurs directs de s'approvisionner en mica auprès de fonderies dont les pratiques de diligence responsable ont été validées par un programme d'audit tiers indépendant, comme le processus d'assurance des minéraux responsables, dans la cellule D75 de l'onglet Déclaration"]
["CheckerJ49","Checker","J49","Answer if your company has made your responsible minerals sourcing policy publically available on your website on the Declaration tab cell D71","在“申报”选项卡 D71 单元格中回答贵公司是否在贵公司的网站上公开发布您的负责任矿物采购政策","貴社に、貴社のウェブサイトで公に利用可能な貴社の責任ある鉱物調達方針がある場合は、「申告（Declaration）」タブのD71セルに回答してください","선언(Declaration) 탭 D71 셀에 귀사는 책임있는 광물 조달 정책을 귀사의 웹사이트에 공개하는지 답하십시오.","Déclarez si votre compagnie a rendu publiquement accessible votre politique d'approvisionnement responsable en minerais sur votre site Web dans la cellule D71 de l'onglet Déclaration"]
["CheckerJ48","Checker","J48","Answer if your company has a responsible minerals sourcing policy on the Declaration tab cell D69","在“申报”选项卡 D69 单元格中回答贵公司是否有负责任矿物采购政策","貴社に、責任ある鉱物調達方針がある場合は、「申告（Declaration）」タブのD69セルに回答してください","선언(Declaration) 탭의 D69 셀에 귀사는 책임있는 광물 조달 정책을 가지고 있는지 여부를 답하십시오. ","Répondez dans la cellule D69 de l'onglet Déclaration si votre entreprise a une politique d'approvisionnement responsable en minerais"]
[{"$f":"B260&C260","v":"CheckerJ50"},"Checker","J50","Enter the URL in Declaration worksheet cell G71 if you answer \"Yes\" for question B. The format of the URL should be \"www.companyname.com\"","如果您对问题 B 回答“是”，则在“申报”工作表的 G71 单元格中输入 URL。URL 的格式应为 \"www.companyname.com\"","質問Bの回答が「Yes」の場合は、申告（Declaration）シートのG71セルにURLを記入してください。URLの形式は「www.companyname.com」にしてください。","질문 B에 \"예(Yes)\"라고 답할 경우, 선언(Declaration) 워크시트의 G71 셀에 URL을 입력하십시오. URL 형식은 \"www.companyname.com\"이 되어야 합니다. ","Saisissez l'URL dans la cellule G71 de l'onglet Déclaration si vous répondez par « Oui » à la question B. Le format de l'URL doit être : www.nomdelentreprise.com"]
["CheckerJ54","Checker","J54","Answer if you have implemented due diligence measures for responsible sourcing on Declaration tab cell D77","在“申报”选项卡 D77 单元格中回答贵公司是否已为负责任矿物采购实施了尽职调查措施","貴社が責任ある調達のデュー・ディリジェンス対策を実施している場合は、「申告（Declaration）」タブのD77セルに回答してください","선언(Declaration) 탭 D77 셀에 귀사는 책임있는 광물조달을 위한 실사 조치를 시행하고 있는지 답하십시오. ","Répondez dans la cellule D77 de l'onglet Déclaration si vous avez mis en place des mesures d'approvisionnement responsable"]
["Checker","Checker",null,"Answer if you require direct supplier to source cobalt or natural mica from independently validated smelters on Declaration tab cell D71","在“申报”选项卡 D71 单元格中回答贵公司是否要求直接供应商从经独立验证的冶炼厂采购钴","貴社が貴社の直接サプライヤーに対し、第三者検証をうけた製錬業者からコバルトを調達することを要求する場合は、「申告（Declaration）」タブのD71セルに回答してください","귀사가 귀사의 직접 공급업체에게 독립적으로 검증된 제련소에서 코발트 또는 천연운모를 조달하도록 요구하는지 여부를 선언(Declaration) 탭 셀 D71에 답변하십시오. ","Répondez dans la cellule D71 de l'onglet Déclaration si vous exigez que vos fournisseurs directs s'approvisionnent en cobalt ou en mica naturel auprès de fonderies validées"]
["Checker","Checker",null,"Answer if you require smelter's due diligence practices to cover, at a minimum, all risks in the OECD Due Diligence Guidance Annex II Model Policy, as well as the worst forms of child labor, on Declaration tab cell D73","在“申报”选项卡 D73 单元格中回答贵公司是否要求冶炼\n厂的尽职调查实践至少涵盖《经合组织尽职调查指南》附录二《示范政策》中的所有风险以及童工问题的最恶劣形式","貴社が、製錬業者のデューディリジェンスに、OECDデューディリジェンスガイダンスAnnex IIモデル指針の全てのリスク、および最悪の形態の児童労働を最低限包含することを要求する場合は、「申告（Declaration）」タブのD73セルに回答してください","귀사는 제련소의 실사 관행이 최소한 OECD 실사 지침 부속서 II 모델 정책에 포함된 모든 위험뿐만 아니라 최악의 형태의 아동 노동을 다루도록 요구하는지 여부를 선언(Declaration) 탭 셀 D73에 답변하십시오. ","Répondez dans la cellule D73 de l'onglet Déclaration si vous exigez que le devoir de diligence de votre fonderie couvre a minima tous les risques décrits dans la politique type du Guide de l'OCDE sur le devoir de diligence, annexe II ainsi que les pires formes de travail des enfants"]
["CheckerJ52","Checker","J52"]
["CheckerJ55","Checker","J55","Answer if you conduct cobalt or natural mica supply chain surveys on the declaration tab cell D79","在“申报”选项卡 D79 单元格中回答贵公司是否实施钴或天然云母供应链调查","貴社がコバルト又は天然マイカサプライチェーン調査を実施する場合は、「申告（Declaration）」タブのD79セルに回答してください","귀사가 코발트 또는 천연 운모 공급망 설문조사를 실시하는지 여부를 선언(Declaration) 탭 셀 D79에 답변하십시오. ","Répondez dans la cellule D79 de l'onglet Déclaration si vous réalisez des enquêtes sur votre chaîne d'approvisionnement en cobalt ou mica naturel"]
["CheckerJ57","Checker","J57","Answer if you verify responses from your suppliers against your company's expectations on Declaration tab cell D81","在“申报”选项卡 D81 单元格中回答贵公司的验证流程是否包括纠正措施管理","サプライヤーからの回答を貴社の期待と照らして検証する場合は、「申告（Declaration）」タブのD81セルに回答してください","선언(Declaration) 탭의 D81 셀에 귀사의 기대사항에 비추어 귀사의 공급업체 응답내용을 검증하는지 여부를 답변하십시오. ","Répondez dans la cellule D81 de l'onglet Déclaration si vous comparez les réponses de vos fournisseurs aux attentes de votre compagnie"]
["CheckerJ58","Checker","J58","Answer if your verification process includes corrective action management on Declaration tab cell D83","在“申报”选项卡 D83 单元格中回答贵公司是否必须遵守 SEC 披露要求","貴社の検証プロセスに是正措置管理を含む場合は、「申告（Declaration）」タブのD83セルに回答してください","선언(Declaration) 탭의 D83 셀에 귀사의 검증절차에 시정조치 관리사항으로서 포함되어 있는지 여부를 답변하십시오. ","Répondez dans la cellule D83 de l'onglet Déclaration si votre processus de validation comprend des actions correctives de la part de la direction"]
["Checker","Checker",null,"If applicable, provide 1 or more Products or Item Numbers this declaration applies to. From Declaration tab select hyperlink in cell 11H  to enter Product List tab","如果合适，提供此申报所适用的一个或多个产品或项目编号。从“申报”选项卡 11H 单元格中，选择超链接进入“产品列表”选项卡","この申告に該当する製造者の1つ以上の製品または製品番号を「Product List」タブに記入してください。Declarationタブの11HセルのリンクをクリックするとProduct Listタブにつながります","해당할 경우, 이 선언에 적용되는 1개 이상의 제품이나 품번을 제공하십시오. 선언(Declaration) 탭의 11H 셀에서 하이퍼링크를 선택하여 제품 목록(Product List) 탭으로 갑니다. ","Le cas échéant, fournissez un ou plusieurs numéros de produits ou d'articles auxquels cette déclaration s'applique. Dans l'onglet Déclaration, sélectionnez le lien hypertexte de la cellule 11H pour ouvrir l'onglet Liste de produits."]
["CheckerJ60","Checker","J60","Provide list of cobalt smelters contributing material to supply chain on Smelter List tab","在“冶炼厂目录”选项卡中提供向供应链提供材料的钴冶炼厂目录","サプライチェーンに鉱物を提供しているコバルト製錬業者のリストを、「製錬業者リスト（Smelter List）」タブに記入してください","제련소 목록(Smelter List) 탭에서 공급망에 재료를 공급하는 코발트 제련소 목록을 제공하십시오. ","Saisissez la liste de fondeurs de cobalt qui fournissent des matériaux à la chaîne d'approvisionnement sur l'onglet Liste de fondeurs."]
["CheckerJ58","Checker","J58"]
["CheckerJ59","Checker","J59"]
["CheckerJ61","Checker","J61","Provide list of mica processors contributing material to supply chain on Smelter List tab","在“冶炼厂目录”选项卡中提供向供应链提供材料的云母加工厂目录","サプライチェーンに鉱物を提供しているマイカ加工業者のリストを、「製錬業者リスト（Smelter List）」タブに記入してください","제련소 목록(Smelter List) 탭에서 공급망에 재료를 공급하는 운모 가공업체 목록을 제공하십시오. ","Saisissez la liste de transformateurs de mica qui fournissent des matériaux à la chaîne d'approvisionnement sur l'onglet Liste de fondeurs."]
["Checker","Checker",null,"Please answer Question 1 on Declaration tab","在“申报”选项卡中回答问题 1","Declaration（申告）タブの質問1にお答えください","선언(Declaration) 탭에서 질문 1에 대한 답변을 해주십시오. ","Veuillez répondre à la question 1 sur l'onglet Déclaration"]
["Checker","Checker",null,"Please answer Question 1 on Declaration tab","在“申报”选项卡中回答问题 1","Declaration（申告）タブの質問1にお答えください","선언(Declaration) 탭에서 질문 1에 대한 답변을 해주십시오. ","Veuillez répondre à la question 1 sur l'onglet Déclaration"]
["Checker","Checker"]
["Checker","Checker"]
[{"$f":"B277&C277","v":"CheckerL57"},"Checker","L57","Please answer Question 1 on Declaration tab. If you answered \"Yes\" and this field is still red, please add cobalt or natural mica smelters to the smelter list tab.","在“申报”选项卡中回答问题 1","Declaration（申告）タブの質問1にお答えください","신고(Declaration) 탭에서 질문 1에 대한 답변을 해주십시오. ","Veuillez répondre à la question 1 sur l'onglet Déclaration. Si vous avez répondu « Oui » et que ce champ est toujours en rouge, ajoutez une fonderie de cobalt ou de mica naturel à l'onglet de liste de fonderies"]
["Product ListA1","Product List","A1","Completion required only if reporting level \"Product (or List of Products)\" selected on the 'Declaration' worksheet.","在“申报“工作表上选择报告等级为“产品（或产品目录）”项时才必须完成此栏。","「Declaration（申告）」シートの申告範囲で「製品」レベルを選択した場合のみ記入が必須となります","신고(Declaration)' 워크시트에서 선택한 \"제품 (또는 제품 목록)\" 수준을 보고하는 경우에만 완료가 필요합니다. ","Champ à compléter uniquement si le périmètre « Produit (ou liste de produits) » a été sélectionné dans la feuille \"Déclaration\""]
["Product ListB5","Product List","B5","Manufacturer’s Product Number (*)","制造商产品编号 (*)","製造者の製品番号(*)","제조사의 제품 번호(*)","Référence du produit du fabricant (*)"]
["Product ListC5","Product List","C5","Manufacturer’s Product Name","制造商产品名称","製造者の製品名","제조사의 제품명","Nom du produit du fabricant"]
["Product ListD5","Product List","D5","Comments","备注","備考","의견","Commentaires"]
["GeneralCpy","General","Cpy","© 2023 Responsible Minerals Initiative. All rights reserved.","© 2023 负责任矿物计划。保留所有权利。","© 2023 Responsible Minerals Initiative. 無断転載・再配布禁止。","© 2023 Responsible Minerals Initiative. 무단 전재 및 재배포 금지.","© 2023 Responsible Minerals Initiative. Tous droits réservés."]
["GeneralCpy","General"]
[]
["Comments",null,null,"Select your company's Declaration Scope.  The options for scope are:\nA.  Company\nB.  Product-level \nC.  User-Defined\n","选择贵公司的申报范围。范围的选项为：\nA. 公司\nB. 产品级别\nC. 自定义\n","貴社の申告範囲を選択してください。申告範囲の選択肢は以下のとおりです。\nA. Company（会社）\nB. Product-level（製品レベル）\nC. User-Defined（ユーザー定義）","귀사의 선언 범위를 선택하십시오. 선언 범위의 선택사항은 다음과 같습니다:\nA.  회사\nB.  제품 수준 \nC.  사용자 정의","Sélectionnez la portée de la déclaration de votre société. Les options de portée sont les suivantes :\nA. Société\nB. Produit (ou liste de produits)\nC. Définie par l’utilisateur"]
["Comments",null,null,"Enter a valid email address for contact person here","在这里输入公司代表的有效电邮地址。","連絡先担当者の有効な電子メールアドレスを入力してください","문의담당자 이메일 주소를 기입하시오.","Indiquez l'adresse email valide du contact"]
["Comments",null,null,"Enter a valid email address for authorizing person here","在这里输入一个公司授权代表的有效电邮地址。","回答責任者の有効な電子メールアドレスを入力してください","정보책임 담당자 이메일 주소를 기입하시오.","Indiquez l'adresse email valide de la personne responsable"]
["Comments",null,null,"Please note the date this form was completed by your company\nDate must be displayed in international format DD-MMM-YYYY\n","请注意贵公司完成此模板的日期。\n日期必须是以日-月-年国际格式来显示。\n","この書類が作成された日付を記入してください\n日付はDD-MMM-YYYYという形式で記述します（例: 01-JAN-2012)\n","문서 작성 완료 날짜를 기입하시오.  날짜는 DD-MMM-YYYY (예: 12-Jul-2012)로 표기하시오.","Merci d'indiquer la date à laquelle ce formulaire a été complété par votre entreprise. La date doit être indiquée au format international : JJ-MM-AAAA."]
["Comments",null,null,"From the dropdown choose a response of \"Yes\" or \"No\"","从下拉列表中选择“是” 或 “不是”","ドロップダウンメニューから「Yes（はい）」又は「No（いいえ）」を選択してください","Yes = 예, No = 아니오","Sélectionnez « Oui » ou « Non » dans la liste déroulante"]
["Comments",null,null,"From the dropdown choose a response of \"Yes\", \"No\", or \"Unknown\"","从下拉菜单中选一个回应: “是“，“不是“， 或“不详“","ドロップダウンメニューから、「Yes（はい）」、「No（いいえ）」又は「Unknown（不明）」を選択してください","Yes=예, No=아니오, Unknown= 파악되지 않음","Sélectionnez « Oui », « Non » ou « ne sais pas » dans la liste déroulante"]
["Comments",null,null,"From the dropdown choose a response of: “Yes, 100%”; “No, but greater than 75%”; “No, but greater than 50%”; “No, but greater than 25%”; “ No, but greater than 25%”; or “No, but less than 25%”; or “None”","从下拉菜单中选择一个回应: 是； 不是，但大于75%； 不是，但大于50%；不是，但大于25%；不是，但小于25%； 或 不是，完全没有。","ドロップダウンメニューから、「100%」、「Greater than 90%（90%超）」、「Greater than 75%（75%超）」、「Greater than 50%（50%超）」、「50% or less（50%以下）」又は「None（ゼロ）」を選択してください","드랍다운 메뉴에서 하나를 선택하시오: 예 100%; 아니오 하지만 75% 이상;  아니오 하지만 50% 이상; 아니오 하지만 25% 이상; 아니오 하지만 25% 미만; None = 없음","Dans le menu déroulant, choisir la réponse : « Oui, 100 % » ; « Non mais supérieur à 75 % » ; « Non mais supérieur à 50 % » ; « Non mais supérieur à 25 % » ; « Non mais inférieur 25 % » ou « Aucune »"]

{"sheet":"C","index":9,"n_rows":250,"n_cols":2,"rows_kept":250,"cut":false,"hidden":true,"merged":[]}
["COUNTRY CODE LIST","FULL NAME"]
["AF","AFGHANISTAN"]
["AX","ÅLAND ISLANDS"]
["AL","ALBANIA"]
["DZ","ALGERIA"]
["AS","AMERICAN SAMOA"]
["AD","ANDORRA"]
["AO","ANGOLA"]
["AI","ANGUILLA"]
["AQ","ANTARCTICA"]
["AG","ANTIGUA AND BARBUDA"]
["AR","ARGENTINA"]
["AM","ARMENIA"]
["AW","ARUBA"]
["AU","AUSTRALIA"]
["AT","AUSTRIA"]
["AZ","AZERBAIJAN"]
["BS","BAHAMAS"]
["BH","BAHRAIN"]
["BD","BANGLADESH"]
["BB","BARBADOS"]
["BY","BELARUS"]
["BE","BELGIUM"]
["BZ","BELIZE"]
["BJ","BENIN"]
["BM","BERMUDA"]
["BT","BHUTAN"]
["BO","BOLIVIA (PLURINATIONAL STATE OF)"]
["BQ","BONAIRE, SINT EUSTATIUS AND SABA"]
["BA","BOSNIA AND HERZEGOVINA"]
["BW","BOTSWANA"]
["BV","BOUVET ISLAND"]
["BR","BRAZIL"]
["IO","BRITISH INDIAN OCEAN TERRITORY"]
["BN","BRUNEI DARUSSALAM"]
["BG","BULGARIA"]
["BF","BURKINA FASO"]
["BI","BURUNDI"]
["CV","CABO VERDE"]
["KH","CAMBODIA"]
["CM","CAMEROON"]
["CA","CANADA"]
["KY","CAYMAN ISLANDS"]
["CF","CENTRAL AFRICAN REPUBLIC"]
["TD","CHAD"]
["CL","CHILE"]
["CN","CHINA"]
["CX","CHRISTMAS ISLAND"]
["CC","COCOS (KEELING) ISLANDS"]
["CO","COLOMBIA"]
["KM","COMOROS"]
["CG","CONGO"]
["CD","CONGO, DEMOCRATIC REPUBLIC OF THE"]
["CK","COOK ISLANDS"]
["CR","COSTA RICA"]
["CI","CÔTE D'IVOIRE"]
["HR","CROATIA"]
["CU","CUBA"]
["CW","CURAÇAO"]
["CY","CYPRUS"]
["CZ","CZECHIA"]
["DK","DENMARK"]
["DJ","DJIBOUTI"]
["DM","DOMINICA"]
["DO","DOMINICAN REPUBLIC"]
["EC","ECUADOR"]
["EG","EGYPT"]
["SV","EL SALVADOR"]
["GQ","EQUATORIAL GUINEA"]
["ER","ERITREA"]
["EE","ESTONIA"]
["SZ","ESWATINI"]
["ET","ETHIOPIA"]
["FK","FALKLAND ISLANDS (MALVINAS)"]
["FO","FAROE ISLANDS"]
["FJ","FIJI"]
["FI","FINLAND"]
["FR","FRANCE"]
["GF","FRENCH GUIANA"]
["PF","FRENCH POLYNESIA"]
["TF","FRENCH SOUTHERN TERRITORIES"]
["GA","GABON"]
["GM","GAMBIA"]
["GE","GEORGIA"]
["DE","GERMANY"]
["GH","GHANA"]
["GI","GIBRALTAR"]
["GR","GREECE"]
["GL","GREENLAND"]
["GD","GRENADA"]
["GP","GUADELOUPE"]
["GU","GUAM"]
["GT","GUATEMALA"]
["GG","GUERNSEY"]
["GN","GUINEA"]
["GW","GUINEA-BISSAU"]
["GY","GUYANA"]
["HT","HAITI"]
["HM","HEARD ISLAND AND MCDONALD ISLANDS"]
["VA","HOLY SEE"]
["HN","HONDURAS"]
["HK","HONG KONG"]
["HU","HUNGARY"]
["IS","ICELAND"]
["IN","INDIA"]
["ID","INDONESIA"]
["IR","IRAN (ISLAMIC REPUBLIC OF)"]
["IQ","IRAQ"]
["IE","IRELAND"]
["IM","ISLE OF MAN"]
["IL","ISRAEL"]
["IT","ITALY"]
["JM","JAMAICA"]
["JP","JAPAN"]
["JE","JERSEY"]
["JO","JORDAN"]
["KZ","KAZAKHSTAN"]
["KE","KENYA"]
["KI","KIRIBATI"]
["KP","KOREA (DEMOCRATIC PEOPLE'S REPUBLIC OF)"]
["KR","KOREA, REPUBLIC OF"]
["KW","KUWAIT"]
["KG","KYRGYZSTAN"]
["LA","LAO PEOPLE'S DEMOCRATIC REPUBLIC"]
["LV","LATVIA"]
["LB","LEBANON"]
["LS","LESOTHO"]
["LR","LIBERIA"]
["LY","LIBYA"]
["LI","LIECHTENSTEIN"]
["LT","LITHUANIA"]
["LU","LUXEMBOURG"]
["MO","MACAO"]
["MG","MADAGASCAR"]
["MW","MALAWI"]
["MY","MALAYSIA"]
["MV","MALDIVES"]
["ML","MALI"]
["MT","MALTA"]
["MH","MARSHALL ISLANDS"]
["MQ","MARTINIQUE"]
["MR","MAURITANIA"]
["MU","MAURITIUS"]
["YT","MAYOTTE"]
["MX","MEXICO"]
["FM","MICRONESIA (FEDERATED STATES OF)"]
["MD","MOLDOVA, REPUBLIC OF"]
["MC","MONACO"]
["MN","MONGOLIA"]
["ME","MONTENEGRO"]
["MS","MONTSERRAT"]
["MA","MOROCCO"]
["MZ","MOZAMBIQUE"]
["MM","MYANMAR"]
["NA","NAMIBIA"]
["NR","NAURU"]
["NP","NEPAL"]
["NL","NETHERLANDS"]
["NC","NEW CALEDONIA"]
["NZ","NEW ZEALAND"]
["NI","NICARAGUA"]
["NE","NIGER"]
["NG","NIGERIA"]
["NU","NIUE"]
["NF","NORFOLK ISLAND"]
["MK","NORTH MACEDONIA"]
["MP","NORTHERN MARIANA ISLANDS"]
["NO","NORWAY"]
["OM","OMAN"]
["PK","PAKISTAN"]
["PW","PALAU"]
["PS","PALESTINE, STATE OF"]
["PA","PANAMA"]
["PG","PAPUA NEW GUINEA"]
["PY","PARAGUAY"]
["PE","PERU"]
["PH","PHILIPPINES"]
["PN","PITCAIRN"]
["PL","POLAND"]
["PT","PORTUGAL"]
["PR","PUERTO RICO"]
["QA","QATAR"]
["RE","RÉUNION"]
["RO","ROMANIA"]
["RU","RUSSIAN FEDERATION"]
["RW","RWANDA"]
["BL","SAINT BARTHÉLEMY"]
["SH","SAINT HELENA, ASCENSION AND TRISTAN DA CUNHA"]
["KN","SAINT KITTS AND NEVIS"]
["LC","SAINT LUCIA"]
["MF","SAINT MARTIN (FRENCH PART)"]
["PM","SAINT PIERRE AND MIQUELON"]
["VC","SAINT VINCENT AND THE GRENADINES"]
["WS","SAMOA"]
["SM","SAN MARINO"]
["ST","SAO TOME AND PRINCIPE"]
["SA","SAUDI ARABIA"]
["SN","SENEGAL"]
["RS","SERBIA"]
["SC","SEYCHELLES"]
["SL","SIERRA LEONE"]
["SG","SINGAPORE"]
["SX","SINT MAARTEN (DUTCH PART)"]
["SK","SLOVAKIA"]
["SI","SLOVENIA"]
["SB","SOLOMON ISLANDS"]
["SO","SOMALIA"]
["ZA","SOUTH AFRICA"]
["GS","SOUTH GEORGIA AND THE SOUTH SANDWICH ISLANDS"]
["SS","SOUTH SUDAN"]
["ES","SPAIN"]
["LK","SRI LANKA"]
["SD","SUDAN"]
["SR","SURINAME"]
["SJ","SVALBARD AND JAN MAYEN"]
["SE","SWEDEN"]
["CH","SWITZERLAND"]
["SY","SYRIAN ARAB REPUBLIC"]
["TW","TAIWAN, PROVINCE OF CHINA"]
["TJ","TAJIKISTAN"]
["TZ","TANZANIA, UNITED REPUBLIC OF"]
["TH","THAILAND"]
["TL","TIMOR-LESTE"]
["TG","TOGO"]
["TK","TOKELAU"]
["TO","TONGA"]
["TT","TRINIDAD AND TOBAGO"]
["TN","TUNISIA"]
["TR","TURKEY"]
["TM","TURKMENISTAN"]
["TC","TURKS AND CAICOS ISLANDS"]
["TV","TUVALU"]
["UG","UGANDA"]
["UA","UKRAINE"]
["AE","UNITED ARAB EMIRATES"]
["GB","UNITED KINGDOM OF GREAT BRITAIN AND NORTHERN IRELAND"]
["UM","UNITED STATES MINOR OUTLYING ISLANDS"]
["US","UNITED STATES OF AMERICA"]
["UY","URUGUAY"]
["UZ","UZBEKISTAN"]
["VU","VANUATU"]
["VE","VENEZUELA (BOLIVARIAN REPUBLIC OF)"]
["VN","VIET NAM"]
["VG","VIRGIN ISLANDS (BRITISH)"]
["VI","VIRGIN ISLANDS (U.S.)"]
["WF","WALLIS AND FUTUNA"]
["EH","WESTERN SAHARA *"]
["YE","YEMEN"]
["ZM","ZAMBIA"]
["ZW","ZIMBABWE"]

{"sheet":"SorP","index":10,"n_rows":5615,"n_cols":2,"rows_kept":5615,"cut":false,"hidden":true,"merged":[]}
["Code","State / Province Name"]
["AD-02","Canillo"]
["AD-03","Encamp"]
["AD-04","La Massana"]
["AD-05","Ordino"]
["AD-06","Sant Julià de Lòria"]
["AD-07","Andorra la Vella"]
["AD-08","Escaldes-Engordany"]
["AE-AJ","‘Ajmān"]
["AE-AZ","Abū Z̧aby"]
["AE-DU","Dubayy"]
["AE-FU","Al Fujayrah"]
["AE-RK","Ra’s al Khaymah"]
["AE-SH","Ash Shāriqah"]
["AE-UQ","Umm al Qaywayn"]
["AF-BAL","Balkh"]
["AF-BAM","Bāmyān"]
["AF-BDG","Bādghīs"]
["AF-BDS","Badakhshān"]
["AF-BGL","Baghlān"]
["AF-DAY","Dāykundī"]
["AF-FRA","Farāh"]
["AF-FYB","Fāryāb"]
["AF-GHA","Ghaznī"]
["AF-GHO","Ghōr"]
["AF-HEL","Helmand"]
["AF-HER","Herāt"]
["AF-JOW","Jowzjān"]
["AF-KAB","Kābul"]
["AF-KAN","Kandahār"]
["AF-KAP","Kāpīsā"]
["AF-KDZ","Kunduz"]
["AF-KHO","Khōst"]
["AF-KNR","Kunaṟ"]
["AF-LAG","Laghmān"]
["AF-LOG","Lōgar"]
["AF-NAN","Nangarhār"]
["AF-NIM","Nīmrōz"]
["AF-NUR","Nūristān"]
["AF-PAN","Panjshayr"]
["AF-PAR","Parwān"]
["AF-PIA","Paktiyā"]
["AF-PKA","Paktīkā"]
["AF-SAM","Samangān"]
["AF-SAR","Sar-e Pul"]
["AF-TAK","Takhār"]
["AF-URU","Uruzgān"]
["AF-WAR","Wardak"]
["AF-ZAB","Zābul"]
["AG-10","Barbuda"]
["AG-11","Redonda"]
["AG-03","Saint George"]
["AG-04","Saint John"]
["AG-05","Saint Mary"]
["AG-06","Saint Paul"]
["AG-07","Saint Peter"]
["AG-08","Saint Philip"]
["AL-01","Berat"]
["AL-02","Durrës"]
["AL-03","Elbasan"]
["AL-04","Fier"]
["AL-05","Gjirokastër"]
["AL-06","Korçë"]
["AL-07","Kukës"]
["AL-08","Lezhë"]
["AL-09","Dibër"]
["AL-10","Shkodër"]
["AL-11","Tiranë"]
["AL-12","Vlorë"]
["AM-AG","Aragac̣otn"]
["AM-AR","Ararat"]
["AM-AV","Armavir"]
["AM-GR","Geġark'unik'"]
["AM-KT","Kotayk'"]
["AM-LO","Loṙi"]
["AM-SH","Širak"]
["AM-SU","Syunik'"]
["AM-TV","Tavuš"]
["AM-VD","Vayoć Jor"]
["AM-ER","Erevan"]
["AO-BGO","Bengo"]
["AO-BGU","Benguela"]
["AO-BIE","Bié"]
["AO-CAB","Cabinda"]
["AO-CCU","Kuando Kubango"]
["AO-CNN","Cunene"]
["AO-CNO","Kwanza Norte"]
["AO-CUS","Kwanza Sul"]
["AO-HUA","Huambo"]
["AO-HUI","Huíla"]
["AO-LNO","Lunda Norte"]
["AO-LSU","Lunda Sul"]
["AO-LUA","Luanda"]
["AO-MAL","Malange"]
["AO-MOX","Moxico"]
["AO-NAM","Namibe"]
["AO-UIG","Uíge"]
["AO-ZAI","Zaire"]
["AR-A","Salta"]
["AR-B","Buenos Aires"]
["AR-D","San Luis"]
["AR-E","Entre Ríos"]
["AR-F","La Rioja"]
["AR-G","Santiago del Estero"]
["AR-H","Chaco"]
["AR-J","San Juan"]
["AR-K","Catamarca"]
["AR-L","La Pampa"]
["AR-M","Mendoza"]
["AR-N","Misiones"]
["AR-P","Formosa"]
["AR-Q","Neuquén"]
["AR-R","Río Negro"]
["AR-S","Santa Fe"]
["AR-T","Tucumán"]
["AR-U","Chubut"]
["AR-V","Tierra del Fuego"]
["AR-W","Corrientes"]
["AR-X","Córdoba"]
["AR-Y","Jujuy"]
["AR-Z","Santa Cruz"]
["AR-C","Ciudad Autónoma de Buenos Aires"]
["AT-1","Burgenland"]
["AT-2","Kärnten"]
["AT-3","Niederösterreich"]
["AT-4","Oberösterreich"]
["AT-5","Salzburg"]
["AT-6","Steiermark"]
["AT-7","Tirol"]
["AT-8","Vorarlberg"]
["AT-9","Wien"]
["AU-ACT","Australian Capital Territory"]
["AU-NT","Northern Territory"]
["AU-NSW","New South Wales"]
["AU-QLD","Queensland"]
["AU-SA","South Australia"]
["AU-TAS","Tasmania"]
["AU-VIC","Victoria"]
["AU-WA","Western Australia"]
["AZ-BA","Bakı"]
["AZ-GA","Gəncə"]
["AZ-LA","Lənkəran"]
["AZ-MI","Mingəçevir"]
["AZ-NA","Naftalan"]
["AZ-SA","Şəki"]
["AZ-SM","Sumqayıt"]
["AZ-SR","Şirvan"]
["AZ-XA","Xankəndi"]
["AZ-YE","Yevlax"]
["AZ-ABS","Abşeron"]
["AZ-AGA","Ağstafa"]
["AZ-AGC","Ağcabədi"]
["AZ-AGM","Ağdam"]
["AZ-AGS","Ağdaş"]
["AZ-AGU","Ağsu"]
["AZ-AST","Astara"]
["AZ-BAL","Balakən"]
["AZ-BAR","Bərdə"]
["AZ-BEY","Beyləqan"]
["AZ-BIL","Biləsuvar"]
["AZ-CAB","Cəbrayıl"]
["AZ-CAL","Cəlilabad"]
["AZ-DAS","Daşkəsən"]
["AZ-FUZ","Füzuli"]
["AZ-GAD","Gədəbəy"]
["AZ-GOR","Goranboy"]
["AZ-GOY","Göyçay"]
["AZ-GYG","Göygöl"]
["AZ-HAC","Hacıqabul"]
["AZ-IMI","İmişli"]
["AZ-ISM","İsmayıllı"]
["AZ-KAL","Kəlbəcər"]
["AZ-KUR","Kürdəmir"]
["AZ-LAC","Laçın"]
["AZ-LER","Lerik"]
["AZ-MAS","Masallı"]
["AZ-NEF","Neftçala"]
["AZ-OGU","Oğuz"]
["AZ-QAB","Qəbələ"]
["AZ-QAX","Qax"]
["AZ-QAZ","Qazax"]
["AZ-QBA","Quba"]
["AZ-QBI","Qubadlı"]
["AZ-QOB","Qobustan"]
["AZ-QUS","Qusar"]
["AZ-SAB","Sabirabad"]
["AZ-SAL","Salyan"]
["AZ-SAT","Saatlı"]
["AZ-SBN","Şabran"]
["AZ-SIY","Siyəzən"]
["AZ-SKR","Şəmkir"]
["AZ-SMI","Şamaxı"]
["AZ-SMX","Samux"]
["AZ-SUS","Şuşa"]
["AZ-TAR","Tərtər"]
["AZ-TOV","Tovuz"]
["AZ-UCA","Ucar"]
["AZ-XAC","Xaçmaz"]
["AZ-XCI","Xocalı"]
["AZ-XIZ","Xızı"]
["AZ-XVD","Xocavənd"]
["AZ-YAR","Yardımlı"]
["AZ-ZAN","Zəngilan"]
["AZ-ZAQ","Zaqatala"]
["AZ-ZAR","Zərdab"]
["AZ-NX","Naxçıvan"]
["AZ-BAB","Babək"]
["AZ-CUL","Culfa"]
["AZ-KAN","Kǝngǝrli"]
["AZ-ORD","Ordubad"]
["AZ-SAD","Sədərək"]
["AZ-SAH","Şahbuz"]
["AZ-SAR","Şərur"]
["BA-BIH","Federacija Bosne i Hercegovine"]
["BA-SRP","Republika Srpska"]
["BA-BRC","Brčko distrikt"]
["BB-01","Christ Church"]
["BB-02","Saint Andrew"]
["BB-04","Saint James"]
["BB-06","Saint Joseph"]
["BB-07","Saint Lucy"]
["BB-08","Saint Michael"]
["BB-11","Saint Thomas"]
["BD-A","Barisal"]
["BD-02","Barguna"]
["BD-07","Bhola"]
["BD-25","Jhalakathi"]
["BD-50","Pirojpur"]
["BD-51","Patuakhali"]
["BD-B","Chittagong"]
["BD-01","Bandarban"]
["BD-04","Brahmanbaria"]
["BD-08","Comilla"]
["BD-09","Chandpur"]
["BD-11","Cox's Bazar"]
["BD-16","Feni"]
["BD-29","Khagrachhari"]
["BD-31","Lakshmipur"]
["BD-47","Noakhali"]
["BD-56","Rangamati"]
["BD-C","Dhaka"]
["BD-15","Faridpur"]
["BD-17","Gopalganj"]
["BD-18","Gazipur"]
["BD-26","Kishoreganj"]
["BD-33","Manikganj"]
["BD-35","Munshiganj"]
["BD-36","Madaripur"]
["BD-40","Narayanganj"]
["BD-42","Narsingdi"]
["BD-53","Rajbari"]
["BD-62","Shariatpur"]
["BD-63","Tangail"]
["BD-D","Khulna"]
["BD-05","Bagerhat"]
["BD-12","Chuadanga"]
["BD-22","Jessore"]
["BD-23","Jhenaidah"]
["BD-30","Kushtia"]
["BD-37","Magura"]
["BD-39","Meherpur"]
["BD-43","Narail"]
["BD-58","Satkhira"]
["BD-E","Rajshahi"]
["BD-03","Bogra"]
["BD-24","Joypurhat"]
["BD-44","Natore"]
["BD-45","Chapai Nawabganj"]
["BD-48","Naogaon"]
["BD-49","Pabna"]
["BD-59","Sirajganj"]
["BD-F","Rangpur"]
["BD-14","Dinajpur"]
["BD-19","Gaibandha"]
["BD-28","Kurigram"]
["BD-32","Lalmonirhat"]
["BD-46","Nilphamari"]
["BD-52","Panchagarh"]
["BD-64","Thakurgaon"]
["BD-G","Sylhet"]
["BD-20","Habiganj"]
["BD-38","Moulvibazar"]
["BD-61","Sunamganj"]
["BD-H","Mymensingh"]
["BD-21","Jamalpur"]
["BD-41","Netrakona"]
["BD-57","Sherpur"]
["BE-BRU","Bruxelles-Capitale, Région de"]
["BE-BRU","Brussels Hoofdstedelijk Gewest"]
["BE-VLG","Vlaams Gewest"]
["BE-VAN","Antwerpen"]
["BE-VBR","Vlaams-Brabant"]
["BE-VLI","Limburg"]
["BE-VOV","Oost-Vlaanderen"]
["BE-VWV","West-Vlaanderen"]
["BE-WAL","wallonne, Région"]
["BE-WBR","Brabant wallon"]
["BE-WHT","Hainaut"]
["BE-WLG","Liège"]
["BE-WLX","Luxembourg"]
["BE-WNA","Namur"]
["BF-01","Boucle du Mouhoun"]
["BF-BAL","Balé"]
["BF-BAN","Banwa"]
["BF-KOS","Kossi"]
["BF-MOU","Mouhoun"]
["BF-NAY","Nayala"]
["BF-SOR","Sourou"]
["BF-02","Cascades"]
["BF-COM","Comoé"]
["BF-LER","Léraba"]
["BF-03","Centre"]
["BF-KAD","Kadiogo"]
["BF-04","Centre-Est"]
["BF-BLG","Boulgou"]
["BF-KOP","Koulpélogo"]
["BF-KOT","Kouritenga"]
["BF-05","Centre-Nord"]
["BF-BAM","Bam"]
["BF-NAM","Namentenga"]
["BF-SMT","Sanmatenga"]
["BF-06","Centre-Ouest"]
["BF-BLK","Boulkiemdé"]
["BF-SIS","Sissili"]
["BF-SNG","Sanguié"]
["BF-ZIR","Ziro"]
["BF-07","Centre-Sud"]
["BF-BAZ","Bazèga"]
["BF-NAO","Nahouri"]
["BF-ZOU","Zoundwéogo"]
["BF-08","Est"]
["BF-GNA","Gnagna"]
["BF-GOU","Gourma"]
["BF-KMD","Komondjari"]
["BF-KMP","Kompienga"]
["BF-TAP","Tapoa"]
["BF-09","Hauts-Bassins"]
["BF-HOU","Houet"]
["BF-KEN","Kénédougou"]
["BF-TUI","Tuy"]
["BF-10","Nord"]
["BF-LOR","Loroum"]
["BF-PAS","Passoré"]
["BF-YAT","Yatenga"]
["BF-ZON","Zondoma"]
["BF-11","Plateau-Central"]
["BF-GAN","Ganzourgou"]
["BF-KOW","Kourwéogo"]
["BF-OUB","Oubritenga"]
["BF-12","Sahel"]
["BF-OUD","Oudalan"]
["BF-SEN","Séno"]
["BF-SOM","Soum"]
["BF-YAG","Yagha"]
["BF-13","Sud-Ouest"]
["BF-BGR","Bougouriba"]
["BF-IOB","Ioba"]
["BF-NOU","Noumbiel"]
["BF-PON","Poni"]
["BG-01","Blagoevgrad"]
["BG-02","Burgas"]
["BG-03","Varna"]
["BG-04","Veliko Tarnovo"]
["BG-05","Vidin"]
["BG-06","Vratsa"]
["BG-07","Gabrovo"]
["BG-08","Dobrich"]
["BG-09","Kardzhali"]
["BG-10","Kyustendil"]
["BG-11","Lovech"]
["BG-12","Montana"]
["BG-13","Pazardzhik"]
["BG-14","Pernik"]
["BG-15","Pleven"]
["BG-16","Plovdiv"]
["BG-17","Razgrad"]
["BG-18","Ruse"]
["BG-19","Silistra"]
["BG-20","Sliven"]
["BG-21","Smolyan"]
["BG-22","Sofia (stolitsa)"]
["BG-23","Sofia"]
["BG-24","Stara Zagora"]
["BG-25","Targovishte"]
["BG-26","Haskovo"]
["BG-27","Shumen"]
["BG-28","Yambol"]
["BH-13","Al ‘Āşimah"]
["BH-14","Al Janūbīyah"]
["BH-15","Al Muḩarraq"]
["BH-17","Ash Shamālīyah"]
["BI-BB","Bubanza"]
["BI-BL","Bujumbura Rural"]
["BI-BM","Bujumbura Mairie"]
["BI-BR","Bururi"]
["BI-CA","Cankuzo"]
["BI-CI","Cibitoke"]
["BI-GI","Gitega"]
["BI-KI","Kirundo"]
["BI-KR","Karuzi"]
["BI-KY","Kayanza"]
["BI-MA","Makamba"]
["BI-MU","Muramvya"]
["BI-MW","Mwaro"]
["BI-MY","Muyinga"]
["BI-NG","Ngozi"]
["BI-RM","Rumonge"]
["BI-RT","Rutana"]
["BI-RY","Ruyigi"]
["BJ-AK","Atacora"]
["BJ-AL","Alibori"]
["BJ-AQ","Atlantique"]
["BJ-BO","Borgou"]
["BJ-CO","Collines"]
["BJ-DO","Donga"]
["BJ-KO","Couffo"]
["BJ-LI","Littoral"]
["BJ-MO","Mono"]
["BJ-OU","Ouémé"]
["BJ-PL","Plateau"]
["BJ-ZO","Zou"]
["BN-BE","Belait"]
["BN-BM","Brunei-Muara"]
["BN-BM","Brunei dan Muara"]
["BN-TE","Temburong"]
["BN-TU","Tutong"]
["BO-B","El Beni"]
["BO-C","Cochabamba"]
["BO-H","Chuquisaca"]
["BO-L","La Paz"]
["BO-N","Pando"]
["BO-O","Oruro"]
["BO-P","Potosí"]
["BO-T","Tarija"]
["BQ-BO","Bonaire"]
["BQ-BO","Boneiru"]
["BQ-SA","Saba"]
["BQ-SE","Sint Eustatius"]
["BR-AC","Acre"]
["BR-AL","Alagoas"]
["BR-AM","Amazonas"]
["BR-AP","Amapá"]
["BR-BA","Bahia"]
["BR-CE","Ceará"]
["BR-ES","Espírito Santo"]
["BR-GO","Goiás"]
["BR-MA","Maranhão"]
["BR-MG","Minas Gerais"]
["BR-MS","Mato Grosso do Sul"]
["BR-MT","Mato Grosso"]
["BR-PA","Pará"]
["BR-PB","Paraíba"]
["BR-PE","Pernambuco"]
["BR-PI","Piauí"]
["BR-PR","Paraná"]
["BR-RJ","Rio de Janeiro"]
["BR-RN","Rio Grande do Norte"]
["BR-RO","Rondônia"]
["BR-RR","Roraima"]
["BR-RS","Rio Grande do Sul"]
["BR-SC","Santa Catarina"]
["BR-SE","Sergipe"]
["BR-SP","São Paulo"]
["BR-TO","Tocantins"]
["BR-DF","Distrito Federal"]
["BS-AK","Acklins"]
["BS-BI","Bimini"]
["BS-BP","Black Point"]
["BS-BY","Berry Islands"]
["BS-CE","Central Eleuthera"]
["BS-CI","Cat Island"]
["BS-CK","Crooked Island and Long Cay"]
["BS-CO","Central Abaco"]
["BS-CS","Central Andros"]
["BS-EG","East Grand Bahama"]
["BS-EX","Exuma"]
["BS-FP","City of Freeport"]
["BS-GC","Grand Cay"]
["BS-HI","Harbour Island"]
["BS-HT","Hope Town"]
["BS-IN","Inagua"]
["BS-LI","Long Island"]
["BS-MC","Mangrove Cay"]
["BS-MG","Mayaguana"]
["BS-MI","Moore's Island"]
["BS-NE","North Eleuthera"]
["BS-NO","North Abaco"]
["BS-NS","North Andros"]
["BS-RC","Rum Cay"]
["BS-RI","Ragged Island"]
["BS-SA","South Andros"]
["BS-SE","South Eleuthera"]
["BS-SO","South Abaco"]
["BS-SS","San Salvador"]
["BS-SW","Spanish Wells"]
["BS-WG","West Grand Bahama"]
["BS-NP","New Providence"]
["BT-11","Paro"]
["BT-12","Chhukha"]
["BT-13","Haa"]
["BT-14","Samtse"]
["BT-15","Thimphu"]
["BT-21","Tsirang"]
["BT-22","Dagana"]
["BT-23","Punakha"]
["BT-24","Wangdue Phodrang"]
["BT-31","Sarpang"]
["BT-32","Trongsa"]
["BT-33","Bumthang"]
["BT-34","Zhemgang"]
["BT-41","Trashigang"]
["BT-42","Monggar"]
["BT-43","Pemagatshel"]
["BT-44","Lhuentse"]
["BT-45","Samdrup Jongkhar"]
["BT-GA","Gasa"]
["BT-TY","Trashi Yangtse"]
["BW-CE","Central"]
["BW-CH","Chobe"]
["BW-GH","Ghanzi"]
["BW-KG","Kgalagadi"]
["BW-KL","Kgatleng"]
["BW-KW","Kweneng"]
["BW-NE","North East"]
["BW-NW","North West"]
["BW-SE","South East"]
["BW-SO","Southern"]
["BW-JW","Jwaneng"]
["BW-LO","Lobatse"]
["BW-SP","Selibe Phikwe"]
["BW-ST","Sowa Town"]
["BW-FR","Francistown"]
["BW-GA","Gaborone"]
["BY-HM","Horad Minsk"]
["BY-HM","Gorod Minsk"]
["BY-BR","Bresckaja voblasć"]
["BY-BR","Brestskaya voblasts'"]
["BY-BR","Brestskaya oblast'"]
["BY-BR","Brestskaja oblast'"]
["BY-HO","Homieĺskaja voblasć"]
["BY-HO","Homyel'skaya voblasts'"]
["BY-HO","Gomel'skaja oblast'"]
["BY-HO","Gomel'skaya oblast'"]
["BY-HR","Hrodzenskaya voblasts'"]
["BY-HR","Hrodzienskaja voblasć"]
["BY-HR","Grodnenskaja oblast'"]
["BY-HR","Grodnenskaya oblast'"]
["BY-MA","Mahilioŭskaja voblasć"]
["BY-MA","Mahilyowskaya voblasts'"]
["BY-MA","Mogilevskaja oblast'"]
["BY-MA","Mogilevskaya oblast'"]
["BY-MI","Minskaja voblasć"]
["BY-MI","Minskaya voblasts'"]
["BY-MI","Minskaya oblast'"]
["BY-MI","Minskaja oblast'"]
["BY-VI","Viciebskaja voblasć"]
["BY-VI","Vitsyebskaya voblasts'"]
["BY-VI","Vitebskaja oblast'"]
["BY-VI","Vitebskaya oblast'"]
["BZ-BZ","Belize"]
["BZ-CY","Cayo"]
["BZ-CZL","Corozal"]
["BZ-OW","Orange Walk"]
["BZ-SC","Stann Creek"]
["BZ-TOL","Toledo"]
["CA-NT","Northwest Territories"]
["CA-NT","Territoires du Nord-Ouest"]
["CA-NU","Nunavut"]
["CA-YT","Yukon"]
["CA-AB","Alberta"]
["CA-BC","British Columbia"]
["CA-BC","Colombie-Britannique"]
["CA-MB","Manitoba"]
["CA-NB","New Brunswick"]
["CA-NB","Nouveau-Brunswick"]
["CA-NL","Newfoundland and Labrador"]
["CA-NL","Terre-Neuve-et-Labrador"]
["CA-NS","Nova Scotia"]
["CA-NS","Nouvelle-Écosse"]
["CA-ON","Ontario"]
["CA-PE","Prince Edward Island"]
["CA-PE","Île-du-Prince-Édouard"]
["CA-QC","Quebec"]
["CA-QC","Québec"]
["CA-SK","Saskatchewan"]
["CD-BC","Kongo Central"]
["CD-BU","Bas-Uélé"]
["CD-EQ","Équateur"]
["CD-HK","Haut-Katanga"]
["CD-HL","Haut-Lomami"]
["CD-HU","Haut-Uélé"]
["CD-IT","Ituri"]
["CD-KC","Kasaï Central"]
["CD-KE","Kasaï Oriental"]
["CD-KG","Kwango"]
["CD-KL","Kwilu"]
["CD-KS","Kasaï"]
["CD-LO","Lomami"]
["CD-LU","Lualaba"]
["CD-MA","Maniema"]
["CD-MN","Mai-Ndombe"]
["CD-MO","Mongala"]
["CD-NK","Nord-Kivu"]
["CD-NU","Nord-Ubangi"]
["CD-SA","Sankuru"]
["CD-SK","Sud-Kivu"]
["CD-SU","Sud-Ubangi"]
["CD-TA","Tanganyika"]
["CD-TO","Tshopo"]
["CD-TU","Tshuapa"]
["CD-KN","Kinshasa"]
["CF-KB","Gribingui"]
["CF-KB","Gïrïbïngï"]
["CF-SE","Sangha"]
["CF-SE","Sangä"]
["CF-AC","Ouham"]
["CF-AC","Wâmo"]
["CF-BB","Bamingui-Bangoran"]
["CF-BB","Bamïngï-Bangoran"]
["CF-BK","Basse-Kotto"]
["CF-BK","Do-Kötö"]
["CF-HK","Haute-Kotto"]
["CF-HK","Tö-Kötö"]
["CF-HM","Haut-Mbomou"]
["CF-HM","Tö-Mbömü"]
["CF-HS","Haute-Sangha / Mambéré-Kadéï"]
["CF-HS","Tö-Sangä / Mbaere-Kadeï"]
["CF-KG","Kémo-Gribingui"]
["CF-KG","Kemö-Gïrïbïngï"]
["CF-LB","Lobaye"]
["CF-LB","Lobâye"]
["CF-MB","Mbomou"]
["CF-MB","Mbömü"]
["CF-MP","Ombella-Mpoko"]
["CF-MP","Ömbëlä-Pökö"]
["CF-NM","Nana-Mambéré"]
["CF-NM","Nanä-Mbaere"]
["CF-OP","Ouham-Pendé"]
["CF-OP","Wâmo-Pendë"]
["CF-UK","Ouaka"]
["CF-UK","Wäkä"]
["CF-VK","Vakaga"]
["CF-BGF","Bangui"]
["CF-BGF","Bangî"]
["CG-11","Bouenza"]
["CG-12","Pool"]
["CG-14","Plateaux"]
["CG-15","Cuvette-Ouest"]
["CG-16","Pointe-Noire"]
["CG-2","Lékoumou"]
["CG-5","Kouilou"]
["CG-7","Likouala"]
["CG-8","Cuvette"]
["CG-9","Niari"]
["CG-BZV","Brazzaville"]
["CH-AG","Aargau"]
["CH-AI","Appenzell Innerrhoden"]
["CH-AR","Appenzell Ausserrhoden"]
["CH-BE","Bern"]
["CH-BE","Berne"]
["CH-BL","Basel-Landschaft"]
["CH-BS","Basel-Stadt"]
["CH-FR","Freiburg"]
["CH-FR","Fribourg"]
["CH-GE","Genève"]
["CH-GL","Glarus"]
["CH-GR","Graubünden"]
["CH-GR","Grisons"]
["CH-GR","Grigioni"]
["CH-GR","Grischun"]
["CH-JU","Jura"]
["CH-LU","Luzern"]
["CH-NE","Neuchâtel"]
["CH-NW","Nidwalden"]
["CH-OW","Obwalden"]
["CH-SG","Sankt Gallen"]
["CH-SH","Schaffhausen"]
["CH-SO","Solothurn"]
["CH-SZ","Schwyz"]
["CH-TG","Thurgau"]
["CH-TI","Ticino"]
["CH-UR","Uri"]
["CH-VD","Vaud"]
["CH-VS","Wallis"]
["CH-VS","Valais"]
["CH-ZG","Zug"]
["CH-ZH","Zürich"]
["CI-AB","Abidjan"]
["CI-YM","Yamoussoukro"]
["CI-BS","Bas-Sassandra"]
["CI-DN","Denguélé"]
["CI-GD","Gôh-Djiboua"]
["CI-LC","Lacs"]
["CI-LG","Lagunes"]
["CI-MG","Montagnes"]
["CI-SM","Sassandra-Marahoué"]
["CI-SV","Savanes"]
["CI-VB","Vallée du Bandama"]
["CI-WR","Woroba"]
["CI-ZZ","Zanzan"]
["CL-AI","Aisén del General Carlos Ibañez del Campo"]
["CL-AN","Antofagasta"]
["CL-AP","Arica y Parinacota"]
["CL-AR","La Araucanía"]
["CL-AT","Atacama"]
["CL-BI","Biobío"]
["CL-CO","Coquimbo"]
["CL-LI","Libertador General Bernardo O'Higgins"]
["CL-LL","Los Lagos"]
["CL-LR","Los Ríos"]
["CL-MA","Magallanes"]
["CL-ML","Maule"]
["CL-NB","Ñuble"]
["CL-RM","Región Metropolitana de Santiago"]
["CL-TA","Tarapacá"]
["CL-VS","Valparaíso"]
["CM-AD","Adamaoua"]
["CM-EN","Far North"]
["CM-EN","Extrême-Nord"]
["CM-ES","East"]
["CM-NO","North"]
["CM-NW","North-West"]
["CM-NW","Nord-Ouest"]
["CM-OU","West"]
["CM-OU","Ouest"]
["CM-SU","South"]
["CM-SU","Sud"]
["CM-SW","South-West"]
["CN-AH","Anhui Sheng"]
["CN-FJ","Fujian Sheng"]
["CN-GD","Guangdong Sheng"]
["CN-GS","Gansu Sheng"]
["CN-GZ","Guizhou Sheng"]
["CN-HA","Henan Sheng"]
["CN-HB","Hubei Sheng"]
["CN-HE","Hebei Sheng"]
["CN-HI","Hainan Sheng"]
["CN-HL","Heilongjiang Sheng"]
["CN-HN","Hunan Sheng"]
["CN-JL","Jilin Sheng"]
["CN-JS","Jiangsu Sheng"]
["CN-JX","Jiangxi Sheng"]
["CN-LN","Liaoning Sheng"]
["CN-QH","Qinghai Sheng"]
["CN-SC","Sichuan Sheng"]
["CN-SD","Shandong Sheng"]
["CN-SN","Shaanxi Sheng"]
["CN-SX","Shanxi Sheng"]
["CN-TW","Taiwan Sheng (see also separate country code entry under TW)"]
["CN-YN","Yunnan Sheng"]
["CN-ZJ","Zhejiang Sheng"]
["CN-GX","Guangxi Zhuangzu Zizhiqu"]
["CN-NM","Nei Mongol Zizhiqu"]
["CN-NX","Ningxia Huizi Zizhiqu"]
["CN-XJ","Xinjiang Uygur Zizhiqu"]
["CN-XZ","Xizang Zizhiqu"]
["CN-HK","Hong Kong SAR (see also separate country code entry under HK)"]
["CN-HK","Xianggang Tebiexingzhengqu (see also separate country code entry under HK)"]
["CN-MO","Macao SAR (see also separate country code entry under MO)"]
["CN-MO","Macau SAR (see also separate country code entry under MO)"]
["CN-MO","Aomen Tebiexingzhengqu (see also separate country code entry under MO)"]
["CN-BJ","Beijing Shi"]
["CN-CQ","Chongqing Shi"]
["CN-SH","Shanghai Shi"]
["CN-TJ","Tianjin Shi"]
["CO-ANT","Antioquia"]
["CO-ARA","Arauca"]
["CO-ATL","Atlántico"]
["CO-BOL","Bolívar"]
["CO-BOY","Boyacá"]
["CO-CAL","Caldas"]
["CO-CAQ","Caquetá"]
["CO-CAS","Casanare"]
["CO-CAU","Cauca"]
["CO-CES","Cesar"]
["CO-CHO","Chocó"]
["CO-CUN","Cundinamarca"]
["CO-GUA","Guainía"]
["CO-GUV","Guaviare"]
["CO-HUI","Huila"]
["CO-LAG","La Guajira"]
["CO-MAG","Magdalena"]
["CO-MET","Meta"]
["CO-NAR","Nariño"]
["CO-NSA","Norte de Santander"]
["CO-PUT","Putumayo"]
["CO-QUI","Quindío"]
["CO-RIS","Risaralda"]
["CO-SAN","Santander"]
["CO-SAP","San Andrés, Providencia y Santa Catalina"]
["CO-SUC","Sucre"]
["CO-TOL","Tolima"]
["CO-VAC","Valle del Cauca"]
["CO-VAU","Vaupés"]
["CO-VID","Vichada"]
["CO-DC","Distrito Capital de Bogotá"]
["CR-A","Alajuela"]
["CR-C","Cartago"]
["CR-G","Guanacaste"]
["CR-H","Heredia"]
["CR-L","Limón"]
["CR-P","Puntarenas"]
["CR-SJ","San José"]
["CU-01","Pinar del Río"]
["CU-03","La Habana"]
["CU-04","Matanzas"]
["CU-05","Villa Clara"]
["CU-06","Cienfuegos"]
["CU-07","Sancti Spíritus"]
["CU-08","Ciego de Ávila"]
["CU-09","Camagüey"]
["CU-10","Las Tunas"]
["CU-11","Holguín"]
["CU-12","Granma"]
["CU-13","Santiago de Cuba"]
["CU-14","Guantánamo"]
["CU-15","Artemisa"]
["CU-16","Mayabeque"]
["CU-99","Isla de la Juventud"]
["CV-B","Ilhas de Barlavento"]
["CV-BV","Boa Vista"]
["CV-PA","Paul"]
["CV-PN","Porto Novo"]
["CV-RB","Ribeira Brava"]
["CV-RG","Ribeira Grande"]
["CV-SL","Sal"]
["CV-SV","São Vicente"]
["CV-TS","Tarrafal de São Nicolau"]
["CV-S","Ilhas de Sotavento"]
["CV-BR","Brava"]
["CV-CF","Santa Catarina do Fogo"]
["CV-MA","Maio"]
["CV-MO","Mosteiros"]
["CV-PR","Praia"]
["CV-RS","Ribeira Grande de Santiago"]
["CV-SD","São Domingos"]
["CV-SF","São Filipe"]
["CV-SM","São Miguel"]
["CV-SO","São Lourenço dos Órgãos"]
["CV-SS","São Salvador do Mundo"]
["CV-TA","Tarrafal"]
["CY-01","Lefkosia"]
["CY-01","Lefkoşa"]
["CY-02","Lemesos"]
["CY-02","Leymasun"]
["CY-03","Larnaka"]
["CY-04","Ammochostos"]
["CY-04","Mağusa"]
["CY-05","Pafos"]
["CY-05","Baf"]
["CY-06","Keryneia"]
["CY-06","Girne"]
["CZ-20","Středočeský kraj"]
["CZ-201","Benešov"]
["CZ-202","Beroun"]
["CZ-203","Kladno"]
["CZ-204","Kolín"]
["CZ-205","Kutná Hora"]
["CZ-206","Mělník"]
["CZ-207","Mladá Boleslav"]
["CZ-208","Nymburk"]
["CZ-209","Praha-východ"]
["CZ-20A","Praha-západ"]
["CZ-20B","Příbram"]
["CZ-20C","Rakovník"]
["CZ-31","Jihočeský kraj"]
["CZ-311","České Budějovice"]
["CZ-312","Český Krumlov"]
["CZ-313","Jindřichův Hradec"]
["CZ-314","Písek"]
["CZ-315","Prachatice"]
["CZ-316","Strakonice"]
["CZ-317","Tábor"]
["CZ-32","Plzeňský kraj"]
["CZ-321","Domažlice"]
["CZ-322","Klatovy"]
["CZ-323","Plzeň-město"]
["CZ-324","Plzeň-jih"]
["CZ-325","Plzeň-sever"]
["CZ-326","Rokycany"]
["CZ-327","Tachov"]
["CZ-41","Karlovarský kraj"]
["CZ-411","Cheb"]
["CZ-412","Karlovy Vary"]
["CZ-413","Sokolov"]
["CZ-42","Ústecký kraj"]
["CZ-421","Děčín"]
["CZ-422","Chomutov"]
["CZ-423","Litoměřice"]
["CZ-424","Louny"]
["CZ-425","Most"]
["CZ-426","Teplice"]
["CZ-427","Ústí nad Labem"]
["CZ-51","Liberecký kraj"]
["CZ-511","Česká Lípa"]
["CZ-512","Jablonec nad Nisou"]
["CZ-513","Liberec"]
["CZ-514","Semily"]
["CZ-52","Královéhradecký kraj"]
["CZ-521","Hradec Králové"]
["CZ-522","Jičín"]
["CZ-523","Náchod"]
["CZ-524","Rychnov nad Kněžnou"]
["CZ-525","Trutnov"]
["CZ-53","Pardubický kraj"]
["CZ-531","Chrudim"]
["CZ-532","Pardubice"]
["CZ-533","Svitavy"]
["CZ-534","Ústí nad Orlicí"]
["CZ-63","Kraj Vysočina"]
["CZ-631","Havlíčkův Brod"]
["CZ-632","Jihlava"]
["CZ-633","Pelhřimov"]
["CZ-634","Třebíč"]
["CZ-635","Žďár nad Sázavou"]
["CZ-64","Jihomoravský kraj"]
["CZ-641","Blansko"]
["CZ-642","Brno-město"]
["CZ-643","Brno-venkov"]
["CZ-644","Břeclav"]
["CZ-645","Hodonín"]
["CZ-646","Vyškov"]
["CZ-647","Znojmo"]
["CZ-71","Olomoucký kraj"]
["CZ-711","Jeseník"]
["CZ-712","Olomouc"]
["CZ-713","Prostějov"]
["CZ-714","Přerov"]
["CZ-715","Šumperk"]
["CZ-72","Zlínský kraj"]
["CZ-721","Kroměříž"]
["CZ-722","Uherské Hradiště"]
["CZ-723","Vsetín"]
["CZ-724","Zlín"]
["CZ-80","Moravskoslezský kraj"]
["CZ-801","Bruntál"]
["CZ-802","Frýdek-Místek"]
["CZ-803","Karviná"]
["CZ-804","Nový Jičín"]
["CZ-805","Opava"]
["CZ-806","Ostrava-město"]
["CZ-10","Praha, Hlavní město"]
["DE-BB","Brandenburg"]
["DE-BE","Berlin"]
["DE-BW","Baden-Württemberg"]
["DE-BY","Bayern"]
["DE-HB","Bremen"]
["DE-HE","Hessen"]
["DE-HH","Hamburg"]
["DE-MV","Mecklenburg-Vorpommern"]
["DE-NI","Niedersachsen"]
["DE-NW","Nordrhein-Westfalen"]
["DE-RP","Rheinland-Pfalz"]
["DE-SH","Schleswig-Holstein"]
["DE-SL","Saarland"]
["DE-SN","Sachsen"]
["DE-ST","Sachsen-Anhalt"]
["DE-TH","Thüringen"]
["DJ-AR","‘Artā"]
["DJ-AR","Arta"]
["DJ-AS","‘Alī Şabīḩ"]
["DJ-AS","Ali Sabieh"]
["DJ-DI","Dikhīl"]
["DJ-DI","Dikhil"]
["DJ-OB","Awbūk"]
["DJ-OB","Obock"]
["DJ-TA","Tājūrah"]
["DJ-TA","Tadjourah"]
["DJ-DJ","Jībūtī"]
["DJ-DJ","Djibouti"]
["DK-81","Nordjylland"]
["DK-82","Midtjylland"]
["DK-83","Syddanmark"]
["DK-84","Hovedstaden"]
["DK-85","Sjælland"]
["DM-03","Saint David"]
["DM-07","Saint Luke"]
["DM-08","Saint Mark"]
["DM-09","Saint Patrick"]
["DO-33","Cibao Nordeste"]
["DO-06","Duarte"]
["DO-14","María Trinidad Sánchez"]
["DO-19","Hermanas Mirabal"]
["DO-20","Samaná"]
["DO-34","Cibao Noroeste"]
["DO-05","Dajabón"]
["DO-15","Monte Cristi"]
["DO-26","Santiago Rodríguez"]
["DO-27","Valverde"]
["DO-35","Cibao Norte"]
["DO-09","Espaillat"]
["DO-18","Puerto Plata"]
["DO-25","Santiago"]
["DO-36","Cibao Sur"]
["DO-13","La Vega"]
["DO-24","Sánchez Ramírez"]
["DO-28","Monseñor Nouel"]
["DO-37","El Valle"]
["DO-07","Elías Piña"]
["DO-38","Enriquillo"]
["DO-03","Baoruco"]
["DO-04","Barahona"]
["DO-10","Independencia"]
["DO-16","Pedernales"]
["DO-39","Higuamo"]
["DO-23","San Pedro de Macorís"]
["DO-29","Monte Plata"]
["DO-30","Hato Mayor"]
["DO-40","Ozama"]
["DO-32","Santo Domingo"]
["DO-01","Distrito Nacional (Santo Domingo)"]
["DO-41","Valdesia"]
["DO-02","Azua"]
["DO-17","Peravia"]
["DO-21","San Cristóbal"]
["DO-31","San José de Ocoa"]
["DO-42","Yuma"]
["DO-08","El Seibo"]
["DO-11","La Altagracia"]
["DO-12","La Romana"]
["DZ-01","Adrar"]
["DZ-02","Chlef"]
["DZ-03","Laghouat"]
["DZ-04","Oum el Bouaghi"]
["DZ-05","Batna"]
["DZ-06","Béjaïa"]
["DZ-07","Biskra"]
["DZ-08","Béchar"]
["DZ-09","Blida"]
["DZ-10","Bouira"]
["DZ-11","Tamanrasset"]
["DZ-12","Tébessa"]
["DZ-13","Tlemcen"]
["DZ-14","Tiaret"]
["DZ-15","Tizi Ouzou"]
["DZ-16","Alger"]
["DZ-17","Djelfa"]
["DZ-18","Jijel"]
["DZ-19","Sétif"]
["DZ-20","Saïda"]
["DZ-21","Skikda"]
["DZ-22","Sidi Bel Abbès"]
["DZ-23","Annaba"]
["DZ-24","Guelma"]
["DZ-25","Constantine"]
["DZ-26","Médéa"]
["DZ-27","Mostaganem"]
["DZ-28","M'sila"]
["DZ-29","Mascara"]
["DZ-30","Ouargla"]
["DZ-31","Oran"]
["DZ-32","El Bayadh"]
["DZ-33","Illizi"]
["DZ-34","Bordj Bou Arréridj"]
["DZ-35","Boumerdès"]
["DZ-36","El Tarf"]
["DZ-37","Tindouf"]
["DZ-38","Tissemsilt"]
["DZ-39","El Oued"]
["DZ-40","Khenchela"]
["DZ-41","Souk Ahras"]
["DZ-42","Tipaza"]
["DZ-43","Mila"]
["DZ-44","Aïn Defla"]
["DZ-45","Naama"]
["DZ-46","Aïn Témouchent"]
["DZ-47","Ghardaïa"]
["DZ-48","Relizane"]
["EC-A","Azuay"]
["EC-C","Carchi"]
["EC-D","Orellana"]
["EC-E","Esmeraldas"]
["EC-F","Cañar"]
["EC-G","Guayas"]
["EC-H","Chimborazo"]
["EC-I","Imbabura"]
["EC-L","Loja"]
["EC-M","Manabí"]
["EC-N","Napo"]
["EC-O","El Oro"]
["EC-P","Pichincha"]
["EC-S","Morona Santiago"]
["EC-SD","Santo Domingo de los Tsáchilas"]
["EC-SE","Santa Elena"]
["EC-T","Tungurahua"]
["EC-U","Sucumbíos"]
["EC-W","Galápagos"]
["EC-X","Cotopaxi"]
["EC-Y","Pastaza"]
["EC-Z","Zamora Chinchipe"]
["EE-37","Harjumaa"]
["EE-39","Hiiumaa"]
["EE-44","Ida-Virumaa"]
["EE-49","Jõgevamaa"]
["EE-51","Järvamaa"]
["EE-57","Läänemaa"]
["EE-59","Lääne-Virumaa"]
["EE-65","Põlvamaa"]
["EE-67","Pärnumaa"]
["EE-70","Raplamaa"]
["EE-74","Saaremaa"]
["EE-78","Tartumaa"]
["EE-82","Valgamaa"]
["EE-84","Viljandimaa"]
["EE-86","Võrumaa"]
["EG-ALX","Al Iskandarīyah"]
["EG-ASN","Aswān"]
["EG-AST","Asyūţ"]
["EG-BA","Al Baḩr al Aḩmar"]
["EG-BH","Al Buḩayrah"]
["EG-BNS","Banī Suwayf"]
["EG-C","Al Qāhirah"]
["EG-DK","Ad Daqahlīyah"]
["EG-DT","Dumyāţ"]
["EG-FYM","Al Fayyūm"]
["EG-GH","Al Gharbīyah"]
["EG-GZ","Al Jīzah"]
["EG-IS","Al Ismā'īlīyah"]
["EG-JS","Janūb Sīnā'"]
["EG-KB","Al Qalyūbīyah"]
["EG-KFS","Kafr ash Shaykh"]
["EG-KN","Qinā"]
["EG-LX","Al Uqşur"]
["EG-MN","Al Minyā"]
["EG-MNF","Al Minūfīyah"]
["EG-MT","Maţrūḩ"]
["EG-PTS","Būr Sa‘īd"]
["EG-SHG","Sūhāj"]
["EG-SHR","Ash Sharqīyah"]
["EG-SIN","Shamāl Sīnā'"]
["EG-SUZ","As Suways"]
["EG-WAD","Al Wādī al Jadīd"]
["ER-AN","Ansabā"]
["ER-AN","‘Anseba"]
["ER-DK","Janūbī al Baḩrī al Aḩmar"]
["ER-DK","Debubawi K’eyyĭḥ Baḥri"]
["ER-DU","Al Janūbī"]
["ER-DU","Debub"]
["ER-GB","Qāsh-Barkah"]
["ER-GB","Gash-Barka"]
["ER-MA","Al Awsaţ"]
["ER-MA","Ma’ĭkel"]
["ER-SK","Shimālī al Baḩrī al Aḩmar"]
["ER-SK","Semienawi K’eyyĭḥ Baḥri"]
["ES-AN","Andalucía"]
["ES-AL","Almería"]
["ES-CA","Cádiz"]
["ES-GR","Granada"]
["ES-H","Huelva"]
["ES-J","Jaén"]
["ES-MA","Málaga"]
["ES-SE","Sevilla"]
["ES-AR","Aragón"]
["ES-HU","Huesca"]
["ES-TE","Teruel"]
["ES-Z","Zaragoza"]
["ES-AS","Asturias, Principado de"]
["ES-O","Asturias"]
["ES-CB","Cantabria"]
["ES-CL","Castilla y León"]
["ES-AV","Ávila"]
["ES-BU","Burgos"]
["ES-LE","León"]
["ES-P","Palencia"]
["ES-SA","Salamanca"]
["ES-SG","Segovia"]
["ES-SO","Soria"]
["ES-VA","Valladolid"]
["ES-ZA","Zamora"]
["ES-CM","Castilla-La Mancha"]
["ES-AB","Albacete"]
["ES-CR","Ciudad Real"]
["ES-CU","Cuenca"]
["ES-GU","Guadalajara"]
["ES-CN","Canarias"]
["ES-GC","Las Palmas"]
["ES-TF","Santa Cruz de Tenerife"]
["ES-CT","Catalunya [Cataluña]"]
["ES-B","Barcelona [Barcelona]"]
["ES-GI","Girona [Gerona]"]
["ES-L","Lleida [Lérida]"]
["ES-T","Tarragona [Tarragona]"]
["ES-EX","Extremadura"]
["ES-BA","Badajoz"]
["ES-CC","Cáceres"]
["ES-GA","Galicia [Galicia]"]
["ES-C","A Coruña [La Coruña]"]
["ES-LU","Lugo [Lugo]"]
["ES-OR","Ourense [Orense]"]
["ES-PO","Pontevedra [Pontevedra]"]
["ES-IB","Illes Balears [Islas Baleares]"]
["ES-PM","Balears [Baleares]"]
["ES-MC","Murcia, Región de"]
["ES-MU","Murcia"]
["ES-MD","Madrid, Comunidad de"]
["ES-M","Madrid"]
["ES-NC","Nafarroako Foru Komunitatea*"]
["ES-NC","Navarra, Comunidad Foral de"]
["ES-NA","Nafarroa*"]
["ES-NA","Navarra"]
["ES-PV","Euskal Herria"]
["ES-PV","País Vasco"]
["ES-BI","Bizkaia"]
["ES-SS","Gipuzkoa"]
["ES-VI","Araba*"]
["ES-VI","Álava"]
["ES-VC","Valenciana, Comunitat*"]
["ES-VC","Valenciana, Comunidad"]
["ES-A","Alacant*"]
["ES-A","Alicante"]
["ES-CS","Castelló*"]
["ES-CS","Castellón"]
["ES-V","València*"]
["ES-V","Valencia"]
["ES-CE","Ceuta"]
["ES-ML","Melilla"]
["ET-AF","Āfar"]
["ET-AF","Afar"]
["ET-AM","Āmara"]
["ET-AM","Amara"]
["ET-BE","Bīnshangul Gumuz"]
["ET-BE","Benshangul-Gumaz"]
["ET-GA","Gambēla Hizboch"]
["ET-GA","Gambela Peoples"]
["ET-HA","Hārerī Hizb"]
["ET-HA","Harari People"]
["ET-OR","Oromīya"]
["ET-OR","Oromia"]
["ET-SN","YeDebub Bihēroch Bihēreseboch na Hizboch"]
["ET-SN","Southern Nations, Nationalities and Peoples"]
["ET-SO","Sumalē"]
["ET-SO","Somali"]
["ET-TI","Tigray"]
["ET-TI","Tigrai"]
["ET-AA","Ādīs Ābeba"]
["ET-AA","Addis Ababa"]
["ET-DD","Dirē Dawa"]
["ET-DD","Dire Dawa"]
["FI-01","Ahvenanmaan maakunta"]
["FI-01","Landskapet Åland"]
["FI-02","Etelä-Karjala"]
["FI-02","Södra Karelen"]
["FI-03","Etelä-Pohjanmaa"]
["FI-03","Södra Österbotten"]
["FI-04","Etelä-Savo"]
["FI-04","Södra Savolax"]
["FI-05","Kainuu"]
["FI-05","Kajanaland"]
["FI-06","Kanta-Häme"]
["FI-06","Egentliga Tavastland"]
["FI-07","Keski-Pohjanmaa"]
["FI-07","Mellersta Österbotten"]
["FI-08","Keski-Suomi"]
["FI-08","Mellersta Finland"]
["FI-09","Kymenlaakso"]
["FI-09","Kymmenedalen"]
["FI-10","Lappi"]
["FI-10","Lappland"]
["FI-11","Pirkanmaa"]
["FI-11","Birkaland"]
["FI-12","Pohjanmaa"]
["FI-12","Österbotten"]
["FI-13","Pohjois-Karjala"]
["FI-13","Norra Karelen"]
["FI-14","Pohjois-Pohjanmaa"]
["FI-14","Norra Österbotten"]
["FI-15","Pohjois-Savo"]
["FI-15","Norra Savolax"]
["FI-16","Päijät-Häme"]
["FI-16","Päijänne-Tavastland"]
["FI-17","Satakunta"]
["FI-17","Satakunda"]
["FI-18","Uusimaa"]
["FI-18","Nyland"]
["FI-19","Varsinais-Suomi"]
["FI-19","Egentliga Finland"]
["FJ-R","Rotuma"]
["FJ-09","Naitasiri"]
["FJ-10","Namosi"]
["FJ-12","Rewa"]
["FJ-13","Serua"]
["FJ-14","Tailevu"]
["FJ-E","Eastern"]
["FJ-04","Kadavu"]
["FJ-05","Lau"]
["FJ-06","Lomaiviti"]
["FJ-N","Northern"]
["FJ-02","Bua"]
["FJ-03","Cakaudrove"]
["FJ-07","Macuata"]
["FJ-W","Western"]
["FJ-01","Ba"]
["FJ-08","Nadroga and Navosa"]
["FJ-11","Ra"]
["FM-KSA","Kosrae"]
["FM-PNI","Pohnpei"]
["FM-TRK","Chuuk"]
["FM-YAP","Yap"]
["FR-ARA","Auvergne-Rhône-Alpes"]
["FR-01","Ain"]
["FR-03","Allier"]
["FR-07","Ardèche"]
["FR-15","Cantal"]
["FR-26","Drôme"]
["FR-38","Isère"]
["FR-42","Loire"]
["FR-43","Haute-Loire"]
["FR-63","Puy-de-Dôme"]
["FR-69","Rhône"]
["FR-73","Savoie"]
["FR-74","Haute-Savoie"]
["FR-BFC","Bourgogne-Franche-Comté"]
["FR-21","Côte-d'Or"]
["FR-25","Doubs"]
["FR-58","Nièvre"]
["FR-70","Haute-Saône"]
["FR-71","Saône-et-Loire"]
["FR-89","Yonne"]
["FR-90","Territoire de Belfort"]
["FR-BRE","Bretagne"]
["FR-22","Côtes-d'Armor"]
["FR-29","Finistère"]
["FR-35","Ille-et-Vilaine"]
["FR-56","Morbihan"]
["FR-CVL","Centre-Val de Loire"]
["FR-18","Cher"]
["FR-28","Eure-et-Loir"]
["FR-36","Indre"]
["FR-37","Indre-et-Loire"]
["FR-41","Loir-et-Cher"]
["FR-45","Loiret"]
["FR-GES","Grand-Est"]
["FR-08","Ardennes"]
["FR-10","Aube"]
["FR-51","Marne"]
["FR-52","Haute-Marne"]
["FR-54","Meurthe-et-Moselle"]
["FR-55","Meuse"]
["FR-57","Moselle"]
["FR-67","Bas-Rhin"]
["FR-68","Haut-Rhin"]
["FR-88","Vosges"]
["FR-HDF","Hauts-de-France"]
["FR-02","Aisne"]
["FR-60","Oise"]
["FR-62","Pas-de-Calais"]
["FR-80","Somme"]
["FR-IDF","Île-de-France"]
["FR-75","Paris"]
["FR-77","Seine-et-Marne"]
["FR-78","Yvelines"]
["FR-91","Essonne"]
["FR-92","Hauts-de-Seine"]
["FR-93","Seine-Saint-Denis"]
["FR-94","Val-de-Marne"]
["FR-95","Val-d'Oise"]
["FR-NAQ","Nouvelle-Aquitaine"]
["FR-16","Charente"]
["FR-17","Charente-Maritime"]
["FR-19","Corrèze"]
["FR-23","Creuse"]
["FR-24","Dordogne"]
["FR-33","Gironde"]
["FR-40","Landes"]
["FR-47","Lot-et-Garonne"]
["FR-64","Pyrénées-Atlantiques"]
["FR-79","Deux-Sèvres"]
["FR-86","Vienne"]
["FR-87","Haute-Vienne"]
["FR-NOR","Normandie"]
["FR-14","Calvados"]
["FR-27","Eure"]
["FR-50","Manche"]
["FR-61","Orne"]
["FR-76","Seine-Maritime"]
["FR-OCC","Occitanie"]
["FR-09","Ariège"]
["FR-11","Aude"]
["FR-12","Aveyron"]
["FR-30","Gard"]
["FR-31","Haute-Garonne"]
["FR-32","Gers"]
["FR-34","Hérault"]
["FR-46","Lot"]
["FR-48","Lozère"]
["FR-65","Hautes-Pyrénées"]
["FR-66","Pyrénées-Orientales"]
["FR-81","Tarn"]
["FR-82","Tarn-et-Garonne"]
["FR-PAC","Provence-Alpes-Côte-d’Azur"]
["FR-04","Alpes-de-Haute-Provence"]
["FR-05","Hautes-Alpes"]
["FR-06","Alpes-Maritimes"]
["FR-13","Bouches-du-Rhône"]
["FR-83","Var"]
["FR-84","Vaucluse"]
["FR-PDL","Pays-de-la-Loire"]
["FR-44","Loire-Atlantique"]
["FR-49","Maine-et-Loire"]
["FR-53","Mayenne"]
["FR-72","Sarthe"]
["FR-85","Vendée"]
["FR-CP","Clipperton"]
["FR-BL","Saint-Barthélemy (see also separate country code entry under BL)"]
["FR-GF","Guyane (française) (see also separate country code entry under GF)"]
["FR-MF","Saint-Martin (see also separate country code entry under MF)"]
["FR-MQ","Martinique (see also separate country code entry under MQ)"]
["FR-NC","Nouvelle-Calédonie (see also separate country code entry under NC)"]
["FR-PF","Polynésie française (see also separate country code entry under PF)"]
["FR-PM","Saint-Pierre-et-Miquelon (see also separate country code entry under PM)"]
["FR-TF","Terres australes françaises (see also separate country code entry under TF)"]
["FR-WF","Wallis-et-Futuna (see also separate country code entry under WF)"]
["FR-GUA","Guadeloupe"]
["FR-GP","Guadeloupe (see also separate country code entry under GP)"]
["FR-LRE","La Réunion"]
["FR-RE","La Réunion (see also separate country code entry under RE)"]
["FR-MAY","Mayotte"]
["FR-YT","Mayotte (see also separate country code entry under YT)"]
["FR-COR","Corse"]
["FR-2A","Corse-du-Sud"]
["FR-2B","Haute-Corse"]
["GA-1","Estuaire"]
["GA-2","Haut-Ogooué"]
["GA-3","Moyen-Ogooué"]
["GA-4","Ngounié"]
["GA-5","Nyanga"]
["GA-6","Ogooué-Ivindo"]
["GA-7","Ogooué-Lolo"]
["GA-8","Ogooué-Maritime"]
["GA-9","Woleu-Ntem"]
["GB-ABD","Aberdeenshire"]
["GB-ABE","Aberdeen City"]
["GB-AGB","Argyll and Bute"]
["GB-ANS","Angus"]
["GB-CLK","Clackmannanshire"]
["GB-DGY","Dumfries and Galloway"]
["GB-DND","Dundee City"]
["GB-EAY","East Ayrshire"]
["GB-EDH","Edinburgh, City of"]
["GB-EDU","East Dunbartonshire"]
["GB-ELN","East Lothian"]
["GB-ELS","Eilean Siar"]
["GB-ERW","East Renfrewshire"]
["GB-FAL","Falkirk"]
["GB-FIF","Fife"]
["GB-GLG","Glasgow City"]
["GB-HLD","Highland"]
["GB-IVC","Inverclyde"]
["GB-MLN","Midlothian"]
["GB-MRY","Moray"]
["GB-NAY","North Ayrshire"]
["GB-NLK","North Lanarkshire"]
["GB-ORK","Orkney Islands"]
["GB-PKN","Perth and Kinross"]
["GB-RFW","Renfrewshire"]
["GB-SAY","South Ayrshire"]
["GB-SCB","Scottish Borders, The"]
["GB-SLK","South Lanarkshire"]
["GB-STG","Stirling"]
["GB-WDU","West Dunbartonshire"]
["GB-WLN","West Lothian"]
["GB-ZET","Shetland Islands"]
["GB-BKM","Buckinghamshire"]
["GB-CAM","Cambridgeshire"]
["GB-CMA","Cumbria"]
["GB-DBY","Derbyshire"]
["GB-DEV","Devon"]
["GB-DOR","Dorset"]
["GB-ESS","Essex"]
["GB-ESX","East Sussex"]
["GB-GLS","Gloucestershire"]
["GB-HAM","Hampshire"]
["GB-HRT","Hertfordshire"]
["GB-KEN","Kent"]
["GB-LAN","Lancashire"]
["GB-LEC","Leicestershire"]
["GB-LIN","Lincolnshire"]
["GB-NFK","Norfolk"]
["GB-NTH","Northamptonshire"]
["GB-NTT","Nottinghamshire"]
["GB-NYK","North Yorkshire"]
["GB-OXF","Oxfordshire"]
["GB-SFK","Suffolk"]
["GB-SOM","Somerset"]
["GB-SRY","Surrey"]
["GB-STS","Staffordshire"]
["GB-WAR","Warwickshire"]
["GB-WOR","Worcestershire"]
["GB-WSX","West Sussex"]
["GB-ABC","Armagh City, Banbridge and Craigavon"]
["GB-AND","Ards and North Down"]
["GB-ANN","Antrim and Newtownabbey"]
["GB-BFS","Belfast"]
["GB-CCG","Causeway Coast and Glens"]
["GB-DRS","Derry City and Strabane"]
["GB-FMO","Fermanagh and Omagh"]
["GB-LBC","Lisburn and Castlereagh"]
["GB-MEA","Mid and East Antrim"]
["GB-MUL","Mid Ulster"]
["GB-NMD","Newry, Mourne and Down"]
["GB-AGY","Isle of Anglesey [Sir Ynys Môn GB-YNM]"]
["GB-BAS","Bath and North East Somerset"]
["GB-BBD","Blackburn with Darwen"]
["GB-BDF","Bedford"]
["GB-BGE","Bridgend [Pen-y-bont ar Ogwr GB-POG]"]
["GB-BGW","Blaenau Gwent"]
["GB-BMH","Bournemouth"]
["GB-BNH","Brighton and Hove"]
["GB-BPL","Blackpool"]
["GB-BRC","Bracknell Forest"]
["GB-BST","Bristol, City of"]
["GB-CAY","Caerphilly [Caerffili GB-CAF]"]
["GB-CBF","Central Bedfordshire"]
["GB-CGN","Ceredigion [Sir Ceredigion]"]
["GB-CHE","Cheshire East"]
["GB-CHW","Cheshire West and Chester"]
["GB-CMN","Carmarthenshire [Sir Gaerfyrddin GB-GFY]"]
["GB-CON","Cornwall"]
["GB-CRF","Cardiff [Caerdydd GB-CRD]"]
["GB-CWY","Conwy"]
["GB-DAL","Darlington"]
["GB-DEN","Denbighshire [Sir Ddinbych GB-DDB]"]
["GB-DER","Derby"]
["GB-DUR","Durham County"]
["GB-ERY","East Riding of Yorkshire"]
["GB-FLN","Flintshire [Sir y Fflint GB-FFL]"]
["GB-GWN","Gwynedd"]
["GB-HAL","Halton"]
["GB-HEF","Herefordshire"]
["GB-HPL","Hartlepool"]
["GB-IOS","Isles of Scilly"]
["GB-IOW","Isle of Wight"]
["GB-KHL","Kingston upon Hull"]
["GB-LCE","Leicester"]
["GB-LUT","Luton"]
["GB-MDB","Middlesbrough"]
["GB-MDW","Medway"]
["GB-MIK","Milton Keynes"]
["GB-MON","Monmouthshire [Sir Fynwy GB-FYN]"]
["GB-MTY","Merthyr Tydfil [Merthyr Tudful GB-MTU]"]
["GB-NBL","Northumberland"]
["GB-NEL","North East Lincolnshire"]
["GB-NGM","Nottingham"]
["GB-NLN","North Lincolnshire"]
["GB-NSM","North Somerset"]
["GB-NTL","Neath Port Talbot [Castell-nedd Port Talbot GB-CTL]"]
["GB-NWP","Newport [Casnewydd GB-CNW]"]
["GB-PEM","Pembrokeshire [Sir Benfro GB-BNF]"]
["GB-PLY","Plymouth"]
["GB-POL","Poole"]
["GB-POR","Portsmouth"]
["GB-POW","Powys"]
["GB-PTE","Peterborough"]
["GB-RCC","Redcar and Cleveland"]
["GB-RCT","Rhondda, Cynon, Taff [Rhondda, Cynon,Taf]"]
["GB-RDG","Reading"]
["GB-RUT","Rutland"]
["GB-SGC","South Gloucestershire"]
["GB-SHR","Shropshire"]
["GB-SLG","Slough"]
["GB-SOS","Southend-on-Sea"]
["GB-STE","Stoke-on-Trent"]
["GB-STH","Southampton"]
["GB-STT","Stockton-on-Tees"]
["GB-SWA","Swansea [Abertawe GB-ATA]"]
["GB-SWD","Swindon"]
["GB-TFW","Telford and Wrekin"]
["GB-THR","Thurrock"]
["GB-TOB","Torbay"]
["GB-TOF","Torfaen [Tor-faen]"]
["GB-VGL","Vale of Glamorgan, The [Bro Morgannwg GB-BMG]"]
["GB-WBK","West Berkshire"]
["GB-WIL","Wiltshire"]
["GB-WNM","Windsor and Maidenhead"]
["GB-WOK","Wokingham"]
["GB-WRT","Warrington"]
["GB-WRX","Wrexham [Wrecsam GB-WRC]"]
["GB-YOR","York"]
["GB-BIR","Birmingham"]
["GB-BNS","Barnsley"]
["GB-BOL","Bolton"]
["GB-BRD","Bradford"]
["GB-BUR","Bury"]
["GB-CLD","Calderdale"]
["GB-COV","Coventry"]
["GB-DNC","Doncaster"]
["GB-DUD","Dudley"]
["GB-GAT","Gateshead"]
["GB-KIR","Kirklees"]
["GB-KWL","Knowsley"]
["GB-LDS","Leeds"]
["GB-LIV","Liverpool"]
["GB-MAN","Manchester"]
["GB-NET","Newcastle upon Tyne"]
["GB-NTY","North Tyneside"]
["GB-OLD","Oldham"]
["GB-RCH","Rochdale"]
["GB-ROT","Rotherham"]
["GB-SAW","Sandwell"]
["GB-SFT","Sefton"]
["GB-SHF","Sheffield"]
["GB-SHN","St. Helens"]
["GB-SKP","Stockport"]
["GB-SLF","Salford"]
["GB-SND","Sunderland"]
["GB-SOL","Solihull"]
["GB-STY","South Tyneside"]
["GB-TAM","Tameside"]
["GB-TRF","Trafford"]
["GB-WGN","Wigan"]
["GB-WKF","Wakefield"]
["GB-WLL","Walsall"]
["GB-WLV","Wolverhampton"]
["GB-WRL","Wirral"]
["GB-BDG","Barking and Dagenham"]
["GB-BEN","Brent"]
["GB-BEX","Bexley"]
["GB-BNE","Barnet"]
["GB-BRY","Bromley"]
["GB-CMD","Camden"]
["GB-CRY","Croydon"]
["GB-EAL","Ealing"]
["GB-ENF","Enfield"]
["GB-GRE","Greenwich"]
["GB-HAV","Havering"]
["GB-HCK","Hackney"]
["GB-HIL","Hillingdon"]
["GB-HMF","Hammersmith and Fulham"]
["GB-HNS","Hounslow"]
["GB-HRW","Harrow"]
["GB-HRY","Haringey"]
["GB-ISL","Islington"]
["GB-KEC","Kensington and Chelsea"]
["GB-KTT","Kingston upon Thames"]
["GB-LBH","Lambeth"]
["GB-LEW","Lewisham"]
["GB-MRT","Merton"]
["GB-NWM","Newham"]
["GB-RDB","Redbridge"]
["GB-RIC","Richmond upon Thames"]
["GB-STN","Sutton"]
["GB-SWK","Southwark"]
["GB-TWH","Tower Hamlets"]
["GB-WFT","Waltham Forest"]
["GB-WND","Wandsworth"]
["GB-WSM","Westminster"]
["GB-LND","London, City of"]
["GD-10","Southern Grenadine Islands"]
["GE-GU","Guria"]
["GE-IM","Imereti"]
["GE-KA","K'akheti"]
["GE-KK","Kvemo Kartli"]
["GE-MM","Mtskheta-Mtianeti"]
["GE-RL","Rach'a-Lechkhumi-Kvemo Svaneti"]
["GE-SJ","Samtskhe-Javakheti"]
["GE-SK","Shida Kartli"]
["GE-SZ","Samegrelo-Zemo Svaneti"]
["GE-AB","Abkhazia"]
["GE-AJ","Ajaria"]
["GE-TB","Tbilisi"]
["GH-AA","Greater Accra"]
["GH-AF","Ahafo"]
["GH-AH","Ashanti"]
["GH-BE","Bono East"]
["GH-BO","Bono"]
["GH-OT","Oti"]
["GH-SV","Savannah"]
["GH-TV","Volta"]
["GH-UE","Upper East"]
["GH-UW","Upper West"]
["GH-WN","Western North"]
["GL-AV","Avannaata Kommunia"]
["GL-KU","Kommune Kujalleq"]
["GL-QE","Qeqqata Kommunia"]
["GL-QT","Kommune Qeqertalik"]
["GL-SM","Kommuneqarfik Sermersooq"]
["GM-L","Lower River"]
["GM-M","Central River"]
["GM-N","North Bank"]
["GM-U","Upper River"]
["GM-B","Banjul"]
["GN-C","Conakry"]
["GN-B","Boké"]
["GN-BF","Boffa"]
["GN-FR","Fria"]
["GN-GA","Gaoual"]
["GN-KN","Koundara"]
["GN-D","Kindia"]
["GN-CO","Coyah"]
["GN-DU","Dubréka"]
["GN-FO","Forécariah"]
["GN-TE","Télimélé"]
["GN-F","Faranah"]
["GN-DB","Dabola"]
["GN-DI","Dinguiraye"]
["GN-KS","Kissidougou"]
["GN-K","Kankan"]
["GN-KE","Kérouané"]
["GN-KO","Kouroussa"]
["GN-MD","Mandiana"]
["GN-SI","Siguiri"]
["GN-L","Labé"]
["GN-KB","Koubia"]
["GN-LE","Lélouma"]
["GN-ML","Mali"]
["GN-TO","Tougué"]
["GN-M","Mamou"]
["GN-DL","Dalaba"]
["GN-PI","Pita"]
["GN-N","Nzérékoré"]
["GN-BE","Beyla"]
["GN-GU","Guékédou"]
["GN-LO","Lola"]
["GN-MC","Macenta"]
["GN-YO","Yomou"]
["GQ-C","Région Continentale"]
["GQ-C","Região Continental"]
["GQ-C","Región Continental"]
["GQ-CS","Centro Sud"]
["GQ-CS","Centro Sul"]
["GQ-CS","Centro Sur"]
["GQ-KN","Kié-Ntem"]
["GQ-LI","Litoral"]
["GQ-WN","Wele-Nzas"]
["GQ-I","Région Insulaire"]
["GQ-I","Região Insular"]
["GQ-I","Región Insular"]
["GQ-AN","Annobon"]
["GQ-AN","Ano Bom"]
["GQ-AN","Annobón"]
["GQ-BN","Bioko Nord"]
["GQ-BN","Bioko Norte"]
["GQ-BS","Bioko Sud"]
["GQ-BS","Bioko Sul"]
["GQ-BS","Bioko Sur"]
["GR-69","Ágion Óros"]
["GR-A","Anatolikí Makedonía kai Thráki"]
["GR-B","Kentrikí Makedonía"]
["GR-C","Dytikí Makedonía"]
["GR-D","Ípeiros"]
["GR-E","Thessalía"]
["GR-F","Ionía Nísia"]
["GR-G","Dytikí Elláda"]
["GR-H","Stereá Elláda"]
["GR-I","Attikí"]
["GR-J","Pelopónnisos"]
["GR-K","Vóreio Aigaío"]
["GR-L","Nótio Aigaío"]
["GR-M","Kríti"]
["GT-AV","Alta Verapaz"]
["GT-BV","Baja Verapaz"]
["GT-CM","Chimaltenango"]
["GT-CQ","Chiquimula"]
["GT-ES","Escuintla"]
["GT-GU","Guatemala"]
["GT-HU","Huehuetenango"]
["GT-IZ","Izabal"]
["GT-JA","Jalapa"]
["GT-JU","Jutiapa"]
["GT-PE","Petén"]
["GT-PR","El Progreso"]
["GT-QC","Quiché"]
["GT-QZ","Quetzaltenango"]
["GT-RE","Retalhuleu"]
["GT-SA","Sacatepéquez"]
["GT-SM","San Marcos"]
["GT-SO","Sololá"]
["GT-SR","Santa Rosa"]
["GT-SU","Suchitepéquez"]
["GT-TO","Totonicapán"]
["GT-ZA","Zacapa"]
["GW-BS","Bissau"]
["GW-L","Leste"]
["GW-BA","Bafatá"]
["GW-GA","Gabú"]
["GW-N","Norte"]
["GW-BM","Biombo"]
["GW-CA","Cacheu"]
["GW-OI","Oio"]
["GW-S","Sul"]
["GW-BL","Bolama"]
["GW-QU","Quinara"]
["GW-TO","Tombali"]
["GY-BA","Barima-Waini"]
["GY-CU","Cuyuni-Mazaruni"]
["GY-DE","Demerara-Mahaica"]
["GY-EB","East Berbice-Corentyne"]
["GY-ES","Essequibo Islands-West Demerara"]
["GY-MA","Mahaica-Berbice"]
["GY-PM","Pomeroon-Supenaam"]
["GY-PT","Potaro-Siparuni"]
["GY-UD","Upper Demerara-Berbice"]
["GY-UT","Upper Takutu-Upper Essequibo"]
["HN-AT","Atlántida"]
["HN-CH","Choluteca"]
["HN-CL","Colón"]
["HN-CM","Comayagua"]
["HN-CP","Copán"]
["HN-CR","Cortés"]
["HN-EP","El Paraíso"]
["HN-FM","Francisco Morazán"]
["HN-GD","Gracias a Dios"]
["HN-IB","Islas de la Bahía"]
["HN-IN","Intibucá"]
["HN-LE","Lempira"]
["HN-OC","Ocotepeque"]
["HN-OL","Olancho"]
["HN-SB","Santa Bárbara"]
["HN-VA","Valle"]
["HN-YO","Yoro"]
["HR-01","Zagrebačka županija"]
["HR-02","Krapinsko-zagorska županija"]
["HR-03","Sisačko-moslavačka županija"]
["HR-04","Karlovačka županija"]
["HR-05","Varaždinska županija"]
["HR-06","Koprivničko-križevačka županija"]
["HR-07","Bjelovarsko-bilogorska županija"]
["HR-08","Primorsko-goranska županija"]
["HR-09","Ličko-senjska županija"]
["HR-10","Virovitičko-podravska županija"]
["HR-11","Požeško-slavonska županija"]
["HR-12","Brodsko-posavska županija"]
["HR-13","Zadarska županija"]
["HR-14","Osječko-baranjska županija"]
["HR-15","Šibensko-kninska županija"]
["HR-16","Vukovarsko-srijemska županija"]
["HR-17","Splitsko-dalmatinska županija"]
["HR-18","Istarska županija"]
["HR-19","Dubrovačko-neretvanska županija"]
["HR-20","Međimurska županija"]
["HR-21","Grad Zagreb"]
["HT-AR","Artibonite"]
["HT-AR","Latibonit"]
["HT-CE","Sant"]
["HT-GA","Grande’Anse"]
["HT-GA","Grandans"]
["HT-ND","Nò"]
["HT-NE","Nord-Est"]
["HT-NE","Nòdès"]
["HT-NI","Nippes"]
["HT-NI","Nip"]
["HT-NO","Nòdwès"]
["HT-OU","Lwès"]
["HT-SD","Sid"]
["HT-SE","Sud-Est"]
["HT-SE","Sidès"]
["HU-BA","Baranya"]
["HU-BE","Békés"]
["HU-BK","Bács-Kiskun"]
["HU-BZ","Borsod-Abaúj-Zemplén"]
["HU-CS","Csongrád"]
["HU-FE","Fejér"]
["HU-GS","Győr-Moson-Sopron"]
["HU-HB","Hajdú-Bihar"]
["HU-HE","Heves"]
["HU-JN","Jász-Nagykun-Szolnok"]
["HU-KE","Komárom-Esztergom"]
["HU-NO","Nógrád"]
["HU-PE","Pest"]
["HU-SO","Somogy"]
["HU-SZ","Szabolcs-Szatmár-Bereg"]
["HU-TO","Tolna"]
["HU-VA","Vas"]
["HU-VE","Veszprém"]
["HU-ZA","Zala"]
["HU-BC","Békéscsaba"]
["HU-DE","Debrecen"]
["HU-DU","Dunaújváros"]
["HU-EG","Eger"]
["HU-ER","Érd"]
["HU-GY","Győr"]
["HU-HV","Hódmezővásárhely"]
["HU-KM","Kecskemét"]
["HU-KV","Kaposvár"]
["HU-MI","Miskolc"]
["HU-NK","Nagykanizsa"]
["HU-NY","Nyíregyháza"]
["HU-PS","Pécs"]
["HU-SD","Szeged"]
["HU-SF","Székesfehérvár"]
["HU-SH","Szombathely"]
["HU-SK","Szolnok"]
["HU-SN","Sopron"]
["HU-SS","Szekszárd"]
["HU-ST","Salgótarján"]
["HU-TB","Tatabánya"]
["HU-ZE","Zalaegerszeg"]
["HU-BU","Budapest"]
["ID-JW","Jawa"]
["ID-BT","Banten"]
["ID-JB","Jawa Barat"]
["ID-JI","Jawa Timur"]
["ID-JT","Jawa Tengah"]
["ID-YO","Yogyakarta"]
["ID-JK","Jakarta Raya"]
["ID-KA","Kalimantan"]
["ID-KB","Kalimantan Barat"]
["ID-KI","Kalimantan Timur"]
["ID-KS","Kalimantan Selatan"]
["ID-KT","Kalimantan Tengah"]
["ID-KU","Kalimantan Utara"]
["ID-ML","Maluku"]
["ID-MU","Maluku Utara"]
["ID-NU","Nusa Tenggara"]
["ID-BA","Bali"]
["ID-NB","Nusa Tenggara Barat"]
["ID-NT","Nusa Tenggara Timur"]
["ID-PP","Papua"]
["ID-PB","Papua Barat"]
["ID-SL","Sulawesi"]
["ID-GO","Gorontalo"]
["ID-SA","Sulawesi Utara"]
["ID-SG","Sulawesi Tenggara"]
["ID-SN","Sulawesi Selatan"]
["ID-SR","Sulawesi Barat"]
["ID-ST","Sulawesi Tengah"]
["ID-SM","Sumatera"]
["ID-AC","Aceh"]
["ID-BB","Kepulauan Bangka Belitung"]
["ID-BE","Bengkulu"]
["ID-JA","Jambi"]
["ID-KR","Kepulauan Riau"]
["ID-LA","Lampung"]
["ID-RI","Riau"]
["ID-SB","Sumatera Barat"]
["ID-SS","Sumatera Selatan"]
["ID-SU","Sumatera Utara"]
["IE-C","Connaught"]
["IE-C","Connacht"]
["IE-G","Galway"]
["IE-G","Gaillimh"]
["IE-LM","Leitrim"]
["IE-LM","Liatroim"]
["IE-MO","Mayo"]
["IE-MO","Maigh Eo"]
["IE-RN","Roscommon"]
["IE-RN","Ros Comáin"]
["IE-SO","Sligo"]
["IE-SO","Sligeach"]
["IE-L","Leinster"]
["IE-L","Laighin"]
["IE-CW","Carlow"]
["IE-CW","Ceatharlach"]
["IE-D","Dublin"]
["IE-D","Baile Átha Cliath"]
["IE-KE","Kildare"]
["IE-KE","Cill Dara"]
["IE-KK","Kilkenny"]
["IE-KK","Cill Chainnigh"]
["IE-LD","Longford"]
["IE-LD","An Longfort"]
["IE-LH","Louth"]
["IE-LH","Lú"]
["IE-LS","Laois"]
["IE-MH","Meath"]
["IE-MH","An Mhí"]
["IE-OY","Offaly"]
["IE-OY","Uíbh Fhailí"]
["IE-WH","Westmeath"]
["IE-WH","An Iarmhí"]
["IE-WW","Wicklow"]
["IE-WW","Cill Mhantáin"]
["IE-WX","Wexford"]
["IE-WX","Loch Garman"]
["IE-M","Munster"]
["IE-M","An Mhumhain"]
["IE-CE","Clare"]
["IE-CE","An Clár"]
["IE-CO","Cork"]
["IE-CO","Corcaigh"]
["IE-KY","Kerry"]
["IE-KY","Ciarraí"]
["IE-LK","Limerick"]
["IE-LK","Luimneach"]
["IE-TA","Tipperary"]
["IE-TA","Tiobraid Árann"]
["IE-WD","Waterford"]
["IE-WD","Port Láirge"]
["IE-U","Ulster"]
["IE-U","Ulaidh"]
["IE-CN","Cavan"]
["IE-CN","An Cabhán"]
["IE-DL","Donegal"]
["IE-DL","Dún na nGall"]
["IE-MN","Monaghan"]
["IE-MN","Muineachán"]
["IL-D","HaDarom"]
["IL-HA","Ḩayfā"]
["IL-HA","H̱efa"]
["IL-JM","Al Quds"]
["IL-JM","Yerushalayim"]
["IL-M","HaMerkaz"]
["IL-TA","Tall Abīb"]
["IL-TA","Tel Aviv"]
["IL-Z","Ash Shamālī"]
["IL-Z","HaTsafon"]
["IN-AN","Andaman and Nicobar Islands"]
["IN-CH","Chandīgarh"]
["IN-DH","Dādra and Nagar Haveli and Damān and Diu"]
["IN-DL","Delhi"]
["IN-JK","Jammu and Kashmīr"]
["IN-LA","Ladākh"]
["IN-LD","Lakshadweep"]
["IN-PY","Puducherry"]
["IN-AP","Andhra Pradesh"]
["IN-AR","Arunāchal Pradesh"]
["IN-AS","Assam"]
["IN-BR","Bihār"]
["IN-CT","Chhattīsgarh"]
["IN-GA","Goa"]
["IN-GJ","Gujarāt"]
["IN-HP","Himāchal Pradesh"]
["IN-HR","Haryāna"]
["IN-JH","Jhārkhand"]
["IN-KA","Karnātaka"]
["IN-KL","Kerala"]
["IN-MH","Mahārāshtra"]
["IN-ML","Meghālaya"]
["IN-MN","Manipur"]
["IN-MP","Madhya Pradesh"]
["IN-MZ","Mizoram"]
["IN-NL","Nāgāland"]
["IN-OR","Odisha"]
["IN-PB","Punjab"]
["IN-RJ","Rājasthān"]
["IN-SK","Sikkim"]
["IN-TG","Telangāna"]
["IN-TN","Tamil Nādu"]
["IN-TR","Tripura"]
["IN-UP","Uttar Pradesh"]
["IN-UT","Uttarākhand"]
["IN-WB","West Bengal"]
["IQ-AN","Al Anbār"]
["IQ-AR","Arbīl"]
["IQ-AR","Hewlêr"]
["IQ-BA","Al Başrah"]
["IQ-BB","Bābil"]
["IQ-BG","Baghdād"]
["IQ-DA","Dahūk"]
["IQ-DA","Dihok"]
["IQ-DI","Diyālá"]
["IQ-DQ","Dhī Qār"]
["IQ-KA","Karbalā’"]
["IQ-KI","Kirkūk"]
["IQ-MA","Maysān"]
["IQ-MU","Al Muthanná"]
["IQ-NA","An Najaf"]
["IQ-NI","Nīnawá"]
["IQ-QA","Al Qādisīyah"]
["IQ-SD","Şalāḩ ad Dīn"]
["IQ-SU","As Sulaymānīyah"]
["IQ-SU","Slêmanî"]
["IQ-WA","Wāsiţ"]
["IR-01","Āz̄ārbāyjān-e Shārqī"]
["IR-02","Āz̄ārbāyjān-e Ghārbī"]
["IR-03","Ardabīl"]
["IR-04","Eşfahān"]
["IR-05","Īlām"]
["IR-06","Būshehr"]
["IR-07","Tehrān"]
["IR-08","Chahār Maḩāl va Bakhtīārī"]
["IR-10","Khūzestān"]
["IR-11","Zanjān"]
["IR-12","Semnān"]
["IR-13","Sīstān va Balūchestān"]
["IR-14","Fārs"]
["IR-15","Kermān"]
["IR-16","Kordestān"]
["IR-17","Kermānshāh"]
["IR-18","Kohgīlūyeh va Bowyer Aḩmad"]
["IR-19","Gīlān"]
["IR-20","Lorestān"]
["IR-21","Māzandarān"]
["IR-22","Markazī"]
["IR-23","Hormozgān"]
["IR-24","Hamadān"]
["IR-25","Yazd"]
["IR-26","Qom"]
["IR-27","Golestān"]
["IR-28","Qazvīn"]
["IR-29","Khorāsān-e Jonūbī"]
["IR-30","Khorāsān-e Raẕavī"]
["IR-31","Khorāsān-e Shomālī"]
["IR-32","Alborz"]
["IS-1","Höfuðborgarsvæði"]
["IS-2","Suðurnes"]
["IS-3","Vesturland"]
["IS-4","Vestfirðir"]
["IS-5","Norðurland vestra"]
["IS-6","Norðurland eystra"]
["IS-7","Austurland"]
["IS-8","Suðurland"]
["IT-21","Piemonte"]
["IT-AL","Alessandria"]
["IT-AT","Asti"]
["IT-BI","Biella"]
["IT-CN","Cuneo"]
["IT-NO","Novara"]
["IT-VB","Verbano-Cusio-Ossola"]
["IT-VC","Vercelli"]
["IT-TO","Torino"]
["IT-25","Lombardia"]
["IT-BG","Bergamo"]
["IT-BS","Brescia"]
["IT-CO","Como"]
["IT-CR","Cremona"]
["IT-LC","Lecco"]
["IT-LO","Lodi"]
["IT-MB","Monza e Brianza"]
["IT-MN","Mantova"]
["IT-PV","Pavia"]
["IT-SO","Sondrio"]
["IT-VA","Varese"]
["IT-MI","Milano"]
["IT-34","Veneto"]
["IT-BL","Belluno"]
["IT-PD","Padova"]
["IT-RO","Rovigo"]
["IT-TV","Treviso"]
["IT-VI","Vicenza"]
["IT-VR","Verona"]
["IT-VE","Venezia"]
["IT-42","Liguria"]
["IT-IM","Imperia"]
["IT-SP","La Spezia"]
["IT-SV","Savona"]
["IT-GE","Genova"]
["IT-45","Emilia-Romagna"]
["IT-FC","Forlì-Cesena"]
["IT-FE","Ferrara"]
["IT-MO","Modena"]
["IT-PC","Piacenza"]
["IT-PR","Parma"]
["IT-RA","Ravenna"]
["IT-RE","Reggio Emilia"]
["IT-RN","Rimini"]
["IT-BO","Bologna"]
["IT-52","Toscana"]
["IT-AR","Arezzo"]
["IT-GR","Grosseto"]
["IT-LI","Livorno"]
["IT-LU","Lucca"]
["IT-MS","Massa-Carrara"]
["IT-PI","Pisa"]
["IT-PO","Prato"]
["IT-PT","Pistoia"]
["IT-SI","Siena"]
["IT-FI","Firenze"]
["IT-55","Umbria"]
["IT-PG","Perugia"]
["IT-TR","Terni"]
["IT-57","Marche"]
["IT-AN","Ancona"]
["IT-AP","Ascoli Piceno"]
["IT-FM","Fermo"]
["IT-MC","Macerata"]
["IT-PU","Pesaro e Urbino"]
["IT-62","Lazio"]
["IT-FR","Frosinone"]
["IT-LT","Latina"]
["IT-RI","Rieti"]
["IT-VT","Viterbo"]
["IT-RM","Roma"]
["IT-65","Abruzzo"]
["IT-AQ","L'Aquila"]
["IT-CH","Chieti"]
["IT-PE","Pescara"]
["IT-TE","Teramo"]
["IT-67","Molise"]
["IT-CB","Campobasso"]
["IT-IS","Isernia"]
["IT-72","Campania"]
["IT-AV","Avellino"]
["IT-BN","Benevento"]
["IT-CE","Caserta"]
["IT-SA","Salerno"]
["IT-NA","Napoli"]
["IT-75","Puglia"]
["IT-BR","Brindisi"]
["IT-BT","Barletta-Andria-Trani"]
["IT-FG","Foggia"]
["IT-LE","Lecce"]
["IT-TA","Taranto"]
["IT-BA","Bari"]
["IT-77","Basilicata"]
["IT-MT","Matera"]
["IT-PZ","Potenza"]
["IT-78","Calabria"]
["IT-CS","Cosenza"]
["IT-CZ","Catanzaro"]
["IT-KR","Crotone"]
["IT-VV","Vibo Valentia"]
["IT-RC","Reggio Calabria"]
["IT-23","Val d'Aoste"]
["IT-23","Valle d'Aosta"]
["IT-32","Trentino-Südtirol"]
["IT-32","Trentino-Alto Adige"]
["IT-BZ","Bozen"]
["IT-BZ","Bolzano"]
["IT-TN","Trento"]
["IT-36","Friuli Venezia Giulia"]
["IT-82","Sicilia"]
["IT-AG","Agrigento"]
["IT-CL","Caltanissetta"]
["IT-EN","Enna"]
["IT-RG","Ragusa"]
["IT-SR","Siracusa"]
["IT-TP","Trapani"]
["IT-CT","Catania"]
["IT-ME","Messina"]
["IT-PA","Palermo"]
["IT-88","Sardegna"]
["IT-NU","Nuoro"]
["IT-OR","Oristano"]
["IT-SD","Sud Sardegna"]
["IT-SS","Sassari"]
["IT-CA","Cagliari"]
["JM-01","Kingston"]
["JM-04","Portland"]
["JM-06","Saint Ann"]
["JM-07","Trelawny"]
["JM-09","Hanover"]
["JM-10","Westmoreland"]
["JM-11","Saint Elizabeth"]
["JM-13","Clarendon"]
["JM-14","Saint Catherine"]
["JO-AJ","‘Ajlūn"]
["JO-AM","Al ‘A̅şimah"]
["JO-AQ","Al ‘Aqabah"]
["JO-AT","Aţ Ţafīlah"]
["JO-AZ","Az Zarqā’"]
["JO-BA","Al Balqā’"]
["JO-IR","Irbid"]
["JO-JA","Jarash"]
["JO-KA","Al Karak"]
["JO-MA","Al Mafraq"]
["JO-MD","Mādabā"]
["JO-MN","Ma‘ān"]
["JP-01","Hokkaido"]
["JP-01","Hokkaidô"]
["JP-02","Aomori"]
["JP-03","Iwate"]
["JP-04","Miyagi"]
["JP-05","Akita"]
["JP-06","Yamagata"]
["JP-07","Fukushima"]
["JP-07","Hukusima"]
["JP-08","Ibaraki"]
["JP-09","Tochigi"]
["JP-09","Totigi"]
["JP-10","Gunma"]
["JP-11","Saitama"]
["JP-12","Chiba"]
["JP-12","Tiba"]
["JP-13","Tokyo"]
["JP-13","Tôkyô"]
["JP-14","Kanagawa"]
["JP-15","Niigata"]
["JP-16","Toyama"]
["JP-17","Ishikawa"]
["JP-17","Isikawa"]
["JP-18","Fukui"]
["JP-18","Hukui"]
["JP-19","Yamanashi"]
["JP-19","Yamanasi"]
["JP-20","Nagano"]
["JP-21","Gifu"]
["JP-21","Gihu"]
["JP-22","Shizuoka"]
["JP-22","Sizuoka"]
["JP-23","Aichi"]
["JP-23","Aiti"]
["JP-24","Mie"]
["JP-25","Shiga"]
["JP-25","Siga"]
["JP-26","Kyoto"]
["JP-26","Kyôto"]
["JP-27","Osaka"]
["JP-27","Ôsaka"]
["JP-28","Hyogo"]
["JP-28","Hyôgo"]
["JP-29","Nara"]
["JP-30","Wakayama"]
["JP-31","Tottori"]
["JP-32","Shimane"]
["JP-32","Simane"]
["JP-33","Okayama"]
["JP-34","Hiroshima"]
["JP-34","Hirosima"]
["JP-35","Yamaguchi"]
["JP-35","Yamaguti"]
["JP-36","Tokushima"]
["JP-36","Tokusima"]
["JP-37","Kagawa"]
["JP-38","Ehime"]
["JP-39","Kochi"]
["JP-39","Kôti"]
["JP-40","Fukuoka"]
["JP-40","Hukuoka"]
["JP-41","Saga"]
["JP-42","Nagasaki"]
["JP-43","Kumamoto"]
["JP-44","Oita"]
["JP-44","Ôita"]
["JP-45","Miyazaki"]
["JP-46","Kagoshima"]
["JP-46","Kagosima"]
["JP-47","Okinawa"]
["KE-01","Baringo"]
["KE-02","Bomet"]
["KE-03","Bungoma"]
["KE-04","Busia"]
["KE-05","Elgeyo/Marakwet"]
["KE-06","Embu"]
["KE-07","Garissa"]
["KE-08","Homa Bay"]
["KE-09","Isiolo"]
["KE-10","Kajiado"]
["KE-11","Kakamega"]
["KE-12","Kericho"]
["KE-13","Kiambu"]
["KE-14","Kilifi"]
["KE-15","Kirinyaga"]
["KE-16","Kisii"]
["KE-17","Kisumu"]
["KE-18","Kitui"]
["KE-19","Kwale"]
["KE-20","Laikipia"]
["KE-21","Lamu"]
["KE-22","Machakos"]
["KE-23","Makueni"]
["KE-24","Mandera"]
["KE-25","Marsabit"]
["KE-26","Meru"]
["KE-27","Migori"]
["KE-28","Mombasa"]
["KE-29","Murang'a"]
["KE-30","Nairobi City"]
["KE-31","Nakuru"]
["KE-32","Nandi"]
["KE-33","Narok"]
["KE-34","Nyamira"]
["KE-35","Nyandarua"]
["KE-36","Nyeri"]
["KE-37","Samburu"]
["KE-38","Siaya"]
["KE-39","Taita/Taveta"]
["KE-40","Tana River"]
["KE-41","Tharaka-Nithi"]
["KE-42","Trans Nzoia"]
["KE-43","Turkana"]
["KE-44","Uasin Gishu"]
["KE-45","Vihiga"]
["KE-46","Wajir"]
["KE-47","West Pokot"]
["KG-GB","Bishkek"]
["KG-GB","Gorod Biškek"]
["KG-GB","Gorod Bishkek"]
["KG-GO","Osh"]
["KG-GO","Gorod Osh"]
["KG-GO","Gorod Oš"]
["KG-B","Batken"]
["KG-B","Batkenskaya oblast'"]
["KG-B","Batkenskaja oblast'"]
["KG-C","Chüy"]
["KG-C","Čujskaja oblast'"]
["KG-C","Chuyskaya oblast'"]
["KG-J","Jalal-Abad"]
["KG-J","Džalal-Abadskaja oblast'"]
["KG-J","Dzhalal-Abadskaya oblast'"]
["KG-N","Naryn"]
["KG-N","Narynskaja oblast'"]
["KG-N","Narynskaya oblast'"]
["KG-O","Ošskaja oblast'"]
["KG-O","Oshskaya oblast'"]
["KG-T","Talas"]
["KG-T","Talasskaja oblast'"]
["KG-T","Talasskaya oblast'"]
["KG-Y","Ysyk-Köl"]
["KG-Y","Issyk-Kul'skaya oblast'"]
["KG-Y","Issyk-Kul'skaja oblast'"]
["KH-12","Phnum Pénh"]
["KH-12","Phnom Penh"]
["KH-1","Banteay Mean Chey"]
["KH-1","Bântéay Méanchey"]
["KH-10","Krâchéh"]
["KH-10","Kracheh"]
["KH-11","Môndól Kiri"]
["KH-11","Mondol Kiri"]
["KH-13","Preăh Vihéar"]
["KH-13","Preah Vihear"]
["KH-14","Prey Vêng"]
["KH-14","Prey Veaeng"]
["KH-15","Poŭthĭsăt"]
["KH-15","Pousaat"]
["KH-16","Rotanak Kiri"]
["KH-16","Rôtânôkiri"]
["KH-17","Siem Reab"]
["KH-17","Siĕmréab"]
["KH-18","Preăh Sihanouk"]
["KH-18","Preah Sihanouk"]
["KH-19","Stoĕng Trêng"]
["KH-19","Stueng Traeng"]
["KH-2","Baat Dambang"]
["KH-2","Bătdâmbâng"]
["KH-20","Svay Riĕng"]
["KH-20","Svaay Rieng"]
["KH-21","Taakaev"]
["KH-21","Takêv"]
["KH-22","Ŏtdâr Méanchey"]
["KH-22","Otdar Mean Chey"]
["KH-23","Kaeb"]
["KH-23","Kêb"]
["KH-24","Pailĭn"]
["KH-24","Pailin"]
["KH-25","Tbong Khmum"]
["KH-25","Tbong Khmŭm"]
["KH-3","Kampong Chaam"]
["KH-3","Kâmpóng Cham"]
["KH-4","Kampong Chhnang"]
["KH-4","Kâmpóng Chhnăng"]
["KH-5","Kampong Spueu"]
["KH-5","Kâmpóng Spœ"]
["KH-6","Kâmpóng Thum"]
["KH-6","Kampong Thum"]
["KH-7","Kampot"]
["KH-7","Kâmpôt"]
["KH-8","Kandaal"]
["KH-8","Kândal"]
["KH-9","Kaoh Kong"]
["KH-9","Kaôh Kŏng"]
["KI-G","Gilbert Islands"]
["KI-L","Line Islands"]
["KI-P","Phoenix Islands"]
["KM-A","Ndzuwani"]
["KM-A","Anjwān"]
["KM-A","Andjouân"]
["KM-A","Anjouan"]
["KM-G","Ngazidja"]
["KM-G","Anjazījah"]
["KM-G","Andjazîdja"]
["KM-G","Grande Comore"]
["KM-M","Mwali"]
["KM-M","Mūhīlī"]
["KM-M","Moûhîlî"]
["KM-M","Mohéli"]
["KN-K","Saint Kitts"]
["KN-01","Christ Church Nichola Town"]
["KN-02","Saint Anne Sandy Point"]
["KN-03","Saint George Basseterre"]
["KN-06","Saint John Capisterre"]
["KN-08","Saint Mary Cayon"]
["KN-09","Saint Paul Capisterre"]
["KN-11","Saint Peter Basseterre"]
["KN-13","Saint Thomas Middle Island"]
["KN-15","Trinity Palmetto Point"]
["KN-N","Nevis"]
["KN-04","Saint George Gingerland"]
["KN-05","Saint James Windward"]
["KN-07","Saint John Figtree"]
["KN-10","Saint Paul Charlestown"]
["KN-12","Saint Thomas Lowland"]
["KP-13","Raseon"]
["KP-13","Rasǒn"]
["KP-02","Phyeongannamto"]
["KP-02","P'yǒngan-namdo"]
["KP-03","P'yǒngan-bukto"]
["KP-03","Phyeonganpukto"]
["KP-04","Chagang-do"]
["KP-04","Jakangto"]
["KP-05","Hwanghae-namdo"]
["KP-05","Hwanghainamto"]
["KP-06","Hwanghae-bukto"]
["KP-06","Hwanghaipukto"]
["KP-07","Kangweonto"]
["KP-07","Kangwǒn-do"]
["KP-08","Hamgyǒng-namdo"]
["KP-08","Hamkyeongnamto"]
["KP-09","Hamkyeongpukto"]
["KP-09","Hamgyǒng-bukto"]
["KP-10","Ryangkangto"]
["KP-10","Ryanggang-do"]
["KP-01","P'yǒngyang"]
["KP-01","Phyeongyang"]
["KP-14","Namp’o"]
["KP-14","Nampho"]
["KR-11","Seoul-teukbyeolsi"]
["KR-26","Busan-gwangyeoksi"]
["KR-27","Daegu-gwangyeoksi"]
["KR-28","Incheon-gwangyeoksi"]
["KR-29","Gwangju-gwangyeoksi"]
["KR-30","Daejeon-gwangyeoksi"]
["KR-31","Ulsan-gwangyeoksi"]
["KR-41","Gyeonggi-do"]
["KR-42","Gangwon-do"]
["KR-43","Chungcheongbuk-do"]
["KR-44","Chungcheongnam-do"]
["KR-45","Jeollabuk-do"]
["KR-46","Jeollanam-do"]
["KR-47","Gyeongsangbuk-do"]
["KR-48","Gyeongsangnam-do"]
["KR-49","Jeju-teukbyeoljachido"]
["KR-50","Sejong"]
["KW-AH","Al Aḩmadī"]
["KW-FA","Al Farwānīyah"]
["KW-HA","Ḩawallī"]
["KW-JA","Al Jahrā’"]
["KW-MU","Mubārak al Kabīr"]
["KZ-AKM","Aqmola oblysy"]
["KZ-AKM","Akmolinskaja oblast'"]
["KZ-AKM","Akmolinskaya oblast'"]
["KZ-AKT","Aqtöbe oblysy"]
["KZ-AKT","Aktjubinskaja oblast'"]
["KZ-AKT","Aktyubinskaya oblast'"]
["KZ-ALM","Almaty oblysy"]
["KZ-ALM","Almatinskaja oblast'"]
["KZ-ALM","Almatinskaya oblast'"]
["KZ-ATY","Atyraū oblysy"]
["KZ-ATY","Atyrauskaja oblast'"]
["KZ-ATY","Atyrauskaya oblast'"]
["KZ-KAR","Qaraghandy oblysy"]
["KZ-KAR","Karagandinskaja oblast'"]
["KZ-KAR","Karagandinskaya oblast'"]
["KZ-KUS","Qostanay oblysy"]
["KZ-KUS","Kostanayskaya oblast'"]
["KZ-KUS","Kostanajskaja oblast'"]
["KZ-KZY","Qyzylorda oblysy"]
["KZ-KZY","Kyzylordinskaja oblast'"]
["KZ-KZY","Kyzylordinskaya oblast'"]
["KZ-MAN","Mangghystaū oblysy"]
["KZ-MAN","Mangistauskaya oblast'"]
["KZ-MAN","Mangystauskaja oblast'"]
["KZ-PAV","Pavlodar oblysy"]
["KZ-PAV","Pavlodarskaja oblast'"]
["KZ-PAV","Pavlodarskaya oblast'"]
["KZ-SEV","Soltüstik Qazaqstan oblysy"]
["KZ-SEV","Severo-Kazakhstanskaya oblast'"]
["KZ-SEV","Severo-Kazahstanskaja oblast'"]
["KZ-VOS","Shyghys Qazaqstan oblysy"]
["KZ-VOS","Vostočno-Kazahstanskaja oblast'"]
["KZ-VOS","Vostochno-Kazakhstanskaya oblast'"]
["KZ-YUZ","Türkistan oblysy"]
["KZ-YUZ","Turkestanskaja oblast'"]
["KZ-YUZ","Turkestankaya oblast'"]
["KZ-ZAP","Batys Qazaqstan oblysy"]
["KZ-ZAP","Zapadno-Kazahstanskaja oblast'"]
["KZ-ZAP","Zapadno-Kazakhstanskaya oblast'"]
["KZ-ZHA","Zhambyl oblysy"]
["KZ-ZHA","Žambylskaja oblast'"]
["KZ-ZHA","Zhambylskaya oblast'"]
["KZ-ALA","Almaty"]
["KZ-AST","Astana"]
["KZ-BAY","Bayqongyr"]
["KZ-BAY","Bajkonyr"]
["KZ-BAY","Baykonyr"]
["KZ-SHY","Shymkent"]
["KZ-SHY","Šimkent"]
["LA-VT","Viangchan"]
["LA-AT","Attapu"]
["LA-BK","Bokèo"]
["LA-BL","Bolikhamxai"]
["LA-CH","Champasak"]
["LA-HO","Houaphan"]
["LA-KH","Khammouan"]
["LA-LM","Louang Namtha"]
["LA-LP","Louangphabang"]
["LA-OU","Oudômxai"]
["LA-PH","Phôngsali"]
["LA-SL","Salavan"]
["LA-SV","Savannakhét"]
["LA-XA","Xaignabouli"]
["LA-XE","Xékong"]
["LA-XI","Xiangkhouang"]
["LA-XS","Xaisômboun"]
["LB-AK","‘Akkār"]
["LB-AK","Aakkâr"]
["LB-AS","Ash Shimāl"]
["LB-AS","Liban-Nord"]
["LB-BA","Bayrūt"]
["LB-BA","Beyrouth"]
["LB-BH","B‘alabak-Al Hirmil"]
["LB-BH","Baalbek-Hermel"]
["LB-BI","Béqaa"]
["LB-BI","Al Biqā‘"]
["LB-JA","Al Janūb"]
["LB-JA","Liban-Sud"]
["LB-JL","Mont-Liban"]
["LB-JL","Jabal Lubnān"]
["LB-NA","Nabatîyé"]
["LB-NA","An Nabaţīyah"]
["LC-01","Anse la Raye"]
["LC-02","Castries"]
["LC-03","Choiseul"]
["LC-05","Dennery"]
["LC-06","Gros Islet"]
["LC-07","Laborie"]
["LC-08","Micoud"]
["LC-10","Soufrière"]
["LC-11","Vieux Fort"]
["LC-12","Canaries"]
["LI-01","Balzers"]
["LI-02","Eschen"]
["LI-03","Gamprin"]
["LI-04","Mauren"]
["LI-05","Planken"]
["LI-06","Ruggell"]
["LI-07","Schaan"]
["LI-08","Schellenberg"]
["LI-09","Triesen"]
["LI-10","Triesenberg"]
["LI-11","Vaduz"]
["LK-1","Western Province"]
["LK-1","Basnāhira paḷāta"]
["LK-1","Mel mākāṇam"]
["LK-11","Colombo"]
["LK-11","Kŏḷamba"]
["LK-11","Kŏl̮umpu"]
["LK-12","Gampaha"]
["LK-12","Kampahā"]
["LK-13","Kalutara"]
["LK-13","Kaḷutara"]
["LK-13","Kaḷuttuṟai"]
["LK-2","Central Province"]
["LK-2","Madhyama paḷāta"]
["LK-2","Mattiya mākāṇam"]
["LK-21","Kandy"]
["LK-21","Mahanuvara"]
["LK-21","Kaṇṭi"]
["LK-22","Matale"]
["LK-22","Mātale"]
["LK-22","Māttaḷai"]
["LK-23","Nuwara Eliya"]
["LK-23","Nuvara Ĕliya"]
["LK-23","Nuvarĕliyā"]
["LK-3","Southern Province"]
["LK-3","Dakuṇu paḷāta"]
["LK-3","Tĕṉ mākāṇam"]
["LK-31","Galle"]
["LK-31","Gālla"]
["LK-31","Kāli"]
["LK-32","Matara"]
["LK-32","Mātara"]
["LK-32","Māttaṛai"]
["LK-33","Hambantota"]
["LK-33","Hambantŏṭa"]
["LK-33","Ampāntōṭṭai"]
["LK-4","Northern Province"]
["LK-4","Uturu paḷāta"]
["LK-4","Vaṭakku mākāṇam"]
["LK-41","Jaffna"]
["LK-41","Yāpanaya"]
["LK-41","Yāl̮ppāṇam"]
["LK-42","Kilinochchi"]
["LK-42","Kilinŏchchi"]
["LK-42","Kiḷinochchi"]
["LK-43","Mannar"]
["LK-43","Mannārama"]
["LK-43","Maṉṉār"]
["LK-44","Vavuniya"]
["LK-44","Vavuniyāva"]
["LK-44","Vavuṉiyā"]
["LK-45","Mullaittivu"]
["LK-45","Mulativ"]
["LK-45","Mullaittīvu"]
["LK-5","Eastern Province"]
["LK-5","Næ̆gĕnahira paḷāta"]
["LK-5","Kil̮akku mākāṇam"]
["LK-51","Batticaloa"]
["LK-51","Maḍakalapuva"]
["LK-51","Maṭṭakkaḷappu"]
["LK-52","Ampara"]
["LK-52","Ampāra"]
["LK-52","Ampāṟai"]
["LK-53","Trincomalee"]
["LK-53","Trikuṇāmalaya"]
["LK-53","Tirukŏṇamalai"]
["LK-6","North Western Province"]
["LK-6","Vayamba paḷāta"]
["LK-6","Vaṭamel mākāṇam"]
["LK-61","Kurunegala"]
["LK-61","Kuruṇægala"]
["LK-61","Kurunākal"]
["LK-62","Puttalam"]
["LK-62","Puttalama"]
["LK-62","Puttaḷam"]
["LK-7","North Central Province"]
["LK-7","Uturumæ̆da paḷāta"]
["LK-7","Vaṭamattiya mākāṇam"]
["LK-71","Anuradhapura"]
["LK-71","Anurādhapura"]
["LK-71","Anurātapuram"]
["LK-72","Polonnaruwa"]
["LK-72","Pŏḷŏnnaruva"]
["LK-72","Pŏlaṉṉaṛuvai"]
["LK-8","Uva Province"]
["LK-8","Ūva paḷāta"]
["LK-8","Ūvā mākāṇam"]
["LK-81","Badulla"]
["LK-81","Patuḷai"]
["LK-82","Monaragala"]
["LK-82","Mŏṇarāgala"]
["LK-82","Mŏṉarākalai"]
["LK-9","Sabaragamuwa Province"]
["LK-9","Sabaragamuva paḷāta"]
["LK-9","Chappirakamuva mākāṇam"]
["LK-91","Ratnapura"]
["LK-91","Irattiṉapuri"]
["LK-92","Kegalla"]
["LK-92","Kægalla"]
["LK-92","Kekālai"]
["LR-BG","Bong"]
["LR-BM","Bomi"]
["LR-CM","Grand Cape Mount"]
["LR-GB","Grand Bassa"]
["LR-GG","Grand Gedeh"]
["LR-GK","Grand Kru"]
["LR-GP","Gbarpolu"]
["LR-LO","Lofa"]
["LR-MG","Margibi"]
["LR-MO","Montserrado"]
["LR-MY","Maryland"]
["LR-NI","Nimba"]
["LR-RG","River Gee"]
["LR-RI","River Cess"]
["LR-SI","Sinoe"]
["LS-A","Maseru"]
["LS-B","Butha-Buthe"]
["LS-C","Leribe"]
["LS-D","Berea"]
["LS-E","Mafeteng"]
["LS-F","Mohale's Hoek"]
["LS-G","Quthing"]
["LS-H","Qacha's Nek"]
["LS-J","Mokhotlong"]
["LS-K","Thaba-Tseka"]
["LT-AL","Alytaus apskritis"]
["LT-KL","Klaipėdos apskritis"]
["LT-KU","Kauno apskritis"]
["LT-MR","Marijampolės apskritis"]
["LT-PN","Panevėžio apskritis"]
["LT-SA","Šiaulių apskritis"]
["LT-TA","Tauragės apskritis"]
["LT-TE","Telšių apskritis"]
["LT-UT","Utenos apskritis"]
["LT-VL","Vilniaus apskritis"]
["LT-02","Alytaus miestas"]
["LT-15","Kauno miestas"]
["LT-20","Klaipėdos miestas"]
["LT-31","Palangos miestas"]
["LT-32","Panevėžio miestas"]
["LT-43","Šiaulių miestas"]
["LT-57","Vilniaus miestas"]
["LT-01","Akmenė"]
["LT-03","Alytus"]
["LT-04","Anykščiai"]
["LT-06","Biržai"]
["LT-09","Ignalina"]
["LT-10","Jonava"]
["LT-11","Joniškis"]
["LT-12","Jurbarkas"]
["LT-13","Kaišiadorys"]
["LT-16","Kaunas"]
["LT-18","Kėdainiai"]
["LT-19","Kelmė"]
["LT-21","Klaipėda"]
["LT-22","Kretinga"]
["LT-23","Kupiškis"]
["LT-24","Lazdijai"]
["LT-25","Marijampolė"]
["LT-26","Mažeikiai"]
["LT-27","Molėtai"]
["LT-30","Pakruojis"]
["LT-33","Panevėžys"]
["LT-34","Pasvalys"]
["LT-35","Plungė"]
["LT-36","Prienai"]
["LT-37","Radviliškis"]
["LT-38","Raseiniai"]
["LT-40","Rokiškis"]
["LT-41","Šakiai"]
["LT-42","Šalčininkai"]
["LT-44","Šiauliai"]
["LT-45","Šilalė"]
["LT-46","Šilutė"]
["LT-47","Širvintos"]
["LT-48","Skuodas"]
["LT-49","Švenčionys"]
["LT-50","Tauragė"]
["LT-51","Telšiai"]
["LT-52","Trakai"]
["LT-53","Ukmergė"]
["LT-54","Utena"]
["LT-55","Varėna"]
["LT-56","Vilkaviškis"]
["LT-58","Vilnius"]
["LT-60","Zarasai"]
["LT-05","Birštono"]
["LT-07","Druskininkai"]
["LT-08","Elektrėnai"]
["LT-14","Kalvarijos"]
["LT-17","Kazlų Rūdos"]
["LT-28","Neringa"]
["LT-29","Pagėgiai"]
["LT-39","Rietavo"]
["LT-59","Visaginas"]
["LU-CA","Capellen"]
["LU-CA","Kapellen"]
["LU-CL","Clerf"]
["LU-CL","Clervaux"]
["LU-CL","Klierf"]
["LU-DI","Diekirch"]
["LU-DI","Diekrech"]
["LU-EC","Echternach"]
["LU-EC","Iechternach"]
["LU-ES","Esch an der Alzette"]
["LU-ES","Esch-sur-Alzette"]
["LU-ES","Esch-Uelzecht"]
["LU-GR","Grevenmacher"]
["LU-GR","Gréivemaacher"]
["LU-LU","Luxemburg"]
["LU-LU","Lëtzebuerg"]
["LU-ME","Mersch"]
["LU-ME","Miersch"]
["LU-RD","Redingen"]
["LU-RD","Redange"]
["LU-RD","Réiden-Atert"]
["LU-RM","Remich"]
["LU-RM","Réimech"]
["LU-VD","Vianden"]
["LU-VD","Veianen"]
["LU-WI","Wiltz"]
["LU-WI","Wolz"]
["LV-001","Aglonas novads"]
["LV-002","Aizkraukles novads"]
["LV-003","Aizputes novads"]
["LV-004","Aknīstes novads"]
["LV-005","Alojas novads"]
["LV-006","Alsungas novads"]
["LV-007","Alūksnes novads"]
["LV-008","Amatas novads"]
["LV-009","Apes novads"]
["LV-010","Auces novads"]
["LV-011","Ādažu novads"]
["LV-012","Babītes novads"]
["LV-013","Baldones novads"]
["LV-014","Baltinavas novads"]
["LV-015","Balvu novads"]
["LV-016","Bauskas novads"]
["LV-017","Beverīnas novads"]
["LV-018","Brocēnu novads"]
["LV-019","Burtnieku novads"]
["LV-020","Carnikavas novads"]
["LV-021","Cesvaines novads"]
["LV-022","Cēsu novads"]
["LV-023","Ciblas novads"]
["LV-024","Dagdas novads"]
["LV-025","Daugavpils novads"]
["LV-026","Dobeles novads"]
["LV-027","Dundagas novads"]
["LV-028","Durbes novads"]
["LV-029","Engures novads"]
["LV-030","Ērgļu novads"]
["LV-031","Garkalnes novads"]
["LV-032","Grobiņas novads"]
["LV-033","Gulbenes novads"]
["LV-034","Iecavas novads"]
["LV-035","Ikšķiles novads"]
["LV-036","Ilūkstes novads"]
["LV-037","Inčukalna novads"]
["LV-038","Jaunjelgavas novads"]
["LV-039","Jaunpiebalgas novads"]
["LV-040","Jaunpils novads"]
["LV-041","Jelgavas novads"]
["LV-042","Jēkabpils novads"]
["LV-043","Kandavas novads"]
["LV-044","Kārsavas novads"]
["LV-045","Kocēnu novads"]
["LV-046","Kokneses novads"]
["LV-047","Krāslavas novads"]
["LV-048","Krimuldas novads"]
["LV-049","Krustpils novads"]
["LV-050","Kuldīgas novads"]
["LV-051","Ķeguma novads"]
["LV-052","Ķekavas novads"]
["LV-053","Lielvārdes novads"]
["LV-054","Limbažu novads"]
["LV-055","Līgatnes novads"]
["LV-056","Līvānu novads"]
["LV-057","Lubānas novads"]
["LV-058","Ludzas novads"]
["LV-059","Madonas novads"]
["LV-060","Mazsalacas novads"]
["LV-061","Mālpils novads"]
["LV-062","Mārupes novads"]
["LV-063","Mērsraga novads"]
["LV-064","Naukšēnu novads"]
["LV-065","Neretas novads"]
["LV-066","Nīcas novads"]
["LV-067","Ogres novads"]
["LV-068","Olaines novads"]
["LV-069","Ozolnieku novads"]
["LV-070","Pārgaujas novads"]
["LV-071","Pāvilostas novads"]
["LV-072","Pļaviņu novads"]
["LV-073","Preiļu novads"]
["LV-074","Priekules novads"]
["LV-075","Priekuļu novads"]
["LV-076","Raunas novads"]
["LV-077","Rēzeknes novads"]
["LV-078","Riebiņu novads"]
["LV-079","Rojas novads"]
["LV-080","Ropažu novads"]
["LV-081","Rucavas novads"]
["LV-082","Rugāju novads"]
["LV-083","Rundāles novads"]
["LV-084","Rūjienas novads"]
["LV-085","Salas novads"]
["LV-086","Salacgrīvas novads"]
["LV-087","Salaspils novads"]
["LV-088","Saldus novads"]
["LV-089","Saulkrastu novads"]
["LV-090","Sējas novads"]
["LV-091","Siguldas novads"]
["LV-092","Skrīveru novads"]
["LV-093","Skrundas novads"]
["LV-094","Smiltenes novads"]
["LV-095","Stopiņu novads"]
["LV-096","Strenču novads"]
["LV-097","Talsu novads"]
["LV-098","Tērvetes novads"]
["LV-099","Tukuma novads"]
["LV-100","Vaiņodes novads"]
["LV-101","Valkas novads"]
["LV-102","Varakļānu novads"]
["LV-103","Vārkavas novads"]
["LV-104","Vecpiebalgas novads"]
["LV-105","Vecumnieku novads"]
["LV-106","Ventspils novads"]
["LV-107","Viesītes novads"]
["LV-108","Viļakas novads"]
["LV-109","Viļānu novads"]
["LV-110","Zilupes novads"]
["LV-DGV","Daugavpils"]
["LV-JEL","Jelgava"]
["LV-JKB","Jēkabpils"]
["LV-JUR","Jūrmala"]
["LV-LPX","Liepāja"]
["LV-REZ","Rēzekne"]
["LV-RIX","Rīga"]
["LV-VEN","Ventspils"]
["LV-VMR","Valmiera"]
["LY-BA","Banghāzī"]
["LY-BU","Al Buţnān"]
["LY-DR","Darnah"]
["LY-GT","Ghāt"]
["LY-JA","Al Jabal al Akhḑar"]
["LY-JG","Al Jabal al Gharbī"]
["LY-JI","Al Jafārah"]
["LY-JU","Al Jufrah"]
["LY-KF","Al Kufrah"]
["LY-MB","Al Marqab"]
["LY-MI","Mişrātah"]
["LY-MJ","Al Marj"]
["LY-MQ","Murzuq"]
["LY-NL","Nālūt"]
["LY-NQ","An Nuqāţ al Khams"]
["LY-SB","Sabhā"]
["LY-SR","Surt"]
["LY-TB","Ţarābulus"]
["LY-WA","Al Wāḩāt"]
["LY-WD","Wādī al Ḩayāt"]
["LY-WS","Wādī ash Shāţi’"]
["LY-ZA","Az Zāwiyah"]
["MA-01","Tanger-Tétouan-Al Hoceïma"]
["MA-MDF","M’diq-Fnideq"]
["MA-TNG","Tanger-Assilah"]
["MA-CHE","Chefchaouen"]
["MA-FAH","Fahs-Anjra"]
["MA-HOC","Al Hoceïma"]
["MA-LAR","Larache"]
["MA-OUZ","Ouezzane"]
["MA-TET","Tétouan"]
["MA-02","L'Oriental"]
["MA-OUJ","Oujda-Angad"]
["MA-BER","Berkane"]
["MA-DRI","Driouch"]
["MA-FIG","Figuig"]
["MA-GUF","Guercif"]
["MA-JRA","Jerada"]
["MA-NAD","Nador"]
["MA-TAI","Taourirt"]
["MA-03","Fès-Meknès"]
["MA-FES","Fès"]
["MA-MEK","Meknès"]
["MA-BOM","Boulemane"]
["MA-HAJ","El Hajeb"]
["MA-IFR","Ifrane"]
["MA-MOU","Moulay Yacoub"]
["MA-SEF","Sefrou"]
["MA-TAO","Taounate"]
["MA-TAZ","Taza"]
["MA-04","Rabat-Salé-Kénitra"]
["MA-RAB","Rabat"]
["MA-SAL","Salé"]
["MA-SKH","Skhirate-Témara"]
["MA-KEN","Kénitra"]
["MA-KHE","Khemisset"]
["MA-NOU","Nouaceur"]
["MA-SIK","Sidi Kacem"]
["MA-SIL","Sidi Slimane"]
["MA-05","Béni Mellal-Khénifra"]
["MA-AZI","Azilal"]
["MA-BEM","Béni Mellal"]
["MA-FQH","Fquih Ben Salah"]
["MA-KHN","Khenifra"]
["MA-KHO","Khouribga"]
["MA-06","Casablanca-Settat"]
["MA-CAS","Casablanca"]
["MA-MOH","Mohammadia"]
["MA-BES","Benslimane"]
["MA-BRR","Berrechid"]
["MA-CHT","Chtouka-Ait Baha"]
["MA-JDI","El Jadida"]
["MA-MED","Médiouna"]
["MA-SET","Settat"]
["MA-SIB","Sidi Bennour"]
["MA-07","Marrakech-Safi"]
["MA-MAR","Marrakech"]
["MA-CHI","Chichaoua"]
["MA-ESI","Essaouira"]
["MA-HAO","Al Haouz"]
["MA-KES","El Kelâa des Sraghna"]
["MA-REH","Rehamna"]
["MA-SAF","Safi"]
["MA-YUS","Youssoufia"]
["MA-08","Drâa-Tafilalet"]
["MA-ERR","Errachidia"]
["MA-MID","Midelt"]
["MA-OUA","Ouarzazate"]
["MA-TIN","Tinghir"]
["MA-ZAG","Zagora"]
["MA-09","Souss-Massa"]
["MA-AGD","Agadir-Ida-Ou-Tanane"]
["MA-INE","Inezgane-Ait Melloul"]
["MA-TAR","Taroudant"]
["MA-TAT","Tata"]
["MA-TIZ","Tiznit"]
["MA-10","Guelmim-Oued Noun (EH-partial)"]
["MA-ASZ","Assa-Zag (EH-partial)"]
["MA-GUE","Guelmim"]
["MA-SIF","Sidi Ifni"]
["MA-TNT","Tan-Tan (EH-partial)"]
["MA-11","Laâyoune-Sakia El Hamra (EH-partial)"]
["MA-BOD","Boujdour (EH)"]
["MA-ESM","Es-Semara (EH-partial)"]
["MA-LAA","Laâyoune (EH)"]
["MA-TAF","Tarfaya (EH-partial)"]
["MA-12","Dakhla-Oued Ed-Dahab (EH)"]
["MA-AOU","Aousserd (EH)"]
["MA-OUD","Oued Ed-Dahab (EH)"]
["MC-CL","La Colle"]
["MC-CO","La Condamine"]
["MC-FO","Fontvieille"]
["MC-GA","La Gare"]
["MC-JE","Jardin Exotique"]
["MC-LA","Larvotto"]
["MC-MA","Malbousquet"]
["MC-MC","Monte-Carlo"]
["MC-MG","Moneghetti"]
["MC-MO","Monaco-Ville"]
["MC-MU","Moulins"]
["MC-PH","Port-Hercule"]
["MC-SD","Sainte-Dévote"]
["MC-SO","La Source"]
["MC-SP","Spélugues"]
["MC-SR","Saint-Roman"]
["MC-VR","Vallon de la Rousse"]
["MD-AN","Anenii Noi"]
["MD-BR","Briceni"]
["MD-BS","Basarabeasca"]
["MD-CA","Cahul"]
["MD-CL","Călărași"]
["MD-CM","Cimișlia"]
["MD-CR","Criuleni"]
["MD-CS","Căușeni"]
["MD-CT","Cantemir"]
["MD-DO","Dondușeni"]
["MD-DR","Drochia"]
["MD-DU","Dubăsari"]
["MD-ED","Edineț"]
["MD-FA","Fălești"]
["MD-FL","Florești"]
["MD-GL","Glodeni"]
["MD-HI","Hîncești"]
["MD-IA","Ialoveni"]
["MD-LE","Leova"]
["MD-NI","Nisporeni"]
["MD-OC","Ocnița"]
["MD-OR","Orhei"]
["MD-RE","Rezina"]
["MD-RI","Rîșcani"]
["MD-SD","Șoldănești"]
["MD-SI","Sîngerei"]
["MD-SO","Soroca"]
["MD-ST","Strășeni"]
["MD-SV","Ștefan Vodă"]
["MD-TA","Taraclia"]
["MD-TE","Telenești"]
["MD-UN","Ungheni"]
["MD-GA","Găgăuzia, Unitatea teritorială autonomă (UTAG)"]
["MD-SN","Stînga Nistrului, unitatea teritorială din"]
["MD-BA","Bălți"]
["MD-BD","Bender [Tighina]"]
["MD-CU","Chișinău"]
["ME-01","Andrijevica"]
["ME-02","Bar"]
["ME-03","Berane"]
["ME-04","Bijelo Polje"]
["ME-05","Budva"]
["ME-06","Cetinje"]
["ME-07","Danilovgrad"]
["ME-08","Herceg-Novi"]
["ME-09","Kolašin"]
["ME-10","Kotor"]
["ME-11","Mojkovac"]
["ME-12","Nikšić"]
["ME-13","Plav"]
["ME-14","Pljevlja"]
["ME-15","Plužine"]
["ME-16","Podgorica"]
["ME-17","Rožaje"]
["ME-18","Šavnik"]
["ME-19","Tivat"]
["ME-20","Ulcinj"]
["ME-21","Žabljak"]
["ME-22","Gusinje"]
["ME-23","Petnjica"]
["ME-24","Tuzi"]
["MG-A","Toamasina"]
["MG-D","Antsiranana"]
["MG-F","Fianarantsoa"]
["MG-M","Mahajanga"]
["MG-T","Antananarivo"]
["MG-U","Toliara"]
["MH-L","Ralik chain"]
["MH-ALL","Ailinglaplap"]
["MH-ALL","Aelōn̄ḷapḷap"]
["MH-EBO","Ebon"]
["MH-EBO","Epoon"]
["MH-ENI","Enewetak & Ujelang"]
["MH-ENI","Ānewetak & Wūjlan̄"]
["MH-JAB","Jabat"]
["MH-JAB","Jebat"]
["MH-JAL","Jaluit"]
["MH-JAL","Jālwōj"]
["MH-KIL","Bikini & Kili"]
["MH-KIL","Pikinni & Kōle"]
["MH-KWA","Kwajalein"]
["MH-KWA","Kuwajleen"]
["MH-LAE","Lae"]
["MH-LIB","Lib"]
["MH-LIB","Ellep"]
["MH-NMK","Namdrik"]
["MH-NMK","Naṃdik"]
["MH-NMU","Namu"]
["MH-NMU","Naṃo"]
["MH-RON","Rongelap"]
["MH-RON","Ron̄ḷap"]
["MH-UJA","Ujae"]
["MH-WTH","Wotho"]
["MH-WTH","Wōtto"]
["MH-T","Ratak chain"]
["MH-ALK","Ailuk"]
["MH-ALK","Aelok"]
["MH-ARN","Arno"]
["MH-ARN","Arṇo"]
["MH-AUR","Aur"]
["MH-LIK","Likiep"]
["MH-MAJ","Majuro"]
["MH-MAJ","Mājro"]
["MH-MAL","Maloelap"]
["MH-MAL","Ṃaḷoeḷap"]
["MH-MEJ","Mejit"]
["MH-MEJ","Mājej"]
["MH-MIL","Mili"]
["MH-MIL","Mile"]
["MH-UTI","Utrik"]
["MH-UTI","Utrōk"]
["MH-WTJ","Wotje"]
["MH-WTJ","Wōjjā"]
["MK-101","Veles"]
["MK-102","Gradsko"]
["MK-103","Demir Kapija"]
["MK-104","Kavadarci"]
["MK-105","Lozovo"]
["MK-106","Negotino"]
["MK-107","Rosoman"]
["MK-108","Sveti Nikole"]
["MK-109","Čaška"]
["MK-201","Berovo"]
["MK-202","Vinica"]
["MK-203","Delčevo"]
["MK-204","Zrnovci"]
["MK-205","Karbinci"]
["MK-206","Kočani"]
["MK-207","Makedonska Kamenica"]
["MK-208","Pehčevo"]
["MK-209","Probištip"]
["MK-210","Češinovo-Obleševo"]
["MK-211","Štip"]
["MK-301","Vevčani"]
["MK-303","Debar"]
["MK-304","Debrca"]
["MK-307","Kičevo"]
["MK-308","Makedonski Brod"]
["MK-310","Ohrid"]
["MK-311","Plasnica"]
["MK-312","Struga"]
["MK-313","Centar Župa"]
["MK-401","Bogdanci"]
["MK-402","Bosilovo"]
["MK-403","Valandovo"]
["MK-404","Vasilevo"]
["MK-405","Gevgelija"]
["MK-406","Dojran"]
["MK-407","Konče"]
["MK-408","Novo Selo"]
["MK-409","Radoviš"]
["MK-410","Strumica"]
["MK-501","Bitola"]
["MK-502","Demir Hisar"]
["MK-503","Dolneni"]
["MK-504","Krivogaštani"]
["MK-505","Kruševo"]
["MK-506","Mogila"]
["MK-507","Novaci"]
["MK-508","Prilep"]
["MK-509","Resen"]
["MK-601","Bogovinje"]
["MK-602","Brvenica"]
["MK-603","Vrapčište"]
["MK-604","Gostivar"]
["MK-605","Želino"]
["MK-606","Jegunovce"]
["MK-607","Mavrovo i Rostuše"]
["MK-608","Tearce"]
["MK-609","Tetovo"]
["MK-701","Kratovo"]
["MK-702","Kriva Palanka"]
["MK-703","Kumanovo"]
["MK-704","Lipkovo"]
["MK-705","Rankovce"]
["MK-706","Staro Nagoričane"]
["MK-801","Aerodrom †"]
["MK-802","Aračinovo"]
["MK-803","Butel †"]
["MK-804","Gazi Baba †"]
["MK-805","Gjorče Petrov †"]
["MK-806","Zelenikovo"]
["MK-807","Ilinden"]
["MK-808","Karpoš †"]
["MK-809","Kisela Voda †"]
["MK-810","Petrovec"]
["MK-811","Saraj †"]
["MK-812","Sopište"]
["MK-813","Studeničani"]
["MK-814","Centar †"]
["MK-815","Čair †"]
["MK-816","Čučer-Sandevo"]
["MK-817","Šuto Orizari †"]
["ML-1","Kayes"]
["ML-10","Taoudénit"]
["ML-2","Koulikoro"]
["ML-3","Sikasso"]
["ML-4","Ségou"]
["ML-5","Mopti"]
["ML-6","Tombouctou"]
["ML-7","Gao"]
["ML-8","Kidal"]
["ML-9","Ménaka"]
["ML-BKO","Bamako"]
["MM-01","Sagaing"]
["MM-02","Bago"]
["MM-03","Magway"]
["MM-04","Mandalay"]
["MM-05","Tanintharyi"]
["MM-06","Yangon"]
["MM-07","Ayeyarwady"]
["MM-11","Kachin"]
["MM-12","Kayah"]
["MM-13","Kayin"]
["MM-14","Chin"]
["MM-15","Mon"]
["MM-16","Rakhine"]
["MM-17","Shan"]
["MM-18","Nay Pyi Taw"]
["MN-035","Orhon"]
["MN-037","Darhan uul"]
["MN-039","Hentiy"]
["MN-041","Hövsgöl"]
["MN-043","Hovd"]
["MN-046","Uvs"]
["MN-047","Töv"]
["MN-049","Selenge"]
["MN-051","Sühbaatar"]
["MN-053","Ömnögovĭ"]
["MN-055","Övörhangay"]
["MN-057","Dzavhan"]
["MN-059","Dundgovĭ"]
["MN-061","Dornod"]
["MN-063","Dornogovĭ"]
["MN-064","Govĭ-Sümber"]
["MN-065","Govĭ-Altay"]
["MN-067","Bulgan"]
["MN-069","Bayanhongor"]
["MN-071","Bayan-Ölgiy"]
["MN-073","Arhangay"]
["MN-1","Ulaanbaatar"]
["MR-01","Hodh ech Chargui"]
["MR-02","Hodh el Gharbi"]
["MR-03","Assaba"]
["MR-04","Gorgol"]
["MR-05","Brakna"]
["MR-06","Trarza"]
["MR-08","Dakhlet Nouâdhibou"]
["MR-09","Tagant"]
["MR-10","Guidimaka"]
["MR-11","Tiris Zemmour"]
["MR-12","Inchiri"]
["MR-13","Nuwākshūţ al Gharbīyah"]
["MR-13","Nouakchott Ouest"]
["MR-14","Nuwākshūţ ash Shamālīyah"]
["MR-14","Nouakchott Nord"]
["MR-15","Nuwākshūţ al Janūbīyah"]
["MR-15","Nouakchott Sud"]
["MT-01","Attard"]
["MT-02","Balzan"]
["MT-03","Birgu"]
["MT-04","Birkirkara"]
["MT-05","Birżebbuġa"]
["MT-06","Bormla"]
["MT-07","Dingli"]
["MT-08","Fgura"]
["MT-09","Floriana"]
["MT-10","Fontana"]
["MT-11","Gudja"]
["MT-12","Gżira"]
["MT-13","Għajnsielem"]
["MT-14","Għarb"]
["MT-15","Għargħur"]
["MT-16","Għasri"]
["MT-17","Għaxaq"]
["MT-18","Ħamrun"]
["MT-19","Iklin"]
["MT-20","Isla"]
["MT-21","Kalkara"]
["MT-22","Kerċem"]
["MT-23","Kirkop"]
["MT-24","Lija"]
["MT-25","Luqa"]
["MT-26","Marsa"]
["MT-27","Marsaskala"]
["MT-28","Marsaxlokk"]
["MT-29","Mdina"]
["MT-30","Mellieħa"]
["MT-31","Mġarr"]
["MT-32","Mosta"]
["MT-33","Mqabba"]
["MT-34","Msida"]
["MT-35","Mtarfa"]
["MT-36","Munxar"]
["MT-37","Nadur"]
["MT-38","Naxxar"]
["MT-39","Paola"]
["MT-40","Pembroke"]
["MT-41","Pietà"]
["MT-42","Qala"]
["MT-43","Qormi"]
["MT-44","Qrendi"]
["MT-45","Rabat Gozo"]
["MT-45","Rabat Għawdex"]
["MT-46","Rabat Malta"]
["MT-48","Saint Julian's"]
["MT-48","San Ġiljan"]
["MT-49","San Ġwann"]
["MT-50","Saint Lawrence"]
["MT-50","San Lawrenz"]
["MT-51","Saint Paul's Bay"]
["MT-51","San Pawl il-Baħar"]
["MT-52","Sannat"]
["MT-53","Saint Lucia's"]
["MT-53","Santa Luċija"]
["MT-54","Santa Venera"]
["MT-55","Siġġiewi"]
["MT-56","Sliema"]
["MT-57","Swieqi"]
["MT-58","Ta' Xbiex"]
["MT-59","Tarxien"]
["MT-60","Valletta"]
["MT-61","Xagħra"]
["MT-62","Xewkija"]
["MT-63","Xgħajra"]
["MT-64","Żabbar"]
["MT-65","Żebbuġ Gozo"]
["MT-65","Żebbuġ Għawdex"]
["MT-66","Żebbuġ Malta"]
["MT-67","Żejtun"]
["MT-68","Żurrieq"]
["MU-BR","Beau Bassin-Rose Hill"]
["MU-CU","Curepipe"]
["MU-PU","Port Louis"]
["MU-QB","Quatre Bornes"]
["MU-VP","Vacoas-Phoenix"]
["MU-BL","Black River"]
["MU-FL","Flacq"]
["MU-GP","Grand Port"]
["MU-MO","Moka"]
["MU-PA","Pamplemousses"]
["MU-PW","Plaines Wilhems"]
["MU-RR","Rivière du Rempart"]
["MU-SA","Savanne"]
["MU-AG","Agalega Islands"]
["MU-CC","Cargados Carajos Shoals"]
["MU-RO","Rodrigues Island"]
["MV-00","Ariatholhu Dhekunuburi"]
["MV-00","South Ari Atoll"]
["MV-02","Ariatholhu Uthuruburi"]
["MV-02","North Ari Atoll"]
["MV-03","Faadhippolhu"]
["MV-04","Felidheatholhu"]
["MV-04","Felidhu Atoll"]
["MV-05","Hahdhunmathi"]
["MV-07","Thiladhunmathee Uthuruburi"]
["MV-07","North Thiladhunmathi"]
["MV-08","Kolhumadulu"]
["MV-12","Mulakatholhu"]
["MV-12","Mulaku Atoll"]
["MV-13","Maalhosmadulu Uthuruburi"]
["MV-13","North Maalhosmadulu"]
["MV-14","Nilandheatholhu Uthuruburi"]
["MV-14","North Nilandhe Atoll"]
["MV-17","Nilandheatholhu Dhekunuburi"]
["MV-17","South Nilandhe Atoll"]
["MV-20","Maalhosmadulu Dhekunuburi"]
["MV-20","South Maalhosmadulu"]
["MV-23","Thiladhunmathee Dhekunuburi"]
["MV-23","South Thiladhunmathi"]
["MV-24","Miladhunmadulu Uthuruburi"]
["MV-24","North Miladhunmadulu"]
["MV-25","Miladhunmadulu Dhekunuburi"]
["MV-25","South Miladhunmadulu"]
["MV-26","Maaleatholhu"]
["MV-26","Male Atoll"]
["MV-27","Huvadhuatholhu Uthuruburi"]
["MV-27","North Huvadhu Atoll"]
["MV-28","Huvadhuatholhu Dhekunuburi"]
["MV-28","South Huvadhu Atoll"]
["MV-29","Fuvammulah"]
["MV-01","Addu"]
["MV-01","Addu City"]
["MV-MLE","Maale"]
["MV-MLE","Male"]
["MW-C","Central Region"]
["MW-C","Chapakati"]
["MW-DE","Dedza"]
["MW-DO","Dowa"]
["MW-KS","Kasungu"]
["MW-LI","Lilongwe"]
["MW-MC","Mchinji"]
["MW-NI","Ntchisi"]
["MW-NK","Nkhotakota"]
["MW-NU","Ntcheu"]
["MW-SA","Salima"]
["MW-N","Northern Region"]
["MW-N","Chakumpoto"]
["MW-CT","Chitipa"]
["MW-KR","Karonga"]
["MW-LK","Likoma"]
["MW-MZ","Mzimba"]
["MW-NB","Nkhata Bay"]
["MW-RU","Rumphi"]
["MW-S","Southern Region"]
["MW-S","Chakumwera"]
["MW-BA","Balaka"]
["MW-BL","Blantyre"]
["MW-CK","Chikwawa"]
["MW-CR","Chiradzulu"]
["MW-MG","Mangochi"]
["MW-MH","Machinga"]
["MW-MU","Mulanje"]
["MW-MW","Mwanza"]
["MW-NE","Neno"]
["MW-NS","Nsanje"]
["MW-PH","Phalombe"]
["MW-TH","Thyolo"]
["MW-ZO","Zomba"]
["MX-AGU","Aguascalientes"]
["MX-BCN","Baja California"]
["MX-BCS","Baja California Sur"]
["MX-CAM","Campeche"]
["MX-CHH","Chihuahua"]
["MX-CHP","Chiapas"]
["MX-COA","Coahuila de Zaragoza"]
["MX-COL","Colima"]
["MX-DUR","Durango"]
["MX-GRO","Guerrero"]
["MX-GUA","Guanajuato"]
["MX-HID","Hidalgo"]
["MX-JAL","Jalisco"]
["MX-MEX","México"]
["MX-MIC","Michoacán de Ocampo"]
["MX-MOR","Morelos"]
["MX-NAY","Nayarit"]
["MX-NLE","Nuevo León"]
["MX-OAX","Oaxaca"]
["MX-PUE","Puebla"]
["MX-QUE","Querétaro"]
["MX-ROO","Quintana Roo"]
["MX-SIN","Sinaloa"]
["MX-SLP","San Luis Potosí"]
["MX-SON","Sonora"]
["MX-TAB","Tabasco"]
["MX-TAM","Tamaulipas"]
["MX-TLA","Tlaxcala"]
["MX-VER","Veracruz de Ignacio de la Llave"]
["MX-YUC","Yucatán"]
["MX-ZAC","Zacatecas"]
["MX-CMX","Ciudad de México"]
["MY-14","Wilayah Persekutuan Kuala Lumpur"]
["MY-15","Wilayah Persekutuan Labuan"]
["MY-16","Wilayah Persekutuan Putrajaya"]
["MY-01","Johor"]
["MY-02","Kedah"]
["MY-03","Kelantan"]
["MY-04","Melaka"]
["MY-05","Negeri Sembilan"]
["MY-06","Pahang"]
["MY-07","Pulau Pinang"]
["MY-08","Perak"]
["MY-09","Perlis"]
["MY-10","Selangor"]
["MY-11","Terengganu"]
["MY-12","Sabah"]
["MY-13","Sarawak"]
["MZ-MPM","Maputo"]
["MZ-A","Niassa"]
["MZ-B","Manica"]
["MZ-G","Gaza"]
["MZ-I","Inhambane"]
["MZ-N","Nampula"]
["MZ-P","Cabo Delgado"]
["MZ-Q","Zambézia"]
["MZ-S","Sofala"]
["MZ-T","Tete"]
["NA-CA","Zambezi"]
["NA-ER","Erongo"]
["NA-HA","Hardap"]
["NA-KA","Karas"]
["NA-KE","Kavango East"]
["NA-KH","Khomas"]
["NA-KU","Kunene"]
["NA-KW","Kavango West"]
["NA-OD","Otjozondjupa"]
["NA-OH","Omaheke"]
["NA-ON","Oshana"]
["NA-OS","Omusati"]
["NA-OT","Oshikoto"]
["NA-OW","Ohangwena"]
["NE-8","Niamey"]
["NE-1","Agadez"]
["NE-2","Diffa"]
["NE-3","Dosso"]
["NE-4","Maradi"]
["NE-5","Tahoua"]
["NE-6","Tillabéri"]
["NE-7","Zinder"]
["NG-AB","Abia"]
["NG-AD","Adamawa"]
["NG-AK","Akwa Ibom"]
["NG-AN","Anambra"]
["NG-BA","Bauchi"]
["NG-BE","Benue"]
["NG-BO","Borno"]
["NG-BY","Bayelsa"]
["NG-CR","Cross River"]
["NG-DE","Delta"]
["NG-EB","Ebonyi"]
["NG-ED","Edo"]
["NG-EK","Ekiti"]
["NG-EN","Enugu"]
["NG-GO","Gombe"]
["NG-IM","Imo"]
["NG-JI","Jigawa"]
["NG-KD","Kaduna"]
["NG-KE","Kebbi"]
["NG-KN","Kano"]
["NG-KO","Kogi"]
["NG-KT","Katsina"]
["NG-KW","Kwara"]
["NG-LA","Lagos"]
["NG-NA","Nasarawa"]
["NG-NI","Niger"]
["NG-OG","Ogun"]
["NG-ON","Ondo"]
["NG-OS","Osun"]
["NG-OY","Oyo"]
["NG-RI","Rivers"]
["NG-SO","Sokoto"]
["NG-TA","Taraba"]
["NG-YO","Yobe"]
["NG-ZA","Zamfara"]
["NG-FC","Abuja Federal Capital Territory"]
["NI-BO","Boaco"]
["NI-CA","Carazo"]
["NI-CI","Chinandega"]
["NI-CO","Chontales"]
["NI-ES","Estelí"]
["NI-JI","Jinotega"]
["NI-MD","Madriz"]
["NI-MN","Managua"]
["NI-MS","Masaya"]
["NI-MT","Matagalpa"]
["NI-NS","Nueva Segovia"]
["NI-RI","Rivas"]
["NI-SJ","Río San Juan"]
["NI-AN","Costa Caribe Norte"]
["NI-AS","Costa Caribe Sur"]
["NL-DR","Drenthe"]
["NL-FL","Flevoland"]
["NL-FR","Fryslân"]
["NL-GE","Gelderland"]
["NL-GR","Groningen"]
["NL-NB","Noord-Brabant"]
["NL-NH","Noord-Holland"]
["NL-OV","Overijssel"]
["NL-UT","Utrecht"]
["NL-ZE","Zeeland"]
["NL-ZH","Zuid-Holland"]
["NL-AW","Aruba (see also separate country code entry under AW)"]
["NL-CW","Curaçao (see also separate country code entry under CW)"]
["NL-SX","Sint Maarten (see also separate country code entry under SX)"]
["NL-BQ1","Bonaire (see also separate country code entry under BQ)"]
["NL-BQ2","Saba (see also separate country code entry under BQ)"]
["NL-BQ3","Sint Eustatius (see also separate country code entry under BQ)"]
["NO-01","Østfold"]
["NO-02","Akershus"]
["NO-03","Oslo"]
["NO-04","Hedmark"]
["NO-05","Oppland"]
["NO-06","Buskerud"]
["NO-07","Vestfold"]
["NO-08","Telemark"]
["NO-09","Aust-Agder"]
["NO-10","Vest-Agder"]
["NO-11","Rogaland"]
["NO-12","Hordaland"]
["NO-14","Sogn og Fjordane"]
["NO-15","Møre og Romsdal"]
["NO-18","Nordland"]
["NO-19","Troms"]
["NO-19","Romsa"]
["NO-20","Finnmark"]
["NO-20","Finnmárku"]
["NO-50","Trøndelag"]
["NO-21","Svalbard (Arctic Region) (see also separate country code entry under SJ)"]
["NO-22","Jan Mayen (Arctic Region) (see also separate country code entry under SJ)"]
["NP-1","Madhyamanchal"]
["NP-BA","Bagmati"]
["NP-JA","Janakpur"]
["NP-NA","Narayani"]
["NP-2","Mid Western"]
["NP-2","Madhya Pashchimanchal"]
["NP-BH","Bheri"]
["NP-KA","Karnali"]
["NP-RA","Rapti"]
["NP-3","Pashchimanchal"]
["NP-DH","Dhawalagiri"]
["NP-GA","Gandaki"]
["NP-LU","Lumbini"]
["NP-4","Purwanchal"]
["NP-KO","Kosi"]
["NP-ME","Mechi"]
["NP-SA","Sagarmatha"]
["NP-5","Far Western"]
["NP-5","Sudur Pashchimanchal"]
["NP-MA","Mahakali"]
["NP-SE","Seti"]
["NP-P1","Province 1"]
["NP-P1","Pradesh 1"]
["NP-P2","Province 2"]
["NP-P2","Pradesh 2"]
["NP-P3","Province 3"]
["NP-P3","Pradesh 3"]
["NP-P5","Province 5"]
["NP-P5","Pradesh 5"]
["NP-P7","Province 7"]
["NP-P7","Pradesh 7"]
["NR-01","Aiwo"]
["NR-02","Anabar"]
["NR-03","Anetan"]
["NR-04","Anibare"]
["NR-05","Baitsi"]
["NR-06","Boe"]
["NR-07","Buada"]
["NR-08","Denigomodu"]
["NR-09","Ewa"]
["NR-10","Ijuw"]
["NR-11","Meneng"]
["NR-12","Nibok"]
["NR-13","Uaboe"]
["NR-14","Yaren"]
["NZ-AUK","Auckland"]
["NZ-AUK","Tāmaki-makau-rau"]
["NZ-BOP","Bay of Plenty"]
["NZ-BOP","Te Moana a Toi Te Huatahi"]
["NZ-CAN","Canterbury"]
["NZ-CAN","Waitaha"]
["NZ-GIS","Gisborne"]
["NZ-GIS","Tūranga nui a Kiwa"]
["NZ-HKB","Hawke's Bay"]
["NZ-HKB","Te Matau a Māui"]
["NZ-MBH","Marlborough"]
["NZ-MWT","Manawatu-Wanganui"]
["NZ-MWT","Manawatu Whanganui"]
["NZ-NSN","Nelson"]
["NZ-NSN","Whakatū"]
["NZ-NTL","Northland"]
["NZ-NTL","Te Tai tokerau"]
["NZ-OTA","Otago"]
["NZ-OTA","Ō Tākou"]
["NZ-STL","Southland"]
["NZ-STL","Murihiku"]
["NZ-TAS","Tasman"]
["NZ-TKI","Taranaki"]
["NZ-WGN","Wellington"]
["NZ-WGN","Te Whanga-nui-a-Tara"]
["NZ-WKO","Waikato"]
["NZ-WTC","West Coast"]
["NZ-WTC","Te Taihau ā uru"]
["NZ-CIT","Chatham Islands Territory"]
["NZ-CIT","Wharekauri"]
["OM-BJ","Janūb al Bāţinah"]
["OM-BS","Shamāl al Bāţinah"]
["OM-BU","Al Buraymī"]
["OM-DA","Ad Dākhilīyah"]
["OM-MA","Masqaţ"]
["OM-MU","Musandam"]
["OM-SJ","Janūb ash Sharqīyah"]
["OM-SS","Shamāl ash Sharqīyah"]
["OM-WU","Al Wusţá"]
["OM-ZA","Az̧ Z̧āhirah"]
["OM-ZU","Z̧ufār"]
["PA-EM","Emberá"]
["PA-KY","Guna Yala"]
["PA-NB","Ngöbe-Buglé"]
["PA-1","Bocas del Toro"]
["PA-10","Panamá Oeste"]
["PA-2","Coclé"]
["PA-4","Chiriquí"]
["PA-5","Darién"]
["PA-6","Herrera"]
["PA-7","Los Santos"]
["PA-8","Panamá"]
["PA-9","Veraguas"]
["PE-AMA","Amasunu"]
["PE-AMA","Amarumayu"]
["PE-ANC","Ankashu"]
["PE-ANC","Anqash"]
["PE-ANC","Ancash"]
["PE-APU","Apurimaq"]
["PE-APU","Apurímac"]
["PE-ARE","Arikipa"]
["PE-ARE","Ariqipa"]
["PE-ARE","Arequipa"]
["PE-AYA","Ayaquchu"]
["PE-AYA","Ayakuchu"]
["PE-AYA","Ayacucho"]
["PE-CAJ","Qajamarka"]
["PE-CAJ","Kashamarka"]
["PE-CAJ","Cajamarca"]
["PE-CAL","Kallao"]
["PE-CAL","Qallaw"]
["PE-CAL","El Callao"]
["PE-CUS","Kusku"]
["PE-CUS","Qusqu"]
["PE-CUS","Cusco"]
["PE-HUC","Wanuku"]
["PE-HUC","Huánuco"]
["PE-HUV","Wankawelika"]
["PE-HUV","Wankawillka"]
["PE-HUV","Huancavelica"]
["PE-ICA","Ika"]
["PE-ICA","Ica"]
["PE-JUN","Junin"]
["PE-JUN","Hunin"]
["PE-JUN","Junín"]
["PE-LAL","La Libertad"]
["PE-LAL","Qispi kay"]
["PE-LAM","Lambayeque"]
["PE-LAM","Lampalliqi"]
["PE-LIM","Lima"]
["PE-LOR","Luritu"]
["PE-LOR","Loreto"]
["PE-MDD","Madre de Dios"]
["PE-MDD","Mayutata"]
["PE-MOQ","Moqwegwa"]
["PE-MOQ","Muqiwa"]
["PE-MOQ","Moquegua"]
["PE-PAS","Pasqu"]
["PE-PAS","Pasco"]
["PE-PIU","Piura"]
["PE-PIU","Piwra"]
["PE-PUN","Puno"]
["PE-PUN","Punu"]
["PE-SAM","San Martín"]
["PE-SAM","San Martin"]
["PE-TAC","Takna"]
["PE-TAC","Taqna"]
["PE-TAC","Tacna"]
["PE-TUM","Tumbes"]
["PE-TUM","Tumpis"]
["PE-UCA","Ukayali"]
["PE-UCA","Ucayali"]
["PE-LMA","Lima hatun llaqta"]
["PE-LMA","Lima llaqta suyu"]
["PE-LMA","Municipalidad Metropolitana de Lima"]
["PG-NCD","National Capital District (Port Moresby)"]
["PG-CPK","Chimbu"]
["PG-EBR","East New Britain"]
["PG-EHG","Eastern Highlands"]
["PG-EPW","Enga"]
["PG-ESW","East Sepik"]
["PG-GPK","Gulf"]
["PG-HLA","Hela"]
["PG-JWK","Jiwaka"]
["PG-MBA","Milne Bay"]
["PG-MPL","Morobe"]
["PG-MPM","Madang"]
["PG-MRL","Manus"]
["PG-NIK","New Ireland"]
["PG-SAN","West Sepik"]
["PG-SHM","Southern Highlands"]
["PG-WBK","West New Britain"]
["PG-WHM","Western Highlands"]
["PG-NSB","Bougainville"]
["PH-00","National Capital Region"]
["PH-00","Pambansang Punong Rehiyon"]
["PH-01","Ilocos (Region I)"]
["PH-01","Rehiyon ng Iloko"]
["PH-ILN","Ilocos Norte"]
["PH-ILN","Hilagang Iloko"]
["PH-ILS","Ilocos Sur"]
["PH-ILS","Timog Iloko"]
["PH-LUN","La Union"]
["PH-LUN","La Unyon"]
["PH-PAN","Pangasinan"]
["PH-02","Cagayan Valley (Region II)"]
["PH-02","Rehiyon ng Lambak ng Kagayan"]
["PH-BTN","Batanes"]
["PH-CAG","Cagayan"]
["PH-CAG","Kagayan"]
["PH-ISA","Isabela"]
["PH-NUV","Nueva Vizcaya"]
["PH-NUV","Nuweva Biskaya"]
["PH-QUI","Quirino"]
["PH-QUI","Kirino"]
["PH-03","Central Luzon (Region III)"]
["PH-03","Rehiyon ng Gitnang Luson"]
["PH-AUR","Aurora"]
["PH-BAN","Bataan"]
["PH-BUL","Bulacan"]
["PH-BUL","Bulakan"]
["PH-NUE","Nueva Ecija"]
["PH-NUE","Nuweva Esiha"]
["PH-PAM","Pampanga"]
["PH-TAR","Tarlac"]
["PH-TAR","Tarlak"]
["PH-ZMB","Zambales"]
["PH-ZMB","Sambales"]
["PH-05","Bicol (Region V)"]
["PH-05","Rehiyon ng Bikol"]
["PH-ALB","Albay"]
["PH-CAN","Camarines Norte"]
["PH-CAN","Hilagang Kamarines"]
["PH-CAS","Camarines Sur"]
["PH-CAS","Timog Kamarines"]
["PH-CAT","Catanduanes"]
["PH-CAT","Katanduwanes"]
["PH-MAS","Masbate"]
["PH-SOR","Sorsogon"]
["PH-06","Western Visayas (Region VI)"]
["PH-06","Rehiyon ng Kanlurang Bisaya"]
["PH-AKL","Aklan"]
["PH-ANT","Antique"]
["PH-ANT","Antike"]
["PH-CAP","Capiz"]
["PH-CAP","Kapis"]
["PH-GUI","Guimaras"]
["PH-GUI","Gimaras"]
["PH-ILI","Iloilo"]
["PH-NEC","Negros Occidental"]
["PH-NEC","Kanlurang Negros"]
["PH-07","Central Visayas (Region VII)"]
["PH-07","Rehiyon ng Gitnang Bisaya"]
["PH-BOH","Bohol"]
["PH-CEB","Cebu"]
["PH-CEB","Sebu"]
["PH-NER","Negros Oriental"]
["PH-NER","Silangang Negros"]
["PH-SIG","Siquijor"]
["PH-SIG","Sikihor"]
["PH-08","Eastern Visayas (Region VIII)"]
["PH-08","Rehiyon ng Silangang Bisaya"]
["PH-BIL","Biliran"]
["PH-EAS","Eastern Samar"]
["PH-EAS","Silangang Samar"]
["PH-LEY","Leyte"]
["PH-NSA","Northern Samar"]
["PH-NSA","Hilagang Samar"]
["PH-SLE","Southern Leyte"]
["PH-SLE","Katimogang Leyte"]
["PH-WSA","Samar"]
["PH-09","Zamboanga Peninsula (Region IX)"]
["PH-09","Rehiyon ng Tangway ng Sambuwangga"]
["PH-BAS","Basilan"]
["PH-ZAN","Zamboanga del Norte"]
["PH-ZAN","Hilagang Sambuwangga"]
["PH-ZAS","Zamboanga del Sur"]
["PH-ZAS","Timog Sambuwangga"]
["PH-ZSI","Zamboanga Sibugay"]
["PH-ZSI","Sambuwangga Sibugay"]
["PH-10","Northern Mindanao (Region X)"]
["PH-10","Rehiyon ng Hilagang Mindanaw"]
["PH-BUK","Bukidnon"]
["PH-CAM","Camiguin"]
["PH-CAM","Kamigin"]
["PH-MSC","Misamis Occidental"]
["PH-MSC","Kanlurang Misamis"]
["PH-MSR","Misamis Oriental"]
["PH-MSR","Silangang Misamis"]
["PH-11","Davao (Region XI)"]
["PH-11","Rehiyon ng Dabaw"]
["PH-COM","Compostela Valley"]
["PH-COM","Lambak ng Kompostela"]
["PH-DAO","Davao Oriental"]
["PH-DAO","Silangang Dabaw"]
["PH-DAS","Davao del Sur"]
["PH-DAS","Timog Dabaw"]
["PH-DAV","Davao del Norte"]
["PH-DAV","Hilagang Dabaw"]
["PH-DVO","Davao Occidental"]
["PH-DVO","Kanlurang Dabaw"]
["PH-SAR","Sarangani"]
["PH-SCO","South Cotabato"]
["PH-SCO","Timog Kotabato"]
["PH-12","Soccsksargen (Region XII)"]
["PH-12","Rehiyon ng Soccsksargen"]
["PH-LAN","Lanao del Norte"]
["PH-LAN","Hilagang Lanaw"]
["PH-NCO","Cotabato"]
["PH-NCO","Kotabato"]
["PH-SUK","Sultan Kudarat"]
["PH-13","Caraga (Region XIII)"]
["PH-13","Rehiyon ng Karaga"]
["PH-AGN","Agusan del Norte"]
["PH-AGN","Hilagang Agusan"]
["PH-AGS","Agusan del Sur"]
["PH-AGS","Timog Agusan"]
["PH-DIN","Dinagat Islands"]
["PH-DIN","Pulo ng Dinagat"]
["PH-SUN","Surigao del Norte"]
["PH-SUN","Hilagang Surigaw"]
["PH-SUR","Surigao del Sur"]
["PH-SUR","Timog Surigaw"]
["PH-14","Autonomous Region in Muslim Mindanao (ARMM)"]
["PH-14","Nagsasariling Rehiyon ng Muslim sa Mindanaw"]
["PH-LAS","Lanao del Sur"]
["PH-LAS","Timog Lanaw"]
["PH-MAG","Maguindanao"]
["PH-MAG","Magindanaw"]
["PH-SLU","Sulu"]
["PH-TAW","Tawi-Tawi"]
["PH-15","Cordillera Administrative Region (CAR)"]
["PH-15","Rehiyon ng Administratibo ng Kordilyera"]
["PH-ABR","Abra"]
["PH-APA","Apayao"]
["PH-APA","Apayaw"]
["PH-BEN","Benguet"]
["PH-BEN","Benget"]
["PH-IFU","Ifugao"]
["PH-IFU","Ipugaw"]
["PH-KAL","Kalinga"]
["PH-MOU","Mountain Province"]
["PH-MOU","Lalawigang Bulubundukin"]
["PH-40","Calabarzon (Region IV-A)"]
["PH-40","Rehiyon ng Calabarzon"]
["PH-BTG","Batangas"]
["PH-CAV","Cavite"]
["PH-CAV","Kabite"]
["PH-LAG","Laguna"]
["PH-QUE","Quezon"]
["PH-QUE","Keson"]
["PH-RIZ","Rizal"]
["PH-RIZ","Risal"]
["PH-41","Mimaropa (Region IV-B)"]
["PH-41","Rehiyon ng Mimaropa"]
["PH-MAD","Marinduque"]
["PH-MAD","Marinduke"]
["PH-MDC","Mindoro Occidental"]
["PH-MDC","Kanlurang Mindoro"]
["PH-MDR","Mindoro Oriental"]
["PH-MDR","Silangang Mindoro"]
["PH-PLW","Palawan"]
["PH-ROM","Romblon"]
["PK-GB","Gilgit-Baltistan"]
["PK-GB","Gilgit-Baltistān"]
["PK-JK","Azad Jammu and Kashmir"]
["PK-JK","Āzād Jammūñ o Kashmīr"]
["PK-IS","Islamabad"]
["PK-IS","Islāmābād"]
["PK-BA","Balochistan"]
["PK-BA","Balōchistān"]
["PK-KP","Khyber Pakhtunkhwa"]
["PK-KP","Khaībar Pakhtūnkhwā"]
["PK-PB","Panjāb"]
["PK-SD","Sindh"]
["PL-02","Dolnośląskie"]
["PL-04","Kujawsko-pomorskie"]
["PL-06","Lubelskie"]
["PL-08","Lubuskie"]
["PL-10","Łódzkie"]
["PL-12","Małopolskie"]
["PL-14","Mazowieckie"]
["PL-16","Opolskie"]
["PL-18","Podkarpackie"]
["PL-20","Podlaskie"]
["PL-22","Pomorskie"]
["PL-24","Śląskie"]
["PL-26","Świętokrzyskie"]
["PL-28","Warmińsko-mazurskie"]
["PL-30","Wielkopolskie"]
["PL-32","Zachodniopomorskie"]
["PS-BTH","Bayt Laḩm"]
["PS-BTH","Bethlehem"]
["PS-DEB","Dayr al Balaḩ"]
["PS-DEB","Deir El Balah"]
["PS-GZA","Ghazzah"]
["PS-HBN","Al Khalīl"]
["PS-HBN","Hebron"]
["PS-JEM","Jerusalem"]
["PS-JEN","Janīn"]
["PS-JEN","Jenin"]
["PS-JRH","Arīḩā wal Aghwār"]
["PS-JRH","Jericho and Al Aghwar"]
["PS-KYS","Khān Yūnis"]
["PS-KYS","Khan Yunis"]
["PS-NBS","Nāblus"]
["PS-NBS","Nablus"]
["PS-NGZ","Shamāl Ghazzah"]
["PS-NGZ","North Gaza"]
["PS-QQA","Qalqīlyah"]
["PS-QQA","Qalqilya"]
["PS-RBH","Rām Allāh wal Bīrah"]
["PS-RBH","Ramallah"]
["PS-RFH","Rafaḩ"]
["PS-RFH","Rafah"]
["PS-SLT","Salfīt"]
["PS-SLT","Salfit"]
["PS-TBS","Ţūbās"]
["PS-TBS","Tubas"]
["PS-TKM","Ţūlkarm"]
["PS-TKM","Tulkarm"]
["PT-20","Região Autónoma dos Açores"]
["PT-30","Região Autónoma da Madeira"]
["PT-01","Aveiro"]
["PT-02","Beja"]
["PT-03","Braga"]
["PT-04","Bragança"]
["PT-05","Castelo Branco"]
["PT-06","Coimbra"]
["PT-07","Évora"]
["PT-08","Faro"]
["PT-09","Guarda"]
["PT-10","Leiria"]
["PT-11","Lisboa"]
["PT-12","Portalegre"]
["PT-13","Porto"]
["PT-14","Santarém"]
["PT-15","Setúbal"]
["PT-16","Viana do Castelo"]
["PT-17","Vila Real"]
["PT-18","Viseu"]
["PW-002","Aimeliik"]
["PW-004","Airai"]
["PW-010","Angaur"]
["PW-050","Hatohobei"]
["PW-100","Kayangel"]
["PW-150","Koror"]
["PW-212","Melekeok"]
["PW-214","Ngaraard"]
["PW-218","Ngarchelong"]
["PW-222","Ngardmau"]
["PW-224","Ngatpang"]
["PW-226","Ngchesar"]
["PW-227","Ngeremlengui"]
["PW-228","Ngiwal"]
["PW-350","Peleliu"]
["PW-370","Sonsorol"]
["PY-1","Concepción"]
["PY-10","Alto Paraná"]
["PY-12","Ñeembucú"]
["PY-13","Amambay"]
["PY-14","Canindeyú"]
["PY-15","Presidente Hayes"]
["PY-16","Alto Paraguay"]
["PY-19","Boquerón"]
["PY-2","San Pedro"]
["PY-3","Cordillera"]
["PY-4","Guairá"]
["PY-5","Caaguazú"]
["PY-6","Caazapá"]
["PY-7","Itapúa"]
["PY-9","Paraguarí"]
["PY-ASU","Asunción"]
["QA-DA","Ad Dawḩah"]
["QA-KH","Al Khawr wa adh Dhakhīrah"]
["QA-MS","Ash Shamāl"]
["QA-RA","Ar Rayyān"]
["QA-SH","Ash Shīḩānīyah"]
["QA-US","Umm Şalāl"]
["QA-WA","Al Wakrah"]
["QA-ZA","Az̧ Z̧a‘āyin"]
["RO-AB","Alba"]
["RO-AG","Argeș"]
["RO-AR","Arad"]
["RO-BC","Bacău"]
["RO-BH","Bihor"]
["RO-BN","Bistrița-Năsăud"]
["RO-BR","Brăila"]
["RO-BT","Botoșani"]
["RO-BV","Brașov"]
["RO-BZ","Buzău"]
["RO-CJ","Cluj"]
["RO-CS","Caraș-Severin"]
["RO-CT","Constanța"]
["RO-CV","Covasna"]
["RO-DB","Dâmbovița"]
["RO-DJ","Dolj"]
["RO-GJ","Gorj"]
["RO-GL","Galați"]
["RO-GR","Giurgiu"]
["RO-HD","Hunedoara"]
["RO-HR","Harghita"]
["RO-IF","Ilfov"]
["RO-IL","Ialomița"]
["RO-IS","Iași"]
["RO-MH","Mehedinți"]
["RO-MM","Maramureș"]
["RO-MS","Mureș"]
["RO-NT","Neamț"]
["RO-OT","Olt"]
["RO-PH","Prahova"]
["RO-SB","Sibiu"]
["RO-SJ","Sălaj"]
["RO-SM","Satu Mare"]
["RO-SV","Suceava"]
["RO-TL","Tulcea"]
["RO-TM","Timiș"]
["RO-TR","Teleorman"]
["RO-VL","Vâlcea"]
["RO-VN","Vrancea"]
["RO-VS","Vaslui"]
["RO-B","București"]
["RS-KM","Kosovo-Metohija"]
["RS-25","Kosovski okrug"]
["RS-26","Pećki okrug"]
["RS-27","Prizrenski okrug"]
["RS-28","Kosovsko-Mitrovački okrug"]
["RS-29","Kosovsko-Pomoravski okrug"]
["RS-VO","Vojvodina"]
["RS-01","Severnobački okrug"]
["RS-02","Srednjebanatski okrug"]
["RS-03","Severnobanatski okrug"]
["RS-04","Južnobanatski okrug"]
["RS-05","Zapadnobački okrug"]
["RS-06","Južnobački okrug"]
["RS-07","Sremski okrug"]
["RS-00","Beograd"]
["RS-08","Mačvanski okrug"]
["RS-09","Kolubarski okrug"]
["RS-10","Podunavski okrug"]
["RS-11","Braničevski okrug"]
["RS-12","Šumadijski okrug"]
["RS-13","Pomoravski okrug"]
["RS-14","Borski okrug"]
["RS-15","Zaječarski okrug"]
["RS-16","Zlatiborski okrug"]
["RS-17","Moravički okrug"]
["RS-18","Raški okrug"]
["RS-19","Rasinski okrug"]
["RS-20","Nišavski okrug"]
["RS-21","Toplički okrug"]
["RS-22","Pirotski okrug"]
["RS-23","Jablanički okrug"]
["RS-24","Pčinjski okrug"]
["RU-AMU","Amurskaya oblast'"]
["RU-AMU","Amurskaja oblast'"]
["RU-ARK","Arkhangel'skaya oblast'"]
["RU-ARK","Arhangel'skaja oblast'"]
["RU-AST","Astrakhanskaya oblast'"]
["RU-AST","Astrahanskaja oblast'"]
["RU-BEL","Belgorodskaya oblast'"]
["RU-BEL","Belgorodskaja oblast'"]
["RU-BRY","Bryanskaya oblast'"]
["RU-BRY","Brjanskaja oblast'"]
["RU-CHE","Čeljabinskaja oblast'"]
["RU-CHE","Chelyabinskaya oblast'"]
["RU-IRK","Irkutskaya oblast'"]
["RU-IRK","Irkutskaja oblast'"]
["RU-IVA","Ivanovskaya oblast'"]
["RU-IVA","Ivanovskaja oblast'"]
["RU-KEM","Kemerovskaya oblast'"]
["RU-KEM","Kemerovskaja oblast'"]
["RU-KGD","Kaliningradskaya oblast'"]
["RU-KGD","Kaliningradskaja oblast'"]
["RU-KGN","Kurganskaja oblast'"]
["RU-KGN","Kurganskaya oblast'"]
["RU-KIR","Kirovskaja oblast'"]
["RU-KIR","Kirovskaya oblast'"]
["RU-KLU","Kalužskaja oblast'"]
["RU-KLU","Kaluzhskaya oblast'"]
["RU-KOS","Kostromskaya oblast'"]
["RU-KOS","Kostromskaja oblast'"]
["RU-KRS","Kurskaja oblast'"]
["RU-KRS","Kurskaya oblast'"]
["RU-LEN","Leningradskaja oblast'"]
["RU-LEN","Leningradskaya oblast'"]
["RU-LIP","Lipeckaja oblast'"]
["RU-LIP","Lipetskaya oblast'"]
["RU-MAG","Magadanskaya oblast'"]
["RU-MAG","Magadanskaja oblast'"]
["RU-MOS","Moskovskaya oblast'"]
["RU-MOS","Moskovskaja oblast'"]
["RU-MUR","Murmanskaya oblast'"]
["RU-MUR","Murmanskaja oblast'"]
["RU-NGR","Novgorodskaja oblast'"]
["RU-NGR","Novgorodskaya oblast'"]
["RU-NIZ","Nižegorodskaja oblast'"]
["RU-NIZ","Nizhegorodskaya oblast'"]
["RU-NVS","Novosibirskaya oblast'"]
["RU-NVS","Novosibirskaja oblast'"]
["RU-OMS","Omskaya oblast'"]
["RU-OMS","Omskaja oblast'"]
["RU-ORE","Orenburgskaja oblast'"]
["RU-ORE","Orenburgskaya oblast'"]
["RU-ORL","Orlovskaja oblast'"]
["RU-ORL","Orlovskaya oblast'"]
["RU-PNZ","Penzenskaya oblast'"]
["RU-PNZ","Penzenskaja oblast'"]
["RU-PSK","Pskovskaya oblast'"]
["RU-PSK","Pskovskaja oblast'"]
["RU-ROS","Rostovskaya oblast'"]
["RU-ROS","Rostovskaja oblast'"]
["RU-RYA","Rjazanskaja oblast'"]
["RU-RYA","Ryazanskaya oblast'"]
["RU-SAK","Sahalinskaja oblast'"]
["RU-SAK","Sakhalinskaya oblast'"]
["RU-SAM","Samarskaja oblast'"]
["RU-SAM","Samarskaya oblast'"]
["RU-SAR","Saratovskaya oblast'"]
["RU-SAR","Saratovskaja oblast'"]
["RU-SMO","Smolenskaja oblast'"]
["RU-SMO","Smolenskaya oblast'"]
["RU-SVE","Sverdlovskaya oblast'"]
["RU-SVE","Sverdlovskaja oblast'"]
["RU-TAM","Tambovskaya oblast'"]
["RU-TAM","Tambovskaja oblast'"]
["RU-TOM","Tomskaya oblast'"]
["RU-TOM","Tomskaja oblast'"]
["RU-TUL","Tul'skaja oblast'"]
["RU-TUL","Tul'skaya oblast'"]
["RU-TVE","Tverskaja oblast'"]
["RU-TVE","Tverskaya oblast'"]
["RU-TYU","Tyumenskaya oblast'"]
["RU-TYU","Tjumenskaja oblast'"]
["RU-ULY","Ul'janovskaja oblast'"]
["RU-ULY","Ul'yanovskaya oblast'"]
["RU-VGG","Volgogradskaja oblast'"]
["RU-VGG","Volgogradskaya oblast'"]
["RU-VLA","Vladimirskaya oblast'"]
["RU-VLA","Vladimirskaja oblast'"]
["RU-VLG","Vologodskaya oblast'"]
["RU-VLG","Vologodskaja oblast'"]
["RU-VOR","Voronežskaja oblast'"]
["RU-VOR","Voronezhskaya oblast'"]
["RU-YAR","Jaroslavskaja oblast'"]
["RU-YAR","Yaroslavskaya oblast'"]
["RU-CHU","Chukotskiy avtonomnyy okrug"]
["RU-CHU","Čukotskij avtonomnyj okrug"]
["RU-KHM","Khanty-Mansiyskiy avtonomnyy okrug"]
["RU-KHM","Hanty-Mansijskij avtonomnyj okrug"]
["RU-NEN","Nenetskiy avtonomnyy okrug"]
["RU-NEN","Neneckij avtonomnyj okrug"]
["RU-YAN","Jamalo-Neneckij avtonomnyj okrug"]
["RU-YAN","Yamalo-Nenetskiy avtonomnyy okrug"]
["RU-MOW","Moskva"]
["RU-SPE","Sankt-Peterburg"]
["RU-YEV","Yevreyskaya avtonomnaya oblast'"]
["RU-YEV","Evrejskaja avtonomnaja oblast'"]
["RU-ALT","Altajskij kraj"]
["RU-ALT","Altayskiy kray"]
["RU-KAM","Kamchatskiy kray"]
["RU-KAM","Kamčatskij kraj"]
["RU-KDA","Krasnodarskiy kray"]
["RU-KDA","Krasnodarskij kraj"]
["RU-KHA","Khabarovskiy kray"]
["RU-KHA","Habarovskij kraj"]
["RU-KYA","Krasnojarskij kraj"]
["RU-KYA","Krasnoyarskiy kray"]
["RU-PER","Permskiy kray"]
["RU-PER","Permskij kraj"]
["RU-PRI","Primorskiy kray"]
["RU-PRI","Primorskij kraj"]
["RU-STA","Stavropol'skiy kray"]
["RU-STA","Stavropol'skij kraj"]
["RU-ZAB","Zabaykal'skiy kray"]
["RU-ZAB","Zabajkal'skij kraj"]
["RU-AD","Adygeya, Respublika"]
["RU-AD","Adygeja, Respublika"]
["RU-AL","Altaj, Respublika"]
["RU-AL","Altay, Respublika"]
["RU-BA","Baškortostan, Respublika"]
["RU-BA","Bashkortostan, Respublika"]
["RU-BU","Buryatiya, Respublika"]
["RU-BU","Burjatija, Respublika"]
["RU-CE","Čečenskaja Respublika"]
["RU-CE","Chechenskaya Respublika"]
["RU-CU","Čuvašskaja Respublika"]
["RU-CU","Chuvashskaya Respublika"]
["RU-DA","Dagestan, Respublika"]
["RU-IN","Ingušetija, Respublika"]
["RU-IN","Ingushetiya, Respublika"]
["RU-KB","Kabardino-Balkarskaya Respublika"]
["RU-KB","Kabardino-Balkarskaja Respublika"]
["RU-KC","Karachayevo-Cherkesskaya Respublika"]
["RU-KC","Karačaevo-Čerkesskaja Respublika"]
["RU-KK","Hakasija, Respublika"]
["RU-KK","Khakasiya, Respublika"]
["RU-KL","Kalmykija, Respublika"]
["RU-KL","Kalmykiya, Respublika"]
["RU-KO","Komi, Respublika"]
["RU-KR","Kareliya, Respublika"]
["RU-KR","Karelija, Respublika"]
["RU-ME","Mariy El, Respublika"]
["RU-ME","Marij Èl, Respublika"]
["RU-MO","Mordoviya, Respublika"]
["RU-MO","Mordovija, Respublika"]
["RU-SA","Saha, Respublika"]
["RU-SA","Sakha, Respublika"]
["RU-SE","Severnaya Osetiya, Respublika"]
["RU-SE","Severnaja Osetija, Respublika"]
["RU-TA","Tatarstan, Respublika"]
["RU-TY","Tyva, Respublika"]
["RU-UD","Udmurtskaya Respublika"]
["RU-UD","Udmurtskaja Respublika"]
["RW-01","City of Kigali"]
["RW-01","Ville de Kigali"]
["RW-01","Umujyi wa Kigali"]
["RW-02","Iburasirazuba"]
["RW-03","Amajyaruguru"]
["RW-04","Iburengerazuba"]
["RW-05","Amajyepfo"]
["SA-01","Ar Riyāḑ"]
["SA-02","Makkah al Mukarramah"]
["SA-03","Al Madīnah al Munawwarah"]
["SA-05","Al Qaşīm"]
["SA-06","Ḩā'il"]
["SA-07","Tabūk"]
["SA-08","Al Ḩudūd ash Shamālīyah"]
["SA-09","Jāzān"]
["SA-10","Najrān"]
["SA-11","Al Bāḩah"]
["SA-12","Al Jawf"]
["SA-14","'Asīr"]
["SB-GU","Guadalcanal"]
["SB-IS","Isabel"]
["SB-MK","Makira-Ulawa"]
["SB-ML","Malaita"]
["SB-RB","Rennell and Bellona"]
["SB-TE","Temotu"]
["SB-CT","Capital Territory (Honiara)"]
["SC-01","Ans o Pen"]
["SC-01","Anse aux Pins"]
["SC-02","Ans Bwalo"]
["SC-02","Anse Boileau"]
["SC-03","Ans Etwal"]
["SC-03","Anse Etoile"]
["SC-03","Anse Étoile"]
["SC-04","O Kap"]
["SC-04","Au Cap"]
["SC-05","Ans Royal"]
["SC-05","Anse Royale"]
["SC-06","Be Lazar"]
["SC-06","Baie Lazare"]
["SC-07","Be Sent Ann"]
["SC-07","Baie Sainte Anne"]
["SC-07","Baie Sainte-Anne"]
["SC-08","Bovalon"]
["SC-08","Beau Vallon"]
["SC-09","Beler"]
["SC-09","Bel Air"]
["SC-10","Belonm"]
["SC-10","Bel Ombre"]
["SC-11","Kaskad"]
["SC-11","Cascade"]
["SC-12","Glasi"]
["SC-12","Glacis"]
["SC-13","Grand Ans Mae"]
["SC-13","Grand Anse Mahe"]
["SC-13","Grand'Anse Mahé"]
["SC-14","Grand Ans Pralen"]
["SC-14","Grand Anse Praslin"]
["SC-14","Grand'Anse Praslin"]
["SC-15","Ladig"]
["SC-15","La Digue"]
["SC-16","Larivyer Anglez"]
["SC-16","English River"]
["SC-16","La Rivière Anglaise"]
["SC-17","Mon Bikston"]
["SC-17","Mont Buxton"]
["SC-18","Mon Fleri"]
["SC-18","Mont Fleuri"]
["SC-19","Plezans"]
["SC-19","Plaisance"]
["SC-20","Pwent Lari"]
["SC-20","Pointe Larue"]
["SC-20","Pointe La Rue"]
["SC-21","Porglo"]
["SC-21","Port Glaud"]
["SC-22","Sen Lwi"]
["SC-22","Saint Louis"]
["SC-22","Saint-Louis"]
["SC-23","Takamaka"]
["SC-24","Lemamel"]
["SC-24","Les Mamelles"]
["SC-25","Ros Kaiman"]
["SC-25","Roche Caiman"]
["SC-25","Roche Caïman"]
["SD-DC","Wasaţ Dārfūr Zālinjay"]
["SD-DC","Central Darfur"]
["SD-DE","Sharq Dārfūr"]
["SD-DE","East Darfur"]
["SD-DN","Shamāl Dārfūr"]
["SD-DN","North Darfur"]
["SD-DS","Janūb Dārfūr"]
["SD-DS","South Darfur"]
["SD-DW","Gharb Dārfūr"]
["SD-DW","West Darfur"]
["SD-GD","Al Qaḑārif"]
["SD-GD","Gedaref"]
["SD-GK","Gharb Kurdufān"]
["SD-GK","West Kordofan"]
["SD-GZ","Al Jazīrah"]
["SD-GZ","Gezira"]
["SD-KA","Kassalā"]
["SD-KA","Kassala"]
["SD-KH","Al Kharţūm"]
["SD-KH","Khartoum"]
["SD-KN","Shiamāl Kurdufān"]
["SD-KN","North Kordofan"]
["SD-KS","Janūb Kurdufān"]
["SD-KS","South Kordofan"]
["SD-NB","An Nīl al Azraq"]
["SD-NB","Blue Nile"]
["SD-NR","Nahr an Nīl"]
["SD-NR","River Nile"]
["SD-NW","An Nīl al Abyaḑ"]
["SD-NW","White Nile"]
["SD-RS","Red Sea"]
["SD-SI","Sinnār"]
["SD-SI","Sennar"]
["SE-AB","Stockholms län [SE-01]"]
["SE-AC","Västerbottens län [SE-24]"]
["SE-BD","Norrbottens län [SE-25]"]
["SE-C","Uppsala län [SE-03]"]
["SE-D","Södermanlands län [SE-04]"]
["SE-E","Östergötlands län [SE-05]"]
["SE-F","Jönköpings län [SE-06]"]
["SE-G","Kronobergs län [SE-07]"]
["SE-H","Kalmar län [SE-08]"]
["SE-I","Gotlands län [SE-09]"]
["SE-K","Blekinge län [SE-10]"]
["SE-M","Skåne län [SE-12]"]
["SE-N","Hallands län [SE-13]"]
["SE-O","Västra Götalands län [SE-14]"]
["SE-S","Värmlands län [SE-17]"]
["SE-T","Örebro län [SE-18]"]
["SE-U","Västmanlands län [SE-19]"]
["SE-W","Dalarnas län [SE-20]"]
["SE-X","Gävleborgs län [SE-21]"]
["SE-Y","Västernorrlands län [SE-22]"]
["SE-Z","Jämtlands län [SE-23]"]
["SG-01","Central Singapore"]
["SG-05","South West"]
["SH-AC","Ascension"]
["SH-HL","Saint Helena"]
["SH-TA","Tristan da Cunha"]
["SI-001","Ajdovščina"]
["SI-002","Beltinci"]
["SI-003","Bled"]
["SI-004","Bohinj"]
["SI-005","Borovnica"]
["SI-006","Bovec"]
["SI-007","Brda"]
["SI-008","Brezovica"]
["SI-009","Brežice"]
["SI-010","Tišina"]
["SI-011","Celje"]
["SI-012","Cerklje na Gorenjskem"]
["SI-013","Cerknica"]
["SI-014","Cerkno"]
["SI-015","Črenšovci"]
["SI-016","Črna na Koroškem"]
["SI-017","Črnomelj"]
["SI-018","Destrnik"]
["SI-019","Divača"]
["SI-020","Dobrepolje"]
["SI-021","Dobrova-Polhov Gradec"]
["SI-022","Dol pri Ljubljani"]
["SI-023","Domžale"]
["SI-024","Dornava"]
["SI-025","Dravograd"]
["SI-026","Duplek"]
["SI-027","Gorenja vas-Poljane"]
["SI-028","Gorišnica"]
["SI-029","Gornja Radgona"]
["SI-030","Gornji Grad"]
["SI-031","Gornji Petrovci"]
["SI-032","Grosuplje"]
["SI-033","Šalovci"]
["SI-034","Hrastnik"]
["SI-035","Hrpelje-Kozina"]
["SI-036","Idrija"]
["SI-037","Ig"]
["SI-038","Ilirska Bistrica"]
["SI-039","Ivančna Gorica"]
["SI-040","Izola"]
["SI-041","Jesenice"]
["SI-042","Juršinci"]
["SI-043","Kamnik"]
["SI-044","Kanal"]
["SI-045","Kidričevo"]
["SI-046","Kobarid"]
["SI-047","Kobilje"]
["SI-048","Kočevje"]
["SI-049","Komen"]
["SI-050","Koper"]
["SI-051","Kozje"]
["SI-052","Kranj"]
["SI-053","Kranjska Gora"]
["SI-054","Krško"]
["SI-055","Kungota"]
["SI-056","Kuzma"]
["SI-057","Laško"]
["SI-058","Lenart"]
["SI-059","Lendava"]
["SI-060","Litija"]
["SI-061","Ljubljana"]
["SI-062","Ljubno"]
["SI-063","Ljutomer"]
["SI-064","Logatec"]
["SI-065","Loška Dolina"]
["SI-066","Loški Potok"]
["SI-067","Luče"]
["SI-068","Lukovica"]
["SI-069","Majšperk"]
["SI-070","Maribor"]
["SI-071","Medvode"]
["SI-072","Mengeš"]
["SI-073","Metlika"]
["SI-074","Mežica"]
["SI-075","Miren-Kostanjevica"]
["SI-076","Mislinja"]
["SI-077","Moravče"]
["SI-078","Moravske Toplice"]
["SI-079","Mozirje"]
["SI-080","Murska Sobota"]
["SI-081","Muta"]
["SI-082","Naklo"]
["SI-083","Nazarje"]
["SI-084","Nova Gorica"]
["SI-085","Novo Mesto"]
["SI-086","Odranci"]
["SI-087","Ormož"]
["SI-088","Osilnica"]
["SI-089","Pesnica"]
["SI-090","Piran"]
["SI-091","Pivka"]
["SI-092","Podčetrtek"]
["SI-093","Podvelka"]
["SI-094","Postojna"]
["SI-095","Preddvor"]
["SI-096","Ptuj"]
["SI-097","Puconci"]
["SI-098","Rače-Fram"]
["SI-099","Radeče"]
["SI-100","Radenci"]
["SI-101","Radlje ob Dravi"]
["SI-102","Radovljica"]
["SI-103","Ravne na Koroškem"]
["SI-104","Ribnica"]
["SI-105","Rogašovci"]
["SI-106","Rogaška Slatina"]
["SI-107","Rogatec"]
["SI-108","Ruše"]
["SI-109","Semič"]
["SI-110","Sevnica"]
["SI-111","Sežana"]
["SI-112","Slovenj Gradec"]
["SI-113","Slovenska Bistrica"]
["SI-114","Slovenske Konjice"]
["SI-115","Starše"]
["SI-116","Sveti Jurij"]
["SI-117","Šenčur"]
["SI-118","Šentilj"]
["SI-119","Šentjernej"]
["SI-120","Šentjur"]
["SI-121","Škocjan"]
["SI-122","Škofja Loka"]
["SI-123","Škofljica"]
["SI-124","Šmarje pri Jelšah"]
["SI-125","Šmartno ob Paki"]
["SI-126","Šoštanj"]
["SI-127","Štore"]
["SI-128","Tolmin"]
["SI-129","Trbovlje"]
["SI-130","Trebnje"]
["SI-131","Tržič"]
["SI-132","Turnišče"]
["SI-133","Velenje"]
["SI-134","Velike Lašče"]
["SI-135","Videm"]
["SI-136","Vipava"]
["SI-137","Vitanje"]
["SI-138","Vodice"]
["SI-139","Vojnik"]
["SI-140","Vrhnika"]
["SI-141","Vuzenica"]
["SI-142","Zagorje ob Savi"]
["SI-143","Zavrč"]
["SI-144","Zreče"]
["SI-146","Železniki"]
["SI-147","Žiri"]
["SI-148","Benedikt"]
["SI-149","Bistrica ob Sotli"]
["SI-150","Bloke"]
["SI-151","Braslovče"]
["SI-152","Cankova"]
["SI-153","Cerkvenjak"]
["SI-154","Dobje"]
["SI-155","Dobrna"]
["SI-156","Dobrovnik"]
["SI-157","Dolenjske Toplice"]
["SI-158","Grad"]
["SI-159","Hajdina"]
["SI-160","Hoče-Slivnica"]
["SI-161","Hodoš"]
["SI-162","Horjul"]
["SI-163","Jezersko"]
["SI-164","Komenda"]
["SI-165","Kostel"]
["SI-166","Križevci"]
["SI-167","Lovrenc na Pohorju"]
["SI-168","Markovci"]
["SI-169","Miklavž na Dravskem Polju"]
["SI-170","Mirna Peč"]
["SI-171","Oplotnica"]
["SI-172","Podlehnik"]
["SI-173","Polzela"]
["SI-174","Prebold"]
["SI-175","Prevalje"]
["SI-176","Razkrižje"]
["SI-177","Ribnica na Pohorju"]
["SI-178","Selnica ob Dravi"]
["SI-179","Sodražica"]
["SI-180","Solčava"]
["SI-181","Sveta Ana"]
["SI-182","Sveti Andraž v Slovenskih Goricah"]
["SI-183","Šempeter-Vrtojba"]
["SI-184","Tabor"]
["SI-185","Trnovska Vas"]
["SI-186","Trzin"]
["SI-187","Velika Polana"]
["SI-188","Veržej"]
["SI-189","Vransko"]
["SI-190","Žalec"]
["SI-191","Žetale"]
["SI-192","Žirovnica"]
["SI-193","Žužemberk"]
["SI-194","Šmartno pri Litiji"]
["SI-195","Apače"]
["SI-196","Cirkulane"]
["SI-197","Kosanjevica na Krki"]
["SI-198","Makole"]
["SI-199","Mokronog-Trebelno"]
["SI-200","Poljčane"]
["SI-201","Renče-Vogrsko"]
["SI-202","Središče ob Dravi"]
["SI-203","Straža"]
["SI-204","Sveta Trojica v Slovenskih Goricah"]
["SI-205","Sveti Tomaž"]
["SI-206","Šmarješke Toplice"]
["SI-207","Gorje"]
["SI-208","Log-Dragomer"]
["SI-209","Rečica ob Savinji"]
["SI-210","Sveti Jurij v Slovenskih Goricah"]
["SI-211","Šentrupert"]
["SI-212","Mirna"]
["SI-213","Ankaran"]
["SK-BC","Banskobystrický kraj"]
["SK-BL","Bratislavský kraj"]
["SK-KI","Košický kraj"]
["SK-NI","Nitriansky kraj"]
["SK-PV","Prešovský kraj"]
["SK-TA","Trnavský kraj"]
["SK-TC","Trenčiansky kraj"]
["SK-ZI","Žilinský kraj"]
["SL-W","Western Area (Freetown)"]
["SL-NW","North Western"]
["SM-01","Acquaviva"]
["SM-02","Chiesanuova"]
["SM-03","Domagnano"]
["SM-04","Faetano"]
["SM-05","Fiorentino"]
["SM-06","Borgo Maggiore"]
["SM-07","San Marino"]
["SM-08","Montegiardino"]
["SM-09","Serravalle"]
["SN-DB","Diourbel"]
["SN-DK","Dakar"]
["SN-FK","Fatick"]
["SN-KA","Kaffrine"]
["SN-KD","Kolda"]
["SN-KE","Kédougou"]
["SN-KL","Kaolack"]
["SN-LG","Louga"]
["SN-MT","Matam"]
["SN-SE","Sédhiou"]
["SN-TC","Tambacounda"]
["SN-TH","Thiès"]
["SN-ZG","Ziguinchor"]
["SO-AW","Awdal"]
["SO-BK","Bakool"]
["SO-BN","Banaadir"]
["SO-BY","Bay"]
["SO-GA","Galguduud"]
["SO-GE","Gedo"]
["SO-HI","Hiiraan"]
["SO-JD","Jubbada Dhexe"]
["SO-JH","Jubbada Hoose"]
["SO-MU","Mudug"]
["SO-NU","Nugaal"]
["SO-SA","Sanaag"]
["SO-SD","Shabeellaha Dhexe"]
["SO-SH","Shabeellaha Hoose"]
["SO-SO","Sool"]
["SO-TO","Togdheer"]
["SO-WO","Woqooyi Galbeed"]
["SR-BR","Brokopondo"]
["SR-CM","Commewijne"]
["SR-CR","Coronie"]
["SR-MA","Marowijne"]
["SR-NI","Nickerie"]
["SR-PM","Paramaribo"]
["SR-PR","Para"]
["SR-SA","Saramacca"]
["SR-SI","Sipaliwini"]
["SR-WA","Wanica"]
["SS-BN","Northern Bahr el Ghazal"]
["SS-BW","Western Bahr el  Ghazal"]
["SS-EC","Central Equatoria"]
["SS-EE","Eastern Equatoria"]
["SS-EW","Western Equatoria"]
["SS-JG","Jonglei"]
["SS-LK","Lakes"]
["SS-NU","Upper Nile"]
["SS-UY","Unity"]
["SS-WR","Warrap"]
["ST-P","Príncipe"]
["ST-S","São Tomé"]
["SV-AH","Ahuachapán"]
["SV-CA","Cabañas"]
["SV-CH","Chalatenango"]
["SV-CU","Cuscatlán"]
["SV-MO","Morazán"]
["SV-SA","Santa Ana"]
["SV-SM","San Miguel"]
["SV-SO","Sonsonate"]
["SV-SV","San Vicente"]
["SV-UN","La Unión"]
["SV-US","Usulután"]
["SY-DI","Dimashq"]
["SY-DR","Dar'ā"]
["SY-DY","Dayr az Zawr"]
["SY-HA","Al Ḩasakah"]
["SY-HI","Ḩimş"]
["SY-HL","Ḩalab"]
["SY-HM","Ḩamāh"]
["SY-ID","Idlib"]
["SY-LA","Al Lādhiqīyah"]
["SY-QU","Al Qunayţirah"]
["SY-RA","Ar Raqqah"]
["SY-RD","Rīf Dimashq"]
["SY-SU","As Suwaydā'"]
["SY-TA","Ţarţūs"]
["SZ-HH","Hhohho"]
["SZ-LU","Lubombo"]
["SZ-MA","Manzini"]
["SZ-SH","Shiselweni"]
["TD-BA","Al Baţḩah"]
["TD-BA","Batha"]
["TD-BG","Baḩr al Ghazāl"]
["TD-BG","Bahr el Ghazal"]
["TD-BO","Būrkū"]
["TD-BO","Borkou"]
["TD-CB","Shārī Bāqirmī"]
["TD-CB","Chari-Baguirmi"]
["TD-EE","Ennedi-Est"]
["TD-EO","Ennedi-Ouest"]
["TD-GR","Qīrā"]
["TD-GR","Guéra"]
["TD-HL","Ḩajjar Lamīs"]
["TD-HL","Hadjer Lamis"]
["TD-KA","Kānim"]
["TD-KA","Kanem"]
["TD-LC","Lac"]
["TD-LO","Lūqūn al Gharbī"]
["TD-LO","Logone-Occidental"]
["TD-LR","Lūqūn ash Sharqī"]
["TD-LR","Logone-Oriental"]
["TD-MA","Māndūl"]
["TD-MA","Mandoul"]
["TD-MC","Shārī al Awsaţ"]
["TD-MC","Moyen-Chari"]
["TD-ME","Māyū Kībbī ash Sharqī"]
["TD-ME","Mayo-Kebbi-Est"]
["TD-MO","Māyū Kībbī al Gharbī"]
["TD-MO","Mayo-Kebbi-Ouest"]
["TD-ND","Madīnat Injamīnā"]
["TD-ND","Ville de Ndjamena"]
["TD-OD","Waddāy"]
["TD-OD","Ouaddaï"]
["TD-SA","Salāmāt"]
["TD-SA","Salamat"]
["TD-SI","Sīlā"]
["TD-SI","Sila"]
["TD-TA","Tānjilī"]
["TD-TA","Tandjilé"]
["TD-TI","Tibastī"]
["TD-TI","Tibesti"]
["TD-WF","Wādī Fīrā"]
["TD-WF","Wadi Fira"]
["TG-C","Centrale"]
["TG-K","Kara"]
["TG-M","Maritime (Région)"]
["TH-10","Krung Thep Maha Nakhon"]
["TH-11","Samut Prakan"]
["TH-12","Nonthaburi"]
["TH-13","Pathum Thani"]
["TH-14","Phra Nakhon Si Ayutthaya"]
["TH-15","Ang Thong"]
["TH-16","Lop Buri"]
["TH-17","Sing Buri"]
["TH-18","Chai Nat"]
["TH-19","Saraburi"]
["TH-20","Chon Buri"]
["TH-21","Rayong"]
["TH-22","Chanthaburi"]
["TH-23","Trat"]
["TH-24","Chachoengsao"]
["TH-25","Prachin Buri"]
["TH-26","Nakhon Nayok"]
["TH-27","Sa Kaeo"]
["TH-30","Nakhon Ratchasima"]
["TH-31","Buri Ram"]
["TH-32","Surin"]
["TH-33","Si Sa Ket"]
["TH-34","Ubon Ratchathani"]
["TH-35","Yasothon"]
["TH-36","Chaiyaphum"]
["TH-37","Amnat Charoen"]
["TH-38","Bueng Kan"]
["TH-39","Nong Bua Lam Phu"]
["TH-40","Khon Kaen"]
["TH-41","Udon Thani"]
["TH-42","Loei"]
["TH-43","Nong Khai"]
["TH-44","Maha Sarakham"]
["TH-45","Roi Et"]
["TH-46","Kalasin"]
["TH-47","Sakon Nakhon"]
["TH-48","Nakhon Phanom"]
["TH-49","Mukdahan"]
["TH-50","Chiang Mai"]
["TH-51","Lamphun"]
["TH-52","Lampang"]
["TH-53","Uttaradit"]
["TH-54","Phrae"]
["TH-55","Nan"]
["TH-56","Phayao"]
["TH-57","Chiang Rai"]
["TH-58","Mae Hong Son"]
["TH-60","Nakhon Sawan"]
["TH-61","Uthai Thani"]
["TH-62","Kamphaeng Phet"]
["TH-63","Tak"]
["TH-64","Sukhothai"]
["TH-65","Phitsanulok"]
["TH-66","Phichit"]
["TH-67","Phetchabun"]
["TH-70","Ratchaburi"]
["TH-71","Kanchanaburi"]
["TH-72","Suphan Buri"]
["TH-73","Nakhon Pathom"]
["TH-74","Samut Sakhon"]
["TH-75","Samut Songkhram"]
["TH-76","Phetchaburi"]
["TH-77","Prachuap Khiri Khan"]
["TH-80","Nakhon Si Thammarat"]
["TH-81","Krabi"]
["TH-82","Phangnga"]
["TH-83","Phuket"]
["TH-84","Surat Thani"]
["TH-85","Ranong"]
["TH-86","Chumphon"]
["TH-90","Songkhla"]
["TH-91","Satun"]
["TH-92","Trang"]
["TH-93","Phatthalung"]
["TH-94","Pattani"]
["TH-95","Yala"]
["TH-96","Narathiwat"]
["TH-S","Phatthaya"]
["TJ-KT","Khatlon"]
["TJ-SU","Sughd"]
["TJ-GB","Kŭhistoni Badakhshon"]
["TJ-DU","Dushanbe"]
["TJ-RA","nohiyahoi tobei jumhurí"]
["TL-AL","Aileu"]
["TL-AN","Ainaro"]
["TL-AN","Ainaru"]
["TL-BA","Baucau"]
["TL-BA","Baukau"]
["TL-BO","Bobonaro"]
["TL-BO","Bobonaru"]
["TL-CO","Cova Lima"]
["TL-CO","Kovalima"]
["TL-DI","Díli"]
["TL-ER","Ermera"]
["TL-LA","Lautém"]
["TL-LA","Lautein"]
["TL-LI","Liquiça"]
["TL-LI","Likisá"]
["TL-MF","Manufahi"]
["TL-MT","Manatuto"]
["TL-MT","Manatutu"]
["TL-VI","Viqueque"]
["TL-VI","Vikeke"]
["TL-OE","Oé-Cusse Ambeno"]
["TL-OE","Oekusi-Ambenu"]
["TM-S","Aşgabat"]
["TM-A","Ahal"]
["TM-B","Balkan"]
["TM-D","Daşoguz"]
["TM-L","Lebap"]
["TM-M","Mary"]
["TN-11","Tunis"]
["TN-12","L'Ariana"]
["TN-13","Ben Arous"]
["TN-14","La Manouba"]
["TN-21","Nabeul"]
["TN-22","Zaghouan"]
["TN-23","Bizerte"]
["TN-31","Béja"]
["TN-32","Jendouba"]
["TN-33","Le Kef"]
["TN-34","Siliana"]
["TN-41","Kairouan"]
["TN-42","Kasserine"]
["TN-43","Sidi Bouzid"]
["TN-51","Sousse"]
["TN-52","Monastir"]
["TN-53","Mahdia"]
["TN-61","Sfax"]
["TN-71","Gafsa"]
["TN-72","Tozeur"]
["TN-73","Kébili"]
["TN-81","Gabès"]
["TN-82","Médenine"]
["TN-83","Tataouine"]
["TO-01","'Eua"]
["TO-02","Ha'apai"]
["TO-03","Niuas"]
["TO-04","Tongatapu"]
["TO-05","Vava'u"]
["TR-01","Adana"]
["TR-02","Adıyaman"]
["TR-03","Afyonkarahisar"]
["TR-04","Ağrı"]
["TR-05","Amasya"]
["TR-06","Ankara"]
["TR-07","Antalya"]
["TR-08","Artvin"]
["TR-09","Aydın"]
["TR-10","Balıkesir"]
["TR-11","Bilecik"]
["TR-12","Bingöl"]
["TR-13","Bitlis"]
["TR-14","Bolu"]
["TR-15","Burdur"]
["TR-16","Bursa"]
["TR-17","Çanakkale"]
["TR-18","Çankırı"]
["TR-19","Çorum"]
["TR-20","Denizli"]
["TR-21","Diyarbakır"]
["TR-22","Edirne"]
["TR-23","Elazığ"]
["TR-24","Erzincan"]
["TR-25","Erzurum"]
["TR-26","Eskişehir"]
["TR-27","Gaziantep"]
["TR-28","Giresun"]
["TR-29","Gümüşhane"]
["TR-30","Hakkâri"]
["TR-31","Hatay"]
["TR-32","Isparta"]
["TR-33","Mersin"]
["TR-34","İstanbul"]
["TR-35","İzmir"]
["TR-36","Kars"]
["TR-37","Kastamonu"]
["TR-38","Kayseri"]
["TR-39","Kırklareli"]
["TR-40","Kırşehir"]
["TR-41","Kocaeli"]
["TR-42","Konya"]
["TR-43","Kütahya"]
["TR-44","Malatya"]
["TR-45","Manisa"]
["TR-46","Kahramanmaraş"]
["TR-47","Mardin"]
["TR-48","Muğla"]
["TR-49","Muş"]
["TR-50","Nevşehir"]
["TR-51","Niğde"]
["TR-52","Ordu"]
["TR-53","Rize"]
["TR-54","Sakarya"]
["TR-55","Samsun"]
["TR-56","Siirt"]
["TR-57","Sinop"]
["TR-58","Sivas"]
["TR-59","Tekirdağ"]
["TR-60","Tokat"]
["TR-61","Trabzon"]
["TR-62","Tunceli"]
["TR-63","Şanlıurfa"]
["TR-64","Uşak"]
["TR-65","Van"]
["TR-66","Yozgat"]
["TR-67","Zonguldak"]
["TR-68","Aksaray"]
["TR-69","Bayburt"]
["TR-70","Karaman"]
["TR-71","Kırıkkale"]
["TR-72","Batman"]
["TR-73","Şırnak"]
["TR-74","Bartın"]
["TR-75","Ardahan"]
["TR-76","Iğdır"]
["TR-77","Yalova"]
["TR-78","Karabük"]
["TR-79","Kilis"]
["TR-80","Osmaniye"]
["TR-81","Düzce"]
["TT-ARI","Arima"]
["TT-CHA","Chaguanas"]
["TT-POS","Port of Spain"]
["TT-PTF","Point Fortin"]
["TT-SFO","San Fernando"]
["TT-CTT","Couva-Tabaquite-Talparo"]
["TT-DMN","Diego Martin"]
["TT-MRC","Mayaro-Rio Claro"]
["TT-PED","Penal-Debe"]
["TT-PRT","Princes Town"]
["TT-SGE","Sangre Grande"]
["TT-SIP","Siparia"]
["TT-SJL","San Juan-Laventille"]
["TT-TUP","Tunapuna-Piarco"]
["TT-TOB","Tobago"]
["TV-NIT","Niutao"]
["TV-NKF","Nukufetau"]
["TV-NKL","Nukulaelae"]
["TV-NMA","Nanumea"]
["TV-NMG","Nanumaga"]
["TV-NUI","Nui"]
["TV-VAI","Vaitupu"]
["TV-FUN","Funafuti"]
["TW-CYI","Chiayi"]
["TW-HSZ","Hsinchu"]
["TW-KEE","Keelung"]
["TW-KHH","Kaohsiung"]
["TW-NWT","New Taipei"]
["TW-TAO","Taoyuan"]
["TW-TNN","Tainan"]
["TW-TPE","Taipei"]
["TW-TXG","Taichung"]
["TW-CHA","Changhua"]
["TW-HUA","Hualien"]
["TW-ILA","Yilan"]
["TW-KIN","Kinmen"]
["TW-LIE","Lienchiang"]
["TW-MIA","Miaoli"]
["TW-NAN","Nantou"]
["TW-PEN","Penghu"]
["TW-PIF","Pingtung"]
["TW-TTT","Taitung"]
["TW-YUN","Yunlin"]
["TZ-01","Arusha"]
["TZ-02","Dar es Salaam"]
["TZ-03","Dodoma"]
["TZ-04","Iringa"]
["TZ-05","Kagera"]
["TZ-06","Pemba North"]
["TZ-06","Kaskazini Pemba"]
["TZ-07","Zanzibar North"]
["TZ-07","Kaskazini Unguja"]
["TZ-08","Kigoma"]
["TZ-09","Kilimanjaro"]
["TZ-10","Pemba South"]
["TZ-10","Kusini Pemba"]
["TZ-11","Zanzibar South"]
["TZ-11","Kusini Unguja"]
["TZ-12","Lindi"]
["TZ-13","Mara"]
["TZ-14","Mbeya"]
["TZ-15","Zanzibar West"]
["TZ-15","Mjini Magharibi"]
["TZ-16","Morogoro"]
["TZ-17","Mtwara"]
["TZ-19","Coast"]
["TZ-19","Pwani"]
["TZ-20","Rukwa"]
["TZ-21","Ruvuma"]
["TZ-22","Shinyanga"]
["TZ-23","Singida"]
["TZ-24","Tabora"]
["TZ-25","Tanga"]
["TZ-26","Manyara"]
["TZ-27","Geita"]
["TZ-28","Katavi"]
["TZ-29","Njombe"]
["TZ-30","Simiyu"]
["TZ-31","Songwe"]
["UA-30","Kyiv"]
["UA-40","Sevastopol"]
["UA-05","Vinnytska oblast"]
["UA-07","Volynska oblast"]
["UA-09","Luhanska oblast"]
["UA-12","Dnipropetrovska oblast"]
["UA-14","Donetska oblast"]
["UA-18","Zhytomyrska oblast"]
["UA-21","Zakarpatska oblast"]
["UA-23","Zaporizka oblast"]
["UA-26","Ivano-Frankivska oblast"]
["UA-32","Kyivska oblast"]
["UA-35","Kirovohradska oblast"]
["UA-46","Lvivska oblast"]
["UA-48","Mykolaivska oblast"]
["UA-51","Odeska oblast"]
["UA-53","Poltavska oblast"]
["UA-56","Rivnenska oblast"]
["UA-59","Sumska oblast"]
["UA-61","Ternopilska oblast"]
["UA-63","Kharkivska oblast"]
["UA-65","Khersonska oblast"]
["UA-68","Khmelnytska oblast"]
["UA-71","Cherkaska oblast"]
["UA-74","Chernihivska oblast"]
["UA-77","Chernivetska oblast"]
["UA-43","Avtonomna Respublika Krym"]
["UG-101","Kalangala"]
["UG-103","Kiboga"]
["UG-104","Luwero"]
["UG-105","Masaka"]
["UG-106","Mpigi"]
["UG-107","Mubende"]
["UG-108","Mukono"]
["UG-109","Nakasongola"]
["UG-110","Rakai"]
["UG-111","Sembabule"]
["UG-112","Kayunga"]
["UG-113","Wakiso"]
["UG-114","Lyantonde"]
["UG-115","Mityana"]
["UG-116","Nakaseke"]
["UG-117","Buikwe"]
["UG-118","Bukomansibi"]
["UG-119","Butambala"]
["UG-120","Buvuma"]
["UG-121","Gomba"]
["UG-122","Kalungu"]
["UG-123","Kyankwanzi"]
["UG-124","Lwengo"]
["UG-125","Kyotera"]
["UG-126","Kasanda"]
["UG-102","Kampala"]
["UG-201","Bugiri"]
["UG-203","Iganga"]
["UG-204","Jinja"]
["UG-205","Kamuli"]
["UG-206","Kapchorwa"]
["UG-207","Katakwi"]
["UG-208","Kumi"]
["UG-209","Mbale"]
["UG-210","Pallisa"]
["UG-211","Soroti"]
["UG-212","Tororo"]
["UG-213","Kaberamaido"]
["UG-214","Mayuge"]
["UG-215","Sironko"]
["UG-216","Amuria"]
["UG-217","Budaka"]
["UG-218","Bududa"]
["UG-219","Bukedea"]
["UG-220","Bukwa"]
["UG-221","Butaleja"]
["UG-222","Kaliro"]
["UG-223","Manafwa"]
["UG-224","Namutumba"]
["UG-225","Bulambuli"]
["UG-226","Buyende"]
["UG-227","Kibuku"]
["UG-228","Kween"]
["UG-229","Luuka"]
["UG-230","Namayingo"]
["UG-231","Ngora"]
["UG-232","Serere"]
["UG-233","Butebo"]
["UG-234","Namisindwa"]
["UG-235","Bugweri"]
["UG-236","Kapelebyong"]
["UG-301","Adjumani"]
["UG-302","Apac"]
["UG-303","Arua"]
["UG-304","Gulu"]
["UG-305","Kitgum"]
["UG-306","Kotido"]
["UG-307","Lira"]
["UG-308","Moroto"]
["UG-309","Moyo"]
["UG-310","Nebbi"]
["UG-311","Nakapiripirit"]
["UG-312","Pader"]
["UG-313","Yumbe"]
["UG-314","Abim"]
["UG-315","Amolatar"]
["UG-316","Amuru"]
["UG-317","Dokolo"]
["UG-318","Kaabong"]
["UG-319","Koboko"]
["UG-320","Maracha"]
["UG-321","Oyam"]
["UG-322","Agago"]
["UG-323","Alebtong"]
["UG-324","Amudat"]
["UG-325","Kole"]
["UG-326","Lamwo"]
["UG-327","Napak"]
["UG-328","Nwoya"]
["UG-329","Otuke"]
["UG-330","Zombo"]
["UG-331","Omoro"]
["UG-332","Pakwach"]
["UG-333","Kwania"]
["UG-334","Nabilatuk"]
["UG-401","Bundibugyo"]
["UG-402","Bushenyi"]
["UG-403","Hoima"]
["UG-404","Kabale"]
["UG-405","Kabarole"]
["UG-406","Kasese"]
["UG-407","Kibaale"]
["UG-408","Kisoro"]
["UG-409","Masindi"]
["UG-410","Mbarara"]
["UG-411","Ntungamo"]
["UG-412","Rukungiri"]
["UG-413","Kamwenge"]
["UG-414","Kanungu"]
["UG-415","Kyenjojo"]
["UG-416","Buliisa"]
["UG-417","Ibanda"]
["UG-418","Isingiro"]
["UG-419","Kiruhura"]
["UG-420","Buhweju"]
["UG-421","Kiryandongo"]
["UG-422","Kyegegwa"]
["UG-423","Mitooma"]
["UG-424","Ntoroko"]
["UG-425","Rubirizi"]
["UG-426","Sheema"]
["UG-427","Kagadi"]
["UG-428","Kakumiro"]
["UG-429","Rubanda"]
["UG-430","Bunyangabu"]
["UG-431","Rukiga"]
["UG-432","Kikuube"]
["UM-67","Johnston Atoll"]
["UM-71","Midway Islands"]
["UM-76","Navassa Island"]
["UM-79","Wake Island"]
["UM-81","Baker Island"]
["UM-84","Howland Island"]
["UM-86","Jarvis Island"]
["UM-89","Kingman Reef"]
["UM-95","Palmyra Atoll"]
["US-DC","District of Columbia"]
["US-AS","American Samoa (see also separate country code entry under AS)"]
["US-GU","Guam (see also separate country code entry under GU)"]
["US-MP","Northern Mariana Islands (see also separate country code entry under MP)"]
["US-PR","Puerto Rico (see also separate country code entry under PR)"]
["US-UM","United States Minor Outlying Islands (see also separate country code entry under UM)"]
["US-VI","Virgin Islands, U.S. (see also separate country code entry under VI)"]
["US-AK","Alaska"]
["US-AL","Alabama"]
["US-AR","Arkansas"]
["US-AZ","Arizona"]
["US-CA","California"]
["US-CO","Colorado"]
["US-CT","Connecticut"]
["US-DE","Delaware"]
["US-FL","Florida"]
["US-GA","Georgia"]
["US-HI","Hawaii"]
["US-IA","Iowa"]
["US-ID","Idaho"]
["US-IL","Illinois"]
["US-IN","Indiana"]
["US-KS","Kansas"]
["US-KY","Kentucky"]
["US-LA","Louisiana"]
["US-MA","Massachusetts"]
["US-ME","Maine"]
["US-MI","Michigan"]
["US-MN","Minnesota"]
["US-MO","Missouri"]
["US-MS","Mississippi"]
["US-NC","North Carolina"]
["US-ND","North Dakota"]
["US-NE","Nebraska"]
["US-NH","New Hampshire"]
["US-NJ","New Jersey"]
["US-NM","New Mexico"]
["US-NV","Nevada"]
["US-NY","New York"]
["US-OH","Ohio"]
["US-OK","Oklahoma"]
["US-OR","Oregon"]
["US-PA","Pennsylvania"]
["US-RI","Rhode Island"]
["US-SC","South Carolina"]
["US-SD","South Dakota"]
["US-TN","Tennessee"]
["US-TX","Texas"]
["US-UT","Utah"]
["US-VA","Virginia"]
["US-VT","Vermont"]
["US-WA","Washington"]
["US-WI","Wisconsin"]
["US-WV","West Virginia"]
["US-WY","Wyoming"]
["UY-AR","Artigas"]
["UY-CA","Canelones"]
["UY-CL","Cerro Largo"]
["UY-CO","Colonia"]
["UY-DU","Durazno"]
["UY-FS","Flores"]
["UY-LA","Lavalleja"]
["UY-MA","Maldonado"]
["UY-MO","Montevideo"]
["UY-PA","Paysandú"]
["UY-RO","Rocha"]
["UY-RV","Rivera"]
["UY-SA","Salto"]
["UY-SO","Soriano"]
["UY-TA","Tacuarembó"]
["UY-TT","Treinta y Tres"]
["UZ-AN","Andijon"]
["UZ-BU","Buxoro"]
["UZ-FA","Farg‘ona"]
["UZ-JI","Jizzax"]
["UZ-NG","Namangan"]
["UZ-NW","Navoiy"]
["UZ-QA","Qashqadaryo"]
["UZ-SA","Samarqand"]
["UZ-SI","Sirdaryo"]
["UZ-SU","Surxondaryo"]
["UZ-TO","Toshkent"]
["UZ-XO","Xorazm"]
["UZ-QR","Qoraqalpog‘iston Respublikasi"]
["VC-01","Charlotte"]
["VC-06","Grenadines"]
["VE-B","Anzoátegui"]
["VE-C","Apure"]
["VE-D","Aragua"]
["VE-E","Barinas"]
["VE-G","Carabobo"]
["VE-H","Cojedes"]
["VE-I","Falcón"]
["VE-J","Guárico"]
["VE-K","Lara"]
["VE-L","Mérida"]
["VE-M","Miranda"]
["VE-N","Monagas"]
["VE-O","Nueva Esparta"]
["VE-P","Portuguesa"]
["VE-S","Táchira"]
["VE-T","Trujillo"]
["VE-U","Yaracuy"]
["VE-V","Zulia"]
["VE-X","Vargas"]
["VE-Y","Delta Amacuro"]
["VE-W","Dependencias Federales"]
["VE-A","Distrito Capital"]
["VN-01","Lai Châu"]
["VN-02","Lào Cai"]
["VN-03","Hà Giang"]
["VN-04","Cao Bằng"]
["VN-05","Sơn La"]
["VN-06","Yên Bái"]
["VN-07","Tuyên Quang"]
["VN-09","Lạng Sơn"]
["VN-13","Quảng Ninh"]
["VN-14","Hòa Bình"]
["VN-18","Ninh Bình"]
["VN-20","Thái Bình"]
["VN-21","Thanh Hóa"]
["VN-22","Nghệ An"]
["VN-23","Hà Tĩnh"]
["VN-24","Quảng Bình"]
["VN-25","Quảng Trị"]
["VN-26","Thừa Thiên-Huế"]
["VN-27","Quảng Nam"]
["VN-28","Kon Tum"]
["VN-29","Quảng Ngãi"]
["VN-30","Gia Lai"]
["VN-31","Bình Định"]
["VN-32","Phú Yên"]
["VN-33","Đắk Lắk"]
["VN-34","Khánh Hòa"]
["VN-35","Lâm Đồng"]
["VN-36","Ninh Thuận"]
["VN-37","Tây Ninh"]
["VN-39","Đồng Nai"]
["VN-40","Bình Thuận"]
["VN-41","Long An"]
["VN-43","Bà Rịa - Vũng Tàu"]
["VN-44","An Giang"]
["VN-45","Đồng Tháp"]
["VN-46","Tiền Giang"]
["VN-47","Kiến Giang"]
["VN-49","Vĩnh Long"]
["VN-50","Bến Tre"]
["VN-51","Trà Vinh"]
["VN-52","Sóc Trăng"]
["VN-53","Bắc Kạn"]
["VN-54","Bắc Giang"]
["VN-55","Bạc Liêu"]
["VN-56","Bắc Ninh"]
["VN-57","Bình Dương"]
["VN-58","Bình Phước"]
["VN-59","Cà Mau"]
["VN-61","Hải Dương"]
["VN-63","Hà Nam"]
["VN-66","Hưng Yên"]
["VN-67","Nam Định"]
["VN-68","Phú Thọ"]
["VN-69","Thái Nguyên"]
["VN-70","Vĩnh Phúc"]
["VN-71","Điện Biên"]
["VN-72","Đắk Nông"]
["VN-73","Hậu Giang"]
["VN-CT","Can Tho"]
["VN-DN","Da Nang"]
["VN-HN","Ha Noi"]
["VN-HP","Hai Phong"]
["VN-SG","Ho Chi Minh"]
["VU-MAP","Malampa"]
["VU-PAM","Pénama"]
["VU-SAM","Sanma"]
["VU-SEE","Shéfa"]
["VU-TAE","Taféa"]
["VU-TOB","Torba"]
["WF-AL","Alo"]
["WF-SG","Sigave"]
["WF-UV","Uvea"]
["WS-AA","A'ana"]
["WS-AL","Aiga-i-le-Tai"]
["WS-AT","Atua"]
["WS-FA","Fa'asaleleaga"]
["WS-GE","Gaga'emauga"]
["WS-GI","Gagaifomauga"]
["WS-PA","Palauli"]
["WS-SA","Satupa'itea"]
["WS-TU","Tuamasaga"]
["WS-VF","Va'a-o-Fonoti"]
["WS-VS","Vaisigano"]
["YE-SA","Amānat al ‘Āşimah [city]"]
["YE-AB","Abyan"]
["YE-AD","‘Adan"]
["YE-AM","‘Amrān"]
["YE-BA","Al Bayḑā’"]
["YE-DA","Aḑ Ḑāli‘"]
["YE-DH","Dhamār"]
["YE-HD","Ḩaḑramawt"]
["YE-HJ","Ḩajjah"]
["YE-HU","Al Ḩudaydah"]
["YE-IB","Ibb"]
["YE-LA","Laḩij"]
["YE-MA","Ma’rib"]
["YE-MR","Al Mahrah"]
["YE-MW","Al Maḩwīt"]
["YE-RA","Raymah"]
["YE-SD","Şāʻdah"]
["YE-SH","Shabwah"]
["YE-SN","Şanʻā’"]
["YE-SU","Arkhabīl Suquţrá"]
["YE-TA","Tāʻizz"]
["ZA-EC","Oos-Kaap"]
["ZA-EC","Eastern Cape"]
["ZA-EC","iPumalanga-Kapa"]
["ZA-EC","Kapa Bohlabela"]
["ZA-EC","Kapa Botjhabela"]
["ZA-EC","Kapa Botlhaba"]
["ZA-EC","Kapa-Vuxa"]
["ZA-EC","Kapa Vhubvaḓuvha"]
["ZA-EC","Mpuma-Koloni"]
["ZA-EC","Mpumalanga-Kapa"]
["ZA-FS","Vrystaat"]
["ZA-FS","Free State"]
["ZA-FS","iFreyistata"]
["ZA-FS","Freistata"]
["ZA-FS","Foreisetata"]
["ZA-FS","Fureisitata"]
["ZA-FS","Freyistata"]
["ZA-FS","Fuleyisitata"]
["ZA-GP","Gauteng"]
["ZA-GP","iGauteng"]
["ZA-GP","Kgauteng"]
["ZA-GP","Rhawuti"]
["ZA-KZN","KwaZulu-Natal"]
["ZA-KZN","iKwaZulu-Natal"]
["ZA-KZN","GaZulu-Natala"]
["ZA-KZN","Hazolo-Natala"]
["ZA-KZN","KwaZulu-Natali"]
["ZA-KZN","HaZulu-Natal"]
["ZA-KZN","KwaZulu-Natala"]
["ZA-LP","Limpopo"]
["ZA-LP","Vhembe"]
["ZA-MP","Mpumalanga"]
["ZA-MP","iMpumalanga"]
["ZA-NC","Noord-Kaap"]
["ZA-NC","Northern Cape"]
["ZA-NC","iTlhagwini-Kapa"]
["ZA-NC","Kapa Leboya"]
["ZA-NC","Kapa Bokone"]
["ZA-NC","Kapa-N'walungu"]
["ZA-NC","Kapa Devhula"]
["ZA-NC","Mntla-Koloni"]
["ZA-NC","Nyakatho-Kapa"]
["ZA-NW","Noordwes"]
["ZA-NW","iTlhagwini-Tjhingalanga"]
["ZA-NW","Lebowa Bodikela"]
["ZA-NW","Leboya (le) Bophirima"]
["ZA-NW","Bokone Bophirima"]
["ZA-NW","N'walungu-Vupeladyambu"]
["ZA-NW","Mntla-Ntshona"]
["ZA-NW","Nyakatho-Ntshonalanga"]
["ZA-WC","Wes-Kaap"]
["ZA-WC","Western Cape"]
["ZA-WC","iTjhingalanga-Kapa"]
["ZA-WC","Kapa Bodikela"]
["ZA-WC","Kapa Bophirimela"]
["ZA-WC","Kapa Bophirima"]
["ZA-WC","Kapa-Vupeladyambu"]
["ZA-WC","Kapa Vhukovhela"]
["ZA-WC","Ntshona-Koloni"]
["ZA-WC","Ntshonalanga-Kapa"]
["ZM-04","Luapula"]
["ZM-06","North-Western"]
["ZM-08","Copperbelt"]
["ZM-09","Lusaka"]
["ZM-10","Muchinga"]
["ZW-BU","Bulawayo"]
["ZW-HA","Harare"]
["ZW-MA","Manicaland"]
["ZW-MC","Mashonaland Central"]
["ZW-ME","Mashonaland East"]
["ZW-MI","Midlands"]
["ZW-MN","Matabeleland North"]
["ZW-MS","Matabeleland South"]
["ZW-MV","Masvingo"]
["ZW-MW","Mashonaland West"]